{"text_format":"1","workbook":"xlsx","n_sheets":18,"sheets":["s_sp_ce_ricl","s_bil_std","dati_an","dati_pdc","dati_bdv","dati_sp","dati_ce","s_somma_pdc","s_sep_ind","s_altman","calc_indici","pa_SP Abbreviato","convalida_dati","archivio_dati","filtri","ricerca_obiettivo","risolutore","scenari"],"not_rendered":{"charts":3,"images":0,"macros":1,"external_links":0,"defined_names":91,"comments":3,"pivot_tables":0},"unopened":[],"bounds":{"document_bytes":16777216,"sheet_cells":100000,"rows_first":2000,"rows_last":500,"rows_between":2000,"halvings":0,"cell_chars":16384,"cell_head_chars":4096},"cells_cut":0,"cells_raw":0,"read":"whole","date_system":"1900"}

{"sheet":"s_sp_ce_ricl","index":0,"n_rows":103,"n_cols":23,"rows_kept":103,"cut":false,"hidden":true,"merged":[[1,5,1,9],[1,12,1,16],[1,18,1,22]]}
[]
[null,null,null,null,null,"SCHEMA ORDINARIO",null,null,null,null,null,null,"SCHEMA ABBREVIATO",null,null,null,null,null,"SCHEMA FINALE"]
[null,"Stato patrimoniale sintetico"]
[null,null,"Attivo",null,null,"N","N-1","N-2","N-3","N-4",null,null,"N","N-1","N-2","N-3","N-4",null,{"$f":"F4","v":"N"},{"$f":"G4","v":"N-1"},{"$f":"H4","v":"N-2"},{"$f":"I4","v":"N-3"},{"$f":"J4","v":"N-4"}]
[10,null,"Crediti verso soci",null,null,{"$f":"#REF!","v":{"$error":"#REF!"}},{"$f":"#REF!","v":{"$error":"#REF!"}},{"$f":"#REF!","v":{"$error":"#REF!"}},{"$f":"#REF!","v":{"$error":"#REF!"}},{"$f":"#REF!","v":{"$error":"#REF!"}},null,null,{"$f":"'pa_SP Abbreviato'!F5","v":0},{"$f":"'pa_SP Abbreviato'!G5","v":0},{"$f":"'pa_SP Abbreviato'!L5","v":0},{"$f":"'pa_SP Abbreviato'!Q5","v":0},{"$f":"'pa_SP Abbreviato'!V5","v":0},null,{"$f":"IF(s_bil_std!$AA$2=\"1\",F5,M5)","v":0},{"$f":"IF(s_bil_std!$AA$2=\"1\",G5,N5)","v":0},{"$f":"IF(s_bil_std!$AA$2=\"1\",H5,O5)","v":0},{"$f":"IF(s_bil_std!$AA$2=\"1\",I5,P5)","v":0},{"$f":"IF(s_bil_std!$AA$2=\"1\",J5,Q5)","v":0}]
[20,null,"Immobilizzazioni",null,null,{"$f":"#REF!","v":{"$error":"#REF!"}},{"$f":"#REF!","v":{"$error":"#REF!"}},{"$f":"#REF!","v":{"$error":"#REF!"}},{"$f":"#REF!","v":{"$error":"#REF!"}},{"$f":"#REF!","v":{"$error":"#REF!"}},null,null,{"$f":"'pa_SP Abbreviato'!F8","v":0},{"$f":"'pa_SP Abbreviato'!G8","v":0},{"$f":"'pa_SP Abbreviato'!L8","v":0},{"$f":"'pa_SP Abbreviato'!Q8","v":0},{"$f":"'pa_SP Abbreviato'!V8","v":0},null,{"$f":"IF(s_bil_std!$AA$2=\"1\",F6,M6)","v":0},{"$f":"IF(s_bil_std!$AA$2=\"1\",G6,N6)","v":0},{"$f":"IF(s_bil_std!$AA$2=\"1\",H6,O6)","v":0},{"$f":"IF(s_bil_std!$AA$2=\"1\",I6,P6)","v":0},{"$f":"IF(s_bil_std!$AA$2=\"1\",J6,Q6)","v":0}]
[30,null,null,"Immateriali",null,{"$f":"#REF!","v":{"$error":"#REF!"}},{"$f":"#REF!","v":{"$error":"#REF!"}},{"$f":"#REF!","v":{"$error":"#REF!"}},{"$f":"#REF!","v":{"$error":"#REF!"}},{"$f":"#REF!","v":{"$error":"#REF!"}},null,null,{"$f":"'pa_SP Abbreviato'!F9","v":0},{"$f":"'pa_SP Abbreviato'!G9","v":0},{"$f":"'pa_SP Abbreviato'!L9","v":0},{"$f":"'pa_SP Abbreviato'!Q9","v":0},{"$f":"'pa_SP Abbreviato'!V9","v":0},null,{"$f":"IF(s_bil_std!$AA$2=\"1\",F7,M7)","v":0},{"$f":"IF(s_bil_std!$AA$2=\"1\",G7,N7)","v":0},{"$f":"IF(s_bil_std!$AA$2=\"1\",H7,O7)","v":0},{"$f":"IF(s_bil_std!$AA$2=\"1\",I7,P7)","v":0},{"$f":"IF(s_bil_std!$AA$2=\"1\",J7,Q7)","v":0}]
[40,null,null,"Materiali",null,{"$f":"#REF!","v":{"$error":"#REF!"}},{"$f":"#REF!","v":{"$error":"#REF!"}},{"$f":"#REF!","v":{"$error":"#REF!"}},{"$f":"#REF!","v":{"$error":"#REF!"}},{"$f":"#REF!","v":{"$error":"#REF!"}},null,null,{"$f":"'pa_SP Abbreviato'!F13","v":0},{"$f":"'pa_SP Abbreviato'!G13","v":0},{"$f":"'pa_SP Abbreviato'!L13","v":0},{"$f":"'pa_SP Abbreviato'!Q13","v":0},{"$f":"'pa_SP Abbreviato'!V13","v":0},null,{"$f":"IF(s_bil_std!$AA$2=\"1\",F8,M8)","v":0},{"$f":"IF(s_bil_std!$AA$2=\"1\",G8,N8)","v":0},{"$f":"IF(s_bil_std!$AA$2=\"1\",H8,O8)","v":0},{"$f":"IF(s_bil_std!$AA$2=\"1\",I8,P8)","v":0},{"$f":"IF(s_bil_std!$AA$2=\"1\",J8,Q8)","v":0}]
[50,null,null,"Finanziarie",null,{"$f":"#REF!","v":{"$error":"#REF!"}},{"$f":"#REF!","v":{"$error":"#REF!"}},{"$f":"#REF!","v":{"$error":"#REF!"}},{"$f":"#REF!","v":{"$error":"#REF!"}},{"$f":"#REF!","v":{"$error":"#REF!"}},null,null,{"$f":"'pa_SP Abbreviato'!F17","v":0},{"$f":"'pa_SP Abbreviato'!G17","v":0},{"$f":"'pa_SP Abbreviato'!L17","v":0},{"$f":"'pa_SP Abbreviato'!Q17","v":0},{"$f":"'pa_SP Abbreviato'!V17","v":0},null,{"$f":"IF(s_bil_std!$AA$2=\"1\",F9,M9)","v":0},{"$f":"IF(s_bil_std!$AA$2=\"1\",G9,N9)","v":0},{"$f":"IF(s_bil_std!$AA$2=\"1\",H9,O9)","v":0},{"$f":"IF(s_bil_std!$AA$2=\"1\",I9,P9)","v":0},{"$f":"IF(s_bil_std!$AA$2=\"1\",J9,Q9)","v":0}]
["S10",null,null,null,"di cui Crediti a breve termine",{"$f":"SUM(#REF!,#REF!,#REF!,#REF!)","v":{"$error":"#REF!"}},{"$f":"SUM(#REF!,#REF!,#REF!,#REF!)","v":{"$error":"#REF!"}},{"$f":"SUM(#REF!,#REF!,#REF!,#REF!)","v":{"$error":"#REF!"}},{"$f":"SUM(#REF!,#REF!,#REF!,#REF!)","v":{"$error":"#REF!"}},{"$f":"SUM(#REF!,#REF!,#REF!,#REF!)","v":{"$error":"#REF!"}},null,null,0,0,0,0,0,null,{"$f":"IF(s_bil_std!$AA$2=\"1\",F10,M10)","v":0},{"$f":"IF(s_bil_std!$AA$2=\"1\",G10,N10)","v":0},{"$f":"IF(s_bil_std!$AA$2=\"1\",H10,O10)","v":0},{"$f":"IF(s_bil_std!$AA$2=\"1\",I10,P10)","v":0},{"$f":"IF(s_bil_std!$AA$2=\"1\",J10,Q10)","v":0}]
[60,null,null,null,"Crediti vs cont.te / coll.te / cont.ti",{"$f":"SUM(#REF!,#REF!,#REF!)","v":{"$error":"#REF!"}},{"$f":"SUM(#REF!,#REF!,#REF!)","v":{"$error":"#REF!"}},{"$f":"SUM(#REF!,#REF!,#REF!)","v":{"$error":"#REF!"}},{"$f":"SUM(#REF!,#REF!,#REF!)","v":{"$error":"#REF!"}},{"$f":"SUM(#REF!,#REF!,#REF!)","v":{"$error":"#REF!"}},null,null,0,0,0,0,0,null,{"$f":"IF(s_bil_std!$AA$2=\"1\",F11,M11)","v":0},{"$f":"IF(s_bil_std!$AA$2=\"1\",G11,N11)","v":0},{"$f":"IF(s_bil_std!$AA$2=\"1\",H11,O11)","v":0},{"$f":"IF(s_bil_std!$AA$2=\"1\",I11,P11)","v":0},{"$f":"IF(s_bil_std!$AA$2=\"1\",J11,Q11)","v":0}]
[67,null,null,null,"Partecipazioni",{"$f":"#REF!","v":{"$error":"#REF!"}},{"$f":"#REF!","v":{"$error":"#REF!"}},{"$f":"#REF!","v":{"$error":"#REF!"}},{"$f":"#REF!","v":{"$error":"#REF!"}},{"$f":"#REF!","v":{"$error":"#REF!"}},null,null,0,0,0,0,0,null,{"$f":"IF(s_bil_std!$AA$2=\"1\",F12,M12)","v":0},{"$f":"IF(s_bil_std!$AA$2=\"1\",G12,N12)","v":0},{"$f":"IF(s_bil_std!$AA$2=\"1\",H12,O12)","v":0},{"$f":"IF(s_bil_std!$AA$2=\"1\",I12,P12)","v":0},{"$f":"IF(s_bil_std!$AA$2=\"1\",J12,Q12)","v":0}]
[260,null,null,null,"Azioni proprie",{"$f":"#REF!","v":{"$error":"#REF!"}},{"$f":"#REF!","v":{"$error":"#REF!"}},{"$f":"#REF!","v":{"$error":"#REF!"}},{"$f":"#REF!","v":{"$error":"#REF!"}},{"$f":"#REF!","v":{"$error":"#REF!"}},null,null,0,0,0,0,0,null,{"$f":"IF(s_bil_std!$AA$2=\"1\",F13,M13)","v":0},{"$f":"IF(s_bil_std!$AA$2=\"1\",G13,N13)","v":0},{"$f":"IF(s_bil_std!$AA$2=\"1\",H13,O13)","v":0},{"$f":"IF(s_bil_std!$AA$2=\"1\",I13,P13)","v":0},{"$f":"IF(s_bil_std!$AA$2=\"1\",J13,Q13)","v":0}]
[70,null,"Attivo Circolante",null,null,{"$f":"#REF!","v":{"$error":"#REF!"}},{"$f":"#REF!","v":{"$error":"#REF!"}},{"$f":"#REF!","v":{"$error":"#REF!"}},{"$f":"#REF!","v":{"$error":"#REF!"}},{"$f":"#REF!","v":{"$error":"#REF!"}},null,null,{"$f":"'pa_SP Abbreviato'!F18","v":0},{"$f":"'pa_SP Abbreviato'!G18","v":0},{"$f":"'pa_SP Abbreviato'!L18","v":0},{"$f":"'pa_SP Abbreviato'!Q18","v":0},{"$f":"'pa_SP Abbreviato'!V18","v":0},null,{"$f":"IF(s_bil_std!$AA$2=\"1\",F14,M14)","v":0},{"$f":"IF(s_bil_std!$AA$2=\"1\",G14,N14)","v":0},{"$f":"IF(s_bil_std!$AA$2=\"1\",H14,O14)","v":0},{"$f":"IF(s_bil_std!$AA$2=\"1\",I14,P14)","v":0},{"$f":"IF(s_bil_std!$AA$2=\"1\",J14,Q14)","v":0}]
[80,null,null,"Rimanenze",null,{"$f":"#REF!","v":{"$error":"#REF!"}},{"$f":"#REF!","v":{"$error":"#REF!"}},{"$f":"#REF!","v":{"$error":"#REF!"}},{"$f":"#REF!","v":{"$error":"#REF!"}},{"$f":"#REF!","v":{"$error":"#REF!"}},null,null,{"$f":"'pa_SP Abbreviato'!F19","v":0},{"$f":"'pa_SP Abbreviato'!G19","v":0},{"$f":"'pa_SP Abbreviato'!L19","v":0},{"$f":"'pa_SP Abbreviato'!Q19","v":0},{"$f":"'pa_SP Abbreviato'!V19","v":0},null,{"$f":"IF(s_bil_std!$AA$2=\"1\",F15,M15)","v":0},{"$f":"IF(s_bil_std!$AA$2=\"1\",G15,N15)","v":0},{"$f":"IF(s_bil_std!$AA$2=\"1\",H15,O15)","v":0},{"$f":"IF(s_bil_std!$AA$2=\"1\",I15,P15)","v":0},{"$f":"IF(s_bil_std!$AA$2=\"1\",J15,Q15)","v":0}]
[82,null,null,null,"Prodotti finiti, semilavorati e merci",{"$f":"SUM(#REF!,#REF!)","v":{"$error":"#REF!"}},{"$f":"SUM(#REF!,#REF!)","v":{"$error":"#REF!"}},{"$f":"SUM(#REF!,#REF!)","v":{"$error":"#REF!"}},{"$f":"SUM(#REF!,#REF!)","v":{"$error":"#REF!"}},{"$f":"SUM(#REF!,#REF!)","v":{"$error":"#REF!"}},null,null,0,0,0,0,0,null,{"$f":"IF(s_bil_std!$AA$2=\"1\",F16,M16)","v":0},{"$f":"IF(s_bil_std!$AA$2=\"1\",G16,N16)","v":0},{"$f":"IF(s_bil_std!$AA$2=\"1\",H16,O16)","v":0},{"$f":"IF(s_bil_std!$AA$2=\"1\",I16,P16)","v":0},{"$f":"IF(s_bil_std!$AA$2=\"1\",J16,Q16)","v":0}]
[90,null,null,"Crediti",null,{"$f":"#REF!","v":{"$error":"#REF!"}},{"$f":"#REF!","v":{"$error":"#REF!"}},{"$f":"#REF!","v":{"$error":"#REF!"}},{"$f":"#REF!","v":{"$error":"#REF!"}},{"$f":"#REF!","v":{"$error":"#REF!"}},null,null,{"$f":"'pa_SP Abbreviato'!F20","v":0},{"$f":"'pa_SP Abbreviato'!G20","v":0},{"$f":"'pa_SP Abbreviato'!L20","v":0},{"$f":"'pa_SP Abbreviato'!Q20","v":0},{"$f":"'pa_SP Abbreviato'!V20","v":0},null,{"$f":"IF(s_bil_std!$AA$2=\"1\",F17,M17)","v":0},{"$f":"IF(s_bil_std!$AA$2=\"1\",G17,N17)","v":0},{"$f":"IF(s_bil_std!$AA$2=\"1\",H17,O17)","v":0},{"$f":"IF(s_bil_std!$AA$2=\"1\",I17,P17)","v":0},{"$f":"IF(s_bil_std!$AA$2=\"1\",J17,Q17)","v":0}]
[100,null,null,null,"di cui Crediti a breve termine",{"$f":"SUM(#REF!,#REF!,#REF!,#REF!,#REF!,#REF!,#REF!)","v":{"$error":"#REF!"}},{"$f":"SUM(#REF!,#REF!,#REF!,#REF!,#REF!,#REF!,#REF!)","v":{"$error":"#REF!"}},{"$f":"SUM(#REF!,#REF!,#REF!,#REF!,#REF!,#REF!,#REF!)","v":{"$error":"#REF!"}},{"$f":"SUM(#REF!,#REF!,#REF!,#REF!,#REF!,#REF!,#REF!)","v":{"$error":"#REF!"}},{"$f":"SUM(#REF!,#REF!,#REF!,#REF!,#REF!,#REF!,#REF!)","v":{"$error":"#REF!"}},null,null,{"$f":"'pa_SP Abbreviato'!F21","v":0},{"$f":"'pa_SP Abbreviato'!G21","v":0},{"$f":"'pa_SP Abbreviato'!L21","v":0},{"$f":"'pa_SP Abbreviato'!Q21","v":0},{"$f":"'pa_SP Abbreviato'!V21","v":0},null,{"$f":"IF(s_bil_std!$AA$2=\"1\",F18,M18)","v":0},{"$f":"IF(s_bil_std!$AA$2=\"1\",G18,N18)","v":0},{"$f":"IF(s_bil_std!$AA$2=\"1\",H18,O18)","v":0},{"$f":"IF(s_bil_std!$AA$2=\"1\",I18,P18)","v":0},{"$f":"IF(s_bil_std!$AA$2=\"1\",J18,Q18)","v":0}]
["S20",null,null,null,"di cui Crediti a m/l termine",{"$f":"SUM(#REF!,#REF!,#REF!,#REF!,#REF!,#REF!,#REF!)","v":{"$error":"#REF!"}},{"$f":"SUM(#REF!,#REF!,#REF!,#REF!,#REF!,#REF!,#REF!)","v":{"$error":"#REF!"}},{"$f":"SUM(#REF!,#REF!,#REF!,#REF!,#REF!,#REF!,#REF!)","v":{"$error":"#REF!"}},{"$f":"SUM(#REF!,#REF!,#REF!,#REF!,#REF!,#REF!,#REF!)","v":{"$error":"#REF!"}},{"$f":"SUM(#REF!,#REF!,#REF!,#REF!,#REF!,#REF!,#REF!)","v":{"$error":"#REF!"}},null,null,{"$f":"'pa_SP Abbreviato'!F22","v":0},{"$f":"'pa_SP Abbreviato'!G22","v":0},{"$f":"'pa_SP Abbreviato'!L22","v":0},{"$f":"'pa_SP Abbreviato'!Q22","v":0},{"$f":"'pa_SP Abbreviato'!V22","v":0},null,{"$f":"IF(s_bil_std!$AA$2=\"1\",F19,M19)","v":0},{"$f":"IF(s_bil_std!$AA$2=\"1\",G19,N19)","v":0},{"$f":"IF(s_bil_std!$AA$2=\"1\",H19,O19)","v":0},{"$f":"IF(s_bil_std!$AA$2=\"1\",I19,P19)","v":0},{"$f":"IF(s_bil_std!$AA$2=\"1\",J19,Q19)","v":0}]
[102,null,null,null,"Crediti vs Clienti",{"$f":"#REF!","v":{"$error":"#REF!"}},{"$f":"#REF!","v":{"$error":"#REF!"}},{"$f":"#REF!","v":{"$error":"#REF!"}},{"$f":"#REF!","v":{"$error":"#REF!"}},{"$f":"#REF!","v":{"$error":"#REF!"}},null,null,0,0,0,0,0,null,{"$f":"IF(s_bil_std!$AA$2=\"1\",F20,M20)","v":0},{"$f":"IF(s_bil_std!$AA$2=\"1\",G20,N20)","v":0},{"$f":"IF(s_bil_std!$AA$2=\"1\",H20,O20)","v":0},{"$f":"IF(s_bil_std!$AA$2=\"1\",I20,P20)","v":0},{"$f":"IF(s_bil_std!$AA$2=\"1\",J20,Q20)","v":0}]
[110,null,null,"Attività finanziarie",null,{"$f":"#REF!","v":{"$error":"#REF!"}},{"$f":"#REF!","v":{"$error":"#REF!"}},{"$f":"#REF!","v":{"$error":"#REF!"}},{"$f":"#REF!","v":{"$error":"#REF!"}},{"$f":"#REF!","v":{"$error":"#REF!"}},null,null,{"$f":"'pa_SP Abbreviato'!F23","v":0},{"$f":"'pa_SP Abbreviato'!G23","v":0},{"$f":"'pa_SP Abbreviato'!L23","v":0},{"$f":"'pa_SP Abbreviato'!Q23","v":0},{"$f":"'pa_SP Abbreviato'!V23","v":0},null,{"$f":"IF(s_bil_std!$AA$2=\"1\",F21,M21)","v":0},{"$f":"IF(s_bil_std!$AA$2=\"1\",G21,N21)","v":0},{"$f":"IF(s_bil_std!$AA$2=\"1\",H21,O21)","v":0},{"$f":"IF(s_bil_std!$AA$2=\"1\",I21,P21)","v":0},{"$f":"IF(s_bil_std!$AA$2=\"1\",J21,Q21)","v":0}]
[120,null,null,"Disponibilità liquide",null,{"$f":"#REF!","v":{"$error":"#REF!"}},{"$f":"#REF!","v":{"$error":"#REF!"}},{"$f":"#REF!","v":{"$error":"#REF!"}},{"$f":"#REF!","v":{"$error":"#REF!"}},{"$f":"#REF!","v":{"$error":"#REF!"}},null,null,{"$f":"'pa_SP Abbreviato'!F24","v":0},{"$f":"'pa_SP Abbreviato'!G24","v":0},{"$f":"'pa_SP Abbreviato'!L24","v":0},{"$f":"'pa_SP Abbreviato'!Q24","v":0},{"$f":"'pa_SP Abbreviato'!V24","v":0},null,{"$f":"IF(s_bil_std!$AA$2=\"1\",F22,M22)","v":0},{"$f":"IF(s_bil_std!$AA$2=\"1\",G22,N22)","v":0},{"$f":"IF(s_bil_std!$AA$2=\"1\",H22,O22)","v":0},{"$f":"IF(s_bil_std!$AA$2=\"1\",I22,P22)","v":0},{"$f":"IF(s_bil_std!$AA$2=\"1\",J22,Q22)","v":0}]
[130,null,"Ratei e risconti attivi",null,null,{"$f":"#REF!","v":{"$error":"#REF!"}},{"$f":"#REF!","v":{"$error":"#REF!"}},{"$f":"#REF!","v":{"$error":"#REF!"}},{"$f":"#REF!","v":{"$error":"#REF!"}},{"$f":"#REF!","v":{"$error":"#REF!"}},null,null,{"$f":"'pa_SP Abbreviato'!F25","v":0},{"$f":"'pa_SP Abbreviato'!G25","v":0},{"$f":"'pa_SP Abbreviato'!L25","v":0},{"$f":"'pa_SP Abbreviato'!Q25","v":0},{"$f":"'pa_SP Abbreviato'!V25","v":0},null,{"$f":"IF(s_bil_std!$AA$2=\"1\",F23,M23)","v":0},{"$f":"IF(s_bil_std!$AA$2=\"1\",G23,N23)","v":0},{"$f":"IF(s_bil_std!$AA$2=\"1\",H23,O23)","v":0},{"$f":"IF(s_bil_std!$AA$2=\"1\",I23,P23)","v":0},{"$f":"IF(s_bil_std!$AA$2=\"1\",J23,Q23)","v":0}]
[150,null,"Totale attivo",null,null,{"$f":"#REF!","v":{"$error":"#REF!"}},{"$f":"#REF!","v":{"$error":"#REF!"}},{"$f":"#REF!","v":{"$error":"#REF!"}},{"$f":"#REF!","v":{"$error":"#REF!"}},{"$f":"#REF!","v":{"$error":"#REF!"}},null,null,{"$f":"'pa_SP Abbreviato'!F28","v":0},{"$f":"'pa_SP Abbreviato'!G28","v":0},{"$f":"'pa_SP Abbreviato'!L28","v":0},{"$f":"'pa_SP Abbreviato'!Q28","v":0},{"$f":"'pa_SP Abbreviato'!V28","v":0},null,{"$f":"IF(s_bil_std!$AA$2=\"1\",F24,M24)","v":0},{"$f":"IF(s_bil_std!$AA$2=\"1\",G24,N24)","v":0},{"$f":"IF(s_bil_std!$AA$2=\"1\",H24,O24)","v":0},{"$f":"IF(s_bil_std!$AA$2=\"1\",I24,P24)","v":0},{"$f":"IF(s_bil_std!$AA$2=\"1\",J24,Q24)","v":0}]
[null,null,null,"Attivo corrente (Crediti verso soci + Crediti immobilizzati a breve termine + Crediti del Circolante a breve termine + Rimanenze + Att. Finanziarie + Disp. Liquide + Ratei e risconti)",null,{"$f":"SUM(F5,F10,F15,F18,F21,F22,F23)","v":{"$error":"#REF!"}},{"$f":"SUM(G5,G10,G15,G18,G21,G22,G23)","v":{"$error":"#REF!"}},{"$f":"SUM(H5,H10,H15,H18,H21,H22,H23)","v":{"$error":"#REF!"}},{"$f":"SUM(I5,I10,I15,I18,I21,I22,I23)","v":{"$error":"#REF!"}},{"$f":"SUM(J5,J10,J15,J18,J21,J22,J23)","v":{"$error":"#REF!"}},null,null,{"$f":"SUM(M5,M10,M15,M18,M21,M22,M23)","v":0},{"$f":"SUM(N5,N10,N15,N18,N21,N22,N23)","v":0},{"$f":"SUM(O5,O10,O15,O18,O21,O22,O23)","v":0},{"$f":"SUM(P5,P10,P15,P18,P21,P22,P23)","v":0},{"$f":"SUM(Q5,Q10,Q15,Q18,Q21,Q22,Q23)","v":0},null,{"$f":"IF(s_bil_std!$AA$2=\"1\",F25,M25)","v":0},{"$f":"IF(s_bil_std!$AA$2=\"1\",G25,N25)","v":0},{"$f":"IF(s_bil_std!$AA$2=\"1\",H25,O25)","v":0},{"$f":"IF(s_bil_std!$AA$2=\"1\",I25,P25)","v":0},{"$f":"IF(s_bil_std!$AA$2=\"1\",J25,Q25)","v":0}]
[null,null,null,"Attivo fisso (Immobilizzazioni - Crediti immobilizzati a breve + Crediti dell'Attivo Circolante a m/l termine)",null,{"$f":"F6-F10+F19","v":{"$error":"#REF!"}},{"$f":"G6-G10+G19","v":{"$error":"#REF!"}},{"$f":"H6-H10+H19","v":{"$error":"#REF!"}},{"$f":"I6-I10+I19","v":{"$error":"#REF!"}},{"$f":"J6-J10+J19","v":{"$error":"#REF!"}},null,null,{"$f":"M6-M10+M19","v":0},{"$f":"N6-N10+N19","v":0},{"$f":"O6-O10+O19","v":0},{"$f":"P6-P10+P19","v":0},{"$f":"Q6-Q10+Q19","v":0},null,{"$f":"IF(s_bil_std!$AA$2=\"1\",F26,M26)","v":0},{"$f":"IF(s_bil_std!$AA$2=\"1\",G26,N26)","v":0},{"$f":"IF(s_bil_std!$AA$2=\"1\",H26,O26)","v":0},{"$f":"IF(s_bil_std!$AA$2=\"1\",I26,P26)","v":0},{"$f":"IF(s_bil_std!$AA$2=\"1\",J26,Q26)","v":0}]
[]
[]
[null,null,"Passivo",null,null,{"$f":"F4","v":"N"},{"$f":"G4","v":"N-1"},{"$f":"H4","v":"N-2"},{"$f":"I4","v":"N-3"},{"$f":"J4","v":"N-4"},null,null,"N","N-1","N-2","N-3","N-4",null,{"$f":"S4","v":"N"},{"$f":"T4","v":"N-1"},{"$f":"U4","v":"N-2"},{"$f":"V4","v":"N-3"},{"$f":"W4","v":"N-4"}]
[160,null,"Patrimonio netto",{"$f":"s_sp_ce_ricl!F817","v":0},null,{"$f":"#REF!","v":{"$error":"#REF!"}},{"$f":"#REF!","v":{"$error":"#REF!"}},{"$f":"#REF!","v":{"$error":"#REF!"}},{"$f":"#REF!","v":{"$error":"#REF!"}},{"$f":"#REF!","v":{"$error":"#REF!"}},null,null,{"$f":"F30","v":{"$error":"#REF!"}},{"$f":"G30","v":{"$error":"#REF!"}},{"$f":"H30","v":{"$error":"#REF!"}},{"$f":"I30","v":{"$error":"#REF!"}},{"$f":"J30","v":{"$error":"#REF!"}},null,{"$f":"IF(s_bil_std!$AA$2=\"1\",F30,M30)","v":{"$error":"#REF!"}},{"$f":"IF(s_bil_std!$AA$2=\"1\",G30,N30)","v":{"$error":"#REF!"}},{"$f":"IF(s_bil_std!$AA$2=\"1\",H30,O30)","v":{"$error":"#REF!"}},{"$f":"IF(s_bil_std!$AA$2=\"1\",I30,P30)","v":{"$error":"#REF!"}},{"$f":"IF(s_bil_std!$AA$2=\"1\",J30,Q30)","v":{"$error":"#REF!"}}]
[162,null,null,"Capitale sociale",null,{"$f":"#REF!","v":{"$error":"#REF!"}},{"$f":"#REF!","v":{"$error":"#REF!"}},{"$f":"#REF!","v":{"$error":"#REF!"}},{"$f":"#REF!","v":{"$error":"#REF!"}},{"$f":"#REF!","v":{"$error":"#REF!"}},null,null,{"$error":"#REF!"},{"$error":"#REF!"},{"$error":"#REF!"},{"$error":"#REF!"},{"$error":"#REF!"},null,{"$f":"IF(s_bil_std!$AA$2=\"1\",F31,M31)","v":{"$error":"#REF!"}},{"$f":"IF(s_bil_std!$AA$2=\"1\",G31,N31)","v":{"$error":"#REF!"}},{"$f":"IF(s_bil_std!$AA$2=\"1\",H31,O31)","v":{"$error":"#REF!"}},{"$f":"IF(s_bil_std!$AA$2=\"1\",I31,P31)","v":{"$error":"#REF!"}},{"$f":"IF(s_bil_std!$AA$2=\"1\",J31,Q31)","v":{"$error":"#REF!"}}]
[164,null,null,"Riserva sovrapprezzo",null,{"$f":"#REF!","v":{"$error":"#REF!"}},{"$f":"#REF!","v":{"$error":"#REF!"}},{"$f":"#REF!","v":{"$error":"#REF!"}},{"$f":"#REF!","v":{"$error":"#REF!"}},{"$f":"#REF!","v":{"$error":"#REF!"}},null,null,{"$error":"#REF!"},{"$error":"#REF!"},{"$error":"#REF!"},{"$error":"#REF!"},{"$error":"#REF!"},null,{"$f":"IF(s_bil_std!$AA$2=\"1\",F32,M32)","v":{"$error":"#REF!"}},{"$f":"IF(s_bil_std!$AA$2=\"1\",G32,N32)","v":{"$error":"#REF!"}},{"$f":"IF(s_bil_std!$AA$2=\"1\",H32,O32)","v":{"$error":"#REF!"}},{"$f":"IF(s_bil_std!$AA$2=\"1\",I32,P32)","v":{"$error":"#REF!"}},{"$f":"IF(s_bil_std!$AA$2=\"1\",J32,Q32)","v":{"$error":"#REF!"}}]
[166,null,null,"Riserva di rivalutazione",null,{"$f":"#REF!","v":{"$error":"#REF!"}},{"$f":"#REF!","v":{"$error":"#REF!"}},{"$f":"#REF!","v":{"$error":"#REF!"}},{"$f":"#REF!","v":{"$error":"#REF!"}},{"$f":"#REF!","v":{"$error":"#REF!"}},null,null,{"$error":"#REF!"},{"$error":"#REF!"},{"$error":"#REF!"},{"$error":"#REF!"},{"$error":"#REF!"},null,{"$f":"IF(s_bil_std!$AA$2=\"1\",F33,M33)","v":{"$error":"#REF!"}},{"$f":"IF(s_bil_std!$AA$2=\"1\",G33,N33)","v":{"$error":"#REF!"}},{"$f":"IF(s_bil_std!$AA$2=\"1\",H33,O33)","v":{"$error":"#REF!"}},{"$f":"IF(s_bil_std!$AA$2=\"1\",I33,P33)","v":{"$error":"#REF!"}},{"$f":"IF(s_bil_std!$AA$2=\"1\",J33,Q33)","v":{"$error":"#REF!"}}]
[null,null,null,"Totale riserve di Patrimonio Netto",null,{"$f":"SUM(#REF!,#REF!,#REF!,#REF!,#REF!,#REF!)","v":{"$error":"#REF!"}},{"$f":"SUM(#REF!,#REF!,#REF!,#REF!,#REF!,#REF!)","v":{"$error":"#REF!"}},{"$f":"SUM(#REF!,#REF!,#REF!,#REF!,#REF!,#REF!)","v":{"$error":"#REF!"}},{"$f":"SUM(#REF!,#REF!,#REF!,#REF!,#REF!,#REF!)","v":{"$error":"#REF!"}},{"$f":"SUM(#REF!,#REF!,#REF!,#REF!,#REF!,#REF!)","v":{"$error":"#REF!"}},null,null,{"$error":"#REF!"},{"$error":"#REF!"},{"$error":"#REF!"},{"$error":"#REF!"},{"$error":"#REF!"},null,{"$f":"IF(s_bil_std!$AA$2=\"1\",F34,M34)","v":{"$error":"#REF!"}},{"$f":"IF(s_bil_std!$AA$2=\"1\",G34,N34)","v":{"$error":"#REF!"}},{"$f":"IF(s_bil_std!$AA$2=\"1\",H34,O34)","v":{"$error":"#REF!"}},{"$f":"IF(s_bil_std!$AA$2=\"1\",I34,P34)","v":{"$error":"#REF!"}},{"$f":"IF(s_bil_std!$AA$2=\"1\",J34,Q34)","v":{"$error":"#REF!"}}]
[null,null,null,null,"Riserva Legale",{"$f":"#REF!","v":{"$error":"#REF!"}},{"$f":"#REF!","v":{"$error":"#REF!"}},{"$f":"#REF!","v":{"$error":"#REF!"}},{"$f":"#REF!","v":{"$error":"#REF!"}},{"$f":"#REF!","v":{"$error":"#REF!"}},null,null,{"$error":"#REF!"},{"$error":"#REF!"},{"$error":"#REF!"},{"$error":"#REF!"},{"$error":"#REF!"},null,{"$f":"IF(s_bil_std!$AA$2=\"1\",F35,M35)","v":{"$error":"#REF!"}},{"$f":"IF(s_bil_std!$AA$2=\"1\",G35,N35)","v":{"$error":"#REF!"}},{"$f":"IF(s_bil_std!$AA$2=\"1\",H35,O35)","v":{"$error":"#REF!"}},{"$f":"IF(s_bil_std!$AA$2=\"1\",I35,P35)","v":{"$error":"#REF!"}},{"$f":"IF(s_bil_std!$AA$2=\"1\",J35,Q35)","v":{"$error":"#REF!"}}]
[null,null,null,null,"Riserva Statutaria",{"$f":"#REF!","v":{"$error":"#REF!"}},{"$f":"#REF!","v":{"$error":"#REF!"}},{"$f":"#REF!","v":{"$error":"#REF!"}},{"$f":"#REF!","v":{"$error":"#REF!"}},{"$f":"#REF!","v":{"$error":"#REF!"}},null,null,{"$error":"#REF!"},{"$error":"#REF!"},{"$error":"#REF!"},{"$error":"#REF!"},{"$error":"#REF!"},null,{"$f":"IF(s_bil_std!$AA$2=\"1\",F36,M36)","v":{"$error":"#REF!"}},{"$f":"IF(s_bil_std!$AA$2=\"1\",G36,N36)","v":{"$error":"#REF!"}},{"$f":"IF(s_bil_std!$AA$2=\"1\",H36,O36)","v":{"$error":"#REF!"}},{"$f":"IF(s_bil_std!$AA$2=\"1\",I36,P36)","v":{"$error":"#REF!"}},{"$f":"IF(s_bil_std!$AA$2=\"1\",J36,Q36)","v":{"$error":"#REF!"}}]
[null,null,null,null,"Altre riserve",{"$f":"#REF!","v":{"$error":"#REF!"}},{"$f":"#REF!","v":{"$error":"#REF!"}},{"$f":"#REF!","v":{"$error":"#REF!"}},{"$f":"#REF!","v":{"$error":"#REF!"}},{"$f":"#REF!","v":{"$error":"#REF!"}},null,null,{"$error":"#REF!"},{"$error":"#REF!"},{"$error":"#REF!"},{"$error":"#REF!"},{"$error":"#REF!"},null,{"$f":"IF(s_bil_std!$AA$2=\"1\",F37,M37)","v":{"$error":"#REF!"}},{"$f":"IF(s_bil_std!$AA$2=\"1\",G37,N37)","v":{"$error":"#REF!"}},{"$f":"IF(s_bil_std!$AA$2=\"1\",H37,O37)","v":{"$error":"#REF!"}},{"$f":"IF(s_bil_std!$AA$2=\"1\",I37,P37)","v":{"$error":"#REF!"}},{"$f":"IF(s_bil_std!$AA$2=\"1\",J37,Q37)","v":{"$error":"#REF!"}}]
[null,null,null,"Utili (perdita) portati a nuovo",null,{"$f":"#REF!","v":{"$error":"#REF!"}},{"$f":"#REF!","v":{"$error":"#REF!"}},{"$f":"#REF!","v":{"$error":"#REF!"}},{"$f":"#REF!","v":{"$error":"#REF!"}},{"$f":"#REF!","v":{"$error":"#REF!"}},null,null,{"$error":"#REF!"},{"$error":"#REF!"},{"$error":"#REF!"},{"$error":"#REF!"},{"$error":"#REF!"},null,{"$f":"IF(s_bil_std!$AA$2=\"1\",F38,M38)","v":{"$error":"#REF!"}},{"$f":"IF(s_bil_std!$AA$2=\"1\",G38,N38)","v":{"$error":"#REF!"}},{"$f":"IF(s_bil_std!$AA$2=\"1\",H38,O38)","v":{"$error":"#REF!"}},{"$f":"IF(s_bil_std!$AA$2=\"1\",I38,P38)","v":{"$error":"#REF!"}},{"$f":"IF(s_bil_std!$AA$2=\"1\",J38,Q38)","v":{"$error":"#REF!"}}]
[null,null,null,"Utile (perdita) dell'esercizio",null,{"$f":"#REF!","v":{"$error":"#REF!"}},{"$f":"#REF!","v":{"$error":"#REF!"}},{"$f":"#REF!","v":{"$error":"#REF!"}},{"$f":"#REF!","v":{"$error":"#REF!"}},{"$f":"#REF!","v":{"$error":"#REF!"}},null,null,{"$error":"#REF!"},{"$error":"#REF!"},{"$error":"#REF!"},{"$error":"#REF!"},{"$error":"#REF!"},null,{"$f":"IF(s_bil_std!$AA$2=\"1\",F39,M39)","v":{"$error":"#REF!"}},{"$f":"IF(s_bil_std!$AA$2=\"1\",G39,N39)","v":{"$error":"#REF!"}},{"$f":"IF(s_bil_std!$AA$2=\"1\",H39,O39)","v":{"$error":"#REF!"}},{"$f":"IF(s_bil_std!$AA$2=\"1\",I39,P39)","v":{"$error":"#REF!"}},{"$f":"IF(s_bil_std!$AA$2=\"1\",J39,Q39)","v":{"$error":"#REF!"}}]
[null,null,"Patrimonio netto di terzi",null,null,{"$f":"#REF!","v":{"$error":"#REF!"}},{"$f":"#REF!","v":{"$error":"#REF!"}},{"$f":"#REF!","v":{"$error":"#REF!"}},{"$f":"#REF!","v":{"$error":"#REF!"}},{"$f":"#REF!","v":{"$error":"#REF!"}},null,null,0,0,0,0,0,null,{"$f":"IF(s_bil_std!$AA$2=\"1\",F40,M40)","v":0},{"$f":"IF(s_bil_std!$AA$2=\"1\",G40,N40)","v":0},{"$f":"IF(s_bil_std!$AA$2=\"1\",H40,O40)","v":0},{"$f":"IF(s_bil_std!$AA$2=\"1\",I40,P40)","v":0},{"$f":"IF(s_bil_std!$AA$2=\"1\",J40,Q40)","v":0}]
[null,null,null,"Capitale e riserve di terzi",null,{"$f":"#REF!","v":{"$error":"#REF!"}},{"$f":"#REF!","v":{"$error":"#REF!"}},{"$f":"#REF!","v":{"$error":"#REF!"}},{"$f":"#REF!","v":{"$error":"#REF!"}},{"$f":"#REF!","v":{"$error":"#REF!"}},null,null,0,0,0,0,0,null,{"$f":"IF(s_bil_std!$AA$2=\"1\",F41,M41)","v":0},{"$f":"IF(s_bil_std!$AA$2=\"1\",G41,N41)","v":0},{"$f":"IF(s_bil_std!$AA$2=\"1\",H41,O41)","v":0},{"$f":"IF(s_bil_std!$AA$2=\"1\",I41,P41)","v":0},{"$f":"IF(s_bil_std!$AA$2=\"1\",J41,Q41)","v":0}]
[null,null,null,"Utile (perdita) dell'esercizio di pertinenza di terzi",null,{"$f":"#REF!","v":{"$error":"#REF!"}},{"$f":"#REF!","v":{"$error":"#REF!"}},{"$f":"#REF!","v":{"$error":"#REF!"}},{"$f":"#REF!","v":{"$error":"#REF!"}},{"$f":"#REF!","v":{"$error":"#REF!"}},null,null,0,0,0,0,0,null,{"$f":"IF(s_bil_std!$AA$2=\"1\",F42,M42)","v":0},{"$f":"IF(s_bil_std!$AA$2=\"1\",G42,N42)","v":0},{"$f":"IF(s_bil_std!$AA$2=\"1\",H42,O42)","v":0},{"$f":"IF(s_bil_std!$AA$2=\"1\",I42,P42)","v":0},{"$f":"IF(s_bil_std!$AA$2=\"1\",J42,Q42)","v":0}]
[170,null,"Fondo rischi e oneri",null,null,{"$f":"#REF!","v":{"$error":"#REF!"}},{"$f":"#REF!","v":{"$error":"#REF!"}},{"$f":"#REF!","v":{"$error":"#REF!"}},{"$f":"#REF!","v":{"$error":"#REF!"}},{"$f":"#REF!","v":{"$error":"#REF!"}},null,null,{"$f":"'pa_SP Abbreviato'!F63","v":0},{"$f":"'pa_SP Abbreviato'!G63","v":0},{"$f":"'pa_SP Abbreviato'!L63","v":0},{"$f":"'pa_SP Abbreviato'!Q63","v":0},{"$f":"'pa_SP Abbreviato'!V63","v":0},null,{"$f":"IF(s_bil_std!$AA$2=\"1\",F43,M43)","v":0},{"$f":"IF(s_bil_std!$AA$2=\"1\",G43,N43)","v":0},{"$f":"IF(s_bil_std!$AA$2=\"1\",H43,O43)","v":0},{"$f":"IF(s_bil_std!$AA$2=\"1\",I43,P43)","v":0},{"$f":"IF(s_bil_std!$AA$2=\"1\",J43,Q43)","v":0}]
[175,null,null,"Fondo Imposte",null,{"$f":"#REF!","v":{"$error":"#REF!"}},{"$f":"#REF!","v":{"$error":"#REF!"}},{"$f":"#REF!","v":{"$error":"#REF!"}},{"$f":"#REF!","v":{"$error":"#REF!"}},{"$f":"#REF!","v":{"$error":"#REF!"}},null,null,0,0,0,0,0,null,{"$f":"IF(s_bil_std!$AA$2=\"1\",F44,M44)","v":0},{"$f":"IF(s_bil_std!$AA$2=\"1\",G44,N44)","v":0},{"$f":"IF(s_bil_std!$AA$2=\"1\",H44,O44)","v":0},{"$f":"IF(s_bil_std!$AA$2=\"1\",I44,P44)","v":0},{"$f":"IF(s_bil_std!$AA$2=\"1\",J44,Q44)","v":0}]
[180,null,"TFR",null,null,{"$f":"#REF!","v":{"$error":"#REF!"}},{"$f":"#REF!","v":{"$error":"#REF!"}},{"$f":"#REF!","v":{"$error":"#REF!"}},{"$f":"#REF!","v":{"$error":"#REF!"}},{"$f":"#REF!","v":{"$error":"#REF!"}},null,null,{"$f":"'pa_SP Abbreviato'!F64","v":0},{"$f":"'pa_SP Abbreviato'!G64","v":0},{"$f":"'pa_SP Abbreviato'!L64","v":0},{"$f":"'pa_SP Abbreviato'!Q64","v":0},{"$f":"'pa_SP Abbreviato'!V64","v":0},null,{"$f":"IF(s_bil_std!$AA$2=\"1\",F45,M45)","v":0},{"$f":"IF(s_bil_std!$AA$2=\"1\",G45,N45)","v":0},{"$f":"IF(s_bil_std!$AA$2=\"1\",H45,O45)","v":0},{"$f":"IF(s_bil_std!$AA$2=\"1\",I45,P45)","v":0},{"$f":"IF(s_bil_std!$AA$2=\"1\",J45,Q45)","v":0}]
[190,null,"Debiti",null,null,{"$f":"#REF!","v":{"$error":"#REF!"}},{"$f":"#REF!","v":{"$error":"#REF!"}},{"$f":"#REF!","v":{"$error":"#REF!"}},{"$f":"#REF!","v":{"$error":"#REF!"}},{"$f":"#REF!","v":{"$error":"#REF!"}},null,null,{"$f":"'pa_SP Abbreviato'!F65","v":0},{"$f":"'pa_SP Abbreviato'!G65","v":0},{"$f":"'pa_SP Abbreviato'!L65","v":0},{"$f":"'pa_SP Abbreviato'!Q65","v":0},{"$f":"'pa_SP Abbreviato'!V65","v":0},null,{"$f":"IF(s_bil_std!$AA$2=\"1\",F46,M46)","v":0},{"$f":"IF(s_bil_std!$AA$2=\"1\",G46,N46)","v":0},{"$f":"IF(s_bil_std!$AA$2=\"1\",H46,O46)","v":0},{"$f":"IF(s_bil_std!$AA$2=\"1\",I46,P46)","v":0},{"$f":"IF(s_bil_std!$AA$2=\"1\",J46,Q46)","v":0}]
[200,null,null,"di cui Debiti a breve termine",null,{"$f":"SUM(#REF!,#REF!,#REF!,#REF!,#REF!,#REF!,#REF!,#REF!,#REF!,#REF!,#REF!,#REF!,#REF!,#REF!)","v":{"$error":"#REF!"}},{"$f":"SUM(#REF!,#REF!,#REF!,#REF!,#REF!,#REF!,#REF!,#REF!,#REF!,#REF!,#REF!,#REF!,#REF!,#REF!)","v":{"$error":"#REF!"}},{"$f":"SUM(#REF!,#REF!,#REF!,#REF!,#REF!,#REF!,#REF!,#REF!,#REF!,#REF!,#REF!,#REF!,#REF!,#REF!)","v":{"$error":"#REF!"}},{"$f":"SUM(#REF!,#REF!,#REF!,#REF!,#REF!,#REF!,#REF!,#REF!,#REF!,#REF!,#REF!,#REF!,#REF!,#REF!)","v":{"$error":"#REF!"}},{"$f":"SUM(#REF!,#REF!,#REF!,#REF!,#REF!,#REF!,#REF!,#REF!,#REF!,#REF!,#REF!,#REF!,#REF!,#REF!)","v":{"$error":"#REF!"}},null,null,{"$f":"'pa_SP Abbreviato'!F66","v":0},{"$f":"'pa_SP Abbreviato'!G66","v":0},{"$f":"'pa_SP Abbreviato'!L66","v":0},{"$f":"'pa_SP Abbreviato'!Q66","v":0},{"$f":"'pa_SP Abbreviato'!V66","v":0},null,{"$f":"IF(s_bil_std!$AA$2=\"1\",F47,M47)","v":0},{"$f":"IF(s_bil_std!$AA$2=\"1\",G47,N47)","v":0},{"$f":"IF(s_bil_std!$AA$2=\"1\",H47,O47)","v":0},{"$f":"IF(s_bil_std!$AA$2=\"1\",I47,P47)","v":0},{"$f":"IF(s_bil_std!$AA$2=\"1\",J47,Q47)","v":0}]
[null,null,null,"di cui Debiti a lungo termine",null,{"$f":"SUM(#REF!,#REF!,#REF!,#REF!,#REF!,#REF!,#REF!,#REF!,#REF!,#REF!,#REF!,#REF!,#REF!,#REF!)","v":{"$error":"#REF!"}},{"$f":"SUM(#REF!,#REF!,#REF!,#REF!,#REF!,#REF!,#REF!,#REF!,#REF!,#REF!,#REF!,#REF!,#REF!,#REF!)","v":{"$error":"#REF!"}},{"$f":"SUM(#REF!,#REF!,#REF!,#REF!,#REF!,#REF!,#REF!,#REF!,#REF!,#REF!,#REF!,#REF!,#REF!,#REF!)","v":{"$error":"#REF!"}},{"$f":"SUM(#REF!,#REF!,#REF!,#REF!,#REF!,#REF!,#REF!,#REF!,#REF!,#REF!,#REF!,#REF!,#REF!,#REF!)","v":{"$error":"#REF!"}},{"$f":"SUM(#REF!,#REF!,#REF!,#REF!,#REF!,#REF!,#REF!,#REF!,#REF!,#REF!,#REF!,#REF!,#REF!,#REF!)","v":{"$error":"#REF!"}},null,null,{"$f":"'pa_SP Abbreviato'!F67","v":0},{"$f":"'pa_SP Abbreviato'!G67","v":0},{"$f":"'pa_SP Abbreviato'!L67","v":0},{"$f":"'pa_SP Abbreviato'!Q67","v":0},{"$f":"'pa_SP Abbreviato'!V67","v":0},null,{"$f":"IF(s_bil_std!$AA$2=\"1\",F48,M48)","v":0},{"$f":"IF(s_bil_std!$AA$2=\"1\",G48,N48)","v":0},{"$f":"IF(s_bil_std!$AA$2=\"1\",H48,O48)","v":0},{"$f":"IF(s_bil_std!$AA$2=\"1\",I48,P48)","v":0},{"$f":"IF(s_bil_std!$AA$2=\"1\",J48,Q48)","v":0}]
[212,null,null,"Debiti vs Banche a breve termine",null,{"$f":"#REF!","v":{"$error":"#REF!"}},{"$f":"#REF!","v":{"$error":"#REF!"}},{"$f":"#REF!","v":{"$error":"#REF!"}},{"$f":"#REF!","v":{"$error":"#REF!"}},{"$f":"#REF!","v":{"$error":"#REF!"}},null,null,0,0,0,0,0,null,{"$f":"IF(s_bil_std!$AA$2=\"1\",F49,M49)","v":0},{"$f":"IF(s_bil_std!$AA$2=\"1\",G49,N49)","v":0},{"$f":"IF(s_bil_std!$AA$2=\"1\",H49,O49)","v":0},{"$f":"IF(s_bil_std!$AA$2=\"1\",I49,P49)","v":0},{"$f":"IF(s_bil_std!$AA$2=\"1\",J49,Q49)","v":0}]
[210,null,null,"Debiti vs Banche a m/l termine",null,{"$f":"#REF!","v":{"$error":"#REF!"}},{"$f":"#REF!","v":{"$error":"#REF!"}},{"$f":"#REF!","v":{"$error":"#REF!"}},{"$f":"#REF!","v":{"$error":"#REF!"}},{"$f":"#REF!","v":{"$error":"#REF!"}},null,null,0,0,0,0,0,null,{"$f":"IF(s_bil_std!$AA$2=\"1\",F50,M50)","v":0},{"$f":"IF(s_bil_std!$AA$2=\"1\",G50,N50)","v":0},{"$f":"IF(s_bil_std!$AA$2=\"1\",H50,O50)","v":0},{"$f":"IF(s_bil_std!$AA$2=\"1\",I50,P50)","v":0},{"$f":"IF(s_bil_std!$AA$2=\"1\",J50,Q50)","v":0}]
[195,null,null,"Debiti vs Fornitori",null,{"$f":"#REF!","v":{"$error":"#REF!"}},{"$f":"#REF!","v":{"$error":"#REF!"}},{"$f":"#REF!","v":{"$error":"#REF!"}},{"$f":"#REF!","v":{"$error":"#REF!"}},{"$f":"#REF!","v":{"$error":"#REF!"}},null,null,0,0,0,0,0,null,{"$f":"IF(s_bil_std!$AA$2=\"1\",F51,M51)","v":0},{"$f":"IF(s_bil_std!$AA$2=\"1\",G51,N51)","v":0},{"$f":"IF(s_bil_std!$AA$2=\"1\",H51,O51)","v":0},{"$f":"IF(s_bil_std!$AA$2=\"1\",I51,P51)","v":0},{"$f":"IF(s_bil_std!$AA$2=\"1\",J51,Q51)","v":0}]
[null,null,null,"Debiti vs Altri",null,{"$f":"#REF!+#REF!+#REF!+#REF!+#REF!+#REF!+#REF!+#REF!+#REF!+#REF!+#REF!+#REF!","v":{"$error":"#REF!"}},{"$f":"#REF!+#REF!+#REF!+#REF!+#REF!+#REF!+#REF!+#REF!+#REF!+#REF!+#REF!+#REF!","v":{"$error":"#REF!"}},{"$f":"#REF!+#REF!+#REF!+#REF!+#REF!+#REF!+#REF!+#REF!+#REF!+#REF!+#REF!+#REF!","v":{"$error":"#REF!"}},{"$f":"#REF!+#REF!+#REF!+#REF!+#REF!+#REF!+#REF!+#REF!+#REF!+#REF!+#REF!+#REF!","v":{"$error":"#REF!"}},{"$f":"#REF!+#REF!+#REF!+#REF!+#REF!+#REF!+#REF!+#REF!+#REF!+#REF!+#REF!+#REF!","v":{"$error":"#REF!"}},null,null,0,0,0,0,0,null,{"$f":"IF(s_bil_std!$AA$2=\"1\",F52,M52)","v":0},{"$f":"IF(s_bil_std!$AA$2=\"1\",G52,N52)","v":0},{"$f":"IF(s_bil_std!$AA$2=\"1\",H52,O52)","v":0},{"$f":"IF(s_bil_std!$AA$2=\"1\",I52,P52)","v":0},{"$f":"IF(s_bil_std!$AA$2=\"1\",J52,Q52)","v":0}]
[220,null,"Ratei e risconti passivi",null,null,{"$f":"#REF!","v":{"$error":"#REF!"}},{"$f":"#REF!","v":{"$error":"#REF!"}},{"$f":"#REF!","v":{"$error":"#REF!"}},{"$f":"#REF!","v":{"$error":"#REF!"}},{"$f":"#REF!","v":{"$error":"#REF!"}},null,null,{"$f":"'pa_SP Abbreviato'!F68","v":0},{"$f":"'pa_SP Abbreviato'!G68","v":0},{"$f":"'pa_SP Abbreviato'!L68","v":0},{"$f":"'pa_SP Abbreviato'!Q68","v":0},{"$f":"'pa_SP Abbreviato'!V68","v":0},null,{"$f":"IF(s_bil_std!$AA$2=\"1\",F53,M53)","v":0},{"$f":"IF(s_bil_std!$AA$2=\"1\",G53,N53)","v":0},{"$f":"IF(s_bil_std!$AA$2=\"1\",H53,O53)","v":0},{"$f":"IF(s_bil_std!$AA$2=\"1\",I53,P53)","v":0},{"$f":"IF(s_bil_std!$AA$2=\"1\",J53,Q53)","v":0}]
[240,null,"Totale passivo",null,null,{"$f":"#REF!","v":{"$error":"#REF!"}},{"$f":"#REF!","v":{"$error":"#REF!"}},{"$f":"#REF!","v":{"$error":"#REF!"}},{"$f":"#REF!","v":{"$error":"#REF!"}},{"$f":"#REF!","v":{"$error":"#REF!"}},null,null,{"$f":"'pa_SP Abbreviato'!F71","v":92654},{"$f":"'pa_SP Abbreviato'!G71","v":92110},{"$f":"'pa_SP Abbreviato'!L71","v":0},{"$f":"'pa_SP Abbreviato'!Q71","v":0},{"$f":"'pa_SP Abbreviato'!V71","v":0},null,{"$f":"IF(s_bil_std!$AA$2=\"1\",F54,M54)","v":92654},{"$f":"IF(s_bil_std!$AA$2=\"1\",G54,N54)","v":92110},{"$f":"IF(s_bil_std!$AA$2=\"1\",H54,O54)","v":0},{"$f":"IF(s_bil_std!$AA$2=\"1\",I54,P54)","v":0},{"$f":"IF(s_bil_std!$AA$2=\"1\",J54,Q54)","v":0}]
[null,null,null,"Passivo corrente (Debiti a breve + Ratei e risconti)",null,{"$f":"F47+F53","v":{"$error":"#REF!"}},{"$f":"G47+G53","v":{"$error":"#REF!"}},{"$f":"H47+H53","v":{"$error":"#REF!"}},{"$f":"I47+I53","v":{"$error":"#REF!"}},{"$f":"J47+J53","v":{"$error":"#REF!"}},null,null,{"$f":"SUM(M47,M53)","v":0},{"$f":"SUM(N47,N53)","v":0},{"$f":"SUM(O47,O53)","v":0},{"$f":"SUM(P47,P53)","v":0},{"$f":"SUM(Q47,Q53)","v":0},null,{"$f":"IF(s_bil_std!$AA$2=\"1\",F55,M55)","v":0},{"$f":"IF(s_bil_std!$AA$2=\"1\",G55,N55)","v":0},{"$f":"IF(s_bil_std!$AA$2=\"1\",H55,O55)","v":0},{"$f":"IF(s_bil_std!$AA$2=\"1\",I55,P55)","v":0},{"$f":"IF(s_bil_std!$AA$2=\"1\",J55,Q55)","v":0}]
[null,null,null,"Passivo fisso (Fondo rischi e oneri + TFR + Debiti a m/l)",null,{"$f":"F43+F45+F46-F47","v":{"$error":"#REF!"}},{"$f":"G43+G45+G46-G47","v":{"$error":"#REF!"}},{"$f":"H43+H45+H46-H47","v":{"$error":"#REF!"}},{"$f":"I43+I45+I46-I47","v":{"$error":"#REF!"}},{"$f":"J43+J45+J46-J47","v":{"$error":"#REF!"}},null,null,{"$f":"M43+M45+M46-M47","v":0},{"$f":"N43+N45+N46-N47","v":0},{"$f":"O43+O45+O46-O47","v":0},{"$f":"P43+P45+P46-P47","v":0},{"$f":"Q43+Q45+Q46-Q47","v":0},null,{"$f":"IF(s_bil_std!$AA$2=\"1\",F56,M56)","v":0},{"$f":"IF(s_bil_std!$AA$2=\"1\",G56,N56)","v":0},{"$f":"IF(s_bil_std!$AA$2=\"1\",H56,O56)","v":0},{"$f":"IF(s_bil_std!$AA$2=\"1\",I56,P56)","v":0},{"$f":"IF(s_bil_std!$AA$2=\"1\",J56,Q56)","v":0}]
[]
[]
[null,"Conto economico sintetico"]
[]
[null,null,null,null,null,{"$f":"F29","v":"N"},{"$f":"G29","v":"N-1"},{"$f":"H29","v":"N-2"},{"$f":"I29","v":"N-3"},{"$f":"J29","v":"N-4"},null,null,{"$f":"F4","v":"N"},{"$f":"G4","v":"N-1"},{"$f":"H4","v":"N-2"},{"$f":"I4","v":"N-3"},{"$f":"J4","v":"N-4"},null,{"$f":"S4","v":"N"},{"$f":"T4","v":"N-1"},{"$f":"U4","v":"N-2"},{"$f":"V4","v":"N-3"},{"$f":"W4","v":"N-4"}]
[270,"Valore della produzione",null,null,null,{"$f":"#REF!","v":{"$error":"#REF!"}},{"$f":"#REF!","v":{"$error":"#REF!"}},{"$f":"#REF!","v":{"$error":"#REF!"}},{"$f":"#REF!","v":{"$error":"#REF!"}},{"$f":"#REF!","v":{"$error":"#REF!"}},null,null,{"$f":"F62","v":{"$error":"#REF!"}},{"$f":"G62","v":{"$error":"#REF!"}},{"$f":"H62","v":{"$error":"#REF!"}},{"$f":"I62","v":{"$error":"#REF!"}},{"$f":"J62","v":{"$error":"#REF!"}},null,{"$f":"IF(s_bil_std!$AA$2=\"1\",F62,M62)","v":{"$error":"#REF!"}},{"$f":"IF(s_bil_std!$AA$2=\"1\",G62,N62)","v":{"$error":"#REF!"}},{"$f":"IF(s_bil_std!$AA$2=\"1\",H62,O62)","v":{"$error":"#REF!"}},{"$f":"IF(s_bil_std!$AA$2=\"1\",I62,P62)","v":{"$error":"#REF!"}},{"$f":"IF(s_bil_std!$AA$2=\"1\",J62,Q62)","v":{"$error":"#REF!"}}]
[280,null,"Ricavi",null,null,{"$f":"#REF!","v":{"$error":"#REF!"}},{"$f":"#REF!","v":{"$error":"#REF!"}},{"$f":"#REF!","v":{"$error":"#REF!"}},{"$f":"#REF!","v":{"$error":"#REF!"}},{"$f":"#REF!","v":{"$error":"#REF!"}},null,null,{"$error":"#REF!"},{"$error":"#REF!"},{"$error":"#REF!"},{"$error":"#REF!"},{"$error":"#REF!"},null,{"$f":"IF(s_bil_std!$AA$2=\"1\",F63,M63)","v":{"$error":"#REF!"}},{"$f":"IF(s_bil_std!$AA$2=\"1\",G63,N63)","v":{"$error":"#REF!"}},{"$f":"IF(s_bil_std!$AA$2=\"1\",H63,O63)","v":{"$error":"#REF!"}},{"$f":"IF(s_bil_std!$AA$2=\"1\",I63,P63)","v":{"$error":"#REF!"}},{"$f":"IF(s_bil_std!$AA$2=\"1\",J63,Q63)","v":{"$error":"#REF!"}}]
[290,null,"Variazione rimanenze",null,null,{"$f":"SUM(#REF!)","v":{"$error":"#REF!"}},{"$f":"SUM(#REF!)","v":{"$error":"#REF!"}},{"$f":"SUM(#REF!)","v":{"$error":"#REF!"}},{"$f":"SUM(#REF!)","v":{"$error":"#REF!"}},{"$f":"SUM(#REF!)","v":{"$error":"#REF!"}},null,null,{"$error":"#REF!"},{"$error":"#REF!"},{"$error":"#REF!"},{"$error":"#REF!"},{"$error":"#REF!"},null,{"$f":"IF(s_bil_std!$AA$2=\"1\",F64,M64)","v":{"$error":"#REF!"}},{"$f":"IF(s_bil_std!$AA$2=\"1\",G64,N64)","v":{"$error":"#REF!"}},{"$f":"IF(s_bil_std!$AA$2=\"1\",H64,O64)","v":{"$error":"#REF!"}},{"$f":"IF(s_bil_std!$AA$2=\"1\",I64,P64)","v":{"$error":"#REF!"}},{"$f":"IF(s_bil_std!$AA$2=\"1\",J64,Q64)","v":{"$error":"#REF!"}}]
[null,null,null,"Variazioni delle rimanenze in corso di lavorazione, semilavorati e prodotti finiti",null,{"$f":"#REF!","v":{"$error":"#REF!"}},{"$f":"#REF!","v":{"$error":"#REF!"}},{"$f":"#REF!","v":{"$error":"#REF!"}},{"$f":"#REF!","v":{"$error":"#REF!"}},{"$f":"#REF!","v":{"$error":"#REF!"}},null,null,{"$error":"#REF!"},{"$error":"#REF!"},{"$error":"#REF!"},{"$error":"#REF!"},{"$error":"#REF!"},null,{"$f":"IF(s_bil_std!$AA$2=\"1\",F65,M65)","v":{"$error":"#REF!"}},{"$f":"IF(s_bil_std!$AA$2=\"1\",G65,N65)","v":{"$error":"#REF!"}},{"$f":"IF(s_bil_std!$AA$2=\"1\",H65,O65)","v":{"$error":"#REF!"}},{"$f":"IF(s_bil_std!$AA$2=\"1\",I65,P65)","v":{"$error":"#REF!"}},{"$f":"IF(s_bil_std!$AA$2=\"1\",J65,Q65)","v":{"$error":"#REF!"}}]
[null,null,null,"Variazioni dei lavori in corso su ordinazione",null,{"$f":"#REF!","v":{"$error":"#REF!"}},{"$f":"#REF!","v":{"$error":"#REF!"}},{"$f":"#REF!","v":{"$error":"#REF!"}},{"$f":"#REF!","v":{"$error":"#REF!"}},{"$f":"#REF!","v":{"$error":"#REF!"}},null,null,{"$error":"#REF!"},{"$error":"#REF!"},{"$error":"#REF!"},{"$error":"#REF!"},{"$error":"#REF!"},null,{"$f":"IF(s_bil_std!$AA$2=\"1\",F66,M66)","v":{"$error":"#REF!"}},{"$f":"IF(s_bil_std!$AA$2=\"1\",G66,N66)","v":{"$error":"#REF!"}},{"$f":"IF(s_bil_std!$AA$2=\"1\",H66,O66)","v":{"$error":"#REF!"}},{"$f":"IF(s_bil_std!$AA$2=\"1\",I66,P66)","v":{"$error":"#REF!"}},{"$f":"IF(s_bil_std!$AA$2=\"1\",J66,Q66)","v":{"$error":"#REF!"}}]
[null,null,"Incrementi di immobilizzazioni per lavori interni",null,null,{"$f":"#REF!","v":{"$error":"#REF!"}},{"$f":"#REF!","v":{"$error":"#REF!"}},{"$f":"#REF!","v":{"$error":"#REF!"}},{"$f":"#REF!","v":{"$error":"#REF!"}},{"$f":"#REF!","v":{"$error":"#REF!"}},null,null,{"$error":"#REF!"},{"$error":"#REF!"},{"$error":"#REF!"},{"$error":"#REF!"},{"$error":"#REF!"},null,{"$f":"IF(s_bil_std!$AA$2=\"1\",F67,M67)","v":{"$error":"#REF!"}},{"$f":"IF(s_bil_std!$AA$2=\"1\",G67,N67)","v":{"$error":"#REF!"}},{"$f":"IF(s_bil_std!$AA$2=\"1\",H67,O67)","v":{"$error":"#REF!"}},{"$f":"IF(s_bil_std!$AA$2=\"1\",I67,P67)","v":{"$error":"#REF!"}},{"$f":"IF(s_bil_std!$AA$2=\"1\",J67,Q67)","v":{"$error":"#REF!"}}]
[300,null,"Altri ricavi",null,null,{"$f":"#REF!","v":{"$error":"#REF!"}},{"$f":"#REF!","v":{"$error":"#REF!"}},{"$f":"#REF!","v":{"$error":"#REF!"}},{"$f":"#REF!","v":{"$error":"#REF!"}},{"$f":"#REF!","v":{"$error":"#REF!"}},null,null,{"$error":"#REF!"},{"$error":"#REF!"},{"$error":"#REF!"},{"$error":"#REF!"},{"$error":"#REF!"},null,{"$f":"IF(s_bil_std!$AA$2=\"1\",F68,M68)","v":{"$error":"#REF!"}},{"$f":"IF(s_bil_std!$AA$2=\"1\",G68,N68)","v":{"$error":"#REF!"}},{"$f":"IF(s_bil_std!$AA$2=\"1\",H68,O68)","v":{"$error":"#REF!"}},{"$f":"IF(s_bil_std!$AA$2=\"1\",I68,P68)","v":{"$error":"#REF!"}},{"$f":"IF(s_bil_std!$AA$2=\"1\",J68,Q68)","v":{"$error":"#REF!"}}]
[310,"Costi della produzione",null,null,null,{"$f":"#REF!","v":{"$error":"#REF!"}},{"$f":"#REF!","v":{"$error":"#REF!"}},{"$f":"#REF!","v":{"$error":"#REF!"}},{"$f":"#REF!","v":{"$error":"#REF!"}},{"$f":"#REF!","v":{"$error":"#REF!"}},null,null,{"$error":"#REF!"},{"$error":"#REF!"},{"$error":"#REF!"},{"$error":"#REF!"},{"$error":"#REF!"},null,{"$f":"IF(s_bil_std!$AA$2=\"1\",F69,M69)","v":{"$error":"#REF!"}},{"$f":"IF(s_bil_std!$AA$2=\"1\",G69,N69)","v":{"$error":"#REF!"}},{"$f":"IF(s_bil_std!$AA$2=\"1\",H69,O69)","v":{"$error":"#REF!"}},{"$f":"IF(s_bil_std!$AA$2=\"1\",I69,P69)","v":{"$error":"#REF!"}},{"$f":"IF(s_bil_std!$AA$2=\"1\",J69,Q69)","v":{"$error":"#REF!"}}]
[340,null,"Consumi di materie",null,null,{"$f":"SUM(#REF!,#REF!)","v":{"$error":"#REF!"}},{"$f":"SUM(#REF!,#REF!)","v":{"$error":"#REF!"}},{"$f":"SUM(#REF!,#REF!)","v":{"$error":"#REF!"}},{"$f":"SUM(#REF!,#REF!)","v":{"$error":"#REF!"}},{"$f":"SUM(#REF!,#REF!)","v":{"$error":"#REF!"}},null,null,{"$error":"#REF!"},{"$error":"#REF!"},{"$error":"#REF!"},{"$error":"#REF!"},{"$error":"#REF!"},null,{"$f":"IF(s_bil_std!$AA$2=\"1\",F70,M70)","v":{"$error":"#REF!"}},{"$f":"IF(s_bil_std!$AA$2=\"1\",G70,N70)","v":{"$error":"#REF!"}},{"$f":"IF(s_bil_std!$AA$2=\"1\",H70,O70)","v":{"$error":"#REF!"}},{"$f":"IF(s_bil_std!$AA$2=\"1\",I70,P70)","v":{"$error":"#REF!"}},{"$f":"IF(s_bil_std!$AA$2=\"1\",J70,Q70)","v":{"$error":"#REF!"}}]
[320,null,null,"Acquisti di materie",null,{"$f":"#REF!","v":{"$error":"#REF!"}},{"$f":"#REF!","v":{"$error":"#REF!"}},{"$f":"#REF!","v":{"$error":"#REF!"}},{"$f":"#REF!","v":{"$error":"#REF!"}},{"$f":"#REF!","v":{"$error":"#REF!"}},null,null,{"$error":"#REF!"},{"$error":"#REF!"},{"$error":"#REF!"},{"$error":"#REF!"},{"$error":"#REF!"},null,{"$f":"IF(s_bil_std!$AA$2=\"1\",F71,M71)","v":{"$error":"#REF!"}},{"$f":"IF(s_bil_std!$AA$2=\"1\",G71,N71)","v":{"$error":"#REF!"}},{"$f":"IF(s_bil_std!$AA$2=\"1\",H71,O71)","v":{"$error":"#REF!"}},{"$f":"IF(s_bil_std!$AA$2=\"1\",I71,P71)","v":{"$error":"#REF!"}},{"$f":"IF(s_bil_std!$AA$2=\"1\",J71,Q71)","v":{"$error":"#REF!"}}]
[330,null,null,"Variazione delle materie",null,{"$f":"#REF!","v":{"$error":"#REF!"}},{"$f":"#REF!","v":{"$error":"#REF!"}},{"$f":"#REF!","v":{"$error":"#REF!"}},{"$f":"#REF!","v":{"$error":"#REF!"}},{"$f":"#REF!","v":{"$error":"#REF!"}},null,null,{"$error":"#REF!"},{"$error":"#REF!"},{"$error":"#REF!"},{"$error":"#REF!"},{"$error":"#REF!"},null,{"$f":"IF(s_bil_std!$AA$2=\"1\",F72,M72)","v":{"$error":"#REF!"}},{"$f":"IF(s_bil_std!$AA$2=\"1\",G72,N72)","v":{"$error":"#REF!"}},{"$f":"IF(s_bil_std!$AA$2=\"1\",H72,O72)","v":{"$error":"#REF!"}},{"$f":"IF(s_bil_std!$AA$2=\"1\",I72,P72)","v":{"$error":"#REF!"}},{"$f":"IF(s_bil_std!$AA$2=\"1\",J72,Q72)","v":{"$error":"#REF!"}}]
[350,null,"Spese generali",null,null,{"$f":"SUM(#REF!)","v":{"$error":"#REF!"}},{"$f":"SUM(#REF!)","v":{"$error":"#REF!"}},{"$f":"SUM(#REF!)","v":{"$error":"#REF!"}},{"$f":"SUM(#REF!)","v":{"$error":"#REF!"}},{"$f":"SUM(#REF!)","v":{"$error":"#REF!"}},null,null,{"$error":"#REF!"},{"$error":"#REF!"},{"$error":"#REF!"},{"$error":"#REF!"},{"$error":"#REF!"},null,{"$f":"IF(s_bil_std!$AA$2=\"1\",F73,M73)","v":{"$error":"#REF!"}},{"$f":"IF(s_bil_std!$AA$2=\"1\",G73,N73)","v":{"$error":"#REF!"}},{"$f":"IF(s_bil_std!$AA$2=\"1\",H73,O73)","v":{"$error":"#REF!"}},{"$f":"IF(s_bil_std!$AA$2=\"1\",I73,P73)","v":{"$error":"#REF!"}},{"$f":"IF(s_bil_std!$AA$2=\"1\",J73,Q73)","v":{"$error":"#REF!"}}]
[null,null,null,"Costi per servizi",null,{"$f":"#REF!","v":{"$error":"#REF!"}},{"$f":"#REF!","v":{"$error":"#REF!"}},{"$f":"#REF!","v":{"$error":"#REF!"}},{"$f":"#REF!","v":{"$error":"#REF!"}},{"$f":"#REF!","v":{"$error":"#REF!"}},null,null,{"$error":"#REF!"},{"$error":"#REF!"},{"$error":"#REF!"},{"$error":"#REF!"},{"$error":"#REF!"},null,{"$f":"IF(s_bil_std!$AA$2=\"1\",F74,M74)","v":{"$error":"#REF!"}},{"$f":"IF(s_bil_std!$AA$2=\"1\",G74,N74)","v":{"$error":"#REF!"}},{"$f":"IF(s_bil_std!$AA$2=\"1\",H74,O74)","v":{"$error":"#REF!"}},{"$f":"IF(s_bil_std!$AA$2=\"1\",I74,P74)","v":{"$error":"#REF!"}},{"$f":"IF(s_bil_std!$AA$2=\"1\",J74,Q74)","v":{"$error":"#REF!"}}]
[null,null,null,"Costi per godimento di beni di terzi",null,{"$f":"#REF!","v":{"$error":"#REF!"}},{"$f":"#REF!","v":{"$error":"#REF!"}},{"$f":"#REF!","v":{"$error":"#REF!"}},{"$f":"#REF!","v":{"$error":"#REF!"}},{"$f":"#REF!","v":{"$error":"#REF!"}},null,null,{"$error":"#REF!"},{"$error":"#REF!"},{"$error":"#REF!"},{"$error":"#REF!"},{"$error":"#REF!"},null,{"$f":"IF(s_bil_std!$AA$2=\"1\",F75,M75)","v":{"$error":"#REF!"}},{"$f":"IF(s_bil_std!$AA$2=\"1\",G75,N75)","v":{"$error":"#REF!"}},{"$f":"IF(s_bil_std!$AA$2=\"1\",H75,O75)","v":{"$error":"#REF!"}},{"$f":"IF(s_bil_std!$AA$2=\"1\",I75,P75)","v":{"$error":"#REF!"}},{"$f":"IF(s_bil_std!$AA$2=\"1\",J75,Q75)","v":{"$error":"#REF!"}}]
[355,null,"Accantonamenti",null,null,{"$f":"SUM(#REF!)","v":{"$error":"#REF!"}},{"$f":"SUM(#REF!)","v":{"$error":"#REF!"}},{"$f":"SUM(#REF!)","v":{"$error":"#REF!"}},{"$f":"SUM(#REF!)","v":{"$error":"#REF!"}},{"$f":"SUM(#REF!)","v":{"$error":"#REF!"}},null,null,{"$error":"#REF!"},{"$error":"#REF!"},{"$error":"#REF!"},{"$error":"#REF!"},{"$error":"#REF!"},null,{"$f":"IF(s_bil_std!$AA$2=\"1\",F76,M76)","v":{"$error":"#REF!"}},{"$f":"IF(s_bil_std!$AA$2=\"1\",G76,N76)","v":{"$error":"#REF!"}},{"$f":"IF(s_bil_std!$AA$2=\"1\",H76,O76)","v":{"$error":"#REF!"}},{"$f":"IF(s_bil_std!$AA$2=\"1\",I76,P76)","v":{"$error":"#REF!"}},{"$f":"IF(s_bil_std!$AA$2=\"1\",J76,Q76)","v":{"$error":"#REF!"}}]
[null,null,null,"Accantonamenti per rischi",null,{"$f":"#REF!","v":{"$error":"#REF!"}},{"$f":"#REF!","v":{"$error":"#REF!"}},{"$f":"#REF!","v":{"$error":"#REF!"}},{"$f":"#REF!","v":{"$error":"#REF!"}},{"$f":"#REF!","v":{"$error":"#REF!"}},null,null,{"$error":"#REF!"},{"$error":"#REF!"},{"$error":"#REF!"},{"$error":"#REF!"},{"$error":"#REF!"},null,{"$f":"IF(s_bil_std!$AA$2=\"1\",F77,M77)","v":{"$error":"#REF!"}},{"$f":"IF(s_bil_std!$AA$2=\"1\",G77,N77)","v":{"$error":"#REF!"}},{"$f":"IF(s_bil_std!$AA$2=\"1\",H77,O77)","v":{"$error":"#REF!"}},{"$f":"IF(s_bil_std!$AA$2=\"1\",I77,P77)","v":{"$error":"#REF!"}},{"$f":"IF(s_bil_std!$AA$2=\"1\",J77,Q77)","v":{"$error":"#REF!"}}]
[null,null,null,"Altri accantonamenti",null,{"$f":"#REF!","v":{"$error":"#REF!"}},{"$f":"#REF!","v":{"$error":"#REF!"}},{"$f":"#REF!","v":{"$error":"#REF!"}},{"$f":"#REF!","v":{"$error":"#REF!"}},{"$f":"#REF!","v":{"$error":"#REF!"}},null,null,{"$error":"#REF!"},{"$error":"#REF!"},{"$error":"#REF!"},{"$error":"#REF!"},{"$error":"#REF!"},null,{"$f":"IF(s_bil_std!$AA$2=\"1\",F78,M78)","v":{"$error":"#REF!"}},{"$f":"IF(s_bil_std!$AA$2=\"1\",G78,N78)","v":{"$error":"#REF!"}},{"$f":"IF(s_bil_std!$AA$2=\"1\",H78,O78)","v":{"$error":"#REF!"}},{"$f":"IF(s_bil_std!$AA$2=\"1\",I78,P78)","v":{"$error":"#REF!"}},{"$f":"IF(s_bil_std!$AA$2=\"1\",J78,Q78)","v":{"$error":"#REF!"}}]
["S40",null,"Oneri diversi di gestione",null,null,{"$f":"#REF!","v":{"$error":"#REF!"}},{"$f":"#REF!","v":{"$error":"#REF!"}},{"$f":"#REF!","v":{"$error":"#REF!"}},{"$f":"#REF!","v":{"$error":"#REF!"}},{"$f":"#REF!","v":{"$error":"#REF!"}},null,null,{"$error":"#REF!"},{"$error":"#REF!"},{"$error":"#REF!"},{"$error":"#REF!"},{"$error":"#REF!"},null,{"$f":"IF(s_bil_std!$AA$2=\"1\",F79,M79)","v":{"$error":"#REF!"}},{"$f":"IF(s_bil_std!$AA$2=\"1\",G79,N79)","v":{"$error":"#REF!"}},{"$f":"IF(s_bil_std!$AA$2=\"1\",H79,O79)","v":{"$error":"#REF!"}},{"$f":"IF(s_bil_std!$AA$2=\"1\",I79,P79)","v":{"$error":"#REF!"}},{"$f":"IF(s_bil_std!$AA$2=\"1\",J79,Q79)","v":{"$error":"#REF!"}}]
[360,"Valore aggiunto",null,null,null,{"$f":"F62-F70-F73","v":{"$error":"#REF!"}},{"$f":"G62-G70-G73","v":{"$error":"#REF!"}},{"$f":"H62-H70-H73","v":{"$error":"#REF!"}},{"$f":"I62-I70-I73","v":{"$error":"#REF!"}},{"$f":"J62-J70-J73","v":{"$error":"#REF!"}},null,null,{"$error":"#REF!"},{"$error":"#REF!"},{"$error":"#REF!"},{"$error":"#REF!"},{"$error":"#REF!"},null,{"$f":"IF(s_bil_std!$AA$2=\"1\",F80,M80)","v":{"$error":"#REF!"}},{"$f":"IF(s_bil_std!$AA$2=\"1\",G80,N80)","v":{"$error":"#REF!"}},{"$f":"IF(s_bil_std!$AA$2=\"1\",H80,O80)","v":{"$error":"#REF!"}},{"$f":"IF(s_bil_std!$AA$2=\"1\",I80,P80)","v":{"$error":"#REF!"}},{"$f":"IF(s_bil_std!$AA$2=\"1\",J80,Q80)","v":{"$error":"#REF!"}}]
[370,null,"Costi del personale",null,null,{"$f":"#REF!","v":{"$error":"#REF!"}},{"$f":"#REF!","v":{"$error":"#REF!"}},{"$f":"#REF!","v":{"$error":"#REF!"}},{"$f":"#REF!","v":{"$error":"#REF!"}},{"$f":"#REF!","v":{"$error":"#REF!"}},null,null,{"$error":"#REF!"},{"$error":"#REF!"},{"$error":"#REF!"},{"$error":"#REF!"},{"$error":"#REF!"},null,{"$f":"IF(s_bil_std!$AA$2=\"1\",F81,M81)","v":{"$error":"#REF!"}},{"$f":"IF(s_bil_std!$AA$2=\"1\",G81,N81)","v":{"$error":"#REF!"}},{"$f":"IF(s_bil_std!$AA$2=\"1\",H81,O81)","v":{"$error":"#REF!"}},{"$f":"IF(s_bil_std!$AA$2=\"1\",I81,P81)","v":{"$error":"#REF!"}},{"$f":"IF(s_bil_std!$AA$2=\"1\",J81,Q81)","v":{"$error":"#REF!"}}]
[375,null,null,"Trattamento di fine rapporto",null,{"$f":"#REF!","v":{"$error":"#REF!"}},{"$f":"#REF!","v":{"$error":"#REF!"}},{"$f":"#REF!","v":{"$error":"#REF!"}},{"$f":"#REF!","v":{"$error":"#REF!"}},{"$f":"#REF!","v":{"$error":"#REF!"}},null,null,{"$error":"#REF!"},{"$error":"#REF!"},{"$error":"#REF!"},{"$error":"#REF!"},{"$error":"#REF!"},null,{"$f":"IF(s_bil_std!$AA$2=\"1\",F82,M82)","v":{"$error":"#REF!"}},{"$f":"IF(s_bil_std!$AA$2=\"1\",G82,N82)","v":{"$error":"#REF!"}},{"$f":"IF(s_bil_std!$AA$2=\"1\",H82,O82)","v":{"$error":"#REF!"}},{"$f":"IF(s_bil_std!$AA$2=\"1\",I82,P82)","v":{"$error":"#REF!"}},{"$f":"IF(s_bil_std!$AA$2=\"1\",J82,Q82)","v":{"$error":"#REF!"}}]
[380,"Margine Operativo Lordo",null,null,null,{"$f":"(F62-F68)-(F69-F84-F79)","v":{"$error":"#REF!"}},{"$f":"(G62-G68)-(G69-G84-G79)","v":{"$error":"#REF!"}},{"$f":"(H62-H68)-(H69-H84-H79)","v":{"$error":"#REF!"}},{"$f":"(I62-I68)-(I69-I84-I79)","v":{"$error":"#REF!"}},{"$f":"(J62-J68)-(J69-J84-J79)","v":{"$error":"#REF!"}},null,null,{"$error":"#REF!"},{"$error":"#REF!"},{"$error":"#REF!"},{"$error":"#REF!"},{"$error":"#REF!"},null,{"$f":"IF(s_bil_std!$AA$2=\"1\",F83,M83)","v":{"$error":"#REF!"}},{"$f":"IF(s_bil_std!$AA$2=\"1\",G83,N83)","v":{"$error":"#REF!"}},{"$f":"IF(s_bil_std!$AA$2=\"1\",H83,O83)","v":{"$error":"#REF!"}},{"$f":"IF(s_bil_std!$AA$2=\"1\",I83,P83)","v":{"$error":"#REF!"}},{"$f":"IF(s_bil_std!$AA$2=\"1\",J83,Q83)","v":{"$error":"#REF!"}}]
[390,null,"Ammortamenti e svalutazioni",null,null,{"$f":"#REF!","v":{"$error":"#REF!"}},{"$f":"#REF!","v":{"$error":"#REF!"}},{"$f":"#REF!","v":{"$error":"#REF!"}},{"$f":"#REF!","v":{"$error":"#REF!"}},{"$f":"#REF!","v":{"$error":"#REF!"}},null,null,{"$error":"#REF!"},{"$error":"#REF!"},{"$error":"#REF!"},{"$error":"#REF!"},{"$error":"#REF!"},null,{"$f":"IF(s_bil_std!$AA$2=\"1\",F84,M84)","v":{"$error":"#REF!"}},{"$f":"IF(s_bil_std!$AA$2=\"1\",G84,N84)","v":{"$error":"#REF!"}},{"$f":"IF(s_bil_std!$AA$2=\"1\",H84,O84)","v":{"$error":"#REF!"}},{"$f":"IF(s_bil_std!$AA$2=\"1\",I84,P84)","v":{"$error":"#REF!"}},{"$f":"IF(s_bil_std!$AA$2=\"1\",J84,Q84)","v":{"$error":"#REF!"}}]
[11700,null,null,"Ammortamenti e svalutazioni Immobilizzazioni",null,{"$f":"SUM(#REF!:#REF!)","v":{"$error":"#REF!"}},{"$f":"SUM(#REF!:#REF!)","v":{"$error":"#REF!"}},{"$f":"SUM(#REF!:#REF!)","v":{"$error":"#REF!"}},{"$f":"SUM(#REF!:#REF!)","v":{"$error":"#REF!"}},{"$f":"SUM(#REF!:#REF!)","v":{"$error":"#REF!"}},null,null,{"$error":"#REF!"},{"$error":"#REF!"},{"$error":"#REF!"},{"$error":"#REF!"},{"$error":"#REF!"},null,{"$f":"IF(s_bil_std!$AA$2=\"1\",F85,M85)","v":{"$error":"#REF!"}},{"$f":"IF(s_bil_std!$AA$2=\"1\",G85,N85)","v":{"$error":"#REF!"}},{"$f":"IF(s_bil_std!$AA$2=\"1\",H85,O85)","v":{"$error":"#REF!"}},{"$f":"IF(s_bil_std!$AA$2=\"1\",I85,P85)","v":{"$error":"#REF!"}},{"$f":"IF(s_bil_std!$AA$2=\"1\",J85,Q85)","v":{"$error":"#REF!"}}]
[392,null,null,null,"Ammortamenti Immob. Immateriali",{"$f":"#REF!","v":{"$error":"#REF!"}},{"$f":"#REF!","v":{"$error":"#REF!"}},{"$f":"#REF!","v":{"$error":"#REF!"}},{"$f":"#REF!","v":{"$error":"#REF!"}},{"$f":"#REF!","v":{"$error":"#REF!"}},null,null,{"$error":"#REF!"},{"$error":"#REF!"},{"$error":"#REF!"},{"$error":"#REF!"},{"$error":"#REF!"},null,{"$f":"IF(s_bil_std!$AA$2=\"1\",F86,M86)","v":{"$error":"#REF!"}},{"$f":"IF(s_bil_std!$AA$2=\"1\",G86,N86)","v":{"$error":"#REF!"}},{"$f":"IF(s_bil_std!$AA$2=\"1\",H86,O86)","v":{"$error":"#REF!"}},{"$f":"IF(s_bil_std!$AA$2=\"1\",I86,P86)","v":{"$error":"#REF!"}},{"$f":"IF(s_bil_std!$AA$2=\"1\",J86,Q86)","v":{"$error":"#REF!"}}]
[394,null,null,null,"Ammortamenti Immob. Materiali",{"$f":"#REF!","v":{"$error":"#REF!"}},{"$f":"#REF!","v":{"$error":"#REF!"}},{"$f":"#REF!","v":{"$error":"#REF!"}},{"$f":"#REF!","v":{"$error":"#REF!"}},{"$f":"#REF!","v":{"$error":"#REF!"}},null,null,{"$error":"#REF!"},{"$error":"#REF!"},{"$error":"#REF!"},{"$error":"#REF!"},{"$error":"#REF!"},null,{"$f":"IF(s_bil_std!$AA$2=\"1\",F87,M87)","v":{"$error":"#REF!"}},{"$f":"IF(s_bil_std!$AA$2=\"1\",G87,N87)","v":{"$error":"#REF!"}},{"$f":"IF(s_bil_std!$AA$2=\"1\",H87,O87)","v":{"$error":"#REF!"}},{"$f":"IF(s_bil_std!$AA$2=\"1\",I87,P87)","v":{"$error":"#REF!"}},{"$f":"IF(s_bil_std!$AA$2=\"1\",J87,Q87)","v":{"$error":"#REF!"}}]
[400,"Risultato operativo caratteristico",null,null,null,{"$f":"F83-F84","v":{"$error":"#REF!"}},{"$f":"G83-G84","v":{"$error":"#REF!"}},{"$f":"H83-H84","v":{"$error":"#REF!"}},{"$f":"I83-I84","v":{"$error":"#REF!"}},{"$f":"J83-J84","v":{"$error":"#REF!"}},null,null,{"$error":"#REF!"},{"$error":"#REF!"},{"$error":"#REF!"},{"$error":"#REF!"},{"$error":"#REF!"},null,{"$f":"IF(s_bil_std!$AA$2=\"1\",F88,M88)","v":{"$error":"#REF!"}},{"$f":"IF(s_bil_std!$AA$2=\"1\",G88,N88)","v":{"$error":"#REF!"}},{"$f":"IF(s_bil_std!$AA$2=\"1\",H88,O88)","v":{"$error":"#REF!"}},{"$f":"IF(s_bil_std!$AA$2=\"1\",I88,P88)","v":{"$error":"#REF!"}},{"$f":"IF(s_bil_std!$AA$2=\"1\",J88,Q88)","v":{"$error":"#REF!"}}]
[410,"Prov. e oneri non caratt. ",null,null,null,{"$f":"F68-F79+#REF!+#REF!+#REF!","v":{"$error":"#REF!"}},{"$f":"G68-G79+#REF!+#REF!+#REF!","v":{"$error":"#REF!"}},{"$f":"H68-H79+#REF!+#REF!+#REF!","v":{"$error":"#REF!"}},{"$f":"I68-I79+#REF!+#REF!+#REF!","v":{"$error":"#REF!"}},{"$f":"J68-J79+#REF!+#REF!+#REF!","v":{"$error":"#REF!"}},null,null,{"$error":"#REF!"},{"$error":"#REF!"},{"$error":"#REF!"},{"$error":"#REF!"},{"$error":"#REF!"},null,{"$f":"IF(s_bil_std!$AA$2=\"1\",F89,M89)","v":{"$error":"#REF!"}},{"$f":"IF(s_bil_std!$AA$2=\"1\",G89,N89)","v":{"$error":"#REF!"}},{"$f":"IF(s_bil_std!$AA$2=\"1\",H89,O89)","v":{"$error":"#REF!"}},{"$f":"IF(s_bil_std!$AA$2=\"1\",I89,P89)","v":{"$error":"#REF!"}},{"$f":"IF(s_bil_std!$AA$2=\"1\",J89,Q89)","v":{"$error":"#REF!"}}]
[null,null,"Proventi ed oneri finanziari",null,null,{"$f":"#REF!","v":{"$error":"#REF!"}},{"$f":"#REF!","v":{"$error":"#REF!"}},{"$f":"#REF!","v":{"$error":"#REF!"}},{"$f":"#REF!","v":{"$error":"#REF!"}},{"$f":"#REF!","v":{"$error":"#REF!"}},null,null,{"$error":"#REF!"},{"$error":"#REF!"},{"$error":"#REF!"},{"$error":"#REF!"},{"$error":"#REF!"},null,{"$f":"IF(s_bil_std!$AA$2=\"1\",F90,M90)","v":{"$error":"#REF!"}},{"$f":"IF(s_bil_std!$AA$2=\"1\",G90,N90)","v":{"$error":"#REF!"}},{"$f":"IF(s_bil_std!$AA$2=\"1\",H90,O90)","v":{"$error":"#REF!"}},{"$f":"IF(s_bil_std!$AA$2=\"1\",I90,P90)","v":{"$error":"#REF!"}},{"$f":"IF(s_bil_std!$AA$2=\"1\",J90,Q90)","v":{"$error":"#REF!"}}]
[412,null,"Proventi finanziari",null,null,{"$f":"SUM(#REF!,#REF!)","v":{"$error":"#REF!"}},{"$f":"SUM(#REF!,#REF!)","v":{"$error":"#REF!"}},{"$f":"SUM(#REF!,#REF!)","v":{"$error":"#REF!"}},{"$f":"SUM(#REF!,#REF!)","v":{"$error":"#REF!"}},{"$f":"SUM(#REF!,#REF!)","v":{"$error":"#REF!"}},null,null,{"$error":"#REF!"},{"$error":"#REF!"},{"$error":"#REF!"},{"$error":"#REF!"},{"$error":"#REF!"},null,{"$f":"IF(s_bil_std!$AA$2=\"1\",F91,M91)","v":{"$error":"#REF!"}},{"$f":"IF(s_bil_std!$AA$2=\"1\",G91,N91)","v":{"$error":"#REF!"}},{"$f":"IF(s_bil_std!$AA$2=\"1\",H91,O91)","v":{"$error":"#REF!"}},{"$f":"IF(s_bil_std!$AA$2=\"1\",I91,P91)","v":{"$error":"#REF!"}},{"$f":"IF(s_bil_std!$AA$2=\"1\",J91,Q91)","v":{"$error":"#REF!"}}]
[null,null,"Utili e perdite su cambi",null,null,{"$f":"#REF!","v":{"$error":"#REF!"}},{"$f":"#REF!","v":{"$error":"#REF!"}},{"$f":"#REF!","v":{"$error":"#REF!"}},{"$f":"#REF!","v":{"$error":"#REF!"}},{"$f":"#REF!","v":{"$error":"#REF!"}},null,null,{"$error":"#REF!"},{"$error":"#REF!"},{"$error":"#REF!"},{"$error":"#REF!"},{"$error":"#REF!"},null,{"$f":"IF(s_bil_std!$AA$2=\"1\",F92,M92)","v":{"$error":"#REF!"}},{"$f":"IF(s_bil_std!$AA$2=\"1\",G92,N92)","v":{"$error":"#REF!"}},{"$f":"IF(s_bil_std!$AA$2=\"1\",H92,O92)","v":{"$error":"#REF!"}},{"$f":"IF(s_bil_std!$AA$2=\"1\",I92,P92)","v":{"$error":"#REF!"}},{"$f":"IF(s_bil_std!$AA$2=\"1\",J92,Q92)","v":{"$error":"#REF!"}}]
["S30",null,"Risultato ante gestione finanziaria",null,null,{"$f":"F88+F68-F79","v":{"$error":"#REF!"}},{"$f":"G88+G68-G79","v":{"$error":"#REF!"}},{"$f":"H88+H68-H79","v":{"$error":"#REF!"}},{"$f":"I88+I68-I79","v":{"$error":"#REF!"}},{"$f":"J88+J68-J79","v":{"$error":"#REF!"}},null,null,{"$error":"#REF!"},{"$error":"#REF!"},{"$error":"#REF!"},{"$error":"#REF!"},{"$error":"#REF!"},null,{"$f":"IF(s_bil_std!$AA$2=\"1\",F93,M93)","v":{"$error":"#REF!"}},{"$f":"IF(s_bil_std!$AA$2=\"1\",G93,N93)","v":{"$error":"#REF!"}},{"$f":"IF(s_bil_std!$AA$2=\"1\",H93,O93)","v":{"$error":"#REF!"}},{"$f":"IF(s_bil_std!$AA$2=\"1\",I93,P93)","v":{"$error":"#REF!"}},{"$f":"IF(s_bil_std!$AA$2=\"1\",J93,Q93)","v":{"$error":"#REF!"}}]
[415,"Risultato operativo (Margine corrente ante oneri finanziari)",null,null,null,{"$f":"F88+F89","v":{"$error":"#REF!"}},{"$f":"G88+G89","v":{"$error":"#REF!"}},{"$f":"H88+H89","v":{"$error":"#REF!"}},{"$f":"I88+I89","v":{"$error":"#REF!"}},{"$f":"J88+J89","v":{"$error":"#REF!"}},null,null,{"$error":"#REF!"},{"$error":"#REF!"},{"$error":"#REF!"},{"$error":"#REF!"},{"$error":"#REF!"},null,{"$f":"IF(s_bil_std!$AA$2=\"1\",F94,M94)","v":{"$error":"#REF!"}},{"$f":"IF(s_bil_std!$AA$2=\"1\",G94,N94)","v":{"$error":"#REF!"}},{"$f":"IF(s_bil_std!$AA$2=\"1\",H94,O94)","v":{"$error":"#REF!"}},{"$f":"IF(s_bil_std!$AA$2=\"1\",I94,P94)","v":{"$error":"#REF!"}},{"$f":"IF(s_bil_std!$AA$2=\"1\",J94,Q94)","v":{"$error":"#REF!"}}]
[420,"Oneri finanziari",null,null,null,{"$f":"#REF!","v":{"$error":"#REF!"}},{"$f":"#REF!","v":{"$error":"#REF!"}},{"$f":"#REF!","v":{"$error":"#REF!"}},{"$f":"#REF!","v":{"$error":"#REF!"}},{"$f":"#REF!","v":{"$error":"#REF!"}},null,null,{"$error":"#REF!"},{"$error":"#REF!"},{"$error":"#REF!"},{"$error":"#REF!"},{"$error":"#REF!"},null,{"$f":"IF(s_bil_std!$AA$2=\"1\",F95,M95)","v":{"$error":"#REF!"}},{"$f":"IF(s_bil_std!$AA$2=\"1\",G95,N95)","v":{"$error":"#REF!"}},{"$f":"IF(s_bil_std!$AA$2=\"1\",H95,O95)","v":{"$error":"#REF!"}},{"$f":"IF(s_bil_std!$AA$2=\"1\",I95,P95)","v":{"$error":"#REF!"}},{"$f":"IF(s_bil_std!$AA$2=\"1\",J95,Q95)","v":{"$error":"#REF!"}}]
[440,"Risultato ante gestione straordinaria (Margine corrente)",null,null,null,{"$f":"F94+F95","v":{"$error":"#REF!"}},{"$f":"G94+G95","v":{"$error":"#REF!"}},{"$f":"H94+H95","v":{"$error":"#REF!"}},{"$f":"I94+I95","v":{"$error":"#REF!"}},{"$f":"J94+J95","v":{"$error":"#REF!"}},null,null,{"$error":"#REF!"},{"$error":"#REF!"},{"$error":"#REF!"},{"$error":"#REF!"},{"$error":"#REF!"},null,{"$f":"IF(s_bil_std!$AA$2=\"1\",F96,M96)","v":{"$error":"#REF!"}},{"$f":"IF(s_bil_std!$AA$2=\"1\",G96,N96)","v":{"$error":"#REF!"}},{"$f":"IF(s_bil_std!$AA$2=\"1\",H96,O96)","v":{"$error":"#REF!"}},{"$f":"IF(s_bil_std!$AA$2=\"1\",I96,P96)","v":{"$error":"#REF!"}},{"$f":"IF(s_bil_std!$AA$2=\"1\",J96,Q96)","v":{"$error":"#REF!"}}]
[430,"Rettifica di valore di Attività Finanziarie",null,null,null,{"$f":"#REF!","v":{"$error":"#REF!"}},{"$f":"#REF!","v":{"$error":"#REF!"}},{"$f":"#REF!","v":{"$error":"#REF!"}},{"$f":"#REF!","v":{"$error":"#REF!"}},{"$f":"#REF!","v":{"$error":"#REF!"}},null,null,{"$error":"#REF!"},{"$error":"#REF!"},{"$error":"#REF!"},{"$error":"#REF!"},{"$error":"#REF!"},null,{"$f":"IF(s_bil_std!$AA$2=\"1\",F97,M97)","v":{"$error":"#REF!"}},{"$f":"IF(s_bil_std!$AA$2=\"1\",G97,N97)","v":{"$error":"#REF!"}},{"$f":"IF(s_bil_std!$AA$2=\"1\",H97,O97)","v":{"$error":"#REF!"}},{"$f":"IF(s_bil_std!$AA$2=\"1\",I97,P97)","v":{"$error":"#REF!"}},{"$f":"IF(s_bil_std!$AA$2=\"1\",J97,Q97)","v":{"$error":"#REF!"}}]
[450,"Proventi e oneri straordinari ",null,null,null,{"$f":"#REF!","v":{"$error":"#REF!"}},{"$f":"#REF!","v":{"$error":"#REF!"}},{"$f":"#REF!","v":{"$error":"#REF!"}},{"$f":"#REF!","v":{"$error":"#REF!"}},{"$f":"#REF!","v":{"$error":"#REF!"}},null,null,{"$error":"#REF!"},{"$error":"#REF!"},{"$error":"#REF!"},{"$error":"#REF!"},{"$error":"#REF!"},null,{"$f":"IF(s_bil_std!$AA$2=\"1\",F98,M98)","v":{"$error":"#REF!"}},{"$f":"IF(s_bil_std!$AA$2=\"1\",G98,N98)","v":{"$error":"#REF!"}},{"$f":"IF(s_bil_std!$AA$2=\"1\",H98,O98)","v":{"$error":"#REF!"}},{"$f":"IF(s_bil_std!$AA$2=\"1\",I98,P98)","v":{"$error":"#REF!"}},{"$f":"IF(s_bil_std!$AA$2=\"1\",J98,Q98)","v":{"$error":"#REF!"}}]
[460,"Risultato ante imposte",null,null,null,{"$f":"F96+F97+F98","v":{"$error":"#REF!"}},{"$f":"G96+G97+G98","v":{"$error":"#REF!"}},{"$f":"H96+H97+H98","v":{"$error":"#REF!"}},{"$f":"I96+I97+I98","v":{"$error":"#REF!"}},{"$f":"J96+J97+J98","v":{"$error":"#REF!"}},null,null,{"$error":"#REF!"},{"$error":"#REF!"},{"$error":"#REF!"},{"$error":"#REF!"},{"$error":"#REF!"},null,{"$f":"IF(s_bil_std!$AA$2=\"1\",F99,M99)","v":{"$error":"#REF!"}},{"$f":"IF(s_bil_std!$AA$2=\"1\",G99,N99)","v":{"$error":"#REF!"}},{"$f":"IF(s_bil_std!$AA$2=\"1\",H99,O99)","v":{"$error":"#REF!"}},{"$f":"IF(s_bil_std!$AA$2=\"1\",I99,P99)","v":{"$error":"#REF!"}},{"$f":"IF(s_bil_std!$AA$2=\"1\",J99,Q99)","v":{"$error":"#REF!"}}]
[465,"Imposte dell'esercizio",null,null,null,{"$f":"#REF!","v":{"$error":"#REF!"}},{"$f":"#REF!","v":{"$error":"#REF!"}},{"$f":"#REF!","v":{"$error":"#REF!"}},{"$f":"#REF!","v":{"$error":"#REF!"}},{"$f":"#REF!","v":{"$error":"#REF!"}},null,null,{"$error":"#REF!"},{"$error":"#REF!"},{"$error":"#REF!"},{"$error":"#REF!"},{"$error":"#REF!"},null,{"$f":"IF(s_bil_std!$AA$2=\"1\",F100,M100)","v":{"$error":"#REF!"}},{"$f":"IF(s_bil_std!$AA$2=\"1\",G100,N100)","v":{"$error":"#REF!"}},{"$f":"IF(s_bil_std!$AA$2=\"1\",H100,O100)","v":{"$error":"#REF!"}},{"$f":"IF(s_bil_std!$AA$2=\"1\",I100,P100)","v":{"$error":"#REF!"}},{"$f":"IF(s_bil_std!$AA$2=\"1\",J100,Q100)","v":{"$error":"#REF!"}}]
[477,"Reddito netto",null,null,null,{"$f":"F99-F100","v":{"$error":"#REF!"}},{"$f":"G99-G100","v":{"$error":"#REF!"}},{"$f":"H99-H100","v":{"$error":"#REF!"}},{"$f":"I99-I100","v":{"$error":"#REF!"}},{"$f":"J99-J100","v":{"$error":"#REF!"}},null,null,{"$error":"#REF!"},{"$error":"#REF!"},{"$error":"#REF!"},{"$error":"#REF!"},{"$error":"#REF!"},null,{"$f":"IF(s_bil_std!$AA$2=\"1\",F101,M101)","v":{"$error":"#REF!"}},{"$f":"IF(s_bil_std!$AA$2=\"1\",G101,N101)","v":{"$error":"#REF!"}},{"$f":"IF(s_bil_std!$AA$2=\"1\",H101,O101)","v":{"$error":"#REF!"}},{"$f":"IF(s_bil_std!$AA$2=\"1\",I101,P101)","v":{"$error":"#REF!"}},{"$f":"IF(s_bil_std!$AA$2=\"1\",J101,Q101)","v":{"$error":"#REF!"}}]
[]
[null,"Dipendenti medi",null,null,null,{"$f":"dati_an!$B$34","v":"0"},{"$f":"dati_an!$B$35","v":"0"},{"$f":"dati_an!$B$36","v":"0"},{"$f":"dati_an!$B$37","v":"0"},{"$f":"dati_an!$B$38","v":"0"},null,null,{"$f":"dati_an!$B$34","v":"0"},{"$f":"dati_an!$B$35","v":"0"},{"$f":"dati_an!$B$36","v":"0"},{"$f":"dati_an!$B$37","v":"0"},{"$f":"dati_an!$B$38","v":"0"},null,{"$f":"IF(s_bil_std!$AA$2=\"1\",F103,M103)","v":"0"},{"$f":"IF(s_bil_std!$AA$2=\"1\",G103,N103)","v":"0"},{"$f":"IF(s_bil_std!$AA$2=\"1\",H103,O103)","v":"0"},{"$f":"IF(s_bil_std!$AA$2=\"1\",I103,P103)","v":"0"},{"$f":"IF(s_bil_std!$AA$2=\"1\",J103,Q103)","v":"0"}]

{"sheet":"s_bil_std","index":1,"n_rows":275,"n_cols":34,"rows_kept":275,"cut":false,"hidden":true,"merged":[[0,6,0,7]]}
["Codice voce","Descrizione","Solo Cons.","ORD","ABB","Codice Cerved","Codice Bilancio sintetico",null,"N ORD","N ABB",null,"N-1 ORD","N-1 ABB",null,"N-2 ORD","N-2 ABB",null,"N-3 ORD","N-3 ABB",null,"N-4 ORD","N-4 ABB",null,null,"N DEF","N-1 DEF","N-2 DEF","N-3 DEF","N-4 DEF",null,"Codice in stampa"]
["1","Attivo",null,null,null,null,null,null,null,null,null,null,null,null,null,null,null,null,null,null,null,null,null,null,"Forma bilancio:",null,{"$f":"TEXT(dati_an!B4+1,\"0\")","v":"8"},{"$f":"dati_an!C4","v":"Ordinaria"}]
["1.A","CREDITI VERSO SOCI PER VERSAMENTI ANCORA DOVUTI","NO","Totale","Totale",10,10,null,{"$f":"SUM(I4:I5)","v":0},{"$f":"SUM(J4:J5)","v":0},null,{"$f":"SUM(L4:L5)","v":0},{"$f":"SUM(M4:M5)","v":0},null,{"$f":"SUM(O4:O5)","v":0},{"$f":"SUM(P4:P5)","v":0},null,{"$f":"SUM(R4:R5)","v":0},{"$f":"SUM(S4:S5)","v":0},null,{"$f":"SUM(U4:U5)","v":0},{"$f":"SUM(V4:V5)","v":0},null,null,{"$f":"IF($AA$2=\"1\",I3,J3)","v":0},{"$f":"IF($AA$2=\"1\",L3,M3)","v":0},{"$f":"IF($AA$2=\"1\",O3,P3)","v":0},{"$f":"IF($AA$2=\"1\",R3,S3)","v":0},{"$f":"IF($AA$2=\"1\",U3,V3)","v":0},null,"A)",null,null,"Voce calcolata"]
["1.A.1","Versamenti non ancora richiamati","NO","Dett.","Dett.",12,null,null,{"$f":"SUMIF(dati_sp!$H$2:$H$65536,s_bil_std!$A4,dati_sp!$C$2:$C$65536)","v":0},{"$f":"SUMIF(dati_sp!$H$2:$H$65536,s_bil_std!$A4,dati_sp!$C$2:$C$65536)","v":0},null,{"$f":"SUMIF(dati_sp!$H$2:$H$65536,s_bil_std!$A4,dati_sp!$D$2:$D$65536)","v":0},{"$f":"SUMIF(dati_sp!$H$2:$H$65536,s_bil_std!$A4,dati_sp!$D$2:$D$65536)","v":0},null,{"$f":"SUMIF(dati_sp!$H$2:$H$65536,s_bil_std!$A4,dati_sp!$E$2:$E$65536)","v":0},{"$f":"SUMIF(dati_sp!$H$2:$H$65536,s_bil_std!$A4,dati_sp!$E$2:$E$65536)","v":0},null,{"$f":"SUMIF(dati_sp!$H$2:$H$65536,s_bil_std!$A4,dati_sp!$F$2:$F$65536)","v":0},{"$f":"SUMIF(dati_sp!$H$2:$H$65536,s_bil_std!$A4,dati_sp!$F$2:$F$65536)","v":0},null,{"$f":"SUMIF(dati_sp!$H$2:$H$65536,s_bil_std!$A4,dati_sp!$G$2:$G$65536)","v":0},{"$f":"SUMIF(dati_sp!$H$2:$H$65536,s_bil_std!$A4,dati_sp!$G$2:$G$65536)","v":0},null,null,0,0,0,0,0,null," ",null,null,"Voce di scomp. Temp."]
["1.A.2","Versamenti già richiamati","NO","Dett.","Dett.",null,null,null,{"$f":"SUMIF(dati_sp!$H$2:$H$65536,s_bil_std!$A5,dati_sp!$C$2:$C$65536)","v":0},{"$f":"SUMIF(dati_sp!$H$2:$H$65536,s_bil_std!$A5,dati_sp!$C$2:$C$65536)","v":0},null,{"$f":"SUMIF(dati_sp!$H$2:$H$65536,s_bil_std!$A5,dati_sp!$D$2:$D$65536)","v":0},{"$f":"SUMIF(dati_sp!$H$2:$H$65536,s_bil_std!$A5,dati_sp!$D$2:$D$65536)","v":0},null,{"$f":"SUMIF(dati_sp!$H$2:$H$65536,s_bil_std!$A5,dati_sp!$E$2:$E$65536)","v":0},{"$f":"SUMIF(dati_sp!$H$2:$H$65536,s_bil_std!$A5,dati_sp!$E$2:$E$65536)","v":0},null,{"$f":"SUMIF(dati_sp!$H$2:$H$65536,s_bil_std!$A5,dati_sp!$F$2:$F$65536)","v":0},{"$f":"SUMIF(dati_sp!$H$2:$H$65536,s_bil_std!$A5,dati_sp!$F$2:$F$65536)","v":0},null,{"$f":"SUMIF(dati_sp!$H$2:$H$65536,s_bil_std!$A5,dati_sp!$G$2:$G$65536)","v":0},{"$f":"SUMIF(dati_sp!$H$2:$H$65536,s_bil_std!$A5,dati_sp!$G$2:$G$65536)","v":0},null,null,0,0,0,0,0,null," ",null,null,"Voce calcolata nell'ord, dettaglio nell'abb."]
["1.B","IMMOBILIZZAZIONI","NO","Totale","Totale",20,20,null,{"$f":"SUM(I7,I19,I28)","v":3000},{"$f":"SUM(J7,J19)","v":0},null,{"$f":"SUM(L7,L19,L28)","v":3000},{"$f":"SUM(M7,M19)","v":0},null,{"$f":"SUM(O7,O19,O28)","v":0},{"$f":"SUM(P7,P19)","v":0},null,{"$f":"SUM(R7,R19,R28)","v":0},{"$f":"SUM(S7,S19)","v":0},null,{"$f":"SUM(U7,U19,U28)","v":0},{"$f":"SUM(V7,V19)","v":0},null,null,0,0,0,0,0,null,"B)",null,null,"Voce non rilevante per lo schema abbreviato"]
["1.B.1","IMMOBILIZZAZIONI IMMATERIALI","NO","Totale","Totale",30,30,null,{"$f":"SUM(I8:I15)","v":3000},{"$f":"SUM(J16:J18)","v":0},null,{"$f":"SUM(L8:L15)","v":3000},{"$f":"SUM(M16:M18)","v":0},null,{"$f":"SUM(O8:O15)","v":0},{"$f":"SUM(P16:P18)","v":0},null,{"$f":"SUM(R8:R15)","v":0},{"$f":"SUM(S16:S18)","v":0},null,{"$f":"SUM(U8:U15)","v":0},{"$f":"SUM(V16:V18)","v":0},null,null,0,0,0,0,0,null,"I -",null,null,"Voce solo consolidato"]
["1.B.1.1","Costi di impianto e di ampliamento","NO","Dett.",null,31,null,null,{"$f":"SUMIF(dati_sp!$H$2:$H$65536,s_bil_std!$A8,dati_sp!$C$2:$C$65536)","v":0},null,null,{"$f":"SUMIF(dati_sp!$H$2:$H$65536,s_bil_std!$A8,dati_sp!$D$2:$D$65536)","v":0},null,null,{"$f":"SUMIF(dati_sp!$H$2:$H$65536,s_bil_std!$A8,dati_sp!$E$2:$E$65536)","v":0},null,null,{"$f":"SUMIF(dati_sp!$H$2:$H$65536,s_bil_std!$A8,dati_sp!$F$2:$F$65536)","v":0},null,null,{"$f":"SUMIF(dati_sp!$H$2:$H$65536,s_bil_std!$A8,dati_sp!$G$2:$G$65536)","v":0},null,null,null,0,0,0,0,0,null,"1)"]
["1.B.1.2","Costi di ricerca, di sviluppo e di pubblicità","NO","Dett.",null,32,null,null,{"$f":"SUMIF(dati_sp!$H$2:$H$65536,s_bil_std!$A9,dati_sp!$C$2:$C$65536)","v":0},null,null,{"$f":"SUMIF(dati_sp!$H$2:$H$65536,s_bil_std!$A9,dati_sp!$D$2:$D$65536)","v":0},null,null,{"$f":"SUMIF(dati_sp!$H$2:$H$65536,s_bil_std!$A9,dati_sp!$E$2:$E$65536)","v":0},null,null,{"$f":"SUMIF(dati_sp!$H$2:$H$65536,s_bil_std!$A9,dati_sp!$F$2:$F$65536)","v":0},null,null,{"$f":"SUMIF(dati_sp!$H$2:$H$65536,s_bil_std!$A9,dati_sp!$G$2:$G$65536)","v":0},null,null,null,0,0,0,0,0,null,"2)"]
["1.B.1.3","Diritto di brevetto industriale e diritti di utilizzazione delle opere di ingegno","NO","Dett.",null,33,null,null,{"$f":"SUMIF(dati_sp!$H$2:$H$65536,s_bil_std!$A10,dati_sp!$C$2:$C$65536)","v":3000},null,null,{"$f":"SUMIF(dati_sp!$H$2:$H$65536,s_bil_std!$A10,dati_sp!$D$2:$D$65536)","v":3000},null,null,{"$f":"SUMIF(dati_sp!$H$2:$H$65536,s_bil_std!$A10,dati_sp!$E$2:$E$65536)","v":0},null,null,{"$f":"SUMIF(dati_sp!$H$2:$H$65536,s_bil_std!$A10,dati_sp!$F$2:$F$65536)","v":0},null,null,{"$f":"SUMIF(dati_sp!$H$2:$H$65536,s_bil_std!$A10,dati_sp!$G$2:$G$65536)","v":0},null,null,null,0,0,0,0,0,null,"3)"]
["1.B.1.4","Concessioni, licenze, marchi e diritti simili","NO","Dett.",null,34,null,null,{"$f":"SUMIF(dati_sp!$H$2:$H$65536,s_bil_std!$A11,dati_sp!$C$2:$C$65536)","v":0},null,null,{"$f":"SUMIF(dati_sp!$H$2:$H$65536,s_bil_std!$A11,dati_sp!$D$2:$D$65536)","v":0},null,null,{"$f":"SUMIF(dati_sp!$H$2:$H$65536,s_bil_std!$A11,dati_sp!$E$2:$E$65536)","v":0},null,null,{"$f":"SUMIF(dati_sp!$H$2:$H$65536,s_bil_std!$A11,dati_sp!$F$2:$F$65536)","v":0},null,null,{"$f":"SUMIF(dati_sp!$H$2:$H$65536,s_bil_std!$A11,dati_sp!$G$2:$G$65536)","v":0},null,null,null,0,0,0,0,0,null,"4)"]
["1.B.1.5","Avviamento","NO","Dett.",null,35,null,null,{"$f":"SUMIF(dati_sp!$H$2:$H$65536,s_bil_std!$A12,dati_sp!$C$2:$C$65536)","v":0},null,null,{"$f":"SUMIF(dati_sp!$H$2:$H$65536,s_bil_std!$A12,dati_sp!$D$2:$D$65536)","v":0},null,null,{"$f":"SUMIF(dati_sp!$H$2:$H$65536,s_bil_std!$A12,dati_sp!$E$2:$E$65536)","v":0},null,null,{"$f":"SUMIF(dati_sp!$H$2:$H$65536,s_bil_std!$A12,dati_sp!$F$2:$F$65536)","v":0},null,null,{"$f":"SUMIF(dati_sp!$H$2:$H$65536,s_bil_std!$A12,dati_sp!$G$2:$G$65536)","v":0},null,null,null,0,0,0,0,0,null,"5)"]
["1.B.1.5a","Differenza da consolidamento","SI","Dett.",null,35,null,null,{"$f":"SUMIF(dati_sp!$H$2:$H$65536,s_bil_std!$A13,dati_sp!$C$2:$C$65536)","v":0},null,null,{"$f":"SUMIF(dati_sp!$H$2:$H$65536,s_bil_std!$A13,dati_sp!$D$2:$D$65536)","v":0},null,null,{"$f":"SUMIF(dati_sp!$H$2:$H$65536,s_bil_std!$A13,dati_sp!$E$2:$E$65536)","v":0},null,null,{"$f":"SUMIF(dati_sp!$H$2:$H$65536,s_bil_std!$A13,dati_sp!$F$2:$F$65536)","v":0},null,null,{"$f":"SUMIF(dati_sp!$H$2:$H$65536,s_bil_std!$A13,dati_sp!$G$2:$G$65536)","v":0},null,null,null,0,0,0,0,0]
["1.B.1.6","Immobilizzazioni in corso e acconti","NO","Dett.",null,36,null,null,{"$f":"SUMIF(dati_sp!$H$2:$H$65536,s_bil_std!$A14,dati_sp!$C$2:$C$65536)","v":0},null,null,{"$f":"SUMIF(dati_sp!$H$2:$H$65536,s_bil_std!$A14,dati_sp!$D$2:$D$65536)","v":0},null,null,{"$f":"SUMIF(dati_sp!$H$2:$H$65536,s_bil_std!$A14,dati_sp!$E$2:$E$65536)","v":0},null,null,{"$f":"SUMIF(dati_sp!$H$2:$H$65536,s_bil_std!$A14,dati_sp!$F$2:$F$65536)","v":0},null,null,{"$f":"SUMIF(dati_sp!$H$2:$H$65536,s_bil_std!$A14,dati_sp!$G$2:$G$65536)","v":0},null,null,null,0,0,0,0,0,null,"6)"]
["1.B.1.7","Altre immobilizzazioni immateriali","NO","Dett.",null,37,null,null,{"$f":"SUMIF(dati_sp!$H$2:$H$65536,s_bil_std!$A15,dati_sp!$C$2:$C$65536)","v":0},null,null,{"$f":"SUMIF(dati_sp!$H$2:$H$65536,s_bil_std!$A15,dati_sp!$D$2:$D$65536)","v":0},null,null,{"$f":"SUMIF(dati_sp!$H$2:$H$65536,s_bil_std!$A15,dati_sp!$E$2:$E$65536)","v":0},null,null,{"$f":"SUMIF(dati_sp!$H$2:$H$65536,s_bil_std!$A15,dati_sp!$F$2:$F$65536)","v":0},null,null,{"$f":"SUMIF(dati_sp!$H$2:$H$65536,s_bil_std!$A15,dati_sp!$G$2:$G$65536)","v":0},null,null,null,0,0,0,0,0,null,"7)"]
["1.B.1.90","Immobilizzazioni immateriali lorde","NO",null,"Dett.",null,null,null,null,{"$f":"SUMIF(dati_sp!$H$2:$H$65536,s_bil_std!$A16,dati_sp!$C$2:$C$65536)","v":0},null,null,{"$f":"SUMIF(dati_sp!$H$2:$H$65536,s_bil_std!$A16,dati_sp!$D$2:$D$65536)","v":0},null,null,{"$f":"SUMIF(dati_sp!$H$2:$H$65536,s_bil_std!$A16,dati_sp!$E$2:$E$65536)","v":0},null,null,{"$f":"SUMIF(dati_sp!$H$2:$H$65536,s_bil_std!$A16,dati_sp!$F$2:$F$65536)","v":0},null,null,{"$f":"SUMIF(dati_sp!$H$2:$H$65536,s_bil_std!$A16,dati_sp!$G$2:$G$65536)","v":0},null,null,0,0,0,0,0,null," "]
["1.B.1.91","Fondi Ammortam. immobili. immateriali","NO",null,"Dett.",21,null,null,null,{"$f":"SUMIF(dati_sp!$H$2:$H$65536,s_bil_std!$A17,dati_sp!$C$2:$C$65536)","v":0},null,null,{"$f":"SUMIF(dati_sp!$H$2:$H$65536,s_bil_std!$A17,dati_sp!$D$2:$D$65536)","v":0},null,null,{"$f":"SUMIF(dati_sp!$H$2:$H$65536,s_bil_std!$A17,dati_sp!$E$2:$E$65536)","v":0},null,null,{"$f":"SUMIF(dati_sp!$H$2:$H$65536,s_bil_std!$A17,dati_sp!$F$2:$F$65536)","v":0},null,null,{"$f":"SUMIF(dati_sp!$H$2:$H$65536,s_bil_std!$A17,dati_sp!$G$2:$G$65536)","v":0},null,null,0,0,0,0,0,null," "]
["1.B.1.92","Fondi svalutazione immobil. immateriali","NO",null,"Dett.",21,null,null,null,{"$f":"SUMIF(dati_sp!$H$2:$H$65536,s_bil_std!$A18,dati_sp!$C$2:$C$65536)","v":0},null,null,{"$f":"SUMIF(dati_sp!$H$2:$H$65536,s_bil_std!$A18,dati_sp!$D$2:$D$65536)","v":0},null,null,{"$f":"SUMIF(dati_sp!$H$2:$H$65536,s_bil_std!$A18,dati_sp!$E$2:$E$65536)","v":0},null,null,{"$f":"SUMIF(dati_sp!$H$2:$H$65536,s_bil_std!$A18,dati_sp!$F$2:$F$65536)","v":0},null,null,{"$f":"SUMIF(dati_sp!$H$2:$H$65536,s_bil_std!$A18,dati_sp!$G$2:$G$65536)","v":0},null,null,0,0,0,0,0,null," "]
["1.B.2","IMMOBILIZZAZIONI MATERIALI","NO","Totale","Totale",40,40,null,{"$f":"SUM(I20:I24)","v":0},{"$f":"SUM(J25:J27)","v":0},null,{"$f":"SUM(L20:L24)","v":0},{"$f":"SUM(M25:M27)","v":0},null,{"$f":"SUM(O20:O24)","v":0},{"$f":"SUM(P25:P27)","v":0},null,{"$f":"SUM(R20:R24)","v":0},{"$f":"SUM(S25:S27)","v":0},null,{"$f":"SUM(U20:U24)","v":0},{"$f":"SUM(V25:V27)","v":0},null,null,0,0,0,0,0,null,"II -"]
["1.B.2.1","Terreni e fabbricati","NO","Dett.",null,45,null,null,{"$f":"SUMIF(dati_sp!$H$2:$H$65536,s_bil_std!$A20,dati_sp!$C$2:$C$65536)","v":0},null,null,{"$f":"SUMIF(dati_sp!$H$2:$H$65536,s_bil_std!$A20,dati_sp!$D$2:$D$65536)","v":0},null,null,{"$f":"SUMIF(dati_sp!$H$2:$H$65536,s_bil_std!$A20,dati_sp!$E$2:$E$65536)","v":0},null,null,{"$f":"SUMIF(dati_sp!$H$2:$H$65536,s_bil_std!$A20,dati_sp!$F$2:$F$65536)","v":0},null,null,{"$f":"SUMIF(dati_sp!$H$2:$H$65536,s_bil_std!$A20,dati_sp!$G$2:$G$65536)","v":0},null,null,null,0,0,0,0,0,null,"1)"]
["1.B.2.2","Impianti e macchinario","NO","Dett.",null,41,null,null,{"$f":"SUMIF(dati_sp!$H$2:$H$65536,s_bil_std!$A21,dati_sp!$C$2:$C$65536)","v":0},null,null,{"$f":"SUMIF(dati_sp!$H$2:$H$65536,s_bil_std!$A21,dati_sp!$D$2:$D$65536)","v":0},null,null,{"$f":"SUMIF(dati_sp!$H$2:$H$65536,s_bil_std!$A21,dati_sp!$E$2:$E$65536)","v":0},null,null,{"$f":"SUMIF(dati_sp!$H$2:$H$65536,s_bil_std!$A21,dati_sp!$F$2:$F$65536)","v":0},null,null,{"$f":"SUMIF(dati_sp!$H$2:$H$65536,s_bil_std!$A21,dati_sp!$G$2:$G$65536)","v":0},null,null,null,0,0,0,0,0,null,"2)"]
["1.B.2.3","Attrezzature industriali e commerciali","NO","Dett.",null,42,null,null,{"$f":"SUMIF(dati_sp!$H$2:$H$65536,s_bil_std!$A22,dati_sp!$C$2:$C$65536)","v":0},null,null,{"$f":"SUMIF(dati_sp!$H$2:$H$65536,s_bil_std!$A22,dati_sp!$D$2:$D$65536)","v":0},null,null,{"$f":"SUMIF(dati_sp!$H$2:$H$65536,s_bil_std!$A22,dati_sp!$E$2:$E$65536)","v":0},null,null,{"$f":"SUMIF(dati_sp!$H$2:$H$65536,s_bil_std!$A22,dati_sp!$F$2:$F$65536)","v":0},null,null,{"$f":"SUMIF(dati_sp!$H$2:$H$65536,s_bil_std!$A22,dati_sp!$G$2:$G$65536)","v":0},null,null,null,0,0,0,0,0,null,"3)"]
["1.B.2.4","Altri beni materiali","NO","Dett.",null,43,null,null,{"$f":"SUMIF(dati_sp!$H$2:$H$65536,s_bil_std!$A23,dati_sp!$C$2:$C$65536)","v":0},null,null,{"$f":"SUMIF(dati_sp!$H$2:$H$65536,s_bil_std!$A23,dati_sp!$D$2:$D$65536)","v":0},null,null,{"$f":"SUMIF(dati_sp!$H$2:$H$65536,s_bil_std!$A23,dati_sp!$E$2:$E$65536)","v":0},null,null,{"$f":"SUMIF(dati_sp!$H$2:$H$65536,s_bil_std!$A23,dati_sp!$F$2:$F$65536)","v":0},null,null,{"$f":"SUMIF(dati_sp!$H$2:$H$65536,s_bil_std!$A23,dati_sp!$G$2:$G$65536)","v":0},null,null,null,0,0,0,0,0,null,"4)"]
["1.B.2.5","Immobilizzazioni in corso e acconti","NO","Dett.",null,44,null,null,{"$f":"SUMIF(dati_sp!$H$2:$H$65536,s_bil_std!$A24,dati_sp!$C$2:$C$65536)","v":0},null,null,{"$f":"SUMIF(dati_sp!$H$2:$H$65536,s_bil_std!$A24,dati_sp!$D$2:$D$65536)","v":0},null,null,{"$f":"SUMIF(dati_sp!$H$2:$H$65536,s_bil_std!$A24,dati_sp!$E$2:$E$65536)","v":0},null,null,{"$f":"SUMIF(dati_sp!$H$2:$H$65536,s_bil_std!$A24,dati_sp!$F$2:$F$65536)","v":0},null,null,{"$f":"SUMIF(dati_sp!$H$2:$H$65536,s_bil_std!$A24,dati_sp!$G$2:$G$65536)","v":0},null,null,null,0,0,0,0,0,null,"5)"]
["1.B.2.90","Immobilizzazioni materiali lorde","NO",null,"Dett.",null,null,null,null,{"$f":"SUMIF(dati_sp!$H$2:$H$65536,s_bil_std!$A25,dati_sp!$C$2:$C$65536)","v":0},null,null,{"$f":"SUMIF(dati_sp!$H$2:$H$65536,s_bil_std!$A25,dati_sp!$D$2:$D$65536)","v":0},null,null,{"$f":"SUMIF(dati_sp!$H$2:$H$65536,s_bil_std!$A25,dati_sp!$E$2:$E$65536)","v":0},null,null,{"$f":"SUMIF(dati_sp!$H$2:$H$65536,s_bil_std!$A25,dati_sp!$F$2:$F$65536)","v":0},null,null,{"$f":"SUMIF(dati_sp!$H$2:$H$65536,s_bil_std!$A25,dati_sp!$G$2:$G$65536)","v":0},null,null,0,0,0,0,0,null," "]
["1.B.2.91","Fondi Ammort. immobil. materiali","NO",null,"Dett.",265,null,null,null,{"$f":"SUMIF(dati_sp!$H$2:$H$65536,s_bil_std!$A26,dati_sp!$C$2:$C$65536)","v":0},null,null,{"$f":"SUMIF(dati_sp!$H$2:$H$65536,s_bil_std!$A26,dati_sp!$D$2:$D$65536)","v":0},null,null,{"$f":"SUMIF(dati_sp!$H$2:$H$65536,s_bil_std!$A26,dati_sp!$E$2:$E$65536)","v":0},null,null,{"$f":"SUMIF(dati_sp!$H$2:$H$65536,s_bil_std!$A26,dati_sp!$F$2:$F$65536)","v":0},null,null,{"$f":"SUMIF(dati_sp!$H$2:$H$65536,s_bil_std!$A26,dati_sp!$G$2:$G$65536)","v":0},null,null,0,0,0,0,0,null," "]
["1.B.2.92","Fondi svalutazione immobil.materiali","NO",null,"Dett.",265,null,null,null,{"$f":"SUMIF(dati_sp!$H$2:$H$65536,s_bil_std!$A27,dati_sp!$C$2:$C$65536)","v":0},null,null,{"$f":"SUMIF(dati_sp!$H$2:$H$65536,s_bil_std!$A27,dati_sp!$D$2:$D$65536)","v":0},null,null,{"$f":"SUMIF(dati_sp!$H$2:$H$65536,s_bil_std!$A27,dati_sp!$E$2:$E$65536)","v":0},null,null,{"$f":"SUMIF(dati_sp!$H$2:$H$65536,s_bil_std!$A27,dati_sp!$F$2:$F$65536)","v":0},null,null,{"$f":"SUMIF(dati_sp!$H$2:$H$65536,s_bil_std!$A27,dati_sp!$G$2:$G$65536)","v":0},null,null,0,0,0,0,0,null," "]
["1.B.3","IMMOBILIZZAZIONI FINANZIARIE","NO","Totale","Dett.",50,50,null,{"$f":"SUM(I29,I34)","v":0},{"$f":"SUMIF(dati_sp!$H$2:$H$65536,s_bil_std!$A28,dati_sp!$C$2:$C$65536)","v":0},null,{"$f":"SUM(L29,L34)","v":0},{"$f":"SUMIF(dati_sp!$H$2:$H$65536,s_bil_std!$A28,dati_sp!$D$2:$D$65536)","v":0},null,{"$f":"SUM(O29,O34)","v":0},{"$f":"SUMIF(dati_sp!$H$2:$H$65536,s_bil_std!$A28,dati_sp!$E$2:$E$65536)","v":0},null,{"$f":"SUM(R29,R34)","v":0},{"$f":"SUMIF(dati_sp!$H$2:$H$65536,s_bil_std!$A28,dati_sp!$F$2:$F$65536)","v":0},null,{"$f":"SUM(U29,U34)","v":0},{"$f":"SUMIF(dati_sp!$H$2:$H$65536,s_bil_std!$A28,dati_sp!$G$2:$G$65536)","v":0},null,null,0,0,0,0,0,null,"III -"]
["1.B.3.1","Partecipazioni","NO","Totale",null,67,67,null,{"$f":"SUM(I30:I33)","v":0},null,null,{"$f":"SUM(L30:L33)","v":0},null,null,{"$f":"SUM(O30:O33)","v":0},null,null,{"$f":"SUM(R30:R33)","v":0},null,null,{"$f":"SUM(U30:U33)","v":0},null,null,null,0,0,0,0,0,null,"1)"]
["1.B.3.1.a","Partecipazioni in imprese controllate","NO","Dett.",null,61,null,null,{"$f":"SUMIF(dati_sp!$H$2:$H$65536,s_bil_std!$A30,dati_sp!$C$2:$C$65536)","v":0},null,null,{"$f":"SUMIF(dati_sp!$H$2:$H$65536,s_bil_std!$A30,dati_sp!$D$2:$D$65536)","v":0},null,null,{"$f":"SUMIF(dati_sp!$H$2:$H$65536,s_bil_std!$A30,dati_sp!$E$2:$E$65536)","v":0},null,null,{"$f":"SUMIF(dati_sp!$H$2:$H$65536,s_bil_std!$A30,dati_sp!$F$2:$F$65536)","v":0},null,null,{"$f":"SUMIF(dati_sp!$H$2:$H$65536,s_bil_std!$A30,dati_sp!$G$2:$G$65536)","v":0},null,null,null,0,0,0,0,0,null,"a)"]
["1.B.3.1.b","Partecipazioni in imprese collegate","NO","Dett.",null,62,null,null,{"$f":"SUMIF(dati_sp!$H$2:$H$65536,s_bil_std!$A31,dati_sp!$C$2:$C$65536)","v":0},null,null,{"$f":"SUMIF(dati_sp!$H$2:$H$65536,s_bil_std!$A31,dati_sp!$D$2:$D$65536)","v":0},null,null,{"$f":"SUMIF(dati_sp!$H$2:$H$65536,s_bil_std!$A31,dati_sp!$E$2:$E$65536)","v":0},null,null,{"$f":"SUMIF(dati_sp!$H$2:$H$65536,s_bil_std!$A31,dati_sp!$F$2:$F$65536)","v":0},null,null,{"$f":"SUMIF(dati_sp!$H$2:$H$65536,s_bil_std!$A31,dati_sp!$G$2:$G$65536)","v":0},null,null,null,0,0,0,0,0,null,"b)"]
["1.B.3.1.c","Partecipazioni in imprese controllanti","NO","Dett.",null,63,null,null,{"$f":"SUMIF(dati_sp!$H$2:$H$65536,s_bil_std!$A32,dati_sp!$C$2:$C$65536)","v":0},null,null,{"$f":"SUMIF(dati_sp!$H$2:$H$65536,s_bil_std!$A32,dati_sp!$D$2:$D$65536)","v":0},null,null,{"$f":"SUMIF(dati_sp!$H$2:$H$65536,s_bil_std!$A32,dati_sp!$E$2:$E$65536)","v":0},null,null,{"$f":"SUMIF(dati_sp!$H$2:$H$65536,s_bil_std!$A32,dati_sp!$F$2:$F$65536)","v":0},null,null,{"$f":"SUMIF(dati_sp!$H$2:$H$65536,s_bil_std!$A32,dati_sp!$G$2:$G$65536)","v":0},null,null,null,0,0,0,0,0,null,"c)"]
["1.B.3.1.d","Partecipazioni in altre imprese","NO","Dett.",null,64,null,null,{"$f":"SUMIF(dati_sp!$H$2:$H$65536,s_bil_std!$A33,dati_sp!$C$2:$C$65536)","v":0},null,null,{"$f":"SUMIF(dati_sp!$H$2:$H$65536,s_bil_std!$A33,dati_sp!$D$2:$D$65536)","v":0},null,null,{"$f":"SUMIF(dati_sp!$H$2:$H$65536,s_bil_std!$A33,dati_sp!$E$2:$E$65536)","v":0},null,null,{"$f":"SUMIF(dati_sp!$H$2:$H$65536,s_bil_std!$A33,dati_sp!$F$2:$F$65536)","v":0},null,null,{"$f":"SUMIF(dati_sp!$H$2:$H$65536,s_bil_std!$A33,dati_sp!$G$2:$G$65536)","v":0},null,null,null,0,0,0,0,0,null,"d)"]
["1.B.3.2","Crediti","NO","Totale",null,65,null,null,{"$f":"SUM(I35,I38,I41,I44)","v":0},null,null,{"$f":"SUM(L35,L38,L41,L44)","v":0},null,null,{"$f":"SUM(O35,O38,O41,O44)","v":0},null,null,{"$f":"SUM(R35,R38,R41,R44)","v":0},null,null,{"$f":"SUM(U35,U38,U41,U44)","v":0},null,null,null,0,0,0,0,0,null,"2)"]
["1.B.3.2.a","Crediti verso imprese controllate","NO","Dett.",null,66,60,null,{"$f":"SUMIF(dati_sp!$H$2:$H$65536,s_bil_std!$A35,dati_sp!$C$2:$C$65536)","v":0},null,null,{"$f":"SUMIF(dati_sp!$H$2:$H$65536,s_bil_std!$A35,dati_sp!$D$2:$D$65536)","v":0},null,null,{"$f":"SUMIF(dati_sp!$H$2:$H$65536,s_bil_std!$A35,dati_sp!$E$2:$E$65536)","v":0},null,null,{"$f":"SUMIF(dati_sp!$H$2:$H$65536,s_bil_std!$A35,dati_sp!$F$2:$F$65536)","v":0},null,null,{"$f":"SUMIF(dati_sp!$H$2:$H$65536,s_bil_std!$A35,dati_sp!$G$2:$G$65536)","v":0},null,null,null,{"$f":"IF($AA$2=\"1\",I35,J35)","v":0},{"$f":"IF($AA$2=\"1\",L35,M35)","v":0},{"$f":"IF($AA$2=\"1\",O35,P35)","v":0},{"$f":"IF($AA$2=\"1\",R35,S35)","v":0},{"$f":"IF($AA$2=\"1\",U35,V35)","v":0},null,"a)"]
["1.B.3.2.a.1","Entro l'esercizio successivo","NO","Sc. Temp.",null,51,"S10",null,{"$f":"s_sep_ind!C5","v":0},null,null,{"$f":"s_sep_ind!G5","v":0},null,null,{"$f":"s_sep_ind!K5","v":0},null,null,{"$f":"s_sep_ind!O5","v":0},null,null,{"$f":"s_sep_ind!S5","v":0},null,null,null,0,0,0,0,0,null," "]
["1.B.3.2.a.2","Oltre l'esercizio successivo","NO","Sc. Temp.",null,null,null,null,{"$f":"s_sep_ind!C6+s_sep_ind!D6","v":0},null,null,{"$f":"s_sep_ind!G6+s_sep_ind!H6","v":0},null,null,{"$f":"s_sep_ind!K6+s_sep_ind!L6","v":0},null,null,{"$f":"s_sep_ind!O6+s_sep_ind!P6","v":0},null,null,{"$f":"s_sep_ind!S6+s_sep_ind!T6","v":0},null,null,null,0,0,0,0,0,null," "]
["1.B.3.2.b","Crediti verso imprese collegate","NO","Dett.",null,68,60,null,{"$f":"SUMIF(dati_sp!$H$2:$H$65536,s_bil_std!$A38,dati_sp!$C$2:$C$65536)","v":0},null,null,{"$f":"SUMIF(dati_sp!$H$2:$H$65536,s_bil_std!$A38,dati_sp!$D$2:$D$65536)","v":0},null,null,{"$f":"SUMIF(dati_sp!$H$2:$H$65536,s_bil_std!$A38,dati_sp!$E$2:$E$65536)","v":0},null,null,{"$f":"SUMIF(dati_sp!$H$2:$H$65536,s_bil_std!$A38,dati_sp!$F$2:$F$65536)","v":0},null,null,{"$f":"SUMIF(dati_sp!$H$2:$H$65536,s_bil_std!$A38,dati_sp!$G$2:$G$65536)","v":0},null,null,null,0,0,0,0,0,null,"b)"]
["1.B.3.2.b.1","Entro l'esercizio successivo","NO","Sc. Temp.",null,52,"S10",null,{"$f":"s_sep_ind!C8","v":0},null,null,{"$f":"s_sep_ind!G8","v":0},null,null,{"$f":"s_sep_ind!K8","v":0},null,null,{"$f":"s_sep_ind!O8","v":0},null,null,{"$f":"s_sep_ind!S8","v":0},null,null,null,0,0,0,0,0,null," "]
["1.B.3.2.b.2","Oltre l'esercizio successivo","NO","Sc. Temp.",null,null,null,null,{"$f":"s_sep_ind!C9+s_sep_ind!D9","v":0},null,null,{"$f":"s_sep_ind!G9+s_sep_ind!H9","v":0},null,null,{"$f":"s_sep_ind!K9+s_sep_ind!L9","v":0},null,null,{"$f":"s_sep_ind!O9+s_sep_ind!P9","v":0},null,null,{"$f":"s_sep_ind!S9+s_sep_ind!T9","v":0},null,null,null,0,0,0,0,0,null," "]
["1.B.3.2.c","Crediti verso imprese controllanti","NO","Dett.",null,69,60,null,{"$f":"SUMIF(dati_sp!$H$2:$H$65536,s_bil_std!$A41,dati_sp!$C$2:$C$65536)","v":0},null,null,{"$f":"SUMIF(dati_sp!$H$2:$H$65536,s_bil_std!$A41,dati_sp!$D$2:$D$65536)","v":0},null,null,{"$f":"SUMIF(dati_sp!$H$2:$H$65536,s_bil_std!$A41,dati_sp!$E$2:$E$65536)","v":0},null,null,{"$f":"SUMIF(dati_sp!$H$2:$H$65536,s_bil_std!$A41,dati_sp!$F$2:$F$65536)","v":0},null,null,{"$f":"SUMIF(dati_sp!$H$2:$H$65536,s_bil_std!$A41,dati_sp!$G$2:$G$65536)","v":0},null,null,null,0,0,0,0,0,null,"c)"]
["1.B.3.2.c.1","Entro l'esercizio successivo","NO","Sc. Temp.",null,53,"S10",null,{"$f":"s_sep_ind!C11","v":0},null,null,{"$f":"s_sep_ind!G11","v":0},null,null,{"$f":"s_sep_ind!K11","v":0},null,null,{"$f":"s_sep_ind!O11","v":0},null,null,{"$f":"s_sep_ind!S11","v":0},null,null,null,0,0,0,0,0,null," "]
["1.B.3.2.c.2","Oltre l'esercizio successivo","NO","Sc. Temp.",null,null,null,null,{"$f":"s_sep_ind!C12+s_sep_ind!D12","v":0},null,null,{"$f":"s_sep_ind!G12+s_sep_ind!H12","v":0},null,null,{"$f":"s_sep_ind!K12+s_sep_ind!L12","v":0},null,null,{"$f":"s_sep_ind!O12+s_sep_ind!P12","v":0},null,null,{"$f":"s_sep_ind!S12+s_sep_ind!T12","v":0},null,null,null,0,0,0,0,0,null," "]
["1.B.3.2.d","Crediti verso altri","NO","Dett.",null,71,null,null,{"$f":"SUMIF(dati_sp!$H$2:$H$65536,s_bil_std!$A44,dati_sp!$C$2:$C$65536)","v":0},null,null,{"$f":"SUMIF(dati_sp!$H$2:$H$65536,s_bil_std!$A44,dati_sp!$D$2:$D$65536)","v":0},null,null,{"$f":"SUMIF(dati_sp!$H$2:$H$65536,s_bil_std!$A44,dati_sp!$E$2:$E$65536)","v":0},null,null,{"$f":"SUMIF(dati_sp!$H$2:$H$65536,s_bil_std!$A44,dati_sp!$F$2:$F$65536)","v":0},null,null,{"$f":"SUMIF(dati_sp!$H$2:$H$65536,s_bil_std!$A44,dati_sp!$G$2:$G$65536)","v":0},null,null,null,0,0,0,0,0,null,"d)"]
["1.B.3.2.d.1","Entro l'esercizio successivo","NO","Sc. Temp.",null,54,"S10",null,{"$f":"s_sep_ind!C14","v":0},null,null,{"$f":"s_sep_ind!G14","v":0},null,null,{"$f":"s_sep_ind!K14","v":0},null,null,{"$f":"s_sep_ind!O14","v":0},null,null,{"$f":"s_sep_ind!S14","v":0},null,null,null,0,0,0,0,0,null," "]
["1.B.3.2.d.2","Oltre l'esercizio successivo","NO","Sc. Temp.",null,null,null,null,{"$f":"s_sep_ind!C15+s_sep_ind!D15","v":0},null,null,{"$f":"s_sep_ind!G15+s_sep_ind!H15","v":0},null,null,{"$f":"s_sep_ind!K15+s_sep_ind!L15","v":0},null,null,{"$f":"s_sep_ind!O15+s_sep_ind!P15","v":0},null,null,{"$f":"s_sep_ind!S15+s_sep_ind!T15","v":0},null,null,null,0,0,0,0,0,null," "]
["1.B.3.3","Altri titoli","NO","Dett.",null,72,null,null,{"$f":"SUMIF(dati_sp!$H$2:$H$65536,s_bil_std!$A47,dati_sp!$C$2:$C$65536)","v":0},null,null,{"$f":"SUMIF(dati_sp!$H$2:$H$65536,s_bil_std!$A47,dati_sp!$D$2:$D$65536)","v":0},null,null,{"$f":"SUMIF(dati_sp!$H$2:$H$65536,s_bil_std!$A47,dati_sp!$E$2:$E$65536)","v":0},null,null,{"$f":"SUMIF(dati_sp!$H$2:$H$65536,s_bil_std!$A47,dati_sp!$F$2:$F$65536)","v":0},null,null,{"$f":"SUMIF(dati_sp!$H$2:$H$65536,s_bil_std!$A47,dati_sp!$G$2:$G$65536)","v":0},null,null,null,0,0,0,0,0,null,"3)"]
["1.B.3.4","Azioni proprie","NO","Dett.",null,260,260,null,{"$f":"SUMIF(dati_sp!$H$2:$H$65536,s_bil_std!$A48,dati_sp!$C$2:$C$65536)","v":0},null,null,{"$f":"SUMIF(dati_sp!$H$2:$H$65536,s_bil_std!$A48,dati_sp!$D$2:$D$65536)","v":0},null,null,{"$f":"SUMIF(dati_sp!$H$2:$H$65536,s_bil_std!$A48,dati_sp!$E$2:$E$65536)","v":0},null,null,{"$f":"SUMIF(dati_sp!$H$2:$H$65536,s_bil_std!$A48,dati_sp!$F$2:$F$65536)","v":0},null,null,{"$f":"SUMIF(dati_sp!$H$2:$H$65536,s_bil_std!$A48,dati_sp!$G$2:$G$65536)","v":0},null,null,null,0,0,0,0,0,null,"4)"]
["1.C","ATTIVO CIRCOLANTE","NO","Totale","Totale",70,70,null,{"$f":"SUM(I50,I56,I80,I87)","v":249617},{"$f":"SUM(J50,J56,J80,J87)","v":0},null,{"$f":"SUM(L50,L56,L80,L87)","v":184958},{"$f":"SUM(M50,M56,M80,M87)","v":0},null,{"$f":"SUM(O50,O56,O80,O87)","v":0},{"$f":"SUM(P50,P56,P80,P87)","v":0},null,{"$f":"SUM(R50,R56,R80,R87)","v":0},{"$f":"SUM(S50,S56,S80,S87)","v":0},null,{"$f":"SUM(U50,U56,U80,U87)","v":0},{"$f":"SUM(V50,V56,V80,V87)","v":0},null,null,0,0,0,0,0,null,"C)"]
["1.C.1","RIMANENZE","NO","Totale","Dett.",80,80,null,{"$f":"SUM(I51:I55)","v":172855},{"$f":"SUMIF(dati_sp!$H$2:$H$65536,s_bil_std!$A50,dati_sp!$C$2:$C$65536)","v":0},null,{"$f":"SUM(L51:L55)","v":172855},{"$f":"SUMIF(dati_sp!$H$2:$H$65536,s_bil_std!$A50,dati_sp!$D$2:$D$65536)","v":0},null,{"$f":"SUM(O51:O55)","v":0},{"$f":"SUMIF(dati_sp!$H$2:$H$65536,s_bil_std!$A50,dati_sp!$E$2:$E$65536)","v":0},null,{"$f":"SUM(R51:R55)","v":0},{"$f":"SUMIF(dati_sp!$H$2:$H$65536,s_bil_std!$A50,dati_sp!$F$2:$F$65536)","v":0},null,{"$f":"SUM(U51:U55)","v":0},{"$f":"SUMIF(dati_sp!$H$2:$H$65536,s_bil_std!$A50,dati_sp!$G$2:$G$65536)","v":0},null,null,0,0,0,0,0,null,"I - "]
["1.C.1.1","Materie prime, sussidiarie e di consumo","NO","Dett.",null,81,null,null,{"$f":"SUMIF(dati_sp!$H$2:$H$65536,s_bil_std!$A51,dati_sp!$C$2:$C$65536)","v":0},null,null,{"$f":"SUMIF(dati_sp!$H$2:$H$65536,s_bil_std!$A51,dati_sp!$D$2:$D$65536)","v":0},null,null,{"$f":"SUMIF(dati_sp!$H$2:$H$65536,s_bil_std!$A51,dati_sp!$E$2:$E$65536)","v":0},null,null,{"$f":"SUMIF(dati_sp!$H$2:$H$65536,s_bil_std!$A51,dati_sp!$F$2:$F$65536)","v":0},null,null,{"$f":"SUMIF(dati_sp!$H$2:$H$65536,s_bil_std!$A51,dati_sp!$G$2:$G$65536)","v":0},null,null,null,0,0,0,0,0,null,"1)"]
["1.C.1.2","Prodotti in corso di lavorazione e semilavorati","NO","Dett.",null,83,82,null,{"$f":"SUMIF(dati_sp!$H$2:$H$65536,s_bil_std!$A52,dati_sp!$C$2:$C$65536)","v":172855},null,null,{"$f":"SUMIF(dati_sp!$H$2:$H$65536,s_bil_std!$A52,dati_sp!$D$2:$D$65536)","v":172855},null,null,{"$f":"SUMIF(dati_sp!$H$2:$H$65536,s_bil_std!$A52,dati_sp!$E$2:$E$65536)","v":0},null,null,{"$f":"SUMIF(dati_sp!$H$2:$H$65536,s_bil_std!$A52,dati_sp!$F$2:$F$65536)","v":0},null,null,{"$f":"SUMIF(dati_sp!$H$2:$H$65536,s_bil_std!$A52,dati_sp!$G$2:$G$65536)","v":0},null,null,null,0,0,0,0,0,null,"2)"]
["1.C.1.3","Lavori in corso su ordinazione","NO","Dett.",null,84,null,null,{"$f":"SUMIF(dati_sp!$H$2:$H$65536,s_bil_std!$A53,dati_sp!$C$2:$C$65536)","v":0},null,null,{"$f":"SUMIF(dati_sp!$H$2:$H$65536,s_bil_std!$A53,dati_sp!$D$2:$D$65536)","v":0},null,null,{"$f":"SUMIF(dati_sp!$H$2:$H$65536,s_bil_std!$A53,dati_sp!$E$2:$E$65536)","v":0},null,null,{"$f":"SUMIF(dati_sp!$H$2:$H$65536,s_bil_std!$A53,dati_sp!$F$2:$F$65536)","v":0},null,null,{"$f":"SUMIF(dati_sp!$H$2:$H$65536,s_bil_std!$A53,dati_sp!$G$2:$G$65536)","v":0},null,null,null,0,0,0,0,0,null,"3)"]
["1.C.1.4","Prodotti finiti e merci","NO","Dett.",null,85,82,null,{"$f":"SUMIF(dati_sp!$H$2:$H$65536,s_bil_std!$A54,dati_sp!$C$2:$C$65536)","v":0},null,null,{"$f":"SUMIF(dati_sp!$H$2:$H$65536,s_bil_std!$A54,dati_sp!$D$2:$D$65536)","v":0},null,null,{"$f":"SUMIF(dati_sp!$H$2:$H$65536,s_bil_std!$A54,dati_sp!$E$2:$E$65536)","v":0},null,null,{"$f":"SUMIF(dati_sp!$H$2:$H$65536,s_bil_std!$A54,dati_sp!$F$2:$F$65536)","v":0},null,null,{"$f":"SUMIF(dati_sp!$H$2:$H$65536,s_bil_std!$A54,dati_sp!$G$2:$G$65536)","v":0},null,null,null,0,0,0,0,0,null,"4)"]
["1.C.1.5","Acconti","NO","Dett.",null,86,null,null,{"$f":"SUMIF(dati_sp!$H$2:$H$65536,s_bil_std!$A55,dati_sp!$C$2:$C$65536)","v":0},null,null,{"$f":"SUMIF(dati_sp!$H$2:$H$65536,s_bil_std!$A55,dati_sp!$D$2:$D$65536)","v":0},null,null,{"$f":"SUMIF(dati_sp!$H$2:$H$65536,s_bil_std!$A55,dati_sp!$E$2:$E$65536)","v":0},null,null,{"$f":"SUMIF(dati_sp!$H$2:$H$65536,s_bil_std!$A55,dati_sp!$F$2:$F$65536)","v":0},null,null,{"$f":"SUMIF(dati_sp!$H$2:$H$65536,s_bil_std!$A55,dati_sp!$G$2:$G$65536)","v":0},null,null,null,0,0,0,0,0,null,"5)"]
["1.C.2","CREDITI CHE NON COSTITUISCONO IMMOBILIZZAZIONI","NO","Totale","Dett.",90,90,null,{"$f":"SUM(I59,I62,I65,I68,I71,I74,I77)","v":76581},{"$f":"SUMIF(dati_sp!$H$2:$H$65536,s_bil_std!$A56,dati_sp!$C$2:$C$65536)","v":0},null,{"$f":"SUM(L59,L62,L65,L68,L71,L74,L77)","v":4581},{"$f":"SUMIF(dati_sp!$H$2:$H$65536,s_bil_std!$A56,dati_sp!$D$2:$D$65536)","v":0},null,{"$f":"SUM(O59,O62,O65,O68,O71,O74,O77)","v":0},{"$f":"SUMIF(dati_sp!$H$2:$H$65536,s_bil_std!$A56,dati_sp!$E$2:$E$65536)","v":0},null,{"$f":"SUM(R59,R62,R65,R68,R71,R74,R77)","v":0},{"$f":"SUMIF(dati_sp!$H$2:$H$65536,s_bil_std!$A56,dati_sp!$F$2:$F$65536)","v":0},null,{"$f":"SUM(U59,U62,U65,U68,U71,U74,U77)","v":0},{"$f":"SUMIF(dati_sp!$H$2:$H$65536,s_bil_std!$A56,dati_sp!$G$2:$G$65536)","v":0},null,null,0,0,0,0,0,null,"II -"]
["1.C.2.a","Entro l'esercizio successivo","NO",null,"Sc. Temp.","S200",100,null,{"$f":"SUM(I60,I63,I66,I69,I72,I75,I78)","v":76581},{"$f":"s_sep_ind!E19+s_sep_ind!F19","v":0},null,{"$f":"SUM(L60,L63,L66,L69,L72,L75,L78)","v":4581},{"$f":"s_sep_ind!I19+s_sep_ind!J19","v":0},null,{"$f":"SUM(O60,O63,O66,O69,O72,O75,O78)","v":0},{"$f":"s_sep_ind!M19+s_sep_ind!N19","v":0},null,{"$f":"SUM(R60,R63,R66,R69,R72,R75,R78)","v":0},{"$f":"s_sep_ind!Q19+s_sep_ind!R19","v":0},null,{"$f":"SUM(U60,U63,U66,U69,U72,U75,U78)","v":0},{"$f":"s_sep_ind!U19+s_sep_ind!V19","v":0},null,null,0,0,0,0,0,null," "]
["1.C.2.b","Oltre l'esercizio successivo","NO",null,"Sc. Temp.",99,"S20",null,{"$f":"SUM(I61,I64,I67,I70,I73,I76,I79)","v":0},{"$f":"s_sep_ind!E20","v":0},null,{"$f":"SUM(L61,L64,L67,L70,L73,L76,L79)","v":0},{"$f":"s_sep_ind!I20","v":0},null,{"$f":"SUM(O61,O64,O67,O70,O73,O76,O79)","v":0},{"$f":"s_sep_ind!M20","v":0},null,{"$f":"SUM(R61,R64,R67,R70,R73,R76,R79)","v":0},{"$f":"s_sep_ind!Q20","v":0},null,{"$f":"SUM(U61,U64,U67,U70,U73,U76,U79)","v":0},{"$f":"s_sep_ind!U20","v":0},null,null,0,0,0,0,0,null," "]
["1.C.2.1","Crediti verso clienti","NO","Dett.",null,102,102,null,{"$f":"SUMIF(dati_sp!$H$2:$H$65536,s_bil_std!$A59,dati_sp!$C$2:$C$65536)","v":72000},null,null,{"$f":"SUMIF(dati_sp!$H$2:$H$65536,s_bil_std!$A59,dati_sp!$D$2:$D$65536)","v":0},null,null,{"$f":"SUMIF(dati_sp!$H$2:$H$65536,s_bil_std!$A59,dati_sp!$E$2:$E$65536)","v":0},null,null,{"$f":"SUMIF(dati_sp!$H$2:$H$65536,s_bil_std!$A59,dati_sp!$F$2:$F$65536)","v":0},null,null,{"$f":"SUMIF(dati_sp!$H$2:$H$65536,s_bil_std!$A59,dati_sp!$G$2:$G$65536)","v":0},null,null,null,0,0,0,0,0,null,"1)"]
["1.C.2.1.1","Entro l'esercizio successivo","NO","Sc. Temp.",null,null,null,null,{"$f":"s_sep_ind!C22+s_sep_ind!D22","v":72000},null,null,{"$f":"s_sep_ind!G22+s_sep_ind!H22","v":0},null,null,{"$f":"s_sep_ind!K22+s_sep_ind!L22","v":0},null,null,{"$f":"s_sep_ind!O22+s_sep_ind!P22","v":0},null,null,{"$f":"s_sep_ind!S22+s_sep_ind!T22","v":0},null,null,null,0,0,0,0,0,null," "]
["1.C.2.1.2","Oltre l'esercizio successivo","NO","Sc. Temp.",null,103,null,null,{"$f":"s_sep_ind!C23","v":0},null,null,{"$f":"s_sep_ind!G23","v":0},null,null,{"$f":"s_sep_ind!K23","v":0},null,null,{"$f":"s_sep_ind!O23","v":0},null,null,{"$f":"s_sep_ind!S23","v":0},null,null,null,0,0,0,0,0]
["1.C.2.2","Crediti verso imprese controllate","NO","Dett.",null,91,null,null,{"$f":"SUMIF(dati_sp!$H$2:$H$65536,s_bil_std!$A62,dati_sp!$C$2:$C$65536)","v":0},null,null,{"$f":"SUMIF(dati_sp!$H$2:$H$65536,s_bil_std!$A62,dati_sp!$D$2:$D$65536)","v":0},null,null,{"$f":"SUMIF(dati_sp!$H$2:$H$65536,s_bil_std!$A62,dati_sp!$E$2:$E$65536)","v":0},null,null,{"$f":"SUMIF(dati_sp!$H$2:$H$65536,s_bil_std!$A62,dati_sp!$F$2:$F$65536)","v":0},null,null,{"$f":"SUMIF(dati_sp!$H$2:$H$65536,s_bil_std!$A62,dati_sp!$G$2:$G$65536)","v":0},null,null,null,0,0,0,0,0,null,"2)"]
["1.C.2.2.1","Entro l'esercizio successivo","NO","Sc. Temp.",null,null,null,null,{"$f":"s_sep_ind!C25+s_sep_ind!D25","v":0},null,null,{"$f":"s_sep_ind!G25+s_sep_ind!H25","v":0},null,null,{"$f":"s_sep_ind!K25+s_sep_ind!L25","v":0},null,null,{"$f":"s_sep_ind!O25+s_sep_ind!P25","v":0},null,null,{"$f":"s_sep_ind!S25+s_sep_ind!T25","v":0},null,null,null,0,0,0,0,0,null," "]
["1.C.2.2.2","Oltre l'esercizio successivo","NO","Sc. Temp.",null,92,null,null,{"$f":"s_sep_ind!C26","v":0},null,null,{"$f":"s_sep_ind!G26","v":0},null,null,{"$f":"s_sep_ind!K26","v":0},null,null,{"$f":"s_sep_ind!O26","v":0},null,null,{"$f":"s_sep_ind!S26","v":0},null,null,null,0,0,0,0,0,null," "]
["1.C.2.3","Crediti verso imprese collegate","NO","Dett.",null,93,null,null,{"$f":"SUMIF(dati_sp!$H$2:$H$65536,s_bil_std!$A65,dati_sp!$C$2:$C$65536)","v":0},null,null,{"$f":"SUMIF(dati_sp!$H$2:$H$65536,s_bil_std!$A65,dati_sp!$D$2:$D$65536)","v":0},null,null,{"$f":"SUMIF(dati_sp!$H$2:$H$65536,s_bil_std!$A65,dati_sp!$E$2:$E$65536)","v":0},null,null,{"$f":"SUMIF(dati_sp!$H$2:$H$65536,s_bil_std!$A65,dati_sp!$F$2:$F$65536)","v":0},null,null,{"$f":"SUMIF(dati_sp!$H$2:$H$65536,s_bil_std!$A65,dati_sp!$G$2:$G$65536)","v":0},null,null,null,0,0,0,0,0,null,"3)"]
["1.C.2.3.1","Entro l'esercizio successivo","NO","Sc. Temp.",null,null,null,null,{"$f":"s_sep_ind!C28+s_sep_ind!D28","v":0},null,null,{"$f":"s_sep_ind!G28+s_sep_ind!H28","v":0},null,null,{"$f":"s_sep_ind!K28+s_sep_ind!L28","v":0},null,null,{"$f":"s_sep_ind!O28+s_sep_ind!P28","v":0},null,null,{"$f":"s_sep_ind!S28+s_sep_ind!T28","v":0},null,null,null,0,0,0,0,0,null," "]
["1.C.2.3.2","Oltre l'esercizio successivo","NO","Sc. Temp.",null,94,null,null,{"$f":"s_sep_ind!C29","v":0},null,null,{"$f":"s_sep_ind!G29","v":0},null,null,{"$f":"s_sep_ind!K29","v":0},null,null,{"$f":"s_sep_ind!O29","v":0},null,null,{"$f":"s_sep_ind!S29","v":0},null,null,null,{"$f":"IF($AA$2=\"1\",I67,J67)","v":0},{"$f":"IF($AA$2=\"1\",L67,M67)","v":0},{"$f":"IF($AA$2=\"1\",O67,P67)","v":0},{"$f":"IF($AA$2=\"1\",R67,S67)","v":0},{"$f":"IF($AA$2=\"1\",U67,V67)","v":0},null," "]
["1.C.2.4","Crediti verso imprese controllanti","NO","Dett.",null,95,null,null,{"$f":"SUMIF(dati_sp!$H$2:$H$65536,s_bil_std!$A68,dati_sp!$C$2:$C$65536)","v":0},null,null,{"$f":"SUMIF(dati_sp!$H$2:$H$65536,s_bil_std!$A68,dati_sp!$D$2:$D$65536)","v":0},null,null,{"$f":"SUMIF(dati_sp!$H$2:$H$65536,s_bil_std!$A68,dati_sp!$E$2:$E$65536)","v":0},null,null,{"$f":"SUMIF(dati_sp!$H$2:$H$65536,s_bil_std!$A68,dati_sp!$F$2:$F$65536)","v":0},null,null,{"$f":"SUMIF(dati_sp!$H$2:$H$65536,s_bil_std!$A68,dati_sp!$G$2:$G$65536)","v":0},null,null,null,0,0,0,0,0,null,"4)"]
["1.C.2.4.1","Entro l'esercizio successivo","NO","Sc. Temp.",null,null,null,null,{"$f":"s_sep_ind!C31+s_sep_ind!D31","v":0},null,null,{"$f":"s_sep_ind!G31+s_sep_ind!H31","v":0},null,null,{"$f":"s_sep_ind!K31+s_sep_ind!L31","v":0},null,null,{"$f":"s_sep_ind!O31+s_sep_ind!P31","v":0},null,null,{"$f":"s_sep_ind!S31+s_sep_ind!T31","v":0},null,null,null,0,0,0,0,0,null," "]
["1.C.2.4.2","Oltre l'esercizio successivo","NO","Sc. Temp.",null,96,null,null,{"$f":"s_sep_ind!C32","v":0},null,null,{"$f":"s_sep_ind!G32","v":0},null,null,{"$f":"s_sep_ind!K32","v":0},null,null,{"$f":"s_sep_ind!O32","v":0},null,null,{"$f":"s_sep_ind!S32","v":0},null,null,null,0,0,0,0,0,null," "]
["1.C.2.4a","Crediti tributari","NO","Dett.",null,11200,null,null,{"$f":"SUMIF(dati_sp!$H$2:$H$65536,s_bil_std!$A71,dati_sp!$C$2:$C$65536)","v":783},null,null,{"$f":"SUMIF(dati_sp!$H$2:$H$65536,s_bil_std!$A71,dati_sp!$D$2:$D$65536)","v":783},null,null,{"$f":"SUMIF(dati_sp!$H$2:$H$65536,s_bil_std!$A71,dati_sp!$E$2:$E$65536)","v":0},null,null,{"$f":"SUMIF(dati_sp!$H$2:$H$65536,s_bil_std!$A71,dati_sp!$F$2:$F$65536)","v":0},null,null,{"$f":"SUMIF(dati_sp!$H$2:$H$65536,s_bil_std!$A71,dati_sp!$G$2:$G$65536)","v":0},null,null,null,0,0,0,0,0,null,"4-bis)"]
["1.C.2.4a.1","Entro l'esercizio successivo","NO","Sc. Temp.",null,null,null,null,{"$f":"s_sep_ind!C34+s_sep_ind!D34","v":783},null,null,{"$f":"s_sep_ind!G34+s_sep_ind!H34","v":783},null,null,{"$f":"s_sep_ind!K34+s_sep_ind!L34","v":0},null,null,{"$f":"s_sep_ind!O34+s_sep_ind!P34","v":0},null,null,{"$f":"s_sep_ind!S34+s_sep_ind!T34","v":0},null,null,null,0,0,0,0,0,null," "]
["1.C.2.4a.2","Oltre l'esercizio successivo","NO","Sc. Temp.",null,11250,null,null,{"$f":"s_sep_ind!C35","v":0},null,null,{"$f":"s_sep_ind!G35","v":0},null,null,{"$f":"s_sep_ind!K35","v":0},null,null,{"$f":"s_sep_ind!O35","v":0},null,null,{"$f":"s_sep_ind!S35","v":0},null,null,null,0,0,0,0,0,null," "]
["1.C.2.4b","Imposte anticipate","NO","Dett.",null,11300,null,null,{"$f":"SUMIF(dati_sp!$H$2:$H$65536,s_bil_std!$A74,dati_sp!$C$2:$C$65536)","v":0},null,null,{"$f":"SUMIF(dati_sp!$H$2:$H$65536,s_bil_std!$A74,dati_sp!$D$2:$D$65536)","v":0},null,null,{"$f":"SUMIF(dati_sp!$H$2:$H$65536,s_bil_std!$A74,dati_sp!$E$2:$E$65536)","v":0},null,null,{"$f":"SUMIF(dati_sp!$H$2:$H$65536,s_bil_std!$A74,dati_sp!$F$2:$F$65536)","v":0},null,null,{"$f":"SUMIF(dati_sp!$H$2:$H$65536,s_bil_std!$A74,dati_sp!$G$2:$G$65536)","v":0},null,null,null,0,0,0,0,0,null,"4-ter)"]
["1.C.2.4b.1","Entro l'esercizio successivo","NO","Sc. Temp.",null,null,null,null,{"$f":"s_sep_ind!C37+s_sep_ind!D37","v":0},null,null,{"$f":"s_sep_ind!G37+s_sep_ind!H37","v":0},null,null,{"$f":"s_sep_ind!K37+s_sep_ind!L37","v":0},null,null,{"$f":"s_sep_ind!O37+s_sep_ind!P37","v":0},null,null,{"$f":"s_sep_ind!S37+s_sep_ind!T37","v":0},null,null,null,0,0,0,0,0,null," "]
["1.C.2.4b.2","Oltre l'esercizio successivo","NO","Sc. Temp.",null,97,null,null,{"$f":"s_sep_ind!C38","v":0},null,null,{"$f":"s_sep_ind!G38","v":0},null,null,{"$f":"s_sep_ind!K38","v":0},null,null,{"$f":"s_sep_ind!O38","v":0},null,null,{"$f":"s_sep_ind!S38","v":0},null,null,null,0,0,0,0,0,null," "]
["1.C.2.5","Crediti verso altri","NO","Dett.",null,11350,null,null,{"$f":"SUMIF(dati_sp!$H$2:$H$65536,s_bil_std!$A77,dati_sp!$C$2:$C$65536)","v":3798},null,null,{"$f":"SUMIF(dati_sp!$H$2:$H$65536,s_bil_std!$A77,dati_sp!$D$2:$D$65536)","v":3798},null,null,{"$f":"SUMIF(dati_sp!$H$2:$H$65536,s_bil_std!$A77,dati_sp!$E$2:$E$65536)","v":0},null,null,{"$f":"SUMIF(dati_sp!$H$2:$H$65536,s_bil_std!$A77,dati_sp!$F$2:$F$65536)","v":0},null,null,{"$f":"SUMIF(dati_sp!$H$2:$H$65536,s_bil_std!$A77,dati_sp!$G$2:$G$65536)","v":0},null,null,null,0,0,0,0,0,null,"5)"]
["1.C.2.5.1","Entro l'esercizio successivo","NO","Sc. Temp.",null,null,null,null,{"$f":"s_sep_ind!C40+s_sep_ind!D40","v":3798},null,null,{"$f":"s_sep_ind!G40+s_sep_ind!H40","v":3798},null,null,{"$f":"s_sep_ind!K40+s_sep_ind!L40","v":0},null,null,{"$f":"s_sep_ind!O40+s_sep_ind!P40","v":0},null,null,{"$f":"s_sep_ind!S40+s_sep_ind!T40","v":0},null,null,null,0,0,0,0,0,null," "]
["1.C.2.5.2","Oltre l'esercizio successivo","NO","Sc. Temp.",null,98,null,null,{"$f":"s_sep_ind!C41","v":0},null,null,{"$f":"s_sep_ind!G41","v":0},null,null,{"$f":"s_sep_ind!K41","v":0},null,null,{"$f":"s_sep_ind!O41","v":0},null,null,{"$f":"s_sep_ind!S41","v":0},null,null,null,0,0,0,0,0,null," "]
["1.C.3","ATTIVITA' FINANZIARIE CHE NON COSTITUISCONO IMMOBILIZZAZIONE","NO","Totale","Dett.",110,110,null,{"$f":"SUM(I81:I86)","v":0},{"$f":"SUMIF(dati_sp!$H$2:$H$65536,s_bil_std!$A80,dati_sp!$C$2:$C$65536)","v":0},null,{"$f":"SUM(L81:L86)","v":0},{"$f":"SUMIF(dati_sp!$H$2:$H$65536,s_bil_std!$A80,dati_sp!$D$2:$D$65536)","v":0},null,{"$f":"SUM(O81:O86)","v":0},{"$f":"SUMIF(dati_sp!$H$2:$H$65536,s_bil_std!$A80,dati_sp!$E$2:$E$65536)","v":0},null,{"$f":"SUM(R81:R86)","v":0},{"$f":"SUMIF(dati_sp!$H$2:$H$65536,s_bil_std!$A80,dati_sp!$F$2:$F$65536)","v":0},null,{"$f":"SUM(U81:U86)","v":0},{"$f":"SUMIF(dati_sp!$H$2:$H$65536,s_bil_std!$A80,dati_sp!$G$2:$G$65536)","v":0},null,null,0,0,0,0,0,null,"III -"]
["1.C.3.1","Partecipazioni in imprese controllate","NO","Dett.",null,111,null,null,{"$f":"SUMIF(dati_sp!$H$2:$H$65536,s_bil_std!$A81,dati_sp!$C$2:$C$65536)","v":0},null,null,{"$f":"SUMIF(dati_sp!$H$2:$H$65536,s_bil_std!$A81,dati_sp!$D$2:$D$65536)","v":0},null,null,{"$f":"SUMIF(dati_sp!$H$2:$H$65536,s_bil_std!$A81,dati_sp!$E$2:$E$65536)","v":0},null,null,{"$f":"SUMIF(dati_sp!$H$2:$H$65536,s_bil_std!$A81,dati_sp!$F$2:$F$65536)","v":0},null,null,{"$f":"SUMIF(dati_sp!$H$2:$H$65536,s_bil_std!$A81,dati_sp!$G$2:$G$65536)","v":0},null,null,null,0,0,0,0,0,null,"1)"]
["1.C.3.2","Partecipazioni in imprese collegate","NO","Dett.",null,112,null,null,{"$f":"SUMIF(dati_sp!$H$2:$H$65536,s_bil_std!$A82,dati_sp!$C$2:$C$65536)","v":0},null,null,{"$f":"SUMIF(dati_sp!$H$2:$H$65536,s_bil_std!$A82,dati_sp!$D$2:$D$65536)","v":0},null,null,{"$f":"SUMIF(dati_sp!$H$2:$H$65536,s_bil_std!$A82,dati_sp!$E$2:$E$65536)","v":0},null,null,{"$f":"SUMIF(dati_sp!$H$2:$H$65536,s_bil_std!$A82,dati_sp!$F$2:$F$65536)","v":0},null,null,{"$f":"SUMIF(dati_sp!$H$2:$H$65536,s_bil_std!$A82,dati_sp!$G$2:$G$65536)","v":0},null,null,null,0,0,0,0,0,null,"2)"]
["1.C.3.3","Partecipazioni in imprese controllanti","NO","Dett.",null,113,null,null,{"$f":"SUMIF(dati_sp!$H$2:$H$65536,s_bil_std!$A83,dati_sp!$C$2:$C$65536)","v":0},null,null,{"$f":"SUMIF(dati_sp!$H$2:$H$65536,s_bil_std!$A83,dati_sp!$D$2:$D$65536)","v":0},null,null,{"$f":"SUMIF(dati_sp!$H$2:$H$65536,s_bil_std!$A83,dati_sp!$E$2:$E$65536)","v":0},null,null,{"$f":"SUMIF(dati_sp!$H$2:$H$65536,s_bil_std!$A83,dati_sp!$F$2:$F$65536)","v":0},null,null,{"$f":"SUMIF(dati_sp!$H$2:$H$65536,s_bil_std!$A83,dati_sp!$G$2:$G$65536)","v":0},null,null,null,0,0,0,0,0,null,"3)"]
["1.C.3.4","Altre partecipazioni","NO","Dett.",null,114,null,null,{"$f":"SUMIF(dati_sp!$H$2:$H$65536,s_bil_std!$A84,dati_sp!$C$2:$C$65536)","v":0},null,null,{"$f":"SUMIF(dati_sp!$H$2:$H$65536,s_bil_std!$A84,dati_sp!$D$2:$D$65536)","v":0},null,null,{"$f":"SUMIF(dati_sp!$H$2:$H$65536,s_bil_std!$A84,dati_sp!$E$2:$E$65536)","v":0},null,null,{"$f":"SUMIF(dati_sp!$H$2:$H$65536,s_bil_std!$A84,dati_sp!$F$2:$F$65536)","v":0},null,null,{"$f":"SUMIF(dati_sp!$H$2:$H$65536,s_bil_std!$A84,dati_sp!$G$2:$G$65536)","v":0},null,null,null,0,0,0,0,0,null,"4)"]
["1.C.3.5","Azioni proprie","NO","Dett.",null,115,null,null,{"$f":"SUMIF(dati_sp!$H$2:$H$65536,s_bil_std!$A85,dati_sp!$C$2:$C$65536)","v":0},null,null,{"$f":"SUMIF(dati_sp!$H$2:$H$65536,s_bil_std!$A85,dati_sp!$D$2:$D$65536)","v":0},null,null,{"$f":"SUMIF(dati_sp!$H$2:$H$65536,s_bil_std!$A85,dati_sp!$E$2:$E$65536)","v":0},null,null,{"$f":"SUMIF(dati_sp!$H$2:$H$65536,s_bil_std!$A85,dati_sp!$F$2:$F$65536)","v":0},null,null,{"$f":"SUMIF(dati_sp!$H$2:$H$65536,s_bil_std!$A85,dati_sp!$G$2:$G$65536)","v":0},null,null,null,0,0,0,0,0,null,"5)"]
["1.C.3.6","Altri titoli","NO","Dett.",null,116,null,null,{"$f":"SUMIF(dati_sp!$H$2:$H$65536,s_bil_std!$A86,dati_sp!$C$2:$C$65536)","v":0},null,null,{"$f":"SUMIF(dati_sp!$H$2:$H$65536,s_bil_std!$A86,dati_sp!$D$2:$D$65536)","v":0},null,null,{"$f":"SUMIF(dati_sp!$H$2:$H$65536,s_bil_std!$A86,dati_sp!$E$2:$E$65536)","v":0},null,null,{"$f":"SUMIF(dati_sp!$H$2:$H$65536,s_bil_std!$A86,dati_sp!$F$2:$F$65536)","v":0},null,null,{"$f":"SUMIF(dati_sp!$H$2:$H$65536,s_bil_std!$A86,dati_sp!$G$2:$G$65536)","v":0},null,null,null,0,0,0,0,0,null,"6)"]
["1.C.4","DISPONIBILITA' LIQUIDE","NO","Totale","Dett.",120,120,null,{"$f":"SUM(I88:I90)","v":181},{"$f":"SUMIF(dati_sp!$H$2:$H$65536,s_bil_std!$A87,dati_sp!$C$2:$C$65536)","v":0},null,{"$f":"SUM(L88:L90)","v":7522},{"$f":"SUMIF(dati_sp!$H$2:$H$65536,s_bil_std!$A87,dati_sp!$D$2:$D$65536)","v":0},null,{"$f":"SUM(O88:O90)","v":0},{"$f":"SUMIF(dati_sp!$H$2:$H$65536,s_bil_std!$A87,dati_sp!$E$2:$E$65536)","v":0},null,{"$f":"SUM(R88:R90)","v":0},{"$f":"SUMIF(dati_sp!$H$2:$H$65536,s_bil_std!$A87,dati_sp!$F$2:$F$65536)","v":0},null,{"$f":"SUM(U88:U90)","v":0},{"$f":"SUMIF(dati_sp!$H$2:$H$65536,s_bil_std!$A87,dati_sp!$G$2:$G$65536)","v":0},null,null,0,0,0,0,0,null,"IV -"]
["1.C.4.1","Depositi bancari e postali","NO","Dett.",null,121,null,null,{"$f":"SUMIF(dati_sp!$H$2:$H$65536,s_bil_std!$A88,dati_sp!$C$2:$C$65536)","v":0},null,null,{"$f":"SUMIF(dati_sp!$H$2:$H$65536,s_bil_std!$A88,dati_sp!$D$2:$D$65536)","v":7341},null,null,{"$f":"SUMIF(dati_sp!$H$2:$H$65536,s_bil_std!$A88,dati_sp!$E$2:$E$65536)","v":0},null,null,{"$f":"SUMIF(dati_sp!$H$2:$H$65536,s_bil_std!$A88,dati_sp!$F$2:$F$65536)","v":0},null,null,{"$f":"SUMIF(dati_sp!$H$2:$H$65536,s_bil_std!$A88,dati_sp!$G$2:$G$65536)","v":0},null,null,null,0,0,0,0,0,null,"1)"]
["1.C.4.2","Assegni","NO","Dett.",null,122,null,null,{"$f":"SUMIF(dati_sp!$H$2:$H$65536,s_bil_std!$A89,dati_sp!$C$2:$C$65536)","v":0},null,null,{"$f":"SUMIF(dati_sp!$H$2:$H$65536,s_bil_std!$A89,dati_sp!$D$2:$D$65536)","v":0},null,null,{"$f":"SUMIF(dati_sp!$H$2:$H$65536,s_bil_std!$A89,dati_sp!$E$2:$E$65536)","v":0},null,null,{"$f":"SUMIF(dati_sp!$H$2:$H$65536,s_bil_std!$A89,dati_sp!$F$2:$F$65536)","v":0},null,null,{"$f":"SUMIF(dati_sp!$H$2:$H$65536,s_bil_std!$A89,dati_sp!$G$2:$G$65536)","v":0},null,null,null,0,0,0,0,0,null,"2)"]
["1.C.4.3","Denaro e valori in cassa","NO","Dett.",null,123,null,null,{"$f":"SUMIF(dati_sp!$H$2:$H$65536,s_bil_std!$A90,dati_sp!$C$2:$C$65536)","v":181},null,null,{"$f":"SUMIF(dati_sp!$H$2:$H$65536,s_bil_std!$A90,dati_sp!$D$2:$D$65536)","v":181},null,null,{"$f":"SUMIF(dati_sp!$H$2:$H$65536,s_bil_std!$A90,dati_sp!$E$2:$E$65536)","v":0},null,null,{"$f":"SUMIF(dati_sp!$H$2:$H$65536,s_bil_std!$A90,dati_sp!$F$2:$F$65536)","v":0},null,null,{"$f":"SUMIF(dati_sp!$H$2:$H$65536,s_bil_std!$A90,dati_sp!$G$2:$G$65536)","v":0},null,null,null,0,0,0,0,0,null,"3)"]
["1.D","RATEI E RISCONTI ATTIVI","NO","Totale","Totale",130,130,null,{"$f":"SUM(I92:I93)","v":0},{"$f":"SUMIF(dati_sp!$H$2:$H$65536,s_bil_std!$A91,dati_sp!$C$2:$C$65536)","v":0},null,{"$f":"SUM(L92:L93)","v":0},{"$f":"SUMIF(dati_sp!$H$2:$H$65536,s_bil_std!$A91,dati_sp!$D$2:$D$65536)","v":0},null,{"$f":"SUM(O92:O93)","v":0},{"$f":"SUMIF(dati_sp!$H$2:$H$65536,s_bil_std!$A91,dati_sp!$E$2:$E$65536)","v":0},null,{"$f":"SUM(R92:R93)","v":0},{"$f":"SUMIF(dati_sp!$H$2:$H$65536,s_bil_std!$A91,dati_sp!$F$2:$F$65536)","v":0},null,{"$f":"SUM(U92:U93)","v":0},{"$f":"SUMIF(dati_sp!$H$2:$H$65536,s_bil_std!$A91,dati_sp!$G$2:$G$65536)","v":0},null,null,0,0,0,0,0,null,"D)"]
["1.D.1","Disaggio su prestiti","NO","Dett.","Dett.",131,null,null,{"$f":"SUMIF(dati_sp!$H$2:$H$65536,s_bil_std!$A92,dati_sp!$C$2:$C$65536)","v":0},{"$f":"SUMIF(dati_sp!$H$2:$H$65536,s_bil_std!$A92,dati_sp!$C$2:$C$65536)","v":0},null,{"$f":"SUMIF(dati_sp!$H$2:$H$65536,s_bil_std!$A92,dati_sp!$D$2:$D$65536)","v":0},{"$f":"SUMIF(dati_sp!$H$2:$H$65536,s_bil_std!$A92,dati_sp!$D$2:$D$65536)","v":0},null,{"$f":"SUMIF(dati_sp!$H$2:$H$65536,s_bil_std!$A92,dati_sp!$E$2:$E$65536)","v":0},{"$f":"SUMIF(dati_sp!$H$2:$H$65536,s_bil_std!$A92,dati_sp!$E$2:$E$65536)","v":0},null,{"$f":"SUMIF(dati_sp!$H$2:$H$65536,s_bil_std!$A92,dati_sp!$F$2:$F$65536)","v":0},{"$f":"SUMIF(dati_sp!$H$2:$H$65536,s_bil_std!$A92,dati_sp!$F$2:$F$65536)","v":0},null,{"$f":"SUMIF(dati_sp!$H$2:$H$65536,s_bil_std!$A92,dati_sp!$G$2:$G$65536)","v":0},{"$f":"SUMIF(dati_sp!$H$2:$H$65536,s_bil_std!$A92,dati_sp!$G$2:$G$65536)","v":0},null,null,0,0,0,0,0,null," "]
["1.D.2","Altri ratei e risconti attivi","NO","Dett.","Dett.",null,null,null,{"$f":"SUMIF(dati_sp!$H$2:$H$65536,s_bil_std!$A93,dati_sp!$C$2:$C$65536)","v":0},{"$f":"SUMIF(dati_sp!$H$2:$H$65536,s_bil_std!$A93,dati_sp!$C$2:$C$65536)","v":0},null,{"$f":"SUMIF(dati_sp!$H$2:$H$65536,s_bil_std!$A93,dati_sp!$D$2:$D$65536)","v":0},{"$f":"SUMIF(dati_sp!$H$2:$H$65536,s_bil_std!$A93,dati_sp!$D$2:$D$65536)","v":0},null,{"$f":"SUMIF(dati_sp!$H$2:$H$65536,s_bil_std!$A93,dati_sp!$E$2:$E$65536)","v":0},{"$f":"SUMIF(dati_sp!$H$2:$H$65536,s_bil_std!$A93,dati_sp!$E$2:$E$65536)","v":0},null,{"$f":"SUMIF(dati_sp!$H$2:$H$65536,s_bil_std!$A93,dati_sp!$F$2:$F$65536)","v":0},{"$f":"SUMIF(dati_sp!$H$2:$H$65536,s_bil_std!$A93,dati_sp!$F$2:$F$65536)","v":0},null,{"$f":"SUMIF(dati_sp!$H$2:$H$65536,s_bil_std!$A93,dati_sp!$G$2:$G$65536)","v":0},{"$f":"SUMIF(dati_sp!$H$2:$H$65536,s_bil_std!$A93,dati_sp!$G$2:$G$65536)","v":0},null,null,0,0,0,0,0,null," "]
[null,"TOTALE ATTIVO",null,null,null,150,150,null,{"$f":"SUM(I91,I49,I6,I3)","v":252617},{"$f":"SUM(J91,J49,J6,J3)","v":0},null,{"$f":"SUM(L91,L49,L6,L3)","v":187958},{"$f":"SUM(M91,M49,M6,M3)","v":0},null,{"$f":"SUM(O91,O49,O6,O3)","v":0},{"$f":"SUM(P91,P49,P6,P3)","v":0},null,{"$f":"SUM(R91,R49,R6,R3)","v":0},{"$f":"SUM(S91,S49,S6,S3)","v":0},null,{"$f":"SUM(U91,U49,U6,U3)","v":0},{"$f":"SUM(V91,V49,V6,V3)","v":0},null,null,0,0,0,0,0,null," "]
["2","Passivo"]
["2.A","PATRIMONIO NETTO","NO","Totale","Totale",160,160,null,{"$f":"SUM(I127+I128)","v":92654},{"$f":"SUM(J97:J103,J125:J126)","v":92654},null,{"$f":"SUM(L127:L128)","v":92110},{"$f":"SUM(M97:M103,M125:M126)","v":92110},null,{"$f":"SUM(O127:O128)","v":0},{"$f":"SUM(P97:P103,P125:P126)","v":0},null,{"$f":"SUM(R127:R128)","v":0},{"$f":"SUM(S97:S103,S125:S126)","v":0},null,{"$f":"SUM(U127:U128)","v":0},{"$f":"SUM(V97:V103,V125:V126)","v":0},null,null,{"$f":"IF($AA$2=\"1\",I96,J96)","v":92654},{"$f":"IF($AA$2=\"1\",L96,M96)","v":92110},{"$f":"IF($AA$2=\"1\",O96,P96)","v":0},{"$f":"IF($AA$2=\"1\",R96,S96)","v":0},{"$f":"IF($AA$2=\"1\",U96,V96)","v":0},null,"A)"]
["2.A.1","Capitale","NO","Dett.","Dett.",162,162,null,{"$f":"SUMIF(dati_sp!$H$2:$H$65536,s_bil_std!$A97,dati_sp!$C$2:$C$65536)","v":20800},{"$f":"SUMIF(dati_sp!$H$2:$H$65536,s_bil_std!$A97,dati_sp!$C$2:$C$65536)","v":20800},null,{"$f":"SUMIF(dati_sp!$H$2:$H$65536,s_bil_std!$A97,dati_sp!$D$2:$D$65536)","v":20800},{"$f":"SUMIF(dati_sp!$H$2:$H$65536,s_bil_std!$A97,dati_sp!$D$2:$D$65536)","v":20800},null,{"$f":"SUMIF(dati_sp!$H$2:$H$65536,s_bil_std!$A97,dati_sp!$E$2:$E$65536)","v":0},{"$f":"SUMIF(dati_sp!$H$2:$H$65536,s_bil_std!$A97,dati_sp!$E$2:$E$65536)","v":0},null,{"$f":"SUMIF(dati_sp!$H$2:$H$65536,s_bil_std!$A97,dati_sp!$F$2:$F$65536)","v":0},{"$f":"SUMIF(dati_sp!$H$2:$H$65536,s_bil_std!$A97,dati_sp!$F$2:$F$65536)","v":0},null,{"$f":"SUMIF(dati_sp!$H$2:$H$65536,s_bil_std!$A97,dati_sp!$G$2:$G$65536)","v":0},{"$f":"SUMIF(dati_sp!$H$2:$H$65536,s_bil_std!$A97,dati_sp!$G$2:$G$65536)","v":0},null,null,20800,20800,0,0,0,null,"I -"]
["2.A.2","Riserva da sopraprezzo delle azioni","NO","Dett.","Dett.",164,164,null,{"$f":"SUMIF(dati_sp!$H$2:$H$65536,s_bil_std!$A98,dati_sp!$C$2:$C$65536)","v":0},{"$f":"SUMIF(dati_sp!$H$2:$H$65536,s_bil_std!$A98,dati_sp!$C$2:$C$65536)","v":0},null,{"$f":"SUMIF(dati_sp!$H$2:$H$65536,s_bil_std!$A98,dati_sp!$D$2:$D$65536)","v":0},{"$f":"SUMIF(dati_sp!$H$2:$H$65536,s_bil_std!$A98,dati_sp!$D$2:$D$65536)","v":0},null,{"$f":"SUMIF(dati_sp!$H$2:$H$65536,s_bil_std!$A98,dati_sp!$E$2:$E$65536)","v":0},{"$f":"SUMIF(dati_sp!$H$2:$H$65536,s_bil_std!$A98,dati_sp!$E$2:$E$65536)","v":0},null,{"$f":"SUMIF(dati_sp!$H$2:$H$65536,s_bil_std!$A98,dati_sp!$F$2:$F$65536)","v":0},{"$f":"SUMIF(dati_sp!$H$2:$H$65536,s_bil_std!$A98,dati_sp!$F$2:$F$65536)","v":0},null,{"$f":"SUMIF(dati_sp!$H$2:$H$65536,s_bil_std!$A98,dati_sp!$G$2:$G$65536)","v":0},{"$f":"SUMIF(dati_sp!$H$2:$H$65536,s_bil_std!$A98,dati_sp!$G$2:$G$65536)","v":0},null,null,0,0,0,0,0,null,"II -"]
["2.A.3","Riserve di rivalutazione","NO","Dett.","Dett.",166,166,null,{"$f":"SUMIF(dati_sp!$H$2:$H$65536,s_bil_std!$A99,dati_sp!$C$2:$C$65536)","v":0},{"$f":"SUMIF(dati_sp!$H$2:$H$65536,s_bil_std!$A99,dati_sp!$C$2:$C$65536)","v":0},null,{"$f":"SUMIF(dati_sp!$H$2:$H$65536,s_bil_std!$A99,dati_sp!$D$2:$D$65536)","v":0},{"$f":"SUMIF(dati_sp!$H$2:$H$65536,s_bil_std!$A99,dati_sp!$D$2:$D$65536)","v":0},null,{"$f":"SUMIF(dati_sp!$H$2:$H$65536,s_bil_std!$A99,dati_sp!$E$2:$E$65536)","v":0},{"$f":"SUMIF(dati_sp!$H$2:$H$65536,s_bil_std!$A99,dati_sp!$E$2:$E$65536)","v":0},null,{"$f":"SUMIF(dati_sp!$H$2:$H$65536,s_bil_std!$A99,dati_sp!$F$2:$F$65536)","v":0},{"$f":"SUMIF(dati_sp!$H$2:$H$65536,s_bil_std!$A99,dati_sp!$F$2:$F$65536)","v":0},null,{"$f":"SUMIF(dati_sp!$H$2:$H$65536,s_bil_std!$A99,dati_sp!$G$2:$G$65536)","v":0},{"$f":"SUMIF(dati_sp!$H$2:$H$65536,s_bil_std!$A99,dati_sp!$G$2:$G$65536)","v":0},null,null,0,0,0,0,0,null,"III -"]
["2.A.4","Riserva legale","NO","Dett.","Dett.",163,null,null,{"$f":"SUMIF(dati_sp!$H$2:$H$65536,s_bil_std!$A100,dati_sp!$C$2:$C$65536)","v":7486},{"$f":"SUMIF(dati_sp!$H$2:$H$65536,s_bil_std!$A100,dati_sp!$C$2:$C$65536)","v":7486},null,{"$f":"SUMIF(dati_sp!$H$2:$H$65536,s_bil_std!$A100,dati_sp!$D$2:$D$65536)","v":7486},{"$f":"SUMIF(dati_sp!$H$2:$H$65536,s_bil_std!$A100,dati_sp!$D$2:$D$65536)","v":7486},null,{"$f":"SUMIF(dati_sp!$H$2:$H$65536,s_bil_std!$A100,dati_sp!$E$2:$E$65536)","v":0},{"$f":"SUMIF(dati_sp!$H$2:$H$65536,s_bil_std!$A100,dati_sp!$E$2:$E$65536)","v":0},null,{"$f":"SUMIF(dati_sp!$H$2:$H$65536,s_bil_std!$A100,dati_sp!$F$2:$F$65536)","v":0},{"$f":"SUMIF(dati_sp!$H$2:$H$65536,s_bil_std!$A100,dati_sp!$F$2:$F$65536)","v":0},null,{"$f":"SUMIF(dati_sp!$H$2:$H$65536,s_bil_std!$A100,dati_sp!$G$2:$G$65536)","v":0},{"$f":"SUMIF(dati_sp!$H$2:$H$65536,s_bil_std!$A100,dati_sp!$G$2:$G$65536)","v":0},null,null,7486,7486,0,0,0,null,"IV -"]
["2.A.5","Riserve statutarie","NO","Dett.","Dett.",167,null,null,{"$f":"SUMIF(dati_sp!$H$2:$H$65536,s_bil_std!$A101,dati_sp!$C$2:$C$65536)","v":0},{"$f":"SUMIF(dati_sp!$H$2:$H$65536,s_bil_std!$A101,dati_sp!$C$2:$C$65536)","v":0},null,{"$f":"SUMIF(dati_sp!$H$2:$H$65536,s_bil_std!$A101,dati_sp!$D$2:$D$65536)","v":0},{"$f":"SUMIF(dati_sp!$H$2:$H$65536,s_bil_std!$A101,dati_sp!$D$2:$D$65536)","v":0},null,{"$f":"SUMIF(dati_sp!$H$2:$H$65536,s_bil_std!$A101,dati_sp!$E$2:$E$65536)","v":0},{"$f":"SUMIF(dati_sp!$H$2:$H$65536,s_bil_std!$A101,dati_sp!$E$2:$E$65536)","v":0},null,{"$f":"SUMIF(dati_sp!$H$2:$H$65536,s_bil_std!$A101,dati_sp!$F$2:$F$65536)","v":0},{"$f":"SUMIF(dati_sp!$H$2:$H$65536,s_bil_std!$A101,dati_sp!$F$2:$F$65536)","v":0},null,{"$f":"SUMIF(dati_sp!$H$2:$H$65536,s_bil_std!$A101,dati_sp!$G$2:$G$65536)","v":0},{"$f":"SUMIF(dati_sp!$H$2:$H$65536,s_bil_std!$A101,dati_sp!$G$2:$G$65536)","v":0},null,null,0,0,0,0,0,null,"V -"]
["2.A.6","Riserva per azioni proprie in portafoglio","NO","Dett.","Dett.",165,null,null,{"$f":"SUMIF(dati_sp!$H$2:$H$65536,s_bil_std!$A102,dati_sp!$C$2:$C$65536)","v":0},{"$f":"SUMIF(dati_sp!$H$2:$H$65536,s_bil_std!$A102,dati_sp!$C$2:$C$65536)","v":0},null,{"$f":"SUMIF(dati_sp!$H$2:$H$65536,s_bil_std!$A102,dati_sp!$D$2:$D$65536)","v":0},{"$f":"SUMIF(dati_sp!$H$2:$H$65536,s_bil_std!$A102,dati_sp!$D$2:$D$65536)","v":0},null,{"$f":"SUMIF(dati_sp!$H$2:$H$65536,s_bil_std!$A102,dati_sp!$E$2:$E$65536)","v":0},{"$f":"SUMIF(dati_sp!$H$2:$H$65536,s_bil_std!$A102,dati_sp!$E$2:$E$65536)","v":0},null,{"$f":"SUMIF(dati_sp!$H$2:$H$65536,s_bil_std!$A102,dati_sp!$F$2:$F$65536)","v":0},{"$f":"SUMIF(dati_sp!$H$2:$H$65536,s_bil_std!$A102,dati_sp!$F$2:$F$65536)","v":0},null,{"$f":"SUMIF(dati_sp!$H$2:$H$65536,s_bil_std!$A102,dati_sp!$G$2:$G$65536)","v":0},{"$f":"SUMIF(dati_sp!$H$2:$H$65536,s_bil_std!$A102,dati_sp!$G$2:$G$65536)","v":0},null,null,0,0,0,0,0,null,"VI -"]
["2.A.7","Altre riserve","NO","Totale","Totale",169,null,null,{"$f":"SUM(I104:I124)","v":1},{"$f":"SUM(J104:J124)","v":1},null,{"$f":"SUM(L104:L124)","v":0},{"$f":"SUM(M104:M124)","v":0},null,{"$f":"SUM(O104:O124)","v":0},{"$f":"SUM(P104:P124)","v":0},null,{"$f":"SUM(R104:R124)","v":0},{"$f":"SUM(S104:S124)","v":0},null,{"$f":"SUM(U104:U124)","v":0},{"$f":"SUM(V104:V122)","v":0},null,null,1,0,0,0,0,null,"VII -"]
["2.A.7.1","Riserva straordinaria","NO","Dett.","Dett.",null,null,null,{"$f":"SUMIF(dati_sp!$H$2:$H$65536,s_bil_std!$A104,dati_sp!$C$2:$C$65536)","v":0},{"$f":"SUMIF(dati_sp!$H$2:$H$65536,s_bil_std!$A104,dati_sp!$C$2:$C$65536)","v":0},null,{"$f":"SUMIF(dati_sp!$H$2:$H$65536,s_bil_std!$A104,dati_sp!$D$2:$D$65536)","v":0},{"$f":"SUMIF(dati_sp!$H$2:$H$65536,s_bil_std!$A104,dati_sp!$D$2:$D$65536)","v":0},null,{"$f":"SUMIF(dati_sp!$H$2:$H$65536,s_bil_std!$A104,dati_sp!$E$2:$E$65536)","v":0},{"$f":"SUMIF(dati_sp!$H$2:$H$65536,s_bil_std!$A104,dati_sp!$E$2:$E$65536)","v":0},null,{"$f":"SUMIF(dati_sp!$H$2:$H$65536,s_bil_std!$A104,dati_sp!$F$2:$F$65536)","v":0},{"$f":"SUMIF(dati_sp!$H$2:$H$65536,s_bil_std!$A104,dati_sp!$F$2:$F$65536)","v":0},null,{"$f":"SUMIF(dati_sp!$H$2:$H$65536,s_bil_std!$A104,dati_sp!$G$2:$G$65536)","v":0},{"$f":"SUMIF(dati_sp!$H$2:$H$65536,s_bil_std!$A104,dati_sp!$G$2:$G$65536)","v":0},null,null,0,0,0,0,0,null," "]
["2.A.7.2","Riserva per rinnovamento impianti e macchinari","NO","Dett.","Dett.",null,null,null,{"$f":"SUMIF(dati_sp!$H$2:$H$65536,s_bil_std!$A105,dati_sp!$C$2:$C$65536)","v":0},{"$f":"SUMIF(dati_sp!$H$2:$H$65536,s_bil_std!$A105,dati_sp!$C$2:$C$65536)","v":0},null,{"$f":"SUMIF(dati_sp!$H$2:$H$65536,s_bil_std!$A105,dati_sp!$D$2:$D$65536)","v":0},{"$f":"SUMIF(dati_sp!$H$2:$H$65536,s_bil_std!$A105,dati_sp!$D$2:$D$65536)","v":0},null,{"$f":"SUMIF(dati_sp!$H$2:$H$65536,s_bil_std!$A105,dati_sp!$E$2:$E$65536)","v":0},{"$f":"SUMIF(dati_sp!$H$2:$H$65536,s_bil_std!$A105,dati_sp!$E$2:$E$65536)","v":0},null,{"$f":"SUMIF(dati_sp!$H$2:$H$65536,s_bil_std!$A105,dati_sp!$F$2:$F$65536)","v":0},{"$f":"SUMIF(dati_sp!$H$2:$H$65536,s_bil_std!$A105,dati_sp!$F$2:$F$65536)","v":0},null,{"$f":"SUMIF(dati_sp!$H$2:$H$65536,s_bil_std!$A105,dati_sp!$G$2:$G$65536)","v":0},{"$f":"SUMIF(dati_sp!$H$2:$H$65536,s_bil_std!$A105,dati_sp!$G$2:$G$65536)","v":0},null,null,0,0,0,0,0,null," "]
["2.A.7.3","Riserva ammortamento anticipato","NO","Dett.","Dett.",null,null,null,{"$f":"SUMIF(dati_sp!$H$2:$H$65536,s_bil_std!$A106,dati_sp!$C$2:$C$65536)","v":0},{"$f":"SUMIF(dati_sp!$H$2:$H$65536,s_bil_std!$A106,dati_sp!$C$2:$C$65536)","v":0},null,{"$f":"SUMIF(dati_sp!$H$2:$H$65536,s_bil_std!$A106,dati_sp!$D$2:$D$65536)","v":0},{"$f":"SUMIF(dati_sp!$H$2:$H$65536,s_bil_std!$A106,dati_sp!$D$2:$D$65536)","v":0},null,{"$f":"SUMIF(dati_sp!$H$2:$H$65536,s_bil_std!$A106,dati_sp!$E$2:$E$65536)","v":0},{"$f":"SUMIF(dati_sp!$H$2:$H$65536,s_bil_std!$A106,dati_sp!$E$2:$E$65536)","v":0},null,{"$f":"SUMIF(dati_sp!$H$2:$H$65536,s_bil_std!$A106,dati_sp!$F$2:$F$65536)","v":0},{"$f":"SUMIF(dati_sp!$H$2:$H$65536,s_bil_std!$A106,dati_sp!$F$2:$F$65536)","v":0},null,{"$f":"SUMIF(dati_sp!$H$2:$H$65536,s_bil_std!$A106,dati_sp!$G$2:$G$65536)","v":0},{"$f":"SUMIF(dati_sp!$H$2:$H$65536,s_bil_std!$A106,dati_sp!$G$2:$G$65536)","v":0},null,null,0,0,0,0,0,null," "]
["2.A.7.4","Riserva per acquisto azioni proprie","NO","Dett.","Dett.",null,null,null,{"$f":"SUMIF(dati_sp!$H$2:$H$65536,s_bil_std!$A107,dati_sp!$C$2:$C$65536)","v":0},{"$f":"SUMIF(dati_sp!$H$2:$H$65536,s_bil_std!$A107,dati_sp!$C$2:$C$65536)","v":0},null,{"$f":"SUMIF(dati_sp!$H$2:$H$65536,s_bil_std!$A107,dati_sp!$D$2:$D$65536)","v":0},{"$f":"SUMIF(dati_sp!$H$2:$H$65536,s_bil_std!$A107,dati_sp!$D$2:$D$65536)","v":0},null,{"$f":"SUMIF(dati_sp!$H$2:$H$65536,s_bil_std!$A107,dati_sp!$E$2:$E$65536)","v":0},{"$f":"SUMIF(dati_sp!$H$2:$H$65536,s_bil_std!$A107,dati_sp!$E$2:$E$65536)","v":0},null,{"$f":"SUMIF(dati_sp!$H$2:$H$65536,s_bil_std!$A107,dati_sp!$F$2:$F$65536)","v":0},{"$f":"SUMIF(dati_sp!$H$2:$H$65536,s_bil_std!$A107,dati_sp!$F$2:$F$65536)","v":0},null,{"$f":"SUMIF(dati_sp!$H$2:$H$65536,s_bil_std!$A107,dati_sp!$G$2:$G$65536)","v":0},{"$f":"SUMIF(dati_sp!$H$2:$H$65536,s_bil_std!$A107,dati_sp!$G$2:$G$65536)","v":0},null,null,0,0,0,0,0,null," "]
["2.A.7.5","Riserva da deroghe ex. art. 2423 CC","NO","Dett.","Dett.",null,null,null,{"$f":"SUMIF(dati_sp!$H$2:$H$65536,s_bil_std!$A108,dati_sp!$C$2:$C$65536)","v":0},{"$f":"SUMIF(dati_sp!$H$2:$H$65536,s_bil_std!$A108,dati_sp!$C$2:$C$65536)","v":0},null,{"$f":"SUMIF(dati_sp!$H$2:$H$65536,s_bil_std!$A108,dati_sp!$D$2:$D$65536)","v":0},{"$f":"SUMIF(dati_sp!$H$2:$H$65536,s_bil_std!$A108,dati_sp!$D$2:$D$65536)","v":0},null,{"$f":"SUMIF(dati_sp!$H$2:$H$65536,s_bil_std!$A108,dati_sp!$E$2:$E$65536)","v":0},{"$f":"SUMIF(dati_sp!$H$2:$H$65536,s_bil_std!$A108,dati_sp!$E$2:$E$65536)","v":0},null,{"$f":"SUMIF(dati_sp!$H$2:$H$65536,s_bil_std!$A108,dati_sp!$F$2:$F$65536)","v":0},{"$f":"SUMIF(dati_sp!$H$2:$H$65536,s_bil_std!$A108,dati_sp!$F$2:$F$65536)","v":0},null,{"$f":"SUMIF(dati_sp!$H$2:$H$65536,s_bil_std!$A108,dati_sp!$G$2:$G$65536)","v":0},{"$f":"SUMIF(dati_sp!$H$2:$H$65536,s_bil_std!$A108,dati_sp!$G$2:$G$65536)","v":0},null,null,0,0,0,0,0,null," "]
["2.A.7.6","Riserva per azioni delle società controllante","NO","Dett.","Dett.",null,null,null,{"$f":"SUMIF(dati_sp!$H$2:$H$65536,s_bil_std!$A109,dati_sp!$C$2:$C$65536)","v":0},{"$f":"SUMIF(dati_sp!$H$2:$H$65536,s_bil_std!$A109,dati_sp!$C$2:$C$65536)","v":0},null,{"$f":"SUMIF(dati_sp!$H$2:$H$65536,s_bil_std!$A109,dati_sp!$D$2:$D$65536)","v":0},{"$f":"SUMIF(dati_sp!$H$2:$H$65536,s_bil_std!$A109,dati_sp!$D$2:$D$65536)","v":0},null,{"$f":"SUMIF(dati_sp!$H$2:$H$65536,s_bil_std!$A109,dati_sp!$E$2:$E$65536)","v":0},{"$f":"SUMIF(dati_sp!$H$2:$H$65536,s_bil_std!$A109,dati_sp!$E$2:$E$65536)","v":0},null,{"$f":"SUMIF(dati_sp!$H$2:$H$65536,s_bil_std!$A109,dati_sp!$F$2:$F$65536)","v":0},{"$f":"SUMIF(dati_sp!$H$2:$H$65536,s_bil_std!$A109,dati_sp!$F$2:$F$65536)","v":0},null,{"$f":"SUMIF(dati_sp!$H$2:$H$65536,s_bil_std!$A109,dati_sp!$G$2:$G$65536)","v":0},{"$f":"SUMIF(dati_sp!$H$2:$H$65536,s_bil_std!$A109,dati_sp!$G$2:$G$65536)","v":0},null,null,0,0,0,0,0,null," "]
["2.A.7.7","Riserva non distribuibile da rivalutazione delle partecipazioni","NO","Dett.","Dett.",null,null,null,{"$f":"SUMIF(dati_sp!$H$2:$H$65536,s_bil_std!$A110,dati_sp!$C$2:$C$65536)","v":0},{"$f":"SUMIF(dati_sp!$H$2:$H$65536,s_bil_std!$A110,dati_sp!$C$2:$C$65536)","v":0},null,{"$f":"SUMIF(dati_sp!$H$2:$H$65536,s_bil_std!$A110,dati_sp!$D$2:$D$65536)","v":0},{"$f":"SUMIF(dati_sp!$H$2:$H$65536,s_bil_std!$A110,dati_sp!$D$2:$D$65536)","v":0},null,{"$f":"SUMIF(dati_sp!$H$2:$H$65536,s_bil_std!$A110,dati_sp!$E$2:$E$65536)","v":0},{"$f":"SUMIF(dati_sp!$H$2:$H$65536,s_bil_std!$A110,dati_sp!$E$2:$E$65536)","v":0},null,{"$f":"SUMIF(dati_sp!$H$2:$H$65536,s_bil_std!$A110,dati_sp!$F$2:$F$65536)","v":0},{"$f":"SUMIF(dati_sp!$H$2:$H$65536,s_bil_std!$A110,dati_sp!$F$2:$F$65536)","v":0},null,{"$f":"SUMIF(dati_sp!$H$2:$H$65536,s_bil_std!$A110,dati_sp!$G$2:$G$65536)","v":0},{"$f":"SUMIF(dati_sp!$H$2:$H$65536,s_bil_std!$A110,dati_sp!$G$2:$G$65536)","v":0},null,null,0,0,0,0,0,null," "]
["2.A.7.8","Versamenti in conto aumento di capitale","NO","Dett.","Dett.",null,null,null,{"$f":"SUMIF(dati_sp!$H$2:$H$65536,s_bil_std!$A111,dati_sp!$C$2:$C$65536)","v":0},{"$f":"SUMIF(dati_sp!$H$2:$H$65536,s_bil_std!$A111,dati_sp!$C$2:$C$65536)","v":0},null,{"$f":"SUMIF(dati_sp!$H$2:$H$65536,s_bil_std!$A111,dati_sp!$D$2:$D$65536)","v":0},{"$f":"SUMIF(dati_sp!$H$2:$H$65536,s_bil_std!$A111,dati_sp!$D$2:$D$65536)","v":0},null,{"$f":"SUMIF(dati_sp!$H$2:$H$65536,s_bil_std!$A111,dati_sp!$E$2:$E$65536)","v":0},{"$f":"SUMIF(dati_sp!$H$2:$H$65536,s_bil_std!$A111,dati_sp!$E$2:$E$65536)","v":0},null,{"$f":"SUMIF(dati_sp!$H$2:$H$65536,s_bil_std!$A111,dati_sp!$F$2:$F$65536)","v":0},{"$f":"SUMIF(dati_sp!$H$2:$H$65536,s_bil_std!$A111,dati_sp!$F$2:$F$65536)","v":0},null,{"$f":"SUMIF(dati_sp!$H$2:$H$65536,s_bil_std!$A111,dati_sp!$G$2:$G$65536)","v":0},{"$f":"SUMIF(dati_sp!$H$2:$H$65536,s_bil_std!$A111,dati_sp!$G$2:$G$65536)","v":0},null,null,0,0,0,0,0,null," "]
["2.A.7.9","Versamente in conto futuro aumento di capitale","NO","Dett.","Dett.",null,null,null,{"$f":"SUMIF(dati_sp!$H$2:$H$65536,s_bil_std!$A112,dati_sp!$C$2:$C$65536)","v":0},{"$f":"SUMIF(dati_sp!$H$2:$H$65536,s_bil_std!$A112,dati_sp!$C$2:$C$65536)","v":0},null,{"$f":"SUMIF(dati_sp!$H$2:$H$65536,s_bil_std!$A112,dati_sp!$D$2:$D$65536)","v":0},{"$f":"SUMIF(dati_sp!$H$2:$H$65536,s_bil_std!$A112,dati_sp!$D$2:$D$65536)","v":0},null,{"$f":"SUMIF(dati_sp!$H$2:$H$65536,s_bil_std!$A112,dati_sp!$E$2:$E$65536)","v":0},{"$f":"SUMIF(dati_sp!$H$2:$H$65536,s_bil_std!$A112,dati_sp!$E$2:$E$65536)","v":0},null,{"$f":"SUMIF(dati_sp!$H$2:$H$65536,s_bil_std!$A112,dati_sp!$F$2:$F$65536)","v":0},{"$f":"SUMIF(dati_sp!$H$2:$H$65536,s_bil_std!$A112,dati_sp!$F$2:$F$65536)","v":0},null,{"$f":"SUMIF(dati_sp!$H$2:$H$65536,s_bil_std!$A112,dati_sp!$G$2:$G$65536)","v":0},{"$f":"SUMIF(dati_sp!$H$2:$H$65536,s_bil_std!$A112,dati_sp!$G$2:$G$65536)","v":0},null,null,0,0,0,0,0,null," "]
["2.A.7.10","Versamenti in conto capitale","NO","Dett.","Dett.",null,null,null,{"$f":"SUMIF(dati_sp!$H$2:$H$65536,s_bil_std!$A113,dati_sp!$C$2:$C$65536)","v":0},{"$f":"SUMIF(dati_sp!$H$2:$H$65536,s_bil_std!$A113,dati_sp!$C$2:$C$65536)","v":0},null,{"$f":"SUMIF(dati_sp!$H$2:$H$65536,s_bil_std!$A113,dati_sp!$D$2:$D$65536)","v":0},{"$f":"SUMIF(dati_sp!$H$2:$H$65536,s_bil_std!$A113,dati_sp!$D$2:$D$65536)","v":0},null,{"$f":"SUMIF(dati_sp!$H$2:$H$65536,s_bil_std!$A113,dati_sp!$E$2:$E$65536)","v":0},{"$f":"SUMIF(dati_sp!$H$2:$H$65536,s_bil_std!$A113,dati_sp!$E$2:$E$65536)","v":0},null,{"$f":"SUMIF(dati_sp!$H$2:$H$65536,s_bil_std!$A113,dati_sp!$F$2:$F$65536)","v":0},{"$f":"SUMIF(dati_sp!$H$2:$H$65536,s_bil_std!$A113,dati_sp!$F$2:$F$65536)","v":0},null,{"$f":"SUMIF(dati_sp!$H$2:$H$65536,s_bil_std!$A113,dati_sp!$G$2:$G$65536)","v":0},{"$f":"SUMIF(dati_sp!$H$2:$H$65536,s_bil_std!$A113,dati_sp!$G$2:$G$65536)","v":0},null,null,0,0,0,0,0,null," "]
["2.A.7.10a","Versamenti a copertura perdite","NO","Dett.","Dett.",null,null,null,{"$f":"SUMIF(dati_sp!$H$2:$H$65536,s_bil_std!$A114,dati_sp!$C$2:$C$65536)","v":0},{"$f":"SUMIF(dati_sp!$H$2:$H$65536,s_bil_std!$A114,dati_sp!$C$2:$C$65536)","v":0},null,{"$f":"SUMIF(dati_sp!$H$2:$H$65536,s_bil_std!$A114,dati_sp!$D$2:$D$65536)","v":0},{"$f":"SUMIF(dati_sp!$H$2:$H$65536,s_bil_std!$A114,dati_sp!$D$2:$D$65536)","v":0},null,{"$f":"SUMIF(dati_sp!$H$2:$H$65536,s_bil_std!$A114,dati_sp!$E$2:$E$65536)","v":0},{"$f":"SUMIF(dati_sp!$H$2:$H$65536,s_bil_std!$A114,dati_sp!$E$2:$E$65536)","v":0},null,{"$f":"SUMIF(dati_sp!$H$2:$H$65536,s_bil_std!$A114,dati_sp!$F$2:$F$65536)","v":0},{"$f":"SUMIF(dati_sp!$H$2:$H$65536,s_bil_std!$A114,dati_sp!$F$2:$F$65536)","v":0},null,{"$f":"SUMIF(dati_sp!$H$2:$H$65536,s_bil_std!$A114,dati_sp!$G$2:$G$65536)","v":0},{"$f":"SUMIF(dati_sp!$H$2:$H$65536,s_bil_std!$A114,dati_sp!$G$2:$G$65536)","v":0},null,null,0,0,0,0,0,null," "]
["2.A.7.11","Riserva da riduzione capitale sociale","NO","Dett.","Dett.",null,null,null,{"$f":"SUMIF(dati_sp!$H$2:$H$65536,s_bil_std!$A115,dati_sp!$C$2:$C$65536)","v":0},{"$f":"SUMIF(dati_sp!$H$2:$H$65536,s_bil_std!$A115,dati_sp!$C$2:$C$65536)","v":0},null,{"$f":"SUMIF(dati_sp!$H$2:$H$65536,s_bil_std!$A115,dati_sp!$D$2:$D$65536)","v":0},{"$f":"SUMIF(dati_sp!$H$2:$H$65536,s_bil_std!$A115,dati_sp!$D$2:$D$65536)","v":0},null,{"$f":"SUMIF(dati_sp!$H$2:$H$65536,s_bil_std!$A115,dati_sp!$E$2:$E$65536)","v":0},{"$f":"SUMIF(dati_sp!$H$2:$H$65536,s_bil_std!$A115,dati_sp!$E$2:$E$65536)","v":0},null,{"$f":"SUMIF(dati_sp!$H$2:$H$65536,s_bil_std!$A115,dati_sp!$F$2:$F$65536)","v":0},{"$f":"SUMIF(dati_sp!$H$2:$H$65536,s_bil_std!$A115,dati_sp!$F$2:$F$65536)","v":0},null,{"$f":"SUMIF(dati_sp!$H$2:$H$65536,s_bil_std!$A115,dati_sp!$G$2:$G$65536)","v":0},{"$f":"SUMIF(dati_sp!$H$2:$H$65536,s_bil_std!$A115,dati_sp!$G$2:$G$65536)","v":0},null,null,0,0,0,0,0,null," "]
["2.A.7.12","Riserva avanzo di fusione","NO","Dett.","Dett.",null,null,null,{"$f":"SUMIF(dati_sp!$H$2:$H$65536,s_bil_std!$A116,dati_sp!$C$2:$C$65536)","v":0},{"$f":"SUMIF(dati_sp!$H$2:$H$65536,s_bil_std!$A116,dati_sp!$C$2:$C$65536)","v":0},null,{"$f":"SUMIF(dati_sp!$H$2:$H$65536,s_bil_std!$A116,dati_sp!$D$2:$D$65536)","v":0},{"$f":"SUMIF(dati_sp!$H$2:$H$65536,s_bil_std!$A116,dati_sp!$D$2:$D$65536)","v":0},null,{"$f":"SUMIF(dati_sp!$H$2:$H$65536,s_bil_std!$A116,dati_sp!$E$2:$E$65536)","v":0},{"$f":"SUMIF(dati_sp!$H$2:$H$65536,s_bil_std!$A116,dati_sp!$E$2:$E$65536)","v":0},null,{"$f":"SUMIF(dati_sp!$H$2:$H$65536,s_bil_std!$A116,dati_sp!$F$2:$F$65536)","v":0},{"$f":"SUMIF(dati_sp!$H$2:$H$65536,s_bil_std!$A116,dati_sp!$F$2:$F$65536)","v":0},null,{"$f":"SUMIF(dati_sp!$H$2:$H$65536,s_bil_std!$A116,dati_sp!$G$2:$G$65536)","v":0},{"$f":"SUMIF(dati_sp!$H$2:$H$65536,s_bil_std!$A116,dati_sp!$G$2:$G$65536)","v":0},null,null,0,0,0,0,0,null," "]
["2.A.7.13","Riserva contributi in conto capitale","NO","Dett.","Dett.",null,null,null,{"$f":"SUMIF(dati_sp!$H$2:$H$65536,s_bil_std!$A117,dati_sp!$C$2:$C$65536)","v":0},{"$f":"SUMIF(dati_sp!$H$2:$H$65536,s_bil_std!$A117,dati_sp!$C$2:$C$65536)","v":0},null,{"$f":"SUMIF(dati_sp!$H$2:$H$65536,s_bil_std!$A117,dati_sp!$D$2:$D$65536)","v":0},{"$f":"SUMIF(dati_sp!$H$2:$H$65536,s_bil_std!$A117,dati_sp!$D$2:$D$65536)","v":0},null,{"$f":"SUMIF(dati_sp!$H$2:$H$65536,s_bil_std!$A117,dati_sp!$E$2:$E$65536)","v":0},{"$f":"SUMIF(dati_sp!$H$2:$H$65536,s_bil_std!$A117,dati_sp!$E$2:$E$65536)","v":0},null,{"$f":"SUMIF(dati_sp!$H$2:$H$65536,s_bil_std!$A117,dati_sp!$F$2:$F$65536)","v":0},{"$f":"SUMIF(dati_sp!$H$2:$H$65536,s_bil_std!$A117,dati_sp!$F$2:$F$65536)","v":0},null,{"$f":"SUMIF(dati_sp!$H$2:$H$65536,s_bil_std!$A117,dati_sp!$G$2:$G$65536)","v":0},{"$f":"SUMIF(dati_sp!$H$2:$H$65536,s_bil_std!$A117,dati_sp!$G$2:$G$65536)","v":0},null,null,0,0,0,0,0,null," "]
["2.A.7.14","Riserva da conversione in Euro","NO","Dett.","Dett.",null,null,null,{"$f":"SUMIF(dati_sp!$H$2:$H$65536,s_bil_std!$A118,dati_sp!$C$2:$C$65536)","v":0},{"$f":"SUMIF(dati_sp!$H$2:$H$65536,s_bil_std!$A118,dati_sp!$C$2:$C$65536)","v":0},null,{"$f":"SUMIF(dati_sp!$H$2:$H$65536,s_bil_std!$A118,dati_sp!$D$2:$D$65536)","v":0},{"$f":"SUMIF(dati_sp!$H$2:$H$65536,s_bil_std!$A118,dati_sp!$D$2:$D$65536)","v":0},null,{"$f":"SUMIF(dati_sp!$H$2:$H$65536,s_bil_std!$A118,dati_sp!$E$2:$E$65536)","v":0},{"$f":"SUMIF(dati_sp!$H$2:$H$65536,s_bil_std!$A118,dati_sp!$E$2:$E$65536)","v":0},null,{"$f":"SUMIF(dati_sp!$H$2:$H$65536,s_bil_std!$A118,dati_sp!$F$2:$F$65536)","v":0},{"$f":"SUMIF(dati_sp!$H$2:$H$65536,s_bil_std!$A118,dati_sp!$F$2:$F$65536)","v":0},null,{"$f":"SUMIF(dati_sp!$H$2:$H$65536,s_bil_std!$A118,dati_sp!$G$2:$G$65536)","v":0},{"$f":"SUMIF(dati_sp!$H$2:$H$65536,s_bil_std!$A118,dati_sp!$G$2:$G$65536)","v":0},null,null,0,0,0,0,0,null," "]
["2.A.7.15","Riserva da condono fiscale","NO","Dett.","Dett.",null,null,null,{"$f":"SUMIF(dati_sp!$H$2:$H$65536,s_bil_std!$A119,dati_sp!$C$2:$C$65536)","v":0},{"$f":"SUMIF(dati_sp!$H$2:$H$65536,s_bil_std!$A119,dati_sp!$C$2:$C$65536)","v":0},null,{"$f":"SUMIF(dati_sp!$H$2:$H$65536,s_bil_std!$A119,dati_sp!$D$2:$D$65536)","v":0},{"$f":"SUMIF(dati_sp!$H$2:$H$65536,s_bil_std!$A119,dati_sp!$D$2:$D$65536)","v":0},null,{"$f":"SUMIF(dati_sp!$H$2:$H$65536,s_bil_std!$A119,dati_sp!$E$2:$E$65536)","v":0},{"$f":"SUMIF(dati_sp!$H$2:$H$65536,s_bil_std!$A119,dati_sp!$E$2:$E$65536)","v":0},null,{"$f":"SUMIF(dati_sp!$H$2:$H$65536,s_bil_std!$A119,dati_sp!$F$2:$F$65536)","v":0},{"$f":"SUMIF(dati_sp!$H$2:$H$65536,s_bil_std!$A119,dati_sp!$F$2:$F$65536)","v":0},null,{"$f":"SUMIF(dati_sp!$H$2:$H$65536,s_bil_std!$A119,dati_sp!$G$2:$G$65536)","v":0},{"$f":"SUMIF(dati_sp!$H$2:$H$65536,s_bil_std!$A119,dati_sp!$G$2:$G$65536)","v":0},null,null,0,0,0,0,0,null," "]
["2.A.7.16","Riserva per utili su cambi","NO","Dett.","Dett.",null,null,null,{"$f":"SUMIF(dati_sp!$H$2:$H$65536,s_bil_std!$A120,dati_sp!$C$2:$C$65536)","v":0},{"$f":"SUMIF(dati_sp!$H$2:$H$65536,s_bil_std!$A120,dati_sp!$C$2:$C$65536)","v":0},null,{"$f":"SUMIF(dati_sp!$H$2:$H$65536,s_bil_std!$A120,dati_sp!$D$2:$D$65536)","v":0},{"$f":"SUMIF(dati_sp!$H$2:$H$65536,s_bil_std!$A120,dati_sp!$D$2:$D$65536)","v":0},null,{"$f":"SUMIF(dati_sp!$H$2:$H$65536,s_bil_std!$A120,dati_sp!$E$2:$E$65536)","v":0},{"$f":"SUMIF(dati_sp!$H$2:$H$65536,s_bil_std!$A120,dati_sp!$E$2:$E$65536)","v":0},null,{"$f":"SUMIF(dati_sp!$H$2:$H$65536,s_bil_std!$A120,dati_sp!$F$2:$F$65536)","v":0},{"$f":"SUMIF(dati_sp!$H$2:$H$65536,s_bil_std!$A120,dati_sp!$F$2:$F$65536)","v":0},null,{"$f":"SUMIF(dati_sp!$H$2:$H$65536,s_bil_std!$A120,dati_sp!$G$2:$G$65536)","v":0},{"$f":"SUMIF(dati_sp!$H$2:$H$65536,s_bil_std!$A120,dati_sp!$G$2:$G$65536)","v":0},null,null,0,0,0,0,0,null," "]
["2.A.7.17","Riserva per differenza da arrotondamento all'unità di euro","NO","Dett.","Dett.",null,null,null,{"$f":"SUMIF(dati_sp!$H$2:$H$65536,s_bil_std!$A121,dati_sp!$C$2:$C$65536)","v":0},{"$f":"SUMIF(dati_sp!$H$2:$H$65536,s_bil_std!$A121,dati_sp!$C$2:$C$65536)","v":0},null,{"$f":"SUMIF(dati_sp!$H$2:$H$65536,s_bil_std!$A121,dati_sp!$D$2:$D$65536)","v":0},{"$f":"SUMIF(dati_sp!$H$2:$H$65536,s_bil_std!$A121,dati_sp!$D$2:$D$65536)","v":0},null,{"$f":"SUMIF(dati_sp!$H$2:$H$65536,s_bil_std!$A121,dati_sp!$E$2:$E$65536)","v":0},{"$f":"SUMIF(dati_sp!$H$2:$H$65536,s_bil_std!$A121,dati_sp!$E$2:$E$65536)","v":0},null,{"$f":"SUMIF(dati_sp!$H$2:$H$65536,s_bil_std!$A121,dati_sp!$F$2:$F$65536)","v":0},{"$f":"SUMIF(dati_sp!$H$2:$H$65536,s_bil_std!$A121,dati_sp!$F$2:$F$65536)","v":0},null,{"$f":"SUMIF(dati_sp!$H$2:$H$65536,s_bil_std!$A121,dati_sp!$G$2:$G$65536)","v":0},{"$f":"SUMIF(dati_sp!$H$2:$H$65536,s_bil_std!$A121,dati_sp!$G$2:$G$65536)","v":0},null,null,0,0,0,0,0,null," "]
["2.A.7.99","Varie altre riserve","NO","Dett.","Dett.",null,null,null,{"$f":"SUMIF(dati_sp!$H$2:$H$65536,s_bil_std!$A122,dati_sp!$C$2:$C$65536)","v":1},{"$f":"SUMIF(dati_sp!$H$2:$H$65536,s_bil_std!$A122,dati_sp!$C$2:$C$65536)","v":1},null,{"$f":"SUMIF(dati_sp!$H$2:$H$65536,s_bil_std!$A122,dati_sp!$D$2:$D$65536)","v":0},{"$f":"SUMIF(dati_sp!$H$2:$H$65536,s_bil_std!$A122,dati_sp!$D$2:$D$65536)","v":0},null,{"$f":"SUMIF(dati_sp!$H$2:$H$65536,s_bil_std!$A122,dati_sp!$E$2:$E$65536)","v":0},{"$f":"SUMIF(dati_sp!$H$2:$H$65536,s_bil_std!$A122,dati_sp!$E$2:$E$65536)","v":0},null,{"$f":"SUMIF(dati_sp!$H$2:$H$65536,s_bil_std!$A122,dati_sp!$F$2:$F$65536)","v":0},{"$f":"SUMIF(dati_sp!$H$2:$H$65536,s_bil_std!$A122,dati_sp!$F$2:$F$65536)","v":0},null,{"$f":"SUMIF(dati_sp!$H$2:$H$65536,s_bil_std!$A122,dati_sp!$G$2:$G$65536)","v":0},{"$f":"SUMIF(dati_sp!$H$2:$H$65536,s_bil_std!$A122,dati_sp!$G$2:$G$65536)","v":0},null,null,1,0,0,0,0,null," "]
["2.A.7.101","Riserve di conversione da consolidamento estero","SI","Dett.","Dett.",null,null,null,{"$f":"SUMIF(dati_sp!$H$2:$H$65536,s_bil_std!$A123,dati_sp!$C$2:$C$65536)","v":0},null,null,{"$f":"SUMIF(dati_sp!$H$2:$H$65536,s_bil_std!$A123,dati_sp!$D$2:$D$65536)","v":0},null,null,{"$f":"SUMIF(dati_sp!$H$2:$H$65536,s_bil_std!$A123,dati_sp!$E$2:$E$65536)","v":0},null,null,{"$f":"SUMIF(dati_sp!$H$2:$H$65536,s_bil_std!$A123,dati_sp!$F$2:$F$65536)","v":0},null,null,{"$f":"SUMIF(dati_sp!$H$2:$H$65536,s_bil_std!$A123,dati_sp!$G$2:$G$65536)","v":0},null,null,null,0,0,0,0,0,null," "]
["2.A.7.103","Riserva di consolidamento","SI","Dett.","Dett.",null,null,null,{"$f":"SUMIF(dati_sp!$H$2:$H$65536,s_bil_std!$A124,dati_sp!$C$2:$C$65536)","v":0},null,null,{"$f":"SUMIF(dati_sp!$H$2:$H$65536,s_bil_std!$A124,dati_sp!$D$2:$D$65536)","v":0},null,null,{"$f":"SUMIF(dati_sp!$H$2:$H$65536,s_bil_std!$A124,dati_sp!$E$2:$E$65536)","v":0},null,null,{"$f":"SUMIF(dati_sp!$H$2:$H$65536,s_bil_std!$A124,dati_sp!$F$2:$F$65536)","v":0},null,null,{"$f":"SUMIF(dati_sp!$H$2:$H$65536,s_bil_std!$A124,dati_sp!$G$2:$G$65536)","v":0},null,null,null,0,0,0,0,0,null," "]
["2.A.8","Utili (perdite) portati a nuovo","NO","Dett.","Dett.",171,null,null,{"$f":"SUMIF(dati_sp!$H$2:$H$65536,s_bil_std!$A125,dati_sp!$C$2:$C$65536)","v":64367},{"$f":"SUMIF(dati_sp!$H$2:$H$65536,s_bil_std!$A125,dati_sp!$C$2:$C$65536)","v":64367},null,{"$f":"SUMIF(dati_sp!$H$2:$H$65536,s_bil_std!$A125,dati_sp!$D$2:$D$65536)","v":63824},{"$f":"SUMIF(dati_sp!$H$2:$H$65536,s_bil_std!$A125,dati_sp!$D$2:$D$65536)","v":63824},null,{"$f":"SUMIF(dati_sp!$H$2:$H$65536,s_bil_std!$A125,dati_sp!$E$2:$E$65536)","v":0},{"$f":"SUMIF(dati_sp!$H$2:$H$65536,s_bil_std!$A125,dati_sp!$E$2:$E$65536)","v":0},null,{"$f":"SUMIF(dati_sp!$H$2:$H$65536,s_bil_std!$A125,dati_sp!$F$2:$F$65536)","v":0},{"$f":"SUMIF(dati_sp!$H$2:$H$65536,s_bil_std!$A125,dati_sp!$F$2:$F$65536)","v":0},null,{"$f":"SUMIF(dati_sp!$H$2:$H$65536,s_bil_std!$A125,dati_sp!$G$2:$G$65536)","v":0},{"$f":"SUMIF(dati_sp!$H$2:$H$65536,s_bil_std!$A125,dati_sp!$G$2:$G$65536)","v":0},null,null,64367,63824,0,0,0,null,"VIII -"]
["2.A.9","Utile (perdita) dell'esercizio","NO","Dett.","Dett.",172,null,null,{"$f":"SUMIF(dati_sp!$H$2:$H$65536,s_bil_std!$A126,dati_sp!$C$2:$C$65536)","v":0},{"$f":"SUMIF(dati_sp!$H$2:$H$65536,s_bil_std!$A126,dati_sp!$C$2:$C$65536)","v":0},null,{"$f":"SUMIF(dati_sp!$H$2:$H$65536,s_bil_std!$A126,dati_sp!$D$2:$D$65536)","v":0},{"$f":"SUMIF(dati_sp!$H$2:$H$65536,s_bil_std!$A126,dati_sp!$D$2:$D$65536)","v":0},null,{"$f":"SUMIF(dati_sp!$H$2:$H$65536,s_bil_std!$A126,dati_sp!$E$2:$E$65536)","v":0},{"$f":"SUMIF(dati_sp!$H$2:$H$65536,s_bil_std!$A126,dati_sp!$E$2:$E$65536)","v":0},null,{"$f":"SUMIF(dati_sp!$H$2:$H$65536,s_bil_std!$A126,dati_sp!$F$2:$F$65536)","v":0},{"$f":"SUMIF(dati_sp!$H$2:$H$65536,s_bil_std!$A126,dati_sp!$F$2:$F$65536)","v":0},null,{"$f":"SUMIF(dati_sp!$H$2:$H$65536,s_bil_std!$A126,dati_sp!$G$2:$G$65536)","v":0},{"$f":"SUMIF(dati_sp!$H$2:$H$65536,s_bil_std!$A126,dati_sp!$G$2:$G$65536)","v":0},null,null,0,0,0,0,0,null,"IX -"]
["2.A.10","TOTALE PATRIMONIO NETTO DI GRUPPO","SI","Totale",null,null,null,null,{"$f":"SUM(I97:I103,I125:I126)","v":92654},null,null,{"$f":"SUM(L97:L103,L125:L126)","v":92110},null,null,{"$f":"SUM(O97:O103,O125:O126)","v":0},null,null,{"$f":"SUM(R97:R103,R125:R126)","v":0},null,null,{"$f":"SUM(U97:U103,U125:U126)","v":0},null,null,null,0,0,0,0,0]
["2.A.11","PATRIMONIO NETTO DI TERZI","SI","Totale",null,168,null,null,{"$f":"SUM(I129:I130)","v":0},null,null,{"$f":"SUM(L129:L130)","v":0},null,null,{"$f":"SUM(O129:O130)","v":0},null,null,{"$f":"SUM(R129:R130)","v":0},null,null,{"$f":"SUM(U129:U130)","v":0},null,null,null,{"$f":"IF($AA$2=\"1\",I128,J128)","v":0},{"$f":"IF($AA$2=\"1\",L128,M128)","v":0},{"$f":"IF($AA$2=\"1\",O128,P128)","v":0},{"$f":"IF($AA$2=\"1\",R128,S128)","v":0},{"$f":"IF($AA$2=\"1\",U128,V128)","v":0},null," "]
["2.A.11.1","Capitale e riserve di terzi","SI","Dett.",null,null,null,null,{"$f":"SUMIF(dati_sp!$H$2:$H$65536,s_bil_std!$A129,dati_sp!$C$2:$C$65536)","v":0},null,null,{"$f":"SUMIF(dati_sp!$H$2:$H$65536,s_bil_std!$A129,dati_sp!$D$2:$D$65536)","v":0},null,null,{"$f":"SUMIF(dati_sp!$H$2:$H$65536,s_bil_std!$A129,dati_sp!$E$2:$E$65536)","v":0},null,null,{"$f":"SUMIF(dati_sp!$H$2:$H$65536,s_bil_std!$A129,dati_sp!$F$2:$F$65536)","v":0},null,null,{"$f":"SUMIF(dati_sp!$H$2:$H$65536,s_bil_std!$A129,dati_sp!$G$2:$G$65536)","v":0},null,null,null,0,0,0,0,0,null," "]
["2.A.11.2","Utile (perdita) dell'esercizio di pertinenza di terzi","SI","Dett.",null,null,null,null,{"$f":"SUMIF(dati_sp!$H$2:$H$65536,s_bil_std!$A130,dati_sp!$C$2:$C$65536)","v":0},null,null,{"$f":"SUMIF(dati_sp!$H$2:$H$65536,s_bil_std!$A130,dati_sp!$D$2:$D$65536)","v":0},null,null,{"$f":"SUMIF(dati_sp!$H$2:$H$65536,s_bil_std!$A130,dati_sp!$E$2:$E$65536)","v":0},null,null,{"$f":"SUMIF(dati_sp!$H$2:$H$65536,s_bil_std!$A130,dati_sp!$F$2:$F$65536)","v":0},null,null,{"$f":"SUMIF(dati_sp!$H$2:$H$65536,s_bil_std!$A130,dati_sp!$G$2:$G$65536)","v":0},null,null,null,0,0,0,0,0,null," "]
["2.B","FONDI PER RISCHI E ONERI","NO","Totale","Dett.",170,170,null,{"$f":"SUM(I132:I135)","v":0},{"$f":"SUMIF(dati_sp!$H$2:$H$65536,s_bil_std!$A131,dati_sp!$C$2:$C$65536)","v":0},null,{"$f":"SUM(L132:L135)","v":0},{"$f":"SUMIF(dati_sp!$H$2:$H$65536,s_bil_std!$A131,dati_sp!$D$2:$D$65536)","v":0},null,{"$f":"SUM(O132:O135)","v":0},{"$f":"SUMIF(dati_sp!$H$2:$H$65536,s_bil_std!$A131,dati_sp!$E$2:$E$65536)","v":0},null,{"$f":"SUM(R132:R135)","v":0},{"$f":"SUMIF(dati_sp!$H$2:$H$65536,s_bil_std!$A131,dati_sp!$F$2:$F$65536)","v":0},null,{"$f":"SUM(U132:U135)","v":0},{"$f":"SUMIF(dati_sp!$H$2:$H$65536,s_bil_std!$A131,dati_sp!$G$2:$G$65536)","v":0},null,null,0,0,0,0,0,null,"B)"]
["2.B.1","Fondo per trattamento di quiescenza e obblighi simili","NO","Dett.",null,173,null,null,{"$f":"SUMIF(dati_sp!$H$2:$H$65536,s_bil_std!$A132,dati_sp!$C$2:$C$65536)","v":0},null,null,{"$f":"SUMIF(dati_sp!$H$2:$H$65536,s_bil_std!$A132,dati_sp!$D$2:$D$65536)","v":0},null,null,{"$f":"SUMIF(dati_sp!$H$2:$H$65536,s_bil_std!$A132,dati_sp!$E$2:$E$65536)","v":0},null,null,{"$f":"SUMIF(dati_sp!$H$2:$H$65536,s_bil_std!$A132,dati_sp!$F$2:$F$65536)","v":0},null,null,{"$f":"SUMIF(dati_sp!$H$2:$H$65536,s_bil_std!$A132,dati_sp!$G$2:$G$65536)","v":0},null,null,null,0,0,0,0,0,null,"1)"]
["2.B.2","Fondo per imposte, anche differite","NO","Dett.",null,175,175,null,{"$f":"SUMIF(dati_sp!$H$2:$H$65536,s_bil_std!$A133,dati_sp!$C$2:$C$65536)","v":0},null,null,{"$f":"SUMIF(dati_sp!$H$2:$H$65536,s_bil_std!$A133,dati_sp!$D$2:$D$65536)","v":0},null,null,{"$f":"SUMIF(dati_sp!$H$2:$H$65536,s_bil_std!$A133,dati_sp!$E$2:$E$65536)","v":0},null,null,{"$f":"SUMIF(dati_sp!$H$2:$H$65536,s_bil_std!$A133,dati_sp!$F$2:$F$65536)","v":0},null,null,{"$f":"SUMIF(dati_sp!$H$2:$H$65536,s_bil_std!$A133,dati_sp!$G$2:$G$65536)","v":0},null,null,null,0,0,0,0,0,null,"2)"]
["2.B.2a","Fondo consolidamento rischi e oneri futuri","SI","Dett.",null,174,174,null,{"$f":"SUMIF(dati_sp!$H$2:$H$65536,s_bil_std!$A134,dati_sp!$C$2:$C$65536)","v":0},null,null,{"$f":"SUMIF(dati_sp!$H$2:$H$65536,s_bil_std!$A134,dati_sp!$D$2:$D$65536)","v":0},null,null,{"$f":"SUMIF(dati_sp!$H$2:$H$65536,s_bil_std!$A134,dati_sp!$E$2:$E$65536)","v":0},null,null,{"$f":"SUMIF(dati_sp!$H$2:$H$65536,s_bil_std!$A134,dati_sp!$F$2:$F$65536)","v":0},null,null,{"$f":"SUMIF(dati_sp!$H$2:$H$65536,s_bil_std!$A134,dati_sp!$G$2:$G$65536)","v":0},null,null,null,0,0,0,0,0,null,"4)"]
["2.B.3","Atri fondi","NO","Dett.",null,174,174,null,{"$f":"SUMIF(dati_sp!$H$2:$H$65536,s_bil_std!$A135,dati_sp!$C$2:$C$65536)","v":0},null,null,{"$f":"SUMIF(dati_sp!$H$2:$H$65536,s_bil_std!$A135,dati_sp!$D$2:$D$65536)","v":0},null,null,{"$f":"SUMIF(dati_sp!$H$2:$H$65536,s_bil_std!$A135,dati_sp!$E$2:$E$65536)","v":0},null,null,{"$f":"SUMIF(dati_sp!$H$2:$H$65536,s_bil_std!$A135,dati_sp!$F$2:$F$65536)","v":0},null,null,{"$f":"SUMIF(dati_sp!$H$2:$H$65536,s_bil_std!$A135,dati_sp!$G$2:$G$65536)","v":0},null,null,null,0,0,0,0,0,null,"3)"]
["2.C","TRATTAMENTO DI FINE RAPPORTO DI LAVORO","NO","Dett.","Dett.",180,180,null,{"$f":"SUMIF(dati_sp!$H$2:$H$65536,s_bil_std!$A136,dati_sp!$C$2:$C$65536)","v":0},{"$f":"SUMIF(dati_sp!$H$2:$H$65536,s_bil_std!$A136,dati_sp!$C$2:$C$65536)","v":0},null,{"$f":"SUMIF(dati_sp!$H$2:$H$65536,s_bil_std!$A136,dati_sp!$D$2:$D$65536)","v":0},{"$f":"SUMIF(dati_sp!$H$2:$H$65536,s_bil_std!$A136,dati_sp!$D$2:$D$65536)","v":0},null,{"$f":"SUMIF(dati_sp!$H$2:$H$65536,s_bil_std!$A136,dati_sp!$E$2:$E$65536)","v":0},{"$f":"SUMIF(dati_sp!$H$2:$H$65536,s_bil_std!$A136,dati_sp!$E$2:$E$65536)","v":0},null,{"$f":"SUMIF(dati_sp!$H$2:$H$65536,s_bil_std!$A136,dati_sp!$F$2:$F$65536)","v":0},{"$f":"SUMIF(dati_sp!$H$2:$H$65536,s_bil_std!$A136,dati_sp!$F$2:$F$65536)","v":0},null,{"$f":"SUMIF(dati_sp!$H$2:$H$65536,s_bil_std!$A136,dati_sp!$G$2:$G$65536)","v":0},{"$f":"SUMIF(dati_sp!$H$2:$H$65536,s_bil_std!$A136,dati_sp!$G$2:$G$65536)","v":0},null,null,0,0,0,0,0,null,"C)"]
["2.D","DEBITI","NO","Totale","Dett.",190,190,null,{"$f":"SUM(I140,I143,I146,I149,I152,I155,I158,I161,I164,I167,I170,I173,I176,I179)","v":86818},{"$f":"SUMIF(dati_sp!$H$2:$H$65536,s_bil_std!$A137,dati_sp!$C$2:$C$65536)","v":0},null,{"$f":"SUM(L140,L143,L146,L149,L152,L155,L158,L161,L164,L167,L170,L173,L176,L179)","v":90304},{"$f":"SUMIF(dati_sp!$H$2:$H$65536,s_bil_std!$A137,dati_sp!$D$2:$D$65536)","v":0},null,{"$f":"SUM(O140,O143,O146,O149,O152,O155,O158,O161,O164,O167,O170,O173,O176,O179)","v":0},{"$f":"SUMIF(dati_sp!$H$2:$H$65536,s_bil_std!$A137,dati_sp!$E$2:$E$65536)","v":0},null,{"$f":"SUM(R140,R143,R146,R149,R152,R155,R158,R161,R164,R167,R170,R173,R176,R179)","v":0},{"$f":"SUMIF(dati_sp!$H$2:$H$65536,s_bil_std!$A137,dati_sp!$F$2:$F$65536)","v":0},null,{"$f":"SUM(U140,U143,U146,U149,U152,U155,U158,U161,U164,U167,U170,U173,U176,U179)","v":0},{"$f":"SUMIF(dati_sp!$H$2:$H$65536,s_bil_std!$A137,dati_sp!$G$2:$G$65536)","v":0},null,null,0,0,0,0,0,null,"D)"]
["2.D.a","Entro l'esercizio successivo",null,null,null,"S201",200,null,{"$f":"SUM(I141,I144,I147,I150,I153,I156,I159,I162,I165,I168,I171,I174,I177,I180)","v":86818},{"$f":"s_sep_ind!E45+s_sep_ind!F45","v":0},null,{"$f":"SUM(L141,L144,L147,L150,L153,L156,L159,L162,L165,L168,L171,L174,L177,L180)","v":90304},{"$f":"s_sep_ind!I45+s_sep_ind!J45","v":0},null,{"$f":"SUM(O141,O144,O147,O150,O153,O156,O159,O162,O165,O168,O171,O174,O177,O180)","v":0},{"$f":"s_sep_ind!M45+s_sep_ind!N45","v":0},null,{"$f":"SUM(R141,R144,R147,R150,R153,R156,R159,R162,R165,R168,R171,R174,R177,R180)","v":0},{"$f":"s_sep_ind!Q45+s_sep_ind!R45","v":0},null,{"$f":"SUM(U141,U144,U147,U150,U153,U156,U159,U162,U165,U168,U171,U174,U177,U180)","v":0},{"$f":"s_sep_ind!U45+s_sep_ind!V45","v":0},null,null,0,0,0,0,0,null," "]
["2.D.b","Oltre l'esercizio successivo",null,null,null,211,null,null,{"$f":"SUM(I142,I145,I148,I151,I154,I157,I160,I163,I166,I169,I172,I175,I178,I181)","v":0},{"$f":"s_sep_ind!E46","v":0},null,{"$f":"SUM(L142,L145,L148,L151,L154,L157,L160,L163,L166,L169,L172,L175,L178,L181)","v":0},{"$f":"s_sep_ind!I46","v":0},null,{"$f":"SUM(O142,O145,O148,O151,O154,O157,O160,O163,O166,O169,O172,O175,O178,O181)","v":0},{"$f":"s_sep_ind!M46","v":0},null,{"$f":"SUM(R142,R145,R148,R151,R154,R157,R160,R163,R166,R169,R172,R175,R178,R181)","v":0},{"$f":"s_sep_ind!Q46","v":0},null,{"$f":"SUM(U142,U145,U148,U151,U154,U157,U160,U163,U166,U169,U172,U175,U178,U181)","v":0},{"$f":"s_sep_ind!U46","v":0},null,null,0,0,0,0,0,null," "]
["2.D.1","Debiti per obbligazioni","NO","Dett.",null,191,null,null,{"$f":"SUMIF(dati_sp!$H$2:$H$65536,s_bil_std!$A140,dati_sp!$C$2:$C$65536)","v":0},null,null,{"$f":"SUMIF(dati_sp!$H$2:$H$65536,s_bil_std!$A140,dati_sp!$D$2:$D$65536)","v":0},null,null,{"$f":"SUMIF(dati_sp!$H$2:$H$65536,s_bil_std!$A140,dati_sp!$E$2:$E$65536)","v":0},null,null,{"$f":"SUMIF(dati_sp!$H$2:$H$65536,s_bil_std!$A140,dati_sp!$F$2:$F$65536)","v":0},null,null,{"$f":"SUMIF(dati_sp!$H$2:$H$65536,s_bil_std!$A140,dati_sp!$G$2:$G$65536)","v":0},null,null,null,0,0,0,0,0,null,"1)"]
["2.D.1.1","Entro l'esercizio successivo","NO","Sc. Temp.",null,null,null,null,{"$f":"s_sep_ind!C48+s_sep_ind!D48","v":0},null,null,{"$f":"s_sep_ind!G48+s_sep_ind!H48","v":0},null,null,{"$f":"s_sep_ind!K48+s_sep_ind!L48","v":0},null,null,{"$f":"s_sep_ind!O48+s_sep_ind!P48","v":0},null,null,{"$f":"s_sep_ind!S48+s_sep_ind!T48","v":0},null,null,null,0,0,0,0,0,null," "]
["2.D.1.2","Oltre l'esercizio successivo","NO","Sc. Temp.",null,181,null,null,{"$f":"s_sep_ind!C49","v":0},null,null,{"$f":"s_sep_ind!G49","v":0},null,null,{"$f":"s_sep_ind!K49","v":0},null,null,{"$f":"s_sep_ind!O49","v":0},null,null,{"$f":"s_sep_ind!S49","v":0},null,null,null,0,0,0,0,0,null," "]
["2.D.2","Debiti per obbligazioni convertibili","NO","Dett.",null,192,null,null,{"$f":"SUMIF(dati_sp!$H$2:$H$65536,s_bil_std!$A143,dati_sp!$C$2:$C$65536)","v":0},null,null,{"$f":"SUMIF(dati_sp!$H$2:$H$65536,s_bil_std!$A143,dati_sp!$D$2:$D$65536)","v":0},null,null,{"$f":"SUMIF(dati_sp!$H$2:$H$65536,s_bil_std!$A143,dati_sp!$E$2:$E$65536)","v":0},null,null,{"$f":"SUMIF(dati_sp!$H$2:$H$65536,s_bil_std!$A143,dati_sp!$F$2:$F$65536)","v":0},null,null,{"$f":"SUMIF(dati_sp!$H$2:$H$65536,s_bil_std!$A143,dati_sp!$G$2:$G$65536)","v":0},null,null,null,0,0,0,0,0,null,"2)"]
["2.D.2.1","Entro l'esercizio successivo","NO","Sc. Temp.",null,null,null,null,{"$f":"s_sep_ind!C51+s_sep_ind!D51","v":0},null,null,{"$f":"s_sep_ind!G51+s_sep_ind!H51","v":0},null,null,{"$f":"s_sep_ind!K51+s_sep_ind!L51","v":0},null,null,{"$f":"s_sep_ind!O51+s_sep_ind!P51","v":0},null,null,{"$f":"s_sep_ind!S51+s_sep_ind!T51","v":0},null,null,null,0,0,0,0,0,null," "]
["2.D.2.2","Oltre l'esercizio successivo","NO","Sc. Temp.",null,182,null,null,{"$f":"s_sep_ind!C52","v":0},null,null,{"$f":"s_sep_ind!G52","v":0},null,null,{"$f":"s_sep_ind!K52","v":0},null,null,{"$f":"s_sep_ind!O52","v":0},null,null,{"$f":"s_sep_ind!S52","v":0},null,null,null,0,0,0,0,0,null," "]
["2.D.3","Debiti verso soci per finanziamenti","NO","Dett.",null,11400,null,null,{"$f":"SUMIF(dati_sp!$H$2:$H$65536,s_bil_std!$A146,dati_sp!$C$2:$C$65536)","v":21490},null,null,{"$f":"SUMIF(dati_sp!$H$2:$H$65536,s_bil_std!$A146,dati_sp!$D$2:$D$65536)","v":21490},null,null,{"$f":"SUMIF(dati_sp!$H$2:$H$65536,s_bil_std!$A146,dati_sp!$E$2:$E$65536)","v":0},null,null,{"$f":"SUMIF(dati_sp!$H$2:$H$65536,s_bil_std!$A146,dati_sp!$F$2:$F$65536)","v":0},null,null,{"$f":"SUMIF(dati_sp!$H$2:$H$65536,s_bil_std!$A146,dati_sp!$G$2:$G$65536)","v":0},null,null,null,0,0,0,0,0,null,"3)"]
["2.D.3.1","Entro l'esercizio successivo","NO","Sc. Temp.",null,null,null,null,{"$f":"s_sep_ind!C54+s_sep_ind!D54","v":21490},null,null,{"$f":"s_sep_ind!G54+s_sep_ind!H54","v":21490},null,null,{"$f":"s_sep_ind!K54+s_sep_ind!L54","v":0},null,null,{"$f":"s_sep_ind!O54+s_sep_ind!P54","v":0},null,null,{"$f":"s_sep_ind!S54+s_sep_ind!T54","v":0},null,null,null,0,0,0,0,0,null," "]
["2.D.3.2","Oltre l'esercizio successivo","NO","Sc. Temp.",null,11450,null,null,{"$f":"s_sep_ind!C55","v":0},null,null,{"$f":"s_sep_ind!G55","v":0},null,null,{"$f":"s_sep_ind!K55","v":0},null,null,{"$f":"s_sep_ind!O55","v":0},null,null,{"$f":"s_sep_ind!S55","v":0},null,null,null,0,0,0,0,0,null," "]
["2.D.4","Debiti verso banche","NO","T.per.",null,193,null,null,{"$f":"SUMIF(dati_sp!$H$2:$H$65536,s_bil_std!$A149,dati_sp!$C$2:$C$65536)","v":1514},null,null,{"$f":"SUMIF(dati_sp!$H$2:$H$65536,s_bil_std!$A149,dati_sp!$D$2:$D$65536)","v":5000},null,null,{"$f":"SUMIF(dati_sp!$H$2:$H$65536,s_bil_std!$A149,dati_sp!$E$2:$E$65536)","v":0},null,null,{"$f":"SUMIF(dati_sp!$H$2:$H$65536,s_bil_std!$A149,dati_sp!$F$2:$F$65536)","v":0},null,null,{"$f":"SUMIF(dati_sp!$H$2:$H$65536,s_bil_std!$A149,dati_sp!$G$2:$G$65536)","v":0},null,null,null,0,0,0,0,0,null,"4)"]
["2.D.4.1","Entro l'esercizio successivo","NO","Sc. Temp.",null,"S202",212,null,{"$f":"s_sep_ind!C57+s_sep_ind!D57","v":1514},null,null,{"$f":"s_sep_ind!G57+s_sep_ind!H57","v":5000},null,null,{"$f":"s_sep_ind!K57+s_sep_ind!L57","v":0},null,null,{"$f":"s_sep_ind!O57+s_sep_ind!P57","v":0},null,null,{"$f":"s_sep_ind!S57+s_sep_ind!T57","v":0},null,null,null,0,0,0,0,0,null," "]
["2.D.4.2","Oltre l'esercizio successivo","NO","Sc. Temp.",null,210,210,null,{"$f":"s_sep_ind!C58","v":0},null,null,{"$f":"s_sep_ind!G58","v":0},null,null,{"$f":"s_sep_ind!K58","v":0},null,null,{"$f":"s_sep_ind!O58","v":0},null,null,{"$f":"s_sep_ind!S58","v":0},null,null,null,0,0,0,0,0,null," "]
["2.D.5","Debiti verso altri finanziatori","NO","Dett.",null,194,null,null,{"$f":"SUMIF(dati_sp!$H$2:$H$65536,s_bil_std!$A152,dati_sp!$C$2:$C$65536)","v":0},null,null,{"$f":"SUMIF(dati_sp!$H$2:$H$65536,s_bil_std!$A152,dati_sp!$D$2:$D$65536)","v":0},null,null,{"$f":"SUMIF(dati_sp!$H$2:$H$65536,s_bil_std!$A152,dati_sp!$E$2:$E$65536)","v":0},null,null,{"$f":"SUMIF(dati_sp!$H$2:$H$65536,s_bil_std!$A152,dati_sp!$F$2:$F$65536)","v":0},null,null,{"$f":"SUMIF(dati_sp!$H$2:$H$65536,s_bil_std!$A152,dati_sp!$G$2:$G$65536)","v":0},null,null,null,0,0,0,0,0,null,"5)"]
["2.D.5.1","Entro l'esercizio successivo","NO","Sc. Temp.",null,null,null,null,{"$f":"s_sep_ind!C60+s_sep_ind!D60","v":0},null,null,{"$f":"s_sep_ind!G60+s_sep_ind!H60","v":0},null,null,{"$f":"s_sep_ind!K60+s_sep_ind!L60","v":0},null,null,{"$f":"s_sep_ind!O60+s_sep_ind!P60","v":0},null,null,{"$f":"s_sep_ind!S60+s_sep_ind!T60","v":0},null,null,null,0,0,0,0,0,null," "]
["2.D.5.2","Oltre l'esercizio successivo","NO","Sc. Temp.",null,184,null,null,{"$f":"s_sep_ind!C61","v":0},null,null,{"$f":"s_sep_ind!G61","v":0},null,null,{"$f":"s_sep_ind!K61","v":0},null,null,{"$f":"s_sep_ind!O61","v":0},null,null,{"$f":"s_sep_ind!S61","v":0},null,null,null,0,0,0,0,0,null," "]
["2.D.6","Acconti da clienti","NO","Dett.",null,215,null,null,{"$f":"SUMIF(dati_sp!$H$2:$H$65536,s_bil_std!$A155,dati_sp!$C$2:$C$65536)","v":-6000},null,null,{"$f":"SUMIF(dati_sp!$H$2:$H$65536,s_bil_std!$A155,dati_sp!$D$2:$D$65536)","v":-6000},null,null,{"$f":"SUMIF(dati_sp!$H$2:$H$65536,s_bil_std!$A155,dati_sp!$E$2:$E$65536)","v":0},null,null,{"$f":"SUMIF(dati_sp!$H$2:$H$65536,s_bil_std!$A155,dati_sp!$F$2:$F$65536)","v":0},null,null,{"$f":"SUMIF(dati_sp!$H$2:$H$65536,s_bil_std!$A155,dati_sp!$G$2:$G$65536)","v":0},null,null,null,0,0,0,0,0,null,"6)"]
["2.D.6.1","Entro l'esercizio successivo","NO","Sc. Temp.",null,null,null,null,{"$f":"s_sep_ind!C63+s_sep_ind!D63","v":-6000},null,null,{"$f":"s_sep_ind!G63+s_sep_ind!H63","v":-6000},null,null,{"$f":"s_sep_ind!K63+s_sep_ind!L63","v":0},null,null,{"$f":"s_sep_ind!O63+s_sep_ind!P63","v":0},null,null,{"$f":"s_sep_ind!S63+s_sep_ind!T63","v":0},null,null,null,0,0,0,0,0,null," "]
["2.D.6.2","Oltre l'esercizio successivo","NO","Sc. Temp.",null,185,null,null,{"$f":"s_sep_ind!C64","v":0},null,null,{"$f":"s_sep_ind!G64","v":0},null,null,{"$f":"s_sep_ind!K64","v":0},null,null,{"$f":"s_sep_ind!O64","v":0},null,null,{"$f":"s_sep_ind!S64","v":0},null,null,null,0,0,0,0,0,null," "]
["2.D.7","Debiti verso fornitori","NO","Dett.",null,195,195,null,{"$f":"SUMIF(dati_sp!$H$2:$H$65536,s_bil_std!$A158,dati_sp!$C$2:$C$65536)","v":67139},null,null,{"$f":"SUMIF(dati_sp!$H$2:$H$65536,s_bil_std!$A158,dati_sp!$D$2:$D$65536)","v":67139},null,null,{"$f":"SUMIF(dati_sp!$H$2:$H$65536,s_bil_std!$A158,dati_sp!$E$2:$E$65536)","v":0},null,null,{"$f":"SUMIF(dati_sp!$H$2:$H$65536,s_bil_std!$A158,dati_sp!$F$2:$F$65536)","v":0},null,null,{"$f":"SUMIF(dati_sp!$H$2:$H$65536,s_bil_std!$A158,dati_sp!$G$2:$G$65536)","v":0},null,null,null,0,0,0,0,0,null,"7)"]
["2.D.7.1","Entro l'esercizio successivo","NO","Sc. Temp.",null,null,null,null,{"$f":"s_sep_ind!C66+s_sep_ind!D66","v":67139},null,null,{"$f":"s_sep_ind!G66+s_sep_ind!H66","v":67139},null,null,{"$f":"s_sep_ind!K66+s_sep_ind!L66","v":0},null,null,{"$f":"s_sep_ind!O66+s_sep_ind!P66","v":0},null,null,{"$f":"s_sep_ind!S66+s_sep_ind!T66","v":0},null,null,null,0,0,0,0,0,null," "]
["2.D.7.2","Oltre l'esercizio successivo","NO","Sc. Temp.",null,186,null,null,{"$f":"s_sep_ind!C67","v":0},null,null,{"$f":"s_sep_ind!G67","v":0},null,null,{"$f":"s_sep_ind!K67","v":0},null,null,{"$f":"s_sep_ind!O67","v":0},null,null,{"$f":"s_sep_ind!S67","v":0},null,null,null,{"$f":"IF($AA$2=\"1\",I160,J160)","v":0},{"$f":"IF($AA$2=\"1\",L160,M160)","v":0},{"$f":"IF($AA$2=\"1\",O160,P160)","v":0},{"$f":"IF($AA$2=\"1\",R160,S160)","v":0},{"$f":"IF($AA$2=\"1\",U160,V160)","v":0},null," "]
["2.D.8","Debiti rappresentati da titoli di credi","NO","Dett.",null,196,null,null,{"$f":"SUMIF(dati_sp!$H$2:$H$65536,s_bil_std!$A161,dati_sp!$C$2:$C$65536)","v":0},null,null,{"$f":"SUMIF(dati_sp!$H$2:$H$65536,s_bil_std!$A161,dati_sp!$D$2:$D$65536)","v":0},null,null,{"$f":"SUMIF(dati_sp!$H$2:$H$65536,s_bil_std!$A161,dati_sp!$E$2:$E$65536)","v":0},null,null,{"$f":"SUMIF(dati_sp!$H$2:$H$65536,s_bil_std!$A161,dati_sp!$F$2:$F$65536)","v":0},null,null,{"$f":"SUMIF(dati_sp!$H$2:$H$65536,s_bil_std!$A161,dati_sp!$G$2:$G$65536)","v":0},null,null,null,0,0,0,0,0,null,"8)"]
["2.D.8.1","Entro l'esercizio successivo","NO","Sc. Temp.",null,null,null,null,{"$f":"s_sep_ind!C69+s_sep_ind!D69","v":0},null,null,{"$f":"s_sep_ind!G69+s_sep_ind!H69","v":0},null,null,{"$f":"s_sep_ind!K69+s_sep_ind!L69","v":0},null,null,{"$f":"s_sep_ind!O69+s_sep_ind!P69","v":0},null,null,{"$f":"s_sep_ind!S69+s_sep_ind!T69","v":0},null,null,null,0,0,0,0,0,null," "]
["2.D.8.2","Oltre l'esercizio successivo","NO","Sc. Temp.",null,187,null,null,{"$f":"s_sep_ind!C70","v":0},null,null,{"$f":"s_sep_ind!G70","v":0},null,null,{"$f":"s_sep_ind!K70","v":0},null,null,{"$f":"s_sep_ind!O70","v":0},null,null,{"$f":"s_sep_ind!S70","v":0},null,null,null,0,0,0,0,0,null," "]
["2.D.9","Debiti verso imprese controllate","NO","Dett.",null,197,null,null,{"$f":"SUMIF(dati_sp!$H$2:$H$65536,s_bil_std!$A164,dati_sp!$C$2:$C$65536)","v":0},null,null,{"$f":"SUMIF(dati_sp!$H$2:$H$65536,s_bil_std!$A164,dati_sp!$D$2:$D$65536)","v":0},null,null,{"$f":"SUMIF(dati_sp!$H$2:$H$65536,s_bil_std!$A164,dati_sp!$E$2:$E$65536)","v":0},null,null,{"$f":"SUMIF(dati_sp!$H$2:$H$65536,s_bil_std!$A164,dati_sp!$F$2:$F$65536)","v":0},null,null,{"$f":"SUMIF(dati_sp!$H$2:$H$65536,s_bil_std!$A164,dati_sp!$G$2:$G$65536)","v":0},null,null,null,0,0,0,0,0,null,"9)"]
["2.D.9.1","Entro l'esercizio successivo","NO","Sc. Temp.",null,null,null,null,{"$f":"s_sep_ind!C72+s_sep_ind!D72","v":0},null,null,{"$f":"s_sep_ind!G72+s_sep_ind!H72","v":0},null,null,{"$f":"s_sep_ind!K72+s_sep_ind!L72","v":0},null,null,{"$f":"s_sep_ind!O72+s_sep_ind!P72","v":0},null,null,{"$f":"s_sep_ind!S72+s_sep_ind!T72","v":0},null,null,null,0,0,0,0,0,null," "]
["2.D.9.2","Oltre l'esercizio successivo","NO","Sc. Temp.",null,188,null,null,{"$f":"s_sep_ind!C73","v":0},null,null,{"$f":"s_sep_ind!G73","v":0},null,null,{"$f":"s_sep_ind!K73","v":0},null,null,{"$f":"s_sep_ind!O73","v":0},null,null,{"$f":"s_sep_ind!S73","v":0},null,null,null,0,0,0,0,0,null," "]
["2.D.10","Debiti verso imprese collegate","NO","Dett.",null,198,null,null,{"$f":"SUMIF(dati_sp!$H$2:$H$65536,s_bil_std!$A167,dati_sp!$C$2:$C$65536)","v":0},null,null,{"$f":"SUMIF(dati_sp!$H$2:$H$65536,s_bil_std!$A167,dati_sp!$D$2:$D$65536)","v":0},null,null,{"$f":"SUMIF(dati_sp!$H$2:$H$65536,s_bil_std!$A167,dati_sp!$E$2:$E$65536)","v":0},null,null,{"$f":"SUMIF(dati_sp!$H$2:$H$65536,s_bil_std!$A167,dati_sp!$F$2:$F$65536)","v":0},null,null,{"$f":"SUMIF(dati_sp!$H$2:$H$65536,s_bil_std!$A167,dati_sp!$G$2:$G$65536)","v":0},null,null,null,0,0,0,0,0,null,"10)"]
["2.D.10.1","Entro l'esercizio successivo","NO","Sc. Temp.",null,null,null,null,{"$f":"s_sep_ind!C75+s_sep_ind!D75","v":0},null,null,{"$f":"s_sep_ind!G75+s_sep_ind!H75","v":0},null,null,{"$f":"s_sep_ind!K75+s_sep_ind!L75","v":0},null,null,{"$f":"s_sep_ind!O75+s_sep_ind!P75","v":0},null,null,{"$f":"s_sep_ind!S75+s_sep_ind!T75","v":0},null,null,null,0,0,0,0,0,null," "]
["2.D.10.2","Oltre l'esercizio successivo","NO","Sc. Temp.",null,189,null,null,{"$f":"s_sep_ind!C76","v":0},null,null,{"$f":"s_sep_ind!G76","v":0},null,null,{"$f":"s_sep_ind!K76","v":0},null,null,{"$f":"s_sep_ind!O76","v":0},null,null,{"$f":"s_sep_ind!S76","v":0},null,null,null,0,0,0,0,0,null," "]
["2.D.11","Debiti verso imprese controllanti","NO","Dett.",null,199,null,null,{"$f":"SUMIF(dati_sp!$H$2:$H$65536,s_bil_std!$A170,dati_sp!$C$2:$C$65536)","v":0},null,null,{"$f":"SUMIF(dati_sp!$H$2:$H$65536,s_bil_std!$A170,dati_sp!$D$2:$D$65536)","v":0},null,null,{"$f":"SUMIF(dati_sp!$H$2:$H$65536,s_bil_std!$A170,dati_sp!$E$2:$E$65536)","v":0},null,null,{"$f":"SUMIF(dati_sp!$H$2:$H$65536,s_bil_std!$A170,dati_sp!$F$2:$F$65536)","v":0},null,null,{"$f":"SUMIF(dati_sp!$H$2:$H$65536,s_bil_std!$A170,dati_sp!$G$2:$G$65536)","v":0},null,null,null,0,0,0,0,0,null,"11)"]
["2.D.11.1","Entro l'esercizio successivo","NO","Sc. Temp.",null,null,null,null,{"$f":"s_sep_ind!C78+s_sep_ind!D78","v":0},null,null,{"$f":"s_sep_ind!G78+s_sep_ind!H78","v":0},null,null,{"$f":"s_sep_ind!K78+s_sep_ind!L78","v":0},null,null,{"$f":"s_sep_ind!O78+s_sep_ind!P78","v":0},null,null,{"$f":"s_sep_ind!S78+s_sep_ind!T78","v":0},null,null,null,0,0,0,0,0,null," "]
["2.D.11.2","Oltre l'esercizio successivo","NO","Sc. Temp.",null,204,null,null,{"$f":"s_sep_ind!C79","v":0},null,null,{"$f":"s_sep_ind!G79","v":0},null,null,{"$f":"s_sep_ind!K79","v":0},null,null,{"$f":"s_sep_ind!O79","v":0},null,null,{"$f":"s_sep_ind!S79","v":0},null,null,null,0,0,0,0,0,null," "]
["2.D.12","Debiti tributari","NO","Dett.",null,201,null,null,{"$f":"SUMIF(dati_sp!$H$2:$H$65536,s_bil_std!$A173,dati_sp!$C$2:$C$65536)","v":440},null,null,{"$f":"SUMIF(dati_sp!$H$2:$H$65536,s_bil_std!$A173,dati_sp!$D$2:$D$65536)","v":440},null,null,{"$f":"SUMIF(dati_sp!$H$2:$H$65536,s_bil_std!$A173,dati_sp!$E$2:$E$65536)","v":0},null,null,{"$f":"SUMIF(dati_sp!$H$2:$H$65536,s_bil_std!$A173,dati_sp!$F$2:$F$65536)","v":0},null,null,{"$f":"SUMIF(dati_sp!$H$2:$H$65536,s_bil_std!$A173,dati_sp!$G$2:$G$65536)","v":0},null,null,null,0,0,0,0,0,null,"12)"]
["2.D.12.1","Entro l'esercizio successivo","NO","Sc. Temp.",null,null,null,null,{"$f":"s_sep_ind!C81+s_sep_ind!D81","v":440},null,null,{"$f":"s_sep_ind!G81+s_sep_ind!H81","v":440},null,null,{"$f":"s_sep_ind!K81+s_sep_ind!L81","v":0},null,null,{"$f":"s_sep_ind!O81+s_sep_ind!P81","v":0},null,null,{"$f":"s_sep_ind!S81+s_sep_ind!T81","v":0},null,null,null,0,0,0,0,0,null," "]
["2.D.12.2","Oltre l'esercizio successivo","NO","Sc. Temp.",null,205,null,null,{"$f":"s_sep_ind!C82","v":0},null,null,{"$f":"s_sep_ind!G82","v":0},null,null,{"$f":"s_sep_ind!K82","v":0},null,null,{"$f":"s_sep_ind!O82","v":0},null,null,{"$f":"s_sep_ind!S82","v":0},null,null,null,0,0,0,0,0,null," "]
["2.D.13","Debiti verso istituti di previdenza e di sicurezza sociale","NO","Dett.",null,202,null,null,{"$f":"SUMIF(dati_sp!$H$2:$H$65536,s_bil_std!$A176,dati_sp!$C$2:$C$65536)","v":0},null,null,{"$f":"SUMIF(dati_sp!$H$2:$H$65536,s_bil_std!$A176,dati_sp!$D$2:$D$65536)","v":0},null,null,{"$f":"SUMIF(dati_sp!$H$2:$H$65536,s_bil_std!$A176,dati_sp!$E$2:$E$65536)","v":0},null,null,{"$f":"SUMIF(dati_sp!$H$2:$H$65536,s_bil_std!$A176,dati_sp!$F$2:$F$65536)","v":0},null,null,{"$f":"SUMIF(dati_sp!$H$2:$H$65536,s_bil_std!$A176,dati_sp!$G$2:$G$65536)","v":0},null,null,null,0,0,0,0,0,null,"13)"]
["2.D.13.1","Entro l'esercizio successivo","NO","Sc. Temp.",null,null,null,null,{"$f":"s_sep_ind!C84+s_sep_ind!D84","v":0},null,null,{"$f":"s_sep_ind!G84+s_sep_ind!H84","v":0},null,null,{"$f":"s_sep_ind!K84+s_sep_ind!L84","v":0},null,null,{"$f":"s_sep_ind!O84+s_sep_ind!P84","v":0},null,null,{"$f":"s_sep_ind!S84+s_sep_ind!T84","v":0},null,null,null,0,0,0,0,0,null," "]
["2.D.13.2","Oltre l'esercizio successivo","NO","Sc. Temp.",null,206,null,null,{"$f":"s_sep_ind!C85","v":0},null,null,{"$f":"s_sep_ind!G85","v":0},null,null,{"$f":"s_sep_ind!K85","v":0},null,null,{"$f":"s_sep_ind!O85","v":0},null,null,{"$f":"s_sep_ind!S85","v":0},null,null,null,0,0,0,0,0,null," "]
["2.D.14","Altri debiti","NO","Dett.",null,203,null,null,{"$f":"SUMIF(dati_sp!$H$2:$H$65536,s_bil_std!$A179,dati_sp!$C$2:$C$65536)","v":2235},null,null,{"$f":"SUMIF(dati_sp!$H$2:$H$65536,s_bil_std!$A179,dati_sp!$D$2:$D$65536)","v":2235},null,null,{"$f":"SUMIF(dati_sp!$H$2:$H$65536,s_bil_std!$A179,dati_sp!$E$2:$E$65536)","v":0},null,null,{"$f":"SUMIF(dati_sp!$H$2:$H$65536,s_bil_std!$A179,dati_sp!$F$2:$F$65536)","v":0},null,null,{"$f":"SUMIF(dati_sp!$H$2:$H$65536,s_bil_std!$A179,dati_sp!$G$2:$G$65536)","v":0},null,null,null,0,0,0,0,0,null,"14)"]
["2.D.14.1","Entro l'esercizio successivo","NO","Sc. Temp.",null,null,null,null,{"$f":"s_sep_ind!C87+s_sep_ind!D87","v":2235},null,null,{"$f":"s_sep_ind!G87+s_sep_ind!H87","v":2235},null,null,{"$f":"s_sep_ind!K87+s_sep_ind!L87","v":0},null,null,{"$f":"s_sep_ind!O87+s_sep_ind!O88","v":0},null,null,{"$f":"s_sep_ind!S87+s_sep_ind!T87","v":0},null,null,null,0,0,0,0,0,null," "]
["2.D.14.2","Oltre l'esercizio successivo","NO","Sc. Temp.",null,207,null,null,{"$f":"s_sep_ind!C88","v":0},null,null,{"$f":"s_sep_ind!G88","v":0},null,null,{"$f":"s_sep_ind!K88","v":0},null,null,{"$f":"s_sep_ind!P87","v":0},null,null,{"$f":"s_sep_ind!S88","v":0},null,null,null,0,0,0,0,0,null," "]
["2.E","RATEI E RISCONTI PASSIVI","NO","Totale","Totale",220,220,null,{"$f":"SUM(I183:I184)","v":0},{"$f":"SUM(J183:J184)","v":0},null,{"$f":"SUM(L183:L184)","v":0},{"$f":"SUM(M183:M184)","v":0},null,{"$f":"SUM(O183:O184)","v":0},{"$f":"SUM(P183:P184)","v":0},null,{"$f":"SUM(R183:R184)","v":0},{"$f":"SUM(S183:S184)","v":0},null,{"$f":"SUM(U183:U184)","v":0},{"$f":"SUM(V183:V184)","v":0},null,null,0,0,0,0,0,null,"E)"]
["2.E.1","Aggio su prestiti","NO","Dett.","Dett.",221,null,null,{"$f":"SUMIF(dati_sp!$H$2:$H$65536,s_bil_std!$A183,dati_sp!$C$2:$C$65536)","v":0},{"$f":"SUMIF(dati_sp!$H$2:$H$65536,s_bil_std!$A183,dati_sp!$C$2:$C$65536)","v":0},null,{"$f":"SUMIF(dati_sp!$H$2:$H$65536,s_bil_std!$A183,dati_sp!$D$2:$D$65536)","v":0},{"$f":"SUMIF(dati_sp!$H$2:$H$65536,s_bil_std!$A183,dati_sp!$D$2:$D$65536)","v":0},null,{"$f":"SUMIF(dati_sp!$H$2:$H$65536,s_bil_std!$A183,dati_sp!$E$2:$E$65536)","v":0},{"$f":"SUMIF(dati_sp!$H$2:$H$65536,s_bil_std!$A183,dati_sp!$E$2:$E$65536)","v":0},null,{"$f":"SUMIF(dati_sp!$H$2:$H$65536,s_bil_std!$A183,dati_sp!$F$2:$F$65536)","v":0},{"$f":"SUMIF(dati_sp!$H$2:$H$65536,s_bil_std!$A183,dati_sp!$F$2:$F$65536)","v":0},null,{"$f":"SUMIF(dati_sp!$H$2:$H$65536,s_bil_std!$A183,dati_sp!$G$2:$G$65536)","v":0},{"$f":"SUMIF(dati_sp!$H$2:$H$65536,s_bil_std!$A183,dati_sp!$G$2:$G$65536)","v":0},null,null,0,0,0,0,0,null," "]
["2.E.2","Altri ratei e risconti passivi","NO","Dett.","Dett.",null,null,null,{"$f":"SUMIF(dati_sp!$H$2:$H$65536,s_bil_std!$A184,dati_sp!$C$2:$C$65536)","v":0},{"$f":"SUMIF(dati_sp!$H$2:$H$65536,s_bil_std!$A184,dati_sp!$C$2:$C$65536)","v":0},null,{"$f":"SUMIF(dati_sp!$H$2:$H$65536,s_bil_std!$A184,dati_sp!$D$2:$D$65536)","v":0},{"$f":"SUMIF(dati_sp!$H$2:$H$65536,s_bil_std!$A184,dati_sp!$D$2:$D$65536)","v":0},null,{"$f":"SUMIF(dati_sp!$H$2:$H$65536,s_bil_std!$A184,dati_sp!$E$2:$E$65536)","v":0},{"$f":"SUMIF(dati_sp!$H$2:$H$65536,s_bil_std!$A184,dati_sp!$E$2:$E$65536)","v":0},null,{"$f":"SUMIF(dati_sp!$H$2:$H$65536,s_bil_std!$A184,dati_sp!$F$2:$F$65536)","v":0},{"$f":"SUMIF(dati_sp!$H$2:$H$65536,s_bil_std!$A184,dati_sp!$F$2:$F$65536)","v":0},null,{"$f":"SUMIF(dati_sp!$H$2:$H$65536,s_bil_std!$A184,dati_sp!$G$2:$G$65536)","v":0},{"$f":"SUMIF(dati_sp!$H$2:$H$65536,s_bil_std!$A184,dati_sp!$G$2:$G$65536)","v":0},null,null,0,0,0,0,0,null," "]
[null,"TOTALE PASSIVO",null,null,null,240,240,null,{"$f":"SUM(I182,I137,I136,I131,I96)","v":179472},{"$f":"SUM(J182,J137,J136,J131,J96)","v":92654},null,{"$f":"SUM(L182,L137,L136,L131,L96)","v":182414},{"$f":"SUM(M182,M137,M136,M131,M96)","v":92110},null,{"$f":"SUM(O182,O137,O136,O131,O96)","v":0},{"$f":"SUM(P182,P137,P136,P131,P96)","v":0},null,{"$f":"SUM(R182,R137,R136,R131,R96)","v":0},{"$f":"SUM(S182,S137,S136,S131,S96)","v":0},null,{"$f":"SUM(U182,U137,U136,U131,U96)","v":0},{"$f":"SUM(V182,V137,V136,V131,V96)","v":0},null,null,92654,92110,0,0,0,null," "]
["3","Conto economico"]
["3.A","VALORE DELLA PRODUZIONE","NO","Totale","Totale",270,270,null,{"$f":"SUM(I188:I192)","v":73800},{"$f":"SUM(J188:J192)","v":73800},null,{"$f":"SUM(L188:L192)","v":9425},{"$f":"SUM(M188:M192)","v":9425},null,{"$f":"SUM(O188:O192)","v":0},{"$f":"SUM(P188:P192)","v":0},null,{"$f":"SUM(R188:R192)","v":0},{"$f":"SUM(S188:S192)","v":0},null,{"$f":"SUM(U188:U192)","v":0},{"$f":"SUM(V188:V192)","v":0},null,null,{"$f":"IF($AA$2=\"1\",I187,J187)","v":73800},{"$f":"IF($AA$2=\"1\",L187,M187)","v":9425},{"$f":"IF($AA$2=\"1\",O187,P187)","v":0},{"$f":"IF($AA$2=\"1\",R187,S187)","v":0},{"$f":"IF($AA$2=\"1\",U187,V187)","v":0},null,"A)"]
["3.A.1","Ricavi delle vendite e delle prestazioni","NO","Dett.","Dett.",280,280,null,{"$f":"SUMIF(dati_ce!$H$2:$H$304,s_bil_std!$A188,dati_ce!$C$2:$C$304)","v":73800},{"$f":"SUMIF(dati_ce!$H$2:$H$304,s_bil_std!$A188,dati_ce!$C$2:$C$304)","v":73800},null,{"$f":"SUMIF(dati_ce!$H$2:$H$304,s_bil_std!$A188,dati_ce!$D$2:$D$304)","v":9425},{"$f":"SUMIF(dati_ce!$H$2:$H$304,s_bil_std!$A188,dati_ce!$D$2:$D$304)","v":9425},null,{"$f":"SUMIF(dati_ce!$H$2:$H$304,s_bil_std!$A188,dati_ce!$E$2:$E$304)","v":0},{"$f":"SUMIF(dati_ce!$H$2:$H$304,s_bil_std!$A188,dati_ce!$E$2:$E$304)","v":0},null,{"$f":"SUMIF(dati_ce!$H$2:$H$304,s_bil_std!$A188,dati_ce!$F$2:$F$304)","v":0},{"$f":"SUMIF(dati_ce!$H$2:$H$304,s_bil_std!$A188,dati_ce!$F$2:$F$304)","v":0},null,{"$f":"SUMIF(dati_ce!$H$2:$H$304,s_bil_std!$A188,dati_ce!$G$2:$G$304)","v":0},{"$f":"SUMIF(dati_ce!$H$2:$H$304,s_bil_std!$A188,dati_ce!$G$2:$G$304)","v":0},null,null,73800,9425,0,0,0,null,"1)"]
["3.A.2","Variazione delle rimanenze di prodotti in corso di lavorazione, semilavorati e finiti","NO","Dett.","Dett.",290,290,null,{"$f":"SUMIF(dati_ce!$H$2:$H$304,s_bil_std!$A189,dati_ce!$C$2:$C$304)","v":0},{"$f":"SUMIF(dati_ce!$H$2:$H$304,s_bil_std!$A189,dati_ce!$C$2:$C$304)","v":0},null,{"$f":"SUMIF(dati_ce!$H$2:$H$304,s_bil_std!$A189,dati_ce!$D$2:$D$304)","v":0},{"$f":"SUMIF(dati_ce!$H$2:$H$304,s_bil_std!$A189,dati_ce!$D$2:$D$304)","v":0},null,{"$f":"SUMIF(dati_ce!$H$2:$H$304,s_bil_std!$A189,dati_ce!$E$2:$E$304)","v":0},{"$f":"SUMIF(dati_ce!$H$2:$H$304,s_bil_std!$A189,dati_ce!$E$2:$E$304)","v":0},null,{"$f":"SUMIF(dati_ce!$H$2:$H$304,s_bil_std!$A189,dati_ce!$F$2:$F$304)","v":0},{"$f":"SUMIF(dati_ce!$H$2:$H$304,s_bil_std!$A189,dati_ce!$F$2:$F$304)","v":0},null,{"$f":"SUMIF(dati_ce!$H$2:$H$304,s_bil_std!$A189,dati_ce!$G$2:$G$304)","v":0},{"$f":"SUMIF(dati_ce!$H$2:$H$304,s_bil_std!$A189,dati_ce!$G$2:$G$304)","v":0},null,null,0,0,0,0,0,null,"2)"]
["3.A.3","Variazione dei lavori in corso su ordinazione","NO","Dett.","Dett.",285,290,null,{"$f":"SUMIF(dati_ce!$H$2:$H$304,s_bil_std!$A190,dati_ce!$C$2:$C$304)","v":0},{"$f":"SUMIF(dati_ce!$H$2:$H$304,s_bil_std!$A190,dati_ce!$C$2:$C$304)","v":0},null,{"$f":"SUMIF(dati_ce!$H$2:$H$304,s_bil_std!$A190,dati_ce!$D$2:$D$304)","v":0},{"$f":"SUMIF(dati_ce!$H$2:$H$304,s_bil_std!$A190,dati_ce!$D$2:$D$304)","v":0},null,{"$f":"SUMIF(dati_ce!$H$2:$H$304,s_bil_std!$A190,dati_ce!$E$2:$E$304)","v":0},{"$f":"SUMIF(dati_ce!$H$2:$H$304,s_bil_std!$A190,dati_ce!$E$2:$E$304)","v":0},null,{"$f":"SUMIF(dati_ce!$H$2:$H$304,s_bil_std!$A190,dati_ce!$F$2:$F$304)","v":0},{"$f":"SUMIF(dati_ce!$H$2:$H$304,s_bil_std!$A190,dati_ce!$F$2:$F$304)","v":0},null,{"$f":"SUMIF(dati_ce!$H$2:$H$304,s_bil_std!$A190,dati_ce!$G$2:$G$304)","v":0},{"$f":"SUMIF(dati_ce!$H$2:$H$304,s_bil_std!$A190,dati_ce!$G$2:$G$304)","v":0},null,null,0,0,0,0,0,null,"3)"]
["3.A.4","Incrementi di immobilizzazioni per lavori interni","NO","Dett.","Dett.",282,null,null,{"$f":"SUMIF(dati_ce!$H$2:$H$304,s_bil_std!$A191,dati_ce!$C$2:$C$304)","v":0},{"$f":"SUMIF(dati_ce!$H$2:$H$304,s_bil_std!$A191,dati_ce!$C$2:$C$304)","v":0},null,{"$f":"SUMIF(dati_ce!$H$2:$H$304,s_bil_std!$A191,dati_ce!$D$2:$D$304)","v":0},{"$f":"SUMIF(dati_ce!$H$2:$H$304,s_bil_std!$A191,dati_ce!$D$2:$D$304)","v":0},null,{"$f":"SUMIF(dati_ce!$H$2:$H$304,s_bil_std!$A191,dati_ce!$E$2:$E$304)","v":0},{"$f":"SUMIF(dati_ce!$H$2:$H$304,s_bil_std!$A191,dati_ce!$E$2:$E$304)","v":0},null,{"$f":"SUMIF(dati_ce!$H$2:$H$304,s_bil_std!$A191,dati_ce!$F$2:$F$304)","v":0},{"$f":"SUMIF(dati_ce!$H$2:$H$304,s_bil_std!$A191,dati_ce!$F$2:$F$304)","v":0},null,{"$f":"SUMIF(dati_ce!$H$2:$H$304,s_bil_std!$A191,dati_ce!$G$2:$G$304)","v":0},{"$f":"SUMIF(dati_ce!$H$2:$H$304,s_bil_std!$A191,dati_ce!$G$2:$G$304)","v":0},null,null,0,0,0,0,0,null,"4)"]
["3.A.5","Altri ricavi e proventi","NO","Totale","Totale",300,300,null,{"$f":"SUM(I193:I194)","v":0},{"$f":"SUM(J193:J194)","v":0},null,{"$f":"SUM(L193:L194)","v":0},{"$f":"SUM(M193:M194)","v":0},null,{"$f":"SUM(O193:O194)","v":0},{"$f":"SUM(P193:P194)","v":0},null,{"$f":"SUM(R193:R194)","v":0},{"$f":"SUM(S193:S194)","v":0},null,{"$f":"SUM(U193:U194)","v":0},{"$f":"SUM(V193:V194)","v":0},null,null,0,0,0,0,0,null,"5)"]
["3.A.5.a","Contributi in conto esercizio","NO","Dett.","Dett.",11000,null,null,{"$f":"SUMIF(dati_ce!$H$2:$H$304,s_bil_std!$A193,dati_ce!$C$2:$C$304)","v":0},{"$f":"SUMIF(dati_ce!$H$2:$H$304,s_bil_std!$A193,dati_ce!$C$2:$C$304)","v":0},null,{"$f":"SUMIF(dati_ce!$H$2:$H$304,s_bil_std!$A193,dati_ce!$D$2:$D$304)","v":0},{"$f":"SUMIF(dati_ce!$H$2:$H$304,s_bil_std!$A193,dati_ce!$D$2:$D$304)","v":0},null,{"$f":"SUMIF(dati_ce!$H$2:$H$304,s_bil_std!$A193,dati_ce!$E$2:$E$304)","v":0},{"$f":"SUMIF(dati_ce!$H$2:$H$304,s_bil_std!$A193,dati_ce!$E$2:$E$304)","v":0},null,{"$f":"SUMIF(dati_ce!$H$2:$H$304,s_bil_std!$A193,dati_ce!$F$2:$F$304)","v":0},{"$f":"SUMIF(dati_ce!$H$2:$H$304,s_bil_std!$A193,dati_ce!$F$2:$F$304)","v":0},null,{"$f":"SUMIF(dati_ce!$H$2:$H$304,s_bil_std!$A193,dati_ce!$G$2:$G$304)","v":0},{"$f":"SUMIF(dati_ce!$H$2:$H$304,s_bil_std!$A193,dati_ce!$G$2:$G$304)","v":0},null,null,0,0,0,0,0,null," "]
["3.A.5.b","Ricavi e proventi diversi","NO","Dett.","Dett.",null,null,null,{"$f":"SUMIF(dati_ce!$H$2:$H$304,s_bil_std!$A194,dati_ce!$C$2:$C$304)","v":0},{"$f":"SUMIF(dati_ce!$H$2:$H$304,s_bil_std!$A194,dati_ce!$C$2:$C$304)","v":0},null,{"$f":"SUMIF(dati_ce!$H$2:$H$304,s_bil_std!$A194,dati_ce!$D$2:$D$304)","v":0},{"$f":"SUMIF(dati_ce!$H$2:$H$304,s_bil_std!$A194,dati_ce!$D$2:$D$304)","v":0},null,{"$f":"SUMIF(dati_ce!$H$2:$H$304,s_bil_std!$A194,dati_ce!$E$2:$E$304)","v":0},{"$f":"SUMIF(dati_ce!$H$2:$H$304,s_bil_std!$A194,dati_ce!$E$2:$E$304)","v":0},null,{"$f":"SUMIF(dati_ce!$H$2:$H$304,s_bil_std!$A194,dati_ce!$F$2:$F$304)","v":0},{"$f":"SUMIF(dati_ce!$H$2:$H$304,s_bil_std!$A194,dati_ce!$F$2:$F$304)","v":0},null,{"$f":"SUMIF(dati_ce!$H$2:$H$304,s_bil_std!$A194,dati_ce!$G$2:$G$304)","v":0},{"$f":"SUMIF(dati_ce!$H$2:$H$304,s_bil_std!$A194,dati_ce!$G$2:$G$304)","v":0},null,null,0,0,0,0,0,null," "]
["3.B","COSTI DELLA PRODUZIONE","NO","Totale","Totale",310,310,null,{"$f":"SUM(I196:I199,I205,I210:I213)","v":656},{"$f":"SUM(J196:J199,J205,J210:J213)","v":656},null,{"$f":"SUM(L196:L199,L205,L210:L213)","v":2399},{"$f":"SUM(M196:M199,M205,M210:M213)","v":2399},null,{"$f":"SUM(O196:O199,O205,O210:O213)","v":0},{"$f":"SUM(P196:P199,P205,P210:P213)","v":0},null,{"$f":"SUM(R196:R199,R205,R210:R213)","v":0},{"$f":"SUM(S196:S199,S205,S210:S213)","v":0},null,{"$f":"SUM(U196:U199,U205,U210:U213)","v":0},{"$f":"SUM(V196:V199,V205,V210:V213)","v":0},null,null,656,2399,0,0,0,null,"B)"]
["3.B.6","Costi per materie prime, sussidiarie, di consumo e merci","NO","Dett.","Dett.",320,340,320,{"$f":"SUMIF(dati_ce!$H$2:$H$304,s_bil_std!$A196,dati_ce!$C$2:$C$304)","v":0},{"$f":"SUMIF(dati_ce!$H$2:$H$304,s_bil_std!$A196,dati_ce!$C$2:$C$304)","v":0},null,{"$f":"SUMIF(dati_ce!$H$2:$H$304,s_bil_std!$A196,dati_ce!$D$2:$D$304)","v":0},{"$f":"SUMIF(dati_ce!$H$2:$H$304,s_bil_std!$A196,dati_ce!$D$2:$D$304)","v":0},null,{"$f":"SUMIF(dati_ce!$H$2:$H$304,s_bil_std!$A196,dati_ce!$E$2:$E$304)","v":0},{"$f":"SUMIF(dati_ce!$H$2:$H$304,s_bil_std!$A196,dati_ce!$E$2:$E$304)","v":0},null,{"$f":"SUMIF(dati_ce!$H$2:$H$304,s_bil_std!$A196,dati_ce!$F$2:$F$304)","v":0},{"$f":"SUMIF(dati_ce!$H$2:$H$304,s_bil_std!$A196,dati_ce!$F$2:$F$304)","v":0},null,{"$f":"SUMIF(dati_ce!$H$2:$H$304,s_bil_std!$A196,dati_ce!$G$2:$G$304)","v":0},{"$f":"SUMIF(dati_ce!$H$2:$H$304,s_bil_std!$A196,dati_ce!$G$2:$G$304)","v":0},null,null,0,0,0,0,0,null,"6)"]
["3.B.7","Costi per servizi","NO","Dett.","Dett.",302,350,null,{"$f":"SUMIF(dati_ce!$H$2:$H$304,s_bil_std!$A197,dati_ce!$C$2:$C$304)","v":65},{"$f":"SUMIF(dati_ce!$H$2:$H$304,s_bil_std!$A197,dati_ce!$C$2:$C$304)","v":65},null,{"$f":"SUMIF(dati_ce!$H$2:$H$304,s_bil_std!$A197,dati_ce!$D$2:$D$304)","v":221},{"$f":"SUMIF(dati_ce!$H$2:$H$304,s_bil_std!$A197,dati_ce!$D$2:$D$304)","v":221},null,{"$f":"SUMIF(dati_ce!$H$2:$H$304,s_bil_std!$A197,dati_ce!$E$2:$E$304)","v":0},{"$f":"SUMIF(dati_ce!$H$2:$H$304,s_bil_std!$A197,dati_ce!$E$2:$E$304)","v":0},null,{"$f":"SUMIF(dati_ce!$H$2:$H$304,s_bil_std!$A197,dati_ce!$F$2:$F$304)","v":0},{"$f":"SUMIF(dati_ce!$H$2:$H$304,s_bil_std!$A197,dati_ce!$F$2:$F$304)","v":0},null,{"$f":"SUMIF(dati_ce!$H$2:$H$304,s_bil_std!$A197,dati_ce!$G$2:$G$304)","v":0},{"$f":"SUMIF(dati_ce!$H$2:$H$304,s_bil_std!$A197,dati_ce!$G$2:$G$304)","v":0},null,null,65,221,0,0,0,null,"7)"]
["3.B.8","Costi per godimento di beni di terzi","NO","Dett.","Dett.",304,350,null,{"$f":"SUMIF(dati_ce!$H$2:$H$304,s_bil_std!$A198,dati_ce!$C$2:$C$304)","v":31},{"$f":"SUMIF(dati_ce!$H$2:$H$304,s_bil_std!$A198,dati_ce!$C$2:$C$304)","v":31},null,{"$f":"SUMIF(dati_ce!$H$2:$H$304,s_bil_std!$A198,dati_ce!$D$2:$D$304)","v":31},{"$f":"SUMIF(dati_ce!$H$2:$H$304,s_bil_std!$A198,dati_ce!$D$2:$D$304)","v":31},null,{"$f":"SUMIF(dati_ce!$H$2:$H$304,s_bil_std!$A198,dati_ce!$E$2:$E$304)","v":0},{"$f":"SUMIF(dati_ce!$H$2:$H$304,s_bil_std!$A198,dati_ce!$E$2:$E$304)","v":0},null,{"$f":"SUMIF(dati_ce!$H$2:$H$304,s_bil_std!$A198,dati_ce!$F$2:$F$304)","v":0},{"$f":"SUMIF(dati_ce!$H$2:$H$304,s_bil_std!$A198,dati_ce!$F$2:$F$304)","v":0},null,{"$f":"SUMIF(dati_ce!$H$2:$H$304,s_bil_std!$A198,dati_ce!$G$2:$G$304)","v":0},{"$f":"SUMIF(dati_ce!$H$2:$H$304,s_bil_std!$A198,dati_ce!$G$2:$G$304)","v":0},null,null,31,31,0,0,0,null,"8)"]
["3.B.9","Costi per il personale","NO","Totale","Totale",370,370,null,{"$f":"SUM(I200:I204)","v":0},{"$f":"SUM(J200:J204)","v":0},null,{"$f":"SUM(L200:L204)","v":0},{"$f":"SUM(M200:M204)","v":0},null,{"$f":"SUM(O200:O204)","v":0},{"$f":"SUM(P200:P204)","v":0},null,{"$f":"SUM(R200:R204)","v":0},{"$f":"SUM(S200:S204)","v":0},null,{"$f":"SUM(U200:U204)","v":0},{"$f":"SUM(V200:V204)","v":0},null,null,0,0,0,0,0,null,"9)"]
["3.B.9.a","Salari e stipendi","NO","Dett.","Dett.",371,null,null,{"$f":"SUMIF(dati_ce!$H$2:$H$304,s_bil_std!$A200,dati_ce!$C$2:$C$304)","v":0},{"$f":"SUMIF(dati_ce!$H$2:$H$304,s_bil_std!$A200,dati_ce!$C$2:$C$304)","v":0},null,{"$f":"SUMIF(dati_ce!$H$2:$H$304,s_bil_std!$A200,dati_ce!$D$2:$D$304)","v":0},{"$f":"SUMIF(dati_ce!$H$2:$H$304,s_bil_std!$A200,dati_ce!$D$2:$D$304)","v":0},null,{"$f":"SUMIF(dati_ce!$H$2:$H$304,s_bil_std!$A200,dati_ce!$E$2:$E$304)","v":0},{"$f":"SUMIF(dati_ce!$H$2:$H$304,s_bil_std!$A200,dati_ce!$E$2:$E$304)","v":0},null,{"$f":"SUMIF(dati_ce!$H$2:$H$304,s_bil_std!$A200,dati_ce!$F$2:$F$304)","v":0},{"$f":"SUMIF(dati_ce!$H$2:$H$304,s_bil_std!$A200,dati_ce!$F$2:$F$304)","v":0},null,{"$f":"SUMIF(dati_ce!$H$2:$H$304,s_bil_std!$A200,dati_ce!$G$2:$G$304)","v":0},{"$f":"SUMIF(dati_ce!$H$2:$H$304,s_bil_std!$A200,dati_ce!$G$2:$G$304)","v":0},null,null,0,0,0,0,0,null,"a)"]
["3.B.9.b","Oneri sociali","NO","Dett.","Dett.",372,null,null,{"$f":"SUMIF(dati_ce!$H$2:$H$304,s_bil_std!$A201,dati_ce!$C$2:$C$304)","v":0},{"$f":"SUMIF(dati_ce!$H$2:$H$304,s_bil_std!$A201,dati_ce!$C$2:$C$304)","v":0},null,{"$f":"SUMIF(dati_ce!$H$2:$H$304,s_bil_std!$A201,dati_ce!$D$2:$D$304)","v":0},{"$f":"SUMIF(dati_ce!$H$2:$H$304,s_bil_std!$A201,dati_ce!$D$2:$D$304)","v":0},null,{"$f":"SUMIF(dati_ce!$H$2:$H$304,s_bil_std!$A201,dati_ce!$E$2:$E$304)","v":0},{"$f":"SUMIF(dati_ce!$H$2:$H$304,s_bil_std!$A201,dati_ce!$E$2:$E$304)","v":0},null,{"$f":"SUMIF(dati_ce!$H$2:$H$304,s_bil_std!$A201,dati_ce!$F$2:$F$304)","v":0},{"$f":"SUMIF(dati_ce!$H$2:$H$304,s_bil_std!$A201,dati_ce!$F$2:$F$304)","v":0},null,{"$f":"SUMIF(dati_ce!$H$2:$H$304,s_bil_std!$A201,dati_ce!$G$2:$G$304)","v":0},{"$f":"SUMIF(dati_ce!$H$2:$H$304,s_bil_std!$A201,dati_ce!$G$2:$G$304)","v":0},null,null,0,0,0,0,0,null,"b)"]
["3.B.9.c","Trattamento di fine rapporto","NO","Dett.","Dett.",375,375,null,{"$f":"SUMIF(dati_ce!$H$2:$H$304,s_bil_std!$A202,dati_ce!$C$2:$C$304)","v":0},{"$f":"SUMIF(dati_ce!$H$2:$H$304,s_bil_std!$A202,dati_ce!$C$2:$C$304)","v":0},null,{"$f":"SUMIF(dati_ce!$H$2:$H$304,s_bil_std!$A202,dati_ce!$D$2:$D$304)","v":0},{"$f":"SUMIF(dati_ce!$H$2:$H$304,s_bil_std!$A202,dati_ce!$D$2:$D$304)","v":0},null,{"$f":"SUMIF(dati_ce!$H$2:$H$304,s_bil_std!$A202,dati_ce!$E$2:$E$304)","v":0},{"$f":"SUMIF(dati_ce!$H$2:$H$304,s_bil_std!$A202,dati_ce!$E$2:$E$304)","v":0},null,{"$f":"SUMIF(dati_ce!$H$2:$H$304,s_bil_std!$A202,dati_ce!$F$2:$F$304)","v":0},{"$f":"SUMIF(dati_ce!$H$2:$H$304,s_bil_std!$A202,dati_ce!$F$2:$F$304)","v":0},null,{"$f":"SUMIF(dati_ce!$H$2:$H$304,s_bil_std!$A202,dati_ce!$G$2:$G$304)","v":0},{"$f":"SUMIF(dati_ce!$H$2:$H$304,s_bil_std!$A202,dati_ce!$G$2:$G$304)","v":0},null,null,0,0,0,0,0,null,"c)"]
["3.B.9.d","Trattamento di quiescenza e simili","NO","Dett.","Dett.",373,null,null,{"$f":"SUMIF(dati_ce!$H$2:$H$304,s_bil_std!$A203,dati_ce!$C$2:$C$304)","v":0},{"$f":"SUMIF(dati_ce!$H$2:$H$304,s_bil_std!$A203,dati_ce!$C$2:$C$304)","v":0},null,{"$f":"SUMIF(dati_ce!$H$2:$H$304,s_bil_std!$A203,dati_ce!$D$2:$D$304)","v":0},{"$f":"SUMIF(dati_ce!$H$2:$H$304,s_bil_std!$A203,dati_ce!$D$2:$D$304)","v":0},null,{"$f":"SUMIF(dati_ce!$H$2:$H$304,s_bil_std!$A203,dati_ce!$E$2:$E$304)","v":0},{"$f":"SUMIF(dati_ce!$H$2:$H$304,s_bil_std!$A203,dati_ce!$E$2:$E$304)","v":0},null,{"$f":"SUMIF(dati_ce!$H$2:$H$304,s_bil_std!$A203,dati_ce!$F$2:$F$304)","v":0},{"$f":"SUMIF(dati_ce!$H$2:$H$304,s_bil_std!$A203,dati_ce!$F$2:$F$304)","v":0},null,{"$f":"SUMIF(dati_ce!$H$2:$H$304,s_bil_std!$A203,dati_ce!$G$2:$G$304)","v":0},{"$f":"SUMIF(dati_ce!$H$2:$H$304,s_bil_std!$A203,dati_ce!$G$2:$G$304)","v":0},null,null,0,0,0,0,0,null,"d)"]
["3.B.9.e","Altri costi per il personale","NO","Dett.","Dett.",374,null,null,{"$f":"SUMIF(dati_ce!$H$2:$H$304,s_bil_std!$A204,dati_ce!$C$2:$C$304)","v":0},{"$f":"SUMIF(dati_ce!$H$2:$H$304,s_bil_std!$A204,dati_ce!$C$2:$C$304)","v":0},null,{"$f":"SUMIF(dati_ce!$H$2:$H$304,s_bil_std!$A204,dati_ce!$D$2:$D$304)","v":0},{"$f":"SUMIF(dati_ce!$H$2:$H$304,s_bil_std!$A204,dati_ce!$D$2:$D$304)","v":0},null,{"$f":"SUMIF(dati_ce!$H$2:$H$304,s_bil_std!$A204,dati_ce!$E$2:$E$304)","v":0},{"$f":"SUMIF(dati_ce!$H$2:$H$304,s_bil_std!$A204,dati_ce!$E$2:$E$304)","v":0},null,{"$f":"SUMIF(dati_ce!$H$2:$H$304,s_bil_std!$A204,dati_ce!$F$2:$F$304)","v":0},{"$f":"SUMIF(dati_ce!$H$2:$H$304,s_bil_std!$A204,dati_ce!$F$2:$F$304)","v":0},null,{"$f":"SUMIF(dati_ce!$H$2:$H$304,s_bil_std!$A204,dati_ce!$G$2:$G$304)","v":0},{"$f":"SUMIF(dati_ce!$H$2:$H$304,s_bil_std!$A204,dati_ce!$G$2:$G$304)","v":0},null,null,0,0,0,0,0,null,"e)"]
["3.B.10","Ammortamenti e svalutazioni","NO","Totale","Totale",390,390,null,{"$f":"SUM(I206:I209)","v":0},{"$f":"SUM(J206:J209)","v":0},null,{"$f":"SUM(L206:L209)","v":0},{"$f":"SUM(M206:M209)","v":0},null,{"$f":"SUM(O206:O209)","v":0},{"$f":"SUM(P206:P209)","v":0},null,{"$f":"SUM(R206:R209)","v":0},{"$f":"SUM(S206:S209)","v":0},null,{"$f":"SUM(U206:U209)","v":0},{"$f":"SUM(V206:V209)","v":0},null,null,0,0,0,0,0,null,"10)"]
["3.B.10.a","Ammortamento delle imm. immateriali","NO","Dett.","Dett.",392,11700,392,{"$f":"SUMIF(dati_ce!$H$2:$H$304,s_bil_std!$A206,dati_ce!$C$2:$C$304)","v":0},{"$f":"SUMIF(dati_ce!$H$2:$H$304,s_bil_std!$A206,dati_ce!$C$2:$C$304)","v":0},null,{"$f":"SUMIF(dati_ce!$H$2:$H$304,s_bil_std!$A206,dati_ce!$D$2:$D$304)","v":0},{"$f":"SUMIF(dati_ce!$H$2:$H$304,s_bil_std!$A206,dati_ce!$D$2:$D$304)","v":0},null,{"$f":"SUMIF(dati_ce!$H$2:$H$304,s_bil_std!$A206,dati_ce!$E$2:$E$304)","v":0},{"$f":"SUMIF(dati_ce!$H$2:$H$304,s_bil_std!$A206,dati_ce!$E$2:$E$304)","v":0},null,{"$f":"SUMIF(dati_ce!$H$2:$H$304,s_bil_std!$A206,dati_ce!$F$2:$F$304)","v":0},{"$f":"SUMIF(dati_ce!$H$2:$H$304,s_bil_std!$A206,dati_ce!$F$2:$F$304)","v":0},null,{"$f":"SUMIF(dati_ce!$H$2:$H$304,s_bil_std!$A206,dati_ce!$G$2:$G$304)","v":0},{"$f":"SUMIF(dati_ce!$H$2:$H$304,s_bil_std!$A206,dati_ce!$G$2:$G$304)","v":0},null,null,0,0,0,0,0,null,"a)"]
["3.B.10.b","Ammortamento delle imm. materiali","NO","Dett.","Dett.",394,11700,394,{"$f":"SUMIF(dati_ce!$H$2:$H$304,s_bil_std!$A207,dati_ce!$C$2:$C$304)","v":0},{"$f":"SUMIF(dati_ce!$H$2:$H$304,s_bil_std!$A207,dati_ce!$C$2:$C$304)","v":0},null,{"$f":"SUMIF(dati_ce!$H$2:$H$304,s_bil_std!$A207,dati_ce!$D$2:$D$304)","v":0},{"$f":"SUMIF(dati_ce!$H$2:$H$304,s_bil_std!$A207,dati_ce!$D$2:$D$304)","v":0},null,{"$f":"SUMIF(dati_ce!$H$2:$H$304,s_bil_std!$A207,dati_ce!$E$2:$E$304)","v":0},{"$f":"SUMIF(dati_ce!$H$2:$H$304,s_bil_std!$A207,dati_ce!$E$2:$E$304)","v":0},null,{"$f":"SUMIF(dati_ce!$H$2:$H$304,s_bil_std!$A207,dati_ce!$F$2:$F$304)","v":0},{"$f":"SUMIF(dati_ce!$H$2:$H$304,s_bil_std!$A207,dati_ce!$F$2:$F$304)","v":0},null,{"$f":"SUMIF(dati_ce!$H$2:$H$304,s_bil_std!$A207,dati_ce!$G$2:$G$304)","v":0},{"$f":"SUMIF(dati_ce!$H$2:$H$304,s_bil_std!$A207,dati_ce!$G$2:$G$304)","v":0},null,null,0,0,0,0,0,null,"b)"]
["3.B.10.c","Altre svalutazioni delle immobilizzazioni","NO","Dett.","Dett.",395,11700,null,{"$f":"SUMIF(dati_ce!$H$2:$H$304,s_bil_std!$A208,dati_ce!$C$2:$C$304)","v":0},{"$f":"SUMIF(dati_ce!$H$2:$H$304,s_bil_std!$A208,dati_ce!$C$2:$C$304)","v":0},null,{"$f":"SUMIF(dati_ce!$H$2:$H$304,s_bil_std!$A208,dati_ce!$D$2:$D$304)","v":0},{"$f":"SUMIF(dati_ce!$H$2:$H$304,s_bil_std!$A208,dati_ce!$D$2:$D$304)","v":0},null,{"$f":"SUMIF(dati_ce!$H$2:$H$304,s_bil_std!$A208,dati_ce!$E$2:$E$304)","v":0},{"$f":"SUMIF(dati_ce!$H$2:$H$304,s_bil_std!$A208,dati_ce!$E$2:$E$304)","v":0},null,{"$f":"SUMIF(dati_ce!$H$2:$H$304,s_bil_std!$A208,dati_ce!$F$2:$F$304)","v":0},{"$f":"SUMIF(dati_ce!$H$2:$H$304,s_bil_std!$A208,dati_ce!$F$2:$F$304)","v":0},null,{"$f":"SUMIF(dati_ce!$H$2:$H$304,s_bil_std!$A208,dati_ce!$G$2:$G$304)","v":0},{"$f":"SUMIF(dati_ce!$H$2:$H$304,s_bil_std!$A208,dati_ce!$G$2:$G$304)","v":0},null,null,0,0,0,0,0,null,"c)"]
["3.B.10.d","Svalutazioni dei crediti compresi nell'Attivo Circolante e delle Disponibilità Liquide","NO","Dett.","Dett.",396,null,null,{"$f":"SUMIF(dati_ce!$H$2:$H$304,s_bil_std!$A209,dati_ce!$C$2:$C$304)","v":0},{"$f":"SUMIF(dati_ce!$H$2:$H$304,s_bil_std!$A209,dati_ce!$C$2:$C$304)","v":0},null,{"$f":"SUMIF(dati_ce!$H$2:$H$304,s_bil_std!$A209,dati_ce!$D$2:$D$304)","v":0},{"$f":"SUMIF(dati_ce!$H$2:$H$304,s_bil_std!$A209,dati_ce!$D$2:$D$304)","v":0},null,{"$f":"SUMIF(dati_ce!$H$2:$H$304,s_bil_std!$A209,dati_ce!$E$2:$E$304)","v":0},{"$f":"SUMIF(dati_ce!$H$2:$H$304,s_bil_std!$A209,dati_ce!$E$2:$E$304)","v":0},null,{"$f":"SUMIF(dati_ce!$H$2:$H$304,s_bil_std!$A209,dati_ce!$F$2:$F$304)","v":0},{"$f":"SUMIF(dati_ce!$H$2:$H$304,s_bil_std!$A209,dati_ce!$F$2:$F$304)","v":0},null,{"$f":"SUMIF(dati_ce!$H$2:$H$304,s_bil_std!$A209,dati_ce!$G$2:$G$304)","v":0},{"$f":"SUMIF(dati_ce!$H$2:$H$304,s_bil_std!$A209,dati_ce!$G$2:$G$304)","v":0},null,null,0,0,0,0,0,null,"d)"]
["3.B.11","Variazioni delle rimanenze di materie prime, sussidiarie, di consumo e merci","NO","Dett.","Dett.",330,340,330,{"$f":"SUMIF(dati_ce!$H$2:$H$304,s_bil_std!$A210,dati_ce!$C$2:$C$304)","v":0},{"$f":"SUMIF(dati_ce!$H$2:$H$304,s_bil_std!$A210,dati_ce!$C$2:$C$304)","v":0},null,{"$f":"SUMIF(dati_ce!$H$2:$H$304,s_bil_std!$A210,dati_ce!$D$2:$D$304)","v":0},{"$f":"SUMIF(dati_ce!$H$2:$H$304,s_bil_std!$A210,dati_ce!$D$2:$D$304)","v":0},null,{"$f":"SUMIF(dati_ce!$H$2:$H$304,s_bil_std!$A210,dati_ce!$E$2:$E$304)","v":0},{"$f":"SUMIF(dati_ce!$H$2:$H$304,s_bil_std!$A210,dati_ce!$E$2:$E$304)","v":0},null,{"$f":"SUMIF(dati_ce!$H$2:$H$304,s_bil_std!$A210,dati_ce!$F$2:$F$304)","v":0},{"$f":"SUMIF(dati_ce!$H$2:$H$304,s_bil_std!$A210,dati_ce!$F$2:$F$304)","v":0},null,{"$f":"SUMIF(dati_ce!$H$2:$H$304,s_bil_std!$A210,dati_ce!$G$2:$G$304)","v":0},{"$f":"SUMIF(dati_ce!$H$2:$H$304,s_bil_std!$A210,dati_ce!$G$2:$G$304)","v":0},null,null,0,0,0,0,0,null,"11)"]
["3.B.12","Accantonamenti per rischi","NO","Dett.","Dett.",342,355,null,{"$f":"SUMIF(dati_ce!$H$2:$H$304,s_bil_std!$A211,dati_ce!$C$2:$C$304)","v":0},{"$f":"SUMIF(dati_ce!$H$2:$H$304,s_bil_std!$A211,dati_ce!$C$2:$C$304)","v":0},null,{"$f":"SUMIF(dati_ce!$H$2:$H$304,s_bil_std!$A211,dati_ce!$D$2:$D$304)","v":0},{"$f":"SUMIF(dati_ce!$H$2:$H$304,s_bil_std!$A211,dati_ce!$D$2:$D$304)","v":0},null,{"$f":"SUMIF(dati_ce!$H$2:$H$304,s_bil_std!$A211,dati_ce!$E$2:$E$304)","v":0},{"$f":"SUMIF(dati_ce!$H$2:$H$304,s_bil_std!$A211,dati_ce!$E$2:$E$304)","v":0},null,{"$f":"SUMIF(dati_ce!$H$2:$H$304,s_bil_std!$A211,dati_ce!$F$2:$F$304)","v":0},{"$f":"SUMIF(dati_ce!$H$2:$H$304,s_bil_std!$A211,dati_ce!$F$2:$F$304)","v":0},null,{"$f":"SUMIF(dati_ce!$H$2:$H$304,s_bil_std!$A211,dati_ce!$G$2:$G$304)","v":0},{"$f":"SUMIF(dati_ce!$H$2:$H$304,s_bil_std!$A211,dati_ce!$G$2:$G$304)","v":0},null,null,0,0,0,0,0,null,"12)"]
["3.B.13","Altri accantonamenti","NO","Dett.","Dett.",344,355,null,{"$f":"SUMIF(dati_ce!$H$2:$H$304,s_bil_std!$A212,dati_ce!$C$2:$C$304)","v":0},{"$f":"SUMIF(dati_ce!$H$2:$H$304,s_bil_std!$A212,dati_ce!$C$2:$C$304)","v":0},null,{"$f":"SUMIF(dati_ce!$H$2:$H$304,s_bil_std!$A212,dati_ce!$D$2:$D$304)","v":0},{"$f":"SUMIF(dati_ce!$H$2:$H$304,s_bil_std!$A212,dati_ce!$D$2:$D$304)","v":0},null,{"$f":"SUMIF(dati_ce!$H$2:$H$304,s_bil_std!$A212,dati_ce!$E$2:$E$304)","v":0},{"$f":"SUMIF(dati_ce!$H$2:$H$304,s_bil_std!$A212,dati_ce!$E$2:$E$304)","v":0},null,{"$f":"SUMIF(dati_ce!$H$2:$H$304,s_bil_std!$A212,dati_ce!$F$2:$F$304)","v":0},{"$f":"SUMIF(dati_ce!$H$2:$H$304,s_bil_std!$A212,dati_ce!$F$2:$F$304)","v":0},null,{"$f":"SUMIF(dati_ce!$H$2:$H$304,s_bil_std!$A212,dati_ce!$G$2:$G$304)","v":0},{"$f":"SUMIF(dati_ce!$H$2:$H$304,s_bil_std!$A212,dati_ce!$G$2:$G$304)","v":0},null,null,0,0,0,0,0,null,"13)"]
["3.B.14","Oneri diversi di gestione","NO","Dett.","Dett.",346,"S40",null,{"$f":"SUMIF(dati_ce!$H$2:$H$304,s_bil_std!$A213,dati_ce!$C$2:$C$304)","v":560},{"$f":"SUMIF(dati_ce!$H$2:$H$304,s_bil_std!$A213,dati_ce!$C$2:$C$304)","v":560},null,{"$f":"SUMIF(dati_ce!$H$2:$H$304,s_bil_std!$A213,dati_ce!$D$2:$D$304)","v":2147},{"$f":"SUMIF(dati_ce!$H$2:$H$304,s_bil_std!$A213,dati_ce!$D$2:$D$304)","v":2147},null,{"$f":"SUMIF(dati_ce!$H$2:$H$304,s_bil_std!$A213,dati_ce!$E$2:$E$304)","v":0},{"$f":"SUMIF(dati_ce!$H$2:$H$304,s_bil_std!$A213,dati_ce!$E$2:$E$304)","v":0},null,{"$f":"SUMIF(dati_ce!$H$2:$H$304,s_bil_std!$A213,dati_ce!$F$2:$F$304)","v":0},{"$f":"SUMIF(dati_ce!$H$2:$H$304,s_bil_std!$A213,dati_ce!$F$2:$F$304)","v":0},null,{"$f":"SUMIF(dati_ce!$H$2:$H$304,s_bil_std!$A213,dati_ce!$G$2:$G$304)","v":0},{"$f":"SUMIF(dati_ce!$H$2:$H$304,s_bil_std!$A213,dati_ce!$G$2:$G$304)","v":0},null,null,560,2147,0,0,0,null,"14)"]
["3.DIFF_TOT","DIFFERENZA TRA VALORE E COSTO DELLA PRODUZIONE","NO","Totale","Totale",null,null,null,{"$f":"I187-I195","v":73144},{"$f":"J187-J195","v":73144},null,{"$f":"L187-L195","v":7026},{"$f":"M187-M195","v":7026},null,{"$f":"O187-O195","v":0},{"$f":"P187-P195","v":0},null,{"$f":"R187-R195","v":0},{"$f":"S187-S195","v":0},null,{"$f":"U187-U195","v":0},{"$f":"V187-V195","v":0},null,null,73144,7026,0,0,0]
["3.C","PROVENTI E ONERI FINANZIARI","NO","Totale","Totale",422,null,null,{"$f":"SUM(I216,I220,I233,I238)","v":0},{"$f":"SUM(J216,J220,J233,J238)","v":0},null,{"$f":"SUM(L216,L220,L233,L238)","v":1},{"$f":"SUM(M216,M220,M233,M238)","v":1},null,{"$f":"SUM(O216,O220,O233,O238)","v":0},{"$f":"SUM(P216,P220,P233,P238)","v":0},null,{"$f":"SUM(R216,R220,R233,R238)","v":0},{"$f":"SUM(S216,S220,S233,S238)","v":0},null,{"$f":"SUM(U216,U220,U233,U238)","v":0},{"$f":"SUM(V216,V220,V233,V238)","v":0},null,null,0,1,0,0,0,null,"C)"]
["3.C.15","Proventi da partecipazioni","NO","Totale","Totale",15,410,412,{"$f":"SUM(I217:I219)","v":0},{"$f":"SUM(J217:J219)","v":0},null,{"$f":"SUM(L217:L219)","v":0},{"$f":"SUM(M217:M219)","v":0},null,{"$f":"SUM(O217:O219)","v":0},{"$f":"SUM(P217:P219)","v":0},null,{"$f":"SUM(R217:R219)","v":0},{"$f":"SUM(S217:S219)","v":0},null,{"$f":"SUM(U217:U219)","v":0},{"$f":"SUM(V217:V219)","v":0},null,null,0,0,0,0,0,null,"15)"]
["3.C.15.a","In imprese controllate","NO","Dett.","Dett.",17,null,null,{"$f":"SUMIF(dati_ce!$H$2:$H$304,s_bil_std!$A217,dati_ce!$C$2:$C$304)","v":0},{"$f":"SUMIF(dati_ce!$H$2:$H$304,s_bil_std!$A217,dati_ce!$C$2:$C$304)","v":0},null,{"$f":"SUMIF(dati_ce!$H$2:$H$304,s_bil_std!$A217,dati_ce!$D$2:$D$304)","v":0},{"$f":"SUMIF(dati_ce!$H$2:$H$304,s_bil_std!$A217,dati_ce!$D$2:$D$304)","v":0},null,{"$f":"SUMIF(dati_ce!$H$2:$H$304,s_bil_std!$A217,dati_ce!$E$2:$E$304)","v":0},{"$f":"SUMIF(dati_ce!$H$2:$H$304,s_bil_std!$A217,dati_ce!$E$2:$E$304)","v":0},null,{"$f":"SUMIF(dati_ce!$H$2:$H$304,s_bil_std!$A217,dati_ce!$F$2:$F$304)","v":0},{"$f":"SUMIF(dati_ce!$H$2:$H$304,s_bil_std!$A217,dati_ce!$F$2:$F$304)","v":0},null,{"$f":"SUMIF(dati_ce!$H$2:$H$304,s_bil_std!$A217,dati_ce!$G$2:$G$304)","v":0},{"$f":"SUMIF(dati_ce!$H$2:$H$304,s_bil_std!$A217,dati_ce!$G$2:$G$304)","v":0},null,null,0,0,0,0,0,null," "]
["3.C.15.b","In imprese collegate","NO","Dett.","Dett.",17,null,null,{"$f":"SUMIF(dati_ce!$H$2:$H$304,s_bil_std!$A218,dati_ce!$C$2:$C$304)","v":0},{"$f":"SUMIF(dati_ce!$H$2:$H$304,s_bil_std!$A218,dati_ce!$C$2:$C$304)","v":0},null,{"$f":"SUMIF(dati_ce!$H$2:$H$304,s_bil_std!$A218,dati_ce!$D$2:$D$304)","v":0},{"$f":"SUMIF(dati_ce!$H$2:$H$304,s_bil_std!$A218,dati_ce!$D$2:$D$304)","v":0},null,{"$f":"SUMIF(dati_ce!$H$2:$H$304,s_bil_std!$A218,dati_ce!$E$2:$E$304)","v":0},{"$f":"SUMIF(dati_ce!$H$2:$H$304,s_bil_std!$A218,dati_ce!$E$2:$E$304)","v":0},null,{"$f":"SUMIF(dati_ce!$H$2:$H$304,s_bil_std!$A218,dati_ce!$F$2:$F$304)","v":0},{"$f":"SUMIF(dati_ce!$H$2:$H$304,s_bil_std!$A218,dati_ce!$F$2:$F$304)","v":0},null,{"$f":"SUMIF(dati_ce!$H$2:$H$304,s_bil_std!$A218,dati_ce!$G$2:$G$304)","v":0},{"$f":"SUMIF(dati_ce!$H$2:$H$304,s_bil_std!$A218,dati_ce!$G$2:$G$304)","v":0},null,null,0,0,0,0,0,null," "]
["3.C.15.c","In altre imprese","NO","Dett.","Dett.",17,null,null,{"$f":"SUMIF(dati_ce!$H$2:$H$304,s_bil_std!$A219,dati_ce!$C$2:$C$304)","v":0},{"$f":"SUMIF(dati_ce!$H$2:$H$304,s_bil_std!$A219,dati_ce!$C$2:$C$304)","v":0},null,{"$f":"SUMIF(dati_ce!$H$2:$H$304,s_bil_std!$A219,dati_ce!$D$2:$D$304)","v":0},{"$f":"SUMIF(dati_ce!$H$2:$H$304,s_bil_std!$A219,dati_ce!$D$2:$D$304)","v":0},null,{"$f":"SUMIF(dati_ce!$H$2:$H$304,s_bil_std!$A219,dati_ce!$E$2:$E$304)","v":0},{"$f":"SUMIF(dati_ce!$H$2:$H$304,s_bil_std!$A219,dati_ce!$E$2:$E$304)","v":0},null,{"$f":"SUMIF(dati_ce!$H$2:$H$304,s_bil_std!$A219,dati_ce!$F$2:$F$304)","v":0},{"$f":"SUMIF(dati_ce!$H$2:$H$304,s_bil_std!$A219,dati_ce!$F$2:$F$304)","v":0},null,{"$f":"SUMIF(dati_ce!$H$2:$H$304,s_bil_std!$A219,dati_ce!$G$2:$G$304)","v":0},{"$f":"SUMIF(dati_ce!$H$2:$H$304,s_bil_std!$A219,dati_ce!$G$2:$G$304)","v":0},null,null,{"$f":"IF($AA$2=\"1\",I219,J219)","v":0},{"$f":"IF($AA$2=\"1\",L219,M219)","v":0},{"$f":"IF($AA$2=\"1\",O219,P219)","v":0},{"$f":"IF($AA$2=\"1\",R219,S219)","v":0},{"$f":"IF($AA$2=\"1\",U219,V219)","v":0},null," "]
["3.C.16","Altri proventi finanziari","NO","Totale","Totale",16,410,412,{"$f":"SUM(I221,I226:I227,I228)","v":0},{"$f":"SUM(J221,J226:J227,J228)","v":0},null,{"$f":"SUM(L221,L226:L227,L228)","v":1},{"$f":"SUM(M221,M226:M227,M228)","v":1},null,{"$f":"SUM(O221,O226:O227,O228)","v":0},{"$f":"SUM(P221,P226:P227,P228)","v":0},null,{"$f":"SUM(R221,R226:R227,R228)","v":0},{"$f":"SUM(S221,S226:S227,S228)","v":0},null,{"$f":"SUM(U221,U226:U227,U228)","v":0},{"$f":"SUM(V221,V226:V227,V228)","v":0},null,null,0,1,0,0,0,null,"16)"]
["3.C.16.a","Proventi finanziari da crediti iscritti nelle Immobilizzazioni","NO","Totale","Totale",311,null,null,{"$f":"SUM(I222:I225)","v":0},{"$f":"SUM(J222:J225)","v":0},null,{"$f":"SUM(L222:L225)","v":0},{"$f":"SUM(M222:M225)","v":0},null,{"$f":"SUM(O222:O225)","v":0},{"$f":"SUM(P222:P225)","v":0},null,{"$f":"SUM(R222:R225)","v":0},{"$f":"SUM(S222:S225)","v":0},null,{"$f":"SUM(U222:U225)","v":0},{"$f":"SUM(V222:V225)","v":0},null,null,0,0,0,0,0,null,"a)"]
["3.C.16.a.1","Verso imprese controllate","NO","Dett.","Dett.",312,null,null,{"$f":"SUMIF(dati_ce!$H$2:$H$304,s_bil_std!$A222,dati_ce!$C$2:$C$304)","v":0},{"$f":"SUMIF(dati_ce!$H$2:$H$304,s_bil_std!$A222,dati_ce!$C$2:$C$304)","v":0},null,{"$f":"SUMIF(dati_ce!$H$2:$H$304,s_bil_std!$A222,dati_ce!$D$2:$D$304)","v":0},{"$f":"SUMIF(dati_ce!$H$2:$H$304,s_bil_std!$A222,dati_ce!$D$2:$D$304)","v":0},null,{"$f":"SUMIF(dati_ce!$H$2:$H$304,s_bil_std!$A222,dati_ce!$E$2:$E$304)","v":0},{"$f":"SUMIF(dati_ce!$H$2:$H$304,s_bil_std!$A222,dati_ce!$E$2:$E$304)","v":0},null,{"$f":"SUMIF(dati_ce!$H$2:$H$304,s_bil_std!$A222,dati_ce!$F$2:$F$304)","v":0},{"$f":"SUMIF(dati_ce!$H$2:$H$304,s_bil_std!$A222,dati_ce!$F$2:$F$304)","v":0},null,{"$f":"SUMIF(dati_ce!$H$2:$H$304,s_bil_std!$A222,dati_ce!$G$2:$G$304)","v":0},{"$f":"SUMIF(dati_ce!$H$2:$H$304,s_bil_std!$A222,dati_ce!$G$2:$G$304)","v":0},null,null,0,0,0,0,0,null," "]
["3.C.16.a.2","Verso imprese collegate","NO","Dett.","Dett.",312,null,null,{"$f":"SUMIF(dati_ce!$H$2:$H$304,s_bil_std!$A223,dati_ce!$C$2:$C$304)","v":0},{"$f":"SUMIF(dati_ce!$H$2:$H$304,s_bil_std!$A223,dati_ce!$C$2:$C$304)","v":0},null,{"$f":"SUMIF(dati_ce!$H$2:$H$304,s_bil_std!$A223,dati_ce!$D$2:$D$304)","v":0},{"$f":"SUMIF(dati_ce!$H$2:$H$304,s_bil_std!$A223,dati_ce!$D$2:$D$304)","v":0},null,{"$f":"SUMIF(dati_ce!$H$2:$H$304,s_bil_std!$A223,dati_ce!$E$2:$E$304)","v":0},{"$f":"SUMIF(dati_ce!$H$2:$H$304,s_bil_std!$A223,dati_ce!$E$2:$E$304)","v":0},null,{"$f":"SUMIF(dati_ce!$H$2:$H$304,s_bil_std!$A223,dati_ce!$F$2:$F$304)","v":0},{"$f":"SUMIF(dati_ce!$H$2:$H$304,s_bil_std!$A223,dati_ce!$F$2:$F$304)","v":0},null,{"$f":"SUMIF(dati_ce!$H$2:$H$304,s_bil_std!$A223,dati_ce!$G$2:$G$304)","v":0},{"$f":"SUMIF(dati_ce!$H$2:$H$304,s_bil_std!$A223,dati_ce!$G$2:$G$304)","v":0},null,null,0,0,0,0,0,null," "]
["3.C.16.a.3","Verso imprese controllanti","NO","Dett.","Dett.",312,null,null,{"$f":"SUMIF(dati_ce!$H$2:$H$304,s_bil_std!$A224,dati_ce!$C$2:$C$304)","v":0},{"$f":"SUMIF(dati_ce!$H$2:$H$304,s_bil_std!$A224,dati_ce!$C$2:$C$304)","v":0},null,{"$f":"SUMIF(dati_ce!$H$2:$H$304,s_bil_std!$A224,dati_ce!$D$2:$D$304)","v":0},{"$f":"SUMIF(dati_ce!$H$2:$H$304,s_bil_std!$A224,dati_ce!$D$2:$D$304)","v":0},null,{"$f":"SUMIF(dati_ce!$H$2:$H$304,s_bil_std!$A224,dati_ce!$E$2:$E$304)","v":0},{"$f":"SUMIF(dati_ce!$H$2:$H$304,s_bil_std!$A224,dati_ce!$E$2:$E$304)","v":0},null,{"$f":"SUMIF(dati_ce!$H$2:$H$304,s_bil_std!$A224,dati_ce!$F$2:$F$304)","v":0},{"$f":"SUMIF(dati_ce!$H$2:$H$304,s_bil_std!$A224,dati_ce!$F$2:$F$304)","v":0},null,{"$f":"SUMIF(dati_ce!$H$2:$H$304,s_bil_std!$A224,dati_ce!$G$2:$G$304)","v":0},{"$f":"SUMIF(dati_ce!$H$2:$H$304,s_bil_std!$A224,dati_ce!$G$2:$G$304)","v":0},null,null,0,0,0,0,0,null," "]
["3.C.16.a.4","Verso altre imprese","NO","Dett.","Dett.",null,null,null,{"$f":"SUMIF(dati_ce!$H$2:$H$304,s_bil_std!$A225,dati_ce!$C$2:$C$304)","v":0},{"$f":"SUMIF(dati_ce!$H$2:$H$304,s_bil_std!$A225,dati_ce!$C$2:$C$304)","v":0},null,{"$f":"SUMIF(dati_ce!$H$2:$H$304,s_bil_std!$A225,dati_ce!$D$2:$D$304)","v":0},{"$f":"SUMIF(dati_ce!$H$2:$H$304,s_bil_std!$A225,dati_ce!$D$2:$D$304)","v":0},null,{"$f":"SUMIF(dati_ce!$H$2:$H$304,s_bil_std!$A225,dati_ce!$E$2:$E$304)","v":0},{"$f":"SUMIF(dati_ce!$H$2:$H$304,s_bil_std!$A225,dati_ce!$E$2:$E$304)","v":0},null,{"$f":"SUMIF(dati_ce!$H$2:$H$304,s_bil_std!$A225,dati_ce!$F$2:$F$304)","v":0},{"$f":"SUMIF(dati_ce!$H$2:$H$304,s_bil_std!$A225,dati_ce!$F$2:$F$304)","v":0},null,{"$f":"SUMIF(dati_ce!$H$2:$H$304,s_bil_std!$A225,dati_ce!$G$2:$G$304)","v":0},{"$f":"SUMIF(dati_ce!$H$2:$H$304,s_bil_std!$A225,dati_ce!$G$2:$G$304)","v":0},null,null,0,0,0,0,0,null," "]
["3.C.16.b","Proventi finanziari da titoli diversi da partecipazioni iscritti nelle Immobilizzazioni","NO","Dett.","Dett.",313,null,null,{"$f":"SUMIF(dati_ce!$H$2:$H$304,s_bil_std!$A226,dati_ce!$C$2:$C$304)","v":0},{"$f":"SUMIF(dati_ce!$H$2:$H$304,s_bil_std!$A226,dati_ce!$C$2:$C$304)","v":0},null,{"$f":"SUMIF(dati_ce!$H$2:$H$304,s_bil_std!$A226,dati_ce!$D$2:$D$304)","v":0},{"$f":"SUMIF(dati_ce!$H$2:$H$304,s_bil_std!$A226,dati_ce!$D$2:$D$304)","v":0},null,{"$f":"SUMIF(dati_ce!$H$2:$H$304,s_bil_std!$A226,dati_ce!$E$2:$E$304)","v":0},{"$f":"SUMIF(dati_ce!$H$2:$H$304,s_bil_std!$A226,dati_ce!$E$2:$E$304)","v":0},null,{"$f":"SUMIF(dati_ce!$H$2:$H$304,s_bil_std!$A226,dati_ce!$F$2:$F$304)","v":0},{"$f":"SUMIF(dati_ce!$H$2:$H$304,s_bil_std!$A226,dati_ce!$F$2:$F$304)","v":0},null,{"$f":"SUMIF(dati_ce!$H$2:$H$304,s_bil_std!$A226,dati_ce!$G$2:$G$304)","v":0},{"$f":"SUMIF(dati_ce!$H$2:$H$304,s_bil_std!$A226,dati_ce!$G$2:$G$304)","v":0},null,null,0,0,0,0,0,null,"b)"]
["3.C.16.c","Proventi finanziari da titoli diversi da partecipazioni iscritti nell'Attivo Circolante","NO","Dett.","Dett.",314,null,null,{"$f":"SUMIF(dati_ce!$H$2:$H$304,s_bil_std!$A227,dati_ce!$C$2:$C$304)","v":0},{"$f":"SUMIF(dati_ce!$H$2:$H$304,s_bil_std!$A227,dati_ce!$C$2:$C$304)","v":0},null,{"$f":"SUMIF(dati_ce!$H$2:$H$304,s_bil_std!$A227,dati_ce!$D$2:$D$304)","v":0},{"$f":"SUMIF(dati_ce!$H$2:$H$304,s_bil_std!$A227,dati_ce!$D$2:$D$304)","v":0},null,{"$f":"SUMIF(dati_ce!$H$2:$H$304,s_bil_std!$A227,dati_ce!$E$2:$E$304)","v":0},{"$f":"SUMIF(dati_ce!$H$2:$H$304,s_bil_std!$A227,dati_ce!$E$2:$E$304)","v":0},null,{"$f":"SUMIF(dati_ce!$H$2:$H$304,s_bil_std!$A227,dati_ce!$F$2:$F$304)","v":0},{"$f":"SUMIF(dati_ce!$H$2:$H$304,s_bil_std!$A227,dati_ce!$F$2:$F$304)","v":0},null,{"$f":"SUMIF(dati_ce!$H$2:$H$304,s_bil_std!$A227,dati_ce!$G$2:$G$304)","v":0},{"$f":"SUMIF(dati_ce!$H$2:$H$304,s_bil_std!$A227,dati_ce!$G$2:$G$304)","v":0},null,null,0,0,0,0,0,null,"c)"]
["3.C.16.d","Proventi diversi dai precedenti","NO","Totale","Totale",315,null,null,{"$f":"SUM(I229:I232)","v":0},{"$f":"SUM(J229:J232)","v":0},null,{"$f":"SUM(L229:L232)","v":1},{"$f":"SUM(M229:M232)","v":1},null,{"$f":"SUM(O229:O232)","v":0},{"$f":"SUM(P229:P232)","v":0},null,{"$f":"SUM(R229:R232)","v":0},{"$f":"SUM(S229:S232)","v":0},null,{"$f":"SUM(U229:U232)","v":0},{"$f":"SUM(V229:V232)","v":0},null,null,0,1,0,0,0,null,"d)"]
["3.C.16.d.1","Da imprese controllate","NO","Dett.","Dett.",316,null,null,{"$f":"SUMIF(dati_ce!$H$2:$H$304,s_bil_std!$A229,dati_ce!$C$2:$C$304)","v":0},{"$f":"SUMIF(dati_ce!$H$2:$H$304,s_bil_std!$A229,dati_ce!$C$2:$C$304)","v":0},null,{"$f":"SUMIF(dati_ce!$H$2:$H$304,s_bil_std!$A229,dati_ce!$D$2:$D$304)","v":0},{"$f":"SUMIF(dati_ce!$H$2:$H$304,s_bil_std!$A229,dati_ce!$D$2:$D$304)","v":0},null,{"$f":"SUMIF(dati_ce!$H$2:$H$304,s_bil_std!$A229,dati_ce!$E$2:$E$304)","v":0},{"$f":"SUMIF(dati_ce!$H$2:$H$304,s_bil_std!$A229,dati_ce!$E$2:$E$304)","v":0},null,{"$f":"SUMIF(dati_ce!$H$2:$H$304,s_bil_std!$A229,dati_ce!$F$2:$F$304)","v":0},{"$f":"SUMIF(dati_ce!$H$2:$H$304,s_bil_std!$A229,dati_ce!$F$2:$F$304)","v":0},null,{"$f":"SUMIF(dati_ce!$H$2:$H$304,s_bil_std!$A229,dati_ce!$G$2:$G$304)","v":0},{"$f":"SUMIF(dati_ce!$H$2:$H$304,s_bil_std!$A229,dati_ce!$G$2:$G$304)","v":0},null,null,0,0,0,0,0,null," "]
["3.C.16.d.2","Da imprese collegate","NO","Dett.","Dett.",316,null,null,{"$f":"SUMIF(dati_ce!$H$2:$H$304,s_bil_std!$A230,dati_ce!$C$2:$C$304)","v":0},{"$f":"SUMIF(dati_ce!$H$2:$H$304,s_bil_std!$A230,dati_ce!$C$2:$C$304)","v":0},null,{"$f":"SUMIF(dati_ce!$H$2:$H$304,s_bil_std!$A230,dati_ce!$D$2:$D$304)","v":0},{"$f":"SUMIF(dati_ce!$H$2:$H$304,s_bil_std!$A230,dati_ce!$D$2:$D$304)","v":0},null,{"$f":"SUMIF(dati_ce!$H$2:$H$304,s_bil_std!$A230,dati_ce!$E$2:$E$304)","v":0},{"$f":"SUMIF(dati_ce!$H$2:$H$304,s_bil_std!$A230,dati_ce!$E$2:$E$304)","v":0},null,{"$f":"SUMIF(dati_ce!$H$2:$H$304,s_bil_std!$A230,dati_ce!$F$2:$F$304)","v":0},{"$f":"SUMIF(dati_ce!$H$2:$H$304,s_bil_std!$A230,dati_ce!$F$2:$F$304)","v":0},null,{"$f":"SUMIF(dati_ce!$H$2:$H$304,s_bil_std!$A230,dati_ce!$G$2:$G$304)","v":0},{"$f":"SUMIF(dati_ce!$H$2:$H$304,s_bil_std!$A230,dati_ce!$G$2:$G$304)","v":0},null,null,0,0,0,0,0,null," "]
["3.C.16.d.3","Da imprese controllanti","NO","Dett.","Dett.",316,null,null,{"$f":"SUMIF(dati_ce!$H$2:$H$304,s_bil_std!$A231,dati_ce!$C$2:$C$304)","v":0},{"$f":"SUMIF(dati_ce!$H$2:$H$304,s_bil_std!$A231,dati_ce!$C$2:$C$304)","v":0},null,{"$f":"SUMIF(dati_ce!$H$2:$H$304,s_bil_std!$A231,dati_ce!$D$2:$D$304)","v":0},{"$f":"SUMIF(dati_ce!$H$2:$H$304,s_bil_std!$A231,dati_ce!$D$2:$D$304)","v":0},null,{"$f":"SUMIF(dati_ce!$H$2:$H$304,s_bil_std!$A231,dati_ce!$E$2:$E$304)","v":0},{"$f":"SUMIF(dati_ce!$H$2:$H$304,s_bil_std!$A231,dati_ce!$E$2:$E$304)","v":0},null,{"$f":"SUMIF(dati_ce!$H$2:$H$304,s_bil_std!$A231,dati_ce!$F$2:$F$304)","v":0},{"$f":"SUMIF(dati_ce!$H$2:$H$304,s_bil_std!$A231,dati_ce!$F$2:$F$304)","v":0},null,{"$f":"SUMIF(dati_ce!$H$2:$H$304,s_bil_std!$A231,dati_ce!$G$2:$G$304)","v":0},{"$f":"SUMIF(dati_ce!$H$2:$H$304,s_bil_std!$A231,dati_ce!$G$2:$G$304)","v":0},null,null,0,0,0,0,0,null," "]
["3.C.16.d.4","Da altre imprese","NO","Dett.","Dett.",null,null,null,{"$f":"SUMIF(dati_ce!$H$2:$H$304,s_bil_std!$A232,dati_ce!$C$2:$C$304)","v":0},{"$f":"SUMIF(dati_ce!$H$2:$H$304,s_bil_std!$A232,dati_ce!$C$2:$C$304)","v":0},null,{"$f":"SUMIF(dati_ce!$H$2:$H$304,s_bil_std!$A232,dati_ce!$D$2:$D$304)","v":1},{"$f":"SUMIF(dati_ce!$H$2:$H$304,s_bil_std!$A232,dati_ce!$D$2:$D$304)","v":1},null,{"$f":"SUMIF(dati_ce!$H$2:$H$304,s_bil_std!$A232,dati_ce!$E$2:$E$304)","v":0},{"$f":"SUMIF(dati_ce!$H$2:$H$304,s_bil_std!$A232,dati_ce!$E$2:$E$304)","v":0},null,{"$f":"SUMIF(dati_ce!$H$2:$H$304,s_bil_std!$A232,dati_ce!$F$2:$F$304)","v":0},{"$f":"SUMIF(dati_ce!$H$2:$H$304,s_bil_std!$A232,dati_ce!$F$2:$F$304)","v":0},null,{"$f":"SUMIF(dati_ce!$H$2:$H$304,s_bil_std!$A232,dati_ce!$G$2:$G$304)","v":0},{"$f":"SUMIF(dati_ce!$H$2:$H$304,s_bil_std!$A232,dati_ce!$G$2:$G$304)","v":0},null,null,0,1,0,0,0,null," "]
["3.C.17","Interessi ed altri oneri finanziari","NO","Totale","Totale",420,420,null,{"$f":"SUM(I234:I237)","v":0},{"$f":"SUM(J234:J237)","v":0},null,{"$f":"SUM(L234:L237)","v":0},{"$f":"SUM(M234:M237)","v":0},{"$f":"SUM(N234:N237)","v":0},{"$f":"SUM(O234:O237)","v":0},{"$f":"SUM(P234:P237)","v":0},null,{"$f":"SUM(R234:R237)","v":0},{"$f":"SUM(S234:S237)","v":0},null,{"$f":"SUM(U234:U237)","v":0},{"$f":"SUM(V234:V237)","v":0},null,null,0,0,0,0,0,null,"17)"]
["3.C.17.a","Verso imprese controllate","NO","Dett.","Dett.",421,null,null,{"$f":"SUMIF(dati_ce!$H$2:$H$304,s_bil_std!$A234,dati_ce!$C$2:$C$304)","v":0},{"$f":"SUMIF(dati_ce!$H$2:$H$304,s_bil_std!$A234,dati_ce!$C$2:$C$304)","v":0},null,{"$f":"SUMIF(dati_ce!$H$2:$H$304,s_bil_std!$A234,dati_ce!$D$2:$D$304)","v":0},{"$f":"SUMIF(dati_ce!$H$2:$H$304,s_bil_std!$A234,dati_ce!$D$2:$D$304)","v":0},null,{"$f":"SUMIF(dati_ce!$H$2:$H$304,s_bil_std!$A234,dati_ce!$E$2:$E$304)","v":0},{"$f":"SUMIF(dati_ce!$H$2:$H$304,s_bil_std!$A234,dati_ce!$E$2:$E$304)","v":0},null,{"$f":"SUMIF(dati_ce!$H$2:$H$304,s_bil_std!$A234,dati_ce!$F$2:$F$304)","v":0},{"$f":"SUMIF(dati_ce!$H$2:$H$304,s_bil_std!$A234,dati_ce!$F$2:$F$304)","v":0},null,{"$f":"SUMIF(dati_ce!$H$2:$H$304,s_bil_std!$A234,dati_ce!$G$2:$G$304)","v":0},{"$f":"SUMIF(dati_ce!$H$2:$H$304,s_bil_std!$A234,dati_ce!$G$2:$G$304)","v":0},null,null,0,0,0,0,0,null," "]
["3.C.17.b","Verso imprese collegate","NO","Dett.","Dett.",421,null,null,{"$f":"SUMIF(dati_ce!$H$2:$H$304,s_bil_std!$A235,dati_ce!$C$2:$C$304)","v":0},{"$f":"SUMIF(dati_ce!$H$2:$H$304,s_bil_std!$A235,dati_ce!$C$2:$C$304)","v":0},null,{"$f":"SUMIF(dati_ce!$H$2:$H$304,s_bil_std!$A235,dati_ce!$D$2:$D$304)","v":0},{"$f":"SUMIF(dati_ce!$H$2:$H$304,s_bil_std!$A235,dati_ce!$D$2:$D$304)","v":0},null,{"$f":"SUMIF(dati_ce!$H$2:$H$304,s_bil_std!$A235,dati_ce!$E$2:$E$304)","v":0},{"$f":"SUMIF(dati_ce!$H$2:$H$304,s_bil_std!$A235,dati_ce!$E$2:$E$304)","v":0},null,{"$f":"SUMIF(dati_ce!$H$2:$H$304,s_bil_std!$A235,dati_ce!$F$2:$F$304)","v":0},{"$f":"SUMIF(dati_ce!$H$2:$H$304,s_bil_std!$A235,dati_ce!$F$2:$F$304)","v":0},null,{"$f":"SUMIF(dati_ce!$H$2:$H$304,s_bil_std!$A235,dati_ce!$G$2:$G$304)","v":0},{"$f":"SUMIF(dati_ce!$H$2:$H$304,s_bil_std!$A235,dati_ce!$G$2:$G$304)","v":0},null,null,0,0,0,0,0,null," "]
["3.C.17.c","Verso imprese controllanti","NO","Dett.","Dett.",421,null,null,{"$f":"SUMIF(dati_ce!$H$2:$H$304,s_bil_std!$A236,dati_ce!$C$2:$C$304)","v":0},{"$f":"SUMIF(dati_ce!$H$2:$H$304,s_bil_std!$A236,dati_ce!$C$2:$C$304)","v":0},null,{"$f":"SUMIF(dati_ce!$H$2:$H$304,s_bil_std!$A236,dati_ce!$D$2:$D$304)","v":0},{"$f":"SUMIF(dati_ce!$H$2:$H$304,s_bil_std!$A236,dati_ce!$D$2:$D$304)","v":0},null,{"$f":"SUMIF(dati_ce!$H$2:$H$304,s_bil_std!$A236,dati_ce!$E$2:$E$304)","v":0},{"$f":"SUMIF(dati_ce!$H$2:$H$304,s_bil_std!$A236,dati_ce!$E$2:$E$304)","v":0},null,{"$f":"SUMIF(dati_ce!$H$2:$H$304,s_bil_std!$A236,dati_ce!$F$2:$F$304)","v":0},{"$f":"SUMIF(dati_ce!$H$2:$H$304,s_bil_std!$A236,dati_ce!$F$2:$F$304)","v":0},null,{"$f":"SUMIF(dati_ce!$H$2:$H$304,s_bil_std!$A236,dati_ce!$G$2:$G$304)","v":0},{"$f":"SUMIF(dati_ce!$H$2:$H$304,s_bil_std!$A236,dati_ce!$G$2:$G$304)","v":0},null,null,0,0,0,0,0,null," "]
["3.C.17.d","Verso altre imprese","NO","Dett.","Dett.",null,null,null,{"$f":"SUMIF(dati_ce!$H$2:$H$304,s_bil_std!$A237,dati_ce!$C$2:$C$304)","v":0},{"$f":"SUMIF(dati_ce!$H$2:$H$304,s_bil_std!$A237,dati_ce!$C$2:$C$304)","v":0},null,{"$f":"SUMIF(dati_ce!$H$2:$H$304,s_bil_std!$A237,dati_ce!$D$2:$D$304)","v":0},{"$f":"SUMIF(dati_ce!$H$2:$H$304,s_bil_std!$A237,dati_ce!$D$2:$D$304)","v":0},null,{"$f":"SUMIF(dati_ce!$H$2:$H$304,s_bil_std!$A237,dati_ce!$E$2:$E$304)","v":0},{"$f":"SUMIF(dati_ce!$H$2:$H$304,s_bil_std!$A237,dati_ce!$E$2:$E$304)","v":0},null,{"$f":"SUMIF(dati_ce!$H$2:$H$304,s_bil_std!$A237,dati_ce!$F$2:$F$304)","v":0},{"$f":"SUMIF(dati_ce!$H$2:$H$304,s_bil_std!$A237,dati_ce!$F$2:$F$304)","v":0},null,{"$f":"SUMIF(dati_ce!$H$2:$H$304,s_bil_std!$A237,dati_ce!$G$2:$G$304)","v":0},{"$f":"SUMIF(dati_ce!$H$2:$H$304,s_bil_std!$A237,dati_ce!$G$2:$G$304)","v":0},null,null,0,0,0,0,0,null," "]
["3.C.17a","Utili e perdite su cambi","NO","Dett.","Dett.",11900,410,null,{"$f":"SUMIF(dati_ce!$H$2:$H$304,s_bil_std!$A238,dati_ce!$C$2:$C$304)","v":0},{"$f":"SUMIF(dati_ce!$H$2:$H$304,s_bil_std!$A238,dati_ce!$C$2:$C$304)","v":0},null,{"$f":"SUMIF(dati_ce!$H$2:$H$304,s_bil_std!$A238,dati_ce!$D$2:$D$304)","v":0},{"$f":"SUMIF(dati_ce!$H$2:$H$304,s_bil_std!$A238,dati_ce!$D$2:$D$304)","v":0},null,{"$f":"SUMIF(dati_ce!$H$2:$H$304,s_bil_std!$A238,dati_ce!$E$2:$E$304)","v":0},{"$f":"SUMIF(dati_ce!$H$2:$H$304,s_bil_std!$A238,dati_ce!$E$2:$E$304)","v":0},null,{"$f":"SUMIF(dati_ce!$H$2:$H$304,s_bil_std!$A238,dati_ce!$F$2:$F$304)","v":0},{"$f":"SUMIF(dati_ce!$H$2:$H$304,s_bil_std!$A238,dati_ce!$F$2:$F$304)","v":0},null,{"$f":"SUMIF(dati_ce!$H$2:$H$304,s_bil_std!$A238,dati_ce!$G$2:$G$304)","v":0},{"$f":"SUMIF(dati_ce!$H$2:$H$304,s_bil_std!$A238,dati_ce!$G$2:$G$304)","v":0},null,null,0,0,0,0,0,null,"17-bis)"]
["3.D","RETTIFICHE DI VALORE DI ATTIVITA' FINANZIARIE","NO","Totale","Totale",430,430,null,{"$f":"SUM(I240,I246)","v":0},{"$f":"SUM(J240,J246)","v":0},null,{"$f":"SUM(L240,L246)","v":0},{"$f":"SUM(M240,M246)","v":0},null,{"$f":"SUM(O240,O246)","v":0},{"$f":"SUM(P240,P246)","v":0},null,{"$f":"SUM(R240,R246)","v":0},{"$f":"SUM(S240,S246)","v":0},null,{"$f":"SUM(U240,U246)","v":0},{"$f":"SUM(V240,V246)","v":0},null,null,0,0,0,0,0,null,"D)"]
["3.D.18","Rivalutazioni","NO","Totale","Totale",431,null,null,{"$f":"I241+I244+I245","v":0},{"$f":"J241+J244+J245","v":0},null,{"$f":"L241+L244+L245","v":0},{"$f":"M241+M244+M245","v":0},null,{"$f":"O241+O244+O245","v":0},{"$f":"P241+P244+P245","v":0},null,{"$f":"R241+R244+R245","v":0},{"$f":"S241+S244+S245","v":0},null,{"$f":"U241+U244+U245","v":0},{"$f":"V241+V244+V245","v":0},null,null,0,0,0,0,0,null,"18)"]
["3.D.18.a","Rivalutazioni di partecipazioni","NO","Dett.","Dett.",432,null,null,{"$f":"SUMIF(dati_ce!$H$2:$H$304,s_bil_std!$A241,dati_ce!$C$2:$C$304)","v":0},{"$f":"SUMIF(dati_ce!$H$2:$H$304,s_bil_std!$A241,dati_ce!$C$2:$C$304)","v":0},null,{"$f":"SUMIF(dati_ce!$H$2:$H$304,s_bil_std!$A241,dati_ce!$D$2:$D$304)","v":0},{"$f":"SUMIF(dati_ce!$H$2:$H$304,s_bil_std!$A241,dati_ce!$D$2:$D$304)","v":0},null,{"$f":"SUMIF(dati_ce!$H$2:$H$304,s_bil_std!$A241,dati_ce!$E$2:$E$304)","v":0},{"$f":"SUMIF(dati_ce!$H$2:$H$304,s_bil_std!$A241,dati_ce!$E$2:$E$304)","v":0},null,{"$f":"SUMIF(dati_ce!$H$2:$H$304,s_bil_std!$A241,dati_ce!$F$2:$F$304)","v":0},{"$f":"SUMIF(dati_ce!$H$2:$H$304,s_bil_std!$A241,dati_ce!$F$2:$F$304)","v":0},null,{"$f":"SUMIF(dati_ce!$H$2:$H$304,s_bil_std!$A241,dati_ce!$G$2:$G$304)","v":0},{"$f":"SUMIF(dati_ce!$H$2:$H$304,s_bil_std!$A241,dati_ce!$G$2:$G$304)","v":0},null,null,0,0,0,0,0,null,"a)"]
["3.D.18.a.1","Rivalutazioni di partecipazioni con il metodo del patrimonio netto","SI","Sc. Temp.","Sc. Temp.",null,null,null,{"$f":"SUMIF(dati_ce!$H$2:$H$304,s_bil_std!$A242,dati_ce!$C$2:$C$304)","v":0},{"$f":"SUMIF(dati_ce!$H$2:$H$304,s_bil_std!$A242,dati_ce!$C$2:$C$304)","v":0},null,{"$f":"SUMIF(dati_ce!$H$2:$H$304,s_bil_std!$A242,dati_ce!$D$2:$D$304)","v":0},{"$f":"SUMIF(dati_ce!$H$2:$H$304,s_bil_std!$A242,dati_ce!$D$2:$D$304)","v":0},null,{"$f":"SUMIF(dati_ce!$H$2:$H$304,s_bil_std!$A242,dati_ce!$E$2:$E$304)","v":0},{"$f":"SUMIF(dati_ce!$H$2:$H$304,s_bil_std!$A242,dati_ce!$E$2:$E$304)","v":0},null,{"$f":"SUMIF(dati_ce!$H$2:$H$304,s_bil_std!$A242,dati_ce!$F$2:$F$304)","v":0},{"$f":"SUMIF(dati_ce!$H$2:$H$304,s_bil_std!$A242,dati_ce!$F$2:$F$304)","v":0},null,{"$f":"SUMIF(dati_ce!$H$2:$H$304,s_bil_std!$A242,dati_ce!$G$2:$G$304)","v":0},{"$f":"SUMIF(dati_ce!$H$2:$H$304,s_bil_std!$A242,dati_ce!$G$2:$G$304)","v":0},null,null,0,0,0,0,0]
["3.D.18.a.2","Altre svalutazioni di partecipazioni","SI","Sc. Temp.","Sc. Temp.",null,null,null,{"$f":"SUMIF(dati_ce!$H$2:$H$304,s_bil_std!$A243,dati_ce!$C$2:$C$304)","v":0},{"$f":"SUMIF(dati_ce!$H$2:$H$304,s_bil_std!$A243,dati_ce!$C$2:$C$304)","v":0},null,{"$f":"SUMIF(dati_ce!$H$2:$H$304,s_bil_std!$A243,dati_ce!$D$2:$D$304)","v":0},{"$f":"SUMIF(dati_ce!$H$2:$H$304,s_bil_std!$A243,dati_ce!$D$2:$D$304)","v":0},null,{"$f":"SUMIF(dati_ce!$H$2:$H$304,s_bil_std!$A243,dati_ce!$E$2:$E$304)","v":0},{"$f":"SUMIF(dati_ce!$H$2:$H$304,s_bil_std!$A243,dati_ce!$E$2:$E$304)","v":0},null,{"$f":"SUMIF(dati_ce!$H$2:$H$304,s_bil_std!$A243,dati_ce!$F$2:$F$304)","v":0},{"$f":"SUMIF(dati_ce!$H$2:$H$304,s_bil_std!$A243,dati_ce!$F$2:$F$304)","v":0},null,{"$f":"SUMIF(dati_ce!$H$2:$H$304,s_bil_std!$A243,dati_ce!$G$2:$G$304)","v":0},{"$f":"SUMIF(dati_ce!$H$2:$H$304,s_bil_std!$A243,dati_ce!$G$2:$G$304)","v":0},null,null,0,0,0,0,0]
["3.D.18.b","Rivalutazioni di immobilizzazioni finanziarie","NO","Dett.","Dett.",433,null,null,{"$f":"SUMIF(dati_ce!$H$2:$H$304,s_bil_std!$A244,dati_ce!$C$2:$C$304)","v":0},{"$f":"SUMIF(dati_ce!$H$2:$H$304,s_bil_std!$A244,dati_ce!$C$2:$C$304)","v":0},null,{"$f":"SUMIF(dati_ce!$H$2:$H$304,s_bil_std!$A244,dati_ce!$D$2:$D$304)","v":0},{"$f":"SUMIF(dati_ce!$H$2:$H$304,s_bil_std!$A244,dati_ce!$D$2:$D$304)","v":0},null,{"$f":"SUMIF(dati_ce!$H$2:$H$304,s_bil_std!$A244,dati_ce!$E$2:$E$304)","v":0},{"$f":"SUMIF(dati_ce!$H$2:$H$304,s_bil_std!$A244,dati_ce!$E$2:$E$304)","v":0},null,{"$f":"SUMIF(dati_ce!$H$2:$H$304,s_bil_std!$A244,dati_ce!$F$2:$F$304)","v":0},{"$f":"SUMIF(dati_ce!$H$2:$H$304,s_bil_std!$A244,dati_ce!$F$2:$F$304)","v":0},null,{"$f":"SUMIF(dati_ce!$H$2:$H$304,s_bil_std!$A244,dati_ce!$G$2:$G$304)","v":0},{"$f":"SUMIF(dati_ce!$H$2:$H$304,s_bil_std!$A244,dati_ce!$G$2:$G$304)","v":0},null,null,0,0,0,0,0,null,"b)"]
["3.D.18.c","Rivalutazioni di titoli iscritti nell'Attivo Circolante","NO","Dett.","Dett.",434,null,null,{"$f":"SUMIF(dati_ce!$H$2:$H$304,s_bil_std!$A245,dati_ce!$C$2:$C$304)","v":0},{"$f":"SUMIF(dati_ce!$H$2:$H$304,s_bil_std!$A245,dati_ce!$C$2:$C$304)","v":0},null,{"$f":"SUMIF(dati_ce!$H$2:$H$304,s_bil_std!$A245,dati_ce!$D$2:$D$304)","v":0},{"$f":"SUMIF(dati_ce!$H$2:$H$304,s_bil_std!$A245,dati_ce!$D$2:$D$304)","v":0},null,{"$f":"SUMIF(dati_ce!$H$2:$H$304,s_bil_std!$A245,dati_ce!$E$2:$E$304)","v":0},{"$f":"SUMIF(dati_ce!$H$2:$H$304,s_bil_std!$A245,dati_ce!$E$2:$E$304)","v":0},null,{"$f":"SUMIF(dati_ce!$H$2:$H$304,s_bil_std!$A245,dati_ce!$F$2:$F$304)","v":0},{"$f":"SUMIF(dati_ce!$H$2:$H$304,s_bil_std!$A245,dati_ce!$F$2:$F$304)","v":0},null,{"$f":"SUMIF(dati_ce!$H$2:$H$304,s_bil_std!$A245,dati_ce!$G$2:$G$304)","v":0},{"$f":"SUMIF(dati_ce!$H$2:$H$304,s_bil_std!$A245,dati_ce!$G$2:$G$304)","v":0},null,null,0,0,0,0,0,null,"c)"]
["3.D.19","Svalutazioni","NO","Totale","Totale",435,null,null,{"$f":"I247+I250+I251","v":0},{"$f":"J247+J250+J251","v":0},null,{"$f":"L247+L250+L251","v":0},{"$f":"M247+M250+M251","v":0},null,{"$f":"O247+O250+O251","v":0},{"$f":"P247+P250+P251","v":0},null,{"$f":"R247+R250+R251","v":0},{"$f":"S247+S250+S251","v":0},null,{"$f":"U247+U250+U251","v":0},{"$f":"V247+V250+V251","v":0},null,null,0,0,0,0,0,null,"19)"]
["3.D.19.a","Svalutazioni di partecipazioni","NO","Dett.","Dett.",436,null,null,{"$f":"SUMIF(dati_ce!$H$2:$H$304,s_bil_std!$A247,dati_ce!$C$2:$C$304)","v":0},{"$f":"SUMIF(dati_ce!$H$2:$H$304,s_bil_std!$A247,dati_ce!$C$2:$C$304)","v":0},null,{"$f":"SUMIF(dati_ce!$H$2:$H$304,s_bil_std!$A247,dati_ce!$D$2:$D$304)","v":0},{"$f":"SUMIF(dati_ce!$H$2:$H$304,s_bil_std!$A247,dati_ce!$D$2:$D$304)","v":0},null,{"$f":"SUMIF(dati_ce!$H$2:$H$304,s_bil_std!$A247,dati_ce!$E$2:$E$304)","v":0},{"$f":"SUMIF(dati_ce!$H$2:$H$304,s_bil_std!$A247,dati_ce!$E$2:$E$304)","v":0},null,{"$f":"SUMIF(dati_ce!$H$2:$H$304,s_bil_std!$A247,dati_ce!$F$2:$F$304)","v":0},{"$f":"SUMIF(dati_ce!$H$2:$H$304,s_bil_std!$A247,dati_ce!$F$2:$F$304)","v":0},null,{"$f":"SUMIF(dati_ce!$H$2:$H$304,s_bil_std!$A247,dati_ce!$G$2:$G$304)","v":0},{"$f":"SUMIF(dati_ce!$H$2:$H$304,s_bil_std!$A247,dati_ce!$G$2:$G$304)","v":0},null,null,0,0,0,0,0,null,"a)"]
["3.D.19.a.1","Svalutazioni di partecipazioni con il metodo del patrimonio netto","SI","Sc. Temp.","Sc. Temp.",null,null,null,{"$f":"SUMIF(dati_ce!$H$2:$H$304,s_bil_std!$A248,dati_ce!$C$2:$C$304)","v":0},{"$f":"SUMIF(dati_ce!$H$2:$H$304,s_bil_std!$A248,dati_ce!$C$2:$C$304)","v":0},null,{"$f":"SUMIF(dati_ce!$H$2:$H$304,s_bil_std!$A248,dati_ce!$D$2:$D$304)","v":0},{"$f":"SUMIF(dati_ce!$H$2:$H$304,s_bil_std!$A248,dati_ce!$D$2:$D$304)","v":0},null,{"$f":"SUMIF(dati_ce!$H$2:$H$304,s_bil_std!$A248,dati_ce!$E$2:$E$304)","v":0},{"$f":"SUMIF(dati_ce!$H$2:$H$304,s_bil_std!$A248,dati_ce!$E$2:$E$304)","v":0},null,{"$f":"SUMIF(dati_ce!$H$2:$H$304,s_bil_std!$A248,dati_ce!$F$2:$F$304)","v":0},{"$f":"SUMIF(dati_ce!$H$2:$H$304,s_bil_std!$A248,dati_ce!$F$2:$F$304)","v":0},null,{"$f":"SUMIF(dati_ce!$H$2:$H$304,s_bil_std!$A248,dati_ce!$G$2:$G$304)","v":0},{"$f":"SUMIF(dati_ce!$H$2:$H$304,s_bil_std!$A248,dati_ce!$G$2:$G$304)","v":0},null,null,0,0,0,0,0]
["3.D.19.a.2","Altre svalutazioni di partecipazioni","SI","Sc. Temp.","Sc. Temp.",null,null,null,{"$f":"SUMIF(dati_ce!$H$2:$H$304,s_bil_std!$A249,dati_ce!$C$2:$C$304)","v":0},{"$f":"SUMIF(dati_ce!$H$2:$H$304,s_bil_std!$A249,dati_ce!$C$2:$C$304)","v":0},null,{"$f":"SUMIF(dati_ce!$H$2:$H$304,s_bil_std!$A249,dati_ce!$D$2:$D$304)","v":0},{"$f":"SUMIF(dati_ce!$H$2:$H$304,s_bil_std!$A249,dati_ce!$D$2:$D$304)","v":0},null,{"$f":"SUMIF(dati_ce!$H$2:$H$304,s_bil_std!$A249,dati_ce!$E$2:$E$304)","v":0},{"$f":"SUMIF(dati_ce!$H$2:$H$304,s_bil_std!$A249,dati_ce!$E$2:$E$304)","v":0},null,{"$f":"SUMIF(dati_ce!$H$2:$H$304,s_bil_std!$A249,dati_ce!$F$2:$F$304)","v":0},{"$f":"SUMIF(dati_ce!$H$2:$H$304,s_bil_std!$A249,dati_ce!$F$2:$F$304)","v":0},null,{"$f":"SUMIF(dati_ce!$H$2:$H$304,s_bil_std!$A249,dati_ce!$G$2:$G$304)","v":0},{"$f":"SUMIF(dati_ce!$H$2:$H$304,s_bil_std!$A249,dati_ce!$G$2:$G$304)","v":0},null,null,0,0,0,0,0]
["3.D.19.b","Svalutazioni di immobilizzazioni finanziarie","NO","Dett.","Dett.",437,null,null,{"$f":"SUMIF(dati_ce!$H$2:$H$304,s_bil_std!$A250,dati_ce!$C$2:$C$304)","v":0},{"$f":"SUMIF(dati_ce!$H$2:$H$304,s_bil_std!$A250,dati_ce!$C$2:$C$304)","v":0},null,{"$f":"SUMIF(dati_ce!$H$2:$H$304,s_bil_std!$A250,dati_ce!$D$2:$D$304)","v":0},{"$f":"SUMIF(dati_ce!$H$2:$H$304,s_bil_std!$A250,dati_ce!$D$2:$D$304)","v":0},null,{"$f":"SUMIF(dati_ce!$H$2:$H$304,s_bil_std!$A250,dati_ce!$E$2:$E$304)","v":0},{"$f":"SUMIF(dati_ce!$H$2:$H$304,s_bil_std!$A250,dati_ce!$E$2:$E$304)","v":0},null,{"$f":"SUMIF(dati_ce!$H$2:$H$304,s_bil_std!$A250,dati_ce!$F$2:$F$304)","v":0},{"$f":"SUMIF(dati_ce!$H$2:$H$304,s_bil_std!$A250,dati_ce!$F$2:$F$304)","v":0},null,{"$f":"SUMIF(dati_ce!$H$2:$H$304,s_bil_std!$A250,dati_ce!$G$2:$G$304)","v":0},{"$f":"SUMIF(dati_ce!$H$2:$H$304,s_bil_std!$A250,dati_ce!$G$2:$G$304)","v":0},null,null,0,0,0,0,0,null,"b)"]
["3.D.19.c","Svalutazioni di titoli iscritti all'Attivo Circolante","NO","Dett.","Dett.",438,null,null,{"$f":"SUMIF(dati_ce!$H$2:$H$304,s_bil_std!$A251,dati_ce!$C$2:$C$304)","v":0},{"$f":"SUMIF(dati_ce!$H$2:$H$304,s_bil_std!$A251,dati_ce!$C$2:$C$304)","v":0},null,{"$f":"SUMIF(dati_ce!$H$2:$H$304,s_bil_std!$A251,dati_ce!$D$2:$D$304)","v":0},{"$f":"SUMIF(dati_ce!$H$2:$H$304,s_bil_std!$A251,dati_ce!$D$2:$D$304)","v":0},null,{"$f":"SUMIF(dati_ce!$H$2:$H$304,s_bil_std!$A251,dati_ce!$E$2:$E$304)","v":0},{"$f":"SUMIF(dati_ce!$H$2:$H$304,s_bil_std!$A251,dati_ce!$E$2:$E$304)","v":0},null,{"$f":"SUMIF(dati_ce!$H$2:$H$304,s_bil_std!$A251,dati_ce!$F$2:$F$304)","v":0},{"$f":"SUMIF(dati_ce!$H$2:$H$304,s_bil_std!$A251,dati_ce!$F$2:$F$304)","v":0},null,{"$f":"SUMIF(dati_ce!$H$2:$H$304,s_bil_std!$A251,dati_ce!$G$2:$G$304)","v":0},{"$f":"SUMIF(dati_ce!$H$2:$H$304,s_bil_std!$A251,dati_ce!$G$2:$G$304)","v":0},null,null,{"$f":"IF($AA$2=\"1\",I251,J251)","v":0},{"$f":"IF($AA$2=\"1\",L251,M251)","v":0},{"$f":"IF($AA$2=\"1\",O251,P251)","v":0},{"$f":"IF($AA$2=\"1\",R251,S251)","v":0},{"$f":"IF($AA$2=\"1\",U251,V251)","v":0},null,"c)"]
["3.E","PROVENTI E ONERI STRAORDINARI","NO","Totale","Totale",450,450,null,{"$f":"SUM(I253,I257)","v":1},{"$f":"SUM(J253,J257)","v":1},null,{"$f":"SUM(L253,L257)","v":0},{"$f":"SUM(M253,M257)","v":0},null,{"$f":"SUM(O253,O257)","v":0},{"$f":"SUM(P253,P257)","v":0},null,{"$f":"SUM(R253,R257)","v":0},{"$f":"SUM(S253,S257)","v":0},null,{"$f":"SUM(U253,U257)","v":0},{"$f":"SUM(V253,V257)","v":0},null,null,1,0,0,0,0,null,"E)"]
["3.E.20","Proventi straordinari","NO","Totale","Totale",451,null,null,{"$f":"SUM(I254:I256)","v":1},{"$f":"SUM(J254:J256)","v":1},null,{"$f":"SUM(L254:L256)","v":0},{"$f":"SUM(M254:M256)","v":0},null,{"$f":"SUM(O254:O256)","v":0},{"$f":"SUM(P254:P256)","v":0},null,{"$f":"SUM(R254:R256)","v":0},{"$f":"SUM(S254:S256)","v":0},null,{"$f":"SUM(U254:U256)","v":0},{"$f":"SUM(V254:V256)","v":0},null,null,1,0,0,0,0,null,"20)"]
["3.E.20.a","Plusvalenze da alienazione","NO","Dett.","Dett.",452,null,null,{"$f":"SUMIF(dati_ce!$H$2:$H$304,s_bil_std!$A254,dati_ce!$C$2:$C$304)","v":0},{"$f":"SUMIF(dati_ce!$H$2:$H$304,s_bil_std!$A254,dati_ce!$C$2:$C$304)","v":0},null,{"$f":"SUMIF(dati_ce!$H$2:$H$304,s_bil_std!$A254,dati_ce!$D$2:$D$304)","v":0},{"$f":"SUMIF(dati_ce!$H$2:$H$304,s_bil_std!$A254,dati_ce!$D$2:$D$304)","v":0},null,{"$f":"SUMIF(dati_ce!$H$2:$H$304,s_bil_std!$A254,dati_ce!$E$2:$E$304)","v":0},{"$f":"SUMIF(dati_ce!$H$2:$H$304,s_bil_std!$A254,dati_ce!$E$2:$E$304)","v":0},null,{"$f":"SUMIF(dati_ce!$H$2:$H$304,s_bil_std!$A254,dati_ce!$F$2:$F$304)","v":0},{"$f":"SUMIF(dati_ce!$H$2:$H$304,s_bil_std!$A254,dati_ce!$F$2:$F$304)","v":0},null,{"$f":"SUMIF(dati_ce!$H$2:$H$304,s_bil_std!$A254,dati_ce!$G$2:$G$304)","v":0},{"$f":"SUMIF(dati_ce!$H$2:$H$304,s_bil_std!$A254,dati_ce!$G$2:$G$304)","v":0},null,null,0,0,0,0,0,null," "]
["3.E.20.a1","Differenze da arrotondamento all'unità di Euro","NO","Dett.","Dett.",null,null,null,{"$f":"SUMIF(dati_ce!$H$2:$H$304,s_bil_std!$A255,dati_ce!$C$2:$C$304)","v":0},{"$f":"SUMIF(dati_ce!$H$2:$H$304,s_bil_std!$A255,dati_ce!$C$2:$C$304)","v":0},null,{"$f":"SUMIF(dati_ce!$H$2:$H$304,s_bil_std!$A255,dati_ce!$D$2:$D$304)","v":0},{"$f":"SUMIF(dati_ce!$H$2:$H$304,s_bil_std!$A255,dati_ce!$D$2:$D$304)","v":0},null,{"$f":"SUMIF(dati_ce!$H$2:$H$304,s_bil_std!$A255,dati_ce!$E$2:$E$304)","v":0},{"$f":"SUMIF(dati_ce!$H$2:$H$304,s_bil_std!$A255,dati_ce!$E$2:$E$304)","v":0},null,{"$f":"SUMIF(dati_ce!$H$2:$H$304,s_bil_std!$A255,dati_ce!$F$2:$F$304)","v":0},{"$f":"SUMIF(dati_ce!$H$2:$H$304,s_bil_std!$A255,dati_ce!$F$2:$F$304)","v":0},null,{"$f":"SUMIF(dati_ce!$H$2:$H$304,s_bil_std!$A255,dati_ce!$G$2:$G$304)","v":0},{"$f":"SUMIF(dati_ce!$H$2:$H$304,s_bil_std!$A255,dati_ce!$G$2:$G$304)","v":0},null,null,0,0,0,0,0,null," "]
["3.E.20.b","Altri proventi straordinari","NO","Dett.","Dett.",null,null,null,{"$f":"SUMIF(dati_ce!$H$2:$H$304,s_bil_std!$A256,dati_ce!$C$2:$C$304)","v":1},{"$f":"SUMIF(dati_ce!$H$2:$H$304,s_bil_std!$A256,dati_ce!$C$2:$C$304)","v":1},null,{"$f":"SUMIF(dati_ce!$H$2:$H$304,s_bil_std!$A256,dati_ce!$D$2:$D$304)","v":0},{"$f":"SUMIF(dati_ce!$H$2:$H$304,s_bil_std!$A256,dati_ce!$D$2:$D$304)","v":0},null,{"$f":"SUMIF(dati_ce!$H$2:$H$304,s_bil_std!$A256,dati_ce!$E$2:$E$304)","v":0},{"$f":"SUMIF(dati_ce!$H$2:$H$304,s_bil_std!$A256,dati_ce!$E$2:$E$304)","v":0},null,{"$f":"SUMIF(dati_ce!$H$2:$H$304,s_bil_std!$A256,dati_ce!$F$2:$F$304)","v":0},{"$f":"SUMIF(dati_ce!$H$2:$H$304,s_bil_std!$A256,dati_ce!$F$2:$F$304)","v":0},null,{"$f":"SUMIF(dati_ce!$H$2:$H$304,s_bil_std!$A256,dati_ce!$G$2:$G$304)","v":0},{"$f":"SUMIF(dati_ce!$H$2:$H$304,s_bil_std!$A256,dati_ce!$G$2:$G$304)","v":0},null,null,1,0,0,0,0,null," "]
["3.E.21","Oneri straordinari","NO","Totale","Totale",453,null,null,{"$f":"SUM(I258:I261)","v":0},{"$f":"SUM(J258:J261)","v":0},null,{"$f":"SUM(L258:L261)","v":0},{"$f":"SUM(M258:M261)","v":0},null,{"$f":"SUM(O258:O261)","v":0},{"$f":"SUM(P258:P261)","v":0},null,{"$f":"SUM(R258:R261)","v":0},{"$f":"SUM(S258:S261)","v":0},null,{"$f":"SUM(U258:U261)","v":0},{"$f":"SUM(V258:V261)","v":0},null,null,0,0,0,0,0,null,"21)"]
["3.E.21.a","Minusvalenze da alienazioni","NO","Dett.","Dett.",454,null,null,{"$f":"SUMIF(dati_ce!$H$2:$H$304,s_bil_std!$A258,dati_ce!$C$2:$C$304)","v":0},{"$f":"SUMIF(dati_ce!$H$2:$H$304,s_bil_std!$A258,dati_ce!$C$2:$C$304)","v":0},null,{"$f":"SUMIF(dati_ce!$H$2:$H$304,s_bil_std!$A258,dati_ce!$D$2:$D$304)","v":0},{"$f":"SUMIF(dati_ce!$H$2:$H$304,s_bil_std!$A258,dati_ce!$D$2:$D$304)","v":0},null,{"$f":"SUMIF(dati_ce!$H$2:$H$304,s_bil_std!$A258,dati_ce!$E$2:$E$304)","v":0},{"$f":"SUMIF(dati_ce!$H$2:$H$304,s_bil_std!$A258,dati_ce!$E$2:$E$304)","v":0},null,{"$f":"SUMIF(dati_ce!$H$2:$H$304,s_bil_std!$A258,dati_ce!$F$2:$F$304)","v":0},{"$f":"SUMIF(dati_ce!$H$2:$H$304,s_bil_std!$A258,dati_ce!$F$2:$F$304)","v":0},null,{"$f":"SUMIF(dati_ce!$H$2:$H$304,s_bil_std!$A258,dati_ce!$G$2:$G$304)","v":0},{"$f":"SUMIF(dati_ce!$H$2:$H$304,s_bil_std!$A258,dati_ce!$G$2:$G$304)","v":0},null,null,0,0,0,0,0,null," "]
["3.E.21.b","Imposte relative a esercizi precedenti","NO","Dett.","Dett.",455,null,null,{"$f":"SUMIF(dati_ce!$H$2:$H$304,s_bil_std!$A259,dati_ce!$C$2:$C$304)","v":0},{"$f":"SUMIF(dati_ce!$H$2:$H$304,s_bil_std!$A259,dati_ce!$C$2:$C$304)","v":0},null,{"$f":"SUMIF(dati_ce!$H$2:$H$304,s_bil_std!$A259,dati_ce!$D$2:$D$304)","v":0},{"$f":"SUMIF(dati_ce!$H$2:$H$304,s_bil_std!$A259,dati_ce!$D$2:$D$304)","v":0},null,{"$f":"SUMIF(dati_ce!$H$2:$H$304,s_bil_std!$A259,dati_ce!$E$2:$E$304)","v":0},{"$f":"SUMIF(dati_ce!$H$2:$H$304,s_bil_std!$A259,dati_ce!$E$2:$E$304)","v":0},null,{"$f":"SUMIF(dati_ce!$H$2:$H$304,s_bil_std!$A259,dati_ce!$F$2:$F$304)","v":0},{"$f":"SUMIF(dati_ce!$H$2:$H$304,s_bil_std!$A259,dati_ce!$F$2:$F$304)","v":0},null,{"$f":"SUMIF(dati_ce!$H$2:$H$304,s_bil_std!$A259,dati_ce!$G$2:$G$304)","v":0},{"$f":"SUMIF(dati_ce!$H$2:$H$304,s_bil_std!$A259,dati_ce!$G$2:$G$304)","v":0},null,null,0,0,0,0,0,null," "]
["3.E.21.b1","Differenze da arrotondamento all'unità di Euro","NO","Dett.","Dett.",null,null,null,{"$f":"SUMIF(dati_ce!$H$2:$H$304,s_bil_std!$A260,dati_ce!$C$2:$C$304)","v":0},{"$f":"SUMIF(dati_ce!$H$2:$H$304,s_bil_std!$A260,dati_ce!$C$2:$C$304)","v":0},null,{"$f":"SUMIF(dati_ce!$H$2:$H$304,s_bil_std!$A260,dati_ce!$D$2:$D$304)","v":0},{"$f":"SUMIF(dati_ce!$H$2:$H$304,s_bil_std!$A260,dati_ce!$D$2:$D$304)","v":0},null,{"$f":"SUMIF(dati_ce!$H$2:$H$304,s_bil_std!$A260,dati_ce!$E$2:$E$304)","v":0},{"$f":"SUMIF(dati_ce!$H$2:$H$304,s_bil_std!$A260,dati_ce!$E$2:$E$304)","v":0},null,{"$f":"SUMIF(dati_ce!$H$2:$H$304,s_bil_std!$A260,dati_ce!$F$2:$F$304)","v":0},{"$f":"SUMIF(dati_ce!$H$2:$H$304,s_bil_std!$A260,dati_ce!$F$2:$F$304)","v":0},null,{"$f":"SUMIF(dati_ce!$H$2:$H$304,s_bil_std!$A260,dati_ce!$G$2:$G$304)","v":0},{"$f":"SUMIF(dati_ce!$H$2:$H$304,s_bil_std!$A260,dati_ce!$G$2:$G$304)","v":0},null,null,0,0,0,0,0,null," "]
["3.E.21.c","Altri oneri straordinari","NO","Dett.","Dett.",null,null,null,{"$f":"SUMIF(dati_ce!$H$2:$H$304,s_bil_std!$A261,dati_ce!$C$2:$C$304)","v":0},{"$f":"SUMIF(dati_ce!$H$2:$H$304,s_bil_std!$A261,dati_ce!$C$2:$C$304)","v":0},null,{"$f":"SUMIF(dati_ce!$H$2:$H$304,s_bil_std!$A261,dati_ce!$D$2:$D$304)","v":0},{"$f":"SUMIF(dati_ce!$H$2:$H$304,s_bil_std!$A261,dati_ce!$D$2:$D$304)","v":0},null,{"$f":"SUMIF(dati_ce!$H$2:$H$304,s_bil_std!$A261,dati_ce!$E$2:$E$304)","v":0},{"$f":"SUMIF(dati_ce!$H$2:$H$304,s_bil_std!$A261,dati_ce!$E$2:$E$304)","v":0},null,{"$f":"SUMIF(dati_ce!$H$2:$H$304,s_bil_std!$A261,dati_ce!$F$2:$F$304)","v":0},{"$f":"SUMIF(dati_ce!$H$2:$H$304,s_bil_std!$A261,dati_ce!$F$2:$F$304)","v":0},null,{"$f":"SUMIF(dati_ce!$H$2:$H$304,s_bil_std!$A261,dati_ce!$G$2:$G$304)","v":0},{"$f":"SUMIF(dati_ce!$H$2:$H$304,s_bil_std!$A261,dati_ce!$G$2:$G$304)","v":0},null,null,0,0,0,0,0,null," "]
["3.RIS_ANTE","RISULTATO PRIMA DELLE IMPOSTE","NO","Totale","Totale",460,null,null,{"$f":"I187-I195+I215+I239+I252","v":73145},{"$f":"J187-J195+J215+J239+J252","v":73145},null,{"$f":"L187-L195+L215+L239+L252","v":7027},{"$f":"M187-M195+M215+M239+M252","v":7027},null,{"$f":"O187-O195+O215+O239+O252","v":0},{"$f":"P187-P195+P215+P239+P252","v":0},null,{"$f":"R187-R195+R215+R239+R252","v":0},{"$f":"S187-S195+S215+S239+S252","v":0},null,{"$f":"U187-U195+U215+U239+U252","v":0},{"$f":"V187-V195+V215+V239+V252","v":0},null,null,73145,7027,0,0,0,null," "]
["3.22","Imposte sul reddito dell'esercizio,","NO","Totale","Totale",465,465,null,{"$f":"SUM(I264:I267)","v":0},{"$f":"SUM(J264:J267)","v":0},null,{"$f":"SUM(L264:L267)","v":1483},{"$f":"SUM(M264:M267)","v":1483},null,{"$f":"SUM(O264:O267)","v":0},{"$f":"SUM(P264:P267)","v":0},null,{"$f":"SUM(R264:R267)","v":0},{"$f":"SUM(S264:S267)","v":0},null,{"$f":"SUM(U264:U267)","v":0},{"$f":"SUM(V264:V267)","v":0},null,null,0,1483,0,0,0,null,"22)"]
["3.22.a","Imposte correnti sul reddito d'esercizio","NO","Dett.","Dett.",12200,null,null,{"$f":"SUMIF(dati_ce!$H$2:$H$304,s_bil_std!$A264,dati_ce!$C$2:$C$304)","v":0},{"$f":"SUMIF(dati_ce!$H$2:$H$304,s_bil_std!$A264,dati_ce!$C$2:$C$304)","v":0},null,{"$f":"SUMIF(dati_ce!$H$2:$H$304,s_bil_std!$A264,dati_ce!$D$2:$D$304)","v":1483},{"$f":"SUMIF(dati_ce!$H$2:$H$304,s_bil_std!$A264,dati_ce!$D$2:$D$304)","v":1483},null,{"$f":"SUMIF(dati_ce!$H$2:$H$304,s_bil_std!$A264,dati_ce!$E$2:$E$304)","v":0},{"$f":"SUMIF(dati_ce!$H$2:$H$304,s_bil_std!$A264,dati_ce!$E$2:$E$304)","v":0},null,{"$f":"SUMIF(dati_ce!$H$2:$H$304,s_bil_std!$A264,dati_ce!$F$2:$F$304)","v":0},{"$f":"SUMIF(dati_ce!$H$2:$H$304,s_bil_std!$A264,dati_ce!$F$2:$F$304)","v":0},null,{"$f":"SUMIF(dati_ce!$H$2:$H$304,s_bil_std!$A264,dati_ce!$G$2:$G$304)","v":0},{"$f":"SUMIF(dati_ce!$H$2:$H$304,s_bil_std!$A264,dati_ce!$G$2:$G$304)","v":0},null,null,0,1483,0,0,0,null," "]
["3.22.b","Imposte differite sul reddito d'esercizio","NO","Dett.","Dett.",12300,null,null,{"$f":"SUMIF(dati_ce!$H$2:$H$304,s_bil_std!$A265,dati_ce!$C$2:$C$304)","v":0},{"$f":"SUMIF(dati_ce!$H$2:$H$304,s_bil_std!$A265,dati_ce!$C$2:$C$304)","v":0},null,{"$f":"SUMIF(dati_ce!$H$2:$H$304,s_bil_std!$A265,dati_ce!$D$2:$D$304)","v":0},{"$f":"SUMIF(dati_ce!$H$2:$H$304,s_bil_std!$A265,dati_ce!$D$2:$D$304)","v":0},null,{"$f":"SUMIF(dati_ce!$H$2:$H$304,s_bil_std!$A265,dati_ce!$E$2:$E$304)","v":0},{"$f":"SUMIF(dati_ce!$H$2:$H$304,s_bil_std!$A265,dati_ce!$E$2:$E$304)","v":0},null,{"$f":"SUMIF(dati_ce!$H$2:$H$304,s_bil_std!$A265,dati_ce!$F$2:$F$304)","v":0},{"$f":"SUMIF(dati_ce!$H$2:$H$304,s_bil_std!$A265,dati_ce!$F$2:$F$304)","v":0},null,{"$f":"SUMIF(dati_ce!$H$2:$H$304,s_bil_std!$A265,dati_ce!$G$2:$G$304)","v":0},{"$f":"SUMIF(dati_ce!$H$2:$H$304,s_bil_std!$A265,dati_ce!$G$2:$G$304)","v":0},null,null,0,0,0,0,0,null," "]
["3.22.c","Imposte anticipate sul reddito d'esercizio","NO","Dett.","Dett.",12400,null,null,{"$f":"SUMIF(dati_ce!$H$2:$H$304,s_bil_std!$A266,dati_ce!$C$2:$C$304)","v":0},{"$f":"SUMIF(dati_ce!$H$2:$H$304,s_bil_std!$A266,dati_ce!$C$2:$C$304)","v":0},null,{"$f":"SUMIF(dati_ce!$H$2:$H$304,s_bil_std!$A266,dati_ce!$D$2:$D$304)","v":0},{"$f":"SUMIF(dati_ce!$H$2:$H$304,s_bil_std!$A266,dati_ce!$D$2:$D$304)","v":0},null,{"$f":"SUMIF(dati_ce!$H$2:$H$304,s_bil_std!$A266,dati_ce!$E$2:$E$304)","v":0},{"$f":"SUMIF(dati_ce!$H$2:$H$304,s_bil_std!$A266,dati_ce!$E$2:$E$304)","v":0},null,{"$f":"SUMIF(dati_ce!$H$2:$H$304,s_bil_std!$A266,dati_ce!$F$2:$F$304)","v":0},{"$f":"SUMIF(dati_ce!$H$2:$H$304,s_bil_std!$A266,dati_ce!$F$2:$F$304)","v":0},null,{"$f":"SUMIF(dati_ce!$H$2:$H$304,s_bil_std!$A266,dati_ce!$G$2:$G$304)","v":0},{"$f":"SUMIF(dati_ce!$H$2:$H$304,s_bil_std!$A266,dati_ce!$G$2:$G$304)","v":0},null,null,0,0,0,0,0,null," "]
["3.22.d","Proventi (oneri) da adesione al regime consolidato fiscale/trasparenza fiscale","NO","Dett.","Dett.",null,null,null,{"$f":"SUMIF(dati_ce!$H$2:$H$304,s_bil_std!$A267,dati_ce!$C$2:$C$304)","v":0},{"$f":"SUMIF(dati_ce!$H$2:$H$304,s_bil_std!$A267,dati_ce!$C$2:$C$304)","v":0},null,{"$f":"SUMIF(dati_ce!$H$2:$H$304,s_bil_std!$A267,dati_ce!$D$2:$D$304)","v":0},{"$f":"SUMIF(dati_ce!$H$2:$H$304,s_bil_std!$A267,dati_ce!$D$2:$D$304)","v":0},null,{"$f":"SUMIF(dati_ce!$H$2:$H$304,s_bil_std!$A267,dati_ce!$E$2:$E$304)","v":0},{"$f":"SUMIF(dati_ce!$H$2:$H$304,s_bil_std!$A267,dati_ce!$E$2:$E$304)","v":0},null,{"$f":"SUMIF(dati_ce!$H$2:$H$304,s_bil_std!$A267,dati_ce!$F$2:$F$304)","v":0},{"$f":"SUMIF(dati_ce!$H$2:$H$304,s_bil_std!$A267,dati_ce!$F$2:$F$304)","v":0},null,{"$f":"SUMIF(dati_ce!$H$2:$H$304,s_bil_std!$A267,dati_ce!$G$2:$G$304)","v":0},{"$f":"SUMIF(dati_ce!$H$2:$H$304,s_bil_std!$A267,dati_ce!$G$2:$G$304)","v":0},null,null,0,0,0,0,0,null," "]
["3.23a","Utile (perdita) dell'esercizio di pertinenza di terzi","SI","Dett.","Dett.",472,null,null,{"$f":"SUMIF(dati_ce!$H$2:$H$304,s_bil_std!$A268,dati_ce!$C$2:$C$304)","v":0},null,null,{"$f":"SUMIF(dati_ce!$H$2:$H$304,s_bil_std!$A268,dati_ce!$D$2:$D$304)","v":0},null,null,{"$f":"SUMIF(dati_ce!$H$2:$H$304,s_bil_std!$A268,dati_ce!$E$2:$E$304)","v":0},null,null,{"$f":"SUMIF(dati_ce!$H$2:$H$304,s_bil_std!$A268,dati_ce!$F$2:$F$304)","v":0},null,null,{"$f":"SUMIF(dati_ce!$H$2:$H$304,s_bil_std!$A268,dati_ce!$G$2:$G$304)","v":0},null,null,null,0,0,0,0,0]
["3.23b","Utile (perdita) dell'esercizio di pertinenza del gruppo","SI","Dett.","Dett.",473,null,null,{"$f":"I270-I268","v":73145},null,null,{"$f":"L270-L268","v":5544},null,null,{"$f":"O270-O268","v":0},null,null,{"$f":"R270-R268","v":0},null,null,{"$f":"U270-U268","v":0},null,null,null,0,0,0,0,0]
["3.23","Utile (perdita) dell'esercizio","NO","Dett.","Dett.",474,null,null,{"$f":"I262-I263","v":73145},{"$f":"J262-J263","v":73145},null,{"$f":"L262-L263","v":5544},{"$f":"M262-M263","v":5544},null,{"$f":"O262-O263","v":0},{"$f":"P262-P263","v":0},null,{"$f":"R262-R263","v":0},{"$f":"S262-S263","v":0},null,{"$f":"U262-U263","v":0},{"$f":"V262-V263","v":0},null,null,73145,5544,0,0,0,null,"23)"]
[]
[]
[]
["Quadratura utile calcolato",null,null,null,null,null,null,null,{"$f":"I262-I263-I270","v":0},{"$f":"J262-J263-J270","v":0},null,{"$f":"L262-L263-L270","v":0},{"$f":"M262-M263-M270","v":0},null,{"$f":"O262-O263-O270","v":0},{"$f":"P262-P263-P270","v":0},null,{"$f":"R262-R263-R270","v":0},{"$f":"S262-S263-S270","v":0},null,{"$f":"U262-U263-U270","v":0},{"$f":"V262-V263-V270","v":0}]
["Quadratura utile SP / CE",null,null,null,null,null,null,null,{"$f":"I270-I126-I130","v":73145},{"$f":"J270-J126-J130","v":73145},null,{"$f":"L270-L126-L130","v":5544},{"$f":"M270-M126-M130","v":5544},null,{"$f":"O270-O126-O130","v":0},{"$f":"P270-P126-P130","v":0},null,{"$f":"R270-R126-R130","v":0},{"$f":"S270-S126-S130","v":0},null,{"$f":"U270-U126-U130","v":0},{"$f":"V270-V126-V130","v":0}]

{"sheet":"dati_an","index":2,"n_rows":38,"n_cols":3,"rows_kept":38,"cut":false,"hidden":true,"merged":[]}
["Ragione sociale","Immobiliare Silvia Srl"]
["Titolo","Analisi di Bilancio"]
["Sottotitolo"]
["Forma di bilancio","7","Ordinaria"]
["Consolidato","0"]
["Esercizio prospetto n","2015"]
["Esercizio prospetto n-1","2014"]
["Esercizio prospetto n-2"]
["Esercizio prospetto n-3"]
["Esercizio prospetto n-4"]
["Esercizio BdV n","2015"]
["Esercizio BdV n-1","2014"]
["Esercizio BdV n-2"]
["Esercizio BdV n-3"]
["Esercizio BdV n-4"]
["Data fine esercizio prospetto n","31/12/2015"]
["Data fine esercizio prospetto n-1","31/12/2014"]
["Data fine esercizio prospetto n-2"]
["Data fine esercizio prospetto n-3"]
["Data fine esercizio prospetto n-4"]
["Data fine esercizio BdV n","31/12/2015"]
["Data fine esercizio BdV n-1","31/12/2014"]
["Data fine esercizio BdV n-2"]
["Data fine esercizio BdV n-3"]
["Data fine esercizio BdV n-4"]
["Piano dei conti","ORD"]
["Numero caratteri PdC","6"]
["Livello 1 - Nr caratteri","2","Gruppo"]
["Livello 2 - Nr caratteri","2","Mastro"]
["Livello 3 - Nr caratteri","2","Conto"]
["Livello 4 - Nr caratteri","0"]
["Livello 5 - Nr caratteri","0"]
["Livello 6 - Nr caratteri","0"]
["Numero medio dipendenti n","0"]
["Numero medio dipendenti n-1","0"]
["Numero medio dipendenti n-2","0"]
["Numero medio dipendenti n-3","0"]
["Numero medio dipendenti n-4","0"]

{"sheet":"dati_pdc","index":3,"n_rows":91,"n_cols":8,"rows_kept":91,"cut":false,"hidden":true,"merged":[]}
["Conto","Descrizione","Livello","Conto partitario","Nr crt partitario","Tipo conto","Sezione","Segno tipico"]
["11","IMMOBILIZZAZIONI IMMATERIALI",1,0,0,"SP","A"]
["1103","BENI IMMATERIALI",2,0,0,"SP","A"]
["110301","Software di proprieta' capitalizzato",3,0,0,"SP","A","D"]
["110303","Software in concessione capitalizzato",3,0,0,"SP","A","D"]
["21","RIMANENZE",1,0,0,"SP","A"]
["2101","RIMANENZE DI MAGAZZINO",2,0,0,"SP","A"]
["210121","Riman. prod.in corso lavoraz. e semilav.",3,0,0,"SP","A","D"]
["23","CREDITI COMMERCIALI",1,0,0,"SP","A"]
["2303","CLIENTI",2,0,0,"SP","A"]
["230301","Clienti terzi Italia",3,0,0,"SP","A"]
["27","CREDITI VARI",1,0,0,"SP","A"]
["2705","CREDITI VARI V/TERZI",2,0,0,"SP","A"]
["270551","Crediti vari v/terzi",3,0,0,"SP","A","D"]
["31","DISPONIBILITA' LIQUIDE",1,0,0,"SP","AP"]
["3101","BANCHE C/C E POSTA C/C",2,0,0,"SP","AP"]
["310101","Banca c/c",3,0,0,"SP","AP"]
["3103","CASSA",2,0,0,"SP","A"]
["310303","Cassa contanti",3,0,0,"SP","A","D"]
["39","RATEI E RISCONTI ATTIVI",1,0,0,"SP","A"]
["3901","RATEI E RISCONTI ATTIVI",2,0,0,"SP","A"]
["390103","Risconti attivi",3,0,0,"SP","A","D"]
["41","CAPITALE E RISERVE",1,0,0,"SP","P"]
["4101","CAPITALE E RISERVE",2,0,0,"SP","P"]
["410101","Capitale sociale",3,0,0,"SP","P","A"]
["410107","Riserva legale (con utili fino al 2007)",3,0,0,"SP","P","A"]
["410108","Riserva legale",3,0,0,"SP","P","A"]
["43","RISULTATI DELL'ESERCIZIO",1,0,0,"SP","AP"]
["4301","RISULTATI PORTATI A NUOVO",2,0,0,"SP","AP"]
["430101","Utile a nuovo (con utili fino al 2007)",3,0,0,"SP","P","A"]
["430106","Utile portato a nuovo",3,0,0,"SP","P","A"]
["430199","Risultato da assegnare periodi precedenti",3,0,0,"SP","AP"]
["4303","RISULTATO D'ESERCIZIO",2,0,0,"SP","AP"]
["430301","Utile d'esercizio",3,0,0,"SP","P","A"]
["55","FINANZIAMENTI DI TERZI",1,0,0,"SP","P"]
["5503","MUTUI E FINANZIAMENTI",2,0,0,"SP","P"]
["550325","Soci conto finanziamento infruttifero",3,0,0,"SP","P","A"]
["57","DEBITI COMMERCIALI",1,0,0,"SP","P"]
["5703","FORNITORI",2,0,0,"SP","P"]
["570301","Fornitori terzi Italia",3,0,0,"SP","P"]
["59","CONTI ERARIALI",1,0,0,"SP","AP"]
["5901","ERARIO C/IVA",2,0,0,"SP","AP"]
["590103","Iva su vendite",3,0,0,"SP","AP","A"]
["590165","IVA art.17ter DPR633/72(split transit.)",3,0,0,"SP","AP","A"]
["5905","ERARIO C/RIT. SUBITE E CREDITI D'IMPOSTA",2,0,0,"SP","A"]
["590501","Ritenute subite su interessi attivi",3,0,0,"SP","A","D"]
["5907","ERARIO C/IMPOSTE",2,0,0,"SP","AP"]
["590701","Erario c/IRES",3,0,0,"SP","AP"]
["590702","Erario c/acconti IRES",3,0,0,"SP","A","D"]
["590703","Erario c/IRAP",3,0,0,"SP","AP"]
["590711","Erario c/rimborsi imposte",3,0,0,"SP","A","D"]
["63","ALTRI DEBITI",1,0,0,"SP","P"]
["6301","ANTICIPI DA CLIENTI",2,0,0,"SP","P"]
["630107","Anticipi da clienti terzi e fondi spese",3,0,0,"SP","P"]
["6305","DEBITI VARI",2,0,0,"SP","P"]
["630501","Depositi cauzionali ricevuti",3,0,0,"SP","P","A"]
["6309","COMPETENZE SOCI",2,0,0,"SP","P"]
["630903","Soci c/utili",3,0,0,"SP","P","A"]
["70","RICAVI DELLE VENDITE E DELLE PRESTAZIONI",1,0,0,"CE","R"]
["7009","RICAVI DA PRESTAZIONI",2,0,0,"CE","R"]
["700903","Affitti attivi",3,0,0,"CE","R","A"]
["71","VARIAZ.RIMAN.FINALI E COSTRUZIONI INTERNE",1,0,0,"CE","R"]
["7101","RIMANENZE FINALI",2,0,0,"CE","R"]
["710121","Rim.finali prod.in corso lavor. e semil.",3,0,0,"CE","R","A"]
["72","VARIAZ. RIMANENZE INIZIALI",1,0,0,"CE","C"]
["7205","RIMANENZE INIZIALI",2,0,0,"CE","C"]
["720521","Rim.iniz.prod.in corso lavoraz.e semil.",3,0,0,"CE","C","D"]
["76","ACQUISTI DI SERVIZI",1,0,0,"CE","C"]
["7609","COSTI PER UTENZE",2,0,0,"CE","C"]
["760901","Assistenza software",3,0,0,"CE","C","D"]
["80","COSTI PER GODIMENTO BENI DI TERZI",1,0,0,"CE","C"]
["8007","CANONI E LICENZE SOFTWARE",2,0,0,"CE","C"]
["800701","Canoni",3,0,0,"CE","C","D"]
["83","ONERI DIVERSI DI GESTIONE",1,0,0,"CE","C"]
["8305","ONERI TRIBUTARI",2,0,0,"CE","C"]
["830504","IMU",3,0,0,"CE","C","D"]
["830511","Diritti camerali",3,0,0,"CE","C","D"]
["830521","Imposta di registro e concess. govern.",3,0,0,"CE","C","D"]
["830549","Altre imposte e tasse deducibili",3,0,0,"CE","C","D"]
["8307","ALTRI COSTI DI ESERCIZIO",2,0,0,"CE","C"]
["830725","Arrotondamenti passivi diversi",3,0,0,"CE","C","D"]
["830751","Costi e spese diverse",3,0,0,"CE","C","D"]
["85","PROVENTI FINANZIARI",1,0,0,"CE","R"]
["8511","PROVENTI FINANZIARI VARI",2,0,0,"CE","R"]
["851113","Interessi attivi su c/c bancari",3,0,0,"CE","R","A"]
["86","ONERI FINANZIARI",1,0,0,"CE","C"]
["8601","ONERI FINANZIARI VERSO BANCHE",2,0,0,"CE","C"]
["860105","Commissioni e spese bancarie",3,0,0,"CE","C","D"]
["93","IMPOSTE DELL'ESERCIZIO",1,0,0,"CE","C"]
["9301","IMPOSTE DELL'ESERCIZIO",2,0,0,"CE","C"]
["930101","IRES corrente",3,0,0,"CE","C","D"]

{"sheet":"dati_bdv","index":4,"n_rows":38,"n_cols":14,"rows_kept":38,"cut":false,"hidden":true,"merged":[]}
["Conto","Descrizione Conto","Livello 1","Livello 2","Livello 3","Livello 4","Livello 5","Livello 6","Livello 7","Saldo es.N","Saldo es.N-1","Saldo es.N-2","Saldo es.N-3","Saldo es.N-4"]
["110301","Software di proprieta' capitalizzato","11","1103","110301",null,null,null,null,-2000,-2000,0,0,0]
["110303","Software in concessione capitalizzato","11","1103","110303",null,null,null,null,5000,5000,0,0,0]
["210121","Riman. prod.in corso lavoraz. e semilav.","21","2101","210121",null,null,null,null,172854.87,172854.87,0,0,0]
["2303010","Clienti terzi Italia","23","2303","230301","2303010",null,null,null,70440,-1560,0,0,0]
["270551","Crediti vari v/terzi","27","2705","270551",null,null,null,null,3798.07,3798.07,0,0,0]
["3101010","Banca c/c","31","3101","310101","3101010",null,null,null,-1514.22,2340.94,0,0,0]
["310303","Cassa contanti","31","3103","310303",null,null,null,null,181.06,181.06,0,0,0]
["390103","Risconti attivi","39","3901","390103",null,null,null,null,29525.599999999999,0,0,0,0]
["410101","Capitale sociale","41","4101","410101",null,null,null,null,-20800,-20800,0,0,0]
["410107","Riserva legale (con utili fino al 2007)","41","4101","410107",null,null,null,null,-6269.68,-6269.68,0,0,0]
["410108","Riserva legale","41","4101","410108",null,null,null,null,-1216.0999999999999,-1216.0999999999999,0,0,0]
["430101","Utile a nuovo (con utili fino al 2007)","43","4301","430101",null,null,null,null,-42588.25,-47588.25,0,0,0]
["430106","Utile portato a nuovo","43","4301","430106",null,null,null,null,-16235.58,-16235.58,0,0,0]
["430199","Risultato da assegnare periodi precedenti","43","4301","430199",null,null,null,null,-5543.65,0,0,0,0]
["550325","Soci conto finanziamento infruttifero","55","5503","550325",null,null,null,null,-21489.88,-21489.88,0,0,0]
["5703010","Fornitori terzi Italia","57","5703","570301","5703010",null,null,null,-67139.399999999994,-67139.399999999994,0,0,0]
["590103","Iva su vendite","59","5901","590103",null,null,null,null,-440,-440,0,0,0]
["590501","Ritenute subite su interessi attivi","59","5905","590501",null,null,null,null,0.16,0.14000000000000001,0,0,0]
["590701","Erario c/IRES","59","5907","590701",null,null,null,null,125,125,0,0,0]
["590703","Erario c/IRAP","59","5907","590703",null,null,null,null,141,141,0,0,0]
["590711","Erario c/rimborsi imposte","59","5907","590711",null,null,null,null,516.46,516.46,0,0,0]
["630107","Anticipi da clienti terzi e fondi spese","63","6301","630107",null,null,null,null,6000,6000,0,0,0]
["630501","Depositi cauzionali ricevuti","63","6305","630501",null,null,null,null,-675,-675,0,0,0]
["700903","Prestazioni di servizi","70","7009","700903",null,null,null,null,-73800,-9425,0,0,0]
["710121","Rim.finali prod.in corso lavor. e semil.","71","7101","710121",null,null,null,null,0,-172854.87,0,0,0]
["720521","Rim.iniz.prod.in corso lavoraz.e semil.","72","7205","720521",null,null,null,null,0,172854.87,0,0,0]
["760901","Assistenza software","76","7609","760901",null,null,null,null,-29525.599999999999,0,0,0,0]
["800701","Canoni","80","8007","800701",null,null,null,null,30.5,30.5,0,0,0]
["830504","IMU","83","8305","830504",null,null,null,null,0,843,0,0,0]
["830511","Diritti camerali","83","8305","830511",null,null,null,null,0,327.7,0,0,0]
["830521","Imposta di registro e concess. govern.","83","8305","830521",null,null,null,null,417.87,471.87,0,0,0]
["8305490","Altre imposte e tasse deducibili","83","8305","830549","8305490",null,null,null,33.36,100,0,0,0]
["830725","Arrotondamenti passivi diversi","83","8307","830725",null,null,null,null,0,0.31,0,0,0]
["8307510","Costi e spese diverse","83","8307","830751","8307510",null,null,null,109,404.15,0,0,0]
["851113","Interessi attivi su c/c bancari","85","8511","851113",null,null,null,null,-0.09,-0.53,0,0,0]
["860105","Commissioni e spese bancarie","86","8601","860105",null,null,null,null,64.5,221.35,0,0,0]
["930101","IRES corrente","93","9301","930101",null,null,null,null,0,1483,0,0,0]

{"sheet":"dati_sp","index":5,"n_rows":37,"n_cols":9,"rows_kept":37,"cut":false,"hidden":true,"merged":[]}
["Voce","Descrizione voce","Importo Es.N","Importo Es.N-1","Importo Es.N-2","Importo Es.N-3","Importo Es.N-4","Voce standard","Voce consolidato"]
["1.B.1.3","Diritto di brevetto industriale  e diritti di utilizzazione di opere dell'ingegno",3000,3000,0,0,0,"1.B.1.3",0]
["1.C.1.2","Prodotti in corso di lavorazione e semilavorati",172855,172855,0,0,0,"1.C.1.2",0]
["1.C.2.1","Crediti verso clienti",72000,0,0,0,0,"1.C.2.1",0]
["1.C.2.1.1","Crediti verso clienti esigibili entro l'esercizio successivo",0,0,0,0,0,"1.C.2.1.1",0]
["1.C.2.1.2","Crediti verso clienti esigibili oltre l'esercizio successivo",0,0,0,0,0,"1.C.2.1.2",0]
["1.C.2.4a","Crediti tributari",783,783,0,0,0,"1.C.2.4a",0]
["1.C.2.4a.1","Crediti tributari esigibili entro l'esercizio successivo",0,783,0,0,0,"1.C.2.4a.1",0]
["1.C.2.4a.2","Crediti tributari esigibili oltre l'esercizio successivo",0,0,0,0,0,"1.C.2.4a.2",0]
["1.C.2.5","Crediti verso altri",3798,3798,0,0,0,"1.C.2.5",0]
["1.C.2.5.1","Crediti verso altri esigibili entro l'esercizio successivo",0,3798,0,0,0,"1.C.2.5.1",0]
["1.C.2.5.2","Crediti verso altri esigibili oltre l'esercizio successivo",0,0,0,0,0,"1.C.2.5.2",0]
["1.C.4.1","Depositi bancari e postali",0,7341,0,0,0,"1.C.4.1",0]
["1.C.4.3","Denaro e valori in cassa",181,181,0,0,0,"1.C.4.3",0]
["2.A.1","Capitale",20800,20800,0,0,0,"2.A.1",0]
["2.A.4","Riserva legale",7486,7486,0,0,0,"2.A.4",0]
["2.A.7.99","Varie altre riserve",1,0,0,0,0,"2.A.7.99",0]
["2.A.8","Utili (perdite) portati a nuovo",64367,63824,0,0,0,"2.A.8",0]
["2.A.9.1","Utile (perdita) dell'esercizio",73145,5544,0,0,0,"2.A.9.1",0]
["2.D.12","Debiti tributari",440,440,0,0,0,"2.D.12",0]
["2.D.12.1","Debiti tributari esigibili entro l'esercizio successivo",0,440,0,0,0,"2.D.12.1",0]
["2.D.12.2","Debiti tributari esigibili oltre l'esercizio successivo",0,0,0,0,0,"2.D.12.2",0]
["2.D.14","Altri debiti",2235,2235,0,0,0,"2.D.14",0]
["2.D.14.1","Altri debiti esigibili entro l'esercizio successivo",0,2235,0,0,0,"2.D.14.1",0]
["2.D.14.2","Altri debiti esigibili oltre l'esercizio successivo",0,0,0,0,0,"2.D.14.2",0]
["2.D.3","Debiti verso soci per finanziamenti",21490,21490,0,0,0,"2.D.3",0]
["2.D.3.1","Debiti verso soci per finanziamenti esigibili entro l'esercizio successivo",0,21490,0,0,0,"2.D.3.1",0]
["2.D.3.2","Debiti verso soci per finanziamenti esigibili oltre l'esercizio successivo",0,0,0,0,0,"2.D.3.2",0]
["2.D.4","Debiti verso banche",1514,5000,0,0,0,"2.D.4",0]
["2.D.4.1","Debiti verso banche esigibili entro l'esercizio successivo",0,5000,0,0,0,"2.D.4.1",0]
["2.D.4.2","Debiti verso banche esigibili oltre l'esercizio successivo",0,0,0,0,0,"2.D.4.2",0]
["2.D.6","Acconti",-6000,-6000,0,0,0,"2.D.6",0]
["2.D.6.1","Acconti esigibili entro l'esercizio successivo",0,-6000,0,0,0,"2.D.6.1",0]
["2.D.6.2","Acconti esigibili oltre l'esercizio successivo",0,0,0,0,0,"2.D.6.2",0]
["2.D.7","Debiti verso fornitori",67139,67139,0,0,0,"2.D.7",0]
["2.D.7.1","Debiti verso fornitori esigibili entro l'esercizio successivo",0,67139,0,0,0,"2.D.7.1",0]
["2.D.7.2","Debiti verso fornitori esigibili oltre l'esercizio successivo",0,0,0,0,0,"2.D.7.2",0]

{"sheet":"dati_ce","index":6,"n_rows":9,"n_cols":9,"rows_kept":9,"cut":false,"hidden":true,"merged":[]}
["Voce","Descrizione voce","Importo Es.N","Importo Es.N-1","Importo Es.N-2","Importo Es.N-3","Importo Es.N-4","Voce standard","Voce consolidato"]
["3.23z","Utile (perdita) dell'esercizio",73145,5544,0,0,0,"3.23",0]
["3.A.1","Ricavi delle vendite e delle prestazioni",73800,9425,0,0,0,"3.A.1",0]
["3.B.14","Oneri diversi di gestione",560,2147,0,0,0,"3.B.14",0]
["3.B.7","Costi per servizi",65,221,0,0,0,"3.B.7",0]
["3.B.8","Costi per godimento di beni di terzi",31,31,0,0,0,"3.B.8",0]
["3.C.16.d.4","Proventi diversi dai precedenti da altre imprese",0,1,0,0,0,"3.C.16.d.4",0]
["3.E.20.b","Altri proventi straordinari",1,0,0,0,0,"3.E.20.b",0]
["3.22.a","Imposte correnti sul reddito d'esercizio",0,1483,0,0,0,"3.22.a",0]

{"sheet":"s_somma_pdc","index":7,"n_rows":1500,"n_cols":8,"rows_kept":1500,"cut":false,"hidden":true,"merged":[]}
["Conto","N","N-1","N-2","N-3","N-4","Numero conti",{"$f":"COUNTA(dati_pdc!A2:A2000)","v":90}]
[{"$f":"dati_pdc!A2","v":"11"},{"$f":"SUMIF(IF(dati_pdc!$C2=1,dati_bdv!$C$2:$C$65536,IF(dati_pdc!$C2=2,dati_bdv!$D$2:$D$65536,IF(dati_pdc!$C2=3,dati_bdv!$E$2:$E$65536,IF(dati_pdc!$C2=4,dati_bdv!$F$2:$F$65536,IF(dati_pdc!$C2=5,dati_bdv!$G$2:$G$65536,dati_bdv!$H$2:$H$65536))))),$A2,dati_bdv!J$2:J$65536)","v":3000},{"$f":"SUMIF(IF(dati_pdc!$C2=1,dati_bdv!$C$2:$C$65536,IF(dati_pdc!$C2=2,dati_bdv!$D$2:$D$65536,IF(dati_pdc!$C2=3,dati_bdv!$E$2:$E$65536,IF(dati_pdc!$C2=4,dati_bdv!$F$2:$F$65536,IF(dati_pdc!$C2=5,dati_bdv!$G$2:$G$65536,dati_bdv!$H$2:$H$65536))))),$A2,dati_bdv!K$2:K$65536)","v":3000},{"$f":"SUMIF(IF(dati_pdc!$C2=1,dati_bdv!$C$2:$C$65536,IF(dati_pdc!$C2=2,dati_bdv!$D$2:$D$65536,IF(dati_pdc!$C2=3,dati_bdv!$E$2:$E$65536,IF(dati_pdc!$C2=4,dati_bdv!$F$2:$F$65536,IF(dati_pdc!$C2=5,dati_bdv!$G$2:$G$65536,dati_bdv!$H$2:$H$65536))))),$A2,dati_bdv!L$2:L$65536)","v":0},{"$f":"SUMIF(IF(dati_pdc!$C2=1,dati_bdv!$C$2:$C$65536,IF(dati_pdc!$C2=2,dati_bdv!$D$2:$D$65536,IF(dati_pdc!$C2=3,dati_bdv!$E$2:$E$65536,IF(dati_pdc!$C2=4,dati_bdv!$F$2:$F$65536,IF(dati_pdc!$C2=5,dati_bdv!$G$2:$G$65536,dati_bdv!$H$2:$H$65536))))),$A2,dati_bdv!M$2:M$65536)","v":0},{"$f":"SUMIF(IF(dati_pdc!$C2=1,dati_bdv!$C$2:$C$65536,IF(dati_pdc!$C2=2,dati_bdv!$D$2:$D$65536,IF(dati_pdc!$C2=3,dati_bdv!$E$2:$E$65536,IF(dati_pdc!$C2=4,dati_bdv!$F$2:$F$65536,IF(dati_pdc!$C2=5,dati_bdv!$G$2:$G$65536,dati_bdv!$H$2:$H$65536))))),$A2,dati_bdv!N$2:N$65536)","v":0}]
[{"$f":"dati_pdc!A3","v":"1103"},{"$f":"SUMIF(IF(dati_pdc!$C3=1,dati_bdv!$C$2:$C$65536,IF(dati_pdc!$C3=2,dati_bdv!$D$2:$D$65536,IF(dati_pdc!$C3=3,dati_bdv!$E$2:$E$65536,IF(dati_pdc!$C3=4,dati_bdv!$F$2:$F$65536,IF(dati_pdc!$C3=5,dati_bdv!$G$2:$G$65536,dati_bdv!$H$2:$H$65536))))),$A3,dati_bdv!J$2:J$65536)","v":3000},{"$f":"SUMIF(IF(dati_pdc!$C3=1,dati_bdv!$C$2:$C$65536,IF(dati_pdc!$C3=2,dati_bdv!$D$2:$D$65536,IF(dati_pdc!$C3=3,dati_bdv!$E$2:$E$65536,IF(dati_pdc!$C3=4,dati_bdv!$F$2:$F$65536,IF(dati_pdc!$C3=5,dati_bdv!$G$2:$G$65536,dati_bdv!$H$2:$H$65536))))),$A3,dati_bdv!K$2:K$65536)","v":3000},{"$f":"SUMIF(IF(dati_pdc!$C3=1,dati_bdv!$C$2:$C$65536,IF(dati_pdc!$C3=2,dati_bdv!$D$2:$D$65536,IF(dati_pdc!$C3=3,dati_bdv!$E$2:$E$65536,IF(dati_pdc!$C3=4,dati_bdv!$F$2:$F$65536,IF(dati_pdc!$C3=5,dati_bdv!$G$2:$G$65536,dati_bdv!$H$2:$H$65536))))),$A3,dati_bdv!L$2:L$65536)","v":0},{"$f":"SUMIF(IF(dati_pdc!$C3=1,dati_bdv!$C$2:$C$65536,IF(dati_pdc!$C3=2,dati_bdv!$D$2:$D$65536,IF(dati_pdc!$C3=3,dati_bdv!$E$2:$E$65536,IF(dati_pdc!$C3=4,dati_bdv!$F$2:$F$65536,IF(dati_pdc!$C3=5,dati_bdv!$G$2:$G$65536,dati_bdv!$H$2:$H$65536))))),$A3,dati_bdv!M$2:M$65536)","v":0},{"$f":"SUMIF(IF(dati_pdc!$C3=1,dati_bdv!$C$2:$C$65536,IF(dati_pdc!$C3=2,dati_bdv!$D$2:$D$65536,IF(dati_pdc!$C3=3,dati_bdv!$E$2:$E$65536,IF(dati_pdc!$C3=4,dati_bdv!$F$2:$F$65536,IF(dati_pdc!$C3=5,dati_bdv!$G$2:$G$65536,dati_bdv!$H$2:$H$65536))))),$A3,dati_bdv!N$2:N$65536)","v":0}]
[{"$f":"dati_pdc!A4","v":"110301"},{"$f":"SUMIF(IF(dati_pdc!$C4=1,dati_bdv!$C$2:$C$65536,IF(dati_pdc!$C4=2,dati_bdv!$D$2:$D$65536,IF(dati_pdc!$C4=3,dati_bdv!$E$2:$E$65536,IF(dati_pdc!$C4=4,dati_bdv!$F$2:$F$65536,IF(dati_pdc!$C4=5,dati_bdv!$G$2:$G$65536,dati_bdv!$H$2:$H$65536))))),$A4,dati_bdv!J$2:J$65536)","v":-2000},{"$f":"SUMIF(IF(dati_pdc!$C4=1,dati_bdv!$C$2:$C$65536,IF(dati_pdc!$C4=2,dati_bdv!$D$2:$D$65536,IF(dati_pdc!$C4=3,dati_bdv!$E$2:$E$65536,IF(dati_pdc!$C4=4,dati_bdv!$F$2:$F$65536,IF(dati_pdc!$C4=5,dati_bdv!$G$2:$G$65536,dati_bdv!$H$2:$H$65536))))),$A4,dati_bdv!K$2:K$65536)","v":-2000},{"$f":"SUMIF(IF(dati_pdc!$C4=1,dati_bdv!$C$2:$C$65536,IF(dati_pdc!$C4=2,dati_bdv!$D$2:$D$65536,IF(dati_pdc!$C4=3,dati_bdv!$E$2:$E$65536,IF(dati_pdc!$C4=4,dati_bdv!$F$2:$F$65536,IF(dati_pdc!$C4=5,dati_bdv!$G$2:$G$65536,dati_bdv!$H$2:$H$65536))))),$A4,dati_bdv!L$2:L$65536)","v":0},{"$f":"SUMIF(IF(dati_pdc!$C4=1,dati_bdv!$C$2:$C$65536,IF(dati_pdc!$C4=2,dati_bdv!$D$2:$D$65536,IF(dati_pdc!$C4=3,dati_bdv!$E$2:$E$65536,IF(dati_pdc!$C4=4,dati_bdv!$F$2:$F$65536,IF(dati_pdc!$C4=5,dati_bdv!$G$2:$G$65536,dati_bdv!$H$2:$H$65536))))),$A4,dati_bdv!M$2:M$65536)","v":0},{"$f":"SUMIF(IF(dati_pdc!$C4=1,dati_bdv!$C$2:$C$65536,IF(dati_pdc!$C4=2,dati_bdv!$D$2:$D$65536,IF(dati_pdc!$C4=3,dati_bdv!$E$2:$E$65536,IF(dati_pdc!$C4=4,dati_bdv!$F$2:$F$65536,IF(dati_pdc!$C4=5,dati_bdv!$G$2:$G$65536,dati_bdv!$H$2:$H$65536))))),$A4,dati_bdv!N$2:N$65536)","v":0}]
[{"$f":"dati_pdc!A5","v":"110303"},{"$f":"SUMIF(IF(dati_pdc!$C5=1,dati_bdv!$C$2:$C$65536,IF(dati_pdc!$C5=2,dati_bdv!$D$2:$D$65536,IF(dati_pdc!$C5=3,dati_bdv!$E$2:$E$65536,IF(dati_pdc!$C5=4,dati_bdv!$F$2:$F$65536,IF(dati_pdc!$C5=5,dati_bdv!$G$2:$G$65536,dati_bdv!$H$2:$H$65536))))),$A5,dati_bdv!J$2:J$65536)","v":5000},{"$f":"SUMIF(IF(dati_pdc!$C5=1,dati_bdv!$C$2:$C$65536,IF(dati_pdc!$C5=2,dati_bdv!$D$2:$D$65536,IF(dati_pdc!$C5=3,dati_bdv!$E$2:$E$65536,IF(dati_pdc!$C5=4,dati_bdv!$F$2:$F$65536,IF(dati_pdc!$C5=5,dati_bdv!$G$2:$G$65536,dati_bdv!$H$2:$H$65536))))),$A5,dati_bdv!K$2:K$65536)","v":5000},{"$f":"SUMIF(IF(dati_pdc!$C5=1,dati_bdv!$C$2:$C$65536,IF(dati_pdc!$C5=2,dati_bdv!$D$2:$D$65536,IF(dati_pdc!$C5=3,dati_bdv!$E$2:$E$65536,IF(dati_pdc!$C5=4,dati_bdv!$F$2:$F$65536,IF(dati_pdc!$C5=5,dati_bdv!$G$2:$G$65536,dati_bdv!$H$2:$H$65536))))),$A5,dati_bdv!L$2:L$65536)","v":0},{"$f":"SUMIF(IF(dati_pdc!$C5=1,dati_bdv!$C$2:$C$65536,IF(dati_pdc!$C5=2,dati_bdv!$D$2:$D$65536,IF(dati_pdc!$C5=3,dati_bdv!$E$2:$E$65536,IF(dati_pdc!$C5=4,dati_bdv!$F$2:$F$65536,IF(dati_pdc!$C5=5,dati_bdv!$G$2:$G$65536,dati_bdv!$H$2:$H$65536))))),$A5,dati_bdv!M$2:M$65536)","v":0},{"$f":"SUMIF(IF(dati_pdc!$C5=1,dati_bdv!$C$2:$C$65536,IF(dati_pdc!$C5=2,dati_bdv!$D$2:$D$65536,IF(dati_pdc!$C5=3,dati_bdv!$E$2:$E$65536,IF(dati_pdc!$C5=4,dati_bdv!$F$2:$F$65536,IF(dati_pdc!$C5=5,dati_bdv!$G$2:$G$65536,dati_bdv!$H$2:$H$65536))))),$A5,dati_bdv!N$2:N$65536)","v":0}]
[{"$f":"dati_pdc!A6","v":"21"},{"$f":"SUMIF(IF(dati_pdc!$C6=1,dati_bdv!$C$2:$C$65536,IF(dati_pdc!$C6=2,dati_bdv!$D$2:$D$65536,IF(dati_pdc!$C6=3,dati_bdv!$E$2:$E$65536,IF(dati_pdc!$C6=4,dati_bdv!$F$2:$F$65536,IF(dati_pdc!$C6=5,dati_bdv!$G$2:$G$65536,dati_bdv!$H$2:$H$65536))))),$A6,dati_bdv!J$2:J$65536)","v":172854.87},{"$f":"SUMIF(IF(dati_pdc!$C6=1,dati_bdv!$C$2:$C$65536,IF(dati_pdc!$C6=2,dati_bdv!$D$2:$D$65536,IF(dati_pdc!$C6=3,dati_bdv!$E$2:$E$65536,IF(dati_pdc!$C6=4,dati_bdv!$F$2:$F$65536,IF(dati_pdc!$C6=5,dati_bdv!$G$2:$G$65536,dati_bdv!$H$2:$H$65536))))),$A6,dati_bdv!K$2:K$65536)","v":172854.87},{"$f":"SUMIF(IF(dati_pdc!$C6=1,dati_bdv!$C$2:$C$65536,IF(dati_pdc!$C6=2,dati_bdv!$D$2:$D$65536,IF(dati_pdc!$C6=3,dati_bdv!$E$2:$E$65536,IF(dati_pdc!$C6=4,dati_bdv!$F$2:$F$65536,IF(dati_pdc!$C6=5,dati_bdv!$G$2:$G$65536,dati_bdv!$H$2:$H$65536))))),$A6,dati_bdv!L$2:L$65536)","v":0},{"$f":"SUMIF(IF(dati_pdc!$C6=1,dati_bdv!$C$2:$C$65536,IF(dati_pdc!$C6=2,dati_bdv!$D$2:$D$65536,IF(dati_pdc!$C6=3,dati_bdv!$E$2:$E$65536,IF(dati_pdc!$C6=4,dati_bdv!$F$2:$F$65536,IF(dati_pdc!$C6=5,dati_bdv!$G$2:$G$65536,dati_bdv!$H$2:$H$65536))))),$A6,dati_bdv!M$2:M$65536)","v":0},{"$f":"SUMIF(IF(dati_pdc!$C6=1,dati_bdv!$C$2:$C$65536,IF(dati_pdc!$C6=2,dati_bdv!$D$2:$D$65536,IF(dati_pdc!$C6=3,dati_bdv!$E$2:$E$65536,IF(dati_pdc!$C6=4,dati_bdv!$F$2:$F$65536,IF(dati_pdc!$C6=5,dati_bdv!$G$2:$G$65536,dati_bdv!$H$2:$H$65536))))),$A6,dati_bdv!N$2:N$65536)","v":0}]
[{"$f":"dati_pdc!A7","v":"2101"},{"$f":"SUMIF(IF(dati_pdc!$C7=1,dati_bdv!$C$2:$C$65536,IF(dati_pdc!$C7=2,dati_bdv!$D$2:$D$65536,IF(dati_pdc!$C7=3,dati_bdv!$E$2:$E$65536,IF(dati_pdc!$C7=4,dati_bdv!$F$2:$F$65536,IF(dati_pdc!$C7=5,dati_bdv!$G$2:$G$65536,dati_bdv!$H$2:$H$65536))))),$A7,dati_bdv!J$2:J$65536)","v":172854.87},{"$f":"SUMIF(IF(dati_pdc!$C7=1,dati_bdv!$C$2:$C$65536,IF(dati_pdc!$C7=2,dati_bdv!$D$2:$D$65536,IF(dati_pdc!$C7=3,dati_bdv!$E$2:$E$65536,IF(dati_pdc!$C7=4,dati_bdv!$F$2:$F$65536,IF(dati_pdc!$C7=5,dati_bdv!$G$2:$G$65536,dati_bdv!$H$2:$H$65536))))),$A7,dati_bdv!K$2:K$65536)","v":172854.87},{"$f":"SUMIF(IF(dati_pdc!$C7=1,dati_bdv!$C$2:$C$65536,IF(dati_pdc!$C7=2,dati_bdv!$D$2:$D$65536,IF(dati_pdc!$C7=3,dati_bdv!$E$2:$E$65536,IF(dati_pdc!$C7=4,dati_bdv!$F$2:$F$65536,IF(dati_pdc!$C7=5,dati_bdv!$G$2:$G$65536,dati_bdv!$H$2:$H$65536))))),$A7,dati_bdv!L$2:L$65536)","v":0},{"$f":"SUMIF(IF(dati_pdc!$C7=1,dati_bdv!$C$2:$C$65536,IF(dati_pdc!$C7=2,dati_bdv!$D$2:$D$65536,IF(dati_pdc!$C7=3,dati_bdv!$E$2:$E$65536,IF(dati_pdc!$C7=4,dati_bdv!$F$2:$F$65536,IF(dati_pdc!$C7=5,dati_bdv!$G$2:$G$65536,dati_bdv!$H$2:$H$65536))))),$A7,dati_bdv!M$2:M$65536)","v":0},{"$f":"SUMIF(IF(dati_pdc!$C7=1,dati_bdv!$C$2:$C$65536,IF(dati_pdc!$C7=2,dati_bdv!$D$2:$D$65536,IF(dati_pdc!$C7=3,dati_bdv!$E$2:$E$65536,IF(dati_pdc!$C7=4,dati_bdv!$F$2:$F$65536,IF(dati_pdc!$C7=5,dati_bdv!$G$2:$G$65536,dati_bdv!$H$2:$H$65536))))),$A7,dati_bdv!N$2:N$65536)","v":0}]
[{"$f":"dati_pdc!A8","v":"210121"},{"$f":"SUMIF(IF(dati_pdc!$C8=1,dati_bdv!$C$2:$C$65536,IF(dati_pdc!$C8=2,dati_bdv!$D$2:$D$65536,IF(dati_pdc!$C8=3,dati_bdv!$E$2:$E$65536,IF(dati_pdc!$C8=4,dati_bdv!$F$2:$F$65536,IF(dati_pdc!$C8=5,dati_bdv!$G$2:$G$65536,dati_bdv!$H$2:$H$65536))))),$A8,dati_bdv!J$2:J$65536)","v":172854.87},{"$f":"SUMIF(IF(dati_pdc!$C8=1,dati_bdv!$C$2:$C$65536,IF(dati_pdc!$C8=2,dati_bdv!$D$2:$D$65536,IF(dati_pdc!$C8=3,dati_bdv!$E$2:$E$65536,IF(dati_pdc!$C8=4,dati_bdv!$F$2:$F$65536,IF(dati_pdc!$C8=5,dati_bdv!$G$2:$G$65536,dati_bdv!$H$2:$H$65536))))),$A8,dati_bdv!K$2:K$65536)","v":172854.87},{"$f":"SUMIF(IF(dati_pdc!$C8=1,dati_bdv!$C$2:$C$65536,IF(dati_pdc!$C8=2,dati_bdv!$D$2:$D$65536,IF(dati_pdc!$C8=3,dati_bdv!$E$2:$E$65536,IF(dati_pdc!$C8=4,dati_bdv!$F$2:$F$65536,IF(dati_pdc!$C8=5,dati_bdv!$G$2:$G$65536,dati_bdv!$H$2:$H$65536))))),$A8,dati_bdv!L$2:L$65536)","v":0},{"$f":"SUMIF(IF(dati_pdc!$C8=1,dati_bdv!$C$2:$C$65536,IF(dati_pdc!$C8=2,dati_bdv!$D$2:$D$65536,IF(dati_pdc!$C8=3,dati_bdv!$E$2:$E$65536,IF(dati_pdc!$C8=4,dati_bdv!$F$2:$F$65536,IF(dati_pdc!$C8=5,dati_bdv!$G$2:$G$65536,dati_bdv!$H$2:$H$65536))))),$A8,dati_bdv!M$2:M$65536)","v":0},{"$f":"SUMIF(IF(dati_pdc!$C8=1,dati_bdv!$C$2:$C$65536,IF(dati_pdc!$C8=2,dati_bdv!$D$2:$D$65536,IF(dati_pdc!$C8=3,dati_bdv!$E$2:$E$65536,IF(dati_pdc!$C8=4,dati_bdv!$F$2:$F$65536,IF(dati_pdc!$C8=5,dati_bdv!$G$2:$G$65536,dati_bdv!$H$2:$H$65536))))),$A8,dati_bdv!N$2:N$65536)","v":0}]
[{"$f":"dati_pdc!A9","v":"23"},{"$f":"SUMIF(IF(dati_pdc!$C9=1,dati_bdv!$C$2:$C$65536,IF(dati_pdc!$C9=2,dati_bdv!$D$2:$D$65536,IF(dati_pdc!$C9=3,dati_bdv!$E$2:$E$65536,IF(dati_pdc!$C9=4,dati_bdv!$F$2:$F$65536,IF(dati_pdc!$C9=5,dati_bdv!$G$2:$G$65536,dati_bdv!$H$2:$H$65536))))),$A9,dati_bdv!J$2:J$65536)","v":70440},{"$f":"SUMIF(IF(dati_pdc!$C9=1,dati_bdv!$C$2:$C$65536,IF(dati_pdc!$C9=2,dati_bdv!$D$2:$D$65536,IF(dati_pdc!$C9=3,dati_bdv!$E$2:$E$65536,IF(dati_pdc!$C9=4,dati_bdv!$F$2:$F$65536,IF(dati_pdc!$C9=5,dati_bdv!$G$2:$G$65536,dati_bdv!$H$2:$H$65536))))),$A9,dati_bdv!K$2:K$65536)","v":-1560},{"$f":"SUMIF(IF(dati_pdc!$C9=1,dati_bdv!$C$2:$C$65536,IF(dati_pdc!$C9=2,dati_bdv!$D$2:$D$65536,IF(dati_pdc!$C9=3,dati_bdv!$E$2:$E$65536,IF(dati_pdc!$C9=4,dati_bdv!$F$2:$F$65536,IF(dati_pdc!$C9=5,dati_bdv!$G$2:$G$65536,dati_bdv!$H$2:$H$65536))))),$A9,dati_bdv!L$2:L$65536)","v":0},{"$f":"SUMIF(IF(dati_pdc!$C9=1,dati_bdv!$C$2:$C$65536,IF(dati_pdc!$C9=2,dati_bdv!$D$2:$D$65536,IF(dati_pdc!$C9=3,dati_bdv!$E$2:$E$65536,IF(dati_pdc!$C9=4,dati_bdv!$F$2:$F$65536,IF(dati_pdc!$C9=5,dati_bdv!$G$2:$G$65536,dati_bdv!$H$2:$H$65536))))),$A9,dati_bdv!M$2:M$65536)","v":0},{"$f":"SUMIF(IF(dati_pdc!$C9=1,dati_bdv!$C$2:$C$65536,IF(dati_pdc!$C9=2,dati_bdv!$D$2:$D$65536,IF(dati_pdc!$C9=3,dati_bdv!$E$2:$E$65536,IF(dati_pdc!$C9=4,dati_bdv!$F$2:$F$65536,IF(dati_pdc!$C9=5,dati_bdv!$G$2:$G$65536,dati_bdv!$H$2:$H$65536))))),$A9,dati_bdv!N$2:N$65536)","v":0}]
[{"$f":"dati_pdc!A10","v":"2303"},{"$f":"SUMIF(IF(dati_pdc!$C10=1,dati_bdv!$C$2:$C$65536,IF(dati_pdc!$C10=2,dati_bdv!$D$2:$D$65536,IF(dati_pdc!$C10=3,dati_bdv!$E$2:$E$65536,IF(dati_pdc!$C10=4,dati_bdv!$F$2:$F$65536,IF(dati_pdc!$C10=5,dati_bdv!$G$2:$G$65536,dati_bdv!$H$2:$H$65536))))),$A10,dati_bdv!J$2:J$65536)","v":70440},{"$f":"SUMIF(IF(dati_pdc!$C10=1,dati_bdv!$C$2:$C$65536,IF(dati_pdc!$C10=2,dati_bdv!$D$2:$D$65536,IF(dati_pdc!$C10=3,dati_bdv!$E$2:$E$65536,IF(dati_pdc!$C10=4,dati_bdv!$F$2:$F$65536,IF(dati_pdc!$C10=5,dati_bdv!$G$2:$G$65536,dati_bdv!$H$2:$H$65536))))),$A10,dati_bdv!K$2:K$65536)","v":-1560},{"$f":"SUMIF(IF(dati_pdc!$C10=1,dati_bdv!$C$2:$C$65536,IF(dati_pdc!$C10=2,dati_bdv!$D$2:$D$65536,IF(dati_pdc!$C10=3,dati_bdv!$E$2:$E$65536,IF(dati_pdc!$C10=4,dati_bdv!$F$2:$F$65536,IF(dati_pdc!$C10=5,dati_bdv!$G$2:$G$65536,dati_bdv!$H$2:$H$65536))))),$A10,dati_bdv!L$2:L$65536)","v":0},{"$f":"SUMIF(IF(dati_pdc!$C10=1,dati_bdv!$C$2:$C$65536,IF(dati_pdc!$C10=2,dati_bdv!$D$2:$D$65536,IF(dati_pdc!$C10=3,dati_bdv!$E$2:$E$65536,IF(dati_pdc!$C10=4,dati_bdv!$F$2:$F$65536,IF(dati_pdc!$C10=5,dati_bdv!$G$2:$G$65536,dati_bdv!$H$2:$H$65536))))),$A10,dati_bdv!M$2:M$65536)","v":0},{"$f":"SUMIF(IF(dati_pdc!$C10=1,dati_bdv!$C$2:$C$65536,IF(dati_pdc!$C10=2,dati_bdv!$D$2:$D$65536,IF(dati_pdc!$C10=3,dati_bdv!$E$2:$E$65536,IF(dati_pdc!$C10=4,dati_bdv!$F$2:$F$65536,IF(dati_pdc!$C10=5,dati_bdv!$G$2:$G$65536,dati_bdv!$H$2:$H$65536))))),$A10,dati_bdv!N$2:N$65536)","v":0}]
[{"$f":"dati_pdc!A11","v":"230301"},{"$f":"SUMIF(IF(dati_pdc!$C11=1,dati_bdv!$C$2:$C$65536,IF(dati_pdc!$C11=2,dati_bdv!$D$2:$D$65536,IF(dati_pdc!$C11=3,dati_bdv!$E$2:$E$65536,IF(dati_pdc!$C11=4,dati_bdv!$F$2:$F$65536,IF(dati_pdc!$C11=5,dati_bdv!$G$2:$G$65536,dati_bdv!$H$2:$H$65536))))),$A11,dati_bdv!J$2:J$65536)","v":70440},{"$f":"SUMIF(IF(dati_pdc!$C11=1,dati_bdv!$C$2:$C$65536,IF(dati_pdc!$C11=2,dati_bdv!$D$2:$D$65536,IF(dati_pdc!$C11=3,dati_bdv!$E$2:$E$65536,IF(dati_pdc!$C11=4,dati_bdv!$F$2:$F$65536,IF(dati_pdc!$C11=5,dati_bdv!$G$2:$G$65536,dati_bdv!$H$2:$H$65536))))),$A11,dati_bdv!K$2:K$65536)","v":-1560},{"$f":"SUMIF(IF(dati_pdc!$C11=1,dati_bdv!$C$2:$C$65536,IF(dati_pdc!$C11=2,dati_bdv!$D$2:$D$65536,IF(dati_pdc!$C11=3,dati_bdv!$E$2:$E$65536,IF(dati_pdc!$C11=4,dati_bdv!$F$2:$F$65536,IF(dati_pdc!$C11=5,dati_bdv!$G$2:$G$65536,dati_bdv!$H$2:$H$65536))))),$A11,dati_bdv!L$2:L$65536)","v":0},{"$f":"SUMIF(IF(dati_pdc!$C11=1,dati_bdv!$C$2:$C$65536,IF(dati_pdc!$C11=2,dati_bdv!$D$2:$D$65536,IF(dati_pdc!$C11=3,dati_bdv!$E$2:$E$65536,IF(dati_pdc!$C11=4,dati_bdv!$F$2:$F$65536,IF(dati_pdc!$C11=5,dati_bdv!$G$2:$G$65536,dati_bdv!$H$2:$H$65536))))),$A11,dati_bdv!M$2:M$65536)","v":0},{"$f":"SUMIF(IF(dati_pdc!$C11=1,dati_bdv!$C$2:$C$65536,IF(dati_pdc!$C11=2,dati_bdv!$D$2:$D$65536,IF(dati_pdc!$C11=3,dati_bdv!$E$2:$E$65536,IF(dati_pdc!$C11=4,dati_bdv!$F$2:$F$65536,IF(dati_pdc!$C11=5,dati_bdv!$G$2:$G$65536,dati_bdv!$H$2:$H$65536))))),$A11,dati_bdv!N$2:N$65536)","v":0}]
[{"$f":"dati_pdc!A12","v":"27"},{"$f":"SUMIF(IF(dati_pdc!$C12=1,dati_bdv!$C$2:$C$65536,IF(dati_pdc!$C12=2,dati_bdv!$D$2:$D$65536,IF(dati_pdc!$C12=3,dati_bdv!$E$2:$E$65536,IF(dati_pdc!$C12=4,dati_bdv!$F$2:$F$65536,IF(dati_pdc!$C12=5,dati_bdv!$G$2:$G$65536,dati_bdv!$H$2:$H$65536))))),$A12,dati_bdv!J$2:J$65536)","v":3798.07},{"$f":"SUMIF(IF(dati_pdc!$C12=1,dati_bdv!$C$2:$C$65536,IF(dati_pdc!$C12=2,dati_bdv!$D$2:$D$65536,IF(dati_pdc!$C12=3,dati_bdv!$E$2:$E$65536,IF(dati_pdc!$C12=4,dati_bdv!$F$2:$F$65536,IF(dati_pdc!$C12=5,dati_bdv!$G$2:$G$65536,dati_bdv!$H$2:$H$65536))))),$A12,dati_bdv!K$2:K$65536)","v":3798.07},{"$f":"SUMIF(IF(dati_pdc!$C12=1,dati_bdv!$C$2:$C$65536,IF(dati_pdc!$C12=2,dati_bdv!$D$2:$D$65536,IF(dati_pdc!$C12=3,dati_bdv!$E$2:$E$65536,IF(dati_pdc!$C12=4,dati_bdv!$F$2:$F$65536,IF(dati_pdc!$C12=5,dati_bdv!$G$2:$G$65536,dati_bdv!$H$2:$H$65536))))),$A12,dati_bdv!L$2:L$65536)","v":0},{"$f":"SUMIF(IF(dati_pdc!$C12=1,dati_bdv!$C$2:$C$65536,IF(dati_pdc!$C12=2,dati_bdv!$D$2:$D$65536,IF(dati_pdc!$C12=3,dati_bdv!$E$2:$E$65536,IF(dati_pdc!$C12=4,dati_bdv!$F$2:$F$65536,IF(dati_pdc!$C12=5,dati_bdv!$G$2:$G$65536,dati_bdv!$H$2:$H$65536))))),$A12,dati_bdv!M$2:M$65536)","v":0},{"$f":"SUMIF(IF(dati_pdc!$C12=1,dati_bdv!$C$2:$C$65536,IF(dati_pdc!$C12=2,dati_bdv!$D$2:$D$65536,IF(dati_pdc!$C12=3,dati_bdv!$E$2:$E$65536,IF(dati_pdc!$C12=4,dati_bdv!$F$2:$F$65536,IF(dati_pdc!$C12=5,dati_bdv!$G$2:$G$65536,dati_bdv!$H$2:$H$65536))))),$A12,dati_bdv!N$2:N$65536)","v":0}]
[{"$f":"dati_pdc!A13","v":"2705"},{"$f":"SUMIF(IF(dati_pdc!$C13=1,dati_bdv!$C$2:$C$65536,IF(dati_pdc!$C13=2,dati_bdv!$D$2:$D$65536,IF(dati_pdc!$C13=3,dati_bdv!$E$2:$E$65536,IF(dati_pdc!$C13=4,dati_bdv!$F$2:$F$65536,IF(dati_pdc!$C13=5,dati_bdv!$G$2:$G$65536,dati_bdv!$H$2:$H$65536))))),$A13,dati_bdv!J$2:J$65536)","v":3798.07},{"$f":"SUMIF(IF(dati_pdc!$C13=1,dati_bdv!$C$2:$C$65536,IF(dati_pdc!$C13=2,dati_bdv!$D$2:$D$65536,IF(dati_pdc!$C13=3,dati_bdv!$E$2:$E$65536,IF(dati_pdc!$C13=4,dati_bdv!$F$2:$F$65536,IF(dati_pdc!$C13=5,dati_bdv!$G$2:$G$65536,dati_bdv!$H$2:$H$65536))))),$A13,dati_bdv!K$2:K$65536)","v":3798.07},{"$f":"SUMIF(IF(dati_pdc!$C13=1,dati_bdv!$C$2:$C$65536,IF(dati_pdc!$C13=2,dati_bdv!$D$2:$D$65536,IF(dati_pdc!$C13=3,dati_bdv!$E$2:$E$65536,IF(dati_pdc!$C13=4,dati_bdv!$F$2:$F$65536,IF(dati_pdc!$C13=5,dati_bdv!$G$2:$G$65536,dati_bdv!$H$2:$H$65536))))),$A13,dati_bdv!L$2:L$65536)","v":0},{"$f":"SUMIF(IF(dati_pdc!$C13=1,dati_bdv!$C$2:$C$65536,IF(dati_pdc!$C13=2,dati_bdv!$D$2:$D$65536,IF(dati_pdc!$C13=3,dati_bdv!$E$2:$E$65536,IF(dati_pdc!$C13=4,dati_bdv!$F$2:$F$65536,IF(dati_pdc!$C13=5,dati_bdv!$G$2:$G$65536,dati_bdv!$H$2:$H$65536))))),$A13,dati_bdv!M$2:M$65536)","v":0},{"$f":"SUMIF(IF(dati_pdc!$C13=1,dati_bdv!$C$2:$C$65536,IF(dati_pdc!$C13=2,dati_bdv!$D$2:$D$65536,IF(dati_pdc!$C13=3,dati_bdv!$E$2:$E$65536,IF(dati_pdc!$C13=4,dati_bdv!$F$2:$F$65536,IF(dati_pdc!$C13=5,dati_bdv!$G$2:$G$65536,dati_bdv!$H$2:$H$65536))))),$A13,dati_bdv!N$2:N$65536)","v":0}]
[{"$f":"dati_pdc!A14","v":"270551"},{"$f":"SUMIF(IF(dati_pdc!$C14=1,dati_bdv!$C$2:$C$65536,IF(dati_pdc!$C14=2,dati_bdv!$D$2:$D$65536,IF(dati_pdc!$C14=3,dati_bdv!$E$2:$E$65536,IF(dati_pdc!$C14=4,dati_bdv!$F$2:$F$65536,IF(dati_pdc!$C14=5,dati_bdv!$G$2:$G$65536,dati_bdv!$H$2:$H$65536))))),$A14,dati_bdv!J$2:J$65536)","v":3798.07},{"$f":"SUMIF(IF(dati_pdc!$C14=1,dati_bdv!$C$2:$C$65536,IF(dati_pdc!$C14=2,dati_bdv!$D$2:$D$65536,IF(dati_pdc!$C14=3,dati_bdv!$E$2:$E$65536,IF(dati_pdc!$C14=4,dati_bdv!$F$2:$F$65536,IF(dati_pdc!$C14=5,dati_bdv!$G$2:$G$65536,dati_bdv!$H$2:$H$65536))))),$A14,dati_bdv!K$2:K$65536)","v":3798.07},{"$f":"SUMIF(IF(dati_pdc!$C14=1,dati_bdv!$C$2:$C$65536,IF(dati_pdc!$C14=2,dati_bdv!$D$2:$D$65536,IF(dati_pdc!$C14=3,dati_bdv!$E$2:$E$65536,IF(dati_pdc!$C14=4,dati_bdv!$F$2:$F$65536,IF(dati_pdc!$C14=5,dati_bdv!$G$2:$G$65536,dati_bdv!$H$2:$H$65536))))),$A14,dati_bdv!L$2:L$65536)","v":0},{"$f":"SUMIF(IF(dati_pdc!$C14=1,dati_bdv!$C$2:$C$65536,IF(dati_pdc!$C14=2,dati_bdv!$D$2:$D$65536,IF(dati_pdc!$C14=3,dati_bdv!$E$2:$E$65536,IF(dati_pdc!$C14=4,dati_bdv!$F$2:$F$65536,IF(dati_pdc!$C14=5,dati_bdv!$G$2:$G$65536,dati_bdv!$H$2:$H$65536))))),$A14,dati_bdv!M$2:M$65536)","v":0},{"$f":"SUMIF(IF(dati_pdc!$C14=1,dati_bdv!$C$2:$C$65536,IF(dati_pdc!$C14=2,dati_bdv!$D$2:$D$65536,IF(dati_pdc!$C14=3,dati_bdv!$E$2:$E$65536,IF(dati_pdc!$C14=4,dati_bdv!$F$2:$F$65536,IF(dati_pdc!$C14=5,dati_bdv!$G$2:$G$65536,dati_bdv!$H$2:$H$65536))))),$A14,dati_bdv!N$2:N$65536)","v":0}]
[{"$f":"dati_pdc!A15","v":"31"},{"$f":"SUMIF(IF(dati_pdc!$C15=1,dati_bdv!$C$2:$C$65536,IF(dati_pdc!$C15=2,dati_bdv!$D$2:$D$65536,IF(dati_pdc!$C15=3,dati_bdv!$E$2:$E$65536,IF(dati_pdc!$C15=4,dati_bdv!$F$2:$F$65536,IF(dati_pdc!$C15=5,dati_bdv!$G$2:$G$65536,dati_bdv!$H$2:$H$65536))))),$A15,dati_bdv!J$2:J$65536)","v":-1333.16},{"$f":"SUMIF(IF(dati_pdc!$C15=1,dati_bdv!$C$2:$C$65536,IF(dati_pdc!$C15=2,dati_bdv!$D$2:$D$65536,IF(dati_pdc!$C15=3,dati_bdv!$E$2:$E$65536,IF(dati_pdc!$C15=4,dati_bdv!$F$2:$F$65536,IF(dati_pdc!$C15=5,dati_bdv!$G$2:$G$65536,dati_bdv!$H$2:$H$65536))))),$A15,dati_bdv!K$2:K$65536)","v":2522},{"$f":"SUMIF(IF(dati_pdc!$C15=1,dati_bdv!$C$2:$C$65536,IF(dati_pdc!$C15=2,dati_bdv!$D$2:$D$65536,IF(dati_pdc!$C15=3,dati_bdv!$E$2:$E$65536,IF(dati_pdc!$C15=4,dati_bdv!$F$2:$F$65536,IF(dati_pdc!$C15=5,dati_bdv!$G$2:$G$65536,dati_bdv!$H$2:$H$65536))))),$A15,dati_bdv!L$2:L$65536)","v":0},{"$f":"SUMIF(IF(dati_pdc!$C15=1,dati_bdv!$C$2:$C$65536,IF(dati_pdc!$C15=2,dati_bdv!$D$2:$D$65536,IF(dati_pdc!$C15=3,dati_bdv!$E$2:$E$65536,IF(dati_pdc!$C15=4,dati_bdv!$F$2:$F$65536,IF(dati_pdc!$C15=5,dati_bdv!$G$2:$G$65536,dati_bdv!$H$2:$H$65536))))),$A15,dati_bdv!M$2:M$65536)","v":0},{"$f":"SUMIF(IF(dati_pdc!$C15=1,dati_bdv!$C$2:$C$65536,IF(dati_pdc!$C15=2,dati_bdv!$D$2:$D$65536,IF(dati_pdc!$C15=3,dati_bdv!$E$2:$E$65536,IF(dati_pdc!$C15=4,dati_bdv!$F$2:$F$65536,IF(dati_pdc!$C15=5,dati_bdv!$G$2:$G$65536,dati_bdv!$H$2:$H$65536))))),$A15,dati_bdv!N$2:N$65536)","v":0}]
[{"$f":"dati_pdc!A16","v":"3101"},{"$f":"SUMIF(IF(dati_pdc!$C16=1,dati_bdv!$C$2:$C$65536,IF(dati_pdc!$C16=2,dati_bdv!$D$2:$D$65536,IF(dati_pdc!$C16=3,dati_bdv!$E$2:$E$65536,IF(dati_pdc!$C16=4,dati_bdv!$F$2:$F$65536,IF(dati_pdc!$C16=5,dati_bdv!$G$2:$G$65536,dati_bdv!$H$2:$H$65536))))),$A16,dati_bdv!J$2:J$65536)","v":-1514.22},{"$f":"SUMIF(IF(dati_pdc!$C16=1,dati_bdv!$C$2:$C$65536,IF(dati_pdc!$C16=2,dati_bdv!$D$2:$D$65536,IF(dati_pdc!$C16=3,dati_bdv!$E$2:$E$65536,IF(dati_pdc!$C16=4,dati_bdv!$F$2:$F$65536,IF(dati_pdc!$C16=5,dati_bdv!$G$2:$G$65536,dati_bdv!$H$2:$H$65536))))),$A16,dati_bdv!K$2:K$65536)","v":2340.94},{"$f":"SUMIF(IF(dati_pdc!$C16=1,dati_bdv!$C$2:$C$65536,IF(dati_pdc!$C16=2,dati_bdv!$D$2:$D$65536,IF(dati_pdc!$C16=3,dati_bdv!$E$2:$E$65536,IF(dati_pdc!$C16=4,dati_bdv!$F$2:$F$65536,IF(dati_pdc!$C16=5,dati_bdv!$G$2:$G$65536,dati_bdv!$H$2:$H$65536))))),$A16,dati_bdv!L$2:L$65536)","v":0},{"$f":"SUMIF(IF(dati_pdc!$C16=1,dati_bdv!$C$2:$C$65536,IF(dati_pdc!$C16=2,dati_bdv!$D$2:$D$65536,IF(dati_pdc!$C16=3,dati_bdv!$E$2:$E$65536,IF(dati_pdc!$C16=4,dati_bdv!$F$2:$F$65536,IF(dati_pdc!$C16=5,dati_bdv!$G$2:$G$65536,dati_bdv!$H$2:$H$65536))))),$A16,dati_bdv!M$2:M$65536)","v":0},{"$f":"SUMIF(IF(dati_pdc!$C16=1,dati_bdv!$C$2:$C$65536,IF(dati_pdc!$C16=2,dati_bdv!$D$2:$D$65536,IF(dati_pdc!$C16=3,dati_bdv!$E$2:$E$65536,IF(dati_pdc!$C16=4,dati_bdv!$F$2:$F$65536,IF(dati_pdc!$C16=5,dati_bdv!$G$2:$G$65536,dati_bdv!$H$2:$H$65536))))),$A16,dati_bdv!N$2:N$65536)","v":0}]
[{"$f":"dati_pdc!A17","v":"310101"},{"$f":"SUMIF(IF(dati_pdc!$C17=1,dati_bdv!$C$2:$C$65536,IF(dati_pdc!$C17=2,dati_bdv!$D$2:$D$65536,IF(dati_pdc!$C17=3,dati_bdv!$E$2:$E$65536,IF(dati_pdc!$C17=4,dati_bdv!$F$2:$F$65536,IF(dati_pdc!$C17=5,dati_bdv!$G$2:$G$65536,dati_bdv!$H$2:$H$65536))))),$A17,dati_bdv!J$2:J$65536)","v":-1514.22},{"$f":"SUMIF(IF(dati_pdc!$C17=1,dati_bdv!$C$2:$C$65536,IF(dati_pdc!$C17=2,dati_bdv!$D$2:$D$65536,IF(dati_pdc!$C17=3,dati_bdv!$E$2:$E$65536,IF(dati_pdc!$C17=4,dati_bdv!$F$2:$F$65536,IF(dati_pdc!$C17=5,dati_bdv!$G$2:$G$65536,dati_bdv!$H$2:$H$65536))))),$A17,dati_bdv!K$2:K$65536)","v":2340.94},{"$f":"SUMIF(IF(dati_pdc!$C17=1,dati_bdv!$C$2:$C$65536,IF(dati_pdc!$C17=2,dati_bdv!$D$2:$D$65536,IF(dati_pdc!$C17=3,dati_bdv!$E$2:$E$65536,IF(dati_pdc!$C17=4,dati_bdv!$F$2:$F$65536,IF(dati_pdc!$C17=5,dati_bdv!$G$2:$G$65536,dati_bdv!$H$2:$H$65536))))),$A17,dati_bdv!L$2:L$65536)","v":0},{"$f":"SUMIF(IF(dati_pdc!$C17=1,dati_bdv!$C$2:$C$65536,IF(dati_pdc!$C17=2,dati_bdv!$D$2:$D$65536,IF(dati_pdc!$C17=3,dati_bdv!$E$2:$E$65536,IF(dati_pdc!$C17=4,dati_bdv!$F$2:$F$65536,IF(dati_pdc!$C17=5,dati_bdv!$G$2:$G$65536,dati_bdv!$H$2:$H$65536))))),$A17,dati_bdv!M$2:M$65536)","v":0},{"$f":"SUMIF(IF(dati_pdc!$C17=1,dati_bdv!$C$2:$C$65536,IF(dati_pdc!$C17=2,dati_bdv!$D$2:$D$65536,IF(dati_pdc!$C17=3,dati_bdv!$E$2:$E$65536,IF(dati_pdc!$C17=4,dati_bdv!$F$2:$F$65536,IF(dati_pdc!$C17=5,dati_bdv!$G$2:$G$65536,dati_bdv!$H$2:$H$65536))))),$A17,dati_bdv!N$2:N$65536)","v":0}]
[{"$f":"dati_pdc!A18","v":"3103"},{"$f":"SUMIF(IF(dati_pdc!$C18=1,dati_bdv!$C$2:$C$65536,IF(dati_pdc!$C18=2,dati_bdv!$D$2:$D$65536,IF(dati_pdc!$C18=3,dati_bdv!$E$2:$E$65536,IF(dati_pdc!$C18=4,dati_bdv!$F$2:$F$65536,IF(dati_pdc!$C18=5,dati_bdv!$G$2:$G$65536,dati_bdv!$H$2:$H$65536))))),$A18,dati_bdv!J$2:J$65536)","v":181.06},{"$f":"SUMIF(IF(dati_pdc!$C18=1,dati_bdv!$C$2:$C$65536,IF(dati_pdc!$C18=2,dati_bdv!$D$2:$D$65536,IF(dati_pdc!$C18=3,dati_bdv!$E$2:$E$65536,IF(dati_pdc!$C18=4,dati_bdv!$F$2:$F$65536,IF(dati_pdc!$C18=5,dati_bdv!$G$2:$G$65536,dati_bdv!$H$2:$H$65536))))),$A18,dati_bdv!K$2:K$65536)","v":181.06},{"$f":"SUMIF(IF(dati_pdc!$C18=1,dati_bdv!$C$2:$C$65536,IF(dati_pdc!$C18=2,dati_bdv!$D$2:$D$65536,IF(dati_pdc!$C18=3,dati_bdv!$E$2:$E$65536,IF(dati_pdc!$C18=4,dati_bdv!$F$2:$F$65536,IF(dati_pdc!$C18=5,dati_bdv!$G$2:$G$65536,dati_bdv!$H$2:$H$65536))))),$A18,dati_bdv!L$2:L$65536)","v":0},{"$f":"SUMIF(IF(dati_pdc!$C18=1,dati_bdv!$C$2:$C$65536,IF(dati_pdc!$C18=2,dati_bdv!$D$2:$D$65536,IF(dati_pdc!$C18=3,dati_bdv!$E$2:$E$65536,IF(dati_pdc!$C18=4,dati_bdv!$F$2:$F$65536,IF(dati_pdc!$C18=5,dati_bdv!$G$2:$G$65536,dati_bdv!$H$2:$H$65536))))),$A18,dati_bdv!M$2:M$65536)","v":0},{"$f":"SUMIF(IF(dati_pdc!$C18=1,dati_bdv!$C$2:$C$65536,IF(dati_pdc!$C18=2,dati_bdv!$D$2:$D$65536,IF(dati_pdc!$C18=3,dati_bdv!$E$2:$E$65536,IF(dati_pdc!$C18=4,dati_bdv!$F$2:$F$65536,IF(dati_pdc!$C18=5,dati_bdv!$G$2:$G$65536,dati_bdv!$H$2:$H$65536))))),$A18,dati_bdv!N$2:N$65536)","v":0}]
[{"$f":"dati_pdc!A19","v":"310303"},{"$f":"SUMIF(IF(dati_pdc!$C19=1,dati_bdv!$C$2:$C$65536,IF(dati_pdc!$C19=2,dati_bdv!$D$2:$D$65536,IF(dati_pdc!$C19=3,dati_bdv!$E$2:$E$65536,IF(dati_pdc!$C19=4,dati_bdv!$F$2:$F$65536,IF(dati_pdc!$C19=5,dati_bdv!$G$2:$G$65536,dati_bdv!$H$2:$H$65536))))),$A19,dati_bdv!J$2:J$65536)","v":181.06},{"$f":"SUMIF(IF(dati_pdc!$C19=1,dati_bdv!$C$2:$C$65536,IF(dati_pdc!$C19=2,dati_bdv!$D$2:$D$65536,IF(dati_pdc!$C19=3,dati_bdv!$E$2:$E$65536,IF(dati_pdc!$C19=4,dati_bdv!$F$2:$F$65536,IF(dati_pdc!$C19=5,dati_bdv!$G$2:$G$65536,dati_bdv!$H$2:$H$65536))))),$A19,dati_bdv!K$2:K$65536)","v":181.06},{"$f":"SUMIF(IF(dati_pdc!$C19=1,dati_bdv!$C$2:$C$65536,IF(dati_pdc!$C19=2,dati_bdv!$D$2:$D$65536,IF(dati_pdc!$C19=3,dati_bdv!$E$2:$E$65536,IF(dati_pdc!$C19=4,dati_bdv!$F$2:$F$65536,IF(dati_pdc!$C19=5,dati_bdv!$G$2:$G$65536,dati_bdv!$H$2:$H$65536))))),$A19,dati_bdv!L$2:L$65536)","v":0},{"$f":"SUMIF(IF(dati_pdc!$C19=1,dati_bdv!$C$2:$C$65536,IF(dati_pdc!$C19=2,dati_bdv!$D$2:$D$65536,IF(dati_pdc!$C19=3,dati_bdv!$E$2:$E$65536,IF(dati_pdc!$C19=4,dati_bdv!$F$2:$F$65536,IF(dati_pdc!$C19=5,dati_bdv!$G$2:$G$65536,dati_bdv!$H$2:$H$65536))))),$A19,dati_bdv!M$2:M$65536)","v":0},{"$f":"SUMIF(IF(dati_pdc!$C19=1,dati_bdv!$C$2:$C$65536,IF(dati_pdc!$C19=2,dati_bdv!$D$2:$D$65536,IF(dati_pdc!$C19=3,dati_bdv!$E$2:$E$65536,IF(dati_pdc!$C19=4,dati_bdv!$F$2:$F$65536,IF(dati_pdc!$C19=5,dati_bdv!$G$2:$G$65536,dati_bdv!$H$2:$H$65536))))),$A19,dati_bdv!N$2:N$65536)","v":0}]
[{"$f":"dati_pdc!A20","v":"39"},{"$f":"SUMIF(IF(dati_pdc!$C20=1,dati_bdv!$C$2:$C$65536,IF(dati_pdc!$C20=2,dati_bdv!$D$2:$D$65536,IF(dati_pdc!$C20=3,dati_bdv!$E$2:$E$65536,IF(dati_pdc!$C20=4,dati_bdv!$F$2:$F$65536,IF(dati_pdc!$C20=5,dati_bdv!$G$2:$G$65536,dati_bdv!$H$2:$H$65536))))),$A20,dati_bdv!J$2:J$65536)","v":29525.599999999999},{"$f":"SUMIF(IF(dati_pdc!$C20=1,dati_bdv!$C$2:$C$65536,IF(dati_pdc!$C20=2,dati_bdv!$D$2:$D$65536,IF(dati_pdc!$C20=3,dati_bdv!$E$2:$E$65536,IF(dati_pdc!$C20=4,dati_bdv!$F$2:$F$65536,IF(dati_pdc!$C20=5,dati_bdv!$G$2:$G$65536,dati_bdv!$H$2:$H$65536))))),$A20,dati_bdv!K$2:K$65536)","v":0},{"$f":"SUMIF(IF(dati_pdc!$C20=1,dati_bdv!$C$2:$C$65536,IF(dati_pdc!$C20=2,dati_bdv!$D$2:$D$65536,IF(dati_pdc!$C20=3,dati_bdv!$E$2:$E$65536,IF(dati_pdc!$C20=4,dati_bdv!$F$2:$F$65536,IF(dati_pdc!$C20=5,dati_bdv!$G$2:$G$65536,dati_bdv!$H$2:$H$65536))))),$A20,dati_bdv!L$2:L$65536)","v":0},{"$f":"SUMIF(IF(dati_pdc!$C20=1,dati_bdv!$C$2:$C$65536,IF(dati_pdc!$C20=2,dati_bdv!$D$2:$D$65536,IF(dati_pdc!$C20=3,dati_bdv!$E$2:$E$65536,IF(dati_pdc!$C20=4,dati_bdv!$F$2:$F$65536,IF(dati_pdc!$C20=5,dati_bdv!$G$2:$G$65536,dati_bdv!$H$2:$H$65536))))),$A20,dati_bdv!M$2:M$65536)","v":0},{"$f":"SUMIF(IF(dati_pdc!$C20=1,dati_bdv!$C$2:$C$65536,IF(dati_pdc!$C20=2,dati_bdv!$D$2:$D$65536,IF(dati_pdc!$C20=3,dati_bdv!$E$2:$E$65536,IF(dati_pdc!$C20=4,dati_bdv!$F$2:$F$65536,IF(dati_pdc!$C20=5,dati_bdv!$G$2:$G$65536,dati_bdv!$H$2:$H$65536))))),$A20,dati_bdv!N$2:N$65536)","v":0}]
[{"$f":"dati_pdc!A21","v":"3901"},{"$f":"SUMIF(IF(dati_pdc!$C21=1,dati_bdv!$C$2:$C$65536,IF(dati_pdc!$C21=2,dati_bdv!$D$2:$D$65536,IF(dati_pdc!$C21=3,dati_bdv!$E$2:$E$65536,IF(dati_pdc!$C21=4,dati_bdv!$F$2:$F$65536,IF(dati_pdc!$C21=5,dati_bdv!$G$2:$G$65536,dati_bdv!$H$2:$H$65536))))),$A21,dati_bdv!J$2:J$65536)","v":29525.599999999999},{"$f":"SUMIF(IF(dati_pdc!$C21=1,dati_bdv!$C$2:$C$65536,IF(dati_pdc!$C21=2,dati_bdv!$D$2:$D$65536,IF(dati_pdc!$C21=3,dati_bdv!$E$2:$E$65536,IF(dati_pdc!$C21=4,dati_bdv!$F$2:$F$65536,IF(dati_pdc!$C21=5,dati_bdv!$G$2:$G$65536,dati_bdv!$H$2:$H$65536))))),$A21,dati_bdv!K$2:K$65536)","v":0},{"$f":"SUMIF(IF(dati_pdc!$C21=1,dati_bdv!$C$2:$C$65536,IF(dati_pdc!$C21=2,dati_bdv!$D$2:$D$65536,IF(dati_pdc!$C21=3,dati_bdv!$E$2:$E$65536,IF(dati_pdc!$C21=4,dati_bdv!$F$2:$F$65536,IF(dati_pdc!$C21=5,dati_bdv!$G$2:$G$65536,dati_bdv!$H$2:$H$65536))))),$A21,dati_bdv!L$2:L$65536)","v":0},{"$f":"SUMIF(IF(dati_pdc!$C21=1,dati_bdv!$C$2:$C$65536,IF(dati_pdc!$C21=2,dati_bdv!$D$2:$D$65536,IF(dati_pdc!$C21=3,dati_bdv!$E$2:$E$65536,IF(dati_pdc!$C21=4,dati_bdv!$F$2:$F$65536,IF(dati_pdc!$C21=5,dati_bdv!$G$2:$G$65536,dati_bdv!$H$2:$H$65536))))),$A21,dati_bdv!M$2:M$65536)","v":0},{"$f":"SUMIF(IF(dati_pdc!$C21=1,dati_bdv!$C$2:$C$65536,IF(dati_pdc!$C21=2,dati_bdv!$D$2:$D$65536,IF(dati_pdc!$C21=3,dati_bdv!$E$2:$E$65536,IF(dati_pdc!$C21=4,dati_bdv!$F$2:$F$65536,IF(dati_pdc!$C21=5,dati_bdv!$G$2:$G$65536,dati_bdv!$H$2:$H$65536))))),$A21,dati_bdv!N$2:N$65536)","v":0}]
[{"$f":"dati_pdc!A22","v":"390103"},{"$f":"SUMIF(IF(dati_pdc!$C22=1,dati_bdv!$C$2:$C$65536,IF(dati_pdc!$C22=2,dati_bdv!$D$2:$D$65536,IF(dati_pdc!$C22=3,dati_bdv!$E$2:$E$65536,IF(dati_pdc!$C22=4,dati_bdv!$F$2:$F$65536,IF(dati_pdc!$C22=5,dati_bdv!$G$2:$G$65536,dati_bdv!$H$2:$H$65536))))),$A22,dati_bdv!J$2:J$65536)","v":29525.599999999999},{"$f":"SUMIF(IF(dati_pdc!$C22=1,dati_bdv!$C$2:$C$65536,IF(dati_pdc!$C22=2,dati_bdv!$D$2:$D$65536,IF(dati_pdc!$C22=3,dati_bdv!$E$2:$E$65536,IF(dati_pdc!$C22=4,dati_bdv!$F$2:$F$65536,IF(dati_pdc!$C22=5,dati_bdv!$G$2:$G$65536,dati_bdv!$H$2:$H$65536))))),$A22,dati_bdv!K$2:K$65536)","v":0},{"$f":"SUMIF(IF(dati_pdc!$C22=1,dati_bdv!$C$2:$C$65536,IF(dati_pdc!$C22=2,dati_bdv!$D$2:$D$65536,IF(dati_pdc!$C22=3,dati_bdv!$E$2:$E$65536,IF(dati_pdc!$C22=4,dati_bdv!$F$2:$F$65536,IF(dati_pdc!$C22=5,dati_bdv!$G$2:$G$65536,dati_bdv!$H$2:$H$65536))))),$A22,dati_bdv!L$2:L$65536)","v":0},{"$f":"SUMIF(IF(dati_pdc!$C22=1,dati_bdv!$C$2:$C$65536,IF(dati_pdc!$C22=2,dati_bdv!$D$2:$D$65536,IF(dati_pdc!$C22=3,dati_bdv!$E$2:$E$65536,IF(dati_pdc!$C22=4,dati_bdv!$F$2:$F$65536,IF(dati_pdc!$C22=5,dati_bdv!$G$2:$G$65536,dati_bdv!$H$2:$H$65536))))),$A22,dati_bdv!M$2:M$65536)","v":0},{"$f":"SUMIF(IF(dati_pdc!$C22=1,dati_bdv!$C$2:$C$65536,IF(dati_pdc!$C22=2,dati_bdv!$D$2:$D$65536,IF(dati_pdc!$C22=3,dati_bdv!$E$2:$E$65536,IF(dati_pdc!$C22=4,dati_bdv!$F$2:$F$65536,IF(dati_pdc!$C22=5,dati_bdv!$G$2:$G$65536,dati_bdv!$H$2:$H$65536))))),$A22,dati_bdv!N$2:N$65536)","v":0}]
[{"$f":"dati_pdc!A23","v":"41"},{"$f":"SUMIF(IF(dati_pdc!$C23=1,dati_bdv!$C$2:$C$65536,IF(dati_pdc!$C23=2,dati_bdv!$D$2:$D$65536,IF(dati_pdc!$C23=3,dati_bdv!$E$2:$E$65536,IF(dati_pdc!$C23=4,dati_bdv!$F$2:$F$65536,IF(dati_pdc!$C23=5,dati_bdv!$G$2:$G$65536,dati_bdv!$H$2:$H$65536))))),$A23,dati_bdv!J$2:J$65536)","v":-28285.78},{"$f":"SUMIF(IF(dati_pdc!$C23=1,dati_bdv!$C$2:$C$65536,IF(dati_pdc!$C23=2,dati_bdv!$D$2:$D$65536,IF(dati_pdc!$C23=3,dati_bdv!$E$2:$E$65536,IF(dati_pdc!$C23=4,dati_bdv!$F$2:$F$65536,IF(dati_pdc!$C23=5,dati_bdv!$G$2:$G$65536,dati_bdv!$H$2:$H$65536))))),$A23,dati_bdv!K$2:K$65536)","v":-28285.78},{"$f":"SUMIF(IF(dati_pdc!$C23=1,dati_bdv!$C$2:$C$65536,IF(dati_pdc!$C23=2,dati_bdv!$D$2:$D$65536,IF(dati_pdc!$C23=3,dati_bdv!$E$2:$E$65536,IF(dati_pdc!$C23=4,dati_bdv!$F$2:$F$65536,IF(dati_pdc!$C23=5,dati_bdv!$G$2:$G$65536,dati_bdv!$H$2:$H$65536))))),$A23,dati_bdv!L$2:L$65536)","v":0},{"$f":"SUMIF(IF(dati_pdc!$C23=1,dati_bdv!$C$2:$C$65536,IF(dati_pdc!$C23=2,dati_bdv!$D$2:$D$65536,IF(dati_pdc!$C23=3,dati_bdv!$E$2:$E$65536,IF(dati_pdc!$C23=4,dati_bdv!$F$2:$F$65536,IF(dati_pdc!$C23=5,dati_bdv!$G$2:$G$65536,dati_bdv!$H$2:$H$65536))))),$A23,dati_bdv!M$2:M$65536)","v":0},{"$f":"SUMIF(IF(dati_pdc!$C23=1,dati_bdv!$C$2:$C$65536,IF(dati_pdc!$C23=2,dati_bdv!$D$2:$D$65536,IF(dati_pdc!$C23=3,dati_bdv!$E$2:$E$65536,IF(dati_pdc!$C23=4,dati_bdv!$F$2:$F$65536,IF(dati_pdc!$C23=5,dati_bdv!$G$2:$G$65536,dati_bdv!$H$2:$H$65536))))),$A23,dati_bdv!N$2:N$65536)","v":0}]
[{"$f":"dati_pdc!A24","v":"4101"},{"$f":"SUMIF(IF(dati_pdc!$C24=1,dati_bdv!$C$2:$C$65536,IF(dati_pdc!$C24=2,dati_bdv!$D$2:$D$65536,IF(dati_pdc!$C24=3,dati_bdv!$E$2:$E$65536,IF(dati_pdc!$C24=4,dati_bdv!$F$2:$F$65536,IF(dati_pdc!$C24=5,dati_bdv!$G$2:$G$65536,dati_bdv!$H$2:$H$65536))))),$A24,dati_bdv!J$2:J$65536)","v":-28285.78},{"$f":"SUMIF(IF(dati_pdc!$C24=1,dati_bdv!$C$2:$C$65536,IF(dati_pdc!$C24=2,dati_bdv!$D$2:$D$65536,IF(dati_pdc!$C24=3,dati_bdv!$E$2:$E$65536,IF(dati_pdc!$C24=4,dati_bdv!$F$2:$F$65536,IF(dati_pdc!$C24=5,dati_bdv!$G$2:$G$65536,dati_bdv!$H$2:$H$65536))))),$A24,dati_bdv!K$2:K$65536)","v":-28285.78},{"$f":"SUMIF(IF(dati_pdc!$C24=1,dati_bdv!$C$2:$C$65536,IF(dati_pdc!$C24=2,dati_bdv!$D$2:$D$65536,IF(dati_pdc!$C24=3,dati_bdv!$E$2:$E$65536,IF(dati_pdc!$C24=4,dati_bdv!$F$2:$F$65536,IF(dati_pdc!$C24=5,dati_bdv!$G$2:$G$65536,dati_bdv!$H$2:$H$65536))))),$A24,dati_bdv!L$2:L$65536)","v":0},{"$f":"SUMIF(IF(dati_pdc!$C24=1,dati_bdv!$C$2:$C$65536,IF(dati_pdc!$C24=2,dati_bdv!$D$2:$D$65536,IF(dati_pdc!$C24=3,dati_bdv!$E$2:$E$65536,IF(dati_pdc!$C24=4,dati_bdv!$F$2:$F$65536,IF(dati_pdc!$C24=5,dati_bdv!$G$2:$G$65536,dati_bdv!$H$2:$H$65536))))),$A24,dati_bdv!M$2:M$65536)","v":0},{"$f":"SUMIF(IF(dati_pdc!$C24=1,dati_bdv!$C$2:$C$65536,IF(dati_pdc!$C24=2,dati_bdv!$D$2:$D$65536,IF(dati_pdc!$C24=3,dati_bdv!$E$2:$E$65536,IF(dati_pdc!$C24=4,dati_bdv!$F$2:$F$65536,IF(dati_pdc!$C24=5,dati_bdv!$G$2:$G$65536,dati_bdv!$H$2:$H$65536))))),$A24,dati_bdv!N$2:N$65536)","v":0}]
[{"$f":"dati_pdc!A25","v":"410101"},{"$f":"SUMIF(IF(dati_pdc!$C25=1,dati_bdv!$C$2:$C$65536,IF(dati_pdc!$C25=2,dati_bdv!$D$2:$D$65536,IF(dati_pdc!$C25=3,dati_bdv!$E$2:$E$65536,IF(dati_pdc!$C25=4,dati_bdv!$F$2:$F$65536,IF(dati_pdc!$C25=5,dati_bdv!$G$2:$G$65536,dati_bdv!$H$2:$H$65536))))),$A25,dati_bdv!J$2:J$65536)","v":-20800},{"$f":"SUMIF(IF(dati_pdc!$C25=1,dati_bdv!$C$2:$C$65536,IF(dati_pdc!$C25=2,dati_bdv!$D$2:$D$65536,IF(dati_pdc!$C25=3,dati_bdv!$E$2:$E$65536,IF(dati_pdc!$C25=4,dati_bdv!$F$2:$F$65536,IF(dati_pdc!$C25=5,dati_bdv!$G$2:$G$65536,dati_bdv!$H$2:$H$65536))))),$A25,dati_bdv!K$2:K$65536)","v":-20800},{"$f":"SUMIF(IF(dati_pdc!$C25=1,dati_bdv!$C$2:$C$65536,IF(dati_pdc!$C25=2,dati_bdv!$D$2:$D$65536,IF(dati_pdc!$C25=3,dati_bdv!$E$2:$E$65536,IF(dati_pdc!$C25=4,dati_bdv!$F$2:$F$65536,IF(dati_pdc!$C25=5,dati_bdv!$G$2:$G$65536,dati_bdv!$H$2:$H$65536))))),$A25,dati_bdv!L$2:L$65536)","v":0},{"$f":"SUMIF(IF(dati_pdc!$C25=1,dati_bdv!$C$2:$C$65536,IF(dati_pdc!$C25=2,dati_bdv!$D$2:$D$65536,IF(dati_pdc!$C25=3,dati_bdv!$E$2:$E$65536,IF(dati_pdc!$C25=4,dati_bdv!$F$2:$F$65536,IF(dati_pdc!$C25=5,dati_bdv!$G$2:$G$65536,dati_bdv!$H$2:$H$65536))))),$A25,dati_bdv!M$2:M$65536)","v":0},{"$f":"SUMIF(IF(dati_pdc!$C25=1,dati_bdv!$C$2:$C$65536,IF(dati_pdc!$C25=2,dati_bdv!$D$2:$D$65536,IF(dati_pdc!$C25=3,dati_bdv!$E$2:$E$65536,IF(dati_pdc!$C25=4,dati_bdv!$F$2:$F$65536,IF(dati_pdc!$C25=5,dati_bdv!$G$2:$G$65536,dati_bdv!$H$2:$H$65536))))),$A25,dati_bdv!N$2:N$65536)","v":0}]
[{"$f":"dati_pdc!A26","v":"410107"},{"$f":"SUMIF(IF(dati_pdc!$C26=1,dati_bdv!$C$2:$C$65536,IF(dati_pdc!$C26=2,dati_bdv!$D$2:$D$65536,IF(dati_pdc!$C26=3,dati_bdv!$E$2:$E$65536,IF(dati_pdc!$C26=4,dati_bdv!$F$2:$F$65536,IF(dati_pdc!$C26=5,dati_bdv!$G$2:$G$65536,dati_bdv!$H$2:$H$65536))))),$A26,dati_bdv!J$2:J$65536)","v":-6269.68},{"$f":"SUMIF(IF(dati_pdc!$C26=1,dati_bdv!$C$2:$C$65536,IF(dati_pdc!$C26=2,dati_bdv!$D$2:$D$65536,IF(dati_pdc!$C26=3,dati_bdv!$E$2:$E$65536,IF(dati_pdc!$C26=4,dati_bdv!$F$2:$F$65536,IF(dati_pdc!$C26=5,dati_bdv!$G$2:$G$65536,dati_bdv!$H$2:$H$65536))))),$A26,dati_bdv!K$2:K$65536)","v":-6269.68},{"$f":"SUMIF(IF(dati_pdc!$C26=1,dati_bdv!$C$2:$C$65536,IF(dati_pdc!$C26=2,dati_bdv!$D$2:$D$65536,IF(dati_pdc!$C26=3,dati_bdv!$E$2:$E$65536,IF(dati_pdc!$C26=4,dati_bdv!$F$2:$F$65536,IF(dati_pdc!$C26=5,dati_bdv!$G$2:$G$65536,dati_bdv!$H$2:$H$65536))))),$A26,dati_bdv!L$2:L$65536)","v":0},{"$f":"SUMIF(IF(dati_pdc!$C26=1,dati_bdv!$C$2:$C$65536,IF(dati_pdc!$C26=2,dati_bdv!$D$2:$D$65536,IF(dati_pdc!$C26=3,dati_bdv!$E$2:$E$65536,IF(dati_pdc!$C26=4,dati_bdv!$F$2:$F$65536,IF(dati_pdc!$C26=5,dati_bdv!$G$2:$G$65536,dati_bdv!$H$2:$H$65536))))),$A26,dati_bdv!M$2:M$65536)","v":0},{"$f":"SUMIF(IF(dati_pdc!$C26=1,dati_bdv!$C$2:$C$65536,IF(dati_pdc!$C26=2,dati_bdv!$D$2:$D$65536,IF(dati_pdc!$C26=3,dati_bdv!$E$2:$E$65536,IF(dati_pdc!$C26=4,dati_bdv!$F$2:$F$65536,IF(dati_pdc!$C26=5,dati_bdv!$G$2:$G$65536,dati_bdv!$H$2:$H$65536))))),$A26,dati_bdv!N$2:N$65536)","v":0}]
[{"$f":"dati_pdc!A27","v":"410108"},{"$f":"SUMIF(IF(dati_pdc!$C27=1,dati_bdv!$C$2:$C$65536,IF(dati_pdc!$C27=2,dati_bdv!$D$2:$D$65536,IF(dati_pdc!$C27=3,dati_bdv!$E$2:$E$65536,IF(dati_pdc!$C27=4,dati_bdv!$F$2:$F$65536,IF(dati_pdc!$C27=5,dati_bdv!$G$2:$G$65536,dati_bdv!$H$2:$H$65536))))),$A27,dati_bdv!J$2:J$65536)","v":-1216.0999999999999},{"$f":"SUMIF(IF(dati_pdc!$C27=1,dati_bdv!$C$2:$C$65536,IF(dati_pdc!$C27=2,dati_bdv!$D$2:$D$65536,IF(dati_pdc!$C27=3,dati_bdv!$E$2:$E$65536,IF(dati_pdc!$C27=4,dati_bdv!$F$2:$F$65536,IF(dati_pdc!$C27=5,dati_bdv!$G$2:$G$65536,dati_bdv!$H$2:$H$65536))))),$A27,dati_bdv!K$2:K$65536)","v":-1216.0999999999999},{"$f":"SUMIF(IF(dati_pdc!$C27=1,dati_bdv!$C$2:$C$65536,IF(dati_pdc!$C27=2,dati_bdv!$D$2:$D$65536,IF(dati_pdc!$C27=3,dati_bdv!$E$2:$E$65536,IF(dati_pdc!$C27=4,dati_bdv!$F$2:$F$65536,IF(dati_pdc!$C27=5,dati_bdv!$G$2:$G$65536,dati_bdv!$H$2:$H$65536))))),$A27,dati_bdv!L$2:L$65536)","v":0},{"$f":"SUMIF(IF(dati_pdc!$C27=1,dati_bdv!$C$2:$C$65536,IF(dati_pdc!$C27=2,dati_bdv!$D$2:$D$65536,IF(dati_pdc!$C27=3,dati_bdv!$E$2:$E$65536,IF(dati_pdc!$C27=4,dati_bdv!$F$2:$F$65536,IF(dati_pdc!$C27=5,dati_bdv!$G$2:$G$65536,dati_bdv!$H$2:$H$65536))))),$A27,dati_bdv!M$2:M$65536)","v":0},{"$f":"SUMIF(IF(dati_pdc!$C27=1,dati_bdv!$C$2:$C$65536,IF(dati_pdc!$C27=2,dati_bdv!$D$2:$D$65536,IF(dati_pdc!$C27=3,dati_bdv!$E$2:$E$65536,IF(dati_pdc!$C27=4,dati_bdv!$F$2:$F$65536,IF(dati_pdc!$C27=5,dati_bdv!$G$2:$G$65536,dati_bdv!$H$2:$H$65536))))),$A27,dati_bdv!N$2:N$65536)","v":0}]
[{"$f":"dati_pdc!A28","v":"43"},{"$f":"SUMIF(IF(dati_pdc!$C28=1,dati_bdv!$C$2:$C$65536,IF(dati_pdc!$C28=2,dati_bdv!$D$2:$D$65536,IF(dati_pdc!$C28=3,dati_bdv!$E$2:$E$65536,IF(dati_pdc!$C28=4,dati_bdv!$F$2:$F$65536,IF(dati_pdc!$C28=5,dati_bdv!$G$2:$G$65536,dati_bdv!$H$2:$H$65536))))),$A28,dati_bdv!J$2:J$65536)","v":-64367.48},{"$f":"SUMIF(IF(dati_pdc!$C28=1,dati_bdv!$C$2:$C$65536,IF(dati_pdc!$C28=2,dati_bdv!$D$2:$D$65536,IF(dati_pdc!$C28=3,dati_bdv!$E$2:$E$65536,IF(dati_pdc!$C28=4,dati_bdv!$F$2:$F$65536,IF(dati_pdc!$C28=5,dati_bdv!$G$2:$G$65536,dati_bdv!$H$2:$H$65536))))),$A28,dati_bdv!K$2:K$65536)","v":-63823.83},{"$f":"SUMIF(IF(dati_pdc!$C28=1,dati_bdv!$C$2:$C$65536,IF(dati_pdc!$C28=2,dati_bdv!$D$2:$D$65536,IF(dati_pdc!$C28=3,dati_bdv!$E$2:$E$65536,IF(dati_pdc!$C28=4,dati_bdv!$F$2:$F$65536,IF(dati_pdc!$C28=5,dati_bdv!$G$2:$G$65536,dati_bdv!$H$2:$H$65536))))),$A28,dati_bdv!L$2:L$65536)","v":0},{"$f":"SUMIF(IF(dati_pdc!$C28=1,dati_bdv!$C$2:$C$65536,IF(dati_pdc!$C28=2,dati_bdv!$D$2:$D$65536,IF(dati_pdc!$C28=3,dati_bdv!$E$2:$E$65536,IF(dati_pdc!$C28=4,dati_bdv!$F$2:$F$65536,IF(dati_pdc!$C28=5,dati_bdv!$G$2:$G$65536,dati_bdv!$H$2:$H$65536))))),$A28,dati_bdv!M$2:M$65536)","v":0},{"$f":"SUMIF(IF(dati_pdc!$C28=1,dati_bdv!$C$2:$C$65536,IF(dati_pdc!$C28=2,dati_bdv!$D$2:$D$65536,IF(dati_pdc!$C28=3,dati_bdv!$E$2:$E$65536,IF(dati_pdc!$C28=4,dati_bdv!$F$2:$F$65536,IF(dati_pdc!$C28=5,dati_bdv!$G$2:$G$65536,dati_bdv!$H$2:$H$65536))))),$A28,dati_bdv!N$2:N$65536)","v":0}]
[{"$f":"dati_pdc!A29","v":"4301"},{"$f":"SUMIF(IF(dati_pdc!$C29=1,dati_bdv!$C$2:$C$65536,IF(dati_pdc!$C29=2,dati_bdv!$D$2:$D$65536,IF(dati_pdc!$C29=3,dati_bdv!$E$2:$E$65536,IF(dati_pdc!$C29=4,dati_bdv!$F$2:$F$65536,IF(dati_pdc!$C29=5,dati_bdv!$G$2:$G$65536,dati_bdv!$H$2:$H$65536))))),$A29,dati_bdv!J$2:J$65536)","v":-64367.48},{"$f":"SUMIF(IF(dati_pdc!$C29=1,dati_bdv!$C$2:$C$65536,IF(dati_pdc!$C29=2,dati_bdv!$D$2:$D$65536,IF(dati_pdc!$C29=3,dati_bdv!$E$2:$E$65536,IF(dati_pdc!$C29=4,dati_bdv!$F$2:$F$65536,IF(dati_pdc!$C29=5,dati_bdv!$G$2:$G$65536,dati_bdv!$H$2:$H$65536))))),$A29,dati_bdv!K$2:K$65536)","v":-63823.83},{"$f":"SUMIF(IF(dati_pdc!$C29=1,dati_bdv!$C$2:$C$65536,IF(dati_pdc!$C29=2,dati_bdv!$D$2:$D$65536,IF(dati_pdc!$C29=3,dati_bdv!$E$2:$E$65536,IF(dati_pdc!$C29=4,dati_bdv!$F$2:$F$65536,IF(dati_pdc!$C29=5,dati_bdv!$G$2:$G$65536,dati_bdv!$H$2:$H$65536))))),$A29,dati_bdv!L$2:L$65536)","v":0},{"$f":"SUMIF(IF(dati_pdc!$C29=1,dati_bdv!$C$2:$C$65536,IF(dati_pdc!$C29=2,dati_bdv!$D$2:$D$65536,IF(dati_pdc!$C29=3,dati_bdv!$E$2:$E$65536,IF(dati_pdc!$C29=4,dati_bdv!$F$2:$F$65536,IF(dati_pdc!$C29=5,dati_bdv!$G$2:$G$65536,dati_bdv!$H$2:$H$65536))))),$A29,dati_bdv!M$2:M$65536)","v":0},{"$f":"SUMIF(IF(dati_pdc!$C29=1,dati_bdv!$C$2:$C$65536,IF(dati_pdc!$C29=2,dati_bdv!$D$2:$D$65536,IF(dati_pdc!$C29=3,dati_bdv!$E$2:$E$65536,IF(dati_pdc!$C29=4,dati_bdv!$F$2:$F$65536,IF(dati_pdc!$C29=5,dati_bdv!$G$2:$G$65536,dati_bdv!$H$2:$H$65536))))),$A29,dati_bdv!N$2:N$65536)","v":0}]
[{"$f":"dati_pdc!A30","v":"430101"},{"$f":"SUMIF(IF(dati_pdc!$C30=1,dati_bdv!$C$2:$C$65536,IF(dati_pdc!$C30=2,dati_bdv!$D$2:$D$65536,IF(dati_pdc!$C30=3,dati_bdv!$E$2:$E$65536,IF(dati_pdc!$C30=4,dati_bdv!$F$2:$F$65536,IF(dati_pdc!$C30=5,dati_bdv!$G$2:$G$65536,dati_bdv!$H$2:$H$65536))))),$A30,dati_bdv!J$2:J$65536)","v":-42588.25},{"$f":"SUMIF(IF(dati_pdc!$C30=1,dati_bdv!$C$2:$C$65536,IF(dati_pdc!$C30=2,dati_bdv!$D$2:$D$65536,IF(dati_pdc!$C30=3,dati_bdv!$E$2:$E$65536,IF(dati_pdc!$C30=4,dati_bdv!$F$2:$F$65536,IF(dati_pdc!$C30=5,dati_bdv!$G$2:$G$65536,dati_bdv!$H$2:$H$65536))))),$A30,dati_bdv!K$2:K$65536)","v":-47588.25},{"$f":"SUMIF(IF(dati_pdc!$C30=1,dati_bdv!$C$2:$C$65536,IF(dati_pdc!$C30=2,dati_bdv!$D$2:$D$65536,IF(dati_pdc!$C30=3,dati_bdv!$E$2:$E$65536,IF(dati_pdc!$C30=4,dati_bdv!$F$2:$F$65536,IF(dati_pdc!$C30=5,dati_bdv!$G$2:$G$65536,dati_bdv!$H$2:$H$65536))))),$A30,dati_bdv!L$2:L$65536)","v":0},{"$f":"SUMIF(IF(dati_pdc!$C30=1,dati_bdv!$C$2:$C$65536,IF(dati_pdc!$C30=2,dati_bdv!$D$2:$D$65536,IF(dati_pdc!$C30=3,dati_bdv!$E$2:$E$65536,IF(dati_pdc!$C30=4,dati_bdv!$F$2:$F$65536,IF(dati_pdc!$C30=5,dati_bdv!$G$2:$G$65536,dati_bdv!$H$2:$H$65536))))),$A30,dati_bdv!M$2:M$65536)","v":0},{"$f":"SUMIF(IF(dati_pdc!$C30=1,dati_bdv!$C$2:$C$65536,IF(dati_pdc!$C30=2,dati_bdv!$D$2:$D$65536,IF(dati_pdc!$C30=3,dati_bdv!$E$2:$E$65536,IF(dati_pdc!$C30=4,dati_bdv!$F$2:$F$65536,IF(dati_pdc!$C30=5,dati_bdv!$G$2:$G$65536,dati_bdv!$H$2:$H$65536))))),$A30,dati_bdv!N$2:N$65536)","v":0}]
[{"$f":"dati_pdc!A31","v":"430106"},{"$f":"SUMIF(IF(dati_pdc!$C31=1,dati_bdv!$C$2:$C$65536,IF(dati_pdc!$C31=2,dati_bdv!$D$2:$D$65536,IF(dati_pdc!$C31=3,dati_bdv!$E$2:$E$65536,IF(dati_pdc!$C31=4,dati_bdv!$F$2:$F$65536,IF(dati_pdc!$C31=5,dati_bdv!$G$2:$G$65536,dati_bdv!$H$2:$H$65536))))),$A31,dati_bdv!J$2:J$65536)","v":-16235.58},{"$f":"SUMIF(IF(dati_pdc!$C31=1,dati_bdv!$C$2:$C$65536,IF(dati_pdc!$C31=2,dati_bdv!$D$2:$D$65536,IF(dati_pdc!$C31=3,dati_bdv!$E$2:$E$65536,IF(dati_pdc!$C31=4,dati_bdv!$F$2:$F$65536,IF(dati_pdc!$C31=5,dati_bdv!$G$2:$G$65536,dati_bdv!$H$2:$H$65536))))),$A31,dati_bdv!K$2:K$65536)","v":-16235.58},{"$f":"SUMIF(IF(dati_pdc!$C31=1,dati_bdv!$C$2:$C$65536,IF(dati_pdc!$C31=2,dati_bdv!$D$2:$D$65536,IF(dati_pdc!$C31=3,dati_bdv!$E$2:$E$65536,IF(dati_pdc!$C31=4,dati_bdv!$F$2:$F$65536,IF(dati_pdc!$C31=5,dati_bdv!$G$2:$G$65536,dati_bdv!$H$2:$H$65536))))),$A31,dati_bdv!L$2:L$65536)","v":0},{"$f":"SUMIF(IF(dati_pdc!$C31=1,dati_bdv!$C$2:$C$65536,IF(dati_pdc!$C31=2,dati_bdv!$D$2:$D$65536,IF(dati_pdc!$C31=3,dati_bdv!$E$2:$E$65536,IF(dati_pdc!$C31=4,dati_bdv!$F$2:$F$65536,IF(dati_pdc!$C31=5,dati_bdv!$G$2:$G$65536,dati_bdv!$H$2:$H$65536))))),$A31,dati_bdv!M$2:M$65536)","v":0},{"$f":"SUMIF(IF(dati_pdc!$C31=1,dati_bdv!$C$2:$C$65536,IF(dati_pdc!$C31=2,dati_bdv!$D$2:$D$65536,IF(dati_pdc!$C31=3,dati_bdv!$E$2:$E$65536,IF(dati_pdc!$C31=4,dati_bdv!$F$2:$F$65536,IF(dati_pdc!$C31=5,dati_bdv!$G$2:$G$65536,dati_bdv!$H$2:$H$65536))))),$A31,dati_bdv!N$2:N$65536)","v":0}]
[{"$f":"dati_pdc!A32","v":"430199"},{"$f":"SUMIF(IF(dati_pdc!$C32=1,dati_bdv!$C$2:$C$65536,IF(dati_pdc!$C32=2,dati_bdv!$D$2:$D$65536,IF(dati_pdc!$C32=3,dati_bdv!$E$2:$E$65536,IF(dati_pdc!$C32=4,dati_bdv!$F$2:$F$65536,IF(dati_pdc!$C32=5,dati_bdv!$G$2:$G$65536,dati_bdv!$H$2:$H$65536))))),$A32,dati_bdv!J$2:J$65536)","v":-5543.65},{"$f":"SUMIF(IF(dati_pdc!$C32=1,dati_bdv!$C$2:$C$65536,IF(dati_pdc!$C32=2,dati_bdv!$D$2:$D$65536,IF(dati_pdc!$C32=3,dati_bdv!$E$2:$E$65536,IF(dati_pdc!$C32=4,dati_bdv!$F$2:$F$65536,IF(dati_pdc!$C32=5,dati_bdv!$G$2:$G$65536,dati_bdv!$H$2:$H$65536))))),$A32,dati_bdv!K$2:K$65536)","v":0},{"$f":"SUMIF(IF(dati_pdc!$C32=1,dati_bdv!$C$2:$C$65536,IF(dati_pdc!$C32=2,dati_bdv!$D$2:$D$65536,IF(dati_pdc!$C32=3,dati_bdv!$E$2:$E$65536,IF(dati_pdc!$C32=4,dati_bdv!$F$2:$F$65536,IF(dati_pdc!$C32=5,dati_bdv!$G$2:$G$65536,dati_bdv!$H$2:$H$65536))))),$A32,dati_bdv!L$2:L$65536)","v":0},{"$f":"SUMIF(IF(dati_pdc!$C32=1,dati_bdv!$C$2:$C$65536,IF(dati_pdc!$C32=2,dati_bdv!$D$2:$D$65536,IF(dati_pdc!$C32=3,dati_bdv!$E$2:$E$65536,IF(dati_pdc!$C32=4,dati_bdv!$F$2:$F$65536,IF(dati_pdc!$C32=5,dati_bdv!$G$2:$G$65536,dati_bdv!$H$2:$H$65536))))),$A32,dati_bdv!M$2:M$65536)","v":0},{"$f":"SUMIF(IF(dati_pdc!$C32=1,dati_bdv!$C$2:$C$65536,IF(dati_pdc!$C32=2,dati_bdv!$D$2:$D$65536,IF(dati_pdc!$C32=3,dati_bdv!$E$2:$E$65536,IF(dati_pdc!$C32=4,dati_bdv!$F$2:$F$65536,IF(dati_pdc!$C32=5,dati_bdv!$G$2:$G$65536,dati_bdv!$H$2:$H$65536))))),$A32,dati_bdv!N$2:N$65536)","v":0}]
[{"$f":"dati_pdc!A33","v":"4303"},{"$f":"SUMIF(IF(dati_pdc!$C33=1,dati_bdv!$C$2:$C$65536,IF(dati_pdc!$C33=2,dati_bdv!$D$2:$D$65536,IF(dati_pdc!$C33=3,dati_bdv!$E$2:$E$65536,IF(dati_pdc!$C33=4,dati_bdv!$F$2:$F$65536,IF(dati_pdc!$C33=5,dati_bdv!$G$2:$G$65536,dati_bdv!$H$2:$H$65536))))),$A33,dati_bdv!J$2:J$65536)","v":0},{"$f":"SUMIF(IF(dati_pdc!$C33=1,dati_bdv!$C$2:$C$65536,IF(dati_pdc!$C33=2,dati_bdv!$D$2:$D$65536,IF(dati_pdc!$C33=3,dati_bdv!$E$2:$E$65536,IF(dati_pdc!$C33=4,dati_bdv!$F$2:$F$65536,IF(dati_pdc!$C33=5,dati_bdv!$G$2:$G$65536,dati_bdv!$H$2:$H$65536))))),$A33,dati_bdv!K$2:K$65536)","v":0},{"$f":"SUMIF(IF(dati_pdc!$C33=1,dati_bdv!$C$2:$C$65536,IF(dati_pdc!$C33=2,dati_bdv!$D$2:$D$65536,IF(dati_pdc!$C33=3,dati_bdv!$E$2:$E$65536,IF(dati_pdc!$C33=4,dati_bdv!$F$2:$F$65536,IF(dati_pdc!$C33=5,dati_bdv!$G$2:$G$65536,dati_bdv!$H$2:$H$65536))))),$A33,dati_bdv!L$2:L$65536)","v":0},{"$f":"SUMIF(IF(dati_pdc!$C33=1,dati_bdv!$C$2:$C$65536,IF(dati_pdc!$C33=2,dati_bdv!$D$2:$D$65536,IF(dati_pdc!$C33=3,dati_bdv!$E$2:$E$65536,IF(dati_pdc!$C33=4,dati_bdv!$F$2:$F$65536,IF(dati_pdc!$C33=5,dati_bdv!$G$2:$G$65536,dati_bdv!$H$2:$H$65536))))),$A33,dati_bdv!M$2:M$65536)","v":0},{"$f":"SUMIF(IF(dati_pdc!$C33=1,dati_bdv!$C$2:$C$65536,IF(dati_pdc!$C33=2,dati_bdv!$D$2:$D$65536,IF(dati_pdc!$C33=3,dati_bdv!$E$2:$E$65536,IF(dati_pdc!$C33=4,dati_bdv!$F$2:$F$65536,IF(dati_pdc!$C33=5,dati_bdv!$G$2:$G$65536,dati_bdv!$H$2:$H$65536))))),$A33,dati_bdv!N$2:N$65536)","v":0}]
[{"$f":"dati_pdc!A34","v":"430301"},{"$f":"SUMIF(IF(dati_pdc!$C34=1,dati_bdv!$C$2:$C$65536,IF(dati_pdc!$C34=2,dati_bdv!$D$2:$D$65536,IF(dati_pdc!$C34=3,dati_bdv!$E$2:$E$65536,IF(dati_pdc!$C34=4,dati_bdv!$F$2:$F$65536,IF(dati_pdc!$C34=5,dati_bdv!$G$2:$G$65536,dati_bdv!$H$2:$H$65536))))),$A34,dati_bdv!J$2:J$65536)","v":0},{"$f":"SUMIF(IF(dati_pdc!$C34=1,dati_bdv!$C$2:$C$65536,IF(dati_pdc!$C34=2,dati_bdv!$D$2:$D$65536,IF(dati_pdc!$C34=3,dati_bdv!$E$2:$E$65536,IF(dati_pdc!$C34=4,dati_bdv!$F$2:$F$65536,IF(dati_pdc!$C34=5,dati_bdv!$G$2:$G$65536,dati_bdv!$H$2:$H$65536))))),$A34,dati_bdv!K$2:K$65536)","v":0},{"$f":"SUMIF(IF(dati_pdc!$C34=1,dati_bdv!$C$2:$C$65536,IF(dati_pdc!$C34=2,dati_bdv!$D$2:$D$65536,IF(dati_pdc!$C34=3,dati_bdv!$E$2:$E$65536,IF(dati_pdc!$C34=4,dati_bdv!$F$2:$F$65536,IF(dati_pdc!$C34=5,dati_bdv!$G$2:$G$65536,dati_bdv!$H$2:$H$65536))))),$A34,dati_bdv!L$2:L$65536)","v":0},{"$f":"SUMIF(IF(dati_pdc!$C34=1,dati_bdv!$C$2:$C$65536,IF(dati_pdc!$C34=2,dati_bdv!$D$2:$D$65536,IF(dati_pdc!$C34=3,dati_bdv!$E$2:$E$65536,IF(dati_pdc!$C34=4,dati_bdv!$F$2:$F$65536,IF(dati_pdc!$C34=5,dati_bdv!$G$2:$G$65536,dati_bdv!$H$2:$H$65536))))),$A34,dati_bdv!M$2:M$65536)","v":0},{"$f":"SUMIF(IF(dati_pdc!$C34=1,dati_bdv!$C$2:$C$65536,IF(dati_pdc!$C34=2,dati_bdv!$D$2:$D$65536,IF(dati_pdc!$C34=3,dati_bdv!$E$2:$E$65536,IF(dati_pdc!$C34=4,dati_bdv!$F$2:$F$65536,IF(dati_pdc!$C34=5,dati_bdv!$G$2:$G$65536,dati_bdv!$H$2:$H$65536))))),$A34,dati_bdv!N$2:N$65536)","v":0}]
[{"$f":"dati_pdc!A35","v":"55"},{"$f":"SUMIF(IF(dati_pdc!$C35=1,dati_bdv!$C$2:$C$65536,IF(dati_pdc!$C35=2,dati_bdv!$D$2:$D$65536,IF(dati_pdc!$C35=3,dati_bdv!$E$2:$E$65536,IF(dati_pdc!$C35=4,dati_bdv!$F$2:$F$65536,IF(dati_pdc!$C35=5,dati_bdv!$G$2:$G$65536,dati_bdv!$H$2:$H$65536))))),$A35,dati_bdv!J$2:J$65536)","v":-21489.88},{"$f":"SUMIF(IF(dati_pdc!$C35=1,dati_bdv!$C$2:$C$65536,IF(dati_pdc!$C35=2,dati_bdv!$D$2:$D$65536,IF(dati_pdc!$C35=3,dati_bdv!$E$2:$E$65536,IF(dati_pdc!$C35=4,dati_bdv!$F$2:$F$65536,IF(dati_pdc!$C35=5,dati_bdv!$G$2:$G$65536,dati_bdv!$H$2:$H$65536))))),$A35,dati_bdv!K$2:K$65536)","v":-21489.88},{"$f":"SUMIF(IF(dati_pdc!$C35=1,dati_bdv!$C$2:$C$65536,IF(dati_pdc!$C35=2,dati_bdv!$D$2:$D$65536,IF(dati_pdc!$C35=3,dati_bdv!$E$2:$E$65536,IF(dati_pdc!$C35=4,dati_bdv!$F$2:$F$65536,IF(dati_pdc!$C35=5,dati_bdv!$G$2:$G$65536,dati_bdv!$H$2:$H$65536))))),$A35,dati_bdv!L$2:L$65536)","v":0},{"$f":"SUMIF(IF(dati_pdc!$C35=1,dati_bdv!$C$2:$C$65536,IF(dati_pdc!$C35=2,dati_bdv!$D$2:$D$65536,IF(dati_pdc!$C35=3,dati_bdv!$E$2:$E$65536,IF(dati_pdc!$C35=4,dati_bdv!$F$2:$F$65536,IF(dati_pdc!$C35=5,dati_bdv!$G$2:$G$65536,dati_bdv!$H$2:$H$65536))))),$A35,dati_bdv!M$2:M$65536)","v":0},{"$f":"SUMIF(IF(dati_pdc!$C35=1,dati_bdv!$C$2:$C$65536,IF(dati_pdc!$C35=2,dati_bdv!$D$2:$D$65536,IF(dati_pdc!$C35=3,dati_bdv!$E$2:$E$65536,IF(dati_pdc!$C35=4,dati_bdv!$F$2:$F$65536,IF(dati_pdc!$C35=5,dati_bdv!$G$2:$G$65536,dati_bdv!$H$2:$H$65536))))),$A35,dati_bdv!N$2:N$65536)","v":0}]
[{"$f":"dati_pdc!A36","v":"5503"},{"$f":"SUMIF(IF(dati_pdc!$C36=1,dati_bdv!$C$2:$C$65536,IF(dati_pdc!$C36=2,dati_bdv!$D$2:$D$65536,IF(dati_pdc!$C36=3,dati_bdv!$E$2:$E$65536,IF(dati_pdc!$C36=4,dati_bdv!$F$2:$F$65536,IF(dati_pdc!$C36=5,dati_bdv!$G$2:$G$65536,dati_bdv!$H$2:$H$65536))))),$A36,dati_bdv!J$2:J$65536)","v":-21489.88},{"$f":"SUMIF(IF(dati_pdc!$C36=1,dati_bdv!$C$2:$C$65536,IF(dati_pdc!$C36=2,dati_bdv!$D$2:$D$65536,IF(dati_pdc!$C36=3,dati_bdv!$E$2:$E$65536,IF(dati_pdc!$C36=4,dati_bdv!$F$2:$F$65536,IF(dati_pdc!$C36=5,dati_bdv!$G$2:$G$65536,dati_bdv!$H$2:$H$65536))))),$A36,dati_bdv!K$2:K$65536)","v":-21489.88},{"$f":"SUMIF(IF(dati_pdc!$C36=1,dati_bdv!$C$2:$C$65536,IF(dati_pdc!$C36=2,dati_bdv!$D$2:$D$65536,IF(dati_pdc!$C36=3,dati_bdv!$E$2:$E$65536,IF(dati_pdc!$C36=4,dati_bdv!$F$2:$F$65536,IF(dati_pdc!$C36=5,dati_bdv!$G$2:$G$65536,dati_bdv!$H$2:$H$65536))))),$A36,dati_bdv!L$2:L$65536)","v":0},{"$f":"SUMIF(IF(dati_pdc!$C36=1,dati_bdv!$C$2:$C$65536,IF(dati_pdc!$C36=2,dati_bdv!$D$2:$D$65536,IF(dati_pdc!$C36=3,dati_bdv!$E$2:$E$65536,IF(dati_pdc!$C36=4,dati_bdv!$F$2:$F$65536,IF(dati_pdc!$C36=5,dati_bdv!$G$2:$G$65536,dati_bdv!$H$2:$H$65536))))),$A36,dati_bdv!M$2:M$65536)","v":0},{"$f":"SUMIF(IF(dati_pdc!$C36=1,dati_bdv!$C$2:$C$65536,IF(dati_pdc!$C36=2,dati_bdv!$D$2:$D$65536,IF(dati_pdc!$C36=3,dati_bdv!$E$2:$E$65536,IF(dati_pdc!$C36=4,dati_bdv!$F$2:$F$65536,IF(dati_pdc!$C36=5,dati_bdv!$G$2:$G$65536,dati_bdv!$H$2:$H$65536))))),$A36,dati_bdv!N$2:N$65536)","v":0}]
[{"$f":"dati_pdc!A37","v":"550325"},{"$f":"SUMIF(IF(dati_pdc!$C37=1,dati_bdv!$C$2:$C$65536,IF(dati_pdc!$C37=2,dati_bdv!$D$2:$D$65536,IF(dati_pdc!$C37=3,dati_bdv!$E$2:$E$65536,IF(dati_pdc!$C37=4,dati_bdv!$F$2:$F$65536,IF(dati_pdc!$C37=5,dati_bdv!$G$2:$G$65536,dati_bdv!$H$2:$H$65536))))),$A37,dati_bdv!J$2:J$65536)","v":-21489.88},{"$f":"SUMIF(IF(dati_pdc!$C37=1,dati_bdv!$C$2:$C$65536,IF(dati_pdc!$C37=2,dati_bdv!$D$2:$D$65536,IF(dati_pdc!$C37=3,dati_bdv!$E$2:$E$65536,IF(dati_pdc!$C37=4,dati_bdv!$F$2:$F$65536,IF(dati_pdc!$C37=5,dati_bdv!$G$2:$G$65536,dati_bdv!$H$2:$H$65536))))),$A37,dati_bdv!K$2:K$65536)","v":-21489.88},{"$f":"SUMIF(IF(dati_pdc!$C37=1,dati_bdv!$C$2:$C$65536,IF(dati_pdc!$C37=2,dati_bdv!$D$2:$D$65536,IF(dati_pdc!$C37=3,dati_bdv!$E$2:$E$65536,IF(dati_pdc!$C37=4,dati_bdv!$F$2:$F$65536,IF(dati_pdc!$C37=5,dati_bdv!$G$2:$G$65536,dati_bdv!$H$2:$H$65536))))),$A37,dati_bdv!L$2:L$65536)","v":0},{"$f":"SUMIF(IF(dati_pdc!$C37=1,dati_bdv!$C$2:$C$65536,IF(dati_pdc!$C37=2,dati_bdv!$D$2:$D$65536,IF(dati_pdc!$C37=3,dati_bdv!$E$2:$E$65536,IF(dati_pdc!$C37=4,dati_bdv!$F$2:$F$65536,IF(dati_pdc!$C37=5,dati_bdv!$G$2:$G$65536,dati_bdv!$H$2:$H$65536))))),$A37,dati_bdv!M$2:M$65536)","v":0},{"$f":"SUMIF(IF(dati_pdc!$C37=1,dati_bdv!$C$2:$C$65536,IF(dati_pdc!$C37=2,dati_bdv!$D$2:$D$65536,IF(dati_pdc!$C37=3,dati_bdv!$E$2:$E$65536,IF(dati_pdc!$C37=4,dati_bdv!$F$2:$F$65536,IF(dati_pdc!$C37=5,dati_bdv!$G$2:$G$65536,dati_bdv!$H$2:$H$65536))))),$A37,dati_bdv!N$2:N$65536)","v":0}]
[{"$f":"dati_pdc!A38","v":"57"},{"$f":"SUMIF(IF(dati_pdc!$C38=1,dati_bdv!$C$2:$C$65536,IF(dati_pdc!$C38=2,dati_bdv!$D$2:$D$65536,IF(dati_pdc!$C38=3,dati_bdv!$E$2:$E$65536,IF(dati_pdc!$C38=4,dati_bdv!$F$2:$F$65536,IF(dati_pdc!$C38=5,dati_bdv!$G$2:$G$65536,dati_bdv!$H$2:$H$65536))))),$A38,dati_bdv!J$2:J$65536)","v":-67139.399999999994},{"$f":"SUMIF(IF(dati_pdc!$C38=1,dati_bdv!$C$2:$C$65536,IF(dati_pdc!$C38=2,dati_bdv!$D$2:$D$65536,IF(dati_pdc!$C38=3,dati_bdv!$E$2:$E$65536,IF(dati_pdc!$C38=4,dati_bdv!$F$2:$F$65536,IF(dati_pdc!$C38=5,dati_bdv!$G$2:$G$65536,dati_bdv!$H$2:$H$65536))))),$A38,dati_bdv!K$2:K$65536)","v":-67139.399999999994},{"$f":"SUMIF(IF(dati_pdc!$C38=1,dati_bdv!$C$2:$C$65536,IF(dati_pdc!$C38=2,dati_bdv!$D$2:$D$65536,IF(dati_pdc!$C38=3,dati_bdv!$E$2:$E$65536,IF(dati_pdc!$C38=4,dati_bdv!$F$2:$F$65536,IF(dati_pdc!$C38=5,dati_bdv!$G$2:$G$65536,dati_bdv!$H$2:$H$65536))))),$A38,dati_bdv!L$2:L$65536)","v":0},{"$f":"SUMIF(IF(dati_pdc!$C38=1,dati_bdv!$C$2:$C$65536,IF(dati_pdc!$C38=2,dati_bdv!$D$2:$D$65536,IF(dati_pdc!$C38=3,dati_bdv!$E$2:$E$65536,IF(dati_pdc!$C38=4,dati_bdv!$F$2:$F$65536,IF(dati_pdc!$C38=5,dati_bdv!$G$2:$G$65536,dati_bdv!$H$2:$H$65536))))),$A38,dati_bdv!M$2:M$65536)","v":0},{"$f":"SUMIF(IF(dati_pdc!$C38=1,dati_bdv!$C$2:$C$65536,IF(dati_pdc!$C38=2,dati_bdv!$D$2:$D$65536,IF(dati_pdc!$C38=3,dati_bdv!$E$2:$E$65536,IF(dati_pdc!$C38=4,dati_bdv!$F$2:$F$65536,IF(dati_pdc!$C38=5,dati_bdv!$G$2:$G$65536,dati_bdv!$H$2:$H$65536))))),$A38,dati_bdv!N$2:N$65536)","v":0}]
[{"$f":"dati_pdc!A39","v":"5703"},{"$f":"SUMIF(IF(dati_pdc!$C39=1,dati_bdv!$C$2:$C$65536,IF(dati_pdc!$C39=2,dati_bdv!$D$2:$D$65536,IF(dati_pdc!$C39=3,dati_bdv!$E$2:$E$65536,IF(dati_pdc!$C39=4,dati_bdv!$F$2:$F$65536,IF(dati_pdc!$C39=5,dati_bdv!$G$2:$G$65536,dati_bdv!$H$2:$H$65536))))),$A39,dati_bdv!J$2:J$65536)","v":-67139.399999999994},{"$f":"SUMIF(IF(dati_pdc!$C39=1,dati_bdv!$C$2:$C$65536,IF(dati_pdc!$C39=2,dati_bdv!$D$2:$D$65536,IF(dati_pdc!$C39=3,dati_bdv!$E$2:$E$65536,IF(dati_pdc!$C39=4,dati_bdv!$F$2:$F$65536,IF(dati_pdc!$C39=5,dati_bdv!$G$2:$G$65536,dati_bdv!$H$2:$H$65536))))),$A39,dati_bdv!K$2:K$65536)","v":-67139.399999999994},{"$f":"SUMIF(IF(dati_pdc!$C39=1,dati_bdv!$C$2:$C$65536,IF(dati_pdc!$C39=2,dati_bdv!$D$2:$D$65536,IF(dati_pdc!$C39=3,dati_bdv!$E$2:$E$65536,IF(dati_pdc!$C39=4,dati_bdv!$F$2:$F$65536,IF(dati_pdc!$C39=5,dati_bdv!$G$2:$G$65536,dati_bdv!$H$2:$H$65536))))),$A39,dati_bdv!L$2:L$65536)","v":0},{"$f":"SUMIF(IF(dati_pdc!$C39=1,dati_bdv!$C$2:$C$65536,IF(dati_pdc!$C39=2,dati_bdv!$D$2:$D$65536,IF(dati_pdc!$C39=3,dati_bdv!$E$2:$E$65536,IF(dati_pdc!$C39=4,dati_bdv!$F$2:$F$65536,IF(dati_pdc!$C39=5,dati_bdv!$G$2:$G$65536,dati_bdv!$H$2:$H$65536))))),$A39,dati_bdv!M$2:M$65536)","v":0},{"$f":"SUMIF(IF(dati_pdc!$C39=1,dati_bdv!$C$2:$C$65536,IF(dati_pdc!$C39=2,dati_bdv!$D$2:$D$65536,IF(dati_pdc!$C39=3,dati_bdv!$E$2:$E$65536,IF(dati_pdc!$C39=4,dati_bdv!$F$2:$F$65536,IF(dati_pdc!$C39=5,dati_bdv!$G$2:$G$65536,dati_bdv!$H$2:$H$65536))))),$A39,dati_bdv!N$2:N$65536)","v":0}]
[{"$f":"dati_pdc!A40","v":"570301"},{"$f":"SUMIF(IF(dati_pdc!$C40=1,dati_bdv!$C$2:$C$65536,IF(dati_pdc!$C40=2,dati_bdv!$D$2:$D$65536,IF(dati_pdc!$C40=3,dati_bdv!$E$2:$E$65536,IF(dati_pdc!$C40=4,dati_bdv!$F$2:$F$65536,IF(dati_pdc!$C40=5,dati_bdv!$G$2:$G$65536,dati_bdv!$H$2:$H$65536))))),$A40,dati_bdv!J$2:J$65536)","v":-67139.399999999994},{"$f":"SUMIF(IF(dati_pdc!$C40=1,dati_bdv!$C$2:$C$65536,IF(dati_pdc!$C40=2,dati_bdv!$D$2:$D$65536,IF(dati_pdc!$C40=3,dati_bdv!$E$2:$E$65536,IF(dati_pdc!$C40=4,dati_bdv!$F$2:$F$65536,IF(dati_pdc!$C40=5,dati_bdv!$G$2:$G$65536,dati_bdv!$H$2:$H$65536))))),$A40,dati_bdv!K$2:K$65536)","v":-67139.399999999994},{"$f":"SUMIF(IF(dati_pdc!$C40=1,dati_bdv!$C$2:$C$65536,IF(dati_pdc!$C40=2,dati_bdv!$D$2:$D$65536,IF(dati_pdc!$C40=3,dati_bdv!$E$2:$E$65536,IF(dati_pdc!$C40=4,dati_bdv!$F$2:$F$65536,IF(dati_pdc!$C40=5,dati_bdv!$G$2:$G$65536,dati_bdv!$H$2:$H$65536))))),$A40,dati_bdv!L$2:L$65536)","v":0},{"$f":"SUMIF(IF(dati_pdc!$C40=1,dati_bdv!$C$2:$C$65536,IF(dati_pdc!$C40=2,dati_bdv!$D$2:$D$65536,IF(dati_pdc!$C40=3,dati_bdv!$E$2:$E$65536,IF(dati_pdc!$C40=4,dati_bdv!$F$2:$F$65536,IF(dati_pdc!$C40=5,dati_bdv!$G$2:$G$65536,dati_bdv!$H$2:$H$65536))))),$A40,dati_bdv!M$2:M$65536)","v":0},{"$f":"SUMIF(IF(dati_pdc!$C40=1,dati_bdv!$C$2:$C$65536,IF(dati_pdc!$C40=2,dati_bdv!$D$2:$D$65536,IF(dati_pdc!$C40=3,dati_bdv!$E$2:$E$65536,IF(dati_pdc!$C40=4,dati_bdv!$F$2:$F$65536,IF(dati_pdc!$C40=5,dati_bdv!$G$2:$G$65536,dati_bdv!$H$2:$H$65536))))),$A40,dati_bdv!N$2:N$65536)","v":0}]
[{"$f":"dati_pdc!A41","v":"59"},{"$f":"SUMIF(IF(dati_pdc!$C41=1,dati_bdv!$C$2:$C$65536,IF(dati_pdc!$C41=2,dati_bdv!$D$2:$D$65536,IF(dati_pdc!$C41=3,dati_bdv!$E$2:$E$65536,IF(dati_pdc!$C41=4,dati_bdv!$F$2:$F$65536,IF(dati_pdc!$C41=5,dati_bdv!$G$2:$G$65536,dati_bdv!$H$2:$H$65536))))),$A41,dati_bdv!J$2:J$65536)","v":342.62000000000006},{"$f":"SUMIF(IF(dati_pdc!$C41=1,dati_bdv!$C$2:$C$65536,IF(dati_pdc!$C41=2,dati_bdv!$D$2:$D$65536,IF(dati_pdc!$C41=3,dati_bdv!$E$2:$E$65536,IF(dati_pdc!$C41=4,dati_bdv!$F$2:$F$65536,IF(dati_pdc!$C41=5,dati_bdv!$G$2:$G$65536,dati_bdv!$H$2:$H$65536))))),$A41,dati_bdv!K$2:K$65536)","v":342.6},{"$f":"SUMIF(IF(dati_pdc!$C41=1,dati_bdv!$C$2:$C$65536,IF(dati_pdc!$C41=2,dati_bdv!$D$2:$D$65536,IF(dati_pdc!$C41=3,dati_bdv!$E$2:$E$65536,IF(dati_pdc!$C41=4,dati_bdv!$F$2:$F$65536,IF(dati_pdc!$C41=5,dati_bdv!$G$2:$G$65536,dati_bdv!$H$2:$H$65536))))),$A41,dati_bdv!L$2:L$65536)","v":0},{"$f":"SUMIF(IF(dati_pdc!$C41=1,dati_bdv!$C$2:$C$65536,IF(dati_pdc!$C41=2,dati_bdv!$D$2:$D$65536,IF(dati_pdc!$C41=3,dati_bdv!$E$2:$E$65536,IF(dati_pdc!$C41=4,dati_bdv!$F$2:$F$65536,IF(dati_pdc!$C41=5,dati_bdv!$G$2:$G$65536,dati_bdv!$H$2:$H$65536))))),$A41,dati_bdv!M$2:M$65536)","v":0},{"$f":"SUMIF(IF(dati_pdc!$C41=1,dati_bdv!$C$2:$C$65536,IF(dati_pdc!$C41=2,dati_bdv!$D$2:$D$65536,IF(dati_pdc!$C41=3,dati_bdv!$E$2:$E$65536,IF(dati_pdc!$C41=4,dati_bdv!$F$2:$F$65536,IF(dati_pdc!$C41=5,dati_bdv!$G$2:$G$65536,dati_bdv!$H$2:$H$65536))))),$A41,dati_bdv!N$2:N$65536)","v":0}]
[{"$f":"dati_pdc!A42","v":"5901"},{"$f":"SUMIF(IF(dati_pdc!$C42=1,dati_bdv!$C$2:$C$65536,IF(dati_pdc!$C42=2,dati_bdv!$D$2:$D$65536,IF(dati_pdc!$C42=3,dati_bdv!$E$2:$E$65536,IF(dati_pdc!$C42=4,dati_bdv!$F$2:$F$65536,IF(dati_pdc!$C42=5,dati_bdv!$G$2:$G$65536,dati_bdv!$H$2:$H$65536))))),$A42,dati_bdv!J$2:J$65536)","v":-440},{"$f":"SUMIF(IF(dati_pdc!$C42=1,dati_bdv!$C$2:$C$65536,IF(dati_pdc!$C42=2,dati_bdv!$D$2:$D$65536,IF(dati_pdc!$C42=3,dati_bdv!$E$2:$E$65536,IF(dati_pdc!$C42=4,dati_bdv!$F$2:$F$65536,IF(dati_pdc!$C42=5,dati_bdv!$G$2:$G$65536,dati_bdv!$H$2:$H$65536))))),$A42,dati_bdv!K$2:K$65536)","v":-440},{"$f":"SUMIF(IF(dati_pdc!$C42=1,dati_bdv!$C$2:$C$65536,IF(dati_pdc!$C42=2,dati_bdv!$D$2:$D$65536,IF(dati_pdc!$C42=3,dati_bdv!$E$2:$E$65536,IF(dati_pdc!$C42=4,dati_bdv!$F$2:$F$65536,IF(dati_pdc!$C42=5,dati_bdv!$G$2:$G$65536,dati_bdv!$H$2:$H$65536))))),$A42,dati_bdv!L$2:L$65536)","v":0},{"$f":"SUMIF(IF(dati_pdc!$C42=1,dati_bdv!$C$2:$C$65536,IF(dati_pdc!$C42=2,dati_bdv!$D$2:$D$65536,IF(dati_pdc!$C42=3,dati_bdv!$E$2:$E$65536,IF(dati_pdc!$C42=4,dati_bdv!$F$2:$F$65536,IF(dati_pdc!$C42=5,dati_bdv!$G$2:$G$65536,dati_bdv!$H$2:$H$65536))))),$A42,dati_bdv!M$2:M$65536)","v":0},{"$f":"SUMIF(IF(dati_pdc!$C42=1,dati_bdv!$C$2:$C$65536,IF(dati_pdc!$C42=2,dati_bdv!$D$2:$D$65536,IF(dati_pdc!$C42=3,dati_bdv!$E$2:$E$65536,IF(dati_pdc!$C42=4,dati_bdv!$F$2:$F$65536,IF(dati_pdc!$C42=5,dati_bdv!$G$2:$G$65536,dati_bdv!$H$2:$H$65536))))),$A42,dati_bdv!N$2:N$65536)","v":0}]
[{"$f":"dati_pdc!A43","v":"590103"},{"$f":"SUMIF(IF(dati_pdc!$C43=1,dati_bdv!$C$2:$C$65536,IF(dati_pdc!$C43=2,dati_bdv!$D$2:$D$65536,IF(dati_pdc!$C43=3,dati_bdv!$E$2:$E$65536,IF(dati_pdc!$C43=4,dati_bdv!$F$2:$F$65536,IF(dati_pdc!$C43=5,dati_bdv!$G$2:$G$65536,dati_bdv!$H$2:$H$65536))))),$A43,dati_bdv!J$2:J$65536)","v":-440},{"$f":"SUMIF(IF(dati_pdc!$C43=1,dati_bdv!$C$2:$C$65536,IF(dati_pdc!$C43=2,dati_bdv!$D$2:$D$65536,IF(dati_pdc!$C43=3,dati_bdv!$E$2:$E$65536,IF(dati_pdc!$C43=4,dati_bdv!$F$2:$F$65536,IF(dati_pdc!$C43=5,dati_bdv!$G$2:$G$65536,dati_bdv!$H$2:$H$65536))))),$A43,dati_bdv!K$2:K$65536)","v":-440},{"$f":"SUMIF(IF(dati_pdc!$C43=1,dati_bdv!$C$2:$C$65536,IF(dati_pdc!$C43=2,dati_bdv!$D$2:$D$65536,IF(dati_pdc!$C43=3,dati_bdv!$E$2:$E$65536,IF(dati_pdc!$C43=4,dati_bdv!$F$2:$F$65536,IF(dati_pdc!$C43=5,dati_bdv!$G$2:$G$65536,dati_bdv!$H$2:$H$65536))))),$A43,dati_bdv!L$2:L$65536)","v":0},{"$f":"SUMIF(IF(dati_pdc!$C43=1,dati_bdv!$C$2:$C$65536,IF(dati_pdc!$C43=2,dati_bdv!$D$2:$D$65536,IF(dati_pdc!$C43=3,dati_bdv!$E$2:$E$65536,IF(dati_pdc!$C43=4,dati_bdv!$F$2:$F$65536,IF(dati_pdc!$C43=5,dati_bdv!$G$2:$G$65536,dati_bdv!$H$2:$H$65536))))),$A43,dati_bdv!M$2:M$65536)","v":0},{"$f":"SUMIF(IF(dati_pdc!$C43=1,dati_bdv!$C$2:$C$65536,IF(dati_pdc!$C43=2,dati_bdv!$D$2:$D$65536,IF(dati_pdc!$C43=3,dati_bdv!$E$2:$E$65536,IF(dati_pdc!$C43=4,dati_bdv!$F$2:$F$65536,IF(dati_pdc!$C43=5,dati_bdv!$G$2:$G$65536,dati_bdv!$H$2:$H$65536))))),$A43,dati_bdv!N$2:N$65536)","v":0}]
[{"$f":"dati_pdc!A44","v":"590165"},{"$f":"SUMIF(IF(dati_pdc!$C44=1,dati_bdv!$C$2:$C$65536,IF(dati_pdc!$C44=2,dati_bdv!$D$2:$D$65536,IF(dati_pdc!$C44=3,dati_bdv!$E$2:$E$65536,IF(dati_pdc!$C44=4,dati_bdv!$F$2:$F$65536,IF(dati_pdc!$C44=5,dati_bdv!$G$2:$G$65536,dati_bdv!$H$2:$H$65536))))),$A44,dati_bdv!J$2:J$65536)","v":0},{"$f":"SUMIF(IF(dati_pdc!$C44=1,dati_bdv!$C$2:$C$65536,IF(dati_pdc!$C44=2,dati_bdv!$D$2:$D$65536,IF(dati_pdc!$C44=3,dati_bdv!$E$2:$E$65536,IF(dati_pdc!$C44=4,dati_bdv!$F$2:$F$65536,IF(dati_pdc!$C44=5,dati_bdv!$G$2:$G$65536,dati_bdv!$H$2:$H$65536))))),$A44,dati_bdv!K$2:K$65536)","v":0},{"$f":"SUMIF(IF(dati_pdc!$C44=1,dati_bdv!$C$2:$C$65536,IF(dati_pdc!$C44=2,dati_bdv!$D$2:$D$65536,IF(dati_pdc!$C44=3,dati_bdv!$E$2:$E$65536,IF(dati_pdc!$C44=4,dati_bdv!$F$2:$F$65536,IF(dati_pdc!$C44=5,dati_bdv!$G$2:$G$65536,dati_bdv!$H$2:$H$65536))))),$A44,dati_bdv!L$2:L$65536)","v":0},{"$f":"SUMIF(IF(dati_pdc!$C44=1,dati_bdv!$C$2:$C$65536,IF(dati_pdc!$C44=2,dati_bdv!$D$2:$D$65536,IF(dati_pdc!$C44=3,dati_bdv!$E$2:$E$65536,IF(dati_pdc!$C44=4,dati_bdv!$F$2:$F$65536,IF(dati_pdc!$C44=5,dati_bdv!$G$2:$G$65536,dati_bdv!$H$2:$H$65536))))),$A44,dati_bdv!M$2:M$65536)","v":0},{"$f":"SUMIF(IF(dati_pdc!$C44=1,dati_bdv!$C$2:$C$65536,IF(dati_pdc!$C44=2,dati_bdv!$D$2:$D$65536,IF(dati_pdc!$C44=3,dati_bdv!$E$2:$E$65536,IF(dati_pdc!$C44=4,dati_bdv!$F$2:$F$65536,IF(dati_pdc!$C44=5,dati_bdv!$G$2:$G$65536,dati_bdv!$H$2:$H$65536))))),$A44,dati_bdv!N$2:N$65536)","v":0}]
[{"$f":"dati_pdc!A45","v":"5905"},{"$f":"SUMIF(IF(dati_pdc!$C45=1,dati_bdv!$C$2:$C$65536,IF(dati_pdc!$C45=2,dati_bdv!$D$2:$D$65536,IF(dati_pdc!$C45=3,dati_bdv!$E$2:$E$65536,IF(dati_pdc!$C45=4,dati_bdv!$F$2:$F$65536,IF(dati_pdc!$C45=5,dati_bdv!$G$2:$G$65536,dati_bdv!$H$2:$H$65536))))),$A45,dati_bdv!J$2:J$65536)","v":0.16},{"$f":"SUMIF(IF(dati_pdc!$C45=1,dati_bdv!$C$2:$C$65536,IF(dati_pdc!$C45=2,dati_bdv!$D$2:$D$65536,IF(dati_pdc!$C45=3,dati_bdv!$E$2:$E$65536,IF(dati_pdc!$C45=4,dati_bdv!$F$2:$F$65536,IF(dati_pdc!$C45=5,dati_bdv!$G$2:$G$65536,dati_bdv!$H$2:$H$65536))))),$A45,dati_bdv!K$2:K$65536)","v":0.14000000000000001},{"$f":"SUMIF(IF(dati_pdc!$C45=1,dati_bdv!$C$2:$C$65536,IF(dati_pdc!$C45=2,dati_bdv!$D$2:$D$65536,IF(dati_pdc!$C45=3,dati_bdv!$E$2:$E$65536,IF(dati_pdc!$C45=4,dati_bdv!$F$2:$F$65536,IF(dati_pdc!$C45=5,dati_bdv!$G$2:$G$65536,dati_bdv!$H$2:$H$65536))))),$A45,dati_bdv!L$2:L$65536)","v":0},{"$f":"SUMIF(IF(dati_pdc!$C45=1,dati_bdv!$C$2:$C$65536,IF(dati_pdc!$C45=2,dati_bdv!$D$2:$D$65536,IF(dati_pdc!$C45=3,dati_bdv!$E$2:$E$65536,IF(dati_pdc!$C45=4,dati_bdv!$F$2:$F$65536,IF(dati_pdc!$C45=5,dati_bdv!$G$2:$G$65536,dati_bdv!$H$2:$H$65536))))),$A45,dati_bdv!M$2:M$65536)","v":0},{"$f":"SUMIF(IF(dati_pdc!$C45=1,dati_bdv!$C$2:$C$65536,IF(dati_pdc!$C45=2,dati_bdv!$D$2:$D$65536,IF(dati_pdc!$C45=3,dati_bdv!$E$2:$E$65536,IF(dati_pdc!$C45=4,dati_bdv!$F$2:$F$65536,IF(dati_pdc!$C45=5,dati_bdv!$G$2:$G$65536,dati_bdv!$H$2:$H$65536))))),$A45,dati_bdv!N$2:N$65536)","v":0}]
[{"$f":"dati_pdc!A46","v":"590501"},{"$f":"SUMIF(IF(dati_pdc!$C46=1,dati_bdv!$C$2:$C$65536,IF(dati_pdc!$C46=2,dati_bdv!$D$2:$D$65536,IF(dati_pdc!$C46=3,dati_bdv!$E$2:$E$65536,IF(dati_pdc!$C46=4,dati_bdv!$F$2:$F$65536,IF(dati_pdc!$C46=5,dati_bdv!$G$2:$G$65536,dati_bdv!$H$2:$H$65536))))),$A46,dati_bdv!J$2:J$65536)","v":0.16},{"$f":"SUMIF(IF(dati_pdc!$C46=1,dati_bdv!$C$2:$C$65536,IF(dati_pdc!$C46=2,dati_bdv!$D$2:$D$65536,IF(dati_pdc!$C46=3,dati_bdv!$E$2:$E$65536,IF(dati_pdc!$C46=4,dati_bdv!$F$2:$F$65536,IF(dati_pdc!$C46=5,dati_bdv!$G$2:$G$65536,dati_bdv!$H$2:$H$65536))))),$A46,dati_bdv!K$2:K$65536)","v":0.14000000000000001},{"$f":"SUMIF(IF(dati_pdc!$C46=1,dati_bdv!$C$2:$C$65536,IF(dati_pdc!$C46=2,dati_bdv!$D$2:$D$65536,IF(dati_pdc!$C46=3,dati_bdv!$E$2:$E$65536,IF(dati_pdc!$C46=4,dati_bdv!$F$2:$F$65536,IF(dati_pdc!$C46=5,dati_bdv!$G$2:$G$65536,dati_bdv!$H$2:$H$65536))))),$A46,dati_bdv!L$2:L$65536)","v":0},{"$f":"SUMIF(IF(dati_pdc!$C46=1,dati_bdv!$C$2:$C$65536,IF(dati_pdc!$C46=2,dati_bdv!$D$2:$D$65536,IF(dati_pdc!$C46=3,dati_bdv!$E$2:$E$65536,IF(dati_pdc!$C46=4,dati_bdv!$F$2:$F$65536,IF(dati_pdc!$C46=5,dati_bdv!$G$2:$G$65536,dati_bdv!$H$2:$H$65536))))),$A46,dati_bdv!M$2:M$65536)","v":0},{"$f":"SUMIF(IF(dati_pdc!$C46=1,dati_bdv!$C$2:$C$65536,IF(dati_pdc!$C46=2,dati_bdv!$D$2:$D$65536,IF(dati_pdc!$C46=3,dati_bdv!$E$2:$E$65536,IF(dati_pdc!$C46=4,dati_bdv!$F$2:$F$65536,IF(dati_pdc!$C46=5,dati_bdv!$G$2:$G$65536,dati_bdv!$H$2:$H$65536))))),$A46,dati_bdv!N$2:N$65536)","v":0}]
[{"$f":"dati_pdc!A47","v":"5907"},{"$f":"SUMIF(IF(dati_pdc!$C47=1,dati_bdv!$C$2:$C$65536,IF(dati_pdc!$C47=2,dati_bdv!$D$2:$D$65536,IF(dati_pdc!$C47=3,dati_bdv!$E$2:$E$65536,IF(dati_pdc!$C47=4,dati_bdv!$F$2:$F$65536,IF(dati_pdc!$C47=5,dati_bdv!$G$2:$G$65536,dati_bdv!$H$2:$H$65536))))),$A47,dati_bdv!J$2:J$65536)","v":782.46},{"$f":"SUMIF(IF(dati_pdc!$C47=1,dati_bdv!$C$2:$C$65536,IF(dati_pdc!$C47=2,dati_bdv!$D$2:$D$65536,IF(dati_pdc!$C47=3,dati_bdv!$E$2:$E$65536,IF(dati_pdc!$C47=4,dati_bdv!$F$2:$F$65536,IF(dati_pdc!$C47=5,dati_bdv!$G$2:$G$65536,dati_bdv!$H$2:$H$65536))))),$A47,dati_bdv!K$2:K$65536)","v":782.46},{"$f":"SUMIF(IF(dati_pdc!$C47=1,dati_bdv!$C$2:$C$65536,IF(dati_pdc!$C47=2,dati_bdv!$D$2:$D$65536,IF(dati_pdc!$C47=3,dati_bdv!$E$2:$E$65536,IF(dati_pdc!$C47=4,dati_bdv!$F$2:$F$65536,IF(dati_pdc!$C47=5,dati_bdv!$G$2:$G$65536,dati_bdv!$H$2:$H$65536))))),$A47,dati_bdv!L$2:L$65536)","v":0},{"$f":"SUMIF(IF(dati_pdc!$C47=1,dati_bdv!$C$2:$C$65536,IF(dati_pdc!$C47=2,dati_bdv!$D$2:$D$65536,IF(dati_pdc!$C47=3,dati_bdv!$E$2:$E$65536,IF(dati_pdc!$C47=4,dati_bdv!$F$2:$F$65536,IF(dati_pdc!$C47=5,dati_bdv!$G$2:$G$65536,dati_bdv!$H$2:$H$65536))))),$A47,dati_bdv!M$2:M$65536)","v":0},{"$f":"SUMIF(IF(dati_pdc!$C47=1,dati_bdv!$C$2:$C$65536,IF(dati_pdc!$C47=2,dati_bdv!$D$2:$D$65536,IF(dati_pdc!$C47=3,dati_bdv!$E$2:$E$65536,IF(dati_pdc!$C47=4,dati_bdv!$F$2:$F$65536,IF(dati_pdc!$C47=5,dati_bdv!$G$2:$G$65536,dati_bdv!$H$2:$H$65536))))),$A47,dati_bdv!N$2:N$65536)","v":0}]
[{"$f":"dati_pdc!A48","v":"590701"},{"$f":"SUMIF(IF(dati_pdc!$C48=1,dati_bdv!$C$2:$C$65536,IF(dati_pdc!$C48=2,dati_bdv!$D$2:$D$65536,IF(dati_pdc!$C48=3,dati_bdv!$E$2:$E$65536,IF(dati_pdc!$C48=4,dati_bdv!$F$2:$F$65536,IF(dati_pdc!$C48=5,dati_bdv!$G$2:$G$65536,dati_bdv!$H$2:$H$65536))))),$A48,dati_bdv!J$2:J$65536)","v":125},{"$f":"SUMIF(IF(dati_pdc!$C48=1,dati_bdv!$C$2:$C$65536,IF(dati_pdc!$C48=2,dati_bdv!$D$2:$D$65536,IF(dati_pdc!$C48=3,dati_bdv!$E$2:$E$65536,IF(dati_pdc!$C48=4,dati_bdv!$F$2:$F$65536,IF(dati_pdc!$C48=5,dati_bdv!$G$2:$G$65536,dati_bdv!$H$2:$H$65536))))),$A48,dati_bdv!K$2:K$65536)","v":125},{"$f":"SUMIF(IF(dati_pdc!$C48=1,dati_bdv!$C$2:$C$65536,IF(dati_pdc!$C48=2,dati_bdv!$D$2:$D$65536,IF(dati_pdc!$C48=3,dati_bdv!$E$2:$E$65536,IF(dati_pdc!$C48=4,dati_bdv!$F$2:$F$65536,IF(dati_pdc!$C48=5,dati_bdv!$G$2:$G$65536,dati_bdv!$H$2:$H$65536))))),$A48,dati_bdv!L$2:L$65536)","v":0},{"$f":"SUMIF(IF(dati_pdc!$C48=1,dati_bdv!$C$2:$C$65536,IF(dati_pdc!$C48=2,dati_bdv!$D$2:$D$65536,IF(dati_pdc!$C48=3,dati_bdv!$E$2:$E$65536,IF(dati_pdc!$C48=4,dati_bdv!$F$2:$F$65536,IF(dati_pdc!$C48=5,dati_bdv!$G$2:$G$65536,dati_bdv!$H$2:$H$65536))))),$A48,dati_bdv!M$2:M$65536)","v":0},{"$f":"SUMIF(IF(dati_pdc!$C48=1,dati_bdv!$C$2:$C$65536,IF(dati_pdc!$C48=2,dati_bdv!$D$2:$D$65536,IF(dati_pdc!$C48=3,dati_bdv!$E$2:$E$65536,IF(dati_pdc!$C48=4,dati_bdv!$F$2:$F$65536,IF(dati_pdc!$C48=5,dati_bdv!$G$2:$G$65536,dati_bdv!$H$2:$H$65536))))),$A48,dati_bdv!N$2:N$65536)","v":0}]
[{"$f":"dati_pdc!A49","v":"590702"},{"$f":"SUMIF(IF(dati_pdc!$C49=1,dati_bdv!$C$2:$C$65536,IF(dati_pdc!$C49=2,dati_bdv!$D$2:$D$65536,IF(dati_pdc!$C49=3,dati_bdv!$E$2:$E$65536,IF(dati_pdc!$C49=4,dati_bdv!$F$2:$F$65536,IF(dati_pdc!$C49=5,dati_bdv!$G$2:$G$65536,dati_bdv!$H$2:$H$65536))))),$A49,dati_bdv!J$2:J$65536)","v":0},{"$f":"SUMIF(IF(dati_pdc!$C49=1,dati_bdv!$C$2:$C$65536,IF(dati_pdc!$C49=2,dati_bdv!$D$2:$D$65536,IF(dati_pdc!$C49=3,dati_bdv!$E$2:$E$65536,IF(dati_pdc!$C49=4,dati_bdv!$F$2:$F$65536,IF(dati_pdc!$C49=5,dati_bdv!$G$2:$G$65536,dati_bdv!$H$2:$H$65536))))),$A49,dati_bdv!K$2:K$65536)","v":0},{"$f":"SUMIF(IF(dati_pdc!$C49=1,dati_bdv!$C$2:$C$65536,IF(dati_pdc!$C49=2,dati_bdv!$D$2:$D$65536,IF(dati_pdc!$C49=3,dati_bdv!$E$2:$E$65536,IF(dati_pdc!$C49=4,dati_bdv!$F$2:$F$65536,IF(dati_pdc!$C49=5,dati_bdv!$G$2:$G$65536,dati_bdv!$H$2:$H$65536))))),$A49,dati_bdv!L$2:L$65536)","v":0},{"$f":"SUMIF(IF(dati_pdc!$C49=1,dati_bdv!$C$2:$C$65536,IF(dati_pdc!$C49=2,dati_bdv!$D$2:$D$65536,IF(dati_pdc!$C49=3,dati_bdv!$E$2:$E$65536,IF(dati_pdc!$C49=4,dati_bdv!$F$2:$F$65536,IF(dati_pdc!$C49=5,dati_bdv!$G$2:$G$65536,dati_bdv!$H$2:$H$65536))))),$A49,dati_bdv!M$2:M$65536)","v":0},{"$f":"SUMIF(IF(dati_pdc!$C49=1,dati_bdv!$C$2:$C$65536,IF(dati_pdc!$C49=2,dati_bdv!$D$2:$D$65536,IF(dati_pdc!$C49=3,dati_bdv!$E$2:$E$65536,IF(dati_pdc!$C49=4,dati_bdv!$F$2:$F$65536,IF(dati_pdc!$C49=5,dati_bdv!$G$2:$G$65536,dati_bdv!$H$2:$H$65536))))),$A49,dati_bdv!N$2:N$65536)","v":0}]
[{"$f":"dati_pdc!A50","v":"590703"},{"$f":"SUMIF(IF(dati_pdc!$C50=1,dati_bdv!$C$2:$C$65536,IF(dati_pdc!$C50=2,dati_bdv!$D$2:$D$65536,IF(dati_pdc!$C50=3,dati_bdv!$E$2:$E$65536,IF(dati_pdc!$C50=4,dati_bdv!$F$2:$F$65536,IF(dati_pdc!$C50=5,dati_bdv!$G$2:$G$65536,dati_bdv!$H$2:$H$65536))))),$A50,dati_bdv!J$2:J$65536)","v":141},{"$f":"SUMIF(IF(dati_pdc!$C50=1,dati_bdv!$C$2:$C$65536,IF(dati_pdc!$C50=2,dati_bdv!$D$2:$D$65536,IF(dati_pdc!$C50=3,dati_bdv!$E$2:$E$65536,IF(dati_pdc!$C50=4,dati_bdv!$F$2:$F$65536,IF(dati_pdc!$C50=5,dati_bdv!$G$2:$G$65536,dati_bdv!$H$2:$H$65536))))),$A50,dati_bdv!K$2:K$65536)","v":141},{"$f":"SUMIF(IF(dati_pdc!$C50=1,dati_bdv!$C$2:$C$65536,IF(dati_pdc!$C50=2,dati_bdv!$D$2:$D$65536,IF(dati_pdc!$C50=3,dati_bdv!$E$2:$E$65536,IF(dati_pdc!$C50=4,dati_bdv!$F$2:$F$65536,IF(dati_pdc!$C50=5,dati_bdv!$G$2:$G$65536,dati_bdv!$H$2:$H$65536))))),$A50,dati_bdv!L$2:L$65536)","v":0},{"$f":"SUMIF(IF(dati_pdc!$C50=1,dati_bdv!$C$2:$C$65536,IF(dati_pdc!$C50=2,dati_bdv!$D$2:$D$65536,IF(dati_pdc!$C50=3,dati_bdv!$E$2:$E$65536,IF(dati_pdc!$C50=4,dati_bdv!$F$2:$F$65536,IF(dati_pdc!$C50=5,dati_bdv!$G$2:$G$65536,dati_bdv!$H$2:$H$65536))))),$A50,dati_bdv!M$2:M$65536)","v":0},{"$f":"SUMIF(IF(dati_pdc!$C50=1,dati_bdv!$C$2:$C$65536,IF(dati_pdc!$C50=2,dati_bdv!$D$2:$D$65536,IF(dati_pdc!$C50=3,dati_bdv!$E$2:$E$65536,IF(dati_pdc!$C50=4,dati_bdv!$F$2:$F$65536,IF(dati_pdc!$C50=5,dati_bdv!$G$2:$G$65536,dati_bdv!$H$2:$H$65536))))),$A50,dati_bdv!N$2:N$65536)","v":0}]
[{"$f":"dati_pdc!A51","v":"590711"},{"$f":"SUMIF(IF(dati_pdc!$C51=1,dati_bdv!$C$2:$C$65536,IF(dati_pdc!$C51=2,dati_bdv!$D$2:$D$65536,IF(dati_pdc!$C51=3,dati_bdv!$E$2:$E$65536,IF(dati_pdc!$C51=4,dati_bdv!$F$2:$F$65536,IF(dati_pdc!$C51=5,dati_bdv!$G$2:$G$65536,dati_bdv!$H$2:$H$65536))))),$A51,dati_bdv!J$2:J$65536)","v":516.46},{"$f":"SUMIF(IF(dati_pdc!$C51=1,dati_bdv!$C$2:$C$65536,IF(dati_pdc!$C51=2,dati_bdv!$D$2:$D$65536,IF(dati_pdc!$C51=3,dati_bdv!$E$2:$E$65536,IF(dati_pdc!$C51=4,dati_bdv!$F$2:$F$65536,IF(dati_pdc!$C51=5,dati_bdv!$G$2:$G$65536,dati_bdv!$H$2:$H$65536))))),$A51,dati_bdv!K$2:K$65536)","v":516.46},{"$f":"SUMIF(IF(dati_pdc!$C51=1,dati_bdv!$C$2:$C$65536,IF(dati_pdc!$C51=2,dati_bdv!$D$2:$D$65536,IF(dati_pdc!$C51=3,dati_bdv!$E$2:$E$65536,IF(dati_pdc!$C51=4,dati_bdv!$F$2:$F$65536,IF(dati_pdc!$C51=5,dati_bdv!$G$2:$G$65536,dati_bdv!$H$2:$H$65536))))),$A51,dati_bdv!L$2:L$65536)","v":0},{"$f":"SUMIF(IF(dati_pdc!$C51=1,dati_bdv!$C$2:$C$65536,IF(dati_pdc!$C51=2,dati_bdv!$D$2:$D$65536,IF(dati_pdc!$C51=3,dati_bdv!$E$2:$E$65536,IF(dati_pdc!$C51=4,dati_bdv!$F$2:$F$65536,IF(dati_pdc!$C51=5,dati_bdv!$G$2:$G$65536,dati_bdv!$H$2:$H$65536))))),$A51,dati_bdv!M$2:M$65536)","v":0},{"$f":"SUMIF(IF(dati_pdc!$C51=1,dati_bdv!$C$2:$C$65536,IF(dati_pdc!$C51=2,dati_bdv!$D$2:$D$65536,IF(dati_pdc!$C51=3,dati_bdv!$E$2:$E$65536,IF(dati_pdc!$C51=4,dati_bdv!$F$2:$F$65536,IF(dati_pdc!$C51=5,dati_bdv!$G$2:$G$65536,dati_bdv!$H$2:$H$65536))))),$A51,dati_bdv!N$2:N$65536)","v":0}]
[{"$f":"dati_pdc!A52","v":"63"},{"$f":"SUMIF(IF(dati_pdc!$C52=1,dati_bdv!$C$2:$C$65536,IF(dati_pdc!$C52=2,dati_bdv!$D$2:$D$65536,IF(dati_pdc!$C52=3,dati_bdv!$E$2:$E$65536,IF(dati_pdc!$C52=4,dati_bdv!$F$2:$F$65536,IF(dati_pdc!$C52=5,dati_bdv!$G$2:$G$65536,dati_bdv!$H$2:$H$65536))))),$A52,dati_bdv!J$2:J$65536)","v":5325},{"$f":"SUMIF(IF(dati_pdc!$C52=1,dati_bdv!$C$2:$C$65536,IF(dati_pdc!$C52=2,dati_bdv!$D$2:$D$65536,IF(dati_pdc!$C52=3,dati_bdv!$E$2:$E$65536,IF(dati_pdc!$C52=4,dati_bdv!$F$2:$F$65536,IF(dati_pdc!$C52=5,dati_bdv!$G$2:$G$65536,dati_bdv!$H$2:$H$65536))))),$A52,dati_bdv!K$2:K$65536)","v":5325},{"$f":"SUMIF(IF(dati_pdc!$C52=1,dati_bdv!$C$2:$C$65536,IF(dati_pdc!$C52=2,dati_bdv!$D$2:$D$65536,IF(dati_pdc!$C52=3,dati_bdv!$E$2:$E$65536,IF(dati_pdc!$C52=4,dati_bdv!$F$2:$F$65536,IF(dati_pdc!$C52=5,dati_bdv!$G$2:$G$65536,dati_bdv!$H$2:$H$65536))))),$A52,dati_bdv!L$2:L$65536)","v":0},{"$f":"SUMIF(IF(dati_pdc!$C52=1,dati_bdv!$C$2:$C$65536,IF(dati_pdc!$C52=2,dati_bdv!$D$2:$D$65536,IF(dati_pdc!$C52=3,dati_bdv!$E$2:$E$65536,IF(dati_pdc!$C52=4,dati_bdv!$F$2:$F$65536,IF(dati_pdc!$C52=5,dati_bdv!$G$2:$G$65536,dati_bdv!$H$2:$H$65536))))),$A52,dati_bdv!M$2:M$65536)","v":0},{"$f":"SUMIF(IF(dati_pdc!$C52=1,dati_bdv!$C$2:$C$65536,IF(dati_pdc!$C52=2,dati_bdv!$D$2:$D$65536,IF(dati_pdc!$C52=3,dati_bdv!$E$2:$E$65536,IF(dati_pdc!$C52=4,dati_bdv!$F$2:$F$65536,IF(dati_pdc!$C52=5,dati_bdv!$G$2:$G$65536,dati_bdv!$H$2:$H$65536))))),$A52,dati_bdv!N$2:N$65536)","v":0}]
[{"$f":"dati_pdc!A53","v":"6301"},{"$f":"SUMIF(IF(dati_pdc!$C53=1,dati_bdv!$C$2:$C$65536,IF(dati_pdc!$C53=2,dati_bdv!$D$2:$D$65536,IF(dati_pdc!$C53=3,dati_bdv!$E$2:$E$65536,IF(dati_pdc!$C53=4,dati_bdv!$F$2:$F$65536,IF(dati_pdc!$C53=5,dati_bdv!$G$2:$G$65536,dati_bdv!$H$2:$H$65536))))),$A53,dati_bdv!J$2:J$65536)","v":6000},{"$f":"SUMIF(IF(dati_pdc!$C53=1,dati_bdv!$C$2:$C$65536,IF(dati_pdc!$C53=2,dati_bdv!$D$2:$D$65536,IF(dati_pdc!$C53=3,dati_bdv!$E$2:$E$65536,IF(dati_pdc!$C53=4,dati_bdv!$F$2:$F$65536,IF(dati_pdc!$C53=5,dati_bdv!$G$2:$G$65536,dati_bdv!$H$2:$H$65536))))),$A53,dati_bdv!K$2:K$65536)","v":6000},{"$f":"SUMIF(IF(dati_pdc!$C53=1,dati_bdv!$C$2:$C$65536,IF(dati_pdc!$C53=2,dati_bdv!$D$2:$D$65536,IF(dati_pdc!$C53=3,dati_bdv!$E$2:$E$65536,IF(dati_pdc!$C53=4,dati_bdv!$F$2:$F$65536,IF(dati_pdc!$C53=5,dati_bdv!$G$2:$G$65536,dati_bdv!$H$2:$H$65536))))),$A53,dati_bdv!L$2:L$65536)","v":0},{"$f":"SUMIF(IF(dati_pdc!$C53=1,dati_bdv!$C$2:$C$65536,IF(dati_pdc!$C53=2,dati_bdv!$D$2:$D$65536,IF(dati_pdc!$C53=3,dati_bdv!$E$2:$E$65536,IF(dati_pdc!$C53=4,dati_bdv!$F$2:$F$65536,IF(dati_pdc!$C53=5,dati_bdv!$G$2:$G$65536,dati_bdv!$H$2:$H$65536))))),$A53,dati_bdv!M$2:M$65536)","v":0},{"$f":"SUMIF(IF(dati_pdc!$C53=1,dati_bdv!$C$2:$C$65536,IF(dati_pdc!$C53=2,dati_bdv!$D$2:$D$65536,IF(dati_pdc!$C53=3,dati_bdv!$E$2:$E$65536,IF(dati_pdc!$C53=4,dati_bdv!$F$2:$F$65536,IF(dati_pdc!$C53=5,dati_bdv!$G$2:$G$65536,dati_bdv!$H$2:$H$65536))))),$A53,dati_bdv!N$2:N$65536)","v":0}]
[{"$f":"dati_pdc!A54","v":"630107"},{"$f":"SUMIF(IF(dati_pdc!$C54=1,dati_bdv!$C$2:$C$65536,IF(dati_pdc!$C54=2,dati_bdv!$D$2:$D$65536,IF(dati_pdc!$C54=3,dati_bdv!$E$2:$E$65536,IF(dati_pdc!$C54=4,dati_bdv!$F$2:$F$65536,IF(dati_pdc!$C54=5,dati_bdv!$G$2:$G$65536,dati_bdv!$H$2:$H$65536))))),$A54,dati_bdv!J$2:J$65536)","v":6000},{"$f":"SUMIF(IF(dati_pdc!$C54=1,dati_bdv!$C$2:$C$65536,IF(dati_pdc!$C54=2,dati_bdv!$D$2:$D$65536,IF(dati_pdc!$C54=3,dati_bdv!$E$2:$E$65536,IF(dati_pdc!$C54=4,dati_bdv!$F$2:$F$65536,IF(dati_pdc!$C54=5,dati_bdv!$G$2:$G$65536,dati_bdv!$H$2:$H$65536))))),$A54,dati_bdv!K$2:K$65536)","v":6000},{"$f":"SUMIF(IF(dati_pdc!$C54=1,dati_bdv!$C$2:$C$65536,IF(dati_pdc!$C54=2,dati_bdv!$D$2:$D$65536,IF(dati_pdc!$C54=3,dati_bdv!$E$2:$E$65536,IF(dati_pdc!$C54=4,dati_bdv!$F$2:$F$65536,IF(dati_pdc!$C54=5,dati_bdv!$G$2:$G$65536,dati_bdv!$H$2:$H$65536))))),$A54,dati_bdv!L$2:L$65536)","v":0},{"$f":"SUMIF(IF(dati_pdc!$C54=1,dati_bdv!$C$2:$C$65536,IF(dati_pdc!$C54=2,dati_bdv!$D$2:$D$65536,IF(dati_pdc!$C54=3,dati_bdv!$E$2:$E$65536,IF(dati_pdc!$C54=4,dati_bdv!$F$2:$F$65536,IF(dati_pdc!$C54=5,dati_bdv!$G$2:$G$65536,dati_bdv!$H$2:$H$65536))))),$A54,dati_bdv!M$2:M$65536)","v":0},{"$f":"SUMIF(IF(dati_pdc!$C54=1,dati_bdv!$C$2:$C$65536,IF(dati_pdc!$C54=2,dati_bdv!$D$2:$D$65536,IF(dati_pdc!$C54=3,dati_bdv!$E$2:$E$65536,IF(dati_pdc!$C54=4,dati_bdv!$F$2:$F$65536,IF(dati_pdc!$C54=5,dati_bdv!$G$2:$G$65536,dati_bdv!$H$2:$H$65536))))),$A54,dati_bdv!N$2:N$65536)","v":0}]
[{"$f":"dati_pdc!A55","v":"6305"},{"$f":"SUMIF(IF(dati_pdc!$C55=1,dati_bdv!$C$2:$C$65536,IF(dati_pdc!$C55=2,dati_bdv!$D$2:$D$65536,IF(dati_pdc!$C55=3,dati_bdv!$E$2:$E$65536,IF(dati_pdc!$C55=4,dati_bdv!$F$2:$F$65536,IF(dati_pdc!$C55=5,dati_bdv!$G$2:$G$65536,dati_bdv!$H$2:$H$65536))))),$A55,dati_bdv!J$2:J$65536)","v":-675},{"$f":"SUMIF(IF(dati_pdc!$C55=1,dati_bdv!$C$2:$C$65536,IF(dati_pdc!$C55=2,dati_bdv!$D$2:$D$65536,IF(dati_pdc!$C55=3,dati_bdv!$E$2:$E$65536,IF(dati_pdc!$C55=4,dati_bdv!$F$2:$F$65536,IF(dati_pdc!$C55=5,dati_bdv!$G$2:$G$65536,dati_bdv!$H$2:$H$65536))))),$A55,dati_bdv!K$2:K$65536)","v":-675},{"$f":"SUMIF(IF(dati_pdc!$C55=1,dati_bdv!$C$2:$C$65536,IF(dati_pdc!$C55=2,dati_bdv!$D$2:$D$65536,IF(dati_pdc!$C55=3,dati_bdv!$E$2:$E$65536,IF(dati_pdc!$C55=4,dati_bdv!$F$2:$F$65536,IF(dati_pdc!$C55=5,dati_bdv!$G$2:$G$65536,dati_bdv!$H$2:$H$65536))))),$A55,dati_bdv!L$2:L$65536)","v":0},{"$f":"SUMIF(IF(dati_pdc!$C55=1,dati_bdv!$C$2:$C$65536,IF(dati_pdc!$C55=2,dati_bdv!$D$2:$D$65536,IF(dati_pdc!$C55=3,dati_bdv!$E$2:$E$65536,IF(dati_pdc!$C55=4,dati_bdv!$F$2:$F$65536,IF(dati_pdc!$C55=5,dati_bdv!$G$2:$G$65536,dati_bdv!$H$2:$H$65536))))),$A55,dati_bdv!M$2:M$65536)","v":0},{"$f":"SUMIF(IF(dati_pdc!$C55=1,dati_bdv!$C$2:$C$65536,IF(dati_pdc!$C55=2,dati_bdv!$D$2:$D$65536,IF(dati_pdc!$C55=3,dati_bdv!$E$2:$E$65536,IF(dati_pdc!$C55=4,dati_bdv!$F$2:$F$65536,IF(dati_pdc!$C55=5,dati_bdv!$G$2:$G$65536,dati_bdv!$H$2:$H$65536))))),$A55,dati_bdv!N$2:N$65536)","v":0}]
[{"$f":"dati_pdc!A56","v":"630501"},{"$f":"SUMIF(IF(dati_pdc!$C56=1,dati_bdv!$C$2:$C$65536,IF(dati_pdc!$C56=2,dati_bdv!$D$2:$D$65536,IF(dati_pdc!$C56=3,dati_bdv!$E$2:$E$65536,IF(dati_pdc!$C56=4,dati_bdv!$F$2:$F$65536,IF(dati_pdc!$C56=5,dati_bdv!$G$2:$G$65536,dati_bdv!$H$2:$H$65536))))),$A56,dati_bdv!J$2:J$65536)","v":-675},{"$f":"SUMIF(IF(dati_pdc!$C56=1,dati_bdv!$C$2:$C$65536,IF(dati_pdc!$C56=2,dati_bdv!$D$2:$D$65536,IF(dati_pdc!$C56=3,dati_bdv!$E$2:$E$65536,IF(dati_pdc!$C56=4,dati_bdv!$F$2:$F$65536,IF(dati_pdc!$C56=5,dati_bdv!$G$2:$G$65536,dati_bdv!$H$2:$H$65536))))),$A56,dati_bdv!K$2:K$65536)","v":-675},{"$f":"SUMIF(IF(dati_pdc!$C56=1,dati_bdv!$C$2:$C$65536,IF(dati_pdc!$C56=2,dati_bdv!$D$2:$D$65536,IF(dati_pdc!$C56=3,dati_bdv!$E$2:$E$65536,IF(dati_pdc!$C56=4,dati_bdv!$F$2:$F$65536,IF(dati_pdc!$C56=5,dati_bdv!$G$2:$G$65536,dati_bdv!$H$2:$H$65536))))),$A56,dati_bdv!L$2:L$65536)","v":0},{"$f":"SUMIF(IF(dati_pdc!$C56=1,dati_bdv!$C$2:$C$65536,IF(dati_pdc!$C56=2,dati_bdv!$D$2:$D$65536,IF(dati_pdc!$C56=3,dati_bdv!$E$2:$E$65536,IF(dati_pdc!$C56=4,dati_bdv!$F$2:$F$65536,IF(dati_pdc!$C56=5,dati_bdv!$G$2:$G$65536,dati_bdv!$H$2:$H$65536))))),$A56,dati_bdv!M$2:M$65536)","v":0},{"$f":"SUMIF(IF(dati_pdc!$C56=1,dati_bdv!$C$2:$C$65536,IF(dati_pdc!$C56=2,dati_bdv!$D$2:$D$65536,IF(dati_pdc!$C56=3,dati_bdv!$E$2:$E$65536,IF(dati_pdc!$C56=4,dati_bdv!$F$2:$F$65536,IF(dati_pdc!$C56=5,dati_bdv!$G$2:$G$65536,dati_bdv!$H$2:$H$65536))))),$A56,dati_bdv!N$2:N$65536)","v":0}]
[{"$f":"dati_pdc!A57","v":"6309"},{"$f":"SUMIF(IF(dati_pdc!$C57=1,dati_bdv!$C$2:$C$65536,IF(dati_pdc!$C57=2,dati_bdv!$D$2:$D$65536,IF(dati_pdc!$C57=3,dati_bdv!$E$2:$E$65536,IF(dati_pdc!$C57=4,dati_bdv!$F$2:$F$65536,IF(dati_pdc!$C57=5,dati_bdv!$G$2:$G$65536,dati_bdv!$H$2:$H$65536))))),$A57,dati_bdv!J$2:J$65536)","v":0},{"$f":"SUMIF(IF(dati_pdc!$C57=1,dati_bdv!$C$2:$C$65536,IF(dati_pdc!$C57=2,dati_bdv!$D$2:$D$65536,IF(dati_pdc!$C57=3,dati_bdv!$E$2:$E$65536,IF(dati_pdc!$C57=4,dati_bdv!$F$2:$F$65536,IF(dati_pdc!$C57=5,dati_bdv!$G$2:$G$65536,dati_bdv!$H$2:$H$65536))))),$A57,dati_bdv!K$2:K$65536)","v":0},{"$f":"SUMIF(IF(dati_pdc!$C57=1,dati_bdv!$C$2:$C$65536,IF(dati_pdc!$C57=2,dati_bdv!$D$2:$D$65536,IF(dati_pdc!$C57=3,dati_bdv!$E$2:$E$65536,IF(dati_pdc!$C57=4,dati_bdv!$F$2:$F$65536,IF(dati_pdc!$C57=5,dati_bdv!$G$2:$G$65536,dati_bdv!$H$2:$H$65536))))),$A57,dati_bdv!L$2:L$65536)","v":0},{"$f":"SUMIF(IF(dati_pdc!$C57=1,dati_bdv!$C$2:$C$65536,IF(dati_pdc!$C57=2,dati_bdv!$D$2:$D$65536,IF(dati_pdc!$C57=3,dati_bdv!$E$2:$E$65536,IF(dati_pdc!$C57=4,dati_bdv!$F$2:$F$65536,IF(dati_pdc!$C57=5,dati_bdv!$G$2:$G$65536,dati_bdv!$H$2:$H$65536))))),$A57,dati_bdv!M$2:M$65536)","v":0},{"$f":"SUMIF(IF(dati_pdc!$C57=1,dati_bdv!$C$2:$C$65536,IF(dati_pdc!$C57=2,dati_bdv!$D$2:$D$65536,IF(dati_pdc!$C57=3,dati_bdv!$E$2:$E$65536,IF(dati_pdc!$C57=4,dati_bdv!$F$2:$F$65536,IF(dati_pdc!$C57=5,dati_bdv!$G$2:$G$65536,dati_bdv!$H$2:$H$65536))))),$A57,dati_bdv!N$2:N$65536)","v":0}]
[{"$f":"dati_pdc!A58","v":"630903"},{"$f":"SUMIF(IF(dati_pdc!$C58=1,dati_bdv!$C$2:$C$65536,IF(dati_pdc!$C58=2,dati_bdv!$D$2:$D$65536,IF(dati_pdc!$C58=3,dati_bdv!$E$2:$E$65536,IF(dati_pdc!$C58=4,dati_bdv!$F$2:$F$65536,IF(dati_pdc!$C58=5,dati_bdv!$G$2:$G$65536,dati_bdv!$H$2:$H$65536))))),$A58,dati_bdv!J$2:J$65536)","v":0},{"$f":"SUMIF(IF(dati_pdc!$C58=1,dati_bdv!$C$2:$C$65536,IF(dati_pdc!$C58=2,dati_bdv!$D$2:$D$65536,IF(dati_pdc!$C58=3,dati_bdv!$E$2:$E$65536,IF(dati_pdc!$C58=4,dati_bdv!$F$2:$F$65536,IF(dati_pdc!$C58=5,dati_bdv!$G$2:$G$65536,dati_bdv!$H$2:$H$65536))))),$A58,dati_bdv!K$2:K$65536)","v":0},{"$f":"SUMIF(IF(dati_pdc!$C58=1,dati_bdv!$C$2:$C$65536,IF(dati_pdc!$C58=2,dati_bdv!$D$2:$D$65536,IF(dati_pdc!$C58=3,dati_bdv!$E$2:$E$65536,IF(dati_pdc!$C58=4,dati_bdv!$F$2:$F$65536,IF(dati_pdc!$C58=5,dati_bdv!$G$2:$G$65536,dati_bdv!$H$2:$H$65536))))),$A58,dati_bdv!L$2:L$65536)","v":0},{"$f":"SUMIF(IF(dati_pdc!$C58=1,dati_bdv!$C$2:$C$65536,IF(dati_pdc!$C58=2,dati_bdv!$D$2:$D$65536,IF(dati_pdc!$C58=3,dati_bdv!$E$2:$E$65536,IF(dati_pdc!$C58=4,dati_bdv!$F$2:$F$65536,IF(dati_pdc!$C58=5,dati_bdv!$G$2:$G$65536,dati_bdv!$H$2:$H$65536))))),$A58,dati_bdv!M$2:M$65536)","v":0},{"$f":"SUMIF(IF(dati_pdc!$C58=1,dati_bdv!$C$2:$C$65536,IF(dati_pdc!$C58=2,dati_bdv!$D$2:$D$65536,IF(dati_pdc!$C58=3,dati_bdv!$E$2:$E$65536,IF(dati_pdc!$C58=4,dati_bdv!$F$2:$F$65536,IF(dati_pdc!$C58=5,dati_bdv!$G$2:$G$65536,dati_bdv!$H$2:$H$65536))))),$A58,dati_bdv!N$2:N$65536)","v":0}]
[{"$f":"dati_pdc!A59","v":"70"},{"$f":"SUMIF(IF(dati_pdc!$C59=1,dati_bdv!$C$2:$C$65536,IF(dati_pdc!$C59=2,dati_bdv!$D$2:$D$65536,IF(dati_pdc!$C59=3,dati_bdv!$E$2:$E$65536,IF(dati_pdc!$C59=4,dati_bdv!$F$2:$F$65536,IF(dati_pdc!$C59=5,dati_bdv!$G$2:$G$65536,dati_bdv!$H$2:$H$65536))))),$A59,dati_bdv!J$2:J$65536)","v":-73800},{"$f":"SUMIF(IF(dati_pdc!$C59=1,dati_bdv!$C$2:$C$65536,IF(dati_pdc!$C59=2,dati_bdv!$D$2:$D$65536,IF(dati_pdc!$C59=3,dati_bdv!$E$2:$E$65536,IF(dati_pdc!$C59=4,dati_bdv!$F$2:$F$65536,IF(dati_pdc!$C59=5,dati_bdv!$G$2:$G$65536,dati_bdv!$H$2:$H$65536))))),$A59,dati_bdv!K$2:K$65536)","v":-9425},{"$f":"SUMIF(IF(dati_pdc!$C59=1,dati_bdv!$C$2:$C$65536,IF(dati_pdc!$C59=2,dati_bdv!$D$2:$D$65536,IF(dati_pdc!$C59=3,dati_bdv!$E$2:$E$65536,IF(dati_pdc!$C59=4,dati_bdv!$F$2:$F$65536,IF(dati_pdc!$C59=5,dati_bdv!$G$2:$G$65536,dati_bdv!$H$2:$H$65536))))),$A59,dati_bdv!L$2:L$65536)","v":0},{"$f":"SUMIF(IF(dati_pdc!$C59=1,dati_bdv!$C$2:$C$65536,IF(dati_pdc!$C59=2,dati_bdv!$D$2:$D$65536,IF(dati_pdc!$C59=3,dati_bdv!$E$2:$E$65536,IF(dati_pdc!$C59=4,dati_bdv!$F$2:$F$65536,IF(dati_pdc!$C59=5,dati_bdv!$G$2:$G$65536,dati_bdv!$H$2:$H$65536))))),$A59,dati_bdv!M$2:M$65536)","v":0},{"$f":"SUMIF(IF(dati_pdc!$C59=1,dati_bdv!$C$2:$C$65536,IF(dati_pdc!$C59=2,dati_bdv!$D$2:$D$65536,IF(dati_pdc!$C59=3,dati_bdv!$E$2:$E$65536,IF(dati_pdc!$C59=4,dati_bdv!$F$2:$F$65536,IF(dati_pdc!$C59=5,dati_bdv!$G$2:$G$65536,dati_bdv!$H$2:$H$65536))))),$A59,dati_bdv!N$2:N$65536)","v":0}]
[{"$f":"dati_pdc!A60","v":"7009"},{"$f":"SUMIF(IF(dati_pdc!$C60=1,dati_bdv!$C$2:$C$65536,IF(dati_pdc!$C60=2,dati_bdv!$D$2:$D$65536,IF(dati_pdc!$C60=3,dati_bdv!$E$2:$E$65536,IF(dati_pdc!$C60=4,dati_bdv!$F$2:$F$65536,IF(dati_pdc!$C60=5,dati_bdv!$G$2:$G$65536,dati_bdv!$H$2:$H$65536))))),$A60,dati_bdv!J$2:J$65536)","v":-73800},{"$f":"SUMIF(IF(dati_pdc!$C60=1,dati_bdv!$C$2:$C$65536,IF(dati_pdc!$C60=2,dati_bdv!$D$2:$D$65536,IF(dati_pdc!$C60=3,dati_bdv!$E$2:$E$65536,IF(dati_pdc!$C60=4,dati_bdv!$F$2:$F$65536,IF(dati_pdc!$C60=5,dati_bdv!$G$2:$G$65536,dati_bdv!$H$2:$H$65536))))),$A60,dati_bdv!K$2:K$65536)","v":-9425},{"$f":"SUMIF(IF(dati_pdc!$C60=1,dati_bdv!$C$2:$C$65536,IF(dati_pdc!$C60=2,dati_bdv!$D$2:$D$65536,IF(dati_pdc!$C60=3,dati_bdv!$E$2:$E$65536,IF(dati_pdc!$C60=4,dati_bdv!$F$2:$F$65536,IF(dati_pdc!$C60=5,dati_bdv!$G$2:$G$65536,dati_bdv!$H$2:$H$65536))))),$A60,dati_bdv!L$2:L$65536)","v":0},{"$f":"SUMIF(IF(dati_pdc!$C60=1,dati_bdv!$C$2:$C$65536,IF(dati_pdc!$C60=2,dati_bdv!$D$2:$D$65536,IF(dati_pdc!$C60=3,dati_bdv!$E$2:$E$65536,IF(dati_pdc!$C60=4,dati_bdv!$F$2:$F$65536,IF(dati_pdc!$C60=5,dati_bdv!$G$2:$G$65536,dati_bdv!$H$2:$H$65536))))),$A60,dati_bdv!M$2:M$65536)","v":0},{"$f":"SUMIF(IF(dati_pdc!$C60=1,dati_bdv!$C$2:$C$65536,IF(dati_pdc!$C60=2,dati_bdv!$D$2:$D$65536,IF(dati_pdc!$C60=3,dati_bdv!$E$2:$E$65536,IF(dati_pdc!$C60=4,dati_bdv!$F$2:$F$65536,IF(dati_pdc!$C60=5,dati_bdv!$G$2:$G$65536,dati_bdv!$H$2:$H$65536))))),$A60,dati_bdv!N$2:N$65536)","v":0}]
[{"$f":"dati_pdc!A61","v":"700903"},{"$f":"SUMIF(IF(dati_pdc!$C61=1,dati_bdv!$C$2:$C$65536,IF(dati_pdc!$C61=2,dati_bdv!$D$2:$D$65536,IF(dati_pdc!$C61=3,dati_bdv!$E$2:$E$65536,IF(dati_pdc!$C61=4,dati_bdv!$F$2:$F$65536,IF(dati_pdc!$C61=5,dati_bdv!$G$2:$G$65536,dati_bdv!$H$2:$H$65536))))),$A61,dati_bdv!J$2:J$65536)","v":-73800},{"$f":"SUMIF(IF(dati_pdc!$C61=1,dati_bdv!$C$2:$C$65536,IF(dati_pdc!$C61=2,dati_bdv!$D$2:$D$65536,IF(dati_pdc!$C61=3,dati_bdv!$E$2:$E$65536,IF(dati_pdc!$C61=4,dati_bdv!$F$2:$F$65536,IF(dati_pdc!$C61=5,dati_bdv!$G$2:$G$65536,dati_bdv!$H$2:$H$65536))))),$A61,dati_bdv!K$2:K$65536)","v":-9425},{"$f":"SUMIF(IF(dati_pdc!$C61=1,dati_bdv!$C$2:$C$65536,IF(dati_pdc!$C61=2,dati_bdv!$D$2:$D$65536,IF(dati_pdc!$C61=3,dati_bdv!$E$2:$E$65536,IF(dati_pdc!$C61=4,dati_bdv!$F$2:$F$65536,IF(dati_pdc!$C61=5,dati_bdv!$G$2:$G$65536,dati_bdv!$H$2:$H$65536))))),$A61,dati_bdv!L$2:L$65536)","v":0},{"$f":"SUMIF(IF(dati_pdc!$C61=1,dati_bdv!$C$2:$C$65536,IF(dati_pdc!$C61=2,dati_bdv!$D$2:$D$65536,IF(dati_pdc!$C61=3,dati_bdv!$E$2:$E$65536,IF(dati_pdc!$C61=4,dati_bdv!$F$2:$F$65536,IF(dati_pdc!$C61=5,dati_bdv!$G$2:$G$65536,dati_bdv!$H$2:$H$65536))))),$A61,dati_bdv!M$2:M$65536)","v":0},{"$f":"SUMIF(IF(dati_pdc!$C61=1,dati_bdv!$C$2:$C$65536,IF(dati_pdc!$C61=2,dati_bdv!$D$2:$D$65536,IF(dati_pdc!$C61=3,dati_bdv!$E$2:$E$65536,IF(dati_pdc!$C61=4,dati_bdv!$F$2:$F$65536,IF(dati_pdc!$C61=5,dati_bdv!$G$2:$G$65536,dati_bdv!$H$2:$H$65536))))),$A61,dati_bdv!N$2:N$65536)","v":0}]
[{"$f":"dati_pdc!A62","v":"71"},{"$f":"SUMIF(IF(dati_pdc!$C62=1,dati_bdv!$C$2:$C$65536,IF(dati_pdc!$C62=2,dati_bdv!$D$2:$D$65536,IF(dati_pdc!$C62=3,dati_bdv!$E$2:$E$65536,IF(dati_pdc!$C62=4,dati_bdv!$F$2:$F$65536,IF(dati_pdc!$C62=5,dati_bdv!$G$2:$G$65536,dati_bdv!$H$2:$H$65536))))),$A62,dati_bdv!J$2:J$65536)","v":0},{"$f":"SUMIF(IF(dati_pdc!$C62=1,dati_bdv!$C$2:$C$65536,IF(dati_pdc!$C62=2,dati_bdv!$D$2:$D$65536,IF(dati_pdc!$C62=3,dati_bdv!$E$2:$E$65536,IF(dati_pdc!$C62=4,dati_bdv!$F$2:$F$65536,IF(dati_pdc!$C62=5,dati_bdv!$G$2:$G$65536,dati_bdv!$H$2:$H$65536))))),$A62,dati_bdv!K$2:K$65536)","v":-172854.87},{"$f":"SUMIF(IF(dati_pdc!$C62=1,dati_bdv!$C$2:$C$65536,IF(dati_pdc!$C62=2,dati_bdv!$D$2:$D$65536,IF(dati_pdc!$C62=3,dati_bdv!$E$2:$E$65536,IF(dati_pdc!$C62=4,dati_bdv!$F$2:$F$65536,IF(dati_pdc!$C62=5,dati_bdv!$G$2:$G$65536,dati_bdv!$H$2:$H$65536))))),$A62,dati_bdv!L$2:L$65536)","v":0},{"$f":"SUMIF(IF(dati_pdc!$C62=1,dati_bdv!$C$2:$C$65536,IF(dati_pdc!$C62=2,dati_bdv!$D$2:$D$65536,IF(dati_pdc!$C62=3,dati_bdv!$E$2:$E$65536,IF(dati_pdc!$C62=4,dati_bdv!$F$2:$F$65536,IF(dati_pdc!$C62=5,dati_bdv!$G$2:$G$65536,dati_bdv!$H$2:$H$65536))))),$A62,dati_bdv!M$2:M$65536)","v":0},{"$f":"SUMIF(IF(dati_pdc!$C62=1,dati_bdv!$C$2:$C$65536,IF(dati_pdc!$C62=2,dati_bdv!$D$2:$D$65536,IF(dati_pdc!$C62=3,dati_bdv!$E$2:$E$65536,IF(dati_pdc!$C62=4,dati_bdv!$F$2:$F$65536,IF(dati_pdc!$C62=5,dati_bdv!$G$2:$G$65536,dati_bdv!$H$2:$H$65536))))),$A62,dati_bdv!N$2:N$65536)","v":0}]
[{"$f":"dati_pdc!A63","v":"7101"},{"$f":"SUMIF(IF(dati_pdc!$C63=1,dati_bdv!$C$2:$C$65536,IF(dati_pdc!$C63=2,dati_bdv!$D$2:$D$65536,IF(dati_pdc!$C63=3,dati_bdv!$E$2:$E$65536,IF(dati_pdc!$C63=4,dati_bdv!$F$2:$F$65536,IF(dati_pdc!$C63=5,dati_bdv!$G$2:$G$65536,dati_bdv!$H$2:$H$65536))))),$A63,dati_bdv!J$2:J$65536)","v":0},{"$f":"SUMIF(IF(dati_pdc!$C63=1,dati_bdv!$C$2:$C$65536,IF(dati_pdc!$C63=2,dati_bdv!$D$2:$D$65536,IF(dati_pdc!$C63=3,dati_bdv!$E$2:$E$65536,IF(dati_pdc!$C63=4,dati_bdv!$F$2:$F$65536,IF(dati_pdc!$C63=5,dati_bdv!$G$2:$G$65536,dati_bdv!$H$2:$H$65536))))),$A63,dati_bdv!K$2:K$65536)","v":-172854.87},{"$f":"SUMIF(IF(dati_pdc!$C63=1,dati_bdv!$C$2:$C$65536,IF(dati_pdc!$C63=2,dati_bdv!$D$2:$D$65536,IF(dati_pdc!$C63=3,dati_bdv!$E$2:$E$65536,IF(dati_pdc!$C63=4,dati_bdv!$F$2:$F$65536,IF(dati_pdc!$C63=5,dati_bdv!$G$2:$G$65536,dati_bdv!$H$2:$H$65536))))),$A63,dati_bdv!L$2:L$65536)","v":0},{"$f":"SUMIF(IF(dati_pdc!$C63=1,dati_bdv!$C$2:$C$65536,IF(dati_pdc!$C63=2,dati_bdv!$D$2:$D$65536,IF(dati_pdc!$C63=3,dati_bdv!$E$2:$E$65536,IF(dati_pdc!$C63=4,dati_bdv!$F$2:$F$65536,IF(dati_pdc!$C63=5,dati_bdv!$G$2:$G$65536,dati_bdv!$H$2:$H$65536))))),$A63,dati_bdv!M$2:M$65536)","v":0},{"$f":"SUMIF(IF(dati_pdc!$C63=1,dati_bdv!$C$2:$C$65536,IF(dati_pdc!$C63=2,dati_bdv!$D$2:$D$65536,IF(dati_pdc!$C63=3,dati_bdv!$E$2:$E$65536,IF(dati_pdc!$C63=4,dati_bdv!$F$2:$F$65536,IF(dati_pdc!$C63=5,dati_bdv!$G$2:$G$65536,dati_bdv!$H$2:$H$65536))))),$A63,dati_bdv!N$2:N$65536)","v":0}]
[{"$f":"dati_pdc!A64","v":"710121"},{"$f":"SUMIF(IF(dati_pdc!$C64=1,dati_bdv!$C$2:$C$65536,IF(dati_pdc!$C64=2,dati_bdv!$D$2:$D$65536,IF(dati_pdc!$C64=3,dati_bdv!$E$2:$E$65536,IF(dati_pdc!$C64=4,dati_bdv!$F$2:$F$65536,IF(dati_pdc!$C64=5,dati_bdv!$G$2:$G$65536,dati_bdv!$H$2:$H$65536))))),$A64,dati_bdv!J$2:J$65536)","v":0},{"$f":"SUMIF(IF(dati_pdc!$C64=1,dati_bdv!$C$2:$C$65536,IF(dati_pdc!$C64=2,dati_bdv!$D$2:$D$65536,IF(dati_pdc!$C64=3,dati_bdv!$E$2:$E$65536,IF(dati_pdc!$C64=4,dati_bdv!$F$2:$F$65536,IF(dati_pdc!$C64=5,dati_bdv!$G$2:$G$65536,dati_bdv!$H$2:$H$65536))))),$A64,dati_bdv!K$2:K$65536)","v":-172854.87},{"$f":"SUMIF(IF(dati_pdc!$C64=1,dati_bdv!$C$2:$C$65536,IF(dati_pdc!$C64=2,dati_bdv!$D$2:$D$65536,IF(dati_pdc!$C64=3,dati_bdv!$E$2:$E$65536,IF(dati_pdc!$C64=4,dati_bdv!$F$2:$F$65536,IF(dati_pdc!$C64=5,dati_bdv!$G$2:$G$65536,dati_bdv!$H$2:$H$65536))))),$A64,dati_bdv!L$2:L$65536)","v":0},{"$f":"SUMIF(IF(dati_pdc!$C64=1,dati_bdv!$C$2:$C$65536,IF(dati_pdc!$C64=2,dati_bdv!$D$2:$D$65536,IF(dati_pdc!$C64=3,dati_bdv!$E$2:$E$65536,IF(dati_pdc!$C64=4,dati_bdv!$F$2:$F$65536,IF(dati_pdc!$C64=5,dati_bdv!$G$2:$G$65536,dati_bdv!$H$2:$H$65536))))),$A64,dati_bdv!M$2:M$65536)","v":0},{"$f":"SUMIF(IF(dati_pdc!$C64=1,dati_bdv!$C$2:$C$65536,IF(dati_pdc!$C64=2,dati_bdv!$D$2:$D$65536,IF(dati_pdc!$C64=3,dati_bdv!$E$2:$E$65536,IF(dati_pdc!$C64=4,dati_bdv!$F$2:$F$65536,IF(dati_pdc!$C64=5,dati_bdv!$G$2:$G$65536,dati_bdv!$H$2:$H$65536))))),$A64,dati_bdv!N$2:N$65536)","v":0}]
[{"$f":"dati_pdc!A65","v":"72"},{"$f":"SUMIF(IF(dati_pdc!$C65=1,dati_bdv!$C$2:$C$65536,IF(dati_pdc!$C65=2,dati_bdv!$D$2:$D$65536,IF(dati_pdc!$C65=3,dati_bdv!$E$2:$E$65536,IF(dati_pdc!$C65=4,dati_bdv!$F$2:$F$65536,IF(dati_pdc!$C65=5,dati_bdv!$G$2:$G$65536,dati_bdv!$H$2:$H$65536))))),$A65,dati_bdv!J$2:J$65536)","v":0},{"$f":"SUMIF(IF(dati_pdc!$C65=1,dati_bdv!$C$2:$C$65536,IF(dati_pdc!$C65=2,dati_bdv!$D$2:$D$65536,IF(dati_pdc!$C65=3,dati_bdv!$E$2:$E$65536,IF(dati_pdc!$C65=4,dati_bdv!$F$2:$F$65536,IF(dati_pdc!$C65=5,dati_bdv!$G$2:$G$65536,dati_bdv!$H$2:$H$65536))))),$A65,dati_bdv!K$2:K$65536)","v":172854.87},{"$f":"SUMIF(IF(dati_pdc!$C65=1,dati_bdv!$C$2:$C$65536,IF(dati_pdc!$C65=2,dati_bdv!$D$2:$D$65536,IF(dati_pdc!$C65=3,dati_bdv!$E$2:$E$65536,IF(dati_pdc!$C65=4,dati_bdv!$F$2:$F$65536,IF(dati_pdc!$C65=5,dati_bdv!$G$2:$G$65536,dati_bdv!$H$2:$H$65536))))),$A65,dati_bdv!L$2:L$65536)","v":0},{"$f":"SUMIF(IF(dati_pdc!$C65=1,dati_bdv!$C$2:$C$65536,IF(dati_pdc!$C65=2,dati_bdv!$D$2:$D$65536,IF(dati_pdc!$C65=3,dati_bdv!$E$2:$E$65536,IF(dati_pdc!$C65=4,dati_bdv!$F$2:$F$65536,IF(dati_pdc!$C65=5,dati_bdv!$G$2:$G$65536,dati_bdv!$H$2:$H$65536))))),$A65,dati_bdv!M$2:M$65536)","v":0},{"$f":"SUMIF(IF(dati_pdc!$C65=1,dati_bdv!$C$2:$C$65536,IF(dati_pdc!$C65=2,dati_bdv!$D$2:$D$65536,IF(dati_pdc!$C65=3,dati_bdv!$E$2:$E$65536,IF(dati_pdc!$C65=4,dati_bdv!$F$2:$F$65536,IF(dati_pdc!$C65=5,dati_bdv!$G$2:$G$65536,dati_bdv!$H$2:$H$65536))))),$A65,dati_bdv!N$2:N$65536)","v":0}]
[{"$f":"dati_pdc!A66","v":"7205"},{"$f":"SUMIF(IF(dati_pdc!$C66=1,dati_bdv!$C$2:$C$65536,IF(dati_pdc!$C66=2,dati_bdv!$D$2:$D$65536,IF(dati_pdc!$C66=3,dati_bdv!$E$2:$E$65536,IF(dati_pdc!$C66=4,dati_bdv!$F$2:$F$65536,IF(dati_pdc!$C66=5,dati_bdv!$G$2:$G$65536,dati_bdv!$H$2:$H$65536))))),$A66,dati_bdv!J$2:J$65536)","v":0},{"$f":"SUMIF(IF(dati_pdc!$C66=1,dati_bdv!$C$2:$C$65536,IF(dati_pdc!$C66=2,dati_bdv!$D$2:$D$65536,IF(dati_pdc!$C66=3,dati_bdv!$E$2:$E$65536,IF(dati_pdc!$C66=4,dati_bdv!$F$2:$F$65536,IF(dati_pdc!$C66=5,dati_bdv!$G$2:$G$65536,dati_bdv!$H$2:$H$65536))))),$A66,dati_bdv!K$2:K$65536)","v":172854.87},{"$f":"SUMIF(IF(dati_pdc!$C66=1,dati_bdv!$C$2:$C$65536,IF(dati_pdc!$C66=2,dati_bdv!$D$2:$D$65536,IF(dati_pdc!$C66=3,dati_bdv!$E$2:$E$65536,IF(dati_pdc!$C66=4,dati_bdv!$F$2:$F$65536,IF(dati_pdc!$C66=5,dati_bdv!$G$2:$G$65536,dati_bdv!$H$2:$H$65536))))),$A66,dati_bdv!L$2:L$65536)","v":0},{"$f":"SUMIF(IF(dati_pdc!$C66=1,dati_bdv!$C$2:$C$65536,IF(dati_pdc!$C66=2,dati_bdv!$D$2:$D$65536,IF(dati_pdc!$C66=3,dati_bdv!$E$2:$E$65536,IF(dati_pdc!$C66=4,dati_bdv!$F$2:$F$65536,IF(dati_pdc!$C66=5,dati_bdv!$G$2:$G$65536,dati_bdv!$H$2:$H$65536))))),$A66,dati_bdv!M$2:M$65536)","v":0},{"$f":"SUMIF(IF(dati_pdc!$C66=1,dati_bdv!$C$2:$C$65536,IF(dati_pdc!$C66=2,dati_bdv!$D$2:$D$65536,IF(dati_pdc!$C66=3,dati_bdv!$E$2:$E$65536,IF(dati_pdc!$C66=4,dati_bdv!$F$2:$F$65536,IF(dati_pdc!$C66=5,dati_bdv!$G$2:$G$65536,dati_bdv!$H$2:$H$65536))))),$A66,dati_bdv!N$2:N$65536)","v":0}]
[{"$f":"dati_pdc!A67","v":"720521"},{"$f":"SUMIF(IF(dati_pdc!$C67=1,dati_bdv!$C$2:$C$65536,IF(dati_pdc!$C67=2,dati_bdv!$D$2:$D$65536,IF(dati_pdc!$C67=3,dati_bdv!$E$2:$E$65536,IF(dati_pdc!$C67=4,dati_bdv!$F$2:$F$65536,IF(dati_pdc!$C67=5,dati_bdv!$G$2:$G$65536,dati_bdv!$H$2:$H$65536))))),$A67,dati_bdv!J$2:J$65536)","v":0},{"$f":"SUMIF(IF(dati_pdc!$C67=1,dati_bdv!$C$2:$C$65536,IF(dati_pdc!$C67=2,dati_bdv!$D$2:$D$65536,IF(dati_pdc!$C67=3,dati_bdv!$E$2:$E$65536,IF(dati_pdc!$C67=4,dati_bdv!$F$2:$F$65536,IF(dati_pdc!$C67=5,dati_bdv!$G$2:$G$65536,dati_bdv!$H$2:$H$65536))))),$A67,dati_bdv!K$2:K$65536)","v":172854.87},{"$f":"SUMIF(IF(dati_pdc!$C67=1,dati_bdv!$C$2:$C$65536,IF(dati_pdc!$C67=2,dati_bdv!$D$2:$D$65536,IF(dati_pdc!$C67=3,dati_bdv!$E$2:$E$65536,IF(dati_pdc!$C67=4,dati_bdv!$F$2:$F$65536,IF(dati_pdc!$C67=5,dati_bdv!$G$2:$G$65536,dati_bdv!$H$2:$H$65536))))),$A67,dati_bdv!L$2:L$65536)","v":0},{"$f":"SUMIF(IF(dati_pdc!$C67=1,dati_bdv!$C$2:$C$65536,IF(dati_pdc!$C67=2,dati_bdv!$D$2:$D$65536,IF(dati_pdc!$C67=3,dati_bdv!$E$2:$E$65536,IF(dati_pdc!$C67=4,dati_bdv!$F$2:$F$65536,IF(dati_pdc!$C67=5,dati_bdv!$G$2:$G$65536,dati_bdv!$H$2:$H$65536))))),$A67,dati_bdv!M$2:M$65536)","v":0},{"$f":"SUMIF(IF(dati_pdc!$C67=1,dati_bdv!$C$2:$C$65536,IF(dati_pdc!$C67=2,dati_bdv!$D$2:$D$65536,IF(dati_pdc!$C67=3,dati_bdv!$E$2:$E$65536,IF(dati_pdc!$C67=4,dati_bdv!$F$2:$F$65536,IF(dati_pdc!$C67=5,dati_bdv!$G$2:$G$65536,dati_bdv!$H$2:$H$65536))))),$A67,dati_bdv!N$2:N$65536)","v":0}]
[{"$f":"dati_pdc!A68","v":"76"},{"$f":"SUMIF(IF(dati_pdc!$C68=1,dati_bdv!$C$2:$C$65536,IF(dati_pdc!$C68=2,dati_bdv!$D$2:$D$65536,IF(dati_pdc!$C68=3,dati_bdv!$E$2:$E$65536,IF(dati_pdc!$C68=4,dati_bdv!$F$2:$F$65536,IF(dati_pdc!$C68=5,dati_bdv!$G$2:$G$65536,dati_bdv!$H$2:$H$65536))))),$A68,dati_bdv!J$2:J$65536)","v":-29525.599999999999},{"$f":"SUMIF(IF(dati_pdc!$C68=1,dati_bdv!$C$2:$C$65536,IF(dati_pdc!$C68=2,dati_bdv!$D$2:$D$65536,IF(dati_pdc!$C68=3,dati_bdv!$E$2:$E$65536,IF(dati_pdc!$C68=4,dati_bdv!$F$2:$F$65536,IF(dati_pdc!$C68=5,dati_bdv!$G$2:$G$65536,dati_bdv!$H$2:$H$65536))))),$A68,dati_bdv!K$2:K$65536)","v":0},{"$f":"SUMIF(IF(dati_pdc!$C68=1,dati_bdv!$C$2:$C$65536,IF(dati_pdc!$C68=2,dati_bdv!$D$2:$D$65536,IF(dati_pdc!$C68=3,dati_bdv!$E$2:$E$65536,IF(dati_pdc!$C68=4,dati_bdv!$F$2:$F$65536,IF(dati_pdc!$C68=5,dati_bdv!$G$2:$G$65536,dati_bdv!$H$2:$H$65536))))),$A68,dati_bdv!L$2:L$65536)","v":0},{"$f":"SUMIF(IF(dati_pdc!$C68=1,dati_bdv!$C$2:$C$65536,IF(dati_pdc!$C68=2,dati_bdv!$D$2:$D$65536,IF(dati_pdc!$C68=3,dati_bdv!$E$2:$E$65536,IF(dati_pdc!$C68=4,dati_bdv!$F$2:$F$65536,IF(dati_pdc!$C68=5,dati_bdv!$G$2:$G$65536,dati_bdv!$H$2:$H$65536))))),$A68,dati_bdv!M$2:M$65536)","v":0},{"$f":"SUMIF(IF(dati_pdc!$C68=1,dati_bdv!$C$2:$C$65536,IF(dati_pdc!$C68=2,dati_bdv!$D$2:$D$65536,IF(dati_pdc!$C68=3,dati_bdv!$E$2:$E$65536,IF(dati_pdc!$C68=4,dati_bdv!$F$2:$F$65536,IF(dati_pdc!$C68=5,dati_bdv!$G$2:$G$65536,dati_bdv!$H$2:$H$65536))))),$A68,dati_bdv!N$2:N$65536)","v":0}]
[{"$f":"dati_pdc!A69","v":"7609"},{"$f":"SUMIF(IF(dati_pdc!$C69=1,dati_bdv!$C$2:$C$65536,IF(dati_pdc!$C69=2,dati_bdv!$D$2:$D$65536,IF(dati_pdc!$C69=3,dati_bdv!$E$2:$E$65536,IF(dati_pdc!$C69=4,dati_bdv!$F$2:$F$65536,IF(dati_pdc!$C69=5,dati_bdv!$G$2:$G$65536,dati_bdv!$H$2:$H$65536))))),$A69,dati_bdv!J$2:J$65536)","v":-29525.599999999999},{"$f":"SUMIF(IF(dati_pdc!$C69=1,dati_bdv!$C$2:$C$65536,IF(dati_pdc!$C69=2,dati_bdv!$D$2:$D$65536,IF(dati_pdc!$C69=3,dati_bdv!$E$2:$E$65536,IF(dati_pdc!$C69=4,dati_bdv!$F$2:$F$65536,IF(dati_pdc!$C69=5,dati_bdv!$G$2:$G$65536,dati_bdv!$H$2:$H$65536))))),$A69,dati_bdv!K$2:K$65536)","v":0},{"$f":"SUMIF(IF(dati_pdc!$C69=1,dati_bdv!$C$2:$C$65536,IF(dati_pdc!$C69=2,dati_bdv!$D$2:$D$65536,IF(dati_pdc!$C69=3,dati_bdv!$E$2:$E$65536,IF(dati_pdc!$C69=4,dati_bdv!$F$2:$F$65536,IF(dati_pdc!$C69=5,dati_bdv!$G$2:$G$65536,dati_bdv!$H$2:$H$65536))))),$A69,dati_bdv!L$2:L$65536)","v":0},{"$f":"SUMIF(IF(dati_pdc!$C69=1,dati_bdv!$C$2:$C$65536,IF(dati_pdc!$C69=2,dati_bdv!$D$2:$D$65536,IF(dati_pdc!$C69=3,dati_bdv!$E$2:$E$65536,IF(dati_pdc!$C69=4,dati_bdv!$F$2:$F$65536,IF(dati_pdc!$C69=5,dati_bdv!$G$2:$G$65536,dati_bdv!$H$2:$H$65536))))),$A69,dati_bdv!M$2:M$65536)","v":0},{"$f":"SUMIF(IF(dati_pdc!$C69=1,dati_bdv!$C$2:$C$65536,IF(dati_pdc!$C69=2,dati_bdv!$D$2:$D$65536,IF(dati_pdc!$C69=3,dati_bdv!$E$2:$E$65536,IF(dati_pdc!$C69=4,dati_bdv!$F$2:$F$65536,IF(dati_pdc!$C69=5,dati_bdv!$G$2:$G$65536,dati_bdv!$H$2:$H$65536))))),$A69,dati_bdv!N$2:N$65536)","v":0}]
[{"$f":"dati_pdc!A70","v":"760901"},{"$f":"SUMIF(IF(dati_pdc!$C70=1,dati_bdv!$C$2:$C$65536,IF(dati_pdc!$C70=2,dati_bdv!$D$2:$D$65536,IF(dati_pdc!$C70=3,dati_bdv!$E$2:$E$65536,IF(dati_pdc!$C70=4,dati_bdv!$F$2:$F$65536,IF(dati_pdc!$C70=5,dati_bdv!$G$2:$G$65536,dati_bdv!$H$2:$H$65536))))),$A70,dati_bdv!J$2:J$65536)","v":-29525.599999999999},{"$f":"SUMIF(IF(dati_pdc!$C70=1,dati_bdv!$C$2:$C$65536,IF(dati_pdc!$C70=2,dati_bdv!$D$2:$D$65536,IF(dati_pdc!$C70=3,dati_bdv!$E$2:$E$65536,IF(dati_pdc!$C70=4,dati_bdv!$F$2:$F$65536,IF(dati_pdc!$C70=5,dati_bdv!$G$2:$G$65536,dati_bdv!$H$2:$H$65536))))),$A70,dati_bdv!K$2:K$65536)","v":0},{"$f":"SUMIF(IF(dati_pdc!$C70=1,dati_bdv!$C$2:$C$65536,IF(dati_pdc!$C70=2,dati_bdv!$D$2:$D$65536,IF(dati_pdc!$C70=3,dati_bdv!$E$2:$E$65536,IF(dati_pdc!$C70=4,dati_bdv!$F$2:$F$65536,IF(dati_pdc!$C70=5,dati_bdv!$G$2:$G$65536,dati_bdv!$H$2:$H$65536))))),$A70,dati_bdv!L$2:L$65536)","v":0},{"$f":"SUMIF(IF(dati_pdc!$C70=1,dati_bdv!$C$2:$C$65536,IF(dati_pdc!$C70=2,dati_bdv!$D$2:$D$65536,IF(dati_pdc!$C70=3,dati_bdv!$E$2:$E$65536,IF(dati_pdc!$C70=4,dati_bdv!$F$2:$F$65536,IF(dati_pdc!$C70=5,dati_bdv!$G$2:$G$65536,dati_bdv!$H$2:$H$65536))))),$A70,dati_bdv!M$2:M$65536)","v":0},{"$f":"SUMIF(IF(dati_pdc!$C70=1,dati_bdv!$C$2:$C$65536,IF(dati_pdc!$C70=2,dati_bdv!$D$2:$D$65536,IF(dati_pdc!$C70=3,dati_bdv!$E$2:$E$65536,IF(dati_pdc!$C70=4,dati_bdv!$F$2:$F$65536,IF(dati_pdc!$C70=5,dati_bdv!$G$2:$G$65536,dati_bdv!$H$2:$H$65536))))),$A70,dati_bdv!N$2:N$65536)","v":0}]
[{"$f":"dati_pdc!A71","v":"80"},{"$f":"SUMIF(IF(dati_pdc!$C71=1,dati_bdv!$C$2:$C$65536,IF(dati_pdc!$C71=2,dati_bdv!$D$2:$D$65536,IF(dati_pdc!$C71=3,dati_bdv!$E$2:$E$65536,IF(dati_pdc!$C71=4,dati_bdv!$F$2:$F$65536,IF(dati_pdc!$C71=5,dati_bdv!$G$2:$G$65536,dati_bdv!$H$2:$H$65536))))),$A71,dati_bdv!J$2:J$65536)","v":30.5},{"$f":"SUMIF(IF(dati_pdc!$C71=1,dati_bdv!$C$2:$C$65536,IF(dati_pdc!$C71=2,dati_bdv!$D$2:$D$65536,IF(dati_pdc!$C71=3,dati_bdv!$E$2:$E$65536,IF(dati_pdc!$C71=4,dati_bdv!$F$2:$F$65536,IF(dati_pdc!$C71=5,dati_bdv!$G$2:$G$65536,dati_bdv!$H$2:$H$65536))))),$A71,dati_bdv!K$2:K$65536)","v":30.5},{"$f":"SUMIF(IF(dati_pdc!$C71=1,dati_bdv!$C$2:$C$65536,IF(dati_pdc!$C71=2,dati_bdv!$D$2:$D$65536,IF(dati_pdc!$C71=3,dati_bdv!$E$2:$E$65536,IF(dati_pdc!$C71=4,dati_bdv!$F$2:$F$65536,IF(dati_pdc!$C71=5,dati_bdv!$G$2:$G$65536,dati_bdv!$H$2:$H$65536))))),$A71,dati_bdv!L$2:L$65536)","v":0},{"$f":"SUMIF(IF(dati_pdc!$C71=1,dati_bdv!$C$2:$C$65536,IF(dati_pdc!$C71=2,dati_bdv!$D$2:$D$65536,IF(dati_pdc!$C71=3,dati_bdv!$E$2:$E$65536,IF(dati_pdc!$C71=4,dati_bdv!$F$2:$F$65536,IF(dati_pdc!$C71=5,dati_bdv!$G$2:$G$65536,dati_bdv!$H$2:$H$65536))))),$A71,dati_bdv!M$2:M$65536)","v":0},{"$f":"SUMIF(IF(dati_pdc!$C71=1,dati_bdv!$C$2:$C$65536,IF(dati_pdc!$C71=2,dati_bdv!$D$2:$D$65536,IF(dati_pdc!$C71=3,dati_bdv!$E$2:$E$65536,IF(dati_pdc!$C71=4,dati_bdv!$F$2:$F$65536,IF(dati_pdc!$C71=5,dati_bdv!$G$2:$G$65536,dati_bdv!$H$2:$H$65536))))),$A71,dati_bdv!N$2:N$65536)","v":0}]
[{"$f":"dati_pdc!A72","v":"8007"},{"$f":"SUMIF(IF(dati_pdc!$C72=1,dati_bdv!$C$2:$C$65536,IF(dati_pdc!$C72=2,dati_bdv!$D$2:$D$65536,IF(dati_pdc!$C72=3,dati_bdv!$E$2:$E$65536,IF(dati_pdc!$C72=4,dati_bdv!$F$2:$F$65536,IF(dati_pdc!$C72=5,dati_bdv!$G$2:$G$65536,dati_bdv!$H$2:$H$65536))))),$A72,dati_bdv!J$2:J$65536)","v":30.5},{"$f":"SUMIF(IF(dati_pdc!$C72=1,dati_bdv!$C$2:$C$65536,IF(dati_pdc!$C72=2,dati_bdv!$D$2:$D$65536,IF(dati_pdc!$C72=3,dati_bdv!$E$2:$E$65536,IF(dati_pdc!$C72=4,dati_bdv!$F$2:$F$65536,IF(dati_pdc!$C72=5,dati_bdv!$G$2:$G$65536,dati_bdv!$H$2:$H$65536))))),$A72,dati_bdv!K$2:K$65536)","v":30.5},{"$f":"SUMIF(IF(dati_pdc!$C72=1,dati_bdv!$C$2:$C$65536,IF(dati_pdc!$C72=2,dati_bdv!$D$2:$D$65536,IF(dati_pdc!$C72=3,dati_bdv!$E$2:$E$65536,IF(dati_pdc!$C72=4,dati_bdv!$F$2:$F$65536,IF(dati_pdc!$C72=5,dati_bdv!$G$2:$G$65536,dati_bdv!$H$2:$H$65536))))),$A72,dati_bdv!L$2:L$65536)","v":0},{"$f":"SUMIF(IF(dati_pdc!$C72=1,dati_bdv!$C$2:$C$65536,IF(dati_pdc!$C72=2,dati_bdv!$D$2:$D$65536,IF(dati_pdc!$C72=3,dati_bdv!$E$2:$E$65536,IF(dati_pdc!$C72=4,dati_bdv!$F$2:$F$65536,IF(dati_pdc!$C72=5,dati_bdv!$G$2:$G$65536,dati_bdv!$H$2:$H$65536))))),$A72,dati_bdv!M$2:M$65536)","v":0},{"$f":"SUMIF(IF(dati_pdc!$C72=1,dati_bdv!$C$2:$C$65536,IF(dati_pdc!$C72=2,dati_bdv!$D$2:$D$65536,IF(dati_pdc!$C72=3,dati_bdv!$E$2:$E$65536,IF(dati_pdc!$C72=4,dati_bdv!$F$2:$F$65536,IF(dati_pdc!$C72=5,dati_bdv!$G$2:$G$65536,dati_bdv!$H$2:$H$65536))))),$A72,dati_bdv!N$2:N$65536)","v":0}]
[{"$f":"dati_pdc!A73","v":"800701"},{"$f":"SUMIF(IF(dati_pdc!$C73=1,dati_bdv!$C$2:$C$65536,IF(dati_pdc!$C73=2,dati_bdv!$D$2:$D$65536,IF(dati_pdc!$C73=3,dati_bdv!$E$2:$E$65536,IF(dati_pdc!$C73=4,dati_bdv!$F$2:$F$65536,IF(dati_pdc!$C73=5,dati_bdv!$G$2:$G$65536,dati_bdv!$H$2:$H$65536))))),$A73,dati_bdv!J$2:J$65536)","v":30.5},{"$f":"SUMIF(IF(dati_pdc!$C73=1,dati_bdv!$C$2:$C$65536,IF(dati_pdc!$C73=2,dati_bdv!$D$2:$D$65536,IF(dati_pdc!$C73=3,dati_bdv!$E$2:$E$65536,IF(dati_pdc!$C73=4,dati_bdv!$F$2:$F$65536,IF(dati_pdc!$C73=5,dati_bdv!$G$2:$G$65536,dati_bdv!$H$2:$H$65536))))),$A73,dati_bdv!K$2:K$65536)","v":30.5},{"$f":"SUMIF(IF(dati_pdc!$C73=1,dati_bdv!$C$2:$C$65536,IF(dati_pdc!$C73=2,dati_bdv!$D$2:$D$65536,IF(dati_pdc!$C73=3,dati_bdv!$E$2:$E$65536,IF(dati_pdc!$C73=4,dati_bdv!$F$2:$F$65536,IF(dati_pdc!$C73=5,dati_bdv!$G$2:$G$65536,dati_bdv!$H$2:$H$65536))))),$A73,dati_bdv!L$2:L$65536)","v":0},{"$f":"SUMIF(IF(dati_pdc!$C73=1,dati_bdv!$C$2:$C$65536,IF(dati_pdc!$C73=2,dati_bdv!$D$2:$D$65536,IF(dati_pdc!$C73=3,dati_bdv!$E$2:$E$65536,IF(dati_pdc!$C73=4,dati_bdv!$F$2:$F$65536,IF(dati_pdc!$C73=5,dati_bdv!$G$2:$G$65536,dati_bdv!$H$2:$H$65536))))),$A73,dati_bdv!M$2:M$65536)","v":0},{"$f":"SUMIF(IF(dati_pdc!$C73=1,dati_bdv!$C$2:$C$65536,IF(dati_pdc!$C73=2,dati_bdv!$D$2:$D$65536,IF(dati_pdc!$C73=3,dati_bdv!$E$2:$E$65536,IF(dati_pdc!$C73=4,dati_bdv!$F$2:$F$65536,IF(dati_pdc!$C73=5,dati_bdv!$G$2:$G$65536,dati_bdv!$H$2:$H$65536))))),$A73,dati_bdv!N$2:N$65536)","v":0}]
[{"$f":"dati_pdc!A74","v":"83"},{"$f":"SUMIF(IF(dati_pdc!$C74=1,dati_bdv!$C$2:$C$65536,IF(dati_pdc!$C74=2,dati_bdv!$D$2:$D$65536,IF(dati_pdc!$C74=3,dati_bdv!$E$2:$E$65536,IF(dati_pdc!$C74=4,dati_bdv!$F$2:$F$65536,IF(dati_pdc!$C74=5,dati_bdv!$G$2:$G$65536,dati_bdv!$H$2:$H$65536))))),$A74,dati_bdv!J$2:J$65536)","v":560.23},{"$f":"SUMIF(IF(dati_pdc!$C74=1,dati_bdv!$C$2:$C$65536,IF(dati_pdc!$C74=2,dati_bdv!$D$2:$D$65536,IF(dati_pdc!$C74=3,dati_bdv!$E$2:$E$65536,IF(dati_pdc!$C74=4,dati_bdv!$F$2:$F$65536,IF(dati_pdc!$C74=5,dati_bdv!$G$2:$G$65536,dati_bdv!$H$2:$H$65536))))),$A74,dati_bdv!K$2:K$65536)","v":2147.0300000000002},{"$f":"SUMIF(IF(dati_pdc!$C74=1,dati_bdv!$C$2:$C$65536,IF(dati_pdc!$C74=2,dati_bdv!$D$2:$D$65536,IF(dati_pdc!$C74=3,dati_bdv!$E$2:$E$65536,IF(dati_pdc!$C74=4,dati_bdv!$F$2:$F$65536,IF(dati_pdc!$C74=5,dati_bdv!$G$2:$G$65536,dati_bdv!$H$2:$H$65536))))),$A74,dati_bdv!L$2:L$65536)","v":0},{"$f":"SUMIF(IF(dati_pdc!$C74=1,dati_bdv!$C$2:$C$65536,IF(dati_pdc!$C74=2,dati_bdv!$D$2:$D$65536,IF(dati_pdc!$C74=3,dati_bdv!$E$2:$E$65536,IF(dati_pdc!$C74=4,dati_bdv!$F$2:$F$65536,IF(dati_pdc!$C74=5,dati_bdv!$G$2:$G$65536,dati_bdv!$H$2:$H$65536))))),$A74,dati_bdv!M$2:M$65536)","v":0},{"$f":"SUMIF(IF(dati_pdc!$C74=1,dati_bdv!$C$2:$C$65536,IF(dati_pdc!$C74=2,dati_bdv!$D$2:$D$65536,IF(dati_pdc!$C74=3,dati_bdv!$E$2:$E$65536,IF(dati_pdc!$C74=4,dati_bdv!$F$2:$F$65536,IF(dati_pdc!$C74=5,dati_bdv!$G$2:$G$65536,dati_bdv!$H$2:$H$65536))))),$A74,dati_bdv!N$2:N$65536)","v":0}]
[{"$f":"dati_pdc!A75","v":"8305"},{"$f":"SUMIF(IF(dati_pdc!$C75=1,dati_bdv!$C$2:$C$65536,IF(dati_pdc!$C75=2,dati_bdv!$D$2:$D$65536,IF(dati_pdc!$C75=3,dati_bdv!$E$2:$E$65536,IF(dati_pdc!$C75=4,dati_bdv!$F$2:$F$65536,IF(dati_pdc!$C75=5,dati_bdv!$G$2:$G$65536,dati_bdv!$H$2:$H$65536))))),$A75,dati_bdv!J$2:J$65536)","v":451.23},{"$f":"SUMIF(IF(dati_pdc!$C75=1,dati_bdv!$C$2:$C$65536,IF(dati_pdc!$C75=2,dati_bdv!$D$2:$D$65536,IF(dati_pdc!$C75=3,dati_bdv!$E$2:$E$65536,IF(dati_pdc!$C75=4,dati_bdv!$F$2:$F$65536,IF(dati_pdc!$C75=5,dati_bdv!$G$2:$G$65536,dati_bdv!$H$2:$H$65536))))),$A75,dati_bdv!K$2:K$65536)","v":1742.5700000000002},{"$f":"SUMIF(IF(dati_pdc!$C75=1,dati_bdv!$C$2:$C$65536,IF(dati_pdc!$C75=2,dati_bdv!$D$2:$D$65536,IF(dati_pdc!$C75=3,dati_bdv!$E$2:$E$65536,IF(dati_pdc!$C75=4,dati_bdv!$F$2:$F$65536,IF(dati_pdc!$C75=5,dati_bdv!$G$2:$G$65536,dati_bdv!$H$2:$H$65536))))),$A75,dati_bdv!L$2:L$65536)","v":0},{"$f":"SUMIF(IF(dati_pdc!$C75=1,dati_bdv!$C$2:$C$65536,IF(dati_pdc!$C75=2,dati_bdv!$D$2:$D$65536,IF(dati_pdc!$C75=3,dati_bdv!$E$2:$E$65536,IF(dati_pdc!$C75=4,dati_bdv!$F$2:$F$65536,IF(dati_pdc!$C75=5,dati_bdv!$G$2:$G$65536,dati_bdv!$H$2:$H$65536))))),$A75,dati_bdv!M$2:M$65536)","v":0},{"$f":"SUMIF(IF(dati_pdc!$C75=1,dati_bdv!$C$2:$C$65536,IF(dati_pdc!$C75=2,dati_bdv!$D$2:$D$65536,IF(dati_pdc!$C75=3,dati_bdv!$E$2:$E$65536,IF(dati_pdc!$C75=4,dati_bdv!$F$2:$F$65536,IF(dati_pdc!$C75=5,dati_bdv!$G$2:$G$65536,dati_bdv!$H$2:$H$65536))))),$A75,dati_bdv!N$2:N$65536)","v":0}]
[{"$f":"dati_pdc!A76","v":"830504"},{"$f":"SUMIF(IF(dati_pdc!$C76=1,dati_bdv!$C$2:$C$65536,IF(dati_pdc!$C76=2,dati_bdv!$D$2:$D$65536,IF(dati_pdc!$C76=3,dati_bdv!$E$2:$E$65536,IF(dati_pdc!$C76=4,dati_bdv!$F$2:$F$65536,IF(dati_pdc!$C76=5,dati_bdv!$G$2:$G$65536,dati_bdv!$H$2:$H$65536))))),$A76,dati_bdv!J$2:J$65536)","v":0},{"$f":"SUMIF(IF(dati_pdc!$C76=1,dati_bdv!$C$2:$C$65536,IF(dati_pdc!$C76=2,dati_bdv!$D$2:$D$65536,IF(dati_pdc!$C76=3,dati_bdv!$E$2:$E$65536,IF(dati_pdc!$C76=4,dati_bdv!$F$2:$F$65536,IF(dati_pdc!$C76=5,dati_bdv!$G$2:$G$65536,dati_bdv!$H$2:$H$65536))))),$A76,dati_bdv!K$2:K$65536)","v":843},{"$f":"SUMIF(IF(dati_pdc!$C76=1,dati_bdv!$C$2:$C$65536,IF(dati_pdc!$C76=2,dati_bdv!$D$2:$D$65536,IF(dati_pdc!$C76=3,dati_bdv!$E$2:$E$65536,IF(dati_pdc!$C76=4,dati_bdv!$F$2:$F$65536,IF(dati_pdc!$C76=5,dati_bdv!$G$2:$G$65536,dati_bdv!$H$2:$H$65536))))),$A76,dati_bdv!L$2:L$65536)","v":0},{"$f":"SUMIF(IF(dati_pdc!$C76=1,dati_bdv!$C$2:$C$65536,IF(dati_pdc!$C76=2,dati_bdv!$D$2:$D$65536,IF(dati_pdc!$C76=3,dati_bdv!$E$2:$E$65536,IF(dati_pdc!$C76=4,dati_bdv!$F$2:$F$65536,IF(dati_pdc!$C76=5,dati_bdv!$G$2:$G$65536,dati_bdv!$H$2:$H$65536))))),$A76,dati_bdv!M$2:M$65536)","v":0},{"$f":"SUMIF(IF(dati_pdc!$C76=1,dati_bdv!$C$2:$C$65536,IF(dati_pdc!$C76=2,dati_bdv!$D$2:$D$65536,IF(dati_pdc!$C76=3,dati_bdv!$E$2:$E$65536,IF(dati_pdc!$C76=4,dati_bdv!$F$2:$F$65536,IF(dati_pdc!$C76=5,dati_bdv!$G$2:$G$65536,dati_bdv!$H$2:$H$65536))))),$A76,dati_bdv!N$2:N$65536)","v":0}]
[{"$f":"dati_pdc!A77","v":"830511"},{"$f":"SUMIF(IF(dati_pdc!$C77=1,dati_bdv!$C$2:$C$65536,IF(dati_pdc!$C77=2,dati_bdv!$D$2:$D$65536,IF(dati_pdc!$C77=3,dati_bdv!$E$2:$E$65536,IF(dati_pdc!$C77=4,dati_bdv!$F$2:$F$65536,IF(dati_pdc!$C77=5,dati_bdv!$G$2:$G$65536,dati_bdv!$H$2:$H$65536))))),$A77,dati_bdv!J$2:J$65536)","v":0},{"$f":"SUMIF(IF(dati_pdc!$C77=1,dati_bdv!$C$2:$C$65536,IF(dati_pdc!$C77=2,dati_bdv!$D$2:$D$65536,IF(dati_pdc!$C77=3,dati_bdv!$E$2:$E$65536,IF(dati_pdc!$C77=4,dati_bdv!$F$2:$F$65536,IF(dati_pdc!$C77=5,dati_bdv!$G$2:$G$65536,dati_bdv!$H$2:$H$65536))))),$A77,dati_bdv!K$2:K$65536)","v":327.7},{"$f":"SUMIF(IF(dati_pdc!$C77=1,dati_bdv!$C$2:$C$65536,IF(dati_pdc!$C77=2,dati_bdv!$D$2:$D$65536,IF(dati_pdc!$C77=3,dati_bdv!$E$2:$E$65536,IF(dati_pdc!$C77=4,dati_bdv!$F$2:$F$65536,IF(dati_pdc!$C77=5,dati_bdv!$G$2:$G$65536,dati_bdv!$H$2:$H$65536))))),$A77,dati_bdv!L$2:L$65536)","v":0},{"$f":"SUMIF(IF(dati_pdc!$C77=1,dati_bdv!$C$2:$C$65536,IF(dati_pdc!$C77=2,dati_bdv!$D$2:$D$65536,IF(dati_pdc!$C77=3,dati_bdv!$E$2:$E$65536,IF(dati_pdc!$C77=4,dati_bdv!$F$2:$F$65536,IF(dati_pdc!$C77=5,dati_bdv!$G$2:$G$65536,dati_bdv!$H$2:$H$65536))))),$A77,dati_bdv!M$2:M$65536)","v":0},{"$f":"SUMIF(IF(dati_pdc!$C77=1,dati_bdv!$C$2:$C$65536,IF(dati_pdc!$C77=2,dati_bdv!$D$2:$D$65536,IF(dati_pdc!$C77=3,dati_bdv!$E$2:$E$65536,IF(dati_pdc!$C77=4,dati_bdv!$F$2:$F$65536,IF(dati_pdc!$C77=5,dati_bdv!$G$2:$G$65536,dati_bdv!$H$2:$H$65536))))),$A77,dati_bdv!N$2:N$65536)","v":0}]
[{"$f":"dati_pdc!A78","v":"830521"},{"$f":"SUMIF(IF(dati_pdc!$C78=1,dati_bdv!$C$2:$C$65536,IF(dati_pdc!$C78=2,dati_bdv!$D$2:$D$65536,IF(dati_pdc!$C78=3,dati_bdv!$E$2:$E$65536,IF(dati_pdc!$C78=4,dati_bdv!$F$2:$F$65536,IF(dati_pdc!$C78=5,dati_bdv!$G$2:$G$65536,dati_bdv!$H$2:$H$65536))))),$A78,dati_bdv!J$2:J$65536)","v":417.87},{"$f":"SUMIF(IF(dati_pdc!$C78=1,dati_bdv!$C$2:$C$65536,IF(dati_pdc!$C78=2,dati_bdv!$D$2:$D$65536,IF(dati_pdc!$C78=3,dati_bdv!$E$2:$E$65536,IF(dati_pdc!$C78=4,dati_bdv!$F$2:$F$65536,IF(dati_pdc!$C78=5,dati_bdv!$G$2:$G$65536,dati_bdv!$H$2:$H$65536))))),$A78,dati_bdv!K$2:K$65536)","v":471.87},{"$f":"SUMIF(IF(dati_pdc!$C78=1,dati_bdv!$C$2:$C$65536,IF(dati_pdc!$C78=2,dati_bdv!$D$2:$D$65536,IF(dati_pdc!$C78=3,dati_bdv!$E$2:$E$65536,IF(dati_pdc!$C78=4,dati_bdv!$F$2:$F$65536,IF(dati_pdc!$C78=5,dati_bdv!$G$2:$G$65536,dati_bdv!$H$2:$H$65536))))),$A78,dati_bdv!L$2:L$65536)","v":0},{"$f":"SUMIF(IF(dati_pdc!$C78=1,dati_bdv!$C$2:$C$65536,IF(dati_pdc!$C78=2,dati_bdv!$D$2:$D$65536,IF(dati_pdc!$C78=3,dati_bdv!$E$2:$E$65536,IF(dati_pdc!$C78=4,dati_bdv!$F$2:$F$65536,IF(dati_pdc!$C78=5,dati_bdv!$G$2:$G$65536,dati_bdv!$H$2:$H$65536))))),$A78,dati_bdv!M$2:M$65536)","v":0},{"$f":"SUMIF(IF(dati_pdc!$C78=1,dati_bdv!$C$2:$C$65536,IF(dati_pdc!$C78=2,dati_bdv!$D$2:$D$65536,IF(dati_pdc!$C78=3,dati_bdv!$E$2:$E$65536,IF(dati_pdc!$C78=4,dati_bdv!$F$2:$F$65536,IF(dati_pdc!$C78=5,dati_bdv!$G$2:$G$65536,dati_bdv!$H$2:$H$65536))))),$A78,dati_bdv!N$2:N$65536)","v":0}]
[{"$f":"dati_pdc!A79","v":"830549"},{"$f":"SUMIF(IF(dati_pdc!$C79=1,dati_bdv!$C$2:$C$65536,IF(dati_pdc!$C79=2,dati_bdv!$D$2:$D$65536,IF(dati_pdc!$C79=3,dati_bdv!$E$2:$E$65536,IF(dati_pdc!$C79=4,dati_bdv!$F$2:$F$65536,IF(dati_pdc!$C79=5,dati_bdv!$G$2:$G$65536,dati_bdv!$H$2:$H$65536))))),$A79,dati_bdv!J$2:J$65536)","v":33.36},{"$f":"SUMIF(IF(dati_pdc!$C79=1,dati_bdv!$C$2:$C$65536,IF(dati_pdc!$C79=2,dati_bdv!$D$2:$D$65536,IF(dati_pdc!$C79=3,dati_bdv!$E$2:$E$65536,IF(dati_pdc!$C79=4,dati_bdv!$F$2:$F$65536,IF(dati_pdc!$C79=5,dati_bdv!$G$2:$G$65536,dati_bdv!$H$2:$H$65536))))),$A79,dati_bdv!K$2:K$65536)","v":100},{"$f":"SUMIF(IF(dati_pdc!$C79=1,dati_bdv!$C$2:$C$65536,IF(dati_pdc!$C79=2,dati_bdv!$D$2:$D$65536,IF(dati_pdc!$C79=3,dati_bdv!$E$2:$E$65536,IF(dati_pdc!$C79=4,dati_bdv!$F$2:$F$65536,IF(dati_pdc!$C79=5,dati_bdv!$G$2:$G$65536,dati_bdv!$H$2:$H$65536))))),$A79,dati_bdv!L$2:L$65536)","v":0},{"$f":"SUMIF(IF(dati_pdc!$C79=1,dati_bdv!$C$2:$C$65536,IF(dati_pdc!$C79=2,dati_bdv!$D$2:$D$65536,IF(dati_pdc!$C79=3,dati_bdv!$E$2:$E$65536,IF(dati_pdc!$C79=4,dati_bdv!$F$2:$F$65536,IF(dati_pdc!$C79=5,dati_bdv!$G$2:$G$65536,dati_bdv!$H$2:$H$65536))))),$A79,dati_bdv!M$2:M$65536)","v":0},{"$f":"SUMIF(IF(dati_pdc!$C79=1,dati_bdv!$C$2:$C$65536,IF(dati_pdc!$C79=2,dati_bdv!$D$2:$D$65536,IF(dati_pdc!$C79=3,dati_bdv!$E$2:$E$65536,IF(dati_pdc!$C79=4,dati_bdv!$F$2:$F$65536,IF(dati_pdc!$C79=5,dati_bdv!$G$2:$G$65536,dati_bdv!$H$2:$H$65536))))),$A79,dati_bdv!N$2:N$65536)","v":0}]
[{"$f":"dati_pdc!A80","v":"8307"},{"$f":"SUMIF(IF(dati_pdc!$C80=1,dati_bdv!$C$2:$C$65536,IF(dati_pdc!$C80=2,dati_bdv!$D$2:$D$65536,IF(dati_pdc!$C80=3,dati_bdv!$E$2:$E$65536,IF(dati_pdc!$C80=4,dati_bdv!$F$2:$F$65536,IF(dati_pdc!$C80=5,dati_bdv!$G$2:$G$65536,dati_bdv!$H$2:$H$65536))))),$A80,dati_bdv!J$2:J$65536)","v":109},{"$f":"SUMIF(IF(dati_pdc!$C80=1,dati_bdv!$C$2:$C$65536,IF(dati_pdc!$C80=2,dati_bdv!$D$2:$D$65536,IF(dati_pdc!$C80=3,dati_bdv!$E$2:$E$65536,IF(dati_pdc!$C80=4,dati_bdv!$F$2:$F$65536,IF(dati_pdc!$C80=5,dati_bdv!$G$2:$G$65536,dati_bdv!$H$2:$H$65536))))),$A80,dati_bdv!K$2:K$65536)","v":404.46},{"$f":"SUMIF(IF(dati_pdc!$C80=1,dati_bdv!$C$2:$C$65536,IF(dati_pdc!$C80=2,dati_bdv!$D$2:$D$65536,IF(dati_pdc!$C80=3,dati_bdv!$E$2:$E$65536,IF(dati_pdc!$C80=4,dati_bdv!$F$2:$F$65536,IF(dati_pdc!$C80=5,dati_bdv!$G$2:$G$65536,dati_bdv!$H$2:$H$65536))))),$A80,dati_bdv!L$2:L$65536)","v":0},{"$f":"SUMIF(IF(dati_pdc!$C80=1,dati_bdv!$C$2:$C$65536,IF(dati_pdc!$C80=2,dati_bdv!$D$2:$D$65536,IF(dati_pdc!$C80=3,dati_bdv!$E$2:$E$65536,IF(dati_pdc!$C80=4,dati_bdv!$F$2:$F$65536,IF(dati_pdc!$C80=5,dati_bdv!$G$2:$G$65536,dati_bdv!$H$2:$H$65536))))),$A80,dati_bdv!M$2:M$65536)","v":0},{"$f":"SUMIF(IF(dati_pdc!$C80=1,dati_bdv!$C$2:$C$65536,IF(dati_pdc!$C80=2,dati_bdv!$D$2:$D$65536,IF(dati_pdc!$C80=3,dati_bdv!$E$2:$E$65536,IF(dati_pdc!$C80=4,dati_bdv!$F$2:$F$65536,IF(dati_pdc!$C80=5,dati_bdv!$G$2:$G$65536,dati_bdv!$H$2:$H$65536))))),$A80,dati_bdv!N$2:N$65536)","v":0}]
[{"$f":"dati_pdc!A81","v":"830725"},{"$f":"SUMIF(IF(dati_pdc!$C81=1,dati_bdv!$C$2:$C$65536,IF(dati_pdc!$C81=2,dati_bdv!$D$2:$D$65536,IF(dati_pdc!$C81=3,dati_bdv!$E$2:$E$65536,IF(dati_pdc!$C81=4,dati_bdv!$F$2:$F$65536,IF(dati_pdc!$C81=5,dati_bdv!$G$2:$G$65536,dati_bdv!$H$2:$H$65536))))),$A81,dati_bdv!J$2:J$65536)","v":0},{"$f":"SUMIF(IF(dati_pdc!$C81=1,dati_bdv!$C$2:$C$65536,IF(dati_pdc!$C81=2,dati_bdv!$D$2:$D$65536,IF(dati_pdc!$C81=3,dati_bdv!$E$2:$E$65536,IF(dati_pdc!$C81=4,dati_bdv!$F$2:$F$65536,IF(dati_pdc!$C81=5,dati_bdv!$G$2:$G$65536,dati_bdv!$H$2:$H$65536))))),$A81,dati_bdv!K$2:K$65536)","v":0.31},{"$f":"SUMIF(IF(dati_pdc!$C81=1,dati_bdv!$C$2:$C$65536,IF(dati_pdc!$C81=2,dati_bdv!$D$2:$D$65536,IF(dati_pdc!$C81=3,dati_bdv!$E$2:$E$65536,IF(dati_pdc!$C81=4,dati_bdv!$F$2:$F$65536,IF(dati_pdc!$C81=5,dati_bdv!$G$2:$G$65536,dati_bdv!$H$2:$H$65536))))),$A81,dati_bdv!L$2:L$65536)","v":0},{"$f":"SUMIF(IF(dati_pdc!$C81=1,dati_bdv!$C$2:$C$65536,IF(dati_pdc!$C81=2,dati_bdv!$D$2:$D$65536,IF(dati_pdc!$C81=3,dati_bdv!$E$2:$E$65536,IF(dati_pdc!$C81=4,dati_bdv!$F$2:$F$65536,IF(dati_pdc!$C81=5,dati_bdv!$G$2:$G$65536,dati_bdv!$H$2:$H$65536))))),$A81,dati_bdv!M$2:M$65536)","v":0},{"$f":"SUMIF(IF(dati_pdc!$C81=1,dati_bdv!$C$2:$C$65536,IF(dati_pdc!$C81=2,dati_bdv!$D$2:$D$65536,IF(dati_pdc!$C81=3,dati_bdv!$E$2:$E$65536,IF(dati_pdc!$C81=4,dati_bdv!$F$2:$F$65536,IF(dati_pdc!$C81=5,dati_bdv!$G$2:$G$65536,dati_bdv!$H$2:$H$65536))))),$A81,dati_bdv!N$2:N$65536)","v":0}]
[{"$f":"dati_pdc!A82","v":"830751"},{"$f":"SUMIF(IF(dati_pdc!$C82=1,dati_bdv!$C$2:$C$65536,IF(dati_pdc!$C82=2,dati_bdv!$D$2:$D$65536,IF(dati_pdc!$C82=3,dati_bdv!$E$2:$E$65536,IF(dati_pdc!$C82=4,dati_bdv!$F$2:$F$65536,IF(dati_pdc!$C82=5,dati_bdv!$G$2:$G$65536,dati_bdv!$H$2:$H$65536))))),$A82,dati_bdv!J$2:J$65536)","v":109},{"$f":"SUMIF(IF(dati_pdc!$C82=1,dati_bdv!$C$2:$C$65536,IF(dati_pdc!$C82=2,dati_bdv!$D$2:$D$65536,IF(dati_pdc!$C82=3,dati_bdv!$E$2:$E$65536,IF(dati_pdc!$C82=4,dati_bdv!$F$2:$F$65536,IF(dati_pdc!$C82=5,dati_bdv!$G$2:$G$65536,dati_bdv!$H$2:$H$65536))))),$A82,dati_bdv!K$2:K$65536)","v":404.15},{"$f":"SUMIF(IF(dati_pdc!$C82=1,dati_bdv!$C$2:$C$65536,IF(dati_pdc!$C82=2,dati_bdv!$D$2:$D$65536,IF(dati_pdc!$C82=3,dati_bdv!$E$2:$E$65536,IF(dati_pdc!$C82=4,dati_bdv!$F$2:$F$65536,IF(dati_pdc!$C82=5,dati_bdv!$G$2:$G$65536,dati_bdv!$H$2:$H$65536))))),$A82,dati_bdv!L$2:L$65536)","v":0},{"$f":"SUMIF(IF(dati_pdc!$C82=1,dati_bdv!$C$2:$C$65536,IF(dati_pdc!$C82=2,dati_bdv!$D$2:$D$65536,IF(dati_pdc!$C82=3,dati_bdv!$E$2:$E$65536,IF(dati_pdc!$C82=4,dati_bdv!$F$2:$F$65536,IF(dati_pdc!$C82=5,dati_bdv!$G$2:$G$65536,dati_bdv!$H$2:$H$65536))))),$A82,dati_bdv!M$2:M$65536)","v":0},{"$f":"SUMIF(IF(dati_pdc!$C82=1,dati_bdv!$C$2:$C$65536,IF(dati_pdc!$C82=2,dati_bdv!$D$2:$D$65536,IF(dati_pdc!$C82=3,dati_bdv!$E$2:$E$65536,IF(dati_pdc!$C82=4,dati_bdv!$F$2:$F$65536,IF(dati_pdc!$C82=5,dati_bdv!$G$2:$G$65536,dati_bdv!$H$2:$H$65536))))),$A82,dati_bdv!N$2:N$65536)","v":0}]
[{"$f":"dati_pdc!A83","v":"85"},{"$f":"SUMIF(IF(dati_pdc!$C83=1,dati_bdv!$C$2:$C$65536,IF(dati_pdc!$C83=2,dati_bdv!$D$2:$D$65536,IF(dati_pdc!$C83=3,dati_bdv!$E$2:$E$65536,IF(dati_pdc!$C83=4,dati_bdv!$F$2:$F$65536,IF(dati_pdc!$C83=5,dati_bdv!$G$2:$G$65536,dati_bdv!$H$2:$H$65536))))),$A83,dati_bdv!J$2:J$65536)","v":-0.09},{"$f":"SUMIF(IF(dati_pdc!$C83=1,dati_bdv!$C$2:$C$65536,IF(dati_pdc!$C83=2,dati_bdv!$D$2:$D$65536,IF(dati_pdc!$C83=3,dati_bdv!$E$2:$E$65536,IF(dati_pdc!$C83=4,dati_bdv!$F$2:$F$65536,IF(dati_pdc!$C83=5,dati_bdv!$G$2:$G$65536,dati_bdv!$H$2:$H$65536))))),$A83,dati_bdv!K$2:K$65536)","v":-0.53},{"$f":"SUMIF(IF(dati_pdc!$C83=1,dati_bdv!$C$2:$C$65536,IF(dati_pdc!$C83=2,dati_bdv!$D$2:$D$65536,IF(dati_pdc!$C83=3,dati_bdv!$E$2:$E$65536,IF(dati_pdc!$C83=4,dati_bdv!$F$2:$F$65536,IF(dati_pdc!$C83=5,dati_bdv!$G$2:$G$65536,dati_bdv!$H$2:$H$65536))))),$A83,dati_bdv!L$2:L$65536)","v":0},{"$f":"SUMIF(IF(dati_pdc!$C83=1,dati_bdv!$C$2:$C$65536,IF(dati_pdc!$C83=2,dati_bdv!$D$2:$D$65536,IF(dati_pdc!$C83=3,dati_bdv!$E$2:$E$65536,IF(dati_pdc!$C83=4,dati_bdv!$F$2:$F$65536,IF(dati_pdc!$C83=5,dati_bdv!$G$2:$G$65536,dati_bdv!$H$2:$H$65536))))),$A83,dati_bdv!M$2:M$65536)","v":0},{"$f":"SUMIF(IF(dati_pdc!$C83=1,dati_bdv!$C$2:$C$65536,IF(dati_pdc!$C83=2,dati_bdv!$D$2:$D$65536,IF(dati_pdc!$C83=3,dati_bdv!$E$2:$E$65536,IF(dati_pdc!$C83=4,dati_bdv!$F$2:$F$65536,IF(dati_pdc!$C83=5,dati_bdv!$G$2:$G$65536,dati_bdv!$H$2:$H$65536))))),$A83,dati_bdv!N$2:N$65536)","v":0}]
[{"$f":"dati_pdc!A84","v":"8511"},{"$f":"SUMIF(IF(dati_pdc!$C84=1,dati_bdv!$C$2:$C$65536,IF(dati_pdc!$C84=2,dati_bdv!$D$2:$D$65536,IF(dati_pdc!$C84=3,dati_bdv!$E$2:$E$65536,IF(dati_pdc!$C84=4,dati_bdv!$F$2:$F$65536,IF(dati_pdc!$C84=5,dati_bdv!$G$2:$G$65536,dati_bdv!$H$2:$H$65536))))),$A84,dati_bdv!J$2:J$65536)","v":-0.09},{"$f":"SUMIF(IF(dati_pdc!$C84=1,dati_bdv!$C$2:$C$65536,IF(dati_pdc!$C84=2,dati_bdv!$D$2:$D$65536,IF(dati_pdc!$C84=3,dati_bdv!$E$2:$E$65536,IF(dati_pdc!$C84=4,dati_bdv!$F$2:$F$65536,IF(dati_pdc!$C84=5,dati_bdv!$G$2:$G$65536,dati_bdv!$H$2:$H$65536))))),$A84,dati_bdv!K$2:K$65536)","v":-0.53},{"$f":"SUMIF(IF(dati_pdc!$C84=1,dati_bdv!$C$2:$C$65536,IF(dati_pdc!$C84=2,dati_bdv!$D$2:$D$65536,IF(dati_pdc!$C84=3,dati_bdv!$E$2:$E$65536,IF(dati_pdc!$C84=4,dati_bdv!$F$2:$F$65536,IF(dati_pdc!$C84=5,dati_bdv!$G$2:$G$65536,dati_bdv!$H$2:$H$65536))))),$A84,dati_bdv!L$2:L$65536)","v":0},{"$f":"SUMIF(IF(dati_pdc!$C84=1,dati_bdv!$C$2:$C$65536,IF(dati_pdc!$C84=2,dati_bdv!$D$2:$D$65536,IF(dati_pdc!$C84=3,dati_bdv!$E$2:$E$65536,IF(dati_pdc!$C84=4,dati_bdv!$F$2:$F$65536,IF(dati_pdc!$C84=5,dati_bdv!$G$2:$G$65536,dati_bdv!$H$2:$H$65536))))),$A84,dati_bdv!M$2:M$65536)","v":0},{"$f":"SUMIF(IF(dati_pdc!$C84=1,dati_bdv!$C$2:$C$65536,IF(dati_pdc!$C84=2,dati_bdv!$D$2:$D$65536,IF(dati_pdc!$C84=3,dati_bdv!$E$2:$E$65536,IF(dati_pdc!$C84=4,dati_bdv!$F$2:$F$65536,IF(dati_pdc!$C84=5,dati_bdv!$G$2:$G$65536,dati_bdv!$H$2:$H$65536))))),$A84,dati_bdv!N$2:N$65536)","v":0}]
[{"$f":"dati_pdc!A85","v":"851113"},{"$f":"SUMIF(IF(dati_pdc!$C85=1,dati_bdv!$C$2:$C$65536,IF(dati_pdc!$C85=2,dati_bdv!$D$2:$D$65536,IF(dati_pdc!$C85=3,dati_bdv!$E$2:$E$65536,IF(dati_pdc!$C85=4,dati_bdv!$F$2:$F$65536,IF(dati_pdc!$C85=5,dati_bdv!$G$2:$G$65536,dati_bdv!$H$2:$H$65536))))),$A85,dati_bdv!J$2:J$65536)","v":-0.09},{"$f":"SUMIF(IF(dati_pdc!$C85=1,dati_bdv!$C$2:$C$65536,IF(dati_pdc!$C85=2,dati_bdv!$D$2:$D$65536,IF(dati_pdc!$C85=3,dati_bdv!$E$2:$E$65536,IF(dati_pdc!$C85=4,dati_bdv!$F$2:$F$65536,IF(dati_pdc!$C85=5,dati_bdv!$G$2:$G$65536,dati_bdv!$H$2:$H$65536))))),$A85,dati_bdv!K$2:K$65536)","v":-0.53},{"$f":"SUMIF(IF(dati_pdc!$C85=1,dati_bdv!$C$2:$C$65536,IF(dati_pdc!$C85=2,dati_bdv!$D$2:$D$65536,IF(dati_pdc!$C85=3,dati_bdv!$E$2:$E$65536,IF(dati_pdc!$C85=4,dati_bdv!$F$2:$F$65536,IF(dati_pdc!$C85=5,dati_bdv!$G$2:$G$65536,dati_bdv!$H$2:$H$65536))))),$A85,dati_bdv!L$2:L$65536)","v":0},{"$f":"SUMIF(IF(dati_pdc!$C85=1,dati_bdv!$C$2:$C$65536,IF(dati_pdc!$C85=2,dati_bdv!$D$2:$D$65536,IF(dati_pdc!$C85=3,dati_bdv!$E$2:$E$65536,IF(dati_pdc!$C85=4,dati_bdv!$F$2:$F$65536,IF(dati_pdc!$C85=5,dati_bdv!$G$2:$G$65536,dati_bdv!$H$2:$H$65536))))),$A85,dati_bdv!M$2:M$65536)","v":0},{"$f":"SUMIF(IF(dati_pdc!$C85=1,dati_bdv!$C$2:$C$65536,IF(dati_pdc!$C85=2,dati_bdv!$D$2:$D$65536,IF(dati_pdc!$C85=3,dati_bdv!$E$2:$E$65536,IF(dati_pdc!$C85=4,dati_bdv!$F$2:$F$65536,IF(dati_pdc!$C85=5,dati_bdv!$G$2:$G$65536,dati_bdv!$H$2:$H$65536))))),$A85,dati_bdv!N$2:N$65536)","v":0}]
[{"$f":"dati_pdc!A86","v":"86"},{"$f":"SUMIF(IF(dati_pdc!$C86=1,dati_bdv!$C$2:$C$65536,IF(dati_pdc!$C86=2,dati_bdv!$D$2:$D$65536,IF(dati_pdc!$C86=3,dati_bdv!$E$2:$E$65536,IF(dati_pdc!$C86=4,dati_bdv!$F$2:$F$65536,IF(dati_pdc!$C86=5,dati_bdv!$G$2:$G$65536,dati_bdv!$H$2:$H$65536))))),$A86,dati_bdv!J$2:J$65536)","v":64.5},{"$f":"SUMIF(IF(dati_pdc!$C86=1,dati_bdv!$C$2:$C$65536,IF(dati_pdc!$C86=2,dati_bdv!$D$2:$D$65536,IF(dati_pdc!$C86=3,dati_bdv!$E$2:$E$65536,IF(dati_pdc!$C86=4,dati_bdv!$F$2:$F$65536,IF(dati_pdc!$C86=5,dati_bdv!$G$2:$G$65536,dati_bdv!$H$2:$H$65536))))),$A86,dati_bdv!K$2:K$65536)","v":221.35},{"$f":"SUMIF(IF(dati_pdc!$C86=1,dati_bdv!$C$2:$C$65536,IF(dati_pdc!$C86=2,dati_bdv!$D$2:$D$65536,IF(dati_pdc!$C86=3,dati_bdv!$E$2:$E$65536,IF(dati_pdc!$C86=4,dati_bdv!$F$2:$F$65536,IF(dati_pdc!$C86=5,dati_bdv!$G$2:$G$65536,dati_bdv!$H$2:$H$65536))))),$A86,dati_bdv!L$2:L$65536)","v":0},{"$f":"SUMIF(IF(dati_pdc!$C86=1,dati_bdv!$C$2:$C$65536,IF(dati_pdc!$C86=2,dati_bdv!$D$2:$D$65536,IF(dati_pdc!$C86=3,dati_bdv!$E$2:$E$65536,IF(dati_pdc!$C86=4,dati_bdv!$F$2:$F$65536,IF(dati_pdc!$C86=5,dati_bdv!$G$2:$G$65536,dati_bdv!$H$2:$H$65536))))),$A86,dati_bdv!M$2:M$65536)","v":0},{"$f":"SUMIF(IF(dati_pdc!$C86=1,dati_bdv!$C$2:$C$65536,IF(dati_pdc!$C86=2,dati_bdv!$D$2:$D$65536,IF(dati_pdc!$C86=3,dati_bdv!$E$2:$E$65536,IF(dati_pdc!$C86=4,dati_bdv!$F$2:$F$65536,IF(dati_pdc!$C86=5,dati_bdv!$G$2:$G$65536,dati_bdv!$H$2:$H$65536))))),$A86,dati_bdv!N$2:N$65536)","v":0}]
[{"$f":"dati_pdc!A87","v":"8601"},{"$f":"SUMIF(IF(dati_pdc!$C87=1,dati_bdv!$C$2:$C$65536,IF(dati_pdc!$C87=2,dati_bdv!$D$2:$D$65536,IF(dati_pdc!$C87=3,dati_bdv!$E$2:$E$65536,IF(dati_pdc!$C87=4,dati_bdv!$F$2:$F$65536,IF(dati_pdc!$C87=5,dati_bdv!$G$2:$G$65536,dati_bdv!$H$2:$H$65536))))),$A87,dati_bdv!J$2:J$65536)","v":64.5},{"$f":"SUMIF(IF(dati_pdc!$C87=1,dati_bdv!$C$2:$C$65536,IF(dati_pdc!$C87=2,dati_bdv!$D$2:$D$65536,IF(dati_pdc!$C87=3,dati_bdv!$E$2:$E$65536,IF(dati_pdc!$C87=4,dati_bdv!$F$2:$F$65536,IF(dati_pdc!$C87=5,dati_bdv!$G$2:$G$65536,dati_bdv!$H$2:$H$65536))))),$A87,dati_bdv!K$2:K$65536)","v":221.35},{"$f":"SUMIF(IF(dati_pdc!$C87=1,dati_bdv!$C$2:$C$65536,IF(dati_pdc!$C87=2,dati_bdv!$D$2:$D$65536,IF(dati_pdc!$C87=3,dati_bdv!$E$2:$E$65536,IF(dati_pdc!$C87=4,dati_bdv!$F$2:$F$65536,IF(dati_pdc!$C87=5,dati_bdv!$G$2:$G$65536,dati_bdv!$H$2:$H$65536))))),$A87,dati_bdv!L$2:L$65536)","v":0},{"$f":"SUMIF(IF(dati_pdc!$C87=1,dati_bdv!$C$2:$C$65536,IF(dati_pdc!$C87=2,dati_bdv!$D$2:$D$65536,IF(dati_pdc!$C87=3,dati_bdv!$E$2:$E$65536,IF(dati_pdc!$C87=4,dati_bdv!$F$2:$F$65536,IF(dati_pdc!$C87=5,dati_bdv!$G$2:$G$65536,dati_bdv!$H$2:$H$65536))))),$A87,dati_bdv!M$2:M$65536)","v":0},{"$f":"SUMIF(IF(dati_pdc!$C87=1,dati_bdv!$C$2:$C$65536,IF(dati_pdc!$C87=2,dati_bdv!$D$2:$D$65536,IF(dati_pdc!$C87=3,dati_bdv!$E$2:$E$65536,IF(dati_pdc!$C87=4,dati_bdv!$F$2:$F$65536,IF(dati_pdc!$C87=5,dati_bdv!$G$2:$G$65536,dati_bdv!$H$2:$H$65536))))),$A87,dati_bdv!N$2:N$65536)","v":0}]
[{"$f":"dati_pdc!A88","v":"860105"},{"$f":"SUMIF(IF(dati_pdc!$C88=1,dati_bdv!$C$2:$C$65536,IF(dati_pdc!$C88=2,dati_bdv!$D$2:$D$65536,IF(dati_pdc!$C88=3,dati_bdv!$E$2:$E$65536,IF(dati_pdc!$C88=4,dati_bdv!$F$2:$F$65536,IF(dati_pdc!$C88=5,dati_bdv!$G$2:$G$65536,dati_bdv!$H$2:$H$65536))))),$A88,dati_bdv!J$2:J$65536)","v":64.5},{"$f":"SUMIF(IF(dati_pdc!$C88=1,dati_bdv!$C$2:$C$65536,IF(dati_pdc!$C88=2,dati_bdv!$D$2:$D$65536,IF(dati_pdc!$C88=3,dati_bdv!$E$2:$E$65536,IF(dati_pdc!$C88=4,dati_bdv!$F$2:$F$65536,IF(dati_pdc!$C88=5,dati_bdv!$G$2:$G$65536,dati_bdv!$H$2:$H$65536))))),$A88,dati_bdv!K$2:K$65536)","v":221.35},{"$f":"SUMIF(IF(dati_pdc!$C88=1,dati_bdv!$C$2:$C$65536,IF(dati_pdc!$C88=2,dati_bdv!$D$2:$D$65536,IF(dati_pdc!$C88=3,dati_bdv!$E$2:$E$65536,IF(dati_pdc!$C88=4,dati_bdv!$F$2:$F$65536,IF(dati_pdc!$C88=5,dati_bdv!$G$2:$G$65536,dati_bdv!$H$2:$H$65536))))),$A88,dati_bdv!L$2:L$65536)","v":0},{"$f":"SUMIF(IF(dati_pdc!$C88=1,dati_bdv!$C$2:$C$65536,IF(dati_pdc!$C88=2,dati_bdv!$D$2:$D$65536,IF(dati_pdc!$C88=3,dati_bdv!$E$2:$E$65536,IF(dati_pdc!$C88=4,dati_bdv!$F$2:$F$65536,IF(dati_pdc!$C88=5,dati_bdv!$G$2:$G$65536,dati_bdv!$H$2:$H$65536))))),$A88,dati_bdv!M$2:M$65536)","v":0},{"$f":"SUMIF(IF(dati_pdc!$C88=1,dati_bdv!$C$2:$C$65536,IF(dati_pdc!$C88=2,dati_bdv!$D$2:$D$65536,IF(dati_pdc!$C88=3,dati_bdv!$E$2:$E$65536,IF(dati_pdc!$C88=4,dati_bdv!$F$2:$F$65536,IF(dati_pdc!$C88=5,dati_bdv!$G$2:$G$65536,dati_bdv!$H$2:$H$65536))))),$A88,dati_bdv!N$2:N$65536)","v":0}]
[{"$f":"dati_pdc!A89","v":"93"},{"$f":"SUMIF(IF(dati_pdc!$C89=1,dati_bdv!$C$2:$C$65536,IF(dati_pdc!$C89=2,dati_bdv!$D$2:$D$65536,IF(dati_pdc!$C89=3,dati_bdv!$E$2:$E$65536,IF(dati_pdc!$C89=4,dati_bdv!$F$2:$F$65536,IF(dati_pdc!$C89=5,dati_bdv!$G$2:$G$65536,dati_bdv!$H$2:$H$65536))))),$A89,dati_bdv!J$2:J$65536)","v":0},{"$f":"SUMIF(IF(dati_pdc!$C89=1,dati_bdv!$C$2:$C$65536,IF(dati_pdc!$C89=2,dati_bdv!$D$2:$D$65536,IF(dati_pdc!$C89=3,dati_bdv!$E$2:$E$65536,IF(dati_pdc!$C89=4,dati_bdv!$F$2:$F$65536,IF(dati_pdc!$C89=5,dati_bdv!$G$2:$G$65536,dati_bdv!$H$2:$H$65536))))),$A89,dati_bdv!K$2:K$65536)","v":1483},{"$f":"SUMIF(IF(dati_pdc!$C89=1,dati_bdv!$C$2:$C$65536,IF(dati_pdc!$C89=2,dati_bdv!$D$2:$D$65536,IF(dati_pdc!$C89=3,dati_bdv!$E$2:$E$65536,IF(dati_pdc!$C89=4,dati_bdv!$F$2:$F$65536,IF(dati_pdc!$C89=5,dati_bdv!$G$2:$G$65536,dati_bdv!$H$2:$H$65536))))),$A89,dati_bdv!L$2:L$65536)","v":0},{"$f":"SUMIF(IF(dati_pdc!$C89=1,dati_bdv!$C$2:$C$65536,IF(dati_pdc!$C89=2,dati_bdv!$D$2:$D$65536,IF(dati_pdc!$C89=3,dati_bdv!$E$2:$E$65536,IF(dati_pdc!$C89=4,dati_bdv!$F$2:$F$65536,IF(dati_pdc!$C89=5,dati_bdv!$G$2:$G$65536,dati_bdv!$H$2:$H$65536))))),$A89,dati_bdv!M$2:M$65536)","v":0},{"$f":"SUMIF(IF(dati_pdc!$C89=1,dati_bdv!$C$2:$C$65536,IF(dati_pdc!$C89=2,dati_bdv!$D$2:$D$65536,IF(dati_pdc!$C89=3,dati_bdv!$E$2:$E$65536,IF(dati_pdc!$C89=4,dati_bdv!$F$2:$F$65536,IF(dati_pdc!$C89=5,dati_bdv!$G$2:$G$65536,dati_bdv!$H$2:$H$65536))))),$A89,dati_bdv!N$2:N$65536)","v":0}]
[{"$f":"dati_pdc!A90","v":"9301"},{"$f":"SUMIF(IF(dati_pdc!$C90=1,dati_bdv!$C$2:$C$65536,IF(dati_pdc!$C90=2,dati_bdv!$D$2:$D$65536,IF(dati_pdc!$C90=3,dati_bdv!$E$2:$E$65536,IF(dati_pdc!$C90=4,dati_bdv!$F$2:$F$65536,IF(dati_pdc!$C90=5,dati_bdv!$G$2:$G$65536,dati_bdv!$H$2:$H$65536))))),$A90,dati_bdv!J$2:J$65536)","v":0},{"$f":"SUMIF(IF(dati_pdc!$C90=1,dati_bdv!$C$2:$C$65536,IF(dati_pdc!$C90=2,dati_bdv!$D$2:$D$65536,IF(dati_pdc!$C90=3,dati_bdv!$E$2:$E$65536,IF(dati_pdc!$C90=4,dati_bdv!$F$2:$F$65536,IF(dati_pdc!$C90=5,dati_bdv!$G$2:$G$65536,dati_bdv!$H$2:$H$65536))))),$A90,dati_bdv!K$2:K$65536)","v":1483},{"$f":"SUMIF(IF(dati_pdc!$C90=1,dati_bdv!$C$2:$C$65536,IF(dati_pdc!$C90=2,dati_bdv!$D$2:$D$65536,IF(dati_pdc!$C90=3,dati_bdv!$E$2:$E$65536,IF(dati_pdc!$C90=4,dati_bdv!$F$2:$F$65536,IF(dati_pdc!$C90=5,dati_bdv!$G$2:$G$65536,dati_bdv!$H$2:$H$65536))))),$A90,dati_bdv!L$2:L$65536)","v":0},{"$f":"SUMIF(IF(dati_pdc!$C90=1,dati_bdv!$C$2:$C$65536,IF(dati_pdc!$C90=2,dati_bdv!$D$2:$D$65536,IF(dati_pdc!$C90=3,dati_bdv!$E$2:$E$65536,IF(dati_pdc!$C90=4,dati_bdv!$F$2:$F$65536,IF(dati_pdc!$C90=5,dati_bdv!$G$2:$G$65536,dati_bdv!$H$2:$H$65536))))),$A90,dati_bdv!M$2:M$65536)","v":0},{"$f":"SUMIF(IF(dati_pdc!$C90=1,dati_bdv!$C$2:$C$65536,IF(dati_pdc!$C90=2,dati_bdv!$D$2:$D$65536,IF(dati_pdc!$C90=3,dati_bdv!$E$2:$E$65536,IF(dati_pdc!$C90=4,dati_bdv!$F$2:$F$65536,IF(dati_pdc!$C90=5,dati_bdv!$G$2:$G$65536,dati_bdv!$H$2:$H$65536))))),$A90,dati_bdv!N$2:N$65536)","v":0}]
[{"$f":"dati_pdc!A91","v":"930101"},{"$f":"SUMIF(IF(dati_pdc!$C91=1,dati_bdv!$C$2:$C$65536,IF(dati_pdc!$C91=2,dati_bdv!$D$2:$D$65536,IF(dati_pdc!$C91=3,dati_bdv!$E$2:$E$65536,IF(dati_pdc!$C91=4,dati_bdv!$F$2:$F$65536,IF(dati_pdc!$C91=5,dati_bdv!$G$2:$G$65536,dati_bdv!$H$2:$H$65536))))),$A91,dati_bdv!J$2:J$65536)","v":0},{"$f":"SUMIF(IF(dati_pdc!$C91=1,dati_bdv!$C$2:$C$65536,IF(dati_pdc!$C91=2,dati_bdv!$D$2:$D$65536,IF(dati_pdc!$C91=3,dati_bdv!$E$2:$E$65536,IF(dati_pdc!$C91=4,dati_bdv!$F$2:$F$65536,IF(dati_pdc!$C91=5,dati_bdv!$G$2:$G$65536,dati_bdv!$H$2:$H$65536))))),$A91,dati_bdv!K$2:K$65536)","v":1483},{"$f":"SUMIF(IF(dati_pdc!$C91=1,dati_bdv!$C$2:$C$65536,IF(dati_pdc!$C91=2,dati_bdv!$D$2:$D$65536,IF(dati_pdc!$C91=3,dati_bdv!$E$2:$E$65536,IF(dati_pdc!$C91=4,dati_bdv!$F$2:$F$65536,IF(dati_pdc!$C91=5,dati_bdv!$G$2:$G$65536,dati_bdv!$H$2:$H$65536))))),$A91,dati_bdv!L$2:L$65536)","v":0},{"$f":"SUMIF(IF(dati_pdc!$C91=1,dati_bdv!$C$2:$C$65536,IF(dati_pdc!$C91=2,dati_bdv!$D$2:$D$65536,IF(dati_pdc!$C91=3,dati_bdv!$E$2:$E$65536,IF(dati_pdc!$C91=4,dati_bdv!$F$2:$F$65536,IF(dati_pdc!$C91=5,dati_bdv!$G$2:$G$65536,dati_bdv!$H$2:$H$65536))))),$A91,dati_bdv!M$2:M$65536)","v":0},{"$f":"SUMIF(IF(dati_pdc!$C91=1,dati_bdv!$C$2:$C$65536,IF(dati_pdc!$C91=2,dati_bdv!$D$2:$D$65536,IF(dati_pdc!$C91=3,dati_bdv!$E$2:$E$65536,IF(dati_pdc!$C91=4,dati_bdv!$F$2:$F$65536,IF(dati_pdc!$C91=5,dati_bdv!$G$2:$G$65536,dati_bdv!$H$2:$H$65536))))),$A91,dati_bdv!N$2:N$65536)","v":0}]
[{"$f":"dati_pdc!A92","v":0},{"$f":"SUMIF(IF(dati_pdc!$C92=1,dati_bdv!$C$2:$C$65536,IF(dati_pdc!$C92=2,dati_bdv!$D$2:$D$65536,IF(dati_pdc!$C92=3,dati_bdv!$E$2:$E$65536,IF(dati_pdc!$C92=4,dati_bdv!$F$2:$F$65536,IF(dati_pdc!$C92=5,dati_bdv!$G$2:$G$65536,dati_bdv!$H$2:$H$65536))))),$A92,dati_bdv!J$2:J$65536)","v":0},{"$f":"SUMIF(IF(dati_pdc!$C92=1,dati_bdv!$C$2:$C$65536,IF(dati_pdc!$C92=2,dati_bdv!$D$2:$D$65536,IF(dati_pdc!$C92=3,dati_bdv!$E$2:$E$65536,IF(dati_pdc!$C92=4,dati_bdv!$F$2:$F$65536,IF(dati_pdc!$C92=5,dati_bdv!$G$2:$G$65536,dati_bdv!$H$2:$H$65536))))),$A92,dati_bdv!K$2:K$65536)","v":0},{"$f":"SUMIF(IF(dati_pdc!$C92=1,dati_bdv!$C$2:$C$65536,IF(dati_pdc!$C92=2,dati_bdv!$D$2:$D$65536,IF(dati_pdc!$C92=3,dati_bdv!$E$2:$E$65536,IF(dati_pdc!$C92=4,dati_bdv!$F$2:$F$65536,IF(dati_pdc!$C92=5,dati_bdv!$G$2:$G$65536,dati_bdv!$H$2:$H$65536))))),$A92,dati_bdv!L$2:L$65536)","v":0},{"$f":"SUMIF(IF(dati_pdc!$C92=1,dati_bdv!$C$2:$C$65536,IF(dati_pdc!$C92=2,dati_bdv!$D$2:$D$65536,IF(dati_pdc!$C92=3,dati_bdv!$E$2:$E$65536,IF(dati_pdc!$C92=4,dati_bdv!$F$2:$F$65536,IF(dati_pdc!$C92=5,dati_bdv!$G$2:$G$65536,dati_bdv!$H$2:$H$65536))))),$A92,dati_bdv!M$2:M$65536)","v":0},{"$f":"SUMIF(IF(dati_pdc!$C92=1,dati_bdv!$C$2:$C$65536,IF(dati_pdc!$C92=2,dati_bdv!$D$2:$D$65536,IF(dati_pdc!$C92=3,dati_bdv!$E$2:$E$65536,IF(dati_pdc!$C92=4,dati_bdv!$F$2:$F$65536,IF(dati_pdc!$C92=5,dati_bdv!$G$2:$G$65536,dati_bdv!$H$2:$H$65536))))),$A92,dati_bdv!N$2:N$65536)","v":0}]
[{"$f":"dati_pdc!A93","v":0},{"$f":"SUMIF(IF(dati_pdc!$C93=1,dati_bdv!$C$2:$C$65536,IF(dati_pdc!$C93=2,dati_bdv!$D$2:$D$65536,IF(dati_pdc!$C93=3,dati_bdv!$E$2:$E$65536,IF(dati_pdc!$C93=4,dati_bdv!$F$2:$F$65536,IF(dati_pdc!$C93=5,dati_bdv!$G$2:$G$65536,dati_bdv!$H$2:$H$65536))))),$A93,dati_bdv!J$2:J$65536)","v":0},{"$f":"SUMIF(IF(dati_pdc!$C93=1,dati_bdv!$C$2:$C$65536,IF(dati_pdc!$C93=2,dati_bdv!$D$2:$D$65536,IF(dati_pdc!$C93=3,dati_bdv!$E$2:$E$65536,IF(dati_pdc!$C93=4,dati_bdv!$F$2:$F$65536,IF(dati_pdc!$C93=5,dati_bdv!$G$2:$G$65536,dati_bdv!$H$2:$H$65536))))),$A93,dati_bdv!K$2:K$65536)","v":0},{"$f":"SUMIF(IF(dati_pdc!$C93=1,dati_bdv!$C$2:$C$65536,IF(dati_pdc!$C93=2,dati_bdv!$D$2:$D$65536,IF(dati_pdc!$C93=3,dati_bdv!$E$2:$E$65536,IF(dati_pdc!$C93=4,dati_bdv!$F$2:$F$65536,IF(dati_pdc!$C93=5,dati_bdv!$G$2:$G$65536,dati_bdv!$H$2:$H$65536))))),$A93,dati_bdv!L$2:L$65536)","v":0},{"$f":"SUMIF(IF(dati_pdc!$C93=1,dati_bdv!$C$2:$C$65536,IF(dati_pdc!$C93=2,dati_bdv!$D$2:$D$65536,IF(dati_pdc!$C93=3,dati_bdv!$E$2:$E$65536,IF(dati_pdc!$C93=4,dati_bdv!$F$2:$F$65536,IF(dati_pdc!$C93=5,dati_bdv!$G$2:$G$65536,dati_bdv!$H$2:$H$65536))))),$A93,dati_bdv!M$2:M$65536)","v":0},{"$f":"SUMIF(IF(dati_pdc!$C93=1,dati_bdv!$C$2:$C$65536,IF(dati_pdc!$C93=2,dati_bdv!$D$2:$D$65536,IF(dati_pdc!$C93=3,dati_bdv!$E$2:$E$65536,IF(dati_pdc!$C93=4,dati_bdv!$F$2:$F$65536,IF(dati_pdc!$C93=5,dati_bdv!$G$2:$G$65536,dati_bdv!$H$2:$H$65536))))),$A93,dati_bdv!N$2:N$65536)","v":0}]
[{"$f":"dati_pdc!A94","v":0},{"$f":"SUMIF(IF(dati_pdc!$C94=1,dati_bdv!$C$2:$C$65536,IF(dati_pdc!$C94=2,dati_bdv!$D$2:$D$65536,IF(dati_pdc!$C94=3,dati_bdv!$E$2:$E$65536,IF(dati_pdc!$C94=4,dati_bdv!$F$2:$F$65536,IF(dati_pdc!$C94=5,dati_bdv!$G$2:$G$65536,dati_bdv!$H$2:$H$65536))))),$A94,dati_bdv!J$2:J$65536)","v":0},{"$f":"SUMIF(IF(dati_pdc!$C94=1,dati_bdv!$C$2:$C$65536,IF(dati_pdc!$C94=2,dati_bdv!$D$2:$D$65536,IF(dati_pdc!$C94=3,dati_bdv!$E$2:$E$65536,IF(dati_pdc!$C94=4,dati_bdv!$F$2:$F$65536,IF(dati_pdc!$C94=5,dati_bdv!$G$2:$G$65536,dati_bdv!$H$2:$H$65536))))),$A94,dati_bdv!K$2:K$65536)","v":0},{"$f":"SUMIF(IF(dati_pdc!$C94=1,dati_bdv!$C$2:$C$65536,IF(dati_pdc!$C94=2,dati_bdv!$D$2:$D$65536,IF(dati_pdc!$C94=3,dati_bdv!$E$2:$E$65536,IF(dati_pdc!$C94=4,dati_bdv!$F$2:$F$65536,IF(dati_pdc!$C94=5,dati_bdv!$G$2:$G$65536,dati_bdv!$H$2:$H$65536))))),$A94,dati_bdv!L$2:L$65536)","v":0},{"$f":"SUMIF(IF(dati_pdc!$C94=1,dati_bdv!$C$2:$C$65536,IF(dati_pdc!$C94=2,dati_bdv!$D$2:$D$65536,IF(dati_pdc!$C94=3,dati_bdv!$E$2:$E$65536,IF(dati_pdc!$C94=4,dati_bdv!$F$2:$F$65536,IF(dati_pdc!$C94=5,dati_bdv!$G$2:$G$65536,dati_bdv!$H$2:$H$65536))))),$A94,dati_bdv!M$2:M$65536)","v":0},{"$f":"SUMIF(IF(dati_pdc!$C94=1,dati_bdv!$C$2:$C$65536,IF(dati_pdc!$C94=2,dati_bdv!$D$2:$D$65536,IF(dati_pdc!$C94=3,dati_bdv!$E$2:$E$65536,IF(dati_pdc!$C94=4,dati_bdv!$F$2:$F$65536,IF(dati_pdc!$C94=5,dati_bdv!$G$2:$G$65536,dati_bdv!$H$2:$H$65536))))),$A94,dati_bdv!N$2:N$65536)","v":0}]
[{"$f":"dati_pdc!A95","v":0},{"$f":"SUMIF(IF(dati_pdc!$C95=1,dati_bdv!$C$2:$C$65536,IF(dati_pdc!$C95=2,dati_bdv!$D$2:$D$65536,IF(dati_pdc!$C95=3,dati_bdv!$E$2:$E$65536,IF(dati_pdc!$C95=4,dati_bdv!$F$2:$F$65536,IF(dati_pdc!$C95=5,dati_bdv!$G$2:$G$65536,dati_bdv!$H$2:$H$65536))))),$A95,dati_bdv!J$2:J$65536)","v":0},{"$f":"SUMIF(IF(dati_pdc!$C95=1,dati_bdv!$C$2:$C$65536,IF(dati_pdc!$C95=2,dati_bdv!$D$2:$D$65536,IF(dati_pdc!$C95=3,dati_bdv!$E$2:$E$65536,IF(dati_pdc!$C95=4,dati_bdv!$F$2:$F$65536,IF(dati_pdc!$C95=5,dati_bdv!$G$2:$G$65536,dati_bdv!$H$2:$H$65536))))),$A95,dati_bdv!K$2:K$65536)","v":0},{"$f":"SUMIF(IF(dati_pdc!$C95=1,dati_bdv!$C$2:$C$65536,IF(dati_pdc!$C95=2,dati_bdv!$D$2:$D$65536,IF(dati_pdc!$C95=3,dati_bdv!$E$2:$E$65536,IF(dati_pdc!$C95=4,dati_bdv!$F$2:$F$65536,IF(dati_pdc!$C95=5,dati_bdv!$G$2:$G$65536,dati_bdv!$H$2:$H$65536))))),$A95,dati_bdv!L$2:L$65536)","v":0},{"$f":"SUMIF(IF(dati_pdc!$C95=1,dati_bdv!$C$2:$C$65536,IF(dati_pdc!$C95=2,dati_bdv!$D$2:$D$65536,IF(dati_pdc!$C95=3,dati_bdv!$E$2:$E$65536,IF(dati_pdc!$C95=4,dati_bdv!$F$2:$F$65536,IF(dati_pdc!$C95=5,dati_bdv!$G$2:$G$65536,dati_bdv!$H$2:$H$65536))))),$A95,dati_bdv!M$2:M$65536)","v":0},{"$f":"SUMIF(IF(dati_pdc!$C95=1,dati_bdv!$C$2:$C$65536,IF(dati_pdc!$C95=2,dati_bdv!$D$2:$D$65536,IF(dati_pdc!$C95=3,dati_bdv!$E$2:$E$65536,IF(dati_pdc!$C95=4,dati_bdv!$F$2:$F$65536,IF(dati_pdc!$C95=5,dati_bdv!$G$2:$G$65536,dati_bdv!$H$2:$H$65536))))),$A95,dati_bdv!N$2:N$65536)","v":0}]
[{"$f":"dati_pdc!A96","v":0},{"$f":"SUMIF(IF(dati_pdc!$C96=1,dati_bdv!$C$2:$C$65536,IF(dati_pdc!$C96=2,dati_bdv!$D$2:$D$65536,IF(dati_pdc!$C96=3,dati_bdv!$E$2:$E$65536,IF(dati_pdc!$C96=4,dati_bdv!$F$2:$F$65536,IF(dati_pdc!$C96=5,dati_bdv!$G$2:$G$65536,dati_bdv!$H$2:$H$65536))))),$A96,dati_bdv!J$2:J$65536)","v":0},{"$f":"SUMIF(IF(dati_pdc!$C96=1,dati_bdv!$C$2:$C$65536,IF(dati_pdc!$C96=2,dati_bdv!$D$2:$D$65536,IF(dati_pdc!$C96=3,dati_bdv!$E$2:$E$65536,IF(dati_pdc!$C96=4,dati_bdv!$F$2:$F$65536,IF(dati_pdc!$C96=5,dati_bdv!$G$2:$G$65536,dati_bdv!$H$2:$H$65536))))),$A96,dati_bdv!K$2:K$65536)","v":0},{"$f":"SUMIF(IF(dati_pdc!$C96=1,dati_bdv!$C$2:$C$65536,IF(dati_pdc!$C96=2,dati_bdv!$D$2:$D$65536,IF(dati_pdc!$C96=3,dati_bdv!$E$2:$E$65536,IF(dati_pdc!$C96=4,dati_bdv!$F$2:$F$65536,IF(dati_pdc!$C96=5,dati_bdv!$G$2:$G$65536,dati_bdv!$H$2:$H$65536))))),$A96,dati_bdv!L$2:L$65536)","v":0},{"$f":"SUMIF(IF(dati_pdc!$C96=1,dati_bdv!$C$2:$C$65536,IF(dati_pdc!$C96=2,dati_bdv!$D$2:$D$65536,IF(dati_pdc!$C96=3,dati_bdv!$E$2:$E$65536,IF(dati_pdc!$C96=4,dati_bdv!$F$2:$F$65536,IF(dati_pdc!$C96=5,dati_bdv!$G$2:$G$65536,dati_bdv!$H$2:$H$65536))))),$A96,dati_bdv!M$2:M$65536)","v":0},{"$f":"SUMIF(IF(dati_pdc!$C96=1,dati_bdv!$C$2:$C$65536,IF(dati_pdc!$C96=2,dati_bdv!$D$2:$D$65536,IF(dati_pdc!$C96=3,dati_bdv!$E$2:$E$65536,IF(dati_pdc!$C96=4,dati_bdv!$F$2:$F$65536,IF(dati_pdc!$C96=5,dati_bdv!$G$2:$G$65536,dati_bdv!$H$2:$H$65536))))),$A96,dati_bdv!N$2:N$65536)","v":0}]
[{"$f":"dati_pdc!A97","v":0},{"$f":"SUMIF(IF(dati_pdc!$C97=1,dati_bdv!$C$2:$C$65536,IF(dati_pdc!$C97=2,dati_bdv!$D$2:$D$65536,IF(dati_pdc!$C97=3,dati_bdv!$E$2:$E$65536,IF(dati_pdc!$C97=4,dati_bdv!$F$2:$F$65536,IF(dati_pdc!$C97=5,dati_bdv!$G$2:$G$65536,dati_bdv!$H$2:$H$65536))))),$A97,dati_bdv!J$2:J$65536)","v":0},{"$f":"SUMIF(IF(dati_pdc!$C97=1,dati_bdv!$C$2:$C$65536,IF(dati_pdc!$C97=2,dati_bdv!$D$2:$D$65536,IF(dati_pdc!$C97=3,dati_bdv!$E$2:$E$65536,IF(dati_pdc!$C97=4,dati_bdv!$F$2:$F$65536,IF(dati_pdc!$C97=5,dati_bdv!$G$2:$G$65536,dati_bdv!$H$2:$H$65536))))),$A97,dati_bdv!K$2:K$65536)","v":0},{"$f":"SUMIF(IF(dati_pdc!$C97=1,dati_bdv!$C$2:$C$65536,IF(dati_pdc!$C97=2,dati_bdv!$D$2:$D$65536,IF(dati_pdc!$C97=3,dati_bdv!$E$2:$E$65536,IF(dati_pdc!$C97=4,dati_bdv!$F$2:$F$65536,IF(dati_pdc!$C97=5,dati_bdv!$G$2:$G$65536,dati_bdv!$H$2:$H$65536))))),$A97,dati_bdv!L$2:L$65536)","v":0},{"$f":"SUMIF(IF(dati_pdc!$C97=1,dati_bdv!$C$2:$C$65536,IF(dati_pdc!$C97=2,dati_bdv!$D$2:$D$65536,IF(dati_pdc!$C97=3,dati_bdv!$E$2:$E$65536,IF(dati_pdc!$C97=4,dati_bdv!$F$2:$F$65536,IF(dati_pdc!$C97=5,dati_bdv!$G$2:$G$65536,dati_bdv!$H$2:$H$65536))))),$A97,dati_bdv!M$2:M$65536)","v":0},{"$f":"SUMIF(IF(dati_pdc!$C97=1,dati_bdv!$C$2:$C$65536,IF(dati_pdc!$C97=2,dati_bdv!$D$2:$D$65536,IF(dati_pdc!$C97=3,dati_bdv!$E$2:$E$65536,IF(dati_pdc!$C97=4,dati_bdv!$F$2:$F$65536,IF(dati_pdc!$C97=5,dati_bdv!$G$2:$G$65536,dati_bdv!$H$2:$H$65536))))),$A97,dati_bdv!N$2:N$65536)","v":0}]
[{"$f":"dati_pdc!A98","v":0},{"$f":"SUMIF(IF(dati_pdc!$C98=1,dati_bdv!$C$2:$C$65536,IF(dati_pdc!$C98=2,dati_bdv!$D$2:$D$65536,IF(dati_pdc!$C98=3,dati_bdv!$E$2:$E$65536,IF(dati_pdc!$C98=4,dati_bdv!$F$2:$F$65536,IF(dati_pdc!$C98=5,dati_bdv!$G$2:$G$65536,dati_bdv!$H$2:$H$65536))))),$A98,dati_bdv!J$2:J$65536)","v":0},{"$f":"SUMIF(IF(dati_pdc!$C98=1,dati_bdv!$C$2:$C$65536,IF(dati_pdc!$C98=2,dati_bdv!$D$2:$D$65536,IF(dati_pdc!$C98=3,dati_bdv!$E$2:$E$65536,IF(dati_pdc!$C98=4,dati_bdv!$F$2:$F$65536,IF(dati_pdc!$C98=5,dati_bdv!$G$2:$G$65536,dati_bdv!$H$2:$H$65536))))),$A98,dati_bdv!K$2:K$65536)","v":0},{"$f":"SUMIF(IF(dati_pdc!$C98=1,dati_bdv!$C$2:$C$65536,IF(dati_pdc!$C98=2,dati_bdv!$D$2:$D$65536,IF(dati_pdc!$C98=3,dati_bdv!$E$2:$E$65536,IF(dati_pdc!$C98=4,dati_bdv!$F$2:$F$65536,IF(dati_pdc!$C98=5,dati_bdv!$G$2:$G$65536,dati_bdv!$H$2:$H$65536))))),$A98,dati_bdv!L$2:L$65536)","v":0},{"$f":"SUMIF(IF(dati_pdc!$C98=1,dati_bdv!$C$2:$C$65536,IF(dati_pdc!$C98=2,dati_bdv!$D$2:$D$65536,IF(dati_pdc!$C98=3,dati_bdv!$E$2:$E$65536,IF(dati_pdc!$C98=4,dati_bdv!$F$2:$F$65536,IF(dati_pdc!$C98=5,dati_bdv!$G$2:$G$65536,dati_bdv!$H$2:$H$65536))))),$A98,dati_bdv!M$2:M$65536)","v":0},{"$f":"SUMIF(IF(dati_pdc!$C98=1,dati_bdv!$C$2:$C$65536,IF(dati_pdc!$C98=2,dati_bdv!$D$2:$D$65536,IF(dati_pdc!$C98=3,dati_bdv!$E$2:$E$65536,IF(dati_pdc!$C98=4,dati_bdv!$F$2:$F$65536,IF(dati_pdc!$C98=5,dati_bdv!$G$2:$G$65536,dati_bdv!$H$2:$H$65536))))),$A98,dati_bdv!N$2:N$65536)","v":0}]
[{"$f":"dati_pdc!A99","v":0},{"$f":"SUMIF(IF(dati_pdc!$C99=1,dati_bdv!$C$2:$C$65536,IF(dati_pdc!$C99=2,dati_bdv!$D$2:$D$65536,IF(dati_pdc!$C99=3,dati_bdv!$E$2:$E$65536,IF(dati_pdc!$C99=4,dati_bdv!$F$2:$F$65536,IF(dati_pdc!$C99=5,dati_bdv!$G$2:$G$65536,dati_bdv!$H$2:$H$65536))))),$A99,dati_bdv!J$2:J$65536)","v":0},{"$f":"SUMIF(IF(dati_pdc!$C99=1,dati_bdv!$C$2:$C$65536,IF(dati_pdc!$C99=2,dati_bdv!$D$2:$D$65536,IF(dati_pdc!$C99=3,dati_bdv!$E$2:$E$65536,IF(dati_pdc!$C99=4,dati_bdv!$F$2:$F$65536,IF(dati_pdc!$C99=5,dati_bdv!$G$2:$G$65536,dati_bdv!$H$2:$H$65536))))),$A99,dati_bdv!K$2:K$65536)","v":0},{"$f":"SUMIF(IF(dati_pdc!$C99=1,dati_bdv!$C$2:$C$65536,IF(dati_pdc!$C99=2,dati_bdv!$D$2:$D$65536,IF(dati_pdc!$C99=3,dati_bdv!$E$2:$E$65536,IF(dati_pdc!$C99=4,dati_bdv!$F$2:$F$65536,IF(dati_pdc!$C99=5,dati_bdv!$G$2:$G$65536,dati_bdv!$H$2:$H$65536))))),$A99,dati_bdv!L$2:L$65536)","v":0},{"$f":"SUMIF(IF(dati_pdc!$C99=1,dati_bdv!$C$2:$C$65536,IF(dati_pdc!$C99=2,dati_bdv!$D$2:$D$65536,IF(dati_pdc!$C99=3,dati_bdv!$E$2:$E$65536,IF(dati_pdc!$C99=4,dati_bdv!$F$2:$F$65536,IF(dati_pdc!$C99=5,dati_bdv!$G$2:$G$65536,dati_bdv!$H$2:$H$65536))))),$A99,dati_bdv!M$2:M$65536)","v":0},{"$f":"SUMIF(IF(dati_pdc!$C99=1,dati_bdv!$C$2:$C$65536,IF(dati_pdc!$C99=2,dati_bdv!$D$2:$D$65536,IF(dati_pdc!$C99=3,dati_bdv!$E$2:$E$65536,IF(dati_pdc!$C99=4,dati_bdv!$F$2:$F$65536,IF(dati_pdc!$C99=5,dati_bdv!$G$2:$G$65536,dati_bdv!$H$2:$H$65536))))),$A99,dati_bdv!N$2:N$65536)","v":0}]
[{"$f":"dati_pdc!A100","v":0},{"$f":"SUMIF(IF(dati_pdc!$C100=1,dati_bdv!$C$2:$C$65536,IF(dati_pdc!$C100=2,dati_bdv!$D$2:$D$65536,IF(dati_pdc!$C100=3,dati_bdv!$E$2:$E$65536,IF(dati_pdc!$C100=4,dati_bdv!$F$2:$F$65536,IF(dati_pdc!$C100=5,dati_bdv!$G$2:$G$65536,dati_bdv!$H$2:$H$65536))))),$A100,dati_bdv!J$2:J$65536)","v":0},{"$f":"SUMIF(IF(dati_pdc!$C100=1,dati_bdv!$C$2:$C$65536,IF(dati_pdc!$C100=2,dati_bdv!$D$2:$D$65536,IF(dati_pdc!$C100=3,dati_bdv!$E$2:$E$65536,IF(dati_pdc!$C100=4,dati_bdv!$F$2:$F$65536,IF(dati_pdc!$C100=5,dati_bdv!$G$2:$G$65536,dati_bdv!$H$2:$H$65536))))),$A100,dati_bdv!K$2:K$65536)","v":0},{"$f":"SUMIF(IF(dati_pdc!$C100=1,dati_bdv!$C$2:$C$65536,IF(dati_pdc!$C100=2,dati_bdv!$D$2:$D$65536,IF(dati_pdc!$C100=3,dati_bdv!$E$2:$E$65536,IF(dati_pdc!$C100=4,dati_bdv!$F$2:$F$65536,IF(dati_pdc!$C100=5,dati_bdv!$G$2:$G$65536,dati_bdv!$H$2:$H$65536))))),$A100,dati_bdv!L$2:L$65536)","v":0},{"$f":"SUMIF(IF(dati_pdc!$C100=1,dati_bdv!$C$2:$C$65536,IF(dati_pdc!$C100=2,dati_bdv!$D$2:$D$65536,IF(dati_pdc!$C100=3,dati_bdv!$E$2:$E$65536,IF(dati_pdc!$C100=4,dati_bdv!$F$2:$F$65536,IF(dati_pdc!$C100=5,dati_bdv!$G$2:$G$65536,dati_bdv!$H$2:$H$65536))))),$A100,dati_bdv!M$2:M$65536)","v":0},{"$f":"SUMIF(IF(dati_pdc!$C100=1,dati_bdv!$C$2:$C$65536,IF(dati_pdc!$C100=2,dati_bdv!$D$2:$D$65536,IF(dati_pdc!$C100=3,dati_bdv!$E$2:$E$65536,IF(dati_pdc!$C100=4,dati_bdv!$F$2:$F$65536,IF(dati_pdc!$C100=5,dati_bdv!$G$2:$G$65536,dati_bdv!$H$2:$H$65536))))),$A100,dati_bdv!N$2:N$65536)","v":0}]
[{"$f":"dati_pdc!A101","v":0},{"$f":"SUMIF(IF(dati_pdc!$C101=1,dati_bdv!$C$2:$C$65536,IF(dati_pdc!$C101=2,dati_bdv!$D$2:$D$65536,IF(dati_pdc!$C101=3,dati_bdv!$E$2:$E$65536,IF(dati_pdc!$C101=4,dati_bdv!$F$2:$F$65536,IF(dati_pdc!$C101=5,dati_bdv!$G$2:$G$65536,dati_bdv!$H$2:$H$65536))))),$A101,dati_bdv!J$2:J$65536)","v":0},{"$f":"SUMIF(IF(dati_pdc!$C101=1,dati_bdv!$C$2:$C$65536,IF(dati_pdc!$C101=2,dati_bdv!$D$2:$D$65536,IF(dati_pdc!$C101=3,dati_bdv!$E$2:$E$65536,IF(dati_pdc!$C101=4,dati_bdv!$F$2:$F$65536,IF(dati_pdc!$C101=5,dati_bdv!$G$2:$G$65536,dati_bdv!$H$2:$H$65536))))),$A101,dati_bdv!K$2:K$65536)","v":0},{"$f":"SUMIF(IF(dati_pdc!$C101=1,dati_bdv!$C$2:$C$65536,IF(dati_pdc!$C101=2,dati_bdv!$D$2:$D$65536,IF(dati_pdc!$C101=3,dati_bdv!$E$2:$E$65536,IF(dati_pdc!$C101=4,dati_bdv!$F$2:$F$65536,IF(dati_pdc!$C101=5,dati_bdv!$G$2:$G$65536,dati_bdv!$H$2:$H$65536))))),$A101,dati_bdv!L$2:L$65536)","v":0},{"$f":"SUMIF(IF(dati_pdc!$C101=1,dati_bdv!$C$2:$C$65536,IF(dati_pdc!$C101=2,dati_bdv!$D$2:$D$65536,IF(dati_pdc!$C101=3,dati_bdv!$E$2:$E$65536,IF(dati_pdc!$C101=4,dati_bdv!$F$2:$F$65536,IF(dati_pdc!$C101=5,dati_bdv!$G$2:$G$65536,dati_bdv!$H$2:$H$65536))))),$A101,dati_bdv!M$2:M$65536)","v":0},{"$f":"SUMIF(IF(dati_pdc!$C101=1,dati_bdv!$C$2:$C$65536,IF(dati_pdc!$C101=2,dati_bdv!$D$2:$D$65536,IF(dati_pdc!$C101=3,dati_bdv!$E$2:$E$65536,IF(dati_pdc!$C101=4,dati_bdv!$F$2:$F$65536,IF(dati_pdc!$C101=5,dati_bdv!$G$2:$G$65536,dati_bdv!$H$2:$H$65536))))),$A101,dati_bdv!N$2:N$65536)","v":0}]
[{"$f":"dati_pdc!A102","v":0},{"$f":"SUMIF(IF(dati_pdc!$C102=1,dati_bdv!$C$2:$C$65536,IF(dati_pdc!$C102=2,dati_bdv!$D$2:$D$65536,IF(dati_pdc!$C102=3,dati_bdv!$E$2:$E$65536,IF(dati_pdc!$C102=4,dati_bdv!$F$2:$F$65536,IF(dati_pdc!$C102=5,dati_bdv!$G$2:$G$65536,dati_bdv!$H$2:$H$65536))))),$A102,dati_bdv!J$2:J$65536)","v":0},{"$f":"SUMIF(IF(dati_pdc!$C102=1,dati_bdv!$C$2:$C$65536,IF(dati_pdc!$C102=2,dati_bdv!$D$2:$D$65536,IF(dati_pdc!$C102=3,dati_bdv!$E$2:$E$65536,IF(dati_pdc!$C102=4,dati_bdv!$F$2:$F$65536,IF(dati_pdc!$C102=5,dati_bdv!$G$2:$G$65536,dati_bdv!$H$2:$H$65536))))),$A102,dati_bdv!K$2:K$65536)","v":0},{"$f":"SUMIF(IF(dati_pdc!$C102=1,dati_bdv!$C$2:$C$65536,IF(dati_pdc!$C102=2,dati_bdv!$D$2:$D$65536,IF(dati_pdc!$C102=3,dati_bdv!$E$2:$E$65536,IF(dati_pdc!$C102=4,dati_bdv!$F$2:$F$65536,IF(dati_pdc!$C102=5,dati_bdv!$G$2:$G$65536,dati_bdv!$H$2:$H$65536))))),$A102,dati_bdv!L$2:L$65536)","v":0},{"$f":"SUMIF(IF(dati_pdc!$C102=1,dati_bdv!$C$2:$C$65536,IF(dati_pdc!$C102=2,dati_bdv!$D$2:$D$65536,IF(dati_pdc!$C102=3,dati_bdv!$E$2:$E$65536,IF(dati_pdc!$C102=4,dati_bdv!$F$2:$F$65536,IF(dati_pdc!$C102=5,dati_bdv!$G$2:$G$65536,dati_bdv!$H$2:$H$65536))))),$A102,dati_bdv!M$2:M$65536)","v":0},{"$f":"SUMIF(IF(dati_pdc!$C102=1,dati_bdv!$C$2:$C$65536,IF(dati_pdc!$C102=2,dati_bdv!$D$2:$D$65536,IF(dati_pdc!$C102=3,dati_bdv!$E$2:$E$65536,IF(dati_pdc!$C102=4,dati_bdv!$F$2:$F$65536,IF(dati_pdc!$C102=5,dati_bdv!$G$2:$G$65536,dati_bdv!$H$2:$H$65536))))),$A102,dati_bdv!N$2:N$65536)","v":0}]
[{"$f":"dati_pdc!A103","v":0},{"$f":"SUMIF(IF(dati_pdc!$C103=1,dati_bdv!$C$2:$C$65536,IF(dati_pdc!$C103=2,dati_bdv!$D$2:$D$65536,IF(dati_pdc!$C103=3,dati_bdv!$E$2:$E$65536,IF(dati_pdc!$C103=4,dati_bdv!$F$2:$F$65536,IF(dati_pdc!$C103=5,dati_bdv!$G$2:$G$65536,dati_bdv!$H$2:$H$65536))))),$A103,dati_bdv!J$2:J$65536)","v":0},{"$f":"SUMIF(IF(dati_pdc!$C103=1,dati_bdv!$C$2:$C$65536,IF(dati_pdc!$C103=2,dati_bdv!$D$2:$D$65536,IF(dati_pdc!$C103=3,dati_bdv!$E$2:$E$65536,IF(dati_pdc!$C103=4,dati_bdv!$F$2:$F$65536,IF(dati_pdc!$C103=5,dati_bdv!$G$2:$G$65536,dati_bdv!$H$2:$H$65536))))),$A103,dati_bdv!K$2:K$65536)","v":0},{"$f":"SUMIF(IF(dati_pdc!$C103=1,dati_bdv!$C$2:$C$65536,IF(dati_pdc!$C103=2,dati_bdv!$D$2:$D$65536,IF(dati_pdc!$C103=3,dati_bdv!$E$2:$E$65536,IF(dati_pdc!$C103=4,dati_bdv!$F$2:$F$65536,IF(dati_pdc!$C103=5,dati_bdv!$G$2:$G$65536,dati_bdv!$H$2:$H$65536))))),$A103,dati_bdv!L$2:L$65536)","v":0},{"$f":"SUMIF(IF(dati_pdc!$C103=1,dati_bdv!$C$2:$C$65536,IF(dati_pdc!$C103=2,dati_bdv!$D$2:$D$65536,IF(dati_pdc!$C103=3,dati_bdv!$E$2:$E$65536,IF(dati_pdc!$C103=4,dati_bdv!$F$2:$F$65536,IF(dati_pdc!$C103=5,dati_bdv!$G$2:$G$65536,dati_bdv!$H$2:$H$65536))))),$A103,dati_bdv!M$2:M$65536)","v":0},{"$f":"SUMIF(IF(dati_pdc!$C103=1,dati_bdv!$C$2:$C$65536,IF(dati_pdc!$C103=2,dati_bdv!$D$2:$D$65536,IF(dati_pdc!$C103=3,dati_bdv!$E$2:$E$65536,IF(dati_pdc!$C103=4,dati_bdv!$F$2:$F$65536,IF(dati_pdc!$C103=5,dati_bdv!$G$2:$G$65536,dati_bdv!$H$2:$H$65536))))),$A103,dati_bdv!N$2:N$65536)","v":0}]
[{"$f":"dati_pdc!A104","v":0},{"$f":"SUMIF(IF(dati_pdc!$C104=1,dati_bdv!$C$2:$C$65536,IF(dati_pdc!$C104=2,dati_bdv!$D$2:$D$65536,IF(dati_pdc!$C104=3,dati_bdv!$E$2:$E$65536,IF(dati_pdc!$C104=4,dati_bdv!$F$2:$F$65536,IF(dati_pdc!$C104=5,dati_bdv!$G$2:$G$65536,dati_bdv!$H$2:$H$65536))))),$A104,dati_bdv!J$2:J$65536)","v":0},{"$f":"SUMIF(IF(dati_pdc!$C104=1,dati_bdv!$C$2:$C$65536,IF(dati_pdc!$C104=2,dati_bdv!$D$2:$D$65536,IF(dati_pdc!$C104=3,dati_bdv!$E$2:$E$65536,IF(dati_pdc!$C104=4,dati_bdv!$F$2:$F$65536,IF(dati_pdc!$C104=5,dati_bdv!$G$2:$G$65536,dati_bdv!$H$2:$H$65536))))),$A104,dati_bdv!K$2:K$65536)","v":0},{"$f":"SUMIF(IF(dati_pdc!$C104=1,dati_bdv!$C$2:$C$65536,IF(dati_pdc!$C104=2,dati_bdv!$D$2:$D$65536,IF(dati_pdc!$C104=3,dati_bdv!$E$2:$E$65536,IF(dati_pdc!$C104=4,dati_bdv!$F$2:$F$65536,IF(dati_pdc!$C104=5,dati_bdv!$G$2:$G$65536,dati_bdv!$H$2:$H$65536))))),$A104,dati_bdv!L$2:L$65536)","v":0},{"$f":"SUMIF(IF(dati_pdc!$C104=1,dati_bdv!$C$2:$C$65536,IF(dati_pdc!$C104=2,dati_bdv!$D$2:$D$65536,IF(dati_pdc!$C104=3,dati_bdv!$E$2:$E$65536,IF(dati_pdc!$C104=4,dati_bdv!$F$2:$F$65536,IF(dati_pdc!$C104=5,dati_bdv!$G$2:$G$65536,dati_bdv!$H$2:$H$65536))))),$A104,dati_bdv!M$2:M$65536)","v":0},{"$f":"SUMIF(IF(dati_pdc!$C104=1,dati_bdv!$C$2:$C$65536,IF(dati_pdc!$C104=2,dati_bdv!$D$2:$D$65536,IF(dati_pdc!$C104=3,dati_bdv!$E$2:$E$65536,IF(dati_pdc!$C104=4,dati_bdv!$F$2:$F$65536,IF(dati_pdc!$C104=5,dati_bdv!$G$2:$G$65536,dati_bdv!$H$2:$H$65536))))),$A104,dati_bdv!N$2:N$65536)","v":0}]
[{"$f":"dati_pdc!A105","v":0},{"$f":"SUMIF(IF(dati_pdc!$C105=1,dati_bdv!$C$2:$C$65536,IF(dati_pdc!$C105=2,dati_bdv!$D$2:$D$65536,IF(dati_pdc!$C105=3,dati_bdv!$E$2:$E$65536,IF(dati_pdc!$C105=4,dati_bdv!$F$2:$F$65536,IF(dati_pdc!$C105=5,dati_bdv!$G$2:$G$65536,dati_bdv!$H$2:$H$65536))))),$A105,dati_bdv!J$2:J$65536)","v":0},{"$f":"SUMIF(IF(dati_pdc!$C105=1,dati_bdv!$C$2:$C$65536,IF(dati_pdc!$C105=2,dati_bdv!$D$2:$D$65536,IF(dati_pdc!$C105=3,dati_bdv!$E$2:$E$65536,IF(dati_pdc!$C105=4,dati_bdv!$F$2:$F$65536,IF(dati_pdc!$C105=5,dati_bdv!$G$2:$G$65536,dati_bdv!$H$2:$H$65536))))),$A105,dati_bdv!K$2:K$65536)","v":0},{"$f":"SUMIF(IF(dati_pdc!$C105=1,dati_bdv!$C$2:$C$65536,IF(dati_pdc!$C105=2,dati_bdv!$D$2:$D$65536,IF(dati_pdc!$C105=3,dati_bdv!$E$2:$E$65536,IF(dati_pdc!$C105=4,dati_bdv!$F$2:$F$65536,IF(dati_pdc!$C105=5,dati_bdv!$G$2:$G$65536,dati_bdv!$H$2:$H$65536))))),$A105,dati_bdv!L$2:L$65536)","v":0},{"$f":"SUMIF(IF(dati_pdc!$C105=1,dati_bdv!$C$2:$C$65536,IF(dati_pdc!$C105=2,dati_bdv!$D$2:$D$65536,IF(dati_pdc!$C105=3,dati_bdv!$E$2:$E$65536,IF(dati_pdc!$C105=4,dati_bdv!$F$2:$F$65536,IF(dati_pdc!$C105=5,dati_bdv!$G$2:$G$65536,dati_bdv!$H$2:$H$65536))))),$A105,dati_bdv!M$2:M$65536)","v":0},{"$f":"SUMIF(IF(dati_pdc!$C105=1,dati_bdv!$C$2:$C$65536,IF(dati_pdc!$C105=2,dati_bdv!$D$2:$D$65536,IF(dati_pdc!$C105=3,dati_bdv!$E$2:$E$65536,IF(dati_pdc!$C105=4,dati_bdv!$F$2:$F$65536,IF(dati_pdc!$C105=5,dati_bdv!$G$2:$G$65536,dati_bdv!$H$2:$H$65536))))),$A105,dati_bdv!N$2:N$65536)","v":0}]
[{"$f":"dati_pdc!A106","v":0},{"$f":"SUMIF(IF(dati_pdc!$C106=1,dati_bdv!$C$2:$C$65536,IF(dati_pdc!$C106=2,dati_bdv!$D$2:$D$65536,IF(dati_pdc!$C106=3,dati_bdv!$E$2:$E$65536,IF(dati_pdc!$C106=4,dati_bdv!$F$2:$F$65536,IF(dati_pdc!$C106=5,dati_bdv!$G$2:$G$65536,dati_bdv!$H$2:$H$65536))))),$A106,dati_bdv!J$2:J$65536)","v":0},{"$f":"SUMIF(IF(dati_pdc!$C106=1,dati_bdv!$C$2:$C$65536,IF(dati_pdc!$C106=2,dati_bdv!$D$2:$D$65536,IF(dati_pdc!$C106=3,dati_bdv!$E$2:$E$65536,IF(dati_pdc!$C106=4,dati_bdv!$F$2:$F$65536,IF(dati_pdc!$C106=5,dati_bdv!$G$2:$G$65536,dati_bdv!$H$2:$H$65536))))),$A106,dati_bdv!K$2:K$65536)","v":0},{"$f":"SUMIF(IF(dati_pdc!$C106=1,dati_bdv!$C$2:$C$65536,IF(dati_pdc!$C106=2,dati_bdv!$D$2:$D$65536,IF(dati_pdc!$C106=3,dati_bdv!$E$2:$E$65536,IF(dati_pdc!$C106=4,dati_bdv!$F$2:$F$65536,IF(dati_pdc!$C106=5,dati_bdv!$G$2:$G$65536,dati_bdv!$H$2:$H$65536))))),$A106,dati_bdv!L$2:L$65536)","v":0},{"$f":"SUMIF(IF(dati_pdc!$C106=1,dati_bdv!$C$2:$C$65536,IF(dati_pdc!$C106=2,dati_bdv!$D$2:$D$65536,IF(dati_pdc!$C106=3,dati_bdv!$E$2:$E$65536,IF(dati_pdc!$C106=4,dati_bdv!$F$2:$F$65536,IF(dati_pdc!$C106=5,dati_bdv!$G$2:$G$65536,dati_bdv!$H$2:$H$65536))))),$A106,dati_bdv!M$2:M$65536)","v":0},{"$f":"SUMIF(IF(dati_pdc!$C106=1,dati_bdv!$C$2:$C$65536,IF(dati_pdc!$C106=2,dati_bdv!$D$2:$D$65536,IF(dati_pdc!$C106=3,dati_bdv!$E$2:$E$65536,IF(dati_pdc!$C106=4,dati_bdv!$F$2:$F$65536,IF(dati_pdc!$C106=5,dati_bdv!$G$2:$G$65536,dati_bdv!$H$2:$H$65536))))),$A106,dati_bdv!N$2:N$65536)","v":0}]
[{"$f":"dati_pdc!A107","v":0},{"$f":"SUMIF(IF(dati_pdc!$C107=1,dati_bdv!$C$2:$C$65536,IF(dati_pdc!$C107=2,dati_bdv!$D$2:$D$65536,IF(dati_pdc!$C107=3,dati_bdv!$E$2:$E$65536,IF(dati_pdc!$C107=4,dati_bdv!$F$2:$F$65536,IF(dati_pdc!$C107=5,dati_bdv!$G$2:$G$65536,dati_bdv!$H$2:$H$65536))))),$A107,dati_bdv!J$2:J$65536)","v":0},{"$f":"SUMIF(IF(dati_pdc!$C107=1,dati_bdv!$C$2:$C$65536,IF(dati_pdc!$C107=2,dati_bdv!$D$2:$D$65536,IF(dati_pdc!$C107=3,dati_bdv!$E$2:$E$65536,IF(dati_pdc!$C107=4,dati_bdv!$F$2:$F$65536,IF(dati_pdc!$C107=5,dati_bdv!$G$2:$G$65536,dati_bdv!$H$2:$H$65536))))),$A107,dati_bdv!K$2:K$65536)","v":0},{"$f":"SUMIF(IF(dati_pdc!$C107=1,dati_bdv!$C$2:$C$65536,IF(dati_pdc!$C107=2,dati_bdv!$D$2:$D$65536,IF(dati_pdc!$C107=3,dati_bdv!$E$2:$E$65536,IF(dati_pdc!$C107=4,dati_bdv!$F$2:$F$65536,IF(dati_pdc!$C107=5,dati_bdv!$G$2:$G$65536,dati_bdv!$H$2:$H$65536))))),$A107,dati_bdv!L$2:L$65536)","v":0},{"$f":"SUMIF(IF(dati_pdc!$C107=1,dati_bdv!$C$2:$C$65536,IF(dati_pdc!$C107=2,dati_bdv!$D$2:$D$65536,IF(dati_pdc!$C107=3,dati_bdv!$E$2:$E$65536,IF(dati_pdc!$C107=4,dati_bdv!$F$2:$F$65536,IF(dati_pdc!$C107=5,dati_bdv!$G$2:$G$65536,dati_bdv!$H$2:$H$65536))))),$A107,dati_bdv!M$2:M$65536)","v":0},{"$f":"SUMIF(IF(dati_pdc!$C107=1,dati_bdv!$C$2:$C$65536,IF(dati_pdc!$C107=2,dati_bdv!$D$2:$D$65536,IF(dati_pdc!$C107=3,dati_bdv!$E$2:$E$65536,IF(dati_pdc!$C107=4,dati_bdv!$F$2:$F$65536,IF(dati_pdc!$C107=5,dati_bdv!$G$2:$G$65536,dati_bdv!$H$2:$H$65536))))),$A107,dati_bdv!N$2:N$65536)","v":0}]
[{"$f":"dati_pdc!A108","v":0},{"$f":"SUMIF(IF(dati_pdc!$C108=1,dati_bdv!$C$2:$C$65536,IF(dati_pdc!$C108=2,dati_bdv!$D$2:$D$65536,IF(dati_pdc!$C108=3,dati_bdv!$E$2:$E$65536,IF(dati_pdc!$C108=4,dati_bdv!$F$2:$F$65536,IF(dati_pdc!$C108=5,dati_bdv!$G$2:$G$65536,dati_bdv!$H$2:$H$65536))))),$A108,dati_bdv!J$2:J$65536)","v":0},{"$f":"SUMIF(IF(dati_pdc!$C108=1,dati_bdv!$C$2:$C$65536,IF(dati_pdc!$C108=2,dati_bdv!$D$2:$D$65536,IF(dati_pdc!$C108=3,dati_bdv!$E$2:$E$65536,IF(dati_pdc!$C108=4,dati_bdv!$F$2:$F$65536,IF(dati_pdc!$C108=5,dati_bdv!$G$2:$G$65536,dati_bdv!$H$2:$H$65536))))),$A108,dati_bdv!K$2:K$65536)","v":0},{"$f":"SUMIF(IF(dati_pdc!$C108=1,dati_bdv!$C$2:$C$65536,IF(dati_pdc!$C108=2,dati_bdv!$D$2:$D$65536,IF(dati_pdc!$C108=3,dati_bdv!$E$2:$E$65536,IF(dati_pdc!$C108=4,dati_bdv!$F$2:$F$65536,IF(dati_pdc!$C108=5,dati_bdv!$G$2:$G$65536,dati_bdv!$H$2:$H$65536))))),$A108,dati_bdv!L$2:L$65536)","v":0},{"$f":"SUMIF(IF(dati_pdc!$C108=1,dati_bdv!$C$2:$C$65536,IF(dati_pdc!$C108=2,dati_bdv!$D$2:$D$65536,IF(dati_pdc!$C108=3,dati_bdv!$E$2:$E$65536,IF(dati_pdc!$C108=4,dati_bdv!$F$2:$F$65536,IF(dati_pdc!$C108=5,dati_bdv!$G$2:$G$65536,dati_bdv!$H$2:$H$65536))))),$A108,dati_bdv!M$2:M$65536)","v":0},{"$f":"SUMIF(IF(dati_pdc!$C108=1,dati_bdv!$C$2:$C$65536,IF(dati_pdc!$C108=2,dati_bdv!$D$2:$D$65536,IF(dati_pdc!$C108=3,dati_bdv!$E$2:$E$65536,IF(dati_pdc!$C108=4,dati_bdv!$F$2:$F$65536,IF(dati_pdc!$C108=5,dati_bdv!$G$2:$G$65536,dati_bdv!$H$2:$H$65536))))),$A108,dati_bdv!N$2:N$65536)","v":0}]
[{"$f":"dati_pdc!A109","v":0},{"$f":"SUMIF(IF(dati_pdc!$C109=1,dati_bdv!$C$2:$C$65536,IF(dati_pdc!$C109=2,dati_bdv!$D$2:$D$65536,IF(dati_pdc!$C109=3,dati_bdv!$E$2:$E$65536,IF(dati_pdc!$C109=4,dati_bdv!$F$2:$F$65536,IF(dati_pdc!$C109=5,dati_bdv!$G$2:$G$65536,dati_bdv!$H$2:$H$65536))))),$A109,dati_bdv!J$2:J$65536)","v":0},{"$f":"SUMIF(IF(dati_pdc!$C109=1,dati_bdv!$C$2:$C$65536,IF(dati_pdc!$C109=2,dati_bdv!$D$2:$D$65536,IF(dati_pdc!$C109=3,dati_bdv!$E$2:$E$65536,IF(dati_pdc!$C109=4,dati_bdv!$F$2:$F$65536,IF(dati_pdc!$C109=5,dati_bdv!$G$2:$G$65536,dati_bdv!$H$2:$H$65536))))),$A109,dati_bdv!K$2:K$65536)","v":0},{"$f":"SUMIF(IF(dati_pdc!$C109=1,dati_bdv!$C$2:$C$65536,IF(dati_pdc!$C109=2,dati_bdv!$D$2:$D$65536,IF(dati_pdc!$C109=3,dati_bdv!$E$2:$E$65536,IF(dati_pdc!$C109=4,dati_bdv!$F$2:$F$65536,IF(dati_pdc!$C109=5,dati_bdv!$G$2:$G$65536,dati_bdv!$H$2:$H$65536))))),$A109,dati_bdv!L$2:L$65536)","v":0},{"$f":"SUMIF(IF(dati_pdc!$C109=1,dati_bdv!$C$2:$C$65536,IF(dati_pdc!$C109=2,dati_bdv!$D$2:$D$65536,IF(dati_pdc!$C109=3,dati_bdv!$E$2:$E$65536,IF(dati_pdc!$C109=4,dati_bdv!$F$2:$F$65536,IF(dati_pdc!$C109=5,dati_bdv!$G$2:$G$65536,dati_bdv!$H$2:$H$65536))))),$A109,dati_bdv!M$2:M$65536)","v":0},{"$f":"SUMIF(IF(dati_pdc!$C109=1,dati_bdv!$C$2:$C$65536,IF(dati_pdc!$C109=2,dati_bdv!$D$2:$D$65536,IF(dati_pdc!$C109=3,dati_bdv!$E$2:$E$65536,IF(dati_pdc!$C109=4,dati_bdv!$F$2:$F$65536,IF(dati_pdc!$C109=5,dati_bdv!$G$2:$G$65536,dati_bdv!$H$2:$H$65536))))),$A109,dati_bdv!N$2:N$65536)","v":0}]
[{"$f":"dati_pdc!A110","v":0},{"$f":"SUMIF(IF(dati_pdc!$C110=1,dati_bdv!$C$2:$C$65536,IF(dati_pdc!$C110=2,dati_bdv!$D$2:$D$65536,IF(dati_pdc!$C110=3,dati_bdv!$E$2:$E$65536,IF(dati_pdc!$C110=4,dati_bdv!$F$2:$F$65536,IF(dati_pdc!$C110=5,dati_bdv!$G$2:$G$65536,dati_bdv!$H$2:$H$65536))))),$A110,dati_bdv!J$2:J$65536)","v":0},{"$f":"SUMIF(IF(dati_pdc!$C110=1,dati_bdv!$C$2:$C$65536,IF(dati_pdc!$C110=2,dati_bdv!$D$2:$D$65536,IF(dati_pdc!$C110=3,dati_bdv!$E$2:$E$65536,IF(dati_pdc!$C110=4,dati_bdv!$F$2:$F$65536,IF(dati_pdc!$C110=5,dati_bdv!$G$2:$G$65536,dati_bdv!$H$2:$H$65536))))),$A110,dati_bdv!K$2:K$65536)","v":0},{"$f":"SUMIF(IF(dati_pdc!$C110=1,dati_bdv!$C$2:$C$65536,IF(dati_pdc!$C110=2,dati_bdv!$D$2:$D$65536,IF(dati_pdc!$C110=3,dati_bdv!$E$2:$E$65536,IF(dati_pdc!$C110=4,dati_bdv!$F$2:$F$65536,IF(dati_pdc!$C110=5,dati_bdv!$G$2:$G$65536,dati_bdv!$H$2:$H$65536))))),$A110,dati_bdv!L$2:L$65536)","v":0},{"$f":"SUMIF(IF(dati_pdc!$C110=1,dati_bdv!$C$2:$C$65536,IF(dati_pdc!$C110=2,dati_bdv!$D$2:$D$65536,IF(dati_pdc!$C110=3,dati_bdv!$E$2:$E$65536,IF(dati_pdc!$C110=4,dati_bdv!$F$2:$F$65536,IF(dati_pdc!$C110=5,dati_bdv!$G$2:$G$65536,dati_bdv!$H$2:$H$65536))))),$A110,dati_bdv!M$2:M$65536)","v":0},{"$f":"SUMIF(IF(dati_pdc!$C110=1,dati_bdv!$C$2:$C$65536,IF(dati_pdc!$C110=2,dati_bdv!$D$2:$D$65536,IF(dati_pdc!$C110=3,dati_bdv!$E$2:$E$65536,IF(dati_pdc!$C110=4,dati_bdv!$F$2:$F$65536,IF(dati_pdc!$C110=5,dati_bdv!$G$2:$G$65536,dati_bdv!$H$2:$H$65536))))),$A110,dati_bdv!N$2:N$65536)","v":0}]
[{"$f":"dati_pdc!A111","v":0},{"$f":"SUMIF(IF(dati_pdc!$C111=1,dati_bdv!$C$2:$C$65536,IF(dati_pdc!$C111=2,dati_bdv!$D$2:$D$65536,IF(dati_pdc!$C111=3,dati_bdv!$E$2:$E$65536,IF(dati_pdc!$C111=4,dati_bdv!$F$2:$F$65536,IF(dati_pdc!$C111=5,dati_bdv!$G$2:$G$65536,dati_bdv!$H$2:$H$65536))))),$A111,dati_bdv!J$2:J$65536)","v":0},{"$f":"SUMIF(IF(dati_pdc!$C111=1,dati_bdv!$C$2:$C$65536,IF(dati_pdc!$C111=2,dati_bdv!$D$2:$D$65536,IF(dati_pdc!$C111=3,dati_bdv!$E$2:$E$65536,IF(dati_pdc!$C111=4,dati_bdv!$F$2:$F$65536,IF(dati_pdc!$C111=5,dati_bdv!$G$2:$G$65536,dati_bdv!$H$2:$H$65536))))),$A111,dati_bdv!K$2:K$65536)","v":0},{"$f":"SUMIF(IF(dati_pdc!$C111=1,dati_bdv!$C$2:$C$65536,IF(dati_pdc!$C111=2,dati_bdv!$D$2:$D$65536,IF(dati_pdc!$C111=3,dati_bdv!$E$2:$E$65536,IF(dati_pdc!$C111=4,dati_bdv!$F$2:$F$65536,IF(dati_pdc!$C111=5,dati_bdv!$G$2:$G$65536,dati_bdv!$H$2:$H$65536))))),$A111,dati_bdv!L$2:L$65536)","v":0},{"$f":"SUMIF(IF(dati_pdc!$C111=1,dati_bdv!$C$2:$C$65536,IF(dati_pdc!$C111=2,dati_bdv!$D$2:$D$65536,IF(dati_pdc!$C111=3,dati_bdv!$E$2:$E$65536,IF(dati_pdc!$C111=4,dati_bdv!$F$2:$F$65536,IF(dati_pdc!$C111=5,dati_bdv!$G$2:$G$65536,dati_bdv!$H$2:$H$65536))))),$A111,dati_bdv!M$2:M$65536)","v":0},{"$f":"SUMIF(IF(dati_pdc!$C111=1,dati_bdv!$C$2:$C$65536,IF(dati_pdc!$C111=2,dati_bdv!$D$2:$D$65536,IF(dati_pdc!$C111=3,dati_bdv!$E$2:$E$65536,IF(dati_pdc!$C111=4,dati_bdv!$F$2:$F$65536,IF(dati_pdc!$C111=5,dati_bdv!$G$2:$G$65536,dati_bdv!$H$2:$H$65536))))),$A111,dati_bdv!N$2:N$65536)","v":0}]
[{"$f":"dati_pdc!A112","v":0},{"$f":"SUMIF(IF(dati_pdc!$C112=1,dati_bdv!$C$2:$C$65536,IF(dati_pdc!$C112=2,dati_bdv!$D$2:$D$65536,IF(dati_pdc!$C112=3,dati_bdv!$E$2:$E$65536,IF(dati_pdc!$C112=4,dati_bdv!$F$2:$F$65536,IF(dati_pdc!$C112=5,dati_bdv!$G$2:$G$65536,dati_bdv!$H$2:$H$65536))))),$A112,dati_bdv!J$2:J$65536)","v":0},{"$f":"SUMIF(IF(dati_pdc!$C112=1,dati_bdv!$C$2:$C$65536,IF(dati_pdc!$C112=2,dati_bdv!$D$2:$D$65536,IF(dati_pdc!$C112=3,dati_bdv!$E$2:$E$65536,IF(dati_pdc!$C112=4,dati_bdv!$F$2:$F$65536,IF(dati_pdc!$C112=5,dati_bdv!$G$2:$G$65536,dati_bdv!$H$2:$H$65536))))),$A112,dati_bdv!K$2:K$65536)","v":0},{"$f":"SUMIF(IF(dati_pdc!$C112=1,dati_bdv!$C$2:$C$65536,IF(dati_pdc!$C112=2,dati_bdv!$D$2:$D$65536,IF(dati_pdc!$C112=3,dati_bdv!$E$2:$E$65536,IF(dati_pdc!$C112=4,dati_bdv!$F$2:$F$65536,IF(dati_pdc!$C112=5,dati_bdv!$G$2:$G$65536,dati_bdv!$H$2:$H$65536))))),$A112,dati_bdv!L$2:L$65536)","v":0},{"$f":"SUMIF(IF(dati_pdc!$C112=1,dati_bdv!$C$2:$C$65536,IF(dati_pdc!$C112=2,dati_bdv!$D$2:$D$65536,IF(dati_pdc!$C112=3,dati_bdv!$E$2:$E$65536,IF(dati_pdc!$C112=4,dati_bdv!$F$2:$F$65536,IF(dati_pdc!$C112=5,dati_bdv!$G$2:$G$65536,dati_bdv!$H$2:$H$65536))))),$A112,dati_bdv!M$2:M$65536)","v":0},{"$f":"SUMIF(IF(dati_pdc!$C112=1,dati_bdv!$C$2:$C$65536,IF(dati_pdc!$C112=2,dati_bdv!$D$2:$D$65536,IF(dati_pdc!$C112=3,dati_bdv!$E$2:$E$65536,IF(dati_pdc!$C112=4,dati_bdv!$F$2:$F$65536,IF(dati_pdc!$C112=5,dati_bdv!$G$2:$G$65536,dati_bdv!$H$2:$H$65536))))),$A112,dati_bdv!N$2:N$65536)","v":0}]
[{"$f":"dati_pdc!A113","v":0},{"$f":"SUMIF(IF(dati_pdc!$C113=1,dati_bdv!$C$2:$C$65536,IF(dati_pdc!$C113=2,dati_bdv!$D$2:$D$65536,IF(dati_pdc!$C113=3,dati_bdv!$E$2:$E$65536,IF(dati_pdc!$C113=4,dati_bdv!$F$2:$F$65536,IF(dati_pdc!$C113=5,dati_bdv!$G$2:$G$65536,dati_bdv!$H$2:$H$65536))))),$A113,dati_bdv!J$2:J$65536)","v":0},{"$f":"SUMIF(IF(dati_pdc!$C113=1,dati_bdv!$C$2:$C$65536,IF(dati_pdc!$C113=2,dati_bdv!$D$2:$D$65536,IF(dati_pdc!$C113=3,dati_bdv!$E$2:$E$65536,IF(dati_pdc!$C113=4,dati_bdv!$F$2:$F$65536,IF(dati_pdc!$C113=5,dati_bdv!$G$2:$G$65536,dati_bdv!$H$2:$H$65536))))),$A113,dati_bdv!K$2:K$65536)","v":0},{"$f":"SUMIF(IF(dati_pdc!$C113=1,dati_bdv!$C$2:$C$65536,IF(dati_pdc!$C113=2,dati_bdv!$D$2:$D$65536,IF(dati_pdc!$C113=3,dati_bdv!$E$2:$E$65536,IF(dati_pdc!$C113=4,dati_bdv!$F$2:$F$65536,IF(dati_pdc!$C113=5,dati_bdv!$G$2:$G$65536,dati_bdv!$H$2:$H$65536))))),$A113,dati_bdv!L$2:L$65536)","v":0},{"$f":"SUMIF(IF(dati_pdc!$C113=1,dati_bdv!$C$2:$C$65536,IF(dati_pdc!$C113=2,dati_bdv!$D$2:$D$65536,IF(dati_pdc!$C113=3,dati_bdv!$E$2:$E$65536,IF(dati_pdc!$C113=4,dati_bdv!$F$2:$F$65536,IF(dati_pdc!$C113=5,dati_bdv!$G$2:$G$65536,dati_bdv!$H$2:$H$65536))))),$A113,dati_bdv!M$2:M$65536)","v":0},{"$f":"SUMIF(IF(dati_pdc!$C113=1,dati_bdv!$C$2:$C$65536,IF(dati_pdc!$C113=2,dati_bdv!$D$2:$D$65536,IF(dati_pdc!$C113=3,dati_bdv!$E$2:$E$65536,IF(dati_pdc!$C113=4,dati_bdv!$F$2:$F$65536,IF(dati_pdc!$C113=5,dati_bdv!$G$2:$G$65536,dati_bdv!$H$2:$H$65536))))),$A113,dati_bdv!N$2:N$65536)","v":0}]
[{"$f":"dati_pdc!A114","v":0},{"$f":"SUMIF(IF(dati_pdc!$C114=1,dati_bdv!$C$2:$C$65536,IF(dati_pdc!$C114=2,dati_bdv!$D$2:$D$65536,IF(dati_pdc!$C114=3,dati_bdv!$E$2:$E$65536,IF(dati_pdc!$C114=4,dati_bdv!$F$2:$F$65536,IF(dati_pdc!$C114=5,dati_bdv!$G$2:$G$65536,dati_bdv!$H$2:$H$65536))))),$A114,dati_bdv!J$2:J$65536)","v":0},{"$f":"SUMIF(IF(dati_pdc!$C114=1,dati_bdv!$C$2:$C$65536,IF(dati_pdc!$C114=2,dati_bdv!$D$2:$D$65536,IF(dati_pdc!$C114=3,dati_bdv!$E$2:$E$65536,IF(dati_pdc!$C114=4,dati_bdv!$F$2:$F$65536,IF(dati_pdc!$C114=5,dati_bdv!$G$2:$G$65536,dati_bdv!$H$2:$H$65536))))),$A114,dati_bdv!K$2:K$65536)","v":0},{"$f":"SUMIF(IF(dati_pdc!$C114=1,dati_bdv!$C$2:$C$65536,IF(dati_pdc!$C114=2,dati_bdv!$D$2:$D$65536,IF(dati_pdc!$C114=3,dati_bdv!$E$2:$E$65536,IF(dati_pdc!$C114=4,dati_bdv!$F$2:$F$65536,IF(dati_pdc!$C114=5,dati_bdv!$G$2:$G$65536,dati_bdv!$H$2:$H$65536))))),$A114,dati_bdv!L$2:L$65536)","v":0},{"$f":"SUMIF(IF(dati_pdc!$C114=1,dati_bdv!$C$2:$C$65536,IF(dati_pdc!$C114=2,dati_bdv!$D$2:$D$65536,IF(dati_pdc!$C114=3,dati_bdv!$E$2:$E$65536,IF(dati_pdc!$C114=4,dati_bdv!$F$2:$F$65536,IF(dati_pdc!$C114=5,dati_bdv!$G$2:$G$65536,dati_bdv!$H$2:$H$65536))))),$A114,dati_bdv!M$2:M$65536)","v":0},{"$f":"SUMIF(IF(dati_pdc!$C114=1,dati_bdv!$C$2:$C$65536,IF(dati_pdc!$C114=2,dati_bdv!$D$2:$D$65536,IF(dati_pdc!$C114=3,dati_bdv!$E$2:$E$65536,IF(dati_pdc!$C114=4,dati_bdv!$F$2:$F$65536,IF(dati_pdc!$C114=5,dati_bdv!$G$2:$G$65536,dati_bdv!$H$2:$H$65536))))),$A114,dati_bdv!N$2:N$65536)","v":0}]
[{"$f":"dati_pdc!A115","v":0},{"$f":"SUMIF(IF(dati_pdc!$C115=1,dati_bdv!$C$2:$C$65536,IF(dati_pdc!$C115=2,dati_bdv!$D$2:$D$65536,IF(dati_pdc!$C115=3,dati_bdv!$E$2:$E$65536,IF(dati_pdc!$C115=4,dati_bdv!$F$2:$F$65536,IF(dati_pdc!$C115=5,dati_bdv!$G$2:$G$65536,dati_bdv!$H$2:$H$65536))))),$A115,dati_bdv!J$2:J$65536)","v":0},{"$f":"SUMIF(IF(dati_pdc!$C115=1,dati_bdv!$C$2:$C$65536,IF(dati_pdc!$C115=2,dati_bdv!$D$2:$D$65536,IF(dati_pdc!$C115=3,dati_bdv!$E$2:$E$65536,IF(dati_pdc!$C115=4,dati_bdv!$F$2:$F$65536,IF(dati_pdc!$C115=5,dati_bdv!$G$2:$G$65536,dati_bdv!$H$2:$H$65536))))),$A115,dati_bdv!K$2:K$65536)","v":0},{"$f":"SUMIF(IF(dati_pdc!$C115=1,dati_bdv!$C$2:$C$65536,IF(dati_pdc!$C115=2,dati_bdv!$D$2:$D$65536,IF(dati_pdc!$C115=3,dati_bdv!$E$2:$E$65536,IF(dati_pdc!$C115=4,dati_bdv!$F$2:$F$65536,IF(dati_pdc!$C115=5,dati_bdv!$G$2:$G$65536,dati_bdv!$H$2:$H$65536))))),$A115,dati_bdv!L$2:L$65536)","v":0},{"$f":"SUMIF(IF(dati_pdc!$C115=1,dati_bdv!$C$2:$C$65536,IF(dati_pdc!$C115=2,dati_bdv!$D$2:$D$65536,IF(dati_pdc!$C115=3,dati_bdv!$E$2:$E$65536,IF(dati_pdc!$C115=4,dati_bdv!$F$2:$F$65536,IF(dati_pdc!$C115=5,dati_bdv!$G$2:$G$65536,dati_bdv!$H$2:$H$65536))))),$A115,dati_bdv!M$2:M$65536)","v":0},{"$f":"SUMIF(IF(dati_pdc!$C115=1,dati_bdv!$C$2:$C$65536,IF(dati_pdc!$C115=2,dati_bdv!$D$2:$D$65536,IF(dati_pdc!$C115=3,dati_bdv!$E$2:$E$65536,IF(dati_pdc!$C115=4,dati_bdv!$F$2:$F$65536,IF(dati_pdc!$C115=5,dati_bdv!$G$2:$G$65536,dati_bdv!$H$2:$H$65536))))),$A115,dati_bdv!N$2:N$65536)","v":0}]
[{"$f":"dati_pdc!A116","v":0},{"$f":"SUMIF(IF(dati_pdc!$C116=1,dati_bdv!$C$2:$C$65536,IF(dati_pdc!$C116=2,dati_bdv!$D$2:$D$65536,IF(dati_pdc!$C116=3,dati_bdv!$E$2:$E$65536,IF(dati_pdc!$C116=4,dati_bdv!$F$2:$F$65536,IF(dati_pdc!$C116=5,dati_bdv!$G$2:$G$65536,dati_bdv!$H$2:$H$65536))))),$A116,dati_bdv!J$2:J$65536)","v":0},{"$f":"SUMIF(IF(dati_pdc!$C116=1,dati_bdv!$C$2:$C$65536,IF(dati_pdc!$C116=2,dati_bdv!$D$2:$D$65536,IF(dati_pdc!$C116=3,dati_bdv!$E$2:$E$65536,IF(dati_pdc!$C116=4,dati_bdv!$F$2:$F$65536,IF(dati_pdc!$C116=5,dati_bdv!$G$2:$G$65536,dati_bdv!$H$2:$H$65536))))),$A116,dati_bdv!K$2:K$65536)","v":0},{"$f":"SUMIF(IF(dati_pdc!$C116=1,dati_bdv!$C$2:$C$65536,IF(dati_pdc!$C116=2,dati_bdv!$D$2:$D$65536,IF(dati_pdc!$C116=3,dati_bdv!$E$2:$E$65536,IF(dati_pdc!$C116=4,dati_bdv!$F$2:$F$65536,IF(dati_pdc!$C116=5,dati_bdv!$G$2:$G$65536,dati_bdv!$H$2:$H$65536))))),$A116,dati_bdv!L$2:L$65536)","v":0},{"$f":"SUMIF(IF(dati_pdc!$C116=1,dati_bdv!$C$2:$C$65536,IF(dati_pdc!$C116=2,dati_bdv!$D$2:$D$65536,IF(dati_pdc!$C116=3,dati_bdv!$E$2:$E$65536,IF(dati_pdc!$C116=4,dati_bdv!$F$2:$F$65536,IF(dati_pdc!$C116=5,dati_bdv!$G$2:$G$65536,dati_bdv!$H$2:$H$65536))))),$A116,dati_bdv!M$2:M$65536)","v":0},{"$f":"SUMIF(IF(dati_pdc!$C116=1,dati_bdv!$C$2:$C$65536,IF(dati_pdc!$C116=2,dati_bdv!$D$2:$D$65536,IF(dati_pdc!$C116=3,dati_bdv!$E$2:$E$65536,IF(dati_pdc!$C116=4,dati_bdv!$F$2:$F$65536,IF(dati_pdc!$C116=5,dati_bdv!$G$2:$G$65536,dati_bdv!$H$2:$H$65536))))),$A116,dati_bdv!N$2:N$65536)","v":0}]
[{"$f":"dati_pdc!A117","v":0},{"$f":"SUMIF(IF(dati_pdc!$C117=1,dati_bdv!$C$2:$C$65536,IF(dati_pdc!$C117=2,dati_bdv!$D$2:$D$65536,IF(dati_pdc!$C117=3,dati_bdv!$E$2:$E$65536,IF(dati_pdc!$C117=4,dati_bdv!$F$2:$F$65536,IF(dati_pdc!$C117=5,dati_bdv!$G$2:$G$65536,dati_bdv!$H$2:$H$65536))))),$A117,dati_bdv!J$2:J$65536)","v":0},{"$f":"SUMIF(IF(dati_pdc!$C117=1,dati_bdv!$C$2:$C$65536,IF(dati_pdc!$C117=2,dati_bdv!$D$2:$D$65536,IF(dati_pdc!$C117=3,dati_bdv!$E$2:$E$65536,IF(dati_pdc!$C117=4,dati_bdv!$F$2:$F$65536,IF(dati_pdc!$C117=5,dati_bdv!$G$2:$G$65536,dati_bdv!$H$2:$H$65536))))),$A117,dati_bdv!K$2:K$65536)","v":0},{"$f":"SUMIF(IF(dati_pdc!$C117=1,dati_bdv!$C$2:$C$65536,IF(dati_pdc!$C117=2,dati_bdv!$D$2:$D$65536,IF(dati_pdc!$C117=3,dati_bdv!$E$2:$E$65536,IF(dati_pdc!$C117=4,dati_bdv!$F$2:$F$65536,IF(dati_pdc!$C117=5,dati_bdv!$G$2:$G$65536,dati_bdv!$H$2:$H$65536))))),$A117,dati_bdv!L$2:L$65536)","v":0},{"$f":"SUMIF(IF(dati_pdc!$C117=1,dati_bdv!$C$2:$C$65536,IF(dati_pdc!$C117=2,dati_bdv!$D$2:$D$65536,IF(dati_pdc!$C117=3,dati_bdv!$E$2:$E$65536,IF(dati_pdc!$C117=4,dati_bdv!$F$2:$F$65536,IF(dati_pdc!$C117=5,dati_bdv!$G$2:$G$65536,dati_bdv!$H$2:$H$65536))))),$A117,dati_bdv!M$2:M$65536)","v":0},{"$f":"SUMIF(IF(dati_pdc!$C117=1,dati_bdv!$C$2:$C$65536,IF(dati_pdc!$C117=2,dati_bdv!$D$2:$D$65536,IF(dati_pdc!$C117=3,dati_bdv!$E$2:$E$65536,IF(dati_pdc!$C117=4,dati_bdv!$F$2:$F$65536,IF(dati_pdc!$C117=5,dati_bdv!$G$2:$G$65536,dati_bdv!$H$2:$H$65536))))),$A117,dati_bdv!N$2:N$65536)","v":0}]
[{"$f":"dati_pdc!A118","v":0},{"$f":"SUMIF(IF(dati_pdc!$C118=1,dati_bdv!$C$2:$C$65536,IF(dati_pdc!$C118=2,dati_bdv!$D$2:$D$65536,IF(dati_pdc!$C118=3,dati_bdv!$E$2:$E$65536,IF(dati_pdc!$C118=4,dati_bdv!$F$2:$F$65536,IF(dati_pdc!$C118=5,dati_bdv!$G$2:$G$65536,dati_bdv!$H$2:$H$65536))))),$A118,dati_bdv!J$2:J$65536)","v":0},{"$f":"SUMIF(IF(dati_pdc!$C118=1,dati_bdv!$C$2:$C$65536,IF(dati_pdc!$C118=2,dati_bdv!$D$2:$D$65536,IF(dati_pdc!$C118=3,dati_bdv!$E$2:$E$65536,IF(dati_pdc!$C118=4,dati_bdv!$F$2:$F$65536,IF(dati_pdc!$C118=5,dati_bdv!$G$2:$G$65536,dati_bdv!$H$2:$H$65536))))),$A118,dati_bdv!K$2:K$65536)","v":0},{"$f":"SUMIF(IF(dati_pdc!$C118=1,dati_bdv!$C$2:$C$65536,IF(dati_pdc!$C118=2,dati_bdv!$D$2:$D$65536,IF(dati_pdc!$C118=3,dati_bdv!$E$2:$E$65536,IF(dati_pdc!$C118=4,dati_bdv!$F$2:$F$65536,IF(dati_pdc!$C118=5,dati_bdv!$G$2:$G$65536,dati_bdv!$H$2:$H$65536))))),$A118,dati_bdv!L$2:L$65536)","v":0},{"$f":"SUMIF(IF(dati_pdc!$C118=1,dati_bdv!$C$2:$C$65536,IF(dati_pdc!$C118=2,dati_bdv!$D$2:$D$65536,IF(dati_pdc!$C118=3,dati_bdv!$E$2:$E$65536,IF(dati_pdc!$C118=4,dati_bdv!$F$2:$F$65536,IF(dati_pdc!$C118=5,dati_bdv!$G$2:$G$65536,dati_bdv!$H$2:$H$65536))))),$A118,dati_bdv!M$2:M$65536)","v":0},{"$f":"SUMIF(IF(dati_pdc!$C118=1,dati_bdv!$C$2:$C$65536,IF(dati_pdc!$C118=2,dati_bdv!$D$2:$D$65536,IF(dati_pdc!$C118=3,dati_bdv!$E$2:$E$65536,IF(dati_pdc!$C118=4,dati_bdv!$F$2:$F$65536,IF(dati_pdc!$C118=5,dati_bdv!$G$2:$G$65536,dati_bdv!$H$2:$H$65536))))),$A118,dati_bdv!N$2:N$65536)","v":0}]
[{"$f":"dati_pdc!A119","v":0},{"$f":"SUMIF(IF(dati_pdc!$C119=1,dati_bdv!$C$2:$C$65536,IF(dati_pdc!$C119=2,dati_bdv!$D$2:$D$65536,IF(dati_pdc!$C119=3,dati_bdv!$E$2:$E$65536,IF(dati_pdc!$C119=4,dati_bdv!$F$2:$F$65536,IF(dati_pdc!$C119=5,dati_bdv!$G$2:$G$65536,dati_bdv!$H$2:$H$65536))))),$A119,dati_bdv!J$2:J$65536)","v":0},{"$f":"SUMIF(IF(dati_pdc!$C119=1,dati_bdv!$C$2:$C$65536,IF(dati_pdc!$C119=2,dati_bdv!$D$2:$D$65536,IF(dati_pdc!$C119=3,dati_bdv!$E$2:$E$65536,IF(dati_pdc!$C119=4,dati_bdv!$F$2:$F$65536,IF(dati_pdc!$C119=5,dati_bdv!$G$2:$G$65536,dati_bdv!$H$2:$H$65536))))),$A119,dati_bdv!K$2:K$65536)","v":0},{"$f":"SUMIF(IF(dati_pdc!$C119=1,dati_bdv!$C$2:$C$65536,IF(dati_pdc!$C119=2,dati_bdv!$D$2:$D$65536,IF(dati_pdc!$C119=3,dati_bdv!$E$2:$E$65536,IF(dati_pdc!$C119=4,dati_bdv!$F$2:$F$65536,IF(dati_pdc!$C119=5,dati_bdv!$G$2:$G$65536,dati_bdv!$H$2:$H$65536))))),$A119,dati_bdv!L$2:L$65536)","v":0},{"$f":"SUMIF(IF(dati_pdc!$C119=1,dati_bdv!$C$2:$C$65536,IF(dati_pdc!$C119=2,dati_bdv!$D$2:$D$65536,IF(dati_pdc!$C119=3,dati_bdv!$E$2:$E$65536,IF(dati_pdc!$C119=4,dati_bdv!$F$2:$F$65536,IF(dati_pdc!$C119=5,dati_bdv!$G$2:$G$65536,dati_bdv!$H$2:$H$65536))))),$A119,dati_bdv!M$2:M$65536)","v":0},{"$f":"SUMIF(IF(dati_pdc!$C119=1,dati_bdv!$C$2:$C$65536,IF(dati_pdc!$C119=2,dati_bdv!$D$2:$D$65536,IF(dati_pdc!$C119=3,dati_bdv!$E$2:$E$65536,IF(dati_pdc!$C119=4,dati_bdv!$F$2:$F$65536,IF(dati_pdc!$C119=5,dati_bdv!$G$2:$G$65536,dati_bdv!$H$2:$H$65536))))),$A119,dati_bdv!N$2:N$65536)","v":0}]
[{"$f":"dati_pdc!A120","v":0},{"$f":"SUMIF(IF(dati_pdc!$C120=1,dati_bdv!$C$2:$C$65536,IF(dati_pdc!$C120=2,dati_bdv!$D$2:$D$65536,IF(dati_pdc!$C120=3,dati_bdv!$E$2:$E$65536,IF(dati_pdc!$C120=4,dati_bdv!$F$2:$F$65536,IF(dati_pdc!$C120=5,dati_bdv!$G$2:$G$65536,dati_bdv!$H$2:$H$65536))))),$A120,dati_bdv!J$2:J$65536)","v":0},{"$f":"SUMIF(IF(dati_pdc!$C120=1,dati_bdv!$C$2:$C$65536,IF(dati_pdc!$C120=2,dati_bdv!$D$2:$D$65536,IF(dati_pdc!$C120=3,dati_bdv!$E$2:$E$65536,IF(dati_pdc!$C120=4,dati_bdv!$F$2:$F$65536,IF(dati_pdc!$C120=5,dati_bdv!$G$2:$G$65536,dati_bdv!$H$2:$H$65536))))),$A120,dati_bdv!K$2:K$65536)","v":0},{"$f":"SUMIF(IF(dati_pdc!$C120=1,dati_bdv!$C$2:$C$65536,IF(dati_pdc!$C120=2,dati_bdv!$D$2:$D$65536,IF(dati_pdc!$C120=3,dati_bdv!$E$2:$E$65536,IF(dati_pdc!$C120=4,dati_bdv!$F$2:$F$65536,IF(dati_pdc!$C120=5,dati_bdv!$G$2:$G$65536,dati_bdv!$H$2:$H$65536))))),$A120,dati_bdv!L$2:L$65536)","v":0},{"$f":"SUMIF(IF(dati_pdc!$C120=1,dati_bdv!$C$2:$C$65536,IF(dati_pdc!$C120=2,dati_bdv!$D$2:$D$65536,IF(dati_pdc!$C120=3,dati_bdv!$E$2:$E$65536,IF(dati_pdc!$C120=4,dati_bdv!$F$2:$F$65536,IF(dati_pdc!$C120=5,dati_bdv!$G$2:$G$65536,dati_bdv!$H$2:$H$65536))))),$A120,dati_bdv!M$2:M$65536)","v":0},{"$f":"SUMIF(IF(dati_pdc!$C120=1,dati_bdv!$C$2:$C$65536,IF(dati_pdc!$C120=2,dati_bdv!$D$2:$D$65536,IF(dati_pdc!$C120=3,dati_bdv!$E$2:$E$65536,IF(dati_pdc!$C120=4,dati_bdv!$F$2:$F$65536,IF(dati_pdc!$C120=5,dati_bdv!$G$2:$G$65536,dati_bdv!$H$2:$H$65536))))),$A120,dati_bdv!N$2:N$65536)","v":0}]
[{"$f":"dati_pdc!A121","v":0},{"$f":"SUMIF(IF(dati_pdc!$C121=1,dati_bdv!$C$2:$C$65536,IF(dati_pdc!$C121=2,dati_bdv!$D$2:$D$65536,IF(dati_pdc!$C121=3,dati_bdv!$E$2:$E$65536,IF(dati_pdc!$C121=4,dati_bdv!$F$2:$F$65536,IF(dati_pdc!$C121=5,dati_bdv!$G$2:$G$65536,dati_bdv!$H$2:$H$65536))))),$A121,dati_bdv!J$2:J$65536)","v":0},{"$f":"SUMIF(IF(dati_pdc!$C121=1,dati_bdv!$C$2:$C$65536,IF(dati_pdc!$C121=2,dati_bdv!$D$2:$D$65536,IF(dati_pdc!$C121=3,dati_bdv!$E$2:$E$65536,IF(dati_pdc!$C121=4,dati_bdv!$F$2:$F$65536,IF(dati_pdc!$C121=5,dati_bdv!$G$2:$G$65536,dati_bdv!$H$2:$H$65536))))),$A121,dati_bdv!K$2:K$65536)","v":0},{"$f":"SUMIF(IF(dati_pdc!$C121=1,dati_bdv!$C$2:$C$65536,IF(dati_pdc!$C121=2,dati_bdv!$D$2:$D$65536,IF(dati_pdc!$C121=3,dati_bdv!$E$2:$E$65536,IF(dati_pdc!$C121=4,dati_bdv!$F$2:$F$65536,IF(dati_pdc!$C121=5,dati_bdv!$G$2:$G$65536,dati_bdv!$H$2:$H$65536))))),$A121,dati_bdv!L$2:L$65536)","v":0},{"$f":"SUMIF(IF(dati_pdc!$C121=1,dati_bdv!$C$2:$C$65536,IF(dati_pdc!$C121=2,dati_bdv!$D$2:$D$65536,IF(dati_pdc!$C121=3,dati_bdv!$E$2:$E$65536,IF(dati_pdc!$C121=4,dati_bdv!$F$2:$F$65536,IF(dati_pdc!$C121=5,dati_bdv!$G$2:$G$65536,dati_bdv!$H$2:$H$65536))))),$A121,dati_bdv!M$2:M$65536)","v":0},{"$f":"SUMIF(IF(dati_pdc!$C121=1,dati_bdv!$C$2:$C$65536,IF(dati_pdc!$C121=2,dati_bdv!$D$2:$D$65536,IF(dati_pdc!$C121=3,dati_bdv!$E$2:$E$65536,IF(dati_pdc!$C121=4,dati_bdv!$F$2:$F$65536,IF(dati_pdc!$C121=5,dati_bdv!$G$2:$G$65536,dati_bdv!$H$2:$H$65536))))),$A121,dati_bdv!N$2:N$65536)","v":0}]
[{"$f":"dati_pdc!A122","v":0},{"$f":"SUMIF(IF(dati_pdc!$C122=1,dati_bdv!$C$2:$C$65536,IF(dati_pdc!$C122=2,dati_bdv!$D$2:$D$65536,IF(dati_pdc!$C122=3,dati_bdv!$E$2:$E$65536,IF(dati_pdc!$C122=4,dati_bdv!$F$2:$F$65536,IF(dati_pdc!$C122=5,dati_bdv!$G$2:$G$65536,dati_bdv!$H$2:$H$65536))))),$A122,dati_bdv!J$2:J$65536)","v":0},{"$f":"SUMIF(IF(dati_pdc!$C122=1,dati_bdv!$C$2:$C$65536,IF(dati_pdc!$C122=2,dati_bdv!$D$2:$D$65536,IF(dati_pdc!$C122=3,dati_bdv!$E$2:$E$65536,IF(dati_pdc!$C122=4,dati_bdv!$F$2:$F$65536,IF(dati_pdc!$C122=5,dati_bdv!$G$2:$G$65536,dati_bdv!$H$2:$H$65536))))),$A122,dati_bdv!K$2:K$65536)","v":0},{"$f":"SUMIF(IF(dati_pdc!$C122=1,dati_bdv!$C$2:$C$65536,IF(dati_pdc!$C122=2,dati_bdv!$D$2:$D$65536,IF(dati_pdc!$C122=3,dati_bdv!$E$2:$E$65536,IF(dati_pdc!$C122=4,dati_bdv!$F$2:$F$65536,IF(dati_pdc!$C122=5,dati_bdv!$G$2:$G$65536,dati_bdv!$H$2:$H$65536))))),$A122,dati_bdv!L$2:L$65536)","v":0},{"$f":"SUMIF(IF(dati_pdc!$C122=1,dati_bdv!$C$2:$C$65536,IF(dati_pdc!$C122=2,dati_bdv!$D$2:$D$65536,IF(dati_pdc!$C122=3,dati_bdv!$E$2:$E$65536,IF(dati_pdc!$C122=4,dati_bdv!$F$2:$F$65536,IF(dati_pdc!$C122=5,dati_bdv!$G$2:$G$65536,dati_bdv!$H$2:$H$65536))))),$A122,dati_bdv!M$2:M$65536)","v":0},{"$f":"SUMIF(IF(dati_pdc!$C122=1,dati_bdv!$C$2:$C$65536,IF(dati_pdc!$C122=2,dati_bdv!$D$2:$D$65536,IF(dati_pdc!$C122=3,dati_bdv!$E$2:$E$65536,IF(dati_pdc!$C122=4,dati_bdv!$F$2:$F$65536,IF(dati_pdc!$C122=5,dati_bdv!$G$2:$G$65536,dati_bdv!$H$2:$H$65536))))),$A122,dati_bdv!N$2:N$65536)","v":0}]
[{"$f":"dati_pdc!A123","v":0},{"$f":"SUMIF(IF(dati_pdc!$C123=1,dati_bdv!$C$2:$C$65536,IF(dati_pdc!$C123=2,dati_bdv!$D$2:$D$65536,IF(dati_pdc!$C123=3,dati_bdv!$E$2:$E$65536,IF(dati_pdc!$C123=4,dati_bdv!$F$2:$F$65536,IF(dati_pdc!$C123=5,dati_bdv!$G$2:$G$65536,dati_bdv!$H$2:$H$65536))))),$A123,dati_bdv!J$2:J$65536)","v":0},{"$f":"SUMIF(IF(dati_pdc!$C123=1,dati_bdv!$C$2:$C$65536,IF(dati_pdc!$C123=2,dati_bdv!$D$2:$D$65536,IF(dati_pdc!$C123=3,dati_bdv!$E$2:$E$65536,IF(dati_pdc!$C123=4,dati_bdv!$F$2:$F$65536,IF(dati_pdc!$C123=5,dati_bdv!$G$2:$G$65536,dati_bdv!$H$2:$H$65536))))),$A123,dati_bdv!K$2:K$65536)","v":0},{"$f":"SUMIF(IF(dati_pdc!$C123=1,dati_bdv!$C$2:$C$65536,IF(dati_pdc!$C123=2,dati_bdv!$D$2:$D$65536,IF(dati_pdc!$C123=3,dati_bdv!$E$2:$E$65536,IF(dati_pdc!$C123=4,dati_bdv!$F$2:$F$65536,IF(dati_pdc!$C123=5,dati_bdv!$G$2:$G$65536,dati_bdv!$H$2:$H$65536))))),$A123,dati_bdv!L$2:L$65536)","v":0},{"$f":"SUMIF(IF(dati_pdc!$C123=1,dati_bdv!$C$2:$C$65536,IF(dati_pdc!$C123=2,dati_bdv!$D$2:$D$65536,IF(dati_pdc!$C123=3,dati_bdv!$E$2:$E$65536,IF(dati_pdc!$C123=4,dati_bdv!$F$2:$F$65536,IF(dati_pdc!$C123=5,dati_bdv!$G$2:$G$65536,dati_bdv!$H$2:$H$65536))))),$A123,dati_bdv!M$2:M$65536)","v":0},{"$f":"SUMIF(IF(dati_pdc!$C123=1,dati_bdv!$C$2:$C$65536,IF(dati_pdc!$C123=2,dati_bdv!$D$2:$D$65536,IF(dati_pdc!$C123=3,dati_bdv!$E$2:$E$65536,IF(dati_pdc!$C123=4,dati_bdv!$F$2:$F$65536,IF(dati_pdc!$C123=5,dati_bdv!$G$2:$G$65536,dati_bdv!$H$2:$H$65536))))),$A123,dati_bdv!N$2:N$65536)","v":0}]
[{"$f":"dati_pdc!A124","v":0},{"$f":"SUMIF(IF(dati_pdc!$C124=1,dati_bdv!$C$2:$C$65536,IF(dati_pdc!$C124=2,dati_bdv!$D$2:$D$65536,IF(dati_pdc!$C124=3,dati_bdv!$E$2:$E$65536,IF(dati_pdc!$C124=4,dati_bdv!$F$2:$F$65536,IF(dati_pdc!$C124=5,dati_bdv!$G$2:$G$65536,dati_bdv!$H$2:$H$65536))))),$A124,dati_bdv!J$2:J$65536)","v":0},{"$f":"SUMIF(IF(dati_pdc!$C124=1,dati_bdv!$C$2:$C$65536,IF(dati_pdc!$C124=2,dati_bdv!$D$2:$D$65536,IF(dati_pdc!$C124=3,dati_bdv!$E$2:$E$65536,IF(dati_pdc!$C124=4,dati_bdv!$F$2:$F$65536,IF(dati_pdc!$C124=5,dati_bdv!$G$2:$G$65536,dati_bdv!$H$2:$H$65536))))),$A124,dati_bdv!K$2:K$65536)","v":0},{"$f":"SUMIF(IF(dati_pdc!$C124=1,dati_bdv!$C$2:$C$65536,IF(dati_pdc!$C124=2,dati_bdv!$D$2:$D$65536,IF(dati_pdc!$C124=3,dati_bdv!$E$2:$E$65536,IF(dati_pdc!$C124=4,dati_bdv!$F$2:$F$65536,IF(dati_pdc!$C124=5,dati_bdv!$G$2:$G$65536,dati_bdv!$H$2:$H$65536))))),$A124,dati_bdv!L$2:L$65536)","v":0},{"$f":"SUMIF(IF(dati_pdc!$C124=1,dati_bdv!$C$2:$C$65536,IF(dati_pdc!$C124=2,dati_bdv!$D$2:$D$65536,IF(dati_pdc!$C124=3,dati_bdv!$E$2:$E$65536,IF(dati_pdc!$C124=4,dati_bdv!$F$2:$F$65536,IF(dati_pdc!$C124=5,dati_bdv!$G$2:$G$65536,dati_bdv!$H$2:$H$65536))))),$A124,dati_bdv!M$2:M$65536)","v":0},{"$f":"SUMIF(IF(dati_pdc!$C124=1,dati_bdv!$C$2:$C$65536,IF(dati_pdc!$C124=2,dati_bdv!$D$2:$D$65536,IF(dati_pdc!$C124=3,dati_bdv!$E$2:$E$65536,IF(dati_pdc!$C124=4,dati_bdv!$F$2:$F$65536,IF(dati_pdc!$C124=5,dati_bdv!$G$2:$G$65536,dati_bdv!$H$2:$H$65536))))),$A124,dati_bdv!N$2:N$65536)","v":0}]
[{"$f":"dati_pdc!A125","v":0},{"$f":"SUMIF(IF(dati_pdc!$C125=1,dati_bdv!$C$2:$C$65536,IF(dati_pdc!$C125=2,dati_bdv!$D$2:$D$65536,IF(dati_pdc!$C125=3,dati_bdv!$E$2:$E$65536,IF(dati_pdc!$C125=4,dati_bdv!$F$2:$F$65536,IF(dati_pdc!$C125=5,dati_bdv!$G$2:$G$65536,dati_bdv!$H$2:$H$65536))))),$A125,dati_bdv!J$2:J$65536)","v":0},{"$f":"SUMIF(IF(dati_pdc!$C125=1,dati_bdv!$C$2:$C$65536,IF(dati_pdc!$C125=2,dati_bdv!$D$2:$D$65536,IF(dati_pdc!$C125=3,dati_bdv!$E$2:$E$65536,IF(dati_pdc!$C125=4,dati_bdv!$F$2:$F$65536,IF(dati_pdc!$C125=5,dati_bdv!$G$2:$G$65536,dati_bdv!$H$2:$H$65536))))),$A125,dati_bdv!K$2:K$65536)","v":0},{"$f":"SUMIF(IF(dati_pdc!$C125=1,dati_bdv!$C$2:$C$65536,IF(dati_pdc!$C125=2,dati_bdv!$D$2:$D$65536,IF(dati_pdc!$C125=3,dati_bdv!$E$2:$E$65536,IF(dati_pdc!$C125=4,dati_bdv!$F$2:$F$65536,IF(dati_pdc!$C125=5,dati_bdv!$G$2:$G$65536,dati_bdv!$H$2:$H$65536))))),$A125,dati_bdv!L$2:L$65536)","v":0},{"$f":"SUMIF(IF(dati_pdc!$C125=1,dati_bdv!$C$2:$C$65536,IF(dati_pdc!$C125=2,dati_bdv!$D$2:$D$65536,IF(dati_pdc!$C125=3,dati_bdv!$E$2:$E$65536,IF(dati_pdc!$C125=4,dati_bdv!$F$2:$F$65536,IF(dati_pdc!$C125=5,dati_bdv!$G$2:$G$65536,dati_bdv!$H$2:$H$65536))))),$A125,dati_bdv!M$2:M$65536)","v":0},{"$f":"SUMIF(IF(dati_pdc!$C125=1,dati_bdv!$C$2:$C$65536,IF(dati_pdc!$C125=2,dati_bdv!$D$2:$D$65536,IF(dati_pdc!$C125=3,dati_bdv!$E$2:$E$65536,IF(dati_pdc!$C125=4,dati_bdv!$F$2:$F$65536,IF(dati_pdc!$C125=5,dati_bdv!$G$2:$G$65536,dati_bdv!$H$2:$H$65536))))),$A125,dati_bdv!N$2:N$65536)","v":0}]
[{"$f":"dati_pdc!A126","v":0},{"$f":"SUMIF(IF(dati_pdc!$C126=1,dati_bdv!$C$2:$C$65536,IF(dati_pdc!$C126=2,dati_bdv!$D$2:$D$65536,IF(dati_pdc!$C126=3,dati_bdv!$E$2:$E$65536,IF(dati_pdc!$C126=4,dati_bdv!$F$2:$F$65536,IF(dati_pdc!$C126=5,dati_bdv!$G$2:$G$65536,dati_bdv!$H$2:$H$65536))))),$A126,dati_bdv!J$2:J$65536)","v":0},{"$f":"SUMIF(IF(dati_pdc!$C126=1,dati_bdv!$C$2:$C$65536,IF(dati_pdc!$C126=2,dati_bdv!$D$2:$D$65536,IF(dati_pdc!$C126=3,dati_bdv!$E$2:$E$65536,IF(dati_pdc!$C126=4,dati_bdv!$F$2:$F$65536,IF(dati_pdc!$C126=5,dati_bdv!$G$2:$G$65536,dati_bdv!$H$2:$H$65536))))),$A126,dati_bdv!K$2:K$65536)","v":0},{"$f":"SUMIF(IF(dati_pdc!$C126=1,dati_bdv!$C$2:$C$65536,IF(dati_pdc!$C126=2,dati_bdv!$D$2:$D$65536,IF(dati_pdc!$C126=3,dati_bdv!$E$2:$E$65536,IF(dati_pdc!$C126=4,dati_bdv!$F$2:$F$65536,IF(dati_pdc!$C126=5,dati_bdv!$G$2:$G$65536,dati_bdv!$H$2:$H$65536))))),$A126,dati_bdv!L$2:L$65536)","v":0},{"$f":"SUMIF(IF(dati_pdc!$C126=1,dati_bdv!$C$2:$C$65536,IF(dati_pdc!$C126=2,dati_bdv!$D$2:$D$65536,IF(dati_pdc!$C126=3,dati_bdv!$E$2:$E$65536,IF(dati_pdc!$C126=4,dati_bdv!$F$2:$F$65536,IF(dati_pdc!$C126=5,dati_bdv!$G$2:$G$65536,dati_bdv!$H$2:$H$65536))))),$A126,dati_bdv!M$2:M$65536)","v":0},{"$f":"SUMIF(IF(dati_pdc!$C126=1,dati_bdv!$C$2:$C$65536,IF(dati_pdc!$C126=2,dati_bdv!$D$2:$D$65536,IF(dati_pdc!$C126=3,dati_bdv!$E$2:$E$65536,IF(dati_pdc!$C126=4,dati_bdv!$F$2:$F$65536,IF(dati_pdc!$C126=5,dati_bdv!$G$2:$G$65536,dati_bdv!$H$2:$H$65536))))),$A126,dati_bdv!N$2:N$65536)","v":0}]
[{"$f":"dati_pdc!A127","v":0},{"$f":"SUMIF(IF(dati_pdc!$C127=1,dati_bdv!$C$2:$C$65536,IF(dati_pdc!$C127=2,dati_bdv!$D$2:$D$65536,IF(dati_pdc!$C127=3,dati_bdv!$E$2:$E$65536,IF(dati_pdc!$C127=4,dati_bdv!$F$2:$F$65536,IF(dati_pdc!$C127=5,dati_bdv!$G$2:$G$65536,dati_bdv!$H$2:$H$65536))))),$A127,dati_bdv!J$2:J$65536)","v":0},{"$f":"SUMIF(IF(dati_pdc!$C127=1,dati_bdv!$C$2:$C$65536,IF(dati_pdc!$C127=2,dati_bdv!$D$2:$D$65536,IF(dati_pdc!$C127=3,dati_bdv!$E$2:$E$65536,IF(dati_pdc!$C127=4,dati_bdv!$F$2:$F$65536,IF(dati_pdc!$C127=5,dati_bdv!$G$2:$G$65536,dati_bdv!$H$2:$H$65536))))),$A127,dati_bdv!K$2:K$65536)","v":0},{"$f":"SUMIF(IF(dati_pdc!$C127=1,dati_bdv!$C$2:$C$65536,IF(dati_pdc!$C127=2,dati_bdv!$D$2:$D$65536,IF(dati_pdc!$C127=3,dati_bdv!$E$2:$E$65536,IF(dati_pdc!$C127=4,dati_bdv!$F$2:$F$65536,IF(dati_pdc!$C127=5,dati_bdv!$G$2:$G$65536,dati_bdv!$H$2:$H$65536))))),$A127,dati_bdv!L$2:L$65536)","v":0},{"$f":"SUMIF(IF(dati_pdc!$C127=1,dati_bdv!$C$2:$C$65536,IF(dati_pdc!$C127=2,dati_bdv!$D$2:$D$65536,IF(dati_pdc!$C127=3,dati_bdv!$E$2:$E$65536,IF(dati_pdc!$C127=4,dati_bdv!$F$2:$F$65536,IF(dati_pdc!$C127=5,dati_bdv!$G$2:$G$65536,dati_bdv!$H$2:$H$65536))))),$A127,dati_bdv!M$2:M$65536)","v":0},{"$f":"SUMIF(IF(dati_pdc!$C127=1,dati_bdv!$C$2:$C$65536,IF(dati_pdc!$C127=2,dati_bdv!$D$2:$D$65536,IF(dati_pdc!$C127=3,dati_bdv!$E$2:$E$65536,IF(dati_pdc!$C127=4,dati_bdv!$F$2:$F$65536,IF(dati_pdc!$C127=5,dati_bdv!$G$2:$G$65536,dati_bdv!$H$2:$H$65536))))),$A127,dati_bdv!N$2:N$65536)","v":0}]
[{"$f":"dati_pdc!A128","v":0},{"$f":"SUMIF(IF(dati_pdc!$C128=1,dati_bdv!$C$2:$C$65536,IF(dati_pdc!$C128=2,dati_bdv!$D$2:$D$65536,IF(dati_pdc!$C128=3,dati_bdv!$E$2:$E$65536,IF(dati_pdc!$C128=4,dati_bdv!$F$2:$F$65536,IF(dati_pdc!$C128=5,dati_bdv!$G$2:$G$65536,dati_bdv!$H$2:$H$65536))))),$A128,dati_bdv!J$2:J$65536)","v":0},{"$f":"SUMIF(IF(dati_pdc!$C128=1,dati_bdv!$C$2:$C$65536,IF(dati_pdc!$C128=2,dati_bdv!$D$2:$D$65536,IF(dati_pdc!$C128=3,dati_bdv!$E$2:$E$65536,IF(dati_pdc!$C128=4,dati_bdv!$F$2:$F$65536,IF(dati_pdc!$C128=5,dati_bdv!$G$2:$G$65536,dati_bdv!$H$2:$H$65536))))),$A128,dati_bdv!K$2:K$65536)","v":0},{"$f":"SUMIF(IF(dati_pdc!$C128=1,dati_bdv!$C$2:$C$65536,IF(dati_pdc!$C128=2,dati_bdv!$D$2:$D$65536,IF(dati_pdc!$C128=3,dati_bdv!$E$2:$E$65536,IF(dati_pdc!$C128=4,dati_bdv!$F$2:$F$65536,IF(dati_pdc!$C128=5,dati_bdv!$G$2:$G$65536,dati_bdv!$H$2:$H$65536))))),$A128,dati_bdv!L$2:L$65536)","v":0},{"$f":"SUMIF(IF(dati_pdc!$C128=1,dati_bdv!$C$2:$C$65536,IF(dati_pdc!$C128=2,dati_bdv!$D$2:$D$65536,IF(dati_pdc!$C128=3,dati_bdv!$E$2:$E$65536,IF(dati_pdc!$C128=4,dati_bdv!$F$2:$F$65536,IF(dati_pdc!$C128=5,dati_bdv!$G$2:$G$65536,dati_bdv!$H$2:$H$65536))))),$A128,dati_bdv!M$2:M$65536)","v":0},{"$f":"SUMIF(IF(dati_pdc!$C128=1,dati_bdv!$C$2:$C$65536,IF(dati_pdc!$C128=2,dati_bdv!$D$2:$D$65536,IF(dati_pdc!$C128=3,dati_bdv!$E$2:$E$65536,IF(dati_pdc!$C128=4,dati_bdv!$F$2:$F$65536,IF(dati_pdc!$C128=5,dati_bdv!$G$2:$G$65536,dati_bdv!$H$2:$H$65536))))),$A128,dati_bdv!N$2:N$65536)","v":0}]
[{"$f":"dati_pdc!A129","v":0},{"$f":"SUMIF(IF(dati_pdc!$C129=1,dati_bdv!$C$2:$C$65536,IF(dati_pdc!$C129=2,dati_bdv!$D$2:$D$65536,IF(dati_pdc!$C129=3,dati_bdv!$E$2:$E$65536,IF(dati_pdc!$C129=4,dati_bdv!$F$2:$F$65536,IF(dati_pdc!$C129=5,dati_bdv!$G$2:$G$65536,dati_bdv!$H$2:$H$65536))))),$A129,dati_bdv!J$2:J$65536)","v":0},{"$f":"SUMIF(IF(dati_pdc!$C129=1,dati_bdv!$C$2:$C$65536,IF(dati_pdc!$C129=2,dati_bdv!$D$2:$D$65536,IF(dati_pdc!$C129=3,dati_bdv!$E$2:$E$65536,IF(dati_pdc!$C129=4,dati_bdv!$F$2:$F$65536,IF(dati_pdc!$C129=5,dati_bdv!$G$2:$G$65536,dati_bdv!$H$2:$H$65536))))),$A129,dati_bdv!K$2:K$65536)","v":0},{"$f":"SUMIF(IF(dati_pdc!$C129=1,dati_bdv!$C$2:$C$65536,IF(dati_pdc!$C129=2,dati_bdv!$D$2:$D$65536,IF(dati_pdc!$C129=3,dati_bdv!$E$2:$E$65536,IF(dati_pdc!$C129=4,dati_bdv!$F$2:$F$65536,IF(dati_pdc!$C129=5,dati_bdv!$G$2:$G$65536,dati_bdv!$H$2:$H$65536))))),$A129,dati_bdv!L$2:L$65536)","v":0},{"$f":"SUMIF(IF(dati_pdc!$C129=1,dati_bdv!$C$2:$C$65536,IF(dati_pdc!$C129=2,dati_bdv!$D$2:$D$65536,IF(dati_pdc!$C129=3,dati_bdv!$E$2:$E$65536,IF(dati_pdc!$C129=4,dati_bdv!$F$2:$F$65536,IF(dati_pdc!$C129=5,dati_bdv!$G$2:$G$65536,dati_bdv!$H$2:$H$65536))))),$A129,dati_bdv!M$2:M$65536)","v":0},{"$f":"SUMIF(IF(dati_pdc!$C129=1,dati_bdv!$C$2:$C$65536,IF(dati_pdc!$C129=2,dati_bdv!$D$2:$D$65536,IF(dati_pdc!$C129=3,dati_bdv!$E$2:$E$65536,IF(dati_pdc!$C129=4,dati_bdv!$F$2:$F$65536,IF(dati_pdc!$C129=5,dati_bdv!$G$2:$G$65536,dati_bdv!$H$2:$H$65536))))),$A129,dati_bdv!N$2:N$65536)","v":0}]
[{"$f":"dati_pdc!A130","v":0},{"$f":"SUMIF(IF(dati_pdc!$C130=1,dati_bdv!$C$2:$C$65536,IF(dati_pdc!$C130=2,dati_bdv!$D$2:$D$65536,IF(dati_pdc!$C130=3,dati_bdv!$E$2:$E$65536,IF(dati_pdc!$C130=4,dati_bdv!$F$2:$F$65536,IF(dati_pdc!$C130=5,dati_bdv!$G$2:$G$65536,dati_bdv!$H$2:$H$65536))))),$A130,dati_bdv!J$2:J$65536)","v":0},{"$f":"SUMIF(IF(dati_pdc!$C130=1,dati_bdv!$C$2:$C$65536,IF(dati_pdc!$C130=2,dati_bdv!$D$2:$D$65536,IF(dati_pdc!$C130=3,dati_bdv!$E$2:$E$65536,IF(dati_pdc!$C130=4,dati_bdv!$F$2:$F$65536,IF(dati_pdc!$C130=5,dati_bdv!$G$2:$G$65536,dati_bdv!$H$2:$H$65536))))),$A130,dati_bdv!K$2:K$65536)","v":0},{"$f":"SUMIF(IF(dati_pdc!$C130=1,dati_bdv!$C$2:$C$65536,IF(dati_pdc!$C130=2,dati_bdv!$D$2:$D$65536,IF(dati_pdc!$C130=3,dati_bdv!$E$2:$E$65536,IF(dati_pdc!$C130=4,dati_bdv!$F$2:$F$65536,IF(dati_pdc!$C130=5,dati_bdv!$G$2:$G$65536,dati_bdv!$H$2:$H$65536))))),$A130,dati_bdv!L$2:L$65536)","v":0},{"$f":"SUMIF(IF(dati_pdc!$C130=1,dati_bdv!$C$2:$C$65536,IF(dati_pdc!$C130=2,dati_bdv!$D$2:$D$65536,IF(dati_pdc!$C130=3,dati_bdv!$E$2:$E$65536,IF(dati_pdc!$C130=4,dati_bdv!$F$2:$F$65536,IF(dati_pdc!$C130=5,dati_bdv!$G$2:$G$65536,dati_bdv!$H$2:$H$65536))))),$A130,dati_bdv!M$2:M$65536)","v":0},{"$f":"SUMIF(IF(dati_pdc!$C130=1,dati_bdv!$C$2:$C$65536,IF(dati_pdc!$C130=2,dati_bdv!$D$2:$D$65536,IF(dati_pdc!$C130=3,dati_bdv!$E$2:$E$65536,IF(dati_pdc!$C130=4,dati_bdv!$F$2:$F$65536,IF(dati_pdc!$C130=5,dati_bdv!$G$2:$G$65536,dati_bdv!$H$2:$H$65536))))),$A130,dati_bdv!N$2:N$65536)","v":0}]
[{"$f":"dati_pdc!A131","v":0},{"$f":"SUMIF(IF(dati_pdc!$C131=1,dati_bdv!$C$2:$C$65536,IF(dati_pdc!$C131=2,dati_bdv!$D$2:$D$65536,IF(dati_pdc!$C131=3,dati_bdv!$E$2:$E$65536,IF(dati_pdc!$C131=4,dati_bdv!$F$2:$F$65536,IF(dati_pdc!$C131=5,dati_bdv!$G$2:$G$65536,dati_bdv!$H$2:$H$65536))))),$A131,dati_bdv!J$2:J$65536)","v":0},{"$f":"SUMIF(IF(dati_pdc!$C131=1,dati_bdv!$C$2:$C$65536,IF(dati_pdc!$C131=2,dati_bdv!$D$2:$D$65536,IF(dati_pdc!$C131=3,dati_bdv!$E$2:$E$65536,IF(dati_pdc!$C131=4,dati_bdv!$F$2:$F$65536,IF(dati_pdc!$C131=5,dati_bdv!$G$2:$G$65536,dati_bdv!$H$2:$H$65536))))),$A131,dati_bdv!K$2:K$65536)","v":0},{"$f":"SUMIF(IF(dati_pdc!$C131=1,dati_bdv!$C$2:$C$65536,IF(dati_pdc!$C131=2,dati_bdv!$D$2:$D$65536,IF(dati_pdc!$C131=3,dati_bdv!$E$2:$E$65536,IF(dati_pdc!$C131=4,dati_bdv!$F$2:$F$65536,IF(dati_pdc!$C131=5,dati_bdv!$G$2:$G$65536,dati_bdv!$H$2:$H$65536))))),$A131,dati_bdv!L$2:L$65536)","v":0},{"$f":"SUMIF(IF(dati_pdc!$C131=1,dati_bdv!$C$2:$C$65536,IF(dati_pdc!$C131=2,dati_bdv!$D$2:$D$65536,IF(dati_pdc!$C131=3,dati_bdv!$E$2:$E$65536,IF(dati_pdc!$C131=4,dati_bdv!$F$2:$F$65536,IF(dati_pdc!$C131=5,dati_bdv!$G$2:$G$65536,dati_bdv!$H$2:$H$65536))))),$A131,dati_bdv!M$2:M$65536)","v":0},{"$f":"SUMIF(IF(dati_pdc!$C131=1,dati_bdv!$C$2:$C$65536,IF(dati_pdc!$C131=2,dati_bdv!$D$2:$D$65536,IF(dati_pdc!$C131=3,dati_bdv!$E$2:$E$65536,IF(dati_pdc!$C131=4,dati_bdv!$F$2:$F$65536,IF(dati_pdc!$C131=5,dati_bdv!$G$2:$G$65536,dati_bdv!$H$2:$H$65536))))),$A131,dati_bdv!N$2:N$65536)","v":0}]
[{"$f":"dati_pdc!A132","v":0},{"$f":"SUMIF(IF(dati_pdc!$C132=1,dati_bdv!$C$2:$C$65536,IF(dati_pdc!$C132=2,dati_bdv!$D$2:$D$65536,IF(dati_pdc!$C132=3,dati_bdv!$E$2:$E$65536,IF(dati_pdc!$C132=4,dati_bdv!$F$2:$F$65536,IF(dati_pdc!$C132=5,dati_bdv!$G$2:$G$65536,dati_bdv!$H$2:$H$65536))))),$A132,dati_bdv!J$2:J$65536)","v":0},{"$f":"SUMIF(IF(dati_pdc!$C132=1,dati_bdv!$C$2:$C$65536,IF(dati_pdc!$C132=2,dati_bdv!$D$2:$D$65536,IF(dati_pdc!$C132=3,dati_bdv!$E$2:$E$65536,IF(dati_pdc!$C132=4,dati_bdv!$F$2:$F$65536,IF(dati_pdc!$C132=5,dati_bdv!$G$2:$G$65536,dati_bdv!$H$2:$H$65536))))),$A132,dati_bdv!K$2:K$65536)","v":0},{"$f":"SUMIF(IF(dati_pdc!$C132=1,dati_bdv!$C$2:$C$65536,IF(dati_pdc!$C132=2,dati_bdv!$D$2:$D$65536,IF(dati_pdc!$C132=3,dati_bdv!$E$2:$E$65536,IF(dati_pdc!$C132=4,dati_bdv!$F$2:$F$65536,IF(dati_pdc!$C132=5,dati_bdv!$G$2:$G$65536,dati_bdv!$H$2:$H$65536))))),$A132,dati_bdv!L$2:L$65536)","v":0},{"$f":"SUMIF(IF(dati_pdc!$C132=1,dati_bdv!$C$2:$C$65536,IF(dati_pdc!$C132=2,dati_bdv!$D$2:$D$65536,IF(dati_pdc!$C132=3,dati_bdv!$E$2:$E$65536,IF(dati_pdc!$C132=4,dati_bdv!$F$2:$F$65536,IF(dati_pdc!$C132=5,dati_bdv!$G$2:$G$65536,dati_bdv!$H$2:$H$65536))))),$A132,dati_bdv!M$2:M$65536)","v":0},{"$f":"SUMIF(IF(dati_pdc!$C132=1,dati_bdv!$C$2:$C$65536,IF(dati_pdc!$C132=2,dati_bdv!$D$2:$D$65536,IF(dati_pdc!$C132=3,dati_bdv!$E$2:$E$65536,IF(dati_pdc!$C132=4,dati_bdv!$F$2:$F$65536,IF(dati_pdc!$C132=5,dati_bdv!$G$2:$G$65536,dati_bdv!$H$2:$H$65536))))),$A132,dati_bdv!N$2:N$65536)","v":0}]
[{"$f":"dati_pdc!A133","v":0},{"$f":"SUMIF(IF(dati_pdc!$C133=1,dati_bdv!$C$2:$C$65536,IF(dati_pdc!$C133=2,dati_bdv!$D$2:$D$65536,IF(dati_pdc!$C133=3,dati_bdv!$E$2:$E$65536,IF(dati_pdc!$C133=4,dati_bdv!$F$2:$F$65536,IF(dati_pdc!$C133=5,dati_bdv!$G$2:$G$65536,dati_bdv!$H$2:$H$65536))))),$A133,dati_bdv!J$2:J$65536)","v":0},{"$f":"SUMIF(IF(dati_pdc!$C133=1,dati_bdv!$C$2:$C$65536,IF(dati_pdc!$C133=2,dati_bdv!$D$2:$D$65536,IF(dati_pdc!$C133=3,dati_bdv!$E$2:$E$65536,IF(dati_pdc!$C133=4,dati_bdv!$F$2:$F$65536,IF(dati_pdc!$C133=5,dati_bdv!$G$2:$G$65536,dati_bdv!$H$2:$H$65536))))),$A133,dati_bdv!K$2:K$65536)","v":0},{"$f":"SUMIF(IF(dati_pdc!$C133=1,dati_bdv!$C$2:$C$65536,IF(dati_pdc!$C133=2,dati_bdv!$D$2:$D$65536,IF(dati_pdc!$C133=3,dati_bdv!$E$2:$E$65536,IF(dati_pdc!$C133=4,dati_bdv!$F$2:$F$65536,IF(dati_pdc!$C133=5,dati_bdv!$G$2:$G$65536,dati_bdv!$H$2:$H$65536))))),$A133,dati_bdv!L$2:L$65536)","v":0},{"$f":"SUMIF(IF(dati_pdc!$C133=1,dati_bdv!$C$2:$C$65536,IF(dati_pdc!$C133=2,dati_bdv!$D$2:$D$65536,IF(dati_pdc!$C133=3,dati_bdv!$E$2:$E$65536,IF(dati_pdc!$C133=4,dati_bdv!$F$2:$F$65536,IF(dati_pdc!$C133=5,dati_bdv!$G$2:$G$65536,dati_bdv!$H$2:$H$65536))))),$A133,dati_bdv!M$2:M$65536)","v":0},{"$f":"SUMIF(IF(dati_pdc!$C133=1,dati_bdv!$C$2:$C$65536,IF(dati_pdc!$C133=2,dati_bdv!$D$2:$D$65536,IF(dati_pdc!$C133=3,dati_bdv!$E$2:$E$65536,IF(dati_pdc!$C133=4,dati_bdv!$F$2:$F$65536,IF(dati_pdc!$C133=5,dati_bdv!$G$2:$G$65536,dati_bdv!$H$2:$H$65536))))),$A133,dati_bdv!N$2:N$65536)","v":0}]
[{"$f":"dati_pdc!A134","v":0},{"$f":"SUMIF(IF(dati_pdc!$C134=1,dati_bdv!$C$2:$C$65536,IF(dati_pdc!$C134=2,dati_bdv!$D$2:$D$65536,IF(dati_pdc!$C134=3,dati_bdv!$E$2:$E$65536,IF(dati_pdc!$C134=4,dati_bdv!$F$2:$F$65536,IF(dati_pdc!$C134=5,dati_bdv!$G$2:$G$65536,dati_bdv!$H$2:$H$65536))))),$A134,dati_bdv!J$2:J$65536)","v":0},{"$f":"SUMIF(IF(dati_pdc!$C134=1,dati_bdv!$C$2:$C$65536,IF(dati_pdc!$C134=2,dati_bdv!$D$2:$D$65536,IF(dati_pdc!$C134=3,dati_bdv!$E$2:$E$65536,IF(dati_pdc!$C134=4,dati_bdv!$F$2:$F$65536,IF(dati_pdc!$C134=5,dati_bdv!$G$2:$G$65536,dati_bdv!$H$2:$H$65536))))),$A134,dati_bdv!K$2:K$65536)","v":0},{"$f":"SUMIF(IF(dati_pdc!$C134=1,dati_bdv!$C$2:$C$65536,IF(dati_pdc!$C134=2,dati_bdv!$D$2:$D$65536,IF(dati_pdc!$C134=3,dati_bdv!$E$2:$E$65536,IF(dati_pdc!$C134=4,dati_bdv!$F$2:$F$65536,IF(dati_pdc!$C134=5,dati_bdv!$G$2:$G$65536,dati_bdv!$H$2:$H$65536))))),$A134,dati_bdv!L$2:L$65536)","v":0},{"$f":"SUMIF(IF(dati_pdc!$C134=1,dati_bdv!$C$2:$C$65536,IF(dati_pdc!$C134=2,dati_bdv!$D$2:$D$65536,IF(dati_pdc!$C134=3,dati_bdv!$E$2:$E$65536,IF(dati_pdc!$C134=4,dati_bdv!$F$2:$F$65536,IF(dati_pdc!$C134=5,dati_bdv!$G$2:$G$65536,dati_bdv!$H$2:$H$65536))))),$A134,dati_bdv!M$2:M$65536)","v":0},{"$f":"SUMIF(IF(dati_pdc!$C134=1,dati_bdv!$C$2:$C$65536,IF(dati_pdc!$C134=2,dati_bdv!$D$2:$D$65536,IF(dati_pdc!$C134=3,dati_bdv!$E$2:$E$65536,IF(dati_pdc!$C134=4,dati_bdv!$F$2:$F$65536,IF(dati_pdc!$C134=5,dati_bdv!$G$2:$G$65536,dati_bdv!$H$2:$H$65536))))),$A134,dati_bdv!N$2:N$65536)","v":0}]
[{"$f":"dati_pdc!A135","v":0},{"$f":"SUMIF(IF(dati_pdc!$C135=1,dati_bdv!$C$2:$C$65536,IF(dati_pdc!$C135=2,dati_bdv!$D$2:$D$65536,IF(dati_pdc!$C135=3,dati_bdv!$E$2:$E$65536,IF(dati_pdc!$C135=4,dati_bdv!$F$2:$F$65536,IF(dati_pdc!$C135=5,dati_bdv!$G$2:$G$65536,dati_bdv!$H$2:$H$65536))))),$A135,dati_bdv!J$2:J$65536)","v":0},{"$f":"SUMIF(IF(dati_pdc!$C135=1,dati_bdv!$C$2:$C$65536,IF(dati_pdc!$C135=2,dati_bdv!$D$2:$D$65536,IF(dati_pdc!$C135=3,dati_bdv!$E$2:$E$65536,IF(dati_pdc!$C135=4,dati_bdv!$F$2:$F$65536,IF(dati_pdc!$C135=5,dati_bdv!$G$2:$G$65536,dati_bdv!$H$2:$H$65536))))),$A135,dati_bdv!K$2:K$65536)","v":0},{"$f":"SUMIF(IF(dati_pdc!$C135=1,dati_bdv!$C$2:$C$65536,IF(dati_pdc!$C135=2,dati_bdv!$D$2:$D$65536,IF(dati_pdc!$C135=3,dati_bdv!$E$2:$E$65536,IF(dati_pdc!$C135=4,dati_bdv!$F$2:$F$65536,IF(dati_pdc!$C135=5,dati_bdv!$G$2:$G$65536,dati_bdv!$H$2:$H$65536))))),$A135,dati_bdv!L$2:L$65536)","v":0},{"$f":"SUMIF(IF(dati_pdc!$C135=1,dati_bdv!$C$2:$C$65536,IF(dati_pdc!$C135=2,dati_bdv!$D$2:$D$65536,IF(dati_pdc!$C135=3,dati_bdv!$E$2:$E$65536,IF(dati_pdc!$C135=4,dati_bdv!$F$2:$F$65536,IF(dati_pdc!$C135=5,dati_bdv!$G$2:$G$65536,dati_bdv!$H$2:$H$65536))))),$A135,dati_bdv!M$2:M$65536)","v":0},{"$f":"SUMIF(IF(dati_pdc!$C135=1,dati_bdv!$C$2:$C$65536,IF(dati_pdc!$C135=2,dati_bdv!$D$2:$D$65536,IF(dati_pdc!$C135=3,dati_bdv!$E$2:$E$65536,IF(dati_pdc!$C135=4,dati_bdv!$F$2:$F$65536,IF(dati_pdc!$C135=5,dati_bdv!$G$2:$G$65536,dati_bdv!$H$2:$H$65536))))),$A135,dati_bdv!N$2:N$65536)","v":0}]
[{"$f":"dati_pdc!A136","v":0},{"$f":"SUMIF(IF(dati_pdc!$C136=1,dati_bdv!$C$2:$C$65536,IF(dati_pdc!$C136=2,dati_bdv!$D$2:$D$65536,IF(dati_pdc!$C136=3,dati_bdv!$E$2:$E$65536,IF(dati_pdc!$C136=4,dati_bdv!$F$2:$F$65536,IF(dati_pdc!$C136=5,dati_bdv!$G$2:$G$65536,dati_bdv!$H$2:$H$65536))))),$A136,dati_bdv!J$2:J$65536)","v":0},{"$f":"SUMIF(IF(dati_pdc!$C136=1,dati_bdv!$C$2:$C$65536,IF(dati_pdc!$C136=2,dati_bdv!$D$2:$D$65536,IF(dati_pdc!$C136=3,dati_bdv!$E$2:$E$65536,IF(dati_pdc!$C136=4,dati_bdv!$F$2:$F$65536,IF(dati_pdc!$C136=5,dati_bdv!$G$2:$G$65536,dati_bdv!$H$2:$H$65536))))),$A136,dati_bdv!K$2:K$65536)","v":0},{"$f":"SUMIF(IF(dati_pdc!$C136=1,dati_bdv!$C$2:$C$65536,IF(dati_pdc!$C136=2,dati_bdv!$D$2:$D$65536,IF(dati_pdc!$C136=3,dati_bdv!$E$2:$E$65536,IF(dati_pdc!$C136=4,dati_bdv!$F$2:$F$65536,IF(dati_pdc!$C136=5,dati_bdv!$G$2:$G$65536,dati_bdv!$H$2:$H$65536))))),$A136,dati_bdv!L$2:L$65536)","v":0},{"$f":"SUMIF(IF(dati_pdc!$C136=1,dati_bdv!$C$2:$C$65536,IF(dati_pdc!$C136=2,dati_bdv!$D$2:$D$65536,IF(dati_pdc!$C136=3,dati_bdv!$E$2:$E$65536,IF(dati_pdc!$C136=4,dati_bdv!$F$2:$F$65536,IF(dati_pdc!$C136=5,dati_bdv!$G$2:$G$65536,dati_bdv!$H$2:$H$65536))))),$A136,dati_bdv!M$2:M$65536)","v":0},{"$f":"SUMIF(IF(dati_pdc!$C136=1,dati_bdv!$C$2:$C$65536,IF(dati_pdc!$C136=2,dati_bdv!$D$2:$D$65536,IF(dati_pdc!$C136=3,dati_bdv!$E$2:$E$65536,IF(dati_pdc!$C136=4,dati_bdv!$F$2:$F$65536,IF(dati_pdc!$C136=5,dati_bdv!$G$2:$G$65536,dati_bdv!$H$2:$H$65536))))),$A136,dati_bdv!N$2:N$65536)","v":0}]
[{"$f":"dati_pdc!A137","v":0},{"$f":"SUMIF(IF(dati_pdc!$C137=1,dati_bdv!$C$2:$C$65536,IF(dati_pdc!$C137=2,dati_bdv!$D$2:$D$65536,IF(dati_pdc!$C137=3,dati_bdv!$E$2:$E$65536,IF(dati_pdc!$C137=4,dati_bdv!$F$2:$F$65536,IF(dati_pdc!$C137=5,dati_bdv!$G$2:$G$65536,dati_bdv!$H$2:$H$65536))))),$A137,dati_bdv!J$2:J$65536)","v":0},{"$f":"SUMIF(IF(dati_pdc!$C137=1,dati_bdv!$C$2:$C$65536,IF(dati_pdc!$C137=2,dati_bdv!$D$2:$D$65536,IF(dati_pdc!$C137=3,dati_bdv!$E$2:$E$65536,IF(dati_pdc!$C137=4,dati_bdv!$F$2:$F$65536,IF(dati_pdc!$C137=5,dati_bdv!$G$2:$G$65536,dati_bdv!$H$2:$H$65536))))),$A137,dati_bdv!K$2:K$65536)","v":0},{"$f":"SUMIF(IF(dati_pdc!$C137=1,dati_bdv!$C$2:$C$65536,IF(dati_pdc!$C137=2,dati_bdv!$D$2:$D$65536,IF(dati_pdc!$C137=3,dati_bdv!$E$2:$E$65536,IF(dati_pdc!$C137=4,dati_bdv!$F$2:$F$65536,IF(dati_pdc!$C137=5,dati_bdv!$G$2:$G$65536,dati_bdv!$H$2:$H$65536))))),$A137,dati_bdv!L$2:L$65536)","v":0},{"$f":"SUMIF(IF(dati_pdc!$C137=1,dati_bdv!$C$2:$C$65536,IF(dati_pdc!$C137=2,dati_bdv!$D$2:$D$65536,IF(dati_pdc!$C137=3,dati_bdv!$E$2:$E$65536,IF(dati_pdc!$C137=4,dati_bdv!$F$2:$F$65536,IF(dati_pdc!$C137=5,dati_bdv!$G$2:$G$65536,dati_bdv!$H$2:$H$65536))))),$A137,dati_bdv!M$2:M$65536)","v":0},{"$f":"SUMIF(IF(dati_pdc!$C137=1,dati_bdv!$C$2:$C$65536,IF(dati_pdc!$C137=2,dati_bdv!$D$2:$D$65536,IF(dati_pdc!$C137=3,dati_bdv!$E$2:$E$65536,IF(dati_pdc!$C137=4,dati_bdv!$F$2:$F$65536,IF(dati_pdc!$C137=5,dati_bdv!$G$2:$G$65536,dati_bdv!$H$2:$H$65536))))),$A137,dati_bdv!N$2:N$65536)","v":0}]
[{"$f":"dati_pdc!A138","v":0},{"$f":"SUMIF(IF(dati_pdc!$C138=1,dati_bdv!$C$2:$C$65536,IF(dati_pdc!$C138=2,dati_bdv!$D$2:$D$65536,IF(dati_pdc!$C138=3,dati_bdv!$E$2:$E$65536,IF(dati_pdc!$C138=4,dati_bdv!$F$2:$F$65536,IF(dati_pdc!$C138=5,dati_bdv!$G$2:$G$65536,dati_bdv!$H$2:$H$65536))))),$A138,dati_bdv!J$2:J$65536)","v":0},{"$f":"SUMIF(IF(dati_pdc!$C138=1,dati_bdv!$C$2:$C$65536,IF(dati_pdc!$C138=2,dati_bdv!$D$2:$D$65536,IF(dati_pdc!$C138=3,dati_bdv!$E$2:$E$65536,IF(dati_pdc!$C138=4,dati_bdv!$F$2:$F$65536,IF(dati_pdc!$C138=5,dati_bdv!$G$2:$G$65536,dati_bdv!$H$2:$H$65536))))),$A138,dati_bdv!K$2:K$65536)","v":0},{"$f":"SUMIF(IF(dati_pdc!$C138=1,dati_bdv!$C$2:$C$65536,IF(dati_pdc!$C138=2,dati_bdv!$D$2:$D$65536,IF(dati_pdc!$C138=3,dati_bdv!$E$2:$E$65536,IF(dati_pdc!$C138=4,dati_bdv!$F$2:$F$65536,IF(dati_pdc!$C138=5,dati_bdv!$G$2:$G$65536,dati_bdv!$H$2:$H$65536))))),$A138,dati_bdv!L$2:L$65536)","v":0},{"$f":"SUMIF(IF(dati_pdc!$C138=1,dati_bdv!$C$2:$C$65536,IF(dati_pdc!$C138=2,dati_bdv!$D$2:$D$65536,IF(dati_pdc!$C138=3,dati_bdv!$E$2:$E$65536,IF(dati_pdc!$C138=4,dati_bdv!$F$2:$F$65536,IF(dati_pdc!$C138=5,dati_bdv!$G$2:$G$65536,dati_bdv!$H$2:$H$65536))))),$A138,dati_bdv!M$2:M$65536)","v":0},{"$f":"SUMIF(IF(dati_pdc!$C138=1,dati_bdv!$C$2:$C$65536,IF(dati_pdc!$C138=2,dati_bdv!$D$2:$D$65536,IF(dati_pdc!$C138=3,dati_bdv!$E$2:$E$65536,IF(dati_pdc!$C138=4,dati_bdv!$F$2:$F$65536,IF(dati_pdc!$C138=5,dati_bdv!$G$2:$G$65536,dati_bdv!$H$2:$H$65536))))),$A138,dati_bdv!N$2:N$65536)","v":0}]
[{"$f":"dati_pdc!A139","v":0},{"$f":"SUMIF(IF(dati_pdc!$C139=1,dati_bdv!$C$2:$C$65536,IF(dati_pdc!$C139=2,dati_bdv!$D$2:$D$65536,IF(dati_pdc!$C139=3,dati_bdv!$E$2:$E$65536,IF(dati_pdc!$C139=4,dati_bdv!$F$2:$F$65536,IF(dati_pdc!$C139=5,dati_bdv!$G$2:$G$65536,dati_bdv!$H$2:$H$65536))))),$A139,dati_bdv!J$2:J$65536)","v":0},{"$f":"SUMIF(IF(dati_pdc!$C139=1,dati_bdv!$C$2:$C$65536,IF(dati_pdc!$C139=2,dati_bdv!$D$2:$D$65536,IF(dati_pdc!$C139=3,dati_bdv!$E$2:$E$65536,IF(dati_pdc!$C139=4,dati_bdv!$F$2:$F$65536,IF(dati_pdc!$C139=5,dati_bdv!$G$2:$G$65536,dati_bdv!$H$2:$H$65536))))),$A139,dati_bdv!K$2:K$65536)","v":0},{"$f":"SUMIF(IF(dati_pdc!$C139=1,dati_bdv!$C$2:$C$65536,IF(dati_pdc!$C139=2,dati_bdv!$D$2:$D$65536,IF(dati_pdc!$C139=3,dati_bdv!$E$2:$E$65536,IF(dati_pdc!$C139=4,dati_bdv!$F$2:$F$65536,IF(dati_pdc!$C139=5,dati_bdv!$G$2:$G$65536,dati_bdv!$H$2:$H$65536))))),$A139,dati_bdv!L$2:L$65536)","v":0},{"$f":"SUMIF(IF(dati_pdc!$C139=1,dati_bdv!$C$2:$C$65536,IF(dati_pdc!$C139=2,dati_bdv!$D$2:$D$65536,IF(dati_pdc!$C139=3,dati_bdv!$E$2:$E$65536,IF(dati_pdc!$C139=4,dati_bdv!$F$2:$F$65536,IF(dati_pdc!$C139=5,dati_bdv!$G$2:$G$65536,dati_bdv!$H$2:$H$65536))))),$A139,dati_bdv!M$2:M$65536)","v":0},{"$f":"SUMIF(IF(dati_pdc!$C139=1,dati_bdv!$C$2:$C$65536,IF(dati_pdc!$C139=2,dati_bdv!$D$2:$D$65536,IF(dati_pdc!$C139=3,dati_bdv!$E$2:$E$65536,IF(dati_pdc!$C139=4,dati_bdv!$F$2:$F$65536,IF(dati_pdc!$C139=5,dati_bdv!$G$2:$G$65536,dati_bdv!$H$2:$H$65536))))),$A139,dati_bdv!N$2:N$65536)","v":0}]
[{"$f":"dati_pdc!A140","v":0},{"$f":"SUMIF(IF(dati_pdc!$C140=1,dati_bdv!$C$2:$C$65536,IF(dati_pdc!$C140=2,dati_bdv!$D$2:$D$65536,IF(dati_pdc!$C140=3,dati_bdv!$E$2:$E$65536,IF(dati_pdc!$C140=4,dati_bdv!$F$2:$F$65536,IF(dati_pdc!$C140=5,dati_bdv!$G$2:$G$65536,dati_bdv!$H$2:$H$65536))))),$A140,dati_bdv!J$2:J$65536)","v":0},{"$f":"SUMIF(IF(dati_pdc!$C140=1,dati_bdv!$C$2:$C$65536,IF(dati_pdc!$C140=2,dati_bdv!$D$2:$D$65536,IF(dati_pdc!$C140=3,dati_bdv!$E$2:$E$65536,IF(dati_pdc!$C140=4,dati_bdv!$F$2:$F$65536,IF(dati_pdc!$C140=5,dati_bdv!$G$2:$G$65536,dati_bdv!$H$2:$H$65536))))),$A140,dati_bdv!K$2:K$65536)","v":0},{"$f":"SUMIF(IF(dati_pdc!$C140=1,dati_bdv!$C$2:$C$65536,IF(dati_pdc!$C140=2,dati_bdv!$D$2:$D$65536,IF(dati_pdc!$C140=3,dati_bdv!$E$2:$E$65536,IF(dati_pdc!$C140=4,dati_bdv!$F$2:$F$65536,IF(dati_pdc!$C140=5,dati_bdv!$G$2:$G$65536,dati_bdv!$H$2:$H$65536))))),$A140,dati_bdv!L$2:L$65536)","v":0},{"$f":"SUMIF(IF(dati_pdc!$C140=1,dati_bdv!$C$2:$C$65536,IF(dati_pdc!$C140=2,dati_bdv!$D$2:$D$65536,IF(dati_pdc!$C140=3,dati_bdv!$E$2:$E$65536,IF(dati_pdc!$C140=4,dati_bdv!$F$2:$F$65536,IF(dati_pdc!$C140=5,dati_bdv!$G$2:$G$65536,dati_bdv!$H$2:$H$65536))))),$A140,dati_bdv!M$2:M$65536)","v":0},{"$f":"SUMIF(IF(dati_pdc!$C140=1,dati_bdv!$C$2:$C$65536,IF(dati_pdc!$C140=2,dati_bdv!$D$2:$D$65536,IF(dati_pdc!$C140=3,dati_bdv!$E$2:$E$65536,IF(dati_pdc!$C140=4,dati_bdv!$F$2:$F$65536,IF(dati_pdc!$C140=5,dati_bdv!$G$2:$G$65536,dati_bdv!$H$2:$H$65536))))),$A140,dati_bdv!N$2:N$65536)","v":0}]
[{"$f":"dati_pdc!A141","v":0},{"$f":"SUMIF(IF(dati_pdc!$C141=1,dati_bdv!$C$2:$C$65536,IF(dati_pdc!$C141=2,dati_bdv!$D$2:$D$65536,IF(dati_pdc!$C141=3,dati_bdv!$E$2:$E$65536,IF(dati_pdc!$C141=4,dati_bdv!$F$2:$F$65536,IF(dati_pdc!$C141=5,dati_bdv!$G$2:$G$65536,dati_bdv!$H$2:$H$65536))))),$A141,dati_bdv!J$2:J$65536)","v":0},{"$f":"SUMIF(IF(dati_pdc!$C141=1,dati_bdv!$C$2:$C$65536,IF(dati_pdc!$C141=2,dati_bdv!$D$2:$D$65536,IF(dati_pdc!$C141=3,dati_bdv!$E$2:$E$65536,IF(dati_pdc!$C141=4,dati_bdv!$F$2:$F$65536,IF(dati_pdc!$C141=5,dati_bdv!$G$2:$G$65536,dati_bdv!$H$2:$H$65536))))),$A141,dati_bdv!K$2:K$65536)","v":0},{"$f":"SUMIF(IF(dati_pdc!$C141=1,dati_bdv!$C$2:$C$65536,IF(dati_pdc!$C141=2,dati_bdv!$D$2:$D$65536,IF(dati_pdc!$C141=3,dati_bdv!$E$2:$E$65536,IF(dati_pdc!$C141=4,dati_bdv!$F$2:$F$65536,IF(dati_pdc!$C141=5,dati_bdv!$G$2:$G$65536,dati_bdv!$H$2:$H$65536))))),$A141,dati_bdv!L$2:L$65536)","v":0},{"$f":"SUMIF(IF(dati_pdc!$C141=1,dati_bdv!$C$2:$C$65536,IF(dati_pdc!$C141=2,dati_bdv!$D$2:$D$65536,IF(dati_pdc!$C141=3,dati_bdv!$E$2:$E$65536,IF(dati_pdc!$C141=4,dati_bdv!$F$2:$F$65536,IF(dati_pdc!$C141=5,dati_bdv!$G$2:$G$65536,dati_bdv!$H$2:$H$65536))))),$A141,dati_bdv!M$2:M$65536)","v":0},{"$f":"SUMIF(IF(dati_pdc!$C141=1,dati_bdv!$C$2:$C$65536,IF(dati_pdc!$C141=2,dati_bdv!$D$2:$D$65536,IF(dati_pdc!$C141=3,dati_bdv!$E$2:$E$65536,IF(dati_pdc!$C141=4,dati_bdv!$F$2:$F$65536,IF(dati_pdc!$C141=5,dati_bdv!$G$2:$G$65536,dati_bdv!$H$2:$H$65536))))),$A141,dati_bdv!N$2:N$65536)","v":0}]
[{"$f":"dati_pdc!A142","v":0},{"$f":"SUMIF(IF(dati_pdc!$C142=1,dati_bdv!$C$2:$C$65536,IF(dati_pdc!$C142=2,dati_bdv!$D$2:$D$65536,IF(dati_pdc!$C142=3,dati_bdv!$E$2:$E$65536,IF(dati_pdc!$C142=4,dati_bdv!$F$2:$F$65536,IF(dati_pdc!$C142=5,dati_bdv!$G$2:$G$65536,dati_bdv!$H$2:$H$65536))))),$A142,dati_bdv!J$2:J$65536)","v":0},{"$f":"SUMIF(IF(dati_pdc!$C142=1,dati_bdv!$C$2:$C$65536,IF(dati_pdc!$C142=2,dati_bdv!$D$2:$D$65536,IF(dati_pdc!$C142=3,dati_bdv!$E$2:$E$65536,IF(dati_pdc!$C142=4,dati_bdv!$F$2:$F$65536,IF(dati_pdc!$C142=5,dati_bdv!$G$2:$G$65536,dati_bdv!$H$2:$H$65536))))),$A142,dati_bdv!K$2:K$65536)","v":0},{"$f":"SUMIF(IF(dati_pdc!$C142=1,dati_bdv!$C$2:$C$65536,IF(dati_pdc!$C142=2,dati_bdv!$D$2:$D$65536,IF(dati_pdc!$C142=3,dati_bdv!$E$2:$E$65536,IF(dati_pdc!$C142=4,dati_bdv!$F$2:$F$65536,IF(dati_pdc!$C142=5,dati_bdv!$G$2:$G$65536,dati_bdv!$H$2:$H$65536))))),$A142,dati_bdv!L$2:L$65536)","v":0},{"$f":"SUMIF(IF(dati_pdc!$C142=1,dati_bdv!$C$2:$C$65536,IF(dati_pdc!$C142=2,dati_bdv!$D$2:$D$65536,IF(dati_pdc!$C142=3,dati_bdv!$E$2:$E$65536,IF(dati_pdc!$C142=4,dati_bdv!$F$2:$F$65536,IF(dati_pdc!$C142=5,dati_bdv!$G$2:$G$65536,dati_bdv!$H$2:$H$65536))))),$A142,dati_bdv!M$2:M$65536)","v":0},{"$f":"SUMIF(IF(dati_pdc!$C142=1,dati_bdv!$C$2:$C$65536,IF(dati_pdc!$C142=2,dati_bdv!$D$2:$D$65536,IF(dati_pdc!$C142=3,dati_bdv!$E$2:$E$65536,IF(dati_pdc!$C142=4,dati_bdv!$F$2:$F$65536,IF(dati_pdc!$C142=5,dati_bdv!$G$2:$G$65536,dati_bdv!$H$2:$H$65536))))),$A142,dati_bdv!N$2:N$65536)","v":0}]
[{"$f":"dati_pdc!A143","v":0},{"$f":"SUMIF(IF(dati_pdc!$C143=1,dati_bdv!$C$2:$C$65536,IF(dati_pdc!$C143=2,dati_bdv!$D$2:$D$65536,IF(dati_pdc!$C143=3,dati_bdv!$E$2:$E$65536,IF(dati_pdc!$C143=4,dati_bdv!$F$2:$F$65536,IF(dati_pdc!$C143=5,dati_bdv!$G$2:$G$65536,dati_bdv!$H$2:$H$65536))))),$A143,dati_bdv!J$2:J$65536)","v":0},{"$f":"SUMIF(IF(dati_pdc!$C143=1,dati_bdv!$C$2:$C$65536,IF(dati_pdc!$C143=2,dati_bdv!$D$2:$D$65536,IF(dati_pdc!$C143=3,dati_bdv!$E$2:$E$65536,IF(dati_pdc!$C143=4,dati_bdv!$F$2:$F$65536,IF(dati_pdc!$C143=5,dati_bdv!$G$2:$G$65536,dati_bdv!$H$2:$H$65536))))),$A143,dati_bdv!K$2:K$65536)","v":0},{"$f":"SUMIF(IF(dati_pdc!$C143=1,dati_bdv!$C$2:$C$65536,IF(dati_pdc!$C143=2,dati_bdv!$D$2:$D$65536,IF(dati_pdc!$C143=3,dati_bdv!$E$2:$E$65536,IF(dati_pdc!$C143=4,dati_bdv!$F$2:$F$65536,IF(dati_pdc!$C143=5,dati_bdv!$G$2:$G$65536,dati_bdv!$H$2:$H$65536))))),$A143,dati_bdv!L$2:L$65536)","v":0},{"$f":"SUMIF(IF(dati_pdc!$C143=1,dati_bdv!$C$2:$C$65536,IF(dati_pdc!$C143=2,dati_bdv!$D$2:$D$65536,IF(dati_pdc!$C143=3,dati_bdv!$E$2:$E$65536,IF(dati_pdc!$C143=4,dati_bdv!$F$2:$F$65536,IF(dati_pdc!$C143=5,dati_bdv!$G$2:$G$65536,dati_bdv!$H$2:$H$65536))))),$A143,dati_bdv!M$2:M$65536)","v":0},{"$f":"SUMIF(IF(dati_pdc!$C143=1,dati_bdv!$C$2:$C$65536,IF(dati_pdc!$C143=2,dati_bdv!$D$2:$D$65536,IF(dati_pdc!$C143=3,dati_bdv!$E$2:$E$65536,IF(dati_pdc!$C143=4,dati_bdv!$F$2:$F$65536,IF(dati_pdc!$C143=5,dati_bdv!$G$2:$G$65536,dati_bdv!$H$2:$H$65536))))),$A143,dati_bdv!N$2:N$65536)","v":0}]
[{"$f":"dati_pdc!A144","v":0},{"$f":"SUMIF(IF(dati_pdc!$C144=1,dati_bdv!$C$2:$C$65536,IF(dati_pdc!$C144=2,dati_bdv!$D$2:$D$65536,IF(dati_pdc!$C144=3,dati_bdv!$E$2:$E$65536,IF(dati_pdc!$C144=4,dati_bdv!$F$2:$F$65536,IF(dati_pdc!$C144=5,dati_bdv!$G$2:$G$65536,dati_bdv!$H$2:$H$65536))))),$A144,dati_bdv!J$2:J$65536)","v":0},{"$f":"SUMIF(IF(dati_pdc!$C144=1,dati_bdv!$C$2:$C$65536,IF(dati_pdc!$C144=2,dati_bdv!$D$2:$D$65536,IF(dati_pdc!$C144=3,dati_bdv!$E$2:$E$65536,IF(dati_pdc!$C144=4,dati_bdv!$F$2:$F$65536,IF(dati_pdc!$C144=5,dati_bdv!$G$2:$G$65536,dati_bdv!$H$2:$H$65536))))),$A144,dati_bdv!K$2:K$65536)","v":0},{"$f":"SUMIF(IF(dati_pdc!$C144=1,dati_bdv!$C$2:$C$65536,IF(dati_pdc!$C144=2,dati_bdv!$D$2:$D$65536,IF(dati_pdc!$C144=3,dati_bdv!$E$2:$E$65536,IF(dati_pdc!$C144=4,dati_bdv!$F$2:$F$65536,IF(dati_pdc!$C144=5,dati_bdv!$G$2:$G$65536,dati_bdv!$H$2:$H$65536))))),$A144,dati_bdv!L$2:L$65536)","v":0},{"$f":"SUMIF(IF(dati_pdc!$C144=1,dati_bdv!$C$2:$C$65536,IF(dati_pdc!$C144=2,dati_bdv!$D$2:$D$65536,IF(dati_pdc!$C144=3,dati_bdv!$E$2:$E$65536,IF(dati_pdc!$C144=4,dati_bdv!$F$2:$F$65536,IF(dati_pdc!$C144=5,dati_bdv!$G$2:$G$65536,dati_bdv!$H$2:$H$65536))))),$A144,dati_bdv!M$2:M$65536)","v":0},{"$f":"SUMIF(IF(dati_pdc!$C144=1,dati_bdv!$C$2:$C$65536,IF(dati_pdc!$C144=2,dati_bdv!$D$2:$D$65536,IF(dati_pdc!$C144=3,dati_bdv!$E$2:$E$65536,IF(dati_pdc!$C144=4,dati_bdv!$F$2:$F$65536,IF(dati_pdc!$C144=5,dati_bdv!$G$2:$G$65536,dati_bdv!$H$2:$H$65536))))),$A144,dati_bdv!N$2:N$65536)","v":0}]
[{"$f":"dati_pdc!A145","v":0},{"$f":"SUMIF(IF(dati_pdc!$C145=1,dati_bdv!$C$2:$C$65536,IF(dati_pdc!$C145=2,dati_bdv!$D$2:$D$65536,IF(dati_pdc!$C145=3,dati_bdv!$E$2:$E$65536,IF(dati_pdc!$C145=4,dati_bdv!$F$2:$F$65536,IF(dati_pdc!$C145=5,dati_bdv!$G$2:$G$65536,dati_bdv!$H$2:$H$65536))))),$A145,dati_bdv!J$2:J$65536)","v":0},{"$f":"SUMIF(IF(dati_pdc!$C145=1,dati_bdv!$C$2:$C$65536,IF(dati_pdc!$C145=2,dati_bdv!$D$2:$D$65536,IF(dati_pdc!$C145=3,dati_bdv!$E$2:$E$65536,IF(dati_pdc!$C145=4,dati_bdv!$F$2:$F$65536,IF(dati_pdc!$C145=5,dati_bdv!$G$2:$G$65536,dati_bdv!$H$2:$H$65536))))),$A145,dati_bdv!K$2:K$65536)","v":0},{"$f":"SUMIF(IF(dati_pdc!$C145=1,dati_bdv!$C$2:$C$65536,IF(dati_pdc!$C145=2,dati_bdv!$D$2:$D$65536,IF(dati_pdc!$C145=3,dati_bdv!$E$2:$E$65536,IF(dati_pdc!$C145=4,dati_bdv!$F$2:$F$65536,IF(dati_pdc!$C145=5,dati_bdv!$G$2:$G$65536,dati_bdv!$H$2:$H$65536))))),$A145,dati_bdv!L$2:L$65536)","v":0},{"$f":"SUMIF(IF(dati_pdc!$C145=1,dati_bdv!$C$2:$C$65536,IF(dati_pdc!$C145=2,dati_bdv!$D$2:$D$65536,IF(dati_pdc!$C145=3,dati_bdv!$E$2:$E$65536,IF(dati_pdc!$C145=4,dati_bdv!$F$2:$F$65536,IF(dati_pdc!$C145=5,dati_bdv!$G$2:$G$65536,dati_bdv!$H$2:$H$65536))))),$A145,dati_bdv!M$2:M$65536)","v":0},{"$f":"SUMIF(IF(dati_pdc!$C145=1,dati_bdv!$C$2:$C$65536,IF(dati_pdc!$C145=2,dati_bdv!$D$2:$D$65536,IF(dati_pdc!$C145=3,dati_bdv!$E$2:$E$65536,IF(dati_pdc!$C145=4,dati_bdv!$F$2:$F$65536,IF(dati_pdc!$C145=5,dati_bdv!$G$2:$G$65536,dati_bdv!$H$2:$H$65536))))),$A145,dati_bdv!N$2:N$65536)","v":0}]
[{"$f":"dati_pdc!A146","v":0},{"$f":"SUMIF(IF(dati_pdc!$C146=1,dati_bdv!$C$2:$C$65536,IF(dati_pdc!$C146=2,dati_bdv!$D$2:$D$65536,IF(dati_pdc!$C146=3,dati_bdv!$E$2:$E$65536,IF(dati_pdc!$C146=4,dati_bdv!$F$2:$F$65536,IF(dati_pdc!$C146=5,dati_bdv!$G$2:$G$65536,dati_bdv!$H$2:$H$65536))))),$A146,dati_bdv!J$2:J$65536)","v":0},{"$f":"SUMIF(IF(dati_pdc!$C146=1,dati_bdv!$C$2:$C$65536,IF(dati_pdc!$C146=2,dati_bdv!$D$2:$D$65536,IF(dati_pdc!$C146=3,dati_bdv!$E$2:$E$65536,IF(dati_pdc!$C146=4,dati_bdv!$F$2:$F$65536,IF(dati_pdc!$C146=5,dati_bdv!$G$2:$G$65536,dati_bdv!$H$2:$H$65536))))),$A146,dati_bdv!K$2:K$65536)","v":0},{"$f":"SUMIF(IF(dati_pdc!$C146=1,dati_bdv!$C$2:$C$65536,IF(dati_pdc!$C146=2,dati_bdv!$D$2:$D$65536,IF(dati_pdc!$C146=3,dati_bdv!$E$2:$E$65536,IF(dati_pdc!$C146=4,dati_bdv!$F$2:$F$65536,IF(dati_pdc!$C146=5,dati_bdv!$G$2:$G$65536,dati_bdv!$H$2:$H$65536))))),$A146,dati_bdv!L$2:L$65536)","v":0},{"$f":"SUMIF(IF(dati_pdc!$C146=1,dati_bdv!$C$2:$C$65536,IF(dati_pdc!$C146=2,dati_bdv!$D$2:$D$65536,IF(dati_pdc!$C146=3,dati_bdv!$E$2:$E$65536,IF(dati_pdc!$C146=4,dati_bdv!$F$2:$F$65536,IF(dati_pdc!$C146=5,dati_bdv!$G$2:$G$65536,dati_bdv!$H$2:$H$65536))))),$A146,dati_bdv!M$2:M$65536)","v":0},{"$f":"SUMIF(IF(dati_pdc!$C146=1,dati_bdv!$C$2:$C$65536,IF(dati_pdc!$C146=2,dati_bdv!$D$2:$D$65536,IF(dati_pdc!$C146=3,dati_bdv!$E$2:$E$65536,IF(dati_pdc!$C146=4,dati_bdv!$F$2:$F$65536,IF(dati_pdc!$C146=5,dati_bdv!$G$2:$G$65536,dati_bdv!$H$2:$H$65536))))),$A146,dati_bdv!N$2:N$65536)","v":0}]
[{"$f":"dati_pdc!A147","v":0},{"$f":"SUMIF(IF(dati_pdc!$C147=1,dati_bdv!$C$2:$C$65536,IF(dati_pdc!$C147=2,dati_bdv!$D$2:$D$65536,IF(dati_pdc!$C147=3,dati_bdv!$E$2:$E$65536,IF(dati_pdc!$C147=4,dati_bdv!$F$2:$F$65536,IF(dati_pdc!$C147=5,dati_bdv!$G$2:$G$65536,dati_bdv!$H$2:$H$65536))))),$A147,dati_bdv!J$2:J$65536)","v":0},{"$f":"SUMIF(IF(dati_pdc!$C147=1,dati_bdv!$C$2:$C$65536,IF(dati_pdc!$C147=2,dati_bdv!$D$2:$D$65536,IF(dati_pdc!$C147=3,dati_bdv!$E$2:$E$65536,IF(dati_pdc!$C147=4,dati_bdv!$F$2:$F$65536,IF(dati_pdc!$C147=5,dati_bdv!$G$2:$G$65536,dati_bdv!$H$2:$H$65536))))),$A147,dati_bdv!K$2:K$65536)","v":0},{"$f":"SUMIF(IF(dati_pdc!$C147=1,dati_bdv!$C$2:$C$65536,IF(dati_pdc!$C147=2,dati_bdv!$D$2:$D$65536,IF(dati_pdc!$C147=3,dati_bdv!$E$2:$E$65536,IF(dati_pdc!$C147=4,dati_bdv!$F$2:$F$65536,IF(dati_pdc!$C147=5,dati_bdv!$G$2:$G$65536,dati_bdv!$H$2:$H$65536))))),$A147,dati_bdv!L$2:L$65536)","v":0},{"$f":"SUMIF(IF(dati_pdc!$C147=1,dati_bdv!$C$2:$C$65536,IF(dati_pdc!$C147=2,dati_bdv!$D$2:$D$65536,IF(dati_pdc!$C147=3,dati_bdv!$E$2:$E$65536,IF(dati_pdc!$C147=4,dati_bdv!$F$2:$F$65536,IF(dati_pdc!$C147=5,dati_bdv!$G$2:$G$65536,dati_bdv!$H$2:$H$65536))))),$A147,dati_bdv!M$2:M$65536)","v":0},{"$f":"SUMIF(IF(dati_pdc!$C147=1,dati_bdv!$C$2:$C$65536,IF(dati_pdc!$C147=2,dati_bdv!$D$2:$D$65536,IF(dati_pdc!$C147=3,dati_bdv!$E$2:$E$65536,IF(dati_pdc!$C147=4,dati_bdv!$F$2:$F$65536,IF(dati_pdc!$C147=5,dati_bdv!$G$2:$G$65536,dati_bdv!$H$2:$H$65536))))),$A147,dati_bdv!N$2:N$65536)","v":0}]
[{"$f":"dati_pdc!A148","v":0},{"$f":"SUMIF(IF(dati_pdc!$C148=1,dati_bdv!$C$2:$C$65536,IF(dati_pdc!$C148=2,dati_bdv!$D$2:$D$65536,IF(dati_pdc!$C148=3,dati_bdv!$E$2:$E$65536,IF(dati_pdc!$C148=4,dati_bdv!$F$2:$F$65536,IF(dati_pdc!$C148=5,dati_bdv!$G$2:$G$65536,dati_bdv!$H$2:$H$65536))))),$A148,dati_bdv!J$2:J$65536)","v":0},{"$f":"SUMIF(IF(dati_pdc!$C148=1,dati_bdv!$C$2:$C$65536,IF(dati_pdc!$C148=2,dati_bdv!$D$2:$D$65536,IF(dati_pdc!$C148=3,dati_bdv!$E$2:$E$65536,IF(dati_pdc!$C148=4,dati_bdv!$F$2:$F$65536,IF(dati_pdc!$C148=5,dati_bdv!$G$2:$G$65536,dati_bdv!$H$2:$H$65536))))),$A148,dati_bdv!K$2:K$65536)","v":0},{"$f":"SUMIF(IF(dati_pdc!$C148=1,dati_bdv!$C$2:$C$65536,IF(dati_pdc!$C148=2,dati_bdv!$D$2:$D$65536,IF(dati_pdc!$C148=3,dati_bdv!$E$2:$E$65536,IF(dati_pdc!$C148=4,dati_bdv!$F$2:$F$65536,IF(dati_pdc!$C148=5,dati_bdv!$G$2:$G$65536,dati_bdv!$H$2:$H$65536))))),$A148,dati_bdv!L$2:L$65536)","v":0},{"$f":"SUMIF(IF(dati_pdc!$C148=1,dati_bdv!$C$2:$C$65536,IF(dati_pdc!$C148=2,dati_bdv!$D$2:$D$65536,IF(dati_pdc!$C148=3,dati_bdv!$E$2:$E$65536,IF(dati_pdc!$C148=4,dati_bdv!$F$2:$F$65536,IF(dati_pdc!$C148=5,dati_bdv!$G$2:$G$65536,dati_bdv!$H$2:$H$65536))))),$A148,dati_bdv!M$2:M$65536)","v":0},{"$f":"SUMIF(IF(dati_pdc!$C148=1,dati_bdv!$C$2:$C$65536,IF(dati_pdc!$C148=2,dati_bdv!$D$2:$D$65536,IF(dati_pdc!$C148=3,dati_bdv!$E$2:$E$65536,IF(dati_pdc!$C148=4,dati_bdv!$F$2:$F$65536,IF(dati_pdc!$C148=5,dati_bdv!$G$2:$G$65536,dati_bdv!$H$2:$H$65536))))),$A148,dati_bdv!N$2:N$65536)","v":0}]
[{"$f":"dati_pdc!A149","v":0},{"$f":"SUMIF(IF(dati_pdc!$C149=1,dati_bdv!$C$2:$C$65536,IF(dati_pdc!$C149=2,dati_bdv!$D$2:$D$65536,IF(dati_pdc!$C149=3,dati_bdv!$E$2:$E$65536,IF(dati_pdc!$C149=4,dati_bdv!$F$2:$F$65536,IF(dati_pdc!$C149=5,dati_bdv!$G$2:$G$65536,dati_bdv!$H$2:$H$65536))))),$A149,dati_bdv!J$2:J$65536)","v":0},{"$f":"SUMIF(IF(dati_pdc!$C149=1,dati_bdv!$C$2:$C$65536,IF(dati_pdc!$C149=2,dati_bdv!$D$2:$D$65536,IF(dati_pdc!$C149=3,dati_bdv!$E$2:$E$65536,IF(dati_pdc!$C149=4,dati_bdv!$F$2:$F$65536,IF(dati_pdc!$C149=5,dati_bdv!$G$2:$G$65536,dati_bdv!$H$2:$H$65536))))),$A149,dati_bdv!K$2:K$65536)","v":0},{"$f":"SUMIF(IF(dati_pdc!$C149=1,dati_bdv!$C$2:$C$65536,IF(dati_pdc!$C149=2,dati_bdv!$D$2:$D$65536,IF(dati_pdc!$C149=3,dati_bdv!$E$2:$E$65536,IF(dati_pdc!$C149=4,dati_bdv!$F$2:$F$65536,IF(dati_pdc!$C149=5,dati_bdv!$G$2:$G$65536,dati_bdv!$H$2:$H$65536))))),$A149,dati_bdv!L$2:L$65536)","v":0},{"$f":"SUMIF(IF(dati_pdc!$C149=1,dati_bdv!$C$2:$C$65536,IF(dati_pdc!$C149=2,dati_bdv!$D$2:$D$65536,IF(dati_pdc!$C149=3,dati_bdv!$E$2:$E$65536,IF(dati_pdc!$C149=4,dati_bdv!$F$2:$F$65536,IF(dati_pdc!$C149=5,dati_bdv!$G$2:$G$65536,dati_bdv!$H$2:$H$65536))))),$A149,dati_bdv!M$2:M$65536)","v":0},{"$f":"SUMIF(IF(dati_pdc!$C149=1,dati_bdv!$C$2:$C$65536,IF(dati_pdc!$C149=2,dati_bdv!$D$2:$D$65536,IF(dati_pdc!$C149=3,dati_bdv!$E$2:$E$65536,IF(dati_pdc!$C149=4,dati_bdv!$F$2:$F$65536,IF(dati_pdc!$C149=5,dati_bdv!$G$2:$G$65536,dati_bdv!$H$2:$H$65536))))),$A149,dati_bdv!N$2:N$65536)","v":0}]
[{"$f":"dati_pdc!A150","v":0},{"$f":"SUMIF(IF(dati_pdc!$C150=1,dati_bdv!$C$2:$C$65536,IF(dati_pdc!$C150=2,dati_bdv!$D$2:$D$65536,IF(dati_pdc!$C150=3,dati_bdv!$E$2:$E$65536,IF(dati_pdc!$C150=4,dati_bdv!$F$2:$F$65536,IF(dati_pdc!$C150=5,dati_bdv!$G$2:$G$65536,dati_bdv!$H$2:$H$65536))))),$A150,dati_bdv!J$2:J$65536)","v":0},{"$f":"SUMIF(IF(dati_pdc!$C150=1,dati_bdv!$C$2:$C$65536,IF(dati_pdc!$C150=2,dati_bdv!$D$2:$D$65536,IF(dati_pdc!$C150=3,dati_bdv!$E$2:$E$65536,IF(dati_pdc!$C150=4,dati_bdv!$F$2:$F$65536,IF(dati_pdc!$C150=5,dati_bdv!$G$2:$G$65536,dati_bdv!$H$2:$H$65536))))),$A150,dati_bdv!K$2:K$65536)","v":0},{"$f":"SUMIF(IF(dati_pdc!$C150=1,dati_bdv!$C$2:$C$65536,IF(dati_pdc!$C150=2,dati_bdv!$D$2:$D$65536,IF(dati_pdc!$C150=3,dati_bdv!$E$2:$E$65536,IF(dati_pdc!$C150=4,dati_bdv!$F$2:$F$65536,IF(dati_pdc!$C150=5,dati_bdv!$G$2:$G$65536,dati_bdv!$H$2:$H$65536))))),$A150,dati_bdv!L$2:L$65536)","v":0},{"$f":"SUMIF(IF(dati_pdc!$C150=1,dati_bdv!$C$2:$C$65536,IF(dati_pdc!$C150=2,dati_bdv!$D$2:$D$65536,IF(dati_pdc!$C150=3,dati_bdv!$E$2:$E$65536,IF(dati_pdc!$C150=4,dati_bdv!$F$2:$F$65536,IF(dati_pdc!$C150=5,dati_bdv!$G$2:$G$65536,dati_bdv!$H$2:$H$65536))))),$A150,dati_bdv!M$2:M$65536)","v":0},{"$f":"SUMIF(IF(dati_pdc!$C150=1,dati_bdv!$C$2:$C$65536,IF(dati_pdc!$C150=2,dati_bdv!$D$2:$D$65536,IF(dati_pdc!$C150=3,dati_bdv!$E$2:$E$65536,IF(dati_pdc!$C150=4,dati_bdv!$F$2:$F$65536,IF(dati_pdc!$C150=5,dati_bdv!$G$2:$G$65536,dati_bdv!$H$2:$H$65536))))),$A150,dati_bdv!N$2:N$65536)","v":0}]
[{"$f":"dati_pdc!A151","v":0},{"$f":"SUMIF(IF(dati_pdc!$C151=1,dati_bdv!$C$2:$C$65536,IF(dati_pdc!$C151=2,dati_bdv!$D$2:$D$65536,IF(dati_pdc!$C151=3,dati_bdv!$E$2:$E$65536,IF(dati_pdc!$C151=4,dati_bdv!$F$2:$F$65536,IF(dati_pdc!$C151=5,dati_bdv!$G$2:$G$65536,dati_bdv!$H$2:$H$65536))))),$A151,dati_bdv!J$2:J$65536)","v":0},{"$f":"SUMIF(IF(dati_pdc!$C151=1,dati_bdv!$C$2:$C$65536,IF(dati_pdc!$C151=2,dati_bdv!$D$2:$D$65536,IF(dati_pdc!$C151=3,dati_bdv!$E$2:$E$65536,IF(dati_pdc!$C151=4,dati_bdv!$F$2:$F$65536,IF(dati_pdc!$C151=5,dati_bdv!$G$2:$G$65536,dati_bdv!$H$2:$H$65536))))),$A151,dati_bdv!K$2:K$65536)","v":0},{"$f":"SUMIF(IF(dati_pdc!$C151=1,dati_bdv!$C$2:$C$65536,IF(dati_pdc!$C151=2,dati_bdv!$D$2:$D$65536,IF(dati_pdc!$C151=3,dati_bdv!$E$2:$E$65536,IF(dati_pdc!$C151=4,dati_bdv!$F$2:$F$65536,IF(dati_pdc!$C151=5,dati_bdv!$G$2:$G$65536,dati_bdv!$H$2:$H$65536))))),$A151,dati_bdv!L$2:L$65536)","v":0},{"$f":"SUMIF(IF(dati_pdc!$C151=1,dati_bdv!$C$2:$C$65536,IF(dati_pdc!$C151=2,dati_bdv!$D$2:$D$65536,IF(dati_pdc!$C151=3,dati_bdv!$E$2:$E$65536,IF(dati_pdc!$C151=4,dati_bdv!$F$2:$F$65536,IF(dati_pdc!$C151=5,dati_bdv!$G$2:$G$65536,dati_bdv!$H$2:$H$65536))))),$A151,dati_bdv!M$2:M$65536)","v":0},{"$f":"SUMIF(IF(dati_pdc!$C151=1,dati_bdv!$C$2:$C$65536,IF(dati_pdc!$C151=2,dati_bdv!$D$2:$D$65536,IF(dati_pdc!$C151=3,dati_bdv!$E$2:$E$65536,IF(dati_pdc!$C151=4,dati_bdv!$F$2:$F$65536,IF(dati_pdc!$C151=5,dati_bdv!$G$2:$G$65536,dati_bdv!$H$2:$H$65536))))),$A151,dati_bdv!N$2:N$65536)","v":0}]
[{"$f":"dati_pdc!A152","v":0},{"$f":"SUMIF(IF(dati_pdc!$C152=1,dati_bdv!$C$2:$C$65536,IF(dati_pdc!$C152=2,dati_bdv!$D$2:$D$65536,IF(dati_pdc!$C152=3,dati_bdv!$E$2:$E$65536,IF(dati_pdc!$C152=4,dati_bdv!$F$2:$F$65536,IF(dati_pdc!$C152=5,dati_bdv!$G$2:$G$65536,dati_bdv!$H$2:$H$65536))))),$A152,dati_bdv!J$2:J$65536)","v":0},{"$f":"SUMIF(IF(dati_pdc!$C152=1,dati_bdv!$C$2:$C$65536,IF(dati_pdc!$C152=2,dati_bdv!$D$2:$D$65536,IF(dati_pdc!$C152=3,dati_bdv!$E$2:$E$65536,IF(dati_pdc!$C152=4,dati_bdv!$F$2:$F$65536,IF(dati_pdc!$C152=5,dati_bdv!$G$2:$G$65536,dati_bdv!$H$2:$H$65536))))),$A152,dati_bdv!K$2:K$65536)","v":0},{"$f":"SUMIF(IF(dati_pdc!$C152=1,dati_bdv!$C$2:$C$65536,IF(dati_pdc!$C152=2,dati_bdv!$D$2:$D$65536,IF(dati_pdc!$C152=3,dati_bdv!$E$2:$E$65536,IF(dati_pdc!$C152=4,dati_bdv!$F$2:$F$65536,IF(dati_pdc!$C152=5,dati_bdv!$G$2:$G$65536,dati_bdv!$H$2:$H$65536))))),$A152,dati_bdv!L$2:L$65536)","v":0},{"$f":"SUMIF(IF(dati_pdc!$C152=1,dati_bdv!$C$2:$C$65536,IF(dati_pdc!$C152=2,dati_bdv!$D$2:$D$65536,IF(dati_pdc!$C152=3,dati_bdv!$E$2:$E$65536,IF(dati_pdc!$C152=4,dati_bdv!$F$2:$F$65536,IF(dati_pdc!$C152=5,dati_bdv!$G$2:$G$65536,dati_bdv!$H$2:$H$65536))))),$A152,dati_bdv!M$2:M$65536)","v":0},{"$f":"SUMIF(IF(dati_pdc!$C152=1,dati_bdv!$C$2:$C$65536,IF(dati_pdc!$C152=2,dati_bdv!$D$2:$D$65536,IF(dati_pdc!$C152=3,dati_bdv!$E$2:$E$65536,IF(dati_pdc!$C152=4,dati_bdv!$F$2:$F$65536,IF(dati_pdc!$C152=5,dati_bdv!$G$2:$G$65536,dati_bdv!$H$2:$H$65536))))),$A152,dati_bdv!N$2:N$65536)","v":0}]
[{"$f":"dati_pdc!A153","v":0},{"$f":"SUMIF(IF(dati_pdc!$C153=1,dati_bdv!$C$2:$C$65536,IF(dati_pdc!$C153=2,dati_bdv!$D$2:$D$65536,IF(dati_pdc!$C153=3,dati_bdv!$E$2:$E$65536,IF(dati_pdc!$C153=4,dati_bdv!$F$2:$F$65536,IF(dati_pdc!$C153=5,dati_bdv!$G$2:$G$65536,dati_bdv!$H$2:$H$65536))))),$A153,dati_bdv!J$2:J$65536)","v":0},{"$f":"SUMIF(IF(dati_pdc!$C153=1,dati_bdv!$C$2:$C$65536,IF(dati_pdc!$C153=2,dati_bdv!$D$2:$D$65536,IF(dati_pdc!$C153=3,dati_bdv!$E$2:$E$65536,IF(dati_pdc!$C153=4,dati_bdv!$F$2:$F$65536,IF(dati_pdc!$C153=5,dati_bdv!$G$2:$G$65536,dati_bdv!$H$2:$H$65536))))),$A153,dati_bdv!K$2:K$65536)","v":0},{"$f":"SUMIF(IF(dati_pdc!$C153=1,dati_bdv!$C$2:$C$65536,IF(dati_pdc!$C153=2,dati_bdv!$D$2:$D$65536,IF(dati_pdc!$C153=3,dati_bdv!$E$2:$E$65536,IF(dati_pdc!$C153=4,dati_bdv!$F$2:$F$65536,IF(dati_pdc!$C153=5,dati_bdv!$G$2:$G$65536,dati_bdv!$H$2:$H$65536))))),$A153,dati_bdv!L$2:L$65536)","v":0},{"$f":"SUMIF(IF(dati_pdc!$C153=1,dati_bdv!$C$2:$C$65536,IF(dati_pdc!$C153=2,dati_bdv!$D$2:$D$65536,IF(dati_pdc!$C153=3,dati_bdv!$E$2:$E$65536,IF(dati_pdc!$C153=4,dati_bdv!$F$2:$F$65536,IF(dati_pdc!$C153=5,dati_bdv!$G$2:$G$65536,dati_bdv!$H$2:$H$65536))))),$A153,dati_bdv!M$2:M$65536)","v":0},{"$f":"SUMIF(IF(dati_pdc!$C153=1,dati_bdv!$C$2:$C$65536,IF(dati_pdc!$C153=2,dati_bdv!$D$2:$D$65536,IF(dati_pdc!$C153=3,dati_bdv!$E$2:$E$65536,IF(dati_pdc!$C153=4,dati_bdv!$F$2:$F$65536,IF(dati_pdc!$C153=5,dati_bdv!$G$2:$G$65536,dati_bdv!$H$2:$H$65536))))),$A153,dati_bdv!N$2:N$65536)","v":0}]
[{"$f":"dati_pdc!A154","v":0},{"$f":"SUMIF(IF(dati_pdc!$C154=1,dati_bdv!$C$2:$C$65536,IF(dati_pdc!$C154=2,dati_bdv!$D$2:$D$65536,IF(dati_pdc!$C154=3,dati_bdv!$E$2:$E$65536,IF(dati_pdc!$C154=4,dati_bdv!$F$2:$F$65536,IF(dati_pdc!$C154=5,dati_bdv!$G$2:$G$65536,dati_bdv!$H$2:$H$65536))))),$A154,dati_bdv!J$2:J$65536)","v":0},{"$f":"SUMIF(IF(dati_pdc!$C154=1,dati_bdv!$C$2:$C$65536,IF(dati_pdc!$C154=2,dati_bdv!$D$2:$D$65536,IF(dati_pdc!$C154=3,dati_bdv!$E$2:$E$65536,IF(dati_pdc!$C154=4,dati_bdv!$F$2:$F$65536,IF(dati_pdc!$C154=5,dati_bdv!$G$2:$G$65536,dati_bdv!$H$2:$H$65536))))),$A154,dati_bdv!K$2:K$65536)","v":0},{"$f":"SUMIF(IF(dati_pdc!$C154=1,dati_bdv!$C$2:$C$65536,IF(dati_pdc!$C154=2,dati_bdv!$D$2:$D$65536,IF(dati_pdc!$C154=3,dati_bdv!$E$2:$E$65536,IF(dati_pdc!$C154=4,dati_bdv!$F$2:$F$65536,IF(dati_pdc!$C154=5,dati_bdv!$G$2:$G$65536,dati_bdv!$H$2:$H$65536))))),$A154,dati_bdv!L$2:L$65536)","v":0},{"$f":"SUMIF(IF(dati_pdc!$C154=1,dati_bdv!$C$2:$C$65536,IF(dati_pdc!$C154=2,dati_bdv!$D$2:$D$65536,IF(dati_pdc!$C154=3,dati_bdv!$E$2:$E$65536,IF(dati_pdc!$C154=4,dati_bdv!$F$2:$F$65536,IF(dati_pdc!$C154=5,dati_bdv!$G$2:$G$65536,dati_bdv!$H$2:$H$65536))))),$A154,dati_bdv!M$2:M$65536)","v":0},{"$f":"SUMIF(IF(dati_pdc!$C154=1,dati_bdv!$C$2:$C$65536,IF(dati_pdc!$C154=2,dati_bdv!$D$2:$D$65536,IF(dati_pdc!$C154=3,dati_bdv!$E$2:$E$65536,IF(dati_pdc!$C154=4,dati_bdv!$F$2:$F$65536,IF(dati_pdc!$C154=5,dati_bdv!$G$2:$G$65536,dati_bdv!$H$2:$H$65536))))),$A154,dati_bdv!N$2:N$65536)","v":0}]
[{"$f":"dati_pdc!A155","v":0},{"$f":"SUMIF(IF(dati_pdc!$C155=1,dati_bdv!$C$2:$C$65536,IF(dati_pdc!$C155=2,dati_bdv!$D$2:$D$65536,IF(dati_pdc!$C155=3,dati_bdv!$E$2:$E$65536,IF(dati_pdc!$C155=4,dati_bdv!$F$2:$F$65536,IF(dati_pdc!$C155=5,dati_bdv!$G$2:$G$65536,dati_bdv!$H$2:$H$65536))))),$A155,dati_bdv!J$2:J$65536)","v":0},{"$f":"SUMIF(IF(dati_pdc!$C155=1,dati_bdv!$C$2:$C$65536,IF(dati_pdc!$C155=2,dati_bdv!$D$2:$D$65536,IF(dati_pdc!$C155=3,dati_bdv!$E$2:$E$65536,IF(dati_pdc!$C155=4,dati_bdv!$F$2:$F$65536,IF(dati_pdc!$C155=5,dati_bdv!$G$2:$G$65536,dati_bdv!$H$2:$H$65536))))),$A155,dati_bdv!K$2:K$65536)","v":0},{"$f":"SUMIF(IF(dati_pdc!$C155=1,dati_bdv!$C$2:$C$65536,IF(dati_pdc!$C155=2,dati_bdv!$D$2:$D$65536,IF(dati_pdc!$C155=3,dati_bdv!$E$2:$E$65536,IF(dati_pdc!$C155=4,dati_bdv!$F$2:$F$65536,IF(dati_pdc!$C155=5,dati_bdv!$G$2:$G$65536,dati_bdv!$H$2:$H$65536))))),$A155,dati_bdv!L$2:L$65536)","v":0},{"$f":"SUMIF(IF(dati_pdc!$C155=1,dati_bdv!$C$2:$C$65536,IF(dati_pdc!$C155=2,dati_bdv!$D$2:$D$65536,IF(dati_pdc!$C155=3,dati_bdv!$E$2:$E$65536,IF(dati_pdc!$C155=4,dati_bdv!$F$2:$F$65536,IF(dati_pdc!$C155=5,dati_bdv!$G$2:$G$65536,dati_bdv!$H$2:$H$65536))))),$A155,dati_bdv!M$2:M$65536)","v":0},{"$f":"SUMIF(IF(dati_pdc!$C155=1,dati_bdv!$C$2:$C$65536,IF(dati_pdc!$C155=2,dati_bdv!$D$2:$D$65536,IF(dati_pdc!$C155=3,dati_bdv!$E$2:$E$65536,IF(dati_pdc!$C155=4,dati_bdv!$F$2:$F$65536,IF(dati_pdc!$C155=5,dati_bdv!$G$2:$G$65536,dati_bdv!$H$2:$H$65536))))),$A155,dati_bdv!N$2:N$65536)","v":0}]
[{"$f":"dati_pdc!A156","v":0},{"$f":"SUMIF(IF(dati_pdc!$C156=1,dati_bdv!$C$2:$C$65536,IF(dati_pdc!$C156=2,dati_bdv!$D$2:$D$65536,IF(dati_pdc!$C156=3,dati_bdv!$E$2:$E$65536,IF(dati_pdc!$C156=4,dati_bdv!$F$2:$F$65536,IF(dati_pdc!$C156=5,dati_bdv!$G$2:$G$65536,dati_bdv!$H$2:$H$65536))))),$A156,dati_bdv!J$2:J$65536)","v":0},{"$f":"SUMIF(IF(dati_pdc!$C156=1,dati_bdv!$C$2:$C$65536,IF(dati_pdc!$C156=2,dati_bdv!$D$2:$D$65536,IF(dati_pdc!$C156=3,dati_bdv!$E$2:$E$65536,IF(dati_pdc!$C156=4,dati_bdv!$F$2:$F$65536,IF(dati_pdc!$C156=5,dati_bdv!$G$2:$G$65536,dati_bdv!$H$2:$H$65536))))),$A156,dati_bdv!K$2:K$65536)","v":0},{"$f":"SUMIF(IF(dati_pdc!$C156=1,dati_bdv!$C$2:$C$65536,IF(dati_pdc!$C156=2,dati_bdv!$D$2:$D$65536,IF(dati_pdc!$C156=3,dati_bdv!$E$2:$E$65536,IF(dati_pdc!$C156=4,dati_bdv!$F$2:$F$65536,IF(dati_pdc!$C156=5,dati_bdv!$G$2:$G$65536,dati_bdv!$H$2:$H$65536))))),$A156,dati_bdv!L$2:L$65536)","v":0},{"$f":"SUMIF(IF(dati_pdc!$C156=1,dati_bdv!$C$2:$C$65536,IF(dati_pdc!$C156=2,dati_bdv!$D$2:$D$65536,IF(dati_pdc!$C156=3,dati_bdv!$E$2:$E$65536,IF(dati_pdc!$C156=4,dati_bdv!$F$2:$F$65536,IF(dati_pdc!$C156=5,dati_bdv!$G$2:$G$65536,dati_bdv!$H$2:$H$65536))))),$A156,dati_bdv!M$2:M$65536)","v":0},{"$f":"SUMIF(IF(dati_pdc!$C156=1,dati_bdv!$C$2:$C$65536,IF(dati_pdc!$C156=2,dati_bdv!$D$2:$D$65536,IF(dati_pdc!$C156=3,dati_bdv!$E$2:$E$65536,IF(dati_pdc!$C156=4,dati_bdv!$F$2:$F$65536,IF(dati_pdc!$C156=5,dati_bdv!$G$2:$G$65536,dati_bdv!$H$2:$H$65536))))),$A156,dati_bdv!N$2:N$65536)","v":0}]
[{"$f":"dati_pdc!A157","v":0},{"$f":"SUMIF(IF(dati_pdc!$C157=1,dati_bdv!$C$2:$C$65536,IF(dati_pdc!$C157=2,dati_bdv!$D$2:$D$65536,IF(dati_pdc!$C157=3,dati_bdv!$E$2:$E$65536,IF(dati_pdc!$C157=4,dati_bdv!$F$2:$F$65536,IF(dati_pdc!$C157=5,dati_bdv!$G$2:$G$65536,dati_bdv!$H$2:$H$65536))))),$A157,dati_bdv!J$2:J$65536)","v":0},{"$f":"SUMIF(IF(dati_pdc!$C157=1,dati_bdv!$C$2:$C$65536,IF(dati_pdc!$C157=2,dati_bdv!$D$2:$D$65536,IF(dati_pdc!$C157=3,dati_bdv!$E$2:$E$65536,IF(dati_pdc!$C157=4,dati_bdv!$F$2:$F$65536,IF(dati_pdc!$C157=5,dati_bdv!$G$2:$G$65536,dati_bdv!$H$2:$H$65536))))),$A157,dati_bdv!K$2:K$65536)","v":0},{"$f":"SUMIF(IF(dati_pdc!$C157=1,dati_bdv!$C$2:$C$65536,IF(dati_pdc!$C157=2,dati_bdv!$D$2:$D$65536,IF(dati_pdc!$C157=3,dati_bdv!$E$2:$E$65536,IF(dati_pdc!$C157=4,dati_bdv!$F$2:$F$65536,IF(dati_pdc!$C157=5,dati_bdv!$G$2:$G$65536,dati_bdv!$H$2:$H$65536))))),$A157,dati_bdv!L$2:L$65536)","v":0},{"$f":"SUMIF(IF(dati_pdc!$C157=1,dati_bdv!$C$2:$C$65536,IF(dati_pdc!$C157=2,dati_bdv!$D$2:$D$65536,IF(dati_pdc!$C157=3,dati_bdv!$E$2:$E$65536,IF(dati_pdc!$C157=4,dati_bdv!$F$2:$F$65536,IF(dati_pdc!$C157=5,dati_bdv!$G$2:$G$65536,dati_bdv!$H$2:$H$65536))))),$A157,dati_bdv!M$2:M$65536)","v":0},{"$f":"SUMIF(IF(dati_pdc!$C157=1,dati_bdv!$C$2:$C$65536,IF(dati_pdc!$C157=2,dati_bdv!$D$2:$D$65536,IF(dati_pdc!$C157=3,dati_bdv!$E$2:$E$65536,IF(dati_pdc!$C157=4,dati_bdv!$F$2:$F$65536,IF(dati_pdc!$C157=5,dati_bdv!$G$2:$G$65536,dati_bdv!$H$2:$H$65536))))),$A157,dati_bdv!N$2:N$65536)","v":0}]
[{"$f":"dati_pdc!A158","v":0},{"$f":"SUMIF(IF(dati_pdc!$C158=1,dati_bdv!$C$2:$C$65536,IF(dati_pdc!$C158=2,dati_bdv!$D$2:$D$65536,IF(dati_pdc!$C158=3,dati_bdv!$E$2:$E$65536,IF(dati_pdc!$C158=4,dati_bdv!$F$2:$F$65536,IF(dati_pdc!$C158=5,dati_bdv!$G$2:$G$65536,dati_bdv!$H$2:$H$65536))))),$A158,dati_bdv!J$2:J$65536)","v":0},{"$f":"SUMIF(IF(dati_pdc!$C158=1,dati_bdv!$C$2:$C$65536,IF(dati_pdc!$C158=2,dati_bdv!$D$2:$D$65536,IF(dati_pdc!$C158=3,dati_bdv!$E$2:$E$65536,IF(dati_pdc!$C158=4,dati_bdv!$F$2:$F$65536,IF(dati_pdc!$C158=5,dati_bdv!$G$2:$G$65536,dati_bdv!$H$2:$H$65536))))),$A158,dati_bdv!K$2:K$65536)","v":0},{"$f":"SUMIF(IF(dati_pdc!$C158=1,dati_bdv!$C$2:$C$65536,IF(dati_pdc!$C158=2,dati_bdv!$D$2:$D$65536,IF(dati_pdc!$C158=3,dati_bdv!$E$2:$E$65536,IF(dati_pdc!$C158=4,dati_bdv!$F$2:$F$65536,IF(dati_pdc!$C158=5,dati_bdv!$G$2:$G$65536,dati_bdv!$H$2:$H$65536))))),$A158,dati_bdv!L$2:L$65536)","v":0},{"$f":"SUMIF(IF(dati_pdc!$C158=1,dati_bdv!$C$2:$C$65536,IF(dati_pdc!$C158=2,dati_bdv!$D$2:$D$65536,IF(dati_pdc!$C158=3,dati_bdv!$E$2:$E$65536,IF(dati_pdc!$C158=4,dati_bdv!$F$2:$F$65536,IF(dati_pdc!$C158=5,dati_bdv!$G$2:$G$65536,dati_bdv!$H$2:$H$65536))))),$A158,dati_bdv!M$2:M$65536)","v":0},{"$f":"SUMIF(IF(dati_pdc!$C158=1,dati_bdv!$C$2:$C$65536,IF(dati_pdc!$C158=2,dati_bdv!$D$2:$D$65536,IF(dati_pdc!$C158=3,dati_bdv!$E$2:$E$65536,IF(dati_pdc!$C158=4,dati_bdv!$F$2:$F$65536,IF(dati_pdc!$C158=5,dati_bdv!$G$2:$G$65536,dati_bdv!$H$2:$H$65536))))),$A158,dati_bdv!N$2:N$65536)","v":0}]
[{"$f":"dati_pdc!A159","v":0},{"$f":"SUMIF(IF(dati_pdc!$C159=1,dati_bdv!$C$2:$C$65536,IF(dati_pdc!$C159=2,dati_bdv!$D$2:$D$65536,IF(dati_pdc!$C159=3,dati_bdv!$E$2:$E$65536,IF(dati_pdc!$C159=4,dati_bdv!$F$2:$F$65536,IF(dati_pdc!$C159=5,dati_bdv!$G$2:$G$65536,dati_bdv!$H$2:$H$65536))))),$A159,dati_bdv!J$2:J$65536)","v":0},{"$f":"SUMIF(IF(dati_pdc!$C159=1,dati_bdv!$C$2:$C$65536,IF(dati_pdc!$C159=2,dati_bdv!$D$2:$D$65536,IF(dati_pdc!$C159=3,dati_bdv!$E$2:$E$65536,IF(dati_pdc!$C159=4,dati_bdv!$F$2:$F$65536,IF(dati_pdc!$C159=5,dati_bdv!$G$2:$G$65536,dati_bdv!$H$2:$H$65536))))),$A159,dati_bdv!K$2:K$65536)","v":0},{"$f":"SUMIF(IF(dati_pdc!$C159=1,dati_bdv!$C$2:$C$65536,IF(dati_pdc!$C159=2,dati_bdv!$D$2:$D$65536,IF(dati_pdc!$C159=3,dati_bdv!$E$2:$E$65536,IF(dati_pdc!$C159=4,dati_bdv!$F$2:$F$65536,IF(dati_pdc!$C159=5,dati_bdv!$G$2:$G$65536,dati_bdv!$H$2:$H$65536))))),$A159,dati_bdv!L$2:L$65536)","v":0},{"$f":"SUMIF(IF(dati_pdc!$C159=1,dati_bdv!$C$2:$C$65536,IF(dati_pdc!$C159=2,dati_bdv!$D$2:$D$65536,IF(dati_pdc!$C159=3,dati_bdv!$E$2:$E$65536,IF(dati_pdc!$C159=4,dati_bdv!$F$2:$F$65536,IF(dati_pdc!$C159=5,dati_bdv!$G$2:$G$65536,dati_bdv!$H$2:$H$65536))))),$A159,dati_bdv!M$2:M$65536)","v":0},{"$f":"SUMIF(IF(dati_pdc!$C159=1,dati_bdv!$C$2:$C$65536,IF(dati_pdc!$C159=2,dati_bdv!$D$2:$D$65536,IF(dati_pdc!$C159=3,dati_bdv!$E$2:$E$65536,IF(dati_pdc!$C159=4,dati_bdv!$F$2:$F$65536,IF(dati_pdc!$C159=5,dati_bdv!$G$2:$G$65536,dati_bdv!$H$2:$H$65536))))),$A159,dati_bdv!N$2:N$65536)","v":0}]
[{"$f":"dati_pdc!A160","v":0},{"$f":"SUMIF(IF(dati_pdc!$C160=1,dati_bdv!$C$2:$C$65536,IF(dati_pdc!$C160=2,dati_bdv!$D$2:$D$65536,IF(dati_pdc!$C160=3,dati_bdv!$E$2:$E$65536,IF(dati_pdc!$C160=4,dati_bdv!$F$2:$F$65536,IF(dati_pdc!$C160=5,dati_bdv!$G$2:$G$65536,dati_bdv!$H$2:$H$65536))))),$A160,dati_bdv!J$2:J$65536)","v":0},{"$f":"SUMIF(IF(dati_pdc!$C160=1,dati_bdv!$C$2:$C$65536,IF(dati_pdc!$C160=2,dati_bdv!$D$2:$D$65536,IF(dati_pdc!$C160=3,dati_bdv!$E$2:$E$65536,IF(dati_pdc!$C160=4,dati_bdv!$F$2:$F$65536,IF(dati_pdc!$C160=5,dati_bdv!$G$2:$G$65536,dati_bdv!$H$2:$H$65536))))),$A160,dati_bdv!K$2:K$65536)","v":0},{"$f":"SUMIF(IF(dati_pdc!$C160=1,dati_bdv!$C$2:$C$65536,IF(dati_pdc!$C160=2,dati_bdv!$D$2:$D$65536,IF(dati_pdc!$C160=3,dati_bdv!$E$2:$E$65536,IF(dati_pdc!$C160=4,dati_bdv!$F$2:$F$65536,IF(dati_pdc!$C160=5,dati_bdv!$G$2:$G$65536,dati_bdv!$H$2:$H$65536))))),$A160,dati_bdv!L$2:L$65536)","v":0},{"$f":"SUMIF(IF(dati_pdc!$C160=1,dati_bdv!$C$2:$C$65536,IF(dati_pdc!$C160=2,dati_bdv!$D$2:$D$65536,IF(dati_pdc!$C160=3,dati_bdv!$E$2:$E$65536,IF(dati_pdc!$C160=4,dati_bdv!$F$2:$F$65536,IF(dati_pdc!$C160=5,dati_bdv!$G$2:$G$65536,dati_bdv!$H$2:$H$65536))))),$A160,dati_bdv!M$2:M$65536)","v":0},{"$f":"SUMIF(IF(dati_pdc!$C160=1,dati_bdv!$C$2:$C$65536,IF(dati_pdc!$C160=2,dati_bdv!$D$2:$D$65536,IF(dati_pdc!$C160=3,dati_bdv!$E$2:$E$65536,IF(dati_pdc!$C160=4,dati_bdv!$F$2:$F$65536,IF(dati_pdc!$C160=5,dati_bdv!$G$2:$G$65536,dati_bdv!$H$2:$H$65536))))),$A160,dati_bdv!N$2:N$65536)","v":0}]
[{"$f":"dati_pdc!A161","v":0},{"$f":"SUMIF(IF(dati_pdc!$C161=1,dati_bdv!$C$2:$C$65536,IF(dati_pdc!$C161=2,dati_bdv!$D$2:$D$65536,IF(dati_pdc!$C161=3,dati_bdv!$E$2:$E$65536,IF(dati_pdc!$C161=4,dati_bdv!$F$2:$F$65536,IF(dati_pdc!$C161=5,dati_bdv!$G$2:$G$65536,dati_bdv!$H$2:$H$65536))))),$A161,dati_bdv!J$2:J$65536)","v":0},{"$f":"SUMIF(IF(dati_pdc!$C161=1,dati_bdv!$C$2:$C$65536,IF(dati_pdc!$C161=2,dati_bdv!$D$2:$D$65536,IF(dati_pdc!$C161=3,dati_bdv!$E$2:$E$65536,IF(dati_pdc!$C161=4,dati_bdv!$F$2:$F$65536,IF(dati_pdc!$C161=5,dati_bdv!$G$2:$G$65536,dati_bdv!$H$2:$H$65536))))),$A161,dati_bdv!K$2:K$65536)","v":0},{"$f":"SUMIF(IF(dati_pdc!$C161=1,dati_bdv!$C$2:$C$65536,IF(dati_pdc!$C161=2,dati_bdv!$D$2:$D$65536,IF(dati_pdc!$C161=3,dati_bdv!$E$2:$E$65536,IF(dati_pdc!$C161=4,dati_bdv!$F$2:$F$65536,IF(dati_pdc!$C161=5,dati_bdv!$G$2:$G$65536,dati_bdv!$H$2:$H$65536))))),$A161,dati_bdv!L$2:L$65536)","v":0},{"$f":"SUMIF(IF(dati_pdc!$C161=1,dati_bdv!$C$2:$C$65536,IF(dati_pdc!$C161=2,dati_bdv!$D$2:$D$65536,IF(dati_pdc!$C161=3,dati_bdv!$E$2:$E$65536,IF(dati_pdc!$C161=4,dati_bdv!$F$2:$F$65536,IF(dati_pdc!$C161=5,dati_bdv!$G$2:$G$65536,dati_bdv!$H$2:$H$65536))))),$A161,dati_bdv!M$2:M$65536)","v":0},{"$f":"SUMIF(IF(dati_pdc!$C161=1,dati_bdv!$C$2:$C$65536,IF(dati_pdc!$C161=2,dati_bdv!$D$2:$D$65536,IF(dati_pdc!$C161=3,dati_bdv!$E$2:$E$65536,IF(dati_pdc!$C161=4,dati_bdv!$F$2:$F$65536,IF(dati_pdc!$C161=5,dati_bdv!$G$2:$G$65536,dati_bdv!$H$2:$H$65536))))),$A161,dati_bdv!N$2:N$65536)","v":0}]
[{"$f":"dati_pdc!A162","v":0},{"$f":"SUMIF(IF(dati_pdc!$C162=1,dati_bdv!$C$2:$C$65536,IF(dati_pdc!$C162=2,dati_bdv!$D$2:$D$65536,IF(dati_pdc!$C162=3,dati_bdv!$E$2:$E$65536,IF(dati_pdc!$C162=4,dati_bdv!$F$2:$F$65536,IF(dati_pdc!$C162=5,dati_bdv!$G$2:$G$65536,dati_bdv!$H$2:$H$65536))))),$A162,dati_bdv!J$2:J$65536)","v":0},{"$f":"SUMIF(IF(dati_pdc!$C162=1,dati_bdv!$C$2:$C$65536,IF(dati_pdc!$C162=2,dati_bdv!$D$2:$D$65536,IF(dati_pdc!$C162=3,dati_bdv!$E$2:$E$65536,IF(dati_pdc!$C162=4,dati_bdv!$F$2:$F$65536,IF(dati_pdc!$C162=5,dati_bdv!$G$2:$G$65536,dati_bdv!$H$2:$H$65536))))),$A162,dati_bdv!K$2:K$65536)","v":0},{"$f":"SUMIF(IF(dati_pdc!$C162=1,dati_bdv!$C$2:$C$65536,IF(dati_pdc!$C162=2,dati_bdv!$D$2:$D$65536,IF(dati_pdc!$C162=3,dati_bdv!$E$2:$E$65536,IF(dati_pdc!$C162=4,dati_bdv!$F$2:$F$65536,IF(dati_pdc!$C162=5,dati_bdv!$G$2:$G$65536,dati_bdv!$H$2:$H$65536))))),$A162,dati_bdv!L$2:L$65536)","v":0},{"$f":"SUMIF(IF(dati_pdc!$C162=1,dati_bdv!$C$2:$C$65536,IF(dati_pdc!$C162=2,dati_bdv!$D$2:$D$65536,IF(dati_pdc!$C162=3,dati_bdv!$E$2:$E$65536,IF(dati_pdc!$C162=4,dati_bdv!$F$2:$F$65536,IF(dati_pdc!$C162=5,dati_bdv!$G$2:$G$65536,dati_bdv!$H$2:$H$65536))))),$A162,dati_bdv!M$2:M$65536)","v":0},{"$f":"SUMIF(IF(dati_pdc!$C162=1,dati_bdv!$C$2:$C$65536,IF(dati_pdc!$C162=2,dati_bdv!$D$2:$D$65536,IF(dati_pdc!$C162=3,dati_bdv!$E$2:$E$65536,IF(dati_pdc!$C162=4,dati_bdv!$F$2:$F$65536,IF(dati_pdc!$C162=5,dati_bdv!$G$2:$G$65536,dati_bdv!$H$2:$H$65536))))),$A162,dati_bdv!N$2:N$65536)","v":0}]
[{"$f":"dati_pdc!A163","v":0},{"$f":"SUMIF(IF(dati_pdc!$C163=1,dati_bdv!$C$2:$C$65536,IF(dati_pdc!$C163=2,dati_bdv!$D$2:$D$65536,IF(dati_pdc!$C163=3,dati_bdv!$E$2:$E$65536,IF(dati_pdc!$C163=4,dati_bdv!$F$2:$F$65536,IF(dati_pdc!$C163=5,dati_bdv!$G$2:$G$65536,dati_bdv!$H$2:$H$65536))))),$A163,dati_bdv!J$2:J$65536)","v":0},{"$f":"SUMIF(IF(dati_pdc!$C163=1,dati_bdv!$C$2:$C$65536,IF(dati_pdc!$C163=2,dati_bdv!$D$2:$D$65536,IF(dati_pdc!$C163=3,dati_bdv!$E$2:$E$65536,IF(dati_pdc!$C163=4,dati_bdv!$F$2:$F$65536,IF(dati_pdc!$C163=5,dati_bdv!$G$2:$G$65536,dati_bdv!$H$2:$H$65536))))),$A163,dati_bdv!K$2:K$65536)","v":0},{"$f":"SUMIF(IF(dati_pdc!$C163=1,dati_bdv!$C$2:$C$65536,IF(dati_pdc!$C163=2,dati_bdv!$D$2:$D$65536,IF(dati_pdc!$C163=3,dati_bdv!$E$2:$E$65536,IF(dati_pdc!$C163=4,dati_bdv!$F$2:$F$65536,IF(dati_pdc!$C163=5,dati_bdv!$G$2:$G$65536,dati_bdv!$H$2:$H$65536))))),$A163,dati_bdv!L$2:L$65536)","v":0},{"$f":"SUMIF(IF(dati_pdc!$C163=1,dati_bdv!$C$2:$C$65536,IF(dati_pdc!$C163=2,dati_bdv!$D$2:$D$65536,IF(dati_pdc!$C163=3,dati_bdv!$E$2:$E$65536,IF(dati_pdc!$C163=4,dati_bdv!$F$2:$F$65536,IF(dati_pdc!$C163=5,dati_bdv!$G$2:$G$65536,dati_bdv!$H$2:$H$65536))))),$A163,dati_bdv!M$2:M$65536)","v":0},{"$f":"SUMIF(IF(dati_pdc!$C163=1,dati_bdv!$C$2:$C$65536,IF(dati_pdc!$C163=2,dati_bdv!$D$2:$D$65536,IF(dati_pdc!$C163=3,dati_bdv!$E$2:$E$65536,IF(dati_pdc!$C163=4,dati_bdv!$F$2:$F$65536,IF(dati_pdc!$C163=5,dati_bdv!$G$2:$G$65536,dati_bdv!$H$2:$H$65536))))),$A163,dati_bdv!N$2:N$65536)","v":0}]
[{"$f":"dati_pdc!A164","v":0},{"$f":"SUMIF(IF(dati_pdc!$C164=1,dati_bdv!$C$2:$C$65536,IF(dati_pdc!$C164=2,dati_bdv!$D$2:$D$65536,IF(dati_pdc!$C164=3,dati_bdv!$E$2:$E$65536,IF(dati_pdc!$C164=4,dati_bdv!$F$2:$F$65536,IF(dati_pdc!$C164=5,dati_bdv!$G$2:$G$65536,dati_bdv!$H$2:$H$65536))))),$A164,dati_bdv!J$2:J$65536)","v":0},{"$f":"SUMIF(IF(dati_pdc!$C164=1,dati_bdv!$C$2:$C$65536,IF(dati_pdc!$C164=2,dati_bdv!$D$2:$D$65536,IF(dati_pdc!$C164=3,dati_bdv!$E$2:$E$65536,IF(dati_pdc!$C164=4,dati_bdv!$F$2:$F$65536,IF(dati_pdc!$C164=5,dati_bdv!$G$2:$G$65536,dati_bdv!$H$2:$H$65536))))),$A164,dati_bdv!K$2:K$65536)","v":0},{"$f":"SUMIF(IF(dati_pdc!$C164=1,dati_bdv!$C$2:$C$65536,IF(dati_pdc!$C164=2,dati_bdv!$D$2:$D$65536,IF(dati_pdc!$C164=3,dati_bdv!$E$2:$E$65536,IF(dati_pdc!$C164=4,dati_bdv!$F$2:$F$65536,IF(dati_pdc!$C164=5,dati_bdv!$G$2:$G$65536,dati_bdv!$H$2:$H$65536))))),$A164,dati_bdv!L$2:L$65536)","v":0},{"$f":"SUMIF(IF(dati_pdc!$C164=1,dati_bdv!$C$2:$C$65536,IF(dati_pdc!$C164=2,dati_bdv!$D$2:$D$65536,IF(dati_pdc!$C164=3,dati_bdv!$E$2:$E$65536,IF(dati_pdc!$C164=4,dati_bdv!$F$2:$F$65536,IF(dati_pdc!$C164=5,dati_bdv!$G$2:$G$65536,dati_bdv!$H$2:$H$65536))))),$A164,dati_bdv!M$2:M$65536)","v":0},{"$f":"SUMIF(IF(dati_pdc!$C164=1,dati_bdv!$C$2:$C$65536,IF(dati_pdc!$C164=2,dati_bdv!$D$2:$D$65536,IF(dati_pdc!$C164=3,dati_bdv!$E$2:$E$65536,IF(dati_pdc!$C164=4,dati_bdv!$F$2:$F$65536,IF(dati_pdc!$C164=5,dati_bdv!$G$2:$G$65536,dati_bdv!$H$2:$H$65536))))),$A164,dati_bdv!N$2:N$65536)","v":0}]
[{"$f":"dati_pdc!A165","v":0},{"$f":"SUMIF(IF(dati_pdc!$C165=1,dati_bdv!$C$2:$C$65536,IF(dati_pdc!$C165=2,dati_bdv!$D$2:$D$65536,IF(dati_pdc!$C165=3,dati_bdv!$E$2:$E$65536,IF(dati_pdc!$C165=4,dati_bdv!$F$2:$F$65536,IF(dati_pdc!$C165=5,dati_bdv!$G$2:$G$65536,dati_bdv!$H$2:$H$65536))))),$A165,dati_bdv!J$2:J$65536)","v":0},{"$f":"SUMIF(IF(dati_pdc!$C165=1,dati_bdv!$C$2:$C$65536,IF(dati_pdc!$C165=2,dati_bdv!$D$2:$D$65536,IF(dati_pdc!$C165=3,dati_bdv!$E$2:$E$65536,IF(dati_pdc!$C165=4,dati_bdv!$F$2:$F$65536,IF(dati_pdc!$C165=5,dati_bdv!$G$2:$G$65536,dati_bdv!$H$2:$H$65536))))),$A165,dati_bdv!K$2:K$65536)","v":0},{"$f":"SUMIF(IF(dati_pdc!$C165=1,dati_bdv!$C$2:$C$65536,IF(dati_pdc!$C165=2,dati_bdv!$D$2:$D$65536,IF(dati_pdc!$C165=3,dati_bdv!$E$2:$E$65536,IF(dati_pdc!$C165=4,dati_bdv!$F$2:$F$65536,IF(dati_pdc!$C165=5,dati_bdv!$G$2:$G$65536,dati_bdv!$H$2:$H$65536))))),$A165,dati_bdv!L$2:L$65536)","v":0},{"$f":"SUMIF(IF(dati_pdc!$C165=1,dati_bdv!$C$2:$C$65536,IF(dati_pdc!$C165=2,dati_bdv!$D$2:$D$65536,IF(dati_pdc!$C165=3,dati_bdv!$E$2:$E$65536,IF(dati_pdc!$C165=4,dati_bdv!$F$2:$F$65536,IF(dati_pdc!$C165=5,dati_bdv!$G$2:$G$65536,dati_bdv!$H$2:$H$65536))))),$A165,dati_bdv!M$2:M$65536)","v":0},{"$f":"SUMIF(IF(dati_pdc!$C165=1,dati_bdv!$C$2:$C$65536,IF(dati_pdc!$C165=2,dati_bdv!$D$2:$D$65536,IF(dati_pdc!$C165=3,dati_bdv!$E$2:$E$65536,IF(dati_pdc!$C165=4,dati_bdv!$F$2:$F$65536,IF(dati_pdc!$C165=5,dati_bdv!$G$2:$G$65536,dati_bdv!$H$2:$H$65536))))),$A165,dati_bdv!N$2:N$65536)","v":0}]
[{"$f":"dati_pdc!A166","v":0},{"$f":"SUMIF(IF(dati_pdc!$C166=1,dati_bdv!$C$2:$C$65536,IF(dati_pdc!$C166=2,dati_bdv!$D$2:$D$65536,IF(dati_pdc!$C166=3,dati_bdv!$E$2:$E$65536,IF(dati_pdc!$C166=4,dati_bdv!$F$2:$F$65536,IF(dati_pdc!$C166=5,dati_bdv!$G$2:$G$65536,dati_bdv!$H$2:$H$65536))))),$A166,dati_bdv!J$2:J$65536)","v":0},{"$f":"SUMIF(IF(dati_pdc!$C166=1,dati_bdv!$C$2:$C$65536,IF(dati_pdc!$C166=2,dati_bdv!$D$2:$D$65536,IF(dati_pdc!$C166=3,dati_bdv!$E$2:$E$65536,IF(dati_pdc!$C166=4,dati_bdv!$F$2:$F$65536,IF(dati_pdc!$C166=5,dati_bdv!$G$2:$G$65536,dati_bdv!$H$2:$H$65536))))),$A166,dati_bdv!K$2:K$65536)","v":0},{"$f":"SUMIF(IF(dati_pdc!$C166=1,dati_bdv!$C$2:$C$65536,IF(dati_pdc!$C166=2,dati_bdv!$D$2:$D$65536,IF(dati_pdc!$C166=3,dati_bdv!$E$2:$E$65536,IF(dati_pdc!$C166=4,dati_bdv!$F$2:$F$65536,IF(dati_pdc!$C166=5,dati_bdv!$G$2:$G$65536,dati_bdv!$H$2:$H$65536))))),$A166,dati_bdv!L$2:L$65536)","v":0},{"$f":"SUMIF(IF(dati_pdc!$C166=1,dati_bdv!$C$2:$C$65536,IF(dati_pdc!$C166=2,dati_bdv!$D$2:$D$65536,IF(dati_pdc!$C166=3,dati_bdv!$E$2:$E$65536,IF(dati_pdc!$C166=4,dati_bdv!$F$2:$F$65536,IF(dati_pdc!$C166=5,dati_bdv!$G$2:$G$65536,dati_bdv!$H$2:$H$65536))))),$A166,dati_bdv!M$2:M$65536)","v":0},{"$f":"SUMIF(IF(dati_pdc!$C166=1,dati_bdv!$C$2:$C$65536,IF(dati_pdc!$C166=2,dati_bdv!$D$2:$D$65536,IF(dati_pdc!$C166=3,dati_bdv!$E$2:$E$65536,IF(dati_pdc!$C166=4,dati_bdv!$F$2:$F$65536,IF(dati_pdc!$C166=5,dati_bdv!$G$2:$G$65536,dati_bdv!$H$2:$H$65536))))),$A166,dati_bdv!N$2:N$65536)","v":0}]
[{"$f":"dati_pdc!A167","v":0},{"$f":"SUMIF(IF(dati_pdc!$C167=1,dati_bdv!$C$2:$C$65536,IF(dati_pdc!$C167=2,dati_bdv!$D$2:$D$65536,IF(dati_pdc!$C167=3,dati_bdv!$E$2:$E$65536,IF(dati_pdc!$C167=4,dati_bdv!$F$2:$F$65536,IF(dati_pdc!$C167=5,dati_bdv!$G$2:$G$65536,dati_bdv!$H$2:$H$65536))))),$A167,dati_bdv!J$2:J$65536)","v":0},{"$f":"SUMIF(IF(dati_pdc!$C167=1,dati_bdv!$C$2:$C$65536,IF(dati_pdc!$C167=2,dati_bdv!$D$2:$D$65536,IF(dati_pdc!$C167=3,dati_bdv!$E$2:$E$65536,IF(dati_pdc!$C167=4,dati_bdv!$F$2:$F$65536,IF(dati_pdc!$C167=5,dati_bdv!$G$2:$G$65536,dati_bdv!$H$2:$H$65536))))),$A167,dati_bdv!K$2:K$65536)","v":0},{"$f":"SUMIF(IF(dati_pdc!$C167=1,dati_bdv!$C$2:$C$65536,IF(dati_pdc!$C167=2,dati_bdv!$D$2:$D$65536,IF(dati_pdc!$C167=3,dati_bdv!$E$2:$E$65536,IF(dati_pdc!$C167=4,dati_bdv!$F$2:$F$65536,IF(dati_pdc!$C167=5,dati_bdv!$G$2:$G$65536,dati_bdv!$H$2:$H$65536))))),$A167,dati_bdv!L$2:L$65536)","v":0},{"$f":"SUMIF(IF(dati_pdc!$C167=1,dati_bdv!$C$2:$C$65536,IF(dati_pdc!$C167=2,dati_bdv!$D$2:$D$65536,IF(dati_pdc!$C167=3,dati_bdv!$E$2:$E$65536,IF(dati_pdc!$C167=4,dati_bdv!$F$2:$F$65536,IF(dati_pdc!$C167=5,dati_bdv!$G$2:$G$65536,dati_bdv!$H$2:$H$65536))))),$A167,dati_bdv!M$2:M$65536)","v":0},{"$f":"SUMIF(IF(dati_pdc!$C167=1,dati_bdv!$C$2:$C$65536,IF(dati_pdc!$C167=2,dati_bdv!$D$2:$D$65536,IF(dati_pdc!$C167=3,dati_bdv!$E$2:$E$65536,IF(dati_pdc!$C167=4,dati_bdv!$F$2:$F$65536,IF(dati_pdc!$C167=5,dati_bdv!$G$2:$G$65536,dati_bdv!$H$2:$H$65536))))),$A167,dati_bdv!N$2:N$65536)","v":0}]
[{"$f":"dati_pdc!A168","v":0},{"$f":"SUMIF(IF(dati_pdc!$C168=1,dati_bdv!$C$2:$C$65536,IF(dati_pdc!$C168=2,dati_bdv!$D$2:$D$65536,IF(dati_pdc!$C168=3,dati_bdv!$E$2:$E$65536,IF(dati_pdc!$C168=4,dati_bdv!$F$2:$F$65536,IF(dati_pdc!$C168=5,dati_bdv!$G$2:$G$65536,dati_bdv!$H$2:$H$65536))))),$A168,dati_bdv!J$2:J$65536)","v":0},{"$f":"SUMIF(IF(dati_pdc!$C168=1,dati_bdv!$C$2:$C$65536,IF(dati_pdc!$C168=2,dati_bdv!$D$2:$D$65536,IF(dati_pdc!$C168=3,dati_bdv!$E$2:$E$65536,IF(dati_pdc!$C168=4,dati_bdv!$F$2:$F$65536,IF(dati_pdc!$C168=5,dati_bdv!$G$2:$G$65536,dati_bdv!$H$2:$H$65536))))),$A168,dati_bdv!K$2:K$65536)","v":0},{"$f":"SUMIF(IF(dati_pdc!$C168=1,dati_bdv!$C$2:$C$65536,IF(dati_pdc!$C168=2,dati_bdv!$D$2:$D$65536,IF(dati_pdc!$C168=3,dati_bdv!$E$2:$E$65536,IF(dati_pdc!$C168=4,dati_bdv!$F$2:$F$65536,IF(dati_pdc!$C168=5,dati_bdv!$G$2:$G$65536,dati_bdv!$H$2:$H$65536))))),$A168,dati_bdv!L$2:L$65536)","v":0},{"$f":"SUMIF(IF(dati_pdc!$C168=1,dati_bdv!$C$2:$C$65536,IF(dati_pdc!$C168=2,dati_bdv!$D$2:$D$65536,IF(dati_pdc!$C168=3,dati_bdv!$E$2:$E$65536,IF(dati_pdc!$C168=4,dati_bdv!$F$2:$F$65536,IF(dati_pdc!$C168=5,dati_bdv!$G$2:$G$65536,dati_bdv!$H$2:$H$65536))))),$A168,dati_bdv!M$2:M$65536)","v":0},{"$f":"SUMIF(IF(dati_pdc!$C168=1,dati_bdv!$C$2:$C$65536,IF(dati_pdc!$C168=2,dati_bdv!$D$2:$D$65536,IF(dati_pdc!$C168=3,dati_bdv!$E$2:$E$65536,IF(dati_pdc!$C168=4,dati_bdv!$F$2:$F$65536,IF(dati_pdc!$C168=5,dati_bdv!$G$2:$G$65536,dati_bdv!$H$2:$H$65536))))),$A168,dati_bdv!N$2:N$65536)","v":0}]
[{"$f":"dati_pdc!A169","v":0},{"$f":"SUMIF(IF(dati_pdc!$C169=1,dati_bdv!$C$2:$C$65536,IF(dati_pdc!$C169=2,dati_bdv!$D$2:$D$65536,IF(dati_pdc!$C169=3,dati_bdv!$E$2:$E$65536,IF(dati_pdc!$C169=4,dati_bdv!$F$2:$F$65536,IF(dati_pdc!$C169=5,dati_bdv!$G$2:$G$65536,dati_bdv!$H$2:$H$65536))))),$A169,dati_bdv!J$2:J$65536)","v":0},{"$f":"SUMIF(IF(dati_pdc!$C169=1,dati_bdv!$C$2:$C$65536,IF(dati_pdc!$C169=2,dati_bdv!$D$2:$D$65536,IF(dati_pdc!$C169=3,dati_bdv!$E$2:$E$65536,IF(dati_pdc!$C169=4,dati_bdv!$F$2:$F$65536,IF(dati_pdc!$C169=5,dati_bdv!$G$2:$G$65536,dati_bdv!$H$2:$H$65536))))),$A169,dati_bdv!K$2:K$65536)","v":0},{"$f":"SUMIF(IF(dati_pdc!$C169=1,dati_bdv!$C$2:$C$65536,IF(dati_pdc!$C169=2,dati_bdv!$D$2:$D$65536,IF(dati_pdc!$C169=3,dati_bdv!$E$2:$E$65536,IF(dati_pdc!$C169=4,dati_bdv!$F$2:$F$65536,IF(dati_pdc!$C169=5,dati_bdv!$G$2:$G$65536,dati_bdv!$H$2:$H$65536))))),$A169,dati_bdv!L$2:L$65536)","v":0},{"$f":"SUMIF(IF(dati_pdc!$C169=1,dati_bdv!$C$2:$C$65536,IF(dati_pdc!$C169=2,dati_bdv!$D$2:$D$65536,IF(dati_pdc!$C169=3,dati_bdv!$E$2:$E$65536,IF(dati_pdc!$C169=4,dati_bdv!$F$2:$F$65536,IF(dati_pdc!$C169=5,dati_bdv!$G$2:$G$65536,dati_bdv!$H$2:$H$65536))))),$A169,dati_bdv!M$2:M$65536)","v":0},{"$f":"SUMIF(IF(dati_pdc!$C169=1,dati_bdv!$C$2:$C$65536,IF(dati_pdc!$C169=2,dati_bdv!$D$2:$D$65536,IF(dati_pdc!$C169=3,dati_bdv!$E$2:$E$65536,IF(dati_pdc!$C169=4,dati_bdv!$F$2:$F$65536,IF(dati_pdc!$C169=5,dati_bdv!$G$2:$G$65536,dati_bdv!$H$2:$H$65536))))),$A169,dati_bdv!N$2:N$65536)","v":0}]
[{"$f":"dati_pdc!A170","v":0},{"$f":"SUMIF(IF(dati_pdc!$C170=1,dati_bdv!$C$2:$C$65536,IF(dati_pdc!$C170=2,dati_bdv!$D$2:$D$65536,IF(dati_pdc!$C170=3,dati_bdv!$E$2:$E$65536,IF(dati_pdc!$C170=4,dati_bdv!$F$2:$F$65536,IF(dati_pdc!$C170=5,dati_bdv!$G$2:$G$65536,dati_bdv!$H$2:$H$65536))))),$A170,dati_bdv!J$2:J$65536)","v":0},{"$f":"SUMIF(IF(dati_pdc!$C170=1,dati_bdv!$C$2:$C$65536,IF(dati_pdc!$C170=2,dati_bdv!$D$2:$D$65536,IF(dati_pdc!$C170=3,dati_bdv!$E$2:$E$65536,IF(dati_pdc!$C170=4,dati_bdv!$F$2:$F$65536,IF(dati_pdc!$C170=5,dati_bdv!$G$2:$G$65536,dati_bdv!$H$2:$H$65536))))),$A170,dati_bdv!K$2:K$65536)","v":0},{"$f":"SUMIF(IF(dati_pdc!$C170=1,dati_bdv!$C$2:$C$65536,IF(dati_pdc!$C170=2,dati_bdv!$D$2:$D$65536,IF(dati_pdc!$C170=3,dati_bdv!$E$2:$E$65536,IF(dati_pdc!$C170=4,dati_bdv!$F$2:$F$65536,IF(dati_pdc!$C170=5,dati_bdv!$G$2:$G$65536,dati_bdv!$H$2:$H$65536))))),$A170,dati_bdv!L$2:L$65536)","v":0},{"$f":"SUMIF(IF(dati_pdc!$C170=1,dati_bdv!$C$2:$C$65536,IF(dati_pdc!$C170=2,dati_bdv!$D$2:$D$65536,IF(dati_pdc!$C170=3,dati_bdv!$E$2:$E$65536,IF(dati_pdc!$C170=4,dati_bdv!$F$2:$F$65536,IF(dati_pdc!$C170=5,dati_bdv!$G$2:$G$65536,dati_bdv!$H$2:$H$65536))))),$A170,dati_bdv!M$2:M$65536)","v":0},{"$f":"SUMIF(IF(dati_pdc!$C170=1,dati_bdv!$C$2:$C$65536,IF(dati_pdc!$C170=2,dati_bdv!$D$2:$D$65536,IF(dati_pdc!$C170=3,dati_bdv!$E$2:$E$65536,IF(dati_pdc!$C170=4,dati_bdv!$F$2:$F$65536,IF(dati_pdc!$C170=5,dati_bdv!$G$2:$G$65536,dati_bdv!$H$2:$H$65536))))),$A170,dati_bdv!N$2:N$65536)","v":0}]
[{"$f":"dati_pdc!A171","v":0},{"$f":"SUMIF(IF(dati_pdc!$C171=1,dati_bdv!$C$2:$C$65536,IF(dati_pdc!$C171=2,dati_bdv!$D$2:$D$65536,IF(dati_pdc!$C171=3,dati_bdv!$E$2:$E$65536,IF(dati_pdc!$C171=4,dati_bdv!$F$2:$F$65536,IF(dati_pdc!$C171=5,dati_bdv!$G$2:$G$65536,dati_bdv!$H$2:$H$65536))))),$A171,dati_bdv!J$2:J$65536)","v":0},{"$f":"SUMIF(IF(dati_pdc!$C171=1,dati_bdv!$C$2:$C$65536,IF(dati_pdc!$C171=2,dati_bdv!$D$2:$D$65536,IF(dati_pdc!$C171=3,dati_bdv!$E$2:$E$65536,IF(dati_pdc!$C171=4,dati_bdv!$F$2:$F$65536,IF(dati_pdc!$C171=5,dati_bdv!$G$2:$G$65536,dati_bdv!$H$2:$H$65536))))),$A171,dati_bdv!K$2:K$65536)","v":0},{"$f":"SUMIF(IF(dati_pdc!$C171=1,dati_bdv!$C$2:$C$65536,IF(dati_pdc!$C171=2,dati_bdv!$D$2:$D$65536,IF(dati_pdc!$C171=3,dati_bdv!$E$2:$E$65536,IF(dati_pdc!$C171=4,dati_bdv!$F$2:$F$65536,IF(dati_pdc!$C171=5,dati_bdv!$G$2:$G$65536,dati_bdv!$H$2:$H$65536))))),$A171,dati_bdv!L$2:L$65536)","v":0},{"$f":"SUMIF(IF(dati_pdc!$C171=1,dati_bdv!$C$2:$C$65536,IF(dati_pdc!$C171=2,dati_bdv!$D$2:$D$65536,IF(dati_pdc!$C171=3,dati_bdv!$E$2:$E$65536,IF(dati_pdc!$C171=4,dati_bdv!$F$2:$F$65536,IF(dati_pdc!$C171=5,dati_bdv!$G$2:$G$65536,dati_bdv!$H$2:$H$65536))))),$A171,dati_bdv!M$2:M$65536)","v":0},{"$f":"SUMIF(IF(dati_pdc!$C171=1,dati_bdv!$C$2:$C$65536,IF(dati_pdc!$C171=2,dati_bdv!$D$2:$D$65536,IF(dati_pdc!$C171=3,dati_bdv!$E$2:$E$65536,IF(dati_pdc!$C171=4,dati_bdv!$F$2:$F$65536,IF(dati_pdc!$C171=5,dati_bdv!$G$2:$G$65536,dati_bdv!$H$2:$H$65536))))),$A171,dati_bdv!N$2:N$65536)","v":0}]
[{"$f":"dati_pdc!A172","v":0},{"$f":"SUMIF(IF(dati_pdc!$C172=1,dati_bdv!$C$2:$C$65536,IF(dati_pdc!$C172=2,dati_bdv!$D$2:$D$65536,IF(dati_pdc!$C172=3,dati_bdv!$E$2:$E$65536,IF(dati_pdc!$C172=4,dati_bdv!$F$2:$F$65536,IF(dati_pdc!$C172=5,dati_bdv!$G$2:$G$65536,dati_bdv!$H$2:$H$65536))))),$A172,dati_bdv!J$2:J$65536)","v":0},{"$f":"SUMIF(IF(dati_pdc!$C172=1,dati_bdv!$C$2:$C$65536,IF(dati_pdc!$C172=2,dati_bdv!$D$2:$D$65536,IF(dati_pdc!$C172=3,dati_bdv!$E$2:$E$65536,IF(dati_pdc!$C172=4,dati_bdv!$F$2:$F$65536,IF(dati_pdc!$C172=5,dati_bdv!$G$2:$G$65536,dati_bdv!$H$2:$H$65536))))),$A172,dati_bdv!K$2:K$65536)","v":0},{"$f":"SUMIF(IF(dati_pdc!$C172=1,dati_bdv!$C$2:$C$65536,IF(dati_pdc!$C172=2,dati_bdv!$D$2:$D$65536,IF(dati_pdc!$C172=3,dati_bdv!$E$2:$E$65536,IF(dati_pdc!$C172=4,dati_bdv!$F$2:$F$65536,IF(dati_pdc!$C172=5,dati_bdv!$G$2:$G$65536,dati_bdv!$H$2:$H$65536))))),$A172,dati_bdv!L$2:L$65536)","v":0},{"$f":"SUMIF(IF(dati_pdc!$C172=1,dati_bdv!$C$2:$C$65536,IF(dati_pdc!$C172=2,dati_bdv!$D$2:$D$65536,IF(dati_pdc!$C172=3,dati_bdv!$E$2:$E$65536,IF(dati_pdc!$C172=4,dati_bdv!$F$2:$F$65536,IF(dati_pdc!$C172=5,dati_bdv!$G$2:$G$65536,dati_bdv!$H$2:$H$65536))))),$A172,dati_bdv!M$2:M$65536)","v":0},{"$f":"SUMIF(IF(dati_pdc!$C172=1,dati_bdv!$C$2:$C$65536,IF(dati_pdc!$C172=2,dati_bdv!$D$2:$D$65536,IF(dati_pdc!$C172=3,dati_bdv!$E$2:$E$65536,IF(dati_pdc!$C172=4,dati_bdv!$F$2:$F$65536,IF(dati_pdc!$C172=5,dati_bdv!$G$2:$G$65536,dati_bdv!$H$2:$H$65536))))),$A172,dati_bdv!N$2:N$65536)","v":0}]
[{"$f":"dati_pdc!A173","v":0},{"$f":"SUMIF(IF(dati_pdc!$C173=1,dati_bdv!$C$2:$C$65536,IF(dati_pdc!$C173=2,dati_bdv!$D$2:$D$65536,IF(dati_pdc!$C173=3,dati_bdv!$E$2:$E$65536,IF(dati_pdc!$C173=4,dati_bdv!$F$2:$F$65536,IF(dati_pdc!$C173=5,dati_bdv!$G$2:$G$65536,dati_bdv!$H$2:$H$65536))))),$A173,dati_bdv!J$2:J$65536)","v":0},{"$f":"SUMIF(IF(dati_pdc!$C173=1,dati_bdv!$C$2:$C$65536,IF(dati_pdc!$C173=2,dati_bdv!$D$2:$D$65536,IF(dati_pdc!$C173=3,dati_bdv!$E$2:$E$65536,IF(dati_pdc!$C173=4,dati_bdv!$F$2:$F$65536,IF(dati_pdc!$C173=5,dati_bdv!$G$2:$G$65536,dati_bdv!$H$2:$H$65536))))),$A173,dati_bdv!K$2:K$65536)","v":0},{"$f":"SUMIF(IF(dati_pdc!$C173=1,dati_bdv!$C$2:$C$65536,IF(dati_pdc!$C173=2,dati_bdv!$D$2:$D$65536,IF(dati_pdc!$C173=3,dati_bdv!$E$2:$E$65536,IF(dati_pdc!$C173=4,dati_bdv!$F$2:$F$65536,IF(dati_pdc!$C173=5,dati_bdv!$G$2:$G$65536,dati_bdv!$H$2:$H$65536))))),$A173,dati_bdv!L$2:L$65536)","v":0},{"$f":"SUMIF(IF(dati_pdc!$C173=1,dati_bdv!$C$2:$C$65536,IF(dati_pdc!$C173=2,dati_bdv!$D$2:$D$65536,IF(dati_pdc!$C173=3,dati_bdv!$E$2:$E$65536,IF(dati_pdc!$C173=4,dati_bdv!$F$2:$F$65536,IF(dati_pdc!$C173=5,dati_bdv!$G$2:$G$65536,dati_bdv!$H$2:$H$65536))))),$A173,dati_bdv!M$2:M$65536)","v":0},{"$f":"SUMIF(IF(dati_pdc!$C173=1,dati_bdv!$C$2:$C$65536,IF(dati_pdc!$C173=2,dati_bdv!$D$2:$D$65536,IF(dati_pdc!$C173=3,dati_bdv!$E$2:$E$65536,IF(dati_pdc!$C173=4,dati_bdv!$F$2:$F$65536,IF(dati_pdc!$C173=5,dati_bdv!$G$2:$G$65536,dati_bdv!$H$2:$H$65536))))),$A173,dati_bdv!N$2:N$65536)","v":0}]
[{"$f":"dati_pdc!A174","v":0},{"$f":"SUMIF(IF(dati_pdc!$C174=1,dati_bdv!$C$2:$C$65536,IF(dati_pdc!$C174=2,dati_bdv!$D$2:$D$65536,IF(dati_pdc!$C174=3,dati_bdv!$E$2:$E$65536,IF(dati_pdc!$C174=4,dati_bdv!$F$2:$F$65536,IF(dati_pdc!$C174=5,dati_bdv!$G$2:$G$65536,dati_bdv!$H$2:$H$65536))))),$A174,dati_bdv!J$2:J$65536)","v":0},{"$f":"SUMIF(IF(dati_pdc!$C174=1,dati_bdv!$C$2:$C$65536,IF(dati_pdc!$C174=2,dati_bdv!$D$2:$D$65536,IF(dati_pdc!$C174=3,dati_bdv!$E$2:$E$65536,IF(dati_pdc!$C174=4,dati_bdv!$F$2:$F$65536,IF(dati_pdc!$C174=5,dati_bdv!$G$2:$G$65536,dati_bdv!$H$2:$H$65536))))),$A174,dati_bdv!K$2:K$65536)","v":0},{"$f":"SUMIF(IF(dati_pdc!$C174=1,dati_bdv!$C$2:$C$65536,IF(dati_pdc!$C174=2,dati_bdv!$D$2:$D$65536,IF(dati_pdc!$C174=3,dati_bdv!$E$2:$E$65536,IF(dati_pdc!$C174=4,dati_bdv!$F$2:$F$65536,IF(dati_pdc!$C174=5,dati_bdv!$G$2:$G$65536,dati_bdv!$H$2:$H$65536))))),$A174,dati_bdv!L$2:L$65536)","v":0},{"$f":"SUMIF(IF(dati_pdc!$C174=1,dati_bdv!$C$2:$C$65536,IF(dati_pdc!$C174=2,dati_bdv!$D$2:$D$65536,IF(dati_pdc!$C174=3,dati_bdv!$E$2:$E$65536,IF(dati_pdc!$C174=4,dati_bdv!$F$2:$F$65536,IF(dati_pdc!$C174=5,dati_bdv!$G$2:$G$65536,dati_bdv!$H$2:$H$65536))))),$A174,dati_bdv!M$2:M$65536)","v":0},{"$f":"SUMIF(IF(dati_pdc!$C174=1,dati_bdv!$C$2:$C$65536,IF(dati_pdc!$C174=2,dati_bdv!$D$2:$D$65536,IF(dati_pdc!$C174=3,dati_bdv!$E$2:$E$65536,IF(dati_pdc!$C174=4,dati_bdv!$F$2:$F$65536,IF(dati_pdc!$C174=5,dati_bdv!$G$2:$G$65536,dati_bdv!$H$2:$H$65536))))),$A174,dati_bdv!N$2:N$65536)","v":0}]
[{"$f":"dati_pdc!A175","v":0},{"$f":"SUMIF(IF(dati_pdc!$C175=1,dati_bdv!$C$2:$C$65536,IF(dati_pdc!$C175=2,dati_bdv!$D$2:$D$65536,IF(dati_pdc!$C175=3,dati_bdv!$E$2:$E$65536,IF(dati_pdc!$C175=4,dati_bdv!$F$2:$F$65536,IF(dati_pdc!$C175=5,dati_bdv!$G$2:$G$65536,dati_bdv!$H$2:$H$65536))))),$A175,dati_bdv!J$2:J$65536)","v":0},{"$f":"SUMIF(IF(dati_pdc!$C175=1,dati_bdv!$C$2:$C$65536,IF(dati_pdc!$C175=2,dati_bdv!$D$2:$D$65536,IF(dati_pdc!$C175=3,dati_bdv!$E$2:$E$65536,IF(dati_pdc!$C175=4,dati_bdv!$F$2:$F$65536,IF(dati_pdc!$C175=5,dati_bdv!$G$2:$G$65536,dati_bdv!$H$2:$H$65536))))),$A175,dati_bdv!K$2:K$65536)","v":0},{"$f":"SUMIF(IF(dati_pdc!$C175=1,dati_bdv!$C$2:$C$65536,IF(dati_pdc!$C175=2,dati_bdv!$D$2:$D$65536,IF(dati_pdc!$C175=3,dati_bdv!$E$2:$E$65536,IF(dati_pdc!$C175=4,dati_bdv!$F$2:$F$65536,IF(dati_pdc!$C175=5,dati_bdv!$G$2:$G$65536,dati_bdv!$H$2:$H$65536))))),$A175,dati_bdv!L$2:L$65536)","v":0},{"$f":"SUMIF(IF(dati_pdc!$C175=1,dati_bdv!$C$2:$C$65536,IF(dati_pdc!$C175=2,dati_bdv!$D$2:$D$65536,IF(dati_pdc!$C175=3,dati_bdv!$E$2:$E$65536,IF(dati_pdc!$C175=4,dati_bdv!$F$2:$F$65536,IF(dati_pdc!$C175=5,dati_bdv!$G$2:$G$65536,dati_bdv!$H$2:$H$65536))))),$A175,dati_bdv!M$2:M$65536)","v":0},{"$f":"SUMIF(IF(dati_pdc!$C175=1,dati_bdv!$C$2:$C$65536,IF(dati_pdc!$C175=2,dati_bdv!$D$2:$D$65536,IF(dati_pdc!$C175=3,dati_bdv!$E$2:$E$65536,IF(dati_pdc!$C175=4,dati_bdv!$F$2:$F$65536,IF(dati_pdc!$C175=5,dati_bdv!$G$2:$G$65536,dati_bdv!$H$2:$H$65536))))),$A175,dati_bdv!N$2:N$65536)","v":0}]
[{"$f":"dati_pdc!A176","v":0},{"$f":"SUMIF(IF(dati_pdc!$C176=1,dati_bdv!$C$2:$C$65536,IF(dati_pdc!$C176=2,dati_bdv!$D$2:$D$65536,IF(dati_pdc!$C176=3,dati_bdv!$E$2:$E$65536,IF(dati_pdc!$C176=4,dati_bdv!$F$2:$F$65536,IF(dati_pdc!$C176=5,dati_bdv!$G$2:$G$65536,dati_bdv!$H$2:$H$65536))))),$A176,dati_bdv!J$2:J$65536)","v":0},{"$f":"SUMIF(IF(dati_pdc!$C176=1,dati_bdv!$C$2:$C$65536,IF(dati_pdc!$C176=2,dati_bdv!$D$2:$D$65536,IF(dati_pdc!$C176=3,dati_bdv!$E$2:$E$65536,IF(dati_pdc!$C176=4,dati_bdv!$F$2:$F$65536,IF(dati_pdc!$C176=5,dati_bdv!$G$2:$G$65536,dati_bdv!$H$2:$H$65536))))),$A176,dati_bdv!K$2:K$65536)","v":0},{"$f":"SUMIF(IF(dati_pdc!$C176=1,dati_bdv!$C$2:$C$65536,IF(dati_pdc!$C176=2,dati_bdv!$D$2:$D$65536,IF(dati_pdc!$C176=3,dati_bdv!$E$2:$E$65536,IF(dati_pdc!$C176=4,dati_bdv!$F$2:$F$65536,IF(dati_pdc!$C176=5,dati_bdv!$G$2:$G$65536,dati_bdv!$H$2:$H$65536))))),$A176,dati_bdv!L$2:L$65536)","v":0},{"$f":"SUMIF(IF(dati_pdc!$C176=1,dati_bdv!$C$2:$C$65536,IF(dati_pdc!$C176=2,dati_bdv!$D$2:$D$65536,IF(dati_pdc!$C176=3,dati_bdv!$E$2:$E$65536,IF(dati_pdc!$C176=4,dati_bdv!$F$2:$F$65536,IF(dati_pdc!$C176=5,dati_bdv!$G$2:$G$65536,dati_bdv!$H$2:$H$65536))))),$A176,dati_bdv!M$2:M$65536)","v":0},{"$f":"SUMIF(IF(dati_pdc!$C176=1,dati_bdv!$C$2:$C$65536,IF(dati_pdc!$C176=2,dati_bdv!$D$2:$D$65536,IF(dati_pdc!$C176=3,dati_bdv!$E$2:$E$65536,IF(dati_pdc!$C176=4,dati_bdv!$F$2:$F$65536,IF(dati_pdc!$C176=5,dati_bdv!$G$2:$G$65536,dati_bdv!$H$2:$H$65536))))),$A176,dati_bdv!N$2:N$65536)","v":0}]
[{"$f":"dati_pdc!A177","v":0},{"$f":"SUMIF(IF(dati_pdc!$C177=1,dati_bdv!$C$2:$C$65536,IF(dati_pdc!$C177=2,dati_bdv!$D$2:$D$65536,IF(dati_pdc!$C177=3,dati_bdv!$E$2:$E$65536,IF(dati_pdc!$C177=4,dati_bdv!$F$2:$F$65536,IF(dati_pdc!$C177=5,dati_bdv!$G$2:$G$65536,dati_bdv!$H$2:$H$65536))))),$A177,dati_bdv!J$2:J$65536)","v":0},{"$f":"SUMIF(IF(dati_pdc!$C177=1,dati_bdv!$C$2:$C$65536,IF(dati_pdc!$C177=2,dati_bdv!$D$2:$D$65536,IF(dati_pdc!$C177=3,dati_bdv!$E$2:$E$65536,IF(dati_pdc!$C177=4,dati_bdv!$F$2:$F$65536,IF(dati_pdc!$C177=5,dati_bdv!$G$2:$G$65536,dati_bdv!$H$2:$H$65536))))),$A177,dati_bdv!K$2:K$65536)","v":0},{"$f":"SUMIF(IF(dati_pdc!$C177=1,dati_bdv!$C$2:$C$65536,IF(dati_pdc!$C177=2,dati_bdv!$D$2:$D$65536,IF(dati_pdc!$C177=3,dati_bdv!$E$2:$E$65536,IF(dati_pdc!$C177=4,dati_bdv!$F$2:$F$65536,IF(dati_pdc!$C177=5,dati_bdv!$G$2:$G$65536,dati_bdv!$H$2:$H$65536))))),$A177,dati_bdv!L$2:L$65536)","v":0},{"$f":"SUMIF(IF(dati_pdc!$C177=1,dati_bdv!$C$2:$C$65536,IF(dati_pdc!$C177=2,dati_bdv!$D$2:$D$65536,IF(dati_pdc!$C177=3,dati_bdv!$E$2:$E$65536,IF(dati_pdc!$C177=4,dati_bdv!$F$2:$F$65536,IF(dati_pdc!$C177=5,dati_bdv!$G$2:$G$65536,dati_bdv!$H$2:$H$65536))))),$A177,dati_bdv!M$2:M$65536)","v":0},{"$f":"SUMIF(IF(dati_pdc!$C177=1,dati_bdv!$C$2:$C$65536,IF(dati_pdc!$C177=2,dati_bdv!$D$2:$D$65536,IF(dati_pdc!$C177=3,dati_bdv!$E$2:$E$65536,IF(dati_pdc!$C177=4,dati_bdv!$F$2:$F$65536,IF(dati_pdc!$C177=5,dati_bdv!$G$2:$G$65536,dati_bdv!$H$2:$H$65536))))),$A177,dati_bdv!N$2:N$65536)","v":0}]
[{"$f":"dati_pdc!A178","v":0},{"$f":"SUMIF(IF(dati_pdc!$C178=1,dati_bdv!$C$2:$C$65536,IF(dati_pdc!$C178=2,dati_bdv!$D$2:$D$65536,IF(dati_pdc!$C178=3,dati_bdv!$E$2:$E$65536,IF(dati_pdc!$C178=4,dati_bdv!$F$2:$F$65536,IF(dati_pdc!$C178=5,dati_bdv!$G$2:$G$65536,dati_bdv!$H$2:$H$65536))))),$A178,dati_bdv!J$2:J$65536)","v":0},{"$f":"SUMIF(IF(dati_pdc!$C178=1,dati_bdv!$C$2:$C$65536,IF(dati_pdc!$C178=2,dati_bdv!$D$2:$D$65536,IF(dati_pdc!$C178=3,dati_bdv!$E$2:$E$65536,IF(dati_pdc!$C178=4,dati_bdv!$F$2:$F$65536,IF(dati_pdc!$C178=5,dati_bdv!$G$2:$G$65536,dati_bdv!$H$2:$H$65536))))),$A178,dati_bdv!K$2:K$65536)","v":0},{"$f":"SUMIF(IF(dati_pdc!$C178=1,dati_bdv!$C$2:$C$65536,IF(dati_pdc!$C178=2,dati_bdv!$D$2:$D$65536,IF(dati_pdc!$C178=3,dati_bdv!$E$2:$E$65536,IF(dati_pdc!$C178=4,dati_bdv!$F$2:$F$65536,IF(dati_pdc!$C178=5,dati_bdv!$G$2:$G$65536,dati_bdv!$H$2:$H$65536))))),$A178,dati_bdv!L$2:L$65536)","v":0},{"$f":"SUMIF(IF(dati_pdc!$C178=1,dati_bdv!$C$2:$C$65536,IF(dati_pdc!$C178=2,dati_bdv!$D$2:$D$65536,IF(dati_pdc!$C178=3,dati_bdv!$E$2:$E$65536,IF(dati_pdc!$C178=4,dati_bdv!$F$2:$F$65536,IF(dati_pdc!$C178=5,dati_bdv!$G$2:$G$65536,dati_bdv!$H$2:$H$65536))))),$A178,dati_bdv!M$2:M$65536)","v":0},{"$f":"SUMIF(IF(dati_pdc!$C178=1,dati_bdv!$C$2:$C$65536,IF(dati_pdc!$C178=2,dati_bdv!$D$2:$D$65536,IF(dati_pdc!$C178=3,dati_bdv!$E$2:$E$65536,IF(dati_pdc!$C178=4,dati_bdv!$F$2:$F$65536,IF(dati_pdc!$C178=5,dati_bdv!$G$2:$G$65536,dati_bdv!$H$2:$H$65536))))),$A178,dati_bdv!N$2:N$65536)","v":0}]
[{"$f":"dati_pdc!A179","v":0},{"$f":"SUMIF(IF(dati_pdc!$C179=1,dati_bdv!$C$2:$C$65536,IF(dati_pdc!$C179=2,dati_bdv!$D$2:$D$65536,IF(dati_pdc!$C179=3,dati_bdv!$E$2:$E$65536,IF(dati_pdc!$C179=4,dati_bdv!$F$2:$F$65536,IF(dati_pdc!$C179=5,dati_bdv!$G$2:$G$65536,dati_bdv!$H$2:$H$65536))))),$A179,dati_bdv!J$2:J$65536)","v":0},{"$f":"SUMIF(IF(dati_pdc!$C179=1,dati_bdv!$C$2:$C$65536,IF(dati_pdc!$C179=2,dati_bdv!$D$2:$D$65536,IF(dati_pdc!$C179=3,dati_bdv!$E$2:$E$65536,IF(dati_pdc!$C179=4,dati_bdv!$F$2:$F$65536,IF(dati_pdc!$C179=5,dati_bdv!$G$2:$G$65536,dati_bdv!$H$2:$H$65536))))),$A179,dati_bdv!K$2:K$65536)","v":0},{"$f":"SUMIF(IF(dati_pdc!$C179=1,dati_bdv!$C$2:$C$65536,IF(dati_pdc!$C179=2,dati_bdv!$D$2:$D$65536,IF(dati_pdc!$C179=3,dati_bdv!$E$2:$E$65536,IF(dati_pdc!$C179=4,dati_bdv!$F$2:$F$65536,IF(dati_pdc!$C179=5,dati_bdv!$G$2:$G$65536,dati_bdv!$H$2:$H$65536))))),$A179,dati_bdv!L$2:L$65536)","v":0},{"$f":"SUMIF(IF(dati_pdc!$C179=1,dati_bdv!$C$2:$C$65536,IF(dati_pdc!$C179=2,dati_bdv!$D$2:$D$65536,IF(dati_pdc!$C179=3,dati_bdv!$E$2:$E$65536,IF(dati_pdc!$C179=4,dati_bdv!$F$2:$F$65536,IF(dati_pdc!$C179=5,dati_bdv!$G$2:$G$65536,dati_bdv!$H$2:$H$65536))))),$A179,dati_bdv!M$2:M$65536)","v":0},{"$f":"SUMIF(IF(dati_pdc!$C179=1,dati_bdv!$C$2:$C$65536,IF(dati_pdc!$C179=2,dati_bdv!$D$2:$D$65536,IF(dati_pdc!$C179=3,dati_bdv!$E$2:$E$65536,IF(dati_pdc!$C179=4,dati_bdv!$F$2:$F$65536,IF(dati_pdc!$C179=5,dati_bdv!$G$2:$G$65536,dati_bdv!$H$2:$H$65536))))),$A179,dati_bdv!N$2:N$65536)","v":0}]
[{"$f":"dati_pdc!A180","v":0},{"$f":"SUMIF(IF(dati_pdc!$C180=1,dati_bdv!$C$2:$C$65536,IF(dati_pdc!$C180=2,dati_bdv!$D$2:$D$65536,IF(dati_pdc!$C180=3,dati_bdv!$E$2:$E$65536,IF(dati_pdc!$C180=4,dati_bdv!$F$2:$F$65536,IF(dati_pdc!$C180=5,dati_bdv!$G$2:$G$65536,dati_bdv!$H$2:$H$65536))))),$A180,dati_bdv!J$2:J$65536)","v":0},{"$f":"SUMIF(IF(dati_pdc!$C180=1,dati_bdv!$C$2:$C$65536,IF(dati_pdc!$C180=2,dati_bdv!$D$2:$D$65536,IF(dati_pdc!$C180=3,dati_bdv!$E$2:$E$65536,IF(dati_pdc!$C180=4,dati_bdv!$F$2:$F$65536,IF(dati_pdc!$C180=5,dati_bdv!$G$2:$G$65536,dati_bdv!$H$2:$H$65536))))),$A180,dati_bdv!K$2:K$65536)","v":0},{"$f":"SUMIF(IF(dati_pdc!$C180=1,dati_bdv!$C$2:$C$65536,IF(dati_pdc!$C180=2,dati_bdv!$D$2:$D$65536,IF(dati_pdc!$C180=3,dati_bdv!$E$2:$E$65536,IF(dati_pdc!$C180=4,dati_bdv!$F$2:$F$65536,IF(dati_pdc!$C180=5,dati_bdv!$G$2:$G$65536,dati_bdv!$H$2:$H$65536))))),$A180,dati_bdv!L$2:L$65536)","v":0},{"$f":"SUMIF(IF(dati_pdc!$C180=1,dati_bdv!$C$2:$C$65536,IF(dati_pdc!$C180=2,dati_bdv!$D$2:$D$65536,IF(dati_pdc!$C180=3,dati_bdv!$E$2:$E$65536,IF(dati_pdc!$C180=4,dati_bdv!$F$2:$F$65536,IF(dati_pdc!$C180=5,dati_bdv!$G$2:$G$65536,dati_bdv!$H$2:$H$65536))))),$A180,dati_bdv!M$2:M$65536)","v":0},{"$f":"SUMIF(IF(dati_pdc!$C180=1,dati_bdv!$C$2:$C$65536,IF(dati_pdc!$C180=2,dati_bdv!$D$2:$D$65536,IF(dati_pdc!$C180=3,dati_bdv!$E$2:$E$65536,IF(dati_pdc!$C180=4,dati_bdv!$F$2:$F$65536,IF(dati_pdc!$C180=5,dati_bdv!$G$2:$G$65536,dati_bdv!$H$2:$H$65536))))),$A180,dati_bdv!N$2:N$65536)","v":0}]
[{"$f":"dati_pdc!A181","v":0},{"$f":"SUMIF(IF(dati_pdc!$C181=1,dati_bdv!$C$2:$C$65536,IF(dati_pdc!$C181=2,dati_bdv!$D$2:$D$65536,IF(dati_pdc!$C181=3,dati_bdv!$E$2:$E$65536,IF(dati_pdc!$C181=4,dati_bdv!$F$2:$F$65536,IF(dati_pdc!$C181=5,dati_bdv!$G$2:$G$65536,dati_bdv!$H$2:$H$65536))))),$A181,dati_bdv!J$2:J$65536)","v":0},{"$f":"SUMIF(IF(dati_pdc!$C181=1,dati_bdv!$C$2:$C$65536,IF(dati_pdc!$C181=2,dati_bdv!$D$2:$D$65536,IF(dati_pdc!$C181=3,dati_bdv!$E$2:$E$65536,IF(dati_pdc!$C181=4,dati_bdv!$F$2:$F$65536,IF(dati_pdc!$C181=5,dati_bdv!$G$2:$G$65536,dati_bdv!$H$2:$H$65536))))),$A181,dati_bdv!K$2:K$65536)","v":0},{"$f":"SUMIF(IF(dati_pdc!$C181=1,dati_bdv!$C$2:$C$65536,IF(dati_pdc!$C181=2,dati_bdv!$D$2:$D$65536,IF(dati_pdc!$C181=3,dati_bdv!$E$2:$E$65536,IF(dati_pdc!$C181=4,dati_bdv!$F$2:$F$65536,IF(dati_pdc!$C181=5,dati_bdv!$G$2:$G$65536,dati_bdv!$H$2:$H$65536))))),$A181,dati_bdv!L$2:L$65536)","v":0},{"$f":"SUMIF(IF(dati_pdc!$C181=1,dati_bdv!$C$2:$C$65536,IF(dati_pdc!$C181=2,dati_bdv!$D$2:$D$65536,IF(dati_pdc!$C181=3,dati_bdv!$E$2:$E$65536,IF(dati_pdc!$C181=4,dati_bdv!$F$2:$F$65536,IF(dati_pdc!$C181=5,dati_bdv!$G$2:$G$65536,dati_bdv!$H$2:$H$65536))))),$A181,dati_bdv!M$2:M$65536)","v":0},{"$f":"SUMIF(IF(dati_pdc!$C181=1,dati_bdv!$C$2:$C$65536,IF(dati_pdc!$C181=2,dati_bdv!$D$2:$D$65536,IF(dati_pdc!$C181=3,dati_bdv!$E$2:$E$65536,IF(dati_pdc!$C181=4,dati_bdv!$F$2:$F$65536,IF(dati_pdc!$C181=5,dati_bdv!$G$2:$G$65536,dati_bdv!$H$2:$H$65536))))),$A181,dati_bdv!N$2:N$65536)","v":0}]
[{"$f":"dati_pdc!A182","v":0},{"$f":"SUMIF(IF(dati_pdc!$C182=1,dati_bdv!$C$2:$C$65536,IF(dati_pdc!$C182=2,dati_bdv!$D$2:$D$65536,IF(dati_pdc!$C182=3,dati_bdv!$E$2:$E$65536,IF(dati_pdc!$C182=4,dati_bdv!$F$2:$F$65536,IF(dati_pdc!$C182=5,dati_bdv!$G$2:$G$65536,dati_bdv!$H$2:$H$65536))))),$A182,dati_bdv!J$2:J$65536)","v":0},{"$f":"SUMIF(IF(dati_pdc!$C182=1,dati_bdv!$C$2:$C$65536,IF(dati_pdc!$C182=2,dati_bdv!$D$2:$D$65536,IF(dati_pdc!$C182=3,dati_bdv!$E$2:$E$65536,IF(dati_pdc!$C182=4,dati_bdv!$F$2:$F$65536,IF(dati_pdc!$C182=5,dati_bdv!$G$2:$G$65536,dati_bdv!$H$2:$H$65536))))),$A182,dati_bdv!K$2:K$65536)","v":0},{"$f":"SUMIF(IF(dati_pdc!$C182=1,dati_bdv!$C$2:$C$65536,IF(dati_pdc!$C182=2,dati_bdv!$D$2:$D$65536,IF(dati_pdc!$C182=3,dati_bdv!$E$2:$E$65536,IF(dati_pdc!$C182=4,dati_bdv!$F$2:$F$65536,IF(dati_pdc!$C182=5,dati_bdv!$G$2:$G$65536,dati_bdv!$H$2:$H$65536))))),$A182,dati_bdv!L$2:L$65536)","v":0},{"$f":"SUMIF(IF(dati_pdc!$C182=1,dati_bdv!$C$2:$C$65536,IF(dati_pdc!$C182=2,dati_bdv!$D$2:$D$65536,IF(dati_pdc!$C182=3,dati_bdv!$E$2:$E$65536,IF(dati_pdc!$C182=4,dati_bdv!$F$2:$F$65536,IF(dati_pdc!$C182=5,dati_bdv!$G$2:$G$65536,dati_bdv!$H$2:$H$65536))))),$A182,dati_bdv!M$2:M$65536)","v":0},{"$f":"SUMIF(IF(dati_pdc!$C182=1,dati_bdv!$C$2:$C$65536,IF(dati_pdc!$C182=2,dati_bdv!$D$2:$D$65536,IF(dati_pdc!$C182=3,dati_bdv!$E$2:$E$65536,IF(dati_pdc!$C182=4,dati_bdv!$F$2:$F$65536,IF(dati_pdc!$C182=5,dati_bdv!$G$2:$G$65536,dati_bdv!$H$2:$H$65536))))),$A182,dati_bdv!N$2:N$65536)","v":0}]
[{"$f":"dati_pdc!A183","v":0},{"$f":"SUMIF(IF(dati_pdc!$C183=1,dati_bdv!$C$2:$C$65536,IF(dati_pdc!$C183=2,dati_bdv!$D$2:$D$65536,IF(dati_pdc!$C183=3,dati_bdv!$E$2:$E$65536,IF(dati_pdc!$C183=4,dati_bdv!$F$2:$F$65536,IF(dati_pdc!$C183=5,dati_bdv!$G$2:$G$65536,dati_bdv!$H$2:$H$65536))))),$A183,dati_bdv!J$2:J$65536)","v":0},{"$f":"SUMIF(IF(dati_pdc!$C183=1,dati_bdv!$C$2:$C$65536,IF(dati_pdc!$C183=2,dati_bdv!$D$2:$D$65536,IF(dati_pdc!$C183=3,dati_bdv!$E$2:$E$65536,IF(dati_pdc!$C183=4,dati_bdv!$F$2:$F$65536,IF(dati_pdc!$C183=5,dati_bdv!$G$2:$G$65536,dati_bdv!$H$2:$H$65536))))),$A183,dati_bdv!K$2:K$65536)","v":0},{"$f":"SUMIF(IF(dati_pdc!$C183=1,dati_bdv!$C$2:$C$65536,IF(dati_pdc!$C183=2,dati_bdv!$D$2:$D$65536,IF(dati_pdc!$C183=3,dati_bdv!$E$2:$E$65536,IF(dati_pdc!$C183=4,dati_bdv!$F$2:$F$65536,IF(dati_pdc!$C183=5,dati_bdv!$G$2:$G$65536,dati_bdv!$H$2:$H$65536))))),$A183,dati_bdv!L$2:L$65536)","v":0},{"$f":"SUMIF(IF(dati_pdc!$C183=1,dati_bdv!$C$2:$C$65536,IF(dati_pdc!$C183=2,dati_bdv!$D$2:$D$65536,IF(dati_pdc!$C183=3,dati_bdv!$E$2:$E$65536,IF(dati_pdc!$C183=4,dati_bdv!$F$2:$F$65536,IF(dati_pdc!$C183=5,dati_bdv!$G$2:$G$65536,dati_bdv!$H$2:$H$65536))))),$A183,dati_bdv!M$2:M$65536)","v":0},{"$f":"SUMIF(IF(dati_pdc!$C183=1,dati_bdv!$C$2:$C$65536,IF(dati_pdc!$C183=2,dati_bdv!$D$2:$D$65536,IF(dati_pdc!$C183=3,dati_bdv!$E$2:$E$65536,IF(dati_pdc!$C183=4,dati_bdv!$F$2:$F$65536,IF(dati_pdc!$C183=5,dati_bdv!$G$2:$G$65536,dati_bdv!$H$2:$H$65536))))),$A183,dati_bdv!N$2:N$65536)","v":0}]
[{"$f":"dati_pdc!A184","v":0},{"$f":"SUMIF(IF(dati_pdc!$C184=1,dati_bdv!$C$2:$C$65536,IF(dati_pdc!$C184=2,dati_bdv!$D$2:$D$65536,IF(dati_pdc!$C184=3,dati_bdv!$E$2:$E$65536,IF(dati_pdc!$C184=4,dati_bdv!$F$2:$F$65536,IF(dati_pdc!$C184=5,dati_bdv!$G$2:$G$65536,dati_bdv!$H$2:$H$65536))))),$A184,dati_bdv!J$2:J$65536)","v":0},{"$f":"SUMIF(IF(dati_pdc!$C184=1,dati_bdv!$C$2:$C$65536,IF(dati_pdc!$C184=2,dati_bdv!$D$2:$D$65536,IF(dati_pdc!$C184=3,dati_bdv!$E$2:$E$65536,IF(dati_pdc!$C184=4,dati_bdv!$F$2:$F$65536,IF(dati_pdc!$C184=5,dati_bdv!$G$2:$G$65536,dati_bdv!$H$2:$H$65536))))),$A184,dati_bdv!K$2:K$65536)","v":0},{"$f":"SUMIF(IF(dati_pdc!$C184=1,dati_bdv!$C$2:$C$65536,IF(dati_pdc!$C184=2,dati_bdv!$D$2:$D$65536,IF(dati_pdc!$C184=3,dati_bdv!$E$2:$E$65536,IF(dati_pdc!$C184=4,dati_bdv!$F$2:$F$65536,IF(dati_pdc!$C184=5,dati_bdv!$G$2:$G$65536,dati_bdv!$H$2:$H$65536))))),$A184,dati_bdv!L$2:L$65536)","v":0},{"$f":"SUMIF(IF(dati_pdc!$C184=1,dati_bdv!$C$2:$C$65536,IF(dati_pdc!$C184=2,dati_bdv!$D$2:$D$65536,IF(dati_pdc!$C184=3,dati_bdv!$E$2:$E$65536,IF(dati_pdc!$C184=4,dati_bdv!$F$2:$F$65536,IF(dati_pdc!$C184=5,dati_bdv!$G$2:$G$65536,dati_bdv!$H$2:$H$65536))))),$A184,dati_bdv!M$2:M$65536)","v":0},{"$f":"SUMIF(IF(dati_pdc!$C184=1,dati_bdv!$C$2:$C$65536,IF(dati_pdc!$C184=2,dati_bdv!$D$2:$D$65536,IF(dati_pdc!$C184=3,dati_bdv!$E$2:$E$65536,IF(dati_pdc!$C184=4,dati_bdv!$F$2:$F$65536,IF(dati_pdc!$C184=5,dati_bdv!$G$2:$G$65536,dati_bdv!$H$2:$H$65536))))),$A184,dati_bdv!N$2:N$65536)","v":0}]
[{"$f":"dati_pdc!A185","v":0},{"$f":"SUMIF(IF(dati_pdc!$C185=1,dati_bdv!$C$2:$C$65536,IF(dati_pdc!$C185=2,dati_bdv!$D$2:$D$65536,IF(dati_pdc!$C185=3,dati_bdv!$E$2:$E$65536,IF(dati_pdc!$C185=4,dati_bdv!$F$2:$F$65536,IF(dati_pdc!$C185=5,dati_bdv!$G$2:$G$65536,dati_bdv!$H$2:$H$65536))))),$A185,dati_bdv!J$2:J$65536)","v":0},{"$f":"SUMIF(IF(dati_pdc!$C185=1,dati_bdv!$C$2:$C$65536,IF(dati_pdc!$C185=2,dati_bdv!$D$2:$D$65536,IF(dati_pdc!$C185=3,dati_bdv!$E$2:$E$65536,IF(dati_pdc!$C185=4,dati_bdv!$F$2:$F$65536,IF(dati_pdc!$C185=5,dati_bdv!$G$2:$G$65536,dati_bdv!$H$2:$H$65536))))),$A185,dati_bdv!K$2:K$65536)","v":0},{"$f":"SUMIF(IF(dati_pdc!$C185=1,dati_bdv!$C$2:$C$65536,IF(dati_pdc!$C185=2,dati_bdv!$D$2:$D$65536,IF(dati_pdc!$C185=3,dati_bdv!$E$2:$E$65536,IF(dati_pdc!$C185=4,dati_bdv!$F$2:$F$65536,IF(dati_pdc!$C185=5,dati_bdv!$G$2:$G$65536,dati_bdv!$H$2:$H$65536))))),$A185,dati_bdv!L$2:L$65536)","v":0},{"$f":"SUMIF(IF(dati_pdc!$C185=1,dati_bdv!$C$2:$C$65536,IF(dati_pdc!$C185=2,dati_bdv!$D$2:$D$65536,IF(dati_pdc!$C185=3,dati_bdv!$E$2:$E$65536,IF(dati_pdc!$C185=4,dati_bdv!$F$2:$F$65536,IF(dati_pdc!$C185=5,dati_bdv!$G$2:$G$65536,dati_bdv!$H$2:$H$65536))))),$A185,dati_bdv!M$2:M$65536)","v":0},{"$f":"SUMIF(IF(dati_pdc!$C185=1,dati_bdv!$C$2:$C$65536,IF(dati_pdc!$C185=2,dati_bdv!$D$2:$D$65536,IF(dati_pdc!$C185=3,dati_bdv!$E$2:$E$65536,IF(dati_pdc!$C185=4,dati_bdv!$F$2:$F$65536,IF(dati_pdc!$C185=5,dati_bdv!$G$2:$G$65536,dati_bdv!$H$2:$H$65536))))),$A185,dati_bdv!N$2:N$65536)","v":0}]
[{"$f":"dati_pdc!A186","v":0},{"$f":"SUMIF(IF(dati_pdc!$C186=1,dati_bdv!$C$2:$C$65536,IF(dati_pdc!$C186=2,dati_bdv!$D$2:$D$65536,IF(dati_pdc!$C186=3,dati_bdv!$E$2:$E$65536,IF(dati_pdc!$C186=4,dati_bdv!$F$2:$F$65536,IF(dati_pdc!$C186=5,dati_bdv!$G$2:$G$65536,dati_bdv!$H$2:$H$65536))))),$A186,dati_bdv!J$2:J$65536)","v":0},{"$f":"SUMIF(IF(dati_pdc!$C186=1,dati_bdv!$C$2:$C$65536,IF(dati_pdc!$C186=2,dati_bdv!$D$2:$D$65536,IF(dati_pdc!$C186=3,dati_bdv!$E$2:$E$65536,IF(dati_pdc!$C186=4,dati_bdv!$F$2:$F$65536,IF(dati_pdc!$C186=5,dati_bdv!$G$2:$G$65536,dati_bdv!$H$2:$H$65536))))),$A186,dati_bdv!K$2:K$65536)","v":0},{"$f":"SUMIF(IF(dati_pdc!$C186=1,dati_bdv!$C$2:$C$65536,IF(dati_pdc!$C186=2,dati_bdv!$D$2:$D$65536,IF(dati_pdc!$C186=3,dati_bdv!$E$2:$E$65536,IF(dati_pdc!$C186=4,dati_bdv!$F$2:$F$65536,IF(dati_pdc!$C186=5,dati_bdv!$G$2:$G$65536,dati_bdv!$H$2:$H$65536))))),$A186,dati_bdv!L$2:L$65536)","v":0},{"$f":"SUMIF(IF(dati_pdc!$C186=1,dati_bdv!$C$2:$C$65536,IF(dati_pdc!$C186=2,dati_bdv!$D$2:$D$65536,IF(dati_pdc!$C186=3,dati_bdv!$E$2:$E$65536,IF(dati_pdc!$C186=4,dati_bdv!$F$2:$F$65536,IF(dati_pdc!$C186=5,dati_bdv!$G$2:$G$65536,dati_bdv!$H$2:$H$65536))))),$A186,dati_bdv!M$2:M$65536)","v":0},{"$f":"SUMIF(IF(dati_pdc!$C186=1,dati_bdv!$C$2:$C$65536,IF(dati_pdc!$C186=2,dati_bdv!$D$2:$D$65536,IF(dati_pdc!$C186=3,dati_bdv!$E$2:$E$65536,IF(dati_pdc!$C186=4,dati_bdv!$F$2:$F$65536,IF(dati_pdc!$C186=5,dati_bdv!$G$2:$G$65536,dati_bdv!$H$2:$H$65536))))),$A186,dati_bdv!N$2:N$65536)","v":0}]
[{"$f":"dati_pdc!A187","v":0},{"$f":"SUMIF(IF(dati_pdc!$C187=1,dati_bdv!$C$2:$C$65536,IF(dati_pdc!$C187=2,dati_bdv!$D$2:$D$65536,IF(dati_pdc!$C187=3,dati_bdv!$E$2:$E$65536,IF(dati_pdc!$C187=4,dati_bdv!$F$2:$F$65536,IF(dati_pdc!$C187=5,dati_bdv!$G$2:$G$65536,dati_bdv!$H$2:$H$65536))))),$A187,dati_bdv!J$2:J$65536)","v":0},{"$f":"SUMIF(IF(dati_pdc!$C187=1,dati_bdv!$C$2:$C$65536,IF(dati_pdc!$C187=2,dati_bdv!$D$2:$D$65536,IF(dati_pdc!$C187=3,dati_bdv!$E$2:$E$65536,IF(dati_pdc!$C187=4,dati_bdv!$F$2:$F$65536,IF(dati_pdc!$C187=5,dati_bdv!$G$2:$G$65536,dati_bdv!$H$2:$H$65536))))),$A187,dati_bdv!K$2:K$65536)","v":0},{"$f":"SUMIF(IF(dati_pdc!$C187=1,dati_bdv!$C$2:$C$65536,IF(dati_pdc!$C187=2,dati_bdv!$D$2:$D$65536,IF(dati_pdc!$C187=3,dati_bdv!$E$2:$E$65536,IF(dati_pdc!$C187=4,dati_bdv!$F$2:$F$65536,IF(dati_pdc!$C187=5,dati_bdv!$G$2:$G$65536,dati_bdv!$H$2:$H$65536))))),$A187,dati_bdv!L$2:L$65536)","v":0},{"$f":"SUMIF(IF(dati_pdc!$C187=1,dati_bdv!$C$2:$C$65536,IF(dati_pdc!$C187=2,dati_bdv!$D$2:$D$65536,IF(dati_pdc!$C187=3,dati_bdv!$E$2:$E$65536,IF(dati_pdc!$C187=4,dati_bdv!$F$2:$F$65536,IF(dati_pdc!$C187=5,dati_bdv!$G$2:$G$65536,dati_bdv!$H$2:$H$65536))))),$A187,dati_bdv!M$2:M$65536)","v":0},{"$f":"SUMIF(IF(dati_pdc!$C187=1,dati_bdv!$C$2:$C$65536,IF(dati_pdc!$C187=2,dati_bdv!$D$2:$D$65536,IF(dati_pdc!$C187=3,dati_bdv!$E$2:$E$65536,IF(dati_pdc!$C187=4,dati_bdv!$F$2:$F$65536,IF(dati_pdc!$C187=5,dati_bdv!$G$2:$G$65536,dati_bdv!$H$2:$H$65536))))),$A187,dati_bdv!N$2:N$65536)","v":0}]
[{"$f":"dati_pdc!A188","v":0},{"$f":"SUMIF(IF(dati_pdc!$C188=1,dati_bdv!$C$2:$C$65536,IF(dati_pdc!$C188=2,dati_bdv!$D$2:$D$65536,IF(dati_pdc!$C188=3,dati_bdv!$E$2:$E$65536,IF(dati_pdc!$C188=4,dati_bdv!$F$2:$F$65536,IF(dati_pdc!$C188=5,dati_bdv!$G$2:$G$65536,dati_bdv!$H$2:$H$65536))))),$A188,dati_bdv!J$2:J$65536)","v":0},{"$f":"SUMIF(IF(dati_pdc!$C188=1,dati_bdv!$C$2:$C$65536,IF(dati_pdc!$C188=2,dati_bdv!$D$2:$D$65536,IF(dati_pdc!$C188=3,dati_bdv!$E$2:$E$65536,IF(dati_pdc!$C188=4,dati_bdv!$F$2:$F$65536,IF(dati_pdc!$C188=5,dati_bdv!$G$2:$G$65536,dati_bdv!$H$2:$H$65536))))),$A188,dati_bdv!K$2:K$65536)","v":0},{"$f":"SUMIF(IF(dati_pdc!$C188=1,dati_bdv!$C$2:$C$65536,IF(dati_pdc!$C188=2,dati_bdv!$D$2:$D$65536,IF(dati_pdc!$C188=3,dati_bdv!$E$2:$E$65536,IF(dati_pdc!$C188=4,dati_bdv!$F$2:$F$65536,IF(dati_pdc!$C188=5,dati_bdv!$G$2:$G$65536,dati_bdv!$H$2:$H$65536))))),$A188,dati_bdv!L$2:L$65536)","v":0},{"$f":"SUMIF(IF(dati_pdc!$C188=1,dati_bdv!$C$2:$C$65536,IF(dati_pdc!$C188=2,dati_bdv!$D$2:$D$65536,IF(dati_pdc!$C188=3,dati_bdv!$E$2:$E$65536,IF(dati_pdc!$C188=4,dati_bdv!$F$2:$F$65536,IF(dati_pdc!$C188=5,dati_bdv!$G$2:$G$65536,dati_bdv!$H$2:$H$65536))))),$A188,dati_bdv!M$2:M$65536)","v":0},{"$f":"SUMIF(IF(dati_pdc!$C188=1,dati_bdv!$C$2:$C$65536,IF(dati_pdc!$C188=2,dati_bdv!$D$2:$D$65536,IF(dati_pdc!$C188=3,dati_bdv!$E$2:$E$65536,IF(dati_pdc!$C188=4,dati_bdv!$F$2:$F$65536,IF(dati_pdc!$C188=5,dati_bdv!$G$2:$G$65536,dati_bdv!$H$2:$H$65536))))),$A188,dati_bdv!N$2:N$65536)","v":0}]
[{"$f":"dati_pdc!A189","v":0},{"$f":"SUMIF(IF(dati_pdc!$C189=1,dati_bdv!$C$2:$C$65536,IF(dati_pdc!$C189=2,dati_bdv!$D$2:$D$65536,IF(dati_pdc!$C189=3,dati_bdv!$E$2:$E$65536,IF(dati_pdc!$C189=4,dati_bdv!$F$2:$F$65536,IF(dati_pdc!$C189=5,dati_bdv!$G$2:$G$65536,dati_bdv!$H$2:$H$65536))))),$A189,dati_bdv!J$2:J$65536)","v":0},{"$f":"SUMIF(IF(dati_pdc!$C189=1,dati_bdv!$C$2:$C$65536,IF(dati_pdc!$C189=2,dati_bdv!$D$2:$D$65536,IF(dati_pdc!$C189=3,dati_bdv!$E$2:$E$65536,IF(dati_pdc!$C189=4,dati_bdv!$F$2:$F$65536,IF(dati_pdc!$C189=5,dati_bdv!$G$2:$G$65536,dati_bdv!$H$2:$H$65536))))),$A189,dati_bdv!K$2:K$65536)","v":0},{"$f":"SUMIF(IF(dati_pdc!$C189=1,dati_bdv!$C$2:$C$65536,IF(dati_pdc!$C189=2,dati_bdv!$D$2:$D$65536,IF(dati_pdc!$C189=3,dati_bdv!$E$2:$E$65536,IF(dati_pdc!$C189=4,dati_bdv!$F$2:$F$65536,IF(dati_pdc!$C189=5,dati_bdv!$G$2:$G$65536,dati_bdv!$H$2:$H$65536))))),$A189,dati_bdv!L$2:L$65536)","v":0},{"$f":"SUMIF(IF(dati_pdc!$C189=1,dati_bdv!$C$2:$C$65536,IF(dati_pdc!$C189=2,dati_bdv!$D$2:$D$65536,IF(dati_pdc!$C189=3,dati_bdv!$E$2:$E$65536,IF(dati_pdc!$C189=4,dati_bdv!$F$2:$F$65536,IF(dati_pdc!$C189=5,dati_bdv!$G$2:$G$65536,dati_bdv!$H$2:$H$65536))))),$A189,dati_bdv!M$2:M$65536)","v":0},{"$f":"SUMIF(IF(dati_pdc!$C189=1,dati_bdv!$C$2:$C$65536,IF(dati_pdc!$C189=2,dati_bdv!$D$2:$D$65536,IF(dati_pdc!$C189=3,dati_bdv!$E$2:$E$65536,IF(dati_pdc!$C189=4,dati_bdv!$F$2:$F$65536,IF(dati_pdc!$C189=5,dati_bdv!$G$2:$G$65536,dati_bdv!$H$2:$H$65536))))),$A189,dati_bdv!N$2:N$65536)","v":0}]
[{"$f":"dati_pdc!A190","v":0},{"$f":"SUMIF(IF(dati_pdc!$C190=1,dati_bdv!$C$2:$C$65536,IF(dati_pdc!$C190=2,dati_bdv!$D$2:$D$65536,IF(dati_pdc!$C190=3,dati_bdv!$E$2:$E$65536,IF(dati_pdc!$C190=4,dati_bdv!$F$2:$F$65536,IF(dati_pdc!$C190=5,dati_bdv!$G$2:$G$65536,dati_bdv!$H$2:$H$65536))))),$A190,dati_bdv!J$2:J$65536)","v":0},{"$f":"SUMIF(IF(dati_pdc!$C190=1,dati_bdv!$C$2:$C$65536,IF(dati_pdc!$C190=2,dati_bdv!$D$2:$D$65536,IF(dati_pdc!$C190=3,dati_bdv!$E$2:$E$65536,IF(dati_pdc!$C190=4,dati_bdv!$F$2:$F$65536,IF(dati_pdc!$C190=5,dati_bdv!$G$2:$G$65536,dati_bdv!$H$2:$H$65536))))),$A190,dati_bdv!K$2:K$65536)","v":0},{"$f":"SUMIF(IF(dati_pdc!$C190=1,dati_bdv!$C$2:$C$65536,IF(dati_pdc!$C190=2,dati_bdv!$D$2:$D$65536,IF(dati_pdc!$C190=3,dati_bdv!$E$2:$E$65536,IF(dati_pdc!$C190=4,dati_bdv!$F$2:$F$65536,IF(dati_pdc!$C190=5,dati_bdv!$G$2:$G$65536,dati_bdv!$H$2:$H$65536))))),$A190,dati_bdv!L$2:L$65536)","v":0},{"$f":"SUMIF(IF(dati_pdc!$C190=1,dati_bdv!$C$2:$C$65536,IF(dati_pdc!$C190=2,dati_bdv!$D$2:$D$65536,IF(dati_pdc!$C190=3,dati_bdv!$E$2:$E$65536,IF(dati_pdc!$C190=4,dati_bdv!$F$2:$F$65536,IF(dati_pdc!$C190=5,dati_bdv!$G$2:$G$65536,dati_bdv!$H$2:$H$65536))))),$A190,dati_bdv!M$2:M$65536)","v":0},{"$f":"SUMIF(IF(dati_pdc!$C190=1,dati_bdv!$C$2:$C$65536,IF(dati_pdc!$C190=2,dati_bdv!$D$2:$D$65536,IF(dati_pdc!$C190=3,dati_bdv!$E$2:$E$65536,IF(dati_pdc!$C190=4,dati_bdv!$F$2:$F$65536,IF(dati_pdc!$C190=5,dati_bdv!$G$2:$G$65536,dati_bdv!$H$2:$H$65536))))),$A190,dati_bdv!N$2:N$65536)","v":0}]
[{"$f":"dati_pdc!A191","v":0},{"$f":"SUMIF(IF(dati_pdc!$C191=1,dati_bdv!$C$2:$C$65536,IF(dati_pdc!$C191=2,dati_bdv!$D$2:$D$65536,IF(dati_pdc!$C191=3,dati_bdv!$E$2:$E$65536,IF(dati_pdc!$C191=4,dati_bdv!$F$2:$F$65536,IF(dati_pdc!$C191=5,dati_bdv!$G$2:$G$65536,dati_bdv!$H$2:$H$65536))))),$A191,dati_bdv!J$2:J$65536)","v":0},{"$f":"SUMIF(IF(dati_pdc!$C191=1,dati_bdv!$C$2:$C$65536,IF(dati_pdc!$C191=2,dati_bdv!$D$2:$D$65536,IF(dati_pdc!$C191=3,dati_bdv!$E$2:$E$65536,IF(dati_pdc!$C191=4,dati_bdv!$F$2:$F$65536,IF(dati_pdc!$C191=5,dati_bdv!$G$2:$G$65536,dati_bdv!$H$2:$H$65536))))),$A191,dati_bdv!K$2:K$65536)","v":0},{"$f":"SUMIF(IF(dati_pdc!$C191=1,dati_bdv!$C$2:$C$65536,IF(dati_pdc!$C191=2,dati_bdv!$D$2:$D$65536,IF(dati_pdc!$C191=3,dati_bdv!$E$2:$E$65536,IF(dati_pdc!$C191=4,dati_bdv!$F$2:$F$65536,IF(dati_pdc!$C191=5,dati_bdv!$G$2:$G$65536,dati_bdv!$H$2:$H$65536))))),$A191,dati_bdv!L$2:L$65536)","v":0},{"$f":"SUMIF(IF(dati_pdc!$C191=1,dati_bdv!$C$2:$C$65536,IF(dati_pdc!$C191=2,dati_bdv!$D$2:$D$65536,IF(dati_pdc!$C191=3,dati_bdv!$E$2:$E$65536,IF(dati_pdc!$C191=4,dati_bdv!$F$2:$F$65536,IF(dati_pdc!$C191=5,dati_bdv!$G$2:$G$65536,dati_bdv!$H$2:$H$65536))))),$A191,dati_bdv!M$2:M$65536)","v":0},{"$f":"SUMIF(IF(dati_pdc!$C191=1,dati_bdv!$C$2:$C$65536,IF(dati_pdc!$C191=2,dati_bdv!$D$2:$D$65536,IF(dati_pdc!$C191=3,dati_bdv!$E$2:$E$65536,IF(dati_pdc!$C191=4,dati_bdv!$F$2:$F$65536,IF(dati_pdc!$C191=5,dati_bdv!$G$2:$G$65536,dati_bdv!$H$2:$H$65536))))),$A191,dati_bdv!N$2:N$65536)","v":0}]
[{"$f":"dati_pdc!A192","v":0},{"$f":"SUMIF(IF(dati_pdc!$C192=1,dati_bdv!$C$2:$C$65536,IF(dati_pdc!$C192=2,dati_bdv!$D$2:$D$65536,IF(dati_pdc!$C192=3,dati_bdv!$E$2:$E$65536,IF(dati_pdc!$C192=4,dati_bdv!$F$2:$F$65536,IF(dati_pdc!$C192=5,dati_bdv!$G$2:$G$65536,dati_bdv!$H$2:$H$65536))))),$A192,dati_bdv!J$2:J$65536)","v":0},{"$f":"SUMIF(IF(dati_pdc!$C192=1,dati_bdv!$C$2:$C$65536,IF(dati_pdc!$C192=2,dati_bdv!$D$2:$D$65536,IF(dati_pdc!$C192=3,dati_bdv!$E$2:$E$65536,IF(dati_pdc!$C192=4,dati_bdv!$F$2:$F$65536,IF(dati_pdc!$C192=5,dati_bdv!$G$2:$G$65536,dati_bdv!$H$2:$H$65536))))),$A192,dati_bdv!K$2:K$65536)","v":0},{"$f":"SUMIF(IF(dati_pdc!$C192=1,dati_bdv!$C$2:$C$65536,IF(dati_pdc!$C192=2,dati_bdv!$D$2:$D$65536,IF(dati_pdc!$C192=3,dati_bdv!$E$2:$E$65536,IF(dati_pdc!$C192=4,dati_bdv!$F$2:$F$65536,IF(dati_pdc!$C192=5,dati_bdv!$G$2:$G$65536,dati_bdv!$H$2:$H$65536))))),$A192,dati_bdv!L$2:L$65536)","v":0},{"$f":"SUMIF(IF(dati_pdc!$C192=1,dati_bdv!$C$2:$C$65536,IF(dati_pdc!$C192=2,dati_bdv!$D$2:$D$65536,IF(dati_pdc!$C192=3,dati_bdv!$E$2:$E$65536,IF(dati_pdc!$C192=4,dati_bdv!$F$2:$F$65536,IF(dati_pdc!$C192=5,dati_bdv!$G$2:$G$65536,dati_bdv!$H$2:$H$65536))))),$A192,dati_bdv!M$2:M$65536)","v":0},{"$f":"SUMIF(IF(dati_pdc!$C192=1,dati_bdv!$C$2:$C$65536,IF(dati_pdc!$C192=2,dati_bdv!$D$2:$D$65536,IF(dati_pdc!$C192=3,dati_bdv!$E$2:$E$65536,IF(dati_pdc!$C192=4,dati_bdv!$F$2:$F$65536,IF(dati_pdc!$C192=5,dati_bdv!$G$2:$G$65536,dati_bdv!$H$2:$H$65536))))),$A192,dati_bdv!N$2:N$65536)","v":0}]
[{"$f":"dati_pdc!A193","v":0},{"$f":"SUMIF(IF(dati_pdc!$C193=1,dati_bdv!$C$2:$C$65536,IF(dati_pdc!$C193=2,dati_bdv!$D$2:$D$65536,IF(dati_pdc!$C193=3,dati_bdv!$E$2:$E$65536,IF(dati_pdc!$C193=4,dati_bdv!$F$2:$F$65536,IF(dati_pdc!$C193=5,dati_bdv!$G$2:$G$65536,dati_bdv!$H$2:$H$65536))))),$A193,dati_bdv!J$2:J$65536)","v":0},{"$f":"SUMIF(IF(dati_pdc!$C193=1,dati_bdv!$C$2:$C$65536,IF(dati_pdc!$C193=2,dati_bdv!$D$2:$D$65536,IF(dati_pdc!$C193=3,dati_bdv!$E$2:$E$65536,IF(dati_pdc!$C193=4,dati_bdv!$F$2:$F$65536,IF(dati_pdc!$C193=5,dati_bdv!$G$2:$G$65536,dati_bdv!$H$2:$H$65536))))),$A193,dati_bdv!K$2:K$65536)","v":0},{"$f":"SUMIF(IF(dati_pdc!$C193=1,dati_bdv!$C$2:$C$65536,IF(dati_pdc!$C193=2,dati_bdv!$D$2:$D$65536,IF(dati_pdc!$C193=3,dati_bdv!$E$2:$E$65536,IF(dati_pdc!$C193=4,dati_bdv!$F$2:$F$65536,IF(dati_pdc!$C193=5,dati_bdv!$G$2:$G$65536,dati_bdv!$H$2:$H$65536))))),$A193,dati_bdv!L$2:L$65536)","v":0},{"$f":"SUMIF(IF(dati_pdc!$C193=1,dati_bdv!$C$2:$C$65536,IF(dati_pdc!$C193=2,dati_bdv!$D$2:$D$65536,IF(dati_pdc!$C193=3,dati_bdv!$E$2:$E$65536,IF(dati_pdc!$C193=4,dati_bdv!$F$2:$F$65536,IF(dati_pdc!$C193=5,dati_bdv!$G$2:$G$65536,dati_bdv!$H$2:$H$65536))))),$A193,dati_bdv!M$2:M$65536)","v":0},{"$f":"SUMIF(IF(dati_pdc!$C193=1,dati_bdv!$C$2:$C$65536,IF(dati_pdc!$C193=2,dati_bdv!$D$2:$D$65536,IF(dati_pdc!$C193=3,dati_bdv!$E$2:$E$65536,IF(dati_pdc!$C193=4,dati_bdv!$F$2:$F$65536,IF(dati_pdc!$C193=5,dati_bdv!$G$2:$G$65536,dati_bdv!$H$2:$H$65536))))),$A193,dati_bdv!N$2:N$65536)","v":0}]
[{"$f":"dati_pdc!A194","v":0},{"$f":"SUMIF(IF(dati_pdc!$C194=1,dati_bdv!$C$2:$C$65536,IF(dati_pdc!$C194=2,dati_bdv!$D$2:$D$65536,IF(dati_pdc!$C194=3,dati_bdv!$E$2:$E$65536,IF(dati_pdc!$C194=4,dati_bdv!$F$2:$F$65536,IF(dati_pdc!$C194=5,dati_bdv!$G$2:$G$65536,dati_bdv!$H$2:$H$65536))))),$A194,dati_bdv!J$2:J$65536)","v":0},{"$f":"SUMIF(IF(dati_pdc!$C194=1,dati_bdv!$C$2:$C$65536,IF(dati_pdc!$C194=2,dati_bdv!$D$2:$D$65536,IF(dati_pdc!$C194=3,dati_bdv!$E$2:$E$65536,IF(dati_pdc!$C194=4,dati_bdv!$F$2:$F$65536,IF(dati_pdc!$C194=5,dati_bdv!$G$2:$G$65536,dati_bdv!$H$2:$H$65536))))),$A194,dati_bdv!K$2:K$65536)","v":0},{"$f":"SUMIF(IF(dati_pdc!$C194=1,dati_bdv!$C$2:$C$65536,IF(dati_pdc!$C194=2,dati_bdv!$D$2:$D$65536,IF(dati_pdc!$C194=3,dati_bdv!$E$2:$E$65536,IF(dati_pdc!$C194=4,dati_bdv!$F$2:$F$65536,IF(dati_pdc!$C194=5,dati_bdv!$G$2:$G$65536,dati_bdv!$H$2:$H$65536))))),$A194,dati_bdv!L$2:L$65536)","v":0},{"$f":"SUMIF(IF(dati_pdc!$C194=1,dati_bdv!$C$2:$C$65536,IF(dati_pdc!$C194=2,dati_bdv!$D$2:$D$65536,IF(dati_pdc!$C194=3,dati_bdv!$E$2:$E$65536,IF(dati_pdc!$C194=4,dati_bdv!$F$2:$F$65536,IF(dati_pdc!$C194=5,dati_bdv!$G$2:$G$65536,dati_bdv!$H$2:$H$65536))))),$A194,dati_bdv!M$2:M$65536)","v":0},{"$f":"SUMIF(IF(dati_pdc!$C194=1,dati_bdv!$C$2:$C$65536,IF(dati_pdc!$C194=2,dati_bdv!$D$2:$D$65536,IF(dati_pdc!$C194=3,dati_bdv!$E$2:$E$65536,IF(dati_pdc!$C194=4,dati_bdv!$F$2:$F$65536,IF(dati_pdc!$C194=5,dati_bdv!$G$2:$G$65536,dati_bdv!$H$2:$H$65536))))),$A194,dati_bdv!N$2:N$65536)","v":0}]
[{"$f":"dati_pdc!A195","v":0},{"$f":"SUMIF(IF(dati_pdc!$C195=1,dati_bdv!$C$2:$C$65536,IF(dati_pdc!$C195=2,dati_bdv!$D$2:$D$65536,IF(dati_pdc!$C195=3,dati_bdv!$E$2:$E$65536,IF(dati_pdc!$C195=4,dati_bdv!$F$2:$F$65536,IF(dati_pdc!$C195=5,dati_bdv!$G$2:$G$65536,dati_bdv!$H$2:$H$65536))))),$A195,dati_bdv!J$2:J$65536)","v":0},{"$f":"SUMIF(IF(dati_pdc!$C195=1,dati_bdv!$C$2:$C$65536,IF(dati_pdc!$C195=2,dati_bdv!$D$2:$D$65536,IF(dati_pdc!$C195=3,dati_bdv!$E$2:$E$65536,IF(dati_pdc!$C195=4,dati_bdv!$F$2:$F$65536,IF(dati_pdc!$C195=5,dati_bdv!$G$2:$G$65536,dati_bdv!$H$2:$H$65536))))),$A195,dati_bdv!K$2:K$65536)","v":0},{"$f":"SUMIF(IF(dati_pdc!$C195=1,dati_bdv!$C$2:$C$65536,IF(dati_pdc!$C195=2,dati_bdv!$D$2:$D$65536,IF(dati_pdc!$C195=3,dati_bdv!$E$2:$E$65536,IF(dati_pdc!$C195=4,dati_bdv!$F$2:$F$65536,IF(dati_pdc!$C195=5,dati_bdv!$G$2:$G$65536,dati_bdv!$H$2:$H$65536))))),$A195,dati_bdv!L$2:L$65536)","v":0},{"$f":"SUMIF(IF(dati_pdc!$C195=1,dati_bdv!$C$2:$C$65536,IF(dati_pdc!$C195=2,dati_bdv!$D$2:$D$65536,IF(dati_pdc!$C195=3,dati_bdv!$E$2:$E$65536,IF(dati_pdc!$C195=4,dati_bdv!$F$2:$F$65536,IF(dati_pdc!$C195=5,dati_bdv!$G$2:$G$65536,dati_bdv!$H$2:$H$65536))))),$A195,dati_bdv!M$2:M$65536)","v":0},{"$f":"SUMIF(IF(dati_pdc!$C195=1,dati_bdv!$C$2:$C$65536,IF(dati_pdc!$C195=2,dati_bdv!$D$2:$D$65536,IF(dati_pdc!$C195=3,dati_bdv!$E$2:$E$65536,IF(dati_pdc!$C195=4,dati_bdv!$F$2:$F$65536,IF(dati_pdc!$C195=5,dati_bdv!$G$2:$G$65536,dati_bdv!$H$2:$H$65536))))),$A195,dati_bdv!N$2:N$65536)","v":0}]
[{"$f":"dati_pdc!A196","v":0},{"$f":"SUMIF(IF(dati_pdc!$C196=1,dati_bdv!$C$2:$C$65536,IF(dati_pdc!$C196=2,dati_bdv!$D$2:$D$65536,IF(dati_pdc!$C196=3,dati_bdv!$E$2:$E$65536,IF(dati_pdc!$C196=4,dati_bdv!$F$2:$F$65536,IF(dati_pdc!$C196=5,dati_bdv!$G$2:$G$65536,dati_bdv!$H$2:$H$65536))))),$A196,dati_bdv!J$2:J$65536)","v":0},{"$f":"SUMIF(IF(dati_pdc!$C196=1,dati_bdv!$C$2:$C$65536,IF(dati_pdc!$C196=2,dati_bdv!$D$2:$D$65536,IF(dati_pdc!$C196=3,dati_bdv!$E$2:$E$65536,IF(dati_pdc!$C196=4,dati_bdv!$F$2:$F$65536,IF(dati_pdc!$C196=5,dati_bdv!$G$2:$G$65536,dati_bdv!$H$2:$H$65536))))),$A196,dati_bdv!K$2:K$65536)","v":0},{"$f":"SUMIF(IF(dati_pdc!$C196=1,dati_bdv!$C$2:$C$65536,IF(dati_pdc!$C196=2,dati_bdv!$D$2:$D$65536,IF(dati_pdc!$C196=3,dati_bdv!$E$2:$E$65536,IF(dati_pdc!$C196=4,dati_bdv!$F$2:$F$65536,IF(dati_pdc!$C196=5,dati_bdv!$G$2:$G$65536,dati_bdv!$H$2:$H$65536))))),$A196,dati_bdv!L$2:L$65536)","v":0},{"$f":"SUMIF(IF(dati_pdc!$C196=1,dati_bdv!$C$2:$C$65536,IF(dati_pdc!$C196=2,dati_bdv!$D$2:$D$65536,IF(dati_pdc!$C196=3,dati_bdv!$E$2:$E$65536,IF(dati_pdc!$C196=4,dati_bdv!$F$2:$F$65536,IF(dati_pdc!$C196=5,dati_bdv!$G$2:$G$65536,dati_bdv!$H$2:$H$65536))))),$A196,dati_bdv!M$2:M$65536)","v":0},{"$f":"SUMIF(IF(dati_pdc!$C196=1,dati_bdv!$C$2:$C$65536,IF(dati_pdc!$C196=2,dati_bdv!$D$2:$D$65536,IF(dati_pdc!$C196=3,dati_bdv!$E$2:$E$65536,IF(dati_pdc!$C196=4,dati_bdv!$F$2:$F$65536,IF(dati_pdc!$C196=5,dati_bdv!$G$2:$G$65536,dati_bdv!$H$2:$H$65536))))),$A196,dati_bdv!N$2:N$65536)","v":0}]
[{"$f":"dati_pdc!A197","v":0},{"$f":"SUMIF(IF(dati_pdc!$C197=1,dati_bdv!$C$2:$C$65536,IF(dati_pdc!$C197=2,dati_bdv!$D$2:$D$65536,IF(dati_pdc!$C197=3,dati_bdv!$E$2:$E$65536,IF(dati_pdc!$C197=4,dati_bdv!$F$2:$F$65536,IF(dati_pdc!$C197=5,dati_bdv!$G$2:$G$65536,dati_bdv!$H$2:$H$65536))))),$A197,dati_bdv!J$2:J$65536)","v":0},{"$f":"SUMIF(IF(dati_pdc!$C197=1,dati_bdv!$C$2:$C$65536,IF(dati_pdc!$C197=2,dati_bdv!$D$2:$D$65536,IF(dati_pdc!$C197=3,dati_bdv!$E$2:$E$65536,IF(dati_pdc!$C197=4,dati_bdv!$F$2:$F$65536,IF(dati_pdc!$C197=5,dati_bdv!$G$2:$G$65536,dati_bdv!$H$2:$H$65536))))),$A197,dati_bdv!K$2:K$65536)","v":0},{"$f":"SUMIF(IF(dati_pdc!$C197=1,dati_bdv!$C$2:$C$65536,IF(dati_pdc!$C197=2,dati_bdv!$D$2:$D$65536,IF(dati_pdc!$C197=3,dati_bdv!$E$2:$E$65536,IF(dati_pdc!$C197=4,dati_bdv!$F$2:$F$65536,IF(dati_pdc!$C197=5,dati_bdv!$G$2:$G$65536,dati_bdv!$H$2:$H$65536))))),$A197,dati_bdv!L$2:L$65536)","v":0},{"$f":"SUMIF(IF(dati_pdc!$C197=1,dati_bdv!$C$2:$C$65536,IF(dati_pdc!$C197=2,dati_bdv!$D$2:$D$65536,IF(dati_pdc!$C197=3,dati_bdv!$E$2:$E$65536,IF(dati_pdc!$C197=4,dati_bdv!$F$2:$F$65536,IF(dati_pdc!$C197=5,dati_bdv!$G$2:$G$65536,dati_bdv!$H$2:$H$65536))))),$A197,dati_bdv!M$2:M$65536)","v":0},{"$f":"SUMIF(IF(dati_pdc!$C197=1,dati_bdv!$C$2:$C$65536,IF(dati_pdc!$C197=2,dati_bdv!$D$2:$D$65536,IF(dati_pdc!$C197=3,dati_bdv!$E$2:$E$65536,IF(dati_pdc!$C197=4,dati_bdv!$F$2:$F$65536,IF(dati_pdc!$C197=5,dati_bdv!$G$2:$G$65536,dati_bdv!$H$2:$H$65536))))),$A197,dati_bdv!N$2:N$65536)","v":0}]
[{"$f":"dati_pdc!A198","v":0},{"$f":"SUMIF(IF(dati_pdc!$C198=1,dati_bdv!$C$2:$C$65536,IF(dati_pdc!$C198=2,dati_bdv!$D$2:$D$65536,IF(dati_pdc!$C198=3,dati_bdv!$E$2:$E$65536,IF(dati_pdc!$C198=4,dati_bdv!$F$2:$F$65536,IF(dati_pdc!$C198=5,dati_bdv!$G$2:$G$65536,dati_bdv!$H$2:$H$65536))))),$A198,dati_bdv!J$2:J$65536)","v":0},{"$f":"SUMIF(IF(dati_pdc!$C198=1,dati_bdv!$C$2:$C$65536,IF(dati_pdc!$C198=2,dati_bdv!$D$2:$D$65536,IF(dati_pdc!$C198=3,dati_bdv!$E$2:$E$65536,IF(dati_pdc!$C198=4,dati_bdv!$F$2:$F$65536,IF(dati_pdc!$C198=5,dati_bdv!$G$2:$G$65536,dati_bdv!$H$2:$H$65536))))),$A198,dati_bdv!K$2:K$65536)","v":0},{"$f":"SUMIF(IF(dati_pdc!$C198=1,dati_bdv!$C$2:$C$65536,IF(dati_pdc!$C198=2,dati_bdv!$D$2:$D$65536,IF(dati_pdc!$C198=3,dati_bdv!$E$2:$E$65536,IF(dati_pdc!$C198=4,dati_bdv!$F$2:$F$65536,IF(dati_pdc!$C198=5,dati_bdv!$G$2:$G$65536,dati_bdv!$H$2:$H$65536))))),$A198,dati_bdv!L$2:L$65536)","v":0},{"$f":"SUMIF(IF(dati_pdc!$C198=1,dati_bdv!$C$2:$C$65536,IF(dati_pdc!$C198=2,dati_bdv!$D$2:$D$65536,IF(dati_pdc!$C198=3,dati_bdv!$E$2:$E$65536,IF(dati_pdc!$C198=4,dati_bdv!$F$2:$F$65536,IF(dati_pdc!$C198=5,dati_bdv!$G$2:$G$65536,dati_bdv!$H$2:$H$65536))))),$A198,dati_bdv!M$2:M$65536)","v":0},{"$f":"SUMIF(IF(dati_pdc!$C198=1,dati_bdv!$C$2:$C$65536,IF(dati_pdc!$C198=2,dati_bdv!$D$2:$D$65536,IF(dati_pdc!$C198=3,dati_bdv!$E$2:$E$65536,IF(dati_pdc!$C198=4,dati_bdv!$F$2:$F$65536,IF(dati_pdc!$C198=5,dati_bdv!$G$2:$G$65536,dati_bdv!$H$2:$H$65536))))),$A198,dati_bdv!N$2:N$65536)","v":0}]
[{"$f":"dati_pdc!A199","v":0},{"$f":"SUMIF(IF(dati_pdc!$C199=1,dati_bdv!$C$2:$C$65536,IF(dati_pdc!$C199=2,dati_bdv!$D$2:$D$65536,IF(dati_pdc!$C199=3,dati_bdv!$E$2:$E$65536,IF(dati_pdc!$C199=4,dati_bdv!$F$2:$F$65536,IF(dati_pdc!$C199=5,dati_bdv!$G$2:$G$65536,dati_bdv!$H$2:$H$65536))))),$A199,dati_bdv!J$2:J$65536)","v":0},{"$f":"SUMIF(IF(dati_pdc!$C199=1,dati_bdv!$C$2:$C$65536,IF(dati_pdc!$C199=2,dati_bdv!$D$2:$D$65536,IF(dati_pdc!$C199=3,dati_bdv!$E$2:$E$65536,IF(dati_pdc!$C199=4,dati_bdv!$F$2:$F$65536,IF(dati_pdc!$C199=5,dati_bdv!$G$2:$G$65536,dati_bdv!$H$2:$H$65536))))),$A199,dati_bdv!K$2:K$65536)","v":0},{"$f":"SUMIF(IF(dati_pdc!$C199=1,dati_bdv!$C$2:$C$65536,IF(dati_pdc!$C199=2,dati_bdv!$D$2:$D$65536,IF(dati_pdc!$C199=3,dati_bdv!$E$2:$E$65536,IF(dati_pdc!$C199=4,dati_bdv!$F$2:$F$65536,IF(dati_pdc!$C199=5,dati_bdv!$G$2:$G$65536,dati_bdv!$H$2:$H$65536))))),$A199,dati_bdv!L$2:L$65536)","v":0},{"$f":"SUMIF(IF(dati_pdc!$C199=1,dati_bdv!$C$2:$C$65536,IF(dati_pdc!$C199=2,dati_bdv!$D$2:$D$65536,IF(dati_pdc!$C199=3,dati_bdv!$E$2:$E$65536,IF(dati_pdc!$C199=4,dati_bdv!$F$2:$F$65536,IF(dati_pdc!$C199=5,dati_bdv!$G$2:$G$65536,dati_bdv!$H$2:$H$65536))))),$A199,dati_bdv!M$2:M$65536)","v":0},{"$f":"SUMIF(IF(dati_pdc!$C199=1,dati_bdv!$C$2:$C$65536,IF(dati_pdc!$C199=2,dati_bdv!$D$2:$D$65536,IF(dati_pdc!$C199=3,dati_bdv!$E$2:$E$65536,IF(dati_pdc!$C199=4,dati_bdv!$F$2:$F$65536,IF(dati_pdc!$C199=5,dati_bdv!$G$2:$G$65536,dati_bdv!$H$2:$H$65536))))),$A199,dati_bdv!N$2:N$65536)","v":0}]
[{"$f":"dati_pdc!A200","v":0},{"$f":"SUMIF(IF(dati_pdc!$C200=1,dati_bdv!$C$2:$C$65536,IF(dati_pdc!$C200=2,dati_bdv!$D$2:$D$65536,IF(dati_pdc!$C200=3,dati_bdv!$E$2:$E$65536,IF(dati_pdc!$C200=4,dati_bdv!$F$2:$F$65536,IF(dati_pdc!$C200=5,dati_bdv!$G$2:$G$65536,dati_bdv!$H$2:$H$65536))))),$A200,dati_bdv!J$2:J$65536)","v":0},{"$f":"SUMIF(IF(dati_pdc!$C200=1,dati_bdv!$C$2:$C$65536,IF(dati_pdc!$C200=2,dati_bdv!$D$2:$D$65536,IF(dati_pdc!$C200=3,dati_bdv!$E$2:$E$65536,IF(dati_pdc!$C200=4,dati_bdv!$F$2:$F$65536,IF(dati_pdc!$C200=5,dati_bdv!$G$2:$G$65536,dati_bdv!$H$2:$H$65536))))),$A200,dati_bdv!K$2:K$65536)","v":0},{"$f":"SUMIF(IF(dati_pdc!$C200=1,dati_bdv!$C$2:$C$65536,IF(dati_pdc!$C200=2,dati_bdv!$D$2:$D$65536,IF(dati_pdc!$C200=3,dati_bdv!$E$2:$E$65536,IF(dati_pdc!$C200=4,dati_bdv!$F$2:$F$65536,IF(dati_pdc!$C200=5,dati_bdv!$G$2:$G$65536,dati_bdv!$H$2:$H$65536))))),$A200,dati_bdv!L$2:L$65536)","v":0},{"$f":"SUMIF(IF(dati_pdc!$C200=1,dati_bdv!$C$2:$C$65536,IF(dati_pdc!$C200=2,dati_bdv!$D$2:$D$65536,IF(dati_pdc!$C200=3,dati_bdv!$E$2:$E$65536,IF(dati_pdc!$C200=4,dati_bdv!$F$2:$F$65536,IF(dati_pdc!$C200=5,dati_bdv!$G$2:$G$65536,dati_bdv!$H$2:$H$65536))))),$A200,dati_bdv!M$2:M$65536)","v":0},{"$f":"SUMIF(IF(dati_pdc!$C200=1,dati_bdv!$C$2:$C$65536,IF(dati_pdc!$C200=2,dati_bdv!$D$2:$D$65536,IF(dati_pdc!$C200=3,dati_bdv!$E$2:$E$65536,IF(dati_pdc!$C200=4,dati_bdv!$F$2:$F$65536,IF(dati_pdc!$C200=5,dati_bdv!$G$2:$G$65536,dati_bdv!$H$2:$H$65536))))),$A200,dati_bdv!N$2:N$65536)","v":0}]
[{"$f":"dati_pdc!A201","v":0},{"$f":"SUMIF(IF(dati_pdc!$C201=1,dati_bdv!$C$2:$C$65536,IF(dati_pdc!$C201=2,dati_bdv!$D$2:$D$65536,IF(dati_pdc!$C201=3,dati_bdv!$E$2:$E$65536,IF(dati_pdc!$C201=4,dati_bdv!$F$2:$F$65536,IF(dati_pdc!$C201=5,dati_bdv!$G$2:$G$65536,dati_bdv!$H$2:$H$65536))))),$A201,dati_bdv!J$2:J$65536)","v":0},{"$f":"SUMIF(IF(dati_pdc!$C201=1,dati_bdv!$C$2:$C$65536,IF(dati_pdc!$C201=2,dati_bdv!$D$2:$D$65536,IF(dati_pdc!$C201=3,dati_bdv!$E$2:$E$65536,IF(dati_pdc!$C201=4,dati_bdv!$F$2:$F$65536,IF(dati_pdc!$C201=5,dati_bdv!$G$2:$G$65536,dati_bdv!$H$2:$H$65536))))),$A201,dati_bdv!K$2:K$65536)","v":0},{"$f":"SUMIF(IF(dati_pdc!$C201=1,dati_bdv!$C$2:$C$65536,IF(dati_pdc!$C201=2,dati_bdv!$D$2:$D$65536,IF(dati_pdc!$C201=3,dati_bdv!$E$2:$E$65536,IF(dati_pdc!$C201=4,dati_bdv!$F$2:$F$65536,IF(dati_pdc!$C201=5,dati_bdv!$G$2:$G$65536,dati_bdv!$H$2:$H$65536))))),$A201,dati_bdv!L$2:L$65536)","v":0},{"$f":"SUMIF(IF(dati_pdc!$C201=1,dati_bdv!$C$2:$C$65536,IF(dati_pdc!$C201=2,dati_bdv!$D$2:$D$65536,IF(dati_pdc!$C201=3,dati_bdv!$E$2:$E$65536,IF(dati_pdc!$C201=4,dati_bdv!$F$2:$F$65536,IF(dati_pdc!$C201=5,dati_bdv!$G$2:$G$65536,dati_bdv!$H$2:$H$65536))))),$A201,dati_bdv!M$2:M$65536)","v":0},{"$f":"SUMIF(IF(dati_pdc!$C201=1,dati_bdv!$C$2:$C$65536,IF(dati_pdc!$C201=2,dati_bdv!$D$2:$D$65536,IF(dati_pdc!$C201=3,dati_bdv!$E$2:$E$65536,IF(dati_pdc!$C201=4,dati_bdv!$F$2:$F$65536,IF(dati_pdc!$C201=5,dati_bdv!$G$2:$G$65536,dati_bdv!$H$2:$H$65536))))),$A201,dati_bdv!N$2:N$65536)","v":0}]
[{"$f":"dati_pdc!A202","v":0},{"$f":"SUMIF(IF(dati_pdc!$C202=1,dati_bdv!$C$2:$C$65536,IF(dati_pdc!$C202=2,dati_bdv!$D$2:$D$65536,IF(dati_pdc!$C202=3,dati_bdv!$E$2:$E$65536,IF(dati_pdc!$C202=4,dati_bdv!$F$2:$F$65536,IF(dati_pdc!$C202=5,dati_bdv!$G$2:$G$65536,dati_bdv!$H$2:$H$65536))))),$A202,dati_bdv!J$2:J$65536)","v":0},{"$f":"SUMIF(IF(dati_pdc!$C202=1,dati_bdv!$C$2:$C$65536,IF(dati_pdc!$C202=2,dati_bdv!$D$2:$D$65536,IF(dati_pdc!$C202=3,dati_bdv!$E$2:$E$65536,IF(dati_pdc!$C202=4,dati_bdv!$F$2:$F$65536,IF(dati_pdc!$C202=5,dati_bdv!$G$2:$G$65536,dati_bdv!$H$2:$H$65536))))),$A202,dati_bdv!K$2:K$65536)","v":0},{"$f":"SUMIF(IF(dati_pdc!$C202=1,dati_bdv!$C$2:$C$65536,IF(dati_pdc!$C202=2,dati_bdv!$D$2:$D$65536,IF(dati_pdc!$C202=3,dati_bdv!$E$2:$E$65536,IF(dati_pdc!$C202=4,dati_bdv!$F$2:$F$65536,IF(dati_pdc!$C202=5,dati_bdv!$G$2:$G$65536,dati_bdv!$H$2:$H$65536))))),$A202,dati_bdv!L$2:L$65536)","v":0},{"$f":"SUMIF(IF(dati_pdc!$C202=1,dati_bdv!$C$2:$C$65536,IF(dati_pdc!$C202=2,dati_bdv!$D$2:$D$65536,IF(dati_pdc!$C202=3,dati_bdv!$E$2:$E$65536,IF(dati_pdc!$C202=4,dati_bdv!$F$2:$F$65536,IF(dati_pdc!$C202=5,dati_bdv!$G$2:$G$65536,dati_bdv!$H$2:$H$65536))))),$A202,dati_bdv!M$2:M$65536)","v":0},{"$f":"SUMIF(IF(dati_pdc!$C202=1,dati_bdv!$C$2:$C$65536,IF(dati_pdc!$C202=2,dati_bdv!$D$2:$D$65536,IF(dati_pdc!$C202=3,dati_bdv!$E$2:$E$65536,IF(dati_pdc!$C202=4,dati_bdv!$F$2:$F$65536,IF(dati_pdc!$C202=5,dati_bdv!$G$2:$G$65536,dati_bdv!$H$2:$H$65536))))),$A202,dati_bdv!N$2:N$65536)","v":0}]
[{"$f":"dati_pdc!A203","v":0},{"$f":"SUMIF(IF(dati_pdc!$C203=1,dati_bdv!$C$2:$C$65536,IF(dati_pdc!$C203=2,dati_bdv!$D$2:$D$65536,IF(dati_pdc!$C203=3,dati_bdv!$E$2:$E$65536,IF(dati_pdc!$C203=4,dati_bdv!$F$2:$F$65536,IF(dati_pdc!$C203=5,dati_bdv!$G$2:$G$65536,dati_bdv!$H$2:$H$65536))))),$A203,dati_bdv!J$2:J$65536)","v":0},{"$f":"SUMIF(IF(dati_pdc!$C203=1,dati_bdv!$C$2:$C$65536,IF(dati_pdc!$C203=2,dati_bdv!$D$2:$D$65536,IF(dati_pdc!$C203=3,dati_bdv!$E$2:$E$65536,IF(dati_pdc!$C203=4,dati_bdv!$F$2:$F$65536,IF(dati_pdc!$C203=5,dati_bdv!$G$2:$G$65536,dati_bdv!$H$2:$H$65536))))),$A203,dati_bdv!K$2:K$65536)","v":0},{"$f":"SUMIF(IF(dati_pdc!$C203=1,dati_bdv!$C$2:$C$65536,IF(dati_pdc!$C203=2,dati_bdv!$D$2:$D$65536,IF(dati_pdc!$C203=3,dati_bdv!$E$2:$E$65536,IF(dati_pdc!$C203=4,dati_bdv!$F$2:$F$65536,IF(dati_pdc!$C203=5,dati_bdv!$G$2:$G$65536,dati_bdv!$H$2:$H$65536))))),$A203,dati_bdv!L$2:L$65536)","v":0},{"$f":"SUMIF(IF(dati_pdc!$C203=1,dati_bdv!$C$2:$C$65536,IF(dati_pdc!$C203=2,dati_bdv!$D$2:$D$65536,IF(dati_pdc!$C203=3,dati_bdv!$E$2:$E$65536,IF(dati_pdc!$C203=4,dati_bdv!$F$2:$F$65536,IF(dati_pdc!$C203=5,dati_bdv!$G$2:$G$65536,dati_bdv!$H$2:$H$65536))))),$A203,dati_bdv!M$2:M$65536)","v":0},{"$f":"SUMIF(IF(dati_pdc!$C203=1,dati_bdv!$C$2:$C$65536,IF(dati_pdc!$C203=2,dati_bdv!$D$2:$D$65536,IF(dati_pdc!$C203=3,dati_bdv!$E$2:$E$65536,IF(dati_pdc!$C203=4,dati_bdv!$F$2:$F$65536,IF(dati_pdc!$C203=5,dati_bdv!$G$2:$G$65536,dati_bdv!$H$2:$H$65536))))),$A203,dati_bdv!N$2:N$65536)","v":0}]
[{"$f":"dati_pdc!A204","v":0},{"$f":"SUMIF(IF(dati_pdc!$C204=1,dati_bdv!$C$2:$C$65536,IF(dati_pdc!$C204=2,dati_bdv!$D$2:$D$65536,IF(dati_pdc!$C204=3,dati_bdv!$E$2:$E$65536,IF(dati_pdc!$C204=4,dati_bdv!$F$2:$F$65536,IF(dati_pdc!$C204=5,dati_bdv!$G$2:$G$65536,dati_bdv!$H$2:$H$65536))))),$A204,dati_bdv!J$2:J$65536)","v":0},{"$f":"SUMIF(IF(dati_pdc!$C204=1,dati_bdv!$C$2:$C$65536,IF(dati_pdc!$C204=2,dati_bdv!$D$2:$D$65536,IF(dati_pdc!$C204=3,dati_bdv!$E$2:$E$65536,IF(dati_pdc!$C204=4,dati_bdv!$F$2:$F$65536,IF(dati_pdc!$C204=5,dati_bdv!$G$2:$G$65536,dati_bdv!$H$2:$H$65536))))),$A204,dati_bdv!K$2:K$65536)","v":0},{"$f":"SUMIF(IF(dati_pdc!$C204=1,dati_bdv!$C$2:$C$65536,IF(dati_pdc!$C204=2,dati_bdv!$D$2:$D$65536,IF(dati_pdc!$C204=3,dati_bdv!$E$2:$E$65536,IF(dati_pdc!$C204=4,dati_bdv!$F$2:$F$65536,IF(dati_pdc!$C204=5,dati_bdv!$G$2:$G$65536,dati_bdv!$H$2:$H$65536))))),$A204,dati_bdv!L$2:L$65536)","v":0},{"$f":"SUMIF(IF(dati_pdc!$C204=1,dati_bdv!$C$2:$C$65536,IF(dati_pdc!$C204=2,dati_bdv!$D$2:$D$65536,IF(dati_pdc!$C204=3,dati_bdv!$E$2:$E$65536,IF(dati_pdc!$C204=4,dati_bdv!$F$2:$F$65536,IF(dati_pdc!$C204=5,dati_bdv!$G$2:$G$65536,dati_bdv!$H$2:$H$65536))))),$A204,dati_bdv!M$2:M$65536)","v":0},{"$f":"SUMIF(IF(dati_pdc!$C204=1,dati_bdv!$C$2:$C$65536,IF(dati_pdc!$C204=2,dati_bdv!$D$2:$D$65536,IF(dati_pdc!$C204=3,dati_bdv!$E$2:$E$65536,IF(dati_pdc!$C204=4,dati_bdv!$F$2:$F$65536,IF(dati_pdc!$C204=5,dati_bdv!$G$2:$G$65536,dati_bdv!$H$2:$H$65536))))),$A204,dati_bdv!N$2:N$65536)","v":0}]
[{"$f":"dati_pdc!A205","v":0},{"$f":"SUMIF(IF(dati_pdc!$C205=1,dati_bdv!$C$2:$C$65536,IF(dati_pdc!$C205=2,dati_bdv!$D$2:$D$65536,IF(dati_pdc!$C205=3,dati_bdv!$E$2:$E$65536,IF(dati_pdc!$C205=4,dati_bdv!$F$2:$F$65536,IF(dati_pdc!$C205=5,dati_bdv!$G$2:$G$65536,dati_bdv!$H$2:$H$65536))))),$A205,dati_bdv!J$2:J$65536)","v":0},{"$f":"SUMIF(IF(dati_pdc!$C205=1,dati_bdv!$C$2:$C$65536,IF(dati_pdc!$C205=2,dati_bdv!$D$2:$D$65536,IF(dati_pdc!$C205=3,dati_bdv!$E$2:$E$65536,IF(dati_pdc!$C205=4,dati_bdv!$F$2:$F$65536,IF(dati_pdc!$C205=5,dati_bdv!$G$2:$G$65536,dati_bdv!$H$2:$H$65536))))),$A205,dati_bdv!K$2:K$65536)","v":0},{"$f":"SUMIF(IF(dati_pdc!$C205=1,dati_bdv!$C$2:$C$65536,IF(dati_pdc!$C205=2,dati_bdv!$D$2:$D$65536,IF(dati_pdc!$C205=3,dati_bdv!$E$2:$E$65536,IF(dati_pdc!$C205=4,dati_bdv!$F$2:$F$65536,IF(dati_pdc!$C205=5,dati_bdv!$G$2:$G$65536,dati_bdv!$H$2:$H$65536))))),$A205,dati_bdv!L$2:L$65536)","v":0},{"$f":"SUMIF(IF(dati_pdc!$C205=1,dati_bdv!$C$2:$C$65536,IF(dati_pdc!$C205=2,dati_bdv!$D$2:$D$65536,IF(dati_pdc!$C205=3,dati_bdv!$E$2:$E$65536,IF(dati_pdc!$C205=4,dati_bdv!$F$2:$F$65536,IF(dati_pdc!$C205=5,dati_bdv!$G$2:$G$65536,dati_bdv!$H$2:$H$65536))))),$A205,dati_bdv!M$2:M$65536)","v":0},{"$f":"SUMIF(IF(dati_pdc!$C205=1,dati_bdv!$C$2:$C$65536,IF(dati_pdc!$C205=2,dati_bdv!$D$2:$D$65536,IF(dati_pdc!$C205=3,dati_bdv!$E$2:$E$65536,IF(dati_pdc!$C205=4,dati_bdv!$F$2:$F$65536,IF(dati_pdc!$C205=5,dati_bdv!$G$2:$G$65536,dati_bdv!$H$2:$H$65536))))),$A205,dati_bdv!N$2:N$65536)","v":0}]
[{"$f":"dati_pdc!A206","v":0},{"$f":"SUMIF(IF(dati_pdc!$C206=1,dati_bdv!$C$2:$C$65536,IF(dati_pdc!$C206=2,dati_bdv!$D$2:$D$65536,IF(dati_pdc!$C206=3,dati_bdv!$E$2:$E$65536,IF(dati_pdc!$C206=4,dati_bdv!$F$2:$F$65536,IF(dati_pdc!$C206=5,dati_bdv!$G$2:$G$65536,dati_bdv!$H$2:$H$65536))))),$A206,dati_bdv!J$2:J$65536)","v":0},{"$f":"SUMIF(IF(dati_pdc!$C206=1,dati_bdv!$C$2:$C$65536,IF(dati_pdc!$C206=2,dati_bdv!$D$2:$D$65536,IF(dati_pdc!$C206=3,dati_bdv!$E$2:$E$65536,IF(dati_pdc!$C206=4,dati_bdv!$F$2:$F$65536,IF(dati_pdc!$C206=5,dati_bdv!$G$2:$G$65536,dati_bdv!$H$2:$H$65536))))),$A206,dati_bdv!K$2:K$65536)","v":0},{"$f":"SUMIF(IF(dati_pdc!$C206=1,dati_bdv!$C$2:$C$65536,IF(dati_pdc!$C206=2,dati_bdv!$D$2:$D$65536,IF(dati_pdc!$C206=3,dati_bdv!$E$2:$E$65536,IF(dati_pdc!$C206=4,dati_bdv!$F$2:$F$65536,IF(dati_pdc!$C206=5,dati_bdv!$G$2:$G$65536,dati_bdv!$H$2:$H$65536))))),$A206,dati_bdv!L$2:L$65536)","v":0},{"$f":"SUMIF(IF(dati_pdc!$C206=1,dati_bdv!$C$2:$C$65536,IF(dati_pdc!$C206=2,dati_bdv!$D$2:$D$65536,IF(dati_pdc!$C206=3,dati_bdv!$E$2:$E$65536,IF(dati_pdc!$C206=4,dati_bdv!$F$2:$F$65536,IF(dati_pdc!$C206=5,dati_bdv!$G$2:$G$65536,dati_bdv!$H$2:$H$65536))))),$A206,dati_bdv!M$2:M$65536)","v":0},{"$f":"SUMIF(IF(dati_pdc!$C206=1,dati_bdv!$C$2:$C$65536,IF(dati_pdc!$C206=2,dati_bdv!$D$2:$D$65536,IF(dati_pdc!$C206=3,dati_bdv!$E$2:$E$65536,IF(dati_pdc!$C206=4,dati_bdv!$F$2:$F$65536,IF(dati_pdc!$C206=5,dati_bdv!$G$2:$G$65536,dati_bdv!$H$2:$H$65536))))),$A206,dati_bdv!N$2:N$65536)","v":0}]
[{"$f":"dati_pdc!A207","v":0},{"$f":"SUMIF(IF(dati_pdc!$C207=1,dati_bdv!$C$2:$C$65536,IF(dati_pdc!$C207=2,dati_bdv!$D$2:$D$65536,IF(dati_pdc!$C207=3,dati_bdv!$E$2:$E$65536,IF(dati_pdc!$C207=4,dati_bdv!$F$2:$F$65536,IF(dati_pdc!$C207=5,dati_bdv!$G$2:$G$65536,dati_bdv!$H$2:$H$65536))))),$A207,dati_bdv!J$2:J$65536)","v":0},{"$f":"SUMIF(IF(dati_pdc!$C207=1,dati_bdv!$C$2:$C$65536,IF(dati_pdc!$C207=2,dati_bdv!$D$2:$D$65536,IF(dati_pdc!$C207=3,dati_bdv!$E$2:$E$65536,IF(dati_pdc!$C207=4,dati_bdv!$F$2:$F$65536,IF(dati_pdc!$C207=5,dati_bdv!$G$2:$G$65536,dati_bdv!$H$2:$H$65536))))),$A207,dati_bdv!K$2:K$65536)","v":0},{"$f":"SUMIF(IF(dati_pdc!$C207=1,dati_bdv!$C$2:$C$65536,IF(dati_pdc!$C207=2,dati_bdv!$D$2:$D$65536,IF(dati_pdc!$C207=3,dati_bdv!$E$2:$E$65536,IF(dati_pdc!$C207=4,dati_bdv!$F$2:$F$65536,IF(dati_pdc!$C207=5,dati_bdv!$G$2:$G$65536,dati_bdv!$H$2:$H$65536))))),$A207,dati_bdv!L$2:L$65536)","v":0},{"$f":"SUMIF(IF(dati_pdc!$C207=1,dati_bdv!$C$2:$C$65536,IF(dati_pdc!$C207=2,dati_bdv!$D$2:$D$65536,IF(dati_pdc!$C207=3,dati_bdv!$E$2:$E$65536,IF(dati_pdc!$C207=4,dati_bdv!$F$2:$F$65536,IF(dati_pdc!$C207=5,dati_bdv!$G$2:$G$65536,dati_bdv!$H$2:$H$65536))))),$A207,dati_bdv!M$2:M$65536)","v":0},{"$f":"SUMIF(IF(dati_pdc!$C207=1,dati_bdv!$C$2:$C$65536,IF(dati_pdc!$C207=2,dati_bdv!$D$2:$D$65536,IF(dati_pdc!$C207=3,dati_bdv!$E$2:$E$65536,IF(dati_pdc!$C207=4,dati_bdv!$F$2:$F$65536,IF(dati_pdc!$C207=5,dati_bdv!$G$2:$G$65536,dati_bdv!$H$2:$H$65536))))),$A207,dati_bdv!N$2:N$65536)","v":0}]
[{"$f":"dati_pdc!A208","v":0},{"$f":"SUMIF(IF(dati_pdc!$C208=1,dati_bdv!$C$2:$C$65536,IF(dati_pdc!$C208=2,dati_bdv!$D$2:$D$65536,IF(dati_pdc!$C208=3,dati_bdv!$E$2:$E$65536,IF(dati_pdc!$C208=4,dati_bdv!$F$2:$F$65536,IF(dati_pdc!$C208=5,dati_bdv!$G$2:$G$65536,dati_bdv!$H$2:$H$65536))))),$A208,dati_bdv!J$2:J$65536)","v":0},{"$f":"SUMIF(IF(dati_pdc!$C208=1,dati_bdv!$C$2:$C$65536,IF(dati_pdc!$C208=2,dati_bdv!$D$2:$D$65536,IF(dati_pdc!$C208=3,dati_bdv!$E$2:$E$65536,IF(dati_pdc!$C208=4,dati_bdv!$F$2:$F$65536,IF(dati_pdc!$C208=5,dati_bdv!$G$2:$G$65536,dati_bdv!$H$2:$H$65536))))),$A208,dati_bdv!K$2:K$65536)","v":0},{"$f":"SUMIF(IF(dati_pdc!$C208=1,dati_bdv!$C$2:$C$65536,IF(dati_pdc!$C208=2,dati_bdv!$D$2:$D$65536,IF(dati_pdc!$C208=3,dati_bdv!$E$2:$E$65536,IF(dati_pdc!$C208=4,dati_bdv!$F$2:$F$65536,IF(dati_pdc!$C208=5,dati_bdv!$G$2:$G$65536,dati_bdv!$H$2:$H$65536))))),$A208,dati_bdv!L$2:L$65536)","v":0},{"$f":"SUMIF(IF(dati_pdc!$C208=1,dati_bdv!$C$2:$C$65536,IF(dati_pdc!$C208=2,dati_bdv!$D$2:$D$65536,IF(dati_pdc!$C208=3,dati_bdv!$E$2:$E$65536,IF(dati_pdc!$C208=4,dati_bdv!$F$2:$F$65536,IF(dati_pdc!$C208=5,dati_bdv!$G$2:$G$65536,dati_bdv!$H$2:$H$65536))))),$A208,dati_bdv!M$2:M$65536)","v":0},{"$f":"SUMIF(IF(dati_pdc!$C208=1,dati_bdv!$C$2:$C$65536,IF(dati_pdc!$C208=2,dati_bdv!$D$2:$D$65536,IF(dati_pdc!$C208=3,dati_bdv!$E$2:$E$65536,IF(dati_pdc!$C208=4,dati_bdv!$F$2:$F$65536,IF(dati_pdc!$C208=5,dati_bdv!$G$2:$G$65536,dati_bdv!$H$2:$H$65536))))),$A208,dati_bdv!N$2:N$65536)","v":0}]
[{"$f":"dati_pdc!A209","v":0},{"$f":"SUMIF(IF(dati_pdc!$C209=1,dati_bdv!$C$2:$C$65536,IF(dati_pdc!$C209=2,dati_bdv!$D$2:$D$65536,IF(dati_pdc!$C209=3,dati_bdv!$E$2:$E$65536,IF(dati_pdc!$C209=4,dati_bdv!$F$2:$F$65536,IF(dati_pdc!$C209=5,dati_bdv!$G$2:$G$65536,dati_bdv!$H$2:$H$65536))))),$A209,dati_bdv!J$2:J$65536)","v":0},{"$f":"SUMIF(IF(dati_pdc!$C209=1,dati_bdv!$C$2:$C$65536,IF(dati_pdc!$C209=2,dati_bdv!$D$2:$D$65536,IF(dati_pdc!$C209=3,dati_bdv!$E$2:$E$65536,IF(dati_pdc!$C209=4,dati_bdv!$F$2:$F$65536,IF(dati_pdc!$C209=5,dati_bdv!$G$2:$G$65536,dati_bdv!$H$2:$H$65536))))),$A209,dati_bdv!K$2:K$65536)","v":0},{"$f":"SUMIF(IF(dati_pdc!$C209=1,dati_bdv!$C$2:$C$65536,IF(dati_pdc!$C209=2,dati_bdv!$D$2:$D$65536,IF(dati_pdc!$C209=3,dati_bdv!$E$2:$E$65536,IF(dati_pdc!$C209=4,dati_bdv!$F$2:$F$65536,IF(dati_pdc!$C209=5,dati_bdv!$G$2:$G$65536,dati_bdv!$H$2:$H$65536))))),$A209,dati_bdv!L$2:L$65536)","v":0},{"$f":"SUMIF(IF(dati_pdc!$C209=1,dati_bdv!$C$2:$C$65536,IF(dati_pdc!$C209=2,dati_bdv!$D$2:$D$65536,IF(dati_pdc!$C209=3,dati_bdv!$E$2:$E$65536,IF(dati_pdc!$C209=4,dati_bdv!$F$2:$F$65536,IF(dati_pdc!$C209=5,dati_bdv!$G$2:$G$65536,dati_bdv!$H$2:$H$65536))))),$A209,dati_bdv!M$2:M$65536)","v":0},{"$f":"SUMIF(IF(dati_pdc!$C209=1,dati_bdv!$C$2:$C$65536,IF(dati_pdc!$C209=2,dati_bdv!$D$2:$D$65536,IF(dati_pdc!$C209=3,dati_bdv!$E$2:$E$65536,IF(dati_pdc!$C209=4,dati_bdv!$F$2:$F$65536,IF(dati_pdc!$C209=5,dati_bdv!$G$2:$G$65536,dati_bdv!$H$2:$H$65536))))),$A209,dati_bdv!N$2:N$65536)","v":0}]
[{"$f":"dati_pdc!A210","v":0},{"$f":"SUMIF(IF(dati_pdc!$C210=1,dati_bdv!$C$2:$C$65536,IF(dati_pdc!$C210=2,dati_bdv!$D$2:$D$65536,IF(dati_pdc!$C210=3,dati_bdv!$E$2:$E$65536,IF(dati_pdc!$C210=4,dati_bdv!$F$2:$F$65536,IF(dati_pdc!$C210=5,dati_bdv!$G$2:$G$65536,dati_bdv!$H$2:$H$65536))))),$A210,dati_bdv!J$2:J$65536)","v":0},{"$f":"SUMIF(IF(dati_pdc!$C210=1,dati_bdv!$C$2:$C$65536,IF(dati_pdc!$C210=2,dati_bdv!$D$2:$D$65536,IF(dati_pdc!$C210=3,dati_bdv!$E$2:$E$65536,IF(dati_pdc!$C210=4,dati_bdv!$F$2:$F$65536,IF(dati_pdc!$C210=5,dati_bdv!$G$2:$G$65536,dati_bdv!$H$2:$H$65536))))),$A210,dati_bdv!K$2:K$65536)","v":0},{"$f":"SUMIF(IF(dati_pdc!$C210=1,dati_bdv!$C$2:$C$65536,IF(dati_pdc!$C210=2,dati_bdv!$D$2:$D$65536,IF(dati_pdc!$C210=3,dati_bdv!$E$2:$E$65536,IF(dati_pdc!$C210=4,dati_bdv!$F$2:$F$65536,IF(dati_pdc!$C210=5,dati_bdv!$G$2:$G$65536,dati_bdv!$H$2:$H$65536))))),$A210,dati_bdv!L$2:L$65536)","v":0},{"$f":"SUMIF(IF(dati_pdc!$C210=1,dati_bdv!$C$2:$C$65536,IF(dati_pdc!$C210=2,dati_bdv!$D$2:$D$65536,IF(dati_pdc!$C210=3,dati_bdv!$E$2:$E$65536,IF(dati_pdc!$C210=4,dati_bdv!$F$2:$F$65536,IF(dati_pdc!$C210=5,dati_bdv!$G$2:$G$65536,dati_bdv!$H$2:$H$65536))))),$A210,dati_bdv!M$2:M$65536)","v":0},{"$f":"SUMIF(IF(dati_pdc!$C210=1,dati_bdv!$C$2:$C$65536,IF(dati_pdc!$C210=2,dati_bdv!$D$2:$D$65536,IF(dati_pdc!$C210=3,dati_bdv!$E$2:$E$65536,IF(dati_pdc!$C210=4,dati_bdv!$F$2:$F$65536,IF(dati_pdc!$C210=5,dati_bdv!$G$2:$G$65536,dati_bdv!$H$2:$H$65536))))),$A210,dati_bdv!N$2:N$65536)","v":0}]
[{"$f":"dati_pdc!A211","v":0},{"$f":"SUMIF(IF(dati_pdc!$C211=1,dati_bdv!$C$2:$C$65536,IF(dati_pdc!$C211=2,dati_bdv!$D$2:$D$65536,IF(dati_pdc!$C211=3,dati_bdv!$E$2:$E$65536,IF(dati_pdc!$C211=4,dati_bdv!$F$2:$F$65536,IF(dati_pdc!$C211=5,dati_bdv!$G$2:$G$65536,dati_bdv!$H$2:$H$65536))))),$A211,dati_bdv!J$2:J$65536)","v":0},{"$f":"SUMIF(IF(dati_pdc!$C211=1,dati_bdv!$C$2:$C$65536,IF(dati_pdc!$C211=2,dati_bdv!$D$2:$D$65536,IF(dati_pdc!$C211=3,dati_bdv!$E$2:$E$65536,IF(dati_pdc!$C211=4,dati_bdv!$F$2:$F$65536,IF(dati_pdc!$C211=5,dati_bdv!$G$2:$G$65536,dati_bdv!$H$2:$H$65536))))),$A211,dati_bdv!K$2:K$65536)","v":0},{"$f":"SUMIF(IF(dati_pdc!$C211=1,dati_bdv!$C$2:$C$65536,IF(dati_pdc!$C211=2,dati_bdv!$D$2:$D$65536,IF(dati_pdc!$C211=3,dati_bdv!$E$2:$E$65536,IF(dati_pdc!$C211=4,dati_bdv!$F$2:$F$65536,IF(dati_pdc!$C211=5,dati_bdv!$G$2:$G$65536,dati_bdv!$H$2:$H$65536))))),$A211,dati_bdv!L$2:L$65536)","v":0},{"$f":"SUMIF(IF(dati_pdc!$C211=1,dati_bdv!$C$2:$C$65536,IF(dati_pdc!$C211=2,dati_bdv!$D$2:$D$65536,IF(dati_pdc!$C211=3,dati_bdv!$E$2:$E$65536,IF(dati_pdc!$C211=4,dati_bdv!$F$2:$F$65536,IF(dati_pdc!$C211=5,dati_bdv!$G$2:$G$65536,dati_bdv!$H$2:$H$65536))))),$A211,dati_bdv!M$2:M$65536)","v":0},{"$f":"SUMIF(IF(dati_pdc!$C211=1,dati_bdv!$C$2:$C$65536,IF(dati_pdc!$C211=2,dati_bdv!$D$2:$D$65536,IF(dati_pdc!$C211=3,dati_bdv!$E$2:$E$65536,IF(dati_pdc!$C211=4,dati_bdv!$F$2:$F$65536,IF(dati_pdc!$C211=5,dati_bdv!$G$2:$G$65536,dati_bdv!$H$2:$H$65536))))),$A211,dati_bdv!N$2:N$65536)","v":0}]
[{"$f":"dati_pdc!A212","v":0},{"$f":"SUMIF(IF(dati_pdc!$C212=1,dati_bdv!$C$2:$C$65536,IF(dati_pdc!$C212=2,dati_bdv!$D$2:$D$65536,IF(dati_pdc!$C212=3,dati_bdv!$E$2:$E$65536,IF(dati_pdc!$C212=4,dati_bdv!$F$2:$F$65536,IF(dati_pdc!$C212=5,dati_bdv!$G$2:$G$65536,dati_bdv!$H$2:$H$65536))))),$A212,dati_bdv!J$2:J$65536)","v":0},{"$f":"SUMIF(IF(dati_pdc!$C212=1,dati_bdv!$C$2:$C$65536,IF(dati_pdc!$C212=2,dati_bdv!$D$2:$D$65536,IF(dati_pdc!$C212=3,dati_bdv!$E$2:$E$65536,IF(dati_pdc!$C212=4,dati_bdv!$F$2:$F$65536,IF(dati_pdc!$C212=5,dati_bdv!$G$2:$G$65536,dati_bdv!$H$2:$H$65536))))),$A212,dati_bdv!K$2:K$65536)","v":0},{"$f":"SUMIF(IF(dati_pdc!$C212=1,dati_bdv!$C$2:$C$65536,IF(dati_pdc!$C212=2,dati_bdv!$D$2:$D$65536,IF(dati_pdc!$C212=3,dati_bdv!$E$2:$E$65536,IF(dati_pdc!$C212=4,dati_bdv!$F$2:$F$65536,IF(dati_pdc!$C212=5,dati_bdv!$G$2:$G$65536,dati_bdv!$H$2:$H$65536))))),$A212,dati_bdv!L$2:L$65536)","v":0},{"$f":"SUMIF(IF(dati_pdc!$C212=1,dati_bdv!$C$2:$C$65536,IF(dati_pdc!$C212=2,dati_bdv!$D$2:$D$65536,IF(dati_pdc!$C212=3,dati_bdv!$E$2:$E$65536,IF(dati_pdc!$C212=4,dati_bdv!$F$2:$F$65536,IF(dati_pdc!$C212=5,dati_bdv!$G$2:$G$65536,dati_bdv!$H$2:$H$65536))))),$A212,dati_bdv!M$2:M$65536)","v":0},{"$f":"SUMIF(IF(dati_pdc!$C212=1,dati_bdv!$C$2:$C$65536,IF(dati_pdc!$C212=2,dati_bdv!$D$2:$D$65536,IF(dati_pdc!$C212=3,dati_bdv!$E$2:$E$65536,IF(dati_pdc!$C212=4,dati_bdv!$F$2:$F$65536,IF(dati_pdc!$C212=5,dati_bdv!$G$2:$G$65536,dati_bdv!$H$2:$H$65536))))),$A212,dati_bdv!N$2:N$65536)","v":0}]
[{"$f":"dati_pdc!A213","v":0},{"$f":"SUMIF(IF(dati_pdc!$C213=1,dati_bdv!$C$2:$C$65536,IF(dati_pdc!$C213=2,dati_bdv!$D$2:$D$65536,IF(dati_pdc!$C213=3,dati_bdv!$E$2:$E$65536,IF(dati_pdc!$C213=4,dati_bdv!$F$2:$F$65536,IF(dati_pdc!$C213=5,dati_bdv!$G$2:$G$65536,dati_bdv!$H$2:$H$65536))))),$A213,dati_bdv!J$2:J$65536)","v":0},{"$f":"SUMIF(IF(dati_pdc!$C213=1,dati_bdv!$C$2:$C$65536,IF(dati_pdc!$C213=2,dati_bdv!$D$2:$D$65536,IF(dati_pdc!$C213=3,dati_bdv!$E$2:$E$65536,IF(dati_pdc!$C213=4,dati_bdv!$F$2:$F$65536,IF(dati_pdc!$C213=5,dati_bdv!$G$2:$G$65536,dati_bdv!$H$2:$H$65536))))),$A213,dati_bdv!K$2:K$65536)","v":0},{"$f":"SUMIF(IF(dati_pdc!$C213=1,dati_bdv!$C$2:$C$65536,IF(dati_pdc!$C213=2,dati_bdv!$D$2:$D$65536,IF(dati_pdc!$C213=3,dati_bdv!$E$2:$E$65536,IF(dati_pdc!$C213=4,dati_bdv!$F$2:$F$65536,IF(dati_pdc!$C213=5,dati_bdv!$G$2:$G$65536,dati_bdv!$H$2:$H$65536))))),$A213,dati_bdv!L$2:L$65536)","v":0},{"$f":"SUMIF(IF(dati_pdc!$C213=1,dati_bdv!$C$2:$C$65536,IF(dati_pdc!$C213=2,dati_bdv!$D$2:$D$65536,IF(dati_pdc!$C213=3,dati_bdv!$E$2:$E$65536,IF(dati_pdc!$C213=4,dati_bdv!$F$2:$F$65536,IF(dati_pdc!$C213=5,dati_bdv!$G$2:$G$65536,dati_bdv!$H$2:$H$65536))))),$A213,dati_bdv!M$2:M$65536)","v":0},{"$f":"SUMIF(IF(dati_pdc!$C213=1,dati_bdv!$C$2:$C$65536,IF(dati_pdc!$C213=2,dati_bdv!$D$2:$D$65536,IF(dati_pdc!$C213=3,dati_bdv!$E$2:$E$65536,IF(dati_pdc!$C213=4,dati_bdv!$F$2:$F$65536,IF(dati_pdc!$C213=5,dati_bdv!$G$2:$G$65536,dati_bdv!$H$2:$H$65536))))),$A213,dati_bdv!N$2:N$65536)","v":0}]
[{"$f":"dati_pdc!A214","v":0},{"$f":"SUMIF(IF(dati_pdc!$C214=1,dati_bdv!$C$2:$C$65536,IF(dati_pdc!$C214=2,dati_bdv!$D$2:$D$65536,IF(dati_pdc!$C214=3,dati_bdv!$E$2:$E$65536,IF(dati_pdc!$C214=4,dati_bdv!$F$2:$F$65536,IF(dati_pdc!$C214=5,dati_bdv!$G$2:$G$65536,dati_bdv!$H$2:$H$65536))))),$A214,dati_bdv!J$2:J$65536)","v":0},{"$f":"SUMIF(IF(dati_pdc!$C214=1,dati_bdv!$C$2:$C$65536,IF(dati_pdc!$C214=2,dati_bdv!$D$2:$D$65536,IF(dati_pdc!$C214=3,dati_bdv!$E$2:$E$65536,IF(dati_pdc!$C214=4,dati_bdv!$F$2:$F$65536,IF(dati_pdc!$C214=5,dati_bdv!$G$2:$G$65536,dati_bdv!$H$2:$H$65536))))),$A214,dati_bdv!K$2:K$65536)","v":0},{"$f":"SUMIF(IF(dati_pdc!$C214=1,dati_bdv!$C$2:$C$65536,IF(dati_pdc!$C214=2,dati_bdv!$D$2:$D$65536,IF(dati_pdc!$C214=3,dati_bdv!$E$2:$E$65536,IF(dati_pdc!$C214=4,dati_bdv!$F$2:$F$65536,IF(dati_pdc!$C214=5,dati_bdv!$G$2:$G$65536,dati_bdv!$H$2:$H$65536))))),$A214,dati_bdv!L$2:L$65536)","v":0},{"$f":"SUMIF(IF(dati_pdc!$C214=1,dati_bdv!$C$2:$C$65536,IF(dati_pdc!$C214=2,dati_bdv!$D$2:$D$65536,IF(dati_pdc!$C214=3,dati_bdv!$E$2:$E$65536,IF(dati_pdc!$C214=4,dati_bdv!$F$2:$F$65536,IF(dati_pdc!$C214=5,dati_bdv!$G$2:$G$65536,dati_bdv!$H$2:$H$65536))))),$A214,dati_bdv!M$2:M$65536)","v":0},{"$f":"SUMIF(IF(dati_pdc!$C214=1,dati_bdv!$C$2:$C$65536,IF(dati_pdc!$C214=2,dati_bdv!$D$2:$D$65536,IF(dati_pdc!$C214=3,dati_bdv!$E$2:$E$65536,IF(dati_pdc!$C214=4,dati_bdv!$F$2:$F$65536,IF(dati_pdc!$C214=5,dati_bdv!$G$2:$G$65536,dati_bdv!$H$2:$H$65536))))),$A214,dati_bdv!N$2:N$65536)","v":0}]
[{"$f":"dati_pdc!A215","v":0},{"$f":"SUMIF(IF(dati_pdc!$C215=1,dati_bdv!$C$2:$C$65536,IF(dati_pdc!$C215=2,dati_bdv!$D$2:$D$65536,IF(dati_pdc!$C215=3,dati_bdv!$E$2:$E$65536,IF(dati_pdc!$C215=4,dati_bdv!$F$2:$F$65536,IF(dati_pdc!$C215=5,dati_bdv!$G$2:$G$65536,dati_bdv!$H$2:$H$65536))))),$A215,dati_bdv!J$2:J$65536)","v":0},{"$f":"SUMIF(IF(dati_pdc!$C215=1,dati_bdv!$C$2:$C$65536,IF(dati_pdc!$C215=2,dati_bdv!$D$2:$D$65536,IF(dati_pdc!$C215=3,dati_bdv!$E$2:$E$65536,IF(dati_pdc!$C215=4,dati_bdv!$F$2:$F$65536,IF(dati_pdc!$C215=5,dati_bdv!$G$2:$G$65536,dati_bdv!$H$2:$H$65536))))),$A215,dati_bdv!K$2:K$65536)","v":0},{"$f":"SUMIF(IF(dati_pdc!$C215=1,dati_bdv!$C$2:$C$65536,IF(dati_pdc!$C215=2,dati_bdv!$D$2:$D$65536,IF(dati_pdc!$C215=3,dati_bdv!$E$2:$E$65536,IF(dati_pdc!$C215=4,dati_bdv!$F$2:$F$65536,IF(dati_pdc!$C215=5,dati_bdv!$G$2:$G$65536,dati_bdv!$H$2:$H$65536))))),$A215,dati_bdv!L$2:L$65536)","v":0},{"$f":"SUMIF(IF(dati_pdc!$C215=1,dati_bdv!$C$2:$C$65536,IF(dati_pdc!$C215=2,dati_bdv!$D$2:$D$65536,IF(dati_pdc!$C215=3,dati_bdv!$E$2:$E$65536,IF(dati_pdc!$C215=4,dati_bdv!$F$2:$F$65536,IF(dati_pdc!$C215=5,dati_bdv!$G$2:$G$65536,dati_bdv!$H$2:$H$65536))))),$A215,dati_bdv!M$2:M$65536)","v":0},{"$f":"SUMIF(IF(dati_pdc!$C215=1,dati_bdv!$C$2:$C$65536,IF(dati_pdc!$C215=2,dati_bdv!$D$2:$D$65536,IF(dati_pdc!$C215=3,dati_bdv!$E$2:$E$65536,IF(dati_pdc!$C215=4,dati_bdv!$F$2:$F$65536,IF(dati_pdc!$C215=5,dati_bdv!$G$2:$G$65536,dati_bdv!$H$2:$H$65536))))),$A215,dati_bdv!N$2:N$65536)","v":0}]
[{"$f":"dati_pdc!A216","v":0},{"$f":"SUMIF(IF(dati_pdc!$C216=1,dati_bdv!$C$2:$C$65536,IF(dati_pdc!$C216=2,dati_bdv!$D$2:$D$65536,IF(dati_pdc!$C216=3,dati_bdv!$E$2:$E$65536,IF(dati_pdc!$C216=4,dati_bdv!$F$2:$F$65536,IF(dati_pdc!$C216=5,dati_bdv!$G$2:$G$65536,dati_bdv!$H$2:$H$65536))))),$A216,dati_bdv!J$2:J$65536)","v":0},{"$f":"SUMIF(IF(dati_pdc!$C216=1,dati_bdv!$C$2:$C$65536,IF(dati_pdc!$C216=2,dati_bdv!$D$2:$D$65536,IF(dati_pdc!$C216=3,dati_bdv!$E$2:$E$65536,IF(dati_pdc!$C216=4,dati_bdv!$F$2:$F$65536,IF(dati_pdc!$C216=5,dati_bdv!$G$2:$G$65536,dati_bdv!$H$2:$H$65536))))),$A216,dati_bdv!K$2:K$65536)","v":0},{"$f":"SUMIF(IF(dati_pdc!$C216=1,dati_bdv!$C$2:$C$65536,IF(dati_pdc!$C216=2,dati_bdv!$D$2:$D$65536,IF(dati_pdc!$C216=3,dati_bdv!$E$2:$E$65536,IF(dati_pdc!$C216=4,dati_bdv!$F$2:$F$65536,IF(dati_pdc!$C216=5,dati_bdv!$G$2:$G$65536,dati_bdv!$H$2:$H$65536))))),$A216,dati_bdv!L$2:L$65536)","v":0},{"$f":"SUMIF(IF(dati_pdc!$C216=1,dati_bdv!$C$2:$C$65536,IF(dati_pdc!$C216=2,dati_bdv!$D$2:$D$65536,IF(dati_pdc!$C216=3,dati_bdv!$E$2:$E$65536,IF(dati_pdc!$C216=4,dati_bdv!$F$2:$F$65536,IF(dati_pdc!$C216=5,dati_bdv!$G$2:$G$65536,dati_bdv!$H$2:$H$65536))))),$A216,dati_bdv!M$2:M$65536)","v":0},{"$f":"SUMIF(IF(dati_pdc!$C216=1,dati_bdv!$C$2:$C$65536,IF(dati_pdc!$C216=2,dati_bdv!$D$2:$D$65536,IF(dati_pdc!$C216=3,dati_bdv!$E$2:$E$65536,IF(dati_pdc!$C216=4,dati_bdv!$F$2:$F$65536,IF(dati_pdc!$C216=5,dati_bdv!$G$2:$G$65536,dati_bdv!$H$2:$H$65536))))),$A216,dati_bdv!N$2:N$65536)","v":0}]
[{"$f":"dati_pdc!A217","v":0},{"$f":"SUMIF(IF(dati_pdc!$C217=1,dati_bdv!$C$2:$C$65536,IF(dati_pdc!$C217=2,dati_bdv!$D$2:$D$65536,IF(dati_pdc!$C217=3,dati_bdv!$E$2:$E$65536,IF(dati_pdc!$C217=4,dati_bdv!$F$2:$F$65536,IF(dati_pdc!$C217=5,dati_bdv!$G$2:$G$65536,dati_bdv!$H$2:$H$65536))))),$A217,dati_bdv!J$2:J$65536)","v":0},{"$f":"SUMIF(IF(dati_pdc!$C217=1,dati_bdv!$C$2:$C$65536,IF(dati_pdc!$C217=2,dati_bdv!$D$2:$D$65536,IF(dati_pdc!$C217=3,dati_bdv!$E$2:$E$65536,IF(dati_pdc!$C217=4,dati_bdv!$F$2:$F$65536,IF(dati_pdc!$C217=5,dati_bdv!$G$2:$G$65536,dati_bdv!$H$2:$H$65536))))),$A217,dati_bdv!K$2:K$65536)","v":0},{"$f":"SUMIF(IF(dati_pdc!$C217=1,dati_bdv!$C$2:$C$65536,IF(dati_pdc!$C217=2,dati_bdv!$D$2:$D$65536,IF(dati_pdc!$C217=3,dati_bdv!$E$2:$E$65536,IF(dati_pdc!$C217=4,dati_bdv!$F$2:$F$65536,IF(dati_pdc!$C217=5,dati_bdv!$G$2:$G$65536,dati_bdv!$H$2:$H$65536))))),$A217,dati_bdv!L$2:L$65536)","v":0},{"$f":"SUMIF(IF(dati_pdc!$C217=1,dati_bdv!$C$2:$C$65536,IF(dati_pdc!$C217=2,dati_bdv!$D$2:$D$65536,IF(dati_pdc!$C217=3,dati_bdv!$E$2:$E$65536,IF(dati_pdc!$C217=4,dati_bdv!$F$2:$F$65536,IF(dati_pdc!$C217=5,dati_bdv!$G$2:$G$65536,dati_bdv!$H$2:$H$65536))))),$A217,dati_bdv!M$2:M$65536)","v":0},{"$f":"SUMIF(IF(dati_pdc!$C217=1,dati_bdv!$C$2:$C$65536,IF(dati_pdc!$C217=2,dati_bdv!$D$2:$D$65536,IF(dati_pdc!$C217=3,dati_bdv!$E$2:$E$65536,IF(dati_pdc!$C217=4,dati_bdv!$F$2:$F$65536,IF(dati_pdc!$C217=5,dati_bdv!$G$2:$G$65536,dati_bdv!$H$2:$H$65536))))),$A217,dati_bdv!N$2:N$65536)","v":0}]
[{"$f":"dati_pdc!A218","v":0},{"$f":"SUMIF(IF(dati_pdc!$C218=1,dati_bdv!$C$2:$C$65536,IF(dati_pdc!$C218=2,dati_bdv!$D$2:$D$65536,IF(dati_pdc!$C218=3,dati_bdv!$E$2:$E$65536,IF(dati_pdc!$C218=4,dati_bdv!$F$2:$F$65536,IF(dati_pdc!$C218=5,dati_bdv!$G$2:$G$65536,dati_bdv!$H$2:$H$65536))))),$A218,dati_bdv!J$2:J$65536)","v":0},{"$f":"SUMIF(IF(dati_pdc!$C218=1,dati_bdv!$C$2:$C$65536,IF(dati_pdc!$C218=2,dati_bdv!$D$2:$D$65536,IF(dati_pdc!$C218=3,dati_bdv!$E$2:$E$65536,IF(dati_pdc!$C218=4,dati_bdv!$F$2:$F$65536,IF(dati_pdc!$C218=5,dati_bdv!$G$2:$G$65536,dati_bdv!$H$2:$H$65536))))),$A218,dati_bdv!K$2:K$65536)","v":0},{"$f":"SUMIF(IF(dati_pdc!$C218=1,dati_bdv!$C$2:$C$65536,IF(dati_pdc!$C218=2,dati_bdv!$D$2:$D$65536,IF(dati_pdc!$C218=3,dati_bdv!$E$2:$E$65536,IF(dati_pdc!$C218=4,dati_bdv!$F$2:$F$65536,IF(dati_pdc!$C218=5,dati_bdv!$G$2:$G$65536,dati_bdv!$H$2:$H$65536))))),$A218,dati_bdv!L$2:L$65536)","v":0},{"$f":"SUMIF(IF(dati_pdc!$C218=1,dati_bdv!$C$2:$C$65536,IF(dati_pdc!$C218=2,dati_bdv!$D$2:$D$65536,IF(dati_pdc!$C218=3,dati_bdv!$E$2:$E$65536,IF(dati_pdc!$C218=4,dati_bdv!$F$2:$F$65536,IF(dati_pdc!$C218=5,dati_bdv!$G$2:$G$65536,dati_bdv!$H$2:$H$65536))))),$A218,dati_bdv!M$2:M$65536)","v":0},{"$f":"SUMIF(IF(dati_pdc!$C218=1,dati_bdv!$C$2:$C$65536,IF(dati_pdc!$C218=2,dati_bdv!$D$2:$D$65536,IF(dati_pdc!$C218=3,dati_bdv!$E$2:$E$65536,IF(dati_pdc!$C218=4,dati_bdv!$F$2:$F$65536,IF(dati_pdc!$C218=5,dati_bdv!$G$2:$G$65536,dati_bdv!$H$2:$H$65536))))),$A218,dati_bdv!N$2:N$65536)","v":0}]
[{"$f":"dati_pdc!A219","v":0},{"$f":"SUMIF(IF(dati_pdc!$C219=1,dati_bdv!$C$2:$C$65536,IF(dati_pdc!$C219=2,dati_bdv!$D$2:$D$65536,IF(dati_pdc!$C219=3,dati_bdv!$E$2:$E$65536,IF(dati_pdc!$C219=4,dati_bdv!$F$2:$F$65536,IF(dati_pdc!$C219=5,dati_bdv!$G$2:$G$65536,dati_bdv!$H$2:$H$65536))))),$A219,dati_bdv!J$2:J$65536)","v":0},{"$f":"SUMIF(IF(dati_pdc!$C219=1,dati_bdv!$C$2:$C$65536,IF(dati_pdc!$C219=2,dati_bdv!$D$2:$D$65536,IF(dati_pdc!$C219=3,dati_bdv!$E$2:$E$65536,IF(dati_pdc!$C219=4,dati_bdv!$F$2:$F$65536,IF(dati_pdc!$C219=5,dati_bdv!$G$2:$G$65536,dati_bdv!$H$2:$H$65536))))),$A219,dati_bdv!K$2:K$65536)","v":0},{"$f":"SUMIF(IF(dati_pdc!$C219=1,dati_bdv!$C$2:$C$65536,IF(dati_pdc!$C219=2,dati_bdv!$D$2:$D$65536,IF(dati_pdc!$C219=3,dati_bdv!$E$2:$E$65536,IF(dati_pdc!$C219=4,dati_bdv!$F$2:$F$65536,IF(dati_pdc!$C219=5,dati_bdv!$G$2:$G$65536,dati_bdv!$H$2:$H$65536))))),$A219,dati_bdv!L$2:L$65536)","v":0},{"$f":"SUMIF(IF(dati_pdc!$C219=1,dati_bdv!$C$2:$C$65536,IF(dati_pdc!$C219=2,dati_bdv!$D$2:$D$65536,IF(dati_pdc!$C219=3,dati_bdv!$E$2:$E$65536,IF(dati_pdc!$C219=4,dati_bdv!$F$2:$F$65536,IF(dati_pdc!$C219=5,dati_bdv!$G$2:$G$65536,dati_bdv!$H$2:$H$65536))))),$A219,dati_bdv!M$2:M$65536)","v":0},{"$f":"SUMIF(IF(dati_pdc!$C219=1,dati_bdv!$C$2:$C$65536,IF(dati_pdc!$C219=2,dati_bdv!$D$2:$D$65536,IF(dati_pdc!$C219=3,dati_bdv!$E$2:$E$65536,IF(dati_pdc!$C219=4,dati_bdv!$F$2:$F$65536,IF(dati_pdc!$C219=5,dati_bdv!$G$2:$G$65536,dati_bdv!$H$2:$H$65536))))),$A219,dati_bdv!N$2:N$65536)","v":0}]
[{"$f":"dati_pdc!A220","v":0},{"$f":"SUMIF(IF(dati_pdc!$C220=1,dati_bdv!$C$2:$C$65536,IF(dati_pdc!$C220=2,dati_bdv!$D$2:$D$65536,IF(dati_pdc!$C220=3,dati_bdv!$E$2:$E$65536,IF(dati_pdc!$C220=4,dati_bdv!$F$2:$F$65536,IF(dati_pdc!$C220=5,dati_bdv!$G$2:$G$65536,dati_bdv!$H$2:$H$65536))))),$A220,dati_bdv!J$2:J$65536)","v":0},{"$f":"SUMIF(IF(dati_pdc!$C220=1,dati_bdv!$C$2:$C$65536,IF(dati_pdc!$C220=2,dati_bdv!$D$2:$D$65536,IF(dati_pdc!$C220=3,dati_bdv!$E$2:$E$65536,IF(dati_pdc!$C220=4,dati_bdv!$F$2:$F$65536,IF(dati_pdc!$C220=5,dati_bdv!$G$2:$G$65536,dati_bdv!$H$2:$H$65536))))),$A220,dati_bdv!K$2:K$65536)","v":0},{"$f":"SUMIF(IF(dati_pdc!$C220=1,dati_bdv!$C$2:$C$65536,IF(dati_pdc!$C220=2,dati_bdv!$D$2:$D$65536,IF(dati_pdc!$C220=3,dati_bdv!$E$2:$E$65536,IF(dati_pdc!$C220=4,dati_bdv!$F$2:$F$65536,IF(dati_pdc!$C220=5,dati_bdv!$G$2:$G$65536,dati_bdv!$H$2:$H$65536))))),$A220,dati_bdv!L$2:L$65536)","v":0},{"$f":"SUMIF(IF(dati_pdc!$C220=1,dati_bdv!$C$2:$C$65536,IF(dati_pdc!$C220=2,dati_bdv!$D$2:$D$65536,IF(dati_pdc!$C220=3,dati_bdv!$E$2:$E$65536,IF(dati_pdc!$C220=4,dati_bdv!$F$2:$F$65536,IF(dati_pdc!$C220=5,dati_bdv!$G$2:$G$65536,dati_bdv!$H$2:$H$65536))))),$A220,dati_bdv!M$2:M$65536)","v":0},{"$f":"SUMIF(IF(dati_pdc!$C220=1,dati_bdv!$C$2:$C$65536,IF(dati_pdc!$C220=2,dati_bdv!$D$2:$D$65536,IF(dati_pdc!$C220=3,dati_bdv!$E$2:$E$65536,IF(dati_pdc!$C220=4,dati_bdv!$F$2:$F$65536,IF(dati_pdc!$C220=5,dati_bdv!$G$2:$G$65536,dati_bdv!$H$2:$H$65536))))),$A220,dati_bdv!N$2:N$65536)","v":0}]
[{"$f":"dati_pdc!A221","v":0},{"$f":"SUMIF(IF(dati_pdc!$C221=1,dati_bdv!$C$2:$C$65536,IF(dati_pdc!$C221=2,dati_bdv!$D$2:$D$65536,IF(dati_pdc!$C221=3,dati_bdv!$E$2:$E$65536,IF(dati_pdc!$C221=4,dati_bdv!$F$2:$F$65536,IF(dati_pdc!$C221=5,dati_bdv!$G$2:$G$65536,dati_bdv!$H$2:$H$65536))))),$A221,dati_bdv!J$2:J$65536)","v":0},{"$f":"SUMIF(IF(dati_pdc!$C221=1,dati_bdv!$C$2:$C$65536,IF(dati_pdc!$C221=2,dati_bdv!$D$2:$D$65536,IF(dati_pdc!$C221=3,dati_bdv!$E$2:$E$65536,IF(dati_pdc!$C221=4,dati_bdv!$F$2:$F$65536,IF(dati_pdc!$C221=5,dati_bdv!$G$2:$G$65536,dati_bdv!$H$2:$H$65536))))),$A221,dati_bdv!K$2:K$65536)","v":0},{"$f":"SUMIF(IF(dati_pdc!$C221=1,dati_bdv!$C$2:$C$65536,IF(dati_pdc!$C221=2,dati_bdv!$D$2:$D$65536,IF(dati_pdc!$C221=3,dati_bdv!$E$2:$E$65536,IF(dati_pdc!$C221=4,dati_bdv!$F$2:$F$65536,IF(dati_pdc!$C221=5,dati_bdv!$G$2:$G$65536,dati_bdv!$H$2:$H$65536))))),$A221,dati_bdv!L$2:L$65536)","v":0},{"$f":"SUMIF(IF(dati_pdc!$C221=1,dati_bdv!$C$2:$C$65536,IF(dati_pdc!$C221=2,dati_bdv!$D$2:$D$65536,IF(dati_pdc!$C221=3,dati_bdv!$E$2:$E$65536,IF(dati_pdc!$C221=4,dati_bdv!$F$2:$F$65536,IF(dati_pdc!$C221=5,dati_bdv!$G$2:$G$65536,dati_bdv!$H$2:$H$65536))))),$A221,dati_bdv!M$2:M$65536)","v":0},{"$f":"SUMIF(IF(dati_pdc!$C221=1,dati_bdv!$C$2:$C$65536,IF(dati_pdc!$C221=2,dati_bdv!$D$2:$D$65536,IF(dati_pdc!$C221=3,dati_bdv!$E$2:$E$65536,IF(dati_pdc!$C221=4,dati_bdv!$F$2:$F$65536,IF(dati_pdc!$C221=5,dati_bdv!$G$2:$G$65536,dati_bdv!$H$2:$H$65536))))),$A221,dati_bdv!N$2:N$65536)","v":0}]
[{"$f":"dati_pdc!A222","v":0},{"$f":"SUMIF(IF(dati_pdc!$C222=1,dati_bdv!$C$2:$C$65536,IF(dati_pdc!$C222=2,dati_bdv!$D$2:$D$65536,IF(dati_pdc!$C222=3,dati_bdv!$E$2:$E$65536,IF(dati_pdc!$C222=4,dati_bdv!$F$2:$F$65536,IF(dati_pdc!$C222=5,dati_bdv!$G$2:$G$65536,dati_bdv!$H$2:$H$65536))))),$A222,dati_bdv!J$2:J$65536)","v":0},{"$f":"SUMIF(IF(dati_pdc!$C222=1,dati_bdv!$C$2:$C$65536,IF(dati_pdc!$C222=2,dati_bdv!$D$2:$D$65536,IF(dati_pdc!$C222=3,dati_bdv!$E$2:$E$65536,IF(dati_pdc!$C222=4,dati_bdv!$F$2:$F$65536,IF(dati_pdc!$C222=5,dati_bdv!$G$2:$G$65536,dati_bdv!$H$2:$H$65536))))),$A222,dati_bdv!K$2:K$65536)","v":0},{"$f":"SUMIF(IF(dati_pdc!$C222=1,dati_bdv!$C$2:$C$65536,IF(dati_pdc!$C222=2,dati_bdv!$D$2:$D$65536,IF(dati_pdc!$C222=3,dati_bdv!$E$2:$E$65536,IF(dati_pdc!$C222=4,dati_bdv!$F$2:$F$65536,IF(dati_pdc!$C222=5,dati_bdv!$G$2:$G$65536,dati_bdv!$H$2:$H$65536))))),$A222,dati_bdv!L$2:L$65536)","v":0},{"$f":"SUMIF(IF(dati_pdc!$C222=1,dati_bdv!$C$2:$C$65536,IF(dati_pdc!$C222=2,dati_bdv!$D$2:$D$65536,IF(dati_pdc!$C222=3,dati_bdv!$E$2:$E$65536,IF(dati_pdc!$C222=4,dati_bdv!$F$2:$F$65536,IF(dati_pdc!$C222=5,dati_bdv!$G$2:$G$65536,dati_bdv!$H$2:$H$65536))))),$A222,dati_bdv!M$2:M$65536)","v":0},{"$f":"SUMIF(IF(dati_pdc!$C222=1,dati_bdv!$C$2:$C$65536,IF(dati_pdc!$C222=2,dati_bdv!$D$2:$D$65536,IF(dati_pdc!$C222=3,dati_bdv!$E$2:$E$65536,IF(dati_pdc!$C222=4,dati_bdv!$F$2:$F$65536,IF(dati_pdc!$C222=5,dati_bdv!$G$2:$G$65536,dati_bdv!$H$2:$H$65536))))),$A222,dati_bdv!N$2:N$65536)","v":0}]
[{"$f":"dati_pdc!A223","v":0},{"$f":"SUMIF(IF(dati_pdc!$C223=1,dati_bdv!$C$2:$C$65536,IF(dati_pdc!$C223=2,dati_bdv!$D$2:$D$65536,IF(dati_pdc!$C223=3,dati_bdv!$E$2:$E$65536,IF(dati_pdc!$C223=4,dati_bdv!$F$2:$F$65536,IF(dati_pdc!$C223=5,dati_bdv!$G$2:$G$65536,dati_bdv!$H$2:$H$65536))))),$A223,dati_bdv!J$2:J$65536)","v":0},{"$f":"SUMIF(IF(dati_pdc!$C223=1,dati_bdv!$C$2:$C$65536,IF(dati_pdc!$C223=2,dati_bdv!$D$2:$D$65536,IF(dati_pdc!$C223=3,dati_bdv!$E$2:$E$65536,IF(dati_pdc!$C223=4,dati_bdv!$F$2:$F$65536,IF(dati_pdc!$C223=5,dati_bdv!$G$2:$G$65536,dati_bdv!$H$2:$H$65536))))),$A223,dati_bdv!K$2:K$65536)","v":0},{"$f":"SUMIF(IF(dati_pdc!$C223=1,dati_bdv!$C$2:$C$65536,IF(dati_pdc!$C223=2,dati_bdv!$D$2:$D$65536,IF(dati_pdc!$C223=3,dati_bdv!$E$2:$E$65536,IF(dati_pdc!$C223=4,dati_bdv!$F$2:$F$65536,IF(dati_pdc!$C223=5,dati_bdv!$G$2:$G$65536,dati_bdv!$H$2:$H$65536))))),$A223,dati_bdv!L$2:L$65536)","v":0},{"$f":"SUMIF(IF(dati_pdc!$C223=1,dati_bdv!$C$2:$C$65536,IF(dati_pdc!$C223=2,dati_bdv!$D$2:$D$65536,IF(dati_pdc!$C223=3,dati_bdv!$E$2:$E$65536,IF(dati_pdc!$C223=4,dati_bdv!$F$2:$F$65536,IF(dati_pdc!$C223=5,dati_bdv!$G$2:$G$65536,dati_bdv!$H$2:$H$65536))))),$A223,dati_bdv!M$2:M$65536)","v":0},{"$f":"SUMIF(IF(dati_pdc!$C223=1,dati_bdv!$C$2:$C$65536,IF(dati_pdc!$C223=2,dati_bdv!$D$2:$D$65536,IF(dati_pdc!$C223=3,dati_bdv!$E$2:$E$65536,IF(dati_pdc!$C223=4,dati_bdv!$F$2:$F$65536,IF(dati_pdc!$C223=5,dati_bdv!$G$2:$G$65536,dati_bdv!$H$2:$H$65536))))),$A223,dati_bdv!N$2:N$65536)","v":0}]
[{"$f":"dati_pdc!A224","v":0},{"$f":"SUMIF(IF(dati_pdc!$C224=1,dati_bdv!$C$2:$C$65536,IF(dati_pdc!$C224=2,dati_bdv!$D$2:$D$65536,IF(dati_pdc!$C224=3,dati_bdv!$E$2:$E$65536,IF(dati_pdc!$C224=4,dati_bdv!$F$2:$F$65536,IF(dati_pdc!$C224=5,dati_bdv!$G$2:$G$65536,dati_bdv!$H$2:$H$65536))))),$A224,dati_bdv!J$2:J$65536)","v":0},{"$f":"SUMIF(IF(dati_pdc!$C224=1,dati_bdv!$C$2:$C$65536,IF(dati_pdc!$C224=2,dati_bdv!$D$2:$D$65536,IF(dati_pdc!$C224=3,dati_bdv!$E$2:$E$65536,IF(dati_pdc!$C224=4,dati_bdv!$F$2:$F$65536,IF(dati_pdc!$C224=5,dati_bdv!$G$2:$G$65536,dati_bdv!$H$2:$H$65536))))),$A224,dati_bdv!K$2:K$65536)","v":0},{"$f":"SUMIF(IF(dati_pdc!$C224=1,dati_bdv!$C$2:$C$65536,IF(dati_pdc!$C224=2,dati_bdv!$D$2:$D$65536,IF(dati_pdc!$C224=3,dati_bdv!$E$2:$E$65536,IF(dati_pdc!$C224=4,dati_bdv!$F$2:$F$65536,IF(dati_pdc!$C224=5,dati_bdv!$G$2:$G$65536,dati_bdv!$H$2:$H$65536))))),$A224,dati_bdv!L$2:L$65536)","v":0},{"$f":"SUMIF(IF(dati_pdc!$C224=1,dati_bdv!$C$2:$C$65536,IF(dati_pdc!$C224=2,dati_bdv!$D$2:$D$65536,IF(dati_pdc!$C224=3,dati_bdv!$E$2:$E$65536,IF(dati_pdc!$C224=4,dati_bdv!$F$2:$F$65536,IF(dati_pdc!$C224=5,dati_bdv!$G$2:$G$65536,dati_bdv!$H$2:$H$65536))))),$A224,dati_bdv!M$2:M$65536)","v":0},{"$f":"SUMIF(IF(dati_pdc!$C224=1,dati_bdv!$C$2:$C$65536,IF(dati_pdc!$C224=2,dati_bdv!$D$2:$D$65536,IF(dati_pdc!$C224=3,dati_bdv!$E$2:$E$65536,IF(dati_pdc!$C224=4,dati_bdv!$F$2:$F$65536,IF(dati_pdc!$C224=5,dati_bdv!$G$2:$G$65536,dati_bdv!$H$2:$H$65536))))),$A224,dati_bdv!N$2:N$65536)","v":0}]
[{"$f":"dati_pdc!A225","v":0},{"$f":"SUMIF(IF(dati_pdc!$C225=1,dati_bdv!$C$2:$C$65536,IF(dati_pdc!$C225=2,dati_bdv!$D$2:$D$65536,IF(dati_pdc!$C225=3,dati_bdv!$E$2:$E$65536,IF(dati_pdc!$C225=4,dati_bdv!$F$2:$F$65536,IF(dati_pdc!$C225=5,dati_bdv!$G$2:$G$65536,dati_bdv!$H$2:$H$65536))))),$A225,dati_bdv!J$2:J$65536)","v":0},{"$f":"SUMIF(IF(dati_pdc!$C225=1,dati_bdv!$C$2:$C$65536,IF(dati_pdc!$C225=2,dati_bdv!$D$2:$D$65536,IF(dati_pdc!$C225=3,dati_bdv!$E$2:$E$65536,IF(dati_pdc!$C225=4,dati_bdv!$F$2:$F$65536,IF(dati_pdc!$C225=5,dati_bdv!$G$2:$G$65536,dati_bdv!$H$2:$H$65536))))),$A225,dati_bdv!K$2:K$65536)","v":0},{"$f":"SUMIF(IF(dati_pdc!$C225=1,dati_bdv!$C$2:$C$65536,IF(dati_pdc!$C225=2,dati_bdv!$D$2:$D$65536,IF(dati_pdc!$C225=3,dati_bdv!$E$2:$E$65536,IF(dati_pdc!$C225=4,dati_bdv!$F$2:$F$65536,IF(dati_pdc!$C225=5,dati_bdv!$G$2:$G$65536,dati_bdv!$H$2:$H$65536))))),$A225,dati_bdv!L$2:L$65536)","v":0},{"$f":"SUMIF(IF(dati_pdc!$C225=1,dati_bdv!$C$2:$C$65536,IF(dati_pdc!$C225=2,dati_bdv!$D$2:$D$65536,IF(dati_pdc!$C225=3,dati_bdv!$E$2:$E$65536,IF(dati_pdc!$C225=4,dati_bdv!$F$2:$F$65536,IF(dati_pdc!$C225=5,dati_bdv!$G$2:$G$65536,dati_bdv!$H$2:$H$65536))))),$A225,dati_bdv!M$2:M$65536)","v":0},{"$f":"SUMIF(IF(dati_pdc!$C225=1,dati_bdv!$C$2:$C$65536,IF(dati_pdc!$C225=2,dati_bdv!$D$2:$D$65536,IF(dati_pdc!$C225=3,dati_bdv!$E$2:$E$65536,IF(dati_pdc!$C225=4,dati_bdv!$F$2:$F$65536,IF(dati_pdc!$C225=5,dati_bdv!$G$2:$G$65536,dati_bdv!$H$2:$H$65536))))),$A225,dati_bdv!N$2:N$65536)","v":0}]
[{"$f":"dati_pdc!A226","v":0},{"$f":"SUMIF(IF(dati_pdc!$C226=1,dati_bdv!$C$2:$C$65536,IF(dati_pdc!$C226=2,dati_bdv!$D$2:$D$65536,IF(dati_pdc!$C226=3,dati_bdv!$E$2:$E$65536,IF(dati_pdc!$C226=4,dati_bdv!$F$2:$F$65536,IF(dati_pdc!$C226=5,dati_bdv!$G$2:$G$65536,dati_bdv!$H$2:$H$65536))))),$A226,dati_bdv!J$2:J$65536)","v":0},{"$f":"SUMIF(IF(dati_pdc!$C226=1,dati_bdv!$C$2:$C$65536,IF(dati_pdc!$C226=2,dati_bdv!$D$2:$D$65536,IF(dati_pdc!$C226=3,dati_bdv!$E$2:$E$65536,IF(dati_pdc!$C226=4,dati_bdv!$F$2:$F$65536,IF(dati_pdc!$C226=5,dati_bdv!$G$2:$G$65536,dati_bdv!$H$2:$H$65536))))),$A226,dati_bdv!K$2:K$65536)","v":0},{"$f":"SUMIF(IF(dati_pdc!$C226=1,dati_bdv!$C$2:$C$65536,IF(dati_pdc!$C226=2,dati_bdv!$D$2:$D$65536,IF(dati_pdc!$C226=3,dati_bdv!$E$2:$E$65536,IF(dati_pdc!$C226=4,dati_bdv!$F$2:$F$65536,IF(dati_pdc!$C226=5,dati_bdv!$G$2:$G$65536,dati_bdv!$H$2:$H$65536))))),$A226,dati_bdv!L$2:L$65536)","v":0},{"$f":"SUMIF(IF(dati_pdc!$C226=1,dati_bdv!$C$2:$C$65536,IF(dati_pdc!$C226=2,dati_bdv!$D$2:$D$65536,IF(dati_pdc!$C226=3,dati_bdv!$E$2:$E$65536,IF(dati_pdc!$C226=4,dati_bdv!$F$2:$F$65536,IF(dati_pdc!$C226=5,dati_bdv!$G$2:$G$65536,dati_bdv!$H$2:$H$65536))))),$A226,dati_bdv!M$2:M$65536)","v":0},{"$f":"SUMIF(IF(dati_pdc!$C226=1,dati_bdv!$C$2:$C$65536,IF(dati_pdc!$C226=2,dati_bdv!$D$2:$D$65536,IF(dati_pdc!$C226=3,dati_bdv!$E$2:$E$65536,IF(dati_pdc!$C226=4,dati_bdv!$F$2:$F$65536,IF(dati_pdc!$C226=5,dati_bdv!$G$2:$G$65536,dati_bdv!$H$2:$H$65536))))),$A226,dati_bdv!N$2:N$65536)","v":0}]
[{"$f":"dati_pdc!A227","v":0},{"$f":"SUMIF(IF(dati_pdc!$C227=1,dati_bdv!$C$2:$C$65536,IF(dati_pdc!$C227=2,dati_bdv!$D$2:$D$65536,IF(dati_pdc!$C227=3,dati_bdv!$E$2:$E$65536,IF(dati_pdc!$C227=4,dati_bdv!$F$2:$F$65536,IF(dati_pdc!$C227=5,dati_bdv!$G$2:$G$65536,dati_bdv!$H$2:$H$65536))))),$A227,dati_bdv!J$2:J$65536)","v":0},{"$f":"SUMIF(IF(dati_pdc!$C227=1,dati_bdv!$C$2:$C$65536,IF(dati_pdc!$C227=2,dati_bdv!$D$2:$D$65536,IF(dati_pdc!$C227=3,dati_bdv!$E$2:$E$65536,IF(dati_pdc!$C227=4,dati_bdv!$F$2:$F$65536,IF(dati_pdc!$C227=5,dati_bdv!$G$2:$G$65536,dati_bdv!$H$2:$H$65536))))),$A227,dati_bdv!K$2:K$65536)","v":0},{"$f":"SUMIF(IF(dati_pdc!$C227=1,dati_bdv!$C$2:$C$65536,IF(dati_pdc!$C227=2,dati_bdv!$D$2:$D$65536,IF(dati_pdc!$C227=3,dati_bdv!$E$2:$E$65536,IF(dati_pdc!$C227=4,dati_bdv!$F$2:$F$65536,IF(dati_pdc!$C227=5,dati_bdv!$G$2:$G$65536,dati_bdv!$H$2:$H$65536))))),$A227,dati_bdv!L$2:L$65536)","v":0},{"$f":"SUMIF(IF(dati_pdc!$C227=1,dati_bdv!$C$2:$C$65536,IF(dati_pdc!$C227=2,dati_bdv!$D$2:$D$65536,IF(dati_pdc!$C227=3,dati_bdv!$E$2:$E$65536,IF(dati_pdc!$C227=4,dati_bdv!$F$2:$F$65536,IF(dati_pdc!$C227=5,dati_bdv!$G$2:$G$65536,dati_bdv!$H$2:$H$65536))))),$A227,dati_bdv!M$2:M$65536)","v":0},{"$f":"SUMIF(IF(dati_pdc!$C227=1,dati_bdv!$C$2:$C$65536,IF(dati_pdc!$C227=2,dati_bdv!$D$2:$D$65536,IF(dati_pdc!$C227=3,dati_bdv!$E$2:$E$65536,IF(dati_pdc!$C227=4,dati_bdv!$F$2:$F$65536,IF(dati_pdc!$C227=5,dati_bdv!$G$2:$G$65536,dati_bdv!$H$2:$H$65536))))),$A227,dati_bdv!N$2:N$65536)","v":0}]
[{"$f":"dati_pdc!A228","v":0},{"$f":"SUMIF(IF(dati_pdc!$C228=1,dati_bdv!$C$2:$C$65536,IF(dati_pdc!$C228=2,dati_bdv!$D$2:$D$65536,IF(dati_pdc!$C228=3,dati_bdv!$E$2:$E$65536,IF(dati_pdc!$C228=4,dati_bdv!$F$2:$F$65536,IF(dati_pdc!$C228=5,dati_bdv!$G$2:$G$65536,dati_bdv!$H$2:$H$65536))))),$A228,dati_bdv!J$2:J$65536)","v":0},{"$f":"SUMIF(IF(dati_pdc!$C228=1,dati_bdv!$C$2:$C$65536,IF(dati_pdc!$C228=2,dati_bdv!$D$2:$D$65536,IF(dati_pdc!$C228=3,dati_bdv!$E$2:$E$65536,IF(dati_pdc!$C228=4,dati_bdv!$F$2:$F$65536,IF(dati_pdc!$C228=5,dati_bdv!$G$2:$G$65536,dati_bdv!$H$2:$H$65536))))),$A228,dati_bdv!K$2:K$65536)","v":0},{"$f":"SUMIF(IF(dati_pdc!$C228=1,dati_bdv!$C$2:$C$65536,IF(dati_pdc!$C228=2,dati_bdv!$D$2:$D$65536,IF(dati_pdc!$C228=3,dati_bdv!$E$2:$E$65536,IF(dati_pdc!$C228=4,dati_bdv!$F$2:$F$65536,IF(dati_pdc!$C228=5,dati_bdv!$G$2:$G$65536,dati_bdv!$H$2:$H$65536))))),$A228,dati_bdv!L$2:L$65536)","v":0},{"$f":"SUMIF(IF(dati_pdc!$C228=1,dati_bdv!$C$2:$C$65536,IF(dati_pdc!$C228=2,dati_bdv!$D$2:$D$65536,IF(dati_pdc!$C228=3,dati_bdv!$E$2:$E$65536,IF(dati_pdc!$C228=4,dati_bdv!$F$2:$F$65536,IF(dati_pdc!$C228=5,dati_bdv!$G$2:$G$65536,dati_bdv!$H$2:$H$65536))))),$A228,dati_bdv!M$2:M$65536)","v":0},{"$f":"SUMIF(IF(dati_pdc!$C228=1,dati_bdv!$C$2:$C$65536,IF(dati_pdc!$C228=2,dati_bdv!$D$2:$D$65536,IF(dati_pdc!$C228=3,dati_bdv!$E$2:$E$65536,IF(dati_pdc!$C228=4,dati_bdv!$F$2:$F$65536,IF(dati_pdc!$C228=5,dati_bdv!$G$2:$G$65536,dati_bdv!$H$2:$H$65536))))),$A228,dati_bdv!N$2:N$65536)","v":0}]
[{"$f":"dati_pdc!A229","v":0},{"$f":"SUMIF(IF(dati_pdc!$C229=1,dati_bdv!$C$2:$C$65536,IF(dati_pdc!$C229=2,dati_bdv!$D$2:$D$65536,IF(dati_pdc!$C229=3,dati_bdv!$E$2:$E$65536,IF(dati_pdc!$C229=4,dati_bdv!$F$2:$F$65536,IF(dati_pdc!$C229=5,dati_bdv!$G$2:$G$65536,dati_bdv!$H$2:$H$65536))))),$A229,dati_bdv!J$2:J$65536)","v":0},{"$f":"SUMIF(IF(dati_pdc!$C229=1,dati_bdv!$C$2:$C$65536,IF(dati_pdc!$C229=2,dati_bdv!$D$2:$D$65536,IF(dati_pdc!$C229=3,dati_bdv!$E$2:$E$65536,IF(dati_pdc!$C229=4,dati_bdv!$F$2:$F$65536,IF(dati_pdc!$C229=5,dati_bdv!$G$2:$G$65536,dati_bdv!$H$2:$H$65536))))),$A229,dati_bdv!K$2:K$65536)","v":0},{"$f":"SUMIF(IF(dati_pdc!$C229=1,dati_bdv!$C$2:$C$65536,IF(dati_pdc!$C229=2,dati_bdv!$D$2:$D$65536,IF(dati_pdc!$C229=3,dati_bdv!$E$2:$E$65536,IF(dati_pdc!$C229=4,dati_bdv!$F$2:$F$65536,IF(dati_pdc!$C229=5,dati_bdv!$G$2:$G$65536,dati_bdv!$H$2:$H$65536))))),$A229,dati_bdv!L$2:L$65536)","v":0},{"$f":"SUMIF(IF(dati_pdc!$C229=1,dati_bdv!$C$2:$C$65536,IF(dati_pdc!$C229=2,dati_bdv!$D$2:$D$65536,IF(dati_pdc!$C229=3,dati_bdv!$E$2:$E$65536,IF(dati_pdc!$C229=4,dati_bdv!$F$2:$F$65536,IF(dati_pdc!$C229=5,dati_bdv!$G$2:$G$65536,dati_bdv!$H$2:$H$65536))))),$A229,dati_bdv!M$2:M$65536)","v":0},{"$f":"SUMIF(IF(dati_pdc!$C229=1,dati_bdv!$C$2:$C$65536,IF(dati_pdc!$C229=2,dati_bdv!$D$2:$D$65536,IF(dati_pdc!$C229=3,dati_bdv!$E$2:$E$65536,IF(dati_pdc!$C229=4,dati_bdv!$F$2:$F$65536,IF(dati_pdc!$C229=5,dati_bdv!$G$2:$G$65536,dati_bdv!$H$2:$H$65536))))),$A229,dati_bdv!N$2:N$65536)","v":0}]
[{"$f":"dati_pdc!A230","v":0},{"$f":"SUMIF(IF(dati_pdc!$C230=1,dati_bdv!$C$2:$C$65536,IF(dati_pdc!$C230=2,dati_bdv!$D$2:$D$65536,IF(dati_pdc!$C230=3,dati_bdv!$E$2:$E$65536,IF(dati_pdc!$C230=4,dati_bdv!$F$2:$F$65536,IF(dati_pdc!$C230=5,dati_bdv!$G$2:$G$65536,dati_bdv!$H$2:$H$65536))))),$A230,dati_bdv!J$2:J$65536)","v":0},{"$f":"SUMIF(IF(dati_pdc!$C230=1,dati_bdv!$C$2:$C$65536,IF(dati_pdc!$C230=2,dati_bdv!$D$2:$D$65536,IF(dati_pdc!$C230=3,dati_bdv!$E$2:$E$65536,IF(dati_pdc!$C230=4,dati_bdv!$F$2:$F$65536,IF(dati_pdc!$C230=5,dati_bdv!$G$2:$G$65536,dati_bdv!$H$2:$H$65536))))),$A230,dati_bdv!K$2:K$65536)","v":0},{"$f":"SUMIF(IF(dati_pdc!$C230=1,dati_bdv!$C$2:$C$65536,IF(dati_pdc!$C230=2,dati_bdv!$D$2:$D$65536,IF(dati_pdc!$C230=3,dati_bdv!$E$2:$E$65536,IF(dati_pdc!$C230=4,dati_bdv!$F$2:$F$65536,IF(dati_pdc!$C230=5,dati_bdv!$G$2:$G$65536,dati_bdv!$H$2:$H$65536))))),$A230,dati_bdv!L$2:L$65536)","v":0},{"$f":"SUMIF(IF(dati_pdc!$C230=1,dati_bdv!$C$2:$C$65536,IF(dati_pdc!$C230=2,dati_bdv!$D$2:$D$65536,IF(dati_pdc!$C230=3,dati_bdv!$E$2:$E$65536,IF(dati_pdc!$C230=4,dati_bdv!$F$2:$F$65536,IF(dati_pdc!$C230=5,dati_bdv!$G$2:$G$65536,dati_bdv!$H$2:$H$65536))))),$A230,dati_bdv!M$2:M$65536)","v":0},{"$f":"SUMIF(IF(dati_pdc!$C230=1,dati_bdv!$C$2:$C$65536,IF(dati_pdc!$C230=2,dati_bdv!$D$2:$D$65536,IF(dati_pdc!$C230=3,dati_bdv!$E$2:$E$65536,IF(dati_pdc!$C230=4,dati_bdv!$F$2:$F$65536,IF(dati_pdc!$C230=5,dati_bdv!$G$2:$G$65536,dati_bdv!$H$2:$H$65536))))),$A230,dati_bdv!N$2:N$65536)","v":0}]
[{"$f":"dati_pdc!A231","v":0},{"$f":"SUMIF(IF(dati_pdc!$C231=1,dati_bdv!$C$2:$C$65536,IF(dati_pdc!$C231=2,dati_bdv!$D$2:$D$65536,IF(dati_pdc!$C231=3,dati_bdv!$E$2:$E$65536,IF(dati_pdc!$C231=4,dati_bdv!$F$2:$F$65536,IF(dati_pdc!$C231=5,dati_bdv!$G$2:$G$65536,dati_bdv!$H$2:$H$65536))))),$A231,dati_bdv!J$2:J$65536)","v":0},{"$f":"SUMIF(IF(dati_pdc!$C231=1,dati_bdv!$C$2:$C$65536,IF(dati_pdc!$C231=2,dati_bdv!$D$2:$D$65536,IF(dati_pdc!$C231=3,dati_bdv!$E$2:$E$65536,IF(dati_pdc!$C231=4,dati_bdv!$F$2:$F$65536,IF(dati_pdc!$C231=5,dati_bdv!$G$2:$G$65536,dati_bdv!$H$2:$H$65536))))),$A231,dati_bdv!K$2:K$65536)","v":0},{"$f":"SUMIF(IF(dati_pdc!$C231=1,dati_bdv!$C$2:$C$65536,IF(dati_pdc!$C231=2,dati_bdv!$D$2:$D$65536,IF(dati_pdc!$C231=3,dati_bdv!$E$2:$E$65536,IF(dati_pdc!$C231=4,dati_bdv!$F$2:$F$65536,IF(dati_pdc!$C231=5,dati_bdv!$G$2:$G$65536,dati_bdv!$H$2:$H$65536))))),$A231,dati_bdv!L$2:L$65536)","v":0},{"$f":"SUMIF(IF(dati_pdc!$C231=1,dati_bdv!$C$2:$C$65536,IF(dati_pdc!$C231=2,dati_bdv!$D$2:$D$65536,IF(dati_pdc!$C231=3,dati_bdv!$E$2:$E$65536,IF(dati_pdc!$C231=4,dati_bdv!$F$2:$F$65536,IF(dati_pdc!$C231=5,dati_bdv!$G$2:$G$65536,dati_bdv!$H$2:$H$65536))))),$A231,dati_bdv!M$2:M$65536)","v":0},{"$f":"SUMIF(IF(dati_pdc!$C231=1,dati_bdv!$C$2:$C$65536,IF(dati_pdc!$C231=2,dati_bdv!$D$2:$D$65536,IF(dati_pdc!$C231=3,dati_bdv!$E$2:$E$65536,IF(dati_pdc!$C231=4,dati_bdv!$F$2:$F$65536,IF(dati_pdc!$C231=5,dati_bdv!$G$2:$G$65536,dati_bdv!$H$2:$H$65536))))),$A231,dati_bdv!N$2:N$65536)","v":0}]
[{"$f":"dati_pdc!A232","v":0},{"$f":"SUMIF(IF(dati_pdc!$C232=1,dati_bdv!$C$2:$C$65536,IF(dati_pdc!$C232=2,dati_bdv!$D$2:$D$65536,IF(dati_pdc!$C232=3,dati_bdv!$E$2:$E$65536,IF(dati_pdc!$C232=4,dati_bdv!$F$2:$F$65536,IF(dati_pdc!$C232=5,dati_bdv!$G$2:$G$65536,dati_bdv!$H$2:$H$65536))))),$A232,dati_bdv!J$2:J$65536)","v":0},{"$f":"SUMIF(IF(dati_pdc!$C232=1,dati_bdv!$C$2:$C$65536,IF(dati_pdc!$C232=2,dati_bdv!$D$2:$D$65536,IF(dati_pdc!$C232=3,dati_bdv!$E$2:$E$65536,IF(dati_pdc!$C232=4,dati_bdv!$F$2:$F$65536,IF(dati_pdc!$C232=5,dati_bdv!$G$2:$G$65536,dati_bdv!$H$2:$H$65536))))),$A232,dati_bdv!K$2:K$65536)","v":0},{"$f":"SUMIF(IF(dati_pdc!$C232=1,dati_bdv!$C$2:$C$65536,IF(dati_pdc!$C232=2,dati_bdv!$D$2:$D$65536,IF(dati_pdc!$C232=3,dati_bdv!$E$2:$E$65536,IF(dati_pdc!$C232=4,dati_bdv!$F$2:$F$65536,IF(dati_pdc!$C232=5,dati_bdv!$G$2:$G$65536,dati_bdv!$H$2:$H$65536))))),$A232,dati_bdv!L$2:L$65536)","v":0},{"$f":"SUMIF(IF(dati_pdc!$C232=1,dati_bdv!$C$2:$C$65536,IF(dati_pdc!$C232=2,dati_bdv!$D$2:$D$65536,IF(dati_pdc!$C232=3,dati_bdv!$E$2:$E$65536,IF(dati_pdc!$C232=4,dati_bdv!$F$2:$F$65536,IF(dati_pdc!$C232=5,dati_bdv!$G$2:$G$65536,dati_bdv!$H$2:$H$65536))))),$A232,dati_bdv!M$2:M$65536)","v":0},{"$f":"SUMIF(IF(dati_pdc!$C232=1,dati_bdv!$C$2:$C$65536,IF(dati_pdc!$C232=2,dati_bdv!$D$2:$D$65536,IF(dati_pdc!$C232=3,dati_bdv!$E$2:$E$65536,IF(dati_pdc!$C232=4,dati_bdv!$F$2:$F$65536,IF(dati_pdc!$C232=5,dati_bdv!$G$2:$G$65536,dati_bdv!$H$2:$H$65536))))),$A232,dati_bdv!N$2:N$65536)","v":0}]
[{"$f":"dati_pdc!A233","v":0},{"$f":"SUMIF(IF(dati_pdc!$C233=1,dati_bdv!$C$2:$C$65536,IF(dati_pdc!$C233=2,dati_bdv!$D$2:$D$65536,IF(dati_pdc!$C233=3,dati_bdv!$E$2:$E$65536,IF(dati_pdc!$C233=4,dati_bdv!$F$2:$F$65536,IF(dati_pdc!$C233=5,dati_bdv!$G$2:$G$65536,dati_bdv!$H$2:$H$65536))))),$A233,dati_bdv!J$2:J$65536)","v":0},{"$f":"SUMIF(IF(dati_pdc!$C233=1,dati_bdv!$C$2:$C$65536,IF(dati_pdc!$C233=2,dati_bdv!$D$2:$D$65536,IF(dati_pdc!$C233=3,dati_bdv!$E$2:$E$65536,IF(dati_pdc!$C233=4,dati_bdv!$F$2:$F$65536,IF(dati_pdc!$C233=5,dati_bdv!$G$2:$G$65536,dati_bdv!$H$2:$H$65536))))),$A233,dati_bdv!K$2:K$65536)","v":0},{"$f":"SUMIF(IF(dati_pdc!$C233=1,dati_bdv!$C$2:$C$65536,IF(dati_pdc!$C233=2,dati_bdv!$D$2:$D$65536,IF(dati_pdc!$C233=3,dati_bdv!$E$2:$E$65536,IF(dati_pdc!$C233=4,dati_bdv!$F$2:$F$65536,IF(dati_pdc!$C233=5,dati_bdv!$G$2:$G$65536,dati_bdv!$H$2:$H$65536))))),$A233,dati_bdv!L$2:L$65536)","v":0},{"$f":"SUMIF(IF(dati_pdc!$C233=1,dati_bdv!$C$2:$C$65536,IF(dati_pdc!$C233=2,dati_bdv!$D$2:$D$65536,IF(dati_pdc!$C233=3,dati_bdv!$E$2:$E$65536,IF(dati_pdc!$C233=4,dati_bdv!$F$2:$F$65536,IF(dati_pdc!$C233=5,dati_bdv!$G$2:$G$65536,dati_bdv!$H$2:$H$65536))))),$A233,dati_bdv!M$2:M$65536)","v":0},{"$f":"SUMIF(IF(dati_pdc!$C233=1,dati_bdv!$C$2:$C$65536,IF(dati_pdc!$C233=2,dati_bdv!$D$2:$D$65536,IF(dati_pdc!$C233=3,dati_bdv!$E$2:$E$65536,IF(dati_pdc!$C233=4,dati_bdv!$F$2:$F$65536,IF(dati_pdc!$C233=5,dati_bdv!$G$2:$G$65536,dati_bdv!$H$2:$H$65536))))),$A233,dati_bdv!N$2:N$65536)","v":0}]
[{"$f":"dati_pdc!A234","v":0},{"$f":"SUMIF(IF(dati_pdc!$C234=1,dati_bdv!$C$2:$C$65536,IF(dati_pdc!$C234=2,dati_bdv!$D$2:$D$65536,IF(dati_pdc!$C234=3,dati_bdv!$E$2:$E$65536,IF(dati_pdc!$C234=4,dati_bdv!$F$2:$F$65536,IF(dati_pdc!$C234=5,dati_bdv!$G$2:$G$65536,dati_bdv!$H$2:$H$65536))))),$A234,dati_bdv!J$2:J$65536)","v":0},{"$f":"SUMIF(IF(dati_pdc!$C234=1,dati_bdv!$C$2:$C$65536,IF(dati_pdc!$C234=2,dati_bdv!$D$2:$D$65536,IF(dati_pdc!$C234=3,dati_bdv!$E$2:$E$65536,IF(dati_pdc!$C234=4,dati_bdv!$F$2:$F$65536,IF(dati_pdc!$C234=5,dati_bdv!$G$2:$G$65536,dati_bdv!$H$2:$H$65536))))),$A234,dati_bdv!K$2:K$65536)","v":0},{"$f":"SUMIF(IF(dati_pdc!$C234=1,dati_bdv!$C$2:$C$65536,IF(dati_pdc!$C234=2,dati_bdv!$D$2:$D$65536,IF(dati_pdc!$C234=3,dati_bdv!$E$2:$E$65536,IF(dati_pdc!$C234=4,dati_bdv!$F$2:$F$65536,IF(dati_pdc!$C234=5,dati_bdv!$G$2:$G$65536,dati_bdv!$H$2:$H$65536))))),$A234,dati_bdv!L$2:L$65536)","v":0},{"$f":"SUMIF(IF(dati_pdc!$C234=1,dati_bdv!$C$2:$C$65536,IF(dati_pdc!$C234=2,dati_bdv!$D$2:$D$65536,IF(dati_pdc!$C234=3,dati_bdv!$E$2:$E$65536,IF(dati_pdc!$C234=4,dati_bdv!$F$2:$F$65536,IF(dati_pdc!$C234=5,dati_bdv!$G$2:$G$65536,dati_bdv!$H$2:$H$65536))))),$A234,dati_bdv!M$2:M$65536)","v":0},{"$f":"SUMIF(IF(dati_pdc!$C234=1,dati_bdv!$C$2:$C$65536,IF(dati_pdc!$C234=2,dati_bdv!$D$2:$D$65536,IF(dati_pdc!$C234=3,dati_bdv!$E$2:$E$65536,IF(dati_pdc!$C234=4,dati_bdv!$F$2:$F$65536,IF(dati_pdc!$C234=5,dati_bdv!$G$2:$G$65536,dati_bdv!$H$2:$H$65536))))),$A234,dati_bdv!N$2:N$65536)","v":0}]
[{"$f":"dati_pdc!A235","v":0},{"$f":"SUMIF(IF(dati_pdc!$C235=1,dati_bdv!$C$2:$C$65536,IF(dati_pdc!$C235=2,dati_bdv!$D$2:$D$65536,IF(dati_pdc!$C235=3,dati_bdv!$E$2:$E$65536,IF(dati_pdc!$C235=4,dati_bdv!$F$2:$F$65536,IF(dati_pdc!$C235=5,dati_bdv!$G$2:$G$65536,dati_bdv!$H$2:$H$65536))))),$A235,dati_bdv!J$2:J$65536)","v":0},{"$f":"SUMIF(IF(dati_pdc!$C235=1,dati_bdv!$C$2:$C$65536,IF(dati_pdc!$C235=2,dati_bdv!$D$2:$D$65536,IF(dati_pdc!$C235=3,dati_bdv!$E$2:$E$65536,IF(dati_pdc!$C235=4,dati_bdv!$F$2:$F$65536,IF(dati_pdc!$C235=5,dati_bdv!$G$2:$G$65536,dati_bdv!$H$2:$H$65536))))),$A235,dati_bdv!K$2:K$65536)","v":0},{"$f":"SUMIF(IF(dati_pdc!$C235=1,dati_bdv!$C$2:$C$65536,IF(dati_pdc!$C235=2,dati_bdv!$D$2:$D$65536,IF(dati_pdc!$C235=3,dati_bdv!$E$2:$E$65536,IF(dati_pdc!$C235=4,dati_bdv!$F$2:$F$65536,IF(dati_pdc!$C235=5,dati_bdv!$G$2:$G$65536,dati_bdv!$H$2:$H$65536))))),$A235,dati_bdv!L$2:L$65536)","v":0},{"$f":"SUMIF(IF(dati_pdc!$C235=1,dati_bdv!$C$2:$C$65536,IF(dati_pdc!$C235=2,dati_bdv!$D$2:$D$65536,IF(dati_pdc!$C235=3,dati_bdv!$E$2:$E$65536,IF(dati_pdc!$C235=4,dati_bdv!$F$2:$F$65536,IF(dati_pdc!$C235=5,dati_bdv!$G$2:$G$65536,dati_bdv!$H$2:$H$65536))))),$A235,dati_bdv!M$2:M$65536)","v":0},{"$f":"SUMIF(IF(dati_pdc!$C235=1,dati_bdv!$C$2:$C$65536,IF(dati_pdc!$C235=2,dati_bdv!$D$2:$D$65536,IF(dati_pdc!$C235=3,dati_bdv!$E$2:$E$65536,IF(dati_pdc!$C235=4,dati_bdv!$F$2:$F$65536,IF(dati_pdc!$C235=5,dati_bdv!$G$2:$G$65536,dati_bdv!$H$2:$H$65536))))),$A235,dati_bdv!N$2:N$65536)","v":0}]
[{"$f":"dati_pdc!A236","v":0},{"$f":"SUMIF(IF(dati_pdc!$C236=1,dati_bdv!$C$2:$C$65536,IF(dati_pdc!$C236=2,dati_bdv!$D$2:$D$65536,IF(dati_pdc!$C236=3,dati_bdv!$E$2:$E$65536,IF(dati_pdc!$C236=4,dati_bdv!$F$2:$F$65536,IF(dati_pdc!$C236=5,dati_bdv!$G$2:$G$65536,dati_bdv!$H$2:$H$65536))))),$A236,dati_bdv!J$2:J$65536)","v":0},{"$f":"SUMIF(IF(dati_pdc!$C236=1,dati_bdv!$C$2:$C$65536,IF(dati_pdc!$C236=2,dati_bdv!$D$2:$D$65536,IF(dati_pdc!$C236=3,dati_bdv!$E$2:$E$65536,IF(dati_pdc!$C236=4,dati_bdv!$F$2:$F$65536,IF(dati_pdc!$C236=5,dati_bdv!$G$2:$G$65536,dati_bdv!$H$2:$H$65536))))),$A236,dati_bdv!K$2:K$65536)","v":0},{"$f":"SUMIF(IF(dati_pdc!$C236=1,dati_bdv!$C$2:$C$65536,IF(dati_pdc!$C236=2,dati_bdv!$D$2:$D$65536,IF(dati_pdc!$C236=3,dati_bdv!$E$2:$E$65536,IF(dati_pdc!$C236=4,dati_bdv!$F$2:$F$65536,IF(dati_pdc!$C236=5,dati_bdv!$G$2:$G$65536,dati_bdv!$H$2:$H$65536))))),$A236,dati_bdv!L$2:L$65536)","v":0},{"$f":"SUMIF(IF(dati_pdc!$C236=1,dati_bdv!$C$2:$C$65536,IF(dati_pdc!$C236=2,dati_bdv!$D$2:$D$65536,IF(dati_pdc!$C236=3,dati_bdv!$E$2:$E$65536,IF(dati_pdc!$C236=4,dati_bdv!$F$2:$F$65536,IF(dati_pdc!$C236=5,dati_bdv!$G$2:$G$65536,dati_bdv!$H$2:$H$65536))))),$A236,dati_bdv!M$2:M$65536)","v":0},{"$f":"SUMIF(IF(dati_pdc!$C236=1,dati_bdv!$C$2:$C$65536,IF(dati_pdc!$C236=2,dati_bdv!$D$2:$D$65536,IF(dati_pdc!$C236=3,dati_bdv!$E$2:$E$65536,IF(dati_pdc!$C236=4,dati_bdv!$F$2:$F$65536,IF(dati_pdc!$C236=5,dati_bdv!$G$2:$G$65536,dati_bdv!$H$2:$H$65536))))),$A236,dati_bdv!N$2:N$65536)","v":0}]
[{"$f":"dati_pdc!A237","v":0},{"$f":"SUMIF(IF(dati_pdc!$C237=1,dati_bdv!$C$2:$C$65536,IF(dati_pdc!$C237=2,dati_bdv!$D$2:$D$65536,IF(dati_pdc!$C237=3,dati_bdv!$E$2:$E$65536,IF(dati_pdc!$C237=4,dati_bdv!$F$2:$F$65536,IF(dati_pdc!$C237=5,dati_bdv!$G$2:$G$65536,dati_bdv!$H$2:$H$65536))))),$A237,dati_bdv!J$2:J$65536)","v":0},{"$f":"SUMIF(IF(dati_pdc!$C237=1,dati_bdv!$C$2:$C$65536,IF(dati_pdc!$C237=2,dati_bdv!$D$2:$D$65536,IF(dati_pdc!$C237=3,dati_bdv!$E$2:$E$65536,IF(dati_pdc!$C237=4,dati_bdv!$F$2:$F$65536,IF(dati_pdc!$C237=5,dati_bdv!$G$2:$G$65536,dati_bdv!$H$2:$H$65536))))),$A237,dati_bdv!K$2:K$65536)","v":0},{"$f":"SUMIF(IF(dati_pdc!$C237=1,dati_bdv!$C$2:$C$65536,IF(dati_pdc!$C237=2,dati_bdv!$D$2:$D$65536,IF(dati_pdc!$C237=3,dati_bdv!$E$2:$E$65536,IF(dati_pdc!$C237=4,dati_bdv!$F$2:$F$65536,IF(dati_pdc!$C237=5,dati_bdv!$G$2:$G$65536,dati_bdv!$H$2:$H$65536))))),$A237,dati_bdv!L$2:L$65536)","v":0},{"$f":"SUMIF(IF(dati_pdc!$C237=1,dati_bdv!$C$2:$C$65536,IF(dati_pdc!$C237=2,dati_bdv!$D$2:$D$65536,IF(dati_pdc!$C237=3,dati_bdv!$E$2:$E$65536,IF(dati_pdc!$C237=4,dati_bdv!$F$2:$F$65536,IF(dati_pdc!$C237=5,dati_bdv!$G$2:$G$65536,dati_bdv!$H$2:$H$65536))))),$A237,dati_bdv!M$2:M$65536)","v":0},{"$f":"SUMIF(IF(dati_pdc!$C237=1,dati_bdv!$C$2:$C$65536,IF(dati_pdc!$C237=2,dati_bdv!$D$2:$D$65536,IF(dati_pdc!$C237=3,dati_bdv!$E$2:$E$65536,IF(dati_pdc!$C237=4,dati_bdv!$F$2:$F$65536,IF(dati_pdc!$C237=5,dati_bdv!$G$2:$G$65536,dati_bdv!$H$2:$H$65536))))),$A237,dati_bdv!N$2:N$65536)","v":0}]
[{"$f":"dati_pdc!A238","v":0},{"$f":"SUMIF(IF(dati_pdc!$C238=1,dati_bdv!$C$2:$C$65536,IF(dati_pdc!$C238=2,dati_bdv!$D$2:$D$65536,IF(dati_pdc!$C238=3,dati_bdv!$E$2:$E$65536,IF(dati_pdc!$C238=4,dati_bdv!$F$2:$F$65536,IF(dati_pdc!$C238=5,dati_bdv!$G$2:$G$65536,dati_bdv!$H$2:$H$65536))))),$A238,dati_bdv!J$2:J$65536)","v":0},{"$f":"SUMIF(IF(dati_pdc!$C238=1,dati_bdv!$C$2:$C$65536,IF(dati_pdc!$C238=2,dati_bdv!$D$2:$D$65536,IF(dati_pdc!$C238=3,dati_bdv!$E$2:$E$65536,IF(dati_pdc!$C238=4,dati_bdv!$F$2:$F$65536,IF(dati_pdc!$C238=5,dati_bdv!$G$2:$G$65536,dati_bdv!$H$2:$H$65536))))),$A238,dati_bdv!K$2:K$65536)","v":0},{"$f":"SUMIF(IF(dati_pdc!$C238=1,dati_bdv!$C$2:$C$65536,IF(dati_pdc!$C238=2,dati_bdv!$D$2:$D$65536,IF(dati_pdc!$C238=3,dati_bdv!$E$2:$E$65536,IF(dati_pdc!$C238=4,dati_bdv!$F$2:$F$65536,IF(dati_pdc!$C238=5,dati_bdv!$G$2:$G$65536,dati_bdv!$H$2:$H$65536))))),$A238,dati_bdv!L$2:L$65536)","v":0},{"$f":"SUMIF(IF(dati_pdc!$C238=1,dati_bdv!$C$2:$C$65536,IF(dati_pdc!$C238=2,dati_bdv!$D$2:$D$65536,IF(dati_pdc!$C238=3,dati_bdv!$E$2:$E$65536,IF(dati_pdc!$C238=4,dati_bdv!$F$2:$F$65536,IF(dati_pdc!$C238=5,dati_bdv!$G$2:$G$65536,dati_bdv!$H$2:$H$65536))))),$A238,dati_bdv!M$2:M$65536)","v":0},{"$f":"SUMIF(IF(dati_pdc!$C238=1,dati_bdv!$C$2:$C$65536,IF(dati_pdc!$C238=2,dati_bdv!$D$2:$D$65536,IF(dati_pdc!$C238=3,dati_bdv!$E$2:$E$65536,IF(dati_pdc!$C238=4,dati_bdv!$F$2:$F$65536,IF(dati_pdc!$C238=5,dati_bdv!$G$2:$G$65536,dati_bdv!$H$2:$H$65536))))),$A238,dati_bdv!N$2:N$65536)","v":0}]
[{"$f":"dati_pdc!A239","v":0},{"$f":"SUMIF(IF(dati_pdc!$C239=1,dati_bdv!$C$2:$C$65536,IF(dati_pdc!$C239=2,dati_bdv!$D$2:$D$65536,IF(dati_pdc!$C239=3,dati_bdv!$E$2:$E$65536,IF(dati_pdc!$C239=4,dati_bdv!$F$2:$F$65536,IF(dati_pdc!$C239=5,dati_bdv!$G$2:$G$65536,dati_bdv!$H$2:$H$65536))))),$A239,dati_bdv!J$2:J$65536)","v":0},{"$f":"SUMIF(IF(dati_pdc!$C239=1,dati_bdv!$C$2:$C$65536,IF(dati_pdc!$C239=2,dati_bdv!$D$2:$D$65536,IF(dati_pdc!$C239=3,dati_bdv!$E$2:$E$65536,IF(dati_pdc!$C239=4,dati_bdv!$F$2:$F$65536,IF(dati_pdc!$C239=5,dati_bdv!$G$2:$G$65536,dati_bdv!$H$2:$H$65536))))),$A239,dati_bdv!K$2:K$65536)","v":0},{"$f":"SUMIF(IF(dati_pdc!$C239=1,dati_bdv!$C$2:$C$65536,IF(dati_pdc!$C239=2,dati_bdv!$D$2:$D$65536,IF(dati_pdc!$C239=3,dati_bdv!$E$2:$E$65536,IF(dati_pdc!$C239=4,dati_bdv!$F$2:$F$65536,IF(dati_pdc!$C239=5,dati_bdv!$G$2:$G$65536,dati_bdv!$H$2:$H$65536))))),$A239,dati_bdv!L$2:L$65536)","v":0},{"$f":"SUMIF(IF(dati_pdc!$C239=1,dati_bdv!$C$2:$C$65536,IF(dati_pdc!$C239=2,dati_bdv!$D$2:$D$65536,IF(dati_pdc!$C239=3,dati_bdv!$E$2:$E$65536,IF(dati_pdc!$C239=4,dati_bdv!$F$2:$F$65536,IF(dati_pdc!$C239=5,dati_bdv!$G$2:$G$65536,dati_bdv!$H$2:$H$65536))))),$A239,dati_bdv!M$2:M$65536)","v":0},{"$f":"SUMIF(IF(dati_pdc!$C239=1,dati_bdv!$C$2:$C$65536,IF(dati_pdc!$C239=2,dati_bdv!$D$2:$D$65536,IF(dati_pdc!$C239=3,dati_bdv!$E$2:$E$65536,IF(dati_pdc!$C239=4,dati_bdv!$F$2:$F$65536,IF(dati_pdc!$C239=5,dati_bdv!$G$2:$G$65536,dati_bdv!$H$2:$H$65536))))),$A239,dati_bdv!N$2:N$65536)","v":0}]
[{"$f":"dati_pdc!A240","v":0},{"$f":"SUMIF(IF(dati_pdc!$C240=1,dati_bdv!$C$2:$C$65536,IF(dati_pdc!$C240=2,dati_bdv!$D$2:$D$65536,IF(dati_pdc!$C240=3,dati_bdv!$E$2:$E$65536,IF(dati_pdc!$C240=4,dati_bdv!$F$2:$F$65536,IF(dati_pdc!$C240=5,dati_bdv!$G$2:$G$65536,dati_bdv!$H$2:$H$65536))))),$A240,dati_bdv!J$2:J$65536)","v":0},{"$f":"SUMIF(IF(dati_pdc!$C240=1,dati_bdv!$C$2:$C$65536,IF(dati_pdc!$C240=2,dati_bdv!$D$2:$D$65536,IF(dati_pdc!$C240=3,dati_bdv!$E$2:$E$65536,IF(dati_pdc!$C240=4,dati_bdv!$F$2:$F$65536,IF(dati_pdc!$C240=5,dati_bdv!$G$2:$G$65536,dati_bdv!$H$2:$H$65536))))),$A240,dati_bdv!K$2:K$65536)","v":0},{"$f":"SUMIF(IF(dati_pdc!$C240=1,dati_bdv!$C$2:$C$65536,IF(dati_pdc!$C240=2,dati_bdv!$D$2:$D$65536,IF(dati_pdc!$C240=3,dati_bdv!$E$2:$E$65536,IF(dati_pdc!$C240=4,dati_bdv!$F$2:$F$65536,IF(dati_pdc!$C240=5,dati_bdv!$G$2:$G$65536,dati_bdv!$H$2:$H$65536))))),$A240,dati_bdv!L$2:L$65536)","v":0},{"$f":"SUMIF(IF(dati_pdc!$C240=1,dati_bdv!$C$2:$C$65536,IF(dati_pdc!$C240=2,dati_bdv!$D$2:$D$65536,IF(dati_pdc!$C240=3,dati_bdv!$E$2:$E$65536,IF(dati_pdc!$C240=4,dati_bdv!$F$2:$F$65536,IF(dati_pdc!$C240=5,dati_bdv!$G$2:$G$65536,dati_bdv!$H$2:$H$65536))))),$A240,dati_bdv!M$2:M$65536)","v":0},{"$f":"SUMIF(IF(dati_pdc!$C240=1,dati_bdv!$C$2:$C$65536,IF(dati_pdc!$C240=2,dati_bdv!$D$2:$D$65536,IF(dati_pdc!$C240=3,dati_bdv!$E$2:$E$65536,IF(dati_pdc!$C240=4,dati_bdv!$F$2:$F$65536,IF(dati_pdc!$C240=5,dati_bdv!$G$2:$G$65536,dati_bdv!$H$2:$H$65536))))),$A240,dati_bdv!N$2:N$65536)","v":0}]
[{"$f":"dati_pdc!A241","v":0},{"$f":"SUMIF(IF(dati_pdc!$C241=1,dati_bdv!$C$2:$C$65536,IF(dati_pdc!$C241=2,dati_bdv!$D$2:$D$65536,IF(dati_pdc!$C241=3,dati_bdv!$E$2:$E$65536,IF(dati_pdc!$C241=4,dati_bdv!$F$2:$F$65536,IF(dati_pdc!$C241=5,dati_bdv!$G$2:$G$65536,dati_bdv!$H$2:$H$65536))))),$A241,dati_bdv!J$2:J$65536)","v":0},{"$f":"SUMIF(IF(dati_pdc!$C241=1,dati_bdv!$C$2:$C$65536,IF(dati_pdc!$C241=2,dati_bdv!$D$2:$D$65536,IF(dati_pdc!$C241=3,dati_bdv!$E$2:$E$65536,IF(dati_pdc!$C241=4,dati_bdv!$F$2:$F$65536,IF(dati_pdc!$C241=5,dati_bdv!$G$2:$G$65536,dati_bdv!$H$2:$H$65536))))),$A241,dati_bdv!K$2:K$65536)","v":0},{"$f":"SUMIF(IF(dati_pdc!$C241=1,dati_bdv!$C$2:$C$65536,IF(dati_pdc!$C241=2,dati_bdv!$D$2:$D$65536,IF(dati_pdc!$C241=3,dati_bdv!$E$2:$E$65536,IF(dati_pdc!$C241=4,dati_bdv!$F$2:$F$65536,IF(dati_pdc!$C241=5,dati_bdv!$G$2:$G$65536,dati_bdv!$H$2:$H$65536))))),$A241,dati_bdv!L$2:L$65536)","v":0},{"$f":"SUMIF(IF(dati_pdc!$C241=1,dati_bdv!$C$2:$C$65536,IF(dati_pdc!$C241=2,dati_bdv!$D$2:$D$65536,IF(dati_pdc!$C241=3,dati_bdv!$E$2:$E$65536,IF(dati_pdc!$C241=4,dati_bdv!$F$2:$F$65536,IF(dati_pdc!$C241=5,dati_bdv!$G$2:$G$65536,dati_bdv!$H$2:$H$65536))))),$A241,dati_bdv!M$2:M$65536)","v":0},{"$f":"SUMIF(IF(dati_pdc!$C241=1,dati_bdv!$C$2:$C$65536,IF(dati_pdc!$C241=2,dati_bdv!$D$2:$D$65536,IF(dati_pdc!$C241=3,dati_bdv!$E$2:$E$65536,IF(dati_pdc!$C241=4,dati_bdv!$F$2:$F$65536,IF(dati_pdc!$C241=5,dati_bdv!$G$2:$G$65536,dati_bdv!$H$2:$H$65536))))),$A241,dati_bdv!N$2:N$65536)","v":0}]
[{"$f":"dati_pdc!A242","v":0},{"$f":"SUMIF(IF(dati_pdc!$C242=1,dati_bdv!$C$2:$C$65536,IF(dati_pdc!$C242=2,dati_bdv!$D$2:$D$65536,IF(dati_pdc!$C242=3,dati_bdv!$E$2:$E$65536,IF(dati_pdc!$C242=4,dati_bdv!$F$2:$F$65536,IF(dati_pdc!$C242=5,dati_bdv!$G$2:$G$65536,dati_bdv!$H$2:$H$65536))))),$A242,dati_bdv!J$2:J$65536)","v":0},{"$f":"SUMIF(IF(dati_pdc!$C242=1,dati_bdv!$C$2:$C$65536,IF(dati_pdc!$C242=2,dati_bdv!$D$2:$D$65536,IF(dati_pdc!$C242=3,dati_bdv!$E$2:$E$65536,IF(dati_pdc!$C242=4,dati_bdv!$F$2:$F$65536,IF(dati_pdc!$C242=5,dati_bdv!$G$2:$G$65536,dati_bdv!$H$2:$H$65536))))),$A242,dati_bdv!K$2:K$65536)","v":0},{"$f":"SUMIF(IF(dati_pdc!$C242=1,dati_bdv!$C$2:$C$65536,IF(dati_pdc!$C242=2,dati_bdv!$D$2:$D$65536,IF(dati_pdc!$C242=3,dati_bdv!$E$2:$E$65536,IF(dati_pdc!$C242=4,dati_bdv!$F$2:$F$65536,IF(dati_pdc!$C242=5,dati_bdv!$G$2:$G$65536,dati_bdv!$H$2:$H$65536))))),$A242,dati_bdv!L$2:L$65536)","v":0},{"$f":"SUMIF(IF(dati_pdc!$C242=1,dati_bdv!$C$2:$C$65536,IF(dati_pdc!$C242=2,dati_bdv!$D$2:$D$65536,IF(dati_pdc!$C242=3,dati_bdv!$E$2:$E$65536,IF(dati_pdc!$C242=4,dati_bdv!$F$2:$F$65536,IF(dati_pdc!$C242=5,dati_bdv!$G$2:$G$65536,dati_bdv!$H$2:$H$65536))))),$A242,dati_bdv!M$2:M$65536)","v":0},{"$f":"SUMIF(IF(dati_pdc!$C242=1,dati_bdv!$C$2:$C$65536,IF(dati_pdc!$C242=2,dati_bdv!$D$2:$D$65536,IF(dati_pdc!$C242=3,dati_bdv!$E$2:$E$65536,IF(dati_pdc!$C242=4,dati_bdv!$F$2:$F$65536,IF(dati_pdc!$C242=5,dati_bdv!$G$2:$G$65536,dati_bdv!$H$2:$H$65536))))),$A242,dati_bdv!N$2:N$65536)","v":0}]
[{"$f":"dati_pdc!A243","v":0},{"$f":"SUMIF(IF(dati_pdc!$C243=1,dati_bdv!$C$2:$C$65536,IF(dati_pdc!$C243=2,dati_bdv!$D$2:$D$65536,IF(dati_pdc!$C243=3,dati_bdv!$E$2:$E$65536,IF(dati_pdc!$C243=4,dati_bdv!$F$2:$F$65536,IF(dati_pdc!$C243=5,dati_bdv!$G$2:$G$65536,dati_bdv!$H$2:$H$65536))))),$A243,dati_bdv!J$2:J$65536)","v":0},{"$f":"SUMIF(IF(dati_pdc!$C243=1,dati_bdv!$C$2:$C$65536,IF(dati_pdc!$C243=2,dati_bdv!$D$2:$D$65536,IF(dati_pdc!$C243=3,dati_bdv!$E$2:$E$65536,IF(dati_pdc!$C243=4,dati_bdv!$F$2:$F$65536,IF(dati_pdc!$C243=5,dati_bdv!$G$2:$G$65536,dati_bdv!$H$2:$H$65536))))),$A243,dati_bdv!K$2:K$65536)","v":0},{"$f":"SUMIF(IF(dati_pdc!$C243=1,dati_bdv!$C$2:$C$65536,IF(dati_pdc!$C243=2,dati_bdv!$D$2:$D$65536,IF(dati_pdc!$C243=3,dati_bdv!$E$2:$E$65536,IF(dati_pdc!$C243=4,dati_bdv!$F$2:$F$65536,IF(dati_pdc!$C243=5,dati_bdv!$G$2:$G$65536,dati_bdv!$H$2:$H$65536))))),$A243,dati_bdv!L$2:L$65536)","v":0},{"$f":"SUMIF(IF(dati_pdc!$C243=1,dati_bdv!$C$2:$C$65536,IF(dati_pdc!$C243=2,dati_bdv!$D$2:$D$65536,IF(dati_pdc!$C243=3,dati_bdv!$E$2:$E$65536,IF(dati_pdc!$C243=4,dati_bdv!$F$2:$F$65536,IF(dati_pdc!$C243=5,dati_bdv!$G$2:$G$65536,dati_bdv!$H$2:$H$65536))))),$A243,dati_bdv!M$2:M$65536)","v":0},{"$f":"SUMIF(IF(dati_pdc!$C243=1,dati_bdv!$C$2:$C$65536,IF(dati_pdc!$C243=2,dati_bdv!$D$2:$D$65536,IF(dati_pdc!$C243=3,dati_bdv!$E$2:$E$65536,IF(dati_pdc!$C243=4,dati_bdv!$F$2:$F$65536,IF(dati_pdc!$C243=5,dati_bdv!$G$2:$G$65536,dati_bdv!$H$2:$H$65536))))),$A243,dati_bdv!N$2:N$65536)","v":0}]
[{"$f":"dati_pdc!A244","v":0},{"$f":"SUMIF(IF(dati_pdc!$C244=1,dati_bdv!$C$2:$C$65536,IF(dati_pdc!$C244=2,dati_bdv!$D$2:$D$65536,IF(dati_pdc!$C244=3,dati_bdv!$E$2:$E$65536,IF(dati_pdc!$C244=4,dati_bdv!$F$2:$F$65536,IF(dati_pdc!$C244=5,dati_bdv!$G$2:$G$65536,dati_bdv!$H$2:$H$65536))))),$A244,dati_bdv!J$2:J$65536)","v":0},{"$f":"SUMIF(IF(dati_pdc!$C244=1,dati_bdv!$C$2:$C$65536,IF(dati_pdc!$C244=2,dati_bdv!$D$2:$D$65536,IF(dati_pdc!$C244=3,dati_bdv!$E$2:$E$65536,IF(dati_pdc!$C244=4,dati_bdv!$F$2:$F$65536,IF(dati_pdc!$C244=5,dati_bdv!$G$2:$G$65536,dati_bdv!$H$2:$H$65536))))),$A244,dati_bdv!K$2:K$65536)","v":0},{"$f":"SUMIF(IF(dati_pdc!$C244=1,dati_bdv!$C$2:$C$65536,IF(dati_pdc!$C244=2,dati_bdv!$D$2:$D$65536,IF(dati_pdc!$C244=3,dati_bdv!$E$2:$E$65536,IF(dati_pdc!$C244=4,dati_bdv!$F$2:$F$65536,IF(dati_pdc!$C244=5,dati_bdv!$G$2:$G$65536,dati_bdv!$H$2:$H$65536))))),$A244,dati_bdv!L$2:L$65536)","v":0},{"$f":"SUMIF(IF(dati_pdc!$C244=1,dati_bdv!$C$2:$C$65536,IF(dati_pdc!$C244=2,dati_bdv!$D$2:$D$65536,IF(dati_pdc!$C244=3,dati_bdv!$E$2:$E$65536,IF(dati_pdc!$C244=4,dati_bdv!$F$2:$F$65536,IF(dati_pdc!$C244=5,dati_bdv!$G$2:$G$65536,dati_bdv!$H$2:$H$65536))))),$A244,dati_bdv!M$2:M$65536)","v":0},{"$f":"SUMIF(IF(dati_pdc!$C244=1,dati_bdv!$C$2:$C$65536,IF(dati_pdc!$C244=2,dati_bdv!$D$2:$D$65536,IF(dati_pdc!$C244=3,dati_bdv!$E$2:$E$65536,IF(dati_pdc!$C244=4,dati_bdv!$F$2:$F$65536,IF(dati_pdc!$C244=5,dati_bdv!$G$2:$G$65536,dati_bdv!$H$2:$H$65536))))),$A244,dati_bdv!N$2:N$65536)","v":0}]
[{"$f":"dati_pdc!A245","v":0},{"$f":"SUMIF(IF(dati_pdc!$C245=1,dati_bdv!$C$2:$C$65536,IF(dati_pdc!$C245=2,dati_bdv!$D$2:$D$65536,IF(dati_pdc!$C245=3,dati_bdv!$E$2:$E$65536,IF(dati_pdc!$C245=4,dati_bdv!$F$2:$F$65536,IF(dati_pdc!$C245=5,dati_bdv!$G$2:$G$65536,dati_bdv!$H$2:$H$65536))))),$A245,dati_bdv!J$2:J$65536)","v":0},{"$f":"SUMIF(IF(dati_pdc!$C245=1,dati_bdv!$C$2:$C$65536,IF(dati_pdc!$C245=2,dati_bdv!$D$2:$D$65536,IF(dati_pdc!$C245=3,dati_bdv!$E$2:$E$65536,IF(dati_pdc!$C245=4,dati_bdv!$F$2:$F$65536,IF(dati_pdc!$C245=5,dati_bdv!$G$2:$G$65536,dati_bdv!$H$2:$H$65536))))),$A245,dati_bdv!K$2:K$65536)","v":0},{"$f":"SUMIF(IF(dati_pdc!$C245=1,dati_bdv!$C$2:$C$65536,IF(dati_pdc!$C245=2,dati_bdv!$D$2:$D$65536,IF(dati_pdc!$C245=3,dati_bdv!$E$2:$E$65536,IF(dati_pdc!$C245=4,dati_bdv!$F$2:$F$65536,IF(dati_pdc!$C245=5,dati_bdv!$G$2:$G$65536,dati_bdv!$H$2:$H$65536))))),$A245,dati_bdv!L$2:L$65536)","v":0},{"$f":"SUMIF(IF(dati_pdc!$C245=1,dati_bdv!$C$2:$C$65536,IF(dati_pdc!$C245=2,dati_bdv!$D$2:$D$65536,IF(dati_pdc!$C245=3,dati_bdv!$E$2:$E$65536,IF(dati_pdc!$C245=4,dati_bdv!$F$2:$F$65536,IF(dati_pdc!$C245=5,dati_bdv!$G$2:$G$65536,dati_bdv!$H$2:$H$65536))))),$A245,dati_bdv!M$2:M$65536)","v":0},{"$f":"SUMIF(IF(dati_pdc!$C245=1,dati_bdv!$C$2:$C$65536,IF(dati_pdc!$C245=2,dati_bdv!$D$2:$D$65536,IF(dati_pdc!$C245=3,dati_bdv!$E$2:$E$65536,IF(dati_pdc!$C245=4,dati_bdv!$F$2:$F$65536,IF(dati_pdc!$C245=5,dati_bdv!$G$2:$G$65536,dati_bdv!$H$2:$H$65536))))),$A245,dati_bdv!N$2:N$65536)","v":0}]
[{"$f":"dati_pdc!A246","v":0},{"$f":"SUMIF(IF(dati_pdc!$C246=1,dati_bdv!$C$2:$C$65536,IF(dati_pdc!$C246=2,dati_bdv!$D$2:$D$65536,IF(dati_pdc!$C246=3,dati_bdv!$E$2:$E$65536,IF(dati_pdc!$C246=4,dati_bdv!$F$2:$F$65536,IF(dati_pdc!$C246=5,dati_bdv!$G$2:$G$65536,dati_bdv!$H$2:$H$65536))))),$A246,dati_bdv!J$2:J$65536)","v":0},{"$f":"SUMIF(IF(dati_pdc!$C246=1,dati_bdv!$C$2:$C$65536,IF(dati_pdc!$C246=2,dati_bdv!$D$2:$D$65536,IF(dati_pdc!$C246=3,dati_bdv!$E$2:$E$65536,IF(dati_pdc!$C246=4,dati_bdv!$F$2:$F$65536,IF(dati_pdc!$C246=5,dati_bdv!$G$2:$G$65536,dati_bdv!$H$2:$H$65536))))),$A246,dati_bdv!K$2:K$65536)","v":0},{"$f":"SUMIF(IF(dati_pdc!$C246=1,dati_bdv!$C$2:$C$65536,IF(dati_pdc!$C246=2,dati_bdv!$D$2:$D$65536,IF(dati_pdc!$C246=3,dati_bdv!$E$2:$E$65536,IF(dati_pdc!$C246=4,dati_bdv!$F$2:$F$65536,IF(dati_pdc!$C246=5,dati_bdv!$G$2:$G$65536,dati_bdv!$H$2:$H$65536))))),$A246,dati_bdv!L$2:L$65536)","v":0},{"$f":"SUMIF(IF(dati_pdc!$C246=1,dati_bdv!$C$2:$C$65536,IF(dati_pdc!$C246=2,dati_bdv!$D$2:$D$65536,IF(dati_pdc!$C246=3,dati_bdv!$E$2:$E$65536,IF(dati_pdc!$C246=4,dati_bdv!$F$2:$F$65536,IF(dati_pdc!$C246=5,dati_bdv!$G$2:$G$65536,dati_bdv!$H$2:$H$65536))))),$A246,dati_bdv!M$2:M$65536)","v":0},{"$f":"SUMIF(IF(dati_pdc!$C246=1,dati_bdv!$C$2:$C$65536,IF(dati_pdc!$C246=2,dati_bdv!$D$2:$D$65536,IF(dati_pdc!$C246=3,dati_bdv!$E$2:$E$65536,IF(dati_pdc!$C246=4,dati_bdv!$F$2:$F$65536,IF(dati_pdc!$C246=5,dati_bdv!$G$2:$G$65536,dati_bdv!$H$2:$H$65536))))),$A246,dati_bdv!N$2:N$65536)","v":0}]
[{"$f":"dati_pdc!A247","v":0},{"$f":"SUMIF(IF(dati_pdc!$C247=1,dati_bdv!$C$2:$C$65536,IF(dati_pdc!$C247=2,dati_bdv!$D$2:$D$65536,IF(dati_pdc!$C247=3,dati_bdv!$E$2:$E$65536,IF(dati_pdc!$C247=4,dati_bdv!$F$2:$F$65536,IF(dati_pdc!$C247=5,dati_bdv!$G$2:$G$65536,dati_bdv!$H$2:$H$65536))))),$A247,dati_bdv!J$2:J$65536)","v":0},{"$f":"SUMIF(IF(dati_pdc!$C247=1,dati_bdv!$C$2:$C$65536,IF(dati_pdc!$C247=2,dati_bdv!$D$2:$D$65536,IF(dati_pdc!$C247=3,dati_bdv!$E$2:$E$65536,IF(dati_pdc!$C247=4,dati_bdv!$F$2:$F$65536,IF(dati_pdc!$C247=5,dati_bdv!$G$2:$G$65536,dati_bdv!$H$2:$H$65536))))),$A247,dati_bdv!K$2:K$65536)","v":0},{"$f":"SUMIF(IF(dati_pdc!$C247=1,dati_bdv!$C$2:$C$65536,IF(dati_pdc!$C247=2,dati_bdv!$D$2:$D$65536,IF(dati_pdc!$C247=3,dati_bdv!$E$2:$E$65536,IF(dati_pdc!$C247=4,dati_bdv!$F$2:$F$65536,IF(dati_pdc!$C247=5,dati_bdv!$G$2:$G$65536,dati_bdv!$H$2:$H$65536))))),$A247,dati_bdv!L$2:L$65536)","v":0},{"$f":"SUMIF(IF(dati_pdc!$C247=1,dati_bdv!$C$2:$C$65536,IF(dati_pdc!$C247=2,dati_bdv!$D$2:$D$65536,IF(dati_pdc!$C247=3,dati_bdv!$E$2:$E$65536,IF(dati_pdc!$C247=4,dati_bdv!$F$2:$F$65536,IF(dati_pdc!$C247=5,dati_bdv!$G$2:$G$65536,dati_bdv!$H$2:$H$65536))))),$A247,dati_bdv!M$2:M$65536)","v":0},{"$f":"SUMIF(IF(dati_pdc!$C247=1,dati_bdv!$C$2:$C$65536,IF(dati_pdc!$C247=2,dati_bdv!$D$2:$D$65536,IF(dati_pdc!$C247=3,dati_bdv!$E$2:$E$65536,IF(dati_pdc!$C247=4,dati_bdv!$F$2:$F$65536,IF(dati_pdc!$C247=5,dati_bdv!$G$2:$G$65536,dati_bdv!$H$2:$H$65536))))),$A247,dati_bdv!N$2:N$65536)","v":0}]
[{"$f":"dati_pdc!A248","v":0},{"$f":"SUMIF(IF(dati_pdc!$C248=1,dati_bdv!$C$2:$C$65536,IF(dati_pdc!$C248=2,dati_bdv!$D$2:$D$65536,IF(dati_pdc!$C248=3,dati_bdv!$E$2:$E$65536,IF(dati_pdc!$C248=4,dati_bdv!$F$2:$F$65536,IF(dati_pdc!$C248=5,dati_bdv!$G$2:$G$65536,dati_bdv!$H$2:$H$65536))))),$A248,dati_bdv!J$2:J$65536)","v":0},{"$f":"SUMIF(IF(dati_pdc!$C248=1,dati_bdv!$C$2:$C$65536,IF(dati_pdc!$C248=2,dati_bdv!$D$2:$D$65536,IF(dati_pdc!$C248=3,dati_bdv!$E$2:$E$65536,IF(dati_pdc!$C248=4,dati_bdv!$F$2:$F$65536,IF(dati_pdc!$C248=5,dati_bdv!$G$2:$G$65536,dati_bdv!$H$2:$H$65536))))),$A248,dati_bdv!K$2:K$65536)","v":0},{"$f":"SUMIF(IF(dati_pdc!$C248=1,dati_bdv!$C$2:$C$65536,IF(dati_pdc!$C248=2,dati_bdv!$D$2:$D$65536,IF(dati_pdc!$C248=3,dati_bdv!$E$2:$E$65536,IF(dati_pdc!$C248=4,dati_bdv!$F$2:$F$65536,IF(dati_pdc!$C248=5,dati_bdv!$G$2:$G$65536,dati_bdv!$H$2:$H$65536))))),$A248,dati_bdv!L$2:L$65536)","v":0},{"$f":"SUMIF(IF(dati_pdc!$C248=1,dati_bdv!$C$2:$C$65536,IF(dati_pdc!$C248=2,dati_bdv!$D$2:$D$65536,IF(dati_pdc!$C248=3,dati_bdv!$E$2:$E$65536,IF(dati_pdc!$C248=4,dati_bdv!$F$2:$F$65536,IF(dati_pdc!$C248=5,dati_bdv!$G$2:$G$65536,dati_bdv!$H$2:$H$65536))))),$A248,dati_bdv!M$2:M$65536)","v":0},{"$f":"SUMIF(IF(dati_pdc!$C248=1,dati_bdv!$C$2:$C$65536,IF(dati_pdc!$C248=2,dati_bdv!$D$2:$D$65536,IF(dati_pdc!$C248=3,dati_bdv!$E$2:$E$65536,IF(dati_pdc!$C248=4,dati_bdv!$F$2:$F$65536,IF(dati_pdc!$C248=5,dati_bdv!$G$2:$G$65536,dati_bdv!$H$2:$H$65536))))),$A248,dati_bdv!N$2:N$65536)","v":0}]
[{"$f":"dati_pdc!A249","v":0},{"$f":"SUMIF(IF(dati_pdc!$C249=1,dati_bdv!$C$2:$C$65536,IF(dati_pdc!$C249=2,dati_bdv!$D$2:$D$65536,IF(dati_pdc!$C249=3,dati_bdv!$E$2:$E$65536,IF(dati_pdc!$C249=4,dati_bdv!$F$2:$F$65536,IF(dati_pdc!$C249=5,dati_bdv!$G$2:$G$65536,dati_bdv!$H$2:$H$65536))))),$A249,dati_bdv!J$2:J$65536)","v":0},{"$f":"SUMIF(IF(dati_pdc!$C249=1,dati_bdv!$C$2:$C$65536,IF(dati_pdc!$C249=2,dati_bdv!$D$2:$D$65536,IF(dati_pdc!$C249=3,dati_bdv!$E$2:$E$65536,IF(dati_pdc!$C249=4,dati_bdv!$F$2:$F$65536,IF(dati_pdc!$C249=5,dati_bdv!$G$2:$G$65536,dati_bdv!$H$2:$H$65536))))),$A249,dati_bdv!K$2:K$65536)","v":0},{"$f":"SUMIF(IF(dati_pdc!$C249=1,dati_bdv!$C$2:$C$65536,IF(dati_pdc!$C249=2,dati_bdv!$D$2:$D$65536,IF(dati_pdc!$C249=3,dati_bdv!$E$2:$E$65536,IF(dati_pdc!$C249=4,dati_bdv!$F$2:$F$65536,IF(dati_pdc!$C249=5,dati_bdv!$G$2:$G$65536,dati_bdv!$H$2:$H$65536))))),$A249,dati_bdv!L$2:L$65536)","v":0},{"$f":"SUMIF(IF(dati_pdc!$C249=1,dati_bdv!$C$2:$C$65536,IF(dati_pdc!$C249=2,dati_bdv!$D$2:$D$65536,IF(dati_pdc!$C249=3,dati_bdv!$E$2:$E$65536,IF(dati_pdc!$C249=4,dati_bdv!$F$2:$F$65536,IF(dati_pdc!$C249=5,dati_bdv!$G$2:$G$65536,dati_bdv!$H$2:$H$65536))))),$A249,dati_bdv!M$2:M$65536)","v":0},{"$f":"SUMIF(IF(dati_pdc!$C249=1,dati_bdv!$C$2:$C$65536,IF(dati_pdc!$C249=2,dati_bdv!$D$2:$D$65536,IF(dati_pdc!$C249=3,dati_bdv!$E$2:$E$65536,IF(dati_pdc!$C249=4,dati_bdv!$F$2:$F$65536,IF(dati_pdc!$C249=5,dati_bdv!$G$2:$G$65536,dati_bdv!$H$2:$H$65536))))),$A249,dati_bdv!N$2:N$65536)","v":0}]
[{"$f":"dati_pdc!A250","v":0},{"$f":"SUMIF(IF(dati_pdc!$C250=1,dati_bdv!$C$2:$C$65536,IF(dati_pdc!$C250=2,dati_bdv!$D$2:$D$65536,IF(dati_pdc!$C250=3,dati_bdv!$E$2:$E$65536,IF(dati_pdc!$C250=4,dati_bdv!$F$2:$F$65536,IF(dati_pdc!$C250=5,dati_bdv!$G$2:$G$65536,dati_bdv!$H$2:$H$65536))))),$A250,dati_bdv!J$2:J$65536)","v":0},{"$f":"SUMIF(IF(dati_pdc!$C250=1,dati_bdv!$C$2:$C$65536,IF(dati_pdc!$C250=2,dati_bdv!$D$2:$D$65536,IF(dati_pdc!$C250=3,dati_bdv!$E$2:$E$65536,IF(dati_pdc!$C250=4,dati_bdv!$F$2:$F$65536,IF(dati_pdc!$C250=5,dati_bdv!$G$2:$G$65536,dati_bdv!$H$2:$H$65536))))),$A250,dati_bdv!K$2:K$65536)","v":0},{"$f":"SUMIF(IF(dati_pdc!$C250=1,dati_bdv!$C$2:$C$65536,IF(dati_pdc!$C250=2,dati_bdv!$D$2:$D$65536,IF(dati_pdc!$C250=3,dati_bdv!$E$2:$E$65536,IF(dati_pdc!$C250=4,dati_bdv!$F$2:$F$65536,IF(dati_pdc!$C250=5,dati_bdv!$G$2:$G$65536,dati_bdv!$H$2:$H$65536))))),$A250,dati_bdv!L$2:L$65536)","v":0},{"$f":"SUMIF(IF(dati_pdc!$C250=1,dati_bdv!$C$2:$C$65536,IF(dati_pdc!$C250=2,dati_bdv!$D$2:$D$65536,IF(dati_pdc!$C250=3,dati_bdv!$E$2:$E$65536,IF(dati_pdc!$C250=4,dati_bdv!$F$2:$F$65536,IF(dati_pdc!$C250=5,dati_bdv!$G$2:$G$65536,dati_bdv!$H$2:$H$65536))))),$A250,dati_bdv!M$2:M$65536)","v":0},{"$f":"SUMIF(IF(dati_pdc!$C250=1,dati_bdv!$C$2:$C$65536,IF(dati_pdc!$C250=2,dati_bdv!$D$2:$D$65536,IF(dati_pdc!$C250=3,dati_bdv!$E$2:$E$65536,IF(dati_pdc!$C250=4,dati_bdv!$F$2:$F$65536,IF(dati_pdc!$C250=5,dati_bdv!$G$2:$G$65536,dati_bdv!$H$2:$H$65536))))),$A250,dati_bdv!N$2:N$65536)","v":0}]
[{"$f":"dati_pdc!A251","v":0},{"$f":"SUMIF(IF(dati_pdc!$C251=1,dati_bdv!$C$2:$C$65536,IF(dati_pdc!$C251=2,dati_bdv!$D$2:$D$65536,IF(dati_pdc!$C251=3,dati_bdv!$E$2:$E$65536,IF(dati_pdc!$C251=4,dati_bdv!$F$2:$F$65536,IF(dati_pdc!$C251=5,dati_bdv!$G$2:$G$65536,dati_bdv!$H$2:$H$65536))))),$A251,dati_bdv!J$2:J$65536)","v":0},{"$f":"SUMIF(IF(dati_pdc!$C251=1,dati_bdv!$C$2:$C$65536,IF(dati_pdc!$C251=2,dati_bdv!$D$2:$D$65536,IF(dati_pdc!$C251=3,dati_bdv!$E$2:$E$65536,IF(dati_pdc!$C251=4,dati_bdv!$F$2:$F$65536,IF(dati_pdc!$C251=5,dati_bdv!$G$2:$G$65536,dati_bdv!$H$2:$H$65536))))),$A251,dati_bdv!K$2:K$65536)","v":0},{"$f":"SUMIF(IF(dati_pdc!$C251=1,dati_bdv!$C$2:$C$65536,IF(dati_pdc!$C251=2,dati_bdv!$D$2:$D$65536,IF(dati_pdc!$C251=3,dati_bdv!$E$2:$E$65536,IF(dati_pdc!$C251=4,dati_bdv!$F$2:$F$65536,IF(dati_pdc!$C251=5,dati_bdv!$G$2:$G$65536,dati_bdv!$H$2:$H$65536))))),$A251,dati_bdv!L$2:L$65536)","v":0},{"$f":"SUMIF(IF(dati_pdc!$C251=1,dati_bdv!$C$2:$C$65536,IF(dati_pdc!$C251=2,dati_bdv!$D$2:$D$65536,IF(dati_pdc!$C251=3,dati_bdv!$E$2:$E$65536,IF(dati_pdc!$C251=4,dati_bdv!$F$2:$F$65536,IF(dati_pdc!$C251=5,dati_bdv!$G$2:$G$65536,dati_bdv!$H$2:$H$65536))))),$A251,dati_bdv!M$2:M$65536)","v":0},{"$f":"SUMIF(IF(dati_pdc!$C251=1,dati_bdv!$C$2:$C$65536,IF(dati_pdc!$C251=2,dati_bdv!$D$2:$D$65536,IF(dati_pdc!$C251=3,dati_bdv!$E$2:$E$65536,IF(dati_pdc!$C251=4,dati_bdv!$F$2:$F$65536,IF(dati_pdc!$C251=5,dati_bdv!$G$2:$G$65536,dati_bdv!$H$2:$H$65536))))),$A251,dati_bdv!N$2:N$65536)","v":0}]
[{"$f":"dati_pdc!A252","v":0},{"$f":"SUMIF(IF(dati_pdc!$C252=1,dati_bdv!$C$2:$C$65536,IF(dati_pdc!$C252=2,dati_bdv!$D$2:$D$65536,IF(dati_pdc!$C252=3,dati_bdv!$E$2:$E$65536,IF(dati_pdc!$C252=4,dati_bdv!$F$2:$F$65536,IF(dati_pdc!$C252=5,dati_bdv!$G$2:$G$65536,dati_bdv!$H$2:$H$65536))))),$A252,dati_bdv!J$2:J$65536)","v":0},{"$f":"SUMIF(IF(dati_pdc!$C252=1,dati_bdv!$C$2:$C$65536,IF(dati_pdc!$C252=2,dati_bdv!$D$2:$D$65536,IF(dati_pdc!$C252=3,dati_bdv!$E$2:$E$65536,IF(dati_pdc!$C252=4,dati_bdv!$F$2:$F$65536,IF(dati_pdc!$C252=5,dati_bdv!$G$2:$G$65536,dati_bdv!$H$2:$H$65536))))),$A252,dati_bdv!K$2:K$65536)","v":0},{"$f":"SUMIF(IF(dati_pdc!$C252=1,dati_bdv!$C$2:$C$65536,IF(dati_pdc!$C252=2,dati_bdv!$D$2:$D$65536,IF(dati_pdc!$C252=3,dati_bdv!$E$2:$E$65536,IF(dati_pdc!$C252=4,dati_bdv!$F$2:$F$65536,IF(dati_pdc!$C252=5,dati_bdv!$G$2:$G$65536,dati_bdv!$H$2:$H$65536))))),$A252,dati_bdv!L$2:L$65536)","v":0},{"$f":"SUMIF(IF(dati_pdc!$C252=1,dati_bdv!$C$2:$C$65536,IF(dati_pdc!$C252=2,dati_bdv!$D$2:$D$65536,IF(dati_pdc!$C252=3,dati_bdv!$E$2:$E$65536,IF(dati_pdc!$C252=4,dati_bdv!$F$2:$F$65536,IF(dati_pdc!$C252=5,dati_bdv!$G$2:$G$65536,dati_bdv!$H$2:$H$65536))))),$A252,dati_bdv!M$2:M$65536)","v":0},{"$f":"SUMIF(IF(dati_pdc!$C252=1,dati_bdv!$C$2:$C$65536,IF(dati_pdc!$C252=2,dati_bdv!$D$2:$D$65536,IF(dati_pdc!$C252=3,dati_bdv!$E$2:$E$65536,IF(dati_pdc!$C252=4,dati_bdv!$F$2:$F$65536,IF(dati_pdc!$C252=5,dati_bdv!$G$2:$G$65536,dati_bdv!$H$2:$H$65536))))),$A252,dati_bdv!N$2:N$65536)","v":0}]
[{"$f":"dati_pdc!A253","v":0},{"$f":"SUMIF(IF(dati_pdc!$C253=1,dati_bdv!$C$2:$C$65536,IF(dati_pdc!$C253=2,dati_bdv!$D$2:$D$65536,IF(dati_pdc!$C253=3,dati_bdv!$E$2:$E$65536,IF(dati_pdc!$C253=4,dati_bdv!$F$2:$F$65536,IF(dati_pdc!$C253=5,dati_bdv!$G$2:$G$65536,dati_bdv!$H$2:$H$65536))))),$A253,dati_bdv!J$2:J$65536)","v":0},{"$f":"SUMIF(IF(dati_pdc!$C253=1,dati_bdv!$C$2:$C$65536,IF(dati_pdc!$C253=2,dati_bdv!$D$2:$D$65536,IF(dati_pdc!$C253=3,dati_bdv!$E$2:$E$65536,IF(dati_pdc!$C253=4,dati_bdv!$F$2:$F$65536,IF(dati_pdc!$C253=5,dati_bdv!$G$2:$G$65536,dati_bdv!$H$2:$H$65536))))),$A253,dati_bdv!K$2:K$65536)","v":0},{"$f":"SUMIF(IF(dati_pdc!$C253=1,dati_bdv!$C$2:$C$65536,IF(dati_pdc!$C253=2,dati_bdv!$D$2:$D$65536,IF(dati_pdc!$C253=3,dati_bdv!$E$2:$E$65536,IF(dati_pdc!$C253=4,dati_bdv!$F$2:$F$65536,IF(dati_pdc!$C253=5,dati_bdv!$G$2:$G$65536,dati_bdv!$H$2:$H$65536))))),$A253,dati_bdv!L$2:L$65536)","v":0},{"$f":"SUMIF(IF(dati_pdc!$C253=1,dati_bdv!$C$2:$C$65536,IF(dati_pdc!$C253=2,dati_bdv!$D$2:$D$65536,IF(dati_pdc!$C253=3,dati_bdv!$E$2:$E$65536,IF(dati_pdc!$C253=4,dati_bdv!$F$2:$F$65536,IF(dati_pdc!$C253=5,dati_bdv!$G$2:$G$65536,dati_bdv!$H$2:$H$65536))))),$A253,dati_bdv!M$2:M$65536)","v":0},{"$f":"SUMIF(IF(dati_pdc!$C253=1,dati_bdv!$C$2:$C$65536,IF(dati_pdc!$C253=2,dati_bdv!$D$2:$D$65536,IF(dati_pdc!$C253=3,dati_bdv!$E$2:$E$65536,IF(dati_pdc!$C253=4,dati_bdv!$F$2:$F$65536,IF(dati_pdc!$C253=5,dati_bdv!$G$2:$G$65536,dati_bdv!$H$2:$H$65536))))),$A253,dati_bdv!N$2:N$65536)","v":0}]
[{"$f":"dati_pdc!A254","v":0},{"$f":"SUMIF(IF(dati_pdc!$C254=1,dati_bdv!$C$2:$C$65536,IF(dati_pdc!$C254=2,dati_bdv!$D$2:$D$65536,IF(dati_pdc!$C254=3,dati_bdv!$E$2:$E$65536,IF(dati_pdc!$C254=4,dati_bdv!$F$2:$F$65536,IF(dati_pdc!$C254=5,dati_bdv!$G$2:$G$65536,dati_bdv!$H$2:$H$65536))))),$A254,dati_bdv!J$2:J$65536)","v":0},{"$f":"SUMIF(IF(dati_pdc!$C254=1,dati_bdv!$C$2:$C$65536,IF(dati_pdc!$C254=2,dati_bdv!$D$2:$D$65536,IF(dati_pdc!$C254=3,dati_bdv!$E$2:$E$65536,IF(dati_pdc!$C254=4,dati_bdv!$F$2:$F$65536,IF(dati_pdc!$C254=5,dati_bdv!$G$2:$G$65536,dati_bdv!$H$2:$H$65536))))),$A254,dati_bdv!K$2:K$65536)","v":0},{"$f":"SUMIF(IF(dati_pdc!$C254=1,dati_bdv!$C$2:$C$65536,IF(dati_pdc!$C254=2,dati_bdv!$D$2:$D$65536,IF(dati_pdc!$C254=3,dati_bdv!$E$2:$E$65536,IF(dati_pdc!$C254=4,dati_bdv!$F$2:$F$65536,IF(dati_pdc!$C254=5,dati_bdv!$G$2:$G$65536,dati_bdv!$H$2:$H$65536))))),$A254,dati_bdv!L$2:L$65536)","v":0},{"$f":"SUMIF(IF(dati_pdc!$C254=1,dati_bdv!$C$2:$C$65536,IF(dati_pdc!$C254=2,dati_bdv!$D$2:$D$65536,IF(dati_pdc!$C254=3,dati_bdv!$E$2:$E$65536,IF(dati_pdc!$C254=4,dati_bdv!$F$2:$F$65536,IF(dati_pdc!$C254=5,dati_bdv!$G$2:$G$65536,dati_bdv!$H$2:$H$65536))))),$A254,dati_bdv!M$2:M$65536)","v":0},{"$f":"SUMIF(IF(dati_pdc!$C254=1,dati_bdv!$C$2:$C$65536,IF(dati_pdc!$C254=2,dati_bdv!$D$2:$D$65536,IF(dati_pdc!$C254=3,dati_bdv!$E$2:$E$65536,IF(dati_pdc!$C254=4,dati_bdv!$F$2:$F$65536,IF(dati_pdc!$C254=5,dati_bdv!$G$2:$G$65536,dati_bdv!$H$2:$H$65536))))),$A254,dati_bdv!N$2:N$65536)","v":0}]
[{"$f":"dati_pdc!A255","v":0},{"$f":"SUMIF(IF(dati_pdc!$C255=1,dati_bdv!$C$2:$C$65536,IF(dati_pdc!$C255=2,dati_bdv!$D$2:$D$65536,IF(dati_pdc!$C255=3,dati_bdv!$E$2:$E$65536,IF(dati_pdc!$C255=4,dati_bdv!$F$2:$F$65536,IF(dati_pdc!$C255=5,dati_bdv!$G$2:$G$65536,dati_bdv!$H$2:$H$65536))))),$A255,dati_bdv!J$2:J$65536)","v":0},{"$f":"SUMIF(IF(dati_pdc!$C255=1,dati_bdv!$C$2:$C$65536,IF(dati_pdc!$C255=2,dati_bdv!$D$2:$D$65536,IF(dati_pdc!$C255=3,dati_bdv!$E$2:$E$65536,IF(dati_pdc!$C255=4,dati_bdv!$F$2:$F$65536,IF(dati_pdc!$C255=5,dati_bdv!$G$2:$G$65536,dati_bdv!$H$2:$H$65536))))),$A255,dati_bdv!K$2:K$65536)","v":0},{"$f":"SUMIF(IF(dati_pdc!$C255=1,dati_bdv!$C$2:$C$65536,IF(dati_pdc!$C255=2,dati_bdv!$D$2:$D$65536,IF(dati_pdc!$C255=3,dati_bdv!$E$2:$E$65536,IF(dati_pdc!$C255=4,dati_bdv!$F$2:$F$65536,IF(dati_pdc!$C255=5,dati_bdv!$G$2:$G$65536,dati_bdv!$H$2:$H$65536))))),$A255,dati_bdv!L$2:L$65536)","v":0},{"$f":"SUMIF(IF(dati_pdc!$C255=1,dati_bdv!$C$2:$C$65536,IF(dati_pdc!$C255=2,dati_bdv!$D$2:$D$65536,IF(dati_pdc!$C255=3,dati_bdv!$E$2:$E$65536,IF(dati_pdc!$C255=4,dati_bdv!$F$2:$F$65536,IF(dati_pdc!$C255=5,dati_bdv!$G$2:$G$65536,dati_bdv!$H$2:$H$65536))))),$A255,dati_bdv!M$2:M$65536)","v":0},{"$f":"SUMIF(IF(dati_pdc!$C255=1,dati_bdv!$C$2:$C$65536,IF(dati_pdc!$C255=2,dati_bdv!$D$2:$D$65536,IF(dati_pdc!$C255=3,dati_bdv!$E$2:$E$65536,IF(dati_pdc!$C255=4,dati_bdv!$F$2:$F$65536,IF(dati_pdc!$C255=5,dati_bdv!$G$2:$G$65536,dati_bdv!$H$2:$H$65536))))),$A255,dati_bdv!N$2:N$65536)","v":0}]
[{"$f":"dati_pdc!A256","v":0},{"$f":"SUMIF(IF(dati_pdc!$C256=1,dati_bdv!$C$2:$C$65536,IF(dati_pdc!$C256=2,dati_bdv!$D$2:$D$65536,IF(dati_pdc!$C256=3,dati_bdv!$E$2:$E$65536,IF(dati_pdc!$C256=4,dati_bdv!$F$2:$F$65536,IF(dati_pdc!$C256=5,dati_bdv!$G$2:$G$65536,dati_bdv!$H$2:$H$65536))))),$A256,dati_bdv!J$2:J$65536)","v":0},{"$f":"SUMIF(IF(dati_pdc!$C256=1,dati_bdv!$C$2:$C$65536,IF(dati_pdc!$C256=2,dati_bdv!$D$2:$D$65536,IF(dati_pdc!$C256=3,dati_bdv!$E$2:$E$65536,IF(dati_pdc!$C256=4,dati_bdv!$F$2:$F$65536,IF(dati_pdc!$C256=5,dati_bdv!$G$2:$G$65536,dati_bdv!$H$2:$H$65536))))),$A256,dati_bdv!K$2:K$65536)","v":0},{"$f":"SUMIF(IF(dati_pdc!$C256=1,dati_bdv!$C$2:$C$65536,IF(dati_pdc!$C256=2,dati_bdv!$D$2:$D$65536,IF(dati_pdc!$C256=3,dati_bdv!$E$2:$E$65536,IF(dati_pdc!$C256=4,dati_bdv!$F$2:$F$65536,IF(dati_pdc!$C256=5,dati_bdv!$G$2:$G$65536,dati_bdv!$H$2:$H$65536))))),$A256,dati_bdv!L$2:L$65536)","v":0},{"$f":"SUMIF(IF(dati_pdc!$C256=1,dati_bdv!$C$2:$C$65536,IF(dati_pdc!$C256=2,dati_bdv!$D$2:$D$65536,IF(dati_pdc!$C256=3,dati_bdv!$E$2:$E$65536,IF(dati_pdc!$C256=4,dati_bdv!$F$2:$F$65536,IF(dati_pdc!$C256=5,dati_bdv!$G$2:$G$65536,dati_bdv!$H$2:$H$65536))))),$A256,dati_bdv!M$2:M$65536)","v":0},{"$f":"SUMIF(IF(dati_pdc!$C256=1,dati_bdv!$C$2:$C$65536,IF(dati_pdc!$C256=2,dati_bdv!$D$2:$D$65536,IF(dati_pdc!$C256=3,dati_bdv!$E$2:$E$65536,IF(dati_pdc!$C256=4,dati_bdv!$F$2:$F$65536,IF(dati_pdc!$C256=5,dati_bdv!$G$2:$G$65536,dati_bdv!$H$2:$H$65536))))),$A256,dati_bdv!N$2:N$65536)","v":0}]
[{"$f":"dati_pdc!A257","v":0},{"$f":"SUMIF(IF(dati_pdc!$C257=1,dati_bdv!$C$2:$C$65536,IF(dati_pdc!$C257=2,dati_bdv!$D$2:$D$65536,IF(dati_pdc!$C257=3,dati_bdv!$E$2:$E$65536,IF(dati_pdc!$C257=4,dati_bdv!$F$2:$F$65536,IF(dati_pdc!$C257=5,dati_bdv!$G$2:$G$65536,dati_bdv!$H$2:$H$65536))))),$A257,dati_bdv!J$2:J$65536)","v":0},{"$f":"SUMIF(IF(dati_pdc!$C257=1,dati_bdv!$C$2:$C$65536,IF(dati_pdc!$C257=2,dati_bdv!$D$2:$D$65536,IF(dati_pdc!$C257=3,dati_bdv!$E$2:$E$65536,IF(dati_pdc!$C257=4,dati_bdv!$F$2:$F$65536,IF(dati_pdc!$C257=5,dati_bdv!$G$2:$G$65536,dati_bdv!$H$2:$H$65536))))),$A257,dati_bdv!K$2:K$65536)","v":0},{"$f":"SUMIF(IF(dati_pdc!$C257=1,dati_bdv!$C$2:$C$65536,IF(dati_pdc!$C257=2,dati_bdv!$D$2:$D$65536,IF(dati_pdc!$C257=3,dati_bdv!$E$2:$E$65536,IF(dati_pdc!$C257=4,dati_bdv!$F$2:$F$65536,IF(dati_pdc!$C257=5,dati_bdv!$G$2:$G$65536,dati_bdv!$H$2:$H$65536))))),$A257,dati_bdv!L$2:L$65536)","v":0},{"$f":"SUMIF(IF(dati_pdc!$C257=1,dati_bdv!$C$2:$C$65536,IF(dati_pdc!$C257=2,dati_bdv!$D$2:$D$65536,IF(dati_pdc!$C257=3,dati_bdv!$E$2:$E$65536,IF(dati_pdc!$C257=4,dati_bdv!$F$2:$F$65536,IF(dati_pdc!$C257=5,dati_bdv!$G$2:$G$65536,dati_bdv!$H$2:$H$65536))))),$A257,dati_bdv!M$2:M$65536)","v":0},{"$f":"SUMIF(IF(dati_pdc!$C257=1,dati_bdv!$C$2:$C$65536,IF(dati_pdc!$C257=2,dati_bdv!$D$2:$D$65536,IF(dati_pdc!$C257=3,dati_bdv!$E$2:$E$65536,IF(dati_pdc!$C257=4,dati_bdv!$F$2:$F$65536,IF(dati_pdc!$C257=5,dati_bdv!$G$2:$G$65536,dati_bdv!$H$2:$H$65536))))),$A257,dati_bdv!N$2:N$65536)","v":0}]
[{"$f":"dati_pdc!A258","v":0},{"$f":"SUMIF(IF(dati_pdc!$C258=1,dati_bdv!$C$2:$C$65536,IF(dati_pdc!$C258=2,dati_bdv!$D$2:$D$65536,IF(dati_pdc!$C258=3,dati_bdv!$E$2:$E$65536,IF(dati_pdc!$C258=4,dati_bdv!$F$2:$F$65536,IF(dati_pdc!$C258=5,dati_bdv!$G$2:$G$65536,dati_bdv!$H$2:$H$65536))))),$A258,dati_bdv!J$2:J$65536)","v":0},{"$f":"SUMIF(IF(dati_pdc!$C258=1,dati_bdv!$C$2:$C$65536,IF(dati_pdc!$C258=2,dati_bdv!$D$2:$D$65536,IF(dati_pdc!$C258=3,dati_bdv!$E$2:$E$65536,IF(dati_pdc!$C258=4,dati_bdv!$F$2:$F$65536,IF(dati_pdc!$C258=5,dati_bdv!$G$2:$G$65536,dati_bdv!$H$2:$H$65536))))),$A258,dati_bdv!K$2:K$65536)","v":0},{"$f":"SUMIF(IF(dati_pdc!$C258=1,dati_bdv!$C$2:$C$65536,IF(dati_pdc!$C258=2,dati_bdv!$D$2:$D$65536,IF(dati_pdc!$C258=3,dati_bdv!$E$2:$E$65536,IF(dati_pdc!$C258=4,dati_bdv!$F$2:$F$65536,IF(dati_pdc!$C258=5,dati_bdv!$G$2:$G$65536,dati_bdv!$H$2:$H$65536))))),$A258,dati_bdv!L$2:L$65536)","v":0},{"$f":"SUMIF(IF(dati_pdc!$C258=1,dati_bdv!$C$2:$C$65536,IF(dati_pdc!$C258=2,dati_bdv!$D$2:$D$65536,IF(dati_pdc!$C258=3,dati_bdv!$E$2:$E$65536,IF(dati_pdc!$C258=4,dati_bdv!$F$2:$F$65536,IF(dati_pdc!$C258=5,dati_bdv!$G$2:$G$65536,dati_bdv!$H$2:$H$65536))))),$A258,dati_bdv!M$2:M$65536)","v":0},{"$f":"SUMIF(IF(dati_pdc!$C258=1,dati_bdv!$C$2:$C$65536,IF(dati_pdc!$C258=2,dati_bdv!$D$2:$D$65536,IF(dati_pdc!$C258=3,dati_bdv!$E$2:$E$65536,IF(dati_pdc!$C258=4,dati_bdv!$F$2:$F$65536,IF(dati_pdc!$C258=5,dati_bdv!$G$2:$G$65536,dati_bdv!$H$2:$H$65536))))),$A258,dati_bdv!N$2:N$65536)","v":0}]
[{"$f":"dati_pdc!A259","v":0},{"$f":"SUMIF(IF(dati_pdc!$C259=1,dati_bdv!$C$2:$C$65536,IF(dati_pdc!$C259=2,dati_bdv!$D$2:$D$65536,IF(dati_pdc!$C259=3,dati_bdv!$E$2:$E$65536,IF(dati_pdc!$C259=4,dati_bdv!$F$2:$F$65536,IF(dati_pdc!$C259=5,dati_bdv!$G$2:$G$65536,dati_bdv!$H$2:$H$65536))))),$A259,dati_bdv!J$2:J$65536)","v":0},{"$f":"SUMIF(IF(dati_pdc!$C259=1,dati_bdv!$C$2:$C$65536,IF(dati_pdc!$C259=2,dati_bdv!$D$2:$D$65536,IF(dati_pdc!$C259=3,dati_bdv!$E$2:$E$65536,IF(dati_pdc!$C259=4,dati_bdv!$F$2:$F$65536,IF(dati_pdc!$C259=5,dati_bdv!$G$2:$G$65536,dati_bdv!$H$2:$H$65536))))),$A259,dati_bdv!K$2:K$65536)","v":0},{"$f":"SUMIF(IF(dati_pdc!$C259=1,dati_bdv!$C$2:$C$65536,IF(dati_pdc!$C259=2,dati_bdv!$D$2:$D$65536,IF(dati_pdc!$C259=3,dati_bdv!$E$2:$E$65536,IF(dati_pdc!$C259=4,dati_bdv!$F$2:$F$65536,IF(dati_pdc!$C259=5,dati_bdv!$G$2:$G$65536,dati_bdv!$H$2:$H$65536))))),$A259,dati_bdv!L$2:L$65536)","v":0},{"$f":"SUMIF(IF(dati_pdc!$C259=1,dati_bdv!$C$2:$C$65536,IF(dati_pdc!$C259=2,dati_bdv!$D$2:$D$65536,IF(dati_pdc!$C259=3,dati_bdv!$E$2:$E$65536,IF(dati_pdc!$C259=4,dati_bdv!$F$2:$F$65536,IF(dati_pdc!$C259=5,dati_bdv!$G$2:$G$65536,dati_bdv!$H$2:$H$65536))))),$A259,dati_bdv!M$2:M$65536)","v":0},{"$f":"SUMIF(IF(dati_pdc!$C259=1,dati_bdv!$C$2:$C$65536,IF(dati_pdc!$C259=2,dati_bdv!$D$2:$D$65536,IF(dati_pdc!$C259=3,dati_bdv!$E$2:$E$65536,IF(dati_pdc!$C259=4,dati_bdv!$F$2:$F$65536,IF(dati_pdc!$C259=5,dati_bdv!$G$2:$G$65536,dati_bdv!$H$2:$H$65536))))),$A259,dati_bdv!N$2:N$65536)","v":0}]
[{"$f":"dati_pdc!A260","v":0},{"$f":"SUMIF(IF(dati_pdc!$C260=1,dati_bdv!$C$2:$C$65536,IF(dati_pdc!$C260=2,dati_bdv!$D$2:$D$65536,IF(dati_pdc!$C260=3,dati_bdv!$E$2:$E$65536,IF(dati_pdc!$C260=4,dati_bdv!$F$2:$F$65536,IF(dati_pdc!$C260=5,dati_bdv!$G$2:$G$65536,dati_bdv!$H$2:$H$65536))))),$A260,dati_bdv!J$2:J$65536)","v":0},{"$f":"SUMIF(IF(dati_pdc!$C260=1,dati_bdv!$C$2:$C$65536,IF(dati_pdc!$C260=2,dati_bdv!$D$2:$D$65536,IF(dati_pdc!$C260=3,dati_bdv!$E$2:$E$65536,IF(dati_pdc!$C260=4,dati_bdv!$F$2:$F$65536,IF(dati_pdc!$C260=5,dati_bdv!$G$2:$G$65536,dati_bdv!$H$2:$H$65536))))),$A260,dati_bdv!K$2:K$65536)","v":0},{"$f":"SUMIF(IF(dati_pdc!$C260=1,dati_bdv!$C$2:$C$65536,IF(dati_pdc!$C260=2,dati_bdv!$D$2:$D$65536,IF(dati_pdc!$C260=3,dati_bdv!$E$2:$E$65536,IF(dati_pdc!$C260=4,dati_bdv!$F$2:$F$65536,IF(dati_pdc!$C260=5,dati_bdv!$G$2:$G$65536,dati_bdv!$H$2:$H$65536))))),$A260,dati_bdv!L$2:L$65536)","v":0},{"$f":"SUMIF(IF(dati_pdc!$C260=1,dati_bdv!$C$2:$C$65536,IF(dati_pdc!$C260=2,dati_bdv!$D$2:$D$65536,IF(dati_pdc!$C260=3,dati_bdv!$E$2:$E$65536,IF(dati_pdc!$C260=4,dati_bdv!$F$2:$F$65536,IF(dati_pdc!$C260=5,dati_bdv!$G$2:$G$65536,dati_bdv!$H$2:$H$65536))))),$A260,dati_bdv!M$2:M$65536)","v":0},{"$f":"SUMIF(IF(dati_pdc!$C260=1,dati_bdv!$C$2:$C$65536,IF(dati_pdc!$C260=2,dati_bdv!$D$2:$D$65536,IF(dati_pdc!$C260=3,dati_bdv!$E$2:$E$65536,IF(dati_pdc!$C260=4,dati_bdv!$F$2:$F$65536,IF(dati_pdc!$C260=5,dati_bdv!$G$2:$G$65536,dati_bdv!$H$2:$H$65536))))),$A260,dati_bdv!N$2:N$65536)","v":0}]
[{"$f":"dati_pdc!A261","v":0},{"$f":"SUMIF(IF(dati_pdc!$C261=1,dati_bdv!$C$2:$C$65536,IF(dati_pdc!$C261=2,dati_bdv!$D$2:$D$65536,IF(dati_pdc!$C261=3,dati_bdv!$E$2:$E$65536,IF(dati_pdc!$C261=4,dati_bdv!$F$2:$F$65536,IF(dati_pdc!$C261=5,dati_bdv!$G$2:$G$65536,dati_bdv!$H$2:$H$65536))))),$A261,dati_bdv!J$2:J$65536)","v":0},{"$f":"SUMIF(IF(dati_pdc!$C261=1,dati_bdv!$C$2:$C$65536,IF(dati_pdc!$C261=2,dati_bdv!$D$2:$D$65536,IF(dati_pdc!$C261=3,dati_bdv!$E$2:$E$65536,IF(dati_pdc!$C261=4,dati_bdv!$F$2:$F$65536,IF(dati_pdc!$C261=5,dati_bdv!$G$2:$G$65536,dati_bdv!$H$2:$H$65536))))),$A261,dati_bdv!K$2:K$65536)","v":0},{"$f":"SUMIF(IF(dati_pdc!$C261=1,dati_bdv!$C$2:$C$65536,IF(dati_pdc!$C261=2,dati_bdv!$D$2:$D$65536,IF(dati_pdc!$C261=3,dati_bdv!$E$2:$E$65536,IF(dati_pdc!$C261=4,dati_bdv!$F$2:$F$65536,IF(dati_pdc!$C261=5,dati_bdv!$G$2:$G$65536,dati_bdv!$H$2:$H$65536))))),$A261,dati_bdv!L$2:L$65536)","v":0},{"$f":"SUMIF(IF(dati_pdc!$C261=1,dati_bdv!$C$2:$C$65536,IF(dati_pdc!$C261=2,dati_bdv!$D$2:$D$65536,IF(dati_pdc!$C261=3,dati_bdv!$E$2:$E$65536,IF(dati_pdc!$C261=4,dati_bdv!$F$2:$F$65536,IF(dati_pdc!$C261=5,dati_bdv!$G$2:$G$65536,dati_bdv!$H$2:$H$65536))))),$A261,dati_bdv!M$2:M$65536)","v":0},{"$f":"SUMIF(IF(dati_pdc!$C261=1,dati_bdv!$C$2:$C$65536,IF(dati_pdc!$C261=2,dati_bdv!$D$2:$D$65536,IF(dati_pdc!$C261=3,dati_bdv!$E$2:$E$65536,IF(dati_pdc!$C261=4,dati_bdv!$F$2:$F$65536,IF(dati_pdc!$C261=5,dati_bdv!$G$2:$G$65536,dati_bdv!$H$2:$H$65536))))),$A261,dati_bdv!N$2:N$65536)","v":0}]
[{"$f":"dati_pdc!A262","v":0},{"$f":"SUMIF(IF(dati_pdc!$C262=1,dati_bdv!$C$2:$C$65536,IF(dati_pdc!$C262=2,dati_bdv!$D$2:$D$65536,IF(dati_pdc!$C262=3,dati_bdv!$E$2:$E$65536,IF(dati_pdc!$C262=4,dati_bdv!$F$2:$F$65536,IF(dati_pdc!$C262=5,dati_bdv!$G$2:$G$65536,dati_bdv!$H$2:$H$65536))))),$A262,dati_bdv!J$2:J$65536)","v":0},{"$f":"SUMIF(IF(dati_pdc!$C262=1,dati_bdv!$C$2:$C$65536,IF(dati_pdc!$C262=2,dati_bdv!$D$2:$D$65536,IF(dati_pdc!$C262=3,dati_bdv!$E$2:$E$65536,IF(dati_pdc!$C262=4,dati_bdv!$F$2:$F$65536,IF(dati_pdc!$C262=5,dati_bdv!$G$2:$G$65536,dati_bdv!$H$2:$H$65536))))),$A262,dati_bdv!K$2:K$65536)","v":0},{"$f":"SUMIF(IF(dati_pdc!$C262=1,dati_bdv!$C$2:$C$65536,IF(dati_pdc!$C262=2,dati_bdv!$D$2:$D$65536,IF(dati_pdc!$C262=3,dati_bdv!$E$2:$E$65536,IF(dati_pdc!$C262=4,dati_bdv!$F$2:$F$65536,IF(dati_pdc!$C262=5,dati_bdv!$G$2:$G$65536,dati_bdv!$H$2:$H$65536))))),$A262,dati_bdv!L$2:L$65536)","v":0},{"$f":"SUMIF(IF(dati_pdc!$C262=1,dati_bdv!$C$2:$C$65536,IF(dati_pdc!$C262=2,dati_bdv!$D$2:$D$65536,IF(dati_pdc!$C262=3,dati_bdv!$E$2:$E$65536,IF(dati_pdc!$C262=4,dati_bdv!$F$2:$F$65536,IF(dati_pdc!$C262=5,dati_bdv!$G$2:$G$65536,dati_bdv!$H$2:$H$65536))))),$A262,dati_bdv!M$2:M$65536)","v":0},{"$f":"SUMIF(IF(dati_pdc!$C262=1,dati_bdv!$C$2:$C$65536,IF(dati_pdc!$C262=2,dati_bdv!$D$2:$D$65536,IF(dati_pdc!$C262=3,dati_bdv!$E$2:$E$65536,IF(dati_pdc!$C262=4,dati_bdv!$F$2:$F$65536,IF(dati_pdc!$C262=5,dati_bdv!$G$2:$G$65536,dati_bdv!$H$2:$H$65536))))),$A262,dati_bdv!N$2:N$65536)","v":0}]
[{"$f":"dati_pdc!A263","v":0},{"$f":"SUMIF(IF(dati_pdc!$C263=1,dati_bdv!$C$2:$C$65536,IF(dati_pdc!$C263=2,dati_bdv!$D$2:$D$65536,IF(dati_pdc!$C263=3,dati_bdv!$E$2:$E$65536,IF(dati_pdc!$C263=4,dati_bdv!$F$2:$F$65536,IF(dati_pdc!$C263=5,dati_bdv!$G$2:$G$65536,dati_bdv!$H$2:$H$65536))))),$A263,dati_bdv!J$2:J$65536)","v":0},{"$f":"SUMIF(IF(dati_pdc!$C263=1,dati_bdv!$C$2:$C$65536,IF(dati_pdc!$C263=2,dati_bdv!$D$2:$D$65536,IF(dati_pdc!$C263=3,dati_bdv!$E$2:$E$65536,IF(dati_pdc!$C263=4,dati_bdv!$F$2:$F$65536,IF(dati_pdc!$C263=5,dati_bdv!$G$2:$G$65536,dati_bdv!$H$2:$H$65536))))),$A263,dati_bdv!K$2:K$65536)","v":0},{"$f":"SUMIF(IF(dati_pdc!$C263=1,dati_bdv!$C$2:$C$65536,IF(dati_pdc!$C263=2,dati_bdv!$D$2:$D$65536,IF(dati_pdc!$C263=3,dati_bdv!$E$2:$E$65536,IF(dati_pdc!$C263=4,dati_bdv!$F$2:$F$65536,IF(dati_pdc!$C263=5,dati_bdv!$G$2:$G$65536,dati_bdv!$H$2:$H$65536))))),$A263,dati_bdv!L$2:L$65536)","v":0},{"$f":"SUMIF(IF(dati_pdc!$C263=1,dati_bdv!$C$2:$C$65536,IF(dati_pdc!$C263=2,dati_bdv!$D$2:$D$65536,IF(dati_pdc!$C263=3,dati_bdv!$E$2:$E$65536,IF(dati_pdc!$C263=4,dati_bdv!$F$2:$F$65536,IF(dati_pdc!$C263=5,dati_bdv!$G$2:$G$65536,dati_bdv!$H$2:$H$65536))))),$A263,dati_bdv!M$2:M$65536)","v":0},{"$f":"SUMIF(IF(dati_pdc!$C263=1,dati_bdv!$C$2:$C$65536,IF(dati_pdc!$C263=2,dati_bdv!$D$2:$D$65536,IF(dati_pdc!$C263=3,dati_bdv!$E$2:$E$65536,IF(dati_pdc!$C263=4,dati_bdv!$F$2:$F$65536,IF(dati_pdc!$C263=5,dati_bdv!$G$2:$G$65536,dati_bdv!$H$2:$H$65536))))),$A263,dati_bdv!N$2:N$65536)","v":0}]
[{"$f":"dati_pdc!A264","v":0},{"$f":"SUMIF(IF(dati_pdc!$C264=1,dati_bdv!$C$2:$C$65536,IF(dati_pdc!$C264=2,dati_bdv!$D$2:$D$65536,IF(dati_pdc!$C264=3,dati_bdv!$E$2:$E$65536,IF(dati_pdc!$C264=4,dati_bdv!$F$2:$F$65536,IF(dati_pdc!$C264=5,dati_bdv!$G$2:$G$65536,dati_bdv!$H$2:$H$65536))))),$A264,dati_bdv!J$2:J$65536)","v":0},{"$f":"SUMIF(IF(dati_pdc!$C264=1,dati_bdv!$C$2:$C$65536,IF(dati_pdc!$C264=2,dati_bdv!$D$2:$D$65536,IF(dati_pdc!$C264=3,dati_bdv!$E$2:$E$65536,IF(dati_pdc!$C264=4,dati_bdv!$F$2:$F$65536,IF(dati_pdc!$C264=5,dati_bdv!$G$2:$G$65536,dati_bdv!$H$2:$H$65536))))),$A264,dati_bdv!K$2:K$65536)","v":0},{"$f":"SUMIF(IF(dati_pdc!$C264=1,dati_bdv!$C$2:$C$65536,IF(dati_pdc!$C264=2,dati_bdv!$D$2:$D$65536,IF(dati_pdc!$C264=3,dati_bdv!$E$2:$E$65536,IF(dati_pdc!$C264=4,dati_bdv!$F$2:$F$65536,IF(dati_pdc!$C264=5,dati_bdv!$G$2:$G$65536,dati_bdv!$H$2:$H$65536))))),$A264,dati_bdv!L$2:L$65536)","v":0},{"$f":"SUMIF(IF(dati_pdc!$C264=1,dati_bdv!$C$2:$C$65536,IF(dati_pdc!$C264=2,dati_bdv!$D$2:$D$65536,IF(dati_pdc!$C264=3,dati_bdv!$E$2:$E$65536,IF(dati_pdc!$C264=4,dati_bdv!$F$2:$F$65536,IF(dati_pdc!$C264=5,dati_bdv!$G$2:$G$65536,dati_bdv!$H$2:$H$65536))))),$A264,dati_bdv!M$2:M$65536)","v":0},{"$f":"SUMIF(IF(dati_pdc!$C264=1,dati_bdv!$C$2:$C$65536,IF(dati_pdc!$C264=2,dati_bdv!$D$2:$D$65536,IF(dati_pdc!$C264=3,dati_bdv!$E$2:$E$65536,IF(dati_pdc!$C264=4,dati_bdv!$F$2:$F$65536,IF(dati_pdc!$C264=5,dati_bdv!$G$2:$G$65536,dati_bdv!$H$2:$H$65536))))),$A264,dati_bdv!N$2:N$65536)","v":0}]
[{"$f":"dati_pdc!A265","v":0},{"$f":"SUMIF(IF(dati_pdc!$C265=1,dati_bdv!$C$2:$C$65536,IF(dati_pdc!$C265=2,dati_bdv!$D$2:$D$65536,IF(dati_pdc!$C265=3,dati_bdv!$E$2:$E$65536,IF(dati_pdc!$C265=4,dati_bdv!$F$2:$F$65536,IF(dati_pdc!$C265=5,dati_bdv!$G$2:$G$65536,dati_bdv!$H$2:$H$65536))))),$A265,dati_bdv!J$2:J$65536)","v":0},{"$f":"SUMIF(IF(dati_pdc!$C265=1,dati_bdv!$C$2:$C$65536,IF(dati_pdc!$C265=2,dati_bdv!$D$2:$D$65536,IF(dati_pdc!$C265=3,dati_bdv!$E$2:$E$65536,IF(dati_pdc!$C265=4,dati_bdv!$F$2:$F$65536,IF(dati_pdc!$C265=5,dati_bdv!$G$2:$G$65536,dati_bdv!$H$2:$H$65536))))),$A265,dati_bdv!K$2:K$65536)","v":0},{"$f":"SUMIF(IF(dati_pdc!$C265=1,dati_bdv!$C$2:$C$65536,IF(dati_pdc!$C265=2,dati_bdv!$D$2:$D$65536,IF(dati_pdc!$C265=3,dati_bdv!$E$2:$E$65536,IF(dati_pdc!$C265=4,dati_bdv!$F$2:$F$65536,IF(dati_pdc!$C265=5,dati_bdv!$G$2:$G$65536,dati_bdv!$H$2:$H$65536))))),$A265,dati_bdv!L$2:L$65536)","v":0},{"$f":"SUMIF(IF(dati_pdc!$C265=1,dati_bdv!$C$2:$C$65536,IF(dati_pdc!$C265=2,dati_bdv!$D$2:$D$65536,IF(dati_pdc!$C265=3,dati_bdv!$E$2:$E$65536,IF(dati_pdc!$C265=4,dati_bdv!$F$2:$F$65536,IF(dati_pdc!$C265=5,dati_bdv!$G$2:$G$65536,dati_bdv!$H$2:$H$65536))))),$A265,dati_bdv!M$2:M$65536)","v":0},{"$f":"SUMIF(IF(dati_pdc!$C265=1,dati_bdv!$C$2:$C$65536,IF(dati_pdc!$C265=2,dati_bdv!$D$2:$D$65536,IF(dati_pdc!$C265=3,dati_bdv!$E$2:$E$65536,IF(dati_pdc!$C265=4,dati_bdv!$F$2:$F$65536,IF(dati_pdc!$C265=5,dati_bdv!$G$2:$G$65536,dati_bdv!$H$2:$H$65536))))),$A265,dati_bdv!N$2:N$65536)","v":0}]
[{"$f":"dati_pdc!A266","v":0},{"$f":"SUMIF(IF(dati_pdc!$C266=1,dati_bdv!$C$2:$C$65536,IF(dati_pdc!$C266=2,dati_bdv!$D$2:$D$65536,IF(dati_pdc!$C266=3,dati_bdv!$E$2:$E$65536,IF(dati_pdc!$C266=4,dati_bdv!$F$2:$F$65536,IF(dati_pdc!$C266=5,dati_bdv!$G$2:$G$65536,dati_bdv!$H$2:$H$65536))))),$A266,dati_bdv!J$2:J$65536)","v":0},{"$f":"SUMIF(IF(dati_pdc!$C266=1,dati_bdv!$C$2:$C$65536,IF(dati_pdc!$C266=2,dati_bdv!$D$2:$D$65536,IF(dati_pdc!$C266=3,dati_bdv!$E$2:$E$65536,IF(dati_pdc!$C266=4,dati_bdv!$F$2:$F$65536,IF(dati_pdc!$C266=5,dati_bdv!$G$2:$G$65536,dati_bdv!$H$2:$H$65536))))),$A266,dati_bdv!K$2:K$65536)","v":0},{"$f":"SUMIF(IF(dati_pdc!$C266=1,dati_bdv!$C$2:$C$65536,IF(dati_pdc!$C266=2,dati_bdv!$D$2:$D$65536,IF(dati_pdc!$C266=3,dati_bdv!$E$2:$E$65536,IF(dati_pdc!$C266=4,dati_bdv!$F$2:$F$65536,IF(dati_pdc!$C266=5,dati_bdv!$G$2:$G$65536,dati_bdv!$H$2:$H$65536))))),$A266,dati_bdv!L$2:L$65536)","v":0},{"$f":"SUMIF(IF(dati_pdc!$C266=1,dati_bdv!$C$2:$C$65536,IF(dati_pdc!$C266=2,dati_bdv!$D$2:$D$65536,IF(dati_pdc!$C266=3,dati_bdv!$E$2:$E$65536,IF(dati_pdc!$C266=4,dati_bdv!$F$2:$F$65536,IF(dati_pdc!$C266=5,dati_bdv!$G$2:$G$65536,dati_bdv!$H$2:$H$65536))))),$A266,dati_bdv!M$2:M$65536)","v":0},{"$f":"SUMIF(IF(dati_pdc!$C266=1,dati_bdv!$C$2:$C$65536,IF(dati_pdc!$C266=2,dati_bdv!$D$2:$D$65536,IF(dati_pdc!$C266=3,dati_bdv!$E$2:$E$65536,IF(dati_pdc!$C266=4,dati_bdv!$F$2:$F$65536,IF(dati_pdc!$C266=5,dati_bdv!$G$2:$G$65536,dati_bdv!$H$2:$H$65536))))),$A266,dati_bdv!N$2:N$65536)","v":0}]
[{"$f":"dati_pdc!A267","v":0},{"$f":"SUMIF(IF(dati_pdc!$C267=1,dati_bdv!$C$2:$C$65536,IF(dati_pdc!$C267=2,dati_bdv!$D$2:$D$65536,IF(dati_pdc!$C267=3,dati_bdv!$E$2:$E$65536,IF(dati_pdc!$C267=4,dati_bdv!$F$2:$F$65536,IF(dati_pdc!$C267=5,dati_bdv!$G$2:$G$65536,dati_bdv!$H$2:$H$65536))))),$A267,dati_bdv!J$2:J$65536)","v":0},{"$f":"SUMIF(IF(dati_pdc!$C267=1,dati_bdv!$C$2:$C$65536,IF(dati_pdc!$C267=2,dati_bdv!$D$2:$D$65536,IF(dati_pdc!$C267=3,dati_bdv!$E$2:$E$65536,IF(dati_pdc!$C267=4,dati_bdv!$F$2:$F$65536,IF(dati_pdc!$C267=5,dati_bdv!$G$2:$G$65536,dati_bdv!$H$2:$H$65536))))),$A267,dati_bdv!K$2:K$65536)","v":0},{"$f":"SUMIF(IF(dati_pdc!$C267=1,dati_bdv!$C$2:$C$65536,IF(dati_pdc!$C267=2,dati_bdv!$D$2:$D$65536,IF(dati_pdc!$C267=3,dati_bdv!$E$2:$E$65536,IF(dati_pdc!$C267=4,dati_bdv!$F$2:$F$65536,IF(dati_pdc!$C267=5,dati_bdv!$G$2:$G$65536,dati_bdv!$H$2:$H$65536))))),$A267,dati_bdv!L$2:L$65536)","v":0},{"$f":"SUMIF(IF(dati_pdc!$C267=1,dati_bdv!$C$2:$C$65536,IF(dati_pdc!$C267=2,dati_bdv!$D$2:$D$65536,IF(dati_pdc!$C267=3,dati_bdv!$E$2:$E$65536,IF(dati_pdc!$C267=4,dati_bdv!$F$2:$F$65536,IF(dati_pdc!$C267=5,dati_bdv!$G$2:$G$65536,dati_bdv!$H$2:$H$65536))))),$A267,dati_bdv!M$2:M$65536)","v":0},{"$f":"SUMIF(IF(dati_pdc!$C267=1,dati_bdv!$C$2:$C$65536,IF(dati_pdc!$C267=2,dati_bdv!$D$2:$D$65536,IF(dati_pdc!$C267=3,dati_bdv!$E$2:$E$65536,IF(dati_pdc!$C267=4,dati_bdv!$F$2:$F$65536,IF(dati_pdc!$C267=5,dati_bdv!$G$2:$G$65536,dati_bdv!$H$2:$H$65536))))),$A267,dati_bdv!N$2:N$65536)","v":0}]
[{"$f":"dati_pdc!A268","v":0},{"$f":"SUMIF(IF(dati_pdc!$C268=1,dati_bdv!$C$2:$C$65536,IF(dati_pdc!$C268=2,dati_bdv!$D$2:$D$65536,IF(dati_pdc!$C268=3,dati_bdv!$E$2:$E$65536,IF(dati_pdc!$C268=4,dati_bdv!$F$2:$F$65536,IF(dati_pdc!$C268=5,dati_bdv!$G$2:$G$65536,dati_bdv!$H$2:$H$65536))))),$A268,dati_bdv!J$2:J$65536)","v":0},{"$f":"SUMIF(IF(dati_pdc!$C268=1,dati_bdv!$C$2:$C$65536,IF(dati_pdc!$C268=2,dati_bdv!$D$2:$D$65536,IF(dati_pdc!$C268=3,dati_bdv!$E$2:$E$65536,IF(dati_pdc!$C268=4,dati_bdv!$F$2:$F$65536,IF(dati_pdc!$C268=5,dati_bdv!$G$2:$G$65536,dati_bdv!$H$2:$H$65536))))),$A268,dati_bdv!K$2:K$65536)","v":0},{"$f":"SUMIF(IF(dati_pdc!$C268=1,dati_bdv!$C$2:$C$65536,IF(dati_pdc!$C268=2,dati_bdv!$D$2:$D$65536,IF(dati_pdc!$C268=3,dati_bdv!$E$2:$E$65536,IF(dati_pdc!$C268=4,dati_bdv!$F$2:$F$65536,IF(dati_pdc!$C268=5,dati_bdv!$G$2:$G$65536,dati_bdv!$H$2:$H$65536))))),$A268,dati_bdv!L$2:L$65536)","v":0},{"$f":"SUMIF(IF(dati_pdc!$C268=1,dati_bdv!$C$2:$C$65536,IF(dati_pdc!$C268=2,dati_bdv!$D$2:$D$65536,IF(dati_pdc!$C268=3,dati_bdv!$E$2:$E$65536,IF(dati_pdc!$C268=4,dati_bdv!$F$2:$F$65536,IF(dati_pdc!$C268=5,dati_bdv!$G$2:$G$65536,dati_bdv!$H$2:$H$65536))))),$A268,dati_bdv!M$2:M$65536)","v":0},{"$f":"SUMIF(IF(dati_pdc!$C268=1,dati_bdv!$C$2:$C$65536,IF(dati_pdc!$C268=2,dati_bdv!$D$2:$D$65536,IF(dati_pdc!$C268=3,dati_bdv!$E$2:$E$65536,IF(dati_pdc!$C268=4,dati_bdv!$F$2:$F$65536,IF(dati_pdc!$C268=5,dati_bdv!$G$2:$G$65536,dati_bdv!$H$2:$H$65536))))),$A268,dati_bdv!N$2:N$65536)","v":0}]
[{"$f":"dati_pdc!A269","v":0},{"$f":"SUMIF(IF(dati_pdc!$C269=1,dati_bdv!$C$2:$C$65536,IF(dati_pdc!$C269=2,dati_bdv!$D$2:$D$65536,IF(dati_pdc!$C269=3,dati_bdv!$E$2:$E$65536,IF(dati_pdc!$C269=4,dati_bdv!$F$2:$F$65536,IF(dati_pdc!$C269=5,dati_bdv!$G$2:$G$65536,dati_bdv!$H$2:$H$65536))))),$A269,dati_bdv!J$2:J$65536)","v":0},{"$f":"SUMIF(IF(dati_pdc!$C269=1,dati_bdv!$C$2:$C$65536,IF(dati_pdc!$C269=2,dati_bdv!$D$2:$D$65536,IF(dati_pdc!$C269=3,dati_bdv!$E$2:$E$65536,IF(dati_pdc!$C269=4,dati_bdv!$F$2:$F$65536,IF(dati_pdc!$C269=5,dati_bdv!$G$2:$G$65536,dati_bdv!$H$2:$H$65536))))),$A269,dati_bdv!K$2:K$65536)","v":0},{"$f":"SUMIF(IF(dati_pdc!$C269=1,dati_bdv!$C$2:$C$65536,IF(dati_pdc!$C269=2,dati_bdv!$D$2:$D$65536,IF(dati_pdc!$C269=3,dati_bdv!$E$2:$E$65536,IF(dati_pdc!$C269=4,dati_bdv!$F$2:$F$65536,IF(dati_pdc!$C269=5,dati_bdv!$G$2:$G$65536,dati_bdv!$H$2:$H$65536))))),$A269,dati_bdv!L$2:L$65536)","v":0},{"$f":"SUMIF(IF(dati_pdc!$C269=1,dati_bdv!$C$2:$C$65536,IF(dati_pdc!$C269=2,dati_bdv!$D$2:$D$65536,IF(dati_pdc!$C269=3,dati_bdv!$E$2:$E$65536,IF(dati_pdc!$C269=4,dati_bdv!$F$2:$F$65536,IF(dati_pdc!$C269=5,dati_bdv!$G$2:$G$65536,dati_bdv!$H$2:$H$65536))))),$A269,dati_bdv!M$2:M$65536)","v":0},{"$f":"SUMIF(IF(dati_pdc!$C269=1,dati_bdv!$C$2:$C$65536,IF(dati_pdc!$C269=2,dati_bdv!$D$2:$D$65536,IF(dati_pdc!$C269=3,dati_bdv!$E$2:$E$65536,IF(dati_pdc!$C269=4,dati_bdv!$F$2:$F$65536,IF(dati_pdc!$C269=5,dati_bdv!$G$2:$G$65536,dati_bdv!$H$2:$H$65536))))),$A269,dati_bdv!N$2:N$65536)","v":0}]
[{"$f":"dati_pdc!A270","v":0},{"$f":"SUMIF(IF(dati_pdc!$C270=1,dati_bdv!$C$2:$C$65536,IF(dati_pdc!$C270=2,dati_bdv!$D$2:$D$65536,IF(dati_pdc!$C270=3,dati_bdv!$E$2:$E$65536,IF(dati_pdc!$C270=4,dati_bdv!$F$2:$F$65536,IF(dati_pdc!$C270=5,dati_bdv!$G$2:$G$65536,dati_bdv!$H$2:$H$65536))))),$A270,dati_bdv!J$2:J$65536)","v":0},{"$f":"SUMIF(IF(dati_pdc!$C270=1,dati_bdv!$C$2:$C$65536,IF(dati_pdc!$C270=2,dati_bdv!$D$2:$D$65536,IF(dati_pdc!$C270=3,dati_bdv!$E$2:$E$65536,IF(dati_pdc!$C270=4,dati_bdv!$F$2:$F$65536,IF(dati_pdc!$C270=5,dati_bdv!$G$2:$G$65536,dati_bdv!$H$2:$H$65536))))),$A270,dati_bdv!K$2:K$65536)","v":0},{"$f":"SUMIF(IF(dati_pdc!$C270=1,dati_bdv!$C$2:$C$65536,IF(dati_pdc!$C270=2,dati_bdv!$D$2:$D$65536,IF(dati_pdc!$C270=3,dati_bdv!$E$2:$E$65536,IF(dati_pdc!$C270=4,dati_bdv!$F$2:$F$65536,IF(dati_pdc!$C270=5,dati_bdv!$G$2:$G$65536,dati_bdv!$H$2:$H$65536))))),$A270,dati_bdv!L$2:L$65536)","v":0},{"$f":"SUMIF(IF(dati_pdc!$C270=1,dati_bdv!$C$2:$C$65536,IF(dati_pdc!$C270=2,dati_bdv!$D$2:$D$65536,IF(dati_pdc!$C270=3,dati_bdv!$E$2:$E$65536,IF(dati_pdc!$C270=4,dati_bdv!$F$2:$F$65536,IF(dati_pdc!$C270=5,dati_bdv!$G$2:$G$65536,dati_bdv!$H$2:$H$65536))))),$A270,dati_bdv!M$2:M$65536)","v":0},{"$f":"SUMIF(IF(dati_pdc!$C270=1,dati_bdv!$C$2:$C$65536,IF(dati_pdc!$C270=2,dati_bdv!$D$2:$D$65536,IF(dati_pdc!$C270=3,dati_bdv!$E$2:$E$65536,IF(dati_pdc!$C270=4,dati_bdv!$F$2:$F$65536,IF(dati_pdc!$C270=5,dati_bdv!$G$2:$G$65536,dati_bdv!$H$2:$H$65536))))),$A270,dati_bdv!N$2:N$65536)","v":0}]
[{"$f":"dati_pdc!A271","v":0},{"$f":"SUMIF(IF(dati_pdc!$C271=1,dati_bdv!$C$2:$C$65536,IF(dati_pdc!$C271=2,dati_bdv!$D$2:$D$65536,IF(dati_pdc!$C271=3,dati_bdv!$E$2:$E$65536,IF(dati_pdc!$C271=4,dati_bdv!$F$2:$F$65536,IF(dati_pdc!$C271=5,dati_bdv!$G$2:$G$65536,dati_bdv!$H$2:$H$65536))))),$A271,dati_bdv!J$2:J$65536)","v":0},{"$f":"SUMIF(IF(dati_pdc!$C271=1,dati_bdv!$C$2:$C$65536,IF(dati_pdc!$C271=2,dati_bdv!$D$2:$D$65536,IF(dati_pdc!$C271=3,dati_bdv!$E$2:$E$65536,IF(dati_pdc!$C271=4,dati_bdv!$F$2:$F$65536,IF(dati_pdc!$C271=5,dati_bdv!$G$2:$G$65536,dati_bdv!$H$2:$H$65536))))),$A271,dati_bdv!K$2:K$65536)","v":0},{"$f":"SUMIF(IF(dati_pdc!$C271=1,dati_bdv!$C$2:$C$65536,IF(dati_pdc!$C271=2,dati_bdv!$D$2:$D$65536,IF(dati_pdc!$C271=3,dati_bdv!$E$2:$E$65536,IF(dati_pdc!$C271=4,dati_bdv!$F$2:$F$65536,IF(dati_pdc!$C271=5,dati_bdv!$G$2:$G$65536,dati_bdv!$H$2:$H$65536))))),$A271,dati_bdv!L$2:L$65536)","v":0},{"$f":"SUMIF(IF(dati_pdc!$C271=1,dati_bdv!$C$2:$C$65536,IF(dati_pdc!$C271=2,dati_bdv!$D$2:$D$65536,IF(dati_pdc!$C271=3,dati_bdv!$E$2:$E$65536,IF(dati_pdc!$C271=4,dati_bdv!$F$2:$F$65536,IF(dati_pdc!$C271=5,dati_bdv!$G$2:$G$65536,dati_bdv!$H$2:$H$65536))))),$A271,dati_bdv!M$2:M$65536)","v":0},{"$f":"SUMIF(IF(dati_pdc!$C271=1,dati_bdv!$C$2:$C$65536,IF(dati_pdc!$C271=2,dati_bdv!$D$2:$D$65536,IF(dati_pdc!$C271=3,dati_bdv!$E$2:$E$65536,IF(dati_pdc!$C271=4,dati_bdv!$F$2:$F$65536,IF(dati_pdc!$C271=5,dati_bdv!$G$2:$G$65536,dati_bdv!$H$2:$H$65536))))),$A271,dati_bdv!N$2:N$65536)","v":0}]
[{"$f":"dati_pdc!A272","v":0},{"$f":"SUMIF(IF(dati_pdc!$C272=1,dati_bdv!$C$2:$C$65536,IF(dati_pdc!$C272=2,dati_bdv!$D$2:$D$65536,IF(dati_pdc!$C272=3,dati_bdv!$E$2:$E$65536,IF(dati_pdc!$C272=4,dati_bdv!$F$2:$F$65536,IF(dati_pdc!$C272=5,dati_bdv!$G$2:$G$65536,dati_bdv!$H$2:$H$65536))))),$A272,dati_bdv!J$2:J$65536)","v":0},{"$f":"SUMIF(IF(dati_pdc!$C272=1,dati_bdv!$C$2:$C$65536,IF(dati_pdc!$C272=2,dati_bdv!$D$2:$D$65536,IF(dati_pdc!$C272=3,dati_bdv!$E$2:$E$65536,IF(dati_pdc!$C272=4,dati_bdv!$F$2:$F$65536,IF(dati_pdc!$C272=5,dati_bdv!$G$2:$G$65536,dati_bdv!$H$2:$H$65536))))),$A272,dati_bdv!K$2:K$65536)","v":0},{"$f":"SUMIF(IF(dati_pdc!$C272=1,dati_bdv!$C$2:$C$65536,IF(dati_pdc!$C272=2,dati_bdv!$D$2:$D$65536,IF(dati_pdc!$C272=3,dati_bdv!$E$2:$E$65536,IF(dati_pdc!$C272=4,dati_bdv!$F$2:$F$65536,IF(dati_pdc!$C272=5,dati_bdv!$G$2:$G$65536,dati_bdv!$H$2:$H$65536))))),$A272,dati_bdv!L$2:L$65536)","v":0},{"$f":"SUMIF(IF(dati_pdc!$C272=1,dati_bdv!$C$2:$C$65536,IF(dati_pdc!$C272=2,dati_bdv!$D$2:$D$65536,IF(dati_pdc!$C272=3,dati_bdv!$E$2:$E$65536,IF(dati_pdc!$C272=4,dati_bdv!$F$2:$F$65536,IF(dati_pdc!$C272=5,dati_bdv!$G$2:$G$65536,dati_bdv!$H$2:$H$65536))))),$A272,dati_bdv!M$2:M$65536)","v":0},{"$f":"SUMIF(IF(dati_pdc!$C272=1,dati_bdv!$C$2:$C$65536,IF(dati_pdc!$C272=2,dati_bdv!$D$2:$D$65536,IF(dati_pdc!$C272=3,dati_bdv!$E$2:$E$65536,IF(dati_pdc!$C272=4,dati_bdv!$F$2:$F$65536,IF(dati_pdc!$C272=5,dati_bdv!$G$2:$G$65536,dati_bdv!$H$2:$H$65536))))),$A272,dati_bdv!N$2:N$65536)","v":0}]
[{"$f":"dati_pdc!A273","v":0},{"$f":"SUMIF(IF(dati_pdc!$C273=1,dati_bdv!$C$2:$C$65536,IF(dati_pdc!$C273=2,dati_bdv!$D$2:$D$65536,IF(dati_pdc!$C273=3,dati_bdv!$E$2:$E$65536,IF(dati_pdc!$C273=4,dati_bdv!$F$2:$F$65536,IF(dati_pdc!$C273=5,dati_bdv!$G$2:$G$65536,dati_bdv!$H$2:$H$65536))))),$A273,dati_bdv!J$2:J$65536)","v":0},{"$f":"SUMIF(IF(dati_pdc!$C273=1,dati_bdv!$C$2:$C$65536,IF(dati_pdc!$C273=2,dati_bdv!$D$2:$D$65536,IF(dati_pdc!$C273=3,dati_bdv!$E$2:$E$65536,IF(dati_pdc!$C273=4,dati_bdv!$F$2:$F$65536,IF(dati_pdc!$C273=5,dati_bdv!$G$2:$G$65536,dati_bdv!$H$2:$H$65536))))),$A273,dati_bdv!K$2:K$65536)","v":0},{"$f":"SUMIF(IF(dati_pdc!$C273=1,dati_bdv!$C$2:$C$65536,IF(dati_pdc!$C273=2,dati_bdv!$D$2:$D$65536,IF(dati_pdc!$C273=3,dati_bdv!$E$2:$E$65536,IF(dati_pdc!$C273=4,dati_bdv!$F$2:$F$65536,IF(dati_pdc!$C273=5,dati_bdv!$G$2:$G$65536,dati_bdv!$H$2:$H$65536))))),$A273,dati_bdv!L$2:L$65536)","v":0},{"$f":"SUMIF(IF(dati_pdc!$C273=1,dati_bdv!$C$2:$C$65536,IF(dati_pdc!$C273=2,dati_bdv!$D$2:$D$65536,IF(dati_pdc!$C273=3,dati_bdv!$E$2:$E$65536,IF(dati_pdc!$C273=4,dati_bdv!$F$2:$F$65536,IF(dati_pdc!$C273=5,dati_bdv!$G$2:$G$65536,dati_bdv!$H$2:$H$65536))))),$A273,dati_bdv!M$2:M$65536)","v":0},{"$f":"SUMIF(IF(dati_pdc!$C273=1,dati_bdv!$C$2:$C$65536,IF(dati_pdc!$C273=2,dati_bdv!$D$2:$D$65536,IF(dati_pdc!$C273=3,dati_bdv!$E$2:$E$65536,IF(dati_pdc!$C273=4,dati_bdv!$F$2:$F$65536,IF(dati_pdc!$C273=5,dati_bdv!$G$2:$G$65536,dati_bdv!$H$2:$H$65536))))),$A273,dati_bdv!N$2:N$65536)","v":0}]
[{"$f":"dati_pdc!A274","v":0},{"$f":"SUMIF(IF(dati_pdc!$C274=1,dati_bdv!$C$2:$C$65536,IF(dati_pdc!$C274=2,dati_bdv!$D$2:$D$65536,IF(dati_pdc!$C274=3,dati_bdv!$E$2:$E$65536,IF(dati_pdc!$C274=4,dati_bdv!$F$2:$F$65536,IF(dati_pdc!$C274=5,dati_bdv!$G$2:$G$65536,dati_bdv!$H$2:$H$65536))))),$A274,dati_bdv!J$2:J$65536)","v":0},{"$f":"SUMIF(IF(dati_pdc!$C274=1,dati_bdv!$C$2:$C$65536,IF(dati_pdc!$C274=2,dati_bdv!$D$2:$D$65536,IF(dati_pdc!$C274=3,dati_bdv!$E$2:$E$65536,IF(dati_pdc!$C274=4,dati_bdv!$F$2:$F$65536,IF(dati_pdc!$C274=5,dati_bdv!$G$2:$G$65536,dati_bdv!$H$2:$H$65536))))),$A274,dati_bdv!K$2:K$65536)","v":0},{"$f":"SUMIF(IF(dati_pdc!$C274=1,dati_bdv!$C$2:$C$65536,IF(dati_pdc!$C274=2,dati_bdv!$D$2:$D$65536,IF(dati_pdc!$C274=3,dati_bdv!$E$2:$E$65536,IF(dati_pdc!$C274=4,dati_bdv!$F$2:$F$65536,IF(dati_pdc!$C274=5,dati_bdv!$G$2:$G$65536,dati_bdv!$H$2:$H$65536))))),$A274,dati_bdv!L$2:L$65536)","v":0},{"$f":"SUMIF(IF(dati_pdc!$C274=1,dati_bdv!$C$2:$C$65536,IF(dati_pdc!$C274=2,dati_bdv!$D$2:$D$65536,IF(dati_pdc!$C274=3,dati_bdv!$E$2:$E$65536,IF(dati_pdc!$C274=4,dati_bdv!$F$2:$F$65536,IF(dati_pdc!$C274=5,dati_bdv!$G$2:$G$65536,dati_bdv!$H$2:$H$65536))))),$A274,dati_bdv!M$2:M$65536)","v":0},{"$f":"SUMIF(IF(dati_pdc!$C274=1,dati_bdv!$C$2:$C$65536,IF(dati_pdc!$C274=2,dati_bdv!$D$2:$D$65536,IF(dati_pdc!$C274=3,dati_bdv!$E$2:$E$65536,IF(dati_pdc!$C274=4,dati_bdv!$F$2:$F$65536,IF(dati_pdc!$C274=5,dati_bdv!$G$2:$G$65536,dati_bdv!$H$2:$H$65536))))),$A274,dati_bdv!N$2:N$65536)","v":0}]
[{"$f":"dati_pdc!A275","v":0},{"$f":"SUMIF(IF(dati_pdc!$C275=1,dati_bdv!$C$2:$C$65536,IF(dati_pdc!$C275=2,dati_bdv!$D$2:$D$65536,IF(dati_pdc!$C275=3,dati_bdv!$E$2:$E$65536,IF(dati_pdc!$C275=4,dati_bdv!$F$2:$F$65536,IF(dati_pdc!$C275=5,dati_bdv!$G$2:$G$65536,dati_bdv!$H$2:$H$65536))))),$A275,dati_bdv!J$2:J$65536)","v":0},{"$f":"SUMIF(IF(dati_pdc!$C275=1,dati_bdv!$C$2:$C$65536,IF(dati_pdc!$C275=2,dati_bdv!$D$2:$D$65536,IF(dati_pdc!$C275=3,dati_bdv!$E$2:$E$65536,IF(dati_pdc!$C275=4,dati_bdv!$F$2:$F$65536,IF(dati_pdc!$C275=5,dati_bdv!$G$2:$G$65536,dati_bdv!$H$2:$H$65536))))),$A275,dati_bdv!K$2:K$65536)","v":0},{"$f":"SUMIF(IF(dati_pdc!$C275=1,dati_bdv!$C$2:$C$65536,IF(dati_pdc!$C275=2,dati_bdv!$D$2:$D$65536,IF(dati_pdc!$C275=3,dati_bdv!$E$2:$E$65536,IF(dati_pdc!$C275=4,dati_bdv!$F$2:$F$65536,IF(dati_pdc!$C275=5,dati_bdv!$G$2:$G$65536,dati_bdv!$H$2:$H$65536))))),$A275,dati_bdv!L$2:L$65536)","v":0},{"$f":"SUMIF(IF(dati_pdc!$C275=1,dati_bdv!$C$2:$C$65536,IF(dati_pdc!$C275=2,dati_bdv!$D$2:$D$65536,IF(dati_pdc!$C275=3,dati_bdv!$E$2:$E$65536,IF(dati_pdc!$C275=4,dati_bdv!$F$2:$F$65536,IF(dati_pdc!$C275=5,dati_bdv!$G$2:$G$65536,dati_bdv!$H$2:$H$65536))))),$A275,dati_bdv!M$2:M$65536)","v":0},{"$f":"SUMIF(IF(dati_pdc!$C275=1,dati_bdv!$C$2:$C$65536,IF(dati_pdc!$C275=2,dati_bdv!$D$2:$D$65536,IF(dati_pdc!$C275=3,dati_bdv!$E$2:$E$65536,IF(dati_pdc!$C275=4,dati_bdv!$F$2:$F$65536,IF(dati_pdc!$C275=5,dati_bdv!$G$2:$G$65536,dati_bdv!$H$2:$H$65536))))),$A275,dati_bdv!N$2:N$65536)","v":0}]
[{"$f":"dati_pdc!A276","v":0},{"$f":"SUMIF(IF(dati_pdc!$C276=1,dati_bdv!$C$2:$C$65536,IF(dati_pdc!$C276=2,dati_bdv!$D$2:$D$65536,IF(dati_pdc!$C276=3,dati_bdv!$E$2:$E$65536,IF(dati_pdc!$C276=4,dati_bdv!$F$2:$F$65536,IF(dati_pdc!$C276=5,dati_bdv!$G$2:$G$65536,dati_bdv!$H$2:$H$65536))))),$A276,dati_bdv!J$2:J$65536)","v":0},{"$f":"SUMIF(IF(dati_pdc!$C276=1,dati_bdv!$C$2:$C$65536,IF(dati_pdc!$C276=2,dati_bdv!$D$2:$D$65536,IF(dati_pdc!$C276=3,dati_bdv!$E$2:$E$65536,IF(dati_pdc!$C276=4,dati_bdv!$F$2:$F$65536,IF(dati_pdc!$C276=5,dati_bdv!$G$2:$G$65536,dati_bdv!$H$2:$H$65536))))),$A276,dati_bdv!K$2:K$65536)","v":0},{"$f":"SUMIF(IF(dati_pdc!$C276=1,dati_bdv!$C$2:$C$65536,IF(dati_pdc!$C276=2,dati_bdv!$D$2:$D$65536,IF(dati_pdc!$C276=3,dati_bdv!$E$2:$E$65536,IF(dati_pdc!$C276=4,dati_bdv!$F$2:$F$65536,IF(dati_pdc!$C276=5,dati_bdv!$G$2:$G$65536,dati_bdv!$H$2:$H$65536))))),$A276,dati_bdv!L$2:L$65536)","v":0},{"$f":"SUMIF(IF(dati_pdc!$C276=1,dati_bdv!$C$2:$C$65536,IF(dati_pdc!$C276=2,dati_bdv!$D$2:$D$65536,IF(dati_pdc!$C276=3,dati_bdv!$E$2:$E$65536,IF(dati_pdc!$C276=4,dati_bdv!$F$2:$F$65536,IF(dati_pdc!$C276=5,dati_bdv!$G$2:$G$65536,dati_bdv!$H$2:$H$65536))))),$A276,dati_bdv!M$2:M$65536)","v":0},{"$f":"SUMIF(IF(dati_pdc!$C276=1,dati_bdv!$C$2:$C$65536,IF(dati_pdc!$C276=2,dati_bdv!$D$2:$D$65536,IF(dati_pdc!$C276=3,dati_bdv!$E$2:$E$65536,IF(dati_pdc!$C276=4,dati_bdv!$F$2:$F$65536,IF(dati_pdc!$C276=5,dati_bdv!$G$2:$G$65536,dati_bdv!$H$2:$H$65536))))),$A276,dati_bdv!N$2:N$65536)","v":0}]
[{"$f":"dati_pdc!A277","v":0},{"$f":"SUMIF(IF(dati_pdc!$C277=1,dati_bdv!$C$2:$C$65536,IF(dati_pdc!$C277=2,dati_bdv!$D$2:$D$65536,IF(dati_pdc!$C277=3,dati_bdv!$E$2:$E$65536,IF(dati_pdc!$C277=4,dati_bdv!$F$2:$F$65536,IF(dati_pdc!$C277=5,dati_bdv!$G$2:$G$65536,dati_bdv!$H$2:$H$65536))))),$A277,dati_bdv!J$2:J$65536)","v":0},{"$f":"SUMIF(IF(dati_pdc!$C277=1,dati_bdv!$C$2:$C$65536,IF(dati_pdc!$C277=2,dati_bdv!$D$2:$D$65536,IF(dati_pdc!$C277=3,dati_bdv!$E$2:$E$65536,IF(dati_pdc!$C277=4,dati_bdv!$F$2:$F$65536,IF(dati_pdc!$C277=5,dati_bdv!$G$2:$G$65536,dati_bdv!$H$2:$H$65536))))),$A277,dati_bdv!K$2:K$65536)","v":0},{"$f":"SUMIF(IF(dati_pdc!$C277=1,dati_bdv!$C$2:$C$65536,IF(dati_pdc!$C277=2,dati_bdv!$D$2:$D$65536,IF(dati_pdc!$C277=3,dati_bdv!$E$2:$E$65536,IF(dati_pdc!$C277=4,dati_bdv!$F$2:$F$65536,IF(dati_pdc!$C277=5,dati_bdv!$G$2:$G$65536,dati_bdv!$H$2:$H$65536))))),$A277,dati_bdv!L$2:L$65536)","v":0},{"$f":"SUMIF(IF(dati_pdc!$C277=1,dati_bdv!$C$2:$C$65536,IF(dati_pdc!$C277=2,dati_bdv!$D$2:$D$65536,IF(dati_pdc!$C277=3,dati_bdv!$E$2:$E$65536,IF(dati_pdc!$C277=4,dati_bdv!$F$2:$F$65536,IF(dati_pdc!$C277=5,dati_bdv!$G$2:$G$65536,dati_bdv!$H$2:$H$65536))))),$A277,dati_bdv!M$2:M$65536)","v":0},{"$f":"SUMIF(IF(dati_pdc!$C277=1,dati_bdv!$C$2:$C$65536,IF(dati_pdc!$C277=2,dati_bdv!$D$2:$D$65536,IF(dati_pdc!$C277=3,dati_bdv!$E$2:$E$65536,IF(dati_pdc!$C277=4,dati_bdv!$F$2:$F$65536,IF(dati_pdc!$C277=5,dati_bdv!$G$2:$G$65536,dati_bdv!$H$2:$H$65536))))),$A277,dati_bdv!N$2:N$65536)","v":0}]
[{"$f":"dati_pdc!A278","v":0},{"$f":"SUMIF(IF(dati_pdc!$C278=1,dati_bdv!$C$2:$C$65536,IF(dati_pdc!$C278=2,dati_bdv!$D$2:$D$65536,IF(dati_pdc!$C278=3,dati_bdv!$E$2:$E$65536,IF(dati_pdc!$C278=4,dati_bdv!$F$2:$F$65536,IF(dati_pdc!$C278=5,dati_bdv!$G$2:$G$65536,dati_bdv!$H$2:$H$65536))))),$A278,dati_bdv!J$2:J$65536)","v":0},{"$f":"SUMIF(IF(dati_pdc!$C278=1,dati_bdv!$C$2:$C$65536,IF(dati_pdc!$C278=2,dati_bdv!$D$2:$D$65536,IF(dati_pdc!$C278=3,dati_bdv!$E$2:$E$65536,IF(dati_pdc!$C278=4,dati_bdv!$F$2:$F$65536,IF(dati_pdc!$C278=5,dati_bdv!$G$2:$G$65536,dati_bdv!$H$2:$H$65536))))),$A278,dati_bdv!K$2:K$65536)","v":0},{"$f":"SUMIF(IF(dati_pdc!$C278=1,dati_bdv!$C$2:$C$65536,IF(dati_pdc!$C278=2,dati_bdv!$D$2:$D$65536,IF(dati_pdc!$C278=3,dati_bdv!$E$2:$E$65536,IF(dati_pdc!$C278=4,dati_bdv!$F$2:$F$65536,IF(dati_pdc!$C278=5,dati_bdv!$G$2:$G$65536,dati_bdv!$H$2:$H$65536))))),$A278,dati_bdv!L$2:L$65536)","v":0},{"$f":"SUMIF(IF(dati_pdc!$C278=1,dati_bdv!$C$2:$C$65536,IF(dati_pdc!$C278=2,dati_bdv!$D$2:$D$65536,IF(dati_pdc!$C278=3,dati_bdv!$E$2:$E$65536,IF(dati_pdc!$C278=4,dati_bdv!$F$2:$F$65536,IF(dati_pdc!$C278=5,dati_bdv!$G$2:$G$65536,dati_bdv!$H$2:$H$65536))))),$A278,dati_bdv!M$2:M$65536)","v":0},{"$f":"SUMIF(IF(dati_pdc!$C278=1,dati_bdv!$C$2:$C$65536,IF(dati_pdc!$C278=2,dati_bdv!$D$2:$D$65536,IF(dati_pdc!$C278=3,dati_bdv!$E$2:$E$65536,IF(dati_pdc!$C278=4,dati_bdv!$F$2:$F$65536,IF(dati_pdc!$C278=5,dati_bdv!$G$2:$G$65536,dati_bdv!$H$2:$H$65536))))),$A278,dati_bdv!N$2:N$65536)","v":0}]
[{"$f":"dati_pdc!A279","v":0},{"$f":"SUMIF(IF(dati_pdc!$C279=1,dati_bdv!$C$2:$C$65536,IF(dati_pdc!$C279=2,dati_bdv!$D$2:$D$65536,IF(dati_pdc!$C279=3,dati_bdv!$E$2:$E$65536,IF(dati_pdc!$C279=4,dati_bdv!$F$2:$F$65536,IF(dati_pdc!$C279=5,dati_bdv!$G$2:$G$65536,dati_bdv!$H$2:$H$65536))))),$A279,dati_bdv!J$2:J$65536)","v":0},{"$f":"SUMIF(IF(dati_pdc!$C279=1,dati_bdv!$C$2:$C$65536,IF(dati_pdc!$C279=2,dati_bdv!$D$2:$D$65536,IF(dati_pdc!$C279=3,dati_bdv!$E$2:$E$65536,IF(dati_pdc!$C279=4,dati_bdv!$F$2:$F$65536,IF(dati_pdc!$C279=5,dati_bdv!$G$2:$G$65536,dati_bdv!$H$2:$H$65536))))),$A279,dati_bdv!K$2:K$65536)","v":0},{"$f":"SUMIF(IF(dati_pdc!$C279=1,dati_bdv!$C$2:$C$65536,IF(dati_pdc!$C279=2,dati_bdv!$D$2:$D$65536,IF(dati_pdc!$C279=3,dati_bdv!$E$2:$E$65536,IF(dati_pdc!$C279=4,dati_bdv!$F$2:$F$65536,IF(dati_pdc!$C279=5,dati_bdv!$G$2:$G$65536,dati_bdv!$H$2:$H$65536))))),$A279,dati_bdv!L$2:L$65536)","v":0},{"$f":"SUMIF(IF(dati_pdc!$C279=1,dati_bdv!$C$2:$C$65536,IF(dati_pdc!$C279=2,dati_bdv!$D$2:$D$65536,IF(dati_pdc!$C279=3,dati_bdv!$E$2:$E$65536,IF(dati_pdc!$C279=4,dati_bdv!$F$2:$F$65536,IF(dati_pdc!$C279=5,dati_bdv!$G$2:$G$65536,dati_bdv!$H$2:$H$65536))))),$A279,dati_bdv!M$2:M$65536)","v":0},{"$f":"SUMIF(IF(dati_pdc!$C279=1,dati_bdv!$C$2:$C$65536,IF(dati_pdc!$C279=2,dati_bdv!$D$2:$D$65536,IF(dati_pdc!$C279=3,dati_bdv!$E$2:$E$65536,IF(dati_pdc!$C279=4,dati_bdv!$F$2:$F$65536,IF(dati_pdc!$C279=5,dati_bdv!$G$2:$G$65536,dati_bdv!$H$2:$H$65536))))),$A279,dati_bdv!N$2:N$65536)","v":0}]
[{"$f":"dati_pdc!A280","v":0},{"$f":"SUMIF(IF(dati_pdc!$C280=1,dati_bdv!$C$2:$C$65536,IF(dati_pdc!$C280=2,dati_bdv!$D$2:$D$65536,IF(dati_pdc!$C280=3,dati_bdv!$E$2:$E$65536,IF(dati_pdc!$C280=4,dati_bdv!$F$2:$F$65536,IF(dati_pdc!$C280=5,dati_bdv!$G$2:$G$65536,dati_bdv!$H$2:$H$65536))))),$A280,dati_bdv!J$2:J$65536)","v":0},{"$f":"SUMIF(IF(dati_pdc!$C280=1,dati_bdv!$C$2:$C$65536,IF(dati_pdc!$C280=2,dati_bdv!$D$2:$D$65536,IF(dati_pdc!$C280=3,dati_bdv!$E$2:$E$65536,IF(dati_pdc!$C280=4,dati_bdv!$F$2:$F$65536,IF(dati_pdc!$C280=5,dati_bdv!$G$2:$G$65536,dati_bdv!$H$2:$H$65536))))),$A280,dati_bdv!K$2:K$65536)","v":0},{"$f":"SUMIF(IF(dati_pdc!$C280=1,dati_bdv!$C$2:$C$65536,IF(dati_pdc!$C280=2,dati_bdv!$D$2:$D$65536,IF(dati_pdc!$C280=3,dati_bdv!$E$2:$E$65536,IF(dati_pdc!$C280=4,dati_bdv!$F$2:$F$65536,IF(dati_pdc!$C280=5,dati_bdv!$G$2:$G$65536,dati_bdv!$H$2:$H$65536))))),$A280,dati_bdv!L$2:L$65536)","v":0},{"$f":"SUMIF(IF(dati_pdc!$C280=1,dati_bdv!$C$2:$C$65536,IF(dati_pdc!$C280=2,dati_bdv!$D$2:$D$65536,IF(dati_pdc!$C280=3,dati_bdv!$E$2:$E$65536,IF(dati_pdc!$C280=4,dati_bdv!$F$2:$F$65536,IF(dati_pdc!$C280=5,dati_bdv!$G$2:$G$65536,dati_bdv!$H$2:$H$65536))))),$A280,dati_bdv!M$2:M$65536)","v":0},{"$f":"SUMIF(IF(dati_pdc!$C280=1,dati_bdv!$C$2:$C$65536,IF(dati_pdc!$C280=2,dati_bdv!$D$2:$D$65536,IF(dati_pdc!$C280=3,dati_bdv!$E$2:$E$65536,IF(dati_pdc!$C280=4,dati_bdv!$F$2:$F$65536,IF(dati_pdc!$C280=5,dati_bdv!$G$2:$G$65536,dati_bdv!$H$2:$H$65536))))),$A280,dati_bdv!N$2:N$65536)","v":0}]
[{"$f":"dati_pdc!A281","v":0},{"$f":"SUMIF(IF(dati_pdc!$C281=1,dati_bdv!$C$2:$C$65536,IF(dati_pdc!$C281=2,dati_bdv!$D$2:$D$65536,IF(dati_pdc!$C281=3,dati_bdv!$E$2:$E$65536,IF(dati_pdc!$C281=4,dati_bdv!$F$2:$F$65536,IF(dati_pdc!$C281=5,dati_bdv!$G$2:$G$65536,dati_bdv!$H$2:$H$65536))))),$A281,dati_bdv!J$2:J$65536)","v":0},{"$f":"SUMIF(IF(dati_pdc!$C281=1,dati_bdv!$C$2:$C$65536,IF(dati_pdc!$C281=2,dati_bdv!$D$2:$D$65536,IF(dati_pdc!$C281=3,dati_bdv!$E$2:$E$65536,IF(dati_pdc!$C281=4,dati_bdv!$F$2:$F$65536,IF(dati_pdc!$C281=5,dati_bdv!$G$2:$G$65536,dati_bdv!$H$2:$H$65536))))),$A281,dati_bdv!K$2:K$65536)","v":0},{"$f":"SUMIF(IF(dati_pdc!$C281=1,dati_bdv!$C$2:$C$65536,IF(dati_pdc!$C281=2,dati_bdv!$D$2:$D$65536,IF(dati_pdc!$C281=3,dati_bdv!$E$2:$E$65536,IF(dati_pdc!$C281=4,dati_bdv!$F$2:$F$65536,IF(dati_pdc!$C281=5,dati_bdv!$G$2:$G$65536,dati_bdv!$H$2:$H$65536))))),$A281,dati_bdv!L$2:L$65536)","v":0},{"$f":"SUMIF(IF(dati_pdc!$C281=1,dati_bdv!$C$2:$C$65536,IF(dati_pdc!$C281=2,dati_bdv!$D$2:$D$65536,IF(dati_pdc!$C281=3,dati_bdv!$E$2:$E$65536,IF(dati_pdc!$C281=4,dati_bdv!$F$2:$F$65536,IF(dati_pdc!$C281=5,dati_bdv!$G$2:$G$65536,dati_bdv!$H$2:$H$65536))))),$A281,dati_bdv!M$2:M$65536)","v":0},{"$f":"SUMIF(IF(dati_pdc!$C281=1,dati_bdv!$C$2:$C$65536,IF(dati_pdc!$C281=2,dati_bdv!$D$2:$D$65536,IF(dati_pdc!$C281=3,dati_bdv!$E$2:$E$65536,IF(dati_pdc!$C281=4,dati_bdv!$F$2:$F$65536,IF(dati_pdc!$C281=5,dati_bdv!$G$2:$G$65536,dati_bdv!$H$2:$H$65536))))),$A281,dati_bdv!N$2:N$65536)","v":0}]
[{"$f":"dati_pdc!A282","v":0},{"$f":"SUMIF(IF(dati_pdc!$C282=1,dati_bdv!$C$2:$C$65536,IF(dati_pdc!$C282=2,dati_bdv!$D$2:$D$65536,IF(dati_pdc!$C282=3,dati_bdv!$E$2:$E$65536,IF(dati_pdc!$C282=4,dati_bdv!$F$2:$F$65536,IF(dati_pdc!$C282=5,dati_bdv!$G$2:$G$65536,dati_bdv!$H$2:$H$65536))))),$A282,dati_bdv!J$2:J$65536)","v":0},{"$f":"SUMIF(IF(dati_pdc!$C282=1,dati_bdv!$C$2:$C$65536,IF(dati_pdc!$C282=2,dati_bdv!$D$2:$D$65536,IF(dati_pdc!$C282=3,dati_bdv!$E$2:$E$65536,IF(dati_pdc!$C282=4,dati_bdv!$F$2:$F$65536,IF(dati_pdc!$C282=5,dati_bdv!$G$2:$G$65536,dati_bdv!$H$2:$H$65536))))),$A282,dati_bdv!K$2:K$65536)","v":0},{"$f":"SUMIF(IF(dati_pdc!$C282=1,dati_bdv!$C$2:$C$65536,IF(dati_pdc!$C282=2,dati_bdv!$D$2:$D$65536,IF(dati_pdc!$C282=3,dati_bdv!$E$2:$E$65536,IF(dati_pdc!$C282=4,dati_bdv!$F$2:$F$65536,IF(dati_pdc!$C282=5,dati_bdv!$G$2:$G$65536,dati_bdv!$H$2:$H$65536))))),$A282,dati_bdv!L$2:L$65536)","v":0},{"$f":"SUMIF(IF(dati_pdc!$C282=1,dati_bdv!$C$2:$C$65536,IF(dati_pdc!$C282=2,dati_bdv!$D$2:$D$65536,IF(dati_pdc!$C282=3,dati_bdv!$E$2:$E$65536,IF(dati_pdc!$C282=4,dati_bdv!$F$2:$F$65536,IF(dati_pdc!$C282=5,dati_bdv!$G$2:$G$65536,dati_bdv!$H$2:$H$65536))))),$A282,dati_bdv!M$2:M$65536)","v":0},{"$f":"SUMIF(IF(dati_pdc!$C282=1,dati_bdv!$C$2:$C$65536,IF(dati_pdc!$C282=2,dati_bdv!$D$2:$D$65536,IF(dati_pdc!$C282=3,dati_bdv!$E$2:$E$65536,IF(dati_pdc!$C282=4,dati_bdv!$F$2:$F$65536,IF(dati_pdc!$C282=5,dati_bdv!$G$2:$G$65536,dati_bdv!$H$2:$H$65536))))),$A282,dati_bdv!N$2:N$65536)","v":0}]
[{"$f":"dati_pdc!A283","v":0},{"$f":"SUMIF(IF(dati_pdc!$C283=1,dati_bdv!$C$2:$C$65536,IF(dati_pdc!$C283=2,dati_bdv!$D$2:$D$65536,IF(dati_pdc!$C283=3,dati_bdv!$E$2:$E$65536,IF(dati_pdc!$C283=4,dati_bdv!$F$2:$F$65536,IF(dati_pdc!$C283=5,dati_bdv!$G$2:$G$65536,dati_bdv!$H$2:$H$65536))))),$A283,dati_bdv!J$2:J$65536)","v":0},{"$f":"SUMIF(IF(dati_pdc!$C283=1,dati_bdv!$C$2:$C$65536,IF(dati_pdc!$C283=2,dati_bdv!$D$2:$D$65536,IF(dati_pdc!$C283=3,dati_bdv!$E$2:$E$65536,IF(dati_pdc!$C283=4,dati_bdv!$F$2:$F$65536,IF(dati_pdc!$C283=5,dati_bdv!$G$2:$G$65536,dati_bdv!$H$2:$H$65536))))),$A283,dati_bdv!K$2:K$65536)","v":0},{"$f":"SUMIF(IF(dati_pdc!$C283=1,dati_bdv!$C$2:$C$65536,IF(dati_pdc!$C283=2,dati_bdv!$D$2:$D$65536,IF(dati_pdc!$C283=3,dati_bdv!$E$2:$E$65536,IF(dati_pdc!$C283=4,dati_bdv!$F$2:$F$65536,IF(dati_pdc!$C283=5,dati_bdv!$G$2:$G$65536,dati_bdv!$H$2:$H$65536))))),$A283,dati_bdv!L$2:L$65536)","v":0},{"$f":"SUMIF(IF(dati_pdc!$C283=1,dati_bdv!$C$2:$C$65536,IF(dati_pdc!$C283=2,dati_bdv!$D$2:$D$65536,IF(dati_pdc!$C283=3,dati_bdv!$E$2:$E$65536,IF(dati_pdc!$C283=4,dati_bdv!$F$2:$F$65536,IF(dati_pdc!$C283=5,dati_bdv!$G$2:$G$65536,dati_bdv!$H$2:$H$65536))))),$A283,dati_bdv!M$2:M$65536)","v":0},{"$f":"SUMIF(IF(dati_pdc!$C283=1,dati_bdv!$C$2:$C$65536,IF(dati_pdc!$C283=2,dati_bdv!$D$2:$D$65536,IF(dati_pdc!$C283=3,dati_bdv!$E$2:$E$65536,IF(dati_pdc!$C283=4,dati_bdv!$F$2:$F$65536,IF(dati_pdc!$C283=5,dati_bdv!$G$2:$G$65536,dati_bdv!$H$2:$H$65536))))),$A283,dati_bdv!N$2:N$65536)","v":0}]
[{"$f":"dati_pdc!A284","v":0},{"$f":"SUMIF(IF(dati_pdc!$C284=1,dati_bdv!$C$2:$C$65536,IF(dati_pdc!$C284=2,dati_bdv!$D$2:$D$65536,IF(dati_pdc!$C284=3,dati_bdv!$E$2:$E$65536,IF(dati_pdc!$C284=4,dati_bdv!$F$2:$F$65536,IF(dati_pdc!$C284=5,dati_bdv!$G$2:$G$65536,dati_bdv!$H$2:$H$65536))))),$A284,dati_bdv!J$2:J$65536)","v":0},{"$f":"SUMIF(IF(dati_pdc!$C284=1,dati_bdv!$C$2:$C$65536,IF(dati_pdc!$C284=2,dati_bdv!$D$2:$D$65536,IF(dati_pdc!$C284=3,dati_bdv!$E$2:$E$65536,IF(dati_pdc!$C284=4,dati_bdv!$F$2:$F$65536,IF(dati_pdc!$C284=5,dati_bdv!$G$2:$G$65536,dati_bdv!$H$2:$H$65536))))),$A284,dati_bdv!K$2:K$65536)","v":0},{"$f":"SUMIF(IF(dati_pdc!$C284=1,dati_bdv!$C$2:$C$65536,IF(dati_pdc!$C284=2,dati_bdv!$D$2:$D$65536,IF(dati_pdc!$C284=3,dati_bdv!$E$2:$E$65536,IF(dati_pdc!$C284=4,dati_bdv!$F$2:$F$65536,IF(dati_pdc!$C284=5,dati_bdv!$G$2:$G$65536,dati_bdv!$H$2:$H$65536))))),$A284,dati_bdv!L$2:L$65536)","v":0},{"$f":"SUMIF(IF(dati_pdc!$C284=1,dati_bdv!$C$2:$C$65536,IF(dati_pdc!$C284=2,dati_bdv!$D$2:$D$65536,IF(dati_pdc!$C284=3,dati_bdv!$E$2:$E$65536,IF(dati_pdc!$C284=4,dati_bdv!$F$2:$F$65536,IF(dati_pdc!$C284=5,dati_bdv!$G$2:$G$65536,dati_bdv!$H$2:$H$65536))))),$A284,dati_bdv!M$2:M$65536)","v":0},{"$f":"SUMIF(IF(dati_pdc!$C284=1,dati_bdv!$C$2:$C$65536,IF(dati_pdc!$C284=2,dati_bdv!$D$2:$D$65536,IF(dati_pdc!$C284=3,dati_bdv!$E$2:$E$65536,IF(dati_pdc!$C284=4,dati_bdv!$F$2:$F$65536,IF(dati_pdc!$C284=5,dati_bdv!$G$2:$G$65536,dati_bdv!$H$2:$H$65536))))),$A284,dati_bdv!N$2:N$65536)","v":0}]
[{"$f":"dati_pdc!A285","v":0},{"$f":"SUMIF(IF(dati_pdc!$C285=1,dati_bdv!$C$2:$C$65536,IF(dati_pdc!$C285=2,dati_bdv!$D$2:$D$65536,IF(dati_pdc!$C285=3,dati_bdv!$E$2:$E$65536,IF(dati_pdc!$C285=4,dati_bdv!$F$2:$F$65536,IF(dati_pdc!$C285=5,dati_bdv!$G$2:$G$65536,dati_bdv!$H$2:$H$65536))))),$A285,dati_bdv!J$2:J$65536)","v":0},{"$f":"SUMIF(IF(dati_pdc!$C285=1,dati_bdv!$C$2:$C$65536,IF(dati_pdc!$C285=2,dati_bdv!$D$2:$D$65536,IF(dati_pdc!$C285=3,dati_bdv!$E$2:$E$65536,IF(dati_pdc!$C285=4,dati_bdv!$F$2:$F$65536,IF(dati_pdc!$C285=5,dati_bdv!$G$2:$G$65536,dati_bdv!$H$2:$H$65536))))),$A285,dati_bdv!K$2:K$65536)","v":0},{"$f":"SUMIF(IF(dati_pdc!$C285=1,dati_bdv!$C$2:$C$65536,IF(dati_pdc!$C285=2,dati_bdv!$D$2:$D$65536,IF(dati_pdc!$C285=3,dati_bdv!$E$2:$E$65536,IF(dati_pdc!$C285=4,dati_bdv!$F$2:$F$65536,IF(dati_pdc!$C285=5,dati_bdv!$G$2:$G$65536,dati_bdv!$H$2:$H$65536))))),$A285,dati_bdv!L$2:L$65536)","v":0},{"$f":"SUMIF(IF(dati_pdc!$C285=1,dati_bdv!$C$2:$C$65536,IF(dati_pdc!$C285=2,dati_bdv!$D$2:$D$65536,IF(dati_pdc!$C285=3,dati_bdv!$E$2:$E$65536,IF(dati_pdc!$C285=4,dati_bdv!$F$2:$F$65536,IF(dati_pdc!$C285=5,dati_bdv!$G$2:$G$65536,dati_bdv!$H$2:$H$65536))))),$A285,dati_bdv!M$2:M$65536)","v":0},{"$f":"SUMIF(IF(dati_pdc!$C285=1,dati_bdv!$C$2:$C$65536,IF(dati_pdc!$C285=2,dati_bdv!$D$2:$D$65536,IF(dati_pdc!$C285=3,dati_bdv!$E$2:$E$65536,IF(dati_pdc!$C285=4,dati_bdv!$F$2:$F$65536,IF(dati_pdc!$C285=5,dati_bdv!$G$2:$G$65536,dati_bdv!$H$2:$H$65536))))),$A285,dati_bdv!N$2:N$65536)","v":0}]
[{"$f":"dati_pdc!A286","v":0},{"$f":"SUMIF(IF(dati_pdc!$C286=1,dati_bdv!$C$2:$C$65536,IF(dati_pdc!$C286=2,dati_bdv!$D$2:$D$65536,IF(dati_pdc!$C286=3,dati_bdv!$E$2:$E$65536,IF(dati_pdc!$C286=4,dati_bdv!$F$2:$F$65536,IF(dati_pdc!$C286=5,dati_bdv!$G$2:$G$65536,dati_bdv!$H$2:$H$65536))))),$A286,dati_bdv!J$2:J$65536)","v":0},{"$f":"SUMIF(IF(dati_pdc!$C286=1,dati_bdv!$C$2:$C$65536,IF(dati_pdc!$C286=2,dati_bdv!$D$2:$D$65536,IF(dati_pdc!$C286=3,dati_bdv!$E$2:$E$65536,IF(dati_pdc!$C286=4,dati_bdv!$F$2:$F$65536,IF(dati_pdc!$C286=5,dati_bdv!$G$2:$G$65536,dati_bdv!$H$2:$H$65536))))),$A286,dati_bdv!K$2:K$65536)","v":0},{"$f":"SUMIF(IF(dati_pdc!$C286=1,dati_bdv!$C$2:$C$65536,IF(dati_pdc!$C286=2,dati_bdv!$D$2:$D$65536,IF(dati_pdc!$C286=3,dati_bdv!$E$2:$E$65536,IF(dati_pdc!$C286=4,dati_bdv!$F$2:$F$65536,IF(dati_pdc!$C286=5,dati_bdv!$G$2:$G$65536,dati_bdv!$H$2:$H$65536))))),$A286,dati_bdv!L$2:L$65536)","v":0},{"$f":"SUMIF(IF(dati_pdc!$C286=1,dati_bdv!$C$2:$C$65536,IF(dati_pdc!$C286=2,dati_bdv!$D$2:$D$65536,IF(dati_pdc!$C286=3,dati_bdv!$E$2:$E$65536,IF(dati_pdc!$C286=4,dati_bdv!$F$2:$F$65536,IF(dati_pdc!$C286=5,dati_bdv!$G$2:$G$65536,dati_bdv!$H$2:$H$65536))))),$A286,dati_bdv!M$2:M$65536)","v":0},{"$f":"SUMIF(IF(dati_pdc!$C286=1,dati_bdv!$C$2:$C$65536,IF(dati_pdc!$C286=2,dati_bdv!$D$2:$D$65536,IF(dati_pdc!$C286=3,dati_bdv!$E$2:$E$65536,IF(dati_pdc!$C286=4,dati_bdv!$F$2:$F$65536,IF(dati_pdc!$C286=5,dati_bdv!$G$2:$G$65536,dati_bdv!$H$2:$H$65536))))),$A286,dati_bdv!N$2:N$65536)","v":0}]
[{"$f":"dati_pdc!A287","v":0},{"$f":"SUMIF(IF(dati_pdc!$C287=1,dati_bdv!$C$2:$C$65536,IF(dati_pdc!$C287=2,dati_bdv!$D$2:$D$65536,IF(dati_pdc!$C287=3,dati_bdv!$E$2:$E$65536,IF(dati_pdc!$C287=4,dati_bdv!$F$2:$F$65536,IF(dati_pdc!$C287=5,dati_bdv!$G$2:$G$65536,dati_bdv!$H$2:$H$65536))))),$A287,dati_bdv!J$2:J$65536)","v":0},{"$f":"SUMIF(IF(dati_pdc!$C287=1,dati_bdv!$C$2:$C$65536,IF(dati_pdc!$C287=2,dati_bdv!$D$2:$D$65536,IF(dati_pdc!$C287=3,dati_bdv!$E$2:$E$65536,IF(dati_pdc!$C287=4,dati_bdv!$F$2:$F$65536,IF(dati_pdc!$C287=5,dati_bdv!$G$2:$G$65536,dati_bdv!$H$2:$H$65536))))),$A287,dati_bdv!K$2:K$65536)","v":0},{"$f":"SUMIF(IF(dati_pdc!$C287=1,dati_bdv!$C$2:$C$65536,IF(dati_pdc!$C287=2,dati_bdv!$D$2:$D$65536,IF(dati_pdc!$C287=3,dati_bdv!$E$2:$E$65536,IF(dati_pdc!$C287=4,dati_bdv!$F$2:$F$65536,IF(dati_pdc!$C287=5,dati_bdv!$G$2:$G$65536,dati_bdv!$H$2:$H$65536))))),$A287,dati_bdv!L$2:L$65536)","v":0},{"$f":"SUMIF(IF(dati_pdc!$C287=1,dati_bdv!$C$2:$C$65536,IF(dati_pdc!$C287=2,dati_bdv!$D$2:$D$65536,IF(dati_pdc!$C287=3,dati_bdv!$E$2:$E$65536,IF(dati_pdc!$C287=4,dati_bdv!$F$2:$F$65536,IF(dati_pdc!$C287=5,dati_bdv!$G$2:$G$65536,dati_bdv!$H$2:$H$65536))))),$A287,dati_bdv!M$2:M$65536)","v":0},{"$f":"SUMIF(IF(dati_pdc!$C287=1,dati_bdv!$C$2:$C$65536,IF(dati_pdc!$C287=2,dati_bdv!$D$2:$D$65536,IF(dati_pdc!$C287=3,dati_bdv!$E$2:$E$65536,IF(dati_pdc!$C287=4,dati_bdv!$F$2:$F$65536,IF(dati_pdc!$C287=5,dati_bdv!$G$2:$G$65536,dati_bdv!$H$2:$H$65536))))),$A287,dati_bdv!N$2:N$65536)","v":0}]
[{"$f":"dati_pdc!A288","v":0},{"$f":"SUMIF(IF(dati_pdc!$C288=1,dati_bdv!$C$2:$C$65536,IF(dati_pdc!$C288=2,dati_bdv!$D$2:$D$65536,IF(dati_pdc!$C288=3,dati_bdv!$E$2:$E$65536,IF(dati_pdc!$C288=4,dati_bdv!$F$2:$F$65536,IF(dati_pdc!$C288=5,dati_bdv!$G$2:$G$65536,dati_bdv!$H$2:$H$65536))))),$A288,dati_bdv!J$2:J$65536)","v":0},{"$f":"SUMIF(IF(dati_pdc!$C288=1,dati_bdv!$C$2:$C$65536,IF(dati_pdc!$C288=2,dati_bdv!$D$2:$D$65536,IF(dati_pdc!$C288=3,dati_bdv!$E$2:$E$65536,IF(dati_pdc!$C288=4,dati_bdv!$F$2:$F$65536,IF(dati_pdc!$C288=5,dati_bdv!$G$2:$G$65536,dati_bdv!$H$2:$H$65536))))),$A288,dati_bdv!K$2:K$65536)","v":0},{"$f":"SUMIF(IF(dati_pdc!$C288=1,dati_bdv!$C$2:$C$65536,IF(dati_pdc!$C288=2,dati_bdv!$D$2:$D$65536,IF(dati_pdc!$C288=3,dati_bdv!$E$2:$E$65536,IF(dati_pdc!$C288=4,dati_bdv!$F$2:$F$65536,IF(dati_pdc!$C288=5,dati_bdv!$G$2:$G$65536,dati_bdv!$H$2:$H$65536))))),$A288,dati_bdv!L$2:L$65536)","v":0},{"$f":"SUMIF(IF(dati_pdc!$C288=1,dati_bdv!$C$2:$C$65536,IF(dati_pdc!$C288=2,dati_bdv!$D$2:$D$65536,IF(dati_pdc!$C288=3,dati_bdv!$E$2:$E$65536,IF(dati_pdc!$C288=4,dati_bdv!$F$2:$F$65536,IF(dati_pdc!$C288=5,dati_bdv!$G$2:$G$65536,dati_bdv!$H$2:$H$65536))))),$A288,dati_bdv!M$2:M$65536)","v":0},{"$f":"SUMIF(IF(dati_pdc!$C288=1,dati_bdv!$C$2:$C$65536,IF(dati_pdc!$C288=2,dati_bdv!$D$2:$D$65536,IF(dati_pdc!$C288=3,dati_bdv!$E$2:$E$65536,IF(dati_pdc!$C288=4,dati_bdv!$F$2:$F$65536,IF(dati_pdc!$C288=5,dati_bdv!$G$2:$G$65536,dati_bdv!$H$2:$H$65536))))),$A288,dati_bdv!N$2:N$65536)","v":0}]
[{"$f":"dati_pdc!A289","v":0},{"$f":"SUMIF(IF(dati_pdc!$C289=1,dati_bdv!$C$2:$C$65536,IF(dati_pdc!$C289=2,dati_bdv!$D$2:$D$65536,IF(dati_pdc!$C289=3,dati_bdv!$E$2:$E$65536,IF(dati_pdc!$C289=4,dati_bdv!$F$2:$F$65536,IF(dati_pdc!$C289=5,dati_bdv!$G$2:$G$65536,dati_bdv!$H$2:$H$65536))))),$A289,dati_bdv!J$2:J$65536)","v":0},{"$f":"SUMIF(IF(dati_pdc!$C289=1,dati_bdv!$C$2:$C$65536,IF(dati_pdc!$C289=2,dati_bdv!$D$2:$D$65536,IF(dati_pdc!$C289=3,dati_bdv!$E$2:$E$65536,IF(dati_pdc!$C289=4,dati_bdv!$F$2:$F$65536,IF(dati_pdc!$C289=5,dati_bdv!$G$2:$G$65536,dati_bdv!$H$2:$H$65536))))),$A289,dati_bdv!K$2:K$65536)","v":0},{"$f":"SUMIF(IF(dati_pdc!$C289=1,dati_bdv!$C$2:$C$65536,IF(dati_pdc!$C289=2,dati_bdv!$D$2:$D$65536,IF(dati_pdc!$C289=3,dati_bdv!$E$2:$E$65536,IF(dati_pdc!$C289=4,dati_bdv!$F$2:$F$65536,IF(dati_pdc!$C289=5,dati_bdv!$G$2:$G$65536,dati_bdv!$H$2:$H$65536))))),$A289,dati_bdv!L$2:L$65536)","v":0},{"$f":"SUMIF(IF(dati_pdc!$C289=1,dati_bdv!$C$2:$C$65536,IF(dati_pdc!$C289=2,dati_bdv!$D$2:$D$65536,IF(dati_pdc!$C289=3,dati_bdv!$E$2:$E$65536,IF(dati_pdc!$C289=4,dati_bdv!$F$2:$F$65536,IF(dati_pdc!$C289=5,dati_bdv!$G$2:$G$65536,dati_bdv!$H$2:$H$65536))))),$A289,dati_bdv!M$2:M$65536)","v":0},{"$f":"SUMIF(IF(dati_pdc!$C289=1,dati_bdv!$C$2:$C$65536,IF(dati_pdc!$C289=2,dati_bdv!$D$2:$D$65536,IF(dati_pdc!$C289=3,dati_bdv!$E$2:$E$65536,IF(dati_pdc!$C289=4,dati_bdv!$F$2:$F$65536,IF(dati_pdc!$C289=5,dati_bdv!$G$2:$G$65536,dati_bdv!$H$2:$H$65536))))),$A289,dati_bdv!N$2:N$65536)","v":0}]
[{"$f":"dati_pdc!A290","v":0},{"$f":"SUMIF(IF(dati_pdc!$C290=1,dati_bdv!$C$2:$C$65536,IF(dati_pdc!$C290=2,dati_bdv!$D$2:$D$65536,IF(dati_pdc!$C290=3,dati_bdv!$E$2:$E$65536,IF(dati_pdc!$C290=4,dati_bdv!$F$2:$F$65536,IF(dati_pdc!$C290=5,dati_bdv!$G$2:$G$65536,dati_bdv!$H$2:$H$65536))))),$A290,dati_bdv!J$2:J$65536)","v":0},{"$f":"SUMIF(IF(dati_pdc!$C290=1,dati_bdv!$C$2:$C$65536,IF(dati_pdc!$C290=2,dati_bdv!$D$2:$D$65536,IF(dati_pdc!$C290=3,dati_bdv!$E$2:$E$65536,IF(dati_pdc!$C290=4,dati_bdv!$F$2:$F$65536,IF(dati_pdc!$C290=5,dati_bdv!$G$2:$G$65536,dati_bdv!$H$2:$H$65536))))),$A290,dati_bdv!K$2:K$65536)","v":0},{"$f":"SUMIF(IF(dati_pdc!$C290=1,dati_bdv!$C$2:$C$65536,IF(dati_pdc!$C290=2,dati_bdv!$D$2:$D$65536,IF(dati_pdc!$C290=3,dati_bdv!$E$2:$E$65536,IF(dati_pdc!$C290=4,dati_bdv!$F$2:$F$65536,IF(dati_pdc!$C290=5,dati_bdv!$G$2:$G$65536,dati_bdv!$H$2:$H$65536))))),$A290,dati_bdv!L$2:L$65536)","v":0},{"$f":"SUMIF(IF(dati_pdc!$C290=1,dati_bdv!$C$2:$C$65536,IF(dati_pdc!$C290=2,dati_bdv!$D$2:$D$65536,IF(dati_pdc!$C290=3,dati_bdv!$E$2:$E$65536,IF(dati_pdc!$C290=4,dati_bdv!$F$2:$F$65536,IF(dati_pdc!$C290=5,dati_bdv!$G$2:$G$65536,dati_bdv!$H$2:$H$65536))))),$A290,dati_bdv!M$2:M$65536)","v":0},{"$f":"SUMIF(IF(dati_pdc!$C290=1,dati_bdv!$C$2:$C$65536,IF(dati_pdc!$C290=2,dati_bdv!$D$2:$D$65536,IF(dati_pdc!$C290=3,dati_bdv!$E$2:$E$65536,IF(dati_pdc!$C290=4,dati_bdv!$F$2:$F$65536,IF(dati_pdc!$C290=5,dati_bdv!$G$2:$G$65536,dati_bdv!$H$2:$H$65536))))),$A290,dati_bdv!N$2:N$65536)","v":0}]
[{"$f":"dati_pdc!A291","v":0},{"$f":"SUMIF(IF(dati_pdc!$C291=1,dati_bdv!$C$2:$C$65536,IF(dati_pdc!$C291=2,dati_bdv!$D$2:$D$65536,IF(dati_pdc!$C291=3,dati_bdv!$E$2:$E$65536,IF(dati_pdc!$C291=4,dati_bdv!$F$2:$F$65536,IF(dati_pdc!$C291=5,dati_bdv!$G$2:$G$65536,dati_bdv!$H$2:$H$65536))))),$A291,dati_bdv!J$2:J$65536)","v":0},{"$f":"SUMIF(IF(dati_pdc!$C291=1,dati_bdv!$C$2:$C$65536,IF(dati_pdc!$C291=2,dati_bdv!$D$2:$D$65536,IF(dati_pdc!$C291=3,dati_bdv!$E$2:$E$65536,IF(dati_pdc!$C291=4,dati_bdv!$F$2:$F$65536,IF(dati_pdc!$C291=5,dati_bdv!$G$2:$G$65536,dati_bdv!$H$2:$H$65536))))),$A291,dati_bdv!K$2:K$65536)","v":0},{"$f":"SUMIF(IF(dati_pdc!$C291=1,dati_bdv!$C$2:$C$65536,IF(dati_pdc!$C291=2,dati_bdv!$D$2:$D$65536,IF(dati_pdc!$C291=3,dati_bdv!$E$2:$E$65536,IF(dati_pdc!$C291=4,dati_bdv!$F$2:$F$65536,IF(dati_pdc!$C291=5,dati_bdv!$G$2:$G$65536,dati_bdv!$H$2:$H$65536))))),$A291,dati_bdv!L$2:L$65536)","v":0},{"$f":"SUMIF(IF(dati_pdc!$C291=1,dati_bdv!$C$2:$C$65536,IF(dati_pdc!$C291=2,dati_bdv!$D$2:$D$65536,IF(dati_pdc!$C291=3,dati_bdv!$E$2:$E$65536,IF(dati_pdc!$C291=4,dati_bdv!$F$2:$F$65536,IF(dati_pdc!$C291=5,dati_bdv!$G$2:$G$65536,dati_bdv!$H$2:$H$65536))))),$A291,dati_bdv!M$2:M$65536)","v":0},{"$f":"SUMIF(IF(dati_pdc!$C291=1,dati_bdv!$C$2:$C$65536,IF(dati_pdc!$C291=2,dati_bdv!$D$2:$D$65536,IF(dati_pdc!$C291=3,dati_bdv!$E$2:$E$65536,IF(dati_pdc!$C291=4,dati_bdv!$F$2:$F$65536,IF(dati_pdc!$C291=5,dati_bdv!$G$2:$G$65536,dati_bdv!$H$2:$H$65536))))),$A291,dati_bdv!N$2:N$65536)","v":0}]
[{"$f":"dati_pdc!A292","v":0},{"$f":"SUMIF(IF(dati_pdc!$C292=1,dati_bdv!$C$2:$C$65536,IF(dati_pdc!$C292=2,dati_bdv!$D$2:$D$65536,IF(dati_pdc!$C292=3,dati_bdv!$E$2:$E$65536,IF(dati_pdc!$C292=4,dati_bdv!$F$2:$F$65536,IF(dati_pdc!$C292=5,dati_bdv!$G$2:$G$65536,dati_bdv!$H$2:$H$65536))))),$A292,dati_bdv!J$2:J$65536)","v":0},{"$f":"SUMIF(IF(dati_pdc!$C292=1,dati_bdv!$C$2:$C$65536,IF(dati_pdc!$C292=2,dati_bdv!$D$2:$D$65536,IF(dati_pdc!$C292=3,dati_bdv!$E$2:$E$65536,IF(dati_pdc!$C292=4,dati_bdv!$F$2:$F$65536,IF(dati_pdc!$C292=5,dati_bdv!$G$2:$G$65536,dati_bdv!$H$2:$H$65536))))),$A292,dati_bdv!K$2:K$65536)","v":0},{"$f":"SUMIF(IF(dati_pdc!$C292=1,dati_bdv!$C$2:$C$65536,IF(dati_pdc!$C292=2,dati_bdv!$D$2:$D$65536,IF(dati_pdc!$C292=3,dati_bdv!$E$2:$E$65536,IF(dati_pdc!$C292=4,dati_bdv!$F$2:$F$65536,IF(dati_pdc!$C292=5,dati_bdv!$G$2:$G$65536,dati_bdv!$H$2:$H$65536))))),$A292,dati_bdv!L$2:L$65536)","v":0},{"$f":"SUMIF(IF(dati_pdc!$C292=1,dati_bdv!$C$2:$C$65536,IF(dati_pdc!$C292=2,dati_bdv!$D$2:$D$65536,IF(dati_pdc!$C292=3,dati_bdv!$E$2:$E$65536,IF(dati_pdc!$C292=4,dati_bdv!$F$2:$F$65536,IF(dati_pdc!$C292=5,dati_bdv!$G$2:$G$65536,dati_bdv!$H$2:$H$65536))))),$A292,dati_bdv!M$2:M$65536)","v":0},{"$f":"SUMIF(IF(dati_pdc!$C292=1,dati_bdv!$C$2:$C$65536,IF(dati_pdc!$C292=2,dati_bdv!$D$2:$D$65536,IF(dati_pdc!$C292=3,dati_bdv!$E$2:$E$65536,IF(dati_pdc!$C292=4,dati_bdv!$F$2:$F$65536,IF(dati_pdc!$C292=5,dati_bdv!$G$2:$G$65536,dati_bdv!$H$2:$H$65536))))),$A292,dati_bdv!N$2:N$65536)","v":0}]
[{"$f":"dati_pdc!A293","v":0},{"$f":"SUMIF(IF(dati_pdc!$C293=1,dati_bdv!$C$2:$C$65536,IF(dati_pdc!$C293=2,dati_bdv!$D$2:$D$65536,IF(dati_pdc!$C293=3,dati_bdv!$E$2:$E$65536,IF(dati_pdc!$C293=4,dati_bdv!$F$2:$F$65536,IF(dati_pdc!$C293=5,dati_bdv!$G$2:$G$65536,dati_bdv!$H$2:$H$65536))))),$A293,dati_bdv!J$2:J$65536)","v":0},{"$f":"SUMIF(IF(dati_pdc!$C293=1,dati_bdv!$C$2:$C$65536,IF(dati_pdc!$C293=2,dati_bdv!$D$2:$D$65536,IF(dati_pdc!$C293=3,dati_bdv!$E$2:$E$65536,IF(dati_pdc!$C293=4,dati_bdv!$F$2:$F$65536,IF(dati_pdc!$C293=5,dati_bdv!$G$2:$G$65536,dati_bdv!$H$2:$H$65536))))),$A293,dati_bdv!K$2:K$65536)","v":0},{"$f":"SUMIF(IF(dati_pdc!$C293=1,dati_bdv!$C$2:$C$65536,IF(dati_pdc!$C293=2,dati_bdv!$D$2:$D$65536,IF(dati_pdc!$C293=3,dati_bdv!$E$2:$E$65536,IF(dati_pdc!$C293=4,dati_bdv!$F$2:$F$65536,IF(dati_pdc!$C293=5,dati_bdv!$G$2:$G$65536,dati_bdv!$H$2:$H$65536))))),$A293,dati_bdv!L$2:L$65536)","v":0},{"$f":"SUMIF(IF(dati_pdc!$C293=1,dati_bdv!$C$2:$C$65536,IF(dati_pdc!$C293=2,dati_bdv!$D$2:$D$65536,IF(dati_pdc!$C293=3,dati_bdv!$E$2:$E$65536,IF(dati_pdc!$C293=4,dati_bdv!$F$2:$F$65536,IF(dati_pdc!$C293=5,dati_bdv!$G$2:$G$65536,dati_bdv!$H$2:$H$65536))))),$A293,dati_bdv!M$2:M$65536)","v":0},{"$f":"SUMIF(IF(dati_pdc!$C293=1,dati_bdv!$C$2:$C$65536,IF(dati_pdc!$C293=2,dati_bdv!$D$2:$D$65536,IF(dati_pdc!$C293=3,dati_bdv!$E$2:$E$65536,IF(dati_pdc!$C293=4,dati_bdv!$F$2:$F$65536,IF(dati_pdc!$C293=5,dati_bdv!$G$2:$G$65536,dati_bdv!$H$2:$H$65536))))),$A293,dati_bdv!N$2:N$65536)","v":0}]
[{"$f":"dati_pdc!A294","v":0},{"$f":"SUMIF(IF(dati_pdc!$C294=1,dati_bdv!$C$2:$C$65536,IF(dati_pdc!$C294=2,dati_bdv!$D$2:$D$65536,IF(dati_pdc!$C294=3,dati_bdv!$E$2:$E$65536,IF(dati_pdc!$C294=4,dati_bdv!$F$2:$F$65536,IF(dati_pdc!$C294=5,dati_bdv!$G$2:$G$65536,dati_bdv!$H$2:$H$65536))))),$A294,dati_bdv!J$2:J$65536)","v":0},{"$f":"SUMIF(IF(dati_pdc!$C294=1,dati_bdv!$C$2:$C$65536,IF(dati_pdc!$C294=2,dati_bdv!$D$2:$D$65536,IF(dati_pdc!$C294=3,dati_bdv!$E$2:$E$65536,IF(dati_pdc!$C294=4,dati_bdv!$F$2:$F$65536,IF(dati_pdc!$C294=5,dati_bdv!$G$2:$G$65536,dati_bdv!$H$2:$H$65536))))),$A294,dati_bdv!K$2:K$65536)","v":0},{"$f":"SUMIF(IF(dati_pdc!$C294=1,dati_bdv!$C$2:$C$65536,IF(dati_pdc!$C294=2,dati_bdv!$D$2:$D$65536,IF(dati_pdc!$C294=3,dati_bdv!$E$2:$E$65536,IF(dati_pdc!$C294=4,dati_bdv!$F$2:$F$65536,IF(dati_pdc!$C294=5,dati_bdv!$G$2:$G$65536,dati_bdv!$H$2:$H$65536))))),$A294,dati_bdv!L$2:L$65536)","v":0},{"$f":"SUMIF(IF(dati_pdc!$C294=1,dati_bdv!$C$2:$C$65536,IF(dati_pdc!$C294=2,dati_bdv!$D$2:$D$65536,IF(dati_pdc!$C294=3,dati_bdv!$E$2:$E$65536,IF(dati_pdc!$C294=4,dati_bdv!$F$2:$F$65536,IF(dati_pdc!$C294=5,dati_bdv!$G$2:$G$65536,dati_bdv!$H$2:$H$65536))))),$A294,dati_bdv!M$2:M$65536)","v":0},{"$f":"SUMIF(IF(dati_pdc!$C294=1,dati_bdv!$C$2:$C$65536,IF(dati_pdc!$C294=2,dati_bdv!$D$2:$D$65536,IF(dati_pdc!$C294=3,dati_bdv!$E$2:$E$65536,IF(dati_pdc!$C294=4,dati_bdv!$F$2:$F$65536,IF(dati_pdc!$C294=5,dati_bdv!$G$2:$G$65536,dati_bdv!$H$2:$H$65536))))),$A294,dati_bdv!N$2:N$65536)","v":0}]
[{"$f":"dati_pdc!A295","v":0},{"$f":"SUMIF(IF(dati_pdc!$C295=1,dati_bdv!$C$2:$C$65536,IF(dati_pdc!$C295=2,dati_bdv!$D$2:$D$65536,IF(dati_pdc!$C295=3,dati_bdv!$E$2:$E$65536,IF(dati_pdc!$C295=4,dati_bdv!$F$2:$F$65536,IF(dati_pdc!$C295=5,dati_bdv!$G$2:$G$65536,dati_bdv!$H$2:$H$65536))))),$A295,dati_bdv!J$2:J$65536)","v":0},{"$f":"SUMIF(IF(dati_pdc!$C295=1,dati_bdv!$C$2:$C$65536,IF(dati_pdc!$C295=2,dati_bdv!$D$2:$D$65536,IF(dati_pdc!$C295=3,dati_bdv!$E$2:$E$65536,IF(dati_pdc!$C295=4,dati_bdv!$F$2:$F$65536,IF(dati_pdc!$C295=5,dati_bdv!$G$2:$G$65536,dati_bdv!$H$2:$H$65536))))),$A295,dati_bdv!K$2:K$65536)","v":0},{"$f":"SUMIF(IF(dati_pdc!$C295=1,dati_bdv!$C$2:$C$65536,IF(dati_pdc!$C295=2,dati_bdv!$D$2:$D$65536,IF(dati_pdc!$C295=3,dati_bdv!$E$2:$E$65536,IF(dati_pdc!$C295=4,dati_bdv!$F$2:$F$65536,IF(dati_pdc!$C295=5,dati_bdv!$G$2:$G$65536,dati_bdv!$H$2:$H$65536))))),$A295,dati_bdv!L$2:L$65536)","v":0},{"$f":"SUMIF(IF(dati_pdc!$C295=1,dati_bdv!$C$2:$C$65536,IF(dati_pdc!$C295=2,dati_bdv!$D$2:$D$65536,IF(dati_pdc!$C295=3,dati_bdv!$E$2:$E$65536,IF(dati_pdc!$C295=4,dati_bdv!$F$2:$F$65536,IF(dati_pdc!$C295=5,dati_bdv!$G$2:$G$65536,dati_bdv!$H$2:$H$65536))))),$A295,dati_bdv!M$2:M$65536)","v":0},{"$f":"SUMIF(IF(dati_pdc!$C295=1,dati_bdv!$C$2:$C$65536,IF(dati_pdc!$C295=2,dati_bdv!$D$2:$D$65536,IF(dati_pdc!$C295=3,dati_bdv!$E$2:$E$65536,IF(dati_pdc!$C295=4,dati_bdv!$F$2:$F$65536,IF(dati_pdc!$C295=5,dati_bdv!$G$2:$G$65536,dati_bdv!$H$2:$H$65536))))),$A295,dati_bdv!N$2:N$65536)","v":0}]
[{"$f":"dati_pdc!A296","v":0},{"$f":"SUMIF(IF(dati_pdc!$C296=1,dati_bdv!$C$2:$C$65536,IF(dati_pdc!$C296=2,dati_bdv!$D$2:$D$65536,IF(dati_pdc!$C296=3,dati_bdv!$E$2:$E$65536,IF(dati_pdc!$C296=4,dati_bdv!$F$2:$F$65536,IF(dati_pdc!$C296=5,dati_bdv!$G$2:$G$65536,dati_bdv!$H$2:$H$65536))))),$A296,dati_bdv!J$2:J$65536)","v":0},{"$f":"SUMIF(IF(dati_pdc!$C296=1,dati_bdv!$C$2:$C$65536,IF(dati_pdc!$C296=2,dati_bdv!$D$2:$D$65536,IF(dati_pdc!$C296=3,dati_bdv!$E$2:$E$65536,IF(dati_pdc!$C296=4,dati_bdv!$F$2:$F$65536,IF(dati_pdc!$C296=5,dati_bdv!$G$2:$G$65536,dati_bdv!$H$2:$H$65536))))),$A296,dati_bdv!K$2:K$65536)","v":0},{"$f":"SUMIF(IF(dati_pdc!$C296=1,dati_bdv!$C$2:$C$65536,IF(dati_pdc!$C296=2,dati_bdv!$D$2:$D$65536,IF(dati_pdc!$C296=3,dati_bdv!$E$2:$E$65536,IF(dati_pdc!$C296=4,dati_bdv!$F$2:$F$65536,IF(dati_pdc!$C296=5,dati_bdv!$G$2:$G$65536,dati_bdv!$H$2:$H$65536))))),$A296,dati_bdv!L$2:L$65536)","v":0},{"$f":"SUMIF(IF(dati_pdc!$C296=1,dati_bdv!$C$2:$C$65536,IF(dati_pdc!$C296=2,dati_bdv!$D$2:$D$65536,IF(dati_pdc!$C296=3,dati_bdv!$E$2:$E$65536,IF(dati_pdc!$C296=4,dati_bdv!$F$2:$F$65536,IF(dati_pdc!$C296=5,dati_bdv!$G$2:$G$65536,dati_bdv!$H$2:$H$65536))))),$A296,dati_bdv!M$2:M$65536)","v":0},{"$f":"SUMIF(IF(dati_pdc!$C296=1,dati_bdv!$C$2:$C$65536,IF(dati_pdc!$C296=2,dati_bdv!$D$2:$D$65536,IF(dati_pdc!$C296=3,dati_bdv!$E$2:$E$65536,IF(dati_pdc!$C296=4,dati_bdv!$F$2:$F$65536,IF(dati_pdc!$C296=5,dati_bdv!$G$2:$G$65536,dati_bdv!$H$2:$H$65536))))),$A296,dati_bdv!N$2:N$65536)","v":0}]
[{"$f":"dati_pdc!A297","v":0},{"$f":"SUMIF(IF(dati_pdc!$C297=1,dati_bdv!$C$2:$C$65536,IF(dati_pdc!$C297=2,dati_bdv!$D$2:$D$65536,IF(dati_pdc!$C297=3,dati_bdv!$E$2:$E$65536,IF(dati_pdc!$C297=4,dati_bdv!$F$2:$F$65536,IF(dati_pdc!$C297=5,dati_bdv!$G$2:$G$65536,dati_bdv!$H$2:$H$65536))))),$A297,dati_bdv!J$2:J$65536)","v":0},{"$f":"SUMIF(IF(dati_pdc!$C297=1,dati_bdv!$C$2:$C$65536,IF(dati_pdc!$C297=2,dati_bdv!$D$2:$D$65536,IF(dati_pdc!$C297=3,dati_bdv!$E$2:$E$65536,IF(dati_pdc!$C297=4,dati_bdv!$F$2:$F$65536,IF(dati_pdc!$C297=5,dati_bdv!$G$2:$G$65536,dati_bdv!$H$2:$H$65536))))),$A297,dati_bdv!K$2:K$65536)","v":0},{"$f":"SUMIF(IF(dati_pdc!$C297=1,dati_bdv!$C$2:$C$65536,IF(dati_pdc!$C297=2,dati_bdv!$D$2:$D$65536,IF(dati_pdc!$C297=3,dati_bdv!$E$2:$E$65536,IF(dati_pdc!$C297=4,dati_bdv!$F$2:$F$65536,IF(dati_pdc!$C297=5,dati_bdv!$G$2:$G$65536,dati_bdv!$H$2:$H$65536))))),$A297,dati_bdv!L$2:L$65536)","v":0},{"$f":"SUMIF(IF(dati_pdc!$C297=1,dati_bdv!$C$2:$C$65536,IF(dati_pdc!$C297=2,dati_bdv!$D$2:$D$65536,IF(dati_pdc!$C297=3,dati_bdv!$E$2:$E$65536,IF(dati_pdc!$C297=4,dati_bdv!$F$2:$F$65536,IF(dati_pdc!$C297=5,dati_bdv!$G$2:$G$65536,dati_bdv!$H$2:$H$65536))))),$A297,dati_bdv!M$2:M$65536)","v":0},{"$f":"SUMIF(IF(dati_pdc!$C297=1,dati_bdv!$C$2:$C$65536,IF(dati_pdc!$C297=2,dati_bdv!$D$2:$D$65536,IF(dati_pdc!$C297=3,dati_bdv!$E$2:$E$65536,IF(dati_pdc!$C297=4,dati_bdv!$F$2:$F$65536,IF(dati_pdc!$C297=5,dati_bdv!$G$2:$G$65536,dati_bdv!$H$2:$H$65536))))),$A297,dati_bdv!N$2:N$65536)","v":0}]
[{"$f":"dati_pdc!A298","v":0},{"$f":"SUMIF(IF(dati_pdc!$C298=1,dati_bdv!$C$2:$C$65536,IF(dati_pdc!$C298=2,dati_bdv!$D$2:$D$65536,IF(dati_pdc!$C298=3,dati_bdv!$E$2:$E$65536,IF(dati_pdc!$C298=4,dati_bdv!$F$2:$F$65536,IF(dati_pdc!$C298=5,dati_bdv!$G$2:$G$65536,dati_bdv!$H$2:$H$65536))))),$A298,dati_bdv!J$2:J$65536)","v":0},{"$f":"SUMIF(IF(dati_pdc!$C298=1,dati_bdv!$C$2:$C$65536,IF(dati_pdc!$C298=2,dati_bdv!$D$2:$D$65536,IF(dati_pdc!$C298=3,dati_bdv!$E$2:$E$65536,IF(dati_pdc!$C298=4,dati_bdv!$F$2:$F$65536,IF(dati_pdc!$C298=5,dati_bdv!$G$2:$G$65536,dati_bdv!$H$2:$H$65536))))),$A298,dati_bdv!K$2:K$65536)","v":0},{"$f":"SUMIF(IF(dati_pdc!$C298=1,dati_bdv!$C$2:$C$65536,IF(dati_pdc!$C298=2,dati_bdv!$D$2:$D$65536,IF(dati_pdc!$C298=3,dati_bdv!$E$2:$E$65536,IF(dati_pdc!$C298=4,dati_bdv!$F$2:$F$65536,IF(dati_pdc!$C298=5,dati_bdv!$G$2:$G$65536,dati_bdv!$H$2:$H$65536))))),$A298,dati_bdv!L$2:L$65536)","v":0},{"$f":"SUMIF(IF(dati_pdc!$C298=1,dati_bdv!$C$2:$C$65536,IF(dati_pdc!$C298=2,dati_bdv!$D$2:$D$65536,IF(dati_pdc!$C298=3,dati_bdv!$E$2:$E$65536,IF(dati_pdc!$C298=4,dati_bdv!$F$2:$F$65536,IF(dati_pdc!$C298=5,dati_bdv!$G$2:$G$65536,dati_bdv!$H$2:$H$65536))))),$A298,dati_bdv!M$2:M$65536)","v":0},{"$f":"SUMIF(IF(dati_pdc!$C298=1,dati_bdv!$C$2:$C$65536,IF(dati_pdc!$C298=2,dati_bdv!$D$2:$D$65536,IF(dati_pdc!$C298=3,dati_bdv!$E$2:$E$65536,IF(dati_pdc!$C298=4,dati_bdv!$F$2:$F$65536,IF(dati_pdc!$C298=5,dati_bdv!$G$2:$G$65536,dati_bdv!$H$2:$H$65536))))),$A298,dati_bdv!N$2:N$65536)","v":0}]
[{"$f":"dati_pdc!A299","v":0},{"$f":"SUMIF(IF(dati_pdc!$C299=1,dati_bdv!$C$2:$C$65536,IF(dati_pdc!$C299=2,dati_bdv!$D$2:$D$65536,IF(dati_pdc!$C299=3,dati_bdv!$E$2:$E$65536,IF(dati_pdc!$C299=4,dati_bdv!$F$2:$F$65536,IF(dati_pdc!$C299=5,dati_bdv!$G$2:$G$65536,dati_bdv!$H$2:$H$65536))))),$A299,dati_bdv!J$2:J$65536)","v":0},{"$f":"SUMIF(IF(dati_pdc!$C299=1,dati_bdv!$C$2:$C$65536,IF(dati_pdc!$C299=2,dati_bdv!$D$2:$D$65536,IF(dati_pdc!$C299=3,dati_bdv!$E$2:$E$65536,IF(dati_pdc!$C299=4,dati_bdv!$F$2:$F$65536,IF(dati_pdc!$C299=5,dati_bdv!$G$2:$G$65536,dati_bdv!$H$2:$H$65536))))),$A299,dati_bdv!K$2:K$65536)","v":0},{"$f":"SUMIF(IF(dati_pdc!$C299=1,dati_bdv!$C$2:$C$65536,IF(dati_pdc!$C299=2,dati_bdv!$D$2:$D$65536,IF(dati_pdc!$C299=3,dati_bdv!$E$2:$E$65536,IF(dati_pdc!$C299=4,dati_bdv!$F$2:$F$65536,IF(dati_pdc!$C299=5,dati_bdv!$G$2:$G$65536,dati_bdv!$H$2:$H$65536))))),$A299,dati_bdv!L$2:L$65536)","v":0},{"$f":"SUMIF(IF(dati_pdc!$C299=1,dati_bdv!$C$2:$C$65536,IF(dati_pdc!$C299=2,dati_bdv!$D$2:$D$65536,IF(dati_pdc!$C299=3,dati_bdv!$E$2:$E$65536,IF(dati_pdc!$C299=4,dati_bdv!$F$2:$F$65536,IF(dati_pdc!$C299=5,dati_bdv!$G$2:$G$65536,dati_bdv!$H$2:$H$65536))))),$A299,dati_bdv!M$2:M$65536)","v":0},{"$f":"SUMIF(IF(dati_pdc!$C299=1,dati_bdv!$C$2:$C$65536,IF(dati_pdc!$C299=2,dati_bdv!$D$2:$D$65536,IF(dati_pdc!$C299=3,dati_bdv!$E$2:$E$65536,IF(dati_pdc!$C299=4,dati_bdv!$F$2:$F$65536,IF(dati_pdc!$C299=5,dati_bdv!$G$2:$G$65536,dati_bdv!$H$2:$H$65536))))),$A299,dati_bdv!N$2:N$65536)","v":0}]
[{"$f":"dati_pdc!A300","v":0},{"$f":"SUMIF(IF(dati_pdc!$C300=1,dati_bdv!$C$2:$C$65536,IF(dati_pdc!$C300=2,dati_bdv!$D$2:$D$65536,IF(dati_pdc!$C300=3,dati_bdv!$E$2:$E$65536,IF(dati_pdc!$C300=4,dati_bdv!$F$2:$F$65536,IF(dati_pdc!$C300=5,dati_bdv!$G$2:$G$65536,dati_bdv!$H$2:$H$65536))))),$A300,dati_bdv!J$2:J$65536)","v":0},{"$f":"SUMIF(IF(dati_pdc!$C300=1,dati_bdv!$C$2:$C$65536,IF(dati_pdc!$C300=2,dati_bdv!$D$2:$D$65536,IF(dati_pdc!$C300=3,dati_bdv!$E$2:$E$65536,IF(dati_pdc!$C300=4,dati_bdv!$F$2:$F$65536,IF(dati_pdc!$C300=5,dati_bdv!$G$2:$G$65536,dati_bdv!$H$2:$H$65536))))),$A300,dati_bdv!K$2:K$65536)","v":0},{"$f":"SUMIF(IF(dati_pdc!$C300=1,dati_bdv!$C$2:$C$65536,IF(dati_pdc!$C300=2,dati_bdv!$D$2:$D$65536,IF(dati_pdc!$C300=3,dati_bdv!$E$2:$E$65536,IF(dati_pdc!$C300=4,dati_bdv!$F$2:$F$65536,IF(dati_pdc!$C300=5,dati_bdv!$G$2:$G$65536,dati_bdv!$H$2:$H$65536))))),$A300,dati_bdv!L$2:L$65536)","v":0},{"$f":"SUMIF(IF(dati_pdc!$C300=1,dati_bdv!$C$2:$C$65536,IF(dati_pdc!$C300=2,dati_bdv!$D$2:$D$65536,IF(dati_pdc!$C300=3,dati_bdv!$E$2:$E$65536,IF(dati_pdc!$C300=4,dati_bdv!$F$2:$F$65536,IF(dati_pdc!$C300=5,dati_bdv!$G$2:$G$65536,dati_bdv!$H$2:$H$65536))))),$A300,dati_bdv!M$2:M$65536)","v":0},{"$f":"SUMIF(IF(dati_pdc!$C300=1,dati_bdv!$C$2:$C$65536,IF(dati_pdc!$C300=2,dati_bdv!$D$2:$D$65536,IF(dati_pdc!$C300=3,dati_bdv!$E$2:$E$65536,IF(dati_pdc!$C300=4,dati_bdv!$F$2:$F$65536,IF(dati_pdc!$C300=5,dati_bdv!$G$2:$G$65536,dati_bdv!$H$2:$H$65536))))),$A300,dati_bdv!N$2:N$65536)","v":0}]
[{"$f":"dati_pdc!A301","v":0},{"$f":"SUMIF(IF(dati_pdc!$C301=1,dati_bdv!$C$2:$C$65536,IF(dati_pdc!$C301=2,dati_bdv!$D$2:$D$65536,IF(dati_pdc!$C301=3,dati_bdv!$E$2:$E$65536,IF(dati_pdc!$C301=4,dati_bdv!$F$2:$F$65536,IF(dati_pdc!$C301=5,dati_bdv!$G$2:$G$65536,dati_bdv!$H$2:$H$65536))))),$A301,dati_bdv!J$2:J$65536)","v":0},{"$f":"SUMIF(IF(dati_pdc!$C301=1,dati_bdv!$C$2:$C$65536,IF(dati_pdc!$C301=2,dati_bdv!$D$2:$D$65536,IF(dati_pdc!$C301=3,dati_bdv!$E$2:$E$65536,IF(dati_pdc!$C301=4,dati_bdv!$F$2:$F$65536,IF(dati_pdc!$C301=5,dati_bdv!$G$2:$G$65536,dati_bdv!$H$2:$H$65536))))),$A301,dati_bdv!K$2:K$65536)","v":0},{"$f":"SUMIF(IF(dati_pdc!$C301=1,dati_bdv!$C$2:$C$65536,IF(dati_pdc!$C301=2,dati_bdv!$D$2:$D$65536,IF(dati_pdc!$C301=3,dati_bdv!$E$2:$E$65536,IF(dati_pdc!$C301=4,dati_bdv!$F$2:$F$65536,IF(dati_pdc!$C301=5,dati_bdv!$G$2:$G$65536,dati_bdv!$H$2:$H$65536))))),$A301,dati_bdv!L$2:L$65536)","v":0},{"$f":"SUMIF(IF(dati_pdc!$C301=1,dati_bdv!$C$2:$C$65536,IF(dati_pdc!$C301=2,dati_bdv!$D$2:$D$65536,IF(dati_pdc!$C301=3,dati_bdv!$E$2:$E$65536,IF(dati_pdc!$C301=4,dati_bdv!$F$2:$F$65536,IF(dati_pdc!$C301=5,dati_bdv!$G$2:$G$65536,dati_bdv!$H$2:$H$65536))))),$A301,dati_bdv!M$2:M$65536)","v":0},{"$f":"SUMIF(IF(dati_pdc!$C301=1,dati_bdv!$C$2:$C$65536,IF(dati_pdc!$C301=2,dati_bdv!$D$2:$D$65536,IF(dati_pdc!$C301=3,dati_bdv!$E$2:$E$65536,IF(dati_pdc!$C301=4,dati_bdv!$F$2:$F$65536,IF(dati_pdc!$C301=5,dati_bdv!$G$2:$G$65536,dati_bdv!$H$2:$H$65536))))),$A301,dati_bdv!N$2:N$65536)","v":0}]
[{"$f":"dati_pdc!A302","v":0},{"$f":"SUMIF(IF(dati_pdc!$C302=1,dati_bdv!$C$2:$C$65536,IF(dati_pdc!$C302=2,dati_bdv!$D$2:$D$65536,IF(dati_pdc!$C302=3,dati_bdv!$E$2:$E$65536,IF(dati_pdc!$C302=4,dati_bdv!$F$2:$F$65536,IF(dati_pdc!$C302=5,dati_bdv!$G$2:$G$65536,dati_bdv!$H$2:$H$65536))))),$A302,dati_bdv!J$2:J$65536)","v":0},{"$f":"SUMIF(IF(dati_pdc!$C302=1,dati_bdv!$C$2:$C$65536,IF(dati_pdc!$C302=2,dati_bdv!$D$2:$D$65536,IF(dati_pdc!$C302=3,dati_bdv!$E$2:$E$65536,IF(dati_pdc!$C302=4,dati_bdv!$F$2:$F$65536,IF(dati_pdc!$C302=5,dati_bdv!$G$2:$G$65536,dati_bdv!$H$2:$H$65536))))),$A302,dati_bdv!K$2:K$65536)","v":0},{"$f":"SUMIF(IF(dati_pdc!$C302=1,dati_bdv!$C$2:$C$65536,IF(dati_pdc!$C302=2,dati_bdv!$D$2:$D$65536,IF(dati_pdc!$C302=3,dati_bdv!$E$2:$E$65536,IF(dati_pdc!$C302=4,dati_bdv!$F$2:$F$65536,IF(dati_pdc!$C302=5,dati_bdv!$G$2:$G$65536,dati_bdv!$H$2:$H$65536))))),$A302,dati_bdv!L$2:L$65536)","v":0},{"$f":"SUMIF(IF(dati_pdc!$C302=1,dati_bdv!$C$2:$C$65536,IF(dati_pdc!$C302=2,dati_bdv!$D$2:$D$65536,IF(dati_pdc!$C302=3,dati_bdv!$E$2:$E$65536,IF(dati_pdc!$C302=4,dati_bdv!$F$2:$F$65536,IF(dati_pdc!$C302=5,dati_bdv!$G$2:$G$65536,dati_bdv!$H$2:$H$65536))))),$A302,dati_bdv!M$2:M$65536)","v":0},{"$f":"SUMIF(IF(dati_pdc!$C302=1,dati_bdv!$C$2:$C$65536,IF(dati_pdc!$C302=2,dati_bdv!$D$2:$D$65536,IF(dati_pdc!$C302=3,dati_bdv!$E$2:$E$65536,IF(dati_pdc!$C302=4,dati_bdv!$F$2:$F$65536,IF(dati_pdc!$C302=5,dati_bdv!$G$2:$G$65536,dati_bdv!$H$2:$H$65536))))),$A302,dati_bdv!N$2:N$65536)","v":0}]
[{"$f":"dati_pdc!A303","v":0},{"$f":"SUMIF(IF(dati_pdc!$C303=1,dati_bdv!$C$2:$C$65536,IF(dati_pdc!$C303=2,dati_bdv!$D$2:$D$65536,IF(dati_pdc!$C303=3,dati_bdv!$E$2:$E$65536,IF(dati_pdc!$C303=4,dati_bdv!$F$2:$F$65536,IF(dati_pdc!$C303=5,dati_bdv!$G$2:$G$65536,dati_bdv!$H$2:$H$65536))))),$A303,dati_bdv!J$2:J$65536)","v":0},{"$f":"SUMIF(IF(dati_pdc!$C303=1,dati_bdv!$C$2:$C$65536,IF(dati_pdc!$C303=2,dati_bdv!$D$2:$D$65536,IF(dati_pdc!$C303=3,dati_bdv!$E$2:$E$65536,IF(dati_pdc!$C303=4,dati_bdv!$F$2:$F$65536,IF(dati_pdc!$C303=5,dati_bdv!$G$2:$G$65536,dati_bdv!$H$2:$H$65536))))),$A303,dati_bdv!K$2:K$65536)","v":0},{"$f":"SUMIF(IF(dati_pdc!$C303=1,dati_bdv!$C$2:$C$65536,IF(dati_pdc!$C303=2,dati_bdv!$D$2:$D$65536,IF(dati_pdc!$C303=3,dati_bdv!$E$2:$E$65536,IF(dati_pdc!$C303=4,dati_bdv!$F$2:$F$65536,IF(dati_pdc!$C303=5,dati_bdv!$G$2:$G$65536,dati_bdv!$H$2:$H$65536))))),$A303,dati_bdv!L$2:L$65536)","v":0},{"$f":"SUMIF(IF(dati_pdc!$C303=1,dati_bdv!$C$2:$C$65536,IF(dati_pdc!$C303=2,dati_bdv!$D$2:$D$65536,IF(dati_pdc!$C303=3,dati_bdv!$E$2:$E$65536,IF(dati_pdc!$C303=4,dati_bdv!$F$2:$F$65536,IF(dati_pdc!$C303=5,dati_bdv!$G$2:$G$65536,dati_bdv!$H$2:$H$65536))))),$A303,dati_bdv!M$2:M$65536)","v":0},{"$f":"SUMIF(IF(dati_pdc!$C303=1,dati_bdv!$C$2:$C$65536,IF(dati_pdc!$C303=2,dati_bdv!$D$2:$D$65536,IF(dati_pdc!$C303=3,dati_bdv!$E$2:$E$65536,IF(dati_pdc!$C303=4,dati_bdv!$F$2:$F$65536,IF(dati_pdc!$C303=5,dati_bdv!$G$2:$G$65536,dati_bdv!$H$2:$H$65536))))),$A303,dati_bdv!N$2:N$65536)","v":0}]
[{"$f":"dati_pdc!A304","v":0},{"$f":"SUMIF(IF(dati_pdc!$C304=1,dati_bdv!$C$2:$C$65536,IF(dati_pdc!$C304=2,dati_bdv!$D$2:$D$65536,IF(dati_pdc!$C304=3,dati_bdv!$E$2:$E$65536,IF(dati_pdc!$C304=4,dati_bdv!$F$2:$F$65536,IF(dati_pdc!$C304=5,dati_bdv!$G$2:$G$65536,dati_bdv!$H$2:$H$65536))))),$A304,dati_bdv!J$2:J$65536)","v":0},{"$f":"SUMIF(IF(dati_pdc!$C304=1,dati_bdv!$C$2:$C$65536,IF(dati_pdc!$C304=2,dati_bdv!$D$2:$D$65536,IF(dati_pdc!$C304=3,dati_bdv!$E$2:$E$65536,IF(dati_pdc!$C304=4,dati_bdv!$F$2:$F$65536,IF(dati_pdc!$C304=5,dati_bdv!$G$2:$G$65536,dati_bdv!$H$2:$H$65536))))),$A304,dati_bdv!K$2:K$65536)","v":0},{"$f":"SUMIF(IF(dati_pdc!$C304=1,dati_bdv!$C$2:$C$65536,IF(dati_pdc!$C304=2,dati_bdv!$D$2:$D$65536,IF(dati_pdc!$C304=3,dati_bdv!$E$2:$E$65536,IF(dati_pdc!$C304=4,dati_bdv!$F$2:$F$65536,IF(dati_pdc!$C304=5,dati_bdv!$G$2:$G$65536,dati_bdv!$H$2:$H$65536))))),$A304,dati_bdv!L$2:L$65536)","v":0},{"$f":"SUMIF(IF(dati_pdc!$C304=1,dati_bdv!$C$2:$C$65536,IF(dati_pdc!$C304=2,dati_bdv!$D$2:$D$65536,IF(dati_pdc!$C304=3,dati_bdv!$E$2:$E$65536,IF(dati_pdc!$C304=4,dati_bdv!$F$2:$F$65536,IF(dati_pdc!$C304=5,dati_bdv!$G$2:$G$65536,dati_bdv!$H$2:$H$65536))))),$A304,dati_bdv!M$2:M$65536)","v":0},{"$f":"SUMIF(IF(dati_pdc!$C304=1,dati_bdv!$C$2:$C$65536,IF(dati_pdc!$C304=2,dati_bdv!$D$2:$D$65536,IF(dati_pdc!$C304=3,dati_bdv!$E$2:$E$65536,IF(dati_pdc!$C304=4,dati_bdv!$F$2:$F$65536,IF(dati_pdc!$C304=5,dati_bdv!$G$2:$G$65536,dati_bdv!$H$2:$H$65536))))),$A304,dati_bdv!N$2:N$65536)","v":0}]
[{"$f":"dati_pdc!A305","v":0},{"$f":"SUMIF(IF(dati_pdc!$C305=1,dati_bdv!$C$2:$C$65536,IF(dati_pdc!$C305=2,dati_bdv!$D$2:$D$65536,IF(dati_pdc!$C305=3,dati_bdv!$E$2:$E$65536,IF(dati_pdc!$C305=4,dati_bdv!$F$2:$F$65536,IF(dati_pdc!$C305=5,dati_bdv!$G$2:$G$65536,dati_bdv!$H$2:$H$65536))))),$A305,dati_bdv!J$2:J$65536)","v":0},{"$f":"SUMIF(IF(dati_pdc!$C305=1,dati_bdv!$C$2:$C$65536,IF(dati_pdc!$C305=2,dati_bdv!$D$2:$D$65536,IF(dati_pdc!$C305=3,dati_bdv!$E$2:$E$65536,IF(dati_pdc!$C305=4,dati_bdv!$F$2:$F$65536,IF(dati_pdc!$C305=5,dati_bdv!$G$2:$G$65536,dati_bdv!$H$2:$H$65536))))),$A305,dati_bdv!K$2:K$65536)","v":0},{"$f":"SUMIF(IF(dati_pdc!$C305=1,dati_bdv!$C$2:$C$65536,IF(dati_pdc!$C305=2,dati_bdv!$D$2:$D$65536,IF(dati_pdc!$C305=3,dati_bdv!$E$2:$E$65536,IF(dati_pdc!$C305=4,dati_bdv!$F$2:$F$65536,IF(dati_pdc!$C305=5,dati_bdv!$G$2:$G$65536,dati_bdv!$H$2:$H$65536))))),$A305,dati_bdv!L$2:L$65536)","v":0},{"$f":"SUMIF(IF(dati_pdc!$C305=1,dati_bdv!$C$2:$C$65536,IF(dati_pdc!$C305=2,dati_bdv!$D$2:$D$65536,IF(dati_pdc!$C305=3,dati_bdv!$E$2:$E$65536,IF(dati_pdc!$C305=4,dati_bdv!$F$2:$F$65536,IF(dati_pdc!$C305=5,dati_bdv!$G$2:$G$65536,dati_bdv!$H$2:$H$65536))))),$A305,dati_bdv!M$2:M$65536)","v":0},{"$f":"SUMIF(IF(dati_pdc!$C305=1,dati_bdv!$C$2:$C$65536,IF(dati_pdc!$C305=2,dati_bdv!$D$2:$D$65536,IF(dati_pdc!$C305=3,dati_bdv!$E$2:$E$65536,IF(dati_pdc!$C305=4,dati_bdv!$F$2:$F$65536,IF(dati_pdc!$C305=5,dati_bdv!$G$2:$G$65536,dati_bdv!$H$2:$H$65536))))),$A305,dati_bdv!N$2:N$65536)","v":0}]
[{"$f":"dati_pdc!A306","v":0},{"$f":"SUMIF(IF(dati_pdc!$C306=1,dati_bdv!$C$2:$C$65536,IF(dati_pdc!$C306=2,dati_bdv!$D$2:$D$65536,IF(dati_pdc!$C306=3,dati_bdv!$E$2:$E$65536,IF(dati_pdc!$C306=4,dati_bdv!$F$2:$F$65536,IF(dati_pdc!$C306=5,dati_bdv!$G$2:$G$65536,dati_bdv!$H$2:$H$65536))))),$A306,dati_bdv!J$2:J$65536)","v":0},{"$f":"SUMIF(IF(dati_pdc!$C306=1,dati_bdv!$C$2:$C$65536,IF(dati_pdc!$C306=2,dati_bdv!$D$2:$D$65536,IF(dati_pdc!$C306=3,dati_bdv!$E$2:$E$65536,IF(dati_pdc!$C306=4,dati_bdv!$F$2:$F$65536,IF(dati_pdc!$C306=5,dati_bdv!$G$2:$G$65536,dati_bdv!$H$2:$H$65536))))),$A306,dati_bdv!K$2:K$65536)","v":0},{"$f":"SUMIF(IF(dati_pdc!$C306=1,dati_bdv!$C$2:$C$65536,IF(dati_pdc!$C306=2,dati_bdv!$D$2:$D$65536,IF(dati_pdc!$C306=3,dati_bdv!$E$2:$E$65536,IF(dati_pdc!$C306=4,dati_bdv!$F$2:$F$65536,IF(dati_pdc!$C306=5,dati_bdv!$G$2:$G$65536,dati_bdv!$H$2:$H$65536))))),$A306,dati_bdv!L$2:L$65536)","v":0},{"$f":"SUMIF(IF(dati_pdc!$C306=1,dati_bdv!$C$2:$C$65536,IF(dati_pdc!$C306=2,dati_bdv!$D$2:$D$65536,IF(dati_pdc!$C306=3,dati_bdv!$E$2:$E$65536,IF(dati_pdc!$C306=4,dati_bdv!$F$2:$F$65536,IF(dati_pdc!$C306=5,dati_bdv!$G$2:$G$65536,dati_bdv!$H$2:$H$65536))))),$A306,dati_bdv!M$2:M$65536)","v":0},{"$f":"SUMIF(IF(dati_pdc!$C306=1,dati_bdv!$C$2:$C$65536,IF(dati_pdc!$C306=2,dati_bdv!$D$2:$D$65536,IF(dati_pdc!$C306=3,dati_bdv!$E$2:$E$65536,IF(dati_pdc!$C306=4,dati_bdv!$F$2:$F$65536,IF(dati_pdc!$C306=5,dati_bdv!$G$2:$G$65536,dati_bdv!$H$2:$H$65536))))),$A306,dati_bdv!N$2:N$65536)","v":0}]
[{"$f":"dati_pdc!A307","v":0},{"$f":"SUMIF(IF(dati_pdc!$C307=1,dati_bdv!$C$2:$C$65536,IF(dati_pdc!$C307=2,dati_bdv!$D$2:$D$65536,IF(dati_pdc!$C307=3,dati_bdv!$E$2:$E$65536,IF(dati_pdc!$C307=4,dati_bdv!$F$2:$F$65536,IF(dati_pdc!$C307=5,dati_bdv!$G$2:$G$65536,dati_bdv!$H$2:$H$65536))))),$A307,dati_bdv!J$2:J$65536)","v":0},{"$f":"SUMIF(IF(dati_pdc!$C307=1,dati_bdv!$C$2:$C$65536,IF(dati_pdc!$C307=2,dati_bdv!$D$2:$D$65536,IF(dati_pdc!$C307=3,dati_bdv!$E$2:$E$65536,IF(dati_pdc!$C307=4,dati_bdv!$F$2:$F$65536,IF(dati_pdc!$C307=5,dati_bdv!$G$2:$G$65536,dati_bdv!$H$2:$H$65536))))),$A307,dati_bdv!K$2:K$65536)","v":0},{"$f":"SUMIF(IF(dati_pdc!$C307=1,dati_bdv!$C$2:$C$65536,IF(dati_pdc!$C307=2,dati_bdv!$D$2:$D$65536,IF(dati_pdc!$C307=3,dati_bdv!$E$2:$E$65536,IF(dati_pdc!$C307=4,dati_bdv!$F$2:$F$65536,IF(dati_pdc!$C307=5,dati_bdv!$G$2:$G$65536,dati_bdv!$H$2:$H$65536))))),$A307,dati_bdv!L$2:L$65536)","v":0},{"$f":"SUMIF(IF(dati_pdc!$C307=1,dati_bdv!$C$2:$C$65536,IF(dati_pdc!$C307=2,dati_bdv!$D$2:$D$65536,IF(dati_pdc!$C307=3,dati_bdv!$E$2:$E$65536,IF(dati_pdc!$C307=4,dati_bdv!$F$2:$F$65536,IF(dati_pdc!$C307=5,dati_bdv!$G$2:$G$65536,dati_bdv!$H$2:$H$65536))))),$A307,dati_bdv!M$2:M$65536)","v":0},{"$f":"SUMIF(IF(dati_pdc!$C307=1,dati_bdv!$C$2:$C$65536,IF(dati_pdc!$C307=2,dati_bdv!$D$2:$D$65536,IF(dati_pdc!$C307=3,dati_bdv!$E$2:$E$65536,IF(dati_pdc!$C307=4,dati_bdv!$F$2:$F$65536,IF(dati_pdc!$C307=5,dati_bdv!$G$2:$G$65536,dati_bdv!$H$2:$H$65536))))),$A307,dati_bdv!N$2:N$65536)","v":0}]
[{"$f":"dati_pdc!A308","v":0},{"$f":"SUMIF(IF(dati_pdc!$C308=1,dati_bdv!$C$2:$C$65536,IF(dati_pdc!$C308=2,dati_bdv!$D$2:$D$65536,IF(dati_pdc!$C308=3,dati_bdv!$E$2:$E$65536,IF(dati_pdc!$C308=4,dati_bdv!$F$2:$F$65536,IF(dati_pdc!$C308=5,dati_bdv!$G$2:$G$65536,dati_bdv!$H$2:$H$65536))))),$A308,dati_bdv!J$2:J$65536)","v":0},{"$f":"SUMIF(IF(dati_pdc!$C308=1,dati_bdv!$C$2:$C$65536,IF(dati_pdc!$C308=2,dati_bdv!$D$2:$D$65536,IF(dati_pdc!$C308=3,dati_bdv!$E$2:$E$65536,IF(dati_pdc!$C308=4,dati_bdv!$F$2:$F$65536,IF(dati_pdc!$C308=5,dati_bdv!$G$2:$G$65536,dati_bdv!$H$2:$H$65536))))),$A308,dati_bdv!K$2:K$65536)","v":0},{"$f":"SUMIF(IF(dati_pdc!$C308=1,dati_bdv!$C$2:$C$65536,IF(dati_pdc!$C308=2,dati_bdv!$D$2:$D$65536,IF(dati_pdc!$C308=3,dati_bdv!$E$2:$E$65536,IF(dati_pdc!$C308=4,dati_bdv!$F$2:$F$65536,IF(dati_pdc!$C308=5,dati_bdv!$G$2:$G$65536,dati_bdv!$H$2:$H$65536))))),$A308,dati_bdv!L$2:L$65536)","v":0},{"$f":"SUMIF(IF(dati_pdc!$C308=1,dati_bdv!$C$2:$C$65536,IF(dati_pdc!$C308=2,dati_bdv!$D$2:$D$65536,IF(dati_pdc!$C308=3,dati_bdv!$E$2:$E$65536,IF(dati_pdc!$C308=4,dati_bdv!$F$2:$F$65536,IF(dati_pdc!$C308=5,dati_bdv!$G$2:$G$65536,dati_bdv!$H$2:$H$65536))))),$A308,dati_bdv!M$2:M$65536)","v":0},{"$f":"SUMIF(IF(dati_pdc!$C308=1,dati_bdv!$C$2:$C$65536,IF(dati_pdc!$C308=2,dati_bdv!$D$2:$D$65536,IF(dati_pdc!$C308=3,dati_bdv!$E$2:$E$65536,IF(dati_pdc!$C308=4,dati_bdv!$F$2:$F$65536,IF(dati_pdc!$C308=5,dati_bdv!$G$2:$G$65536,dati_bdv!$H$2:$H$65536))))),$A308,dati_bdv!N$2:N$65536)","v":0}]
[{"$f":"dati_pdc!A309","v":0},{"$f":"SUMIF(IF(dati_pdc!$C309=1,dati_bdv!$C$2:$C$65536,IF(dati_pdc!$C309=2,dati_bdv!$D$2:$D$65536,IF(dati_pdc!$C309=3,dati_bdv!$E$2:$E$65536,IF(dati_pdc!$C309=4,dati_bdv!$F$2:$F$65536,IF(dati_pdc!$C309=5,dati_bdv!$G$2:$G$65536,dati_bdv!$H$2:$H$65536))))),$A309,dati_bdv!J$2:J$65536)","v":0},{"$f":"SUMIF(IF(dati_pdc!$C309=1,dati_bdv!$C$2:$C$65536,IF(dati_pdc!$C309=2,dati_bdv!$D$2:$D$65536,IF(dati_pdc!$C309=3,dati_bdv!$E$2:$E$65536,IF(dati_pdc!$C309=4,dati_bdv!$F$2:$F$65536,IF(dati_pdc!$C309=5,dati_bdv!$G$2:$G$65536,dati_bdv!$H$2:$H$65536))))),$A309,dati_bdv!K$2:K$65536)","v":0},{"$f":"SUMIF(IF(dati_pdc!$C309=1,dati_bdv!$C$2:$C$65536,IF(dati_pdc!$C309=2,dati_bdv!$D$2:$D$65536,IF(dati_pdc!$C309=3,dati_bdv!$E$2:$E$65536,IF(dati_pdc!$C309=4,dati_bdv!$F$2:$F$65536,IF(dati_pdc!$C309=5,dati_bdv!$G$2:$G$65536,dati_bdv!$H$2:$H$65536))))),$A309,dati_bdv!L$2:L$65536)","v":0},{"$f":"SUMIF(IF(dati_pdc!$C309=1,dati_bdv!$C$2:$C$65536,IF(dati_pdc!$C309=2,dati_bdv!$D$2:$D$65536,IF(dati_pdc!$C309=3,dati_bdv!$E$2:$E$65536,IF(dati_pdc!$C309=4,dati_bdv!$F$2:$F$65536,IF(dati_pdc!$C309=5,dati_bdv!$G$2:$G$65536,dati_bdv!$H$2:$H$65536))))),$A309,dati_bdv!M$2:M$65536)","v":0},{"$f":"SUMIF(IF(dati_pdc!$C309=1,dati_bdv!$C$2:$C$65536,IF(dati_pdc!$C309=2,dati_bdv!$D$2:$D$65536,IF(dati_pdc!$C309=3,dati_bdv!$E$2:$E$65536,IF(dati_pdc!$C309=4,dati_bdv!$F$2:$F$65536,IF(dati_pdc!$C309=5,dati_bdv!$G$2:$G$65536,dati_bdv!$H$2:$H$65536))))),$A309,dati_bdv!N$2:N$65536)","v":0}]
[{"$f":"dati_pdc!A310","v":0},{"$f":"SUMIF(IF(dati_pdc!$C310=1,dati_bdv!$C$2:$C$65536,IF(dati_pdc!$C310=2,dati_bdv!$D$2:$D$65536,IF(dati_pdc!$C310=3,dati_bdv!$E$2:$E$65536,IF(dati_pdc!$C310=4,dati_bdv!$F$2:$F$65536,IF(dati_pdc!$C310=5,dati_bdv!$G$2:$G$65536,dati_bdv!$H$2:$H$65536))))),$A310,dati_bdv!J$2:J$65536)","v":0},{"$f":"SUMIF(IF(dati_pdc!$C310=1,dati_bdv!$C$2:$C$65536,IF(dati_pdc!$C310=2,dati_bdv!$D$2:$D$65536,IF(dati_pdc!$C310=3,dati_bdv!$E$2:$E$65536,IF(dati_pdc!$C310=4,dati_bdv!$F$2:$F$65536,IF(dati_pdc!$C310=5,dati_bdv!$G$2:$G$65536,dati_bdv!$H$2:$H$65536))))),$A310,dati_bdv!K$2:K$65536)","v":0},{"$f":"SUMIF(IF(dati_pdc!$C310=1,dati_bdv!$C$2:$C$65536,IF(dati_pdc!$C310=2,dati_bdv!$D$2:$D$65536,IF(dati_pdc!$C310=3,dati_bdv!$E$2:$E$65536,IF(dati_pdc!$C310=4,dati_bdv!$F$2:$F$65536,IF(dati_pdc!$C310=5,dati_bdv!$G$2:$G$65536,dati_bdv!$H$2:$H$65536))))),$A310,dati_bdv!L$2:L$65536)","v":0},{"$f":"SUMIF(IF(dati_pdc!$C310=1,dati_bdv!$C$2:$C$65536,IF(dati_pdc!$C310=2,dati_bdv!$D$2:$D$65536,IF(dati_pdc!$C310=3,dati_bdv!$E$2:$E$65536,IF(dati_pdc!$C310=4,dati_bdv!$F$2:$F$65536,IF(dati_pdc!$C310=5,dati_bdv!$G$2:$G$65536,dati_bdv!$H$2:$H$65536))))),$A310,dati_bdv!M$2:M$65536)","v":0},{"$f":"SUMIF(IF(dati_pdc!$C310=1,dati_bdv!$C$2:$C$65536,IF(dati_pdc!$C310=2,dati_bdv!$D$2:$D$65536,IF(dati_pdc!$C310=3,dati_bdv!$E$2:$E$65536,IF(dati_pdc!$C310=4,dati_bdv!$F$2:$F$65536,IF(dati_pdc!$C310=5,dati_bdv!$G$2:$G$65536,dati_bdv!$H$2:$H$65536))))),$A310,dati_bdv!N$2:N$65536)","v":0}]
[{"$f":"dati_pdc!A311","v":0},{"$f":"SUMIF(IF(dati_pdc!$C311=1,dati_bdv!$C$2:$C$65536,IF(dati_pdc!$C311=2,dati_bdv!$D$2:$D$65536,IF(dati_pdc!$C311=3,dati_bdv!$E$2:$E$65536,IF(dati_pdc!$C311=4,dati_bdv!$F$2:$F$65536,IF(dati_pdc!$C311=5,dati_bdv!$G$2:$G$65536,dati_bdv!$H$2:$H$65536))))),$A311,dati_bdv!J$2:J$65536)","v":0},{"$f":"SUMIF(IF(dati_pdc!$C311=1,dati_bdv!$C$2:$C$65536,IF(dati_pdc!$C311=2,dati_bdv!$D$2:$D$65536,IF(dati_pdc!$C311=3,dati_bdv!$E$2:$E$65536,IF(dati_pdc!$C311=4,dati_bdv!$F$2:$F$65536,IF(dati_pdc!$C311=5,dati_bdv!$G$2:$G$65536,dati_bdv!$H$2:$H$65536))))),$A311,dati_bdv!K$2:K$65536)","v":0},{"$f":"SUMIF(IF(dati_pdc!$C311=1,dati_bdv!$C$2:$C$65536,IF(dati_pdc!$C311=2,dati_bdv!$D$2:$D$65536,IF(dati_pdc!$C311=3,dati_bdv!$E$2:$E$65536,IF(dati_pdc!$C311=4,dati_bdv!$F$2:$F$65536,IF(dati_pdc!$C311=5,dati_bdv!$G$2:$G$65536,dati_bdv!$H$2:$H$65536))))),$A311,dati_bdv!L$2:L$65536)","v":0},{"$f":"SUMIF(IF(dati_pdc!$C311=1,dati_bdv!$C$2:$C$65536,IF(dati_pdc!$C311=2,dati_bdv!$D$2:$D$65536,IF(dati_pdc!$C311=3,dati_bdv!$E$2:$E$65536,IF(dati_pdc!$C311=4,dati_bdv!$F$2:$F$65536,IF(dati_pdc!$C311=5,dati_bdv!$G$2:$G$65536,dati_bdv!$H$2:$H$65536))))),$A311,dati_bdv!M$2:M$65536)","v":0},{"$f":"SUMIF(IF(dati_pdc!$C311=1,dati_bdv!$C$2:$C$65536,IF(dati_pdc!$C311=2,dati_bdv!$D$2:$D$65536,IF(dati_pdc!$C311=3,dati_bdv!$E$2:$E$65536,IF(dati_pdc!$C311=4,dati_bdv!$F$2:$F$65536,IF(dati_pdc!$C311=5,dati_bdv!$G$2:$G$65536,dati_bdv!$H$2:$H$65536))))),$A311,dati_bdv!N$2:N$65536)","v":0}]
[{"$f":"dati_pdc!A312","v":0},{"$f":"SUMIF(IF(dati_pdc!$C312=1,dati_bdv!$C$2:$C$65536,IF(dati_pdc!$C312=2,dati_bdv!$D$2:$D$65536,IF(dati_pdc!$C312=3,dati_bdv!$E$2:$E$65536,IF(dati_pdc!$C312=4,dati_bdv!$F$2:$F$65536,IF(dati_pdc!$C312=5,dati_bdv!$G$2:$G$65536,dati_bdv!$H$2:$H$65536))))),$A312,dati_bdv!J$2:J$65536)","v":0},{"$f":"SUMIF(IF(dati_pdc!$C312=1,dati_bdv!$C$2:$C$65536,IF(dati_pdc!$C312=2,dati_bdv!$D$2:$D$65536,IF(dati_pdc!$C312=3,dati_bdv!$E$2:$E$65536,IF(dati_pdc!$C312=4,dati_bdv!$F$2:$F$65536,IF(dati_pdc!$C312=5,dati_bdv!$G$2:$G$65536,dati_bdv!$H$2:$H$65536))))),$A312,dati_bdv!K$2:K$65536)","v":0},{"$f":"SUMIF(IF(dati_pdc!$C312=1,dati_bdv!$C$2:$C$65536,IF(dati_pdc!$C312=2,dati_bdv!$D$2:$D$65536,IF(dati_pdc!$C312=3,dati_bdv!$E$2:$E$65536,IF(dati_pdc!$C312=4,dati_bdv!$F$2:$F$65536,IF(dati_pdc!$C312=5,dati_bdv!$G$2:$G$65536,dati_bdv!$H$2:$H$65536))))),$A312,dati_bdv!L$2:L$65536)","v":0},{"$f":"SUMIF(IF(dati_pdc!$C312=1,dati_bdv!$C$2:$C$65536,IF(dati_pdc!$C312=2,dati_bdv!$D$2:$D$65536,IF(dati_pdc!$C312=3,dati_bdv!$E$2:$E$65536,IF(dati_pdc!$C312=4,dati_bdv!$F$2:$F$65536,IF(dati_pdc!$C312=5,dati_bdv!$G$2:$G$65536,dati_bdv!$H$2:$H$65536))))),$A312,dati_bdv!M$2:M$65536)","v":0},{"$f":"SUMIF(IF(dati_pdc!$C312=1,dati_bdv!$C$2:$C$65536,IF(dati_pdc!$C312=2,dati_bdv!$D$2:$D$65536,IF(dati_pdc!$C312=3,dati_bdv!$E$2:$E$65536,IF(dati_pdc!$C312=4,dati_bdv!$F$2:$F$65536,IF(dati_pdc!$C312=5,dati_bdv!$G$2:$G$65536,dati_bdv!$H$2:$H$65536))))),$A312,dati_bdv!N$2:N$65536)","v":0}]
[{"$f":"dati_pdc!A313","v":0},{"$f":"SUMIF(IF(dati_pdc!$C313=1,dati_bdv!$C$2:$C$65536,IF(dati_pdc!$C313=2,dati_bdv!$D$2:$D$65536,IF(dati_pdc!$C313=3,dati_bdv!$E$2:$E$65536,IF(dati_pdc!$C313=4,dati_bdv!$F$2:$F$65536,IF(dati_pdc!$C313=5,dati_bdv!$G$2:$G$65536,dati_bdv!$H$2:$H$65536))))),$A313,dati_bdv!J$2:J$65536)","v":0},{"$f":"SUMIF(IF(dati_pdc!$C313=1,dati_bdv!$C$2:$C$65536,IF(dati_pdc!$C313=2,dati_bdv!$D$2:$D$65536,IF(dati_pdc!$C313=3,dati_bdv!$E$2:$E$65536,IF(dati_pdc!$C313=4,dati_bdv!$F$2:$F$65536,IF(dati_pdc!$C313=5,dati_bdv!$G$2:$G$65536,dati_bdv!$H$2:$H$65536))))),$A313,dati_bdv!K$2:K$65536)","v":0},{"$f":"SUMIF(IF(dati_pdc!$C313=1,dati_bdv!$C$2:$C$65536,IF(dati_pdc!$C313=2,dati_bdv!$D$2:$D$65536,IF(dati_pdc!$C313=3,dati_bdv!$E$2:$E$65536,IF(dati_pdc!$C313=4,dati_bdv!$F$2:$F$65536,IF(dati_pdc!$C313=5,dati_bdv!$G$2:$G$65536,dati_bdv!$H$2:$H$65536))))),$A313,dati_bdv!L$2:L$65536)","v":0},{"$f":"SUMIF(IF(dati_pdc!$C313=1,dati_bdv!$C$2:$C$65536,IF(dati_pdc!$C313=2,dati_bdv!$D$2:$D$65536,IF(dati_pdc!$C313=3,dati_bdv!$E$2:$E$65536,IF(dati_pdc!$C313=4,dati_bdv!$F$2:$F$65536,IF(dati_pdc!$C313=5,dati_bdv!$G$2:$G$65536,dati_bdv!$H$2:$H$65536))))),$A313,dati_bdv!M$2:M$65536)","v":0},{"$f":"SUMIF(IF(dati_pdc!$C313=1,dati_bdv!$C$2:$C$65536,IF(dati_pdc!$C313=2,dati_bdv!$D$2:$D$65536,IF(dati_pdc!$C313=3,dati_bdv!$E$2:$E$65536,IF(dati_pdc!$C313=4,dati_bdv!$F$2:$F$65536,IF(dati_pdc!$C313=5,dati_bdv!$G$2:$G$65536,dati_bdv!$H$2:$H$65536))))),$A313,dati_bdv!N$2:N$65536)","v":0}]
[{"$f":"dati_pdc!A314","v":0},{"$f":"SUMIF(IF(dati_pdc!$C314=1,dati_bdv!$C$2:$C$65536,IF(dati_pdc!$C314=2,dati_bdv!$D$2:$D$65536,IF(dati_pdc!$C314=3,dati_bdv!$E$2:$E$65536,IF(dati_pdc!$C314=4,dati_bdv!$F$2:$F$65536,IF(dati_pdc!$C314=5,dati_bdv!$G$2:$G$65536,dati_bdv!$H$2:$H$65536))))),$A314,dati_bdv!J$2:J$65536)","v":0},{"$f":"SUMIF(IF(dati_pdc!$C314=1,dati_bdv!$C$2:$C$65536,IF(dati_pdc!$C314=2,dati_bdv!$D$2:$D$65536,IF(dati_pdc!$C314=3,dati_bdv!$E$2:$E$65536,IF(dati_pdc!$C314=4,dati_bdv!$F$2:$F$65536,IF(dati_pdc!$C314=5,dati_bdv!$G$2:$G$65536,dati_bdv!$H$2:$H$65536))))),$A314,dati_bdv!K$2:K$65536)","v":0},{"$f":"SUMIF(IF(dati_pdc!$C314=1,dati_bdv!$C$2:$C$65536,IF(dati_pdc!$C314=2,dati_bdv!$D$2:$D$65536,IF(dati_pdc!$C314=3,dati_bdv!$E$2:$E$65536,IF(dati_pdc!$C314=4,dati_bdv!$F$2:$F$65536,IF(dati_pdc!$C314=5,dati_bdv!$G$2:$G$65536,dati_bdv!$H$2:$H$65536))))),$A314,dati_bdv!L$2:L$65536)","v":0},{"$f":"SUMIF(IF(dati_pdc!$C314=1,dati_bdv!$C$2:$C$65536,IF(dati_pdc!$C314=2,dati_bdv!$D$2:$D$65536,IF(dati_pdc!$C314=3,dati_bdv!$E$2:$E$65536,IF(dati_pdc!$C314=4,dati_bdv!$F$2:$F$65536,IF(dati_pdc!$C314=5,dati_bdv!$G$2:$G$65536,dati_bdv!$H$2:$H$65536))))),$A314,dati_bdv!M$2:M$65536)","v":0},{"$f":"SUMIF(IF(dati_pdc!$C314=1,dati_bdv!$C$2:$C$65536,IF(dati_pdc!$C314=2,dati_bdv!$D$2:$D$65536,IF(dati_pdc!$C314=3,dati_bdv!$E$2:$E$65536,IF(dati_pdc!$C314=4,dati_bdv!$F$2:$F$65536,IF(dati_pdc!$C314=5,dati_bdv!$G$2:$G$65536,dati_bdv!$H$2:$H$65536))))),$A314,dati_bdv!N$2:N$65536)","v":0}]
[{"$f":"dati_pdc!A315","v":0},{"$f":"SUMIF(IF(dati_pdc!$C315=1,dati_bdv!$C$2:$C$65536,IF(dati_pdc!$C315=2,dati_bdv!$D$2:$D$65536,IF(dati_pdc!$C315=3,dati_bdv!$E$2:$E$65536,IF(dati_pdc!$C315=4,dati_bdv!$F$2:$F$65536,IF(dati_pdc!$C315=5,dati_bdv!$G$2:$G$65536,dati_bdv!$H$2:$H$65536))))),$A315,dati_bdv!J$2:J$65536)","v":0},{"$f":"SUMIF(IF(dati_pdc!$C315=1,dati_bdv!$C$2:$C$65536,IF(dati_pdc!$C315=2,dati_bdv!$D$2:$D$65536,IF(dati_pdc!$C315=3,dati_bdv!$E$2:$E$65536,IF(dati_pdc!$C315=4,dati_bdv!$F$2:$F$65536,IF(dati_pdc!$C315=5,dati_bdv!$G$2:$G$65536,dati_bdv!$H$2:$H$65536))))),$A315,dati_bdv!K$2:K$65536)","v":0},{"$f":"SUMIF(IF(dati_pdc!$C315=1,dati_bdv!$C$2:$C$65536,IF(dati_pdc!$C315=2,dati_bdv!$D$2:$D$65536,IF(dati_pdc!$C315=3,dati_bdv!$E$2:$E$65536,IF(dati_pdc!$C315=4,dati_bdv!$F$2:$F$65536,IF(dati_pdc!$C315=5,dati_bdv!$G$2:$G$65536,dati_bdv!$H$2:$H$65536))))),$A315,dati_bdv!L$2:L$65536)","v":0},{"$f":"SUMIF(IF(dati_pdc!$C315=1,dati_bdv!$C$2:$C$65536,IF(dati_pdc!$C315=2,dati_bdv!$D$2:$D$65536,IF(dati_pdc!$C315=3,dati_bdv!$E$2:$E$65536,IF(dati_pdc!$C315=4,dati_bdv!$F$2:$F$65536,IF(dati_pdc!$C315=5,dati_bdv!$G$2:$G$65536,dati_bdv!$H$2:$H$65536))))),$A315,dati_bdv!M$2:M$65536)","v":0},{"$f":"SUMIF(IF(dati_pdc!$C315=1,dati_bdv!$C$2:$C$65536,IF(dati_pdc!$C315=2,dati_bdv!$D$2:$D$65536,IF(dati_pdc!$C315=3,dati_bdv!$E$2:$E$65536,IF(dati_pdc!$C315=4,dati_bdv!$F$2:$F$65536,IF(dati_pdc!$C315=5,dati_bdv!$G$2:$G$65536,dati_bdv!$H$2:$H$65536))))),$A315,dati_bdv!N$2:N$65536)","v":0}]
[{"$f":"dati_pdc!A316","v":0},{"$f":"SUMIF(IF(dati_pdc!$C316=1,dati_bdv!$C$2:$C$65536,IF(dati_pdc!$C316=2,dati_bdv!$D$2:$D$65536,IF(dati_pdc!$C316=3,dati_bdv!$E$2:$E$65536,IF(dati_pdc!$C316=4,dati_bdv!$F$2:$F$65536,IF(dati_pdc!$C316=5,dati_bdv!$G$2:$G$65536,dati_bdv!$H$2:$H$65536))))),$A316,dati_bdv!J$2:J$65536)","v":0},{"$f":"SUMIF(IF(dati_pdc!$C316=1,dati_bdv!$C$2:$C$65536,IF(dati_pdc!$C316=2,dati_bdv!$D$2:$D$65536,IF(dati_pdc!$C316=3,dati_bdv!$E$2:$E$65536,IF(dati_pdc!$C316=4,dati_bdv!$F$2:$F$65536,IF(dati_pdc!$C316=5,dati_bdv!$G$2:$G$65536,dati_bdv!$H$2:$H$65536))))),$A316,dati_bdv!K$2:K$65536)","v":0},{"$f":"SUMIF(IF(dati_pdc!$C316=1,dati_bdv!$C$2:$C$65536,IF(dati_pdc!$C316=2,dati_bdv!$D$2:$D$65536,IF(dati_pdc!$C316=3,dati_bdv!$E$2:$E$65536,IF(dati_pdc!$C316=4,dati_bdv!$F$2:$F$65536,IF(dati_pdc!$C316=5,dati_bdv!$G$2:$G$65536,dati_bdv!$H$2:$H$65536))))),$A316,dati_bdv!L$2:L$65536)","v":0},{"$f":"SUMIF(IF(dati_pdc!$C316=1,dati_bdv!$C$2:$C$65536,IF(dati_pdc!$C316=2,dati_bdv!$D$2:$D$65536,IF(dati_pdc!$C316=3,dati_bdv!$E$2:$E$65536,IF(dati_pdc!$C316=4,dati_bdv!$F$2:$F$65536,IF(dati_pdc!$C316=5,dati_bdv!$G$2:$G$65536,dati_bdv!$H$2:$H$65536))))),$A316,dati_bdv!M$2:M$65536)","v":0},{"$f":"SUMIF(IF(dati_pdc!$C316=1,dati_bdv!$C$2:$C$65536,IF(dati_pdc!$C316=2,dati_bdv!$D$2:$D$65536,IF(dati_pdc!$C316=3,dati_bdv!$E$2:$E$65536,IF(dati_pdc!$C316=4,dati_bdv!$F$2:$F$65536,IF(dati_pdc!$C316=5,dati_bdv!$G$2:$G$65536,dati_bdv!$H$2:$H$65536))))),$A316,dati_bdv!N$2:N$65536)","v":0}]
[{"$f":"dati_pdc!A317","v":0},{"$f":"SUMIF(IF(dati_pdc!$C317=1,dati_bdv!$C$2:$C$65536,IF(dati_pdc!$C317=2,dati_bdv!$D$2:$D$65536,IF(dati_pdc!$C317=3,dati_bdv!$E$2:$E$65536,IF(dati_pdc!$C317=4,dati_bdv!$F$2:$F$65536,IF(dati_pdc!$C317=5,dati_bdv!$G$2:$G$65536,dati_bdv!$H$2:$H$65536))))),$A317,dati_bdv!J$2:J$65536)","v":0},{"$f":"SUMIF(IF(dati_pdc!$C317=1,dati_bdv!$C$2:$C$65536,IF(dati_pdc!$C317=2,dati_bdv!$D$2:$D$65536,IF(dati_pdc!$C317=3,dati_bdv!$E$2:$E$65536,IF(dati_pdc!$C317=4,dati_bdv!$F$2:$F$65536,IF(dati_pdc!$C317=5,dati_bdv!$G$2:$G$65536,dati_bdv!$H$2:$H$65536))))),$A317,dati_bdv!K$2:K$65536)","v":0},{"$f":"SUMIF(IF(dati_pdc!$C317=1,dati_bdv!$C$2:$C$65536,IF(dati_pdc!$C317=2,dati_bdv!$D$2:$D$65536,IF(dati_pdc!$C317=3,dati_bdv!$E$2:$E$65536,IF(dati_pdc!$C317=4,dati_bdv!$F$2:$F$65536,IF(dati_pdc!$C317=5,dati_bdv!$G$2:$G$65536,dati_bdv!$H$2:$H$65536))))),$A317,dati_bdv!L$2:L$65536)","v":0},{"$f":"SUMIF(IF(dati_pdc!$C317=1,dati_bdv!$C$2:$C$65536,IF(dati_pdc!$C317=2,dati_bdv!$D$2:$D$65536,IF(dati_pdc!$C317=3,dati_bdv!$E$2:$E$65536,IF(dati_pdc!$C317=4,dati_bdv!$F$2:$F$65536,IF(dati_pdc!$C317=5,dati_bdv!$G$2:$G$65536,dati_bdv!$H$2:$H$65536))))),$A317,dati_bdv!M$2:M$65536)","v":0},{"$f":"SUMIF(IF(dati_pdc!$C317=1,dati_bdv!$C$2:$C$65536,IF(dati_pdc!$C317=2,dati_bdv!$D$2:$D$65536,IF(dati_pdc!$C317=3,dati_bdv!$E$2:$E$65536,IF(dati_pdc!$C317=4,dati_bdv!$F$2:$F$65536,IF(dati_pdc!$C317=5,dati_bdv!$G$2:$G$65536,dati_bdv!$H$2:$H$65536))))),$A317,dati_bdv!N$2:N$65536)","v":0}]
[{"$f":"dati_pdc!A318","v":0},{"$f":"SUMIF(IF(dati_pdc!$C318=1,dati_bdv!$C$2:$C$65536,IF(dati_pdc!$C318=2,dati_bdv!$D$2:$D$65536,IF(dati_pdc!$C318=3,dati_bdv!$E$2:$E$65536,IF(dati_pdc!$C318=4,dati_bdv!$F$2:$F$65536,IF(dati_pdc!$C318=5,dati_bdv!$G$2:$G$65536,dati_bdv!$H$2:$H$65536))))),$A318,dati_bdv!J$2:J$65536)","v":0},{"$f":"SUMIF(IF(dati_pdc!$C318=1,dati_bdv!$C$2:$C$65536,IF(dati_pdc!$C318=2,dati_bdv!$D$2:$D$65536,IF(dati_pdc!$C318=3,dati_bdv!$E$2:$E$65536,IF(dati_pdc!$C318=4,dati_bdv!$F$2:$F$65536,IF(dati_pdc!$C318=5,dati_bdv!$G$2:$G$65536,dati_bdv!$H$2:$H$65536))))),$A318,dati_bdv!K$2:K$65536)","v":0},{"$f":"SUMIF(IF(dati_pdc!$C318=1,dati_bdv!$C$2:$C$65536,IF(dati_pdc!$C318=2,dati_bdv!$D$2:$D$65536,IF(dati_pdc!$C318=3,dati_bdv!$E$2:$E$65536,IF(dati_pdc!$C318=4,dati_bdv!$F$2:$F$65536,IF(dati_pdc!$C318=5,dati_bdv!$G$2:$G$65536,dati_bdv!$H$2:$H$65536))))),$A318,dati_bdv!L$2:L$65536)","v":0},{"$f":"SUMIF(IF(dati_pdc!$C318=1,dati_bdv!$C$2:$C$65536,IF(dati_pdc!$C318=2,dati_bdv!$D$2:$D$65536,IF(dati_pdc!$C318=3,dati_bdv!$E$2:$E$65536,IF(dati_pdc!$C318=4,dati_bdv!$F$2:$F$65536,IF(dati_pdc!$C318=5,dati_bdv!$G$2:$G$65536,dati_bdv!$H$2:$H$65536))))),$A318,dati_bdv!M$2:M$65536)","v":0},{"$f":"SUMIF(IF(dati_pdc!$C318=1,dati_bdv!$C$2:$C$65536,IF(dati_pdc!$C318=2,dati_bdv!$D$2:$D$65536,IF(dati_pdc!$C318=3,dati_bdv!$E$2:$E$65536,IF(dati_pdc!$C318=4,dati_bdv!$F$2:$F$65536,IF(dati_pdc!$C318=5,dati_bdv!$G$2:$G$65536,dati_bdv!$H$2:$H$65536))))),$A318,dati_bdv!N$2:N$65536)","v":0}]
[{"$f":"dati_pdc!A319","v":0},{"$f":"SUMIF(IF(dati_pdc!$C319=1,dati_bdv!$C$2:$C$65536,IF(dati_pdc!$C319=2,dati_bdv!$D$2:$D$65536,IF(dati_pdc!$C319=3,dati_bdv!$E$2:$E$65536,IF(dati_pdc!$C319=4,dati_bdv!$F$2:$F$65536,IF(dati_pdc!$C319=5,dati_bdv!$G$2:$G$65536,dati_bdv!$H$2:$H$65536))))),$A319,dati_bdv!J$2:J$65536)","v":0},{"$f":"SUMIF(IF(dati_pdc!$C319=1,dati_bdv!$C$2:$C$65536,IF(dati_pdc!$C319=2,dati_bdv!$D$2:$D$65536,IF(dati_pdc!$C319=3,dati_bdv!$E$2:$E$65536,IF(dati_pdc!$C319=4,dati_bdv!$F$2:$F$65536,IF(dati_pdc!$C319=5,dati_bdv!$G$2:$G$65536,dati_bdv!$H$2:$H$65536))))),$A319,dati_bdv!K$2:K$65536)","v":0},{"$f":"SUMIF(IF(dati_pdc!$C319=1,dati_bdv!$C$2:$C$65536,IF(dati_pdc!$C319=2,dati_bdv!$D$2:$D$65536,IF(dati_pdc!$C319=3,dati_bdv!$E$2:$E$65536,IF(dati_pdc!$C319=4,dati_bdv!$F$2:$F$65536,IF(dati_pdc!$C319=5,dati_bdv!$G$2:$G$65536,dati_bdv!$H$2:$H$65536))))),$A319,dati_bdv!L$2:L$65536)","v":0},{"$f":"SUMIF(IF(dati_pdc!$C319=1,dati_bdv!$C$2:$C$65536,IF(dati_pdc!$C319=2,dati_bdv!$D$2:$D$65536,IF(dati_pdc!$C319=3,dati_bdv!$E$2:$E$65536,IF(dati_pdc!$C319=4,dati_bdv!$F$2:$F$65536,IF(dati_pdc!$C319=5,dati_bdv!$G$2:$G$65536,dati_bdv!$H$2:$H$65536))))),$A319,dati_bdv!M$2:M$65536)","v":0},{"$f":"SUMIF(IF(dati_pdc!$C319=1,dati_bdv!$C$2:$C$65536,IF(dati_pdc!$C319=2,dati_bdv!$D$2:$D$65536,IF(dati_pdc!$C319=3,dati_bdv!$E$2:$E$65536,IF(dati_pdc!$C319=4,dati_bdv!$F$2:$F$65536,IF(dati_pdc!$C319=5,dati_bdv!$G$2:$G$65536,dati_bdv!$H$2:$H$65536))))),$A319,dati_bdv!N$2:N$65536)","v":0}]
[{"$f":"dati_pdc!A320","v":0},{"$f":"SUMIF(IF(dati_pdc!$C320=1,dati_bdv!$C$2:$C$65536,IF(dati_pdc!$C320=2,dati_bdv!$D$2:$D$65536,IF(dati_pdc!$C320=3,dati_bdv!$E$2:$E$65536,IF(dati_pdc!$C320=4,dati_bdv!$F$2:$F$65536,IF(dati_pdc!$C320=5,dati_bdv!$G$2:$G$65536,dati_bdv!$H$2:$H$65536))))),$A320,dati_bdv!J$2:J$65536)","v":0},{"$f":"SUMIF(IF(dati_pdc!$C320=1,dati_bdv!$C$2:$C$65536,IF(dati_pdc!$C320=2,dati_bdv!$D$2:$D$65536,IF(dati_pdc!$C320=3,dati_bdv!$E$2:$E$65536,IF(dati_pdc!$C320=4,dati_bdv!$F$2:$F$65536,IF(dati_pdc!$C320=5,dati_bdv!$G$2:$G$65536,dati_bdv!$H$2:$H$65536))))),$A320,dati_bdv!K$2:K$65536)","v":0},{"$f":"SUMIF(IF(dati_pdc!$C320=1,dati_bdv!$C$2:$C$65536,IF(dati_pdc!$C320=2,dati_bdv!$D$2:$D$65536,IF(dati_pdc!$C320=3,dati_bdv!$E$2:$E$65536,IF(dati_pdc!$C320=4,dati_bdv!$F$2:$F$65536,IF(dati_pdc!$C320=5,dati_bdv!$G$2:$G$65536,dati_bdv!$H$2:$H$65536))))),$A320,dati_bdv!L$2:L$65536)","v":0},{"$f":"SUMIF(IF(dati_pdc!$C320=1,dati_bdv!$C$2:$C$65536,IF(dati_pdc!$C320=2,dati_bdv!$D$2:$D$65536,IF(dati_pdc!$C320=3,dati_bdv!$E$2:$E$65536,IF(dati_pdc!$C320=4,dati_bdv!$F$2:$F$65536,IF(dati_pdc!$C320=5,dati_bdv!$G$2:$G$65536,dati_bdv!$H$2:$H$65536))))),$A320,dati_bdv!M$2:M$65536)","v":0},{"$f":"SUMIF(IF(dati_pdc!$C320=1,dati_bdv!$C$2:$C$65536,IF(dati_pdc!$C320=2,dati_bdv!$D$2:$D$65536,IF(dati_pdc!$C320=3,dati_bdv!$E$2:$E$65536,IF(dati_pdc!$C320=4,dati_bdv!$F$2:$F$65536,IF(dati_pdc!$C320=5,dati_bdv!$G$2:$G$65536,dati_bdv!$H$2:$H$65536))))),$A320,dati_bdv!N$2:N$65536)","v":0}]
[{"$f":"dati_pdc!A321","v":0},{"$f":"SUMIF(IF(dati_pdc!$C321=1,dati_bdv!$C$2:$C$65536,IF(dati_pdc!$C321=2,dati_bdv!$D$2:$D$65536,IF(dati_pdc!$C321=3,dati_bdv!$E$2:$E$65536,IF(dati_pdc!$C321=4,dati_bdv!$F$2:$F$65536,IF(dati_pdc!$C321=5,dati_bdv!$G$2:$G$65536,dati_bdv!$H$2:$H$65536))))),$A321,dati_bdv!J$2:J$65536)","v":0},{"$f":"SUMIF(IF(dati_pdc!$C321=1,dati_bdv!$C$2:$C$65536,IF(dati_pdc!$C321=2,dati_bdv!$D$2:$D$65536,IF(dati_pdc!$C321=3,dati_bdv!$E$2:$E$65536,IF(dati_pdc!$C321=4,dati_bdv!$F$2:$F$65536,IF(dati_pdc!$C321=5,dati_bdv!$G$2:$G$65536,dati_bdv!$H$2:$H$65536))))),$A321,dati_bdv!K$2:K$65536)","v":0},{"$f":"SUMIF(IF(dati_pdc!$C321=1,dati_bdv!$C$2:$C$65536,IF(dati_pdc!$C321=2,dati_bdv!$D$2:$D$65536,IF(dati_pdc!$C321=3,dati_bdv!$E$2:$E$65536,IF(dati_pdc!$C321=4,dati_bdv!$F$2:$F$65536,IF(dati_pdc!$C321=5,dati_bdv!$G$2:$G$65536,dati_bdv!$H$2:$H$65536))))),$A321,dati_bdv!L$2:L$65536)","v":0},{"$f":"SUMIF(IF(dati_pdc!$C321=1,dati_bdv!$C$2:$C$65536,IF(dati_pdc!$C321=2,dati_bdv!$D$2:$D$65536,IF(dati_pdc!$C321=3,dati_bdv!$E$2:$E$65536,IF(dati_pdc!$C321=4,dati_bdv!$F$2:$F$65536,IF(dati_pdc!$C321=5,dati_bdv!$G$2:$G$65536,dati_bdv!$H$2:$H$65536))))),$A321,dati_bdv!M$2:M$65536)","v":0},{"$f":"SUMIF(IF(dati_pdc!$C321=1,dati_bdv!$C$2:$C$65536,IF(dati_pdc!$C321=2,dati_bdv!$D$2:$D$65536,IF(dati_pdc!$C321=3,dati_bdv!$E$2:$E$65536,IF(dati_pdc!$C321=4,dati_bdv!$F$2:$F$65536,IF(dati_pdc!$C321=5,dati_bdv!$G$2:$G$65536,dati_bdv!$H$2:$H$65536))))),$A321,dati_bdv!N$2:N$65536)","v":0}]
[{"$f":"dati_pdc!A322","v":0},{"$f":"SUMIF(IF(dati_pdc!$C322=1,dati_bdv!$C$2:$C$65536,IF(dati_pdc!$C322=2,dati_bdv!$D$2:$D$65536,IF(dati_pdc!$C322=3,dati_bdv!$E$2:$E$65536,IF(dati_pdc!$C322=4,dati_bdv!$F$2:$F$65536,IF(dati_pdc!$C322=5,dati_bdv!$G$2:$G$65536,dati_bdv!$H$2:$H$65536))))),$A322,dati_bdv!J$2:J$65536)","v":0},{"$f":"SUMIF(IF(dati_pdc!$C322=1,dati_bdv!$C$2:$C$65536,IF(dati_pdc!$C322=2,dati_bdv!$D$2:$D$65536,IF(dati_pdc!$C322=3,dati_bdv!$E$2:$E$65536,IF(dati_pdc!$C322=4,dati_bdv!$F$2:$F$65536,IF(dati_pdc!$C322=5,dati_bdv!$G$2:$G$65536,dati_bdv!$H$2:$H$65536))))),$A322,dati_bdv!K$2:K$65536)","v":0},{"$f":"SUMIF(IF(dati_pdc!$C322=1,dati_bdv!$C$2:$C$65536,IF(dati_pdc!$C322=2,dati_bdv!$D$2:$D$65536,IF(dati_pdc!$C322=3,dati_bdv!$E$2:$E$65536,IF(dati_pdc!$C322=4,dati_bdv!$F$2:$F$65536,IF(dati_pdc!$C322=5,dati_bdv!$G$2:$G$65536,dati_bdv!$H$2:$H$65536))))),$A322,dati_bdv!L$2:L$65536)","v":0},{"$f":"SUMIF(IF(dati_pdc!$C322=1,dati_bdv!$C$2:$C$65536,IF(dati_pdc!$C322=2,dati_bdv!$D$2:$D$65536,IF(dati_pdc!$C322=3,dati_bdv!$E$2:$E$65536,IF(dati_pdc!$C322=4,dati_bdv!$F$2:$F$65536,IF(dati_pdc!$C322=5,dati_bdv!$G$2:$G$65536,dati_bdv!$H$2:$H$65536))))),$A322,dati_bdv!M$2:M$65536)","v":0},{"$f":"SUMIF(IF(dati_pdc!$C322=1,dati_bdv!$C$2:$C$65536,IF(dati_pdc!$C322=2,dati_bdv!$D$2:$D$65536,IF(dati_pdc!$C322=3,dati_bdv!$E$2:$E$65536,IF(dati_pdc!$C322=4,dati_bdv!$F$2:$F$65536,IF(dati_pdc!$C322=5,dati_bdv!$G$2:$G$65536,dati_bdv!$H$2:$H$65536))))),$A322,dati_bdv!N$2:N$65536)","v":0}]
[{"$f":"dati_pdc!A323","v":0},{"$f":"SUMIF(IF(dati_pdc!$C323=1,dati_bdv!$C$2:$C$65536,IF(dati_pdc!$C323=2,dati_bdv!$D$2:$D$65536,IF(dati_pdc!$C323=3,dati_bdv!$E$2:$E$65536,IF(dati_pdc!$C323=4,dati_bdv!$F$2:$F$65536,IF(dati_pdc!$C323=5,dati_bdv!$G$2:$G$65536,dati_bdv!$H$2:$H$65536))))),$A323,dati_bdv!J$2:J$65536)","v":0},{"$f":"SUMIF(IF(dati_pdc!$C323=1,dati_bdv!$C$2:$C$65536,IF(dati_pdc!$C323=2,dati_bdv!$D$2:$D$65536,IF(dati_pdc!$C323=3,dati_bdv!$E$2:$E$65536,IF(dati_pdc!$C323=4,dati_bdv!$F$2:$F$65536,IF(dati_pdc!$C323=5,dati_bdv!$G$2:$G$65536,dati_bdv!$H$2:$H$65536))))),$A323,dati_bdv!K$2:K$65536)","v":0},{"$f":"SUMIF(IF(dati_pdc!$C323=1,dati_bdv!$C$2:$C$65536,IF(dati_pdc!$C323=2,dati_bdv!$D$2:$D$65536,IF(dati_pdc!$C323=3,dati_bdv!$E$2:$E$65536,IF(dati_pdc!$C323=4,dati_bdv!$F$2:$F$65536,IF(dati_pdc!$C323=5,dati_bdv!$G$2:$G$65536,dati_bdv!$H$2:$H$65536))))),$A323,dati_bdv!L$2:L$65536)","v":0},{"$f":"SUMIF(IF(dati_pdc!$C323=1,dati_bdv!$C$2:$C$65536,IF(dati_pdc!$C323=2,dati_bdv!$D$2:$D$65536,IF(dati_pdc!$C323=3,dati_bdv!$E$2:$E$65536,IF(dati_pdc!$C323=4,dati_bdv!$F$2:$F$65536,IF(dati_pdc!$C323=5,dati_bdv!$G$2:$G$65536,dati_bdv!$H$2:$H$65536))))),$A323,dati_bdv!M$2:M$65536)","v":0},{"$f":"SUMIF(IF(dati_pdc!$C323=1,dati_bdv!$C$2:$C$65536,IF(dati_pdc!$C323=2,dati_bdv!$D$2:$D$65536,IF(dati_pdc!$C323=3,dati_bdv!$E$2:$E$65536,IF(dati_pdc!$C323=4,dati_bdv!$F$2:$F$65536,IF(dati_pdc!$C323=5,dati_bdv!$G$2:$G$65536,dati_bdv!$H$2:$H$65536))))),$A323,dati_bdv!N$2:N$65536)","v":0}]
[{"$f":"dati_pdc!A324","v":0},{"$f":"SUMIF(IF(dati_pdc!$C324=1,dati_bdv!$C$2:$C$65536,IF(dati_pdc!$C324=2,dati_bdv!$D$2:$D$65536,IF(dati_pdc!$C324=3,dati_bdv!$E$2:$E$65536,IF(dati_pdc!$C324=4,dati_bdv!$F$2:$F$65536,IF(dati_pdc!$C324=5,dati_bdv!$G$2:$G$65536,dati_bdv!$H$2:$H$65536))))),$A324,dati_bdv!J$2:J$65536)","v":0},{"$f":"SUMIF(IF(dati_pdc!$C324=1,dati_bdv!$C$2:$C$65536,IF(dati_pdc!$C324=2,dati_bdv!$D$2:$D$65536,IF(dati_pdc!$C324=3,dati_bdv!$E$2:$E$65536,IF(dati_pdc!$C324=4,dati_bdv!$F$2:$F$65536,IF(dati_pdc!$C324=5,dati_bdv!$G$2:$G$65536,dati_bdv!$H$2:$H$65536))))),$A324,dati_bdv!K$2:K$65536)","v":0},{"$f":"SUMIF(IF(dati_pdc!$C324=1,dati_bdv!$C$2:$C$65536,IF(dati_pdc!$C324=2,dati_bdv!$D$2:$D$65536,IF(dati_pdc!$C324=3,dati_bdv!$E$2:$E$65536,IF(dati_pdc!$C324=4,dati_bdv!$F$2:$F$65536,IF(dati_pdc!$C324=5,dati_bdv!$G$2:$G$65536,dati_bdv!$H$2:$H$65536))))),$A324,dati_bdv!L$2:L$65536)","v":0},{"$f":"SUMIF(IF(dati_pdc!$C324=1,dati_bdv!$C$2:$C$65536,IF(dati_pdc!$C324=2,dati_bdv!$D$2:$D$65536,IF(dati_pdc!$C324=3,dati_bdv!$E$2:$E$65536,IF(dati_pdc!$C324=4,dati_bdv!$F$2:$F$65536,IF(dati_pdc!$C324=5,dati_bdv!$G$2:$G$65536,dati_bdv!$H$2:$H$65536))))),$A324,dati_bdv!M$2:M$65536)","v":0},{"$f":"SUMIF(IF(dati_pdc!$C324=1,dati_bdv!$C$2:$C$65536,IF(dati_pdc!$C324=2,dati_bdv!$D$2:$D$65536,IF(dati_pdc!$C324=3,dati_bdv!$E$2:$E$65536,IF(dati_pdc!$C324=4,dati_bdv!$F$2:$F$65536,IF(dati_pdc!$C324=5,dati_bdv!$G$2:$G$65536,dati_bdv!$H$2:$H$65536))))),$A324,dati_bdv!N$2:N$65536)","v":0}]
[{"$f":"dati_pdc!A325","v":0},{"$f":"SUMIF(IF(dati_pdc!$C325=1,dati_bdv!$C$2:$C$65536,IF(dati_pdc!$C325=2,dati_bdv!$D$2:$D$65536,IF(dati_pdc!$C325=3,dati_bdv!$E$2:$E$65536,IF(dati_pdc!$C325=4,dati_bdv!$F$2:$F$65536,IF(dati_pdc!$C325=5,dati_bdv!$G$2:$G$65536,dati_bdv!$H$2:$H$65536))))),$A325,dati_bdv!J$2:J$65536)","v":0},{"$f":"SUMIF(IF(dati_pdc!$C325=1,dati_bdv!$C$2:$C$65536,IF(dati_pdc!$C325=2,dati_bdv!$D$2:$D$65536,IF(dati_pdc!$C325=3,dati_bdv!$E$2:$E$65536,IF(dati_pdc!$C325=4,dati_bdv!$F$2:$F$65536,IF(dati_pdc!$C325=5,dati_bdv!$G$2:$G$65536,dati_bdv!$H$2:$H$65536))))),$A325,dati_bdv!K$2:K$65536)","v":0},{"$f":"SUMIF(IF(dati_pdc!$C325=1,dati_bdv!$C$2:$C$65536,IF(dati_pdc!$C325=2,dati_bdv!$D$2:$D$65536,IF(dati_pdc!$C325=3,dati_bdv!$E$2:$E$65536,IF(dati_pdc!$C325=4,dati_bdv!$F$2:$F$65536,IF(dati_pdc!$C325=5,dati_bdv!$G$2:$G$65536,dati_bdv!$H$2:$H$65536))))),$A325,dati_bdv!L$2:L$65536)","v":0},{"$f":"SUMIF(IF(dati_pdc!$C325=1,dati_bdv!$C$2:$C$65536,IF(dati_pdc!$C325=2,dati_bdv!$D$2:$D$65536,IF(dati_pdc!$C325=3,dati_bdv!$E$2:$E$65536,IF(dati_pdc!$C325=4,dati_bdv!$F$2:$F$65536,IF(dati_pdc!$C325=5,dati_bdv!$G$2:$G$65536,dati_bdv!$H$2:$H$65536))))),$A325,dati_bdv!M$2:M$65536)","v":0},{"$f":"SUMIF(IF(dati_pdc!$C325=1,dati_bdv!$C$2:$C$65536,IF(dati_pdc!$C325=2,dati_bdv!$D$2:$D$65536,IF(dati_pdc!$C325=3,dati_bdv!$E$2:$E$65536,IF(dati_pdc!$C325=4,dati_bdv!$F$2:$F$65536,IF(dati_pdc!$C325=5,dati_bdv!$G$2:$G$65536,dati_bdv!$H$2:$H$65536))))),$A325,dati_bdv!N$2:N$65536)","v":0}]
[{"$f":"dati_pdc!A326","v":0},{"$f":"SUMIF(IF(dati_pdc!$C326=1,dati_bdv!$C$2:$C$65536,IF(dati_pdc!$C326=2,dati_bdv!$D$2:$D$65536,IF(dati_pdc!$C326=3,dati_bdv!$E$2:$E$65536,IF(dati_pdc!$C326=4,dati_bdv!$F$2:$F$65536,IF(dati_pdc!$C326=5,dati_bdv!$G$2:$G$65536,dati_bdv!$H$2:$H$65536))))),$A326,dati_bdv!J$2:J$65536)","v":0},{"$f":"SUMIF(IF(dati_pdc!$C326=1,dati_bdv!$C$2:$C$65536,IF(dati_pdc!$C326=2,dati_bdv!$D$2:$D$65536,IF(dati_pdc!$C326=3,dati_bdv!$E$2:$E$65536,IF(dati_pdc!$C326=4,dati_bdv!$F$2:$F$65536,IF(dati_pdc!$C326=5,dati_bdv!$G$2:$G$65536,dati_bdv!$H$2:$H$65536))))),$A326,dati_bdv!K$2:K$65536)","v":0},{"$f":"SUMIF(IF(dati_pdc!$C326=1,dati_bdv!$C$2:$C$65536,IF(dati_pdc!$C326=2,dati_bdv!$D$2:$D$65536,IF(dati_pdc!$C326=3,dati_bdv!$E$2:$E$65536,IF(dati_pdc!$C326=4,dati_bdv!$F$2:$F$65536,IF(dati_pdc!$C326=5,dati_bdv!$G$2:$G$65536,dati_bdv!$H$2:$H$65536))))),$A326,dati_bdv!L$2:L$65536)","v":0},{"$f":"SUMIF(IF(dati_pdc!$C326=1,dati_bdv!$C$2:$C$65536,IF(dati_pdc!$C326=2,dati_bdv!$D$2:$D$65536,IF(dati_pdc!$C326=3,dati_bdv!$E$2:$E$65536,IF(dati_pdc!$C326=4,dati_bdv!$F$2:$F$65536,IF(dati_pdc!$C326=5,dati_bdv!$G$2:$G$65536,dati_bdv!$H$2:$H$65536))))),$A326,dati_bdv!M$2:M$65536)","v":0},{"$f":"SUMIF(IF(dati_pdc!$C326=1,dati_bdv!$C$2:$C$65536,IF(dati_pdc!$C326=2,dati_bdv!$D$2:$D$65536,IF(dati_pdc!$C326=3,dati_bdv!$E$2:$E$65536,IF(dati_pdc!$C326=4,dati_bdv!$F$2:$F$65536,IF(dati_pdc!$C326=5,dati_bdv!$G$2:$G$65536,dati_bdv!$H$2:$H$65536))))),$A326,dati_bdv!N$2:N$65536)","v":0}]
[{"$f":"dati_pdc!A327","v":0},{"$f":"SUMIF(IF(dati_pdc!$C327=1,dati_bdv!$C$2:$C$65536,IF(dati_pdc!$C327=2,dati_bdv!$D$2:$D$65536,IF(dati_pdc!$C327=3,dati_bdv!$E$2:$E$65536,IF(dati_pdc!$C327=4,dati_bdv!$F$2:$F$65536,IF(dati_pdc!$C327=5,dati_bdv!$G$2:$G$65536,dati_bdv!$H$2:$H$65536))))),$A327,dati_bdv!J$2:J$65536)","v":0},{"$f":"SUMIF(IF(dati_pdc!$C327=1,dati_bdv!$C$2:$C$65536,IF(dati_pdc!$C327=2,dati_bdv!$D$2:$D$65536,IF(dati_pdc!$C327=3,dati_bdv!$E$2:$E$65536,IF(dati_pdc!$C327=4,dati_bdv!$F$2:$F$65536,IF(dati_pdc!$C327=5,dati_bdv!$G$2:$G$65536,dati_bdv!$H$2:$H$65536))))),$A327,dati_bdv!K$2:K$65536)","v":0},{"$f":"SUMIF(IF(dati_pdc!$C327=1,dati_bdv!$C$2:$C$65536,IF(dati_pdc!$C327=2,dati_bdv!$D$2:$D$65536,IF(dati_pdc!$C327=3,dati_bdv!$E$2:$E$65536,IF(dati_pdc!$C327=4,dati_bdv!$F$2:$F$65536,IF(dati_pdc!$C327=5,dati_bdv!$G$2:$G$65536,dati_bdv!$H$2:$H$65536))))),$A327,dati_bdv!L$2:L$65536)","v":0},{"$f":"SUMIF(IF(dati_pdc!$C327=1,dati_bdv!$C$2:$C$65536,IF(dati_pdc!$C327=2,dati_bdv!$D$2:$D$65536,IF(dati_pdc!$C327=3,dati_bdv!$E$2:$E$65536,IF(dati_pdc!$C327=4,dati_bdv!$F$2:$F$65536,IF(dati_pdc!$C327=5,dati_bdv!$G$2:$G$65536,dati_bdv!$H$2:$H$65536))))),$A327,dati_bdv!M$2:M$65536)","v":0},{"$f":"SUMIF(IF(dati_pdc!$C327=1,dati_bdv!$C$2:$C$65536,IF(dati_pdc!$C327=2,dati_bdv!$D$2:$D$65536,IF(dati_pdc!$C327=3,dati_bdv!$E$2:$E$65536,IF(dati_pdc!$C327=4,dati_bdv!$F$2:$F$65536,IF(dati_pdc!$C327=5,dati_bdv!$G$2:$G$65536,dati_bdv!$H$2:$H$65536))))),$A327,dati_bdv!N$2:N$65536)","v":0}]
[{"$f":"dati_pdc!A328","v":0},{"$f":"SUMIF(IF(dati_pdc!$C328=1,dati_bdv!$C$2:$C$65536,IF(dati_pdc!$C328=2,dati_bdv!$D$2:$D$65536,IF(dati_pdc!$C328=3,dati_bdv!$E$2:$E$65536,IF(dati_pdc!$C328=4,dati_bdv!$F$2:$F$65536,IF(dati_pdc!$C328=5,dati_bdv!$G$2:$G$65536,dati_bdv!$H$2:$H$65536))))),$A328,dati_bdv!J$2:J$65536)","v":0},{"$f":"SUMIF(IF(dati_pdc!$C328=1,dati_bdv!$C$2:$C$65536,IF(dati_pdc!$C328=2,dati_bdv!$D$2:$D$65536,IF(dati_pdc!$C328=3,dati_bdv!$E$2:$E$65536,IF(dati_pdc!$C328=4,dati_bdv!$F$2:$F$65536,IF(dati_pdc!$C328=5,dati_bdv!$G$2:$G$65536,dati_bdv!$H$2:$H$65536))))),$A328,dati_bdv!K$2:K$65536)","v":0},{"$f":"SUMIF(IF(dati_pdc!$C328=1,dati_bdv!$C$2:$C$65536,IF(dati_pdc!$C328=2,dati_bdv!$D$2:$D$65536,IF(dati_pdc!$C328=3,dati_bdv!$E$2:$E$65536,IF(dati_pdc!$C328=4,dati_bdv!$F$2:$F$65536,IF(dati_pdc!$C328=5,dati_bdv!$G$2:$G$65536,dati_bdv!$H$2:$H$65536))))),$A328,dati_bdv!L$2:L$65536)","v":0},{"$f":"SUMIF(IF(dati_pdc!$C328=1,dati_bdv!$C$2:$C$65536,IF(dati_pdc!$C328=2,dati_bdv!$D$2:$D$65536,IF(dati_pdc!$C328=3,dati_bdv!$E$2:$E$65536,IF(dati_pdc!$C328=4,dati_bdv!$F$2:$F$65536,IF(dati_pdc!$C328=5,dati_bdv!$G$2:$G$65536,dati_bdv!$H$2:$H$65536))))),$A328,dati_bdv!M$2:M$65536)","v":0},{"$f":"SUMIF(IF(dati_pdc!$C328=1,dati_bdv!$C$2:$C$65536,IF(dati_pdc!$C328=2,dati_bdv!$D$2:$D$65536,IF(dati_pdc!$C328=3,dati_bdv!$E$2:$E$65536,IF(dati_pdc!$C328=4,dati_bdv!$F$2:$F$65536,IF(dati_pdc!$C328=5,dati_bdv!$G$2:$G$65536,dati_bdv!$H$2:$H$65536))))),$A328,dati_bdv!N$2:N$65536)","v":0}]
[{"$f":"dati_pdc!A329","v":0},{"$f":"SUMIF(IF(dati_pdc!$C329=1,dati_bdv!$C$2:$C$65536,IF(dati_pdc!$C329=2,dati_bdv!$D$2:$D$65536,IF(dati_pdc!$C329=3,dati_bdv!$E$2:$E$65536,IF(dati_pdc!$C329=4,dati_bdv!$F$2:$F$65536,IF(dati_pdc!$C329=5,dati_bdv!$G$2:$G$65536,dati_bdv!$H$2:$H$65536))))),$A329,dati_bdv!J$2:J$65536)","v":0},{"$f":"SUMIF(IF(dati_pdc!$C329=1,dati_bdv!$C$2:$C$65536,IF(dati_pdc!$C329=2,dati_bdv!$D$2:$D$65536,IF(dati_pdc!$C329=3,dati_bdv!$E$2:$E$65536,IF(dati_pdc!$C329=4,dati_bdv!$F$2:$F$65536,IF(dati_pdc!$C329=5,dati_bdv!$G$2:$G$65536,dati_bdv!$H$2:$H$65536))))),$A329,dati_bdv!K$2:K$65536)","v":0},{"$f":"SUMIF(IF(dati_pdc!$C329=1,dati_bdv!$C$2:$C$65536,IF(dati_pdc!$C329=2,dati_bdv!$D$2:$D$65536,IF(dati_pdc!$C329=3,dati_bdv!$E$2:$E$65536,IF(dati_pdc!$C329=4,dati_bdv!$F$2:$F$65536,IF(dati_pdc!$C329=5,dati_bdv!$G$2:$G$65536,dati_bdv!$H$2:$H$65536))))),$A329,dati_bdv!L$2:L$65536)","v":0},{"$f":"SUMIF(IF(dati_pdc!$C329=1,dati_bdv!$C$2:$C$65536,IF(dati_pdc!$C329=2,dati_bdv!$D$2:$D$65536,IF(dati_pdc!$C329=3,dati_bdv!$E$2:$E$65536,IF(dati_pdc!$C329=4,dati_bdv!$F$2:$F$65536,IF(dati_pdc!$C329=5,dati_bdv!$G$2:$G$65536,dati_bdv!$H$2:$H$65536))))),$A329,dati_bdv!M$2:M$65536)","v":0},{"$f":"SUMIF(IF(dati_pdc!$C329=1,dati_bdv!$C$2:$C$65536,IF(dati_pdc!$C329=2,dati_bdv!$D$2:$D$65536,IF(dati_pdc!$C329=3,dati_bdv!$E$2:$E$65536,IF(dati_pdc!$C329=4,dati_bdv!$F$2:$F$65536,IF(dati_pdc!$C329=5,dati_bdv!$G$2:$G$65536,dati_bdv!$H$2:$H$65536))))),$A329,dati_bdv!N$2:N$65536)","v":0}]
[{"$f":"dati_pdc!A330","v":0},{"$f":"SUMIF(IF(dati_pdc!$C330=1,dati_bdv!$C$2:$C$65536,IF(dati_pdc!$C330=2,dati_bdv!$D$2:$D$65536,IF(dati_pdc!$C330=3,dati_bdv!$E$2:$E$65536,IF(dati_pdc!$C330=4,dati_bdv!$F$2:$F$65536,IF(dati_pdc!$C330=5,dati_bdv!$G$2:$G$65536,dati_bdv!$H$2:$H$65536))))),$A330,dati_bdv!J$2:J$65536)","v":0},{"$f":"SUMIF(IF(dati_pdc!$C330=1,dati_bdv!$C$2:$C$65536,IF(dati_pdc!$C330=2,dati_bdv!$D$2:$D$65536,IF(dati_pdc!$C330=3,dati_bdv!$E$2:$E$65536,IF(dati_pdc!$C330=4,dati_bdv!$F$2:$F$65536,IF(dati_pdc!$C330=5,dati_bdv!$G$2:$G$65536,dati_bdv!$H$2:$H$65536))))),$A330,dati_bdv!K$2:K$65536)","v":0},{"$f":"SUMIF(IF(dati_pdc!$C330=1,dati_bdv!$C$2:$C$65536,IF(dati_pdc!$C330=2,dati_bdv!$D$2:$D$65536,IF(dati_pdc!$C330=3,dati_bdv!$E$2:$E$65536,IF(dati_pdc!$C330=4,dati_bdv!$F$2:$F$65536,IF(dati_pdc!$C330=5,dati_bdv!$G$2:$G$65536,dati_bdv!$H$2:$H$65536))))),$A330,dati_bdv!L$2:L$65536)","v":0},{"$f":"SUMIF(IF(dati_pdc!$C330=1,dati_bdv!$C$2:$C$65536,IF(dati_pdc!$C330=2,dati_bdv!$D$2:$D$65536,IF(dati_pdc!$C330=3,dati_bdv!$E$2:$E$65536,IF(dati_pdc!$C330=4,dati_bdv!$F$2:$F$65536,IF(dati_pdc!$C330=5,dati_bdv!$G$2:$G$65536,dati_bdv!$H$2:$H$65536))))),$A330,dati_bdv!M$2:M$65536)","v":0},{"$f":"SUMIF(IF(dati_pdc!$C330=1,dati_bdv!$C$2:$C$65536,IF(dati_pdc!$C330=2,dati_bdv!$D$2:$D$65536,IF(dati_pdc!$C330=3,dati_bdv!$E$2:$E$65536,IF(dati_pdc!$C330=4,dati_bdv!$F$2:$F$65536,IF(dati_pdc!$C330=5,dati_bdv!$G$2:$G$65536,dati_bdv!$H$2:$H$65536))))),$A330,dati_bdv!N$2:N$65536)","v":0}]
[{"$f":"dati_pdc!A331","v":0},{"$f":"SUMIF(IF(dati_pdc!$C331=1,dati_bdv!$C$2:$C$65536,IF(dati_pdc!$C331=2,dati_bdv!$D$2:$D$65536,IF(dati_pdc!$C331=3,dati_bdv!$E$2:$E$65536,IF(dati_pdc!$C331=4,dati_bdv!$F$2:$F$65536,IF(dati_pdc!$C331=5,dati_bdv!$G$2:$G$65536,dati_bdv!$H$2:$H$65536))))),$A331,dati_bdv!J$2:J$65536)","v":0},{"$f":"SUMIF(IF(dati_pdc!$C331=1,dati_bdv!$C$2:$C$65536,IF(dati_pdc!$C331=2,dati_bdv!$D$2:$D$65536,IF(dati_pdc!$C331=3,dati_bdv!$E$2:$E$65536,IF(dati_pdc!$C331=4,dati_bdv!$F$2:$F$65536,IF(dati_pdc!$C331=5,dati_bdv!$G$2:$G$65536,dati_bdv!$H$2:$H$65536))))),$A331,dati_bdv!K$2:K$65536)","v":0},{"$f":"SUMIF(IF(dati_pdc!$C331=1,dati_bdv!$C$2:$C$65536,IF(dati_pdc!$C331=2,dati_bdv!$D$2:$D$65536,IF(dati_pdc!$C331=3,dati_bdv!$E$2:$E$65536,IF(dati_pdc!$C331=4,dati_bdv!$F$2:$F$65536,IF(dati_pdc!$C331=5,dati_bdv!$G$2:$G$65536,dati_bdv!$H$2:$H$65536))))),$A331,dati_bdv!L$2:L$65536)","v":0},{"$f":"SUMIF(IF(dati_pdc!$C331=1,dati_bdv!$C$2:$C$65536,IF(dati_pdc!$C331=2,dati_bdv!$D$2:$D$65536,IF(dati_pdc!$C331=3,dati_bdv!$E$2:$E$65536,IF(dati_pdc!$C331=4,dati_bdv!$F$2:$F$65536,IF(dati_pdc!$C331=5,dati_bdv!$G$2:$G$65536,dati_bdv!$H$2:$H$65536))))),$A331,dati_bdv!M$2:M$65536)","v":0},{"$f":"SUMIF(IF(dati_pdc!$C331=1,dati_bdv!$C$2:$C$65536,IF(dati_pdc!$C331=2,dati_bdv!$D$2:$D$65536,IF(dati_pdc!$C331=3,dati_bdv!$E$2:$E$65536,IF(dati_pdc!$C331=4,dati_bdv!$F$2:$F$65536,IF(dati_pdc!$C331=5,dati_bdv!$G$2:$G$65536,dati_bdv!$H$2:$H$65536))))),$A331,dati_bdv!N$2:N$65536)","v":0}]
[{"$f":"dati_pdc!A332","v":0},{"$f":"SUMIF(IF(dati_pdc!$C332=1,dati_bdv!$C$2:$C$65536,IF(dati_pdc!$C332=2,dati_bdv!$D$2:$D$65536,IF(dati_pdc!$C332=3,dati_bdv!$E$2:$E$65536,IF(dati_pdc!$C332=4,dati_bdv!$F$2:$F$65536,IF(dati_pdc!$C332=5,dati_bdv!$G$2:$G$65536,dati_bdv!$H$2:$H$65536))))),$A332,dati_bdv!J$2:J$65536)","v":0},{"$f":"SUMIF(IF(dati_pdc!$C332=1,dati_bdv!$C$2:$C$65536,IF(dati_pdc!$C332=2,dati_bdv!$D$2:$D$65536,IF(dati_pdc!$C332=3,dati_bdv!$E$2:$E$65536,IF(dati_pdc!$C332=4,dati_bdv!$F$2:$F$65536,IF(dati_pdc!$C332=5,dati_bdv!$G$2:$G$65536,dati_bdv!$H$2:$H$65536))))),$A332,dati_bdv!K$2:K$65536)","v":0},{"$f":"SUMIF(IF(dati_pdc!$C332=1,dati_bdv!$C$2:$C$65536,IF(dati_pdc!$C332=2,dati_bdv!$D$2:$D$65536,IF(dati_pdc!$C332=3,dati_bdv!$E$2:$E$65536,IF(dati_pdc!$C332=4,dati_bdv!$F$2:$F$65536,IF(dati_pdc!$C332=5,dati_bdv!$G$2:$G$65536,dati_bdv!$H$2:$H$65536))))),$A332,dati_bdv!L$2:L$65536)","v":0},{"$f":"SUMIF(IF(dati_pdc!$C332=1,dati_bdv!$C$2:$C$65536,IF(dati_pdc!$C332=2,dati_bdv!$D$2:$D$65536,IF(dati_pdc!$C332=3,dati_bdv!$E$2:$E$65536,IF(dati_pdc!$C332=4,dati_bdv!$F$2:$F$65536,IF(dati_pdc!$C332=5,dati_bdv!$G$2:$G$65536,dati_bdv!$H$2:$H$65536))))),$A332,dati_bdv!M$2:M$65536)","v":0},{"$f":"SUMIF(IF(dati_pdc!$C332=1,dati_bdv!$C$2:$C$65536,IF(dati_pdc!$C332=2,dati_bdv!$D$2:$D$65536,IF(dati_pdc!$C332=3,dati_bdv!$E$2:$E$65536,IF(dati_pdc!$C332=4,dati_bdv!$F$2:$F$65536,IF(dati_pdc!$C332=5,dati_bdv!$G$2:$G$65536,dati_bdv!$H$2:$H$65536))))),$A332,dati_bdv!N$2:N$65536)","v":0}]
[{"$f":"dati_pdc!A333","v":0},{"$f":"SUMIF(IF(dati_pdc!$C333=1,dati_bdv!$C$2:$C$65536,IF(dati_pdc!$C333=2,dati_bdv!$D$2:$D$65536,IF(dati_pdc!$C333=3,dati_bdv!$E$2:$E$65536,IF(dati_pdc!$C333=4,dati_bdv!$F$2:$F$65536,IF(dati_pdc!$C333=5,dati_bdv!$G$2:$G$65536,dati_bdv!$H$2:$H$65536))))),$A333,dati_bdv!J$2:J$65536)","v":0},{"$f":"SUMIF(IF(dati_pdc!$C333=1,dati_bdv!$C$2:$C$65536,IF(dati_pdc!$C333=2,dati_bdv!$D$2:$D$65536,IF(dati_pdc!$C333=3,dati_bdv!$E$2:$E$65536,IF(dati_pdc!$C333=4,dati_bdv!$F$2:$F$65536,IF(dati_pdc!$C333=5,dati_bdv!$G$2:$G$65536,dati_bdv!$H$2:$H$65536))))),$A333,dati_bdv!K$2:K$65536)","v":0},{"$f":"SUMIF(IF(dati_pdc!$C333=1,dati_bdv!$C$2:$C$65536,IF(dati_pdc!$C333=2,dati_bdv!$D$2:$D$65536,IF(dati_pdc!$C333=3,dati_bdv!$E$2:$E$65536,IF(dati_pdc!$C333=4,dati_bdv!$F$2:$F$65536,IF(dati_pdc!$C333=5,dati_bdv!$G$2:$G$65536,dati_bdv!$H$2:$H$65536))))),$A333,dati_bdv!L$2:L$65536)","v":0},{"$f":"SUMIF(IF(dati_pdc!$C333=1,dati_bdv!$C$2:$C$65536,IF(dati_pdc!$C333=2,dati_bdv!$D$2:$D$65536,IF(dati_pdc!$C333=3,dati_bdv!$E$2:$E$65536,IF(dati_pdc!$C333=4,dati_bdv!$F$2:$F$65536,IF(dati_pdc!$C333=5,dati_bdv!$G$2:$G$65536,dati_bdv!$H$2:$H$65536))))),$A333,dati_bdv!M$2:M$65536)","v":0},{"$f":"SUMIF(IF(dati_pdc!$C333=1,dati_bdv!$C$2:$C$65536,IF(dati_pdc!$C333=2,dati_bdv!$D$2:$D$65536,IF(dati_pdc!$C333=3,dati_bdv!$E$2:$E$65536,IF(dati_pdc!$C333=4,dati_bdv!$F$2:$F$65536,IF(dati_pdc!$C333=5,dati_bdv!$G$2:$G$65536,dati_bdv!$H$2:$H$65536))))),$A333,dati_bdv!N$2:N$65536)","v":0}]
[{"$f":"dati_pdc!A334","v":0},{"$f":"SUMIF(IF(dati_pdc!$C334=1,dati_bdv!$C$2:$C$65536,IF(dati_pdc!$C334=2,dati_bdv!$D$2:$D$65536,IF(dati_pdc!$C334=3,dati_bdv!$E$2:$E$65536,IF(dati_pdc!$C334=4,dati_bdv!$F$2:$F$65536,IF(dati_pdc!$C334=5,dati_bdv!$G$2:$G$65536,dati_bdv!$H$2:$H$65536))))),$A334,dati_bdv!J$2:J$65536)","v":0},{"$f":"SUMIF(IF(dati_pdc!$C334=1,dati_bdv!$C$2:$C$65536,IF(dati_pdc!$C334=2,dati_bdv!$D$2:$D$65536,IF(dati_pdc!$C334=3,dati_bdv!$E$2:$E$65536,IF(dati_pdc!$C334=4,dati_bdv!$F$2:$F$65536,IF(dati_pdc!$C334=5,dati_bdv!$G$2:$G$65536,dati_bdv!$H$2:$H$65536))))),$A334,dati_bdv!K$2:K$65536)","v":0},{"$f":"SUMIF(IF(dati_pdc!$C334=1,dati_bdv!$C$2:$C$65536,IF(dati_pdc!$C334=2,dati_bdv!$D$2:$D$65536,IF(dati_pdc!$C334=3,dati_bdv!$E$2:$E$65536,IF(dati_pdc!$C334=4,dati_bdv!$F$2:$F$65536,IF(dati_pdc!$C334=5,dati_bdv!$G$2:$G$65536,dati_bdv!$H$2:$H$65536))))),$A334,dati_bdv!L$2:L$65536)","v":0},{"$f":"SUMIF(IF(dati_pdc!$C334=1,dati_bdv!$C$2:$C$65536,IF(dati_pdc!$C334=2,dati_bdv!$D$2:$D$65536,IF(dati_pdc!$C334=3,dati_bdv!$E$2:$E$65536,IF(dati_pdc!$C334=4,dati_bdv!$F$2:$F$65536,IF(dati_pdc!$C334=5,dati_bdv!$G$2:$G$65536,dati_bdv!$H$2:$H$65536))))),$A334,dati_bdv!M$2:M$65536)","v":0},{"$f":"SUMIF(IF(dati_pdc!$C334=1,dati_bdv!$C$2:$C$65536,IF(dati_pdc!$C334=2,dati_bdv!$D$2:$D$65536,IF(dati_pdc!$C334=3,dati_bdv!$E$2:$E$65536,IF(dati_pdc!$C334=4,dati_bdv!$F$2:$F$65536,IF(dati_pdc!$C334=5,dati_bdv!$G$2:$G$65536,dati_bdv!$H$2:$H$65536))))),$A334,dati_bdv!N$2:N$65536)","v":0}]
[{"$f":"dati_pdc!A335","v":0},{"$f":"SUMIF(IF(dati_pdc!$C335=1,dati_bdv!$C$2:$C$65536,IF(dati_pdc!$C335=2,dati_bdv!$D$2:$D$65536,IF(dati_pdc!$C335=3,dati_bdv!$E$2:$E$65536,IF(dati_pdc!$C335=4,dati_bdv!$F$2:$F$65536,IF(dati_pdc!$C335=5,dati_bdv!$G$2:$G$65536,dati_bdv!$H$2:$H$65536))))),$A335,dati_bdv!J$2:J$65536)","v":0},{"$f":"SUMIF(IF(dati_pdc!$C335=1,dati_bdv!$C$2:$C$65536,IF(dati_pdc!$C335=2,dati_bdv!$D$2:$D$65536,IF(dati_pdc!$C335=3,dati_bdv!$E$2:$E$65536,IF(dati_pdc!$C335=4,dati_bdv!$F$2:$F$65536,IF(dati_pdc!$C335=5,dati_bdv!$G$2:$G$65536,dati_bdv!$H$2:$H$65536))))),$A335,dati_bdv!K$2:K$65536)","v":0},{"$f":"SUMIF(IF(dati_pdc!$C335=1,dati_bdv!$C$2:$C$65536,IF(dati_pdc!$C335=2,dati_bdv!$D$2:$D$65536,IF(dati_pdc!$C335=3,dati_bdv!$E$2:$E$65536,IF(dati_pdc!$C335=4,dati_bdv!$F$2:$F$65536,IF(dati_pdc!$C335=5,dati_bdv!$G$2:$G$65536,dati_bdv!$H$2:$H$65536))))),$A335,dati_bdv!L$2:L$65536)","v":0},{"$f":"SUMIF(IF(dati_pdc!$C335=1,dati_bdv!$C$2:$C$65536,IF(dati_pdc!$C335=2,dati_bdv!$D$2:$D$65536,IF(dati_pdc!$C335=3,dati_bdv!$E$2:$E$65536,IF(dati_pdc!$C335=4,dati_bdv!$F$2:$F$65536,IF(dati_pdc!$C335=5,dati_bdv!$G$2:$G$65536,dati_bdv!$H$2:$H$65536))))),$A335,dati_bdv!M$2:M$65536)","v":0},{"$f":"SUMIF(IF(dati_pdc!$C335=1,dati_bdv!$C$2:$C$65536,IF(dati_pdc!$C335=2,dati_bdv!$D$2:$D$65536,IF(dati_pdc!$C335=3,dati_bdv!$E$2:$E$65536,IF(dati_pdc!$C335=4,dati_bdv!$F$2:$F$65536,IF(dati_pdc!$C335=5,dati_bdv!$G$2:$G$65536,dati_bdv!$H$2:$H$65536))))),$A335,dati_bdv!N$2:N$65536)","v":0}]
[{"$f":"dati_pdc!A336","v":0},{"$f":"SUMIF(IF(dati_pdc!$C336=1,dati_bdv!$C$2:$C$65536,IF(dati_pdc!$C336=2,dati_bdv!$D$2:$D$65536,IF(dati_pdc!$C336=3,dati_bdv!$E$2:$E$65536,IF(dati_pdc!$C336=4,dati_bdv!$F$2:$F$65536,IF(dati_pdc!$C336=5,dati_bdv!$G$2:$G$65536,dati_bdv!$H$2:$H$65536))))),$A336,dati_bdv!J$2:J$65536)","v":0},{"$f":"SUMIF(IF(dati_pdc!$C336=1,dati_bdv!$C$2:$C$65536,IF(dati_pdc!$C336=2,dati_bdv!$D$2:$D$65536,IF(dati_pdc!$C336=3,dati_bdv!$E$2:$E$65536,IF(dati_pdc!$C336=4,dati_bdv!$F$2:$F$65536,IF(dati_pdc!$C336=5,dati_bdv!$G$2:$G$65536,dati_bdv!$H$2:$H$65536))))),$A336,dati_bdv!K$2:K$65536)","v":0},{"$f":"SUMIF(IF(dati_pdc!$C336=1,dati_bdv!$C$2:$C$65536,IF(dati_pdc!$C336=2,dati_bdv!$D$2:$D$65536,IF(dati_pdc!$C336=3,dati_bdv!$E$2:$E$65536,IF(dati_pdc!$C336=4,dati_bdv!$F$2:$F$65536,IF(dati_pdc!$C336=5,dati_bdv!$G$2:$G$65536,dati_bdv!$H$2:$H$65536))))),$A336,dati_bdv!L$2:L$65536)","v":0},{"$f":"SUMIF(IF(dati_pdc!$C336=1,dati_bdv!$C$2:$C$65536,IF(dati_pdc!$C336=2,dati_bdv!$D$2:$D$65536,IF(dati_pdc!$C336=3,dati_bdv!$E$2:$E$65536,IF(dati_pdc!$C336=4,dati_bdv!$F$2:$F$65536,IF(dati_pdc!$C336=5,dati_bdv!$G$2:$G$65536,dati_bdv!$H$2:$H$65536))))),$A336,dati_bdv!M$2:M$65536)","v":0},{"$f":"SUMIF(IF(dati_pdc!$C336=1,dati_bdv!$C$2:$C$65536,IF(dati_pdc!$C336=2,dati_bdv!$D$2:$D$65536,IF(dati_pdc!$C336=3,dati_bdv!$E$2:$E$65536,IF(dati_pdc!$C336=4,dati_bdv!$F$2:$F$65536,IF(dati_pdc!$C336=5,dati_bdv!$G$2:$G$65536,dati_bdv!$H$2:$H$65536))))),$A336,dati_bdv!N$2:N$65536)","v":0}]
[{"$f":"dati_pdc!A337","v":0},{"$f":"SUMIF(IF(dati_pdc!$C337=1,dati_bdv!$C$2:$C$65536,IF(dati_pdc!$C337=2,dati_bdv!$D$2:$D$65536,IF(dati_pdc!$C337=3,dati_bdv!$E$2:$E$65536,IF(dati_pdc!$C337=4,dati_bdv!$F$2:$F$65536,IF(dati_pdc!$C337=5,dati_bdv!$G$2:$G$65536,dati_bdv!$H$2:$H$65536))))),$A337,dati_bdv!J$2:J$65536)","v":0},{"$f":"SUMIF(IF(dati_pdc!$C337=1,dati_bdv!$C$2:$C$65536,IF(dati_pdc!$C337=2,dati_bdv!$D$2:$D$65536,IF(dati_pdc!$C337=3,dati_bdv!$E$2:$E$65536,IF(dati_pdc!$C337=4,dati_bdv!$F$2:$F$65536,IF(dati_pdc!$C337=5,dati_bdv!$G$2:$G$65536,dati_bdv!$H$2:$H$65536))))),$A337,dati_bdv!K$2:K$65536)","v":0},{"$f":"SUMIF(IF(dati_pdc!$C337=1,dati_bdv!$C$2:$C$65536,IF(dati_pdc!$C337=2,dati_bdv!$D$2:$D$65536,IF(dati_pdc!$C337=3,dati_bdv!$E$2:$E$65536,IF(dati_pdc!$C337=4,dati_bdv!$F$2:$F$65536,IF(dati_pdc!$C337=5,dati_bdv!$G$2:$G$65536,dati_bdv!$H$2:$H$65536))))),$A337,dati_bdv!L$2:L$65536)","v":0},{"$f":"SUMIF(IF(dati_pdc!$C337=1,dati_bdv!$C$2:$C$65536,IF(dati_pdc!$C337=2,dati_bdv!$D$2:$D$65536,IF(dati_pdc!$C337=3,dati_bdv!$E$2:$E$65536,IF(dati_pdc!$C337=4,dati_bdv!$F$2:$F$65536,IF(dati_pdc!$C337=5,dati_bdv!$G$2:$G$65536,dati_bdv!$H$2:$H$65536))))),$A337,dati_bdv!M$2:M$65536)","v":0},{"$f":"SUMIF(IF(dati_pdc!$C337=1,dati_bdv!$C$2:$C$65536,IF(dati_pdc!$C337=2,dati_bdv!$D$2:$D$65536,IF(dati_pdc!$C337=3,dati_bdv!$E$2:$E$65536,IF(dati_pdc!$C337=4,dati_bdv!$F$2:$F$65536,IF(dati_pdc!$C337=5,dati_bdv!$G$2:$G$65536,dati_bdv!$H$2:$H$65536))))),$A337,dati_bdv!N$2:N$65536)","v":0}]
[{"$f":"dati_pdc!A338","v":0},{"$f":"SUMIF(IF(dati_pdc!$C338=1,dati_bdv!$C$2:$C$65536,IF(dati_pdc!$C338=2,dati_bdv!$D$2:$D$65536,IF(dati_pdc!$C338=3,dati_bdv!$E$2:$E$65536,IF(dati_pdc!$C338=4,dati_bdv!$F$2:$F$65536,IF(dati_pdc!$C338=5,dati_bdv!$G$2:$G$65536,dati_bdv!$H$2:$H$65536))))),$A338,dati_bdv!J$2:J$65536)","v":0},{"$f":"SUMIF(IF(dati_pdc!$C338=1,dati_bdv!$C$2:$C$65536,IF(dati_pdc!$C338=2,dati_bdv!$D$2:$D$65536,IF(dati_pdc!$C338=3,dati_bdv!$E$2:$E$65536,IF(dati_pdc!$C338=4,dati_bdv!$F$2:$F$65536,IF(dati_pdc!$C338=5,dati_bdv!$G$2:$G$65536,dati_bdv!$H$2:$H$65536))))),$A338,dati_bdv!K$2:K$65536)","v":0},{"$f":"SUMIF(IF(dati_pdc!$C338=1,dati_bdv!$C$2:$C$65536,IF(dati_pdc!$C338=2,dati_bdv!$D$2:$D$65536,IF(dati_pdc!$C338=3,dati_bdv!$E$2:$E$65536,IF(dati_pdc!$C338=4,dati_bdv!$F$2:$F$65536,IF(dati_pdc!$C338=5,dati_bdv!$G$2:$G$65536,dati_bdv!$H$2:$H$65536))))),$A338,dati_bdv!L$2:L$65536)","v":0},{"$f":"SUMIF(IF(dati_pdc!$C338=1,dati_bdv!$C$2:$C$65536,IF(dati_pdc!$C338=2,dati_bdv!$D$2:$D$65536,IF(dati_pdc!$C338=3,dati_bdv!$E$2:$E$65536,IF(dati_pdc!$C338=4,dati_bdv!$F$2:$F$65536,IF(dati_pdc!$C338=5,dati_bdv!$G$2:$G$65536,dati_bdv!$H$2:$H$65536))))),$A338,dati_bdv!M$2:M$65536)","v":0},{"$f":"SUMIF(IF(dati_pdc!$C338=1,dati_bdv!$C$2:$C$65536,IF(dati_pdc!$C338=2,dati_bdv!$D$2:$D$65536,IF(dati_pdc!$C338=3,dati_bdv!$E$2:$E$65536,IF(dati_pdc!$C338=4,dati_bdv!$F$2:$F$65536,IF(dati_pdc!$C338=5,dati_bdv!$G$2:$G$65536,dati_bdv!$H$2:$H$65536))))),$A338,dati_bdv!N$2:N$65536)","v":0}]
[{"$f":"dati_pdc!A339","v":0},{"$f":"SUMIF(IF(dati_pdc!$C339=1,dati_bdv!$C$2:$C$65536,IF(dati_pdc!$C339=2,dati_bdv!$D$2:$D$65536,IF(dati_pdc!$C339=3,dati_bdv!$E$2:$E$65536,IF(dati_pdc!$C339=4,dati_bdv!$F$2:$F$65536,IF(dati_pdc!$C339=5,dati_bdv!$G$2:$G$65536,dati_bdv!$H$2:$H$65536))))),$A339,dati_bdv!J$2:J$65536)","v":0},{"$f":"SUMIF(IF(dati_pdc!$C339=1,dati_bdv!$C$2:$C$65536,IF(dati_pdc!$C339=2,dati_bdv!$D$2:$D$65536,IF(dati_pdc!$C339=3,dati_bdv!$E$2:$E$65536,IF(dati_pdc!$C339=4,dati_bdv!$F$2:$F$65536,IF(dati_pdc!$C339=5,dati_bdv!$G$2:$G$65536,dati_bdv!$H$2:$H$65536))))),$A339,dati_bdv!K$2:K$65536)","v":0},{"$f":"SUMIF(IF(dati_pdc!$C339=1,dati_bdv!$C$2:$C$65536,IF(dati_pdc!$C339=2,dati_bdv!$D$2:$D$65536,IF(dati_pdc!$C339=3,dati_bdv!$E$2:$E$65536,IF(dati_pdc!$C339=4,dati_bdv!$F$2:$F$65536,IF(dati_pdc!$C339=5,dati_bdv!$G$2:$G$65536,dati_bdv!$H$2:$H$65536))))),$A339,dati_bdv!L$2:L$65536)","v":0},{"$f":"SUMIF(IF(dati_pdc!$C339=1,dati_bdv!$C$2:$C$65536,IF(dati_pdc!$C339=2,dati_bdv!$D$2:$D$65536,IF(dati_pdc!$C339=3,dati_bdv!$E$2:$E$65536,IF(dati_pdc!$C339=4,dati_bdv!$F$2:$F$65536,IF(dati_pdc!$C339=5,dati_bdv!$G$2:$G$65536,dati_bdv!$H$2:$H$65536))))),$A339,dati_bdv!M$2:M$65536)","v":0},{"$f":"SUMIF(IF(dati_pdc!$C339=1,dati_bdv!$C$2:$C$65536,IF(dati_pdc!$C339=2,dati_bdv!$D$2:$D$65536,IF(dati_pdc!$C339=3,dati_bdv!$E$2:$E$65536,IF(dati_pdc!$C339=4,dati_bdv!$F$2:$F$65536,IF(dati_pdc!$C339=5,dati_bdv!$G$2:$G$65536,dati_bdv!$H$2:$H$65536))))),$A339,dati_bdv!N$2:N$65536)","v":0}]
[{"$f":"dati_pdc!A340","v":0},{"$f":"SUMIF(IF(dati_pdc!$C340=1,dati_bdv!$C$2:$C$65536,IF(dati_pdc!$C340=2,dati_bdv!$D$2:$D$65536,IF(dati_pdc!$C340=3,dati_bdv!$E$2:$E$65536,IF(dati_pdc!$C340=4,dati_bdv!$F$2:$F$65536,IF(dati_pdc!$C340=5,dati_bdv!$G$2:$G$65536,dati_bdv!$H$2:$H$65536))))),$A340,dati_bdv!J$2:J$65536)","v":0},{"$f":"SUMIF(IF(dati_pdc!$C340=1,dati_bdv!$C$2:$C$65536,IF(dati_pdc!$C340=2,dati_bdv!$D$2:$D$65536,IF(dati_pdc!$C340=3,dati_bdv!$E$2:$E$65536,IF(dati_pdc!$C340=4,dati_bdv!$F$2:$F$65536,IF(dati_pdc!$C340=5,dati_bdv!$G$2:$G$65536,dati_bdv!$H$2:$H$65536))))),$A340,dati_bdv!K$2:K$65536)","v":0},{"$f":"SUMIF(IF(dati_pdc!$C340=1,dati_bdv!$C$2:$C$65536,IF(dati_pdc!$C340=2,dati_bdv!$D$2:$D$65536,IF(dati_pdc!$C340=3,dati_bdv!$E$2:$E$65536,IF(dati_pdc!$C340=4,dati_bdv!$F$2:$F$65536,IF(dati_pdc!$C340=5,dati_bdv!$G$2:$G$65536,dati_bdv!$H$2:$H$65536))))),$A340,dati_bdv!L$2:L$65536)","v":0},{"$f":"SUMIF(IF(dati_pdc!$C340=1,dati_bdv!$C$2:$C$65536,IF(dati_pdc!$C340=2,dati_bdv!$D$2:$D$65536,IF(dati_pdc!$C340=3,dati_bdv!$E$2:$E$65536,IF(dati_pdc!$C340=4,dati_bdv!$F$2:$F$65536,IF(dati_pdc!$C340=5,dati_bdv!$G$2:$G$65536,dati_bdv!$H$2:$H$65536))))),$A340,dati_bdv!M$2:M$65536)","v":0},{"$f":"SUMIF(IF(dati_pdc!$C340=1,dati_bdv!$C$2:$C$65536,IF(dati_pdc!$C340=2,dati_bdv!$D$2:$D$65536,IF(dati_pdc!$C340=3,dati_bdv!$E$2:$E$65536,IF(dati_pdc!$C340=4,dati_bdv!$F$2:$F$65536,IF(dati_pdc!$C340=5,dati_bdv!$G$2:$G$65536,dati_bdv!$H$2:$H$65536))))),$A340,dati_bdv!N$2:N$65536)","v":0}]
[{"$f":"dati_pdc!A341","v":0},{"$f":"SUMIF(IF(dati_pdc!$C341=1,dati_bdv!$C$2:$C$65536,IF(dati_pdc!$C341=2,dati_bdv!$D$2:$D$65536,IF(dati_pdc!$C341=3,dati_bdv!$E$2:$E$65536,IF(dati_pdc!$C341=4,dati_bdv!$F$2:$F$65536,IF(dati_pdc!$C341=5,dati_bdv!$G$2:$G$65536,dati_bdv!$H$2:$H$65536))))),$A341,dati_bdv!J$2:J$65536)","v":0},{"$f":"SUMIF(IF(dati_pdc!$C341=1,dati_bdv!$C$2:$C$65536,IF(dati_pdc!$C341=2,dati_bdv!$D$2:$D$65536,IF(dati_pdc!$C341=3,dati_bdv!$E$2:$E$65536,IF(dati_pdc!$C341=4,dati_bdv!$F$2:$F$65536,IF(dati_pdc!$C341=5,dati_bdv!$G$2:$G$65536,dati_bdv!$H$2:$H$65536))))),$A341,dati_bdv!K$2:K$65536)","v":0},{"$f":"SUMIF(IF(dati_pdc!$C341=1,dati_bdv!$C$2:$C$65536,IF(dati_pdc!$C341=2,dati_bdv!$D$2:$D$65536,IF(dati_pdc!$C341=3,dati_bdv!$E$2:$E$65536,IF(dati_pdc!$C341=4,dati_bdv!$F$2:$F$65536,IF(dati_pdc!$C341=5,dati_bdv!$G$2:$G$65536,dati_bdv!$H$2:$H$65536))))),$A341,dati_bdv!L$2:L$65536)","v":0},{"$f":"SUMIF(IF(dati_pdc!$C341=1,dati_bdv!$C$2:$C$65536,IF(dati_pdc!$C341=2,dati_bdv!$D$2:$D$65536,IF(dati_pdc!$C341=3,dati_bdv!$E$2:$E$65536,IF(dati_pdc!$C341=4,dati_bdv!$F$2:$F$65536,IF(dati_pdc!$C341=5,dati_bdv!$G$2:$G$65536,dati_bdv!$H$2:$H$65536))))),$A341,dati_bdv!M$2:M$65536)","v":0},{"$f":"SUMIF(IF(dati_pdc!$C341=1,dati_bdv!$C$2:$C$65536,IF(dati_pdc!$C341=2,dati_bdv!$D$2:$D$65536,IF(dati_pdc!$C341=3,dati_bdv!$E$2:$E$65536,IF(dati_pdc!$C341=4,dati_bdv!$F$2:$F$65536,IF(dati_pdc!$C341=5,dati_bdv!$G$2:$G$65536,dati_bdv!$H$2:$H$65536))))),$A341,dati_bdv!N$2:N$65536)","v":0}]
[{"$f":"dati_pdc!A342","v":0},{"$f":"SUMIF(IF(dati_pdc!$C342=1,dati_bdv!$C$2:$C$65536,IF(dati_pdc!$C342=2,dati_bdv!$D$2:$D$65536,IF(dati_pdc!$C342=3,dati_bdv!$E$2:$E$65536,IF(dati_pdc!$C342=4,dati_bdv!$F$2:$F$65536,IF(dati_pdc!$C342=5,dati_bdv!$G$2:$G$65536,dati_bdv!$H$2:$H$65536))))),$A342,dati_bdv!J$2:J$65536)","v":0},{"$f":"SUMIF(IF(dati_pdc!$C342=1,dati_bdv!$C$2:$C$65536,IF(dati_pdc!$C342=2,dati_bdv!$D$2:$D$65536,IF(dati_pdc!$C342=3,dati_bdv!$E$2:$E$65536,IF(dati_pdc!$C342=4,dati_bdv!$F$2:$F$65536,IF(dati_pdc!$C342=5,dati_bdv!$G$2:$G$65536,dati_bdv!$H$2:$H$65536))))),$A342,dati_bdv!K$2:K$65536)","v":0},{"$f":"SUMIF(IF(dati_pdc!$C342=1,dati_bdv!$C$2:$C$65536,IF(dati_pdc!$C342=2,dati_bdv!$D$2:$D$65536,IF(dati_pdc!$C342=3,dati_bdv!$E$2:$E$65536,IF(dati_pdc!$C342=4,dati_bdv!$F$2:$F$65536,IF(dati_pdc!$C342=5,dati_bdv!$G$2:$G$65536,dati_bdv!$H$2:$H$65536))))),$A342,dati_bdv!L$2:L$65536)","v":0},{"$f":"SUMIF(IF(dati_pdc!$C342=1,dati_bdv!$C$2:$C$65536,IF(dati_pdc!$C342=2,dati_bdv!$D$2:$D$65536,IF(dati_pdc!$C342=3,dati_bdv!$E$2:$E$65536,IF(dati_pdc!$C342=4,dati_bdv!$F$2:$F$65536,IF(dati_pdc!$C342=5,dati_bdv!$G$2:$G$65536,dati_bdv!$H$2:$H$65536))))),$A342,dati_bdv!M$2:M$65536)","v":0},{"$f":"SUMIF(IF(dati_pdc!$C342=1,dati_bdv!$C$2:$C$65536,IF(dati_pdc!$C342=2,dati_bdv!$D$2:$D$65536,IF(dati_pdc!$C342=3,dati_bdv!$E$2:$E$65536,IF(dati_pdc!$C342=4,dati_bdv!$F$2:$F$65536,IF(dati_pdc!$C342=5,dati_bdv!$G$2:$G$65536,dati_bdv!$H$2:$H$65536))))),$A342,dati_bdv!N$2:N$65536)","v":0}]
[{"$f":"dati_pdc!A343","v":0},{"$f":"SUMIF(IF(dati_pdc!$C343=1,dati_bdv!$C$2:$C$65536,IF(dati_pdc!$C343=2,dati_bdv!$D$2:$D$65536,IF(dati_pdc!$C343=3,dati_bdv!$E$2:$E$65536,IF(dati_pdc!$C343=4,dati_bdv!$F$2:$F$65536,IF(dati_pdc!$C343=5,dati_bdv!$G$2:$G$65536,dati_bdv!$H$2:$H$65536))))),$A343,dati_bdv!J$2:J$65536)","v":0},{"$f":"SUMIF(IF(dati_pdc!$C343=1,dati_bdv!$C$2:$C$65536,IF(dati_pdc!$C343=2,dati_bdv!$D$2:$D$65536,IF(dati_pdc!$C343=3,dati_bdv!$E$2:$E$65536,IF(dati_pdc!$C343=4,dati_bdv!$F$2:$F$65536,IF(dati_pdc!$C343=5,dati_bdv!$G$2:$G$65536,dati_bdv!$H$2:$H$65536))))),$A343,dati_bdv!K$2:K$65536)","v":0},{"$f":"SUMIF(IF(dati_pdc!$C343=1,dati_bdv!$C$2:$C$65536,IF(dati_pdc!$C343=2,dati_bdv!$D$2:$D$65536,IF(dati_pdc!$C343=3,dati_bdv!$E$2:$E$65536,IF(dati_pdc!$C343=4,dati_bdv!$F$2:$F$65536,IF(dati_pdc!$C343=5,dati_bdv!$G$2:$G$65536,dati_bdv!$H$2:$H$65536))))),$A343,dati_bdv!L$2:L$65536)","v":0},{"$f":"SUMIF(IF(dati_pdc!$C343=1,dati_bdv!$C$2:$C$65536,IF(dati_pdc!$C343=2,dati_bdv!$D$2:$D$65536,IF(dati_pdc!$C343=3,dati_bdv!$E$2:$E$65536,IF(dati_pdc!$C343=4,dati_bdv!$F$2:$F$65536,IF(dati_pdc!$C343=5,dati_bdv!$G$2:$G$65536,dati_bdv!$H$2:$H$65536))))),$A343,dati_bdv!M$2:M$65536)","v":0},{"$f":"SUMIF(IF(dati_pdc!$C343=1,dati_bdv!$C$2:$C$65536,IF(dati_pdc!$C343=2,dati_bdv!$D$2:$D$65536,IF(dati_pdc!$C343=3,dati_bdv!$E$2:$E$65536,IF(dati_pdc!$C343=4,dati_bdv!$F$2:$F$65536,IF(dati_pdc!$C343=5,dati_bdv!$G$2:$G$65536,dati_bdv!$H$2:$H$65536))))),$A343,dati_bdv!N$2:N$65536)","v":0}]
[{"$f":"dati_pdc!A344","v":0},{"$f":"SUMIF(IF(dati_pdc!$C344=1,dati_bdv!$C$2:$C$65536,IF(dati_pdc!$C344=2,dati_bdv!$D$2:$D$65536,IF(dati_pdc!$C344=3,dati_bdv!$E$2:$E$65536,IF(dati_pdc!$C344=4,dati_bdv!$F$2:$F$65536,IF(dati_pdc!$C344=5,dati_bdv!$G$2:$G$65536,dati_bdv!$H$2:$H$65536))))),$A344,dati_bdv!J$2:J$65536)","v":0},{"$f":"SUMIF(IF(dati_pdc!$C344=1,dati_bdv!$C$2:$C$65536,IF(dati_pdc!$C344=2,dati_bdv!$D$2:$D$65536,IF(dati_pdc!$C344=3,dati_bdv!$E$2:$E$65536,IF(dati_pdc!$C344=4,dati_bdv!$F$2:$F$65536,IF(dati_pdc!$C344=5,dati_bdv!$G$2:$G$65536,dati_bdv!$H$2:$H$65536))))),$A344,dati_bdv!K$2:K$65536)","v":0},{"$f":"SUMIF(IF(dati_pdc!$C344=1,dati_bdv!$C$2:$C$65536,IF(dati_pdc!$C344=2,dati_bdv!$D$2:$D$65536,IF(dati_pdc!$C344=3,dati_bdv!$E$2:$E$65536,IF(dati_pdc!$C344=4,dati_bdv!$F$2:$F$65536,IF(dati_pdc!$C344=5,dati_bdv!$G$2:$G$65536,dati_bdv!$H$2:$H$65536))))),$A344,dati_bdv!L$2:L$65536)","v":0},{"$f":"SUMIF(IF(dati_pdc!$C344=1,dati_bdv!$C$2:$C$65536,IF(dati_pdc!$C344=2,dati_bdv!$D$2:$D$65536,IF(dati_pdc!$C344=3,dati_bdv!$E$2:$E$65536,IF(dati_pdc!$C344=4,dati_bdv!$F$2:$F$65536,IF(dati_pdc!$C344=5,dati_bdv!$G$2:$G$65536,dati_bdv!$H$2:$H$65536))))),$A344,dati_bdv!M$2:M$65536)","v":0},{"$f":"SUMIF(IF(dati_pdc!$C344=1,dati_bdv!$C$2:$C$65536,IF(dati_pdc!$C344=2,dati_bdv!$D$2:$D$65536,IF(dati_pdc!$C344=3,dati_bdv!$E$2:$E$65536,IF(dati_pdc!$C344=4,dati_bdv!$F$2:$F$65536,IF(dati_pdc!$C344=5,dati_bdv!$G$2:$G$65536,dati_bdv!$H$2:$H$65536))))),$A344,dati_bdv!N$2:N$65536)","v":0}]
[{"$f":"dati_pdc!A345","v":0},{"$f":"SUMIF(IF(dati_pdc!$C345=1,dati_bdv!$C$2:$C$65536,IF(dati_pdc!$C345=2,dati_bdv!$D$2:$D$65536,IF(dati_pdc!$C345=3,dati_bdv!$E$2:$E$65536,IF(dati_pdc!$C345=4,dati_bdv!$F$2:$F$65536,IF(dati_pdc!$C345=5,dati_bdv!$G$2:$G$65536,dati_bdv!$H$2:$H$65536))))),$A345,dati_bdv!J$2:J$65536)","v":0},{"$f":"SUMIF(IF(dati_pdc!$C345=1,dati_bdv!$C$2:$C$65536,IF(dati_pdc!$C345=2,dati_bdv!$D$2:$D$65536,IF(dati_pdc!$C345=3,dati_bdv!$E$2:$E$65536,IF(dati_pdc!$C345=4,dati_bdv!$F$2:$F$65536,IF(dati_pdc!$C345=5,dati_bdv!$G$2:$G$65536,dati_bdv!$H$2:$H$65536))))),$A345,dati_bdv!K$2:K$65536)","v":0},{"$f":"SUMIF(IF(dati_pdc!$C345=1,dati_bdv!$C$2:$C$65536,IF(dati_pdc!$C345=2,dati_bdv!$D$2:$D$65536,IF(dati_pdc!$C345=3,dati_bdv!$E$2:$E$65536,IF(dati_pdc!$C345=4,dati_bdv!$F$2:$F$65536,IF(dati_pdc!$C345=5,dati_bdv!$G$2:$G$65536,dati_bdv!$H$2:$H$65536))))),$A345,dati_bdv!L$2:L$65536)","v":0},{"$f":"SUMIF(IF(dati_pdc!$C345=1,dati_bdv!$C$2:$C$65536,IF(dati_pdc!$C345=2,dati_bdv!$D$2:$D$65536,IF(dati_pdc!$C345=3,dati_bdv!$E$2:$E$65536,IF(dati_pdc!$C345=4,dati_bdv!$F$2:$F$65536,IF(dati_pdc!$C345=5,dati_bdv!$G$2:$G$65536,dati_bdv!$H$2:$H$65536))))),$A345,dati_bdv!M$2:M$65536)","v":0},{"$f":"SUMIF(IF(dati_pdc!$C345=1,dati_bdv!$C$2:$C$65536,IF(dati_pdc!$C345=2,dati_bdv!$D$2:$D$65536,IF(dati_pdc!$C345=3,dati_bdv!$E$2:$E$65536,IF(dati_pdc!$C345=4,dati_bdv!$F$2:$F$65536,IF(dati_pdc!$C345=5,dati_bdv!$G$2:$G$65536,dati_bdv!$H$2:$H$65536))))),$A345,dati_bdv!N$2:N$65536)","v":0}]
[{"$f":"dati_pdc!A346","v":0},{"$f":"SUMIF(IF(dati_pdc!$C346=1,dati_bdv!$C$2:$C$65536,IF(dati_pdc!$C346=2,dati_bdv!$D$2:$D$65536,IF(dati_pdc!$C346=3,dati_bdv!$E$2:$E$65536,IF(dati_pdc!$C346=4,dati_bdv!$F$2:$F$65536,IF(dati_pdc!$C346=5,dati_bdv!$G$2:$G$65536,dati_bdv!$H$2:$H$65536))))),$A346,dati_bdv!J$2:J$65536)","v":0},{"$f":"SUMIF(IF(dati_pdc!$C346=1,dati_bdv!$C$2:$C$65536,IF(dati_pdc!$C346=2,dati_bdv!$D$2:$D$65536,IF(dati_pdc!$C346=3,dati_bdv!$E$2:$E$65536,IF(dati_pdc!$C346=4,dati_bdv!$F$2:$F$65536,IF(dati_pdc!$C346=5,dati_bdv!$G$2:$G$65536,dati_bdv!$H$2:$H$65536))))),$A346,dati_bdv!K$2:K$65536)","v":0},{"$f":"SUMIF(IF(dati_pdc!$C346=1,dati_bdv!$C$2:$C$65536,IF(dati_pdc!$C346=2,dati_bdv!$D$2:$D$65536,IF(dati_pdc!$C346=3,dati_bdv!$E$2:$E$65536,IF(dati_pdc!$C346=4,dati_bdv!$F$2:$F$65536,IF(dati_pdc!$C346=5,dati_bdv!$G$2:$G$65536,dati_bdv!$H$2:$H$65536))))),$A346,dati_bdv!L$2:L$65536)","v":0},{"$f":"SUMIF(IF(dati_pdc!$C346=1,dati_bdv!$C$2:$C$65536,IF(dati_pdc!$C346=2,dati_bdv!$D$2:$D$65536,IF(dati_pdc!$C346=3,dati_bdv!$E$2:$E$65536,IF(dati_pdc!$C346=4,dati_bdv!$F$2:$F$65536,IF(dati_pdc!$C346=5,dati_bdv!$G$2:$G$65536,dati_bdv!$H$2:$H$65536))))),$A346,dati_bdv!M$2:M$65536)","v":0},{"$f":"SUMIF(IF(dati_pdc!$C346=1,dati_bdv!$C$2:$C$65536,IF(dati_pdc!$C346=2,dati_bdv!$D$2:$D$65536,IF(dati_pdc!$C346=3,dati_bdv!$E$2:$E$65536,IF(dati_pdc!$C346=4,dati_bdv!$F$2:$F$65536,IF(dati_pdc!$C346=5,dati_bdv!$G$2:$G$65536,dati_bdv!$H$2:$H$65536))))),$A346,dati_bdv!N$2:N$65536)","v":0}]
[{"$f":"dati_pdc!A347","v":0},{"$f":"SUMIF(IF(dati_pdc!$C347=1,dati_bdv!$C$2:$C$65536,IF(dati_pdc!$C347=2,dati_bdv!$D$2:$D$65536,IF(dati_pdc!$C347=3,dati_bdv!$E$2:$E$65536,IF(dati_pdc!$C347=4,dati_bdv!$F$2:$F$65536,IF(dati_pdc!$C347=5,dati_bdv!$G$2:$G$65536,dati_bdv!$H$2:$H$65536))))),$A347,dati_bdv!J$2:J$65536)","v":0},{"$f":"SUMIF(IF(dati_pdc!$C347=1,dati_bdv!$C$2:$C$65536,IF(dati_pdc!$C347=2,dati_bdv!$D$2:$D$65536,IF(dati_pdc!$C347=3,dati_bdv!$E$2:$E$65536,IF(dati_pdc!$C347=4,dati_bdv!$F$2:$F$65536,IF(dati_pdc!$C347=5,dati_bdv!$G$2:$G$65536,dati_bdv!$H$2:$H$65536))))),$A347,dati_bdv!K$2:K$65536)","v":0},{"$f":"SUMIF(IF(dati_pdc!$C347=1,dati_bdv!$C$2:$C$65536,IF(dati_pdc!$C347=2,dati_bdv!$D$2:$D$65536,IF(dati_pdc!$C347=3,dati_bdv!$E$2:$E$65536,IF(dati_pdc!$C347=4,dati_bdv!$F$2:$F$65536,IF(dati_pdc!$C347=5,dati_bdv!$G$2:$G$65536,dati_bdv!$H$2:$H$65536))))),$A347,dati_bdv!L$2:L$65536)","v":0},{"$f":"SUMIF(IF(dati_pdc!$C347=1,dati_bdv!$C$2:$C$65536,IF(dati_pdc!$C347=2,dati_bdv!$D$2:$D$65536,IF(dati_pdc!$C347=3,dati_bdv!$E$2:$E$65536,IF(dati_pdc!$C347=4,dati_bdv!$F$2:$F$65536,IF(dati_pdc!$C347=5,dati_bdv!$G$2:$G$65536,dati_bdv!$H$2:$H$65536))))),$A347,dati_bdv!M$2:M$65536)","v":0},{"$f":"SUMIF(IF(dati_pdc!$C347=1,dati_bdv!$C$2:$C$65536,IF(dati_pdc!$C347=2,dati_bdv!$D$2:$D$65536,IF(dati_pdc!$C347=3,dati_bdv!$E$2:$E$65536,IF(dati_pdc!$C347=4,dati_bdv!$F$2:$F$65536,IF(dati_pdc!$C347=5,dati_bdv!$G$2:$G$65536,dati_bdv!$H$2:$H$65536))))),$A347,dati_bdv!N$2:N$65536)","v":0}]
[{"$f":"dati_pdc!A348","v":0},{"$f":"SUMIF(IF(dati_pdc!$C348=1,dati_bdv!$C$2:$C$65536,IF(dati_pdc!$C348=2,dati_bdv!$D$2:$D$65536,IF(dati_pdc!$C348=3,dati_bdv!$E$2:$E$65536,IF(dati_pdc!$C348=4,dati_bdv!$F$2:$F$65536,IF(dati_pdc!$C348=5,dati_bdv!$G$2:$G$65536,dati_bdv!$H$2:$H$65536))))),$A348,dati_bdv!J$2:J$65536)","v":0},{"$f":"SUMIF(IF(dati_pdc!$C348=1,dati_bdv!$C$2:$C$65536,IF(dati_pdc!$C348=2,dati_bdv!$D$2:$D$65536,IF(dati_pdc!$C348=3,dati_bdv!$E$2:$E$65536,IF(dati_pdc!$C348=4,dati_bdv!$F$2:$F$65536,IF(dati_pdc!$C348=5,dati_bdv!$G$2:$G$65536,dati_bdv!$H$2:$H$65536))))),$A348,dati_bdv!K$2:K$65536)","v":0},{"$f":"SUMIF(IF(dati_pdc!$C348=1,dati_bdv!$C$2:$C$65536,IF(dati_pdc!$C348=2,dati_bdv!$D$2:$D$65536,IF(dati_pdc!$C348=3,dati_bdv!$E$2:$E$65536,IF(dati_pdc!$C348=4,dati_bdv!$F$2:$F$65536,IF(dati_pdc!$C348=5,dati_bdv!$G$2:$G$65536,dati_bdv!$H$2:$H$65536))))),$A348,dati_bdv!L$2:L$65536)","v":0},{"$f":"SUMIF(IF(dati_pdc!$C348=1,dati_bdv!$C$2:$C$65536,IF(dati_pdc!$C348=2,dati_bdv!$D$2:$D$65536,IF(dati_pdc!$C348=3,dati_bdv!$E$2:$E$65536,IF(dati_pdc!$C348=4,dati_bdv!$F$2:$F$65536,IF(dati_pdc!$C348=5,dati_bdv!$G$2:$G$65536,dati_bdv!$H$2:$H$65536))))),$A348,dati_bdv!M$2:M$65536)","v":0},{"$f":"SUMIF(IF(dati_pdc!$C348=1,dati_bdv!$C$2:$C$65536,IF(dati_pdc!$C348=2,dati_bdv!$D$2:$D$65536,IF(dati_pdc!$C348=3,dati_bdv!$E$2:$E$65536,IF(dati_pdc!$C348=4,dati_bdv!$F$2:$F$65536,IF(dati_pdc!$C348=5,dati_bdv!$G$2:$G$65536,dati_bdv!$H$2:$H$65536))))),$A348,dati_bdv!N$2:N$65536)","v":0}]
[{"$f":"dati_pdc!A349","v":0},{"$f":"SUMIF(IF(dati_pdc!$C349=1,dati_bdv!$C$2:$C$65536,IF(dati_pdc!$C349=2,dati_bdv!$D$2:$D$65536,IF(dati_pdc!$C349=3,dati_bdv!$E$2:$E$65536,IF(dati_pdc!$C349=4,dati_bdv!$F$2:$F$65536,IF(dati_pdc!$C349=5,dati_bdv!$G$2:$G$65536,dati_bdv!$H$2:$H$65536))))),$A349,dati_bdv!J$2:J$65536)","v":0},{"$f":"SUMIF(IF(dati_pdc!$C349=1,dati_bdv!$C$2:$C$65536,IF(dati_pdc!$C349=2,dati_bdv!$D$2:$D$65536,IF(dati_pdc!$C349=3,dati_bdv!$E$2:$E$65536,IF(dati_pdc!$C349=4,dati_bdv!$F$2:$F$65536,IF(dati_pdc!$C349=5,dati_bdv!$G$2:$G$65536,dati_bdv!$H$2:$H$65536))))),$A349,dati_bdv!K$2:K$65536)","v":0},{"$f":"SUMIF(IF(dati_pdc!$C349=1,dati_bdv!$C$2:$C$65536,IF(dati_pdc!$C349=2,dati_bdv!$D$2:$D$65536,IF(dati_pdc!$C349=3,dati_bdv!$E$2:$E$65536,IF(dati_pdc!$C349=4,dati_bdv!$F$2:$F$65536,IF(dati_pdc!$C349=5,dati_bdv!$G$2:$G$65536,dati_bdv!$H$2:$H$65536))))),$A349,dati_bdv!L$2:L$65536)","v":0},{"$f":"SUMIF(IF(dati_pdc!$C349=1,dati_bdv!$C$2:$C$65536,IF(dati_pdc!$C349=2,dati_bdv!$D$2:$D$65536,IF(dati_pdc!$C349=3,dati_bdv!$E$2:$E$65536,IF(dati_pdc!$C349=4,dati_bdv!$F$2:$F$65536,IF(dati_pdc!$C349=5,dati_bdv!$G$2:$G$65536,dati_bdv!$H$2:$H$65536))))),$A349,dati_bdv!M$2:M$65536)","v":0},{"$f":"SUMIF(IF(dati_pdc!$C349=1,dati_bdv!$C$2:$C$65536,IF(dati_pdc!$C349=2,dati_bdv!$D$2:$D$65536,IF(dati_pdc!$C349=3,dati_bdv!$E$2:$E$65536,IF(dati_pdc!$C349=4,dati_bdv!$F$2:$F$65536,IF(dati_pdc!$C349=5,dati_bdv!$G$2:$G$65536,dati_bdv!$H$2:$H$65536))))),$A349,dati_bdv!N$2:N$65536)","v":0}]
[{"$f":"dati_pdc!A350","v":0},{"$f":"SUMIF(IF(dati_pdc!$C350=1,dati_bdv!$C$2:$C$65536,IF(dati_pdc!$C350=2,dati_bdv!$D$2:$D$65536,IF(dati_pdc!$C350=3,dati_bdv!$E$2:$E$65536,IF(dati_pdc!$C350=4,dati_bdv!$F$2:$F$65536,IF(dati_pdc!$C350=5,dati_bdv!$G$2:$G$65536,dati_bdv!$H$2:$H$65536))))),$A350,dati_bdv!J$2:J$65536)","v":0},{"$f":"SUMIF(IF(dati_pdc!$C350=1,dati_bdv!$C$2:$C$65536,IF(dati_pdc!$C350=2,dati_bdv!$D$2:$D$65536,IF(dati_pdc!$C350=3,dati_bdv!$E$2:$E$65536,IF(dati_pdc!$C350=4,dati_bdv!$F$2:$F$65536,IF(dati_pdc!$C350=5,dati_bdv!$G$2:$G$65536,dati_bdv!$H$2:$H$65536))))),$A350,dati_bdv!K$2:K$65536)","v":0},{"$f":"SUMIF(IF(dati_pdc!$C350=1,dati_bdv!$C$2:$C$65536,IF(dati_pdc!$C350=2,dati_bdv!$D$2:$D$65536,IF(dati_pdc!$C350=3,dati_bdv!$E$2:$E$65536,IF(dati_pdc!$C350=4,dati_bdv!$F$2:$F$65536,IF(dati_pdc!$C350=5,dati_bdv!$G$2:$G$65536,dati_bdv!$H$2:$H$65536))))),$A350,dati_bdv!L$2:L$65536)","v":0},{"$f":"SUMIF(IF(dati_pdc!$C350=1,dati_bdv!$C$2:$C$65536,IF(dati_pdc!$C350=2,dati_bdv!$D$2:$D$65536,IF(dati_pdc!$C350=3,dati_bdv!$E$2:$E$65536,IF(dati_pdc!$C350=4,dati_bdv!$F$2:$F$65536,IF(dati_pdc!$C350=5,dati_bdv!$G$2:$G$65536,dati_bdv!$H$2:$H$65536))))),$A350,dati_bdv!M$2:M$65536)","v":0},{"$f":"SUMIF(IF(dati_pdc!$C350=1,dati_bdv!$C$2:$C$65536,IF(dati_pdc!$C350=2,dati_bdv!$D$2:$D$65536,IF(dati_pdc!$C350=3,dati_bdv!$E$2:$E$65536,IF(dati_pdc!$C350=4,dati_bdv!$F$2:$F$65536,IF(dati_pdc!$C350=5,dati_bdv!$G$2:$G$65536,dati_bdv!$H$2:$H$65536))))),$A350,dati_bdv!N$2:N$65536)","v":0}]
[{"$f":"dati_pdc!A351","v":0},{"$f":"SUMIF(IF(dati_pdc!$C351=1,dati_bdv!$C$2:$C$65536,IF(dati_pdc!$C351=2,dati_bdv!$D$2:$D$65536,IF(dati_pdc!$C351=3,dati_bdv!$E$2:$E$65536,IF(dati_pdc!$C351=4,dati_bdv!$F$2:$F$65536,IF(dati_pdc!$C351=5,dati_bdv!$G$2:$G$65536,dati_bdv!$H$2:$H$65536))))),$A351,dati_bdv!J$2:J$65536)","v":0},{"$f":"SUMIF(IF(dati_pdc!$C351=1,dati_bdv!$C$2:$C$65536,IF(dati_pdc!$C351=2,dati_bdv!$D$2:$D$65536,IF(dati_pdc!$C351=3,dati_bdv!$E$2:$E$65536,IF(dati_pdc!$C351=4,dati_bdv!$F$2:$F$65536,IF(dati_pdc!$C351=5,dati_bdv!$G$2:$G$65536,dati_bdv!$H$2:$H$65536))))),$A351,dati_bdv!K$2:K$65536)","v":0},{"$f":"SUMIF(IF(dati_pdc!$C351=1,dati_bdv!$C$2:$C$65536,IF(dati_pdc!$C351=2,dati_bdv!$D$2:$D$65536,IF(dati_pdc!$C351=3,dati_bdv!$E$2:$E$65536,IF(dati_pdc!$C351=4,dati_bdv!$F$2:$F$65536,IF(dati_pdc!$C351=5,dati_bdv!$G$2:$G$65536,dati_bdv!$H$2:$H$65536))))),$A351,dati_bdv!L$2:L$65536)","v":0},{"$f":"SUMIF(IF(dati_pdc!$C351=1,dati_bdv!$C$2:$C$65536,IF(dati_pdc!$C351=2,dati_bdv!$D$2:$D$65536,IF(dati_pdc!$C351=3,dati_bdv!$E$2:$E$65536,IF(dati_pdc!$C351=4,dati_bdv!$F$2:$F$65536,IF(dati_pdc!$C351=5,dati_bdv!$G$2:$G$65536,dati_bdv!$H$2:$H$65536))))),$A351,dati_bdv!M$2:M$65536)","v":0},{"$f":"SUMIF(IF(dati_pdc!$C351=1,dati_bdv!$C$2:$C$65536,IF(dati_pdc!$C351=2,dati_bdv!$D$2:$D$65536,IF(dati_pdc!$C351=3,dati_bdv!$E$2:$E$65536,IF(dati_pdc!$C351=4,dati_bdv!$F$2:$F$65536,IF(dati_pdc!$C351=5,dati_bdv!$G$2:$G$65536,dati_bdv!$H$2:$H$65536))))),$A351,dati_bdv!N$2:N$65536)","v":0}]
[{"$f":"dati_pdc!A352","v":0},{"$f":"SUMIF(IF(dati_pdc!$C352=1,dati_bdv!$C$2:$C$65536,IF(dati_pdc!$C352=2,dati_bdv!$D$2:$D$65536,IF(dati_pdc!$C352=3,dati_bdv!$E$2:$E$65536,IF(dati_pdc!$C352=4,dati_bdv!$F$2:$F$65536,IF(dati_pdc!$C352=5,dati_bdv!$G$2:$G$65536,dati_bdv!$H$2:$H$65536))))),$A352,dati_bdv!J$2:J$65536)","v":0},{"$f":"SUMIF(IF(dati_pdc!$C352=1,dati_bdv!$C$2:$C$65536,IF(dati_pdc!$C352=2,dati_bdv!$D$2:$D$65536,IF(dati_pdc!$C352=3,dati_bdv!$E$2:$E$65536,IF(dati_pdc!$C352=4,dati_bdv!$F$2:$F$65536,IF(dati_pdc!$C352=5,dati_bdv!$G$2:$G$65536,dati_bdv!$H$2:$H$65536))))),$A352,dati_bdv!K$2:K$65536)","v":0},{"$f":"SUMIF(IF(dati_pdc!$C352=1,dati_bdv!$C$2:$C$65536,IF(dati_pdc!$C352=2,dati_bdv!$D$2:$D$65536,IF(dati_pdc!$C352=3,dati_bdv!$E$2:$E$65536,IF(dati_pdc!$C352=4,dati_bdv!$F$2:$F$65536,IF(dati_pdc!$C352=5,dati_bdv!$G$2:$G$65536,dati_bdv!$H$2:$H$65536))))),$A352,dati_bdv!L$2:L$65536)","v":0},{"$f":"SUMIF(IF(dati_pdc!$C352=1,dati_bdv!$C$2:$C$65536,IF(dati_pdc!$C352=2,dati_bdv!$D$2:$D$65536,IF(dati_pdc!$C352=3,dati_bdv!$E$2:$E$65536,IF(dati_pdc!$C352=4,dati_bdv!$F$2:$F$65536,IF(dati_pdc!$C352=5,dati_bdv!$G$2:$G$65536,dati_bdv!$H$2:$H$65536))))),$A352,dati_bdv!M$2:M$65536)","v":0},{"$f":"SUMIF(IF(dati_pdc!$C352=1,dati_bdv!$C$2:$C$65536,IF(dati_pdc!$C352=2,dati_bdv!$D$2:$D$65536,IF(dati_pdc!$C352=3,dati_bdv!$E$2:$E$65536,IF(dati_pdc!$C352=4,dati_bdv!$F$2:$F$65536,IF(dati_pdc!$C352=5,dati_bdv!$G$2:$G$65536,dati_bdv!$H$2:$H$65536))))),$A352,dati_bdv!N$2:N$65536)","v":0}]
[{"$f":"dati_pdc!A353","v":0},{"$f":"SUMIF(IF(dati_pdc!$C353=1,dati_bdv!$C$2:$C$65536,IF(dati_pdc!$C353=2,dati_bdv!$D$2:$D$65536,IF(dati_pdc!$C353=3,dati_bdv!$E$2:$E$65536,IF(dati_pdc!$C353=4,dati_bdv!$F$2:$F$65536,IF(dati_pdc!$C353=5,dati_bdv!$G$2:$G$65536,dati_bdv!$H$2:$H$65536))))),$A353,dati_bdv!J$2:J$65536)","v":0},{"$f":"SUMIF(IF(dati_pdc!$C353=1,dati_bdv!$C$2:$C$65536,IF(dati_pdc!$C353=2,dati_bdv!$D$2:$D$65536,IF(dati_pdc!$C353=3,dati_bdv!$E$2:$E$65536,IF(dati_pdc!$C353=4,dati_bdv!$F$2:$F$65536,IF(dati_pdc!$C353=5,dati_bdv!$G$2:$G$65536,dati_bdv!$H$2:$H$65536))))),$A353,dati_bdv!K$2:K$65536)","v":0},{"$f":"SUMIF(IF(dati_pdc!$C353=1,dati_bdv!$C$2:$C$65536,IF(dati_pdc!$C353=2,dati_bdv!$D$2:$D$65536,IF(dati_pdc!$C353=3,dati_bdv!$E$2:$E$65536,IF(dati_pdc!$C353=4,dati_bdv!$F$2:$F$65536,IF(dati_pdc!$C353=5,dati_bdv!$G$2:$G$65536,dati_bdv!$H$2:$H$65536))))),$A353,dati_bdv!L$2:L$65536)","v":0},{"$f":"SUMIF(IF(dati_pdc!$C353=1,dati_bdv!$C$2:$C$65536,IF(dati_pdc!$C353=2,dati_bdv!$D$2:$D$65536,IF(dati_pdc!$C353=3,dati_bdv!$E$2:$E$65536,IF(dati_pdc!$C353=4,dati_bdv!$F$2:$F$65536,IF(dati_pdc!$C353=5,dati_bdv!$G$2:$G$65536,dati_bdv!$H$2:$H$65536))))),$A353,dati_bdv!M$2:M$65536)","v":0},{"$f":"SUMIF(IF(dati_pdc!$C353=1,dati_bdv!$C$2:$C$65536,IF(dati_pdc!$C353=2,dati_bdv!$D$2:$D$65536,IF(dati_pdc!$C353=3,dati_bdv!$E$2:$E$65536,IF(dati_pdc!$C353=4,dati_bdv!$F$2:$F$65536,IF(dati_pdc!$C353=5,dati_bdv!$G$2:$G$65536,dati_bdv!$H$2:$H$65536))))),$A353,dati_bdv!N$2:N$65536)","v":0}]
[{"$f":"dati_pdc!A354","v":0},{"$f":"SUMIF(IF(dati_pdc!$C354=1,dati_bdv!$C$2:$C$65536,IF(dati_pdc!$C354=2,dati_bdv!$D$2:$D$65536,IF(dati_pdc!$C354=3,dati_bdv!$E$2:$E$65536,IF(dati_pdc!$C354=4,dati_bdv!$F$2:$F$65536,IF(dati_pdc!$C354=5,dati_bdv!$G$2:$G$65536,dati_bdv!$H$2:$H$65536))))),$A354,dati_bdv!J$2:J$65536)","v":0},{"$f":"SUMIF(IF(dati_pdc!$C354=1,dati_bdv!$C$2:$C$65536,IF(dati_pdc!$C354=2,dati_bdv!$D$2:$D$65536,IF(dati_pdc!$C354=3,dati_bdv!$E$2:$E$65536,IF(dati_pdc!$C354=4,dati_bdv!$F$2:$F$65536,IF(dati_pdc!$C354=5,dati_bdv!$G$2:$G$65536,dati_bdv!$H$2:$H$65536))))),$A354,dati_bdv!K$2:K$65536)","v":0},{"$f":"SUMIF(IF(dati_pdc!$C354=1,dati_bdv!$C$2:$C$65536,IF(dati_pdc!$C354=2,dati_bdv!$D$2:$D$65536,IF(dati_pdc!$C354=3,dati_bdv!$E$2:$E$65536,IF(dati_pdc!$C354=4,dati_bdv!$F$2:$F$65536,IF(dati_pdc!$C354=5,dati_bdv!$G$2:$G$65536,dati_bdv!$H$2:$H$65536))))),$A354,dati_bdv!L$2:L$65536)","v":0},{"$f":"SUMIF(IF(dati_pdc!$C354=1,dati_bdv!$C$2:$C$65536,IF(dati_pdc!$C354=2,dati_bdv!$D$2:$D$65536,IF(dati_pdc!$C354=3,dati_bdv!$E$2:$E$65536,IF(dati_pdc!$C354=4,dati_bdv!$F$2:$F$65536,IF(dati_pdc!$C354=5,dati_bdv!$G$2:$G$65536,dati_bdv!$H$2:$H$65536))))),$A354,dati_bdv!M$2:M$65536)","v":0},{"$f":"SUMIF(IF(dati_pdc!$C354=1,dati_bdv!$C$2:$C$65536,IF(dati_pdc!$C354=2,dati_bdv!$D$2:$D$65536,IF(dati_pdc!$C354=3,dati_bdv!$E$2:$E$65536,IF(dati_pdc!$C354=4,dati_bdv!$F$2:$F$65536,IF(dati_pdc!$C354=5,dati_bdv!$G$2:$G$65536,dati_bdv!$H$2:$H$65536))))),$A354,dati_bdv!N$2:N$65536)","v":0}]
[{"$f":"dati_pdc!A355","v":0},{"$f":"SUMIF(IF(dati_pdc!$C355=1,dati_bdv!$C$2:$C$65536,IF(dati_pdc!$C355=2,dati_bdv!$D$2:$D$65536,IF(dati_pdc!$C355=3,dati_bdv!$E$2:$E$65536,IF(dati_pdc!$C355=4,dati_bdv!$F$2:$F$65536,IF(dati_pdc!$C355=5,dati_bdv!$G$2:$G$65536,dati_bdv!$H$2:$H$65536))))),$A355,dati_bdv!J$2:J$65536)","v":0},{"$f":"SUMIF(IF(dati_pdc!$C355=1,dati_bdv!$C$2:$C$65536,IF(dati_pdc!$C355=2,dati_bdv!$D$2:$D$65536,IF(dati_pdc!$C355=3,dati_bdv!$E$2:$E$65536,IF(dati_pdc!$C355=4,dati_bdv!$F$2:$F$65536,IF(dati_pdc!$C355=5,dati_bdv!$G$2:$G$65536,dati_bdv!$H$2:$H$65536))))),$A355,dati_bdv!K$2:K$65536)","v":0},{"$f":"SUMIF(IF(dati_pdc!$C355=1,dati_bdv!$C$2:$C$65536,IF(dati_pdc!$C355=2,dati_bdv!$D$2:$D$65536,IF(dati_pdc!$C355=3,dati_bdv!$E$2:$E$65536,IF(dati_pdc!$C355=4,dati_bdv!$F$2:$F$65536,IF(dati_pdc!$C355=5,dati_bdv!$G$2:$G$65536,dati_bdv!$H$2:$H$65536))))),$A355,dati_bdv!L$2:L$65536)","v":0},{"$f":"SUMIF(IF(dati_pdc!$C355=1,dati_bdv!$C$2:$C$65536,IF(dati_pdc!$C355=2,dati_bdv!$D$2:$D$65536,IF(dati_pdc!$C355=3,dati_bdv!$E$2:$E$65536,IF(dati_pdc!$C355=4,dati_bdv!$F$2:$F$65536,IF(dati_pdc!$C355=5,dati_bdv!$G$2:$G$65536,dati_bdv!$H$2:$H$65536))))),$A355,dati_bdv!M$2:M$65536)","v":0},{"$f":"SUMIF(IF(dati_pdc!$C355=1,dati_bdv!$C$2:$C$65536,IF(dati_pdc!$C355=2,dati_bdv!$D$2:$D$65536,IF(dati_pdc!$C355=3,dati_bdv!$E$2:$E$65536,IF(dati_pdc!$C355=4,dati_bdv!$F$2:$F$65536,IF(dati_pdc!$C355=5,dati_bdv!$G$2:$G$65536,dati_bdv!$H$2:$H$65536))))),$A355,dati_bdv!N$2:N$65536)","v":0}]
[{"$f":"dati_pdc!A356","v":0},{"$f":"SUMIF(IF(dati_pdc!$C356=1,dati_bdv!$C$2:$C$65536,IF(dati_pdc!$C356=2,dati_bdv!$D$2:$D$65536,IF(dati_pdc!$C356=3,dati_bdv!$E$2:$E$65536,IF(dati_pdc!$C356=4,dati_bdv!$F$2:$F$65536,IF(dati_pdc!$C356=5,dati_bdv!$G$2:$G$65536,dati_bdv!$H$2:$H$65536))))),$A356,dati_bdv!J$2:J$65536)","v":0},{"$f":"SUMIF(IF(dati_pdc!$C356=1,dati_bdv!$C$2:$C$65536,IF(dati_pdc!$C356=2,dati_bdv!$D$2:$D$65536,IF(dati_pdc!$C356=3,dati_bdv!$E$2:$E$65536,IF(dati_pdc!$C356=4,dati_bdv!$F$2:$F$65536,IF(dati_pdc!$C356=5,dati_bdv!$G$2:$G$65536,dati_bdv!$H$2:$H$65536))))),$A356,dati_bdv!K$2:K$65536)","v":0},{"$f":"SUMIF(IF(dati_pdc!$C356=1,dati_bdv!$C$2:$C$65536,IF(dati_pdc!$C356=2,dati_bdv!$D$2:$D$65536,IF(dati_pdc!$C356=3,dati_bdv!$E$2:$E$65536,IF(dati_pdc!$C356=4,dati_bdv!$F$2:$F$65536,IF(dati_pdc!$C356=5,dati_bdv!$G$2:$G$65536,dati_bdv!$H$2:$H$65536))))),$A356,dati_bdv!L$2:L$65536)","v":0},{"$f":"SUMIF(IF(dati_pdc!$C356=1,dati_bdv!$C$2:$C$65536,IF(dati_pdc!$C356=2,dati_bdv!$D$2:$D$65536,IF(dati_pdc!$C356=3,dati_bdv!$E$2:$E$65536,IF(dati_pdc!$C356=4,dati_bdv!$F$2:$F$65536,IF(dati_pdc!$C356=5,dati_bdv!$G$2:$G$65536,dati_bdv!$H$2:$H$65536))))),$A356,dati_bdv!M$2:M$65536)","v":0},{"$f":"SUMIF(IF(dati_pdc!$C356=1,dati_bdv!$C$2:$C$65536,IF(dati_pdc!$C356=2,dati_bdv!$D$2:$D$65536,IF(dati_pdc!$C356=3,dati_bdv!$E$2:$E$65536,IF(dati_pdc!$C356=4,dati_bdv!$F$2:$F$65536,IF(dati_pdc!$C356=5,dati_bdv!$G$2:$G$65536,dati_bdv!$H$2:$H$65536))))),$A356,dati_bdv!N$2:N$65536)","v":0}]
[{"$f":"dati_pdc!A357","v":0},{"$f":"SUMIF(IF(dati_pdc!$C357=1,dati_bdv!$C$2:$C$65536,IF(dati_pdc!$C357=2,dati_bdv!$D$2:$D$65536,IF(dati_pdc!$C357=3,dati_bdv!$E$2:$E$65536,IF(dati_pdc!$C357=4,dati_bdv!$F$2:$F$65536,IF(dati_pdc!$C357=5,dati_bdv!$G$2:$G$65536,dati_bdv!$H$2:$H$65536))))),$A357,dati_bdv!J$2:J$65536)","v":0},{"$f":"SUMIF(IF(dati_pdc!$C357=1,dati_bdv!$C$2:$C$65536,IF(dati_pdc!$C357=2,dati_bdv!$D$2:$D$65536,IF(dati_pdc!$C357=3,dati_bdv!$E$2:$E$65536,IF(dati_pdc!$C357=4,dati_bdv!$F$2:$F$65536,IF(dati_pdc!$C357=5,dati_bdv!$G$2:$G$65536,dati_bdv!$H$2:$H$65536))))),$A357,dati_bdv!K$2:K$65536)","v":0},{"$f":"SUMIF(IF(dati_pdc!$C357=1,dati_bdv!$C$2:$C$65536,IF(dati_pdc!$C357=2,dati_bdv!$D$2:$D$65536,IF(dati_pdc!$C357=3,dati_bdv!$E$2:$E$65536,IF(dati_pdc!$C357=4,dati_bdv!$F$2:$F$65536,IF(dati_pdc!$C357=5,dati_bdv!$G$2:$G$65536,dati_bdv!$H$2:$H$65536))))),$A357,dati_bdv!L$2:L$65536)","v":0},{"$f":"SUMIF(IF(dati_pdc!$C357=1,dati_bdv!$C$2:$C$65536,IF(dati_pdc!$C357=2,dati_bdv!$D$2:$D$65536,IF(dati_pdc!$C357=3,dati_bdv!$E$2:$E$65536,IF(dati_pdc!$C357=4,dati_bdv!$F$2:$F$65536,IF(dati_pdc!$C357=5,dati_bdv!$G$2:$G$65536,dati_bdv!$H$2:$H$65536))))),$A357,dati_bdv!M$2:M$65536)","v":0},{"$f":"SUMIF(IF(dati_pdc!$C357=1,dati_bdv!$C$2:$C$65536,IF(dati_pdc!$C357=2,dati_bdv!$D$2:$D$65536,IF(dati_pdc!$C357=3,dati_bdv!$E$2:$E$65536,IF(dati_pdc!$C357=4,dati_bdv!$F$2:$F$65536,IF(dati_pdc!$C357=5,dati_bdv!$G$2:$G$65536,dati_bdv!$H$2:$H$65536))))),$A357,dati_bdv!N$2:N$65536)","v":0}]
[{"$f":"dati_pdc!A358","v":0},{"$f":"SUMIF(IF(dati_pdc!$C358=1,dati_bdv!$C$2:$C$65536,IF(dati_pdc!$C358=2,dati_bdv!$D$2:$D$65536,IF(dati_pdc!$C358=3,dati_bdv!$E$2:$E$65536,IF(dati_pdc!$C358=4,dati_bdv!$F$2:$F$65536,IF(dati_pdc!$C358=5,dati_bdv!$G$2:$G$65536,dati_bdv!$H$2:$H$65536))))),$A358,dati_bdv!J$2:J$65536)","v":0},{"$f":"SUMIF(IF(dati_pdc!$C358=1,dati_bdv!$C$2:$C$65536,IF(dati_pdc!$C358=2,dati_bdv!$D$2:$D$65536,IF(dati_pdc!$C358=3,dati_bdv!$E$2:$E$65536,IF(dati_pdc!$C358=4,dati_bdv!$F$2:$F$65536,IF(dati_pdc!$C358=5,dati_bdv!$G$2:$G$65536,dati_bdv!$H$2:$H$65536))))),$A358,dati_bdv!K$2:K$65536)","v":0},{"$f":"SUMIF(IF(dati_pdc!$C358=1,dati_bdv!$C$2:$C$65536,IF(dati_pdc!$C358=2,dati_bdv!$D$2:$D$65536,IF(dati_pdc!$C358=3,dati_bdv!$E$2:$E$65536,IF(dati_pdc!$C358=4,dati_bdv!$F$2:$F$65536,IF(dati_pdc!$C358=5,dati_bdv!$G$2:$G$65536,dati_bdv!$H$2:$H$65536))))),$A358,dati_bdv!L$2:L$65536)","v":0},{"$f":"SUMIF(IF(dati_pdc!$C358=1,dati_bdv!$C$2:$C$65536,IF(dati_pdc!$C358=2,dati_bdv!$D$2:$D$65536,IF(dati_pdc!$C358=3,dati_bdv!$E$2:$E$65536,IF(dati_pdc!$C358=4,dati_bdv!$F$2:$F$65536,IF(dati_pdc!$C358=5,dati_bdv!$G$2:$G$65536,dati_bdv!$H$2:$H$65536))))),$A358,dati_bdv!M$2:M$65536)","v":0},{"$f":"SUMIF(IF(dati_pdc!$C358=1,dati_bdv!$C$2:$C$65536,IF(dati_pdc!$C358=2,dati_bdv!$D$2:$D$65536,IF(dati_pdc!$C358=3,dati_bdv!$E$2:$E$65536,IF(dati_pdc!$C358=4,dati_bdv!$F$2:$F$65536,IF(dati_pdc!$C358=5,dati_bdv!$G$2:$G$65536,dati_bdv!$H$2:$H$65536))))),$A358,dati_bdv!N$2:N$65536)","v":0}]
[{"$f":"dati_pdc!A359","v":0},{"$f":"SUMIF(IF(dati_pdc!$C359=1,dati_bdv!$C$2:$C$65536,IF(dati_pdc!$C359=2,dati_bdv!$D$2:$D$65536,IF(dati_pdc!$C359=3,dati_bdv!$E$2:$E$65536,IF(dati_pdc!$C359=4,dati_bdv!$F$2:$F$65536,IF(dati_pdc!$C359=5,dati_bdv!$G$2:$G$65536,dati_bdv!$H$2:$H$65536))))),$A359,dati_bdv!J$2:J$65536)","v":0},{"$f":"SUMIF(IF(dati_pdc!$C359=1,dati_bdv!$C$2:$C$65536,IF(dati_pdc!$C359=2,dati_bdv!$D$2:$D$65536,IF(dati_pdc!$C359=3,dati_bdv!$E$2:$E$65536,IF(dati_pdc!$C359=4,dati_bdv!$F$2:$F$65536,IF(dati_pdc!$C359=5,dati_bdv!$G$2:$G$65536,dati_bdv!$H$2:$H$65536))))),$A359,dati_bdv!K$2:K$65536)","v":0},{"$f":"SUMIF(IF(dati_pdc!$C359=1,dati_bdv!$C$2:$C$65536,IF(dati_pdc!$C359=2,dati_bdv!$D$2:$D$65536,IF(dati_pdc!$C359=3,dati_bdv!$E$2:$E$65536,IF(dati_pdc!$C359=4,dati_bdv!$F$2:$F$65536,IF(dati_pdc!$C359=5,dati_bdv!$G$2:$G$65536,dati_bdv!$H$2:$H$65536))))),$A359,dati_bdv!L$2:L$65536)","v":0},{"$f":"SUMIF(IF(dati_pdc!$C359=1,dati_bdv!$C$2:$C$65536,IF(dati_pdc!$C359=2,dati_bdv!$D$2:$D$65536,IF(dati_pdc!$C359=3,dati_bdv!$E$2:$E$65536,IF(dati_pdc!$C359=4,dati_bdv!$F$2:$F$65536,IF(dati_pdc!$C359=5,dati_bdv!$G$2:$G$65536,dati_bdv!$H$2:$H$65536))))),$A359,dati_bdv!M$2:M$65536)","v":0},{"$f":"SUMIF(IF(dati_pdc!$C359=1,dati_bdv!$C$2:$C$65536,IF(dati_pdc!$C359=2,dati_bdv!$D$2:$D$65536,IF(dati_pdc!$C359=3,dati_bdv!$E$2:$E$65536,IF(dati_pdc!$C359=4,dati_bdv!$F$2:$F$65536,IF(dati_pdc!$C359=5,dati_bdv!$G$2:$G$65536,dati_bdv!$H$2:$H$65536))))),$A359,dati_bdv!N$2:N$65536)","v":0}]
[{"$f":"dati_pdc!A360","v":0},{"$f":"SUMIF(IF(dati_pdc!$C360=1,dati_bdv!$C$2:$C$65536,IF(dati_pdc!$C360=2,dati_bdv!$D$2:$D$65536,IF(dati_pdc!$C360=3,dati_bdv!$E$2:$E$65536,IF(dati_pdc!$C360=4,dati_bdv!$F$2:$F$65536,IF(dati_pdc!$C360=5,dati_bdv!$G$2:$G$65536,dati_bdv!$H$2:$H$65536))))),$A360,dati_bdv!J$2:J$65536)","v":0},{"$f":"SUMIF(IF(dati_pdc!$C360=1,dati_bdv!$C$2:$C$65536,IF(dati_pdc!$C360=2,dati_bdv!$D$2:$D$65536,IF(dati_pdc!$C360=3,dati_bdv!$E$2:$E$65536,IF(dati_pdc!$C360=4,dati_bdv!$F$2:$F$65536,IF(dati_pdc!$C360=5,dati_bdv!$G$2:$G$65536,dati_bdv!$H$2:$H$65536))))),$A360,dati_bdv!K$2:K$65536)","v":0},{"$f":"SUMIF(IF(dati_pdc!$C360=1,dati_bdv!$C$2:$C$65536,IF(dati_pdc!$C360=2,dati_bdv!$D$2:$D$65536,IF(dati_pdc!$C360=3,dati_bdv!$E$2:$E$65536,IF(dati_pdc!$C360=4,dati_bdv!$F$2:$F$65536,IF(dati_pdc!$C360=5,dati_bdv!$G$2:$G$65536,dati_bdv!$H$2:$H$65536))))),$A360,dati_bdv!L$2:L$65536)","v":0},{"$f":"SUMIF(IF(dati_pdc!$C360=1,dati_bdv!$C$2:$C$65536,IF(dati_pdc!$C360=2,dati_bdv!$D$2:$D$65536,IF(dati_pdc!$C360=3,dati_bdv!$E$2:$E$65536,IF(dati_pdc!$C360=4,dati_bdv!$F$2:$F$65536,IF(dati_pdc!$C360=5,dati_bdv!$G$2:$G$65536,dati_bdv!$H$2:$H$65536))))),$A360,dati_bdv!M$2:M$65536)","v":0},{"$f":"SUMIF(IF(dati_pdc!$C360=1,dati_bdv!$C$2:$C$65536,IF(dati_pdc!$C360=2,dati_bdv!$D$2:$D$65536,IF(dati_pdc!$C360=3,dati_bdv!$E$2:$E$65536,IF(dati_pdc!$C360=4,dati_bdv!$F$2:$F$65536,IF(dati_pdc!$C360=5,dati_bdv!$G$2:$G$65536,dati_bdv!$H$2:$H$65536))))),$A360,dati_bdv!N$2:N$65536)","v":0}]
[{"$f":"dati_pdc!A361","v":0},{"$f":"SUMIF(IF(dati_pdc!$C361=1,dati_bdv!$C$2:$C$65536,IF(dati_pdc!$C361=2,dati_bdv!$D$2:$D$65536,IF(dati_pdc!$C361=3,dati_bdv!$E$2:$E$65536,IF(dati_pdc!$C361=4,dati_bdv!$F$2:$F$65536,IF(dati_pdc!$C361=5,dati_bdv!$G$2:$G$65536,dati_bdv!$H$2:$H$65536))))),$A361,dati_bdv!J$2:J$65536)","v":0},{"$f":"SUMIF(IF(dati_pdc!$C361=1,dati_bdv!$C$2:$C$65536,IF(dati_pdc!$C361=2,dati_bdv!$D$2:$D$65536,IF(dati_pdc!$C361=3,dati_bdv!$E$2:$E$65536,IF(dati_pdc!$C361=4,dati_bdv!$F$2:$F$65536,IF(dati_pdc!$C361=5,dati_bdv!$G$2:$G$65536,dati_bdv!$H$2:$H$65536))))),$A361,dati_bdv!K$2:K$65536)","v":0},{"$f":"SUMIF(IF(dati_pdc!$C361=1,dati_bdv!$C$2:$C$65536,IF(dati_pdc!$C361=2,dati_bdv!$D$2:$D$65536,IF(dati_pdc!$C361=3,dati_bdv!$E$2:$E$65536,IF(dati_pdc!$C361=4,dati_bdv!$F$2:$F$65536,IF(dati_pdc!$C361=5,dati_bdv!$G$2:$G$65536,dati_bdv!$H$2:$H$65536))))),$A361,dati_bdv!L$2:L$65536)","v":0},{"$f":"SUMIF(IF(dati_pdc!$C361=1,dati_bdv!$C$2:$C$65536,IF(dati_pdc!$C361=2,dati_bdv!$D$2:$D$65536,IF(dati_pdc!$C361=3,dati_bdv!$E$2:$E$65536,IF(dati_pdc!$C361=4,dati_bdv!$F$2:$F$65536,IF(dati_pdc!$C361=5,dati_bdv!$G$2:$G$65536,dati_bdv!$H$2:$H$65536))))),$A361,dati_bdv!M$2:M$65536)","v":0},{"$f":"SUMIF(IF(dati_pdc!$C361=1,dati_bdv!$C$2:$C$65536,IF(dati_pdc!$C361=2,dati_bdv!$D$2:$D$65536,IF(dati_pdc!$C361=3,dati_bdv!$E$2:$E$65536,IF(dati_pdc!$C361=4,dati_bdv!$F$2:$F$65536,IF(dati_pdc!$C361=5,dati_bdv!$G$2:$G$65536,dati_bdv!$H$2:$H$65536))))),$A361,dati_bdv!N$2:N$65536)","v":0}]
[{"$f":"dati_pdc!A362","v":0},{"$f":"SUMIF(IF(dati_pdc!$C362=1,dati_bdv!$C$2:$C$65536,IF(dati_pdc!$C362=2,dati_bdv!$D$2:$D$65536,IF(dati_pdc!$C362=3,dati_bdv!$E$2:$E$65536,IF(dati_pdc!$C362=4,dati_bdv!$F$2:$F$65536,IF(dati_pdc!$C362=5,dati_bdv!$G$2:$G$65536,dati_bdv!$H$2:$H$65536))))),$A362,dati_bdv!J$2:J$65536)","v":0},{"$f":"SUMIF(IF(dati_pdc!$C362=1,dati_bdv!$C$2:$C$65536,IF(dati_pdc!$C362=2,dati_bdv!$D$2:$D$65536,IF(dati_pdc!$C362=3,dati_bdv!$E$2:$E$65536,IF(dati_pdc!$C362=4,dati_bdv!$F$2:$F$65536,IF(dati_pdc!$C362=5,dati_bdv!$G$2:$G$65536,dati_bdv!$H$2:$H$65536))))),$A362,dati_bdv!K$2:K$65536)","v":0},{"$f":"SUMIF(IF(dati_pdc!$C362=1,dati_bdv!$C$2:$C$65536,IF(dati_pdc!$C362=2,dati_bdv!$D$2:$D$65536,IF(dati_pdc!$C362=3,dati_bdv!$E$2:$E$65536,IF(dati_pdc!$C362=4,dati_bdv!$F$2:$F$65536,IF(dati_pdc!$C362=5,dati_bdv!$G$2:$G$65536,dati_bdv!$H$2:$H$65536))))),$A362,dati_bdv!L$2:L$65536)","v":0},{"$f":"SUMIF(IF(dati_pdc!$C362=1,dati_bdv!$C$2:$C$65536,IF(dati_pdc!$C362=2,dati_bdv!$D$2:$D$65536,IF(dati_pdc!$C362=3,dati_bdv!$E$2:$E$65536,IF(dati_pdc!$C362=4,dati_bdv!$F$2:$F$65536,IF(dati_pdc!$C362=5,dati_bdv!$G$2:$G$65536,dati_bdv!$H$2:$H$65536))))),$A362,dati_bdv!M$2:M$65536)","v":0},{"$f":"SUMIF(IF(dati_pdc!$C362=1,dati_bdv!$C$2:$C$65536,IF(dati_pdc!$C362=2,dati_bdv!$D$2:$D$65536,IF(dati_pdc!$C362=3,dati_bdv!$E$2:$E$65536,IF(dati_pdc!$C362=4,dati_bdv!$F$2:$F$65536,IF(dati_pdc!$C362=5,dati_bdv!$G$2:$G$65536,dati_bdv!$H$2:$H$65536))))),$A362,dati_bdv!N$2:N$65536)","v":0}]
[{"$f":"dati_pdc!A363","v":0},{"$f":"SUMIF(IF(dati_pdc!$C363=1,dati_bdv!$C$2:$C$65536,IF(dati_pdc!$C363=2,dati_bdv!$D$2:$D$65536,IF(dati_pdc!$C363=3,dati_bdv!$E$2:$E$65536,IF(dati_pdc!$C363=4,dati_bdv!$F$2:$F$65536,IF(dati_pdc!$C363=5,dati_bdv!$G$2:$G$65536,dati_bdv!$H$2:$H$65536))))),$A363,dati_bdv!J$2:J$65536)","v":0},{"$f":"SUMIF(IF(dati_pdc!$C363=1,dati_bdv!$C$2:$C$65536,IF(dati_pdc!$C363=2,dati_bdv!$D$2:$D$65536,IF(dati_pdc!$C363=3,dati_bdv!$E$2:$E$65536,IF(dati_pdc!$C363=4,dati_bdv!$F$2:$F$65536,IF(dati_pdc!$C363=5,dati_bdv!$G$2:$G$65536,dati_bdv!$H$2:$H$65536))))),$A363,dati_bdv!K$2:K$65536)","v":0},{"$f":"SUMIF(IF(dati_pdc!$C363=1,dati_bdv!$C$2:$C$65536,IF(dati_pdc!$C363=2,dati_bdv!$D$2:$D$65536,IF(dati_pdc!$C363=3,dati_bdv!$E$2:$E$65536,IF(dati_pdc!$C363=4,dati_bdv!$F$2:$F$65536,IF(dati_pdc!$C363=5,dati_bdv!$G$2:$G$65536,dati_bdv!$H$2:$H$65536))))),$A363,dati_bdv!L$2:L$65536)","v":0},{"$f":"SUMIF(IF(dati_pdc!$C363=1,dati_bdv!$C$2:$C$65536,IF(dati_pdc!$C363=2,dati_bdv!$D$2:$D$65536,IF(dati_pdc!$C363=3,dati_bdv!$E$2:$E$65536,IF(dati_pdc!$C363=4,dati_bdv!$F$2:$F$65536,IF(dati_pdc!$C363=5,dati_bdv!$G$2:$G$65536,dati_bdv!$H$2:$H$65536))))),$A363,dati_bdv!M$2:M$65536)","v":0},{"$f":"SUMIF(IF(dati_pdc!$C363=1,dati_bdv!$C$2:$C$65536,IF(dati_pdc!$C363=2,dati_bdv!$D$2:$D$65536,IF(dati_pdc!$C363=3,dati_bdv!$E$2:$E$65536,IF(dati_pdc!$C363=4,dati_bdv!$F$2:$F$65536,IF(dati_pdc!$C363=5,dati_bdv!$G$2:$G$65536,dati_bdv!$H$2:$H$65536))))),$A363,dati_bdv!N$2:N$65536)","v":0}]
[{"$f":"dati_pdc!A364","v":0},{"$f":"SUMIF(IF(dati_pdc!$C364=1,dati_bdv!$C$2:$C$65536,IF(dati_pdc!$C364=2,dati_bdv!$D$2:$D$65536,IF(dati_pdc!$C364=3,dati_bdv!$E$2:$E$65536,IF(dati_pdc!$C364=4,dati_bdv!$F$2:$F$65536,IF(dati_pdc!$C364=5,dati_bdv!$G$2:$G$65536,dati_bdv!$H$2:$H$65536))))),$A364,dati_bdv!J$2:J$65536)","v":0},{"$f":"SUMIF(IF(dati_pdc!$C364=1,dati_bdv!$C$2:$C$65536,IF(dati_pdc!$C364=2,dati_bdv!$D$2:$D$65536,IF(dati_pdc!$C364=3,dati_bdv!$E$2:$E$65536,IF(dati_pdc!$C364=4,dati_bdv!$F$2:$F$65536,IF(dati_pdc!$C364=5,dati_bdv!$G$2:$G$65536,dati_bdv!$H$2:$H$65536))))),$A364,dati_bdv!K$2:K$65536)","v":0},{"$f":"SUMIF(IF(dati_pdc!$C364=1,dati_bdv!$C$2:$C$65536,IF(dati_pdc!$C364=2,dati_bdv!$D$2:$D$65536,IF(dati_pdc!$C364=3,dati_bdv!$E$2:$E$65536,IF(dati_pdc!$C364=4,dati_bdv!$F$2:$F$65536,IF(dati_pdc!$C364=5,dati_bdv!$G$2:$G$65536,dati_bdv!$H$2:$H$65536))))),$A364,dati_bdv!L$2:L$65536)","v":0},{"$f":"SUMIF(IF(dati_pdc!$C364=1,dati_bdv!$C$2:$C$65536,IF(dati_pdc!$C364=2,dati_bdv!$D$2:$D$65536,IF(dati_pdc!$C364=3,dati_bdv!$E$2:$E$65536,IF(dati_pdc!$C364=4,dati_bdv!$F$2:$F$65536,IF(dati_pdc!$C364=5,dati_bdv!$G$2:$G$65536,dati_bdv!$H$2:$H$65536))))),$A364,dati_bdv!M$2:M$65536)","v":0},{"$f":"SUMIF(IF(dati_pdc!$C364=1,dati_bdv!$C$2:$C$65536,IF(dati_pdc!$C364=2,dati_bdv!$D$2:$D$65536,IF(dati_pdc!$C364=3,dati_bdv!$E$2:$E$65536,IF(dati_pdc!$C364=4,dati_bdv!$F$2:$F$65536,IF(dati_pdc!$C364=5,dati_bdv!$G$2:$G$65536,dati_bdv!$H$2:$H$65536))))),$A364,dati_bdv!N$2:N$65536)","v":0}]
[{"$f":"dati_pdc!A365","v":0},{"$f":"SUMIF(IF(dati_pdc!$C365=1,dati_bdv!$C$2:$C$65536,IF(dati_pdc!$C365=2,dati_bdv!$D$2:$D$65536,IF(dati_pdc!$C365=3,dati_bdv!$E$2:$E$65536,IF(dati_pdc!$C365=4,dati_bdv!$F$2:$F$65536,IF(dati_pdc!$C365=5,dati_bdv!$G$2:$G$65536,dati_bdv!$H$2:$H$65536))))),$A365,dati_bdv!J$2:J$65536)","v":0},{"$f":"SUMIF(IF(dati_pdc!$C365=1,dati_bdv!$C$2:$C$65536,IF(dati_pdc!$C365=2,dati_bdv!$D$2:$D$65536,IF(dati_pdc!$C365=3,dati_bdv!$E$2:$E$65536,IF(dati_pdc!$C365=4,dati_bdv!$F$2:$F$65536,IF(dati_pdc!$C365=5,dati_bdv!$G$2:$G$65536,dati_bdv!$H$2:$H$65536))))),$A365,dati_bdv!K$2:K$65536)","v":0},{"$f":"SUMIF(IF(dati_pdc!$C365=1,dati_bdv!$C$2:$C$65536,IF(dati_pdc!$C365=2,dati_bdv!$D$2:$D$65536,IF(dati_pdc!$C365=3,dati_bdv!$E$2:$E$65536,IF(dati_pdc!$C365=4,dati_bdv!$F$2:$F$65536,IF(dati_pdc!$C365=5,dati_bdv!$G$2:$G$65536,dati_bdv!$H$2:$H$65536))))),$A365,dati_bdv!L$2:L$65536)","v":0},{"$f":"SUMIF(IF(dati_pdc!$C365=1,dati_bdv!$C$2:$C$65536,IF(dati_pdc!$C365=2,dati_bdv!$D$2:$D$65536,IF(dati_pdc!$C365=3,dati_bdv!$E$2:$E$65536,IF(dati_pdc!$C365=4,dati_bdv!$F$2:$F$65536,IF(dati_pdc!$C365=5,dati_bdv!$G$2:$G$65536,dati_bdv!$H$2:$H$65536))))),$A365,dati_bdv!M$2:M$65536)","v":0},{"$f":"SUMIF(IF(dati_pdc!$C365=1,dati_bdv!$C$2:$C$65536,IF(dati_pdc!$C365=2,dati_bdv!$D$2:$D$65536,IF(dati_pdc!$C365=3,dati_bdv!$E$2:$E$65536,IF(dati_pdc!$C365=4,dati_bdv!$F$2:$F$65536,IF(dati_pdc!$C365=5,dati_bdv!$G$2:$G$65536,dati_bdv!$H$2:$H$65536))))),$A365,dati_bdv!N$2:N$65536)","v":0}]
[{"$f":"dati_pdc!A366","v":0},{"$f":"SUMIF(IF(dati_pdc!$C366=1,dati_bdv!$C$2:$C$65536,IF(dati_pdc!$C366=2,dati_bdv!$D$2:$D$65536,IF(dati_pdc!$C366=3,dati_bdv!$E$2:$E$65536,IF(dati_pdc!$C366=4,dati_bdv!$F$2:$F$65536,IF(dati_pdc!$C366=5,dati_bdv!$G$2:$G$65536,dati_bdv!$H$2:$H$65536))))),$A366,dati_bdv!J$2:J$65536)","v":0},{"$f":"SUMIF(IF(dati_pdc!$C366=1,dati_bdv!$C$2:$C$65536,IF(dati_pdc!$C366=2,dati_bdv!$D$2:$D$65536,IF(dati_pdc!$C366=3,dati_bdv!$E$2:$E$65536,IF(dati_pdc!$C366=4,dati_bdv!$F$2:$F$65536,IF(dati_pdc!$C366=5,dati_bdv!$G$2:$G$65536,dati_bdv!$H$2:$H$65536))))),$A366,dati_bdv!K$2:K$65536)","v":0},{"$f":"SUMIF(IF(dati_pdc!$C366=1,dati_bdv!$C$2:$C$65536,IF(dati_pdc!$C366=2,dati_bdv!$D$2:$D$65536,IF(dati_pdc!$C366=3,dati_bdv!$E$2:$E$65536,IF(dati_pdc!$C366=4,dati_bdv!$F$2:$F$65536,IF(dati_pdc!$C366=5,dati_bdv!$G$2:$G$65536,dati_bdv!$H$2:$H$65536))))),$A366,dati_bdv!L$2:L$65536)","v":0},{"$f":"SUMIF(IF(dati_pdc!$C366=1,dati_bdv!$C$2:$C$65536,IF(dati_pdc!$C366=2,dati_bdv!$D$2:$D$65536,IF(dati_pdc!$C366=3,dati_bdv!$E$2:$E$65536,IF(dati_pdc!$C366=4,dati_bdv!$F$2:$F$65536,IF(dati_pdc!$C366=5,dati_bdv!$G$2:$G$65536,dati_bdv!$H$2:$H$65536))))),$A366,dati_bdv!M$2:M$65536)","v":0},{"$f":"SUMIF(IF(dati_pdc!$C366=1,dati_bdv!$C$2:$C$65536,IF(dati_pdc!$C366=2,dati_bdv!$D$2:$D$65536,IF(dati_pdc!$C366=3,dati_bdv!$E$2:$E$65536,IF(dati_pdc!$C366=4,dati_bdv!$F$2:$F$65536,IF(dati_pdc!$C366=5,dati_bdv!$G$2:$G$65536,dati_bdv!$H$2:$H$65536))))),$A366,dati_bdv!N$2:N$65536)","v":0}]
[{"$f":"dati_pdc!A367","v":0},{"$f":"SUMIF(IF(dati_pdc!$C367=1,dati_bdv!$C$2:$C$65536,IF(dati_pdc!$C367=2,dati_bdv!$D$2:$D$65536,IF(dati_pdc!$C367=3,dati_bdv!$E$2:$E$65536,IF(dati_pdc!$C367=4,dati_bdv!$F$2:$F$65536,IF(dati_pdc!$C367=5,dati_bdv!$G$2:$G$65536,dati_bdv!$H$2:$H$65536))))),$A367,dati_bdv!J$2:J$65536)","v":0},{"$f":"SUMIF(IF(dati_pdc!$C367=1,dati_bdv!$C$2:$C$65536,IF(dati_pdc!$C367=2,dati_bdv!$D$2:$D$65536,IF(dati_pdc!$C367=3,dati_bdv!$E$2:$E$65536,IF(dati_pdc!$C367=4,dati_bdv!$F$2:$F$65536,IF(dati_pdc!$C367=5,dati_bdv!$G$2:$G$65536,dati_bdv!$H$2:$H$65536))))),$A367,dati_bdv!K$2:K$65536)","v":0},{"$f":"SUMIF(IF(dati_pdc!$C367=1,dati_bdv!$C$2:$C$65536,IF(dati_pdc!$C367=2,dati_bdv!$D$2:$D$65536,IF(dati_pdc!$C367=3,dati_bdv!$E$2:$E$65536,IF(dati_pdc!$C367=4,dati_bdv!$F$2:$F$65536,IF(dati_pdc!$C367=5,dati_bdv!$G$2:$G$65536,dati_bdv!$H$2:$H$65536))))),$A367,dati_bdv!L$2:L$65536)","v":0},{"$f":"SUMIF(IF(dati_pdc!$C367=1,dati_bdv!$C$2:$C$65536,IF(dati_pdc!$C367=2,dati_bdv!$D$2:$D$65536,IF(dati_pdc!$C367=3,dati_bdv!$E$2:$E$65536,IF(dati_pdc!$C367=4,dati_bdv!$F$2:$F$65536,IF(dati_pdc!$C367=5,dati_bdv!$G$2:$G$65536,dati_bdv!$H$2:$H$65536))))),$A367,dati_bdv!M$2:M$65536)","v":0},{"$f":"SUMIF(IF(dati_pdc!$C367=1,dati_bdv!$C$2:$C$65536,IF(dati_pdc!$C367=2,dati_bdv!$D$2:$D$65536,IF(dati_pdc!$C367=3,dati_bdv!$E$2:$E$65536,IF(dati_pdc!$C367=4,dati_bdv!$F$2:$F$65536,IF(dati_pdc!$C367=5,dati_bdv!$G$2:$G$65536,dati_bdv!$H$2:$H$65536))))),$A367,dati_bdv!N$2:N$65536)","v":0}]
[{"$f":"dati_pdc!A368","v":0},{"$f":"SUMIF(IF(dati_pdc!$C368=1,dati_bdv!$C$2:$C$65536,IF(dati_pdc!$C368=2,dati_bdv!$D$2:$D$65536,IF(dati_pdc!$C368=3,dati_bdv!$E$2:$E$65536,IF(dati_pdc!$C368=4,dati_bdv!$F$2:$F$65536,IF(dati_pdc!$C368=5,dati_bdv!$G$2:$G$65536,dati_bdv!$H$2:$H$65536))))),$A368,dati_bdv!J$2:J$65536)","v":0},{"$f":"SUMIF(IF(dati_pdc!$C368=1,dati_bdv!$C$2:$C$65536,IF(dati_pdc!$C368=2,dati_bdv!$D$2:$D$65536,IF(dati_pdc!$C368=3,dati_bdv!$E$2:$E$65536,IF(dati_pdc!$C368=4,dati_bdv!$F$2:$F$65536,IF(dati_pdc!$C368=5,dati_bdv!$G$2:$G$65536,dati_bdv!$H$2:$H$65536))))),$A368,dati_bdv!K$2:K$65536)","v":0},{"$f":"SUMIF(IF(dati_pdc!$C368=1,dati_bdv!$C$2:$C$65536,IF(dati_pdc!$C368=2,dati_bdv!$D$2:$D$65536,IF(dati_pdc!$C368=3,dati_bdv!$E$2:$E$65536,IF(dati_pdc!$C368=4,dati_bdv!$F$2:$F$65536,IF(dati_pdc!$C368=5,dati_bdv!$G$2:$G$65536,dati_bdv!$H$2:$H$65536))))),$A368,dati_bdv!L$2:L$65536)","v":0},{"$f":"SUMIF(IF(dati_pdc!$C368=1,dati_bdv!$C$2:$C$65536,IF(dati_pdc!$C368=2,dati_bdv!$D$2:$D$65536,IF(dati_pdc!$C368=3,dati_bdv!$E$2:$E$65536,IF(dati_pdc!$C368=4,dati_bdv!$F$2:$F$65536,IF(dati_pdc!$C368=5,dati_bdv!$G$2:$G$65536,dati_bdv!$H$2:$H$65536))))),$A368,dati_bdv!M$2:M$65536)","v":0},{"$f":"SUMIF(IF(dati_pdc!$C368=1,dati_bdv!$C$2:$C$65536,IF(dati_pdc!$C368=2,dati_bdv!$D$2:$D$65536,IF(dati_pdc!$C368=3,dati_bdv!$E$2:$E$65536,IF(dati_pdc!$C368=4,dati_bdv!$F$2:$F$65536,IF(dati_pdc!$C368=5,dati_bdv!$G$2:$G$65536,dati_bdv!$H$2:$H$65536))))),$A368,dati_bdv!N$2:N$65536)","v":0}]
[{"$f":"dati_pdc!A369","v":0},{"$f":"SUMIF(IF(dati_pdc!$C369=1,dati_bdv!$C$2:$C$65536,IF(dati_pdc!$C369=2,dati_bdv!$D$2:$D$65536,IF(dati_pdc!$C369=3,dati_bdv!$E$2:$E$65536,IF(dati_pdc!$C369=4,dati_bdv!$F$2:$F$65536,IF(dati_pdc!$C369=5,dati_bdv!$G$2:$G$65536,dati_bdv!$H$2:$H$65536))))),$A369,dati_bdv!J$2:J$65536)","v":0},{"$f":"SUMIF(IF(dati_pdc!$C369=1,dati_bdv!$C$2:$C$65536,IF(dati_pdc!$C369=2,dati_bdv!$D$2:$D$65536,IF(dati_pdc!$C369=3,dati_bdv!$E$2:$E$65536,IF(dati_pdc!$C369=4,dati_bdv!$F$2:$F$65536,IF(dati_pdc!$C369=5,dati_bdv!$G$2:$G$65536,dati_bdv!$H$2:$H$65536))))),$A369,dati_bdv!K$2:K$65536)","v":0},{"$f":"SUMIF(IF(dati_pdc!$C369=1,dati_bdv!$C$2:$C$65536,IF(dati_pdc!$C369=2,dati_bdv!$D$2:$D$65536,IF(dati_pdc!$C369=3,dati_bdv!$E$2:$E$65536,IF(dati_pdc!$C369=4,dati_bdv!$F$2:$F$65536,IF(dati_pdc!$C369=5,dati_bdv!$G$2:$G$65536,dati_bdv!$H$2:$H$65536))))),$A369,dati_bdv!L$2:L$65536)","v":0},{"$f":"SUMIF(IF(dati_pdc!$C369=1,dati_bdv!$C$2:$C$65536,IF(dati_pdc!$C369=2,dati_bdv!$D$2:$D$65536,IF(dati_pdc!$C369=3,dati_bdv!$E$2:$E$65536,IF(dati_pdc!$C369=4,dati_bdv!$F$2:$F$65536,IF(dati_pdc!$C369=5,dati_bdv!$G$2:$G$65536,dati_bdv!$H$2:$H$65536))))),$A369,dati_bdv!M$2:M$65536)","v":0},{"$f":"SUMIF(IF(dati_pdc!$C369=1,dati_bdv!$C$2:$C$65536,IF(dati_pdc!$C369=2,dati_bdv!$D$2:$D$65536,IF(dati_pdc!$C369=3,dati_bdv!$E$2:$E$65536,IF(dati_pdc!$C369=4,dati_bdv!$F$2:$F$65536,IF(dati_pdc!$C369=5,dati_bdv!$G$2:$G$65536,dati_bdv!$H$2:$H$65536))))),$A369,dati_bdv!N$2:N$65536)","v":0}]
[{"$f":"dati_pdc!A370","v":0},{"$f":"SUMIF(IF(dati_pdc!$C370=1,dati_bdv!$C$2:$C$65536,IF(dati_pdc!$C370=2,dati_bdv!$D$2:$D$65536,IF(dati_pdc!$C370=3,dati_bdv!$E$2:$E$65536,IF(dati_pdc!$C370=4,dati_bdv!$F$2:$F$65536,IF(dati_pdc!$C370=5,dati_bdv!$G$2:$G$65536,dati_bdv!$H$2:$H$65536))))),$A370,dati_bdv!J$2:J$65536)","v":0},{"$f":"SUMIF(IF(dati_pdc!$C370=1,dati_bdv!$C$2:$C$65536,IF(dati_pdc!$C370=2,dati_bdv!$D$2:$D$65536,IF(dati_pdc!$C370=3,dati_bdv!$E$2:$E$65536,IF(dati_pdc!$C370=4,dati_bdv!$F$2:$F$65536,IF(dati_pdc!$C370=5,dati_bdv!$G$2:$G$65536,dati_bdv!$H$2:$H$65536))))),$A370,dati_bdv!K$2:K$65536)","v":0},{"$f":"SUMIF(IF(dati_pdc!$C370=1,dati_bdv!$C$2:$C$65536,IF(dati_pdc!$C370=2,dati_bdv!$D$2:$D$65536,IF(dati_pdc!$C370=3,dati_bdv!$E$2:$E$65536,IF(dati_pdc!$C370=4,dati_bdv!$F$2:$F$65536,IF(dati_pdc!$C370=5,dati_bdv!$G$2:$G$65536,dati_bdv!$H$2:$H$65536))))),$A370,dati_bdv!L$2:L$65536)","v":0},{"$f":"SUMIF(IF(dati_pdc!$C370=1,dati_bdv!$C$2:$C$65536,IF(dati_pdc!$C370=2,dati_bdv!$D$2:$D$65536,IF(dati_pdc!$C370=3,dati_bdv!$E$2:$E$65536,IF(dati_pdc!$C370=4,dati_bdv!$F$2:$F$65536,IF(dati_pdc!$C370=5,dati_bdv!$G$2:$G$65536,dati_bdv!$H$2:$H$65536))))),$A370,dati_bdv!M$2:M$65536)","v":0},{"$f":"SUMIF(IF(dati_pdc!$C370=1,dati_bdv!$C$2:$C$65536,IF(dati_pdc!$C370=2,dati_bdv!$D$2:$D$65536,IF(dati_pdc!$C370=3,dati_bdv!$E$2:$E$65536,IF(dati_pdc!$C370=4,dati_bdv!$F$2:$F$65536,IF(dati_pdc!$C370=5,dati_bdv!$G$2:$G$65536,dati_bdv!$H$2:$H$65536))))),$A370,dati_bdv!N$2:N$65536)","v":0}]
[{"$f":"dati_pdc!A371","v":0},{"$f":"SUMIF(IF(dati_pdc!$C371=1,dati_bdv!$C$2:$C$65536,IF(dati_pdc!$C371=2,dati_bdv!$D$2:$D$65536,IF(dati_pdc!$C371=3,dati_bdv!$E$2:$E$65536,IF(dati_pdc!$C371=4,dati_bdv!$F$2:$F$65536,IF(dati_pdc!$C371=5,dati_bdv!$G$2:$G$65536,dati_bdv!$H$2:$H$65536))))),$A371,dati_bdv!J$2:J$65536)","v":0},{"$f":"SUMIF(IF(dati_pdc!$C371=1,dati_bdv!$C$2:$C$65536,IF(dati_pdc!$C371=2,dati_bdv!$D$2:$D$65536,IF(dati_pdc!$C371=3,dati_bdv!$E$2:$E$65536,IF(dati_pdc!$C371=4,dati_bdv!$F$2:$F$65536,IF(dati_pdc!$C371=5,dati_bdv!$G$2:$G$65536,dati_bdv!$H$2:$H$65536))))),$A371,dati_bdv!K$2:K$65536)","v":0},{"$f":"SUMIF(IF(dati_pdc!$C371=1,dati_bdv!$C$2:$C$65536,IF(dati_pdc!$C371=2,dati_bdv!$D$2:$D$65536,IF(dati_pdc!$C371=3,dati_bdv!$E$2:$E$65536,IF(dati_pdc!$C371=4,dati_bdv!$F$2:$F$65536,IF(dati_pdc!$C371=5,dati_bdv!$G$2:$G$65536,dati_bdv!$H$2:$H$65536))))),$A371,dati_bdv!L$2:L$65536)","v":0},{"$f":"SUMIF(IF(dati_pdc!$C371=1,dati_bdv!$C$2:$C$65536,IF(dati_pdc!$C371=2,dati_bdv!$D$2:$D$65536,IF(dati_pdc!$C371=3,dati_bdv!$E$2:$E$65536,IF(dati_pdc!$C371=4,dati_bdv!$F$2:$F$65536,IF(dati_pdc!$C371=5,dati_bdv!$G$2:$G$65536,dati_bdv!$H$2:$H$65536))))),$A371,dati_bdv!M$2:M$65536)","v":0},{"$f":"SUMIF(IF(dati_pdc!$C371=1,dati_bdv!$C$2:$C$65536,IF(dati_pdc!$C371=2,dati_bdv!$D$2:$D$65536,IF(dati_pdc!$C371=3,dati_bdv!$E$2:$E$65536,IF(dati_pdc!$C371=4,dati_bdv!$F$2:$F$65536,IF(dati_pdc!$C371=5,dati_bdv!$G$2:$G$65536,dati_bdv!$H$2:$H$65536))))),$A371,dati_bdv!N$2:N$65536)","v":0}]
[{"$f":"dati_pdc!A372","v":0},{"$f":"SUMIF(IF(dati_pdc!$C372=1,dati_bdv!$C$2:$C$65536,IF(dati_pdc!$C372=2,dati_bdv!$D$2:$D$65536,IF(dati_pdc!$C372=3,dati_bdv!$E$2:$E$65536,IF(dati_pdc!$C372=4,dati_bdv!$F$2:$F$65536,IF(dati_pdc!$C372=5,dati_bdv!$G$2:$G$65536,dati_bdv!$H$2:$H$65536))))),$A372,dati_bdv!J$2:J$65536)","v":0},{"$f":"SUMIF(IF(dati_pdc!$C372=1,dati_bdv!$C$2:$C$65536,IF(dati_pdc!$C372=2,dati_bdv!$D$2:$D$65536,IF(dati_pdc!$C372=3,dati_bdv!$E$2:$E$65536,IF(dati_pdc!$C372=4,dati_bdv!$F$2:$F$65536,IF(dati_pdc!$C372=5,dati_bdv!$G$2:$G$65536,dati_bdv!$H$2:$H$65536))))),$A372,dati_bdv!K$2:K$65536)","v":0},{"$f":"SUMIF(IF(dati_pdc!$C372=1,dati_bdv!$C$2:$C$65536,IF(dati_pdc!$C372=2,dati_bdv!$D$2:$D$65536,IF(dati_pdc!$C372=3,dati_bdv!$E$2:$E$65536,IF(dati_pdc!$C372=4,dati_bdv!$F$2:$F$65536,IF(dati_pdc!$C372=5,dati_bdv!$G$2:$G$65536,dati_bdv!$H$2:$H$65536))))),$A372,dati_bdv!L$2:L$65536)","v":0},{"$f":"SUMIF(IF(dati_pdc!$C372=1,dati_bdv!$C$2:$C$65536,IF(dati_pdc!$C372=2,dati_bdv!$D$2:$D$65536,IF(dati_pdc!$C372=3,dati_bdv!$E$2:$E$65536,IF(dati_pdc!$C372=4,dati_bdv!$F$2:$F$65536,IF(dati_pdc!$C372=5,dati_bdv!$G$2:$G$65536,dati_bdv!$H$2:$H$65536))))),$A372,dati_bdv!M$2:M$65536)","v":0},{"$f":"SUMIF(IF(dati_pdc!$C372=1,dati_bdv!$C$2:$C$65536,IF(dati_pdc!$C372=2,dati_bdv!$D$2:$D$65536,IF(dati_pdc!$C372=3,dati_bdv!$E$2:$E$65536,IF(dati_pdc!$C372=4,dati_bdv!$F$2:$F$65536,IF(dati_pdc!$C372=5,dati_bdv!$G$2:$G$65536,dati_bdv!$H$2:$H$65536))))),$A372,dati_bdv!N$2:N$65536)","v":0}]
[{"$f":"dati_pdc!A373","v":0},{"$f":"SUMIF(IF(dati_pdc!$C373=1,dati_bdv!$C$2:$C$65536,IF(dati_pdc!$C373=2,dati_bdv!$D$2:$D$65536,IF(dati_pdc!$C373=3,dati_bdv!$E$2:$E$65536,IF(dati_pdc!$C373=4,dati_bdv!$F$2:$F$65536,IF(dati_pdc!$C373=5,dati_bdv!$G$2:$G$65536,dati_bdv!$H$2:$H$65536))))),$A373,dati_bdv!J$2:J$65536)","v":0},{"$f":"SUMIF(IF(dati_pdc!$C373=1,dati_bdv!$C$2:$C$65536,IF(dati_pdc!$C373=2,dati_bdv!$D$2:$D$65536,IF(dati_pdc!$C373=3,dati_bdv!$E$2:$E$65536,IF(dati_pdc!$C373=4,dati_bdv!$F$2:$F$65536,IF(dati_pdc!$C373=5,dati_bdv!$G$2:$G$65536,dati_bdv!$H$2:$H$65536))))),$A373,dati_bdv!K$2:K$65536)","v":0},{"$f":"SUMIF(IF(dati_pdc!$C373=1,dati_bdv!$C$2:$C$65536,IF(dati_pdc!$C373=2,dati_bdv!$D$2:$D$65536,IF(dati_pdc!$C373=3,dati_bdv!$E$2:$E$65536,IF(dati_pdc!$C373=4,dati_bdv!$F$2:$F$65536,IF(dati_pdc!$C373=5,dati_bdv!$G$2:$G$65536,dati_bdv!$H$2:$H$65536))))),$A373,dati_bdv!L$2:L$65536)","v":0},{"$f":"SUMIF(IF(dati_pdc!$C373=1,dati_bdv!$C$2:$C$65536,IF(dati_pdc!$C373=2,dati_bdv!$D$2:$D$65536,IF(dati_pdc!$C373=3,dati_bdv!$E$2:$E$65536,IF(dati_pdc!$C373=4,dati_bdv!$F$2:$F$65536,IF(dati_pdc!$C373=5,dati_bdv!$G$2:$G$65536,dati_bdv!$H$2:$H$65536))))),$A373,dati_bdv!M$2:M$65536)","v":0},{"$f":"SUMIF(IF(dati_pdc!$C373=1,dati_bdv!$C$2:$C$65536,IF(dati_pdc!$C373=2,dati_bdv!$D$2:$D$65536,IF(dati_pdc!$C373=3,dati_bdv!$E$2:$E$65536,IF(dati_pdc!$C373=4,dati_bdv!$F$2:$F$65536,IF(dati_pdc!$C373=5,dati_bdv!$G$2:$G$65536,dati_bdv!$H$2:$H$65536))))),$A373,dati_bdv!N$2:N$65536)","v":0}]
[{"$f":"dati_pdc!A374","v":0},{"$f":"SUMIF(IF(dati_pdc!$C374=1,dati_bdv!$C$2:$C$65536,IF(dati_pdc!$C374=2,dati_bdv!$D$2:$D$65536,IF(dati_pdc!$C374=3,dati_bdv!$E$2:$E$65536,IF(dati_pdc!$C374=4,dati_bdv!$F$2:$F$65536,IF(dati_pdc!$C374=5,dati_bdv!$G$2:$G$65536,dati_bdv!$H$2:$H$65536))))),$A374,dati_bdv!J$2:J$65536)","v":0},{"$f":"SUMIF(IF(dati_pdc!$C374=1,dati_bdv!$C$2:$C$65536,IF(dati_pdc!$C374=2,dati_bdv!$D$2:$D$65536,IF(dati_pdc!$C374=3,dati_bdv!$E$2:$E$65536,IF(dati_pdc!$C374=4,dati_bdv!$F$2:$F$65536,IF(dati_pdc!$C374=5,dati_bdv!$G$2:$G$65536,dati_bdv!$H$2:$H$65536))))),$A374,dati_bdv!K$2:K$65536)","v":0},{"$f":"SUMIF(IF(dati_pdc!$C374=1,dati_bdv!$C$2:$C$65536,IF(dati_pdc!$C374=2,dati_bdv!$D$2:$D$65536,IF(dati_pdc!$C374=3,dati_bdv!$E$2:$E$65536,IF(dati_pdc!$C374=4,dati_bdv!$F$2:$F$65536,IF(dati_pdc!$C374=5,dati_bdv!$G$2:$G$65536,dati_bdv!$H$2:$H$65536))))),$A374,dati_bdv!L$2:L$65536)","v":0},{"$f":"SUMIF(IF(dati_pdc!$C374=1,dati_bdv!$C$2:$C$65536,IF(dati_pdc!$C374=2,dati_bdv!$D$2:$D$65536,IF(dati_pdc!$C374=3,dati_bdv!$E$2:$E$65536,IF(dati_pdc!$C374=4,dati_bdv!$F$2:$F$65536,IF(dati_pdc!$C374=5,dati_bdv!$G$2:$G$65536,dati_bdv!$H$2:$H$65536))))),$A374,dati_bdv!M$2:M$65536)","v":0},{"$f":"SUMIF(IF(dati_pdc!$C374=1,dati_bdv!$C$2:$C$65536,IF(dati_pdc!$C374=2,dati_bdv!$D$2:$D$65536,IF(dati_pdc!$C374=3,dati_bdv!$E$2:$E$65536,IF(dati_pdc!$C374=4,dati_bdv!$F$2:$F$65536,IF(dati_pdc!$C374=5,dati_bdv!$G$2:$G$65536,dati_bdv!$H$2:$H$65536))))),$A374,dati_bdv!N$2:N$65536)","v":0}]
[{"$f":"dati_pdc!A375","v":0},{"$f":"SUMIF(IF(dati_pdc!$C375=1,dati_bdv!$C$2:$C$65536,IF(dati_pdc!$C375=2,dati_bdv!$D$2:$D$65536,IF(dati_pdc!$C375=3,dati_bdv!$E$2:$E$65536,IF(dati_pdc!$C375=4,dati_bdv!$F$2:$F$65536,IF(dati_pdc!$C375=5,dati_bdv!$G$2:$G$65536,dati_bdv!$H$2:$H$65536))))),$A375,dati_bdv!J$2:J$65536)","v":0},{"$f":"SUMIF(IF(dati_pdc!$C375=1,dati_bdv!$C$2:$C$65536,IF(dati_pdc!$C375=2,dati_bdv!$D$2:$D$65536,IF(dati_pdc!$C375=3,dati_bdv!$E$2:$E$65536,IF(dati_pdc!$C375=4,dati_bdv!$F$2:$F$65536,IF(dati_pdc!$C375=5,dati_bdv!$G$2:$G$65536,dati_bdv!$H$2:$H$65536))))),$A375,dati_bdv!K$2:K$65536)","v":0},{"$f":"SUMIF(IF(dati_pdc!$C375=1,dati_bdv!$C$2:$C$65536,IF(dati_pdc!$C375=2,dati_bdv!$D$2:$D$65536,IF(dati_pdc!$C375=3,dati_bdv!$E$2:$E$65536,IF(dati_pdc!$C375=4,dati_bdv!$F$2:$F$65536,IF(dati_pdc!$C375=5,dati_bdv!$G$2:$G$65536,dati_bdv!$H$2:$H$65536))))),$A375,dati_bdv!L$2:L$65536)","v":0},{"$f":"SUMIF(IF(dati_pdc!$C375=1,dati_bdv!$C$2:$C$65536,IF(dati_pdc!$C375=2,dati_bdv!$D$2:$D$65536,IF(dati_pdc!$C375=3,dati_bdv!$E$2:$E$65536,IF(dati_pdc!$C375=4,dati_bdv!$F$2:$F$65536,IF(dati_pdc!$C375=5,dati_bdv!$G$2:$G$65536,dati_bdv!$H$2:$H$65536))))),$A375,dati_bdv!M$2:M$65536)","v":0},{"$f":"SUMIF(IF(dati_pdc!$C375=1,dati_bdv!$C$2:$C$65536,IF(dati_pdc!$C375=2,dati_bdv!$D$2:$D$65536,IF(dati_pdc!$C375=3,dati_bdv!$E$2:$E$65536,IF(dati_pdc!$C375=4,dati_bdv!$F$2:$F$65536,IF(dati_pdc!$C375=5,dati_bdv!$G$2:$G$65536,dati_bdv!$H$2:$H$65536))))),$A375,dati_bdv!N$2:N$65536)","v":0}]
[{"$f":"dati_pdc!A376","v":0},{"$f":"SUMIF(IF(dati_pdc!$C376=1,dati_bdv!$C$2:$C$65536,IF(dati_pdc!$C376=2,dati_bdv!$D$2:$D$65536,IF(dati_pdc!$C376=3,dati_bdv!$E$2:$E$65536,IF(dati_pdc!$C376=4,dati_bdv!$F$2:$F$65536,IF(dati_pdc!$C376=5,dati_bdv!$G$2:$G$65536,dati_bdv!$H$2:$H$65536))))),$A376,dati_bdv!J$2:J$65536)","v":0},{"$f":"SUMIF(IF(dati_pdc!$C376=1,dati_bdv!$C$2:$C$65536,IF(dati_pdc!$C376=2,dati_bdv!$D$2:$D$65536,IF(dati_pdc!$C376=3,dati_bdv!$E$2:$E$65536,IF(dati_pdc!$C376=4,dati_bdv!$F$2:$F$65536,IF(dati_pdc!$C376=5,dati_bdv!$G$2:$G$65536,dati_bdv!$H$2:$H$65536))))),$A376,dati_bdv!K$2:K$65536)","v":0},{"$f":"SUMIF(IF(dati_pdc!$C376=1,dati_bdv!$C$2:$C$65536,IF(dati_pdc!$C376=2,dati_bdv!$D$2:$D$65536,IF(dati_pdc!$C376=3,dati_bdv!$E$2:$E$65536,IF(dati_pdc!$C376=4,dati_bdv!$F$2:$F$65536,IF(dati_pdc!$C376=5,dati_bdv!$G$2:$G$65536,dati_bdv!$H$2:$H$65536))))),$A376,dati_bdv!L$2:L$65536)","v":0},{"$f":"SUMIF(IF(dati_pdc!$C376=1,dati_bdv!$C$2:$C$65536,IF(dati_pdc!$C376=2,dati_bdv!$D$2:$D$65536,IF(dati_pdc!$C376=3,dati_bdv!$E$2:$E$65536,IF(dati_pdc!$C376=4,dati_bdv!$F$2:$F$65536,IF(dati_pdc!$C376=5,dati_bdv!$G$2:$G$65536,dati_bdv!$H$2:$H$65536))))),$A376,dati_bdv!M$2:M$65536)","v":0},{"$f":"SUMIF(IF(dati_pdc!$C376=1,dati_bdv!$C$2:$C$65536,IF(dati_pdc!$C376=2,dati_bdv!$D$2:$D$65536,IF(dati_pdc!$C376=3,dati_bdv!$E$2:$E$65536,IF(dati_pdc!$C376=4,dati_bdv!$F$2:$F$65536,IF(dati_pdc!$C376=5,dati_bdv!$G$2:$G$65536,dati_bdv!$H$2:$H$65536))))),$A376,dati_bdv!N$2:N$65536)","v":0}]
[{"$f":"dati_pdc!A377","v":0},{"$f":"SUMIF(IF(dati_pdc!$C377=1,dati_bdv!$C$2:$C$65536,IF(dati_pdc!$C377=2,dati_bdv!$D$2:$D$65536,IF(dati_pdc!$C377=3,dati_bdv!$E$2:$E$65536,IF(dati_pdc!$C377=4,dati_bdv!$F$2:$F$65536,IF(dati_pdc!$C377=5,dati_bdv!$G$2:$G$65536,dati_bdv!$H$2:$H$65536))))),$A377,dati_bdv!J$2:J$65536)","v":0},{"$f":"SUMIF(IF(dati_pdc!$C377=1,dati_bdv!$C$2:$C$65536,IF(dati_pdc!$C377=2,dati_bdv!$D$2:$D$65536,IF(dati_pdc!$C377=3,dati_bdv!$E$2:$E$65536,IF(dati_pdc!$C377=4,dati_bdv!$F$2:$F$65536,IF(dati_pdc!$C377=5,dati_bdv!$G$2:$G$65536,dati_bdv!$H$2:$H$65536))))),$A377,dati_bdv!K$2:K$65536)","v":0},{"$f":"SUMIF(IF(dati_pdc!$C377=1,dati_bdv!$C$2:$C$65536,IF(dati_pdc!$C377=2,dati_bdv!$D$2:$D$65536,IF(dati_pdc!$C377=3,dati_bdv!$E$2:$E$65536,IF(dati_pdc!$C377=4,dati_bdv!$F$2:$F$65536,IF(dati_pdc!$C377=5,dati_bdv!$G$2:$G$65536,dati_bdv!$H$2:$H$65536))))),$A377,dati_bdv!L$2:L$65536)","v":0},{"$f":"SUMIF(IF(dati_pdc!$C377=1,dati_bdv!$C$2:$C$65536,IF(dati_pdc!$C377=2,dati_bdv!$D$2:$D$65536,IF(dati_pdc!$C377=3,dati_bdv!$E$2:$E$65536,IF(dati_pdc!$C377=4,dati_bdv!$F$2:$F$65536,IF(dati_pdc!$C377=5,dati_bdv!$G$2:$G$65536,dati_bdv!$H$2:$H$65536))))),$A377,dati_bdv!M$2:M$65536)","v":0},{"$f":"SUMIF(IF(dati_pdc!$C377=1,dati_bdv!$C$2:$C$65536,IF(dati_pdc!$C377=2,dati_bdv!$D$2:$D$65536,IF(dati_pdc!$C377=3,dati_bdv!$E$2:$E$65536,IF(dati_pdc!$C377=4,dati_bdv!$F$2:$F$65536,IF(dati_pdc!$C377=5,dati_bdv!$G$2:$G$65536,dati_bdv!$H$2:$H$65536))))),$A377,dati_bdv!N$2:N$65536)","v":0}]
[{"$f":"dati_pdc!A378","v":0},{"$f":"SUMIF(IF(dati_pdc!$C378=1,dati_bdv!$C$2:$C$65536,IF(dati_pdc!$C378=2,dati_bdv!$D$2:$D$65536,IF(dati_pdc!$C378=3,dati_bdv!$E$2:$E$65536,IF(dati_pdc!$C378=4,dati_bdv!$F$2:$F$65536,IF(dati_pdc!$C378=5,dati_bdv!$G$2:$G$65536,dati_bdv!$H$2:$H$65536))))),$A378,dati_bdv!J$2:J$65536)","v":0},{"$f":"SUMIF(IF(dati_pdc!$C378=1,dati_bdv!$C$2:$C$65536,IF(dati_pdc!$C378=2,dati_bdv!$D$2:$D$65536,IF(dati_pdc!$C378=3,dati_bdv!$E$2:$E$65536,IF(dati_pdc!$C378=4,dati_bdv!$F$2:$F$65536,IF(dati_pdc!$C378=5,dati_bdv!$G$2:$G$65536,dati_bdv!$H$2:$H$65536))))),$A378,dati_bdv!K$2:K$65536)","v":0},{"$f":"SUMIF(IF(dati_pdc!$C378=1,dati_bdv!$C$2:$C$65536,IF(dati_pdc!$C378=2,dati_bdv!$D$2:$D$65536,IF(dati_pdc!$C378=3,dati_bdv!$E$2:$E$65536,IF(dati_pdc!$C378=4,dati_bdv!$F$2:$F$65536,IF(dati_pdc!$C378=5,dati_bdv!$G$2:$G$65536,dati_bdv!$H$2:$H$65536))))),$A378,dati_bdv!L$2:L$65536)","v":0},{"$f":"SUMIF(IF(dati_pdc!$C378=1,dati_bdv!$C$2:$C$65536,IF(dati_pdc!$C378=2,dati_bdv!$D$2:$D$65536,IF(dati_pdc!$C378=3,dati_bdv!$E$2:$E$65536,IF(dati_pdc!$C378=4,dati_bdv!$F$2:$F$65536,IF(dati_pdc!$C378=5,dati_bdv!$G$2:$G$65536,dati_bdv!$H$2:$H$65536))))),$A378,dati_bdv!M$2:M$65536)","v":0},{"$f":"SUMIF(IF(dati_pdc!$C378=1,dati_bdv!$C$2:$C$65536,IF(dati_pdc!$C378=2,dati_bdv!$D$2:$D$65536,IF(dati_pdc!$C378=3,dati_bdv!$E$2:$E$65536,IF(dati_pdc!$C378=4,dati_bdv!$F$2:$F$65536,IF(dati_pdc!$C378=5,dati_bdv!$G$2:$G$65536,dati_bdv!$H$2:$H$65536))))),$A378,dati_bdv!N$2:N$65536)","v":0}]
[{"$f":"dati_pdc!A379","v":0},{"$f":"SUMIF(IF(dati_pdc!$C379=1,dati_bdv!$C$2:$C$65536,IF(dati_pdc!$C379=2,dati_bdv!$D$2:$D$65536,IF(dati_pdc!$C379=3,dati_bdv!$E$2:$E$65536,IF(dati_pdc!$C379=4,dati_bdv!$F$2:$F$65536,IF(dati_pdc!$C379=5,dati_bdv!$G$2:$G$65536,dati_bdv!$H$2:$H$65536))))),$A379,dati_bdv!J$2:J$65536)","v":0},{"$f":"SUMIF(IF(dati_pdc!$C379=1,dati_bdv!$C$2:$C$65536,IF(dati_pdc!$C379=2,dati_bdv!$D$2:$D$65536,IF(dati_pdc!$C379=3,dati_bdv!$E$2:$E$65536,IF(dati_pdc!$C379=4,dati_bdv!$F$2:$F$65536,IF(dati_pdc!$C379=5,dati_bdv!$G$2:$G$65536,dati_bdv!$H$2:$H$65536))))),$A379,dati_bdv!K$2:K$65536)","v":0},{"$f":"SUMIF(IF(dati_pdc!$C379=1,dati_bdv!$C$2:$C$65536,IF(dati_pdc!$C379=2,dati_bdv!$D$2:$D$65536,IF(dati_pdc!$C379=3,dati_bdv!$E$2:$E$65536,IF(dati_pdc!$C379=4,dati_bdv!$F$2:$F$65536,IF(dati_pdc!$C379=5,dati_bdv!$G$2:$G$65536,dati_bdv!$H$2:$H$65536))))),$A379,dati_bdv!L$2:L$65536)","v":0},{"$f":"SUMIF(IF(dati_pdc!$C379=1,dati_bdv!$C$2:$C$65536,IF(dati_pdc!$C379=2,dati_bdv!$D$2:$D$65536,IF(dati_pdc!$C379=3,dati_bdv!$E$2:$E$65536,IF(dati_pdc!$C379=4,dati_bdv!$F$2:$F$65536,IF(dati_pdc!$C379=5,dati_bdv!$G$2:$G$65536,dati_bdv!$H$2:$H$65536))))),$A379,dati_bdv!M$2:M$65536)","v":0},{"$f":"SUMIF(IF(dati_pdc!$C379=1,dati_bdv!$C$2:$C$65536,IF(dati_pdc!$C379=2,dati_bdv!$D$2:$D$65536,IF(dati_pdc!$C379=3,dati_bdv!$E$2:$E$65536,IF(dati_pdc!$C379=4,dati_bdv!$F$2:$F$65536,IF(dati_pdc!$C379=5,dati_bdv!$G$2:$G$65536,dati_bdv!$H$2:$H$65536))))),$A379,dati_bdv!N$2:N$65536)","v":0}]
[{"$f":"dati_pdc!A380","v":0},{"$f":"SUMIF(IF(dati_pdc!$C380=1,dati_bdv!$C$2:$C$65536,IF(dati_pdc!$C380=2,dati_bdv!$D$2:$D$65536,IF(dati_pdc!$C380=3,dati_bdv!$E$2:$E$65536,IF(dati_pdc!$C380=4,dati_bdv!$F$2:$F$65536,IF(dati_pdc!$C380=5,dati_bdv!$G$2:$G$65536,dati_bdv!$H$2:$H$65536))))),$A380,dati_bdv!J$2:J$65536)","v":0},{"$f":"SUMIF(IF(dati_pdc!$C380=1,dati_bdv!$C$2:$C$65536,IF(dati_pdc!$C380=2,dati_bdv!$D$2:$D$65536,IF(dati_pdc!$C380=3,dati_bdv!$E$2:$E$65536,IF(dati_pdc!$C380=4,dati_bdv!$F$2:$F$65536,IF(dati_pdc!$C380=5,dati_bdv!$G$2:$G$65536,dati_bdv!$H$2:$H$65536))))),$A380,dati_bdv!K$2:K$65536)","v":0},{"$f":"SUMIF(IF(dati_pdc!$C380=1,dati_bdv!$C$2:$C$65536,IF(dati_pdc!$C380=2,dati_bdv!$D$2:$D$65536,IF(dati_pdc!$C380=3,dati_bdv!$E$2:$E$65536,IF(dati_pdc!$C380=4,dati_bdv!$F$2:$F$65536,IF(dati_pdc!$C380=5,dati_bdv!$G$2:$G$65536,dati_bdv!$H$2:$H$65536))))),$A380,dati_bdv!L$2:L$65536)","v":0},{"$f":"SUMIF(IF(dati_pdc!$C380=1,dati_bdv!$C$2:$C$65536,IF(dati_pdc!$C380=2,dati_bdv!$D$2:$D$65536,IF(dati_pdc!$C380=3,dati_bdv!$E$2:$E$65536,IF(dati_pdc!$C380=4,dati_bdv!$F$2:$F$65536,IF(dati_pdc!$C380=5,dati_bdv!$G$2:$G$65536,dati_bdv!$H$2:$H$65536))))),$A380,dati_bdv!M$2:M$65536)","v":0},{"$f":"SUMIF(IF(dati_pdc!$C380=1,dati_bdv!$C$2:$C$65536,IF(dati_pdc!$C380=2,dati_bdv!$D$2:$D$65536,IF(dati_pdc!$C380=3,dati_bdv!$E$2:$E$65536,IF(dati_pdc!$C380=4,dati_bdv!$F$2:$F$65536,IF(dati_pdc!$C380=5,dati_bdv!$G$2:$G$65536,dati_bdv!$H$2:$H$65536))))),$A380,dati_bdv!N$2:N$65536)","v":0}]
[{"$f":"dati_pdc!A381","v":0},{"$f":"SUMIF(IF(dati_pdc!$C381=1,dati_bdv!$C$2:$C$65536,IF(dati_pdc!$C381=2,dati_bdv!$D$2:$D$65536,IF(dati_pdc!$C381=3,dati_bdv!$E$2:$E$65536,IF(dati_pdc!$C381=4,dati_bdv!$F$2:$F$65536,IF(dati_pdc!$C381=5,dati_bdv!$G$2:$G$65536,dati_bdv!$H$2:$H$65536))))),$A381,dati_bdv!J$2:J$65536)","v":0},{"$f":"SUMIF(IF(dati_pdc!$C381=1,dati_bdv!$C$2:$C$65536,IF(dati_pdc!$C381=2,dati_bdv!$D$2:$D$65536,IF(dati_pdc!$C381=3,dati_bdv!$E$2:$E$65536,IF(dati_pdc!$C381=4,dati_bdv!$F$2:$F$65536,IF(dati_pdc!$C381=5,dati_bdv!$G$2:$G$65536,dati_bdv!$H$2:$H$65536))))),$A381,dati_bdv!K$2:K$65536)","v":0},{"$f":"SUMIF(IF(dati_pdc!$C381=1,dati_bdv!$C$2:$C$65536,IF(dati_pdc!$C381=2,dati_bdv!$D$2:$D$65536,IF(dati_pdc!$C381=3,dati_bdv!$E$2:$E$65536,IF(dati_pdc!$C381=4,dati_bdv!$F$2:$F$65536,IF(dati_pdc!$C381=5,dati_bdv!$G$2:$G$65536,dati_bdv!$H$2:$H$65536))))),$A381,dati_bdv!L$2:L$65536)","v":0},{"$f":"SUMIF(IF(dati_pdc!$C381=1,dati_bdv!$C$2:$C$65536,IF(dati_pdc!$C381=2,dati_bdv!$D$2:$D$65536,IF(dati_pdc!$C381=3,dati_bdv!$E$2:$E$65536,IF(dati_pdc!$C381=4,dati_bdv!$F$2:$F$65536,IF(dati_pdc!$C381=5,dati_bdv!$G$2:$G$65536,dati_bdv!$H$2:$H$65536))))),$A381,dati_bdv!M$2:M$65536)","v":0},{"$f":"SUMIF(IF(dati_pdc!$C381=1,dati_bdv!$C$2:$C$65536,IF(dati_pdc!$C381=2,dati_bdv!$D$2:$D$65536,IF(dati_pdc!$C381=3,dati_bdv!$E$2:$E$65536,IF(dati_pdc!$C381=4,dati_bdv!$F$2:$F$65536,IF(dati_pdc!$C381=5,dati_bdv!$G$2:$G$65536,dati_bdv!$H$2:$H$65536))))),$A381,dati_bdv!N$2:N$65536)","v":0}]
[{"$f":"dati_pdc!A382","v":0},{"$f":"SUMIF(IF(dati_pdc!$C382=1,dati_bdv!$C$2:$C$65536,IF(dati_pdc!$C382=2,dati_bdv!$D$2:$D$65536,IF(dati_pdc!$C382=3,dati_bdv!$E$2:$E$65536,IF(dati_pdc!$C382=4,dati_bdv!$F$2:$F$65536,IF(dati_pdc!$C382=5,dati_bdv!$G$2:$G$65536,dati_bdv!$H$2:$H$65536))))),$A382,dati_bdv!J$2:J$65536)","v":0},{"$f":"SUMIF(IF(dati_pdc!$C382=1,dati_bdv!$C$2:$C$65536,IF(dati_pdc!$C382=2,dati_bdv!$D$2:$D$65536,IF(dati_pdc!$C382=3,dati_bdv!$E$2:$E$65536,IF(dati_pdc!$C382=4,dati_bdv!$F$2:$F$65536,IF(dati_pdc!$C382=5,dati_bdv!$G$2:$G$65536,dati_bdv!$H$2:$H$65536))))),$A382,dati_bdv!K$2:K$65536)","v":0},{"$f":"SUMIF(IF(dati_pdc!$C382=1,dati_bdv!$C$2:$C$65536,IF(dati_pdc!$C382=2,dati_bdv!$D$2:$D$65536,IF(dati_pdc!$C382=3,dati_bdv!$E$2:$E$65536,IF(dati_pdc!$C382=4,dati_bdv!$F$2:$F$65536,IF(dati_pdc!$C382=5,dati_bdv!$G$2:$G$65536,dati_bdv!$H$2:$H$65536))))),$A382,dati_bdv!L$2:L$65536)","v":0},{"$f":"SUMIF(IF(dati_pdc!$C382=1,dati_bdv!$C$2:$C$65536,IF(dati_pdc!$C382=2,dati_bdv!$D$2:$D$65536,IF(dati_pdc!$C382=3,dati_bdv!$E$2:$E$65536,IF(dati_pdc!$C382=4,dati_bdv!$F$2:$F$65536,IF(dati_pdc!$C382=5,dati_bdv!$G$2:$G$65536,dati_bdv!$H$2:$H$65536))))),$A382,dati_bdv!M$2:M$65536)","v":0},{"$f":"SUMIF(IF(dati_pdc!$C382=1,dati_bdv!$C$2:$C$65536,IF(dati_pdc!$C382=2,dati_bdv!$D$2:$D$65536,IF(dati_pdc!$C382=3,dati_bdv!$E$2:$E$65536,IF(dati_pdc!$C382=4,dati_bdv!$F$2:$F$65536,IF(dati_pdc!$C382=5,dati_bdv!$G$2:$G$65536,dati_bdv!$H$2:$H$65536))))),$A382,dati_bdv!N$2:N$65536)","v":0}]
[{"$f":"dati_pdc!A383","v":0},{"$f":"SUMIF(IF(dati_pdc!$C383=1,dati_bdv!$C$2:$C$65536,IF(dati_pdc!$C383=2,dati_bdv!$D$2:$D$65536,IF(dati_pdc!$C383=3,dati_bdv!$E$2:$E$65536,IF(dati_pdc!$C383=4,dati_bdv!$F$2:$F$65536,IF(dati_pdc!$C383=5,dati_bdv!$G$2:$G$65536,dati_bdv!$H$2:$H$65536))))),$A383,dati_bdv!J$2:J$65536)","v":0},{"$f":"SUMIF(IF(dati_pdc!$C383=1,dati_bdv!$C$2:$C$65536,IF(dati_pdc!$C383=2,dati_bdv!$D$2:$D$65536,IF(dati_pdc!$C383=3,dati_bdv!$E$2:$E$65536,IF(dati_pdc!$C383=4,dati_bdv!$F$2:$F$65536,IF(dati_pdc!$C383=5,dati_bdv!$G$2:$G$65536,dati_bdv!$H$2:$H$65536))))),$A383,dati_bdv!K$2:K$65536)","v":0},{"$f":"SUMIF(IF(dati_pdc!$C383=1,dati_bdv!$C$2:$C$65536,IF(dati_pdc!$C383=2,dati_bdv!$D$2:$D$65536,IF(dati_pdc!$C383=3,dati_bdv!$E$2:$E$65536,IF(dati_pdc!$C383=4,dati_bdv!$F$2:$F$65536,IF(dati_pdc!$C383=5,dati_bdv!$G$2:$G$65536,dati_bdv!$H$2:$H$65536))))),$A383,dati_bdv!L$2:L$65536)","v":0},{"$f":"SUMIF(IF(dati_pdc!$C383=1,dati_bdv!$C$2:$C$65536,IF(dati_pdc!$C383=2,dati_bdv!$D$2:$D$65536,IF(dati_pdc!$C383=3,dati_bdv!$E$2:$E$65536,IF(dati_pdc!$C383=4,dati_bdv!$F$2:$F$65536,IF(dati_pdc!$C383=5,dati_bdv!$G$2:$G$65536,dati_bdv!$H$2:$H$65536))))),$A383,dati_bdv!M$2:M$65536)","v":0},{"$f":"SUMIF(IF(dati_pdc!$C383=1,dati_bdv!$C$2:$C$65536,IF(dati_pdc!$C383=2,dati_bdv!$D$2:$D$65536,IF(dati_pdc!$C383=3,dati_bdv!$E$2:$E$65536,IF(dati_pdc!$C383=4,dati_bdv!$F$2:$F$65536,IF(dati_pdc!$C383=5,dati_bdv!$G$2:$G$65536,dati_bdv!$H$2:$H$65536))))),$A383,dati_bdv!N$2:N$65536)","v":0}]
[{"$f":"dati_pdc!A384","v":0},{"$f":"SUMIF(IF(dati_pdc!$C384=1,dati_bdv!$C$2:$C$65536,IF(dati_pdc!$C384=2,dati_bdv!$D$2:$D$65536,IF(dati_pdc!$C384=3,dati_bdv!$E$2:$E$65536,IF(dati_pdc!$C384=4,dati_bdv!$F$2:$F$65536,IF(dati_pdc!$C384=5,dati_bdv!$G$2:$G$65536,dati_bdv!$H$2:$H$65536))))),$A384,dati_bdv!J$2:J$65536)","v":0},{"$f":"SUMIF(IF(dati_pdc!$C384=1,dati_bdv!$C$2:$C$65536,IF(dati_pdc!$C384=2,dati_bdv!$D$2:$D$65536,IF(dati_pdc!$C384=3,dati_bdv!$E$2:$E$65536,IF(dati_pdc!$C384=4,dati_bdv!$F$2:$F$65536,IF(dati_pdc!$C384=5,dati_bdv!$G$2:$G$65536,dati_bdv!$H$2:$H$65536))))),$A384,dati_bdv!K$2:K$65536)","v":0},{"$f":"SUMIF(IF(dati_pdc!$C384=1,dati_bdv!$C$2:$C$65536,IF(dati_pdc!$C384=2,dati_bdv!$D$2:$D$65536,IF(dati_pdc!$C384=3,dati_bdv!$E$2:$E$65536,IF(dati_pdc!$C384=4,dati_bdv!$F$2:$F$65536,IF(dati_pdc!$C384=5,dati_bdv!$G$2:$G$65536,dati_bdv!$H$2:$H$65536))))),$A384,dati_bdv!L$2:L$65536)","v":0},{"$f":"SUMIF(IF(dati_pdc!$C384=1,dati_bdv!$C$2:$C$65536,IF(dati_pdc!$C384=2,dati_bdv!$D$2:$D$65536,IF(dati_pdc!$C384=3,dati_bdv!$E$2:$E$65536,IF(dati_pdc!$C384=4,dati_bdv!$F$2:$F$65536,IF(dati_pdc!$C384=5,dati_bdv!$G$2:$G$65536,dati_bdv!$H$2:$H$65536))))),$A384,dati_bdv!M$2:M$65536)","v":0},{"$f":"SUMIF(IF(dati_pdc!$C384=1,dati_bdv!$C$2:$C$65536,IF(dati_pdc!$C384=2,dati_bdv!$D$2:$D$65536,IF(dati_pdc!$C384=3,dati_bdv!$E$2:$E$65536,IF(dati_pdc!$C384=4,dati_bdv!$F$2:$F$65536,IF(dati_pdc!$C384=5,dati_bdv!$G$2:$G$65536,dati_bdv!$H$2:$H$65536))))),$A384,dati_bdv!N$2:N$65536)","v":0}]
[{"$f":"dati_pdc!A385","v":0},{"$f":"SUMIF(IF(dati_pdc!$C385=1,dati_bdv!$C$2:$C$65536,IF(dati_pdc!$C385=2,dati_bdv!$D$2:$D$65536,IF(dati_pdc!$C385=3,dati_bdv!$E$2:$E$65536,IF(dati_pdc!$C385=4,dati_bdv!$F$2:$F$65536,IF(dati_pdc!$C385=5,dati_bdv!$G$2:$G$65536,dati_bdv!$H$2:$H$65536))))),$A385,dati_bdv!J$2:J$65536)","v":0},{"$f":"SUMIF(IF(dati_pdc!$C385=1,dati_bdv!$C$2:$C$65536,IF(dati_pdc!$C385=2,dati_bdv!$D$2:$D$65536,IF(dati_pdc!$C385=3,dati_bdv!$E$2:$E$65536,IF(dati_pdc!$C385=4,dati_bdv!$F$2:$F$65536,IF(dati_pdc!$C385=5,dati_bdv!$G$2:$G$65536,dati_bdv!$H$2:$H$65536))))),$A385,dati_bdv!K$2:K$65536)","v":0},{"$f":"SUMIF(IF(dati_pdc!$C385=1,dati_bdv!$C$2:$C$65536,IF(dati_pdc!$C385=2,dati_bdv!$D$2:$D$65536,IF(dati_pdc!$C385=3,dati_bdv!$E$2:$E$65536,IF(dati_pdc!$C385=4,dati_bdv!$F$2:$F$65536,IF(dati_pdc!$C385=5,dati_bdv!$G$2:$G$65536,dati_bdv!$H$2:$H$65536))))),$A385,dati_bdv!L$2:L$65536)","v":0},{"$f":"SUMIF(IF(dati_pdc!$C385=1,dati_bdv!$C$2:$C$65536,IF(dati_pdc!$C385=2,dati_bdv!$D$2:$D$65536,IF(dati_pdc!$C385=3,dati_bdv!$E$2:$E$65536,IF(dati_pdc!$C385=4,dati_bdv!$F$2:$F$65536,IF(dati_pdc!$C385=5,dati_bdv!$G$2:$G$65536,dati_bdv!$H$2:$H$65536))))),$A385,dati_bdv!M$2:M$65536)","v":0},{"$f":"SUMIF(IF(dati_pdc!$C385=1,dati_bdv!$C$2:$C$65536,IF(dati_pdc!$C385=2,dati_bdv!$D$2:$D$65536,IF(dati_pdc!$C385=3,dati_bdv!$E$2:$E$65536,IF(dati_pdc!$C385=4,dati_bdv!$F$2:$F$65536,IF(dati_pdc!$C385=5,dati_bdv!$G$2:$G$65536,dati_bdv!$H$2:$H$65536))))),$A385,dati_bdv!N$2:N$65536)","v":0}]
[{"$f":"dati_pdc!A386","v":0},{"$f":"SUMIF(IF(dati_pdc!$C386=1,dati_bdv!$C$2:$C$65536,IF(dati_pdc!$C386=2,dati_bdv!$D$2:$D$65536,IF(dati_pdc!$C386=3,dati_bdv!$E$2:$E$65536,IF(dati_pdc!$C386=4,dati_bdv!$F$2:$F$65536,IF(dati_pdc!$C386=5,dati_bdv!$G$2:$G$65536,dati_bdv!$H$2:$H$65536))))),$A386,dati_bdv!J$2:J$65536)","v":0},{"$f":"SUMIF(IF(dati_pdc!$C386=1,dati_bdv!$C$2:$C$65536,IF(dati_pdc!$C386=2,dati_bdv!$D$2:$D$65536,IF(dati_pdc!$C386=3,dati_bdv!$E$2:$E$65536,IF(dati_pdc!$C386=4,dati_bdv!$F$2:$F$65536,IF(dati_pdc!$C386=5,dati_bdv!$G$2:$G$65536,dati_bdv!$H$2:$H$65536))))),$A386,dati_bdv!K$2:K$65536)","v":0},{"$f":"SUMIF(IF(dati_pdc!$C386=1,dati_bdv!$C$2:$C$65536,IF(dati_pdc!$C386=2,dati_bdv!$D$2:$D$65536,IF(dati_pdc!$C386=3,dati_bdv!$E$2:$E$65536,IF(dati_pdc!$C386=4,dati_bdv!$F$2:$F$65536,IF(dati_pdc!$C386=5,dati_bdv!$G$2:$G$65536,dati_bdv!$H$2:$H$65536))))),$A386,dati_bdv!L$2:L$65536)","v":0},{"$f":"SUMIF(IF(dati_pdc!$C386=1,dati_bdv!$C$2:$C$65536,IF(dati_pdc!$C386=2,dati_bdv!$D$2:$D$65536,IF(dati_pdc!$C386=3,dati_bdv!$E$2:$E$65536,IF(dati_pdc!$C386=4,dati_bdv!$F$2:$F$65536,IF(dati_pdc!$C386=5,dati_bdv!$G$2:$G$65536,dati_bdv!$H$2:$H$65536))))),$A386,dati_bdv!M$2:M$65536)","v":0},{"$f":"SUMIF(IF(dati_pdc!$C386=1,dati_bdv!$C$2:$C$65536,IF(dati_pdc!$C386=2,dati_bdv!$D$2:$D$65536,IF(dati_pdc!$C386=3,dati_bdv!$E$2:$E$65536,IF(dati_pdc!$C386=4,dati_bdv!$F$2:$F$65536,IF(dati_pdc!$C386=5,dati_bdv!$G$2:$G$65536,dati_bdv!$H$2:$H$65536))))),$A386,dati_bdv!N$2:N$65536)","v":0}]
[{"$f":"dati_pdc!A387","v":0},{"$f":"SUMIF(IF(dati_pdc!$C387=1,dati_bdv!$C$2:$C$65536,IF(dati_pdc!$C387=2,dati_bdv!$D$2:$D$65536,IF(dati_pdc!$C387=3,dati_bdv!$E$2:$E$65536,IF(dati_pdc!$C387=4,dati_bdv!$F$2:$F$65536,IF(dati_pdc!$C387=5,dati_bdv!$G$2:$G$65536,dati_bdv!$H$2:$H$65536))))),$A387,dati_bdv!J$2:J$65536)","v":0},{"$f":"SUMIF(IF(dati_pdc!$C387=1,dati_bdv!$C$2:$C$65536,IF(dati_pdc!$C387=2,dati_bdv!$D$2:$D$65536,IF(dati_pdc!$C387=3,dati_bdv!$E$2:$E$65536,IF(dati_pdc!$C387=4,dati_bdv!$F$2:$F$65536,IF(dati_pdc!$C387=5,dati_bdv!$G$2:$G$65536,dati_bdv!$H$2:$H$65536))))),$A387,dati_bdv!K$2:K$65536)","v":0},{"$f":"SUMIF(IF(dati_pdc!$C387=1,dati_bdv!$C$2:$C$65536,IF(dati_pdc!$C387=2,dati_bdv!$D$2:$D$65536,IF(dati_pdc!$C387=3,dati_bdv!$E$2:$E$65536,IF(dati_pdc!$C387=4,dati_bdv!$F$2:$F$65536,IF(dati_pdc!$C387=5,dati_bdv!$G$2:$G$65536,dati_bdv!$H$2:$H$65536))))),$A387,dati_bdv!L$2:L$65536)","v":0},{"$f":"SUMIF(IF(dati_pdc!$C387=1,dati_bdv!$C$2:$C$65536,IF(dati_pdc!$C387=2,dati_bdv!$D$2:$D$65536,IF(dati_pdc!$C387=3,dati_bdv!$E$2:$E$65536,IF(dati_pdc!$C387=4,dati_bdv!$F$2:$F$65536,IF(dati_pdc!$C387=5,dati_bdv!$G$2:$G$65536,dati_bdv!$H$2:$H$65536))))),$A387,dati_bdv!M$2:M$65536)","v":0},{"$f":"SUMIF(IF(dati_pdc!$C387=1,dati_bdv!$C$2:$C$65536,IF(dati_pdc!$C387=2,dati_bdv!$D$2:$D$65536,IF(dati_pdc!$C387=3,dati_bdv!$E$2:$E$65536,IF(dati_pdc!$C387=4,dati_bdv!$F$2:$F$65536,IF(dati_pdc!$C387=5,dati_bdv!$G$2:$G$65536,dati_bdv!$H$2:$H$65536))))),$A387,dati_bdv!N$2:N$65536)","v":0}]
[{"$f":"dati_pdc!A388","v":0},{"$f":"SUMIF(IF(dati_pdc!$C388=1,dati_bdv!$C$2:$C$65536,IF(dati_pdc!$C388=2,dati_bdv!$D$2:$D$65536,IF(dati_pdc!$C388=3,dati_bdv!$E$2:$E$65536,IF(dati_pdc!$C388=4,dati_bdv!$F$2:$F$65536,IF(dati_pdc!$C388=5,dati_bdv!$G$2:$G$65536,dati_bdv!$H$2:$H$65536))))),$A388,dati_bdv!J$2:J$65536)","v":0},{"$f":"SUMIF(IF(dati_pdc!$C388=1,dati_bdv!$C$2:$C$65536,IF(dati_pdc!$C388=2,dati_bdv!$D$2:$D$65536,IF(dati_pdc!$C388=3,dati_bdv!$E$2:$E$65536,IF(dati_pdc!$C388=4,dati_bdv!$F$2:$F$65536,IF(dati_pdc!$C388=5,dati_bdv!$G$2:$G$65536,dati_bdv!$H$2:$H$65536))))),$A388,dati_bdv!K$2:K$65536)","v":0},{"$f":"SUMIF(IF(dati_pdc!$C388=1,dati_bdv!$C$2:$C$65536,IF(dati_pdc!$C388=2,dati_bdv!$D$2:$D$65536,IF(dati_pdc!$C388=3,dati_bdv!$E$2:$E$65536,IF(dati_pdc!$C388=4,dati_bdv!$F$2:$F$65536,IF(dati_pdc!$C388=5,dati_bdv!$G$2:$G$65536,dati_bdv!$H$2:$H$65536))))),$A388,dati_bdv!L$2:L$65536)","v":0},{"$f":"SUMIF(IF(dati_pdc!$C388=1,dati_bdv!$C$2:$C$65536,IF(dati_pdc!$C388=2,dati_bdv!$D$2:$D$65536,IF(dati_pdc!$C388=3,dati_bdv!$E$2:$E$65536,IF(dati_pdc!$C388=4,dati_bdv!$F$2:$F$65536,IF(dati_pdc!$C388=5,dati_bdv!$G$2:$G$65536,dati_bdv!$H$2:$H$65536))))),$A388,dati_bdv!M$2:M$65536)","v":0},{"$f":"SUMIF(IF(dati_pdc!$C388=1,dati_bdv!$C$2:$C$65536,IF(dati_pdc!$C388=2,dati_bdv!$D$2:$D$65536,IF(dati_pdc!$C388=3,dati_bdv!$E$2:$E$65536,IF(dati_pdc!$C388=4,dati_bdv!$F$2:$F$65536,IF(dati_pdc!$C388=5,dati_bdv!$G$2:$G$65536,dati_bdv!$H$2:$H$65536))))),$A388,dati_bdv!N$2:N$65536)","v":0}]
[{"$f":"dati_pdc!A389","v":0},{"$f":"SUMIF(IF(dati_pdc!$C389=1,dati_bdv!$C$2:$C$65536,IF(dati_pdc!$C389=2,dati_bdv!$D$2:$D$65536,IF(dati_pdc!$C389=3,dati_bdv!$E$2:$E$65536,IF(dati_pdc!$C389=4,dati_bdv!$F$2:$F$65536,IF(dati_pdc!$C389=5,dati_bdv!$G$2:$G$65536,dati_bdv!$H$2:$H$65536))))),$A389,dati_bdv!J$2:J$65536)","v":0},{"$f":"SUMIF(IF(dati_pdc!$C389=1,dati_bdv!$C$2:$C$65536,IF(dati_pdc!$C389=2,dati_bdv!$D$2:$D$65536,IF(dati_pdc!$C389=3,dati_bdv!$E$2:$E$65536,IF(dati_pdc!$C389=4,dati_bdv!$F$2:$F$65536,IF(dati_pdc!$C389=5,dati_bdv!$G$2:$G$65536,dati_bdv!$H$2:$H$65536))))),$A389,dati_bdv!K$2:K$65536)","v":0},{"$f":"SUMIF(IF(dati_pdc!$C389=1,dati_bdv!$C$2:$C$65536,IF(dati_pdc!$C389=2,dati_bdv!$D$2:$D$65536,IF(dati_pdc!$C389=3,dati_bdv!$E$2:$E$65536,IF(dati_pdc!$C389=4,dati_bdv!$F$2:$F$65536,IF(dati_pdc!$C389=5,dati_bdv!$G$2:$G$65536,dati_bdv!$H$2:$H$65536))))),$A389,dati_bdv!L$2:L$65536)","v":0},{"$f":"SUMIF(IF(dati_pdc!$C389=1,dati_bdv!$C$2:$C$65536,IF(dati_pdc!$C389=2,dati_bdv!$D$2:$D$65536,IF(dati_pdc!$C389=3,dati_bdv!$E$2:$E$65536,IF(dati_pdc!$C389=4,dati_bdv!$F$2:$F$65536,IF(dati_pdc!$C389=5,dati_bdv!$G$2:$G$65536,dati_bdv!$H$2:$H$65536))))),$A389,dati_bdv!M$2:M$65536)","v":0},{"$f":"SUMIF(IF(dati_pdc!$C389=1,dati_bdv!$C$2:$C$65536,IF(dati_pdc!$C389=2,dati_bdv!$D$2:$D$65536,IF(dati_pdc!$C389=3,dati_bdv!$E$2:$E$65536,IF(dati_pdc!$C389=4,dati_bdv!$F$2:$F$65536,IF(dati_pdc!$C389=5,dati_bdv!$G$2:$G$65536,dati_bdv!$H$2:$H$65536))))),$A389,dati_bdv!N$2:N$65536)","v":0}]
[{"$f":"dati_pdc!A390","v":0},{"$f":"SUMIF(IF(dati_pdc!$C390=1,dati_bdv!$C$2:$C$65536,IF(dati_pdc!$C390=2,dati_bdv!$D$2:$D$65536,IF(dati_pdc!$C390=3,dati_bdv!$E$2:$E$65536,IF(dati_pdc!$C390=4,dati_bdv!$F$2:$F$65536,IF(dati_pdc!$C390=5,dati_bdv!$G$2:$G$65536,dati_bdv!$H$2:$H$65536))))),$A390,dati_bdv!J$2:J$65536)","v":0},{"$f":"SUMIF(IF(dati_pdc!$C390=1,dati_bdv!$C$2:$C$65536,IF(dati_pdc!$C390=2,dati_bdv!$D$2:$D$65536,IF(dati_pdc!$C390=3,dati_bdv!$E$2:$E$65536,IF(dati_pdc!$C390=4,dati_bdv!$F$2:$F$65536,IF(dati_pdc!$C390=5,dati_bdv!$G$2:$G$65536,dati_bdv!$H$2:$H$65536))))),$A390,dati_bdv!K$2:K$65536)","v":0},{"$f":"SUMIF(IF(dati_pdc!$C390=1,dati_bdv!$C$2:$C$65536,IF(dati_pdc!$C390=2,dati_bdv!$D$2:$D$65536,IF(dati_pdc!$C390=3,dati_bdv!$E$2:$E$65536,IF(dati_pdc!$C390=4,dati_bdv!$F$2:$F$65536,IF(dati_pdc!$C390=5,dati_bdv!$G$2:$G$65536,dati_bdv!$H$2:$H$65536))))),$A390,dati_bdv!L$2:L$65536)","v":0},{"$f":"SUMIF(IF(dati_pdc!$C390=1,dati_bdv!$C$2:$C$65536,IF(dati_pdc!$C390=2,dati_bdv!$D$2:$D$65536,IF(dati_pdc!$C390=3,dati_bdv!$E$2:$E$65536,IF(dati_pdc!$C390=4,dati_bdv!$F$2:$F$65536,IF(dati_pdc!$C390=5,dati_bdv!$G$2:$G$65536,dati_bdv!$H$2:$H$65536))))),$A390,dati_bdv!M$2:M$65536)","v":0},{"$f":"SUMIF(IF(dati_pdc!$C390=1,dati_bdv!$C$2:$C$65536,IF(dati_pdc!$C390=2,dati_bdv!$D$2:$D$65536,IF(dati_pdc!$C390=3,dati_bdv!$E$2:$E$65536,IF(dati_pdc!$C390=4,dati_bdv!$F$2:$F$65536,IF(dati_pdc!$C390=5,dati_bdv!$G$2:$G$65536,dati_bdv!$H$2:$H$65536))))),$A390,dati_bdv!N$2:N$65536)","v":0}]
[{"$f":"dati_pdc!A391","v":0},{"$f":"SUMIF(IF(dati_pdc!$C391=1,dati_bdv!$C$2:$C$65536,IF(dati_pdc!$C391=2,dati_bdv!$D$2:$D$65536,IF(dati_pdc!$C391=3,dati_bdv!$E$2:$E$65536,IF(dati_pdc!$C391=4,dati_bdv!$F$2:$F$65536,IF(dati_pdc!$C391=5,dati_bdv!$G$2:$G$65536,dati_bdv!$H$2:$H$65536))))),$A391,dati_bdv!J$2:J$65536)","v":0},{"$f":"SUMIF(IF(dati_pdc!$C391=1,dati_bdv!$C$2:$C$65536,IF(dati_pdc!$C391=2,dati_bdv!$D$2:$D$65536,IF(dati_pdc!$C391=3,dati_bdv!$E$2:$E$65536,IF(dati_pdc!$C391=4,dati_bdv!$F$2:$F$65536,IF(dati_pdc!$C391=5,dati_bdv!$G$2:$G$65536,dati_bdv!$H$2:$H$65536))))),$A391,dati_bdv!K$2:K$65536)","v":0},{"$f":"SUMIF(IF(dati_pdc!$C391=1,dati_bdv!$C$2:$C$65536,IF(dati_pdc!$C391=2,dati_bdv!$D$2:$D$65536,IF(dati_pdc!$C391=3,dati_bdv!$E$2:$E$65536,IF(dati_pdc!$C391=4,dati_bdv!$F$2:$F$65536,IF(dati_pdc!$C391=5,dati_bdv!$G$2:$G$65536,dati_bdv!$H$2:$H$65536))))),$A391,dati_bdv!L$2:L$65536)","v":0},{"$f":"SUMIF(IF(dati_pdc!$C391=1,dati_bdv!$C$2:$C$65536,IF(dati_pdc!$C391=2,dati_bdv!$D$2:$D$65536,IF(dati_pdc!$C391=3,dati_bdv!$E$2:$E$65536,IF(dati_pdc!$C391=4,dati_bdv!$F$2:$F$65536,IF(dati_pdc!$C391=5,dati_bdv!$G$2:$G$65536,dati_bdv!$H$2:$H$65536))))),$A391,dati_bdv!M$2:M$65536)","v":0},{"$f":"SUMIF(IF(dati_pdc!$C391=1,dati_bdv!$C$2:$C$65536,IF(dati_pdc!$C391=2,dati_bdv!$D$2:$D$65536,IF(dati_pdc!$C391=3,dati_bdv!$E$2:$E$65536,IF(dati_pdc!$C391=4,dati_bdv!$F$2:$F$65536,IF(dati_pdc!$C391=5,dati_bdv!$G$2:$G$65536,dati_bdv!$H$2:$H$65536))))),$A391,dati_bdv!N$2:N$65536)","v":0}]
[{"$f":"dati_pdc!A392","v":0},{"$f":"SUMIF(IF(dati_pdc!$C392=1,dati_bdv!$C$2:$C$65536,IF(dati_pdc!$C392=2,dati_bdv!$D$2:$D$65536,IF(dati_pdc!$C392=3,dati_bdv!$E$2:$E$65536,IF(dati_pdc!$C392=4,dati_bdv!$F$2:$F$65536,IF(dati_pdc!$C392=5,dati_bdv!$G$2:$G$65536,dati_bdv!$H$2:$H$65536))))),$A392,dati_bdv!J$2:J$65536)","v":0},{"$f":"SUMIF(IF(dati_pdc!$C392=1,dati_bdv!$C$2:$C$65536,IF(dati_pdc!$C392=2,dati_bdv!$D$2:$D$65536,IF(dati_pdc!$C392=3,dati_bdv!$E$2:$E$65536,IF(dati_pdc!$C392=4,dati_bdv!$F$2:$F$65536,IF(dati_pdc!$C392=5,dati_bdv!$G$2:$G$65536,dati_bdv!$H$2:$H$65536))))),$A392,dati_bdv!K$2:K$65536)","v":0},{"$f":"SUMIF(IF(dati_pdc!$C392=1,dati_bdv!$C$2:$C$65536,IF(dati_pdc!$C392=2,dati_bdv!$D$2:$D$65536,IF(dati_pdc!$C392=3,dati_bdv!$E$2:$E$65536,IF(dati_pdc!$C392=4,dati_bdv!$F$2:$F$65536,IF(dati_pdc!$C392=5,dati_bdv!$G$2:$G$65536,dati_bdv!$H$2:$H$65536))))),$A392,dati_bdv!L$2:L$65536)","v":0},{"$f":"SUMIF(IF(dati_pdc!$C392=1,dati_bdv!$C$2:$C$65536,IF(dati_pdc!$C392=2,dati_bdv!$D$2:$D$65536,IF(dati_pdc!$C392=3,dati_bdv!$E$2:$E$65536,IF(dati_pdc!$C392=4,dati_bdv!$F$2:$F$65536,IF(dati_pdc!$C392=5,dati_bdv!$G$2:$G$65536,dati_bdv!$H$2:$H$65536))))),$A392,dati_bdv!M$2:M$65536)","v":0},{"$f":"SUMIF(IF(dati_pdc!$C392=1,dati_bdv!$C$2:$C$65536,IF(dati_pdc!$C392=2,dati_bdv!$D$2:$D$65536,IF(dati_pdc!$C392=3,dati_bdv!$E$2:$E$65536,IF(dati_pdc!$C392=4,dati_bdv!$F$2:$F$65536,IF(dati_pdc!$C392=5,dati_bdv!$G$2:$G$65536,dati_bdv!$H$2:$H$65536))))),$A392,dati_bdv!N$2:N$65536)","v":0}]
[{"$f":"dati_pdc!A393","v":0},{"$f":"SUMIF(IF(dati_pdc!$C393=1,dati_bdv!$C$2:$C$65536,IF(dati_pdc!$C393=2,dati_bdv!$D$2:$D$65536,IF(dati_pdc!$C393=3,dati_bdv!$E$2:$E$65536,IF(dati_pdc!$C393=4,dati_bdv!$F$2:$F$65536,IF(dati_pdc!$C393=5,dati_bdv!$G$2:$G$65536,dati_bdv!$H$2:$H$65536))))),$A393,dati_bdv!J$2:J$65536)","v":0},{"$f":"SUMIF(IF(dati_pdc!$C393=1,dati_bdv!$C$2:$C$65536,IF(dati_pdc!$C393=2,dati_bdv!$D$2:$D$65536,IF(dati_pdc!$C393=3,dati_bdv!$E$2:$E$65536,IF(dati_pdc!$C393=4,dati_bdv!$F$2:$F$65536,IF(dati_pdc!$C393=5,dati_bdv!$G$2:$G$65536,dati_bdv!$H$2:$H$65536))))),$A393,dati_bdv!K$2:K$65536)","v":0},{"$f":"SUMIF(IF(dati_pdc!$C393=1,dati_bdv!$C$2:$C$65536,IF(dati_pdc!$C393=2,dati_bdv!$D$2:$D$65536,IF(dati_pdc!$C393=3,dati_bdv!$E$2:$E$65536,IF(dati_pdc!$C393=4,dati_bdv!$F$2:$F$65536,IF(dati_pdc!$C393=5,dati_bdv!$G$2:$G$65536,dati_bdv!$H$2:$H$65536))))),$A393,dati_bdv!L$2:L$65536)","v":0},{"$f":"SUMIF(IF(dati_pdc!$C393=1,dati_bdv!$C$2:$C$65536,IF(dati_pdc!$C393=2,dati_bdv!$D$2:$D$65536,IF(dati_pdc!$C393=3,dati_bdv!$E$2:$E$65536,IF(dati_pdc!$C393=4,dati_bdv!$F$2:$F$65536,IF(dati_pdc!$C393=5,dati_bdv!$G$2:$G$65536,dati_bdv!$H$2:$H$65536))))),$A393,dati_bdv!M$2:M$65536)","v":0},{"$f":"SUMIF(IF(dati_pdc!$C393=1,dati_bdv!$C$2:$C$65536,IF(dati_pdc!$C393=2,dati_bdv!$D$2:$D$65536,IF(dati_pdc!$C393=3,dati_bdv!$E$2:$E$65536,IF(dati_pdc!$C393=4,dati_bdv!$F$2:$F$65536,IF(dati_pdc!$C393=5,dati_bdv!$G$2:$G$65536,dati_bdv!$H$2:$H$65536))))),$A393,dati_bdv!N$2:N$65536)","v":0}]
[{"$f":"dati_pdc!A394","v":0},{"$f":"SUMIF(IF(dati_pdc!$C394=1,dati_bdv!$C$2:$C$65536,IF(dati_pdc!$C394=2,dati_bdv!$D$2:$D$65536,IF(dati_pdc!$C394=3,dati_bdv!$E$2:$E$65536,IF(dati_pdc!$C394=4,dati_bdv!$F$2:$F$65536,IF(dati_pdc!$C394=5,dati_bdv!$G$2:$G$65536,dati_bdv!$H$2:$H$65536))))),$A394,dati_bdv!J$2:J$65536)","v":0},{"$f":"SUMIF(IF(dati_pdc!$C394=1,dati_bdv!$C$2:$C$65536,IF(dati_pdc!$C394=2,dati_bdv!$D$2:$D$65536,IF(dati_pdc!$C394=3,dati_bdv!$E$2:$E$65536,IF(dati_pdc!$C394=4,dati_bdv!$F$2:$F$65536,IF(dati_pdc!$C394=5,dati_bdv!$G$2:$G$65536,dati_bdv!$H$2:$H$65536))))),$A394,dati_bdv!K$2:K$65536)","v":0},{"$f":"SUMIF(IF(dati_pdc!$C394=1,dati_bdv!$C$2:$C$65536,IF(dati_pdc!$C394=2,dati_bdv!$D$2:$D$65536,IF(dati_pdc!$C394=3,dati_bdv!$E$2:$E$65536,IF(dati_pdc!$C394=4,dati_bdv!$F$2:$F$65536,IF(dati_pdc!$C394=5,dati_bdv!$G$2:$G$65536,dati_bdv!$H$2:$H$65536))))),$A394,dati_bdv!L$2:L$65536)","v":0},{"$f":"SUMIF(IF(dati_pdc!$C394=1,dati_bdv!$C$2:$C$65536,IF(dati_pdc!$C394=2,dati_bdv!$D$2:$D$65536,IF(dati_pdc!$C394=3,dati_bdv!$E$2:$E$65536,IF(dati_pdc!$C394=4,dati_bdv!$F$2:$F$65536,IF(dati_pdc!$C394=5,dati_bdv!$G$2:$G$65536,dati_bdv!$H$2:$H$65536))))),$A394,dati_bdv!M$2:M$65536)","v":0},{"$f":"SUMIF(IF(dati_pdc!$C394=1,dati_bdv!$C$2:$C$65536,IF(dati_pdc!$C394=2,dati_bdv!$D$2:$D$65536,IF(dati_pdc!$C394=3,dati_bdv!$E$2:$E$65536,IF(dati_pdc!$C394=4,dati_bdv!$F$2:$F$65536,IF(dati_pdc!$C394=5,dati_bdv!$G$2:$G$65536,dati_bdv!$H$2:$H$65536))))),$A394,dati_bdv!N$2:N$65536)","v":0}]
[{"$f":"dati_pdc!A395","v":0},{"$f":"SUMIF(IF(dati_pdc!$C395=1,dati_bdv!$C$2:$C$65536,IF(dati_pdc!$C395=2,dati_bdv!$D$2:$D$65536,IF(dati_pdc!$C395=3,dati_bdv!$E$2:$E$65536,IF(dati_pdc!$C395=4,dati_bdv!$F$2:$F$65536,IF(dati_pdc!$C395=5,dati_bdv!$G$2:$G$65536,dati_bdv!$H$2:$H$65536))))),$A395,dati_bdv!J$2:J$65536)","v":0},{"$f":"SUMIF(IF(dati_pdc!$C395=1,dati_bdv!$C$2:$C$65536,IF(dati_pdc!$C395=2,dati_bdv!$D$2:$D$65536,IF(dati_pdc!$C395=3,dati_bdv!$E$2:$E$65536,IF(dati_pdc!$C395=4,dati_bdv!$F$2:$F$65536,IF(dati_pdc!$C395=5,dati_bdv!$G$2:$G$65536,dati_bdv!$H$2:$H$65536))))),$A395,dati_bdv!K$2:K$65536)","v":0},{"$f":"SUMIF(IF(dati_pdc!$C395=1,dati_bdv!$C$2:$C$65536,IF(dati_pdc!$C395=2,dati_bdv!$D$2:$D$65536,IF(dati_pdc!$C395=3,dati_bdv!$E$2:$E$65536,IF(dati_pdc!$C395=4,dati_bdv!$F$2:$F$65536,IF(dati_pdc!$C395=5,dati_bdv!$G$2:$G$65536,dati_bdv!$H$2:$H$65536))))),$A395,dati_bdv!L$2:L$65536)","v":0},{"$f":"SUMIF(IF(dati_pdc!$C395=1,dati_bdv!$C$2:$C$65536,IF(dati_pdc!$C395=2,dati_bdv!$D$2:$D$65536,IF(dati_pdc!$C395=3,dati_bdv!$E$2:$E$65536,IF(dati_pdc!$C395=4,dati_bdv!$F$2:$F$65536,IF(dati_pdc!$C395=5,dati_bdv!$G$2:$G$65536,dati_bdv!$H$2:$H$65536))))),$A395,dati_bdv!M$2:M$65536)","v":0},{"$f":"SUMIF(IF(dati_pdc!$C395=1,dati_bdv!$C$2:$C$65536,IF(dati_pdc!$C395=2,dati_bdv!$D$2:$D$65536,IF(dati_pdc!$C395=3,dati_bdv!$E$2:$E$65536,IF(dati_pdc!$C395=4,dati_bdv!$F$2:$F$65536,IF(dati_pdc!$C395=5,dati_bdv!$G$2:$G$65536,dati_bdv!$H$2:$H$65536))))),$A395,dati_bdv!N$2:N$65536)","v":0}]
[{"$f":"dati_pdc!A396","v":0},{"$f":"SUMIF(IF(dati_pdc!$C396=1,dati_bdv!$C$2:$C$65536,IF(dati_pdc!$C396=2,dati_bdv!$D$2:$D$65536,IF(dati_pdc!$C396=3,dati_bdv!$E$2:$E$65536,IF(dati_pdc!$C396=4,dati_bdv!$F$2:$F$65536,IF(dati_pdc!$C396=5,dati_bdv!$G$2:$G$65536,dati_bdv!$H$2:$H$65536))))),$A396,dati_bdv!J$2:J$65536)","v":0},{"$f":"SUMIF(IF(dati_pdc!$C396=1,dati_bdv!$C$2:$C$65536,IF(dati_pdc!$C396=2,dati_bdv!$D$2:$D$65536,IF(dati_pdc!$C396=3,dati_bdv!$E$2:$E$65536,IF(dati_pdc!$C396=4,dati_bdv!$F$2:$F$65536,IF(dati_pdc!$C396=5,dati_bdv!$G$2:$G$65536,dati_bdv!$H$2:$H$65536))))),$A396,dati_bdv!K$2:K$65536)","v":0},{"$f":"SUMIF(IF(dati_pdc!$C396=1,dati_bdv!$C$2:$C$65536,IF(dati_pdc!$C396=2,dati_bdv!$D$2:$D$65536,IF(dati_pdc!$C396=3,dati_bdv!$E$2:$E$65536,IF(dati_pdc!$C396=4,dati_bdv!$F$2:$F$65536,IF(dati_pdc!$C396=5,dati_bdv!$G$2:$G$65536,dati_bdv!$H$2:$H$65536))))),$A396,dati_bdv!L$2:L$65536)","v":0},{"$f":"SUMIF(IF(dati_pdc!$C396=1,dati_bdv!$C$2:$C$65536,IF(dati_pdc!$C396=2,dati_bdv!$D$2:$D$65536,IF(dati_pdc!$C396=3,dati_bdv!$E$2:$E$65536,IF(dati_pdc!$C396=4,dati_bdv!$F$2:$F$65536,IF(dati_pdc!$C396=5,dati_bdv!$G$2:$G$65536,dati_bdv!$H$2:$H$65536))))),$A396,dati_bdv!M$2:M$65536)","v":0},{"$f":"SUMIF(IF(dati_pdc!$C396=1,dati_bdv!$C$2:$C$65536,IF(dati_pdc!$C396=2,dati_bdv!$D$2:$D$65536,IF(dati_pdc!$C396=3,dati_bdv!$E$2:$E$65536,IF(dati_pdc!$C396=4,dati_bdv!$F$2:$F$65536,IF(dati_pdc!$C396=5,dati_bdv!$G$2:$G$65536,dati_bdv!$H$2:$H$65536))))),$A396,dati_bdv!N$2:N$65536)","v":0}]
[{"$f":"dati_pdc!A397","v":0},{"$f":"SUMIF(IF(dati_pdc!$C397=1,dati_bdv!$C$2:$C$65536,IF(dati_pdc!$C397=2,dati_bdv!$D$2:$D$65536,IF(dati_pdc!$C397=3,dati_bdv!$E$2:$E$65536,IF(dati_pdc!$C397=4,dati_bdv!$F$2:$F$65536,IF(dati_pdc!$C397=5,dati_bdv!$G$2:$G$65536,dati_bdv!$H$2:$H$65536))))),$A397,dati_bdv!J$2:J$65536)","v":0},{"$f":"SUMIF(IF(dati_pdc!$C397=1,dati_bdv!$C$2:$C$65536,IF(dati_pdc!$C397=2,dati_bdv!$D$2:$D$65536,IF(dati_pdc!$C397=3,dati_bdv!$E$2:$E$65536,IF(dati_pdc!$C397=4,dati_bdv!$F$2:$F$65536,IF(dati_pdc!$C397=5,dati_bdv!$G$2:$G$65536,dati_bdv!$H$2:$H$65536))))),$A397,dati_bdv!K$2:K$65536)","v":0},{"$f":"SUMIF(IF(dati_pdc!$C397=1,dati_bdv!$C$2:$C$65536,IF(dati_pdc!$C397=2,dati_bdv!$D$2:$D$65536,IF(dati_pdc!$C397=3,dati_bdv!$E$2:$E$65536,IF(dati_pdc!$C397=4,dati_bdv!$F$2:$F$65536,IF(dati_pdc!$C397=5,dati_bdv!$G$2:$G$65536,dati_bdv!$H$2:$H$65536))))),$A397,dati_bdv!L$2:L$65536)","v":0},{"$f":"SUMIF(IF(dati_pdc!$C397=1,dati_bdv!$C$2:$C$65536,IF(dati_pdc!$C397=2,dati_bdv!$D$2:$D$65536,IF(dati_pdc!$C397=3,dati_bdv!$E$2:$E$65536,IF(dati_pdc!$C397=4,dati_bdv!$F$2:$F$65536,IF(dati_pdc!$C397=5,dati_bdv!$G$2:$G$65536,dati_bdv!$H$2:$H$65536))))),$A397,dati_bdv!M$2:M$65536)","v":0},{"$f":"SUMIF(IF(dati_pdc!$C397=1,dati_bdv!$C$2:$C$65536,IF(dati_pdc!$C397=2,dati_bdv!$D$2:$D$65536,IF(dati_pdc!$C397=3,dati_bdv!$E$2:$E$65536,IF(dati_pdc!$C397=4,dati_bdv!$F$2:$F$65536,IF(dati_pdc!$C397=5,dati_bdv!$G$2:$G$65536,dati_bdv!$H$2:$H$65536))))),$A397,dati_bdv!N$2:N$65536)","v":0}]
[{"$f":"dati_pdc!A398","v":0},{"$f":"SUMIF(IF(dati_pdc!$C398=1,dati_bdv!$C$2:$C$65536,IF(dati_pdc!$C398=2,dati_bdv!$D$2:$D$65536,IF(dati_pdc!$C398=3,dati_bdv!$E$2:$E$65536,IF(dati_pdc!$C398=4,dati_bdv!$F$2:$F$65536,IF(dati_pdc!$C398=5,dati_bdv!$G$2:$G$65536,dati_bdv!$H$2:$H$65536))))),$A398,dati_bdv!J$2:J$65536)","v":0},{"$f":"SUMIF(IF(dati_pdc!$C398=1,dati_bdv!$C$2:$C$65536,IF(dati_pdc!$C398=2,dati_bdv!$D$2:$D$65536,IF(dati_pdc!$C398=3,dati_bdv!$E$2:$E$65536,IF(dati_pdc!$C398=4,dati_bdv!$F$2:$F$65536,IF(dati_pdc!$C398=5,dati_bdv!$G$2:$G$65536,dati_bdv!$H$2:$H$65536))))),$A398,dati_bdv!K$2:K$65536)","v":0},{"$f":"SUMIF(IF(dati_pdc!$C398=1,dati_bdv!$C$2:$C$65536,IF(dati_pdc!$C398=2,dati_bdv!$D$2:$D$65536,IF(dati_pdc!$C398=3,dati_bdv!$E$2:$E$65536,IF(dati_pdc!$C398=4,dati_bdv!$F$2:$F$65536,IF(dati_pdc!$C398=5,dati_bdv!$G$2:$G$65536,dati_bdv!$H$2:$H$65536))))),$A398,dati_bdv!L$2:L$65536)","v":0},{"$f":"SUMIF(IF(dati_pdc!$C398=1,dati_bdv!$C$2:$C$65536,IF(dati_pdc!$C398=2,dati_bdv!$D$2:$D$65536,IF(dati_pdc!$C398=3,dati_bdv!$E$2:$E$65536,IF(dati_pdc!$C398=4,dati_bdv!$F$2:$F$65536,IF(dati_pdc!$C398=5,dati_bdv!$G$2:$G$65536,dati_bdv!$H$2:$H$65536))))),$A398,dati_bdv!M$2:M$65536)","v":0},{"$f":"SUMIF(IF(dati_pdc!$C398=1,dati_bdv!$C$2:$C$65536,IF(dati_pdc!$C398=2,dati_bdv!$D$2:$D$65536,IF(dati_pdc!$C398=3,dati_bdv!$E$2:$E$65536,IF(dati_pdc!$C398=4,dati_bdv!$F$2:$F$65536,IF(dati_pdc!$C398=5,dati_bdv!$G$2:$G$65536,dati_bdv!$H$2:$H$65536))))),$A398,dati_bdv!N$2:N$65536)","v":0}]
[{"$f":"dati_pdc!A399","v":0},{"$f":"SUMIF(IF(dati_pdc!$C399=1,dati_bdv!$C$2:$C$65536,IF(dati_pdc!$C399=2,dati_bdv!$D$2:$D$65536,IF(dati_pdc!$C399=3,dati_bdv!$E$2:$E$65536,IF(dati_pdc!$C399=4,dati_bdv!$F$2:$F$65536,IF(dati_pdc!$C399=5,dati_bdv!$G$2:$G$65536,dati_bdv!$H$2:$H$65536))))),$A399,dati_bdv!J$2:J$65536)","v":0},{"$f":"SUMIF(IF(dati_pdc!$C399=1,dati_bdv!$C$2:$C$65536,IF(dati_pdc!$C399=2,dati_bdv!$D$2:$D$65536,IF(dati_pdc!$C399=3,dati_bdv!$E$2:$E$65536,IF(dati_pdc!$C399=4,dati_bdv!$F$2:$F$65536,IF(dati_pdc!$C399=5,dati_bdv!$G$2:$G$65536,dati_bdv!$H$2:$H$65536))))),$A399,dati_bdv!K$2:K$65536)","v":0},{"$f":"SUMIF(IF(dati_pdc!$C399=1,dati_bdv!$C$2:$C$65536,IF(dati_pdc!$C399=2,dati_bdv!$D$2:$D$65536,IF(dati_pdc!$C399=3,dati_bdv!$E$2:$E$65536,IF(dati_pdc!$C399=4,dati_bdv!$F$2:$F$65536,IF(dati_pdc!$C399=5,dati_bdv!$G$2:$G$65536,dati_bdv!$H$2:$H$65536))))),$A399,dati_bdv!L$2:L$65536)","v":0},{"$f":"SUMIF(IF(dati_pdc!$C399=1,dati_bdv!$C$2:$C$65536,IF(dati_pdc!$C399=2,dati_bdv!$D$2:$D$65536,IF(dati_pdc!$C399=3,dati_bdv!$E$2:$E$65536,IF(dati_pdc!$C399=4,dati_bdv!$F$2:$F$65536,IF(dati_pdc!$C399=5,dati_bdv!$G$2:$G$65536,dati_bdv!$H$2:$H$65536))))),$A399,dati_bdv!M$2:M$65536)","v":0},{"$f":"SUMIF(IF(dati_pdc!$C399=1,dati_bdv!$C$2:$C$65536,IF(dati_pdc!$C399=2,dati_bdv!$D$2:$D$65536,IF(dati_pdc!$C399=3,dati_bdv!$E$2:$E$65536,IF(dati_pdc!$C399=4,dati_bdv!$F$2:$F$65536,IF(dati_pdc!$C399=5,dati_bdv!$G$2:$G$65536,dati_bdv!$H$2:$H$65536))))),$A399,dati_bdv!N$2:N$65536)","v":0}]
[{"$f":"dati_pdc!A400","v":0},{"$f":"SUMIF(IF(dati_pdc!$C400=1,dati_bdv!$C$2:$C$65536,IF(dati_pdc!$C400=2,dati_bdv!$D$2:$D$65536,IF(dati_pdc!$C400=3,dati_bdv!$E$2:$E$65536,IF(dati_pdc!$C400=4,dati_bdv!$F$2:$F$65536,IF(dati_pdc!$C400=5,dati_bdv!$G$2:$G$65536,dati_bdv!$H$2:$H$65536))))),$A400,dati_bdv!J$2:J$65536)","v":0},{"$f":"SUMIF(IF(dati_pdc!$C400=1,dati_bdv!$C$2:$C$65536,IF(dati_pdc!$C400=2,dati_bdv!$D$2:$D$65536,IF(dati_pdc!$C400=3,dati_bdv!$E$2:$E$65536,IF(dati_pdc!$C400=4,dati_bdv!$F$2:$F$65536,IF(dati_pdc!$C400=5,dati_bdv!$G$2:$G$65536,dati_bdv!$H$2:$H$65536))))),$A400,dati_bdv!K$2:K$65536)","v":0},{"$f":"SUMIF(IF(dati_pdc!$C400=1,dati_bdv!$C$2:$C$65536,IF(dati_pdc!$C400=2,dati_bdv!$D$2:$D$65536,IF(dati_pdc!$C400=3,dati_bdv!$E$2:$E$65536,IF(dati_pdc!$C400=4,dati_bdv!$F$2:$F$65536,IF(dati_pdc!$C400=5,dati_bdv!$G$2:$G$65536,dati_bdv!$H$2:$H$65536))))),$A400,dati_bdv!L$2:L$65536)","v":0},{"$f":"SUMIF(IF(dati_pdc!$C400=1,dati_bdv!$C$2:$C$65536,IF(dati_pdc!$C400=2,dati_bdv!$D$2:$D$65536,IF(dati_pdc!$C400=3,dati_bdv!$E$2:$E$65536,IF(dati_pdc!$C400=4,dati_bdv!$F$2:$F$65536,IF(dati_pdc!$C400=5,dati_bdv!$G$2:$G$65536,dati_bdv!$H$2:$H$65536))))),$A400,dati_bdv!M$2:M$65536)","v":0},{"$f":"SUMIF(IF(dati_pdc!$C400=1,dati_bdv!$C$2:$C$65536,IF(dati_pdc!$C400=2,dati_bdv!$D$2:$D$65536,IF(dati_pdc!$C400=3,dati_bdv!$E$2:$E$65536,IF(dati_pdc!$C400=4,dati_bdv!$F$2:$F$65536,IF(dati_pdc!$C400=5,dati_bdv!$G$2:$G$65536,dati_bdv!$H$2:$H$65536))))),$A400,dati_bdv!N$2:N$65536)","v":0}]
[{"$f":"dati_pdc!A401","v":0},{"$f":"SUMIF(IF(dati_pdc!$C401=1,dati_bdv!$C$2:$C$65536,IF(dati_pdc!$C401=2,dati_bdv!$D$2:$D$65536,IF(dati_pdc!$C401=3,dati_bdv!$E$2:$E$65536,IF(dati_pdc!$C401=4,dati_bdv!$F$2:$F$65536,IF(dati_pdc!$C401=5,dati_bdv!$G$2:$G$65536,dati_bdv!$H$2:$H$65536))))),$A401,dati_bdv!J$2:J$65536)","v":0},{"$f":"SUMIF(IF(dati_pdc!$C401=1,dati_bdv!$C$2:$C$65536,IF(dati_pdc!$C401=2,dati_bdv!$D$2:$D$65536,IF(dati_pdc!$C401=3,dati_bdv!$E$2:$E$65536,IF(dati_pdc!$C401=4,dati_bdv!$F$2:$F$65536,IF(dati_pdc!$C401=5,dati_bdv!$G$2:$G$65536,dati_bdv!$H$2:$H$65536))))),$A401,dati_bdv!K$2:K$65536)","v":0},{"$f":"SUMIF(IF(dati_pdc!$C401=1,dati_bdv!$C$2:$C$65536,IF(dati_pdc!$C401=2,dati_bdv!$D$2:$D$65536,IF(dati_pdc!$C401=3,dati_bdv!$E$2:$E$65536,IF(dati_pdc!$C401=4,dati_bdv!$F$2:$F$65536,IF(dati_pdc!$C401=5,dati_bdv!$G$2:$G$65536,dati_bdv!$H$2:$H$65536))))),$A401,dati_bdv!L$2:L$65536)","v":0},{"$f":"SUMIF(IF(dati_pdc!$C401=1,dati_bdv!$C$2:$C$65536,IF(dati_pdc!$C401=2,dati_bdv!$D$2:$D$65536,IF(dati_pdc!$C401=3,dati_bdv!$E$2:$E$65536,IF(dati_pdc!$C401=4,dati_bdv!$F$2:$F$65536,IF(dati_pdc!$C401=5,dati_bdv!$G$2:$G$65536,dati_bdv!$H$2:$H$65536))))),$A401,dati_bdv!M$2:M$65536)","v":0},{"$f":"SUMIF(IF(dati_pdc!$C401=1,dati_bdv!$C$2:$C$65536,IF(dati_pdc!$C401=2,dati_bdv!$D$2:$D$65536,IF(dati_pdc!$C401=3,dati_bdv!$E$2:$E$65536,IF(dati_pdc!$C401=4,dati_bdv!$F$2:$F$65536,IF(dati_pdc!$C401=5,dati_bdv!$G$2:$G$65536,dati_bdv!$H$2:$H$65536))))),$A401,dati_bdv!N$2:N$65536)","v":0}]
[{"$f":"dati_pdc!A402","v":0},{"$f":"SUMIF(IF(dati_pdc!$C402=1,dati_bdv!$C$2:$C$65536,IF(dati_pdc!$C402=2,dati_bdv!$D$2:$D$65536,IF(dati_pdc!$C402=3,dati_bdv!$E$2:$E$65536,IF(dati_pdc!$C402=4,dati_bdv!$F$2:$F$65536,IF(dati_pdc!$C402=5,dati_bdv!$G$2:$G$65536,dati_bdv!$H$2:$H$65536))))),$A402,dati_bdv!J$2:J$65536)","v":0},{"$f":"SUMIF(IF(dati_pdc!$C402=1,dati_bdv!$C$2:$C$65536,IF(dati_pdc!$C402=2,dati_bdv!$D$2:$D$65536,IF(dati_pdc!$C402=3,dati_bdv!$E$2:$E$65536,IF(dati_pdc!$C402=4,dati_bdv!$F$2:$F$65536,IF(dati_pdc!$C402=5,dati_bdv!$G$2:$G$65536,dati_bdv!$H$2:$H$65536))))),$A402,dati_bdv!K$2:K$65536)","v":0},{"$f":"SUMIF(IF(dati_pdc!$C402=1,dati_bdv!$C$2:$C$65536,IF(dati_pdc!$C402=2,dati_bdv!$D$2:$D$65536,IF(dati_pdc!$C402=3,dati_bdv!$E$2:$E$65536,IF(dati_pdc!$C402=4,dati_bdv!$F$2:$F$65536,IF(dati_pdc!$C402=5,dati_bdv!$G$2:$G$65536,dati_bdv!$H$2:$H$65536))))),$A402,dati_bdv!L$2:L$65536)","v":0},{"$f":"SUMIF(IF(dati_pdc!$C402=1,dati_bdv!$C$2:$C$65536,IF(dati_pdc!$C402=2,dati_bdv!$D$2:$D$65536,IF(dati_pdc!$C402=3,dati_bdv!$E$2:$E$65536,IF(dati_pdc!$C402=4,dati_bdv!$F$2:$F$65536,IF(dati_pdc!$C402=5,dati_bdv!$G$2:$G$65536,dati_bdv!$H$2:$H$65536))))),$A402,dati_bdv!M$2:M$65536)","v":0},{"$f":"SUMIF(IF(dati_pdc!$C402=1,dati_bdv!$C$2:$C$65536,IF(dati_pdc!$C402=2,dati_bdv!$D$2:$D$65536,IF(dati_pdc!$C402=3,dati_bdv!$E$2:$E$65536,IF(dati_pdc!$C402=4,dati_bdv!$F$2:$F$65536,IF(dati_pdc!$C402=5,dati_bdv!$G$2:$G$65536,dati_bdv!$H$2:$H$65536))))),$A402,dati_bdv!N$2:N$65536)","v":0}]
[{"$f":"dati_pdc!A403","v":0},{"$f":"SUMIF(IF(dati_pdc!$C403=1,dati_bdv!$C$2:$C$65536,IF(dati_pdc!$C403=2,dati_bdv!$D$2:$D$65536,IF(dati_pdc!$C403=3,dati_bdv!$E$2:$E$65536,IF(dati_pdc!$C403=4,dati_bdv!$F$2:$F$65536,IF(dati_pdc!$C403=5,dati_bdv!$G$2:$G$65536,dati_bdv!$H$2:$H$65536))))),$A403,dati_bdv!J$2:J$65536)","v":0},{"$f":"SUMIF(IF(dati_pdc!$C403=1,dati_bdv!$C$2:$C$65536,IF(dati_pdc!$C403=2,dati_bdv!$D$2:$D$65536,IF(dati_pdc!$C403=3,dati_bdv!$E$2:$E$65536,IF(dati_pdc!$C403=4,dati_bdv!$F$2:$F$65536,IF(dati_pdc!$C403=5,dati_bdv!$G$2:$G$65536,dati_bdv!$H$2:$H$65536))))),$A403,dati_bdv!K$2:K$65536)","v":0},{"$f":"SUMIF(IF(dati_pdc!$C403=1,dati_bdv!$C$2:$C$65536,IF(dati_pdc!$C403=2,dati_bdv!$D$2:$D$65536,IF(dati_pdc!$C403=3,dati_bdv!$E$2:$E$65536,IF(dati_pdc!$C403=4,dati_bdv!$F$2:$F$65536,IF(dati_pdc!$C403=5,dati_bdv!$G$2:$G$65536,dati_bdv!$H$2:$H$65536))))),$A403,dati_bdv!L$2:L$65536)","v":0},{"$f":"SUMIF(IF(dati_pdc!$C403=1,dati_bdv!$C$2:$C$65536,IF(dati_pdc!$C403=2,dati_bdv!$D$2:$D$65536,IF(dati_pdc!$C403=3,dati_bdv!$E$2:$E$65536,IF(dati_pdc!$C403=4,dati_bdv!$F$2:$F$65536,IF(dati_pdc!$C403=5,dati_bdv!$G$2:$G$65536,dati_bdv!$H$2:$H$65536))))),$A403,dati_bdv!M$2:M$65536)","v":0},{"$f":"SUMIF(IF(dati_pdc!$C403=1,dati_bdv!$C$2:$C$65536,IF(dati_pdc!$C403=2,dati_bdv!$D$2:$D$65536,IF(dati_pdc!$C403=3,dati_bdv!$E$2:$E$65536,IF(dati_pdc!$C403=4,dati_bdv!$F$2:$F$65536,IF(dati_pdc!$C403=5,dati_bdv!$G$2:$G$65536,dati_bdv!$H$2:$H$65536))))),$A403,dati_bdv!N$2:N$65536)","v":0}]
[{"$f":"dati_pdc!A404","v":0},{"$f":"SUMIF(IF(dati_pdc!$C404=1,dati_bdv!$C$2:$C$65536,IF(dati_pdc!$C404=2,dati_bdv!$D$2:$D$65536,IF(dati_pdc!$C404=3,dati_bdv!$E$2:$E$65536,IF(dati_pdc!$C404=4,dati_bdv!$F$2:$F$65536,IF(dati_pdc!$C404=5,dati_bdv!$G$2:$G$65536,dati_bdv!$H$2:$H$65536))))),$A404,dati_bdv!J$2:J$65536)","v":0},{"$f":"SUMIF(IF(dati_pdc!$C404=1,dati_bdv!$C$2:$C$65536,IF(dati_pdc!$C404=2,dati_bdv!$D$2:$D$65536,IF(dati_pdc!$C404=3,dati_bdv!$E$2:$E$65536,IF(dati_pdc!$C404=4,dati_bdv!$F$2:$F$65536,IF(dati_pdc!$C404=5,dati_bdv!$G$2:$G$65536,dati_bdv!$H$2:$H$65536))))),$A404,dati_bdv!K$2:K$65536)","v":0},{"$f":"SUMIF(IF(dati_pdc!$C404=1,dati_bdv!$C$2:$C$65536,IF(dati_pdc!$C404=2,dati_bdv!$D$2:$D$65536,IF(dati_pdc!$C404=3,dati_bdv!$E$2:$E$65536,IF(dati_pdc!$C404=4,dati_bdv!$F$2:$F$65536,IF(dati_pdc!$C404=5,dati_bdv!$G$2:$G$65536,dati_bdv!$H$2:$H$65536))))),$A404,dati_bdv!L$2:L$65536)","v":0},{"$f":"SUMIF(IF(dati_pdc!$C404=1,dati_bdv!$C$2:$C$65536,IF(dati_pdc!$C404=2,dati_bdv!$D$2:$D$65536,IF(dati_pdc!$C404=3,dati_bdv!$E$2:$E$65536,IF(dati_pdc!$C404=4,dati_bdv!$F$2:$F$65536,IF(dati_pdc!$C404=5,dati_bdv!$G$2:$G$65536,dati_bdv!$H$2:$H$65536))))),$A404,dati_bdv!M$2:M$65536)","v":0},{"$f":"SUMIF(IF(dati_pdc!$C404=1,dati_bdv!$C$2:$C$65536,IF(dati_pdc!$C404=2,dati_bdv!$D$2:$D$65536,IF(dati_pdc!$C404=3,dati_bdv!$E$2:$E$65536,IF(dati_pdc!$C404=4,dati_bdv!$F$2:$F$65536,IF(dati_pdc!$C404=5,dati_bdv!$G$2:$G$65536,dati_bdv!$H$2:$H$65536))))),$A404,dati_bdv!N$2:N$65536)","v":0}]
[{"$f":"dati_pdc!A405","v":0},{"$f":"SUMIF(IF(dati_pdc!$C405=1,dati_bdv!$C$2:$C$65536,IF(dati_pdc!$C405=2,dati_bdv!$D$2:$D$65536,IF(dati_pdc!$C405=3,dati_bdv!$E$2:$E$65536,IF(dati_pdc!$C405=4,dati_bdv!$F$2:$F$65536,IF(dati_pdc!$C405=5,dati_bdv!$G$2:$G$65536,dati_bdv!$H$2:$H$65536))))),$A405,dati_bdv!J$2:J$65536)","v":0},{"$f":"SUMIF(IF(dati_pdc!$C405=1,dati_bdv!$C$2:$C$65536,IF(dati_pdc!$C405=2,dati_bdv!$D$2:$D$65536,IF(dati_pdc!$C405=3,dati_bdv!$E$2:$E$65536,IF(dati_pdc!$C405=4,dati_bdv!$F$2:$F$65536,IF(dati_pdc!$C405=5,dati_bdv!$G$2:$G$65536,dati_bdv!$H$2:$H$65536))))),$A405,dati_bdv!K$2:K$65536)","v":0},{"$f":"SUMIF(IF(dati_pdc!$C405=1,dati_bdv!$C$2:$C$65536,IF(dati_pdc!$C405=2,dati_bdv!$D$2:$D$65536,IF(dati_pdc!$C405=3,dati_bdv!$E$2:$E$65536,IF(dati_pdc!$C405=4,dati_bdv!$F$2:$F$65536,IF(dati_pdc!$C405=5,dati_bdv!$G$2:$G$65536,dati_bdv!$H$2:$H$65536))))),$A405,dati_bdv!L$2:L$65536)","v":0},{"$f":"SUMIF(IF(dati_pdc!$C405=1,dati_bdv!$C$2:$C$65536,IF(dati_pdc!$C405=2,dati_bdv!$D$2:$D$65536,IF(dati_pdc!$C405=3,dati_bdv!$E$2:$E$65536,IF(dati_pdc!$C405=4,dati_bdv!$F$2:$F$65536,IF(dati_pdc!$C405=5,dati_bdv!$G$2:$G$65536,dati_bdv!$H$2:$H$65536))))),$A405,dati_bdv!M$2:M$65536)","v":0},{"$f":"SUMIF(IF(dati_pdc!$C405=1,dati_bdv!$C$2:$C$65536,IF(dati_pdc!$C405=2,dati_bdv!$D$2:$D$65536,IF(dati_pdc!$C405=3,dati_bdv!$E$2:$E$65536,IF(dati_pdc!$C405=4,dati_bdv!$F$2:$F$65536,IF(dati_pdc!$C405=5,dati_bdv!$G$2:$G$65536,dati_bdv!$H$2:$H$65536))))),$A405,dati_bdv!N$2:N$65536)","v":0}]
[{"$f":"dati_pdc!A406","v":0},{"$f":"SUMIF(IF(dati_pdc!$C406=1,dati_bdv!$C$2:$C$65536,IF(dati_pdc!$C406=2,dati_bdv!$D$2:$D$65536,IF(dati_pdc!$C406=3,dati_bdv!$E$2:$E$65536,IF(dati_pdc!$C406=4,dati_bdv!$F$2:$F$65536,IF(dati_pdc!$C406=5,dati_bdv!$G$2:$G$65536,dati_bdv!$H$2:$H$65536))))),$A406,dati_bdv!J$2:J$65536)","v":0},{"$f":"SUMIF(IF(dati_pdc!$C406=1,dati_bdv!$C$2:$C$65536,IF(dati_pdc!$C406=2,dati_bdv!$D$2:$D$65536,IF(dati_pdc!$C406=3,dati_bdv!$E$2:$E$65536,IF(dati_pdc!$C406=4,dati_bdv!$F$2:$F$65536,IF(dati_pdc!$C406=5,dati_bdv!$G$2:$G$65536,dati_bdv!$H$2:$H$65536))))),$A406,dati_bdv!K$2:K$65536)","v":0},{"$f":"SUMIF(IF(dati_pdc!$C406=1,dati_bdv!$C$2:$C$65536,IF(dati_pdc!$C406=2,dati_bdv!$D$2:$D$65536,IF(dati_pdc!$C406=3,dati_bdv!$E$2:$E$65536,IF(dati_pdc!$C406=4,dati_bdv!$F$2:$F$65536,IF(dati_pdc!$C406=5,dati_bdv!$G$2:$G$65536,dati_bdv!$H$2:$H$65536))))),$A406,dati_bdv!L$2:L$65536)","v":0},{"$f":"SUMIF(IF(dati_pdc!$C406=1,dati_bdv!$C$2:$C$65536,IF(dati_pdc!$C406=2,dati_bdv!$D$2:$D$65536,IF(dati_pdc!$C406=3,dati_bdv!$E$2:$E$65536,IF(dati_pdc!$C406=4,dati_bdv!$F$2:$F$65536,IF(dati_pdc!$C406=5,dati_bdv!$G$2:$G$65536,dati_bdv!$H$2:$H$65536))))),$A406,dati_bdv!M$2:M$65536)","v":0},{"$f":"SUMIF(IF(dati_pdc!$C406=1,dati_bdv!$C$2:$C$65536,IF(dati_pdc!$C406=2,dati_bdv!$D$2:$D$65536,IF(dati_pdc!$C406=3,dati_bdv!$E$2:$E$65536,IF(dati_pdc!$C406=4,dati_bdv!$F$2:$F$65536,IF(dati_pdc!$C406=5,dati_bdv!$G$2:$G$65536,dati_bdv!$H$2:$H$65536))))),$A406,dati_bdv!N$2:N$65536)","v":0}]
[{"$f":"dati_pdc!A407","v":0},{"$f":"SUMIF(IF(dati_pdc!$C407=1,dati_bdv!$C$2:$C$65536,IF(dati_pdc!$C407=2,dati_bdv!$D$2:$D$65536,IF(dati_pdc!$C407=3,dati_bdv!$E$2:$E$65536,IF(dati_pdc!$C407=4,dati_bdv!$F$2:$F$65536,IF(dati_pdc!$C407=5,dati_bdv!$G$2:$G$65536,dati_bdv!$H$2:$H$65536))))),$A407,dati_bdv!J$2:J$65536)","v":0},{"$f":"SUMIF(IF(dati_pdc!$C407=1,dati_bdv!$C$2:$C$65536,IF(dati_pdc!$C407=2,dati_bdv!$D$2:$D$65536,IF(dati_pdc!$C407=3,dati_bdv!$E$2:$E$65536,IF(dati_pdc!$C407=4,dati_bdv!$F$2:$F$65536,IF(dati_pdc!$C407=5,dati_bdv!$G$2:$G$65536,dati_bdv!$H$2:$H$65536))))),$A407,dati_bdv!K$2:K$65536)","v":0},{"$f":"SUMIF(IF(dati_pdc!$C407=1,dati_bdv!$C$2:$C$65536,IF(dati_pdc!$C407=2,dati_bdv!$D$2:$D$65536,IF(dati_pdc!$C407=3,dati_bdv!$E$2:$E$65536,IF(dati_pdc!$C407=4,dati_bdv!$F$2:$F$65536,IF(dati_pdc!$C407=5,dati_bdv!$G$2:$G$65536,dati_bdv!$H$2:$H$65536))))),$A407,dati_bdv!L$2:L$65536)","v":0},{"$f":"SUMIF(IF(dati_pdc!$C407=1,dati_bdv!$C$2:$C$65536,IF(dati_pdc!$C407=2,dati_bdv!$D$2:$D$65536,IF(dati_pdc!$C407=3,dati_bdv!$E$2:$E$65536,IF(dati_pdc!$C407=4,dati_bdv!$F$2:$F$65536,IF(dati_pdc!$C407=5,dati_bdv!$G$2:$G$65536,dati_bdv!$H$2:$H$65536))))),$A407,dati_bdv!M$2:M$65536)","v":0},{"$f":"SUMIF(IF(dati_pdc!$C407=1,dati_bdv!$C$2:$C$65536,IF(dati_pdc!$C407=2,dati_bdv!$D$2:$D$65536,IF(dati_pdc!$C407=3,dati_bdv!$E$2:$E$65536,IF(dati_pdc!$C407=4,dati_bdv!$F$2:$F$65536,IF(dati_pdc!$C407=5,dati_bdv!$G$2:$G$65536,dati_bdv!$H$2:$H$65536))))),$A407,dati_bdv!N$2:N$65536)","v":0}]
[{"$f":"dati_pdc!A408","v":0},{"$f":"SUMIF(IF(dati_pdc!$C408=1,dati_bdv!$C$2:$C$65536,IF(dati_pdc!$C408=2,dati_bdv!$D$2:$D$65536,IF(dati_pdc!$C408=3,dati_bdv!$E$2:$E$65536,IF(dati_pdc!$C408=4,dati_bdv!$F$2:$F$65536,IF(dati_pdc!$C408=5,dati_bdv!$G$2:$G$65536,dati_bdv!$H$2:$H$65536))))),$A408,dati_bdv!J$2:J$65536)","v":0},{"$f":"SUMIF(IF(dati_pdc!$C408=1,dati_bdv!$C$2:$C$65536,IF(dati_pdc!$C408=2,dati_bdv!$D$2:$D$65536,IF(dati_pdc!$C408=3,dati_bdv!$E$2:$E$65536,IF(dati_pdc!$C408=4,dati_bdv!$F$2:$F$65536,IF(dati_pdc!$C408=5,dati_bdv!$G$2:$G$65536,dati_bdv!$H$2:$H$65536))))),$A408,dati_bdv!K$2:K$65536)","v":0},{"$f":"SUMIF(IF(dati_pdc!$C408=1,dati_bdv!$C$2:$C$65536,IF(dati_pdc!$C408=2,dati_bdv!$D$2:$D$65536,IF(dati_pdc!$C408=3,dati_bdv!$E$2:$E$65536,IF(dati_pdc!$C408=4,dati_bdv!$F$2:$F$65536,IF(dati_pdc!$C408=5,dati_bdv!$G$2:$G$65536,dati_bdv!$H$2:$H$65536))))),$A408,dati_bdv!L$2:L$65536)","v":0},{"$f":"SUMIF(IF(dati_pdc!$C408=1,dati_bdv!$C$2:$C$65536,IF(dati_pdc!$C408=2,dati_bdv!$D$2:$D$65536,IF(dati_pdc!$C408=3,dati_bdv!$E$2:$E$65536,IF(dati_pdc!$C408=4,dati_bdv!$F$2:$F$65536,IF(dati_pdc!$C408=5,dati_bdv!$G$2:$G$65536,dati_bdv!$H$2:$H$65536))))),$A408,dati_bdv!M$2:M$65536)","v":0},{"$f":"SUMIF(IF(dati_pdc!$C408=1,dati_bdv!$C$2:$C$65536,IF(dati_pdc!$C408=2,dati_bdv!$D$2:$D$65536,IF(dati_pdc!$C408=3,dati_bdv!$E$2:$E$65536,IF(dati_pdc!$C408=4,dati_bdv!$F$2:$F$65536,IF(dati_pdc!$C408=5,dati_bdv!$G$2:$G$65536,dati_bdv!$H$2:$H$65536))))),$A408,dati_bdv!N$2:N$65536)","v":0}]
[{"$f":"dati_pdc!A409","v":0},{"$f":"SUMIF(IF(dati_pdc!$C409=1,dati_bdv!$C$2:$C$65536,IF(dati_pdc!$C409=2,dati_bdv!$D$2:$D$65536,IF(dati_pdc!$C409=3,dati_bdv!$E$2:$E$65536,IF(dati_pdc!$C409=4,dati_bdv!$F$2:$F$65536,IF(dati_pdc!$C409=5,dati_bdv!$G$2:$G$65536,dati_bdv!$H$2:$H$65536))))),$A409,dati_bdv!J$2:J$65536)","v":0},{"$f":"SUMIF(IF(dati_pdc!$C409=1,dati_bdv!$C$2:$C$65536,IF(dati_pdc!$C409=2,dati_bdv!$D$2:$D$65536,IF(dati_pdc!$C409=3,dati_bdv!$E$2:$E$65536,IF(dati_pdc!$C409=4,dati_bdv!$F$2:$F$65536,IF(dati_pdc!$C409=5,dati_bdv!$G$2:$G$65536,dati_bdv!$H$2:$H$65536))))),$A409,dati_bdv!K$2:K$65536)","v":0},{"$f":"SUMIF(IF(dati_pdc!$C409=1,dati_bdv!$C$2:$C$65536,IF(dati_pdc!$C409=2,dati_bdv!$D$2:$D$65536,IF(dati_pdc!$C409=3,dati_bdv!$E$2:$E$65536,IF(dati_pdc!$C409=4,dati_bdv!$F$2:$F$65536,IF(dati_pdc!$C409=5,dati_bdv!$G$2:$G$65536,dati_bdv!$H$2:$H$65536))))),$A409,dati_bdv!L$2:L$65536)","v":0},{"$f":"SUMIF(IF(dati_pdc!$C409=1,dati_bdv!$C$2:$C$65536,IF(dati_pdc!$C409=2,dati_bdv!$D$2:$D$65536,IF(dati_pdc!$C409=3,dati_bdv!$E$2:$E$65536,IF(dati_pdc!$C409=4,dati_bdv!$F$2:$F$65536,IF(dati_pdc!$C409=5,dati_bdv!$G$2:$G$65536,dati_bdv!$H$2:$H$65536))))),$A409,dati_bdv!M$2:M$65536)","v":0},{"$f":"SUMIF(IF(dati_pdc!$C409=1,dati_bdv!$C$2:$C$65536,IF(dati_pdc!$C409=2,dati_bdv!$D$2:$D$65536,IF(dati_pdc!$C409=3,dati_bdv!$E$2:$E$65536,IF(dati_pdc!$C409=4,dati_bdv!$F$2:$F$65536,IF(dati_pdc!$C409=5,dati_bdv!$G$2:$G$65536,dati_bdv!$H$2:$H$65536))))),$A409,dati_bdv!N$2:N$65536)","v":0}]
[{"$f":"dati_pdc!A410","v":0},{"$f":"SUMIF(IF(dati_pdc!$C410=1,dati_bdv!$C$2:$C$65536,IF(dati_pdc!$C410=2,dati_bdv!$D$2:$D$65536,IF(dati_pdc!$C410=3,dati_bdv!$E$2:$E$65536,IF(dati_pdc!$C410=4,dati_bdv!$F$2:$F$65536,IF(dati_pdc!$C410=5,dati_bdv!$G$2:$G$65536,dati_bdv!$H$2:$H$65536))))),$A410,dati_bdv!J$2:J$65536)","v":0},{"$f":"SUMIF(IF(dati_pdc!$C410=1,dati_bdv!$C$2:$C$65536,IF(dati_pdc!$C410=2,dati_bdv!$D$2:$D$65536,IF(dati_pdc!$C410=3,dati_bdv!$E$2:$E$65536,IF(dati_pdc!$C410=4,dati_bdv!$F$2:$F$65536,IF(dati_pdc!$C410=5,dati_bdv!$G$2:$G$65536,dati_bdv!$H$2:$H$65536))))),$A410,dati_bdv!K$2:K$65536)","v":0},{"$f":"SUMIF(IF(dati_pdc!$C410=1,dati_bdv!$C$2:$C$65536,IF(dati_pdc!$C410=2,dati_bdv!$D$2:$D$65536,IF(dati_pdc!$C410=3,dati_bdv!$E$2:$E$65536,IF(dati_pdc!$C410=4,dati_bdv!$F$2:$F$65536,IF(dati_pdc!$C410=5,dati_bdv!$G$2:$G$65536,dati_bdv!$H$2:$H$65536))))),$A410,dati_bdv!L$2:L$65536)","v":0},{"$f":"SUMIF(IF(dati_pdc!$C410=1,dati_bdv!$C$2:$C$65536,IF(dati_pdc!$C410=2,dati_bdv!$D$2:$D$65536,IF(dati_pdc!$C410=3,dati_bdv!$E$2:$E$65536,IF(dati_pdc!$C410=4,dati_bdv!$F$2:$F$65536,IF(dati_pdc!$C410=5,dati_bdv!$G$2:$G$65536,dati_bdv!$H$2:$H$65536))))),$A410,dati_bdv!M$2:M$65536)","v":0},{"$f":"SUMIF(IF(dati_pdc!$C410=1,dati_bdv!$C$2:$C$65536,IF(dati_pdc!$C410=2,dati_bdv!$D$2:$D$65536,IF(dati_pdc!$C410=3,dati_bdv!$E$2:$E$65536,IF(dati_pdc!$C410=4,dati_bdv!$F$2:$F$65536,IF(dati_pdc!$C410=5,dati_bdv!$G$2:$G$65536,dati_bdv!$H$2:$H$65536))))),$A410,dati_bdv!N$2:N$65536)","v":0}]
[{"$f":"dati_pdc!A411","v":0},{"$f":"SUMIF(IF(dati_pdc!$C411=1,dati_bdv!$C$2:$C$65536,IF(dati_pdc!$C411=2,dati_bdv!$D$2:$D$65536,IF(dati_pdc!$C411=3,dati_bdv!$E$2:$E$65536,IF(dati_pdc!$C411=4,dati_bdv!$F$2:$F$65536,IF(dati_pdc!$C411=5,dati_bdv!$G$2:$G$65536,dati_bdv!$H$2:$H$65536))))),$A411,dati_bdv!J$2:J$65536)","v":0},{"$f":"SUMIF(IF(dati_pdc!$C411=1,dati_bdv!$C$2:$C$65536,IF(dati_pdc!$C411=2,dati_bdv!$D$2:$D$65536,IF(dati_pdc!$C411=3,dati_bdv!$E$2:$E$65536,IF(dati_pdc!$C411=4,dati_bdv!$F$2:$F$65536,IF(dati_pdc!$C411=5,dati_bdv!$G$2:$G$65536,dati_bdv!$H$2:$H$65536))))),$A411,dati_bdv!K$2:K$65536)","v":0},{"$f":"SUMIF(IF(dati_pdc!$C411=1,dati_bdv!$C$2:$C$65536,IF(dati_pdc!$C411=2,dati_bdv!$D$2:$D$65536,IF(dati_pdc!$C411=3,dati_bdv!$E$2:$E$65536,IF(dati_pdc!$C411=4,dati_bdv!$F$2:$F$65536,IF(dati_pdc!$C411=5,dati_bdv!$G$2:$G$65536,dati_bdv!$H$2:$H$65536))))),$A411,dati_bdv!L$2:L$65536)","v":0},{"$f":"SUMIF(IF(dati_pdc!$C411=1,dati_bdv!$C$2:$C$65536,IF(dati_pdc!$C411=2,dati_bdv!$D$2:$D$65536,IF(dati_pdc!$C411=3,dati_bdv!$E$2:$E$65536,IF(dati_pdc!$C411=4,dati_bdv!$F$2:$F$65536,IF(dati_pdc!$C411=5,dati_bdv!$G$2:$G$65536,dati_bdv!$H$2:$H$65536))))),$A411,dati_bdv!M$2:M$65536)","v":0},{"$f":"SUMIF(IF(dati_pdc!$C411=1,dati_bdv!$C$2:$C$65536,IF(dati_pdc!$C411=2,dati_bdv!$D$2:$D$65536,IF(dati_pdc!$C411=3,dati_bdv!$E$2:$E$65536,IF(dati_pdc!$C411=4,dati_bdv!$F$2:$F$65536,IF(dati_pdc!$C411=5,dati_bdv!$G$2:$G$65536,dati_bdv!$H$2:$H$65536))))),$A411,dati_bdv!N$2:N$65536)","v":0}]
[{"$f":"dati_pdc!A412","v":0},{"$f":"SUMIF(IF(dati_pdc!$C412=1,dati_bdv!$C$2:$C$65536,IF(dati_pdc!$C412=2,dati_bdv!$D$2:$D$65536,IF(dati_pdc!$C412=3,dati_bdv!$E$2:$E$65536,IF(dati_pdc!$C412=4,dati_bdv!$F$2:$F$65536,IF(dati_pdc!$C412=5,dati_bdv!$G$2:$G$65536,dati_bdv!$H$2:$H$65536))))),$A412,dati_bdv!J$2:J$65536)","v":0},{"$f":"SUMIF(IF(dati_pdc!$C412=1,dati_bdv!$C$2:$C$65536,IF(dati_pdc!$C412=2,dati_bdv!$D$2:$D$65536,IF(dati_pdc!$C412=3,dati_bdv!$E$2:$E$65536,IF(dati_pdc!$C412=4,dati_bdv!$F$2:$F$65536,IF(dati_pdc!$C412=5,dati_bdv!$G$2:$G$65536,dati_bdv!$H$2:$H$65536))))),$A412,dati_bdv!K$2:K$65536)","v":0},{"$f":"SUMIF(IF(dati_pdc!$C412=1,dati_bdv!$C$2:$C$65536,IF(dati_pdc!$C412=2,dati_bdv!$D$2:$D$65536,IF(dati_pdc!$C412=3,dati_bdv!$E$2:$E$65536,IF(dati_pdc!$C412=4,dati_bdv!$F$2:$F$65536,IF(dati_pdc!$C412=5,dati_bdv!$G$2:$G$65536,dati_bdv!$H$2:$H$65536))))),$A412,dati_bdv!L$2:L$65536)","v":0},{"$f":"SUMIF(IF(dati_pdc!$C412=1,dati_bdv!$C$2:$C$65536,IF(dati_pdc!$C412=2,dati_bdv!$D$2:$D$65536,IF(dati_pdc!$C412=3,dati_bdv!$E$2:$E$65536,IF(dati_pdc!$C412=4,dati_bdv!$F$2:$F$65536,IF(dati_pdc!$C412=5,dati_bdv!$G$2:$G$65536,dati_bdv!$H$2:$H$65536))))),$A412,dati_bdv!M$2:M$65536)","v":0},{"$f":"SUMIF(IF(dati_pdc!$C412=1,dati_bdv!$C$2:$C$65536,IF(dati_pdc!$C412=2,dati_bdv!$D$2:$D$65536,IF(dati_pdc!$C412=3,dati_bdv!$E$2:$E$65536,IF(dati_pdc!$C412=4,dati_bdv!$F$2:$F$65536,IF(dati_pdc!$C412=5,dati_bdv!$G$2:$G$65536,dati_bdv!$H$2:$H$65536))))),$A412,dati_bdv!N$2:N$65536)","v":0}]
[{"$f":"dati_pdc!A413","v":0},{"$f":"SUMIF(IF(dati_pdc!$C413=1,dati_bdv!$C$2:$C$65536,IF(dati_pdc!$C413=2,dati_bdv!$D$2:$D$65536,IF(dati_pdc!$C413=3,dati_bdv!$E$2:$E$65536,IF(dati_pdc!$C413=4,dati_bdv!$F$2:$F$65536,IF(dati_pdc!$C413=5,dati_bdv!$G$2:$G$65536,dati_bdv!$H$2:$H$65536))))),$A413,dati_bdv!J$2:J$65536)","v":0},{"$f":"SUMIF(IF(dati_pdc!$C413=1,dati_bdv!$C$2:$C$65536,IF(dati_pdc!$C413=2,dati_bdv!$D$2:$D$65536,IF(dati_pdc!$C413=3,dati_bdv!$E$2:$E$65536,IF(dati_pdc!$C413=4,dati_bdv!$F$2:$F$65536,IF(dati_pdc!$C413=5,dati_bdv!$G$2:$G$65536,dati_bdv!$H$2:$H$65536))))),$A413,dati_bdv!K$2:K$65536)","v":0},{"$f":"SUMIF(IF(dati_pdc!$C413=1,dati_bdv!$C$2:$C$65536,IF(dati_pdc!$C413=2,dati_bdv!$D$2:$D$65536,IF(dati_pdc!$C413=3,dati_bdv!$E$2:$E$65536,IF(dati_pdc!$C413=4,dati_bdv!$F$2:$F$65536,IF(dati_pdc!$C413=5,dati_bdv!$G$2:$G$65536,dati_bdv!$H$2:$H$65536))))),$A413,dati_bdv!L$2:L$65536)","v":0},{"$f":"SUMIF(IF(dati_pdc!$C413=1,dati_bdv!$C$2:$C$65536,IF(dati_pdc!$C413=2,dati_bdv!$D$2:$D$65536,IF(dati_pdc!$C413=3,dati_bdv!$E$2:$E$65536,IF(dati_pdc!$C413=4,dati_bdv!$F$2:$F$65536,IF(dati_pdc!$C413=5,dati_bdv!$G$2:$G$65536,dati_bdv!$H$2:$H$65536))))),$A413,dati_bdv!M$2:M$65536)","v":0},{"$f":"SUMIF(IF(dati_pdc!$C413=1,dati_bdv!$C$2:$C$65536,IF(dati_pdc!$C413=2,dati_bdv!$D$2:$D$65536,IF(dati_pdc!$C413=3,dati_bdv!$E$2:$E$65536,IF(dati_pdc!$C413=4,dati_bdv!$F$2:$F$65536,IF(dati_pdc!$C413=5,dati_bdv!$G$2:$G$65536,dati_bdv!$H$2:$H$65536))))),$A413,dati_bdv!N$2:N$65536)","v":0}]
[{"$f":"dati_pdc!A414","v":0},{"$f":"SUMIF(IF(dati_pdc!$C414=1,dati_bdv!$C$2:$C$65536,IF(dati_pdc!$C414=2,dati_bdv!$D$2:$D$65536,IF(dati_pdc!$C414=3,dati_bdv!$E$2:$E$65536,IF(dati_pdc!$C414=4,dati_bdv!$F$2:$F$65536,IF(dati_pdc!$C414=5,dati_bdv!$G$2:$G$65536,dati_bdv!$H$2:$H$65536))))),$A414,dati_bdv!J$2:J$65536)","v":0},{"$f":"SUMIF(IF(dati_pdc!$C414=1,dati_bdv!$C$2:$C$65536,IF(dati_pdc!$C414=2,dati_bdv!$D$2:$D$65536,IF(dati_pdc!$C414=3,dati_bdv!$E$2:$E$65536,IF(dati_pdc!$C414=4,dati_bdv!$F$2:$F$65536,IF(dati_pdc!$C414=5,dati_bdv!$G$2:$G$65536,dati_bdv!$H$2:$H$65536))))),$A414,dati_bdv!K$2:K$65536)","v":0},{"$f":"SUMIF(IF(dati_pdc!$C414=1,dati_bdv!$C$2:$C$65536,IF(dati_pdc!$C414=2,dati_bdv!$D$2:$D$65536,IF(dati_pdc!$C414=3,dati_bdv!$E$2:$E$65536,IF(dati_pdc!$C414=4,dati_bdv!$F$2:$F$65536,IF(dati_pdc!$C414=5,dati_bdv!$G$2:$G$65536,dati_bdv!$H$2:$H$65536))))),$A414,dati_bdv!L$2:L$65536)","v":0},{"$f":"SUMIF(IF(dati_pdc!$C414=1,dati_bdv!$C$2:$C$65536,IF(dati_pdc!$C414=2,dati_bdv!$D$2:$D$65536,IF(dati_pdc!$C414=3,dati_bdv!$E$2:$E$65536,IF(dati_pdc!$C414=4,dati_bdv!$F$2:$F$65536,IF(dati_pdc!$C414=5,dati_bdv!$G$2:$G$65536,dati_bdv!$H$2:$H$65536))))),$A414,dati_bdv!M$2:M$65536)","v":0},{"$f":"SUMIF(IF(dati_pdc!$C414=1,dati_bdv!$C$2:$C$65536,IF(dati_pdc!$C414=2,dati_bdv!$D$2:$D$65536,IF(dati_pdc!$C414=3,dati_bdv!$E$2:$E$65536,IF(dati_pdc!$C414=4,dati_bdv!$F$2:$F$65536,IF(dati_pdc!$C414=5,dati_bdv!$G$2:$G$65536,dati_bdv!$H$2:$H$65536))))),$A414,dati_bdv!N$2:N$65536)","v":0}]
[{"$f":"dati_pdc!A415","v":0},{"$f":"SUMIF(IF(dati_pdc!$C415=1,dati_bdv!$C$2:$C$65536,IF(dati_pdc!$C415=2,dati_bdv!$D$2:$D$65536,IF(dati_pdc!$C415=3,dati_bdv!$E$2:$E$65536,IF(dati_pdc!$C415=4,dati_bdv!$F$2:$F$65536,IF(dati_pdc!$C415=5,dati_bdv!$G$2:$G$65536,dati_bdv!$H$2:$H$65536))))),$A415,dati_bdv!J$2:J$65536)","v":0},{"$f":"SUMIF(IF(dati_pdc!$C415=1,dati_bdv!$C$2:$C$65536,IF(dati_pdc!$C415=2,dati_bdv!$D$2:$D$65536,IF(dati_pdc!$C415=3,dati_bdv!$E$2:$E$65536,IF(dati_pdc!$C415=4,dati_bdv!$F$2:$F$65536,IF(dati_pdc!$C415=5,dati_bdv!$G$2:$G$65536,dati_bdv!$H$2:$H$65536))))),$A415,dati_bdv!K$2:K$65536)","v":0},{"$f":"SUMIF(IF(dati_pdc!$C415=1,dati_bdv!$C$2:$C$65536,IF(dati_pdc!$C415=2,dati_bdv!$D$2:$D$65536,IF(dati_pdc!$C415=3,dati_bdv!$E$2:$E$65536,IF(dati_pdc!$C415=4,dati_bdv!$F$2:$F$65536,IF(dati_pdc!$C415=5,dati_bdv!$G$2:$G$65536,dati_bdv!$H$2:$H$65536))))),$A415,dati_bdv!L$2:L$65536)","v":0},{"$f":"SUMIF(IF(dati_pdc!$C415=1,dati_bdv!$C$2:$C$65536,IF(dati_pdc!$C415=2,dati_bdv!$D$2:$D$65536,IF(dati_pdc!$C415=3,dati_bdv!$E$2:$E$65536,IF(dati_pdc!$C415=4,dati_bdv!$F$2:$F$65536,IF(dati_pdc!$C415=5,dati_bdv!$G$2:$G$65536,dati_bdv!$H$2:$H$65536))))),$A415,dati_bdv!M$2:M$65536)","v":0},{"$f":"SUMIF(IF(dati_pdc!$C415=1,dati_bdv!$C$2:$C$65536,IF(dati_pdc!$C415=2,dati_bdv!$D$2:$D$65536,IF(dati_pdc!$C415=3,dati_bdv!$E$2:$E$65536,IF(dati_pdc!$C415=4,dati_bdv!$F$2:$F$65536,IF(dati_pdc!$C415=5,dati_bdv!$G$2:$G$65536,dati_bdv!$H$2:$H$65536))))),$A415,dati_bdv!N$2:N$65536)","v":0}]
[{"$f":"dati_pdc!A416","v":0},{"$f":"SUMIF(IF(dati_pdc!$C416=1,dati_bdv!$C$2:$C$65536,IF(dati_pdc!$C416=2,dati_bdv!$D$2:$D$65536,IF(dati_pdc!$C416=3,dati_bdv!$E$2:$E$65536,IF(dati_pdc!$C416=4,dati_bdv!$F$2:$F$65536,IF(dati_pdc!$C416=5,dati_bdv!$G$2:$G$65536,dati_bdv!$H$2:$H$65536))))),$A416,dati_bdv!J$2:J$65536)","v":0},{"$f":"SUMIF(IF(dati_pdc!$C416=1,dati_bdv!$C$2:$C$65536,IF(dati_pdc!$C416=2,dati_bdv!$D$2:$D$65536,IF(dati_pdc!$C416=3,dati_bdv!$E$2:$E$65536,IF(dati_pdc!$C416=4,dati_bdv!$F$2:$F$65536,IF(dati_pdc!$C416=5,dati_bdv!$G$2:$G$65536,dati_bdv!$H$2:$H$65536))))),$A416,dati_bdv!K$2:K$65536)","v":0},{"$f":"SUMIF(IF(dati_pdc!$C416=1,dati_bdv!$C$2:$C$65536,IF(dati_pdc!$C416=2,dati_bdv!$D$2:$D$65536,IF(dati_pdc!$C416=3,dati_bdv!$E$2:$E$65536,IF(dati_pdc!$C416=4,dati_bdv!$F$2:$F$65536,IF(dati_pdc!$C416=5,dati_bdv!$G$2:$G$65536,dati_bdv!$H$2:$H$65536))))),$A416,dati_bdv!L$2:L$65536)","v":0},{"$f":"SUMIF(IF(dati_pdc!$C416=1,dati_bdv!$C$2:$C$65536,IF(dati_pdc!$C416=2,dati_bdv!$D$2:$D$65536,IF(dati_pdc!$C416=3,dati_bdv!$E$2:$E$65536,IF(dati_pdc!$C416=4,dati_bdv!$F$2:$F$65536,IF(dati_pdc!$C416=5,dati_bdv!$G$2:$G$65536,dati_bdv!$H$2:$H$65536))))),$A416,dati_bdv!M$2:M$65536)","v":0},{"$f":"SUMIF(IF(dati_pdc!$C416=1,dati_bdv!$C$2:$C$65536,IF(dati_pdc!$C416=2,dati_bdv!$D$2:$D$65536,IF(dati_pdc!$C416=3,dati_bdv!$E$2:$E$65536,IF(dati_pdc!$C416=4,dati_bdv!$F$2:$F$65536,IF(dati_pdc!$C416=5,dati_bdv!$G$2:$G$65536,dati_bdv!$H$2:$H$65536))))),$A416,dati_bdv!N$2:N$65536)","v":0}]
[{"$f":"dati_pdc!A417","v":0},{"$f":"SUMIF(IF(dati_pdc!$C417=1,dati_bdv!$C$2:$C$65536,IF(dati_pdc!$C417=2,dati_bdv!$D$2:$D$65536,IF(dati_pdc!$C417=3,dati_bdv!$E$2:$E$65536,IF(dati_pdc!$C417=4,dati_bdv!$F$2:$F$65536,IF(dati_pdc!$C417=5,dati_bdv!$G$2:$G$65536,dati_bdv!$H$2:$H$65536))))),$A417,dati_bdv!J$2:J$65536)","v":0},{"$f":"SUMIF(IF(dati_pdc!$C417=1,dati_bdv!$C$2:$C$65536,IF(dati_pdc!$C417=2,dati_bdv!$D$2:$D$65536,IF(dati_pdc!$C417=3,dati_bdv!$E$2:$E$65536,IF(dati_pdc!$C417=4,dati_bdv!$F$2:$F$65536,IF(dati_pdc!$C417=5,dati_bdv!$G$2:$G$65536,dati_bdv!$H$2:$H$65536))))),$A417,dati_bdv!K$2:K$65536)","v":0},{"$f":"SUMIF(IF(dati_pdc!$C417=1,dati_bdv!$C$2:$C$65536,IF(dati_pdc!$C417=2,dati_bdv!$D$2:$D$65536,IF(dati_pdc!$C417=3,dati_bdv!$E$2:$E$65536,IF(dati_pdc!$C417=4,dati_bdv!$F$2:$F$65536,IF(dati_pdc!$C417=5,dati_bdv!$G$2:$G$65536,dati_bdv!$H$2:$H$65536))))),$A417,dati_bdv!L$2:L$65536)","v":0},{"$f":"SUMIF(IF(dati_pdc!$C417=1,dati_bdv!$C$2:$C$65536,IF(dati_pdc!$C417=2,dati_bdv!$D$2:$D$65536,IF(dati_pdc!$C417=3,dati_bdv!$E$2:$E$65536,IF(dati_pdc!$C417=4,dati_bdv!$F$2:$F$65536,IF(dati_pdc!$C417=5,dati_bdv!$G$2:$G$65536,dati_bdv!$H$2:$H$65536))))),$A417,dati_bdv!M$2:M$65536)","v":0},{"$f":"SUMIF(IF(dati_pdc!$C417=1,dati_bdv!$C$2:$C$65536,IF(dati_pdc!$C417=2,dati_bdv!$D$2:$D$65536,IF(dati_pdc!$C417=3,dati_bdv!$E$2:$E$65536,IF(dati_pdc!$C417=4,dati_bdv!$F$2:$F$65536,IF(dati_pdc!$C417=5,dati_bdv!$G$2:$G$65536,dati_bdv!$H$2:$H$65536))))),$A417,dati_bdv!N$2:N$65536)","v":0}]
[{"$f":"dati_pdc!A418","v":0},{"$f":"SUMIF(IF(dati_pdc!$C418=1,dati_bdv!$C$2:$C$65536,IF(dati_pdc!$C418=2,dati_bdv!$D$2:$D$65536,IF(dati_pdc!$C418=3,dati_bdv!$E$2:$E$65536,IF(dati_pdc!$C418=4,dati_bdv!$F$2:$F$65536,IF(dati_pdc!$C418=5,dati_bdv!$G$2:$G$65536,dati_bdv!$H$2:$H$65536))))),$A418,dati_bdv!J$2:J$65536)","v":0},{"$f":"SUMIF(IF(dati_pdc!$C418=1,dati_bdv!$C$2:$C$65536,IF(dati_pdc!$C418=2,dati_bdv!$D$2:$D$65536,IF(dati_pdc!$C418=3,dati_bdv!$E$2:$E$65536,IF(dati_pdc!$C418=4,dati_bdv!$F$2:$F$65536,IF(dati_pdc!$C418=5,dati_bdv!$G$2:$G$65536,dati_bdv!$H$2:$H$65536))))),$A418,dati_bdv!K$2:K$65536)","v":0},{"$f":"SUMIF(IF(dati_pdc!$C418=1,dati_bdv!$C$2:$C$65536,IF(dati_pdc!$C418=2,dati_bdv!$D$2:$D$65536,IF(dati_pdc!$C418=3,dati_bdv!$E$2:$E$65536,IF(dati_pdc!$C418=4,dati_bdv!$F$2:$F$65536,IF(dati_pdc!$C418=5,dati_bdv!$G$2:$G$65536,dati_bdv!$H$2:$H$65536))))),$A418,dati_bdv!L$2:L$65536)","v":0},{"$f":"SUMIF(IF(dati_pdc!$C418=1,dati_bdv!$C$2:$C$65536,IF(dati_pdc!$C418=2,dati_bdv!$D$2:$D$65536,IF(dati_pdc!$C418=3,dati_bdv!$E$2:$E$65536,IF(dati_pdc!$C418=4,dati_bdv!$F$2:$F$65536,IF(dati_pdc!$C418=5,dati_bdv!$G$2:$G$65536,dati_bdv!$H$2:$H$65536))))),$A418,dati_bdv!M$2:M$65536)","v":0},{"$f":"SUMIF(IF(dati_pdc!$C418=1,dati_bdv!$C$2:$C$65536,IF(dati_pdc!$C418=2,dati_bdv!$D$2:$D$65536,IF(dati_pdc!$C418=3,dati_bdv!$E$2:$E$65536,IF(dati_pdc!$C418=4,dati_bdv!$F$2:$F$65536,IF(dati_pdc!$C418=5,dati_bdv!$G$2:$G$65536,dati_bdv!$H$2:$H$65536))))),$A418,dati_bdv!N$2:N$65536)","v":0}]
[{"$f":"dati_pdc!A419","v":0},{"$f":"SUMIF(IF(dati_pdc!$C419=1,dati_bdv!$C$2:$C$65536,IF(dati_pdc!$C419=2,dati_bdv!$D$2:$D$65536,IF(dati_pdc!$C419=3,dati_bdv!$E$2:$E$65536,IF(dati_pdc!$C419=4,dati_bdv!$F$2:$F$65536,IF(dati_pdc!$C419=5,dati_bdv!$G$2:$G$65536,dati_bdv!$H$2:$H$65536))))),$A419,dati_bdv!J$2:J$65536)","v":0},{"$f":"SUMIF(IF(dati_pdc!$C419=1,dati_bdv!$C$2:$C$65536,IF(dati_pdc!$C419=2,dati_bdv!$D$2:$D$65536,IF(dati_pdc!$C419=3,dati_bdv!$E$2:$E$65536,IF(dati_pdc!$C419=4,dati_bdv!$F$2:$F$65536,IF(dati_pdc!$C419=5,dati_bdv!$G$2:$G$65536,dati_bdv!$H$2:$H$65536))))),$A419,dati_bdv!K$2:K$65536)","v":0},{"$f":"SUMIF(IF(dati_pdc!$C419=1,dati_bdv!$C$2:$C$65536,IF(dati_pdc!$C419=2,dati_bdv!$D$2:$D$65536,IF(dati_pdc!$C419=3,dati_bdv!$E$2:$E$65536,IF(dati_pdc!$C419=4,dati_bdv!$F$2:$F$65536,IF(dati_pdc!$C419=5,dati_bdv!$G$2:$G$65536,dati_bdv!$H$2:$H$65536))))),$A419,dati_bdv!L$2:L$65536)","v":0},{"$f":"SUMIF(IF(dati_pdc!$C419=1,dati_bdv!$C$2:$C$65536,IF(dati_pdc!$C419=2,dati_bdv!$D$2:$D$65536,IF(dati_pdc!$C419=3,dati_bdv!$E$2:$E$65536,IF(dati_pdc!$C419=4,dati_bdv!$F$2:$F$65536,IF(dati_pdc!$C419=5,dati_bdv!$G$2:$G$65536,dati_bdv!$H$2:$H$65536))))),$A419,dati_bdv!M$2:M$65536)","v":0},{"$f":"SUMIF(IF(dati_pdc!$C419=1,dati_bdv!$C$2:$C$65536,IF(dati_pdc!$C419=2,dati_bdv!$D$2:$D$65536,IF(dati_pdc!$C419=3,dati_bdv!$E$2:$E$65536,IF(dati_pdc!$C419=4,dati_bdv!$F$2:$F$65536,IF(dati_pdc!$C419=5,dati_bdv!$G$2:$G$65536,dati_bdv!$H$2:$H$65536))))),$A419,dati_bdv!N$2:N$65536)","v":0}]
[{"$f":"dati_pdc!A420","v":0},{"$f":"SUMIF(IF(dati_pdc!$C420=1,dati_bdv!$C$2:$C$65536,IF(dati_pdc!$C420=2,dati_bdv!$D$2:$D$65536,IF(dati_pdc!$C420=3,dati_bdv!$E$2:$E$65536,IF(dati_pdc!$C420=4,dati_bdv!$F$2:$F$65536,IF(dati_pdc!$C420=5,dati_bdv!$G$2:$G$65536,dati_bdv!$H$2:$H$65536))))),$A420,dati_bdv!J$2:J$65536)","v":0},{"$f":"SUMIF(IF(dati_pdc!$C420=1,dati_bdv!$C$2:$C$65536,IF(dati_pdc!$C420=2,dati_bdv!$D$2:$D$65536,IF(dati_pdc!$C420=3,dati_bdv!$E$2:$E$65536,IF(dati_pdc!$C420=4,dati_bdv!$F$2:$F$65536,IF(dati_pdc!$C420=5,dati_bdv!$G$2:$G$65536,dati_bdv!$H$2:$H$65536))))),$A420,dati_bdv!K$2:K$65536)","v":0},{"$f":"SUMIF(IF(dati_pdc!$C420=1,dati_bdv!$C$2:$C$65536,IF(dati_pdc!$C420=2,dati_bdv!$D$2:$D$65536,IF(dati_pdc!$C420=3,dati_bdv!$E$2:$E$65536,IF(dati_pdc!$C420=4,dati_bdv!$F$2:$F$65536,IF(dati_pdc!$C420=5,dati_bdv!$G$2:$G$65536,dati_bdv!$H$2:$H$65536))))),$A420,dati_bdv!L$2:L$65536)","v":0},{"$f":"SUMIF(IF(dati_pdc!$C420=1,dati_bdv!$C$2:$C$65536,IF(dati_pdc!$C420=2,dati_bdv!$D$2:$D$65536,IF(dati_pdc!$C420=3,dati_bdv!$E$2:$E$65536,IF(dati_pdc!$C420=4,dati_bdv!$F$2:$F$65536,IF(dati_pdc!$C420=5,dati_bdv!$G$2:$G$65536,dati_bdv!$H$2:$H$65536))))),$A420,dati_bdv!M$2:M$65536)","v":0},{"$f":"SUMIF(IF(dati_pdc!$C420=1,dati_bdv!$C$2:$C$65536,IF(dati_pdc!$C420=2,dati_bdv!$D$2:$D$65536,IF(dati_pdc!$C420=3,dati_bdv!$E$2:$E$65536,IF(dati_pdc!$C420=4,dati_bdv!$F$2:$F$65536,IF(dati_pdc!$C420=5,dati_bdv!$G$2:$G$65536,dati_bdv!$H$2:$H$65536))))),$A420,dati_bdv!N$2:N$65536)","v":0}]
[{"$f":"dati_pdc!A421","v":0},{"$f":"SUMIF(IF(dati_pdc!$C421=1,dati_bdv!$C$2:$C$65536,IF(dati_pdc!$C421=2,dati_bdv!$D$2:$D$65536,IF(dati_pdc!$C421=3,dati_bdv!$E$2:$E$65536,IF(dati_pdc!$C421=4,dati_bdv!$F$2:$F$65536,IF(dati_pdc!$C421=5,dati_bdv!$G$2:$G$65536,dati_bdv!$H$2:$H$65536))))),$A421,dati_bdv!J$2:J$65536)","v":0},{"$f":"SUMIF(IF(dati_pdc!$C421=1,dati_bdv!$C$2:$C$65536,IF(dati_pdc!$C421=2,dati_bdv!$D$2:$D$65536,IF(dati_pdc!$C421=3,dati_bdv!$E$2:$E$65536,IF(dati_pdc!$C421=4,dati_bdv!$F$2:$F$65536,IF(dati_pdc!$C421=5,dati_bdv!$G$2:$G$65536,dati_bdv!$H$2:$H$65536))))),$A421,dati_bdv!K$2:K$65536)","v":0},{"$f":"SUMIF(IF(dati_pdc!$C421=1,dati_bdv!$C$2:$C$65536,IF(dati_pdc!$C421=2,dati_bdv!$D$2:$D$65536,IF(dati_pdc!$C421=3,dati_bdv!$E$2:$E$65536,IF(dati_pdc!$C421=4,dati_bdv!$F$2:$F$65536,IF(dati_pdc!$C421=5,dati_bdv!$G$2:$G$65536,dati_bdv!$H$2:$H$65536))))),$A421,dati_bdv!L$2:L$65536)","v":0},{"$f":"SUMIF(IF(dati_pdc!$C421=1,dati_bdv!$C$2:$C$65536,IF(dati_pdc!$C421=2,dati_bdv!$D$2:$D$65536,IF(dati_pdc!$C421=3,dati_bdv!$E$2:$E$65536,IF(dati_pdc!$C421=4,dati_bdv!$F$2:$F$65536,IF(dati_pdc!$C421=5,dati_bdv!$G$2:$G$65536,dati_bdv!$H$2:$H$65536))))),$A421,dati_bdv!M$2:M$65536)","v":0},{"$f":"SUMIF(IF(dati_pdc!$C421=1,dati_bdv!$C$2:$C$65536,IF(dati_pdc!$C421=2,dati_bdv!$D$2:$D$65536,IF(dati_pdc!$C421=3,dati_bdv!$E$2:$E$65536,IF(dati_pdc!$C421=4,dati_bdv!$F$2:$F$65536,IF(dati_pdc!$C421=5,dati_bdv!$G$2:$G$65536,dati_bdv!$H$2:$H$65536))))),$A421,dati_bdv!N$2:N$65536)","v":0}]
[{"$f":"dati_pdc!A422","v":0},{"$f":"SUMIF(IF(dati_pdc!$C422=1,dati_bdv!$C$2:$C$65536,IF(dati_pdc!$C422=2,dati_bdv!$D$2:$D$65536,IF(dati_pdc!$C422=3,dati_bdv!$E$2:$E$65536,IF(dati_pdc!$C422=4,dati_bdv!$F$2:$F$65536,IF(dati_pdc!$C422=5,dati_bdv!$G$2:$G$65536,dati_bdv!$H$2:$H$65536))))),$A422,dati_bdv!J$2:J$65536)","v":0},{"$f":"SUMIF(IF(dati_pdc!$C422=1,dati_bdv!$C$2:$C$65536,IF(dati_pdc!$C422=2,dati_bdv!$D$2:$D$65536,IF(dati_pdc!$C422=3,dati_bdv!$E$2:$E$65536,IF(dati_pdc!$C422=4,dati_bdv!$F$2:$F$65536,IF(dati_pdc!$C422=5,dati_bdv!$G$2:$G$65536,dati_bdv!$H$2:$H$65536))))),$A422,dati_bdv!K$2:K$65536)","v":0},{"$f":"SUMIF(IF(dati_pdc!$C422=1,dati_bdv!$C$2:$C$65536,IF(dati_pdc!$C422=2,dati_bdv!$D$2:$D$65536,IF(dati_pdc!$C422=3,dati_bdv!$E$2:$E$65536,IF(dati_pdc!$C422=4,dati_bdv!$F$2:$F$65536,IF(dati_pdc!$C422=5,dati_bdv!$G$2:$G$65536,dati_bdv!$H$2:$H$65536))))),$A422,dati_bdv!L$2:L$65536)","v":0},{"$f":"SUMIF(IF(dati_pdc!$C422=1,dati_bdv!$C$2:$C$65536,IF(dati_pdc!$C422=2,dati_bdv!$D$2:$D$65536,IF(dati_pdc!$C422=3,dati_bdv!$E$2:$E$65536,IF(dati_pdc!$C422=4,dati_bdv!$F$2:$F$65536,IF(dati_pdc!$C422=5,dati_bdv!$G$2:$G$65536,dati_bdv!$H$2:$H$65536))))),$A422,dati_bdv!M$2:M$65536)","v":0},{"$f":"SUMIF(IF(dati_pdc!$C422=1,dati_bdv!$C$2:$C$65536,IF(dati_pdc!$C422=2,dati_bdv!$D$2:$D$65536,IF(dati_pdc!$C422=3,dati_bdv!$E$2:$E$65536,IF(dati_pdc!$C422=4,dati_bdv!$F$2:$F$65536,IF(dati_pdc!$C422=5,dati_bdv!$G$2:$G$65536,dati_bdv!$H$2:$H$65536))))),$A422,dati_bdv!N$2:N$65536)","v":0}]
[{"$f":"dati_pdc!A423","v":0},{"$f":"SUMIF(IF(dati_pdc!$C423=1,dati_bdv!$C$2:$C$65536,IF(dati_pdc!$C423=2,dati_bdv!$D$2:$D$65536,IF(dati_pdc!$C423=3,dati_bdv!$E$2:$E$65536,IF(dati_pdc!$C423=4,dati_bdv!$F$2:$F$65536,IF(dati_pdc!$C423=5,dati_bdv!$G$2:$G$65536,dati_bdv!$H$2:$H$65536))))),$A423,dati_bdv!J$2:J$65536)","v":0},{"$f":"SUMIF(IF(dati_pdc!$C423=1,dati_bdv!$C$2:$C$65536,IF(dati_pdc!$C423=2,dati_bdv!$D$2:$D$65536,IF(dati_pdc!$C423=3,dati_bdv!$E$2:$E$65536,IF(dati_pdc!$C423=4,dati_bdv!$F$2:$F$65536,IF(dati_pdc!$C423=5,dati_bdv!$G$2:$G$65536,dati_bdv!$H$2:$H$65536))))),$A423,dati_bdv!K$2:K$65536)","v":0},{"$f":"SUMIF(IF(dati_pdc!$C423=1,dati_bdv!$C$2:$C$65536,IF(dati_pdc!$C423=2,dati_bdv!$D$2:$D$65536,IF(dati_pdc!$C423=3,dati_bdv!$E$2:$E$65536,IF(dati_pdc!$C423=4,dati_bdv!$F$2:$F$65536,IF(dati_pdc!$C423=5,dati_bdv!$G$2:$G$65536,dati_bdv!$H$2:$H$65536))))),$A423,dati_bdv!L$2:L$65536)","v":0},{"$f":"SUMIF(IF(dati_pdc!$C423=1,dati_bdv!$C$2:$C$65536,IF(dati_pdc!$C423=2,dati_bdv!$D$2:$D$65536,IF(dati_pdc!$C423=3,dati_bdv!$E$2:$E$65536,IF(dati_pdc!$C423=4,dati_bdv!$F$2:$F$65536,IF(dati_pdc!$C423=5,dati_bdv!$G$2:$G$65536,dati_bdv!$H$2:$H$65536))))),$A423,dati_bdv!M$2:M$65536)","v":0},{"$f":"SUMIF(IF(dati_pdc!$C423=1,dati_bdv!$C$2:$C$65536,IF(dati_pdc!$C423=2,dati_bdv!$D$2:$D$65536,IF(dati_pdc!$C423=3,dati_bdv!$E$2:$E$65536,IF(dati_pdc!$C423=4,dati_bdv!$F$2:$F$65536,IF(dati_pdc!$C423=5,dati_bdv!$G$2:$G$65536,dati_bdv!$H$2:$H$65536))))),$A423,dati_bdv!N$2:N$65536)","v":0}]
[{"$f":"dati_pdc!A424","v":0},{"$f":"SUMIF(IF(dati_pdc!$C424=1,dati_bdv!$C$2:$C$65536,IF(dati_pdc!$C424=2,dati_bdv!$D$2:$D$65536,IF(dati_pdc!$C424=3,dati_bdv!$E$2:$E$65536,IF(dati_pdc!$C424=4,dati_bdv!$F$2:$F$65536,IF(dati_pdc!$C424=5,dati_bdv!$G$2:$G$65536,dati_bdv!$H$2:$H$65536))))),$A424,dati_bdv!J$2:J$65536)","v":0},{"$f":"SUMIF(IF(dati_pdc!$C424=1,dati_bdv!$C$2:$C$65536,IF(dati_pdc!$C424=2,dati_bdv!$D$2:$D$65536,IF(dati_pdc!$C424=3,dati_bdv!$E$2:$E$65536,IF(dati_pdc!$C424=4,dati_bdv!$F$2:$F$65536,IF(dati_pdc!$C424=5,dati_bdv!$G$2:$G$65536,dati_bdv!$H$2:$H$65536))))),$A424,dati_bdv!K$2:K$65536)","v":0},{"$f":"SUMIF(IF(dati_pdc!$C424=1,dati_bdv!$C$2:$C$65536,IF(dati_pdc!$C424=2,dati_bdv!$D$2:$D$65536,IF(dati_pdc!$C424=3,dati_bdv!$E$2:$E$65536,IF(dati_pdc!$C424=4,dati_bdv!$F$2:$F$65536,IF(dati_pdc!$C424=5,dati_bdv!$G$2:$G$65536,dati_bdv!$H$2:$H$65536))))),$A424,dati_bdv!L$2:L$65536)","v":0},{"$f":"SUMIF(IF(dati_pdc!$C424=1,dati_bdv!$C$2:$C$65536,IF(dati_pdc!$C424=2,dati_bdv!$D$2:$D$65536,IF(dati_pdc!$C424=3,dati_bdv!$E$2:$E$65536,IF(dati_pdc!$C424=4,dati_bdv!$F$2:$F$65536,IF(dati_pdc!$C424=5,dati_bdv!$G$2:$G$65536,dati_bdv!$H$2:$H$65536))))),$A424,dati_bdv!M$2:M$65536)","v":0},{"$f":"SUMIF(IF(dati_pdc!$C424=1,dati_bdv!$C$2:$C$65536,IF(dati_pdc!$C424=2,dati_bdv!$D$2:$D$65536,IF(dati_pdc!$C424=3,dati_bdv!$E$2:$E$65536,IF(dati_pdc!$C424=4,dati_bdv!$F$2:$F$65536,IF(dati_pdc!$C424=5,dati_bdv!$G$2:$G$65536,dati_bdv!$H$2:$H$65536))))),$A424,dati_bdv!N$2:N$65536)","v":0}]
[{"$f":"dati_pdc!A425","v":0},{"$f":"SUMIF(IF(dati_pdc!$C425=1,dati_bdv!$C$2:$C$65536,IF(dati_pdc!$C425=2,dati_bdv!$D$2:$D$65536,IF(dati_pdc!$C425=3,dati_bdv!$E$2:$E$65536,IF(dati_pdc!$C425=4,dati_bdv!$F$2:$F$65536,IF(dati_pdc!$C425=5,dati_bdv!$G$2:$G$65536,dati_bdv!$H$2:$H$65536))))),$A425,dati_bdv!J$2:J$65536)","v":0},{"$f":"SUMIF(IF(dati_pdc!$C425=1,dati_bdv!$C$2:$C$65536,IF(dati_pdc!$C425=2,dati_bdv!$D$2:$D$65536,IF(dati_pdc!$C425=3,dati_bdv!$E$2:$E$65536,IF(dati_pdc!$C425=4,dati_bdv!$F$2:$F$65536,IF(dati_pdc!$C425=5,dati_bdv!$G$2:$G$65536,dati_bdv!$H$2:$H$65536))))),$A425,dati_bdv!K$2:K$65536)","v":0},{"$f":"SUMIF(IF(dati_pdc!$C425=1,dati_bdv!$C$2:$C$65536,IF(dati_pdc!$C425=2,dati_bdv!$D$2:$D$65536,IF(dati_pdc!$C425=3,dati_bdv!$E$2:$E$65536,IF(dati_pdc!$C425=4,dati_bdv!$F$2:$F$65536,IF(dati_pdc!$C425=5,dati_bdv!$G$2:$G$65536,dati_bdv!$H$2:$H$65536))))),$A425,dati_bdv!L$2:L$65536)","v":0},{"$f":"SUMIF(IF(dati_pdc!$C425=1,dati_bdv!$C$2:$C$65536,IF(dati_pdc!$C425=2,dati_bdv!$D$2:$D$65536,IF(dati_pdc!$C425=3,dati_bdv!$E$2:$E$65536,IF(dati_pdc!$C425=4,dati_bdv!$F$2:$F$65536,IF(dati_pdc!$C425=5,dati_bdv!$G$2:$G$65536,dati_bdv!$H$2:$H$65536))))),$A425,dati_bdv!M$2:M$65536)","v":0},{"$f":"SUMIF(IF(dati_pdc!$C425=1,dati_bdv!$C$2:$C$65536,IF(dati_pdc!$C425=2,dati_bdv!$D$2:$D$65536,IF(dati_pdc!$C425=3,dati_bdv!$E$2:$E$65536,IF(dati_pdc!$C425=4,dati_bdv!$F$2:$F$65536,IF(dati_pdc!$C425=5,dati_bdv!$G$2:$G$65536,dati_bdv!$H$2:$H$65536))))),$A425,dati_bdv!N$2:N$65536)","v":0}]
[{"$f":"dati_pdc!A426","v":0},{"$f":"SUMIF(IF(dati_pdc!$C426=1,dati_bdv!$C$2:$C$65536,IF(dati_pdc!$C426=2,dati_bdv!$D$2:$D$65536,IF(dati_pdc!$C426=3,dati_bdv!$E$2:$E$65536,IF(dati_pdc!$C426=4,dati_bdv!$F$2:$F$65536,IF(dati_pdc!$C426=5,dati_bdv!$G$2:$G$65536,dati_bdv!$H$2:$H$65536))))),$A426,dati_bdv!J$2:J$65536)","v":0},{"$f":"SUMIF(IF(dati_pdc!$C426=1,dati_bdv!$C$2:$C$65536,IF(dati_pdc!$C426=2,dati_bdv!$D$2:$D$65536,IF(dati_pdc!$C426=3,dati_bdv!$E$2:$E$65536,IF(dati_pdc!$C426=4,dati_bdv!$F$2:$F$65536,IF(dati_pdc!$C426=5,dati_bdv!$G$2:$G$65536,dati_bdv!$H$2:$H$65536))))),$A426,dati_bdv!K$2:K$65536)","v":0},{"$f":"SUMIF(IF(dati_pdc!$C426=1,dati_bdv!$C$2:$C$65536,IF(dati_pdc!$C426=2,dati_bdv!$D$2:$D$65536,IF(dati_pdc!$C426=3,dati_bdv!$E$2:$E$65536,IF(dati_pdc!$C426=4,dati_bdv!$F$2:$F$65536,IF(dati_pdc!$C426=5,dati_bdv!$G$2:$G$65536,dati_bdv!$H$2:$H$65536))))),$A426,dati_bdv!L$2:L$65536)","v":0},{"$f":"SUMIF(IF(dati_pdc!$C426=1,dati_bdv!$C$2:$C$65536,IF(dati_pdc!$C426=2,dati_bdv!$D$2:$D$65536,IF(dati_pdc!$C426=3,dati_bdv!$E$2:$E$65536,IF(dati_pdc!$C426=4,dati_bdv!$F$2:$F$65536,IF(dati_pdc!$C426=5,dati_bdv!$G$2:$G$65536,dati_bdv!$H$2:$H$65536))))),$A426,dati_bdv!M$2:M$65536)","v":0},{"$f":"SUMIF(IF(dati_pdc!$C426=1,dati_bdv!$C$2:$C$65536,IF(dati_pdc!$C426=2,dati_bdv!$D$2:$D$65536,IF(dati_pdc!$C426=3,dati_bdv!$E$2:$E$65536,IF(dati_pdc!$C426=4,dati_bdv!$F$2:$F$65536,IF(dati_pdc!$C426=5,dati_bdv!$G$2:$G$65536,dati_bdv!$H$2:$H$65536))))),$A426,dati_bdv!N$2:N$65536)","v":0}]
[{"$f":"dati_pdc!A427","v":0},{"$f":"SUMIF(IF(dati_pdc!$C427=1,dati_bdv!$C$2:$C$65536,IF(dati_pdc!$C427=2,dati_bdv!$D$2:$D$65536,IF(dati_pdc!$C427=3,dati_bdv!$E$2:$E$65536,IF(dati_pdc!$C427=4,dati_bdv!$F$2:$F$65536,IF(dati_pdc!$C427=5,dati_bdv!$G$2:$G$65536,dati_bdv!$H$2:$H$65536))))),$A427,dati_bdv!J$2:J$65536)","v":0},{"$f":"SUMIF(IF(dati_pdc!$C427=1,dati_bdv!$C$2:$C$65536,IF(dati_pdc!$C427=2,dati_bdv!$D$2:$D$65536,IF(dati_pdc!$C427=3,dati_bdv!$E$2:$E$65536,IF(dati_pdc!$C427=4,dati_bdv!$F$2:$F$65536,IF(dati_pdc!$C427=5,dati_bdv!$G$2:$G$65536,dati_bdv!$H$2:$H$65536))))),$A427,dati_bdv!K$2:K$65536)","v":0},{"$f":"SUMIF(IF(dati_pdc!$C427=1,dati_bdv!$C$2:$C$65536,IF(dati_pdc!$C427=2,dati_bdv!$D$2:$D$65536,IF(dati_pdc!$C427=3,dati_bdv!$E$2:$E$65536,IF(dati_pdc!$C427=4,dati_bdv!$F$2:$F$65536,IF(dati_pdc!$C427=5,dati_bdv!$G$2:$G$65536,dati_bdv!$H$2:$H$65536))))),$A427,dati_bdv!L$2:L$65536)","v":0},{"$f":"SUMIF(IF(dati_pdc!$C427=1,dati_bdv!$C$2:$C$65536,IF(dati_pdc!$C427=2,dati_bdv!$D$2:$D$65536,IF(dati_pdc!$C427=3,dati_bdv!$E$2:$E$65536,IF(dati_pdc!$C427=4,dati_bdv!$F$2:$F$65536,IF(dati_pdc!$C427=5,dati_bdv!$G$2:$G$65536,dati_bdv!$H$2:$H$65536))))),$A427,dati_bdv!M$2:M$65536)","v":0},{"$f":"SUMIF(IF(dati_pdc!$C427=1,dati_bdv!$C$2:$C$65536,IF(dati_pdc!$C427=2,dati_bdv!$D$2:$D$65536,IF(dati_pdc!$C427=3,dati_bdv!$E$2:$E$65536,IF(dati_pdc!$C427=4,dati_bdv!$F$2:$F$65536,IF(dati_pdc!$C427=5,dati_bdv!$G$2:$G$65536,dati_bdv!$H$2:$H$65536))))),$A427,dati_bdv!N$2:N$65536)","v":0}]
[{"$f":"dati_pdc!A428","v":0},{"$f":"SUMIF(IF(dati_pdc!$C428=1,dati_bdv!$C$2:$C$65536,IF(dati_pdc!$C428=2,dati_bdv!$D$2:$D$65536,IF(dati_pdc!$C428=3,dati_bdv!$E$2:$E$65536,IF(dati_pdc!$C428=4,dati_bdv!$F$2:$F$65536,IF(dati_pdc!$C428=5,dati_bdv!$G$2:$G$65536,dati_bdv!$H$2:$H$65536))))),$A428,dati_bdv!J$2:J$65536)","v":0},{"$f":"SUMIF(IF(dati_pdc!$C428=1,dati_bdv!$C$2:$C$65536,IF(dati_pdc!$C428=2,dati_bdv!$D$2:$D$65536,IF(dati_pdc!$C428=3,dati_bdv!$E$2:$E$65536,IF(dati_pdc!$C428=4,dati_bdv!$F$2:$F$65536,IF(dati_pdc!$C428=5,dati_bdv!$G$2:$G$65536,dati_bdv!$H$2:$H$65536))))),$A428,dati_bdv!K$2:K$65536)","v":0},{"$f":"SUMIF(IF(dati_pdc!$C428=1,dati_bdv!$C$2:$C$65536,IF(dati_pdc!$C428=2,dati_bdv!$D$2:$D$65536,IF(dati_pdc!$C428=3,dati_bdv!$E$2:$E$65536,IF(dati_pdc!$C428=4,dati_bdv!$F$2:$F$65536,IF(dati_pdc!$C428=5,dati_bdv!$G$2:$G$65536,dati_bdv!$H$2:$H$65536))))),$A428,dati_bdv!L$2:L$65536)","v":0},{"$f":"SUMIF(IF(dati_pdc!$C428=1,dati_bdv!$C$2:$C$65536,IF(dati_pdc!$C428=2,dati_bdv!$D$2:$D$65536,IF(dati_pdc!$C428=3,dati_bdv!$E$2:$E$65536,IF(dati_pdc!$C428=4,dati_bdv!$F$2:$F$65536,IF(dati_pdc!$C428=5,dati_bdv!$G$2:$G$65536,dati_bdv!$H$2:$H$65536))))),$A428,dati_bdv!M$2:M$65536)","v":0},{"$f":"SUMIF(IF(dati_pdc!$C428=1,dati_bdv!$C$2:$C$65536,IF(dati_pdc!$C428=2,dati_bdv!$D$2:$D$65536,IF(dati_pdc!$C428=3,dati_bdv!$E$2:$E$65536,IF(dati_pdc!$C428=4,dati_bdv!$F$2:$F$65536,IF(dati_pdc!$C428=5,dati_bdv!$G$2:$G$65536,dati_bdv!$H$2:$H$65536))))),$A428,dati_bdv!N$2:N$65536)","v":0}]
[{"$f":"dati_pdc!A429","v":0},{"$f":"SUMIF(IF(dati_pdc!$C429=1,dati_bdv!$C$2:$C$65536,IF(dati_pdc!$C429=2,dati_bdv!$D$2:$D$65536,IF(dati_pdc!$C429=3,dati_bdv!$E$2:$E$65536,IF(dati_pdc!$C429=4,dati_bdv!$F$2:$F$65536,IF(dati_pdc!$C429=5,dati_bdv!$G$2:$G$65536,dati_bdv!$H$2:$H$65536))))),$A429,dati_bdv!J$2:J$65536)","v":0},{"$f":"SUMIF(IF(dati_pdc!$C429=1,dati_bdv!$C$2:$C$65536,IF(dati_pdc!$C429=2,dati_bdv!$D$2:$D$65536,IF(dati_pdc!$C429=3,dati_bdv!$E$2:$E$65536,IF(dati_pdc!$C429=4,dati_bdv!$F$2:$F$65536,IF(dati_pdc!$C429=5,dati_bdv!$G$2:$G$65536,dati_bdv!$H$2:$H$65536))))),$A429,dati_bdv!K$2:K$65536)","v":0},{"$f":"SUMIF(IF(dati_pdc!$C429=1,dati_bdv!$C$2:$C$65536,IF(dati_pdc!$C429=2,dati_bdv!$D$2:$D$65536,IF(dati_pdc!$C429=3,dati_bdv!$E$2:$E$65536,IF(dati_pdc!$C429=4,dati_bdv!$F$2:$F$65536,IF(dati_pdc!$C429=5,dati_bdv!$G$2:$G$65536,dati_bdv!$H$2:$H$65536))))),$A429,dati_bdv!L$2:L$65536)","v":0},{"$f":"SUMIF(IF(dati_pdc!$C429=1,dati_bdv!$C$2:$C$65536,IF(dati_pdc!$C429=2,dati_bdv!$D$2:$D$65536,IF(dati_pdc!$C429=3,dati_bdv!$E$2:$E$65536,IF(dati_pdc!$C429=4,dati_bdv!$F$2:$F$65536,IF(dati_pdc!$C429=5,dati_bdv!$G$2:$G$65536,dati_bdv!$H$2:$H$65536))))),$A429,dati_bdv!M$2:M$65536)","v":0},{"$f":"SUMIF(IF(dati_pdc!$C429=1,dati_bdv!$C$2:$C$65536,IF(dati_pdc!$C429=2,dati_bdv!$D$2:$D$65536,IF(dati_pdc!$C429=3,dati_bdv!$E$2:$E$65536,IF(dati_pdc!$C429=4,dati_bdv!$F$2:$F$65536,IF(dati_pdc!$C429=5,dati_bdv!$G$2:$G$65536,dati_bdv!$H$2:$H$65536))))),$A429,dati_bdv!N$2:N$65536)","v":0}]
[{"$f":"dati_pdc!A430","v":0},{"$f":"SUMIF(IF(dati_pdc!$C430=1,dati_bdv!$C$2:$C$65536,IF(dati_pdc!$C430=2,dati_bdv!$D$2:$D$65536,IF(dati_pdc!$C430=3,dati_bdv!$E$2:$E$65536,IF(dati_pdc!$C430=4,dati_bdv!$F$2:$F$65536,IF(dati_pdc!$C430=5,dati_bdv!$G$2:$G$65536,dati_bdv!$H$2:$H$65536))))),$A430,dati_bdv!J$2:J$65536)","v":0},{"$f":"SUMIF(IF(dati_pdc!$C430=1,dati_bdv!$C$2:$C$65536,IF(dati_pdc!$C430=2,dati_bdv!$D$2:$D$65536,IF(dati_pdc!$C430=3,dati_bdv!$E$2:$E$65536,IF(dati_pdc!$C430=4,dati_bdv!$F$2:$F$65536,IF(dati_pdc!$C430=5,dati_bdv!$G$2:$G$65536,dati_bdv!$H$2:$H$65536))))),$A430,dati_bdv!K$2:K$65536)","v":0},{"$f":"SUMIF(IF(dati_pdc!$C430=1,dati_bdv!$C$2:$C$65536,IF(dati_pdc!$C430=2,dati_bdv!$D$2:$D$65536,IF(dati_pdc!$C430=3,dati_bdv!$E$2:$E$65536,IF(dati_pdc!$C430=4,dati_bdv!$F$2:$F$65536,IF(dati_pdc!$C430=5,dati_bdv!$G$2:$G$65536,dati_bdv!$H$2:$H$65536))))),$A430,dati_bdv!L$2:L$65536)","v":0},{"$f":"SUMIF(IF(dati_pdc!$C430=1,dati_bdv!$C$2:$C$65536,IF(dati_pdc!$C430=2,dati_bdv!$D$2:$D$65536,IF(dati_pdc!$C430=3,dati_bdv!$E$2:$E$65536,IF(dati_pdc!$C430=4,dati_bdv!$F$2:$F$65536,IF(dati_pdc!$C430=5,dati_bdv!$G$2:$G$65536,dati_bdv!$H$2:$H$65536))))),$A430,dati_bdv!M$2:M$65536)","v":0},{"$f":"SUMIF(IF(dati_pdc!$C430=1,dati_bdv!$C$2:$C$65536,IF(dati_pdc!$C430=2,dati_bdv!$D$2:$D$65536,IF(dati_pdc!$C430=3,dati_bdv!$E$2:$E$65536,IF(dati_pdc!$C430=4,dati_bdv!$F$2:$F$65536,IF(dati_pdc!$C430=5,dati_bdv!$G$2:$G$65536,dati_bdv!$H$2:$H$65536))))),$A430,dati_bdv!N$2:N$65536)","v":0}]
[{"$f":"dati_pdc!A431","v":0},{"$f":"SUMIF(IF(dati_pdc!$C431=1,dati_bdv!$C$2:$C$65536,IF(dati_pdc!$C431=2,dati_bdv!$D$2:$D$65536,IF(dati_pdc!$C431=3,dati_bdv!$E$2:$E$65536,IF(dati_pdc!$C431=4,dati_bdv!$F$2:$F$65536,IF(dati_pdc!$C431=5,dati_bdv!$G$2:$G$65536,dati_bdv!$H$2:$H$65536))))),$A431,dati_bdv!J$2:J$65536)","v":0},{"$f":"SUMIF(IF(dati_pdc!$C431=1,dati_bdv!$C$2:$C$65536,IF(dati_pdc!$C431=2,dati_bdv!$D$2:$D$65536,IF(dati_pdc!$C431=3,dati_bdv!$E$2:$E$65536,IF(dati_pdc!$C431=4,dati_bdv!$F$2:$F$65536,IF(dati_pdc!$C431=5,dati_bdv!$G$2:$G$65536,dati_bdv!$H$2:$H$65536))))),$A431,dati_bdv!K$2:K$65536)","v":0},{"$f":"SUMIF(IF(dati_pdc!$C431=1,dati_bdv!$C$2:$C$65536,IF(dati_pdc!$C431=2,dati_bdv!$D$2:$D$65536,IF(dati_pdc!$C431=3,dati_bdv!$E$2:$E$65536,IF(dati_pdc!$C431=4,dati_bdv!$F$2:$F$65536,IF(dati_pdc!$C431=5,dati_bdv!$G$2:$G$65536,dati_bdv!$H$2:$H$65536))))),$A431,dati_bdv!L$2:L$65536)","v":0},{"$f":"SUMIF(IF(dati_pdc!$C431=1,dati_bdv!$C$2:$C$65536,IF(dati_pdc!$C431=2,dati_bdv!$D$2:$D$65536,IF(dati_pdc!$C431=3,dati_bdv!$E$2:$E$65536,IF(dati_pdc!$C431=4,dati_bdv!$F$2:$F$65536,IF(dati_pdc!$C431=5,dati_bdv!$G$2:$G$65536,dati_bdv!$H$2:$H$65536))))),$A431,dati_bdv!M$2:M$65536)","v":0},{"$f":"SUMIF(IF(dati_pdc!$C431=1,dati_bdv!$C$2:$C$65536,IF(dati_pdc!$C431=2,dati_bdv!$D$2:$D$65536,IF(dati_pdc!$C431=3,dati_bdv!$E$2:$E$65536,IF(dati_pdc!$C431=4,dati_bdv!$F$2:$F$65536,IF(dati_pdc!$C431=5,dati_bdv!$G$2:$G$65536,dati_bdv!$H$2:$H$65536))))),$A431,dati_bdv!N$2:N$65536)","v":0}]
[{"$f":"dati_pdc!A432","v":0},{"$f":"SUMIF(IF(dati_pdc!$C432=1,dati_bdv!$C$2:$C$65536,IF(dati_pdc!$C432=2,dati_bdv!$D$2:$D$65536,IF(dati_pdc!$C432=3,dati_bdv!$E$2:$E$65536,IF(dati_pdc!$C432=4,dati_bdv!$F$2:$F$65536,IF(dati_pdc!$C432=5,dati_bdv!$G$2:$G$65536,dati_bdv!$H$2:$H$65536))))),$A432,dati_bdv!J$2:J$65536)","v":0},{"$f":"SUMIF(IF(dati_pdc!$C432=1,dati_bdv!$C$2:$C$65536,IF(dati_pdc!$C432=2,dati_bdv!$D$2:$D$65536,IF(dati_pdc!$C432=3,dati_bdv!$E$2:$E$65536,IF(dati_pdc!$C432=4,dati_bdv!$F$2:$F$65536,IF(dati_pdc!$C432=5,dati_bdv!$G$2:$G$65536,dati_bdv!$H$2:$H$65536))))),$A432,dati_bdv!K$2:K$65536)","v":0},{"$f":"SUMIF(IF(dati_pdc!$C432=1,dati_bdv!$C$2:$C$65536,IF(dati_pdc!$C432=2,dati_bdv!$D$2:$D$65536,IF(dati_pdc!$C432=3,dati_bdv!$E$2:$E$65536,IF(dati_pdc!$C432=4,dati_bdv!$F$2:$F$65536,IF(dati_pdc!$C432=5,dati_bdv!$G$2:$G$65536,dati_bdv!$H$2:$H$65536))))),$A432,dati_bdv!L$2:L$65536)","v":0},{"$f":"SUMIF(IF(dati_pdc!$C432=1,dati_bdv!$C$2:$C$65536,IF(dati_pdc!$C432=2,dati_bdv!$D$2:$D$65536,IF(dati_pdc!$C432=3,dati_bdv!$E$2:$E$65536,IF(dati_pdc!$C432=4,dati_bdv!$F$2:$F$65536,IF(dati_pdc!$C432=5,dati_bdv!$G$2:$G$65536,dati_bdv!$H$2:$H$65536))))),$A432,dati_bdv!M$2:M$65536)","v":0},{"$f":"SUMIF(IF(dati_pdc!$C432=1,dati_bdv!$C$2:$C$65536,IF(dati_pdc!$C432=2,dati_bdv!$D$2:$D$65536,IF(dati_pdc!$C432=3,dati_bdv!$E$2:$E$65536,IF(dati_pdc!$C432=4,dati_bdv!$F$2:$F$65536,IF(dati_pdc!$C432=5,dati_bdv!$G$2:$G$65536,dati_bdv!$H$2:$H$65536))))),$A432,dati_bdv!N$2:N$65536)","v":0}]
[{"$f":"dati_pdc!A433","v":0},{"$f":"SUMIF(IF(dati_pdc!$C433=1,dati_bdv!$C$2:$C$65536,IF(dati_pdc!$C433=2,dati_bdv!$D$2:$D$65536,IF(dati_pdc!$C433=3,dati_bdv!$E$2:$E$65536,IF(dati_pdc!$C433=4,dati_bdv!$F$2:$F$65536,IF(dati_pdc!$C433=5,dati_bdv!$G$2:$G$65536,dati_bdv!$H$2:$H$65536))))),$A433,dati_bdv!J$2:J$65536)","v":0},{"$f":"SUMIF(IF(dati_pdc!$C433=1,dati_bdv!$C$2:$C$65536,IF(dati_pdc!$C433=2,dati_bdv!$D$2:$D$65536,IF(dati_pdc!$C433=3,dati_bdv!$E$2:$E$65536,IF(dati_pdc!$C433=4,dati_bdv!$F$2:$F$65536,IF(dati_pdc!$C433=5,dati_bdv!$G$2:$G$65536,dati_bdv!$H$2:$H$65536))))),$A433,dati_bdv!K$2:K$65536)","v":0},{"$f":"SUMIF(IF(dati_pdc!$C433=1,dati_bdv!$C$2:$C$65536,IF(dati_pdc!$C433=2,dati_bdv!$D$2:$D$65536,IF(dati_pdc!$C433=3,dati_bdv!$E$2:$E$65536,IF(dati_pdc!$C433=4,dati_bdv!$F$2:$F$65536,IF(dati_pdc!$C433=5,dati_bdv!$G$2:$G$65536,dati_bdv!$H$2:$H$65536))))),$A433,dati_bdv!L$2:L$65536)","v":0},{"$f":"SUMIF(IF(dati_pdc!$C433=1,dati_bdv!$C$2:$C$65536,IF(dati_pdc!$C433=2,dati_bdv!$D$2:$D$65536,IF(dati_pdc!$C433=3,dati_bdv!$E$2:$E$65536,IF(dati_pdc!$C433=4,dati_bdv!$F$2:$F$65536,IF(dati_pdc!$C433=5,dati_bdv!$G$2:$G$65536,dati_bdv!$H$2:$H$65536))))),$A433,dati_bdv!M$2:M$65536)","v":0},{"$f":"SUMIF(IF(dati_pdc!$C433=1,dati_bdv!$C$2:$C$65536,IF(dati_pdc!$C433=2,dati_bdv!$D$2:$D$65536,IF(dati_pdc!$C433=3,dati_bdv!$E$2:$E$65536,IF(dati_pdc!$C433=4,dati_bdv!$F$2:$F$65536,IF(dati_pdc!$C433=5,dati_bdv!$G$2:$G$65536,dati_bdv!$H$2:$H$65536))))),$A433,dati_bdv!N$2:N$65536)","v":0}]
[{"$f":"dati_pdc!A434","v":0},{"$f":"SUMIF(IF(dati_pdc!$C434=1,dati_bdv!$C$2:$C$65536,IF(dati_pdc!$C434=2,dati_bdv!$D$2:$D$65536,IF(dati_pdc!$C434=3,dati_bdv!$E$2:$E$65536,IF(dati_pdc!$C434=4,dati_bdv!$F$2:$F$65536,IF(dati_pdc!$C434=5,dati_bdv!$G$2:$G$65536,dati_bdv!$H$2:$H$65536))))),$A434,dati_bdv!J$2:J$65536)","v":0},{"$f":"SUMIF(IF(dati_pdc!$C434=1,dati_bdv!$C$2:$C$65536,IF(dati_pdc!$C434=2,dati_bdv!$D$2:$D$65536,IF(dati_pdc!$C434=3,dati_bdv!$E$2:$E$65536,IF(dati_pdc!$C434=4,dati_bdv!$F$2:$F$65536,IF(dati_pdc!$C434=5,dati_bdv!$G$2:$G$65536,dati_bdv!$H$2:$H$65536))))),$A434,dati_bdv!K$2:K$65536)","v":0},{"$f":"SUMIF(IF(dati_pdc!$C434=1,dati_bdv!$C$2:$C$65536,IF(dati_pdc!$C434=2,dati_bdv!$D$2:$D$65536,IF(dati_pdc!$C434=3,dati_bdv!$E$2:$E$65536,IF(dati_pdc!$C434=4,dati_bdv!$F$2:$F$65536,IF(dati_pdc!$C434=5,dati_bdv!$G$2:$G$65536,dati_bdv!$H$2:$H$65536))))),$A434,dati_bdv!L$2:L$65536)","v":0},{"$f":"SUMIF(IF(dati_pdc!$C434=1,dati_bdv!$C$2:$C$65536,IF(dati_pdc!$C434=2,dati_bdv!$D$2:$D$65536,IF(dati_pdc!$C434=3,dati_bdv!$E$2:$E$65536,IF(dati_pdc!$C434=4,dati_bdv!$F$2:$F$65536,IF(dati_pdc!$C434=5,dati_bdv!$G$2:$G$65536,dati_bdv!$H$2:$H$65536))))),$A434,dati_bdv!M$2:M$65536)","v":0},{"$f":"SUMIF(IF(dati_pdc!$C434=1,dati_bdv!$C$2:$C$65536,IF(dati_pdc!$C434=2,dati_bdv!$D$2:$D$65536,IF(dati_pdc!$C434=3,dati_bdv!$E$2:$E$65536,IF(dati_pdc!$C434=4,dati_bdv!$F$2:$F$65536,IF(dati_pdc!$C434=5,dati_bdv!$G$2:$G$65536,dati_bdv!$H$2:$H$65536))))),$A434,dati_bdv!N$2:N$65536)","v":0}]
[{"$f":"dati_pdc!A435","v":0},{"$f":"SUMIF(IF(dati_pdc!$C435=1,dati_bdv!$C$2:$C$65536,IF(dati_pdc!$C435=2,dati_bdv!$D$2:$D$65536,IF(dati_pdc!$C435=3,dati_bdv!$E$2:$E$65536,IF(dati_pdc!$C435=4,dati_bdv!$F$2:$F$65536,IF(dati_pdc!$C435=5,dati_bdv!$G$2:$G$65536,dati_bdv!$H$2:$H$65536))))),$A435,dati_bdv!J$2:J$65536)","v":0},{"$f":"SUMIF(IF(dati_pdc!$C435=1,dati_bdv!$C$2:$C$65536,IF(dati_pdc!$C435=2,dati_bdv!$D$2:$D$65536,IF(dati_pdc!$C435=3,dati_bdv!$E$2:$E$65536,IF(dati_pdc!$C435=4,dati_bdv!$F$2:$F$65536,IF(dati_pdc!$C435=5,dati_bdv!$G$2:$G$65536,dati_bdv!$H$2:$H$65536))))),$A435,dati_bdv!K$2:K$65536)","v":0},{"$f":"SUMIF(IF(dati_pdc!$C435=1,dati_bdv!$C$2:$C$65536,IF(dati_pdc!$C435=2,dati_bdv!$D$2:$D$65536,IF(dati_pdc!$C435=3,dati_bdv!$E$2:$E$65536,IF(dati_pdc!$C435=4,dati_bdv!$F$2:$F$65536,IF(dati_pdc!$C435=5,dati_bdv!$G$2:$G$65536,dati_bdv!$H$2:$H$65536))))),$A435,dati_bdv!L$2:L$65536)","v":0},{"$f":"SUMIF(IF(dati_pdc!$C435=1,dati_bdv!$C$2:$C$65536,IF(dati_pdc!$C435=2,dati_bdv!$D$2:$D$65536,IF(dati_pdc!$C435=3,dati_bdv!$E$2:$E$65536,IF(dati_pdc!$C435=4,dati_bdv!$F$2:$F$65536,IF(dati_pdc!$C435=5,dati_bdv!$G$2:$G$65536,dati_bdv!$H$2:$H$65536))))),$A435,dati_bdv!M$2:M$65536)","v":0},{"$f":"SUMIF(IF(dati_pdc!$C435=1,dati_bdv!$C$2:$C$65536,IF(dati_pdc!$C435=2,dati_bdv!$D$2:$D$65536,IF(dati_pdc!$C435=3,dati_bdv!$E$2:$E$65536,IF(dati_pdc!$C435=4,dati_bdv!$F$2:$F$65536,IF(dati_pdc!$C435=5,dati_bdv!$G$2:$G$65536,dati_bdv!$H$2:$H$65536))))),$A435,dati_bdv!N$2:N$65536)","v":0}]
[{"$f":"dati_pdc!A436","v":0},{"$f":"SUMIF(IF(dati_pdc!$C436=1,dati_bdv!$C$2:$C$65536,IF(dati_pdc!$C436=2,dati_bdv!$D$2:$D$65536,IF(dati_pdc!$C436=3,dati_bdv!$E$2:$E$65536,IF(dati_pdc!$C436=4,dati_bdv!$F$2:$F$65536,IF(dati_pdc!$C436=5,dati_bdv!$G$2:$G$65536,dati_bdv!$H$2:$H$65536))))),$A436,dati_bdv!J$2:J$65536)","v":0},{"$f":"SUMIF(IF(dati_pdc!$C436=1,dati_bdv!$C$2:$C$65536,IF(dati_pdc!$C436=2,dati_bdv!$D$2:$D$65536,IF(dati_pdc!$C436=3,dati_bdv!$E$2:$E$65536,IF(dati_pdc!$C436=4,dati_bdv!$F$2:$F$65536,IF(dati_pdc!$C436=5,dati_bdv!$G$2:$G$65536,dati_bdv!$H$2:$H$65536))))),$A436,dati_bdv!K$2:K$65536)","v":0},{"$f":"SUMIF(IF(dati_pdc!$C436=1,dati_bdv!$C$2:$C$65536,IF(dati_pdc!$C436=2,dati_bdv!$D$2:$D$65536,IF(dati_pdc!$C436=3,dati_bdv!$E$2:$E$65536,IF(dati_pdc!$C436=4,dati_bdv!$F$2:$F$65536,IF(dati_pdc!$C436=5,dati_bdv!$G$2:$G$65536,dati_bdv!$H$2:$H$65536))))),$A436,dati_bdv!L$2:L$65536)","v":0},{"$f":"SUMIF(IF(dati_pdc!$C436=1,dati_bdv!$C$2:$C$65536,IF(dati_pdc!$C436=2,dati_bdv!$D$2:$D$65536,IF(dati_pdc!$C436=3,dati_bdv!$E$2:$E$65536,IF(dati_pdc!$C436=4,dati_bdv!$F$2:$F$65536,IF(dati_pdc!$C436=5,dati_bdv!$G$2:$G$65536,dati_bdv!$H$2:$H$65536))))),$A436,dati_bdv!M$2:M$65536)","v":0},{"$f":"SUMIF(IF(dati_pdc!$C436=1,dati_bdv!$C$2:$C$65536,IF(dati_pdc!$C436=2,dati_bdv!$D$2:$D$65536,IF(dati_pdc!$C436=3,dati_bdv!$E$2:$E$65536,IF(dati_pdc!$C436=4,dati_bdv!$F$2:$F$65536,IF(dati_pdc!$C436=5,dati_bdv!$G$2:$G$65536,dati_bdv!$H$2:$H$65536))))),$A436,dati_bdv!N$2:N$65536)","v":0}]
[{"$f":"dati_pdc!A437","v":0},{"$f":"SUMIF(IF(dati_pdc!$C437=1,dati_bdv!$C$2:$C$65536,IF(dati_pdc!$C437=2,dati_bdv!$D$2:$D$65536,IF(dati_pdc!$C437=3,dati_bdv!$E$2:$E$65536,IF(dati_pdc!$C437=4,dati_bdv!$F$2:$F$65536,IF(dati_pdc!$C437=5,dati_bdv!$G$2:$G$65536,dati_bdv!$H$2:$H$65536))))),$A437,dati_bdv!J$2:J$65536)","v":0},{"$f":"SUMIF(IF(dati_pdc!$C437=1,dati_bdv!$C$2:$C$65536,IF(dati_pdc!$C437=2,dati_bdv!$D$2:$D$65536,IF(dati_pdc!$C437=3,dati_bdv!$E$2:$E$65536,IF(dati_pdc!$C437=4,dati_bdv!$F$2:$F$65536,IF(dati_pdc!$C437=5,dati_bdv!$G$2:$G$65536,dati_bdv!$H$2:$H$65536))))),$A437,dati_bdv!K$2:K$65536)","v":0},{"$f":"SUMIF(IF(dati_pdc!$C437=1,dati_bdv!$C$2:$C$65536,IF(dati_pdc!$C437=2,dati_bdv!$D$2:$D$65536,IF(dati_pdc!$C437=3,dati_bdv!$E$2:$E$65536,IF(dati_pdc!$C437=4,dati_bdv!$F$2:$F$65536,IF(dati_pdc!$C437=5,dati_bdv!$G$2:$G$65536,dati_bdv!$H$2:$H$65536))))),$A437,dati_bdv!L$2:L$65536)","v":0},{"$f":"SUMIF(IF(dati_pdc!$C437=1,dati_bdv!$C$2:$C$65536,IF(dati_pdc!$C437=2,dati_bdv!$D$2:$D$65536,IF(dati_pdc!$C437=3,dati_bdv!$E$2:$E$65536,IF(dati_pdc!$C437=4,dati_bdv!$F$2:$F$65536,IF(dati_pdc!$C437=5,dati_bdv!$G$2:$G$65536,dati_bdv!$H$2:$H$65536))))),$A437,dati_bdv!M$2:M$65536)","v":0},{"$f":"SUMIF(IF(dati_pdc!$C437=1,dati_bdv!$C$2:$C$65536,IF(dati_pdc!$C437=2,dati_bdv!$D$2:$D$65536,IF(dati_pdc!$C437=3,dati_bdv!$E$2:$E$65536,IF(dati_pdc!$C437=4,dati_bdv!$F$2:$F$65536,IF(dati_pdc!$C437=5,dati_bdv!$G$2:$G$65536,dati_bdv!$H$2:$H$65536))))),$A437,dati_bdv!N$2:N$65536)","v":0}]
[{"$f":"dati_pdc!A438","v":0},{"$f":"SUMIF(IF(dati_pdc!$C438=1,dati_bdv!$C$2:$C$65536,IF(dati_pdc!$C438=2,dati_bdv!$D$2:$D$65536,IF(dati_pdc!$C438=3,dati_bdv!$E$2:$E$65536,IF(dati_pdc!$C438=4,dati_bdv!$F$2:$F$65536,IF(dati_pdc!$C438=5,dati_bdv!$G$2:$G$65536,dati_bdv!$H$2:$H$65536))))),$A438,dati_bdv!J$2:J$65536)","v":0},{"$f":"SUMIF(IF(dati_pdc!$C438=1,dati_bdv!$C$2:$C$65536,IF(dati_pdc!$C438=2,dati_bdv!$D$2:$D$65536,IF(dati_pdc!$C438=3,dati_bdv!$E$2:$E$65536,IF(dati_pdc!$C438=4,dati_bdv!$F$2:$F$65536,IF(dati_pdc!$C438=5,dati_bdv!$G$2:$G$65536,dati_bdv!$H$2:$H$65536))))),$A438,dati_bdv!K$2:K$65536)","v":0},{"$f":"SUMIF(IF(dati_pdc!$C438=1,dati_bdv!$C$2:$C$65536,IF(dati_pdc!$C438=2,dati_bdv!$D$2:$D$65536,IF(dati_pdc!$C438=3,dati_bdv!$E$2:$E$65536,IF(dati_pdc!$C438=4,dati_bdv!$F$2:$F$65536,IF(dati_pdc!$C438=5,dati_bdv!$G$2:$G$65536,dati_bdv!$H$2:$H$65536))))),$A438,dati_bdv!L$2:L$65536)","v":0},{"$f":"SUMIF(IF(dati_pdc!$C438=1,dati_bdv!$C$2:$C$65536,IF(dati_pdc!$C438=2,dati_bdv!$D$2:$D$65536,IF(dati_pdc!$C438=3,dati_bdv!$E$2:$E$65536,IF(dati_pdc!$C438=4,dati_bdv!$F$2:$F$65536,IF(dati_pdc!$C438=5,dati_bdv!$G$2:$G$65536,dati_bdv!$H$2:$H$65536))))),$A438,dati_bdv!M$2:M$65536)","v":0},{"$f":"SUMIF(IF(dati_pdc!$C438=1,dati_bdv!$C$2:$C$65536,IF(dati_pdc!$C438=2,dati_bdv!$D$2:$D$65536,IF(dati_pdc!$C438=3,dati_bdv!$E$2:$E$65536,IF(dati_pdc!$C438=4,dati_bdv!$F$2:$F$65536,IF(dati_pdc!$C438=5,dati_bdv!$G$2:$G$65536,dati_bdv!$H$2:$H$65536))))),$A438,dati_bdv!N$2:N$65536)","v":0}]
[{"$f":"dati_pdc!A439","v":0},{"$f":"SUMIF(IF(dati_pdc!$C439=1,dati_bdv!$C$2:$C$65536,IF(dati_pdc!$C439=2,dati_bdv!$D$2:$D$65536,IF(dati_pdc!$C439=3,dati_bdv!$E$2:$E$65536,IF(dati_pdc!$C439=4,dati_bdv!$F$2:$F$65536,IF(dati_pdc!$C439=5,dati_bdv!$G$2:$G$65536,dati_bdv!$H$2:$H$65536))))),$A439,dati_bdv!J$2:J$65536)","v":0},{"$f":"SUMIF(IF(dati_pdc!$C439=1,dati_bdv!$C$2:$C$65536,IF(dati_pdc!$C439=2,dati_bdv!$D$2:$D$65536,IF(dati_pdc!$C439=3,dati_bdv!$E$2:$E$65536,IF(dati_pdc!$C439=4,dati_bdv!$F$2:$F$65536,IF(dati_pdc!$C439=5,dati_bdv!$G$2:$G$65536,dati_bdv!$H$2:$H$65536))))),$A439,dati_bdv!K$2:K$65536)","v":0},{"$f":"SUMIF(IF(dati_pdc!$C439=1,dati_bdv!$C$2:$C$65536,IF(dati_pdc!$C439=2,dati_bdv!$D$2:$D$65536,IF(dati_pdc!$C439=3,dati_bdv!$E$2:$E$65536,IF(dati_pdc!$C439=4,dati_bdv!$F$2:$F$65536,IF(dati_pdc!$C439=5,dati_bdv!$G$2:$G$65536,dati_bdv!$H$2:$H$65536))))),$A439,dati_bdv!L$2:L$65536)","v":0},{"$f":"SUMIF(IF(dati_pdc!$C439=1,dati_bdv!$C$2:$C$65536,IF(dati_pdc!$C439=2,dati_bdv!$D$2:$D$65536,IF(dati_pdc!$C439=3,dati_bdv!$E$2:$E$65536,IF(dati_pdc!$C439=4,dati_bdv!$F$2:$F$65536,IF(dati_pdc!$C439=5,dati_bdv!$G$2:$G$65536,dati_bdv!$H$2:$H$65536))))),$A439,dati_bdv!M$2:M$65536)","v":0},{"$f":"SUMIF(IF(dati_pdc!$C439=1,dati_bdv!$C$2:$C$65536,IF(dati_pdc!$C439=2,dati_bdv!$D$2:$D$65536,IF(dati_pdc!$C439=3,dati_bdv!$E$2:$E$65536,IF(dati_pdc!$C439=4,dati_bdv!$F$2:$F$65536,IF(dati_pdc!$C439=5,dati_bdv!$G$2:$G$65536,dati_bdv!$H$2:$H$65536))))),$A439,dati_bdv!N$2:N$65536)","v":0}]
[{"$f":"dati_pdc!A440","v":0},{"$f":"SUMIF(IF(dati_pdc!$C440=1,dati_bdv!$C$2:$C$65536,IF(dati_pdc!$C440=2,dati_bdv!$D$2:$D$65536,IF(dati_pdc!$C440=3,dati_bdv!$E$2:$E$65536,IF(dati_pdc!$C440=4,dati_bdv!$F$2:$F$65536,IF(dati_pdc!$C440=5,dati_bdv!$G$2:$G$65536,dati_bdv!$H$2:$H$65536))))),$A440,dati_bdv!J$2:J$65536)","v":0},{"$f":"SUMIF(IF(dati_pdc!$C440=1,dati_bdv!$C$2:$C$65536,IF(dati_pdc!$C440=2,dati_bdv!$D$2:$D$65536,IF(dati_pdc!$C440=3,dati_bdv!$E$2:$E$65536,IF(dati_pdc!$C440=4,dati_bdv!$F$2:$F$65536,IF(dati_pdc!$C440=5,dati_bdv!$G$2:$G$65536,dati_bdv!$H$2:$H$65536))))),$A440,dati_bdv!K$2:K$65536)","v":0},{"$f":"SUMIF(IF(dati_pdc!$C440=1,dati_bdv!$C$2:$C$65536,IF(dati_pdc!$C440=2,dati_bdv!$D$2:$D$65536,IF(dati_pdc!$C440=3,dati_bdv!$E$2:$E$65536,IF(dati_pdc!$C440=4,dati_bdv!$F$2:$F$65536,IF(dati_pdc!$C440=5,dati_bdv!$G$2:$G$65536,dati_bdv!$H$2:$H$65536))))),$A440,dati_bdv!L$2:L$65536)","v":0},{"$f":"SUMIF(IF(dati_pdc!$C440=1,dati_bdv!$C$2:$C$65536,IF(dati_pdc!$C440=2,dati_bdv!$D$2:$D$65536,IF(dati_pdc!$C440=3,dati_bdv!$E$2:$E$65536,IF(dati_pdc!$C440=4,dati_bdv!$F$2:$F$65536,IF(dati_pdc!$C440=5,dati_bdv!$G$2:$G$65536,dati_bdv!$H$2:$H$65536))))),$A440,dati_bdv!M$2:M$65536)","v":0},{"$f":"SUMIF(IF(dati_pdc!$C440=1,dati_bdv!$C$2:$C$65536,IF(dati_pdc!$C440=2,dati_bdv!$D$2:$D$65536,IF(dati_pdc!$C440=3,dati_bdv!$E$2:$E$65536,IF(dati_pdc!$C440=4,dati_bdv!$F$2:$F$65536,IF(dati_pdc!$C440=5,dati_bdv!$G$2:$G$65536,dati_bdv!$H$2:$H$65536))))),$A440,dati_bdv!N$2:N$65536)","v":0}]
[{"$f":"dati_pdc!A441","v":0},{"$f":"SUMIF(IF(dati_pdc!$C441=1,dati_bdv!$C$2:$C$65536,IF(dati_pdc!$C441=2,dati_bdv!$D$2:$D$65536,IF(dati_pdc!$C441=3,dati_bdv!$E$2:$E$65536,IF(dati_pdc!$C441=4,dati_bdv!$F$2:$F$65536,IF(dati_pdc!$C441=5,dati_bdv!$G$2:$G$65536,dati_bdv!$H$2:$H$65536))))),$A441,dati_bdv!J$2:J$65536)","v":0},{"$f":"SUMIF(IF(dati_pdc!$C441=1,dati_bdv!$C$2:$C$65536,IF(dati_pdc!$C441=2,dati_bdv!$D$2:$D$65536,IF(dati_pdc!$C441=3,dati_bdv!$E$2:$E$65536,IF(dati_pdc!$C441=4,dati_bdv!$F$2:$F$65536,IF(dati_pdc!$C441=5,dati_bdv!$G$2:$G$65536,dati_bdv!$H$2:$H$65536))))),$A441,dati_bdv!K$2:K$65536)","v":0},{"$f":"SUMIF(IF(dati_pdc!$C441=1,dati_bdv!$C$2:$C$65536,IF(dati_pdc!$C441=2,dati_bdv!$D$2:$D$65536,IF(dati_pdc!$C441=3,dati_bdv!$E$2:$E$65536,IF(dati_pdc!$C441=4,dati_bdv!$F$2:$F$65536,IF(dati_pdc!$C441=5,dati_bdv!$G$2:$G$65536,dati_bdv!$H$2:$H$65536))))),$A441,dati_bdv!L$2:L$65536)","v":0},{"$f":"SUMIF(IF(dati_pdc!$C441=1,dati_bdv!$C$2:$C$65536,IF(dati_pdc!$C441=2,dati_bdv!$D$2:$D$65536,IF(dati_pdc!$C441=3,dati_bdv!$E$2:$E$65536,IF(dati_pdc!$C441=4,dati_bdv!$F$2:$F$65536,IF(dati_pdc!$C441=5,dati_bdv!$G$2:$G$65536,dati_bdv!$H$2:$H$65536))))),$A441,dati_bdv!M$2:M$65536)","v":0},{"$f":"SUMIF(IF(dati_pdc!$C441=1,dati_bdv!$C$2:$C$65536,IF(dati_pdc!$C441=2,dati_bdv!$D$2:$D$65536,IF(dati_pdc!$C441=3,dati_bdv!$E$2:$E$65536,IF(dati_pdc!$C441=4,dati_bdv!$F$2:$F$65536,IF(dati_pdc!$C441=5,dati_bdv!$G$2:$G$65536,dati_bdv!$H$2:$H$65536))))),$A441,dati_bdv!N$2:N$65536)","v":0}]
[{"$f":"dati_pdc!A442","v":0},{"$f":"SUMIF(IF(dati_pdc!$C442=1,dati_bdv!$C$2:$C$65536,IF(dati_pdc!$C442=2,dati_bdv!$D$2:$D$65536,IF(dati_pdc!$C442=3,dati_bdv!$E$2:$E$65536,IF(dati_pdc!$C442=4,dati_bdv!$F$2:$F$65536,IF(dati_pdc!$C442=5,dati_bdv!$G$2:$G$65536,dati_bdv!$H$2:$H$65536))))),$A442,dati_bdv!J$2:J$65536)","v":0},{"$f":"SUMIF(IF(dati_pdc!$C442=1,dati_bdv!$C$2:$C$65536,IF(dati_pdc!$C442=2,dati_bdv!$D$2:$D$65536,IF(dati_pdc!$C442=3,dati_bdv!$E$2:$E$65536,IF(dati_pdc!$C442=4,dati_bdv!$F$2:$F$65536,IF(dati_pdc!$C442=5,dati_bdv!$G$2:$G$65536,dati_bdv!$H$2:$H$65536))))),$A442,dati_bdv!K$2:K$65536)","v":0},{"$f":"SUMIF(IF(dati_pdc!$C442=1,dati_bdv!$C$2:$C$65536,IF(dati_pdc!$C442=2,dati_bdv!$D$2:$D$65536,IF(dati_pdc!$C442=3,dati_bdv!$E$2:$E$65536,IF(dati_pdc!$C442=4,dati_bdv!$F$2:$F$65536,IF(dati_pdc!$C442=5,dati_bdv!$G$2:$G$65536,dati_bdv!$H$2:$H$65536))))),$A442,dati_bdv!L$2:L$65536)","v":0},{"$f":"SUMIF(IF(dati_pdc!$C442=1,dati_bdv!$C$2:$C$65536,IF(dati_pdc!$C442=2,dati_bdv!$D$2:$D$65536,IF(dati_pdc!$C442=3,dati_bdv!$E$2:$E$65536,IF(dati_pdc!$C442=4,dati_bdv!$F$2:$F$65536,IF(dati_pdc!$C442=5,dati_bdv!$G$2:$G$65536,dati_bdv!$H$2:$H$65536))))),$A442,dati_bdv!M$2:M$65536)","v":0},{"$f":"SUMIF(IF(dati_pdc!$C442=1,dati_bdv!$C$2:$C$65536,IF(dati_pdc!$C442=2,dati_bdv!$D$2:$D$65536,IF(dati_pdc!$C442=3,dati_bdv!$E$2:$E$65536,IF(dati_pdc!$C442=4,dati_bdv!$F$2:$F$65536,IF(dati_pdc!$C442=5,dati_bdv!$G$2:$G$65536,dati_bdv!$H$2:$H$65536))))),$A442,dati_bdv!N$2:N$65536)","v":0}]
[{"$f":"dati_pdc!A443","v":0},{"$f":"SUMIF(IF(dati_pdc!$C443=1,dati_bdv!$C$2:$C$65536,IF(dati_pdc!$C443=2,dati_bdv!$D$2:$D$65536,IF(dati_pdc!$C443=3,dati_bdv!$E$2:$E$65536,IF(dati_pdc!$C443=4,dati_bdv!$F$2:$F$65536,IF(dati_pdc!$C443=5,dati_bdv!$G$2:$G$65536,dati_bdv!$H$2:$H$65536))))),$A443,dati_bdv!J$2:J$65536)","v":0},{"$f":"SUMIF(IF(dati_pdc!$C443=1,dati_bdv!$C$2:$C$65536,IF(dati_pdc!$C443=2,dati_bdv!$D$2:$D$65536,IF(dati_pdc!$C443=3,dati_bdv!$E$2:$E$65536,IF(dati_pdc!$C443=4,dati_bdv!$F$2:$F$65536,IF(dati_pdc!$C443=5,dati_bdv!$G$2:$G$65536,dati_bdv!$H$2:$H$65536))))),$A443,dati_bdv!K$2:K$65536)","v":0},{"$f":"SUMIF(IF(dati_pdc!$C443=1,dati_bdv!$C$2:$C$65536,IF(dati_pdc!$C443=2,dati_bdv!$D$2:$D$65536,IF(dati_pdc!$C443=3,dati_bdv!$E$2:$E$65536,IF(dati_pdc!$C443=4,dati_bdv!$F$2:$F$65536,IF(dati_pdc!$C443=5,dati_bdv!$G$2:$G$65536,dati_bdv!$H$2:$H$65536))))),$A443,dati_bdv!L$2:L$65536)","v":0},{"$f":"SUMIF(IF(dati_pdc!$C443=1,dati_bdv!$C$2:$C$65536,IF(dati_pdc!$C443=2,dati_bdv!$D$2:$D$65536,IF(dati_pdc!$C443=3,dati_bdv!$E$2:$E$65536,IF(dati_pdc!$C443=4,dati_bdv!$F$2:$F$65536,IF(dati_pdc!$C443=5,dati_bdv!$G$2:$G$65536,dati_bdv!$H$2:$H$65536))))),$A443,dati_bdv!M$2:M$65536)","v":0},{"$f":"SUMIF(IF(dati_pdc!$C443=1,dati_bdv!$C$2:$C$65536,IF(dati_pdc!$C443=2,dati_bdv!$D$2:$D$65536,IF(dati_pdc!$C443=3,dati_bdv!$E$2:$E$65536,IF(dati_pdc!$C443=4,dati_bdv!$F$2:$F$65536,IF(dati_pdc!$C443=5,dati_bdv!$G$2:$G$65536,dati_bdv!$H$2:$H$65536))))),$A443,dati_bdv!N$2:N$65536)","v":0}]
[{"$f":"dati_pdc!A444","v":0},{"$f":"SUMIF(IF(dati_pdc!$C444=1,dati_bdv!$C$2:$C$65536,IF(dati_pdc!$C444=2,dati_bdv!$D$2:$D$65536,IF(dati_pdc!$C444=3,dati_bdv!$E$2:$E$65536,IF(dati_pdc!$C444=4,dati_bdv!$F$2:$F$65536,IF(dati_pdc!$C444=5,dati_bdv!$G$2:$G$65536,dati_bdv!$H$2:$H$65536))))),$A444,dati_bdv!J$2:J$65536)","v":0},{"$f":"SUMIF(IF(dati_pdc!$C444=1,dati_bdv!$C$2:$C$65536,IF(dati_pdc!$C444=2,dati_bdv!$D$2:$D$65536,IF(dati_pdc!$C444=3,dati_bdv!$E$2:$E$65536,IF(dati_pdc!$C444=4,dati_bdv!$F$2:$F$65536,IF(dati_pdc!$C444=5,dati_bdv!$G$2:$G$65536,dati_bdv!$H$2:$H$65536))))),$A444,dati_bdv!K$2:K$65536)","v":0},{"$f":"SUMIF(IF(dati_pdc!$C444=1,dati_bdv!$C$2:$C$65536,IF(dati_pdc!$C444=2,dati_bdv!$D$2:$D$65536,IF(dati_pdc!$C444=3,dati_bdv!$E$2:$E$65536,IF(dati_pdc!$C444=4,dati_bdv!$F$2:$F$65536,IF(dati_pdc!$C444=5,dati_bdv!$G$2:$G$65536,dati_bdv!$H$2:$H$65536))))),$A444,dati_bdv!L$2:L$65536)","v":0},{"$f":"SUMIF(IF(dati_pdc!$C444=1,dati_bdv!$C$2:$C$65536,IF(dati_pdc!$C444=2,dati_bdv!$D$2:$D$65536,IF(dati_pdc!$C444=3,dati_bdv!$E$2:$E$65536,IF(dati_pdc!$C444=4,dati_bdv!$F$2:$F$65536,IF(dati_pdc!$C444=5,dati_bdv!$G$2:$G$65536,dati_bdv!$H$2:$H$65536))))),$A444,dati_bdv!M$2:M$65536)","v":0},{"$f":"SUMIF(IF(dati_pdc!$C444=1,dati_bdv!$C$2:$C$65536,IF(dati_pdc!$C444=2,dati_bdv!$D$2:$D$65536,IF(dati_pdc!$C444=3,dati_bdv!$E$2:$E$65536,IF(dati_pdc!$C444=4,dati_bdv!$F$2:$F$65536,IF(dati_pdc!$C444=5,dati_bdv!$G$2:$G$65536,dati_bdv!$H$2:$H$65536))))),$A444,dati_bdv!N$2:N$65536)","v":0}]
[{"$f":"dati_pdc!A445","v":0},{"$f":"SUMIF(IF(dati_pdc!$C445=1,dati_bdv!$C$2:$C$65536,IF(dati_pdc!$C445=2,dati_bdv!$D$2:$D$65536,IF(dati_pdc!$C445=3,dati_bdv!$E$2:$E$65536,IF(dati_pdc!$C445=4,dati_bdv!$F$2:$F$65536,IF(dati_pdc!$C445=5,dati_bdv!$G$2:$G$65536,dati_bdv!$H$2:$H$65536))))),$A445,dati_bdv!J$2:J$65536)","v":0},{"$f":"SUMIF(IF(dati_pdc!$C445=1,dati_bdv!$C$2:$C$65536,IF(dati_pdc!$C445=2,dati_bdv!$D$2:$D$65536,IF(dati_pdc!$C445=3,dati_bdv!$E$2:$E$65536,IF(dati_pdc!$C445=4,dati_bdv!$F$2:$F$65536,IF(dati_pdc!$C445=5,dati_bdv!$G$2:$G$65536,dati_bdv!$H$2:$H$65536))))),$A445,dati_bdv!K$2:K$65536)","v":0},{"$f":"SUMIF(IF(dati_pdc!$C445=1,dati_bdv!$C$2:$C$65536,IF(dati_pdc!$C445=2,dati_bdv!$D$2:$D$65536,IF(dati_pdc!$C445=3,dati_bdv!$E$2:$E$65536,IF(dati_pdc!$C445=4,dati_bdv!$F$2:$F$65536,IF(dati_pdc!$C445=5,dati_bdv!$G$2:$G$65536,dati_bdv!$H$2:$H$65536))))),$A445,dati_bdv!L$2:L$65536)","v":0},{"$f":"SUMIF(IF(dati_pdc!$C445=1,dati_bdv!$C$2:$C$65536,IF(dati_pdc!$C445=2,dati_bdv!$D$2:$D$65536,IF(dati_pdc!$C445=3,dati_bdv!$E$2:$E$65536,IF(dati_pdc!$C445=4,dati_bdv!$F$2:$F$65536,IF(dati_pdc!$C445=5,dati_bdv!$G$2:$G$65536,dati_bdv!$H$2:$H$65536))))),$A445,dati_bdv!M$2:M$65536)","v":0},{"$f":"SUMIF(IF(dati_pdc!$C445=1,dati_bdv!$C$2:$C$65536,IF(dati_pdc!$C445=2,dati_bdv!$D$2:$D$65536,IF(dati_pdc!$C445=3,dati_bdv!$E$2:$E$65536,IF(dati_pdc!$C445=4,dati_bdv!$F$2:$F$65536,IF(dati_pdc!$C445=5,dati_bdv!$G$2:$G$65536,dati_bdv!$H$2:$H$65536))))),$A445,dati_bdv!N$2:N$65536)","v":0}]
[{"$f":"dati_pdc!A446","v":0},{"$f":"SUMIF(IF(dati_pdc!$C446=1,dati_bdv!$C$2:$C$65536,IF(dati_pdc!$C446=2,dati_bdv!$D$2:$D$65536,IF(dati_pdc!$C446=3,dati_bdv!$E$2:$E$65536,IF(dati_pdc!$C446=4,dati_bdv!$F$2:$F$65536,IF(dati_pdc!$C446=5,dati_bdv!$G$2:$G$65536,dati_bdv!$H$2:$H$65536))))),$A446,dati_bdv!J$2:J$65536)","v":0},{"$f":"SUMIF(IF(dati_pdc!$C446=1,dati_bdv!$C$2:$C$65536,IF(dati_pdc!$C446=2,dati_bdv!$D$2:$D$65536,IF(dati_pdc!$C446=3,dati_bdv!$E$2:$E$65536,IF(dati_pdc!$C446=4,dati_bdv!$F$2:$F$65536,IF(dati_pdc!$C446=5,dati_bdv!$G$2:$G$65536,dati_bdv!$H$2:$H$65536))))),$A446,dati_bdv!K$2:K$65536)","v":0},{"$f":"SUMIF(IF(dati_pdc!$C446=1,dati_bdv!$C$2:$C$65536,IF(dati_pdc!$C446=2,dati_bdv!$D$2:$D$65536,IF(dati_pdc!$C446=3,dati_bdv!$E$2:$E$65536,IF(dati_pdc!$C446=4,dati_bdv!$F$2:$F$65536,IF(dati_pdc!$C446=5,dati_bdv!$G$2:$G$65536,dati_bdv!$H$2:$H$65536))))),$A446,dati_bdv!L$2:L$65536)","v":0},{"$f":"SUMIF(IF(dati_pdc!$C446=1,dati_bdv!$C$2:$C$65536,IF(dati_pdc!$C446=2,dati_bdv!$D$2:$D$65536,IF(dati_pdc!$C446=3,dati_bdv!$E$2:$E$65536,IF(dati_pdc!$C446=4,dati_bdv!$F$2:$F$65536,IF(dati_pdc!$C446=5,dati_bdv!$G$2:$G$65536,dati_bdv!$H$2:$H$65536))))),$A446,dati_bdv!M$2:M$65536)","v":0},{"$f":"SUMIF(IF(dati_pdc!$C446=1,dati_bdv!$C$2:$C$65536,IF(dati_pdc!$C446=2,dati_bdv!$D$2:$D$65536,IF(dati_pdc!$C446=3,dati_bdv!$E$2:$E$65536,IF(dati_pdc!$C446=4,dati_bdv!$F$2:$F$65536,IF(dati_pdc!$C446=5,dati_bdv!$G$2:$G$65536,dati_bdv!$H$2:$H$65536))))),$A446,dati_bdv!N$2:N$65536)","v":0}]
[{"$f":"dati_pdc!A447","v":0},{"$f":"SUMIF(IF(dati_pdc!$C447=1,dati_bdv!$C$2:$C$65536,IF(dati_pdc!$C447=2,dati_bdv!$D$2:$D$65536,IF(dati_pdc!$C447=3,dati_bdv!$E$2:$E$65536,IF(dati_pdc!$C447=4,dati_bdv!$F$2:$F$65536,IF(dati_pdc!$C447=5,dati_bdv!$G$2:$G$65536,dati_bdv!$H$2:$H$65536))))),$A447,dati_bdv!J$2:J$65536)","v":0},{"$f":"SUMIF(IF(dati_pdc!$C447=1,dati_bdv!$C$2:$C$65536,IF(dati_pdc!$C447=2,dati_bdv!$D$2:$D$65536,IF(dati_pdc!$C447=3,dati_bdv!$E$2:$E$65536,IF(dati_pdc!$C447=4,dati_bdv!$F$2:$F$65536,IF(dati_pdc!$C447=5,dati_bdv!$G$2:$G$65536,dati_bdv!$H$2:$H$65536))))),$A447,dati_bdv!K$2:K$65536)","v":0},{"$f":"SUMIF(IF(dati_pdc!$C447=1,dati_bdv!$C$2:$C$65536,IF(dati_pdc!$C447=2,dati_bdv!$D$2:$D$65536,IF(dati_pdc!$C447=3,dati_bdv!$E$2:$E$65536,IF(dati_pdc!$C447=4,dati_bdv!$F$2:$F$65536,IF(dati_pdc!$C447=5,dati_bdv!$G$2:$G$65536,dati_bdv!$H$2:$H$65536))))),$A447,dati_bdv!L$2:L$65536)","v":0},{"$f":"SUMIF(IF(dati_pdc!$C447=1,dati_bdv!$C$2:$C$65536,IF(dati_pdc!$C447=2,dati_bdv!$D$2:$D$65536,IF(dati_pdc!$C447=3,dati_bdv!$E$2:$E$65536,IF(dati_pdc!$C447=4,dati_bdv!$F$2:$F$65536,IF(dati_pdc!$C447=5,dati_bdv!$G$2:$G$65536,dati_bdv!$H$2:$H$65536))))),$A447,dati_bdv!M$2:M$65536)","v":0},{"$f":"SUMIF(IF(dati_pdc!$C447=1,dati_bdv!$C$2:$C$65536,IF(dati_pdc!$C447=2,dati_bdv!$D$2:$D$65536,IF(dati_pdc!$C447=3,dati_bdv!$E$2:$E$65536,IF(dati_pdc!$C447=4,dati_bdv!$F$2:$F$65536,IF(dati_pdc!$C447=5,dati_bdv!$G$2:$G$65536,dati_bdv!$H$2:$H$65536))))),$A447,dati_bdv!N$2:N$65536)","v":0}]
[{"$f":"dati_pdc!A448","v":0},{"$f":"SUMIF(IF(dati_pdc!$C448=1,dati_bdv!$C$2:$C$65536,IF(dati_pdc!$C448=2,dati_bdv!$D$2:$D$65536,IF(dati_pdc!$C448=3,dati_bdv!$E$2:$E$65536,IF(dati_pdc!$C448=4,dati_bdv!$F$2:$F$65536,IF(dati_pdc!$C448=5,dati_bdv!$G$2:$G$65536,dati_bdv!$H$2:$H$65536))))),$A448,dati_bdv!J$2:J$65536)","v":0},{"$f":"SUMIF(IF(dati_pdc!$C448=1,dati_bdv!$C$2:$C$65536,IF(dati_pdc!$C448=2,dati_bdv!$D$2:$D$65536,IF(dati_pdc!$C448=3,dati_bdv!$E$2:$E$65536,IF(dati_pdc!$C448=4,dati_bdv!$F$2:$F$65536,IF(dati_pdc!$C448=5,dati_bdv!$G$2:$G$65536,dati_bdv!$H$2:$H$65536))))),$A448,dati_bdv!K$2:K$65536)","v":0},{"$f":"SUMIF(IF(dati_pdc!$C448=1,dati_bdv!$C$2:$C$65536,IF(dati_pdc!$C448=2,dati_bdv!$D$2:$D$65536,IF(dati_pdc!$C448=3,dati_bdv!$E$2:$E$65536,IF(dati_pdc!$C448=4,dati_bdv!$F$2:$F$65536,IF(dati_pdc!$C448=5,dati_bdv!$G$2:$G$65536,dati_bdv!$H$2:$H$65536))))),$A448,dati_bdv!L$2:L$65536)","v":0},{"$f":"SUMIF(IF(dati_pdc!$C448=1,dati_bdv!$C$2:$C$65536,IF(dati_pdc!$C448=2,dati_bdv!$D$2:$D$65536,IF(dati_pdc!$C448=3,dati_bdv!$E$2:$E$65536,IF(dati_pdc!$C448=4,dati_bdv!$F$2:$F$65536,IF(dati_pdc!$C448=5,dati_bdv!$G$2:$G$65536,dati_bdv!$H$2:$H$65536))))),$A448,dati_bdv!M$2:M$65536)","v":0},{"$f":"SUMIF(IF(dati_pdc!$C448=1,dati_bdv!$C$2:$C$65536,IF(dati_pdc!$C448=2,dati_bdv!$D$2:$D$65536,IF(dati_pdc!$C448=3,dati_bdv!$E$2:$E$65536,IF(dati_pdc!$C448=4,dati_bdv!$F$2:$F$65536,IF(dati_pdc!$C448=5,dati_bdv!$G$2:$G$65536,dati_bdv!$H$2:$H$65536))))),$A448,dati_bdv!N$2:N$65536)","v":0}]
[{"$f":"dati_pdc!A449","v":0},{"$f":"SUMIF(IF(dati_pdc!$C449=1,dati_bdv!$C$2:$C$65536,IF(dati_pdc!$C449=2,dati_bdv!$D$2:$D$65536,IF(dati_pdc!$C449=3,dati_bdv!$E$2:$E$65536,IF(dati_pdc!$C449=4,dati_bdv!$F$2:$F$65536,IF(dati_pdc!$C449=5,dati_bdv!$G$2:$G$65536,dati_bdv!$H$2:$H$65536))))),$A449,dati_bdv!J$2:J$65536)","v":0},{"$f":"SUMIF(IF(dati_pdc!$C449=1,dati_bdv!$C$2:$C$65536,IF(dati_pdc!$C449=2,dati_bdv!$D$2:$D$65536,IF(dati_pdc!$C449=3,dati_bdv!$E$2:$E$65536,IF(dati_pdc!$C449=4,dati_bdv!$F$2:$F$65536,IF(dati_pdc!$C449=5,dati_bdv!$G$2:$G$65536,dati_bdv!$H$2:$H$65536))))),$A449,dati_bdv!K$2:K$65536)","v":0},{"$f":"SUMIF(IF(dati_pdc!$C449=1,dati_bdv!$C$2:$C$65536,IF(dati_pdc!$C449=2,dati_bdv!$D$2:$D$65536,IF(dati_pdc!$C449=3,dati_bdv!$E$2:$E$65536,IF(dati_pdc!$C449=4,dati_bdv!$F$2:$F$65536,IF(dati_pdc!$C449=5,dati_bdv!$G$2:$G$65536,dati_bdv!$H$2:$H$65536))))),$A449,dati_bdv!L$2:L$65536)","v":0},{"$f":"SUMIF(IF(dati_pdc!$C449=1,dati_bdv!$C$2:$C$65536,IF(dati_pdc!$C449=2,dati_bdv!$D$2:$D$65536,IF(dati_pdc!$C449=3,dati_bdv!$E$2:$E$65536,IF(dati_pdc!$C449=4,dati_bdv!$F$2:$F$65536,IF(dati_pdc!$C449=5,dati_bdv!$G$2:$G$65536,dati_bdv!$H$2:$H$65536))))),$A449,dati_bdv!M$2:M$65536)","v":0},{"$f":"SUMIF(IF(dati_pdc!$C449=1,dati_bdv!$C$2:$C$65536,IF(dati_pdc!$C449=2,dati_bdv!$D$2:$D$65536,IF(dati_pdc!$C449=3,dati_bdv!$E$2:$E$65536,IF(dati_pdc!$C449=4,dati_bdv!$F$2:$F$65536,IF(dati_pdc!$C449=5,dati_bdv!$G$2:$G$65536,dati_bdv!$H$2:$H$65536))))),$A449,dati_bdv!N$2:N$65536)","v":0}]
[{"$f":"dati_pdc!A450","v":0},{"$f":"SUMIF(IF(dati_pdc!$C450=1,dati_bdv!$C$2:$C$65536,IF(dati_pdc!$C450=2,dati_bdv!$D$2:$D$65536,IF(dati_pdc!$C450=3,dati_bdv!$E$2:$E$65536,IF(dati_pdc!$C450=4,dati_bdv!$F$2:$F$65536,IF(dati_pdc!$C450=5,dati_bdv!$G$2:$G$65536,dati_bdv!$H$2:$H$65536))))),$A450,dati_bdv!J$2:J$65536)","v":0},{"$f":"SUMIF(IF(dati_pdc!$C450=1,dati_bdv!$C$2:$C$65536,IF(dati_pdc!$C450=2,dati_bdv!$D$2:$D$65536,IF(dati_pdc!$C450=3,dati_bdv!$E$2:$E$65536,IF(dati_pdc!$C450=4,dati_bdv!$F$2:$F$65536,IF(dati_pdc!$C450=5,dati_bdv!$G$2:$G$65536,dati_bdv!$H$2:$H$65536))))),$A450,dati_bdv!K$2:K$65536)","v":0},{"$f":"SUMIF(IF(dati_pdc!$C450=1,dati_bdv!$C$2:$C$65536,IF(dati_pdc!$C450=2,dati_bdv!$D$2:$D$65536,IF(dati_pdc!$C450=3,dati_bdv!$E$2:$E$65536,IF(dati_pdc!$C450=4,dati_bdv!$F$2:$F$65536,IF(dati_pdc!$C450=5,dati_bdv!$G$2:$G$65536,dati_bdv!$H$2:$H$65536))))),$A450,dati_bdv!L$2:L$65536)","v":0},{"$f":"SUMIF(IF(dati_pdc!$C450=1,dati_bdv!$C$2:$C$65536,IF(dati_pdc!$C450=2,dati_bdv!$D$2:$D$65536,IF(dati_pdc!$C450=3,dati_bdv!$E$2:$E$65536,IF(dati_pdc!$C450=4,dati_bdv!$F$2:$F$65536,IF(dati_pdc!$C450=5,dati_bdv!$G$2:$G$65536,dati_bdv!$H$2:$H$65536))))),$A450,dati_bdv!M$2:M$65536)","v":0},{"$f":"SUMIF(IF(dati_pdc!$C450=1,dati_bdv!$C$2:$C$65536,IF(dati_pdc!$C450=2,dati_bdv!$D$2:$D$65536,IF(dati_pdc!$C450=3,dati_bdv!$E$2:$E$65536,IF(dati_pdc!$C450=4,dati_bdv!$F$2:$F$65536,IF(dati_pdc!$C450=5,dati_bdv!$G$2:$G$65536,dati_bdv!$H$2:$H$65536))))),$A450,dati_bdv!N$2:N$65536)","v":0}]
[{"$f":"dati_pdc!A451","v":0},{"$f":"SUMIF(IF(dati_pdc!$C451=1,dati_bdv!$C$2:$C$65536,IF(dati_pdc!$C451=2,dati_bdv!$D$2:$D$65536,IF(dati_pdc!$C451=3,dati_bdv!$E$2:$E$65536,IF(dati_pdc!$C451=4,dati_bdv!$F$2:$F$65536,IF(dati_pdc!$C451=5,dati_bdv!$G$2:$G$65536,dati_bdv!$H$2:$H$65536))))),$A451,dati_bdv!J$2:J$65536)","v":0},{"$f":"SUMIF(IF(dati_pdc!$C451=1,dati_bdv!$C$2:$C$65536,IF(dati_pdc!$C451=2,dati_bdv!$D$2:$D$65536,IF(dati_pdc!$C451=3,dati_bdv!$E$2:$E$65536,IF(dati_pdc!$C451=4,dati_bdv!$F$2:$F$65536,IF(dati_pdc!$C451=5,dati_bdv!$G$2:$G$65536,dati_bdv!$H$2:$H$65536))))),$A451,dati_bdv!K$2:K$65536)","v":0},{"$f":"SUMIF(IF(dati_pdc!$C451=1,dati_bdv!$C$2:$C$65536,IF(dati_pdc!$C451=2,dati_bdv!$D$2:$D$65536,IF(dati_pdc!$C451=3,dati_bdv!$E$2:$E$65536,IF(dati_pdc!$C451=4,dati_bdv!$F$2:$F$65536,IF(dati_pdc!$C451=5,dati_bdv!$G$2:$G$65536,dati_bdv!$H$2:$H$65536))))),$A451,dati_bdv!L$2:L$65536)","v":0},{"$f":"SUMIF(IF(dati_pdc!$C451=1,dati_bdv!$C$2:$C$65536,IF(dati_pdc!$C451=2,dati_bdv!$D$2:$D$65536,IF(dati_pdc!$C451=3,dati_bdv!$E$2:$E$65536,IF(dati_pdc!$C451=4,dati_bdv!$F$2:$F$65536,IF(dati_pdc!$C451=5,dati_bdv!$G$2:$G$65536,dati_bdv!$H$2:$H$65536))))),$A451,dati_bdv!M$2:M$65536)","v":0},{"$f":"SUMIF(IF(dati_pdc!$C451=1,dati_bdv!$C$2:$C$65536,IF(dati_pdc!$C451=2,dati_bdv!$D$2:$D$65536,IF(dati_pdc!$C451=3,dati_bdv!$E$2:$E$65536,IF(dati_pdc!$C451=4,dati_bdv!$F$2:$F$65536,IF(dati_pdc!$C451=5,dati_bdv!$G$2:$G$65536,dati_bdv!$H$2:$H$65536))))),$A451,dati_bdv!N$2:N$65536)","v":0}]
[{"$f":"dati_pdc!A452","v":0},{"$f":"SUMIF(IF(dati_pdc!$C452=1,dati_bdv!$C$2:$C$65536,IF(dati_pdc!$C452=2,dati_bdv!$D$2:$D$65536,IF(dati_pdc!$C452=3,dati_bdv!$E$2:$E$65536,IF(dati_pdc!$C452=4,dati_bdv!$F$2:$F$65536,IF(dati_pdc!$C452=5,dati_bdv!$G$2:$G$65536,dati_bdv!$H$2:$H$65536))))),$A452,dati_bdv!J$2:J$65536)","v":0},{"$f":"SUMIF(IF(dati_pdc!$C452=1,dati_bdv!$C$2:$C$65536,IF(dati_pdc!$C452=2,dati_bdv!$D$2:$D$65536,IF(dati_pdc!$C452=3,dati_bdv!$E$2:$E$65536,IF(dati_pdc!$C452=4,dati_bdv!$F$2:$F$65536,IF(dati_pdc!$C452=5,dati_bdv!$G$2:$G$65536,dati_bdv!$H$2:$H$65536))))),$A452,dati_bdv!K$2:K$65536)","v":0},{"$f":"SUMIF(IF(dati_pdc!$C452=1,dati_bdv!$C$2:$C$65536,IF(dati_pdc!$C452=2,dati_bdv!$D$2:$D$65536,IF(dati_pdc!$C452=3,dati_bdv!$E$2:$E$65536,IF(dati_pdc!$C452=4,dati_bdv!$F$2:$F$65536,IF(dati_pdc!$C452=5,dati_bdv!$G$2:$G$65536,dati_bdv!$H$2:$H$65536))))),$A452,dati_bdv!L$2:L$65536)","v":0},{"$f":"SUMIF(IF(dati_pdc!$C452=1,dati_bdv!$C$2:$C$65536,IF(dati_pdc!$C452=2,dati_bdv!$D$2:$D$65536,IF(dati_pdc!$C452=3,dati_bdv!$E$2:$E$65536,IF(dati_pdc!$C452=4,dati_bdv!$F$2:$F$65536,IF(dati_pdc!$C452=5,dati_bdv!$G$2:$G$65536,dati_bdv!$H$2:$H$65536))))),$A452,dati_bdv!M$2:M$65536)","v":0},{"$f":"SUMIF(IF(dati_pdc!$C452=1,dati_bdv!$C$2:$C$65536,IF(dati_pdc!$C452=2,dati_bdv!$D$2:$D$65536,IF(dati_pdc!$C452=3,dati_bdv!$E$2:$E$65536,IF(dati_pdc!$C452=4,dati_bdv!$F$2:$F$65536,IF(dati_pdc!$C452=5,dati_bdv!$G$2:$G$65536,dati_bdv!$H$2:$H$65536))))),$A452,dati_bdv!N$2:N$65536)","v":0}]
[{"$f":"dati_pdc!A453","v":0},{"$f":"SUMIF(IF(dati_pdc!$C453=1,dati_bdv!$C$2:$C$65536,IF(dati_pdc!$C453=2,dati_bdv!$D$2:$D$65536,IF(dati_pdc!$C453=3,dati_bdv!$E$2:$E$65536,IF(dati_pdc!$C453=4,dati_bdv!$F$2:$F$65536,IF(dati_pdc!$C453=5,dati_bdv!$G$2:$G$65536,dati_bdv!$H$2:$H$65536))))),$A453,dati_bdv!J$2:J$65536)","v":0},{"$f":"SUMIF(IF(dati_pdc!$C453=1,dati_bdv!$C$2:$C$65536,IF(dati_pdc!$C453=2,dati_bdv!$D$2:$D$65536,IF(dati_pdc!$C453=3,dati_bdv!$E$2:$E$65536,IF(dati_pdc!$C453=4,dati_bdv!$F$2:$F$65536,IF(dati_pdc!$C453=5,dati_bdv!$G$2:$G$65536,dati_bdv!$H$2:$H$65536))))),$A453,dati_bdv!K$2:K$65536)","v":0},{"$f":"SUMIF(IF(dati_pdc!$C453=1,dati_bdv!$C$2:$C$65536,IF(dati_pdc!$C453=2,dati_bdv!$D$2:$D$65536,IF(dati_pdc!$C453=3,dati_bdv!$E$2:$E$65536,IF(dati_pdc!$C453=4,dati_bdv!$F$2:$F$65536,IF(dati_pdc!$C453=5,dati_bdv!$G$2:$G$65536,dati_bdv!$H$2:$H$65536))))),$A453,dati_bdv!L$2:L$65536)","v":0},{"$f":"SUMIF(IF(dati_pdc!$C453=1,dati_bdv!$C$2:$C$65536,IF(dati_pdc!$C453=2,dati_bdv!$D$2:$D$65536,IF(dati_pdc!$C453=3,dati_bdv!$E$2:$E$65536,IF(dati_pdc!$C453=4,dati_bdv!$F$2:$F$65536,IF(dati_pdc!$C453=5,dati_bdv!$G$2:$G$65536,dati_bdv!$H$2:$H$65536))))),$A453,dati_bdv!M$2:M$65536)","v":0},{"$f":"SUMIF(IF(dati_pdc!$C453=1,dati_bdv!$C$2:$C$65536,IF(dati_pdc!$C453=2,dati_bdv!$D$2:$D$65536,IF(dati_pdc!$C453=3,dati_bdv!$E$2:$E$65536,IF(dati_pdc!$C453=4,dati_bdv!$F$2:$F$65536,IF(dati_pdc!$C453=5,dati_bdv!$G$2:$G$65536,dati_bdv!$H$2:$H$65536))))),$A453,dati_bdv!N$2:N$65536)","v":0}]
[{"$f":"dati_pdc!A454","v":0},{"$f":"SUMIF(IF(dati_pdc!$C454=1,dati_bdv!$C$2:$C$65536,IF(dati_pdc!$C454=2,dati_bdv!$D$2:$D$65536,IF(dati_pdc!$C454=3,dati_bdv!$E$2:$E$65536,IF(dati_pdc!$C454=4,dati_bdv!$F$2:$F$65536,IF(dati_pdc!$C454=5,dati_bdv!$G$2:$G$65536,dati_bdv!$H$2:$H$65536))))),$A454,dati_bdv!J$2:J$65536)","v":0},{"$f":"SUMIF(IF(dati_pdc!$C454=1,dati_bdv!$C$2:$C$65536,IF(dati_pdc!$C454=2,dati_bdv!$D$2:$D$65536,IF(dati_pdc!$C454=3,dati_bdv!$E$2:$E$65536,IF(dati_pdc!$C454=4,dati_bdv!$F$2:$F$65536,IF(dati_pdc!$C454=5,dati_bdv!$G$2:$G$65536,dati_bdv!$H$2:$H$65536))))),$A454,dati_bdv!K$2:K$65536)","v":0},{"$f":"SUMIF(IF(dati_pdc!$C454=1,dati_bdv!$C$2:$C$65536,IF(dati_pdc!$C454=2,dati_bdv!$D$2:$D$65536,IF(dati_pdc!$C454=3,dati_bdv!$E$2:$E$65536,IF(dati_pdc!$C454=4,dati_bdv!$F$2:$F$65536,IF(dati_pdc!$C454=5,dati_bdv!$G$2:$G$65536,dati_bdv!$H$2:$H$65536))))),$A454,dati_bdv!L$2:L$65536)","v":0},{"$f":"SUMIF(IF(dati_pdc!$C454=1,dati_bdv!$C$2:$C$65536,IF(dati_pdc!$C454=2,dati_bdv!$D$2:$D$65536,IF(dati_pdc!$C454=3,dati_bdv!$E$2:$E$65536,IF(dati_pdc!$C454=4,dati_bdv!$F$2:$F$65536,IF(dati_pdc!$C454=5,dati_bdv!$G$2:$G$65536,dati_bdv!$H$2:$H$65536))))),$A454,dati_bdv!M$2:M$65536)","v":0},{"$f":"SUMIF(IF(dati_pdc!$C454=1,dati_bdv!$C$2:$C$65536,IF(dati_pdc!$C454=2,dati_bdv!$D$2:$D$65536,IF(dati_pdc!$C454=3,dati_bdv!$E$2:$E$65536,IF(dati_pdc!$C454=4,dati_bdv!$F$2:$F$65536,IF(dati_pdc!$C454=5,dati_bdv!$G$2:$G$65536,dati_bdv!$H$2:$H$65536))))),$A454,dati_bdv!N$2:N$65536)","v":0}]
[{"$f":"dati_pdc!A455","v":0},{"$f":"SUMIF(IF(dati_pdc!$C455=1,dati_bdv!$C$2:$C$65536,IF(dati_pdc!$C455=2,dati_bdv!$D$2:$D$65536,IF(dati_pdc!$C455=3,dati_bdv!$E$2:$E$65536,IF(dati_pdc!$C455=4,dati_bdv!$F$2:$F$65536,IF(dati_pdc!$C455=5,dati_bdv!$G$2:$G$65536,dati_bdv!$H$2:$H$65536))))),$A455,dati_bdv!J$2:J$65536)","v":0},{"$f":"SUMIF(IF(dati_pdc!$C455=1,dati_bdv!$C$2:$C$65536,IF(dati_pdc!$C455=2,dati_bdv!$D$2:$D$65536,IF(dati_pdc!$C455=3,dati_bdv!$E$2:$E$65536,IF(dati_pdc!$C455=4,dati_bdv!$F$2:$F$65536,IF(dati_pdc!$C455=5,dati_bdv!$G$2:$G$65536,dati_bdv!$H$2:$H$65536))))),$A455,dati_bdv!K$2:K$65536)","v":0},{"$f":"SUMIF(IF(dati_pdc!$C455=1,dati_bdv!$C$2:$C$65536,IF(dati_pdc!$C455=2,dati_bdv!$D$2:$D$65536,IF(dati_pdc!$C455=3,dati_bdv!$E$2:$E$65536,IF(dati_pdc!$C455=4,dati_bdv!$F$2:$F$65536,IF(dati_pdc!$C455=5,dati_bdv!$G$2:$G$65536,dati_bdv!$H$2:$H$65536))))),$A455,dati_bdv!L$2:L$65536)","v":0},{"$f":"SUMIF(IF(dati_pdc!$C455=1,dati_bdv!$C$2:$C$65536,IF(dati_pdc!$C455=2,dati_bdv!$D$2:$D$65536,IF(dati_pdc!$C455=3,dati_bdv!$E$2:$E$65536,IF(dati_pdc!$C455=4,dati_bdv!$F$2:$F$65536,IF(dati_pdc!$C455=5,dati_bdv!$G$2:$G$65536,dati_bdv!$H$2:$H$65536))))),$A455,dati_bdv!M$2:M$65536)","v":0},{"$f":"SUMIF(IF(dati_pdc!$C455=1,dati_bdv!$C$2:$C$65536,IF(dati_pdc!$C455=2,dati_bdv!$D$2:$D$65536,IF(dati_pdc!$C455=3,dati_bdv!$E$2:$E$65536,IF(dati_pdc!$C455=4,dati_bdv!$F$2:$F$65536,IF(dati_pdc!$C455=5,dati_bdv!$G$2:$G$65536,dati_bdv!$H$2:$H$65536))))),$A455,dati_bdv!N$2:N$65536)","v":0}]
[{"$f":"dati_pdc!A456","v":0},{"$f":"SUMIF(IF(dati_pdc!$C456=1,dati_bdv!$C$2:$C$65536,IF(dati_pdc!$C456=2,dati_bdv!$D$2:$D$65536,IF(dati_pdc!$C456=3,dati_bdv!$E$2:$E$65536,IF(dati_pdc!$C456=4,dati_bdv!$F$2:$F$65536,IF(dati_pdc!$C456=5,dati_bdv!$G$2:$G$65536,dati_bdv!$H$2:$H$65536))))),$A456,dati_bdv!J$2:J$65536)","v":0},{"$f":"SUMIF(IF(dati_pdc!$C456=1,dati_bdv!$C$2:$C$65536,IF(dati_pdc!$C456=2,dati_bdv!$D$2:$D$65536,IF(dati_pdc!$C456=3,dati_bdv!$E$2:$E$65536,IF(dati_pdc!$C456=4,dati_bdv!$F$2:$F$65536,IF(dati_pdc!$C456=5,dati_bdv!$G$2:$G$65536,dati_bdv!$H$2:$H$65536))))),$A456,dati_bdv!K$2:K$65536)","v":0},{"$f":"SUMIF(IF(dati_pdc!$C456=1,dati_bdv!$C$2:$C$65536,IF(dati_pdc!$C456=2,dati_bdv!$D$2:$D$65536,IF(dati_pdc!$C456=3,dati_bdv!$E$2:$E$65536,IF(dati_pdc!$C456=4,dati_bdv!$F$2:$F$65536,IF(dati_pdc!$C456=5,dati_bdv!$G$2:$G$65536,dati_bdv!$H$2:$H$65536))))),$A456,dati_bdv!L$2:L$65536)","v":0},{"$f":"SUMIF(IF(dati_pdc!$C456=1,dati_bdv!$C$2:$C$65536,IF(dati_pdc!$C456=2,dati_bdv!$D$2:$D$65536,IF(dati_pdc!$C456=3,dati_bdv!$E$2:$E$65536,IF(dati_pdc!$C456=4,dati_bdv!$F$2:$F$65536,IF(dati_pdc!$C456=5,dati_bdv!$G$2:$G$65536,dati_bdv!$H$2:$H$65536))))),$A456,dati_bdv!M$2:M$65536)","v":0},{"$f":"SUMIF(IF(dati_pdc!$C456=1,dati_bdv!$C$2:$C$65536,IF(dati_pdc!$C456=2,dati_bdv!$D$2:$D$65536,IF(dati_pdc!$C456=3,dati_bdv!$E$2:$E$65536,IF(dati_pdc!$C456=4,dati_bdv!$F$2:$F$65536,IF(dati_pdc!$C456=5,dati_bdv!$G$2:$G$65536,dati_bdv!$H$2:$H$65536))))),$A456,dati_bdv!N$2:N$65536)","v":0}]
[{"$f":"dati_pdc!A457","v":0},{"$f":"SUMIF(IF(dati_pdc!$C457=1,dati_bdv!$C$2:$C$65536,IF(dati_pdc!$C457=2,dati_bdv!$D$2:$D$65536,IF(dati_pdc!$C457=3,dati_bdv!$E$2:$E$65536,IF(dati_pdc!$C457=4,dati_bdv!$F$2:$F$65536,IF(dati_pdc!$C457=5,dati_bdv!$G$2:$G$65536,dati_bdv!$H$2:$H$65536))))),$A457,dati_bdv!J$2:J$65536)","v":0},{"$f":"SUMIF(IF(dati_pdc!$C457=1,dati_bdv!$C$2:$C$65536,IF(dati_pdc!$C457=2,dati_bdv!$D$2:$D$65536,IF(dati_pdc!$C457=3,dati_bdv!$E$2:$E$65536,IF(dati_pdc!$C457=4,dati_bdv!$F$2:$F$65536,IF(dati_pdc!$C457=5,dati_bdv!$G$2:$G$65536,dati_bdv!$H$2:$H$65536))))),$A457,dati_bdv!K$2:K$65536)","v":0},{"$f":"SUMIF(IF(dati_pdc!$C457=1,dati_bdv!$C$2:$C$65536,IF(dati_pdc!$C457=2,dati_bdv!$D$2:$D$65536,IF(dati_pdc!$C457=3,dati_bdv!$E$2:$E$65536,IF(dati_pdc!$C457=4,dati_bdv!$F$2:$F$65536,IF(dati_pdc!$C457=5,dati_bdv!$G$2:$G$65536,dati_bdv!$H$2:$H$65536))))),$A457,dati_bdv!L$2:L$65536)","v":0},{"$f":"SUMIF(IF(dati_pdc!$C457=1,dati_bdv!$C$2:$C$65536,IF(dati_pdc!$C457=2,dati_bdv!$D$2:$D$65536,IF(dati_pdc!$C457=3,dati_bdv!$E$2:$E$65536,IF(dati_pdc!$C457=4,dati_bdv!$F$2:$F$65536,IF(dati_pdc!$C457=5,dati_bdv!$G$2:$G$65536,dati_bdv!$H$2:$H$65536))))),$A457,dati_bdv!M$2:M$65536)","v":0},{"$f":"SUMIF(IF(dati_pdc!$C457=1,dati_bdv!$C$2:$C$65536,IF(dati_pdc!$C457=2,dati_bdv!$D$2:$D$65536,IF(dati_pdc!$C457=3,dati_bdv!$E$2:$E$65536,IF(dati_pdc!$C457=4,dati_bdv!$F$2:$F$65536,IF(dati_pdc!$C457=5,dati_bdv!$G$2:$G$65536,dati_bdv!$H$2:$H$65536))))),$A457,dati_bdv!N$2:N$65536)","v":0}]
[{"$f":"dati_pdc!A458","v":0},{"$f":"SUMIF(IF(dati_pdc!$C458=1,dati_bdv!$C$2:$C$65536,IF(dati_pdc!$C458=2,dati_bdv!$D$2:$D$65536,IF(dati_pdc!$C458=3,dati_bdv!$E$2:$E$65536,IF(dati_pdc!$C458=4,dati_bdv!$F$2:$F$65536,IF(dati_pdc!$C458=5,dati_bdv!$G$2:$G$65536,dati_bdv!$H$2:$H$65536))))),$A458,dati_bdv!J$2:J$65536)","v":0},{"$f":"SUMIF(IF(dati_pdc!$C458=1,dati_bdv!$C$2:$C$65536,IF(dati_pdc!$C458=2,dati_bdv!$D$2:$D$65536,IF(dati_pdc!$C458=3,dati_bdv!$E$2:$E$65536,IF(dati_pdc!$C458=4,dati_bdv!$F$2:$F$65536,IF(dati_pdc!$C458=5,dati_bdv!$G$2:$G$65536,dati_bdv!$H$2:$H$65536))))),$A458,dati_bdv!K$2:K$65536)","v":0},{"$f":"SUMIF(IF(dati_pdc!$C458=1,dati_bdv!$C$2:$C$65536,IF(dati_pdc!$C458=2,dati_bdv!$D$2:$D$65536,IF(dati_pdc!$C458=3,dati_bdv!$E$2:$E$65536,IF(dati_pdc!$C458=4,dati_bdv!$F$2:$F$65536,IF(dati_pdc!$C458=5,dati_bdv!$G$2:$G$65536,dati_bdv!$H$2:$H$65536))))),$A458,dati_bdv!L$2:L$65536)","v":0},{"$f":"SUMIF(IF(dati_pdc!$C458=1,dati_bdv!$C$2:$C$65536,IF(dati_pdc!$C458=2,dati_bdv!$D$2:$D$65536,IF(dati_pdc!$C458=3,dati_bdv!$E$2:$E$65536,IF(dati_pdc!$C458=4,dati_bdv!$F$2:$F$65536,IF(dati_pdc!$C458=5,dati_bdv!$G$2:$G$65536,dati_bdv!$H$2:$H$65536))))),$A458,dati_bdv!M$2:M$65536)","v":0},{"$f":"SUMIF(IF(dati_pdc!$C458=1,dati_bdv!$C$2:$C$65536,IF(dati_pdc!$C458=2,dati_bdv!$D$2:$D$65536,IF(dati_pdc!$C458=3,dati_bdv!$E$2:$E$65536,IF(dati_pdc!$C458=4,dati_bdv!$F$2:$F$65536,IF(dati_pdc!$C458=5,dati_bdv!$G$2:$G$65536,dati_bdv!$H$2:$H$65536))))),$A458,dati_bdv!N$2:N$65536)","v":0}]
[{"$f":"dati_pdc!A459","v":0},{"$f":"SUMIF(IF(dati_pdc!$C459=1,dati_bdv!$C$2:$C$65536,IF(dati_pdc!$C459=2,dati_bdv!$D$2:$D$65536,IF(dati_pdc!$C459=3,dati_bdv!$E$2:$E$65536,IF(dati_pdc!$C459=4,dati_bdv!$F$2:$F$65536,IF(dati_pdc!$C459=5,dati_bdv!$G$2:$G$65536,dati_bdv!$H$2:$H$65536))))),$A459,dati_bdv!J$2:J$65536)","v":0},{"$f":"SUMIF(IF(dati_pdc!$C459=1,dati_bdv!$C$2:$C$65536,IF(dati_pdc!$C459=2,dati_bdv!$D$2:$D$65536,IF(dati_pdc!$C459=3,dati_bdv!$E$2:$E$65536,IF(dati_pdc!$C459=4,dati_bdv!$F$2:$F$65536,IF(dati_pdc!$C459=5,dati_bdv!$G$2:$G$65536,dati_bdv!$H$2:$H$65536))))),$A459,dati_bdv!K$2:K$65536)","v":0},{"$f":"SUMIF(IF(dati_pdc!$C459=1,dati_bdv!$C$2:$C$65536,IF(dati_pdc!$C459=2,dati_bdv!$D$2:$D$65536,IF(dati_pdc!$C459=3,dati_bdv!$E$2:$E$65536,IF(dati_pdc!$C459=4,dati_bdv!$F$2:$F$65536,IF(dati_pdc!$C459=5,dati_bdv!$G$2:$G$65536,dati_bdv!$H$2:$H$65536))))),$A459,dati_bdv!L$2:L$65536)","v":0},{"$f":"SUMIF(IF(dati_pdc!$C459=1,dati_bdv!$C$2:$C$65536,IF(dati_pdc!$C459=2,dati_bdv!$D$2:$D$65536,IF(dati_pdc!$C459=3,dati_bdv!$E$2:$E$65536,IF(dati_pdc!$C459=4,dati_bdv!$F$2:$F$65536,IF(dati_pdc!$C459=5,dati_bdv!$G$2:$G$65536,dati_bdv!$H$2:$H$65536))))),$A459,dati_bdv!M$2:M$65536)","v":0},{"$f":"SUMIF(IF(dati_pdc!$C459=1,dati_bdv!$C$2:$C$65536,IF(dati_pdc!$C459=2,dati_bdv!$D$2:$D$65536,IF(dati_pdc!$C459=3,dati_bdv!$E$2:$E$65536,IF(dati_pdc!$C459=4,dati_bdv!$F$2:$F$65536,IF(dati_pdc!$C459=5,dati_bdv!$G$2:$G$65536,dati_bdv!$H$2:$H$65536))))),$A459,dati_bdv!N$2:N$65536)","v":0}]
[{"$f":"dati_pdc!A460","v":0},{"$f":"SUMIF(IF(dati_pdc!$C460=1,dati_bdv!$C$2:$C$65536,IF(dati_pdc!$C460=2,dati_bdv!$D$2:$D$65536,IF(dati_pdc!$C460=3,dati_bdv!$E$2:$E$65536,IF(dati_pdc!$C460=4,dati_bdv!$F$2:$F$65536,IF(dati_pdc!$C460=5,dati_bdv!$G$2:$G$65536,dati_bdv!$H$2:$H$65536))))),$A460,dati_bdv!J$2:J$65536)","v":0},{"$f":"SUMIF(IF(dati_pdc!$C460=1,dati_bdv!$C$2:$C$65536,IF(dati_pdc!$C460=2,dati_bdv!$D$2:$D$65536,IF(dati_pdc!$C460=3,dati_bdv!$E$2:$E$65536,IF(dati_pdc!$C460=4,dati_bdv!$F$2:$F$65536,IF(dati_pdc!$C460=5,dati_bdv!$G$2:$G$65536,dati_bdv!$H$2:$H$65536))))),$A460,dati_bdv!K$2:K$65536)","v":0},{"$f":"SUMIF(IF(dati_pdc!$C460=1,dati_bdv!$C$2:$C$65536,IF(dati_pdc!$C460=2,dati_bdv!$D$2:$D$65536,IF(dati_pdc!$C460=3,dati_bdv!$E$2:$E$65536,IF(dati_pdc!$C460=4,dati_bdv!$F$2:$F$65536,IF(dati_pdc!$C460=5,dati_bdv!$G$2:$G$65536,dati_bdv!$H$2:$H$65536))))),$A460,dati_bdv!L$2:L$65536)","v":0},{"$f":"SUMIF(IF(dati_pdc!$C460=1,dati_bdv!$C$2:$C$65536,IF(dati_pdc!$C460=2,dati_bdv!$D$2:$D$65536,IF(dati_pdc!$C460=3,dati_bdv!$E$2:$E$65536,IF(dati_pdc!$C460=4,dati_bdv!$F$2:$F$65536,IF(dati_pdc!$C460=5,dati_bdv!$G$2:$G$65536,dati_bdv!$H$2:$H$65536))))),$A460,dati_bdv!M$2:M$65536)","v":0},{"$f":"SUMIF(IF(dati_pdc!$C460=1,dati_bdv!$C$2:$C$65536,IF(dati_pdc!$C460=2,dati_bdv!$D$2:$D$65536,IF(dati_pdc!$C460=3,dati_bdv!$E$2:$E$65536,IF(dati_pdc!$C460=4,dati_bdv!$F$2:$F$65536,IF(dati_pdc!$C460=5,dati_bdv!$G$2:$G$65536,dati_bdv!$H$2:$H$65536))))),$A460,dati_bdv!N$2:N$65536)","v":0}]
[{"$f":"dati_pdc!A461","v":0},{"$f":"SUMIF(IF(dati_pdc!$C461=1,dati_bdv!$C$2:$C$65536,IF(dati_pdc!$C461=2,dati_bdv!$D$2:$D$65536,IF(dati_pdc!$C461=3,dati_bdv!$E$2:$E$65536,IF(dati_pdc!$C461=4,dati_bdv!$F$2:$F$65536,IF(dati_pdc!$C461=5,dati_bdv!$G$2:$G$65536,dati_bdv!$H$2:$H$65536))))),$A461,dati_bdv!J$2:J$65536)","v":0},{"$f":"SUMIF(IF(dati_pdc!$C461=1,dati_bdv!$C$2:$C$65536,IF(dati_pdc!$C461=2,dati_bdv!$D$2:$D$65536,IF(dati_pdc!$C461=3,dati_bdv!$E$2:$E$65536,IF(dati_pdc!$C461=4,dati_bdv!$F$2:$F$65536,IF(dati_pdc!$C461=5,dati_bdv!$G$2:$G$65536,dati_bdv!$H$2:$H$65536))))),$A461,dati_bdv!K$2:K$65536)","v":0},{"$f":"SUMIF(IF(dati_pdc!$C461=1,dati_bdv!$C$2:$C$65536,IF(dati_pdc!$C461=2,dati_bdv!$D$2:$D$65536,IF(dati_pdc!$C461=3,dati_bdv!$E$2:$E$65536,IF(dati_pdc!$C461=4,dati_bdv!$F$2:$F$65536,IF(dati_pdc!$C461=5,dati_bdv!$G$2:$G$65536,dati_bdv!$H$2:$H$65536))))),$A461,dati_bdv!L$2:L$65536)","v":0},{"$f":"SUMIF(IF(dati_pdc!$C461=1,dati_bdv!$C$2:$C$65536,IF(dati_pdc!$C461=2,dati_bdv!$D$2:$D$65536,IF(dati_pdc!$C461=3,dati_bdv!$E$2:$E$65536,IF(dati_pdc!$C461=4,dati_bdv!$F$2:$F$65536,IF(dati_pdc!$C461=5,dati_bdv!$G$2:$G$65536,dati_bdv!$H$2:$H$65536))))),$A461,dati_bdv!M$2:M$65536)","v":0},{"$f":"SUMIF(IF(dati_pdc!$C461=1,dati_bdv!$C$2:$C$65536,IF(dati_pdc!$C461=2,dati_bdv!$D$2:$D$65536,IF(dati_pdc!$C461=3,dati_bdv!$E$2:$E$65536,IF(dati_pdc!$C461=4,dati_bdv!$F$2:$F$65536,IF(dati_pdc!$C461=5,dati_bdv!$G$2:$G$65536,dati_bdv!$H$2:$H$65536))))),$A461,dati_bdv!N$2:N$65536)","v":0}]
[{"$f":"dati_pdc!A462","v":0},{"$f":"SUMIF(IF(dati_pdc!$C462=1,dati_bdv!$C$2:$C$65536,IF(dati_pdc!$C462=2,dati_bdv!$D$2:$D$65536,IF(dati_pdc!$C462=3,dati_bdv!$E$2:$E$65536,IF(dati_pdc!$C462=4,dati_bdv!$F$2:$F$65536,IF(dati_pdc!$C462=5,dati_bdv!$G$2:$G$65536,dati_bdv!$H$2:$H$65536))))),$A462,dati_bdv!J$2:J$65536)","v":0},{"$f":"SUMIF(IF(dati_pdc!$C462=1,dati_bdv!$C$2:$C$65536,IF(dati_pdc!$C462=2,dati_bdv!$D$2:$D$65536,IF(dati_pdc!$C462=3,dati_bdv!$E$2:$E$65536,IF(dati_pdc!$C462=4,dati_bdv!$F$2:$F$65536,IF(dati_pdc!$C462=5,dati_bdv!$G$2:$G$65536,dati_bdv!$H$2:$H$65536))))),$A462,dati_bdv!K$2:K$65536)","v":0},{"$f":"SUMIF(IF(dati_pdc!$C462=1,dati_bdv!$C$2:$C$65536,IF(dati_pdc!$C462=2,dati_bdv!$D$2:$D$65536,IF(dati_pdc!$C462=3,dati_bdv!$E$2:$E$65536,IF(dati_pdc!$C462=4,dati_bdv!$F$2:$F$65536,IF(dati_pdc!$C462=5,dati_bdv!$G$2:$G$65536,dati_bdv!$H$2:$H$65536))))),$A462,dati_bdv!L$2:L$65536)","v":0},{"$f":"SUMIF(IF(dati_pdc!$C462=1,dati_bdv!$C$2:$C$65536,IF(dati_pdc!$C462=2,dati_bdv!$D$2:$D$65536,IF(dati_pdc!$C462=3,dati_bdv!$E$2:$E$65536,IF(dati_pdc!$C462=4,dati_bdv!$F$2:$F$65536,IF(dati_pdc!$C462=5,dati_bdv!$G$2:$G$65536,dati_bdv!$H$2:$H$65536))))),$A462,dati_bdv!M$2:M$65536)","v":0},{"$f":"SUMIF(IF(dati_pdc!$C462=1,dati_bdv!$C$2:$C$65536,IF(dati_pdc!$C462=2,dati_bdv!$D$2:$D$65536,IF(dati_pdc!$C462=3,dati_bdv!$E$2:$E$65536,IF(dati_pdc!$C462=4,dati_bdv!$F$2:$F$65536,IF(dati_pdc!$C462=5,dati_bdv!$G$2:$G$65536,dati_bdv!$H$2:$H$65536))))),$A462,dati_bdv!N$2:N$65536)","v":0}]
[{"$f":"dati_pdc!A463","v":0},{"$f":"SUMIF(IF(dati_pdc!$C463=1,dati_bdv!$C$2:$C$65536,IF(dati_pdc!$C463=2,dati_bdv!$D$2:$D$65536,IF(dati_pdc!$C463=3,dati_bdv!$E$2:$E$65536,IF(dati_pdc!$C463=4,dati_bdv!$F$2:$F$65536,IF(dati_pdc!$C463=5,dati_bdv!$G$2:$G$65536,dati_bdv!$H$2:$H$65536))))),$A463,dati_bdv!J$2:J$65536)","v":0},{"$f":"SUMIF(IF(dati_pdc!$C463=1,dati_bdv!$C$2:$C$65536,IF(dati_pdc!$C463=2,dati_bdv!$D$2:$D$65536,IF(dati_pdc!$C463=3,dati_bdv!$E$2:$E$65536,IF(dati_pdc!$C463=4,dati_bdv!$F$2:$F$65536,IF(dati_pdc!$C463=5,dati_bdv!$G$2:$G$65536,dati_bdv!$H$2:$H$65536))))),$A463,dati_bdv!K$2:K$65536)","v":0},{"$f":"SUMIF(IF(dati_pdc!$C463=1,dati_bdv!$C$2:$C$65536,IF(dati_pdc!$C463=2,dati_bdv!$D$2:$D$65536,IF(dati_pdc!$C463=3,dati_bdv!$E$2:$E$65536,IF(dati_pdc!$C463=4,dati_bdv!$F$2:$F$65536,IF(dati_pdc!$C463=5,dati_bdv!$G$2:$G$65536,dati_bdv!$H$2:$H$65536))))),$A463,dati_bdv!L$2:L$65536)","v":0},{"$f":"SUMIF(IF(dati_pdc!$C463=1,dati_bdv!$C$2:$C$65536,IF(dati_pdc!$C463=2,dati_bdv!$D$2:$D$65536,IF(dati_pdc!$C463=3,dati_bdv!$E$2:$E$65536,IF(dati_pdc!$C463=4,dati_bdv!$F$2:$F$65536,IF(dati_pdc!$C463=5,dati_bdv!$G$2:$G$65536,dati_bdv!$H$2:$H$65536))))),$A463,dati_bdv!M$2:M$65536)","v":0},{"$f":"SUMIF(IF(dati_pdc!$C463=1,dati_bdv!$C$2:$C$65536,IF(dati_pdc!$C463=2,dati_bdv!$D$2:$D$65536,IF(dati_pdc!$C463=3,dati_bdv!$E$2:$E$65536,IF(dati_pdc!$C463=4,dati_bdv!$F$2:$F$65536,IF(dati_pdc!$C463=5,dati_bdv!$G$2:$G$65536,dati_bdv!$H$2:$H$65536))))),$A463,dati_bdv!N$2:N$65536)","v":0}]
[{"$f":"dati_pdc!A464","v":0},{"$f":"SUMIF(IF(dati_pdc!$C464=1,dati_bdv!$C$2:$C$65536,IF(dati_pdc!$C464=2,dati_bdv!$D$2:$D$65536,IF(dati_pdc!$C464=3,dati_bdv!$E$2:$E$65536,IF(dati_pdc!$C464=4,dati_bdv!$F$2:$F$65536,IF(dati_pdc!$C464=5,dati_bdv!$G$2:$G$65536,dati_bdv!$H$2:$H$65536))))),$A464,dati_bdv!J$2:J$65536)","v":0},{"$f":"SUMIF(IF(dati_pdc!$C464=1,dati_bdv!$C$2:$C$65536,IF(dati_pdc!$C464=2,dati_bdv!$D$2:$D$65536,IF(dati_pdc!$C464=3,dati_bdv!$E$2:$E$65536,IF(dati_pdc!$C464=4,dati_bdv!$F$2:$F$65536,IF(dati_pdc!$C464=5,dati_bdv!$G$2:$G$65536,dati_bdv!$H$2:$H$65536))))),$A464,dati_bdv!K$2:K$65536)","v":0},{"$f":"SUMIF(IF(dati_pdc!$C464=1,dati_bdv!$C$2:$C$65536,IF(dati_pdc!$C464=2,dati_bdv!$D$2:$D$65536,IF(dati_pdc!$C464=3,dati_bdv!$E$2:$E$65536,IF(dati_pdc!$C464=4,dati_bdv!$F$2:$F$65536,IF(dati_pdc!$C464=5,dati_bdv!$G$2:$G$65536,dati_bdv!$H$2:$H$65536))))),$A464,dati_bdv!L$2:L$65536)","v":0},{"$f":"SUMIF(IF(dati_pdc!$C464=1,dati_bdv!$C$2:$C$65536,IF(dati_pdc!$C464=2,dati_bdv!$D$2:$D$65536,IF(dati_pdc!$C464=3,dati_bdv!$E$2:$E$65536,IF(dati_pdc!$C464=4,dati_bdv!$F$2:$F$65536,IF(dati_pdc!$C464=5,dati_bdv!$G$2:$G$65536,dati_bdv!$H$2:$H$65536))))),$A464,dati_bdv!M$2:M$65536)","v":0},{"$f":"SUMIF(IF(dati_pdc!$C464=1,dati_bdv!$C$2:$C$65536,IF(dati_pdc!$C464=2,dati_bdv!$D$2:$D$65536,IF(dati_pdc!$C464=3,dati_bdv!$E$2:$E$65536,IF(dati_pdc!$C464=4,dati_bdv!$F$2:$F$65536,IF(dati_pdc!$C464=5,dati_bdv!$G$2:$G$65536,dati_bdv!$H$2:$H$65536))))),$A464,dati_bdv!N$2:N$65536)","v":0}]
[{"$f":"dati_pdc!A465","v":0},{"$f":"SUMIF(IF(dati_pdc!$C465=1,dati_bdv!$C$2:$C$65536,IF(dati_pdc!$C465=2,dati_bdv!$D$2:$D$65536,IF(dati_pdc!$C465=3,dati_bdv!$E$2:$E$65536,IF(dati_pdc!$C465=4,dati_bdv!$F$2:$F$65536,IF(dati_pdc!$C465=5,dati_bdv!$G$2:$G$65536,dati_bdv!$H$2:$H$65536))))),$A465,dati_bdv!J$2:J$65536)","v":0},{"$f":"SUMIF(IF(dati_pdc!$C465=1,dati_bdv!$C$2:$C$65536,IF(dati_pdc!$C465=2,dati_bdv!$D$2:$D$65536,IF(dati_pdc!$C465=3,dati_bdv!$E$2:$E$65536,IF(dati_pdc!$C465=4,dati_bdv!$F$2:$F$65536,IF(dati_pdc!$C465=5,dati_bdv!$G$2:$G$65536,dati_bdv!$H$2:$H$65536))))),$A465,dati_bdv!K$2:K$65536)","v":0},{"$f":"SUMIF(IF(dati_pdc!$C465=1,dati_bdv!$C$2:$C$65536,IF(dati_pdc!$C465=2,dati_bdv!$D$2:$D$65536,IF(dati_pdc!$C465=3,dati_bdv!$E$2:$E$65536,IF(dati_pdc!$C465=4,dati_bdv!$F$2:$F$65536,IF(dati_pdc!$C465=5,dati_bdv!$G$2:$G$65536,dati_bdv!$H$2:$H$65536))))),$A465,dati_bdv!L$2:L$65536)","v":0},{"$f":"SUMIF(IF(dati_pdc!$C465=1,dati_bdv!$C$2:$C$65536,IF(dati_pdc!$C465=2,dati_bdv!$D$2:$D$65536,IF(dati_pdc!$C465=3,dati_bdv!$E$2:$E$65536,IF(dati_pdc!$C465=4,dati_bdv!$F$2:$F$65536,IF(dati_pdc!$C465=5,dati_bdv!$G$2:$G$65536,dati_bdv!$H$2:$H$65536))))),$A465,dati_bdv!M$2:M$65536)","v":0},{"$f":"SUMIF(IF(dati_pdc!$C465=1,dati_bdv!$C$2:$C$65536,IF(dati_pdc!$C465=2,dati_bdv!$D$2:$D$65536,IF(dati_pdc!$C465=3,dati_bdv!$E$2:$E$65536,IF(dati_pdc!$C465=4,dati_bdv!$F$2:$F$65536,IF(dati_pdc!$C465=5,dati_bdv!$G$2:$G$65536,dati_bdv!$H$2:$H$65536))))),$A465,dati_bdv!N$2:N$65536)","v":0}]
[{"$f":"dati_pdc!A466","v":0},{"$f":"SUMIF(IF(dati_pdc!$C466=1,dati_bdv!$C$2:$C$65536,IF(dati_pdc!$C466=2,dati_bdv!$D$2:$D$65536,IF(dati_pdc!$C466=3,dati_bdv!$E$2:$E$65536,IF(dati_pdc!$C466=4,dati_bdv!$F$2:$F$65536,IF(dati_pdc!$C466=5,dati_bdv!$G$2:$G$65536,dati_bdv!$H$2:$H$65536))))),$A466,dati_bdv!J$2:J$65536)","v":0},{"$f":"SUMIF(IF(dati_pdc!$C466=1,dati_bdv!$C$2:$C$65536,IF(dati_pdc!$C466=2,dati_bdv!$D$2:$D$65536,IF(dati_pdc!$C466=3,dati_bdv!$E$2:$E$65536,IF(dati_pdc!$C466=4,dati_bdv!$F$2:$F$65536,IF(dati_pdc!$C466=5,dati_bdv!$G$2:$G$65536,dati_bdv!$H$2:$H$65536))))),$A466,dati_bdv!K$2:K$65536)","v":0},{"$f":"SUMIF(IF(dati_pdc!$C466=1,dati_bdv!$C$2:$C$65536,IF(dati_pdc!$C466=2,dati_bdv!$D$2:$D$65536,IF(dati_pdc!$C466=3,dati_bdv!$E$2:$E$65536,IF(dati_pdc!$C466=4,dati_bdv!$F$2:$F$65536,IF(dati_pdc!$C466=5,dati_bdv!$G$2:$G$65536,dati_bdv!$H$2:$H$65536))))),$A466,dati_bdv!L$2:L$65536)","v":0},{"$f":"SUMIF(IF(dati_pdc!$C466=1,dati_bdv!$C$2:$C$65536,IF(dati_pdc!$C466=2,dati_bdv!$D$2:$D$65536,IF(dati_pdc!$C466=3,dati_bdv!$E$2:$E$65536,IF(dati_pdc!$C466=4,dati_bdv!$F$2:$F$65536,IF(dati_pdc!$C466=5,dati_bdv!$G$2:$G$65536,dati_bdv!$H$2:$H$65536))))),$A466,dati_bdv!M$2:M$65536)","v":0},{"$f":"SUMIF(IF(dati_pdc!$C466=1,dati_bdv!$C$2:$C$65536,IF(dati_pdc!$C466=2,dati_bdv!$D$2:$D$65536,IF(dati_pdc!$C466=3,dati_bdv!$E$2:$E$65536,IF(dati_pdc!$C466=4,dati_bdv!$F$2:$F$65536,IF(dati_pdc!$C466=5,dati_bdv!$G$2:$G$65536,dati_bdv!$H$2:$H$65536))))),$A466,dati_bdv!N$2:N$65536)","v":0}]
[{"$f":"dati_pdc!A467","v":0},{"$f":"SUMIF(IF(dati_pdc!$C467=1,dati_bdv!$C$2:$C$65536,IF(dati_pdc!$C467=2,dati_bdv!$D$2:$D$65536,IF(dati_pdc!$C467=3,dati_bdv!$E$2:$E$65536,IF(dati_pdc!$C467=4,dati_bdv!$F$2:$F$65536,IF(dati_pdc!$C467=5,dati_bdv!$G$2:$G$65536,dati_bdv!$H$2:$H$65536))))),$A467,dati_bdv!J$2:J$65536)","v":0},{"$f":"SUMIF(IF(dati_pdc!$C467=1,dati_bdv!$C$2:$C$65536,IF(dati_pdc!$C467=2,dati_bdv!$D$2:$D$65536,IF(dati_pdc!$C467=3,dati_bdv!$E$2:$E$65536,IF(dati_pdc!$C467=4,dati_bdv!$F$2:$F$65536,IF(dati_pdc!$C467=5,dati_bdv!$G$2:$G$65536,dati_bdv!$H$2:$H$65536))))),$A467,dati_bdv!K$2:K$65536)","v":0},{"$f":"SUMIF(IF(dati_pdc!$C467=1,dati_bdv!$C$2:$C$65536,IF(dati_pdc!$C467=2,dati_bdv!$D$2:$D$65536,IF(dati_pdc!$C467=3,dati_bdv!$E$2:$E$65536,IF(dati_pdc!$C467=4,dati_bdv!$F$2:$F$65536,IF(dati_pdc!$C467=5,dati_bdv!$G$2:$G$65536,dati_bdv!$H$2:$H$65536))))),$A467,dati_bdv!L$2:L$65536)","v":0},{"$f":"SUMIF(IF(dati_pdc!$C467=1,dati_bdv!$C$2:$C$65536,IF(dati_pdc!$C467=2,dati_bdv!$D$2:$D$65536,IF(dati_pdc!$C467=3,dati_bdv!$E$2:$E$65536,IF(dati_pdc!$C467=4,dati_bdv!$F$2:$F$65536,IF(dati_pdc!$C467=5,dati_bdv!$G$2:$G$65536,dati_bdv!$H$2:$H$65536))))),$A467,dati_bdv!M$2:M$65536)","v":0},{"$f":"SUMIF(IF(dati_pdc!$C467=1,dati_bdv!$C$2:$C$65536,IF(dati_pdc!$C467=2,dati_bdv!$D$2:$D$65536,IF(dati_pdc!$C467=3,dati_bdv!$E$2:$E$65536,IF(dati_pdc!$C467=4,dati_bdv!$F$2:$F$65536,IF(dati_pdc!$C467=5,dati_bdv!$G$2:$G$65536,dati_bdv!$H$2:$H$65536))))),$A467,dati_bdv!N$2:N$65536)","v":0}]
[{"$f":"dati_pdc!A468","v":0},{"$f":"SUMIF(IF(dati_pdc!$C468=1,dati_bdv!$C$2:$C$65536,IF(dati_pdc!$C468=2,dati_bdv!$D$2:$D$65536,IF(dati_pdc!$C468=3,dati_bdv!$E$2:$E$65536,IF(dati_pdc!$C468=4,dati_bdv!$F$2:$F$65536,IF(dati_pdc!$C468=5,dati_bdv!$G$2:$G$65536,dati_bdv!$H$2:$H$65536))))),$A468,dati_bdv!J$2:J$65536)","v":0},{"$f":"SUMIF(IF(dati_pdc!$C468=1,dati_bdv!$C$2:$C$65536,IF(dati_pdc!$C468=2,dati_bdv!$D$2:$D$65536,IF(dati_pdc!$C468=3,dati_bdv!$E$2:$E$65536,IF(dati_pdc!$C468=4,dati_bdv!$F$2:$F$65536,IF(dati_pdc!$C468=5,dati_bdv!$G$2:$G$65536,dati_bdv!$H$2:$H$65536))))),$A468,dati_bdv!K$2:K$65536)","v":0},{"$f":"SUMIF(IF(dati_pdc!$C468=1,dati_bdv!$C$2:$C$65536,IF(dati_pdc!$C468=2,dati_bdv!$D$2:$D$65536,IF(dati_pdc!$C468=3,dati_bdv!$E$2:$E$65536,IF(dati_pdc!$C468=4,dati_bdv!$F$2:$F$65536,IF(dati_pdc!$C468=5,dati_bdv!$G$2:$G$65536,dati_bdv!$H$2:$H$65536))))),$A468,dati_bdv!L$2:L$65536)","v":0},{"$f":"SUMIF(IF(dati_pdc!$C468=1,dati_bdv!$C$2:$C$65536,IF(dati_pdc!$C468=2,dati_bdv!$D$2:$D$65536,IF(dati_pdc!$C468=3,dati_bdv!$E$2:$E$65536,IF(dati_pdc!$C468=4,dati_bdv!$F$2:$F$65536,IF(dati_pdc!$C468=5,dati_bdv!$G$2:$G$65536,dati_bdv!$H$2:$H$65536))))),$A468,dati_bdv!M$2:M$65536)","v":0},{"$f":"SUMIF(IF(dati_pdc!$C468=1,dati_bdv!$C$2:$C$65536,IF(dati_pdc!$C468=2,dati_bdv!$D$2:$D$65536,IF(dati_pdc!$C468=3,dati_bdv!$E$2:$E$65536,IF(dati_pdc!$C468=4,dati_bdv!$F$2:$F$65536,IF(dati_pdc!$C468=5,dati_bdv!$G$2:$G$65536,dati_bdv!$H$2:$H$65536))))),$A468,dati_bdv!N$2:N$65536)","v":0}]
[{"$f":"dati_pdc!A469","v":0},{"$f":"SUMIF(IF(dati_pdc!$C469=1,dati_bdv!$C$2:$C$65536,IF(dati_pdc!$C469=2,dati_bdv!$D$2:$D$65536,IF(dati_pdc!$C469=3,dati_bdv!$E$2:$E$65536,IF(dati_pdc!$C469=4,dati_bdv!$F$2:$F$65536,IF(dati_pdc!$C469=5,dati_bdv!$G$2:$G$65536,dati_bdv!$H$2:$H$65536))))),$A469,dati_bdv!J$2:J$65536)","v":0},{"$f":"SUMIF(IF(dati_pdc!$C469=1,dati_bdv!$C$2:$C$65536,IF(dati_pdc!$C469=2,dati_bdv!$D$2:$D$65536,IF(dati_pdc!$C469=3,dati_bdv!$E$2:$E$65536,IF(dati_pdc!$C469=4,dati_bdv!$F$2:$F$65536,IF(dati_pdc!$C469=5,dati_bdv!$G$2:$G$65536,dati_bdv!$H$2:$H$65536))))),$A469,dati_bdv!K$2:K$65536)","v":0},{"$f":"SUMIF(IF(dati_pdc!$C469=1,dati_bdv!$C$2:$C$65536,IF(dati_pdc!$C469=2,dati_bdv!$D$2:$D$65536,IF(dati_pdc!$C469=3,dati_bdv!$E$2:$E$65536,IF(dati_pdc!$C469=4,dati_bdv!$F$2:$F$65536,IF(dati_pdc!$C469=5,dati_bdv!$G$2:$G$65536,dati_bdv!$H$2:$H$65536))))),$A469,dati_bdv!L$2:L$65536)","v":0},{"$f":"SUMIF(IF(dati_pdc!$C469=1,dati_bdv!$C$2:$C$65536,IF(dati_pdc!$C469=2,dati_bdv!$D$2:$D$65536,IF(dati_pdc!$C469=3,dati_bdv!$E$2:$E$65536,IF(dati_pdc!$C469=4,dati_bdv!$F$2:$F$65536,IF(dati_pdc!$C469=5,dati_bdv!$G$2:$G$65536,dati_bdv!$H$2:$H$65536))))),$A469,dati_bdv!M$2:M$65536)","v":0},{"$f":"SUMIF(IF(dati_pdc!$C469=1,dati_bdv!$C$2:$C$65536,IF(dati_pdc!$C469=2,dati_bdv!$D$2:$D$65536,IF(dati_pdc!$C469=3,dati_bdv!$E$2:$E$65536,IF(dati_pdc!$C469=4,dati_bdv!$F$2:$F$65536,IF(dati_pdc!$C469=5,dati_bdv!$G$2:$G$65536,dati_bdv!$H$2:$H$65536))))),$A469,dati_bdv!N$2:N$65536)","v":0}]
[{"$f":"dati_pdc!A470","v":0},{"$f":"SUMIF(IF(dati_pdc!$C470=1,dati_bdv!$C$2:$C$65536,IF(dati_pdc!$C470=2,dati_bdv!$D$2:$D$65536,IF(dati_pdc!$C470=3,dati_bdv!$E$2:$E$65536,IF(dati_pdc!$C470=4,dati_bdv!$F$2:$F$65536,IF(dati_pdc!$C470=5,dati_bdv!$G$2:$G$65536,dati_bdv!$H$2:$H$65536))))),$A470,dati_bdv!J$2:J$65536)","v":0},{"$f":"SUMIF(IF(dati_pdc!$C470=1,dati_bdv!$C$2:$C$65536,IF(dati_pdc!$C470=2,dati_bdv!$D$2:$D$65536,IF(dati_pdc!$C470=3,dati_bdv!$E$2:$E$65536,IF(dati_pdc!$C470=4,dati_bdv!$F$2:$F$65536,IF(dati_pdc!$C470=5,dati_bdv!$G$2:$G$65536,dati_bdv!$H$2:$H$65536))))),$A470,dati_bdv!K$2:K$65536)","v":0},{"$f":"SUMIF(IF(dati_pdc!$C470=1,dati_bdv!$C$2:$C$65536,IF(dati_pdc!$C470=2,dati_bdv!$D$2:$D$65536,IF(dati_pdc!$C470=3,dati_bdv!$E$2:$E$65536,IF(dati_pdc!$C470=4,dati_bdv!$F$2:$F$65536,IF(dati_pdc!$C470=5,dati_bdv!$G$2:$G$65536,dati_bdv!$H$2:$H$65536))))),$A470,dati_bdv!L$2:L$65536)","v":0},{"$f":"SUMIF(IF(dati_pdc!$C470=1,dati_bdv!$C$2:$C$65536,IF(dati_pdc!$C470=2,dati_bdv!$D$2:$D$65536,IF(dati_pdc!$C470=3,dati_bdv!$E$2:$E$65536,IF(dati_pdc!$C470=4,dati_bdv!$F$2:$F$65536,IF(dati_pdc!$C470=5,dati_bdv!$G$2:$G$65536,dati_bdv!$H$2:$H$65536))))),$A470,dati_bdv!M$2:M$65536)","v":0},{"$f":"SUMIF(IF(dati_pdc!$C470=1,dati_bdv!$C$2:$C$65536,IF(dati_pdc!$C470=2,dati_bdv!$D$2:$D$65536,IF(dati_pdc!$C470=3,dati_bdv!$E$2:$E$65536,IF(dati_pdc!$C470=4,dati_bdv!$F$2:$F$65536,IF(dati_pdc!$C470=5,dati_bdv!$G$2:$G$65536,dati_bdv!$H$2:$H$65536))))),$A470,dati_bdv!N$2:N$65536)","v":0}]
[{"$f":"dati_pdc!A471","v":0},{"$f":"SUMIF(IF(dati_pdc!$C471=1,dati_bdv!$C$2:$C$65536,IF(dati_pdc!$C471=2,dati_bdv!$D$2:$D$65536,IF(dati_pdc!$C471=3,dati_bdv!$E$2:$E$65536,IF(dati_pdc!$C471=4,dati_bdv!$F$2:$F$65536,IF(dati_pdc!$C471=5,dati_bdv!$G$2:$G$65536,dati_bdv!$H$2:$H$65536))))),$A471,dati_bdv!J$2:J$65536)","v":0},{"$f":"SUMIF(IF(dati_pdc!$C471=1,dati_bdv!$C$2:$C$65536,IF(dati_pdc!$C471=2,dati_bdv!$D$2:$D$65536,IF(dati_pdc!$C471=3,dati_bdv!$E$2:$E$65536,IF(dati_pdc!$C471=4,dati_bdv!$F$2:$F$65536,IF(dati_pdc!$C471=5,dati_bdv!$G$2:$G$65536,dati_bdv!$H$2:$H$65536))))),$A471,dati_bdv!K$2:K$65536)","v":0},{"$f":"SUMIF(IF(dati_pdc!$C471=1,dati_bdv!$C$2:$C$65536,IF(dati_pdc!$C471=2,dati_bdv!$D$2:$D$65536,IF(dati_pdc!$C471=3,dati_bdv!$E$2:$E$65536,IF(dati_pdc!$C471=4,dati_bdv!$F$2:$F$65536,IF(dati_pdc!$C471=5,dati_bdv!$G$2:$G$65536,dati_bdv!$H$2:$H$65536))))),$A471,dati_bdv!L$2:L$65536)","v":0},{"$f":"SUMIF(IF(dati_pdc!$C471=1,dati_bdv!$C$2:$C$65536,IF(dati_pdc!$C471=2,dati_bdv!$D$2:$D$65536,IF(dati_pdc!$C471=3,dati_bdv!$E$2:$E$65536,IF(dati_pdc!$C471=4,dati_bdv!$F$2:$F$65536,IF(dati_pdc!$C471=5,dati_bdv!$G$2:$G$65536,dati_bdv!$H$2:$H$65536))))),$A471,dati_bdv!M$2:M$65536)","v":0},{"$f":"SUMIF(IF(dati_pdc!$C471=1,dati_bdv!$C$2:$C$65536,IF(dati_pdc!$C471=2,dati_bdv!$D$2:$D$65536,IF(dati_pdc!$C471=3,dati_bdv!$E$2:$E$65536,IF(dati_pdc!$C471=4,dati_bdv!$F$2:$F$65536,IF(dati_pdc!$C471=5,dati_bdv!$G$2:$G$65536,dati_bdv!$H$2:$H$65536))))),$A471,dati_bdv!N$2:N$65536)","v":0}]
[{"$f":"dati_pdc!A472","v":0},{"$f":"SUMIF(IF(dati_pdc!$C472=1,dati_bdv!$C$2:$C$65536,IF(dati_pdc!$C472=2,dati_bdv!$D$2:$D$65536,IF(dati_pdc!$C472=3,dati_bdv!$E$2:$E$65536,IF(dati_pdc!$C472=4,dati_bdv!$F$2:$F$65536,IF(dati_pdc!$C472=5,dati_bdv!$G$2:$G$65536,dati_bdv!$H$2:$H$65536))))),$A472,dati_bdv!J$2:J$65536)","v":0},{"$f":"SUMIF(IF(dati_pdc!$C472=1,dati_bdv!$C$2:$C$65536,IF(dati_pdc!$C472=2,dati_bdv!$D$2:$D$65536,IF(dati_pdc!$C472=3,dati_bdv!$E$2:$E$65536,IF(dati_pdc!$C472=4,dati_bdv!$F$2:$F$65536,IF(dati_pdc!$C472=5,dati_bdv!$G$2:$G$65536,dati_bdv!$H$2:$H$65536))))),$A472,dati_bdv!K$2:K$65536)","v":0},{"$f":"SUMIF(IF(dati_pdc!$C472=1,dati_bdv!$C$2:$C$65536,IF(dati_pdc!$C472=2,dati_bdv!$D$2:$D$65536,IF(dati_pdc!$C472=3,dati_bdv!$E$2:$E$65536,IF(dati_pdc!$C472=4,dati_bdv!$F$2:$F$65536,IF(dati_pdc!$C472=5,dati_bdv!$G$2:$G$65536,dati_bdv!$H$2:$H$65536))))),$A472,dati_bdv!L$2:L$65536)","v":0},{"$f":"SUMIF(IF(dati_pdc!$C472=1,dati_bdv!$C$2:$C$65536,IF(dati_pdc!$C472=2,dati_bdv!$D$2:$D$65536,IF(dati_pdc!$C472=3,dati_bdv!$E$2:$E$65536,IF(dati_pdc!$C472=4,dati_bdv!$F$2:$F$65536,IF(dati_pdc!$C472=5,dati_bdv!$G$2:$G$65536,dati_bdv!$H$2:$H$65536))))),$A472,dati_bdv!M$2:M$65536)","v":0},{"$f":"SUMIF(IF(dati_pdc!$C472=1,dati_bdv!$C$2:$C$65536,IF(dati_pdc!$C472=2,dati_bdv!$D$2:$D$65536,IF(dati_pdc!$C472=3,dati_bdv!$E$2:$E$65536,IF(dati_pdc!$C472=4,dati_bdv!$F$2:$F$65536,IF(dati_pdc!$C472=5,dati_bdv!$G$2:$G$65536,dati_bdv!$H$2:$H$65536))))),$A472,dati_bdv!N$2:N$65536)","v":0}]
[{"$f":"dati_pdc!A473","v":0},{"$f":"SUMIF(IF(dati_pdc!$C473=1,dati_bdv!$C$2:$C$65536,IF(dati_pdc!$C473=2,dati_bdv!$D$2:$D$65536,IF(dati_pdc!$C473=3,dati_bdv!$E$2:$E$65536,IF(dati_pdc!$C473=4,dati_bdv!$F$2:$F$65536,IF(dati_pdc!$C473=5,dati_bdv!$G$2:$G$65536,dati_bdv!$H$2:$H$65536))))),$A473,dati_bdv!J$2:J$65536)","v":0},{"$f":"SUMIF(IF(dati_pdc!$C473=1,dati_bdv!$C$2:$C$65536,IF(dati_pdc!$C473=2,dati_bdv!$D$2:$D$65536,IF(dati_pdc!$C473=3,dati_bdv!$E$2:$E$65536,IF(dati_pdc!$C473=4,dati_bdv!$F$2:$F$65536,IF(dati_pdc!$C473=5,dati_bdv!$G$2:$G$65536,dati_bdv!$H$2:$H$65536))))),$A473,dati_bdv!K$2:K$65536)","v":0},{"$f":"SUMIF(IF(dati_pdc!$C473=1,dati_bdv!$C$2:$C$65536,IF(dati_pdc!$C473=2,dati_bdv!$D$2:$D$65536,IF(dati_pdc!$C473=3,dati_bdv!$E$2:$E$65536,IF(dati_pdc!$C473=4,dati_bdv!$F$2:$F$65536,IF(dati_pdc!$C473=5,dati_bdv!$G$2:$G$65536,dati_bdv!$H$2:$H$65536))))),$A473,dati_bdv!L$2:L$65536)","v":0},{"$f":"SUMIF(IF(dati_pdc!$C473=1,dati_bdv!$C$2:$C$65536,IF(dati_pdc!$C473=2,dati_bdv!$D$2:$D$65536,IF(dati_pdc!$C473=3,dati_bdv!$E$2:$E$65536,IF(dati_pdc!$C473=4,dati_bdv!$F$2:$F$65536,IF(dati_pdc!$C473=5,dati_bdv!$G$2:$G$65536,dati_bdv!$H$2:$H$65536))))),$A473,dati_bdv!M$2:M$65536)","v":0},{"$f":"SUMIF(IF(dati_pdc!$C473=1,dati_bdv!$C$2:$C$65536,IF(dati_pdc!$C473=2,dati_bdv!$D$2:$D$65536,IF(dati_pdc!$C473=3,dati_bdv!$E$2:$E$65536,IF(dati_pdc!$C473=4,dati_bdv!$F$2:$F$65536,IF(dati_pdc!$C473=5,dati_bdv!$G$2:$G$65536,dati_bdv!$H$2:$H$65536))))),$A473,dati_bdv!N$2:N$65536)","v":0}]
[{"$f":"dati_pdc!A474","v":0},{"$f":"SUMIF(IF(dati_pdc!$C474=1,dati_bdv!$C$2:$C$65536,IF(dati_pdc!$C474=2,dati_bdv!$D$2:$D$65536,IF(dati_pdc!$C474=3,dati_bdv!$E$2:$E$65536,IF(dati_pdc!$C474=4,dati_bdv!$F$2:$F$65536,IF(dati_pdc!$C474=5,dati_bdv!$G$2:$G$65536,dati_bdv!$H$2:$H$65536))))),$A474,dati_bdv!J$2:J$65536)","v":0},{"$f":"SUMIF(IF(dati_pdc!$C474=1,dati_bdv!$C$2:$C$65536,IF(dati_pdc!$C474=2,dati_bdv!$D$2:$D$65536,IF(dati_pdc!$C474=3,dati_bdv!$E$2:$E$65536,IF(dati_pdc!$C474=4,dati_bdv!$F$2:$F$65536,IF(dati_pdc!$C474=5,dati_bdv!$G$2:$G$65536,dati_bdv!$H$2:$H$65536))))),$A474,dati_bdv!K$2:K$65536)","v":0},{"$f":"SUMIF(IF(dati_pdc!$C474=1,dati_bdv!$C$2:$C$65536,IF(dati_pdc!$C474=2,dati_bdv!$D$2:$D$65536,IF(dati_pdc!$C474=3,dati_bdv!$E$2:$E$65536,IF(dati_pdc!$C474=4,dati_bdv!$F$2:$F$65536,IF(dati_pdc!$C474=5,dati_bdv!$G$2:$G$65536,dati_bdv!$H$2:$H$65536))))),$A474,dati_bdv!L$2:L$65536)","v":0},{"$f":"SUMIF(IF(dati_pdc!$C474=1,dati_bdv!$C$2:$C$65536,IF(dati_pdc!$C474=2,dati_bdv!$D$2:$D$65536,IF(dati_pdc!$C474=3,dati_bdv!$E$2:$E$65536,IF(dati_pdc!$C474=4,dati_bdv!$F$2:$F$65536,IF(dati_pdc!$C474=5,dati_bdv!$G$2:$G$65536,dati_bdv!$H$2:$H$65536))))),$A474,dati_bdv!M$2:M$65536)","v":0},{"$f":"SUMIF(IF(dati_pdc!$C474=1,dati_bdv!$C$2:$C$65536,IF(dati_pdc!$C474=2,dati_bdv!$D$2:$D$65536,IF(dati_pdc!$C474=3,dati_bdv!$E$2:$E$65536,IF(dati_pdc!$C474=4,dati_bdv!$F$2:$F$65536,IF(dati_pdc!$C474=5,dati_bdv!$G$2:$G$65536,dati_bdv!$H$2:$H$65536))))),$A474,dati_bdv!N$2:N$65536)","v":0}]
[{"$f":"dati_pdc!A475","v":0},{"$f":"SUMIF(IF(dati_pdc!$C475=1,dati_bdv!$C$2:$C$65536,IF(dati_pdc!$C475=2,dati_bdv!$D$2:$D$65536,IF(dati_pdc!$C475=3,dati_bdv!$E$2:$E$65536,IF(dati_pdc!$C475=4,dati_bdv!$F$2:$F$65536,IF(dati_pdc!$C475=5,dati_bdv!$G$2:$G$65536,dati_bdv!$H$2:$H$65536))))),$A475,dati_bdv!J$2:J$65536)","v":0},{"$f":"SUMIF(IF(dati_pdc!$C475=1,dati_bdv!$C$2:$C$65536,IF(dati_pdc!$C475=2,dati_bdv!$D$2:$D$65536,IF(dati_pdc!$C475=3,dati_bdv!$E$2:$E$65536,IF(dati_pdc!$C475=4,dati_bdv!$F$2:$F$65536,IF(dati_pdc!$C475=5,dati_bdv!$G$2:$G$65536,dati_bdv!$H$2:$H$65536))))),$A475,dati_bdv!K$2:K$65536)","v":0},{"$f":"SUMIF(IF(dati_pdc!$C475=1,dati_bdv!$C$2:$C$65536,IF(dati_pdc!$C475=2,dati_bdv!$D$2:$D$65536,IF(dati_pdc!$C475=3,dati_bdv!$E$2:$E$65536,IF(dati_pdc!$C475=4,dati_bdv!$F$2:$F$65536,IF(dati_pdc!$C475=5,dati_bdv!$G$2:$G$65536,dati_bdv!$H$2:$H$65536))))),$A475,dati_bdv!L$2:L$65536)","v":0},{"$f":"SUMIF(IF(dati_pdc!$C475=1,dati_bdv!$C$2:$C$65536,IF(dati_pdc!$C475=2,dati_bdv!$D$2:$D$65536,IF(dati_pdc!$C475=3,dati_bdv!$E$2:$E$65536,IF(dati_pdc!$C475=4,dati_bdv!$F$2:$F$65536,IF(dati_pdc!$C475=5,dati_bdv!$G$2:$G$65536,dati_bdv!$H$2:$H$65536))))),$A475,dati_bdv!M$2:M$65536)","v":0},{"$f":"SUMIF(IF(dati_pdc!$C475=1,dati_bdv!$C$2:$C$65536,IF(dati_pdc!$C475=2,dati_bdv!$D$2:$D$65536,IF(dati_pdc!$C475=3,dati_bdv!$E$2:$E$65536,IF(dati_pdc!$C475=4,dati_bdv!$F$2:$F$65536,IF(dati_pdc!$C475=5,dati_bdv!$G$2:$G$65536,dati_bdv!$H$2:$H$65536))))),$A475,dati_bdv!N$2:N$65536)","v":0}]
[{"$f":"dati_pdc!A476","v":0},{"$f":"SUMIF(IF(dati_pdc!$C476=1,dati_bdv!$C$2:$C$65536,IF(dati_pdc!$C476=2,dati_bdv!$D$2:$D$65536,IF(dati_pdc!$C476=3,dati_bdv!$E$2:$E$65536,IF(dati_pdc!$C476=4,dati_bdv!$F$2:$F$65536,IF(dati_pdc!$C476=5,dati_bdv!$G$2:$G$65536,dati_bdv!$H$2:$H$65536))))),$A476,dati_bdv!J$2:J$65536)","v":0},{"$f":"SUMIF(IF(dati_pdc!$C476=1,dati_bdv!$C$2:$C$65536,IF(dati_pdc!$C476=2,dati_bdv!$D$2:$D$65536,IF(dati_pdc!$C476=3,dati_bdv!$E$2:$E$65536,IF(dati_pdc!$C476=4,dati_bdv!$F$2:$F$65536,IF(dati_pdc!$C476=5,dati_bdv!$G$2:$G$65536,dati_bdv!$H$2:$H$65536))))),$A476,dati_bdv!K$2:K$65536)","v":0},{"$f":"SUMIF(IF(dati_pdc!$C476=1,dati_bdv!$C$2:$C$65536,IF(dati_pdc!$C476=2,dati_bdv!$D$2:$D$65536,IF(dati_pdc!$C476=3,dati_bdv!$E$2:$E$65536,IF(dati_pdc!$C476=4,dati_bdv!$F$2:$F$65536,IF(dati_pdc!$C476=5,dati_bdv!$G$2:$G$65536,dati_bdv!$H$2:$H$65536))))),$A476,dati_bdv!L$2:L$65536)","v":0},{"$f":"SUMIF(IF(dati_pdc!$C476=1,dati_bdv!$C$2:$C$65536,IF(dati_pdc!$C476=2,dati_bdv!$D$2:$D$65536,IF(dati_pdc!$C476=3,dati_bdv!$E$2:$E$65536,IF(dati_pdc!$C476=4,dati_bdv!$F$2:$F$65536,IF(dati_pdc!$C476=5,dati_bdv!$G$2:$G$65536,dati_bdv!$H$2:$H$65536))))),$A476,dati_bdv!M$2:M$65536)","v":0},{"$f":"SUMIF(IF(dati_pdc!$C476=1,dati_bdv!$C$2:$C$65536,IF(dati_pdc!$C476=2,dati_bdv!$D$2:$D$65536,IF(dati_pdc!$C476=3,dati_bdv!$E$2:$E$65536,IF(dati_pdc!$C476=4,dati_bdv!$F$2:$F$65536,IF(dati_pdc!$C476=5,dati_bdv!$G$2:$G$65536,dati_bdv!$H$2:$H$65536))))),$A476,dati_bdv!N$2:N$65536)","v":0}]
[{"$f":"dati_pdc!A477","v":0},{"$f":"SUMIF(IF(dati_pdc!$C477=1,dati_bdv!$C$2:$C$65536,IF(dati_pdc!$C477=2,dati_bdv!$D$2:$D$65536,IF(dati_pdc!$C477=3,dati_bdv!$E$2:$E$65536,IF(dati_pdc!$C477=4,dati_bdv!$F$2:$F$65536,IF(dati_pdc!$C477=5,dati_bdv!$G$2:$G$65536,dati_bdv!$H$2:$H$65536))))),$A477,dati_bdv!J$2:J$65536)","v":0},{"$f":"SUMIF(IF(dati_pdc!$C477=1,dati_bdv!$C$2:$C$65536,IF(dati_pdc!$C477=2,dati_bdv!$D$2:$D$65536,IF(dati_pdc!$C477=3,dati_bdv!$E$2:$E$65536,IF(dati_pdc!$C477=4,dati_bdv!$F$2:$F$65536,IF(dati_pdc!$C477=5,dati_bdv!$G$2:$G$65536,dati_bdv!$H$2:$H$65536))))),$A477,dati_bdv!K$2:K$65536)","v":0},{"$f":"SUMIF(IF(dati_pdc!$C477=1,dati_bdv!$C$2:$C$65536,IF(dati_pdc!$C477=2,dati_bdv!$D$2:$D$65536,IF(dati_pdc!$C477=3,dati_bdv!$E$2:$E$65536,IF(dati_pdc!$C477=4,dati_bdv!$F$2:$F$65536,IF(dati_pdc!$C477=5,dati_bdv!$G$2:$G$65536,dati_bdv!$H$2:$H$65536))))),$A477,dati_bdv!L$2:L$65536)","v":0},{"$f":"SUMIF(IF(dati_pdc!$C477=1,dati_bdv!$C$2:$C$65536,IF(dati_pdc!$C477=2,dati_bdv!$D$2:$D$65536,IF(dati_pdc!$C477=3,dati_bdv!$E$2:$E$65536,IF(dati_pdc!$C477=4,dati_bdv!$F$2:$F$65536,IF(dati_pdc!$C477=5,dati_bdv!$G$2:$G$65536,dati_bdv!$H$2:$H$65536))))),$A477,dati_bdv!M$2:M$65536)","v":0},{"$f":"SUMIF(IF(dati_pdc!$C477=1,dati_bdv!$C$2:$C$65536,IF(dati_pdc!$C477=2,dati_bdv!$D$2:$D$65536,IF(dati_pdc!$C477=3,dati_bdv!$E$2:$E$65536,IF(dati_pdc!$C477=4,dati_bdv!$F$2:$F$65536,IF(dati_pdc!$C477=5,dati_bdv!$G$2:$G$65536,dati_bdv!$H$2:$H$65536))))),$A477,dati_bdv!N$2:N$65536)","v":0}]
[{"$f":"dati_pdc!A478","v":0},{"$f":"SUMIF(IF(dati_pdc!$C478=1,dati_bdv!$C$2:$C$65536,IF(dati_pdc!$C478=2,dati_bdv!$D$2:$D$65536,IF(dati_pdc!$C478=3,dati_bdv!$E$2:$E$65536,IF(dati_pdc!$C478=4,dati_bdv!$F$2:$F$65536,IF(dati_pdc!$C478=5,dati_bdv!$G$2:$G$65536,dati_bdv!$H$2:$H$65536))))),$A478,dati_bdv!J$2:J$65536)","v":0},{"$f":"SUMIF(IF(dati_pdc!$C478=1,dati_bdv!$C$2:$C$65536,IF(dati_pdc!$C478=2,dati_bdv!$D$2:$D$65536,IF(dati_pdc!$C478=3,dati_bdv!$E$2:$E$65536,IF(dati_pdc!$C478=4,dati_bdv!$F$2:$F$65536,IF(dati_pdc!$C478=5,dati_bdv!$G$2:$G$65536,dati_bdv!$H$2:$H$65536))))),$A478,dati_bdv!K$2:K$65536)","v":0},{"$f":"SUMIF(IF(dati_pdc!$C478=1,dati_bdv!$C$2:$C$65536,IF(dati_pdc!$C478=2,dati_bdv!$D$2:$D$65536,IF(dati_pdc!$C478=3,dati_bdv!$E$2:$E$65536,IF(dati_pdc!$C478=4,dati_bdv!$F$2:$F$65536,IF(dati_pdc!$C478=5,dati_bdv!$G$2:$G$65536,dati_bdv!$H$2:$H$65536))))),$A478,dati_bdv!L$2:L$65536)","v":0},{"$f":"SUMIF(IF(dati_pdc!$C478=1,dati_bdv!$C$2:$C$65536,IF(dati_pdc!$C478=2,dati_bdv!$D$2:$D$65536,IF(dati_pdc!$C478=3,dati_bdv!$E$2:$E$65536,IF(dati_pdc!$C478=4,dati_bdv!$F$2:$F$65536,IF(dati_pdc!$C478=5,dati_bdv!$G$2:$G$65536,dati_bdv!$H$2:$H$65536))))),$A478,dati_bdv!M$2:M$65536)","v":0},{"$f":"SUMIF(IF(dati_pdc!$C478=1,dati_bdv!$C$2:$C$65536,IF(dati_pdc!$C478=2,dati_bdv!$D$2:$D$65536,IF(dati_pdc!$C478=3,dati_bdv!$E$2:$E$65536,IF(dati_pdc!$C478=4,dati_bdv!$F$2:$F$65536,IF(dati_pdc!$C478=5,dati_bdv!$G$2:$G$65536,dati_bdv!$H$2:$H$65536))))),$A478,dati_bdv!N$2:N$65536)","v":0}]
[{"$f":"dati_pdc!A479","v":0},{"$f":"SUMIF(IF(dati_pdc!$C479=1,dati_bdv!$C$2:$C$65536,IF(dati_pdc!$C479=2,dati_bdv!$D$2:$D$65536,IF(dati_pdc!$C479=3,dati_bdv!$E$2:$E$65536,IF(dati_pdc!$C479=4,dati_bdv!$F$2:$F$65536,IF(dati_pdc!$C479=5,dati_bdv!$G$2:$G$65536,dati_bdv!$H$2:$H$65536))))),$A479,dati_bdv!J$2:J$65536)","v":0},{"$f":"SUMIF(IF(dati_pdc!$C479=1,dati_bdv!$C$2:$C$65536,IF(dati_pdc!$C479=2,dati_bdv!$D$2:$D$65536,IF(dati_pdc!$C479=3,dati_bdv!$E$2:$E$65536,IF(dati_pdc!$C479=4,dati_bdv!$F$2:$F$65536,IF(dati_pdc!$C479=5,dati_bdv!$G$2:$G$65536,dati_bdv!$H$2:$H$65536))))),$A479,dati_bdv!K$2:K$65536)","v":0},{"$f":"SUMIF(IF(dati_pdc!$C479=1,dati_bdv!$C$2:$C$65536,IF(dati_pdc!$C479=2,dati_bdv!$D$2:$D$65536,IF(dati_pdc!$C479=3,dati_bdv!$E$2:$E$65536,IF(dati_pdc!$C479=4,dati_bdv!$F$2:$F$65536,IF(dati_pdc!$C479=5,dati_bdv!$G$2:$G$65536,dati_bdv!$H$2:$H$65536))))),$A479,dati_bdv!L$2:L$65536)","v":0},{"$f":"SUMIF(IF(dati_pdc!$C479=1,dati_bdv!$C$2:$C$65536,IF(dati_pdc!$C479=2,dati_bdv!$D$2:$D$65536,IF(dati_pdc!$C479=3,dati_bdv!$E$2:$E$65536,IF(dati_pdc!$C479=4,dati_bdv!$F$2:$F$65536,IF(dati_pdc!$C479=5,dati_bdv!$G$2:$G$65536,dati_bdv!$H$2:$H$65536))))),$A479,dati_bdv!M$2:M$65536)","v":0},{"$f":"SUMIF(IF(dati_pdc!$C479=1,dati_bdv!$C$2:$C$65536,IF(dati_pdc!$C479=2,dati_bdv!$D$2:$D$65536,IF(dati_pdc!$C479=3,dati_bdv!$E$2:$E$65536,IF(dati_pdc!$C479=4,dati_bdv!$F$2:$F$65536,IF(dati_pdc!$C479=5,dati_bdv!$G$2:$G$65536,dati_bdv!$H$2:$H$65536))))),$A479,dati_bdv!N$2:N$65536)","v":0}]
[{"$f":"dati_pdc!A480","v":0},{"$f":"SUMIF(IF(dati_pdc!$C480=1,dati_bdv!$C$2:$C$65536,IF(dati_pdc!$C480=2,dati_bdv!$D$2:$D$65536,IF(dati_pdc!$C480=3,dati_bdv!$E$2:$E$65536,IF(dati_pdc!$C480=4,dati_bdv!$F$2:$F$65536,IF(dati_pdc!$C480=5,dati_bdv!$G$2:$G$65536,dati_bdv!$H$2:$H$65536))))),$A480,dati_bdv!J$2:J$65536)","v":0},{"$f":"SUMIF(IF(dati_pdc!$C480=1,dati_bdv!$C$2:$C$65536,IF(dati_pdc!$C480=2,dati_bdv!$D$2:$D$65536,IF(dati_pdc!$C480=3,dati_bdv!$E$2:$E$65536,IF(dati_pdc!$C480=4,dati_bdv!$F$2:$F$65536,IF(dati_pdc!$C480=5,dati_bdv!$G$2:$G$65536,dati_bdv!$H$2:$H$65536))))),$A480,dati_bdv!K$2:K$65536)","v":0},{"$f":"SUMIF(IF(dati_pdc!$C480=1,dati_bdv!$C$2:$C$65536,IF(dati_pdc!$C480=2,dati_bdv!$D$2:$D$65536,IF(dati_pdc!$C480=3,dati_bdv!$E$2:$E$65536,IF(dati_pdc!$C480=4,dati_bdv!$F$2:$F$65536,IF(dati_pdc!$C480=5,dati_bdv!$G$2:$G$65536,dati_bdv!$H$2:$H$65536))))),$A480,dati_bdv!L$2:L$65536)","v":0},{"$f":"SUMIF(IF(dati_pdc!$C480=1,dati_bdv!$C$2:$C$65536,IF(dati_pdc!$C480=2,dati_bdv!$D$2:$D$65536,IF(dati_pdc!$C480=3,dati_bdv!$E$2:$E$65536,IF(dati_pdc!$C480=4,dati_bdv!$F$2:$F$65536,IF(dati_pdc!$C480=5,dati_bdv!$G$2:$G$65536,dati_bdv!$H$2:$H$65536))))),$A480,dati_bdv!M$2:M$65536)","v":0},{"$f":"SUMIF(IF(dati_pdc!$C480=1,dati_bdv!$C$2:$C$65536,IF(dati_pdc!$C480=2,dati_bdv!$D$2:$D$65536,IF(dati_pdc!$C480=3,dati_bdv!$E$2:$E$65536,IF(dati_pdc!$C480=4,dati_bdv!$F$2:$F$65536,IF(dati_pdc!$C480=5,dati_bdv!$G$2:$G$65536,dati_bdv!$H$2:$H$65536))))),$A480,dati_bdv!N$2:N$65536)","v":0}]
[{"$f":"dati_pdc!A481","v":0},{"$f":"SUMIF(IF(dati_pdc!$C481=1,dati_bdv!$C$2:$C$65536,IF(dati_pdc!$C481=2,dati_bdv!$D$2:$D$65536,IF(dati_pdc!$C481=3,dati_bdv!$E$2:$E$65536,IF(dati_pdc!$C481=4,dati_bdv!$F$2:$F$65536,IF(dati_pdc!$C481=5,dati_bdv!$G$2:$G$65536,dati_bdv!$H$2:$H$65536))))),$A481,dati_bdv!J$2:J$65536)","v":0},{"$f":"SUMIF(IF(dati_pdc!$C481=1,dati_bdv!$C$2:$C$65536,IF(dati_pdc!$C481=2,dati_bdv!$D$2:$D$65536,IF(dati_pdc!$C481=3,dati_bdv!$E$2:$E$65536,IF(dati_pdc!$C481=4,dati_bdv!$F$2:$F$65536,IF(dati_pdc!$C481=5,dati_bdv!$G$2:$G$65536,dati_bdv!$H$2:$H$65536))))),$A481,dati_bdv!K$2:K$65536)","v":0},{"$f":"SUMIF(IF(dati_pdc!$C481=1,dati_bdv!$C$2:$C$65536,IF(dati_pdc!$C481=2,dati_bdv!$D$2:$D$65536,IF(dati_pdc!$C481=3,dati_bdv!$E$2:$E$65536,IF(dati_pdc!$C481=4,dati_bdv!$F$2:$F$65536,IF(dati_pdc!$C481=5,dati_bdv!$G$2:$G$65536,dati_bdv!$H$2:$H$65536))))),$A481,dati_bdv!L$2:L$65536)","v":0},{"$f":"SUMIF(IF(dati_pdc!$C481=1,dati_bdv!$C$2:$C$65536,IF(dati_pdc!$C481=2,dati_bdv!$D$2:$D$65536,IF(dati_pdc!$C481=3,dati_bdv!$E$2:$E$65536,IF(dati_pdc!$C481=4,dati_bdv!$F$2:$F$65536,IF(dati_pdc!$C481=5,dati_bdv!$G$2:$G$65536,dati_bdv!$H$2:$H$65536))))),$A481,dati_bdv!M$2:M$65536)","v":0},{"$f":"SUMIF(IF(dati_pdc!$C481=1,dati_bdv!$C$2:$C$65536,IF(dati_pdc!$C481=2,dati_bdv!$D$2:$D$65536,IF(dati_pdc!$C481=3,dati_bdv!$E$2:$E$65536,IF(dati_pdc!$C481=4,dati_bdv!$F$2:$F$65536,IF(dati_pdc!$C481=5,dati_bdv!$G$2:$G$65536,dati_bdv!$H$2:$H$65536))))),$A481,dati_bdv!N$2:N$65536)","v":0}]
[{"$f":"dati_pdc!A482","v":0},{"$f":"SUMIF(IF(dati_pdc!$C482=1,dati_bdv!$C$2:$C$65536,IF(dati_pdc!$C482=2,dati_bdv!$D$2:$D$65536,IF(dati_pdc!$C482=3,dati_bdv!$E$2:$E$65536,IF(dati_pdc!$C482=4,dati_bdv!$F$2:$F$65536,IF(dati_pdc!$C482=5,dati_bdv!$G$2:$G$65536,dati_bdv!$H$2:$H$65536))))),$A482,dati_bdv!J$2:J$65536)","v":0},{"$f":"SUMIF(IF(dati_pdc!$C482=1,dati_bdv!$C$2:$C$65536,IF(dati_pdc!$C482=2,dati_bdv!$D$2:$D$65536,IF(dati_pdc!$C482=3,dati_bdv!$E$2:$E$65536,IF(dati_pdc!$C482=4,dati_bdv!$F$2:$F$65536,IF(dati_pdc!$C482=5,dati_bdv!$G$2:$G$65536,dati_bdv!$H$2:$H$65536))))),$A482,dati_bdv!K$2:K$65536)","v":0},{"$f":"SUMIF(IF(dati_pdc!$C482=1,dati_bdv!$C$2:$C$65536,IF(dati_pdc!$C482=2,dati_bdv!$D$2:$D$65536,IF(dati_pdc!$C482=3,dati_bdv!$E$2:$E$65536,IF(dati_pdc!$C482=4,dati_bdv!$F$2:$F$65536,IF(dati_pdc!$C482=5,dati_bdv!$G$2:$G$65536,dati_bdv!$H$2:$H$65536))))),$A482,dati_bdv!L$2:L$65536)","v":0},{"$f":"SUMIF(IF(dati_pdc!$C482=1,dati_bdv!$C$2:$C$65536,IF(dati_pdc!$C482=2,dati_bdv!$D$2:$D$65536,IF(dati_pdc!$C482=3,dati_bdv!$E$2:$E$65536,IF(dati_pdc!$C482=4,dati_bdv!$F$2:$F$65536,IF(dati_pdc!$C482=5,dati_bdv!$G$2:$G$65536,dati_bdv!$H$2:$H$65536))))),$A482,dati_bdv!M$2:M$65536)","v":0},{"$f":"SUMIF(IF(dati_pdc!$C482=1,dati_bdv!$C$2:$C$65536,IF(dati_pdc!$C482=2,dati_bdv!$D$2:$D$65536,IF(dati_pdc!$C482=3,dati_bdv!$E$2:$E$65536,IF(dati_pdc!$C482=4,dati_bdv!$F$2:$F$65536,IF(dati_pdc!$C482=5,dati_bdv!$G$2:$G$65536,dati_bdv!$H$2:$H$65536))))),$A482,dati_bdv!N$2:N$65536)","v":0}]
[{"$f":"dati_pdc!A483","v":0},{"$f":"SUMIF(IF(dati_pdc!$C483=1,dati_bdv!$C$2:$C$65536,IF(dati_pdc!$C483=2,dati_bdv!$D$2:$D$65536,IF(dati_pdc!$C483=3,dati_bdv!$E$2:$E$65536,IF(dati_pdc!$C483=4,dati_bdv!$F$2:$F$65536,IF(dati_pdc!$C483=5,dati_bdv!$G$2:$G$65536,dati_bdv!$H$2:$H$65536))))),$A483,dati_bdv!J$2:J$65536)","v":0},{"$f":"SUMIF(IF(dati_pdc!$C483=1,dati_bdv!$C$2:$C$65536,IF(dati_pdc!$C483=2,dati_bdv!$D$2:$D$65536,IF(dati_pdc!$C483=3,dati_bdv!$E$2:$E$65536,IF(dati_pdc!$C483=4,dati_bdv!$F$2:$F$65536,IF(dati_pdc!$C483=5,dati_bdv!$G$2:$G$65536,dati_bdv!$H$2:$H$65536))))),$A483,dati_bdv!K$2:K$65536)","v":0},{"$f":"SUMIF(IF(dati_pdc!$C483=1,dati_bdv!$C$2:$C$65536,IF(dati_pdc!$C483=2,dati_bdv!$D$2:$D$65536,IF(dati_pdc!$C483=3,dati_bdv!$E$2:$E$65536,IF(dati_pdc!$C483=4,dati_bdv!$F$2:$F$65536,IF(dati_pdc!$C483=5,dati_bdv!$G$2:$G$65536,dati_bdv!$H$2:$H$65536))))),$A483,dati_bdv!L$2:L$65536)","v":0},{"$f":"SUMIF(IF(dati_pdc!$C483=1,dati_bdv!$C$2:$C$65536,IF(dati_pdc!$C483=2,dati_bdv!$D$2:$D$65536,IF(dati_pdc!$C483=3,dati_bdv!$E$2:$E$65536,IF(dati_pdc!$C483=4,dati_bdv!$F$2:$F$65536,IF(dati_pdc!$C483=5,dati_bdv!$G$2:$G$65536,dati_bdv!$H$2:$H$65536))))),$A483,dati_bdv!M$2:M$65536)","v":0},{"$f":"SUMIF(IF(dati_pdc!$C483=1,dati_bdv!$C$2:$C$65536,IF(dati_pdc!$C483=2,dati_bdv!$D$2:$D$65536,IF(dati_pdc!$C483=3,dati_bdv!$E$2:$E$65536,IF(dati_pdc!$C483=4,dati_bdv!$F$2:$F$65536,IF(dati_pdc!$C483=5,dati_bdv!$G$2:$G$65536,dati_bdv!$H$2:$H$65536))))),$A483,dati_bdv!N$2:N$65536)","v":0}]
[{"$f":"dati_pdc!A484","v":0},{"$f":"SUMIF(IF(dati_pdc!$C484=1,dati_bdv!$C$2:$C$65536,IF(dati_pdc!$C484=2,dati_bdv!$D$2:$D$65536,IF(dati_pdc!$C484=3,dati_bdv!$E$2:$E$65536,IF(dati_pdc!$C484=4,dati_bdv!$F$2:$F$65536,IF(dati_pdc!$C484=5,dati_bdv!$G$2:$G$65536,dati_bdv!$H$2:$H$65536))))),$A484,dati_bdv!J$2:J$65536)","v":0},{"$f":"SUMIF(IF(dati_pdc!$C484=1,dati_bdv!$C$2:$C$65536,IF(dati_pdc!$C484=2,dati_bdv!$D$2:$D$65536,IF(dati_pdc!$C484=3,dati_bdv!$E$2:$E$65536,IF(dati_pdc!$C484=4,dati_bdv!$F$2:$F$65536,IF(dati_pdc!$C484=5,dati_bdv!$G$2:$G$65536,dati_bdv!$H$2:$H$65536))))),$A484,dati_bdv!K$2:K$65536)","v":0},{"$f":"SUMIF(IF(dati_pdc!$C484=1,dati_bdv!$C$2:$C$65536,IF(dati_pdc!$C484=2,dati_bdv!$D$2:$D$65536,IF(dati_pdc!$C484=3,dati_bdv!$E$2:$E$65536,IF(dati_pdc!$C484=4,dati_bdv!$F$2:$F$65536,IF(dati_pdc!$C484=5,dati_bdv!$G$2:$G$65536,dati_bdv!$H$2:$H$65536))))),$A484,dati_bdv!L$2:L$65536)","v":0},{"$f":"SUMIF(IF(dati_pdc!$C484=1,dati_bdv!$C$2:$C$65536,IF(dati_pdc!$C484=2,dati_bdv!$D$2:$D$65536,IF(dati_pdc!$C484=3,dati_bdv!$E$2:$E$65536,IF(dati_pdc!$C484=4,dati_bdv!$F$2:$F$65536,IF(dati_pdc!$C484=5,dati_bdv!$G$2:$G$65536,dati_bdv!$H$2:$H$65536))))),$A484,dati_bdv!M$2:M$65536)","v":0},{"$f":"SUMIF(IF(dati_pdc!$C484=1,dati_bdv!$C$2:$C$65536,IF(dati_pdc!$C484=2,dati_bdv!$D$2:$D$65536,IF(dati_pdc!$C484=3,dati_bdv!$E$2:$E$65536,IF(dati_pdc!$C484=4,dati_bdv!$F$2:$F$65536,IF(dati_pdc!$C484=5,dati_bdv!$G$2:$G$65536,dati_bdv!$H$2:$H$65536))))),$A484,dati_bdv!N$2:N$65536)","v":0}]
[{"$f":"dati_pdc!A485","v":0},{"$f":"SUMIF(IF(dati_pdc!$C485=1,dati_bdv!$C$2:$C$65536,IF(dati_pdc!$C485=2,dati_bdv!$D$2:$D$65536,IF(dati_pdc!$C485=3,dati_bdv!$E$2:$E$65536,IF(dati_pdc!$C485=4,dati_bdv!$F$2:$F$65536,IF(dati_pdc!$C485=5,dati_bdv!$G$2:$G$65536,dati_bdv!$H$2:$H$65536))))),$A485,dati_bdv!J$2:J$65536)","v":0},{"$f":"SUMIF(IF(dati_pdc!$C485=1,dati_bdv!$C$2:$C$65536,IF(dati_pdc!$C485=2,dati_bdv!$D$2:$D$65536,IF(dati_pdc!$C485=3,dati_bdv!$E$2:$E$65536,IF(dati_pdc!$C485=4,dati_bdv!$F$2:$F$65536,IF(dati_pdc!$C485=5,dati_bdv!$G$2:$G$65536,dati_bdv!$H$2:$H$65536))))),$A485,dati_bdv!K$2:K$65536)","v":0},{"$f":"SUMIF(IF(dati_pdc!$C485=1,dati_bdv!$C$2:$C$65536,IF(dati_pdc!$C485=2,dati_bdv!$D$2:$D$65536,IF(dati_pdc!$C485=3,dati_bdv!$E$2:$E$65536,IF(dati_pdc!$C485=4,dati_bdv!$F$2:$F$65536,IF(dati_pdc!$C485=5,dati_bdv!$G$2:$G$65536,dati_bdv!$H$2:$H$65536))))),$A485,dati_bdv!L$2:L$65536)","v":0},{"$f":"SUMIF(IF(dati_pdc!$C485=1,dati_bdv!$C$2:$C$65536,IF(dati_pdc!$C485=2,dati_bdv!$D$2:$D$65536,IF(dati_pdc!$C485=3,dati_bdv!$E$2:$E$65536,IF(dati_pdc!$C485=4,dati_bdv!$F$2:$F$65536,IF(dati_pdc!$C485=5,dati_bdv!$G$2:$G$65536,dati_bdv!$H$2:$H$65536))))),$A485,dati_bdv!M$2:M$65536)","v":0},{"$f":"SUMIF(IF(dati_pdc!$C485=1,dati_bdv!$C$2:$C$65536,IF(dati_pdc!$C485=2,dati_bdv!$D$2:$D$65536,IF(dati_pdc!$C485=3,dati_bdv!$E$2:$E$65536,IF(dati_pdc!$C485=4,dati_bdv!$F$2:$F$65536,IF(dati_pdc!$C485=5,dati_bdv!$G$2:$G$65536,dati_bdv!$H$2:$H$65536))))),$A485,dati_bdv!N$2:N$65536)","v":0}]
[{"$f":"dati_pdc!A486","v":0},{"$f":"SUMIF(IF(dati_pdc!$C486=1,dati_bdv!$C$2:$C$65536,IF(dati_pdc!$C486=2,dati_bdv!$D$2:$D$65536,IF(dati_pdc!$C486=3,dati_bdv!$E$2:$E$65536,IF(dati_pdc!$C486=4,dati_bdv!$F$2:$F$65536,IF(dati_pdc!$C486=5,dati_bdv!$G$2:$G$65536,dati_bdv!$H$2:$H$65536))))),$A486,dati_bdv!J$2:J$65536)","v":0},{"$f":"SUMIF(IF(dati_pdc!$C486=1,dati_bdv!$C$2:$C$65536,IF(dati_pdc!$C486=2,dati_bdv!$D$2:$D$65536,IF(dati_pdc!$C486=3,dati_bdv!$E$2:$E$65536,IF(dati_pdc!$C486=4,dati_bdv!$F$2:$F$65536,IF(dati_pdc!$C486=5,dati_bdv!$G$2:$G$65536,dati_bdv!$H$2:$H$65536))))),$A486,dati_bdv!K$2:K$65536)","v":0},{"$f":"SUMIF(IF(dati_pdc!$C486=1,dati_bdv!$C$2:$C$65536,IF(dati_pdc!$C486=2,dati_bdv!$D$2:$D$65536,IF(dati_pdc!$C486=3,dati_bdv!$E$2:$E$65536,IF(dati_pdc!$C486=4,dati_bdv!$F$2:$F$65536,IF(dati_pdc!$C486=5,dati_bdv!$G$2:$G$65536,dati_bdv!$H$2:$H$65536))))),$A486,dati_bdv!L$2:L$65536)","v":0},{"$f":"SUMIF(IF(dati_pdc!$C486=1,dati_bdv!$C$2:$C$65536,IF(dati_pdc!$C486=2,dati_bdv!$D$2:$D$65536,IF(dati_pdc!$C486=3,dati_bdv!$E$2:$E$65536,IF(dati_pdc!$C486=4,dati_bdv!$F$2:$F$65536,IF(dati_pdc!$C486=5,dati_bdv!$G$2:$G$65536,dati_bdv!$H$2:$H$65536))))),$A486,dati_bdv!M$2:M$65536)","v":0},{"$f":"SUMIF(IF(dati_pdc!$C486=1,dati_bdv!$C$2:$C$65536,IF(dati_pdc!$C486=2,dati_bdv!$D$2:$D$65536,IF(dati_pdc!$C486=3,dati_bdv!$E$2:$E$65536,IF(dati_pdc!$C486=4,dati_bdv!$F$2:$F$65536,IF(dati_pdc!$C486=5,dati_bdv!$G$2:$G$65536,dati_bdv!$H$2:$H$65536))))),$A486,dati_bdv!N$2:N$65536)","v":0}]
[{"$f":"dati_pdc!A487","v":0},{"$f":"SUMIF(IF(dati_pdc!$C487=1,dati_bdv!$C$2:$C$65536,IF(dati_pdc!$C487=2,dati_bdv!$D$2:$D$65536,IF(dati_pdc!$C487=3,dati_bdv!$E$2:$E$65536,IF(dati_pdc!$C487=4,dati_bdv!$F$2:$F$65536,IF(dati_pdc!$C487=5,dati_bdv!$G$2:$G$65536,dati_bdv!$H$2:$H$65536))))),$A487,dati_bdv!J$2:J$65536)","v":0},{"$f":"SUMIF(IF(dati_pdc!$C487=1,dati_bdv!$C$2:$C$65536,IF(dati_pdc!$C487=2,dati_bdv!$D$2:$D$65536,IF(dati_pdc!$C487=3,dati_bdv!$E$2:$E$65536,IF(dati_pdc!$C487=4,dati_bdv!$F$2:$F$65536,IF(dati_pdc!$C487=5,dati_bdv!$G$2:$G$65536,dati_bdv!$H$2:$H$65536))))),$A487,dati_bdv!K$2:K$65536)","v":0},{"$f":"SUMIF(IF(dati_pdc!$C487=1,dati_bdv!$C$2:$C$65536,IF(dati_pdc!$C487=2,dati_bdv!$D$2:$D$65536,IF(dati_pdc!$C487=3,dati_bdv!$E$2:$E$65536,IF(dati_pdc!$C487=4,dati_bdv!$F$2:$F$65536,IF(dati_pdc!$C487=5,dati_bdv!$G$2:$G$65536,dati_bdv!$H$2:$H$65536))))),$A487,dati_bdv!L$2:L$65536)","v":0},{"$f":"SUMIF(IF(dati_pdc!$C487=1,dati_bdv!$C$2:$C$65536,IF(dati_pdc!$C487=2,dati_bdv!$D$2:$D$65536,IF(dati_pdc!$C487=3,dati_bdv!$E$2:$E$65536,IF(dati_pdc!$C487=4,dati_bdv!$F$2:$F$65536,IF(dati_pdc!$C487=5,dati_bdv!$G$2:$G$65536,dati_bdv!$H$2:$H$65536))))),$A487,dati_bdv!M$2:M$65536)","v":0},{"$f":"SUMIF(IF(dati_pdc!$C487=1,dati_bdv!$C$2:$C$65536,IF(dati_pdc!$C487=2,dati_bdv!$D$2:$D$65536,IF(dati_pdc!$C487=3,dati_bdv!$E$2:$E$65536,IF(dati_pdc!$C487=4,dati_bdv!$F$2:$F$65536,IF(dati_pdc!$C487=5,dati_bdv!$G$2:$G$65536,dati_bdv!$H$2:$H$65536))))),$A487,dati_bdv!N$2:N$65536)","v":0}]
[{"$f":"dati_pdc!A488","v":0},{"$f":"SUMIF(IF(dati_pdc!$C488=1,dati_bdv!$C$2:$C$65536,IF(dati_pdc!$C488=2,dati_bdv!$D$2:$D$65536,IF(dati_pdc!$C488=3,dati_bdv!$E$2:$E$65536,IF(dati_pdc!$C488=4,dati_bdv!$F$2:$F$65536,IF(dati_pdc!$C488=5,dati_bdv!$G$2:$G$65536,dati_bdv!$H$2:$H$65536))))),$A488,dati_bdv!J$2:J$65536)","v":0},{"$f":"SUMIF(IF(dati_pdc!$C488=1,dati_bdv!$C$2:$C$65536,IF(dati_pdc!$C488=2,dati_bdv!$D$2:$D$65536,IF(dati_pdc!$C488=3,dati_bdv!$E$2:$E$65536,IF(dati_pdc!$C488=4,dati_bdv!$F$2:$F$65536,IF(dati_pdc!$C488=5,dati_bdv!$G$2:$G$65536,dati_bdv!$H$2:$H$65536))))),$A488,dati_bdv!K$2:K$65536)","v":0},{"$f":"SUMIF(IF(dati_pdc!$C488=1,dati_bdv!$C$2:$C$65536,IF(dati_pdc!$C488=2,dati_bdv!$D$2:$D$65536,IF(dati_pdc!$C488=3,dati_bdv!$E$2:$E$65536,IF(dati_pdc!$C488=4,dati_bdv!$F$2:$F$65536,IF(dati_pdc!$C488=5,dati_bdv!$G$2:$G$65536,dati_bdv!$H$2:$H$65536))))),$A488,dati_bdv!L$2:L$65536)","v":0},{"$f":"SUMIF(IF(dati_pdc!$C488=1,dati_bdv!$C$2:$C$65536,IF(dati_pdc!$C488=2,dati_bdv!$D$2:$D$65536,IF(dati_pdc!$C488=3,dati_bdv!$E$2:$E$65536,IF(dati_pdc!$C488=4,dati_bdv!$F$2:$F$65536,IF(dati_pdc!$C488=5,dati_bdv!$G$2:$G$65536,dati_bdv!$H$2:$H$65536))))),$A488,dati_bdv!M$2:M$65536)","v":0},{"$f":"SUMIF(IF(dati_pdc!$C488=1,dati_bdv!$C$2:$C$65536,IF(dati_pdc!$C488=2,dati_bdv!$D$2:$D$65536,IF(dati_pdc!$C488=3,dati_bdv!$E$2:$E$65536,IF(dati_pdc!$C488=4,dati_bdv!$F$2:$F$65536,IF(dati_pdc!$C488=5,dati_bdv!$G$2:$G$65536,dati_bdv!$H$2:$H$65536))))),$A488,dati_bdv!N$2:N$65536)","v":0}]
[{"$f":"dati_pdc!A489","v":0},{"$f":"SUMIF(IF(dati_pdc!$C489=1,dati_bdv!$C$2:$C$65536,IF(dati_pdc!$C489=2,dati_bdv!$D$2:$D$65536,IF(dati_pdc!$C489=3,dati_bdv!$E$2:$E$65536,IF(dati_pdc!$C489=4,dati_bdv!$F$2:$F$65536,IF(dati_pdc!$C489=5,dati_bdv!$G$2:$G$65536,dati_bdv!$H$2:$H$65536))))),$A489,dati_bdv!J$2:J$65536)","v":0},{"$f":"SUMIF(IF(dati_pdc!$C489=1,dati_bdv!$C$2:$C$65536,IF(dati_pdc!$C489=2,dati_bdv!$D$2:$D$65536,IF(dati_pdc!$C489=3,dati_bdv!$E$2:$E$65536,IF(dati_pdc!$C489=4,dati_bdv!$F$2:$F$65536,IF(dati_pdc!$C489=5,dati_bdv!$G$2:$G$65536,dati_bdv!$H$2:$H$65536))))),$A489,dati_bdv!K$2:K$65536)","v":0},{"$f":"SUMIF(IF(dati_pdc!$C489=1,dati_bdv!$C$2:$C$65536,IF(dati_pdc!$C489=2,dati_bdv!$D$2:$D$65536,IF(dati_pdc!$C489=3,dati_bdv!$E$2:$E$65536,IF(dati_pdc!$C489=4,dati_bdv!$F$2:$F$65536,IF(dati_pdc!$C489=5,dati_bdv!$G$2:$G$65536,dati_bdv!$H$2:$H$65536))))),$A489,dati_bdv!L$2:L$65536)","v":0},{"$f":"SUMIF(IF(dati_pdc!$C489=1,dati_bdv!$C$2:$C$65536,IF(dati_pdc!$C489=2,dati_bdv!$D$2:$D$65536,IF(dati_pdc!$C489=3,dati_bdv!$E$2:$E$65536,IF(dati_pdc!$C489=4,dati_bdv!$F$2:$F$65536,IF(dati_pdc!$C489=5,dati_bdv!$G$2:$G$65536,dati_bdv!$H$2:$H$65536))))),$A489,dati_bdv!M$2:M$65536)","v":0},{"$f":"SUMIF(IF(dati_pdc!$C489=1,dati_bdv!$C$2:$C$65536,IF(dati_pdc!$C489=2,dati_bdv!$D$2:$D$65536,IF(dati_pdc!$C489=3,dati_bdv!$E$2:$E$65536,IF(dati_pdc!$C489=4,dati_bdv!$F$2:$F$65536,IF(dati_pdc!$C489=5,dati_bdv!$G$2:$G$65536,dati_bdv!$H$2:$H$65536))))),$A489,dati_bdv!N$2:N$65536)","v":0}]
[{"$f":"dati_pdc!A490","v":0},{"$f":"SUMIF(IF(dati_pdc!$C490=1,dati_bdv!$C$2:$C$65536,IF(dati_pdc!$C490=2,dati_bdv!$D$2:$D$65536,IF(dati_pdc!$C490=3,dati_bdv!$E$2:$E$65536,IF(dati_pdc!$C490=4,dati_bdv!$F$2:$F$65536,IF(dati_pdc!$C490=5,dati_bdv!$G$2:$G$65536,dati_bdv!$H$2:$H$65536))))),$A490,dati_bdv!J$2:J$65536)","v":0},{"$f":"SUMIF(IF(dati_pdc!$C490=1,dati_bdv!$C$2:$C$65536,IF(dati_pdc!$C490=2,dati_bdv!$D$2:$D$65536,IF(dati_pdc!$C490=3,dati_bdv!$E$2:$E$65536,IF(dati_pdc!$C490=4,dati_bdv!$F$2:$F$65536,IF(dati_pdc!$C490=5,dati_bdv!$G$2:$G$65536,dati_bdv!$H$2:$H$65536))))),$A490,dati_bdv!K$2:K$65536)","v":0},{"$f":"SUMIF(IF(dati_pdc!$C490=1,dati_bdv!$C$2:$C$65536,IF(dati_pdc!$C490=2,dati_bdv!$D$2:$D$65536,IF(dati_pdc!$C490=3,dati_bdv!$E$2:$E$65536,IF(dati_pdc!$C490=4,dati_bdv!$F$2:$F$65536,IF(dati_pdc!$C490=5,dati_bdv!$G$2:$G$65536,dati_bdv!$H$2:$H$65536))))),$A490,dati_bdv!L$2:L$65536)","v":0},{"$f":"SUMIF(IF(dati_pdc!$C490=1,dati_bdv!$C$2:$C$65536,IF(dati_pdc!$C490=2,dati_bdv!$D$2:$D$65536,IF(dati_pdc!$C490=3,dati_bdv!$E$2:$E$65536,IF(dati_pdc!$C490=4,dati_bdv!$F$2:$F$65536,IF(dati_pdc!$C490=5,dati_bdv!$G$2:$G$65536,dati_bdv!$H$2:$H$65536))))),$A490,dati_bdv!M$2:M$65536)","v":0},{"$f":"SUMIF(IF(dati_pdc!$C490=1,dati_bdv!$C$2:$C$65536,IF(dati_pdc!$C490=2,dati_bdv!$D$2:$D$65536,IF(dati_pdc!$C490=3,dati_bdv!$E$2:$E$65536,IF(dati_pdc!$C490=4,dati_bdv!$F$2:$F$65536,IF(dati_pdc!$C490=5,dati_bdv!$G$2:$G$65536,dati_bdv!$H$2:$H$65536))))),$A490,dati_bdv!N$2:N$65536)","v":0}]
[{"$f":"dati_pdc!A491","v":0},{"$f":"SUMIF(IF(dati_pdc!$C491=1,dati_bdv!$C$2:$C$65536,IF(dati_pdc!$C491=2,dati_bdv!$D$2:$D$65536,IF(dati_pdc!$C491=3,dati_bdv!$E$2:$E$65536,IF(dati_pdc!$C491=4,dati_bdv!$F$2:$F$65536,IF(dati_pdc!$C491=5,dati_bdv!$G$2:$G$65536,dati_bdv!$H$2:$H$65536))))),$A491,dati_bdv!J$2:J$65536)","v":0},{"$f":"SUMIF(IF(dati_pdc!$C491=1,dati_bdv!$C$2:$C$65536,IF(dati_pdc!$C491=2,dati_bdv!$D$2:$D$65536,IF(dati_pdc!$C491=3,dati_bdv!$E$2:$E$65536,IF(dati_pdc!$C491=4,dati_bdv!$F$2:$F$65536,IF(dati_pdc!$C491=5,dati_bdv!$G$2:$G$65536,dati_bdv!$H$2:$H$65536))))),$A491,dati_bdv!K$2:K$65536)","v":0},{"$f":"SUMIF(IF(dati_pdc!$C491=1,dati_bdv!$C$2:$C$65536,IF(dati_pdc!$C491=2,dati_bdv!$D$2:$D$65536,IF(dati_pdc!$C491=3,dati_bdv!$E$2:$E$65536,IF(dati_pdc!$C491=4,dati_bdv!$F$2:$F$65536,IF(dati_pdc!$C491=5,dati_bdv!$G$2:$G$65536,dati_bdv!$H$2:$H$65536))))),$A491,dati_bdv!L$2:L$65536)","v":0},{"$f":"SUMIF(IF(dati_pdc!$C491=1,dati_bdv!$C$2:$C$65536,IF(dati_pdc!$C491=2,dati_bdv!$D$2:$D$65536,IF(dati_pdc!$C491=3,dati_bdv!$E$2:$E$65536,IF(dati_pdc!$C491=4,dati_bdv!$F$2:$F$65536,IF(dati_pdc!$C491=5,dati_bdv!$G$2:$G$65536,dati_bdv!$H$2:$H$65536))))),$A491,dati_bdv!M$2:M$65536)","v":0},{"$f":"SUMIF(IF(dati_pdc!$C491=1,dati_bdv!$C$2:$C$65536,IF(dati_pdc!$C491=2,dati_bdv!$D$2:$D$65536,IF(dati_pdc!$C491=3,dati_bdv!$E$2:$E$65536,IF(dati_pdc!$C491=4,dati_bdv!$F$2:$F$65536,IF(dati_pdc!$C491=5,dati_bdv!$G$2:$G$65536,dati_bdv!$H$2:$H$65536))))),$A491,dati_bdv!N$2:N$65536)","v":0}]
[{"$f":"dati_pdc!A492","v":0},{"$f":"SUMIF(IF(dati_pdc!$C492=1,dati_bdv!$C$2:$C$65536,IF(dati_pdc!$C492=2,dati_bdv!$D$2:$D$65536,IF(dati_pdc!$C492=3,dati_bdv!$E$2:$E$65536,IF(dati_pdc!$C492=4,dati_bdv!$F$2:$F$65536,IF(dati_pdc!$C492=5,dati_bdv!$G$2:$G$65536,dati_bdv!$H$2:$H$65536))))),$A492,dati_bdv!J$2:J$65536)","v":0},{"$f":"SUMIF(IF(dati_pdc!$C492=1,dati_bdv!$C$2:$C$65536,IF(dati_pdc!$C492=2,dati_bdv!$D$2:$D$65536,IF(dati_pdc!$C492=3,dati_bdv!$E$2:$E$65536,IF(dati_pdc!$C492=4,dati_bdv!$F$2:$F$65536,IF(dati_pdc!$C492=5,dati_bdv!$G$2:$G$65536,dati_bdv!$H$2:$H$65536))))),$A492,dati_bdv!K$2:K$65536)","v":0},{"$f":"SUMIF(IF(dati_pdc!$C492=1,dati_bdv!$C$2:$C$65536,IF(dati_pdc!$C492=2,dati_bdv!$D$2:$D$65536,IF(dati_pdc!$C492=3,dati_bdv!$E$2:$E$65536,IF(dati_pdc!$C492=4,dati_bdv!$F$2:$F$65536,IF(dati_pdc!$C492=5,dati_bdv!$G$2:$G$65536,dati_bdv!$H$2:$H$65536))))),$A492,dati_bdv!L$2:L$65536)","v":0},{"$f":"SUMIF(IF(dati_pdc!$C492=1,dati_bdv!$C$2:$C$65536,IF(dati_pdc!$C492=2,dati_bdv!$D$2:$D$65536,IF(dati_pdc!$C492=3,dati_bdv!$E$2:$E$65536,IF(dati_pdc!$C492=4,dati_bdv!$F$2:$F$65536,IF(dati_pdc!$C492=5,dati_bdv!$G$2:$G$65536,dati_bdv!$H$2:$H$65536))))),$A492,dati_bdv!M$2:M$65536)","v":0},{"$f":"SUMIF(IF(dati_pdc!$C492=1,dati_bdv!$C$2:$C$65536,IF(dati_pdc!$C492=2,dati_bdv!$D$2:$D$65536,IF(dati_pdc!$C492=3,dati_bdv!$E$2:$E$65536,IF(dati_pdc!$C492=4,dati_bdv!$F$2:$F$65536,IF(dati_pdc!$C492=5,dati_bdv!$G$2:$G$65536,dati_bdv!$H$2:$H$65536))))),$A492,dati_bdv!N$2:N$65536)","v":0}]
[{"$f":"dati_pdc!A493","v":0},{"$f":"SUMIF(IF(dati_pdc!$C493=1,dati_bdv!$C$2:$C$65536,IF(dati_pdc!$C493=2,dati_bdv!$D$2:$D$65536,IF(dati_pdc!$C493=3,dati_bdv!$E$2:$E$65536,IF(dati_pdc!$C493=4,dati_bdv!$F$2:$F$65536,IF(dati_pdc!$C493=5,dati_bdv!$G$2:$G$65536,dati_bdv!$H$2:$H$65536))))),$A493,dati_bdv!J$2:J$65536)","v":0},{"$f":"SUMIF(IF(dati_pdc!$C493=1,dati_bdv!$C$2:$C$65536,IF(dati_pdc!$C493=2,dati_bdv!$D$2:$D$65536,IF(dati_pdc!$C493=3,dati_bdv!$E$2:$E$65536,IF(dati_pdc!$C493=4,dati_bdv!$F$2:$F$65536,IF(dati_pdc!$C493=5,dati_bdv!$G$2:$G$65536,dati_bdv!$H$2:$H$65536))))),$A493,dati_bdv!K$2:K$65536)","v":0},{"$f":"SUMIF(IF(dati_pdc!$C493=1,dati_bdv!$C$2:$C$65536,IF(dati_pdc!$C493=2,dati_bdv!$D$2:$D$65536,IF(dati_pdc!$C493=3,dati_bdv!$E$2:$E$65536,IF(dati_pdc!$C493=4,dati_bdv!$F$2:$F$65536,IF(dati_pdc!$C493=5,dati_bdv!$G$2:$G$65536,dati_bdv!$H$2:$H$65536))))),$A493,dati_bdv!L$2:L$65536)","v":0},{"$f":"SUMIF(IF(dati_pdc!$C493=1,dati_bdv!$C$2:$C$65536,IF(dati_pdc!$C493=2,dati_bdv!$D$2:$D$65536,IF(dati_pdc!$C493=3,dati_bdv!$E$2:$E$65536,IF(dati_pdc!$C493=4,dati_bdv!$F$2:$F$65536,IF(dati_pdc!$C493=5,dati_bdv!$G$2:$G$65536,dati_bdv!$H$2:$H$65536))))),$A493,dati_bdv!M$2:M$65536)","v":0},{"$f":"SUMIF(IF(dati_pdc!$C493=1,dati_bdv!$C$2:$C$65536,IF(dati_pdc!$C493=2,dati_bdv!$D$2:$D$65536,IF(dati_pdc!$C493=3,dati_bdv!$E$2:$E$65536,IF(dati_pdc!$C493=4,dati_bdv!$F$2:$F$65536,IF(dati_pdc!$C493=5,dati_bdv!$G$2:$G$65536,dati_bdv!$H$2:$H$65536))))),$A493,dati_bdv!N$2:N$65536)","v":0}]
[{"$f":"dati_pdc!A494","v":0},{"$f":"SUMIF(IF(dati_pdc!$C494=1,dati_bdv!$C$2:$C$65536,IF(dati_pdc!$C494=2,dati_bdv!$D$2:$D$65536,IF(dati_pdc!$C494=3,dati_bdv!$E$2:$E$65536,IF(dati_pdc!$C494=4,dati_bdv!$F$2:$F$65536,IF(dati_pdc!$C494=5,dati_bdv!$G$2:$G$65536,dati_bdv!$H$2:$H$65536))))),$A494,dati_bdv!J$2:J$65536)","v":0},{"$f":"SUMIF(IF(dati_pdc!$C494=1,dati_bdv!$C$2:$C$65536,IF(dati_pdc!$C494=2,dati_bdv!$D$2:$D$65536,IF(dati_pdc!$C494=3,dati_bdv!$E$2:$E$65536,IF(dati_pdc!$C494=4,dati_bdv!$F$2:$F$65536,IF(dati_pdc!$C494=5,dati_bdv!$G$2:$G$65536,dati_bdv!$H$2:$H$65536))))),$A494,dati_bdv!K$2:K$65536)","v":0},{"$f":"SUMIF(IF(dati_pdc!$C494=1,dati_bdv!$C$2:$C$65536,IF(dati_pdc!$C494=2,dati_bdv!$D$2:$D$65536,IF(dati_pdc!$C494=3,dati_bdv!$E$2:$E$65536,IF(dati_pdc!$C494=4,dati_bdv!$F$2:$F$65536,IF(dati_pdc!$C494=5,dati_bdv!$G$2:$G$65536,dati_bdv!$H$2:$H$65536))))),$A494,dati_bdv!L$2:L$65536)","v":0},{"$f":"SUMIF(IF(dati_pdc!$C494=1,dati_bdv!$C$2:$C$65536,IF(dati_pdc!$C494=2,dati_bdv!$D$2:$D$65536,IF(dati_pdc!$C494=3,dati_bdv!$E$2:$E$65536,IF(dati_pdc!$C494=4,dati_bdv!$F$2:$F$65536,IF(dati_pdc!$C494=5,dati_bdv!$G$2:$G$65536,dati_bdv!$H$2:$H$65536))))),$A494,dati_bdv!M$2:M$65536)","v":0},{"$f":"SUMIF(IF(dati_pdc!$C494=1,dati_bdv!$C$2:$C$65536,IF(dati_pdc!$C494=2,dati_bdv!$D$2:$D$65536,IF(dati_pdc!$C494=3,dati_bdv!$E$2:$E$65536,IF(dati_pdc!$C494=4,dati_bdv!$F$2:$F$65536,IF(dati_pdc!$C494=5,dati_bdv!$G$2:$G$65536,dati_bdv!$H$2:$H$65536))))),$A494,dati_bdv!N$2:N$65536)","v":0}]
[{"$f":"dati_pdc!A495","v":0},{"$f":"SUMIF(IF(dati_pdc!$C495=1,dati_bdv!$C$2:$C$65536,IF(dati_pdc!$C495=2,dati_bdv!$D$2:$D$65536,IF(dati_pdc!$C495=3,dati_bdv!$E$2:$E$65536,IF(dati_pdc!$C495=4,dati_bdv!$F$2:$F$65536,IF(dati_pdc!$C495=5,dati_bdv!$G$2:$G$65536,dati_bdv!$H$2:$H$65536))))),$A495,dati_bdv!J$2:J$65536)","v":0},{"$f":"SUMIF(IF(dati_pdc!$C495=1,dati_bdv!$C$2:$C$65536,IF(dati_pdc!$C495=2,dati_bdv!$D$2:$D$65536,IF(dati_pdc!$C495=3,dati_bdv!$E$2:$E$65536,IF(dati_pdc!$C495=4,dati_bdv!$F$2:$F$65536,IF(dati_pdc!$C495=5,dati_bdv!$G$2:$G$65536,dati_bdv!$H$2:$H$65536))))),$A495,dati_bdv!K$2:K$65536)","v":0},{"$f":"SUMIF(IF(dati_pdc!$C495=1,dati_bdv!$C$2:$C$65536,IF(dati_pdc!$C495=2,dati_bdv!$D$2:$D$65536,IF(dati_pdc!$C495=3,dati_bdv!$E$2:$E$65536,IF(dati_pdc!$C495=4,dati_bdv!$F$2:$F$65536,IF(dati_pdc!$C495=5,dati_bdv!$G$2:$G$65536,dati_bdv!$H$2:$H$65536))))),$A495,dati_bdv!L$2:L$65536)","v":0},{"$f":"SUMIF(IF(dati_pdc!$C495=1,dati_bdv!$C$2:$C$65536,IF(dati_pdc!$C495=2,dati_bdv!$D$2:$D$65536,IF(dati_pdc!$C495=3,dati_bdv!$E$2:$E$65536,IF(dati_pdc!$C495=4,dati_bdv!$F$2:$F$65536,IF(dati_pdc!$C495=5,dati_bdv!$G$2:$G$65536,dati_bdv!$H$2:$H$65536))))),$A495,dati_bdv!M$2:M$65536)","v":0},{"$f":"SUMIF(IF(dati_pdc!$C495=1,dati_bdv!$C$2:$C$65536,IF(dati_pdc!$C495=2,dati_bdv!$D$2:$D$65536,IF(dati_pdc!$C495=3,dati_bdv!$E$2:$E$65536,IF(dati_pdc!$C495=4,dati_bdv!$F$2:$F$65536,IF(dati_pdc!$C495=5,dati_bdv!$G$2:$G$65536,dati_bdv!$H$2:$H$65536))))),$A495,dati_bdv!N$2:N$65536)","v":0}]
[{"$f":"dati_pdc!A496","v":0},{"$f":"SUMIF(IF(dati_pdc!$C496=1,dati_bdv!$C$2:$C$65536,IF(dati_pdc!$C496=2,dati_bdv!$D$2:$D$65536,IF(dati_pdc!$C496=3,dati_bdv!$E$2:$E$65536,IF(dati_pdc!$C496=4,dati_bdv!$F$2:$F$65536,IF(dati_pdc!$C496=5,dati_bdv!$G$2:$G$65536,dati_bdv!$H$2:$H$65536))))),$A496,dati_bdv!J$2:J$65536)","v":0},{"$f":"SUMIF(IF(dati_pdc!$C496=1,dati_bdv!$C$2:$C$65536,IF(dati_pdc!$C496=2,dati_bdv!$D$2:$D$65536,IF(dati_pdc!$C496=3,dati_bdv!$E$2:$E$65536,IF(dati_pdc!$C496=4,dati_bdv!$F$2:$F$65536,IF(dati_pdc!$C496=5,dati_bdv!$G$2:$G$65536,dati_bdv!$H$2:$H$65536))))),$A496,dati_bdv!K$2:K$65536)","v":0},{"$f":"SUMIF(IF(dati_pdc!$C496=1,dati_bdv!$C$2:$C$65536,IF(dati_pdc!$C496=2,dati_bdv!$D$2:$D$65536,IF(dati_pdc!$C496=3,dati_bdv!$E$2:$E$65536,IF(dati_pdc!$C496=4,dati_bdv!$F$2:$F$65536,IF(dati_pdc!$C496=5,dati_bdv!$G$2:$G$65536,dati_bdv!$H$2:$H$65536))))),$A496,dati_bdv!L$2:L$65536)","v":0},{"$f":"SUMIF(IF(dati_pdc!$C496=1,dati_bdv!$C$2:$C$65536,IF(dati_pdc!$C496=2,dati_bdv!$D$2:$D$65536,IF(dati_pdc!$C496=3,dati_bdv!$E$2:$E$65536,IF(dati_pdc!$C496=4,dati_bdv!$F$2:$F$65536,IF(dati_pdc!$C496=5,dati_bdv!$G$2:$G$65536,dati_bdv!$H$2:$H$65536))))),$A496,dati_bdv!M$2:M$65536)","v":0},{"$f":"SUMIF(IF(dati_pdc!$C496=1,dati_bdv!$C$2:$C$65536,IF(dati_pdc!$C496=2,dati_bdv!$D$2:$D$65536,IF(dati_pdc!$C496=3,dati_bdv!$E$2:$E$65536,IF(dati_pdc!$C496=4,dati_bdv!$F$2:$F$65536,IF(dati_pdc!$C496=5,dati_bdv!$G$2:$G$65536,dati_bdv!$H$2:$H$65536))))),$A496,dati_bdv!N$2:N$65536)","v":0}]
[{"$f":"dati_pdc!A497","v":0},{"$f":"SUMIF(IF(dati_pdc!$C497=1,dati_bdv!$C$2:$C$65536,IF(dati_pdc!$C497=2,dati_bdv!$D$2:$D$65536,IF(dati_pdc!$C497=3,dati_bdv!$E$2:$E$65536,IF(dati_pdc!$C497=4,dati_bdv!$F$2:$F$65536,IF(dati_pdc!$C497=5,dati_bdv!$G$2:$G$65536,dati_bdv!$H$2:$H$65536))))),$A497,dati_bdv!J$2:J$65536)","v":0},{"$f":"SUMIF(IF(dati_pdc!$C497=1,dati_bdv!$C$2:$C$65536,IF(dati_pdc!$C497=2,dati_bdv!$D$2:$D$65536,IF(dati_pdc!$C497=3,dati_bdv!$E$2:$E$65536,IF(dati_pdc!$C497=4,dati_bdv!$F$2:$F$65536,IF(dati_pdc!$C497=5,dati_bdv!$G$2:$G$65536,dati_bdv!$H$2:$H$65536))))),$A497,dati_bdv!K$2:K$65536)","v":0},{"$f":"SUMIF(IF(dati_pdc!$C497=1,dati_bdv!$C$2:$C$65536,IF(dati_pdc!$C497=2,dati_bdv!$D$2:$D$65536,IF(dati_pdc!$C497=3,dati_bdv!$E$2:$E$65536,IF(dati_pdc!$C497=4,dati_bdv!$F$2:$F$65536,IF(dati_pdc!$C497=5,dati_bdv!$G$2:$G$65536,dati_bdv!$H$2:$H$65536))))),$A497,dati_bdv!L$2:L$65536)","v":0},{"$f":"SUMIF(IF(dati_pdc!$C497=1,dati_bdv!$C$2:$C$65536,IF(dati_pdc!$C497=2,dati_bdv!$D$2:$D$65536,IF(dati_pdc!$C497=3,dati_bdv!$E$2:$E$65536,IF(dati_pdc!$C497=4,dati_bdv!$F$2:$F$65536,IF(dati_pdc!$C497=5,dati_bdv!$G$2:$G$65536,dati_bdv!$H$2:$H$65536))))),$A497,dati_bdv!M$2:M$65536)","v":0},{"$f":"SUMIF(IF(dati_pdc!$C497=1,dati_bdv!$C$2:$C$65536,IF(dati_pdc!$C497=2,dati_bdv!$D$2:$D$65536,IF(dati_pdc!$C497=3,dati_bdv!$E$2:$E$65536,IF(dati_pdc!$C497=4,dati_bdv!$F$2:$F$65536,IF(dati_pdc!$C497=5,dati_bdv!$G$2:$G$65536,dati_bdv!$H$2:$H$65536))))),$A497,dati_bdv!N$2:N$65536)","v":0}]
[{"$f":"dati_pdc!A498","v":0},{"$f":"SUMIF(IF(dati_pdc!$C498=1,dati_bdv!$C$2:$C$65536,IF(dati_pdc!$C498=2,dati_bdv!$D$2:$D$65536,IF(dati_pdc!$C498=3,dati_bdv!$E$2:$E$65536,IF(dati_pdc!$C498=4,dati_bdv!$F$2:$F$65536,IF(dati_pdc!$C498=5,dati_bdv!$G$2:$G$65536,dati_bdv!$H$2:$H$65536))))),$A498,dati_bdv!J$2:J$65536)","v":0},{"$f":"SUMIF(IF(dati_pdc!$C498=1,dati_bdv!$C$2:$C$65536,IF(dati_pdc!$C498=2,dati_bdv!$D$2:$D$65536,IF(dati_pdc!$C498=3,dati_bdv!$E$2:$E$65536,IF(dati_pdc!$C498=4,dati_bdv!$F$2:$F$65536,IF(dati_pdc!$C498=5,dati_bdv!$G$2:$G$65536,dati_bdv!$H$2:$H$65536))))),$A498,dati_bdv!K$2:K$65536)","v":0},{"$f":"SUMIF(IF(dati_pdc!$C498=1,dati_bdv!$C$2:$C$65536,IF(dati_pdc!$C498=2,dati_bdv!$D$2:$D$65536,IF(dati_pdc!$C498=3,dati_bdv!$E$2:$E$65536,IF(dati_pdc!$C498=4,dati_bdv!$F$2:$F$65536,IF(dati_pdc!$C498=5,dati_bdv!$G$2:$G$65536,dati_bdv!$H$2:$H$65536))))),$A498,dati_bdv!L$2:L$65536)","v":0},{"$f":"SUMIF(IF(dati_pdc!$C498=1,dati_bdv!$C$2:$C$65536,IF(dati_pdc!$C498=2,dati_bdv!$D$2:$D$65536,IF(dati_pdc!$C498=3,dati_bdv!$E$2:$E$65536,IF(dati_pdc!$C498=4,dati_bdv!$F$2:$F$65536,IF(dati_pdc!$C498=5,dati_bdv!$G$2:$G$65536,dati_bdv!$H$2:$H$65536))))),$A498,dati_bdv!M$2:M$65536)","v":0},{"$f":"SUMIF(IF(dati_pdc!$C498=1,dati_bdv!$C$2:$C$65536,IF(dati_pdc!$C498=2,dati_bdv!$D$2:$D$65536,IF(dati_pdc!$C498=3,dati_bdv!$E$2:$E$65536,IF(dati_pdc!$C498=4,dati_bdv!$F$2:$F$65536,IF(dati_pdc!$C498=5,dati_bdv!$G$2:$G$65536,dati_bdv!$H$2:$H$65536))))),$A498,dati_bdv!N$2:N$65536)","v":0}]
[{"$f":"dati_pdc!A499","v":0},{"$f":"SUMIF(IF(dati_pdc!$C499=1,dati_bdv!$C$2:$C$65536,IF(dati_pdc!$C499=2,dati_bdv!$D$2:$D$65536,IF(dati_pdc!$C499=3,dati_bdv!$E$2:$E$65536,IF(dati_pdc!$C499=4,dati_bdv!$F$2:$F$65536,IF(dati_pdc!$C499=5,dati_bdv!$G$2:$G$65536,dati_bdv!$H$2:$H$65536))))),$A499,dati_bdv!J$2:J$65536)","v":0},{"$f":"SUMIF(IF(dati_pdc!$C499=1,dati_bdv!$C$2:$C$65536,IF(dati_pdc!$C499=2,dati_bdv!$D$2:$D$65536,IF(dati_pdc!$C499=3,dati_bdv!$E$2:$E$65536,IF(dati_pdc!$C499=4,dati_bdv!$F$2:$F$65536,IF(dati_pdc!$C499=5,dati_bdv!$G$2:$G$65536,dati_bdv!$H$2:$H$65536))))),$A499,dati_bdv!K$2:K$65536)","v":0},{"$f":"SUMIF(IF(dati_pdc!$C499=1,dati_bdv!$C$2:$C$65536,IF(dati_pdc!$C499=2,dati_bdv!$D$2:$D$65536,IF(dati_pdc!$C499=3,dati_bdv!$E$2:$E$65536,IF(dati_pdc!$C499=4,dati_bdv!$F$2:$F$65536,IF(dati_pdc!$C499=5,dati_bdv!$G$2:$G$65536,dati_bdv!$H$2:$H$65536))))),$A499,dati_bdv!L$2:L$65536)","v":0},{"$f":"SUMIF(IF(dati_pdc!$C499=1,dati_bdv!$C$2:$C$65536,IF(dati_pdc!$C499=2,dati_bdv!$D$2:$D$65536,IF(dati_pdc!$C499=3,dati_bdv!$E$2:$E$65536,IF(dati_pdc!$C499=4,dati_bdv!$F$2:$F$65536,IF(dati_pdc!$C499=5,dati_bdv!$G$2:$G$65536,dati_bdv!$H$2:$H$65536))))),$A499,dati_bdv!M$2:M$65536)","v":0},{"$f":"SUMIF(IF(dati_pdc!$C499=1,dati_bdv!$C$2:$C$65536,IF(dati_pdc!$C499=2,dati_bdv!$D$2:$D$65536,IF(dati_pdc!$C499=3,dati_bdv!$E$2:$E$65536,IF(dati_pdc!$C499=4,dati_bdv!$F$2:$F$65536,IF(dati_pdc!$C499=5,dati_bdv!$G$2:$G$65536,dati_bdv!$H$2:$H$65536))))),$A499,dati_bdv!N$2:N$65536)","v":0}]
[{"$f":"dati_pdc!A500","v":0},{"$f":"SUMIF(IF(dati_pdc!$C500=1,dati_bdv!$C$2:$C$65536,IF(dati_pdc!$C500=2,dati_bdv!$D$2:$D$65536,IF(dati_pdc!$C500=3,dati_bdv!$E$2:$E$65536,IF(dati_pdc!$C500=4,dati_bdv!$F$2:$F$65536,IF(dati_pdc!$C500=5,dati_bdv!$G$2:$G$65536,dati_bdv!$H$2:$H$65536))))),$A500,dati_bdv!J$2:J$65536)","v":0},{"$f":"SUMIF(IF(dati_pdc!$C500=1,dati_bdv!$C$2:$C$65536,IF(dati_pdc!$C500=2,dati_bdv!$D$2:$D$65536,IF(dati_pdc!$C500=3,dati_bdv!$E$2:$E$65536,IF(dati_pdc!$C500=4,dati_bdv!$F$2:$F$65536,IF(dati_pdc!$C500=5,dati_bdv!$G$2:$G$65536,dati_bdv!$H$2:$H$65536))))),$A500,dati_bdv!K$2:K$65536)","v":0},{"$f":"SUMIF(IF(dati_pdc!$C500=1,dati_bdv!$C$2:$C$65536,IF(dati_pdc!$C500=2,dati_bdv!$D$2:$D$65536,IF(dati_pdc!$C500=3,dati_bdv!$E$2:$E$65536,IF(dati_pdc!$C500=4,dati_bdv!$F$2:$F$65536,IF(dati_pdc!$C500=5,dati_bdv!$G$2:$G$65536,dati_bdv!$H$2:$H$65536))))),$A500,dati_bdv!L$2:L$65536)","v":0},{"$f":"SUMIF(IF(dati_pdc!$C500=1,dati_bdv!$C$2:$C$65536,IF(dati_pdc!$C500=2,dati_bdv!$D$2:$D$65536,IF(dati_pdc!$C500=3,dati_bdv!$E$2:$E$65536,IF(dati_pdc!$C500=4,dati_bdv!$F$2:$F$65536,IF(dati_pdc!$C500=5,dati_bdv!$G$2:$G$65536,dati_bdv!$H$2:$H$65536))))),$A500,dati_bdv!M$2:M$65536)","v":0},{"$f":"SUMIF(IF(dati_pdc!$C500=1,dati_bdv!$C$2:$C$65536,IF(dati_pdc!$C500=2,dati_bdv!$D$2:$D$65536,IF(dati_pdc!$C500=3,dati_bdv!$E$2:$E$65536,IF(dati_pdc!$C500=4,dati_bdv!$F$2:$F$65536,IF(dati_pdc!$C500=5,dati_bdv!$G$2:$G$65536,dati_bdv!$H$2:$H$65536))))),$A500,dati_bdv!N$2:N$65536)","v":0}]
[{"$f":"dati_pdc!A501","v":0},{"$f":"SUMIF(IF(dati_pdc!$C501=1,dati_bdv!$C$2:$C$65536,IF(dati_pdc!$C501=2,dati_bdv!$D$2:$D$65536,IF(dati_pdc!$C501=3,dati_bdv!$E$2:$E$65536,IF(dati_pdc!$C501=4,dati_bdv!$F$2:$F$65536,IF(dati_pdc!$C501=5,dati_bdv!$G$2:$G$65536,dati_bdv!$H$2:$H$65536))))),$A501,dati_bdv!J$2:J$65536)","v":0},{"$f":"SUMIF(IF(dati_pdc!$C501=1,dati_bdv!$C$2:$C$65536,IF(dati_pdc!$C501=2,dati_bdv!$D$2:$D$65536,IF(dati_pdc!$C501=3,dati_bdv!$E$2:$E$65536,IF(dati_pdc!$C501=4,dati_bdv!$F$2:$F$65536,IF(dati_pdc!$C501=5,dati_bdv!$G$2:$G$65536,dati_bdv!$H$2:$H$65536))))),$A501,dati_bdv!K$2:K$65536)","v":0},{"$f":"SUMIF(IF(dati_pdc!$C501=1,dati_bdv!$C$2:$C$65536,IF(dati_pdc!$C501=2,dati_bdv!$D$2:$D$65536,IF(dati_pdc!$C501=3,dati_bdv!$E$2:$E$65536,IF(dati_pdc!$C501=4,dati_bdv!$F$2:$F$65536,IF(dati_pdc!$C501=5,dati_bdv!$G$2:$G$65536,dati_bdv!$H$2:$H$65536))))),$A501,dati_bdv!L$2:L$65536)","v":0},{"$f":"SUMIF(IF(dati_pdc!$C501=1,dati_bdv!$C$2:$C$65536,IF(dati_pdc!$C501=2,dati_bdv!$D$2:$D$65536,IF(dati_pdc!$C501=3,dati_bdv!$E$2:$E$65536,IF(dati_pdc!$C501=4,dati_bdv!$F$2:$F$65536,IF(dati_pdc!$C501=5,dati_bdv!$G$2:$G$65536,dati_bdv!$H$2:$H$65536))))),$A501,dati_bdv!M$2:M$65536)","v":0},{"$f":"SUMIF(IF(dati_pdc!$C501=1,dati_bdv!$C$2:$C$65536,IF(dati_pdc!$C501=2,dati_bdv!$D$2:$D$65536,IF(dati_pdc!$C501=3,dati_bdv!$E$2:$E$65536,IF(dati_pdc!$C501=4,dati_bdv!$F$2:$F$65536,IF(dati_pdc!$C501=5,dati_bdv!$G$2:$G$65536,dati_bdv!$H$2:$H$65536))))),$A501,dati_bdv!N$2:N$65536)","v":0}]
[{"$f":"dati_pdc!A502","v":0},{"$f":"SUMIF(IF(dati_pdc!$C502=1,dati_bdv!$C$2:$C$65536,IF(dati_pdc!$C502=2,dati_bdv!$D$2:$D$65536,IF(dati_pdc!$C502=3,dati_bdv!$E$2:$E$65536,IF(dati_pdc!$C502=4,dati_bdv!$F$2:$F$65536,IF(dati_pdc!$C502=5,dati_bdv!$G$2:$G$65536,dati_bdv!$H$2:$H$65536))))),$A502,dati_bdv!J$2:J$65536)","v":0},{"$f":"SUMIF(IF(dati_pdc!$C502=1,dati_bdv!$C$2:$C$65536,IF(dati_pdc!$C502=2,dati_bdv!$D$2:$D$65536,IF(dati_pdc!$C502=3,dati_bdv!$E$2:$E$65536,IF(dati_pdc!$C502=4,dati_bdv!$F$2:$F$65536,IF(dati_pdc!$C502=5,dati_bdv!$G$2:$G$65536,dati_bdv!$H$2:$H$65536))))),$A502,dati_bdv!K$2:K$65536)","v":0},{"$f":"SUMIF(IF(dati_pdc!$C502=1,dati_bdv!$C$2:$C$65536,IF(dati_pdc!$C502=2,dati_bdv!$D$2:$D$65536,IF(dati_pdc!$C502=3,dati_bdv!$E$2:$E$65536,IF(dati_pdc!$C502=4,dati_bdv!$F$2:$F$65536,IF(dati_pdc!$C502=5,dati_bdv!$G$2:$G$65536,dati_bdv!$H$2:$H$65536))))),$A502,dati_bdv!L$2:L$65536)","v":0},{"$f":"SUMIF(IF(dati_pdc!$C502=1,dati_bdv!$C$2:$C$65536,IF(dati_pdc!$C502=2,dati_bdv!$D$2:$D$65536,IF(dati_pdc!$C502=3,dati_bdv!$E$2:$E$65536,IF(dati_pdc!$C502=4,dati_bdv!$F$2:$F$65536,IF(dati_pdc!$C502=5,dati_bdv!$G$2:$G$65536,dati_bdv!$H$2:$H$65536))))),$A502,dati_bdv!M$2:M$65536)","v":0},{"$f":"SUMIF(IF(dati_pdc!$C502=1,dati_bdv!$C$2:$C$65536,IF(dati_pdc!$C502=2,dati_bdv!$D$2:$D$65536,IF(dati_pdc!$C502=3,dati_bdv!$E$2:$E$65536,IF(dati_pdc!$C502=4,dati_bdv!$F$2:$F$65536,IF(dati_pdc!$C502=5,dati_bdv!$G$2:$G$65536,dati_bdv!$H$2:$H$65536))))),$A502,dati_bdv!N$2:N$65536)","v":0}]
[{"$f":"dati_pdc!A503","v":0},{"$f":"SUMIF(IF(dati_pdc!$C503=1,dati_bdv!$C$2:$C$65536,IF(dati_pdc!$C503=2,dati_bdv!$D$2:$D$65536,IF(dati_pdc!$C503=3,dati_bdv!$E$2:$E$65536,IF(dati_pdc!$C503=4,dati_bdv!$F$2:$F$65536,IF(dati_pdc!$C503=5,dati_bdv!$G$2:$G$65536,dati_bdv!$H$2:$H$65536))))),$A503,dati_bdv!J$2:J$65536)","v":0},{"$f":"SUMIF(IF(dati_pdc!$C503=1,dati_bdv!$C$2:$C$65536,IF(dati_pdc!$C503=2,dati_bdv!$D$2:$D$65536,IF(dati_pdc!$C503=3,dati_bdv!$E$2:$E$65536,IF(dati_pdc!$C503=4,dati_bdv!$F$2:$F$65536,IF(dati_pdc!$C503=5,dati_bdv!$G$2:$G$65536,dati_bdv!$H$2:$H$65536))))),$A503,dati_bdv!K$2:K$65536)","v":0},{"$f":"SUMIF(IF(dati_pdc!$C503=1,dati_bdv!$C$2:$C$65536,IF(dati_pdc!$C503=2,dati_bdv!$D$2:$D$65536,IF(dati_pdc!$C503=3,dati_bdv!$E$2:$E$65536,IF(dati_pdc!$C503=4,dati_bdv!$F$2:$F$65536,IF(dati_pdc!$C503=5,dati_bdv!$G$2:$G$65536,dati_bdv!$H$2:$H$65536))))),$A503,dati_bdv!L$2:L$65536)","v":0},{"$f":"SUMIF(IF(dati_pdc!$C503=1,dati_bdv!$C$2:$C$65536,IF(dati_pdc!$C503=2,dati_bdv!$D$2:$D$65536,IF(dati_pdc!$C503=3,dati_bdv!$E$2:$E$65536,IF(dati_pdc!$C503=4,dati_bdv!$F$2:$F$65536,IF(dati_pdc!$C503=5,dati_bdv!$G$2:$G$65536,dati_bdv!$H$2:$H$65536))))),$A503,dati_bdv!M$2:M$65536)","v":0},{"$f":"SUMIF(IF(dati_pdc!$C503=1,dati_bdv!$C$2:$C$65536,IF(dati_pdc!$C503=2,dati_bdv!$D$2:$D$65536,IF(dati_pdc!$C503=3,dati_bdv!$E$2:$E$65536,IF(dati_pdc!$C503=4,dati_bdv!$F$2:$F$65536,IF(dati_pdc!$C503=5,dati_bdv!$G$2:$G$65536,dati_bdv!$H$2:$H$65536))))),$A503,dati_bdv!N$2:N$65536)","v":0}]
[{"$f":"dati_pdc!A504","v":0},{"$f":"SUMIF(IF(dati_pdc!$C504=1,dati_bdv!$C$2:$C$65536,IF(dati_pdc!$C504=2,dati_bdv!$D$2:$D$65536,IF(dati_pdc!$C504=3,dati_bdv!$E$2:$E$65536,IF(dati_pdc!$C504=4,dati_bdv!$F$2:$F$65536,IF(dati_pdc!$C504=5,dati_bdv!$G$2:$G$65536,dati_bdv!$H$2:$H$65536))))),$A504,dati_bdv!J$2:J$65536)","v":0},{"$f":"SUMIF(IF(dati_pdc!$C504=1,dati_bdv!$C$2:$C$65536,IF(dati_pdc!$C504=2,dati_bdv!$D$2:$D$65536,IF(dati_pdc!$C504=3,dati_bdv!$E$2:$E$65536,IF(dati_pdc!$C504=4,dati_bdv!$F$2:$F$65536,IF(dati_pdc!$C504=5,dati_bdv!$G$2:$G$65536,dati_bdv!$H$2:$H$65536))))),$A504,dati_bdv!K$2:K$65536)","v":0},{"$f":"SUMIF(IF(dati_pdc!$C504=1,dati_bdv!$C$2:$C$65536,IF(dati_pdc!$C504=2,dati_bdv!$D$2:$D$65536,IF(dati_pdc!$C504=3,dati_bdv!$E$2:$E$65536,IF(dati_pdc!$C504=4,dati_bdv!$F$2:$F$65536,IF(dati_pdc!$C504=5,dati_bdv!$G$2:$G$65536,dati_bdv!$H$2:$H$65536))))),$A504,dati_bdv!L$2:L$65536)","v":0},{"$f":"SUMIF(IF(dati_pdc!$C504=1,dati_bdv!$C$2:$C$65536,IF(dati_pdc!$C504=2,dati_bdv!$D$2:$D$65536,IF(dati_pdc!$C504=3,dati_bdv!$E$2:$E$65536,IF(dati_pdc!$C504=4,dati_bdv!$F$2:$F$65536,IF(dati_pdc!$C504=5,dati_bdv!$G$2:$G$65536,dati_bdv!$H$2:$H$65536))))),$A504,dati_bdv!M$2:M$65536)","v":0},{"$f":"SUMIF(IF(dati_pdc!$C504=1,dati_bdv!$C$2:$C$65536,IF(dati_pdc!$C504=2,dati_bdv!$D$2:$D$65536,IF(dati_pdc!$C504=3,dati_bdv!$E$2:$E$65536,IF(dati_pdc!$C504=4,dati_bdv!$F$2:$F$65536,IF(dati_pdc!$C504=5,dati_bdv!$G$2:$G$65536,dati_bdv!$H$2:$H$65536))))),$A504,dati_bdv!N$2:N$65536)","v":0}]
[{"$f":"dati_pdc!A505","v":0},{"$f":"SUMIF(IF(dati_pdc!$C505=1,dati_bdv!$C$2:$C$65536,IF(dati_pdc!$C505=2,dati_bdv!$D$2:$D$65536,IF(dati_pdc!$C505=3,dati_bdv!$E$2:$E$65536,IF(dati_pdc!$C505=4,dati_bdv!$F$2:$F$65536,IF(dati_pdc!$C505=5,dati_bdv!$G$2:$G$65536,dati_bdv!$H$2:$H$65536))))),$A505,dati_bdv!J$2:J$65536)","v":0},{"$f":"SUMIF(IF(dati_pdc!$C505=1,dati_bdv!$C$2:$C$65536,IF(dati_pdc!$C505=2,dati_bdv!$D$2:$D$65536,IF(dati_pdc!$C505=3,dati_bdv!$E$2:$E$65536,IF(dati_pdc!$C505=4,dati_bdv!$F$2:$F$65536,IF(dati_pdc!$C505=5,dati_bdv!$G$2:$G$65536,dati_bdv!$H$2:$H$65536))))),$A505,dati_bdv!K$2:K$65536)","v":0},{"$f":"SUMIF(IF(dati_pdc!$C505=1,dati_bdv!$C$2:$C$65536,IF(dati_pdc!$C505=2,dati_bdv!$D$2:$D$65536,IF(dati_pdc!$C505=3,dati_bdv!$E$2:$E$65536,IF(dati_pdc!$C505=4,dati_bdv!$F$2:$F$65536,IF(dati_pdc!$C505=5,dati_bdv!$G$2:$G$65536,dati_bdv!$H$2:$H$65536))))),$A505,dati_bdv!L$2:L$65536)","v":0},{"$f":"SUMIF(IF(dati_pdc!$C505=1,dati_bdv!$C$2:$C$65536,IF(dati_pdc!$C505=2,dati_bdv!$D$2:$D$65536,IF(dati_pdc!$C505=3,dati_bdv!$E$2:$E$65536,IF(dati_pdc!$C505=4,dati_bdv!$F$2:$F$65536,IF(dati_pdc!$C505=5,dati_bdv!$G$2:$G$65536,dati_bdv!$H$2:$H$65536))))),$A505,dati_bdv!M$2:M$65536)","v":0},{"$f":"SUMIF(IF(dati_pdc!$C505=1,dati_bdv!$C$2:$C$65536,IF(dati_pdc!$C505=2,dati_bdv!$D$2:$D$65536,IF(dati_pdc!$C505=3,dati_bdv!$E$2:$E$65536,IF(dati_pdc!$C505=4,dati_bdv!$F$2:$F$65536,IF(dati_pdc!$C505=5,dati_bdv!$G$2:$G$65536,dati_bdv!$H$2:$H$65536))))),$A505,dati_bdv!N$2:N$65536)","v":0}]
[{"$f":"dati_pdc!A506","v":0},{"$f":"SUMIF(IF(dati_pdc!$C506=1,dati_bdv!$C$2:$C$65536,IF(dati_pdc!$C506=2,dati_bdv!$D$2:$D$65536,IF(dati_pdc!$C506=3,dati_bdv!$E$2:$E$65536,IF(dati_pdc!$C506=4,dati_bdv!$F$2:$F$65536,IF(dati_pdc!$C506=5,dati_bdv!$G$2:$G$65536,dati_bdv!$H$2:$H$65536))))),$A506,dati_bdv!J$2:J$65536)","v":0},{"$f":"SUMIF(IF(dati_pdc!$C506=1,dati_bdv!$C$2:$C$65536,IF(dati_pdc!$C506=2,dati_bdv!$D$2:$D$65536,IF(dati_pdc!$C506=3,dati_bdv!$E$2:$E$65536,IF(dati_pdc!$C506=4,dati_bdv!$F$2:$F$65536,IF(dati_pdc!$C506=5,dati_bdv!$G$2:$G$65536,dati_bdv!$H$2:$H$65536))))),$A506,dati_bdv!K$2:K$65536)","v":0},{"$f":"SUMIF(IF(dati_pdc!$C506=1,dati_bdv!$C$2:$C$65536,IF(dati_pdc!$C506=2,dati_bdv!$D$2:$D$65536,IF(dati_pdc!$C506=3,dati_bdv!$E$2:$E$65536,IF(dati_pdc!$C506=4,dati_bdv!$F$2:$F$65536,IF(dati_pdc!$C506=5,dati_bdv!$G$2:$G$65536,dati_bdv!$H$2:$H$65536))))),$A506,dati_bdv!L$2:L$65536)","v":0},{"$f":"SUMIF(IF(dati_pdc!$C506=1,dati_bdv!$C$2:$C$65536,IF(dati_pdc!$C506=2,dati_bdv!$D$2:$D$65536,IF(dati_pdc!$C506=3,dati_bdv!$E$2:$E$65536,IF(dati_pdc!$C506=4,dati_bdv!$F$2:$F$65536,IF(dati_pdc!$C506=5,dati_bdv!$G$2:$G$65536,dati_bdv!$H$2:$H$65536))))),$A506,dati_bdv!M$2:M$65536)","v":0},{"$f":"SUMIF(IF(dati_pdc!$C506=1,dati_bdv!$C$2:$C$65536,IF(dati_pdc!$C506=2,dati_bdv!$D$2:$D$65536,IF(dati_pdc!$C506=3,dati_bdv!$E$2:$E$65536,IF(dati_pdc!$C506=4,dati_bdv!$F$2:$F$65536,IF(dati_pdc!$C506=5,dati_bdv!$G$2:$G$65536,dati_bdv!$H$2:$H$65536))))),$A506,dati_bdv!N$2:N$65536)","v":0}]
[{"$f":"dati_pdc!A507","v":0},{"$f":"SUMIF(IF(dati_pdc!$C507=1,dati_bdv!$C$2:$C$65536,IF(dati_pdc!$C507=2,dati_bdv!$D$2:$D$65536,IF(dati_pdc!$C507=3,dati_bdv!$E$2:$E$65536,IF(dati_pdc!$C507=4,dati_bdv!$F$2:$F$65536,IF(dati_pdc!$C507=5,dati_bdv!$G$2:$G$65536,dati_bdv!$H$2:$H$65536))))),$A507,dati_bdv!J$2:J$65536)","v":0},{"$f":"SUMIF(IF(dati_pdc!$C507=1,dati_bdv!$C$2:$C$65536,IF(dati_pdc!$C507=2,dati_bdv!$D$2:$D$65536,IF(dati_pdc!$C507=3,dati_bdv!$E$2:$E$65536,IF(dati_pdc!$C507=4,dati_bdv!$F$2:$F$65536,IF(dati_pdc!$C507=5,dati_bdv!$G$2:$G$65536,dati_bdv!$H$2:$H$65536))))),$A507,dati_bdv!K$2:K$65536)","v":0},{"$f":"SUMIF(IF(dati_pdc!$C507=1,dati_bdv!$C$2:$C$65536,IF(dati_pdc!$C507=2,dati_bdv!$D$2:$D$65536,IF(dati_pdc!$C507=3,dati_bdv!$E$2:$E$65536,IF(dati_pdc!$C507=4,dati_bdv!$F$2:$F$65536,IF(dati_pdc!$C507=5,dati_bdv!$G$2:$G$65536,dati_bdv!$H$2:$H$65536))))),$A507,dati_bdv!L$2:L$65536)","v":0},{"$f":"SUMIF(IF(dati_pdc!$C507=1,dati_bdv!$C$2:$C$65536,IF(dati_pdc!$C507=2,dati_bdv!$D$2:$D$65536,IF(dati_pdc!$C507=3,dati_bdv!$E$2:$E$65536,IF(dati_pdc!$C507=4,dati_bdv!$F$2:$F$65536,IF(dati_pdc!$C507=5,dati_bdv!$G$2:$G$65536,dati_bdv!$H$2:$H$65536))))),$A507,dati_bdv!M$2:M$65536)","v":0},{"$f":"SUMIF(IF(dati_pdc!$C507=1,dati_bdv!$C$2:$C$65536,IF(dati_pdc!$C507=2,dati_bdv!$D$2:$D$65536,IF(dati_pdc!$C507=3,dati_bdv!$E$2:$E$65536,IF(dati_pdc!$C507=4,dati_bdv!$F$2:$F$65536,IF(dati_pdc!$C507=5,dati_bdv!$G$2:$G$65536,dati_bdv!$H$2:$H$65536))))),$A507,dati_bdv!N$2:N$65536)","v":0}]
[{"$f":"dati_pdc!A508","v":0},{"$f":"SUMIF(IF(dati_pdc!$C508=1,dati_bdv!$C$2:$C$65536,IF(dati_pdc!$C508=2,dati_bdv!$D$2:$D$65536,IF(dati_pdc!$C508=3,dati_bdv!$E$2:$E$65536,IF(dati_pdc!$C508=4,dati_bdv!$F$2:$F$65536,IF(dati_pdc!$C508=5,dati_bdv!$G$2:$G$65536,dati_bdv!$H$2:$H$65536))))),$A508,dati_bdv!J$2:J$65536)","v":0},{"$f":"SUMIF(IF(dati_pdc!$C508=1,dati_bdv!$C$2:$C$65536,IF(dati_pdc!$C508=2,dati_bdv!$D$2:$D$65536,IF(dati_pdc!$C508=3,dati_bdv!$E$2:$E$65536,IF(dati_pdc!$C508=4,dati_bdv!$F$2:$F$65536,IF(dati_pdc!$C508=5,dati_bdv!$G$2:$G$65536,dati_bdv!$H$2:$H$65536))))),$A508,dati_bdv!K$2:K$65536)","v":0},{"$f":"SUMIF(IF(dati_pdc!$C508=1,dati_bdv!$C$2:$C$65536,IF(dati_pdc!$C508=2,dati_bdv!$D$2:$D$65536,IF(dati_pdc!$C508=3,dati_bdv!$E$2:$E$65536,IF(dati_pdc!$C508=4,dati_bdv!$F$2:$F$65536,IF(dati_pdc!$C508=5,dati_bdv!$G$2:$G$65536,dati_bdv!$H$2:$H$65536))))),$A508,dati_bdv!L$2:L$65536)","v":0},{"$f":"SUMIF(IF(dati_pdc!$C508=1,dati_bdv!$C$2:$C$65536,IF(dati_pdc!$C508=2,dati_bdv!$D$2:$D$65536,IF(dati_pdc!$C508=3,dati_bdv!$E$2:$E$65536,IF(dati_pdc!$C508=4,dati_bdv!$F$2:$F$65536,IF(dati_pdc!$C508=5,dati_bdv!$G$2:$G$65536,dati_bdv!$H$2:$H$65536))))),$A508,dati_bdv!M$2:M$65536)","v":0},{"$f":"SUMIF(IF(dati_pdc!$C508=1,dati_bdv!$C$2:$C$65536,IF(dati_pdc!$C508=2,dati_bdv!$D$2:$D$65536,IF(dati_pdc!$C508=3,dati_bdv!$E$2:$E$65536,IF(dati_pdc!$C508=4,dati_bdv!$F$2:$F$65536,IF(dati_pdc!$C508=5,dati_bdv!$G$2:$G$65536,dati_bdv!$H$2:$H$65536))))),$A508,dati_bdv!N$2:N$65536)","v":0}]
[{"$f":"dati_pdc!A509","v":0},{"$f":"SUMIF(IF(dati_pdc!$C509=1,dati_bdv!$C$2:$C$65536,IF(dati_pdc!$C509=2,dati_bdv!$D$2:$D$65536,IF(dati_pdc!$C509=3,dati_bdv!$E$2:$E$65536,IF(dati_pdc!$C509=4,dati_bdv!$F$2:$F$65536,IF(dati_pdc!$C509=5,dati_bdv!$G$2:$G$65536,dati_bdv!$H$2:$H$65536))))),$A509,dati_bdv!J$2:J$65536)","v":0},{"$f":"SUMIF(IF(dati_pdc!$C509=1,dati_bdv!$C$2:$C$65536,IF(dati_pdc!$C509=2,dati_bdv!$D$2:$D$65536,IF(dati_pdc!$C509=3,dati_bdv!$E$2:$E$65536,IF(dati_pdc!$C509=4,dati_bdv!$F$2:$F$65536,IF(dati_pdc!$C509=5,dati_bdv!$G$2:$G$65536,dati_bdv!$H$2:$H$65536))))),$A509,dati_bdv!K$2:K$65536)","v":0},{"$f":"SUMIF(IF(dati_pdc!$C509=1,dati_bdv!$C$2:$C$65536,IF(dati_pdc!$C509=2,dati_bdv!$D$2:$D$65536,IF(dati_pdc!$C509=3,dati_bdv!$E$2:$E$65536,IF(dati_pdc!$C509=4,dati_bdv!$F$2:$F$65536,IF(dati_pdc!$C509=5,dati_bdv!$G$2:$G$65536,dati_bdv!$H$2:$H$65536))))),$A509,dati_bdv!L$2:L$65536)","v":0},{"$f":"SUMIF(IF(dati_pdc!$C509=1,dati_bdv!$C$2:$C$65536,IF(dati_pdc!$C509=2,dati_bdv!$D$2:$D$65536,IF(dati_pdc!$C509=3,dati_bdv!$E$2:$E$65536,IF(dati_pdc!$C509=4,dati_bdv!$F$2:$F$65536,IF(dati_pdc!$C509=5,dati_bdv!$G$2:$G$65536,dati_bdv!$H$2:$H$65536))))),$A509,dati_bdv!M$2:M$65536)","v":0},{"$f":"SUMIF(IF(dati_pdc!$C509=1,dati_bdv!$C$2:$C$65536,IF(dati_pdc!$C509=2,dati_bdv!$D$2:$D$65536,IF(dati_pdc!$C509=3,dati_bdv!$E$2:$E$65536,IF(dati_pdc!$C509=4,dati_bdv!$F$2:$F$65536,IF(dati_pdc!$C509=5,dati_bdv!$G$2:$G$65536,dati_bdv!$H$2:$H$65536))))),$A509,dati_bdv!N$2:N$65536)","v":0}]
[{"$f":"dati_pdc!A510","v":0},{"$f":"SUMIF(IF(dati_pdc!$C510=1,dati_bdv!$C$2:$C$65536,IF(dati_pdc!$C510=2,dati_bdv!$D$2:$D$65536,IF(dati_pdc!$C510=3,dati_bdv!$E$2:$E$65536,IF(dati_pdc!$C510=4,dati_bdv!$F$2:$F$65536,IF(dati_pdc!$C510=5,dati_bdv!$G$2:$G$65536,dati_bdv!$H$2:$H$65536))))),$A510,dati_bdv!J$2:J$65536)","v":0},{"$f":"SUMIF(IF(dati_pdc!$C510=1,dati_bdv!$C$2:$C$65536,IF(dati_pdc!$C510=2,dati_bdv!$D$2:$D$65536,IF(dati_pdc!$C510=3,dati_bdv!$E$2:$E$65536,IF(dati_pdc!$C510=4,dati_bdv!$F$2:$F$65536,IF(dati_pdc!$C510=5,dati_bdv!$G$2:$G$65536,dati_bdv!$H$2:$H$65536))))),$A510,dati_bdv!K$2:K$65536)","v":0},{"$f":"SUMIF(IF(dati_pdc!$C510=1,dati_bdv!$C$2:$C$65536,IF(dati_pdc!$C510=2,dati_bdv!$D$2:$D$65536,IF(dati_pdc!$C510=3,dati_bdv!$E$2:$E$65536,IF(dati_pdc!$C510=4,dati_bdv!$F$2:$F$65536,IF(dati_pdc!$C510=5,dati_bdv!$G$2:$G$65536,dati_bdv!$H$2:$H$65536))))),$A510,dati_bdv!L$2:L$65536)","v":0},{"$f":"SUMIF(IF(dati_pdc!$C510=1,dati_bdv!$C$2:$C$65536,IF(dati_pdc!$C510=2,dati_bdv!$D$2:$D$65536,IF(dati_pdc!$C510=3,dati_bdv!$E$2:$E$65536,IF(dati_pdc!$C510=4,dati_bdv!$F$2:$F$65536,IF(dati_pdc!$C510=5,dati_bdv!$G$2:$G$65536,dati_bdv!$H$2:$H$65536))))),$A510,dati_bdv!M$2:M$65536)","v":0},{"$f":"SUMIF(IF(dati_pdc!$C510=1,dati_bdv!$C$2:$C$65536,IF(dati_pdc!$C510=2,dati_bdv!$D$2:$D$65536,IF(dati_pdc!$C510=3,dati_bdv!$E$2:$E$65536,IF(dati_pdc!$C510=4,dati_bdv!$F$2:$F$65536,IF(dati_pdc!$C510=5,dati_bdv!$G$2:$G$65536,dati_bdv!$H$2:$H$65536))))),$A510,dati_bdv!N$2:N$65536)","v":0}]
[{"$f":"dati_pdc!A511","v":0},{"$f":"SUMIF(IF(dati_pdc!$C511=1,dati_bdv!$C$2:$C$65536,IF(dati_pdc!$C511=2,dati_bdv!$D$2:$D$65536,IF(dati_pdc!$C511=3,dati_bdv!$E$2:$E$65536,IF(dati_pdc!$C511=4,dati_bdv!$F$2:$F$65536,IF(dati_pdc!$C511=5,dati_bdv!$G$2:$G$65536,dati_bdv!$H$2:$H$65536))))),$A511,dati_bdv!J$2:J$65536)","v":0},{"$f":"SUMIF(IF(dati_pdc!$C511=1,dati_bdv!$C$2:$C$65536,IF(dati_pdc!$C511=2,dati_bdv!$D$2:$D$65536,IF(dati_pdc!$C511=3,dati_bdv!$E$2:$E$65536,IF(dati_pdc!$C511=4,dati_bdv!$F$2:$F$65536,IF(dati_pdc!$C511=5,dati_bdv!$G$2:$G$65536,dati_bdv!$H$2:$H$65536))))),$A511,dati_bdv!K$2:K$65536)","v":0},{"$f":"SUMIF(IF(dati_pdc!$C511=1,dati_bdv!$C$2:$C$65536,IF(dati_pdc!$C511=2,dati_bdv!$D$2:$D$65536,IF(dati_pdc!$C511=3,dati_bdv!$E$2:$E$65536,IF(dati_pdc!$C511=4,dati_bdv!$F$2:$F$65536,IF(dati_pdc!$C511=5,dati_bdv!$G$2:$G$65536,dati_bdv!$H$2:$H$65536))))),$A511,dati_bdv!L$2:L$65536)","v":0},{"$f":"SUMIF(IF(dati_pdc!$C511=1,dati_bdv!$C$2:$C$65536,IF(dati_pdc!$C511=2,dati_bdv!$D$2:$D$65536,IF(dati_pdc!$C511=3,dati_bdv!$E$2:$E$65536,IF(dati_pdc!$C511=4,dati_bdv!$F$2:$F$65536,IF(dati_pdc!$C511=5,dati_bdv!$G$2:$G$65536,dati_bdv!$H$2:$H$65536))))),$A511,dati_bdv!M$2:M$65536)","v":0},{"$f":"SUMIF(IF(dati_pdc!$C511=1,dati_bdv!$C$2:$C$65536,IF(dati_pdc!$C511=2,dati_bdv!$D$2:$D$65536,IF(dati_pdc!$C511=3,dati_bdv!$E$2:$E$65536,IF(dati_pdc!$C511=4,dati_bdv!$F$2:$F$65536,IF(dati_pdc!$C511=5,dati_bdv!$G$2:$G$65536,dati_bdv!$H$2:$H$65536))))),$A511,dati_bdv!N$2:N$65536)","v":0}]
[{"$f":"dati_pdc!A512","v":0},{"$f":"SUMIF(IF(dati_pdc!$C512=1,dati_bdv!$C$2:$C$65536,IF(dati_pdc!$C512=2,dati_bdv!$D$2:$D$65536,IF(dati_pdc!$C512=3,dati_bdv!$E$2:$E$65536,IF(dati_pdc!$C512=4,dati_bdv!$F$2:$F$65536,IF(dati_pdc!$C512=5,dati_bdv!$G$2:$G$65536,dati_bdv!$H$2:$H$65536))))),$A512,dati_bdv!J$2:J$65536)","v":0},{"$f":"SUMIF(IF(dati_pdc!$C512=1,dati_bdv!$C$2:$C$65536,IF(dati_pdc!$C512=2,dati_bdv!$D$2:$D$65536,IF(dati_pdc!$C512=3,dati_bdv!$E$2:$E$65536,IF(dati_pdc!$C512=4,dati_bdv!$F$2:$F$65536,IF(dati_pdc!$C512=5,dati_bdv!$G$2:$G$65536,dati_bdv!$H$2:$H$65536))))),$A512,dati_bdv!K$2:K$65536)","v":0},{"$f":"SUMIF(IF(dati_pdc!$C512=1,dati_bdv!$C$2:$C$65536,IF(dati_pdc!$C512=2,dati_bdv!$D$2:$D$65536,IF(dati_pdc!$C512=3,dati_bdv!$E$2:$E$65536,IF(dati_pdc!$C512=4,dati_bdv!$F$2:$F$65536,IF(dati_pdc!$C512=5,dati_bdv!$G$2:$G$65536,dati_bdv!$H$2:$H$65536))))),$A512,dati_bdv!L$2:L$65536)","v":0},{"$f":"SUMIF(IF(dati_pdc!$C512=1,dati_bdv!$C$2:$C$65536,IF(dati_pdc!$C512=2,dati_bdv!$D$2:$D$65536,IF(dati_pdc!$C512=3,dati_bdv!$E$2:$E$65536,IF(dati_pdc!$C512=4,dati_bdv!$F$2:$F$65536,IF(dati_pdc!$C512=5,dati_bdv!$G$2:$G$65536,dati_bdv!$H$2:$H$65536))))),$A512,dati_bdv!M$2:M$65536)","v":0},{"$f":"SUMIF(IF(dati_pdc!$C512=1,dati_bdv!$C$2:$C$65536,IF(dati_pdc!$C512=2,dati_bdv!$D$2:$D$65536,IF(dati_pdc!$C512=3,dati_bdv!$E$2:$E$65536,IF(dati_pdc!$C512=4,dati_bdv!$F$2:$F$65536,IF(dati_pdc!$C512=5,dati_bdv!$G$2:$G$65536,dati_bdv!$H$2:$H$65536))))),$A512,dati_bdv!N$2:N$65536)","v":0}]
[{"$f":"dati_pdc!A513","v":0},{"$f":"SUMIF(IF(dati_pdc!$C513=1,dati_bdv!$C$2:$C$65536,IF(dati_pdc!$C513=2,dati_bdv!$D$2:$D$65536,IF(dati_pdc!$C513=3,dati_bdv!$E$2:$E$65536,IF(dati_pdc!$C513=4,dati_bdv!$F$2:$F$65536,IF(dati_pdc!$C513=5,dati_bdv!$G$2:$G$65536,dati_bdv!$H$2:$H$65536))))),$A513,dati_bdv!J$2:J$65536)","v":0},{"$f":"SUMIF(IF(dati_pdc!$C513=1,dati_bdv!$C$2:$C$65536,IF(dati_pdc!$C513=2,dati_bdv!$D$2:$D$65536,IF(dati_pdc!$C513=3,dati_bdv!$E$2:$E$65536,IF(dati_pdc!$C513=4,dati_bdv!$F$2:$F$65536,IF(dati_pdc!$C513=5,dati_bdv!$G$2:$G$65536,dati_bdv!$H$2:$H$65536))))),$A513,dati_bdv!K$2:K$65536)","v":0},{"$f":"SUMIF(IF(dati_pdc!$C513=1,dati_bdv!$C$2:$C$65536,IF(dati_pdc!$C513=2,dati_bdv!$D$2:$D$65536,IF(dati_pdc!$C513=3,dati_bdv!$E$2:$E$65536,IF(dati_pdc!$C513=4,dati_bdv!$F$2:$F$65536,IF(dati_pdc!$C513=5,dati_bdv!$G$2:$G$65536,dati_bdv!$H$2:$H$65536))))),$A513,dati_bdv!L$2:L$65536)","v":0},{"$f":"SUMIF(IF(dati_pdc!$C513=1,dati_bdv!$C$2:$C$65536,IF(dati_pdc!$C513=2,dati_bdv!$D$2:$D$65536,IF(dati_pdc!$C513=3,dati_bdv!$E$2:$E$65536,IF(dati_pdc!$C513=4,dati_bdv!$F$2:$F$65536,IF(dati_pdc!$C513=5,dati_bdv!$G$2:$G$65536,dati_bdv!$H$2:$H$65536))))),$A513,dati_bdv!M$2:M$65536)","v":0},{"$f":"SUMIF(IF(dati_pdc!$C513=1,dati_bdv!$C$2:$C$65536,IF(dati_pdc!$C513=2,dati_bdv!$D$2:$D$65536,IF(dati_pdc!$C513=3,dati_bdv!$E$2:$E$65536,IF(dati_pdc!$C513=4,dati_bdv!$F$2:$F$65536,IF(dati_pdc!$C513=5,dati_bdv!$G$2:$G$65536,dati_bdv!$H$2:$H$65536))))),$A513,dati_bdv!N$2:N$65536)","v":0}]
[{"$f":"dati_pdc!A514","v":0},{"$f":"SUMIF(IF(dati_pdc!$C514=1,dati_bdv!$C$2:$C$65536,IF(dati_pdc!$C514=2,dati_bdv!$D$2:$D$65536,IF(dati_pdc!$C514=3,dati_bdv!$E$2:$E$65536,IF(dati_pdc!$C514=4,dati_bdv!$F$2:$F$65536,IF(dati_pdc!$C514=5,dati_bdv!$G$2:$G$65536,dati_bdv!$H$2:$H$65536))))),$A514,dati_bdv!J$2:J$65536)","v":0},{"$f":"SUMIF(IF(dati_pdc!$C514=1,dati_bdv!$C$2:$C$65536,IF(dati_pdc!$C514=2,dati_bdv!$D$2:$D$65536,IF(dati_pdc!$C514=3,dati_bdv!$E$2:$E$65536,IF(dati_pdc!$C514=4,dati_bdv!$F$2:$F$65536,IF(dati_pdc!$C514=5,dati_bdv!$G$2:$G$65536,dati_bdv!$H$2:$H$65536))))),$A514,dati_bdv!K$2:K$65536)","v":0},{"$f":"SUMIF(IF(dati_pdc!$C514=1,dati_bdv!$C$2:$C$65536,IF(dati_pdc!$C514=2,dati_bdv!$D$2:$D$65536,IF(dati_pdc!$C514=3,dati_bdv!$E$2:$E$65536,IF(dati_pdc!$C514=4,dati_bdv!$F$2:$F$65536,IF(dati_pdc!$C514=5,dati_bdv!$G$2:$G$65536,dati_bdv!$H$2:$H$65536))))),$A514,dati_bdv!L$2:L$65536)","v":0},{"$f":"SUMIF(IF(dati_pdc!$C514=1,dati_bdv!$C$2:$C$65536,IF(dati_pdc!$C514=2,dati_bdv!$D$2:$D$65536,IF(dati_pdc!$C514=3,dati_bdv!$E$2:$E$65536,IF(dati_pdc!$C514=4,dati_bdv!$F$2:$F$65536,IF(dati_pdc!$C514=5,dati_bdv!$G$2:$G$65536,dati_bdv!$H$2:$H$65536))))),$A514,dati_bdv!M$2:M$65536)","v":0},{"$f":"SUMIF(IF(dati_pdc!$C514=1,dati_bdv!$C$2:$C$65536,IF(dati_pdc!$C514=2,dati_bdv!$D$2:$D$65536,IF(dati_pdc!$C514=3,dati_bdv!$E$2:$E$65536,IF(dati_pdc!$C514=4,dati_bdv!$F$2:$F$65536,IF(dati_pdc!$C514=5,dati_bdv!$G$2:$G$65536,dati_bdv!$H$2:$H$65536))))),$A514,dati_bdv!N$2:N$65536)","v":0}]
[{"$f":"dati_pdc!A515","v":0},{"$f":"SUMIF(IF(dati_pdc!$C515=1,dati_bdv!$C$2:$C$65536,IF(dati_pdc!$C515=2,dati_bdv!$D$2:$D$65536,IF(dati_pdc!$C515=3,dati_bdv!$E$2:$E$65536,IF(dati_pdc!$C515=4,dati_bdv!$F$2:$F$65536,IF(dati_pdc!$C515=5,dati_bdv!$G$2:$G$65536,dati_bdv!$H$2:$H$65536))))),$A515,dati_bdv!J$2:J$65536)","v":0},{"$f":"SUMIF(IF(dati_pdc!$C515=1,dati_bdv!$C$2:$C$65536,IF(dati_pdc!$C515=2,dati_bdv!$D$2:$D$65536,IF(dati_pdc!$C515=3,dati_bdv!$E$2:$E$65536,IF(dati_pdc!$C515=4,dati_bdv!$F$2:$F$65536,IF(dati_pdc!$C515=5,dati_bdv!$G$2:$G$65536,dati_bdv!$H$2:$H$65536))))),$A515,dati_bdv!K$2:K$65536)","v":0},{"$f":"SUMIF(IF(dati_pdc!$C515=1,dati_bdv!$C$2:$C$65536,IF(dati_pdc!$C515=2,dati_bdv!$D$2:$D$65536,IF(dati_pdc!$C515=3,dati_bdv!$E$2:$E$65536,IF(dati_pdc!$C515=4,dati_bdv!$F$2:$F$65536,IF(dati_pdc!$C515=5,dati_bdv!$G$2:$G$65536,dati_bdv!$H$2:$H$65536))))),$A515,dati_bdv!L$2:L$65536)","v":0},{"$f":"SUMIF(IF(dati_pdc!$C515=1,dati_bdv!$C$2:$C$65536,IF(dati_pdc!$C515=2,dati_bdv!$D$2:$D$65536,IF(dati_pdc!$C515=3,dati_bdv!$E$2:$E$65536,IF(dati_pdc!$C515=4,dati_bdv!$F$2:$F$65536,IF(dati_pdc!$C515=5,dati_bdv!$G$2:$G$65536,dati_bdv!$H$2:$H$65536))))),$A515,dati_bdv!M$2:M$65536)","v":0},{"$f":"SUMIF(IF(dati_pdc!$C515=1,dati_bdv!$C$2:$C$65536,IF(dati_pdc!$C515=2,dati_bdv!$D$2:$D$65536,IF(dati_pdc!$C515=3,dati_bdv!$E$2:$E$65536,IF(dati_pdc!$C515=4,dati_bdv!$F$2:$F$65536,IF(dati_pdc!$C515=5,dati_bdv!$G$2:$G$65536,dati_bdv!$H$2:$H$65536))))),$A515,dati_bdv!N$2:N$65536)","v":0}]
[{"$f":"dati_pdc!A516","v":0},{"$f":"SUMIF(IF(dati_pdc!$C516=1,dati_bdv!$C$2:$C$65536,IF(dati_pdc!$C516=2,dati_bdv!$D$2:$D$65536,IF(dati_pdc!$C516=3,dati_bdv!$E$2:$E$65536,IF(dati_pdc!$C516=4,dati_bdv!$F$2:$F$65536,IF(dati_pdc!$C516=5,dati_bdv!$G$2:$G$65536,dati_bdv!$H$2:$H$65536))))),$A516,dati_bdv!J$2:J$65536)","v":0},{"$f":"SUMIF(IF(dati_pdc!$C516=1,dati_bdv!$C$2:$C$65536,IF(dati_pdc!$C516=2,dati_bdv!$D$2:$D$65536,IF(dati_pdc!$C516=3,dati_bdv!$E$2:$E$65536,IF(dati_pdc!$C516=4,dati_bdv!$F$2:$F$65536,IF(dati_pdc!$C516=5,dati_bdv!$G$2:$G$65536,dati_bdv!$H$2:$H$65536))))),$A516,dati_bdv!K$2:K$65536)","v":0},{"$f":"SUMIF(IF(dati_pdc!$C516=1,dati_bdv!$C$2:$C$65536,IF(dati_pdc!$C516=2,dati_bdv!$D$2:$D$65536,IF(dati_pdc!$C516=3,dati_bdv!$E$2:$E$65536,IF(dati_pdc!$C516=4,dati_bdv!$F$2:$F$65536,IF(dati_pdc!$C516=5,dati_bdv!$G$2:$G$65536,dati_bdv!$H$2:$H$65536))))),$A516,dati_bdv!L$2:L$65536)","v":0},{"$f":"SUMIF(IF(dati_pdc!$C516=1,dati_bdv!$C$2:$C$65536,IF(dati_pdc!$C516=2,dati_bdv!$D$2:$D$65536,IF(dati_pdc!$C516=3,dati_bdv!$E$2:$E$65536,IF(dati_pdc!$C516=4,dati_bdv!$F$2:$F$65536,IF(dati_pdc!$C516=5,dati_bdv!$G$2:$G$65536,dati_bdv!$H$2:$H$65536))))),$A516,dati_bdv!M$2:M$65536)","v":0},{"$f":"SUMIF(IF(dati_pdc!$C516=1,dati_bdv!$C$2:$C$65536,IF(dati_pdc!$C516=2,dati_bdv!$D$2:$D$65536,IF(dati_pdc!$C516=3,dati_bdv!$E$2:$E$65536,IF(dati_pdc!$C516=4,dati_bdv!$F$2:$F$65536,IF(dati_pdc!$C516=5,dati_bdv!$G$2:$G$65536,dati_bdv!$H$2:$H$65536))))),$A516,dati_bdv!N$2:N$65536)","v":0}]
[{"$f":"dati_pdc!A517","v":0},{"$f":"SUMIF(IF(dati_pdc!$C517=1,dati_bdv!$C$2:$C$65536,IF(dati_pdc!$C517=2,dati_bdv!$D$2:$D$65536,IF(dati_pdc!$C517=3,dati_bdv!$E$2:$E$65536,IF(dati_pdc!$C517=4,dati_bdv!$F$2:$F$65536,IF(dati_pdc!$C517=5,dati_bdv!$G$2:$G$65536,dati_bdv!$H$2:$H$65536))))),$A517,dati_bdv!J$2:J$65536)","v":0},{"$f":"SUMIF(IF(dati_pdc!$C517=1,dati_bdv!$C$2:$C$65536,IF(dati_pdc!$C517=2,dati_bdv!$D$2:$D$65536,IF(dati_pdc!$C517=3,dati_bdv!$E$2:$E$65536,IF(dati_pdc!$C517=4,dati_bdv!$F$2:$F$65536,IF(dati_pdc!$C517=5,dati_bdv!$G$2:$G$65536,dati_bdv!$H$2:$H$65536))))),$A517,dati_bdv!K$2:K$65536)","v":0},{"$f":"SUMIF(IF(dati_pdc!$C517=1,dati_bdv!$C$2:$C$65536,IF(dati_pdc!$C517=2,dati_bdv!$D$2:$D$65536,IF(dati_pdc!$C517=3,dati_bdv!$E$2:$E$65536,IF(dati_pdc!$C517=4,dati_bdv!$F$2:$F$65536,IF(dati_pdc!$C517=5,dati_bdv!$G$2:$G$65536,dati_bdv!$H$2:$H$65536))))),$A517,dati_bdv!L$2:L$65536)","v":0},{"$f":"SUMIF(IF(dati_pdc!$C517=1,dati_bdv!$C$2:$C$65536,IF(dati_pdc!$C517=2,dati_bdv!$D$2:$D$65536,IF(dati_pdc!$C517=3,dati_bdv!$E$2:$E$65536,IF(dati_pdc!$C517=4,dati_bdv!$F$2:$F$65536,IF(dati_pdc!$C517=5,dati_bdv!$G$2:$G$65536,dati_bdv!$H$2:$H$65536))))),$A517,dati_bdv!M$2:M$65536)","v":0},{"$f":"SUMIF(IF(dati_pdc!$C517=1,dati_bdv!$C$2:$C$65536,IF(dati_pdc!$C517=2,dati_bdv!$D$2:$D$65536,IF(dati_pdc!$C517=3,dati_bdv!$E$2:$E$65536,IF(dati_pdc!$C517=4,dati_bdv!$F$2:$F$65536,IF(dati_pdc!$C517=5,dati_bdv!$G$2:$G$65536,dati_bdv!$H$2:$H$65536))))),$A517,dati_bdv!N$2:N$65536)","v":0}]
[{"$f":"dati_pdc!A518","v":0},{"$f":"SUMIF(IF(dati_pdc!$C518=1,dati_bdv!$C$2:$C$65536,IF(dati_pdc!$C518=2,dati_bdv!$D$2:$D$65536,IF(dati_pdc!$C518=3,dati_bdv!$E$2:$E$65536,IF(dati_pdc!$C518=4,dati_bdv!$F$2:$F$65536,IF(dati_pdc!$C518=5,dati_bdv!$G$2:$G$65536,dati_bdv!$H$2:$H$65536))))),$A518,dati_bdv!J$2:J$65536)","v":0},{"$f":"SUMIF(IF(dati_pdc!$C518=1,dati_bdv!$C$2:$C$65536,IF(dati_pdc!$C518=2,dati_bdv!$D$2:$D$65536,IF(dati_pdc!$C518=3,dati_bdv!$E$2:$E$65536,IF(dati_pdc!$C518=4,dati_bdv!$F$2:$F$65536,IF(dati_pdc!$C518=5,dati_bdv!$G$2:$G$65536,dati_bdv!$H$2:$H$65536))))),$A518,dati_bdv!K$2:K$65536)","v":0},{"$f":"SUMIF(IF(dati_pdc!$C518=1,dati_bdv!$C$2:$C$65536,IF(dati_pdc!$C518=2,dati_bdv!$D$2:$D$65536,IF(dati_pdc!$C518=3,dati_bdv!$E$2:$E$65536,IF(dati_pdc!$C518=4,dati_bdv!$F$2:$F$65536,IF(dati_pdc!$C518=5,dati_bdv!$G$2:$G$65536,dati_bdv!$H$2:$H$65536))))),$A518,dati_bdv!L$2:L$65536)","v":0},{"$f":"SUMIF(IF(dati_pdc!$C518=1,dati_bdv!$C$2:$C$65536,IF(dati_pdc!$C518=2,dati_bdv!$D$2:$D$65536,IF(dati_pdc!$C518=3,dati_bdv!$E$2:$E$65536,IF(dati_pdc!$C518=4,dati_bdv!$F$2:$F$65536,IF(dati_pdc!$C518=5,dati_bdv!$G$2:$G$65536,dati_bdv!$H$2:$H$65536))))),$A518,dati_bdv!M$2:M$65536)","v":0},{"$f":"SUMIF(IF(dati_pdc!$C518=1,dati_bdv!$C$2:$C$65536,IF(dati_pdc!$C518=2,dati_bdv!$D$2:$D$65536,IF(dati_pdc!$C518=3,dati_bdv!$E$2:$E$65536,IF(dati_pdc!$C518=4,dati_bdv!$F$2:$F$65536,IF(dati_pdc!$C518=5,dati_bdv!$G$2:$G$65536,dati_bdv!$H$2:$H$65536))))),$A518,dati_bdv!N$2:N$65536)","v":0}]
[{"$f":"dati_pdc!A519","v":0},{"$f":"SUMIF(IF(dati_pdc!$C519=1,dati_bdv!$C$2:$C$65536,IF(dati_pdc!$C519=2,dati_bdv!$D$2:$D$65536,IF(dati_pdc!$C519=3,dati_bdv!$E$2:$E$65536,IF(dati_pdc!$C519=4,dati_bdv!$F$2:$F$65536,IF(dati_pdc!$C519=5,dati_bdv!$G$2:$G$65536,dati_bdv!$H$2:$H$65536))))),$A519,dati_bdv!J$2:J$65536)","v":0},{"$f":"SUMIF(IF(dati_pdc!$C519=1,dati_bdv!$C$2:$C$65536,IF(dati_pdc!$C519=2,dati_bdv!$D$2:$D$65536,IF(dati_pdc!$C519=3,dati_bdv!$E$2:$E$65536,IF(dati_pdc!$C519=4,dati_bdv!$F$2:$F$65536,IF(dati_pdc!$C519=5,dati_bdv!$G$2:$G$65536,dati_bdv!$H$2:$H$65536))))),$A519,dati_bdv!K$2:K$65536)","v":0},{"$f":"SUMIF(IF(dati_pdc!$C519=1,dati_bdv!$C$2:$C$65536,IF(dati_pdc!$C519=2,dati_bdv!$D$2:$D$65536,IF(dati_pdc!$C519=3,dati_bdv!$E$2:$E$65536,IF(dati_pdc!$C519=4,dati_bdv!$F$2:$F$65536,IF(dati_pdc!$C519=5,dati_bdv!$G$2:$G$65536,dati_bdv!$H$2:$H$65536))))),$A519,dati_bdv!L$2:L$65536)","v":0},{"$f":"SUMIF(IF(dati_pdc!$C519=1,dati_bdv!$C$2:$C$65536,IF(dati_pdc!$C519=2,dati_bdv!$D$2:$D$65536,IF(dati_pdc!$C519=3,dati_bdv!$E$2:$E$65536,IF(dati_pdc!$C519=4,dati_bdv!$F$2:$F$65536,IF(dati_pdc!$C519=5,dati_bdv!$G$2:$G$65536,dati_bdv!$H$2:$H$65536))))),$A519,dati_bdv!M$2:M$65536)","v":0},{"$f":"SUMIF(IF(dati_pdc!$C519=1,dati_bdv!$C$2:$C$65536,IF(dati_pdc!$C519=2,dati_bdv!$D$2:$D$65536,IF(dati_pdc!$C519=3,dati_bdv!$E$2:$E$65536,IF(dati_pdc!$C519=4,dati_bdv!$F$2:$F$65536,IF(dati_pdc!$C519=5,dati_bdv!$G$2:$G$65536,dati_bdv!$H$2:$H$65536))))),$A519,dati_bdv!N$2:N$65536)","v":0}]
[{"$f":"dati_pdc!A520","v":0},{"$f":"SUMIF(IF(dati_pdc!$C520=1,dati_bdv!$C$2:$C$65536,IF(dati_pdc!$C520=2,dati_bdv!$D$2:$D$65536,IF(dati_pdc!$C520=3,dati_bdv!$E$2:$E$65536,IF(dati_pdc!$C520=4,dati_bdv!$F$2:$F$65536,IF(dati_pdc!$C520=5,dati_bdv!$G$2:$G$65536,dati_bdv!$H$2:$H$65536))))),$A520,dati_bdv!J$2:J$65536)","v":0},{"$f":"SUMIF(IF(dati_pdc!$C520=1,dati_bdv!$C$2:$C$65536,IF(dati_pdc!$C520=2,dati_bdv!$D$2:$D$65536,IF(dati_pdc!$C520=3,dati_bdv!$E$2:$E$65536,IF(dati_pdc!$C520=4,dati_bdv!$F$2:$F$65536,IF(dati_pdc!$C520=5,dati_bdv!$G$2:$G$65536,dati_bdv!$H$2:$H$65536))))),$A520,dati_bdv!K$2:K$65536)","v":0},{"$f":"SUMIF(IF(dati_pdc!$C520=1,dati_bdv!$C$2:$C$65536,IF(dati_pdc!$C520=2,dati_bdv!$D$2:$D$65536,IF(dati_pdc!$C520=3,dati_bdv!$E$2:$E$65536,IF(dati_pdc!$C520=4,dati_bdv!$F$2:$F$65536,IF(dati_pdc!$C520=5,dati_bdv!$G$2:$G$65536,dati_bdv!$H$2:$H$65536))))),$A520,dati_bdv!L$2:L$65536)","v":0},{"$f":"SUMIF(IF(dati_pdc!$C520=1,dati_bdv!$C$2:$C$65536,IF(dati_pdc!$C520=2,dati_bdv!$D$2:$D$65536,IF(dati_pdc!$C520=3,dati_bdv!$E$2:$E$65536,IF(dati_pdc!$C520=4,dati_bdv!$F$2:$F$65536,IF(dati_pdc!$C520=5,dati_bdv!$G$2:$G$65536,dati_bdv!$H$2:$H$65536))))),$A520,dati_bdv!M$2:M$65536)","v":0},{"$f":"SUMIF(IF(dati_pdc!$C520=1,dati_bdv!$C$2:$C$65536,IF(dati_pdc!$C520=2,dati_bdv!$D$2:$D$65536,IF(dati_pdc!$C520=3,dati_bdv!$E$2:$E$65536,IF(dati_pdc!$C520=4,dati_bdv!$F$2:$F$65536,IF(dati_pdc!$C520=5,dati_bdv!$G$2:$G$65536,dati_bdv!$H$2:$H$65536))))),$A520,dati_bdv!N$2:N$65536)","v":0}]
[{"$f":"dati_pdc!A521","v":0},{"$f":"SUMIF(IF(dati_pdc!$C521=1,dati_bdv!$C$2:$C$65536,IF(dati_pdc!$C521=2,dati_bdv!$D$2:$D$65536,IF(dati_pdc!$C521=3,dati_bdv!$E$2:$E$65536,IF(dati_pdc!$C521=4,dati_bdv!$F$2:$F$65536,IF(dati_pdc!$C521=5,dati_bdv!$G$2:$G$65536,dati_bdv!$H$2:$H$65536))))),$A521,dati_bdv!J$2:J$65536)","v":0},{"$f":"SUMIF(IF(dati_pdc!$C521=1,dati_bdv!$C$2:$C$65536,IF(dati_pdc!$C521=2,dati_bdv!$D$2:$D$65536,IF(dati_pdc!$C521=3,dati_bdv!$E$2:$E$65536,IF(dati_pdc!$C521=4,dati_bdv!$F$2:$F$65536,IF(dati_pdc!$C521=5,dati_bdv!$G$2:$G$65536,dati_bdv!$H$2:$H$65536))))),$A521,dati_bdv!K$2:K$65536)","v":0},{"$f":"SUMIF(IF(dati_pdc!$C521=1,dati_bdv!$C$2:$C$65536,IF(dati_pdc!$C521=2,dati_bdv!$D$2:$D$65536,IF(dati_pdc!$C521=3,dati_bdv!$E$2:$E$65536,IF(dati_pdc!$C521=4,dati_bdv!$F$2:$F$65536,IF(dati_pdc!$C521=5,dati_bdv!$G$2:$G$65536,dati_bdv!$H$2:$H$65536))))),$A521,dati_bdv!L$2:L$65536)","v":0},{"$f":"SUMIF(IF(dati_pdc!$C521=1,dati_bdv!$C$2:$C$65536,IF(dati_pdc!$C521=2,dati_bdv!$D$2:$D$65536,IF(dati_pdc!$C521=3,dati_bdv!$E$2:$E$65536,IF(dati_pdc!$C521=4,dati_bdv!$F$2:$F$65536,IF(dati_pdc!$C521=5,dati_bdv!$G$2:$G$65536,dati_bdv!$H$2:$H$65536))))),$A521,dati_bdv!M$2:M$65536)","v":0},{"$f":"SUMIF(IF(dati_pdc!$C521=1,dati_bdv!$C$2:$C$65536,IF(dati_pdc!$C521=2,dati_bdv!$D$2:$D$65536,IF(dati_pdc!$C521=3,dati_bdv!$E$2:$E$65536,IF(dati_pdc!$C521=4,dati_bdv!$F$2:$F$65536,IF(dati_pdc!$C521=5,dati_bdv!$G$2:$G$65536,dati_bdv!$H$2:$H$65536))))),$A521,dati_bdv!N$2:N$65536)","v":0}]
[{"$f":"dati_pdc!A522","v":0},{"$f":"SUMIF(IF(dati_pdc!$C522=1,dati_bdv!$C$2:$C$65536,IF(dati_pdc!$C522=2,dati_bdv!$D$2:$D$65536,IF(dati_pdc!$C522=3,dati_bdv!$E$2:$E$65536,IF(dati_pdc!$C522=4,dati_bdv!$F$2:$F$65536,IF(dati_pdc!$C522=5,dati_bdv!$G$2:$G$65536,dati_bdv!$H$2:$H$65536))))),$A522,dati_bdv!J$2:J$65536)","v":0},{"$f":"SUMIF(IF(dati_pdc!$C522=1,dati_bdv!$C$2:$C$65536,IF(dati_pdc!$C522=2,dati_bdv!$D$2:$D$65536,IF(dati_pdc!$C522=3,dati_bdv!$E$2:$E$65536,IF(dati_pdc!$C522=4,dati_bdv!$F$2:$F$65536,IF(dati_pdc!$C522=5,dati_bdv!$G$2:$G$65536,dati_bdv!$H$2:$H$65536))))),$A522,dati_bdv!K$2:K$65536)","v":0},{"$f":"SUMIF(IF(dati_pdc!$C522=1,dati_bdv!$C$2:$C$65536,IF(dati_pdc!$C522=2,dati_bdv!$D$2:$D$65536,IF(dati_pdc!$C522=3,dati_bdv!$E$2:$E$65536,IF(dati_pdc!$C522=4,dati_bdv!$F$2:$F$65536,IF(dati_pdc!$C522=5,dati_bdv!$G$2:$G$65536,dati_bdv!$H$2:$H$65536))))),$A522,dati_bdv!L$2:L$65536)","v":0},{"$f":"SUMIF(IF(dati_pdc!$C522=1,dati_bdv!$C$2:$C$65536,IF(dati_pdc!$C522=2,dati_bdv!$D$2:$D$65536,IF(dati_pdc!$C522=3,dati_bdv!$E$2:$E$65536,IF(dati_pdc!$C522=4,dati_bdv!$F$2:$F$65536,IF(dati_pdc!$C522=5,dati_bdv!$G$2:$G$65536,dati_bdv!$H$2:$H$65536))))),$A522,dati_bdv!M$2:M$65536)","v":0},{"$f":"SUMIF(IF(dati_pdc!$C522=1,dati_bdv!$C$2:$C$65536,IF(dati_pdc!$C522=2,dati_bdv!$D$2:$D$65536,IF(dati_pdc!$C522=3,dati_bdv!$E$2:$E$65536,IF(dati_pdc!$C522=4,dati_bdv!$F$2:$F$65536,IF(dati_pdc!$C522=5,dati_bdv!$G$2:$G$65536,dati_bdv!$H$2:$H$65536))))),$A522,dati_bdv!N$2:N$65536)","v":0}]
[{"$f":"dati_pdc!A523","v":0},{"$f":"SUMIF(IF(dati_pdc!$C523=1,dati_bdv!$C$2:$C$65536,IF(dati_pdc!$C523=2,dati_bdv!$D$2:$D$65536,IF(dati_pdc!$C523=3,dati_bdv!$E$2:$E$65536,IF(dati_pdc!$C523=4,dati_bdv!$F$2:$F$65536,IF(dati_pdc!$C523=5,dati_bdv!$G$2:$G$65536,dati_bdv!$H$2:$H$65536))))),$A523,dati_bdv!J$2:J$65536)","v":0},{"$f":"SUMIF(IF(dati_pdc!$C523=1,dati_bdv!$C$2:$C$65536,IF(dati_pdc!$C523=2,dati_bdv!$D$2:$D$65536,IF(dati_pdc!$C523=3,dati_bdv!$E$2:$E$65536,IF(dati_pdc!$C523=4,dati_bdv!$F$2:$F$65536,IF(dati_pdc!$C523=5,dati_bdv!$G$2:$G$65536,dati_bdv!$H$2:$H$65536))))),$A523,dati_bdv!K$2:K$65536)","v":0},{"$f":"SUMIF(IF(dati_pdc!$C523=1,dati_bdv!$C$2:$C$65536,IF(dati_pdc!$C523=2,dati_bdv!$D$2:$D$65536,IF(dati_pdc!$C523=3,dati_bdv!$E$2:$E$65536,IF(dati_pdc!$C523=4,dati_bdv!$F$2:$F$65536,IF(dati_pdc!$C523=5,dati_bdv!$G$2:$G$65536,dati_bdv!$H$2:$H$65536))))),$A523,dati_bdv!L$2:L$65536)","v":0},{"$f":"SUMIF(IF(dati_pdc!$C523=1,dati_bdv!$C$2:$C$65536,IF(dati_pdc!$C523=2,dati_bdv!$D$2:$D$65536,IF(dati_pdc!$C523=3,dati_bdv!$E$2:$E$65536,IF(dati_pdc!$C523=4,dati_bdv!$F$2:$F$65536,IF(dati_pdc!$C523=5,dati_bdv!$G$2:$G$65536,dati_bdv!$H$2:$H$65536))))),$A523,dati_bdv!M$2:M$65536)","v":0},{"$f":"SUMIF(IF(dati_pdc!$C523=1,dati_bdv!$C$2:$C$65536,IF(dati_pdc!$C523=2,dati_bdv!$D$2:$D$65536,IF(dati_pdc!$C523=3,dati_bdv!$E$2:$E$65536,IF(dati_pdc!$C523=4,dati_bdv!$F$2:$F$65536,IF(dati_pdc!$C523=5,dati_bdv!$G$2:$G$65536,dati_bdv!$H$2:$H$65536))))),$A523,dati_bdv!N$2:N$65536)","v":0}]
[{"$f":"dati_pdc!A524","v":0},{"$f":"SUMIF(IF(dati_pdc!$C524=1,dati_bdv!$C$2:$C$65536,IF(dati_pdc!$C524=2,dati_bdv!$D$2:$D$65536,IF(dati_pdc!$C524=3,dati_bdv!$E$2:$E$65536,IF(dati_pdc!$C524=4,dati_bdv!$F$2:$F$65536,IF(dati_pdc!$C524=5,dati_bdv!$G$2:$G$65536,dati_bdv!$H$2:$H$65536))))),$A524,dati_bdv!J$2:J$65536)","v":0},{"$f":"SUMIF(IF(dati_pdc!$C524=1,dati_bdv!$C$2:$C$65536,IF(dati_pdc!$C524=2,dati_bdv!$D$2:$D$65536,IF(dati_pdc!$C524=3,dati_bdv!$E$2:$E$65536,IF(dati_pdc!$C524=4,dati_bdv!$F$2:$F$65536,IF(dati_pdc!$C524=5,dati_bdv!$G$2:$G$65536,dati_bdv!$H$2:$H$65536))))),$A524,dati_bdv!K$2:K$65536)","v":0},{"$f":"SUMIF(IF(dati_pdc!$C524=1,dati_bdv!$C$2:$C$65536,IF(dati_pdc!$C524=2,dati_bdv!$D$2:$D$65536,IF(dati_pdc!$C524=3,dati_bdv!$E$2:$E$65536,IF(dati_pdc!$C524=4,dati_bdv!$F$2:$F$65536,IF(dati_pdc!$C524=5,dati_bdv!$G$2:$G$65536,dati_bdv!$H$2:$H$65536))))),$A524,dati_bdv!L$2:L$65536)","v":0},{"$f":"SUMIF(IF(dati_pdc!$C524=1,dati_bdv!$C$2:$C$65536,IF(dati_pdc!$C524=2,dati_bdv!$D$2:$D$65536,IF(dati_pdc!$C524=3,dati_bdv!$E$2:$E$65536,IF(dati_pdc!$C524=4,dati_bdv!$F$2:$F$65536,IF(dati_pdc!$C524=5,dati_bdv!$G$2:$G$65536,dati_bdv!$H$2:$H$65536))))),$A524,dati_bdv!M$2:M$65536)","v":0},{"$f":"SUMIF(IF(dati_pdc!$C524=1,dati_bdv!$C$2:$C$65536,IF(dati_pdc!$C524=2,dati_bdv!$D$2:$D$65536,IF(dati_pdc!$C524=3,dati_bdv!$E$2:$E$65536,IF(dati_pdc!$C524=4,dati_bdv!$F$2:$F$65536,IF(dati_pdc!$C524=5,dati_bdv!$G$2:$G$65536,dati_bdv!$H$2:$H$65536))))),$A524,dati_bdv!N$2:N$65536)","v":0}]
[{"$f":"dati_pdc!A525","v":0},{"$f":"SUMIF(IF(dati_pdc!$C525=1,dati_bdv!$C$2:$C$65536,IF(dati_pdc!$C525=2,dati_bdv!$D$2:$D$65536,IF(dati_pdc!$C525=3,dati_bdv!$E$2:$E$65536,IF(dati_pdc!$C525=4,dati_bdv!$F$2:$F$65536,IF(dati_pdc!$C525=5,dati_bdv!$G$2:$G$65536,dati_bdv!$H$2:$H$65536))))),$A525,dati_bdv!J$2:J$65536)","v":0},{"$f":"SUMIF(IF(dati_pdc!$C525=1,dati_bdv!$C$2:$C$65536,IF(dati_pdc!$C525=2,dati_bdv!$D$2:$D$65536,IF(dati_pdc!$C525=3,dati_bdv!$E$2:$E$65536,IF(dati_pdc!$C525=4,dati_bdv!$F$2:$F$65536,IF(dati_pdc!$C525=5,dati_bdv!$G$2:$G$65536,dati_bdv!$H$2:$H$65536))))),$A525,dati_bdv!K$2:K$65536)","v":0},{"$f":"SUMIF(IF(dati_pdc!$C525=1,dati_bdv!$C$2:$C$65536,IF(dati_pdc!$C525=2,dati_bdv!$D$2:$D$65536,IF(dati_pdc!$C525=3,dati_bdv!$E$2:$E$65536,IF(dati_pdc!$C525=4,dati_bdv!$F$2:$F$65536,IF(dati_pdc!$C525=5,dati_bdv!$G$2:$G$65536,dati_bdv!$H$2:$H$65536))))),$A525,dati_bdv!L$2:L$65536)","v":0},{"$f":"SUMIF(IF(dati_pdc!$C525=1,dati_bdv!$C$2:$C$65536,IF(dati_pdc!$C525=2,dati_bdv!$D$2:$D$65536,IF(dati_pdc!$C525=3,dati_bdv!$E$2:$E$65536,IF(dati_pdc!$C525=4,dati_bdv!$F$2:$F$65536,IF(dati_pdc!$C525=5,dati_bdv!$G$2:$G$65536,dati_bdv!$H$2:$H$65536))))),$A525,dati_bdv!M$2:M$65536)","v":0},{"$f":"SUMIF(IF(dati_pdc!$C525=1,dati_bdv!$C$2:$C$65536,IF(dati_pdc!$C525=2,dati_bdv!$D$2:$D$65536,IF(dati_pdc!$C525=3,dati_bdv!$E$2:$E$65536,IF(dati_pdc!$C525=4,dati_bdv!$F$2:$F$65536,IF(dati_pdc!$C525=5,dati_bdv!$G$2:$G$65536,dati_bdv!$H$2:$H$65536))))),$A525,dati_bdv!N$2:N$65536)","v":0}]
[{"$f":"dati_pdc!A526","v":0},{"$f":"SUMIF(IF(dati_pdc!$C526=1,dati_bdv!$C$2:$C$65536,IF(dati_pdc!$C526=2,dati_bdv!$D$2:$D$65536,IF(dati_pdc!$C526=3,dati_bdv!$E$2:$E$65536,IF(dati_pdc!$C526=4,dati_bdv!$F$2:$F$65536,IF(dati_pdc!$C526=5,dati_bdv!$G$2:$G$65536,dati_bdv!$H$2:$H$65536))))),$A526,dati_bdv!J$2:J$65536)","v":0},{"$f":"SUMIF(IF(dati_pdc!$C526=1,dati_bdv!$C$2:$C$65536,IF(dati_pdc!$C526=2,dati_bdv!$D$2:$D$65536,IF(dati_pdc!$C526=3,dati_bdv!$E$2:$E$65536,IF(dati_pdc!$C526=4,dati_bdv!$F$2:$F$65536,IF(dati_pdc!$C526=5,dati_bdv!$G$2:$G$65536,dati_bdv!$H$2:$H$65536))))),$A526,dati_bdv!K$2:K$65536)","v":0},{"$f":"SUMIF(IF(dati_pdc!$C526=1,dati_bdv!$C$2:$C$65536,IF(dati_pdc!$C526=2,dati_bdv!$D$2:$D$65536,IF(dati_pdc!$C526=3,dati_bdv!$E$2:$E$65536,IF(dati_pdc!$C526=4,dati_bdv!$F$2:$F$65536,IF(dati_pdc!$C526=5,dati_bdv!$G$2:$G$65536,dati_bdv!$H$2:$H$65536))))),$A526,dati_bdv!L$2:L$65536)","v":0},{"$f":"SUMIF(IF(dati_pdc!$C526=1,dati_bdv!$C$2:$C$65536,IF(dati_pdc!$C526=2,dati_bdv!$D$2:$D$65536,IF(dati_pdc!$C526=3,dati_bdv!$E$2:$E$65536,IF(dati_pdc!$C526=4,dati_bdv!$F$2:$F$65536,IF(dati_pdc!$C526=5,dati_bdv!$G$2:$G$65536,dati_bdv!$H$2:$H$65536))))),$A526,dati_bdv!M$2:M$65536)","v":0},{"$f":"SUMIF(IF(dati_pdc!$C526=1,dati_bdv!$C$2:$C$65536,IF(dati_pdc!$C526=2,dati_bdv!$D$2:$D$65536,IF(dati_pdc!$C526=3,dati_bdv!$E$2:$E$65536,IF(dati_pdc!$C526=4,dati_bdv!$F$2:$F$65536,IF(dati_pdc!$C526=5,dati_bdv!$G$2:$G$65536,dati_bdv!$H$2:$H$65536))))),$A526,dati_bdv!N$2:N$65536)","v":0}]
[{"$f":"dati_pdc!A527","v":0},{"$f":"SUMIF(IF(dati_pdc!$C527=1,dati_bdv!$C$2:$C$65536,IF(dati_pdc!$C527=2,dati_bdv!$D$2:$D$65536,IF(dati_pdc!$C527=3,dati_bdv!$E$2:$E$65536,IF(dati_pdc!$C527=4,dati_bdv!$F$2:$F$65536,IF(dati_pdc!$C527=5,dati_bdv!$G$2:$G$65536,dati_bdv!$H$2:$H$65536))))),$A527,dati_bdv!J$2:J$65536)","v":0},{"$f":"SUMIF(IF(dati_pdc!$C527=1,dati_bdv!$C$2:$C$65536,IF(dati_pdc!$C527=2,dati_bdv!$D$2:$D$65536,IF(dati_pdc!$C527=3,dati_bdv!$E$2:$E$65536,IF(dati_pdc!$C527=4,dati_bdv!$F$2:$F$65536,IF(dati_pdc!$C527=5,dati_bdv!$G$2:$G$65536,dati_bdv!$H$2:$H$65536))))),$A527,dati_bdv!K$2:K$65536)","v":0},{"$f":"SUMIF(IF(dati_pdc!$C527=1,dati_bdv!$C$2:$C$65536,IF(dati_pdc!$C527=2,dati_bdv!$D$2:$D$65536,IF(dati_pdc!$C527=3,dati_bdv!$E$2:$E$65536,IF(dati_pdc!$C527=4,dati_bdv!$F$2:$F$65536,IF(dati_pdc!$C527=5,dati_bdv!$G$2:$G$65536,dati_bdv!$H$2:$H$65536))))),$A527,dati_bdv!L$2:L$65536)","v":0},{"$f":"SUMIF(IF(dati_pdc!$C527=1,dati_bdv!$C$2:$C$65536,IF(dati_pdc!$C527=2,dati_bdv!$D$2:$D$65536,IF(dati_pdc!$C527=3,dati_bdv!$E$2:$E$65536,IF(dati_pdc!$C527=4,dati_bdv!$F$2:$F$65536,IF(dati_pdc!$C527=5,dati_bdv!$G$2:$G$65536,dati_bdv!$H$2:$H$65536))))),$A527,dati_bdv!M$2:M$65536)","v":0},{"$f":"SUMIF(IF(dati_pdc!$C527=1,dati_bdv!$C$2:$C$65536,IF(dati_pdc!$C527=2,dati_bdv!$D$2:$D$65536,IF(dati_pdc!$C527=3,dati_bdv!$E$2:$E$65536,IF(dati_pdc!$C527=4,dati_bdv!$F$2:$F$65536,IF(dati_pdc!$C527=5,dati_bdv!$G$2:$G$65536,dati_bdv!$H$2:$H$65536))))),$A527,dati_bdv!N$2:N$65536)","v":0}]
[{"$f":"dati_pdc!A528","v":0},{"$f":"SUMIF(IF(dati_pdc!$C528=1,dati_bdv!$C$2:$C$65536,IF(dati_pdc!$C528=2,dati_bdv!$D$2:$D$65536,IF(dati_pdc!$C528=3,dati_bdv!$E$2:$E$65536,IF(dati_pdc!$C528=4,dati_bdv!$F$2:$F$65536,IF(dati_pdc!$C528=5,dati_bdv!$G$2:$G$65536,dati_bdv!$H$2:$H$65536))))),$A528,dati_bdv!J$2:J$65536)","v":0},{"$f":"SUMIF(IF(dati_pdc!$C528=1,dati_bdv!$C$2:$C$65536,IF(dati_pdc!$C528=2,dati_bdv!$D$2:$D$65536,IF(dati_pdc!$C528=3,dati_bdv!$E$2:$E$65536,IF(dati_pdc!$C528=4,dati_bdv!$F$2:$F$65536,IF(dati_pdc!$C528=5,dati_bdv!$G$2:$G$65536,dati_bdv!$H$2:$H$65536))))),$A528,dati_bdv!K$2:K$65536)","v":0},{"$f":"SUMIF(IF(dati_pdc!$C528=1,dati_bdv!$C$2:$C$65536,IF(dati_pdc!$C528=2,dati_bdv!$D$2:$D$65536,IF(dati_pdc!$C528=3,dati_bdv!$E$2:$E$65536,IF(dati_pdc!$C528=4,dati_bdv!$F$2:$F$65536,IF(dati_pdc!$C528=5,dati_bdv!$G$2:$G$65536,dati_bdv!$H$2:$H$65536))))),$A528,dati_bdv!L$2:L$65536)","v":0},{"$f":"SUMIF(IF(dati_pdc!$C528=1,dati_bdv!$C$2:$C$65536,IF(dati_pdc!$C528=2,dati_bdv!$D$2:$D$65536,IF(dati_pdc!$C528=3,dati_bdv!$E$2:$E$65536,IF(dati_pdc!$C528=4,dati_bdv!$F$2:$F$65536,IF(dati_pdc!$C528=5,dati_bdv!$G$2:$G$65536,dati_bdv!$H$2:$H$65536))))),$A528,dati_bdv!M$2:M$65536)","v":0},{"$f":"SUMIF(IF(dati_pdc!$C528=1,dati_bdv!$C$2:$C$65536,IF(dati_pdc!$C528=2,dati_bdv!$D$2:$D$65536,IF(dati_pdc!$C528=3,dati_bdv!$E$2:$E$65536,IF(dati_pdc!$C528=4,dati_bdv!$F$2:$F$65536,IF(dati_pdc!$C528=5,dati_bdv!$G$2:$G$65536,dati_bdv!$H$2:$H$65536))))),$A528,dati_bdv!N$2:N$65536)","v":0}]
[{"$f":"dati_pdc!A529","v":0},{"$f":"SUMIF(IF(dati_pdc!$C529=1,dati_bdv!$C$2:$C$65536,IF(dati_pdc!$C529=2,dati_bdv!$D$2:$D$65536,IF(dati_pdc!$C529=3,dati_bdv!$E$2:$E$65536,IF(dati_pdc!$C529=4,dati_bdv!$F$2:$F$65536,IF(dati_pdc!$C529=5,dati_bdv!$G$2:$G$65536,dati_bdv!$H$2:$H$65536))))),$A529,dati_bdv!J$2:J$65536)","v":0},{"$f":"SUMIF(IF(dati_pdc!$C529=1,dati_bdv!$C$2:$C$65536,IF(dati_pdc!$C529=2,dati_bdv!$D$2:$D$65536,IF(dati_pdc!$C529=3,dati_bdv!$E$2:$E$65536,IF(dati_pdc!$C529=4,dati_bdv!$F$2:$F$65536,IF(dati_pdc!$C529=5,dati_bdv!$G$2:$G$65536,dati_bdv!$H$2:$H$65536))))),$A529,dati_bdv!K$2:K$65536)","v":0},{"$f":"SUMIF(IF(dati_pdc!$C529=1,dati_bdv!$C$2:$C$65536,IF(dati_pdc!$C529=2,dati_bdv!$D$2:$D$65536,IF(dati_pdc!$C529=3,dati_bdv!$E$2:$E$65536,IF(dati_pdc!$C529=4,dati_bdv!$F$2:$F$65536,IF(dati_pdc!$C529=5,dati_bdv!$G$2:$G$65536,dati_bdv!$H$2:$H$65536))))),$A529,dati_bdv!L$2:L$65536)","v":0},{"$f":"SUMIF(IF(dati_pdc!$C529=1,dati_bdv!$C$2:$C$65536,IF(dati_pdc!$C529=2,dati_bdv!$D$2:$D$65536,IF(dati_pdc!$C529=3,dati_bdv!$E$2:$E$65536,IF(dati_pdc!$C529=4,dati_bdv!$F$2:$F$65536,IF(dati_pdc!$C529=5,dati_bdv!$G$2:$G$65536,dati_bdv!$H$2:$H$65536))))),$A529,dati_bdv!M$2:M$65536)","v":0},{"$f":"SUMIF(IF(dati_pdc!$C529=1,dati_bdv!$C$2:$C$65536,IF(dati_pdc!$C529=2,dati_bdv!$D$2:$D$65536,IF(dati_pdc!$C529=3,dati_bdv!$E$2:$E$65536,IF(dati_pdc!$C529=4,dati_bdv!$F$2:$F$65536,IF(dati_pdc!$C529=5,dati_bdv!$G$2:$G$65536,dati_bdv!$H$2:$H$65536))))),$A529,dati_bdv!N$2:N$65536)","v":0}]
[{"$f":"dati_pdc!A530","v":0},{"$f":"SUMIF(IF(dati_pdc!$C530=1,dati_bdv!$C$2:$C$65536,IF(dati_pdc!$C530=2,dati_bdv!$D$2:$D$65536,IF(dati_pdc!$C530=3,dati_bdv!$E$2:$E$65536,IF(dati_pdc!$C530=4,dati_bdv!$F$2:$F$65536,IF(dati_pdc!$C530=5,dati_bdv!$G$2:$G$65536,dati_bdv!$H$2:$H$65536))))),$A530,dati_bdv!J$2:J$65536)","v":0},{"$f":"SUMIF(IF(dati_pdc!$C530=1,dati_bdv!$C$2:$C$65536,IF(dati_pdc!$C530=2,dati_bdv!$D$2:$D$65536,IF(dati_pdc!$C530=3,dati_bdv!$E$2:$E$65536,IF(dati_pdc!$C530=4,dati_bdv!$F$2:$F$65536,IF(dati_pdc!$C530=5,dati_bdv!$G$2:$G$65536,dati_bdv!$H$2:$H$65536))))),$A530,dati_bdv!K$2:K$65536)","v":0},{"$f":"SUMIF(IF(dati_pdc!$C530=1,dati_bdv!$C$2:$C$65536,IF(dati_pdc!$C530=2,dati_bdv!$D$2:$D$65536,IF(dati_pdc!$C530=3,dati_bdv!$E$2:$E$65536,IF(dati_pdc!$C530=4,dati_bdv!$F$2:$F$65536,IF(dati_pdc!$C530=5,dati_bdv!$G$2:$G$65536,dati_bdv!$H$2:$H$65536))))),$A530,dati_bdv!L$2:L$65536)","v":0},{"$f":"SUMIF(IF(dati_pdc!$C530=1,dati_bdv!$C$2:$C$65536,IF(dati_pdc!$C530=2,dati_bdv!$D$2:$D$65536,IF(dati_pdc!$C530=3,dati_bdv!$E$2:$E$65536,IF(dati_pdc!$C530=4,dati_bdv!$F$2:$F$65536,IF(dati_pdc!$C530=5,dati_bdv!$G$2:$G$65536,dati_bdv!$H$2:$H$65536))))),$A530,dati_bdv!M$2:M$65536)","v":0},{"$f":"SUMIF(IF(dati_pdc!$C530=1,dati_bdv!$C$2:$C$65536,IF(dati_pdc!$C530=2,dati_bdv!$D$2:$D$65536,IF(dati_pdc!$C530=3,dati_bdv!$E$2:$E$65536,IF(dati_pdc!$C530=4,dati_bdv!$F$2:$F$65536,IF(dati_pdc!$C530=5,dati_bdv!$G$2:$G$65536,dati_bdv!$H$2:$H$65536))))),$A530,dati_bdv!N$2:N$65536)","v":0}]
[{"$f":"dati_pdc!A531","v":0},{"$f":"SUMIF(IF(dati_pdc!$C531=1,dati_bdv!$C$2:$C$65536,IF(dati_pdc!$C531=2,dati_bdv!$D$2:$D$65536,IF(dati_pdc!$C531=3,dati_bdv!$E$2:$E$65536,IF(dati_pdc!$C531=4,dati_bdv!$F$2:$F$65536,IF(dati_pdc!$C531=5,dati_bdv!$G$2:$G$65536,dati_bdv!$H$2:$H$65536))))),$A531,dati_bdv!J$2:J$65536)","v":0},{"$f":"SUMIF(IF(dati_pdc!$C531=1,dati_bdv!$C$2:$C$65536,IF(dati_pdc!$C531=2,dati_bdv!$D$2:$D$65536,IF(dati_pdc!$C531=3,dati_bdv!$E$2:$E$65536,IF(dati_pdc!$C531=4,dati_bdv!$F$2:$F$65536,IF(dati_pdc!$C531=5,dati_bdv!$G$2:$G$65536,dati_bdv!$H$2:$H$65536))))),$A531,dati_bdv!K$2:K$65536)","v":0},{"$f":"SUMIF(IF(dati_pdc!$C531=1,dati_bdv!$C$2:$C$65536,IF(dati_pdc!$C531=2,dati_bdv!$D$2:$D$65536,IF(dati_pdc!$C531=3,dati_bdv!$E$2:$E$65536,IF(dati_pdc!$C531=4,dati_bdv!$F$2:$F$65536,IF(dati_pdc!$C531=5,dati_bdv!$G$2:$G$65536,dati_bdv!$H$2:$H$65536))))),$A531,dati_bdv!L$2:L$65536)","v":0},{"$f":"SUMIF(IF(dati_pdc!$C531=1,dati_bdv!$C$2:$C$65536,IF(dati_pdc!$C531=2,dati_bdv!$D$2:$D$65536,IF(dati_pdc!$C531=3,dati_bdv!$E$2:$E$65536,IF(dati_pdc!$C531=4,dati_bdv!$F$2:$F$65536,IF(dati_pdc!$C531=5,dati_bdv!$G$2:$G$65536,dati_bdv!$H$2:$H$65536))))),$A531,dati_bdv!M$2:M$65536)","v":0},{"$f":"SUMIF(IF(dati_pdc!$C531=1,dati_bdv!$C$2:$C$65536,IF(dati_pdc!$C531=2,dati_bdv!$D$2:$D$65536,IF(dati_pdc!$C531=3,dati_bdv!$E$2:$E$65536,IF(dati_pdc!$C531=4,dati_bdv!$F$2:$F$65536,IF(dati_pdc!$C531=5,dati_bdv!$G$2:$G$65536,dati_bdv!$H$2:$H$65536))))),$A531,dati_bdv!N$2:N$65536)","v":0}]
[{"$f":"dati_pdc!A532","v":0},{"$f":"SUMIF(IF(dati_pdc!$C532=1,dati_bdv!$C$2:$C$65536,IF(dati_pdc!$C532=2,dati_bdv!$D$2:$D$65536,IF(dati_pdc!$C532=3,dati_bdv!$E$2:$E$65536,IF(dati_pdc!$C532=4,dati_bdv!$F$2:$F$65536,IF(dati_pdc!$C532=5,dati_bdv!$G$2:$G$65536,dati_bdv!$H$2:$H$65536))))),$A532,dati_bdv!J$2:J$65536)","v":0},{"$f":"SUMIF(IF(dati_pdc!$C532=1,dati_bdv!$C$2:$C$65536,IF(dati_pdc!$C532=2,dati_bdv!$D$2:$D$65536,IF(dati_pdc!$C532=3,dati_bdv!$E$2:$E$65536,IF(dati_pdc!$C532=4,dati_bdv!$F$2:$F$65536,IF(dati_pdc!$C532=5,dati_bdv!$G$2:$G$65536,dati_bdv!$H$2:$H$65536))))),$A532,dati_bdv!K$2:K$65536)","v":0},{"$f":"SUMIF(IF(dati_pdc!$C532=1,dati_bdv!$C$2:$C$65536,IF(dati_pdc!$C532=2,dati_bdv!$D$2:$D$65536,IF(dati_pdc!$C532=3,dati_bdv!$E$2:$E$65536,IF(dati_pdc!$C532=4,dati_bdv!$F$2:$F$65536,IF(dati_pdc!$C532=5,dati_bdv!$G$2:$G$65536,dati_bdv!$H$2:$H$65536))))),$A532,dati_bdv!L$2:L$65536)","v":0},{"$f":"SUMIF(IF(dati_pdc!$C532=1,dati_bdv!$C$2:$C$65536,IF(dati_pdc!$C532=2,dati_bdv!$D$2:$D$65536,IF(dati_pdc!$C532=3,dati_bdv!$E$2:$E$65536,IF(dati_pdc!$C532=4,dati_bdv!$F$2:$F$65536,IF(dati_pdc!$C532=5,dati_bdv!$G$2:$G$65536,dati_bdv!$H$2:$H$65536))))),$A532,dati_bdv!M$2:M$65536)","v":0},{"$f":"SUMIF(IF(dati_pdc!$C532=1,dati_bdv!$C$2:$C$65536,IF(dati_pdc!$C532=2,dati_bdv!$D$2:$D$65536,IF(dati_pdc!$C532=3,dati_bdv!$E$2:$E$65536,IF(dati_pdc!$C532=4,dati_bdv!$F$2:$F$65536,IF(dati_pdc!$C532=5,dati_bdv!$G$2:$G$65536,dati_bdv!$H$2:$H$65536))))),$A532,dati_bdv!N$2:N$65536)","v":0}]
[{"$f":"dati_pdc!A533","v":0},{"$f":"SUMIF(IF(dati_pdc!$C533=1,dati_bdv!$C$2:$C$65536,IF(dati_pdc!$C533=2,dati_bdv!$D$2:$D$65536,IF(dati_pdc!$C533=3,dati_bdv!$E$2:$E$65536,IF(dati_pdc!$C533=4,dati_bdv!$F$2:$F$65536,IF(dati_pdc!$C533=5,dati_bdv!$G$2:$G$65536,dati_bdv!$H$2:$H$65536))))),$A533,dati_bdv!J$2:J$65536)","v":0},{"$f":"SUMIF(IF(dati_pdc!$C533=1,dati_bdv!$C$2:$C$65536,IF(dati_pdc!$C533=2,dati_bdv!$D$2:$D$65536,IF(dati_pdc!$C533=3,dati_bdv!$E$2:$E$65536,IF(dati_pdc!$C533=4,dati_bdv!$F$2:$F$65536,IF(dati_pdc!$C533=5,dati_bdv!$G$2:$G$65536,dati_bdv!$H$2:$H$65536))))),$A533,dati_bdv!K$2:K$65536)","v":0},{"$f":"SUMIF(IF(dati_pdc!$C533=1,dati_bdv!$C$2:$C$65536,IF(dati_pdc!$C533=2,dati_bdv!$D$2:$D$65536,IF(dati_pdc!$C533=3,dati_bdv!$E$2:$E$65536,IF(dati_pdc!$C533=4,dati_bdv!$F$2:$F$65536,IF(dati_pdc!$C533=5,dati_bdv!$G$2:$G$65536,dati_bdv!$H$2:$H$65536))))),$A533,dati_bdv!L$2:L$65536)","v":0},{"$f":"SUMIF(IF(dati_pdc!$C533=1,dati_bdv!$C$2:$C$65536,IF(dati_pdc!$C533=2,dati_bdv!$D$2:$D$65536,IF(dati_pdc!$C533=3,dati_bdv!$E$2:$E$65536,IF(dati_pdc!$C533=4,dati_bdv!$F$2:$F$65536,IF(dati_pdc!$C533=5,dati_bdv!$G$2:$G$65536,dati_bdv!$H$2:$H$65536))))),$A533,dati_bdv!M$2:M$65536)","v":0},{"$f":"SUMIF(IF(dati_pdc!$C533=1,dati_bdv!$C$2:$C$65536,IF(dati_pdc!$C533=2,dati_bdv!$D$2:$D$65536,IF(dati_pdc!$C533=3,dati_bdv!$E$2:$E$65536,IF(dati_pdc!$C533=4,dati_bdv!$F$2:$F$65536,IF(dati_pdc!$C533=5,dati_bdv!$G$2:$G$65536,dati_bdv!$H$2:$H$65536))))),$A533,dati_bdv!N$2:N$65536)","v":0}]
[{"$f":"dati_pdc!A534","v":0},{"$f":"SUMIF(IF(dati_pdc!$C534=1,dati_bdv!$C$2:$C$65536,IF(dati_pdc!$C534=2,dati_bdv!$D$2:$D$65536,IF(dati_pdc!$C534=3,dati_bdv!$E$2:$E$65536,IF(dati_pdc!$C534=4,dati_bdv!$F$2:$F$65536,IF(dati_pdc!$C534=5,dati_bdv!$G$2:$G$65536,dati_bdv!$H$2:$H$65536))))),$A534,dati_bdv!J$2:J$65536)","v":0},{"$f":"SUMIF(IF(dati_pdc!$C534=1,dati_bdv!$C$2:$C$65536,IF(dati_pdc!$C534=2,dati_bdv!$D$2:$D$65536,IF(dati_pdc!$C534=3,dati_bdv!$E$2:$E$65536,IF(dati_pdc!$C534=4,dati_bdv!$F$2:$F$65536,IF(dati_pdc!$C534=5,dati_bdv!$G$2:$G$65536,dati_bdv!$H$2:$H$65536))))),$A534,dati_bdv!K$2:K$65536)","v":0},{"$f":"SUMIF(IF(dati_pdc!$C534=1,dati_bdv!$C$2:$C$65536,IF(dati_pdc!$C534=2,dati_bdv!$D$2:$D$65536,IF(dati_pdc!$C534=3,dati_bdv!$E$2:$E$65536,IF(dati_pdc!$C534=4,dati_bdv!$F$2:$F$65536,IF(dati_pdc!$C534=5,dati_bdv!$G$2:$G$65536,dati_bdv!$H$2:$H$65536))))),$A534,dati_bdv!L$2:L$65536)","v":0},{"$f":"SUMIF(IF(dati_pdc!$C534=1,dati_bdv!$C$2:$C$65536,IF(dati_pdc!$C534=2,dati_bdv!$D$2:$D$65536,IF(dati_pdc!$C534=3,dati_bdv!$E$2:$E$65536,IF(dati_pdc!$C534=4,dati_bdv!$F$2:$F$65536,IF(dati_pdc!$C534=5,dati_bdv!$G$2:$G$65536,dati_bdv!$H$2:$H$65536))))),$A534,dati_bdv!M$2:M$65536)","v":0},{"$f":"SUMIF(IF(dati_pdc!$C534=1,dati_bdv!$C$2:$C$65536,IF(dati_pdc!$C534=2,dati_bdv!$D$2:$D$65536,IF(dati_pdc!$C534=3,dati_bdv!$E$2:$E$65536,IF(dati_pdc!$C534=4,dati_bdv!$F$2:$F$65536,IF(dati_pdc!$C534=5,dati_bdv!$G$2:$G$65536,dati_bdv!$H$2:$H$65536))))),$A534,dati_bdv!N$2:N$65536)","v":0}]
[{"$f":"dati_pdc!A535","v":0},{"$f":"SUMIF(IF(dati_pdc!$C535=1,dati_bdv!$C$2:$C$65536,IF(dati_pdc!$C535=2,dati_bdv!$D$2:$D$65536,IF(dati_pdc!$C535=3,dati_bdv!$E$2:$E$65536,IF(dati_pdc!$C535=4,dati_bdv!$F$2:$F$65536,IF(dati_pdc!$C535=5,dati_bdv!$G$2:$G$65536,dati_bdv!$H$2:$H$65536))))),$A535,dati_bdv!J$2:J$65536)","v":0},{"$f":"SUMIF(IF(dati_pdc!$C535=1,dati_bdv!$C$2:$C$65536,IF(dati_pdc!$C535=2,dati_bdv!$D$2:$D$65536,IF(dati_pdc!$C535=3,dati_bdv!$E$2:$E$65536,IF(dati_pdc!$C535=4,dati_bdv!$F$2:$F$65536,IF(dati_pdc!$C535=5,dati_bdv!$G$2:$G$65536,dati_bdv!$H$2:$H$65536))))),$A535,dati_bdv!K$2:K$65536)","v":0},{"$f":"SUMIF(IF(dati_pdc!$C535=1,dati_bdv!$C$2:$C$65536,IF(dati_pdc!$C535=2,dati_bdv!$D$2:$D$65536,IF(dati_pdc!$C535=3,dati_bdv!$E$2:$E$65536,IF(dati_pdc!$C535=4,dati_bdv!$F$2:$F$65536,IF(dati_pdc!$C535=5,dati_bdv!$G$2:$G$65536,dati_bdv!$H$2:$H$65536))))),$A535,dati_bdv!L$2:L$65536)","v":0},{"$f":"SUMIF(IF(dati_pdc!$C535=1,dati_bdv!$C$2:$C$65536,IF(dati_pdc!$C535=2,dati_bdv!$D$2:$D$65536,IF(dati_pdc!$C535=3,dati_bdv!$E$2:$E$65536,IF(dati_pdc!$C535=4,dati_bdv!$F$2:$F$65536,IF(dati_pdc!$C535=5,dati_bdv!$G$2:$G$65536,dati_bdv!$H$2:$H$65536))))),$A535,dati_bdv!M$2:M$65536)","v":0},{"$f":"SUMIF(IF(dati_pdc!$C535=1,dati_bdv!$C$2:$C$65536,IF(dati_pdc!$C535=2,dati_bdv!$D$2:$D$65536,IF(dati_pdc!$C535=3,dati_bdv!$E$2:$E$65536,IF(dati_pdc!$C535=4,dati_bdv!$F$2:$F$65536,IF(dati_pdc!$C535=5,dati_bdv!$G$2:$G$65536,dati_bdv!$H$2:$H$65536))))),$A535,dati_bdv!N$2:N$65536)","v":0}]
[{"$f":"dati_pdc!A536","v":0},{"$f":"SUMIF(IF(dati_pdc!$C536=1,dati_bdv!$C$2:$C$65536,IF(dati_pdc!$C536=2,dati_bdv!$D$2:$D$65536,IF(dati_pdc!$C536=3,dati_bdv!$E$2:$E$65536,IF(dati_pdc!$C536=4,dati_bdv!$F$2:$F$65536,IF(dati_pdc!$C536=5,dati_bdv!$G$2:$G$65536,dati_bdv!$H$2:$H$65536))))),$A536,dati_bdv!J$2:J$65536)","v":0},{"$f":"SUMIF(IF(dati_pdc!$C536=1,dati_bdv!$C$2:$C$65536,IF(dati_pdc!$C536=2,dati_bdv!$D$2:$D$65536,IF(dati_pdc!$C536=3,dati_bdv!$E$2:$E$65536,IF(dati_pdc!$C536=4,dati_bdv!$F$2:$F$65536,IF(dati_pdc!$C536=5,dati_bdv!$G$2:$G$65536,dati_bdv!$H$2:$H$65536))))),$A536,dati_bdv!K$2:K$65536)","v":0},{"$f":"SUMIF(IF(dati_pdc!$C536=1,dati_bdv!$C$2:$C$65536,IF(dati_pdc!$C536=2,dati_bdv!$D$2:$D$65536,IF(dati_pdc!$C536=3,dati_bdv!$E$2:$E$65536,IF(dati_pdc!$C536=4,dati_bdv!$F$2:$F$65536,IF(dati_pdc!$C536=5,dati_bdv!$G$2:$G$65536,dati_bdv!$H$2:$H$65536))))),$A536,dati_bdv!L$2:L$65536)","v":0},{"$f":"SUMIF(IF(dati_pdc!$C536=1,dati_bdv!$C$2:$C$65536,IF(dati_pdc!$C536=2,dati_bdv!$D$2:$D$65536,IF(dati_pdc!$C536=3,dati_bdv!$E$2:$E$65536,IF(dati_pdc!$C536=4,dati_bdv!$F$2:$F$65536,IF(dati_pdc!$C536=5,dati_bdv!$G$2:$G$65536,dati_bdv!$H$2:$H$65536))))),$A536,dati_bdv!M$2:M$65536)","v":0},{"$f":"SUMIF(IF(dati_pdc!$C536=1,dati_bdv!$C$2:$C$65536,IF(dati_pdc!$C536=2,dati_bdv!$D$2:$D$65536,IF(dati_pdc!$C536=3,dati_bdv!$E$2:$E$65536,IF(dati_pdc!$C536=4,dati_bdv!$F$2:$F$65536,IF(dati_pdc!$C536=5,dati_bdv!$G$2:$G$65536,dati_bdv!$H$2:$H$65536))))),$A536,dati_bdv!N$2:N$65536)","v":0}]
[{"$f":"dati_pdc!A537","v":0},{"$f":"SUMIF(IF(dati_pdc!$C537=1,dati_bdv!$C$2:$C$65536,IF(dati_pdc!$C537=2,dati_bdv!$D$2:$D$65536,IF(dati_pdc!$C537=3,dati_bdv!$E$2:$E$65536,IF(dati_pdc!$C537=4,dati_bdv!$F$2:$F$65536,IF(dati_pdc!$C537=5,dati_bdv!$G$2:$G$65536,dati_bdv!$H$2:$H$65536))))),$A537,dati_bdv!J$2:J$65536)","v":0},{"$f":"SUMIF(IF(dati_pdc!$C537=1,dati_bdv!$C$2:$C$65536,IF(dati_pdc!$C537=2,dati_bdv!$D$2:$D$65536,IF(dati_pdc!$C537=3,dati_bdv!$E$2:$E$65536,IF(dati_pdc!$C537=4,dati_bdv!$F$2:$F$65536,IF(dati_pdc!$C537=5,dati_bdv!$G$2:$G$65536,dati_bdv!$H$2:$H$65536))))),$A537,dati_bdv!K$2:K$65536)","v":0},{"$f":"SUMIF(IF(dati_pdc!$C537=1,dati_bdv!$C$2:$C$65536,IF(dati_pdc!$C537=2,dati_bdv!$D$2:$D$65536,IF(dati_pdc!$C537=3,dati_bdv!$E$2:$E$65536,IF(dati_pdc!$C537=4,dati_bdv!$F$2:$F$65536,IF(dati_pdc!$C537=5,dati_bdv!$G$2:$G$65536,dati_bdv!$H$2:$H$65536))))),$A537,dati_bdv!L$2:L$65536)","v":0},{"$f":"SUMIF(IF(dati_pdc!$C537=1,dati_bdv!$C$2:$C$65536,IF(dati_pdc!$C537=2,dati_bdv!$D$2:$D$65536,IF(dati_pdc!$C537=3,dati_bdv!$E$2:$E$65536,IF(dati_pdc!$C537=4,dati_bdv!$F$2:$F$65536,IF(dati_pdc!$C537=5,dati_bdv!$G$2:$G$65536,dati_bdv!$H$2:$H$65536))))),$A537,dati_bdv!M$2:M$65536)","v":0},{"$f":"SUMIF(IF(dati_pdc!$C537=1,dati_bdv!$C$2:$C$65536,IF(dati_pdc!$C537=2,dati_bdv!$D$2:$D$65536,IF(dati_pdc!$C537=3,dati_bdv!$E$2:$E$65536,IF(dati_pdc!$C537=4,dati_bdv!$F$2:$F$65536,IF(dati_pdc!$C537=5,dati_bdv!$G$2:$G$65536,dati_bdv!$H$2:$H$65536))))),$A537,dati_bdv!N$2:N$65536)","v":0}]
[{"$f":"dati_pdc!A538","v":0},{"$f":"SUMIF(IF(dati_pdc!$C538=1,dati_bdv!$C$2:$C$65536,IF(dati_pdc!$C538=2,dati_bdv!$D$2:$D$65536,IF(dati_pdc!$C538=3,dati_bdv!$E$2:$E$65536,IF(dati_pdc!$C538=4,dati_bdv!$F$2:$F$65536,IF(dati_pdc!$C538=5,dati_bdv!$G$2:$G$65536,dati_bdv!$H$2:$H$65536))))),$A538,dati_bdv!J$2:J$65536)","v":0},{"$f":"SUMIF(IF(dati_pdc!$C538=1,dati_bdv!$C$2:$C$65536,IF(dati_pdc!$C538=2,dati_bdv!$D$2:$D$65536,IF(dati_pdc!$C538=3,dati_bdv!$E$2:$E$65536,IF(dati_pdc!$C538=4,dati_bdv!$F$2:$F$65536,IF(dati_pdc!$C538=5,dati_bdv!$G$2:$G$65536,dati_bdv!$H$2:$H$65536))))),$A538,dati_bdv!K$2:K$65536)","v":0},{"$f":"SUMIF(IF(dati_pdc!$C538=1,dati_bdv!$C$2:$C$65536,IF(dati_pdc!$C538=2,dati_bdv!$D$2:$D$65536,IF(dati_pdc!$C538=3,dati_bdv!$E$2:$E$65536,IF(dati_pdc!$C538=4,dati_bdv!$F$2:$F$65536,IF(dati_pdc!$C538=5,dati_bdv!$G$2:$G$65536,dati_bdv!$H$2:$H$65536))))),$A538,dati_bdv!L$2:L$65536)","v":0},{"$f":"SUMIF(IF(dati_pdc!$C538=1,dati_bdv!$C$2:$C$65536,IF(dati_pdc!$C538=2,dati_bdv!$D$2:$D$65536,IF(dati_pdc!$C538=3,dati_bdv!$E$2:$E$65536,IF(dati_pdc!$C538=4,dati_bdv!$F$2:$F$65536,IF(dati_pdc!$C538=5,dati_bdv!$G$2:$G$65536,dati_bdv!$H$2:$H$65536))))),$A538,dati_bdv!M$2:M$65536)","v":0},{"$f":"SUMIF(IF(dati_pdc!$C538=1,dati_bdv!$C$2:$C$65536,IF(dati_pdc!$C538=2,dati_bdv!$D$2:$D$65536,IF(dati_pdc!$C538=3,dati_bdv!$E$2:$E$65536,IF(dati_pdc!$C538=4,dati_bdv!$F$2:$F$65536,IF(dati_pdc!$C538=5,dati_bdv!$G$2:$G$65536,dati_bdv!$H$2:$H$65536))))),$A538,dati_bdv!N$2:N$65536)","v":0}]
[{"$f":"dati_pdc!A539","v":0},{"$f":"SUMIF(IF(dati_pdc!$C539=1,dati_bdv!$C$2:$C$65536,IF(dati_pdc!$C539=2,dati_bdv!$D$2:$D$65536,IF(dati_pdc!$C539=3,dati_bdv!$E$2:$E$65536,IF(dati_pdc!$C539=4,dati_bdv!$F$2:$F$65536,IF(dati_pdc!$C539=5,dati_bdv!$G$2:$G$65536,dati_bdv!$H$2:$H$65536))))),$A539,dati_bdv!J$2:J$65536)","v":0},{"$f":"SUMIF(IF(dati_pdc!$C539=1,dati_bdv!$C$2:$C$65536,IF(dati_pdc!$C539=2,dati_bdv!$D$2:$D$65536,IF(dati_pdc!$C539=3,dati_bdv!$E$2:$E$65536,IF(dati_pdc!$C539=4,dati_bdv!$F$2:$F$65536,IF(dati_pdc!$C539=5,dati_bdv!$G$2:$G$65536,dati_bdv!$H$2:$H$65536))))),$A539,dati_bdv!K$2:K$65536)","v":0},{"$f":"SUMIF(IF(dati_pdc!$C539=1,dati_bdv!$C$2:$C$65536,IF(dati_pdc!$C539=2,dati_bdv!$D$2:$D$65536,IF(dati_pdc!$C539=3,dati_bdv!$E$2:$E$65536,IF(dati_pdc!$C539=4,dati_bdv!$F$2:$F$65536,IF(dati_pdc!$C539=5,dati_bdv!$G$2:$G$65536,dati_bdv!$H$2:$H$65536))))),$A539,dati_bdv!L$2:L$65536)","v":0},{"$f":"SUMIF(IF(dati_pdc!$C539=1,dati_bdv!$C$2:$C$65536,IF(dati_pdc!$C539=2,dati_bdv!$D$2:$D$65536,IF(dati_pdc!$C539=3,dati_bdv!$E$2:$E$65536,IF(dati_pdc!$C539=4,dati_bdv!$F$2:$F$65536,IF(dati_pdc!$C539=5,dati_bdv!$G$2:$G$65536,dati_bdv!$H$2:$H$65536))))),$A539,dati_bdv!M$2:M$65536)","v":0},{"$f":"SUMIF(IF(dati_pdc!$C539=1,dati_bdv!$C$2:$C$65536,IF(dati_pdc!$C539=2,dati_bdv!$D$2:$D$65536,IF(dati_pdc!$C539=3,dati_bdv!$E$2:$E$65536,IF(dati_pdc!$C539=4,dati_bdv!$F$2:$F$65536,IF(dati_pdc!$C539=5,dati_bdv!$G$2:$G$65536,dati_bdv!$H$2:$H$65536))))),$A539,dati_bdv!N$2:N$65536)","v":0}]
[{"$f":"dati_pdc!A540","v":0},{"$f":"SUMIF(IF(dati_pdc!$C540=1,dati_bdv!$C$2:$C$65536,IF(dati_pdc!$C540=2,dati_bdv!$D$2:$D$65536,IF(dati_pdc!$C540=3,dati_bdv!$E$2:$E$65536,IF(dati_pdc!$C540=4,dati_bdv!$F$2:$F$65536,IF(dati_pdc!$C540=5,dati_bdv!$G$2:$G$65536,dati_bdv!$H$2:$H$65536))))),$A540,dati_bdv!J$2:J$65536)","v":0},{"$f":"SUMIF(IF(dati_pdc!$C540=1,dati_bdv!$C$2:$C$65536,IF(dati_pdc!$C540=2,dati_bdv!$D$2:$D$65536,IF(dati_pdc!$C540=3,dati_bdv!$E$2:$E$65536,IF(dati_pdc!$C540=4,dati_bdv!$F$2:$F$65536,IF(dati_pdc!$C540=5,dati_bdv!$G$2:$G$65536,dati_bdv!$H$2:$H$65536))))),$A540,dati_bdv!K$2:K$65536)","v":0},{"$f":"SUMIF(IF(dati_pdc!$C540=1,dati_bdv!$C$2:$C$65536,IF(dati_pdc!$C540=2,dati_bdv!$D$2:$D$65536,IF(dati_pdc!$C540=3,dati_bdv!$E$2:$E$65536,IF(dati_pdc!$C540=4,dati_bdv!$F$2:$F$65536,IF(dati_pdc!$C540=5,dati_bdv!$G$2:$G$65536,dati_bdv!$H$2:$H$65536))))),$A540,dati_bdv!L$2:L$65536)","v":0},{"$f":"SUMIF(IF(dati_pdc!$C540=1,dati_bdv!$C$2:$C$65536,IF(dati_pdc!$C540=2,dati_bdv!$D$2:$D$65536,IF(dati_pdc!$C540=3,dati_bdv!$E$2:$E$65536,IF(dati_pdc!$C540=4,dati_bdv!$F$2:$F$65536,IF(dati_pdc!$C540=5,dati_bdv!$G$2:$G$65536,dati_bdv!$H$2:$H$65536))))),$A540,dati_bdv!M$2:M$65536)","v":0},{"$f":"SUMIF(IF(dati_pdc!$C540=1,dati_bdv!$C$2:$C$65536,IF(dati_pdc!$C540=2,dati_bdv!$D$2:$D$65536,IF(dati_pdc!$C540=3,dati_bdv!$E$2:$E$65536,IF(dati_pdc!$C540=4,dati_bdv!$F$2:$F$65536,IF(dati_pdc!$C540=5,dati_bdv!$G$2:$G$65536,dati_bdv!$H$2:$H$65536))))),$A540,dati_bdv!N$2:N$65536)","v":0}]
[{"$f":"dati_pdc!A541","v":0},{"$f":"SUMIF(IF(dati_pdc!$C541=1,dati_bdv!$C$2:$C$65536,IF(dati_pdc!$C541=2,dati_bdv!$D$2:$D$65536,IF(dati_pdc!$C541=3,dati_bdv!$E$2:$E$65536,IF(dati_pdc!$C541=4,dati_bdv!$F$2:$F$65536,IF(dati_pdc!$C541=5,dati_bdv!$G$2:$G$65536,dati_bdv!$H$2:$H$65536))))),$A541,dati_bdv!J$2:J$65536)","v":0},{"$f":"SUMIF(IF(dati_pdc!$C541=1,dati_bdv!$C$2:$C$65536,IF(dati_pdc!$C541=2,dati_bdv!$D$2:$D$65536,IF(dati_pdc!$C541=3,dati_bdv!$E$2:$E$65536,IF(dati_pdc!$C541=4,dati_bdv!$F$2:$F$65536,IF(dati_pdc!$C541=5,dati_bdv!$G$2:$G$65536,dati_bdv!$H$2:$H$65536))))),$A541,dati_bdv!K$2:K$65536)","v":0},{"$f":"SUMIF(IF(dati_pdc!$C541=1,dati_bdv!$C$2:$C$65536,IF(dati_pdc!$C541=2,dati_bdv!$D$2:$D$65536,IF(dati_pdc!$C541=3,dati_bdv!$E$2:$E$65536,IF(dati_pdc!$C541=4,dati_bdv!$F$2:$F$65536,IF(dati_pdc!$C541=5,dati_bdv!$G$2:$G$65536,dati_bdv!$H$2:$H$65536))))),$A541,dati_bdv!L$2:L$65536)","v":0},{"$f":"SUMIF(IF(dati_pdc!$C541=1,dati_bdv!$C$2:$C$65536,IF(dati_pdc!$C541=2,dati_bdv!$D$2:$D$65536,IF(dati_pdc!$C541=3,dati_bdv!$E$2:$E$65536,IF(dati_pdc!$C541=4,dati_bdv!$F$2:$F$65536,IF(dati_pdc!$C541=5,dati_bdv!$G$2:$G$65536,dati_bdv!$H$2:$H$65536))))),$A541,dati_bdv!M$2:M$65536)","v":0},{"$f":"SUMIF(IF(dati_pdc!$C541=1,dati_bdv!$C$2:$C$65536,IF(dati_pdc!$C541=2,dati_bdv!$D$2:$D$65536,IF(dati_pdc!$C541=3,dati_bdv!$E$2:$E$65536,IF(dati_pdc!$C541=4,dati_bdv!$F$2:$F$65536,IF(dati_pdc!$C541=5,dati_bdv!$G$2:$G$65536,dati_bdv!$H$2:$H$65536))))),$A541,dati_bdv!N$2:N$65536)","v":0}]
[{"$f":"dati_pdc!A542","v":0},{"$f":"SUMIF(IF(dati_pdc!$C542=1,dati_bdv!$C$2:$C$65536,IF(dati_pdc!$C542=2,dati_bdv!$D$2:$D$65536,IF(dati_pdc!$C542=3,dati_bdv!$E$2:$E$65536,IF(dati_pdc!$C542=4,dati_bdv!$F$2:$F$65536,IF(dati_pdc!$C542=5,dati_bdv!$G$2:$G$65536,dati_bdv!$H$2:$H$65536))))),$A542,dati_bdv!J$2:J$65536)","v":0},{"$f":"SUMIF(IF(dati_pdc!$C542=1,dati_bdv!$C$2:$C$65536,IF(dati_pdc!$C542=2,dati_bdv!$D$2:$D$65536,IF(dati_pdc!$C542=3,dati_bdv!$E$2:$E$65536,IF(dati_pdc!$C542=4,dati_bdv!$F$2:$F$65536,IF(dati_pdc!$C542=5,dati_bdv!$G$2:$G$65536,dati_bdv!$H$2:$H$65536))))),$A542,dati_bdv!K$2:K$65536)","v":0},{"$f":"SUMIF(IF(dati_pdc!$C542=1,dati_bdv!$C$2:$C$65536,IF(dati_pdc!$C542=2,dati_bdv!$D$2:$D$65536,IF(dati_pdc!$C542=3,dati_bdv!$E$2:$E$65536,IF(dati_pdc!$C542=4,dati_bdv!$F$2:$F$65536,IF(dati_pdc!$C542=5,dati_bdv!$G$2:$G$65536,dati_bdv!$H$2:$H$65536))))),$A542,dati_bdv!L$2:L$65536)","v":0},{"$f":"SUMIF(IF(dati_pdc!$C542=1,dati_bdv!$C$2:$C$65536,IF(dati_pdc!$C542=2,dati_bdv!$D$2:$D$65536,IF(dati_pdc!$C542=3,dati_bdv!$E$2:$E$65536,IF(dati_pdc!$C542=4,dati_bdv!$F$2:$F$65536,IF(dati_pdc!$C542=5,dati_bdv!$G$2:$G$65536,dati_bdv!$H$2:$H$65536))))),$A542,dati_bdv!M$2:M$65536)","v":0},{"$f":"SUMIF(IF(dati_pdc!$C542=1,dati_bdv!$C$2:$C$65536,IF(dati_pdc!$C542=2,dati_bdv!$D$2:$D$65536,IF(dati_pdc!$C542=3,dati_bdv!$E$2:$E$65536,IF(dati_pdc!$C542=4,dati_bdv!$F$2:$F$65536,IF(dati_pdc!$C542=5,dati_bdv!$G$2:$G$65536,dati_bdv!$H$2:$H$65536))))),$A542,dati_bdv!N$2:N$65536)","v":0}]
[{"$f":"dati_pdc!A543","v":0},{"$f":"SUMIF(IF(dati_pdc!$C543=1,dati_bdv!$C$2:$C$65536,IF(dati_pdc!$C543=2,dati_bdv!$D$2:$D$65536,IF(dati_pdc!$C543=3,dati_bdv!$E$2:$E$65536,IF(dati_pdc!$C543=4,dati_bdv!$F$2:$F$65536,IF(dati_pdc!$C543=5,dati_bdv!$G$2:$G$65536,dati_bdv!$H$2:$H$65536))))),$A543,dati_bdv!J$2:J$65536)","v":0},{"$f":"SUMIF(IF(dati_pdc!$C543=1,dati_bdv!$C$2:$C$65536,IF(dati_pdc!$C543=2,dati_bdv!$D$2:$D$65536,IF(dati_pdc!$C543=3,dati_bdv!$E$2:$E$65536,IF(dati_pdc!$C543=4,dati_bdv!$F$2:$F$65536,IF(dati_pdc!$C543=5,dati_bdv!$G$2:$G$65536,dati_bdv!$H$2:$H$65536))))),$A543,dati_bdv!K$2:K$65536)","v":0},{"$f":"SUMIF(IF(dati_pdc!$C543=1,dati_bdv!$C$2:$C$65536,IF(dati_pdc!$C543=2,dati_bdv!$D$2:$D$65536,IF(dati_pdc!$C543=3,dati_bdv!$E$2:$E$65536,IF(dati_pdc!$C543=4,dati_bdv!$F$2:$F$65536,IF(dati_pdc!$C543=5,dati_bdv!$G$2:$G$65536,dati_bdv!$H$2:$H$65536))))),$A543,dati_bdv!L$2:L$65536)","v":0},{"$f":"SUMIF(IF(dati_pdc!$C543=1,dati_bdv!$C$2:$C$65536,IF(dati_pdc!$C543=2,dati_bdv!$D$2:$D$65536,IF(dati_pdc!$C543=3,dati_bdv!$E$2:$E$65536,IF(dati_pdc!$C543=4,dati_bdv!$F$2:$F$65536,IF(dati_pdc!$C543=5,dati_bdv!$G$2:$G$65536,dati_bdv!$H$2:$H$65536))))),$A543,dati_bdv!M$2:M$65536)","v":0},{"$f":"SUMIF(IF(dati_pdc!$C543=1,dati_bdv!$C$2:$C$65536,IF(dati_pdc!$C543=2,dati_bdv!$D$2:$D$65536,IF(dati_pdc!$C543=3,dati_bdv!$E$2:$E$65536,IF(dati_pdc!$C543=4,dati_bdv!$F$2:$F$65536,IF(dati_pdc!$C543=5,dati_bdv!$G$2:$G$65536,dati_bdv!$H$2:$H$65536))))),$A543,dati_bdv!N$2:N$65536)","v":0}]
[{"$f":"dati_pdc!A544","v":0},{"$f":"SUMIF(IF(dati_pdc!$C544=1,dati_bdv!$C$2:$C$65536,IF(dati_pdc!$C544=2,dati_bdv!$D$2:$D$65536,IF(dati_pdc!$C544=3,dati_bdv!$E$2:$E$65536,IF(dati_pdc!$C544=4,dati_bdv!$F$2:$F$65536,IF(dati_pdc!$C544=5,dati_bdv!$G$2:$G$65536,dati_bdv!$H$2:$H$65536))))),$A544,dati_bdv!J$2:J$65536)","v":0},{"$f":"SUMIF(IF(dati_pdc!$C544=1,dati_bdv!$C$2:$C$65536,IF(dati_pdc!$C544=2,dati_bdv!$D$2:$D$65536,IF(dati_pdc!$C544=3,dati_bdv!$E$2:$E$65536,IF(dati_pdc!$C544=4,dati_bdv!$F$2:$F$65536,IF(dati_pdc!$C544=5,dati_bdv!$G$2:$G$65536,dati_bdv!$H$2:$H$65536))))),$A544,dati_bdv!K$2:K$65536)","v":0},{"$f":"SUMIF(IF(dati_pdc!$C544=1,dati_bdv!$C$2:$C$65536,IF(dati_pdc!$C544=2,dati_bdv!$D$2:$D$65536,IF(dati_pdc!$C544=3,dati_bdv!$E$2:$E$65536,IF(dati_pdc!$C544=4,dati_bdv!$F$2:$F$65536,IF(dati_pdc!$C544=5,dati_bdv!$G$2:$G$65536,dati_bdv!$H$2:$H$65536))))),$A544,dati_bdv!L$2:L$65536)","v":0},{"$f":"SUMIF(IF(dati_pdc!$C544=1,dati_bdv!$C$2:$C$65536,IF(dati_pdc!$C544=2,dati_bdv!$D$2:$D$65536,IF(dati_pdc!$C544=3,dati_bdv!$E$2:$E$65536,IF(dati_pdc!$C544=4,dati_bdv!$F$2:$F$65536,IF(dati_pdc!$C544=5,dati_bdv!$G$2:$G$65536,dati_bdv!$H$2:$H$65536))))),$A544,dati_bdv!M$2:M$65536)","v":0},{"$f":"SUMIF(IF(dati_pdc!$C544=1,dati_bdv!$C$2:$C$65536,IF(dati_pdc!$C544=2,dati_bdv!$D$2:$D$65536,IF(dati_pdc!$C544=3,dati_bdv!$E$2:$E$65536,IF(dati_pdc!$C544=4,dati_bdv!$F$2:$F$65536,IF(dati_pdc!$C544=5,dati_bdv!$G$2:$G$65536,dati_bdv!$H$2:$H$65536))))),$A544,dati_bdv!N$2:N$65536)","v":0}]
[{"$f":"dati_pdc!A545","v":0},{"$f":"SUMIF(IF(dati_pdc!$C545=1,dati_bdv!$C$2:$C$65536,IF(dati_pdc!$C545=2,dati_bdv!$D$2:$D$65536,IF(dati_pdc!$C545=3,dati_bdv!$E$2:$E$65536,IF(dati_pdc!$C545=4,dati_bdv!$F$2:$F$65536,IF(dati_pdc!$C545=5,dati_bdv!$G$2:$G$65536,dati_bdv!$H$2:$H$65536))))),$A545,dati_bdv!J$2:J$65536)","v":0},{"$f":"SUMIF(IF(dati_pdc!$C545=1,dati_bdv!$C$2:$C$65536,IF(dati_pdc!$C545=2,dati_bdv!$D$2:$D$65536,IF(dati_pdc!$C545=3,dati_bdv!$E$2:$E$65536,IF(dati_pdc!$C545=4,dati_bdv!$F$2:$F$65536,IF(dati_pdc!$C545=5,dati_bdv!$G$2:$G$65536,dati_bdv!$H$2:$H$65536))))),$A545,dati_bdv!K$2:K$65536)","v":0},{"$f":"SUMIF(IF(dati_pdc!$C545=1,dati_bdv!$C$2:$C$65536,IF(dati_pdc!$C545=2,dati_bdv!$D$2:$D$65536,IF(dati_pdc!$C545=3,dati_bdv!$E$2:$E$65536,IF(dati_pdc!$C545=4,dati_bdv!$F$2:$F$65536,IF(dati_pdc!$C545=5,dati_bdv!$G$2:$G$65536,dati_bdv!$H$2:$H$65536))))),$A545,dati_bdv!L$2:L$65536)","v":0},{"$f":"SUMIF(IF(dati_pdc!$C545=1,dati_bdv!$C$2:$C$65536,IF(dati_pdc!$C545=2,dati_bdv!$D$2:$D$65536,IF(dati_pdc!$C545=3,dati_bdv!$E$2:$E$65536,IF(dati_pdc!$C545=4,dati_bdv!$F$2:$F$65536,IF(dati_pdc!$C545=5,dati_bdv!$G$2:$G$65536,dati_bdv!$H$2:$H$65536))))),$A545,dati_bdv!M$2:M$65536)","v":0},{"$f":"SUMIF(IF(dati_pdc!$C545=1,dati_bdv!$C$2:$C$65536,IF(dati_pdc!$C545=2,dati_bdv!$D$2:$D$65536,IF(dati_pdc!$C545=3,dati_bdv!$E$2:$E$65536,IF(dati_pdc!$C545=4,dati_bdv!$F$2:$F$65536,IF(dati_pdc!$C545=5,dati_bdv!$G$2:$G$65536,dati_bdv!$H$2:$H$65536))))),$A545,dati_bdv!N$2:N$65536)","v":0}]
[{"$f":"dati_pdc!A546","v":0},{"$f":"SUMIF(IF(dati_pdc!$C546=1,dati_bdv!$C$2:$C$65536,IF(dati_pdc!$C546=2,dati_bdv!$D$2:$D$65536,IF(dati_pdc!$C546=3,dati_bdv!$E$2:$E$65536,IF(dati_pdc!$C546=4,dati_bdv!$F$2:$F$65536,IF(dati_pdc!$C546=5,dati_bdv!$G$2:$G$65536,dati_bdv!$H$2:$H$65536))))),$A546,dati_bdv!J$2:J$65536)","v":0},{"$f":"SUMIF(IF(dati_pdc!$C546=1,dati_bdv!$C$2:$C$65536,IF(dati_pdc!$C546=2,dati_bdv!$D$2:$D$65536,IF(dati_pdc!$C546=3,dati_bdv!$E$2:$E$65536,IF(dati_pdc!$C546=4,dati_bdv!$F$2:$F$65536,IF(dati_pdc!$C546=5,dati_bdv!$G$2:$G$65536,dati_bdv!$H$2:$H$65536))))),$A546,dati_bdv!K$2:K$65536)","v":0},{"$f":"SUMIF(IF(dati_pdc!$C546=1,dati_bdv!$C$2:$C$65536,IF(dati_pdc!$C546=2,dati_bdv!$D$2:$D$65536,IF(dati_pdc!$C546=3,dati_bdv!$E$2:$E$65536,IF(dati_pdc!$C546=4,dati_bdv!$F$2:$F$65536,IF(dati_pdc!$C546=5,dati_bdv!$G$2:$G$65536,dati_bdv!$H$2:$H$65536))))),$A546,dati_bdv!L$2:L$65536)","v":0},{"$f":"SUMIF(IF(dati_pdc!$C546=1,dati_bdv!$C$2:$C$65536,IF(dati_pdc!$C546=2,dati_bdv!$D$2:$D$65536,IF(dati_pdc!$C546=3,dati_bdv!$E$2:$E$65536,IF(dati_pdc!$C546=4,dati_bdv!$F$2:$F$65536,IF(dati_pdc!$C546=5,dati_bdv!$G$2:$G$65536,dati_bdv!$H$2:$H$65536))))),$A546,dati_bdv!M$2:M$65536)","v":0},{"$f":"SUMIF(IF(dati_pdc!$C546=1,dati_bdv!$C$2:$C$65536,IF(dati_pdc!$C546=2,dati_bdv!$D$2:$D$65536,IF(dati_pdc!$C546=3,dati_bdv!$E$2:$E$65536,IF(dati_pdc!$C546=4,dati_bdv!$F$2:$F$65536,IF(dati_pdc!$C546=5,dati_bdv!$G$2:$G$65536,dati_bdv!$H$2:$H$65536))))),$A546,dati_bdv!N$2:N$65536)","v":0}]
[{"$f":"dati_pdc!A547","v":0},{"$f":"SUMIF(IF(dati_pdc!$C547=1,dati_bdv!$C$2:$C$65536,IF(dati_pdc!$C547=2,dati_bdv!$D$2:$D$65536,IF(dati_pdc!$C547=3,dati_bdv!$E$2:$E$65536,IF(dati_pdc!$C547=4,dati_bdv!$F$2:$F$65536,IF(dati_pdc!$C547=5,dati_bdv!$G$2:$G$65536,dati_bdv!$H$2:$H$65536))))),$A547,dati_bdv!J$2:J$65536)","v":0},{"$f":"SUMIF(IF(dati_pdc!$C547=1,dati_bdv!$C$2:$C$65536,IF(dati_pdc!$C547=2,dati_bdv!$D$2:$D$65536,IF(dati_pdc!$C547=3,dati_bdv!$E$2:$E$65536,IF(dati_pdc!$C547=4,dati_bdv!$F$2:$F$65536,IF(dati_pdc!$C547=5,dati_bdv!$G$2:$G$65536,dati_bdv!$H$2:$H$65536))))),$A547,dati_bdv!K$2:K$65536)","v":0},{"$f":"SUMIF(IF(dati_pdc!$C547=1,dati_bdv!$C$2:$C$65536,IF(dati_pdc!$C547=2,dati_bdv!$D$2:$D$65536,IF(dati_pdc!$C547=3,dati_bdv!$E$2:$E$65536,IF(dati_pdc!$C547=4,dati_bdv!$F$2:$F$65536,IF(dati_pdc!$C547=5,dati_bdv!$G$2:$G$65536,dati_bdv!$H$2:$H$65536))))),$A547,dati_bdv!L$2:L$65536)","v":0},{"$f":"SUMIF(IF(dati_pdc!$C547=1,dati_bdv!$C$2:$C$65536,IF(dati_pdc!$C547=2,dati_bdv!$D$2:$D$65536,IF(dati_pdc!$C547=3,dati_bdv!$E$2:$E$65536,IF(dati_pdc!$C547=4,dati_bdv!$F$2:$F$65536,IF(dati_pdc!$C547=5,dati_bdv!$G$2:$G$65536,dati_bdv!$H$2:$H$65536))))),$A547,dati_bdv!M$2:M$65536)","v":0},{"$f":"SUMIF(IF(dati_pdc!$C547=1,dati_bdv!$C$2:$C$65536,IF(dati_pdc!$C547=2,dati_bdv!$D$2:$D$65536,IF(dati_pdc!$C547=3,dati_bdv!$E$2:$E$65536,IF(dati_pdc!$C547=4,dati_bdv!$F$2:$F$65536,IF(dati_pdc!$C547=5,dati_bdv!$G$2:$G$65536,dati_bdv!$H$2:$H$65536))))),$A547,dati_bdv!N$2:N$65536)","v":0}]
[{"$f":"dati_pdc!A548","v":0},{"$f":"SUMIF(IF(dati_pdc!$C548=1,dati_bdv!$C$2:$C$65536,IF(dati_pdc!$C548=2,dati_bdv!$D$2:$D$65536,IF(dati_pdc!$C548=3,dati_bdv!$E$2:$E$65536,IF(dati_pdc!$C548=4,dati_bdv!$F$2:$F$65536,IF(dati_pdc!$C548=5,dati_bdv!$G$2:$G$65536,dati_bdv!$H$2:$H$65536))))),$A548,dati_bdv!J$2:J$65536)","v":0},{"$f":"SUMIF(IF(dati_pdc!$C548=1,dati_bdv!$C$2:$C$65536,IF(dati_pdc!$C548=2,dati_bdv!$D$2:$D$65536,IF(dati_pdc!$C548=3,dati_bdv!$E$2:$E$65536,IF(dati_pdc!$C548=4,dati_bdv!$F$2:$F$65536,IF(dati_pdc!$C548=5,dati_bdv!$G$2:$G$65536,dati_bdv!$H$2:$H$65536))))),$A548,dati_bdv!K$2:K$65536)","v":0},{"$f":"SUMIF(IF(dati_pdc!$C548=1,dati_bdv!$C$2:$C$65536,IF(dati_pdc!$C548=2,dati_bdv!$D$2:$D$65536,IF(dati_pdc!$C548=3,dati_bdv!$E$2:$E$65536,IF(dati_pdc!$C548=4,dati_bdv!$F$2:$F$65536,IF(dati_pdc!$C548=5,dati_bdv!$G$2:$G$65536,dati_bdv!$H$2:$H$65536))))),$A548,dati_bdv!L$2:L$65536)","v":0},{"$f":"SUMIF(IF(dati_pdc!$C548=1,dati_bdv!$C$2:$C$65536,IF(dati_pdc!$C548=2,dati_bdv!$D$2:$D$65536,IF(dati_pdc!$C548=3,dati_bdv!$E$2:$E$65536,IF(dati_pdc!$C548=4,dati_bdv!$F$2:$F$65536,IF(dati_pdc!$C548=5,dati_bdv!$G$2:$G$65536,dati_bdv!$H$2:$H$65536))))),$A548,dati_bdv!M$2:M$65536)","v":0},{"$f":"SUMIF(IF(dati_pdc!$C548=1,dati_bdv!$C$2:$C$65536,IF(dati_pdc!$C548=2,dati_bdv!$D$2:$D$65536,IF(dati_pdc!$C548=3,dati_bdv!$E$2:$E$65536,IF(dati_pdc!$C548=4,dati_bdv!$F$2:$F$65536,IF(dati_pdc!$C548=5,dati_bdv!$G$2:$G$65536,dati_bdv!$H$2:$H$65536))))),$A548,dati_bdv!N$2:N$65536)","v":0}]
[{"$f":"dati_pdc!A549","v":0},{"$f":"SUMIF(IF(dati_pdc!$C549=1,dati_bdv!$C$2:$C$65536,IF(dati_pdc!$C549=2,dati_bdv!$D$2:$D$65536,IF(dati_pdc!$C549=3,dati_bdv!$E$2:$E$65536,IF(dati_pdc!$C549=4,dati_bdv!$F$2:$F$65536,IF(dati_pdc!$C549=5,dati_bdv!$G$2:$G$65536,dati_bdv!$H$2:$H$65536))))),$A549,dati_bdv!J$2:J$65536)","v":0},{"$f":"SUMIF(IF(dati_pdc!$C549=1,dati_bdv!$C$2:$C$65536,IF(dati_pdc!$C549=2,dati_bdv!$D$2:$D$65536,IF(dati_pdc!$C549=3,dati_bdv!$E$2:$E$65536,IF(dati_pdc!$C549=4,dati_bdv!$F$2:$F$65536,IF(dati_pdc!$C549=5,dati_bdv!$G$2:$G$65536,dati_bdv!$H$2:$H$65536))))),$A549,dati_bdv!K$2:K$65536)","v":0},{"$f":"SUMIF(IF(dati_pdc!$C549=1,dati_bdv!$C$2:$C$65536,IF(dati_pdc!$C549=2,dati_bdv!$D$2:$D$65536,IF(dati_pdc!$C549=3,dati_bdv!$E$2:$E$65536,IF(dati_pdc!$C549=4,dati_bdv!$F$2:$F$65536,IF(dati_pdc!$C549=5,dati_bdv!$G$2:$G$65536,dati_bdv!$H$2:$H$65536))))),$A549,dati_bdv!L$2:L$65536)","v":0},{"$f":"SUMIF(IF(dati_pdc!$C549=1,dati_bdv!$C$2:$C$65536,IF(dati_pdc!$C549=2,dati_bdv!$D$2:$D$65536,IF(dati_pdc!$C549=3,dati_bdv!$E$2:$E$65536,IF(dati_pdc!$C549=4,dati_bdv!$F$2:$F$65536,IF(dati_pdc!$C549=5,dati_bdv!$G$2:$G$65536,dati_bdv!$H$2:$H$65536))))),$A549,dati_bdv!M$2:M$65536)","v":0},{"$f":"SUMIF(IF(dati_pdc!$C549=1,dati_bdv!$C$2:$C$65536,IF(dati_pdc!$C549=2,dati_bdv!$D$2:$D$65536,IF(dati_pdc!$C549=3,dati_bdv!$E$2:$E$65536,IF(dati_pdc!$C549=4,dati_bdv!$F$2:$F$65536,IF(dati_pdc!$C549=5,dati_bdv!$G$2:$G$65536,dati_bdv!$H$2:$H$65536))))),$A549,dati_bdv!N$2:N$65536)","v":0}]
[{"$f":"dati_pdc!A550","v":0},{"$f":"SUMIF(IF(dati_pdc!$C550=1,dati_bdv!$C$2:$C$65536,IF(dati_pdc!$C550=2,dati_bdv!$D$2:$D$65536,IF(dati_pdc!$C550=3,dati_bdv!$E$2:$E$65536,IF(dati_pdc!$C550=4,dati_bdv!$F$2:$F$65536,IF(dati_pdc!$C550=5,dati_bdv!$G$2:$G$65536,dati_bdv!$H$2:$H$65536))))),$A550,dati_bdv!J$2:J$65536)","v":0},{"$f":"SUMIF(IF(dati_pdc!$C550=1,dati_bdv!$C$2:$C$65536,IF(dati_pdc!$C550=2,dati_bdv!$D$2:$D$65536,IF(dati_pdc!$C550=3,dati_bdv!$E$2:$E$65536,IF(dati_pdc!$C550=4,dati_bdv!$F$2:$F$65536,IF(dati_pdc!$C550=5,dati_bdv!$G$2:$G$65536,dati_bdv!$H$2:$H$65536))))),$A550,dati_bdv!K$2:K$65536)","v":0},{"$f":"SUMIF(IF(dati_pdc!$C550=1,dati_bdv!$C$2:$C$65536,IF(dati_pdc!$C550=2,dati_bdv!$D$2:$D$65536,IF(dati_pdc!$C550=3,dati_bdv!$E$2:$E$65536,IF(dati_pdc!$C550=4,dati_bdv!$F$2:$F$65536,IF(dati_pdc!$C550=5,dati_bdv!$G$2:$G$65536,dati_bdv!$H$2:$H$65536))))),$A550,dati_bdv!L$2:L$65536)","v":0},{"$f":"SUMIF(IF(dati_pdc!$C550=1,dati_bdv!$C$2:$C$65536,IF(dati_pdc!$C550=2,dati_bdv!$D$2:$D$65536,IF(dati_pdc!$C550=3,dati_bdv!$E$2:$E$65536,IF(dati_pdc!$C550=4,dati_bdv!$F$2:$F$65536,IF(dati_pdc!$C550=5,dati_bdv!$G$2:$G$65536,dati_bdv!$H$2:$H$65536))))),$A550,dati_bdv!M$2:M$65536)","v":0},{"$f":"SUMIF(IF(dati_pdc!$C550=1,dati_bdv!$C$2:$C$65536,IF(dati_pdc!$C550=2,dati_bdv!$D$2:$D$65536,IF(dati_pdc!$C550=3,dati_bdv!$E$2:$E$65536,IF(dati_pdc!$C550=4,dati_bdv!$F$2:$F$65536,IF(dati_pdc!$C550=5,dati_bdv!$G$2:$G$65536,dati_bdv!$H$2:$H$65536))))),$A550,dati_bdv!N$2:N$65536)","v":0}]
[{"$f":"dati_pdc!A551","v":0},{"$f":"SUMIF(IF(dati_pdc!$C551=1,dati_bdv!$C$2:$C$65536,IF(dati_pdc!$C551=2,dati_bdv!$D$2:$D$65536,IF(dati_pdc!$C551=3,dati_bdv!$E$2:$E$65536,IF(dati_pdc!$C551=4,dati_bdv!$F$2:$F$65536,IF(dati_pdc!$C551=5,dati_bdv!$G$2:$G$65536,dati_bdv!$H$2:$H$65536))))),$A551,dati_bdv!J$2:J$65536)","v":0},{"$f":"SUMIF(IF(dati_pdc!$C551=1,dati_bdv!$C$2:$C$65536,IF(dati_pdc!$C551=2,dati_bdv!$D$2:$D$65536,IF(dati_pdc!$C551=3,dati_bdv!$E$2:$E$65536,IF(dati_pdc!$C551=4,dati_bdv!$F$2:$F$65536,IF(dati_pdc!$C551=5,dati_bdv!$G$2:$G$65536,dati_bdv!$H$2:$H$65536))))),$A551,dati_bdv!K$2:K$65536)","v":0},{"$f":"SUMIF(IF(dati_pdc!$C551=1,dati_bdv!$C$2:$C$65536,IF(dati_pdc!$C551=2,dati_bdv!$D$2:$D$65536,IF(dati_pdc!$C551=3,dati_bdv!$E$2:$E$65536,IF(dati_pdc!$C551=4,dati_bdv!$F$2:$F$65536,IF(dati_pdc!$C551=5,dati_bdv!$G$2:$G$65536,dati_bdv!$H$2:$H$65536))))),$A551,dati_bdv!L$2:L$65536)","v":0},{"$f":"SUMIF(IF(dati_pdc!$C551=1,dati_bdv!$C$2:$C$65536,IF(dati_pdc!$C551=2,dati_bdv!$D$2:$D$65536,IF(dati_pdc!$C551=3,dati_bdv!$E$2:$E$65536,IF(dati_pdc!$C551=4,dati_bdv!$F$2:$F$65536,IF(dati_pdc!$C551=5,dati_bdv!$G$2:$G$65536,dati_bdv!$H$2:$H$65536))))),$A551,dati_bdv!M$2:M$65536)","v":0},{"$f":"SUMIF(IF(dati_pdc!$C551=1,dati_bdv!$C$2:$C$65536,IF(dati_pdc!$C551=2,dati_bdv!$D$2:$D$65536,IF(dati_pdc!$C551=3,dati_bdv!$E$2:$E$65536,IF(dati_pdc!$C551=4,dati_bdv!$F$2:$F$65536,IF(dati_pdc!$C551=5,dati_bdv!$G$2:$G$65536,dati_bdv!$H$2:$H$65536))))),$A551,dati_bdv!N$2:N$65536)","v":0}]
[{"$f":"dati_pdc!A552","v":0},{"$f":"SUMIF(IF(dati_pdc!$C552=1,dati_bdv!$C$2:$C$65536,IF(dati_pdc!$C552=2,dati_bdv!$D$2:$D$65536,IF(dati_pdc!$C552=3,dati_bdv!$E$2:$E$65536,IF(dati_pdc!$C552=4,dati_bdv!$F$2:$F$65536,IF(dati_pdc!$C552=5,dati_bdv!$G$2:$G$65536,dati_bdv!$H$2:$H$65536))))),$A552,dati_bdv!J$2:J$65536)","v":0},{"$f":"SUMIF(IF(dati_pdc!$C552=1,dati_bdv!$C$2:$C$65536,IF(dati_pdc!$C552=2,dati_bdv!$D$2:$D$65536,IF(dati_pdc!$C552=3,dati_bdv!$E$2:$E$65536,IF(dati_pdc!$C552=4,dati_bdv!$F$2:$F$65536,IF(dati_pdc!$C552=5,dati_bdv!$G$2:$G$65536,dati_bdv!$H$2:$H$65536))))),$A552,dati_bdv!K$2:K$65536)","v":0},{"$f":"SUMIF(IF(dati_pdc!$C552=1,dati_bdv!$C$2:$C$65536,IF(dati_pdc!$C552=2,dati_bdv!$D$2:$D$65536,IF(dati_pdc!$C552=3,dati_bdv!$E$2:$E$65536,IF(dati_pdc!$C552=4,dati_bdv!$F$2:$F$65536,IF(dati_pdc!$C552=5,dati_bdv!$G$2:$G$65536,dati_bdv!$H$2:$H$65536))))),$A552,dati_bdv!L$2:L$65536)","v":0},{"$f":"SUMIF(IF(dati_pdc!$C552=1,dati_bdv!$C$2:$C$65536,IF(dati_pdc!$C552=2,dati_bdv!$D$2:$D$65536,IF(dati_pdc!$C552=3,dati_bdv!$E$2:$E$65536,IF(dati_pdc!$C552=4,dati_bdv!$F$2:$F$65536,IF(dati_pdc!$C552=5,dati_bdv!$G$2:$G$65536,dati_bdv!$H$2:$H$65536))))),$A552,dati_bdv!M$2:M$65536)","v":0},{"$f":"SUMIF(IF(dati_pdc!$C552=1,dati_bdv!$C$2:$C$65536,IF(dati_pdc!$C552=2,dati_bdv!$D$2:$D$65536,IF(dati_pdc!$C552=3,dati_bdv!$E$2:$E$65536,IF(dati_pdc!$C552=4,dati_bdv!$F$2:$F$65536,IF(dati_pdc!$C552=5,dati_bdv!$G$2:$G$65536,dati_bdv!$H$2:$H$65536))))),$A552,dati_bdv!N$2:N$65536)","v":0}]
[{"$f":"dati_pdc!A553","v":0},{"$f":"SUMIF(IF(dati_pdc!$C553=1,dati_bdv!$C$2:$C$65536,IF(dati_pdc!$C553=2,dati_bdv!$D$2:$D$65536,IF(dati_pdc!$C553=3,dati_bdv!$E$2:$E$65536,IF(dati_pdc!$C553=4,dati_bdv!$F$2:$F$65536,IF(dati_pdc!$C553=5,dati_bdv!$G$2:$G$65536,dati_bdv!$H$2:$H$65536))))),$A553,dati_bdv!J$2:J$65536)","v":0},{"$f":"SUMIF(IF(dati_pdc!$C553=1,dati_bdv!$C$2:$C$65536,IF(dati_pdc!$C553=2,dati_bdv!$D$2:$D$65536,IF(dati_pdc!$C553=3,dati_bdv!$E$2:$E$65536,IF(dati_pdc!$C553=4,dati_bdv!$F$2:$F$65536,IF(dati_pdc!$C553=5,dati_bdv!$G$2:$G$65536,dati_bdv!$H$2:$H$65536))))),$A553,dati_bdv!K$2:K$65536)","v":0},{"$f":"SUMIF(IF(dati_pdc!$C553=1,dati_bdv!$C$2:$C$65536,IF(dati_pdc!$C553=2,dati_bdv!$D$2:$D$65536,IF(dati_pdc!$C553=3,dati_bdv!$E$2:$E$65536,IF(dati_pdc!$C553=4,dati_bdv!$F$2:$F$65536,IF(dati_pdc!$C553=5,dati_bdv!$G$2:$G$65536,dati_bdv!$H$2:$H$65536))))),$A553,dati_bdv!L$2:L$65536)","v":0},{"$f":"SUMIF(IF(dati_pdc!$C553=1,dati_bdv!$C$2:$C$65536,IF(dati_pdc!$C553=2,dati_bdv!$D$2:$D$65536,IF(dati_pdc!$C553=3,dati_bdv!$E$2:$E$65536,IF(dati_pdc!$C553=4,dati_bdv!$F$2:$F$65536,IF(dati_pdc!$C553=5,dati_bdv!$G$2:$G$65536,dati_bdv!$H$2:$H$65536))))),$A553,dati_bdv!M$2:M$65536)","v":0},{"$f":"SUMIF(IF(dati_pdc!$C553=1,dati_bdv!$C$2:$C$65536,IF(dati_pdc!$C553=2,dati_bdv!$D$2:$D$65536,IF(dati_pdc!$C553=3,dati_bdv!$E$2:$E$65536,IF(dati_pdc!$C553=4,dati_bdv!$F$2:$F$65536,IF(dati_pdc!$C553=5,dati_bdv!$G$2:$G$65536,dati_bdv!$H$2:$H$65536))))),$A553,dati_bdv!N$2:N$65536)","v":0}]
[{"$f":"dati_pdc!A554","v":0},{"$f":"SUMIF(IF(dati_pdc!$C554=1,dati_bdv!$C$2:$C$65536,IF(dati_pdc!$C554=2,dati_bdv!$D$2:$D$65536,IF(dati_pdc!$C554=3,dati_bdv!$E$2:$E$65536,IF(dati_pdc!$C554=4,dati_bdv!$F$2:$F$65536,IF(dati_pdc!$C554=5,dati_bdv!$G$2:$G$65536,dati_bdv!$H$2:$H$65536))))),$A554,dati_bdv!J$2:J$65536)","v":0},{"$f":"SUMIF(IF(dati_pdc!$C554=1,dati_bdv!$C$2:$C$65536,IF(dati_pdc!$C554=2,dati_bdv!$D$2:$D$65536,IF(dati_pdc!$C554=3,dati_bdv!$E$2:$E$65536,IF(dati_pdc!$C554=4,dati_bdv!$F$2:$F$65536,IF(dati_pdc!$C554=5,dati_bdv!$G$2:$G$65536,dati_bdv!$H$2:$H$65536))))),$A554,dati_bdv!K$2:K$65536)","v":0},{"$f":"SUMIF(IF(dati_pdc!$C554=1,dati_bdv!$C$2:$C$65536,IF(dati_pdc!$C554=2,dati_bdv!$D$2:$D$65536,IF(dati_pdc!$C554=3,dati_bdv!$E$2:$E$65536,IF(dati_pdc!$C554=4,dati_bdv!$F$2:$F$65536,IF(dati_pdc!$C554=5,dati_bdv!$G$2:$G$65536,dati_bdv!$H$2:$H$65536))))),$A554,dati_bdv!L$2:L$65536)","v":0},{"$f":"SUMIF(IF(dati_pdc!$C554=1,dati_bdv!$C$2:$C$65536,IF(dati_pdc!$C554=2,dati_bdv!$D$2:$D$65536,IF(dati_pdc!$C554=3,dati_bdv!$E$2:$E$65536,IF(dati_pdc!$C554=4,dati_bdv!$F$2:$F$65536,IF(dati_pdc!$C554=5,dati_bdv!$G$2:$G$65536,dati_bdv!$H$2:$H$65536))))),$A554,dati_bdv!M$2:M$65536)","v":0},{"$f":"SUMIF(IF(dati_pdc!$C554=1,dati_bdv!$C$2:$C$65536,IF(dati_pdc!$C554=2,dati_bdv!$D$2:$D$65536,IF(dati_pdc!$C554=3,dati_bdv!$E$2:$E$65536,IF(dati_pdc!$C554=4,dati_bdv!$F$2:$F$65536,IF(dati_pdc!$C554=5,dati_bdv!$G$2:$G$65536,dati_bdv!$H$2:$H$65536))))),$A554,dati_bdv!N$2:N$65536)","v":0}]
[{"$f":"dati_pdc!A555","v":0},{"$f":"SUMIF(IF(dati_pdc!$C555=1,dati_bdv!$C$2:$C$65536,IF(dati_pdc!$C555=2,dati_bdv!$D$2:$D$65536,IF(dati_pdc!$C555=3,dati_bdv!$E$2:$E$65536,IF(dati_pdc!$C555=4,dati_bdv!$F$2:$F$65536,IF(dati_pdc!$C555=5,dati_bdv!$G$2:$G$65536,dati_bdv!$H$2:$H$65536))))),$A555,dati_bdv!J$2:J$65536)","v":0},{"$f":"SUMIF(IF(dati_pdc!$C555=1,dati_bdv!$C$2:$C$65536,IF(dati_pdc!$C555=2,dati_bdv!$D$2:$D$65536,IF(dati_pdc!$C555=3,dati_bdv!$E$2:$E$65536,IF(dati_pdc!$C555=4,dati_bdv!$F$2:$F$65536,IF(dati_pdc!$C555=5,dati_bdv!$G$2:$G$65536,dati_bdv!$H$2:$H$65536))))),$A555,dati_bdv!K$2:K$65536)","v":0},{"$f":"SUMIF(IF(dati_pdc!$C555=1,dati_bdv!$C$2:$C$65536,IF(dati_pdc!$C555=2,dati_bdv!$D$2:$D$65536,IF(dati_pdc!$C555=3,dati_bdv!$E$2:$E$65536,IF(dati_pdc!$C555=4,dati_bdv!$F$2:$F$65536,IF(dati_pdc!$C555=5,dati_bdv!$G$2:$G$65536,dati_bdv!$H$2:$H$65536))))),$A555,dati_bdv!L$2:L$65536)","v":0},{"$f":"SUMIF(IF(dati_pdc!$C555=1,dati_bdv!$C$2:$C$65536,IF(dati_pdc!$C555=2,dati_bdv!$D$2:$D$65536,IF(dati_pdc!$C555=3,dati_bdv!$E$2:$E$65536,IF(dati_pdc!$C555=4,dati_bdv!$F$2:$F$65536,IF(dati_pdc!$C555=5,dati_bdv!$G$2:$G$65536,dati_bdv!$H$2:$H$65536))))),$A555,dati_bdv!M$2:M$65536)","v":0},{"$f":"SUMIF(IF(dati_pdc!$C555=1,dati_bdv!$C$2:$C$65536,IF(dati_pdc!$C555=2,dati_bdv!$D$2:$D$65536,IF(dati_pdc!$C555=3,dati_bdv!$E$2:$E$65536,IF(dati_pdc!$C555=4,dati_bdv!$F$2:$F$65536,IF(dati_pdc!$C555=5,dati_bdv!$G$2:$G$65536,dati_bdv!$H$2:$H$65536))))),$A555,dati_bdv!N$2:N$65536)","v":0}]
[{"$f":"dati_pdc!A556","v":0},{"$f":"SUMIF(IF(dati_pdc!$C556=1,dati_bdv!$C$2:$C$65536,IF(dati_pdc!$C556=2,dati_bdv!$D$2:$D$65536,IF(dati_pdc!$C556=3,dati_bdv!$E$2:$E$65536,IF(dati_pdc!$C556=4,dati_bdv!$F$2:$F$65536,IF(dati_pdc!$C556=5,dati_bdv!$G$2:$G$65536,dati_bdv!$H$2:$H$65536))))),$A556,dati_bdv!J$2:J$65536)","v":0},{"$f":"SUMIF(IF(dati_pdc!$C556=1,dati_bdv!$C$2:$C$65536,IF(dati_pdc!$C556=2,dati_bdv!$D$2:$D$65536,IF(dati_pdc!$C556=3,dati_bdv!$E$2:$E$65536,IF(dati_pdc!$C556=4,dati_bdv!$F$2:$F$65536,IF(dati_pdc!$C556=5,dati_bdv!$G$2:$G$65536,dati_bdv!$H$2:$H$65536))))),$A556,dati_bdv!K$2:K$65536)","v":0},{"$f":"SUMIF(IF(dati_pdc!$C556=1,dati_bdv!$C$2:$C$65536,IF(dati_pdc!$C556=2,dati_bdv!$D$2:$D$65536,IF(dati_pdc!$C556=3,dati_bdv!$E$2:$E$65536,IF(dati_pdc!$C556=4,dati_bdv!$F$2:$F$65536,IF(dati_pdc!$C556=5,dati_bdv!$G$2:$G$65536,dati_bdv!$H$2:$H$65536))))),$A556,dati_bdv!L$2:L$65536)","v":0},{"$f":"SUMIF(IF(dati_pdc!$C556=1,dati_bdv!$C$2:$C$65536,IF(dati_pdc!$C556=2,dati_bdv!$D$2:$D$65536,IF(dati_pdc!$C556=3,dati_bdv!$E$2:$E$65536,IF(dati_pdc!$C556=4,dati_bdv!$F$2:$F$65536,IF(dati_pdc!$C556=5,dati_bdv!$G$2:$G$65536,dati_bdv!$H$2:$H$65536))))),$A556,dati_bdv!M$2:M$65536)","v":0},{"$f":"SUMIF(IF(dati_pdc!$C556=1,dati_bdv!$C$2:$C$65536,IF(dati_pdc!$C556=2,dati_bdv!$D$2:$D$65536,IF(dati_pdc!$C556=3,dati_bdv!$E$2:$E$65536,IF(dati_pdc!$C556=4,dati_bdv!$F$2:$F$65536,IF(dati_pdc!$C556=5,dati_bdv!$G$2:$G$65536,dati_bdv!$H$2:$H$65536))))),$A556,dati_bdv!N$2:N$65536)","v":0}]
[{"$f":"dati_pdc!A557","v":0},{"$f":"SUMIF(IF(dati_pdc!$C557=1,dati_bdv!$C$2:$C$65536,IF(dati_pdc!$C557=2,dati_bdv!$D$2:$D$65536,IF(dati_pdc!$C557=3,dati_bdv!$E$2:$E$65536,IF(dati_pdc!$C557=4,dati_bdv!$F$2:$F$65536,IF(dati_pdc!$C557=5,dati_bdv!$G$2:$G$65536,dati_bdv!$H$2:$H$65536))))),$A557,dati_bdv!J$2:J$65536)","v":0},{"$f":"SUMIF(IF(dati_pdc!$C557=1,dati_bdv!$C$2:$C$65536,IF(dati_pdc!$C557=2,dati_bdv!$D$2:$D$65536,IF(dati_pdc!$C557=3,dati_bdv!$E$2:$E$65536,IF(dati_pdc!$C557=4,dati_bdv!$F$2:$F$65536,IF(dati_pdc!$C557=5,dati_bdv!$G$2:$G$65536,dati_bdv!$H$2:$H$65536))))),$A557,dati_bdv!K$2:K$65536)","v":0},{"$f":"SUMIF(IF(dati_pdc!$C557=1,dati_bdv!$C$2:$C$65536,IF(dati_pdc!$C557=2,dati_bdv!$D$2:$D$65536,IF(dati_pdc!$C557=3,dati_bdv!$E$2:$E$65536,IF(dati_pdc!$C557=4,dati_bdv!$F$2:$F$65536,IF(dati_pdc!$C557=5,dati_bdv!$G$2:$G$65536,dati_bdv!$H$2:$H$65536))))),$A557,dati_bdv!L$2:L$65536)","v":0},{"$f":"SUMIF(IF(dati_pdc!$C557=1,dati_bdv!$C$2:$C$65536,IF(dati_pdc!$C557=2,dati_bdv!$D$2:$D$65536,IF(dati_pdc!$C557=3,dati_bdv!$E$2:$E$65536,IF(dati_pdc!$C557=4,dati_bdv!$F$2:$F$65536,IF(dati_pdc!$C557=5,dati_bdv!$G$2:$G$65536,dati_bdv!$H$2:$H$65536))))),$A557,dati_bdv!M$2:M$65536)","v":0},{"$f":"SUMIF(IF(dati_pdc!$C557=1,dati_bdv!$C$2:$C$65536,IF(dati_pdc!$C557=2,dati_bdv!$D$2:$D$65536,IF(dati_pdc!$C557=3,dati_bdv!$E$2:$E$65536,IF(dati_pdc!$C557=4,dati_bdv!$F$2:$F$65536,IF(dati_pdc!$C557=5,dati_bdv!$G$2:$G$65536,dati_bdv!$H$2:$H$65536))))),$A557,dati_bdv!N$2:N$65536)","v":0}]
[{"$f":"dati_pdc!A558","v":0},{"$f":"SUMIF(IF(dati_pdc!$C558=1,dati_bdv!$C$2:$C$65536,IF(dati_pdc!$C558=2,dati_bdv!$D$2:$D$65536,IF(dati_pdc!$C558=3,dati_bdv!$E$2:$E$65536,IF(dati_pdc!$C558=4,dati_bdv!$F$2:$F$65536,IF(dati_pdc!$C558=5,dati_bdv!$G$2:$G$65536,dati_bdv!$H$2:$H$65536))))),$A558,dati_bdv!J$2:J$65536)","v":0},{"$f":"SUMIF(IF(dati_pdc!$C558=1,dati_bdv!$C$2:$C$65536,IF(dati_pdc!$C558=2,dati_bdv!$D$2:$D$65536,IF(dati_pdc!$C558=3,dati_bdv!$E$2:$E$65536,IF(dati_pdc!$C558=4,dati_bdv!$F$2:$F$65536,IF(dati_pdc!$C558=5,dati_bdv!$G$2:$G$65536,dati_bdv!$H$2:$H$65536))))),$A558,dati_bdv!K$2:K$65536)","v":0},{"$f":"SUMIF(IF(dati_pdc!$C558=1,dati_bdv!$C$2:$C$65536,IF(dati_pdc!$C558=2,dati_bdv!$D$2:$D$65536,IF(dati_pdc!$C558=3,dati_bdv!$E$2:$E$65536,IF(dati_pdc!$C558=4,dati_bdv!$F$2:$F$65536,IF(dati_pdc!$C558=5,dati_bdv!$G$2:$G$65536,dati_bdv!$H$2:$H$65536))))),$A558,dati_bdv!L$2:L$65536)","v":0},{"$f":"SUMIF(IF(dati_pdc!$C558=1,dati_bdv!$C$2:$C$65536,IF(dati_pdc!$C558=2,dati_bdv!$D$2:$D$65536,IF(dati_pdc!$C558=3,dati_bdv!$E$2:$E$65536,IF(dati_pdc!$C558=4,dati_bdv!$F$2:$F$65536,IF(dati_pdc!$C558=5,dati_bdv!$G$2:$G$65536,dati_bdv!$H$2:$H$65536))))),$A558,dati_bdv!M$2:M$65536)","v":0},{"$f":"SUMIF(IF(dati_pdc!$C558=1,dati_bdv!$C$2:$C$65536,IF(dati_pdc!$C558=2,dati_bdv!$D$2:$D$65536,IF(dati_pdc!$C558=3,dati_bdv!$E$2:$E$65536,IF(dati_pdc!$C558=4,dati_bdv!$F$2:$F$65536,IF(dati_pdc!$C558=5,dati_bdv!$G$2:$G$65536,dati_bdv!$H$2:$H$65536))))),$A558,dati_bdv!N$2:N$65536)","v":0}]
[{"$f":"dati_pdc!A559","v":0},{"$f":"SUMIF(IF(dati_pdc!$C559=1,dati_bdv!$C$2:$C$65536,IF(dati_pdc!$C559=2,dati_bdv!$D$2:$D$65536,IF(dati_pdc!$C559=3,dati_bdv!$E$2:$E$65536,IF(dati_pdc!$C559=4,dati_bdv!$F$2:$F$65536,IF(dati_pdc!$C559=5,dati_bdv!$G$2:$G$65536,dati_bdv!$H$2:$H$65536))))),$A559,dati_bdv!J$2:J$65536)","v":0},{"$f":"SUMIF(IF(dati_pdc!$C559=1,dati_bdv!$C$2:$C$65536,IF(dati_pdc!$C559=2,dati_bdv!$D$2:$D$65536,IF(dati_pdc!$C559=3,dati_bdv!$E$2:$E$65536,IF(dati_pdc!$C559=4,dati_bdv!$F$2:$F$65536,IF(dati_pdc!$C559=5,dati_bdv!$G$2:$G$65536,dati_bdv!$H$2:$H$65536))))),$A559,dati_bdv!K$2:K$65536)","v":0},{"$f":"SUMIF(IF(dati_pdc!$C559=1,dati_bdv!$C$2:$C$65536,IF(dati_pdc!$C559=2,dati_bdv!$D$2:$D$65536,IF(dati_pdc!$C559=3,dati_bdv!$E$2:$E$65536,IF(dati_pdc!$C559=4,dati_bdv!$F$2:$F$65536,IF(dati_pdc!$C559=5,dati_bdv!$G$2:$G$65536,dati_bdv!$H$2:$H$65536))))),$A559,dati_bdv!L$2:L$65536)","v":0},{"$f":"SUMIF(IF(dati_pdc!$C559=1,dati_bdv!$C$2:$C$65536,IF(dati_pdc!$C559=2,dati_bdv!$D$2:$D$65536,IF(dati_pdc!$C559=3,dati_bdv!$E$2:$E$65536,IF(dati_pdc!$C559=4,dati_bdv!$F$2:$F$65536,IF(dati_pdc!$C559=5,dati_bdv!$G$2:$G$65536,dati_bdv!$H$2:$H$65536))))),$A559,dati_bdv!M$2:M$65536)","v":0},{"$f":"SUMIF(IF(dati_pdc!$C559=1,dati_bdv!$C$2:$C$65536,IF(dati_pdc!$C559=2,dati_bdv!$D$2:$D$65536,IF(dati_pdc!$C559=3,dati_bdv!$E$2:$E$65536,IF(dati_pdc!$C559=4,dati_bdv!$F$2:$F$65536,IF(dati_pdc!$C559=5,dati_bdv!$G$2:$G$65536,dati_bdv!$H$2:$H$65536))))),$A559,dati_bdv!N$2:N$65536)","v":0}]
[{"$f":"dati_pdc!A560","v":0},{"$f":"SUMIF(IF(dati_pdc!$C560=1,dati_bdv!$C$2:$C$65536,IF(dati_pdc!$C560=2,dati_bdv!$D$2:$D$65536,IF(dati_pdc!$C560=3,dati_bdv!$E$2:$E$65536,IF(dati_pdc!$C560=4,dati_bdv!$F$2:$F$65536,IF(dati_pdc!$C560=5,dati_bdv!$G$2:$G$65536,dati_bdv!$H$2:$H$65536))))),$A560,dati_bdv!J$2:J$65536)","v":0},{"$f":"SUMIF(IF(dati_pdc!$C560=1,dati_bdv!$C$2:$C$65536,IF(dati_pdc!$C560=2,dati_bdv!$D$2:$D$65536,IF(dati_pdc!$C560=3,dati_bdv!$E$2:$E$65536,IF(dati_pdc!$C560=4,dati_bdv!$F$2:$F$65536,IF(dati_pdc!$C560=5,dati_bdv!$G$2:$G$65536,dati_bdv!$H$2:$H$65536))))),$A560,dati_bdv!K$2:K$65536)","v":0},{"$f":"SUMIF(IF(dati_pdc!$C560=1,dati_bdv!$C$2:$C$65536,IF(dati_pdc!$C560=2,dati_bdv!$D$2:$D$65536,IF(dati_pdc!$C560=3,dati_bdv!$E$2:$E$65536,IF(dati_pdc!$C560=4,dati_bdv!$F$2:$F$65536,IF(dati_pdc!$C560=5,dati_bdv!$G$2:$G$65536,dati_bdv!$H$2:$H$65536))))),$A560,dati_bdv!L$2:L$65536)","v":0},{"$f":"SUMIF(IF(dati_pdc!$C560=1,dati_bdv!$C$2:$C$65536,IF(dati_pdc!$C560=2,dati_bdv!$D$2:$D$65536,IF(dati_pdc!$C560=3,dati_bdv!$E$2:$E$65536,IF(dati_pdc!$C560=4,dati_bdv!$F$2:$F$65536,IF(dati_pdc!$C560=5,dati_bdv!$G$2:$G$65536,dati_bdv!$H$2:$H$65536))))),$A560,dati_bdv!M$2:M$65536)","v":0},{"$f":"SUMIF(IF(dati_pdc!$C560=1,dati_bdv!$C$2:$C$65536,IF(dati_pdc!$C560=2,dati_bdv!$D$2:$D$65536,IF(dati_pdc!$C560=3,dati_bdv!$E$2:$E$65536,IF(dati_pdc!$C560=4,dati_bdv!$F$2:$F$65536,IF(dati_pdc!$C560=5,dati_bdv!$G$2:$G$65536,dati_bdv!$H$2:$H$65536))))),$A560,dati_bdv!N$2:N$65536)","v":0}]
[{"$f":"dati_pdc!A561","v":0},{"$f":"SUMIF(IF(dati_pdc!$C561=1,dati_bdv!$C$2:$C$65536,IF(dati_pdc!$C561=2,dati_bdv!$D$2:$D$65536,IF(dati_pdc!$C561=3,dati_bdv!$E$2:$E$65536,IF(dati_pdc!$C561=4,dati_bdv!$F$2:$F$65536,IF(dati_pdc!$C561=5,dati_bdv!$G$2:$G$65536,dati_bdv!$H$2:$H$65536))))),$A561,dati_bdv!J$2:J$65536)","v":0},{"$f":"SUMIF(IF(dati_pdc!$C561=1,dati_bdv!$C$2:$C$65536,IF(dati_pdc!$C561=2,dati_bdv!$D$2:$D$65536,IF(dati_pdc!$C561=3,dati_bdv!$E$2:$E$65536,IF(dati_pdc!$C561=4,dati_bdv!$F$2:$F$65536,IF(dati_pdc!$C561=5,dati_bdv!$G$2:$G$65536,dati_bdv!$H$2:$H$65536))))),$A561,dati_bdv!K$2:K$65536)","v":0},{"$f":"SUMIF(IF(dati_pdc!$C561=1,dati_bdv!$C$2:$C$65536,IF(dati_pdc!$C561=2,dati_bdv!$D$2:$D$65536,IF(dati_pdc!$C561=3,dati_bdv!$E$2:$E$65536,IF(dati_pdc!$C561=4,dati_bdv!$F$2:$F$65536,IF(dati_pdc!$C561=5,dati_bdv!$G$2:$G$65536,dati_bdv!$H$2:$H$65536))))),$A561,dati_bdv!L$2:L$65536)","v":0},{"$f":"SUMIF(IF(dati_pdc!$C561=1,dati_bdv!$C$2:$C$65536,IF(dati_pdc!$C561=2,dati_bdv!$D$2:$D$65536,IF(dati_pdc!$C561=3,dati_bdv!$E$2:$E$65536,IF(dati_pdc!$C561=4,dati_bdv!$F$2:$F$65536,IF(dati_pdc!$C561=5,dati_bdv!$G$2:$G$65536,dati_bdv!$H$2:$H$65536))))),$A561,dati_bdv!M$2:M$65536)","v":0},{"$f":"SUMIF(IF(dati_pdc!$C561=1,dati_bdv!$C$2:$C$65536,IF(dati_pdc!$C561=2,dati_bdv!$D$2:$D$65536,IF(dati_pdc!$C561=3,dati_bdv!$E$2:$E$65536,IF(dati_pdc!$C561=4,dati_bdv!$F$2:$F$65536,IF(dati_pdc!$C561=5,dati_bdv!$G$2:$G$65536,dati_bdv!$H$2:$H$65536))))),$A561,dati_bdv!N$2:N$65536)","v":0}]
[{"$f":"dati_pdc!A562","v":0},{"$f":"SUMIF(IF(dati_pdc!$C562=1,dati_bdv!$C$2:$C$65536,IF(dati_pdc!$C562=2,dati_bdv!$D$2:$D$65536,IF(dati_pdc!$C562=3,dati_bdv!$E$2:$E$65536,IF(dati_pdc!$C562=4,dati_bdv!$F$2:$F$65536,IF(dati_pdc!$C562=5,dati_bdv!$G$2:$G$65536,dati_bdv!$H$2:$H$65536))))),$A562,dati_bdv!J$2:J$65536)","v":0},{"$f":"SUMIF(IF(dati_pdc!$C562=1,dati_bdv!$C$2:$C$65536,IF(dati_pdc!$C562=2,dati_bdv!$D$2:$D$65536,IF(dati_pdc!$C562=3,dati_bdv!$E$2:$E$65536,IF(dati_pdc!$C562=4,dati_bdv!$F$2:$F$65536,IF(dati_pdc!$C562=5,dati_bdv!$G$2:$G$65536,dati_bdv!$H$2:$H$65536))))),$A562,dati_bdv!K$2:K$65536)","v":0},{"$f":"SUMIF(IF(dati_pdc!$C562=1,dati_bdv!$C$2:$C$65536,IF(dati_pdc!$C562=2,dati_bdv!$D$2:$D$65536,IF(dati_pdc!$C562=3,dati_bdv!$E$2:$E$65536,IF(dati_pdc!$C562=4,dati_bdv!$F$2:$F$65536,IF(dati_pdc!$C562=5,dati_bdv!$G$2:$G$65536,dati_bdv!$H$2:$H$65536))))),$A562,dati_bdv!L$2:L$65536)","v":0},{"$f":"SUMIF(IF(dati_pdc!$C562=1,dati_bdv!$C$2:$C$65536,IF(dati_pdc!$C562=2,dati_bdv!$D$2:$D$65536,IF(dati_pdc!$C562=3,dati_bdv!$E$2:$E$65536,IF(dati_pdc!$C562=4,dati_bdv!$F$2:$F$65536,IF(dati_pdc!$C562=5,dati_bdv!$G$2:$G$65536,dati_bdv!$H$2:$H$65536))))),$A562,dati_bdv!M$2:M$65536)","v":0},{"$f":"SUMIF(IF(dati_pdc!$C562=1,dati_bdv!$C$2:$C$65536,IF(dati_pdc!$C562=2,dati_bdv!$D$2:$D$65536,IF(dati_pdc!$C562=3,dati_bdv!$E$2:$E$65536,IF(dati_pdc!$C562=4,dati_bdv!$F$2:$F$65536,IF(dati_pdc!$C562=5,dati_bdv!$G$2:$G$65536,dati_bdv!$H$2:$H$65536))))),$A562,dati_bdv!N$2:N$65536)","v":0}]
[{"$f":"dati_pdc!A563","v":0},{"$f":"SUMIF(IF(dati_pdc!$C563=1,dati_bdv!$C$2:$C$65536,IF(dati_pdc!$C563=2,dati_bdv!$D$2:$D$65536,IF(dati_pdc!$C563=3,dati_bdv!$E$2:$E$65536,IF(dati_pdc!$C563=4,dati_bdv!$F$2:$F$65536,IF(dati_pdc!$C563=5,dati_bdv!$G$2:$G$65536,dati_bdv!$H$2:$H$65536))))),$A563,dati_bdv!J$2:J$65536)","v":0},{"$f":"SUMIF(IF(dati_pdc!$C563=1,dati_bdv!$C$2:$C$65536,IF(dati_pdc!$C563=2,dati_bdv!$D$2:$D$65536,IF(dati_pdc!$C563=3,dati_bdv!$E$2:$E$65536,IF(dati_pdc!$C563=4,dati_bdv!$F$2:$F$65536,IF(dati_pdc!$C563=5,dati_bdv!$G$2:$G$65536,dati_bdv!$H$2:$H$65536))))),$A563,dati_bdv!K$2:K$65536)","v":0},{"$f":"SUMIF(IF(dati_pdc!$C563=1,dati_bdv!$C$2:$C$65536,IF(dati_pdc!$C563=2,dati_bdv!$D$2:$D$65536,IF(dati_pdc!$C563=3,dati_bdv!$E$2:$E$65536,IF(dati_pdc!$C563=4,dati_bdv!$F$2:$F$65536,IF(dati_pdc!$C563=5,dati_bdv!$G$2:$G$65536,dati_bdv!$H$2:$H$65536))))),$A563,dati_bdv!L$2:L$65536)","v":0},{"$f":"SUMIF(IF(dati_pdc!$C563=1,dati_bdv!$C$2:$C$65536,IF(dati_pdc!$C563=2,dati_bdv!$D$2:$D$65536,IF(dati_pdc!$C563=3,dati_bdv!$E$2:$E$65536,IF(dati_pdc!$C563=4,dati_bdv!$F$2:$F$65536,IF(dati_pdc!$C563=5,dati_bdv!$G$2:$G$65536,dati_bdv!$H$2:$H$65536))))),$A563,dati_bdv!M$2:M$65536)","v":0},{"$f":"SUMIF(IF(dati_pdc!$C563=1,dati_bdv!$C$2:$C$65536,IF(dati_pdc!$C563=2,dati_bdv!$D$2:$D$65536,IF(dati_pdc!$C563=3,dati_bdv!$E$2:$E$65536,IF(dati_pdc!$C563=4,dati_bdv!$F$2:$F$65536,IF(dati_pdc!$C563=5,dati_bdv!$G$2:$G$65536,dati_bdv!$H$2:$H$65536))))),$A563,dati_bdv!N$2:N$65536)","v":0}]
[{"$f":"dati_pdc!A564","v":0},{"$f":"SUMIF(IF(dati_pdc!$C564=1,dati_bdv!$C$2:$C$65536,IF(dati_pdc!$C564=2,dati_bdv!$D$2:$D$65536,IF(dati_pdc!$C564=3,dati_bdv!$E$2:$E$65536,IF(dati_pdc!$C564=4,dati_bdv!$F$2:$F$65536,IF(dati_pdc!$C564=5,dati_bdv!$G$2:$G$65536,dati_bdv!$H$2:$H$65536))))),$A564,dati_bdv!J$2:J$65536)","v":0},{"$f":"SUMIF(IF(dati_pdc!$C564=1,dati_bdv!$C$2:$C$65536,IF(dati_pdc!$C564=2,dati_bdv!$D$2:$D$65536,IF(dati_pdc!$C564=3,dati_bdv!$E$2:$E$65536,IF(dati_pdc!$C564=4,dati_bdv!$F$2:$F$65536,IF(dati_pdc!$C564=5,dati_bdv!$G$2:$G$65536,dati_bdv!$H$2:$H$65536))))),$A564,dati_bdv!K$2:K$65536)","v":0},{"$f":"SUMIF(IF(dati_pdc!$C564=1,dati_bdv!$C$2:$C$65536,IF(dati_pdc!$C564=2,dati_bdv!$D$2:$D$65536,IF(dati_pdc!$C564=3,dati_bdv!$E$2:$E$65536,IF(dati_pdc!$C564=4,dati_bdv!$F$2:$F$65536,IF(dati_pdc!$C564=5,dati_bdv!$G$2:$G$65536,dati_bdv!$H$2:$H$65536))))),$A564,dati_bdv!L$2:L$65536)","v":0},{"$f":"SUMIF(IF(dati_pdc!$C564=1,dati_bdv!$C$2:$C$65536,IF(dati_pdc!$C564=2,dati_bdv!$D$2:$D$65536,IF(dati_pdc!$C564=3,dati_bdv!$E$2:$E$65536,IF(dati_pdc!$C564=4,dati_bdv!$F$2:$F$65536,IF(dati_pdc!$C564=5,dati_bdv!$G$2:$G$65536,dati_bdv!$H$2:$H$65536))))),$A564,dati_bdv!M$2:M$65536)","v":0},{"$f":"SUMIF(IF(dati_pdc!$C564=1,dati_bdv!$C$2:$C$65536,IF(dati_pdc!$C564=2,dati_bdv!$D$2:$D$65536,IF(dati_pdc!$C564=3,dati_bdv!$E$2:$E$65536,IF(dati_pdc!$C564=4,dati_bdv!$F$2:$F$65536,IF(dati_pdc!$C564=5,dati_bdv!$G$2:$G$65536,dati_bdv!$H$2:$H$65536))))),$A564,dati_bdv!N$2:N$65536)","v":0}]
[{"$f":"dati_pdc!A565","v":0},{"$f":"SUMIF(IF(dati_pdc!$C565=1,dati_bdv!$C$2:$C$65536,IF(dati_pdc!$C565=2,dati_bdv!$D$2:$D$65536,IF(dati_pdc!$C565=3,dati_bdv!$E$2:$E$65536,IF(dati_pdc!$C565=4,dati_bdv!$F$2:$F$65536,IF(dati_pdc!$C565=5,dati_bdv!$G$2:$G$65536,dati_bdv!$H$2:$H$65536))))),$A565,dati_bdv!J$2:J$65536)","v":0},{"$f":"SUMIF(IF(dati_pdc!$C565=1,dati_bdv!$C$2:$C$65536,IF(dati_pdc!$C565=2,dati_bdv!$D$2:$D$65536,IF(dati_pdc!$C565=3,dati_bdv!$E$2:$E$65536,IF(dati_pdc!$C565=4,dati_bdv!$F$2:$F$65536,IF(dati_pdc!$C565=5,dati_bdv!$G$2:$G$65536,dati_bdv!$H$2:$H$65536))))),$A565,dati_bdv!K$2:K$65536)","v":0},{"$f":"SUMIF(IF(dati_pdc!$C565=1,dati_bdv!$C$2:$C$65536,IF(dati_pdc!$C565=2,dati_bdv!$D$2:$D$65536,IF(dati_pdc!$C565=3,dati_bdv!$E$2:$E$65536,IF(dati_pdc!$C565=4,dati_bdv!$F$2:$F$65536,IF(dati_pdc!$C565=5,dati_bdv!$G$2:$G$65536,dati_bdv!$H$2:$H$65536))))),$A565,dati_bdv!L$2:L$65536)","v":0},{"$f":"SUMIF(IF(dati_pdc!$C565=1,dati_bdv!$C$2:$C$65536,IF(dati_pdc!$C565=2,dati_bdv!$D$2:$D$65536,IF(dati_pdc!$C565=3,dati_bdv!$E$2:$E$65536,IF(dati_pdc!$C565=4,dati_bdv!$F$2:$F$65536,IF(dati_pdc!$C565=5,dati_bdv!$G$2:$G$65536,dati_bdv!$H$2:$H$65536))))),$A565,dati_bdv!M$2:M$65536)","v":0},{"$f":"SUMIF(IF(dati_pdc!$C565=1,dati_bdv!$C$2:$C$65536,IF(dati_pdc!$C565=2,dati_bdv!$D$2:$D$65536,IF(dati_pdc!$C565=3,dati_bdv!$E$2:$E$65536,IF(dati_pdc!$C565=4,dati_bdv!$F$2:$F$65536,IF(dati_pdc!$C565=5,dati_bdv!$G$2:$G$65536,dati_bdv!$H$2:$H$65536))))),$A565,dati_bdv!N$2:N$65536)","v":0}]
[{"$f":"dati_pdc!A566","v":0},{"$f":"SUMIF(IF(dati_pdc!$C566=1,dati_bdv!$C$2:$C$65536,IF(dati_pdc!$C566=2,dati_bdv!$D$2:$D$65536,IF(dati_pdc!$C566=3,dati_bdv!$E$2:$E$65536,IF(dati_pdc!$C566=4,dati_bdv!$F$2:$F$65536,IF(dati_pdc!$C566=5,dati_bdv!$G$2:$G$65536,dati_bdv!$H$2:$H$65536))))),$A566,dati_bdv!J$2:J$65536)","v":0},{"$f":"SUMIF(IF(dati_pdc!$C566=1,dati_bdv!$C$2:$C$65536,IF(dati_pdc!$C566=2,dati_bdv!$D$2:$D$65536,IF(dati_pdc!$C566=3,dati_bdv!$E$2:$E$65536,IF(dati_pdc!$C566=4,dati_bdv!$F$2:$F$65536,IF(dati_pdc!$C566=5,dati_bdv!$G$2:$G$65536,dati_bdv!$H$2:$H$65536))))),$A566,dati_bdv!K$2:K$65536)","v":0},{"$f":"SUMIF(IF(dati_pdc!$C566=1,dati_bdv!$C$2:$C$65536,IF(dati_pdc!$C566=2,dati_bdv!$D$2:$D$65536,IF(dati_pdc!$C566=3,dati_bdv!$E$2:$E$65536,IF(dati_pdc!$C566=4,dati_bdv!$F$2:$F$65536,IF(dati_pdc!$C566=5,dati_bdv!$G$2:$G$65536,dati_bdv!$H$2:$H$65536))))),$A566,dati_bdv!L$2:L$65536)","v":0},{"$f":"SUMIF(IF(dati_pdc!$C566=1,dati_bdv!$C$2:$C$65536,IF(dati_pdc!$C566=2,dati_bdv!$D$2:$D$65536,IF(dati_pdc!$C566=3,dati_bdv!$E$2:$E$65536,IF(dati_pdc!$C566=4,dati_bdv!$F$2:$F$65536,IF(dati_pdc!$C566=5,dati_bdv!$G$2:$G$65536,dati_bdv!$H$2:$H$65536))))),$A566,dati_bdv!M$2:M$65536)","v":0},{"$f":"SUMIF(IF(dati_pdc!$C566=1,dati_bdv!$C$2:$C$65536,IF(dati_pdc!$C566=2,dati_bdv!$D$2:$D$65536,IF(dati_pdc!$C566=3,dati_bdv!$E$2:$E$65536,IF(dati_pdc!$C566=4,dati_bdv!$F$2:$F$65536,IF(dati_pdc!$C566=5,dati_bdv!$G$2:$G$65536,dati_bdv!$H$2:$H$65536))))),$A566,dati_bdv!N$2:N$65536)","v":0}]
[{"$f":"dati_pdc!A567","v":0},{"$f":"SUMIF(IF(dati_pdc!$C567=1,dati_bdv!$C$2:$C$65536,IF(dati_pdc!$C567=2,dati_bdv!$D$2:$D$65536,IF(dati_pdc!$C567=3,dati_bdv!$E$2:$E$65536,IF(dati_pdc!$C567=4,dati_bdv!$F$2:$F$65536,IF(dati_pdc!$C567=5,dati_bdv!$G$2:$G$65536,dati_bdv!$H$2:$H$65536))))),$A567,dati_bdv!J$2:J$65536)","v":0},{"$f":"SUMIF(IF(dati_pdc!$C567=1,dati_bdv!$C$2:$C$65536,IF(dati_pdc!$C567=2,dati_bdv!$D$2:$D$65536,IF(dati_pdc!$C567=3,dati_bdv!$E$2:$E$65536,IF(dati_pdc!$C567=4,dati_bdv!$F$2:$F$65536,IF(dati_pdc!$C567=5,dati_bdv!$G$2:$G$65536,dati_bdv!$H$2:$H$65536))))),$A567,dati_bdv!K$2:K$65536)","v":0},{"$f":"SUMIF(IF(dati_pdc!$C567=1,dati_bdv!$C$2:$C$65536,IF(dati_pdc!$C567=2,dati_bdv!$D$2:$D$65536,IF(dati_pdc!$C567=3,dati_bdv!$E$2:$E$65536,IF(dati_pdc!$C567=4,dati_bdv!$F$2:$F$65536,IF(dati_pdc!$C567=5,dati_bdv!$G$2:$G$65536,dati_bdv!$H$2:$H$65536))))),$A567,dati_bdv!L$2:L$65536)","v":0},{"$f":"SUMIF(IF(dati_pdc!$C567=1,dati_bdv!$C$2:$C$65536,IF(dati_pdc!$C567=2,dati_bdv!$D$2:$D$65536,IF(dati_pdc!$C567=3,dati_bdv!$E$2:$E$65536,IF(dati_pdc!$C567=4,dati_bdv!$F$2:$F$65536,IF(dati_pdc!$C567=5,dati_bdv!$G$2:$G$65536,dati_bdv!$H$2:$H$65536))))),$A567,dati_bdv!M$2:M$65536)","v":0},{"$f":"SUMIF(IF(dati_pdc!$C567=1,dati_bdv!$C$2:$C$65536,IF(dati_pdc!$C567=2,dati_bdv!$D$2:$D$65536,IF(dati_pdc!$C567=3,dati_bdv!$E$2:$E$65536,IF(dati_pdc!$C567=4,dati_bdv!$F$2:$F$65536,IF(dati_pdc!$C567=5,dati_bdv!$G$2:$G$65536,dati_bdv!$H$2:$H$65536))))),$A567,dati_bdv!N$2:N$65536)","v":0}]
[{"$f":"dati_pdc!A568","v":0},{"$f":"SUMIF(IF(dati_pdc!$C568=1,dati_bdv!$C$2:$C$65536,IF(dati_pdc!$C568=2,dati_bdv!$D$2:$D$65536,IF(dati_pdc!$C568=3,dati_bdv!$E$2:$E$65536,IF(dati_pdc!$C568=4,dati_bdv!$F$2:$F$65536,IF(dati_pdc!$C568=5,dati_bdv!$G$2:$G$65536,dati_bdv!$H$2:$H$65536))))),$A568,dati_bdv!J$2:J$65536)","v":0},{"$f":"SUMIF(IF(dati_pdc!$C568=1,dati_bdv!$C$2:$C$65536,IF(dati_pdc!$C568=2,dati_bdv!$D$2:$D$65536,IF(dati_pdc!$C568=3,dati_bdv!$E$2:$E$65536,IF(dati_pdc!$C568=4,dati_bdv!$F$2:$F$65536,IF(dati_pdc!$C568=5,dati_bdv!$G$2:$G$65536,dati_bdv!$H$2:$H$65536))))),$A568,dati_bdv!K$2:K$65536)","v":0},{"$f":"SUMIF(IF(dati_pdc!$C568=1,dati_bdv!$C$2:$C$65536,IF(dati_pdc!$C568=2,dati_bdv!$D$2:$D$65536,IF(dati_pdc!$C568=3,dati_bdv!$E$2:$E$65536,IF(dati_pdc!$C568=4,dati_bdv!$F$2:$F$65536,IF(dati_pdc!$C568=5,dati_bdv!$G$2:$G$65536,dati_bdv!$H$2:$H$65536))))),$A568,dati_bdv!L$2:L$65536)","v":0},{"$f":"SUMIF(IF(dati_pdc!$C568=1,dati_bdv!$C$2:$C$65536,IF(dati_pdc!$C568=2,dati_bdv!$D$2:$D$65536,IF(dati_pdc!$C568=3,dati_bdv!$E$2:$E$65536,IF(dati_pdc!$C568=4,dati_bdv!$F$2:$F$65536,IF(dati_pdc!$C568=5,dati_bdv!$G$2:$G$65536,dati_bdv!$H$2:$H$65536))))),$A568,dati_bdv!M$2:M$65536)","v":0},{"$f":"SUMIF(IF(dati_pdc!$C568=1,dati_bdv!$C$2:$C$65536,IF(dati_pdc!$C568=2,dati_bdv!$D$2:$D$65536,IF(dati_pdc!$C568=3,dati_bdv!$E$2:$E$65536,IF(dati_pdc!$C568=4,dati_bdv!$F$2:$F$65536,IF(dati_pdc!$C568=5,dati_bdv!$G$2:$G$65536,dati_bdv!$H$2:$H$65536))))),$A568,dati_bdv!N$2:N$65536)","v":0}]
[{"$f":"dati_pdc!A569","v":0},{"$f":"SUMIF(IF(dati_pdc!$C569=1,dati_bdv!$C$2:$C$65536,IF(dati_pdc!$C569=2,dati_bdv!$D$2:$D$65536,IF(dati_pdc!$C569=3,dati_bdv!$E$2:$E$65536,IF(dati_pdc!$C569=4,dati_bdv!$F$2:$F$65536,IF(dati_pdc!$C569=5,dati_bdv!$G$2:$G$65536,dati_bdv!$H$2:$H$65536))))),$A569,dati_bdv!J$2:J$65536)","v":0},{"$f":"SUMIF(IF(dati_pdc!$C569=1,dati_bdv!$C$2:$C$65536,IF(dati_pdc!$C569=2,dati_bdv!$D$2:$D$65536,IF(dati_pdc!$C569=3,dati_bdv!$E$2:$E$65536,IF(dati_pdc!$C569=4,dati_bdv!$F$2:$F$65536,IF(dati_pdc!$C569=5,dati_bdv!$G$2:$G$65536,dati_bdv!$H$2:$H$65536))))),$A569,dati_bdv!K$2:K$65536)","v":0},{"$f":"SUMIF(IF(dati_pdc!$C569=1,dati_bdv!$C$2:$C$65536,IF(dati_pdc!$C569=2,dati_bdv!$D$2:$D$65536,IF(dati_pdc!$C569=3,dati_bdv!$E$2:$E$65536,IF(dati_pdc!$C569=4,dati_bdv!$F$2:$F$65536,IF(dati_pdc!$C569=5,dati_bdv!$G$2:$G$65536,dati_bdv!$H$2:$H$65536))))),$A569,dati_bdv!L$2:L$65536)","v":0},{"$f":"SUMIF(IF(dati_pdc!$C569=1,dati_bdv!$C$2:$C$65536,IF(dati_pdc!$C569=2,dati_bdv!$D$2:$D$65536,IF(dati_pdc!$C569=3,dati_bdv!$E$2:$E$65536,IF(dati_pdc!$C569=4,dati_bdv!$F$2:$F$65536,IF(dati_pdc!$C569=5,dati_bdv!$G$2:$G$65536,dati_bdv!$H$2:$H$65536))))),$A569,dati_bdv!M$2:M$65536)","v":0},{"$f":"SUMIF(IF(dati_pdc!$C569=1,dati_bdv!$C$2:$C$65536,IF(dati_pdc!$C569=2,dati_bdv!$D$2:$D$65536,IF(dati_pdc!$C569=3,dati_bdv!$E$2:$E$65536,IF(dati_pdc!$C569=4,dati_bdv!$F$2:$F$65536,IF(dati_pdc!$C569=5,dati_bdv!$G$2:$G$65536,dati_bdv!$H$2:$H$65536))))),$A569,dati_bdv!N$2:N$65536)","v":0}]
[{"$f":"dati_pdc!A570","v":0},{"$f":"SUMIF(IF(dati_pdc!$C570=1,dati_bdv!$C$2:$C$65536,IF(dati_pdc!$C570=2,dati_bdv!$D$2:$D$65536,IF(dati_pdc!$C570=3,dati_bdv!$E$2:$E$65536,IF(dati_pdc!$C570=4,dati_bdv!$F$2:$F$65536,IF(dati_pdc!$C570=5,dati_bdv!$G$2:$G$65536,dati_bdv!$H$2:$H$65536))))),$A570,dati_bdv!J$2:J$65536)","v":0},{"$f":"SUMIF(IF(dati_pdc!$C570=1,dati_bdv!$C$2:$C$65536,IF(dati_pdc!$C570=2,dati_bdv!$D$2:$D$65536,IF(dati_pdc!$C570=3,dati_bdv!$E$2:$E$65536,IF(dati_pdc!$C570=4,dati_bdv!$F$2:$F$65536,IF(dati_pdc!$C570=5,dati_bdv!$G$2:$G$65536,dati_bdv!$H$2:$H$65536))))),$A570,dati_bdv!K$2:K$65536)","v":0},{"$f":"SUMIF(IF(dati_pdc!$C570=1,dati_bdv!$C$2:$C$65536,IF(dati_pdc!$C570=2,dati_bdv!$D$2:$D$65536,IF(dati_pdc!$C570=3,dati_bdv!$E$2:$E$65536,IF(dati_pdc!$C570=4,dati_bdv!$F$2:$F$65536,IF(dati_pdc!$C570=5,dati_bdv!$G$2:$G$65536,dati_bdv!$H$2:$H$65536))))),$A570,dati_bdv!L$2:L$65536)","v":0},{"$f":"SUMIF(IF(dati_pdc!$C570=1,dati_bdv!$C$2:$C$65536,IF(dati_pdc!$C570=2,dati_bdv!$D$2:$D$65536,IF(dati_pdc!$C570=3,dati_bdv!$E$2:$E$65536,IF(dati_pdc!$C570=4,dati_bdv!$F$2:$F$65536,IF(dati_pdc!$C570=5,dati_bdv!$G$2:$G$65536,dati_bdv!$H$2:$H$65536))))),$A570,dati_bdv!M$2:M$65536)","v":0},{"$f":"SUMIF(IF(dati_pdc!$C570=1,dati_bdv!$C$2:$C$65536,IF(dati_pdc!$C570=2,dati_bdv!$D$2:$D$65536,IF(dati_pdc!$C570=3,dati_bdv!$E$2:$E$65536,IF(dati_pdc!$C570=4,dati_bdv!$F$2:$F$65536,IF(dati_pdc!$C570=5,dati_bdv!$G$2:$G$65536,dati_bdv!$H$2:$H$65536))))),$A570,dati_bdv!N$2:N$65536)","v":0}]
[{"$f":"dati_pdc!A571","v":0},{"$f":"SUMIF(IF(dati_pdc!$C571=1,dati_bdv!$C$2:$C$65536,IF(dati_pdc!$C571=2,dati_bdv!$D$2:$D$65536,IF(dati_pdc!$C571=3,dati_bdv!$E$2:$E$65536,IF(dati_pdc!$C571=4,dati_bdv!$F$2:$F$65536,IF(dati_pdc!$C571=5,dati_bdv!$G$2:$G$65536,dati_bdv!$H$2:$H$65536))))),$A571,dati_bdv!J$2:J$65536)","v":0},{"$f":"SUMIF(IF(dati_pdc!$C571=1,dati_bdv!$C$2:$C$65536,IF(dati_pdc!$C571=2,dati_bdv!$D$2:$D$65536,IF(dati_pdc!$C571=3,dati_bdv!$E$2:$E$65536,IF(dati_pdc!$C571=4,dati_bdv!$F$2:$F$65536,IF(dati_pdc!$C571=5,dati_bdv!$G$2:$G$65536,dati_bdv!$H$2:$H$65536))))),$A571,dati_bdv!K$2:K$65536)","v":0},{"$f":"SUMIF(IF(dati_pdc!$C571=1,dati_bdv!$C$2:$C$65536,IF(dati_pdc!$C571=2,dati_bdv!$D$2:$D$65536,IF(dati_pdc!$C571=3,dati_bdv!$E$2:$E$65536,IF(dati_pdc!$C571=4,dati_bdv!$F$2:$F$65536,IF(dati_pdc!$C571=5,dati_bdv!$G$2:$G$65536,dati_bdv!$H$2:$H$65536))))),$A571,dati_bdv!L$2:L$65536)","v":0},{"$f":"SUMIF(IF(dati_pdc!$C571=1,dati_bdv!$C$2:$C$65536,IF(dati_pdc!$C571=2,dati_bdv!$D$2:$D$65536,IF(dati_pdc!$C571=3,dati_bdv!$E$2:$E$65536,IF(dati_pdc!$C571=4,dati_bdv!$F$2:$F$65536,IF(dati_pdc!$C571=5,dati_bdv!$G$2:$G$65536,dati_bdv!$H$2:$H$65536))))),$A571,dati_bdv!M$2:M$65536)","v":0},{"$f":"SUMIF(IF(dati_pdc!$C571=1,dati_bdv!$C$2:$C$65536,IF(dati_pdc!$C571=2,dati_bdv!$D$2:$D$65536,IF(dati_pdc!$C571=3,dati_bdv!$E$2:$E$65536,IF(dati_pdc!$C571=4,dati_bdv!$F$2:$F$65536,IF(dati_pdc!$C571=5,dati_bdv!$G$2:$G$65536,dati_bdv!$H$2:$H$65536))))),$A571,dati_bdv!N$2:N$65536)","v":0}]
[{"$f":"dati_pdc!A572","v":0},{"$f":"SUMIF(IF(dati_pdc!$C572=1,dati_bdv!$C$2:$C$65536,IF(dati_pdc!$C572=2,dati_bdv!$D$2:$D$65536,IF(dati_pdc!$C572=3,dati_bdv!$E$2:$E$65536,IF(dati_pdc!$C572=4,dati_bdv!$F$2:$F$65536,IF(dati_pdc!$C572=5,dati_bdv!$G$2:$G$65536,dati_bdv!$H$2:$H$65536))))),$A572,dati_bdv!J$2:J$65536)","v":0},{"$f":"SUMIF(IF(dati_pdc!$C572=1,dati_bdv!$C$2:$C$65536,IF(dati_pdc!$C572=2,dati_bdv!$D$2:$D$65536,IF(dati_pdc!$C572=3,dati_bdv!$E$2:$E$65536,IF(dati_pdc!$C572=4,dati_bdv!$F$2:$F$65536,IF(dati_pdc!$C572=5,dati_bdv!$G$2:$G$65536,dati_bdv!$H$2:$H$65536))))),$A572,dati_bdv!K$2:K$65536)","v":0},{"$f":"SUMIF(IF(dati_pdc!$C572=1,dati_bdv!$C$2:$C$65536,IF(dati_pdc!$C572=2,dati_bdv!$D$2:$D$65536,IF(dati_pdc!$C572=3,dati_bdv!$E$2:$E$65536,IF(dati_pdc!$C572=4,dati_bdv!$F$2:$F$65536,IF(dati_pdc!$C572=5,dati_bdv!$G$2:$G$65536,dati_bdv!$H$2:$H$65536))))),$A572,dati_bdv!L$2:L$65536)","v":0},{"$f":"SUMIF(IF(dati_pdc!$C572=1,dati_bdv!$C$2:$C$65536,IF(dati_pdc!$C572=2,dati_bdv!$D$2:$D$65536,IF(dati_pdc!$C572=3,dati_bdv!$E$2:$E$65536,IF(dati_pdc!$C572=4,dati_bdv!$F$2:$F$65536,IF(dati_pdc!$C572=5,dati_bdv!$G$2:$G$65536,dati_bdv!$H$2:$H$65536))))),$A572,dati_bdv!M$2:M$65536)","v":0},{"$f":"SUMIF(IF(dati_pdc!$C572=1,dati_bdv!$C$2:$C$65536,IF(dati_pdc!$C572=2,dati_bdv!$D$2:$D$65536,IF(dati_pdc!$C572=3,dati_bdv!$E$2:$E$65536,IF(dati_pdc!$C572=4,dati_bdv!$F$2:$F$65536,IF(dati_pdc!$C572=5,dati_bdv!$G$2:$G$65536,dati_bdv!$H$2:$H$65536))))),$A572,dati_bdv!N$2:N$65536)","v":0}]
[{"$f":"dati_pdc!A573","v":0},{"$f":"SUMIF(IF(dati_pdc!$C573=1,dati_bdv!$C$2:$C$65536,IF(dati_pdc!$C573=2,dati_bdv!$D$2:$D$65536,IF(dati_pdc!$C573=3,dati_bdv!$E$2:$E$65536,IF(dati_pdc!$C573=4,dati_bdv!$F$2:$F$65536,IF(dati_pdc!$C573=5,dati_bdv!$G$2:$G$65536,dati_bdv!$H$2:$H$65536))))),$A573,dati_bdv!J$2:J$65536)","v":0},{"$f":"SUMIF(IF(dati_pdc!$C573=1,dati_bdv!$C$2:$C$65536,IF(dati_pdc!$C573=2,dati_bdv!$D$2:$D$65536,IF(dati_pdc!$C573=3,dati_bdv!$E$2:$E$65536,IF(dati_pdc!$C573=4,dati_bdv!$F$2:$F$65536,IF(dati_pdc!$C573=5,dati_bdv!$G$2:$G$65536,dati_bdv!$H$2:$H$65536))))),$A573,dati_bdv!K$2:K$65536)","v":0},{"$f":"SUMIF(IF(dati_pdc!$C573=1,dati_bdv!$C$2:$C$65536,IF(dati_pdc!$C573=2,dati_bdv!$D$2:$D$65536,IF(dati_pdc!$C573=3,dati_bdv!$E$2:$E$65536,IF(dati_pdc!$C573=4,dati_bdv!$F$2:$F$65536,IF(dati_pdc!$C573=5,dati_bdv!$G$2:$G$65536,dati_bdv!$H$2:$H$65536))))),$A573,dati_bdv!L$2:L$65536)","v":0},{"$f":"SUMIF(IF(dati_pdc!$C573=1,dati_bdv!$C$2:$C$65536,IF(dati_pdc!$C573=2,dati_bdv!$D$2:$D$65536,IF(dati_pdc!$C573=3,dati_bdv!$E$2:$E$65536,IF(dati_pdc!$C573=4,dati_bdv!$F$2:$F$65536,IF(dati_pdc!$C573=5,dati_bdv!$G$2:$G$65536,dati_bdv!$H$2:$H$65536))))),$A573,dati_bdv!M$2:M$65536)","v":0},{"$f":"SUMIF(IF(dati_pdc!$C573=1,dati_bdv!$C$2:$C$65536,IF(dati_pdc!$C573=2,dati_bdv!$D$2:$D$65536,IF(dati_pdc!$C573=3,dati_bdv!$E$2:$E$65536,IF(dati_pdc!$C573=4,dati_bdv!$F$2:$F$65536,IF(dati_pdc!$C573=5,dati_bdv!$G$2:$G$65536,dati_bdv!$H$2:$H$65536))))),$A573,dati_bdv!N$2:N$65536)","v":0}]
[{"$f":"dati_pdc!A574","v":0},{"$f":"SUMIF(IF(dati_pdc!$C574=1,dati_bdv!$C$2:$C$65536,IF(dati_pdc!$C574=2,dati_bdv!$D$2:$D$65536,IF(dati_pdc!$C574=3,dati_bdv!$E$2:$E$65536,IF(dati_pdc!$C574=4,dati_bdv!$F$2:$F$65536,IF(dati_pdc!$C574=5,dati_bdv!$G$2:$G$65536,dati_bdv!$H$2:$H$65536))))),$A574,dati_bdv!J$2:J$65536)","v":0},{"$f":"SUMIF(IF(dati_pdc!$C574=1,dati_bdv!$C$2:$C$65536,IF(dati_pdc!$C574=2,dati_bdv!$D$2:$D$65536,IF(dati_pdc!$C574=3,dati_bdv!$E$2:$E$65536,IF(dati_pdc!$C574=4,dati_bdv!$F$2:$F$65536,IF(dati_pdc!$C574=5,dati_bdv!$G$2:$G$65536,dati_bdv!$H$2:$H$65536))))),$A574,dati_bdv!K$2:K$65536)","v":0},{"$f":"SUMIF(IF(dati_pdc!$C574=1,dati_bdv!$C$2:$C$65536,IF(dati_pdc!$C574=2,dati_bdv!$D$2:$D$65536,IF(dati_pdc!$C574=3,dati_bdv!$E$2:$E$65536,IF(dati_pdc!$C574=4,dati_bdv!$F$2:$F$65536,IF(dati_pdc!$C574=5,dati_bdv!$G$2:$G$65536,dati_bdv!$H$2:$H$65536))))),$A574,dati_bdv!L$2:L$65536)","v":0},{"$f":"SUMIF(IF(dati_pdc!$C574=1,dati_bdv!$C$2:$C$65536,IF(dati_pdc!$C574=2,dati_bdv!$D$2:$D$65536,IF(dati_pdc!$C574=3,dati_bdv!$E$2:$E$65536,IF(dati_pdc!$C574=4,dati_bdv!$F$2:$F$65536,IF(dati_pdc!$C574=5,dati_bdv!$G$2:$G$65536,dati_bdv!$H$2:$H$65536))))),$A574,dati_bdv!M$2:M$65536)","v":0},{"$f":"SUMIF(IF(dati_pdc!$C574=1,dati_bdv!$C$2:$C$65536,IF(dati_pdc!$C574=2,dati_bdv!$D$2:$D$65536,IF(dati_pdc!$C574=3,dati_bdv!$E$2:$E$65536,IF(dati_pdc!$C574=4,dati_bdv!$F$2:$F$65536,IF(dati_pdc!$C574=5,dati_bdv!$G$2:$G$65536,dati_bdv!$H$2:$H$65536))))),$A574,dati_bdv!N$2:N$65536)","v":0}]
[{"$f":"dati_pdc!A575","v":0},{"$f":"SUMIF(IF(dati_pdc!$C575=1,dati_bdv!$C$2:$C$65536,IF(dati_pdc!$C575=2,dati_bdv!$D$2:$D$65536,IF(dati_pdc!$C575=3,dati_bdv!$E$2:$E$65536,IF(dati_pdc!$C575=4,dati_bdv!$F$2:$F$65536,IF(dati_pdc!$C575=5,dati_bdv!$G$2:$G$65536,dati_bdv!$H$2:$H$65536))))),$A575,dati_bdv!J$2:J$65536)","v":0},{"$f":"SUMIF(IF(dati_pdc!$C575=1,dati_bdv!$C$2:$C$65536,IF(dati_pdc!$C575=2,dati_bdv!$D$2:$D$65536,IF(dati_pdc!$C575=3,dati_bdv!$E$2:$E$65536,IF(dati_pdc!$C575=4,dati_bdv!$F$2:$F$65536,IF(dati_pdc!$C575=5,dati_bdv!$G$2:$G$65536,dati_bdv!$H$2:$H$65536))))),$A575,dati_bdv!K$2:K$65536)","v":0},{"$f":"SUMIF(IF(dati_pdc!$C575=1,dati_bdv!$C$2:$C$65536,IF(dati_pdc!$C575=2,dati_bdv!$D$2:$D$65536,IF(dati_pdc!$C575=3,dati_bdv!$E$2:$E$65536,IF(dati_pdc!$C575=4,dati_bdv!$F$2:$F$65536,IF(dati_pdc!$C575=5,dati_bdv!$G$2:$G$65536,dati_bdv!$H$2:$H$65536))))),$A575,dati_bdv!L$2:L$65536)","v":0},{"$f":"SUMIF(IF(dati_pdc!$C575=1,dati_bdv!$C$2:$C$65536,IF(dati_pdc!$C575=2,dati_bdv!$D$2:$D$65536,IF(dati_pdc!$C575=3,dati_bdv!$E$2:$E$65536,IF(dati_pdc!$C575=4,dati_bdv!$F$2:$F$65536,IF(dati_pdc!$C575=5,dati_bdv!$G$2:$G$65536,dati_bdv!$H$2:$H$65536))))),$A575,dati_bdv!M$2:M$65536)","v":0},{"$f":"SUMIF(IF(dati_pdc!$C575=1,dati_bdv!$C$2:$C$65536,IF(dati_pdc!$C575=2,dati_bdv!$D$2:$D$65536,IF(dati_pdc!$C575=3,dati_bdv!$E$2:$E$65536,IF(dati_pdc!$C575=4,dati_bdv!$F$2:$F$65536,IF(dati_pdc!$C575=5,dati_bdv!$G$2:$G$65536,dati_bdv!$H$2:$H$65536))))),$A575,dati_bdv!N$2:N$65536)","v":0}]
[{"$f":"dati_pdc!A576","v":0},{"$f":"SUMIF(IF(dati_pdc!$C576=1,dati_bdv!$C$2:$C$65536,IF(dati_pdc!$C576=2,dati_bdv!$D$2:$D$65536,IF(dati_pdc!$C576=3,dati_bdv!$E$2:$E$65536,IF(dati_pdc!$C576=4,dati_bdv!$F$2:$F$65536,IF(dati_pdc!$C576=5,dati_bdv!$G$2:$G$65536,dati_bdv!$H$2:$H$65536))))),$A576,dati_bdv!J$2:J$65536)","v":0},{"$f":"SUMIF(IF(dati_pdc!$C576=1,dati_bdv!$C$2:$C$65536,IF(dati_pdc!$C576=2,dati_bdv!$D$2:$D$65536,IF(dati_pdc!$C576=3,dati_bdv!$E$2:$E$65536,IF(dati_pdc!$C576=4,dati_bdv!$F$2:$F$65536,IF(dati_pdc!$C576=5,dati_bdv!$G$2:$G$65536,dati_bdv!$H$2:$H$65536))))),$A576,dati_bdv!K$2:K$65536)","v":0},{"$f":"SUMIF(IF(dati_pdc!$C576=1,dati_bdv!$C$2:$C$65536,IF(dati_pdc!$C576=2,dati_bdv!$D$2:$D$65536,IF(dati_pdc!$C576=3,dati_bdv!$E$2:$E$65536,IF(dati_pdc!$C576=4,dati_bdv!$F$2:$F$65536,IF(dati_pdc!$C576=5,dati_bdv!$G$2:$G$65536,dati_bdv!$H$2:$H$65536))))),$A576,dati_bdv!L$2:L$65536)","v":0},{"$f":"SUMIF(IF(dati_pdc!$C576=1,dati_bdv!$C$2:$C$65536,IF(dati_pdc!$C576=2,dati_bdv!$D$2:$D$65536,IF(dati_pdc!$C576=3,dati_bdv!$E$2:$E$65536,IF(dati_pdc!$C576=4,dati_bdv!$F$2:$F$65536,IF(dati_pdc!$C576=5,dati_bdv!$G$2:$G$65536,dati_bdv!$H$2:$H$65536))))),$A576,dati_bdv!M$2:M$65536)","v":0},{"$f":"SUMIF(IF(dati_pdc!$C576=1,dati_bdv!$C$2:$C$65536,IF(dati_pdc!$C576=2,dati_bdv!$D$2:$D$65536,IF(dati_pdc!$C576=3,dati_bdv!$E$2:$E$65536,IF(dati_pdc!$C576=4,dati_bdv!$F$2:$F$65536,IF(dati_pdc!$C576=5,dati_bdv!$G$2:$G$65536,dati_bdv!$H$2:$H$65536))))),$A576,dati_bdv!N$2:N$65536)","v":0}]
[{"$f":"dati_pdc!A577","v":0},{"$f":"SUMIF(IF(dati_pdc!$C577=1,dati_bdv!$C$2:$C$65536,IF(dati_pdc!$C577=2,dati_bdv!$D$2:$D$65536,IF(dati_pdc!$C577=3,dati_bdv!$E$2:$E$65536,IF(dati_pdc!$C577=4,dati_bdv!$F$2:$F$65536,IF(dati_pdc!$C577=5,dati_bdv!$G$2:$G$65536,dati_bdv!$H$2:$H$65536))))),$A577,dati_bdv!J$2:J$65536)","v":0},{"$f":"SUMIF(IF(dati_pdc!$C577=1,dati_bdv!$C$2:$C$65536,IF(dati_pdc!$C577=2,dati_bdv!$D$2:$D$65536,IF(dati_pdc!$C577=3,dati_bdv!$E$2:$E$65536,IF(dati_pdc!$C577=4,dati_bdv!$F$2:$F$65536,IF(dati_pdc!$C577=5,dati_bdv!$G$2:$G$65536,dati_bdv!$H$2:$H$65536))))),$A577,dati_bdv!K$2:K$65536)","v":0},{"$f":"SUMIF(IF(dati_pdc!$C577=1,dati_bdv!$C$2:$C$65536,IF(dati_pdc!$C577=2,dati_bdv!$D$2:$D$65536,IF(dati_pdc!$C577=3,dati_bdv!$E$2:$E$65536,IF(dati_pdc!$C577=4,dati_bdv!$F$2:$F$65536,IF(dati_pdc!$C577=5,dati_bdv!$G$2:$G$65536,dati_bdv!$H$2:$H$65536))))),$A577,dati_bdv!L$2:L$65536)","v":0},{"$f":"SUMIF(IF(dati_pdc!$C577=1,dati_bdv!$C$2:$C$65536,IF(dati_pdc!$C577=2,dati_bdv!$D$2:$D$65536,IF(dati_pdc!$C577=3,dati_bdv!$E$2:$E$65536,IF(dati_pdc!$C577=4,dati_bdv!$F$2:$F$65536,IF(dati_pdc!$C577=5,dati_bdv!$G$2:$G$65536,dati_bdv!$H$2:$H$65536))))),$A577,dati_bdv!M$2:M$65536)","v":0},{"$f":"SUMIF(IF(dati_pdc!$C577=1,dati_bdv!$C$2:$C$65536,IF(dati_pdc!$C577=2,dati_bdv!$D$2:$D$65536,IF(dati_pdc!$C577=3,dati_bdv!$E$2:$E$65536,IF(dati_pdc!$C577=4,dati_bdv!$F$2:$F$65536,IF(dati_pdc!$C577=5,dati_bdv!$G$2:$G$65536,dati_bdv!$H$2:$H$65536))))),$A577,dati_bdv!N$2:N$65536)","v":0}]
[{"$f":"dati_pdc!A578","v":0},{"$f":"SUMIF(IF(dati_pdc!$C578=1,dati_bdv!$C$2:$C$65536,IF(dati_pdc!$C578=2,dati_bdv!$D$2:$D$65536,IF(dati_pdc!$C578=3,dati_bdv!$E$2:$E$65536,IF(dati_pdc!$C578=4,dati_bdv!$F$2:$F$65536,IF(dati_pdc!$C578=5,dati_bdv!$G$2:$G$65536,dati_bdv!$H$2:$H$65536))))),$A578,dati_bdv!J$2:J$65536)","v":0},{"$f":"SUMIF(IF(dati_pdc!$C578=1,dati_bdv!$C$2:$C$65536,IF(dati_pdc!$C578=2,dati_bdv!$D$2:$D$65536,IF(dati_pdc!$C578=3,dati_bdv!$E$2:$E$65536,IF(dati_pdc!$C578=4,dati_bdv!$F$2:$F$65536,IF(dati_pdc!$C578=5,dati_bdv!$G$2:$G$65536,dati_bdv!$H$2:$H$65536))))),$A578,dati_bdv!K$2:K$65536)","v":0},{"$f":"SUMIF(IF(dati_pdc!$C578=1,dati_bdv!$C$2:$C$65536,IF(dati_pdc!$C578=2,dati_bdv!$D$2:$D$65536,IF(dati_pdc!$C578=3,dati_bdv!$E$2:$E$65536,IF(dati_pdc!$C578=4,dati_bdv!$F$2:$F$65536,IF(dati_pdc!$C578=5,dati_bdv!$G$2:$G$65536,dati_bdv!$H$2:$H$65536))))),$A578,dati_bdv!L$2:L$65536)","v":0},{"$f":"SUMIF(IF(dati_pdc!$C578=1,dati_bdv!$C$2:$C$65536,IF(dati_pdc!$C578=2,dati_bdv!$D$2:$D$65536,IF(dati_pdc!$C578=3,dati_bdv!$E$2:$E$65536,IF(dati_pdc!$C578=4,dati_bdv!$F$2:$F$65536,IF(dati_pdc!$C578=5,dati_bdv!$G$2:$G$65536,dati_bdv!$H$2:$H$65536))))),$A578,dati_bdv!M$2:M$65536)","v":0},{"$f":"SUMIF(IF(dati_pdc!$C578=1,dati_bdv!$C$2:$C$65536,IF(dati_pdc!$C578=2,dati_bdv!$D$2:$D$65536,IF(dati_pdc!$C578=3,dati_bdv!$E$2:$E$65536,IF(dati_pdc!$C578=4,dati_bdv!$F$2:$F$65536,IF(dati_pdc!$C578=5,dati_bdv!$G$2:$G$65536,dati_bdv!$H$2:$H$65536))))),$A578,dati_bdv!N$2:N$65536)","v":0}]
[{"$f":"dati_pdc!A579","v":0},{"$f":"SUMIF(IF(dati_pdc!$C579=1,dati_bdv!$C$2:$C$65536,IF(dati_pdc!$C579=2,dati_bdv!$D$2:$D$65536,IF(dati_pdc!$C579=3,dati_bdv!$E$2:$E$65536,IF(dati_pdc!$C579=4,dati_bdv!$F$2:$F$65536,IF(dati_pdc!$C579=5,dati_bdv!$G$2:$G$65536,dati_bdv!$H$2:$H$65536))))),$A579,dati_bdv!J$2:J$65536)","v":0},{"$f":"SUMIF(IF(dati_pdc!$C579=1,dati_bdv!$C$2:$C$65536,IF(dati_pdc!$C579=2,dati_bdv!$D$2:$D$65536,IF(dati_pdc!$C579=3,dati_bdv!$E$2:$E$65536,IF(dati_pdc!$C579=4,dati_bdv!$F$2:$F$65536,IF(dati_pdc!$C579=5,dati_bdv!$G$2:$G$65536,dati_bdv!$H$2:$H$65536))))),$A579,dati_bdv!K$2:K$65536)","v":0},{"$f":"SUMIF(IF(dati_pdc!$C579=1,dati_bdv!$C$2:$C$65536,IF(dati_pdc!$C579=2,dati_bdv!$D$2:$D$65536,IF(dati_pdc!$C579=3,dati_bdv!$E$2:$E$65536,IF(dati_pdc!$C579=4,dati_bdv!$F$2:$F$65536,IF(dati_pdc!$C579=5,dati_bdv!$G$2:$G$65536,dati_bdv!$H$2:$H$65536))))),$A579,dati_bdv!L$2:L$65536)","v":0},{"$f":"SUMIF(IF(dati_pdc!$C579=1,dati_bdv!$C$2:$C$65536,IF(dati_pdc!$C579=2,dati_bdv!$D$2:$D$65536,IF(dati_pdc!$C579=3,dati_bdv!$E$2:$E$65536,IF(dati_pdc!$C579=4,dati_bdv!$F$2:$F$65536,IF(dati_pdc!$C579=5,dati_bdv!$G$2:$G$65536,dati_bdv!$H$2:$H$65536))))),$A579,dati_bdv!M$2:M$65536)","v":0},{"$f":"SUMIF(IF(dati_pdc!$C579=1,dati_bdv!$C$2:$C$65536,IF(dati_pdc!$C579=2,dati_bdv!$D$2:$D$65536,IF(dati_pdc!$C579=3,dati_bdv!$E$2:$E$65536,IF(dati_pdc!$C579=4,dati_bdv!$F$2:$F$65536,IF(dati_pdc!$C579=5,dati_bdv!$G$2:$G$65536,dati_bdv!$H$2:$H$65536))))),$A579,dati_bdv!N$2:N$65536)","v":0}]
[{"$f":"dati_pdc!A580","v":0},{"$f":"SUMIF(IF(dati_pdc!$C580=1,dati_bdv!$C$2:$C$65536,IF(dati_pdc!$C580=2,dati_bdv!$D$2:$D$65536,IF(dati_pdc!$C580=3,dati_bdv!$E$2:$E$65536,IF(dati_pdc!$C580=4,dati_bdv!$F$2:$F$65536,IF(dati_pdc!$C580=5,dati_bdv!$G$2:$G$65536,dati_bdv!$H$2:$H$65536))))),$A580,dati_bdv!J$2:J$65536)","v":0},{"$f":"SUMIF(IF(dati_pdc!$C580=1,dati_bdv!$C$2:$C$65536,IF(dati_pdc!$C580=2,dati_bdv!$D$2:$D$65536,IF(dati_pdc!$C580=3,dati_bdv!$E$2:$E$65536,IF(dati_pdc!$C580=4,dati_bdv!$F$2:$F$65536,IF(dati_pdc!$C580=5,dati_bdv!$G$2:$G$65536,dati_bdv!$H$2:$H$65536))))),$A580,dati_bdv!K$2:K$65536)","v":0},{"$f":"SUMIF(IF(dati_pdc!$C580=1,dati_bdv!$C$2:$C$65536,IF(dati_pdc!$C580=2,dati_bdv!$D$2:$D$65536,IF(dati_pdc!$C580=3,dati_bdv!$E$2:$E$65536,IF(dati_pdc!$C580=4,dati_bdv!$F$2:$F$65536,IF(dati_pdc!$C580=5,dati_bdv!$G$2:$G$65536,dati_bdv!$H$2:$H$65536))))),$A580,dati_bdv!L$2:L$65536)","v":0},{"$f":"SUMIF(IF(dati_pdc!$C580=1,dati_bdv!$C$2:$C$65536,IF(dati_pdc!$C580=2,dati_bdv!$D$2:$D$65536,IF(dati_pdc!$C580=3,dati_bdv!$E$2:$E$65536,IF(dati_pdc!$C580=4,dati_bdv!$F$2:$F$65536,IF(dati_pdc!$C580=5,dati_bdv!$G$2:$G$65536,dati_bdv!$H$2:$H$65536))))),$A580,dati_bdv!M$2:M$65536)","v":0},{"$f":"SUMIF(IF(dati_pdc!$C580=1,dati_bdv!$C$2:$C$65536,IF(dati_pdc!$C580=2,dati_bdv!$D$2:$D$65536,IF(dati_pdc!$C580=3,dati_bdv!$E$2:$E$65536,IF(dati_pdc!$C580=4,dati_bdv!$F$2:$F$65536,IF(dati_pdc!$C580=5,dati_bdv!$G$2:$G$65536,dati_bdv!$H$2:$H$65536))))),$A580,dati_bdv!N$2:N$65536)","v":0}]
[{"$f":"dati_pdc!A581","v":0},{"$f":"SUMIF(IF(dati_pdc!$C581=1,dati_bdv!$C$2:$C$65536,IF(dati_pdc!$C581=2,dati_bdv!$D$2:$D$65536,IF(dati_pdc!$C581=3,dati_bdv!$E$2:$E$65536,IF(dati_pdc!$C581=4,dati_bdv!$F$2:$F$65536,IF(dati_pdc!$C581=5,dati_bdv!$G$2:$G$65536,dati_bdv!$H$2:$H$65536))))),$A581,dati_bdv!J$2:J$65536)","v":0},{"$f":"SUMIF(IF(dati_pdc!$C581=1,dati_bdv!$C$2:$C$65536,IF(dati_pdc!$C581=2,dati_bdv!$D$2:$D$65536,IF(dati_pdc!$C581=3,dati_bdv!$E$2:$E$65536,IF(dati_pdc!$C581=4,dati_bdv!$F$2:$F$65536,IF(dati_pdc!$C581=5,dati_bdv!$G$2:$G$65536,dati_bdv!$H$2:$H$65536))))),$A581,dati_bdv!K$2:K$65536)","v":0},{"$f":"SUMIF(IF(dati_pdc!$C581=1,dati_bdv!$C$2:$C$65536,IF(dati_pdc!$C581=2,dati_bdv!$D$2:$D$65536,IF(dati_pdc!$C581=3,dati_bdv!$E$2:$E$65536,IF(dati_pdc!$C581=4,dati_bdv!$F$2:$F$65536,IF(dati_pdc!$C581=5,dati_bdv!$G$2:$G$65536,dati_bdv!$H$2:$H$65536))))),$A581,dati_bdv!L$2:L$65536)","v":0},{"$f":"SUMIF(IF(dati_pdc!$C581=1,dati_bdv!$C$2:$C$65536,IF(dati_pdc!$C581=2,dati_bdv!$D$2:$D$65536,IF(dati_pdc!$C581=3,dati_bdv!$E$2:$E$65536,IF(dati_pdc!$C581=4,dati_bdv!$F$2:$F$65536,IF(dati_pdc!$C581=5,dati_bdv!$G$2:$G$65536,dati_bdv!$H$2:$H$65536))))),$A581,dati_bdv!M$2:M$65536)","v":0},{"$f":"SUMIF(IF(dati_pdc!$C581=1,dati_bdv!$C$2:$C$65536,IF(dati_pdc!$C581=2,dati_bdv!$D$2:$D$65536,IF(dati_pdc!$C581=3,dati_bdv!$E$2:$E$65536,IF(dati_pdc!$C581=4,dati_bdv!$F$2:$F$65536,IF(dati_pdc!$C581=5,dati_bdv!$G$2:$G$65536,dati_bdv!$H$2:$H$65536))))),$A581,dati_bdv!N$2:N$65536)","v":0}]
[{"$f":"dati_pdc!A582","v":0},{"$f":"SUMIF(IF(dati_pdc!$C582=1,dati_bdv!$C$2:$C$65536,IF(dati_pdc!$C582=2,dati_bdv!$D$2:$D$65536,IF(dati_pdc!$C582=3,dati_bdv!$E$2:$E$65536,IF(dati_pdc!$C582=4,dati_bdv!$F$2:$F$65536,IF(dati_pdc!$C582=5,dati_bdv!$G$2:$G$65536,dati_bdv!$H$2:$H$65536))))),$A582,dati_bdv!J$2:J$65536)","v":0},{"$f":"SUMIF(IF(dati_pdc!$C582=1,dati_bdv!$C$2:$C$65536,IF(dati_pdc!$C582=2,dati_bdv!$D$2:$D$65536,IF(dati_pdc!$C582=3,dati_bdv!$E$2:$E$65536,IF(dati_pdc!$C582=4,dati_bdv!$F$2:$F$65536,IF(dati_pdc!$C582=5,dati_bdv!$G$2:$G$65536,dati_bdv!$H$2:$H$65536))))),$A582,dati_bdv!K$2:K$65536)","v":0},{"$f":"SUMIF(IF(dati_pdc!$C582=1,dati_bdv!$C$2:$C$65536,IF(dati_pdc!$C582=2,dati_bdv!$D$2:$D$65536,IF(dati_pdc!$C582=3,dati_bdv!$E$2:$E$65536,IF(dati_pdc!$C582=4,dati_bdv!$F$2:$F$65536,IF(dati_pdc!$C582=5,dati_bdv!$G$2:$G$65536,dati_bdv!$H$2:$H$65536))))),$A582,dati_bdv!L$2:L$65536)","v":0},{"$f":"SUMIF(IF(dati_pdc!$C582=1,dati_bdv!$C$2:$C$65536,IF(dati_pdc!$C582=2,dati_bdv!$D$2:$D$65536,IF(dati_pdc!$C582=3,dati_bdv!$E$2:$E$65536,IF(dati_pdc!$C582=4,dati_bdv!$F$2:$F$65536,IF(dati_pdc!$C582=5,dati_bdv!$G$2:$G$65536,dati_bdv!$H$2:$H$65536))))),$A582,dati_bdv!M$2:M$65536)","v":0},{"$f":"SUMIF(IF(dati_pdc!$C582=1,dati_bdv!$C$2:$C$65536,IF(dati_pdc!$C582=2,dati_bdv!$D$2:$D$65536,IF(dati_pdc!$C582=3,dati_bdv!$E$2:$E$65536,IF(dati_pdc!$C582=4,dati_bdv!$F$2:$F$65536,IF(dati_pdc!$C582=5,dati_bdv!$G$2:$G$65536,dati_bdv!$H$2:$H$65536))))),$A582,dati_bdv!N$2:N$65536)","v":0}]
[{"$f":"dati_pdc!A583","v":0},{"$f":"SUMIF(IF(dati_pdc!$C583=1,dati_bdv!$C$2:$C$65536,IF(dati_pdc!$C583=2,dati_bdv!$D$2:$D$65536,IF(dati_pdc!$C583=3,dati_bdv!$E$2:$E$65536,IF(dati_pdc!$C583=4,dati_bdv!$F$2:$F$65536,IF(dati_pdc!$C583=5,dati_bdv!$G$2:$G$65536,dati_bdv!$H$2:$H$65536))))),$A583,dati_bdv!J$2:J$65536)","v":0},{"$f":"SUMIF(IF(dati_pdc!$C583=1,dati_bdv!$C$2:$C$65536,IF(dati_pdc!$C583=2,dati_bdv!$D$2:$D$65536,IF(dati_pdc!$C583=3,dati_bdv!$E$2:$E$65536,IF(dati_pdc!$C583=4,dati_bdv!$F$2:$F$65536,IF(dati_pdc!$C583=5,dati_bdv!$G$2:$G$65536,dati_bdv!$H$2:$H$65536))))),$A583,dati_bdv!K$2:K$65536)","v":0},{"$f":"SUMIF(IF(dati_pdc!$C583=1,dati_bdv!$C$2:$C$65536,IF(dati_pdc!$C583=2,dati_bdv!$D$2:$D$65536,IF(dati_pdc!$C583=3,dati_bdv!$E$2:$E$65536,IF(dati_pdc!$C583=4,dati_bdv!$F$2:$F$65536,IF(dati_pdc!$C583=5,dati_bdv!$G$2:$G$65536,dati_bdv!$H$2:$H$65536))))),$A583,dati_bdv!L$2:L$65536)","v":0},{"$f":"SUMIF(IF(dati_pdc!$C583=1,dati_bdv!$C$2:$C$65536,IF(dati_pdc!$C583=2,dati_bdv!$D$2:$D$65536,IF(dati_pdc!$C583=3,dati_bdv!$E$2:$E$65536,IF(dati_pdc!$C583=4,dati_bdv!$F$2:$F$65536,IF(dati_pdc!$C583=5,dati_bdv!$G$2:$G$65536,dati_bdv!$H$2:$H$65536))))),$A583,dati_bdv!M$2:M$65536)","v":0},{"$f":"SUMIF(IF(dati_pdc!$C583=1,dati_bdv!$C$2:$C$65536,IF(dati_pdc!$C583=2,dati_bdv!$D$2:$D$65536,IF(dati_pdc!$C583=3,dati_bdv!$E$2:$E$65536,IF(dati_pdc!$C583=4,dati_bdv!$F$2:$F$65536,IF(dati_pdc!$C583=5,dati_bdv!$G$2:$G$65536,dati_bdv!$H$2:$H$65536))))),$A583,dati_bdv!N$2:N$65536)","v":0}]
[{"$f":"dati_pdc!A584","v":0},{"$f":"SUMIF(IF(dati_pdc!$C584=1,dati_bdv!$C$2:$C$65536,IF(dati_pdc!$C584=2,dati_bdv!$D$2:$D$65536,IF(dati_pdc!$C584=3,dati_bdv!$E$2:$E$65536,IF(dati_pdc!$C584=4,dati_bdv!$F$2:$F$65536,IF(dati_pdc!$C584=5,dati_bdv!$G$2:$G$65536,dati_bdv!$H$2:$H$65536))))),$A584,dati_bdv!J$2:J$65536)","v":0},{"$f":"SUMIF(IF(dati_pdc!$C584=1,dati_bdv!$C$2:$C$65536,IF(dati_pdc!$C584=2,dati_bdv!$D$2:$D$65536,IF(dati_pdc!$C584=3,dati_bdv!$E$2:$E$65536,IF(dati_pdc!$C584=4,dati_bdv!$F$2:$F$65536,IF(dati_pdc!$C584=5,dati_bdv!$G$2:$G$65536,dati_bdv!$H$2:$H$65536))))),$A584,dati_bdv!K$2:K$65536)","v":0},{"$f":"SUMIF(IF(dati_pdc!$C584=1,dati_bdv!$C$2:$C$65536,IF(dati_pdc!$C584=2,dati_bdv!$D$2:$D$65536,IF(dati_pdc!$C584=3,dati_bdv!$E$2:$E$65536,IF(dati_pdc!$C584=4,dati_bdv!$F$2:$F$65536,IF(dati_pdc!$C584=5,dati_bdv!$G$2:$G$65536,dati_bdv!$H$2:$H$65536))))),$A584,dati_bdv!L$2:L$65536)","v":0},{"$f":"SUMIF(IF(dati_pdc!$C584=1,dati_bdv!$C$2:$C$65536,IF(dati_pdc!$C584=2,dati_bdv!$D$2:$D$65536,IF(dati_pdc!$C584=3,dati_bdv!$E$2:$E$65536,IF(dati_pdc!$C584=4,dati_bdv!$F$2:$F$65536,IF(dati_pdc!$C584=5,dati_bdv!$G$2:$G$65536,dati_bdv!$H$2:$H$65536))))),$A584,dati_bdv!M$2:M$65536)","v":0},{"$f":"SUMIF(IF(dati_pdc!$C584=1,dati_bdv!$C$2:$C$65536,IF(dati_pdc!$C584=2,dati_bdv!$D$2:$D$65536,IF(dati_pdc!$C584=3,dati_bdv!$E$2:$E$65536,IF(dati_pdc!$C584=4,dati_bdv!$F$2:$F$65536,IF(dati_pdc!$C584=5,dati_bdv!$G$2:$G$65536,dati_bdv!$H$2:$H$65536))))),$A584,dati_bdv!N$2:N$65536)","v":0}]
[{"$f":"dati_pdc!A585","v":0},{"$f":"SUMIF(IF(dati_pdc!$C585=1,dati_bdv!$C$2:$C$65536,IF(dati_pdc!$C585=2,dati_bdv!$D$2:$D$65536,IF(dati_pdc!$C585=3,dati_bdv!$E$2:$E$65536,IF(dati_pdc!$C585=4,dati_bdv!$F$2:$F$65536,IF(dati_pdc!$C585=5,dati_bdv!$G$2:$G$65536,dati_bdv!$H$2:$H$65536))))),$A585,dati_bdv!J$2:J$65536)","v":0},{"$f":"SUMIF(IF(dati_pdc!$C585=1,dati_bdv!$C$2:$C$65536,IF(dati_pdc!$C585=2,dati_bdv!$D$2:$D$65536,IF(dati_pdc!$C585=3,dati_bdv!$E$2:$E$65536,IF(dati_pdc!$C585=4,dati_bdv!$F$2:$F$65536,IF(dati_pdc!$C585=5,dati_bdv!$G$2:$G$65536,dati_bdv!$H$2:$H$65536))))),$A585,dati_bdv!K$2:K$65536)","v":0},{"$f":"SUMIF(IF(dati_pdc!$C585=1,dati_bdv!$C$2:$C$65536,IF(dati_pdc!$C585=2,dati_bdv!$D$2:$D$65536,IF(dati_pdc!$C585=3,dati_bdv!$E$2:$E$65536,IF(dati_pdc!$C585=4,dati_bdv!$F$2:$F$65536,IF(dati_pdc!$C585=5,dati_bdv!$G$2:$G$65536,dati_bdv!$H$2:$H$65536))))),$A585,dati_bdv!L$2:L$65536)","v":0},{"$f":"SUMIF(IF(dati_pdc!$C585=1,dati_bdv!$C$2:$C$65536,IF(dati_pdc!$C585=2,dati_bdv!$D$2:$D$65536,IF(dati_pdc!$C585=3,dati_bdv!$E$2:$E$65536,IF(dati_pdc!$C585=4,dati_bdv!$F$2:$F$65536,IF(dati_pdc!$C585=5,dati_bdv!$G$2:$G$65536,dati_bdv!$H$2:$H$65536))))),$A585,dati_bdv!M$2:M$65536)","v":0},{"$f":"SUMIF(IF(dati_pdc!$C585=1,dati_bdv!$C$2:$C$65536,IF(dati_pdc!$C585=2,dati_bdv!$D$2:$D$65536,IF(dati_pdc!$C585=3,dati_bdv!$E$2:$E$65536,IF(dati_pdc!$C585=4,dati_bdv!$F$2:$F$65536,IF(dati_pdc!$C585=5,dati_bdv!$G$2:$G$65536,dati_bdv!$H$2:$H$65536))))),$A585,dati_bdv!N$2:N$65536)","v":0}]
[{"$f":"dati_pdc!A586","v":0},{"$f":"SUMIF(IF(dati_pdc!$C586=1,dati_bdv!$C$2:$C$65536,IF(dati_pdc!$C586=2,dati_bdv!$D$2:$D$65536,IF(dati_pdc!$C586=3,dati_bdv!$E$2:$E$65536,IF(dati_pdc!$C586=4,dati_bdv!$F$2:$F$65536,IF(dati_pdc!$C586=5,dati_bdv!$G$2:$G$65536,dati_bdv!$H$2:$H$65536))))),$A586,dati_bdv!J$2:J$65536)","v":0},{"$f":"SUMIF(IF(dati_pdc!$C586=1,dati_bdv!$C$2:$C$65536,IF(dati_pdc!$C586=2,dati_bdv!$D$2:$D$65536,IF(dati_pdc!$C586=3,dati_bdv!$E$2:$E$65536,IF(dati_pdc!$C586=4,dati_bdv!$F$2:$F$65536,IF(dati_pdc!$C586=5,dati_bdv!$G$2:$G$65536,dati_bdv!$H$2:$H$65536))))),$A586,dati_bdv!K$2:K$65536)","v":0},{"$f":"SUMIF(IF(dati_pdc!$C586=1,dati_bdv!$C$2:$C$65536,IF(dati_pdc!$C586=2,dati_bdv!$D$2:$D$65536,IF(dati_pdc!$C586=3,dati_bdv!$E$2:$E$65536,IF(dati_pdc!$C586=4,dati_bdv!$F$2:$F$65536,IF(dati_pdc!$C586=5,dati_bdv!$G$2:$G$65536,dati_bdv!$H$2:$H$65536))))),$A586,dati_bdv!L$2:L$65536)","v":0},{"$f":"SUMIF(IF(dati_pdc!$C586=1,dati_bdv!$C$2:$C$65536,IF(dati_pdc!$C586=2,dati_bdv!$D$2:$D$65536,IF(dati_pdc!$C586=3,dati_bdv!$E$2:$E$65536,IF(dati_pdc!$C586=4,dati_bdv!$F$2:$F$65536,IF(dati_pdc!$C586=5,dati_bdv!$G$2:$G$65536,dati_bdv!$H$2:$H$65536))))),$A586,dati_bdv!M$2:M$65536)","v":0},{"$f":"SUMIF(IF(dati_pdc!$C586=1,dati_bdv!$C$2:$C$65536,IF(dati_pdc!$C586=2,dati_bdv!$D$2:$D$65536,IF(dati_pdc!$C586=3,dati_bdv!$E$2:$E$65536,IF(dati_pdc!$C586=4,dati_bdv!$F$2:$F$65536,IF(dati_pdc!$C586=5,dati_bdv!$G$2:$G$65536,dati_bdv!$H$2:$H$65536))))),$A586,dati_bdv!N$2:N$65536)","v":0}]
[{"$f":"dati_pdc!A587","v":0},{"$f":"SUMIF(IF(dati_pdc!$C587=1,dati_bdv!$C$2:$C$65536,IF(dati_pdc!$C587=2,dati_bdv!$D$2:$D$65536,IF(dati_pdc!$C587=3,dati_bdv!$E$2:$E$65536,IF(dati_pdc!$C587=4,dati_bdv!$F$2:$F$65536,IF(dati_pdc!$C587=5,dati_bdv!$G$2:$G$65536,dati_bdv!$H$2:$H$65536))))),$A587,dati_bdv!J$2:J$65536)","v":0},{"$f":"SUMIF(IF(dati_pdc!$C587=1,dati_bdv!$C$2:$C$65536,IF(dati_pdc!$C587=2,dati_bdv!$D$2:$D$65536,IF(dati_pdc!$C587=3,dati_bdv!$E$2:$E$65536,IF(dati_pdc!$C587=4,dati_bdv!$F$2:$F$65536,IF(dati_pdc!$C587=5,dati_bdv!$G$2:$G$65536,dati_bdv!$H$2:$H$65536))))),$A587,dati_bdv!K$2:K$65536)","v":0},{"$f":"SUMIF(IF(dati_pdc!$C587=1,dati_bdv!$C$2:$C$65536,IF(dati_pdc!$C587=2,dati_bdv!$D$2:$D$65536,IF(dati_pdc!$C587=3,dati_bdv!$E$2:$E$65536,IF(dati_pdc!$C587=4,dati_bdv!$F$2:$F$65536,IF(dati_pdc!$C587=5,dati_bdv!$G$2:$G$65536,dati_bdv!$H$2:$H$65536))))),$A587,dati_bdv!L$2:L$65536)","v":0},{"$f":"SUMIF(IF(dati_pdc!$C587=1,dati_bdv!$C$2:$C$65536,IF(dati_pdc!$C587=2,dati_bdv!$D$2:$D$65536,IF(dati_pdc!$C587=3,dati_bdv!$E$2:$E$65536,IF(dati_pdc!$C587=4,dati_bdv!$F$2:$F$65536,IF(dati_pdc!$C587=5,dati_bdv!$G$2:$G$65536,dati_bdv!$H$2:$H$65536))))),$A587,dati_bdv!M$2:M$65536)","v":0},{"$f":"SUMIF(IF(dati_pdc!$C587=1,dati_bdv!$C$2:$C$65536,IF(dati_pdc!$C587=2,dati_bdv!$D$2:$D$65536,IF(dati_pdc!$C587=3,dati_bdv!$E$2:$E$65536,IF(dati_pdc!$C587=4,dati_bdv!$F$2:$F$65536,IF(dati_pdc!$C587=5,dati_bdv!$G$2:$G$65536,dati_bdv!$H$2:$H$65536))))),$A587,dati_bdv!N$2:N$65536)","v":0}]
[{"$f":"dati_pdc!A588","v":0},{"$f":"SUMIF(IF(dati_pdc!$C588=1,dati_bdv!$C$2:$C$65536,IF(dati_pdc!$C588=2,dati_bdv!$D$2:$D$65536,IF(dati_pdc!$C588=3,dati_bdv!$E$2:$E$65536,IF(dati_pdc!$C588=4,dati_bdv!$F$2:$F$65536,IF(dati_pdc!$C588=5,dati_bdv!$G$2:$G$65536,dati_bdv!$H$2:$H$65536))))),$A588,dati_bdv!J$2:J$65536)","v":0},{"$f":"SUMIF(IF(dati_pdc!$C588=1,dati_bdv!$C$2:$C$65536,IF(dati_pdc!$C588=2,dati_bdv!$D$2:$D$65536,IF(dati_pdc!$C588=3,dati_bdv!$E$2:$E$65536,IF(dati_pdc!$C588=4,dati_bdv!$F$2:$F$65536,IF(dati_pdc!$C588=5,dati_bdv!$G$2:$G$65536,dati_bdv!$H$2:$H$65536))))),$A588,dati_bdv!K$2:K$65536)","v":0},{"$f":"SUMIF(IF(dati_pdc!$C588=1,dati_bdv!$C$2:$C$65536,IF(dati_pdc!$C588=2,dati_bdv!$D$2:$D$65536,IF(dati_pdc!$C588=3,dati_bdv!$E$2:$E$65536,IF(dati_pdc!$C588=4,dati_bdv!$F$2:$F$65536,IF(dati_pdc!$C588=5,dati_bdv!$G$2:$G$65536,dati_bdv!$H$2:$H$65536))))),$A588,dati_bdv!L$2:L$65536)","v":0},{"$f":"SUMIF(IF(dati_pdc!$C588=1,dati_bdv!$C$2:$C$65536,IF(dati_pdc!$C588=2,dati_bdv!$D$2:$D$65536,IF(dati_pdc!$C588=3,dati_bdv!$E$2:$E$65536,IF(dati_pdc!$C588=4,dati_bdv!$F$2:$F$65536,IF(dati_pdc!$C588=5,dati_bdv!$G$2:$G$65536,dati_bdv!$H$2:$H$65536))))),$A588,dati_bdv!M$2:M$65536)","v":0},{"$f":"SUMIF(IF(dati_pdc!$C588=1,dati_bdv!$C$2:$C$65536,IF(dati_pdc!$C588=2,dati_bdv!$D$2:$D$65536,IF(dati_pdc!$C588=3,dati_bdv!$E$2:$E$65536,IF(dati_pdc!$C588=4,dati_bdv!$F$2:$F$65536,IF(dati_pdc!$C588=5,dati_bdv!$G$2:$G$65536,dati_bdv!$H$2:$H$65536))))),$A588,dati_bdv!N$2:N$65536)","v":0}]
[{"$f":"dati_pdc!A589","v":0},{"$f":"SUMIF(IF(dati_pdc!$C589=1,dati_bdv!$C$2:$C$65536,IF(dati_pdc!$C589=2,dati_bdv!$D$2:$D$65536,IF(dati_pdc!$C589=3,dati_bdv!$E$2:$E$65536,IF(dati_pdc!$C589=4,dati_bdv!$F$2:$F$65536,IF(dati_pdc!$C589=5,dati_bdv!$G$2:$G$65536,dati_bdv!$H$2:$H$65536))))),$A589,dati_bdv!J$2:J$65536)","v":0},{"$f":"SUMIF(IF(dati_pdc!$C589=1,dati_bdv!$C$2:$C$65536,IF(dati_pdc!$C589=2,dati_bdv!$D$2:$D$65536,IF(dati_pdc!$C589=3,dati_bdv!$E$2:$E$65536,IF(dati_pdc!$C589=4,dati_bdv!$F$2:$F$65536,IF(dati_pdc!$C589=5,dati_bdv!$G$2:$G$65536,dati_bdv!$H$2:$H$65536))))),$A589,dati_bdv!K$2:K$65536)","v":0},{"$f":"SUMIF(IF(dati_pdc!$C589=1,dati_bdv!$C$2:$C$65536,IF(dati_pdc!$C589=2,dati_bdv!$D$2:$D$65536,IF(dati_pdc!$C589=3,dati_bdv!$E$2:$E$65536,IF(dati_pdc!$C589=4,dati_bdv!$F$2:$F$65536,IF(dati_pdc!$C589=5,dati_bdv!$G$2:$G$65536,dati_bdv!$H$2:$H$65536))))),$A589,dati_bdv!L$2:L$65536)","v":0},{"$f":"SUMIF(IF(dati_pdc!$C589=1,dati_bdv!$C$2:$C$65536,IF(dati_pdc!$C589=2,dati_bdv!$D$2:$D$65536,IF(dati_pdc!$C589=3,dati_bdv!$E$2:$E$65536,IF(dati_pdc!$C589=4,dati_bdv!$F$2:$F$65536,IF(dati_pdc!$C589=5,dati_bdv!$G$2:$G$65536,dati_bdv!$H$2:$H$65536))))),$A589,dati_bdv!M$2:M$65536)","v":0},{"$f":"SUMIF(IF(dati_pdc!$C589=1,dati_bdv!$C$2:$C$65536,IF(dati_pdc!$C589=2,dati_bdv!$D$2:$D$65536,IF(dati_pdc!$C589=3,dati_bdv!$E$2:$E$65536,IF(dati_pdc!$C589=4,dati_bdv!$F$2:$F$65536,IF(dati_pdc!$C589=5,dati_bdv!$G$2:$G$65536,dati_bdv!$H$2:$H$65536))))),$A589,dati_bdv!N$2:N$65536)","v":0}]
[{"$f":"dati_pdc!A590","v":0},{"$f":"SUMIF(IF(dati_pdc!$C590=1,dati_bdv!$C$2:$C$65536,IF(dati_pdc!$C590=2,dati_bdv!$D$2:$D$65536,IF(dati_pdc!$C590=3,dati_bdv!$E$2:$E$65536,IF(dati_pdc!$C590=4,dati_bdv!$F$2:$F$65536,IF(dati_pdc!$C590=5,dati_bdv!$G$2:$G$65536,dati_bdv!$H$2:$H$65536))))),$A590,dati_bdv!J$2:J$65536)","v":0},{"$f":"SUMIF(IF(dati_pdc!$C590=1,dati_bdv!$C$2:$C$65536,IF(dati_pdc!$C590=2,dati_bdv!$D$2:$D$65536,IF(dati_pdc!$C590=3,dati_bdv!$E$2:$E$65536,IF(dati_pdc!$C590=4,dati_bdv!$F$2:$F$65536,IF(dati_pdc!$C590=5,dati_bdv!$G$2:$G$65536,dati_bdv!$H$2:$H$65536))))),$A590,dati_bdv!K$2:K$65536)","v":0},{"$f":"SUMIF(IF(dati_pdc!$C590=1,dati_bdv!$C$2:$C$65536,IF(dati_pdc!$C590=2,dati_bdv!$D$2:$D$65536,IF(dati_pdc!$C590=3,dati_bdv!$E$2:$E$65536,IF(dati_pdc!$C590=4,dati_bdv!$F$2:$F$65536,IF(dati_pdc!$C590=5,dati_bdv!$G$2:$G$65536,dati_bdv!$H$2:$H$65536))))),$A590,dati_bdv!L$2:L$65536)","v":0},{"$f":"SUMIF(IF(dati_pdc!$C590=1,dati_bdv!$C$2:$C$65536,IF(dati_pdc!$C590=2,dati_bdv!$D$2:$D$65536,IF(dati_pdc!$C590=3,dati_bdv!$E$2:$E$65536,IF(dati_pdc!$C590=4,dati_bdv!$F$2:$F$65536,IF(dati_pdc!$C590=5,dati_bdv!$G$2:$G$65536,dati_bdv!$H$2:$H$65536))))),$A590,dati_bdv!M$2:M$65536)","v":0},{"$f":"SUMIF(IF(dati_pdc!$C590=1,dati_bdv!$C$2:$C$65536,IF(dati_pdc!$C590=2,dati_bdv!$D$2:$D$65536,IF(dati_pdc!$C590=3,dati_bdv!$E$2:$E$65536,IF(dati_pdc!$C590=4,dati_bdv!$F$2:$F$65536,IF(dati_pdc!$C590=5,dati_bdv!$G$2:$G$65536,dati_bdv!$H$2:$H$65536))))),$A590,dati_bdv!N$2:N$65536)","v":0}]
[{"$f":"dati_pdc!A591","v":0},{"$f":"SUMIF(IF(dati_pdc!$C591=1,dati_bdv!$C$2:$C$65536,IF(dati_pdc!$C591=2,dati_bdv!$D$2:$D$65536,IF(dati_pdc!$C591=3,dati_bdv!$E$2:$E$65536,IF(dati_pdc!$C591=4,dati_bdv!$F$2:$F$65536,IF(dati_pdc!$C591=5,dati_bdv!$G$2:$G$65536,dati_bdv!$H$2:$H$65536))))),$A591,dati_bdv!J$2:J$65536)","v":0},{"$f":"SUMIF(IF(dati_pdc!$C591=1,dati_bdv!$C$2:$C$65536,IF(dati_pdc!$C591=2,dati_bdv!$D$2:$D$65536,IF(dati_pdc!$C591=3,dati_bdv!$E$2:$E$65536,IF(dati_pdc!$C591=4,dati_bdv!$F$2:$F$65536,IF(dati_pdc!$C591=5,dati_bdv!$G$2:$G$65536,dati_bdv!$H$2:$H$65536))))),$A591,dati_bdv!K$2:K$65536)","v":0},{"$f":"SUMIF(IF(dati_pdc!$C591=1,dati_bdv!$C$2:$C$65536,IF(dati_pdc!$C591=2,dati_bdv!$D$2:$D$65536,IF(dati_pdc!$C591=3,dati_bdv!$E$2:$E$65536,IF(dati_pdc!$C591=4,dati_bdv!$F$2:$F$65536,IF(dati_pdc!$C591=5,dati_bdv!$G$2:$G$65536,dati_bdv!$H$2:$H$65536))))),$A591,dati_bdv!L$2:L$65536)","v":0},{"$f":"SUMIF(IF(dati_pdc!$C591=1,dati_bdv!$C$2:$C$65536,IF(dati_pdc!$C591=2,dati_bdv!$D$2:$D$65536,IF(dati_pdc!$C591=3,dati_bdv!$E$2:$E$65536,IF(dati_pdc!$C591=4,dati_bdv!$F$2:$F$65536,IF(dati_pdc!$C591=5,dati_bdv!$G$2:$G$65536,dati_bdv!$H$2:$H$65536))))),$A591,dati_bdv!M$2:M$65536)","v":0},{"$f":"SUMIF(IF(dati_pdc!$C591=1,dati_bdv!$C$2:$C$65536,IF(dati_pdc!$C591=2,dati_bdv!$D$2:$D$65536,IF(dati_pdc!$C591=3,dati_bdv!$E$2:$E$65536,IF(dati_pdc!$C591=4,dati_bdv!$F$2:$F$65536,IF(dati_pdc!$C591=5,dati_bdv!$G$2:$G$65536,dati_bdv!$H$2:$H$65536))))),$A591,dati_bdv!N$2:N$65536)","v":0}]
[{"$f":"dati_pdc!A592","v":0},{"$f":"SUMIF(IF(dati_pdc!$C592=1,dati_bdv!$C$2:$C$65536,IF(dati_pdc!$C592=2,dati_bdv!$D$2:$D$65536,IF(dati_pdc!$C592=3,dati_bdv!$E$2:$E$65536,IF(dati_pdc!$C592=4,dati_bdv!$F$2:$F$65536,IF(dati_pdc!$C592=5,dati_bdv!$G$2:$G$65536,dati_bdv!$H$2:$H$65536))))),$A592,dati_bdv!J$2:J$65536)","v":0},{"$f":"SUMIF(IF(dati_pdc!$C592=1,dati_bdv!$C$2:$C$65536,IF(dati_pdc!$C592=2,dati_bdv!$D$2:$D$65536,IF(dati_pdc!$C592=3,dati_bdv!$E$2:$E$65536,IF(dati_pdc!$C592=4,dati_bdv!$F$2:$F$65536,IF(dati_pdc!$C592=5,dati_bdv!$G$2:$G$65536,dati_bdv!$H$2:$H$65536))))),$A592,dati_bdv!K$2:K$65536)","v":0},{"$f":"SUMIF(IF(dati_pdc!$C592=1,dati_bdv!$C$2:$C$65536,IF(dati_pdc!$C592=2,dati_bdv!$D$2:$D$65536,IF(dati_pdc!$C592=3,dati_bdv!$E$2:$E$65536,IF(dati_pdc!$C592=4,dati_bdv!$F$2:$F$65536,IF(dati_pdc!$C592=5,dati_bdv!$G$2:$G$65536,dati_bdv!$H$2:$H$65536))))),$A592,dati_bdv!L$2:L$65536)","v":0},{"$f":"SUMIF(IF(dati_pdc!$C592=1,dati_bdv!$C$2:$C$65536,IF(dati_pdc!$C592=2,dati_bdv!$D$2:$D$65536,IF(dati_pdc!$C592=3,dati_bdv!$E$2:$E$65536,IF(dati_pdc!$C592=4,dati_bdv!$F$2:$F$65536,IF(dati_pdc!$C592=5,dati_bdv!$G$2:$G$65536,dati_bdv!$H$2:$H$65536))))),$A592,dati_bdv!M$2:M$65536)","v":0},{"$f":"SUMIF(IF(dati_pdc!$C592=1,dati_bdv!$C$2:$C$65536,IF(dati_pdc!$C592=2,dati_bdv!$D$2:$D$65536,IF(dati_pdc!$C592=3,dati_bdv!$E$2:$E$65536,IF(dati_pdc!$C592=4,dati_bdv!$F$2:$F$65536,IF(dati_pdc!$C592=5,dati_bdv!$G$2:$G$65536,dati_bdv!$H$2:$H$65536))))),$A592,dati_bdv!N$2:N$65536)","v":0}]
[{"$f":"dati_pdc!A593","v":0},{"$f":"SUMIF(IF(dati_pdc!$C593=1,dati_bdv!$C$2:$C$65536,IF(dati_pdc!$C593=2,dati_bdv!$D$2:$D$65536,IF(dati_pdc!$C593=3,dati_bdv!$E$2:$E$65536,IF(dati_pdc!$C593=4,dati_bdv!$F$2:$F$65536,IF(dati_pdc!$C593=5,dati_bdv!$G$2:$G$65536,dati_bdv!$H$2:$H$65536))))),$A593,dati_bdv!J$2:J$65536)","v":0},{"$f":"SUMIF(IF(dati_pdc!$C593=1,dati_bdv!$C$2:$C$65536,IF(dati_pdc!$C593=2,dati_bdv!$D$2:$D$65536,IF(dati_pdc!$C593=3,dati_bdv!$E$2:$E$65536,IF(dati_pdc!$C593=4,dati_bdv!$F$2:$F$65536,IF(dati_pdc!$C593=5,dati_bdv!$G$2:$G$65536,dati_bdv!$H$2:$H$65536))))),$A593,dati_bdv!K$2:K$65536)","v":0},{"$f":"SUMIF(IF(dati_pdc!$C593=1,dati_bdv!$C$2:$C$65536,IF(dati_pdc!$C593=2,dati_bdv!$D$2:$D$65536,IF(dati_pdc!$C593=3,dati_bdv!$E$2:$E$65536,IF(dati_pdc!$C593=4,dati_bdv!$F$2:$F$65536,IF(dati_pdc!$C593=5,dati_bdv!$G$2:$G$65536,dati_bdv!$H$2:$H$65536))))),$A593,dati_bdv!L$2:L$65536)","v":0},{"$f":"SUMIF(IF(dati_pdc!$C593=1,dati_bdv!$C$2:$C$65536,IF(dati_pdc!$C593=2,dati_bdv!$D$2:$D$65536,IF(dati_pdc!$C593=3,dati_bdv!$E$2:$E$65536,IF(dati_pdc!$C593=4,dati_bdv!$F$2:$F$65536,IF(dati_pdc!$C593=5,dati_bdv!$G$2:$G$65536,dati_bdv!$H$2:$H$65536))))),$A593,dati_bdv!M$2:M$65536)","v":0},{"$f":"SUMIF(IF(dati_pdc!$C593=1,dati_bdv!$C$2:$C$65536,IF(dati_pdc!$C593=2,dati_bdv!$D$2:$D$65536,IF(dati_pdc!$C593=3,dati_bdv!$E$2:$E$65536,IF(dati_pdc!$C593=4,dati_bdv!$F$2:$F$65536,IF(dati_pdc!$C593=5,dati_bdv!$G$2:$G$65536,dati_bdv!$H$2:$H$65536))))),$A593,dati_bdv!N$2:N$65536)","v":0}]
[{"$f":"dati_pdc!A594","v":0},{"$f":"SUMIF(IF(dati_pdc!$C594=1,dati_bdv!$C$2:$C$65536,IF(dati_pdc!$C594=2,dati_bdv!$D$2:$D$65536,IF(dati_pdc!$C594=3,dati_bdv!$E$2:$E$65536,IF(dati_pdc!$C594=4,dati_bdv!$F$2:$F$65536,IF(dati_pdc!$C594=5,dati_bdv!$G$2:$G$65536,dati_bdv!$H$2:$H$65536))))),$A594,dati_bdv!J$2:J$65536)","v":0},{"$f":"SUMIF(IF(dati_pdc!$C594=1,dati_bdv!$C$2:$C$65536,IF(dati_pdc!$C594=2,dati_bdv!$D$2:$D$65536,IF(dati_pdc!$C594=3,dati_bdv!$E$2:$E$65536,IF(dati_pdc!$C594=4,dati_bdv!$F$2:$F$65536,IF(dati_pdc!$C594=5,dati_bdv!$G$2:$G$65536,dati_bdv!$H$2:$H$65536))))),$A594,dati_bdv!K$2:K$65536)","v":0},{"$f":"SUMIF(IF(dati_pdc!$C594=1,dati_bdv!$C$2:$C$65536,IF(dati_pdc!$C594=2,dati_bdv!$D$2:$D$65536,IF(dati_pdc!$C594=3,dati_bdv!$E$2:$E$65536,IF(dati_pdc!$C594=4,dati_bdv!$F$2:$F$65536,IF(dati_pdc!$C594=5,dati_bdv!$G$2:$G$65536,dati_bdv!$H$2:$H$65536))))),$A594,dati_bdv!L$2:L$65536)","v":0},{"$f":"SUMIF(IF(dati_pdc!$C594=1,dati_bdv!$C$2:$C$65536,IF(dati_pdc!$C594=2,dati_bdv!$D$2:$D$65536,IF(dati_pdc!$C594=3,dati_bdv!$E$2:$E$65536,IF(dati_pdc!$C594=4,dati_bdv!$F$2:$F$65536,IF(dati_pdc!$C594=5,dati_bdv!$G$2:$G$65536,dati_bdv!$H$2:$H$65536))))),$A594,dati_bdv!M$2:M$65536)","v":0},{"$f":"SUMIF(IF(dati_pdc!$C594=1,dati_bdv!$C$2:$C$65536,IF(dati_pdc!$C594=2,dati_bdv!$D$2:$D$65536,IF(dati_pdc!$C594=3,dati_bdv!$E$2:$E$65536,IF(dati_pdc!$C594=4,dati_bdv!$F$2:$F$65536,IF(dati_pdc!$C594=5,dati_bdv!$G$2:$G$65536,dati_bdv!$H$2:$H$65536))))),$A594,dati_bdv!N$2:N$65536)","v":0}]
[{"$f":"dati_pdc!A595","v":0},{"$f":"SUMIF(IF(dati_pdc!$C595=1,dati_bdv!$C$2:$C$65536,IF(dati_pdc!$C595=2,dati_bdv!$D$2:$D$65536,IF(dati_pdc!$C595=3,dati_bdv!$E$2:$E$65536,IF(dati_pdc!$C595=4,dati_bdv!$F$2:$F$65536,IF(dati_pdc!$C595=5,dati_bdv!$G$2:$G$65536,dati_bdv!$H$2:$H$65536))))),$A595,dati_bdv!J$2:J$65536)","v":0},{"$f":"SUMIF(IF(dati_pdc!$C595=1,dati_bdv!$C$2:$C$65536,IF(dati_pdc!$C595=2,dati_bdv!$D$2:$D$65536,IF(dati_pdc!$C595=3,dati_bdv!$E$2:$E$65536,IF(dati_pdc!$C595=4,dati_bdv!$F$2:$F$65536,IF(dati_pdc!$C595=5,dati_bdv!$G$2:$G$65536,dati_bdv!$H$2:$H$65536))))),$A595,dati_bdv!K$2:K$65536)","v":0},{"$f":"SUMIF(IF(dati_pdc!$C595=1,dati_bdv!$C$2:$C$65536,IF(dati_pdc!$C595=2,dati_bdv!$D$2:$D$65536,IF(dati_pdc!$C595=3,dati_bdv!$E$2:$E$65536,IF(dati_pdc!$C595=4,dati_bdv!$F$2:$F$65536,IF(dati_pdc!$C595=5,dati_bdv!$G$2:$G$65536,dati_bdv!$H$2:$H$65536))))),$A595,dati_bdv!L$2:L$65536)","v":0},{"$f":"SUMIF(IF(dati_pdc!$C595=1,dati_bdv!$C$2:$C$65536,IF(dati_pdc!$C595=2,dati_bdv!$D$2:$D$65536,IF(dati_pdc!$C595=3,dati_bdv!$E$2:$E$65536,IF(dati_pdc!$C595=4,dati_bdv!$F$2:$F$65536,IF(dati_pdc!$C595=5,dati_bdv!$G$2:$G$65536,dati_bdv!$H$2:$H$65536))))),$A595,dati_bdv!M$2:M$65536)","v":0},{"$f":"SUMIF(IF(dati_pdc!$C595=1,dati_bdv!$C$2:$C$65536,IF(dati_pdc!$C595=2,dati_bdv!$D$2:$D$65536,IF(dati_pdc!$C595=3,dati_bdv!$E$2:$E$65536,IF(dati_pdc!$C595=4,dati_bdv!$F$2:$F$65536,IF(dati_pdc!$C595=5,dati_bdv!$G$2:$G$65536,dati_bdv!$H$2:$H$65536))))),$A595,dati_bdv!N$2:N$65536)","v":0}]
[{"$f":"dati_pdc!A596","v":0},{"$f":"SUMIF(IF(dati_pdc!$C596=1,dati_bdv!$C$2:$C$65536,IF(dati_pdc!$C596=2,dati_bdv!$D$2:$D$65536,IF(dati_pdc!$C596=3,dati_bdv!$E$2:$E$65536,IF(dati_pdc!$C596=4,dati_bdv!$F$2:$F$65536,IF(dati_pdc!$C596=5,dati_bdv!$G$2:$G$65536,dati_bdv!$H$2:$H$65536))))),$A596,dati_bdv!J$2:J$65536)","v":0},{"$f":"SUMIF(IF(dati_pdc!$C596=1,dati_bdv!$C$2:$C$65536,IF(dati_pdc!$C596=2,dati_bdv!$D$2:$D$65536,IF(dati_pdc!$C596=3,dati_bdv!$E$2:$E$65536,IF(dati_pdc!$C596=4,dati_bdv!$F$2:$F$65536,IF(dati_pdc!$C596=5,dati_bdv!$G$2:$G$65536,dati_bdv!$H$2:$H$65536))))),$A596,dati_bdv!K$2:K$65536)","v":0},{"$f":"SUMIF(IF(dati_pdc!$C596=1,dati_bdv!$C$2:$C$65536,IF(dati_pdc!$C596=2,dati_bdv!$D$2:$D$65536,IF(dati_pdc!$C596=3,dati_bdv!$E$2:$E$65536,IF(dati_pdc!$C596=4,dati_bdv!$F$2:$F$65536,IF(dati_pdc!$C596=5,dati_bdv!$G$2:$G$65536,dati_bdv!$H$2:$H$65536))))),$A596,dati_bdv!L$2:L$65536)","v":0},{"$f":"SUMIF(IF(dati_pdc!$C596=1,dati_bdv!$C$2:$C$65536,IF(dati_pdc!$C596=2,dati_bdv!$D$2:$D$65536,IF(dati_pdc!$C596=3,dati_bdv!$E$2:$E$65536,IF(dati_pdc!$C596=4,dati_bdv!$F$2:$F$65536,IF(dati_pdc!$C596=5,dati_bdv!$G$2:$G$65536,dati_bdv!$H$2:$H$65536))))),$A596,dati_bdv!M$2:M$65536)","v":0},{"$f":"SUMIF(IF(dati_pdc!$C596=1,dati_bdv!$C$2:$C$65536,IF(dati_pdc!$C596=2,dati_bdv!$D$2:$D$65536,IF(dati_pdc!$C596=3,dati_bdv!$E$2:$E$65536,IF(dati_pdc!$C596=4,dati_bdv!$F$2:$F$65536,IF(dati_pdc!$C596=5,dati_bdv!$G$2:$G$65536,dati_bdv!$H$2:$H$65536))))),$A596,dati_bdv!N$2:N$65536)","v":0}]
[{"$f":"dati_pdc!A597","v":0},{"$f":"SUMIF(IF(dati_pdc!$C597=1,dati_bdv!$C$2:$C$65536,IF(dati_pdc!$C597=2,dati_bdv!$D$2:$D$65536,IF(dati_pdc!$C597=3,dati_bdv!$E$2:$E$65536,IF(dati_pdc!$C597=4,dati_bdv!$F$2:$F$65536,IF(dati_pdc!$C597=5,dati_bdv!$G$2:$G$65536,dati_bdv!$H$2:$H$65536))))),$A597,dati_bdv!J$2:J$65536)","v":0},{"$f":"SUMIF(IF(dati_pdc!$C597=1,dati_bdv!$C$2:$C$65536,IF(dati_pdc!$C597=2,dati_bdv!$D$2:$D$65536,IF(dati_pdc!$C597=3,dati_bdv!$E$2:$E$65536,IF(dati_pdc!$C597=4,dati_bdv!$F$2:$F$65536,IF(dati_pdc!$C597=5,dati_bdv!$G$2:$G$65536,dati_bdv!$H$2:$H$65536))))),$A597,dati_bdv!K$2:K$65536)","v":0},{"$f":"SUMIF(IF(dati_pdc!$C597=1,dati_bdv!$C$2:$C$65536,IF(dati_pdc!$C597=2,dati_bdv!$D$2:$D$65536,IF(dati_pdc!$C597=3,dati_bdv!$E$2:$E$65536,IF(dati_pdc!$C597=4,dati_bdv!$F$2:$F$65536,IF(dati_pdc!$C597=5,dati_bdv!$G$2:$G$65536,dati_bdv!$H$2:$H$65536))))),$A597,dati_bdv!L$2:L$65536)","v":0},{"$f":"SUMIF(IF(dati_pdc!$C597=1,dati_bdv!$C$2:$C$65536,IF(dati_pdc!$C597=2,dati_bdv!$D$2:$D$65536,IF(dati_pdc!$C597=3,dati_bdv!$E$2:$E$65536,IF(dati_pdc!$C597=4,dati_bdv!$F$2:$F$65536,IF(dati_pdc!$C597=5,dati_bdv!$G$2:$G$65536,dati_bdv!$H$2:$H$65536))))),$A597,dati_bdv!M$2:M$65536)","v":0},{"$f":"SUMIF(IF(dati_pdc!$C597=1,dati_bdv!$C$2:$C$65536,IF(dati_pdc!$C597=2,dati_bdv!$D$2:$D$65536,IF(dati_pdc!$C597=3,dati_bdv!$E$2:$E$65536,IF(dati_pdc!$C597=4,dati_bdv!$F$2:$F$65536,IF(dati_pdc!$C597=5,dati_bdv!$G$2:$G$65536,dati_bdv!$H$2:$H$65536))))),$A597,dati_bdv!N$2:N$65536)","v":0}]
[{"$f":"dati_pdc!A598","v":0},{"$f":"SUMIF(IF(dati_pdc!$C598=1,dati_bdv!$C$2:$C$65536,IF(dati_pdc!$C598=2,dati_bdv!$D$2:$D$65536,IF(dati_pdc!$C598=3,dati_bdv!$E$2:$E$65536,IF(dati_pdc!$C598=4,dati_bdv!$F$2:$F$65536,IF(dati_pdc!$C598=5,dati_bdv!$G$2:$G$65536,dati_bdv!$H$2:$H$65536))))),$A598,dati_bdv!J$2:J$65536)","v":0},{"$f":"SUMIF(IF(dati_pdc!$C598=1,dati_bdv!$C$2:$C$65536,IF(dati_pdc!$C598=2,dati_bdv!$D$2:$D$65536,IF(dati_pdc!$C598=3,dati_bdv!$E$2:$E$65536,IF(dati_pdc!$C598=4,dati_bdv!$F$2:$F$65536,IF(dati_pdc!$C598=5,dati_bdv!$G$2:$G$65536,dati_bdv!$H$2:$H$65536))))),$A598,dati_bdv!K$2:K$65536)","v":0},{"$f":"SUMIF(IF(dati_pdc!$C598=1,dati_bdv!$C$2:$C$65536,IF(dati_pdc!$C598=2,dati_bdv!$D$2:$D$65536,IF(dati_pdc!$C598=3,dati_bdv!$E$2:$E$65536,IF(dati_pdc!$C598=4,dati_bdv!$F$2:$F$65536,IF(dati_pdc!$C598=5,dati_bdv!$G$2:$G$65536,dati_bdv!$H$2:$H$65536))))),$A598,dati_bdv!L$2:L$65536)","v":0},{"$f":"SUMIF(IF(dati_pdc!$C598=1,dati_bdv!$C$2:$C$65536,IF(dati_pdc!$C598=2,dati_bdv!$D$2:$D$65536,IF(dati_pdc!$C598=3,dati_bdv!$E$2:$E$65536,IF(dati_pdc!$C598=4,dati_bdv!$F$2:$F$65536,IF(dati_pdc!$C598=5,dati_bdv!$G$2:$G$65536,dati_bdv!$H$2:$H$65536))))),$A598,dati_bdv!M$2:M$65536)","v":0},{"$f":"SUMIF(IF(dati_pdc!$C598=1,dati_bdv!$C$2:$C$65536,IF(dati_pdc!$C598=2,dati_bdv!$D$2:$D$65536,IF(dati_pdc!$C598=3,dati_bdv!$E$2:$E$65536,IF(dati_pdc!$C598=4,dati_bdv!$F$2:$F$65536,IF(dati_pdc!$C598=5,dati_bdv!$G$2:$G$65536,dati_bdv!$H$2:$H$65536))))),$A598,dati_bdv!N$2:N$65536)","v":0}]
[{"$f":"dati_pdc!A599","v":0},{"$f":"SUMIF(IF(dati_pdc!$C599=1,dati_bdv!$C$2:$C$65536,IF(dati_pdc!$C599=2,dati_bdv!$D$2:$D$65536,IF(dati_pdc!$C599=3,dati_bdv!$E$2:$E$65536,IF(dati_pdc!$C599=4,dati_bdv!$F$2:$F$65536,IF(dati_pdc!$C599=5,dati_bdv!$G$2:$G$65536,dati_bdv!$H$2:$H$65536))))),$A599,dati_bdv!J$2:J$65536)","v":0},{"$f":"SUMIF(IF(dati_pdc!$C599=1,dati_bdv!$C$2:$C$65536,IF(dati_pdc!$C599=2,dati_bdv!$D$2:$D$65536,IF(dati_pdc!$C599=3,dati_bdv!$E$2:$E$65536,IF(dati_pdc!$C599=4,dati_bdv!$F$2:$F$65536,IF(dati_pdc!$C599=5,dati_bdv!$G$2:$G$65536,dati_bdv!$H$2:$H$65536))))),$A599,dati_bdv!K$2:K$65536)","v":0},{"$f":"SUMIF(IF(dati_pdc!$C599=1,dati_bdv!$C$2:$C$65536,IF(dati_pdc!$C599=2,dati_bdv!$D$2:$D$65536,IF(dati_pdc!$C599=3,dati_bdv!$E$2:$E$65536,IF(dati_pdc!$C599=4,dati_bdv!$F$2:$F$65536,IF(dati_pdc!$C599=5,dati_bdv!$G$2:$G$65536,dati_bdv!$H$2:$H$65536))))),$A599,dati_bdv!L$2:L$65536)","v":0},{"$f":"SUMIF(IF(dati_pdc!$C599=1,dati_bdv!$C$2:$C$65536,IF(dati_pdc!$C599=2,dati_bdv!$D$2:$D$65536,IF(dati_pdc!$C599=3,dati_bdv!$E$2:$E$65536,IF(dati_pdc!$C599=4,dati_bdv!$F$2:$F$65536,IF(dati_pdc!$C599=5,dati_bdv!$G$2:$G$65536,dati_bdv!$H$2:$H$65536))))),$A599,dati_bdv!M$2:M$65536)","v":0},{"$f":"SUMIF(IF(dati_pdc!$C599=1,dati_bdv!$C$2:$C$65536,IF(dati_pdc!$C599=2,dati_bdv!$D$2:$D$65536,IF(dati_pdc!$C599=3,dati_bdv!$E$2:$E$65536,IF(dati_pdc!$C599=4,dati_bdv!$F$2:$F$65536,IF(dati_pdc!$C599=5,dati_bdv!$G$2:$G$65536,dati_bdv!$H$2:$H$65536))))),$A599,dati_bdv!N$2:N$65536)","v":0}]
[{"$f":"dati_pdc!A600","v":0},{"$f":"SUMIF(IF(dati_pdc!$C600=1,dati_bdv!$C$2:$C$65536,IF(dati_pdc!$C600=2,dati_bdv!$D$2:$D$65536,IF(dati_pdc!$C600=3,dati_bdv!$E$2:$E$65536,IF(dati_pdc!$C600=4,dati_bdv!$F$2:$F$65536,IF(dati_pdc!$C600=5,dati_bdv!$G$2:$G$65536,dati_bdv!$H$2:$H$65536))))),$A600,dati_bdv!J$2:J$65536)","v":0},{"$f":"SUMIF(IF(dati_pdc!$C600=1,dati_bdv!$C$2:$C$65536,IF(dati_pdc!$C600=2,dati_bdv!$D$2:$D$65536,IF(dati_pdc!$C600=3,dati_bdv!$E$2:$E$65536,IF(dati_pdc!$C600=4,dati_bdv!$F$2:$F$65536,IF(dati_pdc!$C600=5,dati_bdv!$G$2:$G$65536,dati_bdv!$H$2:$H$65536))))),$A600,dati_bdv!K$2:K$65536)","v":0},{"$f":"SUMIF(IF(dati_pdc!$C600=1,dati_bdv!$C$2:$C$65536,IF(dati_pdc!$C600=2,dati_bdv!$D$2:$D$65536,IF(dati_pdc!$C600=3,dati_bdv!$E$2:$E$65536,IF(dati_pdc!$C600=4,dati_bdv!$F$2:$F$65536,IF(dati_pdc!$C600=5,dati_bdv!$G$2:$G$65536,dati_bdv!$H$2:$H$65536))))),$A600,dati_bdv!L$2:L$65536)","v":0},{"$f":"SUMIF(IF(dati_pdc!$C600=1,dati_bdv!$C$2:$C$65536,IF(dati_pdc!$C600=2,dati_bdv!$D$2:$D$65536,IF(dati_pdc!$C600=3,dati_bdv!$E$2:$E$65536,IF(dati_pdc!$C600=4,dati_bdv!$F$2:$F$65536,IF(dati_pdc!$C600=5,dati_bdv!$G$2:$G$65536,dati_bdv!$H$2:$H$65536))))),$A600,dati_bdv!M$2:M$65536)","v":0},{"$f":"SUMIF(IF(dati_pdc!$C600=1,dati_bdv!$C$2:$C$65536,IF(dati_pdc!$C600=2,dati_bdv!$D$2:$D$65536,IF(dati_pdc!$C600=3,dati_bdv!$E$2:$E$65536,IF(dati_pdc!$C600=4,dati_bdv!$F$2:$F$65536,IF(dati_pdc!$C600=5,dati_bdv!$G$2:$G$65536,dati_bdv!$H$2:$H$65536))))),$A600,dati_bdv!N$2:N$65536)","v":0}]
[{"$f":"dati_pdc!A601","v":0},{"$f":"SUMIF(IF(dati_pdc!$C601=1,dati_bdv!$C$2:$C$65536,IF(dati_pdc!$C601=2,dati_bdv!$D$2:$D$65536,IF(dati_pdc!$C601=3,dati_bdv!$E$2:$E$65536,IF(dati_pdc!$C601=4,dati_bdv!$F$2:$F$65536,IF(dati_pdc!$C601=5,dati_bdv!$G$2:$G$65536,dati_bdv!$H$2:$H$65536))))),$A601,dati_bdv!J$2:J$65536)","v":0},{"$f":"SUMIF(IF(dati_pdc!$C601=1,dati_bdv!$C$2:$C$65536,IF(dati_pdc!$C601=2,dati_bdv!$D$2:$D$65536,IF(dati_pdc!$C601=3,dati_bdv!$E$2:$E$65536,IF(dati_pdc!$C601=4,dati_bdv!$F$2:$F$65536,IF(dati_pdc!$C601=5,dati_bdv!$G$2:$G$65536,dati_bdv!$H$2:$H$65536))))),$A601,dati_bdv!K$2:K$65536)","v":0},{"$f":"SUMIF(IF(dati_pdc!$C601=1,dati_bdv!$C$2:$C$65536,IF(dati_pdc!$C601=2,dati_bdv!$D$2:$D$65536,IF(dati_pdc!$C601=3,dati_bdv!$E$2:$E$65536,IF(dati_pdc!$C601=4,dati_bdv!$F$2:$F$65536,IF(dati_pdc!$C601=5,dati_bdv!$G$2:$G$65536,dati_bdv!$H$2:$H$65536))))),$A601,dati_bdv!L$2:L$65536)","v":0},{"$f":"SUMIF(IF(dati_pdc!$C601=1,dati_bdv!$C$2:$C$65536,IF(dati_pdc!$C601=2,dati_bdv!$D$2:$D$65536,IF(dati_pdc!$C601=3,dati_bdv!$E$2:$E$65536,IF(dati_pdc!$C601=4,dati_bdv!$F$2:$F$65536,IF(dati_pdc!$C601=5,dati_bdv!$G$2:$G$65536,dati_bdv!$H$2:$H$65536))))),$A601,dati_bdv!M$2:M$65536)","v":0},{"$f":"SUMIF(IF(dati_pdc!$C601=1,dati_bdv!$C$2:$C$65536,IF(dati_pdc!$C601=2,dati_bdv!$D$2:$D$65536,IF(dati_pdc!$C601=3,dati_bdv!$E$2:$E$65536,IF(dati_pdc!$C601=4,dati_bdv!$F$2:$F$65536,IF(dati_pdc!$C601=5,dati_bdv!$G$2:$G$65536,dati_bdv!$H$2:$H$65536))))),$A601,dati_bdv!N$2:N$65536)","v":0}]
[{"$f":"dati_pdc!A602","v":0},{"$f":"SUMIF(IF(dati_pdc!$C602=1,dati_bdv!$C$2:$C$65536,IF(dati_pdc!$C602=2,dati_bdv!$D$2:$D$65536,IF(dati_pdc!$C602=3,dati_bdv!$E$2:$E$65536,IF(dati_pdc!$C602=4,dati_bdv!$F$2:$F$65536,IF(dati_pdc!$C602=5,dati_bdv!$G$2:$G$65536,dati_bdv!$H$2:$H$65536))))),$A602,dati_bdv!J$2:J$65536)","v":0},{"$f":"SUMIF(IF(dati_pdc!$C602=1,dati_bdv!$C$2:$C$65536,IF(dati_pdc!$C602=2,dati_bdv!$D$2:$D$65536,IF(dati_pdc!$C602=3,dati_bdv!$E$2:$E$65536,IF(dati_pdc!$C602=4,dati_bdv!$F$2:$F$65536,IF(dati_pdc!$C602=5,dati_bdv!$G$2:$G$65536,dati_bdv!$H$2:$H$65536))))),$A602,dati_bdv!K$2:K$65536)","v":0},{"$f":"SUMIF(IF(dati_pdc!$C602=1,dati_bdv!$C$2:$C$65536,IF(dati_pdc!$C602=2,dati_bdv!$D$2:$D$65536,IF(dati_pdc!$C602=3,dati_bdv!$E$2:$E$65536,IF(dati_pdc!$C602=4,dati_bdv!$F$2:$F$65536,IF(dati_pdc!$C602=5,dati_bdv!$G$2:$G$65536,dati_bdv!$H$2:$H$65536))))),$A602,dati_bdv!L$2:L$65536)","v":0},{"$f":"SUMIF(IF(dati_pdc!$C602=1,dati_bdv!$C$2:$C$65536,IF(dati_pdc!$C602=2,dati_bdv!$D$2:$D$65536,IF(dati_pdc!$C602=3,dati_bdv!$E$2:$E$65536,IF(dati_pdc!$C602=4,dati_bdv!$F$2:$F$65536,IF(dati_pdc!$C602=5,dati_bdv!$G$2:$G$65536,dati_bdv!$H$2:$H$65536))))),$A602,dati_bdv!M$2:M$65536)","v":0},{"$f":"SUMIF(IF(dati_pdc!$C602=1,dati_bdv!$C$2:$C$65536,IF(dati_pdc!$C602=2,dati_bdv!$D$2:$D$65536,IF(dati_pdc!$C602=3,dati_bdv!$E$2:$E$65536,IF(dati_pdc!$C602=4,dati_bdv!$F$2:$F$65536,IF(dati_pdc!$C602=5,dati_bdv!$G$2:$G$65536,dati_bdv!$H$2:$H$65536))))),$A602,dati_bdv!N$2:N$65536)","v":0}]
[{"$f":"dati_pdc!A603","v":0},{"$f":"SUMIF(IF(dati_pdc!$C603=1,dati_bdv!$C$2:$C$65536,IF(dati_pdc!$C603=2,dati_bdv!$D$2:$D$65536,IF(dati_pdc!$C603=3,dati_bdv!$E$2:$E$65536,IF(dati_pdc!$C603=4,dati_bdv!$F$2:$F$65536,IF(dati_pdc!$C603=5,dati_bdv!$G$2:$G$65536,dati_bdv!$H$2:$H$65536))))),$A603,dati_bdv!J$2:J$65536)","v":0},{"$f":"SUMIF(IF(dati_pdc!$C603=1,dati_bdv!$C$2:$C$65536,IF(dati_pdc!$C603=2,dati_bdv!$D$2:$D$65536,IF(dati_pdc!$C603=3,dati_bdv!$E$2:$E$65536,IF(dati_pdc!$C603=4,dati_bdv!$F$2:$F$65536,IF(dati_pdc!$C603=5,dati_bdv!$G$2:$G$65536,dati_bdv!$H$2:$H$65536))))),$A603,dati_bdv!K$2:K$65536)","v":0},{"$f":"SUMIF(IF(dati_pdc!$C603=1,dati_bdv!$C$2:$C$65536,IF(dati_pdc!$C603=2,dati_bdv!$D$2:$D$65536,IF(dati_pdc!$C603=3,dati_bdv!$E$2:$E$65536,IF(dati_pdc!$C603=4,dati_bdv!$F$2:$F$65536,IF(dati_pdc!$C603=5,dati_bdv!$G$2:$G$65536,dati_bdv!$H$2:$H$65536))))),$A603,dati_bdv!L$2:L$65536)","v":0},{"$f":"SUMIF(IF(dati_pdc!$C603=1,dati_bdv!$C$2:$C$65536,IF(dati_pdc!$C603=2,dati_bdv!$D$2:$D$65536,IF(dati_pdc!$C603=3,dati_bdv!$E$2:$E$65536,IF(dati_pdc!$C603=4,dati_bdv!$F$2:$F$65536,IF(dati_pdc!$C603=5,dati_bdv!$G$2:$G$65536,dati_bdv!$H$2:$H$65536))))),$A603,dati_bdv!M$2:M$65536)","v":0},{"$f":"SUMIF(IF(dati_pdc!$C603=1,dati_bdv!$C$2:$C$65536,IF(dati_pdc!$C603=2,dati_bdv!$D$2:$D$65536,IF(dati_pdc!$C603=3,dati_bdv!$E$2:$E$65536,IF(dati_pdc!$C603=4,dati_bdv!$F$2:$F$65536,IF(dati_pdc!$C603=5,dati_bdv!$G$2:$G$65536,dati_bdv!$H$2:$H$65536))))),$A603,dati_bdv!N$2:N$65536)","v":0}]
[{"$f":"dati_pdc!A604","v":0},{"$f":"SUMIF(IF(dati_pdc!$C604=1,dati_bdv!$C$2:$C$65536,IF(dati_pdc!$C604=2,dati_bdv!$D$2:$D$65536,IF(dati_pdc!$C604=3,dati_bdv!$E$2:$E$65536,IF(dati_pdc!$C604=4,dati_bdv!$F$2:$F$65536,IF(dati_pdc!$C604=5,dati_bdv!$G$2:$G$65536,dati_bdv!$H$2:$H$65536))))),$A604,dati_bdv!J$2:J$65536)","v":0},{"$f":"SUMIF(IF(dati_pdc!$C604=1,dati_bdv!$C$2:$C$65536,IF(dati_pdc!$C604=2,dati_bdv!$D$2:$D$65536,IF(dati_pdc!$C604=3,dati_bdv!$E$2:$E$65536,IF(dati_pdc!$C604=4,dati_bdv!$F$2:$F$65536,IF(dati_pdc!$C604=5,dati_bdv!$G$2:$G$65536,dati_bdv!$H$2:$H$65536))))),$A604,dati_bdv!K$2:K$65536)","v":0},{"$f":"SUMIF(IF(dati_pdc!$C604=1,dati_bdv!$C$2:$C$65536,IF(dati_pdc!$C604=2,dati_bdv!$D$2:$D$65536,IF(dati_pdc!$C604=3,dati_bdv!$E$2:$E$65536,IF(dati_pdc!$C604=4,dati_bdv!$F$2:$F$65536,IF(dati_pdc!$C604=5,dati_bdv!$G$2:$G$65536,dati_bdv!$H$2:$H$65536))))),$A604,dati_bdv!L$2:L$65536)","v":0},{"$f":"SUMIF(IF(dati_pdc!$C604=1,dati_bdv!$C$2:$C$65536,IF(dati_pdc!$C604=2,dati_bdv!$D$2:$D$65536,IF(dati_pdc!$C604=3,dati_bdv!$E$2:$E$65536,IF(dati_pdc!$C604=4,dati_bdv!$F$2:$F$65536,IF(dati_pdc!$C604=5,dati_bdv!$G$2:$G$65536,dati_bdv!$H$2:$H$65536))))),$A604,dati_bdv!M$2:M$65536)","v":0},{"$f":"SUMIF(IF(dati_pdc!$C604=1,dati_bdv!$C$2:$C$65536,IF(dati_pdc!$C604=2,dati_bdv!$D$2:$D$65536,IF(dati_pdc!$C604=3,dati_bdv!$E$2:$E$65536,IF(dati_pdc!$C604=4,dati_bdv!$F$2:$F$65536,IF(dati_pdc!$C604=5,dati_bdv!$G$2:$G$65536,dati_bdv!$H$2:$H$65536))))),$A604,dati_bdv!N$2:N$65536)","v":0}]
[{"$f":"dati_pdc!A605","v":0},{"$f":"SUMIF(IF(dati_pdc!$C605=1,dati_bdv!$C$2:$C$65536,IF(dati_pdc!$C605=2,dati_bdv!$D$2:$D$65536,IF(dati_pdc!$C605=3,dati_bdv!$E$2:$E$65536,IF(dati_pdc!$C605=4,dati_bdv!$F$2:$F$65536,IF(dati_pdc!$C605=5,dati_bdv!$G$2:$G$65536,dati_bdv!$H$2:$H$65536))))),$A605,dati_bdv!J$2:J$65536)","v":0},{"$f":"SUMIF(IF(dati_pdc!$C605=1,dati_bdv!$C$2:$C$65536,IF(dati_pdc!$C605=2,dati_bdv!$D$2:$D$65536,IF(dati_pdc!$C605=3,dati_bdv!$E$2:$E$65536,IF(dati_pdc!$C605=4,dati_bdv!$F$2:$F$65536,IF(dati_pdc!$C605=5,dati_bdv!$G$2:$G$65536,dati_bdv!$H$2:$H$65536))))),$A605,dati_bdv!K$2:K$65536)","v":0},{"$f":"SUMIF(IF(dati_pdc!$C605=1,dati_bdv!$C$2:$C$65536,IF(dati_pdc!$C605=2,dati_bdv!$D$2:$D$65536,IF(dati_pdc!$C605=3,dati_bdv!$E$2:$E$65536,IF(dati_pdc!$C605=4,dati_bdv!$F$2:$F$65536,IF(dati_pdc!$C605=5,dati_bdv!$G$2:$G$65536,dati_bdv!$H$2:$H$65536))))),$A605,dati_bdv!L$2:L$65536)","v":0},{"$f":"SUMIF(IF(dati_pdc!$C605=1,dati_bdv!$C$2:$C$65536,IF(dati_pdc!$C605=2,dati_bdv!$D$2:$D$65536,IF(dati_pdc!$C605=3,dati_bdv!$E$2:$E$65536,IF(dati_pdc!$C605=4,dati_bdv!$F$2:$F$65536,IF(dati_pdc!$C605=5,dati_bdv!$G$2:$G$65536,dati_bdv!$H$2:$H$65536))))),$A605,dati_bdv!M$2:M$65536)","v":0},{"$f":"SUMIF(IF(dati_pdc!$C605=1,dati_bdv!$C$2:$C$65536,IF(dati_pdc!$C605=2,dati_bdv!$D$2:$D$65536,IF(dati_pdc!$C605=3,dati_bdv!$E$2:$E$65536,IF(dati_pdc!$C605=4,dati_bdv!$F$2:$F$65536,IF(dati_pdc!$C605=5,dati_bdv!$G$2:$G$65536,dati_bdv!$H$2:$H$65536))))),$A605,dati_bdv!N$2:N$65536)","v":0}]
[{"$f":"dati_pdc!A606","v":0},{"$f":"SUMIF(IF(dati_pdc!$C606=1,dati_bdv!$C$2:$C$65536,IF(dati_pdc!$C606=2,dati_bdv!$D$2:$D$65536,IF(dati_pdc!$C606=3,dati_bdv!$E$2:$E$65536,IF(dati_pdc!$C606=4,dati_bdv!$F$2:$F$65536,IF(dati_pdc!$C606=5,dati_bdv!$G$2:$G$65536,dati_bdv!$H$2:$H$65536))))),$A606,dati_bdv!J$2:J$65536)","v":0},{"$f":"SUMIF(IF(dati_pdc!$C606=1,dati_bdv!$C$2:$C$65536,IF(dati_pdc!$C606=2,dati_bdv!$D$2:$D$65536,IF(dati_pdc!$C606=3,dati_bdv!$E$2:$E$65536,IF(dati_pdc!$C606=4,dati_bdv!$F$2:$F$65536,IF(dati_pdc!$C606=5,dati_bdv!$G$2:$G$65536,dati_bdv!$H$2:$H$65536))))),$A606,dati_bdv!K$2:K$65536)","v":0},{"$f":"SUMIF(IF(dati_pdc!$C606=1,dati_bdv!$C$2:$C$65536,IF(dati_pdc!$C606=2,dati_bdv!$D$2:$D$65536,IF(dati_pdc!$C606=3,dati_bdv!$E$2:$E$65536,IF(dati_pdc!$C606=4,dati_bdv!$F$2:$F$65536,IF(dati_pdc!$C606=5,dati_bdv!$G$2:$G$65536,dati_bdv!$H$2:$H$65536))))),$A606,dati_bdv!L$2:L$65536)","v":0},{"$f":"SUMIF(IF(dati_pdc!$C606=1,dati_bdv!$C$2:$C$65536,IF(dati_pdc!$C606=2,dati_bdv!$D$2:$D$65536,IF(dati_pdc!$C606=3,dati_bdv!$E$2:$E$65536,IF(dati_pdc!$C606=4,dati_bdv!$F$2:$F$65536,IF(dati_pdc!$C606=5,dati_bdv!$G$2:$G$65536,dati_bdv!$H$2:$H$65536))))),$A606,dati_bdv!M$2:M$65536)","v":0},{"$f":"SUMIF(IF(dati_pdc!$C606=1,dati_bdv!$C$2:$C$65536,IF(dati_pdc!$C606=2,dati_bdv!$D$2:$D$65536,IF(dati_pdc!$C606=3,dati_bdv!$E$2:$E$65536,IF(dati_pdc!$C606=4,dati_bdv!$F$2:$F$65536,IF(dati_pdc!$C606=5,dati_bdv!$G$2:$G$65536,dati_bdv!$H$2:$H$65536))))),$A606,dati_bdv!N$2:N$65536)","v":0}]
[{"$f":"dati_pdc!A607","v":0},{"$f":"SUMIF(IF(dati_pdc!$C607=1,dati_bdv!$C$2:$C$65536,IF(dati_pdc!$C607=2,dati_bdv!$D$2:$D$65536,IF(dati_pdc!$C607=3,dati_bdv!$E$2:$E$65536,IF(dati_pdc!$C607=4,dati_bdv!$F$2:$F$65536,IF(dati_pdc!$C607=5,dati_bdv!$G$2:$G$65536,dati_bdv!$H$2:$H$65536))))),$A607,dati_bdv!J$2:J$65536)","v":0},{"$f":"SUMIF(IF(dati_pdc!$C607=1,dati_bdv!$C$2:$C$65536,IF(dati_pdc!$C607=2,dati_bdv!$D$2:$D$65536,IF(dati_pdc!$C607=3,dati_bdv!$E$2:$E$65536,IF(dati_pdc!$C607=4,dati_bdv!$F$2:$F$65536,IF(dati_pdc!$C607=5,dati_bdv!$G$2:$G$65536,dati_bdv!$H$2:$H$65536))))),$A607,dati_bdv!K$2:K$65536)","v":0},{"$f":"SUMIF(IF(dati_pdc!$C607=1,dati_bdv!$C$2:$C$65536,IF(dati_pdc!$C607=2,dati_bdv!$D$2:$D$65536,IF(dati_pdc!$C607=3,dati_bdv!$E$2:$E$65536,IF(dati_pdc!$C607=4,dati_bdv!$F$2:$F$65536,IF(dati_pdc!$C607=5,dati_bdv!$G$2:$G$65536,dati_bdv!$H$2:$H$65536))))),$A607,dati_bdv!L$2:L$65536)","v":0},{"$f":"SUMIF(IF(dati_pdc!$C607=1,dati_bdv!$C$2:$C$65536,IF(dati_pdc!$C607=2,dati_bdv!$D$2:$D$65536,IF(dati_pdc!$C607=3,dati_bdv!$E$2:$E$65536,IF(dati_pdc!$C607=4,dati_bdv!$F$2:$F$65536,IF(dati_pdc!$C607=5,dati_bdv!$G$2:$G$65536,dati_bdv!$H$2:$H$65536))))),$A607,dati_bdv!M$2:M$65536)","v":0},{"$f":"SUMIF(IF(dati_pdc!$C607=1,dati_bdv!$C$2:$C$65536,IF(dati_pdc!$C607=2,dati_bdv!$D$2:$D$65536,IF(dati_pdc!$C607=3,dati_bdv!$E$2:$E$65536,IF(dati_pdc!$C607=4,dati_bdv!$F$2:$F$65536,IF(dati_pdc!$C607=5,dati_bdv!$G$2:$G$65536,dati_bdv!$H$2:$H$65536))))),$A607,dati_bdv!N$2:N$65536)","v":0}]
[{"$f":"dati_pdc!A608","v":0},{"$f":"SUMIF(IF(dati_pdc!$C608=1,dati_bdv!$C$2:$C$65536,IF(dati_pdc!$C608=2,dati_bdv!$D$2:$D$65536,IF(dati_pdc!$C608=3,dati_bdv!$E$2:$E$65536,IF(dati_pdc!$C608=4,dati_bdv!$F$2:$F$65536,IF(dati_pdc!$C608=5,dati_bdv!$G$2:$G$65536,dati_bdv!$H$2:$H$65536))))),$A608,dati_bdv!J$2:J$65536)","v":0},{"$f":"SUMIF(IF(dati_pdc!$C608=1,dati_bdv!$C$2:$C$65536,IF(dati_pdc!$C608=2,dati_bdv!$D$2:$D$65536,IF(dati_pdc!$C608=3,dati_bdv!$E$2:$E$65536,IF(dati_pdc!$C608=4,dati_bdv!$F$2:$F$65536,IF(dati_pdc!$C608=5,dati_bdv!$G$2:$G$65536,dati_bdv!$H$2:$H$65536))))),$A608,dati_bdv!K$2:K$65536)","v":0},{"$f":"SUMIF(IF(dati_pdc!$C608=1,dati_bdv!$C$2:$C$65536,IF(dati_pdc!$C608=2,dati_bdv!$D$2:$D$65536,IF(dati_pdc!$C608=3,dati_bdv!$E$2:$E$65536,IF(dati_pdc!$C608=4,dati_bdv!$F$2:$F$65536,IF(dati_pdc!$C608=5,dati_bdv!$G$2:$G$65536,dati_bdv!$H$2:$H$65536))))),$A608,dati_bdv!L$2:L$65536)","v":0},{"$f":"SUMIF(IF(dati_pdc!$C608=1,dati_bdv!$C$2:$C$65536,IF(dati_pdc!$C608=2,dati_bdv!$D$2:$D$65536,IF(dati_pdc!$C608=3,dati_bdv!$E$2:$E$65536,IF(dati_pdc!$C608=4,dati_bdv!$F$2:$F$65536,IF(dati_pdc!$C608=5,dati_bdv!$G$2:$G$65536,dati_bdv!$H$2:$H$65536))))),$A608,dati_bdv!M$2:M$65536)","v":0},{"$f":"SUMIF(IF(dati_pdc!$C608=1,dati_bdv!$C$2:$C$65536,IF(dati_pdc!$C608=2,dati_bdv!$D$2:$D$65536,IF(dati_pdc!$C608=3,dati_bdv!$E$2:$E$65536,IF(dati_pdc!$C608=4,dati_bdv!$F$2:$F$65536,IF(dati_pdc!$C608=5,dati_bdv!$G$2:$G$65536,dati_bdv!$H$2:$H$65536))))),$A608,dati_bdv!N$2:N$65536)","v":0}]
[{"$f":"dati_pdc!A609","v":0},{"$f":"SUMIF(IF(dati_pdc!$C609=1,dati_bdv!$C$2:$C$65536,IF(dati_pdc!$C609=2,dati_bdv!$D$2:$D$65536,IF(dati_pdc!$C609=3,dati_bdv!$E$2:$E$65536,IF(dati_pdc!$C609=4,dati_bdv!$F$2:$F$65536,IF(dati_pdc!$C609=5,dati_bdv!$G$2:$G$65536,dati_bdv!$H$2:$H$65536))))),$A609,dati_bdv!J$2:J$65536)","v":0},{"$f":"SUMIF(IF(dati_pdc!$C609=1,dati_bdv!$C$2:$C$65536,IF(dati_pdc!$C609=2,dati_bdv!$D$2:$D$65536,IF(dati_pdc!$C609=3,dati_bdv!$E$2:$E$65536,IF(dati_pdc!$C609=4,dati_bdv!$F$2:$F$65536,IF(dati_pdc!$C609=5,dati_bdv!$G$2:$G$65536,dati_bdv!$H$2:$H$65536))))),$A609,dati_bdv!K$2:K$65536)","v":0},{"$f":"SUMIF(IF(dati_pdc!$C609=1,dati_bdv!$C$2:$C$65536,IF(dati_pdc!$C609=2,dati_bdv!$D$2:$D$65536,IF(dati_pdc!$C609=3,dati_bdv!$E$2:$E$65536,IF(dati_pdc!$C609=4,dati_bdv!$F$2:$F$65536,IF(dati_pdc!$C609=5,dati_bdv!$G$2:$G$65536,dati_bdv!$H$2:$H$65536))))),$A609,dati_bdv!L$2:L$65536)","v":0},{"$f":"SUMIF(IF(dati_pdc!$C609=1,dati_bdv!$C$2:$C$65536,IF(dati_pdc!$C609=2,dati_bdv!$D$2:$D$65536,IF(dati_pdc!$C609=3,dati_bdv!$E$2:$E$65536,IF(dati_pdc!$C609=4,dati_bdv!$F$2:$F$65536,IF(dati_pdc!$C609=5,dati_bdv!$G$2:$G$65536,dati_bdv!$H$2:$H$65536))))),$A609,dati_bdv!M$2:M$65536)","v":0},{"$f":"SUMIF(IF(dati_pdc!$C609=1,dati_bdv!$C$2:$C$65536,IF(dati_pdc!$C609=2,dati_bdv!$D$2:$D$65536,IF(dati_pdc!$C609=3,dati_bdv!$E$2:$E$65536,IF(dati_pdc!$C609=4,dati_bdv!$F$2:$F$65536,IF(dati_pdc!$C609=5,dati_bdv!$G$2:$G$65536,dati_bdv!$H$2:$H$65536))))),$A609,dati_bdv!N$2:N$65536)","v":0}]
[{"$f":"dati_pdc!A610","v":0},{"$f":"SUMIF(IF(dati_pdc!$C610=1,dati_bdv!$C$2:$C$65536,IF(dati_pdc!$C610=2,dati_bdv!$D$2:$D$65536,IF(dati_pdc!$C610=3,dati_bdv!$E$2:$E$65536,IF(dati_pdc!$C610=4,dati_bdv!$F$2:$F$65536,IF(dati_pdc!$C610=5,dati_bdv!$G$2:$G$65536,dati_bdv!$H$2:$H$65536))))),$A610,dati_bdv!J$2:J$65536)","v":0},{"$f":"SUMIF(IF(dati_pdc!$C610=1,dati_bdv!$C$2:$C$65536,IF(dati_pdc!$C610=2,dati_bdv!$D$2:$D$65536,IF(dati_pdc!$C610=3,dati_bdv!$E$2:$E$65536,IF(dati_pdc!$C610=4,dati_bdv!$F$2:$F$65536,IF(dati_pdc!$C610=5,dati_bdv!$G$2:$G$65536,dati_bdv!$H$2:$H$65536))))),$A610,dati_bdv!K$2:K$65536)","v":0},{"$f":"SUMIF(IF(dati_pdc!$C610=1,dati_bdv!$C$2:$C$65536,IF(dati_pdc!$C610=2,dati_bdv!$D$2:$D$65536,IF(dati_pdc!$C610=3,dati_bdv!$E$2:$E$65536,IF(dati_pdc!$C610=4,dati_bdv!$F$2:$F$65536,IF(dati_pdc!$C610=5,dati_bdv!$G$2:$G$65536,dati_bdv!$H$2:$H$65536))))),$A610,dati_bdv!L$2:L$65536)","v":0},{"$f":"SUMIF(IF(dati_pdc!$C610=1,dati_bdv!$C$2:$C$65536,IF(dati_pdc!$C610=2,dati_bdv!$D$2:$D$65536,IF(dati_pdc!$C610=3,dati_bdv!$E$2:$E$65536,IF(dati_pdc!$C610=4,dati_bdv!$F$2:$F$65536,IF(dati_pdc!$C610=5,dati_bdv!$G$2:$G$65536,dati_bdv!$H$2:$H$65536))))),$A610,dati_bdv!M$2:M$65536)","v":0},{"$f":"SUMIF(IF(dati_pdc!$C610=1,dati_bdv!$C$2:$C$65536,IF(dati_pdc!$C610=2,dati_bdv!$D$2:$D$65536,IF(dati_pdc!$C610=3,dati_bdv!$E$2:$E$65536,IF(dati_pdc!$C610=4,dati_bdv!$F$2:$F$65536,IF(dati_pdc!$C610=5,dati_bdv!$G$2:$G$65536,dati_bdv!$H$2:$H$65536))))),$A610,dati_bdv!N$2:N$65536)","v":0}]
[{"$f":"dati_pdc!A611","v":0},{"$f":"SUMIF(IF(dati_pdc!$C611=1,dati_bdv!$C$2:$C$65536,IF(dati_pdc!$C611=2,dati_bdv!$D$2:$D$65536,IF(dati_pdc!$C611=3,dati_bdv!$E$2:$E$65536,IF(dati_pdc!$C611=4,dati_bdv!$F$2:$F$65536,IF(dati_pdc!$C611=5,dati_bdv!$G$2:$G$65536,dati_bdv!$H$2:$H$65536))))),$A611,dati_bdv!J$2:J$65536)","v":0},{"$f":"SUMIF(IF(dati_pdc!$C611=1,dati_bdv!$C$2:$C$65536,IF(dati_pdc!$C611=2,dati_bdv!$D$2:$D$65536,IF(dati_pdc!$C611=3,dati_bdv!$E$2:$E$65536,IF(dati_pdc!$C611=4,dati_bdv!$F$2:$F$65536,IF(dati_pdc!$C611=5,dati_bdv!$G$2:$G$65536,dati_bdv!$H$2:$H$65536))))),$A611,dati_bdv!K$2:K$65536)","v":0},{"$f":"SUMIF(IF(dati_pdc!$C611=1,dati_bdv!$C$2:$C$65536,IF(dati_pdc!$C611=2,dati_bdv!$D$2:$D$65536,IF(dati_pdc!$C611=3,dati_bdv!$E$2:$E$65536,IF(dati_pdc!$C611=4,dati_bdv!$F$2:$F$65536,IF(dati_pdc!$C611=5,dati_bdv!$G$2:$G$65536,dati_bdv!$H$2:$H$65536))))),$A611,dati_bdv!L$2:L$65536)","v":0},{"$f":"SUMIF(IF(dati_pdc!$C611=1,dati_bdv!$C$2:$C$65536,IF(dati_pdc!$C611=2,dati_bdv!$D$2:$D$65536,IF(dati_pdc!$C611=3,dati_bdv!$E$2:$E$65536,IF(dati_pdc!$C611=4,dati_bdv!$F$2:$F$65536,IF(dati_pdc!$C611=5,dati_bdv!$G$2:$G$65536,dati_bdv!$H$2:$H$65536))))),$A611,dati_bdv!M$2:M$65536)","v":0},{"$f":"SUMIF(IF(dati_pdc!$C611=1,dati_bdv!$C$2:$C$65536,IF(dati_pdc!$C611=2,dati_bdv!$D$2:$D$65536,IF(dati_pdc!$C611=3,dati_bdv!$E$2:$E$65536,IF(dati_pdc!$C611=4,dati_bdv!$F$2:$F$65536,IF(dati_pdc!$C611=5,dati_bdv!$G$2:$G$65536,dati_bdv!$H$2:$H$65536))))),$A611,dati_bdv!N$2:N$65536)","v":0}]
[{"$f":"dati_pdc!A612","v":0},{"$f":"SUMIF(IF(dati_pdc!$C612=1,dati_bdv!$C$2:$C$65536,IF(dati_pdc!$C612=2,dati_bdv!$D$2:$D$65536,IF(dati_pdc!$C612=3,dati_bdv!$E$2:$E$65536,IF(dati_pdc!$C612=4,dati_bdv!$F$2:$F$65536,IF(dati_pdc!$C612=5,dati_bdv!$G$2:$G$65536,dati_bdv!$H$2:$H$65536))))),$A612,dati_bdv!J$2:J$65536)","v":0},{"$f":"SUMIF(IF(dati_pdc!$C612=1,dati_bdv!$C$2:$C$65536,IF(dati_pdc!$C612=2,dati_bdv!$D$2:$D$65536,IF(dati_pdc!$C612=3,dati_bdv!$E$2:$E$65536,IF(dati_pdc!$C612=4,dati_bdv!$F$2:$F$65536,IF(dati_pdc!$C612=5,dati_bdv!$G$2:$G$65536,dati_bdv!$H$2:$H$65536))))),$A612,dati_bdv!K$2:K$65536)","v":0},{"$f":"SUMIF(IF(dati_pdc!$C612=1,dati_bdv!$C$2:$C$65536,IF(dati_pdc!$C612=2,dati_bdv!$D$2:$D$65536,IF(dati_pdc!$C612=3,dati_bdv!$E$2:$E$65536,IF(dati_pdc!$C612=4,dati_bdv!$F$2:$F$65536,IF(dati_pdc!$C612=5,dati_bdv!$G$2:$G$65536,dati_bdv!$H$2:$H$65536))))),$A612,dati_bdv!L$2:L$65536)","v":0},{"$f":"SUMIF(IF(dati_pdc!$C612=1,dati_bdv!$C$2:$C$65536,IF(dati_pdc!$C612=2,dati_bdv!$D$2:$D$65536,IF(dati_pdc!$C612=3,dati_bdv!$E$2:$E$65536,IF(dati_pdc!$C612=4,dati_bdv!$F$2:$F$65536,IF(dati_pdc!$C612=5,dati_bdv!$G$2:$G$65536,dati_bdv!$H$2:$H$65536))))),$A612,dati_bdv!M$2:M$65536)","v":0},{"$f":"SUMIF(IF(dati_pdc!$C612=1,dati_bdv!$C$2:$C$65536,IF(dati_pdc!$C612=2,dati_bdv!$D$2:$D$65536,IF(dati_pdc!$C612=3,dati_bdv!$E$2:$E$65536,IF(dati_pdc!$C612=4,dati_bdv!$F$2:$F$65536,IF(dati_pdc!$C612=5,dati_bdv!$G$2:$G$65536,dati_bdv!$H$2:$H$65536))))),$A612,dati_bdv!N$2:N$65536)","v":0}]
[{"$f":"dati_pdc!A613","v":0},{"$f":"SUMIF(IF(dati_pdc!$C613=1,dati_bdv!$C$2:$C$65536,IF(dati_pdc!$C613=2,dati_bdv!$D$2:$D$65536,IF(dati_pdc!$C613=3,dati_bdv!$E$2:$E$65536,IF(dati_pdc!$C613=4,dati_bdv!$F$2:$F$65536,IF(dati_pdc!$C613=5,dati_bdv!$G$2:$G$65536,dati_bdv!$H$2:$H$65536))))),$A613,dati_bdv!J$2:J$65536)","v":0},{"$f":"SUMIF(IF(dati_pdc!$C613=1,dati_bdv!$C$2:$C$65536,IF(dati_pdc!$C613=2,dati_bdv!$D$2:$D$65536,IF(dati_pdc!$C613=3,dati_bdv!$E$2:$E$65536,IF(dati_pdc!$C613=4,dati_bdv!$F$2:$F$65536,IF(dati_pdc!$C613=5,dati_bdv!$G$2:$G$65536,dati_bdv!$H$2:$H$65536))))),$A613,dati_bdv!K$2:K$65536)","v":0},{"$f":"SUMIF(IF(dati_pdc!$C613=1,dati_bdv!$C$2:$C$65536,IF(dati_pdc!$C613=2,dati_bdv!$D$2:$D$65536,IF(dati_pdc!$C613=3,dati_bdv!$E$2:$E$65536,IF(dati_pdc!$C613=4,dati_bdv!$F$2:$F$65536,IF(dati_pdc!$C613=5,dati_bdv!$G$2:$G$65536,dati_bdv!$H$2:$H$65536))))),$A613,dati_bdv!L$2:L$65536)","v":0},{"$f":"SUMIF(IF(dati_pdc!$C613=1,dati_bdv!$C$2:$C$65536,IF(dati_pdc!$C613=2,dati_bdv!$D$2:$D$65536,IF(dati_pdc!$C613=3,dati_bdv!$E$2:$E$65536,IF(dati_pdc!$C613=4,dati_bdv!$F$2:$F$65536,IF(dati_pdc!$C613=5,dati_bdv!$G$2:$G$65536,dati_bdv!$H$2:$H$65536))))),$A613,dati_bdv!M$2:M$65536)","v":0},{"$f":"SUMIF(IF(dati_pdc!$C613=1,dati_bdv!$C$2:$C$65536,IF(dati_pdc!$C613=2,dati_bdv!$D$2:$D$65536,IF(dati_pdc!$C613=3,dati_bdv!$E$2:$E$65536,IF(dati_pdc!$C613=4,dati_bdv!$F$2:$F$65536,IF(dati_pdc!$C613=5,dati_bdv!$G$2:$G$65536,dati_bdv!$H$2:$H$65536))))),$A613,dati_bdv!N$2:N$65536)","v":0}]
[{"$f":"dati_pdc!A614","v":0},{"$f":"SUMIF(IF(dati_pdc!$C614=1,dati_bdv!$C$2:$C$65536,IF(dati_pdc!$C614=2,dati_bdv!$D$2:$D$65536,IF(dati_pdc!$C614=3,dati_bdv!$E$2:$E$65536,IF(dati_pdc!$C614=4,dati_bdv!$F$2:$F$65536,IF(dati_pdc!$C614=5,dati_bdv!$G$2:$G$65536,dati_bdv!$H$2:$H$65536))))),$A614,dati_bdv!J$2:J$65536)","v":0},{"$f":"SUMIF(IF(dati_pdc!$C614=1,dati_bdv!$C$2:$C$65536,IF(dati_pdc!$C614=2,dati_bdv!$D$2:$D$65536,IF(dati_pdc!$C614=3,dati_bdv!$E$2:$E$65536,IF(dati_pdc!$C614=4,dati_bdv!$F$2:$F$65536,IF(dati_pdc!$C614=5,dati_bdv!$G$2:$G$65536,dati_bdv!$H$2:$H$65536))))),$A614,dati_bdv!K$2:K$65536)","v":0},{"$f":"SUMIF(IF(dati_pdc!$C614=1,dati_bdv!$C$2:$C$65536,IF(dati_pdc!$C614=2,dati_bdv!$D$2:$D$65536,IF(dati_pdc!$C614=3,dati_bdv!$E$2:$E$65536,IF(dati_pdc!$C614=4,dati_bdv!$F$2:$F$65536,IF(dati_pdc!$C614=5,dati_bdv!$G$2:$G$65536,dati_bdv!$H$2:$H$65536))))),$A614,dati_bdv!L$2:L$65536)","v":0},{"$f":"SUMIF(IF(dati_pdc!$C614=1,dati_bdv!$C$2:$C$65536,IF(dati_pdc!$C614=2,dati_bdv!$D$2:$D$65536,IF(dati_pdc!$C614=3,dati_bdv!$E$2:$E$65536,IF(dati_pdc!$C614=4,dati_bdv!$F$2:$F$65536,IF(dati_pdc!$C614=5,dati_bdv!$G$2:$G$65536,dati_bdv!$H$2:$H$65536))))),$A614,dati_bdv!M$2:M$65536)","v":0},{"$f":"SUMIF(IF(dati_pdc!$C614=1,dati_bdv!$C$2:$C$65536,IF(dati_pdc!$C614=2,dati_bdv!$D$2:$D$65536,IF(dati_pdc!$C614=3,dati_bdv!$E$2:$E$65536,IF(dati_pdc!$C614=4,dati_bdv!$F$2:$F$65536,IF(dati_pdc!$C614=5,dati_bdv!$G$2:$G$65536,dati_bdv!$H$2:$H$65536))))),$A614,dati_bdv!N$2:N$65536)","v":0}]
[{"$f":"dati_pdc!A615","v":0},{"$f":"SUMIF(IF(dati_pdc!$C615=1,dati_bdv!$C$2:$C$65536,IF(dati_pdc!$C615=2,dati_bdv!$D$2:$D$65536,IF(dati_pdc!$C615=3,dati_bdv!$E$2:$E$65536,IF(dati_pdc!$C615=4,dati_bdv!$F$2:$F$65536,IF(dati_pdc!$C615=5,dati_bdv!$G$2:$G$65536,dati_bdv!$H$2:$H$65536))))),$A615,dati_bdv!J$2:J$65536)","v":0},{"$f":"SUMIF(IF(dati_pdc!$C615=1,dati_bdv!$C$2:$C$65536,IF(dati_pdc!$C615=2,dati_bdv!$D$2:$D$65536,IF(dati_pdc!$C615=3,dati_bdv!$E$2:$E$65536,IF(dati_pdc!$C615=4,dati_bdv!$F$2:$F$65536,IF(dati_pdc!$C615=5,dati_bdv!$G$2:$G$65536,dati_bdv!$H$2:$H$65536))))),$A615,dati_bdv!K$2:K$65536)","v":0},{"$f":"SUMIF(IF(dati_pdc!$C615=1,dati_bdv!$C$2:$C$65536,IF(dati_pdc!$C615=2,dati_bdv!$D$2:$D$65536,IF(dati_pdc!$C615=3,dati_bdv!$E$2:$E$65536,IF(dati_pdc!$C615=4,dati_bdv!$F$2:$F$65536,IF(dati_pdc!$C615=5,dati_bdv!$G$2:$G$65536,dati_bdv!$H$2:$H$65536))))),$A615,dati_bdv!L$2:L$65536)","v":0},{"$f":"SUMIF(IF(dati_pdc!$C615=1,dati_bdv!$C$2:$C$65536,IF(dati_pdc!$C615=2,dati_bdv!$D$2:$D$65536,IF(dati_pdc!$C615=3,dati_bdv!$E$2:$E$65536,IF(dati_pdc!$C615=4,dati_bdv!$F$2:$F$65536,IF(dati_pdc!$C615=5,dati_bdv!$G$2:$G$65536,dati_bdv!$H$2:$H$65536))))),$A615,dati_bdv!M$2:M$65536)","v":0},{"$f":"SUMIF(IF(dati_pdc!$C615=1,dati_bdv!$C$2:$C$65536,IF(dati_pdc!$C615=2,dati_bdv!$D$2:$D$65536,IF(dati_pdc!$C615=3,dati_bdv!$E$2:$E$65536,IF(dati_pdc!$C615=4,dati_bdv!$F$2:$F$65536,IF(dati_pdc!$C615=5,dati_bdv!$G$2:$G$65536,dati_bdv!$H$2:$H$65536))))),$A615,dati_bdv!N$2:N$65536)","v":0}]
[{"$f":"dati_pdc!A616","v":0},{"$f":"SUMIF(IF(dati_pdc!$C616=1,dati_bdv!$C$2:$C$65536,IF(dati_pdc!$C616=2,dati_bdv!$D$2:$D$65536,IF(dati_pdc!$C616=3,dati_bdv!$E$2:$E$65536,IF(dati_pdc!$C616=4,dati_bdv!$F$2:$F$65536,IF(dati_pdc!$C616=5,dati_bdv!$G$2:$G$65536,dati_bdv!$H$2:$H$65536))))),$A616,dati_bdv!J$2:J$65536)","v":0},{"$f":"SUMIF(IF(dati_pdc!$C616=1,dati_bdv!$C$2:$C$65536,IF(dati_pdc!$C616=2,dati_bdv!$D$2:$D$65536,IF(dati_pdc!$C616=3,dati_bdv!$E$2:$E$65536,IF(dati_pdc!$C616=4,dati_bdv!$F$2:$F$65536,IF(dati_pdc!$C616=5,dati_bdv!$G$2:$G$65536,dati_bdv!$H$2:$H$65536))))),$A616,dati_bdv!K$2:K$65536)","v":0},{"$f":"SUMIF(IF(dati_pdc!$C616=1,dati_bdv!$C$2:$C$65536,IF(dati_pdc!$C616=2,dati_bdv!$D$2:$D$65536,IF(dati_pdc!$C616=3,dati_bdv!$E$2:$E$65536,IF(dati_pdc!$C616=4,dati_bdv!$F$2:$F$65536,IF(dati_pdc!$C616=5,dati_bdv!$G$2:$G$65536,dati_bdv!$H$2:$H$65536))))),$A616,dati_bdv!L$2:L$65536)","v":0},{"$f":"SUMIF(IF(dati_pdc!$C616=1,dati_bdv!$C$2:$C$65536,IF(dati_pdc!$C616=2,dati_bdv!$D$2:$D$65536,IF(dati_pdc!$C616=3,dati_bdv!$E$2:$E$65536,IF(dati_pdc!$C616=4,dati_bdv!$F$2:$F$65536,IF(dati_pdc!$C616=5,dati_bdv!$G$2:$G$65536,dati_bdv!$H$2:$H$65536))))),$A616,dati_bdv!M$2:M$65536)","v":0},{"$f":"SUMIF(IF(dati_pdc!$C616=1,dati_bdv!$C$2:$C$65536,IF(dati_pdc!$C616=2,dati_bdv!$D$2:$D$65536,IF(dati_pdc!$C616=3,dati_bdv!$E$2:$E$65536,IF(dati_pdc!$C616=4,dati_bdv!$F$2:$F$65536,IF(dati_pdc!$C616=5,dati_bdv!$G$2:$G$65536,dati_bdv!$H$2:$H$65536))))),$A616,dati_bdv!N$2:N$65536)","v":0}]
[{"$f":"dati_pdc!A617","v":0},{"$f":"SUMIF(IF(dati_pdc!$C617=1,dati_bdv!$C$2:$C$65536,IF(dati_pdc!$C617=2,dati_bdv!$D$2:$D$65536,IF(dati_pdc!$C617=3,dati_bdv!$E$2:$E$65536,IF(dati_pdc!$C617=4,dati_bdv!$F$2:$F$65536,IF(dati_pdc!$C617=5,dati_bdv!$G$2:$G$65536,dati_bdv!$H$2:$H$65536))))),$A617,dati_bdv!J$2:J$65536)","v":0},{"$f":"SUMIF(IF(dati_pdc!$C617=1,dati_bdv!$C$2:$C$65536,IF(dati_pdc!$C617=2,dati_bdv!$D$2:$D$65536,IF(dati_pdc!$C617=3,dati_bdv!$E$2:$E$65536,IF(dati_pdc!$C617=4,dati_bdv!$F$2:$F$65536,IF(dati_pdc!$C617=5,dati_bdv!$G$2:$G$65536,dati_bdv!$H$2:$H$65536))))),$A617,dati_bdv!K$2:K$65536)","v":0},{"$f":"SUMIF(IF(dati_pdc!$C617=1,dati_bdv!$C$2:$C$65536,IF(dati_pdc!$C617=2,dati_bdv!$D$2:$D$65536,IF(dati_pdc!$C617=3,dati_bdv!$E$2:$E$65536,IF(dati_pdc!$C617=4,dati_bdv!$F$2:$F$65536,IF(dati_pdc!$C617=5,dati_bdv!$G$2:$G$65536,dati_bdv!$H$2:$H$65536))))),$A617,dati_bdv!L$2:L$65536)","v":0},{"$f":"SUMIF(IF(dati_pdc!$C617=1,dati_bdv!$C$2:$C$65536,IF(dati_pdc!$C617=2,dati_bdv!$D$2:$D$65536,IF(dati_pdc!$C617=3,dati_bdv!$E$2:$E$65536,IF(dati_pdc!$C617=4,dati_bdv!$F$2:$F$65536,IF(dati_pdc!$C617=5,dati_bdv!$G$2:$G$65536,dati_bdv!$H$2:$H$65536))))),$A617,dati_bdv!M$2:M$65536)","v":0},{"$f":"SUMIF(IF(dati_pdc!$C617=1,dati_bdv!$C$2:$C$65536,IF(dati_pdc!$C617=2,dati_bdv!$D$2:$D$65536,IF(dati_pdc!$C617=3,dati_bdv!$E$2:$E$65536,IF(dati_pdc!$C617=4,dati_bdv!$F$2:$F$65536,IF(dati_pdc!$C617=5,dati_bdv!$G$2:$G$65536,dati_bdv!$H$2:$H$65536))))),$A617,dati_bdv!N$2:N$65536)","v":0}]
[{"$f":"dati_pdc!A618","v":0},{"$f":"SUMIF(IF(dati_pdc!$C618=1,dati_bdv!$C$2:$C$65536,IF(dati_pdc!$C618=2,dati_bdv!$D$2:$D$65536,IF(dati_pdc!$C618=3,dati_bdv!$E$2:$E$65536,IF(dati_pdc!$C618=4,dati_bdv!$F$2:$F$65536,IF(dati_pdc!$C618=5,dati_bdv!$G$2:$G$65536,dati_bdv!$H$2:$H$65536))))),$A618,dati_bdv!J$2:J$65536)","v":0},{"$f":"SUMIF(IF(dati_pdc!$C618=1,dati_bdv!$C$2:$C$65536,IF(dati_pdc!$C618=2,dati_bdv!$D$2:$D$65536,IF(dati_pdc!$C618=3,dati_bdv!$E$2:$E$65536,IF(dati_pdc!$C618=4,dati_bdv!$F$2:$F$65536,IF(dati_pdc!$C618=5,dati_bdv!$G$2:$G$65536,dati_bdv!$H$2:$H$65536))))),$A618,dati_bdv!K$2:K$65536)","v":0},{"$f":"SUMIF(IF(dati_pdc!$C618=1,dati_bdv!$C$2:$C$65536,IF(dati_pdc!$C618=2,dati_bdv!$D$2:$D$65536,IF(dati_pdc!$C618=3,dati_bdv!$E$2:$E$65536,IF(dati_pdc!$C618=4,dati_bdv!$F$2:$F$65536,IF(dati_pdc!$C618=5,dati_bdv!$G$2:$G$65536,dati_bdv!$H$2:$H$65536))))),$A618,dati_bdv!L$2:L$65536)","v":0},{"$f":"SUMIF(IF(dati_pdc!$C618=1,dati_bdv!$C$2:$C$65536,IF(dati_pdc!$C618=2,dati_bdv!$D$2:$D$65536,IF(dati_pdc!$C618=3,dati_bdv!$E$2:$E$65536,IF(dati_pdc!$C618=4,dati_bdv!$F$2:$F$65536,IF(dati_pdc!$C618=5,dati_bdv!$G$2:$G$65536,dati_bdv!$H$2:$H$65536))))),$A618,dati_bdv!M$2:M$65536)","v":0},{"$f":"SUMIF(IF(dati_pdc!$C618=1,dati_bdv!$C$2:$C$65536,IF(dati_pdc!$C618=2,dati_bdv!$D$2:$D$65536,IF(dati_pdc!$C618=3,dati_bdv!$E$2:$E$65536,IF(dati_pdc!$C618=4,dati_bdv!$F$2:$F$65536,IF(dati_pdc!$C618=5,dati_bdv!$G$2:$G$65536,dati_bdv!$H$2:$H$65536))))),$A618,dati_bdv!N$2:N$65536)","v":0}]
[{"$f":"dati_pdc!A619","v":0},{"$f":"SUMIF(IF(dati_pdc!$C619=1,dati_bdv!$C$2:$C$65536,IF(dati_pdc!$C619=2,dati_bdv!$D$2:$D$65536,IF(dati_pdc!$C619=3,dati_bdv!$E$2:$E$65536,IF(dati_pdc!$C619=4,dati_bdv!$F$2:$F$65536,IF(dati_pdc!$C619=5,dati_bdv!$G$2:$G$65536,dati_bdv!$H$2:$H$65536))))),$A619,dati_bdv!J$2:J$65536)","v":0},{"$f":"SUMIF(IF(dati_pdc!$C619=1,dati_bdv!$C$2:$C$65536,IF(dati_pdc!$C619=2,dati_bdv!$D$2:$D$65536,IF(dati_pdc!$C619=3,dati_bdv!$E$2:$E$65536,IF(dati_pdc!$C619=4,dati_bdv!$F$2:$F$65536,IF(dati_pdc!$C619=5,dati_bdv!$G$2:$G$65536,dati_bdv!$H$2:$H$65536))))),$A619,dati_bdv!K$2:K$65536)","v":0},{"$f":"SUMIF(IF(dati_pdc!$C619=1,dati_bdv!$C$2:$C$65536,IF(dati_pdc!$C619=2,dati_bdv!$D$2:$D$65536,IF(dati_pdc!$C619=3,dati_bdv!$E$2:$E$65536,IF(dati_pdc!$C619=4,dati_bdv!$F$2:$F$65536,IF(dati_pdc!$C619=5,dati_bdv!$G$2:$G$65536,dati_bdv!$H$2:$H$65536))))),$A619,dati_bdv!L$2:L$65536)","v":0},{"$f":"SUMIF(IF(dati_pdc!$C619=1,dati_bdv!$C$2:$C$65536,IF(dati_pdc!$C619=2,dati_bdv!$D$2:$D$65536,IF(dati_pdc!$C619=3,dati_bdv!$E$2:$E$65536,IF(dati_pdc!$C619=4,dati_bdv!$F$2:$F$65536,IF(dati_pdc!$C619=5,dati_bdv!$G$2:$G$65536,dati_bdv!$H$2:$H$65536))))),$A619,dati_bdv!M$2:M$65536)","v":0},{"$f":"SUMIF(IF(dati_pdc!$C619=1,dati_bdv!$C$2:$C$65536,IF(dati_pdc!$C619=2,dati_bdv!$D$2:$D$65536,IF(dati_pdc!$C619=3,dati_bdv!$E$2:$E$65536,IF(dati_pdc!$C619=4,dati_bdv!$F$2:$F$65536,IF(dati_pdc!$C619=5,dati_bdv!$G$2:$G$65536,dati_bdv!$H$2:$H$65536))))),$A619,dati_bdv!N$2:N$65536)","v":0}]
[{"$f":"dati_pdc!A620","v":0},{"$f":"SUMIF(IF(dati_pdc!$C620=1,dati_bdv!$C$2:$C$65536,IF(dati_pdc!$C620=2,dati_bdv!$D$2:$D$65536,IF(dati_pdc!$C620=3,dati_bdv!$E$2:$E$65536,IF(dati_pdc!$C620=4,dati_bdv!$F$2:$F$65536,IF(dati_pdc!$C620=5,dati_bdv!$G$2:$G$65536,dati_bdv!$H$2:$H$65536))))),$A620,dati_bdv!J$2:J$65536)","v":0},{"$f":"SUMIF(IF(dati_pdc!$C620=1,dati_bdv!$C$2:$C$65536,IF(dati_pdc!$C620=2,dati_bdv!$D$2:$D$65536,IF(dati_pdc!$C620=3,dati_bdv!$E$2:$E$65536,IF(dati_pdc!$C620=4,dati_bdv!$F$2:$F$65536,IF(dati_pdc!$C620=5,dati_bdv!$G$2:$G$65536,dati_bdv!$H$2:$H$65536))))),$A620,dati_bdv!K$2:K$65536)","v":0},{"$f":"SUMIF(IF(dati_pdc!$C620=1,dati_bdv!$C$2:$C$65536,IF(dati_pdc!$C620=2,dati_bdv!$D$2:$D$65536,IF(dati_pdc!$C620=3,dati_bdv!$E$2:$E$65536,IF(dati_pdc!$C620=4,dati_bdv!$F$2:$F$65536,IF(dati_pdc!$C620=5,dati_bdv!$G$2:$G$65536,dati_bdv!$H$2:$H$65536))))),$A620,dati_bdv!L$2:L$65536)","v":0},{"$f":"SUMIF(IF(dati_pdc!$C620=1,dati_bdv!$C$2:$C$65536,IF(dati_pdc!$C620=2,dati_bdv!$D$2:$D$65536,IF(dati_pdc!$C620=3,dati_bdv!$E$2:$E$65536,IF(dati_pdc!$C620=4,dati_bdv!$F$2:$F$65536,IF(dati_pdc!$C620=5,dati_bdv!$G$2:$G$65536,dati_bdv!$H$2:$H$65536))))),$A620,dati_bdv!M$2:M$65536)","v":0},{"$f":"SUMIF(IF(dati_pdc!$C620=1,dati_bdv!$C$2:$C$65536,IF(dati_pdc!$C620=2,dati_bdv!$D$2:$D$65536,IF(dati_pdc!$C620=3,dati_bdv!$E$2:$E$65536,IF(dati_pdc!$C620=4,dati_bdv!$F$2:$F$65536,IF(dati_pdc!$C620=5,dati_bdv!$G$2:$G$65536,dati_bdv!$H$2:$H$65536))))),$A620,dati_bdv!N$2:N$65536)","v":0}]
[{"$f":"dati_pdc!A621","v":0},{"$f":"SUMIF(IF(dati_pdc!$C621=1,dati_bdv!$C$2:$C$65536,IF(dati_pdc!$C621=2,dati_bdv!$D$2:$D$65536,IF(dati_pdc!$C621=3,dati_bdv!$E$2:$E$65536,IF(dati_pdc!$C621=4,dati_bdv!$F$2:$F$65536,IF(dati_pdc!$C621=5,dati_bdv!$G$2:$G$65536,dati_bdv!$H$2:$H$65536))))),$A621,dati_bdv!J$2:J$65536)","v":0},{"$f":"SUMIF(IF(dati_pdc!$C621=1,dati_bdv!$C$2:$C$65536,IF(dati_pdc!$C621=2,dati_bdv!$D$2:$D$65536,IF(dati_pdc!$C621=3,dati_bdv!$E$2:$E$65536,IF(dati_pdc!$C621=4,dati_bdv!$F$2:$F$65536,IF(dati_pdc!$C621=5,dati_bdv!$G$2:$G$65536,dati_bdv!$H$2:$H$65536))))),$A621,dati_bdv!K$2:K$65536)","v":0},{"$f":"SUMIF(IF(dati_pdc!$C621=1,dati_bdv!$C$2:$C$65536,IF(dati_pdc!$C621=2,dati_bdv!$D$2:$D$65536,IF(dati_pdc!$C621=3,dati_bdv!$E$2:$E$65536,IF(dati_pdc!$C621=4,dati_bdv!$F$2:$F$65536,IF(dati_pdc!$C621=5,dati_bdv!$G$2:$G$65536,dati_bdv!$H$2:$H$65536))))),$A621,dati_bdv!L$2:L$65536)","v":0},{"$f":"SUMIF(IF(dati_pdc!$C621=1,dati_bdv!$C$2:$C$65536,IF(dati_pdc!$C621=2,dati_bdv!$D$2:$D$65536,IF(dati_pdc!$C621=3,dati_bdv!$E$2:$E$65536,IF(dati_pdc!$C621=4,dati_bdv!$F$2:$F$65536,IF(dati_pdc!$C621=5,dati_bdv!$G$2:$G$65536,dati_bdv!$H$2:$H$65536))))),$A621,dati_bdv!M$2:M$65536)","v":0},{"$f":"SUMIF(IF(dati_pdc!$C621=1,dati_bdv!$C$2:$C$65536,IF(dati_pdc!$C621=2,dati_bdv!$D$2:$D$65536,IF(dati_pdc!$C621=3,dati_bdv!$E$2:$E$65536,IF(dati_pdc!$C621=4,dati_bdv!$F$2:$F$65536,IF(dati_pdc!$C621=5,dati_bdv!$G$2:$G$65536,dati_bdv!$H$2:$H$65536))))),$A621,dati_bdv!N$2:N$65536)","v":0}]
[{"$f":"dati_pdc!A622","v":0},{"$f":"SUMIF(IF(dati_pdc!$C622=1,dati_bdv!$C$2:$C$65536,IF(dati_pdc!$C622=2,dati_bdv!$D$2:$D$65536,IF(dati_pdc!$C622=3,dati_bdv!$E$2:$E$65536,IF(dati_pdc!$C622=4,dati_bdv!$F$2:$F$65536,IF(dati_pdc!$C622=5,dati_bdv!$G$2:$G$65536,dati_bdv!$H$2:$H$65536))))),$A622,dati_bdv!J$2:J$65536)","v":0},{"$f":"SUMIF(IF(dati_pdc!$C622=1,dati_bdv!$C$2:$C$65536,IF(dati_pdc!$C622=2,dati_bdv!$D$2:$D$65536,IF(dati_pdc!$C622=3,dati_bdv!$E$2:$E$65536,IF(dati_pdc!$C622=4,dati_bdv!$F$2:$F$65536,IF(dati_pdc!$C622=5,dati_bdv!$G$2:$G$65536,dati_bdv!$H$2:$H$65536))))),$A622,dati_bdv!K$2:K$65536)","v":0},{"$f":"SUMIF(IF(dati_pdc!$C622=1,dati_bdv!$C$2:$C$65536,IF(dati_pdc!$C622=2,dati_bdv!$D$2:$D$65536,IF(dati_pdc!$C622=3,dati_bdv!$E$2:$E$65536,IF(dati_pdc!$C622=4,dati_bdv!$F$2:$F$65536,IF(dati_pdc!$C622=5,dati_bdv!$G$2:$G$65536,dati_bdv!$H$2:$H$65536))))),$A622,dati_bdv!L$2:L$65536)","v":0},{"$f":"SUMIF(IF(dati_pdc!$C622=1,dati_bdv!$C$2:$C$65536,IF(dati_pdc!$C622=2,dati_bdv!$D$2:$D$65536,IF(dati_pdc!$C622=3,dati_bdv!$E$2:$E$65536,IF(dati_pdc!$C622=4,dati_bdv!$F$2:$F$65536,IF(dati_pdc!$C622=5,dati_bdv!$G$2:$G$65536,dati_bdv!$H$2:$H$65536))))),$A622,dati_bdv!M$2:M$65536)","v":0},{"$f":"SUMIF(IF(dati_pdc!$C622=1,dati_bdv!$C$2:$C$65536,IF(dati_pdc!$C622=2,dati_bdv!$D$2:$D$65536,IF(dati_pdc!$C622=3,dati_bdv!$E$2:$E$65536,IF(dati_pdc!$C622=4,dati_bdv!$F$2:$F$65536,IF(dati_pdc!$C622=5,dati_bdv!$G$2:$G$65536,dati_bdv!$H$2:$H$65536))))),$A622,dati_bdv!N$2:N$65536)","v":0}]
[{"$f":"dati_pdc!A623","v":0},{"$f":"SUMIF(IF(dati_pdc!$C623=1,dati_bdv!$C$2:$C$65536,IF(dati_pdc!$C623=2,dati_bdv!$D$2:$D$65536,IF(dati_pdc!$C623=3,dati_bdv!$E$2:$E$65536,IF(dati_pdc!$C623=4,dati_bdv!$F$2:$F$65536,IF(dati_pdc!$C623=5,dati_bdv!$G$2:$G$65536,dati_bdv!$H$2:$H$65536))))),$A623,dati_bdv!J$2:J$65536)","v":0},{"$f":"SUMIF(IF(dati_pdc!$C623=1,dati_bdv!$C$2:$C$65536,IF(dati_pdc!$C623=2,dati_bdv!$D$2:$D$65536,IF(dati_pdc!$C623=3,dati_bdv!$E$2:$E$65536,IF(dati_pdc!$C623=4,dati_bdv!$F$2:$F$65536,IF(dati_pdc!$C623=5,dati_bdv!$G$2:$G$65536,dati_bdv!$H$2:$H$65536))))),$A623,dati_bdv!K$2:K$65536)","v":0},{"$f":"SUMIF(IF(dati_pdc!$C623=1,dati_bdv!$C$2:$C$65536,IF(dati_pdc!$C623=2,dati_bdv!$D$2:$D$65536,IF(dati_pdc!$C623=3,dati_bdv!$E$2:$E$65536,IF(dati_pdc!$C623=4,dati_bdv!$F$2:$F$65536,IF(dati_pdc!$C623=5,dati_bdv!$G$2:$G$65536,dati_bdv!$H$2:$H$65536))))),$A623,dati_bdv!L$2:L$65536)","v":0},{"$f":"SUMIF(IF(dati_pdc!$C623=1,dati_bdv!$C$2:$C$65536,IF(dati_pdc!$C623=2,dati_bdv!$D$2:$D$65536,IF(dati_pdc!$C623=3,dati_bdv!$E$2:$E$65536,IF(dati_pdc!$C623=4,dati_bdv!$F$2:$F$65536,IF(dati_pdc!$C623=5,dati_bdv!$G$2:$G$65536,dati_bdv!$H$2:$H$65536))))),$A623,dati_bdv!M$2:M$65536)","v":0},{"$f":"SUMIF(IF(dati_pdc!$C623=1,dati_bdv!$C$2:$C$65536,IF(dati_pdc!$C623=2,dati_bdv!$D$2:$D$65536,IF(dati_pdc!$C623=3,dati_bdv!$E$2:$E$65536,IF(dati_pdc!$C623=4,dati_bdv!$F$2:$F$65536,IF(dati_pdc!$C623=5,dati_bdv!$G$2:$G$65536,dati_bdv!$H$2:$H$65536))))),$A623,dati_bdv!N$2:N$65536)","v":0}]
[{"$f":"dati_pdc!A624","v":0},{"$f":"SUMIF(IF(dati_pdc!$C624=1,dati_bdv!$C$2:$C$65536,IF(dati_pdc!$C624=2,dati_bdv!$D$2:$D$65536,IF(dati_pdc!$C624=3,dati_bdv!$E$2:$E$65536,IF(dati_pdc!$C624=4,dati_bdv!$F$2:$F$65536,IF(dati_pdc!$C624=5,dati_bdv!$G$2:$G$65536,dati_bdv!$H$2:$H$65536))))),$A624,dati_bdv!J$2:J$65536)","v":0},{"$f":"SUMIF(IF(dati_pdc!$C624=1,dati_bdv!$C$2:$C$65536,IF(dati_pdc!$C624=2,dati_bdv!$D$2:$D$65536,IF(dati_pdc!$C624=3,dati_bdv!$E$2:$E$65536,IF(dati_pdc!$C624=4,dati_bdv!$F$2:$F$65536,IF(dati_pdc!$C624=5,dati_bdv!$G$2:$G$65536,dati_bdv!$H$2:$H$65536))))),$A624,dati_bdv!K$2:K$65536)","v":0},{"$f":"SUMIF(IF(dati_pdc!$C624=1,dati_bdv!$C$2:$C$65536,IF(dati_pdc!$C624=2,dati_bdv!$D$2:$D$65536,IF(dati_pdc!$C624=3,dati_bdv!$E$2:$E$65536,IF(dati_pdc!$C624=4,dati_bdv!$F$2:$F$65536,IF(dati_pdc!$C624=5,dati_bdv!$G$2:$G$65536,dati_bdv!$H$2:$H$65536))))),$A624,dati_bdv!L$2:L$65536)","v":0},{"$f":"SUMIF(IF(dati_pdc!$C624=1,dati_bdv!$C$2:$C$65536,IF(dati_pdc!$C624=2,dati_bdv!$D$2:$D$65536,IF(dati_pdc!$C624=3,dati_bdv!$E$2:$E$65536,IF(dati_pdc!$C624=4,dati_bdv!$F$2:$F$65536,IF(dati_pdc!$C624=5,dati_bdv!$G$2:$G$65536,dati_bdv!$H$2:$H$65536))))),$A624,dati_bdv!M$2:M$65536)","v":0},{"$f":"SUMIF(IF(dati_pdc!$C624=1,dati_bdv!$C$2:$C$65536,IF(dati_pdc!$C624=2,dati_bdv!$D$2:$D$65536,IF(dati_pdc!$C624=3,dati_bdv!$E$2:$E$65536,IF(dati_pdc!$C624=4,dati_bdv!$F$2:$F$65536,IF(dati_pdc!$C624=5,dati_bdv!$G$2:$G$65536,dati_bdv!$H$2:$H$65536))))),$A624,dati_bdv!N$2:N$65536)","v":0}]
[{"$f":"dati_pdc!A625","v":0},{"$f":"SUMIF(IF(dati_pdc!$C625=1,dati_bdv!$C$2:$C$65536,IF(dati_pdc!$C625=2,dati_bdv!$D$2:$D$65536,IF(dati_pdc!$C625=3,dati_bdv!$E$2:$E$65536,IF(dati_pdc!$C625=4,dati_bdv!$F$2:$F$65536,IF(dati_pdc!$C625=5,dati_bdv!$G$2:$G$65536,dati_bdv!$H$2:$H$65536))))),$A625,dati_bdv!J$2:J$65536)","v":0},{"$f":"SUMIF(IF(dati_pdc!$C625=1,dati_bdv!$C$2:$C$65536,IF(dati_pdc!$C625=2,dati_bdv!$D$2:$D$65536,IF(dati_pdc!$C625=3,dati_bdv!$E$2:$E$65536,IF(dati_pdc!$C625=4,dati_bdv!$F$2:$F$65536,IF(dati_pdc!$C625=5,dati_bdv!$G$2:$G$65536,dati_bdv!$H$2:$H$65536))))),$A625,dati_bdv!K$2:K$65536)","v":0},{"$f":"SUMIF(IF(dati_pdc!$C625=1,dati_bdv!$C$2:$C$65536,IF(dati_pdc!$C625=2,dati_bdv!$D$2:$D$65536,IF(dati_pdc!$C625=3,dati_bdv!$E$2:$E$65536,IF(dati_pdc!$C625=4,dati_bdv!$F$2:$F$65536,IF(dati_pdc!$C625=5,dati_bdv!$G$2:$G$65536,dati_bdv!$H$2:$H$65536))))),$A625,dati_bdv!L$2:L$65536)","v":0},{"$f":"SUMIF(IF(dati_pdc!$C625=1,dati_bdv!$C$2:$C$65536,IF(dati_pdc!$C625=2,dati_bdv!$D$2:$D$65536,IF(dati_pdc!$C625=3,dati_bdv!$E$2:$E$65536,IF(dati_pdc!$C625=4,dati_bdv!$F$2:$F$65536,IF(dati_pdc!$C625=5,dati_bdv!$G$2:$G$65536,dati_bdv!$H$2:$H$65536))))),$A625,dati_bdv!M$2:M$65536)","v":0},{"$f":"SUMIF(IF(dati_pdc!$C625=1,dati_bdv!$C$2:$C$65536,IF(dati_pdc!$C625=2,dati_bdv!$D$2:$D$65536,IF(dati_pdc!$C625=3,dati_bdv!$E$2:$E$65536,IF(dati_pdc!$C625=4,dati_bdv!$F$2:$F$65536,IF(dati_pdc!$C625=5,dati_bdv!$G$2:$G$65536,dati_bdv!$H$2:$H$65536))))),$A625,dati_bdv!N$2:N$65536)","v":0}]
[{"$f":"dati_pdc!A626","v":0},{"$f":"SUMIF(IF(dati_pdc!$C626=1,dati_bdv!$C$2:$C$65536,IF(dati_pdc!$C626=2,dati_bdv!$D$2:$D$65536,IF(dati_pdc!$C626=3,dati_bdv!$E$2:$E$65536,IF(dati_pdc!$C626=4,dati_bdv!$F$2:$F$65536,IF(dati_pdc!$C626=5,dati_bdv!$G$2:$G$65536,dati_bdv!$H$2:$H$65536))))),$A626,dati_bdv!J$2:J$65536)","v":0},{"$f":"SUMIF(IF(dati_pdc!$C626=1,dati_bdv!$C$2:$C$65536,IF(dati_pdc!$C626=2,dati_bdv!$D$2:$D$65536,IF(dati_pdc!$C626=3,dati_bdv!$E$2:$E$65536,IF(dati_pdc!$C626=4,dati_bdv!$F$2:$F$65536,IF(dati_pdc!$C626=5,dati_bdv!$G$2:$G$65536,dati_bdv!$H$2:$H$65536))))),$A626,dati_bdv!K$2:K$65536)","v":0},{"$f":"SUMIF(IF(dati_pdc!$C626=1,dati_bdv!$C$2:$C$65536,IF(dati_pdc!$C626=2,dati_bdv!$D$2:$D$65536,IF(dati_pdc!$C626=3,dati_bdv!$E$2:$E$65536,IF(dati_pdc!$C626=4,dati_bdv!$F$2:$F$65536,IF(dati_pdc!$C626=5,dati_bdv!$G$2:$G$65536,dati_bdv!$H$2:$H$65536))))),$A626,dati_bdv!L$2:L$65536)","v":0},{"$f":"SUMIF(IF(dati_pdc!$C626=1,dati_bdv!$C$2:$C$65536,IF(dati_pdc!$C626=2,dati_bdv!$D$2:$D$65536,IF(dati_pdc!$C626=3,dati_bdv!$E$2:$E$65536,IF(dati_pdc!$C626=4,dati_bdv!$F$2:$F$65536,IF(dati_pdc!$C626=5,dati_bdv!$G$2:$G$65536,dati_bdv!$H$2:$H$65536))))),$A626,dati_bdv!M$2:M$65536)","v":0},{"$f":"SUMIF(IF(dati_pdc!$C626=1,dati_bdv!$C$2:$C$65536,IF(dati_pdc!$C626=2,dati_bdv!$D$2:$D$65536,IF(dati_pdc!$C626=3,dati_bdv!$E$2:$E$65536,IF(dati_pdc!$C626=4,dati_bdv!$F$2:$F$65536,IF(dati_pdc!$C626=5,dati_bdv!$G$2:$G$65536,dati_bdv!$H$2:$H$65536))))),$A626,dati_bdv!N$2:N$65536)","v":0}]
[{"$f":"dati_pdc!A627","v":0},{"$f":"SUMIF(IF(dati_pdc!$C627=1,dati_bdv!$C$2:$C$65536,IF(dati_pdc!$C627=2,dati_bdv!$D$2:$D$65536,IF(dati_pdc!$C627=3,dati_bdv!$E$2:$E$65536,IF(dati_pdc!$C627=4,dati_bdv!$F$2:$F$65536,IF(dati_pdc!$C627=5,dati_bdv!$G$2:$G$65536,dati_bdv!$H$2:$H$65536))))),$A627,dati_bdv!J$2:J$65536)","v":0},{"$f":"SUMIF(IF(dati_pdc!$C627=1,dati_bdv!$C$2:$C$65536,IF(dati_pdc!$C627=2,dati_bdv!$D$2:$D$65536,IF(dati_pdc!$C627=3,dati_bdv!$E$2:$E$65536,IF(dati_pdc!$C627=4,dati_bdv!$F$2:$F$65536,IF(dati_pdc!$C627=5,dati_bdv!$G$2:$G$65536,dati_bdv!$H$2:$H$65536))))),$A627,dati_bdv!K$2:K$65536)","v":0},{"$f":"SUMIF(IF(dati_pdc!$C627=1,dati_bdv!$C$2:$C$65536,IF(dati_pdc!$C627=2,dati_bdv!$D$2:$D$65536,IF(dati_pdc!$C627=3,dati_bdv!$E$2:$E$65536,IF(dati_pdc!$C627=4,dati_bdv!$F$2:$F$65536,IF(dati_pdc!$C627=5,dati_bdv!$G$2:$G$65536,dati_bdv!$H$2:$H$65536))))),$A627,dati_bdv!L$2:L$65536)","v":0},{"$f":"SUMIF(IF(dati_pdc!$C627=1,dati_bdv!$C$2:$C$65536,IF(dati_pdc!$C627=2,dati_bdv!$D$2:$D$65536,IF(dati_pdc!$C627=3,dati_bdv!$E$2:$E$65536,IF(dati_pdc!$C627=4,dati_bdv!$F$2:$F$65536,IF(dati_pdc!$C627=5,dati_bdv!$G$2:$G$65536,dati_bdv!$H$2:$H$65536))))),$A627,dati_bdv!M$2:M$65536)","v":0},{"$f":"SUMIF(IF(dati_pdc!$C627=1,dati_bdv!$C$2:$C$65536,IF(dati_pdc!$C627=2,dati_bdv!$D$2:$D$65536,IF(dati_pdc!$C627=3,dati_bdv!$E$2:$E$65536,IF(dati_pdc!$C627=4,dati_bdv!$F$2:$F$65536,IF(dati_pdc!$C627=5,dati_bdv!$G$2:$G$65536,dati_bdv!$H$2:$H$65536))))),$A627,dati_bdv!N$2:N$65536)","v":0}]
[{"$f":"dati_pdc!A628","v":0},{"$f":"SUMIF(IF(dati_pdc!$C628=1,dati_bdv!$C$2:$C$65536,IF(dati_pdc!$C628=2,dati_bdv!$D$2:$D$65536,IF(dati_pdc!$C628=3,dati_bdv!$E$2:$E$65536,IF(dati_pdc!$C628=4,dati_bdv!$F$2:$F$65536,IF(dati_pdc!$C628=5,dati_bdv!$G$2:$G$65536,dati_bdv!$H$2:$H$65536))))),$A628,dati_bdv!J$2:J$65536)","v":0},{"$f":"SUMIF(IF(dati_pdc!$C628=1,dati_bdv!$C$2:$C$65536,IF(dati_pdc!$C628=2,dati_bdv!$D$2:$D$65536,IF(dati_pdc!$C628=3,dati_bdv!$E$2:$E$65536,IF(dati_pdc!$C628=4,dati_bdv!$F$2:$F$65536,IF(dati_pdc!$C628=5,dati_bdv!$G$2:$G$65536,dati_bdv!$H$2:$H$65536))))),$A628,dati_bdv!K$2:K$65536)","v":0},{"$f":"SUMIF(IF(dati_pdc!$C628=1,dati_bdv!$C$2:$C$65536,IF(dati_pdc!$C628=2,dati_bdv!$D$2:$D$65536,IF(dati_pdc!$C628=3,dati_bdv!$E$2:$E$65536,IF(dati_pdc!$C628=4,dati_bdv!$F$2:$F$65536,IF(dati_pdc!$C628=5,dati_bdv!$G$2:$G$65536,dati_bdv!$H$2:$H$65536))))),$A628,dati_bdv!L$2:L$65536)","v":0},{"$f":"SUMIF(IF(dati_pdc!$C628=1,dati_bdv!$C$2:$C$65536,IF(dati_pdc!$C628=2,dati_bdv!$D$2:$D$65536,IF(dati_pdc!$C628=3,dati_bdv!$E$2:$E$65536,IF(dati_pdc!$C628=4,dati_bdv!$F$2:$F$65536,IF(dati_pdc!$C628=5,dati_bdv!$G$2:$G$65536,dati_bdv!$H$2:$H$65536))))),$A628,dati_bdv!M$2:M$65536)","v":0},{"$f":"SUMIF(IF(dati_pdc!$C628=1,dati_bdv!$C$2:$C$65536,IF(dati_pdc!$C628=2,dati_bdv!$D$2:$D$65536,IF(dati_pdc!$C628=3,dati_bdv!$E$2:$E$65536,IF(dati_pdc!$C628=4,dati_bdv!$F$2:$F$65536,IF(dati_pdc!$C628=5,dati_bdv!$G$2:$G$65536,dati_bdv!$H$2:$H$65536))))),$A628,dati_bdv!N$2:N$65536)","v":0}]
[{"$f":"dati_pdc!A629","v":0},{"$f":"SUMIF(IF(dati_pdc!$C629=1,dati_bdv!$C$2:$C$65536,IF(dati_pdc!$C629=2,dati_bdv!$D$2:$D$65536,IF(dati_pdc!$C629=3,dati_bdv!$E$2:$E$65536,IF(dati_pdc!$C629=4,dati_bdv!$F$2:$F$65536,IF(dati_pdc!$C629=5,dati_bdv!$G$2:$G$65536,dati_bdv!$H$2:$H$65536))))),$A629,dati_bdv!J$2:J$65536)","v":0},{"$f":"SUMIF(IF(dati_pdc!$C629=1,dati_bdv!$C$2:$C$65536,IF(dati_pdc!$C629=2,dati_bdv!$D$2:$D$65536,IF(dati_pdc!$C629=3,dati_bdv!$E$2:$E$65536,IF(dati_pdc!$C629=4,dati_bdv!$F$2:$F$65536,IF(dati_pdc!$C629=5,dati_bdv!$G$2:$G$65536,dati_bdv!$H$2:$H$65536))))),$A629,dati_bdv!K$2:K$65536)","v":0},{"$f":"SUMIF(IF(dati_pdc!$C629=1,dati_bdv!$C$2:$C$65536,IF(dati_pdc!$C629=2,dati_bdv!$D$2:$D$65536,IF(dati_pdc!$C629=3,dati_bdv!$E$2:$E$65536,IF(dati_pdc!$C629=4,dati_bdv!$F$2:$F$65536,IF(dati_pdc!$C629=5,dati_bdv!$G$2:$G$65536,dati_bdv!$H$2:$H$65536))))),$A629,dati_bdv!L$2:L$65536)","v":0},{"$f":"SUMIF(IF(dati_pdc!$C629=1,dati_bdv!$C$2:$C$65536,IF(dati_pdc!$C629=2,dati_bdv!$D$2:$D$65536,IF(dati_pdc!$C629=3,dati_bdv!$E$2:$E$65536,IF(dati_pdc!$C629=4,dati_bdv!$F$2:$F$65536,IF(dati_pdc!$C629=5,dati_bdv!$G$2:$G$65536,dati_bdv!$H$2:$H$65536))))),$A629,dati_bdv!M$2:M$65536)","v":0},{"$f":"SUMIF(IF(dati_pdc!$C629=1,dati_bdv!$C$2:$C$65536,IF(dati_pdc!$C629=2,dati_bdv!$D$2:$D$65536,IF(dati_pdc!$C629=3,dati_bdv!$E$2:$E$65536,IF(dati_pdc!$C629=4,dati_bdv!$F$2:$F$65536,IF(dati_pdc!$C629=5,dati_bdv!$G$2:$G$65536,dati_bdv!$H$2:$H$65536))))),$A629,dati_bdv!N$2:N$65536)","v":0}]
[{"$f":"dati_pdc!A630","v":0},{"$f":"SUMIF(IF(dati_pdc!$C630=1,dati_bdv!$C$2:$C$65536,IF(dati_pdc!$C630=2,dati_bdv!$D$2:$D$65536,IF(dati_pdc!$C630=3,dati_bdv!$E$2:$E$65536,IF(dati_pdc!$C630=4,dati_bdv!$F$2:$F$65536,IF(dati_pdc!$C630=5,dati_bdv!$G$2:$G$65536,dati_bdv!$H$2:$H$65536))))),$A630,dati_bdv!J$2:J$65536)","v":0},{"$f":"SUMIF(IF(dati_pdc!$C630=1,dati_bdv!$C$2:$C$65536,IF(dati_pdc!$C630=2,dati_bdv!$D$2:$D$65536,IF(dati_pdc!$C630=3,dati_bdv!$E$2:$E$65536,IF(dati_pdc!$C630=4,dati_bdv!$F$2:$F$65536,IF(dati_pdc!$C630=5,dati_bdv!$G$2:$G$65536,dati_bdv!$H$2:$H$65536))))),$A630,dati_bdv!K$2:K$65536)","v":0},{"$f":"SUMIF(IF(dati_pdc!$C630=1,dati_bdv!$C$2:$C$65536,IF(dati_pdc!$C630=2,dati_bdv!$D$2:$D$65536,IF(dati_pdc!$C630=3,dati_bdv!$E$2:$E$65536,IF(dati_pdc!$C630=4,dati_bdv!$F$2:$F$65536,IF(dati_pdc!$C630=5,dati_bdv!$G$2:$G$65536,dati_bdv!$H$2:$H$65536))))),$A630,dati_bdv!L$2:L$65536)","v":0},{"$f":"SUMIF(IF(dati_pdc!$C630=1,dati_bdv!$C$2:$C$65536,IF(dati_pdc!$C630=2,dati_bdv!$D$2:$D$65536,IF(dati_pdc!$C630=3,dati_bdv!$E$2:$E$65536,IF(dati_pdc!$C630=4,dati_bdv!$F$2:$F$65536,IF(dati_pdc!$C630=5,dati_bdv!$G$2:$G$65536,dati_bdv!$H$2:$H$65536))))),$A630,dati_bdv!M$2:M$65536)","v":0},{"$f":"SUMIF(IF(dati_pdc!$C630=1,dati_bdv!$C$2:$C$65536,IF(dati_pdc!$C630=2,dati_bdv!$D$2:$D$65536,IF(dati_pdc!$C630=3,dati_bdv!$E$2:$E$65536,IF(dati_pdc!$C630=4,dati_bdv!$F$2:$F$65536,IF(dati_pdc!$C630=5,dati_bdv!$G$2:$G$65536,dati_bdv!$H$2:$H$65536))))),$A630,dati_bdv!N$2:N$65536)","v":0}]
[{"$f":"dati_pdc!A631","v":0},{"$f":"SUMIF(IF(dati_pdc!$C631=1,dati_bdv!$C$2:$C$65536,IF(dati_pdc!$C631=2,dati_bdv!$D$2:$D$65536,IF(dati_pdc!$C631=3,dati_bdv!$E$2:$E$65536,IF(dati_pdc!$C631=4,dati_bdv!$F$2:$F$65536,IF(dati_pdc!$C631=5,dati_bdv!$G$2:$G$65536,dati_bdv!$H$2:$H$65536))))),$A631,dati_bdv!J$2:J$65536)","v":0},{"$f":"SUMIF(IF(dati_pdc!$C631=1,dati_bdv!$C$2:$C$65536,IF(dati_pdc!$C631=2,dati_bdv!$D$2:$D$65536,IF(dati_pdc!$C631=3,dati_bdv!$E$2:$E$65536,IF(dati_pdc!$C631=4,dati_bdv!$F$2:$F$65536,IF(dati_pdc!$C631=5,dati_bdv!$G$2:$G$65536,dati_bdv!$H$2:$H$65536))))),$A631,dati_bdv!K$2:K$65536)","v":0},{"$f":"SUMIF(IF(dati_pdc!$C631=1,dati_bdv!$C$2:$C$65536,IF(dati_pdc!$C631=2,dati_bdv!$D$2:$D$65536,IF(dati_pdc!$C631=3,dati_bdv!$E$2:$E$65536,IF(dati_pdc!$C631=4,dati_bdv!$F$2:$F$65536,IF(dati_pdc!$C631=5,dati_bdv!$G$2:$G$65536,dati_bdv!$H$2:$H$65536))))),$A631,dati_bdv!L$2:L$65536)","v":0},{"$f":"SUMIF(IF(dati_pdc!$C631=1,dati_bdv!$C$2:$C$65536,IF(dati_pdc!$C631=2,dati_bdv!$D$2:$D$65536,IF(dati_pdc!$C631=3,dati_bdv!$E$2:$E$65536,IF(dati_pdc!$C631=4,dati_bdv!$F$2:$F$65536,IF(dati_pdc!$C631=5,dati_bdv!$G$2:$G$65536,dati_bdv!$H$2:$H$65536))))),$A631,dati_bdv!M$2:M$65536)","v":0},{"$f":"SUMIF(IF(dati_pdc!$C631=1,dati_bdv!$C$2:$C$65536,IF(dati_pdc!$C631=2,dati_bdv!$D$2:$D$65536,IF(dati_pdc!$C631=3,dati_bdv!$E$2:$E$65536,IF(dati_pdc!$C631=4,dati_bdv!$F$2:$F$65536,IF(dati_pdc!$C631=5,dati_bdv!$G$2:$G$65536,dati_bdv!$H$2:$H$65536))))),$A631,dati_bdv!N$2:N$65536)","v":0}]
[{"$f":"dati_pdc!A632","v":0},{"$f":"SUMIF(IF(dati_pdc!$C632=1,dati_bdv!$C$2:$C$65536,IF(dati_pdc!$C632=2,dati_bdv!$D$2:$D$65536,IF(dati_pdc!$C632=3,dati_bdv!$E$2:$E$65536,IF(dati_pdc!$C632=4,dati_bdv!$F$2:$F$65536,IF(dati_pdc!$C632=5,dati_bdv!$G$2:$G$65536,dati_bdv!$H$2:$H$65536))))),$A632,dati_bdv!J$2:J$65536)","v":0},{"$f":"SUMIF(IF(dati_pdc!$C632=1,dati_bdv!$C$2:$C$65536,IF(dati_pdc!$C632=2,dati_bdv!$D$2:$D$65536,IF(dati_pdc!$C632=3,dati_bdv!$E$2:$E$65536,IF(dati_pdc!$C632=4,dati_bdv!$F$2:$F$65536,IF(dati_pdc!$C632=5,dati_bdv!$G$2:$G$65536,dati_bdv!$H$2:$H$65536))))),$A632,dati_bdv!K$2:K$65536)","v":0},{"$f":"SUMIF(IF(dati_pdc!$C632=1,dati_bdv!$C$2:$C$65536,IF(dati_pdc!$C632=2,dati_bdv!$D$2:$D$65536,IF(dati_pdc!$C632=3,dati_bdv!$E$2:$E$65536,IF(dati_pdc!$C632=4,dati_bdv!$F$2:$F$65536,IF(dati_pdc!$C632=5,dati_bdv!$G$2:$G$65536,dati_bdv!$H$2:$H$65536))))),$A632,dati_bdv!L$2:L$65536)","v":0},{"$f":"SUMIF(IF(dati_pdc!$C632=1,dati_bdv!$C$2:$C$65536,IF(dati_pdc!$C632=2,dati_bdv!$D$2:$D$65536,IF(dati_pdc!$C632=3,dati_bdv!$E$2:$E$65536,IF(dati_pdc!$C632=4,dati_bdv!$F$2:$F$65536,IF(dati_pdc!$C632=5,dati_bdv!$G$2:$G$65536,dati_bdv!$H$2:$H$65536))))),$A632,dati_bdv!M$2:M$65536)","v":0},{"$f":"SUMIF(IF(dati_pdc!$C632=1,dati_bdv!$C$2:$C$65536,IF(dati_pdc!$C632=2,dati_bdv!$D$2:$D$65536,IF(dati_pdc!$C632=3,dati_bdv!$E$2:$E$65536,IF(dati_pdc!$C632=4,dati_bdv!$F$2:$F$65536,IF(dati_pdc!$C632=5,dati_bdv!$G$2:$G$65536,dati_bdv!$H$2:$H$65536))))),$A632,dati_bdv!N$2:N$65536)","v":0}]
[{"$f":"dati_pdc!A633","v":0},{"$f":"SUMIF(IF(dati_pdc!$C633=1,dati_bdv!$C$2:$C$65536,IF(dati_pdc!$C633=2,dati_bdv!$D$2:$D$65536,IF(dati_pdc!$C633=3,dati_bdv!$E$2:$E$65536,IF(dati_pdc!$C633=4,dati_bdv!$F$2:$F$65536,IF(dati_pdc!$C633=5,dati_bdv!$G$2:$G$65536,dati_bdv!$H$2:$H$65536))))),$A633,dati_bdv!J$2:J$65536)","v":0},{"$f":"SUMIF(IF(dati_pdc!$C633=1,dati_bdv!$C$2:$C$65536,IF(dati_pdc!$C633=2,dati_bdv!$D$2:$D$65536,IF(dati_pdc!$C633=3,dati_bdv!$E$2:$E$65536,IF(dati_pdc!$C633=4,dati_bdv!$F$2:$F$65536,IF(dati_pdc!$C633=5,dati_bdv!$G$2:$G$65536,dati_bdv!$H$2:$H$65536))))),$A633,dati_bdv!K$2:K$65536)","v":0},{"$f":"SUMIF(IF(dati_pdc!$C633=1,dati_bdv!$C$2:$C$65536,IF(dati_pdc!$C633=2,dati_bdv!$D$2:$D$65536,IF(dati_pdc!$C633=3,dati_bdv!$E$2:$E$65536,IF(dati_pdc!$C633=4,dati_bdv!$F$2:$F$65536,IF(dati_pdc!$C633=5,dati_bdv!$G$2:$G$65536,dati_bdv!$H$2:$H$65536))))),$A633,dati_bdv!L$2:L$65536)","v":0},{"$f":"SUMIF(IF(dati_pdc!$C633=1,dati_bdv!$C$2:$C$65536,IF(dati_pdc!$C633=2,dati_bdv!$D$2:$D$65536,IF(dati_pdc!$C633=3,dati_bdv!$E$2:$E$65536,IF(dati_pdc!$C633=4,dati_bdv!$F$2:$F$65536,IF(dati_pdc!$C633=5,dati_bdv!$G$2:$G$65536,dati_bdv!$H$2:$H$65536))))),$A633,dati_bdv!M$2:M$65536)","v":0},{"$f":"SUMIF(IF(dati_pdc!$C633=1,dati_bdv!$C$2:$C$65536,IF(dati_pdc!$C633=2,dati_bdv!$D$2:$D$65536,IF(dati_pdc!$C633=3,dati_bdv!$E$2:$E$65536,IF(dati_pdc!$C633=4,dati_bdv!$F$2:$F$65536,IF(dati_pdc!$C633=5,dati_bdv!$G$2:$G$65536,dati_bdv!$H$2:$H$65536))))),$A633,dati_bdv!N$2:N$65536)","v":0}]
[{"$f":"dati_pdc!A634","v":0},{"$f":"SUMIF(IF(dati_pdc!$C634=1,dati_bdv!$C$2:$C$65536,IF(dati_pdc!$C634=2,dati_bdv!$D$2:$D$65536,IF(dati_pdc!$C634=3,dati_bdv!$E$2:$E$65536,IF(dati_pdc!$C634=4,dati_bdv!$F$2:$F$65536,IF(dati_pdc!$C634=5,dati_bdv!$G$2:$G$65536,dati_bdv!$H$2:$H$65536))))),$A634,dati_bdv!J$2:J$65536)","v":0},{"$f":"SUMIF(IF(dati_pdc!$C634=1,dati_bdv!$C$2:$C$65536,IF(dati_pdc!$C634=2,dati_bdv!$D$2:$D$65536,IF(dati_pdc!$C634=3,dati_bdv!$E$2:$E$65536,IF(dati_pdc!$C634=4,dati_bdv!$F$2:$F$65536,IF(dati_pdc!$C634=5,dati_bdv!$G$2:$G$65536,dati_bdv!$H$2:$H$65536))))),$A634,dati_bdv!K$2:K$65536)","v":0},{"$f":"SUMIF(IF(dati_pdc!$C634=1,dati_bdv!$C$2:$C$65536,IF(dati_pdc!$C634=2,dati_bdv!$D$2:$D$65536,IF(dati_pdc!$C634=3,dati_bdv!$E$2:$E$65536,IF(dati_pdc!$C634=4,dati_bdv!$F$2:$F$65536,IF(dati_pdc!$C634=5,dati_bdv!$G$2:$G$65536,dati_bdv!$H$2:$H$65536))))),$A634,dati_bdv!L$2:L$65536)","v":0},{"$f":"SUMIF(IF(dati_pdc!$C634=1,dati_bdv!$C$2:$C$65536,IF(dati_pdc!$C634=2,dati_bdv!$D$2:$D$65536,IF(dati_pdc!$C634=3,dati_bdv!$E$2:$E$65536,IF(dati_pdc!$C634=4,dati_bdv!$F$2:$F$65536,IF(dati_pdc!$C634=5,dati_bdv!$G$2:$G$65536,dati_bdv!$H$2:$H$65536))))),$A634,dati_bdv!M$2:M$65536)","v":0},{"$f":"SUMIF(IF(dati_pdc!$C634=1,dati_bdv!$C$2:$C$65536,IF(dati_pdc!$C634=2,dati_bdv!$D$2:$D$65536,IF(dati_pdc!$C634=3,dati_bdv!$E$2:$E$65536,IF(dati_pdc!$C634=4,dati_bdv!$F$2:$F$65536,IF(dati_pdc!$C634=5,dati_bdv!$G$2:$G$65536,dati_bdv!$H$2:$H$65536))))),$A634,dati_bdv!N$2:N$65536)","v":0}]
[{"$f":"dati_pdc!A635","v":0},{"$f":"SUMIF(IF(dati_pdc!$C635=1,dati_bdv!$C$2:$C$65536,IF(dati_pdc!$C635=2,dati_bdv!$D$2:$D$65536,IF(dati_pdc!$C635=3,dati_bdv!$E$2:$E$65536,IF(dati_pdc!$C635=4,dati_bdv!$F$2:$F$65536,IF(dati_pdc!$C635=5,dati_bdv!$G$2:$G$65536,dati_bdv!$H$2:$H$65536))))),$A635,dati_bdv!J$2:J$65536)","v":0},{"$f":"SUMIF(IF(dati_pdc!$C635=1,dati_bdv!$C$2:$C$65536,IF(dati_pdc!$C635=2,dati_bdv!$D$2:$D$65536,IF(dati_pdc!$C635=3,dati_bdv!$E$2:$E$65536,IF(dati_pdc!$C635=4,dati_bdv!$F$2:$F$65536,IF(dati_pdc!$C635=5,dati_bdv!$G$2:$G$65536,dati_bdv!$H$2:$H$65536))))),$A635,dati_bdv!K$2:K$65536)","v":0},{"$f":"SUMIF(IF(dati_pdc!$C635=1,dati_bdv!$C$2:$C$65536,IF(dati_pdc!$C635=2,dati_bdv!$D$2:$D$65536,IF(dati_pdc!$C635=3,dati_bdv!$E$2:$E$65536,IF(dati_pdc!$C635=4,dati_bdv!$F$2:$F$65536,IF(dati_pdc!$C635=5,dati_bdv!$G$2:$G$65536,dati_bdv!$H$2:$H$65536))))),$A635,dati_bdv!L$2:L$65536)","v":0},{"$f":"SUMIF(IF(dati_pdc!$C635=1,dati_bdv!$C$2:$C$65536,IF(dati_pdc!$C635=2,dati_bdv!$D$2:$D$65536,IF(dati_pdc!$C635=3,dati_bdv!$E$2:$E$65536,IF(dati_pdc!$C635=4,dati_bdv!$F$2:$F$65536,IF(dati_pdc!$C635=5,dati_bdv!$G$2:$G$65536,dati_bdv!$H$2:$H$65536))))),$A635,dati_bdv!M$2:M$65536)","v":0},{"$f":"SUMIF(IF(dati_pdc!$C635=1,dati_bdv!$C$2:$C$65536,IF(dati_pdc!$C635=2,dati_bdv!$D$2:$D$65536,IF(dati_pdc!$C635=3,dati_bdv!$E$2:$E$65536,IF(dati_pdc!$C635=4,dati_bdv!$F$2:$F$65536,IF(dati_pdc!$C635=5,dati_bdv!$G$2:$G$65536,dati_bdv!$H$2:$H$65536))))),$A635,dati_bdv!N$2:N$65536)","v":0}]
[{"$f":"dati_pdc!A636","v":0},{"$f":"SUMIF(IF(dati_pdc!$C636=1,dati_bdv!$C$2:$C$65536,IF(dati_pdc!$C636=2,dati_bdv!$D$2:$D$65536,IF(dati_pdc!$C636=3,dati_bdv!$E$2:$E$65536,IF(dati_pdc!$C636=4,dati_bdv!$F$2:$F$65536,IF(dati_pdc!$C636=5,dati_bdv!$G$2:$G$65536,dati_bdv!$H$2:$H$65536))))),$A636,dati_bdv!J$2:J$65536)","v":0},{"$f":"SUMIF(IF(dati_pdc!$C636=1,dati_bdv!$C$2:$C$65536,IF(dati_pdc!$C636=2,dati_bdv!$D$2:$D$65536,IF(dati_pdc!$C636=3,dati_bdv!$E$2:$E$65536,IF(dati_pdc!$C636=4,dati_bdv!$F$2:$F$65536,IF(dati_pdc!$C636=5,dati_bdv!$G$2:$G$65536,dati_bdv!$H$2:$H$65536))))),$A636,dati_bdv!K$2:K$65536)","v":0},{"$f":"SUMIF(IF(dati_pdc!$C636=1,dati_bdv!$C$2:$C$65536,IF(dati_pdc!$C636=2,dati_bdv!$D$2:$D$65536,IF(dati_pdc!$C636=3,dati_bdv!$E$2:$E$65536,IF(dati_pdc!$C636=4,dati_bdv!$F$2:$F$65536,IF(dati_pdc!$C636=5,dati_bdv!$G$2:$G$65536,dati_bdv!$H$2:$H$65536))))),$A636,dati_bdv!L$2:L$65536)","v":0},{"$f":"SUMIF(IF(dati_pdc!$C636=1,dati_bdv!$C$2:$C$65536,IF(dati_pdc!$C636=2,dati_bdv!$D$2:$D$65536,IF(dati_pdc!$C636=3,dati_bdv!$E$2:$E$65536,IF(dati_pdc!$C636=4,dati_bdv!$F$2:$F$65536,IF(dati_pdc!$C636=5,dati_bdv!$G$2:$G$65536,dati_bdv!$H$2:$H$65536))))),$A636,dati_bdv!M$2:M$65536)","v":0},{"$f":"SUMIF(IF(dati_pdc!$C636=1,dati_bdv!$C$2:$C$65536,IF(dati_pdc!$C636=2,dati_bdv!$D$2:$D$65536,IF(dati_pdc!$C636=3,dati_bdv!$E$2:$E$65536,IF(dati_pdc!$C636=4,dati_bdv!$F$2:$F$65536,IF(dati_pdc!$C636=5,dati_bdv!$G$2:$G$65536,dati_bdv!$H$2:$H$65536))))),$A636,dati_bdv!N$2:N$65536)","v":0}]
[{"$f":"dati_pdc!A637","v":0},{"$f":"SUMIF(IF(dati_pdc!$C637=1,dati_bdv!$C$2:$C$65536,IF(dati_pdc!$C637=2,dati_bdv!$D$2:$D$65536,IF(dati_pdc!$C637=3,dati_bdv!$E$2:$E$65536,IF(dati_pdc!$C637=4,dati_bdv!$F$2:$F$65536,IF(dati_pdc!$C637=5,dati_bdv!$G$2:$G$65536,dati_bdv!$H$2:$H$65536))))),$A637,dati_bdv!J$2:J$65536)","v":0},{"$f":"SUMIF(IF(dati_pdc!$C637=1,dati_bdv!$C$2:$C$65536,IF(dati_pdc!$C637=2,dati_bdv!$D$2:$D$65536,IF(dati_pdc!$C637=3,dati_bdv!$E$2:$E$65536,IF(dati_pdc!$C637=4,dati_bdv!$F$2:$F$65536,IF(dati_pdc!$C637=5,dati_bdv!$G$2:$G$65536,dati_bdv!$H$2:$H$65536))))),$A637,dati_bdv!K$2:K$65536)","v":0},{"$f":"SUMIF(IF(dati_pdc!$C637=1,dati_bdv!$C$2:$C$65536,IF(dati_pdc!$C637=2,dati_bdv!$D$2:$D$65536,IF(dati_pdc!$C637=3,dati_bdv!$E$2:$E$65536,IF(dati_pdc!$C637=4,dati_bdv!$F$2:$F$65536,IF(dati_pdc!$C637=5,dati_bdv!$G$2:$G$65536,dati_bdv!$H$2:$H$65536))))),$A637,dati_bdv!L$2:L$65536)","v":0},{"$f":"SUMIF(IF(dati_pdc!$C637=1,dati_bdv!$C$2:$C$65536,IF(dati_pdc!$C637=2,dati_bdv!$D$2:$D$65536,IF(dati_pdc!$C637=3,dati_bdv!$E$2:$E$65536,IF(dati_pdc!$C637=4,dati_bdv!$F$2:$F$65536,IF(dati_pdc!$C637=5,dati_bdv!$G$2:$G$65536,dati_bdv!$H$2:$H$65536))))),$A637,dati_bdv!M$2:M$65536)","v":0},{"$f":"SUMIF(IF(dati_pdc!$C637=1,dati_bdv!$C$2:$C$65536,IF(dati_pdc!$C637=2,dati_bdv!$D$2:$D$65536,IF(dati_pdc!$C637=3,dati_bdv!$E$2:$E$65536,IF(dati_pdc!$C637=4,dati_bdv!$F$2:$F$65536,IF(dati_pdc!$C637=5,dati_bdv!$G$2:$G$65536,dati_bdv!$H$2:$H$65536))))),$A637,dati_bdv!N$2:N$65536)","v":0}]
[{"$f":"dati_pdc!A638","v":0},{"$f":"SUMIF(IF(dati_pdc!$C638=1,dati_bdv!$C$2:$C$65536,IF(dati_pdc!$C638=2,dati_bdv!$D$2:$D$65536,IF(dati_pdc!$C638=3,dati_bdv!$E$2:$E$65536,IF(dati_pdc!$C638=4,dati_bdv!$F$2:$F$65536,IF(dati_pdc!$C638=5,dati_bdv!$G$2:$G$65536,dati_bdv!$H$2:$H$65536))))),$A638,dati_bdv!J$2:J$65536)","v":0},{"$f":"SUMIF(IF(dati_pdc!$C638=1,dati_bdv!$C$2:$C$65536,IF(dati_pdc!$C638=2,dati_bdv!$D$2:$D$65536,IF(dati_pdc!$C638=3,dati_bdv!$E$2:$E$65536,IF(dati_pdc!$C638=4,dati_bdv!$F$2:$F$65536,IF(dati_pdc!$C638=5,dati_bdv!$G$2:$G$65536,dati_bdv!$H$2:$H$65536))))),$A638,dati_bdv!K$2:K$65536)","v":0},{"$f":"SUMIF(IF(dati_pdc!$C638=1,dati_bdv!$C$2:$C$65536,IF(dati_pdc!$C638=2,dati_bdv!$D$2:$D$65536,IF(dati_pdc!$C638=3,dati_bdv!$E$2:$E$65536,IF(dati_pdc!$C638=4,dati_bdv!$F$2:$F$65536,IF(dati_pdc!$C638=5,dati_bdv!$G$2:$G$65536,dati_bdv!$H$2:$H$65536))))),$A638,dati_bdv!L$2:L$65536)","v":0},{"$f":"SUMIF(IF(dati_pdc!$C638=1,dati_bdv!$C$2:$C$65536,IF(dati_pdc!$C638=2,dati_bdv!$D$2:$D$65536,IF(dati_pdc!$C638=3,dati_bdv!$E$2:$E$65536,IF(dati_pdc!$C638=4,dati_bdv!$F$2:$F$65536,IF(dati_pdc!$C638=5,dati_bdv!$G$2:$G$65536,dati_bdv!$H$2:$H$65536))))),$A638,dati_bdv!M$2:M$65536)","v":0},{"$f":"SUMIF(IF(dati_pdc!$C638=1,dati_bdv!$C$2:$C$65536,IF(dati_pdc!$C638=2,dati_bdv!$D$2:$D$65536,IF(dati_pdc!$C638=3,dati_bdv!$E$2:$E$65536,IF(dati_pdc!$C638=4,dati_bdv!$F$2:$F$65536,IF(dati_pdc!$C638=5,dati_bdv!$G$2:$G$65536,dati_bdv!$H$2:$H$65536))))),$A638,dati_bdv!N$2:N$65536)","v":0}]
[{"$f":"dati_pdc!A639","v":0},{"$f":"SUMIF(IF(dati_pdc!$C639=1,dati_bdv!$C$2:$C$65536,IF(dati_pdc!$C639=2,dati_bdv!$D$2:$D$65536,IF(dati_pdc!$C639=3,dati_bdv!$E$2:$E$65536,IF(dati_pdc!$C639=4,dati_bdv!$F$2:$F$65536,IF(dati_pdc!$C639=5,dati_bdv!$G$2:$G$65536,dati_bdv!$H$2:$H$65536))))),$A639,dati_bdv!J$2:J$65536)","v":0},{"$f":"SUMIF(IF(dati_pdc!$C639=1,dati_bdv!$C$2:$C$65536,IF(dati_pdc!$C639=2,dati_bdv!$D$2:$D$65536,IF(dati_pdc!$C639=3,dati_bdv!$E$2:$E$65536,IF(dati_pdc!$C639=4,dati_bdv!$F$2:$F$65536,IF(dati_pdc!$C639=5,dati_bdv!$G$2:$G$65536,dati_bdv!$H$2:$H$65536))))),$A639,dati_bdv!K$2:K$65536)","v":0},{"$f":"SUMIF(IF(dati_pdc!$C639=1,dati_bdv!$C$2:$C$65536,IF(dati_pdc!$C639=2,dati_bdv!$D$2:$D$65536,IF(dati_pdc!$C639=3,dati_bdv!$E$2:$E$65536,IF(dati_pdc!$C639=4,dati_bdv!$F$2:$F$65536,IF(dati_pdc!$C639=5,dati_bdv!$G$2:$G$65536,dati_bdv!$H$2:$H$65536))))),$A639,dati_bdv!L$2:L$65536)","v":0},{"$f":"SUMIF(IF(dati_pdc!$C639=1,dati_bdv!$C$2:$C$65536,IF(dati_pdc!$C639=2,dati_bdv!$D$2:$D$65536,IF(dati_pdc!$C639=3,dati_bdv!$E$2:$E$65536,IF(dati_pdc!$C639=4,dati_bdv!$F$2:$F$65536,IF(dati_pdc!$C639=5,dati_bdv!$G$2:$G$65536,dati_bdv!$H$2:$H$65536))))),$A639,dati_bdv!M$2:M$65536)","v":0},{"$f":"SUMIF(IF(dati_pdc!$C639=1,dati_bdv!$C$2:$C$65536,IF(dati_pdc!$C639=2,dati_bdv!$D$2:$D$65536,IF(dati_pdc!$C639=3,dati_bdv!$E$2:$E$65536,IF(dati_pdc!$C639=4,dati_bdv!$F$2:$F$65536,IF(dati_pdc!$C639=5,dati_bdv!$G$2:$G$65536,dati_bdv!$H$2:$H$65536))))),$A639,dati_bdv!N$2:N$65536)","v":0}]
[{"$f":"dati_pdc!A640","v":0},{"$f":"SUMIF(IF(dati_pdc!$C640=1,dati_bdv!$C$2:$C$65536,IF(dati_pdc!$C640=2,dati_bdv!$D$2:$D$65536,IF(dati_pdc!$C640=3,dati_bdv!$E$2:$E$65536,IF(dati_pdc!$C640=4,dati_bdv!$F$2:$F$65536,IF(dati_pdc!$C640=5,dati_bdv!$G$2:$G$65536,dati_bdv!$H$2:$H$65536))))),$A640,dati_bdv!J$2:J$65536)","v":0},{"$f":"SUMIF(IF(dati_pdc!$C640=1,dati_bdv!$C$2:$C$65536,IF(dati_pdc!$C640=2,dati_bdv!$D$2:$D$65536,IF(dati_pdc!$C640=3,dati_bdv!$E$2:$E$65536,IF(dati_pdc!$C640=4,dati_bdv!$F$2:$F$65536,IF(dati_pdc!$C640=5,dati_bdv!$G$2:$G$65536,dati_bdv!$H$2:$H$65536))))),$A640,dati_bdv!K$2:K$65536)","v":0},{"$f":"SUMIF(IF(dati_pdc!$C640=1,dati_bdv!$C$2:$C$65536,IF(dati_pdc!$C640=2,dati_bdv!$D$2:$D$65536,IF(dati_pdc!$C640=3,dati_bdv!$E$2:$E$65536,IF(dati_pdc!$C640=4,dati_bdv!$F$2:$F$65536,IF(dati_pdc!$C640=5,dati_bdv!$G$2:$G$65536,dati_bdv!$H$2:$H$65536))))),$A640,dati_bdv!L$2:L$65536)","v":0},{"$f":"SUMIF(IF(dati_pdc!$C640=1,dati_bdv!$C$2:$C$65536,IF(dati_pdc!$C640=2,dati_bdv!$D$2:$D$65536,IF(dati_pdc!$C640=3,dati_bdv!$E$2:$E$65536,IF(dati_pdc!$C640=4,dati_bdv!$F$2:$F$65536,IF(dati_pdc!$C640=5,dati_bdv!$G$2:$G$65536,dati_bdv!$H$2:$H$65536))))),$A640,dati_bdv!M$2:M$65536)","v":0},{"$f":"SUMIF(IF(dati_pdc!$C640=1,dati_bdv!$C$2:$C$65536,IF(dati_pdc!$C640=2,dati_bdv!$D$2:$D$65536,IF(dati_pdc!$C640=3,dati_bdv!$E$2:$E$65536,IF(dati_pdc!$C640=4,dati_bdv!$F$2:$F$65536,IF(dati_pdc!$C640=5,dati_bdv!$G$2:$G$65536,dati_bdv!$H$2:$H$65536))))),$A640,dati_bdv!N$2:N$65536)","v":0}]
[{"$f":"dati_pdc!A641","v":0},{"$f":"SUMIF(IF(dati_pdc!$C641=1,dati_bdv!$C$2:$C$65536,IF(dati_pdc!$C641=2,dati_bdv!$D$2:$D$65536,IF(dati_pdc!$C641=3,dati_bdv!$E$2:$E$65536,IF(dati_pdc!$C641=4,dati_bdv!$F$2:$F$65536,IF(dati_pdc!$C641=5,dati_bdv!$G$2:$G$65536,dati_bdv!$H$2:$H$65536))))),$A641,dati_bdv!J$2:J$65536)","v":0},{"$f":"SUMIF(IF(dati_pdc!$C641=1,dati_bdv!$C$2:$C$65536,IF(dati_pdc!$C641=2,dati_bdv!$D$2:$D$65536,IF(dati_pdc!$C641=3,dati_bdv!$E$2:$E$65536,IF(dati_pdc!$C641=4,dati_bdv!$F$2:$F$65536,IF(dati_pdc!$C641=5,dati_bdv!$G$2:$G$65536,dati_bdv!$H$2:$H$65536))))),$A641,dati_bdv!K$2:K$65536)","v":0},{"$f":"SUMIF(IF(dati_pdc!$C641=1,dati_bdv!$C$2:$C$65536,IF(dati_pdc!$C641=2,dati_bdv!$D$2:$D$65536,IF(dati_pdc!$C641=3,dati_bdv!$E$2:$E$65536,IF(dati_pdc!$C641=4,dati_bdv!$F$2:$F$65536,IF(dati_pdc!$C641=5,dati_bdv!$G$2:$G$65536,dati_bdv!$H$2:$H$65536))))),$A641,dati_bdv!L$2:L$65536)","v":0},{"$f":"SUMIF(IF(dati_pdc!$C641=1,dati_bdv!$C$2:$C$65536,IF(dati_pdc!$C641=2,dati_bdv!$D$2:$D$65536,IF(dati_pdc!$C641=3,dati_bdv!$E$2:$E$65536,IF(dati_pdc!$C641=4,dati_bdv!$F$2:$F$65536,IF(dati_pdc!$C641=5,dati_bdv!$G$2:$G$65536,dati_bdv!$H$2:$H$65536))))),$A641,dati_bdv!M$2:M$65536)","v":0},{"$f":"SUMIF(IF(dati_pdc!$C641=1,dati_bdv!$C$2:$C$65536,IF(dati_pdc!$C641=2,dati_bdv!$D$2:$D$65536,IF(dati_pdc!$C641=3,dati_bdv!$E$2:$E$65536,IF(dati_pdc!$C641=4,dati_bdv!$F$2:$F$65536,IF(dati_pdc!$C641=5,dati_bdv!$G$2:$G$65536,dati_bdv!$H$2:$H$65536))))),$A641,dati_bdv!N$2:N$65536)","v":0}]
[{"$f":"dati_pdc!A642","v":0},{"$f":"SUMIF(IF(dati_pdc!$C642=1,dati_bdv!$C$2:$C$65536,IF(dati_pdc!$C642=2,dati_bdv!$D$2:$D$65536,IF(dati_pdc!$C642=3,dati_bdv!$E$2:$E$65536,IF(dati_pdc!$C642=4,dati_bdv!$F$2:$F$65536,IF(dati_pdc!$C642=5,dati_bdv!$G$2:$G$65536,dati_bdv!$H$2:$H$65536))))),$A642,dati_bdv!J$2:J$65536)","v":0},{"$f":"SUMIF(IF(dati_pdc!$C642=1,dati_bdv!$C$2:$C$65536,IF(dati_pdc!$C642=2,dati_bdv!$D$2:$D$65536,IF(dati_pdc!$C642=3,dati_bdv!$E$2:$E$65536,IF(dati_pdc!$C642=4,dati_bdv!$F$2:$F$65536,IF(dati_pdc!$C642=5,dati_bdv!$G$2:$G$65536,dati_bdv!$H$2:$H$65536))))),$A642,dati_bdv!K$2:K$65536)","v":0},{"$f":"SUMIF(IF(dati_pdc!$C642=1,dati_bdv!$C$2:$C$65536,IF(dati_pdc!$C642=2,dati_bdv!$D$2:$D$65536,IF(dati_pdc!$C642=3,dati_bdv!$E$2:$E$65536,IF(dati_pdc!$C642=4,dati_bdv!$F$2:$F$65536,IF(dati_pdc!$C642=5,dati_bdv!$G$2:$G$65536,dati_bdv!$H$2:$H$65536))))),$A642,dati_bdv!L$2:L$65536)","v":0},{"$f":"SUMIF(IF(dati_pdc!$C642=1,dati_bdv!$C$2:$C$65536,IF(dati_pdc!$C642=2,dati_bdv!$D$2:$D$65536,IF(dati_pdc!$C642=3,dati_bdv!$E$2:$E$65536,IF(dati_pdc!$C642=4,dati_bdv!$F$2:$F$65536,IF(dati_pdc!$C642=5,dati_bdv!$G$2:$G$65536,dati_bdv!$H$2:$H$65536))))),$A642,dati_bdv!M$2:M$65536)","v":0},{"$f":"SUMIF(IF(dati_pdc!$C642=1,dati_bdv!$C$2:$C$65536,IF(dati_pdc!$C642=2,dati_bdv!$D$2:$D$65536,IF(dati_pdc!$C642=3,dati_bdv!$E$2:$E$65536,IF(dati_pdc!$C642=4,dati_bdv!$F$2:$F$65536,IF(dati_pdc!$C642=5,dati_bdv!$G$2:$G$65536,dati_bdv!$H$2:$H$65536))))),$A642,dati_bdv!N$2:N$65536)","v":0}]
[{"$f":"dati_pdc!A643","v":0},{"$f":"SUMIF(IF(dati_pdc!$C643=1,dati_bdv!$C$2:$C$65536,IF(dati_pdc!$C643=2,dati_bdv!$D$2:$D$65536,IF(dati_pdc!$C643=3,dati_bdv!$E$2:$E$65536,IF(dati_pdc!$C643=4,dati_bdv!$F$2:$F$65536,IF(dati_pdc!$C643=5,dati_bdv!$G$2:$G$65536,dati_bdv!$H$2:$H$65536))))),$A643,dati_bdv!J$2:J$65536)","v":0},{"$f":"SUMIF(IF(dati_pdc!$C643=1,dati_bdv!$C$2:$C$65536,IF(dati_pdc!$C643=2,dati_bdv!$D$2:$D$65536,IF(dati_pdc!$C643=3,dati_bdv!$E$2:$E$65536,IF(dati_pdc!$C643=4,dati_bdv!$F$2:$F$65536,IF(dati_pdc!$C643=5,dati_bdv!$G$2:$G$65536,dati_bdv!$H$2:$H$65536))))),$A643,dati_bdv!K$2:K$65536)","v":0},{"$f":"SUMIF(IF(dati_pdc!$C643=1,dati_bdv!$C$2:$C$65536,IF(dati_pdc!$C643=2,dati_bdv!$D$2:$D$65536,IF(dati_pdc!$C643=3,dati_bdv!$E$2:$E$65536,IF(dati_pdc!$C643=4,dati_bdv!$F$2:$F$65536,IF(dati_pdc!$C643=5,dati_bdv!$G$2:$G$65536,dati_bdv!$H$2:$H$65536))))),$A643,dati_bdv!L$2:L$65536)","v":0},{"$f":"SUMIF(IF(dati_pdc!$C643=1,dati_bdv!$C$2:$C$65536,IF(dati_pdc!$C643=2,dati_bdv!$D$2:$D$65536,IF(dati_pdc!$C643=3,dati_bdv!$E$2:$E$65536,IF(dati_pdc!$C643=4,dati_bdv!$F$2:$F$65536,IF(dati_pdc!$C643=5,dati_bdv!$G$2:$G$65536,dati_bdv!$H$2:$H$65536))))),$A643,dati_bdv!M$2:M$65536)","v":0},{"$f":"SUMIF(IF(dati_pdc!$C643=1,dati_bdv!$C$2:$C$65536,IF(dati_pdc!$C643=2,dati_bdv!$D$2:$D$65536,IF(dati_pdc!$C643=3,dati_bdv!$E$2:$E$65536,IF(dati_pdc!$C643=4,dati_bdv!$F$2:$F$65536,IF(dati_pdc!$C643=5,dati_bdv!$G$2:$G$65536,dati_bdv!$H$2:$H$65536))))),$A643,dati_bdv!N$2:N$65536)","v":0}]
[{"$f":"dati_pdc!A644","v":0},{"$f":"SUMIF(IF(dati_pdc!$C644=1,dati_bdv!$C$2:$C$65536,IF(dati_pdc!$C644=2,dati_bdv!$D$2:$D$65536,IF(dati_pdc!$C644=3,dati_bdv!$E$2:$E$65536,IF(dati_pdc!$C644=4,dati_bdv!$F$2:$F$65536,IF(dati_pdc!$C644=5,dati_bdv!$G$2:$G$65536,dati_bdv!$H$2:$H$65536))))),$A644,dati_bdv!J$2:J$65536)","v":0},{"$f":"SUMIF(IF(dati_pdc!$C644=1,dati_bdv!$C$2:$C$65536,IF(dati_pdc!$C644=2,dati_bdv!$D$2:$D$65536,IF(dati_pdc!$C644=3,dati_bdv!$E$2:$E$65536,IF(dati_pdc!$C644=4,dati_bdv!$F$2:$F$65536,IF(dati_pdc!$C644=5,dati_bdv!$G$2:$G$65536,dati_bdv!$H$2:$H$65536))))),$A644,dati_bdv!K$2:K$65536)","v":0},{"$f":"SUMIF(IF(dati_pdc!$C644=1,dati_bdv!$C$2:$C$65536,IF(dati_pdc!$C644=2,dati_bdv!$D$2:$D$65536,IF(dati_pdc!$C644=3,dati_bdv!$E$2:$E$65536,IF(dati_pdc!$C644=4,dati_bdv!$F$2:$F$65536,IF(dati_pdc!$C644=5,dati_bdv!$G$2:$G$65536,dati_bdv!$H$2:$H$65536))))),$A644,dati_bdv!L$2:L$65536)","v":0},{"$f":"SUMIF(IF(dati_pdc!$C644=1,dati_bdv!$C$2:$C$65536,IF(dati_pdc!$C644=2,dati_bdv!$D$2:$D$65536,IF(dati_pdc!$C644=3,dati_bdv!$E$2:$E$65536,IF(dati_pdc!$C644=4,dati_bdv!$F$2:$F$65536,IF(dati_pdc!$C644=5,dati_bdv!$G$2:$G$65536,dati_bdv!$H$2:$H$65536))))),$A644,dati_bdv!M$2:M$65536)","v":0},{"$f":"SUMIF(IF(dati_pdc!$C644=1,dati_bdv!$C$2:$C$65536,IF(dati_pdc!$C644=2,dati_bdv!$D$2:$D$65536,IF(dati_pdc!$C644=3,dati_bdv!$E$2:$E$65536,IF(dati_pdc!$C644=4,dati_bdv!$F$2:$F$65536,IF(dati_pdc!$C644=5,dati_bdv!$G$2:$G$65536,dati_bdv!$H$2:$H$65536))))),$A644,dati_bdv!N$2:N$65536)","v":0}]
[{"$f":"dati_pdc!A645","v":0},{"$f":"SUMIF(IF(dati_pdc!$C645=1,dati_bdv!$C$2:$C$65536,IF(dati_pdc!$C645=2,dati_bdv!$D$2:$D$65536,IF(dati_pdc!$C645=3,dati_bdv!$E$2:$E$65536,IF(dati_pdc!$C645=4,dati_bdv!$F$2:$F$65536,IF(dati_pdc!$C645=5,dati_bdv!$G$2:$G$65536,dati_bdv!$H$2:$H$65536))))),$A645,dati_bdv!J$2:J$65536)","v":0},{"$f":"SUMIF(IF(dati_pdc!$C645=1,dati_bdv!$C$2:$C$65536,IF(dati_pdc!$C645=2,dati_bdv!$D$2:$D$65536,IF(dati_pdc!$C645=3,dati_bdv!$E$2:$E$65536,IF(dati_pdc!$C645=4,dati_bdv!$F$2:$F$65536,IF(dati_pdc!$C645=5,dati_bdv!$G$2:$G$65536,dati_bdv!$H$2:$H$65536))))),$A645,dati_bdv!K$2:K$65536)","v":0},{"$f":"SUMIF(IF(dati_pdc!$C645=1,dati_bdv!$C$2:$C$65536,IF(dati_pdc!$C645=2,dati_bdv!$D$2:$D$65536,IF(dati_pdc!$C645=3,dati_bdv!$E$2:$E$65536,IF(dati_pdc!$C645=4,dati_bdv!$F$2:$F$65536,IF(dati_pdc!$C645=5,dati_bdv!$G$2:$G$65536,dati_bdv!$H$2:$H$65536))))),$A645,dati_bdv!L$2:L$65536)","v":0},{"$f":"SUMIF(IF(dati_pdc!$C645=1,dati_bdv!$C$2:$C$65536,IF(dati_pdc!$C645=2,dati_bdv!$D$2:$D$65536,IF(dati_pdc!$C645=3,dati_bdv!$E$2:$E$65536,IF(dati_pdc!$C645=4,dati_bdv!$F$2:$F$65536,IF(dati_pdc!$C645=5,dati_bdv!$G$2:$G$65536,dati_bdv!$H$2:$H$65536))))),$A645,dati_bdv!M$2:M$65536)","v":0},{"$f":"SUMIF(IF(dati_pdc!$C645=1,dati_bdv!$C$2:$C$65536,IF(dati_pdc!$C645=2,dati_bdv!$D$2:$D$65536,IF(dati_pdc!$C645=3,dati_bdv!$E$2:$E$65536,IF(dati_pdc!$C645=4,dati_bdv!$F$2:$F$65536,IF(dati_pdc!$C645=5,dati_bdv!$G$2:$G$65536,dati_bdv!$H$2:$H$65536))))),$A645,dati_bdv!N$2:N$65536)","v":0}]
[{"$f":"dati_pdc!A646","v":0},{"$f":"SUMIF(IF(dati_pdc!$C646=1,dati_bdv!$C$2:$C$65536,IF(dati_pdc!$C646=2,dati_bdv!$D$2:$D$65536,IF(dati_pdc!$C646=3,dati_bdv!$E$2:$E$65536,IF(dati_pdc!$C646=4,dati_bdv!$F$2:$F$65536,IF(dati_pdc!$C646=5,dati_bdv!$G$2:$G$65536,dati_bdv!$H$2:$H$65536))))),$A646,dati_bdv!J$2:J$65536)","v":0},{"$f":"SUMIF(IF(dati_pdc!$C646=1,dati_bdv!$C$2:$C$65536,IF(dati_pdc!$C646=2,dati_bdv!$D$2:$D$65536,IF(dati_pdc!$C646=3,dati_bdv!$E$2:$E$65536,IF(dati_pdc!$C646=4,dati_bdv!$F$2:$F$65536,IF(dati_pdc!$C646=5,dati_bdv!$G$2:$G$65536,dati_bdv!$H$2:$H$65536))))),$A646,dati_bdv!K$2:K$65536)","v":0},{"$f":"SUMIF(IF(dati_pdc!$C646=1,dati_bdv!$C$2:$C$65536,IF(dati_pdc!$C646=2,dati_bdv!$D$2:$D$65536,IF(dati_pdc!$C646=3,dati_bdv!$E$2:$E$65536,IF(dati_pdc!$C646=4,dati_bdv!$F$2:$F$65536,IF(dati_pdc!$C646=5,dati_bdv!$G$2:$G$65536,dati_bdv!$H$2:$H$65536))))),$A646,dati_bdv!L$2:L$65536)","v":0},{"$f":"SUMIF(IF(dati_pdc!$C646=1,dati_bdv!$C$2:$C$65536,IF(dati_pdc!$C646=2,dati_bdv!$D$2:$D$65536,IF(dati_pdc!$C646=3,dati_bdv!$E$2:$E$65536,IF(dati_pdc!$C646=4,dati_bdv!$F$2:$F$65536,IF(dati_pdc!$C646=5,dati_bdv!$G$2:$G$65536,dati_bdv!$H$2:$H$65536))))),$A646,dati_bdv!M$2:M$65536)","v":0},{"$f":"SUMIF(IF(dati_pdc!$C646=1,dati_bdv!$C$2:$C$65536,IF(dati_pdc!$C646=2,dati_bdv!$D$2:$D$65536,IF(dati_pdc!$C646=3,dati_bdv!$E$2:$E$65536,IF(dati_pdc!$C646=4,dati_bdv!$F$2:$F$65536,IF(dati_pdc!$C646=5,dati_bdv!$G$2:$G$65536,dati_bdv!$H$2:$H$65536))))),$A646,dati_bdv!N$2:N$65536)","v":0}]
[{"$f":"dati_pdc!A647","v":0},{"$f":"SUMIF(IF(dati_pdc!$C647=1,dati_bdv!$C$2:$C$65536,IF(dati_pdc!$C647=2,dati_bdv!$D$2:$D$65536,IF(dati_pdc!$C647=3,dati_bdv!$E$2:$E$65536,IF(dati_pdc!$C647=4,dati_bdv!$F$2:$F$65536,IF(dati_pdc!$C647=5,dati_bdv!$G$2:$G$65536,dati_bdv!$H$2:$H$65536))))),$A647,dati_bdv!J$2:J$65536)","v":0},{"$f":"SUMIF(IF(dati_pdc!$C647=1,dati_bdv!$C$2:$C$65536,IF(dati_pdc!$C647=2,dati_bdv!$D$2:$D$65536,IF(dati_pdc!$C647=3,dati_bdv!$E$2:$E$65536,IF(dati_pdc!$C647=4,dati_bdv!$F$2:$F$65536,IF(dati_pdc!$C647=5,dati_bdv!$G$2:$G$65536,dati_bdv!$H$2:$H$65536))))),$A647,dati_bdv!K$2:K$65536)","v":0},{"$f":"SUMIF(IF(dati_pdc!$C647=1,dati_bdv!$C$2:$C$65536,IF(dati_pdc!$C647=2,dati_bdv!$D$2:$D$65536,IF(dati_pdc!$C647=3,dati_bdv!$E$2:$E$65536,IF(dati_pdc!$C647=4,dati_bdv!$F$2:$F$65536,IF(dati_pdc!$C647=5,dati_bdv!$G$2:$G$65536,dati_bdv!$H$2:$H$65536))))),$A647,dati_bdv!L$2:L$65536)","v":0},{"$f":"SUMIF(IF(dati_pdc!$C647=1,dati_bdv!$C$2:$C$65536,IF(dati_pdc!$C647=2,dati_bdv!$D$2:$D$65536,IF(dati_pdc!$C647=3,dati_bdv!$E$2:$E$65536,IF(dati_pdc!$C647=4,dati_bdv!$F$2:$F$65536,IF(dati_pdc!$C647=5,dati_bdv!$G$2:$G$65536,dati_bdv!$H$2:$H$65536))))),$A647,dati_bdv!M$2:M$65536)","v":0},{"$f":"SUMIF(IF(dati_pdc!$C647=1,dati_bdv!$C$2:$C$65536,IF(dati_pdc!$C647=2,dati_bdv!$D$2:$D$65536,IF(dati_pdc!$C647=3,dati_bdv!$E$2:$E$65536,IF(dati_pdc!$C647=4,dati_bdv!$F$2:$F$65536,IF(dati_pdc!$C647=5,dati_bdv!$G$2:$G$65536,dati_bdv!$H$2:$H$65536))))),$A647,dati_bdv!N$2:N$65536)","v":0}]
[{"$f":"dati_pdc!A648","v":0},{"$f":"SUMIF(IF(dati_pdc!$C648=1,dati_bdv!$C$2:$C$65536,IF(dati_pdc!$C648=2,dati_bdv!$D$2:$D$65536,IF(dati_pdc!$C648=3,dati_bdv!$E$2:$E$65536,IF(dati_pdc!$C648=4,dati_bdv!$F$2:$F$65536,IF(dati_pdc!$C648=5,dati_bdv!$G$2:$G$65536,dati_bdv!$H$2:$H$65536))))),$A648,dati_bdv!J$2:J$65536)","v":0},{"$f":"SUMIF(IF(dati_pdc!$C648=1,dati_bdv!$C$2:$C$65536,IF(dati_pdc!$C648=2,dati_bdv!$D$2:$D$65536,IF(dati_pdc!$C648=3,dati_bdv!$E$2:$E$65536,IF(dati_pdc!$C648=4,dati_bdv!$F$2:$F$65536,IF(dati_pdc!$C648=5,dati_bdv!$G$2:$G$65536,dati_bdv!$H$2:$H$65536))))),$A648,dati_bdv!K$2:K$65536)","v":0},{"$f":"SUMIF(IF(dati_pdc!$C648=1,dati_bdv!$C$2:$C$65536,IF(dati_pdc!$C648=2,dati_bdv!$D$2:$D$65536,IF(dati_pdc!$C648=3,dati_bdv!$E$2:$E$65536,IF(dati_pdc!$C648=4,dati_bdv!$F$2:$F$65536,IF(dati_pdc!$C648=5,dati_bdv!$G$2:$G$65536,dati_bdv!$H$2:$H$65536))))),$A648,dati_bdv!L$2:L$65536)","v":0},{"$f":"SUMIF(IF(dati_pdc!$C648=1,dati_bdv!$C$2:$C$65536,IF(dati_pdc!$C648=2,dati_bdv!$D$2:$D$65536,IF(dati_pdc!$C648=3,dati_bdv!$E$2:$E$65536,IF(dati_pdc!$C648=4,dati_bdv!$F$2:$F$65536,IF(dati_pdc!$C648=5,dati_bdv!$G$2:$G$65536,dati_bdv!$H$2:$H$65536))))),$A648,dati_bdv!M$2:M$65536)","v":0},{"$f":"SUMIF(IF(dati_pdc!$C648=1,dati_bdv!$C$2:$C$65536,IF(dati_pdc!$C648=2,dati_bdv!$D$2:$D$65536,IF(dati_pdc!$C648=3,dati_bdv!$E$2:$E$65536,IF(dati_pdc!$C648=4,dati_bdv!$F$2:$F$65536,IF(dati_pdc!$C648=5,dati_bdv!$G$2:$G$65536,dati_bdv!$H$2:$H$65536))))),$A648,dati_bdv!N$2:N$65536)","v":0}]
[{"$f":"dati_pdc!A649","v":0},{"$f":"SUMIF(IF(dati_pdc!$C649=1,dati_bdv!$C$2:$C$65536,IF(dati_pdc!$C649=2,dati_bdv!$D$2:$D$65536,IF(dati_pdc!$C649=3,dati_bdv!$E$2:$E$65536,IF(dati_pdc!$C649=4,dati_bdv!$F$2:$F$65536,IF(dati_pdc!$C649=5,dati_bdv!$G$2:$G$65536,dati_bdv!$H$2:$H$65536))))),$A649,dati_bdv!J$2:J$65536)","v":0},{"$f":"SUMIF(IF(dati_pdc!$C649=1,dati_bdv!$C$2:$C$65536,IF(dati_pdc!$C649=2,dati_bdv!$D$2:$D$65536,IF(dati_pdc!$C649=3,dati_bdv!$E$2:$E$65536,IF(dati_pdc!$C649=4,dati_bdv!$F$2:$F$65536,IF(dati_pdc!$C649=5,dati_bdv!$G$2:$G$65536,dati_bdv!$H$2:$H$65536))))),$A649,dati_bdv!K$2:K$65536)","v":0},{"$f":"SUMIF(IF(dati_pdc!$C649=1,dati_bdv!$C$2:$C$65536,IF(dati_pdc!$C649=2,dati_bdv!$D$2:$D$65536,IF(dati_pdc!$C649=3,dati_bdv!$E$2:$E$65536,IF(dati_pdc!$C649=4,dati_bdv!$F$2:$F$65536,IF(dati_pdc!$C649=5,dati_bdv!$G$2:$G$65536,dati_bdv!$H$2:$H$65536))))),$A649,dati_bdv!L$2:L$65536)","v":0},{"$f":"SUMIF(IF(dati_pdc!$C649=1,dati_bdv!$C$2:$C$65536,IF(dati_pdc!$C649=2,dati_bdv!$D$2:$D$65536,IF(dati_pdc!$C649=3,dati_bdv!$E$2:$E$65536,IF(dati_pdc!$C649=4,dati_bdv!$F$2:$F$65536,IF(dati_pdc!$C649=5,dati_bdv!$G$2:$G$65536,dati_bdv!$H$2:$H$65536))))),$A649,dati_bdv!M$2:M$65536)","v":0},{"$f":"SUMIF(IF(dati_pdc!$C649=1,dati_bdv!$C$2:$C$65536,IF(dati_pdc!$C649=2,dati_bdv!$D$2:$D$65536,IF(dati_pdc!$C649=3,dati_bdv!$E$2:$E$65536,IF(dati_pdc!$C649=4,dati_bdv!$F$2:$F$65536,IF(dati_pdc!$C649=5,dati_bdv!$G$2:$G$65536,dati_bdv!$H$2:$H$65536))))),$A649,dati_bdv!N$2:N$65536)","v":0}]
[{"$f":"dati_pdc!A650","v":0},{"$f":"SUMIF(IF(dati_pdc!$C650=1,dati_bdv!$C$2:$C$65536,IF(dati_pdc!$C650=2,dati_bdv!$D$2:$D$65536,IF(dati_pdc!$C650=3,dati_bdv!$E$2:$E$65536,IF(dati_pdc!$C650=4,dati_bdv!$F$2:$F$65536,IF(dati_pdc!$C650=5,dati_bdv!$G$2:$G$65536,dati_bdv!$H$2:$H$65536))))),$A650,dati_bdv!J$2:J$65536)","v":0},{"$f":"SUMIF(IF(dati_pdc!$C650=1,dati_bdv!$C$2:$C$65536,IF(dati_pdc!$C650=2,dati_bdv!$D$2:$D$65536,IF(dati_pdc!$C650=3,dati_bdv!$E$2:$E$65536,IF(dati_pdc!$C650=4,dati_bdv!$F$2:$F$65536,IF(dati_pdc!$C650=5,dati_bdv!$G$2:$G$65536,dati_bdv!$H$2:$H$65536))))),$A650,dati_bdv!K$2:K$65536)","v":0},{"$f":"SUMIF(IF(dati_pdc!$C650=1,dati_bdv!$C$2:$C$65536,IF(dati_pdc!$C650=2,dati_bdv!$D$2:$D$65536,IF(dati_pdc!$C650=3,dati_bdv!$E$2:$E$65536,IF(dati_pdc!$C650=4,dati_bdv!$F$2:$F$65536,IF(dati_pdc!$C650=5,dati_bdv!$G$2:$G$65536,dati_bdv!$H$2:$H$65536))))),$A650,dati_bdv!L$2:L$65536)","v":0},{"$f":"SUMIF(IF(dati_pdc!$C650=1,dati_bdv!$C$2:$C$65536,IF(dati_pdc!$C650=2,dati_bdv!$D$2:$D$65536,IF(dati_pdc!$C650=3,dati_bdv!$E$2:$E$65536,IF(dati_pdc!$C650=4,dati_bdv!$F$2:$F$65536,IF(dati_pdc!$C650=5,dati_bdv!$G$2:$G$65536,dati_bdv!$H$2:$H$65536))))),$A650,dati_bdv!M$2:M$65536)","v":0},{"$f":"SUMIF(IF(dati_pdc!$C650=1,dati_bdv!$C$2:$C$65536,IF(dati_pdc!$C650=2,dati_bdv!$D$2:$D$65536,IF(dati_pdc!$C650=3,dati_bdv!$E$2:$E$65536,IF(dati_pdc!$C650=4,dati_bdv!$F$2:$F$65536,IF(dati_pdc!$C650=5,dati_bdv!$G$2:$G$65536,dati_bdv!$H$2:$H$65536))))),$A650,dati_bdv!N$2:N$65536)","v":0}]
[{"$f":"dati_pdc!A651","v":0},{"$f":"SUMIF(IF(dati_pdc!$C651=1,dati_bdv!$C$2:$C$65536,IF(dati_pdc!$C651=2,dati_bdv!$D$2:$D$65536,IF(dati_pdc!$C651=3,dati_bdv!$E$2:$E$65536,IF(dati_pdc!$C651=4,dati_bdv!$F$2:$F$65536,IF(dati_pdc!$C651=5,dati_bdv!$G$2:$G$65536,dati_bdv!$H$2:$H$65536))))),$A651,dati_bdv!J$2:J$65536)","v":0},{"$f":"SUMIF(IF(dati_pdc!$C651=1,dati_bdv!$C$2:$C$65536,IF(dati_pdc!$C651=2,dati_bdv!$D$2:$D$65536,IF(dati_pdc!$C651=3,dati_bdv!$E$2:$E$65536,IF(dati_pdc!$C651=4,dati_bdv!$F$2:$F$65536,IF(dati_pdc!$C651=5,dati_bdv!$G$2:$G$65536,dati_bdv!$H$2:$H$65536))))),$A651,dati_bdv!K$2:K$65536)","v":0},{"$f":"SUMIF(IF(dati_pdc!$C651=1,dati_bdv!$C$2:$C$65536,IF(dati_pdc!$C651=2,dati_bdv!$D$2:$D$65536,IF(dati_pdc!$C651=3,dati_bdv!$E$2:$E$65536,IF(dati_pdc!$C651=4,dati_bdv!$F$2:$F$65536,IF(dati_pdc!$C651=5,dati_bdv!$G$2:$G$65536,dati_bdv!$H$2:$H$65536))))),$A651,dati_bdv!L$2:L$65536)","v":0},{"$f":"SUMIF(IF(dati_pdc!$C651=1,dati_bdv!$C$2:$C$65536,IF(dati_pdc!$C651=2,dati_bdv!$D$2:$D$65536,IF(dati_pdc!$C651=3,dati_bdv!$E$2:$E$65536,IF(dati_pdc!$C651=4,dati_bdv!$F$2:$F$65536,IF(dati_pdc!$C651=5,dati_bdv!$G$2:$G$65536,dati_bdv!$H$2:$H$65536))))),$A651,dati_bdv!M$2:M$65536)","v":0},{"$f":"SUMIF(IF(dati_pdc!$C651=1,dati_bdv!$C$2:$C$65536,IF(dati_pdc!$C651=2,dati_bdv!$D$2:$D$65536,IF(dati_pdc!$C651=3,dati_bdv!$E$2:$E$65536,IF(dati_pdc!$C651=4,dati_bdv!$F$2:$F$65536,IF(dati_pdc!$C651=5,dati_bdv!$G$2:$G$65536,dati_bdv!$H$2:$H$65536))))),$A651,dati_bdv!N$2:N$65536)","v":0}]
[{"$f":"dati_pdc!A652","v":0},{"$f":"SUMIF(IF(dati_pdc!$C652=1,dati_bdv!$C$2:$C$65536,IF(dati_pdc!$C652=2,dati_bdv!$D$2:$D$65536,IF(dati_pdc!$C652=3,dati_bdv!$E$2:$E$65536,IF(dati_pdc!$C652=4,dati_bdv!$F$2:$F$65536,IF(dati_pdc!$C652=5,dati_bdv!$G$2:$G$65536,dati_bdv!$H$2:$H$65536))))),$A652,dati_bdv!J$2:J$65536)","v":0},{"$f":"SUMIF(IF(dati_pdc!$C652=1,dati_bdv!$C$2:$C$65536,IF(dati_pdc!$C652=2,dati_bdv!$D$2:$D$65536,IF(dati_pdc!$C652=3,dati_bdv!$E$2:$E$65536,IF(dati_pdc!$C652=4,dati_bdv!$F$2:$F$65536,IF(dati_pdc!$C652=5,dati_bdv!$G$2:$G$65536,dati_bdv!$H$2:$H$65536))))),$A652,dati_bdv!K$2:K$65536)","v":0},{"$f":"SUMIF(IF(dati_pdc!$C652=1,dati_bdv!$C$2:$C$65536,IF(dati_pdc!$C652=2,dati_bdv!$D$2:$D$65536,IF(dati_pdc!$C652=3,dati_bdv!$E$2:$E$65536,IF(dati_pdc!$C652=4,dati_bdv!$F$2:$F$65536,IF(dati_pdc!$C652=5,dati_bdv!$G$2:$G$65536,dati_bdv!$H$2:$H$65536))))),$A652,dati_bdv!L$2:L$65536)","v":0},{"$f":"SUMIF(IF(dati_pdc!$C652=1,dati_bdv!$C$2:$C$65536,IF(dati_pdc!$C652=2,dati_bdv!$D$2:$D$65536,IF(dati_pdc!$C652=3,dati_bdv!$E$2:$E$65536,IF(dati_pdc!$C652=4,dati_bdv!$F$2:$F$65536,IF(dati_pdc!$C652=5,dati_bdv!$G$2:$G$65536,dati_bdv!$H$2:$H$65536))))),$A652,dati_bdv!M$2:M$65536)","v":0},{"$f":"SUMIF(IF(dati_pdc!$C652=1,dati_bdv!$C$2:$C$65536,IF(dati_pdc!$C652=2,dati_bdv!$D$2:$D$65536,IF(dati_pdc!$C652=3,dati_bdv!$E$2:$E$65536,IF(dati_pdc!$C652=4,dati_bdv!$F$2:$F$65536,IF(dati_pdc!$C652=5,dati_bdv!$G$2:$G$65536,dati_bdv!$H$2:$H$65536))))),$A652,dati_bdv!N$2:N$65536)","v":0}]
[{"$f":"dati_pdc!A653","v":0},{"$f":"SUMIF(IF(dati_pdc!$C653=1,dati_bdv!$C$2:$C$65536,IF(dati_pdc!$C653=2,dati_bdv!$D$2:$D$65536,IF(dati_pdc!$C653=3,dati_bdv!$E$2:$E$65536,IF(dati_pdc!$C653=4,dati_bdv!$F$2:$F$65536,IF(dati_pdc!$C653=5,dati_bdv!$G$2:$G$65536,dati_bdv!$H$2:$H$65536))))),$A653,dati_bdv!J$2:J$65536)","v":0},{"$f":"SUMIF(IF(dati_pdc!$C653=1,dati_bdv!$C$2:$C$65536,IF(dati_pdc!$C653=2,dati_bdv!$D$2:$D$65536,IF(dati_pdc!$C653=3,dati_bdv!$E$2:$E$65536,IF(dati_pdc!$C653=4,dati_bdv!$F$2:$F$65536,IF(dati_pdc!$C653=5,dati_bdv!$G$2:$G$65536,dati_bdv!$H$2:$H$65536))))),$A653,dati_bdv!K$2:K$65536)","v":0},{"$f":"SUMIF(IF(dati_pdc!$C653=1,dati_bdv!$C$2:$C$65536,IF(dati_pdc!$C653=2,dati_bdv!$D$2:$D$65536,IF(dati_pdc!$C653=3,dati_bdv!$E$2:$E$65536,IF(dati_pdc!$C653=4,dati_bdv!$F$2:$F$65536,IF(dati_pdc!$C653=5,dati_bdv!$G$2:$G$65536,dati_bdv!$H$2:$H$65536))))),$A653,dati_bdv!L$2:L$65536)","v":0},{"$f":"SUMIF(IF(dati_pdc!$C653=1,dati_bdv!$C$2:$C$65536,IF(dati_pdc!$C653=2,dati_bdv!$D$2:$D$65536,IF(dati_pdc!$C653=3,dati_bdv!$E$2:$E$65536,IF(dati_pdc!$C653=4,dati_bdv!$F$2:$F$65536,IF(dati_pdc!$C653=5,dati_bdv!$G$2:$G$65536,dati_bdv!$H$2:$H$65536))))),$A653,dati_bdv!M$2:M$65536)","v":0},{"$f":"SUMIF(IF(dati_pdc!$C653=1,dati_bdv!$C$2:$C$65536,IF(dati_pdc!$C653=2,dati_bdv!$D$2:$D$65536,IF(dati_pdc!$C653=3,dati_bdv!$E$2:$E$65536,IF(dati_pdc!$C653=4,dati_bdv!$F$2:$F$65536,IF(dati_pdc!$C653=5,dati_bdv!$G$2:$G$65536,dati_bdv!$H$2:$H$65536))))),$A653,dati_bdv!N$2:N$65536)","v":0}]
[{"$f":"dati_pdc!A654","v":0},{"$f":"SUMIF(IF(dati_pdc!$C654=1,dati_bdv!$C$2:$C$65536,IF(dati_pdc!$C654=2,dati_bdv!$D$2:$D$65536,IF(dati_pdc!$C654=3,dati_bdv!$E$2:$E$65536,IF(dati_pdc!$C654=4,dati_bdv!$F$2:$F$65536,IF(dati_pdc!$C654=5,dati_bdv!$G$2:$G$65536,dati_bdv!$H$2:$H$65536))))),$A654,dati_bdv!J$2:J$65536)","v":0},{"$f":"SUMIF(IF(dati_pdc!$C654=1,dati_bdv!$C$2:$C$65536,IF(dati_pdc!$C654=2,dati_bdv!$D$2:$D$65536,IF(dati_pdc!$C654=3,dati_bdv!$E$2:$E$65536,IF(dati_pdc!$C654=4,dati_bdv!$F$2:$F$65536,IF(dati_pdc!$C654=5,dati_bdv!$G$2:$G$65536,dati_bdv!$H$2:$H$65536))))),$A654,dati_bdv!K$2:K$65536)","v":0},{"$f":"SUMIF(IF(dati_pdc!$C654=1,dati_bdv!$C$2:$C$65536,IF(dati_pdc!$C654=2,dati_bdv!$D$2:$D$65536,IF(dati_pdc!$C654=3,dati_bdv!$E$2:$E$65536,IF(dati_pdc!$C654=4,dati_bdv!$F$2:$F$65536,IF(dati_pdc!$C654=5,dati_bdv!$G$2:$G$65536,dati_bdv!$H$2:$H$65536))))),$A654,dati_bdv!L$2:L$65536)","v":0},{"$f":"SUMIF(IF(dati_pdc!$C654=1,dati_bdv!$C$2:$C$65536,IF(dati_pdc!$C654=2,dati_bdv!$D$2:$D$65536,IF(dati_pdc!$C654=3,dati_bdv!$E$2:$E$65536,IF(dati_pdc!$C654=4,dati_bdv!$F$2:$F$65536,IF(dati_pdc!$C654=5,dati_bdv!$G$2:$G$65536,dati_bdv!$H$2:$H$65536))))),$A654,dati_bdv!M$2:M$65536)","v":0},{"$f":"SUMIF(IF(dati_pdc!$C654=1,dati_bdv!$C$2:$C$65536,IF(dati_pdc!$C654=2,dati_bdv!$D$2:$D$65536,IF(dati_pdc!$C654=3,dati_bdv!$E$2:$E$65536,IF(dati_pdc!$C654=4,dati_bdv!$F$2:$F$65536,IF(dati_pdc!$C654=5,dati_bdv!$G$2:$G$65536,dati_bdv!$H$2:$H$65536))))),$A654,dati_bdv!N$2:N$65536)","v":0}]
[{"$f":"dati_pdc!A655","v":0},{"$f":"SUMIF(IF(dati_pdc!$C655=1,dati_bdv!$C$2:$C$65536,IF(dati_pdc!$C655=2,dati_bdv!$D$2:$D$65536,IF(dati_pdc!$C655=3,dati_bdv!$E$2:$E$65536,IF(dati_pdc!$C655=4,dati_bdv!$F$2:$F$65536,IF(dati_pdc!$C655=5,dati_bdv!$G$2:$G$65536,dati_bdv!$H$2:$H$65536))))),$A655,dati_bdv!J$2:J$65536)","v":0},{"$f":"SUMIF(IF(dati_pdc!$C655=1,dati_bdv!$C$2:$C$65536,IF(dati_pdc!$C655=2,dati_bdv!$D$2:$D$65536,IF(dati_pdc!$C655=3,dati_bdv!$E$2:$E$65536,IF(dati_pdc!$C655=4,dati_bdv!$F$2:$F$65536,IF(dati_pdc!$C655=5,dati_bdv!$G$2:$G$65536,dati_bdv!$H$2:$H$65536))))),$A655,dati_bdv!K$2:K$65536)","v":0},{"$f":"SUMIF(IF(dati_pdc!$C655=1,dati_bdv!$C$2:$C$65536,IF(dati_pdc!$C655=2,dati_bdv!$D$2:$D$65536,IF(dati_pdc!$C655=3,dati_bdv!$E$2:$E$65536,IF(dati_pdc!$C655=4,dati_bdv!$F$2:$F$65536,IF(dati_pdc!$C655=5,dati_bdv!$G$2:$G$65536,dati_bdv!$H$2:$H$65536))))),$A655,dati_bdv!L$2:L$65536)","v":0},{"$f":"SUMIF(IF(dati_pdc!$C655=1,dati_bdv!$C$2:$C$65536,IF(dati_pdc!$C655=2,dati_bdv!$D$2:$D$65536,IF(dati_pdc!$C655=3,dati_bdv!$E$2:$E$65536,IF(dati_pdc!$C655=4,dati_bdv!$F$2:$F$65536,IF(dati_pdc!$C655=5,dati_bdv!$G$2:$G$65536,dati_bdv!$H$2:$H$65536))))),$A655,dati_bdv!M$2:M$65536)","v":0},{"$f":"SUMIF(IF(dati_pdc!$C655=1,dati_bdv!$C$2:$C$65536,IF(dati_pdc!$C655=2,dati_bdv!$D$2:$D$65536,IF(dati_pdc!$C655=3,dati_bdv!$E$2:$E$65536,IF(dati_pdc!$C655=4,dati_bdv!$F$2:$F$65536,IF(dati_pdc!$C655=5,dati_bdv!$G$2:$G$65536,dati_bdv!$H$2:$H$65536))))),$A655,dati_bdv!N$2:N$65536)","v":0}]
[{"$f":"dati_pdc!A656","v":0},{"$f":"SUMIF(IF(dati_pdc!$C656=1,dati_bdv!$C$2:$C$65536,IF(dati_pdc!$C656=2,dati_bdv!$D$2:$D$65536,IF(dati_pdc!$C656=3,dati_bdv!$E$2:$E$65536,IF(dati_pdc!$C656=4,dati_bdv!$F$2:$F$65536,IF(dati_pdc!$C656=5,dati_bdv!$G$2:$G$65536,dati_bdv!$H$2:$H$65536))))),$A656,dati_bdv!J$2:J$65536)","v":0},{"$f":"SUMIF(IF(dati_pdc!$C656=1,dati_bdv!$C$2:$C$65536,IF(dati_pdc!$C656=2,dati_bdv!$D$2:$D$65536,IF(dati_pdc!$C656=3,dati_bdv!$E$2:$E$65536,IF(dati_pdc!$C656=4,dati_bdv!$F$2:$F$65536,IF(dati_pdc!$C656=5,dati_bdv!$G$2:$G$65536,dati_bdv!$H$2:$H$65536))))),$A656,dati_bdv!K$2:K$65536)","v":0},{"$f":"SUMIF(IF(dati_pdc!$C656=1,dati_bdv!$C$2:$C$65536,IF(dati_pdc!$C656=2,dati_bdv!$D$2:$D$65536,IF(dati_pdc!$C656=3,dati_bdv!$E$2:$E$65536,IF(dati_pdc!$C656=4,dati_bdv!$F$2:$F$65536,IF(dati_pdc!$C656=5,dati_bdv!$G$2:$G$65536,dati_bdv!$H$2:$H$65536))))),$A656,dati_bdv!L$2:L$65536)","v":0},{"$f":"SUMIF(IF(dati_pdc!$C656=1,dati_bdv!$C$2:$C$65536,IF(dati_pdc!$C656=2,dati_bdv!$D$2:$D$65536,IF(dati_pdc!$C656=3,dati_bdv!$E$2:$E$65536,IF(dati_pdc!$C656=4,dati_bdv!$F$2:$F$65536,IF(dati_pdc!$C656=5,dati_bdv!$G$2:$G$65536,dati_bdv!$H$2:$H$65536))))),$A656,dati_bdv!M$2:M$65536)","v":0},{"$f":"SUMIF(IF(dati_pdc!$C656=1,dati_bdv!$C$2:$C$65536,IF(dati_pdc!$C656=2,dati_bdv!$D$2:$D$65536,IF(dati_pdc!$C656=3,dati_bdv!$E$2:$E$65536,IF(dati_pdc!$C656=4,dati_bdv!$F$2:$F$65536,IF(dati_pdc!$C656=5,dati_bdv!$G$2:$G$65536,dati_bdv!$H$2:$H$65536))))),$A656,dati_bdv!N$2:N$65536)","v":0}]
[{"$f":"dati_pdc!A657","v":0},{"$f":"SUMIF(IF(dati_pdc!$C657=1,dati_bdv!$C$2:$C$65536,IF(dati_pdc!$C657=2,dati_bdv!$D$2:$D$65536,IF(dati_pdc!$C657=3,dati_bdv!$E$2:$E$65536,IF(dati_pdc!$C657=4,dati_bdv!$F$2:$F$65536,IF(dati_pdc!$C657=5,dati_bdv!$G$2:$G$65536,dati_bdv!$H$2:$H$65536))))),$A657,dati_bdv!J$2:J$65536)","v":0},{"$f":"SUMIF(IF(dati_pdc!$C657=1,dati_bdv!$C$2:$C$65536,IF(dati_pdc!$C657=2,dati_bdv!$D$2:$D$65536,IF(dati_pdc!$C657=3,dati_bdv!$E$2:$E$65536,IF(dati_pdc!$C657=4,dati_bdv!$F$2:$F$65536,IF(dati_pdc!$C657=5,dati_bdv!$G$2:$G$65536,dati_bdv!$H$2:$H$65536))))),$A657,dati_bdv!K$2:K$65536)","v":0},{"$f":"SUMIF(IF(dati_pdc!$C657=1,dati_bdv!$C$2:$C$65536,IF(dati_pdc!$C657=2,dati_bdv!$D$2:$D$65536,IF(dati_pdc!$C657=3,dati_bdv!$E$2:$E$65536,IF(dati_pdc!$C657=4,dati_bdv!$F$2:$F$65536,IF(dati_pdc!$C657=5,dati_bdv!$G$2:$G$65536,dati_bdv!$H$2:$H$65536))))),$A657,dati_bdv!L$2:L$65536)","v":0},{"$f":"SUMIF(IF(dati_pdc!$C657=1,dati_bdv!$C$2:$C$65536,IF(dati_pdc!$C657=2,dati_bdv!$D$2:$D$65536,IF(dati_pdc!$C657=3,dati_bdv!$E$2:$E$65536,IF(dati_pdc!$C657=4,dati_bdv!$F$2:$F$65536,IF(dati_pdc!$C657=5,dati_bdv!$G$2:$G$65536,dati_bdv!$H$2:$H$65536))))),$A657,dati_bdv!M$2:M$65536)","v":0},{"$f":"SUMIF(IF(dati_pdc!$C657=1,dati_bdv!$C$2:$C$65536,IF(dati_pdc!$C657=2,dati_bdv!$D$2:$D$65536,IF(dati_pdc!$C657=3,dati_bdv!$E$2:$E$65536,IF(dati_pdc!$C657=4,dati_bdv!$F$2:$F$65536,IF(dati_pdc!$C657=5,dati_bdv!$G$2:$G$65536,dati_bdv!$H$2:$H$65536))))),$A657,dati_bdv!N$2:N$65536)","v":0}]
[{"$f":"dati_pdc!A658","v":0},{"$f":"SUMIF(IF(dati_pdc!$C658=1,dati_bdv!$C$2:$C$65536,IF(dati_pdc!$C658=2,dati_bdv!$D$2:$D$65536,IF(dati_pdc!$C658=3,dati_bdv!$E$2:$E$65536,IF(dati_pdc!$C658=4,dati_bdv!$F$2:$F$65536,IF(dati_pdc!$C658=5,dati_bdv!$G$2:$G$65536,dati_bdv!$H$2:$H$65536))))),$A658,dati_bdv!J$2:J$65536)","v":0},{"$f":"SUMIF(IF(dati_pdc!$C658=1,dati_bdv!$C$2:$C$65536,IF(dati_pdc!$C658=2,dati_bdv!$D$2:$D$65536,IF(dati_pdc!$C658=3,dati_bdv!$E$2:$E$65536,IF(dati_pdc!$C658=4,dati_bdv!$F$2:$F$65536,IF(dati_pdc!$C658=5,dati_bdv!$G$2:$G$65536,dati_bdv!$H$2:$H$65536))))),$A658,dati_bdv!K$2:K$65536)","v":0},{"$f":"SUMIF(IF(dati_pdc!$C658=1,dati_bdv!$C$2:$C$65536,IF(dati_pdc!$C658=2,dati_bdv!$D$2:$D$65536,IF(dati_pdc!$C658=3,dati_bdv!$E$2:$E$65536,IF(dati_pdc!$C658=4,dati_bdv!$F$2:$F$65536,IF(dati_pdc!$C658=5,dati_bdv!$G$2:$G$65536,dati_bdv!$H$2:$H$65536))))),$A658,dati_bdv!L$2:L$65536)","v":0},{"$f":"SUMIF(IF(dati_pdc!$C658=1,dati_bdv!$C$2:$C$65536,IF(dati_pdc!$C658=2,dati_bdv!$D$2:$D$65536,IF(dati_pdc!$C658=3,dati_bdv!$E$2:$E$65536,IF(dati_pdc!$C658=4,dati_bdv!$F$2:$F$65536,IF(dati_pdc!$C658=5,dati_bdv!$G$2:$G$65536,dati_bdv!$H$2:$H$65536))))),$A658,dati_bdv!M$2:M$65536)","v":0},{"$f":"SUMIF(IF(dati_pdc!$C658=1,dati_bdv!$C$2:$C$65536,IF(dati_pdc!$C658=2,dati_bdv!$D$2:$D$65536,IF(dati_pdc!$C658=3,dati_bdv!$E$2:$E$65536,IF(dati_pdc!$C658=4,dati_bdv!$F$2:$F$65536,IF(dati_pdc!$C658=5,dati_bdv!$G$2:$G$65536,dati_bdv!$H$2:$H$65536))))),$A658,dati_bdv!N$2:N$65536)","v":0}]
[{"$f":"dati_pdc!A659","v":0},{"$f":"SUMIF(IF(dati_pdc!$C659=1,dati_bdv!$C$2:$C$65536,IF(dati_pdc!$C659=2,dati_bdv!$D$2:$D$65536,IF(dati_pdc!$C659=3,dati_bdv!$E$2:$E$65536,IF(dati_pdc!$C659=4,dati_bdv!$F$2:$F$65536,IF(dati_pdc!$C659=5,dati_bdv!$G$2:$G$65536,dati_bdv!$H$2:$H$65536))))),$A659,dati_bdv!J$2:J$65536)","v":0},{"$f":"SUMIF(IF(dati_pdc!$C659=1,dati_bdv!$C$2:$C$65536,IF(dati_pdc!$C659=2,dati_bdv!$D$2:$D$65536,IF(dati_pdc!$C659=3,dati_bdv!$E$2:$E$65536,IF(dati_pdc!$C659=4,dati_bdv!$F$2:$F$65536,IF(dati_pdc!$C659=5,dati_bdv!$G$2:$G$65536,dati_bdv!$H$2:$H$65536))))),$A659,dati_bdv!K$2:K$65536)","v":0},{"$f":"SUMIF(IF(dati_pdc!$C659=1,dati_bdv!$C$2:$C$65536,IF(dati_pdc!$C659=2,dati_bdv!$D$2:$D$65536,IF(dati_pdc!$C659=3,dati_bdv!$E$2:$E$65536,IF(dati_pdc!$C659=4,dati_bdv!$F$2:$F$65536,IF(dati_pdc!$C659=5,dati_bdv!$G$2:$G$65536,dati_bdv!$H$2:$H$65536))))),$A659,dati_bdv!L$2:L$65536)","v":0},{"$f":"SUMIF(IF(dati_pdc!$C659=1,dati_bdv!$C$2:$C$65536,IF(dati_pdc!$C659=2,dati_bdv!$D$2:$D$65536,IF(dati_pdc!$C659=3,dati_bdv!$E$2:$E$65536,IF(dati_pdc!$C659=4,dati_bdv!$F$2:$F$65536,IF(dati_pdc!$C659=5,dati_bdv!$G$2:$G$65536,dati_bdv!$H$2:$H$65536))))),$A659,dati_bdv!M$2:M$65536)","v":0},{"$f":"SUMIF(IF(dati_pdc!$C659=1,dati_bdv!$C$2:$C$65536,IF(dati_pdc!$C659=2,dati_bdv!$D$2:$D$65536,IF(dati_pdc!$C659=3,dati_bdv!$E$2:$E$65536,IF(dati_pdc!$C659=4,dati_bdv!$F$2:$F$65536,IF(dati_pdc!$C659=5,dati_bdv!$G$2:$G$65536,dati_bdv!$H$2:$H$65536))))),$A659,dati_bdv!N$2:N$65536)","v":0}]
[{"$f":"dati_pdc!A660","v":0},{"$f":"SUMIF(IF(dati_pdc!$C660=1,dati_bdv!$C$2:$C$65536,IF(dati_pdc!$C660=2,dati_bdv!$D$2:$D$65536,IF(dati_pdc!$C660=3,dati_bdv!$E$2:$E$65536,IF(dati_pdc!$C660=4,dati_bdv!$F$2:$F$65536,IF(dati_pdc!$C660=5,dati_bdv!$G$2:$G$65536,dati_bdv!$H$2:$H$65536))))),$A660,dati_bdv!J$2:J$65536)","v":0},{"$f":"SUMIF(IF(dati_pdc!$C660=1,dati_bdv!$C$2:$C$65536,IF(dati_pdc!$C660=2,dati_bdv!$D$2:$D$65536,IF(dati_pdc!$C660=3,dati_bdv!$E$2:$E$65536,IF(dati_pdc!$C660=4,dati_bdv!$F$2:$F$65536,IF(dati_pdc!$C660=5,dati_bdv!$G$2:$G$65536,dati_bdv!$H$2:$H$65536))))),$A660,dati_bdv!K$2:K$65536)","v":0},{"$f":"SUMIF(IF(dati_pdc!$C660=1,dati_bdv!$C$2:$C$65536,IF(dati_pdc!$C660=2,dati_bdv!$D$2:$D$65536,IF(dati_pdc!$C660=3,dati_bdv!$E$2:$E$65536,IF(dati_pdc!$C660=4,dati_bdv!$F$2:$F$65536,IF(dati_pdc!$C660=5,dati_bdv!$G$2:$G$65536,dati_bdv!$H$2:$H$65536))))),$A660,dati_bdv!L$2:L$65536)","v":0},{"$f":"SUMIF(IF(dati_pdc!$C660=1,dati_bdv!$C$2:$C$65536,IF(dati_pdc!$C660=2,dati_bdv!$D$2:$D$65536,IF(dati_pdc!$C660=3,dati_bdv!$E$2:$E$65536,IF(dati_pdc!$C660=4,dati_bdv!$F$2:$F$65536,IF(dati_pdc!$C660=5,dati_bdv!$G$2:$G$65536,dati_bdv!$H$2:$H$65536))))),$A660,dati_bdv!M$2:M$65536)","v":0},{"$f":"SUMIF(IF(dati_pdc!$C660=1,dati_bdv!$C$2:$C$65536,IF(dati_pdc!$C660=2,dati_bdv!$D$2:$D$65536,IF(dati_pdc!$C660=3,dati_bdv!$E$2:$E$65536,IF(dati_pdc!$C660=4,dati_bdv!$F$2:$F$65536,IF(dati_pdc!$C660=5,dati_bdv!$G$2:$G$65536,dati_bdv!$H$2:$H$65536))))),$A660,dati_bdv!N$2:N$65536)","v":0}]
[{"$f":"dati_pdc!A661","v":0},{"$f":"SUMIF(IF(dati_pdc!$C661=1,dati_bdv!$C$2:$C$65536,IF(dati_pdc!$C661=2,dati_bdv!$D$2:$D$65536,IF(dati_pdc!$C661=3,dati_bdv!$E$2:$E$65536,IF(dati_pdc!$C661=4,dati_bdv!$F$2:$F$65536,IF(dati_pdc!$C661=5,dati_bdv!$G$2:$G$65536,dati_bdv!$H$2:$H$65536))))),$A661,dati_bdv!J$2:J$65536)","v":0},{"$f":"SUMIF(IF(dati_pdc!$C661=1,dati_bdv!$C$2:$C$65536,IF(dati_pdc!$C661=2,dati_bdv!$D$2:$D$65536,IF(dati_pdc!$C661=3,dati_bdv!$E$2:$E$65536,IF(dati_pdc!$C661=4,dati_bdv!$F$2:$F$65536,IF(dati_pdc!$C661=5,dati_bdv!$G$2:$G$65536,dati_bdv!$H$2:$H$65536))))),$A661,dati_bdv!K$2:K$65536)","v":0},{"$f":"SUMIF(IF(dati_pdc!$C661=1,dati_bdv!$C$2:$C$65536,IF(dati_pdc!$C661=2,dati_bdv!$D$2:$D$65536,IF(dati_pdc!$C661=3,dati_bdv!$E$2:$E$65536,IF(dati_pdc!$C661=4,dati_bdv!$F$2:$F$65536,IF(dati_pdc!$C661=5,dati_bdv!$G$2:$G$65536,dati_bdv!$H$2:$H$65536))))),$A661,dati_bdv!L$2:L$65536)","v":0},{"$f":"SUMIF(IF(dati_pdc!$C661=1,dati_bdv!$C$2:$C$65536,IF(dati_pdc!$C661=2,dati_bdv!$D$2:$D$65536,IF(dati_pdc!$C661=3,dati_bdv!$E$2:$E$65536,IF(dati_pdc!$C661=4,dati_bdv!$F$2:$F$65536,IF(dati_pdc!$C661=5,dati_bdv!$G$2:$G$65536,dati_bdv!$H$2:$H$65536))))),$A661,dati_bdv!M$2:M$65536)","v":0},{"$f":"SUMIF(IF(dati_pdc!$C661=1,dati_bdv!$C$2:$C$65536,IF(dati_pdc!$C661=2,dati_bdv!$D$2:$D$65536,IF(dati_pdc!$C661=3,dati_bdv!$E$2:$E$65536,IF(dati_pdc!$C661=4,dati_bdv!$F$2:$F$65536,IF(dati_pdc!$C661=5,dati_bdv!$G$2:$G$65536,dati_bdv!$H$2:$H$65536))))),$A661,dati_bdv!N$2:N$65536)","v":0}]
[{"$f":"dati_pdc!A662","v":0},{"$f":"SUMIF(IF(dati_pdc!$C662=1,dati_bdv!$C$2:$C$65536,IF(dati_pdc!$C662=2,dati_bdv!$D$2:$D$65536,IF(dati_pdc!$C662=3,dati_bdv!$E$2:$E$65536,IF(dati_pdc!$C662=4,dati_bdv!$F$2:$F$65536,IF(dati_pdc!$C662=5,dati_bdv!$G$2:$G$65536,dati_bdv!$H$2:$H$65536))))),$A662,dati_bdv!J$2:J$65536)","v":0},{"$f":"SUMIF(IF(dati_pdc!$C662=1,dati_bdv!$C$2:$C$65536,IF(dati_pdc!$C662=2,dati_bdv!$D$2:$D$65536,IF(dati_pdc!$C662=3,dati_bdv!$E$2:$E$65536,IF(dati_pdc!$C662=4,dati_bdv!$F$2:$F$65536,IF(dati_pdc!$C662=5,dati_bdv!$G$2:$G$65536,dati_bdv!$H$2:$H$65536))))),$A662,dati_bdv!K$2:K$65536)","v":0},{"$f":"SUMIF(IF(dati_pdc!$C662=1,dati_bdv!$C$2:$C$65536,IF(dati_pdc!$C662=2,dati_bdv!$D$2:$D$65536,IF(dati_pdc!$C662=3,dati_bdv!$E$2:$E$65536,IF(dati_pdc!$C662=4,dati_bdv!$F$2:$F$65536,IF(dati_pdc!$C662=5,dati_bdv!$G$2:$G$65536,dati_bdv!$H$2:$H$65536))))),$A662,dati_bdv!L$2:L$65536)","v":0},{"$f":"SUMIF(IF(dati_pdc!$C662=1,dati_bdv!$C$2:$C$65536,IF(dati_pdc!$C662=2,dati_bdv!$D$2:$D$65536,IF(dati_pdc!$C662=3,dati_bdv!$E$2:$E$65536,IF(dati_pdc!$C662=4,dati_bdv!$F$2:$F$65536,IF(dati_pdc!$C662=5,dati_bdv!$G$2:$G$65536,dati_bdv!$H$2:$H$65536))))),$A662,dati_bdv!M$2:M$65536)","v":0},{"$f":"SUMIF(IF(dati_pdc!$C662=1,dati_bdv!$C$2:$C$65536,IF(dati_pdc!$C662=2,dati_bdv!$D$2:$D$65536,IF(dati_pdc!$C662=3,dati_bdv!$E$2:$E$65536,IF(dati_pdc!$C662=4,dati_bdv!$F$2:$F$65536,IF(dati_pdc!$C662=5,dati_bdv!$G$2:$G$65536,dati_bdv!$H$2:$H$65536))))),$A662,dati_bdv!N$2:N$65536)","v":0}]
[{"$f":"dati_pdc!A663","v":0},{"$f":"SUMIF(IF(dati_pdc!$C663=1,dati_bdv!$C$2:$C$65536,IF(dati_pdc!$C663=2,dati_bdv!$D$2:$D$65536,IF(dati_pdc!$C663=3,dati_bdv!$E$2:$E$65536,IF(dati_pdc!$C663=4,dati_bdv!$F$2:$F$65536,IF(dati_pdc!$C663=5,dati_bdv!$G$2:$G$65536,dati_bdv!$H$2:$H$65536))))),$A663,dati_bdv!J$2:J$65536)","v":0},{"$f":"SUMIF(IF(dati_pdc!$C663=1,dati_bdv!$C$2:$C$65536,IF(dati_pdc!$C663=2,dati_bdv!$D$2:$D$65536,IF(dati_pdc!$C663=3,dati_bdv!$E$2:$E$65536,IF(dati_pdc!$C663=4,dati_bdv!$F$2:$F$65536,IF(dati_pdc!$C663=5,dati_bdv!$G$2:$G$65536,dati_bdv!$H$2:$H$65536))))),$A663,dati_bdv!K$2:K$65536)","v":0},{"$f":"SUMIF(IF(dati_pdc!$C663=1,dati_bdv!$C$2:$C$65536,IF(dati_pdc!$C663=2,dati_bdv!$D$2:$D$65536,IF(dati_pdc!$C663=3,dati_bdv!$E$2:$E$65536,IF(dati_pdc!$C663=4,dati_bdv!$F$2:$F$65536,IF(dati_pdc!$C663=5,dati_bdv!$G$2:$G$65536,dati_bdv!$H$2:$H$65536))))),$A663,dati_bdv!L$2:L$65536)","v":0},{"$f":"SUMIF(IF(dati_pdc!$C663=1,dati_bdv!$C$2:$C$65536,IF(dati_pdc!$C663=2,dati_bdv!$D$2:$D$65536,IF(dati_pdc!$C663=3,dati_bdv!$E$2:$E$65536,IF(dati_pdc!$C663=4,dati_bdv!$F$2:$F$65536,IF(dati_pdc!$C663=5,dati_bdv!$G$2:$G$65536,dati_bdv!$H$2:$H$65536))))),$A663,dati_bdv!M$2:M$65536)","v":0},{"$f":"SUMIF(IF(dati_pdc!$C663=1,dati_bdv!$C$2:$C$65536,IF(dati_pdc!$C663=2,dati_bdv!$D$2:$D$65536,IF(dati_pdc!$C663=3,dati_bdv!$E$2:$E$65536,IF(dati_pdc!$C663=4,dati_bdv!$F$2:$F$65536,IF(dati_pdc!$C663=5,dati_bdv!$G$2:$G$65536,dati_bdv!$H$2:$H$65536))))),$A663,dati_bdv!N$2:N$65536)","v":0}]
[{"$f":"dati_pdc!A664","v":0},{"$f":"SUMIF(IF(dati_pdc!$C664=1,dati_bdv!$C$2:$C$65536,IF(dati_pdc!$C664=2,dati_bdv!$D$2:$D$65536,IF(dati_pdc!$C664=3,dati_bdv!$E$2:$E$65536,IF(dati_pdc!$C664=4,dati_bdv!$F$2:$F$65536,IF(dati_pdc!$C664=5,dati_bdv!$G$2:$G$65536,dati_bdv!$H$2:$H$65536))))),$A664,dati_bdv!J$2:J$65536)","v":0},{"$f":"SUMIF(IF(dati_pdc!$C664=1,dati_bdv!$C$2:$C$65536,IF(dati_pdc!$C664=2,dati_bdv!$D$2:$D$65536,IF(dati_pdc!$C664=3,dati_bdv!$E$2:$E$65536,IF(dati_pdc!$C664=4,dati_bdv!$F$2:$F$65536,IF(dati_pdc!$C664=5,dati_bdv!$G$2:$G$65536,dati_bdv!$H$2:$H$65536))))),$A664,dati_bdv!K$2:K$65536)","v":0},{"$f":"SUMIF(IF(dati_pdc!$C664=1,dati_bdv!$C$2:$C$65536,IF(dati_pdc!$C664=2,dati_bdv!$D$2:$D$65536,IF(dati_pdc!$C664=3,dati_bdv!$E$2:$E$65536,IF(dati_pdc!$C664=4,dati_bdv!$F$2:$F$65536,IF(dati_pdc!$C664=5,dati_bdv!$G$2:$G$65536,dati_bdv!$H$2:$H$65536))))),$A664,dati_bdv!L$2:L$65536)","v":0},{"$f":"SUMIF(IF(dati_pdc!$C664=1,dati_bdv!$C$2:$C$65536,IF(dati_pdc!$C664=2,dati_bdv!$D$2:$D$65536,IF(dati_pdc!$C664=3,dati_bdv!$E$2:$E$65536,IF(dati_pdc!$C664=4,dati_bdv!$F$2:$F$65536,IF(dati_pdc!$C664=5,dati_bdv!$G$2:$G$65536,dati_bdv!$H$2:$H$65536))))),$A664,dati_bdv!M$2:M$65536)","v":0},{"$f":"SUMIF(IF(dati_pdc!$C664=1,dati_bdv!$C$2:$C$65536,IF(dati_pdc!$C664=2,dati_bdv!$D$2:$D$65536,IF(dati_pdc!$C664=3,dati_bdv!$E$2:$E$65536,IF(dati_pdc!$C664=4,dati_bdv!$F$2:$F$65536,IF(dati_pdc!$C664=5,dati_bdv!$G$2:$G$65536,dati_bdv!$H$2:$H$65536))))),$A664,dati_bdv!N$2:N$65536)","v":0}]
[{"$f":"dati_pdc!A665","v":0},{"$f":"SUMIF(IF(dati_pdc!$C665=1,dati_bdv!$C$2:$C$65536,IF(dati_pdc!$C665=2,dati_bdv!$D$2:$D$65536,IF(dati_pdc!$C665=3,dati_bdv!$E$2:$E$65536,IF(dati_pdc!$C665=4,dati_bdv!$F$2:$F$65536,IF(dati_pdc!$C665=5,dati_bdv!$G$2:$G$65536,dati_bdv!$H$2:$H$65536))))),$A665,dati_bdv!J$2:J$65536)","v":0},{"$f":"SUMIF(IF(dati_pdc!$C665=1,dati_bdv!$C$2:$C$65536,IF(dati_pdc!$C665=2,dati_bdv!$D$2:$D$65536,IF(dati_pdc!$C665=3,dati_bdv!$E$2:$E$65536,IF(dati_pdc!$C665=4,dati_bdv!$F$2:$F$65536,IF(dati_pdc!$C665=5,dati_bdv!$G$2:$G$65536,dati_bdv!$H$2:$H$65536))))),$A665,dati_bdv!K$2:K$65536)","v":0},{"$f":"SUMIF(IF(dati_pdc!$C665=1,dati_bdv!$C$2:$C$65536,IF(dati_pdc!$C665=2,dati_bdv!$D$2:$D$65536,IF(dati_pdc!$C665=3,dati_bdv!$E$2:$E$65536,IF(dati_pdc!$C665=4,dati_bdv!$F$2:$F$65536,IF(dati_pdc!$C665=5,dati_bdv!$G$2:$G$65536,dati_bdv!$H$2:$H$65536))))),$A665,dati_bdv!L$2:L$65536)","v":0},{"$f":"SUMIF(IF(dati_pdc!$C665=1,dati_bdv!$C$2:$C$65536,IF(dati_pdc!$C665=2,dati_bdv!$D$2:$D$65536,IF(dati_pdc!$C665=3,dati_bdv!$E$2:$E$65536,IF(dati_pdc!$C665=4,dati_bdv!$F$2:$F$65536,IF(dati_pdc!$C665=5,dati_bdv!$G$2:$G$65536,dati_bdv!$H$2:$H$65536))))),$A665,dati_bdv!M$2:M$65536)","v":0},{"$f":"SUMIF(IF(dati_pdc!$C665=1,dati_bdv!$C$2:$C$65536,IF(dati_pdc!$C665=2,dati_bdv!$D$2:$D$65536,IF(dati_pdc!$C665=3,dati_bdv!$E$2:$E$65536,IF(dati_pdc!$C665=4,dati_bdv!$F$2:$F$65536,IF(dati_pdc!$C665=5,dati_bdv!$G$2:$G$65536,dati_bdv!$H$2:$H$65536))))),$A665,dati_bdv!N$2:N$65536)","v":0}]
[{"$f":"dati_pdc!A666","v":0},{"$f":"SUMIF(IF(dati_pdc!$C666=1,dati_bdv!$C$2:$C$65536,IF(dati_pdc!$C666=2,dati_bdv!$D$2:$D$65536,IF(dati_pdc!$C666=3,dati_bdv!$E$2:$E$65536,IF(dati_pdc!$C666=4,dati_bdv!$F$2:$F$65536,IF(dati_pdc!$C666=5,dati_bdv!$G$2:$G$65536,dati_bdv!$H$2:$H$65536))))),$A666,dati_bdv!J$2:J$65536)","v":0},{"$f":"SUMIF(IF(dati_pdc!$C666=1,dati_bdv!$C$2:$C$65536,IF(dati_pdc!$C666=2,dati_bdv!$D$2:$D$65536,IF(dati_pdc!$C666=3,dati_bdv!$E$2:$E$65536,IF(dati_pdc!$C666=4,dati_bdv!$F$2:$F$65536,IF(dati_pdc!$C666=5,dati_bdv!$G$2:$G$65536,dati_bdv!$H$2:$H$65536))))),$A666,dati_bdv!K$2:K$65536)","v":0},{"$f":"SUMIF(IF(dati_pdc!$C666=1,dati_bdv!$C$2:$C$65536,IF(dati_pdc!$C666=2,dati_bdv!$D$2:$D$65536,IF(dati_pdc!$C666=3,dati_bdv!$E$2:$E$65536,IF(dati_pdc!$C666=4,dati_bdv!$F$2:$F$65536,IF(dati_pdc!$C666=5,dati_bdv!$G$2:$G$65536,dati_bdv!$H$2:$H$65536))))),$A666,dati_bdv!L$2:L$65536)","v":0},{"$f":"SUMIF(IF(dati_pdc!$C666=1,dati_bdv!$C$2:$C$65536,IF(dati_pdc!$C666=2,dati_bdv!$D$2:$D$65536,IF(dati_pdc!$C666=3,dati_bdv!$E$2:$E$65536,IF(dati_pdc!$C666=4,dati_bdv!$F$2:$F$65536,IF(dati_pdc!$C666=5,dati_bdv!$G$2:$G$65536,dati_bdv!$H$2:$H$65536))))),$A666,dati_bdv!M$2:M$65536)","v":0},{"$f":"SUMIF(IF(dati_pdc!$C666=1,dati_bdv!$C$2:$C$65536,IF(dati_pdc!$C666=2,dati_bdv!$D$2:$D$65536,IF(dati_pdc!$C666=3,dati_bdv!$E$2:$E$65536,IF(dati_pdc!$C666=4,dati_bdv!$F$2:$F$65536,IF(dati_pdc!$C666=5,dati_bdv!$G$2:$G$65536,dati_bdv!$H$2:$H$65536))))),$A666,dati_bdv!N$2:N$65536)","v":0}]
[{"$f":"dati_pdc!A667","v":0},{"$f":"SUMIF(IF(dati_pdc!$C667=1,dati_bdv!$C$2:$C$65536,IF(dati_pdc!$C667=2,dati_bdv!$D$2:$D$65536,IF(dati_pdc!$C667=3,dati_bdv!$E$2:$E$65536,IF(dati_pdc!$C667=4,dati_bdv!$F$2:$F$65536,IF(dati_pdc!$C667=5,dati_bdv!$G$2:$G$65536,dati_bdv!$H$2:$H$65536))))),$A667,dati_bdv!J$2:J$65536)","v":0},{"$f":"SUMIF(IF(dati_pdc!$C667=1,dati_bdv!$C$2:$C$65536,IF(dati_pdc!$C667=2,dati_bdv!$D$2:$D$65536,IF(dati_pdc!$C667=3,dati_bdv!$E$2:$E$65536,IF(dati_pdc!$C667=4,dati_bdv!$F$2:$F$65536,IF(dati_pdc!$C667=5,dati_bdv!$G$2:$G$65536,dati_bdv!$H$2:$H$65536))))),$A667,dati_bdv!K$2:K$65536)","v":0},{"$f":"SUMIF(IF(dati_pdc!$C667=1,dati_bdv!$C$2:$C$65536,IF(dati_pdc!$C667=2,dati_bdv!$D$2:$D$65536,IF(dati_pdc!$C667=3,dati_bdv!$E$2:$E$65536,IF(dati_pdc!$C667=4,dati_bdv!$F$2:$F$65536,IF(dati_pdc!$C667=5,dati_bdv!$G$2:$G$65536,dati_bdv!$H$2:$H$65536))))),$A667,dati_bdv!L$2:L$65536)","v":0},{"$f":"SUMIF(IF(dati_pdc!$C667=1,dati_bdv!$C$2:$C$65536,IF(dati_pdc!$C667=2,dati_bdv!$D$2:$D$65536,IF(dati_pdc!$C667=3,dati_bdv!$E$2:$E$65536,IF(dati_pdc!$C667=4,dati_bdv!$F$2:$F$65536,IF(dati_pdc!$C667=5,dati_bdv!$G$2:$G$65536,dati_bdv!$H$2:$H$65536))))),$A667,dati_bdv!M$2:M$65536)","v":0},{"$f":"SUMIF(IF(dati_pdc!$C667=1,dati_bdv!$C$2:$C$65536,IF(dati_pdc!$C667=2,dati_bdv!$D$2:$D$65536,IF(dati_pdc!$C667=3,dati_bdv!$E$2:$E$65536,IF(dati_pdc!$C667=4,dati_bdv!$F$2:$F$65536,IF(dati_pdc!$C667=5,dati_bdv!$G$2:$G$65536,dati_bdv!$H$2:$H$65536))))),$A667,dati_bdv!N$2:N$65536)","v":0}]
[{"$f":"dati_pdc!A668","v":0},{"$f":"SUMIF(IF(dati_pdc!$C668=1,dati_bdv!$C$2:$C$65536,IF(dati_pdc!$C668=2,dati_bdv!$D$2:$D$65536,IF(dati_pdc!$C668=3,dati_bdv!$E$2:$E$65536,IF(dati_pdc!$C668=4,dati_bdv!$F$2:$F$65536,IF(dati_pdc!$C668=5,dati_bdv!$G$2:$G$65536,dati_bdv!$H$2:$H$65536))))),$A668,dati_bdv!J$2:J$65536)","v":0},{"$f":"SUMIF(IF(dati_pdc!$C668=1,dati_bdv!$C$2:$C$65536,IF(dati_pdc!$C668=2,dati_bdv!$D$2:$D$65536,IF(dati_pdc!$C668=3,dati_bdv!$E$2:$E$65536,IF(dati_pdc!$C668=4,dati_bdv!$F$2:$F$65536,IF(dati_pdc!$C668=5,dati_bdv!$G$2:$G$65536,dati_bdv!$H$2:$H$65536))))),$A668,dati_bdv!K$2:K$65536)","v":0},{"$f":"SUMIF(IF(dati_pdc!$C668=1,dati_bdv!$C$2:$C$65536,IF(dati_pdc!$C668=2,dati_bdv!$D$2:$D$65536,IF(dati_pdc!$C668=3,dati_bdv!$E$2:$E$65536,IF(dati_pdc!$C668=4,dati_bdv!$F$2:$F$65536,IF(dati_pdc!$C668=5,dati_bdv!$G$2:$G$65536,dati_bdv!$H$2:$H$65536))))),$A668,dati_bdv!L$2:L$65536)","v":0},{"$f":"SUMIF(IF(dati_pdc!$C668=1,dati_bdv!$C$2:$C$65536,IF(dati_pdc!$C668=2,dati_bdv!$D$2:$D$65536,IF(dati_pdc!$C668=3,dati_bdv!$E$2:$E$65536,IF(dati_pdc!$C668=4,dati_bdv!$F$2:$F$65536,IF(dati_pdc!$C668=5,dati_bdv!$G$2:$G$65536,dati_bdv!$H$2:$H$65536))))),$A668,dati_bdv!M$2:M$65536)","v":0},{"$f":"SUMIF(IF(dati_pdc!$C668=1,dati_bdv!$C$2:$C$65536,IF(dati_pdc!$C668=2,dati_bdv!$D$2:$D$65536,IF(dati_pdc!$C668=3,dati_bdv!$E$2:$E$65536,IF(dati_pdc!$C668=4,dati_bdv!$F$2:$F$65536,IF(dati_pdc!$C668=5,dati_bdv!$G$2:$G$65536,dati_bdv!$H$2:$H$65536))))),$A668,dati_bdv!N$2:N$65536)","v":0}]
[{"$f":"dati_pdc!A669","v":0},{"$f":"SUMIF(IF(dati_pdc!$C669=1,dati_bdv!$C$2:$C$65536,IF(dati_pdc!$C669=2,dati_bdv!$D$2:$D$65536,IF(dati_pdc!$C669=3,dati_bdv!$E$2:$E$65536,IF(dati_pdc!$C669=4,dati_bdv!$F$2:$F$65536,IF(dati_pdc!$C669=5,dati_bdv!$G$2:$G$65536,dati_bdv!$H$2:$H$65536))))),$A669,dati_bdv!J$2:J$65536)","v":0},{"$f":"SUMIF(IF(dati_pdc!$C669=1,dati_bdv!$C$2:$C$65536,IF(dati_pdc!$C669=2,dati_bdv!$D$2:$D$65536,IF(dati_pdc!$C669=3,dati_bdv!$E$2:$E$65536,IF(dati_pdc!$C669=4,dati_bdv!$F$2:$F$65536,IF(dati_pdc!$C669=5,dati_bdv!$G$2:$G$65536,dati_bdv!$H$2:$H$65536))))),$A669,dati_bdv!K$2:K$65536)","v":0},{"$f":"SUMIF(IF(dati_pdc!$C669=1,dati_bdv!$C$2:$C$65536,IF(dati_pdc!$C669=2,dati_bdv!$D$2:$D$65536,IF(dati_pdc!$C669=3,dati_bdv!$E$2:$E$65536,IF(dati_pdc!$C669=4,dati_bdv!$F$2:$F$65536,IF(dati_pdc!$C669=5,dati_bdv!$G$2:$G$65536,dati_bdv!$H$2:$H$65536))))),$A669,dati_bdv!L$2:L$65536)","v":0},{"$f":"SUMIF(IF(dati_pdc!$C669=1,dati_bdv!$C$2:$C$65536,IF(dati_pdc!$C669=2,dati_bdv!$D$2:$D$65536,IF(dati_pdc!$C669=3,dati_bdv!$E$2:$E$65536,IF(dati_pdc!$C669=4,dati_bdv!$F$2:$F$65536,IF(dati_pdc!$C669=5,dati_bdv!$G$2:$G$65536,dati_bdv!$H$2:$H$65536))))),$A669,dati_bdv!M$2:M$65536)","v":0},{"$f":"SUMIF(IF(dati_pdc!$C669=1,dati_bdv!$C$2:$C$65536,IF(dati_pdc!$C669=2,dati_bdv!$D$2:$D$65536,IF(dati_pdc!$C669=3,dati_bdv!$E$2:$E$65536,IF(dati_pdc!$C669=4,dati_bdv!$F$2:$F$65536,IF(dati_pdc!$C669=5,dati_bdv!$G$2:$G$65536,dati_bdv!$H$2:$H$65536))))),$A669,dati_bdv!N$2:N$65536)","v":0}]
[{"$f":"dati_pdc!A670","v":0},{"$f":"SUMIF(IF(dati_pdc!$C670=1,dati_bdv!$C$2:$C$65536,IF(dati_pdc!$C670=2,dati_bdv!$D$2:$D$65536,IF(dati_pdc!$C670=3,dati_bdv!$E$2:$E$65536,IF(dati_pdc!$C670=4,dati_bdv!$F$2:$F$65536,IF(dati_pdc!$C670=5,dati_bdv!$G$2:$G$65536,dati_bdv!$H$2:$H$65536))))),$A670,dati_bdv!J$2:J$65536)","v":0},{"$f":"SUMIF(IF(dati_pdc!$C670=1,dati_bdv!$C$2:$C$65536,IF(dati_pdc!$C670=2,dati_bdv!$D$2:$D$65536,IF(dati_pdc!$C670=3,dati_bdv!$E$2:$E$65536,IF(dati_pdc!$C670=4,dati_bdv!$F$2:$F$65536,IF(dati_pdc!$C670=5,dati_bdv!$G$2:$G$65536,dati_bdv!$H$2:$H$65536))))),$A670,dati_bdv!K$2:K$65536)","v":0},{"$f":"SUMIF(IF(dati_pdc!$C670=1,dati_bdv!$C$2:$C$65536,IF(dati_pdc!$C670=2,dati_bdv!$D$2:$D$65536,IF(dati_pdc!$C670=3,dati_bdv!$E$2:$E$65536,IF(dati_pdc!$C670=4,dati_bdv!$F$2:$F$65536,IF(dati_pdc!$C670=5,dati_bdv!$G$2:$G$65536,dati_bdv!$H$2:$H$65536))))),$A670,dati_bdv!L$2:L$65536)","v":0},{"$f":"SUMIF(IF(dati_pdc!$C670=1,dati_bdv!$C$2:$C$65536,IF(dati_pdc!$C670=2,dati_bdv!$D$2:$D$65536,IF(dati_pdc!$C670=3,dati_bdv!$E$2:$E$65536,IF(dati_pdc!$C670=4,dati_bdv!$F$2:$F$65536,IF(dati_pdc!$C670=5,dati_bdv!$G$2:$G$65536,dati_bdv!$H$2:$H$65536))))),$A670,dati_bdv!M$2:M$65536)","v":0},{"$f":"SUMIF(IF(dati_pdc!$C670=1,dati_bdv!$C$2:$C$65536,IF(dati_pdc!$C670=2,dati_bdv!$D$2:$D$65536,IF(dati_pdc!$C670=3,dati_bdv!$E$2:$E$65536,IF(dati_pdc!$C670=4,dati_bdv!$F$2:$F$65536,IF(dati_pdc!$C670=5,dati_bdv!$G$2:$G$65536,dati_bdv!$H$2:$H$65536))))),$A670,dati_bdv!N$2:N$65536)","v":0}]
[{"$f":"dati_pdc!A671","v":0},{"$f":"SUMIF(IF(dati_pdc!$C671=1,dati_bdv!$C$2:$C$65536,IF(dati_pdc!$C671=2,dati_bdv!$D$2:$D$65536,IF(dati_pdc!$C671=3,dati_bdv!$E$2:$E$65536,IF(dati_pdc!$C671=4,dati_bdv!$F$2:$F$65536,IF(dati_pdc!$C671=5,dati_bdv!$G$2:$G$65536,dati_bdv!$H$2:$H$65536))))),$A671,dati_bdv!J$2:J$65536)","v":0},{"$f":"SUMIF(IF(dati_pdc!$C671=1,dati_bdv!$C$2:$C$65536,IF(dati_pdc!$C671=2,dati_bdv!$D$2:$D$65536,IF(dati_pdc!$C671=3,dati_bdv!$E$2:$E$65536,IF(dati_pdc!$C671=4,dati_bdv!$F$2:$F$65536,IF(dati_pdc!$C671=5,dati_bdv!$G$2:$G$65536,dati_bdv!$H$2:$H$65536))))),$A671,dati_bdv!K$2:K$65536)","v":0},{"$f":"SUMIF(IF(dati_pdc!$C671=1,dati_bdv!$C$2:$C$65536,IF(dati_pdc!$C671=2,dati_bdv!$D$2:$D$65536,IF(dati_pdc!$C671=3,dati_bdv!$E$2:$E$65536,IF(dati_pdc!$C671=4,dati_bdv!$F$2:$F$65536,IF(dati_pdc!$C671=5,dati_bdv!$G$2:$G$65536,dati_bdv!$H$2:$H$65536))))),$A671,dati_bdv!L$2:L$65536)","v":0},{"$f":"SUMIF(IF(dati_pdc!$C671=1,dati_bdv!$C$2:$C$65536,IF(dati_pdc!$C671=2,dati_bdv!$D$2:$D$65536,IF(dati_pdc!$C671=3,dati_bdv!$E$2:$E$65536,IF(dati_pdc!$C671=4,dati_bdv!$F$2:$F$65536,IF(dati_pdc!$C671=5,dati_bdv!$G$2:$G$65536,dati_bdv!$H$2:$H$65536))))),$A671,dati_bdv!M$2:M$65536)","v":0},{"$f":"SUMIF(IF(dati_pdc!$C671=1,dati_bdv!$C$2:$C$65536,IF(dati_pdc!$C671=2,dati_bdv!$D$2:$D$65536,IF(dati_pdc!$C671=3,dati_bdv!$E$2:$E$65536,IF(dati_pdc!$C671=4,dati_bdv!$F$2:$F$65536,IF(dati_pdc!$C671=5,dati_bdv!$G$2:$G$65536,dati_bdv!$H$2:$H$65536))))),$A671,dati_bdv!N$2:N$65536)","v":0}]
[{"$f":"dati_pdc!A672","v":0},{"$f":"SUMIF(IF(dati_pdc!$C672=1,dati_bdv!$C$2:$C$65536,IF(dati_pdc!$C672=2,dati_bdv!$D$2:$D$65536,IF(dati_pdc!$C672=3,dati_bdv!$E$2:$E$65536,IF(dati_pdc!$C672=4,dati_bdv!$F$2:$F$65536,IF(dati_pdc!$C672=5,dati_bdv!$G$2:$G$65536,dati_bdv!$H$2:$H$65536))))),$A672,dati_bdv!J$2:J$65536)","v":0},{"$f":"SUMIF(IF(dati_pdc!$C672=1,dati_bdv!$C$2:$C$65536,IF(dati_pdc!$C672=2,dati_bdv!$D$2:$D$65536,IF(dati_pdc!$C672=3,dati_bdv!$E$2:$E$65536,IF(dati_pdc!$C672=4,dati_bdv!$F$2:$F$65536,IF(dati_pdc!$C672=5,dati_bdv!$G$2:$G$65536,dati_bdv!$H$2:$H$65536))))),$A672,dati_bdv!K$2:K$65536)","v":0},{"$f":"SUMIF(IF(dati_pdc!$C672=1,dati_bdv!$C$2:$C$65536,IF(dati_pdc!$C672=2,dati_bdv!$D$2:$D$65536,IF(dati_pdc!$C672=3,dati_bdv!$E$2:$E$65536,IF(dati_pdc!$C672=4,dati_bdv!$F$2:$F$65536,IF(dati_pdc!$C672=5,dati_bdv!$G$2:$G$65536,dati_bdv!$H$2:$H$65536))))),$A672,dati_bdv!L$2:L$65536)","v":0},{"$f":"SUMIF(IF(dati_pdc!$C672=1,dati_bdv!$C$2:$C$65536,IF(dati_pdc!$C672=2,dati_bdv!$D$2:$D$65536,IF(dati_pdc!$C672=3,dati_bdv!$E$2:$E$65536,IF(dati_pdc!$C672=4,dati_bdv!$F$2:$F$65536,IF(dati_pdc!$C672=5,dati_bdv!$G$2:$G$65536,dati_bdv!$H$2:$H$65536))))),$A672,dati_bdv!M$2:M$65536)","v":0},{"$f":"SUMIF(IF(dati_pdc!$C672=1,dati_bdv!$C$2:$C$65536,IF(dati_pdc!$C672=2,dati_bdv!$D$2:$D$65536,IF(dati_pdc!$C672=3,dati_bdv!$E$2:$E$65536,IF(dati_pdc!$C672=4,dati_bdv!$F$2:$F$65536,IF(dati_pdc!$C672=5,dati_bdv!$G$2:$G$65536,dati_bdv!$H$2:$H$65536))))),$A672,dati_bdv!N$2:N$65536)","v":0}]
[{"$f":"dati_pdc!A673","v":0},{"$f":"SUMIF(IF(dati_pdc!$C673=1,dati_bdv!$C$2:$C$65536,IF(dati_pdc!$C673=2,dati_bdv!$D$2:$D$65536,IF(dati_pdc!$C673=3,dati_bdv!$E$2:$E$65536,IF(dati_pdc!$C673=4,dati_bdv!$F$2:$F$65536,IF(dati_pdc!$C673=5,dati_bdv!$G$2:$G$65536,dati_bdv!$H$2:$H$65536))))),$A673,dati_bdv!J$2:J$65536)","v":0},{"$f":"SUMIF(IF(dati_pdc!$C673=1,dati_bdv!$C$2:$C$65536,IF(dati_pdc!$C673=2,dati_bdv!$D$2:$D$65536,IF(dati_pdc!$C673=3,dati_bdv!$E$2:$E$65536,IF(dati_pdc!$C673=4,dati_bdv!$F$2:$F$65536,IF(dati_pdc!$C673=5,dati_bdv!$G$2:$G$65536,dati_bdv!$H$2:$H$65536))))),$A673,dati_bdv!K$2:K$65536)","v":0},{"$f":"SUMIF(IF(dati_pdc!$C673=1,dati_bdv!$C$2:$C$65536,IF(dati_pdc!$C673=2,dati_bdv!$D$2:$D$65536,IF(dati_pdc!$C673=3,dati_bdv!$E$2:$E$65536,IF(dati_pdc!$C673=4,dati_bdv!$F$2:$F$65536,IF(dati_pdc!$C673=5,dati_bdv!$G$2:$G$65536,dati_bdv!$H$2:$H$65536))))),$A673,dati_bdv!L$2:L$65536)","v":0},{"$f":"SUMIF(IF(dati_pdc!$C673=1,dati_bdv!$C$2:$C$65536,IF(dati_pdc!$C673=2,dati_bdv!$D$2:$D$65536,IF(dati_pdc!$C673=3,dati_bdv!$E$2:$E$65536,IF(dati_pdc!$C673=4,dati_bdv!$F$2:$F$65536,IF(dati_pdc!$C673=5,dati_bdv!$G$2:$G$65536,dati_bdv!$H$2:$H$65536))))),$A673,dati_bdv!M$2:M$65536)","v":0},{"$f":"SUMIF(IF(dati_pdc!$C673=1,dati_bdv!$C$2:$C$65536,IF(dati_pdc!$C673=2,dati_bdv!$D$2:$D$65536,IF(dati_pdc!$C673=3,dati_bdv!$E$2:$E$65536,IF(dati_pdc!$C673=4,dati_bdv!$F$2:$F$65536,IF(dati_pdc!$C673=5,dati_bdv!$G$2:$G$65536,dati_bdv!$H$2:$H$65536))))),$A673,dati_bdv!N$2:N$65536)","v":0}]
[{"$f":"dati_pdc!A674","v":0},{"$f":"SUMIF(IF(dati_pdc!$C674=1,dati_bdv!$C$2:$C$65536,IF(dati_pdc!$C674=2,dati_bdv!$D$2:$D$65536,IF(dati_pdc!$C674=3,dati_bdv!$E$2:$E$65536,IF(dati_pdc!$C674=4,dati_bdv!$F$2:$F$65536,IF(dati_pdc!$C674=5,dati_bdv!$G$2:$G$65536,dati_bdv!$H$2:$H$65536))))),$A674,dati_bdv!J$2:J$65536)","v":0},{"$f":"SUMIF(IF(dati_pdc!$C674=1,dati_bdv!$C$2:$C$65536,IF(dati_pdc!$C674=2,dati_bdv!$D$2:$D$65536,IF(dati_pdc!$C674=3,dati_bdv!$E$2:$E$65536,IF(dati_pdc!$C674=4,dati_bdv!$F$2:$F$65536,IF(dati_pdc!$C674=5,dati_bdv!$G$2:$G$65536,dati_bdv!$H$2:$H$65536))))),$A674,dati_bdv!K$2:K$65536)","v":0},{"$f":"SUMIF(IF(dati_pdc!$C674=1,dati_bdv!$C$2:$C$65536,IF(dati_pdc!$C674=2,dati_bdv!$D$2:$D$65536,IF(dati_pdc!$C674=3,dati_bdv!$E$2:$E$65536,IF(dati_pdc!$C674=4,dati_bdv!$F$2:$F$65536,IF(dati_pdc!$C674=5,dati_bdv!$G$2:$G$65536,dati_bdv!$H$2:$H$65536))))),$A674,dati_bdv!L$2:L$65536)","v":0},{"$f":"SUMIF(IF(dati_pdc!$C674=1,dati_bdv!$C$2:$C$65536,IF(dati_pdc!$C674=2,dati_bdv!$D$2:$D$65536,IF(dati_pdc!$C674=3,dati_bdv!$E$2:$E$65536,IF(dati_pdc!$C674=4,dati_bdv!$F$2:$F$65536,IF(dati_pdc!$C674=5,dati_bdv!$G$2:$G$65536,dati_bdv!$H$2:$H$65536))))),$A674,dati_bdv!M$2:M$65536)","v":0},{"$f":"SUMIF(IF(dati_pdc!$C674=1,dati_bdv!$C$2:$C$65536,IF(dati_pdc!$C674=2,dati_bdv!$D$2:$D$65536,IF(dati_pdc!$C674=3,dati_bdv!$E$2:$E$65536,IF(dati_pdc!$C674=4,dati_bdv!$F$2:$F$65536,IF(dati_pdc!$C674=5,dati_bdv!$G$2:$G$65536,dati_bdv!$H$2:$H$65536))))),$A674,dati_bdv!N$2:N$65536)","v":0}]
[{"$f":"dati_pdc!A675","v":0},{"$f":"SUMIF(IF(dati_pdc!$C675=1,dati_bdv!$C$2:$C$65536,IF(dati_pdc!$C675=2,dati_bdv!$D$2:$D$65536,IF(dati_pdc!$C675=3,dati_bdv!$E$2:$E$65536,IF(dati_pdc!$C675=4,dati_bdv!$F$2:$F$65536,IF(dati_pdc!$C675=5,dati_bdv!$G$2:$G$65536,dati_bdv!$H$2:$H$65536))))),$A675,dati_bdv!J$2:J$65536)","v":0},{"$f":"SUMIF(IF(dati_pdc!$C675=1,dati_bdv!$C$2:$C$65536,IF(dati_pdc!$C675=2,dati_bdv!$D$2:$D$65536,IF(dati_pdc!$C675=3,dati_bdv!$E$2:$E$65536,IF(dati_pdc!$C675=4,dati_bdv!$F$2:$F$65536,IF(dati_pdc!$C675=5,dati_bdv!$G$2:$G$65536,dati_bdv!$H$2:$H$65536))))),$A675,dati_bdv!K$2:K$65536)","v":0},{"$f":"SUMIF(IF(dati_pdc!$C675=1,dati_bdv!$C$2:$C$65536,IF(dati_pdc!$C675=2,dati_bdv!$D$2:$D$65536,IF(dati_pdc!$C675=3,dati_bdv!$E$2:$E$65536,IF(dati_pdc!$C675=4,dati_bdv!$F$2:$F$65536,IF(dati_pdc!$C675=5,dati_bdv!$G$2:$G$65536,dati_bdv!$H$2:$H$65536))))),$A675,dati_bdv!L$2:L$65536)","v":0},{"$f":"SUMIF(IF(dati_pdc!$C675=1,dati_bdv!$C$2:$C$65536,IF(dati_pdc!$C675=2,dati_bdv!$D$2:$D$65536,IF(dati_pdc!$C675=3,dati_bdv!$E$2:$E$65536,IF(dati_pdc!$C675=4,dati_bdv!$F$2:$F$65536,IF(dati_pdc!$C675=5,dati_bdv!$G$2:$G$65536,dati_bdv!$H$2:$H$65536))))),$A675,dati_bdv!M$2:M$65536)","v":0},{"$f":"SUMIF(IF(dati_pdc!$C675=1,dati_bdv!$C$2:$C$65536,IF(dati_pdc!$C675=2,dati_bdv!$D$2:$D$65536,IF(dati_pdc!$C675=3,dati_bdv!$E$2:$E$65536,IF(dati_pdc!$C675=4,dati_bdv!$F$2:$F$65536,IF(dati_pdc!$C675=5,dati_bdv!$G$2:$G$65536,dati_bdv!$H$2:$H$65536))))),$A675,dati_bdv!N$2:N$65536)","v":0}]
[{"$f":"dati_pdc!A676","v":0},{"$f":"SUMIF(IF(dati_pdc!$C676=1,dati_bdv!$C$2:$C$65536,IF(dati_pdc!$C676=2,dati_bdv!$D$2:$D$65536,IF(dati_pdc!$C676=3,dati_bdv!$E$2:$E$65536,IF(dati_pdc!$C676=4,dati_bdv!$F$2:$F$65536,IF(dati_pdc!$C676=5,dati_bdv!$G$2:$G$65536,dati_bdv!$H$2:$H$65536))))),$A676,dati_bdv!J$2:J$65536)","v":0},{"$f":"SUMIF(IF(dati_pdc!$C676=1,dati_bdv!$C$2:$C$65536,IF(dati_pdc!$C676=2,dati_bdv!$D$2:$D$65536,IF(dati_pdc!$C676=3,dati_bdv!$E$2:$E$65536,IF(dati_pdc!$C676=4,dati_bdv!$F$2:$F$65536,IF(dati_pdc!$C676=5,dati_bdv!$G$2:$G$65536,dati_bdv!$H$2:$H$65536))))),$A676,dati_bdv!K$2:K$65536)","v":0},{"$f":"SUMIF(IF(dati_pdc!$C676=1,dati_bdv!$C$2:$C$65536,IF(dati_pdc!$C676=2,dati_bdv!$D$2:$D$65536,IF(dati_pdc!$C676=3,dati_bdv!$E$2:$E$65536,IF(dati_pdc!$C676=4,dati_bdv!$F$2:$F$65536,IF(dati_pdc!$C676=5,dati_bdv!$G$2:$G$65536,dati_bdv!$H$2:$H$65536))))),$A676,dati_bdv!L$2:L$65536)","v":0},{"$f":"SUMIF(IF(dati_pdc!$C676=1,dati_bdv!$C$2:$C$65536,IF(dati_pdc!$C676=2,dati_bdv!$D$2:$D$65536,IF(dati_pdc!$C676=3,dati_bdv!$E$2:$E$65536,IF(dati_pdc!$C676=4,dati_bdv!$F$2:$F$65536,IF(dati_pdc!$C676=5,dati_bdv!$G$2:$G$65536,dati_bdv!$H$2:$H$65536))))),$A676,dati_bdv!M$2:M$65536)","v":0},{"$f":"SUMIF(IF(dati_pdc!$C676=1,dati_bdv!$C$2:$C$65536,IF(dati_pdc!$C676=2,dati_bdv!$D$2:$D$65536,IF(dati_pdc!$C676=3,dati_bdv!$E$2:$E$65536,IF(dati_pdc!$C676=4,dati_bdv!$F$2:$F$65536,IF(dati_pdc!$C676=5,dati_bdv!$G$2:$G$65536,dati_bdv!$H$2:$H$65536))))),$A676,dati_bdv!N$2:N$65536)","v":0}]
[{"$f":"dati_pdc!A677","v":0},{"$f":"SUMIF(IF(dati_pdc!$C677=1,dati_bdv!$C$2:$C$65536,IF(dati_pdc!$C677=2,dati_bdv!$D$2:$D$65536,IF(dati_pdc!$C677=3,dati_bdv!$E$2:$E$65536,IF(dati_pdc!$C677=4,dati_bdv!$F$2:$F$65536,IF(dati_pdc!$C677=5,dati_bdv!$G$2:$G$65536,dati_bdv!$H$2:$H$65536))))),$A677,dati_bdv!J$2:J$65536)","v":0},{"$f":"SUMIF(IF(dati_pdc!$C677=1,dati_bdv!$C$2:$C$65536,IF(dati_pdc!$C677=2,dati_bdv!$D$2:$D$65536,IF(dati_pdc!$C677=3,dati_bdv!$E$2:$E$65536,IF(dati_pdc!$C677=4,dati_bdv!$F$2:$F$65536,IF(dati_pdc!$C677=5,dati_bdv!$G$2:$G$65536,dati_bdv!$H$2:$H$65536))))),$A677,dati_bdv!K$2:K$65536)","v":0},{"$f":"SUMIF(IF(dati_pdc!$C677=1,dati_bdv!$C$2:$C$65536,IF(dati_pdc!$C677=2,dati_bdv!$D$2:$D$65536,IF(dati_pdc!$C677=3,dati_bdv!$E$2:$E$65536,IF(dati_pdc!$C677=4,dati_bdv!$F$2:$F$65536,IF(dati_pdc!$C677=5,dati_bdv!$G$2:$G$65536,dati_bdv!$H$2:$H$65536))))),$A677,dati_bdv!L$2:L$65536)","v":0},{"$f":"SUMIF(IF(dati_pdc!$C677=1,dati_bdv!$C$2:$C$65536,IF(dati_pdc!$C677=2,dati_bdv!$D$2:$D$65536,IF(dati_pdc!$C677=3,dati_bdv!$E$2:$E$65536,IF(dati_pdc!$C677=4,dati_bdv!$F$2:$F$65536,IF(dati_pdc!$C677=5,dati_bdv!$G$2:$G$65536,dati_bdv!$H$2:$H$65536))))),$A677,dati_bdv!M$2:M$65536)","v":0},{"$f":"SUMIF(IF(dati_pdc!$C677=1,dati_bdv!$C$2:$C$65536,IF(dati_pdc!$C677=2,dati_bdv!$D$2:$D$65536,IF(dati_pdc!$C677=3,dati_bdv!$E$2:$E$65536,IF(dati_pdc!$C677=4,dati_bdv!$F$2:$F$65536,IF(dati_pdc!$C677=5,dati_bdv!$G$2:$G$65536,dati_bdv!$H$2:$H$65536))))),$A677,dati_bdv!N$2:N$65536)","v":0}]
[{"$f":"dati_pdc!A678","v":0},{"$f":"SUMIF(IF(dati_pdc!$C678=1,dati_bdv!$C$2:$C$65536,IF(dati_pdc!$C678=2,dati_bdv!$D$2:$D$65536,IF(dati_pdc!$C678=3,dati_bdv!$E$2:$E$65536,IF(dati_pdc!$C678=4,dati_bdv!$F$2:$F$65536,IF(dati_pdc!$C678=5,dati_bdv!$G$2:$G$65536,dati_bdv!$H$2:$H$65536))))),$A678,dati_bdv!J$2:J$65536)","v":0},{"$f":"SUMIF(IF(dati_pdc!$C678=1,dati_bdv!$C$2:$C$65536,IF(dati_pdc!$C678=2,dati_bdv!$D$2:$D$65536,IF(dati_pdc!$C678=3,dati_bdv!$E$2:$E$65536,IF(dati_pdc!$C678=4,dati_bdv!$F$2:$F$65536,IF(dati_pdc!$C678=5,dati_bdv!$G$2:$G$65536,dati_bdv!$H$2:$H$65536))))),$A678,dati_bdv!K$2:K$65536)","v":0},{"$f":"SUMIF(IF(dati_pdc!$C678=1,dati_bdv!$C$2:$C$65536,IF(dati_pdc!$C678=2,dati_bdv!$D$2:$D$65536,IF(dati_pdc!$C678=3,dati_bdv!$E$2:$E$65536,IF(dati_pdc!$C678=4,dati_bdv!$F$2:$F$65536,IF(dati_pdc!$C678=5,dati_bdv!$G$2:$G$65536,dati_bdv!$H$2:$H$65536))))),$A678,dati_bdv!L$2:L$65536)","v":0},{"$f":"SUMIF(IF(dati_pdc!$C678=1,dati_bdv!$C$2:$C$65536,IF(dati_pdc!$C678=2,dati_bdv!$D$2:$D$65536,IF(dati_pdc!$C678=3,dati_bdv!$E$2:$E$65536,IF(dati_pdc!$C678=4,dati_bdv!$F$2:$F$65536,IF(dati_pdc!$C678=5,dati_bdv!$G$2:$G$65536,dati_bdv!$H$2:$H$65536))))),$A678,dati_bdv!M$2:M$65536)","v":0},{"$f":"SUMIF(IF(dati_pdc!$C678=1,dati_bdv!$C$2:$C$65536,IF(dati_pdc!$C678=2,dati_bdv!$D$2:$D$65536,IF(dati_pdc!$C678=3,dati_bdv!$E$2:$E$65536,IF(dati_pdc!$C678=4,dati_bdv!$F$2:$F$65536,IF(dati_pdc!$C678=5,dati_bdv!$G$2:$G$65536,dati_bdv!$H$2:$H$65536))))),$A678,dati_bdv!N$2:N$65536)","v":0}]
[{"$f":"dati_pdc!A679","v":0},{"$f":"SUMIF(IF(dati_pdc!$C679=1,dati_bdv!$C$2:$C$65536,IF(dati_pdc!$C679=2,dati_bdv!$D$2:$D$65536,IF(dati_pdc!$C679=3,dati_bdv!$E$2:$E$65536,IF(dati_pdc!$C679=4,dati_bdv!$F$2:$F$65536,IF(dati_pdc!$C679=5,dati_bdv!$G$2:$G$65536,dati_bdv!$H$2:$H$65536))))),$A679,dati_bdv!J$2:J$65536)","v":0},{"$f":"SUMIF(IF(dati_pdc!$C679=1,dati_bdv!$C$2:$C$65536,IF(dati_pdc!$C679=2,dati_bdv!$D$2:$D$65536,IF(dati_pdc!$C679=3,dati_bdv!$E$2:$E$65536,IF(dati_pdc!$C679=4,dati_bdv!$F$2:$F$65536,IF(dati_pdc!$C679=5,dati_bdv!$G$2:$G$65536,dati_bdv!$H$2:$H$65536))))),$A679,dati_bdv!K$2:K$65536)","v":0},{"$f":"SUMIF(IF(dati_pdc!$C679=1,dati_bdv!$C$2:$C$65536,IF(dati_pdc!$C679=2,dati_bdv!$D$2:$D$65536,IF(dati_pdc!$C679=3,dati_bdv!$E$2:$E$65536,IF(dati_pdc!$C679=4,dati_bdv!$F$2:$F$65536,IF(dati_pdc!$C679=5,dati_bdv!$G$2:$G$65536,dati_bdv!$H$2:$H$65536))))),$A679,dati_bdv!L$2:L$65536)","v":0},{"$f":"SUMIF(IF(dati_pdc!$C679=1,dati_bdv!$C$2:$C$65536,IF(dati_pdc!$C679=2,dati_bdv!$D$2:$D$65536,IF(dati_pdc!$C679=3,dati_bdv!$E$2:$E$65536,IF(dati_pdc!$C679=4,dati_bdv!$F$2:$F$65536,IF(dati_pdc!$C679=5,dati_bdv!$G$2:$G$65536,dati_bdv!$H$2:$H$65536))))),$A679,dati_bdv!M$2:M$65536)","v":0},{"$f":"SUMIF(IF(dati_pdc!$C679=1,dati_bdv!$C$2:$C$65536,IF(dati_pdc!$C679=2,dati_bdv!$D$2:$D$65536,IF(dati_pdc!$C679=3,dati_bdv!$E$2:$E$65536,IF(dati_pdc!$C679=4,dati_bdv!$F$2:$F$65536,IF(dati_pdc!$C679=5,dati_bdv!$G$2:$G$65536,dati_bdv!$H$2:$H$65536))))),$A679,dati_bdv!N$2:N$65536)","v":0}]
[{"$f":"dati_pdc!A680","v":0},{"$f":"SUMIF(IF(dati_pdc!$C680=1,dati_bdv!$C$2:$C$65536,IF(dati_pdc!$C680=2,dati_bdv!$D$2:$D$65536,IF(dati_pdc!$C680=3,dati_bdv!$E$2:$E$65536,IF(dati_pdc!$C680=4,dati_bdv!$F$2:$F$65536,IF(dati_pdc!$C680=5,dati_bdv!$G$2:$G$65536,dati_bdv!$H$2:$H$65536))))),$A680,dati_bdv!J$2:J$65536)","v":0},{"$f":"SUMIF(IF(dati_pdc!$C680=1,dati_bdv!$C$2:$C$65536,IF(dati_pdc!$C680=2,dati_bdv!$D$2:$D$65536,IF(dati_pdc!$C680=3,dati_bdv!$E$2:$E$65536,IF(dati_pdc!$C680=4,dati_bdv!$F$2:$F$65536,IF(dati_pdc!$C680=5,dati_bdv!$G$2:$G$65536,dati_bdv!$H$2:$H$65536))))),$A680,dati_bdv!K$2:K$65536)","v":0},{"$f":"SUMIF(IF(dati_pdc!$C680=1,dati_bdv!$C$2:$C$65536,IF(dati_pdc!$C680=2,dati_bdv!$D$2:$D$65536,IF(dati_pdc!$C680=3,dati_bdv!$E$2:$E$65536,IF(dati_pdc!$C680=4,dati_bdv!$F$2:$F$65536,IF(dati_pdc!$C680=5,dati_bdv!$G$2:$G$65536,dati_bdv!$H$2:$H$65536))))),$A680,dati_bdv!L$2:L$65536)","v":0},{"$f":"SUMIF(IF(dati_pdc!$C680=1,dati_bdv!$C$2:$C$65536,IF(dati_pdc!$C680=2,dati_bdv!$D$2:$D$65536,IF(dati_pdc!$C680=3,dati_bdv!$E$2:$E$65536,IF(dati_pdc!$C680=4,dati_bdv!$F$2:$F$65536,IF(dati_pdc!$C680=5,dati_bdv!$G$2:$G$65536,dati_bdv!$H$2:$H$65536))))),$A680,dati_bdv!M$2:M$65536)","v":0},{"$f":"SUMIF(IF(dati_pdc!$C680=1,dati_bdv!$C$2:$C$65536,IF(dati_pdc!$C680=2,dati_bdv!$D$2:$D$65536,IF(dati_pdc!$C680=3,dati_bdv!$E$2:$E$65536,IF(dati_pdc!$C680=4,dati_bdv!$F$2:$F$65536,IF(dati_pdc!$C680=5,dati_bdv!$G$2:$G$65536,dati_bdv!$H$2:$H$65536))))),$A680,dati_bdv!N$2:N$65536)","v":0}]
[{"$f":"dati_pdc!A681","v":0},{"$f":"SUMIF(IF(dati_pdc!$C681=1,dati_bdv!$C$2:$C$65536,IF(dati_pdc!$C681=2,dati_bdv!$D$2:$D$65536,IF(dati_pdc!$C681=3,dati_bdv!$E$2:$E$65536,IF(dati_pdc!$C681=4,dati_bdv!$F$2:$F$65536,IF(dati_pdc!$C681=5,dati_bdv!$G$2:$G$65536,dati_bdv!$H$2:$H$65536))))),$A681,dati_bdv!J$2:J$65536)","v":0},{"$f":"SUMIF(IF(dati_pdc!$C681=1,dati_bdv!$C$2:$C$65536,IF(dati_pdc!$C681=2,dati_bdv!$D$2:$D$65536,IF(dati_pdc!$C681=3,dati_bdv!$E$2:$E$65536,IF(dati_pdc!$C681=4,dati_bdv!$F$2:$F$65536,IF(dati_pdc!$C681=5,dati_bdv!$G$2:$G$65536,dati_bdv!$H$2:$H$65536))))),$A681,dati_bdv!K$2:K$65536)","v":0},{"$f":"SUMIF(IF(dati_pdc!$C681=1,dati_bdv!$C$2:$C$65536,IF(dati_pdc!$C681=2,dati_bdv!$D$2:$D$65536,IF(dati_pdc!$C681=3,dati_bdv!$E$2:$E$65536,IF(dati_pdc!$C681=4,dati_bdv!$F$2:$F$65536,IF(dati_pdc!$C681=5,dati_bdv!$G$2:$G$65536,dati_bdv!$H$2:$H$65536))))),$A681,dati_bdv!L$2:L$65536)","v":0},{"$f":"SUMIF(IF(dati_pdc!$C681=1,dati_bdv!$C$2:$C$65536,IF(dati_pdc!$C681=2,dati_bdv!$D$2:$D$65536,IF(dati_pdc!$C681=3,dati_bdv!$E$2:$E$65536,IF(dati_pdc!$C681=4,dati_bdv!$F$2:$F$65536,IF(dati_pdc!$C681=5,dati_bdv!$G$2:$G$65536,dati_bdv!$H$2:$H$65536))))),$A681,dati_bdv!M$2:M$65536)","v":0},{"$f":"SUMIF(IF(dati_pdc!$C681=1,dati_bdv!$C$2:$C$65536,IF(dati_pdc!$C681=2,dati_bdv!$D$2:$D$65536,IF(dati_pdc!$C681=3,dati_bdv!$E$2:$E$65536,IF(dati_pdc!$C681=4,dati_bdv!$F$2:$F$65536,IF(dati_pdc!$C681=5,dati_bdv!$G$2:$G$65536,dati_bdv!$H$2:$H$65536))))),$A681,dati_bdv!N$2:N$65536)","v":0}]
[{"$f":"dati_pdc!A682","v":0},{"$f":"SUMIF(IF(dati_pdc!$C682=1,dati_bdv!$C$2:$C$65536,IF(dati_pdc!$C682=2,dati_bdv!$D$2:$D$65536,IF(dati_pdc!$C682=3,dati_bdv!$E$2:$E$65536,IF(dati_pdc!$C682=4,dati_bdv!$F$2:$F$65536,IF(dati_pdc!$C682=5,dati_bdv!$G$2:$G$65536,dati_bdv!$H$2:$H$65536))))),$A682,dati_bdv!J$2:J$65536)","v":0},{"$f":"SUMIF(IF(dati_pdc!$C682=1,dati_bdv!$C$2:$C$65536,IF(dati_pdc!$C682=2,dati_bdv!$D$2:$D$65536,IF(dati_pdc!$C682=3,dati_bdv!$E$2:$E$65536,IF(dati_pdc!$C682=4,dati_bdv!$F$2:$F$65536,IF(dati_pdc!$C682=5,dati_bdv!$G$2:$G$65536,dati_bdv!$H$2:$H$65536))))),$A682,dati_bdv!K$2:K$65536)","v":0},{"$f":"SUMIF(IF(dati_pdc!$C682=1,dati_bdv!$C$2:$C$65536,IF(dati_pdc!$C682=2,dati_bdv!$D$2:$D$65536,IF(dati_pdc!$C682=3,dati_bdv!$E$2:$E$65536,IF(dati_pdc!$C682=4,dati_bdv!$F$2:$F$65536,IF(dati_pdc!$C682=5,dati_bdv!$G$2:$G$65536,dati_bdv!$H$2:$H$65536))))),$A682,dati_bdv!L$2:L$65536)","v":0},{"$f":"SUMIF(IF(dati_pdc!$C682=1,dati_bdv!$C$2:$C$65536,IF(dati_pdc!$C682=2,dati_bdv!$D$2:$D$65536,IF(dati_pdc!$C682=3,dati_bdv!$E$2:$E$65536,IF(dati_pdc!$C682=4,dati_bdv!$F$2:$F$65536,IF(dati_pdc!$C682=5,dati_bdv!$G$2:$G$65536,dati_bdv!$H$2:$H$65536))))),$A682,dati_bdv!M$2:M$65536)","v":0},{"$f":"SUMIF(IF(dati_pdc!$C682=1,dati_bdv!$C$2:$C$65536,IF(dati_pdc!$C682=2,dati_bdv!$D$2:$D$65536,IF(dati_pdc!$C682=3,dati_bdv!$E$2:$E$65536,IF(dati_pdc!$C682=4,dati_bdv!$F$2:$F$65536,IF(dati_pdc!$C682=5,dati_bdv!$G$2:$G$65536,dati_bdv!$H$2:$H$65536))))),$A682,dati_bdv!N$2:N$65536)","v":0}]
[{"$f":"dati_pdc!A683","v":0},{"$f":"SUMIF(IF(dati_pdc!$C683=1,dati_bdv!$C$2:$C$65536,IF(dati_pdc!$C683=2,dati_bdv!$D$2:$D$65536,IF(dati_pdc!$C683=3,dati_bdv!$E$2:$E$65536,IF(dati_pdc!$C683=4,dati_bdv!$F$2:$F$65536,IF(dati_pdc!$C683=5,dati_bdv!$G$2:$G$65536,dati_bdv!$H$2:$H$65536))))),$A683,dati_bdv!J$2:J$65536)","v":0},{"$f":"SUMIF(IF(dati_pdc!$C683=1,dati_bdv!$C$2:$C$65536,IF(dati_pdc!$C683=2,dati_bdv!$D$2:$D$65536,IF(dati_pdc!$C683=3,dati_bdv!$E$2:$E$65536,IF(dati_pdc!$C683=4,dati_bdv!$F$2:$F$65536,IF(dati_pdc!$C683=5,dati_bdv!$G$2:$G$65536,dati_bdv!$H$2:$H$65536))))),$A683,dati_bdv!K$2:K$65536)","v":0},{"$f":"SUMIF(IF(dati_pdc!$C683=1,dati_bdv!$C$2:$C$65536,IF(dati_pdc!$C683=2,dati_bdv!$D$2:$D$65536,IF(dati_pdc!$C683=3,dati_bdv!$E$2:$E$65536,IF(dati_pdc!$C683=4,dati_bdv!$F$2:$F$65536,IF(dati_pdc!$C683=5,dati_bdv!$G$2:$G$65536,dati_bdv!$H$2:$H$65536))))),$A683,dati_bdv!L$2:L$65536)","v":0},{"$f":"SUMIF(IF(dati_pdc!$C683=1,dati_bdv!$C$2:$C$65536,IF(dati_pdc!$C683=2,dati_bdv!$D$2:$D$65536,IF(dati_pdc!$C683=3,dati_bdv!$E$2:$E$65536,IF(dati_pdc!$C683=4,dati_bdv!$F$2:$F$65536,IF(dati_pdc!$C683=5,dati_bdv!$G$2:$G$65536,dati_bdv!$H$2:$H$65536))))),$A683,dati_bdv!M$2:M$65536)","v":0},{"$f":"SUMIF(IF(dati_pdc!$C683=1,dati_bdv!$C$2:$C$65536,IF(dati_pdc!$C683=2,dati_bdv!$D$2:$D$65536,IF(dati_pdc!$C683=3,dati_bdv!$E$2:$E$65536,IF(dati_pdc!$C683=4,dati_bdv!$F$2:$F$65536,IF(dati_pdc!$C683=5,dati_bdv!$G$2:$G$65536,dati_bdv!$H$2:$H$65536))))),$A683,dati_bdv!N$2:N$65536)","v":0}]
[{"$f":"dati_pdc!A684","v":0},{"$f":"SUMIF(IF(dati_pdc!$C684=1,dati_bdv!$C$2:$C$65536,IF(dati_pdc!$C684=2,dati_bdv!$D$2:$D$65536,IF(dati_pdc!$C684=3,dati_bdv!$E$2:$E$65536,IF(dati_pdc!$C684=4,dati_bdv!$F$2:$F$65536,IF(dati_pdc!$C684=5,dati_bdv!$G$2:$G$65536,dati_bdv!$H$2:$H$65536))))),$A684,dati_bdv!J$2:J$65536)","v":0},{"$f":"SUMIF(IF(dati_pdc!$C684=1,dati_bdv!$C$2:$C$65536,IF(dati_pdc!$C684=2,dati_bdv!$D$2:$D$65536,IF(dati_pdc!$C684=3,dati_bdv!$E$2:$E$65536,IF(dati_pdc!$C684=4,dati_bdv!$F$2:$F$65536,IF(dati_pdc!$C684=5,dati_bdv!$G$2:$G$65536,dati_bdv!$H$2:$H$65536))))),$A684,dati_bdv!K$2:K$65536)","v":0},{"$f":"SUMIF(IF(dati_pdc!$C684=1,dati_bdv!$C$2:$C$65536,IF(dati_pdc!$C684=2,dati_bdv!$D$2:$D$65536,IF(dati_pdc!$C684=3,dati_bdv!$E$2:$E$65536,IF(dati_pdc!$C684=4,dati_bdv!$F$2:$F$65536,IF(dati_pdc!$C684=5,dati_bdv!$G$2:$G$65536,dati_bdv!$H$2:$H$65536))))),$A684,dati_bdv!L$2:L$65536)","v":0},{"$f":"SUMIF(IF(dati_pdc!$C684=1,dati_bdv!$C$2:$C$65536,IF(dati_pdc!$C684=2,dati_bdv!$D$2:$D$65536,IF(dati_pdc!$C684=3,dati_bdv!$E$2:$E$65536,IF(dati_pdc!$C684=4,dati_bdv!$F$2:$F$65536,IF(dati_pdc!$C684=5,dati_bdv!$G$2:$G$65536,dati_bdv!$H$2:$H$65536))))),$A684,dati_bdv!M$2:M$65536)","v":0},{"$f":"SUMIF(IF(dati_pdc!$C684=1,dati_bdv!$C$2:$C$65536,IF(dati_pdc!$C684=2,dati_bdv!$D$2:$D$65536,IF(dati_pdc!$C684=3,dati_bdv!$E$2:$E$65536,IF(dati_pdc!$C684=4,dati_bdv!$F$2:$F$65536,IF(dati_pdc!$C684=5,dati_bdv!$G$2:$G$65536,dati_bdv!$H$2:$H$65536))))),$A684,dati_bdv!N$2:N$65536)","v":0}]
[{"$f":"dati_pdc!A685","v":0},{"$f":"SUMIF(IF(dati_pdc!$C685=1,dati_bdv!$C$2:$C$65536,IF(dati_pdc!$C685=2,dati_bdv!$D$2:$D$65536,IF(dati_pdc!$C685=3,dati_bdv!$E$2:$E$65536,IF(dati_pdc!$C685=4,dati_bdv!$F$2:$F$65536,IF(dati_pdc!$C685=5,dati_bdv!$G$2:$G$65536,dati_bdv!$H$2:$H$65536))))),$A685,dati_bdv!J$2:J$65536)","v":0},{"$f":"SUMIF(IF(dati_pdc!$C685=1,dati_bdv!$C$2:$C$65536,IF(dati_pdc!$C685=2,dati_bdv!$D$2:$D$65536,IF(dati_pdc!$C685=3,dati_bdv!$E$2:$E$65536,IF(dati_pdc!$C685=4,dati_bdv!$F$2:$F$65536,IF(dati_pdc!$C685=5,dati_bdv!$G$2:$G$65536,dati_bdv!$H$2:$H$65536))))),$A685,dati_bdv!K$2:K$65536)","v":0},{"$f":"SUMIF(IF(dati_pdc!$C685=1,dati_bdv!$C$2:$C$65536,IF(dati_pdc!$C685=2,dati_bdv!$D$2:$D$65536,IF(dati_pdc!$C685=3,dati_bdv!$E$2:$E$65536,IF(dati_pdc!$C685=4,dati_bdv!$F$2:$F$65536,IF(dati_pdc!$C685=5,dati_bdv!$G$2:$G$65536,dati_bdv!$H$2:$H$65536))))),$A685,dati_bdv!L$2:L$65536)","v":0},{"$f":"SUMIF(IF(dati_pdc!$C685=1,dati_bdv!$C$2:$C$65536,IF(dati_pdc!$C685=2,dati_bdv!$D$2:$D$65536,IF(dati_pdc!$C685=3,dati_bdv!$E$2:$E$65536,IF(dati_pdc!$C685=4,dati_bdv!$F$2:$F$65536,IF(dati_pdc!$C685=5,dati_bdv!$G$2:$G$65536,dati_bdv!$H$2:$H$65536))))),$A685,dati_bdv!M$2:M$65536)","v":0},{"$f":"SUMIF(IF(dati_pdc!$C685=1,dati_bdv!$C$2:$C$65536,IF(dati_pdc!$C685=2,dati_bdv!$D$2:$D$65536,IF(dati_pdc!$C685=3,dati_bdv!$E$2:$E$65536,IF(dati_pdc!$C685=4,dati_bdv!$F$2:$F$65536,IF(dati_pdc!$C685=5,dati_bdv!$G$2:$G$65536,dati_bdv!$H$2:$H$65536))))),$A685,dati_bdv!N$2:N$65536)","v":0}]
[{"$f":"dati_pdc!A686","v":0},{"$f":"SUMIF(IF(dati_pdc!$C686=1,dati_bdv!$C$2:$C$65536,IF(dati_pdc!$C686=2,dati_bdv!$D$2:$D$65536,IF(dati_pdc!$C686=3,dati_bdv!$E$2:$E$65536,IF(dati_pdc!$C686=4,dati_bdv!$F$2:$F$65536,IF(dati_pdc!$C686=5,dati_bdv!$G$2:$G$65536,dati_bdv!$H$2:$H$65536))))),$A686,dati_bdv!J$2:J$65536)","v":0},{"$f":"SUMIF(IF(dati_pdc!$C686=1,dati_bdv!$C$2:$C$65536,IF(dati_pdc!$C686=2,dati_bdv!$D$2:$D$65536,IF(dati_pdc!$C686=3,dati_bdv!$E$2:$E$65536,IF(dati_pdc!$C686=4,dati_bdv!$F$2:$F$65536,IF(dati_pdc!$C686=5,dati_bdv!$G$2:$G$65536,dati_bdv!$H$2:$H$65536))))),$A686,dati_bdv!K$2:K$65536)","v":0},{"$f":"SUMIF(IF(dati_pdc!$C686=1,dati_bdv!$C$2:$C$65536,IF(dati_pdc!$C686=2,dati_bdv!$D$2:$D$65536,IF(dati_pdc!$C686=3,dati_bdv!$E$2:$E$65536,IF(dati_pdc!$C686=4,dati_bdv!$F$2:$F$65536,IF(dati_pdc!$C686=5,dati_bdv!$G$2:$G$65536,dati_bdv!$H$2:$H$65536))))),$A686,dati_bdv!L$2:L$65536)","v":0},{"$f":"SUMIF(IF(dati_pdc!$C686=1,dati_bdv!$C$2:$C$65536,IF(dati_pdc!$C686=2,dati_bdv!$D$2:$D$65536,IF(dati_pdc!$C686=3,dati_bdv!$E$2:$E$65536,IF(dati_pdc!$C686=4,dati_bdv!$F$2:$F$65536,IF(dati_pdc!$C686=5,dati_bdv!$G$2:$G$65536,dati_bdv!$H$2:$H$65536))))),$A686,dati_bdv!M$2:M$65536)","v":0},{"$f":"SUMIF(IF(dati_pdc!$C686=1,dati_bdv!$C$2:$C$65536,IF(dati_pdc!$C686=2,dati_bdv!$D$2:$D$65536,IF(dati_pdc!$C686=3,dati_bdv!$E$2:$E$65536,IF(dati_pdc!$C686=4,dati_bdv!$F$2:$F$65536,IF(dati_pdc!$C686=5,dati_bdv!$G$2:$G$65536,dati_bdv!$H$2:$H$65536))))),$A686,dati_bdv!N$2:N$65536)","v":0}]
[{"$f":"dati_pdc!A687","v":0},{"$f":"SUMIF(IF(dati_pdc!$C687=1,dati_bdv!$C$2:$C$65536,IF(dati_pdc!$C687=2,dati_bdv!$D$2:$D$65536,IF(dati_pdc!$C687=3,dati_bdv!$E$2:$E$65536,IF(dati_pdc!$C687=4,dati_bdv!$F$2:$F$65536,IF(dati_pdc!$C687=5,dati_bdv!$G$2:$G$65536,dati_bdv!$H$2:$H$65536))))),$A687,dati_bdv!J$2:J$65536)","v":0},{"$f":"SUMIF(IF(dati_pdc!$C687=1,dati_bdv!$C$2:$C$65536,IF(dati_pdc!$C687=2,dati_bdv!$D$2:$D$65536,IF(dati_pdc!$C687=3,dati_bdv!$E$2:$E$65536,IF(dati_pdc!$C687=4,dati_bdv!$F$2:$F$65536,IF(dati_pdc!$C687=5,dati_bdv!$G$2:$G$65536,dati_bdv!$H$2:$H$65536))))),$A687,dati_bdv!K$2:K$65536)","v":0},{"$f":"SUMIF(IF(dati_pdc!$C687=1,dati_bdv!$C$2:$C$65536,IF(dati_pdc!$C687=2,dati_bdv!$D$2:$D$65536,IF(dati_pdc!$C687=3,dati_bdv!$E$2:$E$65536,IF(dati_pdc!$C687=4,dati_bdv!$F$2:$F$65536,IF(dati_pdc!$C687=5,dati_bdv!$G$2:$G$65536,dati_bdv!$H$2:$H$65536))))),$A687,dati_bdv!L$2:L$65536)","v":0},{"$f":"SUMIF(IF(dati_pdc!$C687=1,dati_bdv!$C$2:$C$65536,IF(dati_pdc!$C687=2,dati_bdv!$D$2:$D$65536,IF(dati_pdc!$C687=3,dati_bdv!$E$2:$E$65536,IF(dati_pdc!$C687=4,dati_bdv!$F$2:$F$65536,IF(dati_pdc!$C687=5,dati_bdv!$G$2:$G$65536,dati_bdv!$H$2:$H$65536))))),$A687,dati_bdv!M$2:M$65536)","v":0},{"$f":"SUMIF(IF(dati_pdc!$C687=1,dati_bdv!$C$2:$C$65536,IF(dati_pdc!$C687=2,dati_bdv!$D$2:$D$65536,IF(dati_pdc!$C687=3,dati_bdv!$E$2:$E$65536,IF(dati_pdc!$C687=4,dati_bdv!$F$2:$F$65536,IF(dati_pdc!$C687=5,dati_bdv!$G$2:$G$65536,dati_bdv!$H$2:$H$65536))))),$A687,dati_bdv!N$2:N$65536)","v":0}]
[{"$f":"dati_pdc!A688","v":0},{"$f":"SUMIF(IF(dati_pdc!$C688=1,dati_bdv!$C$2:$C$65536,IF(dati_pdc!$C688=2,dati_bdv!$D$2:$D$65536,IF(dati_pdc!$C688=3,dati_bdv!$E$2:$E$65536,IF(dati_pdc!$C688=4,dati_bdv!$F$2:$F$65536,IF(dati_pdc!$C688=5,dati_bdv!$G$2:$G$65536,dati_bdv!$H$2:$H$65536))))),$A688,dati_bdv!J$2:J$65536)","v":0},{"$f":"SUMIF(IF(dati_pdc!$C688=1,dati_bdv!$C$2:$C$65536,IF(dati_pdc!$C688=2,dati_bdv!$D$2:$D$65536,IF(dati_pdc!$C688=3,dati_bdv!$E$2:$E$65536,IF(dati_pdc!$C688=4,dati_bdv!$F$2:$F$65536,IF(dati_pdc!$C688=5,dati_bdv!$G$2:$G$65536,dati_bdv!$H$2:$H$65536))))),$A688,dati_bdv!K$2:K$65536)","v":0},{"$f":"SUMIF(IF(dati_pdc!$C688=1,dati_bdv!$C$2:$C$65536,IF(dati_pdc!$C688=2,dati_bdv!$D$2:$D$65536,IF(dati_pdc!$C688=3,dati_bdv!$E$2:$E$65536,IF(dati_pdc!$C688=4,dati_bdv!$F$2:$F$65536,IF(dati_pdc!$C688=5,dati_bdv!$G$2:$G$65536,dati_bdv!$H$2:$H$65536))))),$A688,dati_bdv!L$2:L$65536)","v":0},{"$f":"SUMIF(IF(dati_pdc!$C688=1,dati_bdv!$C$2:$C$65536,IF(dati_pdc!$C688=2,dati_bdv!$D$2:$D$65536,IF(dati_pdc!$C688=3,dati_bdv!$E$2:$E$65536,IF(dati_pdc!$C688=4,dati_bdv!$F$2:$F$65536,IF(dati_pdc!$C688=5,dati_bdv!$G$2:$G$65536,dati_bdv!$H$2:$H$65536))))),$A688,dati_bdv!M$2:M$65536)","v":0},{"$f":"SUMIF(IF(dati_pdc!$C688=1,dati_bdv!$C$2:$C$65536,IF(dati_pdc!$C688=2,dati_bdv!$D$2:$D$65536,IF(dati_pdc!$C688=3,dati_bdv!$E$2:$E$65536,IF(dati_pdc!$C688=4,dati_bdv!$F$2:$F$65536,IF(dati_pdc!$C688=5,dati_bdv!$G$2:$G$65536,dati_bdv!$H$2:$H$65536))))),$A688,dati_bdv!N$2:N$65536)","v":0}]
[{"$f":"dati_pdc!A689","v":0},{"$f":"SUMIF(IF(dati_pdc!$C689=1,dati_bdv!$C$2:$C$65536,IF(dati_pdc!$C689=2,dati_bdv!$D$2:$D$65536,IF(dati_pdc!$C689=3,dati_bdv!$E$2:$E$65536,IF(dati_pdc!$C689=4,dati_bdv!$F$2:$F$65536,IF(dati_pdc!$C689=5,dati_bdv!$G$2:$G$65536,dati_bdv!$H$2:$H$65536))))),$A689,dati_bdv!J$2:J$65536)","v":0},{"$f":"SUMIF(IF(dati_pdc!$C689=1,dati_bdv!$C$2:$C$65536,IF(dati_pdc!$C689=2,dati_bdv!$D$2:$D$65536,IF(dati_pdc!$C689=3,dati_bdv!$E$2:$E$65536,IF(dati_pdc!$C689=4,dati_bdv!$F$2:$F$65536,IF(dati_pdc!$C689=5,dati_bdv!$G$2:$G$65536,dati_bdv!$H$2:$H$65536))))),$A689,dati_bdv!K$2:K$65536)","v":0},{"$f":"SUMIF(IF(dati_pdc!$C689=1,dati_bdv!$C$2:$C$65536,IF(dati_pdc!$C689=2,dati_bdv!$D$2:$D$65536,IF(dati_pdc!$C689=3,dati_bdv!$E$2:$E$65536,IF(dati_pdc!$C689=4,dati_bdv!$F$2:$F$65536,IF(dati_pdc!$C689=5,dati_bdv!$G$2:$G$65536,dati_bdv!$H$2:$H$65536))))),$A689,dati_bdv!L$2:L$65536)","v":0},{"$f":"SUMIF(IF(dati_pdc!$C689=1,dati_bdv!$C$2:$C$65536,IF(dati_pdc!$C689=2,dati_bdv!$D$2:$D$65536,IF(dati_pdc!$C689=3,dati_bdv!$E$2:$E$65536,IF(dati_pdc!$C689=4,dati_bdv!$F$2:$F$65536,IF(dati_pdc!$C689=5,dati_bdv!$G$2:$G$65536,dati_bdv!$H$2:$H$65536))))),$A689,dati_bdv!M$2:M$65536)","v":0},{"$f":"SUMIF(IF(dati_pdc!$C689=1,dati_bdv!$C$2:$C$65536,IF(dati_pdc!$C689=2,dati_bdv!$D$2:$D$65536,IF(dati_pdc!$C689=3,dati_bdv!$E$2:$E$65536,IF(dati_pdc!$C689=4,dati_bdv!$F$2:$F$65536,IF(dati_pdc!$C689=5,dati_bdv!$G$2:$G$65536,dati_bdv!$H$2:$H$65536))))),$A689,dati_bdv!N$2:N$65536)","v":0}]
[{"$f":"dati_pdc!A690","v":0},{"$f":"SUMIF(IF(dati_pdc!$C690=1,dati_bdv!$C$2:$C$65536,IF(dati_pdc!$C690=2,dati_bdv!$D$2:$D$65536,IF(dati_pdc!$C690=3,dati_bdv!$E$2:$E$65536,IF(dati_pdc!$C690=4,dati_bdv!$F$2:$F$65536,IF(dati_pdc!$C690=5,dati_bdv!$G$2:$G$65536,dati_bdv!$H$2:$H$65536))))),$A690,dati_bdv!J$2:J$65536)","v":0},{"$f":"SUMIF(IF(dati_pdc!$C690=1,dati_bdv!$C$2:$C$65536,IF(dati_pdc!$C690=2,dati_bdv!$D$2:$D$65536,IF(dati_pdc!$C690=3,dati_bdv!$E$2:$E$65536,IF(dati_pdc!$C690=4,dati_bdv!$F$2:$F$65536,IF(dati_pdc!$C690=5,dati_bdv!$G$2:$G$65536,dati_bdv!$H$2:$H$65536))))),$A690,dati_bdv!K$2:K$65536)","v":0},{"$f":"SUMIF(IF(dati_pdc!$C690=1,dati_bdv!$C$2:$C$65536,IF(dati_pdc!$C690=2,dati_bdv!$D$2:$D$65536,IF(dati_pdc!$C690=3,dati_bdv!$E$2:$E$65536,IF(dati_pdc!$C690=4,dati_bdv!$F$2:$F$65536,IF(dati_pdc!$C690=5,dati_bdv!$G$2:$G$65536,dati_bdv!$H$2:$H$65536))))),$A690,dati_bdv!L$2:L$65536)","v":0},{"$f":"SUMIF(IF(dati_pdc!$C690=1,dati_bdv!$C$2:$C$65536,IF(dati_pdc!$C690=2,dati_bdv!$D$2:$D$65536,IF(dati_pdc!$C690=3,dati_bdv!$E$2:$E$65536,IF(dati_pdc!$C690=4,dati_bdv!$F$2:$F$65536,IF(dati_pdc!$C690=5,dati_bdv!$G$2:$G$65536,dati_bdv!$H$2:$H$65536))))),$A690,dati_bdv!M$2:M$65536)","v":0},{"$f":"SUMIF(IF(dati_pdc!$C690=1,dati_bdv!$C$2:$C$65536,IF(dati_pdc!$C690=2,dati_bdv!$D$2:$D$65536,IF(dati_pdc!$C690=3,dati_bdv!$E$2:$E$65536,IF(dati_pdc!$C690=4,dati_bdv!$F$2:$F$65536,IF(dati_pdc!$C690=5,dati_bdv!$G$2:$G$65536,dati_bdv!$H$2:$H$65536))))),$A690,dati_bdv!N$2:N$65536)","v":0}]
[{"$f":"dati_pdc!A691","v":0},{"$f":"SUMIF(IF(dati_pdc!$C691=1,dati_bdv!$C$2:$C$65536,IF(dati_pdc!$C691=2,dati_bdv!$D$2:$D$65536,IF(dati_pdc!$C691=3,dati_bdv!$E$2:$E$65536,IF(dati_pdc!$C691=4,dati_bdv!$F$2:$F$65536,IF(dati_pdc!$C691=5,dati_bdv!$G$2:$G$65536,dati_bdv!$H$2:$H$65536))))),$A691,dati_bdv!J$2:J$65536)","v":0},{"$f":"SUMIF(IF(dati_pdc!$C691=1,dati_bdv!$C$2:$C$65536,IF(dati_pdc!$C691=2,dati_bdv!$D$2:$D$65536,IF(dati_pdc!$C691=3,dati_bdv!$E$2:$E$65536,IF(dati_pdc!$C691=4,dati_bdv!$F$2:$F$65536,IF(dati_pdc!$C691=5,dati_bdv!$G$2:$G$65536,dati_bdv!$H$2:$H$65536))))),$A691,dati_bdv!K$2:K$65536)","v":0},{"$f":"SUMIF(IF(dati_pdc!$C691=1,dati_bdv!$C$2:$C$65536,IF(dati_pdc!$C691=2,dati_bdv!$D$2:$D$65536,IF(dati_pdc!$C691=3,dati_bdv!$E$2:$E$65536,IF(dati_pdc!$C691=4,dati_bdv!$F$2:$F$65536,IF(dati_pdc!$C691=5,dati_bdv!$G$2:$G$65536,dati_bdv!$H$2:$H$65536))))),$A691,dati_bdv!L$2:L$65536)","v":0},{"$f":"SUMIF(IF(dati_pdc!$C691=1,dati_bdv!$C$2:$C$65536,IF(dati_pdc!$C691=2,dati_bdv!$D$2:$D$65536,IF(dati_pdc!$C691=3,dati_bdv!$E$2:$E$65536,IF(dati_pdc!$C691=4,dati_bdv!$F$2:$F$65536,IF(dati_pdc!$C691=5,dati_bdv!$G$2:$G$65536,dati_bdv!$H$2:$H$65536))))),$A691,dati_bdv!M$2:M$65536)","v":0},{"$f":"SUMIF(IF(dati_pdc!$C691=1,dati_bdv!$C$2:$C$65536,IF(dati_pdc!$C691=2,dati_bdv!$D$2:$D$65536,IF(dati_pdc!$C691=3,dati_bdv!$E$2:$E$65536,IF(dati_pdc!$C691=4,dati_bdv!$F$2:$F$65536,IF(dati_pdc!$C691=5,dati_bdv!$G$2:$G$65536,dati_bdv!$H$2:$H$65536))))),$A691,dati_bdv!N$2:N$65536)","v":0}]
[{"$f":"dati_pdc!A692","v":0},{"$f":"SUMIF(IF(dati_pdc!$C692=1,dati_bdv!$C$2:$C$65536,IF(dati_pdc!$C692=2,dati_bdv!$D$2:$D$65536,IF(dati_pdc!$C692=3,dati_bdv!$E$2:$E$65536,IF(dati_pdc!$C692=4,dati_bdv!$F$2:$F$65536,IF(dati_pdc!$C692=5,dati_bdv!$G$2:$G$65536,dati_bdv!$H$2:$H$65536))))),$A692,dati_bdv!J$2:J$65536)","v":0},{"$f":"SUMIF(IF(dati_pdc!$C692=1,dati_bdv!$C$2:$C$65536,IF(dati_pdc!$C692=2,dati_bdv!$D$2:$D$65536,IF(dati_pdc!$C692=3,dati_bdv!$E$2:$E$65536,IF(dati_pdc!$C692=4,dati_bdv!$F$2:$F$65536,IF(dati_pdc!$C692=5,dati_bdv!$G$2:$G$65536,dati_bdv!$H$2:$H$65536))))),$A692,dati_bdv!K$2:K$65536)","v":0},{"$f":"SUMIF(IF(dati_pdc!$C692=1,dati_bdv!$C$2:$C$65536,IF(dati_pdc!$C692=2,dati_bdv!$D$2:$D$65536,IF(dati_pdc!$C692=3,dati_bdv!$E$2:$E$65536,IF(dati_pdc!$C692=4,dati_bdv!$F$2:$F$65536,IF(dati_pdc!$C692=5,dati_bdv!$G$2:$G$65536,dati_bdv!$H$2:$H$65536))))),$A692,dati_bdv!L$2:L$65536)","v":0},{"$f":"SUMIF(IF(dati_pdc!$C692=1,dati_bdv!$C$2:$C$65536,IF(dati_pdc!$C692=2,dati_bdv!$D$2:$D$65536,IF(dati_pdc!$C692=3,dati_bdv!$E$2:$E$65536,IF(dati_pdc!$C692=4,dati_bdv!$F$2:$F$65536,IF(dati_pdc!$C692=5,dati_bdv!$G$2:$G$65536,dati_bdv!$H$2:$H$65536))))),$A692,dati_bdv!M$2:M$65536)","v":0},{"$f":"SUMIF(IF(dati_pdc!$C692=1,dati_bdv!$C$2:$C$65536,IF(dati_pdc!$C692=2,dati_bdv!$D$2:$D$65536,IF(dati_pdc!$C692=3,dati_bdv!$E$2:$E$65536,IF(dati_pdc!$C692=4,dati_bdv!$F$2:$F$65536,IF(dati_pdc!$C692=5,dati_bdv!$G$2:$G$65536,dati_bdv!$H$2:$H$65536))))),$A692,dati_bdv!N$2:N$65536)","v":0}]
[{"$f":"dati_pdc!A693","v":0},{"$f":"SUMIF(IF(dati_pdc!$C693=1,dati_bdv!$C$2:$C$65536,IF(dati_pdc!$C693=2,dati_bdv!$D$2:$D$65536,IF(dati_pdc!$C693=3,dati_bdv!$E$2:$E$65536,IF(dati_pdc!$C693=4,dati_bdv!$F$2:$F$65536,IF(dati_pdc!$C693=5,dati_bdv!$G$2:$G$65536,dati_bdv!$H$2:$H$65536))))),$A693,dati_bdv!J$2:J$65536)","v":0},{"$f":"SUMIF(IF(dati_pdc!$C693=1,dati_bdv!$C$2:$C$65536,IF(dati_pdc!$C693=2,dati_bdv!$D$2:$D$65536,IF(dati_pdc!$C693=3,dati_bdv!$E$2:$E$65536,IF(dati_pdc!$C693=4,dati_bdv!$F$2:$F$65536,IF(dati_pdc!$C693=5,dati_bdv!$G$2:$G$65536,dati_bdv!$H$2:$H$65536))))),$A693,dati_bdv!K$2:K$65536)","v":0},{"$f":"SUMIF(IF(dati_pdc!$C693=1,dati_bdv!$C$2:$C$65536,IF(dati_pdc!$C693=2,dati_bdv!$D$2:$D$65536,IF(dati_pdc!$C693=3,dati_bdv!$E$2:$E$65536,IF(dati_pdc!$C693=4,dati_bdv!$F$2:$F$65536,IF(dati_pdc!$C693=5,dati_bdv!$G$2:$G$65536,dati_bdv!$H$2:$H$65536))))),$A693,dati_bdv!L$2:L$65536)","v":0},{"$f":"SUMIF(IF(dati_pdc!$C693=1,dati_bdv!$C$2:$C$65536,IF(dati_pdc!$C693=2,dati_bdv!$D$2:$D$65536,IF(dati_pdc!$C693=3,dati_bdv!$E$2:$E$65536,IF(dati_pdc!$C693=4,dati_bdv!$F$2:$F$65536,IF(dati_pdc!$C693=5,dati_bdv!$G$2:$G$65536,dati_bdv!$H$2:$H$65536))))),$A693,dati_bdv!M$2:M$65536)","v":0},{"$f":"SUMIF(IF(dati_pdc!$C693=1,dati_bdv!$C$2:$C$65536,IF(dati_pdc!$C693=2,dati_bdv!$D$2:$D$65536,IF(dati_pdc!$C693=3,dati_bdv!$E$2:$E$65536,IF(dati_pdc!$C693=4,dati_bdv!$F$2:$F$65536,IF(dati_pdc!$C693=5,dati_bdv!$G$2:$G$65536,dati_bdv!$H$2:$H$65536))))),$A693,dati_bdv!N$2:N$65536)","v":0}]
[{"$f":"dati_pdc!A694","v":0},{"$f":"SUMIF(IF(dati_pdc!$C694=1,dati_bdv!$C$2:$C$65536,IF(dati_pdc!$C694=2,dati_bdv!$D$2:$D$65536,IF(dati_pdc!$C694=3,dati_bdv!$E$2:$E$65536,IF(dati_pdc!$C694=4,dati_bdv!$F$2:$F$65536,IF(dati_pdc!$C694=5,dati_bdv!$G$2:$G$65536,dati_bdv!$H$2:$H$65536))))),$A694,dati_bdv!J$2:J$65536)","v":0},{"$f":"SUMIF(IF(dati_pdc!$C694=1,dati_bdv!$C$2:$C$65536,IF(dati_pdc!$C694=2,dati_bdv!$D$2:$D$65536,IF(dati_pdc!$C694=3,dati_bdv!$E$2:$E$65536,IF(dati_pdc!$C694=4,dati_bdv!$F$2:$F$65536,IF(dati_pdc!$C694=5,dati_bdv!$G$2:$G$65536,dati_bdv!$H$2:$H$65536))))),$A694,dati_bdv!K$2:K$65536)","v":0},{"$f":"SUMIF(IF(dati_pdc!$C694=1,dati_bdv!$C$2:$C$65536,IF(dati_pdc!$C694=2,dati_bdv!$D$2:$D$65536,IF(dati_pdc!$C694=3,dati_bdv!$E$2:$E$65536,IF(dati_pdc!$C694=4,dati_bdv!$F$2:$F$65536,IF(dati_pdc!$C694=5,dati_bdv!$G$2:$G$65536,dati_bdv!$H$2:$H$65536))))),$A694,dati_bdv!L$2:L$65536)","v":0},{"$f":"SUMIF(IF(dati_pdc!$C694=1,dati_bdv!$C$2:$C$65536,IF(dati_pdc!$C694=2,dati_bdv!$D$2:$D$65536,IF(dati_pdc!$C694=3,dati_bdv!$E$2:$E$65536,IF(dati_pdc!$C694=4,dati_bdv!$F$2:$F$65536,IF(dati_pdc!$C694=5,dati_bdv!$G$2:$G$65536,dati_bdv!$H$2:$H$65536))))),$A694,dati_bdv!M$2:M$65536)","v":0},{"$f":"SUMIF(IF(dati_pdc!$C694=1,dati_bdv!$C$2:$C$65536,IF(dati_pdc!$C694=2,dati_bdv!$D$2:$D$65536,IF(dati_pdc!$C694=3,dati_bdv!$E$2:$E$65536,IF(dati_pdc!$C694=4,dati_bdv!$F$2:$F$65536,IF(dati_pdc!$C694=5,dati_bdv!$G$2:$G$65536,dati_bdv!$H$2:$H$65536))))),$A694,dati_bdv!N$2:N$65536)","v":0}]
[{"$f":"dati_pdc!A695","v":0},{"$f":"SUMIF(IF(dati_pdc!$C695=1,dati_bdv!$C$2:$C$65536,IF(dati_pdc!$C695=2,dati_bdv!$D$2:$D$65536,IF(dati_pdc!$C695=3,dati_bdv!$E$2:$E$65536,IF(dati_pdc!$C695=4,dati_bdv!$F$2:$F$65536,IF(dati_pdc!$C695=5,dati_bdv!$G$2:$G$65536,dati_bdv!$H$2:$H$65536))))),$A695,dati_bdv!J$2:J$65536)","v":0},{"$f":"SUMIF(IF(dati_pdc!$C695=1,dati_bdv!$C$2:$C$65536,IF(dati_pdc!$C695=2,dati_bdv!$D$2:$D$65536,IF(dati_pdc!$C695=3,dati_bdv!$E$2:$E$65536,IF(dati_pdc!$C695=4,dati_bdv!$F$2:$F$65536,IF(dati_pdc!$C695=5,dati_bdv!$G$2:$G$65536,dati_bdv!$H$2:$H$65536))))),$A695,dati_bdv!K$2:K$65536)","v":0},{"$f":"SUMIF(IF(dati_pdc!$C695=1,dati_bdv!$C$2:$C$65536,IF(dati_pdc!$C695=2,dati_bdv!$D$2:$D$65536,IF(dati_pdc!$C695=3,dati_bdv!$E$2:$E$65536,IF(dati_pdc!$C695=4,dati_bdv!$F$2:$F$65536,IF(dati_pdc!$C695=5,dati_bdv!$G$2:$G$65536,dati_bdv!$H$2:$H$65536))))),$A695,dati_bdv!L$2:L$65536)","v":0},{"$f":"SUMIF(IF(dati_pdc!$C695=1,dati_bdv!$C$2:$C$65536,IF(dati_pdc!$C695=2,dati_bdv!$D$2:$D$65536,IF(dati_pdc!$C695=3,dati_bdv!$E$2:$E$65536,IF(dati_pdc!$C695=4,dati_bdv!$F$2:$F$65536,IF(dati_pdc!$C695=5,dati_bdv!$G$2:$G$65536,dati_bdv!$H$2:$H$65536))))),$A695,dati_bdv!M$2:M$65536)","v":0},{"$f":"SUMIF(IF(dati_pdc!$C695=1,dati_bdv!$C$2:$C$65536,IF(dati_pdc!$C695=2,dati_bdv!$D$2:$D$65536,IF(dati_pdc!$C695=3,dati_bdv!$E$2:$E$65536,IF(dati_pdc!$C695=4,dati_bdv!$F$2:$F$65536,IF(dati_pdc!$C695=5,dati_bdv!$G$2:$G$65536,dati_bdv!$H$2:$H$65536))))),$A695,dati_bdv!N$2:N$65536)","v":0}]
[{"$f":"dati_pdc!A696","v":0},{"$f":"SUMIF(IF(dati_pdc!$C696=1,dati_bdv!$C$2:$C$65536,IF(dati_pdc!$C696=2,dati_bdv!$D$2:$D$65536,IF(dati_pdc!$C696=3,dati_bdv!$E$2:$E$65536,IF(dati_pdc!$C696=4,dati_bdv!$F$2:$F$65536,IF(dati_pdc!$C696=5,dati_bdv!$G$2:$G$65536,dati_bdv!$H$2:$H$65536))))),$A696,dati_bdv!J$2:J$65536)","v":0},{"$f":"SUMIF(IF(dati_pdc!$C696=1,dati_bdv!$C$2:$C$65536,IF(dati_pdc!$C696=2,dati_bdv!$D$2:$D$65536,IF(dati_pdc!$C696=3,dati_bdv!$E$2:$E$65536,IF(dati_pdc!$C696=4,dati_bdv!$F$2:$F$65536,IF(dati_pdc!$C696=5,dati_bdv!$G$2:$G$65536,dati_bdv!$H$2:$H$65536))))),$A696,dati_bdv!K$2:K$65536)","v":0},{"$f":"SUMIF(IF(dati_pdc!$C696=1,dati_bdv!$C$2:$C$65536,IF(dati_pdc!$C696=2,dati_bdv!$D$2:$D$65536,IF(dati_pdc!$C696=3,dati_bdv!$E$2:$E$65536,IF(dati_pdc!$C696=4,dati_bdv!$F$2:$F$65536,IF(dati_pdc!$C696=5,dati_bdv!$G$2:$G$65536,dati_bdv!$H$2:$H$65536))))),$A696,dati_bdv!L$2:L$65536)","v":0},{"$f":"SUMIF(IF(dati_pdc!$C696=1,dati_bdv!$C$2:$C$65536,IF(dati_pdc!$C696=2,dati_bdv!$D$2:$D$65536,IF(dati_pdc!$C696=3,dati_bdv!$E$2:$E$65536,IF(dati_pdc!$C696=4,dati_bdv!$F$2:$F$65536,IF(dati_pdc!$C696=5,dati_bdv!$G$2:$G$65536,dati_bdv!$H$2:$H$65536))))),$A696,dati_bdv!M$2:M$65536)","v":0},{"$f":"SUMIF(IF(dati_pdc!$C696=1,dati_bdv!$C$2:$C$65536,IF(dati_pdc!$C696=2,dati_bdv!$D$2:$D$65536,IF(dati_pdc!$C696=3,dati_bdv!$E$2:$E$65536,IF(dati_pdc!$C696=4,dati_bdv!$F$2:$F$65536,IF(dati_pdc!$C696=5,dati_bdv!$G$2:$G$65536,dati_bdv!$H$2:$H$65536))))),$A696,dati_bdv!N$2:N$65536)","v":0}]
[{"$f":"dati_pdc!A697","v":0},{"$f":"SUMIF(IF(dati_pdc!$C697=1,dati_bdv!$C$2:$C$65536,IF(dati_pdc!$C697=2,dati_bdv!$D$2:$D$65536,IF(dati_pdc!$C697=3,dati_bdv!$E$2:$E$65536,IF(dati_pdc!$C697=4,dati_bdv!$F$2:$F$65536,IF(dati_pdc!$C697=5,dati_bdv!$G$2:$G$65536,dati_bdv!$H$2:$H$65536))))),$A697,dati_bdv!J$2:J$65536)","v":0},{"$f":"SUMIF(IF(dati_pdc!$C697=1,dati_bdv!$C$2:$C$65536,IF(dati_pdc!$C697=2,dati_bdv!$D$2:$D$65536,IF(dati_pdc!$C697=3,dati_bdv!$E$2:$E$65536,IF(dati_pdc!$C697=4,dati_bdv!$F$2:$F$65536,IF(dati_pdc!$C697=5,dati_bdv!$G$2:$G$65536,dati_bdv!$H$2:$H$65536))))),$A697,dati_bdv!K$2:K$65536)","v":0},{"$f":"SUMIF(IF(dati_pdc!$C697=1,dati_bdv!$C$2:$C$65536,IF(dati_pdc!$C697=2,dati_bdv!$D$2:$D$65536,IF(dati_pdc!$C697=3,dati_bdv!$E$2:$E$65536,IF(dati_pdc!$C697=4,dati_bdv!$F$2:$F$65536,IF(dati_pdc!$C697=5,dati_bdv!$G$2:$G$65536,dati_bdv!$H$2:$H$65536))))),$A697,dati_bdv!L$2:L$65536)","v":0},{"$f":"SUMIF(IF(dati_pdc!$C697=1,dati_bdv!$C$2:$C$65536,IF(dati_pdc!$C697=2,dati_bdv!$D$2:$D$65536,IF(dati_pdc!$C697=3,dati_bdv!$E$2:$E$65536,IF(dati_pdc!$C697=4,dati_bdv!$F$2:$F$65536,IF(dati_pdc!$C697=5,dati_bdv!$G$2:$G$65536,dati_bdv!$H$2:$H$65536))))),$A697,dati_bdv!M$2:M$65536)","v":0},{"$f":"SUMIF(IF(dati_pdc!$C697=1,dati_bdv!$C$2:$C$65536,IF(dati_pdc!$C697=2,dati_bdv!$D$2:$D$65536,IF(dati_pdc!$C697=3,dati_bdv!$E$2:$E$65536,IF(dati_pdc!$C697=4,dati_bdv!$F$2:$F$65536,IF(dati_pdc!$C697=5,dati_bdv!$G$2:$G$65536,dati_bdv!$H$2:$H$65536))))),$A697,dati_bdv!N$2:N$65536)","v":0}]
[{"$f":"dati_pdc!A698","v":0},{"$f":"SUMIF(IF(dati_pdc!$C698=1,dati_bdv!$C$2:$C$65536,IF(dati_pdc!$C698=2,dati_bdv!$D$2:$D$65536,IF(dati_pdc!$C698=3,dati_bdv!$E$2:$E$65536,IF(dati_pdc!$C698=4,dati_bdv!$F$2:$F$65536,IF(dati_pdc!$C698=5,dati_bdv!$G$2:$G$65536,dati_bdv!$H$2:$H$65536))))),$A698,dati_bdv!J$2:J$65536)","v":0},{"$f":"SUMIF(IF(dati_pdc!$C698=1,dati_bdv!$C$2:$C$65536,IF(dati_pdc!$C698=2,dati_bdv!$D$2:$D$65536,IF(dati_pdc!$C698=3,dati_bdv!$E$2:$E$65536,IF(dati_pdc!$C698=4,dati_bdv!$F$2:$F$65536,IF(dati_pdc!$C698=5,dati_bdv!$G$2:$G$65536,dati_bdv!$H$2:$H$65536))))),$A698,dati_bdv!K$2:K$65536)","v":0},{"$f":"SUMIF(IF(dati_pdc!$C698=1,dati_bdv!$C$2:$C$65536,IF(dati_pdc!$C698=2,dati_bdv!$D$2:$D$65536,IF(dati_pdc!$C698=3,dati_bdv!$E$2:$E$65536,IF(dati_pdc!$C698=4,dati_bdv!$F$2:$F$65536,IF(dati_pdc!$C698=5,dati_bdv!$G$2:$G$65536,dati_bdv!$H$2:$H$65536))))),$A698,dati_bdv!L$2:L$65536)","v":0},{"$f":"SUMIF(IF(dati_pdc!$C698=1,dati_bdv!$C$2:$C$65536,IF(dati_pdc!$C698=2,dati_bdv!$D$2:$D$65536,IF(dati_pdc!$C698=3,dati_bdv!$E$2:$E$65536,IF(dati_pdc!$C698=4,dati_bdv!$F$2:$F$65536,IF(dati_pdc!$C698=5,dati_bdv!$G$2:$G$65536,dati_bdv!$H$2:$H$65536))))),$A698,dati_bdv!M$2:M$65536)","v":0},{"$f":"SUMIF(IF(dati_pdc!$C698=1,dati_bdv!$C$2:$C$65536,IF(dati_pdc!$C698=2,dati_bdv!$D$2:$D$65536,IF(dati_pdc!$C698=3,dati_bdv!$E$2:$E$65536,IF(dati_pdc!$C698=4,dati_bdv!$F$2:$F$65536,IF(dati_pdc!$C698=5,dati_bdv!$G$2:$G$65536,dati_bdv!$H$2:$H$65536))))),$A698,dati_bdv!N$2:N$65536)","v":0}]
[{"$f":"dati_pdc!A699","v":0},{"$f":"SUMIF(IF(dati_pdc!$C699=1,dati_bdv!$C$2:$C$65536,IF(dati_pdc!$C699=2,dati_bdv!$D$2:$D$65536,IF(dati_pdc!$C699=3,dati_bdv!$E$2:$E$65536,IF(dati_pdc!$C699=4,dati_bdv!$F$2:$F$65536,IF(dati_pdc!$C699=5,dati_bdv!$G$2:$G$65536,dati_bdv!$H$2:$H$65536))))),$A699,dati_bdv!J$2:J$65536)","v":0},{"$f":"SUMIF(IF(dati_pdc!$C699=1,dati_bdv!$C$2:$C$65536,IF(dati_pdc!$C699=2,dati_bdv!$D$2:$D$65536,IF(dati_pdc!$C699=3,dati_bdv!$E$2:$E$65536,IF(dati_pdc!$C699=4,dati_bdv!$F$2:$F$65536,IF(dati_pdc!$C699=5,dati_bdv!$G$2:$G$65536,dati_bdv!$H$2:$H$65536))))),$A699,dati_bdv!K$2:K$65536)","v":0},{"$f":"SUMIF(IF(dati_pdc!$C699=1,dati_bdv!$C$2:$C$65536,IF(dati_pdc!$C699=2,dati_bdv!$D$2:$D$65536,IF(dati_pdc!$C699=3,dati_bdv!$E$2:$E$65536,IF(dati_pdc!$C699=4,dati_bdv!$F$2:$F$65536,IF(dati_pdc!$C699=5,dati_bdv!$G$2:$G$65536,dati_bdv!$H$2:$H$65536))))),$A699,dati_bdv!L$2:L$65536)","v":0},{"$f":"SUMIF(IF(dati_pdc!$C699=1,dati_bdv!$C$2:$C$65536,IF(dati_pdc!$C699=2,dati_bdv!$D$2:$D$65536,IF(dati_pdc!$C699=3,dati_bdv!$E$2:$E$65536,IF(dati_pdc!$C699=4,dati_bdv!$F$2:$F$65536,IF(dati_pdc!$C699=5,dati_bdv!$G$2:$G$65536,dati_bdv!$H$2:$H$65536))))),$A699,dati_bdv!M$2:M$65536)","v":0},{"$f":"SUMIF(IF(dati_pdc!$C699=1,dati_bdv!$C$2:$C$65536,IF(dati_pdc!$C699=2,dati_bdv!$D$2:$D$65536,IF(dati_pdc!$C699=3,dati_bdv!$E$2:$E$65536,IF(dati_pdc!$C699=4,dati_bdv!$F$2:$F$65536,IF(dati_pdc!$C699=5,dati_bdv!$G$2:$G$65536,dati_bdv!$H$2:$H$65536))))),$A699,dati_bdv!N$2:N$65536)","v":0}]
[{"$f":"dati_pdc!A700","v":0},{"$f":"SUMIF(IF(dati_pdc!$C700=1,dati_bdv!$C$2:$C$65536,IF(dati_pdc!$C700=2,dati_bdv!$D$2:$D$65536,IF(dati_pdc!$C700=3,dati_bdv!$E$2:$E$65536,IF(dati_pdc!$C700=4,dati_bdv!$F$2:$F$65536,IF(dati_pdc!$C700=5,dati_bdv!$G$2:$G$65536,dati_bdv!$H$2:$H$65536))))),$A700,dati_bdv!J$2:J$65536)","v":0},{"$f":"SUMIF(IF(dati_pdc!$C700=1,dati_bdv!$C$2:$C$65536,IF(dati_pdc!$C700=2,dati_bdv!$D$2:$D$65536,IF(dati_pdc!$C700=3,dati_bdv!$E$2:$E$65536,IF(dati_pdc!$C700=4,dati_bdv!$F$2:$F$65536,IF(dati_pdc!$C700=5,dati_bdv!$G$2:$G$65536,dati_bdv!$H$2:$H$65536))))),$A700,dati_bdv!K$2:K$65536)","v":0},{"$f":"SUMIF(IF(dati_pdc!$C700=1,dati_bdv!$C$2:$C$65536,IF(dati_pdc!$C700=2,dati_bdv!$D$2:$D$65536,IF(dati_pdc!$C700=3,dati_bdv!$E$2:$E$65536,IF(dati_pdc!$C700=4,dati_bdv!$F$2:$F$65536,IF(dati_pdc!$C700=5,dati_bdv!$G$2:$G$65536,dati_bdv!$H$2:$H$65536))))),$A700,dati_bdv!L$2:L$65536)","v":0},{"$f":"SUMIF(IF(dati_pdc!$C700=1,dati_bdv!$C$2:$C$65536,IF(dati_pdc!$C700=2,dati_bdv!$D$2:$D$65536,IF(dati_pdc!$C700=3,dati_bdv!$E$2:$E$65536,IF(dati_pdc!$C700=4,dati_bdv!$F$2:$F$65536,IF(dati_pdc!$C700=5,dati_bdv!$G$2:$G$65536,dati_bdv!$H$2:$H$65536))))),$A700,dati_bdv!M$2:M$65536)","v":0},{"$f":"SUMIF(IF(dati_pdc!$C700=1,dati_bdv!$C$2:$C$65536,IF(dati_pdc!$C700=2,dati_bdv!$D$2:$D$65536,IF(dati_pdc!$C700=3,dati_bdv!$E$2:$E$65536,IF(dati_pdc!$C700=4,dati_bdv!$F$2:$F$65536,IF(dati_pdc!$C700=5,dati_bdv!$G$2:$G$65536,dati_bdv!$H$2:$H$65536))))),$A700,dati_bdv!N$2:N$65536)","v":0}]
[{"$f":"dati_pdc!A701","v":0},{"$f":"SUMIF(IF(dati_pdc!$C701=1,dati_bdv!$C$2:$C$65536,IF(dati_pdc!$C701=2,dati_bdv!$D$2:$D$65536,IF(dati_pdc!$C701=3,dati_bdv!$E$2:$E$65536,IF(dati_pdc!$C701=4,dati_bdv!$F$2:$F$65536,IF(dati_pdc!$C701=5,dati_bdv!$G$2:$G$65536,dati_bdv!$H$2:$H$65536))))),$A701,dati_bdv!J$2:J$65536)","v":0},{"$f":"SUMIF(IF(dati_pdc!$C701=1,dati_bdv!$C$2:$C$65536,IF(dati_pdc!$C701=2,dati_bdv!$D$2:$D$65536,IF(dati_pdc!$C701=3,dati_bdv!$E$2:$E$65536,IF(dati_pdc!$C701=4,dati_bdv!$F$2:$F$65536,IF(dati_pdc!$C701=5,dati_bdv!$G$2:$G$65536,dati_bdv!$H$2:$H$65536))))),$A701,dati_bdv!K$2:K$65536)","v":0},{"$f":"SUMIF(IF(dati_pdc!$C701=1,dati_bdv!$C$2:$C$65536,IF(dati_pdc!$C701=2,dati_bdv!$D$2:$D$65536,IF(dati_pdc!$C701=3,dati_bdv!$E$2:$E$65536,IF(dati_pdc!$C701=4,dati_bdv!$F$2:$F$65536,IF(dati_pdc!$C701=5,dati_bdv!$G$2:$G$65536,dati_bdv!$H$2:$H$65536))))),$A701,dati_bdv!L$2:L$65536)","v":0},{"$f":"SUMIF(IF(dati_pdc!$C701=1,dati_bdv!$C$2:$C$65536,IF(dati_pdc!$C701=2,dati_bdv!$D$2:$D$65536,IF(dati_pdc!$C701=3,dati_bdv!$E$2:$E$65536,IF(dati_pdc!$C701=4,dati_bdv!$F$2:$F$65536,IF(dati_pdc!$C701=5,dati_bdv!$G$2:$G$65536,dati_bdv!$H$2:$H$65536))))),$A701,dati_bdv!M$2:M$65536)","v":0},{"$f":"SUMIF(IF(dati_pdc!$C701=1,dati_bdv!$C$2:$C$65536,IF(dati_pdc!$C701=2,dati_bdv!$D$2:$D$65536,IF(dati_pdc!$C701=3,dati_bdv!$E$2:$E$65536,IF(dati_pdc!$C701=4,dati_bdv!$F$2:$F$65536,IF(dati_pdc!$C701=5,dati_bdv!$G$2:$G$65536,dati_bdv!$H$2:$H$65536))))),$A701,dati_bdv!N$2:N$65536)","v":0}]
[{"$f":"dati_pdc!A702","v":0},{"$f":"SUMIF(IF(dati_pdc!$C702=1,dati_bdv!$C$2:$C$65536,IF(dati_pdc!$C702=2,dati_bdv!$D$2:$D$65536,IF(dati_pdc!$C702=3,dati_bdv!$E$2:$E$65536,IF(dati_pdc!$C702=4,dati_bdv!$F$2:$F$65536,IF(dati_pdc!$C702=5,dati_bdv!$G$2:$G$65536,dati_bdv!$H$2:$H$65536))))),$A702,dati_bdv!J$2:J$65536)","v":0},{"$f":"SUMIF(IF(dati_pdc!$C702=1,dati_bdv!$C$2:$C$65536,IF(dati_pdc!$C702=2,dati_bdv!$D$2:$D$65536,IF(dati_pdc!$C702=3,dati_bdv!$E$2:$E$65536,IF(dati_pdc!$C702=4,dati_bdv!$F$2:$F$65536,IF(dati_pdc!$C702=5,dati_bdv!$G$2:$G$65536,dati_bdv!$H$2:$H$65536))))),$A702,dati_bdv!K$2:K$65536)","v":0},{"$f":"SUMIF(IF(dati_pdc!$C702=1,dati_bdv!$C$2:$C$65536,IF(dati_pdc!$C702=2,dati_bdv!$D$2:$D$65536,IF(dati_pdc!$C702=3,dati_bdv!$E$2:$E$65536,IF(dati_pdc!$C702=4,dati_bdv!$F$2:$F$65536,IF(dati_pdc!$C702=5,dati_bdv!$G$2:$G$65536,dati_bdv!$H$2:$H$65536))))),$A702,dati_bdv!L$2:L$65536)","v":0},{"$f":"SUMIF(IF(dati_pdc!$C702=1,dati_bdv!$C$2:$C$65536,IF(dati_pdc!$C702=2,dati_bdv!$D$2:$D$65536,IF(dati_pdc!$C702=3,dati_bdv!$E$2:$E$65536,IF(dati_pdc!$C702=4,dati_bdv!$F$2:$F$65536,IF(dati_pdc!$C702=5,dati_bdv!$G$2:$G$65536,dati_bdv!$H$2:$H$65536))))),$A702,dati_bdv!M$2:M$65536)","v":0},{"$f":"SUMIF(IF(dati_pdc!$C702=1,dati_bdv!$C$2:$C$65536,IF(dati_pdc!$C702=2,dati_bdv!$D$2:$D$65536,IF(dati_pdc!$C702=3,dati_bdv!$E$2:$E$65536,IF(dati_pdc!$C702=4,dati_bdv!$F$2:$F$65536,IF(dati_pdc!$C702=5,dati_bdv!$G$2:$G$65536,dati_bdv!$H$2:$H$65536))))),$A702,dati_bdv!N$2:N$65536)","v":0}]
[{"$f":"dati_pdc!A703","v":0},{"$f":"SUMIF(IF(dati_pdc!$C703=1,dati_bdv!$C$2:$C$65536,IF(dati_pdc!$C703=2,dati_bdv!$D$2:$D$65536,IF(dati_pdc!$C703=3,dati_bdv!$E$2:$E$65536,IF(dati_pdc!$C703=4,dati_bdv!$F$2:$F$65536,IF(dati_pdc!$C703=5,dati_bdv!$G$2:$G$65536,dati_bdv!$H$2:$H$65536))))),$A703,dati_bdv!J$2:J$65536)","v":0},{"$f":"SUMIF(IF(dati_pdc!$C703=1,dati_bdv!$C$2:$C$65536,IF(dati_pdc!$C703=2,dati_bdv!$D$2:$D$65536,IF(dati_pdc!$C703=3,dati_bdv!$E$2:$E$65536,IF(dati_pdc!$C703=4,dati_bdv!$F$2:$F$65536,IF(dati_pdc!$C703=5,dati_bdv!$G$2:$G$65536,dati_bdv!$H$2:$H$65536))))),$A703,dati_bdv!K$2:K$65536)","v":0},{"$f":"SUMIF(IF(dati_pdc!$C703=1,dati_bdv!$C$2:$C$65536,IF(dati_pdc!$C703=2,dati_bdv!$D$2:$D$65536,IF(dati_pdc!$C703=3,dati_bdv!$E$2:$E$65536,IF(dati_pdc!$C703=4,dati_bdv!$F$2:$F$65536,IF(dati_pdc!$C703=5,dati_bdv!$G$2:$G$65536,dati_bdv!$H$2:$H$65536))))),$A703,dati_bdv!L$2:L$65536)","v":0},{"$f":"SUMIF(IF(dati_pdc!$C703=1,dati_bdv!$C$2:$C$65536,IF(dati_pdc!$C703=2,dati_bdv!$D$2:$D$65536,IF(dati_pdc!$C703=3,dati_bdv!$E$2:$E$65536,IF(dati_pdc!$C703=4,dati_bdv!$F$2:$F$65536,IF(dati_pdc!$C703=5,dati_bdv!$G$2:$G$65536,dati_bdv!$H$2:$H$65536))))),$A703,dati_bdv!M$2:M$65536)","v":0},{"$f":"SUMIF(IF(dati_pdc!$C703=1,dati_bdv!$C$2:$C$65536,IF(dati_pdc!$C703=2,dati_bdv!$D$2:$D$65536,IF(dati_pdc!$C703=3,dati_bdv!$E$2:$E$65536,IF(dati_pdc!$C703=4,dati_bdv!$F$2:$F$65536,IF(dati_pdc!$C703=5,dati_bdv!$G$2:$G$65536,dati_bdv!$H$2:$H$65536))))),$A703,dati_bdv!N$2:N$65536)","v":0}]
[{"$f":"dati_pdc!A704","v":0},{"$f":"SUMIF(IF(dati_pdc!$C704=1,dati_bdv!$C$2:$C$65536,IF(dati_pdc!$C704=2,dati_bdv!$D$2:$D$65536,IF(dati_pdc!$C704=3,dati_bdv!$E$2:$E$65536,IF(dati_pdc!$C704=4,dati_bdv!$F$2:$F$65536,IF(dati_pdc!$C704=5,dati_bdv!$G$2:$G$65536,dati_bdv!$H$2:$H$65536))))),$A704,dati_bdv!J$2:J$65536)","v":0},{"$f":"SUMIF(IF(dati_pdc!$C704=1,dati_bdv!$C$2:$C$65536,IF(dati_pdc!$C704=2,dati_bdv!$D$2:$D$65536,IF(dati_pdc!$C704=3,dati_bdv!$E$2:$E$65536,IF(dati_pdc!$C704=4,dati_bdv!$F$2:$F$65536,IF(dati_pdc!$C704=5,dati_bdv!$G$2:$G$65536,dati_bdv!$H$2:$H$65536))))),$A704,dati_bdv!K$2:K$65536)","v":0},{"$f":"SUMIF(IF(dati_pdc!$C704=1,dati_bdv!$C$2:$C$65536,IF(dati_pdc!$C704=2,dati_bdv!$D$2:$D$65536,IF(dati_pdc!$C704=3,dati_bdv!$E$2:$E$65536,IF(dati_pdc!$C704=4,dati_bdv!$F$2:$F$65536,IF(dati_pdc!$C704=5,dati_bdv!$G$2:$G$65536,dati_bdv!$H$2:$H$65536))))),$A704,dati_bdv!L$2:L$65536)","v":0},{"$f":"SUMIF(IF(dati_pdc!$C704=1,dati_bdv!$C$2:$C$65536,IF(dati_pdc!$C704=2,dati_bdv!$D$2:$D$65536,IF(dati_pdc!$C704=3,dati_bdv!$E$2:$E$65536,IF(dati_pdc!$C704=4,dati_bdv!$F$2:$F$65536,IF(dati_pdc!$C704=5,dati_bdv!$G$2:$G$65536,dati_bdv!$H$2:$H$65536))))),$A704,dati_bdv!M$2:M$65536)","v":0},{"$f":"SUMIF(IF(dati_pdc!$C704=1,dati_bdv!$C$2:$C$65536,IF(dati_pdc!$C704=2,dati_bdv!$D$2:$D$65536,IF(dati_pdc!$C704=3,dati_bdv!$E$2:$E$65536,IF(dati_pdc!$C704=4,dati_bdv!$F$2:$F$65536,IF(dati_pdc!$C704=5,dati_bdv!$G$2:$G$65536,dati_bdv!$H$2:$H$65536))))),$A704,dati_bdv!N$2:N$65536)","v":0}]
[{"$f":"dati_pdc!A705","v":0},{"$f":"SUMIF(IF(dati_pdc!$C705=1,dati_bdv!$C$2:$C$65536,IF(dati_pdc!$C705=2,dati_bdv!$D$2:$D$65536,IF(dati_pdc!$C705=3,dati_bdv!$E$2:$E$65536,IF(dati_pdc!$C705=4,dati_bdv!$F$2:$F$65536,IF(dati_pdc!$C705=5,dati_bdv!$G$2:$G$65536,dati_bdv!$H$2:$H$65536))))),$A705,dati_bdv!J$2:J$65536)","v":0},{"$f":"SUMIF(IF(dati_pdc!$C705=1,dati_bdv!$C$2:$C$65536,IF(dati_pdc!$C705=2,dati_bdv!$D$2:$D$65536,IF(dati_pdc!$C705=3,dati_bdv!$E$2:$E$65536,IF(dati_pdc!$C705=4,dati_bdv!$F$2:$F$65536,IF(dati_pdc!$C705=5,dati_bdv!$G$2:$G$65536,dati_bdv!$H$2:$H$65536))))),$A705,dati_bdv!K$2:K$65536)","v":0},{"$f":"SUMIF(IF(dati_pdc!$C705=1,dati_bdv!$C$2:$C$65536,IF(dati_pdc!$C705=2,dati_bdv!$D$2:$D$65536,IF(dati_pdc!$C705=3,dati_bdv!$E$2:$E$65536,IF(dati_pdc!$C705=4,dati_bdv!$F$2:$F$65536,IF(dati_pdc!$C705=5,dati_bdv!$G$2:$G$65536,dati_bdv!$H$2:$H$65536))))),$A705,dati_bdv!L$2:L$65536)","v":0},{"$f":"SUMIF(IF(dati_pdc!$C705=1,dati_bdv!$C$2:$C$65536,IF(dati_pdc!$C705=2,dati_bdv!$D$2:$D$65536,IF(dati_pdc!$C705=3,dati_bdv!$E$2:$E$65536,IF(dati_pdc!$C705=4,dati_bdv!$F$2:$F$65536,IF(dati_pdc!$C705=5,dati_bdv!$G$2:$G$65536,dati_bdv!$H$2:$H$65536))))),$A705,dati_bdv!M$2:M$65536)","v":0},{"$f":"SUMIF(IF(dati_pdc!$C705=1,dati_bdv!$C$2:$C$65536,IF(dati_pdc!$C705=2,dati_bdv!$D$2:$D$65536,IF(dati_pdc!$C705=3,dati_bdv!$E$2:$E$65536,IF(dati_pdc!$C705=4,dati_bdv!$F$2:$F$65536,IF(dati_pdc!$C705=5,dati_bdv!$G$2:$G$65536,dati_bdv!$H$2:$H$65536))))),$A705,dati_bdv!N$2:N$65536)","v":0}]
[{"$f":"dati_pdc!A706","v":0},{"$f":"SUMIF(IF(dati_pdc!$C706=1,dati_bdv!$C$2:$C$65536,IF(dati_pdc!$C706=2,dati_bdv!$D$2:$D$65536,IF(dati_pdc!$C706=3,dati_bdv!$E$2:$E$65536,IF(dati_pdc!$C706=4,dati_bdv!$F$2:$F$65536,IF(dati_pdc!$C706=5,dati_bdv!$G$2:$G$65536,dati_bdv!$H$2:$H$65536))))),$A706,dati_bdv!J$2:J$65536)","v":0},{"$f":"SUMIF(IF(dati_pdc!$C706=1,dati_bdv!$C$2:$C$65536,IF(dati_pdc!$C706=2,dati_bdv!$D$2:$D$65536,IF(dati_pdc!$C706=3,dati_bdv!$E$2:$E$65536,IF(dati_pdc!$C706=4,dati_bdv!$F$2:$F$65536,IF(dati_pdc!$C706=5,dati_bdv!$G$2:$G$65536,dati_bdv!$H$2:$H$65536))))),$A706,dati_bdv!K$2:K$65536)","v":0},{"$f":"SUMIF(IF(dati_pdc!$C706=1,dati_bdv!$C$2:$C$65536,IF(dati_pdc!$C706=2,dati_bdv!$D$2:$D$65536,IF(dati_pdc!$C706=3,dati_bdv!$E$2:$E$65536,IF(dati_pdc!$C706=4,dati_bdv!$F$2:$F$65536,IF(dati_pdc!$C706=5,dati_bdv!$G$2:$G$65536,dati_bdv!$H$2:$H$65536))))),$A706,dati_bdv!L$2:L$65536)","v":0},{"$f":"SUMIF(IF(dati_pdc!$C706=1,dati_bdv!$C$2:$C$65536,IF(dati_pdc!$C706=2,dati_bdv!$D$2:$D$65536,IF(dati_pdc!$C706=3,dati_bdv!$E$2:$E$65536,IF(dati_pdc!$C706=4,dati_bdv!$F$2:$F$65536,IF(dati_pdc!$C706=5,dati_bdv!$G$2:$G$65536,dati_bdv!$H$2:$H$65536))))),$A706,dati_bdv!M$2:M$65536)","v":0},{"$f":"SUMIF(IF(dati_pdc!$C706=1,dati_bdv!$C$2:$C$65536,IF(dati_pdc!$C706=2,dati_bdv!$D$2:$D$65536,IF(dati_pdc!$C706=3,dati_bdv!$E$2:$E$65536,IF(dati_pdc!$C706=4,dati_bdv!$F$2:$F$65536,IF(dati_pdc!$C706=5,dati_bdv!$G$2:$G$65536,dati_bdv!$H$2:$H$65536))))),$A706,dati_bdv!N$2:N$65536)","v":0}]
[{"$f":"dati_pdc!A707","v":0},{"$f":"SUMIF(IF(dati_pdc!$C707=1,dati_bdv!$C$2:$C$65536,IF(dati_pdc!$C707=2,dati_bdv!$D$2:$D$65536,IF(dati_pdc!$C707=3,dati_bdv!$E$2:$E$65536,IF(dati_pdc!$C707=4,dati_bdv!$F$2:$F$65536,IF(dati_pdc!$C707=5,dati_bdv!$G$2:$G$65536,dati_bdv!$H$2:$H$65536))))),$A707,dati_bdv!J$2:J$65536)","v":0},{"$f":"SUMIF(IF(dati_pdc!$C707=1,dati_bdv!$C$2:$C$65536,IF(dati_pdc!$C707=2,dati_bdv!$D$2:$D$65536,IF(dati_pdc!$C707=3,dati_bdv!$E$2:$E$65536,IF(dati_pdc!$C707=4,dati_bdv!$F$2:$F$65536,IF(dati_pdc!$C707=5,dati_bdv!$G$2:$G$65536,dati_bdv!$H$2:$H$65536))))),$A707,dati_bdv!K$2:K$65536)","v":0},{"$f":"SUMIF(IF(dati_pdc!$C707=1,dati_bdv!$C$2:$C$65536,IF(dati_pdc!$C707=2,dati_bdv!$D$2:$D$65536,IF(dati_pdc!$C707=3,dati_bdv!$E$2:$E$65536,IF(dati_pdc!$C707=4,dati_bdv!$F$2:$F$65536,IF(dati_pdc!$C707=5,dati_bdv!$G$2:$G$65536,dati_bdv!$H$2:$H$65536))))),$A707,dati_bdv!L$2:L$65536)","v":0},{"$f":"SUMIF(IF(dati_pdc!$C707=1,dati_bdv!$C$2:$C$65536,IF(dati_pdc!$C707=2,dati_bdv!$D$2:$D$65536,IF(dati_pdc!$C707=3,dati_bdv!$E$2:$E$65536,IF(dati_pdc!$C707=4,dati_bdv!$F$2:$F$65536,IF(dati_pdc!$C707=5,dati_bdv!$G$2:$G$65536,dati_bdv!$H$2:$H$65536))))),$A707,dati_bdv!M$2:M$65536)","v":0},{"$f":"SUMIF(IF(dati_pdc!$C707=1,dati_bdv!$C$2:$C$65536,IF(dati_pdc!$C707=2,dati_bdv!$D$2:$D$65536,IF(dati_pdc!$C707=3,dati_bdv!$E$2:$E$65536,IF(dati_pdc!$C707=4,dati_bdv!$F$2:$F$65536,IF(dati_pdc!$C707=5,dati_bdv!$G$2:$G$65536,dati_bdv!$H$2:$H$65536))))),$A707,dati_bdv!N$2:N$65536)","v":0}]
[{"$f":"dati_pdc!A708","v":0},{"$f":"SUMIF(IF(dati_pdc!$C708=1,dati_bdv!$C$2:$C$65536,IF(dati_pdc!$C708=2,dati_bdv!$D$2:$D$65536,IF(dati_pdc!$C708=3,dati_bdv!$E$2:$E$65536,IF(dati_pdc!$C708=4,dati_bdv!$F$2:$F$65536,IF(dati_pdc!$C708=5,dati_bdv!$G$2:$G$65536,dati_bdv!$H$2:$H$65536))))),$A708,dati_bdv!J$2:J$65536)","v":0},{"$f":"SUMIF(IF(dati_pdc!$C708=1,dati_bdv!$C$2:$C$65536,IF(dati_pdc!$C708=2,dati_bdv!$D$2:$D$65536,IF(dati_pdc!$C708=3,dati_bdv!$E$2:$E$65536,IF(dati_pdc!$C708=4,dati_bdv!$F$2:$F$65536,IF(dati_pdc!$C708=5,dati_bdv!$G$2:$G$65536,dati_bdv!$H$2:$H$65536))))),$A708,dati_bdv!K$2:K$65536)","v":0},{"$f":"SUMIF(IF(dati_pdc!$C708=1,dati_bdv!$C$2:$C$65536,IF(dati_pdc!$C708=2,dati_bdv!$D$2:$D$65536,IF(dati_pdc!$C708=3,dati_bdv!$E$2:$E$65536,IF(dati_pdc!$C708=4,dati_bdv!$F$2:$F$65536,IF(dati_pdc!$C708=5,dati_bdv!$G$2:$G$65536,dati_bdv!$H$2:$H$65536))))),$A708,dati_bdv!L$2:L$65536)","v":0},{"$f":"SUMIF(IF(dati_pdc!$C708=1,dati_bdv!$C$2:$C$65536,IF(dati_pdc!$C708=2,dati_bdv!$D$2:$D$65536,IF(dati_pdc!$C708=3,dati_bdv!$E$2:$E$65536,IF(dati_pdc!$C708=4,dati_bdv!$F$2:$F$65536,IF(dati_pdc!$C708=5,dati_bdv!$G$2:$G$65536,dati_bdv!$H$2:$H$65536))))),$A708,dati_bdv!M$2:M$65536)","v":0},{"$f":"SUMIF(IF(dati_pdc!$C708=1,dati_bdv!$C$2:$C$65536,IF(dati_pdc!$C708=2,dati_bdv!$D$2:$D$65536,IF(dati_pdc!$C708=3,dati_bdv!$E$2:$E$65536,IF(dati_pdc!$C708=4,dati_bdv!$F$2:$F$65536,IF(dati_pdc!$C708=5,dati_bdv!$G$2:$G$65536,dati_bdv!$H$2:$H$65536))))),$A708,dati_bdv!N$2:N$65536)","v":0}]
[{"$f":"dati_pdc!A709","v":0},{"$f":"SUMIF(IF(dati_pdc!$C709=1,dati_bdv!$C$2:$C$65536,IF(dati_pdc!$C709=2,dati_bdv!$D$2:$D$65536,IF(dati_pdc!$C709=3,dati_bdv!$E$2:$E$65536,IF(dati_pdc!$C709=4,dati_bdv!$F$2:$F$65536,IF(dati_pdc!$C709=5,dati_bdv!$G$2:$G$65536,dati_bdv!$H$2:$H$65536))))),$A709,dati_bdv!J$2:J$65536)","v":0},{"$f":"SUMIF(IF(dati_pdc!$C709=1,dati_bdv!$C$2:$C$65536,IF(dati_pdc!$C709=2,dati_bdv!$D$2:$D$65536,IF(dati_pdc!$C709=3,dati_bdv!$E$2:$E$65536,IF(dati_pdc!$C709=4,dati_bdv!$F$2:$F$65536,IF(dati_pdc!$C709=5,dati_bdv!$G$2:$G$65536,dati_bdv!$H$2:$H$65536))))),$A709,dati_bdv!K$2:K$65536)","v":0},{"$f":"SUMIF(IF(dati_pdc!$C709=1,dati_bdv!$C$2:$C$65536,IF(dati_pdc!$C709=2,dati_bdv!$D$2:$D$65536,IF(dati_pdc!$C709=3,dati_bdv!$E$2:$E$65536,IF(dati_pdc!$C709=4,dati_bdv!$F$2:$F$65536,IF(dati_pdc!$C709=5,dati_bdv!$G$2:$G$65536,dati_bdv!$H$2:$H$65536))))),$A709,dati_bdv!L$2:L$65536)","v":0},{"$f":"SUMIF(IF(dati_pdc!$C709=1,dati_bdv!$C$2:$C$65536,IF(dati_pdc!$C709=2,dati_bdv!$D$2:$D$65536,IF(dati_pdc!$C709=3,dati_bdv!$E$2:$E$65536,IF(dati_pdc!$C709=4,dati_bdv!$F$2:$F$65536,IF(dati_pdc!$C709=5,dati_bdv!$G$2:$G$65536,dati_bdv!$H$2:$H$65536))))),$A709,dati_bdv!M$2:M$65536)","v":0},{"$f":"SUMIF(IF(dati_pdc!$C709=1,dati_bdv!$C$2:$C$65536,IF(dati_pdc!$C709=2,dati_bdv!$D$2:$D$65536,IF(dati_pdc!$C709=3,dati_bdv!$E$2:$E$65536,IF(dati_pdc!$C709=4,dati_bdv!$F$2:$F$65536,IF(dati_pdc!$C709=5,dati_bdv!$G$2:$G$65536,dati_bdv!$H$2:$H$65536))))),$A709,dati_bdv!N$2:N$65536)","v":0}]
[{"$f":"dati_pdc!A710","v":0},{"$f":"SUMIF(IF(dati_pdc!$C710=1,dati_bdv!$C$2:$C$65536,IF(dati_pdc!$C710=2,dati_bdv!$D$2:$D$65536,IF(dati_pdc!$C710=3,dati_bdv!$E$2:$E$65536,IF(dati_pdc!$C710=4,dati_bdv!$F$2:$F$65536,IF(dati_pdc!$C710=5,dati_bdv!$G$2:$G$65536,dati_bdv!$H$2:$H$65536))))),$A710,dati_bdv!J$2:J$65536)","v":0},{"$f":"SUMIF(IF(dati_pdc!$C710=1,dati_bdv!$C$2:$C$65536,IF(dati_pdc!$C710=2,dati_bdv!$D$2:$D$65536,IF(dati_pdc!$C710=3,dati_bdv!$E$2:$E$65536,IF(dati_pdc!$C710=4,dati_bdv!$F$2:$F$65536,IF(dati_pdc!$C710=5,dati_bdv!$G$2:$G$65536,dati_bdv!$H$2:$H$65536))))),$A710,dati_bdv!K$2:K$65536)","v":0},{"$f":"SUMIF(IF(dati_pdc!$C710=1,dati_bdv!$C$2:$C$65536,IF(dati_pdc!$C710=2,dati_bdv!$D$2:$D$65536,IF(dati_pdc!$C710=3,dati_bdv!$E$2:$E$65536,IF(dati_pdc!$C710=4,dati_bdv!$F$2:$F$65536,IF(dati_pdc!$C710=5,dati_bdv!$G$2:$G$65536,dati_bdv!$H$2:$H$65536))))),$A710,dati_bdv!L$2:L$65536)","v":0},{"$f":"SUMIF(IF(dati_pdc!$C710=1,dati_bdv!$C$2:$C$65536,IF(dati_pdc!$C710=2,dati_bdv!$D$2:$D$65536,IF(dati_pdc!$C710=3,dati_bdv!$E$2:$E$65536,IF(dati_pdc!$C710=4,dati_bdv!$F$2:$F$65536,IF(dati_pdc!$C710=5,dati_bdv!$G$2:$G$65536,dati_bdv!$H$2:$H$65536))))),$A710,dati_bdv!M$2:M$65536)","v":0},{"$f":"SUMIF(IF(dati_pdc!$C710=1,dati_bdv!$C$2:$C$65536,IF(dati_pdc!$C710=2,dati_bdv!$D$2:$D$65536,IF(dati_pdc!$C710=3,dati_bdv!$E$2:$E$65536,IF(dati_pdc!$C710=4,dati_bdv!$F$2:$F$65536,IF(dati_pdc!$C710=5,dati_bdv!$G$2:$G$65536,dati_bdv!$H$2:$H$65536))))),$A710,dati_bdv!N$2:N$65536)","v":0}]
[{"$f":"dati_pdc!A711","v":0},{"$f":"SUMIF(IF(dati_pdc!$C711=1,dati_bdv!$C$2:$C$65536,IF(dati_pdc!$C711=2,dati_bdv!$D$2:$D$65536,IF(dati_pdc!$C711=3,dati_bdv!$E$2:$E$65536,IF(dati_pdc!$C711=4,dati_bdv!$F$2:$F$65536,IF(dati_pdc!$C711=5,dati_bdv!$G$2:$G$65536,dati_bdv!$H$2:$H$65536))))),$A711,dati_bdv!J$2:J$65536)","v":0},{"$f":"SUMIF(IF(dati_pdc!$C711=1,dati_bdv!$C$2:$C$65536,IF(dati_pdc!$C711=2,dati_bdv!$D$2:$D$65536,IF(dati_pdc!$C711=3,dati_bdv!$E$2:$E$65536,IF(dati_pdc!$C711=4,dati_bdv!$F$2:$F$65536,IF(dati_pdc!$C711=5,dati_bdv!$G$2:$G$65536,dati_bdv!$H$2:$H$65536))))),$A711,dati_bdv!K$2:K$65536)","v":0},{"$f":"SUMIF(IF(dati_pdc!$C711=1,dati_bdv!$C$2:$C$65536,IF(dati_pdc!$C711=2,dati_bdv!$D$2:$D$65536,IF(dati_pdc!$C711=3,dati_bdv!$E$2:$E$65536,IF(dati_pdc!$C711=4,dati_bdv!$F$2:$F$65536,IF(dati_pdc!$C711=5,dati_bdv!$G$2:$G$65536,dati_bdv!$H$2:$H$65536))))),$A711,dati_bdv!L$2:L$65536)","v":0},{"$f":"SUMIF(IF(dati_pdc!$C711=1,dati_bdv!$C$2:$C$65536,IF(dati_pdc!$C711=2,dati_bdv!$D$2:$D$65536,IF(dati_pdc!$C711=3,dati_bdv!$E$2:$E$65536,IF(dati_pdc!$C711=4,dati_bdv!$F$2:$F$65536,IF(dati_pdc!$C711=5,dati_bdv!$G$2:$G$65536,dati_bdv!$H$2:$H$65536))))),$A711,dati_bdv!M$2:M$65536)","v":0},{"$f":"SUMIF(IF(dati_pdc!$C711=1,dati_bdv!$C$2:$C$65536,IF(dati_pdc!$C711=2,dati_bdv!$D$2:$D$65536,IF(dati_pdc!$C711=3,dati_bdv!$E$2:$E$65536,IF(dati_pdc!$C711=4,dati_bdv!$F$2:$F$65536,IF(dati_pdc!$C711=5,dati_bdv!$G$2:$G$65536,dati_bdv!$H$2:$H$65536))))),$A711,dati_bdv!N$2:N$65536)","v":0}]
[{"$f":"dati_pdc!A712","v":0},{"$f":"SUMIF(IF(dati_pdc!$C712=1,dati_bdv!$C$2:$C$65536,IF(dati_pdc!$C712=2,dati_bdv!$D$2:$D$65536,IF(dati_pdc!$C712=3,dati_bdv!$E$2:$E$65536,IF(dati_pdc!$C712=4,dati_bdv!$F$2:$F$65536,IF(dati_pdc!$C712=5,dati_bdv!$G$2:$G$65536,dati_bdv!$H$2:$H$65536))))),$A712,dati_bdv!J$2:J$65536)","v":0},{"$f":"SUMIF(IF(dati_pdc!$C712=1,dati_bdv!$C$2:$C$65536,IF(dati_pdc!$C712=2,dati_bdv!$D$2:$D$65536,IF(dati_pdc!$C712=3,dati_bdv!$E$2:$E$65536,IF(dati_pdc!$C712=4,dati_bdv!$F$2:$F$65536,IF(dati_pdc!$C712=5,dati_bdv!$G$2:$G$65536,dati_bdv!$H$2:$H$65536))))),$A712,dati_bdv!K$2:K$65536)","v":0},{"$f":"SUMIF(IF(dati_pdc!$C712=1,dati_bdv!$C$2:$C$65536,IF(dati_pdc!$C712=2,dati_bdv!$D$2:$D$65536,IF(dati_pdc!$C712=3,dati_bdv!$E$2:$E$65536,IF(dati_pdc!$C712=4,dati_bdv!$F$2:$F$65536,IF(dati_pdc!$C712=5,dati_bdv!$G$2:$G$65536,dati_bdv!$H$2:$H$65536))))),$A712,dati_bdv!L$2:L$65536)","v":0},{"$f":"SUMIF(IF(dati_pdc!$C712=1,dati_bdv!$C$2:$C$65536,IF(dati_pdc!$C712=2,dati_bdv!$D$2:$D$65536,IF(dati_pdc!$C712=3,dati_bdv!$E$2:$E$65536,IF(dati_pdc!$C712=4,dati_bdv!$F$2:$F$65536,IF(dati_pdc!$C712=5,dati_bdv!$G$2:$G$65536,dati_bdv!$H$2:$H$65536))))),$A712,dati_bdv!M$2:M$65536)","v":0},{"$f":"SUMIF(IF(dati_pdc!$C712=1,dati_bdv!$C$2:$C$65536,IF(dati_pdc!$C712=2,dati_bdv!$D$2:$D$65536,IF(dati_pdc!$C712=3,dati_bdv!$E$2:$E$65536,IF(dati_pdc!$C712=4,dati_bdv!$F$2:$F$65536,IF(dati_pdc!$C712=5,dati_bdv!$G$2:$G$65536,dati_bdv!$H$2:$H$65536))))),$A712,dati_bdv!N$2:N$65536)","v":0}]
[{"$f":"dati_pdc!A713","v":0},{"$f":"SUMIF(IF(dati_pdc!$C713=1,dati_bdv!$C$2:$C$65536,IF(dati_pdc!$C713=2,dati_bdv!$D$2:$D$65536,IF(dati_pdc!$C713=3,dati_bdv!$E$2:$E$65536,IF(dati_pdc!$C713=4,dati_bdv!$F$2:$F$65536,IF(dati_pdc!$C713=5,dati_bdv!$G$2:$G$65536,dati_bdv!$H$2:$H$65536))))),$A713,dati_bdv!J$2:J$65536)","v":0},{"$f":"SUMIF(IF(dati_pdc!$C713=1,dati_bdv!$C$2:$C$65536,IF(dati_pdc!$C713=2,dati_bdv!$D$2:$D$65536,IF(dati_pdc!$C713=3,dati_bdv!$E$2:$E$65536,IF(dati_pdc!$C713=4,dati_bdv!$F$2:$F$65536,IF(dati_pdc!$C713=5,dati_bdv!$G$2:$G$65536,dati_bdv!$H$2:$H$65536))))),$A713,dati_bdv!K$2:K$65536)","v":0},{"$f":"SUMIF(IF(dati_pdc!$C713=1,dati_bdv!$C$2:$C$65536,IF(dati_pdc!$C713=2,dati_bdv!$D$2:$D$65536,IF(dati_pdc!$C713=3,dati_bdv!$E$2:$E$65536,IF(dati_pdc!$C713=4,dati_bdv!$F$2:$F$65536,IF(dati_pdc!$C713=5,dati_bdv!$G$2:$G$65536,dati_bdv!$H$2:$H$65536))))),$A713,dati_bdv!L$2:L$65536)","v":0},{"$f":"SUMIF(IF(dati_pdc!$C713=1,dati_bdv!$C$2:$C$65536,IF(dati_pdc!$C713=2,dati_bdv!$D$2:$D$65536,IF(dati_pdc!$C713=3,dati_bdv!$E$2:$E$65536,IF(dati_pdc!$C713=4,dati_bdv!$F$2:$F$65536,IF(dati_pdc!$C713=5,dati_bdv!$G$2:$G$65536,dati_bdv!$H$2:$H$65536))))),$A713,dati_bdv!M$2:M$65536)","v":0},{"$f":"SUMIF(IF(dati_pdc!$C713=1,dati_bdv!$C$2:$C$65536,IF(dati_pdc!$C713=2,dati_bdv!$D$2:$D$65536,IF(dati_pdc!$C713=3,dati_bdv!$E$2:$E$65536,IF(dati_pdc!$C713=4,dati_bdv!$F$2:$F$65536,IF(dati_pdc!$C713=5,dati_bdv!$G$2:$G$65536,dati_bdv!$H$2:$H$65536))))),$A713,dati_bdv!N$2:N$65536)","v":0}]
[{"$f":"dati_pdc!A714","v":0},{"$f":"SUMIF(IF(dati_pdc!$C714=1,dati_bdv!$C$2:$C$65536,IF(dati_pdc!$C714=2,dati_bdv!$D$2:$D$65536,IF(dati_pdc!$C714=3,dati_bdv!$E$2:$E$65536,IF(dati_pdc!$C714=4,dati_bdv!$F$2:$F$65536,IF(dati_pdc!$C714=5,dati_bdv!$G$2:$G$65536,dati_bdv!$H$2:$H$65536))))),$A714,dati_bdv!J$2:J$65536)","v":0},{"$f":"SUMIF(IF(dati_pdc!$C714=1,dati_bdv!$C$2:$C$65536,IF(dati_pdc!$C714=2,dati_bdv!$D$2:$D$65536,IF(dati_pdc!$C714=3,dati_bdv!$E$2:$E$65536,IF(dati_pdc!$C714=4,dati_bdv!$F$2:$F$65536,IF(dati_pdc!$C714=5,dati_bdv!$G$2:$G$65536,dati_bdv!$H$2:$H$65536))))),$A714,dati_bdv!K$2:K$65536)","v":0},{"$f":"SUMIF(IF(dati_pdc!$C714=1,dati_bdv!$C$2:$C$65536,IF(dati_pdc!$C714=2,dati_bdv!$D$2:$D$65536,IF(dati_pdc!$C714=3,dati_bdv!$E$2:$E$65536,IF(dati_pdc!$C714=4,dati_bdv!$F$2:$F$65536,IF(dati_pdc!$C714=5,dati_bdv!$G$2:$G$65536,dati_bdv!$H$2:$H$65536))))),$A714,dati_bdv!L$2:L$65536)","v":0},{"$f":"SUMIF(IF(dati_pdc!$C714=1,dati_bdv!$C$2:$C$65536,IF(dati_pdc!$C714=2,dati_bdv!$D$2:$D$65536,IF(dati_pdc!$C714=3,dati_bdv!$E$2:$E$65536,IF(dati_pdc!$C714=4,dati_bdv!$F$2:$F$65536,IF(dati_pdc!$C714=5,dati_bdv!$G$2:$G$65536,dati_bdv!$H$2:$H$65536))))),$A714,dati_bdv!M$2:M$65536)","v":0},{"$f":"SUMIF(IF(dati_pdc!$C714=1,dati_bdv!$C$2:$C$65536,IF(dati_pdc!$C714=2,dati_bdv!$D$2:$D$65536,IF(dati_pdc!$C714=3,dati_bdv!$E$2:$E$65536,IF(dati_pdc!$C714=4,dati_bdv!$F$2:$F$65536,IF(dati_pdc!$C714=5,dati_bdv!$G$2:$G$65536,dati_bdv!$H$2:$H$65536))))),$A714,dati_bdv!N$2:N$65536)","v":0}]
[{"$f":"dati_pdc!A715","v":0},{"$f":"SUMIF(IF(dati_pdc!$C715=1,dati_bdv!$C$2:$C$65536,IF(dati_pdc!$C715=2,dati_bdv!$D$2:$D$65536,IF(dati_pdc!$C715=3,dati_bdv!$E$2:$E$65536,IF(dati_pdc!$C715=4,dati_bdv!$F$2:$F$65536,IF(dati_pdc!$C715=5,dati_bdv!$G$2:$G$65536,dati_bdv!$H$2:$H$65536))))),$A715,dati_bdv!J$2:J$65536)","v":0},{"$f":"SUMIF(IF(dati_pdc!$C715=1,dati_bdv!$C$2:$C$65536,IF(dati_pdc!$C715=2,dati_bdv!$D$2:$D$65536,IF(dati_pdc!$C715=3,dati_bdv!$E$2:$E$65536,IF(dati_pdc!$C715=4,dati_bdv!$F$2:$F$65536,IF(dati_pdc!$C715=5,dati_bdv!$G$2:$G$65536,dati_bdv!$H$2:$H$65536))))),$A715,dati_bdv!K$2:K$65536)","v":0},{"$f":"SUMIF(IF(dati_pdc!$C715=1,dati_bdv!$C$2:$C$65536,IF(dati_pdc!$C715=2,dati_bdv!$D$2:$D$65536,IF(dati_pdc!$C715=3,dati_bdv!$E$2:$E$65536,IF(dati_pdc!$C715=4,dati_bdv!$F$2:$F$65536,IF(dati_pdc!$C715=5,dati_bdv!$G$2:$G$65536,dati_bdv!$H$2:$H$65536))))),$A715,dati_bdv!L$2:L$65536)","v":0},{"$f":"SUMIF(IF(dati_pdc!$C715=1,dati_bdv!$C$2:$C$65536,IF(dati_pdc!$C715=2,dati_bdv!$D$2:$D$65536,IF(dati_pdc!$C715=3,dati_bdv!$E$2:$E$65536,IF(dati_pdc!$C715=4,dati_bdv!$F$2:$F$65536,IF(dati_pdc!$C715=5,dati_bdv!$G$2:$G$65536,dati_bdv!$H$2:$H$65536))))),$A715,dati_bdv!M$2:M$65536)","v":0},{"$f":"SUMIF(IF(dati_pdc!$C715=1,dati_bdv!$C$2:$C$65536,IF(dati_pdc!$C715=2,dati_bdv!$D$2:$D$65536,IF(dati_pdc!$C715=3,dati_bdv!$E$2:$E$65536,IF(dati_pdc!$C715=4,dati_bdv!$F$2:$F$65536,IF(dati_pdc!$C715=5,dati_bdv!$G$2:$G$65536,dati_bdv!$H$2:$H$65536))))),$A715,dati_bdv!N$2:N$65536)","v":0}]
[{"$f":"dati_pdc!A716","v":0},{"$f":"SUMIF(IF(dati_pdc!$C716=1,dati_bdv!$C$2:$C$65536,IF(dati_pdc!$C716=2,dati_bdv!$D$2:$D$65536,IF(dati_pdc!$C716=3,dati_bdv!$E$2:$E$65536,IF(dati_pdc!$C716=4,dati_bdv!$F$2:$F$65536,IF(dati_pdc!$C716=5,dati_bdv!$G$2:$G$65536,dati_bdv!$H$2:$H$65536))))),$A716,dati_bdv!J$2:J$65536)","v":0},{"$f":"SUMIF(IF(dati_pdc!$C716=1,dati_bdv!$C$2:$C$65536,IF(dati_pdc!$C716=2,dati_bdv!$D$2:$D$65536,IF(dati_pdc!$C716=3,dati_bdv!$E$2:$E$65536,IF(dati_pdc!$C716=4,dati_bdv!$F$2:$F$65536,IF(dati_pdc!$C716=5,dati_bdv!$G$2:$G$65536,dati_bdv!$H$2:$H$65536))))),$A716,dati_bdv!K$2:K$65536)","v":0},{"$f":"SUMIF(IF(dati_pdc!$C716=1,dati_bdv!$C$2:$C$65536,IF(dati_pdc!$C716=2,dati_bdv!$D$2:$D$65536,IF(dati_pdc!$C716=3,dati_bdv!$E$2:$E$65536,IF(dati_pdc!$C716=4,dati_bdv!$F$2:$F$65536,IF(dati_pdc!$C716=5,dati_bdv!$G$2:$G$65536,dati_bdv!$H$2:$H$65536))))),$A716,dati_bdv!L$2:L$65536)","v":0},{"$f":"SUMIF(IF(dati_pdc!$C716=1,dati_bdv!$C$2:$C$65536,IF(dati_pdc!$C716=2,dati_bdv!$D$2:$D$65536,IF(dati_pdc!$C716=3,dati_bdv!$E$2:$E$65536,IF(dati_pdc!$C716=4,dati_bdv!$F$2:$F$65536,IF(dati_pdc!$C716=5,dati_bdv!$G$2:$G$65536,dati_bdv!$H$2:$H$65536))))),$A716,dati_bdv!M$2:M$65536)","v":0},{"$f":"SUMIF(IF(dati_pdc!$C716=1,dati_bdv!$C$2:$C$65536,IF(dati_pdc!$C716=2,dati_bdv!$D$2:$D$65536,IF(dati_pdc!$C716=3,dati_bdv!$E$2:$E$65536,IF(dati_pdc!$C716=4,dati_bdv!$F$2:$F$65536,IF(dati_pdc!$C716=5,dati_bdv!$G$2:$G$65536,dati_bdv!$H$2:$H$65536))))),$A716,dati_bdv!N$2:N$65536)","v":0}]
[{"$f":"dati_pdc!A717","v":0},{"$f":"SUMIF(IF(dati_pdc!$C717=1,dati_bdv!$C$2:$C$65536,IF(dati_pdc!$C717=2,dati_bdv!$D$2:$D$65536,IF(dati_pdc!$C717=3,dati_bdv!$E$2:$E$65536,IF(dati_pdc!$C717=4,dati_bdv!$F$2:$F$65536,IF(dati_pdc!$C717=5,dati_bdv!$G$2:$G$65536,dati_bdv!$H$2:$H$65536))))),$A717,dati_bdv!J$2:J$65536)","v":0},{"$f":"SUMIF(IF(dati_pdc!$C717=1,dati_bdv!$C$2:$C$65536,IF(dati_pdc!$C717=2,dati_bdv!$D$2:$D$65536,IF(dati_pdc!$C717=3,dati_bdv!$E$2:$E$65536,IF(dati_pdc!$C717=4,dati_bdv!$F$2:$F$65536,IF(dati_pdc!$C717=5,dati_bdv!$G$2:$G$65536,dati_bdv!$H$2:$H$65536))))),$A717,dati_bdv!K$2:K$65536)","v":0},{"$f":"SUMIF(IF(dati_pdc!$C717=1,dati_bdv!$C$2:$C$65536,IF(dati_pdc!$C717=2,dati_bdv!$D$2:$D$65536,IF(dati_pdc!$C717=3,dati_bdv!$E$2:$E$65536,IF(dati_pdc!$C717=4,dati_bdv!$F$2:$F$65536,IF(dati_pdc!$C717=5,dati_bdv!$G$2:$G$65536,dati_bdv!$H$2:$H$65536))))),$A717,dati_bdv!L$2:L$65536)","v":0},{"$f":"SUMIF(IF(dati_pdc!$C717=1,dati_bdv!$C$2:$C$65536,IF(dati_pdc!$C717=2,dati_bdv!$D$2:$D$65536,IF(dati_pdc!$C717=3,dati_bdv!$E$2:$E$65536,IF(dati_pdc!$C717=4,dati_bdv!$F$2:$F$65536,IF(dati_pdc!$C717=5,dati_bdv!$G$2:$G$65536,dati_bdv!$H$2:$H$65536))))),$A717,dati_bdv!M$2:M$65536)","v":0},{"$f":"SUMIF(IF(dati_pdc!$C717=1,dati_bdv!$C$2:$C$65536,IF(dati_pdc!$C717=2,dati_bdv!$D$2:$D$65536,IF(dati_pdc!$C717=3,dati_bdv!$E$2:$E$65536,IF(dati_pdc!$C717=4,dati_bdv!$F$2:$F$65536,IF(dati_pdc!$C717=5,dati_bdv!$G$2:$G$65536,dati_bdv!$H$2:$H$65536))))),$A717,dati_bdv!N$2:N$65536)","v":0}]
[{"$f":"dati_pdc!A718","v":0},{"$f":"SUMIF(IF(dati_pdc!$C718=1,dati_bdv!$C$2:$C$65536,IF(dati_pdc!$C718=2,dati_bdv!$D$2:$D$65536,IF(dati_pdc!$C718=3,dati_bdv!$E$2:$E$65536,IF(dati_pdc!$C718=4,dati_bdv!$F$2:$F$65536,IF(dati_pdc!$C718=5,dati_bdv!$G$2:$G$65536,dati_bdv!$H$2:$H$65536))))),$A718,dati_bdv!J$2:J$65536)","v":0},{"$f":"SUMIF(IF(dati_pdc!$C718=1,dati_bdv!$C$2:$C$65536,IF(dati_pdc!$C718=2,dati_bdv!$D$2:$D$65536,IF(dati_pdc!$C718=3,dati_bdv!$E$2:$E$65536,IF(dati_pdc!$C718=4,dati_bdv!$F$2:$F$65536,IF(dati_pdc!$C718=5,dati_bdv!$G$2:$G$65536,dati_bdv!$H$2:$H$65536))))),$A718,dati_bdv!K$2:K$65536)","v":0},{"$f":"SUMIF(IF(dati_pdc!$C718=1,dati_bdv!$C$2:$C$65536,IF(dati_pdc!$C718=2,dati_bdv!$D$2:$D$65536,IF(dati_pdc!$C718=3,dati_bdv!$E$2:$E$65536,IF(dati_pdc!$C718=4,dati_bdv!$F$2:$F$65536,IF(dati_pdc!$C718=5,dati_bdv!$G$2:$G$65536,dati_bdv!$H$2:$H$65536))))),$A718,dati_bdv!L$2:L$65536)","v":0},{"$f":"SUMIF(IF(dati_pdc!$C718=1,dati_bdv!$C$2:$C$65536,IF(dati_pdc!$C718=2,dati_bdv!$D$2:$D$65536,IF(dati_pdc!$C718=3,dati_bdv!$E$2:$E$65536,IF(dati_pdc!$C718=4,dati_bdv!$F$2:$F$65536,IF(dati_pdc!$C718=5,dati_bdv!$G$2:$G$65536,dati_bdv!$H$2:$H$65536))))),$A718,dati_bdv!M$2:M$65536)","v":0},{"$f":"SUMIF(IF(dati_pdc!$C718=1,dati_bdv!$C$2:$C$65536,IF(dati_pdc!$C718=2,dati_bdv!$D$2:$D$65536,IF(dati_pdc!$C718=3,dati_bdv!$E$2:$E$65536,IF(dati_pdc!$C718=4,dati_bdv!$F$2:$F$65536,IF(dati_pdc!$C718=5,dati_bdv!$G$2:$G$65536,dati_bdv!$H$2:$H$65536))))),$A718,dati_bdv!N$2:N$65536)","v":0}]
[{"$f":"dati_pdc!A719","v":0},{"$f":"SUMIF(IF(dati_pdc!$C719=1,dati_bdv!$C$2:$C$65536,IF(dati_pdc!$C719=2,dati_bdv!$D$2:$D$65536,IF(dati_pdc!$C719=3,dati_bdv!$E$2:$E$65536,IF(dati_pdc!$C719=4,dati_bdv!$F$2:$F$65536,IF(dati_pdc!$C719=5,dati_bdv!$G$2:$G$65536,dati_bdv!$H$2:$H$65536))))),$A719,dati_bdv!J$2:J$65536)","v":0},{"$f":"SUMIF(IF(dati_pdc!$C719=1,dati_bdv!$C$2:$C$65536,IF(dati_pdc!$C719=2,dati_bdv!$D$2:$D$65536,IF(dati_pdc!$C719=3,dati_bdv!$E$2:$E$65536,IF(dati_pdc!$C719=4,dati_bdv!$F$2:$F$65536,IF(dati_pdc!$C719=5,dati_bdv!$G$2:$G$65536,dati_bdv!$H$2:$H$65536))))),$A719,dati_bdv!K$2:K$65536)","v":0},{"$f":"SUMIF(IF(dati_pdc!$C719=1,dati_bdv!$C$2:$C$65536,IF(dati_pdc!$C719=2,dati_bdv!$D$2:$D$65536,IF(dati_pdc!$C719=3,dati_bdv!$E$2:$E$65536,IF(dati_pdc!$C719=4,dati_bdv!$F$2:$F$65536,IF(dati_pdc!$C719=5,dati_bdv!$G$2:$G$65536,dati_bdv!$H$2:$H$65536))))),$A719,dati_bdv!L$2:L$65536)","v":0},{"$f":"SUMIF(IF(dati_pdc!$C719=1,dati_bdv!$C$2:$C$65536,IF(dati_pdc!$C719=2,dati_bdv!$D$2:$D$65536,IF(dati_pdc!$C719=3,dati_bdv!$E$2:$E$65536,IF(dati_pdc!$C719=4,dati_bdv!$F$2:$F$65536,IF(dati_pdc!$C719=5,dati_bdv!$G$2:$G$65536,dati_bdv!$H$2:$H$65536))))),$A719,dati_bdv!M$2:M$65536)","v":0},{"$f":"SUMIF(IF(dati_pdc!$C719=1,dati_bdv!$C$2:$C$65536,IF(dati_pdc!$C719=2,dati_bdv!$D$2:$D$65536,IF(dati_pdc!$C719=3,dati_bdv!$E$2:$E$65536,IF(dati_pdc!$C719=4,dati_bdv!$F$2:$F$65536,IF(dati_pdc!$C719=5,dati_bdv!$G$2:$G$65536,dati_bdv!$H$2:$H$65536))))),$A719,dati_bdv!N$2:N$65536)","v":0}]
[{"$f":"dati_pdc!A720","v":0},{"$f":"SUMIF(IF(dati_pdc!$C720=1,dati_bdv!$C$2:$C$65536,IF(dati_pdc!$C720=2,dati_bdv!$D$2:$D$65536,IF(dati_pdc!$C720=3,dati_bdv!$E$2:$E$65536,IF(dati_pdc!$C720=4,dati_bdv!$F$2:$F$65536,IF(dati_pdc!$C720=5,dati_bdv!$G$2:$G$65536,dati_bdv!$H$2:$H$65536))))),$A720,dati_bdv!J$2:J$65536)","v":0},{"$f":"SUMIF(IF(dati_pdc!$C720=1,dati_bdv!$C$2:$C$65536,IF(dati_pdc!$C720=2,dati_bdv!$D$2:$D$65536,IF(dati_pdc!$C720=3,dati_bdv!$E$2:$E$65536,IF(dati_pdc!$C720=4,dati_bdv!$F$2:$F$65536,IF(dati_pdc!$C720=5,dati_bdv!$G$2:$G$65536,dati_bdv!$H$2:$H$65536))))),$A720,dati_bdv!K$2:K$65536)","v":0},{"$f":"SUMIF(IF(dati_pdc!$C720=1,dati_bdv!$C$2:$C$65536,IF(dati_pdc!$C720=2,dati_bdv!$D$2:$D$65536,IF(dati_pdc!$C720=3,dati_bdv!$E$2:$E$65536,IF(dati_pdc!$C720=4,dati_bdv!$F$2:$F$65536,IF(dati_pdc!$C720=5,dati_bdv!$G$2:$G$65536,dati_bdv!$H$2:$H$65536))))),$A720,dati_bdv!L$2:L$65536)","v":0},{"$f":"SUMIF(IF(dati_pdc!$C720=1,dati_bdv!$C$2:$C$65536,IF(dati_pdc!$C720=2,dati_bdv!$D$2:$D$65536,IF(dati_pdc!$C720=3,dati_bdv!$E$2:$E$65536,IF(dati_pdc!$C720=4,dati_bdv!$F$2:$F$65536,IF(dati_pdc!$C720=5,dati_bdv!$G$2:$G$65536,dati_bdv!$H$2:$H$65536))))),$A720,dati_bdv!M$2:M$65536)","v":0},{"$f":"SUMIF(IF(dati_pdc!$C720=1,dati_bdv!$C$2:$C$65536,IF(dati_pdc!$C720=2,dati_bdv!$D$2:$D$65536,IF(dati_pdc!$C720=3,dati_bdv!$E$2:$E$65536,IF(dati_pdc!$C720=4,dati_bdv!$F$2:$F$65536,IF(dati_pdc!$C720=5,dati_bdv!$G$2:$G$65536,dati_bdv!$H$2:$H$65536))))),$A720,dati_bdv!N$2:N$65536)","v":0}]
[{"$f":"dati_pdc!A721","v":0},{"$f":"SUMIF(IF(dati_pdc!$C721=1,dati_bdv!$C$2:$C$65536,IF(dati_pdc!$C721=2,dati_bdv!$D$2:$D$65536,IF(dati_pdc!$C721=3,dati_bdv!$E$2:$E$65536,IF(dati_pdc!$C721=4,dati_bdv!$F$2:$F$65536,IF(dati_pdc!$C721=5,dati_bdv!$G$2:$G$65536,dati_bdv!$H$2:$H$65536))))),$A721,dati_bdv!J$2:J$65536)","v":0},{"$f":"SUMIF(IF(dati_pdc!$C721=1,dati_bdv!$C$2:$C$65536,IF(dati_pdc!$C721=2,dati_bdv!$D$2:$D$65536,IF(dati_pdc!$C721=3,dati_bdv!$E$2:$E$65536,IF(dati_pdc!$C721=4,dati_bdv!$F$2:$F$65536,IF(dati_pdc!$C721=5,dati_bdv!$G$2:$G$65536,dati_bdv!$H$2:$H$65536))))),$A721,dati_bdv!K$2:K$65536)","v":0},{"$f":"SUMIF(IF(dati_pdc!$C721=1,dati_bdv!$C$2:$C$65536,IF(dati_pdc!$C721=2,dati_bdv!$D$2:$D$65536,IF(dati_pdc!$C721=3,dati_bdv!$E$2:$E$65536,IF(dati_pdc!$C721=4,dati_bdv!$F$2:$F$65536,IF(dati_pdc!$C721=5,dati_bdv!$G$2:$G$65536,dati_bdv!$H$2:$H$65536))))),$A721,dati_bdv!L$2:L$65536)","v":0},{"$f":"SUMIF(IF(dati_pdc!$C721=1,dati_bdv!$C$2:$C$65536,IF(dati_pdc!$C721=2,dati_bdv!$D$2:$D$65536,IF(dati_pdc!$C721=3,dati_bdv!$E$2:$E$65536,IF(dati_pdc!$C721=4,dati_bdv!$F$2:$F$65536,IF(dati_pdc!$C721=5,dati_bdv!$G$2:$G$65536,dati_bdv!$H$2:$H$65536))))),$A721,dati_bdv!M$2:M$65536)","v":0},{"$f":"SUMIF(IF(dati_pdc!$C721=1,dati_bdv!$C$2:$C$65536,IF(dati_pdc!$C721=2,dati_bdv!$D$2:$D$65536,IF(dati_pdc!$C721=3,dati_bdv!$E$2:$E$65536,IF(dati_pdc!$C721=4,dati_bdv!$F$2:$F$65536,IF(dati_pdc!$C721=5,dati_bdv!$G$2:$G$65536,dati_bdv!$H$2:$H$65536))))),$A721,dati_bdv!N$2:N$65536)","v":0}]
[{"$f":"dati_pdc!A722","v":0},{"$f":"SUMIF(IF(dati_pdc!$C722=1,dati_bdv!$C$2:$C$65536,IF(dati_pdc!$C722=2,dati_bdv!$D$2:$D$65536,IF(dati_pdc!$C722=3,dati_bdv!$E$2:$E$65536,IF(dati_pdc!$C722=4,dati_bdv!$F$2:$F$65536,IF(dati_pdc!$C722=5,dati_bdv!$G$2:$G$65536,dati_bdv!$H$2:$H$65536))))),$A722,dati_bdv!J$2:J$65536)","v":0},{"$f":"SUMIF(IF(dati_pdc!$C722=1,dati_bdv!$C$2:$C$65536,IF(dati_pdc!$C722=2,dati_bdv!$D$2:$D$65536,IF(dati_pdc!$C722=3,dati_bdv!$E$2:$E$65536,IF(dati_pdc!$C722=4,dati_bdv!$F$2:$F$65536,IF(dati_pdc!$C722=5,dati_bdv!$G$2:$G$65536,dati_bdv!$H$2:$H$65536))))),$A722,dati_bdv!K$2:K$65536)","v":0},{"$f":"SUMIF(IF(dati_pdc!$C722=1,dati_bdv!$C$2:$C$65536,IF(dati_pdc!$C722=2,dati_bdv!$D$2:$D$65536,IF(dati_pdc!$C722=3,dati_bdv!$E$2:$E$65536,IF(dati_pdc!$C722=4,dati_bdv!$F$2:$F$65536,IF(dati_pdc!$C722=5,dati_bdv!$G$2:$G$65536,dati_bdv!$H$2:$H$65536))))),$A722,dati_bdv!L$2:L$65536)","v":0},{"$f":"SUMIF(IF(dati_pdc!$C722=1,dati_bdv!$C$2:$C$65536,IF(dati_pdc!$C722=2,dati_bdv!$D$2:$D$65536,IF(dati_pdc!$C722=3,dati_bdv!$E$2:$E$65536,IF(dati_pdc!$C722=4,dati_bdv!$F$2:$F$65536,IF(dati_pdc!$C722=5,dati_bdv!$G$2:$G$65536,dati_bdv!$H$2:$H$65536))))),$A722,dati_bdv!M$2:M$65536)","v":0},{"$f":"SUMIF(IF(dati_pdc!$C722=1,dati_bdv!$C$2:$C$65536,IF(dati_pdc!$C722=2,dati_bdv!$D$2:$D$65536,IF(dati_pdc!$C722=3,dati_bdv!$E$2:$E$65536,IF(dati_pdc!$C722=4,dati_bdv!$F$2:$F$65536,IF(dati_pdc!$C722=5,dati_bdv!$G$2:$G$65536,dati_bdv!$H$2:$H$65536))))),$A722,dati_bdv!N$2:N$65536)","v":0}]
[{"$f":"dati_pdc!A723","v":0},{"$f":"SUMIF(IF(dati_pdc!$C723=1,dati_bdv!$C$2:$C$65536,IF(dati_pdc!$C723=2,dati_bdv!$D$2:$D$65536,IF(dati_pdc!$C723=3,dati_bdv!$E$2:$E$65536,IF(dati_pdc!$C723=4,dati_bdv!$F$2:$F$65536,IF(dati_pdc!$C723=5,dati_bdv!$G$2:$G$65536,dati_bdv!$H$2:$H$65536))))),$A723,dati_bdv!J$2:J$65536)","v":0},{"$f":"SUMIF(IF(dati_pdc!$C723=1,dati_bdv!$C$2:$C$65536,IF(dati_pdc!$C723=2,dati_bdv!$D$2:$D$65536,IF(dati_pdc!$C723=3,dati_bdv!$E$2:$E$65536,IF(dati_pdc!$C723=4,dati_bdv!$F$2:$F$65536,IF(dati_pdc!$C723=5,dati_bdv!$G$2:$G$65536,dati_bdv!$H$2:$H$65536))))),$A723,dati_bdv!K$2:K$65536)","v":0},{"$f":"SUMIF(IF(dati_pdc!$C723=1,dati_bdv!$C$2:$C$65536,IF(dati_pdc!$C723=2,dati_bdv!$D$2:$D$65536,IF(dati_pdc!$C723=3,dati_bdv!$E$2:$E$65536,IF(dati_pdc!$C723=4,dati_bdv!$F$2:$F$65536,IF(dati_pdc!$C723=5,dati_bdv!$G$2:$G$65536,dati_bdv!$H$2:$H$65536))))),$A723,dati_bdv!L$2:L$65536)","v":0},{"$f":"SUMIF(IF(dati_pdc!$C723=1,dati_bdv!$C$2:$C$65536,IF(dati_pdc!$C723=2,dati_bdv!$D$2:$D$65536,IF(dati_pdc!$C723=3,dati_bdv!$E$2:$E$65536,IF(dati_pdc!$C723=4,dati_bdv!$F$2:$F$65536,IF(dati_pdc!$C723=5,dati_bdv!$G$2:$G$65536,dati_bdv!$H$2:$H$65536))))),$A723,dati_bdv!M$2:M$65536)","v":0},{"$f":"SUMIF(IF(dati_pdc!$C723=1,dati_bdv!$C$2:$C$65536,IF(dati_pdc!$C723=2,dati_bdv!$D$2:$D$65536,IF(dati_pdc!$C723=3,dati_bdv!$E$2:$E$65536,IF(dati_pdc!$C723=4,dati_bdv!$F$2:$F$65536,IF(dati_pdc!$C723=5,dati_bdv!$G$2:$G$65536,dati_bdv!$H$2:$H$65536))))),$A723,dati_bdv!N$2:N$65536)","v":0}]
[{"$f":"dati_pdc!A724","v":0},{"$f":"SUMIF(IF(dati_pdc!$C724=1,dati_bdv!$C$2:$C$65536,IF(dati_pdc!$C724=2,dati_bdv!$D$2:$D$65536,IF(dati_pdc!$C724=3,dati_bdv!$E$2:$E$65536,IF(dati_pdc!$C724=4,dati_bdv!$F$2:$F$65536,IF(dati_pdc!$C724=5,dati_bdv!$G$2:$G$65536,dati_bdv!$H$2:$H$65536))))),$A724,dati_bdv!J$2:J$65536)","v":0},{"$f":"SUMIF(IF(dati_pdc!$C724=1,dati_bdv!$C$2:$C$65536,IF(dati_pdc!$C724=2,dati_bdv!$D$2:$D$65536,IF(dati_pdc!$C724=3,dati_bdv!$E$2:$E$65536,IF(dati_pdc!$C724=4,dati_bdv!$F$2:$F$65536,IF(dati_pdc!$C724=5,dati_bdv!$G$2:$G$65536,dati_bdv!$H$2:$H$65536))))),$A724,dati_bdv!K$2:K$65536)","v":0},{"$f":"SUMIF(IF(dati_pdc!$C724=1,dati_bdv!$C$2:$C$65536,IF(dati_pdc!$C724=2,dati_bdv!$D$2:$D$65536,IF(dati_pdc!$C724=3,dati_bdv!$E$2:$E$65536,IF(dati_pdc!$C724=4,dati_bdv!$F$2:$F$65536,IF(dati_pdc!$C724=5,dati_bdv!$G$2:$G$65536,dati_bdv!$H$2:$H$65536))))),$A724,dati_bdv!L$2:L$65536)","v":0},{"$f":"SUMIF(IF(dati_pdc!$C724=1,dati_bdv!$C$2:$C$65536,IF(dati_pdc!$C724=2,dati_bdv!$D$2:$D$65536,IF(dati_pdc!$C724=3,dati_bdv!$E$2:$E$65536,IF(dati_pdc!$C724=4,dati_bdv!$F$2:$F$65536,IF(dati_pdc!$C724=5,dati_bdv!$G$2:$G$65536,dati_bdv!$H$2:$H$65536))))),$A724,dati_bdv!M$2:M$65536)","v":0},{"$f":"SUMIF(IF(dati_pdc!$C724=1,dati_bdv!$C$2:$C$65536,IF(dati_pdc!$C724=2,dati_bdv!$D$2:$D$65536,IF(dati_pdc!$C724=3,dati_bdv!$E$2:$E$65536,IF(dati_pdc!$C724=4,dati_bdv!$F$2:$F$65536,IF(dati_pdc!$C724=5,dati_bdv!$G$2:$G$65536,dati_bdv!$H$2:$H$65536))))),$A724,dati_bdv!N$2:N$65536)","v":0}]
[{"$f":"dati_pdc!A725","v":0},{"$f":"SUMIF(IF(dati_pdc!$C725=1,dati_bdv!$C$2:$C$65536,IF(dati_pdc!$C725=2,dati_bdv!$D$2:$D$65536,IF(dati_pdc!$C725=3,dati_bdv!$E$2:$E$65536,IF(dati_pdc!$C725=4,dati_bdv!$F$2:$F$65536,IF(dati_pdc!$C725=5,dati_bdv!$G$2:$G$65536,dati_bdv!$H$2:$H$65536))))),$A725,dati_bdv!J$2:J$65536)","v":0},{"$f":"SUMIF(IF(dati_pdc!$C725=1,dati_bdv!$C$2:$C$65536,IF(dati_pdc!$C725=2,dati_bdv!$D$2:$D$65536,IF(dati_pdc!$C725=3,dati_bdv!$E$2:$E$65536,IF(dati_pdc!$C725=4,dati_bdv!$F$2:$F$65536,IF(dati_pdc!$C725=5,dati_bdv!$G$2:$G$65536,dati_bdv!$H$2:$H$65536))))),$A725,dati_bdv!K$2:K$65536)","v":0},{"$f":"SUMIF(IF(dati_pdc!$C725=1,dati_bdv!$C$2:$C$65536,IF(dati_pdc!$C725=2,dati_bdv!$D$2:$D$65536,IF(dati_pdc!$C725=3,dati_bdv!$E$2:$E$65536,IF(dati_pdc!$C725=4,dati_bdv!$F$2:$F$65536,IF(dati_pdc!$C725=5,dati_bdv!$G$2:$G$65536,dati_bdv!$H$2:$H$65536))))),$A725,dati_bdv!L$2:L$65536)","v":0},{"$f":"SUMIF(IF(dati_pdc!$C725=1,dati_bdv!$C$2:$C$65536,IF(dati_pdc!$C725=2,dati_bdv!$D$2:$D$65536,IF(dati_pdc!$C725=3,dati_bdv!$E$2:$E$65536,IF(dati_pdc!$C725=4,dati_bdv!$F$2:$F$65536,IF(dati_pdc!$C725=5,dati_bdv!$G$2:$G$65536,dati_bdv!$H$2:$H$65536))))),$A725,dati_bdv!M$2:M$65536)","v":0},{"$f":"SUMIF(IF(dati_pdc!$C725=1,dati_bdv!$C$2:$C$65536,IF(dati_pdc!$C725=2,dati_bdv!$D$2:$D$65536,IF(dati_pdc!$C725=3,dati_bdv!$E$2:$E$65536,IF(dati_pdc!$C725=4,dati_bdv!$F$2:$F$65536,IF(dati_pdc!$C725=5,dati_bdv!$G$2:$G$65536,dati_bdv!$H$2:$H$65536))))),$A725,dati_bdv!N$2:N$65536)","v":0}]
[{"$f":"dati_pdc!A726","v":0},{"$f":"SUMIF(IF(dati_pdc!$C726=1,dati_bdv!$C$2:$C$65536,IF(dati_pdc!$C726=2,dati_bdv!$D$2:$D$65536,IF(dati_pdc!$C726=3,dati_bdv!$E$2:$E$65536,IF(dati_pdc!$C726=4,dati_bdv!$F$2:$F$65536,IF(dati_pdc!$C726=5,dati_bdv!$G$2:$G$65536,dati_bdv!$H$2:$H$65536))))),$A726,dati_bdv!J$2:J$65536)","v":0},{"$f":"SUMIF(IF(dati_pdc!$C726=1,dati_bdv!$C$2:$C$65536,IF(dati_pdc!$C726=2,dati_bdv!$D$2:$D$65536,IF(dati_pdc!$C726=3,dati_bdv!$E$2:$E$65536,IF(dati_pdc!$C726=4,dati_bdv!$F$2:$F$65536,IF(dati_pdc!$C726=5,dati_bdv!$G$2:$G$65536,dati_bdv!$H$2:$H$65536))))),$A726,dati_bdv!K$2:K$65536)","v":0},{"$f":"SUMIF(IF(dati_pdc!$C726=1,dati_bdv!$C$2:$C$65536,IF(dati_pdc!$C726=2,dati_bdv!$D$2:$D$65536,IF(dati_pdc!$C726=3,dati_bdv!$E$2:$E$65536,IF(dati_pdc!$C726=4,dati_bdv!$F$2:$F$65536,IF(dati_pdc!$C726=5,dati_bdv!$G$2:$G$65536,dati_bdv!$H$2:$H$65536))))),$A726,dati_bdv!L$2:L$65536)","v":0},{"$f":"SUMIF(IF(dati_pdc!$C726=1,dati_bdv!$C$2:$C$65536,IF(dati_pdc!$C726=2,dati_bdv!$D$2:$D$65536,IF(dati_pdc!$C726=3,dati_bdv!$E$2:$E$65536,IF(dati_pdc!$C726=4,dati_bdv!$F$2:$F$65536,IF(dati_pdc!$C726=5,dati_bdv!$G$2:$G$65536,dati_bdv!$H$2:$H$65536))))),$A726,dati_bdv!M$2:M$65536)","v":0},{"$f":"SUMIF(IF(dati_pdc!$C726=1,dati_bdv!$C$2:$C$65536,IF(dati_pdc!$C726=2,dati_bdv!$D$2:$D$65536,IF(dati_pdc!$C726=3,dati_bdv!$E$2:$E$65536,IF(dati_pdc!$C726=4,dati_bdv!$F$2:$F$65536,IF(dati_pdc!$C726=5,dati_bdv!$G$2:$G$65536,dati_bdv!$H$2:$H$65536))))),$A726,dati_bdv!N$2:N$65536)","v":0}]
[{"$f":"dati_pdc!A727","v":0},{"$f":"SUMIF(IF(dati_pdc!$C727=1,dati_bdv!$C$2:$C$65536,IF(dati_pdc!$C727=2,dati_bdv!$D$2:$D$65536,IF(dati_pdc!$C727=3,dati_bdv!$E$2:$E$65536,IF(dati_pdc!$C727=4,dati_bdv!$F$2:$F$65536,IF(dati_pdc!$C727=5,dati_bdv!$G$2:$G$65536,dati_bdv!$H$2:$H$65536))))),$A727,dati_bdv!J$2:J$65536)","v":0},{"$f":"SUMIF(IF(dati_pdc!$C727=1,dati_bdv!$C$2:$C$65536,IF(dati_pdc!$C727=2,dati_bdv!$D$2:$D$65536,IF(dati_pdc!$C727=3,dati_bdv!$E$2:$E$65536,IF(dati_pdc!$C727=4,dati_bdv!$F$2:$F$65536,IF(dati_pdc!$C727=5,dati_bdv!$G$2:$G$65536,dati_bdv!$H$2:$H$65536))))),$A727,dati_bdv!K$2:K$65536)","v":0},{"$f":"SUMIF(IF(dati_pdc!$C727=1,dati_bdv!$C$2:$C$65536,IF(dati_pdc!$C727=2,dati_bdv!$D$2:$D$65536,IF(dati_pdc!$C727=3,dati_bdv!$E$2:$E$65536,IF(dati_pdc!$C727=4,dati_bdv!$F$2:$F$65536,IF(dati_pdc!$C727=5,dati_bdv!$G$2:$G$65536,dati_bdv!$H$2:$H$65536))))),$A727,dati_bdv!L$2:L$65536)","v":0},{"$f":"SUMIF(IF(dati_pdc!$C727=1,dati_bdv!$C$2:$C$65536,IF(dati_pdc!$C727=2,dati_bdv!$D$2:$D$65536,IF(dati_pdc!$C727=3,dati_bdv!$E$2:$E$65536,IF(dati_pdc!$C727=4,dati_bdv!$F$2:$F$65536,IF(dati_pdc!$C727=5,dati_bdv!$G$2:$G$65536,dati_bdv!$H$2:$H$65536))))),$A727,dati_bdv!M$2:M$65536)","v":0},{"$f":"SUMIF(IF(dati_pdc!$C727=1,dati_bdv!$C$2:$C$65536,IF(dati_pdc!$C727=2,dati_bdv!$D$2:$D$65536,IF(dati_pdc!$C727=3,dati_bdv!$E$2:$E$65536,IF(dati_pdc!$C727=4,dati_bdv!$F$2:$F$65536,IF(dati_pdc!$C727=5,dati_bdv!$G$2:$G$65536,dati_bdv!$H$2:$H$65536))))),$A727,dati_bdv!N$2:N$65536)","v":0}]
[{"$f":"dati_pdc!A728","v":0},{"$f":"SUMIF(IF(dati_pdc!$C728=1,dati_bdv!$C$2:$C$65536,IF(dati_pdc!$C728=2,dati_bdv!$D$2:$D$65536,IF(dati_pdc!$C728=3,dati_bdv!$E$2:$E$65536,IF(dati_pdc!$C728=4,dati_bdv!$F$2:$F$65536,IF(dati_pdc!$C728=5,dati_bdv!$G$2:$G$65536,dati_bdv!$H$2:$H$65536))))),$A728,dati_bdv!J$2:J$65536)","v":0},{"$f":"SUMIF(IF(dati_pdc!$C728=1,dati_bdv!$C$2:$C$65536,IF(dati_pdc!$C728=2,dati_bdv!$D$2:$D$65536,IF(dati_pdc!$C728=3,dati_bdv!$E$2:$E$65536,IF(dati_pdc!$C728=4,dati_bdv!$F$2:$F$65536,IF(dati_pdc!$C728=5,dati_bdv!$G$2:$G$65536,dati_bdv!$H$2:$H$65536))))),$A728,dati_bdv!K$2:K$65536)","v":0},{"$f":"SUMIF(IF(dati_pdc!$C728=1,dati_bdv!$C$2:$C$65536,IF(dati_pdc!$C728=2,dati_bdv!$D$2:$D$65536,IF(dati_pdc!$C728=3,dati_bdv!$E$2:$E$65536,IF(dati_pdc!$C728=4,dati_bdv!$F$2:$F$65536,IF(dati_pdc!$C728=5,dati_bdv!$G$2:$G$65536,dati_bdv!$H$2:$H$65536))))),$A728,dati_bdv!L$2:L$65536)","v":0},{"$f":"SUMIF(IF(dati_pdc!$C728=1,dati_bdv!$C$2:$C$65536,IF(dati_pdc!$C728=2,dati_bdv!$D$2:$D$65536,IF(dati_pdc!$C728=3,dati_bdv!$E$2:$E$65536,IF(dati_pdc!$C728=4,dati_bdv!$F$2:$F$65536,IF(dati_pdc!$C728=5,dati_bdv!$G$2:$G$65536,dati_bdv!$H$2:$H$65536))))),$A728,dati_bdv!M$2:M$65536)","v":0},{"$f":"SUMIF(IF(dati_pdc!$C728=1,dati_bdv!$C$2:$C$65536,IF(dati_pdc!$C728=2,dati_bdv!$D$2:$D$65536,IF(dati_pdc!$C728=3,dati_bdv!$E$2:$E$65536,IF(dati_pdc!$C728=4,dati_bdv!$F$2:$F$65536,IF(dati_pdc!$C728=5,dati_bdv!$G$2:$G$65536,dati_bdv!$H$2:$H$65536))))),$A728,dati_bdv!N$2:N$65536)","v":0}]
[{"$f":"dati_pdc!A729","v":0},{"$f":"SUMIF(IF(dati_pdc!$C729=1,dati_bdv!$C$2:$C$65536,IF(dati_pdc!$C729=2,dati_bdv!$D$2:$D$65536,IF(dati_pdc!$C729=3,dati_bdv!$E$2:$E$65536,IF(dati_pdc!$C729=4,dati_bdv!$F$2:$F$65536,IF(dati_pdc!$C729=5,dati_bdv!$G$2:$G$65536,dati_bdv!$H$2:$H$65536))))),$A729,dati_bdv!J$2:J$65536)","v":0},{"$f":"SUMIF(IF(dati_pdc!$C729=1,dati_bdv!$C$2:$C$65536,IF(dati_pdc!$C729=2,dati_bdv!$D$2:$D$65536,IF(dati_pdc!$C729=3,dati_bdv!$E$2:$E$65536,IF(dati_pdc!$C729=4,dati_bdv!$F$2:$F$65536,IF(dati_pdc!$C729=5,dati_bdv!$G$2:$G$65536,dati_bdv!$H$2:$H$65536))))),$A729,dati_bdv!K$2:K$65536)","v":0},{"$f":"SUMIF(IF(dati_pdc!$C729=1,dati_bdv!$C$2:$C$65536,IF(dati_pdc!$C729=2,dati_bdv!$D$2:$D$65536,IF(dati_pdc!$C729=3,dati_bdv!$E$2:$E$65536,IF(dati_pdc!$C729=4,dati_bdv!$F$2:$F$65536,IF(dati_pdc!$C729=5,dati_bdv!$G$2:$G$65536,dati_bdv!$H$2:$H$65536))))),$A729,dati_bdv!L$2:L$65536)","v":0},{"$f":"SUMIF(IF(dati_pdc!$C729=1,dati_bdv!$C$2:$C$65536,IF(dati_pdc!$C729=2,dati_bdv!$D$2:$D$65536,IF(dati_pdc!$C729=3,dati_bdv!$E$2:$E$65536,IF(dati_pdc!$C729=4,dati_bdv!$F$2:$F$65536,IF(dati_pdc!$C729=5,dati_bdv!$G$2:$G$65536,dati_bdv!$H$2:$H$65536))))),$A729,dati_bdv!M$2:M$65536)","v":0},{"$f":"SUMIF(IF(dati_pdc!$C729=1,dati_bdv!$C$2:$C$65536,IF(dati_pdc!$C729=2,dati_bdv!$D$2:$D$65536,IF(dati_pdc!$C729=3,dati_bdv!$E$2:$E$65536,IF(dati_pdc!$C729=4,dati_bdv!$F$2:$F$65536,IF(dati_pdc!$C729=5,dati_bdv!$G$2:$G$65536,dati_bdv!$H$2:$H$65536))))),$A729,dati_bdv!N$2:N$65536)","v":0}]
[{"$f":"dati_pdc!A730","v":0},{"$f":"SUMIF(IF(dati_pdc!$C730=1,dati_bdv!$C$2:$C$65536,IF(dati_pdc!$C730=2,dati_bdv!$D$2:$D$65536,IF(dati_pdc!$C730=3,dati_bdv!$E$2:$E$65536,IF(dati_pdc!$C730=4,dati_bdv!$F$2:$F$65536,IF(dati_pdc!$C730=5,dati_bdv!$G$2:$G$65536,dati_bdv!$H$2:$H$65536))))),$A730,dati_bdv!J$2:J$65536)","v":0},{"$f":"SUMIF(IF(dati_pdc!$C730=1,dati_bdv!$C$2:$C$65536,IF(dati_pdc!$C730=2,dati_bdv!$D$2:$D$65536,IF(dati_pdc!$C730=3,dati_bdv!$E$2:$E$65536,IF(dati_pdc!$C730=4,dati_bdv!$F$2:$F$65536,IF(dati_pdc!$C730=5,dati_bdv!$G$2:$G$65536,dati_bdv!$H$2:$H$65536))))),$A730,dati_bdv!K$2:K$65536)","v":0},{"$f":"SUMIF(IF(dati_pdc!$C730=1,dati_bdv!$C$2:$C$65536,IF(dati_pdc!$C730=2,dati_bdv!$D$2:$D$65536,IF(dati_pdc!$C730=3,dati_bdv!$E$2:$E$65536,IF(dati_pdc!$C730=4,dati_bdv!$F$2:$F$65536,IF(dati_pdc!$C730=5,dati_bdv!$G$2:$G$65536,dati_bdv!$H$2:$H$65536))))),$A730,dati_bdv!L$2:L$65536)","v":0},{"$f":"SUMIF(IF(dati_pdc!$C730=1,dati_bdv!$C$2:$C$65536,IF(dati_pdc!$C730=2,dati_bdv!$D$2:$D$65536,IF(dati_pdc!$C730=3,dati_bdv!$E$2:$E$65536,IF(dati_pdc!$C730=4,dati_bdv!$F$2:$F$65536,IF(dati_pdc!$C730=5,dati_bdv!$G$2:$G$65536,dati_bdv!$H$2:$H$65536))))),$A730,dati_bdv!M$2:M$65536)","v":0},{"$f":"SUMIF(IF(dati_pdc!$C730=1,dati_bdv!$C$2:$C$65536,IF(dati_pdc!$C730=2,dati_bdv!$D$2:$D$65536,IF(dati_pdc!$C730=3,dati_bdv!$E$2:$E$65536,IF(dati_pdc!$C730=4,dati_bdv!$F$2:$F$65536,IF(dati_pdc!$C730=5,dati_bdv!$G$2:$G$65536,dati_bdv!$H$2:$H$65536))))),$A730,dati_bdv!N$2:N$65536)","v":0}]
[{"$f":"dati_pdc!A731","v":0},{"$f":"SUMIF(IF(dati_pdc!$C731=1,dati_bdv!$C$2:$C$65536,IF(dati_pdc!$C731=2,dati_bdv!$D$2:$D$65536,IF(dati_pdc!$C731=3,dati_bdv!$E$2:$E$65536,IF(dati_pdc!$C731=4,dati_bdv!$F$2:$F$65536,IF(dati_pdc!$C731=5,dati_bdv!$G$2:$G$65536,dati_bdv!$H$2:$H$65536))))),$A731,dati_bdv!J$2:J$65536)","v":0},{"$f":"SUMIF(IF(dati_pdc!$C731=1,dati_bdv!$C$2:$C$65536,IF(dati_pdc!$C731=2,dati_bdv!$D$2:$D$65536,IF(dati_pdc!$C731=3,dati_bdv!$E$2:$E$65536,IF(dati_pdc!$C731=4,dati_bdv!$F$2:$F$65536,IF(dati_pdc!$C731=5,dati_bdv!$G$2:$G$65536,dati_bdv!$H$2:$H$65536))))),$A731,dati_bdv!K$2:K$65536)","v":0},{"$f":"SUMIF(IF(dati_pdc!$C731=1,dati_bdv!$C$2:$C$65536,IF(dati_pdc!$C731=2,dati_bdv!$D$2:$D$65536,IF(dati_pdc!$C731=3,dati_bdv!$E$2:$E$65536,IF(dati_pdc!$C731=4,dati_bdv!$F$2:$F$65536,IF(dati_pdc!$C731=5,dati_bdv!$G$2:$G$65536,dati_bdv!$H$2:$H$65536))))),$A731,dati_bdv!L$2:L$65536)","v":0},{"$f":"SUMIF(IF(dati_pdc!$C731=1,dati_bdv!$C$2:$C$65536,IF(dati_pdc!$C731=2,dati_bdv!$D$2:$D$65536,IF(dati_pdc!$C731=3,dati_bdv!$E$2:$E$65536,IF(dati_pdc!$C731=4,dati_bdv!$F$2:$F$65536,IF(dati_pdc!$C731=5,dati_bdv!$G$2:$G$65536,dati_bdv!$H$2:$H$65536))))),$A731,dati_bdv!M$2:M$65536)","v":0},{"$f":"SUMIF(IF(dati_pdc!$C731=1,dati_bdv!$C$2:$C$65536,IF(dati_pdc!$C731=2,dati_bdv!$D$2:$D$65536,IF(dati_pdc!$C731=3,dati_bdv!$E$2:$E$65536,IF(dati_pdc!$C731=4,dati_bdv!$F$2:$F$65536,IF(dati_pdc!$C731=5,dati_bdv!$G$2:$G$65536,dati_bdv!$H$2:$H$65536))))),$A731,dati_bdv!N$2:N$65536)","v":0}]
[{"$f":"dati_pdc!A732","v":0},{"$f":"SUMIF(IF(dati_pdc!$C732=1,dati_bdv!$C$2:$C$65536,IF(dati_pdc!$C732=2,dati_bdv!$D$2:$D$65536,IF(dati_pdc!$C732=3,dati_bdv!$E$2:$E$65536,IF(dati_pdc!$C732=4,dati_bdv!$F$2:$F$65536,IF(dati_pdc!$C732=5,dati_bdv!$G$2:$G$65536,dati_bdv!$H$2:$H$65536))))),$A732,dati_bdv!J$2:J$65536)","v":0},{"$f":"SUMIF(IF(dati_pdc!$C732=1,dati_bdv!$C$2:$C$65536,IF(dati_pdc!$C732=2,dati_bdv!$D$2:$D$65536,IF(dati_pdc!$C732=3,dati_bdv!$E$2:$E$65536,IF(dati_pdc!$C732=4,dati_bdv!$F$2:$F$65536,IF(dati_pdc!$C732=5,dati_bdv!$G$2:$G$65536,dati_bdv!$H$2:$H$65536))))),$A732,dati_bdv!K$2:K$65536)","v":0},{"$f":"SUMIF(IF(dati_pdc!$C732=1,dati_bdv!$C$2:$C$65536,IF(dati_pdc!$C732=2,dati_bdv!$D$2:$D$65536,IF(dati_pdc!$C732=3,dati_bdv!$E$2:$E$65536,IF(dati_pdc!$C732=4,dati_bdv!$F$2:$F$65536,IF(dati_pdc!$C732=5,dati_bdv!$G$2:$G$65536,dati_bdv!$H$2:$H$65536))))),$A732,dati_bdv!L$2:L$65536)","v":0},{"$f":"SUMIF(IF(dati_pdc!$C732=1,dati_bdv!$C$2:$C$65536,IF(dati_pdc!$C732=2,dati_bdv!$D$2:$D$65536,IF(dati_pdc!$C732=3,dati_bdv!$E$2:$E$65536,IF(dati_pdc!$C732=4,dati_bdv!$F$2:$F$65536,IF(dati_pdc!$C732=5,dati_bdv!$G$2:$G$65536,dati_bdv!$H$2:$H$65536))))),$A732,dati_bdv!M$2:M$65536)","v":0},{"$f":"SUMIF(IF(dati_pdc!$C732=1,dati_bdv!$C$2:$C$65536,IF(dati_pdc!$C732=2,dati_bdv!$D$2:$D$65536,IF(dati_pdc!$C732=3,dati_bdv!$E$2:$E$65536,IF(dati_pdc!$C732=4,dati_bdv!$F$2:$F$65536,IF(dati_pdc!$C732=5,dati_bdv!$G$2:$G$65536,dati_bdv!$H$2:$H$65536))))),$A732,dati_bdv!N$2:N$65536)","v":0}]
[{"$f":"dati_pdc!A733","v":0},{"$f":"SUMIF(IF(dati_pdc!$C733=1,dati_bdv!$C$2:$C$65536,IF(dati_pdc!$C733=2,dati_bdv!$D$2:$D$65536,IF(dati_pdc!$C733=3,dati_bdv!$E$2:$E$65536,IF(dati_pdc!$C733=4,dati_bdv!$F$2:$F$65536,IF(dati_pdc!$C733=5,dati_bdv!$G$2:$G$65536,dati_bdv!$H$2:$H$65536))))),$A733,dati_bdv!J$2:J$65536)","v":0},{"$f":"SUMIF(IF(dati_pdc!$C733=1,dati_bdv!$C$2:$C$65536,IF(dati_pdc!$C733=2,dati_bdv!$D$2:$D$65536,IF(dati_pdc!$C733=3,dati_bdv!$E$2:$E$65536,IF(dati_pdc!$C733=4,dati_bdv!$F$2:$F$65536,IF(dati_pdc!$C733=5,dati_bdv!$G$2:$G$65536,dati_bdv!$H$2:$H$65536))))),$A733,dati_bdv!K$2:K$65536)","v":0},{"$f":"SUMIF(IF(dati_pdc!$C733=1,dati_bdv!$C$2:$C$65536,IF(dati_pdc!$C733=2,dati_bdv!$D$2:$D$65536,IF(dati_pdc!$C733=3,dati_bdv!$E$2:$E$65536,IF(dati_pdc!$C733=4,dati_bdv!$F$2:$F$65536,IF(dati_pdc!$C733=5,dati_bdv!$G$2:$G$65536,dati_bdv!$H$2:$H$65536))))),$A733,dati_bdv!L$2:L$65536)","v":0},{"$f":"SUMIF(IF(dati_pdc!$C733=1,dati_bdv!$C$2:$C$65536,IF(dati_pdc!$C733=2,dati_bdv!$D$2:$D$65536,IF(dati_pdc!$C733=3,dati_bdv!$E$2:$E$65536,IF(dati_pdc!$C733=4,dati_bdv!$F$2:$F$65536,IF(dati_pdc!$C733=5,dati_bdv!$G$2:$G$65536,dati_bdv!$H$2:$H$65536))))),$A733,dati_bdv!M$2:M$65536)","v":0},{"$f":"SUMIF(IF(dati_pdc!$C733=1,dati_bdv!$C$2:$C$65536,IF(dati_pdc!$C733=2,dati_bdv!$D$2:$D$65536,IF(dati_pdc!$C733=3,dati_bdv!$E$2:$E$65536,IF(dati_pdc!$C733=4,dati_bdv!$F$2:$F$65536,IF(dati_pdc!$C733=5,dati_bdv!$G$2:$G$65536,dati_bdv!$H$2:$H$65536))))),$A733,dati_bdv!N$2:N$65536)","v":0}]
[{"$f":"dati_pdc!A734","v":0},{"$f":"SUMIF(IF(dati_pdc!$C734=1,dati_bdv!$C$2:$C$65536,IF(dati_pdc!$C734=2,dati_bdv!$D$2:$D$65536,IF(dati_pdc!$C734=3,dati_bdv!$E$2:$E$65536,IF(dati_pdc!$C734=4,dati_bdv!$F$2:$F$65536,IF(dati_pdc!$C734=5,dati_bdv!$G$2:$G$65536,dati_bdv!$H$2:$H$65536))))),$A734,dati_bdv!J$2:J$65536)","v":0},{"$f":"SUMIF(IF(dati_pdc!$C734=1,dati_bdv!$C$2:$C$65536,IF(dati_pdc!$C734=2,dati_bdv!$D$2:$D$65536,IF(dati_pdc!$C734=3,dati_bdv!$E$2:$E$65536,IF(dati_pdc!$C734=4,dati_bdv!$F$2:$F$65536,IF(dati_pdc!$C734=5,dati_bdv!$G$2:$G$65536,dati_bdv!$H$2:$H$65536))))),$A734,dati_bdv!K$2:K$65536)","v":0},{"$f":"SUMIF(IF(dati_pdc!$C734=1,dati_bdv!$C$2:$C$65536,IF(dati_pdc!$C734=2,dati_bdv!$D$2:$D$65536,IF(dati_pdc!$C734=3,dati_bdv!$E$2:$E$65536,IF(dati_pdc!$C734=4,dati_bdv!$F$2:$F$65536,IF(dati_pdc!$C734=5,dati_bdv!$G$2:$G$65536,dati_bdv!$H$2:$H$65536))))),$A734,dati_bdv!L$2:L$65536)","v":0},{"$f":"SUMIF(IF(dati_pdc!$C734=1,dati_bdv!$C$2:$C$65536,IF(dati_pdc!$C734=2,dati_bdv!$D$2:$D$65536,IF(dati_pdc!$C734=3,dati_bdv!$E$2:$E$65536,IF(dati_pdc!$C734=4,dati_bdv!$F$2:$F$65536,IF(dati_pdc!$C734=5,dati_bdv!$G$2:$G$65536,dati_bdv!$H$2:$H$65536))))),$A734,dati_bdv!M$2:M$65536)","v":0},{"$f":"SUMIF(IF(dati_pdc!$C734=1,dati_bdv!$C$2:$C$65536,IF(dati_pdc!$C734=2,dati_bdv!$D$2:$D$65536,IF(dati_pdc!$C734=3,dati_bdv!$E$2:$E$65536,IF(dati_pdc!$C734=4,dati_bdv!$F$2:$F$65536,IF(dati_pdc!$C734=5,dati_bdv!$G$2:$G$65536,dati_bdv!$H$2:$H$65536))))),$A734,dati_bdv!N$2:N$65536)","v":0}]
[{"$f":"dati_pdc!A735","v":0},{"$f":"SUMIF(IF(dati_pdc!$C735=1,dati_bdv!$C$2:$C$65536,IF(dati_pdc!$C735=2,dati_bdv!$D$2:$D$65536,IF(dati_pdc!$C735=3,dati_bdv!$E$2:$E$65536,IF(dati_pdc!$C735=4,dati_bdv!$F$2:$F$65536,IF(dati_pdc!$C735=5,dati_bdv!$G$2:$G$65536,dati_bdv!$H$2:$H$65536))))),$A735,dati_bdv!J$2:J$65536)","v":0},{"$f":"SUMIF(IF(dati_pdc!$C735=1,dati_bdv!$C$2:$C$65536,IF(dati_pdc!$C735=2,dati_bdv!$D$2:$D$65536,IF(dati_pdc!$C735=3,dati_bdv!$E$2:$E$65536,IF(dati_pdc!$C735=4,dati_bdv!$F$2:$F$65536,IF(dati_pdc!$C735=5,dati_bdv!$G$2:$G$65536,dati_bdv!$H$2:$H$65536))))),$A735,dati_bdv!K$2:K$65536)","v":0},{"$f":"SUMIF(IF(dati_pdc!$C735=1,dati_bdv!$C$2:$C$65536,IF(dati_pdc!$C735=2,dati_bdv!$D$2:$D$65536,IF(dati_pdc!$C735=3,dati_bdv!$E$2:$E$65536,IF(dati_pdc!$C735=4,dati_bdv!$F$2:$F$65536,IF(dati_pdc!$C735=5,dati_bdv!$G$2:$G$65536,dati_bdv!$H$2:$H$65536))))),$A735,dati_bdv!L$2:L$65536)","v":0},{"$f":"SUMIF(IF(dati_pdc!$C735=1,dati_bdv!$C$2:$C$65536,IF(dati_pdc!$C735=2,dati_bdv!$D$2:$D$65536,IF(dati_pdc!$C735=3,dati_bdv!$E$2:$E$65536,IF(dati_pdc!$C735=4,dati_bdv!$F$2:$F$65536,IF(dati_pdc!$C735=5,dati_bdv!$G$2:$G$65536,dati_bdv!$H$2:$H$65536))))),$A735,dati_bdv!M$2:M$65536)","v":0},{"$f":"SUMIF(IF(dati_pdc!$C735=1,dati_bdv!$C$2:$C$65536,IF(dati_pdc!$C735=2,dati_bdv!$D$2:$D$65536,IF(dati_pdc!$C735=3,dati_bdv!$E$2:$E$65536,IF(dati_pdc!$C735=4,dati_bdv!$F$2:$F$65536,IF(dati_pdc!$C735=5,dati_bdv!$G$2:$G$65536,dati_bdv!$H$2:$H$65536))))),$A735,dati_bdv!N$2:N$65536)","v":0}]
[{"$f":"dati_pdc!A736","v":0},{"$f":"SUMIF(IF(dati_pdc!$C736=1,dati_bdv!$C$2:$C$65536,IF(dati_pdc!$C736=2,dati_bdv!$D$2:$D$65536,IF(dati_pdc!$C736=3,dati_bdv!$E$2:$E$65536,IF(dati_pdc!$C736=4,dati_bdv!$F$2:$F$65536,IF(dati_pdc!$C736=5,dati_bdv!$G$2:$G$65536,dati_bdv!$H$2:$H$65536))))),$A736,dati_bdv!J$2:J$65536)","v":0},{"$f":"SUMIF(IF(dati_pdc!$C736=1,dati_bdv!$C$2:$C$65536,IF(dati_pdc!$C736=2,dati_bdv!$D$2:$D$65536,IF(dati_pdc!$C736=3,dati_bdv!$E$2:$E$65536,IF(dati_pdc!$C736=4,dati_bdv!$F$2:$F$65536,IF(dati_pdc!$C736=5,dati_bdv!$G$2:$G$65536,dati_bdv!$H$2:$H$65536))))),$A736,dati_bdv!K$2:K$65536)","v":0},{"$f":"SUMIF(IF(dati_pdc!$C736=1,dati_bdv!$C$2:$C$65536,IF(dati_pdc!$C736=2,dati_bdv!$D$2:$D$65536,IF(dati_pdc!$C736=3,dati_bdv!$E$2:$E$65536,IF(dati_pdc!$C736=4,dati_bdv!$F$2:$F$65536,IF(dati_pdc!$C736=5,dati_bdv!$G$2:$G$65536,dati_bdv!$H$2:$H$65536))))),$A736,dati_bdv!L$2:L$65536)","v":0},{"$f":"SUMIF(IF(dati_pdc!$C736=1,dati_bdv!$C$2:$C$65536,IF(dati_pdc!$C736=2,dati_bdv!$D$2:$D$65536,IF(dati_pdc!$C736=3,dati_bdv!$E$2:$E$65536,IF(dati_pdc!$C736=4,dati_bdv!$F$2:$F$65536,IF(dati_pdc!$C736=5,dati_bdv!$G$2:$G$65536,dati_bdv!$H$2:$H$65536))))),$A736,dati_bdv!M$2:M$65536)","v":0},{"$f":"SUMIF(IF(dati_pdc!$C736=1,dati_bdv!$C$2:$C$65536,IF(dati_pdc!$C736=2,dati_bdv!$D$2:$D$65536,IF(dati_pdc!$C736=3,dati_bdv!$E$2:$E$65536,IF(dati_pdc!$C736=4,dati_bdv!$F$2:$F$65536,IF(dati_pdc!$C736=5,dati_bdv!$G$2:$G$65536,dati_bdv!$H$2:$H$65536))))),$A736,dati_bdv!N$2:N$65536)","v":0}]
[{"$f":"dati_pdc!A737","v":0},{"$f":"SUMIF(IF(dati_pdc!$C737=1,dati_bdv!$C$2:$C$65536,IF(dati_pdc!$C737=2,dati_bdv!$D$2:$D$65536,IF(dati_pdc!$C737=3,dati_bdv!$E$2:$E$65536,IF(dati_pdc!$C737=4,dati_bdv!$F$2:$F$65536,IF(dati_pdc!$C737=5,dati_bdv!$G$2:$G$65536,dati_bdv!$H$2:$H$65536))))),$A737,dati_bdv!J$2:J$65536)","v":0},{"$f":"SUMIF(IF(dati_pdc!$C737=1,dati_bdv!$C$2:$C$65536,IF(dati_pdc!$C737=2,dati_bdv!$D$2:$D$65536,IF(dati_pdc!$C737=3,dati_bdv!$E$2:$E$65536,IF(dati_pdc!$C737=4,dati_bdv!$F$2:$F$65536,IF(dati_pdc!$C737=5,dati_bdv!$G$2:$G$65536,dati_bdv!$H$2:$H$65536))))),$A737,dati_bdv!K$2:K$65536)","v":0},{"$f":"SUMIF(IF(dati_pdc!$C737=1,dati_bdv!$C$2:$C$65536,IF(dati_pdc!$C737=2,dati_bdv!$D$2:$D$65536,IF(dati_pdc!$C737=3,dati_bdv!$E$2:$E$65536,IF(dati_pdc!$C737=4,dati_bdv!$F$2:$F$65536,IF(dati_pdc!$C737=5,dati_bdv!$G$2:$G$65536,dati_bdv!$H$2:$H$65536))))),$A737,dati_bdv!L$2:L$65536)","v":0},{"$f":"SUMIF(IF(dati_pdc!$C737=1,dati_bdv!$C$2:$C$65536,IF(dati_pdc!$C737=2,dati_bdv!$D$2:$D$65536,IF(dati_pdc!$C737=3,dati_bdv!$E$2:$E$65536,IF(dati_pdc!$C737=4,dati_bdv!$F$2:$F$65536,IF(dati_pdc!$C737=5,dati_bdv!$G$2:$G$65536,dati_bdv!$H$2:$H$65536))))),$A737,dati_bdv!M$2:M$65536)","v":0},{"$f":"SUMIF(IF(dati_pdc!$C737=1,dati_bdv!$C$2:$C$65536,IF(dati_pdc!$C737=2,dati_bdv!$D$2:$D$65536,IF(dati_pdc!$C737=3,dati_bdv!$E$2:$E$65536,IF(dati_pdc!$C737=4,dati_bdv!$F$2:$F$65536,IF(dati_pdc!$C737=5,dati_bdv!$G$2:$G$65536,dati_bdv!$H$2:$H$65536))))),$A737,dati_bdv!N$2:N$65536)","v":0}]
[{"$f":"dati_pdc!A738","v":0},{"$f":"SUMIF(IF(dati_pdc!$C738=1,dati_bdv!$C$2:$C$65536,IF(dati_pdc!$C738=2,dati_bdv!$D$2:$D$65536,IF(dati_pdc!$C738=3,dati_bdv!$E$2:$E$65536,IF(dati_pdc!$C738=4,dati_bdv!$F$2:$F$65536,IF(dati_pdc!$C738=5,dati_bdv!$G$2:$G$65536,dati_bdv!$H$2:$H$65536))))),$A738,dati_bdv!J$2:J$65536)","v":0},{"$f":"SUMIF(IF(dati_pdc!$C738=1,dati_bdv!$C$2:$C$65536,IF(dati_pdc!$C738=2,dati_bdv!$D$2:$D$65536,IF(dati_pdc!$C738=3,dati_bdv!$E$2:$E$65536,IF(dati_pdc!$C738=4,dati_bdv!$F$2:$F$65536,IF(dati_pdc!$C738=5,dati_bdv!$G$2:$G$65536,dati_bdv!$H$2:$H$65536))))),$A738,dati_bdv!K$2:K$65536)","v":0},{"$f":"SUMIF(IF(dati_pdc!$C738=1,dati_bdv!$C$2:$C$65536,IF(dati_pdc!$C738=2,dati_bdv!$D$2:$D$65536,IF(dati_pdc!$C738=3,dati_bdv!$E$2:$E$65536,IF(dati_pdc!$C738=4,dati_bdv!$F$2:$F$65536,IF(dati_pdc!$C738=5,dati_bdv!$G$2:$G$65536,dati_bdv!$H$2:$H$65536))))),$A738,dati_bdv!L$2:L$65536)","v":0},{"$f":"SUMIF(IF(dati_pdc!$C738=1,dati_bdv!$C$2:$C$65536,IF(dati_pdc!$C738=2,dati_bdv!$D$2:$D$65536,IF(dati_pdc!$C738=3,dati_bdv!$E$2:$E$65536,IF(dati_pdc!$C738=4,dati_bdv!$F$2:$F$65536,IF(dati_pdc!$C738=5,dati_bdv!$G$2:$G$65536,dati_bdv!$H$2:$H$65536))))),$A738,dati_bdv!M$2:M$65536)","v":0},{"$f":"SUMIF(IF(dati_pdc!$C738=1,dati_bdv!$C$2:$C$65536,IF(dati_pdc!$C738=2,dati_bdv!$D$2:$D$65536,IF(dati_pdc!$C738=3,dati_bdv!$E$2:$E$65536,IF(dati_pdc!$C738=4,dati_bdv!$F$2:$F$65536,IF(dati_pdc!$C738=5,dati_bdv!$G$2:$G$65536,dati_bdv!$H$2:$H$65536))))),$A738,dati_bdv!N$2:N$65536)","v":0}]
[{"$f":"dati_pdc!A739","v":0},{"$f":"SUMIF(IF(dati_pdc!$C739=1,dati_bdv!$C$2:$C$65536,IF(dati_pdc!$C739=2,dati_bdv!$D$2:$D$65536,IF(dati_pdc!$C739=3,dati_bdv!$E$2:$E$65536,IF(dati_pdc!$C739=4,dati_bdv!$F$2:$F$65536,IF(dati_pdc!$C739=5,dati_bdv!$G$2:$G$65536,dati_bdv!$H$2:$H$65536))))),$A739,dati_bdv!J$2:J$65536)","v":0},{"$f":"SUMIF(IF(dati_pdc!$C739=1,dati_bdv!$C$2:$C$65536,IF(dati_pdc!$C739=2,dati_bdv!$D$2:$D$65536,IF(dati_pdc!$C739=3,dati_bdv!$E$2:$E$65536,IF(dati_pdc!$C739=4,dati_bdv!$F$2:$F$65536,IF(dati_pdc!$C739=5,dati_bdv!$G$2:$G$65536,dati_bdv!$H$2:$H$65536))))),$A739,dati_bdv!K$2:K$65536)","v":0},{"$f":"SUMIF(IF(dati_pdc!$C739=1,dati_bdv!$C$2:$C$65536,IF(dati_pdc!$C739=2,dati_bdv!$D$2:$D$65536,IF(dati_pdc!$C739=3,dati_bdv!$E$2:$E$65536,IF(dati_pdc!$C739=4,dati_bdv!$F$2:$F$65536,IF(dati_pdc!$C739=5,dati_bdv!$G$2:$G$65536,dati_bdv!$H$2:$H$65536))))),$A739,dati_bdv!L$2:L$65536)","v":0},{"$f":"SUMIF(IF(dati_pdc!$C739=1,dati_bdv!$C$2:$C$65536,IF(dati_pdc!$C739=2,dati_bdv!$D$2:$D$65536,IF(dati_pdc!$C739=3,dati_bdv!$E$2:$E$65536,IF(dati_pdc!$C739=4,dati_bdv!$F$2:$F$65536,IF(dati_pdc!$C739=5,dati_bdv!$G$2:$G$65536,dati_bdv!$H$2:$H$65536))))),$A739,dati_bdv!M$2:M$65536)","v":0},{"$f":"SUMIF(IF(dati_pdc!$C739=1,dati_bdv!$C$2:$C$65536,IF(dati_pdc!$C739=2,dati_bdv!$D$2:$D$65536,IF(dati_pdc!$C739=3,dati_bdv!$E$2:$E$65536,IF(dati_pdc!$C739=4,dati_bdv!$F$2:$F$65536,IF(dati_pdc!$C739=5,dati_bdv!$G$2:$G$65536,dati_bdv!$H$2:$H$65536))))),$A739,dati_bdv!N$2:N$65536)","v":0}]
[{"$f":"dati_pdc!A740","v":0},{"$f":"SUMIF(IF(dati_pdc!$C740=1,dati_bdv!$C$2:$C$65536,IF(dati_pdc!$C740=2,dati_bdv!$D$2:$D$65536,IF(dati_pdc!$C740=3,dati_bdv!$E$2:$E$65536,IF(dati_pdc!$C740=4,dati_bdv!$F$2:$F$65536,IF(dati_pdc!$C740=5,dati_bdv!$G$2:$G$65536,dati_bdv!$H$2:$H$65536))))),$A740,dati_bdv!J$2:J$65536)","v":0},{"$f":"SUMIF(IF(dati_pdc!$C740=1,dati_bdv!$C$2:$C$65536,IF(dati_pdc!$C740=2,dati_bdv!$D$2:$D$65536,IF(dati_pdc!$C740=3,dati_bdv!$E$2:$E$65536,IF(dati_pdc!$C740=4,dati_bdv!$F$2:$F$65536,IF(dati_pdc!$C740=5,dati_bdv!$G$2:$G$65536,dati_bdv!$H$2:$H$65536))))),$A740,dati_bdv!K$2:K$65536)","v":0},{"$f":"SUMIF(IF(dati_pdc!$C740=1,dati_bdv!$C$2:$C$65536,IF(dati_pdc!$C740=2,dati_bdv!$D$2:$D$65536,IF(dati_pdc!$C740=3,dati_bdv!$E$2:$E$65536,IF(dati_pdc!$C740=4,dati_bdv!$F$2:$F$65536,IF(dati_pdc!$C740=5,dati_bdv!$G$2:$G$65536,dati_bdv!$H$2:$H$65536))))),$A740,dati_bdv!L$2:L$65536)","v":0},{"$f":"SUMIF(IF(dati_pdc!$C740=1,dati_bdv!$C$2:$C$65536,IF(dati_pdc!$C740=2,dati_bdv!$D$2:$D$65536,IF(dati_pdc!$C740=3,dati_bdv!$E$2:$E$65536,IF(dati_pdc!$C740=4,dati_bdv!$F$2:$F$65536,IF(dati_pdc!$C740=5,dati_bdv!$G$2:$G$65536,dati_bdv!$H$2:$H$65536))))),$A740,dati_bdv!M$2:M$65536)","v":0},{"$f":"SUMIF(IF(dati_pdc!$C740=1,dati_bdv!$C$2:$C$65536,IF(dati_pdc!$C740=2,dati_bdv!$D$2:$D$65536,IF(dati_pdc!$C740=3,dati_bdv!$E$2:$E$65536,IF(dati_pdc!$C740=4,dati_bdv!$F$2:$F$65536,IF(dati_pdc!$C740=5,dati_bdv!$G$2:$G$65536,dati_bdv!$H$2:$H$65536))))),$A740,dati_bdv!N$2:N$65536)","v":0}]
[{"$f":"dati_pdc!A741","v":0},{"$f":"SUMIF(IF(dati_pdc!$C741=1,dati_bdv!$C$2:$C$65536,IF(dati_pdc!$C741=2,dati_bdv!$D$2:$D$65536,IF(dati_pdc!$C741=3,dati_bdv!$E$2:$E$65536,IF(dati_pdc!$C741=4,dati_bdv!$F$2:$F$65536,IF(dati_pdc!$C741=5,dati_bdv!$G$2:$G$65536,dati_bdv!$H$2:$H$65536))))),$A741,dati_bdv!J$2:J$65536)","v":0},{"$f":"SUMIF(IF(dati_pdc!$C741=1,dati_bdv!$C$2:$C$65536,IF(dati_pdc!$C741=2,dati_bdv!$D$2:$D$65536,IF(dati_pdc!$C741=3,dati_bdv!$E$2:$E$65536,IF(dati_pdc!$C741=4,dati_bdv!$F$2:$F$65536,IF(dati_pdc!$C741=5,dati_bdv!$G$2:$G$65536,dati_bdv!$H$2:$H$65536))))),$A741,dati_bdv!K$2:K$65536)","v":0},{"$f":"SUMIF(IF(dati_pdc!$C741=1,dati_bdv!$C$2:$C$65536,IF(dati_pdc!$C741=2,dati_bdv!$D$2:$D$65536,IF(dati_pdc!$C741=3,dati_bdv!$E$2:$E$65536,IF(dati_pdc!$C741=4,dati_bdv!$F$2:$F$65536,IF(dati_pdc!$C741=5,dati_bdv!$G$2:$G$65536,dati_bdv!$H$2:$H$65536))))),$A741,dati_bdv!L$2:L$65536)","v":0},{"$f":"SUMIF(IF(dati_pdc!$C741=1,dati_bdv!$C$2:$C$65536,IF(dati_pdc!$C741=2,dati_bdv!$D$2:$D$65536,IF(dati_pdc!$C741=3,dati_bdv!$E$2:$E$65536,IF(dati_pdc!$C741=4,dati_bdv!$F$2:$F$65536,IF(dati_pdc!$C741=5,dati_bdv!$G$2:$G$65536,dati_bdv!$H$2:$H$65536))))),$A741,dati_bdv!M$2:M$65536)","v":0},{"$f":"SUMIF(IF(dati_pdc!$C741=1,dati_bdv!$C$2:$C$65536,IF(dati_pdc!$C741=2,dati_bdv!$D$2:$D$65536,IF(dati_pdc!$C741=3,dati_bdv!$E$2:$E$65536,IF(dati_pdc!$C741=4,dati_bdv!$F$2:$F$65536,IF(dati_pdc!$C741=5,dati_bdv!$G$2:$G$65536,dati_bdv!$H$2:$H$65536))))),$A741,dati_bdv!N$2:N$65536)","v":0}]
[{"$f":"dati_pdc!A742","v":0},{"$f":"SUMIF(IF(dati_pdc!$C742=1,dati_bdv!$C$2:$C$65536,IF(dati_pdc!$C742=2,dati_bdv!$D$2:$D$65536,IF(dati_pdc!$C742=3,dati_bdv!$E$2:$E$65536,IF(dati_pdc!$C742=4,dati_bdv!$F$2:$F$65536,IF(dati_pdc!$C742=5,dati_bdv!$G$2:$G$65536,dati_bdv!$H$2:$H$65536))))),$A742,dati_bdv!J$2:J$65536)","v":0},{"$f":"SUMIF(IF(dati_pdc!$C742=1,dati_bdv!$C$2:$C$65536,IF(dati_pdc!$C742=2,dati_bdv!$D$2:$D$65536,IF(dati_pdc!$C742=3,dati_bdv!$E$2:$E$65536,IF(dati_pdc!$C742=4,dati_bdv!$F$2:$F$65536,IF(dati_pdc!$C742=5,dati_bdv!$G$2:$G$65536,dati_bdv!$H$2:$H$65536))))),$A742,dati_bdv!K$2:K$65536)","v":0},{"$f":"SUMIF(IF(dati_pdc!$C742=1,dati_bdv!$C$2:$C$65536,IF(dati_pdc!$C742=2,dati_bdv!$D$2:$D$65536,IF(dati_pdc!$C742=3,dati_bdv!$E$2:$E$65536,IF(dati_pdc!$C742=4,dati_bdv!$F$2:$F$65536,IF(dati_pdc!$C742=5,dati_bdv!$G$2:$G$65536,dati_bdv!$H$2:$H$65536))))),$A742,dati_bdv!L$2:L$65536)","v":0},{"$f":"SUMIF(IF(dati_pdc!$C742=1,dati_bdv!$C$2:$C$65536,IF(dati_pdc!$C742=2,dati_bdv!$D$2:$D$65536,IF(dati_pdc!$C742=3,dati_bdv!$E$2:$E$65536,IF(dati_pdc!$C742=4,dati_bdv!$F$2:$F$65536,IF(dati_pdc!$C742=5,dati_bdv!$G$2:$G$65536,dati_bdv!$H$2:$H$65536))))),$A742,dati_bdv!M$2:M$65536)","v":0},{"$f":"SUMIF(IF(dati_pdc!$C742=1,dati_bdv!$C$2:$C$65536,IF(dati_pdc!$C742=2,dati_bdv!$D$2:$D$65536,IF(dati_pdc!$C742=3,dati_bdv!$E$2:$E$65536,IF(dati_pdc!$C742=4,dati_bdv!$F$2:$F$65536,IF(dati_pdc!$C742=5,dati_bdv!$G$2:$G$65536,dati_bdv!$H$2:$H$65536))))),$A742,dati_bdv!N$2:N$65536)","v":0}]
[{"$f":"dati_pdc!A743","v":0},{"$f":"SUMIF(IF(dati_pdc!$C743=1,dati_bdv!$C$2:$C$65536,IF(dati_pdc!$C743=2,dati_bdv!$D$2:$D$65536,IF(dati_pdc!$C743=3,dati_bdv!$E$2:$E$65536,IF(dati_pdc!$C743=4,dati_bdv!$F$2:$F$65536,IF(dati_pdc!$C743=5,dati_bdv!$G$2:$G$65536,dati_bdv!$H$2:$H$65536))))),$A743,dati_bdv!J$2:J$65536)","v":0},{"$f":"SUMIF(IF(dati_pdc!$C743=1,dati_bdv!$C$2:$C$65536,IF(dati_pdc!$C743=2,dati_bdv!$D$2:$D$65536,IF(dati_pdc!$C743=3,dati_bdv!$E$2:$E$65536,IF(dati_pdc!$C743=4,dati_bdv!$F$2:$F$65536,IF(dati_pdc!$C743=5,dati_bdv!$G$2:$G$65536,dati_bdv!$H$2:$H$65536))))),$A743,dati_bdv!K$2:K$65536)","v":0},{"$f":"SUMIF(IF(dati_pdc!$C743=1,dati_bdv!$C$2:$C$65536,IF(dati_pdc!$C743=2,dati_bdv!$D$2:$D$65536,IF(dati_pdc!$C743=3,dati_bdv!$E$2:$E$65536,IF(dati_pdc!$C743=4,dati_bdv!$F$2:$F$65536,IF(dati_pdc!$C743=5,dati_bdv!$G$2:$G$65536,dati_bdv!$H$2:$H$65536))))),$A743,dati_bdv!L$2:L$65536)","v":0},{"$f":"SUMIF(IF(dati_pdc!$C743=1,dati_bdv!$C$2:$C$65536,IF(dati_pdc!$C743=2,dati_bdv!$D$2:$D$65536,IF(dati_pdc!$C743=3,dati_bdv!$E$2:$E$65536,IF(dati_pdc!$C743=4,dati_bdv!$F$2:$F$65536,IF(dati_pdc!$C743=5,dati_bdv!$G$2:$G$65536,dati_bdv!$H$2:$H$65536))))),$A743,dati_bdv!M$2:M$65536)","v":0},{"$f":"SUMIF(IF(dati_pdc!$C743=1,dati_bdv!$C$2:$C$65536,IF(dati_pdc!$C743=2,dati_bdv!$D$2:$D$65536,IF(dati_pdc!$C743=3,dati_bdv!$E$2:$E$65536,IF(dati_pdc!$C743=4,dati_bdv!$F$2:$F$65536,IF(dati_pdc!$C743=5,dati_bdv!$G$2:$G$65536,dati_bdv!$H$2:$H$65536))))),$A743,dati_bdv!N$2:N$65536)","v":0}]
[{"$f":"dati_pdc!A744","v":0},{"$f":"SUMIF(IF(dati_pdc!$C744=1,dati_bdv!$C$2:$C$65536,IF(dati_pdc!$C744=2,dati_bdv!$D$2:$D$65536,IF(dati_pdc!$C744=3,dati_bdv!$E$2:$E$65536,IF(dati_pdc!$C744=4,dati_bdv!$F$2:$F$65536,IF(dati_pdc!$C744=5,dati_bdv!$G$2:$G$65536,dati_bdv!$H$2:$H$65536))))),$A744,dati_bdv!J$2:J$65536)","v":0},{"$f":"SUMIF(IF(dati_pdc!$C744=1,dati_bdv!$C$2:$C$65536,IF(dati_pdc!$C744=2,dati_bdv!$D$2:$D$65536,IF(dati_pdc!$C744=3,dati_bdv!$E$2:$E$65536,IF(dati_pdc!$C744=4,dati_bdv!$F$2:$F$65536,IF(dati_pdc!$C744=5,dati_bdv!$G$2:$G$65536,dati_bdv!$H$2:$H$65536))))),$A744,dati_bdv!K$2:K$65536)","v":0},{"$f":"SUMIF(IF(dati_pdc!$C744=1,dati_bdv!$C$2:$C$65536,IF(dati_pdc!$C744=2,dati_bdv!$D$2:$D$65536,IF(dati_pdc!$C744=3,dati_bdv!$E$2:$E$65536,IF(dati_pdc!$C744=4,dati_bdv!$F$2:$F$65536,IF(dati_pdc!$C744=5,dati_bdv!$G$2:$G$65536,dati_bdv!$H$2:$H$65536))))),$A744,dati_bdv!L$2:L$65536)","v":0},{"$f":"SUMIF(IF(dati_pdc!$C744=1,dati_bdv!$C$2:$C$65536,IF(dati_pdc!$C744=2,dati_bdv!$D$2:$D$65536,IF(dati_pdc!$C744=3,dati_bdv!$E$2:$E$65536,IF(dati_pdc!$C744=4,dati_bdv!$F$2:$F$65536,IF(dati_pdc!$C744=5,dati_bdv!$G$2:$G$65536,dati_bdv!$H$2:$H$65536))))),$A744,dati_bdv!M$2:M$65536)","v":0},{"$f":"SUMIF(IF(dati_pdc!$C744=1,dati_bdv!$C$2:$C$65536,IF(dati_pdc!$C744=2,dati_bdv!$D$2:$D$65536,IF(dati_pdc!$C744=3,dati_bdv!$E$2:$E$65536,IF(dati_pdc!$C744=4,dati_bdv!$F$2:$F$65536,IF(dati_pdc!$C744=5,dati_bdv!$G$2:$G$65536,dati_bdv!$H$2:$H$65536))))),$A744,dati_bdv!N$2:N$65536)","v":0}]
[{"$f":"dati_pdc!A745","v":0},{"$f":"SUMIF(IF(dati_pdc!$C745=1,dati_bdv!$C$2:$C$65536,IF(dati_pdc!$C745=2,dati_bdv!$D$2:$D$65536,IF(dati_pdc!$C745=3,dati_bdv!$E$2:$E$65536,IF(dati_pdc!$C745=4,dati_bdv!$F$2:$F$65536,IF(dati_pdc!$C745=5,dati_bdv!$G$2:$G$65536,dati_bdv!$H$2:$H$65536))))),$A745,dati_bdv!J$2:J$65536)","v":0},{"$f":"SUMIF(IF(dati_pdc!$C745=1,dati_bdv!$C$2:$C$65536,IF(dati_pdc!$C745=2,dati_bdv!$D$2:$D$65536,IF(dati_pdc!$C745=3,dati_bdv!$E$2:$E$65536,IF(dati_pdc!$C745=4,dati_bdv!$F$2:$F$65536,IF(dati_pdc!$C745=5,dati_bdv!$G$2:$G$65536,dati_bdv!$H$2:$H$65536))))),$A745,dati_bdv!K$2:K$65536)","v":0},{"$f":"SUMIF(IF(dati_pdc!$C745=1,dati_bdv!$C$2:$C$65536,IF(dati_pdc!$C745=2,dati_bdv!$D$2:$D$65536,IF(dati_pdc!$C745=3,dati_bdv!$E$2:$E$65536,IF(dati_pdc!$C745=4,dati_bdv!$F$2:$F$65536,IF(dati_pdc!$C745=5,dati_bdv!$G$2:$G$65536,dati_bdv!$H$2:$H$65536))))),$A745,dati_bdv!L$2:L$65536)","v":0},{"$f":"SUMIF(IF(dati_pdc!$C745=1,dati_bdv!$C$2:$C$65536,IF(dati_pdc!$C745=2,dati_bdv!$D$2:$D$65536,IF(dati_pdc!$C745=3,dati_bdv!$E$2:$E$65536,IF(dati_pdc!$C745=4,dati_bdv!$F$2:$F$65536,IF(dati_pdc!$C745=5,dati_bdv!$G$2:$G$65536,dati_bdv!$H$2:$H$65536))))),$A745,dati_bdv!M$2:M$65536)","v":0},{"$f":"SUMIF(IF(dati_pdc!$C745=1,dati_bdv!$C$2:$C$65536,IF(dati_pdc!$C745=2,dati_bdv!$D$2:$D$65536,IF(dati_pdc!$C745=3,dati_bdv!$E$2:$E$65536,IF(dati_pdc!$C745=4,dati_bdv!$F$2:$F$65536,IF(dati_pdc!$C745=5,dati_bdv!$G$2:$G$65536,dati_bdv!$H$2:$H$65536))))),$A745,dati_bdv!N$2:N$65536)","v":0}]
[{"$f":"dati_pdc!A746","v":0},{"$f":"SUMIF(IF(dati_pdc!$C746=1,dati_bdv!$C$2:$C$65536,IF(dati_pdc!$C746=2,dati_bdv!$D$2:$D$65536,IF(dati_pdc!$C746=3,dati_bdv!$E$2:$E$65536,IF(dati_pdc!$C746=4,dati_bdv!$F$2:$F$65536,IF(dati_pdc!$C746=5,dati_bdv!$G$2:$G$65536,dati_bdv!$H$2:$H$65536))))),$A746,dati_bdv!J$2:J$65536)","v":0},{"$f":"SUMIF(IF(dati_pdc!$C746=1,dati_bdv!$C$2:$C$65536,IF(dati_pdc!$C746=2,dati_bdv!$D$2:$D$65536,IF(dati_pdc!$C746=3,dati_bdv!$E$2:$E$65536,IF(dati_pdc!$C746=4,dati_bdv!$F$2:$F$65536,IF(dati_pdc!$C746=5,dati_bdv!$G$2:$G$65536,dati_bdv!$H$2:$H$65536))))),$A746,dati_bdv!K$2:K$65536)","v":0},{"$f":"SUMIF(IF(dati_pdc!$C746=1,dati_bdv!$C$2:$C$65536,IF(dati_pdc!$C746=2,dati_bdv!$D$2:$D$65536,IF(dati_pdc!$C746=3,dati_bdv!$E$2:$E$65536,IF(dati_pdc!$C746=4,dati_bdv!$F$2:$F$65536,IF(dati_pdc!$C746=5,dati_bdv!$G$2:$G$65536,dati_bdv!$H$2:$H$65536))))),$A746,dati_bdv!L$2:L$65536)","v":0},{"$f":"SUMIF(IF(dati_pdc!$C746=1,dati_bdv!$C$2:$C$65536,IF(dati_pdc!$C746=2,dati_bdv!$D$2:$D$65536,IF(dati_pdc!$C746=3,dati_bdv!$E$2:$E$65536,IF(dati_pdc!$C746=4,dati_bdv!$F$2:$F$65536,IF(dati_pdc!$C746=5,dati_bdv!$G$2:$G$65536,dati_bdv!$H$2:$H$65536))))),$A746,dati_bdv!M$2:M$65536)","v":0},{"$f":"SUMIF(IF(dati_pdc!$C746=1,dati_bdv!$C$2:$C$65536,IF(dati_pdc!$C746=2,dati_bdv!$D$2:$D$65536,IF(dati_pdc!$C746=3,dati_bdv!$E$2:$E$65536,IF(dati_pdc!$C746=4,dati_bdv!$F$2:$F$65536,IF(dati_pdc!$C746=5,dati_bdv!$G$2:$G$65536,dati_bdv!$H$2:$H$65536))))),$A746,dati_bdv!N$2:N$65536)","v":0}]
[{"$f":"dati_pdc!A747","v":0},{"$f":"SUMIF(IF(dati_pdc!$C747=1,dati_bdv!$C$2:$C$65536,IF(dati_pdc!$C747=2,dati_bdv!$D$2:$D$65536,IF(dati_pdc!$C747=3,dati_bdv!$E$2:$E$65536,IF(dati_pdc!$C747=4,dati_bdv!$F$2:$F$65536,IF(dati_pdc!$C747=5,dati_bdv!$G$2:$G$65536,dati_bdv!$H$2:$H$65536))))),$A747,dati_bdv!J$2:J$65536)","v":0},{"$f":"SUMIF(IF(dati_pdc!$C747=1,dati_bdv!$C$2:$C$65536,IF(dati_pdc!$C747=2,dati_bdv!$D$2:$D$65536,IF(dati_pdc!$C747=3,dati_bdv!$E$2:$E$65536,IF(dati_pdc!$C747=4,dati_bdv!$F$2:$F$65536,IF(dati_pdc!$C747=5,dati_bdv!$G$2:$G$65536,dati_bdv!$H$2:$H$65536))))),$A747,dati_bdv!K$2:K$65536)","v":0},{"$f":"SUMIF(IF(dati_pdc!$C747=1,dati_bdv!$C$2:$C$65536,IF(dati_pdc!$C747=2,dati_bdv!$D$2:$D$65536,IF(dati_pdc!$C747=3,dati_bdv!$E$2:$E$65536,IF(dati_pdc!$C747=4,dati_bdv!$F$2:$F$65536,IF(dati_pdc!$C747=5,dati_bdv!$G$2:$G$65536,dati_bdv!$H$2:$H$65536))))),$A747,dati_bdv!L$2:L$65536)","v":0},{"$f":"SUMIF(IF(dati_pdc!$C747=1,dati_bdv!$C$2:$C$65536,IF(dati_pdc!$C747=2,dati_bdv!$D$2:$D$65536,IF(dati_pdc!$C747=3,dati_bdv!$E$2:$E$65536,IF(dati_pdc!$C747=4,dati_bdv!$F$2:$F$65536,IF(dati_pdc!$C747=5,dati_bdv!$G$2:$G$65536,dati_bdv!$H$2:$H$65536))))),$A747,dati_bdv!M$2:M$65536)","v":0},{"$f":"SUMIF(IF(dati_pdc!$C747=1,dati_bdv!$C$2:$C$65536,IF(dati_pdc!$C747=2,dati_bdv!$D$2:$D$65536,IF(dati_pdc!$C747=3,dati_bdv!$E$2:$E$65536,IF(dati_pdc!$C747=4,dati_bdv!$F$2:$F$65536,IF(dati_pdc!$C747=5,dati_bdv!$G$2:$G$65536,dati_bdv!$H$2:$H$65536))))),$A747,dati_bdv!N$2:N$65536)","v":0}]
[{"$f":"dati_pdc!A748","v":0},{"$f":"SUMIF(IF(dati_pdc!$C748=1,dati_bdv!$C$2:$C$65536,IF(dati_pdc!$C748=2,dati_bdv!$D$2:$D$65536,IF(dati_pdc!$C748=3,dati_bdv!$E$2:$E$65536,IF(dati_pdc!$C748=4,dati_bdv!$F$2:$F$65536,IF(dati_pdc!$C748=5,dati_bdv!$G$2:$G$65536,dati_bdv!$H$2:$H$65536))))),$A748,dati_bdv!J$2:J$65536)","v":0},{"$f":"SUMIF(IF(dati_pdc!$C748=1,dati_bdv!$C$2:$C$65536,IF(dati_pdc!$C748=2,dati_bdv!$D$2:$D$65536,IF(dati_pdc!$C748=3,dati_bdv!$E$2:$E$65536,IF(dati_pdc!$C748=4,dati_bdv!$F$2:$F$65536,IF(dati_pdc!$C748=5,dati_bdv!$G$2:$G$65536,dati_bdv!$H$2:$H$65536))))),$A748,dati_bdv!K$2:K$65536)","v":0},{"$f":"SUMIF(IF(dati_pdc!$C748=1,dati_bdv!$C$2:$C$65536,IF(dati_pdc!$C748=2,dati_bdv!$D$2:$D$65536,IF(dati_pdc!$C748=3,dati_bdv!$E$2:$E$65536,IF(dati_pdc!$C748=4,dati_bdv!$F$2:$F$65536,IF(dati_pdc!$C748=5,dati_bdv!$G$2:$G$65536,dati_bdv!$H$2:$H$65536))))),$A748,dati_bdv!L$2:L$65536)","v":0},{"$f":"SUMIF(IF(dati_pdc!$C748=1,dati_bdv!$C$2:$C$65536,IF(dati_pdc!$C748=2,dati_bdv!$D$2:$D$65536,IF(dati_pdc!$C748=3,dati_bdv!$E$2:$E$65536,IF(dati_pdc!$C748=4,dati_bdv!$F$2:$F$65536,IF(dati_pdc!$C748=5,dati_bdv!$G$2:$G$65536,dati_bdv!$H$2:$H$65536))))),$A748,dati_bdv!M$2:M$65536)","v":0},{"$f":"SUMIF(IF(dati_pdc!$C748=1,dati_bdv!$C$2:$C$65536,IF(dati_pdc!$C748=2,dati_bdv!$D$2:$D$65536,IF(dati_pdc!$C748=3,dati_bdv!$E$2:$E$65536,IF(dati_pdc!$C748=4,dati_bdv!$F$2:$F$65536,IF(dati_pdc!$C748=5,dati_bdv!$G$2:$G$65536,dati_bdv!$H$2:$H$65536))))),$A748,dati_bdv!N$2:N$65536)","v":0}]
[{"$f":"dati_pdc!A749","v":0},{"$f":"SUMIF(IF(dati_pdc!$C749=1,dati_bdv!$C$2:$C$65536,IF(dati_pdc!$C749=2,dati_bdv!$D$2:$D$65536,IF(dati_pdc!$C749=3,dati_bdv!$E$2:$E$65536,IF(dati_pdc!$C749=4,dati_bdv!$F$2:$F$65536,IF(dati_pdc!$C749=5,dati_bdv!$G$2:$G$65536,dati_bdv!$H$2:$H$65536))))),$A749,dati_bdv!J$2:J$65536)","v":0},{"$f":"SUMIF(IF(dati_pdc!$C749=1,dati_bdv!$C$2:$C$65536,IF(dati_pdc!$C749=2,dati_bdv!$D$2:$D$65536,IF(dati_pdc!$C749=3,dati_bdv!$E$2:$E$65536,IF(dati_pdc!$C749=4,dati_bdv!$F$2:$F$65536,IF(dati_pdc!$C749=5,dati_bdv!$G$2:$G$65536,dati_bdv!$H$2:$H$65536))))),$A749,dati_bdv!K$2:K$65536)","v":0},{"$f":"SUMIF(IF(dati_pdc!$C749=1,dati_bdv!$C$2:$C$65536,IF(dati_pdc!$C749=2,dati_bdv!$D$2:$D$65536,IF(dati_pdc!$C749=3,dati_bdv!$E$2:$E$65536,IF(dati_pdc!$C749=4,dati_bdv!$F$2:$F$65536,IF(dati_pdc!$C749=5,dati_bdv!$G$2:$G$65536,dati_bdv!$H$2:$H$65536))))),$A749,dati_bdv!L$2:L$65536)","v":0},{"$f":"SUMIF(IF(dati_pdc!$C749=1,dati_bdv!$C$2:$C$65536,IF(dati_pdc!$C749=2,dati_bdv!$D$2:$D$65536,IF(dati_pdc!$C749=3,dati_bdv!$E$2:$E$65536,IF(dati_pdc!$C749=4,dati_bdv!$F$2:$F$65536,IF(dati_pdc!$C749=5,dati_bdv!$G$2:$G$65536,dati_bdv!$H$2:$H$65536))))),$A749,dati_bdv!M$2:M$65536)","v":0},{"$f":"SUMIF(IF(dati_pdc!$C749=1,dati_bdv!$C$2:$C$65536,IF(dati_pdc!$C749=2,dati_bdv!$D$2:$D$65536,IF(dati_pdc!$C749=3,dati_bdv!$E$2:$E$65536,IF(dati_pdc!$C749=4,dati_bdv!$F$2:$F$65536,IF(dati_pdc!$C749=5,dati_bdv!$G$2:$G$65536,dati_bdv!$H$2:$H$65536))))),$A749,dati_bdv!N$2:N$65536)","v":0}]
[{"$f":"dati_pdc!A750","v":0},{"$f":"SUMIF(IF(dati_pdc!$C750=1,dati_bdv!$C$2:$C$65536,IF(dati_pdc!$C750=2,dati_bdv!$D$2:$D$65536,IF(dati_pdc!$C750=3,dati_bdv!$E$2:$E$65536,IF(dati_pdc!$C750=4,dati_bdv!$F$2:$F$65536,IF(dati_pdc!$C750=5,dati_bdv!$G$2:$G$65536,dati_bdv!$H$2:$H$65536))))),$A750,dati_bdv!J$2:J$65536)","v":0},{"$f":"SUMIF(IF(dati_pdc!$C750=1,dati_bdv!$C$2:$C$65536,IF(dati_pdc!$C750=2,dati_bdv!$D$2:$D$65536,IF(dati_pdc!$C750=3,dati_bdv!$E$2:$E$65536,IF(dati_pdc!$C750=4,dati_bdv!$F$2:$F$65536,IF(dati_pdc!$C750=5,dati_bdv!$G$2:$G$65536,dati_bdv!$H$2:$H$65536))))),$A750,dati_bdv!K$2:K$65536)","v":0},{"$f":"SUMIF(IF(dati_pdc!$C750=1,dati_bdv!$C$2:$C$65536,IF(dati_pdc!$C750=2,dati_bdv!$D$2:$D$65536,IF(dati_pdc!$C750=3,dati_bdv!$E$2:$E$65536,IF(dati_pdc!$C750=4,dati_bdv!$F$2:$F$65536,IF(dati_pdc!$C750=5,dati_bdv!$G$2:$G$65536,dati_bdv!$H$2:$H$65536))))),$A750,dati_bdv!L$2:L$65536)","v":0},{"$f":"SUMIF(IF(dati_pdc!$C750=1,dati_bdv!$C$2:$C$65536,IF(dati_pdc!$C750=2,dati_bdv!$D$2:$D$65536,IF(dati_pdc!$C750=3,dati_bdv!$E$2:$E$65536,IF(dati_pdc!$C750=4,dati_bdv!$F$2:$F$65536,IF(dati_pdc!$C750=5,dati_bdv!$G$2:$G$65536,dati_bdv!$H$2:$H$65536))))),$A750,dati_bdv!M$2:M$65536)","v":0},{"$f":"SUMIF(IF(dati_pdc!$C750=1,dati_bdv!$C$2:$C$65536,IF(dati_pdc!$C750=2,dati_bdv!$D$2:$D$65536,IF(dati_pdc!$C750=3,dati_bdv!$E$2:$E$65536,IF(dati_pdc!$C750=4,dati_bdv!$F$2:$F$65536,IF(dati_pdc!$C750=5,dati_bdv!$G$2:$G$65536,dati_bdv!$H$2:$H$65536))))),$A750,dati_bdv!N$2:N$65536)","v":0}]
[{"$f":"dati_pdc!A751","v":0},{"$f":"SUMIF(IF(dati_pdc!$C751=1,dati_bdv!$C$2:$C$65536,IF(dati_pdc!$C751=2,dati_bdv!$D$2:$D$65536,IF(dati_pdc!$C751=3,dati_bdv!$E$2:$E$65536,IF(dati_pdc!$C751=4,dati_bdv!$F$2:$F$65536,IF(dati_pdc!$C751=5,dati_bdv!$G$2:$G$65536,dati_bdv!$H$2:$H$65536))))),$A751,dati_bdv!J$2:J$65536)","v":0},{"$f":"SUMIF(IF(dati_pdc!$C751=1,dati_bdv!$C$2:$C$65536,IF(dati_pdc!$C751=2,dati_bdv!$D$2:$D$65536,IF(dati_pdc!$C751=3,dati_bdv!$E$2:$E$65536,IF(dati_pdc!$C751=4,dati_bdv!$F$2:$F$65536,IF(dati_pdc!$C751=5,dati_bdv!$G$2:$G$65536,dati_bdv!$H$2:$H$65536))))),$A751,dati_bdv!K$2:K$65536)","v":0},{"$f":"SUMIF(IF(dati_pdc!$C751=1,dati_bdv!$C$2:$C$65536,IF(dati_pdc!$C751=2,dati_bdv!$D$2:$D$65536,IF(dati_pdc!$C751=3,dati_bdv!$E$2:$E$65536,IF(dati_pdc!$C751=4,dati_bdv!$F$2:$F$65536,IF(dati_pdc!$C751=5,dati_bdv!$G$2:$G$65536,dati_bdv!$H$2:$H$65536))))),$A751,dati_bdv!L$2:L$65536)","v":0},{"$f":"SUMIF(IF(dati_pdc!$C751=1,dati_bdv!$C$2:$C$65536,IF(dati_pdc!$C751=2,dati_bdv!$D$2:$D$65536,IF(dati_pdc!$C751=3,dati_bdv!$E$2:$E$65536,IF(dati_pdc!$C751=4,dati_bdv!$F$2:$F$65536,IF(dati_pdc!$C751=5,dati_bdv!$G$2:$G$65536,dati_bdv!$H$2:$H$65536))))),$A751,dati_bdv!M$2:M$65536)","v":0},{"$f":"SUMIF(IF(dati_pdc!$C751=1,dati_bdv!$C$2:$C$65536,IF(dati_pdc!$C751=2,dati_bdv!$D$2:$D$65536,IF(dati_pdc!$C751=3,dati_bdv!$E$2:$E$65536,IF(dati_pdc!$C751=4,dati_bdv!$F$2:$F$65536,IF(dati_pdc!$C751=5,dati_bdv!$G$2:$G$65536,dati_bdv!$H$2:$H$65536))))),$A751,dati_bdv!N$2:N$65536)","v":0}]
[{"$f":"dati_pdc!A752","v":0},{"$f":"SUMIF(IF(dati_pdc!$C752=1,dati_bdv!$C$2:$C$65536,IF(dati_pdc!$C752=2,dati_bdv!$D$2:$D$65536,IF(dati_pdc!$C752=3,dati_bdv!$E$2:$E$65536,IF(dati_pdc!$C752=4,dati_bdv!$F$2:$F$65536,IF(dati_pdc!$C752=5,dati_bdv!$G$2:$G$65536,dati_bdv!$H$2:$H$65536))))),$A752,dati_bdv!J$2:J$65536)","v":0},{"$f":"SUMIF(IF(dati_pdc!$C752=1,dati_bdv!$C$2:$C$65536,IF(dati_pdc!$C752=2,dati_bdv!$D$2:$D$65536,IF(dati_pdc!$C752=3,dati_bdv!$E$2:$E$65536,IF(dati_pdc!$C752=4,dati_bdv!$F$2:$F$65536,IF(dati_pdc!$C752=5,dati_bdv!$G$2:$G$65536,dati_bdv!$H$2:$H$65536))))),$A752,dati_bdv!K$2:K$65536)","v":0},{"$f":"SUMIF(IF(dati_pdc!$C752=1,dati_bdv!$C$2:$C$65536,IF(dati_pdc!$C752=2,dati_bdv!$D$2:$D$65536,IF(dati_pdc!$C752=3,dati_bdv!$E$2:$E$65536,IF(dati_pdc!$C752=4,dati_bdv!$F$2:$F$65536,IF(dati_pdc!$C752=5,dati_bdv!$G$2:$G$65536,dati_bdv!$H$2:$H$65536))))),$A752,dati_bdv!L$2:L$65536)","v":0},{"$f":"SUMIF(IF(dati_pdc!$C752=1,dati_bdv!$C$2:$C$65536,IF(dati_pdc!$C752=2,dati_bdv!$D$2:$D$65536,IF(dati_pdc!$C752=3,dati_bdv!$E$2:$E$65536,IF(dati_pdc!$C752=4,dati_bdv!$F$2:$F$65536,IF(dati_pdc!$C752=5,dati_bdv!$G$2:$G$65536,dati_bdv!$H$2:$H$65536))))),$A752,dati_bdv!M$2:M$65536)","v":0},{"$f":"SUMIF(IF(dati_pdc!$C752=1,dati_bdv!$C$2:$C$65536,IF(dati_pdc!$C752=2,dati_bdv!$D$2:$D$65536,IF(dati_pdc!$C752=3,dati_bdv!$E$2:$E$65536,IF(dati_pdc!$C752=4,dati_bdv!$F$2:$F$65536,IF(dati_pdc!$C752=5,dati_bdv!$G$2:$G$65536,dati_bdv!$H$2:$H$65536))))),$A752,dati_bdv!N$2:N$65536)","v":0}]
[{"$f":"dati_pdc!A753","v":0},{"$f":"SUMIF(IF(dati_pdc!$C753=1,dati_bdv!$C$2:$C$65536,IF(dati_pdc!$C753=2,dati_bdv!$D$2:$D$65536,IF(dati_pdc!$C753=3,dati_bdv!$E$2:$E$65536,IF(dati_pdc!$C753=4,dati_bdv!$F$2:$F$65536,IF(dati_pdc!$C753=5,dati_bdv!$G$2:$G$65536,dati_bdv!$H$2:$H$65536))))),$A753,dati_bdv!J$2:J$65536)","v":0},{"$f":"SUMIF(IF(dati_pdc!$C753=1,dati_bdv!$C$2:$C$65536,IF(dati_pdc!$C753=2,dati_bdv!$D$2:$D$65536,IF(dati_pdc!$C753=3,dati_bdv!$E$2:$E$65536,IF(dati_pdc!$C753=4,dati_bdv!$F$2:$F$65536,IF(dati_pdc!$C753=5,dati_bdv!$G$2:$G$65536,dati_bdv!$H$2:$H$65536))))),$A753,dati_bdv!K$2:K$65536)","v":0},{"$f":"SUMIF(IF(dati_pdc!$C753=1,dati_bdv!$C$2:$C$65536,IF(dati_pdc!$C753=2,dati_bdv!$D$2:$D$65536,IF(dati_pdc!$C753=3,dati_bdv!$E$2:$E$65536,IF(dati_pdc!$C753=4,dati_bdv!$F$2:$F$65536,IF(dati_pdc!$C753=5,dati_bdv!$G$2:$G$65536,dati_bdv!$H$2:$H$65536))))),$A753,dati_bdv!L$2:L$65536)","v":0},{"$f":"SUMIF(IF(dati_pdc!$C753=1,dati_bdv!$C$2:$C$65536,IF(dati_pdc!$C753=2,dati_bdv!$D$2:$D$65536,IF(dati_pdc!$C753=3,dati_bdv!$E$2:$E$65536,IF(dati_pdc!$C753=4,dati_bdv!$F$2:$F$65536,IF(dati_pdc!$C753=5,dati_bdv!$G$2:$G$65536,dati_bdv!$H$2:$H$65536))))),$A753,dati_bdv!M$2:M$65536)","v":0},{"$f":"SUMIF(IF(dati_pdc!$C753=1,dati_bdv!$C$2:$C$65536,IF(dati_pdc!$C753=2,dati_bdv!$D$2:$D$65536,IF(dati_pdc!$C753=3,dati_bdv!$E$2:$E$65536,IF(dati_pdc!$C753=4,dati_bdv!$F$2:$F$65536,IF(dati_pdc!$C753=5,dati_bdv!$G$2:$G$65536,dati_bdv!$H$2:$H$65536))))),$A753,dati_bdv!N$2:N$65536)","v":0}]
[{"$f":"dati_pdc!A754","v":0},{"$f":"SUMIF(IF(dati_pdc!$C754=1,dati_bdv!$C$2:$C$65536,IF(dati_pdc!$C754=2,dati_bdv!$D$2:$D$65536,IF(dati_pdc!$C754=3,dati_bdv!$E$2:$E$65536,IF(dati_pdc!$C754=4,dati_bdv!$F$2:$F$65536,IF(dati_pdc!$C754=5,dati_bdv!$G$2:$G$65536,dati_bdv!$H$2:$H$65536))))),$A754,dati_bdv!J$2:J$65536)","v":0},{"$f":"SUMIF(IF(dati_pdc!$C754=1,dati_bdv!$C$2:$C$65536,IF(dati_pdc!$C754=2,dati_bdv!$D$2:$D$65536,IF(dati_pdc!$C754=3,dati_bdv!$E$2:$E$65536,IF(dati_pdc!$C754=4,dati_bdv!$F$2:$F$65536,IF(dati_pdc!$C754=5,dati_bdv!$G$2:$G$65536,dati_bdv!$H$2:$H$65536))))),$A754,dati_bdv!K$2:K$65536)","v":0},{"$f":"SUMIF(IF(dati_pdc!$C754=1,dati_bdv!$C$2:$C$65536,IF(dati_pdc!$C754=2,dati_bdv!$D$2:$D$65536,IF(dati_pdc!$C754=3,dati_bdv!$E$2:$E$65536,IF(dati_pdc!$C754=4,dati_bdv!$F$2:$F$65536,IF(dati_pdc!$C754=5,dati_bdv!$G$2:$G$65536,dati_bdv!$H$2:$H$65536))))),$A754,dati_bdv!L$2:L$65536)","v":0},{"$f":"SUMIF(IF(dati_pdc!$C754=1,dati_bdv!$C$2:$C$65536,IF(dati_pdc!$C754=2,dati_bdv!$D$2:$D$65536,IF(dati_pdc!$C754=3,dati_bdv!$E$2:$E$65536,IF(dati_pdc!$C754=4,dati_bdv!$F$2:$F$65536,IF(dati_pdc!$C754=5,dati_bdv!$G$2:$G$65536,dati_bdv!$H$2:$H$65536))))),$A754,dati_bdv!M$2:M$65536)","v":0},{"$f":"SUMIF(IF(dati_pdc!$C754=1,dati_bdv!$C$2:$C$65536,IF(dati_pdc!$C754=2,dati_bdv!$D$2:$D$65536,IF(dati_pdc!$C754=3,dati_bdv!$E$2:$E$65536,IF(dati_pdc!$C754=4,dati_bdv!$F$2:$F$65536,IF(dati_pdc!$C754=5,dati_bdv!$G$2:$G$65536,dati_bdv!$H$2:$H$65536))))),$A754,dati_bdv!N$2:N$65536)","v":0}]
[{"$f":"dati_pdc!A755","v":0},{"$f":"SUMIF(IF(dati_pdc!$C755=1,dati_bdv!$C$2:$C$65536,IF(dati_pdc!$C755=2,dati_bdv!$D$2:$D$65536,IF(dati_pdc!$C755=3,dati_bdv!$E$2:$E$65536,IF(dati_pdc!$C755=4,dati_bdv!$F$2:$F$65536,IF(dati_pdc!$C755=5,dati_bdv!$G$2:$G$65536,dati_bdv!$H$2:$H$65536))))),$A755,dati_bdv!J$2:J$65536)","v":0},{"$f":"SUMIF(IF(dati_pdc!$C755=1,dati_bdv!$C$2:$C$65536,IF(dati_pdc!$C755=2,dati_bdv!$D$2:$D$65536,IF(dati_pdc!$C755=3,dati_bdv!$E$2:$E$65536,IF(dati_pdc!$C755=4,dati_bdv!$F$2:$F$65536,IF(dati_pdc!$C755=5,dati_bdv!$G$2:$G$65536,dati_bdv!$H$2:$H$65536))))),$A755,dati_bdv!K$2:K$65536)","v":0},{"$f":"SUMIF(IF(dati_pdc!$C755=1,dati_bdv!$C$2:$C$65536,IF(dati_pdc!$C755=2,dati_bdv!$D$2:$D$65536,IF(dati_pdc!$C755=3,dati_bdv!$E$2:$E$65536,IF(dati_pdc!$C755=4,dati_bdv!$F$2:$F$65536,IF(dati_pdc!$C755=5,dati_bdv!$G$2:$G$65536,dati_bdv!$H$2:$H$65536))))),$A755,dati_bdv!L$2:L$65536)","v":0},{"$f":"SUMIF(IF(dati_pdc!$C755=1,dati_bdv!$C$2:$C$65536,IF(dati_pdc!$C755=2,dati_bdv!$D$2:$D$65536,IF(dati_pdc!$C755=3,dati_bdv!$E$2:$E$65536,IF(dati_pdc!$C755=4,dati_bdv!$F$2:$F$65536,IF(dati_pdc!$C755=5,dati_bdv!$G$2:$G$65536,dati_bdv!$H$2:$H$65536))))),$A755,dati_bdv!M$2:M$65536)","v":0},{"$f":"SUMIF(IF(dati_pdc!$C755=1,dati_bdv!$C$2:$C$65536,IF(dati_pdc!$C755=2,dati_bdv!$D$2:$D$65536,IF(dati_pdc!$C755=3,dati_bdv!$E$2:$E$65536,IF(dati_pdc!$C755=4,dati_bdv!$F$2:$F$65536,IF(dati_pdc!$C755=5,dati_bdv!$G$2:$G$65536,dati_bdv!$H$2:$H$65536))))),$A755,dati_bdv!N$2:N$65536)","v":0}]
[{"$f":"dati_pdc!A756","v":0},{"$f":"SUMIF(IF(dati_pdc!$C756=1,dati_bdv!$C$2:$C$65536,IF(dati_pdc!$C756=2,dati_bdv!$D$2:$D$65536,IF(dati_pdc!$C756=3,dati_bdv!$E$2:$E$65536,IF(dati_pdc!$C756=4,dati_bdv!$F$2:$F$65536,IF(dati_pdc!$C756=5,dati_bdv!$G$2:$G$65536,dati_bdv!$H$2:$H$65536))))),$A756,dati_bdv!J$2:J$65536)","v":0},{"$f":"SUMIF(IF(dati_pdc!$C756=1,dati_bdv!$C$2:$C$65536,IF(dati_pdc!$C756=2,dati_bdv!$D$2:$D$65536,IF(dati_pdc!$C756=3,dati_bdv!$E$2:$E$65536,IF(dati_pdc!$C756=4,dati_bdv!$F$2:$F$65536,IF(dati_pdc!$C756=5,dati_bdv!$G$2:$G$65536,dati_bdv!$H$2:$H$65536))))),$A756,dati_bdv!K$2:K$65536)","v":0},{"$f":"SUMIF(IF(dati_pdc!$C756=1,dati_bdv!$C$2:$C$65536,IF(dati_pdc!$C756=2,dati_bdv!$D$2:$D$65536,IF(dati_pdc!$C756=3,dati_bdv!$E$2:$E$65536,IF(dati_pdc!$C756=4,dati_bdv!$F$2:$F$65536,IF(dati_pdc!$C756=5,dati_bdv!$G$2:$G$65536,dati_bdv!$H$2:$H$65536))))),$A756,dati_bdv!L$2:L$65536)","v":0},{"$f":"SUMIF(IF(dati_pdc!$C756=1,dati_bdv!$C$2:$C$65536,IF(dati_pdc!$C756=2,dati_bdv!$D$2:$D$65536,IF(dati_pdc!$C756=3,dati_bdv!$E$2:$E$65536,IF(dati_pdc!$C756=4,dati_bdv!$F$2:$F$65536,IF(dati_pdc!$C756=5,dati_bdv!$G$2:$G$65536,dati_bdv!$H$2:$H$65536))))),$A756,dati_bdv!M$2:M$65536)","v":0},{"$f":"SUMIF(IF(dati_pdc!$C756=1,dati_bdv!$C$2:$C$65536,IF(dati_pdc!$C756=2,dati_bdv!$D$2:$D$65536,IF(dati_pdc!$C756=3,dati_bdv!$E$2:$E$65536,IF(dati_pdc!$C756=4,dati_bdv!$F$2:$F$65536,IF(dati_pdc!$C756=5,dati_bdv!$G$2:$G$65536,dati_bdv!$H$2:$H$65536))))),$A756,dati_bdv!N$2:N$65536)","v":0}]
[{"$f":"dati_pdc!A757","v":0},{"$f":"SUMIF(IF(dati_pdc!$C757=1,dati_bdv!$C$2:$C$65536,IF(dati_pdc!$C757=2,dati_bdv!$D$2:$D$65536,IF(dati_pdc!$C757=3,dati_bdv!$E$2:$E$65536,IF(dati_pdc!$C757=4,dati_bdv!$F$2:$F$65536,IF(dati_pdc!$C757=5,dati_bdv!$G$2:$G$65536,dati_bdv!$H$2:$H$65536))))),$A757,dati_bdv!J$2:J$65536)","v":0},{"$f":"SUMIF(IF(dati_pdc!$C757=1,dati_bdv!$C$2:$C$65536,IF(dati_pdc!$C757=2,dati_bdv!$D$2:$D$65536,IF(dati_pdc!$C757=3,dati_bdv!$E$2:$E$65536,IF(dati_pdc!$C757=4,dati_bdv!$F$2:$F$65536,IF(dati_pdc!$C757=5,dati_bdv!$G$2:$G$65536,dati_bdv!$H$2:$H$65536))))),$A757,dati_bdv!K$2:K$65536)","v":0},{"$f":"SUMIF(IF(dati_pdc!$C757=1,dati_bdv!$C$2:$C$65536,IF(dati_pdc!$C757=2,dati_bdv!$D$2:$D$65536,IF(dati_pdc!$C757=3,dati_bdv!$E$2:$E$65536,IF(dati_pdc!$C757=4,dati_bdv!$F$2:$F$65536,IF(dati_pdc!$C757=5,dati_bdv!$G$2:$G$65536,dati_bdv!$H$2:$H$65536))))),$A757,dati_bdv!L$2:L$65536)","v":0},{"$f":"SUMIF(IF(dati_pdc!$C757=1,dati_bdv!$C$2:$C$65536,IF(dati_pdc!$C757=2,dati_bdv!$D$2:$D$65536,IF(dati_pdc!$C757=3,dati_bdv!$E$2:$E$65536,IF(dati_pdc!$C757=4,dati_bdv!$F$2:$F$65536,IF(dati_pdc!$C757=5,dati_bdv!$G$2:$G$65536,dati_bdv!$H$2:$H$65536))))),$A757,dati_bdv!M$2:M$65536)","v":0},{"$f":"SUMIF(IF(dati_pdc!$C757=1,dati_bdv!$C$2:$C$65536,IF(dati_pdc!$C757=2,dati_bdv!$D$2:$D$65536,IF(dati_pdc!$C757=3,dati_bdv!$E$2:$E$65536,IF(dati_pdc!$C757=4,dati_bdv!$F$2:$F$65536,IF(dati_pdc!$C757=5,dati_bdv!$G$2:$G$65536,dati_bdv!$H$2:$H$65536))))),$A757,dati_bdv!N$2:N$65536)","v":0}]
[{"$f":"dati_pdc!A758","v":0},{"$f":"SUMIF(IF(dati_pdc!$C758=1,dati_bdv!$C$2:$C$65536,IF(dati_pdc!$C758=2,dati_bdv!$D$2:$D$65536,IF(dati_pdc!$C758=3,dati_bdv!$E$2:$E$65536,IF(dati_pdc!$C758=4,dati_bdv!$F$2:$F$65536,IF(dati_pdc!$C758=5,dati_bdv!$G$2:$G$65536,dati_bdv!$H$2:$H$65536))))),$A758,dati_bdv!J$2:J$65536)","v":0},{"$f":"SUMIF(IF(dati_pdc!$C758=1,dati_bdv!$C$2:$C$65536,IF(dati_pdc!$C758=2,dati_bdv!$D$2:$D$65536,IF(dati_pdc!$C758=3,dati_bdv!$E$2:$E$65536,IF(dati_pdc!$C758=4,dati_bdv!$F$2:$F$65536,IF(dati_pdc!$C758=5,dati_bdv!$G$2:$G$65536,dati_bdv!$H$2:$H$65536))))),$A758,dati_bdv!K$2:K$65536)","v":0},{"$f":"SUMIF(IF(dati_pdc!$C758=1,dati_bdv!$C$2:$C$65536,IF(dati_pdc!$C758=2,dati_bdv!$D$2:$D$65536,IF(dati_pdc!$C758=3,dati_bdv!$E$2:$E$65536,IF(dati_pdc!$C758=4,dati_bdv!$F$2:$F$65536,IF(dati_pdc!$C758=5,dati_bdv!$G$2:$G$65536,dati_bdv!$H$2:$H$65536))))),$A758,dati_bdv!L$2:L$65536)","v":0},{"$f":"SUMIF(IF(dati_pdc!$C758=1,dati_bdv!$C$2:$C$65536,IF(dati_pdc!$C758=2,dati_bdv!$D$2:$D$65536,IF(dati_pdc!$C758=3,dati_bdv!$E$2:$E$65536,IF(dati_pdc!$C758=4,dati_bdv!$F$2:$F$65536,IF(dati_pdc!$C758=5,dati_bdv!$G$2:$G$65536,dati_bdv!$H$2:$H$65536))))),$A758,dati_bdv!M$2:M$65536)","v":0},{"$f":"SUMIF(IF(dati_pdc!$C758=1,dati_bdv!$C$2:$C$65536,IF(dati_pdc!$C758=2,dati_bdv!$D$2:$D$65536,IF(dati_pdc!$C758=3,dati_bdv!$E$2:$E$65536,IF(dati_pdc!$C758=4,dati_bdv!$F$2:$F$65536,IF(dati_pdc!$C758=5,dati_bdv!$G$2:$G$65536,dati_bdv!$H$2:$H$65536))))),$A758,dati_bdv!N$2:N$65536)","v":0}]
[{"$f":"dati_pdc!A759","v":0},{"$f":"SUMIF(IF(dati_pdc!$C759=1,dati_bdv!$C$2:$C$65536,IF(dati_pdc!$C759=2,dati_bdv!$D$2:$D$65536,IF(dati_pdc!$C759=3,dati_bdv!$E$2:$E$65536,IF(dati_pdc!$C759=4,dati_bdv!$F$2:$F$65536,IF(dati_pdc!$C759=5,dati_bdv!$G$2:$G$65536,dati_bdv!$H$2:$H$65536))))),$A759,dati_bdv!J$2:J$65536)","v":0},{"$f":"SUMIF(IF(dati_pdc!$C759=1,dati_bdv!$C$2:$C$65536,IF(dati_pdc!$C759=2,dati_bdv!$D$2:$D$65536,IF(dati_pdc!$C759=3,dati_bdv!$E$2:$E$65536,IF(dati_pdc!$C759=4,dati_bdv!$F$2:$F$65536,IF(dati_pdc!$C759=5,dati_bdv!$G$2:$G$65536,dati_bdv!$H$2:$H$65536))))),$A759,dati_bdv!K$2:K$65536)","v":0},{"$f":"SUMIF(IF(dati_pdc!$C759=1,dati_bdv!$C$2:$C$65536,IF(dati_pdc!$C759=2,dati_bdv!$D$2:$D$65536,IF(dati_pdc!$C759=3,dati_bdv!$E$2:$E$65536,IF(dati_pdc!$C759=4,dati_bdv!$F$2:$F$65536,IF(dati_pdc!$C759=5,dati_bdv!$G$2:$G$65536,dati_bdv!$H$2:$H$65536))))),$A759,dati_bdv!L$2:L$65536)","v":0},{"$f":"SUMIF(IF(dati_pdc!$C759=1,dati_bdv!$C$2:$C$65536,IF(dati_pdc!$C759=2,dati_bdv!$D$2:$D$65536,IF(dati_pdc!$C759=3,dati_bdv!$E$2:$E$65536,IF(dati_pdc!$C759=4,dati_bdv!$F$2:$F$65536,IF(dati_pdc!$C759=5,dati_bdv!$G$2:$G$65536,dati_bdv!$H$2:$H$65536))))),$A759,dati_bdv!M$2:M$65536)","v":0},{"$f":"SUMIF(IF(dati_pdc!$C759=1,dati_bdv!$C$2:$C$65536,IF(dati_pdc!$C759=2,dati_bdv!$D$2:$D$65536,IF(dati_pdc!$C759=3,dati_bdv!$E$2:$E$65536,IF(dati_pdc!$C759=4,dati_bdv!$F$2:$F$65536,IF(dati_pdc!$C759=5,dati_bdv!$G$2:$G$65536,dati_bdv!$H$2:$H$65536))))),$A759,dati_bdv!N$2:N$65536)","v":0}]
[{"$f":"dati_pdc!A760","v":0},{"$f":"SUMIF(IF(dati_pdc!$C760=1,dati_bdv!$C$2:$C$65536,IF(dati_pdc!$C760=2,dati_bdv!$D$2:$D$65536,IF(dati_pdc!$C760=3,dati_bdv!$E$2:$E$65536,IF(dati_pdc!$C760=4,dati_bdv!$F$2:$F$65536,IF(dati_pdc!$C760=5,dati_bdv!$G$2:$G$65536,dati_bdv!$H$2:$H$65536))))),$A760,dati_bdv!J$2:J$65536)","v":0},{"$f":"SUMIF(IF(dati_pdc!$C760=1,dati_bdv!$C$2:$C$65536,IF(dati_pdc!$C760=2,dati_bdv!$D$2:$D$65536,IF(dati_pdc!$C760=3,dati_bdv!$E$2:$E$65536,IF(dati_pdc!$C760=4,dati_bdv!$F$2:$F$65536,IF(dati_pdc!$C760=5,dati_bdv!$G$2:$G$65536,dati_bdv!$H$2:$H$65536))))),$A760,dati_bdv!K$2:K$65536)","v":0},{"$f":"SUMIF(IF(dati_pdc!$C760=1,dati_bdv!$C$2:$C$65536,IF(dati_pdc!$C760=2,dati_bdv!$D$2:$D$65536,IF(dati_pdc!$C760=3,dati_bdv!$E$2:$E$65536,IF(dati_pdc!$C760=4,dati_bdv!$F$2:$F$65536,IF(dati_pdc!$C760=5,dati_bdv!$G$2:$G$65536,dati_bdv!$H$2:$H$65536))))),$A760,dati_bdv!L$2:L$65536)","v":0},{"$f":"SUMIF(IF(dati_pdc!$C760=1,dati_bdv!$C$2:$C$65536,IF(dati_pdc!$C760=2,dati_bdv!$D$2:$D$65536,IF(dati_pdc!$C760=3,dati_bdv!$E$2:$E$65536,IF(dati_pdc!$C760=4,dati_bdv!$F$2:$F$65536,IF(dati_pdc!$C760=5,dati_bdv!$G$2:$G$65536,dati_bdv!$H$2:$H$65536))))),$A760,dati_bdv!M$2:M$65536)","v":0},{"$f":"SUMIF(IF(dati_pdc!$C760=1,dati_bdv!$C$2:$C$65536,IF(dati_pdc!$C760=2,dati_bdv!$D$2:$D$65536,IF(dati_pdc!$C760=3,dati_bdv!$E$2:$E$65536,IF(dati_pdc!$C760=4,dati_bdv!$F$2:$F$65536,IF(dati_pdc!$C760=5,dati_bdv!$G$2:$G$65536,dati_bdv!$H$2:$H$65536))))),$A760,dati_bdv!N$2:N$65536)","v":0}]
[{"$f":"dati_pdc!A761","v":0},{"$f":"SUMIF(IF(dati_pdc!$C761=1,dati_bdv!$C$2:$C$65536,IF(dati_pdc!$C761=2,dati_bdv!$D$2:$D$65536,IF(dati_pdc!$C761=3,dati_bdv!$E$2:$E$65536,IF(dati_pdc!$C761=4,dati_bdv!$F$2:$F$65536,IF(dati_pdc!$C761=5,dati_bdv!$G$2:$G$65536,dati_bdv!$H$2:$H$65536))))),$A761,dati_bdv!J$2:J$65536)","v":0},{"$f":"SUMIF(IF(dati_pdc!$C761=1,dati_bdv!$C$2:$C$65536,IF(dati_pdc!$C761=2,dati_bdv!$D$2:$D$65536,IF(dati_pdc!$C761=3,dati_bdv!$E$2:$E$65536,IF(dati_pdc!$C761=4,dati_bdv!$F$2:$F$65536,IF(dati_pdc!$C761=5,dati_bdv!$G$2:$G$65536,dati_bdv!$H$2:$H$65536))))),$A761,dati_bdv!K$2:K$65536)","v":0},{"$f":"SUMIF(IF(dati_pdc!$C761=1,dati_bdv!$C$2:$C$65536,IF(dati_pdc!$C761=2,dati_bdv!$D$2:$D$65536,IF(dati_pdc!$C761=3,dati_bdv!$E$2:$E$65536,IF(dati_pdc!$C761=4,dati_bdv!$F$2:$F$65536,IF(dati_pdc!$C761=5,dati_bdv!$G$2:$G$65536,dati_bdv!$H$2:$H$65536))))),$A761,dati_bdv!L$2:L$65536)","v":0},{"$f":"SUMIF(IF(dati_pdc!$C761=1,dati_bdv!$C$2:$C$65536,IF(dati_pdc!$C761=2,dati_bdv!$D$2:$D$65536,IF(dati_pdc!$C761=3,dati_bdv!$E$2:$E$65536,IF(dati_pdc!$C761=4,dati_bdv!$F$2:$F$65536,IF(dati_pdc!$C761=5,dati_bdv!$G$2:$G$65536,dati_bdv!$H$2:$H$65536))))),$A761,dati_bdv!M$2:M$65536)","v":0},{"$f":"SUMIF(IF(dati_pdc!$C761=1,dati_bdv!$C$2:$C$65536,IF(dati_pdc!$C761=2,dati_bdv!$D$2:$D$65536,IF(dati_pdc!$C761=3,dati_bdv!$E$2:$E$65536,IF(dati_pdc!$C761=4,dati_bdv!$F$2:$F$65536,IF(dati_pdc!$C761=5,dati_bdv!$G$2:$G$65536,dati_bdv!$H$2:$H$65536))))),$A761,dati_bdv!N$2:N$65536)","v":0}]
[{"$f":"dati_pdc!A762","v":0},{"$f":"SUMIF(IF(dati_pdc!$C762=1,dati_bdv!$C$2:$C$65536,IF(dati_pdc!$C762=2,dati_bdv!$D$2:$D$65536,IF(dati_pdc!$C762=3,dati_bdv!$E$2:$E$65536,IF(dati_pdc!$C762=4,dati_bdv!$F$2:$F$65536,IF(dati_pdc!$C762=5,dati_bdv!$G$2:$G$65536,dati_bdv!$H$2:$H$65536))))),$A762,dati_bdv!J$2:J$65536)","v":0},{"$f":"SUMIF(IF(dati_pdc!$C762=1,dati_bdv!$C$2:$C$65536,IF(dati_pdc!$C762=2,dati_bdv!$D$2:$D$65536,IF(dati_pdc!$C762=3,dati_bdv!$E$2:$E$65536,IF(dati_pdc!$C762=4,dati_bdv!$F$2:$F$65536,IF(dati_pdc!$C762=5,dati_bdv!$G$2:$G$65536,dati_bdv!$H$2:$H$65536))))),$A762,dati_bdv!K$2:K$65536)","v":0},{"$f":"SUMIF(IF(dati_pdc!$C762=1,dati_bdv!$C$2:$C$65536,IF(dati_pdc!$C762=2,dati_bdv!$D$2:$D$65536,IF(dati_pdc!$C762=3,dati_bdv!$E$2:$E$65536,IF(dati_pdc!$C762=4,dati_bdv!$F$2:$F$65536,IF(dati_pdc!$C762=5,dati_bdv!$G$2:$G$65536,dati_bdv!$H$2:$H$65536))))),$A762,dati_bdv!L$2:L$65536)","v":0},{"$f":"SUMIF(IF(dati_pdc!$C762=1,dati_bdv!$C$2:$C$65536,IF(dati_pdc!$C762=2,dati_bdv!$D$2:$D$65536,IF(dati_pdc!$C762=3,dati_bdv!$E$2:$E$65536,IF(dati_pdc!$C762=4,dati_bdv!$F$2:$F$65536,IF(dati_pdc!$C762=5,dati_bdv!$G$2:$G$65536,dati_bdv!$H$2:$H$65536))))),$A762,dati_bdv!M$2:M$65536)","v":0},{"$f":"SUMIF(IF(dati_pdc!$C762=1,dati_bdv!$C$2:$C$65536,IF(dati_pdc!$C762=2,dati_bdv!$D$2:$D$65536,IF(dati_pdc!$C762=3,dati_bdv!$E$2:$E$65536,IF(dati_pdc!$C762=4,dati_bdv!$F$2:$F$65536,IF(dati_pdc!$C762=5,dati_bdv!$G$2:$G$65536,dati_bdv!$H$2:$H$65536))))),$A762,dati_bdv!N$2:N$65536)","v":0}]
[{"$f":"dati_pdc!A763","v":0},{"$f":"SUMIF(IF(dati_pdc!$C763=1,dati_bdv!$C$2:$C$65536,IF(dati_pdc!$C763=2,dati_bdv!$D$2:$D$65536,IF(dati_pdc!$C763=3,dati_bdv!$E$2:$E$65536,IF(dati_pdc!$C763=4,dati_bdv!$F$2:$F$65536,IF(dati_pdc!$C763=5,dati_bdv!$G$2:$G$65536,dati_bdv!$H$2:$H$65536))))),$A763,dati_bdv!J$2:J$65536)","v":0},{"$f":"SUMIF(IF(dati_pdc!$C763=1,dati_bdv!$C$2:$C$65536,IF(dati_pdc!$C763=2,dati_bdv!$D$2:$D$65536,IF(dati_pdc!$C763=3,dati_bdv!$E$2:$E$65536,IF(dati_pdc!$C763=4,dati_bdv!$F$2:$F$65536,IF(dati_pdc!$C763=5,dati_bdv!$G$2:$G$65536,dati_bdv!$H$2:$H$65536))))),$A763,dati_bdv!K$2:K$65536)","v":0},{"$f":"SUMIF(IF(dati_pdc!$C763=1,dati_bdv!$C$2:$C$65536,IF(dati_pdc!$C763=2,dati_bdv!$D$2:$D$65536,IF(dati_pdc!$C763=3,dati_bdv!$E$2:$E$65536,IF(dati_pdc!$C763=4,dati_bdv!$F$2:$F$65536,IF(dati_pdc!$C763=5,dati_bdv!$G$2:$G$65536,dati_bdv!$H$2:$H$65536))))),$A763,dati_bdv!L$2:L$65536)","v":0},{"$f":"SUMIF(IF(dati_pdc!$C763=1,dati_bdv!$C$2:$C$65536,IF(dati_pdc!$C763=2,dati_bdv!$D$2:$D$65536,IF(dati_pdc!$C763=3,dati_bdv!$E$2:$E$65536,IF(dati_pdc!$C763=4,dati_bdv!$F$2:$F$65536,IF(dati_pdc!$C763=5,dati_bdv!$G$2:$G$65536,dati_bdv!$H$2:$H$65536))))),$A763,dati_bdv!M$2:M$65536)","v":0},{"$f":"SUMIF(IF(dati_pdc!$C763=1,dati_bdv!$C$2:$C$65536,IF(dati_pdc!$C763=2,dati_bdv!$D$2:$D$65536,IF(dati_pdc!$C763=3,dati_bdv!$E$2:$E$65536,IF(dati_pdc!$C763=4,dati_bdv!$F$2:$F$65536,IF(dati_pdc!$C763=5,dati_bdv!$G$2:$G$65536,dati_bdv!$H$2:$H$65536))))),$A763,dati_bdv!N$2:N$65536)","v":0}]
[{"$f":"dati_pdc!A764","v":0},{"$f":"SUMIF(IF(dati_pdc!$C764=1,dati_bdv!$C$2:$C$65536,IF(dati_pdc!$C764=2,dati_bdv!$D$2:$D$65536,IF(dati_pdc!$C764=3,dati_bdv!$E$2:$E$65536,IF(dati_pdc!$C764=4,dati_bdv!$F$2:$F$65536,IF(dati_pdc!$C764=5,dati_bdv!$G$2:$G$65536,dati_bdv!$H$2:$H$65536))))),$A764,dati_bdv!J$2:J$65536)","v":0},{"$f":"SUMIF(IF(dati_pdc!$C764=1,dati_bdv!$C$2:$C$65536,IF(dati_pdc!$C764=2,dati_bdv!$D$2:$D$65536,IF(dati_pdc!$C764=3,dati_bdv!$E$2:$E$65536,IF(dati_pdc!$C764=4,dati_bdv!$F$2:$F$65536,IF(dati_pdc!$C764=5,dati_bdv!$G$2:$G$65536,dati_bdv!$H$2:$H$65536))))),$A764,dati_bdv!K$2:K$65536)","v":0},{"$f":"SUMIF(IF(dati_pdc!$C764=1,dati_bdv!$C$2:$C$65536,IF(dati_pdc!$C764=2,dati_bdv!$D$2:$D$65536,IF(dati_pdc!$C764=3,dati_bdv!$E$2:$E$65536,IF(dati_pdc!$C764=4,dati_bdv!$F$2:$F$65536,IF(dati_pdc!$C764=5,dati_bdv!$G$2:$G$65536,dati_bdv!$H$2:$H$65536))))),$A764,dati_bdv!L$2:L$65536)","v":0},{"$f":"SUMIF(IF(dati_pdc!$C764=1,dati_bdv!$C$2:$C$65536,IF(dati_pdc!$C764=2,dati_bdv!$D$2:$D$65536,IF(dati_pdc!$C764=3,dati_bdv!$E$2:$E$65536,IF(dati_pdc!$C764=4,dati_bdv!$F$2:$F$65536,IF(dati_pdc!$C764=5,dati_bdv!$G$2:$G$65536,dati_bdv!$H$2:$H$65536))))),$A764,dati_bdv!M$2:M$65536)","v":0},{"$f":"SUMIF(IF(dati_pdc!$C764=1,dati_bdv!$C$2:$C$65536,IF(dati_pdc!$C764=2,dati_bdv!$D$2:$D$65536,IF(dati_pdc!$C764=3,dati_bdv!$E$2:$E$65536,IF(dati_pdc!$C764=4,dati_bdv!$F$2:$F$65536,IF(dati_pdc!$C764=5,dati_bdv!$G$2:$G$65536,dati_bdv!$H$2:$H$65536))))),$A764,dati_bdv!N$2:N$65536)","v":0}]
[{"$f":"dati_pdc!A765","v":0},{"$f":"SUMIF(IF(dati_pdc!$C765=1,dati_bdv!$C$2:$C$65536,IF(dati_pdc!$C765=2,dati_bdv!$D$2:$D$65536,IF(dati_pdc!$C765=3,dati_bdv!$E$2:$E$65536,IF(dati_pdc!$C765=4,dati_bdv!$F$2:$F$65536,IF(dati_pdc!$C765=5,dati_bdv!$G$2:$G$65536,dati_bdv!$H$2:$H$65536))))),$A765,dati_bdv!J$2:J$65536)","v":0},{"$f":"SUMIF(IF(dati_pdc!$C765=1,dati_bdv!$C$2:$C$65536,IF(dati_pdc!$C765=2,dati_bdv!$D$2:$D$65536,IF(dati_pdc!$C765=3,dati_bdv!$E$2:$E$65536,IF(dati_pdc!$C765=4,dati_bdv!$F$2:$F$65536,IF(dati_pdc!$C765=5,dati_bdv!$G$2:$G$65536,dati_bdv!$H$2:$H$65536))))),$A765,dati_bdv!K$2:K$65536)","v":0},{"$f":"SUMIF(IF(dati_pdc!$C765=1,dati_bdv!$C$2:$C$65536,IF(dati_pdc!$C765=2,dati_bdv!$D$2:$D$65536,IF(dati_pdc!$C765=3,dati_bdv!$E$2:$E$65536,IF(dati_pdc!$C765=4,dati_bdv!$F$2:$F$65536,IF(dati_pdc!$C765=5,dati_bdv!$G$2:$G$65536,dati_bdv!$H$2:$H$65536))))),$A765,dati_bdv!L$2:L$65536)","v":0},{"$f":"SUMIF(IF(dati_pdc!$C765=1,dati_bdv!$C$2:$C$65536,IF(dati_pdc!$C765=2,dati_bdv!$D$2:$D$65536,IF(dati_pdc!$C765=3,dati_bdv!$E$2:$E$65536,IF(dati_pdc!$C765=4,dati_bdv!$F$2:$F$65536,IF(dati_pdc!$C765=5,dati_bdv!$G$2:$G$65536,dati_bdv!$H$2:$H$65536))))),$A765,dati_bdv!M$2:M$65536)","v":0},{"$f":"SUMIF(IF(dati_pdc!$C765=1,dati_bdv!$C$2:$C$65536,IF(dati_pdc!$C765=2,dati_bdv!$D$2:$D$65536,IF(dati_pdc!$C765=3,dati_bdv!$E$2:$E$65536,IF(dati_pdc!$C765=4,dati_bdv!$F$2:$F$65536,IF(dati_pdc!$C765=5,dati_bdv!$G$2:$G$65536,dati_bdv!$H$2:$H$65536))))),$A765,dati_bdv!N$2:N$65536)","v":0}]
[{"$f":"dati_pdc!A766","v":0},{"$f":"SUMIF(IF(dati_pdc!$C766=1,dati_bdv!$C$2:$C$65536,IF(dati_pdc!$C766=2,dati_bdv!$D$2:$D$65536,IF(dati_pdc!$C766=3,dati_bdv!$E$2:$E$65536,IF(dati_pdc!$C766=4,dati_bdv!$F$2:$F$65536,IF(dati_pdc!$C766=5,dati_bdv!$G$2:$G$65536,dati_bdv!$H$2:$H$65536))))),$A766,dati_bdv!J$2:J$65536)","v":0},{"$f":"SUMIF(IF(dati_pdc!$C766=1,dati_bdv!$C$2:$C$65536,IF(dati_pdc!$C766=2,dati_bdv!$D$2:$D$65536,IF(dati_pdc!$C766=3,dati_bdv!$E$2:$E$65536,IF(dati_pdc!$C766=4,dati_bdv!$F$2:$F$65536,IF(dati_pdc!$C766=5,dati_bdv!$G$2:$G$65536,dati_bdv!$H$2:$H$65536))))),$A766,dati_bdv!K$2:K$65536)","v":0},{"$f":"SUMIF(IF(dati_pdc!$C766=1,dati_bdv!$C$2:$C$65536,IF(dati_pdc!$C766=2,dati_bdv!$D$2:$D$65536,IF(dati_pdc!$C766=3,dati_bdv!$E$2:$E$65536,IF(dati_pdc!$C766=4,dati_bdv!$F$2:$F$65536,IF(dati_pdc!$C766=5,dati_bdv!$G$2:$G$65536,dati_bdv!$H$2:$H$65536))))),$A766,dati_bdv!L$2:L$65536)","v":0},{"$f":"SUMIF(IF(dati_pdc!$C766=1,dati_bdv!$C$2:$C$65536,IF(dati_pdc!$C766=2,dati_bdv!$D$2:$D$65536,IF(dati_pdc!$C766=3,dati_bdv!$E$2:$E$65536,IF(dati_pdc!$C766=4,dati_bdv!$F$2:$F$65536,IF(dati_pdc!$C766=5,dati_bdv!$G$2:$G$65536,dati_bdv!$H$2:$H$65536))))),$A766,dati_bdv!M$2:M$65536)","v":0},{"$f":"SUMIF(IF(dati_pdc!$C766=1,dati_bdv!$C$2:$C$65536,IF(dati_pdc!$C766=2,dati_bdv!$D$2:$D$65536,IF(dati_pdc!$C766=3,dati_bdv!$E$2:$E$65536,IF(dati_pdc!$C766=4,dati_bdv!$F$2:$F$65536,IF(dati_pdc!$C766=5,dati_bdv!$G$2:$G$65536,dati_bdv!$H$2:$H$65536))))),$A766,dati_bdv!N$2:N$65536)","v":0}]
[{"$f":"dati_pdc!A767","v":0},{"$f":"SUMIF(IF(dati_pdc!$C767=1,dati_bdv!$C$2:$C$65536,IF(dati_pdc!$C767=2,dati_bdv!$D$2:$D$65536,IF(dati_pdc!$C767=3,dati_bdv!$E$2:$E$65536,IF(dati_pdc!$C767=4,dati_bdv!$F$2:$F$65536,IF(dati_pdc!$C767=5,dati_bdv!$G$2:$G$65536,dati_bdv!$H$2:$H$65536))))),$A767,dati_bdv!J$2:J$65536)","v":0},{"$f":"SUMIF(IF(dati_pdc!$C767=1,dati_bdv!$C$2:$C$65536,IF(dati_pdc!$C767=2,dati_bdv!$D$2:$D$65536,IF(dati_pdc!$C767=3,dati_bdv!$E$2:$E$65536,IF(dati_pdc!$C767=4,dati_bdv!$F$2:$F$65536,IF(dati_pdc!$C767=5,dati_bdv!$G$2:$G$65536,dati_bdv!$H$2:$H$65536))))),$A767,dati_bdv!K$2:K$65536)","v":0},{"$f":"SUMIF(IF(dati_pdc!$C767=1,dati_bdv!$C$2:$C$65536,IF(dati_pdc!$C767=2,dati_bdv!$D$2:$D$65536,IF(dati_pdc!$C767=3,dati_bdv!$E$2:$E$65536,IF(dati_pdc!$C767=4,dati_bdv!$F$2:$F$65536,IF(dati_pdc!$C767=5,dati_bdv!$G$2:$G$65536,dati_bdv!$H$2:$H$65536))))),$A767,dati_bdv!L$2:L$65536)","v":0},{"$f":"SUMIF(IF(dati_pdc!$C767=1,dati_bdv!$C$2:$C$65536,IF(dati_pdc!$C767=2,dati_bdv!$D$2:$D$65536,IF(dati_pdc!$C767=3,dati_bdv!$E$2:$E$65536,IF(dati_pdc!$C767=4,dati_bdv!$F$2:$F$65536,IF(dati_pdc!$C767=5,dati_bdv!$G$2:$G$65536,dati_bdv!$H$2:$H$65536))))),$A767,dati_bdv!M$2:M$65536)","v":0},{"$f":"SUMIF(IF(dati_pdc!$C767=1,dati_bdv!$C$2:$C$65536,IF(dati_pdc!$C767=2,dati_bdv!$D$2:$D$65536,IF(dati_pdc!$C767=3,dati_bdv!$E$2:$E$65536,IF(dati_pdc!$C767=4,dati_bdv!$F$2:$F$65536,IF(dati_pdc!$C767=5,dati_bdv!$G$2:$G$65536,dati_bdv!$H$2:$H$65536))))),$A767,dati_bdv!N$2:N$65536)","v":0}]
[{"$f":"dati_pdc!A768","v":0},{"$f":"SUMIF(IF(dati_pdc!$C768=1,dati_bdv!$C$2:$C$65536,IF(dati_pdc!$C768=2,dati_bdv!$D$2:$D$65536,IF(dati_pdc!$C768=3,dati_bdv!$E$2:$E$65536,IF(dati_pdc!$C768=4,dati_bdv!$F$2:$F$65536,IF(dati_pdc!$C768=5,dati_bdv!$G$2:$G$65536,dati_bdv!$H$2:$H$65536))))),$A768,dati_bdv!J$2:J$65536)","v":0},{"$f":"SUMIF(IF(dati_pdc!$C768=1,dati_bdv!$C$2:$C$65536,IF(dati_pdc!$C768=2,dati_bdv!$D$2:$D$65536,IF(dati_pdc!$C768=3,dati_bdv!$E$2:$E$65536,IF(dati_pdc!$C768=4,dati_bdv!$F$2:$F$65536,IF(dati_pdc!$C768=5,dati_bdv!$G$2:$G$65536,dati_bdv!$H$2:$H$65536))))),$A768,dati_bdv!K$2:K$65536)","v":0},{"$f":"SUMIF(IF(dati_pdc!$C768=1,dati_bdv!$C$2:$C$65536,IF(dati_pdc!$C768=2,dati_bdv!$D$2:$D$65536,IF(dati_pdc!$C768=3,dati_bdv!$E$2:$E$65536,IF(dati_pdc!$C768=4,dati_bdv!$F$2:$F$65536,IF(dati_pdc!$C768=5,dati_bdv!$G$2:$G$65536,dati_bdv!$H$2:$H$65536))))),$A768,dati_bdv!L$2:L$65536)","v":0},{"$f":"SUMIF(IF(dati_pdc!$C768=1,dati_bdv!$C$2:$C$65536,IF(dati_pdc!$C768=2,dati_bdv!$D$2:$D$65536,IF(dati_pdc!$C768=3,dati_bdv!$E$2:$E$65536,IF(dati_pdc!$C768=4,dati_bdv!$F$2:$F$65536,IF(dati_pdc!$C768=5,dati_bdv!$G$2:$G$65536,dati_bdv!$H$2:$H$65536))))),$A768,dati_bdv!M$2:M$65536)","v":0},{"$f":"SUMIF(IF(dati_pdc!$C768=1,dati_bdv!$C$2:$C$65536,IF(dati_pdc!$C768=2,dati_bdv!$D$2:$D$65536,IF(dati_pdc!$C768=3,dati_bdv!$E$2:$E$65536,IF(dati_pdc!$C768=4,dati_bdv!$F$2:$F$65536,IF(dati_pdc!$C768=5,dati_bdv!$G$2:$G$65536,dati_bdv!$H$2:$H$65536))))),$A768,dati_bdv!N$2:N$65536)","v":0}]
[{"$f":"dati_pdc!A769","v":0},{"$f":"SUMIF(IF(dati_pdc!$C769=1,dati_bdv!$C$2:$C$65536,IF(dati_pdc!$C769=2,dati_bdv!$D$2:$D$65536,IF(dati_pdc!$C769=3,dati_bdv!$E$2:$E$65536,IF(dati_pdc!$C769=4,dati_bdv!$F$2:$F$65536,IF(dati_pdc!$C769=5,dati_bdv!$G$2:$G$65536,dati_bdv!$H$2:$H$65536))))),$A769,dati_bdv!J$2:J$65536)","v":0},{"$f":"SUMIF(IF(dati_pdc!$C769=1,dati_bdv!$C$2:$C$65536,IF(dati_pdc!$C769=2,dati_bdv!$D$2:$D$65536,IF(dati_pdc!$C769=3,dati_bdv!$E$2:$E$65536,IF(dati_pdc!$C769=4,dati_bdv!$F$2:$F$65536,IF(dati_pdc!$C769=5,dati_bdv!$G$2:$G$65536,dati_bdv!$H$2:$H$65536))))),$A769,dati_bdv!K$2:K$65536)","v":0},{"$f":"SUMIF(IF(dati_pdc!$C769=1,dati_bdv!$C$2:$C$65536,IF(dati_pdc!$C769=2,dati_bdv!$D$2:$D$65536,IF(dati_pdc!$C769=3,dati_bdv!$E$2:$E$65536,IF(dati_pdc!$C769=4,dati_bdv!$F$2:$F$65536,IF(dati_pdc!$C769=5,dati_bdv!$G$2:$G$65536,dati_bdv!$H$2:$H$65536))))),$A769,dati_bdv!L$2:L$65536)","v":0},{"$f":"SUMIF(IF(dati_pdc!$C769=1,dati_bdv!$C$2:$C$65536,IF(dati_pdc!$C769=2,dati_bdv!$D$2:$D$65536,IF(dati_pdc!$C769=3,dati_bdv!$E$2:$E$65536,IF(dati_pdc!$C769=4,dati_bdv!$F$2:$F$65536,IF(dati_pdc!$C769=5,dati_bdv!$G$2:$G$65536,dati_bdv!$H$2:$H$65536))))),$A769,dati_bdv!M$2:M$65536)","v":0},{"$f":"SUMIF(IF(dati_pdc!$C769=1,dati_bdv!$C$2:$C$65536,IF(dati_pdc!$C769=2,dati_bdv!$D$2:$D$65536,IF(dati_pdc!$C769=3,dati_bdv!$E$2:$E$65536,IF(dati_pdc!$C769=4,dati_bdv!$F$2:$F$65536,IF(dati_pdc!$C769=5,dati_bdv!$G$2:$G$65536,dati_bdv!$H$2:$H$65536))))),$A769,dati_bdv!N$2:N$65536)","v":0}]
[{"$f":"dati_pdc!A770","v":0},{"$f":"SUMIF(IF(dati_pdc!$C770=1,dati_bdv!$C$2:$C$65536,IF(dati_pdc!$C770=2,dati_bdv!$D$2:$D$65536,IF(dati_pdc!$C770=3,dati_bdv!$E$2:$E$65536,IF(dati_pdc!$C770=4,dati_bdv!$F$2:$F$65536,IF(dati_pdc!$C770=5,dati_bdv!$G$2:$G$65536,dati_bdv!$H$2:$H$65536))))),$A770,dati_bdv!J$2:J$65536)","v":0},{"$f":"SUMIF(IF(dati_pdc!$C770=1,dati_bdv!$C$2:$C$65536,IF(dati_pdc!$C770=2,dati_bdv!$D$2:$D$65536,IF(dati_pdc!$C770=3,dati_bdv!$E$2:$E$65536,IF(dati_pdc!$C770=4,dati_bdv!$F$2:$F$65536,IF(dati_pdc!$C770=5,dati_bdv!$G$2:$G$65536,dati_bdv!$H$2:$H$65536))))),$A770,dati_bdv!K$2:K$65536)","v":0},{"$f":"SUMIF(IF(dati_pdc!$C770=1,dati_bdv!$C$2:$C$65536,IF(dati_pdc!$C770=2,dati_bdv!$D$2:$D$65536,IF(dati_pdc!$C770=3,dati_bdv!$E$2:$E$65536,IF(dati_pdc!$C770=4,dati_bdv!$F$2:$F$65536,IF(dati_pdc!$C770=5,dati_bdv!$G$2:$G$65536,dati_bdv!$H$2:$H$65536))))),$A770,dati_bdv!L$2:L$65536)","v":0},{"$f":"SUMIF(IF(dati_pdc!$C770=1,dati_bdv!$C$2:$C$65536,IF(dati_pdc!$C770=2,dati_bdv!$D$2:$D$65536,IF(dati_pdc!$C770=3,dati_bdv!$E$2:$E$65536,IF(dati_pdc!$C770=4,dati_bdv!$F$2:$F$65536,IF(dati_pdc!$C770=5,dati_bdv!$G$2:$G$65536,dati_bdv!$H$2:$H$65536))))),$A770,dati_bdv!M$2:M$65536)","v":0},{"$f":"SUMIF(IF(dati_pdc!$C770=1,dati_bdv!$C$2:$C$65536,IF(dati_pdc!$C770=2,dati_bdv!$D$2:$D$65536,IF(dati_pdc!$C770=3,dati_bdv!$E$2:$E$65536,IF(dati_pdc!$C770=4,dati_bdv!$F$2:$F$65536,IF(dati_pdc!$C770=5,dati_bdv!$G$2:$G$65536,dati_bdv!$H$2:$H$65536))))),$A770,dati_bdv!N$2:N$65536)","v":0}]
[{"$f":"dati_pdc!A771","v":0},{"$f":"SUMIF(IF(dati_pdc!$C771=1,dati_bdv!$C$2:$C$65536,IF(dati_pdc!$C771=2,dati_bdv!$D$2:$D$65536,IF(dati_pdc!$C771=3,dati_bdv!$E$2:$E$65536,IF(dati_pdc!$C771=4,dati_bdv!$F$2:$F$65536,IF(dati_pdc!$C771=5,dati_bdv!$G$2:$G$65536,dati_bdv!$H$2:$H$65536))))),$A771,dati_bdv!J$2:J$65536)","v":0},{"$f":"SUMIF(IF(dati_pdc!$C771=1,dati_bdv!$C$2:$C$65536,IF(dati_pdc!$C771=2,dati_bdv!$D$2:$D$65536,IF(dati_pdc!$C771=3,dati_bdv!$E$2:$E$65536,IF(dati_pdc!$C771=4,dati_bdv!$F$2:$F$65536,IF(dati_pdc!$C771=5,dati_bdv!$G$2:$G$65536,dati_bdv!$H$2:$H$65536))))),$A771,dati_bdv!K$2:K$65536)","v":0},{"$f":"SUMIF(IF(dati_pdc!$C771=1,dati_bdv!$C$2:$C$65536,IF(dati_pdc!$C771=2,dati_bdv!$D$2:$D$65536,IF(dati_pdc!$C771=3,dati_bdv!$E$2:$E$65536,IF(dati_pdc!$C771=4,dati_bdv!$F$2:$F$65536,IF(dati_pdc!$C771=5,dati_bdv!$G$2:$G$65536,dati_bdv!$H$2:$H$65536))))),$A771,dati_bdv!L$2:L$65536)","v":0},{"$f":"SUMIF(IF(dati_pdc!$C771=1,dati_bdv!$C$2:$C$65536,IF(dati_pdc!$C771=2,dati_bdv!$D$2:$D$65536,IF(dati_pdc!$C771=3,dati_bdv!$E$2:$E$65536,IF(dati_pdc!$C771=4,dati_bdv!$F$2:$F$65536,IF(dati_pdc!$C771=5,dati_bdv!$G$2:$G$65536,dati_bdv!$H$2:$H$65536))))),$A771,dati_bdv!M$2:M$65536)","v":0},{"$f":"SUMIF(IF(dati_pdc!$C771=1,dati_bdv!$C$2:$C$65536,IF(dati_pdc!$C771=2,dati_bdv!$D$2:$D$65536,IF(dati_pdc!$C771=3,dati_bdv!$E$2:$E$65536,IF(dati_pdc!$C771=4,dati_bdv!$F$2:$F$65536,IF(dati_pdc!$C771=5,dati_bdv!$G$2:$G$65536,dati_bdv!$H$2:$H$65536))))),$A771,dati_bdv!N$2:N$65536)","v":0}]
[{"$f":"dati_pdc!A772","v":0},{"$f":"SUMIF(IF(dati_pdc!$C772=1,dati_bdv!$C$2:$C$65536,IF(dati_pdc!$C772=2,dati_bdv!$D$2:$D$65536,IF(dati_pdc!$C772=3,dati_bdv!$E$2:$E$65536,IF(dati_pdc!$C772=4,dati_bdv!$F$2:$F$65536,IF(dati_pdc!$C772=5,dati_bdv!$G$2:$G$65536,dati_bdv!$H$2:$H$65536))))),$A772,dati_bdv!J$2:J$65536)","v":0},{"$f":"SUMIF(IF(dati_pdc!$C772=1,dati_bdv!$C$2:$C$65536,IF(dati_pdc!$C772=2,dati_bdv!$D$2:$D$65536,IF(dati_pdc!$C772=3,dati_bdv!$E$2:$E$65536,IF(dati_pdc!$C772=4,dati_bdv!$F$2:$F$65536,IF(dati_pdc!$C772=5,dati_bdv!$G$2:$G$65536,dati_bdv!$H$2:$H$65536))))),$A772,dati_bdv!K$2:K$65536)","v":0},{"$f":"SUMIF(IF(dati_pdc!$C772=1,dati_bdv!$C$2:$C$65536,IF(dati_pdc!$C772=2,dati_bdv!$D$2:$D$65536,IF(dati_pdc!$C772=3,dati_bdv!$E$2:$E$65536,IF(dati_pdc!$C772=4,dati_bdv!$F$2:$F$65536,IF(dati_pdc!$C772=5,dati_bdv!$G$2:$G$65536,dati_bdv!$H$2:$H$65536))))),$A772,dati_bdv!L$2:L$65536)","v":0},{"$f":"SUMIF(IF(dati_pdc!$C772=1,dati_bdv!$C$2:$C$65536,IF(dati_pdc!$C772=2,dati_bdv!$D$2:$D$65536,IF(dati_pdc!$C772=3,dati_bdv!$E$2:$E$65536,IF(dati_pdc!$C772=4,dati_bdv!$F$2:$F$65536,IF(dati_pdc!$C772=5,dati_bdv!$G$2:$G$65536,dati_bdv!$H$2:$H$65536))))),$A772,dati_bdv!M$2:M$65536)","v":0},{"$f":"SUMIF(IF(dati_pdc!$C772=1,dati_bdv!$C$2:$C$65536,IF(dati_pdc!$C772=2,dati_bdv!$D$2:$D$65536,IF(dati_pdc!$C772=3,dati_bdv!$E$2:$E$65536,IF(dati_pdc!$C772=4,dati_bdv!$F$2:$F$65536,IF(dati_pdc!$C772=5,dati_bdv!$G$2:$G$65536,dati_bdv!$H$2:$H$65536))))),$A772,dati_bdv!N$2:N$65536)","v":0}]
[{"$f":"dati_pdc!A773","v":0},{"$f":"SUMIF(IF(dati_pdc!$C773=1,dati_bdv!$C$2:$C$65536,IF(dati_pdc!$C773=2,dati_bdv!$D$2:$D$65536,IF(dati_pdc!$C773=3,dati_bdv!$E$2:$E$65536,IF(dati_pdc!$C773=4,dati_bdv!$F$2:$F$65536,IF(dati_pdc!$C773=5,dati_bdv!$G$2:$G$65536,dati_bdv!$H$2:$H$65536))))),$A773,dati_bdv!J$2:J$65536)","v":0},{"$f":"SUMIF(IF(dati_pdc!$C773=1,dati_bdv!$C$2:$C$65536,IF(dati_pdc!$C773=2,dati_bdv!$D$2:$D$65536,IF(dati_pdc!$C773=3,dati_bdv!$E$2:$E$65536,IF(dati_pdc!$C773=4,dati_bdv!$F$2:$F$65536,IF(dati_pdc!$C773=5,dati_bdv!$G$2:$G$65536,dati_bdv!$H$2:$H$65536))))),$A773,dati_bdv!K$2:K$65536)","v":0},{"$f":"SUMIF(IF(dati_pdc!$C773=1,dati_bdv!$C$2:$C$65536,IF(dati_pdc!$C773=2,dati_bdv!$D$2:$D$65536,IF(dati_pdc!$C773=3,dati_bdv!$E$2:$E$65536,IF(dati_pdc!$C773=4,dati_bdv!$F$2:$F$65536,IF(dati_pdc!$C773=5,dati_bdv!$G$2:$G$65536,dati_bdv!$H$2:$H$65536))))),$A773,dati_bdv!L$2:L$65536)","v":0},{"$f":"SUMIF(IF(dati_pdc!$C773=1,dati_bdv!$C$2:$C$65536,IF(dati_pdc!$C773=2,dati_bdv!$D$2:$D$65536,IF(dati_pdc!$C773=3,dati_bdv!$E$2:$E$65536,IF(dati_pdc!$C773=4,dati_bdv!$F$2:$F$65536,IF(dati_pdc!$C773=5,dati_bdv!$G$2:$G$65536,dati_bdv!$H$2:$H$65536))))),$A773,dati_bdv!M$2:M$65536)","v":0},{"$f":"SUMIF(IF(dati_pdc!$C773=1,dati_bdv!$C$2:$C$65536,IF(dati_pdc!$C773=2,dati_bdv!$D$2:$D$65536,IF(dati_pdc!$C773=3,dati_bdv!$E$2:$E$65536,IF(dati_pdc!$C773=4,dati_bdv!$F$2:$F$65536,IF(dati_pdc!$C773=5,dati_bdv!$G$2:$G$65536,dati_bdv!$H$2:$H$65536))))),$A773,dati_bdv!N$2:N$65536)","v":0}]
[{"$f":"dati_pdc!A774","v":0},{"$f":"SUMIF(IF(dati_pdc!$C774=1,dati_bdv!$C$2:$C$65536,IF(dati_pdc!$C774=2,dati_bdv!$D$2:$D$65536,IF(dati_pdc!$C774=3,dati_bdv!$E$2:$E$65536,IF(dati_pdc!$C774=4,dati_bdv!$F$2:$F$65536,IF(dati_pdc!$C774=5,dati_bdv!$G$2:$G$65536,dati_bdv!$H$2:$H$65536))))),$A774,dati_bdv!J$2:J$65536)","v":0},{"$f":"SUMIF(IF(dati_pdc!$C774=1,dati_bdv!$C$2:$C$65536,IF(dati_pdc!$C774=2,dati_bdv!$D$2:$D$65536,IF(dati_pdc!$C774=3,dati_bdv!$E$2:$E$65536,IF(dati_pdc!$C774=4,dati_bdv!$F$2:$F$65536,IF(dati_pdc!$C774=5,dati_bdv!$G$2:$G$65536,dati_bdv!$H$2:$H$65536))))),$A774,dati_bdv!K$2:K$65536)","v":0},{"$f":"SUMIF(IF(dati_pdc!$C774=1,dati_bdv!$C$2:$C$65536,IF(dati_pdc!$C774=2,dati_bdv!$D$2:$D$65536,IF(dati_pdc!$C774=3,dati_bdv!$E$2:$E$65536,IF(dati_pdc!$C774=4,dati_bdv!$F$2:$F$65536,IF(dati_pdc!$C774=5,dati_bdv!$G$2:$G$65536,dati_bdv!$H$2:$H$65536))))),$A774,dati_bdv!L$2:L$65536)","v":0},{"$f":"SUMIF(IF(dati_pdc!$C774=1,dati_bdv!$C$2:$C$65536,IF(dati_pdc!$C774=2,dati_bdv!$D$2:$D$65536,IF(dati_pdc!$C774=3,dati_bdv!$E$2:$E$65536,IF(dati_pdc!$C774=4,dati_bdv!$F$2:$F$65536,IF(dati_pdc!$C774=5,dati_bdv!$G$2:$G$65536,dati_bdv!$H$2:$H$65536))))),$A774,dati_bdv!M$2:M$65536)","v":0},{"$f":"SUMIF(IF(dati_pdc!$C774=1,dati_bdv!$C$2:$C$65536,IF(dati_pdc!$C774=2,dati_bdv!$D$2:$D$65536,IF(dati_pdc!$C774=3,dati_bdv!$E$2:$E$65536,IF(dati_pdc!$C774=4,dati_bdv!$F$2:$F$65536,IF(dati_pdc!$C774=5,dati_bdv!$G$2:$G$65536,dati_bdv!$H$2:$H$65536))))),$A774,dati_bdv!N$2:N$65536)","v":0}]
[{"$f":"dati_pdc!A775","v":0},{"$f":"SUMIF(IF(dati_pdc!$C775=1,dati_bdv!$C$2:$C$65536,IF(dati_pdc!$C775=2,dati_bdv!$D$2:$D$65536,IF(dati_pdc!$C775=3,dati_bdv!$E$2:$E$65536,IF(dati_pdc!$C775=4,dati_bdv!$F$2:$F$65536,IF(dati_pdc!$C775=5,dati_bdv!$G$2:$G$65536,dati_bdv!$H$2:$H$65536))))),$A775,dati_bdv!J$2:J$65536)","v":0},{"$f":"SUMIF(IF(dati_pdc!$C775=1,dati_bdv!$C$2:$C$65536,IF(dati_pdc!$C775=2,dati_bdv!$D$2:$D$65536,IF(dati_pdc!$C775=3,dati_bdv!$E$2:$E$65536,IF(dati_pdc!$C775=4,dati_bdv!$F$2:$F$65536,IF(dati_pdc!$C775=5,dati_bdv!$G$2:$G$65536,dati_bdv!$H$2:$H$65536))))),$A775,dati_bdv!K$2:K$65536)","v":0},{"$f":"SUMIF(IF(dati_pdc!$C775=1,dati_bdv!$C$2:$C$65536,IF(dati_pdc!$C775=2,dati_bdv!$D$2:$D$65536,IF(dati_pdc!$C775=3,dati_bdv!$E$2:$E$65536,IF(dati_pdc!$C775=4,dati_bdv!$F$2:$F$65536,IF(dati_pdc!$C775=5,dati_bdv!$G$2:$G$65536,dati_bdv!$H$2:$H$65536))))),$A775,dati_bdv!L$2:L$65536)","v":0},{"$f":"SUMIF(IF(dati_pdc!$C775=1,dati_bdv!$C$2:$C$65536,IF(dati_pdc!$C775=2,dati_bdv!$D$2:$D$65536,IF(dati_pdc!$C775=3,dati_bdv!$E$2:$E$65536,IF(dati_pdc!$C775=4,dati_bdv!$F$2:$F$65536,IF(dati_pdc!$C775=5,dati_bdv!$G$2:$G$65536,dati_bdv!$H$2:$H$65536))))),$A775,dati_bdv!M$2:M$65536)","v":0},{"$f":"SUMIF(IF(dati_pdc!$C775=1,dati_bdv!$C$2:$C$65536,IF(dati_pdc!$C775=2,dati_bdv!$D$2:$D$65536,IF(dati_pdc!$C775=3,dati_bdv!$E$2:$E$65536,IF(dati_pdc!$C775=4,dati_bdv!$F$2:$F$65536,IF(dati_pdc!$C775=5,dati_bdv!$G$2:$G$65536,dati_bdv!$H$2:$H$65536))))),$A775,dati_bdv!N$2:N$65536)","v":0}]
[{"$f":"dati_pdc!A776","v":0},{"$f":"SUMIF(IF(dati_pdc!$C776=1,dati_bdv!$C$2:$C$65536,IF(dati_pdc!$C776=2,dati_bdv!$D$2:$D$65536,IF(dati_pdc!$C776=3,dati_bdv!$E$2:$E$65536,IF(dati_pdc!$C776=4,dati_bdv!$F$2:$F$65536,IF(dati_pdc!$C776=5,dati_bdv!$G$2:$G$65536,dati_bdv!$H$2:$H$65536))))),$A776,dati_bdv!J$2:J$65536)","v":0},{"$f":"SUMIF(IF(dati_pdc!$C776=1,dati_bdv!$C$2:$C$65536,IF(dati_pdc!$C776=2,dati_bdv!$D$2:$D$65536,IF(dati_pdc!$C776=3,dati_bdv!$E$2:$E$65536,IF(dati_pdc!$C776=4,dati_bdv!$F$2:$F$65536,IF(dati_pdc!$C776=5,dati_bdv!$G$2:$G$65536,dati_bdv!$H$2:$H$65536))))),$A776,dati_bdv!K$2:K$65536)","v":0},{"$f":"SUMIF(IF(dati_pdc!$C776=1,dati_bdv!$C$2:$C$65536,IF(dati_pdc!$C776=2,dati_bdv!$D$2:$D$65536,IF(dati_pdc!$C776=3,dati_bdv!$E$2:$E$65536,IF(dati_pdc!$C776=4,dati_bdv!$F$2:$F$65536,IF(dati_pdc!$C776=5,dati_bdv!$G$2:$G$65536,dati_bdv!$H$2:$H$65536))))),$A776,dati_bdv!L$2:L$65536)","v":0},{"$f":"SUMIF(IF(dati_pdc!$C776=1,dati_bdv!$C$2:$C$65536,IF(dati_pdc!$C776=2,dati_bdv!$D$2:$D$65536,IF(dati_pdc!$C776=3,dati_bdv!$E$2:$E$65536,IF(dati_pdc!$C776=4,dati_bdv!$F$2:$F$65536,IF(dati_pdc!$C776=5,dati_bdv!$G$2:$G$65536,dati_bdv!$H$2:$H$65536))))),$A776,dati_bdv!M$2:M$65536)","v":0},{"$f":"SUMIF(IF(dati_pdc!$C776=1,dati_bdv!$C$2:$C$65536,IF(dati_pdc!$C776=2,dati_bdv!$D$2:$D$65536,IF(dati_pdc!$C776=3,dati_bdv!$E$2:$E$65536,IF(dati_pdc!$C776=4,dati_bdv!$F$2:$F$65536,IF(dati_pdc!$C776=5,dati_bdv!$G$2:$G$65536,dati_bdv!$H$2:$H$65536))))),$A776,dati_bdv!N$2:N$65536)","v":0}]
[{"$f":"dati_pdc!A777","v":0},{"$f":"SUMIF(IF(dati_pdc!$C777=1,dati_bdv!$C$2:$C$65536,IF(dati_pdc!$C777=2,dati_bdv!$D$2:$D$65536,IF(dati_pdc!$C777=3,dati_bdv!$E$2:$E$65536,IF(dati_pdc!$C777=4,dati_bdv!$F$2:$F$65536,IF(dati_pdc!$C777=5,dati_bdv!$G$2:$G$65536,dati_bdv!$H$2:$H$65536))))),$A777,dati_bdv!J$2:J$65536)","v":0},{"$f":"SUMIF(IF(dati_pdc!$C777=1,dati_bdv!$C$2:$C$65536,IF(dati_pdc!$C777=2,dati_bdv!$D$2:$D$65536,IF(dati_pdc!$C777=3,dati_bdv!$E$2:$E$65536,IF(dati_pdc!$C777=4,dati_bdv!$F$2:$F$65536,IF(dati_pdc!$C777=5,dati_bdv!$G$2:$G$65536,dati_bdv!$H$2:$H$65536))))),$A777,dati_bdv!K$2:K$65536)","v":0},{"$f":"SUMIF(IF(dati_pdc!$C777=1,dati_bdv!$C$2:$C$65536,IF(dati_pdc!$C777=2,dati_bdv!$D$2:$D$65536,IF(dati_pdc!$C777=3,dati_bdv!$E$2:$E$65536,IF(dati_pdc!$C777=4,dati_bdv!$F$2:$F$65536,IF(dati_pdc!$C777=5,dati_bdv!$G$2:$G$65536,dati_bdv!$H$2:$H$65536))))),$A777,dati_bdv!L$2:L$65536)","v":0},{"$f":"SUMIF(IF(dati_pdc!$C777=1,dati_bdv!$C$2:$C$65536,IF(dati_pdc!$C777=2,dati_bdv!$D$2:$D$65536,IF(dati_pdc!$C777=3,dati_bdv!$E$2:$E$65536,IF(dati_pdc!$C777=4,dati_bdv!$F$2:$F$65536,IF(dati_pdc!$C777=5,dati_bdv!$G$2:$G$65536,dati_bdv!$H$2:$H$65536))))),$A777,dati_bdv!M$2:M$65536)","v":0},{"$f":"SUMIF(IF(dati_pdc!$C777=1,dati_bdv!$C$2:$C$65536,IF(dati_pdc!$C777=2,dati_bdv!$D$2:$D$65536,IF(dati_pdc!$C777=3,dati_bdv!$E$2:$E$65536,IF(dati_pdc!$C777=4,dati_bdv!$F$2:$F$65536,IF(dati_pdc!$C777=5,dati_bdv!$G$2:$G$65536,dati_bdv!$H$2:$H$65536))))),$A777,dati_bdv!N$2:N$65536)","v":0}]
[{"$f":"dati_pdc!A778","v":0},{"$f":"SUMIF(IF(dati_pdc!$C778=1,dati_bdv!$C$2:$C$65536,IF(dati_pdc!$C778=2,dati_bdv!$D$2:$D$65536,IF(dati_pdc!$C778=3,dati_bdv!$E$2:$E$65536,IF(dati_pdc!$C778=4,dati_bdv!$F$2:$F$65536,IF(dati_pdc!$C778=5,dati_bdv!$G$2:$G$65536,dati_bdv!$H$2:$H$65536))))),$A778,dati_bdv!J$2:J$65536)","v":0},{"$f":"SUMIF(IF(dati_pdc!$C778=1,dati_bdv!$C$2:$C$65536,IF(dati_pdc!$C778=2,dati_bdv!$D$2:$D$65536,IF(dati_pdc!$C778=3,dati_bdv!$E$2:$E$65536,IF(dati_pdc!$C778=4,dati_bdv!$F$2:$F$65536,IF(dati_pdc!$C778=5,dati_bdv!$G$2:$G$65536,dati_bdv!$H$2:$H$65536))))),$A778,dati_bdv!K$2:K$65536)","v":0},{"$f":"SUMIF(IF(dati_pdc!$C778=1,dati_bdv!$C$2:$C$65536,IF(dati_pdc!$C778=2,dati_bdv!$D$2:$D$65536,IF(dati_pdc!$C778=3,dati_bdv!$E$2:$E$65536,IF(dati_pdc!$C778=4,dati_bdv!$F$2:$F$65536,IF(dati_pdc!$C778=5,dati_bdv!$G$2:$G$65536,dati_bdv!$H$2:$H$65536))))),$A778,dati_bdv!L$2:L$65536)","v":0},{"$f":"SUMIF(IF(dati_pdc!$C778=1,dati_bdv!$C$2:$C$65536,IF(dati_pdc!$C778=2,dati_bdv!$D$2:$D$65536,IF(dati_pdc!$C778=3,dati_bdv!$E$2:$E$65536,IF(dati_pdc!$C778=4,dati_bdv!$F$2:$F$65536,IF(dati_pdc!$C778=5,dati_bdv!$G$2:$G$65536,dati_bdv!$H$2:$H$65536))))),$A778,dati_bdv!M$2:M$65536)","v":0},{"$f":"SUMIF(IF(dati_pdc!$C778=1,dati_bdv!$C$2:$C$65536,IF(dati_pdc!$C778=2,dati_bdv!$D$2:$D$65536,IF(dati_pdc!$C778=3,dati_bdv!$E$2:$E$65536,IF(dati_pdc!$C778=4,dati_bdv!$F$2:$F$65536,IF(dati_pdc!$C778=5,dati_bdv!$G$2:$G$65536,dati_bdv!$H$2:$H$65536))))),$A778,dati_bdv!N$2:N$65536)","v":0}]
[{"$f":"dati_pdc!A779","v":0},{"$f":"SUMIF(IF(dati_pdc!$C779=1,dati_bdv!$C$2:$C$65536,IF(dati_pdc!$C779=2,dati_bdv!$D$2:$D$65536,IF(dati_pdc!$C779=3,dati_bdv!$E$2:$E$65536,IF(dati_pdc!$C779=4,dati_bdv!$F$2:$F$65536,IF(dati_pdc!$C779=5,dati_bdv!$G$2:$G$65536,dati_bdv!$H$2:$H$65536))))),$A779,dati_bdv!J$2:J$65536)","v":0},{"$f":"SUMIF(IF(dati_pdc!$C779=1,dati_bdv!$C$2:$C$65536,IF(dati_pdc!$C779=2,dati_bdv!$D$2:$D$65536,IF(dati_pdc!$C779=3,dati_bdv!$E$2:$E$65536,IF(dati_pdc!$C779=4,dati_bdv!$F$2:$F$65536,IF(dati_pdc!$C779=5,dati_bdv!$G$2:$G$65536,dati_bdv!$H$2:$H$65536))))),$A779,dati_bdv!K$2:K$65536)","v":0},{"$f":"SUMIF(IF(dati_pdc!$C779=1,dati_bdv!$C$2:$C$65536,IF(dati_pdc!$C779=2,dati_bdv!$D$2:$D$65536,IF(dati_pdc!$C779=3,dati_bdv!$E$2:$E$65536,IF(dati_pdc!$C779=4,dati_bdv!$F$2:$F$65536,IF(dati_pdc!$C779=5,dati_bdv!$G$2:$G$65536,dati_bdv!$H$2:$H$65536))))),$A779,dati_bdv!L$2:L$65536)","v":0},{"$f":"SUMIF(IF(dati_pdc!$C779=1,dati_bdv!$C$2:$C$65536,IF(dati_pdc!$C779=2,dati_bdv!$D$2:$D$65536,IF(dati_pdc!$C779=3,dati_bdv!$E$2:$E$65536,IF(dati_pdc!$C779=4,dati_bdv!$F$2:$F$65536,IF(dati_pdc!$C779=5,dati_bdv!$G$2:$G$65536,dati_bdv!$H$2:$H$65536))))),$A779,dati_bdv!M$2:M$65536)","v":0},{"$f":"SUMIF(IF(dati_pdc!$C779=1,dati_bdv!$C$2:$C$65536,IF(dati_pdc!$C779=2,dati_bdv!$D$2:$D$65536,IF(dati_pdc!$C779=3,dati_bdv!$E$2:$E$65536,IF(dati_pdc!$C779=4,dati_bdv!$F$2:$F$65536,IF(dati_pdc!$C779=5,dati_bdv!$G$2:$G$65536,dati_bdv!$H$2:$H$65536))))),$A779,dati_bdv!N$2:N$65536)","v":0}]
[{"$f":"dati_pdc!A780","v":0},{"$f":"SUMIF(IF(dati_pdc!$C780=1,dati_bdv!$C$2:$C$65536,IF(dati_pdc!$C780=2,dati_bdv!$D$2:$D$65536,IF(dati_pdc!$C780=3,dati_bdv!$E$2:$E$65536,IF(dati_pdc!$C780=4,dati_bdv!$F$2:$F$65536,IF(dati_pdc!$C780=5,dati_bdv!$G$2:$G$65536,dati_bdv!$H$2:$H$65536))))),$A780,dati_bdv!J$2:J$65536)","v":0},{"$f":"SUMIF(IF(dati_pdc!$C780=1,dati_bdv!$C$2:$C$65536,IF(dati_pdc!$C780=2,dati_bdv!$D$2:$D$65536,IF(dati_pdc!$C780=3,dati_bdv!$E$2:$E$65536,IF(dati_pdc!$C780=4,dati_bdv!$F$2:$F$65536,IF(dati_pdc!$C780=5,dati_bdv!$G$2:$G$65536,dati_bdv!$H$2:$H$65536))))),$A780,dati_bdv!K$2:K$65536)","v":0},{"$f":"SUMIF(IF(dati_pdc!$C780=1,dati_bdv!$C$2:$C$65536,IF(dati_pdc!$C780=2,dati_bdv!$D$2:$D$65536,IF(dati_pdc!$C780=3,dati_bdv!$E$2:$E$65536,IF(dati_pdc!$C780=4,dati_bdv!$F$2:$F$65536,IF(dati_pdc!$C780=5,dati_bdv!$G$2:$G$65536,dati_bdv!$H$2:$H$65536))))),$A780,dati_bdv!L$2:L$65536)","v":0},{"$f":"SUMIF(IF(dati_pdc!$C780=1,dati_bdv!$C$2:$C$65536,IF(dati_pdc!$C780=2,dati_bdv!$D$2:$D$65536,IF(dati_pdc!$C780=3,dati_bdv!$E$2:$E$65536,IF(dati_pdc!$C780=4,dati_bdv!$F$2:$F$65536,IF(dati_pdc!$C780=5,dati_bdv!$G$2:$G$65536,dati_bdv!$H$2:$H$65536))))),$A780,dati_bdv!M$2:M$65536)","v":0},{"$f":"SUMIF(IF(dati_pdc!$C780=1,dati_bdv!$C$2:$C$65536,IF(dati_pdc!$C780=2,dati_bdv!$D$2:$D$65536,IF(dati_pdc!$C780=3,dati_bdv!$E$2:$E$65536,IF(dati_pdc!$C780=4,dati_bdv!$F$2:$F$65536,IF(dati_pdc!$C780=5,dati_bdv!$G$2:$G$65536,dati_bdv!$H$2:$H$65536))))),$A780,dati_bdv!N$2:N$65536)","v":0}]
[{"$f":"dati_pdc!A781","v":0},{"$f":"SUMIF(IF(dati_pdc!$C781=1,dati_bdv!$C$2:$C$65536,IF(dati_pdc!$C781=2,dati_bdv!$D$2:$D$65536,IF(dati_pdc!$C781=3,dati_bdv!$E$2:$E$65536,IF(dati_pdc!$C781=4,dati_bdv!$F$2:$F$65536,IF(dati_pdc!$C781=5,dati_bdv!$G$2:$G$65536,dati_bdv!$H$2:$H$65536))))),$A781,dati_bdv!J$2:J$65536)","v":0},{"$f":"SUMIF(IF(dati_pdc!$C781=1,dati_bdv!$C$2:$C$65536,IF(dati_pdc!$C781=2,dati_bdv!$D$2:$D$65536,IF(dati_pdc!$C781=3,dati_bdv!$E$2:$E$65536,IF(dati_pdc!$C781=4,dati_bdv!$F$2:$F$65536,IF(dati_pdc!$C781=5,dati_bdv!$G$2:$G$65536,dati_bdv!$H$2:$H$65536))))),$A781,dati_bdv!K$2:K$65536)","v":0},{"$f":"SUMIF(IF(dati_pdc!$C781=1,dati_bdv!$C$2:$C$65536,IF(dati_pdc!$C781=2,dati_bdv!$D$2:$D$65536,IF(dati_pdc!$C781=3,dati_bdv!$E$2:$E$65536,IF(dati_pdc!$C781=4,dati_bdv!$F$2:$F$65536,IF(dati_pdc!$C781=5,dati_bdv!$G$2:$G$65536,dati_bdv!$H$2:$H$65536))))),$A781,dati_bdv!L$2:L$65536)","v":0},{"$f":"SUMIF(IF(dati_pdc!$C781=1,dati_bdv!$C$2:$C$65536,IF(dati_pdc!$C781=2,dati_bdv!$D$2:$D$65536,IF(dati_pdc!$C781=3,dati_bdv!$E$2:$E$65536,IF(dati_pdc!$C781=4,dati_bdv!$F$2:$F$65536,IF(dati_pdc!$C781=5,dati_bdv!$G$2:$G$65536,dati_bdv!$H$2:$H$65536))))),$A781,dati_bdv!M$2:M$65536)","v":0},{"$f":"SUMIF(IF(dati_pdc!$C781=1,dati_bdv!$C$2:$C$65536,IF(dati_pdc!$C781=2,dati_bdv!$D$2:$D$65536,IF(dati_pdc!$C781=3,dati_bdv!$E$2:$E$65536,IF(dati_pdc!$C781=4,dati_bdv!$F$2:$F$65536,IF(dati_pdc!$C781=5,dati_bdv!$G$2:$G$65536,dati_bdv!$H$2:$H$65536))))),$A781,dati_bdv!N$2:N$65536)","v":0}]
[{"$f":"dati_pdc!A782","v":0},{"$f":"SUMIF(IF(dati_pdc!$C782=1,dati_bdv!$C$2:$C$65536,IF(dati_pdc!$C782=2,dati_bdv!$D$2:$D$65536,IF(dati_pdc!$C782=3,dati_bdv!$E$2:$E$65536,IF(dati_pdc!$C782=4,dati_bdv!$F$2:$F$65536,IF(dati_pdc!$C782=5,dati_bdv!$G$2:$G$65536,dati_bdv!$H$2:$H$65536))))),$A782,dati_bdv!J$2:J$65536)","v":0},{"$f":"SUMIF(IF(dati_pdc!$C782=1,dati_bdv!$C$2:$C$65536,IF(dati_pdc!$C782=2,dati_bdv!$D$2:$D$65536,IF(dati_pdc!$C782=3,dati_bdv!$E$2:$E$65536,IF(dati_pdc!$C782=4,dati_bdv!$F$2:$F$65536,IF(dati_pdc!$C782=5,dati_bdv!$G$2:$G$65536,dati_bdv!$H$2:$H$65536))))),$A782,dati_bdv!K$2:K$65536)","v":0},{"$f":"SUMIF(IF(dati_pdc!$C782=1,dati_bdv!$C$2:$C$65536,IF(dati_pdc!$C782=2,dati_bdv!$D$2:$D$65536,IF(dati_pdc!$C782=3,dati_bdv!$E$2:$E$65536,IF(dati_pdc!$C782=4,dati_bdv!$F$2:$F$65536,IF(dati_pdc!$C782=5,dati_bdv!$G$2:$G$65536,dati_bdv!$H$2:$H$65536))))),$A782,dati_bdv!L$2:L$65536)","v":0},{"$f":"SUMIF(IF(dati_pdc!$C782=1,dati_bdv!$C$2:$C$65536,IF(dati_pdc!$C782=2,dati_bdv!$D$2:$D$65536,IF(dati_pdc!$C782=3,dati_bdv!$E$2:$E$65536,IF(dati_pdc!$C782=4,dati_bdv!$F$2:$F$65536,IF(dati_pdc!$C782=5,dati_bdv!$G$2:$G$65536,dati_bdv!$H$2:$H$65536))))),$A782,dati_bdv!M$2:M$65536)","v":0},{"$f":"SUMIF(IF(dati_pdc!$C782=1,dati_bdv!$C$2:$C$65536,IF(dati_pdc!$C782=2,dati_bdv!$D$2:$D$65536,IF(dati_pdc!$C782=3,dati_bdv!$E$2:$E$65536,IF(dati_pdc!$C782=4,dati_bdv!$F$2:$F$65536,IF(dati_pdc!$C782=5,dati_bdv!$G$2:$G$65536,dati_bdv!$H$2:$H$65536))))),$A782,dati_bdv!N$2:N$65536)","v":0}]
[{"$f":"dati_pdc!A783","v":0},{"$f":"SUMIF(IF(dati_pdc!$C783=1,dati_bdv!$C$2:$C$65536,IF(dati_pdc!$C783=2,dati_bdv!$D$2:$D$65536,IF(dati_pdc!$C783=3,dati_bdv!$E$2:$E$65536,IF(dati_pdc!$C783=4,dati_bdv!$F$2:$F$65536,IF(dati_pdc!$C783=5,dati_bdv!$G$2:$G$65536,dati_bdv!$H$2:$H$65536))))),$A783,dati_bdv!J$2:J$65536)","v":0},{"$f":"SUMIF(IF(dati_pdc!$C783=1,dati_bdv!$C$2:$C$65536,IF(dati_pdc!$C783=2,dati_bdv!$D$2:$D$65536,IF(dati_pdc!$C783=3,dati_bdv!$E$2:$E$65536,IF(dati_pdc!$C783=4,dati_bdv!$F$2:$F$65536,IF(dati_pdc!$C783=5,dati_bdv!$G$2:$G$65536,dati_bdv!$H$2:$H$65536))))),$A783,dati_bdv!K$2:K$65536)","v":0},{"$f":"SUMIF(IF(dati_pdc!$C783=1,dati_bdv!$C$2:$C$65536,IF(dati_pdc!$C783=2,dati_bdv!$D$2:$D$65536,IF(dati_pdc!$C783=3,dati_bdv!$E$2:$E$65536,IF(dati_pdc!$C783=4,dati_bdv!$F$2:$F$65536,IF(dati_pdc!$C783=5,dati_bdv!$G$2:$G$65536,dati_bdv!$H$2:$H$65536))))),$A783,dati_bdv!L$2:L$65536)","v":0},{"$f":"SUMIF(IF(dati_pdc!$C783=1,dati_bdv!$C$2:$C$65536,IF(dati_pdc!$C783=2,dati_bdv!$D$2:$D$65536,IF(dati_pdc!$C783=3,dati_bdv!$E$2:$E$65536,IF(dati_pdc!$C783=4,dati_bdv!$F$2:$F$65536,IF(dati_pdc!$C783=5,dati_bdv!$G$2:$G$65536,dati_bdv!$H$2:$H$65536))))),$A783,dati_bdv!M$2:M$65536)","v":0},{"$f":"SUMIF(IF(dati_pdc!$C783=1,dati_bdv!$C$2:$C$65536,IF(dati_pdc!$C783=2,dati_bdv!$D$2:$D$65536,IF(dati_pdc!$C783=3,dati_bdv!$E$2:$E$65536,IF(dati_pdc!$C783=4,dati_bdv!$F$2:$F$65536,IF(dati_pdc!$C783=5,dati_bdv!$G$2:$G$65536,dati_bdv!$H$2:$H$65536))))),$A783,dati_bdv!N$2:N$65536)","v":0}]
[{"$f":"dati_pdc!A784","v":0},{"$f":"SUMIF(IF(dati_pdc!$C784=1,dati_bdv!$C$2:$C$65536,IF(dati_pdc!$C784=2,dati_bdv!$D$2:$D$65536,IF(dati_pdc!$C784=3,dati_bdv!$E$2:$E$65536,IF(dati_pdc!$C784=4,dati_bdv!$F$2:$F$65536,IF(dati_pdc!$C784=5,dati_bdv!$G$2:$G$65536,dati_bdv!$H$2:$H$65536))))),$A784,dati_bdv!J$2:J$65536)","v":0},{"$f":"SUMIF(IF(dati_pdc!$C784=1,dati_bdv!$C$2:$C$65536,IF(dati_pdc!$C784=2,dati_bdv!$D$2:$D$65536,IF(dati_pdc!$C784=3,dati_bdv!$E$2:$E$65536,IF(dati_pdc!$C784=4,dati_bdv!$F$2:$F$65536,IF(dati_pdc!$C784=5,dati_bdv!$G$2:$G$65536,dati_bdv!$H$2:$H$65536))))),$A784,dati_bdv!K$2:K$65536)","v":0},{"$f":"SUMIF(IF(dati_pdc!$C784=1,dati_bdv!$C$2:$C$65536,IF(dati_pdc!$C784=2,dati_bdv!$D$2:$D$65536,IF(dati_pdc!$C784=3,dati_bdv!$E$2:$E$65536,IF(dati_pdc!$C784=4,dati_bdv!$F$2:$F$65536,IF(dati_pdc!$C784=5,dati_bdv!$G$2:$G$65536,dati_bdv!$H$2:$H$65536))))),$A784,dati_bdv!L$2:L$65536)","v":0},{"$f":"SUMIF(IF(dati_pdc!$C784=1,dati_bdv!$C$2:$C$65536,IF(dati_pdc!$C784=2,dati_bdv!$D$2:$D$65536,IF(dati_pdc!$C784=3,dati_bdv!$E$2:$E$65536,IF(dati_pdc!$C784=4,dati_bdv!$F$2:$F$65536,IF(dati_pdc!$C784=5,dati_bdv!$G$2:$G$65536,dati_bdv!$H$2:$H$65536))))),$A784,dati_bdv!M$2:M$65536)","v":0},{"$f":"SUMIF(IF(dati_pdc!$C784=1,dati_bdv!$C$2:$C$65536,IF(dati_pdc!$C784=2,dati_bdv!$D$2:$D$65536,IF(dati_pdc!$C784=3,dati_bdv!$E$2:$E$65536,IF(dati_pdc!$C784=4,dati_bdv!$F$2:$F$65536,IF(dati_pdc!$C784=5,dati_bdv!$G$2:$G$65536,dati_bdv!$H$2:$H$65536))))),$A784,dati_bdv!N$2:N$65536)","v":0}]
[{"$f":"dati_pdc!A785","v":0},{"$f":"SUMIF(IF(dati_pdc!$C785=1,dati_bdv!$C$2:$C$65536,IF(dati_pdc!$C785=2,dati_bdv!$D$2:$D$65536,IF(dati_pdc!$C785=3,dati_bdv!$E$2:$E$65536,IF(dati_pdc!$C785=4,dati_bdv!$F$2:$F$65536,IF(dati_pdc!$C785=5,dati_bdv!$G$2:$G$65536,dati_bdv!$H$2:$H$65536))))),$A785,dati_bdv!J$2:J$65536)","v":0},{"$f":"SUMIF(IF(dati_pdc!$C785=1,dati_bdv!$C$2:$C$65536,IF(dati_pdc!$C785=2,dati_bdv!$D$2:$D$65536,IF(dati_pdc!$C785=3,dati_bdv!$E$2:$E$65536,IF(dati_pdc!$C785=4,dati_bdv!$F$2:$F$65536,IF(dati_pdc!$C785=5,dati_bdv!$G$2:$G$65536,dati_bdv!$H$2:$H$65536))))),$A785,dati_bdv!K$2:K$65536)","v":0},{"$f":"SUMIF(IF(dati_pdc!$C785=1,dati_bdv!$C$2:$C$65536,IF(dati_pdc!$C785=2,dati_bdv!$D$2:$D$65536,IF(dati_pdc!$C785=3,dati_bdv!$E$2:$E$65536,IF(dati_pdc!$C785=4,dati_bdv!$F$2:$F$65536,IF(dati_pdc!$C785=5,dati_bdv!$G$2:$G$65536,dati_bdv!$H$2:$H$65536))))),$A785,dati_bdv!L$2:L$65536)","v":0},{"$f":"SUMIF(IF(dati_pdc!$C785=1,dati_bdv!$C$2:$C$65536,IF(dati_pdc!$C785=2,dati_bdv!$D$2:$D$65536,IF(dati_pdc!$C785=3,dati_bdv!$E$2:$E$65536,IF(dati_pdc!$C785=4,dati_bdv!$F$2:$F$65536,IF(dati_pdc!$C785=5,dati_bdv!$G$2:$G$65536,dati_bdv!$H$2:$H$65536))))),$A785,dati_bdv!M$2:M$65536)","v":0},{"$f":"SUMIF(IF(dati_pdc!$C785=1,dati_bdv!$C$2:$C$65536,IF(dati_pdc!$C785=2,dati_bdv!$D$2:$D$65536,IF(dati_pdc!$C785=3,dati_bdv!$E$2:$E$65536,IF(dati_pdc!$C785=4,dati_bdv!$F$2:$F$65536,IF(dati_pdc!$C785=5,dati_bdv!$G$2:$G$65536,dati_bdv!$H$2:$H$65536))))),$A785,dati_bdv!N$2:N$65536)","v":0}]
[{"$f":"dati_pdc!A786","v":0},{"$f":"SUMIF(IF(dati_pdc!$C786=1,dati_bdv!$C$2:$C$65536,IF(dati_pdc!$C786=2,dati_bdv!$D$2:$D$65536,IF(dati_pdc!$C786=3,dati_bdv!$E$2:$E$65536,IF(dati_pdc!$C786=4,dati_bdv!$F$2:$F$65536,IF(dati_pdc!$C786=5,dati_bdv!$G$2:$G$65536,dati_bdv!$H$2:$H$65536))))),$A786,dati_bdv!J$2:J$65536)","v":0},{"$f":"SUMIF(IF(dati_pdc!$C786=1,dati_bdv!$C$2:$C$65536,IF(dati_pdc!$C786=2,dati_bdv!$D$2:$D$65536,IF(dati_pdc!$C786=3,dati_bdv!$E$2:$E$65536,IF(dati_pdc!$C786=4,dati_bdv!$F$2:$F$65536,IF(dati_pdc!$C786=5,dati_bdv!$G$2:$G$65536,dati_bdv!$H$2:$H$65536))))),$A786,dati_bdv!K$2:K$65536)","v":0},{"$f":"SUMIF(IF(dati_pdc!$C786=1,dati_bdv!$C$2:$C$65536,IF(dati_pdc!$C786=2,dati_bdv!$D$2:$D$65536,IF(dati_pdc!$C786=3,dati_bdv!$E$2:$E$65536,IF(dati_pdc!$C786=4,dati_bdv!$F$2:$F$65536,IF(dati_pdc!$C786=5,dati_bdv!$G$2:$G$65536,dati_bdv!$H$2:$H$65536))))),$A786,dati_bdv!L$2:L$65536)","v":0},{"$f":"SUMIF(IF(dati_pdc!$C786=1,dati_bdv!$C$2:$C$65536,IF(dati_pdc!$C786=2,dati_bdv!$D$2:$D$65536,IF(dati_pdc!$C786=3,dati_bdv!$E$2:$E$65536,IF(dati_pdc!$C786=4,dati_bdv!$F$2:$F$65536,IF(dati_pdc!$C786=5,dati_bdv!$G$2:$G$65536,dati_bdv!$H$2:$H$65536))))),$A786,dati_bdv!M$2:M$65536)","v":0},{"$f":"SUMIF(IF(dati_pdc!$C786=1,dati_bdv!$C$2:$C$65536,IF(dati_pdc!$C786=2,dati_bdv!$D$2:$D$65536,IF(dati_pdc!$C786=3,dati_bdv!$E$2:$E$65536,IF(dati_pdc!$C786=4,dati_bdv!$F$2:$F$65536,IF(dati_pdc!$C786=5,dati_bdv!$G$2:$G$65536,dati_bdv!$H$2:$H$65536))))),$A786,dati_bdv!N$2:N$65536)","v":0}]
[{"$f":"dati_pdc!A787","v":0},{"$f":"SUMIF(IF(dati_pdc!$C787=1,dati_bdv!$C$2:$C$65536,IF(dati_pdc!$C787=2,dati_bdv!$D$2:$D$65536,IF(dati_pdc!$C787=3,dati_bdv!$E$2:$E$65536,IF(dati_pdc!$C787=4,dati_bdv!$F$2:$F$65536,IF(dati_pdc!$C787=5,dati_bdv!$G$2:$G$65536,dati_bdv!$H$2:$H$65536))))),$A787,dati_bdv!J$2:J$65536)","v":0},{"$f":"SUMIF(IF(dati_pdc!$C787=1,dati_bdv!$C$2:$C$65536,IF(dati_pdc!$C787=2,dati_bdv!$D$2:$D$65536,IF(dati_pdc!$C787=3,dati_bdv!$E$2:$E$65536,IF(dati_pdc!$C787=4,dati_bdv!$F$2:$F$65536,IF(dati_pdc!$C787=5,dati_bdv!$G$2:$G$65536,dati_bdv!$H$2:$H$65536))))),$A787,dati_bdv!K$2:K$65536)","v":0},{"$f":"SUMIF(IF(dati_pdc!$C787=1,dati_bdv!$C$2:$C$65536,IF(dati_pdc!$C787=2,dati_bdv!$D$2:$D$65536,IF(dati_pdc!$C787=3,dati_bdv!$E$2:$E$65536,IF(dati_pdc!$C787=4,dati_bdv!$F$2:$F$65536,IF(dati_pdc!$C787=5,dati_bdv!$G$2:$G$65536,dati_bdv!$H$2:$H$65536))))),$A787,dati_bdv!L$2:L$65536)","v":0},{"$f":"SUMIF(IF(dati_pdc!$C787=1,dati_bdv!$C$2:$C$65536,IF(dati_pdc!$C787=2,dati_bdv!$D$2:$D$65536,IF(dati_pdc!$C787=3,dati_bdv!$E$2:$E$65536,IF(dati_pdc!$C787=4,dati_bdv!$F$2:$F$65536,IF(dati_pdc!$C787=5,dati_bdv!$G$2:$G$65536,dati_bdv!$H$2:$H$65536))))),$A787,dati_bdv!M$2:M$65536)","v":0},{"$f":"SUMIF(IF(dati_pdc!$C787=1,dati_bdv!$C$2:$C$65536,IF(dati_pdc!$C787=2,dati_bdv!$D$2:$D$65536,IF(dati_pdc!$C787=3,dati_bdv!$E$2:$E$65536,IF(dati_pdc!$C787=4,dati_bdv!$F$2:$F$65536,IF(dati_pdc!$C787=5,dati_bdv!$G$2:$G$65536,dati_bdv!$H$2:$H$65536))))),$A787,dati_bdv!N$2:N$65536)","v":0}]
[{"$f":"dati_pdc!A788","v":0},{"$f":"SUMIF(IF(dati_pdc!$C788=1,dati_bdv!$C$2:$C$65536,IF(dati_pdc!$C788=2,dati_bdv!$D$2:$D$65536,IF(dati_pdc!$C788=3,dati_bdv!$E$2:$E$65536,IF(dati_pdc!$C788=4,dati_bdv!$F$2:$F$65536,IF(dati_pdc!$C788=5,dati_bdv!$G$2:$G$65536,dati_bdv!$H$2:$H$65536))))),$A788,dati_bdv!J$2:J$65536)","v":0},{"$f":"SUMIF(IF(dati_pdc!$C788=1,dati_bdv!$C$2:$C$65536,IF(dati_pdc!$C788=2,dati_bdv!$D$2:$D$65536,IF(dati_pdc!$C788=3,dati_bdv!$E$2:$E$65536,IF(dati_pdc!$C788=4,dati_bdv!$F$2:$F$65536,IF(dati_pdc!$C788=5,dati_bdv!$G$2:$G$65536,dati_bdv!$H$2:$H$65536))))),$A788,dati_bdv!K$2:K$65536)","v":0},{"$f":"SUMIF(IF(dati_pdc!$C788=1,dati_bdv!$C$2:$C$65536,IF(dati_pdc!$C788=2,dati_bdv!$D$2:$D$65536,IF(dati_pdc!$C788=3,dati_bdv!$E$2:$E$65536,IF(dati_pdc!$C788=4,dati_bdv!$F$2:$F$65536,IF(dati_pdc!$C788=5,dati_bdv!$G$2:$G$65536,dati_bdv!$H$2:$H$65536))))),$A788,dati_bdv!L$2:L$65536)","v":0},{"$f":"SUMIF(IF(dati_pdc!$C788=1,dati_bdv!$C$2:$C$65536,IF(dati_pdc!$C788=2,dati_bdv!$D$2:$D$65536,IF(dati_pdc!$C788=3,dati_bdv!$E$2:$E$65536,IF(dati_pdc!$C788=4,dati_bdv!$F$2:$F$65536,IF(dati_pdc!$C788=5,dati_bdv!$G$2:$G$65536,dati_bdv!$H$2:$H$65536))))),$A788,dati_bdv!M$2:M$65536)","v":0},{"$f":"SUMIF(IF(dati_pdc!$C788=1,dati_bdv!$C$2:$C$65536,IF(dati_pdc!$C788=2,dati_bdv!$D$2:$D$65536,IF(dati_pdc!$C788=3,dati_bdv!$E$2:$E$65536,IF(dati_pdc!$C788=4,dati_bdv!$F$2:$F$65536,IF(dati_pdc!$C788=5,dati_bdv!$G$2:$G$65536,dati_bdv!$H$2:$H$65536))))),$A788,dati_bdv!N$2:N$65536)","v":0}]
[{"$f":"dati_pdc!A789","v":0},{"$f":"SUMIF(IF(dati_pdc!$C789=1,dati_bdv!$C$2:$C$65536,IF(dati_pdc!$C789=2,dati_bdv!$D$2:$D$65536,IF(dati_pdc!$C789=3,dati_bdv!$E$2:$E$65536,IF(dati_pdc!$C789=4,dati_bdv!$F$2:$F$65536,IF(dati_pdc!$C789=5,dati_bdv!$G$2:$G$65536,dati_bdv!$H$2:$H$65536))))),$A789,dati_bdv!J$2:J$65536)","v":0},{"$f":"SUMIF(IF(dati_pdc!$C789=1,dati_bdv!$C$2:$C$65536,IF(dati_pdc!$C789=2,dati_bdv!$D$2:$D$65536,IF(dati_pdc!$C789=3,dati_bdv!$E$2:$E$65536,IF(dati_pdc!$C789=4,dati_bdv!$F$2:$F$65536,IF(dati_pdc!$C789=5,dati_bdv!$G$2:$G$65536,dati_bdv!$H$2:$H$65536))))),$A789,dati_bdv!K$2:K$65536)","v":0},{"$f":"SUMIF(IF(dati_pdc!$C789=1,dati_bdv!$C$2:$C$65536,IF(dati_pdc!$C789=2,dati_bdv!$D$2:$D$65536,IF(dati_pdc!$C789=3,dati_bdv!$E$2:$E$65536,IF(dati_pdc!$C789=4,dati_bdv!$F$2:$F$65536,IF(dati_pdc!$C789=5,dati_bdv!$G$2:$G$65536,dati_bdv!$H$2:$H$65536))))),$A789,dati_bdv!L$2:L$65536)","v":0},{"$f":"SUMIF(IF(dati_pdc!$C789=1,dati_bdv!$C$2:$C$65536,IF(dati_pdc!$C789=2,dati_bdv!$D$2:$D$65536,IF(dati_pdc!$C789=3,dati_bdv!$E$2:$E$65536,IF(dati_pdc!$C789=4,dati_bdv!$F$2:$F$65536,IF(dati_pdc!$C789=5,dati_bdv!$G$2:$G$65536,dati_bdv!$H$2:$H$65536))))),$A789,dati_bdv!M$2:M$65536)","v":0},{"$f":"SUMIF(IF(dati_pdc!$C789=1,dati_bdv!$C$2:$C$65536,IF(dati_pdc!$C789=2,dati_bdv!$D$2:$D$65536,IF(dati_pdc!$C789=3,dati_bdv!$E$2:$E$65536,IF(dati_pdc!$C789=4,dati_bdv!$F$2:$F$65536,IF(dati_pdc!$C789=5,dati_bdv!$G$2:$G$65536,dati_bdv!$H$2:$H$65536))))),$A789,dati_bdv!N$2:N$65536)","v":0}]
[{"$f":"dati_pdc!A790","v":0},{"$f":"SUMIF(IF(dati_pdc!$C790=1,dati_bdv!$C$2:$C$65536,IF(dati_pdc!$C790=2,dati_bdv!$D$2:$D$65536,IF(dati_pdc!$C790=3,dati_bdv!$E$2:$E$65536,IF(dati_pdc!$C790=4,dati_bdv!$F$2:$F$65536,IF(dati_pdc!$C790=5,dati_bdv!$G$2:$G$65536,dati_bdv!$H$2:$H$65536))))),$A790,dati_bdv!J$2:J$65536)","v":0},{"$f":"SUMIF(IF(dati_pdc!$C790=1,dati_bdv!$C$2:$C$65536,IF(dati_pdc!$C790=2,dati_bdv!$D$2:$D$65536,IF(dati_pdc!$C790=3,dati_bdv!$E$2:$E$65536,IF(dati_pdc!$C790=4,dati_bdv!$F$2:$F$65536,IF(dati_pdc!$C790=5,dati_bdv!$G$2:$G$65536,dati_bdv!$H$2:$H$65536))))),$A790,dati_bdv!K$2:K$65536)","v":0},{"$f":"SUMIF(IF(dati_pdc!$C790=1,dati_bdv!$C$2:$C$65536,IF(dati_pdc!$C790=2,dati_bdv!$D$2:$D$65536,IF(dati_pdc!$C790=3,dati_bdv!$E$2:$E$65536,IF(dati_pdc!$C790=4,dati_bdv!$F$2:$F$65536,IF(dati_pdc!$C790=5,dati_bdv!$G$2:$G$65536,dati_bdv!$H$2:$H$65536))))),$A790,dati_bdv!L$2:L$65536)","v":0},{"$f":"SUMIF(IF(dati_pdc!$C790=1,dati_bdv!$C$2:$C$65536,IF(dati_pdc!$C790=2,dati_bdv!$D$2:$D$65536,IF(dati_pdc!$C790=3,dati_bdv!$E$2:$E$65536,IF(dati_pdc!$C790=4,dati_bdv!$F$2:$F$65536,IF(dati_pdc!$C790=5,dati_bdv!$G$2:$G$65536,dati_bdv!$H$2:$H$65536))))),$A790,dati_bdv!M$2:M$65536)","v":0},{"$f":"SUMIF(IF(dati_pdc!$C790=1,dati_bdv!$C$2:$C$65536,IF(dati_pdc!$C790=2,dati_bdv!$D$2:$D$65536,IF(dati_pdc!$C790=3,dati_bdv!$E$2:$E$65536,IF(dati_pdc!$C790=4,dati_bdv!$F$2:$F$65536,IF(dati_pdc!$C790=5,dati_bdv!$G$2:$G$65536,dati_bdv!$H$2:$H$65536))))),$A790,dati_bdv!N$2:N$65536)","v":0}]
[{"$f":"dati_pdc!A791","v":0},{"$f":"SUMIF(IF(dati_pdc!$C791=1,dati_bdv!$C$2:$C$65536,IF(dati_pdc!$C791=2,dati_bdv!$D$2:$D$65536,IF(dati_pdc!$C791=3,dati_bdv!$E$2:$E$65536,IF(dati_pdc!$C791=4,dati_bdv!$F$2:$F$65536,IF(dati_pdc!$C791=5,dati_bdv!$G$2:$G$65536,dati_bdv!$H$2:$H$65536))))),$A791,dati_bdv!J$2:J$65536)","v":0},{"$f":"SUMIF(IF(dati_pdc!$C791=1,dati_bdv!$C$2:$C$65536,IF(dati_pdc!$C791=2,dati_bdv!$D$2:$D$65536,IF(dati_pdc!$C791=3,dati_bdv!$E$2:$E$65536,IF(dati_pdc!$C791=4,dati_bdv!$F$2:$F$65536,IF(dati_pdc!$C791=5,dati_bdv!$G$2:$G$65536,dati_bdv!$H$2:$H$65536))))),$A791,dati_bdv!K$2:K$65536)","v":0},{"$f":"SUMIF(IF(dati_pdc!$C791=1,dati_bdv!$C$2:$C$65536,IF(dati_pdc!$C791=2,dati_bdv!$D$2:$D$65536,IF(dati_pdc!$C791=3,dati_bdv!$E$2:$E$65536,IF(dati_pdc!$C791=4,dati_bdv!$F$2:$F$65536,IF(dati_pdc!$C791=5,dati_bdv!$G$2:$G$65536,dati_bdv!$H$2:$H$65536))))),$A791,dati_bdv!L$2:L$65536)","v":0},{"$f":"SUMIF(IF(dati_pdc!$C791=1,dati_bdv!$C$2:$C$65536,IF(dati_pdc!$C791=2,dati_bdv!$D$2:$D$65536,IF(dati_pdc!$C791=3,dati_bdv!$E$2:$E$65536,IF(dati_pdc!$C791=4,dati_bdv!$F$2:$F$65536,IF(dati_pdc!$C791=5,dati_bdv!$G$2:$G$65536,dati_bdv!$H$2:$H$65536))))),$A791,dati_bdv!M$2:M$65536)","v":0},{"$f":"SUMIF(IF(dati_pdc!$C791=1,dati_bdv!$C$2:$C$65536,IF(dati_pdc!$C791=2,dati_bdv!$D$2:$D$65536,IF(dati_pdc!$C791=3,dati_bdv!$E$2:$E$65536,IF(dati_pdc!$C791=4,dati_bdv!$F$2:$F$65536,IF(dati_pdc!$C791=5,dati_bdv!$G$2:$G$65536,dati_bdv!$H$2:$H$65536))))),$A791,dati_bdv!N$2:N$65536)","v":0}]
[{"$f":"dati_pdc!A792","v":0},{"$f":"SUMIF(IF(dati_pdc!$C792=1,dati_bdv!$C$2:$C$65536,IF(dati_pdc!$C792=2,dati_bdv!$D$2:$D$65536,IF(dati_pdc!$C792=3,dati_bdv!$E$2:$E$65536,IF(dati_pdc!$C792=4,dati_bdv!$F$2:$F$65536,IF(dati_pdc!$C792=5,dati_bdv!$G$2:$G$65536,dati_bdv!$H$2:$H$65536))))),$A792,dati_bdv!J$2:J$65536)","v":0},{"$f":"SUMIF(IF(dati_pdc!$C792=1,dati_bdv!$C$2:$C$65536,IF(dati_pdc!$C792=2,dati_bdv!$D$2:$D$65536,IF(dati_pdc!$C792=3,dati_bdv!$E$2:$E$65536,IF(dati_pdc!$C792=4,dati_bdv!$F$2:$F$65536,IF(dati_pdc!$C792=5,dati_bdv!$G$2:$G$65536,dati_bdv!$H$2:$H$65536))))),$A792,dati_bdv!K$2:K$65536)","v":0},{"$f":"SUMIF(IF(dati_pdc!$C792=1,dati_bdv!$C$2:$C$65536,IF(dati_pdc!$C792=2,dati_bdv!$D$2:$D$65536,IF(dati_pdc!$C792=3,dati_bdv!$E$2:$E$65536,IF(dati_pdc!$C792=4,dati_bdv!$F$2:$F$65536,IF(dati_pdc!$C792=5,dati_bdv!$G$2:$G$65536,dati_bdv!$H$2:$H$65536))))),$A792,dati_bdv!L$2:L$65536)","v":0},{"$f":"SUMIF(IF(dati_pdc!$C792=1,dati_bdv!$C$2:$C$65536,IF(dati_pdc!$C792=2,dati_bdv!$D$2:$D$65536,IF(dati_pdc!$C792=3,dati_bdv!$E$2:$E$65536,IF(dati_pdc!$C792=4,dati_bdv!$F$2:$F$65536,IF(dati_pdc!$C792=5,dati_bdv!$G$2:$G$65536,dati_bdv!$H$2:$H$65536))))),$A792,dati_bdv!M$2:M$65536)","v":0},{"$f":"SUMIF(IF(dati_pdc!$C792=1,dati_bdv!$C$2:$C$65536,IF(dati_pdc!$C792=2,dati_bdv!$D$2:$D$65536,IF(dati_pdc!$C792=3,dati_bdv!$E$2:$E$65536,IF(dati_pdc!$C792=4,dati_bdv!$F$2:$F$65536,IF(dati_pdc!$C792=5,dati_bdv!$G$2:$G$65536,dati_bdv!$H$2:$H$65536))))),$A792,dati_bdv!N$2:N$65536)","v":0}]
[{"$f":"dati_pdc!A793","v":0},{"$f":"SUMIF(IF(dati_pdc!$C793=1,dati_bdv!$C$2:$C$65536,IF(dati_pdc!$C793=2,dati_bdv!$D$2:$D$65536,IF(dati_pdc!$C793=3,dati_bdv!$E$2:$E$65536,IF(dati_pdc!$C793=4,dati_bdv!$F$2:$F$65536,IF(dati_pdc!$C793=5,dati_bdv!$G$2:$G$65536,dati_bdv!$H$2:$H$65536))))),$A793,dati_bdv!J$2:J$65536)","v":0},{"$f":"SUMIF(IF(dati_pdc!$C793=1,dati_bdv!$C$2:$C$65536,IF(dati_pdc!$C793=2,dati_bdv!$D$2:$D$65536,IF(dati_pdc!$C793=3,dati_bdv!$E$2:$E$65536,IF(dati_pdc!$C793=4,dati_bdv!$F$2:$F$65536,IF(dati_pdc!$C793=5,dati_bdv!$G$2:$G$65536,dati_bdv!$H$2:$H$65536))))),$A793,dati_bdv!K$2:K$65536)","v":0},{"$f":"SUMIF(IF(dati_pdc!$C793=1,dati_bdv!$C$2:$C$65536,IF(dati_pdc!$C793=2,dati_bdv!$D$2:$D$65536,IF(dati_pdc!$C793=3,dati_bdv!$E$2:$E$65536,IF(dati_pdc!$C793=4,dati_bdv!$F$2:$F$65536,IF(dati_pdc!$C793=5,dati_bdv!$G$2:$G$65536,dati_bdv!$H$2:$H$65536))))),$A793,dati_bdv!L$2:L$65536)","v":0},{"$f":"SUMIF(IF(dati_pdc!$C793=1,dati_bdv!$C$2:$C$65536,IF(dati_pdc!$C793=2,dati_bdv!$D$2:$D$65536,IF(dati_pdc!$C793=3,dati_bdv!$E$2:$E$65536,IF(dati_pdc!$C793=4,dati_bdv!$F$2:$F$65536,IF(dati_pdc!$C793=5,dati_bdv!$G$2:$G$65536,dati_bdv!$H$2:$H$65536))))),$A793,dati_bdv!M$2:M$65536)","v":0},{"$f":"SUMIF(IF(dati_pdc!$C793=1,dati_bdv!$C$2:$C$65536,IF(dati_pdc!$C793=2,dati_bdv!$D$2:$D$65536,IF(dati_pdc!$C793=3,dati_bdv!$E$2:$E$65536,IF(dati_pdc!$C793=4,dati_bdv!$F$2:$F$65536,IF(dati_pdc!$C793=5,dati_bdv!$G$2:$G$65536,dati_bdv!$H$2:$H$65536))))),$A793,dati_bdv!N$2:N$65536)","v":0}]
[{"$f":"dati_pdc!A794","v":0},{"$f":"SUMIF(IF(dati_pdc!$C794=1,dati_bdv!$C$2:$C$65536,IF(dati_pdc!$C794=2,dati_bdv!$D$2:$D$65536,IF(dati_pdc!$C794=3,dati_bdv!$E$2:$E$65536,IF(dati_pdc!$C794=4,dati_bdv!$F$2:$F$65536,IF(dati_pdc!$C794=5,dati_bdv!$G$2:$G$65536,dati_bdv!$H$2:$H$65536))))),$A794,dati_bdv!J$2:J$65536)","v":0},{"$f":"SUMIF(IF(dati_pdc!$C794=1,dati_bdv!$C$2:$C$65536,IF(dati_pdc!$C794=2,dati_bdv!$D$2:$D$65536,IF(dati_pdc!$C794=3,dati_bdv!$E$2:$E$65536,IF(dati_pdc!$C794=4,dati_bdv!$F$2:$F$65536,IF(dati_pdc!$C794=5,dati_bdv!$G$2:$G$65536,dati_bdv!$H$2:$H$65536))))),$A794,dati_bdv!K$2:K$65536)","v":0},{"$f":"SUMIF(IF(dati_pdc!$C794=1,dati_bdv!$C$2:$C$65536,IF(dati_pdc!$C794=2,dati_bdv!$D$2:$D$65536,IF(dati_pdc!$C794=3,dati_bdv!$E$2:$E$65536,IF(dati_pdc!$C794=4,dati_bdv!$F$2:$F$65536,IF(dati_pdc!$C794=5,dati_bdv!$G$2:$G$65536,dati_bdv!$H$2:$H$65536))))),$A794,dati_bdv!L$2:L$65536)","v":0},{"$f":"SUMIF(IF(dati_pdc!$C794=1,dati_bdv!$C$2:$C$65536,IF(dati_pdc!$C794=2,dati_bdv!$D$2:$D$65536,IF(dati_pdc!$C794=3,dati_bdv!$E$2:$E$65536,IF(dati_pdc!$C794=4,dati_bdv!$F$2:$F$65536,IF(dati_pdc!$C794=5,dati_bdv!$G$2:$G$65536,dati_bdv!$H$2:$H$65536))))),$A794,dati_bdv!M$2:M$65536)","v":0},{"$f":"SUMIF(IF(dati_pdc!$C794=1,dati_bdv!$C$2:$C$65536,IF(dati_pdc!$C794=2,dati_bdv!$D$2:$D$65536,IF(dati_pdc!$C794=3,dati_bdv!$E$2:$E$65536,IF(dati_pdc!$C794=4,dati_bdv!$F$2:$F$65536,IF(dati_pdc!$C794=5,dati_bdv!$G$2:$G$65536,dati_bdv!$H$2:$H$65536))))),$A794,dati_bdv!N$2:N$65536)","v":0}]
[{"$f":"dati_pdc!A795","v":0},{"$f":"SUMIF(IF(dati_pdc!$C795=1,dati_bdv!$C$2:$C$65536,IF(dati_pdc!$C795=2,dati_bdv!$D$2:$D$65536,IF(dati_pdc!$C795=3,dati_bdv!$E$2:$E$65536,IF(dati_pdc!$C795=4,dati_bdv!$F$2:$F$65536,IF(dati_pdc!$C795=5,dati_bdv!$G$2:$G$65536,dati_bdv!$H$2:$H$65536))))),$A795,dati_bdv!J$2:J$65536)","v":0},{"$f":"SUMIF(IF(dati_pdc!$C795=1,dati_bdv!$C$2:$C$65536,IF(dati_pdc!$C795=2,dati_bdv!$D$2:$D$65536,IF(dati_pdc!$C795=3,dati_bdv!$E$2:$E$65536,IF(dati_pdc!$C795=4,dati_bdv!$F$2:$F$65536,IF(dati_pdc!$C795=5,dati_bdv!$G$2:$G$65536,dati_bdv!$H$2:$H$65536))))),$A795,dati_bdv!K$2:K$65536)","v":0},{"$f":"SUMIF(IF(dati_pdc!$C795=1,dati_bdv!$C$2:$C$65536,IF(dati_pdc!$C795=2,dati_bdv!$D$2:$D$65536,IF(dati_pdc!$C795=3,dati_bdv!$E$2:$E$65536,IF(dati_pdc!$C795=4,dati_bdv!$F$2:$F$65536,IF(dati_pdc!$C795=5,dati_bdv!$G$2:$G$65536,dati_bdv!$H$2:$H$65536))))),$A795,dati_bdv!L$2:L$65536)","v":0},{"$f":"SUMIF(IF(dati_pdc!$C795=1,dati_bdv!$C$2:$C$65536,IF(dati_pdc!$C795=2,dati_bdv!$D$2:$D$65536,IF(dati_pdc!$C795=3,dati_bdv!$E$2:$E$65536,IF(dati_pdc!$C795=4,dati_bdv!$F$2:$F$65536,IF(dati_pdc!$C795=5,dati_bdv!$G$2:$G$65536,dati_bdv!$H$2:$H$65536))))),$A795,dati_bdv!M$2:M$65536)","v":0},{"$f":"SUMIF(IF(dati_pdc!$C795=1,dati_bdv!$C$2:$C$65536,IF(dati_pdc!$C795=2,dati_bdv!$D$2:$D$65536,IF(dati_pdc!$C795=3,dati_bdv!$E$2:$E$65536,IF(dati_pdc!$C795=4,dati_bdv!$F$2:$F$65536,IF(dati_pdc!$C795=5,dati_bdv!$G$2:$G$65536,dati_bdv!$H$2:$H$65536))))),$A795,dati_bdv!N$2:N$65536)","v":0}]
[{"$f":"dati_pdc!A796","v":0},{"$f":"SUMIF(IF(dati_pdc!$C796=1,dati_bdv!$C$2:$C$65536,IF(dati_pdc!$C796=2,dati_bdv!$D$2:$D$65536,IF(dati_pdc!$C796=3,dati_bdv!$E$2:$E$65536,IF(dati_pdc!$C796=4,dati_bdv!$F$2:$F$65536,IF(dati_pdc!$C796=5,dati_bdv!$G$2:$G$65536,dati_bdv!$H$2:$H$65536))))),$A796,dati_bdv!J$2:J$65536)","v":0},{"$f":"SUMIF(IF(dati_pdc!$C796=1,dati_bdv!$C$2:$C$65536,IF(dati_pdc!$C796=2,dati_bdv!$D$2:$D$65536,IF(dati_pdc!$C796=3,dati_bdv!$E$2:$E$65536,IF(dati_pdc!$C796=4,dati_bdv!$F$2:$F$65536,IF(dati_pdc!$C796=5,dati_bdv!$G$2:$G$65536,dati_bdv!$H$2:$H$65536))))),$A796,dati_bdv!K$2:K$65536)","v":0},{"$f":"SUMIF(IF(dati_pdc!$C796=1,dati_bdv!$C$2:$C$65536,IF(dati_pdc!$C796=2,dati_bdv!$D$2:$D$65536,IF(dati_pdc!$C796=3,dati_bdv!$E$2:$E$65536,IF(dati_pdc!$C796=4,dati_bdv!$F$2:$F$65536,IF(dati_pdc!$C796=5,dati_bdv!$G$2:$G$65536,dati_bdv!$H$2:$H$65536))))),$A796,dati_bdv!L$2:L$65536)","v":0},{"$f":"SUMIF(IF(dati_pdc!$C796=1,dati_bdv!$C$2:$C$65536,IF(dati_pdc!$C796=2,dati_bdv!$D$2:$D$65536,IF(dati_pdc!$C796=3,dati_bdv!$E$2:$E$65536,IF(dati_pdc!$C796=4,dati_bdv!$F$2:$F$65536,IF(dati_pdc!$C796=5,dati_bdv!$G$2:$G$65536,dati_bdv!$H$2:$H$65536))))),$A796,dati_bdv!M$2:M$65536)","v":0},{"$f":"SUMIF(IF(dati_pdc!$C796=1,dati_bdv!$C$2:$C$65536,IF(dati_pdc!$C796=2,dati_bdv!$D$2:$D$65536,IF(dati_pdc!$C796=3,dati_bdv!$E$2:$E$65536,IF(dati_pdc!$C796=4,dati_bdv!$F$2:$F$65536,IF(dati_pdc!$C796=5,dati_bdv!$G$2:$G$65536,dati_bdv!$H$2:$H$65536))))),$A796,dati_bdv!N$2:N$65536)","v":0}]
[{"$f":"dati_pdc!A797","v":0},{"$f":"SUMIF(IF(dati_pdc!$C797=1,dati_bdv!$C$2:$C$65536,IF(dati_pdc!$C797=2,dati_bdv!$D$2:$D$65536,IF(dati_pdc!$C797=3,dati_bdv!$E$2:$E$65536,IF(dati_pdc!$C797=4,dati_bdv!$F$2:$F$65536,IF(dati_pdc!$C797=5,dati_bdv!$G$2:$G$65536,dati_bdv!$H$2:$H$65536))))),$A797,dati_bdv!J$2:J$65536)","v":0},{"$f":"SUMIF(IF(dati_pdc!$C797=1,dati_bdv!$C$2:$C$65536,IF(dati_pdc!$C797=2,dati_bdv!$D$2:$D$65536,IF(dati_pdc!$C797=3,dati_bdv!$E$2:$E$65536,IF(dati_pdc!$C797=4,dati_bdv!$F$2:$F$65536,IF(dati_pdc!$C797=5,dati_bdv!$G$2:$G$65536,dati_bdv!$H$2:$H$65536))))),$A797,dati_bdv!K$2:K$65536)","v":0},{"$f":"SUMIF(IF(dati_pdc!$C797=1,dati_bdv!$C$2:$C$65536,IF(dati_pdc!$C797=2,dati_bdv!$D$2:$D$65536,IF(dati_pdc!$C797=3,dati_bdv!$E$2:$E$65536,IF(dati_pdc!$C797=4,dati_bdv!$F$2:$F$65536,IF(dati_pdc!$C797=5,dati_bdv!$G$2:$G$65536,dati_bdv!$H$2:$H$65536))))),$A797,dati_bdv!L$2:L$65536)","v":0},{"$f":"SUMIF(IF(dati_pdc!$C797=1,dati_bdv!$C$2:$C$65536,IF(dati_pdc!$C797=2,dati_bdv!$D$2:$D$65536,IF(dati_pdc!$C797=3,dati_bdv!$E$2:$E$65536,IF(dati_pdc!$C797=4,dati_bdv!$F$2:$F$65536,IF(dati_pdc!$C797=5,dati_bdv!$G$2:$G$65536,dati_bdv!$H$2:$H$65536))))),$A797,dati_bdv!M$2:M$65536)","v":0},{"$f":"SUMIF(IF(dati_pdc!$C797=1,dati_bdv!$C$2:$C$65536,IF(dati_pdc!$C797=2,dati_bdv!$D$2:$D$65536,IF(dati_pdc!$C797=3,dati_bdv!$E$2:$E$65536,IF(dati_pdc!$C797=4,dati_bdv!$F$2:$F$65536,IF(dati_pdc!$C797=5,dati_bdv!$G$2:$G$65536,dati_bdv!$H$2:$H$65536))))),$A797,dati_bdv!N$2:N$65536)","v":0}]
[{"$f":"dati_pdc!A798","v":0},{"$f":"SUMIF(IF(dati_pdc!$C798=1,dati_bdv!$C$2:$C$65536,IF(dati_pdc!$C798=2,dati_bdv!$D$2:$D$65536,IF(dati_pdc!$C798=3,dati_bdv!$E$2:$E$65536,IF(dati_pdc!$C798=4,dati_bdv!$F$2:$F$65536,IF(dati_pdc!$C798=5,dati_bdv!$G$2:$G$65536,dati_bdv!$H$2:$H$65536))))),$A798,dati_bdv!J$2:J$65536)","v":0},{"$f":"SUMIF(IF(dati_pdc!$C798=1,dati_bdv!$C$2:$C$65536,IF(dati_pdc!$C798=2,dati_bdv!$D$2:$D$65536,IF(dati_pdc!$C798=3,dati_bdv!$E$2:$E$65536,IF(dati_pdc!$C798=4,dati_bdv!$F$2:$F$65536,IF(dati_pdc!$C798=5,dati_bdv!$G$2:$G$65536,dati_bdv!$H$2:$H$65536))))),$A798,dati_bdv!K$2:K$65536)","v":0},{"$f":"SUMIF(IF(dati_pdc!$C798=1,dati_bdv!$C$2:$C$65536,IF(dati_pdc!$C798=2,dati_bdv!$D$2:$D$65536,IF(dati_pdc!$C798=3,dati_bdv!$E$2:$E$65536,IF(dati_pdc!$C798=4,dati_bdv!$F$2:$F$65536,IF(dati_pdc!$C798=5,dati_bdv!$G$2:$G$65536,dati_bdv!$H$2:$H$65536))))),$A798,dati_bdv!L$2:L$65536)","v":0},{"$f":"SUMIF(IF(dati_pdc!$C798=1,dati_bdv!$C$2:$C$65536,IF(dati_pdc!$C798=2,dati_bdv!$D$2:$D$65536,IF(dati_pdc!$C798=3,dati_bdv!$E$2:$E$65536,IF(dati_pdc!$C798=4,dati_bdv!$F$2:$F$65536,IF(dati_pdc!$C798=5,dati_bdv!$G$2:$G$65536,dati_bdv!$H$2:$H$65536))))),$A798,dati_bdv!M$2:M$65536)","v":0},{"$f":"SUMIF(IF(dati_pdc!$C798=1,dati_bdv!$C$2:$C$65536,IF(dati_pdc!$C798=2,dati_bdv!$D$2:$D$65536,IF(dati_pdc!$C798=3,dati_bdv!$E$2:$E$65536,IF(dati_pdc!$C798=4,dati_bdv!$F$2:$F$65536,IF(dati_pdc!$C798=5,dati_bdv!$G$2:$G$65536,dati_bdv!$H$2:$H$65536))))),$A798,dati_bdv!N$2:N$65536)","v":0}]
[{"$f":"dati_pdc!A799","v":0},{"$f":"SUMIF(IF(dati_pdc!$C799=1,dati_bdv!$C$2:$C$65536,IF(dati_pdc!$C799=2,dati_bdv!$D$2:$D$65536,IF(dati_pdc!$C799=3,dati_bdv!$E$2:$E$65536,IF(dati_pdc!$C799=4,dati_bdv!$F$2:$F$65536,IF(dati_pdc!$C799=5,dati_bdv!$G$2:$G$65536,dati_bdv!$H$2:$H$65536))))),$A799,dati_bdv!J$2:J$65536)","v":0},{"$f":"SUMIF(IF(dati_pdc!$C799=1,dati_bdv!$C$2:$C$65536,IF(dati_pdc!$C799=2,dati_bdv!$D$2:$D$65536,IF(dati_pdc!$C799=3,dati_bdv!$E$2:$E$65536,IF(dati_pdc!$C799=4,dati_bdv!$F$2:$F$65536,IF(dati_pdc!$C799=5,dati_bdv!$G$2:$G$65536,dati_bdv!$H$2:$H$65536))))),$A799,dati_bdv!K$2:K$65536)","v":0},{"$f":"SUMIF(IF(dati_pdc!$C799=1,dati_bdv!$C$2:$C$65536,IF(dati_pdc!$C799=2,dati_bdv!$D$2:$D$65536,IF(dati_pdc!$C799=3,dati_bdv!$E$2:$E$65536,IF(dati_pdc!$C799=4,dati_bdv!$F$2:$F$65536,IF(dati_pdc!$C799=5,dati_bdv!$G$2:$G$65536,dati_bdv!$H$2:$H$65536))))),$A799,dati_bdv!L$2:L$65536)","v":0},{"$f":"SUMIF(IF(dati_pdc!$C799=1,dati_bdv!$C$2:$C$65536,IF(dati_pdc!$C799=2,dati_bdv!$D$2:$D$65536,IF(dati_pdc!$C799=3,dati_bdv!$E$2:$E$65536,IF(dati_pdc!$C799=4,dati_bdv!$F$2:$F$65536,IF(dati_pdc!$C799=5,dati_bdv!$G$2:$G$65536,dati_bdv!$H$2:$H$65536))))),$A799,dati_bdv!M$2:M$65536)","v":0},{"$f":"SUMIF(IF(dati_pdc!$C799=1,dati_bdv!$C$2:$C$65536,IF(dati_pdc!$C799=2,dati_bdv!$D$2:$D$65536,IF(dati_pdc!$C799=3,dati_bdv!$E$2:$E$65536,IF(dati_pdc!$C799=4,dati_bdv!$F$2:$F$65536,IF(dati_pdc!$C799=5,dati_bdv!$G$2:$G$65536,dati_bdv!$H$2:$H$65536))))),$A799,dati_bdv!N$2:N$65536)","v":0}]
[{"$f":"dati_pdc!A800","v":0},{"$f":"SUMIF(IF(dati_pdc!$C800=1,dati_bdv!$C$2:$C$65536,IF(dati_pdc!$C800=2,dati_bdv!$D$2:$D$65536,IF(dati_pdc!$C800=3,dati_bdv!$E$2:$E$65536,IF(dati_pdc!$C800=4,dati_bdv!$F$2:$F$65536,IF(dati_pdc!$C800=5,dati_bdv!$G$2:$G$65536,dati_bdv!$H$2:$H$65536))))),$A800,dati_bdv!J$2:J$65536)","v":0},{"$f":"SUMIF(IF(dati_pdc!$C800=1,dati_bdv!$C$2:$C$65536,IF(dati_pdc!$C800=2,dati_bdv!$D$2:$D$65536,IF(dati_pdc!$C800=3,dati_bdv!$E$2:$E$65536,IF(dati_pdc!$C800=4,dati_bdv!$F$2:$F$65536,IF(dati_pdc!$C800=5,dati_bdv!$G$2:$G$65536,dati_bdv!$H$2:$H$65536))))),$A800,dati_bdv!K$2:K$65536)","v":0},{"$f":"SUMIF(IF(dati_pdc!$C800=1,dati_bdv!$C$2:$C$65536,IF(dati_pdc!$C800=2,dati_bdv!$D$2:$D$65536,IF(dati_pdc!$C800=3,dati_bdv!$E$2:$E$65536,IF(dati_pdc!$C800=4,dati_bdv!$F$2:$F$65536,IF(dati_pdc!$C800=5,dati_bdv!$G$2:$G$65536,dati_bdv!$H$2:$H$65536))))),$A800,dati_bdv!L$2:L$65536)","v":0},{"$f":"SUMIF(IF(dati_pdc!$C800=1,dati_bdv!$C$2:$C$65536,IF(dati_pdc!$C800=2,dati_bdv!$D$2:$D$65536,IF(dati_pdc!$C800=3,dati_bdv!$E$2:$E$65536,IF(dati_pdc!$C800=4,dati_bdv!$F$2:$F$65536,IF(dati_pdc!$C800=5,dati_bdv!$G$2:$G$65536,dati_bdv!$H$2:$H$65536))))),$A800,dati_bdv!M$2:M$65536)","v":0},{"$f":"SUMIF(IF(dati_pdc!$C800=1,dati_bdv!$C$2:$C$65536,IF(dati_pdc!$C800=2,dati_bdv!$D$2:$D$65536,IF(dati_pdc!$C800=3,dati_bdv!$E$2:$E$65536,IF(dati_pdc!$C800=4,dati_bdv!$F$2:$F$65536,IF(dati_pdc!$C800=5,dati_bdv!$G$2:$G$65536,dati_bdv!$H$2:$H$65536))))),$A800,dati_bdv!N$2:N$65536)","v":0}]
[{"$f":"dati_pdc!A801","v":0},{"$f":"SUMIF(IF(dati_pdc!$C801=1,dati_bdv!$C$2:$C$65536,IF(dati_pdc!$C801=2,dati_bdv!$D$2:$D$65536,IF(dati_pdc!$C801=3,dati_bdv!$E$2:$E$65536,IF(dati_pdc!$C801=4,dati_bdv!$F$2:$F$65536,IF(dati_pdc!$C801=5,dati_bdv!$G$2:$G$65536,dati_bdv!$H$2:$H$65536))))),$A801,dati_bdv!J$2:J$65536)","v":0},{"$f":"SUMIF(IF(dati_pdc!$C801=1,dati_bdv!$C$2:$C$65536,IF(dati_pdc!$C801=2,dati_bdv!$D$2:$D$65536,IF(dati_pdc!$C801=3,dati_bdv!$E$2:$E$65536,IF(dati_pdc!$C801=4,dati_bdv!$F$2:$F$65536,IF(dati_pdc!$C801=5,dati_bdv!$G$2:$G$65536,dati_bdv!$H$2:$H$65536))))),$A801,dati_bdv!K$2:K$65536)","v":0},{"$f":"SUMIF(IF(dati_pdc!$C801=1,dati_bdv!$C$2:$C$65536,IF(dati_pdc!$C801=2,dati_bdv!$D$2:$D$65536,IF(dati_pdc!$C801=3,dati_bdv!$E$2:$E$65536,IF(dati_pdc!$C801=4,dati_bdv!$F$2:$F$65536,IF(dati_pdc!$C801=5,dati_bdv!$G$2:$G$65536,dati_bdv!$H$2:$H$65536))))),$A801,dati_bdv!L$2:L$65536)","v":0},{"$f":"SUMIF(IF(dati_pdc!$C801=1,dati_bdv!$C$2:$C$65536,IF(dati_pdc!$C801=2,dati_bdv!$D$2:$D$65536,IF(dati_pdc!$C801=3,dati_bdv!$E$2:$E$65536,IF(dati_pdc!$C801=4,dati_bdv!$F$2:$F$65536,IF(dati_pdc!$C801=5,dati_bdv!$G$2:$G$65536,dati_bdv!$H$2:$H$65536))))),$A801,dati_bdv!M$2:M$65536)","v":0},{"$f":"SUMIF(IF(dati_pdc!$C801=1,dati_bdv!$C$2:$C$65536,IF(dati_pdc!$C801=2,dati_bdv!$D$2:$D$65536,IF(dati_pdc!$C801=3,dati_bdv!$E$2:$E$65536,IF(dati_pdc!$C801=4,dati_bdv!$F$2:$F$65536,IF(dati_pdc!$C801=5,dati_bdv!$G$2:$G$65536,dati_bdv!$H$2:$H$65536))))),$A801,dati_bdv!N$2:N$65536)","v":0}]
[{"$f":"dati_pdc!A802","v":0},{"$f":"SUMIF(IF(dati_pdc!$C802=1,dati_bdv!$C$2:$C$65536,IF(dati_pdc!$C802=2,dati_bdv!$D$2:$D$65536,IF(dati_pdc!$C802=3,dati_bdv!$E$2:$E$65536,IF(dati_pdc!$C802=4,dati_bdv!$F$2:$F$65536,IF(dati_pdc!$C802=5,dati_bdv!$G$2:$G$65536,dati_bdv!$H$2:$H$65536))))),$A802,dati_bdv!J$2:J$65536)","v":0},{"$f":"SUMIF(IF(dati_pdc!$C802=1,dati_bdv!$C$2:$C$65536,IF(dati_pdc!$C802=2,dati_bdv!$D$2:$D$65536,IF(dati_pdc!$C802=3,dati_bdv!$E$2:$E$65536,IF(dati_pdc!$C802=4,dati_bdv!$F$2:$F$65536,IF(dati_pdc!$C802=5,dati_bdv!$G$2:$G$65536,dati_bdv!$H$2:$H$65536))))),$A802,dati_bdv!K$2:K$65536)","v":0},{"$f":"SUMIF(IF(dati_pdc!$C802=1,dati_bdv!$C$2:$C$65536,IF(dati_pdc!$C802=2,dati_bdv!$D$2:$D$65536,IF(dati_pdc!$C802=3,dati_bdv!$E$2:$E$65536,IF(dati_pdc!$C802=4,dati_bdv!$F$2:$F$65536,IF(dati_pdc!$C802=5,dati_bdv!$G$2:$G$65536,dati_bdv!$H$2:$H$65536))))),$A802,dati_bdv!L$2:L$65536)","v":0},{"$f":"SUMIF(IF(dati_pdc!$C802=1,dati_bdv!$C$2:$C$65536,IF(dati_pdc!$C802=2,dati_bdv!$D$2:$D$65536,IF(dati_pdc!$C802=3,dati_bdv!$E$2:$E$65536,IF(dati_pdc!$C802=4,dati_bdv!$F$2:$F$65536,IF(dati_pdc!$C802=5,dati_bdv!$G$2:$G$65536,dati_bdv!$H$2:$H$65536))))),$A802,dati_bdv!M$2:M$65536)","v":0},{"$f":"SUMIF(IF(dati_pdc!$C802=1,dati_bdv!$C$2:$C$65536,IF(dati_pdc!$C802=2,dati_bdv!$D$2:$D$65536,IF(dati_pdc!$C802=3,dati_bdv!$E$2:$E$65536,IF(dati_pdc!$C802=4,dati_bdv!$F$2:$F$65536,IF(dati_pdc!$C802=5,dati_bdv!$G$2:$G$65536,dati_bdv!$H$2:$H$65536))))),$A802,dati_bdv!N$2:N$65536)","v":0}]
[{"$f":"dati_pdc!A803","v":0},{"$f":"SUMIF(IF(dati_pdc!$C803=1,dati_bdv!$C$2:$C$65536,IF(dati_pdc!$C803=2,dati_bdv!$D$2:$D$65536,IF(dati_pdc!$C803=3,dati_bdv!$E$2:$E$65536,IF(dati_pdc!$C803=4,dati_bdv!$F$2:$F$65536,IF(dati_pdc!$C803=5,dati_bdv!$G$2:$G$65536,dati_bdv!$H$2:$H$65536))))),$A803,dati_bdv!J$2:J$65536)","v":0},{"$f":"SUMIF(IF(dati_pdc!$C803=1,dati_bdv!$C$2:$C$65536,IF(dati_pdc!$C803=2,dati_bdv!$D$2:$D$65536,IF(dati_pdc!$C803=3,dati_bdv!$E$2:$E$65536,IF(dati_pdc!$C803=4,dati_bdv!$F$2:$F$65536,IF(dati_pdc!$C803=5,dati_bdv!$G$2:$G$65536,dati_bdv!$H$2:$H$65536))))),$A803,dati_bdv!K$2:K$65536)","v":0},{"$f":"SUMIF(IF(dati_pdc!$C803=1,dati_bdv!$C$2:$C$65536,IF(dati_pdc!$C803=2,dati_bdv!$D$2:$D$65536,IF(dati_pdc!$C803=3,dati_bdv!$E$2:$E$65536,IF(dati_pdc!$C803=4,dati_bdv!$F$2:$F$65536,IF(dati_pdc!$C803=5,dati_bdv!$G$2:$G$65536,dati_bdv!$H$2:$H$65536))))),$A803,dati_bdv!L$2:L$65536)","v":0},{"$f":"SUMIF(IF(dati_pdc!$C803=1,dati_bdv!$C$2:$C$65536,IF(dati_pdc!$C803=2,dati_bdv!$D$2:$D$65536,IF(dati_pdc!$C803=3,dati_bdv!$E$2:$E$65536,IF(dati_pdc!$C803=4,dati_bdv!$F$2:$F$65536,IF(dati_pdc!$C803=5,dati_bdv!$G$2:$G$65536,dati_bdv!$H$2:$H$65536))))),$A803,dati_bdv!M$2:M$65536)","v":0},{"$f":"SUMIF(IF(dati_pdc!$C803=1,dati_bdv!$C$2:$C$65536,IF(dati_pdc!$C803=2,dati_bdv!$D$2:$D$65536,IF(dati_pdc!$C803=3,dati_bdv!$E$2:$E$65536,IF(dati_pdc!$C803=4,dati_bdv!$F$2:$F$65536,IF(dati_pdc!$C803=5,dati_bdv!$G$2:$G$65536,dati_bdv!$H$2:$H$65536))))),$A803,dati_bdv!N$2:N$65536)","v":0}]
[{"$f":"dati_pdc!A804","v":0},{"$f":"SUMIF(IF(dati_pdc!$C804=1,dati_bdv!$C$2:$C$65536,IF(dati_pdc!$C804=2,dati_bdv!$D$2:$D$65536,IF(dati_pdc!$C804=3,dati_bdv!$E$2:$E$65536,IF(dati_pdc!$C804=4,dati_bdv!$F$2:$F$65536,IF(dati_pdc!$C804=5,dati_bdv!$G$2:$G$65536,dati_bdv!$H$2:$H$65536))))),$A804,dati_bdv!J$2:J$65536)","v":0},{"$f":"SUMIF(IF(dati_pdc!$C804=1,dati_bdv!$C$2:$C$65536,IF(dati_pdc!$C804=2,dati_bdv!$D$2:$D$65536,IF(dati_pdc!$C804=3,dati_bdv!$E$2:$E$65536,IF(dati_pdc!$C804=4,dati_bdv!$F$2:$F$65536,IF(dati_pdc!$C804=5,dati_bdv!$G$2:$G$65536,dati_bdv!$H$2:$H$65536))))),$A804,dati_bdv!K$2:K$65536)","v":0},{"$f":"SUMIF(IF(dati_pdc!$C804=1,dati_bdv!$C$2:$C$65536,IF(dati_pdc!$C804=2,dati_bdv!$D$2:$D$65536,IF(dati_pdc!$C804=3,dati_bdv!$E$2:$E$65536,IF(dati_pdc!$C804=4,dati_bdv!$F$2:$F$65536,IF(dati_pdc!$C804=5,dati_bdv!$G$2:$G$65536,dati_bdv!$H$2:$H$65536))))),$A804,dati_bdv!L$2:L$65536)","v":0},{"$f":"SUMIF(IF(dati_pdc!$C804=1,dati_bdv!$C$2:$C$65536,IF(dati_pdc!$C804=2,dati_bdv!$D$2:$D$65536,IF(dati_pdc!$C804=3,dati_bdv!$E$2:$E$65536,IF(dati_pdc!$C804=4,dati_bdv!$F$2:$F$65536,IF(dati_pdc!$C804=5,dati_bdv!$G$2:$G$65536,dati_bdv!$H$2:$H$65536))))),$A804,dati_bdv!M$2:M$65536)","v":0},{"$f":"SUMIF(IF(dati_pdc!$C804=1,dati_bdv!$C$2:$C$65536,IF(dati_pdc!$C804=2,dati_bdv!$D$2:$D$65536,IF(dati_pdc!$C804=3,dati_bdv!$E$2:$E$65536,IF(dati_pdc!$C804=4,dati_bdv!$F$2:$F$65536,IF(dati_pdc!$C804=5,dati_bdv!$G$2:$G$65536,dati_bdv!$H$2:$H$65536))))),$A804,dati_bdv!N$2:N$65536)","v":0}]
[{"$f":"dati_pdc!A805","v":0},{"$f":"SUMIF(IF(dati_pdc!$C805=1,dati_bdv!$C$2:$C$65536,IF(dati_pdc!$C805=2,dati_bdv!$D$2:$D$65536,IF(dati_pdc!$C805=3,dati_bdv!$E$2:$E$65536,IF(dati_pdc!$C805=4,dati_bdv!$F$2:$F$65536,IF(dati_pdc!$C805=5,dati_bdv!$G$2:$G$65536,dati_bdv!$H$2:$H$65536))))),$A805,dati_bdv!J$2:J$65536)","v":0},{"$f":"SUMIF(IF(dati_pdc!$C805=1,dati_bdv!$C$2:$C$65536,IF(dati_pdc!$C805=2,dati_bdv!$D$2:$D$65536,IF(dati_pdc!$C805=3,dati_bdv!$E$2:$E$65536,IF(dati_pdc!$C805=4,dati_bdv!$F$2:$F$65536,IF(dati_pdc!$C805=5,dati_bdv!$G$2:$G$65536,dati_bdv!$H$2:$H$65536))))),$A805,dati_bdv!K$2:K$65536)","v":0},{"$f":"SUMIF(IF(dati_pdc!$C805=1,dati_bdv!$C$2:$C$65536,IF(dati_pdc!$C805=2,dati_bdv!$D$2:$D$65536,IF(dati_pdc!$C805=3,dati_bdv!$E$2:$E$65536,IF(dati_pdc!$C805=4,dati_bdv!$F$2:$F$65536,IF(dati_pdc!$C805=5,dati_bdv!$G$2:$G$65536,dati_bdv!$H$2:$H$65536))))),$A805,dati_bdv!L$2:L$65536)","v":0},{"$f":"SUMIF(IF(dati_pdc!$C805=1,dati_bdv!$C$2:$C$65536,IF(dati_pdc!$C805=2,dati_bdv!$D$2:$D$65536,IF(dati_pdc!$C805=3,dati_bdv!$E$2:$E$65536,IF(dati_pdc!$C805=4,dati_bdv!$F$2:$F$65536,IF(dati_pdc!$C805=5,dati_bdv!$G$2:$G$65536,dati_bdv!$H$2:$H$65536))))),$A805,dati_bdv!M$2:M$65536)","v":0},{"$f":"SUMIF(IF(dati_pdc!$C805=1,dati_bdv!$C$2:$C$65536,IF(dati_pdc!$C805=2,dati_bdv!$D$2:$D$65536,IF(dati_pdc!$C805=3,dati_bdv!$E$2:$E$65536,IF(dati_pdc!$C805=4,dati_bdv!$F$2:$F$65536,IF(dati_pdc!$C805=5,dati_bdv!$G$2:$G$65536,dati_bdv!$H$2:$H$65536))))),$A805,dati_bdv!N$2:N$65536)","v":0}]
[{"$f":"dati_pdc!A806","v":0},{"$f":"SUMIF(IF(dati_pdc!$C806=1,dati_bdv!$C$2:$C$65536,IF(dati_pdc!$C806=2,dati_bdv!$D$2:$D$65536,IF(dati_pdc!$C806=3,dati_bdv!$E$2:$E$65536,IF(dati_pdc!$C806=4,dati_bdv!$F$2:$F$65536,IF(dati_pdc!$C806=5,dati_bdv!$G$2:$G$65536,dati_bdv!$H$2:$H$65536))))),$A806,dati_bdv!J$2:J$65536)","v":0},{"$f":"SUMIF(IF(dati_pdc!$C806=1,dati_bdv!$C$2:$C$65536,IF(dati_pdc!$C806=2,dati_bdv!$D$2:$D$65536,IF(dati_pdc!$C806=3,dati_bdv!$E$2:$E$65536,IF(dati_pdc!$C806=4,dati_bdv!$F$2:$F$65536,IF(dati_pdc!$C806=5,dati_bdv!$G$2:$G$65536,dati_bdv!$H$2:$H$65536))))),$A806,dati_bdv!K$2:K$65536)","v":0},{"$f":"SUMIF(IF(dati_pdc!$C806=1,dati_bdv!$C$2:$C$65536,IF(dati_pdc!$C806=2,dati_bdv!$D$2:$D$65536,IF(dati_pdc!$C806=3,dati_bdv!$E$2:$E$65536,IF(dati_pdc!$C806=4,dati_bdv!$F$2:$F$65536,IF(dati_pdc!$C806=5,dati_bdv!$G$2:$G$65536,dati_bdv!$H$2:$H$65536))))),$A806,dati_bdv!L$2:L$65536)","v":0},{"$f":"SUMIF(IF(dati_pdc!$C806=1,dati_bdv!$C$2:$C$65536,IF(dati_pdc!$C806=2,dati_bdv!$D$2:$D$65536,IF(dati_pdc!$C806=3,dati_bdv!$E$2:$E$65536,IF(dati_pdc!$C806=4,dati_bdv!$F$2:$F$65536,IF(dati_pdc!$C806=5,dati_bdv!$G$2:$G$65536,dati_bdv!$H$2:$H$65536))))),$A806,dati_bdv!M$2:M$65536)","v":0},{"$f":"SUMIF(IF(dati_pdc!$C806=1,dati_bdv!$C$2:$C$65536,IF(dati_pdc!$C806=2,dati_bdv!$D$2:$D$65536,IF(dati_pdc!$C806=3,dati_bdv!$E$2:$E$65536,IF(dati_pdc!$C806=4,dati_bdv!$F$2:$F$65536,IF(dati_pdc!$C806=5,dati_bdv!$G$2:$G$65536,dati_bdv!$H$2:$H$65536))))),$A806,dati_bdv!N$2:N$65536)","v":0}]
[{"$f":"dati_pdc!A807","v":0},{"$f":"SUMIF(IF(dati_pdc!$C807=1,dati_bdv!$C$2:$C$65536,IF(dati_pdc!$C807=2,dati_bdv!$D$2:$D$65536,IF(dati_pdc!$C807=3,dati_bdv!$E$2:$E$65536,IF(dati_pdc!$C807=4,dati_bdv!$F$2:$F$65536,IF(dati_pdc!$C807=5,dati_bdv!$G$2:$G$65536,dati_bdv!$H$2:$H$65536))))),$A807,dati_bdv!J$2:J$65536)","v":0},{"$f":"SUMIF(IF(dati_pdc!$C807=1,dati_bdv!$C$2:$C$65536,IF(dati_pdc!$C807=2,dati_bdv!$D$2:$D$65536,IF(dati_pdc!$C807=3,dati_bdv!$E$2:$E$65536,IF(dati_pdc!$C807=4,dati_bdv!$F$2:$F$65536,IF(dati_pdc!$C807=5,dati_bdv!$G$2:$G$65536,dati_bdv!$H$2:$H$65536))))),$A807,dati_bdv!K$2:K$65536)","v":0},{"$f":"SUMIF(IF(dati_pdc!$C807=1,dati_bdv!$C$2:$C$65536,IF(dati_pdc!$C807=2,dati_bdv!$D$2:$D$65536,IF(dati_pdc!$C807=3,dati_bdv!$E$2:$E$65536,IF(dati_pdc!$C807=4,dati_bdv!$F$2:$F$65536,IF(dati_pdc!$C807=5,dati_bdv!$G$2:$G$65536,dati_bdv!$H$2:$H$65536))))),$A807,dati_bdv!L$2:L$65536)","v":0},{"$f":"SUMIF(IF(dati_pdc!$C807=1,dati_bdv!$C$2:$C$65536,IF(dati_pdc!$C807=2,dati_bdv!$D$2:$D$65536,IF(dati_pdc!$C807=3,dati_bdv!$E$2:$E$65536,IF(dati_pdc!$C807=4,dati_bdv!$F$2:$F$65536,IF(dati_pdc!$C807=5,dati_bdv!$G$2:$G$65536,dati_bdv!$H$2:$H$65536))))),$A807,dati_bdv!M$2:M$65536)","v":0},{"$f":"SUMIF(IF(dati_pdc!$C807=1,dati_bdv!$C$2:$C$65536,IF(dati_pdc!$C807=2,dati_bdv!$D$2:$D$65536,IF(dati_pdc!$C807=3,dati_bdv!$E$2:$E$65536,IF(dati_pdc!$C807=4,dati_bdv!$F$2:$F$65536,IF(dati_pdc!$C807=5,dati_bdv!$G$2:$G$65536,dati_bdv!$H$2:$H$65536))))),$A807,dati_bdv!N$2:N$65536)","v":0}]
[{"$f":"dati_pdc!A808","v":0},{"$f":"SUMIF(IF(dati_pdc!$C808=1,dati_bdv!$C$2:$C$65536,IF(dati_pdc!$C808=2,dati_bdv!$D$2:$D$65536,IF(dati_pdc!$C808=3,dati_bdv!$E$2:$E$65536,IF(dati_pdc!$C808=4,dati_bdv!$F$2:$F$65536,IF(dati_pdc!$C808=5,dati_bdv!$G$2:$G$65536,dati_bdv!$H$2:$H$65536))))),$A808,dati_bdv!J$2:J$65536)","v":0},{"$f":"SUMIF(IF(dati_pdc!$C808=1,dati_bdv!$C$2:$C$65536,IF(dati_pdc!$C808=2,dati_bdv!$D$2:$D$65536,IF(dati_pdc!$C808=3,dati_bdv!$E$2:$E$65536,IF(dati_pdc!$C808=4,dati_bdv!$F$2:$F$65536,IF(dati_pdc!$C808=5,dati_bdv!$G$2:$G$65536,dati_bdv!$H$2:$H$65536))))),$A808,dati_bdv!K$2:K$65536)","v":0},{"$f":"SUMIF(IF(dati_pdc!$C808=1,dati_bdv!$C$2:$C$65536,IF(dati_pdc!$C808=2,dati_bdv!$D$2:$D$65536,IF(dati_pdc!$C808=3,dati_bdv!$E$2:$E$65536,IF(dati_pdc!$C808=4,dati_bdv!$F$2:$F$65536,IF(dati_pdc!$C808=5,dati_bdv!$G$2:$G$65536,dati_bdv!$H$2:$H$65536))))),$A808,dati_bdv!L$2:L$65536)","v":0},{"$f":"SUMIF(IF(dati_pdc!$C808=1,dati_bdv!$C$2:$C$65536,IF(dati_pdc!$C808=2,dati_bdv!$D$2:$D$65536,IF(dati_pdc!$C808=3,dati_bdv!$E$2:$E$65536,IF(dati_pdc!$C808=4,dati_bdv!$F$2:$F$65536,IF(dati_pdc!$C808=5,dati_bdv!$G$2:$G$65536,dati_bdv!$H$2:$H$65536))))),$A808,dati_bdv!M$2:M$65536)","v":0},{"$f":"SUMIF(IF(dati_pdc!$C808=1,dati_bdv!$C$2:$C$65536,IF(dati_pdc!$C808=2,dati_bdv!$D$2:$D$65536,IF(dati_pdc!$C808=3,dati_bdv!$E$2:$E$65536,IF(dati_pdc!$C808=4,dati_bdv!$F$2:$F$65536,IF(dati_pdc!$C808=5,dati_bdv!$G$2:$G$65536,dati_bdv!$H$2:$H$65536))))),$A808,dati_bdv!N$2:N$65536)","v":0}]
[{"$f":"dati_pdc!A809","v":0},{"$f":"SUMIF(IF(dati_pdc!$C809=1,dati_bdv!$C$2:$C$65536,IF(dati_pdc!$C809=2,dati_bdv!$D$2:$D$65536,IF(dati_pdc!$C809=3,dati_bdv!$E$2:$E$65536,IF(dati_pdc!$C809=4,dati_bdv!$F$2:$F$65536,IF(dati_pdc!$C809=5,dati_bdv!$G$2:$G$65536,dati_bdv!$H$2:$H$65536))))),$A809,dati_bdv!J$2:J$65536)","v":0},{"$f":"SUMIF(IF(dati_pdc!$C809=1,dati_bdv!$C$2:$C$65536,IF(dati_pdc!$C809=2,dati_bdv!$D$2:$D$65536,IF(dati_pdc!$C809=3,dati_bdv!$E$2:$E$65536,IF(dati_pdc!$C809=4,dati_bdv!$F$2:$F$65536,IF(dati_pdc!$C809=5,dati_bdv!$G$2:$G$65536,dati_bdv!$H$2:$H$65536))))),$A809,dati_bdv!K$2:K$65536)","v":0},{"$f":"SUMIF(IF(dati_pdc!$C809=1,dati_bdv!$C$2:$C$65536,IF(dati_pdc!$C809=2,dati_bdv!$D$2:$D$65536,IF(dati_pdc!$C809=3,dati_bdv!$E$2:$E$65536,IF(dati_pdc!$C809=4,dati_bdv!$F$2:$F$65536,IF(dati_pdc!$C809=5,dati_bdv!$G$2:$G$65536,dati_bdv!$H$2:$H$65536))))),$A809,dati_bdv!L$2:L$65536)","v":0},{"$f":"SUMIF(IF(dati_pdc!$C809=1,dati_bdv!$C$2:$C$65536,IF(dati_pdc!$C809=2,dati_bdv!$D$2:$D$65536,IF(dati_pdc!$C809=3,dati_bdv!$E$2:$E$65536,IF(dati_pdc!$C809=4,dati_bdv!$F$2:$F$65536,IF(dati_pdc!$C809=5,dati_bdv!$G$2:$G$65536,dati_bdv!$H$2:$H$65536))))),$A809,dati_bdv!M$2:M$65536)","v":0},{"$f":"SUMIF(IF(dati_pdc!$C809=1,dati_bdv!$C$2:$C$65536,IF(dati_pdc!$C809=2,dati_bdv!$D$2:$D$65536,IF(dati_pdc!$C809=3,dati_bdv!$E$2:$E$65536,IF(dati_pdc!$C809=4,dati_bdv!$F$2:$F$65536,IF(dati_pdc!$C809=5,dati_bdv!$G$2:$G$65536,dati_bdv!$H$2:$H$65536))))),$A809,dati_bdv!N$2:N$65536)","v":0}]
[{"$f":"dati_pdc!A810","v":0},{"$f":"SUMIF(IF(dati_pdc!$C810=1,dati_bdv!$C$2:$C$65536,IF(dati_pdc!$C810=2,dati_bdv!$D$2:$D$65536,IF(dati_pdc!$C810=3,dati_bdv!$E$2:$E$65536,IF(dati_pdc!$C810=4,dati_bdv!$F$2:$F$65536,IF(dati_pdc!$C810=5,dati_bdv!$G$2:$G$65536,dati_bdv!$H$2:$H$65536))))),$A810,dati_bdv!J$2:J$65536)","v":0},{"$f":"SUMIF(IF(dati_pdc!$C810=1,dati_bdv!$C$2:$C$65536,IF(dati_pdc!$C810=2,dati_bdv!$D$2:$D$65536,IF(dati_pdc!$C810=3,dati_bdv!$E$2:$E$65536,IF(dati_pdc!$C810=4,dati_bdv!$F$2:$F$65536,IF(dati_pdc!$C810=5,dati_bdv!$G$2:$G$65536,dati_bdv!$H$2:$H$65536))))),$A810,dati_bdv!K$2:K$65536)","v":0},{"$f":"SUMIF(IF(dati_pdc!$C810=1,dati_bdv!$C$2:$C$65536,IF(dati_pdc!$C810=2,dati_bdv!$D$2:$D$65536,IF(dati_pdc!$C810=3,dati_bdv!$E$2:$E$65536,IF(dati_pdc!$C810=4,dati_bdv!$F$2:$F$65536,IF(dati_pdc!$C810=5,dati_bdv!$G$2:$G$65536,dati_bdv!$H$2:$H$65536))))),$A810,dati_bdv!L$2:L$65536)","v":0},{"$f":"SUMIF(IF(dati_pdc!$C810=1,dati_bdv!$C$2:$C$65536,IF(dati_pdc!$C810=2,dati_bdv!$D$2:$D$65536,IF(dati_pdc!$C810=3,dati_bdv!$E$2:$E$65536,IF(dati_pdc!$C810=4,dati_bdv!$F$2:$F$65536,IF(dati_pdc!$C810=5,dati_bdv!$G$2:$G$65536,dati_bdv!$H$2:$H$65536))))),$A810,dati_bdv!M$2:M$65536)","v":0},{"$f":"SUMIF(IF(dati_pdc!$C810=1,dati_bdv!$C$2:$C$65536,IF(dati_pdc!$C810=2,dati_bdv!$D$2:$D$65536,IF(dati_pdc!$C810=3,dati_bdv!$E$2:$E$65536,IF(dati_pdc!$C810=4,dati_bdv!$F$2:$F$65536,IF(dati_pdc!$C810=5,dati_bdv!$G$2:$G$65536,dati_bdv!$H$2:$H$65536))))),$A810,dati_bdv!N$2:N$65536)","v":0}]
[{"$f":"dati_pdc!A811","v":0},{"$f":"SUMIF(IF(dati_pdc!$C811=1,dati_bdv!$C$2:$C$65536,IF(dati_pdc!$C811=2,dati_bdv!$D$2:$D$65536,IF(dati_pdc!$C811=3,dati_bdv!$E$2:$E$65536,IF(dati_pdc!$C811=4,dati_bdv!$F$2:$F$65536,IF(dati_pdc!$C811=5,dati_bdv!$G$2:$G$65536,dati_bdv!$H$2:$H$65536))))),$A811,dati_bdv!J$2:J$65536)","v":0},{"$f":"SUMIF(IF(dati_pdc!$C811=1,dati_bdv!$C$2:$C$65536,IF(dati_pdc!$C811=2,dati_bdv!$D$2:$D$65536,IF(dati_pdc!$C811=3,dati_bdv!$E$2:$E$65536,IF(dati_pdc!$C811=4,dati_bdv!$F$2:$F$65536,IF(dati_pdc!$C811=5,dati_bdv!$G$2:$G$65536,dati_bdv!$H$2:$H$65536))))),$A811,dati_bdv!K$2:K$65536)","v":0},{"$f":"SUMIF(IF(dati_pdc!$C811=1,dati_bdv!$C$2:$C$65536,IF(dati_pdc!$C811=2,dati_bdv!$D$2:$D$65536,IF(dati_pdc!$C811=3,dati_bdv!$E$2:$E$65536,IF(dati_pdc!$C811=4,dati_bdv!$F$2:$F$65536,IF(dati_pdc!$C811=5,dati_bdv!$G$2:$G$65536,dati_bdv!$H$2:$H$65536))))),$A811,dati_bdv!L$2:L$65536)","v":0},{"$f":"SUMIF(IF(dati_pdc!$C811=1,dati_bdv!$C$2:$C$65536,IF(dati_pdc!$C811=2,dati_bdv!$D$2:$D$65536,IF(dati_pdc!$C811=3,dati_bdv!$E$2:$E$65536,IF(dati_pdc!$C811=4,dati_bdv!$F$2:$F$65536,IF(dati_pdc!$C811=5,dati_bdv!$G$2:$G$65536,dati_bdv!$H$2:$H$65536))))),$A811,dati_bdv!M$2:M$65536)","v":0},{"$f":"SUMIF(IF(dati_pdc!$C811=1,dati_bdv!$C$2:$C$65536,IF(dati_pdc!$C811=2,dati_bdv!$D$2:$D$65536,IF(dati_pdc!$C811=3,dati_bdv!$E$2:$E$65536,IF(dati_pdc!$C811=4,dati_bdv!$F$2:$F$65536,IF(dati_pdc!$C811=5,dati_bdv!$G$2:$G$65536,dati_bdv!$H$2:$H$65536))))),$A811,dati_bdv!N$2:N$65536)","v":0}]
[{"$f":"dati_pdc!A812","v":0},{"$f":"SUMIF(IF(dati_pdc!$C812=1,dati_bdv!$C$2:$C$65536,IF(dati_pdc!$C812=2,dati_bdv!$D$2:$D$65536,IF(dati_pdc!$C812=3,dati_bdv!$E$2:$E$65536,IF(dati_pdc!$C812=4,dati_bdv!$F$2:$F$65536,IF(dati_pdc!$C812=5,dati_bdv!$G$2:$G$65536,dati_bdv!$H$2:$H$65536))))),$A812,dati_bdv!J$2:J$65536)","v":0},{"$f":"SUMIF(IF(dati_pdc!$C812=1,dati_bdv!$C$2:$C$65536,IF(dati_pdc!$C812=2,dati_bdv!$D$2:$D$65536,IF(dati_pdc!$C812=3,dati_bdv!$E$2:$E$65536,IF(dati_pdc!$C812=4,dati_bdv!$F$2:$F$65536,IF(dati_pdc!$C812=5,dati_bdv!$G$2:$G$65536,dati_bdv!$H$2:$H$65536))))),$A812,dati_bdv!K$2:K$65536)","v":0},{"$f":"SUMIF(IF(dati_pdc!$C812=1,dati_bdv!$C$2:$C$65536,IF(dati_pdc!$C812=2,dati_bdv!$D$2:$D$65536,IF(dati_pdc!$C812=3,dati_bdv!$E$2:$E$65536,IF(dati_pdc!$C812=4,dati_bdv!$F$2:$F$65536,IF(dati_pdc!$C812=5,dati_bdv!$G$2:$G$65536,dati_bdv!$H$2:$H$65536))))),$A812,dati_bdv!L$2:L$65536)","v":0},{"$f":"SUMIF(IF(dati_pdc!$C812=1,dati_bdv!$C$2:$C$65536,IF(dati_pdc!$C812=2,dati_bdv!$D$2:$D$65536,IF(dati_pdc!$C812=3,dati_bdv!$E$2:$E$65536,IF(dati_pdc!$C812=4,dati_bdv!$F$2:$F$65536,IF(dati_pdc!$C812=5,dati_bdv!$G$2:$G$65536,dati_bdv!$H$2:$H$65536))))),$A812,dati_bdv!M$2:M$65536)","v":0},{"$f":"SUMIF(IF(dati_pdc!$C812=1,dati_bdv!$C$2:$C$65536,IF(dati_pdc!$C812=2,dati_bdv!$D$2:$D$65536,IF(dati_pdc!$C812=3,dati_bdv!$E$2:$E$65536,IF(dati_pdc!$C812=4,dati_bdv!$F$2:$F$65536,IF(dati_pdc!$C812=5,dati_bdv!$G$2:$G$65536,dati_bdv!$H$2:$H$65536))))),$A812,dati_bdv!N$2:N$65536)","v":0}]
[{"$f":"dati_pdc!A813","v":0},{"$f":"SUMIF(IF(dati_pdc!$C813=1,dati_bdv!$C$2:$C$65536,IF(dati_pdc!$C813=2,dati_bdv!$D$2:$D$65536,IF(dati_pdc!$C813=3,dati_bdv!$E$2:$E$65536,IF(dati_pdc!$C813=4,dati_bdv!$F$2:$F$65536,IF(dati_pdc!$C813=5,dati_bdv!$G$2:$G$65536,dati_bdv!$H$2:$H$65536))))),$A813,dati_bdv!J$2:J$65536)","v":0},{"$f":"SUMIF(IF(dati_pdc!$C813=1,dati_bdv!$C$2:$C$65536,IF(dati_pdc!$C813=2,dati_bdv!$D$2:$D$65536,IF(dati_pdc!$C813=3,dati_bdv!$E$2:$E$65536,IF(dati_pdc!$C813=4,dati_bdv!$F$2:$F$65536,IF(dati_pdc!$C813=5,dati_bdv!$G$2:$G$65536,dati_bdv!$H$2:$H$65536))))),$A813,dati_bdv!K$2:K$65536)","v":0},{"$f":"SUMIF(IF(dati_pdc!$C813=1,dati_bdv!$C$2:$C$65536,IF(dati_pdc!$C813=2,dati_bdv!$D$2:$D$65536,IF(dati_pdc!$C813=3,dati_bdv!$E$2:$E$65536,IF(dati_pdc!$C813=4,dati_bdv!$F$2:$F$65536,IF(dati_pdc!$C813=5,dati_bdv!$G$2:$G$65536,dati_bdv!$H$2:$H$65536))))),$A813,dati_bdv!L$2:L$65536)","v":0},{"$f":"SUMIF(IF(dati_pdc!$C813=1,dati_bdv!$C$2:$C$65536,IF(dati_pdc!$C813=2,dati_bdv!$D$2:$D$65536,IF(dati_pdc!$C813=3,dati_bdv!$E$2:$E$65536,IF(dati_pdc!$C813=4,dati_bdv!$F$2:$F$65536,IF(dati_pdc!$C813=5,dati_bdv!$G$2:$G$65536,dati_bdv!$H$2:$H$65536))))),$A813,dati_bdv!M$2:M$65536)","v":0},{"$f":"SUMIF(IF(dati_pdc!$C813=1,dati_bdv!$C$2:$C$65536,IF(dati_pdc!$C813=2,dati_bdv!$D$2:$D$65536,IF(dati_pdc!$C813=3,dati_bdv!$E$2:$E$65536,IF(dati_pdc!$C813=4,dati_bdv!$F$2:$F$65536,IF(dati_pdc!$C813=5,dati_bdv!$G$2:$G$65536,dati_bdv!$H$2:$H$65536))))),$A813,dati_bdv!N$2:N$65536)","v":0}]
[{"$f":"dati_pdc!A814","v":0},{"$f":"SUMIF(IF(dati_pdc!$C814=1,dati_bdv!$C$2:$C$65536,IF(dati_pdc!$C814=2,dati_bdv!$D$2:$D$65536,IF(dati_pdc!$C814=3,dati_bdv!$E$2:$E$65536,IF(dati_pdc!$C814=4,dati_bdv!$F$2:$F$65536,IF(dati_pdc!$C814=5,dati_bdv!$G$2:$G$65536,dati_bdv!$H$2:$H$65536))))),$A814,dati_bdv!J$2:J$65536)","v":0},{"$f":"SUMIF(IF(dati_pdc!$C814=1,dati_bdv!$C$2:$C$65536,IF(dati_pdc!$C814=2,dati_bdv!$D$2:$D$65536,IF(dati_pdc!$C814=3,dati_bdv!$E$2:$E$65536,IF(dati_pdc!$C814=4,dati_bdv!$F$2:$F$65536,IF(dati_pdc!$C814=5,dati_bdv!$G$2:$G$65536,dati_bdv!$H$2:$H$65536))))),$A814,dati_bdv!K$2:K$65536)","v":0},{"$f":"SUMIF(IF(dati_pdc!$C814=1,dati_bdv!$C$2:$C$65536,IF(dati_pdc!$C814=2,dati_bdv!$D$2:$D$65536,IF(dati_pdc!$C814=3,dati_bdv!$E$2:$E$65536,IF(dati_pdc!$C814=4,dati_bdv!$F$2:$F$65536,IF(dati_pdc!$C814=5,dati_bdv!$G$2:$G$65536,dati_bdv!$H$2:$H$65536))))),$A814,dati_bdv!L$2:L$65536)","v":0},{"$f":"SUMIF(IF(dati_pdc!$C814=1,dati_bdv!$C$2:$C$65536,IF(dati_pdc!$C814=2,dati_bdv!$D$2:$D$65536,IF(dati_pdc!$C814=3,dati_bdv!$E$2:$E$65536,IF(dati_pdc!$C814=4,dati_bdv!$F$2:$F$65536,IF(dati_pdc!$C814=5,dati_bdv!$G$2:$G$65536,dati_bdv!$H$2:$H$65536))))),$A814,dati_bdv!M$2:M$65536)","v":0},{"$f":"SUMIF(IF(dati_pdc!$C814=1,dati_bdv!$C$2:$C$65536,IF(dati_pdc!$C814=2,dati_bdv!$D$2:$D$65536,IF(dati_pdc!$C814=3,dati_bdv!$E$2:$E$65536,IF(dati_pdc!$C814=4,dati_bdv!$F$2:$F$65536,IF(dati_pdc!$C814=5,dati_bdv!$G$2:$G$65536,dati_bdv!$H$2:$H$65536))))),$A814,dati_bdv!N$2:N$65536)","v":0}]
[{"$f":"dati_pdc!A815","v":0},{"$f":"SUMIF(IF(dati_pdc!$C815=1,dati_bdv!$C$2:$C$65536,IF(dati_pdc!$C815=2,dati_bdv!$D$2:$D$65536,IF(dati_pdc!$C815=3,dati_bdv!$E$2:$E$65536,IF(dati_pdc!$C815=4,dati_bdv!$F$2:$F$65536,IF(dati_pdc!$C815=5,dati_bdv!$G$2:$G$65536,dati_bdv!$H$2:$H$65536))))),$A815,dati_bdv!J$2:J$65536)","v":0},{"$f":"SUMIF(IF(dati_pdc!$C815=1,dati_bdv!$C$2:$C$65536,IF(dati_pdc!$C815=2,dati_bdv!$D$2:$D$65536,IF(dati_pdc!$C815=3,dati_bdv!$E$2:$E$65536,IF(dati_pdc!$C815=4,dati_bdv!$F$2:$F$65536,IF(dati_pdc!$C815=5,dati_bdv!$G$2:$G$65536,dati_bdv!$H$2:$H$65536))))),$A815,dati_bdv!K$2:K$65536)","v":0},{"$f":"SUMIF(IF(dati_pdc!$C815=1,dati_bdv!$C$2:$C$65536,IF(dati_pdc!$C815=2,dati_bdv!$D$2:$D$65536,IF(dati_pdc!$C815=3,dati_bdv!$E$2:$E$65536,IF(dati_pdc!$C815=4,dati_bdv!$F$2:$F$65536,IF(dati_pdc!$C815=5,dati_bdv!$G$2:$G$65536,dati_bdv!$H$2:$H$65536))))),$A815,dati_bdv!L$2:L$65536)","v":0},{"$f":"SUMIF(IF(dati_pdc!$C815=1,dati_bdv!$C$2:$C$65536,IF(dati_pdc!$C815=2,dati_bdv!$D$2:$D$65536,IF(dati_pdc!$C815=3,dati_bdv!$E$2:$E$65536,IF(dati_pdc!$C815=4,dati_bdv!$F$2:$F$65536,IF(dati_pdc!$C815=5,dati_bdv!$G$2:$G$65536,dati_bdv!$H$2:$H$65536))))),$A815,dati_bdv!M$2:M$65536)","v":0},{"$f":"SUMIF(IF(dati_pdc!$C815=1,dati_bdv!$C$2:$C$65536,IF(dati_pdc!$C815=2,dati_bdv!$D$2:$D$65536,IF(dati_pdc!$C815=3,dati_bdv!$E$2:$E$65536,IF(dati_pdc!$C815=4,dati_bdv!$F$2:$F$65536,IF(dati_pdc!$C815=5,dati_bdv!$G$2:$G$65536,dati_bdv!$H$2:$H$65536))))),$A815,dati_bdv!N$2:N$65536)","v":0}]
[{"$f":"dati_pdc!A816","v":0},{"$f":"SUMIF(IF(dati_pdc!$C816=1,dati_bdv!$C$2:$C$65536,IF(dati_pdc!$C816=2,dati_bdv!$D$2:$D$65536,IF(dati_pdc!$C816=3,dati_bdv!$E$2:$E$65536,IF(dati_pdc!$C816=4,dati_bdv!$F$2:$F$65536,IF(dati_pdc!$C816=5,dati_bdv!$G$2:$G$65536,dati_bdv!$H$2:$H$65536))))),$A816,dati_bdv!J$2:J$65536)","v":0},{"$f":"SUMIF(IF(dati_pdc!$C816=1,dati_bdv!$C$2:$C$65536,IF(dati_pdc!$C816=2,dati_bdv!$D$2:$D$65536,IF(dati_pdc!$C816=3,dati_bdv!$E$2:$E$65536,IF(dati_pdc!$C816=4,dati_bdv!$F$2:$F$65536,IF(dati_pdc!$C816=5,dati_bdv!$G$2:$G$65536,dati_bdv!$H$2:$H$65536))))),$A816,dati_bdv!K$2:K$65536)","v":0},{"$f":"SUMIF(IF(dati_pdc!$C816=1,dati_bdv!$C$2:$C$65536,IF(dati_pdc!$C816=2,dati_bdv!$D$2:$D$65536,IF(dati_pdc!$C816=3,dati_bdv!$E$2:$E$65536,IF(dati_pdc!$C816=4,dati_bdv!$F$2:$F$65536,IF(dati_pdc!$C816=5,dati_bdv!$G$2:$G$65536,dati_bdv!$H$2:$H$65536))))),$A816,dati_bdv!L$2:L$65536)","v":0},{"$f":"SUMIF(IF(dati_pdc!$C816=1,dati_bdv!$C$2:$C$65536,IF(dati_pdc!$C816=2,dati_bdv!$D$2:$D$65536,IF(dati_pdc!$C816=3,dati_bdv!$E$2:$E$65536,IF(dati_pdc!$C816=4,dati_bdv!$F$2:$F$65536,IF(dati_pdc!$C816=5,dati_bdv!$G$2:$G$65536,dati_bdv!$H$2:$H$65536))))),$A816,dati_bdv!M$2:M$65536)","v":0},{"$f":"SUMIF(IF(dati_pdc!$C816=1,dati_bdv!$C$2:$C$65536,IF(dati_pdc!$C816=2,dati_bdv!$D$2:$D$65536,IF(dati_pdc!$C816=3,dati_bdv!$E$2:$E$65536,IF(dati_pdc!$C816=4,dati_bdv!$F$2:$F$65536,IF(dati_pdc!$C816=5,dati_bdv!$G$2:$G$65536,dati_bdv!$H$2:$H$65536))))),$A816,dati_bdv!N$2:N$65536)","v":0}]
[{"$f":"dati_pdc!A817","v":0},{"$f":"SUMIF(IF(dati_pdc!$C817=1,dati_bdv!$C$2:$C$65536,IF(dati_pdc!$C817=2,dati_bdv!$D$2:$D$65536,IF(dati_pdc!$C817=3,dati_bdv!$E$2:$E$65536,IF(dati_pdc!$C817=4,dati_bdv!$F$2:$F$65536,IF(dati_pdc!$C817=5,dati_bdv!$G$2:$G$65536,dati_bdv!$H$2:$H$65536))))),$A817,dati_bdv!J$2:J$65536)","v":0},{"$f":"SUMIF(IF(dati_pdc!$C817=1,dati_bdv!$C$2:$C$65536,IF(dati_pdc!$C817=2,dati_bdv!$D$2:$D$65536,IF(dati_pdc!$C817=3,dati_bdv!$E$2:$E$65536,IF(dati_pdc!$C817=4,dati_bdv!$F$2:$F$65536,IF(dati_pdc!$C817=5,dati_bdv!$G$2:$G$65536,dati_bdv!$H$2:$H$65536))))),$A817,dati_bdv!K$2:K$65536)","v":0},{"$f":"SUMIF(IF(dati_pdc!$C817=1,dati_bdv!$C$2:$C$65536,IF(dati_pdc!$C817=2,dati_bdv!$D$2:$D$65536,IF(dati_pdc!$C817=3,dati_bdv!$E$2:$E$65536,IF(dati_pdc!$C817=4,dati_bdv!$F$2:$F$65536,IF(dati_pdc!$C817=5,dati_bdv!$G$2:$G$65536,dati_bdv!$H$2:$H$65536))))),$A817,dati_bdv!L$2:L$65536)","v":0},{"$f":"SUMIF(IF(dati_pdc!$C817=1,dati_bdv!$C$2:$C$65536,IF(dati_pdc!$C817=2,dati_bdv!$D$2:$D$65536,IF(dati_pdc!$C817=3,dati_bdv!$E$2:$E$65536,IF(dati_pdc!$C817=4,dati_bdv!$F$2:$F$65536,IF(dati_pdc!$C817=5,dati_bdv!$G$2:$G$65536,dati_bdv!$H$2:$H$65536))))),$A817,dati_bdv!M$2:M$65536)","v":0},{"$f":"SUMIF(IF(dati_pdc!$C817=1,dati_bdv!$C$2:$C$65536,IF(dati_pdc!$C817=2,dati_bdv!$D$2:$D$65536,IF(dati_pdc!$C817=3,dati_bdv!$E$2:$E$65536,IF(dati_pdc!$C817=4,dati_bdv!$F$2:$F$65536,IF(dati_pdc!$C817=5,dati_bdv!$G$2:$G$65536,dati_bdv!$H$2:$H$65536))))),$A817,dati_bdv!N$2:N$65536)","v":0}]
[{"$f":"dati_pdc!A818","v":0},{"$f":"SUMIF(IF(dati_pdc!$C818=1,dati_bdv!$C$2:$C$65536,IF(dati_pdc!$C818=2,dati_bdv!$D$2:$D$65536,IF(dati_pdc!$C818=3,dati_bdv!$E$2:$E$65536,IF(dati_pdc!$C818=4,dati_bdv!$F$2:$F$65536,IF(dati_pdc!$C818=5,dati_bdv!$G$2:$G$65536,dati_bdv!$H$2:$H$65536))))),$A818,dati_bdv!J$2:J$65536)","v":0},{"$f":"SUMIF(IF(dati_pdc!$C818=1,dati_bdv!$C$2:$C$65536,IF(dati_pdc!$C818=2,dati_bdv!$D$2:$D$65536,IF(dati_pdc!$C818=3,dati_bdv!$E$2:$E$65536,IF(dati_pdc!$C818=4,dati_bdv!$F$2:$F$65536,IF(dati_pdc!$C818=5,dati_bdv!$G$2:$G$65536,dati_bdv!$H$2:$H$65536))))),$A818,dati_bdv!K$2:K$65536)","v":0},{"$f":"SUMIF(IF(dati_pdc!$C818=1,dati_bdv!$C$2:$C$65536,IF(dati_pdc!$C818=2,dati_bdv!$D$2:$D$65536,IF(dati_pdc!$C818=3,dati_bdv!$E$2:$E$65536,IF(dati_pdc!$C818=4,dati_bdv!$F$2:$F$65536,IF(dati_pdc!$C818=5,dati_bdv!$G$2:$G$65536,dati_bdv!$H$2:$H$65536))))),$A818,dati_bdv!L$2:L$65536)","v":0},{"$f":"SUMIF(IF(dati_pdc!$C818=1,dati_bdv!$C$2:$C$65536,IF(dati_pdc!$C818=2,dati_bdv!$D$2:$D$65536,IF(dati_pdc!$C818=3,dati_bdv!$E$2:$E$65536,IF(dati_pdc!$C818=4,dati_bdv!$F$2:$F$65536,IF(dati_pdc!$C818=5,dati_bdv!$G$2:$G$65536,dati_bdv!$H$2:$H$65536))))),$A818,dati_bdv!M$2:M$65536)","v":0},{"$f":"SUMIF(IF(dati_pdc!$C818=1,dati_bdv!$C$2:$C$65536,IF(dati_pdc!$C818=2,dati_bdv!$D$2:$D$65536,IF(dati_pdc!$C818=3,dati_bdv!$E$2:$E$65536,IF(dati_pdc!$C818=4,dati_bdv!$F$2:$F$65536,IF(dati_pdc!$C818=5,dati_bdv!$G$2:$G$65536,dati_bdv!$H$2:$H$65536))))),$A818,dati_bdv!N$2:N$65536)","v":0}]
[{"$f":"dati_pdc!A819","v":0},{"$f":"SUMIF(IF(dati_pdc!$C819=1,dati_bdv!$C$2:$C$65536,IF(dati_pdc!$C819=2,dati_bdv!$D$2:$D$65536,IF(dati_pdc!$C819=3,dati_bdv!$E$2:$E$65536,IF(dati_pdc!$C819=4,dati_bdv!$F$2:$F$65536,IF(dati_pdc!$C819=5,dati_bdv!$G$2:$G$65536,dati_bdv!$H$2:$H$65536))))),$A819,dati_bdv!J$2:J$65536)","v":0},{"$f":"SUMIF(IF(dati_pdc!$C819=1,dati_bdv!$C$2:$C$65536,IF(dati_pdc!$C819=2,dati_bdv!$D$2:$D$65536,IF(dati_pdc!$C819=3,dati_bdv!$E$2:$E$65536,IF(dati_pdc!$C819=4,dati_bdv!$F$2:$F$65536,IF(dati_pdc!$C819=5,dati_bdv!$G$2:$G$65536,dati_bdv!$H$2:$H$65536))))),$A819,dati_bdv!K$2:K$65536)","v":0},{"$f":"SUMIF(IF(dati_pdc!$C819=1,dati_bdv!$C$2:$C$65536,IF(dati_pdc!$C819=2,dati_bdv!$D$2:$D$65536,IF(dati_pdc!$C819=3,dati_bdv!$E$2:$E$65536,IF(dati_pdc!$C819=4,dati_bdv!$F$2:$F$65536,IF(dati_pdc!$C819=5,dati_bdv!$G$2:$G$65536,dati_bdv!$H$2:$H$65536))))),$A819,dati_bdv!L$2:L$65536)","v":0},{"$f":"SUMIF(IF(dati_pdc!$C819=1,dati_bdv!$C$2:$C$65536,IF(dati_pdc!$C819=2,dati_bdv!$D$2:$D$65536,IF(dati_pdc!$C819=3,dati_bdv!$E$2:$E$65536,IF(dati_pdc!$C819=4,dati_bdv!$F$2:$F$65536,IF(dati_pdc!$C819=5,dati_bdv!$G$2:$G$65536,dati_bdv!$H$2:$H$65536))))),$A819,dati_bdv!M$2:M$65536)","v":0},{"$f":"SUMIF(IF(dati_pdc!$C819=1,dati_bdv!$C$2:$C$65536,IF(dati_pdc!$C819=2,dati_bdv!$D$2:$D$65536,IF(dati_pdc!$C819=3,dati_bdv!$E$2:$E$65536,IF(dati_pdc!$C819=4,dati_bdv!$F$2:$F$65536,IF(dati_pdc!$C819=5,dati_bdv!$G$2:$G$65536,dati_bdv!$H$2:$H$65536))))),$A819,dati_bdv!N$2:N$65536)","v":0}]
[{"$f":"dati_pdc!A820","v":0},{"$f":"SUMIF(IF(dati_pdc!$C820=1,dati_bdv!$C$2:$C$65536,IF(dati_pdc!$C820=2,dati_bdv!$D$2:$D$65536,IF(dati_pdc!$C820=3,dati_bdv!$E$2:$E$65536,IF(dati_pdc!$C820=4,dati_bdv!$F$2:$F$65536,IF(dati_pdc!$C820=5,dati_bdv!$G$2:$G$65536,dati_bdv!$H$2:$H$65536))))),$A820,dati_bdv!J$2:J$65536)","v":0},{"$f":"SUMIF(IF(dati_pdc!$C820=1,dati_bdv!$C$2:$C$65536,IF(dati_pdc!$C820=2,dati_bdv!$D$2:$D$65536,IF(dati_pdc!$C820=3,dati_bdv!$E$2:$E$65536,IF(dati_pdc!$C820=4,dati_bdv!$F$2:$F$65536,IF(dati_pdc!$C820=5,dati_bdv!$G$2:$G$65536,dati_bdv!$H$2:$H$65536))))),$A820,dati_bdv!K$2:K$65536)","v":0},{"$f":"SUMIF(IF(dati_pdc!$C820=1,dati_bdv!$C$2:$C$65536,IF(dati_pdc!$C820=2,dati_bdv!$D$2:$D$65536,IF(dati_pdc!$C820=3,dati_bdv!$E$2:$E$65536,IF(dati_pdc!$C820=4,dati_bdv!$F$2:$F$65536,IF(dati_pdc!$C820=5,dati_bdv!$G$2:$G$65536,dati_bdv!$H$2:$H$65536))))),$A820,dati_bdv!L$2:L$65536)","v":0},{"$f":"SUMIF(IF(dati_pdc!$C820=1,dati_bdv!$C$2:$C$65536,IF(dati_pdc!$C820=2,dati_bdv!$D$2:$D$65536,IF(dati_pdc!$C820=3,dati_bdv!$E$2:$E$65536,IF(dati_pdc!$C820=4,dati_bdv!$F$2:$F$65536,IF(dati_pdc!$C820=5,dati_bdv!$G$2:$G$65536,dati_bdv!$H$2:$H$65536))))),$A820,dati_bdv!M$2:M$65536)","v":0},{"$f":"SUMIF(IF(dati_pdc!$C820=1,dati_bdv!$C$2:$C$65536,IF(dati_pdc!$C820=2,dati_bdv!$D$2:$D$65536,IF(dati_pdc!$C820=3,dati_bdv!$E$2:$E$65536,IF(dati_pdc!$C820=4,dati_bdv!$F$2:$F$65536,IF(dati_pdc!$C820=5,dati_bdv!$G$2:$G$65536,dati_bdv!$H$2:$H$65536))))),$A820,dati_bdv!N$2:N$65536)","v":0}]
[{"$f":"dati_pdc!A821","v":0},{"$f":"SUMIF(IF(dati_pdc!$C821=1,dati_bdv!$C$2:$C$65536,IF(dati_pdc!$C821=2,dati_bdv!$D$2:$D$65536,IF(dati_pdc!$C821=3,dati_bdv!$E$2:$E$65536,IF(dati_pdc!$C821=4,dati_bdv!$F$2:$F$65536,IF(dati_pdc!$C821=5,dati_bdv!$G$2:$G$65536,dati_bdv!$H$2:$H$65536))))),$A821,dati_bdv!J$2:J$65536)","v":0},{"$f":"SUMIF(IF(dati_pdc!$C821=1,dati_bdv!$C$2:$C$65536,IF(dati_pdc!$C821=2,dati_bdv!$D$2:$D$65536,IF(dati_pdc!$C821=3,dati_bdv!$E$2:$E$65536,IF(dati_pdc!$C821=4,dati_bdv!$F$2:$F$65536,IF(dati_pdc!$C821=5,dati_bdv!$G$2:$G$65536,dati_bdv!$H$2:$H$65536))))),$A821,dati_bdv!K$2:K$65536)","v":0},{"$f":"SUMIF(IF(dati_pdc!$C821=1,dati_bdv!$C$2:$C$65536,IF(dati_pdc!$C821=2,dati_bdv!$D$2:$D$65536,IF(dati_pdc!$C821=3,dati_bdv!$E$2:$E$65536,IF(dati_pdc!$C821=4,dati_bdv!$F$2:$F$65536,IF(dati_pdc!$C821=5,dati_bdv!$G$2:$G$65536,dati_bdv!$H$2:$H$65536))))),$A821,dati_bdv!L$2:L$65536)","v":0},{"$f":"SUMIF(IF(dati_pdc!$C821=1,dati_bdv!$C$2:$C$65536,IF(dati_pdc!$C821=2,dati_bdv!$D$2:$D$65536,IF(dati_pdc!$C821=3,dati_bdv!$E$2:$E$65536,IF(dati_pdc!$C821=4,dati_bdv!$F$2:$F$65536,IF(dati_pdc!$C821=5,dati_bdv!$G$2:$G$65536,dati_bdv!$H$2:$H$65536))))),$A821,dati_bdv!M$2:M$65536)","v":0},{"$f":"SUMIF(IF(dati_pdc!$C821=1,dati_bdv!$C$2:$C$65536,IF(dati_pdc!$C821=2,dati_bdv!$D$2:$D$65536,IF(dati_pdc!$C821=3,dati_bdv!$E$2:$E$65536,IF(dati_pdc!$C821=4,dati_bdv!$F$2:$F$65536,IF(dati_pdc!$C821=5,dati_bdv!$G$2:$G$65536,dati_bdv!$H$2:$H$65536))))),$A821,dati_bdv!N$2:N$65536)","v":0}]
[{"$f":"dati_pdc!A822","v":0},{"$f":"SUMIF(IF(dati_pdc!$C822=1,dati_bdv!$C$2:$C$65536,IF(dati_pdc!$C822=2,dati_bdv!$D$2:$D$65536,IF(dati_pdc!$C822=3,dati_bdv!$E$2:$E$65536,IF(dati_pdc!$C822=4,dati_bdv!$F$2:$F$65536,IF(dati_pdc!$C822=5,dati_bdv!$G$2:$G$65536,dati_bdv!$H$2:$H$65536))))),$A822,dati_bdv!J$2:J$65536)","v":0},{"$f":"SUMIF(IF(dati_pdc!$C822=1,dati_bdv!$C$2:$C$65536,IF(dati_pdc!$C822=2,dati_bdv!$D$2:$D$65536,IF(dati_pdc!$C822=3,dati_bdv!$E$2:$E$65536,IF(dati_pdc!$C822=4,dati_bdv!$F$2:$F$65536,IF(dati_pdc!$C822=5,dati_bdv!$G$2:$G$65536,dati_bdv!$H$2:$H$65536))))),$A822,dati_bdv!K$2:K$65536)","v":0},{"$f":"SUMIF(IF(dati_pdc!$C822=1,dati_bdv!$C$2:$C$65536,IF(dati_pdc!$C822=2,dati_bdv!$D$2:$D$65536,IF(dati_pdc!$C822=3,dati_bdv!$E$2:$E$65536,IF(dati_pdc!$C822=4,dati_bdv!$F$2:$F$65536,IF(dati_pdc!$C822=5,dati_bdv!$G$2:$G$65536,dati_bdv!$H$2:$H$65536))))),$A822,dati_bdv!L$2:L$65536)","v":0},{"$f":"SUMIF(IF(dati_pdc!$C822=1,dati_bdv!$C$2:$C$65536,IF(dati_pdc!$C822=2,dati_bdv!$D$2:$D$65536,IF(dati_pdc!$C822=3,dati_bdv!$E$2:$E$65536,IF(dati_pdc!$C822=4,dati_bdv!$F$2:$F$65536,IF(dati_pdc!$C822=5,dati_bdv!$G$2:$G$65536,dati_bdv!$H$2:$H$65536))))),$A822,dati_bdv!M$2:M$65536)","v":0},{"$f":"SUMIF(IF(dati_pdc!$C822=1,dati_bdv!$C$2:$C$65536,IF(dati_pdc!$C822=2,dati_bdv!$D$2:$D$65536,IF(dati_pdc!$C822=3,dati_bdv!$E$2:$E$65536,IF(dati_pdc!$C822=4,dati_bdv!$F$2:$F$65536,IF(dati_pdc!$C822=5,dati_bdv!$G$2:$G$65536,dati_bdv!$H$2:$H$65536))))),$A822,dati_bdv!N$2:N$65536)","v":0}]
[{"$f":"dati_pdc!A823","v":0},{"$f":"SUMIF(IF(dati_pdc!$C823=1,dati_bdv!$C$2:$C$65536,IF(dati_pdc!$C823=2,dati_bdv!$D$2:$D$65536,IF(dati_pdc!$C823=3,dati_bdv!$E$2:$E$65536,IF(dati_pdc!$C823=4,dati_bdv!$F$2:$F$65536,IF(dati_pdc!$C823=5,dati_bdv!$G$2:$G$65536,dati_bdv!$H$2:$H$65536))))),$A823,dati_bdv!J$2:J$65536)","v":0},{"$f":"SUMIF(IF(dati_pdc!$C823=1,dati_bdv!$C$2:$C$65536,IF(dati_pdc!$C823=2,dati_bdv!$D$2:$D$65536,IF(dati_pdc!$C823=3,dati_bdv!$E$2:$E$65536,IF(dati_pdc!$C823=4,dati_bdv!$F$2:$F$65536,IF(dati_pdc!$C823=5,dati_bdv!$G$2:$G$65536,dati_bdv!$H$2:$H$65536))))),$A823,dati_bdv!K$2:K$65536)","v":0},{"$f":"SUMIF(IF(dati_pdc!$C823=1,dati_bdv!$C$2:$C$65536,IF(dati_pdc!$C823=2,dati_bdv!$D$2:$D$65536,IF(dati_pdc!$C823=3,dati_bdv!$E$2:$E$65536,IF(dati_pdc!$C823=4,dati_bdv!$F$2:$F$65536,IF(dati_pdc!$C823=5,dati_bdv!$G$2:$G$65536,dati_bdv!$H$2:$H$65536))))),$A823,dati_bdv!L$2:L$65536)","v":0},{"$f":"SUMIF(IF(dati_pdc!$C823=1,dati_bdv!$C$2:$C$65536,IF(dati_pdc!$C823=2,dati_bdv!$D$2:$D$65536,IF(dati_pdc!$C823=3,dati_bdv!$E$2:$E$65536,IF(dati_pdc!$C823=4,dati_bdv!$F$2:$F$65536,IF(dati_pdc!$C823=5,dati_bdv!$G$2:$G$65536,dati_bdv!$H$2:$H$65536))))),$A823,dati_bdv!M$2:M$65536)","v":0},{"$f":"SUMIF(IF(dati_pdc!$C823=1,dati_bdv!$C$2:$C$65536,IF(dati_pdc!$C823=2,dati_bdv!$D$2:$D$65536,IF(dati_pdc!$C823=3,dati_bdv!$E$2:$E$65536,IF(dati_pdc!$C823=4,dati_bdv!$F$2:$F$65536,IF(dati_pdc!$C823=5,dati_bdv!$G$2:$G$65536,dati_bdv!$H$2:$H$65536))))),$A823,dati_bdv!N$2:N$65536)","v":0}]
[{"$f":"dati_pdc!A824","v":0},{"$f":"SUMIF(IF(dati_pdc!$C824=1,dati_bdv!$C$2:$C$65536,IF(dati_pdc!$C824=2,dati_bdv!$D$2:$D$65536,IF(dati_pdc!$C824=3,dati_bdv!$E$2:$E$65536,IF(dati_pdc!$C824=4,dati_bdv!$F$2:$F$65536,IF(dati_pdc!$C824=5,dati_bdv!$G$2:$G$65536,dati_bdv!$H$2:$H$65536))))),$A824,dati_bdv!J$2:J$65536)","v":0},{"$f":"SUMIF(IF(dati_pdc!$C824=1,dati_bdv!$C$2:$C$65536,IF(dati_pdc!$C824=2,dati_bdv!$D$2:$D$65536,IF(dati_pdc!$C824=3,dati_bdv!$E$2:$E$65536,IF(dati_pdc!$C824=4,dati_bdv!$F$2:$F$65536,IF(dati_pdc!$C824=5,dati_bdv!$G$2:$G$65536,dati_bdv!$H$2:$H$65536))))),$A824,dati_bdv!K$2:K$65536)","v":0},{"$f":"SUMIF(IF(dati_pdc!$C824=1,dati_bdv!$C$2:$C$65536,IF(dati_pdc!$C824=2,dati_bdv!$D$2:$D$65536,IF(dati_pdc!$C824=3,dati_bdv!$E$2:$E$65536,IF(dati_pdc!$C824=4,dati_bdv!$F$2:$F$65536,IF(dati_pdc!$C824=5,dati_bdv!$G$2:$G$65536,dati_bdv!$H$2:$H$65536))))),$A824,dati_bdv!L$2:L$65536)","v":0},{"$f":"SUMIF(IF(dati_pdc!$C824=1,dati_bdv!$C$2:$C$65536,IF(dati_pdc!$C824=2,dati_bdv!$D$2:$D$65536,IF(dati_pdc!$C824=3,dati_bdv!$E$2:$E$65536,IF(dati_pdc!$C824=4,dati_bdv!$F$2:$F$65536,IF(dati_pdc!$C824=5,dati_bdv!$G$2:$G$65536,dati_bdv!$H$2:$H$65536))))),$A824,dati_bdv!M$2:M$65536)","v":0},{"$f":"SUMIF(IF(dati_pdc!$C824=1,dati_bdv!$C$2:$C$65536,IF(dati_pdc!$C824=2,dati_bdv!$D$2:$D$65536,IF(dati_pdc!$C824=3,dati_bdv!$E$2:$E$65536,IF(dati_pdc!$C824=4,dati_bdv!$F$2:$F$65536,IF(dati_pdc!$C824=5,dati_bdv!$G$2:$G$65536,dati_bdv!$H$2:$H$65536))))),$A824,dati_bdv!N$2:N$65536)","v":0}]
[{"$f":"dati_pdc!A825","v":0},{"$f":"SUMIF(IF(dati_pdc!$C825=1,dati_bdv!$C$2:$C$65536,IF(dati_pdc!$C825=2,dati_bdv!$D$2:$D$65536,IF(dati_pdc!$C825=3,dati_bdv!$E$2:$E$65536,IF(dati_pdc!$C825=4,dati_bdv!$F$2:$F$65536,IF(dati_pdc!$C825=5,dati_bdv!$G$2:$G$65536,dati_bdv!$H$2:$H$65536))))),$A825,dati_bdv!J$2:J$65536)","v":0},{"$f":"SUMIF(IF(dati_pdc!$C825=1,dati_bdv!$C$2:$C$65536,IF(dati_pdc!$C825=2,dati_bdv!$D$2:$D$65536,IF(dati_pdc!$C825=3,dati_bdv!$E$2:$E$65536,IF(dati_pdc!$C825=4,dati_bdv!$F$2:$F$65536,IF(dati_pdc!$C825=5,dati_bdv!$G$2:$G$65536,dati_bdv!$H$2:$H$65536))))),$A825,dati_bdv!K$2:K$65536)","v":0},{"$f":"SUMIF(IF(dati_pdc!$C825=1,dati_bdv!$C$2:$C$65536,IF(dati_pdc!$C825=2,dati_bdv!$D$2:$D$65536,IF(dati_pdc!$C825=3,dati_bdv!$E$2:$E$65536,IF(dati_pdc!$C825=4,dati_bdv!$F$2:$F$65536,IF(dati_pdc!$C825=5,dati_bdv!$G$2:$G$65536,dati_bdv!$H$2:$H$65536))))),$A825,dati_bdv!L$2:L$65536)","v":0},{"$f":"SUMIF(IF(dati_pdc!$C825=1,dati_bdv!$C$2:$C$65536,IF(dati_pdc!$C825=2,dati_bdv!$D$2:$D$65536,IF(dati_pdc!$C825=3,dati_bdv!$E$2:$E$65536,IF(dati_pdc!$C825=4,dati_bdv!$F$2:$F$65536,IF(dati_pdc!$C825=5,dati_bdv!$G$2:$G$65536,dati_bdv!$H$2:$H$65536))))),$A825,dati_bdv!M$2:M$65536)","v":0},{"$f":"SUMIF(IF(dati_pdc!$C825=1,dati_bdv!$C$2:$C$65536,IF(dati_pdc!$C825=2,dati_bdv!$D$2:$D$65536,IF(dati_pdc!$C825=3,dati_bdv!$E$2:$E$65536,IF(dati_pdc!$C825=4,dati_bdv!$F$2:$F$65536,IF(dati_pdc!$C825=5,dati_bdv!$G$2:$G$65536,dati_bdv!$H$2:$H$65536))))),$A825,dati_bdv!N$2:N$65536)","v":0}]
[{"$f":"dati_pdc!A826","v":0},{"$f":"SUMIF(IF(dati_pdc!$C826=1,dati_bdv!$C$2:$C$65536,IF(dati_pdc!$C826=2,dati_bdv!$D$2:$D$65536,IF(dati_pdc!$C826=3,dati_bdv!$E$2:$E$65536,IF(dati_pdc!$C826=4,dati_bdv!$F$2:$F$65536,IF(dati_pdc!$C826=5,dati_bdv!$G$2:$G$65536,dati_bdv!$H$2:$H$65536))))),$A826,dati_bdv!J$2:J$65536)","v":0},{"$f":"SUMIF(IF(dati_pdc!$C826=1,dati_bdv!$C$2:$C$65536,IF(dati_pdc!$C826=2,dati_bdv!$D$2:$D$65536,IF(dati_pdc!$C826=3,dati_bdv!$E$2:$E$65536,IF(dati_pdc!$C826=4,dati_bdv!$F$2:$F$65536,IF(dati_pdc!$C826=5,dati_bdv!$G$2:$G$65536,dati_bdv!$H$2:$H$65536))))),$A826,dati_bdv!K$2:K$65536)","v":0},{"$f":"SUMIF(IF(dati_pdc!$C826=1,dati_bdv!$C$2:$C$65536,IF(dati_pdc!$C826=2,dati_bdv!$D$2:$D$65536,IF(dati_pdc!$C826=3,dati_bdv!$E$2:$E$65536,IF(dati_pdc!$C826=4,dati_bdv!$F$2:$F$65536,IF(dati_pdc!$C826=5,dati_bdv!$G$2:$G$65536,dati_bdv!$H$2:$H$65536))))),$A826,dati_bdv!L$2:L$65536)","v":0},{"$f":"SUMIF(IF(dati_pdc!$C826=1,dati_bdv!$C$2:$C$65536,IF(dati_pdc!$C826=2,dati_bdv!$D$2:$D$65536,IF(dati_pdc!$C826=3,dati_bdv!$E$2:$E$65536,IF(dati_pdc!$C826=4,dati_bdv!$F$2:$F$65536,IF(dati_pdc!$C826=5,dati_bdv!$G$2:$G$65536,dati_bdv!$H$2:$H$65536))))),$A826,dati_bdv!M$2:M$65536)","v":0},{"$f":"SUMIF(IF(dati_pdc!$C826=1,dati_bdv!$C$2:$C$65536,IF(dati_pdc!$C826=2,dati_bdv!$D$2:$D$65536,IF(dati_pdc!$C826=3,dati_bdv!$E$2:$E$65536,IF(dati_pdc!$C826=4,dati_bdv!$F$2:$F$65536,IF(dati_pdc!$C826=5,dati_bdv!$G$2:$G$65536,dati_bdv!$H$2:$H$65536))))),$A826,dati_bdv!N$2:N$65536)","v":0}]
[{"$f":"dati_pdc!A827","v":0},{"$f":"SUMIF(IF(dati_pdc!$C827=1,dati_bdv!$C$2:$C$65536,IF(dati_pdc!$C827=2,dati_bdv!$D$2:$D$65536,IF(dati_pdc!$C827=3,dati_bdv!$E$2:$E$65536,IF(dati_pdc!$C827=4,dati_bdv!$F$2:$F$65536,IF(dati_pdc!$C827=5,dati_bdv!$G$2:$G$65536,dati_bdv!$H$2:$H$65536))))),$A827,dati_bdv!J$2:J$65536)","v":0},{"$f":"SUMIF(IF(dati_pdc!$C827=1,dati_bdv!$C$2:$C$65536,IF(dati_pdc!$C827=2,dati_bdv!$D$2:$D$65536,IF(dati_pdc!$C827=3,dati_bdv!$E$2:$E$65536,IF(dati_pdc!$C827=4,dati_bdv!$F$2:$F$65536,IF(dati_pdc!$C827=5,dati_bdv!$G$2:$G$65536,dati_bdv!$H$2:$H$65536))))),$A827,dati_bdv!K$2:K$65536)","v":0},{"$f":"SUMIF(IF(dati_pdc!$C827=1,dati_bdv!$C$2:$C$65536,IF(dati_pdc!$C827=2,dati_bdv!$D$2:$D$65536,IF(dati_pdc!$C827=3,dati_bdv!$E$2:$E$65536,IF(dati_pdc!$C827=4,dati_bdv!$F$2:$F$65536,IF(dati_pdc!$C827=5,dati_bdv!$G$2:$G$65536,dati_bdv!$H$2:$H$65536))))),$A827,dati_bdv!L$2:L$65536)","v":0},{"$f":"SUMIF(IF(dati_pdc!$C827=1,dati_bdv!$C$2:$C$65536,IF(dati_pdc!$C827=2,dati_bdv!$D$2:$D$65536,IF(dati_pdc!$C827=3,dati_bdv!$E$2:$E$65536,IF(dati_pdc!$C827=4,dati_bdv!$F$2:$F$65536,IF(dati_pdc!$C827=5,dati_bdv!$G$2:$G$65536,dati_bdv!$H$2:$H$65536))))),$A827,dati_bdv!M$2:M$65536)","v":0},{"$f":"SUMIF(IF(dati_pdc!$C827=1,dati_bdv!$C$2:$C$65536,IF(dati_pdc!$C827=2,dati_bdv!$D$2:$D$65536,IF(dati_pdc!$C827=3,dati_bdv!$E$2:$E$65536,IF(dati_pdc!$C827=4,dati_bdv!$F$2:$F$65536,IF(dati_pdc!$C827=5,dati_bdv!$G$2:$G$65536,dati_bdv!$H$2:$H$65536))))),$A827,dati_bdv!N$2:N$65536)","v":0}]
[{"$f":"dati_pdc!A828","v":0},{"$f":"SUMIF(IF(dati_pdc!$C828=1,dati_bdv!$C$2:$C$65536,IF(dati_pdc!$C828=2,dati_bdv!$D$2:$D$65536,IF(dati_pdc!$C828=3,dati_bdv!$E$2:$E$65536,IF(dati_pdc!$C828=4,dati_bdv!$F$2:$F$65536,IF(dati_pdc!$C828=5,dati_bdv!$G$2:$G$65536,dati_bdv!$H$2:$H$65536))))),$A828,dati_bdv!J$2:J$65536)","v":0},{"$f":"SUMIF(IF(dati_pdc!$C828=1,dati_bdv!$C$2:$C$65536,IF(dati_pdc!$C828=2,dati_bdv!$D$2:$D$65536,IF(dati_pdc!$C828=3,dati_bdv!$E$2:$E$65536,IF(dati_pdc!$C828=4,dati_bdv!$F$2:$F$65536,IF(dati_pdc!$C828=5,dati_bdv!$G$2:$G$65536,dati_bdv!$H$2:$H$65536))))),$A828,dati_bdv!K$2:K$65536)","v":0},{"$f":"SUMIF(IF(dati_pdc!$C828=1,dati_bdv!$C$2:$C$65536,IF(dati_pdc!$C828=2,dati_bdv!$D$2:$D$65536,IF(dati_pdc!$C828=3,dati_bdv!$E$2:$E$65536,IF(dati_pdc!$C828=4,dati_bdv!$F$2:$F$65536,IF(dati_pdc!$C828=5,dati_bdv!$G$2:$G$65536,dati_bdv!$H$2:$H$65536))))),$A828,dati_bdv!L$2:L$65536)","v":0},{"$f":"SUMIF(IF(dati_pdc!$C828=1,dati_bdv!$C$2:$C$65536,IF(dati_pdc!$C828=2,dati_bdv!$D$2:$D$65536,IF(dati_pdc!$C828=3,dati_bdv!$E$2:$E$65536,IF(dati_pdc!$C828=4,dati_bdv!$F$2:$F$65536,IF(dati_pdc!$C828=5,dati_bdv!$G$2:$G$65536,dati_bdv!$H$2:$H$65536))))),$A828,dati_bdv!M$2:M$65536)","v":0},{"$f":"SUMIF(IF(dati_pdc!$C828=1,dati_bdv!$C$2:$C$65536,IF(dati_pdc!$C828=2,dati_bdv!$D$2:$D$65536,IF(dati_pdc!$C828=3,dati_bdv!$E$2:$E$65536,IF(dati_pdc!$C828=4,dati_bdv!$F$2:$F$65536,IF(dati_pdc!$C828=5,dati_bdv!$G$2:$G$65536,dati_bdv!$H$2:$H$65536))))),$A828,dati_bdv!N$2:N$65536)","v":0}]
[{"$f":"dati_pdc!A829","v":0},{"$f":"SUMIF(IF(dati_pdc!$C829=1,dati_bdv!$C$2:$C$65536,IF(dati_pdc!$C829=2,dati_bdv!$D$2:$D$65536,IF(dati_pdc!$C829=3,dati_bdv!$E$2:$E$65536,IF(dati_pdc!$C829=4,dati_bdv!$F$2:$F$65536,IF(dati_pdc!$C829=5,dati_bdv!$G$2:$G$65536,dati_bdv!$H$2:$H$65536))))),$A829,dati_bdv!J$2:J$65536)","v":0},{"$f":"SUMIF(IF(dati_pdc!$C829=1,dati_bdv!$C$2:$C$65536,IF(dati_pdc!$C829=2,dati_bdv!$D$2:$D$65536,IF(dati_pdc!$C829=3,dati_bdv!$E$2:$E$65536,IF(dati_pdc!$C829=4,dati_bdv!$F$2:$F$65536,IF(dati_pdc!$C829=5,dati_bdv!$G$2:$G$65536,dati_bdv!$H$2:$H$65536))))),$A829,dati_bdv!K$2:K$65536)","v":0},{"$f":"SUMIF(IF(dati_pdc!$C829=1,dati_bdv!$C$2:$C$65536,IF(dati_pdc!$C829=2,dati_bdv!$D$2:$D$65536,IF(dati_pdc!$C829=3,dati_bdv!$E$2:$E$65536,IF(dati_pdc!$C829=4,dati_bdv!$F$2:$F$65536,IF(dati_pdc!$C829=5,dati_bdv!$G$2:$G$65536,dati_bdv!$H$2:$H$65536))))),$A829,dati_bdv!L$2:L$65536)","v":0},{"$f":"SUMIF(IF(dati_pdc!$C829=1,dati_bdv!$C$2:$C$65536,IF(dati_pdc!$C829=2,dati_bdv!$D$2:$D$65536,IF(dati_pdc!$C829=3,dati_bdv!$E$2:$E$65536,IF(dati_pdc!$C829=4,dati_bdv!$F$2:$F$65536,IF(dati_pdc!$C829=5,dati_bdv!$G$2:$G$65536,dati_bdv!$H$2:$H$65536))))),$A829,dati_bdv!M$2:M$65536)","v":0},{"$f":"SUMIF(IF(dati_pdc!$C829=1,dati_bdv!$C$2:$C$65536,IF(dati_pdc!$C829=2,dati_bdv!$D$2:$D$65536,IF(dati_pdc!$C829=3,dati_bdv!$E$2:$E$65536,IF(dati_pdc!$C829=4,dati_bdv!$F$2:$F$65536,IF(dati_pdc!$C829=5,dati_bdv!$G$2:$G$65536,dati_bdv!$H$2:$H$65536))))),$A829,dati_bdv!N$2:N$65536)","v":0}]
[{"$f":"dati_pdc!A830","v":0},{"$f":"SUMIF(IF(dati_pdc!$C830=1,dati_bdv!$C$2:$C$65536,IF(dati_pdc!$C830=2,dati_bdv!$D$2:$D$65536,IF(dati_pdc!$C830=3,dati_bdv!$E$2:$E$65536,IF(dati_pdc!$C830=4,dati_bdv!$F$2:$F$65536,IF(dati_pdc!$C830=5,dati_bdv!$G$2:$G$65536,dati_bdv!$H$2:$H$65536))))),$A830,dati_bdv!J$2:J$65536)","v":0},{"$f":"SUMIF(IF(dati_pdc!$C830=1,dati_bdv!$C$2:$C$65536,IF(dati_pdc!$C830=2,dati_bdv!$D$2:$D$65536,IF(dati_pdc!$C830=3,dati_bdv!$E$2:$E$65536,IF(dati_pdc!$C830=4,dati_bdv!$F$2:$F$65536,IF(dati_pdc!$C830=5,dati_bdv!$G$2:$G$65536,dati_bdv!$H$2:$H$65536))))),$A830,dati_bdv!K$2:K$65536)","v":0},{"$f":"SUMIF(IF(dati_pdc!$C830=1,dati_bdv!$C$2:$C$65536,IF(dati_pdc!$C830=2,dati_bdv!$D$2:$D$65536,IF(dati_pdc!$C830=3,dati_bdv!$E$2:$E$65536,IF(dati_pdc!$C830=4,dati_bdv!$F$2:$F$65536,IF(dati_pdc!$C830=5,dati_bdv!$G$2:$G$65536,dati_bdv!$H$2:$H$65536))))),$A830,dati_bdv!L$2:L$65536)","v":0},{"$f":"SUMIF(IF(dati_pdc!$C830=1,dati_bdv!$C$2:$C$65536,IF(dati_pdc!$C830=2,dati_bdv!$D$2:$D$65536,IF(dati_pdc!$C830=3,dati_bdv!$E$2:$E$65536,IF(dati_pdc!$C830=4,dati_bdv!$F$2:$F$65536,IF(dati_pdc!$C830=5,dati_bdv!$G$2:$G$65536,dati_bdv!$H$2:$H$65536))))),$A830,dati_bdv!M$2:M$65536)","v":0},{"$f":"SUMIF(IF(dati_pdc!$C830=1,dati_bdv!$C$2:$C$65536,IF(dati_pdc!$C830=2,dati_bdv!$D$2:$D$65536,IF(dati_pdc!$C830=3,dati_bdv!$E$2:$E$65536,IF(dati_pdc!$C830=4,dati_bdv!$F$2:$F$65536,IF(dati_pdc!$C830=5,dati_bdv!$G$2:$G$65536,dati_bdv!$H$2:$H$65536))))),$A830,dati_bdv!N$2:N$65536)","v":0}]
[{"$f":"dati_pdc!A831","v":0},{"$f":"SUMIF(IF(dati_pdc!$C831=1,dati_bdv!$C$2:$C$65536,IF(dati_pdc!$C831=2,dati_bdv!$D$2:$D$65536,IF(dati_pdc!$C831=3,dati_bdv!$E$2:$E$65536,IF(dati_pdc!$C831=4,dati_bdv!$F$2:$F$65536,IF(dati_pdc!$C831=5,dati_bdv!$G$2:$G$65536,dati_bdv!$H$2:$H$65536))))),$A831,dati_bdv!J$2:J$65536)","v":0},{"$f":"SUMIF(IF(dati_pdc!$C831=1,dati_bdv!$C$2:$C$65536,IF(dati_pdc!$C831=2,dati_bdv!$D$2:$D$65536,IF(dati_pdc!$C831=3,dati_bdv!$E$2:$E$65536,IF(dati_pdc!$C831=4,dati_bdv!$F$2:$F$65536,IF(dati_pdc!$C831=5,dati_bdv!$G$2:$G$65536,dati_bdv!$H$2:$H$65536))))),$A831,dati_bdv!K$2:K$65536)","v":0},{"$f":"SUMIF(IF(dati_pdc!$C831=1,dati_bdv!$C$2:$C$65536,IF(dati_pdc!$C831=2,dati_bdv!$D$2:$D$65536,IF(dati_pdc!$C831=3,dati_bdv!$E$2:$E$65536,IF(dati_pdc!$C831=4,dati_bdv!$F$2:$F$65536,IF(dati_pdc!$C831=5,dati_bdv!$G$2:$G$65536,dati_bdv!$H$2:$H$65536))))),$A831,dati_bdv!L$2:L$65536)","v":0},{"$f":"SUMIF(IF(dati_pdc!$C831=1,dati_bdv!$C$2:$C$65536,IF(dati_pdc!$C831=2,dati_bdv!$D$2:$D$65536,IF(dati_pdc!$C831=3,dati_bdv!$E$2:$E$65536,IF(dati_pdc!$C831=4,dati_bdv!$F$2:$F$65536,IF(dati_pdc!$C831=5,dati_bdv!$G$2:$G$65536,dati_bdv!$H$2:$H$65536))))),$A831,dati_bdv!M$2:M$65536)","v":0},{"$f":"SUMIF(IF(dati_pdc!$C831=1,dati_bdv!$C$2:$C$65536,IF(dati_pdc!$C831=2,dati_bdv!$D$2:$D$65536,IF(dati_pdc!$C831=3,dati_bdv!$E$2:$E$65536,IF(dati_pdc!$C831=4,dati_bdv!$F$2:$F$65536,IF(dati_pdc!$C831=5,dati_bdv!$G$2:$G$65536,dati_bdv!$H$2:$H$65536))))),$A831,dati_bdv!N$2:N$65536)","v":0}]
[{"$f":"dati_pdc!A832","v":0},{"$f":"SUMIF(IF(dati_pdc!$C832=1,dati_bdv!$C$2:$C$65536,IF(dati_pdc!$C832=2,dati_bdv!$D$2:$D$65536,IF(dati_pdc!$C832=3,dati_bdv!$E$2:$E$65536,IF(dati_pdc!$C832=4,dati_bdv!$F$2:$F$65536,IF(dati_pdc!$C832=5,dati_bdv!$G$2:$G$65536,dati_bdv!$H$2:$H$65536))))),$A832,dati_bdv!J$2:J$65536)","v":0},{"$f":"SUMIF(IF(dati_pdc!$C832=1,dati_bdv!$C$2:$C$65536,IF(dati_pdc!$C832=2,dati_bdv!$D$2:$D$65536,IF(dati_pdc!$C832=3,dati_bdv!$E$2:$E$65536,IF(dati_pdc!$C832=4,dati_bdv!$F$2:$F$65536,IF(dati_pdc!$C832=5,dati_bdv!$G$2:$G$65536,dati_bdv!$H$2:$H$65536))))),$A832,dati_bdv!K$2:K$65536)","v":0},{"$f":"SUMIF(IF(dati_pdc!$C832=1,dati_bdv!$C$2:$C$65536,IF(dati_pdc!$C832=2,dati_bdv!$D$2:$D$65536,IF(dati_pdc!$C832=3,dati_bdv!$E$2:$E$65536,IF(dati_pdc!$C832=4,dati_bdv!$F$2:$F$65536,IF(dati_pdc!$C832=5,dati_bdv!$G$2:$G$65536,dati_bdv!$H$2:$H$65536))))),$A832,dati_bdv!L$2:L$65536)","v":0},{"$f":"SUMIF(IF(dati_pdc!$C832=1,dati_bdv!$C$2:$C$65536,IF(dati_pdc!$C832=2,dati_bdv!$D$2:$D$65536,IF(dati_pdc!$C832=3,dati_bdv!$E$2:$E$65536,IF(dati_pdc!$C832=4,dati_bdv!$F$2:$F$65536,IF(dati_pdc!$C832=5,dati_bdv!$G$2:$G$65536,dati_bdv!$H$2:$H$65536))))),$A832,dati_bdv!M$2:M$65536)","v":0},{"$f":"SUMIF(IF(dati_pdc!$C832=1,dati_bdv!$C$2:$C$65536,IF(dati_pdc!$C832=2,dati_bdv!$D$2:$D$65536,IF(dati_pdc!$C832=3,dati_bdv!$E$2:$E$65536,IF(dati_pdc!$C832=4,dati_bdv!$F$2:$F$65536,IF(dati_pdc!$C832=5,dati_bdv!$G$2:$G$65536,dati_bdv!$H$2:$H$65536))))),$A832,dati_bdv!N$2:N$65536)","v":0}]
[{"$f":"dati_pdc!A833","v":0},{"$f":"SUMIF(IF(dati_pdc!$C833=1,dati_bdv!$C$2:$C$65536,IF(dati_pdc!$C833=2,dati_bdv!$D$2:$D$65536,IF(dati_pdc!$C833=3,dati_bdv!$E$2:$E$65536,IF(dati_pdc!$C833=4,dati_bdv!$F$2:$F$65536,IF(dati_pdc!$C833=5,dati_bdv!$G$2:$G$65536,dati_bdv!$H$2:$H$65536))))),$A833,dati_bdv!J$2:J$65536)","v":0},{"$f":"SUMIF(IF(dati_pdc!$C833=1,dati_bdv!$C$2:$C$65536,IF(dati_pdc!$C833=2,dati_bdv!$D$2:$D$65536,IF(dati_pdc!$C833=3,dati_bdv!$E$2:$E$65536,IF(dati_pdc!$C833=4,dati_bdv!$F$2:$F$65536,IF(dati_pdc!$C833=5,dati_bdv!$G$2:$G$65536,dati_bdv!$H$2:$H$65536))))),$A833,dati_bdv!K$2:K$65536)","v":0},{"$f":"SUMIF(IF(dati_pdc!$C833=1,dati_bdv!$C$2:$C$65536,IF(dati_pdc!$C833=2,dati_bdv!$D$2:$D$65536,IF(dati_pdc!$C833=3,dati_bdv!$E$2:$E$65536,IF(dati_pdc!$C833=4,dati_bdv!$F$2:$F$65536,IF(dati_pdc!$C833=5,dati_bdv!$G$2:$G$65536,dati_bdv!$H$2:$H$65536))))),$A833,dati_bdv!L$2:L$65536)","v":0},{"$f":"SUMIF(IF(dati_pdc!$C833=1,dati_bdv!$C$2:$C$65536,IF(dati_pdc!$C833=2,dati_bdv!$D$2:$D$65536,IF(dati_pdc!$C833=3,dati_bdv!$E$2:$E$65536,IF(dati_pdc!$C833=4,dati_bdv!$F$2:$F$65536,IF(dati_pdc!$C833=5,dati_bdv!$G$2:$G$65536,dati_bdv!$H$2:$H$65536))))),$A833,dati_bdv!M$2:M$65536)","v":0},{"$f":"SUMIF(IF(dati_pdc!$C833=1,dati_bdv!$C$2:$C$65536,IF(dati_pdc!$C833=2,dati_bdv!$D$2:$D$65536,IF(dati_pdc!$C833=3,dati_bdv!$E$2:$E$65536,IF(dati_pdc!$C833=4,dati_bdv!$F$2:$F$65536,IF(dati_pdc!$C833=5,dati_bdv!$G$2:$G$65536,dati_bdv!$H$2:$H$65536))))),$A833,dati_bdv!N$2:N$65536)","v":0}]
[{"$f":"dati_pdc!A834","v":0},{"$f":"SUMIF(IF(dati_pdc!$C834=1,dati_bdv!$C$2:$C$65536,IF(dati_pdc!$C834=2,dati_bdv!$D$2:$D$65536,IF(dati_pdc!$C834=3,dati_bdv!$E$2:$E$65536,IF(dati_pdc!$C834=4,dati_bdv!$F$2:$F$65536,IF(dati_pdc!$C834=5,dati_bdv!$G$2:$G$65536,dati_bdv!$H$2:$H$65536))))),$A834,dati_bdv!J$2:J$65536)","v":0},{"$f":"SUMIF(IF(dati_pdc!$C834=1,dati_bdv!$C$2:$C$65536,IF(dati_pdc!$C834=2,dati_bdv!$D$2:$D$65536,IF(dati_pdc!$C834=3,dati_bdv!$E$2:$E$65536,IF(dati_pdc!$C834=4,dati_bdv!$F$2:$F$65536,IF(dati_pdc!$C834=5,dati_bdv!$G$2:$G$65536,dati_bdv!$H$2:$H$65536))))),$A834,dati_bdv!K$2:K$65536)","v":0},{"$f":"SUMIF(IF(dati_pdc!$C834=1,dati_bdv!$C$2:$C$65536,IF(dati_pdc!$C834=2,dati_bdv!$D$2:$D$65536,IF(dati_pdc!$C834=3,dati_bdv!$E$2:$E$65536,IF(dati_pdc!$C834=4,dati_bdv!$F$2:$F$65536,IF(dati_pdc!$C834=5,dati_bdv!$G$2:$G$65536,dati_bdv!$H$2:$H$65536))))),$A834,dati_bdv!L$2:L$65536)","v":0},{"$f":"SUMIF(IF(dati_pdc!$C834=1,dati_bdv!$C$2:$C$65536,IF(dati_pdc!$C834=2,dati_bdv!$D$2:$D$65536,IF(dati_pdc!$C834=3,dati_bdv!$E$2:$E$65536,IF(dati_pdc!$C834=4,dati_bdv!$F$2:$F$65536,IF(dati_pdc!$C834=5,dati_bdv!$G$2:$G$65536,dati_bdv!$H$2:$H$65536))))),$A834,dati_bdv!M$2:M$65536)","v":0},{"$f":"SUMIF(IF(dati_pdc!$C834=1,dati_bdv!$C$2:$C$65536,IF(dati_pdc!$C834=2,dati_bdv!$D$2:$D$65536,IF(dati_pdc!$C834=3,dati_bdv!$E$2:$E$65536,IF(dati_pdc!$C834=4,dati_bdv!$F$2:$F$65536,IF(dati_pdc!$C834=5,dati_bdv!$G$2:$G$65536,dati_bdv!$H$2:$H$65536))))),$A834,dati_bdv!N$2:N$65536)","v":0}]
[{"$f":"dati_pdc!A835","v":0},{"$f":"SUMIF(IF(dati_pdc!$C835=1,dati_bdv!$C$2:$C$65536,IF(dati_pdc!$C835=2,dati_bdv!$D$2:$D$65536,IF(dati_pdc!$C835=3,dati_bdv!$E$2:$E$65536,IF(dati_pdc!$C835=4,dati_bdv!$F$2:$F$65536,IF(dati_pdc!$C835=5,dati_bdv!$G$2:$G$65536,dati_bdv!$H$2:$H$65536))))),$A835,dati_bdv!J$2:J$65536)","v":0},{"$f":"SUMIF(IF(dati_pdc!$C835=1,dati_bdv!$C$2:$C$65536,IF(dati_pdc!$C835=2,dati_bdv!$D$2:$D$65536,IF(dati_pdc!$C835=3,dati_bdv!$E$2:$E$65536,IF(dati_pdc!$C835=4,dati_bdv!$F$2:$F$65536,IF(dati_pdc!$C835=5,dati_bdv!$G$2:$G$65536,dati_bdv!$H$2:$H$65536))))),$A835,dati_bdv!K$2:K$65536)","v":0},{"$f":"SUMIF(IF(dati_pdc!$C835=1,dati_bdv!$C$2:$C$65536,IF(dati_pdc!$C835=2,dati_bdv!$D$2:$D$65536,IF(dati_pdc!$C835=3,dati_bdv!$E$2:$E$65536,IF(dati_pdc!$C835=4,dati_bdv!$F$2:$F$65536,IF(dati_pdc!$C835=5,dati_bdv!$G$2:$G$65536,dati_bdv!$H$2:$H$65536))))),$A835,dati_bdv!L$2:L$65536)","v":0},{"$f":"SUMIF(IF(dati_pdc!$C835=1,dati_bdv!$C$2:$C$65536,IF(dati_pdc!$C835=2,dati_bdv!$D$2:$D$65536,IF(dati_pdc!$C835=3,dati_bdv!$E$2:$E$65536,IF(dati_pdc!$C835=4,dati_bdv!$F$2:$F$65536,IF(dati_pdc!$C835=5,dati_bdv!$G$2:$G$65536,dati_bdv!$H$2:$H$65536))))),$A835,dati_bdv!M$2:M$65536)","v":0},{"$f":"SUMIF(IF(dati_pdc!$C835=1,dati_bdv!$C$2:$C$65536,IF(dati_pdc!$C835=2,dati_bdv!$D$2:$D$65536,IF(dati_pdc!$C835=3,dati_bdv!$E$2:$E$65536,IF(dati_pdc!$C835=4,dati_bdv!$F$2:$F$65536,IF(dati_pdc!$C835=5,dati_bdv!$G$2:$G$65536,dati_bdv!$H$2:$H$65536))))),$A835,dati_bdv!N$2:N$65536)","v":0}]
[{"$f":"dati_pdc!A836","v":0},{"$f":"SUMIF(IF(dati_pdc!$C836=1,dati_bdv!$C$2:$C$65536,IF(dati_pdc!$C836=2,dati_bdv!$D$2:$D$65536,IF(dati_pdc!$C836=3,dati_bdv!$E$2:$E$65536,IF(dati_pdc!$C836=4,dati_bdv!$F$2:$F$65536,IF(dati_pdc!$C836=5,dati_bdv!$G$2:$G$65536,dati_bdv!$H$2:$H$65536))))),$A836,dati_bdv!J$2:J$65536)","v":0},{"$f":"SUMIF(IF(dati_pdc!$C836=1,dati_bdv!$C$2:$C$65536,IF(dati_pdc!$C836=2,dati_bdv!$D$2:$D$65536,IF(dati_pdc!$C836=3,dati_bdv!$E$2:$E$65536,IF(dati_pdc!$C836=4,dati_bdv!$F$2:$F$65536,IF(dati_pdc!$C836=5,dati_bdv!$G$2:$G$65536,dati_bdv!$H$2:$H$65536))))),$A836,dati_bdv!K$2:K$65536)","v":0},{"$f":"SUMIF(IF(dati_pdc!$C836=1,dati_bdv!$C$2:$C$65536,IF(dati_pdc!$C836=2,dati_bdv!$D$2:$D$65536,IF(dati_pdc!$C836=3,dati_bdv!$E$2:$E$65536,IF(dati_pdc!$C836=4,dati_bdv!$F$2:$F$65536,IF(dati_pdc!$C836=5,dati_bdv!$G$2:$G$65536,dati_bdv!$H$2:$H$65536))))),$A836,dati_bdv!L$2:L$65536)","v":0},{"$f":"SUMIF(IF(dati_pdc!$C836=1,dati_bdv!$C$2:$C$65536,IF(dati_pdc!$C836=2,dati_bdv!$D$2:$D$65536,IF(dati_pdc!$C836=3,dati_bdv!$E$2:$E$65536,IF(dati_pdc!$C836=4,dati_bdv!$F$2:$F$65536,IF(dati_pdc!$C836=5,dati_bdv!$G$2:$G$65536,dati_bdv!$H$2:$H$65536))))),$A836,dati_bdv!M$2:M$65536)","v":0},{"$f":"SUMIF(IF(dati_pdc!$C836=1,dati_bdv!$C$2:$C$65536,IF(dati_pdc!$C836=2,dati_bdv!$D$2:$D$65536,IF(dati_pdc!$C836=3,dati_bdv!$E$2:$E$65536,IF(dati_pdc!$C836=4,dati_bdv!$F$2:$F$65536,IF(dati_pdc!$C836=5,dati_bdv!$G$2:$G$65536,dati_bdv!$H$2:$H$65536))))),$A836,dati_bdv!N$2:N$65536)","v":0}]
[{"$f":"dati_pdc!A837","v":0},{"$f":"SUMIF(IF(dati_pdc!$C837=1,dati_bdv!$C$2:$C$65536,IF(dati_pdc!$C837=2,dati_bdv!$D$2:$D$65536,IF(dati_pdc!$C837=3,dati_bdv!$E$2:$E$65536,IF(dati_pdc!$C837=4,dati_bdv!$F$2:$F$65536,IF(dati_pdc!$C837=5,dati_bdv!$G$2:$G$65536,dati_bdv!$H$2:$H$65536))))),$A837,dati_bdv!J$2:J$65536)","v":0},{"$f":"SUMIF(IF(dati_pdc!$C837=1,dati_bdv!$C$2:$C$65536,IF(dati_pdc!$C837=2,dati_bdv!$D$2:$D$65536,IF(dati_pdc!$C837=3,dati_bdv!$E$2:$E$65536,IF(dati_pdc!$C837=4,dati_bdv!$F$2:$F$65536,IF(dati_pdc!$C837=5,dati_bdv!$G$2:$G$65536,dati_bdv!$H$2:$H$65536))))),$A837,dati_bdv!K$2:K$65536)","v":0},{"$f":"SUMIF(IF(dati_pdc!$C837=1,dati_bdv!$C$2:$C$65536,IF(dati_pdc!$C837=2,dati_bdv!$D$2:$D$65536,IF(dati_pdc!$C837=3,dati_bdv!$E$2:$E$65536,IF(dati_pdc!$C837=4,dati_bdv!$F$2:$F$65536,IF(dati_pdc!$C837=5,dati_bdv!$G$2:$G$65536,dati_bdv!$H$2:$H$65536))))),$A837,dati_bdv!L$2:L$65536)","v":0},{"$f":"SUMIF(IF(dati_pdc!$C837=1,dati_bdv!$C$2:$C$65536,IF(dati_pdc!$C837=2,dati_bdv!$D$2:$D$65536,IF(dati_pdc!$C837=3,dati_bdv!$E$2:$E$65536,IF(dati_pdc!$C837=4,dati_bdv!$F$2:$F$65536,IF(dati_pdc!$C837=5,dati_bdv!$G$2:$G$65536,dati_bdv!$H$2:$H$65536))))),$A837,dati_bdv!M$2:M$65536)","v":0},{"$f":"SUMIF(IF(dati_pdc!$C837=1,dati_bdv!$C$2:$C$65536,IF(dati_pdc!$C837=2,dati_bdv!$D$2:$D$65536,IF(dati_pdc!$C837=3,dati_bdv!$E$2:$E$65536,IF(dati_pdc!$C837=4,dati_bdv!$F$2:$F$65536,IF(dati_pdc!$C837=5,dati_bdv!$G$2:$G$65536,dati_bdv!$H$2:$H$65536))))),$A837,dati_bdv!N$2:N$65536)","v":0}]
[{"$f":"dati_pdc!A838","v":0},{"$f":"SUMIF(IF(dati_pdc!$C838=1,dati_bdv!$C$2:$C$65536,IF(dati_pdc!$C838=2,dati_bdv!$D$2:$D$65536,IF(dati_pdc!$C838=3,dati_bdv!$E$2:$E$65536,IF(dati_pdc!$C838=4,dati_bdv!$F$2:$F$65536,IF(dati_pdc!$C838=5,dati_bdv!$G$2:$G$65536,dati_bdv!$H$2:$H$65536))))),$A838,dati_bdv!J$2:J$65536)","v":0},{"$f":"SUMIF(IF(dati_pdc!$C838=1,dati_bdv!$C$2:$C$65536,IF(dati_pdc!$C838=2,dati_bdv!$D$2:$D$65536,IF(dati_pdc!$C838=3,dati_bdv!$E$2:$E$65536,IF(dati_pdc!$C838=4,dati_bdv!$F$2:$F$65536,IF(dati_pdc!$C838=5,dati_bdv!$G$2:$G$65536,dati_bdv!$H$2:$H$65536))))),$A838,dati_bdv!K$2:K$65536)","v":0},{"$f":"SUMIF(IF(dati_pdc!$C838=1,dati_bdv!$C$2:$C$65536,IF(dati_pdc!$C838=2,dati_bdv!$D$2:$D$65536,IF(dati_pdc!$C838=3,dati_bdv!$E$2:$E$65536,IF(dati_pdc!$C838=4,dati_bdv!$F$2:$F$65536,IF(dati_pdc!$C838=5,dati_bdv!$G$2:$G$65536,dati_bdv!$H$2:$H$65536))))),$A838,dati_bdv!L$2:L$65536)","v":0},{"$f":"SUMIF(IF(dati_pdc!$C838=1,dati_bdv!$C$2:$C$65536,IF(dati_pdc!$C838=2,dati_bdv!$D$2:$D$65536,IF(dati_pdc!$C838=3,dati_bdv!$E$2:$E$65536,IF(dati_pdc!$C838=4,dati_bdv!$F$2:$F$65536,IF(dati_pdc!$C838=5,dati_bdv!$G$2:$G$65536,dati_bdv!$H$2:$H$65536))))),$A838,dati_bdv!M$2:M$65536)","v":0},{"$f":"SUMIF(IF(dati_pdc!$C838=1,dati_bdv!$C$2:$C$65536,IF(dati_pdc!$C838=2,dati_bdv!$D$2:$D$65536,IF(dati_pdc!$C838=3,dati_bdv!$E$2:$E$65536,IF(dati_pdc!$C838=4,dati_bdv!$F$2:$F$65536,IF(dati_pdc!$C838=5,dati_bdv!$G$2:$G$65536,dati_bdv!$H$2:$H$65536))))),$A838,dati_bdv!N$2:N$65536)","v":0}]
[{"$f":"dati_pdc!A839","v":0},{"$f":"SUMIF(IF(dati_pdc!$C839=1,dati_bdv!$C$2:$C$65536,IF(dati_pdc!$C839=2,dati_bdv!$D$2:$D$65536,IF(dati_pdc!$C839=3,dati_bdv!$E$2:$E$65536,IF(dati_pdc!$C839=4,dati_bdv!$F$2:$F$65536,IF(dati_pdc!$C839=5,dati_bdv!$G$2:$G$65536,dati_bdv!$H$2:$H$65536))))),$A839,dati_bdv!J$2:J$65536)","v":0},{"$f":"SUMIF(IF(dati_pdc!$C839=1,dati_bdv!$C$2:$C$65536,IF(dati_pdc!$C839=2,dati_bdv!$D$2:$D$65536,IF(dati_pdc!$C839=3,dati_bdv!$E$2:$E$65536,IF(dati_pdc!$C839=4,dati_bdv!$F$2:$F$65536,IF(dati_pdc!$C839=5,dati_bdv!$G$2:$G$65536,dati_bdv!$H$2:$H$65536))))),$A839,dati_bdv!K$2:K$65536)","v":0},{"$f":"SUMIF(IF(dati_pdc!$C839=1,dati_bdv!$C$2:$C$65536,IF(dati_pdc!$C839=2,dati_bdv!$D$2:$D$65536,IF(dati_pdc!$C839=3,dati_bdv!$E$2:$E$65536,IF(dati_pdc!$C839=4,dati_bdv!$F$2:$F$65536,IF(dati_pdc!$C839=5,dati_bdv!$G$2:$G$65536,dati_bdv!$H$2:$H$65536))))),$A839,dati_bdv!L$2:L$65536)","v":0},{"$f":"SUMIF(IF(dati_pdc!$C839=1,dati_bdv!$C$2:$C$65536,IF(dati_pdc!$C839=2,dati_bdv!$D$2:$D$65536,IF(dati_pdc!$C839=3,dati_bdv!$E$2:$E$65536,IF(dati_pdc!$C839=4,dati_bdv!$F$2:$F$65536,IF(dati_pdc!$C839=5,dati_bdv!$G$2:$G$65536,dati_bdv!$H$2:$H$65536))))),$A839,dati_bdv!M$2:M$65536)","v":0},{"$f":"SUMIF(IF(dati_pdc!$C839=1,dati_bdv!$C$2:$C$65536,IF(dati_pdc!$C839=2,dati_bdv!$D$2:$D$65536,IF(dati_pdc!$C839=3,dati_bdv!$E$2:$E$65536,IF(dati_pdc!$C839=4,dati_bdv!$F$2:$F$65536,IF(dati_pdc!$C839=5,dati_bdv!$G$2:$G$65536,dati_bdv!$H$2:$H$65536))))),$A839,dati_bdv!N$2:N$65536)","v":0}]
[{"$f":"dati_pdc!A840","v":0},{"$f":"SUMIF(IF(dati_pdc!$C840=1,dati_bdv!$C$2:$C$65536,IF(dati_pdc!$C840=2,dati_bdv!$D$2:$D$65536,IF(dati_pdc!$C840=3,dati_bdv!$E$2:$E$65536,IF(dati_pdc!$C840=4,dati_bdv!$F$2:$F$65536,IF(dati_pdc!$C840=5,dati_bdv!$G$2:$G$65536,dati_bdv!$H$2:$H$65536))))),$A840,dati_bdv!J$2:J$65536)","v":0},{"$f":"SUMIF(IF(dati_pdc!$C840=1,dati_bdv!$C$2:$C$65536,IF(dati_pdc!$C840=2,dati_bdv!$D$2:$D$65536,IF(dati_pdc!$C840=3,dati_bdv!$E$2:$E$65536,IF(dati_pdc!$C840=4,dati_bdv!$F$2:$F$65536,IF(dati_pdc!$C840=5,dati_bdv!$G$2:$G$65536,dati_bdv!$H$2:$H$65536))))),$A840,dati_bdv!K$2:K$65536)","v":0},{"$f":"SUMIF(IF(dati_pdc!$C840=1,dati_bdv!$C$2:$C$65536,IF(dati_pdc!$C840=2,dati_bdv!$D$2:$D$65536,IF(dati_pdc!$C840=3,dati_bdv!$E$2:$E$65536,IF(dati_pdc!$C840=4,dati_bdv!$F$2:$F$65536,IF(dati_pdc!$C840=5,dati_bdv!$G$2:$G$65536,dati_bdv!$H$2:$H$65536))))),$A840,dati_bdv!L$2:L$65536)","v":0},{"$f":"SUMIF(IF(dati_pdc!$C840=1,dati_bdv!$C$2:$C$65536,IF(dati_pdc!$C840=2,dati_bdv!$D$2:$D$65536,IF(dati_pdc!$C840=3,dati_bdv!$E$2:$E$65536,IF(dati_pdc!$C840=4,dati_bdv!$F$2:$F$65536,IF(dati_pdc!$C840=5,dati_bdv!$G$2:$G$65536,dati_bdv!$H$2:$H$65536))))),$A840,dati_bdv!M$2:M$65536)","v":0},{"$f":"SUMIF(IF(dati_pdc!$C840=1,dati_bdv!$C$2:$C$65536,IF(dati_pdc!$C840=2,dati_bdv!$D$2:$D$65536,IF(dati_pdc!$C840=3,dati_bdv!$E$2:$E$65536,IF(dati_pdc!$C840=4,dati_bdv!$F$2:$F$65536,IF(dati_pdc!$C840=5,dati_bdv!$G$2:$G$65536,dati_bdv!$H$2:$H$65536))))),$A840,dati_bdv!N$2:N$65536)","v":0}]
[{"$f":"dati_pdc!A841","v":0},{"$f":"SUMIF(IF(dati_pdc!$C841=1,dati_bdv!$C$2:$C$65536,IF(dati_pdc!$C841=2,dati_bdv!$D$2:$D$65536,IF(dati_pdc!$C841=3,dati_bdv!$E$2:$E$65536,IF(dati_pdc!$C841=4,dati_bdv!$F$2:$F$65536,IF(dati_pdc!$C841=5,dati_bdv!$G$2:$G$65536,dati_bdv!$H$2:$H$65536))))),$A841,dati_bdv!J$2:J$65536)","v":0},{"$f":"SUMIF(IF(dati_pdc!$C841=1,dati_bdv!$C$2:$C$65536,IF(dati_pdc!$C841=2,dati_bdv!$D$2:$D$65536,IF(dati_pdc!$C841=3,dati_bdv!$E$2:$E$65536,IF(dati_pdc!$C841=4,dati_bdv!$F$2:$F$65536,IF(dati_pdc!$C841=5,dati_bdv!$G$2:$G$65536,dati_bdv!$H$2:$H$65536))))),$A841,dati_bdv!K$2:K$65536)","v":0},{"$f":"SUMIF(IF(dati_pdc!$C841=1,dati_bdv!$C$2:$C$65536,IF(dati_pdc!$C841=2,dati_bdv!$D$2:$D$65536,IF(dati_pdc!$C841=3,dati_bdv!$E$2:$E$65536,IF(dati_pdc!$C841=4,dati_bdv!$F$2:$F$65536,IF(dati_pdc!$C841=5,dati_bdv!$G$2:$G$65536,dati_bdv!$H$2:$H$65536))))),$A841,dati_bdv!L$2:L$65536)","v":0},{"$f":"SUMIF(IF(dati_pdc!$C841=1,dati_bdv!$C$2:$C$65536,IF(dati_pdc!$C841=2,dati_bdv!$D$2:$D$65536,IF(dati_pdc!$C841=3,dati_bdv!$E$2:$E$65536,IF(dati_pdc!$C841=4,dati_bdv!$F$2:$F$65536,IF(dati_pdc!$C841=5,dati_bdv!$G$2:$G$65536,dati_bdv!$H$2:$H$65536))))),$A841,dati_bdv!M$2:M$65536)","v":0},{"$f":"SUMIF(IF(dati_pdc!$C841=1,dati_bdv!$C$2:$C$65536,IF(dati_pdc!$C841=2,dati_bdv!$D$2:$D$65536,IF(dati_pdc!$C841=3,dati_bdv!$E$2:$E$65536,IF(dati_pdc!$C841=4,dati_bdv!$F$2:$F$65536,IF(dati_pdc!$C841=5,dati_bdv!$G$2:$G$65536,dati_bdv!$H$2:$H$65536))))),$A841,dati_bdv!N$2:N$65536)","v":0}]
[{"$f":"dati_pdc!A842","v":0},{"$f":"SUMIF(IF(dati_pdc!$C842=1,dati_bdv!$C$2:$C$65536,IF(dati_pdc!$C842=2,dati_bdv!$D$2:$D$65536,IF(dati_pdc!$C842=3,dati_bdv!$E$2:$E$65536,IF(dati_pdc!$C842=4,dati_bdv!$F$2:$F$65536,IF(dati_pdc!$C842=5,dati_bdv!$G$2:$G$65536,dati_bdv!$H$2:$H$65536))))),$A842,dati_bdv!J$2:J$65536)","v":0},{"$f":"SUMIF(IF(dati_pdc!$C842=1,dati_bdv!$C$2:$C$65536,IF(dati_pdc!$C842=2,dati_bdv!$D$2:$D$65536,IF(dati_pdc!$C842=3,dati_bdv!$E$2:$E$65536,IF(dati_pdc!$C842=4,dati_bdv!$F$2:$F$65536,IF(dati_pdc!$C842=5,dati_bdv!$G$2:$G$65536,dati_bdv!$H$2:$H$65536))))),$A842,dati_bdv!K$2:K$65536)","v":0},{"$f":"SUMIF(IF(dati_pdc!$C842=1,dati_bdv!$C$2:$C$65536,IF(dati_pdc!$C842=2,dati_bdv!$D$2:$D$65536,IF(dati_pdc!$C842=3,dati_bdv!$E$2:$E$65536,IF(dati_pdc!$C842=4,dati_bdv!$F$2:$F$65536,IF(dati_pdc!$C842=5,dati_bdv!$G$2:$G$65536,dati_bdv!$H$2:$H$65536))))),$A842,dati_bdv!L$2:L$65536)","v":0},{"$f":"SUMIF(IF(dati_pdc!$C842=1,dati_bdv!$C$2:$C$65536,IF(dati_pdc!$C842=2,dati_bdv!$D$2:$D$65536,IF(dati_pdc!$C842=3,dati_bdv!$E$2:$E$65536,IF(dati_pdc!$C842=4,dati_bdv!$F$2:$F$65536,IF(dati_pdc!$C842=5,dati_bdv!$G$2:$G$65536,dati_bdv!$H$2:$H$65536))))),$A842,dati_bdv!M$2:M$65536)","v":0},{"$f":"SUMIF(IF(dati_pdc!$C842=1,dati_bdv!$C$2:$C$65536,IF(dati_pdc!$C842=2,dati_bdv!$D$2:$D$65536,IF(dati_pdc!$C842=3,dati_bdv!$E$2:$E$65536,IF(dati_pdc!$C842=4,dati_bdv!$F$2:$F$65536,IF(dati_pdc!$C842=5,dati_bdv!$G$2:$G$65536,dati_bdv!$H$2:$H$65536))))),$A842,dati_bdv!N$2:N$65536)","v":0}]
[{"$f":"dati_pdc!A843","v":0},{"$f":"SUMIF(IF(dati_pdc!$C843=1,dati_bdv!$C$2:$C$65536,IF(dati_pdc!$C843=2,dati_bdv!$D$2:$D$65536,IF(dati_pdc!$C843=3,dati_bdv!$E$2:$E$65536,IF(dati_pdc!$C843=4,dati_bdv!$F$2:$F$65536,IF(dati_pdc!$C843=5,dati_bdv!$G$2:$G$65536,dati_bdv!$H$2:$H$65536))))),$A843,dati_bdv!J$2:J$65536)","v":0},{"$f":"SUMIF(IF(dati_pdc!$C843=1,dati_bdv!$C$2:$C$65536,IF(dati_pdc!$C843=2,dati_bdv!$D$2:$D$65536,IF(dati_pdc!$C843=3,dati_bdv!$E$2:$E$65536,IF(dati_pdc!$C843=4,dati_bdv!$F$2:$F$65536,IF(dati_pdc!$C843=5,dati_bdv!$G$2:$G$65536,dati_bdv!$H$2:$H$65536))))),$A843,dati_bdv!K$2:K$65536)","v":0},{"$f":"SUMIF(IF(dati_pdc!$C843=1,dati_bdv!$C$2:$C$65536,IF(dati_pdc!$C843=2,dati_bdv!$D$2:$D$65536,IF(dati_pdc!$C843=3,dati_bdv!$E$2:$E$65536,IF(dati_pdc!$C843=4,dati_bdv!$F$2:$F$65536,IF(dati_pdc!$C843=5,dati_bdv!$G$2:$G$65536,dati_bdv!$H$2:$H$65536))))),$A843,dati_bdv!L$2:L$65536)","v":0},{"$f":"SUMIF(IF(dati_pdc!$C843=1,dati_bdv!$C$2:$C$65536,IF(dati_pdc!$C843=2,dati_bdv!$D$2:$D$65536,IF(dati_pdc!$C843=3,dati_bdv!$E$2:$E$65536,IF(dati_pdc!$C843=4,dati_bdv!$F$2:$F$65536,IF(dati_pdc!$C843=5,dati_bdv!$G$2:$G$65536,dati_bdv!$H$2:$H$65536))))),$A843,dati_bdv!M$2:M$65536)","v":0},{"$f":"SUMIF(IF(dati_pdc!$C843=1,dati_bdv!$C$2:$C$65536,IF(dati_pdc!$C843=2,dati_bdv!$D$2:$D$65536,IF(dati_pdc!$C843=3,dati_bdv!$E$2:$E$65536,IF(dati_pdc!$C843=4,dati_bdv!$F$2:$F$65536,IF(dati_pdc!$C843=5,dati_bdv!$G$2:$G$65536,dati_bdv!$H$2:$H$65536))))),$A843,dati_bdv!N$2:N$65536)","v":0}]
[{"$f":"dati_pdc!A844","v":0},{"$f":"SUMIF(IF(dati_pdc!$C844=1,dati_bdv!$C$2:$C$65536,IF(dati_pdc!$C844=2,dati_bdv!$D$2:$D$65536,IF(dati_pdc!$C844=3,dati_bdv!$E$2:$E$65536,IF(dati_pdc!$C844=4,dati_bdv!$F$2:$F$65536,IF(dati_pdc!$C844=5,dati_bdv!$G$2:$G$65536,dati_bdv!$H$2:$H$65536))))),$A844,dati_bdv!J$2:J$65536)","v":0},{"$f":"SUMIF(IF(dati_pdc!$C844=1,dati_bdv!$C$2:$C$65536,IF(dati_pdc!$C844=2,dati_bdv!$D$2:$D$65536,IF(dati_pdc!$C844=3,dati_bdv!$E$2:$E$65536,IF(dati_pdc!$C844=4,dati_bdv!$F$2:$F$65536,IF(dati_pdc!$C844=5,dati_bdv!$G$2:$G$65536,dati_bdv!$H$2:$H$65536))))),$A844,dati_bdv!K$2:K$65536)","v":0},{"$f":"SUMIF(IF(dati_pdc!$C844=1,dati_bdv!$C$2:$C$65536,IF(dati_pdc!$C844=2,dati_bdv!$D$2:$D$65536,IF(dati_pdc!$C844=3,dati_bdv!$E$2:$E$65536,IF(dati_pdc!$C844=4,dati_bdv!$F$2:$F$65536,IF(dati_pdc!$C844=5,dati_bdv!$G$2:$G$65536,dati_bdv!$H$2:$H$65536))))),$A844,dati_bdv!L$2:L$65536)","v":0},{"$f":"SUMIF(IF(dati_pdc!$C844=1,dati_bdv!$C$2:$C$65536,IF(dati_pdc!$C844=2,dati_bdv!$D$2:$D$65536,IF(dati_pdc!$C844=3,dati_bdv!$E$2:$E$65536,IF(dati_pdc!$C844=4,dati_bdv!$F$2:$F$65536,IF(dati_pdc!$C844=5,dati_bdv!$G$2:$G$65536,dati_bdv!$H$2:$H$65536))))),$A844,dati_bdv!M$2:M$65536)","v":0},{"$f":"SUMIF(IF(dati_pdc!$C844=1,dati_bdv!$C$2:$C$65536,IF(dati_pdc!$C844=2,dati_bdv!$D$2:$D$65536,IF(dati_pdc!$C844=3,dati_bdv!$E$2:$E$65536,IF(dati_pdc!$C844=4,dati_bdv!$F$2:$F$65536,IF(dati_pdc!$C844=5,dati_bdv!$G$2:$G$65536,dati_bdv!$H$2:$H$65536))))),$A844,dati_bdv!N$2:N$65536)","v":0}]
[{"$f":"dati_pdc!A845","v":0},{"$f":"SUMIF(IF(dati_pdc!$C845=1,dati_bdv!$C$2:$C$65536,IF(dati_pdc!$C845=2,dati_bdv!$D$2:$D$65536,IF(dati_pdc!$C845=3,dati_bdv!$E$2:$E$65536,IF(dati_pdc!$C845=4,dati_bdv!$F$2:$F$65536,IF(dati_pdc!$C845=5,dati_bdv!$G$2:$G$65536,dati_bdv!$H$2:$H$65536))))),$A845,dati_bdv!J$2:J$65536)","v":0},{"$f":"SUMIF(IF(dati_pdc!$C845=1,dati_bdv!$C$2:$C$65536,IF(dati_pdc!$C845=2,dati_bdv!$D$2:$D$65536,IF(dati_pdc!$C845=3,dati_bdv!$E$2:$E$65536,IF(dati_pdc!$C845=4,dati_bdv!$F$2:$F$65536,IF(dati_pdc!$C845=5,dati_bdv!$G$2:$G$65536,dati_bdv!$H$2:$H$65536))))),$A845,dati_bdv!K$2:K$65536)","v":0},{"$f":"SUMIF(IF(dati_pdc!$C845=1,dati_bdv!$C$2:$C$65536,IF(dati_pdc!$C845=2,dati_bdv!$D$2:$D$65536,IF(dati_pdc!$C845=3,dati_bdv!$E$2:$E$65536,IF(dati_pdc!$C845=4,dati_bdv!$F$2:$F$65536,IF(dati_pdc!$C845=5,dati_bdv!$G$2:$G$65536,dati_bdv!$H$2:$H$65536))))),$A845,dati_bdv!L$2:L$65536)","v":0},{"$f":"SUMIF(IF(dati_pdc!$C845=1,dati_bdv!$C$2:$C$65536,IF(dati_pdc!$C845=2,dati_bdv!$D$2:$D$65536,IF(dati_pdc!$C845=3,dati_bdv!$E$2:$E$65536,IF(dati_pdc!$C845=4,dati_bdv!$F$2:$F$65536,IF(dati_pdc!$C845=5,dati_bdv!$G$2:$G$65536,dati_bdv!$H$2:$H$65536))))),$A845,dati_bdv!M$2:M$65536)","v":0},{"$f":"SUMIF(IF(dati_pdc!$C845=1,dati_bdv!$C$2:$C$65536,IF(dati_pdc!$C845=2,dati_bdv!$D$2:$D$65536,IF(dati_pdc!$C845=3,dati_bdv!$E$2:$E$65536,IF(dati_pdc!$C845=4,dati_bdv!$F$2:$F$65536,IF(dati_pdc!$C845=5,dati_bdv!$G$2:$G$65536,dati_bdv!$H$2:$H$65536))))),$A845,dati_bdv!N$2:N$65536)","v":0}]
[{"$f":"dati_pdc!A846","v":0},{"$f":"SUMIF(IF(dati_pdc!$C846=1,dati_bdv!$C$2:$C$65536,IF(dati_pdc!$C846=2,dati_bdv!$D$2:$D$65536,IF(dati_pdc!$C846=3,dati_bdv!$E$2:$E$65536,IF(dati_pdc!$C846=4,dati_bdv!$F$2:$F$65536,IF(dati_pdc!$C846=5,dati_bdv!$G$2:$G$65536,dati_bdv!$H$2:$H$65536))))),$A846,dati_bdv!J$2:J$65536)","v":0},{"$f":"SUMIF(IF(dati_pdc!$C846=1,dati_bdv!$C$2:$C$65536,IF(dati_pdc!$C846=2,dati_bdv!$D$2:$D$65536,IF(dati_pdc!$C846=3,dati_bdv!$E$2:$E$65536,IF(dati_pdc!$C846=4,dati_bdv!$F$2:$F$65536,IF(dati_pdc!$C846=5,dati_bdv!$G$2:$G$65536,dati_bdv!$H$2:$H$65536))))),$A846,dati_bdv!K$2:K$65536)","v":0},{"$f":"SUMIF(IF(dati_pdc!$C846=1,dati_bdv!$C$2:$C$65536,IF(dati_pdc!$C846=2,dati_bdv!$D$2:$D$65536,IF(dati_pdc!$C846=3,dati_bdv!$E$2:$E$65536,IF(dati_pdc!$C846=4,dati_bdv!$F$2:$F$65536,IF(dati_pdc!$C846=5,dati_bdv!$G$2:$G$65536,dati_bdv!$H$2:$H$65536))))),$A846,dati_bdv!L$2:L$65536)","v":0},{"$f":"SUMIF(IF(dati_pdc!$C846=1,dati_bdv!$C$2:$C$65536,IF(dati_pdc!$C846=2,dati_bdv!$D$2:$D$65536,IF(dati_pdc!$C846=3,dati_bdv!$E$2:$E$65536,IF(dati_pdc!$C846=4,dati_bdv!$F$2:$F$65536,IF(dati_pdc!$C846=5,dati_bdv!$G$2:$G$65536,dati_bdv!$H$2:$H$65536))))),$A846,dati_bdv!M$2:M$65536)","v":0},{"$f":"SUMIF(IF(dati_pdc!$C846=1,dati_bdv!$C$2:$C$65536,IF(dati_pdc!$C846=2,dati_bdv!$D$2:$D$65536,IF(dati_pdc!$C846=3,dati_bdv!$E$2:$E$65536,IF(dati_pdc!$C846=4,dati_bdv!$F$2:$F$65536,IF(dati_pdc!$C846=5,dati_bdv!$G$2:$G$65536,dati_bdv!$H$2:$H$65536))))),$A846,dati_bdv!N$2:N$65536)","v":0}]
[{"$f":"dati_pdc!A847","v":0},{"$f":"SUMIF(IF(dati_pdc!$C847=1,dati_bdv!$C$2:$C$65536,IF(dati_pdc!$C847=2,dati_bdv!$D$2:$D$65536,IF(dati_pdc!$C847=3,dati_bdv!$E$2:$E$65536,IF(dati_pdc!$C847=4,dati_bdv!$F$2:$F$65536,IF(dati_pdc!$C847=5,dati_bdv!$G$2:$G$65536,dati_bdv!$H$2:$H$65536))))),$A847,dati_bdv!J$2:J$65536)","v":0},{"$f":"SUMIF(IF(dati_pdc!$C847=1,dati_bdv!$C$2:$C$65536,IF(dati_pdc!$C847=2,dati_bdv!$D$2:$D$65536,IF(dati_pdc!$C847=3,dati_bdv!$E$2:$E$65536,IF(dati_pdc!$C847=4,dati_bdv!$F$2:$F$65536,IF(dati_pdc!$C847=5,dati_bdv!$G$2:$G$65536,dati_bdv!$H$2:$H$65536))))),$A847,dati_bdv!K$2:K$65536)","v":0},{"$f":"SUMIF(IF(dati_pdc!$C847=1,dati_bdv!$C$2:$C$65536,IF(dati_pdc!$C847=2,dati_bdv!$D$2:$D$65536,IF(dati_pdc!$C847=3,dati_bdv!$E$2:$E$65536,IF(dati_pdc!$C847=4,dati_bdv!$F$2:$F$65536,IF(dati_pdc!$C847=5,dati_bdv!$G$2:$G$65536,dati_bdv!$H$2:$H$65536))))),$A847,dati_bdv!L$2:L$65536)","v":0},{"$f":"SUMIF(IF(dati_pdc!$C847=1,dati_bdv!$C$2:$C$65536,IF(dati_pdc!$C847=2,dati_bdv!$D$2:$D$65536,IF(dati_pdc!$C847=3,dati_bdv!$E$2:$E$65536,IF(dati_pdc!$C847=4,dati_bdv!$F$2:$F$65536,IF(dati_pdc!$C847=5,dati_bdv!$G$2:$G$65536,dati_bdv!$H$2:$H$65536))))),$A847,dati_bdv!M$2:M$65536)","v":0},{"$f":"SUMIF(IF(dati_pdc!$C847=1,dati_bdv!$C$2:$C$65536,IF(dati_pdc!$C847=2,dati_bdv!$D$2:$D$65536,IF(dati_pdc!$C847=3,dati_bdv!$E$2:$E$65536,IF(dati_pdc!$C847=4,dati_bdv!$F$2:$F$65536,IF(dati_pdc!$C847=5,dati_bdv!$G$2:$G$65536,dati_bdv!$H$2:$H$65536))))),$A847,dati_bdv!N$2:N$65536)","v":0}]
[{"$f":"dati_pdc!A848","v":0},{"$f":"SUMIF(IF(dati_pdc!$C848=1,dati_bdv!$C$2:$C$65536,IF(dati_pdc!$C848=2,dati_bdv!$D$2:$D$65536,IF(dati_pdc!$C848=3,dati_bdv!$E$2:$E$65536,IF(dati_pdc!$C848=4,dati_bdv!$F$2:$F$65536,IF(dati_pdc!$C848=5,dati_bdv!$G$2:$G$65536,dati_bdv!$H$2:$H$65536))))),$A848,dati_bdv!J$2:J$65536)","v":0},{"$f":"SUMIF(IF(dati_pdc!$C848=1,dati_bdv!$C$2:$C$65536,IF(dati_pdc!$C848=2,dati_bdv!$D$2:$D$65536,IF(dati_pdc!$C848=3,dati_bdv!$E$2:$E$65536,IF(dati_pdc!$C848=4,dati_bdv!$F$2:$F$65536,IF(dati_pdc!$C848=5,dati_bdv!$G$2:$G$65536,dati_bdv!$H$2:$H$65536))))),$A848,dati_bdv!K$2:K$65536)","v":0},{"$f":"SUMIF(IF(dati_pdc!$C848=1,dati_bdv!$C$2:$C$65536,IF(dati_pdc!$C848=2,dati_bdv!$D$2:$D$65536,IF(dati_pdc!$C848=3,dati_bdv!$E$2:$E$65536,IF(dati_pdc!$C848=4,dati_bdv!$F$2:$F$65536,IF(dati_pdc!$C848=5,dati_bdv!$G$2:$G$65536,dati_bdv!$H$2:$H$65536))))),$A848,dati_bdv!L$2:L$65536)","v":0},{"$f":"SUMIF(IF(dati_pdc!$C848=1,dati_bdv!$C$2:$C$65536,IF(dati_pdc!$C848=2,dati_bdv!$D$2:$D$65536,IF(dati_pdc!$C848=3,dati_bdv!$E$2:$E$65536,IF(dati_pdc!$C848=4,dati_bdv!$F$2:$F$65536,IF(dati_pdc!$C848=5,dati_bdv!$G$2:$G$65536,dati_bdv!$H$2:$H$65536))))),$A848,dati_bdv!M$2:M$65536)","v":0},{"$f":"SUMIF(IF(dati_pdc!$C848=1,dati_bdv!$C$2:$C$65536,IF(dati_pdc!$C848=2,dati_bdv!$D$2:$D$65536,IF(dati_pdc!$C848=3,dati_bdv!$E$2:$E$65536,IF(dati_pdc!$C848=4,dati_bdv!$F$2:$F$65536,IF(dati_pdc!$C848=5,dati_bdv!$G$2:$G$65536,dati_bdv!$H$2:$H$65536))))),$A848,dati_bdv!N$2:N$65536)","v":0}]
[{"$f":"dati_pdc!A849","v":0},{"$f":"SUMIF(IF(dati_pdc!$C849=1,dati_bdv!$C$2:$C$65536,IF(dati_pdc!$C849=2,dati_bdv!$D$2:$D$65536,IF(dati_pdc!$C849=3,dati_bdv!$E$2:$E$65536,IF(dati_pdc!$C849=4,dati_bdv!$F$2:$F$65536,IF(dati_pdc!$C849=5,dati_bdv!$G$2:$G$65536,dati_bdv!$H$2:$H$65536))))),$A849,dati_bdv!J$2:J$65536)","v":0},{"$f":"SUMIF(IF(dati_pdc!$C849=1,dati_bdv!$C$2:$C$65536,IF(dati_pdc!$C849=2,dati_bdv!$D$2:$D$65536,IF(dati_pdc!$C849=3,dati_bdv!$E$2:$E$65536,IF(dati_pdc!$C849=4,dati_bdv!$F$2:$F$65536,IF(dati_pdc!$C849=5,dati_bdv!$G$2:$G$65536,dati_bdv!$H$2:$H$65536))))),$A849,dati_bdv!K$2:K$65536)","v":0},{"$f":"SUMIF(IF(dati_pdc!$C849=1,dati_bdv!$C$2:$C$65536,IF(dati_pdc!$C849=2,dati_bdv!$D$2:$D$65536,IF(dati_pdc!$C849=3,dati_bdv!$E$2:$E$65536,IF(dati_pdc!$C849=4,dati_bdv!$F$2:$F$65536,IF(dati_pdc!$C849=5,dati_bdv!$G$2:$G$65536,dati_bdv!$H$2:$H$65536))))),$A849,dati_bdv!L$2:L$65536)","v":0},{"$f":"SUMIF(IF(dati_pdc!$C849=1,dati_bdv!$C$2:$C$65536,IF(dati_pdc!$C849=2,dati_bdv!$D$2:$D$65536,IF(dati_pdc!$C849=3,dati_bdv!$E$2:$E$65536,IF(dati_pdc!$C849=4,dati_bdv!$F$2:$F$65536,IF(dati_pdc!$C849=5,dati_bdv!$G$2:$G$65536,dati_bdv!$H$2:$H$65536))))),$A849,dati_bdv!M$2:M$65536)","v":0},{"$f":"SUMIF(IF(dati_pdc!$C849=1,dati_bdv!$C$2:$C$65536,IF(dati_pdc!$C849=2,dati_bdv!$D$2:$D$65536,IF(dati_pdc!$C849=3,dati_bdv!$E$2:$E$65536,IF(dati_pdc!$C849=4,dati_bdv!$F$2:$F$65536,IF(dati_pdc!$C849=5,dati_bdv!$G$2:$G$65536,dati_bdv!$H$2:$H$65536))))),$A849,dati_bdv!N$2:N$65536)","v":0}]
[{"$f":"dati_pdc!A850","v":0},{"$f":"SUMIF(IF(dati_pdc!$C850=1,dati_bdv!$C$2:$C$65536,IF(dati_pdc!$C850=2,dati_bdv!$D$2:$D$65536,IF(dati_pdc!$C850=3,dati_bdv!$E$2:$E$65536,IF(dati_pdc!$C850=4,dati_bdv!$F$2:$F$65536,IF(dati_pdc!$C850=5,dati_bdv!$G$2:$G$65536,dati_bdv!$H$2:$H$65536))))),$A850,dati_bdv!J$2:J$65536)","v":0},{"$f":"SUMIF(IF(dati_pdc!$C850=1,dati_bdv!$C$2:$C$65536,IF(dati_pdc!$C850=2,dati_bdv!$D$2:$D$65536,IF(dati_pdc!$C850=3,dati_bdv!$E$2:$E$65536,IF(dati_pdc!$C850=4,dati_bdv!$F$2:$F$65536,IF(dati_pdc!$C850=5,dati_bdv!$G$2:$G$65536,dati_bdv!$H$2:$H$65536))))),$A850,dati_bdv!K$2:K$65536)","v":0},{"$f":"SUMIF(IF(dati_pdc!$C850=1,dati_bdv!$C$2:$C$65536,IF(dati_pdc!$C850=2,dati_bdv!$D$2:$D$65536,IF(dati_pdc!$C850=3,dati_bdv!$E$2:$E$65536,IF(dati_pdc!$C850=4,dati_bdv!$F$2:$F$65536,IF(dati_pdc!$C850=5,dati_bdv!$G$2:$G$65536,dati_bdv!$H$2:$H$65536))))),$A850,dati_bdv!L$2:L$65536)","v":0},{"$f":"SUMIF(IF(dati_pdc!$C850=1,dati_bdv!$C$2:$C$65536,IF(dati_pdc!$C850=2,dati_bdv!$D$2:$D$65536,IF(dati_pdc!$C850=3,dati_bdv!$E$2:$E$65536,IF(dati_pdc!$C850=4,dati_bdv!$F$2:$F$65536,IF(dati_pdc!$C850=5,dati_bdv!$G$2:$G$65536,dati_bdv!$H$2:$H$65536))))),$A850,dati_bdv!M$2:M$65536)","v":0},{"$f":"SUMIF(IF(dati_pdc!$C850=1,dati_bdv!$C$2:$C$65536,IF(dati_pdc!$C850=2,dati_bdv!$D$2:$D$65536,IF(dati_pdc!$C850=3,dati_bdv!$E$2:$E$65536,IF(dati_pdc!$C850=4,dati_bdv!$F$2:$F$65536,IF(dati_pdc!$C850=5,dati_bdv!$G$2:$G$65536,dati_bdv!$H$2:$H$65536))))),$A850,dati_bdv!N$2:N$65536)","v":0}]
[{"$f":"dati_pdc!A851","v":0},{"$f":"SUMIF(IF(dati_pdc!$C851=1,dati_bdv!$C$2:$C$65536,IF(dati_pdc!$C851=2,dati_bdv!$D$2:$D$65536,IF(dati_pdc!$C851=3,dati_bdv!$E$2:$E$65536,IF(dati_pdc!$C851=4,dati_bdv!$F$2:$F$65536,IF(dati_pdc!$C851=5,dati_bdv!$G$2:$G$65536,dati_bdv!$H$2:$H$65536))))),$A851,dati_bdv!J$2:J$65536)","v":0},{"$f":"SUMIF(IF(dati_pdc!$C851=1,dati_bdv!$C$2:$C$65536,IF(dati_pdc!$C851=2,dati_bdv!$D$2:$D$65536,IF(dati_pdc!$C851=3,dati_bdv!$E$2:$E$65536,IF(dati_pdc!$C851=4,dati_bdv!$F$2:$F$65536,IF(dati_pdc!$C851=5,dati_bdv!$G$2:$G$65536,dati_bdv!$H$2:$H$65536))))),$A851,dati_bdv!K$2:K$65536)","v":0},{"$f":"SUMIF(IF(dati_pdc!$C851=1,dati_bdv!$C$2:$C$65536,IF(dati_pdc!$C851=2,dati_bdv!$D$2:$D$65536,IF(dati_pdc!$C851=3,dati_bdv!$E$2:$E$65536,IF(dati_pdc!$C851=4,dati_bdv!$F$2:$F$65536,IF(dati_pdc!$C851=5,dati_bdv!$G$2:$G$65536,dati_bdv!$H$2:$H$65536))))),$A851,dati_bdv!L$2:L$65536)","v":0},{"$f":"SUMIF(IF(dati_pdc!$C851=1,dati_bdv!$C$2:$C$65536,IF(dati_pdc!$C851=2,dati_bdv!$D$2:$D$65536,IF(dati_pdc!$C851=3,dati_bdv!$E$2:$E$65536,IF(dati_pdc!$C851=4,dati_bdv!$F$2:$F$65536,IF(dati_pdc!$C851=5,dati_bdv!$G$2:$G$65536,dati_bdv!$H$2:$H$65536))))),$A851,dati_bdv!M$2:M$65536)","v":0},{"$f":"SUMIF(IF(dati_pdc!$C851=1,dati_bdv!$C$2:$C$65536,IF(dati_pdc!$C851=2,dati_bdv!$D$2:$D$65536,IF(dati_pdc!$C851=3,dati_bdv!$E$2:$E$65536,IF(dati_pdc!$C851=4,dati_bdv!$F$2:$F$65536,IF(dati_pdc!$C851=5,dati_bdv!$G$2:$G$65536,dati_bdv!$H$2:$H$65536))))),$A851,dati_bdv!N$2:N$65536)","v":0}]
[{"$f":"dati_pdc!A852","v":0},{"$f":"SUMIF(IF(dati_pdc!$C852=1,dati_bdv!$C$2:$C$65536,IF(dati_pdc!$C852=2,dati_bdv!$D$2:$D$65536,IF(dati_pdc!$C852=3,dati_bdv!$E$2:$E$65536,IF(dati_pdc!$C852=4,dati_bdv!$F$2:$F$65536,IF(dati_pdc!$C852=5,dati_bdv!$G$2:$G$65536,dati_bdv!$H$2:$H$65536))))),$A852,dati_bdv!J$2:J$65536)","v":0},{"$f":"SUMIF(IF(dati_pdc!$C852=1,dati_bdv!$C$2:$C$65536,IF(dati_pdc!$C852=2,dati_bdv!$D$2:$D$65536,IF(dati_pdc!$C852=3,dati_bdv!$E$2:$E$65536,IF(dati_pdc!$C852=4,dati_bdv!$F$2:$F$65536,IF(dati_pdc!$C852=5,dati_bdv!$G$2:$G$65536,dati_bdv!$H$2:$H$65536))))),$A852,dati_bdv!K$2:K$65536)","v":0},{"$f":"SUMIF(IF(dati_pdc!$C852=1,dati_bdv!$C$2:$C$65536,IF(dati_pdc!$C852=2,dati_bdv!$D$2:$D$65536,IF(dati_pdc!$C852=3,dati_bdv!$E$2:$E$65536,IF(dati_pdc!$C852=4,dati_bdv!$F$2:$F$65536,IF(dati_pdc!$C852=5,dati_bdv!$G$2:$G$65536,dati_bdv!$H$2:$H$65536))))),$A852,dati_bdv!L$2:L$65536)","v":0},{"$f":"SUMIF(IF(dati_pdc!$C852=1,dati_bdv!$C$2:$C$65536,IF(dati_pdc!$C852=2,dati_bdv!$D$2:$D$65536,IF(dati_pdc!$C852=3,dati_bdv!$E$2:$E$65536,IF(dati_pdc!$C852=4,dati_bdv!$F$2:$F$65536,IF(dati_pdc!$C852=5,dati_bdv!$G$2:$G$65536,dati_bdv!$H$2:$H$65536))))),$A852,dati_bdv!M$2:M$65536)","v":0},{"$f":"SUMIF(IF(dati_pdc!$C852=1,dati_bdv!$C$2:$C$65536,IF(dati_pdc!$C852=2,dati_bdv!$D$2:$D$65536,IF(dati_pdc!$C852=3,dati_bdv!$E$2:$E$65536,IF(dati_pdc!$C852=4,dati_bdv!$F$2:$F$65536,IF(dati_pdc!$C852=5,dati_bdv!$G$2:$G$65536,dati_bdv!$H$2:$H$65536))))),$A852,dati_bdv!N$2:N$65536)","v":0}]
[{"$f":"dati_pdc!A853","v":0},{"$f":"SUMIF(IF(dati_pdc!$C853=1,dati_bdv!$C$2:$C$65536,IF(dati_pdc!$C853=2,dati_bdv!$D$2:$D$65536,IF(dati_pdc!$C853=3,dati_bdv!$E$2:$E$65536,IF(dati_pdc!$C853=4,dati_bdv!$F$2:$F$65536,IF(dati_pdc!$C853=5,dati_bdv!$G$2:$G$65536,dati_bdv!$H$2:$H$65536))))),$A853,dati_bdv!J$2:J$65536)","v":0},{"$f":"SUMIF(IF(dati_pdc!$C853=1,dati_bdv!$C$2:$C$65536,IF(dati_pdc!$C853=2,dati_bdv!$D$2:$D$65536,IF(dati_pdc!$C853=3,dati_bdv!$E$2:$E$65536,IF(dati_pdc!$C853=4,dati_bdv!$F$2:$F$65536,IF(dati_pdc!$C853=5,dati_bdv!$G$2:$G$65536,dati_bdv!$H$2:$H$65536))))),$A853,dati_bdv!K$2:K$65536)","v":0},{"$f":"SUMIF(IF(dati_pdc!$C853=1,dati_bdv!$C$2:$C$65536,IF(dati_pdc!$C853=2,dati_bdv!$D$2:$D$65536,IF(dati_pdc!$C853=3,dati_bdv!$E$2:$E$65536,IF(dati_pdc!$C853=4,dati_bdv!$F$2:$F$65536,IF(dati_pdc!$C853=5,dati_bdv!$G$2:$G$65536,dati_bdv!$H$2:$H$65536))))),$A853,dati_bdv!L$2:L$65536)","v":0},{"$f":"SUMIF(IF(dati_pdc!$C853=1,dati_bdv!$C$2:$C$65536,IF(dati_pdc!$C853=2,dati_bdv!$D$2:$D$65536,IF(dati_pdc!$C853=3,dati_bdv!$E$2:$E$65536,IF(dati_pdc!$C853=4,dati_bdv!$F$2:$F$65536,IF(dati_pdc!$C853=5,dati_bdv!$G$2:$G$65536,dati_bdv!$H$2:$H$65536))))),$A853,dati_bdv!M$2:M$65536)","v":0},{"$f":"SUMIF(IF(dati_pdc!$C853=1,dati_bdv!$C$2:$C$65536,IF(dati_pdc!$C853=2,dati_bdv!$D$2:$D$65536,IF(dati_pdc!$C853=3,dati_bdv!$E$2:$E$65536,IF(dati_pdc!$C853=4,dati_bdv!$F$2:$F$65536,IF(dati_pdc!$C853=5,dati_bdv!$G$2:$G$65536,dati_bdv!$H$2:$H$65536))))),$A853,dati_bdv!N$2:N$65536)","v":0}]
[{"$f":"dati_pdc!A854","v":0},{"$f":"SUMIF(IF(dati_pdc!$C854=1,dati_bdv!$C$2:$C$65536,IF(dati_pdc!$C854=2,dati_bdv!$D$2:$D$65536,IF(dati_pdc!$C854=3,dati_bdv!$E$2:$E$65536,IF(dati_pdc!$C854=4,dati_bdv!$F$2:$F$65536,IF(dati_pdc!$C854=5,dati_bdv!$G$2:$G$65536,dati_bdv!$H$2:$H$65536))))),$A854,dati_bdv!J$2:J$65536)","v":0},{"$f":"SUMIF(IF(dati_pdc!$C854=1,dati_bdv!$C$2:$C$65536,IF(dati_pdc!$C854=2,dati_bdv!$D$2:$D$65536,IF(dati_pdc!$C854=3,dati_bdv!$E$2:$E$65536,IF(dati_pdc!$C854=4,dati_bdv!$F$2:$F$65536,IF(dati_pdc!$C854=5,dati_bdv!$G$2:$G$65536,dati_bdv!$H$2:$H$65536))))),$A854,dati_bdv!K$2:K$65536)","v":0},{"$f":"SUMIF(IF(dati_pdc!$C854=1,dati_bdv!$C$2:$C$65536,IF(dati_pdc!$C854=2,dati_bdv!$D$2:$D$65536,IF(dati_pdc!$C854=3,dati_bdv!$E$2:$E$65536,IF(dati_pdc!$C854=4,dati_bdv!$F$2:$F$65536,IF(dati_pdc!$C854=5,dati_bdv!$G$2:$G$65536,dati_bdv!$H$2:$H$65536))))),$A854,dati_bdv!L$2:L$65536)","v":0},{"$f":"SUMIF(IF(dati_pdc!$C854=1,dati_bdv!$C$2:$C$65536,IF(dati_pdc!$C854=2,dati_bdv!$D$2:$D$65536,IF(dati_pdc!$C854=3,dati_bdv!$E$2:$E$65536,IF(dati_pdc!$C854=4,dati_bdv!$F$2:$F$65536,IF(dati_pdc!$C854=5,dati_bdv!$G$2:$G$65536,dati_bdv!$H$2:$H$65536))))),$A854,dati_bdv!M$2:M$65536)","v":0},{"$f":"SUMIF(IF(dati_pdc!$C854=1,dati_bdv!$C$2:$C$65536,IF(dati_pdc!$C854=2,dati_bdv!$D$2:$D$65536,IF(dati_pdc!$C854=3,dati_bdv!$E$2:$E$65536,IF(dati_pdc!$C854=4,dati_bdv!$F$2:$F$65536,IF(dati_pdc!$C854=5,dati_bdv!$G$2:$G$65536,dati_bdv!$H$2:$H$65536))))),$A854,dati_bdv!N$2:N$65536)","v":0}]
[{"$f":"dati_pdc!A855","v":0},{"$f":"SUMIF(IF(dati_pdc!$C855=1,dati_bdv!$C$2:$C$65536,IF(dati_pdc!$C855=2,dati_bdv!$D$2:$D$65536,IF(dati_pdc!$C855=3,dati_bdv!$E$2:$E$65536,IF(dati_pdc!$C855=4,dati_bdv!$F$2:$F$65536,IF(dati_pdc!$C855=5,dati_bdv!$G$2:$G$65536,dati_bdv!$H$2:$H$65536))))),$A855,dati_bdv!J$2:J$65536)","v":0},{"$f":"SUMIF(IF(dati_pdc!$C855=1,dati_bdv!$C$2:$C$65536,IF(dati_pdc!$C855=2,dati_bdv!$D$2:$D$65536,IF(dati_pdc!$C855=3,dati_bdv!$E$2:$E$65536,IF(dati_pdc!$C855=4,dati_bdv!$F$2:$F$65536,IF(dati_pdc!$C855=5,dati_bdv!$G$2:$G$65536,dati_bdv!$H$2:$H$65536))))),$A855,dati_bdv!K$2:K$65536)","v":0},{"$f":"SUMIF(IF(dati_pdc!$C855=1,dati_bdv!$C$2:$C$65536,IF(dati_pdc!$C855=2,dati_bdv!$D$2:$D$65536,IF(dati_pdc!$C855=3,dati_bdv!$E$2:$E$65536,IF(dati_pdc!$C855=4,dati_bdv!$F$2:$F$65536,IF(dati_pdc!$C855=5,dati_bdv!$G$2:$G$65536,dati_bdv!$H$2:$H$65536))))),$A855,dati_bdv!L$2:L$65536)","v":0},{"$f":"SUMIF(IF(dati_pdc!$C855=1,dati_bdv!$C$2:$C$65536,IF(dati_pdc!$C855=2,dati_bdv!$D$2:$D$65536,IF(dati_pdc!$C855=3,dati_bdv!$E$2:$E$65536,IF(dati_pdc!$C855=4,dati_bdv!$F$2:$F$65536,IF(dati_pdc!$C855=5,dati_bdv!$G$2:$G$65536,dati_bdv!$H$2:$H$65536))))),$A855,dati_bdv!M$2:M$65536)","v":0},{"$f":"SUMIF(IF(dati_pdc!$C855=1,dati_bdv!$C$2:$C$65536,IF(dati_pdc!$C855=2,dati_bdv!$D$2:$D$65536,IF(dati_pdc!$C855=3,dati_bdv!$E$2:$E$65536,IF(dati_pdc!$C855=4,dati_bdv!$F$2:$F$65536,IF(dati_pdc!$C855=5,dati_bdv!$G$2:$G$65536,dati_bdv!$H$2:$H$65536))))),$A855,dati_bdv!N$2:N$65536)","v":0}]
[{"$f":"dati_pdc!A856","v":0},{"$f":"SUMIF(IF(dati_pdc!$C856=1,dati_bdv!$C$2:$C$65536,IF(dati_pdc!$C856=2,dati_bdv!$D$2:$D$65536,IF(dati_pdc!$C856=3,dati_bdv!$E$2:$E$65536,IF(dati_pdc!$C856=4,dati_bdv!$F$2:$F$65536,IF(dati_pdc!$C856=5,dati_bdv!$G$2:$G$65536,dati_bdv!$H$2:$H$65536))))),$A856,dati_bdv!J$2:J$65536)","v":0},{"$f":"SUMIF(IF(dati_pdc!$C856=1,dati_bdv!$C$2:$C$65536,IF(dati_pdc!$C856=2,dati_bdv!$D$2:$D$65536,IF(dati_pdc!$C856=3,dati_bdv!$E$2:$E$65536,IF(dati_pdc!$C856=4,dati_bdv!$F$2:$F$65536,IF(dati_pdc!$C856=5,dati_bdv!$G$2:$G$65536,dati_bdv!$H$2:$H$65536))))),$A856,dati_bdv!K$2:K$65536)","v":0},{"$f":"SUMIF(IF(dati_pdc!$C856=1,dati_bdv!$C$2:$C$65536,IF(dati_pdc!$C856=2,dati_bdv!$D$2:$D$65536,IF(dati_pdc!$C856=3,dati_bdv!$E$2:$E$65536,IF(dati_pdc!$C856=4,dati_bdv!$F$2:$F$65536,IF(dati_pdc!$C856=5,dati_bdv!$G$2:$G$65536,dati_bdv!$H$2:$H$65536))))),$A856,dati_bdv!L$2:L$65536)","v":0},{"$f":"SUMIF(IF(dati_pdc!$C856=1,dati_bdv!$C$2:$C$65536,IF(dati_pdc!$C856=2,dati_bdv!$D$2:$D$65536,IF(dati_pdc!$C856=3,dati_bdv!$E$2:$E$65536,IF(dati_pdc!$C856=4,dati_bdv!$F$2:$F$65536,IF(dati_pdc!$C856=5,dati_bdv!$G$2:$G$65536,dati_bdv!$H$2:$H$65536))))),$A856,dati_bdv!M$2:M$65536)","v":0},{"$f":"SUMIF(IF(dati_pdc!$C856=1,dati_bdv!$C$2:$C$65536,IF(dati_pdc!$C856=2,dati_bdv!$D$2:$D$65536,IF(dati_pdc!$C856=3,dati_bdv!$E$2:$E$65536,IF(dati_pdc!$C856=4,dati_bdv!$F$2:$F$65536,IF(dati_pdc!$C856=5,dati_bdv!$G$2:$G$65536,dati_bdv!$H$2:$H$65536))))),$A856,dati_bdv!N$2:N$65536)","v":0}]
[{"$f":"dati_pdc!A857","v":0},{"$f":"SUMIF(IF(dati_pdc!$C857=1,dati_bdv!$C$2:$C$65536,IF(dati_pdc!$C857=2,dati_bdv!$D$2:$D$65536,IF(dati_pdc!$C857=3,dati_bdv!$E$2:$E$65536,IF(dati_pdc!$C857=4,dati_bdv!$F$2:$F$65536,IF(dati_pdc!$C857=5,dati_bdv!$G$2:$G$65536,dati_bdv!$H$2:$H$65536))))),$A857,dati_bdv!J$2:J$65536)","v":0},{"$f":"SUMIF(IF(dati_pdc!$C857=1,dati_bdv!$C$2:$C$65536,IF(dati_pdc!$C857=2,dati_bdv!$D$2:$D$65536,IF(dati_pdc!$C857=3,dati_bdv!$E$2:$E$65536,IF(dati_pdc!$C857=4,dati_bdv!$F$2:$F$65536,IF(dati_pdc!$C857=5,dati_bdv!$G$2:$G$65536,dati_bdv!$H$2:$H$65536))))),$A857,dati_bdv!K$2:K$65536)","v":0},{"$f":"SUMIF(IF(dati_pdc!$C857=1,dati_bdv!$C$2:$C$65536,IF(dati_pdc!$C857=2,dati_bdv!$D$2:$D$65536,IF(dati_pdc!$C857=3,dati_bdv!$E$2:$E$65536,IF(dati_pdc!$C857=4,dati_bdv!$F$2:$F$65536,IF(dati_pdc!$C857=5,dati_bdv!$G$2:$G$65536,dati_bdv!$H$2:$H$65536))))),$A857,dati_bdv!L$2:L$65536)","v":0},{"$f":"SUMIF(IF(dati_pdc!$C857=1,dati_bdv!$C$2:$C$65536,IF(dati_pdc!$C857=2,dati_bdv!$D$2:$D$65536,IF(dati_pdc!$C857=3,dati_bdv!$E$2:$E$65536,IF(dati_pdc!$C857=4,dati_bdv!$F$2:$F$65536,IF(dati_pdc!$C857=5,dati_bdv!$G$2:$G$65536,dati_bdv!$H$2:$H$65536))))),$A857,dati_bdv!M$2:M$65536)","v":0},{"$f":"SUMIF(IF(dati_pdc!$C857=1,dati_bdv!$C$2:$C$65536,IF(dati_pdc!$C857=2,dati_bdv!$D$2:$D$65536,IF(dati_pdc!$C857=3,dati_bdv!$E$2:$E$65536,IF(dati_pdc!$C857=4,dati_bdv!$F$2:$F$65536,IF(dati_pdc!$C857=5,dati_bdv!$G$2:$G$65536,dati_bdv!$H$2:$H$65536))))),$A857,dati_bdv!N$2:N$65536)","v":0}]
[{"$f":"dati_pdc!A858","v":0},{"$f":"SUMIF(IF(dati_pdc!$C858=1,dati_bdv!$C$2:$C$65536,IF(dati_pdc!$C858=2,dati_bdv!$D$2:$D$65536,IF(dati_pdc!$C858=3,dati_bdv!$E$2:$E$65536,IF(dati_pdc!$C858=4,dati_bdv!$F$2:$F$65536,IF(dati_pdc!$C858=5,dati_bdv!$G$2:$G$65536,dati_bdv!$H$2:$H$65536))))),$A858,dati_bdv!J$2:J$65536)","v":0},{"$f":"SUMIF(IF(dati_pdc!$C858=1,dati_bdv!$C$2:$C$65536,IF(dati_pdc!$C858=2,dati_bdv!$D$2:$D$65536,IF(dati_pdc!$C858=3,dati_bdv!$E$2:$E$65536,IF(dati_pdc!$C858=4,dati_bdv!$F$2:$F$65536,IF(dati_pdc!$C858=5,dati_bdv!$G$2:$G$65536,dati_bdv!$H$2:$H$65536))))),$A858,dati_bdv!K$2:K$65536)","v":0},{"$f":"SUMIF(IF(dati_pdc!$C858=1,dati_bdv!$C$2:$C$65536,IF(dati_pdc!$C858=2,dati_bdv!$D$2:$D$65536,IF(dati_pdc!$C858=3,dati_bdv!$E$2:$E$65536,IF(dati_pdc!$C858=4,dati_bdv!$F$2:$F$65536,IF(dati_pdc!$C858=5,dati_bdv!$G$2:$G$65536,dati_bdv!$H$2:$H$65536))))),$A858,dati_bdv!L$2:L$65536)","v":0},{"$f":"SUMIF(IF(dati_pdc!$C858=1,dati_bdv!$C$2:$C$65536,IF(dati_pdc!$C858=2,dati_bdv!$D$2:$D$65536,IF(dati_pdc!$C858=3,dati_bdv!$E$2:$E$65536,IF(dati_pdc!$C858=4,dati_bdv!$F$2:$F$65536,IF(dati_pdc!$C858=5,dati_bdv!$G$2:$G$65536,dati_bdv!$H$2:$H$65536))))),$A858,dati_bdv!M$2:M$65536)","v":0},{"$f":"SUMIF(IF(dati_pdc!$C858=1,dati_bdv!$C$2:$C$65536,IF(dati_pdc!$C858=2,dati_bdv!$D$2:$D$65536,IF(dati_pdc!$C858=3,dati_bdv!$E$2:$E$65536,IF(dati_pdc!$C858=4,dati_bdv!$F$2:$F$65536,IF(dati_pdc!$C858=5,dati_bdv!$G$2:$G$65536,dati_bdv!$H$2:$H$65536))))),$A858,dati_bdv!N$2:N$65536)","v":0}]
[{"$f":"dati_pdc!A859","v":0},{"$f":"SUMIF(IF(dati_pdc!$C859=1,dati_bdv!$C$2:$C$65536,IF(dati_pdc!$C859=2,dati_bdv!$D$2:$D$65536,IF(dati_pdc!$C859=3,dati_bdv!$E$2:$E$65536,IF(dati_pdc!$C859=4,dati_bdv!$F$2:$F$65536,IF(dati_pdc!$C859=5,dati_bdv!$G$2:$G$65536,dati_bdv!$H$2:$H$65536))))),$A859,dati_bdv!J$2:J$65536)","v":0},{"$f":"SUMIF(IF(dati_pdc!$C859=1,dati_bdv!$C$2:$C$65536,IF(dati_pdc!$C859=2,dati_bdv!$D$2:$D$65536,IF(dati_pdc!$C859=3,dati_bdv!$E$2:$E$65536,IF(dati_pdc!$C859=4,dati_bdv!$F$2:$F$65536,IF(dati_pdc!$C859=5,dati_bdv!$G$2:$G$65536,dati_bdv!$H$2:$H$65536))))),$A859,dati_bdv!K$2:K$65536)","v":0},{"$f":"SUMIF(IF(dati_pdc!$C859=1,dati_bdv!$C$2:$C$65536,IF(dati_pdc!$C859=2,dati_bdv!$D$2:$D$65536,IF(dati_pdc!$C859=3,dati_bdv!$E$2:$E$65536,IF(dati_pdc!$C859=4,dati_bdv!$F$2:$F$65536,IF(dati_pdc!$C859=5,dati_bdv!$G$2:$G$65536,dati_bdv!$H$2:$H$65536))))),$A859,dati_bdv!L$2:L$65536)","v":0},{"$f":"SUMIF(IF(dati_pdc!$C859=1,dati_bdv!$C$2:$C$65536,IF(dati_pdc!$C859=2,dati_bdv!$D$2:$D$65536,IF(dati_pdc!$C859=3,dati_bdv!$E$2:$E$65536,IF(dati_pdc!$C859=4,dati_bdv!$F$2:$F$65536,IF(dati_pdc!$C859=5,dati_bdv!$G$2:$G$65536,dati_bdv!$H$2:$H$65536))))),$A859,dati_bdv!M$2:M$65536)","v":0},{"$f":"SUMIF(IF(dati_pdc!$C859=1,dati_bdv!$C$2:$C$65536,IF(dati_pdc!$C859=2,dati_bdv!$D$2:$D$65536,IF(dati_pdc!$C859=3,dati_bdv!$E$2:$E$65536,IF(dati_pdc!$C859=4,dati_bdv!$F$2:$F$65536,IF(dati_pdc!$C859=5,dati_bdv!$G$2:$G$65536,dati_bdv!$H$2:$H$65536))))),$A859,dati_bdv!N$2:N$65536)","v":0}]
[{"$f":"dati_pdc!A860","v":0},{"$f":"SUMIF(IF(dati_pdc!$C860=1,dati_bdv!$C$2:$C$65536,IF(dati_pdc!$C860=2,dati_bdv!$D$2:$D$65536,IF(dati_pdc!$C860=3,dati_bdv!$E$2:$E$65536,IF(dati_pdc!$C860=4,dati_bdv!$F$2:$F$65536,IF(dati_pdc!$C860=5,dati_bdv!$G$2:$G$65536,dati_bdv!$H$2:$H$65536))))),$A860,dati_bdv!J$2:J$65536)","v":0},{"$f":"SUMIF(IF(dati_pdc!$C860=1,dati_bdv!$C$2:$C$65536,IF(dati_pdc!$C860=2,dati_bdv!$D$2:$D$65536,IF(dati_pdc!$C860=3,dati_bdv!$E$2:$E$65536,IF(dati_pdc!$C860=4,dati_bdv!$F$2:$F$65536,IF(dati_pdc!$C860=5,dati_bdv!$G$2:$G$65536,dati_bdv!$H$2:$H$65536))))),$A860,dati_bdv!K$2:K$65536)","v":0},{"$f":"SUMIF(IF(dati_pdc!$C860=1,dati_bdv!$C$2:$C$65536,IF(dati_pdc!$C860=2,dati_bdv!$D$2:$D$65536,IF(dati_pdc!$C860=3,dati_bdv!$E$2:$E$65536,IF(dati_pdc!$C860=4,dati_bdv!$F$2:$F$65536,IF(dati_pdc!$C860=5,dati_bdv!$G$2:$G$65536,dati_bdv!$H$2:$H$65536))))),$A860,dati_bdv!L$2:L$65536)","v":0},{"$f":"SUMIF(IF(dati_pdc!$C860=1,dati_bdv!$C$2:$C$65536,IF(dati_pdc!$C860=2,dati_bdv!$D$2:$D$65536,IF(dati_pdc!$C860=3,dati_bdv!$E$2:$E$65536,IF(dati_pdc!$C860=4,dati_bdv!$F$2:$F$65536,IF(dati_pdc!$C860=5,dati_bdv!$G$2:$G$65536,dati_bdv!$H$2:$H$65536))))),$A860,dati_bdv!M$2:M$65536)","v":0},{"$f":"SUMIF(IF(dati_pdc!$C860=1,dati_bdv!$C$2:$C$65536,IF(dati_pdc!$C860=2,dati_bdv!$D$2:$D$65536,IF(dati_pdc!$C860=3,dati_bdv!$E$2:$E$65536,IF(dati_pdc!$C860=4,dati_bdv!$F$2:$F$65536,IF(dati_pdc!$C860=5,dati_bdv!$G$2:$G$65536,dati_bdv!$H$2:$H$65536))))),$A860,dati_bdv!N$2:N$65536)","v":0}]
[{"$f":"dati_pdc!A861","v":0},{"$f":"SUMIF(IF(dati_pdc!$C861=1,dati_bdv!$C$2:$C$65536,IF(dati_pdc!$C861=2,dati_bdv!$D$2:$D$65536,IF(dati_pdc!$C861=3,dati_bdv!$E$2:$E$65536,IF(dati_pdc!$C861=4,dati_bdv!$F$2:$F$65536,IF(dati_pdc!$C861=5,dati_bdv!$G$2:$G$65536,dati_bdv!$H$2:$H$65536))))),$A861,dati_bdv!J$2:J$65536)","v":0},{"$f":"SUMIF(IF(dati_pdc!$C861=1,dati_bdv!$C$2:$C$65536,IF(dati_pdc!$C861=2,dati_bdv!$D$2:$D$65536,IF(dati_pdc!$C861=3,dati_bdv!$E$2:$E$65536,IF(dati_pdc!$C861=4,dati_bdv!$F$2:$F$65536,IF(dati_pdc!$C861=5,dati_bdv!$G$2:$G$65536,dati_bdv!$H$2:$H$65536))))),$A861,dati_bdv!K$2:K$65536)","v":0},{"$f":"SUMIF(IF(dati_pdc!$C861=1,dati_bdv!$C$2:$C$65536,IF(dati_pdc!$C861=2,dati_bdv!$D$2:$D$65536,IF(dati_pdc!$C861=3,dati_bdv!$E$2:$E$65536,IF(dati_pdc!$C861=4,dati_bdv!$F$2:$F$65536,IF(dati_pdc!$C861=5,dati_bdv!$G$2:$G$65536,dati_bdv!$H$2:$H$65536))))),$A861,dati_bdv!L$2:L$65536)","v":0},{"$f":"SUMIF(IF(dati_pdc!$C861=1,dati_bdv!$C$2:$C$65536,IF(dati_pdc!$C861=2,dati_bdv!$D$2:$D$65536,IF(dati_pdc!$C861=3,dati_bdv!$E$2:$E$65536,IF(dati_pdc!$C861=4,dati_bdv!$F$2:$F$65536,IF(dati_pdc!$C861=5,dati_bdv!$G$2:$G$65536,dati_bdv!$H$2:$H$65536))))),$A861,dati_bdv!M$2:M$65536)","v":0},{"$f":"SUMIF(IF(dati_pdc!$C861=1,dati_bdv!$C$2:$C$65536,IF(dati_pdc!$C861=2,dati_bdv!$D$2:$D$65536,IF(dati_pdc!$C861=3,dati_bdv!$E$2:$E$65536,IF(dati_pdc!$C861=4,dati_bdv!$F$2:$F$65536,IF(dati_pdc!$C861=5,dati_bdv!$G$2:$G$65536,dati_bdv!$H$2:$H$65536))))),$A861,dati_bdv!N$2:N$65536)","v":0}]
[{"$f":"dati_pdc!A862","v":0},{"$f":"SUMIF(IF(dati_pdc!$C862=1,dati_bdv!$C$2:$C$65536,IF(dati_pdc!$C862=2,dati_bdv!$D$2:$D$65536,IF(dati_pdc!$C862=3,dati_bdv!$E$2:$E$65536,IF(dati_pdc!$C862=4,dati_bdv!$F$2:$F$65536,IF(dati_pdc!$C862=5,dati_bdv!$G$2:$G$65536,dati_bdv!$H$2:$H$65536))))),$A862,dati_bdv!J$2:J$65536)","v":0},{"$f":"SUMIF(IF(dati_pdc!$C862=1,dati_bdv!$C$2:$C$65536,IF(dati_pdc!$C862=2,dati_bdv!$D$2:$D$65536,IF(dati_pdc!$C862=3,dati_bdv!$E$2:$E$65536,IF(dati_pdc!$C862=4,dati_bdv!$F$2:$F$65536,IF(dati_pdc!$C862=5,dati_bdv!$G$2:$G$65536,dati_bdv!$H$2:$H$65536))))),$A862,dati_bdv!K$2:K$65536)","v":0},{"$f":"SUMIF(IF(dati_pdc!$C862=1,dati_bdv!$C$2:$C$65536,IF(dati_pdc!$C862=2,dati_bdv!$D$2:$D$65536,IF(dati_pdc!$C862=3,dati_bdv!$E$2:$E$65536,IF(dati_pdc!$C862=4,dati_bdv!$F$2:$F$65536,IF(dati_pdc!$C862=5,dati_bdv!$G$2:$G$65536,dati_bdv!$H$2:$H$65536))))),$A862,dati_bdv!L$2:L$65536)","v":0},{"$f":"SUMIF(IF(dati_pdc!$C862=1,dati_bdv!$C$2:$C$65536,IF(dati_pdc!$C862=2,dati_bdv!$D$2:$D$65536,IF(dati_pdc!$C862=3,dati_bdv!$E$2:$E$65536,IF(dati_pdc!$C862=4,dati_bdv!$F$2:$F$65536,IF(dati_pdc!$C862=5,dati_bdv!$G$2:$G$65536,dati_bdv!$H$2:$H$65536))))),$A862,dati_bdv!M$2:M$65536)","v":0},{"$f":"SUMIF(IF(dati_pdc!$C862=1,dati_bdv!$C$2:$C$65536,IF(dati_pdc!$C862=2,dati_bdv!$D$2:$D$65536,IF(dati_pdc!$C862=3,dati_bdv!$E$2:$E$65536,IF(dati_pdc!$C862=4,dati_bdv!$F$2:$F$65536,IF(dati_pdc!$C862=5,dati_bdv!$G$2:$G$65536,dati_bdv!$H$2:$H$65536))))),$A862,dati_bdv!N$2:N$65536)","v":0}]
[{"$f":"dati_pdc!A863","v":0},{"$f":"SUMIF(IF(dati_pdc!$C863=1,dati_bdv!$C$2:$C$65536,IF(dati_pdc!$C863=2,dati_bdv!$D$2:$D$65536,IF(dati_pdc!$C863=3,dati_bdv!$E$2:$E$65536,IF(dati_pdc!$C863=4,dati_bdv!$F$2:$F$65536,IF(dati_pdc!$C863=5,dati_bdv!$G$2:$G$65536,dati_bdv!$H$2:$H$65536))))),$A863,dati_bdv!J$2:J$65536)","v":0},{"$f":"SUMIF(IF(dati_pdc!$C863=1,dati_bdv!$C$2:$C$65536,IF(dati_pdc!$C863=2,dati_bdv!$D$2:$D$65536,IF(dati_pdc!$C863=3,dati_bdv!$E$2:$E$65536,IF(dati_pdc!$C863=4,dati_bdv!$F$2:$F$65536,IF(dati_pdc!$C863=5,dati_bdv!$G$2:$G$65536,dati_bdv!$H$2:$H$65536))))),$A863,dati_bdv!K$2:K$65536)","v":0},{"$f":"SUMIF(IF(dati_pdc!$C863=1,dati_bdv!$C$2:$C$65536,IF(dati_pdc!$C863=2,dati_bdv!$D$2:$D$65536,IF(dati_pdc!$C863=3,dati_bdv!$E$2:$E$65536,IF(dati_pdc!$C863=4,dati_bdv!$F$2:$F$65536,IF(dati_pdc!$C863=5,dati_bdv!$G$2:$G$65536,dati_bdv!$H$2:$H$65536))))),$A863,dati_bdv!L$2:L$65536)","v":0},{"$f":"SUMIF(IF(dati_pdc!$C863=1,dati_bdv!$C$2:$C$65536,IF(dati_pdc!$C863=2,dati_bdv!$D$2:$D$65536,IF(dati_pdc!$C863=3,dati_bdv!$E$2:$E$65536,IF(dati_pdc!$C863=4,dati_bdv!$F$2:$F$65536,IF(dati_pdc!$C863=5,dati_bdv!$G$2:$G$65536,dati_bdv!$H$2:$H$65536))))),$A863,dati_bdv!M$2:M$65536)","v":0},{"$f":"SUMIF(IF(dati_pdc!$C863=1,dati_bdv!$C$2:$C$65536,IF(dati_pdc!$C863=2,dati_bdv!$D$2:$D$65536,IF(dati_pdc!$C863=3,dati_bdv!$E$2:$E$65536,IF(dati_pdc!$C863=4,dati_bdv!$F$2:$F$65536,IF(dati_pdc!$C863=5,dati_bdv!$G$2:$G$65536,dati_bdv!$H$2:$H$65536))))),$A863,dati_bdv!N$2:N$65536)","v":0}]
[{"$f":"dati_pdc!A864","v":0},{"$f":"SUMIF(IF(dati_pdc!$C864=1,dati_bdv!$C$2:$C$65536,IF(dati_pdc!$C864=2,dati_bdv!$D$2:$D$65536,IF(dati_pdc!$C864=3,dati_bdv!$E$2:$E$65536,IF(dati_pdc!$C864=4,dati_bdv!$F$2:$F$65536,IF(dati_pdc!$C864=5,dati_bdv!$G$2:$G$65536,dati_bdv!$H$2:$H$65536))))),$A864,dati_bdv!J$2:J$65536)","v":0},{"$f":"SUMIF(IF(dati_pdc!$C864=1,dati_bdv!$C$2:$C$65536,IF(dati_pdc!$C864=2,dati_bdv!$D$2:$D$65536,IF(dati_pdc!$C864=3,dati_bdv!$E$2:$E$65536,IF(dati_pdc!$C864=4,dati_bdv!$F$2:$F$65536,IF(dati_pdc!$C864=5,dati_bdv!$G$2:$G$65536,dati_bdv!$H$2:$H$65536))))),$A864,dati_bdv!K$2:K$65536)","v":0},{"$f":"SUMIF(IF(dati_pdc!$C864=1,dati_bdv!$C$2:$C$65536,IF(dati_pdc!$C864=2,dati_bdv!$D$2:$D$65536,IF(dati_pdc!$C864=3,dati_bdv!$E$2:$E$65536,IF(dati_pdc!$C864=4,dati_bdv!$F$2:$F$65536,IF(dati_pdc!$C864=5,dati_bdv!$G$2:$G$65536,dati_bdv!$H$2:$H$65536))))),$A864,dati_bdv!L$2:L$65536)","v":0},{"$f":"SUMIF(IF(dati_pdc!$C864=1,dati_bdv!$C$2:$C$65536,IF(dati_pdc!$C864=2,dati_bdv!$D$2:$D$65536,IF(dati_pdc!$C864=3,dati_bdv!$E$2:$E$65536,IF(dati_pdc!$C864=4,dati_bdv!$F$2:$F$65536,IF(dati_pdc!$C864=5,dati_bdv!$G$2:$G$65536,dati_bdv!$H$2:$H$65536))))),$A864,dati_bdv!M$2:M$65536)","v":0},{"$f":"SUMIF(IF(dati_pdc!$C864=1,dati_bdv!$C$2:$C$65536,IF(dati_pdc!$C864=2,dati_bdv!$D$2:$D$65536,IF(dati_pdc!$C864=3,dati_bdv!$E$2:$E$65536,IF(dati_pdc!$C864=4,dati_bdv!$F$2:$F$65536,IF(dati_pdc!$C864=5,dati_bdv!$G$2:$G$65536,dati_bdv!$H$2:$H$65536))))),$A864,dati_bdv!N$2:N$65536)","v":0}]
[{"$f":"dati_pdc!A865","v":0},{"$f":"SUMIF(IF(dati_pdc!$C865=1,dati_bdv!$C$2:$C$65536,IF(dati_pdc!$C865=2,dati_bdv!$D$2:$D$65536,IF(dati_pdc!$C865=3,dati_bdv!$E$2:$E$65536,IF(dati_pdc!$C865=4,dati_bdv!$F$2:$F$65536,IF(dati_pdc!$C865=5,dati_bdv!$G$2:$G$65536,dati_bdv!$H$2:$H$65536))))),$A865,dati_bdv!J$2:J$65536)","v":0},{"$f":"SUMIF(IF(dati_pdc!$C865=1,dati_bdv!$C$2:$C$65536,IF(dati_pdc!$C865=2,dati_bdv!$D$2:$D$65536,IF(dati_pdc!$C865=3,dati_bdv!$E$2:$E$65536,IF(dati_pdc!$C865=4,dati_bdv!$F$2:$F$65536,IF(dati_pdc!$C865=5,dati_bdv!$G$2:$G$65536,dati_bdv!$H$2:$H$65536))))),$A865,dati_bdv!K$2:K$65536)","v":0},{"$f":"SUMIF(IF(dati_pdc!$C865=1,dati_bdv!$C$2:$C$65536,IF(dati_pdc!$C865=2,dati_bdv!$D$2:$D$65536,IF(dati_pdc!$C865=3,dati_bdv!$E$2:$E$65536,IF(dati_pdc!$C865=4,dati_bdv!$F$2:$F$65536,IF(dati_pdc!$C865=5,dati_bdv!$G$2:$G$65536,dati_bdv!$H$2:$H$65536))))),$A865,dati_bdv!L$2:L$65536)","v":0},{"$f":"SUMIF(IF(dati_pdc!$C865=1,dati_bdv!$C$2:$C$65536,IF(dati_pdc!$C865=2,dati_bdv!$D$2:$D$65536,IF(dati_pdc!$C865=3,dati_bdv!$E$2:$E$65536,IF(dati_pdc!$C865=4,dati_bdv!$F$2:$F$65536,IF(dati_pdc!$C865=5,dati_bdv!$G$2:$G$65536,dati_bdv!$H$2:$H$65536))))),$A865,dati_bdv!M$2:M$65536)","v":0},{"$f":"SUMIF(IF(dati_pdc!$C865=1,dati_bdv!$C$2:$C$65536,IF(dati_pdc!$C865=2,dati_bdv!$D$2:$D$65536,IF(dati_pdc!$C865=3,dati_bdv!$E$2:$E$65536,IF(dati_pdc!$C865=4,dati_bdv!$F$2:$F$65536,IF(dati_pdc!$C865=5,dati_bdv!$G$2:$G$65536,dati_bdv!$H$2:$H$65536))))),$A865,dati_bdv!N$2:N$65536)","v":0}]
[{"$f":"dati_pdc!A866","v":0},{"$f":"SUMIF(IF(dati_pdc!$C866=1,dati_bdv!$C$2:$C$65536,IF(dati_pdc!$C866=2,dati_bdv!$D$2:$D$65536,IF(dati_pdc!$C866=3,dati_bdv!$E$2:$E$65536,IF(dati_pdc!$C866=4,dati_bdv!$F$2:$F$65536,IF(dati_pdc!$C866=5,dati_bdv!$G$2:$G$65536,dati_bdv!$H$2:$H$65536))))),$A866,dati_bdv!J$2:J$65536)","v":0},{"$f":"SUMIF(IF(dati_pdc!$C866=1,dati_bdv!$C$2:$C$65536,IF(dati_pdc!$C866=2,dati_bdv!$D$2:$D$65536,IF(dati_pdc!$C866=3,dati_bdv!$E$2:$E$65536,IF(dati_pdc!$C866=4,dati_bdv!$F$2:$F$65536,IF(dati_pdc!$C866=5,dati_bdv!$G$2:$G$65536,dati_bdv!$H$2:$H$65536))))),$A866,dati_bdv!K$2:K$65536)","v":0},{"$f":"SUMIF(IF(dati_pdc!$C866=1,dati_bdv!$C$2:$C$65536,IF(dati_pdc!$C866=2,dati_bdv!$D$2:$D$65536,IF(dati_pdc!$C866=3,dati_bdv!$E$2:$E$65536,IF(dati_pdc!$C866=4,dati_bdv!$F$2:$F$65536,IF(dati_pdc!$C866=5,dati_bdv!$G$2:$G$65536,dati_bdv!$H$2:$H$65536))))),$A866,dati_bdv!L$2:L$65536)","v":0},{"$f":"SUMIF(IF(dati_pdc!$C866=1,dati_bdv!$C$2:$C$65536,IF(dati_pdc!$C866=2,dati_bdv!$D$2:$D$65536,IF(dati_pdc!$C866=3,dati_bdv!$E$2:$E$65536,IF(dati_pdc!$C866=4,dati_bdv!$F$2:$F$65536,IF(dati_pdc!$C866=5,dati_bdv!$G$2:$G$65536,dati_bdv!$H$2:$H$65536))))),$A866,dati_bdv!M$2:M$65536)","v":0},{"$f":"SUMIF(IF(dati_pdc!$C866=1,dati_bdv!$C$2:$C$65536,IF(dati_pdc!$C866=2,dati_bdv!$D$2:$D$65536,IF(dati_pdc!$C866=3,dati_bdv!$E$2:$E$65536,IF(dati_pdc!$C866=4,dati_bdv!$F$2:$F$65536,IF(dati_pdc!$C866=5,dati_bdv!$G$2:$G$65536,dati_bdv!$H$2:$H$65536))))),$A866,dati_bdv!N$2:N$65536)","v":0}]
[{"$f":"dati_pdc!A867","v":0},{"$f":"SUMIF(IF(dati_pdc!$C867=1,dati_bdv!$C$2:$C$65536,IF(dati_pdc!$C867=2,dati_bdv!$D$2:$D$65536,IF(dati_pdc!$C867=3,dati_bdv!$E$2:$E$65536,IF(dati_pdc!$C867=4,dati_bdv!$F$2:$F$65536,IF(dati_pdc!$C867=5,dati_bdv!$G$2:$G$65536,dati_bdv!$H$2:$H$65536))))),$A867,dati_bdv!J$2:J$65536)","v":0},{"$f":"SUMIF(IF(dati_pdc!$C867=1,dati_bdv!$C$2:$C$65536,IF(dati_pdc!$C867=2,dati_bdv!$D$2:$D$65536,IF(dati_pdc!$C867=3,dati_bdv!$E$2:$E$65536,IF(dati_pdc!$C867=4,dati_bdv!$F$2:$F$65536,IF(dati_pdc!$C867=5,dati_bdv!$G$2:$G$65536,dati_bdv!$H$2:$H$65536))))),$A867,dati_bdv!K$2:K$65536)","v":0},{"$f":"SUMIF(IF(dati_pdc!$C867=1,dati_bdv!$C$2:$C$65536,IF(dati_pdc!$C867=2,dati_bdv!$D$2:$D$65536,IF(dati_pdc!$C867=3,dati_bdv!$E$2:$E$65536,IF(dati_pdc!$C867=4,dati_bdv!$F$2:$F$65536,IF(dati_pdc!$C867=5,dati_bdv!$G$2:$G$65536,dati_bdv!$H$2:$H$65536))))),$A867,dati_bdv!L$2:L$65536)","v":0},{"$f":"SUMIF(IF(dati_pdc!$C867=1,dati_bdv!$C$2:$C$65536,IF(dati_pdc!$C867=2,dati_bdv!$D$2:$D$65536,IF(dati_pdc!$C867=3,dati_bdv!$E$2:$E$65536,IF(dati_pdc!$C867=4,dati_bdv!$F$2:$F$65536,IF(dati_pdc!$C867=5,dati_bdv!$G$2:$G$65536,dati_bdv!$H$2:$H$65536))))),$A867,dati_bdv!M$2:M$65536)","v":0},{"$f":"SUMIF(IF(dati_pdc!$C867=1,dati_bdv!$C$2:$C$65536,IF(dati_pdc!$C867=2,dati_bdv!$D$2:$D$65536,IF(dati_pdc!$C867=3,dati_bdv!$E$2:$E$65536,IF(dati_pdc!$C867=4,dati_bdv!$F$2:$F$65536,IF(dati_pdc!$C867=5,dati_bdv!$G$2:$G$65536,dati_bdv!$H$2:$H$65536))))),$A867,dati_bdv!N$2:N$65536)","v":0}]
[{"$f":"dati_pdc!A868","v":0},{"$f":"SUMIF(IF(dati_pdc!$C868=1,dati_bdv!$C$2:$C$65536,IF(dati_pdc!$C868=2,dati_bdv!$D$2:$D$65536,IF(dati_pdc!$C868=3,dati_bdv!$E$2:$E$65536,IF(dati_pdc!$C868=4,dati_bdv!$F$2:$F$65536,IF(dati_pdc!$C868=5,dati_bdv!$G$2:$G$65536,dati_bdv!$H$2:$H$65536))))),$A868,dati_bdv!J$2:J$65536)","v":0},{"$f":"SUMIF(IF(dati_pdc!$C868=1,dati_bdv!$C$2:$C$65536,IF(dati_pdc!$C868=2,dati_bdv!$D$2:$D$65536,IF(dati_pdc!$C868=3,dati_bdv!$E$2:$E$65536,IF(dati_pdc!$C868=4,dati_bdv!$F$2:$F$65536,IF(dati_pdc!$C868=5,dati_bdv!$G$2:$G$65536,dati_bdv!$H$2:$H$65536))))),$A868,dati_bdv!K$2:K$65536)","v":0},{"$f":"SUMIF(IF(dati_pdc!$C868=1,dati_bdv!$C$2:$C$65536,IF(dati_pdc!$C868=2,dati_bdv!$D$2:$D$65536,IF(dati_pdc!$C868=3,dati_bdv!$E$2:$E$65536,IF(dati_pdc!$C868=4,dati_bdv!$F$2:$F$65536,IF(dati_pdc!$C868=5,dati_bdv!$G$2:$G$65536,dati_bdv!$H$2:$H$65536))))),$A868,dati_bdv!L$2:L$65536)","v":0},{"$f":"SUMIF(IF(dati_pdc!$C868=1,dati_bdv!$C$2:$C$65536,IF(dati_pdc!$C868=2,dati_bdv!$D$2:$D$65536,IF(dati_pdc!$C868=3,dati_bdv!$E$2:$E$65536,IF(dati_pdc!$C868=4,dati_bdv!$F$2:$F$65536,IF(dati_pdc!$C868=5,dati_bdv!$G$2:$G$65536,dati_bdv!$H$2:$H$65536))))),$A868,dati_bdv!M$2:M$65536)","v":0},{"$f":"SUMIF(IF(dati_pdc!$C868=1,dati_bdv!$C$2:$C$65536,IF(dati_pdc!$C868=2,dati_bdv!$D$2:$D$65536,IF(dati_pdc!$C868=3,dati_bdv!$E$2:$E$65536,IF(dati_pdc!$C868=4,dati_bdv!$F$2:$F$65536,IF(dati_pdc!$C868=5,dati_bdv!$G$2:$G$65536,dati_bdv!$H$2:$H$65536))))),$A868,dati_bdv!N$2:N$65536)","v":0}]
[{"$f":"dati_pdc!A869","v":0},{"$f":"SUMIF(IF(dati_pdc!$C869=1,dati_bdv!$C$2:$C$65536,IF(dati_pdc!$C869=2,dati_bdv!$D$2:$D$65536,IF(dati_pdc!$C869=3,dati_bdv!$E$2:$E$65536,IF(dati_pdc!$C869=4,dati_bdv!$F$2:$F$65536,IF(dati_pdc!$C869=5,dati_bdv!$G$2:$G$65536,dati_bdv!$H$2:$H$65536))))),$A869,dati_bdv!J$2:J$65536)","v":0},{"$f":"SUMIF(IF(dati_pdc!$C869=1,dati_bdv!$C$2:$C$65536,IF(dati_pdc!$C869=2,dati_bdv!$D$2:$D$65536,IF(dati_pdc!$C869=3,dati_bdv!$E$2:$E$65536,IF(dati_pdc!$C869=4,dati_bdv!$F$2:$F$65536,IF(dati_pdc!$C869=5,dati_bdv!$G$2:$G$65536,dati_bdv!$H$2:$H$65536))))),$A869,dati_bdv!K$2:K$65536)","v":0},{"$f":"SUMIF(IF(dati_pdc!$C869=1,dati_bdv!$C$2:$C$65536,IF(dati_pdc!$C869=2,dati_bdv!$D$2:$D$65536,IF(dati_pdc!$C869=3,dati_bdv!$E$2:$E$65536,IF(dati_pdc!$C869=4,dati_bdv!$F$2:$F$65536,IF(dati_pdc!$C869=5,dati_bdv!$G$2:$G$65536,dati_bdv!$H$2:$H$65536))))),$A869,dati_bdv!L$2:L$65536)","v":0},{"$f":"SUMIF(IF(dati_pdc!$C869=1,dati_bdv!$C$2:$C$65536,IF(dati_pdc!$C869=2,dati_bdv!$D$2:$D$65536,IF(dati_pdc!$C869=3,dati_bdv!$E$2:$E$65536,IF(dati_pdc!$C869=4,dati_bdv!$F$2:$F$65536,IF(dati_pdc!$C869=5,dati_bdv!$G$2:$G$65536,dati_bdv!$H$2:$H$65536))))),$A869,dati_bdv!M$2:M$65536)","v":0},{"$f":"SUMIF(IF(dati_pdc!$C869=1,dati_bdv!$C$2:$C$65536,IF(dati_pdc!$C869=2,dati_bdv!$D$2:$D$65536,IF(dati_pdc!$C869=3,dati_bdv!$E$2:$E$65536,IF(dati_pdc!$C869=4,dati_bdv!$F$2:$F$65536,IF(dati_pdc!$C869=5,dati_bdv!$G$2:$G$65536,dati_bdv!$H$2:$H$65536))))),$A869,dati_bdv!N$2:N$65536)","v":0}]
[{"$f":"dati_pdc!A870","v":0},{"$f":"SUMIF(IF(dati_pdc!$C870=1,dati_bdv!$C$2:$C$65536,IF(dati_pdc!$C870=2,dati_bdv!$D$2:$D$65536,IF(dati_pdc!$C870=3,dati_bdv!$E$2:$E$65536,IF(dati_pdc!$C870=4,dati_bdv!$F$2:$F$65536,IF(dati_pdc!$C870=5,dati_bdv!$G$2:$G$65536,dati_bdv!$H$2:$H$65536))))),$A870,dati_bdv!J$2:J$65536)","v":0},{"$f":"SUMIF(IF(dati_pdc!$C870=1,dati_bdv!$C$2:$C$65536,IF(dati_pdc!$C870=2,dati_bdv!$D$2:$D$65536,IF(dati_pdc!$C870=3,dati_bdv!$E$2:$E$65536,IF(dati_pdc!$C870=4,dati_bdv!$F$2:$F$65536,IF(dati_pdc!$C870=5,dati_bdv!$G$2:$G$65536,dati_bdv!$H$2:$H$65536))))),$A870,dati_bdv!K$2:K$65536)","v":0},{"$f":"SUMIF(IF(dati_pdc!$C870=1,dati_bdv!$C$2:$C$65536,IF(dati_pdc!$C870=2,dati_bdv!$D$2:$D$65536,IF(dati_pdc!$C870=3,dati_bdv!$E$2:$E$65536,IF(dati_pdc!$C870=4,dati_bdv!$F$2:$F$65536,IF(dati_pdc!$C870=5,dati_bdv!$G$2:$G$65536,dati_bdv!$H$2:$H$65536))))),$A870,dati_bdv!L$2:L$65536)","v":0},{"$f":"SUMIF(IF(dati_pdc!$C870=1,dati_bdv!$C$2:$C$65536,IF(dati_pdc!$C870=2,dati_bdv!$D$2:$D$65536,IF(dati_pdc!$C870=3,dati_bdv!$E$2:$E$65536,IF(dati_pdc!$C870=4,dati_bdv!$F$2:$F$65536,IF(dati_pdc!$C870=5,dati_bdv!$G$2:$G$65536,dati_bdv!$H$2:$H$65536))))),$A870,dati_bdv!M$2:M$65536)","v":0},{"$f":"SUMIF(IF(dati_pdc!$C870=1,dati_bdv!$C$2:$C$65536,IF(dati_pdc!$C870=2,dati_bdv!$D$2:$D$65536,IF(dati_pdc!$C870=3,dati_bdv!$E$2:$E$65536,IF(dati_pdc!$C870=4,dati_bdv!$F$2:$F$65536,IF(dati_pdc!$C870=5,dati_bdv!$G$2:$G$65536,dati_bdv!$H$2:$H$65536))))),$A870,dati_bdv!N$2:N$65536)","v":0}]
[{"$f":"dati_pdc!A871","v":0},{"$f":"SUMIF(IF(dati_pdc!$C871=1,dati_bdv!$C$2:$C$65536,IF(dati_pdc!$C871=2,dati_bdv!$D$2:$D$65536,IF(dati_pdc!$C871=3,dati_bdv!$E$2:$E$65536,IF(dati_pdc!$C871=4,dati_bdv!$F$2:$F$65536,IF(dati_pdc!$C871=5,dati_bdv!$G$2:$G$65536,dati_bdv!$H$2:$H$65536))))),$A871,dati_bdv!J$2:J$65536)","v":0},{"$f":"SUMIF(IF(dati_pdc!$C871=1,dati_bdv!$C$2:$C$65536,IF(dati_pdc!$C871=2,dati_bdv!$D$2:$D$65536,IF(dati_pdc!$C871=3,dati_bdv!$E$2:$E$65536,IF(dati_pdc!$C871=4,dati_bdv!$F$2:$F$65536,IF(dati_pdc!$C871=5,dati_bdv!$G$2:$G$65536,dati_bdv!$H$2:$H$65536))))),$A871,dati_bdv!K$2:K$65536)","v":0},{"$f":"SUMIF(IF(dati_pdc!$C871=1,dati_bdv!$C$2:$C$65536,IF(dati_pdc!$C871=2,dati_bdv!$D$2:$D$65536,IF(dati_pdc!$C871=3,dati_bdv!$E$2:$E$65536,IF(dati_pdc!$C871=4,dati_bdv!$F$2:$F$65536,IF(dati_pdc!$C871=5,dati_bdv!$G$2:$G$65536,dati_bdv!$H$2:$H$65536))))),$A871,dati_bdv!L$2:L$65536)","v":0},{"$f":"SUMIF(IF(dati_pdc!$C871=1,dati_bdv!$C$2:$C$65536,IF(dati_pdc!$C871=2,dati_bdv!$D$2:$D$65536,IF(dati_pdc!$C871=3,dati_bdv!$E$2:$E$65536,IF(dati_pdc!$C871=4,dati_bdv!$F$2:$F$65536,IF(dati_pdc!$C871=5,dati_bdv!$G$2:$G$65536,dati_bdv!$H$2:$H$65536))))),$A871,dati_bdv!M$2:M$65536)","v":0},{"$f":"SUMIF(IF(dati_pdc!$C871=1,dati_bdv!$C$2:$C$65536,IF(dati_pdc!$C871=2,dati_bdv!$D$2:$D$65536,IF(dati_pdc!$C871=3,dati_bdv!$E$2:$E$65536,IF(dati_pdc!$C871=4,dati_bdv!$F$2:$F$65536,IF(dati_pdc!$C871=5,dati_bdv!$G$2:$G$65536,dati_bdv!$H$2:$H$65536))))),$A871,dati_bdv!N$2:N$65536)","v":0}]
[{"$f":"dati_pdc!A872","v":0},{"$f":"SUMIF(IF(dati_pdc!$C872=1,dati_bdv!$C$2:$C$65536,IF(dati_pdc!$C872=2,dati_bdv!$D$2:$D$65536,IF(dati_pdc!$C872=3,dati_bdv!$E$2:$E$65536,IF(dati_pdc!$C872=4,dati_bdv!$F$2:$F$65536,IF(dati_pdc!$C872=5,dati_bdv!$G$2:$G$65536,dati_bdv!$H$2:$H$65536))))),$A872,dati_bdv!J$2:J$65536)","v":0},{"$f":"SUMIF(IF(dati_pdc!$C872=1,dati_bdv!$C$2:$C$65536,IF(dati_pdc!$C872=2,dati_bdv!$D$2:$D$65536,IF(dati_pdc!$C872=3,dati_bdv!$E$2:$E$65536,IF(dati_pdc!$C872=4,dati_bdv!$F$2:$F$65536,IF(dati_pdc!$C872=5,dati_bdv!$G$2:$G$65536,dati_bdv!$H$2:$H$65536))))),$A872,dati_bdv!K$2:K$65536)","v":0},{"$f":"SUMIF(IF(dati_pdc!$C872=1,dati_bdv!$C$2:$C$65536,IF(dati_pdc!$C872=2,dati_bdv!$D$2:$D$65536,IF(dati_pdc!$C872=3,dati_bdv!$E$2:$E$65536,IF(dati_pdc!$C872=4,dati_bdv!$F$2:$F$65536,IF(dati_pdc!$C872=5,dati_bdv!$G$2:$G$65536,dati_bdv!$H$2:$H$65536))))),$A872,dati_bdv!L$2:L$65536)","v":0},{"$f":"SUMIF(IF(dati_pdc!$C872=1,dati_bdv!$C$2:$C$65536,IF(dati_pdc!$C872=2,dati_bdv!$D$2:$D$65536,IF(dati_pdc!$C872=3,dati_bdv!$E$2:$E$65536,IF(dati_pdc!$C872=4,dati_bdv!$F$2:$F$65536,IF(dati_pdc!$C872=5,dati_bdv!$G$2:$G$65536,dati_bdv!$H$2:$H$65536))))),$A872,dati_bdv!M$2:M$65536)","v":0},{"$f":"SUMIF(IF(dati_pdc!$C872=1,dati_bdv!$C$2:$C$65536,IF(dati_pdc!$C872=2,dati_bdv!$D$2:$D$65536,IF(dati_pdc!$C872=3,dati_bdv!$E$2:$E$65536,IF(dati_pdc!$C872=4,dati_bdv!$F$2:$F$65536,IF(dati_pdc!$C872=5,dati_bdv!$G$2:$G$65536,dati_bdv!$H$2:$H$65536))))),$A872,dati_bdv!N$2:N$65536)","v":0}]
[{"$f":"dati_pdc!A873","v":0},{"$f":"SUMIF(IF(dati_pdc!$C873=1,dati_bdv!$C$2:$C$65536,IF(dati_pdc!$C873=2,dati_bdv!$D$2:$D$65536,IF(dati_pdc!$C873=3,dati_bdv!$E$2:$E$65536,IF(dati_pdc!$C873=4,dati_bdv!$F$2:$F$65536,IF(dati_pdc!$C873=5,dati_bdv!$G$2:$G$65536,dati_bdv!$H$2:$H$65536))))),$A873,dati_bdv!J$2:J$65536)","v":0},{"$f":"SUMIF(IF(dati_pdc!$C873=1,dati_bdv!$C$2:$C$65536,IF(dati_pdc!$C873=2,dati_bdv!$D$2:$D$65536,IF(dati_pdc!$C873=3,dati_bdv!$E$2:$E$65536,IF(dati_pdc!$C873=4,dati_bdv!$F$2:$F$65536,IF(dati_pdc!$C873=5,dati_bdv!$G$2:$G$65536,dati_bdv!$H$2:$H$65536))))),$A873,dati_bdv!K$2:K$65536)","v":0},{"$f":"SUMIF(IF(dati_pdc!$C873=1,dati_bdv!$C$2:$C$65536,IF(dati_pdc!$C873=2,dati_bdv!$D$2:$D$65536,IF(dati_pdc!$C873=3,dati_bdv!$E$2:$E$65536,IF(dati_pdc!$C873=4,dati_bdv!$F$2:$F$65536,IF(dati_pdc!$C873=5,dati_bdv!$G$2:$G$65536,dati_bdv!$H$2:$H$65536))))),$A873,dati_bdv!L$2:L$65536)","v":0},{"$f":"SUMIF(IF(dati_pdc!$C873=1,dati_bdv!$C$2:$C$65536,IF(dati_pdc!$C873=2,dati_bdv!$D$2:$D$65536,IF(dati_pdc!$C873=3,dati_bdv!$E$2:$E$65536,IF(dati_pdc!$C873=4,dati_bdv!$F$2:$F$65536,IF(dati_pdc!$C873=5,dati_bdv!$G$2:$G$65536,dati_bdv!$H$2:$H$65536))))),$A873,dati_bdv!M$2:M$65536)","v":0},{"$f":"SUMIF(IF(dati_pdc!$C873=1,dati_bdv!$C$2:$C$65536,IF(dati_pdc!$C873=2,dati_bdv!$D$2:$D$65536,IF(dati_pdc!$C873=3,dati_bdv!$E$2:$E$65536,IF(dati_pdc!$C873=4,dati_bdv!$F$2:$F$65536,IF(dati_pdc!$C873=5,dati_bdv!$G$2:$G$65536,dati_bdv!$H$2:$H$65536))))),$A873,dati_bdv!N$2:N$65536)","v":0}]
[{"$f":"dati_pdc!A874","v":0},{"$f":"SUMIF(IF(dati_pdc!$C874=1,dati_bdv!$C$2:$C$65536,IF(dati_pdc!$C874=2,dati_bdv!$D$2:$D$65536,IF(dati_pdc!$C874=3,dati_bdv!$E$2:$E$65536,IF(dati_pdc!$C874=4,dati_bdv!$F$2:$F$65536,IF(dati_pdc!$C874=5,dati_bdv!$G$2:$G$65536,dati_bdv!$H$2:$H$65536))))),$A874,dati_bdv!J$2:J$65536)","v":0},{"$f":"SUMIF(IF(dati_pdc!$C874=1,dati_bdv!$C$2:$C$65536,IF(dati_pdc!$C874=2,dati_bdv!$D$2:$D$65536,IF(dati_pdc!$C874=3,dati_bdv!$E$2:$E$65536,IF(dati_pdc!$C874=4,dati_bdv!$F$2:$F$65536,IF(dati_pdc!$C874=5,dati_bdv!$G$2:$G$65536,dati_bdv!$H$2:$H$65536))))),$A874,dati_bdv!K$2:K$65536)","v":0},{"$f":"SUMIF(IF(dati_pdc!$C874=1,dati_bdv!$C$2:$C$65536,IF(dati_pdc!$C874=2,dati_bdv!$D$2:$D$65536,IF(dati_pdc!$C874=3,dati_bdv!$E$2:$E$65536,IF(dati_pdc!$C874=4,dati_bdv!$F$2:$F$65536,IF(dati_pdc!$C874=5,dati_bdv!$G$2:$G$65536,dati_bdv!$H$2:$H$65536))))),$A874,dati_bdv!L$2:L$65536)","v":0},{"$f":"SUMIF(IF(dati_pdc!$C874=1,dati_bdv!$C$2:$C$65536,IF(dati_pdc!$C874=2,dati_bdv!$D$2:$D$65536,IF(dati_pdc!$C874=3,dati_bdv!$E$2:$E$65536,IF(dati_pdc!$C874=4,dati_bdv!$F$2:$F$65536,IF(dati_pdc!$C874=5,dati_bdv!$G$2:$G$65536,dati_bdv!$H$2:$H$65536))))),$A874,dati_bdv!M$2:M$65536)","v":0},{"$f":"SUMIF(IF(dati_pdc!$C874=1,dati_bdv!$C$2:$C$65536,IF(dati_pdc!$C874=2,dati_bdv!$D$2:$D$65536,IF(dati_pdc!$C874=3,dati_bdv!$E$2:$E$65536,IF(dati_pdc!$C874=4,dati_bdv!$F$2:$F$65536,IF(dati_pdc!$C874=5,dati_bdv!$G$2:$G$65536,dati_bdv!$H$2:$H$65536))))),$A874,dati_bdv!N$2:N$65536)","v":0}]
[{"$f":"dati_pdc!A875","v":0},{"$f":"SUMIF(IF(dati_pdc!$C875=1,dati_bdv!$C$2:$C$65536,IF(dati_pdc!$C875=2,dati_bdv!$D$2:$D$65536,IF(dati_pdc!$C875=3,dati_bdv!$E$2:$E$65536,IF(dati_pdc!$C875=4,dati_bdv!$F$2:$F$65536,IF(dati_pdc!$C875=5,dati_bdv!$G$2:$G$65536,dati_bdv!$H$2:$H$65536))))),$A875,dati_bdv!J$2:J$65536)","v":0},{"$f":"SUMIF(IF(dati_pdc!$C875=1,dati_bdv!$C$2:$C$65536,IF(dati_pdc!$C875=2,dati_bdv!$D$2:$D$65536,IF(dati_pdc!$C875=3,dati_bdv!$E$2:$E$65536,IF(dati_pdc!$C875=4,dati_bdv!$F$2:$F$65536,IF(dati_pdc!$C875=5,dati_bdv!$G$2:$G$65536,dati_bdv!$H$2:$H$65536))))),$A875,dati_bdv!K$2:K$65536)","v":0},{"$f":"SUMIF(IF(dati_pdc!$C875=1,dati_bdv!$C$2:$C$65536,IF(dati_pdc!$C875=2,dati_bdv!$D$2:$D$65536,IF(dati_pdc!$C875=3,dati_bdv!$E$2:$E$65536,IF(dati_pdc!$C875=4,dati_bdv!$F$2:$F$65536,IF(dati_pdc!$C875=5,dati_bdv!$G$2:$G$65536,dati_bdv!$H$2:$H$65536))))),$A875,dati_bdv!L$2:L$65536)","v":0},{"$f":"SUMIF(IF(dati_pdc!$C875=1,dati_bdv!$C$2:$C$65536,IF(dati_pdc!$C875=2,dati_bdv!$D$2:$D$65536,IF(dati_pdc!$C875=3,dati_bdv!$E$2:$E$65536,IF(dati_pdc!$C875=4,dati_bdv!$F$2:$F$65536,IF(dati_pdc!$C875=5,dati_bdv!$G$2:$G$65536,dati_bdv!$H$2:$H$65536))))),$A875,dati_bdv!M$2:M$65536)","v":0},{"$f":"SUMIF(IF(dati_pdc!$C875=1,dati_bdv!$C$2:$C$65536,IF(dati_pdc!$C875=2,dati_bdv!$D$2:$D$65536,IF(dati_pdc!$C875=3,dati_bdv!$E$2:$E$65536,IF(dati_pdc!$C875=4,dati_bdv!$F$2:$F$65536,IF(dati_pdc!$C875=5,dati_bdv!$G$2:$G$65536,dati_bdv!$H$2:$H$65536))))),$A875,dati_bdv!N$2:N$65536)","v":0}]
[{"$f":"dati_pdc!A876","v":0},{"$f":"SUMIF(IF(dati_pdc!$C876=1,dati_bdv!$C$2:$C$65536,IF(dati_pdc!$C876=2,dati_bdv!$D$2:$D$65536,IF(dati_pdc!$C876=3,dati_bdv!$E$2:$E$65536,IF(dati_pdc!$C876=4,dati_bdv!$F$2:$F$65536,IF(dati_pdc!$C876=5,dati_bdv!$G$2:$G$65536,dati_bdv!$H$2:$H$65536))))),$A876,dati_bdv!J$2:J$65536)","v":0},{"$f":"SUMIF(IF(dati_pdc!$C876=1,dati_bdv!$C$2:$C$65536,IF(dati_pdc!$C876=2,dati_bdv!$D$2:$D$65536,IF(dati_pdc!$C876=3,dati_bdv!$E$2:$E$65536,IF(dati_pdc!$C876=4,dati_bdv!$F$2:$F$65536,IF(dati_pdc!$C876=5,dati_bdv!$G$2:$G$65536,dati_bdv!$H$2:$H$65536))))),$A876,dati_bdv!K$2:K$65536)","v":0},{"$f":"SUMIF(IF(dati_pdc!$C876=1,dati_bdv!$C$2:$C$65536,IF(dati_pdc!$C876=2,dati_bdv!$D$2:$D$65536,IF(dati_pdc!$C876=3,dati_bdv!$E$2:$E$65536,IF(dati_pdc!$C876=4,dati_bdv!$F$2:$F$65536,IF(dati_pdc!$C876=5,dati_bdv!$G$2:$G$65536,dati_bdv!$H$2:$H$65536))))),$A876,dati_bdv!L$2:L$65536)","v":0},{"$f":"SUMIF(IF(dati_pdc!$C876=1,dati_bdv!$C$2:$C$65536,IF(dati_pdc!$C876=2,dati_bdv!$D$2:$D$65536,IF(dati_pdc!$C876=3,dati_bdv!$E$2:$E$65536,IF(dati_pdc!$C876=4,dati_bdv!$F$2:$F$65536,IF(dati_pdc!$C876=5,dati_bdv!$G$2:$G$65536,dati_bdv!$H$2:$H$65536))))),$A876,dati_bdv!M$2:M$65536)","v":0},{"$f":"SUMIF(IF(dati_pdc!$C876=1,dati_bdv!$C$2:$C$65536,IF(dati_pdc!$C876=2,dati_bdv!$D$2:$D$65536,IF(dati_pdc!$C876=3,dati_bdv!$E$2:$E$65536,IF(dati_pdc!$C876=4,dati_bdv!$F$2:$F$65536,IF(dati_pdc!$C876=5,dati_bdv!$G$2:$G$65536,dati_bdv!$H$2:$H$65536))))),$A876,dati_bdv!N$2:N$65536)","v":0}]
[{"$f":"dati_pdc!A877","v":0},{"$f":"SUMIF(IF(dati_pdc!$C877=1,dati_bdv!$C$2:$C$65536,IF(dati_pdc!$C877=2,dati_bdv!$D$2:$D$65536,IF(dati_pdc!$C877=3,dati_bdv!$E$2:$E$65536,IF(dati_pdc!$C877=4,dati_bdv!$F$2:$F$65536,IF(dati_pdc!$C877=5,dati_bdv!$G$2:$G$65536,dati_bdv!$H$2:$H$65536))))),$A877,dati_bdv!J$2:J$65536)","v":0},{"$f":"SUMIF(IF(dati_pdc!$C877=1,dati_bdv!$C$2:$C$65536,IF(dati_pdc!$C877=2,dati_bdv!$D$2:$D$65536,IF(dati_pdc!$C877=3,dati_bdv!$E$2:$E$65536,IF(dati_pdc!$C877=4,dati_bdv!$F$2:$F$65536,IF(dati_pdc!$C877=5,dati_bdv!$G$2:$G$65536,dati_bdv!$H$2:$H$65536))))),$A877,dati_bdv!K$2:K$65536)","v":0},{"$f":"SUMIF(IF(dati_pdc!$C877=1,dati_bdv!$C$2:$C$65536,IF(dati_pdc!$C877=2,dati_bdv!$D$2:$D$65536,IF(dati_pdc!$C877=3,dati_bdv!$E$2:$E$65536,IF(dati_pdc!$C877=4,dati_bdv!$F$2:$F$65536,IF(dati_pdc!$C877=5,dati_bdv!$G$2:$G$65536,dati_bdv!$H$2:$H$65536))))),$A877,dati_bdv!L$2:L$65536)","v":0},{"$f":"SUMIF(IF(dati_pdc!$C877=1,dati_bdv!$C$2:$C$65536,IF(dati_pdc!$C877=2,dati_bdv!$D$2:$D$65536,IF(dati_pdc!$C877=3,dati_bdv!$E$2:$E$65536,IF(dati_pdc!$C877=4,dati_bdv!$F$2:$F$65536,IF(dati_pdc!$C877=5,dati_bdv!$G$2:$G$65536,dati_bdv!$H$2:$H$65536))))),$A877,dati_bdv!M$2:M$65536)","v":0},{"$f":"SUMIF(IF(dati_pdc!$C877=1,dati_bdv!$C$2:$C$65536,IF(dati_pdc!$C877=2,dati_bdv!$D$2:$D$65536,IF(dati_pdc!$C877=3,dati_bdv!$E$2:$E$65536,IF(dati_pdc!$C877=4,dati_bdv!$F$2:$F$65536,IF(dati_pdc!$C877=5,dati_bdv!$G$2:$G$65536,dati_bdv!$H$2:$H$65536))))),$A877,dati_bdv!N$2:N$65536)","v":0}]
[{"$f":"dati_pdc!A878","v":0},{"$f":"SUMIF(IF(dati_pdc!$C878=1,dati_bdv!$C$2:$C$65536,IF(dati_pdc!$C878=2,dati_bdv!$D$2:$D$65536,IF(dati_pdc!$C878=3,dati_bdv!$E$2:$E$65536,IF(dati_pdc!$C878=4,dati_bdv!$F$2:$F$65536,IF(dati_pdc!$C878=5,dati_bdv!$G$2:$G$65536,dati_bdv!$H$2:$H$65536))))),$A878,dati_bdv!J$2:J$65536)","v":0},{"$f":"SUMIF(IF(dati_pdc!$C878=1,dati_bdv!$C$2:$C$65536,IF(dati_pdc!$C878=2,dati_bdv!$D$2:$D$65536,IF(dati_pdc!$C878=3,dati_bdv!$E$2:$E$65536,IF(dati_pdc!$C878=4,dati_bdv!$F$2:$F$65536,IF(dati_pdc!$C878=5,dati_bdv!$G$2:$G$65536,dati_bdv!$H$2:$H$65536))))),$A878,dati_bdv!K$2:K$65536)","v":0},{"$f":"SUMIF(IF(dati_pdc!$C878=1,dati_bdv!$C$2:$C$65536,IF(dati_pdc!$C878=2,dati_bdv!$D$2:$D$65536,IF(dati_pdc!$C878=3,dati_bdv!$E$2:$E$65536,IF(dati_pdc!$C878=4,dati_bdv!$F$2:$F$65536,IF(dati_pdc!$C878=5,dati_bdv!$G$2:$G$65536,dati_bdv!$H$2:$H$65536))))),$A878,dati_bdv!L$2:L$65536)","v":0},{"$f":"SUMIF(IF(dati_pdc!$C878=1,dati_bdv!$C$2:$C$65536,IF(dati_pdc!$C878=2,dati_bdv!$D$2:$D$65536,IF(dati_pdc!$C878=3,dati_bdv!$E$2:$E$65536,IF(dati_pdc!$C878=4,dati_bdv!$F$2:$F$65536,IF(dati_pdc!$C878=5,dati_bdv!$G$2:$G$65536,dati_bdv!$H$2:$H$65536))))),$A878,dati_bdv!M$2:M$65536)","v":0},{"$f":"SUMIF(IF(dati_pdc!$C878=1,dati_bdv!$C$2:$C$65536,IF(dati_pdc!$C878=2,dati_bdv!$D$2:$D$65536,IF(dati_pdc!$C878=3,dati_bdv!$E$2:$E$65536,IF(dati_pdc!$C878=4,dati_bdv!$F$2:$F$65536,IF(dati_pdc!$C878=5,dati_bdv!$G$2:$G$65536,dati_bdv!$H$2:$H$65536))))),$A878,dati_bdv!N$2:N$65536)","v":0}]
[{"$f":"dati_pdc!A879","v":0},{"$f":"SUMIF(IF(dati_pdc!$C879=1,dati_bdv!$C$2:$C$65536,IF(dati_pdc!$C879=2,dati_bdv!$D$2:$D$65536,IF(dati_pdc!$C879=3,dati_bdv!$E$2:$E$65536,IF(dati_pdc!$C879=4,dati_bdv!$F$2:$F$65536,IF(dati_pdc!$C879=5,dati_bdv!$G$2:$G$65536,dati_bdv!$H$2:$H$65536))))),$A879,dati_bdv!J$2:J$65536)","v":0},{"$f":"SUMIF(IF(dati_pdc!$C879=1,dati_bdv!$C$2:$C$65536,IF(dati_pdc!$C879=2,dati_bdv!$D$2:$D$65536,IF(dati_pdc!$C879=3,dati_bdv!$E$2:$E$65536,IF(dati_pdc!$C879=4,dati_bdv!$F$2:$F$65536,IF(dati_pdc!$C879=5,dati_bdv!$G$2:$G$65536,dati_bdv!$H$2:$H$65536))))),$A879,dati_bdv!K$2:K$65536)","v":0},{"$f":"SUMIF(IF(dati_pdc!$C879=1,dati_bdv!$C$2:$C$65536,IF(dati_pdc!$C879=2,dati_bdv!$D$2:$D$65536,IF(dati_pdc!$C879=3,dati_bdv!$E$2:$E$65536,IF(dati_pdc!$C879=4,dati_bdv!$F$2:$F$65536,IF(dati_pdc!$C879=5,dati_bdv!$G$2:$G$65536,dati_bdv!$H$2:$H$65536))))),$A879,dati_bdv!L$2:L$65536)","v":0},{"$f":"SUMIF(IF(dati_pdc!$C879=1,dati_bdv!$C$2:$C$65536,IF(dati_pdc!$C879=2,dati_bdv!$D$2:$D$65536,IF(dati_pdc!$C879=3,dati_bdv!$E$2:$E$65536,IF(dati_pdc!$C879=4,dati_bdv!$F$2:$F$65536,IF(dati_pdc!$C879=5,dati_bdv!$G$2:$G$65536,dati_bdv!$H$2:$H$65536))))),$A879,dati_bdv!M$2:M$65536)","v":0},{"$f":"SUMIF(IF(dati_pdc!$C879=1,dati_bdv!$C$2:$C$65536,IF(dati_pdc!$C879=2,dati_bdv!$D$2:$D$65536,IF(dati_pdc!$C879=3,dati_bdv!$E$2:$E$65536,IF(dati_pdc!$C879=4,dati_bdv!$F$2:$F$65536,IF(dati_pdc!$C879=5,dati_bdv!$G$2:$G$65536,dati_bdv!$H$2:$H$65536))))),$A879,dati_bdv!N$2:N$65536)","v":0}]
[{"$f":"dati_pdc!A880","v":0},{"$f":"SUMIF(IF(dati_pdc!$C880=1,dati_bdv!$C$2:$C$65536,IF(dati_pdc!$C880=2,dati_bdv!$D$2:$D$65536,IF(dati_pdc!$C880=3,dati_bdv!$E$2:$E$65536,IF(dati_pdc!$C880=4,dati_bdv!$F$2:$F$65536,IF(dati_pdc!$C880=5,dati_bdv!$G$2:$G$65536,dati_bdv!$H$2:$H$65536))))),$A880,dati_bdv!J$2:J$65536)","v":0},{"$f":"SUMIF(IF(dati_pdc!$C880=1,dati_bdv!$C$2:$C$65536,IF(dati_pdc!$C880=2,dati_bdv!$D$2:$D$65536,IF(dati_pdc!$C880=3,dati_bdv!$E$2:$E$65536,IF(dati_pdc!$C880=4,dati_bdv!$F$2:$F$65536,IF(dati_pdc!$C880=5,dati_bdv!$G$2:$G$65536,dati_bdv!$H$2:$H$65536))))),$A880,dati_bdv!K$2:K$65536)","v":0},{"$f":"SUMIF(IF(dati_pdc!$C880=1,dati_bdv!$C$2:$C$65536,IF(dati_pdc!$C880=2,dati_bdv!$D$2:$D$65536,IF(dati_pdc!$C880=3,dati_bdv!$E$2:$E$65536,IF(dati_pdc!$C880=4,dati_bdv!$F$2:$F$65536,IF(dati_pdc!$C880=5,dati_bdv!$G$2:$G$65536,dati_bdv!$H$2:$H$65536))))),$A880,dati_bdv!L$2:L$65536)","v":0},{"$f":"SUMIF(IF(dati_pdc!$C880=1,dati_bdv!$C$2:$C$65536,IF(dati_pdc!$C880=2,dati_bdv!$D$2:$D$65536,IF(dati_pdc!$C880=3,dati_bdv!$E$2:$E$65536,IF(dati_pdc!$C880=4,dati_bdv!$F$2:$F$65536,IF(dati_pdc!$C880=5,dati_bdv!$G$2:$G$65536,dati_bdv!$H$2:$H$65536))))),$A880,dati_bdv!M$2:M$65536)","v":0},{"$f":"SUMIF(IF(dati_pdc!$C880=1,dati_bdv!$C$2:$C$65536,IF(dati_pdc!$C880=2,dati_bdv!$D$2:$D$65536,IF(dati_pdc!$C880=3,dati_bdv!$E$2:$E$65536,IF(dati_pdc!$C880=4,dati_bdv!$F$2:$F$65536,IF(dati_pdc!$C880=5,dati_bdv!$G$2:$G$65536,dati_bdv!$H$2:$H$65536))))),$A880,dati_bdv!N$2:N$65536)","v":0}]
[{"$f":"dati_pdc!A881","v":0},{"$f":"SUMIF(IF(dati_pdc!$C881=1,dati_bdv!$C$2:$C$65536,IF(dati_pdc!$C881=2,dati_bdv!$D$2:$D$65536,IF(dati_pdc!$C881=3,dati_bdv!$E$2:$E$65536,IF(dati_pdc!$C881=4,dati_bdv!$F$2:$F$65536,IF(dati_pdc!$C881=5,dati_bdv!$G$2:$G$65536,dati_bdv!$H$2:$H$65536))))),$A881,dati_bdv!J$2:J$65536)","v":0},{"$f":"SUMIF(IF(dati_pdc!$C881=1,dati_bdv!$C$2:$C$65536,IF(dati_pdc!$C881=2,dati_bdv!$D$2:$D$65536,IF(dati_pdc!$C881=3,dati_bdv!$E$2:$E$65536,IF(dati_pdc!$C881=4,dati_bdv!$F$2:$F$65536,IF(dati_pdc!$C881=5,dati_bdv!$G$2:$G$65536,dati_bdv!$H$2:$H$65536))))),$A881,dati_bdv!K$2:K$65536)","v":0},{"$f":"SUMIF(IF(dati_pdc!$C881=1,dati_bdv!$C$2:$C$65536,IF(dati_pdc!$C881=2,dati_bdv!$D$2:$D$65536,IF(dati_pdc!$C881=3,dati_bdv!$E$2:$E$65536,IF(dati_pdc!$C881=4,dati_bdv!$F$2:$F$65536,IF(dati_pdc!$C881=5,dati_bdv!$G$2:$G$65536,dati_bdv!$H$2:$H$65536))))),$A881,dati_bdv!L$2:L$65536)","v":0},{"$f":"SUMIF(IF(dati_pdc!$C881=1,dati_bdv!$C$2:$C$65536,IF(dati_pdc!$C881=2,dati_bdv!$D$2:$D$65536,IF(dati_pdc!$C881=3,dati_bdv!$E$2:$E$65536,IF(dati_pdc!$C881=4,dati_bdv!$F$2:$F$65536,IF(dati_pdc!$C881=5,dati_bdv!$G$2:$G$65536,dati_bdv!$H$2:$H$65536))))),$A881,dati_bdv!M$2:M$65536)","v":0},{"$f":"SUMIF(IF(dati_pdc!$C881=1,dati_bdv!$C$2:$C$65536,IF(dati_pdc!$C881=2,dati_bdv!$D$2:$D$65536,IF(dati_pdc!$C881=3,dati_bdv!$E$2:$E$65536,IF(dati_pdc!$C881=4,dati_bdv!$F$2:$F$65536,IF(dati_pdc!$C881=5,dati_bdv!$G$2:$G$65536,dati_bdv!$H$2:$H$65536))))),$A881,dati_bdv!N$2:N$65536)","v":0}]
[{"$f":"dati_pdc!A882","v":0},{"$f":"SUMIF(IF(dati_pdc!$C882=1,dati_bdv!$C$2:$C$65536,IF(dati_pdc!$C882=2,dati_bdv!$D$2:$D$65536,IF(dati_pdc!$C882=3,dati_bdv!$E$2:$E$65536,IF(dati_pdc!$C882=4,dati_bdv!$F$2:$F$65536,IF(dati_pdc!$C882=5,dati_bdv!$G$2:$G$65536,dati_bdv!$H$2:$H$65536))))),$A882,dati_bdv!J$2:J$65536)","v":0},{"$f":"SUMIF(IF(dati_pdc!$C882=1,dati_bdv!$C$2:$C$65536,IF(dati_pdc!$C882=2,dati_bdv!$D$2:$D$65536,IF(dati_pdc!$C882=3,dati_bdv!$E$2:$E$65536,IF(dati_pdc!$C882=4,dati_bdv!$F$2:$F$65536,IF(dati_pdc!$C882=5,dati_bdv!$G$2:$G$65536,dati_bdv!$H$2:$H$65536))))),$A882,dati_bdv!K$2:K$65536)","v":0},{"$f":"SUMIF(IF(dati_pdc!$C882=1,dati_bdv!$C$2:$C$65536,IF(dati_pdc!$C882=2,dati_bdv!$D$2:$D$65536,IF(dati_pdc!$C882=3,dati_bdv!$E$2:$E$65536,IF(dati_pdc!$C882=4,dati_bdv!$F$2:$F$65536,IF(dati_pdc!$C882=5,dati_bdv!$G$2:$G$65536,dati_bdv!$H$2:$H$65536))))),$A882,dati_bdv!L$2:L$65536)","v":0},{"$f":"SUMIF(IF(dati_pdc!$C882=1,dati_bdv!$C$2:$C$65536,IF(dati_pdc!$C882=2,dati_bdv!$D$2:$D$65536,IF(dati_pdc!$C882=3,dati_bdv!$E$2:$E$65536,IF(dati_pdc!$C882=4,dati_bdv!$F$2:$F$65536,IF(dati_pdc!$C882=5,dati_bdv!$G$2:$G$65536,dati_bdv!$H$2:$H$65536))))),$A882,dati_bdv!M$2:M$65536)","v":0},{"$f":"SUMIF(IF(dati_pdc!$C882=1,dati_bdv!$C$2:$C$65536,IF(dati_pdc!$C882=2,dati_bdv!$D$2:$D$65536,IF(dati_pdc!$C882=3,dati_bdv!$E$2:$E$65536,IF(dati_pdc!$C882=4,dati_bdv!$F$2:$F$65536,IF(dati_pdc!$C882=5,dati_bdv!$G$2:$G$65536,dati_bdv!$H$2:$H$65536))))),$A882,dati_bdv!N$2:N$65536)","v":0}]
[{"$f":"dati_pdc!A883","v":0},{"$f":"SUMIF(IF(dati_pdc!$C883=1,dati_bdv!$C$2:$C$65536,IF(dati_pdc!$C883=2,dati_bdv!$D$2:$D$65536,IF(dati_pdc!$C883=3,dati_bdv!$E$2:$E$65536,IF(dati_pdc!$C883=4,dati_bdv!$F$2:$F$65536,IF(dati_pdc!$C883=5,dati_bdv!$G$2:$G$65536,dati_bdv!$H$2:$H$65536))))),$A883,dati_bdv!J$2:J$65536)","v":0},{"$f":"SUMIF(IF(dati_pdc!$C883=1,dati_bdv!$C$2:$C$65536,IF(dati_pdc!$C883=2,dati_bdv!$D$2:$D$65536,IF(dati_pdc!$C883=3,dati_bdv!$E$2:$E$65536,IF(dati_pdc!$C883=4,dati_bdv!$F$2:$F$65536,IF(dati_pdc!$C883=5,dati_bdv!$G$2:$G$65536,dati_bdv!$H$2:$H$65536))))),$A883,dati_bdv!K$2:K$65536)","v":0},{"$f":"SUMIF(IF(dati_pdc!$C883=1,dati_bdv!$C$2:$C$65536,IF(dati_pdc!$C883=2,dati_bdv!$D$2:$D$65536,IF(dati_pdc!$C883=3,dati_bdv!$E$2:$E$65536,IF(dati_pdc!$C883=4,dati_bdv!$F$2:$F$65536,IF(dati_pdc!$C883=5,dati_bdv!$G$2:$G$65536,dati_bdv!$H$2:$H$65536))))),$A883,dati_bdv!L$2:L$65536)","v":0},{"$f":"SUMIF(IF(dati_pdc!$C883=1,dati_bdv!$C$2:$C$65536,IF(dati_pdc!$C883=2,dati_bdv!$D$2:$D$65536,IF(dati_pdc!$C883=3,dati_bdv!$E$2:$E$65536,IF(dati_pdc!$C883=4,dati_bdv!$F$2:$F$65536,IF(dati_pdc!$C883=5,dati_bdv!$G$2:$G$65536,dati_bdv!$H$2:$H$65536))))),$A883,dati_bdv!M$2:M$65536)","v":0},{"$f":"SUMIF(IF(dati_pdc!$C883=1,dati_bdv!$C$2:$C$65536,IF(dati_pdc!$C883=2,dati_bdv!$D$2:$D$65536,IF(dati_pdc!$C883=3,dati_bdv!$E$2:$E$65536,IF(dati_pdc!$C883=4,dati_bdv!$F$2:$F$65536,IF(dati_pdc!$C883=5,dati_bdv!$G$2:$G$65536,dati_bdv!$H$2:$H$65536))))),$A883,dati_bdv!N$2:N$65536)","v":0}]
[{"$f":"dati_pdc!A884","v":0},{"$f":"SUMIF(IF(dati_pdc!$C884=1,dati_bdv!$C$2:$C$65536,IF(dati_pdc!$C884=2,dati_bdv!$D$2:$D$65536,IF(dati_pdc!$C884=3,dati_bdv!$E$2:$E$65536,IF(dati_pdc!$C884=4,dati_bdv!$F$2:$F$65536,IF(dati_pdc!$C884=5,dati_bdv!$G$2:$G$65536,dati_bdv!$H$2:$H$65536))))),$A884,dati_bdv!J$2:J$65536)","v":0},{"$f":"SUMIF(IF(dati_pdc!$C884=1,dati_bdv!$C$2:$C$65536,IF(dati_pdc!$C884=2,dati_bdv!$D$2:$D$65536,IF(dati_pdc!$C884=3,dati_bdv!$E$2:$E$65536,IF(dati_pdc!$C884=4,dati_bdv!$F$2:$F$65536,IF(dati_pdc!$C884=5,dati_bdv!$G$2:$G$65536,dati_bdv!$H$2:$H$65536))))),$A884,dati_bdv!K$2:K$65536)","v":0},{"$f":"SUMIF(IF(dati_pdc!$C884=1,dati_bdv!$C$2:$C$65536,IF(dati_pdc!$C884=2,dati_bdv!$D$2:$D$65536,IF(dati_pdc!$C884=3,dati_bdv!$E$2:$E$65536,IF(dati_pdc!$C884=4,dati_bdv!$F$2:$F$65536,IF(dati_pdc!$C884=5,dati_bdv!$G$2:$G$65536,dati_bdv!$H$2:$H$65536))))),$A884,dati_bdv!L$2:L$65536)","v":0},{"$f":"SUMIF(IF(dati_pdc!$C884=1,dati_bdv!$C$2:$C$65536,IF(dati_pdc!$C884=2,dati_bdv!$D$2:$D$65536,IF(dati_pdc!$C884=3,dati_bdv!$E$2:$E$65536,IF(dati_pdc!$C884=4,dati_bdv!$F$2:$F$65536,IF(dati_pdc!$C884=5,dati_bdv!$G$2:$G$65536,dati_bdv!$H$2:$H$65536))))),$A884,dati_bdv!M$2:M$65536)","v":0},{"$f":"SUMIF(IF(dati_pdc!$C884=1,dati_bdv!$C$2:$C$65536,IF(dati_pdc!$C884=2,dati_bdv!$D$2:$D$65536,IF(dati_pdc!$C884=3,dati_bdv!$E$2:$E$65536,IF(dati_pdc!$C884=4,dati_bdv!$F$2:$F$65536,IF(dati_pdc!$C884=5,dati_bdv!$G$2:$G$65536,dati_bdv!$H$2:$H$65536))))),$A884,dati_bdv!N$2:N$65536)","v":0}]
[{"$f":"dati_pdc!A885","v":0},{"$f":"SUMIF(IF(dati_pdc!$C885=1,dati_bdv!$C$2:$C$65536,IF(dati_pdc!$C885=2,dati_bdv!$D$2:$D$65536,IF(dati_pdc!$C885=3,dati_bdv!$E$2:$E$65536,IF(dati_pdc!$C885=4,dati_bdv!$F$2:$F$65536,IF(dati_pdc!$C885=5,dati_bdv!$G$2:$G$65536,dati_bdv!$H$2:$H$65536))))),$A885,dati_bdv!J$2:J$65536)","v":0},{"$f":"SUMIF(IF(dati_pdc!$C885=1,dati_bdv!$C$2:$C$65536,IF(dati_pdc!$C885=2,dati_bdv!$D$2:$D$65536,IF(dati_pdc!$C885=3,dati_bdv!$E$2:$E$65536,IF(dati_pdc!$C885=4,dati_bdv!$F$2:$F$65536,IF(dati_pdc!$C885=5,dati_bdv!$G$2:$G$65536,dati_bdv!$H$2:$H$65536))))),$A885,dati_bdv!K$2:K$65536)","v":0},{"$f":"SUMIF(IF(dati_pdc!$C885=1,dati_bdv!$C$2:$C$65536,IF(dati_pdc!$C885=2,dati_bdv!$D$2:$D$65536,IF(dati_pdc!$C885=3,dati_bdv!$E$2:$E$65536,IF(dati_pdc!$C885=4,dati_bdv!$F$2:$F$65536,IF(dati_pdc!$C885=5,dati_bdv!$G$2:$G$65536,dati_bdv!$H$2:$H$65536))))),$A885,dati_bdv!L$2:L$65536)","v":0},{"$f":"SUMIF(IF(dati_pdc!$C885=1,dati_bdv!$C$2:$C$65536,IF(dati_pdc!$C885=2,dati_bdv!$D$2:$D$65536,IF(dati_pdc!$C885=3,dati_bdv!$E$2:$E$65536,IF(dati_pdc!$C885=4,dati_bdv!$F$2:$F$65536,IF(dati_pdc!$C885=5,dati_bdv!$G$2:$G$65536,dati_bdv!$H$2:$H$65536))))),$A885,dati_bdv!M$2:M$65536)","v":0},{"$f":"SUMIF(IF(dati_pdc!$C885=1,dati_bdv!$C$2:$C$65536,IF(dati_pdc!$C885=2,dati_bdv!$D$2:$D$65536,IF(dati_pdc!$C885=3,dati_bdv!$E$2:$E$65536,IF(dati_pdc!$C885=4,dati_bdv!$F$2:$F$65536,IF(dati_pdc!$C885=5,dati_bdv!$G$2:$G$65536,dati_bdv!$H$2:$H$65536))))),$A885,dati_bdv!N$2:N$65536)","v":0}]
[{"$f":"dati_pdc!A886","v":0},{"$f":"SUMIF(IF(dati_pdc!$C886=1,dati_bdv!$C$2:$C$65536,IF(dati_pdc!$C886=2,dati_bdv!$D$2:$D$65536,IF(dati_pdc!$C886=3,dati_bdv!$E$2:$E$65536,IF(dati_pdc!$C886=4,dati_bdv!$F$2:$F$65536,IF(dati_pdc!$C886=5,dati_bdv!$G$2:$G$65536,dati_bdv!$H$2:$H$65536))))),$A886,dati_bdv!J$2:J$65536)","v":0},{"$f":"SUMIF(IF(dati_pdc!$C886=1,dati_bdv!$C$2:$C$65536,IF(dati_pdc!$C886=2,dati_bdv!$D$2:$D$65536,IF(dati_pdc!$C886=3,dati_bdv!$E$2:$E$65536,IF(dati_pdc!$C886=4,dati_bdv!$F$2:$F$65536,IF(dati_pdc!$C886=5,dati_bdv!$G$2:$G$65536,dati_bdv!$H$2:$H$65536))))),$A886,dati_bdv!K$2:K$65536)","v":0},{"$f":"SUMIF(IF(dati_pdc!$C886=1,dati_bdv!$C$2:$C$65536,IF(dati_pdc!$C886=2,dati_bdv!$D$2:$D$65536,IF(dati_pdc!$C886=3,dati_bdv!$E$2:$E$65536,IF(dati_pdc!$C886=4,dati_bdv!$F$2:$F$65536,IF(dati_pdc!$C886=5,dati_bdv!$G$2:$G$65536,dati_bdv!$H$2:$H$65536))))),$A886,dati_bdv!L$2:L$65536)","v":0},{"$f":"SUMIF(IF(dati_pdc!$C886=1,dati_bdv!$C$2:$C$65536,IF(dati_pdc!$C886=2,dati_bdv!$D$2:$D$65536,IF(dati_pdc!$C886=3,dati_bdv!$E$2:$E$65536,IF(dati_pdc!$C886=4,dati_bdv!$F$2:$F$65536,IF(dati_pdc!$C886=5,dati_bdv!$G$2:$G$65536,dati_bdv!$H$2:$H$65536))))),$A886,dati_bdv!M$2:M$65536)","v":0},{"$f":"SUMIF(IF(dati_pdc!$C886=1,dati_bdv!$C$2:$C$65536,IF(dati_pdc!$C886=2,dati_bdv!$D$2:$D$65536,IF(dati_pdc!$C886=3,dati_bdv!$E$2:$E$65536,IF(dati_pdc!$C886=4,dati_bdv!$F$2:$F$65536,IF(dati_pdc!$C886=5,dati_bdv!$G$2:$G$65536,dati_bdv!$H$2:$H$65536))))),$A886,dati_bdv!N$2:N$65536)","v":0}]
[{"$f":"dati_pdc!A887","v":0},{"$f":"SUMIF(IF(dati_pdc!$C887=1,dati_bdv!$C$2:$C$65536,IF(dati_pdc!$C887=2,dati_bdv!$D$2:$D$65536,IF(dati_pdc!$C887=3,dati_bdv!$E$2:$E$65536,IF(dati_pdc!$C887=4,dati_bdv!$F$2:$F$65536,IF(dati_pdc!$C887=5,dati_bdv!$G$2:$G$65536,dati_bdv!$H$2:$H$65536))))),$A887,dati_bdv!J$2:J$65536)","v":0},{"$f":"SUMIF(IF(dati_pdc!$C887=1,dati_bdv!$C$2:$C$65536,IF(dati_pdc!$C887=2,dati_bdv!$D$2:$D$65536,IF(dati_pdc!$C887=3,dati_bdv!$E$2:$E$65536,IF(dati_pdc!$C887=4,dati_bdv!$F$2:$F$65536,IF(dati_pdc!$C887=5,dati_bdv!$G$2:$G$65536,dati_bdv!$H$2:$H$65536))))),$A887,dati_bdv!K$2:K$65536)","v":0},{"$f":"SUMIF(IF(dati_pdc!$C887=1,dati_bdv!$C$2:$C$65536,IF(dati_pdc!$C887=2,dati_bdv!$D$2:$D$65536,IF(dati_pdc!$C887=3,dati_bdv!$E$2:$E$65536,IF(dati_pdc!$C887=4,dati_bdv!$F$2:$F$65536,IF(dati_pdc!$C887=5,dati_bdv!$G$2:$G$65536,dati_bdv!$H$2:$H$65536))))),$A887,dati_bdv!L$2:L$65536)","v":0},{"$f":"SUMIF(IF(dati_pdc!$C887=1,dati_bdv!$C$2:$C$65536,IF(dati_pdc!$C887=2,dati_bdv!$D$2:$D$65536,IF(dati_pdc!$C887=3,dati_bdv!$E$2:$E$65536,IF(dati_pdc!$C887=4,dati_bdv!$F$2:$F$65536,IF(dati_pdc!$C887=5,dati_bdv!$G$2:$G$65536,dati_bdv!$H$2:$H$65536))))),$A887,dati_bdv!M$2:M$65536)","v":0},{"$f":"SUMIF(IF(dati_pdc!$C887=1,dati_bdv!$C$2:$C$65536,IF(dati_pdc!$C887=2,dati_bdv!$D$2:$D$65536,IF(dati_pdc!$C887=3,dati_bdv!$E$2:$E$65536,IF(dati_pdc!$C887=4,dati_bdv!$F$2:$F$65536,IF(dati_pdc!$C887=5,dati_bdv!$G$2:$G$65536,dati_bdv!$H$2:$H$65536))))),$A887,dati_bdv!N$2:N$65536)","v":0}]
[{"$f":"dati_pdc!A888","v":0},{"$f":"SUMIF(IF(dati_pdc!$C888=1,dati_bdv!$C$2:$C$65536,IF(dati_pdc!$C888=2,dati_bdv!$D$2:$D$65536,IF(dati_pdc!$C888=3,dati_bdv!$E$2:$E$65536,IF(dati_pdc!$C888=4,dati_bdv!$F$2:$F$65536,IF(dati_pdc!$C888=5,dati_bdv!$G$2:$G$65536,dati_bdv!$H$2:$H$65536))))),$A888,dati_bdv!J$2:J$65536)","v":0},{"$f":"SUMIF(IF(dati_pdc!$C888=1,dati_bdv!$C$2:$C$65536,IF(dati_pdc!$C888=2,dati_bdv!$D$2:$D$65536,IF(dati_pdc!$C888=3,dati_bdv!$E$2:$E$65536,IF(dati_pdc!$C888=4,dati_bdv!$F$2:$F$65536,IF(dati_pdc!$C888=5,dati_bdv!$G$2:$G$65536,dati_bdv!$H$2:$H$65536))))),$A888,dati_bdv!K$2:K$65536)","v":0},{"$f":"SUMIF(IF(dati_pdc!$C888=1,dati_bdv!$C$2:$C$65536,IF(dati_pdc!$C888=2,dati_bdv!$D$2:$D$65536,IF(dati_pdc!$C888=3,dati_bdv!$E$2:$E$65536,IF(dati_pdc!$C888=4,dati_bdv!$F$2:$F$65536,IF(dati_pdc!$C888=5,dati_bdv!$G$2:$G$65536,dati_bdv!$H$2:$H$65536))))),$A888,dati_bdv!L$2:L$65536)","v":0},{"$f":"SUMIF(IF(dati_pdc!$C888=1,dati_bdv!$C$2:$C$65536,IF(dati_pdc!$C888=2,dati_bdv!$D$2:$D$65536,IF(dati_pdc!$C888=3,dati_bdv!$E$2:$E$65536,IF(dati_pdc!$C888=4,dati_bdv!$F$2:$F$65536,IF(dati_pdc!$C888=5,dati_bdv!$G$2:$G$65536,dati_bdv!$H$2:$H$65536))))),$A888,dati_bdv!M$2:M$65536)","v":0},{"$f":"SUMIF(IF(dati_pdc!$C888=1,dati_bdv!$C$2:$C$65536,IF(dati_pdc!$C888=2,dati_bdv!$D$2:$D$65536,IF(dati_pdc!$C888=3,dati_bdv!$E$2:$E$65536,IF(dati_pdc!$C888=4,dati_bdv!$F$2:$F$65536,IF(dati_pdc!$C888=5,dati_bdv!$G$2:$G$65536,dati_bdv!$H$2:$H$65536))))),$A888,dati_bdv!N$2:N$65536)","v":0}]
[{"$f":"dati_pdc!A889","v":0},{"$f":"SUMIF(IF(dati_pdc!$C889=1,dati_bdv!$C$2:$C$65536,IF(dati_pdc!$C889=2,dati_bdv!$D$2:$D$65536,IF(dati_pdc!$C889=3,dati_bdv!$E$2:$E$65536,IF(dati_pdc!$C889=4,dati_bdv!$F$2:$F$65536,IF(dati_pdc!$C889=5,dati_bdv!$G$2:$G$65536,dati_bdv!$H$2:$H$65536))))),$A889,dati_bdv!J$2:J$65536)","v":0},{"$f":"SUMIF(IF(dati_pdc!$C889=1,dati_bdv!$C$2:$C$65536,IF(dati_pdc!$C889=2,dati_bdv!$D$2:$D$65536,IF(dati_pdc!$C889=3,dati_bdv!$E$2:$E$65536,IF(dati_pdc!$C889=4,dati_bdv!$F$2:$F$65536,IF(dati_pdc!$C889=5,dati_bdv!$G$2:$G$65536,dati_bdv!$H$2:$H$65536))))),$A889,dati_bdv!K$2:K$65536)","v":0},{"$f":"SUMIF(IF(dati_pdc!$C889=1,dati_bdv!$C$2:$C$65536,IF(dati_pdc!$C889=2,dati_bdv!$D$2:$D$65536,IF(dati_pdc!$C889=3,dati_bdv!$E$2:$E$65536,IF(dati_pdc!$C889=4,dati_bdv!$F$2:$F$65536,IF(dati_pdc!$C889=5,dati_bdv!$G$2:$G$65536,dati_bdv!$H$2:$H$65536))))),$A889,dati_bdv!L$2:L$65536)","v":0},{"$f":"SUMIF(IF(dati_pdc!$C889=1,dati_bdv!$C$2:$C$65536,IF(dati_pdc!$C889=2,dati_bdv!$D$2:$D$65536,IF(dati_pdc!$C889=3,dati_bdv!$E$2:$E$65536,IF(dati_pdc!$C889=4,dati_bdv!$F$2:$F$65536,IF(dati_pdc!$C889=5,dati_bdv!$G$2:$G$65536,dati_bdv!$H$2:$H$65536))))),$A889,dati_bdv!M$2:M$65536)","v":0},{"$f":"SUMIF(IF(dati_pdc!$C889=1,dati_bdv!$C$2:$C$65536,IF(dati_pdc!$C889=2,dati_bdv!$D$2:$D$65536,IF(dati_pdc!$C889=3,dati_bdv!$E$2:$E$65536,IF(dati_pdc!$C889=4,dati_bdv!$F$2:$F$65536,IF(dati_pdc!$C889=5,dati_bdv!$G$2:$G$65536,dati_bdv!$H$2:$H$65536))))),$A889,dati_bdv!N$2:N$65536)","v":0}]
[{"$f":"dati_pdc!A890","v":0},{"$f":"SUMIF(IF(dati_pdc!$C890=1,dati_bdv!$C$2:$C$65536,IF(dati_pdc!$C890=2,dati_bdv!$D$2:$D$65536,IF(dati_pdc!$C890=3,dati_bdv!$E$2:$E$65536,IF(dati_pdc!$C890=4,dati_bdv!$F$2:$F$65536,IF(dati_pdc!$C890=5,dati_bdv!$G$2:$G$65536,dati_bdv!$H$2:$H$65536))))),$A890,dati_bdv!J$2:J$65536)","v":0},{"$f":"SUMIF(IF(dati_pdc!$C890=1,dati_bdv!$C$2:$C$65536,IF(dati_pdc!$C890=2,dati_bdv!$D$2:$D$65536,IF(dati_pdc!$C890=3,dati_bdv!$E$2:$E$65536,IF(dati_pdc!$C890=4,dati_bdv!$F$2:$F$65536,IF(dati_pdc!$C890=5,dati_bdv!$G$2:$G$65536,dati_bdv!$H$2:$H$65536))))),$A890,dati_bdv!K$2:K$65536)","v":0},{"$f":"SUMIF(IF(dati_pdc!$C890=1,dati_bdv!$C$2:$C$65536,IF(dati_pdc!$C890=2,dati_bdv!$D$2:$D$65536,IF(dati_pdc!$C890=3,dati_bdv!$E$2:$E$65536,IF(dati_pdc!$C890=4,dati_bdv!$F$2:$F$65536,IF(dati_pdc!$C890=5,dati_bdv!$G$2:$G$65536,dati_bdv!$H$2:$H$65536))))),$A890,dati_bdv!L$2:L$65536)","v":0},{"$f":"SUMIF(IF(dati_pdc!$C890=1,dati_bdv!$C$2:$C$65536,IF(dati_pdc!$C890=2,dati_bdv!$D$2:$D$65536,IF(dati_pdc!$C890=3,dati_bdv!$E$2:$E$65536,IF(dati_pdc!$C890=4,dati_bdv!$F$2:$F$65536,IF(dati_pdc!$C890=5,dati_bdv!$G$2:$G$65536,dati_bdv!$H$2:$H$65536))))),$A890,dati_bdv!M$2:M$65536)","v":0},{"$f":"SUMIF(IF(dati_pdc!$C890=1,dati_bdv!$C$2:$C$65536,IF(dati_pdc!$C890=2,dati_bdv!$D$2:$D$65536,IF(dati_pdc!$C890=3,dati_bdv!$E$2:$E$65536,IF(dati_pdc!$C890=4,dati_bdv!$F$2:$F$65536,IF(dati_pdc!$C890=5,dati_bdv!$G$2:$G$65536,dati_bdv!$H$2:$H$65536))))),$A890,dati_bdv!N$2:N$65536)","v":0}]
[{"$f":"dati_pdc!A891","v":0},{"$f":"SUMIF(IF(dati_pdc!$C891=1,dati_bdv!$C$2:$C$65536,IF(dati_pdc!$C891=2,dati_bdv!$D$2:$D$65536,IF(dati_pdc!$C891=3,dati_bdv!$E$2:$E$65536,IF(dati_pdc!$C891=4,dati_bdv!$F$2:$F$65536,IF(dati_pdc!$C891=5,dati_bdv!$G$2:$G$65536,dati_bdv!$H$2:$H$65536))))),$A891,dati_bdv!J$2:J$65536)","v":0},{"$f":"SUMIF(IF(dati_pdc!$C891=1,dati_bdv!$C$2:$C$65536,IF(dati_pdc!$C891=2,dati_bdv!$D$2:$D$65536,IF(dati_pdc!$C891=3,dati_bdv!$E$2:$E$65536,IF(dati_pdc!$C891=4,dati_bdv!$F$2:$F$65536,IF(dati_pdc!$C891=5,dati_bdv!$G$2:$G$65536,dati_bdv!$H$2:$H$65536))))),$A891,dati_bdv!K$2:K$65536)","v":0},{"$f":"SUMIF(IF(dati_pdc!$C891=1,dati_bdv!$C$2:$C$65536,IF(dati_pdc!$C891=2,dati_bdv!$D$2:$D$65536,IF(dati_pdc!$C891=3,dati_bdv!$E$2:$E$65536,IF(dati_pdc!$C891=4,dati_bdv!$F$2:$F$65536,IF(dati_pdc!$C891=5,dati_bdv!$G$2:$G$65536,dati_bdv!$H$2:$H$65536))))),$A891,dati_bdv!L$2:L$65536)","v":0},{"$f":"SUMIF(IF(dati_pdc!$C891=1,dati_bdv!$C$2:$C$65536,IF(dati_pdc!$C891=2,dati_bdv!$D$2:$D$65536,IF(dati_pdc!$C891=3,dati_bdv!$E$2:$E$65536,IF(dati_pdc!$C891=4,dati_bdv!$F$2:$F$65536,IF(dati_pdc!$C891=5,dati_bdv!$G$2:$G$65536,dati_bdv!$H$2:$H$65536))))),$A891,dati_bdv!M$2:M$65536)","v":0},{"$f":"SUMIF(IF(dati_pdc!$C891=1,dati_bdv!$C$2:$C$65536,IF(dati_pdc!$C891=2,dati_bdv!$D$2:$D$65536,IF(dati_pdc!$C891=3,dati_bdv!$E$2:$E$65536,IF(dati_pdc!$C891=4,dati_bdv!$F$2:$F$65536,IF(dati_pdc!$C891=5,dati_bdv!$G$2:$G$65536,dati_bdv!$H$2:$H$65536))))),$A891,dati_bdv!N$2:N$65536)","v":0}]
[{"$f":"dati_pdc!A892","v":0},{"$f":"SUMIF(IF(dati_pdc!$C892=1,dati_bdv!$C$2:$C$65536,IF(dati_pdc!$C892=2,dati_bdv!$D$2:$D$65536,IF(dati_pdc!$C892=3,dati_bdv!$E$2:$E$65536,IF(dati_pdc!$C892=4,dati_bdv!$F$2:$F$65536,IF(dati_pdc!$C892=5,dati_bdv!$G$2:$G$65536,dati_bdv!$H$2:$H$65536))))),$A892,dati_bdv!J$2:J$65536)","v":0},{"$f":"SUMIF(IF(dati_pdc!$C892=1,dati_bdv!$C$2:$C$65536,IF(dati_pdc!$C892=2,dati_bdv!$D$2:$D$65536,IF(dati_pdc!$C892=3,dati_bdv!$E$2:$E$65536,IF(dati_pdc!$C892=4,dati_bdv!$F$2:$F$65536,IF(dati_pdc!$C892=5,dati_bdv!$G$2:$G$65536,dati_bdv!$H$2:$H$65536))))),$A892,dati_bdv!K$2:K$65536)","v":0},{"$f":"SUMIF(IF(dati_pdc!$C892=1,dati_bdv!$C$2:$C$65536,IF(dati_pdc!$C892=2,dati_bdv!$D$2:$D$65536,IF(dati_pdc!$C892=3,dati_bdv!$E$2:$E$65536,IF(dati_pdc!$C892=4,dati_bdv!$F$2:$F$65536,IF(dati_pdc!$C892=5,dati_bdv!$G$2:$G$65536,dati_bdv!$H$2:$H$65536))))),$A892,dati_bdv!L$2:L$65536)","v":0},{"$f":"SUMIF(IF(dati_pdc!$C892=1,dati_bdv!$C$2:$C$65536,IF(dati_pdc!$C892=2,dati_bdv!$D$2:$D$65536,IF(dati_pdc!$C892=3,dati_bdv!$E$2:$E$65536,IF(dati_pdc!$C892=4,dati_bdv!$F$2:$F$65536,IF(dati_pdc!$C892=5,dati_bdv!$G$2:$G$65536,dati_bdv!$H$2:$H$65536))))),$A892,dati_bdv!M$2:M$65536)","v":0},{"$f":"SUMIF(IF(dati_pdc!$C892=1,dati_bdv!$C$2:$C$65536,IF(dati_pdc!$C892=2,dati_bdv!$D$2:$D$65536,IF(dati_pdc!$C892=3,dati_bdv!$E$2:$E$65536,IF(dati_pdc!$C892=4,dati_bdv!$F$2:$F$65536,IF(dati_pdc!$C892=5,dati_bdv!$G$2:$G$65536,dati_bdv!$H$2:$H$65536))))),$A892,dati_bdv!N$2:N$65536)","v":0}]
[{"$f":"dati_pdc!A893","v":0},{"$f":"SUMIF(IF(dati_pdc!$C893=1,dati_bdv!$C$2:$C$65536,IF(dati_pdc!$C893=2,dati_bdv!$D$2:$D$65536,IF(dati_pdc!$C893=3,dati_bdv!$E$2:$E$65536,IF(dati_pdc!$C893=4,dati_bdv!$F$2:$F$65536,IF(dati_pdc!$C893=5,dati_bdv!$G$2:$G$65536,dati_bdv!$H$2:$H$65536))))),$A893,dati_bdv!J$2:J$65536)","v":0},{"$f":"SUMIF(IF(dati_pdc!$C893=1,dati_bdv!$C$2:$C$65536,IF(dati_pdc!$C893=2,dati_bdv!$D$2:$D$65536,IF(dati_pdc!$C893=3,dati_bdv!$E$2:$E$65536,IF(dati_pdc!$C893=4,dati_bdv!$F$2:$F$65536,IF(dati_pdc!$C893=5,dati_bdv!$G$2:$G$65536,dati_bdv!$H$2:$H$65536))))),$A893,dati_bdv!K$2:K$65536)","v":0},{"$f":"SUMIF(IF(dati_pdc!$C893=1,dati_bdv!$C$2:$C$65536,IF(dati_pdc!$C893=2,dati_bdv!$D$2:$D$65536,IF(dati_pdc!$C893=3,dati_bdv!$E$2:$E$65536,IF(dati_pdc!$C893=4,dati_bdv!$F$2:$F$65536,IF(dati_pdc!$C893=5,dati_bdv!$G$2:$G$65536,dati_bdv!$H$2:$H$65536))))),$A893,dati_bdv!L$2:L$65536)","v":0},{"$f":"SUMIF(IF(dati_pdc!$C893=1,dati_bdv!$C$2:$C$65536,IF(dati_pdc!$C893=2,dati_bdv!$D$2:$D$65536,IF(dati_pdc!$C893=3,dati_bdv!$E$2:$E$65536,IF(dati_pdc!$C893=4,dati_bdv!$F$2:$F$65536,IF(dati_pdc!$C893=5,dati_bdv!$G$2:$G$65536,dati_bdv!$H$2:$H$65536))))),$A893,dati_bdv!M$2:M$65536)","v":0},{"$f":"SUMIF(IF(dati_pdc!$C893=1,dati_bdv!$C$2:$C$65536,IF(dati_pdc!$C893=2,dati_bdv!$D$2:$D$65536,IF(dati_pdc!$C893=3,dati_bdv!$E$2:$E$65536,IF(dati_pdc!$C893=4,dati_bdv!$F$2:$F$65536,IF(dati_pdc!$C893=5,dati_bdv!$G$2:$G$65536,dati_bdv!$H$2:$H$65536))))),$A893,dati_bdv!N$2:N$65536)","v":0}]
[{"$f":"dati_pdc!A894","v":0},{"$f":"SUMIF(IF(dati_pdc!$C894=1,dati_bdv!$C$2:$C$65536,IF(dati_pdc!$C894=2,dati_bdv!$D$2:$D$65536,IF(dati_pdc!$C894=3,dati_bdv!$E$2:$E$65536,IF(dati_pdc!$C894=4,dati_bdv!$F$2:$F$65536,IF(dati_pdc!$C894=5,dati_bdv!$G$2:$G$65536,dati_bdv!$H$2:$H$65536))))),$A894,dati_bdv!J$2:J$65536)","v":0},{"$f":"SUMIF(IF(dati_pdc!$C894=1,dati_bdv!$C$2:$C$65536,IF(dati_pdc!$C894=2,dati_bdv!$D$2:$D$65536,IF(dati_pdc!$C894=3,dati_bdv!$E$2:$E$65536,IF(dati_pdc!$C894=4,dati_bdv!$F$2:$F$65536,IF(dati_pdc!$C894=5,dati_bdv!$G$2:$G$65536,dati_bdv!$H$2:$H$65536))))),$A894,dati_bdv!K$2:K$65536)","v":0},{"$f":"SUMIF(IF(dati_pdc!$C894=1,dati_bdv!$C$2:$C$65536,IF(dati_pdc!$C894=2,dati_bdv!$D$2:$D$65536,IF(dati_pdc!$C894=3,dati_bdv!$E$2:$E$65536,IF(dati_pdc!$C894=4,dati_bdv!$F$2:$F$65536,IF(dati_pdc!$C894=5,dati_bdv!$G$2:$G$65536,dati_bdv!$H$2:$H$65536))))),$A894,dati_bdv!L$2:L$65536)","v":0},{"$f":"SUMIF(IF(dati_pdc!$C894=1,dati_bdv!$C$2:$C$65536,IF(dati_pdc!$C894=2,dati_bdv!$D$2:$D$65536,IF(dati_pdc!$C894=3,dati_bdv!$E$2:$E$65536,IF(dati_pdc!$C894=4,dati_bdv!$F$2:$F$65536,IF(dati_pdc!$C894=5,dati_bdv!$G$2:$G$65536,dati_bdv!$H$2:$H$65536))))),$A894,dati_bdv!M$2:M$65536)","v":0},{"$f":"SUMIF(IF(dati_pdc!$C894=1,dati_bdv!$C$2:$C$65536,IF(dati_pdc!$C894=2,dati_bdv!$D$2:$D$65536,IF(dati_pdc!$C894=3,dati_bdv!$E$2:$E$65536,IF(dati_pdc!$C894=4,dati_bdv!$F$2:$F$65536,IF(dati_pdc!$C894=5,dati_bdv!$G$2:$G$65536,dati_bdv!$H$2:$H$65536))))),$A894,dati_bdv!N$2:N$65536)","v":0}]
[{"$f":"dati_pdc!A895","v":0},{"$f":"SUMIF(IF(dati_pdc!$C895=1,dati_bdv!$C$2:$C$65536,IF(dati_pdc!$C895=2,dati_bdv!$D$2:$D$65536,IF(dati_pdc!$C895=3,dati_bdv!$E$2:$E$65536,IF(dati_pdc!$C895=4,dati_bdv!$F$2:$F$65536,IF(dati_pdc!$C895=5,dati_bdv!$G$2:$G$65536,dati_bdv!$H$2:$H$65536))))),$A895,dati_bdv!J$2:J$65536)","v":0},{"$f":"SUMIF(IF(dati_pdc!$C895=1,dati_bdv!$C$2:$C$65536,IF(dati_pdc!$C895=2,dati_bdv!$D$2:$D$65536,IF(dati_pdc!$C895=3,dati_bdv!$E$2:$E$65536,IF(dati_pdc!$C895=4,dati_bdv!$F$2:$F$65536,IF(dati_pdc!$C895=5,dati_bdv!$G$2:$G$65536,dati_bdv!$H$2:$H$65536))))),$A895,dati_bdv!K$2:K$65536)","v":0},{"$f":"SUMIF(IF(dati_pdc!$C895=1,dati_bdv!$C$2:$C$65536,IF(dati_pdc!$C895=2,dati_bdv!$D$2:$D$65536,IF(dati_pdc!$C895=3,dati_bdv!$E$2:$E$65536,IF(dati_pdc!$C895=4,dati_bdv!$F$2:$F$65536,IF(dati_pdc!$C895=5,dati_bdv!$G$2:$G$65536,dati_bdv!$H$2:$H$65536))))),$A895,dati_bdv!L$2:L$65536)","v":0},{"$f":"SUMIF(IF(dati_pdc!$C895=1,dati_bdv!$C$2:$C$65536,IF(dati_pdc!$C895=2,dati_bdv!$D$2:$D$65536,IF(dati_pdc!$C895=3,dati_bdv!$E$2:$E$65536,IF(dati_pdc!$C895=4,dati_bdv!$F$2:$F$65536,IF(dati_pdc!$C895=5,dati_bdv!$G$2:$G$65536,dati_bdv!$H$2:$H$65536))))),$A895,dati_bdv!M$2:M$65536)","v":0},{"$f":"SUMIF(IF(dati_pdc!$C895=1,dati_bdv!$C$2:$C$65536,IF(dati_pdc!$C895=2,dati_bdv!$D$2:$D$65536,IF(dati_pdc!$C895=3,dati_bdv!$E$2:$E$65536,IF(dati_pdc!$C895=4,dati_bdv!$F$2:$F$65536,IF(dati_pdc!$C895=5,dati_bdv!$G$2:$G$65536,dati_bdv!$H$2:$H$65536))))),$A895,dati_bdv!N$2:N$65536)","v":0}]
[{"$f":"dati_pdc!A896","v":0},{"$f":"SUMIF(IF(dati_pdc!$C896=1,dati_bdv!$C$2:$C$65536,IF(dati_pdc!$C896=2,dati_bdv!$D$2:$D$65536,IF(dati_pdc!$C896=3,dati_bdv!$E$2:$E$65536,IF(dati_pdc!$C896=4,dati_bdv!$F$2:$F$65536,IF(dati_pdc!$C896=5,dati_bdv!$G$2:$G$65536,dati_bdv!$H$2:$H$65536))))),$A896,dati_bdv!J$2:J$65536)","v":0},{"$f":"SUMIF(IF(dati_pdc!$C896=1,dati_bdv!$C$2:$C$65536,IF(dati_pdc!$C896=2,dati_bdv!$D$2:$D$65536,IF(dati_pdc!$C896=3,dati_bdv!$E$2:$E$65536,IF(dati_pdc!$C896=4,dati_bdv!$F$2:$F$65536,IF(dati_pdc!$C896=5,dati_bdv!$G$2:$G$65536,dati_bdv!$H$2:$H$65536))))),$A896,dati_bdv!K$2:K$65536)","v":0},{"$f":"SUMIF(IF(dati_pdc!$C896=1,dati_bdv!$C$2:$C$65536,IF(dati_pdc!$C896=2,dati_bdv!$D$2:$D$65536,IF(dati_pdc!$C896=3,dati_bdv!$E$2:$E$65536,IF(dati_pdc!$C896=4,dati_bdv!$F$2:$F$65536,IF(dati_pdc!$C896=5,dati_bdv!$G$2:$G$65536,dati_bdv!$H$2:$H$65536))))),$A896,dati_bdv!L$2:L$65536)","v":0},{"$f":"SUMIF(IF(dati_pdc!$C896=1,dati_bdv!$C$2:$C$65536,IF(dati_pdc!$C896=2,dati_bdv!$D$2:$D$65536,IF(dati_pdc!$C896=3,dati_bdv!$E$2:$E$65536,IF(dati_pdc!$C896=4,dati_bdv!$F$2:$F$65536,IF(dati_pdc!$C896=5,dati_bdv!$G$2:$G$65536,dati_bdv!$H$2:$H$65536))))),$A896,dati_bdv!M$2:M$65536)","v":0},{"$f":"SUMIF(IF(dati_pdc!$C896=1,dati_bdv!$C$2:$C$65536,IF(dati_pdc!$C896=2,dati_bdv!$D$2:$D$65536,IF(dati_pdc!$C896=3,dati_bdv!$E$2:$E$65536,IF(dati_pdc!$C896=4,dati_bdv!$F$2:$F$65536,IF(dati_pdc!$C896=5,dati_bdv!$G$2:$G$65536,dati_bdv!$H$2:$H$65536))))),$A896,dati_bdv!N$2:N$65536)","v":0}]
[{"$f":"dati_pdc!A897","v":0},{"$f":"SUMIF(IF(dati_pdc!$C897=1,dati_bdv!$C$2:$C$65536,IF(dati_pdc!$C897=2,dati_bdv!$D$2:$D$65536,IF(dati_pdc!$C897=3,dati_bdv!$E$2:$E$65536,IF(dati_pdc!$C897=4,dati_bdv!$F$2:$F$65536,IF(dati_pdc!$C897=5,dati_bdv!$G$2:$G$65536,dati_bdv!$H$2:$H$65536))))),$A897,dati_bdv!J$2:J$65536)","v":0},{"$f":"SUMIF(IF(dati_pdc!$C897=1,dati_bdv!$C$2:$C$65536,IF(dati_pdc!$C897=2,dati_bdv!$D$2:$D$65536,IF(dati_pdc!$C897=3,dati_bdv!$E$2:$E$65536,IF(dati_pdc!$C897=4,dati_bdv!$F$2:$F$65536,IF(dati_pdc!$C897=5,dati_bdv!$G$2:$G$65536,dati_bdv!$H$2:$H$65536))))),$A897,dati_bdv!K$2:K$65536)","v":0},{"$f":"SUMIF(IF(dati_pdc!$C897=1,dati_bdv!$C$2:$C$65536,IF(dati_pdc!$C897=2,dati_bdv!$D$2:$D$65536,IF(dati_pdc!$C897=3,dati_bdv!$E$2:$E$65536,IF(dati_pdc!$C897=4,dati_bdv!$F$2:$F$65536,IF(dati_pdc!$C897=5,dati_bdv!$G$2:$G$65536,dati_bdv!$H$2:$H$65536))))),$A897,dati_bdv!L$2:L$65536)","v":0},{"$f":"SUMIF(IF(dati_pdc!$C897=1,dati_bdv!$C$2:$C$65536,IF(dati_pdc!$C897=2,dati_bdv!$D$2:$D$65536,IF(dati_pdc!$C897=3,dati_bdv!$E$2:$E$65536,IF(dati_pdc!$C897=4,dati_bdv!$F$2:$F$65536,IF(dati_pdc!$C897=5,dati_bdv!$G$2:$G$65536,dati_bdv!$H$2:$H$65536))))),$A897,dati_bdv!M$2:M$65536)","v":0},{"$f":"SUMIF(IF(dati_pdc!$C897=1,dati_bdv!$C$2:$C$65536,IF(dati_pdc!$C897=2,dati_bdv!$D$2:$D$65536,IF(dati_pdc!$C897=3,dati_bdv!$E$2:$E$65536,IF(dati_pdc!$C897=4,dati_bdv!$F$2:$F$65536,IF(dati_pdc!$C897=5,dati_bdv!$G$2:$G$65536,dati_bdv!$H$2:$H$65536))))),$A897,dati_bdv!N$2:N$65536)","v":0}]
[{"$f":"dati_pdc!A898","v":0},{"$f":"SUMIF(IF(dati_pdc!$C898=1,dati_bdv!$C$2:$C$65536,IF(dati_pdc!$C898=2,dati_bdv!$D$2:$D$65536,IF(dati_pdc!$C898=3,dati_bdv!$E$2:$E$65536,IF(dati_pdc!$C898=4,dati_bdv!$F$2:$F$65536,IF(dati_pdc!$C898=5,dati_bdv!$G$2:$G$65536,dati_bdv!$H$2:$H$65536))))),$A898,dati_bdv!J$2:J$65536)","v":0},{"$f":"SUMIF(IF(dati_pdc!$C898=1,dati_bdv!$C$2:$C$65536,IF(dati_pdc!$C898=2,dati_bdv!$D$2:$D$65536,IF(dati_pdc!$C898=3,dati_bdv!$E$2:$E$65536,IF(dati_pdc!$C898=4,dati_bdv!$F$2:$F$65536,IF(dati_pdc!$C898=5,dati_bdv!$G$2:$G$65536,dati_bdv!$H$2:$H$65536))))),$A898,dati_bdv!K$2:K$65536)","v":0},{"$f":"SUMIF(IF(dati_pdc!$C898=1,dati_bdv!$C$2:$C$65536,IF(dati_pdc!$C898=2,dati_bdv!$D$2:$D$65536,IF(dati_pdc!$C898=3,dati_bdv!$E$2:$E$65536,IF(dati_pdc!$C898=4,dati_bdv!$F$2:$F$65536,IF(dati_pdc!$C898=5,dati_bdv!$G$2:$G$65536,dati_bdv!$H$2:$H$65536))))),$A898,dati_bdv!L$2:L$65536)","v":0},{"$f":"SUMIF(IF(dati_pdc!$C898=1,dati_bdv!$C$2:$C$65536,IF(dati_pdc!$C898=2,dati_bdv!$D$2:$D$65536,IF(dati_pdc!$C898=3,dati_bdv!$E$2:$E$65536,IF(dati_pdc!$C898=4,dati_bdv!$F$2:$F$65536,IF(dati_pdc!$C898=5,dati_bdv!$G$2:$G$65536,dati_bdv!$H$2:$H$65536))))),$A898,dati_bdv!M$2:M$65536)","v":0},{"$f":"SUMIF(IF(dati_pdc!$C898=1,dati_bdv!$C$2:$C$65536,IF(dati_pdc!$C898=2,dati_bdv!$D$2:$D$65536,IF(dati_pdc!$C898=3,dati_bdv!$E$2:$E$65536,IF(dati_pdc!$C898=4,dati_bdv!$F$2:$F$65536,IF(dati_pdc!$C898=5,dati_bdv!$G$2:$G$65536,dati_bdv!$H$2:$H$65536))))),$A898,dati_bdv!N$2:N$65536)","v":0}]
[{"$f":"dati_pdc!A899","v":0},{"$f":"SUMIF(IF(dati_pdc!$C899=1,dati_bdv!$C$2:$C$65536,IF(dati_pdc!$C899=2,dati_bdv!$D$2:$D$65536,IF(dati_pdc!$C899=3,dati_bdv!$E$2:$E$65536,IF(dati_pdc!$C899=4,dati_bdv!$F$2:$F$65536,IF(dati_pdc!$C899=5,dati_bdv!$G$2:$G$65536,dati_bdv!$H$2:$H$65536))))),$A899,dati_bdv!J$2:J$65536)","v":0},{"$f":"SUMIF(IF(dati_pdc!$C899=1,dati_bdv!$C$2:$C$65536,IF(dati_pdc!$C899=2,dati_bdv!$D$2:$D$65536,IF(dati_pdc!$C899=3,dati_bdv!$E$2:$E$65536,IF(dati_pdc!$C899=4,dati_bdv!$F$2:$F$65536,IF(dati_pdc!$C899=5,dati_bdv!$G$2:$G$65536,dati_bdv!$H$2:$H$65536))))),$A899,dati_bdv!K$2:K$65536)","v":0},{"$f":"SUMIF(IF(dati_pdc!$C899=1,dati_bdv!$C$2:$C$65536,IF(dati_pdc!$C899=2,dati_bdv!$D$2:$D$65536,IF(dati_pdc!$C899=3,dati_bdv!$E$2:$E$65536,IF(dati_pdc!$C899=4,dati_bdv!$F$2:$F$65536,IF(dati_pdc!$C899=5,dati_bdv!$G$2:$G$65536,dati_bdv!$H$2:$H$65536))))),$A899,dati_bdv!L$2:L$65536)","v":0},{"$f":"SUMIF(IF(dati_pdc!$C899=1,dati_bdv!$C$2:$C$65536,IF(dati_pdc!$C899=2,dati_bdv!$D$2:$D$65536,IF(dati_pdc!$C899=3,dati_bdv!$E$2:$E$65536,IF(dati_pdc!$C899=4,dati_bdv!$F$2:$F$65536,IF(dati_pdc!$C899=5,dati_bdv!$G$2:$G$65536,dati_bdv!$H$2:$H$65536))))),$A899,dati_bdv!M$2:M$65536)","v":0},{"$f":"SUMIF(IF(dati_pdc!$C899=1,dati_bdv!$C$2:$C$65536,IF(dati_pdc!$C899=2,dati_bdv!$D$2:$D$65536,IF(dati_pdc!$C899=3,dati_bdv!$E$2:$E$65536,IF(dati_pdc!$C899=4,dati_bdv!$F$2:$F$65536,IF(dati_pdc!$C899=5,dati_bdv!$G$2:$G$65536,dati_bdv!$H$2:$H$65536))))),$A899,dati_bdv!N$2:N$65536)","v":0}]
[{"$f":"dati_pdc!A900","v":0},{"$f":"SUMIF(IF(dati_pdc!$C900=1,dati_bdv!$C$2:$C$65536,IF(dati_pdc!$C900=2,dati_bdv!$D$2:$D$65536,IF(dati_pdc!$C900=3,dati_bdv!$E$2:$E$65536,IF(dati_pdc!$C900=4,dati_bdv!$F$2:$F$65536,IF(dati_pdc!$C900=5,dati_bdv!$G$2:$G$65536,dati_bdv!$H$2:$H$65536))))),$A900,dati_bdv!J$2:J$65536)","v":0},{"$f":"SUMIF(IF(dati_pdc!$C900=1,dati_bdv!$C$2:$C$65536,IF(dati_pdc!$C900=2,dati_bdv!$D$2:$D$65536,IF(dati_pdc!$C900=3,dati_bdv!$E$2:$E$65536,IF(dati_pdc!$C900=4,dati_bdv!$F$2:$F$65536,IF(dati_pdc!$C900=5,dati_bdv!$G$2:$G$65536,dati_bdv!$H$2:$H$65536))))),$A900,dati_bdv!K$2:K$65536)","v":0},{"$f":"SUMIF(IF(dati_pdc!$C900=1,dati_bdv!$C$2:$C$65536,IF(dati_pdc!$C900=2,dati_bdv!$D$2:$D$65536,IF(dati_pdc!$C900=3,dati_bdv!$E$2:$E$65536,IF(dati_pdc!$C900=4,dati_bdv!$F$2:$F$65536,IF(dati_pdc!$C900=5,dati_bdv!$G$2:$G$65536,dati_bdv!$H$2:$H$65536))))),$A900,dati_bdv!L$2:L$65536)","v":0},{"$f":"SUMIF(IF(dati_pdc!$C900=1,dati_bdv!$C$2:$C$65536,IF(dati_pdc!$C900=2,dati_bdv!$D$2:$D$65536,IF(dati_pdc!$C900=3,dati_bdv!$E$2:$E$65536,IF(dati_pdc!$C900=4,dati_bdv!$F$2:$F$65536,IF(dati_pdc!$C900=5,dati_bdv!$G$2:$G$65536,dati_bdv!$H$2:$H$65536))))),$A900,dati_bdv!M$2:M$65536)","v":0},{"$f":"SUMIF(IF(dati_pdc!$C900=1,dati_bdv!$C$2:$C$65536,IF(dati_pdc!$C900=2,dati_bdv!$D$2:$D$65536,IF(dati_pdc!$C900=3,dati_bdv!$E$2:$E$65536,IF(dati_pdc!$C900=4,dati_bdv!$F$2:$F$65536,IF(dati_pdc!$C900=5,dati_bdv!$G$2:$G$65536,dati_bdv!$H$2:$H$65536))))),$A900,dati_bdv!N$2:N$65536)","v":0}]
[{"$f":"dati_pdc!A901","v":0},{"$f":"SUMIF(IF(dati_pdc!$C901=1,dati_bdv!$C$2:$C$65536,IF(dati_pdc!$C901=2,dati_bdv!$D$2:$D$65536,IF(dati_pdc!$C901=3,dati_bdv!$E$2:$E$65536,IF(dati_pdc!$C901=4,dati_bdv!$F$2:$F$65536,IF(dati_pdc!$C901=5,dati_bdv!$G$2:$G$65536,dati_bdv!$H$2:$H$65536))))),$A901,dati_bdv!J$2:J$65536)","v":0},{"$f":"SUMIF(IF(dati_pdc!$C901=1,dati_bdv!$C$2:$C$65536,IF(dati_pdc!$C901=2,dati_bdv!$D$2:$D$65536,IF(dati_pdc!$C901=3,dati_bdv!$E$2:$E$65536,IF(dati_pdc!$C901=4,dati_bdv!$F$2:$F$65536,IF(dati_pdc!$C901=5,dati_bdv!$G$2:$G$65536,dati_bdv!$H$2:$H$65536))))),$A901,dati_bdv!K$2:K$65536)","v":0},{"$f":"SUMIF(IF(dati_pdc!$C901=1,dati_bdv!$C$2:$C$65536,IF(dati_pdc!$C901=2,dati_bdv!$D$2:$D$65536,IF(dati_pdc!$C901=3,dati_bdv!$E$2:$E$65536,IF(dati_pdc!$C901=4,dati_bdv!$F$2:$F$65536,IF(dati_pdc!$C901=5,dati_bdv!$G$2:$G$65536,dati_bdv!$H$2:$H$65536))))),$A901,dati_bdv!L$2:L$65536)","v":0},{"$f":"SUMIF(IF(dati_pdc!$C901=1,dati_bdv!$C$2:$C$65536,IF(dati_pdc!$C901=2,dati_bdv!$D$2:$D$65536,IF(dati_pdc!$C901=3,dati_bdv!$E$2:$E$65536,IF(dati_pdc!$C901=4,dati_bdv!$F$2:$F$65536,IF(dati_pdc!$C901=5,dati_bdv!$G$2:$G$65536,dati_bdv!$H$2:$H$65536))))),$A901,dati_bdv!M$2:M$65536)","v":0},{"$f":"SUMIF(IF(dati_pdc!$C901=1,dati_bdv!$C$2:$C$65536,IF(dati_pdc!$C901=2,dati_bdv!$D$2:$D$65536,IF(dati_pdc!$C901=3,dati_bdv!$E$2:$E$65536,IF(dati_pdc!$C901=4,dati_bdv!$F$2:$F$65536,IF(dati_pdc!$C901=5,dati_bdv!$G$2:$G$65536,dati_bdv!$H$2:$H$65536))))),$A901,dati_bdv!N$2:N$65536)","v":0}]
[{"$f":"dati_pdc!A902","v":0},{"$f":"SUMIF(IF(dati_pdc!$C902=1,dati_bdv!$C$2:$C$65536,IF(dati_pdc!$C902=2,dati_bdv!$D$2:$D$65536,IF(dati_pdc!$C902=3,dati_bdv!$E$2:$E$65536,IF(dati_pdc!$C902=4,dati_bdv!$F$2:$F$65536,IF(dati_pdc!$C902=5,dati_bdv!$G$2:$G$65536,dati_bdv!$H$2:$H$65536))))),$A902,dati_bdv!J$2:J$65536)","v":0},{"$f":"SUMIF(IF(dati_pdc!$C902=1,dati_bdv!$C$2:$C$65536,IF(dati_pdc!$C902=2,dati_bdv!$D$2:$D$65536,IF(dati_pdc!$C902=3,dati_bdv!$E$2:$E$65536,IF(dati_pdc!$C902=4,dati_bdv!$F$2:$F$65536,IF(dati_pdc!$C902=5,dati_bdv!$G$2:$G$65536,dati_bdv!$H$2:$H$65536))))),$A902,dati_bdv!K$2:K$65536)","v":0},{"$f":"SUMIF(IF(dati_pdc!$C902=1,dati_bdv!$C$2:$C$65536,IF(dati_pdc!$C902=2,dati_bdv!$D$2:$D$65536,IF(dati_pdc!$C902=3,dati_bdv!$E$2:$E$65536,IF(dati_pdc!$C902=4,dati_bdv!$F$2:$F$65536,IF(dati_pdc!$C902=5,dati_bdv!$G$2:$G$65536,dati_bdv!$H$2:$H$65536))))),$A902,dati_bdv!L$2:L$65536)","v":0},{"$f":"SUMIF(IF(dati_pdc!$C902=1,dati_bdv!$C$2:$C$65536,IF(dati_pdc!$C902=2,dati_bdv!$D$2:$D$65536,IF(dati_pdc!$C902=3,dati_bdv!$E$2:$E$65536,IF(dati_pdc!$C902=4,dati_bdv!$F$2:$F$65536,IF(dati_pdc!$C902=5,dati_bdv!$G$2:$G$65536,dati_bdv!$H$2:$H$65536))))),$A902,dati_bdv!M$2:M$65536)","v":0},{"$f":"SUMIF(IF(dati_pdc!$C902=1,dati_bdv!$C$2:$C$65536,IF(dati_pdc!$C902=2,dati_bdv!$D$2:$D$65536,IF(dati_pdc!$C902=3,dati_bdv!$E$2:$E$65536,IF(dati_pdc!$C902=4,dati_bdv!$F$2:$F$65536,IF(dati_pdc!$C902=5,dati_bdv!$G$2:$G$65536,dati_bdv!$H$2:$H$65536))))),$A902,dati_bdv!N$2:N$65536)","v":0}]
[{"$f":"dati_pdc!A903","v":0},{"$f":"SUMIF(IF(dati_pdc!$C903=1,dati_bdv!$C$2:$C$65536,IF(dati_pdc!$C903=2,dati_bdv!$D$2:$D$65536,IF(dati_pdc!$C903=3,dati_bdv!$E$2:$E$65536,IF(dati_pdc!$C903=4,dati_bdv!$F$2:$F$65536,IF(dati_pdc!$C903=5,dati_bdv!$G$2:$G$65536,dati_bdv!$H$2:$H$65536))))),$A903,dati_bdv!J$2:J$65536)","v":0},{"$f":"SUMIF(IF(dati_pdc!$C903=1,dati_bdv!$C$2:$C$65536,IF(dati_pdc!$C903=2,dati_bdv!$D$2:$D$65536,IF(dati_pdc!$C903=3,dati_bdv!$E$2:$E$65536,IF(dati_pdc!$C903=4,dati_bdv!$F$2:$F$65536,IF(dati_pdc!$C903=5,dati_bdv!$G$2:$G$65536,dati_bdv!$H$2:$H$65536))))),$A903,dati_bdv!K$2:K$65536)","v":0},{"$f":"SUMIF(IF(dati_pdc!$C903=1,dati_bdv!$C$2:$C$65536,IF(dati_pdc!$C903=2,dati_bdv!$D$2:$D$65536,IF(dati_pdc!$C903=3,dati_bdv!$E$2:$E$65536,IF(dati_pdc!$C903=4,dati_bdv!$F$2:$F$65536,IF(dati_pdc!$C903=5,dati_bdv!$G$2:$G$65536,dati_bdv!$H$2:$H$65536))))),$A903,dati_bdv!L$2:L$65536)","v":0},{"$f":"SUMIF(IF(dati_pdc!$C903=1,dati_bdv!$C$2:$C$65536,IF(dati_pdc!$C903=2,dati_bdv!$D$2:$D$65536,IF(dati_pdc!$C903=3,dati_bdv!$E$2:$E$65536,IF(dati_pdc!$C903=4,dati_bdv!$F$2:$F$65536,IF(dati_pdc!$C903=5,dati_bdv!$G$2:$G$65536,dati_bdv!$H$2:$H$65536))))),$A903,dati_bdv!M$2:M$65536)","v":0},{"$f":"SUMIF(IF(dati_pdc!$C903=1,dati_bdv!$C$2:$C$65536,IF(dati_pdc!$C903=2,dati_bdv!$D$2:$D$65536,IF(dati_pdc!$C903=3,dati_bdv!$E$2:$E$65536,IF(dati_pdc!$C903=4,dati_bdv!$F$2:$F$65536,IF(dati_pdc!$C903=5,dati_bdv!$G$2:$G$65536,dati_bdv!$H$2:$H$65536))))),$A903,dati_bdv!N$2:N$65536)","v":0}]
[{"$f":"dati_pdc!A904","v":0},{"$f":"SUMIF(IF(dati_pdc!$C904=1,dati_bdv!$C$2:$C$65536,IF(dati_pdc!$C904=2,dati_bdv!$D$2:$D$65536,IF(dati_pdc!$C904=3,dati_bdv!$E$2:$E$65536,IF(dati_pdc!$C904=4,dati_bdv!$F$2:$F$65536,IF(dati_pdc!$C904=5,dati_bdv!$G$2:$G$65536,dati_bdv!$H$2:$H$65536))))),$A904,dati_bdv!J$2:J$65536)","v":0},{"$f":"SUMIF(IF(dati_pdc!$C904=1,dati_bdv!$C$2:$C$65536,IF(dati_pdc!$C904=2,dati_bdv!$D$2:$D$65536,IF(dati_pdc!$C904=3,dati_bdv!$E$2:$E$65536,IF(dati_pdc!$C904=4,dati_bdv!$F$2:$F$65536,IF(dati_pdc!$C904=5,dati_bdv!$G$2:$G$65536,dati_bdv!$H$2:$H$65536))))),$A904,dati_bdv!K$2:K$65536)","v":0},{"$f":"SUMIF(IF(dati_pdc!$C904=1,dati_bdv!$C$2:$C$65536,IF(dati_pdc!$C904=2,dati_bdv!$D$2:$D$65536,IF(dati_pdc!$C904=3,dati_bdv!$E$2:$E$65536,IF(dati_pdc!$C904=4,dati_bdv!$F$2:$F$65536,IF(dati_pdc!$C904=5,dati_bdv!$G$2:$G$65536,dati_bdv!$H$2:$H$65536))))),$A904,dati_bdv!L$2:L$65536)","v":0},{"$f":"SUMIF(IF(dati_pdc!$C904=1,dati_bdv!$C$2:$C$65536,IF(dati_pdc!$C904=2,dati_bdv!$D$2:$D$65536,IF(dati_pdc!$C904=3,dati_bdv!$E$2:$E$65536,IF(dati_pdc!$C904=4,dati_bdv!$F$2:$F$65536,IF(dati_pdc!$C904=5,dati_bdv!$G$2:$G$65536,dati_bdv!$H$2:$H$65536))))),$A904,dati_bdv!M$2:M$65536)","v":0},{"$f":"SUMIF(IF(dati_pdc!$C904=1,dati_bdv!$C$2:$C$65536,IF(dati_pdc!$C904=2,dati_bdv!$D$2:$D$65536,IF(dati_pdc!$C904=3,dati_bdv!$E$2:$E$65536,IF(dati_pdc!$C904=4,dati_bdv!$F$2:$F$65536,IF(dati_pdc!$C904=5,dati_bdv!$G$2:$G$65536,dati_bdv!$H$2:$H$65536))))),$A904,dati_bdv!N$2:N$65536)","v":0}]
[{"$f":"dati_pdc!A905","v":0},{"$f":"SUMIF(IF(dati_pdc!$C905=1,dati_bdv!$C$2:$C$65536,IF(dati_pdc!$C905=2,dati_bdv!$D$2:$D$65536,IF(dati_pdc!$C905=3,dati_bdv!$E$2:$E$65536,IF(dati_pdc!$C905=4,dati_bdv!$F$2:$F$65536,IF(dati_pdc!$C905=5,dati_bdv!$G$2:$G$65536,dati_bdv!$H$2:$H$65536))))),$A905,dati_bdv!J$2:J$65536)","v":0},{"$f":"SUMIF(IF(dati_pdc!$C905=1,dati_bdv!$C$2:$C$65536,IF(dati_pdc!$C905=2,dati_bdv!$D$2:$D$65536,IF(dati_pdc!$C905=3,dati_bdv!$E$2:$E$65536,IF(dati_pdc!$C905=4,dati_bdv!$F$2:$F$65536,IF(dati_pdc!$C905=5,dati_bdv!$G$2:$G$65536,dati_bdv!$H$2:$H$65536))))),$A905,dati_bdv!K$2:K$65536)","v":0},{"$f":"SUMIF(IF(dati_pdc!$C905=1,dati_bdv!$C$2:$C$65536,IF(dati_pdc!$C905=2,dati_bdv!$D$2:$D$65536,IF(dati_pdc!$C905=3,dati_bdv!$E$2:$E$65536,IF(dati_pdc!$C905=4,dati_bdv!$F$2:$F$65536,IF(dati_pdc!$C905=5,dati_bdv!$G$2:$G$65536,dati_bdv!$H$2:$H$65536))))),$A905,dati_bdv!L$2:L$65536)","v":0},{"$f":"SUMIF(IF(dati_pdc!$C905=1,dati_bdv!$C$2:$C$65536,IF(dati_pdc!$C905=2,dati_bdv!$D$2:$D$65536,IF(dati_pdc!$C905=3,dati_bdv!$E$2:$E$65536,IF(dati_pdc!$C905=4,dati_bdv!$F$2:$F$65536,IF(dati_pdc!$C905=5,dati_bdv!$G$2:$G$65536,dati_bdv!$H$2:$H$65536))))),$A905,dati_bdv!M$2:M$65536)","v":0},{"$f":"SUMIF(IF(dati_pdc!$C905=1,dati_bdv!$C$2:$C$65536,IF(dati_pdc!$C905=2,dati_bdv!$D$2:$D$65536,IF(dati_pdc!$C905=3,dati_bdv!$E$2:$E$65536,IF(dati_pdc!$C905=4,dati_bdv!$F$2:$F$65536,IF(dati_pdc!$C905=5,dati_bdv!$G$2:$G$65536,dati_bdv!$H$2:$H$65536))))),$A905,dati_bdv!N$2:N$65536)","v":0}]
[{"$f":"dati_pdc!A906","v":0},{"$f":"SUMIF(IF(dati_pdc!$C906=1,dati_bdv!$C$2:$C$65536,IF(dati_pdc!$C906=2,dati_bdv!$D$2:$D$65536,IF(dati_pdc!$C906=3,dati_bdv!$E$2:$E$65536,IF(dati_pdc!$C906=4,dati_bdv!$F$2:$F$65536,IF(dati_pdc!$C906=5,dati_bdv!$G$2:$G$65536,dati_bdv!$H$2:$H$65536))))),$A906,dati_bdv!J$2:J$65536)","v":0},{"$f":"SUMIF(IF(dati_pdc!$C906=1,dati_bdv!$C$2:$C$65536,IF(dati_pdc!$C906=2,dati_bdv!$D$2:$D$65536,IF(dati_pdc!$C906=3,dati_bdv!$E$2:$E$65536,IF(dati_pdc!$C906=4,dati_bdv!$F$2:$F$65536,IF(dati_pdc!$C906=5,dati_bdv!$G$2:$G$65536,dati_bdv!$H$2:$H$65536))))),$A906,dati_bdv!K$2:K$65536)","v":0},{"$f":"SUMIF(IF(dati_pdc!$C906=1,dati_bdv!$C$2:$C$65536,IF(dati_pdc!$C906=2,dati_bdv!$D$2:$D$65536,IF(dati_pdc!$C906=3,dati_bdv!$E$2:$E$65536,IF(dati_pdc!$C906=4,dati_bdv!$F$2:$F$65536,IF(dati_pdc!$C906=5,dati_bdv!$G$2:$G$65536,dati_bdv!$H$2:$H$65536))))),$A906,dati_bdv!L$2:L$65536)","v":0},{"$f":"SUMIF(IF(dati_pdc!$C906=1,dati_bdv!$C$2:$C$65536,IF(dati_pdc!$C906=2,dati_bdv!$D$2:$D$65536,IF(dati_pdc!$C906=3,dati_bdv!$E$2:$E$65536,IF(dati_pdc!$C906=4,dati_bdv!$F$2:$F$65536,IF(dati_pdc!$C906=5,dati_bdv!$G$2:$G$65536,dati_bdv!$H$2:$H$65536))))),$A906,dati_bdv!M$2:M$65536)","v":0},{"$f":"SUMIF(IF(dati_pdc!$C906=1,dati_bdv!$C$2:$C$65536,IF(dati_pdc!$C906=2,dati_bdv!$D$2:$D$65536,IF(dati_pdc!$C906=3,dati_bdv!$E$2:$E$65536,IF(dati_pdc!$C906=4,dati_bdv!$F$2:$F$65536,IF(dati_pdc!$C906=5,dati_bdv!$G$2:$G$65536,dati_bdv!$H$2:$H$65536))))),$A906,dati_bdv!N$2:N$65536)","v":0}]
[{"$f":"dati_pdc!A907","v":0},{"$f":"SUMIF(IF(dati_pdc!$C907=1,dati_bdv!$C$2:$C$65536,IF(dati_pdc!$C907=2,dati_bdv!$D$2:$D$65536,IF(dati_pdc!$C907=3,dati_bdv!$E$2:$E$65536,IF(dati_pdc!$C907=4,dati_bdv!$F$2:$F$65536,IF(dati_pdc!$C907=5,dati_bdv!$G$2:$G$65536,dati_bdv!$H$2:$H$65536))))),$A907,dati_bdv!J$2:J$65536)","v":0},{"$f":"SUMIF(IF(dati_pdc!$C907=1,dati_bdv!$C$2:$C$65536,IF(dati_pdc!$C907=2,dati_bdv!$D$2:$D$65536,IF(dati_pdc!$C907=3,dati_bdv!$E$2:$E$65536,IF(dati_pdc!$C907=4,dati_bdv!$F$2:$F$65536,IF(dati_pdc!$C907=5,dati_bdv!$G$2:$G$65536,dati_bdv!$H$2:$H$65536))))),$A907,dati_bdv!K$2:K$65536)","v":0},{"$f":"SUMIF(IF(dati_pdc!$C907=1,dati_bdv!$C$2:$C$65536,IF(dati_pdc!$C907=2,dati_bdv!$D$2:$D$65536,IF(dati_pdc!$C907=3,dati_bdv!$E$2:$E$65536,IF(dati_pdc!$C907=4,dati_bdv!$F$2:$F$65536,IF(dati_pdc!$C907=5,dati_bdv!$G$2:$G$65536,dati_bdv!$H$2:$H$65536))))),$A907,dati_bdv!L$2:L$65536)","v":0},{"$f":"SUMIF(IF(dati_pdc!$C907=1,dati_bdv!$C$2:$C$65536,IF(dati_pdc!$C907=2,dati_bdv!$D$2:$D$65536,IF(dati_pdc!$C907=3,dati_bdv!$E$2:$E$65536,IF(dati_pdc!$C907=4,dati_bdv!$F$2:$F$65536,IF(dati_pdc!$C907=5,dati_bdv!$G$2:$G$65536,dati_bdv!$H$2:$H$65536))))),$A907,dati_bdv!M$2:M$65536)","v":0},{"$f":"SUMIF(IF(dati_pdc!$C907=1,dati_bdv!$C$2:$C$65536,IF(dati_pdc!$C907=2,dati_bdv!$D$2:$D$65536,IF(dati_pdc!$C907=3,dati_bdv!$E$2:$E$65536,IF(dati_pdc!$C907=4,dati_bdv!$F$2:$F$65536,IF(dati_pdc!$C907=5,dati_bdv!$G$2:$G$65536,dati_bdv!$H$2:$H$65536))))),$A907,dati_bdv!N$2:N$65536)","v":0}]
[{"$f":"dati_pdc!A908","v":0},{"$f":"SUMIF(IF(dati_pdc!$C908=1,dati_bdv!$C$2:$C$65536,IF(dati_pdc!$C908=2,dati_bdv!$D$2:$D$65536,IF(dati_pdc!$C908=3,dati_bdv!$E$2:$E$65536,IF(dati_pdc!$C908=4,dati_bdv!$F$2:$F$65536,IF(dati_pdc!$C908=5,dati_bdv!$G$2:$G$65536,dati_bdv!$H$2:$H$65536))))),$A908,dati_bdv!J$2:J$65536)","v":0},{"$f":"SUMIF(IF(dati_pdc!$C908=1,dati_bdv!$C$2:$C$65536,IF(dati_pdc!$C908=2,dati_bdv!$D$2:$D$65536,IF(dati_pdc!$C908=3,dati_bdv!$E$2:$E$65536,IF(dati_pdc!$C908=4,dati_bdv!$F$2:$F$65536,IF(dati_pdc!$C908=5,dati_bdv!$G$2:$G$65536,dati_bdv!$H$2:$H$65536))))),$A908,dati_bdv!K$2:K$65536)","v":0},{"$f":"SUMIF(IF(dati_pdc!$C908=1,dati_bdv!$C$2:$C$65536,IF(dati_pdc!$C908=2,dati_bdv!$D$2:$D$65536,IF(dati_pdc!$C908=3,dati_bdv!$E$2:$E$65536,IF(dati_pdc!$C908=4,dati_bdv!$F$2:$F$65536,IF(dati_pdc!$C908=5,dati_bdv!$G$2:$G$65536,dati_bdv!$H$2:$H$65536))))),$A908,dati_bdv!L$2:L$65536)","v":0},{"$f":"SUMIF(IF(dati_pdc!$C908=1,dati_bdv!$C$2:$C$65536,IF(dati_pdc!$C908=2,dati_bdv!$D$2:$D$65536,IF(dati_pdc!$C908=3,dati_bdv!$E$2:$E$65536,IF(dati_pdc!$C908=4,dati_bdv!$F$2:$F$65536,IF(dati_pdc!$C908=5,dati_bdv!$G$2:$G$65536,dati_bdv!$H$2:$H$65536))))),$A908,dati_bdv!M$2:M$65536)","v":0},{"$f":"SUMIF(IF(dati_pdc!$C908=1,dati_bdv!$C$2:$C$65536,IF(dati_pdc!$C908=2,dati_bdv!$D$2:$D$65536,IF(dati_pdc!$C908=3,dati_bdv!$E$2:$E$65536,IF(dati_pdc!$C908=4,dati_bdv!$F$2:$F$65536,IF(dati_pdc!$C908=5,dati_bdv!$G$2:$G$65536,dati_bdv!$H$2:$H$65536))))),$A908,dati_bdv!N$2:N$65536)","v":0}]
[{"$f":"dati_pdc!A909","v":0},{"$f":"SUMIF(IF(dati_pdc!$C909=1,dati_bdv!$C$2:$C$65536,IF(dati_pdc!$C909=2,dati_bdv!$D$2:$D$65536,IF(dati_pdc!$C909=3,dati_bdv!$E$2:$E$65536,IF(dati_pdc!$C909=4,dati_bdv!$F$2:$F$65536,IF(dati_pdc!$C909=5,dati_bdv!$G$2:$G$65536,dati_bdv!$H$2:$H$65536))))),$A909,dati_bdv!J$2:J$65536)","v":0},{"$f":"SUMIF(IF(dati_pdc!$C909=1,dati_bdv!$C$2:$C$65536,IF(dati_pdc!$C909=2,dati_bdv!$D$2:$D$65536,IF(dati_pdc!$C909=3,dati_bdv!$E$2:$E$65536,IF(dati_pdc!$C909=4,dati_bdv!$F$2:$F$65536,IF(dati_pdc!$C909=5,dati_bdv!$G$2:$G$65536,dati_bdv!$H$2:$H$65536))))),$A909,dati_bdv!K$2:K$65536)","v":0},{"$f":"SUMIF(IF(dati_pdc!$C909=1,dati_bdv!$C$2:$C$65536,IF(dati_pdc!$C909=2,dati_bdv!$D$2:$D$65536,IF(dati_pdc!$C909=3,dati_bdv!$E$2:$E$65536,IF(dati_pdc!$C909=4,dati_bdv!$F$2:$F$65536,IF(dati_pdc!$C909=5,dati_bdv!$G$2:$G$65536,dati_bdv!$H$2:$H$65536))))),$A909,dati_bdv!L$2:L$65536)","v":0},{"$f":"SUMIF(IF(dati_pdc!$C909=1,dati_bdv!$C$2:$C$65536,IF(dati_pdc!$C909=2,dati_bdv!$D$2:$D$65536,IF(dati_pdc!$C909=3,dati_bdv!$E$2:$E$65536,IF(dati_pdc!$C909=4,dati_bdv!$F$2:$F$65536,IF(dati_pdc!$C909=5,dati_bdv!$G$2:$G$65536,dati_bdv!$H$2:$H$65536))))),$A909,dati_bdv!M$2:M$65536)","v":0},{"$f":"SUMIF(IF(dati_pdc!$C909=1,dati_bdv!$C$2:$C$65536,IF(dati_pdc!$C909=2,dati_bdv!$D$2:$D$65536,IF(dati_pdc!$C909=3,dati_bdv!$E$2:$E$65536,IF(dati_pdc!$C909=4,dati_bdv!$F$2:$F$65536,IF(dati_pdc!$C909=5,dati_bdv!$G$2:$G$65536,dati_bdv!$H$2:$H$65536))))),$A909,dati_bdv!N$2:N$65536)","v":0}]
[{"$f":"dati_pdc!A910","v":0},{"$f":"SUMIF(IF(dati_pdc!$C910=1,dati_bdv!$C$2:$C$65536,IF(dati_pdc!$C910=2,dati_bdv!$D$2:$D$65536,IF(dati_pdc!$C910=3,dati_bdv!$E$2:$E$65536,IF(dati_pdc!$C910=4,dati_bdv!$F$2:$F$65536,IF(dati_pdc!$C910=5,dati_bdv!$G$2:$G$65536,dati_bdv!$H$2:$H$65536))))),$A910,dati_bdv!J$2:J$65536)","v":0},{"$f":"SUMIF(IF(dati_pdc!$C910=1,dati_bdv!$C$2:$C$65536,IF(dati_pdc!$C910=2,dati_bdv!$D$2:$D$65536,IF(dati_pdc!$C910=3,dati_bdv!$E$2:$E$65536,IF(dati_pdc!$C910=4,dati_bdv!$F$2:$F$65536,IF(dati_pdc!$C910=5,dati_bdv!$G$2:$G$65536,dati_bdv!$H$2:$H$65536))))),$A910,dati_bdv!K$2:K$65536)","v":0},{"$f":"SUMIF(IF(dati_pdc!$C910=1,dati_bdv!$C$2:$C$65536,IF(dati_pdc!$C910=2,dati_bdv!$D$2:$D$65536,IF(dati_pdc!$C910=3,dati_bdv!$E$2:$E$65536,IF(dati_pdc!$C910=4,dati_bdv!$F$2:$F$65536,IF(dati_pdc!$C910=5,dati_bdv!$G$2:$G$65536,dati_bdv!$H$2:$H$65536))))),$A910,dati_bdv!L$2:L$65536)","v":0},{"$f":"SUMIF(IF(dati_pdc!$C910=1,dati_bdv!$C$2:$C$65536,IF(dati_pdc!$C910=2,dati_bdv!$D$2:$D$65536,IF(dati_pdc!$C910=3,dati_bdv!$E$2:$E$65536,IF(dati_pdc!$C910=4,dati_bdv!$F$2:$F$65536,IF(dati_pdc!$C910=5,dati_bdv!$G$2:$G$65536,dati_bdv!$H$2:$H$65536))))),$A910,dati_bdv!M$2:M$65536)","v":0},{"$f":"SUMIF(IF(dati_pdc!$C910=1,dati_bdv!$C$2:$C$65536,IF(dati_pdc!$C910=2,dati_bdv!$D$2:$D$65536,IF(dati_pdc!$C910=3,dati_bdv!$E$2:$E$65536,IF(dati_pdc!$C910=4,dati_bdv!$F$2:$F$65536,IF(dati_pdc!$C910=5,dati_bdv!$G$2:$G$65536,dati_bdv!$H$2:$H$65536))))),$A910,dati_bdv!N$2:N$65536)","v":0}]
[{"$f":"dati_pdc!A911","v":0},{"$f":"SUMIF(IF(dati_pdc!$C911=1,dati_bdv!$C$2:$C$65536,IF(dati_pdc!$C911=2,dati_bdv!$D$2:$D$65536,IF(dati_pdc!$C911=3,dati_bdv!$E$2:$E$65536,IF(dati_pdc!$C911=4,dati_bdv!$F$2:$F$65536,IF(dati_pdc!$C911=5,dati_bdv!$G$2:$G$65536,dati_bdv!$H$2:$H$65536))))),$A911,dati_bdv!J$2:J$65536)","v":0},{"$f":"SUMIF(IF(dati_pdc!$C911=1,dati_bdv!$C$2:$C$65536,IF(dati_pdc!$C911=2,dati_bdv!$D$2:$D$65536,IF(dati_pdc!$C911=3,dati_bdv!$E$2:$E$65536,IF(dati_pdc!$C911=4,dati_bdv!$F$2:$F$65536,IF(dati_pdc!$C911=5,dati_bdv!$G$2:$G$65536,dati_bdv!$H$2:$H$65536))))),$A911,dati_bdv!K$2:K$65536)","v":0},{"$f":"SUMIF(IF(dati_pdc!$C911=1,dati_bdv!$C$2:$C$65536,IF(dati_pdc!$C911=2,dati_bdv!$D$2:$D$65536,IF(dati_pdc!$C911=3,dati_bdv!$E$2:$E$65536,IF(dati_pdc!$C911=4,dati_bdv!$F$2:$F$65536,IF(dati_pdc!$C911=5,dati_bdv!$G$2:$G$65536,dati_bdv!$H$2:$H$65536))))),$A911,dati_bdv!L$2:L$65536)","v":0},{"$f":"SUMIF(IF(dati_pdc!$C911=1,dati_bdv!$C$2:$C$65536,IF(dati_pdc!$C911=2,dati_bdv!$D$2:$D$65536,IF(dati_pdc!$C911=3,dati_bdv!$E$2:$E$65536,IF(dati_pdc!$C911=4,dati_bdv!$F$2:$F$65536,IF(dati_pdc!$C911=5,dati_bdv!$G$2:$G$65536,dati_bdv!$H$2:$H$65536))))),$A911,dati_bdv!M$2:M$65536)","v":0},{"$f":"SUMIF(IF(dati_pdc!$C911=1,dati_bdv!$C$2:$C$65536,IF(dati_pdc!$C911=2,dati_bdv!$D$2:$D$65536,IF(dati_pdc!$C911=3,dati_bdv!$E$2:$E$65536,IF(dati_pdc!$C911=4,dati_bdv!$F$2:$F$65536,IF(dati_pdc!$C911=5,dati_bdv!$G$2:$G$65536,dati_bdv!$H$2:$H$65536))))),$A911,dati_bdv!N$2:N$65536)","v":0}]
[{"$f":"dati_pdc!A912","v":0},{"$f":"SUMIF(IF(dati_pdc!$C912=1,dati_bdv!$C$2:$C$65536,IF(dati_pdc!$C912=2,dati_bdv!$D$2:$D$65536,IF(dati_pdc!$C912=3,dati_bdv!$E$2:$E$65536,IF(dati_pdc!$C912=4,dati_bdv!$F$2:$F$65536,IF(dati_pdc!$C912=5,dati_bdv!$G$2:$G$65536,dati_bdv!$H$2:$H$65536))))),$A912,dati_bdv!J$2:J$65536)","v":0},{"$f":"SUMIF(IF(dati_pdc!$C912=1,dati_bdv!$C$2:$C$65536,IF(dati_pdc!$C912=2,dati_bdv!$D$2:$D$65536,IF(dati_pdc!$C912=3,dati_bdv!$E$2:$E$65536,IF(dati_pdc!$C912=4,dati_bdv!$F$2:$F$65536,IF(dati_pdc!$C912=5,dati_bdv!$G$2:$G$65536,dati_bdv!$H$2:$H$65536))))),$A912,dati_bdv!K$2:K$65536)","v":0},{"$f":"SUMIF(IF(dati_pdc!$C912=1,dati_bdv!$C$2:$C$65536,IF(dati_pdc!$C912=2,dati_bdv!$D$2:$D$65536,IF(dati_pdc!$C912=3,dati_bdv!$E$2:$E$65536,IF(dati_pdc!$C912=4,dati_bdv!$F$2:$F$65536,IF(dati_pdc!$C912=5,dati_bdv!$G$2:$G$65536,dati_bdv!$H$2:$H$65536))))),$A912,dati_bdv!L$2:L$65536)","v":0},{"$f":"SUMIF(IF(dati_pdc!$C912=1,dati_bdv!$C$2:$C$65536,IF(dati_pdc!$C912=2,dati_bdv!$D$2:$D$65536,IF(dati_pdc!$C912=3,dati_bdv!$E$2:$E$65536,IF(dati_pdc!$C912=4,dati_bdv!$F$2:$F$65536,IF(dati_pdc!$C912=5,dati_bdv!$G$2:$G$65536,dati_bdv!$H$2:$H$65536))))),$A912,dati_bdv!M$2:M$65536)","v":0},{"$f":"SUMIF(IF(dati_pdc!$C912=1,dati_bdv!$C$2:$C$65536,IF(dati_pdc!$C912=2,dati_bdv!$D$2:$D$65536,IF(dati_pdc!$C912=3,dati_bdv!$E$2:$E$65536,IF(dati_pdc!$C912=4,dati_bdv!$F$2:$F$65536,IF(dati_pdc!$C912=5,dati_bdv!$G$2:$G$65536,dati_bdv!$H$2:$H$65536))))),$A912,dati_bdv!N$2:N$65536)","v":0}]
[{"$f":"dati_pdc!A913","v":0},{"$f":"SUMIF(IF(dati_pdc!$C913=1,dati_bdv!$C$2:$C$65536,IF(dati_pdc!$C913=2,dati_bdv!$D$2:$D$65536,IF(dati_pdc!$C913=3,dati_bdv!$E$2:$E$65536,IF(dati_pdc!$C913=4,dati_bdv!$F$2:$F$65536,IF(dati_pdc!$C913=5,dati_bdv!$G$2:$G$65536,dati_bdv!$H$2:$H$65536))))),$A913,dati_bdv!J$2:J$65536)","v":0},{"$f":"SUMIF(IF(dati_pdc!$C913=1,dati_bdv!$C$2:$C$65536,IF(dati_pdc!$C913=2,dati_bdv!$D$2:$D$65536,IF(dati_pdc!$C913=3,dati_bdv!$E$2:$E$65536,IF(dati_pdc!$C913=4,dati_bdv!$F$2:$F$65536,IF(dati_pdc!$C913=5,dati_bdv!$G$2:$G$65536,dati_bdv!$H$2:$H$65536))))),$A913,dati_bdv!K$2:K$65536)","v":0},{"$f":"SUMIF(IF(dati_pdc!$C913=1,dati_bdv!$C$2:$C$65536,IF(dati_pdc!$C913=2,dati_bdv!$D$2:$D$65536,IF(dati_pdc!$C913=3,dati_bdv!$E$2:$E$65536,IF(dati_pdc!$C913=4,dati_bdv!$F$2:$F$65536,IF(dati_pdc!$C913=5,dati_bdv!$G$2:$G$65536,dati_bdv!$H$2:$H$65536))))),$A913,dati_bdv!L$2:L$65536)","v":0},{"$f":"SUMIF(IF(dati_pdc!$C913=1,dati_bdv!$C$2:$C$65536,IF(dati_pdc!$C913=2,dati_bdv!$D$2:$D$65536,IF(dati_pdc!$C913=3,dati_bdv!$E$2:$E$65536,IF(dati_pdc!$C913=4,dati_bdv!$F$2:$F$65536,IF(dati_pdc!$C913=5,dati_bdv!$G$2:$G$65536,dati_bdv!$H$2:$H$65536))))),$A913,dati_bdv!M$2:M$65536)","v":0},{"$f":"SUMIF(IF(dati_pdc!$C913=1,dati_bdv!$C$2:$C$65536,IF(dati_pdc!$C913=2,dati_bdv!$D$2:$D$65536,IF(dati_pdc!$C913=3,dati_bdv!$E$2:$E$65536,IF(dati_pdc!$C913=4,dati_bdv!$F$2:$F$65536,IF(dati_pdc!$C913=5,dati_bdv!$G$2:$G$65536,dati_bdv!$H$2:$H$65536))))),$A913,dati_bdv!N$2:N$65536)","v":0}]
[{"$f":"dati_pdc!A914","v":0},{"$f":"SUMIF(IF(dati_pdc!$C914=1,dati_bdv!$C$2:$C$65536,IF(dati_pdc!$C914=2,dati_bdv!$D$2:$D$65536,IF(dati_pdc!$C914=3,dati_bdv!$E$2:$E$65536,IF(dati_pdc!$C914=4,dati_bdv!$F$2:$F$65536,IF(dati_pdc!$C914=5,dati_bdv!$G$2:$G$65536,dati_bdv!$H$2:$H$65536))))),$A914,dati_bdv!J$2:J$65536)","v":0},{"$f":"SUMIF(IF(dati_pdc!$C914=1,dati_bdv!$C$2:$C$65536,IF(dati_pdc!$C914=2,dati_bdv!$D$2:$D$65536,IF(dati_pdc!$C914=3,dati_bdv!$E$2:$E$65536,IF(dati_pdc!$C914=4,dati_bdv!$F$2:$F$65536,IF(dati_pdc!$C914=5,dati_bdv!$G$2:$G$65536,dati_bdv!$H$2:$H$65536))))),$A914,dati_bdv!K$2:K$65536)","v":0},{"$f":"SUMIF(IF(dati_pdc!$C914=1,dati_bdv!$C$2:$C$65536,IF(dati_pdc!$C914=2,dati_bdv!$D$2:$D$65536,IF(dati_pdc!$C914=3,dati_bdv!$E$2:$E$65536,IF(dati_pdc!$C914=4,dati_bdv!$F$2:$F$65536,IF(dati_pdc!$C914=5,dati_bdv!$G$2:$G$65536,dati_bdv!$H$2:$H$65536))))),$A914,dati_bdv!L$2:L$65536)","v":0},{"$f":"SUMIF(IF(dati_pdc!$C914=1,dati_bdv!$C$2:$C$65536,IF(dati_pdc!$C914=2,dati_bdv!$D$2:$D$65536,IF(dati_pdc!$C914=3,dati_bdv!$E$2:$E$65536,IF(dati_pdc!$C914=4,dati_bdv!$F$2:$F$65536,IF(dati_pdc!$C914=5,dati_bdv!$G$2:$G$65536,dati_bdv!$H$2:$H$65536))))),$A914,dati_bdv!M$2:M$65536)","v":0},{"$f":"SUMIF(IF(dati_pdc!$C914=1,dati_bdv!$C$2:$C$65536,IF(dati_pdc!$C914=2,dati_bdv!$D$2:$D$65536,IF(dati_pdc!$C914=3,dati_bdv!$E$2:$E$65536,IF(dati_pdc!$C914=4,dati_bdv!$F$2:$F$65536,IF(dati_pdc!$C914=5,dati_bdv!$G$2:$G$65536,dati_bdv!$H$2:$H$65536))))),$A914,dati_bdv!N$2:N$65536)","v":0}]
[{"$f":"dati_pdc!A915","v":0},{"$f":"SUMIF(IF(dati_pdc!$C915=1,dati_bdv!$C$2:$C$65536,IF(dati_pdc!$C915=2,dati_bdv!$D$2:$D$65536,IF(dati_pdc!$C915=3,dati_bdv!$E$2:$E$65536,IF(dati_pdc!$C915=4,dati_bdv!$F$2:$F$65536,IF(dati_pdc!$C915=5,dati_bdv!$G$2:$G$65536,dati_bdv!$H$2:$H$65536))))),$A915,dati_bdv!J$2:J$65536)","v":0},{"$f":"SUMIF(IF(dati_pdc!$C915=1,dati_bdv!$C$2:$C$65536,IF(dati_pdc!$C915=2,dati_bdv!$D$2:$D$65536,IF(dati_pdc!$C915=3,dati_bdv!$E$2:$E$65536,IF(dati_pdc!$C915=4,dati_bdv!$F$2:$F$65536,IF(dati_pdc!$C915=5,dati_bdv!$G$2:$G$65536,dati_bdv!$H$2:$H$65536))))),$A915,dati_bdv!K$2:K$65536)","v":0},{"$f":"SUMIF(IF(dati_pdc!$C915=1,dati_bdv!$C$2:$C$65536,IF(dati_pdc!$C915=2,dati_bdv!$D$2:$D$65536,IF(dati_pdc!$C915=3,dati_bdv!$E$2:$E$65536,IF(dati_pdc!$C915=4,dati_bdv!$F$2:$F$65536,IF(dati_pdc!$C915=5,dati_bdv!$G$2:$G$65536,dati_bdv!$H$2:$H$65536))))),$A915,dati_bdv!L$2:L$65536)","v":0},{"$f":"SUMIF(IF(dati_pdc!$C915=1,dati_bdv!$C$2:$C$65536,IF(dati_pdc!$C915=2,dati_bdv!$D$2:$D$65536,IF(dati_pdc!$C915=3,dati_bdv!$E$2:$E$65536,IF(dati_pdc!$C915=4,dati_bdv!$F$2:$F$65536,IF(dati_pdc!$C915=5,dati_bdv!$G$2:$G$65536,dati_bdv!$H$2:$H$65536))))),$A915,dati_bdv!M$2:M$65536)","v":0},{"$f":"SUMIF(IF(dati_pdc!$C915=1,dati_bdv!$C$2:$C$65536,IF(dati_pdc!$C915=2,dati_bdv!$D$2:$D$65536,IF(dati_pdc!$C915=3,dati_bdv!$E$2:$E$65536,IF(dati_pdc!$C915=4,dati_bdv!$F$2:$F$65536,IF(dati_pdc!$C915=5,dati_bdv!$G$2:$G$65536,dati_bdv!$H$2:$H$65536))))),$A915,dati_bdv!N$2:N$65536)","v":0}]
[{"$f":"dati_pdc!A916","v":0},{"$f":"SUMIF(IF(dati_pdc!$C916=1,dati_bdv!$C$2:$C$65536,IF(dati_pdc!$C916=2,dati_bdv!$D$2:$D$65536,IF(dati_pdc!$C916=3,dati_bdv!$E$2:$E$65536,IF(dati_pdc!$C916=4,dati_bdv!$F$2:$F$65536,IF(dati_pdc!$C916=5,dati_bdv!$G$2:$G$65536,dati_bdv!$H$2:$H$65536))))),$A916,dati_bdv!J$2:J$65536)","v":0},{"$f":"SUMIF(IF(dati_pdc!$C916=1,dati_bdv!$C$2:$C$65536,IF(dati_pdc!$C916=2,dati_bdv!$D$2:$D$65536,IF(dati_pdc!$C916=3,dati_bdv!$E$2:$E$65536,IF(dati_pdc!$C916=4,dati_bdv!$F$2:$F$65536,IF(dati_pdc!$C916=5,dati_bdv!$G$2:$G$65536,dati_bdv!$H$2:$H$65536))))),$A916,dati_bdv!K$2:K$65536)","v":0},{"$f":"SUMIF(IF(dati_pdc!$C916=1,dati_bdv!$C$2:$C$65536,IF(dati_pdc!$C916=2,dati_bdv!$D$2:$D$65536,IF(dati_pdc!$C916=3,dati_bdv!$E$2:$E$65536,IF(dati_pdc!$C916=4,dati_bdv!$F$2:$F$65536,IF(dati_pdc!$C916=5,dati_bdv!$G$2:$G$65536,dati_bdv!$H$2:$H$65536))))),$A916,dati_bdv!L$2:L$65536)","v":0},{"$f":"SUMIF(IF(dati_pdc!$C916=1,dati_bdv!$C$2:$C$65536,IF(dati_pdc!$C916=2,dati_bdv!$D$2:$D$65536,IF(dati_pdc!$C916=3,dati_bdv!$E$2:$E$65536,IF(dati_pdc!$C916=4,dati_bdv!$F$2:$F$65536,IF(dati_pdc!$C916=5,dati_bdv!$G$2:$G$65536,dati_bdv!$H$2:$H$65536))))),$A916,dati_bdv!M$2:M$65536)","v":0},{"$f":"SUMIF(IF(dati_pdc!$C916=1,dati_bdv!$C$2:$C$65536,IF(dati_pdc!$C916=2,dati_bdv!$D$2:$D$65536,IF(dati_pdc!$C916=3,dati_bdv!$E$2:$E$65536,IF(dati_pdc!$C916=4,dati_bdv!$F$2:$F$65536,IF(dati_pdc!$C916=5,dati_bdv!$G$2:$G$65536,dati_bdv!$H$2:$H$65536))))),$A916,dati_bdv!N$2:N$65536)","v":0}]
[{"$f":"dati_pdc!A917","v":0},{"$f":"SUMIF(IF(dati_pdc!$C917=1,dati_bdv!$C$2:$C$65536,IF(dati_pdc!$C917=2,dati_bdv!$D$2:$D$65536,IF(dati_pdc!$C917=3,dati_bdv!$E$2:$E$65536,IF(dati_pdc!$C917=4,dati_bdv!$F$2:$F$65536,IF(dati_pdc!$C917=5,dati_bdv!$G$2:$G$65536,dati_bdv!$H$2:$H$65536))))),$A917,dati_bdv!J$2:J$65536)","v":0},{"$f":"SUMIF(IF(dati_pdc!$C917=1,dati_bdv!$C$2:$C$65536,IF(dati_pdc!$C917=2,dati_bdv!$D$2:$D$65536,IF(dati_pdc!$C917=3,dati_bdv!$E$2:$E$65536,IF(dati_pdc!$C917=4,dati_bdv!$F$2:$F$65536,IF(dati_pdc!$C917=5,dati_bdv!$G$2:$G$65536,dati_bdv!$H$2:$H$65536))))),$A917,dati_bdv!K$2:K$65536)","v":0},{"$f":"SUMIF(IF(dati_pdc!$C917=1,dati_bdv!$C$2:$C$65536,IF(dati_pdc!$C917=2,dati_bdv!$D$2:$D$65536,IF(dati_pdc!$C917=3,dati_bdv!$E$2:$E$65536,IF(dati_pdc!$C917=4,dati_bdv!$F$2:$F$65536,IF(dati_pdc!$C917=5,dati_bdv!$G$2:$G$65536,dati_bdv!$H$2:$H$65536))))),$A917,dati_bdv!L$2:L$65536)","v":0},{"$f":"SUMIF(IF(dati_pdc!$C917=1,dati_bdv!$C$2:$C$65536,IF(dati_pdc!$C917=2,dati_bdv!$D$2:$D$65536,IF(dati_pdc!$C917=3,dati_bdv!$E$2:$E$65536,IF(dati_pdc!$C917=4,dati_bdv!$F$2:$F$65536,IF(dati_pdc!$C917=5,dati_bdv!$G$2:$G$65536,dati_bdv!$H$2:$H$65536))))),$A917,dati_bdv!M$2:M$65536)","v":0},{"$f":"SUMIF(IF(dati_pdc!$C917=1,dati_bdv!$C$2:$C$65536,IF(dati_pdc!$C917=2,dati_bdv!$D$2:$D$65536,IF(dati_pdc!$C917=3,dati_bdv!$E$2:$E$65536,IF(dati_pdc!$C917=4,dati_bdv!$F$2:$F$65536,IF(dati_pdc!$C917=5,dati_bdv!$G$2:$G$65536,dati_bdv!$H$2:$H$65536))))),$A917,dati_bdv!N$2:N$65536)","v":0}]
[{"$f":"dati_pdc!A918","v":0},{"$f":"SUMIF(IF(dati_pdc!$C918=1,dati_bdv!$C$2:$C$65536,IF(dati_pdc!$C918=2,dati_bdv!$D$2:$D$65536,IF(dati_pdc!$C918=3,dati_bdv!$E$2:$E$65536,IF(dati_pdc!$C918=4,dati_bdv!$F$2:$F$65536,IF(dati_pdc!$C918=5,dati_bdv!$G$2:$G$65536,dati_bdv!$H$2:$H$65536))))),$A918,dati_bdv!J$2:J$65536)","v":0},{"$f":"SUMIF(IF(dati_pdc!$C918=1,dati_bdv!$C$2:$C$65536,IF(dati_pdc!$C918=2,dati_bdv!$D$2:$D$65536,IF(dati_pdc!$C918=3,dati_bdv!$E$2:$E$65536,IF(dati_pdc!$C918=4,dati_bdv!$F$2:$F$65536,IF(dati_pdc!$C918=5,dati_bdv!$G$2:$G$65536,dati_bdv!$H$2:$H$65536))))),$A918,dati_bdv!K$2:K$65536)","v":0},{"$f":"SUMIF(IF(dati_pdc!$C918=1,dati_bdv!$C$2:$C$65536,IF(dati_pdc!$C918=2,dati_bdv!$D$2:$D$65536,IF(dati_pdc!$C918=3,dati_bdv!$E$2:$E$65536,IF(dati_pdc!$C918=4,dati_bdv!$F$2:$F$65536,IF(dati_pdc!$C918=5,dati_bdv!$G$2:$G$65536,dati_bdv!$H$2:$H$65536))))),$A918,dati_bdv!L$2:L$65536)","v":0},{"$f":"SUMIF(IF(dati_pdc!$C918=1,dati_bdv!$C$2:$C$65536,IF(dati_pdc!$C918=2,dati_bdv!$D$2:$D$65536,IF(dati_pdc!$C918=3,dati_bdv!$E$2:$E$65536,IF(dati_pdc!$C918=4,dati_bdv!$F$2:$F$65536,IF(dati_pdc!$C918=5,dati_bdv!$G$2:$G$65536,dati_bdv!$H$2:$H$65536))))),$A918,dati_bdv!M$2:M$65536)","v":0},{"$f":"SUMIF(IF(dati_pdc!$C918=1,dati_bdv!$C$2:$C$65536,IF(dati_pdc!$C918=2,dati_bdv!$D$2:$D$65536,IF(dati_pdc!$C918=3,dati_bdv!$E$2:$E$65536,IF(dati_pdc!$C918=4,dati_bdv!$F$2:$F$65536,IF(dati_pdc!$C918=5,dati_bdv!$G$2:$G$65536,dati_bdv!$H$2:$H$65536))))),$A918,dati_bdv!N$2:N$65536)","v":0}]
[{"$f":"dati_pdc!A919","v":0},{"$f":"SUMIF(IF(dati_pdc!$C919=1,dati_bdv!$C$2:$C$65536,IF(dati_pdc!$C919=2,dati_bdv!$D$2:$D$65536,IF(dati_pdc!$C919=3,dati_bdv!$E$2:$E$65536,IF(dati_pdc!$C919=4,dati_bdv!$F$2:$F$65536,IF(dati_pdc!$C919=5,dati_bdv!$G$2:$G$65536,dati_bdv!$H$2:$H$65536))))),$A919,dati_bdv!J$2:J$65536)","v":0},{"$f":"SUMIF(IF(dati_pdc!$C919=1,dati_bdv!$C$2:$C$65536,IF(dati_pdc!$C919=2,dati_bdv!$D$2:$D$65536,IF(dati_pdc!$C919=3,dati_bdv!$E$2:$E$65536,IF(dati_pdc!$C919=4,dati_bdv!$F$2:$F$65536,IF(dati_pdc!$C919=5,dati_bdv!$G$2:$G$65536,dati_bdv!$H$2:$H$65536))))),$A919,dati_bdv!K$2:K$65536)","v":0},{"$f":"SUMIF(IF(dati_pdc!$C919=1,dati_bdv!$C$2:$C$65536,IF(dati_pdc!$C919=2,dati_bdv!$D$2:$D$65536,IF(dati_pdc!$C919=3,dati_bdv!$E$2:$E$65536,IF(dati_pdc!$C919=4,dati_bdv!$F$2:$F$65536,IF(dati_pdc!$C919=5,dati_bdv!$G$2:$G$65536,dati_bdv!$H$2:$H$65536))))),$A919,dati_bdv!L$2:L$65536)","v":0},{"$f":"SUMIF(IF(dati_pdc!$C919=1,dati_bdv!$C$2:$C$65536,IF(dati_pdc!$C919=2,dati_bdv!$D$2:$D$65536,IF(dati_pdc!$C919=3,dati_bdv!$E$2:$E$65536,IF(dati_pdc!$C919=4,dati_bdv!$F$2:$F$65536,IF(dati_pdc!$C919=5,dati_bdv!$G$2:$G$65536,dati_bdv!$H$2:$H$65536))))),$A919,dati_bdv!M$2:M$65536)","v":0},{"$f":"SUMIF(IF(dati_pdc!$C919=1,dati_bdv!$C$2:$C$65536,IF(dati_pdc!$C919=2,dati_bdv!$D$2:$D$65536,IF(dati_pdc!$C919=3,dati_bdv!$E$2:$E$65536,IF(dati_pdc!$C919=4,dati_bdv!$F$2:$F$65536,IF(dati_pdc!$C919=5,dati_bdv!$G$2:$G$65536,dati_bdv!$H$2:$H$65536))))),$A919,dati_bdv!N$2:N$65536)","v":0}]
[{"$f":"dati_pdc!A920","v":0},{"$f":"SUMIF(IF(dati_pdc!$C920=1,dati_bdv!$C$2:$C$65536,IF(dati_pdc!$C920=2,dati_bdv!$D$2:$D$65536,IF(dati_pdc!$C920=3,dati_bdv!$E$2:$E$65536,IF(dati_pdc!$C920=4,dati_bdv!$F$2:$F$65536,IF(dati_pdc!$C920=5,dati_bdv!$G$2:$G$65536,dati_bdv!$H$2:$H$65536))))),$A920,dati_bdv!J$2:J$65536)","v":0},{"$f":"SUMIF(IF(dati_pdc!$C920=1,dati_bdv!$C$2:$C$65536,IF(dati_pdc!$C920=2,dati_bdv!$D$2:$D$65536,IF(dati_pdc!$C920=3,dati_bdv!$E$2:$E$65536,IF(dati_pdc!$C920=4,dati_bdv!$F$2:$F$65536,IF(dati_pdc!$C920=5,dati_bdv!$G$2:$G$65536,dati_bdv!$H$2:$H$65536))))),$A920,dati_bdv!K$2:K$65536)","v":0},{"$f":"SUMIF(IF(dati_pdc!$C920=1,dati_bdv!$C$2:$C$65536,IF(dati_pdc!$C920=2,dati_bdv!$D$2:$D$65536,IF(dati_pdc!$C920=3,dati_bdv!$E$2:$E$65536,IF(dati_pdc!$C920=4,dati_bdv!$F$2:$F$65536,IF(dati_pdc!$C920=5,dati_bdv!$G$2:$G$65536,dati_bdv!$H$2:$H$65536))))),$A920,dati_bdv!L$2:L$65536)","v":0},{"$f":"SUMIF(IF(dati_pdc!$C920=1,dati_bdv!$C$2:$C$65536,IF(dati_pdc!$C920=2,dati_bdv!$D$2:$D$65536,IF(dati_pdc!$C920=3,dati_bdv!$E$2:$E$65536,IF(dati_pdc!$C920=4,dati_bdv!$F$2:$F$65536,IF(dati_pdc!$C920=5,dati_bdv!$G$2:$G$65536,dati_bdv!$H$2:$H$65536))))),$A920,dati_bdv!M$2:M$65536)","v":0},{"$f":"SUMIF(IF(dati_pdc!$C920=1,dati_bdv!$C$2:$C$65536,IF(dati_pdc!$C920=2,dati_bdv!$D$2:$D$65536,IF(dati_pdc!$C920=3,dati_bdv!$E$2:$E$65536,IF(dati_pdc!$C920=4,dati_bdv!$F$2:$F$65536,IF(dati_pdc!$C920=5,dati_bdv!$G$2:$G$65536,dati_bdv!$H$2:$H$65536))))),$A920,dati_bdv!N$2:N$65536)","v":0}]
[{"$f":"dati_pdc!A921","v":0},{"$f":"SUMIF(IF(dati_pdc!$C921=1,dati_bdv!$C$2:$C$65536,IF(dati_pdc!$C921=2,dati_bdv!$D$2:$D$65536,IF(dati_pdc!$C921=3,dati_bdv!$E$2:$E$65536,IF(dati_pdc!$C921=4,dati_bdv!$F$2:$F$65536,IF(dati_pdc!$C921=5,dati_bdv!$G$2:$G$65536,dati_bdv!$H$2:$H$65536))))),$A921,dati_bdv!J$2:J$65536)","v":0},{"$f":"SUMIF(IF(dati_pdc!$C921=1,dati_bdv!$C$2:$C$65536,IF(dati_pdc!$C921=2,dati_bdv!$D$2:$D$65536,IF(dati_pdc!$C921=3,dati_bdv!$E$2:$E$65536,IF(dati_pdc!$C921=4,dati_bdv!$F$2:$F$65536,IF(dati_pdc!$C921=5,dati_bdv!$G$2:$G$65536,dati_bdv!$H$2:$H$65536))))),$A921,dati_bdv!K$2:K$65536)","v":0},{"$f":"SUMIF(IF(dati_pdc!$C921=1,dati_bdv!$C$2:$C$65536,IF(dati_pdc!$C921=2,dati_bdv!$D$2:$D$65536,IF(dati_pdc!$C921=3,dati_bdv!$E$2:$E$65536,IF(dati_pdc!$C921=4,dati_bdv!$F$2:$F$65536,IF(dati_pdc!$C921=5,dati_bdv!$G$2:$G$65536,dati_bdv!$H$2:$H$65536))))),$A921,dati_bdv!L$2:L$65536)","v":0},{"$f":"SUMIF(IF(dati_pdc!$C921=1,dati_bdv!$C$2:$C$65536,IF(dati_pdc!$C921=2,dati_bdv!$D$2:$D$65536,IF(dati_pdc!$C921=3,dati_bdv!$E$2:$E$65536,IF(dati_pdc!$C921=4,dati_bdv!$F$2:$F$65536,IF(dati_pdc!$C921=5,dati_bdv!$G$2:$G$65536,dati_bdv!$H$2:$H$65536))))),$A921,dati_bdv!M$2:M$65536)","v":0},{"$f":"SUMIF(IF(dati_pdc!$C921=1,dati_bdv!$C$2:$C$65536,IF(dati_pdc!$C921=2,dati_bdv!$D$2:$D$65536,IF(dati_pdc!$C921=3,dati_bdv!$E$2:$E$65536,IF(dati_pdc!$C921=4,dati_bdv!$F$2:$F$65536,IF(dati_pdc!$C921=5,dati_bdv!$G$2:$G$65536,dati_bdv!$H$2:$H$65536))))),$A921,dati_bdv!N$2:N$65536)","v":0}]
[{"$f":"dati_pdc!A922","v":0},{"$f":"SUMIF(IF(dati_pdc!$C922=1,dati_bdv!$C$2:$C$65536,IF(dati_pdc!$C922=2,dati_bdv!$D$2:$D$65536,IF(dati_pdc!$C922=3,dati_bdv!$E$2:$E$65536,IF(dati_pdc!$C922=4,dati_bdv!$F$2:$F$65536,IF(dati_pdc!$C922=5,dati_bdv!$G$2:$G$65536,dati_bdv!$H$2:$H$65536))))),$A922,dati_bdv!J$2:J$65536)","v":0},{"$f":"SUMIF(IF(dati_pdc!$C922=1,dati_bdv!$C$2:$C$65536,IF(dati_pdc!$C922=2,dati_bdv!$D$2:$D$65536,IF(dati_pdc!$C922=3,dati_bdv!$E$2:$E$65536,IF(dati_pdc!$C922=4,dati_bdv!$F$2:$F$65536,IF(dati_pdc!$C922=5,dati_bdv!$G$2:$G$65536,dati_bdv!$H$2:$H$65536))))),$A922,dati_bdv!K$2:K$65536)","v":0},{"$f":"SUMIF(IF(dati_pdc!$C922=1,dati_bdv!$C$2:$C$65536,IF(dati_pdc!$C922=2,dati_bdv!$D$2:$D$65536,IF(dati_pdc!$C922=3,dati_bdv!$E$2:$E$65536,IF(dati_pdc!$C922=4,dati_bdv!$F$2:$F$65536,IF(dati_pdc!$C922=5,dati_bdv!$G$2:$G$65536,dati_bdv!$H$2:$H$65536))))),$A922,dati_bdv!L$2:L$65536)","v":0},{"$f":"SUMIF(IF(dati_pdc!$C922=1,dati_bdv!$C$2:$C$65536,IF(dati_pdc!$C922=2,dati_bdv!$D$2:$D$65536,IF(dati_pdc!$C922=3,dati_bdv!$E$2:$E$65536,IF(dati_pdc!$C922=4,dati_bdv!$F$2:$F$65536,IF(dati_pdc!$C922=5,dati_bdv!$G$2:$G$65536,dati_bdv!$H$2:$H$65536))))),$A922,dati_bdv!M$2:M$65536)","v":0},{"$f":"SUMIF(IF(dati_pdc!$C922=1,dati_bdv!$C$2:$C$65536,IF(dati_pdc!$C922=2,dati_bdv!$D$2:$D$65536,IF(dati_pdc!$C922=3,dati_bdv!$E$2:$E$65536,IF(dati_pdc!$C922=4,dati_bdv!$F$2:$F$65536,IF(dati_pdc!$C922=5,dati_bdv!$G$2:$G$65536,dati_bdv!$H$2:$H$65536))))),$A922,dati_bdv!N$2:N$65536)","v":0}]
[{"$f":"dati_pdc!A923","v":0},{"$f":"SUMIF(IF(dati_pdc!$C923=1,dati_bdv!$C$2:$C$65536,IF(dati_pdc!$C923=2,dati_bdv!$D$2:$D$65536,IF(dati_pdc!$C923=3,dati_bdv!$E$2:$E$65536,IF(dati_pdc!$C923=4,dati_bdv!$F$2:$F$65536,IF(dati_pdc!$C923=5,dati_bdv!$G$2:$G$65536,dati_bdv!$H$2:$H$65536))))),$A923,dati_bdv!J$2:J$65536)","v":0},{"$f":"SUMIF(IF(dati_pdc!$C923=1,dati_bdv!$C$2:$C$65536,IF(dati_pdc!$C923=2,dati_bdv!$D$2:$D$65536,IF(dati_pdc!$C923=3,dati_bdv!$E$2:$E$65536,IF(dati_pdc!$C923=4,dati_bdv!$F$2:$F$65536,IF(dati_pdc!$C923=5,dati_bdv!$G$2:$G$65536,dati_bdv!$H$2:$H$65536))))),$A923,dati_bdv!K$2:K$65536)","v":0},{"$f":"SUMIF(IF(dati_pdc!$C923=1,dati_bdv!$C$2:$C$65536,IF(dati_pdc!$C923=2,dati_bdv!$D$2:$D$65536,IF(dati_pdc!$C923=3,dati_bdv!$E$2:$E$65536,IF(dati_pdc!$C923=4,dati_bdv!$F$2:$F$65536,IF(dati_pdc!$C923=5,dati_bdv!$G$2:$G$65536,dati_bdv!$H$2:$H$65536))))),$A923,dati_bdv!L$2:L$65536)","v":0},{"$f":"SUMIF(IF(dati_pdc!$C923=1,dati_bdv!$C$2:$C$65536,IF(dati_pdc!$C923=2,dati_bdv!$D$2:$D$65536,IF(dati_pdc!$C923=3,dati_bdv!$E$2:$E$65536,IF(dati_pdc!$C923=4,dati_bdv!$F$2:$F$65536,IF(dati_pdc!$C923=5,dati_bdv!$G$2:$G$65536,dati_bdv!$H$2:$H$65536))))),$A923,dati_bdv!M$2:M$65536)","v":0},{"$f":"SUMIF(IF(dati_pdc!$C923=1,dati_bdv!$C$2:$C$65536,IF(dati_pdc!$C923=2,dati_bdv!$D$2:$D$65536,IF(dati_pdc!$C923=3,dati_bdv!$E$2:$E$65536,IF(dati_pdc!$C923=4,dati_bdv!$F$2:$F$65536,IF(dati_pdc!$C923=5,dati_bdv!$G$2:$G$65536,dati_bdv!$H$2:$H$65536))))),$A923,dati_bdv!N$2:N$65536)","v":0}]
[{"$f":"dati_pdc!A924","v":0},{"$f":"SUMIF(IF(dati_pdc!$C924=1,dati_bdv!$C$2:$C$65536,IF(dati_pdc!$C924=2,dati_bdv!$D$2:$D$65536,IF(dati_pdc!$C924=3,dati_bdv!$E$2:$E$65536,IF(dati_pdc!$C924=4,dati_bdv!$F$2:$F$65536,IF(dati_pdc!$C924=5,dati_bdv!$G$2:$G$65536,dati_bdv!$H$2:$H$65536))))),$A924,dati_bdv!J$2:J$65536)","v":0},{"$f":"SUMIF(IF(dati_pdc!$C924=1,dati_bdv!$C$2:$C$65536,IF(dati_pdc!$C924=2,dati_bdv!$D$2:$D$65536,IF(dati_pdc!$C924=3,dati_bdv!$E$2:$E$65536,IF(dati_pdc!$C924=4,dati_bdv!$F$2:$F$65536,IF(dati_pdc!$C924=5,dati_bdv!$G$2:$G$65536,dati_bdv!$H$2:$H$65536))))),$A924,dati_bdv!K$2:K$65536)","v":0},{"$f":"SUMIF(IF(dati_pdc!$C924=1,dati_bdv!$C$2:$C$65536,IF(dati_pdc!$C924=2,dati_bdv!$D$2:$D$65536,IF(dati_pdc!$C924=3,dati_bdv!$E$2:$E$65536,IF(dati_pdc!$C924=4,dati_bdv!$F$2:$F$65536,IF(dati_pdc!$C924=5,dati_bdv!$G$2:$G$65536,dati_bdv!$H$2:$H$65536))))),$A924,dati_bdv!L$2:L$65536)","v":0},{"$f":"SUMIF(IF(dati_pdc!$C924=1,dati_bdv!$C$2:$C$65536,IF(dati_pdc!$C924=2,dati_bdv!$D$2:$D$65536,IF(dati_pdc!$C924=3,dati_bdv!$E$2:$E$65536,IF(dati_pdc!$C924=4,dati_bdv!$F$2:$F$65536,IF(dati_pdc!$C924=5,dati_bdv!$G$2:$G$65536,dati_bdv!$H$2:$H$65536))))),$A924,dati_bdv!M$2:M$65536)","v":0},{"$f":"SUMIF(IF(dati_pdc!$C924=1,dati_bdv!$C$2:$C$65536,IF(dati_pdc!$C924=2,dati_bdv!$D$2:$D$65536,IF(dati_pdc!$C924=3,dati_bdv!$E$2:$E$65536,IF(dati_pdc!$C924=4,dati_bdv!$F$2:$F$65536,IF(dati_pdc!$C924=5,dati_bdv!$G$2:$G$65536,dati_bdv!$H$2:$H$65536))))),$A924,dati_bdv!N$2:N$65536)","v":0}]
[{"$f":"dati_pdc!A925","v":0},{"$f":"SUMIF(IF(dati_pdc!$C925=1,dati_bdv!$C$2:$C$65536,IF(dati_pdc!$C925=2,dati_bdv!$D$2:$D$65536,IF(dati_pdc!$C925=3,dati_bdv!$E$2:$E$65536,IF(dati_pdc!$C925=4,dati_bdv!$F$2:$F$65536,IF(dati_pdc!$C925=5,dati_bdv!$G$2:$G$65536,dati_bdv!$H$2:$H$65536))))),$A925,dati_bdv!J$2:J$65536)","v":0},{"$f":"SUMIF(IF(dati_pdc!$C925=1,dati_bdv!$C$2:$C$65536,IF(dati_pdc!$C925=2,dati_bdv!$D$2:$D$65536,IF(dati_pdc!$C925=3,dati_bdv!$E$2:$E$65536,IF(dati_pdc!$C925=4,dati_bdv!$F$2:$F$65536,IF(dati_pdc!$C925=5,dati_bdv!$G$2:$G$65536,dati_bdv!$H$2:$H$65536))))),$A925,dati_bdv!K$2:K$65536)","v":0},{"$f":"SUMIF(IF(dati_pdc!$C925=1,dati_bdv!$C$2:$C$65536,IF(dati_pdc!$C925=2,dati_bdv!$D$2:$D$65536,IF(dati_pdc!$C925=3,dati_bdv!$E$2:$E$65536,IF(dati_pdc!$C925=4,dati_bdv!$F$2:$F$65536,IF(dati_pdc!$C925=5,dati_bdv!$G$2:$G$65536,dati_bdv!$H$2:$H$65536))))),$A925,dati_bdv!L$2:L$65536)","v":0},{"$f":"SUMIF(IF(dati_pdc!$C925=1,dati_bdv!$C$2:$C$65536,IF(dati_pdc!$C925=2,dati_bdv!$D$2:$D$65536,IF(dati_pdc!$C925=3,dati_bdv!$E$2:$E$65536,IF(dati_pdc!$C925=4,dati_bdv!$F$2:$F$65536,IF(dati_pdc!$C925=5,dati_bdv!$G$2:$G$65536,dati_bdv!$H$2:$H$65536))))),$A925,dati_bdv!M$2:M$65536)","v":0},{"$f":"SUMIF(IF(dati_pdc!$C925=1,dati_bdv!$C$2:$C$65536,IF(dati_pdc!$C925=2,dati_bdv!$D$2:$D$65536,IF(dati_pdc!$C925=3,dati_bdv!$E$2:$E$65536,IF(dati_pdc!$C925=4,dati_bdv!$F$2:$F$65536,IF(dati_pdc!$C925=5,dati_bdv!$G$2:$G$65536,dati_bdv!$H$2:$H$65536))))),$A925,dati_bdv!N$2:N$65536)","v":0}]
[{"$f":"dati_pdc!A926","v":0},{"$f":"SUMIF(IF(dati_pdc!$C926=1,dati_bdv!$C$2:$C$65536,IF(dati_pdc!$C926=2,dati_bdv!$D$2:$D$65536,IF(dati_pdc!$C926=3,dati_bdv!$E$2:$E$65536,IF(dati_pdc!$C926=4,dati_bdv!$F$2:$F$65536,IF(dati_pdc!$C926=5,dati_bdv!$G$2:$G$65536,dati_bdv!$H$2:$H$65536))))),$A926,dati_bdv!J$2:J$65536)","v":0},{"$f":"SUMIF(IF(dati_pdc!$C926=1,dati_bdv!$C$2:$C$65536,IF(dati_pdc!$C926=2,dati_bdv!$D$2:$D$65536,IF(dati_pdc!$C926=3,dati_bdv!$E$2:$E$65536,IF(dati_pdc!$C926=4,dati_bdv!$F$2:$F$65536,IF(dati_pdc!$C926=5,dati_bdv!$G$2:$G$65536,dati_bdv!$H$2:$H$65536))))),$A926,dati_bdv!K$2:K$65536)","v":0},{"$f":"SUMIF(IF(dati_pdc!$C926=1,dati_bdv!$C$2:$C$65536,IF(dati_pdc!$C926=2,dati_bdv!$D$2:$D$65536,IF(dati_pdc!$C926=3,dati_bdv!$E$2:$E$65536,IF(dati_pdc!$C926=4,dati_bdv!$F$2:$F$65536,IF(dati_pdc!$C926=5,dati_bdv!$G$2:$G$65536,dati_bdv!$H$2:$H$65536))))),$A926,dati_bdv!L$2:L$65536)","v":0},{"$f":"SUMIF(IF(dati_pdc!$C926=1,dati_bdv!$C$2:$C$65536,IF(dati_pdc!$C926=2,dati_bdv!$D$2:$D$65536,IF(dati_pdc!$C926=3,dati_bdv!$E$2:$E$65536,IF(dati_pdc!$C926=4,dati_bdv!$F$2:$F$65536,IF(dati_pdc!$C926=5,dati_bdv!$G$2:$G$65536,dati_bdv!$H$2:$H$65536))))),$A926,dati_bdv!M$2:M$65536)","v":0},{"$f":"SUMIF(IF(dati_pdc!$C926=1,dati_bdv!$C$2:$C$65536,IF(dati_pdc!$C926=2,dati_bdv!$D$2:$D$65536,IF(dati_pdc!$C926=3,dati_bdv!$E$2:$E$65536,IF(dati_pdc!$C926=4,dati_bdv!$F$2:$F$65536,IF(dati_pdc!$C926=5,dati_bdv!$G$2:$G$65536,dati_bdv!$H$2:$H$65536))))),$A926,dati_bdv!N$2:N$65536)","v":0}]
[{"$f":"dati_pdc!A927","v":0},{"$f":"SUMIF(IF(dati_pdc!$C927=1,dati_bdv!$C$2:$C$65536,IF(dati_pdc!$C927=2,dati_bdv!$D$2:$D$65536,IF(dati_pdc!$C927=3,dati_bdv!$E$2:$E$65536,IF(dati_pdc!$C927=4,dati_bdv!$F$2:$F$65536,IF(dati_pdc!$C927=5,dati_bdv!$G$2:$G$65536,dati_bdv!$H$2:$H$65536))))),$A927,dati_bdv!J$2:J$65536)","v":0},{"$f":"SUMIF(IF(dati_pdc!$C927=1,dati_bdv!$C$2:$C$65536,IF(dati_pdc!$C927=2,dati_bdv!$D$2:$D$65536,IF(dati_pdc!$C927=3,dati_bdv!$E$2:$E$65536,IF(dati_pdc!$C927=4,dati_bdv!$F$2:$F$65536,IF(dati_pdc!$C927=5,dati_bdv!$G$2:$G$65536,dati_bdv!$H$2:$H$65536))))),$A927,dati_bdv!K$2:K$65536)","v":0},{"$f":"SUMIF(IF(dati_pdc!$C927=1,dati_bdv!$C$2:$C$65536,IF(dati_pdc!$C927=2,dati_bdv!$D$2:$D$65536,IF(dati_pdc!$C927=3,dati_bdv!$E$2:$E$65536,IF(dati_pdc!$C927=4,dati_bdv!$F$2:$F$65536,IF(dati_pdc!$C927=5,dati_bdv!$G$2:$G$65536,dati_bdv!$H$2:$H$65536))))),$A927,dati_bdv!L$2:L$65536)","v":0},{"$f":"SUMIF(IF(dati_pdc!$C927=1,dati_bdv!$C$2:$C$65536,IF(dati_pdc!$C927=2,dati_bdv!$D$2:$D$65536,IF(dati_pdc!$C927=3,dati_bdv!$E$2:$E$65536,IF(dati_pdc!$C927=4,dati_bdv!$F$2:$F$65536,IF(dati_pdc!$C927=5,dati_bdv!$G$2:$G$65536,dati_bdv!$H$2:$H$65536))))),$A927,dati_bdv!M$2:M$65536)","v":0},{"$f":"SUMIF(IF(dati_pdc!$C927=1,dati_bdv!$C$2:$C$65536,IF(dati_pdc!$C927=2,dati_bdv!$D$2:$D$65536,IF(dati_pdc!$C927=3,dati_bdv!$E$2:$E$65536,IF(dati_pdc!$C927=4,dati_bdv!$F$2:$F$65536,IF(dati_pdc!$C927=5,dati_bdv!$G$2:$G$65536,dati_bdv!$H$2:$H$65536))))),$A927,dati_bdv!N$2:N$65536)","v":0}]
[{"$f":"dati_pdc!A928","v":0},{"$f":"SUMIF(IF(dati_pdc!$C928=1,dati_bdv!$C$2:$C$65536,IF(dati_pdc!$C928=2,dati_bdv!$D$2:$D$65536,IF(dati_pdc!$C928=3,dati_bdv!$E$2:$E$65536,IF(dati_pdc!$C928=4,dati_bdv!$F$2:$F$65536,IF(dati_pdc!$C928=5,dati_bdv!$G$2:$G$65536,dati_bdv!$H$2:$H$65536))))),$A928,dati_bdv!J$2:J$65536)","v":0},{"$f":"SUMIF(IF(dati_pdc!$C928=1,dati_bdv!$C$2:$C$65536,IF(dati_pdc!$C928=2,dati_bdv!$D$2:$D$65536,IF(dati_pdc!$C928=3,dati_bdv!$E$2:$E$65536,IF(dati_pdc!$C928=4,dati_bdv!$F$2:$F$65536,IF(dati_pdc!$C928=5,dati_bdv!$G$2:$G$65536,dati_bdv!$H$2:$H$65536))))),$A928,dati_bdv!K$2:K$65536)","v":0},{"$f":"SUMIF(IF(dati_pdc!$C928=1,dati_bdv!$C$2:$C$65536,IF(dati_pdc!$C928=2,dati_bdv!$D$2:$D$65536,IF(dati_pdc!$C928=3,dati_bdv!$E$2:$E$65536,IF(dati_pdc!$C928=4,dati_bdv!$F$2:$F$65536,IF(dati_pdc!$C928=5,dati_bdv!$G$2:$G$65536,dati_bdv!$H$2:$H$65536))))),$A928,dati_bdv!L$2:L$65536)","v":0},{"$f":"SUMIF(IF(dati_pdc!$C928=1,dati_bdv!$C$2:$C$65536,IF(dati_pdc!$C928=2,dati_bdv!$D$2:$D$65536,IF(dati_pdc!$C928=3,dati_bdv!$E$2:$E$65536,IF(dati_pdc!$C928=4,dati_bdv!$F$2:$F$65536,IF(dati_pdc!$C928=5,dati_bdv!$G$2:$G$65536,dati_bdv!$H$2:$H$65536))))),$A928,dati_bdv!M$2:M$65536)","v":0},{"$f":"SUMIF(IF(dati_pdc!$C928=1,dati_bdv!$C$2:$C$65536,IF(dati_pdc!$C928=2,dati_bdv!$D$2:$D$65536,IF(dati_pdc!$C928=3,dati_bdv!$E$2:$E$65536,IF(dati_pdc!$C928=4,dati_bdv!$F$2:$F$65536,IF(dati_pdc!$C928=5,dati_bdv!$G$2:$G$65536,dati_bdv!$H$2:$H$65536))))),$A928,dati_bdv!N$2:N$65536)","v":0}]
[{"$f":"dati_pdc!A929","v":0},{"$f":"SUMIF(IF(dati_pdc!$C929=1,dati_bdv!$C$2:$C$65536,IF(dati_pdc!$C929=2,dati_bdv!$D$2:$D$65536,IF(dati_pdc!$C929=3,dati_bdv!$E$2:$E$65536,IF(dati_pdc!$C929=4,dati_bdv!$F$2:$F$65536,IF(dati_pdc!$C929=5,dati_bdv!$G$2:$G$65536,dati_bdv!$H$2:$H$65536))))),$A929,dati_bdv!J$2:J$65536)","v":0},{"$f":"SUMIF(IF(dati_pdc!$C929=1,dati_bdv!$C$2:$C$65536,IF(dati_pdc!$C929=2,dati_bdv!$D$2:$D$65536,IF(dati_pdc!$C929=3,dati_bdv!$E$2:$E$65536,IF(dati_pdc!$C929=4,dati_bdv!$F$2:$F$65536,IF(dati_pdc!$C929=5,dati_bdv!$G$2:$G$65536,dati_bdv!$H$2:$H$65536))))),$A929,dati_bdv!K$2:K$65536)","v":0},{"$f":"SUMIF(IF(dati_pdc!$C929=1,dati_bdv!$C$2:$C$65536,IF(dati_pdc!$C929=2,dati_bdv!$D$2:$D$65536,IF(dati_pdc!$C929=3,dati_bdv!$E$2:$E$65536,IF(dati_pdc!$C929=4,dati_bdv!$F$2:$F$65536,IF(dati_pdc!$C929=5,dati_bdv!$G$2:$G$65536,dati_bdv!$H$2:$H$65536))))),$A929,dati_bdv!L$2:L$65536)","v":0},{"$f":"SUMIF(IF(dati_pdc!$C929=1,dati_bdv!$C$2:$C$65536,IF(dati_pdc!$C929=2,dati_bdv!$D$2:$D$65536,IF(dati_pdc!$C929=3,dati_bdv!$E$2:$E$65536,IF(dati_pdc!$C929=4,dati_bdv!$F$2:$F$65536,IF(dati_pdc!$C929=5,dati_bdv!$G$2:$G$65536,dati_bdv!$H$2:$H$65536))))),$A929,dati_bdv!M$2:M$65536)","v":0},{"$f":"SUMIF(IF(dati_pdc!$C929=1,dati_bdv!$C$2:$C$65536,IF(dati_pdc!$C929=2,dati_bdv!$D$2:$D$65536,IF(dati_pdc!$C929=3,dati_bdv!$E$2:$E$65536,IF(dati_pdc!$C929=4,dati_bdv!$F$2:$F$65536,IF(dati_pdc!$C929=5,dati_bdv!$G$2:$G$65536,dati_bdv!$H$2:$H$65536))))),$A929,dati_bdv!N$2:N$65536)","v":0}]
[{"$f":"dati_pdc!A930","v":0},{"$f":"SUMIF(IF(dati_pdc!$C930=1,dati_bdv!$C$2:$C$65536,IF(dati_pdc!$C930=2,dati_bdv!$D$2:$D$65536,IF(dati_pdc!$C930=3,dati_bdv!$E$2:$E$65536,IF(dati_pdc!$C930=4,dati_bdv!$F$2:$F$65536,IF(dati_pdc!$C930=5,dati_bdv!$G$2:$G$65536,dati_bdv!$H$2:$H$65536))))),$A930,dati_bdv!J$2:J$65536)","v":0},{"$f":"SUMIF(IF(dati_pdc!$C930=1,dati_bdv!$C$2:$C$65536,IF(dati_pdc!$C930=2,dati_bdv!$D$2:$D$65536,IF(dati_pdc!$C930=3,dati_bdv!$E$2:$E$65536,IF(dati_pdc!$C930=4,dati_bdv!$F$2:$F$65536,IF(dati_pdc!$C930=5,dati_bdv!$G$2:$G$65536,dati_bdv!$H$2:$H$65536))))),$A930,dati_bdv!K$2:K$65536)","v":0},{"$f":"SUMIF(IF(dati_pdc!$C930=1,dati_bdv!$C$2:$C$65536,IF(dati_pdc!$C930=2,dati_bdv!$D$2:$D$65536,IF(dati_pdc!$C930=3,dati_bdv!$E$2:$E$65536,IF(dati_pdc!$C930=4,dati_bdv!$F$2:$F$65536,IF(dati_pdc!$C930=5,dati_bdv!$G$2:$G$65536,dati_bdv!$H$2:$H$65536))))),$A930,dati_bdv!L$2:L$65536)","v":0},{"$f":"SUMIF(IF(dati_pdc!$C930=1,dati_bdv!$C$2:$C$65536,IF(dati_pdc!$C930=2,dati_bdv!$D$2:$D$65536,IF(dati_pdc!$C930=3,dati_bdv!$E$2:$E$65536,IF(dati_pdc!$C930=4,dati_bdv!$F$2:$F$65536,IF(dati_pdc!$C930=5,dati_bdv!$G$2:$G$65536,dati_bdv!$H$2:$H$65536))))),$A930,dati_bdv!M$2:M$65536)","v":0},{"$f":"SUMIF(IF(dati_pdc!$C930=1,dati_bdv!$C$2:$C$65536,IF(dati_pdc!$C930=2,dati_bdv!$D$2:$D$65536,IF(dati_pdc!$C930=3,dati_bdv!$E$2:$E$65536,IF(dati_pdc!$C930=4,dati_bdv!$F$2:$F$65536,IF(dati_pdc!$C930=5,dati_bdv!$G$2:$G$65536,dati_bdv!$H$2:$H$65536))))),$A930,dati_bdv!N$2:N$65536)","v":0}]
[{"$f":"dati_pdc!A931","v":0},{"$f":"SUMIF(IF(dati_pdc!$C931=1,dati_bdv!$C$2:$C$65536,IF(dati_pdc!$C931=2,dati_bdv!$D$2:$D$65536,IF(dati_pdc!$C931=3,dati_bdv!$E$2:$E$65536,IF(dati_pdc!$C931=4,dati_bdv!$F$2:$F$65536,IF(dati_pdc!$C931=5,dati_bdv!$G$2:$G$65536,dati_bdv!$H$2:$H$65536))))),$A931,dati_bdv!J$2:J$65536)","v":0},{"$f":"SUMIF(IF(dati_pdc!$C931=1,dati_bdv!$C$2:$C$65536,IF(dati_pdc!$C931=2,dati_bdv!$D$2:$D$65536,IF(dati_pdc!$C931=3,dati_bdv!$E$2:$E$65536,IF(dati_pdc!$C931=4,dati_bdv!$F$2:$F$65536,IF(dati_pdc!$C931=5,dati_bdv!$G$2:$G$65536,dati_bdv!$H$2:$H$65536))))),$A931,dati_bdv!K$2:K$65536)","v":0},{"$f":"SUMIF(IF(dati_pdc!$C931=1,dati_bdv!$C$2:$C$65536,IF(dati_pdc!$C931=2,dati_bdv!$D$2:$D$65536,IF(dati_pdc!$C931=3,dati_bdv!$E$2:$E$65536,IF(dati_pdc!$C931=4,dati_bdv!$F$2:$F$65536,IF(dati_pdc!$C931=5,dati_bdv!$G$2:$G$65536,dati_bdv!$H$2:$H$65536))))),$A931,dati_bdv!L$2:L$65536)","v":0},{"$f":"SUMIF(IF(dati_pdc!$C931=1,dati_bdv!$C$2:$C$65536,IF(dati_pdc!$C931=2,dati_bdv!$D$2:$D$65536,IF(dati_pdc!$C931=3,dati_bdv!$E$2:$E$65536,IF(dati_pdc!$C931=4,dati_bdv!$F$2:$F$65536,IF(dati_pdc!$C931=5,dati_bdv!$G$2:$G$65536,dati_bdv!$H$2:$H$65536))))),$A931,dati_bdv!M$2:M$65536)","v":0},{"$f":"SUMIF(IF(dati_pdc!$C931=1,dati_bdv!$C$2:$C$65536,IF(dati_pdc!$C931=2,dati_bdv!$D$2:$D$65536,IF(dati_pdc!$C931=3,dati_bdv!$E$2:$E$65536,IF(dati_pdc!$C931=4,dati_bdv!$F$2:$F$65536,IF(dati_pdc!$C931=5,dati_bdv!$G$2:$G$65536,dati_bdv!$H$2:$H$65536))))),$A931,dati_bdv!N$2:N$65536)","v":0}]
[{"$f":"dati_pdc!A932","v":0},{"$f":"SUMIF(IF(dati_pdc!$C932=1,dati_bdv!$C$2:$C$65536,IF(dati_pdc!$C932=2,dati_bdv!$D$2:$D$65536,IF(dati_pdc!$C932=3,dati_bdv!$E$2:$E$65536,IF(dati_pdc!$C932=4,dati_bdv!$F$2:$F$65536,IF(dati_pdc!$C932=5,dati_bdv!$G$2:$G$65536,dati_bdv!$H$2:$H$65536))))),$A932,dati_bdv!J$2:J$65536)","v":0},{"$f":"SUMIF(IF(dati_pdc!$C932=1,dati_bdv!$C$2:$C$65536,IF(dati_pdc!$C932=2,dati_bdv!$D$2:$D$65536,IF(dati_pdc!$C932=3,dati_bdv!$E$2:$E$65536,IF(dati_pdc!$C932=4,dati_bdv!$F$2:$F$65536,IF(dati_pdc!$C932=5,dati_bdv!$G$2:$G$65536,dati_bdv!$H$2:$H$65536))))),$A932,dati_bdv!K$2:K$65536)","v":0},{"$f":"SUMIF(IF(dati_pdc!$C932=1,dati_bdv!$C$2:$C$65536,IF(dati_pdc!$C932=2,dati_bdv!$D$2:$D$65536,IF(dati_pdc!$C932=3,dati_bdv!$E$2:$E$65536,IF(dati_pdc!$C932=4,dati_bdv!$F$2:$F$65536,IF(dati_pdc!$C932=5,dati_bdv!$G$2:$G$65536,dati_bdv!$H$2:$H$65536))))),$A932,dati_bdv!L$2:L$65536)","v":0},{"$f":"SUMIF(IF(dati_pdc!$C932=1,dati_bdv!$C$2:$C$65536,IF(dati_pdc!$C932=2,dati_bdv!$D$2:$D$65536,IF(dati_pdc!$C932=3,dati_bdv!$E$2:$E$65536,IF(dati_pdc!$C932=4,dati_bdv!$F$2:$F$65536,IF(dati_pdc!$C932=5,dati_bdv!$G$2:$G$65536,dati_bdv!$H$2:$H$65536))))),$A932,dati_bdv!M$2:M$65536)","v":0},{"$f":"SUMIF(IF(dati_pdc!$C932=1,dati_bdv!$C$2:$C$65536,IF(dati_pdc!$C932=2,dati_bdv!$D$2:$D$65536,IF(dati_pdc!$C932=3,dati_bdv!$E$2:$E$65536,IF(dati_pdc!$C932=4,dati_bdv!$F$2:$F$65536,IF(dati_pdc!$C932=5,dati_bdv!$G$2:$G$65536,dati_bdv!$H$2:$H$65536))))),$A932,dati_bdv!N$2:N$65536)","v":0}]
[{"$f":"dati_pdc!A933","v":0},{"$f":"SUMIF(IF(dati_pdc!$C933=1,dati_bdv!$C$2:$C$65536,IF(dati_pdc!$C933=2,dati_bdv!$D$2:$D$65536,IF(dati_pdc!$C933=3,dati_bdv!$E$2:$E$65536,IF(dati_pdc!$C933=4,dati_bdv!$F$2:$F$65536,IF(dati_pdc!$C933=5,dati_bdv!$G$2:$G$65536,dati_bdv!$H$2:$H$65536))))),$A933,dati_bdv!J$2:J$65536)","v":0},{"$f":"SUMIF(IF(dati_pdc!$C933=1,dati_bdv!$C$2:$C$65536,IF(dati_pdc!$C933=2,dati_bdv!$D$2:$D$65536,IF(dati_pdc!$C933=3,dati_bdv!$E$2:$E$65536,IF(dati_pdc!$C933=4,dati_bdv!$F$2:$F$65536,IF(dati_pdc!$C933=5,dati_bdv!$G$2:$G$65536,dati_bdv!$H$2:$H$65536))))),$A933,dati_bdv!K$2:K$65536)","v":0},{"$f":"SUMIF(IF(dati_pdc!$C933=1,dati_bdv!$C$2:$C$65536,IF(dati_pdc!$C933=2,dati_bdv!$D$2:$D$65536,IF(dati_pdc!$C933=3,dati_bdv!$E$2:$E$65536,IF(dati_pdc!$C933=4,dati_bdv!$F$2:$F$65536,IF(dati_pdc!$C933=5,dati_bdv!$G$2:$G$65536,dati_bdv!$H$2:$H$65536))))),$A933,dati_bdv!L$2:L$65536)","v":0},{"$f":"SUMIF(IF(dati_pdc!$C933=1,dati_bdv!$C$2:$C$65536,IF(dati_pdc!$C933=2,dati_bdv!$D$2:$D$65536,IF(dati_pdc!$C933=3,dati_bdv!$E$2:$E$65536,IF(dati_pdc!$C933=4,dati_bdv!$F$2:$F$65536,IF(dati_pdc!$C933=5,dati_bdv!$G$2:$G$65536,dati_bdv!$H$2:$H$65536))))),$A933,dati_bdv!M$2:M$65536)","v":0},{"$f":"SUMIF(IF(dati_pdc!$C933=1,dati_bdv!$C$2:$C$65536,IF(dati_pdc!$C933=2,dati_bdv!$D$2:$D$65536,IF(dati_pdc!$C933=3,dati_bdv!$E$2:$E$65536,IF(dati_pdc!$C933=4,dati_bdv!$F$2:$F$65536,IF(dati_pdc!$C933=5,dati_bdv!$G$2:$G$65536,dati_bdv!$H$2:$H$65536))))),$A933,dati_bdv!N$2:N$65536)","v":0}]
[{"$f":"dati_pdc!A934","v":0},{"$f":"SUMIF(IF(dati_pdc!$C934=1,dati_bdv!$C$2:$C$65536,IF(dati_pdc!$C934=2,dati_bdv!$D$2:$D$65536,IF(dati_pdc!$C934=3,dati_bdv!$E$2:$E$65536,IF(dati_pdc!$C934=4,dati_bdv!$F$2:$F$65536,IF(dati_pdc!$C934=5,dati_bdv!$G$2:$G$65536,dati_bdv!$H$2:$H$65536))))),$A934,dati_bdv!J$2:J$65536)","v":0},{"$f":"SUMIF(IF(dati_pdc!$C934=1,dati_bdv!$C$2:$C$65536,IF(dati_pdc!$C934=2,dati_bdv!$D$2:$D$65536,IF(dati_pdc!$C934=3,dati_bdv!$E$2:$E$65536,IF(dati_pdc!$C934=4,dati_bdv!$F$2:$F$65536,IF(dati_pdc!$C934=5,dati_bdv!$G$2:$G$65536,dati_bdv!$H$2:$H$65536))))),$A934,dati_bdv!K$2:K$65536)","v":0},{"$f":"SUMIF(IF(dati_pdc!$C934=1,dati_bdv!$C$2:$C$65536,IF(dati_pdc!$C934=2,dati_bdv!$D$2:$D$65536,IF(dati_pdc!$C934=3,dati_bdv!$E$2:$E$65536,IF(dati_pdc!$C934=4,dati_bdv!$F$2:$F$65536,IF(dati_pdc!$C934=5,dati_bdv!$G$2:$G$65536,dati_bdv!$H$2:$H$65536))))),$A934,dati_bdv!L$2:L$65536)","v":0},{"$f":"SUMIF(IF(dati_pdc!$C934=1,dati_bdv!$C$2:$C$65536,IF(dati_pdc!$C934=2,dati_bdv!$D$2:$D$65536,IF(dati_pdc!$C934=3,dati_bdv!$E$2:$E$65536,IF(dati_pdc!$C934=4,dati_bdv!$F$2:$F$65536,IF(dati_pdc!$C934=5,dati_bdv!$G$2:$G$65536,dati_bdv!$H$2:$H$65536))))),$A934,dati_bdv!M$2:M$65536)","v":0},{"$f":"SUMIF(IF(dati_pdc!$C934=1,dati_bdv!$C$2:$C$65536,IF(dati_pdc!$C934=2,dati_bdv!$D$2:$D$65536,IF(dati_pdc!$C934=3,dati_bdv!$E$2:$E$65536,IF(dati_pdc!$C934=4,dati_bdv!$F$2:$F$65536,IF(dati_pdc!$C934=5,dati_bdv!$G$2:$G$65536,dati_bdv!$H$2:$H$65536))))),$A934,dati_bdv!N$2:N$65536)","v":0}]
[{"$f":"dati_pdc!A935","v":0},{"$f":"SUMIF(IF(dati_pdc!$C935=1,dati_bdv!$C$2:$C$65536,IF(dati_pdc!$C935=2,dati_bdv!$D$2:$D$65536,IF(dati_pdc!$C935=3,dati_bdv!$E$2:$E$65536,IF(dati_pdc!$C935=4,dati_bdv!$F$2:$F$65536,IF(dati_pdc!$C935=5,dati_bdv!$G$2:$G$65536,dati_bdv!$H$2:$H$65536))))),$A935,dati_bdv!J$2:J$65536)","v":0},{"$f":"SUMIF(IF(dati_pdc!$C935=1,dati_bdv!$C$2:$C$65536,IF(dati_pdc!$C935=2,dati_bdv!$D$2:$D$65536,IF(dati_pdc!$C935=3,dati_bdv!$E$2:$E$65536,IF(dati_pdc!$C935=4,dati_bdv!$F$2:$F$65536,IF(dati_pdc!$C935=5,dati_bdv!$G$2:$G$65536,dati_bdv!$H$2:$H$65536))))),$A935,dati_bdv!K$2:K$65536)","v":0},{"$f":"SUMIF(IF(dati_pdc!$C935=1,dati_bdv!$C$2:$C$65536,IF(dati_pdc!$C935=2,dati_bdv!$D$2:$D$65536,IF(dati_pdc!$C935=3,dati_bdv!$E$2:$E$65536,IF(dati_pdc!$C935=4,dati_bdv!$F$2:$F$65536,IF(dati_pdc!$C935=5,dati_bdv!$G$2:$G$65536,dati_bdv!$H$2:$H$65536))))),$A935,dati_bdv!L$2:L$65536)","v":0},{"$f":"SUMIF(IF(dati_pdc!$C935=1,dati_bdv!$C$2:$C$65536,IF(dati_pdc!$C935=2,dati_bdv!$D$2:$D$65536,IF(dati_pdc!$C935=3,dati_bdv!$E$2:$E$65536,IF(dati_pdc!$C935=4,dati_bdv!$F$2:$F$65536,IF(dati_pdc!$C935=5,dati_bdv!$G$2:$G$65536,dati_bdv!$H$2:$H$65536))))),$A935,dati_bdv!M$2:M$65536)","v":0},{"$f":"SUMIF(IF(dati_pdc!$C935=1,dati_bdv!$C$2:$C$65536,IF(dati_pdc!$C935=2,dati_bdv!$D$2:$D$65536,IF(dati_pdc!$C935=3,dati_bdv!$E$2:$E$65536,IF(dati_pdc!$C935=4,dati_bdv!$F$2:$F$65536,IF(dati_pdc!$C935=5,dati_bdv!$G$2:$G$65536,dati_bdv!$H$2:$H$65536))))),$A935,dati_bdv!N$2:N$65536)","v":0}]
[{"$f":"dati_pdc!A936","v":0},{"$f":"SUMIF(IF(dati_pdc!$C936=1,dati_bdv!$C$2:$C$65536,IF(dati_pdc!$C936=2,dati_bdv!$D$2:$D$65536,IF(dati_pdc!$C936=3,dati_bdv!$E$2:$E$65536,IF(dati_pdc!$C936=4,dati_bdv!$F$2:$F$65536,IF(dati_pdc!$C936=5,dati_bdv!$G$2:$G$65536,dati_bdv!$H$2:$H$65536))))),$A936,dati_bdv!J$2:J$65536)","v":0},{"$f":"SUMIF(IF(dati_pdc!$C936=1,dati_bdv!$C$2:$C$65536,IF(dati_pdc!$C936=2,dati_bdv!$D$2:$D$65536,IF(dati_pdc!$C936=3,dati_bdv!$E$2:$E$65536,IF(dati_pdc!$C936=4,dati_bdv!$F$2:$F$65536,IF(dati_pdc!$C936=5,dati_bdv!$G$2:$G$65536,dati_bdv!$H$2:$H$65536))))),$A936,dati_bdv!K$2:K$65536)","v":0},{"$f":"SUMIF(IF(dati_pdc!$C936=1,dati_bdv!$C$2:$C$65536,IF(dati_pdc!$C936=2,dati_bdv!$D$2:$D$65536,IF(dati_pdc!$C936=3,dati_bdv!$E$2:$E$65536,IF(dati_pdc!$C936=4,dati_bdv!$F$2:$F$65536,IF(dati_pdc!$C936=5,dati_bdv!$G$2:$G$65536,dati_bdv!$H$2:$H$65536))))),$A936,dati_bdv!L$2:L$65536)","v":0},{"$f":"SUMIF(IF(dati_pdc!$C936=1,dati_bdv!$C$2:$C$65536,IF(dati_pdc!$C936=2,dati_bdv!$D$2:$D$65536,IF(dati_pdc!$C936=3,dati_bdv!$E$2:$E$65536,IF(dati_pdc!$C936=4,dati_bdv!$F$2:$F$65536,IF(dati_pdc!$C936=5,dati_bdv!$G$2:$G$65536,dati_bdv!$H$2:$H$65536))))),$A936,dati_bdv!M$2:M$65536)","v":0},{"$f":"SUMIF(IF(dati_pdc!$C936=1,dati_bdv!$C$2:$C$65536,IF(dati_pdc!$C936=2,dati_bdv!$D$2:$D$65536,IF(dati_pdc!$C936=3,dati_bdv!$E$2:$E$65536,IF(dati_pdc!$C936=4,dati_bdv!$F$2:$F$65536,IF(dati_pdc!$C936=5,dati_bdv!$G$2:$G$65536,dati_bdv!$H$2:$H$65536))))),$A936,dati_bdv!N$2:N$65536)","v":0}]
[{"$f":"dati_pdc!A937","v":0},{"$f":"SUMIF(IF(dati_pdc!$C937=1,dati_bdv!$C$2:$C$65536,IF(dati_pdc!$C937=2,dati_bdv!$D$2:$D$65536,IF(dati_pdc!$C937=3,dati_bdv!$E$2:$E$65536,IF(dati_pdc!$C937=4,dati_bdv!$F$2:$F$65536,IF(dati_pdc!$C937=5,dati_bdv!$G$2:$G$65536,dati_bdv!$H$2:$H$65536))))),$A937,dati_bdv!J$2:J$65536)","v":0},{"$f":"SUMIF(IF(dati_pdc!$C937=1,dati_bdv!$C$2:$C$65536,IF(dati_pdc!$C937=2,dati_bdv!$D$2:$D$65536,IF(dati_pdc!$C937=3,dati_bdv!$E$2:$E$65536,IF(dati_pdc!$C937=4,dati_bdv!$F$2:$F$65536,IF(dati_pdc!$C937=5,dati_bdv!$G$2:$G$65536,dati_bdv!$H$2:$H$65536))))),$A937,dati_bdv!K$2:K$65536)","v":0},{"$f":"SUMIF(IF(dati_pdc!$C937=1,dati_bdv!$C$2:$C$65536,IF(dati_pdc!$C937=2,dati_bdv!$D$2:$D$65536,IF(dati_pdc!$C937=3,dati_bdv!$E$2:$E$65536,IF(dati_pdc!$C937=4,dati_bdv!$F$2:$F$65536,IF(dati_pdc!$C937=5,dati_bdv!$G$2:$G$65536,dati_bdv!$H$2:$H$65536))))),$A937,dati_bdv!L$2:L$65536)","v":0},{"$f":"SUMIF(IF(dati_pdc!$C937=1,dati_bdv!$C$2:$C$65536,IF(dati_pdc!$C937=2,dati_bdv!$D$2:$D$65536,IF(dati_pdc!$C937=3,dati_bdv!$E$2:$E$65536,IF(dati_pdc!$C937=4,dati_bdv!$F$2:$F$65536,IF(dati_pdc!$C937=5,dati_bdv!$G$2:$G$65536,dati_bdv!$H$2:$H$65536))))),$A937,dati_bdv!M$2:M$65536)","v":0},{"$f":"SUMIF(IF(dati_pdc!$C937=1,dati_bdv!$C$2:$C$65536,IF(dati_pdc!$C937=2,dati_bdv!$D$2:$D$65536,IF(dati_pdc!$C937=3,dati_bdv!$E$2:$E$65536,IF(dati_pdc!$C937=4,dati_bdv!$F$2:$F$65536,IF(dati_pdc!$C937=5,dati_bdv!$G$2:$G$65536,dati_bdv!$H$2:$H$65536))))),$A937,dati_bdv!N$2:N$65536)","v":0}]
[{"$f":"dati_pdc!A938","v":0},{"$f":"SUMIF(IF(dati_pdc!$C938=1,dati_bdv!$C$2:$C$65536,IF(dati_pdc!$C938=2,dati_bdv!$D$2:$D$65536,IF(dati_pdc!$C938=3,dati_bdv!$E$2:$E$65536,IF(dati_pdc!$C938=4,dati_bdv!$F$2:$F$65536,IF(dati_pdc!$C938=5,dati_bdv!$G$2:$G$65536,dati_bdv!$H$2:$H$65536))))),$A938,dati_bdv!J$2:J$65536)","v":0},{"$f":"SUMIF(IF(dati_pdc!$C938=1,dati_bdv!$C$2:$C$65536,IF(dati_pdc!$C938=2,dati_bdv!$D$2:$D$65536,IF(dati_pdc!$C938=3,dati_bdv!$E$2:$E$65536,IF(dati_pdc!$C938=4,dati_bdv!$F$2:$F$65536,IF(dati_pdc!$C938=5,dati_bdv!$G$2:$G$65536,dati_bdv!$H$2:$H$65536))))),$A938,dati_bdv!K$2:K$65536)","v":0},{"$f":"SUMIF(IF(dati_pdc!$C938=1,dati_bdv!$C$2:$C$65536,IF(dati_pdc!$C938=2,dati_bdv!$D$2:$D$65536,IF(dati_pdc!$C938=3,dati_bdv!$E$2:$E$65536,IF(dati_pdc!$C938=4,dati_bdv!$F$2:$F$65536,IF(dati_pdc!$C938=5,dati_bdv!$G$2:$G$65536,dati_bdv!$H$2:$H$65536))))),$A938,dati_bdv!L$2:L$65536)","v":0},{"$f":"SUMIF(IF(dati_pdc!$C938=1,dati_bdv!$C$2:$C$65536,IF(dati_pdc!$C938=2,dati_bdv!$D$2:$D$65536,IF(dati_pdc!$C938=3,dati_bdv!$E$2:$E$65536,IF(dati_pdc!$C938=4,dati_bdv!$F$2:$F$65536,IF(dati_pdc!$C938=5,dati_bdv!$G$2:$G$65536,dati_bdv!$H$2:$H$65536))))),$A938,dati_bdv!M$2:M$65536)","v":0},{"$f":"SUMIF(IF(dati_pdc!$C938=1,dati_bdv!$C$2:$C$65536,IF(dati_pdc!$C938=2,dati_bdv!$D$2:$D$65536,IF(dati_pdc!$C938=3,dati_bdv!$E$2:$E$65536,IF(dati_pdc!$C938=4,dati_bdv!$F$2:$F$65536,IF(dati_pdc!$C938=5,dati_bdv!$G$2:$G$65536,dati_bdv!$H$2:$H$65536))))),$A938,dati_bdv!N$2:N$65536)","v":0}]
[{"$f":"dati_pdc!A939","v":0},{"$f":"SUMIF(IF(dati_pdc!$C939=1,dati_bdv!$C$2:$C$65536,IF(dati_pdc!$C939=2,dati_bdv!$D$2:$D$65536,IF(dati_pdc!$C939=3,dati_bdv!$E$2:$E$65536,IF(dati_pdc!$C939=4,dati_bdv!$F$2:$F$65536,IF(dati_pdc!$C939=5,dati_bdv!$G$2:$G$65536,dati_bdv!$H$2:$H$65536))))),$A939,dati_bdv!J$2:J$65536)","v":0},{"$f":"SUMIF(IF(dati_pdc!$C939=1,dati_bdv!$C$2:$C$65536,IF(dati_pdc!$C939=2,dati_bdv!$D$2:$D$65536,IF(dati_pdc!$C939=3,dati_bdv!$E$2:$E$65536,IF(dati_pdc!$C939=4,dati_bdv!$F$2:$F$65536,IF(dati_pdc!$C939=5,dati_bdv!$G$2:$G$65536,dati_bdv!$H$2:$H$65536))))),$A939,dati_bdv!K$2:K$65536)","v":0},{"$f":"SUMIF(IF(dati_pdc!$C939=1,dati_bdv!$C$2:$C$65536,IF(dati_pdc!$C939=2,dati_bdv!$D$2:$D$65536,IF(dati_pdc!$C939=3,dati_bdv!$E$2:$E$65536,IF(dati_pdc!$C939=4,dati_bdv!$F$2:$F$65536,IF(dati_pdc!$C939=5,dati_bdv!$G$2:$G$65536,dati_bdv!$H$2:$H$65536))))),$A939,dati_bdv!L$2:L$65536)","v":0},{"$f":"SUMIF(IF(dati_pdc!$C939=1,dati_bdv!$C$2:$C$65536,IF(dati_pdc!$C939=2,dati_bdv!$D$2:$D$65536,IF(dati_pdc!$C939=3,dati_bdv!$E$2:$E$65536,IF(dati_pdc!$C939=4,dati_bdv!$F$2:$F$65536,IF(dati_pdc!$C939=5,dati_bdv!$G$2:$G$65536,dati_bdv!$H$2:$H$65536))))),$A939,dati_bdv!M$2:M$65536)","v":0},{"$f":"SUMIF(IF(dati_pdc!$C939=1,dati_bdv!$C$2:$C$65536,IF(dati_pdc!$C939=2,dati_bdv!$D$2:$D$65536,IF(dati_pdc!$C939=3,dati_bdv!$E$2:$E$65536,IF(dati_pdc!$C939=4,dati_bdv!$F$2:$F$65536,IF(dati_pdc!$C939=5,dati_bdv!$G$2:$G$65536,dati_bdv!$H$2:$H$65536))))),$A939,dati_bdv!N$2:N$65536)","v":0}]
[{"$f":"dati_pdc!A940","v":0},{"$f":"SUMIF(IF(dati_pdc!$C940=1,dati_bdv!$C$2:$C$65536,IF(dati_pdc!$C940=2,dati_bdv!$D$2:$D$65536,IF(dati_pdc!$C940=3,dati_bdv!$E$2:$E$65536,IF(dati_pdc!$C940=4,dati_bdv!$F$2:$F$65536,IF(dati_pdc!$C940=5,dati_bdv!$G$2:$G$65536,dati_bdv!$H$2:$H$65536))))),$A940,dati_bdv!J$2:J$65536)","v":0},{"$f":"SUMIF(IF(dati_pdc!$C940=1,dati_bdv!$C$2:$C$65536,IF(dati_pdc!$C940=2,dati_bdv!$D$2:$D$65536,IF(dati_pdc!$C940=3,dati_bdv!$E$2:$E$65536,IF(dati_pdc!$C940=4,dati_bdv!$F$2:$F$65536,IF(dati_pdc!$C940=5,dati_bdv!$G$2:$G$65536,dati_bdv!$H$2:$H$65536))))),$A940,dati_bdv!K$2:K$65536)","v":0},{"$f":"SUMIF(IF(dati_pdc!$C940=1,dati_bdv!$C$2:$C$65536,IF(dati_pdc!$C940=2,dati_bdv!$D$2:$D$65536,IF(dati_pdc!$C940=3,dati_bdv!$E$2:$E$65536,IF(dati_pdc!$C940=4,dati_bdv!$F$2:$F$65536,IF(dati_pdc!$C940=5,dati_bdv!$G$2:$G$65536,dati_bdv!$H$2:$H$65536))))),$A940,dati_bdv!L$2:L$65536)","v":0},{"$f":"SUMIF(IF(dati_pdc!$C940=1,dati_bdv!$C$2:$C$65536,IF(dati_pdc!$C940=2,dati_bdv!$D$2:$D$65536,IF(dati_pdc!$C940=3,dati_bdv!$E$2:$E$65536,IF(dati_pdc!$C940=4,dati_bdv!$F$2:$F$65536,IF(dati_pdc!$C940=5,dati_bdv!$G$2:$G$65536,dati_bdv!$H$2:$H$65536))))),$A940,dati_bdv!M$2:M$65536)","v":0},{"$f":"SUMIF(IF(dati_pdc!$C940=1,dati_bdv!$C$2:$C$65536,IF(dati_pdc!$C940=2,dati_bdv!$D$2:$D$65536,IF(dati_pdc!$C940=3,dati_bdv!$E$2:$E$65536,IF(dati_pdc!$C940=4,dati_bdv!$F$2:$F$65536,IF(dati_pdc!$C940=5,dati_bdv!$G$2:$G$65536,dati_bdv!$H$2:$H$65536))))),$A940,dati_bdv!N$2:N$65536)","v":0}]
[{"$f":"dati_pdc!A941","v":0},{"$f":"SUMIF(IF(dati_pdc!$C941=1,dati_bdv!$C$2:$C$65536,IF(dati_pdc!$C941=2,dati_bdv!$D$2:$D$65536,IF(dati_pdc!$C941=3,dati_bdv!$E$2:$E$65536,IF(dati_pdc!$C941=4,dati_bdv!$F$2:$F$65536,IF(dati_pdc!$C941=5,dati_bdv!$G$2:$G$65536,dati_bdv!$H$2:$H$65536))))),$A941,dati_bdv!J$2:J$65536)","v":0},{"$f":"SUMIF(IF(dati_pdc!$C941=1,dati_bdv!$C$2:$C$65536,IF(dati_pdc!$C941=2,dati_bdv!$D$2:$D$65536,IF(dati_pdc!$C941=3,dati_bdv!$E$2:$E$65536,IF(dati_pdc!$C941=4,dati_bdv!$F$2:$F$65536,IF(dati_pdc!$C941=5,dati_bdv!$G$2:$G$65536,dati_bdv!$H$2:$H$65536))))),$A941,dati_bdv!K$2:K$65536)","v":0},{"$f":"SUMIF(IF(dati_pdc!$C941=1,dati_bdv!$C$2:$C$65536,IF(dati_pdc!$C941=2,dati_bdv!$D$2:$D$65536,IF(dati_pdc!$C941=3,dati_bdv!$E$2:$E$65536,IF(dati_pdc!$C941=4,dati_bdv!$F$2:$F$65536,IF(dati_pdc!$C941=5,dati_bdv!$G$2:$G$65536,dati_bdv!$H$2:$H$65536))))),$A941,dati_bdv!L$2:L$65536)","v":0},{"$f":"SUMIF(IF(dati_pdc!$C941=1,dati_bdv!$C$2:$C$65536,IF(dati_pdc!$C941=2,dati_bdv!$D$2:$D$65536,IF(dati_pdc!$C941=3,dati_bdv!$E$2:$E$65536,IF(dati_pdc!$C941=4,dati_bdv!$F$2:$F$65536,IF(dati_pdc!$C941=5,dati_bdv!$G$2:$G$65536,dati_bdv!$H$2:$H$65536))))),$A941,dati_bdv!M$2:M$65536)","v":0},{"$f":"SUMIF(IF(dati_pdc!$C941=1,dati_bdv!$C$2:$C$65536,IF(dati_pdc!$C941=2,dati_bdv!$D$2:$D$65536,IF(dati_pdc!$C941=3,dati_bdv!$E$2:$E$65536,IF(dati_pdc!$C941=4,dati_bdv!$F$2:$F$65536,IF(dati_pdc!$C941=5,dati_bdv!$G$2:$G$65536,dati_bdv!$H$2:$H$65536))))),$A941,dati_bdv!N$2:N$65536)","v":0}]
[{"$f":"dati_pdc!A942","v":0},{"$f":"SUMIF(IF(dati_pdc!$C942=1,dati_bdv!$C$2:$C$65536,IF(dati_pdc!$C942=2,dati_bdv!$D$2:$D$65536,IF(dati_pdc!$C942=3,dati_bdv!$E$2:$E$65536,IF(dati_pdc!$C942=4,dati_bdv!$F$2:$F$65536,IF(dati_pdc!$C942=5,dati_bdv!$G$2:$G$65536,dati_bdv!$H$2:$H$65536))))),$A942,dati_bdv!J$2:J$65536)","v":0},{"$f":"SUMIF(IF(dati_pdc!$C942=1,dati_bdv!$C$2:$C$65536,IF(dati_pdc!$C942=2,dati_bdv!$D$2:$D$65536,IF(dati_pdc!$C942=3,dati_bdv!$E$2:$E$65536,IF(dati_pdc!$C942=4,dati_bdv!$F$2:$F$65536,IF(dati_pdc!$C942=5,dati_bdv!$G$2:$G$65536,dati_bdv!$H$2:$H$65536))))),$A942,dati_bdv!K$2:K$65536)","v":0},{"$f":"SUMIF(IF(dati_pdc!$C942=1,dati_bdv!$C$2:$C$65536,IF(dati_pdc!$C942=2,dati_bdv!$D$2:$D$65536,IF(dati_pdc!$C942=3,dati_bdv!$E$2:$E$65536,IF(dati_pdc!$C942=4,dati_bdv!$F$2:$F$65536,IF(dati_pdc!$C942=5,dati_bdv!$G$2:$G$65536,dati_bdv!$H$2:$H$65536))))),$A942,dati_bdv!L$2:L$65536)","v":0},{"$f":"SUMIF(IF(dati_pdc!$C942=1,dati_bdv!$C$2:$C$65536,IF(dati_pdc!$C942=2,dati_bdv!$D$2:$D$65536,IF(dati_pdc!$C942=3,dati_bdv!$E$2:$E$65536,IF(dati_pdc!$C942=4,dati_bdv!$F$2:$F$65536,IF(dati_pdc!$C942=5,dati_bdv!$G$2:$G$65536,dati_bdv!$H$2:$H$65536))))),$A942,dati_bdv!M$2:M$65536)","v":0},{"$f":"SUMIF(IF(dati_pdc!$C942=1,dati_bdv!$C$2:$C$65536,IF(dati_pdc!$C942=2,dati_bdv!$D$2:$D$65536,IF(dati_pdc!$C942=3,dati_bdv!$E$2:$E$65536,IF(dati_pdc!$C942=4,dati_bdv!$F$2:$F$65536,IF(dati_pdc!$C942=5,dati_bdv!$G$2:$G$65536,dati_bdv!$H$2:$H$65536))))),$A942,dati_bdv!N$2:N$65536)","v":0}]
[{"$f":"dati_pdc!A943","v":0},{"$f":"SUMIF(IF(dati_pdc!$C943=1,dati_bdv!$C$2:$C$65536,IF(dati_pdc!$C943=2,dati_bdv!$D$2:$D$65536,IF(dati_pdc!$C943=3,dati_bdv!$E$2:$E$65536,IF(dati_pdc!$C943=4,dati_bdv!$F$2:$F$65536,IF(dati_pdc!$C943=5,dati_bdv!$G$2:$G$65536,dati_bdv!$H$2:$H$65536))))),$A943,dati_bdv!J$2:J$65536)","v":0},{"$f":"SUMIF(IF(dati_pdc!$C943=1,dati_bdv!$C$2:$C$65536,IF(dati_pdc!$C943=2,dati_bdv!$D$2:$D$65536,IF(dati_pdc!$C943=3,dati_bdv!$E$2:$E$65536,IF(dati_pdc!$C943=4,dati_bdv!$F$2:$F$65536,IF(dati_pdc!$C943=5,dati_bdv!$G$2:$G$65536,dati_bdv!$H$2:$H$65536))))),$A943,dati_bdv!K$2:K$65536)","v":0},{"$f":"SUMIF(IF(dati_pdc!$C943=1,dati_bdv!$C$2:$C$65536,IF(dati_pdc!$C943=2,dati_bdv!$D$2:$D$65536,IF(dati_pdc!$C943=3,dati_bdv!$E$2:$E$65536,IF(dati_pdc!$C943=4,dati_bdv!$F$2:$F$65536,IF(dati_pdc!$C943=5,dati_bdv!$G$2:$G$65536,dati_bdv!$H$2:$H$65536))))),$A943,dati_bdv!L$2:L$65536)","v":0},{"$f":"SUMIF(IF(dati_pdc!$C943=1,dati_bdv!$C$2:$C$65536,IF(dati_pdc!$C943=2,dati_bdv!$D$2:$D$65536,IF(dati_pdc!$C943=3,dati_bdv!$E$2:$E$65536,IF(dati_pdc!$C943=4,dati_bdv!$F$2:$F$65536,IF(dati_pdc!$C943=5,dati_bdv!$G$2:$G$65536,dati_bdv!$H$2:$H$65536))))),$A943,dati_bdv!M$2:M$65536)","v":0},{"$f":"SUMIF(IF(dati_pdc!$C943=1,dati_bdv!$C$2:$C$65536,IF(dati_pdc!$C943=2,dati_bdv!$D$2:$D$65536,IF(dati_pdc!$C943=3,dati_bdv!$E$2:$E$65536,IF(dati_pdc!$C943=4,dati_bdv!$F$2:$F$65536,IF(dati_pdc!$C943=5,dati_bdv!$G$2:$G$65536,dati_bdv!$H$2:$H$65536))))),$A943,dati_bdv!N$2:N$65536)","v":0}]
[{"$f":"dati_pdc!A944","v":0},{"$f":"SUMIF(IF(dati_pdc!$C944=1,dati_bdv!$C$2:$C$65536,IF(dati_pdc!$C944=2,dati_bdv!$D$2:$D$65536,IF(dati_pdc!$C944=3,dati_bdv!$E$2:$E$65536,IF(dati_pdc!$C944=4,dati_bdv!$F$2:$F$65536,IF(dati_pdc!$C944=5,dati_bdv!$G$2:$G$65536,dati_bdv!$H$2:$H$65536))))),$A944,dati_bdv!J$2:J$65536)","v":0},{"$f":"SUMIF(IF(dati_pdc!$C944=1,dati_bdv!$C$2:$C$65536,IF(dati_pdc!$C944=2,dati_bdv!$D$2:$D$65536,IF(dati_pdc!$C944=3,dati_bdv!$E$2:$E$65536,IF(dati_pdc!$C944=4,dati_bdv!$F$2:$F$65536,IF(dati_pdc!$C944=5,dati_bdv!$G$2:$G$65536,dati_bdv!$H$2:$H$65536))))),$A944,dati_bdv!K$2:K$65536)","v":0},{"$f":"SUMIF(IF(dati_pdc!$C944=1,dati_bdv!$C$2:$C$65536,IF(dati_pdc!$C944=2,dati_bdv!$D$2:$D$65536,IF(dati_pdc!$C944=3,dati_bdv!$E$2:$E$65536,IF(dati_pdc!$C944=4,dati_bdv!$F$2:$F$65536,IF(dati_pdc!$C944=5,dati_bdv!$G$2:$G$65536,dati_bdv!$H$2:$H$65536))))),$A944,dati_bdv!L$2:L$65536)","v":0},{"$f":"SUMIF(IF(dati_pdc!$C944=1,dati_bdv!$C$2:$C$65536,IF(dati_pdc!$C944=2,dati_bdv!$D$2:$D$65536,IF(dati_pdc!$C944=3,dati_bdv!$E$2:$E$65536,IF(dati_pdc!$C944=4,dati_bdv!$F$2:$F$65536,IF(dati_pdc!$C944=5,dati_bdv!$G$2:$G$65536,dati_bdv!$H$2:$H$65536))))),$A944,dati_bdv!M$2:M$65536)","v":0},{"$f":"SUMIF(IF(dati_pdc!$C944=1,dati_bdv!$C$2:$C$65536,IF(dati_pdc!$C944=2,dati_bdv!$D$2:$D$65536,IF(dati_pdc!$C944=3,dati_bdv!$E$2:$E$65536,IF(dati_pdc!$C944=4,dati_bdv!$F$2:$F$65536,IF(dati_pdc!$C944=5,dati_bdv!$G$2:$G$65536,dati_bdv!$H$2:$H$65536))))),$A944,dati_bdv!N$2:N$65536)","v":0}]
[{"$f":"dati_pdc!A945","v":0},{"$f":"SUMIF(IF(dati_pdc!$C945=1,dati_bdv!$C$2:$C$65536,IF(dati_pdc!$C945=2,dati_bdv!$D$2:$D$65536,IF(dati_pdc!$C945=3,dati_bdv!$E$2:$E$65536,IF(dati_pdc!$C945=4,dati_bdv!$F$2:$F$65536,IF(dati_pdc!$C945=5,dati_bdv!$G$2:$G$65536,dati_bdv!$H$2:$H$65536))))),$A945,dati_bdv!J$2:J$65536)","v":0},{"$f":"SUMIF(IF(dati_pdc!$C945=1,dati_bdv!$C$2:$C$65536,IF(dati_pdc!$C945=2,dati_bdv!$D$2:$D$65536,IF(dati_pdc!$C945=3,dati_bdv!$E$2:$E$65536,IF(dati_pdc!$C945=4,dati_bdv!$F$2:$F$65536,IF(dati_pdc!$C945=5,dati_bdv!$G$2:$G$65536,dati_bdv!$H$2:$H$65536))))),$A945,dati_bdv!K$2:K$65536)","v":0},{"$f":"SUMIF(IF(dati_pdc!$C945=1,dati_bdv!$C$2:$C$65536,IF(dati_pdc!$C945=2,dati_bdv!$D$2:$D$65536,IF(dati_pdc!$C945=3,dati_bdv!$E$2:$E$65536,IF(dati_pdc!$C945=4,dati_bdv!$F$2:$F$65536,IF(dati_pdc!$C945=5,dati_bdv!$G$2:$G$65536,dati_bdv!$H$2:$H$65536))))),$A945,dati_bdv!L$2:L$65536)","v":0},{"$f":"SUMIF(IF(dati_pdc!$C945=1,dati_bdv!$C$2:$C$65536,IF(dati_pdc!$C945=2,dati_bdv!$D$2:$D$65536,IF(dati_pdc!$C945=3,dati_bdv!$E$2:$E$65536,IF(dati_pdc!$C945=4,dati_bdv!$F$2:$F$65536,IF(dati_pdc!$C945=5,dati_bdv!$G$2:$G$65536,dati_bdv!$H$2:$H$65536))))),$A945,dati_bdv!M$2:M$65536)","v":0},{"$f":"SUMIF(IF(dati_pdc!$C945=1,dati_bdv!$C$2:$C$65536,IF(dati_pdc!$C945=2,dati_bdv!$D$2:$D$65536,IF(dati_pdc!$C945=3,dati_bdv!$E$2:$E$65536,IF(dati_pdc!$C945=4,dati_bdv!$F$2:$F$65536,IF(dati_pdc!$C945=5,dati_bdv!$G$2:$G$65536,dati_bdv!$H$2:$H$65536))))),$A945,dati_bdv!N$2:N$65536)","v":0}]
[{"$f":"dati_pdc!A946","v":0},{"$f":"SUMIF(IF(dati_pdc!$C946=1,dati_bdv!$C$2:$C$65536,IF(dati_pdc!$C946=2,dati_bdv!$D$2:$D$65536,IF(dati_pdc!$C946=3,dati_bdv!$E$2:$E$65536,IF(dati_pdc!$C946=4,dati_bdv!$F$2:$F$65536,IF(dati_pdc!$C946=5,dati_bdv!$G$2:$G$65536,dati_bdv!$H$2:$H$65536))))),$A946,dati_bdv!J$2:J$65536)","v":0},{"$f":"SUMIF(IF(dati_pdc!$C946=1,dati_bdv!$C$2:$C$65536,IF(dati_pdc!$C946=2,dati_bdv!$D$2:$D$65536,IF(dati_pdc!$C946=3,dati_bdv!$E$2:$E$65536,IF(dati_pdc!$C946=4,dati_bdv!$F$2:$F$65536,IF(dati_pdc!$C946=5,dati_bdv!$G$2:$G$65536,dati_bdv!$H$2:$H$65536))))),$A946,dati_bdv!K$2:K$65536)","v":0},{"$f":"SUMIF(IF(dati_pdc!$C946=1,dati_bdv!$C$2:$C$65536,IF(dati_pdc!$C946=2,dati_bdv!$D$2:$D$65536,IF(dati_pdc!$C946=3,dati_bdv!$E$2:$E$65536,IF(dati_pdc!$C946=4,dati_bdv!$F$2:$F$65536,IF(dati_pdc!$C946=5,dati_bdv!$G$2:$G$65536,dati_bdv!$H$2:$H$65536))))),$A946,dati_bdv!L$2:L$65536)","v":0},{"$f":"SUMIF(IF(dati_pdc!$C946=1,dati_bdv!$C$2:$C$65536,IF(dati_pdc!$C946=2,dati_bdv!$D$2:$D$65536,IF(dati_pdc!$C946=3,dati_bdv!$E$2:$E$65536,IF(dati_pdc!$C946=4,dati_bdv!$F$2:$F$65536,IF(dati_pdc!$C946=5,dati_bdv!$G$2:$G$65536,dati_bdv!$H$2:$H$65536))))),$A946,dati_bdv!M$2:M$65536)","v":0},{"$f":"SUMIF(IF(dati_pdc!$C946=1,dati_bdv!$C$2:$C$65536,IF(dati_pdc!$C946=2,dati_bdv!$D$2:$D$65536,IF(dati_pdc!$C946=3,dati_bdv!$E$2:$E$65536,IF(dati_pdc!$C946=4,dati_bdv!$F$2:$F$65536,IF(dati_pdc!$C946=5,dati_bdv!$G$2:$G$65536,dati_bdv!$H$2:$H$65536))))),$A946,dati_bdv!N$2:N$65536)","v":0}]
[{"$f":"dati_pdc!A947","v":0},{"$f":"SUMIF(IF(dati_pdc!$C947=1,dati_bdv!$C$2:$C$65536,IF(dati_pdc!$C947=2,dati_bdv!$D$2:$D$65536,IF(dati_pdc!$C947=3,dati_bdv!$E$2:$E$65536,IF(dati_pdc!$C947=4,dati_bdv!$F$2:$F$65536,IF(dati_pdc!$C947=5,dati_bdv!$G$2:$G$65536,dati_bdv!$H$2:$H$65536))))),$A947,dati_bdv!J$2:J$65536)","v":0},{"$f":"SUMIF(IF(dati_pdc!$C947=1,dati_bdv!$C$2:$C$65536,IF(dati_pdc!$C947=2,dati_bdv!$D$2:$D$65536,IF(dati_pdc!$C947=3,dati_bdv!$E$2:$E$65536,IF(dati_pdc!$C947=4,dati_bdv!$F$2:$F$65536,IF(dati_pdc!$C947=5,dati_bdv!$G$2:$G$65536,dati_bdv!$H$2:$H$65536))))),$A947,dati_bdv!K$2:K$65536)","v":0},{"$f":"SUMIF(IF(dati_pdc!$C947=1,dati_bdv!$C$2:$C$65536,IF(dati_pdc!$C947=2,dati_bdv!$D$2:$D$65536,IF(dati_pdc!$C947=3,dati_bdv!$E$2:$E$65536,IF(dati_pdc!$C947=4,dati_bdv!$F$2:$F$65536,IF(dati_pdc!$C947=5,dati_bdv!$G$2:$G$65536,dati_bdv!$H$2:$H$65536))))),$A947,dati_bdv!L$2:L$65536)","v":0},{"$f":"SUMIF(IF(dati_pdc!$C947=1,dati_bdv!$C$2:$C$65536,IF(dati_pdc!$C947=2,dati_bdv!$D$2:$D$65536,IF(dati_pdc!$C947=3,dati_bdv!$E$2:$E$65536,IF(dati_pdc!$C947=4,dati_bdv!$F$2:$F$65536,IF(dati_pdc!$C947=5,dati_bdv!$G$2:$G$65536,dati_bdv!$H$2:$H$65536))))),$A947,dati_bdv!M$2:M$65536)","v":0},{"$f":"SUMIF(IF(dati_pdc!$C947=1,dati_bdv!$C$2:$C$65536,IF(dati_pdc!$C947=2,dati_bdv!$D$2:$D$65536,IF(dati_pdc!$C947=3,dati_bdv!$E$2:$E$65536,IF(dati_pdc!$C947=4,dati_bdv!$F$2:$F$65536,IF(dati_pdc!$C947=5,dati_bdv!$G$2:$G$65536,dati_bdv!$H$2:$H$65536))))),$A947,dati_bdv!N$2:N$65536)","v":0}]
[{"$f":"dati_pdc!A948","v":0},{"$f":"SUMIF(IF(dati_pdc!$C948=1,dati_bdv!$C$2:$C$65536,IF(dati_pdc!$C948=2,dati_bdv!$D$2:$D$65536,IF(dati_pdc!$C948=3,dati_bdv!$E$2:$E$65536,IF(dati_pdc!$C948=4,dati_bdv!$F$2:$F$65536,IF(dati_pdc!$C948=5,dati_bdv!$G$2:$G$65536,dati_bdv!$H$2:$H$65536))))),$A948,dati_bdv!J$2:J$65536)","v":0},{"$f":"SUMIF(IF(dati_pdc!$C948=1,dati_bdv!$C$2:$C$65536,IF(dati_pdc!$C948=2,dati_bdv!$D$2:$D$65536,IF(dati_pdc!$C948=3,dati_bdv!$E$2:$E$65536,IF(dati_pdc!$C948=4,dati_bdv!$F$2:$F$65536,IF(dati_pdc!$C948=5,dati_bdv!$G$2:$G$65536,dati_bdv!$H$2:$H$65536))))),$A948,dati_bdv!K$2:K$65536)","v":0},{"$f":"SUMIF(IF(dati_pdc!$C948=1,dati_bdv!$C$2:$C$65536,IF(dati_pdc!$C948=2,dati_bdv!$D$2:$D$65536,IF(dati_pdc!$C948=3,dati_bdv!$E$2:$E$65536,IF(dati_pdc!$C948=4,dati_bdv!$F$2:$F$65536,IF(dati_pdc!$C948=5,dati_bdv!$G$2:$G$65536,dati_bdv!$H$2:$H$65536))))),$A948,dati_bdv!L$2:L$65536)","v":0},{"$f":"SUMIF(IF(dati_pdc!$C948=1,dati_bdv!$C$2:$C$65536,IF(dati_pdc!$C948=2,dati_bdv!$D$2:$D$65536,IF(dati_pdc!$C948=3,dati_bdv!$E$2:$E$65536,IF(dati_pdc!$C948=4,dati_bdv!$F$2:$F$65536,IF(dati_pdc!$C948=5,dati_bdv!$G$2:$G$65536,dati_bdv!$H$2:$H$65536))))),$A948,dati_bdv!M$2:M$65536)","v":0},{"$f":"SUMIF(IF(dati_pdc!$C948=1,dati_bdv!$C$2:$C$65536,IF(dati_pdc!$C948=2,dati_bdv!$D$2:$D$65536,IF(dati_pdc!$C948=3,dati_bdv!$E$2:$E$65536,IF(dati_pdc!$C948=4,dati_bdv!$F$2:$F$65536,IF(dati_pdc!$C948=5,dati_bdv!$G$2:$G$65536,dati_bdv!$H$2:$H$65536))))),$A948,dati_bdv!N$2:N$65536)","v":0}]
[{"$f":"dati_pdc!A949","v":0},{"$f":"SUMIF(IF(dati_pdc!$C949=1,dati_bdv!$C$2:$C$65536,IF(dati_pdc!$C949=2,dati_bdv!$D$2:$D$65536,IF(dati_pdc!$C949=3,dati_bdv!$E$2:$E$65536,IF(dati_pdc!$C949=4,dati_bdv!$F$2:$F$65536,IF(dati_pdc!$C949=5,dati_bdv!$G$2:$G$65536,dati_bdv!$H$2:$H$65536))))),$A949,dati_bdv!J$2:J$65536)","v":0},{"$f":"SUMIF(IF(dati_pdc!$C949=1,dati_bdv!$C$2:$C$65536,IF(dati_pdc!$C949=2,dati_bdv!$D$2:$D$65536,IF(dati_pdc!$C949=3,dati_bdv!$E$2:$E$65536,IF(dati_pdc!$C949=4,dati_bdv!$F$2:$F$65536,IF(dati_pdc!$C949=5,dati_bdv!$G$2:$G$65536,dati_bdv!$H$2:$H$65536))))),$A949,dati_bdv!K$2:K$65536)","v":0},{"$f":"SUMIF(IF(dati_pdc!$C949=1,dati_bdv!$C$2:$C$65536,IF(dati_pdc!$C949=2,dati_bdv!$D$2:$D$65536,IF(dati_pdc!$C949=3,dati_bdv!$E$2:$E$65536,IF(dati_pdc!$C949=4,dati_bdv!$F$2:$F$65536,IF(dati_pdc!$C949=5,dati_bdv!$G$2:$G$65536,dati_bdv!$H$2:$H$65536))))),$A949,dati_bdv!L$2:L$65536)","v":0},{"$f":"SUMIF(IF(dati_pdc!$C949=1,dati_bdv!$C$2:$C$65536,IF(dati_pdc!$C949=2,dati_bdv!$D$2:$D$65536,IF(dati_pdc!$C949=3,dati_bdv!$E$2:$E$65536,IF(dati_pdc!$C949=4,dati_bdv!$F$2:$F$65536,IF(dati_pdc!$C949=5,dati_bdv!$G$2:$G$65536,dati_bdv!$H$2:$H$65536))))),$A949,dati_bdv!M$2:M$65536)","v":0},{"$f":"SUMIF(IF(dati_pdc!$C949=1,dati_bdv!$C$2:$C$65536,IF(dati_pdc!$C949=2,dati_bdv!$D$2:$D$65536,IF(dati_pdc!$C949=3,dati_bdv!$E$2:$E$65536,IF(dati_pdc!$C949=4,dati_bdv!$F$2:$F$65536,IF(dati_pdc!$C949=5,dati_bdv!$G$2:$G$65536,dati_bdv!$H$2:$H$65536))))),$A949,dati_bdv!N$2:N$65536)","v":0}]
[{"$f":"dati_pdc!A950","v":0},{"$f":"SUMIF(IF(dati_pdc!$C950=1,dati_bdv!$C$2:$C$65536,IF(dati_pdc!$C950=2,dati_bdv!$D$2:$D$65536,IF(dati_pdc!$C950=3,dati_bdv!$E$2:$E$65536,IF(dati_pdc!$C950=4,dati_bdv!$F$2:$F$65536,IF(dati_pdc!$C950=5,dati_bdv!$G$2:$G$65536,dati_bdv!$H$2:$H$65536))))),$A950,dati_bdv!J$2:J$65536)","v":0},{"$f":"SUMIF(IF(dati_pdc!$C950=1,dati_bdv!$C$2:$C$65536,IF(dati_pdc!$C950=2,dati_bdv!$D$2:$D$65536,IF(dati_pdc!$C950=3,dati_bdv!$E$2:$E$65536,IF(dati_pdc!$C950=4,dati_bdv!$F$2:$F$65536,IF(dati_pdc!$C950=5,dati_bdv!$G$2:$G$65536,dati_bdv!$H$2:$H$65536))))),$A950,dati_bdv!K$2:K$65536)","v":0},{"$f":"SUMIF(IF(dati_pdc!$C950=1,dati_bdv!$C$2:$C$65536,IF(dati_pdc!$C950=2,dati_bdv!$D$2:$D$65536,IF(dati_pdc!$C950=3,dati_bdv!$E$2:$E$65536,IF(dati_pdc!$C950=4,dati_bdv!$F$2:$F$65536,IF(dati_pdc!$C950=5,dati_bdv!$G$2:$G$65536,dati_bdv!$H$2:$H$65536))))),$A950,dati_bdv!L$2:L$65536)","v":0},{"$f":"SUMIF(IF(dati_pdc!$C950=1,dati_bdv!$C$2:$C$65536,IF(dati_pdc!$C950=2,dati_bdv!$D$2:$D$65536,IF(dati_pdc!$C950=3,dati_bdv!$E$2:$E$65536,IF(dati_pdc!$C950=4,dati_bdv!$F$2:$F$65536,IF(dati_pdc!$C950=5,dati_bdv!$G$2:$G$65536,dati_bdv!$H$2:$H$65536))))),$A950,dati_bdv!M$2:M$65536)","v":0},{"$f":"SUMIF(IF(dati_pdc!$C950=1,dati_bdv!$C$2:$C$65536,IF(dati_pdc!$C950=2,dati_bdv!$D$2:$D$65536,IF(dati_pdc!$C950=3,dati_bdv!$E$2:$E$65536,IF(dati_pdc!$C950=4,dati_bdv!$F$2:$F$65536,IF(dati_pdc!$C950=5,dati_bdv!$G$2:$G$65536,dati_bdv!$H$2:$H$65536))))),$A950,dati_bdv!N$2:N$65536)","v":0}]
[{"$f":"dati_pdc!A951","v":0},{"$f":"SUMIF(IF(dati_pdc!$C951=1,dati_bdv!$C$2:$C$65536,IF(dati_pdc!$C951=2,dati_bdv!$D$2:$D$65536,IF(dati_pdc!$C951=3,dati_bdv!$E$2:$E$65536,IF(dati_pdc!$C951=4,dati_bdv!$F$2:$F$65536,IF(dati_pdc!$C951=5,dati_bdv!$G$2:$G$65536,dati_bdv!$H$2:$H$65536))))),$A951,dati_bdv!J$2:J$65536)","v":0},{"$f":"SUMIF(IF(dati_pdc!$C951=1,dati_bdv!$C$2:$C$65536,IF(dati_pdc!$C951=2,dati_bdv!$D$2:$D$65536,IF(dati_pdc!$C951=3,dati_bdv!$E$2:$E$65536,IF(dati_pdc!$C951=4,dati_bdv!$F$2:$F$65536,IF(dati_pdc!$C951=5,dati_bdv!$G$2:$G$65536,dati_bdv!$H$2:$H$65536))))),$A951,dati_bdv!K$2:K$65536)","v":0},{"$f":"SUMIF(IF(dati_pdc!$C951=1,dati_bdv!$C$2:$C$65536,IF(dati_pdc!$C951=2,dati_bdv!$D$2:$D$65536,IF(dati_pdc!$C951=3,dati_bdv!$E$2:$E$65536,IF(dati_pdc!$C951=4,dati_bdv!$F$2:$F$65536,IF(dati_pdc!$C951=5,dati_bdv!$G$2:$G$65536,dati_bdv!$H$2:$H$65536))))),$A951,dati_bdv!L$2:L$65536)","v":0},{"$f":"SUMIF(IF(dati_pdc!$C951=1,dati_bdv!$C$2:$C$65536,IF(dati_pdc!$C951=2,dati_bdv!$D$2:$D$65536,IF(dati_pdc!$C951=3,dati_bdv!$E$2:$E$65536,IF(dati_pdc!$C951=4,dati_bdv!$F$2:$F$65536,IF(dati_pdc!$C951=5,dati_bdv!$G$2:$G$65536,dati_bdv!$H$2:$H$65536))))),$A951,dati_bdv!M$2:M$65536)","v":0},{"$f":"SUMIF(IF(dati_pdc!$C951=1,dati_bdv!$C$2:$C$65536,IF(dati_pdc!$C951=2,dati_bdv!$D$2:$D$65536,IF(dati_pdc!$C951=3,dati_bdv!$E$2:$E$65536,IF(dati_pdc!$C951=4,dati_bdv!$F$2:$F$65536,IF(dati_pdc!$C951=5,dati_bdv!$G$2:$G$65536,dati_bdv!$H$2:$H$65536))))),$A951,dati_bdv!N$2:N$65536)","v":0}]
[{"$f":"dati_pdc!A952","v":0},{"$f":"SUMIF(IF(dati_pdc!$C952=1,dati_bdv!$C$2:$C$65536,IF(dati_pdc!$C952=2,dati_bdv!$D$2:$D$65536,IF(dati_pdc!$C952=3,dati_bdv!$E$2:$E$65536,IF(dati_pdc!$C952=4,dati_bdv!$F$2:$F$65536,IF(dati_pdc!$C952=5,dati_bdv!$G$2:$G$65536,dati_bdv!$H$2:$H$65536))))),$A952,dati_bdv!J$2:J$65536)","v":0},{"$f":"SUMIF(IF(dati_pdc!$C952=1,dati_bdv!$C$2:$C$65536,IF(dati_pdc!$C952=2,dati_bdv!$D$2:$D$65536,IF(dati_pdc!$C952=3,dati_bdv!$E$2:$E$65536,IF(dati_pdc!$C952=4,dati_bdv!$F$2:$F$65536,IF(dati_pdc!$C952=5,dati_bdv!$G$2:$G$65536,dati_bdv!$H$2:$H$65536))))),$A952,dati_bdv!K$2:K$65536)","v":0},{"$f":"SUMIF(IF(dati_pdc!$C952=1,dati_bdv!$C$2:$C$65536,IF(dati_pdc!$C952=2,dati_bdv!$D$2:$D$65536,IF(dati_pdc!$C952=3,dati_bdv!$E$2:$E$65536,IF(dati_pdc!$C952=4,dati_bdv!$F$2:$F$65536,IF(dati_pdc!$C952=5,dati_bdv!$G$2:$G$65536,dati_bdv!$H$2:$H$65536))))),$A952,dati_bdv!L$2:L$65536)","v":0},{"$f":"SUMIF(IF(dati_pdc!$C952=1,dati_bdv!$C$2:$C$65536,IF(dati_pdc!$C952=2,dati_bdv!$D$2:$D$65536,IF(dati_pdc!$C952=3,dati_bdv!$E$2:$E$65536,IF(dati_pdc!$C952=4,dati_bdv!$F$2:$F$65536,IF(dati_pdc!$C952=5,dati_bdv!$G$2:$G$65536,dati_bdv!$H$2:$H$65536))))),$A952,dati_bdv!M$2:M$65536)","v":0},{"$f":"SUMIF(IF(dati_pdc!$C952=1,dati_bdv!$C$2:$C$65536,IF(dati_pdc!$C952=2,dati_bdv!$D$2:$D$65536,IF(dati_pdc!$C952=3,dati_bdv!$E$2:$E$65536,IF(dati_pdc!$C952=4,dati_bdv!$F$2:$F$65536,IF(dati_pdc!$C952=5,dati_bdv!$G$2:$G$65536,dati_bdv!$H$2:$H$65536))))),$A952,dati_bdv!N$2:N$65536)","v":0}]
[{"$f":"dati_pdc!A953","v":0},{"$f":"SUMIF(IF(dati_pdc!$C953=1,dati_bdv!$C$2:$C$65536,IF(dati_pdc!$C953=2,dati_bdv!$D$2:$D$65536,IF(dati_pdc!$C953=3,dati_bdv!$E$2:$E$65536,IF(dati_pdc!$C953=4,dati_bdv!$F$2:$F$65536,IF(dati_pdc!$C953=5,dati_bdv!$G$2:$G$65536,dati_bdv!$H$2:$H$65536))))),$A953,dati_bdv!J$2:J$65536)","v":0},{"$f":"SUMIF(IF(dati_pdc!$C953=1,dati_bdv!$C$2:$C$65536,IF(dati_pdc!$C953=2,dati_bdv!$D$2:$D$65536,IF(dati_pdc!$C953=3,dati_bdv!$E$2:$E$65536,IF(dati_pdc!$C953=4,dati_bdv!$F$2:$F$65536,IF(dati_pdc!$C953=5,dati_bdv!$G$2:$G$65536,dati_bdv!$H$2:$H$65536))))),$A953,dati_bdv!K$2:K$65536)","v":0},{"$f":"SUMIF(IF(dati_pdc!$C953=1,dati_bdv!$C$2:$C$65536,IF(dati_pdc!$C953=2,dati_bdv!$D$2:$D$65536,IF(dati_pdc!$C953=3,dati_bdv!$E$2:$E$65536,IF(dati_pdc!$C953=4,dati_bdv!$F$2:$F$65536,IF(dati_pdc!$C953=5,dati_bdv!$G$2:$G$65536,dati_bdv!$H$2:$H$65536))))),$A953,dati_bdv!L$2:L$65536)","v":0},{"$f":"SUMIF(IF(dati_pdc!$C953=1,dati_bdv!$C$2:$C$65536,IF(dati_pdc!$C953=2,dati_bdv!$D$2:$D$65536,IF(dati_pdc!$C953=3,dati_bdv!$E$2:$E$65536,IF(dati_pdc!$C953=4,dati_bdv!$F$2:$F$65536,IF(dati_pdc!$C953=5,dati_bdv!$G$2:$G$65536,dati_bdv!$H$2:$H$65536))))),$A953,dati_bdv!M$2:M$65536)","v":0},{"$f":"SUMIF(IF(dati_pdc!$C953=1,dati_bdv!$C$2:$C$65536,IF(dati_pdc!$C953=2,dati_bdv!$D$2:$D$65536,IF(dati_pdc!$C953=3,dati_bdv!$E$2:$E$65536,IF(dati_pdc!$C953=4,dati_bdv!$F$2:$F$65536,IF(dati_pdc!$C953=5,dati_bdv!$G$2:$G$65536,dati_bdv!$H$2:$H$65536))))),$A953,dati_bdv!N$2:N$65536)","v":0}]
[{"$f":"dati_pdc!A954","v":0},{"$f":"SUMIF(IF(dati_pdc!$C954=1,dati_bdv!$C$2:$C$65536,IF(dati_pdc!$C954=2,dati_bdv!$D$2:$D$65536,IF(dati_pdc!$C954=3,dati_bdv!$E$2:$E$65536,IF(dati_pdc!$C954=4,dati_bdv!$F$2:$F$65536,IF(dati_pdc!$C954=5,dati_bdv!$G$2:$G$65536,dati_bdv!$H$2:$H$65536))))),$A954,dati_bdv!J$2:J$65536)","v":0},{"$f":"SUMIF(IF(dati_pdc!$C954=1,dati_bdv!$C$2:$C$65536,IF(dati_pdc!$C954=2,dati_bdv!$D$2:$D$65536,IF(dati_pdc!$C954=3,dati_bdv!$E$2:$E$65536,IF(dati_pdc!$C954=4,dati_bdv!$F$2:$F$65536,IF(dati_pdc!$C954=5,dati_bdv!$G$2:$G$65536,dati_bdv!$H$2:$H$65536))))),$A954,dati_bdv!K$2:K$65536)","v":0},{"$f":"SUMIF(IF(dati_pdc!$C954=1,dati_bdv!$C$2:$C$65536,IF(dati_pdc!$C954=2,dati_bdv!$D$2:$D$65536,IF(dati_pdc!$C954=3,dati_bdv!$E$2:$E$65536,IF(dati_pdc!$C954=4,dati_bdv!$F$2:$F$65536,IF(dati_pdc!$C954=5,dati_bdv!$G$2:$G$65536,dati_bdv!$H$2:$H$65536))))),$A954,dati_bdv!L$2:L$65536)","v":0},{"$f":"SUMIF(IF(dati_pdc!$C954=1,dati_bdv!$C$2:$C$65536,IF(dati_pdc!$C954=2,dati_bdv!$D$2:$D$65536,IF(dati_pdc!$C954=3,dati_bdv!$E$2:$E$65536,IF(dati_pdc!$C954=4,dati_bdv!$F$2:$F$65536,IF(dati_pdc!$C954=5,dati_bdv!$G$2:$G$65536,dati_bdv!$H$2:$H$65536))))),$A954,dati_bdv!M$2:M$65536)","v":0},{"$f":"SUMIF(IF(dati_pdc!$C954=1,dati_bdv!$C$2:$C$65536,IF(dati_pdc!$C954=2,dati_bdv!$D$2:$D$65536,IF(dati_pdc!$C954=3,dati_bdv!$E$2:$E$65536,IF(dati_pdc!$C954=4,dati_bdv!$F$2:$F$65536,IF(dati_pdc!$C954=5,dati_bdv!$G$2:$G$65536,dati_bdv!$H$2:$H$65536))))),$A954,dati_bdv!N$2:N$65536)","v":0}]
[{"$f":"dati_pdc!A955","v":0},{"$f":"SUMIF(IF(dati_pdc!$C955=1,dati_bdv!$C$2:$C$65536,IF(dati_pdc!$C955=2,dati_bdv!$D$2:$D$65536,IF(dati_pdc!$C955=3,dati_bdv!$E$2:$E$65536,IF(dati_pdc!$C955=4,dati_bdv!$F$2:$F$65536,IF(dati_pdc!$C955=5,dati_bdv!$G$2:$G$65536,dati_bdv!$H$2:$H$65536))))),$A955,dati_bdv!J$2:J$65536)","v":0},{"$f":"SUMIF(IF(dati_pdc!$C955=1,dati_bdv!$C$2:$C$65536,IF(dati_pdc!$C955=2,dati_bdv!$D$2:$D$65536,IF(dati_pdc!$C955=3,dati_bdv!$E$2:$E$65536,IF(dati_pdc!$C955=4,dati_bdv!$F$2:$F$65536,IF(dati_pdc!$C955=5,dati_bdv!$G$2:$G$65536,dati_bdv!$H$2:$H$65536))))),$A955,dati_bdv!K$2:K$65536)","v":0},{"$f":"SUMIF(IF(dati_pdc!$C955=1,dati_bdv!$C$2:$C$65536,IF(dati_pdc!$C955=2,dati_bdv!$D$2:$D$65536,IF(dati_pdc!$C955=3,dati_bdv!$E$2:$E$65536,IF(dati_pdc!$C955=4,dati_bdv!$F$2:$F$65536,IF(dati_pdc!$C955=5,dati_bdv!$G$2:$G$65536,dati_bdv!$H$2:$H$65536))))),$A955,dati_bdv!L$2:L$65536)","v":0},{"$f":"SUMIF(IF(dati_pdc!$C955=1,dati_bdv!$C$2:$C$65536,IF(dati_pdc!$C955=2,dati_bdv!$D$2:$D$65536,IF(dati_pdc!$C955=3,dati_bdv!$E$2:$E$65536,IF(dati_pdc!$C955=4,dati_bdv!$F$2:$F$65536,IF(dati_pdc!$C955=5,dati_bdv!$G$2:$G$65536,dati_bdv!$H$2:$H$65536))))),$A955,dati_bdv!M$2:M$65536)","v":0},{"$f":"SUMIF(IF(dati_pdc!$C955=1,dati_bdv!$C$2:$C$65536,IF(dati_pdc!$C955=2,dati_bdv!$D$2:$D$65536,IF(dati_pdc!$C955=3,dati_bdv!$E$2:$E$65536,IF(dati_pdc!$C955=4,dati_bdv!$F$2:$F$65536,IF(dati_pdc!$C955=5,dati_bdv!$G$2:$G$65536,dati_bdv!$H$2:$H$65536))))),$A955,dati_bdv!N$2:N$65536)","v":0}]
[{"$f":"dati_pdc!A956","v":0},{"$f":"SUMIF(IF(dati_pdc!$C956=1,dati_bdv!$C$2:$C$65536,IF(dati_pdc!$C956=2,dati_bdv!$D$2:$D$65536,IF(dati_pdc!$C956=3,dati_bdv!$E$2:$E$65536,IF(dati_pdc!$C956=4,dati_bdv!$F$2:$F$65536,IF(dati_pdc!$C956=5,dati_bdv!$G$2:$G$65536,dati_bdv!$H$2:$H$65536))))),$A956,dati_bdv!J$2:J$65536)","v":0},{"$f":"SUMIF(IF(dati_pdc!$C956=1,dati_bdv!$C$2:$C$65536,IF(dati_pdc!$C956=2,dati_bdv!$D$2:$D$65536,IF(dati_pdc!$C956=3,dati_bdv!$E$2:$E$65536,IF(dati_pdc!$C956=4,dati_bdv!$F$2:$F$65536,IF(dati_pdc!$C956=5,dati_bdv!$G$2:$G$65536,dati_bdv!$H$2:$H$65536))))),$A956,dati_bdv!K$2:K$65536)","v":0},{"$f":"SUMIF(IF(dati_pdc!$C956=1,dati_bdv!$C$2:$C$65536,IF(dati_pdc!$C956=2,dati_bdv!$D$2:$D$65536,IF(dati_pdc!$C956=3,dati_bdv!$E$2:$E$65536,IF(dati_pdc!$C956=4,dati_bdv!$F$2:$F$65536,IF(dati_pdc!$C956=5,dati_bdv!$G$2:$G$65536,dati_bdv!$H$2:$H$65536))))),$A956,dati_bdv!L$2:L$65536)","v":0},{"$f":"SUMIF(IF(dati_pdc!$C956=1,dati_bdv!$C$2:$C$65536,IF(dati_pdc!$C956=2,dati_bdv!$D$2:$D$65536,IF(dati_pdc!$C956=3,dati_bdv!$E$2:$E$65536,IF(dati_pdc!$C956=4,dati_bdv!$F$2:$F$65536,IF(dati_pdc!$C956=5,dati_bdv!$G$2:$G$65536,dati_bdv!$H$2:$H$65536))))),$A956,dati_bdv!M$2:M$65536)","v":0},{"$f":"SUMIF(IF(dati_pdc!$C956=1,dati_bdv!$C$2:$C$65536,IF(dati_pdc!$C956=2,dati_bdv!$D$2:$D$65536,IF(dati_pdc!$C956=3,dati_bdv!$E$2:$E$65536,IF(dati_pdc!$C956=4,dati_bdv!$F$2:$F$65536,IF(dati_pdc!$C956=5,dati_bdv!$G$2:$G$65536,dati_bdv!$H$2:$H$65536))))),$A956,dati_bdv!N$2:N$65536)","v":0}]
[{"$f":"dati_pdc!A957","v":0},{"$f":"SUMIF(IF(dati_pdc!$C957=1,dati_bdv!$C$2:$C$65536,IF(dati_pdc!$C957=2,dati_bdv!$D$2:$D$65536,IF(dati_pdc!$C957=3,dati_bdv!$E$2:$E$65536,IF(dati_pdc!$C957=4,dati_bdv!$F$2:$F$65536,IF(dati_pdc!$C957=5,dati_bdv!$G$2:$G$65536,dati_bdv!$H$2:$H$65536))))),$A957,dati_bdv!J$2:J$65536)","v":0},{"$f":"SUMIF(IF(dati_pdc!$C957=1,dati_bdv!$C$2:$C$65536,IF(dati_pdc!$C957=2,dati_bdv!$D$2:$D$65536,IF(dati_pdc!$C957=3,dati_bdv!$E$2:$E$65536,IF(dati_pdc!$C957=4,dati_bdv!$F$2:$F$65536,IF(dati_pdc!$C957=5,dati_bdv!$G$2:$G$65536,dati_bdv!$H$2:$H$65536))))),$A957,dati_bdv!K$2:K$65536)","v":0},{"$f":"SUMIF(IF(dati_pdc!$C957=1,dati_bdv!$C$2:$C$65536,IF(dati_pdc!$C957=2,dati_bdv!$D$2:$D$65536,IF(dati_pdc!$C957=3,dati_bdv!$E$2:$E$65536,IF(dati_pdc!$C957=4,dati_bdv!$F$2:$F$65536,IF(dati_pdc!$C957=5,dati_bdv!$G$2:$G$65536,dati_bdv!$H$2:$H$65536))))),$A957,dati_bdv!L$2:L$65536)","v":0},{"$f":"SUMIF(IF(dati_pdc!$C957=1,dati_bdv!$C$2:$C$65536,IF(dati_pdc!$C957=2,dati_bdv!$D$2:$D$65536,IF(dati_pdc!$C957=3,dati_bdv!$E$2:$E$65536,IF(dati_pdc!$C957=4,dati_bdv!$F$2:$F$65536,IF(dati_pdc!$C957=5,dati_bdv!$G$2:$G$65536,dati_bdv!$H$2:$H$65536))))),$A957,dati_bdv!M$2:M$65536)","v":0},{"$f":"SUMIF(IF(dati_pdc!$C957=1,dati_bdv!$C$2:$C$65536,IF(dati_pdc!$C957=2,dati_bdv!$D$2:$D$65536,IF(dati_pdc!$C957=3,dati_bdv!$E$2:$E$65536,IF(dati_pdc!$C957=4,dati_bdv!$F$2:$F$65536,IF(dati_pdc!$C957=5,dati_bdv!$G$2:$G$65536,dati_bdv!$H$2:$H$65536))))),$A957,dati_bdv!N$2:N$65536)","v":0}]
[{"$f":"dati_pdc!A958","v":0},{"$f":"SUMIF(IF(dati_pdc!$C958=1,dati_bdv!$C$2:$C$65536,IF(dati_pdc!$C958=2,dati_bdv!$D$2:$D$65536,IF(dati_pdc!$C958=3,dati_bdv!$E$2:$E$65536,IF(dati_pdc!$C958=4,dati_bdv!$F$2:$F$65536,IF(dati_pdc!$C958=5,dati_bdv!$G$2:$G$65536,dati_bdv!$H$2:$H$65536))))),$A958,dati_bdv!J$2:J$65536)","v":0},{"$f":"SUMIF(IF(dati_pdc!$C958=1,dati_bdv!$C$2:$C$65536,IF(dati_pdc!$C958=2,dati_bdv!$D$2:$D$65536,IF(dati_pdc!$C958=3,dati_bdv!$E$2:$E$65536,IF(dati_pdc!$C958=4,dati_bdv!$F$2:$F$65536,IF(dati_pdc!$C958=5,dati_bdv!$G$2:$G$65536,dati_bdv!$H$2:$H$65536))))),$A958,dati_bdv!K$2:K$65536)","v":0},{"$f":"SUMIF(IF(dati_pdc!$C958=1,dati_bdv!$C$2:$C$65536,IF(dati_pdc!$C958=2,dati_bdv!$D$2:$D$65536,IF(dati_pdc!$C958=3,dati_bdv!$E$2:$E$65536,IF(dati_pdc!$C958=4,dati_bdv!$F$2:$F$65536,IF(dati_pdc!$C958=5,dati_bdv!$G$2:$G$65536,dati_bdv!$H$2:$H$65536))))),$A958,dati_bdv!L$2:L$65536)","v":0},{"$f":"SUMIF(IF(dati_pdc!$C958=1,dati_bdv!$C$2:$C$65536,IF(dati_pdc!$C958=2,dati_bdv!$D$2:$D$65536,IF(dati_pdc!$C958=3,dati_bdv!$E$2:$E$65536,IF(dati_pdc!$C958=4,dati_bdv!$F$2:$F$65536,IF(dati_pdc!$C958=5,dati_bdv!$G$2:$G$65536,dati_bdv!$H$2:$H$65536))))),$A958,dati_bdv!M$2:M$65536)","v":0},{"$f":"SUMIF(IF(dati_pdc!$C958=1,dati_bdv!$C$2:$C$65536,IF(dati_pdc!$C958=2,dati_bdv!$D$2:$D$65536,IF(dati_pdc!$C958=3,dati_bdv!$E$2:$E$65536,IF(dati_pdc!$C958=4,dati_bdv!$F$2:$F$65536,IF(dati_pdc!$C958=5,dati_bdv!$G$2:$G$65536,dati_bdv!$H$2:$H$65536))))),$A958,dati_bdv!N$2:N$65536)","v":0}]
[{"$f":"dati_pdc!A959","v":0},{"$f":"SUMIF(IF(dati_pdc!$C959=1,dati_bdv!$C$2:$C$65536,IF(dati_pdc!$C959=2,dati_bdv!$D$2:$D$65536,IF(dati_pdc!$C959=3,dati_bdv!$E$2:$E$65536,IF(dati_pdc!$C959=4,dati_bdv!$F$2:$F$65536,IF(dati_pdc!$C959=5,dati_bdv!$G$2:$G$65536,dati_bdv!$H$2:$H$65536))))),$A959,dati_bdv!J$2:J$65536)","v":0},{"$f":"SUMIF(IF(dati_pdc!$C959=1,dati_bdv!$C$2:$C$65536,IF(dati_pdc!$C959=2,dati_bdv!$D$2:$D$65536,IF(dati_pdc!$C959=3,dati_bdv!$E$2:$E$65536,IF(dati_pdc!$C959=4,dati_bdv!$F$2:$F$65536,IF(dati_pdc!$C959=5,dati_bdv!$G$2:$G$65536,dati_bdv!$H$2:$H$65536))))),$A959,dati_bdv!K$2:K$65536)","v":0},{"$f":"SUMIF(IF(dati_pdc!$C959=1,dati_bdv!$C$2:$C$65536,IF(dati_pdc!$C959=2,dati_bdv!$D$2:$D$65536,IF(dati_pdc!$C959=3,dati_bdv!$E$2:$E$65536,IF(dati_pdc!$C959=4,dati_bdv!$F$2:$F$65536,IF(dati_pdc!$C959=5,dati_bdv!$G$2:$G$65536,dati_bdv!$H$2:$H$65536))))),$A959,dati_bdv!L$2:L$65536)","v":0},{"$f":"SUMIF(IF(dati_pdc!$C959=1,dati_bdv!$C$2:$C$65536,IF(dati_pdc!$C959=2,dati_bdv!$D$2:$D$65536,IF(dati_pdc!$C959=3,dati_bdv!$E$2:$E$65536,IF(dati_pdc!$C959=4,dati_bdv!$F$2:$F$65536,IF(dati_pdc!$C959=5,dati_bdv!$G$2:$G$65536,dati_bdv!$H$2:$H$65536))))),$A959,dati_bdv!M$2:M$65536)","v":0},{"$f":"SUMIF(IF(dati_pdc!$C959=1,dati_bdv!$C$2:$C$65536,IF(dati_pdc!$C959=2,dati_bdv!$D$2:$D$65536,IF(dati_pdc!$C959=3,dati_bdv!$E$2:$E$65536,IF(dati_pdc!$C959=4,dati_bdv!$F$2:$F$65536,IF(dati_pdc!$C959=5,dati_bdv!$G$2:$G$65536,dati_bdv!$H$2:$H$65536))))),$A959,dati_bdv!N$2:N$65536)","v":0}]
[{"$f":"dati_pdc!A960","v":0},{"$f":"SUMIF(IF(dati_pdc!$C960=1,dati_bdv!$C$2:$C$65536,IF(dati_pdc!$C960=2,dati_bdv!$D$2:$D$65536,IF(dati_pdc!$C960=3,dati_bdv!$E$2:$E$65536,IF(dati_pdc!$C960=4,dati_bdv!$F$2:$F$65536,IF(dati_pdc!$C960=5,dati_bdv!$G$2:$G$65536,dati_bdv!$H$2:$H$65536))))),$A960,dati_bdv!J$2:J$65536)","v":0},{"$f":"SUMIF(IF(dati_pdc!$C960=1,dati_bdv!$C$2:$C$65536,IF(dati_pdc!$C960=2,dati_bdv!$D$2:$D$65536,IF(dati_pdc!$C960=3,dati_bdv!$E$2:$E$65536,IF(dati_pdc!$C960=4,dati_bdv!$F$2:$F$65536,IF(dati_pdc!$C960=5,dati_bdv!$G$2:$G$65536,dati_bdv!$H$2:$H$65536))))),$A960,dati_bdv!K$2:K$65536)","v":0},{"$f":"SUMIF(IF(dati_pdc!$C960=1,dati_bdv!$C$2:$C$65536,IF(dati_pdc!$C960=2,dati_bdv!$D$2:$D$65536,IF(dati_pdc!$C960=3,dati_bdv!$E$2:$E$65536,IF(dati_pdc!$C960=4,dati_bdv!$F$2:$F$65536,IF(dati_pdc!$C960=5,dati_bdv!$G$2:$G$65536,dati_bdv!$H$2:$H$65536))))),$A960,dati_bdv!L$2:L$65536)","v":0},{"$f":"SUMIF(IF(dati_pdc!$C960=1,dati_bdv!$C$2:$C$65536,IF(dati_pdc!$C960=2,dati_bdv!$D$2:$D$65536,IF(dati_pdc!$C960=3,dati_bdv!$E$2:$E$65536,IF(dati_pdc!$C960=4,dati_bdv!$F$2:$F$65536,IF(dati_pdc!$C960=5,dati_bdv!$G$2:$G$65536,dati_bdv!$H$2:$H$65536))))),$A960,dati_bdv!M$2:M$65536)","v":0},{"$f":"SUMIF(IF(dati_pdc!$C960=1,dati_bdv!$C$2:$C$65536,IF(dati_pdc!$C960=2,dati_bdv!$D$2:$D$65536,IF(dati_pdc!$C960=3,dati_bdv!$E$2:$E$65536,IF(dati_pdc!$C960=4,dati_bdv!$F$2:$F$65536,IF(dati_pdc!$C960=5,dati_bdv!$G$2:$G$65536,dati_bdv!$H$2:$H$65536))))),$A960,dati_bdv!N$2:N$65536)","v":0}]
[{"$f":"dati_pdc!A961","v":0},{"$f":"SUMIF(IF(dati_pdc!$C961=1,dati_bdv!$C$2:$C$65536,IF(dati_pdc!$C961=2,dati_bdv!$D$2:$D$65536,IF(dati_pdc!$C961=3,dati_bdv!$E$2:$E$65536,IF(dati_pdc!$C961=4,dati_bdv!$F$2:$F$65536,IF(dati_pdc!$C961=5,dati_bdv!$G$2:$G$65536,dati_bdv!$H$2:$H$65536))))),$A961,dati_bdv!J$2:J$65536)","v":0},{"$f":"SUMIF(IF(dati_pdc!$C961=1,dati_bdv!$C$2:$C$65536,IF(dati_pdc!$C961=2,dati_bdv!$D$2:$D$65536,IF(dati_pdc!$C961=3,dati_bdv!$E$2:$E$65536,IF(dati_pdc!$C961=4,dati_bdv!$F$2:$F$65536,IF(dati_pdc!$C961=5,dati_bdv!$G$2:$G$65536,dati_bdv!$H$2:$H$65536))))),$A961,dati_bdv!K$2:K$65536)","v":0},{"$f":"SUMIF(IF(dati_pdc!$C961=1,dati_bdv!$C$2:$C$65536,IF(dati_pdc!$C961=2,dati_bdv!$D$2:$D$65536,IF(dati_pdc!$C961=3,dati_bdv!$E$2:$E$65536,IF(dati_pdc!$C961=4,dati_bdv!$F$2:$F$65536,IF(dati_pdc!$C961=5,dati_bdv!$G$2:$G$65536,dati_bdv!$H$2:$H$65536))))),$A961,dati_bdv!L$2:L$65536)","v":0},{"$f":"SUMIF(IF(dati_pdc!$C961=1,dati_bdv!$C$2:$C$65536,IF(dati_pdc!$C961=2,dati_bdv!$D$2:$D$65536,IF(dati_pdc!$C961=3,dati_bdv!$E$2:$E$65536,IF(dati_pdc!$C961=4,dati_bdv!$F$2:$F$65536,IF(dati_pdc!$C961=5,dati_bdv!$G$2:$G$65536,dati_bdv!$H$2:$H$65536))))),$A961,dati_bdv!M$2:M$65536)","v":0},{"$f":"SUMIF(IF(dati_pdc!$C961=1,dati_bdv!$C$2:$C$65536,IF(dati_pdc!$C961=2,dati_bdv!$D$2:$D$65536,IF(dati_pdc!$C961=3,dati_bdv!$E$2:$E$65536,IF(dati_pdc!$C961=4,dati_bdv!$F$2:$F$65536,IF(dati_pdc!$C961=5,dati_bdv!$G$2:$G$65536,dati_bdv!$H$2:$H$65536))))),$A961,dati_bdv!N$2:N$65536)","v":0}]
[{"$f":"dati_pdc!A962","v":0},{"$f":"SUMIF(IF(dati_pdc!$C962=1,dati_bdv!$C$2:$C$65536,IF(dati_pdc!$C962=2,dati_bdv!$D$2:$D$65536,IF(dati_pdc!$C962=3,dati_bdv!$E$2:$E$65536,IF(dati_pdc!$C962=4,dati_bdv!$F$2:$F$65536,IF(dati_pdc!$C962=5,dati_bdv!$G$2:$G$65536,dati_bdv!$H$2:$H$65536))))),$A962,dati_bdv!J$2:J$65536)","v":0},{"$f":"SUMIF(IF(dati_pdc!$C962=1,dati_bdv!$C$2:$C$65536,IF(dati_pdc!$C962=2,dati_bdv!$D$2:$D$65536,IF(dati_pdc!$C962=3,dati_bdv!$E$2:$E$65536,IF(dati_pdc!$C962=4,dati_bdv!$F$2:$F$65536,IF(dati_pdc!$C962=5,dati_bdv!$G$2:$G$65536,dati_bdv!$H$2:$H$65536))))),$A962,dati_bdv!K$2:K$65536)","v":0},{"$f":"SUMIF(IF(dati_pdc!$C962=1,dati_bdv!$C$2:$C$65536,IF(dati_pdc!$C962=2,dati_bdv!$D$2:$D$65536,IF(dati_pdc!$C962=3,dati_bdv!$E$2:$E$65536,IF(dati_pdc!$C962=4,dati_bdv!$F$2:$F$65536,IF(dati_pdc!$C962=5,dati_bdv!$G$2:$G$65536,dati_bdv!$H$2:$H$65536))))),$A962,dati_bdv!L$2:L$65536)","v":0},{"$f":"SUMIF(IF(dati_pdc!$C962=1,dati_bdv!$C$2:$C$65536,IF(dati_pdc!$C962=2,dati_bdv!$D$2:$D$65536,IF(dati_pdc!$C962=3,dati_bdv!$E$2:$E$65536,IF(dati_pdc!$C962=4,dati_bdv!$F$2:$F$65536,IF(dati_pdc!$C962=5,dati_bdv!$G$2:$G$65536,dati_bdv!$H$2:$H$65536))))),$A962,dati_bdv!M$2:M$65536)","v":0},{"$f":"SUMIF(IF(dati_pdc!$C962=1,dati_bdv!$C$2:$C$65536,IF(dati_pdc!$C962=2,dati_bdv!$D$2:$D$65536,IF(dati_pdc!$C962=3,dati_bdv!$E$2:$E$65536,IF(dati_pdc!$C962=4,dati_bdv!$F$2:$F$65536,IF(dati_pdc!$C962=5,dati_bdv!$G$2:$G$65536,dati_bdv!$H$2:$H$65536))))),$A962,dati_bdv!N$2:N$65536)","v":0}]
[{"$f":"dati_pdc!A963","v":0},{"$f":"SUMIF(IF(dati_pdc!$C963=1,dati_bdv!$C$2:$C$65536,IF(dati_pdc!$C963=2,dati_bdv!$D$2:$D$65536,IF(dati_pdc!$C963=3,dati_bdv!$E$2:$E$65536,IF(dati_pdc!$C963=4,dati_bdv!$F$2:$F$65536,IF(dati_pdc!$C963=5,dati_bdv!$G$2:$G$65536,dati_bdv!$H$2:$H$65536))))),$A963,dati_bdv!J$2:J$65536)","v":0},{"$f":"SUMIF(IF(dati_pdc!$C963=1,dati_bdv!$C$2:$C$65536,IF(dati_pdc!$C963=2,dati_bdv!$D$2:$D$65536,IF(dati_pdc!$C963=3,dati_bdv!$E$2:$E$65536,IF(dati_pdc!$C963=4,dati_bdv!$F$2:$F$65536,IF(dati_pdc!$C963=5,dati_bdv!$G$2:$G$65536,dati_bdv!$H$2:$H$65536))))),$A963,dati_bdv!K$2:K$65536)","v":0},{"$f":"SUMIF(IF(dati_pdc!$C963=1,dati_bdv!$C$2:$C$65536,IF(dati_pdc!$C963=2,dati_bdv!$D$2:$D$65536,IF(dati_pdc!$C963=3,dati_bdv!$E$2:$E$65536,IF(dati_pdc!$C963=4,dati_bdv!$F$2:$F$65536,IF(dati_pdc!$C963=5,dati_bdv!$G$2:$G$65536,dati_bdv!$H$2:$H$65536))))),$A963,dati_bdv!L$2:L$65536)","v":0},{"$f":"SUMIF(IF(dati_pdc!$C963=1,dati_bdv!$C$2:$C$65536,IF(dati_pdc!$C963=2,dati_bdv!$D$2:$D$65536,IF(dati_pdc!$C963=3,dati_bdv!$E$2:$E$65536,IF(dati_pdc!$C963=4,dati_bdv!$F$2:$F$65536,IF(dati_pdc!$C963=5,dati_bdv!$G$2:$G$65536,dati_bdv!$H$2:$H$65536))))),$A963,dati_bdv!M$2:M$65536)","v":0},{"$f":"SUMIF(IF(dati_pdc!$C963=1,dati_bdv!$C$2:$C$65536,IF(dati_pdc!$C963=2,dati_bdv!$D$2:$D$65536,IF(dati_pdc!$C963=3,dati_bdv!$E$2:$E$65536,IF(dati_pdc!$C963=4,dati_bdv!$F$2:$F$65536,IF(dati_pdc!$C963=5,dati_bdv!$G$2:$G$65536,dati_bdv!$H$2:$H$65536))))),$A963,dati_bdv!N$2:N$65536)","v":0}]
[{"$f":"dati_pdc!A964","v":0},{"$f":"SUMIF(IF(dati_pdc!$C964=1,dati_bdv!$C$2:$C$65536,IF(dati_pdc!$C964=2,dati_bdv!$D$2:$D$65536,IF(dati_pdc!$C964=3,dati_bdv!$E$2:$E$65536,IF(dati_pdc!$C964=4,dati_bdv!$F$2:$F$65536,IF(dati_pdc!$C964=5,dati_bdv!$G$2:$G$65536,dati_bdv!$H$2:$H$65536))))),$A964,dati_bdv!J$2:J$65536)","v":0},{"$f":"SUMIF(IF(dati_pdc!$C964=1,dati_bdv!$C$2:$C$65536,IF(dati_pdc!$C964=2,dati_bdv!$D$2:$D$65536,IF(dati_pdc!$C964=3,dati_bdv!$E$2:$E$65536,IF(dati_pdc!$C964=4,dati_bdv!$F$2:$F$65536,IF(dati_pdc!$C964=5,dati_bdv!$G$2:$G$65536,dati_bdv!$H$2:$H$65536))))),$A964,dati_bdv!K$2:K$65536)","v":0},{"$f":"SUMIF(IF(dati_pdc!$C964=1,dati_bdv!$C$2:$C$65536,IF(dati_pdc!$C964=2,dati_bdv!$D$2:$D$65536,IF(dati_pdc!$C964=3,dati_bdv!$E$2:$E$65536,IF(dati_pdc!$C964=4,dati_bdv!$F$2:$F$65536,IF(dati_pdc!$C964=5,dati_bdv!$G$2:$G$65536,dati_bdv!$H$2:$H$65536))))),$A964,dati_bdv!L$2:L$65536)","v":0},{"$f":"SUMIF(IF(dati_pdc!$C964=1,dati_bdv!$C$2:$C$65536,IF(dati_pdc!$C964=2,dati_bdv!$D$2:$D$65536,IF(dati_pdc!$C964=3,dati_bdv!$E$2:$E$65536,IF(dati_pdc!$C964=4,dati_bdv!$F$2:$F$65536,IF(dati_pdc!$C964=5,dati_bdv!$G$2:$G$65536,dati_bdv!$H$2:$H$65536))))),$A964,dati_bdv!M$2:M$65536)","v":0},{"$f":"SUMIF(IF(dati_pdc!$C964=1,dati_bdv!$C$2:$C$65536,IF(dati_pdc!$C964=2,dati_bdv!$D$2:$D$65536,IF(dati_pdc!$C964=3,dati_bdv!$E$2:$E$65536,IF(dati_pdc!$C964=4,dati_bdv!$F$2:$F$65536,IF(dati_pdc!$C964=5,dati_bdv!$G$2:$G$65536,dati_bdv!$H$2:$H$65536))))),$A964,dati_bdv!N$2:N$65536)","v":0}]
[{"$f":"dati_pdc!A965","v":0},{"$f":"SUMIF(IF(dati_pdc!$C965=1,dati_bdv!$C$2:$C$65536,IF(dati_pdc!$C965=2,dati_bdv!$D$2:$D$65536,IF(dati_pdc!$C965=3,dati_bdv!$E$2:$E$65536,IF(dati_pdc!$C965=4,dati_bdv!$F$2:$F$65536,IF(dati_pdc!$C965=5,dati_bdv!$G$2:$G$65536,dati_bdv!$H$2:$H$65536))))),$A965,dati_bdv!J$2:J$65536)","v":0},{"$f":"SUMIF(IF(dati_pdc!$C965=1,dati_bdv!$C$2:$C$65536,IF(dati_pdc!$C965=2,dati_bdv!$D$2:$D$65536,IF(dati_pdc!$C965=3,dati_bdv!$E$2:$E$65536,IF(dati_pdc!$C965=4,dati_bdv!$F$2:$F$65536,IF(dati_pdc!$C965=5,dati_bdv!$G$2:$G$65536,dati_bdv!$H$2:$H$65536))))),$A965,dati_bdv!K$2:K$65536)","v":0},{"$f":"SUMIF(IF(dati_pdc!$C965=1,dati_bdv!$C$2:$C$65536,IF(dati_pdc!$C965=2,dati_bdv!$D$2:$D$65536,IF(dati_pdc!$C965=3,dati_bdv!$E$2:$E$65536,IF(dati_pdc!$C965=4,dati_bdv!$F$2:$F$65536,IF(dati_pdc!$C965=5,dati_bdv!$G$2:$G$65536,dati_bdv!$H$2:$H$65536))))),$A965,dati_bdv!L$2:L$65536)","v":0},{"$f":"SUMIF(IF(dati_pdc!$C965=1,dati_bdv!$C$2:$C$65536,IF(dati_pdc!$C965=2,dati_bdv!$D$2:$D$65536,IF(dati_pdc!$C965=3,dati_bdv!$E$2:$E$65536,IF(dati_pdc!$C965=4,dati_bdv!$F$2:$F$65536,IF(dati_pdc!$C965=5,dati_bdv!$G$2:$G$65536,dati_bdv!$H$2:$H$65536))))),$A965,dati_bdv!M$2:M$65536)","v":0},{"$f":"SUMIF(IF(dati_pdc!$C965=1,dati_bdv!$C$2:$C$65536,IF(dati_pdc!$C965=2,dati_bdv!$D$2:$D$65536,IF(dati_pdc!$C965=3,dati_bdv!$E$2:$E$65536,IF(dati_pdc!$C965=4,dati_bdv!$F$2:$F$65536,IF(dati_pdc!$C965=5,dati_bdv!$G$2:$G$65536,dati_bdv!$H$2:$H$65536))))),$A965,dati_bdv!N$2:N$65536)","v":0}]
[{"$f":"dati_pdc!A966","v":0},{"$f":"SUMIF(IF(dati_pdc!$C966=1,dati_bdv!$C$2:$C$65536,IF(dati_pdc!$C966=2,dati_bdv!$D$2:$D$65536,IF(dati_pdc!$C966=3,dati_bdv!$E$2:$E$65536,IF(dati_pdc!$C966=4,dati_bdv!$F$2:$F$65536,IF(dati_pdc!$C966=5,dati_bdv!$G$2:$G$65536,dati_bdv!$H$2:$H$65536))))),$A966,dati_bdv!J$2:J$65536)","v":0},{"$f":"SUMIF(IF(dati_pdc!$C966=1,dati_bdv!$C$2:$C$65536,IF(dati_pdc!$C966=2,dati_bdv!$D$2:$D$65536,IF(dati_pdc!$C966=3,dati_bdv!$E$2:$E$65536,IF(dati_pdc!$C966=4,dati_bdv!$F$2:$F$65536,IF(dati_pdc!$C966=5,dati_bdv!$G$2:$G$65536,dati_bdv!$H$2:$H$65536))))),$A966,dati_bdv!K$2:K$65536)","v":0},{"$f":"SUMIF(IF(dati_pdc!$C966=1,dati_bdv!$C$2:$C$65536,IF(dati_pdc!$C966=2,dati_bdv!$D$2:$D$65536,IF(dati_pdc!$C966=3,dati_bdv!$E$2:$E$65536,IF(dati_pdc!$C966=4,dati_bdv!$F$2:$F$65536,IF(dati_pdc!$C966=5,dati_bdv!$G$2:$G$65536,dati_bdv!$H$2:$H$65536))))),$A966,dati_bdv!L$2:L$65536)","v":0},{"$f":"SUMIF(IF(dati_pdc!$C966=1,dati_bdv!$C$2:$C$65536,IF(dati_pdc!$C966=2,dati_bdv!$D$2:$D$65536,IF(dati_pdc!$C966=3,dati_bdv!$E$2:$E$65536,IF(dati_pdc!$C966=4,dati_bdv!$F$2:$F$65536,IF(dati_pdc!$C966=5,dati_bdv!$G$2:$G$65536,dati_bdv!$H$2:$H$65536))))),$A966,dati_bdv!M$2:M$65536)","v":0},{"$f":"SUMIF(IF(dati_pdc!$C966=1,dati_bdv!$C$2:$C$65536,IF(dati_pdc!$C966=2,dati_bdv!$D$2:$D$65536,IF(dati_pdc!$C966=3,dati_bdv!$E$2:$E$65536,IF(dati_pdc!$C966=4,dati_bdv!$F$2:$F$65536,IF(dati_pdc!$C966=5,dati_bdv!$G$2:$G$65536,dati_bdv!$H$2:$H$65536))))),$A966,dati_bdv!N$2:N$65536)","v":0}]
[{"$f":"dati_pdc!A967","v":0},{"$f":"SUMIF(IF(dati_pdc!$C967=1,dati_bdv!$C$2:$C$65536,IF(dati_pdc!$C967=2,dati_bdv!$D$2:$D$65536,IF(dati_pdc!$C967=3,dati_bdv!$E$2:$E$65536,IF(dati_pdc!$C967=4,dati_bdv!$F$2:$F$65536,IF(dati_pdc!$C967=5,dati_bdv!$G$2:$G$65536,dati_bdv!$H$2:$H$65536))))),$A967,dati_bdv!J$2:J$65536)","v":0},{"$f":"SUMIF(IF(dati_pdc!$C967=1,dati_bdv!$C$2:$C$65536,IF(dati_pdc!$C967=2,dati_bdv!$D$2:$D$65536,IF(dati_pdc!$C967=3,dati_bdv!$E$2:$E$65536,IF(dati_pdc!$C967=4,dati_bdv!$F$2:$F$65536,IF(dati_pdc!$C967=5,dati_bdv!$G$2:$G$65536,dati_bdv!$H$2:$H$65536))))),$A967,dati_bdv!K$2:K$65536)","v":0},{"$f":"SUMIF(IF(dati_pdc!$C967=1,dati_bdv!$C$2:$C$65536,IF(dati_pdc!$C967=2,dati_bdv!$D$2:$D$65536,IF(dati_pdc!$C967=3,dati_bdv!$E$2:$E$65536,IF(dati_pdc!$C967=4,dati_bdv!$F$2:$F$65536,IF(dati_pdc!$C967=5,dati_bdv!$G$2:$G$65536,dati_bdv!$H$2:$H$65536))))),$A967,dati_bdv!L$2:L$65536)","v":0},{"$f":"SUMIF(IF(dati_pdc!$C967=1,dati_bdv!$C$2:$C$65536,IF(dati_pdc!$C967=2,dati_bdv!$D$2:$D$65536,IF(dati_pdc!$C967=3,dati_bdv!$E$2:$E$65536,IF(dati_pdc!$C967=4,dati_bdv!$F$2:$F$65536,IF(dati_pdc!$C967=5,dati_bdv!$G$2:$G$65536,dati_bdv!$H$2:$H$65536))))),$A967,dati_bdv!M$2:M$65536)","v":0},{"$f":"SUMIF(IF(dati_pdc!$C967=1,dati_bdv!$C$2:$C$65536,IF(dati_pdc!$C967=2,dati_bdv!$D$2:$D$65536,IF(dati_pdc!$C967=3,dati_bdv!$E$2:$E$65536,IF(dati_pdc!$C967=4,dati_bdv!$F$2:$F$65536,IF(dati_pdc!$C967=5,dati_bdv!$G$2:$G$65536,dati_bdv!$H$2:$H$65536))))),$A967,dati_bdv!N$2:N$65536)","v":0}]
[{"$f":"dati_pdc!A968","v":0},{"$f":"SUMIF(IF(dati_pdc!$C968=1,dati_bdv!$C$2:$C$65536,IF(dati_pdc!$C968=2,dati_bdv!$D$2:$D$65536,IF(dati_pdc!$C968=3,dati_bdv!$E$2:$E$65536,IF(dati_pdc!$C968=4,dati_bdv!$F$2:$F$65536,IF(dati_pdc!$C968=5,dati_bdv!$G$2:$G$65536,dati_bdv!$H$2:$H$65536))))),$A968,dati_bdv!J$2:J$65536)","v":0},{"$f":"SUMIF(IF(dati_pdc!$C968=1,dati_bdv!$C$2:$C$65536,IF(dati_pdc!$C968=2,dati_bdv!$D$2:$D$65536,IF(dati_pdc!$C968=3,dati_bdv!$E$2:$E$65536,IF(dati_pdc!$C968=4,dati_bdv!$F$2:$F$65536,IF(dati_pdc!$C968=5,dati_bdv!$G$2:$G$65536,dati_bdv!$H$2:$H$65536))))),$A968,dati_bdv!K$2:K$65536)","v":0},{"$f":"SUMIF(IF(dati_pdc!$C968=1,dati_bdv!$C$2:$C$65536,IF(dati_pdc!$C968=2,dati_bdv!$D$2:$D$65536,IF(dati_pdc!$C968=3,dati_bdv!$E$2:$E$65536,IF(dati_pdc!$C968=4,dati_bdv!$F$2:$F$65536,IF(dati_pdc!$C968=5,dati_bdv!$G$2:$G$65536,dati_bdv!$H$2:$H$65536))))),$A968,dati_bdv!L$2:L$65536)","v":0},{"$f":"SUMIF(IF(dati_pdc!$C968=1,dati_bdv!$C$2:$C$65536,IF(dati_pdc!$C968=2,dati_bdv!$D$2:$D$65536,IF(dati_pdc!$C968=3,dati_bdv!$E$2:$E$65536,IF(dati_pdc!$C968=4,dati_bdv!$F$2:$F$65536,IF(dati_pdc!$C968=5,dati_bdv!$G$2:$G$65536,dati_bdv!$H$2:$H$65536))))),$A968,dati_bdv!M$2:M$65536)","v":0},{"$f":"SUMIF(IF(dati_pdc!$C968=1,dati_bdv!$C$2:$C$65536,IF(dati_pdc!$C968=2,dati_bdv!$D$2:$D$65536,IF(dati_pdc!$C968=3,dati_bdv!$E$2:$E$65536,IF(dati_pdc!$C968=4,dati_bdv!$F$2:$F$65536,IF(dati_pdc!$C968=5,dati_bdv!$G$2:$G$65536,dati_bdv!$H$2:$H$65536))))),$A968,dati_bdv!N$2:N$65536)","v":0}]
[{"$f":"dati_pdc!A969","v":0},{"$f":"SUMIF(IF(dati_pdc!$C969=1,dati_bdv!$C$2:$C$65536,IF(dati_pdc!$C969=2,dati_bdv!$D$2:$D$65536,IF(dati_pdc!$C969=3,dati_bdv!$E$2:$E$65536,IF(dati_pdc!$C969=4,dati_bdv!$F$2:$F$65536,IF(dati_pdc!$C969=5,dati_bdv!$G$2:$G$65536,dati_bdv!$H$2:$H$65536))))),$A969,dati_bdv!J$2:J$65536)","v":0},{"$f":"SUMIF(IF(dati_pdc!$C969=1,dati_bdv!$C$2:$C$65536,IF(dati_pdc!$C969=2,dati_bdv!$D$2:$D$65536,IF(dati_pdc!$C969=3,dati_bdv!$E$2:$E$65536,IF(dati_pdc!$C969=4,dati_bdv!$F$2:$F$65536,IF(dati_pdc!$C969=5,dati_bdv!$G$2:$G$65536,dati_bdv!$H$2:$H$65536))))),$A969,dati_bdv!K$2:K$65536)","v":0},{"$f":"SUMIF(IF(dati_pdc!$C969=1,dati_bdv!$C$2:$C$65536,IF(dati_pdc!$C969=2,dati_bdv!$D$2:$D$65536,IF(dati_pdc!$C969=3,dati_bdv!$E$2:$E$65536,IF(dati_pdc!$C969=4,dati_bdv!$F$2:$F$65536,IF(dati_pdc!$C969=5,dati_bdv!$G$2:$G$65536,dati_bdv!$H$2:$H$65536))))),$A969,dati_bdv!L$2:L$65536)","v":0},{"$f":"SUMIF(IF(dati_pdc!$C969=1,dati_bdv!$C$2:$C$65536,IF(dati_pdc!$C969=2,dati_bdv!$D$2:$D$65536,IF(dati_pdc!$C969=3,dati_bdv!$E$2:$E$65536,IF(dati_pdc!$C969=4,dati_bdv!$F$2:$F$65536,IF(dati_pdc!$C969=5,dati_bdv!$G$2:$G$65536,dati_bdv!$H$2:$H$65536))))),$A969,dati_bdv!M$2:M$65536)","v":0},{"$f":"SUMIF(IF(dati_pdc!$C969=1,dati_bdv!$C$2:$C$65536,IF(dati_pdc!$C969=2,dati_bdv!$D$2:$D$65536,IF(dati_pdc!$C969=3,dati_bdv!$E$2:$E$65536,IF(dati_pdc!$C969=4,dati_bdv!$F$2:$F$65536,IF(dati_pdc!$C969=5,dati_bdv!$G$2:$G$65536,dati_bdv!$H$2:$H$65536))))),$A969,dati_bdv!N$2:N$65536)","v":0}]
[{"$f":"dati_pdc!A970","v":0},{"$f":"SUMIF(IF(dati_pdc!$C970=1,dati_bdv!$C$2:$C$65536,IF(dati_pdc!$C970=2,dati_bdv!$D$2:$D$65536,IF(dati_pdc!$C970=3,dati_bdv!$E$2:$E$65536,IF(dati_pdc!$C970=4,dati_bdv!$F$2:$F$65536,IF(dati_pdc!$C970=5,dati_bdv!$G$2:$G$65536,dati_bdv!$H$2:$H$65536))))),$A970,dati_bdv!J$2:J$65536)","v":0},{"$f":"SUMIF(IF(dati_pdc!$C970=1,dati_bdv!$C$2:$C$65536,IF(dati_pdc!$C970=2,dati_bdv!$D$2:$D$65536,IF(dati_pdc!$C970=3,dati_bdv!$E$2:$E$65536,IF(dati_pdc!$C970=4,dati_bdv!$F$2:$F$65536,IF(dati_pdc!$C970=5,dati_bdv!$G$2:$G$65536,dati_bdv!$H$2:$H$65536))))),$A970,dati_bdv!K$2:K$65536)","v":0},{"$f":"SUMIF(IF(dati_pdc!$C970=1,dati_bdv!$C$2:$C$65536,IF(dati_pdc!$C970=2,dati_bdv!$D$2:$D$65536,IF(dati_pdc!$C970=3,dati_bdv!$E$2:$E$65536,IF(dati_pdc!$C970=4,dati_bdv!$F$2:$F$65536,IF(dati_pdc!$C970=5,dati_bdv!$G$2:$G$65536,dati_bdv!$H$2:$H$65536))))),$A970,dati_bdv!L$2:L$65536)","v":0},{"$f":"SUMIF(IF(dati_pdc!$C970=1,dati_bdv!$C$2:$C$65536,IF(dati_pdc!$C970=2,dati_bdv!$D$2:$D$65536,IF(dati_pdc!$C970=3,dati_bdv!$E$2:$E$65536,IF(dati_pdc!$C970=4,dati_bdv!$F$2:$F$65536,IF(dati_pdc!$C970=5,dati_bdv!$G$2:$G$65536,dati_bdv!$H$2:$H$65536))))),$A970,dati_bdv!M$2:M$65536)","v":0},{"$f":"SUMIF(IF(dati_pdc!$C970=1,dati_bdv!$C$2:$C$65536,IF(dati_pdc!$C970=2,dati_bdv!$D$2:$D$65536,IF(dati_pdc!$C970=3,dati_bdv!$E$2:$E$65536,IF(dati_pdc!$C970=4,dati_bdv!$F$2:$F$65536,IF(dati_pdc!$C970=5,dati_bdv!$G$2:$G$65536,dati_bdv!$H$2:$H$65536))))),$A970,dati_bdv!N$2:N$65536)","v":0}]
[{"$f":"dati_pdc!A971","v":0},{"$f":"SUMIF(IF(dati_pdc!$C971=1,dati_bdv!$C$2:$C$65536,IF(dati_pdc!$C971=2,dati_bdv!$D$2:$D$65536,IF(dati_pdc!$C971=3,dati_bdv!$E$2:$E$65536,IF(dati_pdc!$C971=4,dati_bdv!$F$2:$F$65536,IF(dati_pdc!$C971=5,dati_bdv!$G$2:$G$65536,dati_bdv!$H$2:$H$65536))))),$A971,dati_bdv!J$2:J$65536)","v":0},{"$f":"SUMIF(IF(dati_pdc!$C971=1,dati_bdv!$C$2:$C$65536,IF(dati_pdc!$C971=2,dati_bdv!$D$2:$D$65536,IF(dati_pdc!$C971=3,dati_bdv!$E$2:$E$65536,IF(dati_pdc!$C971=4,dati_bdv!$F$2:$F$65536,IF(dati_pdc!$C971=5,dati_bdv!$G$2:$G$65536,dati_bdv!$H$2:$H$65536))))),$A971,dati_bdv!K$2:K$65536)","v":0},{"$f":"SUMIF(IF(dati_pdc!$C971=1,dati_bdv!$C$2:$C$65536,IF(dati_pdc!$C971=2,dati_bdv!$D$2:$D$65536,IF(dati_pdc!$C971=3,dati_bdv!$E$2:$E$65536,IF(dati_pdc!$C971=4,dati_bdv!$F$2:$F$65536,IF(dati_pdc!$C971=5,dati_bdv!$G$2:$G$65536,dati_bdv!$H$2:$H$65536))))),$A971,dati_bdv!L$2:L$65536)","v":0},{"$f":"SUMIF(IF(dati_pdc!$C971=1,dati_bdv!$C$2:$C$65536,IF(dati_pdc!$C971=2,dati_bdv!$D$2:$D$65536,IF(dati_pdc!$C971=3,dati_bdv!$E$2:$E$65536,IF(dati_pdc!$C971=4,dati_bdv!$F$2:$F$65536,IF(dati_pdc!$C971=5,dati_bdv!$G$2:$G$65536,dati_bdv!$H$2:$H$65536))))),$A971,dati_bdv!M$2:M$65536)","v":0},{"$f":"SUMIF(IF(dati_pdc!$C971=1,dati_bdv!$C$2:$C$65536,IF(dati_pdc!$C971=2,dati_bdv!$D$2:$D$65536,IF(dati_pdc!$C971=3,dati_bdv!$E$2:$E$65536,IF(dati_pdc!$C971=4,dati_bdv!$F$2:$F$65536,IF(dati_pdc!$C971=5,dati_bdv!$G$2:$G$65536,dati_bdv!$H$2:$H$65536))))),$A971,dati_bdv!N$2:N$65536)","v":0}]
[{"$f":"dati_pdc!A972","v":0},{"$f":"SUMIF(IF(dati_pdc!$C972=1,dati_bdv!$C$2:$C$65536,IF(dati_pdc!$C972=2,dati_bdv!$D$2:$D$65536,IF(dati_pdc!$C972=3,dati_bdv!$E$2:$E$65536,IF(dati_pdc!$C972=4,dati_bdv!$F$2:$F$65536,IF(dati_pdc!$C972=5,dati_bdv!$G$2:$G$65536,dati_bdv!$H$2:$H$65536))))),$A972,dati_bdv!J$2:J$65536)","v":0},{"$f":"SUMIF(IF(dati_pdc!$C972=1,dati_bdv!$C$2:$C$65536,IF(dati_pdc!$C972=2,dati_bdv!$D$2:$D$65536,IF(dati_pdc!$C972=3,dati_bdv!$E$2:$E$65536,IF(dati_pdc!$C972=4,dati_bdv!$F$2:$F$65536,IF(dati_pdc!$C972=5,dati_bdv!$G$2:$G$65536,dati_bdv!$H$2:$H$65536))))),$A972,dati_bdv!K$2:K$65536)","v":0},{"$f":"SUMIF(IF(dati_pdc!$C972=1,dati_bdv!$C$2:$C$65536,IF(dati_pdc!$C972=2,dati_bdv!$D$2:$D$65536,IF(dati_pdc!$C972=3,dati_bdv!$E$2:$E$65536,IF(dati_pdc!$C972=4,dati_bdv!$F$2:$F$65536,IF(dati_pdc!$C972=5,dati_bdv!$G$2:$G$65536,dati_bdv!$H$2:$H$65536))))),$A972,dati_bdv!L$2:L$65536)","v":0},{"$f":"SUMIF(IF(dati_pdc!$C972=1,dati_bdv!$C$2:$C$65536,IF(dati_pdc!$C972=2,dati_bdv!$D$2:$D$65536,IF(dati_pdc!$C972=3,dati_bdv!$E$2:$E$65536,IF(dati_pdc!$C972=4,dati_bdv!$F$2:$F$65536,IF(dati_pdc!$C972=5,dati_bdv!$G$2:$G$65536,dati_bdv!$H$2:$H$65536))))),$A972,dati_bdv!M$2:M$65536)","v":0},{"$f":"SUMIF(IF(dati_pdc!$C972=1,dati_bdv!$C$2:$C$65536,IF(dati_pdc!$C972=2,dati_bdv!$D$2:$D$65536,IF(dati_pdc!$C972=3,dati_bdv!$E$2:$E$65536,IF(dati_pdc!$C972=4,dati_bdv!$F$2:$F$65536,IF(dati_pdc!$C972=5,dati_bdv!$G$2:$G$65536,dati_bdv!$H$2:$H$65536))))),$A972,dati_bdv!N$2:N$65536)","v":0}]
[{"$f":"dati_pdc!A973","v":0},{"$f":"SUMIF(IF(dati_pdc!$C973=1,dati_bdv!$C$2:$C$65536,IF(dati_pdc!$C973=2,dati_bdv!$D$2:$D$65536,IF(dati_pdc!$C973=3,dati_bdv!$E$2:$E$65536,IF(dati_pdc!$C973=4,dati_bdv!$F$2:$F$65536,IF(dati_pdc!$C973=5,dati_bdv!$G$2:$G$65536,dati_bdv!$H$2:$H$65536))))),$A973,dati_bdv!J$2:J$65536)","v":0},{"$f":"SUMIF(IF(dati_pdc!$C973=1,dati_bdv!$C$2:$C$65536,IF(dati_pdc!$C973=2,dati_bdv!$D$2:$D$65536,IF(dati_pdc!$C973=3,dati_bdv!$E$2:$E$65536,IF(dati_pdc!$C973=4,dati_bdv!$F$2:$F$65536,IF(dati_pdc!$C973=5,dati_bdv!$G$2:$G$65536,dati_bdv!$H$2:$H$65536))))),$A973,dati_bdv!K$2:K$65536)","v":0},{"$f":"SUMIF(IF(dati_pdc!$C973=1,dati_bdv!$C$2:$C$65536,IF(dati_pdc!$C973=2,dati_bdv!$D$2:$D$65536,IF(dati_pdc!$C973=3,dati_bdv!$E$2:$E$65536,IF(dati_pdc!$C973=4,dati_bdv!$F$2:$F$65536,IF(dati_pdc!$C973=5,dati_bdv!$G$2:$G$65536,dati_bdv!$H$2:$H$65536))))),$A973,dati_bdv!L$2:L$65536)","v":0},{"$f":"SUMIF(IF(dati_pdc!$C973=1,dati_bdv!$C$2:$C$65536,IF(dati_pdc!$C973=2,dati_bdv!$D$2:$D$65536,IF(dati_pdc!$C973=3,dati_bdv!$E$2:$E$65536,IF(dati_pdc!$C973=4,dati_bdv!$F$2:$F$65536,IF(dati_pdc!$C973=5,dati_bdv!$G$2:$G$65536,dati_bdv!$H$2:$H$65536))))),$A973,dati_bdv!M$2:M$65536)","v":0},{"$f":"SUMIF(IF(dati_pdc!$C973=1,dati_bdv!$C$2:$C$65536,IF(dati_pdc!$C973=2,dati_bdv!$D$2:$D$65536,IF(dati_pdc!$C973=3,dati_bdv!$E$2:$E$65536,IF(dati_pdc!$C973=4,dati_bdv!$F$2:$F$65536,IF(dati_pdc!$C973=5,dati_bdv!$G$2:$G$65536,dati_bdv!$H$2:$H$65536))))),$A973,dati_bdv!N$2:N$65536)","v":0}]
[{"$f":"dati_pdc!A974","v":0},{"$f":"SUMIF(IF(dati_pdc!$C974=1,dati_bdv!$C$2:$C$65536,IF(dati_pdc!$C974=2,dati_bdv!$D$2:$D$65536,IF(dati_pdc!$C974=3,dati_bdv!$E$2:$E$65536,IF(dati_pdc!$C974=4,dati_bdv!$F$2:$F$65536,IF(dati_pdc!$C974=5,dati_bdv!$G$2:$G$65536,dati_bdv!$H$2:$H$65536))))),$A974,dati_bdv!J$2:J$65536)","v":0},{"$f":"SUMIF(IF(dati_pdc!$C974=1,dati_bdv!$C$2:$C$65536,IF(dati_pdc!$C974=2,dati_bdv!$D$2:$D$65536,IF(dati_pdc!$C974=3,dati_bdv!$E$2:$E$65536,IF(dati_pdc!$C974=4,dati_bdv!$F$2:$F$65536,IF(dati_pdc!$C974=5,dati_bdv!$G$2:$G$65536,dati_bdv!$H$2:$H$65536))))),$A974,dati_bdv!K$2:K$65536)","v":0},{"$f":"SUMIF(IF(dati_pdc!$C974=1,dati_bdv!$C$2:$C$65536,IF(dati_pdc!$C974=2,dati_bdv!$D$2:$D$65536,IF(dati_pdc!$C974=3,dati_bdv!$E$2:$E$65536,IF(dati_pdc!$C974=4,dati_bdv!$F$2:$F$65536,IF(dati_pdc!$C974=5,dati_bdv!$G$2:$G$65536,dati_bdv!$H$2:$H$65536))))),$A974,dati_bdv!L$2:L$65536)","v":0},{"$f":"SUMIF(IF(dati_pdc!$C974=1,dati_bdv!$C$2:$C$65536,IF(dati_pdc!$C974=2,dati_bdv!$D$2:$D$65536,IF(dati_pdc!$C974=3,dati_bdv!$E$2:$E$65536,IF(dati_pdc!$C974=4,dati_bdv!$F$2:$F$65536,IF(dati_pdc!$C974=5,dati_bdv!$G$2:$G$65536,dati_bdv!$H$2:$H$65536))))),$A974,dati_bdv!M$2:M$65536)","v":0},{"$f":"SUMIF(IF(dati_pdc!$C974=1,dati_bdv!$C$2:$C$65536,IF(dati_pdc!$C974=2,dati_bdv!$D$2:$D$65536,IF(dati_pdc!$C974=3,dati_bdv!$E$2:$E$65536,IF(dati_pdc!$C974=4,dati_bdv!$F$2:$F$65536,IF(dati_pdc!$C974=5,dati_bdv!$G$2:$G$65536,dati_bdv!$H$2:$H$65536))))),$A974,dati_bdv!N$2:N$65536)","v":0}]
[{"$f":"dati_pdc!A975","v":0},{"$f":"SUMIF(IF(dati_pdc!$C975=1,dati_bdv!$C$2:$C$65536,IF(dati_pdc!$C975=2,dati_bdv!$D$2:$D$65536,IF(dati_pdc!$C975=3,dati_bdv!$E$2:$E$65536,IF(dati_pdc!$C975=4,dati_bdv!$F$2:$F$65536,IF(dati_pdc!$C975=5,dati_bdv!$G$2:$G$65536,dati_bdv!$H$2:$H$65536))))),$A975,dati_bdv!J$2:J$65536)","v":0},{"$f":"SUMIF(IF(dati_pdc!$C975=1,dati_bdv!$C$2:$C$65536,IF(dati_pdc!$C975=2,dati_bdv!$D$2:$D$65536,IF(dati_pdc!$C975=3,dati_bdv!$E$2:$E$65536,IF(dati_pdc!$C975=4,dati_bdv!$F$2:$F$65536,IF(dati_pdc!$C975=5,dati_bdv!$G$2:$G$65536,dati_bdv!$H$2:$H$65536))))),$A975,dati_bdv!K$2:K$65536)","v":0},{"$f":"SUMIF(IF(dati_pdc!$C975=1,dati_bdv!$C$2:$C$65536,IF(dati_pdc!$C975=2,dati_bdv!$D$2:$D$65536,IF(dati_pdc!$C975=3,dati_bdv!$E$2:$E$65536,IF(dati_pdc!$C975=4,dati_bdv!$F$2:$F$65536,IF(dati_pdc!$C975=5,dati_bdv!$G$2:$G$65536,dati_bdv!$H$2:$H$65536))))),$A975,dati_bdv!L$2:L$65536)","v":0},{"$f":"SUMIF(IF(dati_pdc!$C975=1,dati_bdv!$C$2:$C$65536,IF(dati_pdc!$C975=2,dati_bdv!$D$2:$D$65536,IF(dati_pdc!$C975=3,dati_bdv!$E$2:$E$65536,IF(dati_pdc!$C975=4,dati_bdv!$F$2:$F$65536,IF(dati_pdc!$C975=5,dati_bdv!$G$2:$G$65536,dati_bdv!$H$2:$H$65536))))),$A975,dati_bdv!M$2:M$65536)","v":0},{"$f":"SUMIF(IF(dati_pdc!$C975=1,dati_bdv!$C$2:$C$65536,IF(dati_pdc!$C975=2,dati_bdv!$D$2:$D$65536,IF(dati_pdc!$C975=3,dati_bdv!$E$2:$E$65536,IF(dati_pdc!$C975=4,dati_bdv!$F$2:$F$65536,IF(dati_pdc!$C975=5,dati_bdv!$G$2:$G$65536,dati_bdv!$H$2:$H$65536))))),$A975,dati_bdv!N$2:N$65536)","v":0}]
[{"$f":"dati_pdc!A976","v":0},{"$f":"SUMIF(IF(dati_pdc!$C976=1,dati_bdv!$C$2:$C$65536,IF(dati_pdc!$C976=2,dati_bdv!$D$2:$D$65536,IF(dati_pdc!$C976=3,dati_bdv!$E$2:$E$65536,IF(dati_pdc!$C976=4,dati_bdv!$F$2:$F$65536,IF(dati_pdc!$C976=5,dati_bdv!$G$2:$G$65536,dati_bdv!$H$2:$H$65536))))),$A976,dati_bdv!J$2:J$65536)","v":0},{"$f":"SUMIF(IF(dati_pdc!$C976=1,dati_bdv!$C$2:$C$65536,IF(dati_pdc!$C976=2,dati_bdv!$D$2:$D$65536,IF(dati_pdc!$C976=3,dati_bdv!$E$2:$E$65536,IF(dati_pdc!$C976=4,dati_bdv!$F$2:$F$65536,IF(dati_pdc!$C976=5,dati_bdv!$G$2:$G$65536,dati_bdv!$H$2:$H$65536))))),$A976,dati_bdv!K$2:K$65536)","v":0},{"$f":"SUMIF(IF(dati_pdc!$C976=1,dati_bdv!$C$2:$C$65536,IF(dati_pdc!$C976=2,dati_bdv!$D$2:$D$65536,IF(dati_pdc!$C976=3,dati_bdv!$E$2:$E$65536,IF(dati_pdc!$C976=4,dati_bdv!$F$2:$F$65536,IF(dati_pdc!$C976=5,dati_bdv!$G$2:$G$65536,dati_bdv!$H$2:$H$65536))))),$A976,dati_bdv!L$2:L$65536)","v":0},{"$f":"SUMIF(IF(dati_pdc!$C976=1,dati_bdv!$C$2:$C$65536,IF(dati_pdc!$C976=2,dati_bdv!$D$2:$D$65536,IF(dati_pdc!$C976=3,dati_bdv!$E$2:$E$65536,IF(dati_pdc!$C976=4,dati_bdv!$F$2:$F$65536,IF(dati_pdc!$C976=5,dati_bdv!$G$2:$G$65536,dati_bdv!$H$2:$H$65536))))),$A976,dati_bdv!M$2:M$65536)","v":0},{"$f":"SUMIF(IF(dati_pdc!$C976=1,dati_bdv!$C$2:$C$65536,IF(dati_pdc!$C976=2,dati_bdv!$D$2:$D$65536,IF(dati_pdc!$C976=3,dati_bdv!$E$2:$E$65536,IF(dati_pdc!$C976=4,dati_bdv!$F$2:$F$65536,IF(dati_pdc!$C976=5,dati_bdv!$G$2:$G$65536,dati_bdv!$H$2:$H$65536))))),$A976,dati_bdv!N$2:N$65536)","v":0}]
[{"$f":"dati_pdc!A977","v":0},{"$f":"SUMIF(IF(dati_pdc!$C977=1,dati_bdv!$C$2:$C$65536,IF(dati_pdc!$C977=2,dati_bdv!$D$2:$D$65536,IF(dati_pdc!$C977=3,dati_bdv!$E$2:$E$65536,IF(dati_pdc!$C977=4,dati_bdv!$F$2:$F$65536,IF(dati_pdc!$C977=5,dati_bdv!$G$2:$G$65536,dati_bdv!$H$2:$H$65536))))),$A977,dati_bdv!J$2:J$65536)","v":0},{"$f":"SUMIF(IF(dati_pdc!$C977=1,dati_bdv!$C$2:$C$65536,IF(dati_pdc!$C977=2,dati_bdv!$D$2:$D$65536,IF(dati_pdc!$C977=3,dati_bdv!$E$2:$E$65536,IF(dati_pdc!$C977=4,dati_bdv!$F$2:$F$65536,IF(dati_pdc!$C977=5,dati_bdv!$G$2:$G$65536,dati_bdv!$H$2:$H$65536))))),$A977,dati_bdv!K$2:K$65536)","v":0},{"$f":"SUMIF(IF(dati_pdc!$C977=1,dati_bdv!$C$2:$C$65536,IF(dati_pdc!$C977=2,dati_bdv!$D$2:$D$65536,IF(dati_pdc!$C977=3,dati_bdv!$E$2:$E$65536,IF(dati_pdc!$C977=4,dati_bdv!$F$2:$F$65536,IF(dati_pdc!$C977=5,dati_bdv!$G$2:$G$65536,dati_bdv!$H$2:$H$65536))))),$A977,dati_bdv!L$2:L$65536)","v":0},{"$f":"SUMIF(IF(dati_pdc!$C977=1,dati_bdv!$C$2:$C$65536,IF(dati_pdc!$C977=2,dati_bdv!$D$2:$D$65536,IF(dati_pdc!$C977=3,dati_bdv!$E$2:$E$65536,IF(dati_pdc!$C977=4,dati_bdv!$F$2:$F$65536,IF(dati_pdc!$C977=5,dati_bdv!$G$2:$G$65536,dati_bdv!$H$2:$H$65536))))),$A977,dati_bdv!M$2:M$65536)","v":0},{"$f":"SUMIF(IF(dati_pdc!$C977=1,dati_bdv!$C$2:$C$65536,IF(dati_pdc!$C977=2,dati_bdv!$D$2:$D$65536,IF(dati_pdc!$C977=3,dati_bdv!$E$2:$E$65536,IF(dati_pdc!$C977=4,dati_bdv!$F$2:$F$65536,IF(dati_pdc!$C977=5,dati_bdv!$G$2:$G$65536,dati_bdv!$H$2:$H$65536))))),$A977,dati_bdv!N$2:N$65536)","v":0}]
[{"$f":"dati_pdc!A978","v":0},{"$f":"SUMIF(IF(dati_pdc!$C978=1,dati_bdv!$C$2:$C$65536,IF(dati_pdc!$C978=2,dati_bdv!$D$2:$D$65536,IF(dati_pdc!$C978=3,dati_bdv!$E$2:$E$65536,IF(dati_pdc!$C978=4,dati_bdv!$F$2:$F$65536,IF(dati_pdc!$C978=5,dati_bdv!$G$2:$G$65536,dati_bdv!$H$2:$H$65536))))),$A978,dati_bdv!J$2:J$65536)","v":0},{"$f":"SUMIF(IF(dati_pdc!$C978=1,dati_bdv!$C$2:$C$65536,IF(dati_pdc!$C978=2,dati_bdv!$D$2:$D$65536,IF(dati_pdc!$C978=3,dati_bdv!$E$2:$E$65536,IF(dati_pdc!$C978=4,dati_bdv!$F$2:$F$65536,IF(dati_pdc!$C978=5,dati_bdv!$G$2:$G$65536,dati_bdv!$H$2:$H$65536))))),$A978,dati_bdv!K$2:K$65536)","v":0},{"$f":"SUMIF(IF(dati_pdc!$C978=1,dati_bdv!$C$2:$C$65536,IF(dati_pdc!$C978=2,dati_bdv!$D$2:$D$65536,IF(dati_pdc!$C978=3,dati_bdv!$E$2:$E$65536,IF(dati_pdc!$C978=4,dati_bdv!$F$2:$F$65536,IF(dati_pdc!$C978=5,dati_bdv!$G$2:$G$65536,dati_bdv!$H$2:$H$65536))))),$A978,dati_bdv!L$2:L$65536)","v":0},{"$f":"SUMIF(IF(dati_pdc!$C978=1,dati_bdv!$C$2:$C$65536,IF(dati_pdc!$C978=2,dati_bdv!$D$2:$D$65536,IF(dati_pdc!$C978=3,dati_bdv!$E$2:$E$65536,IF(dati_pdc!$C978=4,dati_bdv!$F$2:$F$65536,IF(dati_pdc!$C978=5,dati_bdv!$G$2:$G$65536,dati_bdv!$H$2:$H$65536))))),$A978,dati_bdv!M$2:M$65536)","v":0},{"$f":"SUMIF(IF(dati_pdc!$C978=1,dati_bdv!$C$2:$C$65536,IF(dati_pdc!$C978=2,dati_bdv!$D$2:$D$65536,IF(dati_pdc!$C978=3,dati_bdv!$E$2:$E$65536,IF(dati_pdc!$C978=4,dati_bdv!$F$2:$F$65536,IF(dati_pdc!$C978=5,dati_bdv!$G$2:$G$65536,dati_bdv!$H$2:$H$65536))))),$A978,dati_bdv!N$2:N$65536)","v":0}]
[{"$f":"dati_pdc!A979","v":0},{"$f":"SUMIF(IF(dati_pdc!$C979=1,dati_bdv!$C$2:$C$65536,IF(dati_pdc!$C979=2,dati_bdv!$D$2:$D$65536,IF(dati_pdc!$C979=3,dati_bdv!$E$2:$E$65536,IF(dati_pdc!$C979=4,dati_bdv!$F$2:$F$65536,IF(dati_pdc!$C979=5,dati_bdv!$G$2:$G$65536,dati_bdv!$H$2:$H$65536))))),$A979,dati_bdv!J$2:J$65536)","v":0},{"$f":"SUMIF(IF(dati_pdc!$C979=1,dati_bdv!$C$2:$C$65536,IF(dati_pdc!$C979=2,dati_bdv!$D$2:$D$65536,IF(dati_pdc!$C979=3,dati_bdv!$E$2:$E$65536,IF(dati_pdc!$C979=4,dati_bdv!$F$2:$F$65536,IF(dati_pdc!$C979=5,dati_bdv!$G$2:$G$65536,dati_bdv!$H$2:$H$65536))))),$A979,dati_bdv!K$2:K$65536)","v":0},{"$f":"SUMIF(IF(dati_pdc!$C979=1,dati_bdv!$C$2:$C$65536,IF(dati_pdc!$C979=2,dati_bdv!$D$2:$D$65536,IF(dati_pdc!$C979=3,dati_bdv!$E$2:$E$65536,IF(dati_pdc!$C979=4,dati_bdv!$F$2:$F$65536,IF(dati_pdc!$C979=5,dati_bdv!$G$2:$G$65536,dati_bdv!$H$2:$H$65536))))),$A979,dati_bdv!L$2:L$65536)","v":0},{"$f":"SUMIF(IF(dati_pdc!$C979=1,dati_bdv!$C$2:$C$65536,IF(dati_pdc!$C979=2,dati_bdv!$D$2:$D$65536,IF(dati_pdc!$C979=3,dati_bdv!$E$2:$E$65536,IF(dati_pdc!$C979=4,dati_bdv!$F$2:$F$65536,IF(dati_pdc!$C979=5,dati_bdv!$G$2:$G$65536,dati_bdv!$H$2:$H$65536))))),$A979,dati_bdv!M$2:M$65536)","v":0},{"$f":"SUMIF(IF(dati_pdc!$C979=1,dati_bdv!$C$2:$C$65536,IF(dati_pdc!$C979=2,dati_bdv!$D$2:$D$65536,IF(dati_pdc!$C979=3,dati_bdv!$E$2:$E$65536,IF(dati_pdc!$C979=4,dati_bdv!$F$2:$F$65536,IF(dati_pdc!$C979=5,dati_bdv!$G$2:$G$65536,dati_bdv!$H$2:$H$65536))))),$A979,dati_bdv!N$2:N$65536)","v":0}]
[{"$f":"dati_pdc!A980","v":0},{"$f":"SUMIF(IF(dati_pdc!$C980=1,dati_bdv!$C$2:$C$65536,IF(dati_pdc!$C980=2,dati_bdv!$D$2:$D$65536,IF(dati_pdc!$C980=3,dati_bdv!$E$2:$E$65536,IF(dati_pdc!$C980=4,dati_bdv!$F$2:$F$65536,IF(dati_pdc!$C980=5,dati_bdv!$G$2:$G$65536,dati_bdv!$H$2:$H$65536))))),$A980,dati_bdv!J$2:J$65536)","v":0},{"$f":"SUMIF(IF(dati_pdc!$C980=1,dati_bdv!$C$2:$C$65536,IF(dati_pdc!$C980=2,dati_bdv!$D$2:$D$65536,IF(dati_pdc!$C980=3,dati_bdv!$E$2:$E$65536,IF(dati_pdc!$C980=4,dati_bdv!$F$2:$F$65536,IF(dati_pdc!$C980=5,dati_bdv!$G$2:$G$65536,dati_bdv!$H$2:$H$65536))))),$A980,dati_bdv!K$2:K$65536)","v":0},{"$f":"SUMIF(IF(dati_pdc!$C980=1,dati_bdv!$C$2:$C$65536,IF(dati_pdc!$C980=2,dati_bdv!$D$2:$D$65536,IF(dati_pdc!$C980=3,dati_bdv!$E$2:$E$65536,IF(dati_pdc!$C980=4,dati_bdv!$F$2:$F$65536,IF(dati_pdc!$C980=5,dati_bdv!$G$2:$G$65536,dati_bdv!$H$2:$H$65536))))),$A980,dati_bdv!L$2:L$65536)","v":0},{"$f":"SUMIF(IF(dati_pdc!$C980=1,dati_bdv!$C$2:$C$65536,IF(dati_pdc!$C980=2,dati_bdv!$D$2:$D$65536,IF(dati_pdc!$C980=3,dati_bdv!$E$2:$E$65536,IF(dati_pdc!$C980=4,dati_bdv!$F$2:$F$65536,IF(dati_pdc!$C980=5,dati_bdv!$G$2:$G$65536,dati_bdv!$H$2:$H$65536))))),$A980,dati_bdv!M$2:M$65536)","v":0},{"$f":"SUMIF(IF(dati_pdc!$C980=1,dati_bdv!$C$2:$C$65536,IF(dati_pdc!$C980=2,dati_bdv!$D$2:$D$65536,IF(dati_pdc!$C980=3,dati_bdv!$E$2:$E$65536,IF(dati_pdc!$C980=4,dati_bdv!$F$2:$F$65536,IF(dati_pdc!$C980=5,dati_bdv!$G$2:$G$65536,dati_bdv!$H$2:$H$65536))))),$A980,dati_bdv!N$2:N$65536)","v":0}]
[{"$f":"dati_pdc!A981","v":0},{"$f":"SUMIF(IF(dati_pdc!$C981=1,dati_bdv!$C$2:$C$65536,IF(dati_pdc!$C981=2,dati_bdv!$D$2:$D$65536,IF(dati_pdc!$C981=3,dati_bdv!$E$2:$E$65536,IF(dati_pdc!$C981=4,dati_bdv!$F$2:$F$65536,IF(dati_pdc!$C981=5,dati_bdv!$G$2:$G$65536,dati_bdv!$H$2:$H$65536))))),$A981,dati_bdv!J$2:J$65536)","v":0},{"$f":"SUMIF(IF(dati_pdc!$C981=1,dati_bdv!$C$2:$C$65536,IF(dati_pdc!$C981=2,dati_bdv!$D$2:$D$65536,IF(dati_pdc!$C981=3,dati_bdv!$E$2:$E$65536,IF(dati_pdc!$C981=4,dati_bdv!$F$2:$F$65536,IF(dati_pdc!$C981=5,dati_bdv!$G$2:$G$65536,dati_bdv!$H$2:$H$65536))))),$A981,dati_bdv!K$2:K$65536)","v":0},{"$f":"SUMIF(IF(dati_pdc!$C981=1,dati_bdv!$C$2:$C$65536,IF(dati_pdc!$C981=2,dati_bdv!$D$2:$D$65536,IF(dati_pdc!$C981=3,dati_bdv!$E$2:$E$65536,IF(dati_pdc!$C981=4,dati_bdv!$F$2:$F$65536,IF(dati_pdc!$C981=5,dati_bdv!$G$2:$G$65536,dati_bdv!$H$2:$H$65536))))),$A981,dati_bdv!L$2:L$65536)","v":0},{"$f":"SUMIF(IF(dati_pdc!$C981=1,dati_bdv!$C$2:$C$65536,IF(dati_pdc!$C981=2,dati_bdv!$D$2:$D$65536,IF(dati_pdc!$C981=3,dati_bdv!$E$2:$E$65536,IF(dati_pdc!$C981=4,dati_bdv!$F$2:$F$65536,IF(dati_pdc!$C981=5,dati_bdv!$G$2:$G$65536,dati_bdv!$H$2:$H$65536))))),$A981,dati_bdv!M$2:M$65536)","v":0},{"$f":"SUMIF(IF(dati_pdc!$C981=1,dati_bdv!$C$2:$C$65536,IF(dati_pdc!$C981=2,dati_bdv!$D$2:$D$65536,IF(dati_pdc!$C981=3,dati_bdv!$E$2:$E$65536,IF(dati_pdc!$C981=4,dati_bdv!$F$2:$F$65536,IF(dati_pdc!$C981=5,dati_bdv!$G$2:$G$65536,dati_bdv!$H$2:$H$65536))))),$A981,dati_bdv!N$2:N$65536)","v":0}]
[{"$f":"dati_pdc!A982","v":0},{"$f":"SUMIF(IF(dati_pdc!$C982=1,dati_bdv!$C$2:$C$65536,IF(dati_pdc!$C982=2,dati_bdv!$D$2:$D$65536,IF(dati_pdc!$C982=3,dati_bdv!$E$2:$E$65536,IF(dati_pdc!$C982=4,dati_bdv!$F$2:$F$65536,IF(dati_pdc!$C982=5,dati_bdv!$G$2:$G$65536,dati_bdv!$H$2:$H$65536))))),$A982,dati_bdv!J$2:J$65536)","v":0},{"$f":"SUMIF(IF(dati_pdc!$C982=1,dati_bdv!$C$2:$C$65536,IF(dati_pdc!$C982=2,dati_bdv!$D$2:$D$65536,IF(dati_pdc!$C982=3,dati_bdv!$E$2:$E$65536,IF(dati_pdc!$C982=4,dati_bdv!$F$2:$F$65536,IF(dati_pdc!$C982=5,dati_bdv!$G$2:$G$65536,dati_bdv!$H$2:$H$65536))))),$A982,dati_bdv!K$2:K$65536)","v":0},{"$f":"SUMIF(IF(dati_pdc!$C982=1,dati_bdv!$C$2:$C$65536,IF(dati_pdc!$C982=2,dati_bdv!$D$2:$D$65536,IF(dati_pdc!$C982=3,dati_bdv!$E$2:$E$65536,IF(dati_pdc!$C982=4,dati_bdv!$F$2:$F$65536,IF(dati_pdc!$C982=5,dati_bdv!$G$2:$G$65536,dati_bdv!$H$2:$H$65536))))),$A982,dati_bdv!L$2:L$65536)","v":0},{"$f":"SUMIF(IF(dati_pdc!$C982=1,dati_bdv!$C$2:$C$65536,IF(dati_pdc!$C982=2,dati_bdv!$D$2:$D$65536,IF(dati_pdc!$C982=3,dati_bdv!$E$2:$E$65536,IF(dati_pdc!$C982=4,dati_bdv!$F$2:$F$65536,IF(dati_pdc!$C982=5,dati_bdv!$G$2:$G$65536,dati_bdv!$H$2:$H$65536))))),$A982,dati_bdv!M$2:M$65536)","v":0},{"$f":"SUMIF(IF(dati_pdc!$C982=1,dati_bdv!$C$2:$C$65536,IF(dati_pdc!$C982=2,dati_bdv!$D$2:$D$65536,IF(dati_pdc!$C982=3,dati_bdv!$E$2:$E$65536,IF(dati_pdc!$C982=4,dati_bdv!$F$2:$F$65536,IF(dati_pdc!$C982=5,dati_bdv!$G$2:$G$65536,dati_bdv!$H$2:$H$65536))))),$A982,dati_bdv!N$2:N$65536)","v":0}]
[{"$f":"dati_pdc!A983","v":0},{"$f":"SUMIF(IF(dati_pdc!$C983=1,dati_bdv!$C$2:$C$65536,IF(dati_pdc!$C983=2,dati_bdv!$D$2:$D$65536,IF(dati_pdc!$C983=3,dati_bdv!$E$2:$E$65536,IF(dati_pdc!$C983=4,dati_bdv!$F$2:$F$65536,IF(dati_pdc!$C983=5,dati_bdv!$G$2:$G$65536,dati_bdv!$H$2:$H$65536))))),$A983,dati_bdv!J$2:J$65536)","v":0},{"$f":"SUMIF(IF(dati_pdc!$C983=1,dati_bdv!$C$2:$C$65536,IF(dati_pdc!$C983=2,dati_bdv!$D$2:$D$65536,IF(dati_pdc!$C983=3,dati_bdv!$E$2:$E$65536,IF(dati_pdc!$C983=4,dati_bdv!$F$2:$F$65536,IF(dati_pdc!$C983=5,dati_bdv!$G$2:$G$65536,dati_bdv!$H$2:$H$65536))))),$A983,dati_bdv!K$2:K$65536)","v":0},{"$f":"SUMIF(IF(dati_pdc!$C983=1,dati_bdv!$C$2:$C$65536,IF(dati_pdc!$C983=2,dati_bdv!$D$2:$D$65536,IF(dati_pdc!$C983=3,dati_bdv!$E$2:$E$65536,IF(dati_pdc!$C983=4,dati_bdv!$F$2:$F$65536,IF(dati_pdc!$C983=5,dati_bdv!$G$2:$G$65536,dati_bdv!$H$2:$H$65536))))),$A983,dati_bdv!L$2:L$65536)","v":0},{"$f":"SUMIF(IF(dati_pdc!$C983=1,dati_bdv!$C$2:$C$65536,IF(dati_pdc!$C983=2,dati_bdv!$D$2:$D$65536,IF(dati_pdc!$C983=3,dati_bdv!$E$2:$E$65536,IF(dati_pdc!$C983=4,dati_bdv!$F$2:$F$65536,IF(dati_pdc!$C983=5,dati_bdv!$G$2:$G$65536,dati_bdv!$H$2:$H$65536))))),$A983,dati_bdv!M$2:M$65536)","v":0},{"$f":"SUMIF(IF(dati_pdc!$C983=1,dati_bdv!$C$2:$C$65536,IF(dati_pdc!$C983=2,dati_bdv!$D$2:$D$65536,IF(dati_pdc!$C983=3,dati_bdv!$E$2:$E$65536,IF(dati_pdc!$C983=4,dati_bdv!$F$2:$F$65536,IF(dati_pdc!$C983=5,dati_bdv!$G$2:$G$65536,dati_bdv!$H$2:$H$65536))))),$A983,dati_bdv!N$2:N$65536)","v":0}]
[{"$f":"dati_pdc!A984","v":0},{"$f":"SUMIF(IF(dati_pdc!$C984=1,dati_bdv!$C$2:$C$65536,IF(dati_pdc!$C984=2,dati_bdv!$D$2:$D$65536,IF(dati_pdc!$C984=3,dati_bdv!$E$2:$E$65536,IF(dati_pdc!$C984=4,dati_bdv!$F$2:$F$65536,IF(dati_pdc!$C984=5,dati_bdv!$G$2:$G$65536,dati_bdv!$H$2:$H$65536))))),$A984,dati_bdv!J$2:J$65536)","v":0},{"$f":"SUMIF(IF(dati_pdc!$C984=1,dati_bdv!$C$2:$C$65536,IF(dati_pdc!$C984=2,dati_bdv!$D$2:$D$65536,IF(dati_pdc!$C984=3,dati_bdv!$E$2:$E$65536,IF(dati_pdc!$C984=4,dati_bdv!$F$2:$F$65536,IF(dati_pdc!$C984=5,dati_bdv!$G$2:$G$65536,dati_bdv!$H$2:$H$65536))))),$A984,dati_bdv!K$2:K$65536)","v":0},{"$f":"SUMIF(IF(dati_pdc!$C984=1,dati_bdv!$C$2:$C$65536,IF(dati_pdc!$C984=2,dati_bdv!$D$2:$D$65536,IF(dati_pdc!$C984=3,dati_bdv!$E$2:$E$65536,IF(dati_pdc!$C984=4,dati_bdv!$F$2:$F$65536,IF(dati_pdc!$C984=5,dati_bdv!$G$2:$G$65536,dati_bdv!$H$2:$H$65536))))),$A984,dati_bdv!L$2:L$65536)","v":0},{"$f":"SUMIF(IF(dati_pdc!$C984=1,dati_bdv!$C$2:$C$65536,IF(dati_pdc!$C984=2,dati_bdv!$D$2:$D$65536,IF(dati_pdc!$C984=3,dati_bdv!$E$2:$E$65536,IF(dati_pdc!$C984=4,dati_bdv!$F$2:$F$65536,IF(dati_pdc!$C984=5,dati_bdv!$G$2:$G$65536,dati_bdv!$H$2:$H$65536))))),$A984,dati_bdv!M$2:M$65536)","v":0},{"$f":"SUMIF(IF(dati_pdc!$C984=1,dati_bdv!$C$2:$C$65536,IF(dati_pdc!$C984=2,dati_bdv!$D$2:$D$65536,IF(dati_pdc!$C984=3,dati_bdv!$E$2:$E$65536,IF(dati_pdc!$C984=4,dati_bdv!$F$2:$F$65536,IF(dati_pdc!$C984=5,dati_bdv!$G$2:$G$65536,dati_bdv!$H$2:$H$65536))))),$A984,dati_bdv!N$2:N$65536)","v":0}]
[{"$f":"dati_pdc!A985","v":0},{"$f":"SUMIF(IF(dati_pdc!$C985=1,dati_bdv!$C$2:$C$65536,IF(dati_pdc!$C985=2,dati_bdv!$D$2:$D$65536,IF(dati_pdc!$C985=3,dati_bdv!$E$2:$E$65536,IF(dati_pdc!$C985=4,dati_bdv!$F$2:$F$65536,IF(dati_pdc!$C985=5,dati_bdv!$G$2:$G$65536,dati_bdv!$H$2:$H$65536))))),$A985,dati_bdv!J$2:J$65536)","v":0},{"$f":"SUMIF(IF(dati_pdc!$C985=1,dati_bdv!$C$2:$C$65536,IF(dati_pdc!$C985=2,dati_bdv!$D$2:$D$65536,IF(dati_pdc!$C985=3,dati_bdv!$E$2:$E$65536,IF(dati_pdc!$C985=4,dati_bdv!$F$2:$F$65536,IF(dati_pdc!$C985=5,dati_bdv!$G$2:$G$65536,dati_bdv!$H$2:$H$65536))))),$A985,dati_bdv!K$2:K$65536)","v":0},{"$f":"SUMIF(IF(dati_pdc!$C985=1,dati_bdv!$C$2:$C$65536,IF(dati_pdc!$C985=2,dati_bdv!$D$2:$D$65536,IF(dati_pdc!$C985=3,dati_bdv!$E$2:$E$65536,IF(dati_pdc!$C985=4,dati_bdv!$F$2:$F$65536,IF(dati_pdc!$C985=5,dati_bdv!$G$2:$G$65536,dati_bdv!$H$2:$H$65536))))),$A985,dati_bdv!L$2:L$65536)","v":0},{"$f":"SUMIF(IF(dati_pdc!$C985=1,dati_bdv!$C$2:$C$65536,IF(dati_pdc!$C985=2,dati_bdv!$D$2:$D$65536,IF(dati_pdc!$C985=3,dati_bdv!$E$2:$E$65536,IF(dati_pdc!$C985=4,dati_bdv!$F$2:$F$65536,IF(dati_pdc!$C985=5,dati_bdv!$G$2:$G$65536,dati_bdv!$H$2:$H$65536))))),$A985,dati_bdv!M$2:M$65536)","v":0},{"$f":"SUMIF(IF(dati_pdc!$C985=1,dati_bdv!$C$2:$C$65536,IF(dati_pdc!$C985=2,dati_bdv!$D$2:$D$65536,IF(dati_pdc!$C985=3,dati_bdv!$E$2:$E$65536,IF(dati_pdc!$C985=4,dati_bdv!$F$2:$F$65536,IF(dati_pdc!$C985=5,dati_bdv!$G$2:$G$65536,dati_bdv!$H$2:$H$65536))))),$A985,dati_bdv!N$2:N$65536)","v":0}]
[{"$f":"dati_pdc!A986","v":0},{"$f":"SUMIF(IF(dati_pdc!$C986=1,dati_bdv!$C$2:$C$65536,IF(dati_pdc!$C986=2,dati_bdv!$D$2:$D$65536,IF(dati_pdc!$C986=3,dati_bdv!$E$2:$E$65536,IF(dati_pdc!$C986=4,dati_bdv!$F$2:$F$65536,IF(dati_pdc!$C986=5,dati_bdv!$G$2:$G$65536,dati_bdv!$H$2:$H$65536))))),$A986,dati_bdv!J$2:J$65536)","v":0},{"$f":"SUMIF(IF(dati_pdc!$C986=1,dati_bdv!$C$2:$C$65536,IF(dati_pdc!$C986=2,dati_bdv!$D$2:$D$65536,IF(dati_pdc!$C986=3,dati_bdv!$E$2:$E$65536,IF(dati_pdc!$C986=4,dati_bdv!$F$2:$F$65536,IF(dati_pdc!$C986=5,dati_bdv!$G$2:$G$65536,dati_bdv!$H$2:$H$65536))))),$A986,dati_bdv!K$2:K$65536)","v":0},{"$f":"SUMIF(IF(dati_pdc!$C986=1,dati_bdv!$C$2:$C$65536,IF(dati_pdc!$C986=2,dati_bdv!$D$2:$D$65536,IF(dati_pdc!$C986=3,dati_bdv!$E$2:$E$65536,IF(dati_pdc!$C986=4,dati_bdv!$F$2:$F$65536,IF(dati_pdc!$C986=5,dati_bdv!$G$2:$G$65536,dati_bdv!$H$2:$H$65536))))),$A986,dati_bdv!L$2:L$65536)","v":0},{"$f":"SUMIF(IF(dati_pdc!$C986=1,dati_bdv!$C$2:$C$65536,IF(dati_pdc!$C986=2,dati_bdv!$D$2:$D$65536,IF(dati_pdc!$C986=3,dati_bdv!$E$2:$E$65536,IF(dati_pdc!$C986=4,dati_bdv!$F$2:$F$65536,IF(dati_pdc!$C986=5,dati_bdv!$G$2:$G$65536,dati_bdv!$H$2:$H$65536))))),$A986,dati_bdv!M$2:M$65536)","v":0},{"$f":"SUMIF(IF(dati_pdc!$C986=1,dati_bdv!$C$2:$C$65536,IF(dati_pdc!$C986=2,dati_bdv!$D$2:$D$65536,IF(dati_pdc!$C986=3,dati_bdv!$E$2:$E$65536,IF(dati_pdc!$C986=4,dati_bdv!$F$2:$F$65536,IF(dati_pdc!$C986=5,dati_bdv!$G$2:$G$65536,dati_bdv!$H$2:$H$65536))))),$A986,dati_bdv!N$2:N$65536)","v":0}]
[{"$f":"dati_pdc!A987","v":0},{"$f":"SUMIF(IF(dati_pdc!$C987=1,dati_bdv!$C$2:$C$65536,IF(dati_pdc!$C987=2,dati_bdv!$D$2:$D$65536,IF(dati_pdc!$C987=3,dati_bdv!$E$2:$E$65536,IF(dati_pdc!$C987=4,dati_bdv!$F$2:$F$65536,IF(dati_pdc!$C987=5,dati_bdv!$G$2:$G$65536,dati_bdv!$H$2:$H$65536))))),$A987,dati_bdv!J$2:J$65536)","v":0},{"$f":"SUMIF(IF(dati_pdc!$C987=1,dati_bdv!$C$2:$C$65536,IF(dati_pdc!$C987=2,dati_bdv!$D$2:$D$65536,IF(dati_pdc!$C987=3,dati_bdv!$E$2:$E$65536,IF(dati_pdc!$C987=4,dati_bdv!$F$2:$F$65536,IF(dati_pdc!$C987=5,dati_bdv!$G$2:$G$65536,dati_bdv!$H$2:$H$65536))))),$A987,dati_bdv!K$2:K$65536)","v":0},{"$f":"SUMIF(IF(dati_pdc!$C987=1,dati_bdv!$C$2:$C$65536,IF(dati_pdc!$C987=2,dati_bdv!$D$2:$D$65536,IF(dati_pdc!$C987=3,dati_bdv!$E$2:$E$65536,IF(dati_pdc!$C987=4,dati_bdv!$F$2:$F$65536,IF(dati_pdc!$C987=5,dati_bdv!$G$2:$G$65536,dati_bdv!$H$2:$H$65536))))),$A987,dati_bdv!L$2:L$65536)","v":0},{"$f":"SUMIF(IF(dati_pdc!$C987=1,dati_bdv!$C$2:$C$65536,IF(dati_pdc!$C987=2,dati_bdv!$D$2:$D$65536,IF(dati_pdc!$C987=3,dati_bdv!$E$2:$E$65536,IF(dati_pdc!$C987=4,dati_bdv!$F$2:$F$65536,IF(dati_pdc!$C987=5,dati_bdv!$G$2:$G$65536,dati_bdv!$H$2:$H$65536))))),$A987,dati_bdv!M$2:M$65536)","v":0},{"$f":"SUMIF(IF(dati_pdc!$C987=1,dati_bdv!$C$2:$C$65536,IF(dati_pdc!$C987=2,dati_bdv!$D$2:$D$65536,IF(dati_pdc!$C987=3,dati_bdv!$E$2:$E$65536,IF(dati_pdc!$C987=4,dati_bdv!$F$2:$F$65536,IF(dati_pdc!$C987=5,dati_bdv!$G$2:$G$65536,dati_bdv!$H$2:$H$65536))))),$A987,dati_bdv!N$2:N$65536)","v":0}]
[{"$f":"dati_pdc!A988","v":0},{"$f":"SUMIF(IF(dati_pdc!$C988=1,dati_bdv!$C$2:$C$65536,IF(dati_pdc!$C988=2,dati_bdv!$D$2:$D$65536,IF(dati_pdc!$C988=3,dati_bdv!$E$2:$E$65536,IF(dati_pdc!$C988=4,dati_bdv!$F$2:$F$65536,IF(dati_pdc!$C988=5,dati_bdv!$G$2:$G$65536,dati_bdv!$H$2:$H$65536))))),$A988,dati_bdv!J$2:J$65536)","v":0},{"$f":"SUMIF(IF(dati_pdc!$C988=1,dati_bdv!$C$2:$C$65536,IF(dati_pdc!$C988=2,dati_bdv!$D$2:$D$65536,IF(dati_pdc!$C988=3,dati_bdv!$E$2:$E$65536,IF(dati_pdc!$C988=4,dati_bdv!$F$2:$F$65536,IF(dati_pdc!$C988=5,dati_bdv!$G$2:$G$65536,dati_bdv!$H$2:$H$65536))))),$A988,dati_bdv!K$2:K$65536)","v":0},{"$f":"SUMIF(IF(dati_pdc!$C988=1,dati_bdv!$C$2:$C$65536,IF(dati_pdc!$C988=2,dati_bdv!$D$2:$D$65536,IF(dati_pdc!$C988=3,dati_bdv!$E$2:$E$65536,IF(dati_pdc!$C988=4,dati_bdv!$F$2:$F$65536,IF(dati_pdc!$C988=5,dati_bdv!$G$2:$G$65536,dati_bdv!$H$2:$H$65536))))),$A988,dati_bdv!L$2:L$65536)","v":0},{"$f":"SUMIF(IF(dati_pdc!$C988=1,dati_bdv!$C$2:$C$65536,IF(dati_pdc!$C988=2,dati_bdv!$D$2:$D$65536,IF(dati_pdc!$C988=3,dati_bdv!$E$2:$E$65536,IF(dati_pdc!$C988=4,dati_bdv!$F$2:$F$65536,IF(dati_pdc!$C988=5,dati_bdv!$G$2:$G$65536,dati_bdv!$H$2:$H$65536))))),$A988,dati_bdv!M$2:M$65536)","v":0},{"$f":"SUMIF(IF(dati_pdc!$C988=1,dati_bdv!$C$2:$C$65536,IF(dati_pdc!$C988=2,dati_bdv!$D$2:$D$65536,IF(dati_pdc!$C988=3,dati_bdv!$E$2:$E$65536,IF(dati_pdc!$C988=4,dati_bdv!$F$2:$F$65536,IF(dati_pdc!$C988=5,dati_bdv!$G$2:$G$65536,dati_bdv!$H$2:$H$65536))))),$A988,dati_bdv!N$2:N$65536)","v":0}]
[{"$f":"dati_pdc!A989","v":0},{"$f":"SUMIF(IF(dati_pdc!$C989=1,dati_bdv!$C$2:$C$65536,IF(dati_pdc!$C989=2,dati_bdv!$D$2:$D$65536,IF(dati_pdc!$C989=3,dati_bdv!$E$2:$E$65536,IF(dati_pdc!$C989=4,dati_bdv!$F$2:$F$65536,IF(dati_pdc!$C989=5,dati_bdv!$G$2:$G$65536,dati_bdv!$H$2:$H$65536))))),$A989,dati_bdv!J$2:J$65536)","v":0},{"$f":"SUMIF(IF(dati_pdc!$C989=1,dati_bdv!$C$2:$C$65536,IF(dati_pdc!$C989=2,dati_bdv!$D$2:$D$65536,IF(dati_pdc!$C989=3,dati_bdv!$E$2:$E$65536,IF(dati_pdc!$C989=4,dati_bdv!$F$2:$F$65536,IF(dati_pdc!$C989=5,dati_bdv!$G$2:$G$65536,dati_bdv!$H$2:$H$65536))))),$A989,dati_bdv!K$2:K$65536)","v":0},{"$f":"SUMIF(IF(dati_pdc!$C989=1,dati_bdv!$C$2:$C$65536,IF(dati_pdc!$C989=2,dati_bdv!$D$2:$D$65536,IF(dati_pdc!$C989=3,dati_bdv!$E$2:$E$65536,IF(dati_pdc!$C989=4,dati_bdv!$F$2:$F$65536,IF(dati_pdc!$C989=5,dati_bdv!$G$2:$G$65536,dati_bdv!$H$2:$H$65536))))),$A989,dati_bdv!L$2:L$65536)","v":0},{"$f":"SUMIF(IF(dati_pdc!$C989=1,dati_bdv!$C$2:$C$65536,IF(dati_pdc!$C989=2,dati_bdv!$D$2:$D$65536,IF(dati_pdc!$C989=3,dati_bdv!$E$2:$E$65536,IF(dati_pdc!$C989=4,dati_bdv!$F$2:$F$65536,IF(dati_pdc!$C989=5,dati_bdv!$G$2:$G$65536,dati_bdv!$H$2:$H$65536))))),$A989,dati_bdv!M$2:M$65536)","v":0},{"$f":"SUMIF(IF(dati_pdc!$C989=1,dati_bdv!$C$2:$C$65536,IF(dati_pdc!$C989=2,dati_bdv!$D$2:$D$65536,IF(dati_pdc!$C989=3,dati_bdv!$E$2:$E$65536,IF(dati_pdc!$C989=4,dati_bdv!$F$2:$F$65536,IF(dati_pdc!$C989=5,dati_bdv!$G$2:$G$65536,dati_bdv!$H$2:$H$65536))))),$A989,dati_bdv!N$2:N$65536)","v":0}]
[{"$f":"dati_pdc!A990","v":0},{"$f":"SUMIF(IF(dati_pdc!$C990=1,dati_bdv!$C$2:$C$65536,IF(dati_pdc!$C990=2,dati_bdv!$D$2:$D$65536,IF(dati_pdc!$C990=3,dati_bdv!$E$2:$E$65536,IF(dati_pdc!$C990=4,dati_bdv!$F$2:$F$65536,IF(dati_pdc!$C990=5,dati_bdv!$G$2:$G$65536,dati_bdv!$H$2:$H$65536))))),$A990,dati_bdv!J$2:J$65536)","v":0},{"$f":"SUMIF(IF(dati_pdc!$C990=1,dati_bdv!$C$2:$C$65536,IF(dati_pdc!$C990=2,dati_bdv!$D$2:$D$65536,IF(dati_pdc!$C990=3,dati_bdv!$E$2:$E$65536,IF(dati_pdc!$C990=4,dati_bdv!$F$2:$F$65536,IF(dati_pdc!$C990=5,dati_bdv!$G$2:$G$65536,dati_bdv!$H$2:$H$65536))))),$A990,dati_bdv!K$2:K$65536)","v":0},{"$f":"SUMIF(IF(dati_pdc!$C990=1,dati_bdv!$C$2:$C$65536,IF(dati_pdc!$C990=2,dati_bdv!$D$2:$D$65536,IF(dati_pdc!$C990=3,dati_bdv!$E$2:$E$65536,IF(dati_pdc!$C990=4,dati_bdv!$F$2:$F$65536,IF(dati_pdc!$C990=5,dati_bdv!$G$2:$G$65536,dati_bdv!$H$2:$H$65536))))),$A990,dati_bdv!L$2:L$65536)","v":0},{"$f":"SUMIF(IF(dati_pdc!$C990=1,dati_bdv!$C$2:$C$65536,IF(dati_pdc!$C990=2,dati_bdv!$D$2:$D$65536,IF(dati_pdc!$C990=3,dati_bdv!$E$2:$E$65536,IF(dati_pdc!$C990=4,dati_bdv!$F$2:$F$65536,IF(dati_pdc!$C990=5,dati_bdv!$G$2:$G$65536,dati_bdv!$H$2:$H$65536))))),$A990,dati_bdv!M$2:M$65536)","v":0},{"$f":"SUMIF(IF(dati_pdc!$C990=1,dati_bdv!$C$2:$C$65536,IF(dati_pdc!$C990=2,dati_bdv!$D$2:$D$65536,IF(dati_pdc!$C990=3,dati_bdv!$E$2:$E$65536,IF(dati_pdc!$C990=4,dati_bdv!$F$2:$F$65536,IF(dati_pdc!$C990=5,dati_bdv!$G$2:$G$65536,dati_bdv!$H$2:$H$65536))))),$A990,dati_bdv!N$2:N$65536)","v":0}]
[{"$f":"dati_pdc!A991","v":0},{"$f":"SUMIF(IF(dati_pdc!$C991=1,dati_bdv!$C$2:$C$65536,IF(dati_pdc!$C991=2,dati_bdv!$D$2:$D$65536,IF(dati_pdc!$C991=3,dati_bdv!$E$2:$E$65536,IF(dati_pdc!$C991=4,dati_bdv!$F$2:$F$65536,IF(dati_pdc!$C991=5,dati_bdv!$G$2:$G$65536,dati_bdv!$H$2:$H$65536))))),$A991,dati_bdv!J$2:J$65536)","v":0},{"$f":"SUMIF(IF(dati_pdc!$C991=1,dati_bdv!$C$2:$C$65536,IF(dati_pdc!$C991=2,dati_bdv!$D$2:$D$65536,IF(dati_pdc!$C991=3,dati_bdv!$E$2:$E$65536,IF(dati_pdc!$C991=4,dati_bdv!$F$2:$F$65536,IF(dati_pdc!$C991=5,dati_bdv!$G$2:$G$65536,dati_bdv!$H$2:$H$65536))))),$A991,dati_bdv!K$2:K$65536)","v":0},{"$f":"SUMIF(IF(dati_pdc!$C991=1,dati_bdv!$C$2:$C$65536,IF(dati_pdc!$C991=2,dati_bdv!$D$2:$D$65536,IF(dati_pdc!$C991=3,dati_bdv!$E$2:$E$65536,IF(dati_pdc!$C991=4,dati_bdv!$F$2:$F$65536,IF(dati_pdc!$C991=5,dati_bdv!$G$2:$G$65536,dati_bdv!$H$2:$H$65536))))),$A991,dati_bdv!L$2:L$65536)","v":0},{"$f":"SUMIF(IF(dati_pdc!$C991=1,dati_bdv!$C$2:$C$65536,IF(dati_pdc!$C991=2,dati_bdv!$D$2:$D$65536,IF(dati_pdc!$C991=3,dati_bdv!$E$2:$E$65536,IF(dati_pdc!$C991=4,dati_bdv!$F$2:$F$65536,IF(dati_pdc!$C991=5,dati_bdv!$G$2:$G$65536,dati_bdv!$H$2:$H$65536))))),$A991,dati_bdv!M$2:M$65536)","v":0},{"$f":"SUMIF(IF(dati_pdc!$C991=1,dati_bdv!$C$2:$C$65536,IF(dati_pdc!$C991=2,dati_bdv!$D$2:$D$65536,IF(dati_pdc!$C991=3,dati_bdv!$E$2:$E$65536,IF(dati_pdc!$C991=4,dati_bdv!$F$2:$F$65536,IF(dati_pdc!$C991=5,dati_bdv!$G$2:$G$65536,dati_bdv!$H$2:$H$65536))))),$A991,dati_bdv!N$2:N$65536)","v":0}]
[{"$f":"dati_pdc!A992","v":0},{"$f":"SUMIF(IF(dati_pdc!$C992=1,dati_bdv!$C$2:$C$65536,IF(dati_pdc!$C992=2,dati_bdv!$D$2:$D$65536,IF(dati_pdc!$C992=3,dati_bdv!$E$2:$E$65536,IF(dati_pdc!$C992=4,dati_bdv!$F$2:$F$65536,IF(dati_pdc!$C992=5,dati_bdv!$G$2:$G$65536,dati_bdv!$H$2:$H$65536))))),$A992,dati_bdv!J$2:J$65536)","v":0},{"$f":"SUMIF(IF(dati_pdc!$C992=1,dati_bdv!$C$2:$C$65536,IF(dati_pdc!$C992=2,dati_bdv!$D$2:$D$65536,IF(dati_pdc!$C992=3,dati_bdv!$E$2:$E$65536,IF(dati_pdc!$C992=4,dati_bdv!$F$2:$F$65536,IF(dati_pdc!$C992=5,dati_bdv!$G$2:$G$65536,dati_bdv!$H$2:$H$65536))))),$A992,dati_bdv!K$2:K$65536)","v":0},{"$f":"SUMIF(IF(dati_pdc!$C992=1,dati_bdv!$C$2:$C$65536,IF(dati_pdc!$C992=2,dati_bdv!$D$2:$D$65536,IF(dati_pdc!$C992=3,dati_bdv!$E$2:$E$65536,IF(dati_pdc!$C992=4,dati_bdv!$F$2:$F$65536,IF(dati_pdc!$C992=5,dati_bdv!$G$2:$G$65536,dati_bdv!$H$2:$H$65536))))),$A992,dati_bdv!L$2:L$65536)","v":0},{"$f":"SUMIF(IF(dati_pdc!$C992=1,dati_bdv!$C$2:$C$65536,IF(dati_pdc!$C992=2,dati_bdv!$D$2:$D$65536,IF(dati_pdc!$C992=3,dati_bdv!$E$2:$E$65536,IF(dati_pdc!$C992=4,dati_bdv!$F$2:$F$65536,IF(dati_pdc!$C992=5,dati_bdv!$G$2:$G$65536,dati_bdv!$H$2:$H$65536))))),$A992,dati_bdv!M$2:M$65536)","v":0},{"$f":"SUMIF(IF(dati_pdc!$C992=1,dati_bdv!$C$2:$C$65536,IF(dati_pdc!$C992=2,dati_bdv!$D$2:$D$65536,IF(dati_pdc!$C992=3,dati_bdv!$E$2:$E$65536,IF(dati_pdc!$C992=4,dati_bdv!$F$2:$F$65536,IF(dati_pdc!$C992=5,dati_bdv!$G$2:$G$65536,dati_bdv!$H$2:$H$65536))))),$A992,dati_bdv!N$2:N$65536)","v":0}]
[{"$f":"dati_pdc!A993","v":0},{"$f":"SUMIF(IF(dati_pdc!$C993=1,dati_bdv!$C$2:$C$65536,IF(dati_pdc!$C993=2,dati_bdv!$D$2:$D$65536,IF(dati_pdc!$C993=3,dati_bdv!$E$2:$E$65536,IF(dati_pdc!$C993=4,dati_bdv!$F$2:$F$65536,IF(dati_pdc!$C993=5,dati_bdv!$G$2:$G$65536,dati_bdv!$H$2:$H$65536))))),$A993,dati_bdv!J$2:J$65536)","v":0},{"$f":"SUMIF(IF(dati_pdc!$C993=1,dati_bdv!$C$2:$C$65536,IF(dati_pdc!$C993=2,dati_bdv!$D$2:$D$65536,IF(dati_pdc!$C993=3,dati_bdv!$E$2:$E$65536,IF(dati_pdc!$C993=4,dati_bdv!$F$2:$F$65536,IF(dati_pdc!$C993=5,dati_bdv!$G$2:$G$65536,dati_bdv!$H$2:$H$65536))))),$A993,dati_bdv!K$2:K$65536)","v":0},{"$f":"SUMIF(IF(dati_pdc!$C993=1,dati_bdv!$C$2:$C$65536,IF(dati_pdc!$C993=2,dati_bdv!$D$2:$D$65536,IF(dati_pdc!$C993=3,dati_bdv!$E$2:$E$65536,IF(dati_pdc!$C993=4,dati_bdv!$F$2:$F$65536,IF(dati_pdc!$C993=5,dati_bdv!$G$2:$G$65536,dati_bdv!$H$2:$H$65536))))),$A993,dati_bdv!L$2:L$65536)","v":0},{"$f":"SUMIF(IF(dati_pdc!$C993=1,dati_bdv!$C$2:$C$65536,IF(dati_pdc!$C993=2,dati_bdv!$D$2:$D$65536,IF(dati_pdc!$C993=3,dati_bdv!$E$2:$E$65536,IF(dati_pdc!$C993=4,dati_bdv!$F$2:$F$65536,IF(dati_pdc!$C993=5,dati_bdv!$G$2:$G$65536,dati_bdv!$H$2:$H$65536))))),$A993,dati_bdv!M$2:M$65536)","v":0},{"$f":"SUMIF(IF(dati_pdc!$C993=1,dati_bdv!$C$2:$C$65536,IF(dati_pdc!$C993=2,dati_bdv!$D$2:$D$65536,IF(dati_pdc!$C993=3,dati_bdv!$E$2:$E$65536,IF(dati_pdc!$C993=4,dati_bdv!$F$2:$F$65536,IF(dati_pdc!$C993=5,dati_bdv!$G$2:$G$65536,dati_bdv!$H$2:$H$65536))))),$A993,dati_bdv!N$2:N$65536)","v":0}]
[{"$f":"dati_pdc!A994","v":0},{"$f":"SUMIF(IF(dati_pdc!$C994=1,dati_bdv!$C$2:$C$65536,IF(dati_pdc!$C994=2,dati_bdv!$D$2:$D$65536,IF(dati_pdc!$C994=3,dati_bdv!$E$2:$E$65536,IF(dati_pdc!$C994=4,dati_bdv!$F$2:$F$65536,IF(dati_pdc!$C994=5,dati_bdv!$G$2:$G$65536,dati_bdv!$H$2:$H$65536))))),$A994,dati_bdv!J$2:J$65536)","v":0},{"$f":"SUMIF(IF(dati_pdc!$C994=1,dati_bdv!$C$2:$C$65536,IF(dati_pdc!$C994=2,dati_bdv!$D$2:$D$65536,IF(dati_pdc!$C994=3,dati_bdv!$E$2:$E$65536,IF(dati_pdc!$C994=4,dati_bdv!$F$2:$F$65536,IF(dati_pdc!$C994=5,dati_bdv!$G$2:$G$65536,dati_bdv!$H$2:$H$65536))))),$A994,dati_bdv!K$2:K$65536)","v":0},{"$f":"SUMIF(IF(dati_pdc!$C994=1,dati_bdv!$C$2:$C$65536,IF(dati_pdc!$C994=2,dati_bdv!$D$2:$D$65536,IF(dati_pdc!$C994=3,dati_bdv!$E$2:$E$65536,IF(dati_pdc!$C994=4,dati_bdv!$F$2:$F$65536,IF(dati_pdc!$C994=5,dati_bdv!$G$2:$G$65536,dati_bdv!$H$2:$H$65536))))),$A994,dati_bdv!L$2:L$65536)","v":0},{"$f":"SUMIF(IF(dati_pdc!$C994=1,dati_bdv!$C$2:$C$65536,IF(dati_pdc!$C994=2,dati_bdv!$D$2:$D$65536,IF(dati_pdc!$C994=3,dati_bdv!$E$2:$E$65536,IF(dati_pdc!$C994=4,dati_bdv!$F$2:$F$65536,IF(dati_pdc!$C994=5,dati_bdv!$G$2:$G$65536,dati_bdv!$H$2:$H$65536))))),$A994,dati_bdv!M$2:M$65536)","v":0},{"$f":"SUMIF(IF(dati_pdc!$C994=1,dati_bdv!$C$2:$C$65536,IF(dati_pdc!$C994=2,dati_bdv!$D$2:$D$65536,IF(dati_pdc!$C994=3,dati_bdv!$E$2:$E$65536,IF(dati_pdc!$C994=4,dati_bdv!$F$2:$F$65536,IF(dati_pdc!$C994=5,dati_bdv!$G$2:$G$65536,dati_bdv!$H$2:$H$65536))))),$A994,dati_bdv!N$2:N$65536)","v":0}]
[{"$f":"dati_pdc!A995","v":0},{"$f":"SUMIF(IF(dati_pdc!$C995=1,dati_bdv!$C$2:$C$65536,IF(dati_pdc!$C995=2,dati_bdv!$D$2:$D$65536,IF(dati_pdc!$C995=3,dati_bdv!$E$2:$E$65536,IF(dati_pdc!$C995=4,dati_bdv!$F$2:$F$65536,IF(dati_pdc!$C995=5,dati_bdv!$G$2:$G$65536,dati_bdv!$H$2:$H$65536))))),$A995,dati_bdv!J$2:J$65536)","v":0},{"$f":"SUMIF(IF(dati_pdc!$C995=1,dati_bdv!$C$2:$C$65536,IF(dati_pdc!$C995=2,dati_bdv!$D$2:$D$65536,IF(dati_pdc!$C995=3,dati_bdv!$E$2:$E$65536,IF(dati_pdc!$C995=4,dati_bdv!$F$2:$F$65536,IF(dati_pdc!$C995=5,dati_bdv!$G$2:$G$65536,dati_bdv!$H$2:$H$65536))))),$A995,dati_bdv!K$2:K$65536)","v":0},{"$f":"SUMIF(IF(dati_pdc!$C995=1,dati_bdv!$C$2:$C$65536,IF(dati_pdc!$C995=2,dati_bdv!$D$2:$D$65536,IF(dati_pdc!$C995=3,dati_bdv!$E$2:$E$65536,IF(dati_pdc!$C995=4,dati_bdv!$F$2:$F$65536,IF(dati_pdc!$C995=5,dati_bdv!$G$2:$G$65536,dati_bdv!$H$2:$H$65536))))),$A995,dati_bdv!L$2:L$65536)","v":0},{"$f":"SUMIF(IF(dati_pdc!$C995=1,dati_bdv!$C$2:$C$65536,IF(dati_pdc!$C995=2,dati_bdv!$D$2:$D$65536,IF(dati_pdc!$C995=3,dati_bdv!$E$2:$E$65536,IF(dati_pdc!$C995=4,dati_bdv!$F$2:$F$65536,IF(dati_pdc!$C995=5,dati_bdv!$G$2:$G$65536,dati_bdv!$H$2:$H$65536))))),$A995,dati_bdv!M$2:M$65536)","v":0},{"$f":"SUMIF(IF(dati_pdc!$C995=1,dati_bdv!$C$2:$C$65536,IF(dati_pdc!$C995=2,dati_bdv!$D$2:$D$65536,IF(dati_pdc!$C995=3,dati_bdv!$E$2:$E$65536,IF(dati_pdc!$C995=4,dati_bdv!$F$2:$F$65536,IF(dati_pdc!$C995=5,dati_bdv!$G$2:$G$65536,dati_bdv!$H$2:$H$65536))))),$A995,dati_bdv!N$2:N$65536)","v":0}]
[{"$f":"dati_pdc!A996","v":0},{"$f":"SUMIF(IF(dati_pdc!$C996=1,dati_bdv!$C$2:$C$65536,IF(dati_pdc!$C996=2,dati_bdv!$D$2:$D$65536,IF(dati_pdc!$C996=3,dati_bdv!$E$2:$E$65536,IF(dati_pdc!$C996=4,dati_bdv!$F$2:$F$65536,IF(dati_pdc!$C996=5,dati_bdv!$G$2:$G$65536,dati_bdv!$H$2:$H$65536))))),$A996,dati_bdv!J$2:J$65536)","v":0},{"$f":"SUMIF(IF(dati_pdc!$C996=1,dati_bdv!$C$2:$C$65536,IF(dati_pdc!$C996=2,dati_bdv!$D$2:$D$65536,IF(dati_pdc!$C996=3,dati_bdv!$E$2:$E$65536,IF(dati_pdc!$C996=4,dati_bdv!$F$2:$F$65536,IF(dati_pdc!$C996=5,dati_bdv!$G$2:$G$65536,dati_bdv!$H$2:$H$65536))))),$A996,dati_bdv!K$2:K$65536)","v":0},{"$f":"SUMIF(IF(dati_pdc!$C996=1,dati_bdv!$C$2:$C$65536,IF(dati_pdc!$C996=2,dati_bdv!$D$2:$D$65536,IF(dati_pdc!$C996=3,dati_bdv!$E$2:$E$65536,IF(dati_pdc!$C996=4,dati_bdv!$F$2:$F$65536,IF(dati_pdc!$C996=5,dati_bdv!$G$2:$G$65536,dati_bdv!$H$2:$H$65536))))),$A996,dati_bdv!L$2:L$65536)","v":0},{"$f":"SUMIF(IF(dati_pdc!$C996=1,dati_bdv!$C$2:$C$65536,IF(dati_pdc!$C996=2,dati_bdv!$D$2:$D$65536,IF(dati_pdc!$C996=3,dati_bdv!$E$2:$E$65536,IF(dati_pdc!$C996=4,dati_bdv!$F$2:$F$65536,IF(dati_pdc!$C996=5,dati_bdv!$G$2:$G$65536,dati_bdv!$H$2:$H$65536))))),$A996,dati_bdv!M$2:M$65536)","v":0},{"$f":"SUMIF(IF(dati_pdc!$C996=1,dati_bdv!$C$2:$C$65536,IF(dati_pdc!$C996=2,dati_bdv!$D$2:$D$65536,IF(dati_pdc!$C996=3,dati_bdv!$E$2:$E$65536,IF(dati_pdc!$C996=4,dati_bdv!$F$2:$F$65536,IF(dati_pdc!$C996=5,dati_bdv!$G$2:$G$65536,dati_bdv!$H$2:$H$65536))))),$A996,dati_bdv!N$2:N$65536)","v":0}]
[{"$f":"dati_pdc!A997","v":0},{"$f":"SUMIF(IF(dati_pdc!$C997=1,dati_bdv!$C$2:$C$65536,IF(dati_pdc!$C997=2,dati_bdv!$D$2:$D$65536,IF(dati_pdc!$C997=3,dati_bdv!$E$2:$E$65536,IF(dati_pdc!$C997=4,dati_bdv!$F$2:$F$65536,IF(dati_pdc!$C997=5,dati_bdv!$G$2:$G$65536,dati_bdv!$H$2:$H$65536))))),$A997,dati_bdv!J$2:J$65536)","v":0},{"$f":"SUMIF(IF(dati_pdc!$C997=1,dati_bdv!$C$2:$C$65536,IF(dati_pdc!$C997=2,dati_bdv!$D$2:$D$65536,IF(dati_pdc!$C997=3,dati_bdv!$E$2:$E$65536,IF(dati_pdc!$C997=4,dati_bdv!$F$2:$F$65536,IF(dati_pdc!$C997=5,dati_bdv!$G$2:$G$65536,dati_bdv!$H$2:$H$65536))))),$A997,dati_bdv!K$2:K$65536)","v":0},{"$f":"SUMIF(IF(dati_pdc!$C997=1,dati_bdv!$C$2:$C$65536,IF(dati_pdc!$C997=2,dati_bdv!$D$2:$D$65536,IF(dati_pdc!$C997=3,dati_bdv!$E$2:$E$65536,IF(dati_pdc!$C997=4,dati_bdv!$F$2:$F$65536,IF(dati_pdc!$C997=5,dati_bdv!$G$2:$G$65536,dati_bdv!$H$2:$H$65536))))),$A997,dati_bdv!L$2:L$65536)","v":0},{"$f":"SUMIF(IF(dati_pdc!$C997=1,dati_bdv!$C$2:$C$65536,IF(dati_pdc!$C997=2,dati_bdv!$D$2:$D$65536,IF(dati_pdc!$C997=3,dati_bdv!$E$2:$E$65536,IF(dati_pdc!$C997=4,dati_bdv!$F$2:$F$65536,IF(dati_pdc!$C997=5,dati_bdv!$G$2:$G$65536,dati_bdv!$H$2:$H$65536))))),$A997,dati_bdv!M$2:M$65536)","v":0},{"$f":"SUMIF(IF(dati_pdc!$C997=1,dati_bdv!$C$2:$C$65536,IF(dati_pdc!$C997=2,dati_bdv!$D$2:$D$65536,IF(dati_pdc!$C997=3,dati_bdv!$E$2:$E$65536,IF(dati_pdc!$C997=4,dati_bdv!$F$2:$F$65536,IF(dati_pdc!$C997=5,dati_bdv!$G$2:$G$65536,dati_bdv!$H$2:$H$65536))))),$A997,dati_bdv!N$2:N$65536)","v":0}]
[{"$f":"dati_pdc!A998","v":0},{"$f":"SUMIF(IF(dati_pdc!$C998=1,dati_bdv!$C$2:$C$65536,IF(dati_pdc!$C998=2,dati_bdv!$D$2:$D$65536,IF(dati_pdc!$C998=3,dati_bdv!$E$2:$E$65536,IF(dati_pdc!$C998=4,dati_bdv!$F$2:$F$65536,IF(dati_pdc!$C998=5,dati_bdv!$G$2:$G$65536,dati_bdv!$H$2:$H$65536))))),$A998,dati_bdv!J$2:J$65536)","v":0},{"$f":"SUMIF(IF(dati_pdc!$C998=1,dati_bdv!$C$2:$C$65536,IF(dati_pdc!$C998=2,dati_bdv!$D$2:$D$65536,IF(dati_pdc!$C998=3,dati_bdv!$E$2:$E$65536,IF(dati_pdc!$C998=4,dati_bdv!$F$2:$F$65536,IF(dati_pdc!$C998=5,dati_bdv!$G$2:$G$65536,dati_bdv!$H$2:$H$65536))))),$A998,dati_bdv!K$2:K$65536)","v":0},{"$f":"SUMIF(IF(dati_pdc!$C998=1,dati_bdv!$C$2:$C$65536,IF(dati_pdc!$C998=2,dati_bdv!$D$2:$D$65536,IF(dati_pdc!$C998=3,dati_bdv!$E$2:$E$65536,IF(dati_pdc!$C998=4,dati_bdv!$F$2:$F$65536,IF(dati_pdc!$C998=5,dati_bdv!$G$2:$G$65536,dati_bdv!$H$2:$H$65536))))),$A998,dati_bdv!L$2:L$65536)","v":0},{"$f":"SUMIF(IF(dati_pdc!$C998=1,dati_bdv!$C$2:$C$65536,IF(dati_pdc!$C998=2,dati_bdv!$D$2:$D$65536,IF(dati_pdc!$C998=3,dati_bdv!$E$2:$E$65536,IF(dati_pdc!$C998=4,dati_bdv!$F$2:$F$65536,IF(dati_pdc!$C998=5,dati_bdv!$G$2:$G$65536,dati_bdv!$H$2:$H$65536))))),$A998,dati_bdv!M$2:M$65536)","v":0},{"$f":"SUMIF(IF(dati_pdc!$C998=1,dati_bdv!$C$2:$C$65536,IF(dati_pdc!$C998=2,dati_bdv!$D$2:$D$65536,IF(dati_pdc!$C998=3,dati_bdv!$E$2:$E$65536,IF(dati_pdc!$C998=4,dati_bdv!$F$2:$F$65536,IF(dati_pdc!$C998=5,dati_bdv!$G$2:$G$65536,dati_bdv!$H$2:$H$65536))))),$A998,dati_bdv!N$2:N$65536)","v":0}]
[{"$f":"dati_pdc!A999","v":0},{"$f":"SUMIF(IF(dati_pdc!$C999=1,dati_bdv!$C$2:$C$65536,IF(dati_pdc!$C999=2,dati_bdv!$D$2:$D$65536,IF(dati_pdc!$C999=3,dati_bdv!$E$2:$E$65536,IF(dati_pdc!$C999=4,dati_bdv!$F$2:$F$65536,IF(dati_pdc!$C999=5,dati_bdv!$G$2:$G$65536,dati_bdv!$H$2:$H$65536))))),$A999,dati_bdv!J$2:J$65536)","v":0},{"$f":"SUMIF(IF(dati_pdc!$C999=1,dati_bdv!$C$2:$C$65536,IF(dati_pdc!$C999=2,dati_bdv!$D$2:$D$65536,IF(dati_pdc!$C999=3,dati_bdv!$E$2:$E$65536,IF(dati_pdc!$C999=4,dati_bdv!$F$2:$F$65536,IF(dati_pdc!$C999=5,dati_bdv!$G$2:$G$65536,dati_bdv!$H$2:$H$65536))))),$A999,dati_bdv!K$2:K$65536)","v":0},{"$f":"SUMIF(IF(dati_pdc!$C999=1,dati_bdv!$C$2:$C$65536,IF(dati_pdc!$C999=2,dati_bdv!$D$2:$D$65536,IF(dati_pdc!$C999=3,dati_bdv!$E$2:$E$65536,IF(dati_pdc!$C999=4,dati_bdv!$F$2:$F$65536,IF(dati_pdc!$C999=5,dati_bdv!$G$2:$G$65536,dati_bdv!$H$2:$H$65536))))),$A999,dati_bdv!L$2:L$65536)","v":0},{"$f":"SUMIF(IF(dati_pdc!$C999=1,dati_bdv!$C$2:$C$65536,IF(dati_pdc!$C999=2,dati_bdv!$D$2:$D$65536,IF(dati_pdc!$C999=3,dati_bdv!$E$2:$E$65536,IF(dati_pdc!$C999=4,dati_bdv!$F$2:$F$65536,IF(dati_pdc!$C999=5,dati_bdv!$G$2:$G$65536,dati_bdv!$H$2:$H$65536))))),$A999,dati_bdv!M$2:M$65536)","v":0},{"$f":"SUMIF(IF(dati_pdc!$C999=1,dati_bdv!$C$2:$C$65536,IF(dati_pdc!$C999=2,dati_bdv!$D$2:$D$65536,IF(dati_pdc!$C999=3,dati_bdv!$E$2:$E$65536,IF(dati_pdc!$C999=4,dati_bdv!$F$2:$F$65536,IF(dati_pdc!$C999=5,dati_bdv!$G$2:$G$65536,dati_bdv!$H$2:$H$65536))))),$A999,dati_bdv!N$2:N$65536)","v":0}]
[{"$f":"dati_pdc!A1000","v":0},{"$f":"SUMIF(IF(dati_pdc!$C1000=1,dati_bdv!$C$2:$C$65536,IF(dati_pdc!$C1000=2,dati_bdv!$D$2:$D$65536,IF(dati_pdc!$C1000=3,dati_bdv!$E$2:$E$65536,IF(dati_pdc!$C1000=4,dati_bdv!$F$2:$F$65536,IF(dati_pdc!$C1000=5,dati_bdv!$G$2:$G$65536,dati_bdv!$H$2:$H$65536))))),$A1000,dati_bdv!J$2:J$65536)","v":0},{"$f":"SUMIF(IF(dati_pdc!$C1000=1,dati_bdv!$C$2:$C$65536,IF(dati_pdc!$C1000=2,dati_bdv!$D$2:$D$65536,IF(dati_pdc!$C1000=3,dati_bdv!$E$2:$E$65536,IF(dati_pdc!$C1000=4,dati_bdv!$F$2:$F$65536,IF(dati_pdc!$C1000=5,dati_bdv!$G$2:$G$65536,dati_bdv!$H$2:$H$65536))))),$A1000,dati_bdv!K$2:K$65536)","v":0},{"$f":"SUMIF(IF(dati_pdc!$C1000=1,dati_bdv!$C$2:$C$65536,IF(dati_pdc!$C1000=2,dati_bdv!$D$2:$D$65536,IF(dati_pdc!$C1000=3,dati_bdv!$E$2:$E$65536,IF(dati_pdc!$C1000=4,dati_bdv!$F$2:$F$65536,IF(dati_pdc!$C1000=5,dati_bdv!$G$2:$G$65536,dati_bdv!$H$2:$H$65536))))),$A1000,dati_bdv!L$2:L$65536)","v":0},{"$f":"SUMIF(IF(dati_pdc!$C1000=1,dati_bdv!$C$2:$C$65536,IF(dati_pdc!$C1000=2,dati_bdv!$D$2:$D$65536,IF(dati_pdc!$C1000=3,dati_bdv!$E$2:$E$65536,IF(dati_pdc!$C1000=4,dati_bdv!$F$2:$F$65536,IF(dati_pdc!$C1000=5,dati_bdv!$G$2:$G$65536,dati_bdv!$H$2:$H$65536))))),$A1000,dati_bdv!M$2:M$65536)","v":0},{"$f":"SUMIF(IF(dati_pdc!$C1000=1,dati_bdv!$C$2:$C$65536,IF(dati_pdc!$C1000=2,dati_bdv!$D$2:$D$65536,IF(dati_pdc!$C1000=3,dati_bdv!$E$2:$E$65536,IF(dati_pdc!$C1000=4,dati_bdv!$F$2:$F$65536,IF(dati_pdc!$C1000=5,dati_bdv!$G$2:$G$65536,dati_bdv!$H$2:$H$65536))))),$A1000,dati_bdv!N$2:N$65536)","v":0}]
[{"$f":"dati_pdc!A1001","v":0},{"$f":"SUMIF(IF(dati_pdc!$C1001=1,dati_bdv!$C$2:$C$65536,IF(dati_pdc!$C1001=2,dati_bdv!$D$2:$D$65536,IF(dati_pdc!$C1001=3,dati_bdv!$E$2:$E$65536,IF(dati_pdc!$C1001=4,dati_bdv!$F$2:$F$65536,IF(dati_pdc!$C1001=5,dati_bdv!$G$2:$G$65536,dati_bdv!$H$2:$H$65536))))),$A1001,dati_bdv!J$2:J$65536)","v":0},{"$f":"SUMIF(IF(dati_pdc!$C1001=1,dati_bdv!$C$2:$C$65536,IF(dati_pdc!$C1001=2,dati_bdv!$D$2:$D$65536,IF(dati_pdc!$C1001=3,dati_bdv!$E$2:$E$65536,IF(dati_pdc!$C1001=4,dati_bdv!$F$2:$F$65536,IF(dati_pdc!$C1001=5,dati_bdv!$G$2:$G$65536,dati_bdv!$H$2:$H$65536))))),$A1001,dati_bdv!K$2:K$65536)","v":0},{"$f":"SUMIF(IF(dati_pdc!$C1001=1,dati_bdv!$C$2:$C$65536,IF(dati_pdc!$C1001=2,dati_bdv!$D$2:$D$65536,IF(dati_pdc!$C1001=3,dati_bdv!$E$2:$E$65536,IF(dati_pdc!$C1001=4,dati_bdv!$F$2:$F$65536,IF(dati_pdc!$C1001=5,dati_bdv!$G$2:$G$65536,dati_bdv!$H$2:$H$65536))))),$A1001,dati_bdv!L$2:L$65536)","v":0},{"$f":"SUMIF(IF(dati_pdc!$C1001=1,dati_bdv!$C$2:$C$65536,IF(dati_pdc!$C1001=2,dati_bdv!$D$2:$D$65536,IF(dati_pdc!$C1001=3,dati_bdv!$E$2:$E$65536,IF(dati_pdc!$C1001=4,dati_bdv!$F$2:$F$65536,IF(dati_pdc!$C1001=5,dati_bdv!$G$2:$G$65536,dati_bdv!$H$2:$H$65536))))),$A1001,dati_bdv!M$2:M$65536)","v":0},{"$f":"SUMIF(IF(dati_pdc!$C1001=1,dati_bdv!$C$2:$C$65536,IF(dati_pdc!$C1001=2,dati_bdv!$D$2:$D$65536,IF(dati_pdc!$C1001=3,dati_bdv!$E$2:$E$65536,IF(dati_pdc!$C1001=4,dati_bdv!$F$2:$F$65536,IF(dati_pdc!$C1001=5,dati_bdv!$G$2:$G$65536,dati_bdv!$H$2:$H$65536))))),$A1001,dati_bdv!N$2:N$65536)","v":0}]
[{"$f":"dati_pdc!A1002","v":0},{"$f":"SUMIF(IF(dati_pdc!$C1002=1,dati_bdv!$C$2:$C$65536,IF(dati_pdc!$C1002=2,dati_bdv!$D$2:$D$65536,IF(dati_pdc!$C1002=3,dati_bdv!$E$2:$E$65536,IF(dati_pdc!$C1002=4,dati_bdv!$F$2:$F$65536,IF(dati_pdc!$C1002=5,dati_bdv!$G$2:$G$65536,dati_bdv!$H$2:$H$65536))))),$A1002,dati_bdv!J$2:J$65536)","v":0},{"$f":"SUMIF(IF(dati_pdc!$C1002=1,dati_bdv!$C$2:$C$65536,IF(dati_pdc!$C1002=2,dati_bdv!$D$2:$D$65536,IF(dati_pdc!$C1002=3,dati_bdv!$E$2:$E$65536,IF(dati_pdc!$C1002=4,dati_bdv!$F$2:$F$65536,IF(dati_pdc!$C1002=5,dati_bdv!$G$2:$G$65536,dati_bdv!$H$2:$H$65536))))),$A1002,dati_bdv!K$2:K$65536)","v":0},{"$f":"SUMIF(IF(dati_pdc!$C1002=1,dati_bdv!$C$2:$C$65536,IF(dati_pdc!$C1002=2,dati_bdv!$D$2:$D$65536,IF(dati_pdc!$C1002=3,dati_bdv!$E$2:$E$65536,IF(dati_pdc!$C1002=4,dati_bdv!$F$2:$F$65536,IF(dati_pdc!$C1002=5,dati_bdv!$G$2:$G$65536,dati_bdv!$H$2:$H$65536))))),$A1002,dati_bdv!L$2:L$65536)","v":0},{"$f":"SUMIF(IF(dati_pdc!$C1002=1,dati_bdv!$C$2:$C$65536,IF(dati_pdc!$C1002=2,dati_bdv!$D$2:$D$65536,IF(dati_pdc!$C1002=3,dati_bdv!$E$2:$E$65536,IF(dati_pdc!$C1002=4,dati_bdv!$F$2:$F$65536,IF(dati_pdc!$C1002=5,dati_bdv!$G$2:$G$65536,dati_bdv!$H$2:$H$65536))))),$A1002,dati_bdv!M$2:M$65536)","v":0},{"$f":"SUMIF(IF(dati_pdc!$C1002=1,dati_bdv!$C$2:$C$65536,IF(dati_pdc!$C1002=2,dati_bdv!$D$2:$D$65536,IF(dati_pdc!$C1002=3,dati_bdv!$E$2:$E$65536,IF(dati_pdc!$C1002=4,dati_bdv!$F$2:$F$65536,IF(dati_pdc!$C1002=5,dati_bdv!$G$2:$G$65536,dati_bdv!$H$2:$H$65536))))),$A1002,dati_bdv!N$2:N$65536)","v":0}]
[{"$f":"dati_pdc!A1003","v":0},{"$f":"SUMIF(IF(dati_pdc!$C1003=1,dati_bdv!$C$2:$C$65536,IF(dati_pdc!$C1003=2,dati_bdv!$D$2:$D$65536,IF(dati_pdc!$C1003=3,dati_bdv!$E$2:$E$65536,IF(dati_pdc!$C1003=4,dati_bdv!$F$2:$F$65536,IF(dati_pdc!$C1003=5,dati_bdv!$G$2:$G$65536,dati_bdv!$H$2:$H$65536))))),$A1003,dati_bdv!J$2:J$65536)","v":0},{"$f":"SUMIF(IF(dati_pdc!$C1003=1,dati_bdv!$C$2:$C$65536,IF(dati_pdc!$C1003=2,dati_bdv!$D$2:$D$65536,IF(dati_pdc!$C1003=3,dati_bdv!$E$2:$E$65536,IF(dati_pdc!$C1003=4,dati_bdv!$F$2:$F$65536,IF(dati_pdc!$C1003=5,dati_bdv!$G$2:$G$65536,dati_bdv!$H$2:$H$65536))))),$A1003,dati_bdv!K$2:K$65536)","v":0},{"$f":"SUMIF(IF(dati_pdc!$C1003=1,dati_bdv!$C$2:$C$65536,IF(dati_pdc!$C1003=2,dati_bdv!$D$2:$D$65536,IF(dati_pdc!$C1003=3,dati_bdv!$E$2:$E$65536,IF(dati_pdc!$C1003=4,dati_bdv!$F$2:$F$65536,IF(dati_pdc!$C1003=5,dati_bdv!$G$2:$G$65536,dati_bdv!$H$2:$H$65536))))),$A1003,dati_bdv!L$2:L$65536)","v":0},{"$f":"SUMIF(IF(dati_pdc!$C1003=1,dati_bdv!$C$2:$C$65536,IF(dati_pdc!$C1003=2,dati_bdv!$D$2:$D$65536,IF(dati_pdc!$C1003=3,dati_bdv!$E$2:$E$65536,IF(dati_pdc!$C1003=4,dati_bdv!$F$2:$F$65536,IF(dati_pdc!$C1003=5,dati_bdv!$G$2:$G$65536,dati_bdv!$H$2:$H$65536))))),$A1003,dati_bdv!M$2:M$65536)","v":0},{"$f":"SUMIF(IF(dati_pdc!$C1003=1,dati_bdv!$C$2:$C$65536,IF(dati_pdc!$C1003=2,dati_bdv!$D$2:$D$65536,IF(dati_pdc!$C1003=3,dati_bdv!$E$2:$E$65536,IF(dati_pdc!$C1003=4,dati_bdv!$F$2:$F$65536,IF(dati_pdc!$C1003=5,dati_bdv!$G$2:$G$65536,dati_bdv!$H$2:$H$65536))))),$A1003,dati_bdv!N$2:N$65536)","v":0}]
[{"$f":"dati_pdc!A1004","v":0},{"$f":"SUMIF(IF(dati_pdc!$C1004=1,dati_bdv!$C$2:$C$65536,IF(dati_pdc!$C1004=2,dati_bdv!$D$2:$D$65536,IF(dati_pdc!$C1004=3,dati_bdv!$E$2:$E$65536,IF(dati_pdc!$C1004=4,dati_bdv!$F$2:$F$65536,IF(dati_pdc!$C1004=5,dati_bdv!$G$2:$G$65536,dati_bdv!$H$2:$H$65536))))),$A1004,dati_bdv!J$2:J$65536)","v":0},{"$f":"SUMIF(IF(dati_pdc!$C1004=1,dati_bdv!$C$2:$C$65536,IF(dati_pdc!$C1004=2,dati_bdv!$D$2:$D$65536,IF(dati_pdc!$C1004=3,dati_bdv!$E$2:$E$65536,IF(dati_pdc!$C1004=4,dati_bdv!$F$2:$F$65536,IF(dati_pdc!$C1004=5,dati_bdv!$G$2:$G$65536,dati_bdv!$H$2:$H$65536))))),$A1004,dati_bdv!K$2:K$65536)","v":0},{"$f":"SUMIF(IF(dati_pdc!$C1004=1,dati_bdv!$C$2:$C$65536,IF(dati_pdc!$C1004=2,dati_bdv!$D$2:$D$65536,IF(dati_pdc!$C1004=3,dati_bdv!$E$2:$E$65536,IF(dati_pdc!$C1004=4,dati_bdv!$F$2:$F$65536,IF(dati_pdc!$C1004=5,dati_bdv!$G$2:$G$65536,dati_bdv!$H$2:$H$65536))))),$A1004,dati_bdv!L$2:L$65536)","v":0},{"$f":"SUMIF(IF(dati_pdc!$C1004=1,dati_bdv!$C$2:$C$65536,IF(dati_pdc!$C1004=2,dati_bdv!$D$2:$D$65536,IF(dati_pdc!$C1004=3,dati_bdv!$E$2:$E$65536,IF(dati_pdc!$C1004=4,dati_bdv!$F$2:$F$65536,IF(dati_pdc!$C1004=5,dati_bdv!$G$2:$G$65536,dati_bdv!$H$2:$H$65536))))),$A1004,dati_bdv!M$2:M$65536)","v":0},{"$f":"SUMIF(IF(dati_pdc!$C1004=1,dati_bdv!$C$2:$C$65536,IF(dati_pdc!$C1004=2,dati_bdv!$D$2:$D$65536,IF(dati_pdc!$C1004=3,dati_bdv!$E$2:$E$65536,IF(dati_pdc!$C1004=4,dati_bdv!$F$2:$F$65536,IF(dati_pdc!$C1004=5,dati_bdv!$G$2:$G$65536,dati_bdv!$H$2:$H$65536))))),$A1004,dati_bdv!N$2:N$65536)","v":0}]
[{"$f":"dati_pdc!A1005","v":0},{"$f":"SUMIF(IF(dati_pdc!$C1005=1,dati_bdv!$C$2:$C$65536,IF(dati_pdc!$C1005=2,dati_bdv!$D$2:$D$65536,IF(dati_pdc!$C1005=3,dati_bdv!$E$2:$E$65536,IF(dati_pdc!$C1005=4,dati_bdv!$F$2:$F$65536,IF(dati_pdc!$C1005=5,dati_bdv!$G$2:$G$65536,dati_bdv!$H$2:$H$65536))))),$A1005,dati_bdv!J$2:J$65536)","v":0},{"$f":"SUMIF(IF(dati_pdc!$C1005=1,dati_bdv!$C$2:$C$65536,IF(dati_pdc!$C1005=2,dati_bdv!$D$2:$D$65536,IF(dati_pdc!$C1005=3,dati_bdv!$E$2:$E$65536,IF(dati_pdc!$C1005=4,dati_bdv!$F$2:$F$65536,IF(dati_pdc!$C1005=5,dati_bdv!$G$2:$G$65536,dati_bdv!$H$2:$H$65536))))),$A1005,dati_bdv!K$2:K$65536)","v":0},{"$f":"SUMIF(IF(dati_pdc!$C1005=1,dati_bdv!$C$2:$C$65536,IF(dati_pdc!$C1005=2,dati_bdv!$D$2:$D$65536,IF(dati_pdc!$C1005=3,dati_bdv!$E$2:$E$65536,IF(dati_pdc!$C1005=4,dati_bdv!$F$2:$F$65536,IF(dati_pdc!$C1005=5,dati_bdv!$G$2:$G$65536,dati_bdv!$H$2:$H$65536))))),$A1005,dati_bdv!L$2:L$65536)","v":0},{"$f":"SUMIF(IF(dati_pdc!$C1005=1,dati_bdv!$C$2:$C$65536,IF(dati_pdc!$C1005=2,dati_bdv!$D$2:$D$65536,IF(dati_pdc!$C1005=3,dati_bdv!$E$2:$E$65536,IF(dati_pdc!$C1005=4,dati_bdv!$F$2:$F$65536,IF(dati_pdc!$C1005=5,dati_bdv!$G$2:$G$65536,dati_bdv!$H$2:$H$65536))))),$A1005,dati_bdv!M$2:M$65536)","v":0},{"$f":"SUMIF(IF(dati_pdc!$C1005=1,dati_bdv!$C$2:$C$65536,IF(dati_pdc!$C1005=2,dati_bdv!$D$2:$D$65536,IF(dati_pdc!$C1005=3,dati_bdv!$E$2:$E$65536,IF(dati_pdc!$C1005=4,dati_bdv!$F$2:$F$65536,IF(dati_pdc!$C1005=5,dati_bdv!$G$2:$G$65536,dati_bdv!$H$2:$H$65536))))),$A1005,dati_bdv!N$2:N$65536)","v":0}]
[{"$f":"dati_pdc!A1006","v":0},{"$f":"SUMIF(IF(dati_pdc!$C1006=1,dati_bdv!$C$2:$C$65536,IF(dati_pdc!$C1006=2,dati_bdv!$D$2:$D$65536,IF(dati_pdc!$C1006=3,dati_bdv!$E$2:$E$65536,IF(dati_pdc!$C1006=4,dati_bdv!$F$2:$F$65536,IF(dati_pdc!$C1006=5,dati_bdv!$G$2:$G$65536,dati_bdv!$H$2:$H$65536))))),$A1006,dati_bdv!J$2:J$65536)","v":0},{"$f":"SUMIF(IF(dati_pdc!$C1006=1,dati_bdv!$C$2:$C$65536,IF(dati_pdc!$C1006=2,dati_bdv!$D$2:$D$65536,IF(dati_pdc!$C1006=3,dati_bdv!$E$2:$E$65536,IF(dati_pdc!$C1006=4,dati_bdv!$F$2:$F$65536,IF(dati_pdc!$C1006=5,dati_bdv!$G$2:$G$65536,dati_bdv!$H$2:$H$65536))))),$A1006,dati_bdv!K$2:K$65536)","v":0},{"$f":"SUMIF(IF(dati_pdc!$C1006=1,dati_bdv!$C$2:$C$65536,IF(dati_pdc!$C1006=2,dati_bdv!$D$2:$D$65536,IF(dati_pdc!$C1006=3,dati_bdv!$E$2:$E$65536,IF(dati_pdc!$C1006=4,dati_bdv!$F$2:$F$65536,IF(dati_pdc!$C1006=5,dati_bdv!$G$2:$G$65536,dati_bdv!$H$2:$H$65536))))),$A1006,dati_bdv!L$2:L$65536)","v":0},{"$f":"SUMIF(IF(dati_pdc!$C1006=1,dati_bdv!$C$2:$C$65536,IF(dati_pdc!$C1006=2,dati_bdv!$D$2:$D$65536,IF(dati_pdc!$C1006=3,dati_bdv!$E$2:$E$65536,IF(dati_pdc!$C1006=4,dati_bdv!$F$2:$F$65536,IF(dati_pdc!$C1006=5,dati_bdv!$G$2:$G$65536,dati_bdv!$H$2:$H$65536))))),$A1006,dati_bdv!M$2:M$65536)","v":0},{"$f":"SUMIF(IF(dati_pdc!$C1006=1,dati_bdv!$C$2:$C$65536,IF(dati_pdc!$C1006=2,dati_bdv!$D$2:$D$65536,IF(dati_pdc!$C1006=3,dati_bdv!$E$2:$E$65536,IF(dati_pdc!$C1006=4,dati_bdv!$F$2:$F$65536,IF(dati_pdc!$C1006=5,dati_bdv!$G$2:$G$65536,dati_bdv!$H$2:$H$65536))))),$A1006,dati_bdv!N$2:N$65536)","v":0}]
[{"$f":"dati_pdc!A1007","v":0},{"$f":"SUMIF(IF(dati_pdc!$C1007=1,dati_bdv!$C$2:$C$65536,IF(dati_pdc!$C1007=2,dati_bdv!$D$2:$D$65536,IF(dati_pdc!$C1007=3,dati_bdv!$E$2:$E$65536,IF(dati_pdc!$C1007=4,dati_bdv!$F$2:$F$65536,IF(dati_pdc!$C1007=5,dati_bdv!$G$2:$G$65536,dati_bdv!$H$2:$H$65536))))),$A1007,dati_bdv!J$2:J$65536)","v":0},{"$f":"SUMIF(IF(dati_pdc!$C1007=1,dati_bdv!$C$2:$C$65536,IF(dati_pdc!$C1007=2,dati_bdv!$D$2:$D$65536,IF(dati_pdc!$C1007=3,dati_bdv!$E$2:$E$65536,IF(dati_pdc!$C1007=4,dati_bdv!$F$2:$F$65536,IF(dati_pdc!$C1007=5,dati_bdv!$G$2:$G$65536,dati_bdv!$H$2:$H$65536))))),$A1007,dati_bdv!K$2:K$65536)","v":0},{"$f":"SUMIF(IF(dati_pdc!$C1007=1,dati_bdv!$C$2:$C$65536,IF(dati_pdc!$C1007=2,dati_bdv!$D$2:$D$65536,IF(dati_pdc!$C1007=3,dati_bdv!$E$2:$E$65536,IF(dati_pdc!$C1007=4,dati_bdv!$F$2:$F$65536,IF(dati_pdc!$C1007=5,dati_bdv!$G$2:$G$65536,dati_bdv!$H$2:$H$65536))))),$A1007,dati_bdv!L$2:L$65536)","v":0},{"$f":"SUMIF(IF(dati_pdc!$C1007=1,dati_bdv!$C$2:$C$65536,IF(dati_pdc!$C1007=2,dati_bdv!$D$2:$D$65536,IF(dati_pdc!$C1007=3,dati_bdv!$E$2:$E$65536,IF(dati_pdc!$C1007=4,dati_bdv!$F$2:$F$65536,IF(dati_pdc!$C1007=5,dati_bdv!$G$2:$G$65536,dati_bdv!$H$2:$H$65536))))),$A1007,dati_bdv!M$2:M$65536)","v":0},{"$f":"SUMIF(IF(dati_pdc!$C1007=1,dati_bdv!$C$2:$C$65536,IF(dati_pdc!$C1007=2,dati_bdv!$D$2:$D$65536,IF(dati_pdc!$C1007=3,dati_bdv!$E$2:$E$65536,IF(dati_pdc!$C1007=4,dati_bdv!$F$2:$F$65536,IF(dati_pdc!$C1007=5,dati_bdv!$G$2:$G$65536,dati_bdv!$H$2:$H$65536))))),$A1007,dati_bdv!N$2:N$65536)","v":0}]
[{"$f":"dati_pdc!A1008","v":0},{"$f":"SUMIF(IF(dati_pdc!$C1008=1,dati_bdv!$C$2:$C$65536,IF(dati_pdc!$C1008=2,dati_bdv!$D$2:$D$65536,IF(dati_pdc!$C1008=3,dati_bdv!$E$2:$E$65536,IF(dati_pdc!$C1008=4,dati_bdv!$F$2:$F$65536,IF(dati_pdc!$C1008=5,dati_bdv!$G$2:$G$65536,dati_bdv!$H$2:$H$65536))))),$A1008,dati_bdv!J$2:J$65536)","v":0},{"$f":"SUMIF(IF(dati_pdc!$C1008=1,dati_bdv!$C$2:$C$65536,IF(dati_pdc!$C1008=2,dati_bdv!$D$2:$D$65536,IF(dati_pdc!$C1008=3,dati_bdv!$E$2:$E$65536,IF(dati_pdc!$C1008=4,dati_bdv!$F$2:$F$65536,IF(dati_pdc!$C1008=5,dati_bdv!$G$2:$G$65536,dati_bdv!$H$2:$H$65536))))),$A1008,dati_bdv!K$2:K$65536)","v":0},{"$f":"SUMIF(IF(dati_pdc!$C1008=1,dati_bdv!$C$2:$C$65536,IF(dati_pdc!$C1008=2,dati_bdv!$D$2:$D$65536,IF(dati_pdc!$C1008=3,dati_bdv!$E$2:$E$65536,IF(dati_pdc!$C1008=4,dati_bdv!$F$2:$F$65536,IF(dati_pdc!$C1008=5,dati_bdv!$G$2:$G$65536,dati_bdv!$H$2:$H$65536))))),$A1008,dati_bdv!L$2:L$65536)","v":0},{"$f":"SUMIF(IF(dati_pdc!$C1008=1,dati_bdv!$C$2:$C$65536,IF(dati_pdc!$C1008=2,dati_bdv!$D$2:$D$65536,IF(dati_pdc!$C1008=3,dati_bdv!$E$2:$E$65536,IF(dati_pdc!$C1008=4,dati_bdv!$F$2:$F$65536,IF(dati_pdc!$C1008=5,dati_bdv!$G$2:$G$65536,dati_bdv!$H$2:$H$65536))))),$A1008,dati_bdv!M$2:M$65536)","v":0},{"$f":"SUMIF(IF(dati_pdc!$C1008=1,dati_bdv!$C$2:$C$65536,IF(dati_pdc!$C1008=2,dati_bdv!$D$2:$D$65536,IF(dati_pdc!$C1008=3,dati_bdv!$E$2:$E$65536,IF(dati_pdc!$C1008=4,dati_bdv!$F$2:$F$65536,IF(dati_pdc!$C1008=5,dati_bdv!$G$2:$G$65536,dati_bdv!$H$2:$H$65536))))),$A1008,dati_bdv!N$2:N$65536)","v":0}]
[{"$f":"dati_pdc!A1009","v":0},{"$f":"SUMIF(IF(dati_pdc!$C1009=1,dati_bdv!$C$2:$C$65536,IF(dati_pdc!$C1009=2,dati_bdv!$D$2:$D$65536,IF(dati_pdc!$C1009=3,dati_bdv!$E$2:$E$65536,IF(dati_pdc!$C1009=4,dati_bdv!$F$2:$F$65536,IF(dati_pdc!$C1009=5,dati_bdv!$G$2:$G$65536,dati_bdv!$H$2:$H$65536))))),$A1009,dati_bdv!J$2:J$65536)","v":0},{"$f":"SUMIF(IF(dati_pdc!$C1009=1,dati_bdv!$C$2:$C$65536,IF(dati_pdc!$C1009=2,dati_bdv!$D$2:$D$65536,IF(dati_pdc!$C1009=3,dati_bdv!$E$2:$E$65536,IF(dati_pdc!$C1009=4,dati_bdv!$F$2:$F$65536,IF(dati_pdc!$C1009=5,dati_bdv!$G$2:$G$65536,dati_bdv!$H$2:$H$65536))))),$A1009,dati_bdv!K$2:K$65536)","v":0},{"$f":"SUMIF(IF(dati_pdc!$C1009=1,dati_bdv!$C$2:$C$65536,IF(dati_pdc!$C1009=2,dati_bdv!$D$2:$D$65536,IF(dati_pdc!$C1009=3,dati_bdv!$E$2:$E$65536,IF(dati_pdc!$C1009=4,dati_bdv!$F$2:$F$65536,IF(dati_pdc!$C1009=5,dati_bdv!$G$2:$G$65536,dati_bdv!$H$2:$H$65536))))),$A1009,dati_bdv!L$2:L$65536)","v":0},{"$f":"SUMIF(IF(dati_pdc!$C1009=1,dati_bdv!$C$2:$C$65536,IF(dati_pdc!$C1009=2,dati_bdv!$D$2:$D$65536,IF(dati_pdc!$C1009=3,dati_bdv!$E$2:$E$65536,IF(dati_pdc!$C1009=4,dati_bdv!$F$2:$F$65536,IF(dati_pdc!$C1009=5,dati_bdv!$G$2:$G$65536,dati_bdv!$H$2:$H$65536))))),$A1009,dati_bdv!M$2:M$65536)","v":0},{"$f":"SUMIF(IF(dati_pdc!$C1009=1,dati_bdv!$C$2:$C$65536,IF(dati_pdc!$C1009=2,dati_bdv!$D$2:$D$65536,IF(dati_pdc!$C1009=3,dati_bdv!$E$2:$E$65536,IF(dati_pdc!$C1009=4,dati_bdv!$F$2:$F$65536,IF(dati_pdc!$C1009=5,dati_bdv!$G$2:$G$65536,dati_bdv!$H$2:$H$65536))))),$A1009,dati_bdv!N$2:N$65536)","v":0}]
[{"$f":"dati_pdc!A1010","v":0},{"$f":"SUMIF(IF(dati_pdc!$C1010=1,dati_bdv!$C$2:$C$65536,IF(dati_pdc!$C1010=2,dati_bdv!$D$2:$D$65536,IF(dati_pdc!$C1010=3,dati_bdv!$E$2:$E$65536,IF(dati_pdc!$C1010=4,dati_bdv!$F$2:$F$65536,IF(dati_pdc!$C1010=5,dati_bdv!$G$2:$G$65536,dati_bdv!$H$2:$H$65536))))),$A1010,dati_bdv!J$2:J$65536)","v":0},{"$f":"SUMIF(IF(dati_pdc!$C1010=1,dati_bdv!$C$2:$C$65536,IF(dati_pdc!$C1010=2,dati_bdv!$D$2:$D$65536,IF(dati_pdc!$C1010=3,dati_bdv!$E$2:$E$65536,IF(dati_pdc!$C1010=4,dati_bdv!$F$2:$F$65536,IF(dati_pdc!$C1010=5,dati_bdv!$G$2:$G$65536,dati_bdv!$H$2:$H$65536))))),$A1010,dati_bdv!K$2:K$65536)","v":0},{"$f":"SUMIF(IF(dati_pdc!$C1010=1,dati_bdv!$C$2:$C$65536,IF(dati_pdc!$C1010=2,dati_bdv!$D$2:$D$65536,IF(dati_pdc!$C1010=3,dati_bdv!$E$2:$E$65536,IF(dati_pdc!$C1010=4,dati_bdv!$F$2:$F$65536,IF(dati_pdc!$C1010=5,dati_bdv!$G$2:$G$65536,dati_bdv!$H$2:$H$65536))))),$A1010,dati_bdv!L$2:L$65536)","v":0},{"$f":"SUMIF(IF(dati_pdc!$C1010=1,dati_bdv!$C$2:$C$65536,IF(dati_pdc!$C1010=2,dati_bdv!$D$2:$D$65536,IF(dati_pdc!$C1010=3,dati_bdv!$E$2:$E$65536,IF(dati_pdc!$C1010=4,dati_bdv!$F$2:$F$65536,IF(dati_pdc!$C1010=5,dati_bdv!$G$2:$G$65536,dati_bdv!$H$2:$H$65536))))),$A1010,dati_bdv!M$2:M$65536)","v":0},{"$f":"SUMIF(IF(dati_pdc!$C1010=1,dati_bdv!$C$2:$C$65536,IF(dati_pdc!$C1010=2,dati_bdv!$D$2:$D$65536,IF(dati_pdc!$C1010=3,dati_bdv!$E$2:$E$65536,IF(dati_pdc!$C1010=4,dati_bdv!$F$2:$F$65536,IF(dati_pdc!$C1010=5,dati_bdv!$G$2:$G$65536,dati_bdv!$H$2:$H$65536))))),$A1010,dati_bdv!N$2:N$65536)","v":0}]
[{"$f":"dati_pdc!A1011","v":0},{"$f":"SUMIF(IF(dati_pdc!$C1011=1,dati_bdv!$C$2:$C$65536,IF(dati_pdc!$C1011=2,dati_bdv!$D$2:$D$65536,IF(dati_pdc!$C1011=3,dati_bdv!$E$2:$E$65536,IF(dati_pdc!$C1011=4,dati_bdv!$F$2:$F$65536,IF(dati_pdc!$C1011=5,dati_bdv!$G$2:$G$65536,dati_bdv!$H$2:$H$65536))))),$A1011,dati_bdv!J$2:J$65536)","v":0},{"$f":"SUMIF(IF(dati_pdc!$C1011=1,dati_bdv!$C$2:$C$65536,IF(dati_pdc!$C1011=2,dati_bdv!$D$2:$D$65536,IF(dati_pdc!$C1011=3,dati_bdv!$E$2:$E$65536,IF(dati_pdc!$C1011=4,dati_bdv!$F$2:$F$65536,IF(dati_pdc!$C1011=5,dati_bdv!$G$2:$G$65536,dati_bdv!$H$2:$H$65536))))),$A1011,dati_bdv!K$2:K$65536)","v":0},{"$f":"SUMIF(IF(dati_pdc!$C1011=1,dati_bdv!$C$2:$C$65536,IF(dati_pdc!$C1011=2,dati_bdv!$D$2:$D$65536,IF(dati_pdc!$C1011=3,dati_bdv!$E$2:$E$65536,IF(dati_pdc!$C1011=4,dati_bdv!$F$2:$F$65536,IF(dati_pdc!$C1011=5,dati_bdv!$G$2:$G$65536,dati_bdv!$H$2:$H$65536))))),$A1011,dati_bdv!L$2:L$65536)","v":0},{"$f":"SUMIF(IF(dati_pdc!$C1011=1,dati_bdv!$C$2:$C$65536,IF(dati_pdc!$C1011=2,dati_bdv!$D$2:$D$65536,IF(dati_pdc!$C1011=3,dati_bdv!$E$2:$E$65536,IF(dati_pdc!$C1011=4,dati_bdv!$F$2:$F$65536,IF(dati_pdc!$C1011=5,dati_bdv!$G$2:$G$65536,dati_bdv!$H$2:$H$65536))))),$A1011,dati_bdv!M$2:M$65536)","v":0},{"$f":"SUMIF(IF(dati_pdc!$C1011=1,dati_bdv!$C$2:$C$65536,IF(dati_pdc!$C1011=2,dati_bdv!$D$2:$D$65536,IF(dati_pdc!$C1011=3,dati_bdv!$E$2:$E$65536,IF(dati_pdc!$C1011=4,dati_bdv!$F$2:$F$65536,IF(dati_pdc!$C1011=5,dati_bdv!$G$2:$G$65536,dati_bdv!$H$2:$H$65536))))),$A1011,dati_bdv!N$2:N$65536)","v":0}]
[{"$f":"dati_pdc!A1012","v":0},{"$f":"SUMIF(IF(dati_pdc!$C1012=1,dati_bdv!$C$2:$C$65536,IF(dati_pdc!$C1012=2,dati_bdv!$D$2:$D$65536,IF(dati_pdc!$C1012=3,dati_bdv!$E$2:$E$65536,IF(dati_pdc!$C1012=4,dati_bdv!$F$2:$F$65536,IF(dati_pdc!$C1012=5,dati_bdv!$G$2:$G$65536,dati_bdv!$H$2:$H$65536))))),$A1012,dati_bdv!J$2:J$65536)","v":0},{"$f":"SUMIF(IF(dati_pdc!$C1012=1,dati_bdv!$C$2:$C$65536,IF(dati_pdc!$C1012=2,dati_bdv!$D$2:$D$65536,IF(dati_pdc!$C1012=3,dati_bdv!$E$2:$E$65536,IF(dati_pdc!$C1012=4,dati_bdv!$F$2:$F$65536,IF(dati_pdc!$C1012=5,dati_bdv!$G$2:$G$65536,dati_bdv!$H$2:$H$65536))))),$A1012,dati_bdv!K$2:K$65536)","v":0},{"$f":"SUMIF(IF(dati_pdc!$C1012=1,dati_bdv!$C$2:$C$65536,IF(dati_pdc!$C1012=2,dati_bdv!$D$2:$D$65536,IF(dati_pdc!$C1012=3,dati_bdv!$E$2:$E$65536,IF(dati_pdc!$C1012=4,dati_bdv!$F$2:$F$65536,IF(dati_pdc!$C1012=5,dati_bdv!$G$2:$G$65536,dati_bdv!$H$2:$H$65536))))),$A1012,dati_bdv!L$2:L$65536)","v":0},{"$f":"SUMIF(IF(dati_pdc!$C1012=1,dati_bdv!$C$2:$C$65536,IF(dati_pdc!$C1012=2,dati_bdv!$D$2:$D$65536,IF(dati_pdc!$C1012=3,dati_bdv!$E$2:$E$65536,IF(dati_pdc!$C1012=4,dati_bdv!$F$2:$F$65536,IF(dati_pdc!$C1012=5,dati_bdv!$G$2:$G$65536,dati_bdv!$H$2:$H$65536))))),$A1012,dati_bdv!M$2:M$65536)","v":0},{"$f":"SUMIF(IF(dati_pdc!$C1012=1,dati_bdv!$C$2:$C$65536,IF(dati_pdc!$C1012=2,dati_bdv!$D$2:$D$65536,IF(dati_pdc!$C1012=3,dati_bdv!$E$2:$E$65536,IF(dati_pdc!$C1012=4,dati_bdv!$F$2:$F$65536,IF(dati_pdc!$C1012=5,dati_bdv!$G$2:$G$65536,dati_bdv!$H$2:$H$65536))))),$A1012,dati_bdv!N$2:N$65536)","v":0}]
[{"$f":"dati_pdc!A1013","v":0},{"$f":"SUMIF(IF(dati_pdc!$C1013=1,dati_bdv!$C$2:$C$65536,IF(dati_pdc!$C1013=2,dati_bdv!$D$2:$D$65536,IF(dati_pdc!$C1013=3,dati_bdv!$E$2:$E$65536,IF(dati_pdc!$C1013=4,dati_bdv!$F$2:$F$65536,IF(dati_pdc!$C1013=5,dati_bdv!$G$2:$G$65536,dati_bdv!$H$2:$H$65536))))),$A1013,dati_bdv!J$2:J$65536)","v":0},{"$f":"SUMIF(IF(dati_pdc!$C1013=1,dati_bdv!$C$2:$C$65536,IF(dati_pdc!$C1013=2,dati_bdv!$D$2:$D$65536,IF(dati_pdc!$C1013=3,dati_bdv!$E$2:$E$65536,IF(dati_pdc!$C1013=4,dati_bdv!$F$2:$F$65536,IF(dati_pdc!$C1013=5,dati_bdv!$G$2:$G$65536,dati_bdv!$H$2:$H$65536))))),$A1013,dati_bdv!K$2:K$65536)","v":0},{"$f":"SUMIF(IF(dati_pdc!$C1013=1,dati_bdv!$C$2:$C$65536,IF(dati_pdc!$C1013=2,dati_bdv!$D$2:$D$65536,IF(dati_pdc!$C1013=3,dati_bdv!$E$2:$E$65536,IF(dati_pdc!$C1013=4,dati_bdv!$F$2:$F$65536,IF(dati_pdc!$C1013=5,dati_bdv!$G$2:$G$65536,dati_bdv!$H$2:$H$65536))))),$A1013,dati_bdv!L$2:L$65536)","v":0},{"$f":"SUMIF(IF(dati_pdc!$C1013=1,dati_bdv!$C$2:$C$65536,IF(dati_pdc!$C1013=2,dati_bdv!$D$2:$D$65536,IF(dati_pdc!$C1013=3,dati_bdv!$E$2:$E$65536,IF(dati_pdc!$C1013=4,dati_bdv!$F$2:$F$65536,IF(dati_pdc!$C1013=5,dati_bdv!$G$2:$G$65536,dati_bdv!$H$2:$H$65536))))),$A1013,dati_bdv!M$2:M$65536)","v":0},{"$f":"SUMIF(IF(dati_pdc!$C1013=1,dati_bdv!$C$2:$C$65536,IF(dati_pdc!$C1013=2,dati_bdv!$D$2:$D$65536,IF(dati_pdc!$C1013=3,dati_bdv!$E$2:$E$65536,IF(dati_pdc!$C1013=4,dati_bdv!$F$2:$F$65536,IF(dati_pdc!$C1013=5,dati_bdv!$G$2:$G$65536,dati_bdv!$H$2:$H$65536))))),$A1013,dati_bdv!N$2:N$65536)","v":0}]
[{"$f":"dati_pdc!A1014","v":0},{"$f":"SUMIF(IF(dati_pdc!$C1014=1,dati_bdv!$C$2:$C$65536,IF(dati_pdc!$C1014=2,dati_bdv!$D$2:$D$65536,IF(dati_pdc!$C1014=3,dati_bdv!$E$2:$E$65536,IF(dati_pdc!$C1014=4,dati_bdv!$F$2:$F$65536,IF(dati_pdc!$C1014=5,dati_bdv!$G$2:$G$65536,dati_bdv!$H$2:$H$65536))))),$A1014,dati_bdv!J$2:J$65536)","v":0},{"$f":"SUMIF(IF(dati_pdc!$C1014=1,dati_bdv!$C$2:$C$65536,IF(dati_pdc!$C1014=2,dati_bdv!$D$2:$D$65536,IF(dati_pdc!$C1014=3,dati_bdv!$E$2:$E$65536,IF(dati_pdc!$C1014=4,dati_bdv!$F$2:$F$65536,IF(dati_pdc!$C1014=5,dati_bdv!$G$2:$G$65536,dati_bdv!$H$2:$H$65536))))),$A1014,dati_bdv!K$2:K$65536)","v":0},{"$f":"SUMIF(IF(dati_pdc!$C1014=1,dati_bdv!$C$2:$C$65536,IF(dati_pdc!$C1014=2,dati_bdv!$D$2:$D$65536,IF(dati_pdc!$C1014=3,dati_bdv!$E$2:$E$65536,IF(dati_pdc!$C1014=4,dati_bdv!$F$2:$F$65536,IF(dati_pdc!$C1014=5,dati_bdv!$G$2:$G$65536,dati_bdv!$H$2:$H$65536))))),$A1014,dati_bdv!L$2:L$65536)","v":0},{"$f":"SUMIF(IF(dati_pdc!$C1014=1,dati_bdv!$C$2:$C$65536,IF(dati_pdc!$C1014=2,dati_bdv!$D$2:$D$65536,IF(dati_pdc!$C1014=3,dati_bdv!$E$2:$E$65536,IF(dati_pdc!$C1014=4,dati_bdv!$F$2:$F$65536,IF(dati_pdc!$C1014=5,dati_bdv!$G$2:$G$65536,dati_bdv!$H$2:$H$65536))))),$A1014,dati_bdv!M$2:M$65536)","v":0},{"$f":"SUMIF(IF(dati_pdc!$C1014=1,dati_bdv!$C$2:$C$65536,IF(dati_pdc!$C1014=2,dati_bdv!$D$2:$D$65536,IF(dati_pdc!$C1014=3,dati_bdv!$E$2:$E$65536,IF(dati_pdc!$C1014=4,dati_bdv!$F$2:$F$65536,IF(dati_pdc!$C1014=5,dati_bdv!$G$2:$G$65536,dati_bdv!$H$2:$H$65536))))),$A1014,dati_bdv!N$2:N$65536)","v":0}]
[{"$f":"dati_pdc!A1015","v":0},{"$f":"SUMIF(IF(dati_pdc!$C1015=1,dati_bdv!$C$2:$C$65536,IF(dati_pdc!$C1015=2,dati_bdv!$D$2:$D$65536,IF(dati_pdc!$C1015=3,dati_bdv!$E$2:$E$65536,IF(dati_pdc!$C1015=4,dati_bdv!$F$2:$F$65536,IF(dati_pdc!$C1015=5,dati_bdv!$G$2:$G$65536,dati_bdv!$H$2:$H$65536))))),$A1015,dati_bdv!J$2:J$65536)","v":0},{"$f":"SUMIF(IF(dati_pdc!$C1015=1,dati_bdv!$C$2:$C$65536,IF(dati_pdc!$C1015=2,dati_bdv!$D$2:$D$65536,IF(dati_pdc!$C1015=3,dati_bdv!$E$2:$E$65536,IF(dati_pdc!$C1015=4,dati_bdv!$F$2:$F$65536,IF(dati_pdc!$C1015=5,dati_bdv!$G$2:$G$65536,dati_bdv!$H$2:$H$65536))))),$A1015,dati_bdv!K$2:K$65536)","v":0},{"$f":"SUMIF(IF(dati_pdc!$C1015=1,dati_bdv!$C$2:$C$65536,IF(dati_pdc!$C1015=2,dati_bdv!$D$2:$D$65536,IF(dati_pdc!$C1015=3,dati_bdv!$E$2:$E$65536,IF(dati_pdc!$C1015=4,dati_bdv!$F$2:$F$65536,IF(dati_pdc!$C1015=5,dati_bdv!$G$2:$G$65536,dati_bdv!$H$2:$H$65536))))),$A1015,dati_bdv!L$2:L$65536)","v":0},{"$f":"SUMIF(IF(dati_pdc!$C1015=1,dati_bdv!$C$2:$C$65536,IF(dati_pdc!$C1015=2,dati_bdv!$D$2:$D$65536,IF(dati_pdc!$C1015=3,dati_bdv!$E$2:$E$65536,IF(dati_pdc!$C1015=4,dati_bdv!$F$2:$F$65536,IF(dati_pdc!$C1015=5,dati_bdv!$G$2:$G$65536,dati_bdv!$H$2:$H$65536))))),$A1015,dati_bdv!M$2:M$65536)","v":0},{"$f":"SUMIF(IF(dati_pdc!$C1015=1,dati_bdv!$C$2:$C$65536,IF(dati_pdc!$C1015=2,dati_bdv!$D$2:$D$65536,IF(dati_pdc!$C1015=3,dati_bdv!$E$2:$E$65536,IF(dati_pdc!$C1015=4,dati_bdv!$F$2:$F$65536,IF(dati_pdc!$C1015=5,dati_bdv!$G$2:$G$65536,dati_bdv!$H$2:$H$65536))))),$A1015,dati_bdv!N$2:N$65536)","v":0}]
[{"$f":"dati_pdc!A1016","v":0},{"$f":"SUMIF(IF(dati_pdc!$C1016=1,dati_bdv!$C$2:$C$65536,IF(dati_pdc!$C1016=2,dati_bdv!$D$2:$D$65536,IF(dati_pdc!$C1016=3,dati_bdv!$E$2:$E$65536,IF(dati_pdc!$C1016=4,dati_bdv!$F$2:$F$65536,IF(dati_pdc!$C1016=5,dati_bdv!$G$2:$G$65536,dati_bdv!$H$2:$H$65536))))),$A1016,dati_bdv!J$2:J$65536)","v":0},{"$f":"SUMIF(IF(dati_pdc!$C1016=1,dati_bdv!$C$2:$C$65536,IF(dati_pdc!$C1016=2,dati_bdv!$D$2:$D$65536,IF(dati_pdc!$C1016=3,dati_bdv!$E$2:$E$65536,IF(dati_pdc!$C1016=4,dati_bdv!$F$2:$F$65536,IF(dati_pdc!$C1016=5,dati_bdv!$G$2:$G$65536,dati_bdv!$H$2:$H$65536))))),$A1016,dati_bdv!K$2:K$65536)","v":0},{"$f":"SUMIF(IF(dati_pdc!$C1016=1,dati_bdv!$C$2:$C$65536,IF(dati_pdc!$C1016=2,dati_bdv!$D$2:$D$65536,IF(dati_pdc!$C1016=3,dati_bdv!$E$2:$E$65536,IF(dati_pdc!$C1016=4,dati_bdv!$F$2:$F$65536,IF(dati_pdc!$C1016=5,dati_bdv!$G$2:$G$65536,dati_bdv!$H$2:$H$65536))))),$A1016,dati_bdv!L$2:L$65536)","v":0},{"$f":"SUMIF(IF(dati_pdc!$C1016=1,dati_bdv!$C$2:$C$65536,IF(dati_pdc!$C1016=2,dati_bdv!$D$2:$D$65536,IF(dati_pdc!$C1016=3,dati_bdv!$E$2:$E$65536,IF(dati_pdc!$C1016=4,dati_bdv!$F$2:$F$65536,IF(dati_pdc!$C1016=5,dati_bdv!$G$2:$G$65536,dati_bdv!$H$2:$H$65536))))),$A1016,dati_bdv!M$2:M$65536)","v":0},{"$f":"SUMIF(IF(dati_pdc!$C1016=1,dati_bdv!$C$2:$C$65536,IF(dati_pdc!$C1016=2,dati_bdv!$D$2:$D$65536,IF(dati_pdc!$C1016=3,dati_bdv!$E$2:$E$65536,IF(dati_pdc!$C1016=4,dati_bdv!$F$2:$F$65536,IF(dati_pdc!$C1016=5,dati_bdv!$G$2:$G$65536,dati_bdv!$H$2:$H$65536))))),$A1016,dati_bdv!N$2:N$65536)","v":0}]
[{"$f":"dati_pdc!A1017","v":0},{"$f":"SUMIF(IF(dati_pdc!$C1017=1,dati_bdv!$C$2:$C$65536,IF(dati_pdc!$C1017=2,dati_bdv!$D$2:$D$65536,IF(dati_pdc!$C1017=3,dati_bdv!$E$2:$E$65536,IF(dati_pdc!$C1017=4,dati_bdv!$F$2:$F$65536,IF(dati_pdc!$C1017=5,dati_bdv!$G$2:$G$65536,dati_bdv!$H$2:$H$65536))))),$A1017,dati_bdv!J$2:J$65536)","v":0},{"$f":"SUMIF(IF(dati_pdc!$C1017=1,dati_bdv!$C$2:$C$65536,IF(dati_pdc!$C1017=2,dati_bdv!$D$2:$D$65536,IF(dati_pdc!$C1017=3,dati_bdv!$E$2:$E$65536,IF(dati_pdc!$C1017=4,dati_bdv!$F$2:$F$65536,IF(dati_pdc!$C1017=5,dati_bdv!$G$2:$G$65536,dati_bdv!$H$2:$H$65536))))),$A1017,dati_bdv!K$2:K$65536)","v":0},{"$f":"SUMIF(IF(dati_pdc!$C1017=1,dati_bdv!$C$2:$C$65536,IF(dati_pdc!$C1017=2,dati_bdv!$D$2:$D$65536,IF(dati_pdc!$C1017=3,dati_bdv!$E$2:$E$65536,IF(dati_pdc!$C1017=4,dati_bdv!$F$2:$F$65536,IF(dati_pdc!$C1017=5,dati_bdv!$G$2:$G$65536,dati_bdv!$H$2:$H$65536))))),$A1017,dati_bdv!L$2:L$65536)","v":0},{"$f":"SUMIF(IF(dati_pdc!$C1017=1,dati_bdv!$C$2:$C$65536,IF(dati_pdc!$C1017=2,dati_bdv!$D$2:$D$65536,IF(dati_pdc!$C1017=3,dati_bdv!$E$2:$E$65536,IF(dati_pdc!$C1017=4,dati_bdv!$F$2:$F$65536,IF(dati_pdc!$C1017=5,dati_bdv!$G$2:$G$65536,dati_bdv!$H$2:$H$65536))))),$A1017,dati_bdv!M$2:M$65536)","v":0},{"$f":"SUMIF(IF(dati_pdc!$C1017=1,dati_bdv!$C$2:$C$65536,IF(dati_pdc!$C1017=2,dati_bdv!$D$2:$D$65536,IF(dati_pdc!$C1017=3,dati_bdv!$E$2:$E$65536,IF(dati_pdc!$C1017=4,dati_bdv!$F$2:$F$65536,IF(dati_pdc!$C1017=5,dati_bdv!$G$2:$G$65536,dati_bdv!$H$2:$H$65536))))),$A1017,dati_bdv!N$2:N$65536)","v":0}]
[{"$f":"dati_pdc!A1018","v":0},{"$f":"SUMIF(IF(dati_pdc!$C1018=1,dati_bdv!$C$2:$C$65536,IF(dati_pdc!$C1018=2,dati_bdv!$D$2:$D$65536,IF(dati_pdc!$C1018=3,dati_bdv!$E$2:$E$65536,IF(dati_pdc!$C1018=4,dati_bdv!$F$2:$F$65536,IF(dati_pdc!$C1018=5,dati_bdv!$G$2:$G$65536,dati_bdv!$H$2:$H$65536))))),$A1018,dati_bdv!J$2:J$65536)","v":0},{"$f":"SUMIF(IF(dati_pdc!$C1018=1,dati_bdv!$C$2:$C$65536,IF(dati_pdc!$C1018=2,dati_bdv!$D$2:$D$65536,IF(dati_pdc!$C1018=3,dati_bdv!$E$2:$E$65536,IF(dati_pdc!$C1018=4,dati_bdv!$F$2:$F$65536,IF(dati_pdc!$C1018=5,dati_bdv!$G$2:$G$65536,dati_bdv!$H$2:$H$65536))))),$A1018,dati_bdv!K$2:K$65536)","v":0},{"$f":"SUMIF(IF(dati_pdc!$C1018=1,dati_bdv!$C$2:$C$65536,IF(dati_pdc!$C1018=2,dati_bdv!$D$2:$D$65536,IF(dati_pdc!$C1018=3,dati_bdv!$E$2:$E$65536,IF(dati_pdc!$C1018=4,dati_bdv!$F$2:$F$65536,IF(dati_pdc!$C1018=5,dati_bdv!$G$2:$G$65536,dati_bdv!$H$2:$H$65536))))),$A1018,dati_bdv!L$2:L$65536)","v":0},{"$f":"SUMIF(IF(dati_pdc!$C1018=1,dati_bdv!$C$2:$C$65536,IF(dati_pdc!$C1018=2,dati_bdv!$D$2:$D$65536,IF(dati_pdc!$C1018=3,dati_bdv!$E$2:$E$65536,IF(dati_pdc!$C1018=4,dati_bdv!$F$2:$F$65536,IF(dati_pdc!$C1018=5,dati_bdv!$G$2:$G$65536,dati_bdv!$H$2:$H$65536))))),$A1018,dati_bdv!M$2:M$65536)","v":0},{"$f":"SUMIF(IF(dati_pdc!$C1018=1,dati_bdv!$C$2:$C$65536,IF(dati_pdc!$C1018=2,dati_bdv!$D$2:$D$65536,IF(dati_pdc!$C1018=3,dati_bdv!$E$2:$E$65536,IF(dati_pdc!$C1018=4,dati_bdv!$F$2:$F$65536,IF(dati_pdc!$C1018=5,dati_bdv!$G$2:$G$65536,dati_bdv!$H$2:$H$65536))))),$A1018,dati_bdv!N$2:N$65536)","v":0}]
[{"$f":"dati_pdc!A1019","v":0},{"$f":"SUMIF(IF(dati_pdc!$C1019=1,dati_bdv!$C$2:$C$65536,IF(dati_pdc!$C1019=2,dati_bdv!$D$2:$D$65536,IF(dati_pdc!$C1019=3,dati_bdv!$E$2:$E$65536,IF(dati_pdc!$C1019=4,dati_bdv!$F$2:$F$65536,IF(dati_pdc!$C1019=5,dati_bdv!$G$2:$G$65536,dati_bdv!$H$2:$H$65536))))),$A1019,dati_bdv!J$2:J$65536)","v":0},{"$f":"SUMIF(IF(dati_pdc!$C1019=1,dati_bdv!$C$2:$C$65536,IF(dati_pdc!$C1019=2,dati_bdv!$D$2:$D$65536,IF(dati_pdc!$C1019=3,dati_bdv!$E$2:$E$65536,IF(dati_pdc!$C1019=4,dati_bdv!$F$2:$F$65536,IF(dati_pdc!$C1019=5,dati_bdv!$G$2:$G$65536,dati_bdv!$H$2:$H$65536))))),$A1019,dati_bdv!K$2:K$65536)","v":0},{"$f":"SUMIF(IF(dati_pdc!$C1019=1,dati_bdv!$C$2:$C$65536,IF(dati_pdc!$C1019=2,dati_bdv!$D$2:$D$65536,IF(dati_pdc!$C1019=3,dati_bdv!$E$2:$E$65536,IF(dati_pdc!$C1019=4,dati_bdv!$F$2:$F$65536,IF(dati_pdc!$C1019=5,dati_bdv!$G$2:$G$65536,dati_bdv!$H$2:$H$65536))))),$A1019,dati_bdv!L$2:L$65536)","v":0},{"$f":"SUMIF(IF(dati_pdc!$C1019=1,dati_bdv!$C$2:$C$65536,IF(dati_pdc!$C1019=2,dati_bdv!$D$2:$D$65536,IF(dati_pdc!$C1019=3,dati_bdv!$E$2:$E$65536,IF(dati_pdc!$C1019=4,dati_bdv!$F$2:$F$65536,IF(dati_pdc!$C1019=5,dati_bdv!$G$2:$G$65536,dati_bdv!$H$2:$H$65536))))),$A1019,dati_bdv!M$2:M$65536)","v":0},{"$f":"SUMIF(IF(dati_pdc!$C1019=1,dati_bdv!$C$2:$C$65536,IF(dati_pdc!$C1019=2,dati_bdv!$D$2:$D$65536,IF(dati_pdc!$C1019=3,dati_bdv!$E$2:$E$65536,IF(dati_pdc!$C1019=4,dati_bdv!$F$2:$F$65536,IF(dati_pdc!$C1019=5,dati_bdv!$G$2:$G$65536,dati_bdv!$H$2:$H$65536))))),$A1019,dati_bdv!N$2:N$65536)","v":0}]
[{"$f":"dati_pdc!A1020","v":0},{"$f":"SUMIF(IF(dati_pdc!$C1020=1,dati_bdv!$C$2:$C$65536,IF(dati_pdc!$C1020=2,dati_bdv!$D$2:$D$65536,IF(dati_pdc!$C1020=3,dati_bdv!$E$2:$E$65536,IF(dati_pdc!$C1020=4,dati_bdv!$F$2:$F$65536,IF(dati_pdc!$C1020=5,dati_bdv!$G$2:$G$65536,dati_bdv!$H$2:$H$65536))))),$A1020,dati_bdv!J$2:J$65536)","v":0},{"$f":"SUMIF(IF(dati_pdc!$C1020=1,dati_bdv!$C$2:$C$65536,IF(dati_pdc!$C1020=2,dati_bdv!$D$2:$D$65536,IF(dati_pdc!$C1020=3,dati_bdv!$E$2:$E$65536,IF(dati_pdc!$C1020=4,dati_bdv!$F$2:$F$65536,IF(dati_pdc!$C1020=5,dati_bdv!$G$2:$G$65536,dati_bdv!$H$2:$H$65536))))),$A1020,dati_bdv!K$2:K$65536)","v":0},{"$f":"SUMIF(IF(dati_pdc!$C1020=1,dati_bdv!$C$2:$C$65536,IF(dati_pdc!$C1020=2,dati_bdv!$D$2:$D$65536,IF(dati_pdc!$C1020=3,dati_bdv!$E$2:$E$65536,IF(dati_pdc!$C1020=4,dati_bdv!$F$2:$F$65536,IF(dati_pdc!$C1020=5,dati_bdv!$G$2:$G$65536,dati_bdv!$H$2:$H$65536))))),$A1020,dati_bdv!L$2:L$65536)","v":0},{"$f":"SUMIF(IF(dati_pdc!$C1020=1,dati_bdv!$C$2:$C$65536,IF(dati_pdc!$C1020=2,dati_bdv!$D$2:$D$65536,IF(dati_pdc!$C1020=3,dati_bdv!$E$2:$E$65536,IF(dati_pdc!$C1020=4,dati_bdv!$F$2:$F$65536,IF(dati_pdc!$C1020=5,dati_bdv!$G$2:$G$65536,dati_bdv!$H$2:$H$65536))))),$A1020,dati_bdv!M$2:M$65536)","v":0},{"$f":"SUMIF(IF(dati_pdc!$C1020=1,dati_bdv!$C$2:$C$65536,IF(dati_pdc!$C1020=2,dati_bdv!$D$2:$D$65536,IF(dati_pdc!$C1020=3,dati_bdv!$E$2:$E$65536,IF(dati_pdc!$C1020=4,dati_bdv!$F$2:$F$65536,IF(dati_pdc!$C1020=5,dati_bdv!$G$2:$G$65536,dati_bdv!$H$2:$H$65536))))),$A1020,dati_bdv!N$2:N$65536)","v":0}]
[{"$f":"dati_pdc!A1021","v":0},{"$f":"SUMIF(IF(dati_pdc!$C1021=1,dati_bdv!$C$2:$C$65536,IF(dati_pdc!$C1021=2,dati_bdv!$D$2:$D$65536,IF(dati_pdc!$C1021=3,dati_bdv!$E$2:$E$65536,IF(dati_pdc!$C1021=4,dati_bdv!$F$2:$F$65536,IF(dati_pdc!$C1021=5,dati_bdv!$G$2:$G$65536,dati_bdv!$H$2:$H$65536))))),$A1021,dati_bdv!J$2:J$65536)","v":0},{"$f":"SUMIF(IF(dati_pdc!$C1021=1,dati_bdv!$C$2:$C$65536,IF(dati_pdc!$C1021=2,dati_bdv!$D$2:$D$65536,IF(dati_pdc!$C1021=3,dati_bdv!$E$2:$E$65536,IF(dati_pdc!$C1021=4,dati_bdv!$F$2:$F$65536,IF(dati_pdc!$C1021=5,dati_bdv!$G$2:$G$65536,dati_bdv!$H$2:$H$65536))))),$A1021,dati_bdv!K$2:K$65536)","v":0},{"$f":"SUMIF(IF(dati_pdc!$C1021=1,dati_bdv!$C$2:$C$65536,IF(dati_pdc!$C1021=2,dati_bdv!$D$2:$D$65536,IF(dati_pdc!$C1021=3,dati_bdv!$E$2:$E$65536,IF(dati_pdc!$C1021=4,dati_bdv!$F$2:$F$65536,IF(dati_pdc!$C1021=5,dati_bdv!$G$2:$G$65536,dati_bdv!$H$2:$H$65536))))),$A1021,dati_bdv!L$2:L$65536)","v":0},{"$f":"SUMIF(IF(dati_pdc!$C1021=1,dati_bdv!$C$2:$C$65536,IF(dati_pdc!$C1021=2,dati_bdv!$D$2:$D$65536,IF(dati_pdc!$C1021=3,dati_bdv!$E$2:$E$65536,IF(dati_pdc!$C1021=4,dati_bdv!$F$2:$F$65536,IF(dati_pdc!$C1021=5,dati_bdv!$G$2:$G$65536,dati_bdv!$H$2:$H$65536))))),$A1021,dati_bdv!M$2:M$65536)","v":0},{"$f":"SUMIF(IF(dati_pdc!$C1021=1,dati_bdv!$C$2:$C$65536,IF(dati_pdc!$C1021=2,dati_bdv!$D$2:$D$65536,IF(dati_pdc!$C1021=3,dati_bdv!$E$2:$E$65536,IF(dati_pdc!$C1021=4,dati_bdv!$F$2:$F$65536,IF(dati_pdc!$C1021=5,dati_bdv!$G$2:$G$65536,dati_bdv!$H$2:$H$65536))))),$A1021,dati_bdv!N$2:N$65536)","v":0}]
[{"$f":"dati_pdc!A1022","v":0},{"$f":"SUMIF(IF(dati_pdc!$C1022=1,dati_bdv!$C$2:$C$65536,IF(dati_pdc!$C1022=2,dati_bdv!$D$2:$D$65536,IF(dati_pdc!$C1022=3,dati_bdv!$E$2:$E$65536,IF(dati_pdc!$C1022=4,dati_bdv!$F$2:$F$65536,IF(dati_pdc!$C1022=5,dati_bdv!$G$2:$G$65536,dati_bdv!$H$2:$H$65536))))),$A1022,dati_bdv!J$2:J$65536)","v":0},{"$f":"SUMIF(IF(dati_pdc!$C1022=1,dati_bdv!$C$2:$C$65536,IF(dati_pdc!$C1022=2,dati_bdv!$D$2:$D$65536,IF(dati_pdc!$C1022=3,dati_bdv!$E$2:$E$65536,IF(dati_pdc!$C1022=4,dati_bdv!$F$2:$F$65536,IF(dati_pdc!$C1022=5,dati_bdv!$G$2:$G$65536,dati_bdv!$H$2:$H$65536))))),$A1022,dati_bdv!K$2:K$65536)","v":0},{"$f":"SUMIF(IF(dati_pdc!$C1022=1,dati_bdv!$C$2:$C$65536,IF(dati_pdc!$C1022=2,dati_bdv!$D$2:$D$65536,IF(dati_pdc!$C1022=3,dati_bdv!$E$2:$E$65536,IF(dati_pdc!$C1022=4,dati_bdv!$F$2:$F$65536,IF(dati_pdc!$C1022=5,dati_bdv!$G$2:$G$65536,dati_bdv!$H$2:$H$65536))))),$A1022,dati_bdv!L$2:L$65536)","v":0},{"$f":"SUMIF(IF(dati_pdc!$C1022=1,dati_bdv!$C$2:$C$65536,IF(dati_pdc!$C1022=2,dati_bdv!$D$2:$D$65536,IF(dati_pdc!$C1022=3,dati_bdv!$E$2:$E$65536,IF(dati_pdc!$C1022=4,dati_bdv!$F$2:$F$65536,IF(dati_pdc!$C1022=5,dati_bdv!$G$2:$G$65536,dati_bdv!$H$2:$H$65536))))),$A1022,dati_bdv!M$2:M$65536)","v":0},{"$f":"SUMIF(IF(dati_pdc!$C1022=1,dati_bdv!$C$2:$C$65536,IF(dati_pdc!$C1022=2,dati_bdv!$D$2:$D$65536,IF(dati_pdc!$C1022=3,dati_bdv!$E$2:$E$65536,IF(dati_pdc!$C1022=4,dati_bdv!$F$2:$F$65536,IF(dati_pdc!$C1022=5,dati_bdv!$G$2:$G$65536,dati_bdv!$H$2:$H$65536))))),$A1022,dati_bdv!N$2:N$65536)","v":0}]
[{"$f":"dati_pdc!A1023","v":0},{"$f":"SUMIF(IF(dati_pdc!$C1023=1,dati_bdv!$C$2:$C$65536,IF(dati_pdc!$C1023=2,dati_bdv!$D$2:$D$65536,IF(dati_pdc!$C1023=3,dati_bdv!$E$2:$E$65536,IF(dati_pdc!$C1023=4,dati_bdv!$F$2:$F$65536,IF(dati_pdc!$C1023=5,dati_bdv!$G$2:$G$65536,dati_bdv!$H$2:$H$65536))))),$A1023,dati_bdv!J$2:J$65536)","v":0},{"$f":"SUMIF(IF(dati_pdc!$C1023=1,dati_bdv!$C$2:$C$65536,IF(dati_pdc!$C1023=2,dati_bdv!$D$2:$D$65536,IF(dati_pdc!$C1023=3,dati_bdv!$E$2:$E$65536,IF(dati_pdc!$C1023=4,dati_bdv!$F$2:$F$65536,IF(dati_pdc!$C1023=5,dati_bdv!$G$2:$G$65536,dati_bdv!$H$2:$H$65536))))),$A1023,dati_bdv!K$2:K$65536)","v":0},{"$f":"SUMIF(IF(dati_pdc!$C1023=1,dati_bdv!$C$2:$C$65536,IF(dati_pdc!$C1023=2,dati_bdv!$D$2:$D$65536,IF(dati_pdc!$C1023=3,dati_bdv!$E$2:$E$65536,IF(dati_pdc!$C1023=4,dati_bdv!$F$2:$F$65536,IF(dati_pdc!$C1023=5,dati_bdv!$G$2:$G$65536,dati_bdv!$H$2:$H$65536))))),$A1023,dati_bdv!L$2:L$65536)","v":0},{"$f":"SUMIF(IF(dati_pdc!$C1023=1,dati_bdv!$C$2:$C$65536,IF(dati_pdc!$C1023=2,dati_bdv!$D$2:$D$65536,IF(dati_pdc!$C1023=3,dati_bdv!$E$2:$E$65536,IF(dati_pdc!$C1023=4,dati_bdv!$F$2:$F$65536,IF(dati_pdc!$C1023=5,dati_bdv!$G$2:$G$65536,dati_bdv!$H$2:$H$65536))))),$A1023,dati_bdv!M$2:M$65536)","v":0},{"$f":"SUMIF(IF(dati_pdc!$C1023=1,dati_bdv!$C$2:$C$65536,IF(dati_pdc!$C1023=2,dati_bdv!$D$2:$D$65536,IF(dati_pdc!$C1023=3,dati_bdv!$E$2:$E$65536,IF(dati_pdc!$C1023=4,dati_bdv!$F$2:$F$65536,IF(dati_pdc!$C1023=5,dati_bdv!$G$2:$G$65536,dati_bdv!$H$2:$H$65536))))),$A1023,dati_bdv!N$2:N$65536)","v":0}]
[{"$f":"dati_pdc!A1024","v":0},{"$f":"SUMIF(IF(dati_pdc!$C1024=1,dati_bdv!$C$2:$C$65536,IF(dati_pdc!$C1024=2,dati_bdv!$D$2:$D$65536,IF(dati_pdc!$C1024=3,dati_bdv!$E$2:$E$65536,IF(dati_pdc!$C1024=4,dati_bdv!$F$2:$F$65536,IF(dati_pdc!$C1024=5,dati_bdv!$G$2:$G$65536,dati_bdv!$H$2:$H$65536))))),$A1024,dati_bdv!J$2:J$65536)","v":0},{"$f":"SUMIF(IF(dati_pdc!$C1024=1,dati_bdv!$C$2:$C$65536,IF(dati_pdc!$C1024=2,dati_bdv!$D$2:$D$65536,IF(dati_pdc!$C1024=3,dati_bdv!$E$2:$E$65536,IF(dati_pdc!$C1024=4,dati_bdv!$F$2:$F$65536,IF(dati_pdc!$C1024=5,dati_bdv!$G$2:$G$65536,dati_bdv!$H$2:$H$65536))))),$A1024,dati_bdv!K$2:K$65536)","v":0},{"$f":"SUMIF(IF(dati_pdc!$C1024=1,dati_bdv!$C$2:$C$65536,IF(dati_pdc!$C1024=2,dati_bdv!$D$2:$D$65536,IF(dati_pdc!$C1024=3,dati_bdv!$E$2:$E$65536,IF(dati_pdc!$C1024=4,dati_bdv!$F$2:$F$65536,IF(dati_pdc!$C1024=5,dati_bdv!$G$2:$G$65536,dati_bdv!$H$2:$H$65536))))),$A1024,dati_bdv!L$2:L$65536)","v":0},{"$f":"SUMIF(IF(dati_pdc!$C1024=1,dati_bdv!$C$2:$C$65536,IF(dati_pdc!$C1024=2,dati_bdv!$D$2:$D$65536,IF(dati_pdc!$C1024=3,dati_bdv!$E$2:$E$65536,IF(dati_pdc!$C1024=4,dati_bdv!$F$2:$F$65536,IF(dati_pdc!$C1024=5,dati_bdv!$G$2:$G$65536,dati_bdv!$H$2:$H$65536))))),$A1024,dati_bdv!M$2:M$65536)","v":0},{"$f":"SUMIF(IF(dati_pdc!$C1024=1,dati_bdv!$C$2:$C$65536,IF(dati_pdc!$C1024=2,dati_bdv!$D$2:$D$65536,IF(dati_pdc!$C1024=3,dati_bdv!$E$2:$E$65536,IF(dati_pdc!$C1024=4,dati_bdv!$F$2:$F$65536,IF(dati_pdc!$C1024=5,dati_bdv!$G$2:$G$65536,dati_bdv!$H$2:$H$65536))))),$A1024,dati_bdv!N$2:N$65536)","v":0}]
[{"$f":"dati_pdc!A1025","v":0},{"$f":"SUMIF(IF(dati_pdc!$C1025=1,dati_bdv!$C$2:$C$65536,IF(dati_pdc!$C1025=2,dati_bdv!$D$2:$D$65536,IF(dati_pdc!$C1025=3,dati_bdv!$E$2:$E$65536,IF(dati_pdc!$C1025=4,dati_bdv!$F$2:$F$65536,IF(dati_pdc!$C1025=5,dati_bdv!$G$2:$G$65536,dati_bdv!$H$2:$H$65536))))),$A1025,dati_bdv!J$2:J$65536)","v":0},{"$f":"SUMIF(IF(dati_pdc!$C1025=1,dati_bdv!$C$2:$C$65536,IF(dati_pdc!$C1025=2,dati_bdv!$D$2:$D$65536,IF(dati_pdc!$C1025=3,dati_bdv!$E$2:$E$65536,IF(dati_pdc!$C1025=4,dati_bdv!$F$2:$F$65536,IF(dati_pdc!$C1025=5,dati_bdv!$G$2:$G$65536,dati_bdv!$H$2:$H$65536))))),$A1025,dati_bdv!K$2:K$65536)","v":0},{"$f":"SUMIF(IF(dati_pdc!$C1025=1,dati_bdv!$C$2:$C$65536,IF(dati_pdc!$C1025=2,dati_bdv!$D$2:$D$65536,IF(dati_pdc!$C1025=3,dati_bdv!$E$2:$E$65536,IF(dati_pdc!$C1025=4,dati_bdv!$F$2:$F$65536,IF(dati_pdc!$C1025=5,dati_bdv!$G$2:$G$65536,dati_bdv!$H$2:$H$65536))))),$A1025,dati_bdv!L$2:L$65536)","v":0},{"$f":"SUMIF(IF(dati_pdc!$C1025=1,dati_bdv!$C$2:$C$65536,IF(dati_pdc!$C1025=2,dati_bdv!$D$2:$D$65536,IF(dati_pdc!$C1025=3,dati_bdv!$E$2:$E$65536,IF(dati_pdc!$C1025=4,dati_bdv!$F$2:$F$65536,IF(dati_pdc!$C1025=5,dati_bdv!$G$2:$G$65536,dati_bdv!$H$2:$H$65536))))),$A1025,dati_bdv!M$2:M$65536)","v":0},{"$f":"SUMIF(IF(dati_pdc!$C1025=1,dati_bdv!$C$2:$C$65536,IF(dati_pdc!$C1025=2,dati_bdv!$D$2:$D$65536,IF(dati_pdc!$C1025=3,dati_bdv!$E$2:$E$65536,IF(dati_pdc!$C1025=4,dati_bdv!$F$2:$F$65536,IF(dati_pdc!$C1025=5,dati_bdv!$G$2:$G$65536,dati_bdv!$H$2:$H$65536))))),$A1025,dati_bdv!N$2:N$65536)","v":0}]
[{"$f":"dati_pdc!A1026","v":0},{"$f":"SUMIF(IF(dati_pdc!$C1026=1,dati_bdv!$C$2:$C$65536,IF(dati_pdc!$C1026=2,dati_bdv!$D$2:$D$65536,IF(dati_pdc!$C1026=3,dati_bdv!$E$2:$E$65536,IF(dati_pdc!$C1026=4,dati_bdv!$F$2:$F$65536,IF(dati_pdc!$C1026=5,dati_bdv!$G$2:$G$65536,dati_bdv!$H$2:$H$65536))))),$A1026,dati_bdv!J$2:J$65536)","v":0},{"$f":"SUMIF(IF(dati_pdc!$C1026=1,dati_bdv!$C$2:$C$65536,IF(dati_pdc!$C1026=2,dati_bdv!$D$2:$D$65536,IF(dati_pdc!$C1026=3,dati_bdv!$E$2:$E$65536,IF(dati_pdc!$C1026=4,dati_bdv!$F$2:$F$65536,IF(dati_pdc!$C1026=5,dati_bdv!$G$2:$G$65536,dati_bdv!$H$2:$H$65536))))),$A1026,dati_bdv!K$2:K$65536)","v":0},{"$f":"SUMIF(IF(dati_pdc!$C1026=1,dati_bdv!$C$2:$C$65536,IF(dati_pdc!$C1026=2,dati_bdv!$D$2:$D$65536,IF(dati_pdc!$C1026=3,dati_bdv!$E$2:$E$65536,IF(dati_pdc!$C1026=4,dati_bdv!$F$2:$F$65536,IF(dati_pdc!$C1026=5,dati_bdv!$G$2:$G$65536,dati_bdv!$H$2:$H$65536))))),$A1026,dati_bdv!L$2:L$65536)","v":0},{"$f":"SUMIF(IF(dati_pdc!$C1026=1,dati_bdv!$C$2:$C$65536,IF(dati_pdc!$C1026=2,dati_bdv!$D$2:$D$65536,IF(dati_pdc!$C1026=3,dati_bdv!$E$2:$E$65536,IF(dati_pdc!$C1026=4,dati_bdv!$F$2:$F$65536,IF(dati_pdc!$C1026=5,dati_bdv!$G$2:$G$65536,dati_bdv!$H$2:$H$65536))))),$A1026,dati_bdv!M$2:M$65536)","v":0},{"$f":"SUMIF(IF(dati_pdc!$C1026=1,dati_bdv!$C$2:$C$65536,IF(dati_pdc!$C1026=2,dati_bdv!$D$2:$D$65536,IF(dati_pdc!$C1026=3,dati_bdv!$E$2:$E$65536,IF(dati_pdc!$C1026=4,dati_bdv!$F$2:$F$65536,IF(dati_pdc!$C1026=5,dati_bdv!$G$2:$G$65536,dati_bdv!$H$2:$H$65536))))),$A1026,dati_bdv!N$2:N$65536)","v":0}]
[{"$f":"dati_pdc!A1027","v":0},{"$f":"SUMIF(IF(dati_pdc!$C1027=1,dati_bdv!$C$2:$C$65536,IF(dati_pdc!$C1027=2,dati_bdv!$D$2:$D$65536,IF(dati_pdc!$C1027=3,dati_bdv!$E$2:$E$65536,IF(dati_pdc!$C1027=4,dati_bdv!$F$2:$F$65536,IF(dati_pdc!$C1027=5,dati_bdv!$G$2:$G$65536,dati_bdv!$H$2:$H$65536))))),$A1027,dati_bdv!J$2:J$65536)","v":0},{"$f":"SUMIF(IF(dati_pdc!$C1027=1,dati_bdv!$C$2:$C$65536,IF(dati_pdc!$C1027=2,dati_bdv!$D$2:$D$65536,IF(dati_pdc!$C1027=3,dati_bdv!$E$2:$E$65536,IF(dati_pdc!$C1027=4,dati_bdv!$F$2:$F$65536,IF(dati_pdc!$C1027=5,dati_bdv!$G$2:$G$65536,dati_bdv!$H$2:$H$65536))))),$A1027,dati_bdv!K$2:K$65536)","v":0},{"$f":"SUMIF(IF(dati_pdc!$C1027=1,dati_bdv!$C$2:$C$65536,IF(dati_pdc!$C1027=2,dati_bdv!$D$2:$D$65536,IF(dati_pdc!$C1027=3,dati_bdv!$E$2:$E$65536,IF(dati_pdc!$C1027=4,dati_bdv!$F$2:$F$65536,IF(dati_pdc!$C1027=5,dati_bdv!$G$2:$G$65536,dati_bdv!$H$2:$H$65536))))),$A1027,dati_bdv!L$2:L$65536)","v":0},{"$f":"SUMIF(IF(dati_pdc!$C1027=1,dati_bdv!$C$2:$C$65536,IF(dati_pdc!$C1027=2,dati_bdv!$D$2:$D$65536,IF(dati_pdc!$C1027=3,dati_bdv!$E$2:$E$65536,IF(dati_pdc!$C1027=4,dati_bdv!$F$2:$F$65536,IF(dati_pdc!$C1027=5,dati_bdv!$G$2:$G$65536,dati_bdv!$H$2:$H$65536))))),$A1027,dati_bdv!M$2:M$65536)","v":0},{"$f":"SUMIF(IF(dati_pdc!$C1027=1,dati_bdv!$C$2:$C$65536,IF(dati_pdc!$C1027=2,dati_bdv!$D$2:$D$65536,IF(dati_pdc!$C1027=3,dati_bdv!$E$2:$E$65536,IF(dati_pdc!$C1027=4,dati_bdv!$F$2:$F$65536,IF(dati_pdc!$C1027=5,dati_bdv!$G$2:$G$65536,dati_bdv!$H$2:$H$65536))))),$A1027,dati_bdv!N$2:N$65536)","v":0}]
[{"$f":"dati_pdc!A1028","v":0},{"$f":"SUMIF(IF(dati_pdc!$C1028=1,dati_bdv!$C$2:$C$65536,IF(dati_pdc!$C1028=2,dati_bdv!$D$2:$D$65536,IF(dati_pdc!$C1028=3,dati_bdv!$E$2:$E$65536,IF(dati_pdc!$C1028=4,dati_bdv!$F$2:$F$65536,IF(dati_pdc!$C1028=5,dati_bdv!$G$2:$G$65536,dati_bdv!$H$2:$H$65536))))),$A1028,dati_bdv!J$2:J$65536)","v":0},{"$f":"SUMIF(IF(dati_pdc!$C1028=1,dati_bdv!$C$2:$C$65536,IF(dati_pdc!$C1028=2,dati_bdv!$D$2:$D$65536,IF(dati_pdc!$C1028=3,dati_bdv!$E$2:$E$65536,IF(dati_pdc!$C1028=4,dati_bdv!$F$2:$F$65536,IF(dati_pdc!$C1028=5,dati_bdv!$G$2:$G$65536,dati_bdv!$H$2:$H$65536))))),$A1028,dati_bdv!K$2:K$65536)","v":0},{"$f":"SUMIF(IF(dati_pdc!$C1028=1,dati_bdv!$C$2:$C$65536,IF(dati_pdc!$C1028=2,dati_bdv!$D$2:$D$65536,IF(dati_pdc!$C1028=3,dati_bdv!$E$2:$E$65536,IF(dati_pdc!$C1028=4,dati_bdv!$F$2:$F$65536,IF(dati_pdc!$C1028=5,dati_bdv!$G$2:$G$65536,dati_bdv!$H$2:$H$65536))))),$A1028,dati_bdv!L$2:L$65536)","v":0},{"$f":"SUMIF(IF(dati_pdc!$C1028=1,dati_bdv!$C$2:$C$65536,IF(dati_pdc!$C1028=2,dati_bdv!$D$2:$D$65536,IF(dati_pdc!$C1028=3,dati_bdv!$E$2:$E$65536,IF(dati_pdc!$C1028=4,dati_bdv!$F$2:$F$65536,IF(dati_pdc!$C1028=5,dati_bdv!$G$2:$G$65536,dati_bdv!$H$2:$H$65536))))),$A1028,dati_bdv!M$2:M$65536)","v":0},{"$f":"SUMIF(IF(dati_pdc!$C1028=1,dati_bdv!$C$2:$C$65536,IF(dati_pdc!$C1028=2,dati_bdv!$D$2:$D$65536,IF(dati_pdc!$C1028=3,dati_bdv!$E$2:$E$65536,IF(dati_pdc!$C1028=4,dati_bdv!$F$2:$F$65536,IF(dati_pdc!$C1028=5,dati_bdv!$G$2:$G$65536,dati_bdv!$H$2:$H$65536))))),$A1028,dati_bdv!N$2:N$65536)","v":0}]
[{"$f":"dati_pdc!A1029","v":0},{"$f":"SUMIF(IF(dati_pdc!$C1029=1,dati_bdv!$C$2:$C$65536,IF(dati_pdc!$C1029=2,dati_bdv!$D$2:$D$65536,IF(dati_pdc!$C1029=3,dati_bdv!$E$2:$E$65536,IF(dati_pdc!$C1029=4,dati_bdv!$F$2:$F$65536,IF(dati_pdc!$C1029=5,dati_bdv!$G$2:$G$65536,dati_bdv!$H$2:$H$65536))))),$A1029,dati_bdv!J$2:J$65536)","v":0},{"$f":"SUMIF(IF(dati_pdc!$C1029=1,dati_bdv!$C$2:$C$65536,IF(dati_pdc!$C1029=2,dati_bdv!$D$2:$D$65536,IF(dati_pdc!$C1029=3,dati_bdv!$E$2:$E$65536,IF(dati_pdc!$C1029=4,dati_bdv!$F$2:$F$65536,IF(dati_pdc!$C1029=5,dati_bdv!$G$2:$G$65536,dati_bdv!$H$2:$H$65536))))),$A1029,dati_bdv!K$2:K$65536)","v":0},{"$f":"SUMIF(IF(dati_pdc!$C1029=1,dati_bdv!$C$2:$C$65536,IF(dati_pdc!$C1029=2,dati_bdv!$D$2:$D$65536,IF(dati_pdc!$C1029=3,dati_bdv!$E$2:$E$65536,IF(dati_pdc!$C1029=4,dati_bdv!$F$2:$F$65536,IF(dati_pdc!$C1029=5,dati_bdv!$G$2:$G$65536,dati_bdv!$H$2:$H$65536))))),$A1029,dati_bdv!L$2:L$65536)","v":0},{"$f":"SUMIF(IF(dati_pdc!$C1029=1,dati_bdv!$C$2:$C$65536,IF(dati_pdc!$C1029=2,dati_bdv!$D$2:$D$65536,IF(dati_pdc!$C1029=3,dati_bdv!$E$2:$E$65536,IF(dati_pdc!$C1029=4,dati_bdv!$F$2:$F$65536,IF(dati_pdc!$C1029=5,dati_bdv!$G$2:$G$65536,dati_bdv!$H$2:$H$65536))))),$A1029,dati_bdv!M$2:M$65536)","v":0},{"$f":"SUMIF(IF(dati_pdc!$C1029=1,dati_bdv!$C$2:$C$65536,IF(dati_pdc!$C1029=2,dati_bdv!$D$2:$D$65536,IF(dati_pdc!$C1029=3,dati_bdv!$E$2:$E$65536,IF(dati_pdc!$C1029=4,dati_bdv!$F$2:$F$65536,IF(dati_pdc!$C1029=5,dati_bdv!$G$2:$G$65536,dati_bdv!$H$2:$H$65536))))),$A1029,dati_bdv!N$2:N$65536)","v":0}]
[{"$f":"dati_pdc!A1030","v":0},{"$f":"SUMIF(IF(dati_pdc!$C1030=1,dati_bdv!$C$2:$C$65536,IF(dati_pdc!$C1030=2,dati_bdv!$D$2:$D$65536,IF(dati_pdc!$C1030=3,dati_bdv!$E$2:$E$65536,IF(dati_pdc!$C1030=4,dati_bdv!$F$2:$F$65536,IF(dati_pdc!$C1030=5,dati_bdv!$G$2:$G$65536,dati_bdv!$H$2:$H$65536))))),$A1030,dati_bdv!J$2:J$65536)","v":0},{"$f":"SUMIF(IF(dati_pdc!$C1030=1,dati_bdv!$C$2:$C$65536,IF(dati_pdc!$C1030=2,dati_bdv!$D$2:$D$65536,IF(dati_pdc!$C1030=3,dati_bdv!$E$2:$E$65536,IF(dati_pdc!$C1030=4,dati_bdv!$F$2:$F$65536,IF(dati_pdc!$C1030=5,dati_bdv!$G$2:$G$65536,dati_bdv!$H$2:$H$65536))))),$A1030,dati_bdv!K$2:K$65536)","v":0},{"$f":"SUMIF(IF(dati_pdc!$C1030=1,dati_bdv!$C$2:$C$65536,IF(dati_pdc!$C1030=2,dati_bdv!$D$2:$D$65536,IF(dati_pdc!$C1030=3,dati_bdv!$E$2:$E$65536,IF(dati_pdc!$C1030=4,dati_bdv!$F$2:$F$65536,IF(dati_pdc!$C1030=5,dati_bdv!$G$2:$G$65536,dati_bdv!$H$2:$H$65536))))),$A1030,dati_bdv!L$2:L$65536)","v":0},{"$f":"SUMIF(IF(dati_pdc!$C1030=1,dati_bdv!$C$2:$C$65536,IF(dati_pdc!$C1030=2,dati_bdv!$D$2:$D$65536,IF(dati_pdc!$C1030=3,dati_bdv!$E$2:$E$65536,IF(dati_pdc!$C1030=4,dati_bdv!$F$2:$F$65536,IF(dati_pdc!$C1030=5,dati_bdv!$G$2:$G$65536,dati_bdv!$H$2:$H$65536))))),$A1030,dati_bdv!M$2:M$65536)","v":0},{"$f":"SUMIF(IF(dati_pdc!$C1030=1,dati_bdv!$C$2:$C$65536,IF(dati_pdc!$C1030=2,dati_bdv!$D$2:$D$65536,IF(dati_pdc!$C1030=3,dati_bdv!$E$2:$E$65536,IF(dati_pdc!$C1030=4,dati_bdv!$F$2:$F$65536,IF(dati_pdc!$C1030=5,dati_bdv!$G$2:$G$65536,dati_bdv!$H$2:$H$65536))))),$A1030,dati_bdv!N$2:N$65536)","v":0}]
[{"$f":"dati_pdc!A1031","v":0},{"$f":"SUMIF(IF(dati_pdc!$C1031=1,dati_bdv!$C$2:$C$65536,IF(dati_pdc!$C1031=2,dati_bdv!$D$2:$D$65536,IF(dati_pdc!$C1031=3,dati_bdv!$E$2:$E$65536,IF(dati_pdc!$C1031=4,dati_bdv!$F$2:$F$65536,IF(dati_pdc!$C1031=5,dati_bdv!$G$2:$G$65536,dati_bdv!$H$2:$H$65536))))),$A1031,dati_bdv!J$2:J$65536)","v":0},{"$f":"SUMIF(IF(dati_pdc!$C1031=1,dati_bdv!$C$2:$C$65536,IF(dati_pdc!$C1031=2,dati_bdv!$D$2:$D$65536,IF(dati_pdc!$C1031=3,dati_bdv!$E$2:$E$65536,IF(dati_pdc!$C1031=4,dati_bdv!$F$2:$F$65536,IF(dati_pdc!$C1031=5,dati_bdv!$G$2:$G$65536,dati_bdv!$H$2:$H$65536))))),$A1031,dati_bdv!K$2:K$65536)","v":0},{"$f":"SUMIF(IF(dati_pdc!$C1031=1,dati_bdv!$C$2:$C$65536,IF(dati_pdc!$C1031=2,dati_bdv!$D$2:$D$65536,IF(dati_pdc!$C1031=3,dati_bdv!$E$2:$E$65536,IF(dati_pdc!$C1031=4,dati_bdv!$F$2:$F$65536,IF(dati_pdc!$C1031=5,dati_bdv!$G$2:$G$65536,dati_bdv!$H$2:$H$65536))))),$A1031,dati_bdv!L$2:L$65536)","v":0},{"$f":"SUMIF(IF(dati_pdc!$C1031=1,dati_bdv!$C$2:$C$65536,IF(dati_pdc!$C1031=2,dati_bdv!$D$2:$D$65536,IF(dati_pdc!$C1031=3,dati_bdv!$E$2:$E$65536,IF(dati_pdc!$C1031=4,dati_bdv!$F$2:$F$65536,IF(dati_pdc!$C1031=5,dati_bdv!$G$2:$G$65536,dati_bdv!$H$2:$H$65536))))),$A1031,dati_bdv!M$2:M$65536)","v":0},{"$f":"SUMIF(IF(dati_pdc!$C1031=1,dati_bdv!$C$2:$C$65536,IF(dati_pdc!$C1031=2,dati_bdv!$D$2:$D$65536,IF(dati_pdc!$C1031=3,dati_bdv!$E$2:$E$65536,IF(dati_pdc!$C1031=4,dati_bdv!$F$2:$F$65536,IF(dati_pdc!$C1031=5,dati_bdv!$G$2:$G$65536,dati_bdv!$H$2:$H$65536))))),$A1031,dati_bdv!N$2:N$65536)","v":0}]
[{"$f":"dati_pdc!A1032","v":0},{"$f":"SUMIF(IF(dati_pdc!$C1032=1,dati_bdv!$C$2:$C$65536,IF(dati_pdc!$C1032=2,dati_bdv!$D$2:$D$65536,IF(dati_pdc!$C1032=3,dati_bdv!$E$2:$E$65536,IF(dati_pdc!$C1032=4,dati_bdv!$F$2:$F$65536,IF(dati_pdc!$C1032=5,dati_bdv!$G$2:$G$65536,dati_bdv!$H$2:$H$65536))))),$A1032,dati_bdv!J$2:J$65536)","v":0},{"$f":"SUMIF(IF(dati_pdc!$C1032=1,dati_bdv!$C$2:$C$65536,IF(dati_pdc!$C1032=2,dati_bdv!$D$2:$D$65536,IF(dati_pdc!$C1032=3,dati_bdv!$E$2:$E$65536,IF(dati_pdc!$C1032=4,dati_bdv!$F$2:$F$65536,IF(dati_pdc!$C1032=5,dati_bdv!$G$2:$G$65536,dati_bdv!$H$2:$H$65536))))),$A1032,dati_bdv!K$2:K$65536)","v":0},{"$f":"SUMIF(IF(dati_pdc!$C1032=1,dati_bdv!$C$2:$C$65536,IF(dati_pdc!$C1032=2,dati_bdv!$D$2:$D$65536,IF(dati_pdc!$C1032=3,dati_bdv!$E$2:$E$65536,IF(dati_pdc!$C1032=4,dati_bdv!$F$2:$F$65536,IF(dati_pdc!$C1032=5,dati_bdv!$G$2:$G$65536,dati_bdv!$H$2:$H$65536))))),$A1032,dati_bdv!L$2:L$65536)","v":0},{"$f":"SUMIF(IF(dati_pdc!$C1032=1,dati_bdv!$C$2:$C$65536,IF(dati_pdc!$C1032=2,dati_bdv!$D$2:$D$65536,IF(dati_pdc!$C1032=3,dati_bdv!$E$2:$E$65536,IF(dati_pdc!$C1032=4,dati_bdv!$F$2:$F$65536,IF(dati_pdc!$C1032=5,dati_bdv!$G$2:$G$65536,dati_bdv!$H$2:$H$65536))))),$A1032,dati_bdv!M$2:M$65536)","v":0},{"$f":"SUMIF(IF(dati_pdc!$C1032=1,dati_bdv!$C$2:$C$65536,IF(dati_pdc!$C1032=2,dati_bdv!$D$2:$D$65536,IF(dati_pdc!$C1032=3,dati_bdv!$E$2:$E$65536,IF(dati_pdc!$C1032=4,dati_bdv!$F$2:$F$65536,IF(dati_pdc!$C1032=5,dati_bdv!$G$2:$G$65536,dati_bdv!$H$2:$H$65536))))),$A1032,dati_bdv!N$2:N$65536)","v":0}]
[{"$f":"dati_pdc!A1033","v":0},{"$f":"SUMIF(IF(dati_pdc!$C1033=1,dati_bdv!$C$2:$C$65536,IF(dati_pdc!$C1033=2,dati_bdv!$D$2:$D$65536,IF(dati_pdc!$C1033=3,dati_bdv!$E$2:$E$65536,IF(dati_pdc!$C1033=4,dati_bdv!$F$2:$F$65536,IF(dati_pdc!$C1033=5,dati_bdv!$G$2:$G$65536,dati_bdv!$H$2:$H$65536))))),$A1033,dati_bdv!J$2:J$65536)","v":0},{"$f":"SUMIF(IF(dati_pdc!$C1033=1,dati_bdv!$C$2:$C$65536,IF(dati_pdc!$C1033=2,dati_bdv!$D$2:$D$65536,IF(dati_pdc!$C1033=3,dati_bdv!$E$2:$E$65536,IF(dati_pdc!$C1033=4,dati_bdv!$F$2:$F$65536,IF(dati_pdc!$C1033=5,dati_bdv!$G$2:$G$65536,dati_bdv!$H$2:$H$65536))))),$A1033,dati_bdv!K$2:K$65536)","v":0},{"$f":"SUMIF(IF(dati_pdc!$C1033=1,dati_bdv!$C$2:$C$65536,IF(dati_pdc!$C1033=2,dati_bdv!$D$2:$D$65536,IF(dati_pdc!$C1033=3,dati_bdv!$E$2:$E$65536,IF(dati_pdc!$C1033=4,dati_bdv!$F$2:$F$65536,IF(dati_pdc!$C1033=5,dati_bdv!$G$2:$G$65536,dati_bdv!$H$2:$H$65536))))),$A1033,dati_bdv!L$2:L$65536)","v":0},{"$f":"SUMIF(IF(dati_pdc!$C1033=1,dati_bdv!$C$2:$C$65536,IF(dati_pdc!$C1033=2,dati_bdv!$D$2:$D$65536,IF(dati_pdc!$C1033=3,dati_bdv!$E$2:$E$65536,IF(dati_pdc!$C1033=4,dati_bdv!$F$2:$F$65536,IF(dati_pdc!$C1033=5,dati_bdv!$G$2:$G$65536,dati_bdv!$H$2:$H$65536))))),$A1033,dati_bdv!M$2:M$65536)","v":0},{"$f":"SUMIF(IF(dati_pdc!$C1033=1,dati_bdv!$C$2:$C$65536,IF(dati_pdc!$C1033=2,dati_bdv!$D$2:$D$65536,IF(dati_pdc!$C1033=3,dati_bdv!$E$2:$E$65536,IF(dati_pdc!$C1033=4,dati_bdv!$F$2:$F$65536,IF(dati_pdc!$C1033=5,dati_bdv!$G$2:$G$65536,dati_bdv!$H$2:$H$65536))))),$A1033,dati_bdv!N$2:N$65536)","v":0}]
[{"$f":"dati_pdc!A1034","v":0},{"$f":"SUMIF(IF(dati_pdc!$C1034=1,dati_bdv!$C$2:$C$65536,IF(dati_pdc!$C1034=2,dati_bdv!$D$2:$D$65536,IF(dati_pdc!$C1034=3,dati_bdv!$E$2:$E$65536,IF(dati_pdc!$C1034=4,dati_bdv!$F$2:$F$65536,IF(dati_pdc!$C1034=5,dati_bdv!$G$2:$G$65536,dati_bdv!$H$2:$H$65536))))),$A1034,dati_bdv!J$2:J$65536)","v":0},{"$f":"SUMIF(IF(dati_pdc!$C1034=1,dati_bdv!$C$2:$C$65536,IF(dati_pdc!$C1034=2,dati_bdv!$D$2:$D$65536,IF(dati_pdc!$C1034=3,dati_bdv!$E$2:$E$65536,IF(dati_pdc!$C1034=4,dati_bdv!$F$2:$F$65536,IF(dati_pdc!$C1034=5,dati_bdv!$G$2:$G$65536,dati_bdv!$H$2:$H$65536))))),$A1034,dati_bdv!K$2:K$65536)","v":0},{"$f":"SUMIF(IF(dati_pdc!$C1034=1,dati_bdv!$C$2:$C$65536,IF(dati_pdc!$C1034=2,dati_bdv!$D$2:$D$65536,IF(dati_pdc!$C1034=3,dati_bdv!$E$2:$E$65536,IF(dati_pdc!$C1034=4,dati_bdv!$F$2:$F$65536,IF(dati_pdc!$C1034=5,dati_bdv!$G$2:$G$65536,dati_bdv!$H$2:$H$65536))))),$A1034,dati_bdv!L$2:L$65536)","v":0},{"$f":"SUMIF(IF(dati_pdc!$C1034=1,dati_bdv!$C$2:$C$65536,IF(dati_pdc!$C1034=2,dati_bdv!$D$2:$D$65536,IF(dati_pdc!$C1034=3,dati_bdv!$E$2:$E$65536,IF(dati_pdc!$C1034=4,dati_bdv!$F$2:$F$65536,IF(dati_pdc!$C1034=5,dati_bdv!$G$2:$G$65536,dati_bdv!$H$2:$H$65536))))),$A1034,dati_bdv!M$2:M$65536)","v":0},{"$f":"SUMIF(IF(dati_pdc!$C1034=1,dati_bdv!$C$2:$C$65536,IF(dati_pdc!$C1034=2,dati_bdv!$D$2:$D$65536,IF(dati_pdc!$C1034=3,dati_bdv!$E$2:$E$65536,IF(dati_pdc!$C1034=4,dati_bdv!$F$2:$F$65536,IF(dati_pdc!$C1034=5,dati_bdv!$G$2:$G$65536,dati_bdv!$H$2:$H$65536))))),$A1034,dati_bdv!N$2:N$65536)","v":0}]
[{"$f":"dati_pdc!A1035","v":0},{"$f":"SUMIF(IF(dati_pdc!$C1035=1,dati_bdv!$C$2:$C$65536,IF(dati_pdc!$C1035=2,dati_bdv!$D$2:$D$65536,IF(dati_pdc!$C1035=3,dati_bdv!$E$2:$E$65536,IF(dati_pdc!$C1035=4,dati_bdv!$F$2:$F$65536,IF(dati_pdc!$C1035=5,dati_bdv!$G$2:$G$65536,dati_bdv!$H$2:$H$65536))))),$A1035,dati_bdv!J$2:J$65536)","v":0},{"$f":"SUMIF(IF(dati_pdc!$C1035=1,dati_bdv!$C$2:$C$65536,IF(dati_pdc!$C1035=2,dati_bdv!$D$2:$D$65536,IF(dati_pdc!$C1035=3,dati_bdv!$E$2:$E$65536,IF(dati_pdc!$C1035=4,dati_bdv!$F$2:$F$65536,IF(dati_pdc!$C1035=5,dati_bdv!$G$2:$G$65536,dati_bdv!$H$2:$H$65536))))),$A1035,dati_bdv!K$2:K$65536)","v":0},{"$f":"SUMIF(IF(dati_pdc!$C1035=1,dati_bdv!$C$2:$C$65536,IF(dati_pdc!$C1035=2,dati_bdv!$D$2:$D$65536,IF(dati_pdc!$C1035=3,dati_bdv!$E$2:$E$65536,IF(dati_pdc!$C1035=4,dati_bdv!$F$2:$F$65536,IF(dati_pdc!$C1035=5,dati_bdv!$G$2:$G$65536,dati_bdv!$H$2:$H$65536))))),$A1035,dati_bdv!L$2:L$65536)","v":0},{"$f":"SUMIF(IF(dati_pdc!$C1035=1,dati_bdv!$C$2:$C$65536,IF(dati_pdc!$C1035=2,dati_bdv!$D$2:$D$65536,IF(dati_pdc!$C1035=3,dati_bdv!$E$2:$E$65536,IF(dati_pdc!$C1035=4,dati_bdv!$F$2:$F$65536,IF(dati_pdc!$C1035=5,dati_bdv!$G$2:$G$65536,dati_bdv!$H$2:$H$65536))))),$A1035,dati_bdv!M$2:M$65536)","v":0},{"$f":"SUMIF(IF(dati_pdc!$C1035=1,dati_bdv!$C$2:$C$65536,IF(dati_pdc!$C1035=2,dati_bdv!$D$2:$D$65536,IF(dati_pdc!$C1035=3,dati_bdv!$E$2:$E$65536,IF(dati_pdc!$C1035=4,dati_bdv!$F$2:$F$65536,IF(dati_pdc!$C1035=5,dati_bdv!$G$2:$G$65536,dati_bdv!$H$2:$H$65536))))),$A1035,dati_bdv!N$2:N$65536)","v":0}]
[{"$f":"dati_pdc!A1036","v":0},{"$f":"SUMIF(IF(dati_pdc!$C1036=1,dati_bdv!$C$2:$C$65536,IF(dati_pdc!$C1036=2,dati_bdv!$D$2:$D$65536,IF(dati_pdc!$C1036=3,dati_bdv!$E$2:$E$65536,IF(dati_pdc!$C1036=4,dati_bdv!$F$2:$F$65536,IF(dati_pdc!$C1036=5,dati_bdv!$G$2:$G$65536,dati_bdv!$H$2:$H$65536))))),$A1036,dati_bdv!J$2:J$65536)","v":0},{"$f":"SUMIF(IF(dati_pdc!$C1036=1,dati_bdv!$C$2:$C$65536,IF(dati_pdc!$C1036=2,dati_bdv!$D$2:$D$65536,IF(dati_pdc!$C1036=3,dati_bdv!$E$2:$E$65536,IF(dati_pdc!$C1036=4,dati_bdv!$F$2:$F$65536,IF(dati_pdc!$C1036=5,dati_bdv!$G$2:$G$65536,dati_bdv!$H$2:$H$65536))))),$A1036,dati_bdv!K$2:K$65536)","v":0},{"$f":"SUMIF(IF(dati_pdc!$C1036=1,dati_bdv!$C$2:$C$65536,IF(dati_pdc!$C1036=2,dati_bdv!$D$2:$D$65536,IF(dati_pdc!$C1036=3,dati_bdv!$E$2:$E$65536,IF(dati_pdc!$C1036=4,dati_bdv!$F$2:$F$65536,IF(dati_pdc!$C1036=5,dati_bdv!$G$2:$G$65536,dati_bdv!$H$2:$H$65536))))),$A1036,dati_bdv!L$2:L$65536)","v":0},{"$f":"SUMIF(IF(dati_pdc!$C1036=1,dati_bdv!$C$2:$C$65536,IF(dati_pdc!$C1036=2,dati_bdv!$D$2:$D$65536,IF(dati_pdc!$C1036=3,dati_bdv!$E$2:$E$65536,IF(dati_pdc!$C1036=4,dati_bdv!$F$2:$F$65536,IF(dati_pdc!$C1036=5,dati_bdv!$G$2:$G$65536,dati_bdv!$H$2:$H$65536))))),$A1036,dati_bdv!M$2:M$65536)","v":0},{"$f":"SUMIF(IF(dati_pdc!$C1036=1,dati_bdv!$C$2:$C$65536,IF(dati_pdc!$C1036=2,dati_bdv!$D$2:$D$65536,IF(dati_pdc!$C1036=3,dati_bdv!$E$2:$E$65536,IF(dati_pdc!$C1036=4,dati_bdv!$F$2:$F$65536,IF(dati_pdc!$C1036=5,dati_bdv!$G$2:$G$65536,dati_bdv!$H$2:$H$65536))))),$A1036,dati_bdv!N$2:N$65536)","v":0}]
[{"$f":"dati_pdc!A1037","v":0},{"$f":"SUMIF(IF(dati_pdc!$C1037=1,dati_bdv!$C$2:$C$65536,IF(dati_pdc!$C1037=2,dati_bdv!$D$2:$D$65536,IF(dati_pdc!$C1037=3,dati_bdv!$E$2:$E$65536,IF(dati_pdc!$C1037=4,dati_bdv!$F$2:$F$65536,IF(dati_pdc!$C1037=5,dati_bdv!$G$2:$G$65536,dati_bdv!$H$2:$H$65536))))),$A1037,dati_bdv!J$2:J$65536)","v":0},{"$f":"SUMIF(IF(dati_pdc!$C1037=1,dati_bdv!$C$2:$C$65536,IF(dati_pdc!$C1037=2,dati_bdv!$D$2:$D$65536,IF(dati_pdc!$C1037=3,dati_bdv!$E$2:$E$65536,IF(dati_pdc!$C1037=4,dati_bdv!$F$2:$F$65536,IF(dati_pdc!$C1037=5,dati_bdv!$G$2:$G$65536,dati_bdv!$H$2:$H$65536))))),$A1037,dati_bdv!K$2:K$65536)","v":0},{"$f":"SUMIF(IF(dati_pdc!$C1037=1,dati_bdv!$C$2:$C$65536,IF(dati_pdc!$C1037=2,dati_bdv!$D$2:$D$65536,IF(dati_pdc!$C1037=3,dati_bdv!$E$2:$E$65536,IF(dati_pdc!$C1037=4,dati_bdv!$F$2:$F$65536,IF(dati_pdc!$C1037=5,dati_bdv!$G$2:$G$65536,dati_bdv!$H$2:$H$65536))))),$A1037,dati_bdv!L$2:L$65536)","v":0},{"$f":"SUMIF(IF(dati_pdc!$C1037=1,dati_bdv!$C$2:$C$65536,IF(dati_pdc!$C1037=2,dati_bdv!$D$2:$D$65536,IF(dati_pdc!$C1037=3,dati_bdv!$E$2:$E$65536,IF(dati_pdc!$C1037=4,dati_bdv!$F$2:$F$65536,IF(dati_pdc!$C1037=5,dati_bdv!$G$2:$G$65536,dati_bdv!$H$2:$H$65536))))),$A1037,dati_bdv!M$2:M$65536)","v":0},{"$f":"SUMIF(IF(dati_pdc!$C1037=1,dati_bdv!$C$2:$C$65536,IF(dati_pdc!$C1037=2,dati_bdv!$D$2:$D$65536,IF(dati_pdc!$C1037=3,dati_bdv!$E$2:$E$65536,IF(dati_pdc!$C1037=4,dati_bdv!$F$2:$F$65536,IF(dati_pdc!$C1037=5,dati_bdv!$G$2:$G$65536,dati_bdv!$H$2:$H$65536))))),$A1037,dati_bdv!N$2:N$65536)","v":0}]
[{"$f":"dati_pdc!A1038","v":0},{"$f":"SUMIF(IF(dati_pdc!$C1038=1,dati_bdv!$C$2:$C$65536,IF(dati_pdc!$C1038=2,dati_bdv!$D$2:$D$65536,IF(dati_pdc!$C1038=3,dati_bdv!$E$2:$E$65536,IF(dati_pdc!$C1038=4,dati_bdv!$F$2:$F$65536,IF(dati_pdc!$C1038=5,dati_bdv!$G$2:$G$65536,dati_bdv!$H$2:$H$65536))))),$A1038,dati_bdv!J$2:J$65536)","v":0},{"$f":"SUMIF(IF(dati_pdc!$C1038=1,dati_bdv!$C$2:$C$65536,IF(dati_pdc!$C1038=2,dati_bdv!$D$2:$D$65536,IF(dati_pdc!$C1038=3,dati_bdv!$E$2:$E$65536,IF(dati_pdc!$C1038=4,dati_bdv!$F$2:$F$65536,IF(dati_pdc!$C1038=5,dati_bdv!$G$2:$G$65536,dati_bdv!$H$2:$H$65536))))),$A1038,dati_bdv!K$2:K$65536)","v":0},{"$f":"SUMIF(IF(dati_pdc!$C1038=1,dati_bdv!$C$2:$C$65536,IF(dati_pdc!$C1038=2,dati_bdv!$D$2:$D$65536,IF(dati_pdc!$C1038=3,dati_bdv!$E$2:$E$65536,IF(dati_pdc!$C1038=4,dati_bdv!$F$2:$F$65536,IF(dati_pdc!$C1038=5,dati_bdv!$G$2:$G$65536,dati_bdv!$H$2:$H$65536))))),$A1038,dati_bdv!L$2:L$65536)","v":0},{"$f":"SUMIF(IF(dati_pdc!$C1038=1,dati_bdv!$C$2:$C$65536,IF(dati_pdc!$C1038=2,dati_bdv!$D$2:$D$65536,IF(dati_pdc!$C1038=3,dati_bdv!$E$2:$E$65536,IF(dati_pdc!$C1038=4,dati_bdv!$F$2:$F$65536,IF(dati_pdc!$C1038=5,dati_bdv!$G$2:$G$65536,dati_bdv!$H$2:$H$65536))))),$A1038,dati_bdv!M$2:M$65536)","v":0},{"$f":"SUMIF(IF(dati_pdc!$C1038=1,dati_bdv!$C$2:$C$65536,IF(dati_pdc!$C1038=2,dati_bdv!$D$2:$D$65536,IF(dati_pdc!$C1038=3,dati_bdv!$E$2:$E$65536,IF(dati_pdc!$C1038=4,dati_bdv!$F$2:$F$65536,IF(dati_pdc!$C1038=5,dati_bdv!$G$2:$G$65536,dati_bdv!$H$2:$H$65536))))),$A1038,dati_bdv!N$2:N$65536)","v":0}]
[{"$f":"dati_pdc!A1039","v":0},{"$f":"SUMIF(IF(dati_pdc!$C1039=1,dati_bdv!$C$2:$C$65536,IF(dati_pdc!$C1039=2,dati_bdv!$D$2:$D$65536,IF(dati_pdc!$C1039=3,dati_bdv!$E$2:$E$65536,IF(dati_pdc!$C1039=4,dati_bdv!$F$2:$F$65536,IF(dati_pdc!$C1039=5,dati_bdv!$G$2:$G$65536,dati_bdv!$H$2:$H$65536))))),$A1039,dati_bdv!J$2:J$65536)","v":0},{"$f":"SUMIF(IF(dati_pdc!$C1039=1,dati_bdv!$C$2:$C$65536,IF(dati_pdc!$C1039=2,dati_bdv!$D$2:$D$65536,IF(dati_pdc!$C1039=3,dati_bdv!$E$2:$E$65536,IF(dati_pdc!$C1039=4,dati_bdv!$F$2:$F$65536,IF(dati_pdc!$C1039=5,dati_bdv!$G$2:$G$65536,dati_bdv!$H$2:$H$65536))))),$A1039,dati_bdv!K$2:K$65536)","v":0},{"$f":"SUMIF(IF(dati_pdc!$C1039=1,dati_bdv!$C$2:$C$65536,IF(dati_pdc!$C1039=2,dati_bdv!$D$2:$D$65536,IF(dati_pdc!$C1039=3,dati_bdv!$E$2:$E$65536,IF(dati_pdc!$C1039=4,dati_bdv!$F$2:$F$65536,IF(dati_pdc!$C1039=5,dati_bdv!$G$2:$G$65536,dati_bdv!$H$2:$H$65536))))),$A1039,dati_bdv!L$2:L$65536)","v":0},{"$f":"SUMIF(IF(dati_pdc!$C1039=1,dati_bdv!$C$2:$C$65536,IF(dati_pdc!$C1039=2,dati_bdv!$D$2:$D$65536,IF(dati_pdc!$C1039=3,dati_bdv!$E$2:$E$65536,IF(dati_pdc!$C1039=4,dati_bdv!$F$2:$F$65536,IF(dati_pdc!$C1039=5,dati_bdv!$G$2:$G$65536,dati_bdv!$H$2:$H$65536))))),$A1039,dati_bdv!M$2:M$65536)","v":0},{"$f":"SUMIF(IF(dati_pdc!$C1039=1,dati_bdv!$C$2:$C$65536,IF(dati_pdc!$C1039=2,dati_bdv!$D$2:$D$65536,IF(dati_pdc!$C1039=3,dati_bdv!$E$2:$E$65536,IF(dati_pdc!$C1039=4,dati_bdv!$F$2:$F$65536,IF(dati_pdc!$C1039=5,dati_bdv!$G$2:$G$65536,dati_bdv!$H$2:$H$65536))))),$A1039,dati_bdv!N$2:N$65536)","v":0}]
[{"$f":"dati_pdc!A1040","v":0},{"$f":"SUMIF(IF(dati_pdc!$C1040=1,dati_bdv!$C$2:$C$65536,IF(dati_pdc!$C1040=2,dati_bdv!$D$2:$D$65536,IF(dati_pdc!$C1040=3,dati_bdv!$E$2:$E$65536,IF(dati_pdc!$C1040=4,dati_bdv!$F$2:$F$65536,IF(dati_pdc!$C1040=5,dati_bdv!$G$2:$G$65536,dati_bdv!$H$2:$H$65536))))),$A1040,dati_bdv!J$2:J$65536)","v":0},{"$f":"SUMIF(IF(dati_pdc!$C1040=1,dati_bdv!$C$2:$C$65536,IF(dati_pdc!$C1040=2,dati_bdv!$D$2:$D$65536,IF(dati_pdc!$C1040=3,dati_bdv!$E$2:$E$65536,IF(dati_pdc!$C1040=4,dati_bdv!$F$2:$F$65536,IF(dati_pdc!$C1040=5,dati_bdv!$G$2:$G$65536,dati_bdv!$H$2:$H$65536))))),$A1040,dati_bdv!K$2:K$65536)","v":0},{"$f":"SUMIF(IF(dati_pdc!$C1040=1,dati_bdv!$C$2:$C$65536,IF(dati_pdc!$C1040=2,dati_bdv!$D$2:$D$65536,IF(dati_pdc!$C1040=3,dati_bdv!$E$2:$E$65536,IF(dati_pdc!$C1040=4,dati_bdv!$F$2:$F$65536,IF(dati_pdc!$C1040=5,dati_bdv!$G$2:$G$65536,dati_bdv!$H$2:$H$65536))))),$A1040,dati_bdv!L$2:L$65536)","v":0},{"$f":"SUMIF(IF(dati_pdc!$C1040=1,dati_bdv!$C$2:$C$65536,IF(dati_pdc!$C1040=2,dati_bdv!$D$2:$D$65536,IF(dati_pdc!$C1040=3,dati_bdv!$E$2:$E$65536,IF(dati_pdc!$C1040=4,dati_bdv!$F$2:$F$65536,IF(dati_pdc!$C1040=5,dati_bdv!$G$2:$G$65536,dati_bdv!$H$2:$H$65536))))),$A1040,dati_bdv!M$2:M$65536)","v":0},{"$f":"SUMIF(IF(dati_pdc!$C1040=1,dati_bdv!$C$2:$C$65536,IF(dati_pdc!$C1040=2,dati_bdv!$D$2:$D$65536,IF(dati_pdc!$C1040=3,dati_bdv!$E$2:$E$65536,IF(dati_pdc!$C1040=4,dati_bdv!$F$2:$F$65536,IF(dati_pdc!$C1040=5,dati_bdv!$G$2:$G$65536,dati_bdv!$H$2:$H$65536))))),$A1040,dati_bdv!N$2:N$65536)","v":0}]
[{"$f":"dati_pdc!A1041","v":0},{"$f":"SUMIF(IF(dati_pdc!$C1041=1,dati_bdv!$C$2:$C$65536,IF(dati_pdc!$C1041=2,dati_bdv!$D$2:$D$65536,IF(dati_pdc!$C1041=3,dati_bdv!$E$2:$E$65536,IF(dati_pdc!$C1041=4,dati_bdv!$F$2:$F$65536,IF(dati_pdc!$C1041=5,dati_bdv!$G$2:$G$65536,dati_bdv!$H$2:$H$65536))))),$A1041,dati_bdv!J$2:J$65536)","v":0},{"$f":"SUMIF(IF(dati_pdc!$C1041=1,dati_bdv!$C$2:$C$65536,IF(dati_pdc!$C1041=2,dati_bdv!$D$2:$D$65536,IF(dati_pdc!$C1041=3,dati_bdv!$E$2:$E$65536,IF(dati_pdc!$C1041=4,dati_bdv!$F$2:$F$65536,IF(dati_pdc!$C1041=5,dati_bdv!$G$2:$G$65536,dati_bdv!$H$2:$H$65536))))),$A1041,dati_bdv!K$2:K$65536)","v":0},{"$f":"SUMIF(IF(dati_pdc!$C1041=1,dati_bdv!$C$2:$C$65536,IF(dati_pdc!$C1041=2,dati_bdv!$D$2:$D$65536,IF(dati_pdc!$C1041=3,dati_bdv!$E$2:$E$65536,IF(dati_pdc!$C1041=4,dati_bdv!$F$2:$F$65536,IF(dati_pdc!$C1041=5,dati_bdv!$G$2:$G$65536,dati_bdv!$H$2:$H$65536))))),$A1041,dati_bdv!L$2:L$65536)","v":0},{"$f":"SUMIF(IF(dati_pdc!$C1041=1,dati_bdv!$C$2:$C$65536,IF(dati_pdc!$C1041=2,dati_bdv!$D$2:$D$65536,IF(dati_pdc!$C1041=3,dati_bdv!$E$2:$E$65536,IF(dati_pdc!$C1041=4,dati_bdv!$F$2:$F$65536,IF(dati_pdc!$C1041=5,dati_bdv!$G$2:$G$65536,dati_bdv!$H$2:$H$65536))))),$A1041,dati_bdv!M$2:M$65536)","v":0},{"$f":"SUMIF(IF(dati_pdc!$C1041=1,dati_bdv!$C$2:$C$65536,IF(dati_pdc!$C1041=2,dati_bdv!$D$2:$D$65536,IF(dati_pdc!$C1041=3,dati_bdv!$E$2:$E$65536,IF(dati_pdc!$C1041=4,dati_bdv!$F$2:$F$65536,IF(dati_pdc!$C1041=5,dati_bdv!$G$2:$G$65536,dati_bdv!$H$2:$H$65536))))),$A1041,dati_bdv!N$2:N$65536)","v":0}]
[{"$f":"dati_pdc!A1042","v":0},{"$f":"SUMIF(IF(dati_pdc!$C1042=1,dati_bdv!$C$2:$C$65536,IF(dati_pdc!$C1042=2,dati_bdv!$D$2:$D$65536,IF(dati_pdc!$C1042=3,dati_bdv!$E$2:$E$65536,IF(dati_pdc!$C1042=4,dati_bdv!$F$2:$F$65536,IF(dati_pdc!$C1042=5,dati_bdv!$G$2:$G$65536,dati_bdv!$H$2:$H$65536))))),$A1042,dati_bdv!J$2:J$65536)","v":0},{"$f":"SUMIF(IF(dati_pdc!$C1042=1,dati_bdv!$C$2:$C$65536,IF(dati_pdc!$C1042=2,dati_bdv!$D$2:$D$65536,IF(dati_pdc!$C1042=3,dati_bdv!$E$2:$E$65536,IF(dati_pdc!$C1042=4,dati_bdv!$F$2:$F$65536,IF(dati_pdc!$C1042=5,dati_bdv!$G$2:$G$65536,dati_bdv!$H$2:$H$65536))))),$A1042,dati_bdv!K$2:K$65536)","v":0},{"$f":"SUMIF(IF(dati_pdc!$C1042=1,dati_bdv!$C$2:$C$65536,IF(dati_pdc!$C1042=2,dati_bdv!$D$2:$D$65536,IF(dati_pdc!$C1042=3,dati_bdv!$E$2:$E$65536,IF(dati_pdc!$C1042=4,dati_bdv!$F$2:$F$65536,IF(dati_pdc!$C1042=5,dati_bdv!$G$2:$G$65536,dati_bdv!$H$2:$H$65536))))),$A1042,dati_bdv!L$2:L$65536)","v":0},{"$f":"SUMIF(IF(dati_pdc!$C1042=1,dati_bdv!$C$2:$C$65536,IF(dati_pdc!$C1042=2,dati_bdv!$D$2:$D$65536,IF(dati_pdc!$C1042=3,dati_bdv!$E$2:$E$65536,IF(dati_pdc!$C1042=4,dati_bdv!$F$2:$F$65536,IF(dati_pdc!$C1042=5,dati_bdv!$G$2:$G$65536,dati_bdv!$H$2:$H$65536))))),$A1042,dati_bdv!M$2:M$65536)","v":0},{"$f":"SUMIF(IF(dati_pdc!$C1042=1,dati_bdv!$C$2:$C$65536,IF(dati_pdc!$C1042=2,dati_bdv!$D$2:$D$65536,IF(dati_pdc!$C1042=3,dati_bdv!$E$2:$E$65536,IF(dati_pdc!$C1042=4,dati_bdv!$F$2:$F$65536,IF(dati_pdc!$C1042=5,dati_bdv!$G$2:$G$65536,dati_bdv!$H$2:$H$65536))))),$A1042,dati_bdv!N$2:N$65536)","v":0}]
[{"$f":"dati_pdc!A1043","v":0},{"$f":"SUMIF(IF(dati_pdc!$C1043=1,dati_bdv!$C$2:$C$65536,IF(dati_pdc!$C1043=2,dati_bdv!$D$2:$D$65536,IF(dati_pdc!$C1043=3,dati_bdv!$E$2:$E$65536,IF(dati_pdc!$C1043=4,dati_bdv!$F$2:$F$65536,IF(dati_pdc!$C1043=5,dati_bdv!$G$2:$G$65536,dati_bdv!$H$2:$H$65536))))),$A1043,dati_bdv!J$2:J$65536)","v":0},{"$f":"SUMIF(IF(dati_pdc!$C1043=1,dati_bdv!$C$2:$C$65536,IF(dati_pdc!$C1043=2,dati_bdv!$D$2:$D$65536,IF(dati_pdc!$C1043=3,dati_bdv!$E$2:$E$65536,IF(dati_pdc!$C1043=4,dati_bdv!$F$2:$F$65536,IF(dati_pdc!$C1043=5,dati_bdv!$G$2:$G$65536,dati_bdv!$H$2:$H$65536))))),$A1043,dati_bdv!K$2:K$65536)","v":0},{"$f":"SUMIF(IF(dati_pdc!$C1043=1,dati_bdv!$C$2:$C$65536,IF(dati_pdc!$C1043=2,dati_bdv!$D$2:$D$65536,IF(dati_pdc!$C1043=3,dati_bdv!$E$2:$E$65536,IF(dati_pdc!$C1043=4,dati_bdv!$F$2:$F$65536,IF(dati_pdc!$C1043=5,dati_bdv!$G$2:$G$65536,dati_bdv!$H$2:$H$65536))))),$A1043,dati_bdv!L$2:L$65536)","v":0},{"$f":"SUMIF(IF(dati_pdc!$C1043=1,dati_bdv!$C$2:$C$65536,IF(dati_pdc!$C1043=2,dati_bdv!$D$2:$D$65536,IF(dati_pdc!$C1043=3,dati_bdv!$E$2:$E$65536,IF(dati_pdc!$C1043=4,dati_bdv!$F$2:$F$65536,IF(dati_pdc!$C1043=5,dati_bdv!$G$2:$G$65536,dati_bdv!$H$2:$H$65536))))),$A1043,dati_bdv!M$2:M$65536)","v":0},{"$f":"SUMIF(IF(dati_pdc!$C1043=1,dati_bdv!$C$2:$C$65536,IF(dati_pdc!$C1043=2,dati_bdv!$D$2:$D$65536,IF(dati_pdc!$C1043=3,dati_bdv!$E$2:$E$65536,IF(dati_pdc!$C1043=4,dati_bdv!$F$2:$F$65536,IF(dati_pdc!$C1043=5,dati_bdv!$G$2:$G$65536,dati_bdv!$H$2:$H$65536))))),$A1043,dati_bdv!N$2:N$65536)","v":0}]
[{"$f":"dati_pdc!A1044","v":0},{"$f":"SUMIF(IF(dati_pdc!$C1044=1,dati_bdv!$C$2:$C$65536,IF(dati_pdc!$C1044=2,dati_bdv!$D$2:$D$65536,IF(dati_pdc!$C1044=3,dati_bdv!$E$2:$E$65536,IF(dati_pdc!$C1044=4,dati_bdv!$F$2:$F$65536,IF(dati_pdc!$C1044=5,dati_bdv!$G$2:$G$65536,dati_bdv!$H$2:$H$65536))))),$A1044,dati_bdv!J$2:J$65536)","v":0},{"$f":"SUMIF(IF(dati_pdc!$C1044=1,dati_bdv!$C$2:$C$65536,IF(dati_pdc!$C1044=2,dati_bdv!$D$2:$D$65536,IF(dati_pdc!$C1044=3,dati_bdv!$E$2:$E$65536,IF(dati_pdc!$C1044=4,dati_bdv!$F$2:$F$65536,IF(dati_pdc!$C1044=5,dati_bdv!$G$2:$G$65536,dati_bdv!$H$2:$H$65536))))),$A1044,dati_bdv!K$2:K$65536)","v":0},{"$f":"SUMIF(IF(dati_pdc!$C1044=1,dati_bdv!$C$2:$C$65536,IF(dati_pdc!$C1044=2,dati_bdv!$D$2:$D$65536,IF(dati_pdc!$C1044=3,dati_bdv!$E$2:$E$65536,IF(dati_pdc!$C1044=4,dati_bdv!$F$2:$F$65536,IF(dati_pdc!$C1044=5,dati_bdv!$G$2:$G$65536,dati_bdv!$H$2:$H$65536))))),$A1044,dati_bdv!L$2:L$65536)","v":0},{"$f":"SUMIF(IF(dati_pdc!$C1044=1,dati_bdv!$C$2:$C$65536,IF(dati_pdc!$C1044=2,dati_bdv!$D$2:$D$65536,IF(dati_pdc!$C1044=3,dati_bdv!$E$2:$E$65536,IF(dati_pdc!$C1044=4,dati_bdv!$F$2:$F$65536,IF(dati_pdc!$C1044=5,dati_bdv!$G$2:$G$65536,dati_bdv!$H$2:$H$65536))))),$A1044,dati_bdv!M$2:M$65536)","v":0},{"$f":"SUMIF(IF(dati_pdc!$C1044=1,dati_bdv!$C$2:$C$65536,IF(dati_pdc!$C1044=2,dati_bdv!$D$2:$D$65536,IF(dati_pdc!$C1044=3,dati_bdv!$E$2:$E$65536,IF(dati_pdc!$C1044=4,dati_bdv!$F$2:$F$65536,IF(dati_pdc!$C1044=5,dati_bdv!$G$2:$G$65536,dati_bdv!$H$2:$H$65536))))),$A1044,dati_bdv!N$2:N$65536)","v":0}]
[{"$f":"dati_pdc!A1045","v":0},{"$f":"SUMIF(IF(dati_pdc!$C1045=1,dati_bdv!$C$2:$C$65536,IF(dati_pdc!$C1045=2,dati_bdv!$D$2:$D$65536,IF(dati_pdc!$C1045=3,dati_bdv!$E$2:$E$65536,IF(dati_pdc!$C1045=4,dati_bdv!$F$2:$F$65536,IF(dati_pdc!$C1045=5,dati_bdv!$G$2:$G$65536,dati_bdv!$H$2:$H$65536))))),$A1045,dati_bdv!J$2:J$65536)","v":0},{"$f":"SUMIF(IF(dati_pdc!$C1045=1,dati_bdv!$C$2:$C$65536,IF(dati_pdc!$C1045=2,dati_bdv!$D$2:$D$65536,IF(dati_pdc!$C1045=3,dati_bdv!$E$2:$E$65536,IF(dati_pdc!$C1045=4,dati_bdv!$F$2:$F$65536,IF(dati_pdc!$C1045=5,dati_bdv!$G$2:$G$65536,dati_bdv!$H$2:$H$65536))))),$A1045,dati_bdv!K$2:K$65536)","v":0},{"$f":"SUMIF(IF(dati_pdc!$C1045=1,dati_bdv!$C$2:$C$65536,IF(dati_pdc!$C1045=2,dati_bdv!$D$2:$D$65536,IF(dati_pdc!$C1045=3,dati_bdv!$E$2:$E$65536,IF(dati_pdc!$C1045=4,dati_bdv!$F$2:$F$65536,IF(dati_pdc!$C1045=5,dati_bdv!$G$2:$G$65536,dati_bdv!$H$2:$H$65536))))),$A1045,dati_bdv!L$2:L$65536)","v":0},{"$f":"SUMIF(IF(dati_pdc!$C1045=1,dati_bdv!$C$2:$C$65536,IF(dati_pdc!$C1045=2,dati_bdv!$D$2:$D$65536,IF(dati_pdc!$C1045=3,dati_bdv!$E$2:$E$65536,IF(dati_pdc!$C1045=4,dati_bdv!$F$2:$F$65536,IF(dati_pdc!$C1045=5,dati_bdv!$G$2:$G$65536,dati_bdv!$H$2:$H$65536))))),$A1045,dati_bdv!M$2:M$65536)","v":0},{"$f":"SUMIF(IF(dati_pdc!$C1045=1,dati_bdv!$C$2:$C$65536,IF(dati_pdc!$C1045=2,dati_bdv!$D$2:$D$65536,IF(dati_pdc!$C1045=3,dati_bdv!$E$2:$E$65536,IF(dati_pdc!$C1045=4,dati_bdv!$F$2:$F$65536,IF(dati_pdc!$C1045=5,dati_bdv!$G$2:$G$65536,dati_bdv!$H$2:$H$65536))))),$A1045,dati_bdv!N$2:N$65536)","v":0}]
[{"$f":"dati_pdc!A1046","v":0},{"$f":"SUMIF(IF(dati_pdc!$C1046=1,dati_bdv!$C$2:$C$65536,IF(dati_pdc!$C1046=2,dati_bdv!$D$2:$D$65536,IF(dati_pdc!$C1046=3,dati_bdv!$E$2:$E$65536,IF(dati_pdc!$C1046=4,dati_bdv!$F$2:$F$65536,IF(dati_pdc!$C1046=5,dati_bdv!$G$2:$G$65536,dati_bdv!$H$2:$H$65536))))),$A1046,dati_bdv!J$2:J$65536)","v":0},{"$f":"SUMIF(IF(dati_pdc!$C1046=1,dati_bdv!$C$2:$C$65536,IF(dati_pdc!$C1046=2,dati_bdv!$D$2:$D$65536,IF(dati_pdc!$C1046=3,dati_bdv!$E$2:$E$65536,IF(dati_pdc!$C1046=4,dati_bdv!$F$2:$F$65536,IF(dati_pdc!$C1046=5,dati_bdv!$G$2:$G$65536,dati_bdv!$H$2:$H$65536))))),$A1046,dati_bdv!K$2:K$65536)","v":0},{"$f":"SUMIF(IF(dati_pdc!$C1046=1,dati_bdv!$C$2:$C$65536,IF(dati_pdc!$C1046=2,dati_bdv!$D$2:$D$65536,IF(dati_pdc!$C1046=3,dati_bdv!$E$2:$E$65536,IF(dati_pdc!$C1046=4,dati_bdv!$F$2:$F$65536,IF(dati_pdc!$C1046=5,dati_bdv!$G$2:$G$65536,dati_bdv!$H$2:$H$65536))))),$A1046,dati_bdv!L$2:L$65536)","v":0},{"$f":"SUMIF(IF(dati_pdc!$C1046=1,dati_bdv!$C$2:$C$65536,IF(dati_pdc!$C1046=2,dati_bdv!$D$2:$D$65536,IF(dati_pdc!$C1046=3,dati_bdv!$E$2:$E$65536,IF(dati_pdc!$C1046=4,dati_bdv!$F$2:$F$65536,IF(dati_pdc!$C1046=5,dati_bdv!$G$2:$G$65536,dati_bdv!$H$2:$H$65536))))),$A1046,dati_bdv!M$2:M$65536)","v":0},{"$f":"SUMIF(IF(dati_pdc!$C1046=1,dati_bdv!$C$2:$C$65536,IF(dati_pdc!$C1046=2,dati_bdv!$D$2:$D$65536,IF(dati_pdc!$C1046=3,dati_bdv!$E$2:$E$65536,IF(dati_pdc!$C1046=4,dati_bdv!$F$2:$F$65536,IF(dati_pdc!$C1046=5,dati_bdv!$G$2:$G$65536,dati_bdv!$H$2:$H$65536))))),$A1046,dati_bdv!N$2:N$65536)","v":0}]
[{"$f":"dati_pdc!A1047","v":0},{"$f":"SUMIF(IF(dati_pdc!$C1047=1,dati_bdv!$C$2:$C$65536,IF(dati_pdc!$C1047=2,dati_bdv!$D$2:$D$65536,IF(dati_pdc!$C1047=3,dati_bdv!$E$2:$E$65536,IF(dati_pdc!$C1047=4,dati_bdv!$F$2:$F$65536,IF(dati_pdc!$C1047=5,dati_bdv!$G$2:$G$65536,dati_bdv!$H$2:$H$65536))))),$A1047,dati_bdv!J$2:J$65536)","v":0},{"$f":"SUMIF(IF(dati_pdc!$C1047=1,dati_bdv!$C$2:$C$65536,IF(dati_pdc!$C1047=2,dati_bdv!$D$2:$D$65536,IF(dati_pdc!$C1047=3,dati_bdv!$E$2:$E$65536,IF(dati_pdc!$C1047=4,dati_bdv!$F$2:$F$65536,IF(dati_pdc!$C1047=5,dati_bdv!$G$2:$G$65536,dati_bdv!$H$2:$H$65536))))),$A1047,dati_bdv!K$2:K$65536)","v":0},{"$f":"SUMIF(IF(dati_pdc!$C1047=1,dati_bdv!$C$2:$C$65536,IF(dati_pdc!$C1047=2,dati_bdv!$D$2:$D$65536,IF(dati_pdc!$C1047=3,dati_bdv!$E$2:$E$65536,IF(dati_pdc!$C1047=4,dati_bdv!$F$2:$F$65536,IF(dati_pdc!$C1047=5,dati_bdv!$G$2:$G$65536,dati_bdv!$H$2:$H$65536))))),$A1047,dati_bdv!L$2:L$65536)","v":0},{"$f":"SUMIF(IF(dati_pdc!$C1047=1,dati_bdv!$C$2:$C$65536,IF(dati_pdc!$C1047=2,dati_bdv!$D$2:$D$65536,IF(dati_pdc!$C1047=3,dati_bdv!$E$2:$E$65536,IF(dati_pdc!$C1047=4,dati_bdv!$F$2:$F$65536,IF(dati_pdc!$C1047=5,dati_bdv!$G$2:$G$65536,dati_bdv!$H$2:$H$65536))))),$A1047,dati_bdv!M$2:M$65536)","v":0},{"$f":"SUMIF(IF(dati_pdc!$C1047=1,dati_bdv!$C$2:$C$65536,IF(dati_pdc!$C1047=2,dati_bdv!$D$2:$D$65536,IF(dati_pdc!$C1047=3,dati_bdv!$E$2:$E$65536,IF(dati_pdc!$C1047=4,dati_bdv!$F$2:$F$65536,IF(dati_pdc!$C1047=5,dati_bdv!$G$2:$G$65536,dati_bdv!$H$2:$H$65536))))),$A1047,dati_bdv!N$2:N$65536)","v":0}]
[{"$f":"dati_pdc!A1048","v":0},{"$f":"SUMIF(IF(dati_pdc!$C1048=1,dati_bdv!$C$2:$C$65536,IF(dati_pdc!$C1048=2,dati_bdv!$D$2:$D$65536,IF(dati_pdc!$C1048=3,dati_bdv!$E$2:$E$65536,IF(dati_pdc!$C1048=4,dati_bdv!$F$2:$F$65536,IF(dati_pdc!$C1048=5,dati_bdv!$G$2:$G$65536,dati_bdv!$H$2:$H$65536))))),$A1048,dati_bdv!J$2:J$65536)","v":0},{"$f":"SUMIF(IF(dati_pdc!$C1048=1,dati_bdv!$C$2:$C$65536,IF(dati_pdc!$C1048=2,dati_bdv!$D$2:$D$65536,IF(dati_pdc!$C1048=3,dati_bdv!$E$2:$E$65536,IF(dati_pdc!$C1048=4,dati_bdv!$F$2:$F$65536,IF(dati_pdc!$C1048=5,dati_bdv!$G$2:$G$65536,dati_bdv!$H$2:$H$65536))))),$A1048,dati_bdv!K$2:K$65536)","v":0},{"$f":"SUMIF(IF(dati_pdc!$C1048=1,dati_bdv!$C$2:$C$65536,IF(dati_pdc!$C1048=2,dati_bdv!$D$2:$D$65536,IF(dati_pdc!$C1048=3,dati_bdv!$E$2:$E$65536,IF(dati_pdc!$C1048=4,dati_bdv!$F$2:$F$65536,IF(dati_pdc!$C1048=5,dati_bdv!$G$2:$G$65536,dati_bdv!$H$2:$H$65536))))),$A1048,dati_bdv!L$2:L$65536)","v":0},{"$f":"SUMIF(IF(dati_pdc!$C1048=1,dati_bdv!$C$2:$C$65536,IF(dati_pdc!$C1048=2,dati_bdv!$D$2:$D$65536,IF(dati_pdc!$C1048=3,dati_bdv!$E$2:$E$65536,IF(dati_pdc!$C1048=4,dati_bdv!$F$2:$F$65536,IF(dati_pdc!$C1048=5,dati_bdv!$G$2:$G$65536,dati_bdv!$H$2:$H$65536))))),$A1048,dati_bdv!M$2:M$65536)","v":0},{"$f":"SUMIF(IF(dati_pdc!$C1048=1,dati_bdv!$C$2:$C$65536,IF(dati_pdc!$C1048=2,dati_bdv!$D$2:$D$65536,IF(dati_pdc!$C1048=3,dati_bdv!$E$2:$E$65536,IF(dati_pdc!$C1048=4,dati_bdv!$F$2:$F$65536,IF(dati_pdc!$C1048=5,dati_bdv!$G$2:$G$65536,dati_bdv!$H$2:$H$65536))))),$A1048,dati_bdv!N$2:N$65536)","v":0}]
[{"$f":"dati_pdc!A1049","v":0},{"$f":"SUMIF(IF(dati_pdc!$C1049=1,dati_bdv!$C$2:$C$65536,IF(dati_pdc!$C1049=2,dati_bdv!$D$2:$D$65536,IF(dati_pdc!$C1049=3,dati_bdv!$E$2:$E$65536,IF(dati_pdc!$C1049=4,dati_bdv!$F$2:$F$65536,IF(dati_pdc!$C1049=5,dati_bdv!$G$2:$G$65536,dati_bdv!$H$2:$H$65536))))),$A1049,dati_bdv!J$2:J$65536)","v":0},{"$f":"SUMIF(IF(dati_pdc!$C1049=1,dati_bdv!$C$2:$C$65536,IF(dati_pdc!$C1049=2,dati_bdv!$D$2:$D$65536,IF(dati_pdc!$C1049=3,dati_bdv!$E$2:$E$65536,IF(dati_pdc!$C1049=4,dati_bdv!$F$2:$F$65536,IF(dati_pdc!$C1049=5,dati_bdv!$G$2:$G$65536,dati_bdv!$H$2:$H$65536))))),$A1049,dati_bdv!K$2:K$65536)","v":0},{"$f":"SUMIF(IF(dati_pdc!$C1049=1,dati_bdv!$C$2:$C$65536,IF(dati_pdc!$C1049=2,dati_bdv!$D$2:$D$65536,IF(dati_pdc!$C1049=3,dati_bdv!$E$2:$E$65536,IF(dati_pdc!$C1049=4,dati_bdv!$F$2:$F$65536,IF(dati_pdc!$C1049=5,dati_bdv!$G$2:$G$65536,dati_bdv!$H$2:$H$65536))))),$A1049,dati_bdv!L$2:L$65536)","v":0},{"$f":"SUMIF(IF(dati_pdc!$C1049=1,dati_bdv!$C$2:$C$65536,IF(dati_pdc!$C1049=2,dati_bdv!$D$2:$D$65536,IF(dati_pdc!$C1049=3,dati_bdv!$E$2:$E$65536,IF(dati_pdc!$C1049=4,dati_bdv!$F$2:$F$65536,IF(dati_pdc!$C1049=5,dati_bdv!$G$2:$G$65536,dati_bdv!$H$2:$H$65536))))),$A1049,dati_bdv!M$2:M$65536)","v":0},{"$f":"SUMIF(IF(dati_pdc!$C1049=1,dati_bdv!$C$2:$C$65536,IF(dati_pdc!$C1049=2,dati_bdv!$D$2:$D$65536,IF(dati_pdc!$C1049=3,dati_bdv!$E$2:$E$65536,IF(dati_pdc!$C1049=4,dati_bdv!$F$2:$F$65536,IF(dati_pdc!$C1049=5,dati_bdv!$G$2:$G$65536,dati_bdv!$H$2:$H$65536))))),$A1049,dati_bdv!N$2:N$65536)","v":0}]
[{"$f":"dati_pdc!A1050","v":0},{"$f":"SUMIF(IF(dati_pdc!$C1050=1,dati_bdv!$C$2:$C$65536,IF(dati_pdc!$C1050=2,dati_bdv!$D$2:$D$65536,IF(dati_pdc!$C1050=3,dati_bdv!$E$2:$E$65536,IF(dati_pdc!$C1050=4,dati_bdv!$F$2:$F$65536,IF(dati_pdc!$C1050=5,dati_bdv!$G$2:$G$65536,dati_bdv!$H$2:$H$65536))))),$A1050,dati_bdv!J$2:J$65536)","v":0},{"$f":"SUMIF(IF(dati_pdc!$C1050=1,dati_bdv!$C$2:$C$65536,IF(dati_pdc!$C1050=2,dati_bdv!$D$2:$D$65536,IF(dati_pdc!$C1050=3,dati_bdv!$E$2:$E$65536,IF(dati_pdc!$C1050=4,dati_bdv!$F$2:$F$65536,IF(dati_pdc!$C1050=5,dati_bdv!$G$2:$G$65536,dati_bdv!$H$2:$H$65536))))),$A1050,dati_bdv!K$2:K$65536)","v":0},{"$f":"SUMIF(IF(dati_pdc!$C1050=1,dati_bdv!$C$2:$C$65536,IF(dati_pdc!$C1050=2,dati_bdv!$D$2:$D$65536,IF(dati_pdc!$C1050=3,dati_bdv!$E$2:$E$65536,IF(dati_pdc!$C1050=4,dati_bdv!$F$2:$F$65536,IF(dati_pdc!$C1050=5,dati_bdv!$G$2:$G$65536,dati_bdv!$H$2:$H$65536))))),$A1050,dati_bdv!L$2:L$65536)","v":0},{"$f":"SUMIF(IF(dati_pdc!$C1050=1,dati_bdv!$C$2:$C$65536,IF(dati_pdc!$C1050=2,dati_bdv!$D$2:$D$65536,IF(dati_pdc!$C1050=3,dati_bdv!$E$2:$E$65536,IF(dati_pdc!$C1050=4,dati_bdv!$F$2:$F$65536,IF(dati_pdc!$C1050=5,dati_bdv!$G$2:$G$65536,dati_bdv!$H$2:$H$65536))))),$A1050,dati_bdv!M$2:M$65536)","v":0},{"$f":"SUMIF(IF(dati_pdc!$C1050=1,dati_bdv!$C$2:$C$65536,IF(dati_pdc!$C1050=2,dati_bdv!$D$2:$D$65536,IF(dati_pdc!$C1050=3,dati_bdv!$E$2:$E$65536,IF(dati_pdc!$C1050=4,dati_bdv!$F$2:$F$65536,IF(dati_pdc!$C1050=5,dati_bdv!$G$2:$G$65536,dati_bdv!$H$2:$H$65536))))),$A1050,dati_bdv!N$2:N$65536)","v":0}]
[{"$f":"dati_pdc!A1051","v":0},{"$f":"SUMIF(IF(dati_pdc!$C1051=1,dati_bdv!$C$2:$C$65536,IF(dati_pdc!$C1051=2,dati_bdv!$D$2:$D$65536,IF(dati_pdc!$C1051=3,dati_bdv!$E$2:$E$65536,IF(dati_pdc!$C1051=4,dati_bdv!$F$2:$F$65536,IF(dati_pdc!$C1051=5,dati_bdv!$G$2:$G$65536,dati_bdv!$H$2:$H$65536))))),$A1051,dati_bdv!J$2:J$65536)","v":0},{"$f":"SUMIF(IF(dati_pdc!$C1051=1,dati_bdv!$C$2:$C$65536,IF(dati_pdc!$C1051=2,dati_bdv!$D$2:$D$65536,IF(dati_pdc!$C1051=3,dati_bdv!$E$2:$E$65536,IF(dati_pdc!$C1051=4,dati_bdv!$F$2:$F$65536,IF(dati_pdc!$C1051=5,dati_bdv!$G$2:$G$65536,dati_bdv!$H$2:$H$65536))))),$A1051,dati_bdv!K$2:K$65536)","v":0},{"$f":"SUMIF(IF(dati_pdc!$C1051=1,dati_bdv!$C$2:$C$65536,IF(dati_pdc!$C1051=2,dati_bdv!$D$2:$D$65536,IF(dati_pdc!$C1051=3,dati_bdv!$E$2:$E$65536,IF(dati_pdc!$C1051=4,dati_bdv!$F$2:$F$65536,IF(dati_pdc!$C1051=5,dati_bdv!$G$2:$G$65536,dati_bdv!$H$2:$H$65536))))),$A1051,dati_bdv!L$2:L$65536)","v":0},{"$f":"SUMIF(IF(dati_pdc!$C1051=1,dati_bdv!$C$2:$C$65536,IF(dati_pdc!$C1051=2,dati_bdv!$D$2:$D$65536,IF(dati_pdc!$C1051=3,dati_bdv!$E$2:$E$65536,IF(dati_pdc!$C1051=4,dati_bdv!$F$2:$F$65536,IF(dati_pdc!$C1051=5,dati_bdv!$G$2:$G$65536,dati_bdv!$H$2:$H$65536))))),$A1051,dati_bdv!M$2:M$65536)","v":0},{"$f":"SUMIF(IF(dati_pdc!$C1051=1,dati_bdv!$C$2:$C$65536,IF(dati_pdc!$C1051=2,dati_bdv!$D$2:$D$65536,IF(dati_pdc!$C1051=3,dati_bdv!$E$2:$E$65536,IF(dati_pdc!$C1051=4,dati_bdv!$F$2:$F$65536,IF(dati_pdc!$C1051=5,dati_bdv!$G$2:$G$65536,dati_bdv!$H$2:$H$65536))))),$A1051,dati_bdv!N$2:N$65536)","v":0}]
[{"$f":"dati_pdc!A1052","v":0},{"$f":"SUMIF(IF(dati_pdc!$C1052=1,dati_bdv!$C$2:$C$65536,IF(dati_pdc!$C1052=2,dati_bdv!$D$2:$D$65536,IF(dati_pdc!$C1052=3,dati_bdv!$E$2:$E$65536,IF(dati_pdc!$C1052=4,dati_bdv!$F$2:$F$65536,IF(dati_pdc!$C1052=5,dati_bdv!$G$2:$G$65536,dati_bdv!$H$2:$H$65536))))),$A1052,dati_bdv!J$2:J$65536)","v":0},{"$f":"SUMIF(IF(dati_pdc!$C1052=1,dati_bdv!$C$2:$C$65536,IF(dati_pdc!$C1052=2,dati_bdv!$D$2:$D$65536,IF(dati_pdc!$C1052=3,dati_bdv!$E$2:$E$65536,IF(dati_pdc!$C1052=4,dati_bdv!$F$2:$F$65536,IF(dati_pdc!$C1052=5,dati_bdv!$G$2:$G$65536,dati_bdv!$H$2:$H$65536))))),$A1052,dati_bdv!K$2:K$65536)","v":0},{"$f":"SUMIF(IF(dati_pdc!$C1052=1,dati_bdv!$C$2:$C$65536,IF(dati_pdc!$C1052=2,dati_bdv!$D$2:$D$65536,IF(dati_pdc!$C1052=3,dati_bdv!$E$2:$E$65536,IF(dati_pdc!$C1052=4,dati_bdv!$F$2:$F$65536,IF(dati_pdc!$C1052=5,dati_bdv!$G$2:$G$65536,dati_bdv!$H$2:$H$65536))))),$A1052,dati_bdv!L$2:L$65536)","v":0},{"$f":"SUMIF(IF(dati_pdc!$C1052=1,dati_bdv!$C$2:$C$65536,IF(dati_pdc!$C1052=2,dati_bdv!$D$2:$D$65536,IF(dati_pdc!$C1052=3,dati_bdv!$E$2:$E$65536,IF(dati_pdc!$C1052=4,dati_bdv!$F$2:$F$65536,IF(dati_pdc!$C1052=5,dati_bdv!$G$2:$G$65536,dati_bdv!$H$2:$H$65536))))),$A1052,dati_bdv!M$2:M$65536)","v":0},{"$f":"SUMIF(IF(dati_pdc!$C1052=1,dati_bdv!$C$2:$C$65536,IF(dati_pdc!$C1052=2,dati_bdv!$D$2:$D$65536,IF(dati_pdc!$C1052=3,dati_bdv!$E$2:$E$65536,IF(dati_pdc!$C1052=4,dati_bdv!$F$2:$F$65536,IF(dati_pdc!$C1052=5,dati_bdv!$G$2:$G$65536,dati_bdv!$H$2:$H$65536))))),$A1052,dati_bdv!N$2:N$65536)","v":0}]
[{"$f":"dati_pdc!A1053","v":0},{"$f":"SUMIF(IF(dati_pdc!$C1053=1,dati_bdv!$C$2:$C$65536,IF(dati_pdc!$C1053=2,dati_bdv!$D$2:$D$65536,IF(dati_pdc!$C1053=3,dati_bdv!$E$2:$E$65536,IF(dati_pdc!$C1053=4,dati_bdv!$F$2:$F$65536,IF(dati_pdc!$C1053=5,dati_bdv!$G$2:$G$65536,dati_bdv!$H$2:$H$65536))))),$A1053,dati_bdv!J$2:J$65536)","v":0},{"$f":"SUMIF(IF(dati_pdc!$C1053=1,dati_bdv!$C$2:$C$65536,IF(dati_pdc!$C1053=2,dati_bdv!$D$2:$D$65536,IF(dati_pdc!$C1053=3,dati_bdv!$E$2:$E$65536,IF(dati_pdc!$C1053=4,dati_bdv!$F$2:$F$65536,IF(dati_pdc!$C1053=5,dati_bdv!$G$2:$G$65536,dati_bdv!$H$2:$H$65536))))),$A1053,dati_bdv!K$2:K$65536)","v":0},{"$f":"SUMIF(IF(dati_pdc!$C1053=1,dati_bdv!$C$2:$C$65536,IF(dati_pdc!$C1053=2,dati_bdv!$D$2:$D$65536,IF(dati_pdc!$C1053=3,dati_bdv!$E$2:$E$65536,IF(dati_pdc!$C1053=4,dati_bdv!$F$2:$F$65536,IF(dati_pdc!$C1053=5,dati_bdv!$G$2:$G$65536,dati_bdv!$H$2:$H$65536))))),$A1053,dati_bdv!L$2:L$65536)","v":0},{"$f":"SUMIF(IF(dati_pdc!$C1053=1,dati_bdv!$C$2:$C$65536,IF(dati_pdc!$C1053=2,dati_bdv!$D$2:$D$65536,IF(dati_pdc!$C1053=3,dati_bdv!$E$2:$E$65536,IF(dati_pdc!$C1053=4,dati_bdv!$F$2:$F$65536,IF(dati_pdc!$C1053=5,dati_bdv!$G$2:$G$65536,dati_bdv!$H$2:$H$65536))))),$A1053,dati_bdv!M$2:M$65536)","v":0},{"$f":"SUMIF(IF(dati_pdc!$C1053=1,dati_bdv!$C$2:$C$65536,IF(dati_pdc!$C1053=2,dati_bdv!$D$2:$D$65536,IF(dati_pdc!$C1053=3,dati_bdv!$E$2:$E$65536,IF(dati_pdc!$C1053=4,dati_bdv!$F$2:$F$65536,IF(dati_pdc!$C1053=5,dati_bdv!$G$2:$G$65536,dati_bdv!$H$2:$H$65536))))),$A1053,dati_bdv!N$2:N$65536)","v":0}]
[{"$f":"dati_pdc!A1054","v":0},{"$f":"SUMIF(IF(dati_pdc!$C1054=1,dati_bdv!$C$2:$C$65536,IF(dati_pdc!$C1054=2,dati_bdv!$D$2:$D$65536,IF(dati_pdc!$C1054=3,dati_bdv!$E$2:$E$65536,IF(dati_pdc!$C1054=4,dati_bdv!$F$2:$F$65536,IF(dati_pdc!$C1054=5,dati_bdv!$G$2:$G$65536,dati_bdv!$H$2:$H$65536))))),$A1054,dati_bdv!J$2:J$65536)","v":0},{"$f":"SUMIF(IF(dati_pdc!$C1054=1,dati_bdv!$C$2:$C$65536,IF(dati_pdc!$C1054=2,dati_bdv!$D$2:$D$65536,IF(dati_pdc!$C1054=3,dati_bdv!$E$2:$E$65536,IF(dati_pdc!$C1054=4,dati_bdv!$F$2:$F$65536,IF(dati_pdc!$C1054=5,dati_bdv!$G$2:$G$65536,dati_bdv!$H$2:$H$65536))))),$A1054,dati_bdv!K$2:K$65536)","v":0},{"$f":"SUMIF(IF(dati_pdc!$C1054=1,dati_bdv!$C$2:$C$65536,IF(dati_pdc!$C1054=2,dati_bdv!$D$2:$D$65536,IF(dati_pdc!$C1054=3,dati_bdv!$E$2:$E$65536,IF(dati_pdc!$C1054=4,dati_bdv!$F$2:$F$65536,IF(dati_pdc!$C1054=5,dati_bdv!$G$2:$G$65536,dati_bdv!$H$2:$H$65536))))),$A1054,dati_bdv!L$2:L$65536)","v":0},{"$f":"SUMIF(IF(dati_pdc!$C1054=1,dati_bdv!$C$2:$C$65536,IF(dati_pdc!$C1054=2,dati_bdv!$D$2:$D$65536,IF(dati_pdc!$C1054=3,dati_bdv!$E$2:$E$65536,IF(dati_pdc!$C1054=4,dati_bdv!$F$2:$F$65536,IF(dati_pdc!$C1054=5,dati_bdv!$G$2:$G$65536,dati_bdv!$H$2:$H$65536))))),$A1054,dati_bdv!M$2:M$65536)","v":0},{"$f":"SUMIF(IF(dati_pdc!$C1054=1,dati_bdv!$C$2:$C$65536,IF(dati_pdc!$C1054=2,dati_bdv!$D$2:$D$65536,IF(dati_pdc!$C1054=3,dati_bdv!$E$2:$E$65536,IF(dati_pdc!$C1054=4,dati_bdv!$F$2:$F$65536,IF(dati_pdc!$C1054=5,dati_bdv!$G$2:$G$65536,dati_bdv!$H$2:$H$65536))))),$A1054,dati_bdv!N$2:N$65536)","v":0}]
[{"$f":"dati_pdc!A1055","v":0},{"$f":"SUMIF(IF(dati_pdc!$C1055=1,dati_bdv!$C$2:$C$65536,IF(dati_pdc!$C1055=2,dati_bdv!$D$2:$D$65536,IF(dati_pdc!$C1055=3,dati_bdv!$E$2:$E$65536,IF(dati_pdc!$C1055=4,dati_bdv!$F$2:$F$65536,IF(dati_pdc!$C1055=5,dati_bdv!$G$2:$G$65536,dati_bdv!$H$2:$H$65536))))),$A1055,dati_bdv!J$2:J$65536)","v":0},{"$f":"SUMIF(IF(dati_pdc!$C1055=1,dati_bdv!$C$2:$C$65536,IF(dati_pdc!$C1055=2,dati_bdv!$D$2:$D$65536,IF(dati_pdc!$C1055=3,dati_bdv!$E$2:$E$65536,IF(dati_pdc!$C1055=4,dati_bdv!$F$2:$F$65536,IF(dati_pdc!$C1055=5,dati_bdv!$G$2:$G$65536,dati_bdv!$H$2:$H$65536))))),$A1055,dati_bdv!K$2:K$65536)","v":0},{"$f":"SUMIF(IF(dati_pdc!$C1055=1,dati_bdv!$C$2:$C$65536,IF(dati_pdc!$C1055=2,dati_bdv!$D$2:$D$65536,IF(dati_pdc!$C1055=3,dati_bdv!$E$2:$E$65536,IF(dati_pdc!$C1055=4,dati_bdv!$F$2:$F$65536,IF(dati_pdc!$C1055=5,dati_bdv!$G$2:$G$65536,dati_bdv!$H$2:$H$65536))))),$A1055,dati_bdv!L$2:L$65536)","v":0},{"$f":"SUMIF(IF(dati_pdc!$C1055=1,dati_bdv!$C$2:$C$65536,IF(dati_pdc!$C1055=2,dati_bdv!$D$2:$D$65536,IF(dati_pdc!$C1055=3,dati_bdv!$E$2:$E$65536,IF(dati_pdc!$C1055=4,dati_bdv!$F$2:$F$65536,IF(dati_pdc!$C1055=5,dati_bdv!$G$2:$G$65536,dati_bdv!$H$2:$H$65536))))),$A1055,dati_bdv!M$2:M$65536)","v":0},{"$f":"SUMIF(IF(dati_pdc!$C1055=1,dati_bdv!$C$2:$C$65536,IF(dati_pdc!$C1055=2,dati_bdv!$D$2:$D$65536,IF(dati_pdc!$C1055=3,dati_bdv!$E$2:$E$65536,IF(dati_pdc!$C1055=4,dati_bdv!$F$2:$F$65536,IF(dati_pdc!$C1055=5,dati_bdv!$G$2:$G$65536,dati_bdv!$H$2:$H$65536))))),$A1055,dati_bdv!N$2:N$65536)","v":0}]
[{"$f":"dati_pdc!A1056","v":0},{"$f":"SUMIF(IF(dati_pdc!$C1056=1,dati_bdv!$C$2:$C$65536,IF(dati_pdc!$C1056=2,dati_bdv!$D$2:$D$65536,IF(dati_pdc!$C1056=3,dati_bdv!$E$2:$E$65536,IF(dati_pdc!$C1056=4,dati_bdv!$F$2:$F$65536,IF(dati_pdc!$C1056=5,dati_bdv!$G$2:$G$65536,dati_bdv!$H$2:$H$65536))))),$A1056,dati_bdv!J$2:J$65536)","v":0},{"$f":"SUMIF(IF(dati_pdc!$C1056=1,dati_bdv!$C$2:$C$65536,IF(dati_pdc!$C1056=2,dati_bdv!$D$2:$D$65536,IF(dati_pdc!$C1056=3,dati_bdv!$E$2:$E$65536,IF(dati_pdc!$C1056=4,dati_bdv!$F$2:$F$65536,IF(dati_pdc!$C1056=5,dati_bdv!$G$2:$G$65536,dati_bdv!$H$2:$H$65536))))),$A1056,dati_bdv!K$2:K$65536)","v":0},{"$f":"SUMIF(IF(dati_pdc!$C1056=1,dati_bdv!$C$2:$C$65536,IF(dati_pdc!$C1056=2,dati_bdv!$D$2:$D$65536,IF(dati_pdc!$C1056=3,dati_bdv!$E$2:$E$65536,IF(dati_pdc!$C1056=4,dati_bdv!$F$2:$F$65536,IF(dati_pdc!$C1056=5,dati_bdv!$G$2:$G$65536,dati_bdv!$H$2:$H$65536))))),$A1056,dati_bdv!L$2:L$65536)","v":0},{"$f":"SUMIF(IF(dati_pdc!$C1056=1,dati_bdv!$C$2:$C$65536,IF(dati_pdc!$C1056=2,dati_bdv!$D$2:$D$65536,IF(dati_pdc!$C1056=3,dati_bdv!$E$2:$E$65536,IF(dati_pdc!$C1056=4,dati_bdv!$F$2:$F$65536,IF(dati_pdc!$C1056=5,dati_bdv!$G$2:$G$65536,dati_bdv!$H$2:$H$65536))))),$A1056,dati_bdv!M$2:M$65536)","v":0},{"$f":"SUMIF(IF(dati_pdc!$C1056=1,dati_bdv!$C$2:$C$65536,IF(dati_pdc!$C1056=2,dati_bdv!$D$2:$D$65536,IF(dati_pdc!$C1056=3,dati_bdv!$E$2:$E$65536,IF(dati_pdc!$C1056=4,dati_bdv!$F$2:$F$65536,IF(dati_pdc!$C1056=5,dati_bdv!$G$2:$G$65536,dati_bdv!$H$2:$H$65536))))),$A1056,dati_bdv!N$2:N$65536)","v":0}]
[{"$f":"dati_pdc!A1057","v":0},{"$f":"SUMIF(IF(dati_pdc!$C1057=1,dati_bdv!$C$2:$C$65536,IF(dati_pdc!$C1057=2,dati_bdv!$D$2:$D$65536,IF(dati_pdc!$C1057=3,dati_bdv!$E$2:$E$65536,IF(dati_pdc!$C1057=4,dati_bdv!$F$2:$F$65536,IF(dati_pdc!$C1057=5,dati_bdv!$G$2:$G$65536,dati_bdv!$H$2:$H$65536))))),$A1057,dati_bdv!J$2:J$65536)","v":0},{"$f":"SUMIF(IF(dati_pdc!$C1057=1,dati_bdv!$C$2:$C$65536,IF(dati_pdc!$C1057=2,dati_bdv!$D$2:$D$65536,IF(dati_pdc!$C1057=3,dati_bdv!$E$2:$E$65536,IF(dati_pdc!$C1057=4,dati_bdv!$F$2:$F$65536,IF(dati_pdc!$C1057=5,dati_bdv!$G$2:$G$65536,dati_bdv!$H$2:$H$65536))))),$A1057,dati_bdv!K$2:K$65536)","v":0},{"$f":"SUMIF(IF(dati_pdc!$C1057=1,dati_bdv!$C$2:$C$65536,IF(dati_pdc!$C1057=2,dati_bdv!$D$2:$D$65536,IF(dati_pdc!$C1057=3,dati_bdv!$E$2:$E$65536,IF(dati_pdc!$C1057=4,dati_bdv!$F$2:$F$65536,IF(dati_pdc!$C1057=5,dati_bdv!$G$2:$G$65536,dati_bdv!$H$2:$H$65536))))),$A1057,dati_bdv!L$2:L$65536)","v":0},{"$f":"SUMIF(IF(dati_pdc!$C1057=1,dati_bdv!$C$2:$C$65536,IF(dati_pdc!$C1057=2,dati_bdv!$D$2:$D$65536,IF(dati_pdc!$C1057=3,dati_bdv!$E$2:$E$65536,IF(dati_pdc!$C1057=4,dati_bdv!$F$2:$F$65536,IF(dati_pdc!$C1057=5,dati_bdv!$G$2:$G$65536,dati_bdv!$H$2:$H$65536))))),$A1057,dati_bdv!M$2:M$65536)","v":0},{"$f":"SUMIF(IF(dati_pdc!$C1057=1,dati_bdv!$C$2:$C$65536,IF(dati_pdc!$C1057=2,dati_bdv!$D$2:$D$65536,IF(dati_pdc!$C1057=3,dati_bdv!$E$2:$E$65536,IF(dati_pdc!$C1057=4,dati_bdv!$F$2:$F$65536,IF(dati_pdc!$C1057=5,dati_bdv!$G$2:$G$65536,dati_bdv!$H$2:$H$65536))))),$A1057,dati_bdv!N$2:N$65536)","v":0}]
[{"$f":"dati_pdc!A1058","v":0},{"$f":"SUMIF(IF(dati_pdc!$C1058=1,dati_bdv!$C$2:$C$65536,IF(dati_pdc!$C1058=2,dati_bdv!$D$2:$D$65536,IF(dati_pdc!$C1058=3,dati_bdv!$E$2:$E$65536,IF(dati_pdc!$C1058=4,dati_bdv!$F$2:$F$65536,IF(dati_pdc!$C1058=5,dati_bdv!$G$2:$G$65536,dati_bdv!$H$2:$H$65536))))),$A1058,dati_bdv!J$2:J$65536)","v":0},{"$f":"SUMIF(IF(dati_pdc!$C1058=1,dati_bdv!$C$2:$C$65536,IF(dati_pdc!$C1058=2,dati_bdv!$D$2:$D$65536,IF(dati_pdc!$C1058=3,dati_bdv!$E$2:$E$65536,IF(dati_pdc!$C1058=4,dati_bdv!$F$2:$F$65536,IF(dati_pdc!$C1058=5,dati_bdv!$G$2:$G$65536,dati_bdv!$H$2:$H$65536))))),$A1058,dati_bdv!K$2:K$65536)","v":0},{"$f":"SUMIF(IF(dati_pdc!$C1058=1,dati_bdv!$C$2:$C$65536,IF(dati_pdc!$C1058=2,dati_bdv!$D$2:$D$65536,IF(dati_pdc!$C1058=3,dati_bdv!$E$2:$E$65536,IF(dati_pdc!$C1058=4,dati_bdv!$F$2:$F$65536,IF(dati_pdc!$C1058=5,dati_bdv!$G$2:$G$65536,dati_bdv!$H$2:$H$65536))))),$A1058,dati_bdv!L$2:L$65536)","v":0},{"$f":"SUMIF(IF(dati_pdc!$C1058=1,dati_bdv!$C$2:$C$65536,IF(dati_pdc!$C1058=2,dati_bdv!$D$2:$D$65536,IF(dati_pdc!$C1058=3,dati_bdv!$E$2:$E$65536,IF(dati_pdc!$C1058=4,dati_bdv!$F$2:$F$65536,IF(dati_pdc!$C1058=5,dati_bdv!$G$2:$G$65536,dati_bdv!$H$2:$H$65536))))),$A1058,dati_bdv!M$2:M$65536)","v":0},{"$f":"SUMIF(IF(dati_pdc!$C1058=1,dati_bdv!$C$2:$C$65536,IF(dati_pdc!$C1058=2,dati_bdv!$D$2:$D$65536,IF(dati_pdc!$C1058=3,dati_bdv!$E$2:$E$65536,IF(dati_pdc!$C1058=4,dati_bdv!$F$2:$F$65536,IF(dati_pdc!$C1058=5,dati_bdv!$G$2:$G$65536,dati_bdv!$H$2:$H$65536))))),$A1058,dati_bdv!N$2:N$65536)","v":0}]
[{"$f":"dati_pdc!A1059","v":0},{"$f":"SUMIF(IF(dati_pdc!$C1059=1,dati_bdv!$C$2:$C$65536,IF(dati_pdc!$C1059=2,dati_bdv!$D$2:$D$65536,IF(dati_pdc!$C1059=3,dati_bdv!$E$2:$E$65536,IF(dati_pdc!$C1059=4,dati_bdv!$F$2:$F$65536,IF(dati_pdc!$C1059=5,dati_bdv!$G$2:$G$65536,dati_bdv!$H$2:$H$65536))))),$A1059,dati_bdv!J$2:J$65536)","v":0},{"$f":"SUMIF(IF(dati_pdc!$C1059=1,dati_bdv!$C$2:$C$65536,IF(dati_pdc!$C1059=2,dati_bdv!$D$2:$D$65536,IF(dati_pdc!$C1059=3,dati_bdv!$E$2:$E$65536,IF(dati_pdc!$C1059=4,dati_bdv!$F$2:$F$65536,IF(dati_pdc!$C1059=5,dati_bdv!$G$2:$G$65536,dati_bdv!$H$2:$H$65536))))),$A1059,dati_bdv!K$2:K$65536)","v":0},{"$f":"SUMIF(IF(dati_pdc!$C1059=1,dati_bdv!$C$2:$C$65536,IF(dati_pdc!$C1059=2,dati_bdv!$D$2:$D$65536,IF(dati_pdc!$C1059=3,dati_bdv!$E$2:$E$65536,IF(dati_pdc!$C1059=4,dati_bdv!$F$2:$F$65536,IF(dati_pdc!$C1059=5,dati_bdv!$G$2:$G$65536,dati_bdv!$H$2:$H$65536))))),$A1059,dati_bdv!L$2:L$65536)","v":0},{"$f":"SUMIF(IF(dati_pdc!$C1059=1,dati_bdv!$C$2:$C$65536,IF(dati_pdc!$C1059=2,dati_bdv!$D$2:$D$65536,IF(dati_pdc!$C1059=3,dati_bdv!$E$2:$E$65536,IF(dati_pdc!$C1059=4,dati_bdv!$F$2:$F$65536,IF(dati_pdc!$C1059=5,dati_bdv!$G$2:$G$65536,dati_bdv!$H$2:$H$65536))))),$A1059,dati_bdv!M$2:M$65536)","v":0},{"$f":"SUMIF(IF(dati_pdc!$C1059=1,dati_bdv!$C$2:$C$65536,IF(dati_pdc!$C1059=2,dati_bdv!$D$2:$D$65536,IF(dati_pdc!$C1059=3,dati_bdv!$E$2:$E$65536,IF(dati_pdc!$C1059=4,dati_bdv!$F$2:$F$65536,IF(dati_pdc!$C1059=5,dati_bdv!$G$2:$G$65536,dati_bdv!$H$2:$H$65536))))),$A1059,dati_bdv!N$2:N$65536)","v":0}]
[{"$f":"dati_pdc!A1060","v":0},{"$f":"SUMIF(IF(dati_pdc!$C1060=1,dati_bdv!$C$2:$C$65536,IF(dati_pdc!$C1060=2,dati_bdv!$D$2:$D$65536,IF(dati_pdc!$C1060=3,dati_bdv!$E$2:$E$65536,IF(dati_pdc!$C1060=4,dati_bdv!$F$2:$F$65536,IF(dati_pdc!$C1060=5,dati_bdv!$G$2:$G$65536,dati_bdv!$H$2:$H$65536))))),$A1060,dati_bdv!J$2:J$65536)","v":0},{"$f":"SUMIF(IF(dati_pdc!$C1060=1,dati_bdv!$C$2:$C$65536,IF(dati_pdc!$C1060=2,dati_bdv!$D$2:$D$65536,IF(dati_pdc!$C1060=3,dati_bdv!$E$2:$E$65536,IF(dati_pdc!$C1060=4,dati_bdv!$F$2:$F$65536,IF(dati_pdc!$C1060=5,dati_bdv!$G$2:$G$65536,dati_bdv!$H$2:$H$65536))))),$A1060,dati_bdv!K$2:K$65536)","v":0},{"$f":"SUMIF(IF(dati_pdc!$C1060=1,dati_bdv!$C$2:$C$65536,IF(dati_pdc!$C1060=2,dati_bdv!$D$2:$D$65536,IF(dati_pdc!$C1060=3,dati_bdv!$E$2:$E$65536,IF(dati_pdc!$C1060=4,dati_bdv!$F$2:$F$65536,IF(dati_pdc!$C1060=5,dati_bdv!$G$2:$G$65536,dati_bdv!$H$2:$H$65536))))),$A1060,dati_bdv!L$2:L$65536)","v":0},{"$f":"SUMIF(IF(dati_pdc!$C1060=1,dati_bdv!$C$2:$C$65536,IF(dati_pdc!$C1060=2,dati_bdv!$D$2:$D$65536,IF(dati_pdc!$C1060=3,dati_bdv!$E$2:$E$65536,IF(dati_pdc!$C1060=4,dati_bdv!$F$2:$F$65536,IF(dati_pdc!$C1060=5,dati_bdv!$G$2:$G$65536,dati_bdv!$H$2:$H$65536))))),$A1060,dati_bdv!M$2:M$65536)","v":0},{"$f":"SUMIF(IF(dati_pdc!$C1060=1,dati_bdv!$C$2:$C$65536,IF(dati_pdc!$C1060=2,dati_bdv!$D$2:$D$65536,IF(dati_pdc!$C1060=3,dati_bdv!$E$2:$E$65536,IF(dati_pdc!$C1060=4,dati_bdv!$F$2:$F$65536,IF(dati_pdc!$C1060=5,dati_bdv!$G$2:$G$65536,dati_bdv!$H$2:$H$65536))))),$A1060,dati_bdv!N$2:N$65536)","v":0}]
[{"$f":"dati_pdc!A1061","v":0},{"$f":"SUMIF(IF(dati_pdc!$C1061=1,dati_bdv!$C$2:$C$65536,IF(dati_pdc!$C1061=2,dati_bdv!$D$2:$D$65536,IF(dati_pdc!$C1061=3,dati_bdv!$E$2:$E$65536,IF(dati_pdc!$C1061=4,dati_bdv!$F$2:$F$65536,IF(dati_pdc!$C1061=5,dati_bdv!$G$2:$G$65536,dati_bdv!$H$2:$H$65536))))),$A1061,dati_bdv!J$2:J$65536)","v":0},{"$f":"SUMIF(IF(dati_pdc!$C1061=1,dati_bdv!$C$2:$C$65536,IF(dati_pdc!$C1061=2,dati_bdv!$D$2:$D$65536,IF(dati_pdc!$C1061=3,dati_bdv!$E$2:$E$65536,IF(dati_pdc!$C1061=4,dati_bdv!$F$2:$F$65536,IF(dati_pdc!$C1061=5,dati_bdv!$G$2:$G$65536,dati_bdv!$H$2:$H$65536))))),$A1061,dati_bdv!K$2:K$65536)","v":0},{"$f":"SUMIF(IF(dati_pdc!$C1061=1,dati_bdv!$C$2:$C$65536,IF(dati_pdc!$C1061=2,dati_bdv!$D$2:$D$65536,IF(dati_pdc!$C1061=3,dati_bdv!$E$2:$E$65536,IF(dati_pdc!$C1061=4,dati_bdv!$F$2:$F$65536,IF(dati_pdc!$C1061=5,dati_bdv!$G$2:$G$65536,dati_bdv!$H$2:$H$65536))))),$A1061,dati_bdv!L$2:L$65536)","v":0},{"$f":"SUMIF(IF(dati_pdc!$C1061=1,dati_bdv!$C$2:$C$65536,IF(dati_pdc!$C1061=2,dati_bdv!$D$2:$D$65536,IF(dati_pdc!$C1061=3,dati_bdv!$E$2:$E$65536,IF(dati_pdc!$C1061=4,dati_bdv!$F$2:$F$65536,IF(dati_pdc!$C1061=5,dati_bdv!$G$2:$G$65536,dati_bdv!$H$2:$H$65536))))),$A1061,dati_bdv!M$2:M$65536)","v":0},{"$f":"SUMIF(IF(dati_pdc!$C1061=1,dati_bdv!$C$2:$C$65536,IF(dati_pdc!$C1061=2,dati_bdv!$D$2:$D$65536,IF(dati_pdc!$C1061=3,dati_bdv!$E$2:$E$65536,IF(dati_pdc!$C1061=4,dati_bdv!$F$2:$F$65536,IF(dati_pdc!$C1061=5,dati_bdv!$G$2:$G$65536,dati_bdv!$H$2:$H$65536))))),$A1061,dati_bdv!N$2:N$65536)","v":0}]
[{"$f":"dati_pdc!A1062","v":0},{"$f":"SUMIF(IF(dati_pdc!$C1062=1,dati_bdv!$C$2:$C$65536,IF(dati_pdc!$C1062=2,dati_bdv!$D$2:$D$65536,IF(dati_pdc!$C1062=3,dati_bdv!$E$2:$E$65536,IF(dati_pdc!$C1062=4,dati_bdv!$F$2:$F$65536,IF(dati_pdc!$C1062=5,dati_bdv!$G$2:$G$65536,dati_bdv!$H$2:$H$65536))))),$A1062,dati_bdv!J$2:J$65536)","v":0},{"$f":"SUMIF(IF(dati_pdc!$C1062=1,dati_bdv!$C$2:$C$65536,IF(dati_pdc!$C1062=2,dati_bdv!$D$2:$D$65536,IF(dati_pdc!$C1062=3,dati_bdv!$E$2:$E$65536,IF(dati_pdc!$C1062=4,dati_bdv!$F$2:$F$65536,IF(dati_pdc!$C1062=5,dati_bdv!$G$2:$G$65536,dati_bdv!$H$2:$H$65536))))),$A1062,dati_bdv!K$2:K$65536)","v":0},{"$f":"SUMIF(IF(dati_pdc!$C1062=1,dati_bdv!$C$2:$C$65536,IF(dati_pdc!$C1062=2,dati_bdv!$D$2:$D$65536,IF(dati_pdc!$C1062=3,dati_bdv!$E$2:$E$65536,IF(dati_pdc!$C1062=4,dati_bdv!$F$2:$F$65536,IF(dati_pdc!$C1062=5,dati_bdv!$G$2:$G$65536,dati_bdv!$H$2:$H$65536))))),$A1062,dati_bdv!L$2:L$65536)","v":0},{"$f":"SUMIF(IF(dati_pdc!$C1062=1,dati_bdv!$C$2:$C$65536,IF(dati_pdc!$C1062=2,dati_bdv!$D$2:$D$65536,IF(dati_pdc!$C1062=3,dati_bdv!$E$2:$E$65536,IF(dati_pdc!$C1062=4,dati_bdv!$F$2:$F$65536,IF(dati_pdc!$C1062=5,dati_bdv!$G$2:$G$65536,dati_bdv!$H$2:$H$65536))))),$A1062,dati_bdv!M$2:M$65536)","v":0},{"$f":"SUMIF(IF(dati_pdc!$C1062=1,dati_bdv!$C$2:$C$65536,IF(dati_pdc!$C1062=2,dati_bdv!$D$2:$D$65536,IF(dati_pdc!$C1062=3,dati_bdv!$E$2:$E$65536,IF(dati_pdc!$C1062=4,dati_bdv!$F$2:$F$65536,IF(dati_pdc!$C1062=5,dati_bdv!$G$2:$G$65536,dati_bdv!$H$2:$H$65536))))),$A1062,dati_bdv!N$2:N$65536)","v":0}]
[{"$f":"dati_pdc!A1063","v":0},{"$f":"SUMIF(IF(dati_pdc!$C1063=1,dati_bdv!$C$2:$C$65536,IF(dati_pdc!$C1063=2,dati_bdv!$D$2:$D$65536,IF(dati_pdc!$C1063=3,dati_bdv!$E$2:$E$65536,IF(dati_pdc!$C1063=4,dati_bdv!$F$2:$F$65536,IF(dati_pdc!$C1063=5,dati_bdv!$G$2:$G$65536,dati_bdv!$H$2:$H$65536))))),$A1063,dati_bdv!J$2:J$65536)","v":0},{"$f":"SUMIF(IF(dati_pdc!$C1063=1,dati_bdv!$C$2:$C$65536,IF(dati_pdc!$C1063=2,dati_bdv!$D$2:$D$65536,IF(dati_pdc!$C1063=3,dati_bdv!$E$2:$E$65536,IF(dati_pdc!$C1063=4,dati_bdv!$F$2:$F$65536,IF(dati_pdc!$C1063=5,dati_bdv!$G$2:$G$65536,dati_bdv!$H$2:$H$65536))))),$A1063,dati_bdv!K$2:K$65536)","v":0},{"$f":"SUMIF(IF(dati_pdc!$C1063=1,dati_bdv!$C$2:$C$65536,IF(dati_pdc!$C1063=2,dati_bdv!$D$2:$D$65536,IF(dati_pdc!$C1063=3,dati_bdv!$E$2:$E$65536,IF(dati_pdc!$C1063=4,dati_bdv!$F$2:$F$65536,IF(dati_pdc!$C1063=5,dati_bdv!$G$2:$G$65536,dati_bdv!$H$2:$H$65536))))),$A1063,dati_bdv!L$2:L$65536)","v":0},{"$f":"SUMIF(IF(dati_pdc!$C1063=1,dati_bdv!$C$2:$C$65536,IF(dati_pdc!$C1063=2,dati_bdv!$D$2:$D$65536,IF(dati_pdc!$C1063=3,dati_bdv!$E$2:$E$65536,IF(dati_pdc!$C1063=4,dati_bdv!$F$2:$F$65536,IF(dati_pdc!$C1063=5,dati_bdv!$G$2:$G$65536,dati_bdv!$H$2:$H$65536))))),$A1063,dati_bdv!M$2:M$65536)","v":0},{"$f":"SUMIF(IF(dati_pdc!$C1063=1,dati_bdv!$C$2:$C$65536,IF(dati_pdc!$C1063=2,dati_bdv!$D$2:$D$65536,IF(dati_pdc!$C1063=3,dati_bdv!$E$2:$E$65536,IF(dati_pdc!$C1063=4,dati_bdv!$F$2:$F$65536,IF(dati_pdc!$C1063=5,dati_bdv!$G$2:$G$65536,dati_bdv!$H$2:$H$65536))))),$A1063,dati_bdv!N$2:N$65536)","v":0}]
[{"$f":"dati_pdc!A1064","v":0},{"$f":"SUMIF(IF(dati_pdc!$C1064=1,dati_bdv!$C$2:$C$65536,IF(dati_pdc!$C1064=2,dati_bdv!$D$2:$D$65536,IF(dati_pdc!$C1064=3,dati_bdv!$E$2:$E$65536,IF(dati_pdc!$C1064=4,dati_bdv!$F$2:$F$65536,IF(dati_pdc!$C1064=5,dati_bdv!$G$2:$G$65536,dati_bdv!$H$2:$H$65536))))),$A1064,dati_bdv!J$2:J$65536)","v":0},{"$f":"SUMIF(IF(dati_pdc!$C1064=1,dati_bdv!$C$2:$C$65536,IF(dati_pdc!$C1064=2,dati_bdv!$D$2:$D$65536,IF(dati_pdc!$C1064=3,dati_bdv!$E$2:$E$65536,IF(dati_pdc!$C1064=4,dati_bdv!$F$2:$F$65536,IF(dati_pdc!$C1064=5,dati_bdv!$G$2:$G$65536,dati_bdv!$H$2:$H$65536))))),$A1064,dati_bdv!K$2:K$65536)","v":0},{"$f":"SUMIF(IF(dati_pdc!$C1064=1,dati_bdv!$C$2:$C$65536,IF(dati_pdc!$C1064=2,dati_bdv!$D$2:$D$65536,IF(dati_pdc!$C1064=3,dati_bdv!$E$2:$E$65536,IF(dati_pdc!$C1064=4,dati_bdv!$F$2:$F$65536,IF(dati_pdc!$C1064=5,dati_bdv!$G$2:$G$65536,dati_bdv!$H$2:$H$65536))))),$A1064,dati_bdv!L$2:L$65536)","v":0},{"$f":"SUMIF(IF(dati_pdc!$C1064=1,dati_bdv!$C$2:$C$65536,IF(dati_pdc!$C1064=2,dati_bdv!$D$2:$D$65536,IF(dati_pdc!$C1064=3,dati_bdv!$E$2:$E$65536,IF(dati_pdc!$C1064=4,dati_bdv!$F$2:$F$65536,IF(dati_pdc!$C1064=5,dati_bdv!$G$2:$G$65536,dati_bdv!$H$2:$H$65536))))),$A1064,dati_bdv!M$2:M$65536)","v":0},{"$f":"SUMIF(IF(dati_pdc!$C1064=1,dati_bdv!$C$2:$C$65536,IF(dati_pdc!$C1064=2,dati_bdv!$D$2:$D$65536,IF(dati_pdc!$C1064=3,dati_bdv!$E$2:$E$65536,IF(dati_pdc!$C1064=4,dati_bdv!$F$2:$F$65536,IF(dati_pdc!$C1064=5,dati_bdv!$G$2:$G$65536,dati_bdv!$H$2:$H$65536))))),$A1064,dati_bdv!N$2:N$65536)","v":0}]
[{"$f":"dati_pdc!A1065","v":0},{"$f":"SUMIF(IF(dati_pdc!$C1065=1,dati_bdv!$C$2:$C$65536,IF(dati_pdc!$C1065=2,dati_bdv!$D$2:$D$65536,IF(dati_pdc!$C1065=3,dati_bdv!$E$2:$E$65536,IF(dati_pdc!$C1065=4,dati_bdv!$F$2:$F$65536,IF(dati_pdc!$C1065=5,dati_bdv!$G$2:$G$65536,dati_bdv!$H$2:$H$65536))))),$A1065,dati_bdv!J$2:J$65536)","v":0},{"$f":"SUMIF(IF(dati_pdc!$C1065=1,dati_bdv!$C$2:$C$65536,IF(dati_pdc!$C1065=2,dati_bdv!$D$2:$D$65536,IF(dati_pdc!$C1065=3,dati_bdv!$E$2:$E$65536,IF(dati_pdc!$C1065=4,dati_bdv!$F$2:$F$65536,IF(dati_pdc!$C1065=5,dati_bdv!$G$2:$G$65536,dati_bdv!$H$2:$H$65536))))),$A1065,dati_bdv!K$2:K$65536)","v":0},{"$f":"SUMIF(IF(dati_pdc!$C1065=1,dati_bdv!$C$2:$C$65536,IF(dati_pdc!$C1065=2,dati_bdv!$D$2:$D$65536,IF(dati_pdc!$C1065=3,dati_bdv!$E$2:$E$65536,IF(dati_pdc!$C1065=4,dati_bdv!$F$2:$F$65536,IF(dati_pdc!$C1065=5,dati_bdv!$G$2:$G$65536,dati_bdv!$H$2:$H$65536))))),$A1065,dati_bdv!L$2:L$65536)","v":0},{"$f":"SUMIF(IF(dati_pdc!$C1065=1,dati_bdv!$C$2:$C$65536,IF(dati_pdc!$C1065=2,dati_bdv!$D$2:$D$65536,IF(dati_pdc!$C1065=3,dati_bdv!$E$2:$E$65536,IF(dati_pdc!$C1065=4,dati_bdv!$F$2:$F$65536,IF(dati_pdc!$C1065=5,dati_bdv!$G$2:$G$65536,dati_bdv!$H$2:$H$65536))))),$A1065,dati_bdv!M$2:M$65536)","v":0},{"$f":"SUMIF(IF(dati_pdc!$C1065=1,dati_bdv!$C$2:$C$65536,IF(dati_pdc!$C1065=2,dati_bdv!$D$2:$D$65536,IF(dati_pdc!$C1065=3,dati_bdv!$E$2:$E$65536,IF(dati_pdc!$C1065=4,dati_bdv!$F$2:$F$65536,IF(dati_pdc!$C1065=5,dati_bdv!$G$2:$G$65536,dati_bdv!$H$2:$H$65536))))),$A1065,dati_bdv!N$2:N$65536)","v":0}]
[{"$f":"dati_pdc!A1066","v":0},{"$f":"SUMIF(IF(dati_pdc!$C1066=1,dati_bdv!$C$2:$C$65536,IF(dati_pdc!$C1066=2,dati_bdv!$D$2:$D$65536,IF(dati_pdc!$C1066=3,dati_bdv!$E$2:$E$65536,IF(dati_pdc!$C1066=4,dati_bdv!$F$2:$F$65536,IF(dati_pdc!$C1066=5,dati_bdv!$G$2:$G$65536,dati_bdv!$H$2:$H$65536))))),$A1066,dati_bdv!J$2:J$65536)","v":0},{"$f":"SUMIF(IF(dati_pdc!$C1066=1,dati_bdv!$C$2:$C$65536,IF(dati_pdc!$C1066=2,dati_bdv!$D$2:$D$65536,IF(dati_pdc!$C1066=3,dati_bdv!$E$2:$E$65536,IF(dati_pdc!$C1066=4,dati_bdv!$F$2:$F$65536,IF(dati_pdc!$C1066=5,dati_bdv!$G$2:$G$65536,dati_bdv!$H$2:$H$65536))))),$A1066,dati_bdv!K$2:K$65536)","v":0},{"$f":"SUMIF(IF(dati_pdc!$C1066=1,dati_bdv!$C$2:$C$65536,IF(dati_pdc!$C1066=2,dati_bdv!$D$2:$D$65536,IF(dati_pdc!$C1066=3,dati_bdv!$E$2:$E$65536,IF(dati_pdc!$C1066=4,dati_bdv!$F$2:$F$65536,IF(dati_pdc!$C1066=5,dati_bdv!$G$2:$G$65536,dati_bdv!$H$2:$H$65536))))),$A1066,dati_bdv!L$2:L$65536)","v":0},{"$f":"SUMIF(IF(dati_pdc!$C1066=1,dati_bdv!$C$2:$C$65536,IF(dati_pdc!$C1066=2,dati_bdv!$D$2:$D$65536,IF(dati_pdc!$C1066=3,dati_bdv!$E$2:$E$65536,IF(dati_pdc!$C1066=4,dati_bdv!$F$2:$F$65536,IF(dati_pdc!$C1066=5,dati_bdv!$G$2:$G$65536,dati_bdv!$H$2:$H$65536))))),$A1066,dati_bdv!M$2:M$65536)","v":0},{"$f":"SUMIF(IF(dati_pdc!$C1066=1,dati_bdv!$C$2:$C$65536,IF(dati_pdc!$C1066=2,dati_bdv!$D$2:$D$65536,IF(dati_pdc!$C1066=3,dati_bdv!$E$2:$E$65536,IF(dati_pdc!$C1066=4,dati_bdv!$F$2:$F$65536,IF(dati_pdc!$C1066=5,dati_bdv!$G$2:$G$65536,dati_bdv!$H$2:$H$65536))))),$A1066,dati_bdv!N$2:N$65536)","v":0}]
[{"$f":"dati_pdc!A1067","v":0},{"$f":"SUMIF(IF(dati_pdc!$C1067=1,dati_bdv!$C$2:$C$65536,IF(dati_pdc!$C1067=2,dati_bdv!$D$2:$D$65536,IF(dati_pdc!$C1067=3,dati_bdv!$E$2:$E$65536,IF(dati_pdc!$C1067=4,dati_bdv!$F$2:$F$65536,IF(dati_pdc!$C1067=5,dati_bdv!$G$2:$G$65536,dati_bdv!$H$2:$H$65536))))),$A1067,dati_bdv!J$2:J$65536)","v":0},{"$f":"SUMIF(IF(dati_pdc!$C1067=1,dati_bdv!$C$2:$C$65536,IF(dati_pdc!$C1067=2,dati_bdv!$D$2:$D$65536,IF(dati_pdc!$C1067=3,dati_bdv!$E$2:$E$65536,IF(dati_pdc!$C1067=4,dati_bdv!$F$2:$F$65536,IF(dati_pdc!$C1067=5,dati_bdv!$G$2:$G$65536,dati_bdv!$H$2:$H$65536))))),$A1067,dati_bdv!K$2:K$65536)","v":0},{"$f":"SUMIF(IF(dati_pdc!$C1067=1,dati_bdv!$C$2:$C$65536,IF(dati_pdc!$C1067=2,dati_bdv!$D$2:$D$65536,IF(dati_pdc!$C1067=3,dati_bdv!$E$2:$E$65536,IF(dati_pdc!$C1067=4,dati_bdv!$F$2:$F$65536,IF(dati_pdc!$C1067=5,dati_bdv!$G$2:$G$65536,dati_bdv!$H$2:$H$65536))))),$A1067,dati_bdv!L$2:L$65536)","v":0},{"$f":"SUMIF(IF(dati_pdc!$C1067=1,dati_bdv!$C$2:$C$65536,IF(dati_pdc!$C1067=2,dati_bdv!$D$2:$D$65536,IF(dati_pdc!$C1067=3,dati_bdv!$E$2:$E$65536,IF(dati_pdc!$C1067=4,dati_bdv!$F$2:$F$65536,IF(dati_pdc!$C1067=5,dati_bdv!$G$2:$G$65536,dati_bdv!$H$2:$H$65536))))),$A1067,dati_bdv!M$2:M$65536)","v":0},{"$f":"SUMIF(IF(dati_pdc!$C1067=1,dati_bdv!$C$2:$C$65536,IF(dati_pdc!$C1067=2,dati_bdv!$D$2:$D$65536,IF(dati_pdc!$C1067=3,dati_bdv!$E$2:$E$65536,IF(dati_pdc!$C1067=4,dati_bdv!$F$2:$F$65536,IF(dati_pdc!$C1067=5,dati_bdv!$G$2:$G$65536,dati_bdv!$H$2:$H$65536))))),$A1067,dati_bdv!N$2:N$65536)","v":0}]
[{"$f":"dati_pdc!A1068","v":0},{"$f":"SUMIF(IF(dati_pdc!$C1068=1,dati_bdv!$C$2:$C$65536,IF(dati_pdc!$C1068=2,dati_bdv!$D$2:$D$65536,IF(dati_pdc!$C1068=3,dati_bdv!$E$2:$E$65536,IF(dati_pdc!$C1068=4,dati_bdv!$F$2:$F$65536,IF(dati_pdc!$C1068=5,dati_bdv!$G$2:$G$65536,dati_bdv!$H$2:$H$65536))))),$A1068,dati_bdv!J$2:J$65536)","v":0},{"$f":"SUMIF(IF(dati_pdc!$C1068=1,dati_bdv!$C$2:$C$65536,IF(dati_pdc!$C1068=2,dati_bdv!$D$2:$D$65536,IF(dati_pdc!$C1068=3,dati_bdv!$E$2:$E$65536,IF(dati_pdc!$C1068=4,dati_bdv!$F$2:$F$65536,IF(dati_pdc!$C1068=5,dati_bdv!$G$2:$G$65536,dati_bdv!$H$2:$H$65536))))),$A1068,dati_bdv!K$2:K$65536)","v":0},{"$f":"SUMIF(IF(dati_pdc!$C1068=1,dati_bdv!$C$2:$C$65536,IF(dati_pdc!$C1068=2,dati_bdv!$D$2:$D$65536,IF(dati_pdc!$C1068=3,dati_bdv!$E$2:$E$65536,IF(dati_pdc!$C1068=4,dati_bdv!$F$2:$F$65536,IF(dati_pdc!$C1068=5,dati_bdv!$G$2:$G$65536,dati_bdv!$H$2:$H$65536))))),$A1068,dati_bdv!L$2:L$65536)","v":0},{"$f":"SUMIF(IF(dati_pdc!$C1068=1,dati_bdv!$C$2:$C$65536,IF(dati_pdc!$C1068=2,dati_bdv!$D$2:$D$65536,IF(dati_pdc!$C1068=3,dati_bdv!$E$2:$E$65536,IF(dati_pdc!$C1068=4,dati_bdv!$F$2:$F$65536,IF(dati_pdc!$C1068=5,dati_bdv!$G$2:$G$65536,dati_bdv!$H$2:$H$65536))))),$A1068,dati_bdv!M$2:M$65536)","v":0},{"$f":"SUMIF(IF(dati_pdc!$C1068=1,dati_bdv!$C$2:$C$65536,IF(dati_pdc!$C1068=2,dati_bdv!$D$2:$D$65536,IF(dati_pdc!$C1068=3,dati_bdv!$E$2:$E$65536,IF(dati_pdc!$C1068=4,dati_bdv!$F$2:$F$65536,IF(dati_pdc!$C1068=5,dati_bdv!$G$2:$G$65536,dati_bdv!$H$2:$H$65536))))),$A1068,dati_bdv!N$2:N$65536)","v":0}]
[{"$f":"dati_pdc!A1069","v":0},{"$f":"SUMIF(IF(dati_pdc!$C1069=1,dati_bdv!$C$2:$C$65536,IF(dati_pdc!$C1069=2,dati_bdv!$D$2:$D$65536,IF(dati_pdc!$C1069=3,dati_bdv!$E$2:$E$65536,IF(dati_pdc!$C1069=4,dati_bdv!$F$2:$F$65536,IF(dati_pdc!$C1069=5,dati_bdv!$G$2:$G$65536,dati_bdv!$H$2:$H$65536))))),$A1069,dati_bdv!J$2:J$65536)","v":0},{"$f":"SUMIF(IF(dati_pdc!$C1069=1,dati_bdv!$C$2:$C$65536,IF(dati_pdc!$C1069=2,dati_bdv!$D$2:$D$65536,IF(dati_pdc!$C1069=3,dati_bdv!$E$2:$E$65536,IF(dati_pdc!$C1069=4,dati_bdv!$F$2:$F$65536,IF(dati_pdc!$C1069=5,dati_bdv!$G$2:$G$65536,dati_bdv!$H$2:$H$65536))))),$A1069,dati_bdv!K$2:K$65536)","v":0},{"$f":"SUMIF(IF(dati_pdc!$C1069=1,dati_bdv!$C$2:$C$65536,IF(dati_pdc!$C1069=2,dati_bdv!$D$2:$D$65536,IF(dati_pdc!$C1069=3,dati_bdv!$E$2:$E$65536,IF(dati_pdc!$C1069=4,dati_bdv!$F$2:$F$65536,IF(dati_pdc!$C1069=5,dati_bdv!$G$2:$G$65536,dati_bdv!$H$2:$H$65536))))),$A1069,dati_bdv!L$2:L$65536)","v":0},{"$f":"SUMIF(IF(dati_pdc!$C1069=1,dati_bdv!$C$2:$C$65536,IF(dati_pdc!$C1069=2,dati_bdv!$D$2:$D$65536,IF(dati_pdc!$C1069=3,dati_bdv!$E$2:$E$65536,IF(dati_pdc!$C1069=4,dati_bdv!$F$2:$F$65536,IF(dati_pdc!$C1069=5,dati_bdv!$G$2:$G$65536,dati_bdv!$H$2:$H$65536))))),$A1069,dati_bdv!M$2:M$65536)","v":0},{"$f":"SUMIF(IF(dati_pdc!$C1069=1,dati_bdv!$C$2:$C$65536,IF(dati_pdc!$C1069=2,dati_bdv!$D$2:$D$65536,IF(dati_pdc!$C1069=3,dati_bdv!$E$2:$E$65536,IF(dati_pdc!$C1069=4,dati_bdv!$F$2:$F$65536,IF(dati_pdc!$C1069=5,dati_bdv!$G$2:$G$65536,dati_bdv!$H$2:$H$65536))))),$A1069,dati_bdv!N$2:N$65536)","v":0}]
[{"$f":"dati_pdc!A1070","v":0},{"$f":"SUMIF(IF(dati_pdc!$C1070=1,dati_bdv!$C$2:$C$65536,IF(dati_pdc!$C1070=2,dati_bdv!$D$2:$D$65536,IF(dati_pdc!$C1070=3,dati_bdv!$E$2:$E$65536,IF(dati_pdc!$C1070=4,dati_bdv!$F$2:$F$65536,IF(dati_pdc!$C1070=5,dati_bdv!$G$2:$G$65536,dati_bdv!$H$2:$H$65536))))),$A1070,dati_bdv!J$2:J$65536)","v":0},{"$f":"SUMIF(IF(dati_pdc!$C1070=1,dati_bdv!$C$2:$C$65536,IF(dati_pdc!$C1070=2,dati_bdv!$D$2:$D$65536,IF(dati_pdc!$C1070=3,dati_bdv!$E$2:$E$65536,IF(dati_pdc!$C1070=4,dati_bdv!$F$2:$F$65536,IF(dati_pdc!$C1070=5,dati_bdv!$G$2:$G$65536,dati_bdv!$H$2:$H$65536))))),$A1070,dati_bdv!K$2:K$65536)","v":0},{"$f":"SUMIF(IF(dati_pdc!$C1070=1,dati_bdv!$C$2:$C$65536,IF(dati_pdc!$C1070=2,dati_bdv!$D$2:$D$65536,IF(dati_pdc!$C1070=3,dati_bdv!$E$2:$E$65536,IF(dati_pdc!$C1070=4,dati_bdv!$F$2:$F$65536,IF(dati_pdc!$C1070=5,dati_bdv!$G$2:$G$65536,dati_bdv!$H$2:$H$65536))))),$A1070,dati_bdv!L$2:L$65536)","v":0},{"$f":"SUMIF(IF(dati_pdc!$C1070=1,dati_bdv!$C$2:$C$65536,IF(dati_pdc!$C1070=2,dati_bdv!$D$2:$D$65536,IF(dati_pdc!$C1070=3,dati_bdv!$E$2:$E$65536,IF(dati_pdc!$C1070=4,dati_bdv!$F$2:$F$65536,IF(dati_pdc!$C1070=5,dati_bdv!$G$2:$G$65536,dati_bdv!$H$2:$H$65536))))),$A1070,dati_bdv!M$2:M$65536)","v":0},{"$f":"SUMIF(IF(dati_pdc!$C1070=1,dati_bdv!$C$2:$C$65536,IF(dati_pdc!$C1070=2,dati_bdv!$D$2:$D$65536,IF(dati_pdc!$C1070=3,dati_bdv!$E$2:$E$65536,IF(dati_pdc!$C1070=4,dati_bdv!$F$2:$F$65536,IF(dati_pdc!$C1070=5,dati_bdv!$G$2:$G$65536,dati_bdv!$H$2:$H$65536))))),$A1070,dati_bdv!N$2:N$65536)","v":0}]
[{"$f":"dati_pdc!A1071","v":0},{"$f":"SUMIF(IF(dati_pdc!$C1071=1,dati_bdv!$C$2:$C$65536,IF(dati_pdc!$C1071=2,dati_bdv!$D$2:$D$65536,IF(dati_pdc!$C1071=3,dati_bdv!$E$2:$E$65536,IF(dati_pdc!$C1071=4,dati_bdv!$F$2:$F$65536,IF(dati_pdc!$C1071=5,dati_bdv!$G$2:$G$65536,dati_bdv!$H$2:$H$65536))))),$A1071,dati_bdv!J$2:J$65536)","v":0},{"$f":"SUMIF(IF(dati_pdc!$C1071=1,dati_bdv!$C$2:$C$65536,IF(dati_pdc!$C1071=2,dati_bdv!$D$2:$D$65536,IF(dati_pdc!$C1071=3,dati_bdv!$E$2:$E$65536,IF(dati_pdc!$C1071=4,dati_bdv!$F$2:$F$65536,IF(dati_pdc!$C1071=5,dati_bdv!$G$2:$G$65536,dati_bdv!$H$2:$H$65536))))),$A1071,dati_bdv!K$2:K$65536)","v":0},{"$f":"SUMIF(IF(dati_pdc!$C1071=1,dati_bdv!$C$2:$C$65536,IF(dati_pdc!$C1071=2,dati_bdv!$D$2:$D$65536,IF(dati_pdc!$C1071=3,dati_bdv!$E$2:$E$65536,IF(dati_pdc!$C1071=4,dati_bdv!$F$2:$F$65536,IF(dati_pdc!$C1071=5,dati_bdv!$G$2:$G$65536,dati_bdv!$H$2:$H$65536))))),$A1071,dati_bdv!L$2:L$65536)","v":0},{"$f":"SUMIF(IF(dati_pdc!$C1071=1,dati_bdv!$C$2:$C$65536,IF(dati_pdc!$C1071=2,dati_bdv!$D$2:$D$65536,IF(dati_pdc!$C1071=3,dati_bdv!$E$2:$E$65536,IF(dati_pdc!$C1071=4,dati_bdv!$F$2:$F$65536,IF(dati_pdc!$C1071=5,dati_bdv!$G$2:$G$65536,dati_bdv!$H$2:$H$65536))))),$A1071,dati_bdv!M$2:M$65536)","v":0},{"$f":"SUMIF(IF(dati_pdc!$C1071=1,dati_bdv!$C$2:$C$65536,IF(dati_pdc!$C1071=2,dati_bdv!$D$2:$D$65536,IF(dati_pdc!$C1071=3,dati_bdv!$E$2:$E$65536,IF(dati_pdc!$C1071=4,dati_bdv!$F$2:$F$65536,IF(dati_pdc!$C1071=5,dati_bdv!$G$2:$G$65536,dati_bdv!$H$2:$H$65536))))),$A1071,dati_bdv!N$2:N$65536)","v":0}]
[{"$f":"dati_pdc!A1072","v":0},{"$f":"SUMIF(IF(dati_pdc!$C1072=1,dati_bdv!$C$2:$C$65536,IF(dati_pdc!$C1072=2,dati_bdv!$D$2:$D$65536,IF(dati_pdc!$C1072=3,dati_bdv!$E$2:$E$65536,IF(dati_pdc!$C1072=4,dati_bdv!$F$2:$F$65536,IF(dati_pdc!$C1072=5,dati_bdv!$G$2:$G$65536,dati_bdv!$H$2:$H$65536))))),$A1072,dati_bdv!J$2:J$65536)","v":0},{"$f":"SUMIF(IF(dati_pdc!$C1072=1,dati_bdv!$C$2:$C$65536,IF(dati_pdc!$C1072=2,dati_bdv!$D$2:$D$65536,IF(dati_pdc!$C1072=3,dati_bdv!$E$2:$E$65536,IF(dati_pdc!$C1072=4,dati_bdv!$F$2:$F$65536,IF(dati_pdc!$C1072=5,dati_bdv!$G$2:$G$65536,dati_bdv!$H$2:$H$65536))))),$A1072,dati_bdv!K$2:K$65536)","v":0},{"$f":"SUMIF(IF(dati_pdc!$C1072=1,dati_bdv!$C$2:$C$65536,IF(dati_pdc!$C1072=2,dati_bdv!$D$2:$D$65536,IF(dati_pdc!$C1072=3,dati_bdv!$E$2:$E$65536,IF(dati_pdc!$C1072=4,dati_bdv!$F$2:$F$65536,IF(dati_pdc!$C1072=5,dati_bdv!$G$2:$G$65536,dati_bdv!$H$2:$H$65536))))),$A1072,dati_bdv!L$2:L$65536)","v":0},{"$f":"SUMIF(IF(dati_pdc!$C1072=1,dati_bdv!$C$2:$C$65536,IF(dati_pdc!$C1072=2,dati_bdv!$D$2:$D$65536,IF(dati_pdc!$C1072=3,dati_bdv!$E$2:$E$65536,IF(dati_pdc!$C1072=4,dati_bdv!$F$2:$F$65536,IF(dati_pdc!$C1072=5,dati_bdv!$G$2:$G$65536,dati_bdv!$H$2:$H$65536))))),$A1072,dati_bdv!M$2:M$65536)","v":0},{"$f":"SUMIF(IF(dati_pdc!$C1072=1,dati_bdv!$C$2:$C$65536,IF(dati_pdc!$C1072=2,dati_bdv!$D$2:$D$65536,IF(dati_pdc!$C1072=3,dati_bdv!$E$2:$E$65536,IF(dati_pdc!$C1072=4,dati_bdv!$F$2:$F$65536,IF(dati_pdc!$C1072=5,dati_bdv!$G$2:$G$65536,dati_bdv!$H$2:$H$65536))))),$A1072,dati_bdv!N$2:N$65536)","v":0}]
[{"$f":"dati_pdc!A1073","v":0},{"$f":"SUMIF(IF(dati_pdc!$C1073=1,dati_bdv!$C$2:$C$65536,IF(dati_pdc!$C1073=2,dati_bdv!$D$2:$D$65536,IF(dati_pdc!$C1073=3,dati_bdv!$E$2:$E$65536,IF(dati_pdc!$C1073=4,dati_bdv!$F$2:$F$65536,IF(dati_pdc!$C1073=5,dati_bdv!$G$2:$G$65536,dati_bdv!$H$2:$H$65536))))),$A1073,dati_bdv!J$2:J$65536)","v":0},{"$f":"SUMIF(IF(dati_pdc!$C1073=1,dati_bdv!$C$2:$C$65536,IF(dati_pdc!$C1073=2,dati_bdv!$D$2:$D$65536,IF(dati_pdc!$C1073=3,dati_bdv!$E$2:$E$65536,IF(dati_pdc!$C1073=4,dati_bdv!$F$2:$F$65536,IF(dati_pdc!$C1073=5,dati_bdv!$G$2:$G$65536,dati_bdv!$H$2:$H$65536))))),$A1073,dati_bdv!K$2:K$65536)","v":0},{"$f":"SUMIF(IF(dati_pdc!$C1073=1,dati_bdv!$C$2:$C$65536,IF(dati_pdc!$C1073=2,dati_bdv!$D$2:$D$65536,IF(dati_pdc!$C1073=3,dati_bdv!$E$2:$E$65536,IF(dati_pdc!$C1073=4,dati_bdv!$F$2:$F$65536,IF(dati_pdc!$C1073=5,dati_bdv!$G$2:$G$65536,dati_bdv!$H$2:$H$65536))))),$A1073,dati_bdv!L$2:L$65536)","v":0},{"$f":"SUMIF(IF(dati_pdc!$C1073=1,dati_bdv!$C$2:$C$65536,IF(dati_pdc!$C1073=2,dati_bdv!$D$2:$D$65536,IF(dati_pdc!$C1073=3,dati_bdv!$E$2:$E$65536,IF(dati_pdc!$C1073=4,dati_bdv!$F$2:$F$65536,IF(dati_pdc!$C1073=5,dati_bdv!$G$2:$G$65536,dati_bdv!$H$2:$H$65536))))),$A1073,dati_bdv!M$2:M$65536)","v":0},{"$f":"SUMIF(IF(dati_pdc!$C1073=1,dati_bdv!$C$2:$C$65536,IF(dati_pdc!$C1073=2,dati_bdv!$D$2:$D$65536,IF(dati_pdc!$C1073=3,dati_bdv!$E$2:$E$65536,IF(dati_pdc!$C1073=4,dati_bdv!$F$2:$F$65536,IF(dati_pdc!$C1073=5,dati_bdv!$G$2:$G$65536,dati_bdv!$H$2:$H$65536))))),$A1073,dati_bdv!N$2:N$65536)","v":0}]
[{"$f":"dati_pdc!A1074","v":0},{"$f":"SUMIF(IF(dati_pdc!$C1074=1,dati_bdv!$C$2:$C$65536,IF(dati_pdc!$C1074=2,dati_bdv!$D$2:$D$65536,IF(dati_pdc!$C1074=3,dati_bdv!$E$2:$E$65536,IF(dati_pdc!$C1074=4,dati_bdv!$F$2:$F$65536,IF(dati_pdc!$C1074=5,dati_bdv!$G$2:$G$65536,dati_bdv!$H$2:$H$65536))))),$A1074,dati_bdv!J$2:J$65536)","v":0},{"$f":"SUMIF(IF(dati_pdc!$C1074=1,dati_bdv!$C$2:$C$65536,IF(dati_pdc!$C1074=2,dati_bdv!$D$2:$D$65536,IF(dati_pdc!$C1074=3,dati_bdv!$E$2:$E$65536,IF(dati_pdc!$C1074=4,dati_bdv!$F$2:$F$65536,IF(dati_pdc!$C1074=5,dati_bdv!$G$2:$G$65536,dati_bdv!$H$2:$H$65536))))),$A1074,dati_bdv!K$2:K$65536)","v":0},{"$f":"SUMIF(IF(dati_pdc!$C1074=1,dati_bdv!$C$2:$C$65536,IF(dati_pdc!$C1074=2,dati_bdv!$D$2:$D$65536,IF(dati_pdc!$C1074=3,dati_bdv!$E$2:$E$65536,IF(dati_pdc!$C1074=4,dati_bdv!$F$2:$F$65536,IF(dati_pdc!$C1074=5,dati_bdv!$G$2:$G$65536,dati_bdv!$H$2:$H$65536))))),$A1074,dati_bdv!L$2:L$65536)","v":0},{"$f":"SUMIF(IF(dati_pdc!$C1074=1,dati_bdv!$C$2:$C$65536,IF(dati_pdc!$C1074=2,dati_bdv!$D$2:$D$65536,IF(dati_pdc!$C1074=3,dati_bdv!$E$2:$E$65536,IF(dati_pdc!$C1074=4,dati_bdv!$F$2:$F$65536,IF(dati_pdc!$C1074=5,dati_bdv!$G$2:$G$65536,dati_bdv!$H$2:$H$65536))))),$A1074,dati_bdv!M$2:M$65536)","v":0},{"$f":"SUMIF(IF(dati_pdc!$C1074=1,dati_bdv!$C$2:$C$65536,IF(dati_pdc!$C1074=2,dati_bdv!$D$2:$D$65536,IF(dati_pdc!$C1074=3,dati_bdv!$E$2:$E$65536,IF(dati_pdc!$C1074=4,dati_bdv!$F$2:$F$65536,IF(dati_pdc!$C1074=5,dati_bdv!$G$2:$G$65536,dati_bdv!$H$2:$H$65536))))),$A1074,dati_bdv!N$2:N$65536)","v":0}]
[{"$f":"dati_pdc!A1075","v":0},{"$f":"SUMIF(IF(dati_pdc!$C1075=1,dati_bdv!$C$2:$C$65536,IF(dati_pdc!$C1075=2,dati_bdv!$D$2:$D$65536,IF(dati_pdc!$C1075=3,dati_bdv!$E$2:$E$65536,IF(dati_pdc!$C1075=4,dati_bdv!$F$2:$F$65536,IF(dati_pdc!$C1075=5,dati_bdv!$G$2:$G$65536,dati_bdv!$H$2:$H$65536))))),$A1075,dati_bdv!J$2:J$65536)","v":0},{"$f":"SUMIF(IF(dati_pdc!$C1075=1,dati_bdv!$C$2:$C$65536,IF(dati_pdc!$C1075=2,dati_bdv!$D$2:$D$65536,IF(dati_pdc!$C1075=3,dati_bdv!$E$2:$E$65536,IF(dati_pdc!$C1075=4,dati_bdv!$F$2:$F$65536,IF(dati_pdc!$C1075=5,dati_bdv!$G$2:$G$65536,dati_bdv!$H$2:$H$65536))))),$A1075,dati_bdv!K$2:K$65536)","v":0},{"$f":"SUMIF(IF(dati_pdc!$C1075=1,dati_bdv!$C$2:$C$65536,IF(dati_pdc!$C1075=2,dati_bdv!$D$2:$D$65536,IF(dati_pdc!$C1075=3,dati_bdv!$E$2:$E$65536,IF(dati_pdc!$C1075=4,dati_bdv!$F$2:$F$65536,IF(dati_pdc!$C1075=5,dati_bdv!$G$2:$G$65536,dati_bdv!$H$2:$H$65536))))),$A1075,dati_bdv!L$2:L$65536)","v":0},{"$f":"SUMIF(IF(dati_pdc!$C1075=1,dati_bdv!$C$2:$C$65536,IF(dati_pdc!$C1075=2,dati_bdv!$D$2:$D$65536,IF(dati_pdc!$C1075=3,dati_bdv!$E$2:$E$65536,IF(dati_pdc!$C1075=4,dati_bdv!$F$2:$F$65536,IF(dati_pdc!$C1075=5,dati_bdv!$G$2:$G$65536,dati_bdv!$H$2:$H$65536))))),$A1075,dati_bdv!M$2:M$65536)","v":0},{"$f":"SUMIF(IF(dati_pdc!$C1075=1,dati_bdv!$C$2:$C$65536,IF(dati_pdc!$C1075=2,dati_bdv!$D$2:$D$65536,IF(dati_pdc!$C1075=3,dati_bdv!$E$2:$E$65536,IF(dati_pdc!$C1075=4,dati_bdv!$F$2:$F$65536,IF(dati_pdc!$C1075=5,dati_bdv!$G$2:$G$65536,dati_bdv!$H$2:$H$65536))))),$A1075,dati_bdv!N$2:N$65536)","v":0}]
[{"$f":"dati_pdc!A1076","v":0},{"$f":"SUMIF(IF(dati_pdc!$C1076=1,dati_bdv!$C$2:$C$65536,IF(dati_pdc!$C1076=2,dati_bdv!$D$2:$D$65536,IF(dati_pdc!$C1076=3,dati_bdv!$E$2:$E$65536,IF(dati_pdc!$C1076=4,dati_bdv!$F$2:$F$65536,IF(dati_pdc!$C1076=5,dati_bdv!$G$2:$G$65536,dati_bdv!$H$2:$H$65536))))),$A1076,dati_bdv!J$2:J$65536)","v":0},{"$f":"SUMIF(IF(dati_pdc!$C1076=1,dati_bdv!$C$2:$C$65536,IF(dati_pdc!$C1076=2,dati_bdv!$D$2:$D$65536,IF(dati_pdc!$C1076=3,dati_bdv!$E$2:$E$65536,IF(dati_pdc!$C1076=4,dati_bdv!$F$2:$F$65536,IF(dati_pdc!$C1076=5,dati_bdv!$G$2:$G$65536,dati_bdv!$H$2:$H$65536))))),$A1076,dati_bdv!K$2:K$65536)","v":0},{"$f":"SUMIF(IF(dati_pdc!$C1076=1,dati_bdv!$C$2:$C$65536,IF(dati_pdc!$C1076=2,dati_bdv!$D$2:$D$65536,IF(dati_pdc!$C1076=3,dati_bdv!$E$2:$E$65536,IF(dati_pdc!$C1076=4,dati_bdv!$F$2:$F$65536,IF(dati_pdc!$C1076=5,dati_bdv!$G$2:$G$65536,dati_bdv!$H$2:$H$65536))))),$A1076,dati_bdv!L$2:L$65536)","v":0},{"$f":"SUMIF(IF(dati_pdc!$C1076=1,dati_bdv!$C$2:$C$65536,IF(dati_pdc!$C1076=2,dati_bdv!$D$2:$D$65536,IF(dati_pdc!$C1076=3,dati_bdv!$E$2:$E$65536,IF(dati_pdc!$C1076=4,dati_bdv!$F$2:$F$65536,IF(dati_pdc!$C1076=5,dati_bdv!$G$2:$G$65536,dati_bdv!$H$2:$H$65536))))),$A1076,dati_bdv!M$2:M$65536)","v":0},{"$f":"SUMIF(IF(dati_pdc!$C1076=1,dati_bdv!$C$2:$C$65536,IF(dati_pdc!$C1076=2,dati_bdv!$D$2:$D$65536,IF(dati_pdc!$C1076=3,dati_bdv!$E$2:$E$65536,IF(dati_pdc!$C1076=4,dati_bdv!$F$2:$F$65536,IF(dati_pdc!$C1076=5,dati_bdv!$G$2:$G$65536,dati_bdv!$H$2:$H$65536))))),$A1076,dati_bdv!N$2:N$65536)","v":0}]
[{"$f":"dati_pdc!A1077","v":0},{"$f":"SUMIF(IF(dati_pdc!$C1077=1,dati_bdv!$C$2:$C$65536,IF(dati_pdc!$C1077=2,dati_bdv!$D$2:$D$65536,IF(dati_pdc!$C1077=3,dati_bdv!$E$2:$E$65536,IF(dati_pdc!$C1077=4,dati_bdv!$F$2:$F$65536,IF(dati_pdc!$C1077=5,dati_bdv!$G$2:$G$65536,dati_bdv!$H$2:$H$65536))))),$A1077,dati_bdv!J$2:J$65536)","v":0},{"$f":"SUMIF(IF(dati_pdc!$C1077=1,dati_bdv!$C$2:$C$65536,IF(dati_pdc!$C1077=2,dati_bdv!$D$2:$D$65536,IF(dati_pdc!$C1077=3,dati_bdv!$E$2:$E$65536,IF(dati_pdc!$C1077=4,dati_bdv!$F$2:$F$65536,IF(dati_pdc!$C1077=5,dati_bdv!$G$2:$G$65536,dati_bdv!$H$2:$H$65536))))),$A1077,dati_bdv!K$2:K$65536)","v":0},{"$f":"SUMIF(IF(dati_pdc!$C1077=1,dati_bdv!$C$2:$C$65536,IF(dati_pdc!$C1077=2,dati_bdv!$D$2:$D$65536,IF(dati_pdc!$C1077=3,dati_bdv!$E$2:$E$65536,IF(dati_pdc!$C1077=4,dati_bdv!$F$2:$F$65536,IF(dati_pdc!$C1077=5,dati_bdv!$G$2:$G$65536,dati_bdv!$H$2:$H$65536))))),$A1077,dati_bdv!L$2:L$65536)","v":0},{"$f":"SUMIF(IF(dati_pdc!$C1077=1,dati_bdv!$C$2:$C$65536,IF(dati_pdc!$C1077=2,dati_bdv!$D$2:$D$65536,IF(dati_pdc!$C1077=3,dati_bdv!$E$2:$E$65536,IF(dati_pdc!$C1077=4,dati_bdv!$F$2:$F$65536,IF(dati_pdc!$C1077=5,dati_bdv!$G$2:$G$65536,dati_bdv!$H$2:$H$65536))))),$A1077,dati_bdv!M$2:M$65536)","v":0},{"$f":"SUMIF(IF(dati_pdc!$C1077=1,dati_bdv!$C$2:$C$65536,IF(dati_pdc!$C1077=2,dati_bdv!$D$2:$D$65536,IF(dati_pdc!$C1077=3,dati_bdv!$E$2:$E$65536,IF(dati_pdc!$C1077=4,dati_bdv!$F$2:$F$65536,IF(dati_pdc!$C1077=5,dati_bdv!$G$2:$G$65536,dati_bdv!$H$2:$H$65536))))),$A1077,dati_bdv!N$2:N$65536)","v":0}]
[{"$f":"dati_pdc!A1078","v":0},{"$f":"SUMIF(IF(dati_pdc!$C1078=1,dati_bdv!$C$2:$C$65536,IF(dati_pdc!$C1078=2,dati_bdv!$D$2:$D$65536,IF(dati_pdc!$C1078=3,dati_bdv!$E$2:$E$65536,IF(dati_pdc!$C1078=4,dati_bdv!$F$2:$F$65536,IF(dati_pdc!$C1078=5,dati_bdv!$G$2:$G$65536,dati_bdv!$H$2:$H$65536))))),$A1078,dati_bdv!J$2:J$65536)","v":0},{"$f":"SUMIF(IF(dati_pdc!$C1078=1,dati_bdv!$C$2:$C$65536,IF(dati_pdc!$C1078=2,dati_bdv!$D$2:$D$65536,IF(dati_pdc!$C1078=3,dati_bdv!$E$2:$E$65536,IF(dati_pdc!$C1078=4,dati_bdv!$F$2:$F$65536,IF(dati_pdc!$C1078=5,dati_bdv!$G$2:$G$65536,dati_bdv!$H$2:$H$65536))))),$A1078,dati_bdv!K$2:K$65536)","v":0},{"$f":"SUMIF(IF(dati_pdc!$C1078=1,dati_bdv!$C$2:$C$65536,IF(dati_pdc!$C1078=2,dati_bdv!$D$2:$D$65536,IF(dati_pdc!$C1078=3,dati_bdv!$E$2:$E$65536,IF(dati_pdc!$C1078=4,dati_bdv!$F$2:$F$65536,IF(dati_pdc!$C1078=5,dati_bdv!$G$2:$G$65536,dati_bdv!$H$2:$H$65536))))),$A1078,dati_bdv!L$2:L$65536)","v":0},{"$f":"SUMIF(IF(dati_pdc!$C1078=1,dati_bdv!$C$2:$C$65536,IF(dati_pdc!$C1078=2,dati_bdv!$D$2:$D$65536,IF(dati_pdc!$C1078=3,dati_bdv!$E$2:$E$65536,IF(dati_pdc!$C1078=4,dati_bdv!$F$2:$F$65536,IF(dati_pdc!$C1078=5,dati_bdv!$G$2:$G$65536,dati_bdv!$H$2:$H$65536))))),$A1078,dati_bdv!M$2:M$65536)","v":0},{"$f":"SUMIF(IF(dati_pdc!$C1078=1,dati_bdv!$C$2:$C$65536,IF(dati_pdc!$C1078=2,dati_bdv!$D$2:$D$65536,IF(dati_pdc!$C1078=3,dati_bdv!$E$2:$E$65536,IF(dati_pdc!$C1078=4,dati_bdv!$F$2:$F$65536,IF(dati_pdc!$C1078=5,dati_bdv!$G$2:$G$65536,dati_bdv!$H$2:$H$65536))))),$A1078,dati_bdv!N$2:N$65536)","v":0}]
[{"$f":"dati_pdc!A1079","v":0},{"$f":"SUMIF(IF(dati_pdc!$C1079=1,dati_bdv!$C$2:$C$65536,IF(dati_pdc!$C1079=2,dati_bdv!$D$2:$D$65536,IF(dati_pdc!$C1079=3,dati_bdv!$E$2:$E$65536,IF(dati_pdc!$C1079=4,dati_bdv!$F$2:$F$65536,IF(dati_pdc!$C1079=5,dati_bdv!$G$2:$G$65536,dati_bdv!$H$2:$H$65536))))),$A1079,dati_bdv!J$2:J$65536)","v":0},{"$f":"SUMIF(IF(dati_pdc!$C1079=1,dati_bdv!$C$2:$C$65536,IF(dati_pdc!$C1079=2,dati_bdv!$D$2:$D$65536,IF(dati_pdc!$C1079=3,dati_bdv!$E$2:$E$65536,IF(dati_pdc!$C1079=4,dati_bdv!$F$2:$F$65536,IF(dati_pdc!$C1079=5,dati_bdv!$G$2:$G$65536,dati_bdv!$H$2:$H$65536))))),$A1079,dati_bdv!K$2:K$65536)","v":0},{"$f":"SUMIF(IF(dati_pdc!$C1079=1,dati_bdv!$C$2:$C$65536,IF(dati_pdc!$C1079=2,dati_bdv!$D$2:$D$65536,IF(dati_pdc!$C1079=3,dati_bdv!$E$2:$E$65536,IF(dati_pdc!$C1079=4,dati_bdv!$F$2:$F$65536,IF(dati_pdc!$C1079=5,dati_bdv!$G$2:$G$65536,dati_bdv!$H$2:$H$65536))))),$A1079,dati_bdv!L$2:L$65536)","v":0},{"$f":"SUMIF(IF(dati_pdc!$C1079=1,dati_bdv!$C$2:$C$65536,IF(dati_pdc!$C1079=2,dati_bdv!$D$2:$D$65536,IF(dati_pdc!$C1079=3,dati_bdv!$E$2:$E$65536,IF(dati_pdc!$C1079=4,dati_bdv!$F$2:$F$65536,IF(dati_pdc!$C1079=5,dati_bdv!$G$2:$G$65536,dati_bdv!$H$2:$H$65536))))),$A1079,dati_bdv!M$2:M$65536)","v":0},{"$f":"SUMIF(IF(dati_pdc!$C1079=1,dati_bdv!$C$2:$C$65536,IF(dati_pdc!$C1079=2,dati_bdv!$D$2:$D$65536,IF(dati_pdc!$C1079=3,dati_bdv!$E$2:$E$65536,IF(dati_pdc!$C1079=4,dati_bdv!$F$2:$F$65536,IF(dati_pdc!$C1079=5,dati_bdv!$G$2:$G$65536,dati_bdv!$H$2:$H$65536))))),$A1079,dati_bdv!N$2:N$65536)","v":0}]
[{"$f":"dati_pdc!A1080","v":0},{"$f":"SUMIF(IF(dati_pdc!$C1080=1,dati_bdv!$C$2:$C$65536,IF(dati_pdc!$C1080=2,dati_bdv!$D$2:$D$65536,IF(dati_pdc!$C1080=3,dati_bdv!$E$2:$E$65536,IF(dati_pdc!$C1080=4,dati_bdv!$F$2:$F$65536,IF(dati_pdc!$C1080=5,dati_bdv!$G$2:$G$65536,dati_bdv!$H$2:$H$65536))))),$A1080,dati_bdv!J$2:J$65536)","v":0},{"$f":"SUMIF(IF(dati_pdc!$C1080=1,dati_bdv!$C$2:$C$65536,IF(dati_pdc!$C1080=2,dati_bdv!$D$2:$D$65536,IF(dati_pdc!$C1080=3,dati_bdv!$E$2:$E$65536,IF(dati_pdc!$C1080=4,dati_bdv!$F$2:$F$65536,IF(dati_pdc!$C1080=5,dati_bdv!$G$2:$G$65536,dati_bdv!$H$2:$H$65536))))),$A1080,dati_bdv!K$2:K$65536)","v":0},{"$f":"SUMIF(IF(dati_pdc!$C1080=1,dati_bdv!$C$2:$C$65536,IF(dati_pdc!$C1080=2,dati_bdv!$D$2:$D$65536,IF(dati_pdc!$C1080=3,dati_bdv!$E$2:$E$65536,IF(dati_pdc!$C1080=4,dati_bdv!$F$2:$F$65536,IF(dati_pdc!$C1080=5,dati_bdv!$G$2:$G$65536,dati_bdv!$H$2:$H$65536))))),$A1080,dati_bdv!L$2:L$65536)","v":0},{"$f":"SUMIF(IF(dati_pdc!$C1080=1,dati_bdv!$C$2:$C$65536,IF(dati_pdc!$C1080=2,dati_bdv!$D$2:$D$65536,IF(dati_pdc!$C1080=3,dati_bdv!$E$2:$E$65536,IF(dati_pdc!$C1080=4,dati_bdv!$F$2:$F$65536,IF(dati_pdc!$C1080=5,dati_bdv!$G$2:$G$65536,dati_bdv!$H$2:$H$65536))))),$A1080,dati_bdv!M$2:M$65536)","v":0},{"$f":"SUMIF(IF(dati_pdc!$C1080=1,dati_bdv!$C$2:$C$65536,IF(dati_pdc!$C1080=2,dati_bdv!$D$2:$D$65536,IF(dati_pdc!$C1080=3,dati_bdv!$E$2:$E$65536,IF(dati_pdc!$C1080=4,dati_bdv!$F$2:$F$65536,IF(dati_pdc!$C1080=5,dati_bdv!$G$2:$G$65536,dati_bdv!$H$2:$H$65536))))),$A1080,dati_bdv!N$2:N$65536)","v":0}]
[{"$f":"dati_pdc!A1081","v":0},{"$f":"SUMIF(IF(dati_pdc!$C1081=1,dati_bdv!$C$2:$C$65536,IF(dati_pdc!$C1081=2,dati_bdv!$D$2:$D$65536,IF(dati_pdc!$C1081=3,dati_bdv!$E$2:$E$65536,IF(dati_pdc!$C1081=4,dati_bdv!$F$2:$F$65536,IF(dati_pdc!$C1081=5,dati_bdv!$G$2:$G$65536,dati_bdv!$H$2:$H$65536))))),$A1081,dati_bdv!J$2:J$65536)","v":0},{"$f":"SUMIF(IF(dati_pdc!$C1081=1,dati_bdv!$C$2:$C$65536,IF(dati_pdc!$C1081=2,dati_bdv!$D$2:$D$65536,IF(dati_pdc!$C1081=3,dati_bdv!$E$2:$E$65536,IF(dati_pdc!$C1081=4,dati_bdv!$F$2:$F$65536,IF(dati_pdc!$C1081=5,dati_bdv!$G$2:$G$65536,dati_bdv!$H$2:$H$65536))))),$A1081,dati_bdv!K$2:K$65536)","v":0},{"$f":"SUMIF(IF(dati_pdc!$C1081=1,dati_bdv!$C$2:$C$65536,IF(dati_pdc!$C1081=2,dati_bdv!$D$2:$D$65536,IF(dati_pdc!$C1081=3,dati_bdv!$E$2:$E$65536,IF(dati_pdc!$C1081=4,dati_bdv!$F$2:$F$65536,IF(dati_pdc!$C1081=5,dati_bdv!$G$2:$G$65536,dati_bdv!$H$2:$H$65536))))),$A1081,dati_bdv!L$2:L$65536)","v":0},{"$f":"SUMIF(IF(dati_pdc!$C1081=1,dati_bdv!$C$2:$C$65536,IF(dati_pdc!$C1081=2,dati_bdv!$D$2:$D$65536,IF(dati_pdc!$C1081=3,dati_bdv!$E$2:$E$65536,IF(dati_pdc!$C1081=4,dati_bdv!$F$2:$F$65536,IF(dati_pdc!$C1081=5,dati_bdv!$G$2:$G$65536,dati_bdv!$H$2:$H$65536))))),$A1081,dati_bdv!M$2:M$65536)","v":0},{"$f":"SUMIF(IF(dati_pdc!$C1081=1,dati_bdv!$C$2:$C$65536,IF(dati_pdc!$C1081=2,dati_bdv!$D$2:$D$65536,IF(dati_pdc!$C1081=3,dati_bdv!$E$2:$E$65536,IF(dati_pdc!$C1081=4,dati_bdv!$F$2:$F$65536,IF(dati_pdc!$C1081=5,dati_bdv!$G$2:$G$65536,dati_bdv!$H$2:$H$65536))))),$A1081,dati_bdv!N$2:N$65536)","v":0}]
[{"$f":"dati_pdc!A1082","v":0},{"$f":"SUMIF(IF(dati_pdc!$C1082=1,dati_bdv!$C$2:$C$65536,IF(dati_pdc!$C1082=2,dati_bdv!$D$2:$D$65536,IF(dati_pdc!$C1082=3,dati_bdv!$E$2:$E$65536,IF(dati_pdc!$C1082=4,dati_bdv!$F$2:$F$65536,IF(dati_pdc!$C1082=5,dati_bdv!$G$2:$G$65536,dati_bdv!$H$2:$H$65536))))),$A1082,dati_bdv!J$2:J$65536)","v":0},{"$f":"SUMIF(IF(dati_pdc!$C1082=1,dati_bdv!$C$2:$C$65536,IF(dati_pdc!$C1082=2,dati_bdv!$D$2:$D$65536,IF(dati_pdc!$C1082=3,dati_bdv!$E$2:$E$65536,IF(dati_pdc!$C1082=4,dati_bdv!$F$2:$F$65536,IF(dati_pdc!$C1082=5,dati_bdv!$G$2:$G$65536,dati_bdv!$H$2:$H$65536))))),$A1082,dati_bdv!K$2:K$65536)","v":0},{"$f":"SUMIF(IF(dati_pdc!$C1082=1,dati_bdv!$C$2:$C$65536,IF(dati_pdc!$C1082=2,dati_bdv!$D$2:$D$65536,IF(dati_pdc!$C1082=3,dati_bdv!$E$2:$E$65536,IF(dati_pdc!$C1082=4,dati_bdv!$F$2:$F$65536,IF(dati_pdc!$C1082=5,dati_bdv!$G$2:$G$65536,dati_bdv!$H$2:$H$65536))))),$A1082,dati_bdv!L$2:L$65536)","v":0},{"$f":"SUMIF(IF(dati_pdc!$C1082=1,dati_bdv!$C$2:$C$65536,IF(dati_pdc!$C1082=2,dati_bdv!$D$2:$D$65536,IF(dati_pdc!$C1082=3,dati_bdv!$E$2:$E$65536,IF(dati_pdc!$C1082=4,dati_bdv!$F$2:$F$65536,IF(dati_pdc!$C1082=5,dati_bdv!$G$2:$G$65536,dati_bdv!$H$2:$H$65536))))),$A1082,dati_bdv!M$2:M$65536)","v":0},{"$f":"SUMIF(IF(dati_pdc!$C1082=1,dati_bdv!$C$2:$C$65536,IF(dati_pdc!$C1082=2,dati_bdv!$D$2:$D$65536,IF(dati_pdc!$C1082=3,dati_bdv!$E$2:$E$65536,IF(dati_pdc!$C1082=4,dati_bdv!$F$2:$F$65536,IF(dati_pdc!$C1082=5,dati_bdv!$G$2:$G$65536,dati_bdv!$H$2:$H$65536))))),$A1082,dati_bdv!N$2:N$65536)","v":0}]
[{"$f":"dati_pdc!A1083","v":0},{"$f":"SUMIF(IF(dati_pdc!$C1083=1,dati_bdv!$C$2:$C$65536,IF(dati_pdc!$C1083=2,dati_bdv!$D$2:$D$65536,IF(dati_pdc!$C1083=3,dati_bdv!$E$2:$E$65536,IF(dati_pdc!$C1083=4,dati_bdv!$F$2:$F$65536,IF(dati_pdc!$C1083=5,dati_bdv!$G$2:$G$65536,dati_bdv!$H$2:$H$65536))))),$A1083,dati_bdv!J$2:J$65536)","v":0},{"$f":"SUMIF(IF(dati_pdc!$C1083=1,dati_bdv!$C$2:$C$65536,IF(dati_pdc!$C1083=2,dati_bdv!$D$2:$D$65536,IF(dati_pdc!$C1083=3,dati_bdv!$E$2:$E$65536,IF(dati_pdc!$C1083=4,dati_bdv!$F$2:$F$65536,IF(dati_pdc!$C1083=5,dati_bdv!$G$2:$G$65536,dati_bdv!$H$2:$H$65536))))),$A1083,dati_bdv!K$2:K$65536)","v":0},{"$f":"SUMIF(IF(dati_pdc!$C1083=1,dati_bdv!$C$2:$C$65536,IF(dati_pdc!$C1083=2,dati_bdv!$D$2:$D$65536,IF(dati_pdc!$C1083=3,dati_bdv!$E$2:$E$65536,IF(dati_pdc!$C1083=4,dati_bdv!$F$2:$F$65536,IF(dati_pdc!$C1083=5,dati_bdv!$G$2:$G$65536,dati_bdv!$H$2:$H$65536))))),$A1083,dati_bdv!L$2:L$65536)","v":0},{"$f":"SUMIF(IF(dati_pdc!$C1083=1,dati_bdv!$C$2:$C$65536,IF(dati_pdc!$C1083=2,dati_bdv!$D$2:$D$65536,IF(dati_pdc!$C1083=3,dati_bdv!$E$2:$E$65536,IF(dati_pdc!$C1083=4,dati_bdv!$F$2:$F$65536,IF(dati_pdc!$C1083=5,dati_bdv!$G$2:$G$65536,dati_bdv!$H$2:$H$65536))))),$A1083,dati_bdv!M$2:M$65536)","v":0},{"$f":"SUMIF(IF(dati_pdc!$C1083=1,dati_bdv!$C$2:$C$65536,IF(dati_pdc!$C1083=2,dati_bdv!$D$2:$D$65536,IF(dati_pdc!$C1083=3,dati_bdv!$E$2:$E$65536,IF(dati_pdc!$C1083=4,dati_bdv!$F$2:$F$65536,IF(dati_pdc!$C1083=5,dati_bdv!$G$2:$G$65536,dati_bdv!$H$2:$H$65536))))),$A1083,dati_bdv!N$2:N$65536)","v":0}]
[{"$f":"dati_pdc!A1084","v":0},{"$f":"SUMIF(IF(dati_pdc!$C1084=1,dati_bdv!$C$2:$C$65536,IF(dati_pdc!$C1084=2,dati_bdv!$D$2:$D$65536,IF(dati_pdc!$C1084=3,dati_bdv!$E$2:$E$65536,IF(dati_pdc!$C1084=4,dati_bdv!$F$2:$F$65536,IF(dati_pdc!$C1084=5,dati_bdv!$G$2:$G$65536,dati_bdv!$H$2:$H$65536))))),$A1084,dati_bdv!J$2:J$65536)","v":0},{"$f":"SUMIF(IF(dati_pdc!$C1084=1,dati_bdv!$C$2:$C$65536,IF(dati_pdc!$C1084=2,dati_bdv!$D$2:$D$65536,IF(dati_pdc!$C1084=3,dati_bdv!$E$2:$E$65536,IF(dati_pdc!$C1084=4,dati_bdv!$F$2:$F$65536,IF(dati_pdc!$C1084=5,dati_bdv!$G$2:$G$65536,dati_bdv!$H$2:$H$65536))))),$A1084,dati_bdv!K$2:K$65536)","v":0},{"$f":"SUMIF(IF(dati_pdc!$C1084=1,dati_bdv!$C$2:$C$65536,IF(dati_pdc!$C1084=2,dati_bdv!$D$2:$D$65536,IF(dati_pdc!$C1084=3,dati_bdv!$E$2:$E$65536,IF(dati_pdc!$C1084=4,dati_bdv!$F$2:$F$65536,IF(dati_pdc!$C1084=5,dati_bdv!$G$2:$G$65536,dati_bdv!$H$2:$H$65536))))),$A1084,dati_bdv!L$2:L$65536)","v":0},{"$f":"SUMIF(IF(dati_pdc!$C1084=1,dati_bdv!$C$2:$C$65536,IF(dati_pdc!$C1084=2,dati_bdv!$D$2:$D$65536,IF(dati_pdc!$C1084=3,dati_bdv!$E$2:$E$65536,IF(dati_pdc!$C1084=4,dati_bdv!$F$2:$F$65536,IF(dati_pdc!$C1084=5,dati_bdv!$G$2:$G$65536,dati_bdv!$H$2:$H$65536))))),$A1084,dati_bdv!M$2:M$65536)","v":0},{"$f":"SUMIF(IF(dati_pdc!$C1084=1,dati_bdv!$C$2:$C$65536,IF(dati_pdc!$C1084=2,dati_bdv!$D$2:$D$65536,IF(dati_pdc!$C1084=3,dati_bdv!$E$2:$E$65536,IF(dati_pdc!$C1084=4,dati_bdv!$F$2:$F$65536,IF(dati_pdc!$C1084=5,dati_bdv!$G$2:$G$65536,dati_bdv!$H$2:$H$65536))))),$A1084,dati_bdv!N$2:N$65536)","v":0}]
[{"$f":"dati_pdc!A1085","v":0},{"$f":"SUMIF(IF(dati_pdc!$C1085=1,dati_bdv!$C$2:$C$65536,IF(dati_pdc!$C1085=2,dati_bdv!$D$2:$D$65536,IF(dati_pdc!$C1085=3,dati_bdv!$E$2:$E$65536,IF(dati_pdc!$C1085=4,dati_bdv!$F$2:$F$65536,IF(dati_pdc!$C1085=5,dati_bdv!$G$2:$G$65536,dati_bdv!$H$2:$H$65536))))),$A1085,dati_bdv!J$2:J$65536)","v":0},{"$f":"SUMIF(IF(dati_pdc!$C1085=1,dati_bdv!$C$2:$C$65536,IF(dati_pdc!$C1085=2,dati_bdv!$D$2:$D$65536,IF(dati_pdc!$C1085=3,dati_bdv!$E$2:$E$65536,IF(dati_pdc!$C1085=4,dati_bdv!$F$2:$F$65536,IF(dati_pdc!$C1085=5,dati_bdv!$G$2:$G$65536,dati_bdv!$H$2:$H$65536))))),$A1085,dati_bdv!K$2:K$65536)","v":0},{"$f":"SUMIF(IF(dati_pdc!$C1085=1,dati_bdv!$C$2:$C$65536,IF(dati_pdc!$C1085=2,dati_bdv!$D$2:$D$65536,IF(dati_pdc!$C1085=3,dati_bdv!$E$2:$E$65536,IF(dati_pdc!$C1085=4,dati_bdv!$F$2:$F$65536,IF(dati_pdc!$C1085=5,dati_bdv!$G$2:$G$65536,dati_bdv!$H$2:$H$65536))))),$A1085,dati_bdv!L$2:L$65536)","v":0},{"$f":"SUMIF(IF(dati_pdc!$C1085=1,dati_bdv!$C$2:$C$65536,IF(dati_pdc!$C1085=2,dati_bdv!$D$2:$D$65536,IF(dati_pdc!$C1085=3,dati_bdv!$E$2:$E$65536,IF(dati_pdc!$C1085=4,dati_bdv!$F$2:$F$65536,IF(dati_pdc!$C1085=5,dati_bdv!$G$2:$G$65536,dati_bdv!$H$2:$H$65536))))),$A1085,dati_bdv!M$2:M$65536)","v":0},{"$f":"SUMIF(IF(dati_pdc!$C1085=1,dati_bdv!$C$2:$C$65536,IF(dati_pdc!$C1085=2,dati_bdv!$D$2:$D$65536,IF(dati_pdc!$C1085=3,dati_bdv!$E$2:$E$65536,IF(dati_pdc!$C1085=4,dati_bdv!$F$2:$F$65536,IF(dati_pdc!$C1085=5,dati_bdv!$G$2:$G$65536,dati_bdv!$H$2:$H$65536))))),$A1085,dati_bdv!N$2:N$65536)","v":0}]
[{"$f":"dati_pdc!A1086","v":0},{"$f":"SUMIF(IF(dati_pdc!$C1086=1,dati_bdv!$C$2:$C$65536,IF(dati_pdc!$C1086=2,dati_bdv!$D$2:$D$65536,IF(dati_pdc!$C1086=3,dati_bdv!$E$2:$E$65536,IF(dati_pdc!$C1086=4,dati_bdv!$F$2:$F$65536,IF(dati_pdc!$C1086=5,dati_bdv!$G$2:$G$65536,dati_bdv!$H$2:$H$65536))))),$A1086,dati_bdv!J$2:J$65536)","v":0},{"$f":"SUMIF(IF(dati_pdc!$C1086=1,dati_bdv!$C$2:$C$65536,IF(dati_pdc!$C1086=2,dati_bdv!$D$2:$D$65536,IF(dati_pdc!$C1086=3,dati_bdv!$E$2:$E$65536,IF(dati_pdc!$C1086=4,dati_bdv!$F$2:$F$65536,IF(dati_pdc!$C1086=5,dati_bdv!$G$2:$G$65536,dati_bdv!$H$2:$H$65536))))),$A1086,dati_bdv!K$2:K$65536)","v":0},{"$f":"SUMIF(IF(dati_pdc!$C1086=1,dati_bdv!$C$2:$C$65536,IF(dati_pdc!$C1086=2,dati_bdv!$D$2:$D$65536,IF(dati_pdc!$C1086=3,dati_bdv!$E$2:$E$65536,IF(dati_pdc!$C1086=4,dati_bdv!$F$2:$F$65536,IF(dati_pdc!$C1086=5,dati_bdv!$G$2:$G$65536,dati_bdv!$H$2:$H$65536))))),$A1086,dati_bdv!L$2:L$65536)","v":0},{"$f":"SUMIF(IF(dati_pdc!$C1086=1,dati_bdv!$C$2:$C$65536,IF(dati_pdc!$C1086=2,dati_bdv!$D$2:$D$65536,IF(dati_pdc!$C1086=3,dati_bdv!$E$2:$E$65536,IF(dati_pdc!$C1086=4,dati_bdv!$F$2:$F$65536,IF(dati_pdc!$C1086=5,dati_bdv!$G$2:$G$65536,dati_bdv!$H$2:$H$65536))))),$A1086,dati_bdv!M$2:M$65536)","v":0},{"$f":"SUMIF(IF(dati_pdc!$C1086=1,dati_bdv!$C$2:$C$65536,IF(dati_pdc!$C1086=2,dati_bdv!$D$2:$D$65536,IF(dati_pdc!$C1086=3,dati_bdv!$E$2:$E$65536,IF(dati_pdc!$C1086=4,dati_bdv!$F$2:$F$65536,IF(dati_pdc!$C1086=5,dati_bdv!$G$2:$G$65536,dati_bdv!$H$2:$H$65536))))),$A1086,dati_bdv!N$2:N$65536)","v":0}]
[{"$f":"dati_pdc!A1087","v":0},{"$f":"SUMIF(IF(dati_pdc!$C1087=1,dati_bdv!$C$2:$C$65536,IF(dati_pdc!$C1087=2,dati_bdv!$D$2:$D$65536,IF(dati_pdc!$C1087=3,dati_bdv!$E$2:$E$65536,IF(dati_pdc!$C1087=4,dati_bdv!$F$2:$F$65536,IF(dati_pdc!$C1087=5,dati_bdv!$G$2:$G$65536,dati_bdv!$H$2:$H$65536))))),$A1087,dati_bdv!J$2:J$65536)","v":0},{"$f":"SUMIF(IF(dati_pdc!$C1087=1,dati_bdv!$C$2:$C$65536,IF(dati_pdc!$C1087=2,dati_bdv!$D$2:$D$65536,IF(dati_pdc!$C1087=3,dati_bdv!$E$2:$E$65536,IF(dati_pdc!$C1087=4,dati_bdv!$F$2:$F$65536,IF(dati_pdc!$C1087=5,dati_bdv!$G$2:$G$65536,dati_bdv!$H$2:$H$65536))))),$A1087,dati_bdv!K$2:K$65536)","v":0},{"$f":"SUMIF(IF(dati_pdc!$C1087=1,dati_bdv!$C$2:$C$65536,IF(dati_pdc!$C1087=2,dati_bdv!$D$2:$D$65536,IF(dati_pdc!$C1087=3,dati_bdv!$E$2:$E$65536,IF(dati_pdc!$C1087=4,dati_bdv!$F$2:$F$65536,IF(dati_pdc!$C1087=5,dati_bdv!$G$2:$G$65536,dati_bdv!$H$2:$H$65536))))),$A1087,dati_bdv!L$2:L$65536)","v":0},{"$f":"SUMIF(IF(dati_pdc!$C1087=1,dati_bdv!$C$2:$C$65536,IF(dati_pdc!$C1087=2,dati_bdv!$D$2:$D$65536,IF(dati_pdc!$C1087=3,dati_bdv!$E$2:$E$65536,IF(dati_pdc!$C1087=4,dati_bdv!$F$2:$F$65536,IF(dati_pdc!$C1087=5,dati_bdv!$G$2:$G$65536,dati_bdv!$H$2:$H$65536))))),$A1087,dati_bdv!M$2:M$65536)","v":0},{"$f":"SUMIF(IF(dati_pdc!$C1087=1,dati_bdv!$C$2:$C$65536,IF(dati_pdc!$C1087=2,dati_bdv!$D$2:$D$65536,IF(dati_pdc!$C1087=3,dati_bdv!$E$2:$E$65536,IF(dati_pdc!$C1087=4,dati_bdv!$F$2:$F$65536,IF(dati_pdc!$C1087=5,dati_bdv!$G$2:$G$65536,dati_bdv!$H$2:$H$65536))))),$A1087,dati_bdv!N$2:N$65536)","v":0}]
[{"$f":"dati_pdc!A1088","v":0},{"$f":"SUMIF(IF(dati_pdc!$C1088=1,dati_bdv!$C$2:$C$65536,IF(dati_pdc!$C1088=2,dati_bdv!$D$2:$D$65536,IF(dati_pdc!$C1088=3,dati_bdv!$E$2:$E$65536,IF(dati_pdc!$C1088=4,dati_bdv!$F$2:$F$65536,IF(dati_pdc!$C1088=5,dati_bdv!$G$2:$G$65536,dati_bdv!$H$2:$H$65536))))),$A1088,dati_bdv!J$2:J$65536)","v":0},{"$f":"SUMIF(IF(dati_pdc!$C1088=1,dati_bdv!$C$2:$C$65536,IF(dati_pdc!$C1088=2,dati_bdv!$D$2:$D$65536,IF(dati_pdc!$C1088=3,dati_bdv!$E$2:$E$65536,IF(dati_pdc!$C1088=4,dati_bdv!$F$2:$F$65536,IF(dati_pdc!$C1088=5,dati_bdv!$G$2:$G$65536,dati_bdv!$H$2:$H$65536))))),$A1088,dati_bdv!K$2:K$65536)","v":0},{"$f":"SUMIF(IF(dati_pdc!$C1088=1,dati_bdv!$C$2:$C$65536,IF(dati_pdc!$C1088=2,dati_bdv!$D$2:$D$65536,IF(dati_pdc!$C1088=3,dati_bdv!$E$2:$E$65536,IF(dati_pdc!$C1088=4,dati_bdv!$F$2:$F$65536,IF(dati_pdc!$C1088=5,dati_bdv!$G$2:$G$65536,dati_bdv!$H$2:$H$65536))))),$A1088,dati_bdv!L$2:L$65536)","v":0},{"$f":"SUMIF(IF(dati_pdc!$C1088=1,dati_bdv!$C$2:$C$65536,IF(dati_pdc!$C1088=2,dati_bdv!$D$2:$D$65536,IF(dati_pdc!$C1088=3,dati_bdv!$E$2:$E$65536,IF(dati_pdc!$C1088=4,dati_bdv!$F$2:$F$65536,IF(dati_pdc!$C1088=5,dati_bdv!$G$2:$G$65536,dati_bdv!$H$2:$H$65536))))),$A1088,dati_bdv!M$2:M$65536)","v":0},{"$f":"SUMIF(IF(dati_pdc!$C1088=1,dati_bdv!$C$2:$C$65536,IF(dati_pdc!$C1088=2,dati_bdv!$D$2:$D$65536,IF(dati_pdc!$C1088=3,dati_bdv!$E$2:$E$65536,IF(dati_pdc!$C1088=4,dati_bdv!$F$2:$F$65536,IF(dati_pdc!$C1088=5,dati_bdv!$G$2:$G$65536,dati_bdv!$H$2:$H$65536))))),$A1088,dati_bdv!N$2:N$65536)","v":0}]
[{"$f":"dati_pdc!A1089","v":0},{"$f":"SUMIF(IF(dati_pdc!$C1089=1,dati_bdv!$C$2:$C$65536,IF(dati_pdc!$C1089=2,dati_bdv!$D$2:$D$65536,IF(dati_pdc!$C1089=3,dati_bdv!$E$2:$E$65536,IF(dati_pdc!$C1089=4,dati_bdv!$F$2:$F$65536,IF(dati_pdc!$C1089=5,dati_bdv!$G$2:$G$65536,dati_bdv!$H$2:$H$65536))))),$A1089,dati_bdv!J$2:J$65536)","v":0},{"$f":"SUMIF(IF(dati_pdc!$C1089=1,dati_bdv!$C$2:$C$65536,IF(dati_pdc!$C1089=2,dati_bdv!$D$2:$D$65536,IF(dati_pdc!$C1089=3,dati_bdv!$E$2:$E$65536,IF(dati_pdc!$C1089=4,dati_bdv!$F$2:$F$65536,IF(dati_pdc!$C1089=5,dati_bdv!$G$2:$G$65536,dati_bdv!$H$2:$H$65536))))),$A1089,dati_bdv!K$2:K$65536)","v":0},{"$f":"SUMIF(IF(dati_pdc!$C1089=1,dati_bdv!$C$2:$C$65536,IF(dati_pdc!$C1089=2,dati_bdv!$D$2:$D$65536,IF(dati_pdc!$C1089=3,dati_bdv!$E$2:$E$65536,IF(dati_pdc!$C1089=4,dati_bdv!$F$2:$F$65536,IF(dati_pdc!$C1089=5,dati_bdv!$G$2:$G$65536,dati_bdv!$H$2:$H$65536))))),$A1089,dati_bdv!L$2:L$65536)","v":0},{"$f":"SUMIF(IF(dati_pdc!$C1089=1,dati_bdv!$C$2:$C$65536,IF(dati_pdc!$C1089=2,dati_bdv!$D$2:$D$65536,IF(dati_pdc!$C1089=3,dati_bdv!$E$2:$E$65536,IF(dati_pdc!$C1089=4,dati_bdv!$F$2:$F$65536,IF(dati_pdc!$C1089=5,dati_bdv!$G$2:$G$65536,dati_bdv!$H$2:$H$65536))))),$A1089,dati_bdv!M$2:M$65536)","v":0},{"$f":"SUMIF(IF(dati_pdc!$C1089=1,dati_bdv!$C$2:$C$65536,IF(dati_pdc!$C1089=2,dati_bdv!$D$2:$D$65536,IF(dati_pdc!$C1089=3,dati_bdv!$E$2:$E$65536,IF(dati_pdc!$C1089=4,dati_bdv!$F$2:$F$65536,IF(dati_pdc!$C1089=5,dati_bdv!$G$2:$G$65536,dati_bdv!$H$2:$H$65536))))),$A1089,dati_bdv!N$2:N$65536)","v":0}]
[{"$f":"dati_pdc!A1090","v":0},{"$f":"SUMIF(IF(dati_pdc!$C1090=1,dati_bdv!$C$2:$C$65536,IF(dati_pdc!$C1090=2,dati_bdv!$D$2:$D$65536,IF(dati_pdc!$C1090=3,dati_bdv!$E$2:$E$65536,IF(dati_pdc!$C1090=4,dati_bdv!$F$2:$F$65536,IF(dati_pdc!$C1090=5,dati_bdv!$G$2:$G$65536,dati_bdv!$H$2:$H$65536))))),$A1090,dati_bdv!J$2:J$65536)","v":0},{"$f":"SUMIF(IF(dati_pdc!$C1090=1,dati_bdv!$C$2:$C$65536,IF(dati_pdc!$C1090=2,dati_bdv!$D$2:$D$65536,IF(dati_pdc!$C1090=3,dati_bdv!$E$2:$E$65536,IF(dati_pdc!$C1090=4,dati_bdv!$F$2:$F$65536,IF(dati_pdc!$C1090=5,dati_bdv!$G$2:$G$65536,dati_bdv!$H$2:$H$65536))))),$A1090,dati_bdv!K$2:K$65536)","v":0},{"$f":"SUMIF(IF(dati_pdc!$C1090=1,dati_bdv!$C$2:$C$65536,IF(dati_pdc!$C1090=2,dati_bdv!$D$2:$D$65536,IF(dati_pdc!$C1090=3,dati_bdv!$E$2:$E$65536,IF(dati_pdc!$C1090=4,dati_bdv!$F$2:$F$65536,IF(dati_pdc!$C1090=5,dati_bdv!$G$2:$G$65536,dati_bdv!$H$2:$H$65536))))),$A1090,dati_bdv!L$2:L$65536)","v":0},{"$f":"SUMIF(IF(dati_pdc!$C1090=1,dati_bdv!$C$2:$C$65536,IF(dati_pdc!$C1090=2,dati_bdv!$D$2:$D$65536,IF(dati_pdc!$C1090=3,dati_bdv!$E$2:$E$65536,IF(dati_pdc!$C1090=4,dati_bdv!$F$2:$F$65536,IF(dati_pdc!$C1090=5,dati_bdv!$G$2:$G$65536,dati_bdv!$H$2:$H$65536))))),$A1090,dati_bdv!M$2:M$65536)","v":0},{"$f":"SUMIF(IF(dati_pdc!$C1090=1,dati_bdv!$C$2:$C$65536,IF(dati_pdc!$C1090=2,dati_bdv!$D$2:$D$65536,IF(dati_pdc!$C1090=3,dati_bdv!$E$2:$E$65536,IF(dati_pdc!$C1090=4,dati_bdv!$F$2:$F$65536,IF(dati_pdc!$C1090=5,dati_bdv!$G$2:$G$65536,dati_bdv!$H$2:$H$65536))))),$A1090,dati_bdv!N$2:N$65536)","v":0}]
[{"$f":"dati_pdc!A1091","v":0},{"$f":"SUMIF(IF(dati_pdc!$C1091=1,dati_bdv!$C$2:$C$65536,IF(dati_pdc!$C1091=2,dati_bdv!$D$2:$D$65536,IF(dati_pdc!$C1091=3,dati_bdv!$E$2:$E$65536,IF(dati_pdc!$C1091=4,dati_bdv!$F$2:$F$65536,IF(dati_pdc!$C1091=5,dati_bdv!$G$2:$G$65536,dati_bdv!$H$2:$H$65536))))),$A1091,dati_bdv!J$2:J$65536)","v":0},{"$f":"SUMIF(IF(dati_pdc!$C1091=1,dati_bdv!$C$2:$C$65536,IF(dati_pdc!$C1091=2,dati_bdv!$D$2:$D$65536,IF(dati_pdc!$C1091=3,dati_bdv!$E$2:$E$65536,IF(dati_pdc!$C1091=4,dati_bdv!$F$2:$F$65536,IF(dati_pdc!$C1091=5,dati_bdv!$G$2:$G$65536,dati_bdv!$H$2:$H$65536))))),$A1091,dati_bdv!K$2:K$65536)","v":0},{"$f":"SUMIF(IF(dati_pdc!$C1091=1,dati_bdv!$C$2:$C$65536,IF(dati_pdc!$C1091=2,dati_bdv!$D$2:$D$65536,IF(dati_pdc!$C1091=3,dati_bdv!$E$2:$E$65536,IF(dati_pdc!$C1091=4,dati_bdv!$F$2:$F$65536,IF(dati_pdc!$C1091=5,dati_bdv!$G$2:$G$65536,dati_bdv!$H$2:$H$65536))))),$A1091,dati_bdv!L$2:L$65536)","v":0},{"$f":"SUMIF(IF(dati_pdc!$C1091=1,dati_bdv!$C$2:$C$65536,IF(dati_pdc!$C1091=2,dati_bdv!$D$2:$D$65536,IF(dati_pdc!$C1091=3,dati_bdv!$E$2:$E$65536,IF(dati_pdc!$C1091=4,dati_bdv!$F$2:$F$65536,IF(dati_pdc!$C1091=5,dati_bdv!$G$2:$G$65536,dati_bdv!$H$2:$H$65536))))),$A1091,dati_bdv!M$2:M$65536)","v":0},{"$f":"SUMIF(IF(dati_pdc!$C1091=1,dati_bdv!$C$2:$C$65536,IF(dati_pdc!$C1091=2,dati_bdv!$D$2:$D$65536,IF(dati_pdc!$C1091=3,dati_bdv!$E$2:$E$65536,IF(dati_pdc!$C1091=4,dati_bdv!$F$2:$F$65536,IF(dati_pdc!$C1091=5,dati_bdv!$G$2:$G$65536,dati_bdv!$H$2:$H$65536))))),$A1091,dati_bdv!N$2:N$65536)","v":0}]
[{"$f":"dati_pdc!A1092","v":0},{"$f":"SUMIF(IF(dati_pdc!$C1092=1,dati_bdv!$C$2:$C$65536,IF(dati_pdc!$C1092=2,dati_bdv!$D$2:$D$65536,IF(dati_pdc!$C1092=3,dati_bdv!$E$2:$E$65536,IF(dati_pdc!$C1092=4,dati_bdv!$F$2:$F$65536,IF(dati_pdc!$C1092=5,dati_bdv!$G$2:$G$65536,dati_bdv!$H$2:$H$65536))))),$A1092,dati_bdv!J$2:J$65536)","v":0},{"$f":"SUMIF(IF(dati_pdc!$C1092=1,dati_bdv!$C$2:$C$65536,IF(dati_pdc!$C1092=2,dati_bdv!$D$2:$D$65536,IF(dati_pdc!$C1092=3,dati_bdv!$E$2:$E$65536,IF(dati_pdc!$C1092=4,dati_bdv!$F$2:$F$65536,IF(dati_pdc!$C1092=5,dati_bdv!$G$2:$G$65536,dati_bdv!$H$2:$H$65536))))),$A1092,dati_bdv!K$2:K$65536)","v":0},{"$f":"SUMIF(IF(dati_pdc!$C1092=1,dati_bdv!$C$2:$C$65536,IF(dati_pdc!$C1092=2,dati_bdv!$D$2:$D$65536,IF(dati_pdc!$C1092=3,dati_bdv!$E$2:$E$65536,IF(dati_pdc!$C1092=4,dati_bdv!$F$2:$F$65536,IF(dati_pdc!$C1092=5,dati_bdv!$G$2:$G$65536,dati_bdv!$H$2:$H$65536))))),$A1092,dati_bdv!L$2:L$65536)","v":0},{"$f":"SUMIF(IF(dati_pdc!$C1092=1,dati_bdv!$C$2:$C$65536,IF(dati_pdc!$C1092=2,dati_bdv!$D$2:$D$65536,IF(dati_pdc!$C1092=3,dati_bdv!$E$2:$E$65536,IF(dati_pdc!$C1092=4,dati_bdv!$F$2:$F$65536,IF(dati_pdc!$C1092=5,dati_bdv!$G$2:$G$65536,dati_bdv!$H$2:$H$65536))))),$A1092,dati_bdv!M$2:M$65536)","v":0},{"$f":"SUMIF(IF(dati_pdc!$C1092=1,dati_bdv!$C$2:$C$65536,IF(dati_pdc!$C1092=2,dati_bdv!$D$2:$D$65536,IF(dati_pdc!$C1092=3,dati_bdv!$E$2:$E$65536,IF(dati_pdc!$C1092=4,dati_bdv!$F$2:$F$65536,IF(dati_pdc!$C1092=5,dati_bdv!$G$2:$G$65536,dati_bdv!$H$2:$H$65536))))),$A1092,dati_bdv!N$2:N$65536)","v":0}]
[{"$f":"dati_pdc!A1093","v":0},{"$f":"SUMIF(IF(dati_pdc!$C1093=1,dati_bdv!$C$2:$C$65536,IF(dati_pdc!$C1093=2,dati_bdv!$D$2:$D$65536,IF(dati_pdc!$C1093=3,dati_bdv!$E$2:$E$65536,IF(dati_pdc!$C1093=4,dati_bdv!$F$2:$F$65536,IF(dati_pdc!$C1093=5,dati_bdv!$G$2:$G$65536,dati_bdv!$H$2:$H$65536))))),$A1093,dati_bdv!J$2:J$65536)","v":0},{"$f":"SUMIF(IF(dati_pdc!$C1093=1,dati_bdv!$C$2:$C$65536,IF(dati_pdc!$C1093=2,dati_bdv!$D$2:$D$65536,IF(dati_pdc!$C1093=3,dati_bdv!$E$2:$E$65536,IF(dati_pdc!$C1093=4,dati_bdv!$F$2:$F$65536,IF(dati_pdc!$C1093=5,dati_bdv!$G$2:$G$65536,dati_bdv!$H$2:$H$65536))))),$A1093,dati_bdv!K$2:K$65536)","v":0},{"$f":"SUMIF(IF(dati_pdc!$C1093=1,dati_bdv!$C$2:$C$65536,IF(dati_pdc!$C1093=2,dati_bdv!$D$2:$D$65536,IF(dati_pdc!$C1093=3,dati_bdv!$E$2:$E$65536,IF(dati_pdc!$C1093=4,dati_bdv!$F$2:$F$65536,IF(dati_pdc!$C1093=5,dati_bdv!$G$2:$G$65536,dati_bdv!$H$2:$H$65536))))),$A1093,dati_bdv!L$2:L$65536)","v":0},{"$f":"SUMIF(IF(dati_pdc!$C1093=1,dati_bdv!$C$2:$C$65536,IF(dati_pdc!$C1093=2,dati_bdv!$D$2:$D$65536,IF(dati_pdc!$C1093=3,dati_bdv!$E$2:$E$65536,IF(dati_pdc!$C1093=4,dati_bdv!$F$2:$F$65536,IF(dati_pdc!$C1093=5,dati_bdv!$G$2:$G$65536,dati_bdv!$H$2:$H$65536))))),$A1093,dati_bdv!M$2:M$65536)","v":0},{"$f":"SUMIF(IF(dati_pdc!$C1093=1,dati_bdv!$C$2:$C$65536,IF(dati_pdc!$C1093=2,dati_bdv!$D$2:$D$65536,IF(dati_pdc!$C1093=3,dati_bdv!$E$2:$E$65536,IF(dati_pdc!$C1093=4,dati_bdv!$F$2:$F$65536,IF(dati_pdc!$C1093=5,dati_bdv!$G$2:$G$65536,dati_bdv!$H$2:$H$65536))))),$A1093,dati_bdv!N$2:N$65536)","v":0}]
[{"$f":"dati_pdc!A1094","v":0},{"$f":"SUMIF(IF(dati_pdc!$C1094=1,dati_bdv!$C$2:$C$65536,IF(dati_pdc!$C1094=2,dati_bdv!$D$2:$D$65536,IF(dati_pdc!$C1094=3,dati_bdv!$E$2:$E$65536,IF(dati_pdc!$C1094=4,dati_bdv!$F$2:$F$65536,IF(dati_pdc!$C1094=5,dati_bdv!$G$2:$G$65536,dati_bdv!$H$2:$H$65536))))),$A1094,dati_bdv!J$2:J$65536)","v":0},{"$f":"SUMIF(IF(dati_pdc!$C1094=1,dati_bdv!$C$2:$C$65536,IF(dati_pdc!$C1094=2,dati_bdv!$D$2:$D$65536,IF(dati_pdc!$C1094=3,dati_bdv!$E$2:$E$65536,IF(dati_pdc!$C1094=4,dati_bdv!$F$2:$F$65536,IF(dati_pdc!$C1094=5,dati_bdv!$G$2:$G$65536,dati_bdv!$H$2:$H$65536))))),$A1094,dati_bdv!K$2:K$65536)","v":0},{"$f":"SUMIF(IF(dati_pdc!$C1094=1,dati_bdv!$C$2:$C$65536,IF(dati_pdc!$C1094=2,dati_bdv!$D$2:$D$65536,IF(dati_pdc!$C1094=3,dati_bdv!$E$2:$E$65536,IF(dati_pdc!$C1094=4,dati_bdv!$F$2:$F$65536,IF(dati_pdc!$C1094=5,dati_bdv!$G$2:$G$65536,dati_bdv!$H$2:$H$65536))))),$A1094,dati_bdv!L$2:L$65536)","v":0},{"$f":"SUMIF(IF(dati_pdc!$C1094=1,dati_bdv!$C$2:$C$65536,IF(dati_pdc!$C1094=2,dati_bdv!$D$2:$D$65536,IF(dati_pdc!$C1094=3,dati_bdv!$E$2:$E$65536,IF(dati_pdc!$C1094=4,dati_bdv!$F$2:$F$65536,IF(dati_pdc!$C1094=5,dati_bdv!$G$2:$G$65536,dati_bdv!$H$2:$H$65536))))),$A1094,dati_bdv!M$2:M$65536)","v":0},{"$f":"SUMIF(IF(dati_pdc!$C1094=1,dati_bdv!$C$2:$C$65536,IF(dati_pdc!$C1094=2,dati_bdv!$D$2:$D$65536,IF(dati_pdc!$C1094=3,dati_bdv!$E$2:$E$65536,IF(dati_pdc!$C1094=4,dati_bdv!$F$2:$F$65536,IF(dati_pdc!$C1094=5,dati_bdv!$G$2:$G$65536,dati_bdv!$H$2:$H$65536))))),$A1094,dati_bdv!N$2:N$65536)","v":0}]
[{"$f":"dati_pdc!A1095","v":0},{"$f":"SUMIF(IF(dati_pdc!$C1095=1,dati_bdv!$C$2:$C$65536,IF(dati_pdc!$C1095=2,dati_bdv!$D$2:$D$65536,IF(dati_pdc!$C1095=3,dati_bdv!$E$2:$E$65536,IF(dati_pdc!$C1095=4,dati_bdv!$F$2:$F$65536,IF(dati_pdc!$C1095=5,dati_bdv!$G$2:$G$65536,dati_bdv!$H$2:$H$65536))))),$A1095,dati_bdv!J$2:J$65536)","v":0},{"$f":"SUMIF(IF(dati_pdc!$C1095=1,dati_bdv!$C$2:$C$65536,IF(dati_pdc!$C1095=2,dati_bdv!$D$2:$D$65536,IF(dati_pdc!$C1095=3,dati_bdv!$E$2:$E$65536,IF(dati_pdc!$C1095=4,dati_bdv!$F$2:$F$65536,IF(dati_pdc!$C1095=5,dati_bdv!$G$2:$G$65536,dati_bdv!$H$2:$H$65536))))),$A1095,dati_bdv!K$2:K$65536)","v":0},{"$f":"SUMIF(IF(dati_pdc!$C1095=1,dati_bdv!$C$2:$C$65536,IF(dati_pdc!$C1095=2,dati_bdv!$D$2:$D$65536,IF(dati_pdc!$C1095=3,dati_bdv!$E$2:$E$65536,IF(dati_pdc!$C1095=4,dati_bdv!$F$2:$F$65536,IF(dati_pdc!$C1095=5,dati_bdv!$G$2:$G$65536,dati_bdv!$H$2:$H$65536))))),$A1095,dati_bdv!L$2:L$65536)","v":0},{"$f":"SUMIF(IF(dati_pdc!$C1095=1,dati_bdv!$C$2:$C$65536,IF(dati_pdc!$C1095=2,dati_bdv!$D$2:$D$65536,IF(dati_pdc!$C1095=3,dati_bdv!$E$2:$E$65536,IF(dati_pdc!$C1095=4,dati_bdv!$F$2:$F$65536,IF(dati_pdc!$C1095=5,dati_bdv!$G$2:$G$65536,dati_bdv!$H$2:$H$65536))))),$A1095,dati_bdv!M$2:M$65536)","v":0},{"$f":"SUMIF(IF(dati_pdc!$C1095=1,dati_bdv!$C$2:$C$65536,IF(dati_pdc!$C1095=2,dati_bdv!$D$2:$D$65536,IF(dati_pdc!$C1095=3,dati_bdv!$E$2:$E$65536,IF(dati_pdc!$C1095=4,dati_bdv!$F$2:$F$65536,IF(dati_pdc!$C1095=5,dati_bdv!$G$2:$G$65536,dati_bdv!$H$2:$H$65536))))),$A1095,dati_bdv!N$2:N$65536)","v":0}]
[{"$f":"dati_pdc!A1096","v":0},{"$f":"SUMIF(IF(dati_pdc!$C1096=1,dati_bdv!$C$2:$C$65536,IF(dati_pdc!$C1096=2,dati_bdv!$D$2:$D$65536,IF(dati_pdc!$C1096=3,dati_bdv!$E$2:$E$65536,IF(dati_pdc!$C1096=4,dati_bdv!$F$2:$F$65536,IF(dati_pdc!$C1096=5,dati_bdv!$G$2:$G$65536,dati_bdv!$H$2:$H$65536))))),$A1096,dati_bdv!J$2:J$65536)","v":0},{"$f":"SUMIF(IF(dati_pdc!$C1096=1,dati_bdv!$C$2:$C$65536,IF(dati_pdc!$C1096=2,dati_bdv!$D$2:$D$65536,IF(dati_pdc!$C1096=3,dati_bdv!$E$2:$E$65536,IF(dati_pdc!$C1096=4,dati_bdv!$F$2:$F$65536,IF(dati_pdc!$C1096=5,dati_bdv!$G$2:$G$65536,dati_bdv!$H$2:$H$65536))))),$A1096,dati_bdv!K$2:K$65536)","v":0},{"$f":"SUMIF(IF(dati_pdc!$C1096=1,dati_bdv!$C$2:$C$65536,IF(dati_pdc!$C1096=2,dati_bdv!$D$2:$D$65536,IF(dati_pdc!$C1096=3,dati_bdv!$E$2:$E$65536,IF(dati_pdc!$C1096=4,dati_bdv!$F$2:$F$65536,IF(dati_pdc!$C1096=5,dati_bdv!$G$2:$G$65536,dati_bdv!$H$2:$H$65536))))),$A1096,dati_bdv!L$2:L$65536)","v":0},{"$f":"SUMIF(IF(dati_pdc!$C1096=1,dati_bdv!$C$2:$C$65536,IF(dati_pdc!$C1096=2,dati_bdv!$D$2:$D$65536,IF(dati_pdc!$C1096=3,dati_bdv!$E$2:$E$65536,IF(dati_pdc!$C1096=4,dati_bdv!$F$2:$F$65536,IF(dati_pdc!$C1096=5,dati_bdv!$G$2:$G$65536,dati_bdv!$H$2:$H$65536))))),$A1096,dati_bdv!M$2:M$65536)","v":0},{"$f":"SUMIF(IF(dati_pdc!$C1096=1,dati_bdv!$C$2:$C$65536,IF(dati_pdc!$C1096=2,dati_bdv!$D$2:$D$65536,IF(dati_pdc!$C1096=3,dati_bdv!$E$2:$E$65536,IF(dati_pdc!$C1096=4,dati_bdv!$F$2:$F$65536,IF(dati_pdc!$C1096=5,dati_bdv!$G$2:$G$65536,dati_bdv!$H$2:$H$65536))))),$A1096,dati_bdv!N$2:N$65536)","v":0}]
[{"$f":"dati_pdc!A1097","v":0},{"$f":"SUMIF(IF(dati_pdc!$C1097=1,dati_bdv!$C$2:$C$65536,IF(dati_pdc!$C1097=2,dati_bdv!$D$2:$D$65536,IF(dati_pdc!$C1097=3,dati_bdv!$E$2:$E$65536,IF(dati_pdc!$C1097=4,dati_bdv!$F$2:$F$65536,IF(dati_pdc!$C1097=5,dati_bdv!$G$2:$G$65536,dati_bdv!$H$2:$H$65536))))),$A1097,dati_bdv!J$2:J$65536)","v":0},{"$f":"SUMIF(IF(dati_pdc!$C1097=1,dati_bdv!$C$2:$C$65536,IF(dati_pdc!$C1097=2,dati_bdv!$D$2:$D$65536,IF(dati_pdc!$C1097=3,dati_bdv!$E$2:$E$65536,IF(dati_pdc!$C1097=4,dati_bdv!$F$2:$F$65536,IF(dati_pdc!$C1097=5,dati_bdv!$G$2:$G$65536,dati_bdv!$H$2:$H$65536))))),$A1097,dati_bdv!K$2:K$65536)","v":0},{"$f":"SUMIF(IF(dati_pdc!$C1097=1,dati_bdv!$C$2:$C$65536,IF(dati_pdc!$C1097=2,dati_bdv!$D$2:$D$65536,IF(dati_pdc!$C1097=3,dati_bdv!$E$2:$E$65536,IF(dati_pdc!$C1097=4,dati_bdv!$F$2:$F$65536,IF(dati_pdc!$C1097=5,dati_bdv!$G$2:$G$65536,dati_bdv!$H$2:$H$65536))))),$A1097,dati_bdv!L$2:L$65536)","v":0},{"$f":"SUMIF(IF(dati_pdc!$C1097=1,dati_bdv!$C$2:$C$65536,IF(dati_pdc!$C1097=2,dati_bdv!$D$2:$D$65536,IF(dati_pdc!$C1097=3,dati_bdv!$E$2:$E$65536,IF(dati_pdc!$C1097=4,dati_bdv!$F$2:$F$65536,IF(dati_pdc!$C1097=5,dati_bdv!$G$2:$G$65536,dati_bdv!$H$2:$H$65536))))),$A1097,dati_bdv!M$2:M$65536)","v":0},{"$f":"SUMIF(IF(dati_pdc!$C1097=1,dati_bdv!$C$2:$C$65536,IF(dati_pdc!$C1097=2,dati_bdv!$D$2:$D$65536,IF(dati_pdc!$C1097=3,dati_bdv!$E$2:$E$65536,IF(dati_pdc!$C1097=4,dati_bdv!$F$2:$F$65536,IF(dati_pdc!$C1097=5,dati_bdv!$G$2:$G$65536,dati_bdv!$H$2:$H$65536))))),$A1097,dati_bdv!N$2:N$65536)","v":0}]
[{"$f":"dati_pdc!A1098","v":0},{"$f":"SUMIF(IF(dati_pdc!$C1098=1,dati_bdv!$C$2:$C$65536,IF(dati_pdc!$C1098=2,dati_bdv!$D$2:$D$65536,IF(dati_pdc!$C1098=3,dati_bdv!$E$2:$E$65536,IF(dati_pdc!$C1098=4,dati_bdv!$F$2:$F$65536,IF(dati_pdc!$C1098=5,dati_bdv!$G$2:$G$65536,dati_bdv!$H$2:$H$65536))))),$A1098,dati_bdv!J$2:J$65536)","v":0},{"$f":"SUMIF(IF(dati_pdc!$C1098=1,dati_bdv!$C$2:$C$65536,IF(dati_pdc!$C1098=2,dati_bdv!$D$2:$D$65536,IF(dati_pdc!$C1098=3,dati_bdv!$E$2:$E$65536,IF(dati_pdc!$C1098=4,dati_bdv!$F$2:$F$65536,IF(dati_pdc!$C1098=5,dati_bdv!$G$2:$G$65536,dati_bdv!$H$2:$H$65536))))),$A1098,dati_bdv!K$2:K$65536)","v":0},{"$f":"SUMIF(IF(dati_pdc!$C1098=1,dati_bdv!$C$2:$C$65536,IF(dati_pdc!$C1098=2,dati_bdv!$D$2:$D$65536,IF(dati_pdc!$C1098=3,dati_bdv!$E$2:$E$65536,IF(dati_pdc!$C1098=4,dati_bdv!$F$2:$F$65536,IF(dati_pdc!$C1098=5,dati_bdv!$G$2:$G$65536,dati_bdv!$H$2:$H$65536))))),$A1098,dati_bdv!L$2:L$65536)","v":0},{"$f":"SUMIF(IF(dati_pdc!$C1098=1,dati_bdv!$C$2:$C$65536,IF(dati_pdc!$C1098=2,dati_bdv!$D$2:$D$65536,IF(dati_pdc!$C1098=3,dati_bdv!$E$2:$E$65536,IF(dati_pdc!$C1098=4,dati_bdv!$F$2:$F$65536,IF(dati_pdc!$C1098=5,dati_bdv!$G$2:$G$65536,dati_bdv!$H$2:$H$65536))))),$A1098,dati_bdv!M$2:M$65536)","v":0},{"$f":"SUMIF(IF(dati_pdc!$C1098=1,dati_bdv!$C$2:$C$65536,IF(dati_pdc!$C1098=2,dati_bdv!$D$2:$D$65536,IF(dati_pdc!$C1098=3,dati_bdv!$E$2:$E$65536,IF(dati_pdc!$C1098=4,dati_bdv!$F$2:$F$65536,IF(dati_pdc!$C1098=5,dati_bdv!$G$2:$G$65536,dati_bdv!$H$2:$H$65536))))),$A1098,dati_bdv!N$2:N$65536)","v":0}]
[{"$f":"dati_pdc!A1099","v":0},{"$f":"SUMIF(IF(dati_pdc!$C1099=1,dati_bdv!$C$2:$C$65536,IF(dati_pdc!$C1099=2,dati_bdv!$D$2:$D$65536,IF(dati_pdc!$C1099=3,dati_bdv!$E$2:$E$65536,IF(dati_pdc!$C1099=4,dati_bdv!$F$2:$F$65536,IF(dati_pdc!$C1099=5,dati_bdv!$G$2:$G$65536,dati_bdv!$H$2:$H$65536))))),$A1099,dati_bdv!J$2:J$65536)","v":0},{"$f":"SUMIF(IF(dati_pdc!$C1099=1,dati_bdv!$C$2:$C$65536,IF(dati_pdc!$C1099=2,dati_bdv!$D$2:$D$65536,IF(dati_pdc!$C1099=3,dati_bdv!$E$2:$E$65536,IF(dati_pdc!$C1099=4,dati_bdv!$F$2:$F$65536,IF(dati_pdc!$C1099=5,dati_bdv!$G$2:$G$65536,dati_bdv!$H$2:$H$65536))))),$A1099,dati_bdv!K$2:K$65536)","v":0},{"$f":"SUMIF(IF(dati_pdc!$C1099=1,dati_bdv!$C$2:$C$65536,IF(dati_pdc!$C1099=2,dati_bdv!$D$2:$D$65536,IF(dati_pdc!$C1099=3,dati_bdv!$E$2:$E$65536,IF(dati_pdc!$C1099=4,dati_bdv!$F$2:$F$65536,IF(dati_pdc!$C1099=5,dati_bdv!$G$2:$G$65536,dati_bdv!$H$2:$H$65536))))),$A1099,dati_bdv!L$2:L$65536)","v":0},{"$f":"SUMIF(IF(dati_pdc!$C1099=1,dati_bdv!$C$2:$C$65536,IF(dati_pdc!$C1099=2,dati_bdv!$D$2:$D$65536,IF(dati_pdc!$C1099=3,dati_bdv!$E$2:$E$65536,IF(dati_pdc!$C1099=4,dati_bdv!$F$2:$F$65536,IF(dati_pdc!$C1099=5,dati_bdv!$G$2:$G$65536,dati_bdv!$H$2:$H$65536))))),$A1099,dati_bdv!M$2:M$65536)","v":0},{"$f":"SUMIF(IF(dati_pdc!$C1099=1,dati_bdv!$C$2:$C$65536,IF(dati_pdc!$C1099=2,dati_bdv!$D$2:$D$65536,IF(dati_pdc!$C1099=3,dati_bdv!$E$2:$E$65536,IF(dati_pdc!$C1099=4,dati_bdv!$F$2:$F$65536,IF(dati_pdc!$C1099=5,dati_bdv!$G$2:$G$65536,dati_bdv!$H$2:$H$65536))))),$A1099,dati_bdv!N$2:N$65536)","v":0}]
[{"$f":"dati_pdc!A1100","v":0},{"$f":"SUMIF(IF(dati_pdc!$C1100=1,dati_bdv!$C$2:$C$65536,IF(dati_pdc!$C1100=2,dati_bdv!$D$2:$D$65536,IF(dati_pdc!$C1100=3,dati_bdv!$E$2:$E$65536,IF(dati_pdc!$C1100=4,dati_bdv!$F$2:$F$65536,IF(dati_pdc!$C1100=5,dati_bdv!$G$2:$G$65536,dati_bdv!$H$2:$H$65536))))),$A1100,dati_bdv!J$2:J$65536)","v":0},{"$f":"SUMIF(IF(dati_pdc!$C1100=1,dati_bdv!$C$2:$C$65536,IF(dati_pdc!$C1100=2,dati_bdv!$D$2:$D$65536,IF(dati_pdc!$C1100=3,dati_bdv!$E$2:$E$65536,IF(dati_pdc!$C1100=4,dati_bdv!$F$2:$F$65536,IF(dati_pdc!$C1100=5,dati_bdv!$G$2:$G$65536,dati_bdv!$H$2:$H$65536))))),$A1100,dati_bdv!K$2:K$65536)","v":0},{"$f":"SUMIF(IF(dati_pdc!$C1100=1,dati_bdv!$C$2:$C$65536,IF(dati_pdc!$C1100=2,dati_bdv!$D$2:$D$65536,IF(dati_pdc!$C1100=3,dati_bdv!$E$2:$E$65536,IF(dati_pdc!$C1100=4,dati_bdv!$F$2:$F$65536,IF(dati_pdc!$C1100=5,dati_bdv!$G$2:$G$65536,dati_bdv!$H$2:$H$65536))))),$A1100,dati_bdv!L$2:L$65536)","v":0},{"$f":"SUMIF(IF(dati_pdc!$C1100=1,dati_bdv!$C$2:$C$65536,IF(dati_pdc!$C1100=2,dati_bdv!$D$2:$D$65536,IF(dati_pdc!$C1100=3,dati_bdv!$E$2:$E$65536,IF(dati_pdc!$C1100=4,dati_bdv!$F$2:$F$65536,IF(dati_pdc!$C1100=5,dati_bdv!$G$2:$G$65536,dati_bdv!$H$2:$H$65536))))),$A1100,dati_bdv!M$2:M$65536)","v":0},{"$f":"SUMIF(IF(dati_pdc!$C1100=1,dati_bdv!$C$2:$C$65536,IF(dati_pdc!$C1100=2,dati_bdv!$D$2:$D$65536,IF(dati_pdc!$C1100=3,dati_bdv!$E$2:$E$65536,IF(dati_pdc!$C1100=4,dati_bdv!$F$2:$F$65536,IF(dati_pdc!$C1100=5,dati_bdv!$G$2:$G$65536,dati_bdv!$H$2:$H$65536))))),$A1100,dati_bdv!N$2:N$65536)","v":0}]
[{"$f":"dati_pdc!A1101","v":0},{"$f":"SUMIF(IF(dati_pdc!$C1101=1,dati_bdv!$C$2:$C$65536,IF(dati_pdc!$C1101=2,dati_bdv!$D$2:$D$65536,IF(dati_pdc!$C1101=3,dati_bdv!$E$2:$E$65536,IF(dati_pdc!$C1101=4,dati_bdv!$F$2:$F$65536,IF(dati_pdc!$C1101=5,dati_bdv!$G$2:$G$65536,dati_bdv!$H$2:$H$65536))))),$A1101,dati_bdv!J$2:J$65536)","v":0},{"$f":"SUMIF(IF(dati_pdc!$C1101=1,dati_bdv!$C$2:$C$65536,IF(dati_pdc!$C1101=2,dati_bdv!$D$2:$D$65536,IF(dati_pdc!$C1101=3,dati_bdv!$E$2:$E$65536,IF(dati_pdc!$C1101=4,dati_bdv!$F$2:$F$65536,IF(dati_pdc!$C1101=5,dati_bdv!$G$2:$G$65536,dati_bdv!$H$2:$H$65536))))),$A1101,dati_bdv!K$2:K$65536)","v":0},{"$f":"SUMIF(IF(dati_pdc!$C1101=1,dati_bdv!$C$2:$C$65536,IF(dati_pdc!$C1101=2,dati_bdv!$D$2:$D$65536,IF(dati_pdc!$C1101=3,dati_bdv!$E$2:$E$65536,IF(dati_pdc!$C1101=4,dati_bdv!$F$2:$F$65536,IF(dati_pdc!$C1101=5,dati_bdv!$G$2:$G$65536,dati_bdv!$H$2:$H$65536))))),$A1101,dati_bdv!L$2:L$65536)","v":0},{"$f":"SUMIF(IF(dati_pdc!$C1101=1,dati_bdv!$C$2:$C$65536,IF(dati_pdc!$C1101=2,dati_bdv!$D$2:$D$65536,IF(dati_pdc!$C1101=3,dati_bdv!$E$2:$E$65536,IF(dati_pdc!$C1101=4,dati_bdv!$F$2:$F$65536,IF(dati_pdc!$C1101=5,dati_bdv!$G$2:$G$65536,dati_bdv!$H$2:$H$65536))))),$A1101,dati_bdv!M$2:M$65536)","v":0},{"$f":"SUMIF(IF(dati_pdc!$C1101=1,dati_bdv!$C$2:$C$65536,IF(dati_pdc!$C1101=2,dati_bdv!$D$2:$D$65536,IF(dati_pdc!$C1101=3,dati_bdv!$E$2:$E$65536,IF(dati_pdc!$C1101=4,dati_bdv!$F$2:$F$65536,IF(dati_pdc!$C1101=5,dati_bdv!$G$2:$G$65536,dati_bdv!$H$2:$H$65536))))),$A1101,dati_bdv!N$2:N$65536)","v":0}]
[{"$f":"dati_pdc!A1102","v":0},{"$f":"SUMIF(IF(dati_pdc!$C1102=1,dati_bdv!$C$2:$C$65536,IF(dati_pdc!$C1102=2,dati_bdv!$D$2:$D$65536,IF(dati_pdc!$C1102=3,dati_bdv!$E$2:$E$65536,IF(dati_pdc!$C1102=4,dati_bdv!$F$2:$F$65536,IF(dati_pdc!$C1102=5,dati_bdv!$G$2:$G$65536,dati_bdv!$H$2:$H$65536))))),$A1102,dati_bdv!J$2:J$65536)","v":0},{"$f":"SUMIF(IF(dati_pdc!$C1102=1,dati_bdv!$C$2:$C$65536,IF(dati_pdc!$C1102=2,dati_bdv!$D$2:$D$65536,IF(dati_pdc!$C1102=3,dati_bdv!$E$2:$E$65536,IF(dati_pdc!$C1102=4,dati_bdv!$F$2:$F$65536,IF(dati_pdc!$C1102=5,dati_bdv!$G$2:$G$65536,dati_bdv!$H$2:$H$65536))))),$A1102,dati_bdv!K$2:K$65536)","v":0},{"$f":"SUMIF(IF(dati_pdc!$C1102=1,dati_bdv!$C$2:$C$65536,IF(dati_pdc!$C1102=2,dati_bdv!$D$2:$D$65536,IF(dati_pdc!$C1102=3,dati_bdv!$E$2:$E$65536,IF(dati_pdc!$C1102=4,dati_bdv!$F$2:$F$65536,IF(dati_pdc!$C1102=5,dati_bdv!$G$2:$G$65536,dati_bdv!$H$2:$H$65536))))),$A1102,dati_bdv!L$2:L$65536)","v":0},{"$f":"SUMIF(IF(dati_pdc!$C1102=1,dati_bdv!$C$2:$C$65536,IF(dati_pdc!$C1102=2,dati_bdv!$D$2:$D$65536,IF(dati_pdc!$C1102=3,dati_bdv!$E$2:$E$65536,IF(dati_pdc!$C1102=4,dati_bdv!$F$2:$F$65536,IF(dati_pdc!$C1102=5,dati_bdv!$G$2:$G$65536,dati_bdv!$H$2:$H$65536))))),$A1102,dati_bdv!M$2:M$65536)","v":0},{"$f":"SUMIF(IF(dati_pdc!$C1102=1,dati_bdv!$C$2:$C$65536,IF(dati_pdc!$C1102=2,dati_bdv!$D$2:$D$65536,IF(dati_pdc!$C1102=3,dati_bdv!$E$2:$E$65536,IF(dati_pdc!$C1102=4,dati_bdv!$F$2:$F$65536,IF(dati_pdc!$C1102=5,dati_bdv!$G$2:$G$65536,dati_bdv!$H$2:$H$65536))))),$A1102,dati_bdv!N$2:N$65536)","v":0}]
[{"$f":"dati_pdc!A1103","v":0},{"$f":"SUMIF(IF(dati_pdc!$C1103=1,dati_bdv!$C$2:$C$65536,IF(dati_pdc!$C1103=2,dati_bdv!$D$2:$D$65536,IF(dati_pdc!$C1103=3,dati_bdv!$E$2:$E$65536,IF(dati_pdc!$C1103=4,dati_bdv!$F$2:$F$65536,IF(dati_pdc!$C1103=5,dati_bdv!$G$2:$G$65536,dati_bdv!$H$2:$H$65536))))),$A1103,dati_bdv!J$2:J$65536)","v":0},{"$f":"SUMIF(IF(dati_pdc!$C1103=1,dati_bdv!$C$2:$C$65536,IF(dati_pdc!$C1103=2,dati_bdv!$D$2:$D$65536,IF(dati_pdc!$C1103=3,dati_bdv!$E$2:$E$65536,IF(dati_pdc!$C1103=4,dati_bdv!$F$2:$F$65536,IF(dati_pdc!$C1103=5,dati_bdv!$G$2:$G$65536,dati_bdv!$H$2:$H$65536))))),$A1103,dati_bdv!K$2:K$65536)","v":0},{"$f":"SUMIF(IF(dati_pdc!$C1103=1,dati_bdv!$C$2:$C$65536,IF(dati_pdc!$C1103=2,dati_bdv!$D$2:$D$65536,IF(dati_pdc!$C1103=3,dati_bdv!$E$2:$E$65536,IF(dati_pdc!$C1103=4,dati_bdv!$F$2:$F$65536,IF(dati_pdc!$C1103=5,dati_bdv!$G$2:$G$65536,dati_bdv!$H$2:$H$65536))))),$A1103,dati_bdv!L$2:L$65536)","v":0},{"$f":"SUMIF(IF(dati_pdc!$C1103=1,dati_bdv!$C$2:$C$65536,IF(dati_pdc!$C1103=2,dati_bdv!$D$2:$D$65536,IF(dati_pdc!$C1103=3,dati_bdv!$E$2:$E$65536,IF(dati_pdc!$C1103=4,dati_bdv!$F$2:$F$65536,IF(dati_pdc!$C1103=5,dati_bdv!$G$2:$G$65536,dati_bdv!$H$2:$H$65536))))),$A1103,dati_bdv!M$2:M$65536)","v":0},{"$f":"SUMIF(IF(dati_pdc!$C1103=1,dati_bdv!$C$2:$C$65536,IF(dati_pdc!$C1103=2,dati_bdv!$D$2:$D$65536,IF(dati_pdc!$C1103=3,dati_bdv!$E$2:$E$65536,IF(dati_pdc!$C1103=4,dati_bdv!$F$2:$F$65536,IF(dati_pdc!$C1103=5,dati_bdv!$G$2:$G$65536,dati_bdv!$H$2:$H$65536))))),$A1103,dati_bdv!N$2:N$65536)","v":0}]
[{"$f":"dati_pdc!A1104","v":0},{"$f":"SUMIF(IF(dati_pdc!$C1104=1,dati_bdv!$C$2:$C$65536,IF(dati_pdc!$C1104=2,dati_bdv!$D$2:$D$65536,IF(dati_pdc!$C1104=3,dati_bdv!$E$2:$E$65536,IF(dati_pdc!$C1104=4,dati_bdv!$F$2:$F$65536,IF(dati_pdc!$C1104=5,dati_bdv!$G$2:$G$65536,dati_bdv!$H$2:$H$65536))))),$A1104,dati_bdv!J$2:J$65536)","v":0},{"$f":"SUMIF(IF(dati_pdc!$C1104=1,dati_bdv!$C$2:$C$65536,IF(dati_pdc!$C1104=2,dati_bdv!$D$2:$D$65536,IF(dati_pdc!$C1104=3,dati_bdv!$E$2:$E$65536,IF(dati_pdc!$C1104=4,dati_bdv!$F$2:$F$65536,IF(dati_pdc!$C1104=5,dati_bdv!$G$2:$G$65536,dati_bdv!$H$2:$H$65536))))),$A1104,dati_bdv!K$2:K$65536)","v":0},{"$f":"SUMIF(IF(dati_pdc!$C1104=1,dati_bdv!$C$2:$C$65536,IF(dati_pdc!$C1104=2,dati_bdv!$D$2:$D$65536,IF(dati_pdc!$C1104=3,dati_bdv!$E$2:$E$65536,IF(dati_pdc!$C1104=4,dati_bdv!$F$2:$F$65536,IF(dati_pdc!$C1104=5,dati_bdv!$G$2:$G$65536,dati_bdv!$H$2:$H$65536))))),$A1104,dati_bdv!L$2:L$65536)","v":0},{"$f":"SUMIF(IF(dati_pdc!$C1104=1,dati_bdv!$C$2:$C$65536,IF(dati_pdc!$C1104=2,dati_bdv!$D$2:$D$65536,IF(dati_pdc!$C1104=3,dati_bdv!$E$2:$E$65536,IF(dati_pdc!$C1104=4,dati_bdv!$F$2:$F$65536,IF(dati_pdc!$C1104=5,dati_bdv!$G$2:$G$65536,dati_bdv!$H$2:$H$65536))))),$A1104,dati_bdv!M$2:M$65536)","v":0},{"$f":"SUMIF(IF(dati_pdc!$C1104=1,dati_bdv!$C$2:$C$65536,IF(dati_pdc!$C1104=2,dati_bdv!$D$2:$D$65536,IF(dati_pdc!$C1104=3,dati_bdv!$E$2:$E$65536,IF(dati_pdc!$C1104=4,dati_bdv!$F$2:$F$65536,IF(dati_pdc!$C1104=5,dati_bdv!$G$2:$G$65536,dati_bdv!$H$2:$H$65536))))),$A1104,dati_bdv!N$2:N$65536)","v":0}]
[{"$f":"dati_pdc!A1105","v":0},{"$f":"SUMIF(IF(dati_pdc!$C1105=1,dati_bdv!$C$2:$C$65536,IF(dati_pdc!$C1105=2,dati_bdv!$D$2:$D$65536,IF(dati_pdc!$C1105=3,dati_bdv!$E$2:$E$65536,IF(dati_pdc!$C1105=4,dati_bdv!$F$2:$F$65536,IF(dati_pdc!$C1105=5,dati_bdv!$G$2:$G$65536,dati_bdv!$H$2:$H$65536))))),$A1105,dati_bdv!J$2:J$65536)","v":0},{"$f":"SUMIF(IF(dati_pdc!$C1105=1,dati_bdv!$C$2:$C$65536,IF(dati_pdc!$C1105=2,dati_bdv!$D$2:$D$65536,IF(dati_pdc!$C1105=3,dati_bdv!$E$2:$E$65536,IF(dati_pdc!$C1105=4,dati_bdv!$F$2:$F$65536,IF(dati_pdc!$C1105=5,dati_bdv!$G$2:$G$65536,dati_bdv!$H$2:$H$65536))))),$A1105,dati_bdv!K$2:K$65536)","v":0},{"$f":"SUMIF(IF(dati_pdc!$C1105=1,dati_bdv!$C$2:$C$65536,IF(dati_pdc!$C1105=2,dati_bdv!$D$2:$D$65536,IF(dati_pdc!$C1105=3,dati_bdv!$E$2:$E$65536,IF(dati_pdc!$C1105=4,dati_bdv!$F$2:$F$65536,IF(dati_pdc!$C1105=5,dati_bdv!$G$2:$G$65536,dati_bdv!$H$2:$H$65536))))),$A1105,dati_bdv!L$2:L$65536)","v":0},{"$f":"SUMIF(IF(dati_pdc!$C1105=1,dati_bdv!$C$2:$C$65536,IF(dati_pdc!$C1105=2,dati_bdv!$D$2:$D$65536,IF(dati_pdc!$C1105=3,dati_bdv!$E$2:$E$65536,IF(dati_pdc!$C1105=4,dati_bdv!$F$2:$F$65536,IF(dati_pdc!$C1105=5,dati_bdv!$G$2:$G$65536,dati_bdv!$H$2:$H$65536))))),$A1105,dati_bdv!M$2:M$65536)","v":0},{"$f":"SUMIF(IF(dati_pdc!$C1105=1,dati_bdv!$C$2:$C$65536,IF(dati_pdc!$C1105=2,dati_bdv!$D$2:$D$65536,IF(dati_pdc!$C1105=3,dati_bdv!$E$2:$E$65536,IF(dati_pdc!$C1105=4,dati_bdv!$F$2:$F$65536,IF(dati_pdc!$C1105=5,dati_bdv!$G$2:$G$65536,dati_bdv!$H$2:$H$65536))))),$A1105,dati_bdv!N$2:N$65536)","v":0}]
[{"$f":"dati_pdc!A1106","v":0},{"$f":"SUMIF(IF(dati_pdc!$C1106=1,dati_bdv!$C$2:$C$65536,IF(dati_pdc!$C1106=2,dati_bdv!$D$2:$D$65536,IF(dati_pdc!$C1106=3,dati_bdv!$E$2:$E$65536,IF(dati_pdc!$C1106=4,dati_bdv!$F$2:$F$65536,IF(dati_pdc!$C1106=5,dati_bdv!$G$2:$G$65536,dati_bdv!$H$2:$H$65536))))),$A1106,dati_bdv!J$2:J$65536)","v":0},{"$f":"SUMIF(IF(dati_pdc!$C1106=1,dati_bdv!$C$2:$C$65536,IF(dati_pdc!$C1106=2,dati_bdv!$D$2:$D$65536,IF(dati_pdc!$C1106=3,dati_bdv!$E$2:$E$65536,IF(dati_pdc!$C1106=4,dati_bdv!$F$2:$F$65536,IF(dati_pdc!$C1106=5,dati_bdv!$G$2:$G$65536,dati_bdv!$H$2:$H$65536))))),$A1106,dati_bdv!K$2:K$65536)","v":0},{"$f":"SUMIF(IF(dati_pdc!$C1106=1,dati_bdv!$C$2:$C$65536,IF(dati_pdc!$C1106=2,dati_bdv!$D$2:$D$65536,IF(dati_pdc!$C1106=3,dati_bdv!$E$2:$E$65536,IF(dati_pdc!$C1106=4,dati_bdv!$F$2:$F$65536,IF(dati_pdc!$C1106=5,dati_bdv!$G$2:$G$65536,dati_bdv!$H$2:$H$65536))))),$A1106,dati_bdv!L$2:L$65536)","v":0},{"$f":"SUMIF(IF(dati_pdc!$C1106=1,dati_bdv!$C$2:$C$65536,IF(dati_pdc!$C1106=2,dati_bdv!$D$2:$D$65536,IF(dati_pdc!$C1106=3,dati_bdv!$E$2:$E$65536,IF(dati_pdc!$C1106=4,dati_bdv!$F$2:$F$65536,IF(dati_pdc!$C1106=5,dati_bdv!$G$2:$G$65536,dati_bdv!$H$2:$H$65536))))),$A1106,dati_bdv!M$2:M$65536)","v":0},{"$f":"SUMIF(IF(dati_pdc!$C1106=1,dati_bdv!$C$2:$C$65536,IF(dati_pdc!$C1106=2,dati_bdv!$D$2:$D$65536,IF(dati_pdc!$C1106=3,dati_bdv!$E$2:$E$65536,IF(dati_pdc!$C1106=4,dati_bdv!$F$2:$F$65536,IF(dati_pdc!$C1106=5,dati_bdv!$G$2:$G$65536,dati_bdv!$H$2:$H$65536))))),$A1106,dati_bdv!N$2:N$65536)","v":0}]
[{"$f":"dati_pdc!A1107","v":0},{"$f":"SUMIF(IF(dati_pdc!$C1107=1,dati_bdv!$C$2:$C$65536,IF(dati_pdc!$C1107=2,dati_bdv!$D$2:$D$65536,IF(dati_pdc!$C1107=3,dati_bdv!$E$2:$E$65536,IF(dati_pdc!$C1107=4,dati_bdv!$F$2:$F$65536,IF(dati_pdc!$C1107=5,dati_bdv!$G$2:$G$65536,dati_bdv!$H$2:$H$65536))))),$A1107,dati_bdv!J$2:J$65536)","v":0},{"$f":"SUMIF(IF(dati_pdc!$C1107=1,dati_bdv!$C$2:$C$65536,IF(dati_pdc!$C1107=2,dati_bdv!$D$2:$D$65536,IF(dati_pdc!$C1107=3,dati_bdv!$E$2:$E$65536,IF(dati_pdc!$C1107=4,dati_bdv!$F$2:$F$65536,IF(dati_pdc!$C1107=5,dati_bdv!$G$2:$G$65536,dati_bdv!$H$2:$H$65536))))),$A1107,dati_bdv!K$2:K$65536)","v":0},{"$f":"SUMIF(IF(dati_pdc!$C1107=1,dati_bdv!$C$2:$C$65536,IF(dati_pdc!$C1107=2,dati_bdv!$D$2:$D$65536,IF(dati_pdc!$C1107=3,dati_bdv!$E$2:$E$65536,IF(dati_pdc!$C1107=4,dati_bdv!$F$2:$F$65536,IF(dati_pdc!$C1107=5,dati_bdv!$G$2:$G$65536,dati_bdv!$H$2:$H$65536))))),$A1107,dati_bdv!L$2:L$65536)","v":0},{"$f":"SUMIF(IF(dati_pdc!$C1107=1,dati_bdv!$C$2:$C$65536,IF(dati_pdc!$C1107=2,dati_bdv!$D$2:$D$65536,IF(dati_pdc!$C1107=3,dati_bdv!$E$2:$E$65536,IF(dati_pdc!$C1107=4,dati_bdv!$F$2:$F$65536,IF(dati_pdc!$C1107=5,dati_bdv!$G$2:$G$65536,dati_bdv!$H$2:$H$65536))))),$A1107,dati_bdv!M$2:M$65536)","v":0},{"$f":"SUMIF(IF(dati_pdc!$C1107=1,dati_bdv!$C$2:$C$65536,IF(dati_pdc!$C1107=2,dati_bdv!$D$2:$D$65536,IF(dati_pdc!$C1107=3,dati_bdv!$E$2:$E$65536,IF(dati_pdc!$C1107=4,dati_bdv!$F$2:$F$65536,IF(dati_pdc!$C1107=5,dati_bdv!$G$2:$G$65536,dati_bdv!$H$2:$H$65536))))),$A1107,dati_bdv!N$2:N$65536)","v":0}]
[{"$f":"dati_pdc!A1108","v":0},{"$f":"SUMIF(IF(dati_pdc!$C1108=1,dati_bdv!$C$2:$C$65536,IF(dati_pdc!$C1108=2,dati_bdv!$D$2:$D$65536,IF(dati_pdc!$C1108=3,dati_bdv!$E$2:$E$65536,IF(dati_pdc!$C1108=4,dati_bdv!$F$2:$F$65536,IF(dati_pdc!$C1108=5,dati_bdv!$G$2:$G$65536,dati_bdv!$H$2:$H$65536))))),$A1108,dati_bdv!J$2:J$65536)","v":0},{"$f":"SUMIF(IF(dati_pdc!$C1108=1,dati_bdv!$C$2:$C$65536,IF(dati_pdc!$C1108=2,dati_bdv!$D$2:$D$65536,IF(dati_pdc!$C1108=3,dati_bdv!$E$2:$E$65536,IF(dati_pdc!$C1108=4,dati_bdv!$F$2:$F$65536,IF(dati_pdc!$C1108=5,dati_bdv!$G$2:$G$65536,dati_bdv!$H$2:$H$65536))))),$A1108,dati_bdv!K$2:K$65536)","v":0},{"$f":"SUMIF(IF(dati_pdc!$C1108=1,dati_bdv!$C$2:$C$65536,IF(dati_pdc!$C1108=2,dati_bdv!$D$2:$D$65536,IF(dati_pdc!$C1108=3,dati_bdv!$E$2:$E$65536,IF(dati_pdc!$C1108=4,dati_bdv!$F$2:$F$65536,IF(dati_pdc!$C1108=5,dati_bdv!$G$2:$G$65536,dati_bdv!$H$2:$H$65536))))),$A1108,dati_bdv!L$2:L$65536)","v":0},{"$f":"SUMIF(IF(dati_pdc!$C1108=1,dati_bdv!$C$2:$C$65536,IF(dati_pdc!$C1108=2,dati_bdv!$D$2:$D$65536,IF(dati_pdc!$C1108=3,dati_bdv!$E$2:$E$65536,IF(dati_pdc!$C1108=4,dati_bdv!$F$2:$F$65536,IF(dati_pdc!$C1108=5,dati_bdv!$G$2:$G$65536,dati_bdv!$H$2:$H$65536))))),$A1108,dati_bdv!M$2:M$65536)","v":0},{"$f":"SUMIF(IF(dati_pdc!$C1108=1,dati_bdv!$C$2:$C$65536,IF(dati_pdc!$C1108=2,dati_bdv!$D$2:$D$65536,IF(dati_pdc!$C1108=3,dati_bdv!$E$2:$E$65536,IF(dati_pdc!$C1108=4,dati_bdv!$F$2:$F$65536,IF(dati_pdc!$C1108=5,dati_bdv!$G$2:$G$65536,dati_bdv!$H$2:$H$65536))))),$A1108,dati_bdv!N$2:N$65536)","v":0}]
[{"$f":"dati_pdc!A1109","v":0},{"$f":"SUMIF(IF(dati_pdc!$C1109=1,dati_bdv!$C$2:$C$65536,IF(dati_pdc!$C1109=2,dati_bdv!$D$2:$D$65536,IF(dati_pdc!$C1109=3,dati_bdv!$E$2:$E$65536,IF(dati_pdc!$C1109=4,dati_bdv!$F$2:$F$65536,IF(dati_pdc!$C1109=5,dati_bdv!$G$2:$G$65536,dati_bdv!$H$2:$H$65536))))),$A1109,dati_bdv!J$2:J$65536)","v":0},{"$f":"SUMIF(IF(dati_pdc!$C1109=1,dati_bdv!$C$2:$C$65536,IF(dati_pdc!$C1109=2,dati_bdv!$D$2:$D$65536,IF(dati_pdc!$C1109=3,dati_bdv!$E$2:$E$65536,IF(dati_pdc!$C1109=4,dati_bdv!$F$2:$F$65536,IF(dati_pdc!$C1109=5,dati_bdv!$G$2:$G$65536,dati_bdv!$H$2:$H$65536))))),$A1109,dati_bdv!K$2:K$65536)","v":0},{"$f":"SUMIF(IF(dati_pdc!$C1109=1,dati_bdv!$C$2:$C$65536,IF(dati_pdc!$C1109=2,dati_bdv!$D$2:$D$65536,IF(dati_pdc!$C1109=3,dati_bdv!$E$2:$E$65536,IF(dati_pdc!$C1109=4,dati_bdv!$F$2:$F$65536,IF(dati_pdc!$C1109=5,dati_bdv!$G$2:$G$65536,dati_bdv!$H$2:$H$65536))))),$A1109,dati_bdv!L$2:L$65536)","v":0},{"$f":"SUMIF(IF(dati_pdc!$C1109=1,dati_bdv!$C$2:$C$65536,IF(dati_pdc!$C1109=2,dati_bdv!$D$2:$D$65536,IF(dati_pdc!$C1109=3,dati_bdv!$E$2:$E$65536,IF(dati_pdc!$C1109=4,dati_bdv!$F$2:$F$65536,IF(dati_pdc!$C1109=5,dati_bdv!$G$2:$G$65536,dati_bdv!$H$2:$H$65536))))),$A1109,dati_bdv!M$2:M$65536)","v":0},{"$f":"SUMIF(IF(dati_pdc!$C1109=1,dati_bdv!$C$2:$C$65536,IF(dati_pdc!$C1109=2,dati_bdv!$D$2:$D$65536,IF(dati_pdc!$C1109=3,dati_bdv!$E$2:$E$65536,IF(dati_pdc!$C1109=4,dati_bdv!$F$2:$F$65536,IF(dati_pdc!$C1109=5,dati_bdv!$G$2:$G$65536,dati_bdv!$H$2:$H$65536))))),$A1109,dati_bdv!N$2:N$65536)","v":0}]
[{"$f":"dati_pdc!A1110","v":0},{"$f":"SUMIF(IF(dati_pdc!$C1110=1,dati_bdv!$C$2:$C$65536,IF(dati_pdc!$C1110=2,dati_bdv!$D$2:$D$65536,IF(dati_pdc!$C1110=3,dati_bdv!$E$2:$E$65536,IF(dati_pdc!$C1110=4,dati_bdv!$F$2:$F$65536,IF(dati_pdc!$C1110=5,dati_bdv!$G$2:$G$65536,dati_bdv!$H$2:$H$65536))))),$A1110,dati_bdv!J$2:J$65536)","v":0},{"$f":"SUMIF(IF(dati_pdc!$C1110=1,dati_bdv!$C$2:$C$65536,IF(dati_pdc!$C1110=2,dati_bdv!$D$2:$D$65536,IF(dati_pdc!$C1110=3,dati_bdv!$E$2:$E$65536,IF(dati_pdc!$C1110=4,dati_bdv!$F$2:$F$65536,IF(dati_pdc!$C1110=5,dati_bdv!$G$2:$G$65536,dati_bdv!$H$2:$H$65536))))),$A1110,dati_bdv!K$2:K$65536)","v":0},{"$f":"SUMIF(IF(dati_pdc!$C1110=1,dati_bdv!$C$2:$C$65536,IF(dati_pdc!$C1110=2,dati_bdv!$D$2:$D$65536,IF(dati_pdc!$C1110=3,dati_bdv!$E$2:$E$65536,IF(dati_pdc!$C1110=4,dati_bdv!$F$2:$F$65536,IF(dati_pdc!$C1110=5,dati_bdv!$G$2:$G$65536,dati_bdv!$H$2:$H$65536))))),$A1110,dati_bdv!L$2:L$65536)","v":0},{"$f":"SUMIF(IF(dati_pdc!$C1110=1,dati_bdv!$C$2:$C$65536,IF(dati_pdc!$C1110=2,dati_bdv!$D$2:$D$65536,IF(dati_pdc!$C1110=3,dati_bdv!$E$2:$E$65536,IF(dati_pdc!$C1110=4,dati_bdv!$F$2:$F$65536,IF(dati_pdc!$C1110=5,dati_bdv!$G$2:$G$65536,dati_bdv!$H$2:$H$65536))))),$A1110,dati_bdv!M$2:M$65536)","v":0},{"$f":"SUMIF(IF(dati_pdc!$C1110=1,dati_bdv!$C$2:$C$65536,IF(dati_pdc!$C1110=2,dati_bdv!$D$2:$D$65536,IF(dati_pdc!$C1110=3,dati_bdv!$E$2:$E$65536,IF(dati_pdc!$C1110=4,dati_bdv!$F$2:$F$65536,IF(dati_pdc!$C1110=5,dati_bdv!$G$2:$G$65536,dati_bdv!$H$2:$H$65536))))),$A1110,dati_bdv!N$2:N$65536)","v":0}]
[{"$f":"dati_pdc!A1111","v":0},{"$f":"SUMIF(IF(dati_pdc!$C1111=1,dati_bdv!$C$2:$C$65536,IF(dati_pdc!$C1111=2,dati_bdv!$D$2:$D$65536,IF(dati_pdc!$C1111=3,dati_bdv!$E$2:$E$65536,IF(dati_pdc!$C1111=4,dati_bdv!$F$2:$F$65536,IF(dati_pdc!$C1111=5,dati_bdv!$G$2:$G$65536,dati_bdv!$H$2:$H$65536))))),$A1111,dati_bdv!J$2:J$65536)","v":0},{"$f":"SUMIF(IF(dati_pdc!$C1111=1,dati_bdv!$C$2:$C$65536,IF(dati_pdc!$C1111=2,dati_bdv!$D$2:$D$65536,IF(dati_pdc!$C1111=3,dati_bdv!$E$2:$E$65536,IF(dati_pdc!$C1111=4,dati_bdv!$F$2:$F$65536,IF(dati_pdc!$C1111=5,dati_bdv!$G$2:$G$65536,dati_bdv!$H$2:$H$65536))))),$A1111,dati_bdv!K$2:K$65536)","v":0},{"$f":"SUMIF(IF(dati_pdc!$C1111=1,dati_bdv!$C$2:$C$65536,IF(dati_pdc!$C1111=2,dati_bdv!$D$2:$D$65536,IF(dati_pdc!$C1111=3,dati_bdv!$E$2:$E$65536,IF(dati_pdc!$C1111=4,dati_bdv!$F$2:$F$65536,IF(dati_pdc!$C1111=5,dati_bdv!$G$2:$G$65536,dati_bdv!$H$2:$H$65536))))),$A1111,dati_bdv!L$2:L$65536)","v":0},{"$f":"SUMIF(IF(dati_pdc!$C1111=1,dati_bdv!$C$2:$C$65536,IF(dati_pdc!$C1111=2,dati_bdv!$D$2:$D$65536,IF(dati_pdc!$C1111=3,dati_bdv!$E$2:$E$65536,IF(dati_pdc!$C1111=4,dati_bdv!$F$2:$F$65536,IF(dati_pdc!$C1111=5,dati_bdv!$G$2:$G$65536,dati_bdv!$H$2:$H$65536))))),$A1111,dati_bdv!M$2:M$65536)","v":0},{"$f":"SUMIF(IF(dati_pdc!$C1111=1,dati_bdv!$C$2:$C$65536,IF(dati_pdc!$C1111=2,dati_bdv!$D$2:$D$65536,IF(dati_pdc!$C1111=3,dati_bdv!$E$2:$E$65536,IF(dati_pdc!$C1111=4,dati_bdv!$F$2:$F$65536,IF(dati_pdc!$C1111=5,dati_bdv!$G$2:$G$65536,dati_bdv!$H$2:$H$65536))))),$A1111,dati_bdv!N$2:N$65536)","v":0}]
[{"$f":"dati_pdc!A1112","v":0},{"$f":"SUMIF(IF(dati_pdc!$C1112=1,dati_bdv!$C$2:$C$65536,IF(dati_pdc!$C1112=2,dati_bdv!$D$2:$D$65536,IF(dati_pdc!$C1112=3,dati_bdv!$E$2:$E$65536,IF(dati_pdc!$C1112=4,dati_bdv!$F$2:$F$65536,IF(dati_pdc!$C1112=5,dati_bdv!$G$2:$G$65536,dati_bdv!$H$2:$H$65536))))),$A1112,dati_bdv!J$2:J$65536)","v":0},{"$f":"SUMIF(IF(dati_pdc!$C1112=1,dati_bdv!$C$2:$C$65536,IF(dati_pdc!$C1112=2,dati_bdv!$D$2:$D$65536,IF(dati_pdc!$C1112=3,dati_bdv!$E$2:$E$65536,IF(dati_pdc!$C1112=4,dati_bdv!$F$2:$F$65536,IF(dati_pdc!$C1112=5,dati_bdv!$G$2:$G$65536,dati_bdv!$H$2:$H$65536))))),$A1112,dati_bdv!K$2:K$65536)","v":0},{"$f":"SUMIF(IF(dati_pdc!$C1112=1,dati_bdv!$C$2:$C$65536,IF(dati_pdc!$C1112=2,dati_bdv!$D$2:$D$65536,IF(dati_pdc!$C1112=3,dati_bdv!$E$2:$E$65536,IF(dati_pdc!$C1112=4,dati_bdv!$F$2:$F$65536,IF(dati_pdc!$C1112=5,dati_bdv!$G$2:$G$65536,dati_bdv!$H$2:$H$65536))))),$A1112,dati_bdv!L$2:L$65536)","v":0},{"$f":"SUMIF(IF(dati_pdc!$C1112=1,dati_bdv!$C$2:$C$65536,IF(dati_pdc!$C1112=2,dati_bdv!$D$2:$D$65536,IF(dati_pdc!$C1112=3,dati_bdv!$E$2:$E$65536,IF(dati_pdc!$C1112=4,dati_bdv!$F$2:$F$65536,IF(dati_pdc!$C1112=5,dati_bdv!$G$2:$G$65536,dati_bdv!$H$2:$H$65536))))),$A1112,dati_bdv!M$2:M$65536)","v":0},{"$f":"SUMIF(IF(dati_pdc!$C1112=1,dati_bdv!$C$2:$C$65536,IF(dati_pdc!$C1112=2,dati_bdv!$D$2:$D$65536,IF(dati_pdc!$C1112=3,dati_bdv!$E$2:$E$65536,IF(dati_pdc!$C1112=4,dati_bdv!$F$2:$F$65536,IF(dati_pdc!$C1112=5,dati_bdv!$G$2:$G$65536,dati_bdv!$H$2:$H$65536))))),$A1112,dati_bdv!N$2:N$65536)","v":0}]
[{"$f":"dati_pdc!A1113","v":0},{"$f":"SUMIF(IF(dati_pdc!$C1113=1,dati_bdv!$C$2:$C$65536,IF(dati_pdc!$C1113=2,dati_bdv!$D$2:$D$65536,IF(dati_pdc!$C1113=3,dati_bdv!$E$2:$E$65536,IF(dati_pdc!$C1113=4,dati_bdv!$F$2:$F$65536,IF(dati_pdc!$C1113=5,dati_bdv!$G$2:$G$65536,dati_bdv!$H$2:$H$65536))))),$A1113,dati_bdv!J$2:J$65536)","v":0},{"$f":"SUMIF(IF(dati_pdc!$C1113=1,dati_bdv!$C$2:$C$65536,IF(dati_pdc!$C1113=2,dati_bdv!$D$2:$D$65536,IF(dati_pdc!$C1113=3,dati_bdv!$E$2:$E$65536,IF(dati_pdc!$C1113=4,dati_bdv!$F$2:$F$65536,IF(dati_pdc!$C1113=5,dati_bdv!$G$2:$G$65536,dati_bdv!$H$2:$H$65536))))),$A1113,dati_bdv!K$2:K$65536)","v":0},{"$f":"SUMIF(IF(dati_pdc!$C1113=1,dati_bdv!$C$2:$C$65536,IF(dati_pdc!$C1113=2,dati_bdv!$D$2:$D$65536,IF(dati_pdc!$C1113=3,dati_bdv!$E$2:$E$65536,IF(dati_pdc!$C1113=4,dati_bdv!$F$2:$F$65536,IF(dati_pdc!$C1113=5,dati_bdv!$G$2:$G$65536,dati_bdv!$H$2:$H$65536))))),$A1113,dati_bdv!L$2:L$65536)","v":0},{"$f":"SUMIF(IF(dati_pdc!$C1113=1,dati_bdv!$C$2:$C$65536,IF(dati_pdc!$C1113=2,dati_bdv!$D$2:$D$65536,IF(dati_pdc!$C1113=3,dati_bdv!$E$2:$E$65536,IF(dati_pdc!$C1113=4,dati_bdv!$F$2:$F$65536,IF(dati_pdc!$C1113=5,dati_bdv!$G$2:$G$65536,dati_bdv!$H$2:$H$65536))))),$A1113,dati_bdv!M$2:M$65536)","v":0},{"$f":"SUMIF(IF(dati_pdc!$C1113=1,dati_bdv!$C$2:$C$65536,IF(dati_pdc!$C1113=2,dati_bdv!$D$2:$D$65536,IF(dati_pdc!$C1113=3,dati_bdv!$E$2:$E$65536,IF(dati_pdc!$C1113=4,dati_bdv!$F$2:$F$65536,IF(dati_pdc!$C1113=5,dati_bdv!$G$2:$G$65536,dati_bdv!$H$2:$H$65536))))),$A1113,dati_bdv!N$2:N$65536)","v":0}]
[{"$f":"dati_pdc!A1114","v":0},{"$f":"SUMIF(IF(dati_pdc!$C1114=1,dati_bdv!$C$2:$C$65536,IF(dati_pdc!$C1114=2,dati_bdv!$D$2:$D$65536,IF(dati_pdc!$C1114=3,dati_bdv!$E$2:$E$65536,IF(dati_pdc!$C1114=4,dati_bdv!$F$2:$F$65536,IF(dati_pdc!$C1114=5,dati_bdv!$G$2:$G$65536,dati_bdv!$H$2:$H$65536))))),$A1114,dati_bdv!J$2:J$65536)","v":0},{"$f":"SUMIF(IF(dati_pdc!$C1114=1,dati_bdv!$C$2:$C$65536,IF(dati_pdc!$C1114=2,dati_bdv!$D$2:$D$65536,IF(dati_pdc!$C1114=3,dati_bdv!$E$2:$E$65536,IF(dati_pdc!$C1114=4,dati_bdv!$F$2:$F$65536,IF(dati_pdc!$C1114=5,dati_bdv!$G$2:$G$65536,dati_bdv!$H$2:$H$65536))))),$A1114,dati_bdv!K$2:K$65536)","v":0},{"$f":"SUMIF(IF(dati_pdc!$C1114=1,dati_bdv!$C$2:$C$65536,IF(dati_pdc!$C1114=2,dati_bdv!$D$2:$D$65536,IF(dati_pdc!$C1114=3,dati_bdv!$E$2:$E$65536,IF(dati_pdc!$C1114=4,dati_bdv!$F$2:$F$65536,IF(dati_pdc!$C1114=5,dati_bdv!$G$2:$G$65536,dati_bdv!$H$2:$H$65536))))),$A1114,dati_bdv!L$2:L$65536)","v":0},{"$f":"SUMIF(IF(dati_pdc!$C1114=1,dati_bdv!$C$2:$C$65536,IF(dati_pdc!$C1114=2,dati_bdv!$D$2:$D$65536,IF(dati_pdc!$C1114=3,dati_bdv!$E$2:$E$65536,IF(dati_pdc!$C1114=4,dati_bdv!$F$2:$F$65536,IF(dati_pdc!$C1114=5,dati_bdv!$G$2:$G$65536,dati_bdv!$H$2:$H$65536))))),$A1114,dati_bdv!M$2:M$65536)","v":0},{"$f":"SUMIF(IF(dati_pdc!$C1114=1,dati_bdv!$C$2:$C$65536,IF(dati_pdc!$C1114=2,dati_bdv!$D$2:$D$65536,IF(dati_pdc!$C1114=3,dati_bdv!$E$2:$E$65536,IF(dati_pdc!$C1114=4,dati_bdv!$F$2:$F$65536,IF(dati_pdc!$C1114=5,dati_bdv!$G$2:$G$65536,dati_bdv!$H$2:$H$65536))))),$A1114,dati_bdv!N$2:N$65536)","v":0}]
[{"$f":"dati_pdc!A1115","v":0},{"$f":"SUMIF(IF(dati_pdc!$C1115=1,dati_bdv!$C$2:$C$65536,IF(dati_pdc!$C1115=2,dati_bdv!$D$2:$D$65536,IF(dati_pdc!$C1115=3,dati_bdv!$E$2:$E$65536,IF(dati_pdc!$C1115=4,dati_bdv!$F$2:$F$65536,IF(dati_pdc!$C1115=5,dati_bdv!$G$2:$G$65536,dati_bdv!$H$2:$H$65536))))),$A1115,dati_bdv!J$2:J$65536)","v":0},{"$f":"SUMIF(IF(dati_pdc!$C1115=1,dati_bdv!$C$2:$C$65536,IF(dati_pdc!$C1115=2,dati_bdv!$D$2:$D$65536,IF(dati_pdc!$C1115=3,dati_bdv!$E$2:$E$65536,IF(dati_pdc!$C1115=4,dati_bdv!$F$2:$F$65536,IF(dati_pdc!$C1115=5,dati_bdv!$G$2:$G$65536,dati_bdv!$H$2:$H$65536))))),$A1115,dati_bdv!K$2:K$65536)","v":0},{"$f":"SUMIF(IF(dati_pdc!$C1115=1,dati_bdv!$C$2:$C$65536,IF(dati_pdc!$C1115=2,dati_bdv!$D$2:$D$65536,IF(dati_pdc!$C1115=3,dati_bdv!$E$2:$E$65536,IF(dati_pdc!$C1115=4,dati_bdv!$F$2:$F$65536,IF(dati_pdc!$C1115=5,dati_bdv!$G$2:$G$65536,dati_bdv!$H$2:$H$65536))))),$A1115,dati_bdv!L$2:L$65536)","v":0},{"$f":"SUMIF(IF(dati_pdc!$C1115=1,dati_bdv!$C$2:$C$65536,IF(dati_pdc!$C1115=2,dati_bdv!$D$2:$D$65536,IF(dati_pdc!$C1115=3,dati_bdv!$E$2:$E$65536,IF(dati_pdc!$C1115=4,dati_bdv!$F$2:$F$65536,IF(dati_pdc!$C1115=5,dati_bdv!$G$2:$G$65536,dati_bdv!$H$2:$H$65536))))),$A1115,dati_bdv!M$2:M$65536)","v":0},{"$f":"SUMIF(IF(dati_pdc!$C1115=1,dati_bdv!$C$2:$C$65536,IF(dati_pdc!$C1115=2,dati_bdv!$D$2:$D$65536,IF(dati_pdc!$C1115=3,dati_bdv!$E$2:$E$65536,IF(dati_pdc!$C1115=4,dati_bdv!$F$2:$F$65536,IF(dati_pdc!$C1115=5,dati_bdv!$G$2:$G$65536,dati_bdv!$H$2:$H$65536))))),$A1115,dati_bdv!N$2:N$65536)","v":0}]
[{"$f":"dati_pdc!A1116","v":0},{"$f":"SUMIF(IF(dati_pdc!$C1116=1,dati_bdv!$C$2:$C$65536,IF(dati_pdc!$C1116=2,dati_bdv!$D$2:$D$65536,IF(dati_pdc!$C1116=3,dati_bdv!$E$2:$E$65536,IF(dati_pdc!$C1116=4,dati_bdv!$F$2:$F$65536,IF(dati_pdc!$C1116=5,dati_bdv!$G$2:$G$65536,dati_bdv!$H$2:$H$65536))))),$A1116,dati_bdv!J$2:J$65536)","v":0},{"$f":"SUMIF(IF(dati_pdc!$C1116=1,dati_bdv!$C$2:$C$65536,IF(dati_pdc!$C1116=2,dati_bdv!$D$2:$D$65536,IF(dati_pdc!$C1116=3,dati_bdv!$E$2:$E$65536,IF(dati_pdc!$C1116=4,dati_bdv!$F$2:$F$65536,IF(dati_pdc!$C1116=5,dati_bdv!$G$2:$G$65536,dati_bdv!$H$2:$H$65536))))),$A1116,dati_bdv!K$2:K$65536)","v":0},{"$f":"SUMIF(IF(dati_pdc!$C1116=1,dati_bdv!$C$2:$C$65536,IF(dati_pdc!$C1116=2,dati_bdv!$D$2:$D$65536,IF(dati_pdc!$C1116=3,dati_bdv!$E$2:$E$65536,IF(dati_pdc!$C1116=4,dati_bdv!$F$2:$F$65536,IF(dati_pdc!$C1116=5,dati_bdv!$G$2:$G$65536,dati_bdv!$H$2:$H$65536))))),$A1116,dati_bdv!L$2:L$65536)","v":0},{"$f":"SUMIF(IF(dati_pdc!$C1116=1,dati_bdv!$C$2:$C$65536,IF(dati_pdc!$C1116=2,dati_bdv!$D$2:$D$65536,IF(dati_pdc!$C1116=3,dati_bdv!$E$2:$E$65536,IF(dati_pdc!$C1116=4,dati_bdv!$F$2:$F$65536,IF(dati_pdc!$C1116=5,dati_bdv!$G$2:$G$65536,dati_bdv!$H$2:$H$65536))))),$A1116,dati_bdv!M$2:M$65536)","v":0},{"$f":"SUMIF(IF(dati_pdc!$C1116=1,dati_bdv!$C$2:$C$65536,IF(dati_pdc!$C1116=2,dati_bdv!$D$2:$D$65536,IF(dati_pdc!$C1116=3,dati_bdv!$E$2:$E$65536,IF(dati_pdc!$C1116=4,dati_bdv!$F$2:$F$65536,IF(dati_pdc!$C1116=5,dati_bdv!$G$2:$G$65536,dati_bdv!$H$2:$H$65536))))),$A1116,dati_bdv!N$2:N$65536)","v":0}]
[{"$f":"dati_pdc!A1117","v":0},{"$f":"SUMIF(IF(dati_pdc!$C1117=1,dati_bdv!$C$2:$C$65536,IF(dati_pdc!$C1117=2,dati_bdv!$D$2:$D$65536,IF(dati_pdc!$C1117=3,dati_bdv!$E$2:$E$65536,IF(dati_pdc!$C1117=4,dati_bdv!$F$2:$F$65536,IF(dati_pdc!$C1117=5,dati_bdv!$G$2:$G$65536,dati_bdv!$H$2:$H$65536))))),$A1117,dati_bdv!J$2:J$65536)","v":0},{"$f":"SUMIF(IF(dati_pdc!$C1117=1,dati_bdv!$C$2:$C$65536,IF(dati_pdc!$C1117=2,dati_bdv!$D$2:$D$65536,IF(dati_pdc!$C1117=3,dati_bdv!$E$2:$E$65536,IF(dati_pdc!$C1117=4,dati_bdv!$F$2:$F$65536,IF(dati_pdc!$C1117=5,dati_bdv!$G$2:$G$65536,dati_bdv!$H$2:$H$65536))))),$A1117,dati_bdv!K$2:K$65536)","v":0},{"$f":"SUMIF(IF(dati_pdc!$C1117=1,dati_bdv!$C$2:$C$65536,IF(dati_pdc!$C1117=2,dati_bdv!$D$2:$D$65536,IF(dati_pdc!$C1117=3,dati_bdv!$E$2:$E$65536,IF(dati_pdc!$C1117=4,dati_bdv!$F$2:$F$65536,IF(dati_pdc!$C1117=5,dati_bdv!$G$2:$G$65536,dati_bdv!$H$2:$H$65536))))),$A1117,dati_bdv!L$2:L$65536)","v":0},{"$f":"SUMIF(IF(dati_pdc!$C1117=1,dati_bdv!$C$2:$C$65536,IF(dati_pdc!$C1117=2,dati_bdv!$D$2:$D$65536,IF(dati_pdc!$C1117=3,dati_bdv!$E$2:$E$65536,IF(dati_pdc!$C1117=4,dati_bdv!$F$2:$F$65536,IF(dati_pdc!$C1117=5,dati_bdv!$G$2:$G$65536,dati_bdv!$H$2:$H$65536))))),$A1117,dati_bdv!M$2:M$65536)","v":0},{"$f":"SUMIF(IF(dati_pdc!$C1117=1,dati_bdv!$C$2:$C$65536,IF(dati_pdc!$C1117=2,dati_bdv!$D$2:$D$65536,IF(dati_pdc!$C1117=3,dati_bdv!$E$2:$E$65536,IF(dati_pdc!$C1117=4,dati_bdv!$F$2:$F$65536,IF(dati_pdc!$C1117=5,dati_bdv!$G$2:$G$65536,dati_bdv!$H$2:$H$65536))))),$A1117,dati_bdv!N$2:N$65536)","v":0}]
[{"$f":"dati_pdc!A1118","v":0},{"$f":"SUMIF(IF(dati_pdc!$C1118=1,dati_bdv!$C$2:$C$65536,IF(dati_pdc!$C1118=2,dati_bdv!$D$2:$D$65536,IF(dati_pdc!$C1118=3,dati_bdv!$E$2:$E$65536,IF(dati_pdc!$C1118=4,dati_bdv!$F$2:$F$65536,IF(dati_pdc!$C1118=5,dati_bdv!$G$2:$G$65536,dati_bdv!$H$2:$H$65536))))),$A1118,dati_bdv!J$2:J$65536)","v":0},{"$f":"SUMIF(IF(dati_pdc!$C1118=1,dati_bdv!$C$2:$C$65536,IF(dati_pdc!$C1118=2,dati_bdv!$D$2:$D$65536,IF(dati_pdc!$C1118=3,dati_bdv!$E$2:$E$65536,IF(dati_pdc!$C1118=4,dati_bdv!$F$2:$F$65536,IF(dati_pdc!$C1118=5,dati_bdv!$G$2:$G$65536,dati_bdv!$H$2:$H$65536))))),$A1118,dati_bdv!K$2:K$65536)","v":0},{"$f":"SUMIF(IF(dati_pdc!$C1118=1,dati_bdv!$C$2:$C$65536,IF(dati_pdc!$C1118=2,dati_bdv!$D$2:$D$65536,IF(dati_pdc!$C1118=3,dati_bdv!$E$2:$E$65536,IF(dati_pdc!$C1118=4,dati_bdv!$F$2:$F$65536,IF(dati_pdc!$C1118=5,dati_bdv!$G$2:$G$65536,dati_bdv!$H$2:$H$65536))))),$A1118,dati_bdv!L$2:L$65536)","v":0},{"$f":"SUMIF(IF(dati_pdc!$C1118=1,dati_bdv!$C$2:$C$65536,IF(dati_pdc!$C1118=2,dati_bdv!$D$2:$D$65536,IF(dati_pdc!$C1118=3,dati_bdv!$E$2:$E$65536,IF(dati_pdc!$C1118=4,dati_bdv!$F$2:$F$65536,IF(dati_pdc!$C1118=5,dati_bdv!$G$2:$G$65536,dati_bdv!$H$2:$H$65536))))),$A1118,dati_bdv!M$2:M$65536)","v":0},{"$f":"SUMIF(IF(dati_pdc!$C1118=1,dati_bdv!$C$2:$C$65536,IF(dati_pdc!$C1118=2,dati_bdv!$D$2:$D$65536,IF(dati_pdc!$C1118=3,dati_bdv!$E$2:$E$65536,IF(dati_pdc!$C1118=4,dati_bdv!$F$2:$F$65536,IF(dati_pdc!$C1118=5,dati_bdv!$G$2:$G$65536,dati_bdv!$H$2:$H$65536))))),$A1118,dati_bdv!N$2:N$65536)","v":0}]
[{"$f":"dati_pdc!A1119","v":0},{"$f":"SUMIF(IF(dati_pdc!$C1119=1,dati_bdv!$C$2:$C$65536,IF(dati_pdc!$C1119=2,dati_bdv!$D$2:$D$65536,IF(dati_pdc!$C1119=3,dati_bdv!$E$2:$E$65536,IF(dati_pdc!$C1119=4,dati_bdv!$F$2:$F$65536,IF(dati_pdc!$C1119=5,dati_bdv!$G$2:$G$65536,dati_bdv!$H$2:$H$65536))))),$A1119,dati_bdv!J$2:J$65536)","v":0},{"$f":"SUMIF(IF(dati_pdc!$C1119=1,dati_bdv!$C$2:$C$65536,IF(dati_pdc!$C1119=2,dati_bdv!$D$2:$D$65536,IF(dati_pdc!$C1119=3,dati_bdv!$E$2:$E$65536,IF(dati_pdc!$C1119=4,dati_bdv!$F$2:$F$65536,IF(dati_pdc!$C1119=5,dati_bdv!$G$2:$G$65536,dati_bdv!$H$2:$H$65536))))),$A1119,dati_bdv!K$2:K$65536)","v":0},{"$f":"SUMIF(IF(dati_pdc!$C1119=1,dati_bdv!$C$2:$C$65536,IF(dati_pdc!$C1119=2,dati_bdv!$D$2:$D$65536,IF(dati_pdc!$C1119=3,dati_bdv!$E$2:$E$65536,IF(dati_pdc!$C1119=4,dati_bdv!$F$2:$F$65536,IF(dati_pdc!$C1119=5,dati_bdv!$G$2:$G$65536,dati_bdv!$H$2:$H$65536))))),$A1119,dati_bdv!L$2:L$65536)","v":0},{"$f":"SUMIF(IF(dati_pdc!$C1119=1,dati_bdv!$C$2:$C$65536,IF(dati_pdc!$C1119=2,dati_bdv!$D$2:$D$65536,IF(dati_pdc!$C1119=3,dati_bdv!$E$2:$E$65536,IF(dati_pdc!$C1119=4,dati_bdv!$F$2:$F$65536,IF(dati_pdc!$C1119=5,dati_bdv!$G$2:$G$65536,dati_bdv!$H$2:$H$65536))))),$A1119,dati_bdv!M$2:M$65536)","v":0},{"$f":"SUMIF(IF(dati_pdc!$C1119=1,dati_bdv!$C$2:$C$65536,IF(dati_pdc!$C1119=2,dati_bdv!$D$2:$D$65536,IF(dati_pdc!$C1119=3,dati_bdv!$E$2:$E$65536,IF(dati_pdc!$C1119=4,dati_bdv!$F$2:$F$65536,IF(dati_pdc!$C1119=5,dati_bdv!$G$2:$G$65536,dati_bdv!$H$2:$H$65536))))),$A1119,dati_bdv!N$2:N$65536)","v":0}]
[{"$f":"dati_pdc!A1120","v":0},{"$f":"SUMIF(IF(dati_pdc!$C1120=1,dati_bdv!$C$2:$C$65536,IF(dati_pdc!$C1120=2,dati_bdv!$D$2:$D$65536,IF(dati_pdc!$C1120=3,dati_bdv!$E$2:$E$65536,IF(dati_pdc!$C1120=4,dati_bdv!$F$2:$F$65536,IF(dati_pdc!$C1120=5,dati_bdv!$G$2:$G$65536,dati_bdv!$H$2:$H$65536))))),$A1120,dati_bdv!J$2:J$65536)","v":0},{"$f":"SUMIF(IF(dati_pdc!$C1120=1,dati_bdv!$C$2:$C$65536,IF(dati_pdc!$C1120=2,dati_bdv!$D$2:$D$65536,IF(dati_pdc!$C1120=3,dati_bdv!$E$2:$E$65536,IF(dati_pdc!$C1120=4,dati_bdv!$F$2:$F$65536,IF(dati_pdc!$C1120=5,dati_bdv!$G$2:$G$65536,dati_bdv!$H$2:$H$65536))))),$A1120,dati_bdv!K$2:K$65536)","v":0},{"$f":"SUMIF(IF(dati_pdc!$C1120=1,dati_bdv!$C$2:$C$65536,IF(dati_pdc!$C1120=2,dati_bdv!$D$2:$D$65536,IF(dati_pdc!$C1120=3,dati_bdv!$E$2:$E$65536,IF(dati_pdc!$C1120=4,dati_bdv!$F$2:$F$65536,IF(dati_pdc!$C1120=5,dati_bdv!$G$2:$G$65536,dati_bdv!$H$2:$H$65536))))),$A1120,dati_bdv!L$2:L$65536)","v":0},{"$f":"SUMIF(IF(dati_pdc!$C1120=1,dati_bdv!$C$2:$C$65536,IF(dati_pdc!$C1120=2,dati_bdv!$D$2:$D$65536,IF(dati_pdc!$C1120=3,dati_bdv!$E$2:$E$65536,IF(dati_pdc!$C1120=4,dati_bdv!$F$2:$F$65536,IF(dati_pdc!$C1120=5,dati_bdv!$G$2:$G$65536,dati_bdv!$H$2:$H$65536))))),$A1120,dati_bdv!M$2:M$65536)","v":0},{"$f":"SUMIF(IF(dati_pdc!$C1120=1,dati_bdv!$C$2:$C$65536,IF(dati_pdc!$C1120=2,dati_bdv!$D$2:$D$65536,IF(dati_pdc!$C1120=3,dati_bdv!$E$2:$E$65536,IF(dati_pdc!$C1120=4,dati_bdv!$F$2:$F$65536,IF(dati_pdc!$C1120=5,dati_bdv!$G$2:$G$65536,dati_bdv!$H$2:$H$65536))))),$A1120,dati_bdv!N$2:N$65536)","v":0}]
[{"$f":"dati_pdc!A1121","v":0},{"$f":"SUMIF(IF(dati_pdc!$C1121=1,dati_bdv!$C$2:$C$65536,IF(dati_pdc!$C1121=2,dati_bdv!$D$2:$D$65536,IF(dati_pdc!$C1121=3,dati_bdv!$E$2:$E$65536,IF(dati_pdc!$C1121=4,dati_bdv!$F$2:$F$65536,IF(dati_pdc!$C1121=5,dati_bdv!$G$2:$G$65536,dati_bdv!$H$2:$H$65536))))),$A1121,dati_bdv!J$2:J$65536)","v":0},{"$f":"SUMIF(IF(dati_pdc!$C1121=1,dati_bdv!$C$2:$C$65536,IF(dati_pdc!$C1121=2,dati_bdv!$D$2:$D$65536,IF(dati_pdc!$C1121=3,dati_bdv!$E$2:$E$65536,IF(dati_pdc!$C1121=4,dati_bdv!$F$2:$F$65536,IF(dati_pdc!$C1121=5,dati_bdv!$G$2:$G$65536,dati_bdv!$H$2:$H$65536))))),$A1121,dati_bdv!K$2:K$65536)","v":0},{"$f":"SUMIF(IF(dati_pdc!$C1121=1,dati_bdv!$C$2:$C$65536,IF(dati_pdc!$C1121=2,dati_bdv!$D$2:$D$65536,IF(dati_pdc!$C1121=3,dati_bdv!$E$2:$E$65536,IF(dati_pdc!$C1121=4,dati_bdv!$F$2:$F$65536,IF(dati_pdc!$C1121=5,dati_bdv!$G$2:$G$65536,dati_bdv!$H$2:$H$65536))))),$A1121,dati_bdv!L$2:L$65536)","v":0},{"$f":"SUMIF(IF(dati_pdc!$C1121=1,dati_bdv!$C$2:$C$65536,IF(dati_pdc!$C1121=2,dati_bdv!$D$2:$D$65536,IF(dati_pdc!$C1121=3,dati_bdv!$E$2:$E$65536,IF(dati_pdc!$C1121=4,dati_bdv!$F$2:$F$65536,IF(dati_pdc!$C1121=5,dati_bdv!$G$2:$G$65536,dati_bdv!$H$2:$H$65536))))),$A1121,dati_bdv!M$2:M$65536)","v":0},{"$f":"SUMIF(IF(dati_pdc!$C1121=1,dati_bdv!$C$2:$C$65536,IF(dati_pdc!$C1121=2,dati_bdv!$D$2:$D$65536,IF(dati_pdc!$C1121=3,dati_bdv!$E$2:$E$65536,IF(dati_pdc!$C1121=4,dati_bdv!$F$2:$F$65536,IF(dati_pdc!$C1121=5,dati_bdv!$G$2:$G$65536,dati_bdv!$H$2:$H$65536))))),$A1121,dati_bdv!N$2:N$65536)","v":0}]
[{"$f":"dati_pdc!A1122","v":0},{"$f":"SUMIF(IF(dati_pdc!$C1122=1,dati_bdv!$C$2:$C$65536,IF(dati_pdc!$C1122=2,dati_bdv!$D$2:$D$65536,IF(dati_pdc!$C1122=3,dati_bdv!$E$2:$E$65536,IF(dati_pdc!$C1122=4,dati_bdv!$F$2:$F$65536,IF(dati_pdc!$C1122=5,dati_bdv!$G$2:$G$65536,dati_bdv!$H$2:$H$65536))))),$A1122,dati_bdv!J$2:J$65536)","v":0},{"$f":"SUMIF(IF(dati_pdc!$C1122=1,dati_bdv!$C$2:$C$65536,IF(dati_pdc!$C1122=2,dati_bdv!$D$2:$D$65536,IF(dati_pdc!$C1122=3,dati_bdv!$E$2:$E$65536,IF(dati_pdc!$C1122=4,dati_bdv!$F$2:$F$65536,IF(dati_pdc!$C1122=5,dati_bdv!$G$2:$G$65536,dati_bdv!$H$2:$H$65536))))),$A1122,dati_bdv!K$2:K$65536)","v":0},{"$f":"SUMIF(IF(dati_pdc!$C1122=1,dati_bdv!$C$2:$C$65536,IF(dati_pdc!$C1122=2,dati_bdv!$D$2:$D$65536,IF(dati_pdc!$C1122=3,dati_bdv!$E$2:$E$65536,IF(dati_pdc!$C1122=4,dati_bdv!$F$2:$F$65536,IF(dati_pdc!$C1122=5,dati_bdv!$G$2:$G$65536,dati_bdv!$H$2:$H$65536))))),$A1122,dati_bdv!L$2:L$65536)","v":0},{"$f":"SUMIF(IF(dati_pdc!$C1122=1,dati_bdv!$C$2:$C$65536,IF(dati_pdc!$C1122=2,dati_bdv!$D$2:$D$65536,IF(dati_pdc!$C1122=3,dati_bdv!$E$2:$E$65536,IF(dati_pdc!$C1122=4,dati_bdv!$F$2:$F$65536,IF(dati_pdc!$C1122=5,dati_bdv!$G$2:$G$65536,dati_bdv!$H$2:$H$65536))))),$A1122,dati_bdv!M$2:M$65536)","v":0},{"$f":"SUMIF(IF(dati_pdc!$C1122=1,dati_bdv!$C$2:$C$65536,IF(dati_pdc!$C1122=2,dati_bdv!$D$2:$D$65536,IF(dati_pdc!$C1122=3,dati_bdv!$E$2:$E$65536,IF(dati_pdc!$C1122=4,dati_bdv!$F$2:$F$65536,IF(dati_pdc!$C1122=5,dati_bdv!$G$2:$G$65536,dati_bdv!$H$2:$H$65536))))),$A1122,dati_bdv!N$2:N$65536)","v":0}]
[{"$f":"dati_pdc!A1123","v":0},{"$f":"SUMIF(IF(dati_pdc!$C1123=1,dati_bdv!$C$2:$C$65536,IF(dati_pdc!$C1123=2,dati_bdv!$D$2:$D$65536,IF(dati_pdc!$C1123=3,dati_bdv!$E$2:$E$65536,IF(dati_pdc!$C1123=4,dati_bdv!$F$2:$F$65536,IF(dati_pdc!$C1123=5,dati_bdv!$G$2:$G$65536,dati_bdv!$H$2:$H$65536))))),$A1123,dati_bdv!J$2:J$65536)","v":0},{"$f":"SUMIF(IF(dati_pdc!$C1123=1,dati_bdv!$C$2:$C$65536,IF(dati_pdc!$C1123=2,dati_bdv!$D$2:$D$65536,IF(dati_pdc!$C1123=3,dati_bdv!$E$2:$E$65536,IF(dati_pdc!$C1123=4,dati_bdv!$F$2:$F$65536,IF(dati_pdc!$C1123=5,dati_bdv!$G$2:$G$65536,dati_bdv!$H$2:$H$65536))))),$A1123,dati_bdv!K$2:K$65536)","v":0},{"$f":"SUMIF(IF(dati_pdc!$C1123=1,dati_bdv!$C$2:$C$65536,IF(dati_pdc!$C1123=2,dati_bdv!$D$2:$D$65536,IF(dati_pdc!$C1123=3,dati_bdv!$E$2:$E$65536,IF(dati_pdc!$C1123=4,dati_bdv!$F$2:$F$65536,IF(dati_pdc!$C1123=5,dati_bdv!$G$2:$G$65536,dati_bdv!$H$2:$H$65536))))),$A1123,dati_bdv!L$2:L$65536)","v":0},{"$f":"SUMIF(IF(dati_pdc!$C1123=1,dati_bdv!$C$2:$C$65536,IF(dati_pdc!$C1123=2,dati_bdv!$D$2:$D$65536,IF(dati_pdc!$C1123=3,dati_bdv!$E$2:$E$65536,IF(dati_pdc!$C1123=4,dati_bdv!$F$2:$F$65536,IF(dati_pdc!$C1123=5,dati_bdv!$G$2:$G$65536,dati_bdv!$H$2:$H$65536))))),$A1123,dati_bdv!M$2:M$65536)","v":0},{"$f":"SUMIF(IF(dati_pdc!$C1123=1,dati_bdv!$C$2:$C$65536,IF(dati_pdc!$C1123=2,dati_bdv!$D$2:$D$65536,IF(dati_pdc!$C1123=3,dati_bdv!$E$2:$E$65536,IF(dati_pdc!$C1123=4,dati_bdv!$F$2:$F$65536,IF(dati_pdc!$C1123=5,dati_bdv!$G$2:$G$65536,dati_bdv!$H$2:$H$65536))))),$A1123,dati_bdv!N$2:N$65536)","v":0}]
[{"$f":"dati_pdc!A1124","v":0},{"$f":"SUMIF(IF(dati_pdc!$C1124=1,dati_bdv!$C$2:$C$65536,IF(dati_pdc!$C1124=2,dati_bdv!$D$2:$D$65536,IF(dati_pdc!$C1124=3,dati_bdv!$E$2:$E$65536,IF(dati_pdc!$C1124=4,dati_bdv!$F$2:$F$65536,IF(dati_pdc!$C1124=5,dati_bdv!$G$2:$G$65536,dati_bdv!$H$2:$H$65536))))),$A1124,dati_bdv!J$2:J$65536)","v":0},{"$f":"SUMIF(IF(dati_pdc!$C1124=1,dati_bdv!$C$2:$C$65536,IF(dati_pdc!$C1124=2,dati_bdv!$D$2:$D$65536,IF(dati_pdc!$C1124=3,dati_bdv!$E$2:$E$65536,IF(dati_pdc!$C1124=4,dati_bdv!$F$2:$F$65536,IF(dati_pdc!$C1124=5,dati_bdv!$G$2:$G$65536,dati_bdv!$H$2:$H$65536))))),$A1124,dati_bdv!K$2:K$65536)","v":0},{"$f":"SUMIF(IF(dati_pdc!$C1124=1,dati_bdv!$C$2:$C$65536,IF(dati_pdc!$C1124=2,dati_bdv!$D$2:$D$65536,IF(dati_pdc!$C1124=3,dati_bdv!$E$2:$E$65536,IF(dati_pdc!$C1124=4,dati_bdv!$F$2:$F$65536,IF(dati_pdc!$C1124=5,dati_bdv!$G$2:$G$65536,dati_bdv!$H$2:$H$65536))))),$A1124,dati_bdv!L$2:L$65536)","v":0},{"$f":"SUMIF(IF(dati_pdc!$C1124=1,dati_bdv!$C$2:$C$65536,IF(dati_pdc!$C1124=2,dati_bdv!$D$2:$D$65536,IF(dati_pdc!$C1124=3,dati_bdv!$E$2:$E$65536,IF(dati_pdc!$C1124=4,dati_bdv!$F$2:$F$65536,IF(dati_pdc!$C1124=5,dati_bdv!$G$2:$G$65536,dati_bdv!$H$2:$H$65536))))),$A1124,dati_bdv!M$2:M$65536)","v":0},{"$f":"SUMIF(IF(dati_pdc!$C1124=1,dati_bdv!$C$2:$C$65536,IF(dati_pdc!$C1124=2,dati_bdv!$D$2:$D$65536,IF(dati_pdc!$C1124=3,dati_bdv!$E$2:$E$65536,IF(dati_pdc!$C1124=4,dati_bdv!$F$2:$F$65536,IF(dati_pdc!$C1124=5,dati_bdv!$G$2:$G$65536,dati_bdv!$H$2:$H$65536))))),$A1124,dati_bdv!N$2:N$65536)","v":0}]
[{"$f":"dati_pdc!A1125","v":0},{"$f":"SUMIF(IF(dati_pdc!$C1125=1,dati_bdv!$C$2:$C$65536,IF(dati_pdc!$C1125=2,dati_bdv!$D$2:$D$65536,IF(dati_pdc!$C1125=3,dati_bdv!$E$2:$E$65536,IF(dati_pdc!$C1125=4,dati_bdv!$F$2:$F$65536,IF(dati_pdc!$C1125=5,dati_bdv!$G$2:$G$65536,dati_bdv!$H$2:$H$65536))))),$A1125,dati_bdv!J$2:J$65536)","v":0},{"$f":"SUMIF(IF(dati_pdc!$C1125=1,dati_bdv!$C$2:$C$65536,IF(dati_pdc!$C1125=2,dati_bdv!$D$2:$D$65536,IF(dati_pdc!$C1125=3,dati_bdv!$E$2:$E$65536,IF(dati_pdc!$C1125=4,dati_bdv!$F$2:$F$65536,IF(dati_pdc!$C1125=5,dati_bdv!$G$2:$G$65536,dati_bdv!$H$2:$H$65536))))),$A1125,dati_bdv!K$2:K$65536)","v":0},{"$f":"SUMIF(IF(dati_pdc!$C1125=1,dati_bdv!$C$2:$C$65536,IF(dati_pdc!$C1125=2,dati_bdv!$D$2:$D$65536,IF(dati_pdc!$C1125=3,dati_bdv!$E$2:$E$65536,IF(dati_pdc!$C1125=4,dati_bdv!$F$2:$F$65536,IF(dati_pdc!$C1125=5,dati_bdv!$G$2:$G$65536,dati_bdv!$H$2:$H$65536))))),$A1125,dati_bdv!L$2:L$65536)","v":0},{"$f":"SUMIF(IF(dati_pdc!$C1125=1,dati_bdv!$C$2:$C$65536,IF(dati_pdc!$C1125=2,dati_bdv!$D$2:$D$65536,IF(dati_pdc!$C1125=3,dati_bdv!$E$2:$E$65536,IF(dati_pdc!$C1125=4,dati_bdv!$F$2:$F$65536,IF(dati_pdc!$C1125=5,dati_bdv!$G$2:$G$65536,dati_bdv!$H$2:$H$65536))))),$A1125,dati_bdv!M$2:M$65536)","v":0},{"$f":"SUMIF(IF(dati_pdc!$C1125=1,dati_bdv!$C$2:$C$65536,IF(dati_pdc!$C1125=2,dati_bdv!$D$2:$D$65536,IF(dati_pdc!$C1125=3,dati_bdv!$E$2:$E$65536,IF(dati_pdc!$C1125=4,dati_bdv!$F$2:$F$65536,IF(dati_pdc!$C1125=5,dati_bdv!$G$2:$G$65536,dati_bdv!$H$2:$H$65536))))),$A1125,dati_bdv!N$2:N$65536)","v":0}]
[{"$f":"dati_pdc!A1126","v":0},{"$f":"SUMIF(IF(dati_pdc!$C1126=1,dati_bdv!$C$2:$C$65536,IF(dati_pdc!$C1126=2,dati_bdv!$D$2:$D$65536,IF(dati_pdc!$C1126=3,dati_bdv!$E$2:$E$65536,IF(dati_pdc!$C1126=4,dati_bdv!$F$2:$F$65536,IF(dati_pdc!$C1126=5,dati_bdv!$G$2:$G$65536,dati_bdv!$H$2:$H$65536))))),$A1126,dati_bdv!J$2:J$65536)","v":0},{"$f":"SUMIF(IF(dati_pdc!$C1126=1,dati_bdv!$C$2:$C$65536,IF(dati_pdc!$C1126=2,dati_bdv!$D$2:$D$65536,IF(dati_pdc!$C1126=3,dati_bdv!$E$2:$E$65536,IF(dati_pdc!$C1126=4,dati_bdv!$F$2:$F$65536,IF(dati_pdc!$C1126=5,dati_bdv!$G$2:$G$65536,dati_bdv!$H$2:$H$65536))))),$A1126,dati_bdv!K$2:K$65536)","v":0},{"$f":"SUMIF(IF(dati_pdc!$C1126=1,dati_bdv!$C$2:$C$65536,IF(dati_pdc!$C1126=2,dati_bdv!$D$2:$D$65536,IF(dati_pdc!$C1126=3,dati_bdv!$E$2:$E$65536,IF(dati_pdc!$C1126=4,dati_bdv!$F$2:$F$65536,IF(dati_pdc!$C1126=5,dati_bdv!$G$2:$G$65536,dati_bdv!$H$2:$H$65536))))),$A1126,dati_bdv!L$2:L$65536)","v":0},{"$f":"SUMIF(IF(dati_pdc!$C1126=1,dati_bdv!$C$2:$C$65536,IF(dati_pdc!$C1126=2,dati_bdv!$D$2:$D$65536,IF(dati_pdc!$C1126=3,dati_bdv!$E$2:$E$65536,IF(dati_pdc!$C1126=4,dati_bdv!$F$2:$F$65536,IF(dati_pdc!$C1126=5,dati_bdv!$G$2:$G$65536,dati_bdv!$H$2:$H$65536))))),$A1126,dati_bdv!M$2:M$65536)","v":0},{"$f":"SUMIF(IF(dati_pdc!$C1126=1,dati_bdv!$C$2:$C$65536,IF(dati_pdc!$C1126=2,dati_bdv!$D$2:$D$65536,IF(dati_pdc!$C1126=3,dati_bdv!$E$2:$E$65536,IF(dati_pdc!$C1126=4,dati_bdv!$F$2:$F$65536,IF(dati_pdc!$C1126=5,dati_bdv!$G$2:$G$65536,dati_bdv!$H$2:$H$65536))))),$A1126,dati_bdv!N$2:N$65536)","v":0}]
[{"$f":"dati_pdc!A1127","v":0},{"$f":"SUMIF(IF(dati_pdc!$C1127=1,dati_bdv!$C$2:$C$65536,IF(dati_pdc!$C1127=2,dati_bdv!$D$2:$D$65536,IF(dati_pdc!$C1127=3,dati_bdv!$E$2:$E$65536,IF(dati_pdc!$C1127=4,dati_bdv!$F$2:$F$65536,IF(dati_pdc!$C1127=5,dati_bdv!$G$2:$G$65536,dati_bdv!$H$2:$H$65536))))),$A1127,dati_bdv!J$2:J$65536)","v":0},{"$f":"SUMIF(IF(dati_pdc!$C1127=1,dati_bdv!$C$2:$C$65536,IF(dati_pdc!$C1127=2,dati_bdv!$D$2:$D$65536,IF(dati_pdc!$C1127=3,dati_bdv!$E$2:$E$65536,IF(dati_pdc!$C1127=4,dati_bdv!$F$2:$F$65536,IF(dati_pdc!$C1127=5,dati_bdv!$G$2:$G$65536,dati_bdv!$H$2:$H$65536))))),$A1127,dati_bdv!K$2:K$65536)","v":0},{"$f":"SUMIF(IF(dati_pdc!$C1127=1,dati_bdv!$C$2:$C$65536,IF(dati_pdc!$C1127=2,dati_bdv!$D$2:$D$65536,IF(dati_pdc!$C1127=3,dati_bdv!$E$2:$E$65536,IF(dati_pdc!$C1127=4,dati_bdv!$F$2:$F$65536,IF(dati_pdc!$C1127=5,dati_bdv!$G$2:$G$65536,dati_bdv!$H$2:$H$65536))))),$A1127,dati_bdv!L$2:L$65536)","v":0},{"$f":"SUMIF(IF(dati_pdc!$C1127=1,dati_bdv!$C$2:$C$65536,IF(dati_pdc!$C1127=2,dati_bdv!$D$2:$D$65536,IF(dati_pdc!$C1127=3,dati_bdv!$E$2:$E$65536,IF(dati_pdc!$C1127=4,dati_bdv!$F$2:$F$65536,IF(dati_pdc!$C1127=5,dati_bdv!$G$2:$G$65536,dati_bdv!$H$2:$H$65536))))),$A1127,dati_bdv!M$2:M$65536)","v":0},{"$f":"SUMIF(IF(dati_pdc!$C1127=1,dati_bdv!$C$2:$C$65536,IF(dati_pdc!$C1127=2,dati_bdv!$D$2:$D$65536,IF(dati_pdc!$C1127=3,dati_bdv!$E$2:$E$65536,IF(dati_pdc!$C1127=4,dati_bdv!$F$2:$F$65536,IF(dati_pdc!$C1127=5,dati_bdv!$G$2:$G$65536,dati_bdv!$H$2:$H$65536))))),$A1127,dati_bdv!N$2:N$65536)","v":0}]
[{"$f":"dati_pdc!A1128","v":0},{"$f":"SUMIF(IF(dati_pdc!$C1128=1,dati_bdv!$C$2:$C$65536,IF(dati_pdc!$C1128=2,dati_bdv!$D$2:$D$65536,IF(dati_pdc!$C1128=3,dati_bdv!$E$2:$E$65536,IF(dati_pdc!$C1128=4,dati_bdv!$F$2:$F$65536,IF(dati_pdc!$C1128=5,dati_bdv!$G$2:$G$65536,dati_bdv!$H$2:$H$65536))))),$A1128,dati_bdv!J$2:J$65536)","v":0},{"$f":"SUMIF(IF(dati_pdc!$C1128=1,dati_bdv!$C$2:$C$65536,IF(dati_pdc!$C1128=2,dati_bdv!$D$2:$D$65536,IF(dati_pdc!$C1128=3,dati_bdv!$E$2:$E$65536,IF(dati_pdc!$C1128=4,dati_bdv!$F$2:$F$65536,IF(dati_pdc!$C1128=5,dati_bdv!$G$2:$G$65536,dati_bdv!$H$2:$H$65536))))),$A1128,dati_bdv!K$2:K$65536)","v":0},{"$f":"SUMIF(IF(dati_pdc!$C1128=1,dati_bdv!$C$2:$C$65536,IF(dati_pdc!$C1128=2,dati_bdv!$D$2:$D$65536,IF(dati_pdc!$C1128=3,dati_bdv!$E$2:$E$65536,IF(dati_pdc!$C1128=4,dati_bdv!$F$2:$F$65536,IF(dati_pdc!$C1128=5,dati_bdv!$G$2:$G$65536,dati_bdv!$H$2:$H$65536))))),$A1128,dati_bdv!L$2:L$65536)","v":0},{"$f":"SUMIF(IF(dati_pdc!$C1128=1,dati_bdv!$C$2:$C$65536,IF(dati_pdc!$C1128=2,dati_bdv!$D$2:$D$65536,IF(dati_pdc!$C1128=3,dati_bdv!$E$2:$E$65536,IF(dati_pdc!$C1128=4,dati_bdv!$F$2:$F$65536,IF(dati_pdc!$C1128=5,dati_bdv!$G$2:$G$65536,dati_bdv!$H$2:$H$65536))))),$A1128,dati_bdv!M$2:M$65536)","v":0},{"$f":"SUMIF(IF(dati_pdc!$C1128=1,dati_bdv!$C$2:$C$65536,IF(dati_pdc!$C1128=2,dati_bdv!$D$2:$D$65536,IF(dati_pdc!$C1128=3,dati_bdv!$E$2:$E$65536,IF(dati_pdc!$C1128=4,dati_bdv!$F$2:$F$65536,IF(dati_pdc!$C1128=5,dati_bdv!$G$2:$G$65536,dati_bdv!$H$2:$H$65536))))),$A1128,dati_bdv!N$2:N$65536)","v":0}]
[{"$f":"dati_pdc!A1129","v":0},{"$f":"SUMIF(IF(dati_pdc!$C1129=1,dati_bdv!$C$2:$C$65536,IF(dati_pdc!$C1129=2,dati_bdv!$D$2:$D$65536,IF(dati_pdc!$C1129=3,dati_bdv!$E$2:$E$65536,IF(dati_pdc!$C1129=4,dati_bdv!$F$2:$F$65536,IF(dati_pdc!$C1129=5,dati_bdv!$G$2:$G$65536,dati_bdv!$H$2:$H$65536))))),$A1129,dati_bdv!J$2:J$65536)","v":0},{"$f":"SUMIF(IF(dati_pdc!$C1129=1,dati_bdv!$C$2:$C$65536,IF(dati_pdc!$C1129=2,dati_bdv!$D$2:$D$65536,IF(dati_pdc!$C1129=3,dati_bdv!$E$2:$E$65536,IF(dati_pdc!$C1129=4,dati_bdv!$F$2:$F$65536,IF(dati_pdc!$C1129=5,dati_bdv!$G$2:$G$65536,dati_bdv!$H$2:$H$65536))))),$A1129,dati_bdv!K$2:K$65536)","v":0},{"$f":"SUMIF(IF(dati_pdc!$C1129=1,dati_bdv!$C$2:$C$65536,IF(dati_pdc!$C1129=2,dati_bdv!$D$2:$D$65536,IF(dati_pdc!$C1129=3,dati_bdv!$E$2:$E$65536,IF(dati_pdc!$C1129=4,dati_bdv!$F$2:$F$65536,IF(dati_pdc!$C1129=5,dati_bdv!$G$2:$G$65536,dati_bdv!$H$2:$H$65536))))),$A1129,dati_bdv!L$2:L$65536)","v":0},{"$f":"SUMIF(IF(dati_pdc!$C1129=1,dati_bdv!$C$2:$C$65536,IF(dati_pdc!$C1129=2,dati_bdv!$D$2:$D$65536,IF(dati_pdc!$C1129=3,dati_bdv!$E$2:$E$65536,IF(dati_pdc!$C1129=4,dati_bdv!$F$2:$F$65536,IF(dati_pdc!$C1129=5,dati_bdv!$G$2:$G$65536,dati_bdv!$H$2:$H$65536))))),$A1129,dati_bdv!M$2:M$65536)","v":0},{"$f":"SUMIF(IF(dati_pdc!$C1129=1,dati_bdv!$C$2:$C$65536,IF(dati_pdc!$C1129=2,dati_bdv!$D$2:$D$65536,IF(dati_pdc!$C1129=3,dati_bdv!$E$2:$E$65536,IF(dati_pdc!$C1129=4,dati_bdv!$F$2:$F$65536,IF(dati_pdc!$C1129=5,dati_bdv!$G$2:$G$65536,dati_bdv!$H$2:$H$65536))))),$A1129,dati_bdv!N$2:N$65536)","v":0}]
[{"$f":"dati_pdc!A1130","v":0},{"$f":"SUMIF(IF(dati_pdc!$C1130=1,dati_bdv!$C$2:$C$65536,IF(dati_pdc!$C1130=2,dati_bdv!$D$2:$D$65536,IF(dati_pdc!$C1130=3,dati_bdv!$E$2:$E$65536,IF(dati_pdc!$C1130=4,dati_bdv!$F$2:$F$65536,IF(dati_pdc!$C1130=5,dati_bdv!$G$2:$G$65536,dati_bdv!$H$2:$H$65536))))),$A1130,dati_bdv!J$2:J$65536)","v":0},{"$f":"SUMIF(IF(dati_pdc!$C1130=1,dati_bdv!$C$2:$C$65536,IF(dati_pdc!$C1130=2,dati_bdv!$D$2:$D$65536,IF(dati_pdc!$C1130=3,dati_bdv!$E$2:$E$65536,IF(dati_pdc!$C1130=4,dati_bdv!$F$2:$F$65536,IF(dati_pdc!$C1130=5,dati_bdv!$G$2:$G$65536,dati_bdv!$H$2:$H$65536))))),$A1130,dati_bdv!K$2:K$65536)","v":0},{"$f":"SUMIF(IF(dati_pdc!$C1130=1,dati_bdv!$C$2:$C$65536,IF(dati_pdc!$C1130=2,dati_bdv!$D$2:$D$65536,IF(dati_pdc!$C1130=3,dati_bdv!$E$2:$E$65536,IF(dati_pdc!$C1130=4,dati_bdv!$F$2:$F$65536,IF(dati_pdc!$C1130=5,dati_bdv!$G$2:$G$65536,dati_bdv!$H$2:$H$65536))))),$A1130,dati_bdv!L$2:L$65536)","v":0},{"$f":"SUMIF(IF(dati_pdc!$C1130=1,dati_bdv!$C$2:$C$65536,IF(dati_pdc!$C1130=2,dati_bdv!$D$2:$D$65536,IF(dati_pdc!$C1130=3,dati_bdv!$E$2:$E$65536,IF(dati_pdc!$C1130=4,dati_bdv!$F$2:$F$65536,IF(dati_pdc!$C1130=5,dati_bdv!$G$2:$G$65536,dati_bdv!$H$2:$H$65536))))),$A1130,dati_bdv!M$2:M$65536)","v":0},{"$f":"SUMIF(IF(dati_pdc!$C1130=1,dati_bdv!$C$2:$C$65536,IF(dati_pdc!$C1130=2,dati_bdv!$D$2:$D$65536,IF(dati_pdc!$C1130=3,dati_bdv!$E$2:$E$65536,IF(dati_pdc!$C1130=4,dati_bdv!$F$2:$F$65536,IF(dati_pdc!$C1130=5,dati_bdv!$G$2:$G$65536,dati_bdv!$H$2:$H$65536))))),$A1130,dati_bdv!N$2:N$65536)","v":0}]
[{"$f":"dati_pdc!A1131","v":0},{"$f":"SUMIF(IF(dati_pdc!$C1131=1,dati_bdv!$C$2:$C$65536,IF(dati_pdc!$C1131=2,dati_bdv!$D$2:$D$65536,IF(dati_pdc!$C1131=3,dati_bdv!$E$2:$E$65536,IF(dati_pdc!$C1131=4,dati_bdv!$F$2:$F$65536,IF(dati_pdc!$C1131=5,dati_bdv!$G$2:$G$65536,dati_bdv!$H$2:$H$65536))))),$A1131,dati_bdv!J$2:J$65536)","v":0},{"$f":"SUMIF(IF(dati_pdc!$C1131=1,dati_bdv!$C$2:$C$65536,IF(dati_pdc!$C1131=2,dati_bdv!$D$2:$D$65536,IF(dati_pdc!$C1131=3,dati_bdv!$E$2:$E$65536,IF(dati_pdc!$C1131=4,dati_bdv!$F$2:$F$65536,IF(dati_pdc!$C1131=5,dati_bdv!$G$2:$G$65536,dati_bdv!$H$2:$H$65536))))),$A1131,dati_bdv!K$2:K$65536)","v":0},{"$f":"SUMIF(IF(dati_pdc!$C1131=1,dati_bdv!$C$2:$C$65536,IF(dati_pdc!$C1131=2,dati_bdv!$D$2:$D$65536,IF(dati_pdc!$C1131=3,dati_bdv!$E$2:$E$65536,IF(dati_pdc!$C1131=4,dati_bdv!$F$2:$F$65536,IF(dati_pdc!$C1131=5,dati_bdv!$G$2:$G$65536,dati_bdv!$H$2:$H$65536))))),$A1131,dati_bdv!L$2:L$65536)","v":0},{"$f":"SUMIF(IF(dati_pdc!$C1131=1,dati_bdv!$C$2:$C$65536,IF(dati_pdc!$C1131=2,dati_bdv!$D$2:$D$65536,IF(dati_pdc!$C1131=3,dati_bdv!$E$2:$E$65536,IF(dati_pdc!$C1131=4,dati_bdv!$F$2:$F$65536,IF(dati_pdc!$C1131=5,dati_bdv!$G$2:$G$65536,dati_bdv!$H$2:$H$65536))))),$A1131,dati_bdv!M$2:M$65536)","v":0},{"$f":"SUMIF(IF(dati_pdc!$C1131=1,dati_bdv!$C$2:$C$65536,IF(dati_pdc!$C1131=2,dati_bdv!$D$2:$D$65536,IF(dati_pdc!$C1131=3,dati_bdv!$E$2:$E$65536,IF(dati_pdc!$C1131=4,dati_bdv!$F$2:$F$65536,IF(dati_pdc!$C1131=5,dati_bdv!$G$2:$G$65536,dati_bdv!$H$2:$H$65536))))),$A1131,dati_bdv!N$2:N$65536)","v":0}]
[{"$f":"dati_pdc!A1132","v":0},{"$f":"SUMIF(IF(dati_pdc!$C1132=1,dati_bdv!$C$2:$C$65536,IF(dati_pdc!$C1132=2,dati_bdv!$D$2:$D$65536,IF(dati_pdc!$C1132=3,dati_bdv!$E$2:$E$65536,IF(dati_pdc!$C1132=4,dati_bdv!$F$2:$F$65536,IF(dati_pdc!$C1132=5,dati_bdv!$G$2:$G$65536,dati_bdv!$H$2:$H$65536))))),$A1132,dati_bdv!J$2:J$65536)","v":0},{"$f":"SUMIF(IF(dati_pdc!$C1132=1,dati_bdv!$C$2:$C$65536,IF(dati_pdc!$C1132=2,dati_bdv!$D$2:$D$65536,IF(dati_pdc!$C1132=3,dati_bdv!$E$2:$E$65536,IF(dati_pdc!$C1132=4,dati_bdv!$F$2:$F$65536,IF(dati_pdc!$C1132=5,dati_bdv!$G$2:$G$65536,dati_bdv!$H$2:$H$65536))))),$A1132,dati_bdv!K$2:K$65536)","v":0},{"$f":"SUMIF(IF(dati_pdc!$C1132=1,dati_bdv!$C$2:$C$65536,IF(dati_pdc!$C1132=2,dati_bdv!$D$2:$D$65536,IF(dati_pdc!$C1132=3,dati_bdv!$E$2:$E$65536,IF(dati_pdc!$C1132=4,dati_bdv!$F$2:$F$65536,IF(dati_pdc!$C1132=5,dati_bdv!$G$2:$G$65536,dati_bdv!$H$2:$H$65536))))),$A1132,dati_bdv!L$2:L$65536)","v":0},{"$f":"SUMIF(IF(dati_pdc!$C1132=1,dati_bdv!$C$2:$C$65536,IF(dati_pdc!$C1132=2,dati_bdv!$D$2:$D$65536,IF(dati_pdc!$C1132=3,dati_bdv!$E$2:$E$65536,IF(dati_pdc!$C1132=4,dati_bdv!$F$2:$F$65536,IF(dati_pdc!$C1132=5,dati_bdv!$G$2:$G$65536,dati_bdv!$H$2:$H$65536))))),$A1132,dati_bdv!M$2:M$65536)","v":0},{"$f":"SUMIF(IF(dati_pdc!$C1132=1,dati_bdv!$C$2:$C$65536,IF(dati_pdc!$C1132=2,dati_bdv!$D$2:$D$65536,IF(dati_pdc!$C1132=3,dati_bdv!$E$2:$E$65536,IF(dati_pdc!$C1132=4,dati_bdv!$F$2:$F$65536,IF(dati_pdc!$C1132=5,dati_bdv!$G$2:$G$65536,dati_bdv!$H$2:$H$65536))))),$A1132,dati_bdv!N$2:N$65536)","v":0}]
[{"$f":"dati_pdc!A1133","v":0},{"$f":"SUMIF(IF(dati_pdc!$C1133=1,dati_bdv!$C$2:$C$65536,IF(dati_pdc!$C1133=2,dati_bdv!$D$2:$D$65536,IF(dati_pdc!$C1133=3,dati_bdv!$E$2:$E$65536,IF(dati_pdc!$C1133=4,dati_bdv!$F$2:$F$65536,IF(dati_pdc!$C1133=5,dati_bdv!$G$2:$G$65536,dati_bdv!$H$2:$H$65536))))),$A1133,dati_bdv!J$2:J$65536)","v":0},{"$f":"SUMIF(IF(dati_pdc!$C1133=1,dati_bdv!$C$2:$C$65536,IF(dati_pdc!$C1133=2,dati_bdv!$D$2:$D$65536,IF(dati_pdc!$C1133=3,dati_bdv!$E$2:$E$65536,IF(dati_pdc!$C1133=4,dati_bdv!$F$2:$F$65536,IF(dati_pdc!$C1133=5,dati_bdv!$G$2:$G$65536,dati_bdv!$H$2:$H$65536))))),$A1133,dati_bdv!K$2:K$65536)","v":0},{"$f":"SUMIF(IF(dati_pdc!$C1133=1,dati_bdv!$C$2:$C$65536,IF(dati_pdc!$C1133=2,dati_bdv!$D$2:$D$65536,IF(dati_pdc!$C1133=3,dati_bdv!$E$2:$E$65536,IF(dati_pdc!$C1133=4,dati_bdv!$F$2:$F$65536,IF(dati_pdc!$C1133=5,dati_bdv!$G$2:$G$65536,dati_bdv!$H$2:$H$65536))))),$A1133,dati_bdv!L$2:L$65536)","v":0},{"$f":"SUMIF(IF(dati_pdc!$C1133=1,dati_bdv!$C$2:$C$65536,IF(dati_pdc!$C1133=2,dati_bdv!$D$2:$D$65536,IF(dati_pdc!$C1133=3,dati_bdv!$E$2:$E$65536,IF(dati_pdc!$C1133=4,dati_bdv!$F$2:$F$65536,IF(dati_pdc!$C1133=5,dati_bdv!$G$2:$G$65536,dati_bdv!$H$2:$H$65536))))),$A1133,dati_bdv!M$2:M$65536)","v":0},{"$f":"SUMIF(IF(dati_pdc!$C1133=1,dati_bdv!$C$2:$C$65536,IF(dati_pdc!$C1133=2,dati_bdv!$D$2:$D$65536,IF(dati_pdc!$C1133=3,dati_bdv!$E$2:$E$65536,IF(dati_pdc!$C1133=4,dati_bdv!$F$2:$F$65536,IF(dati_pdc!$C1133=5,dati_bdv!$G$2:$G$65536,dati_bdv!$H$2:$H$65536))))),$A1133,dati_bdv!N$2:N$65536)","v":0}]
[{"$f":"dati_pdc!A1134","v":0},{"$f":"SUMIF(IF(dati_pdc!$C1134=1,dati_bdv!$C$2:$C$65536,IF(dati_pdc!$C1134=2,dati_bdv!$D$2:$D$65536,IF(dati_pdc!$C1134=3,dati_bdv!$E$2:$E$65536,IF(dati_pdc!$C1134=4,dati_bdv!$F$2:$F$65536,IF(dati_pdc!$C1134=5,dati_bdv!$G$2:$G$65536,dati_bdv!$H$2:$H$65536))))),$A1134,dati_bdv!J$2:J$65536)","v":0},{"$f":"SUMIF(IF(dati_pdc!$C1134=1,dati_bdv!$C$2:$C$65536,IF(dati_pdc!$C1134=2,dati_bdv!$D$2:$D$65536,IF(dati_pdc!$C1134=3,dati_bdv!$E$2:$E$65536,IF(dati_pdc!$C1134=4,dati_bdv!$F$2:$F$65536,IF(dati_pdc!$C1134=5,dati_bdv!$G$2:$G$65536,dati_bdv!$H$2:$H$65536))))),$A1134,dati_bdv!K$2:K$65536)","v":0},{"$f":"SUMIF(IF(dati_pdc!$C1134=1,dati_bdv!$C$2:$C$65536,IF(dati_pdc!$C1134=2,dati_bdv!$D$2:$D$65536,IF(dati_pdc!$C1134=3,dati_bdv!$E$2:$E$65536,IF(dati_pdc!$C1134=4,dati_bdv!$F$2:$F$65536,IF(dati_pdc!$C1134=5,dati_bdv!$G$2:$G$65536,dati_bdv!$H$2:$H$65536))))),$A1134,dati_bdv!L$2:L$65536)","v":0},{"$f":"SUMIF(IF(dati_pdc!$C1134=1,dati_bdv!$C$2:$C$65536,IF(dati_pdc!$C1134=2,dati_bdv!$D$2:$D$65536,IF(dati_pdc!$C1134=3,dati_bdv!$E$2:$E$65536,IF(dati_pdc!$C1134=4,dati_bdv!$F$2:$F$65536,IF(dati_pdc!$C1134=5,dati_bdv!$G$2:$G$65536,dati_bdv!$H$2:$H$65536))))),$A1134,dati_bdv!M$2:M$65536)","v":0},{"$f":"SUMIF(IF(dati_pdc!$C1134=1,dati_bdv!$C$2:$C$65536,IF(dati_pdc!$C1134=2,dati_bdv!$D$2:$D$65536,IF(dati_pdc!$C1134=3,dati_bdv!$E$2:$E$65536,IF(dati_pdc!$C1134=4,dati_bdv!$F$2:$F$65536,IF(dati_pdc!$C1134=5,dati_bdv!$G$2:$G$65536,dati_bdv!$H$2:$H$65536))))),$A1134,dati_bdv!N$2:N$65536)","v":0}]
[{"$f":"dati_pdc!A1135","v":0},{"$f":"SUMIF(IF(dati_pdc!$C1135=1,dati_bdv!$C$2:$C$65536,IF(dati_pdc!$C1135=2,dati_bdv!$D$2:$D$65536,IF(dati_pdc!$C1135=3,dati_bdv!$E$2:$E$65536,IF(dati_pdc!$C1135=4,dati_bdv!$F$2:$F$65536,IF(dati_pdc!$C1135=5,dati_bdv!$G$2:$G$65536,dati_bdv!$H$2:$H$65536))))),$A1135,dati_bdv!J$2:J$65536)","v":0},{"$f":"SUMIF(IF(dati_pdc!$C1135=1,dati_bdv!$C$2:$C$65536,IF(dati_pdc!$C1135=2,dati_bdv!$D$2:$D$65536,IF(dati_pdc!$C1135=3,dati_bdv!$E$2:$E$65536,IF(dati_pdc!$C1135=4,dati_bdv!$F$2:$F$65536,IF(dati_pdc!$C1135=5,dati_bdv!$G$2:$G$65536,dati_bdv!$H$2:$H$65536))))),$A1135,dati_bdv!K$2:K$65536)","v":0},{"$f":"SUMIF(IF(dati_pdc!$C1135=1,dati_bdv!$C$2:$C$65536,IF(dati_pdc!$C1135=2,dati_bdv!$D$2:$D$65536,IF(dati_pdc!$C1135=3,dati_bdv!$E$2:$E$65536,IF(dati_pdc!$C1135=4,dati_bdv!$F$2:$F$65536,IF(dati_pdc!$C1135=5,dati_bdv!$G$2:$G$65536,dati_bdv!$H$2:$H$65536))))),$A1135,dati_bdv!L$2:L$65536)","v":0},{"$f":"SUMIF(IF(dati_pdc!$C1135=1,dati_bdv!$C$2:$C$65536,IF(dati_pdc!$C1135=2,dati_bdv!$D$2:$D$65536,IF(dati_pdc!$C1135=3,dati_bdv!$E$2:$E$65536,IF(dati_pdc!$C1135=4,dati_bdv!$F$2:$F$65536,IF(dati_pdc!$C1135=5,dati_bdv!$G$2:$G$65536,dati_bdv!$H$2:$H$65536))))),$A1135,dati_bdv!M$2:M$65536)","v":0},{"$f":"SUMIF(IF(dati_pdc!$C1135=1,dati_bdv!$C$2:$C$65536,IF(dati_pdc!$C1135=2,dati_bdv!$D$2:$D$65536,IF(dati_pdc!$C1135=3,dati_bdv!$E$2:$E$65536,IF(dati_pdc!$C1135=4,dati_bdv!$F$2:$F$65536,IF(dati_pdc!$C1135=5,dati_bdv!$G$2:$G$65536,dati_bdv!$H$2:$H$65536))))),$A1135,dati_bdv!N$2:N$65536)","v":0}]
[{"$f":"dati_pdc!A1136","v":0},{"$f":"SUMIF(IF(dati_pdc!$C1136=1,dati_bdv!$C$2:$C$65536,IF(dati_pdc!$C1136=2,dati_bdv!$D$2:$D$65536,IF(dati_pdc!$C1136=3,dati_bdv!$E$2:$E$65536,IF(dati_pdc!$C1136=4,dati_bdv!$F$2:$F$65536,IF(dati_pdc!$C1136=5,dati_bdv!$G$2:$G$65536,dati_bdv!$H$2:$H$65536))))),$A1136,dati_bdv!J$2:J$65536)","v":0},{"$f":"SUMIF(IF(dati_pdc!$C1136=1,dati_bdv!$C$2:$C$65536,IF(dati_pdc!$C1136=2,dati_bdv!$D$2:$D$65536,IF(dati_pdc!$C1136=3,dati_bdv!$E$2:$E$65536,IF(dati_pdc!$C1136=4,dati_bdv!$F$2:$F$65536,IF(dati_pdc!$C1136=5,dati_bdv!$G$2:$G$65536,dati_bdv!$H$2:$H$65536))))),$A1136,dati_bdv!K$2:K$65536)","v":0},{"$f":"SUMIF(IF(dati_pdc!$C1136=1,dati_bdv!$C$2:$C$65536,IF(dati_pdc!$C1136=2,dati_bdv!$D$2:$D$65536,IF(dati_pdc!$C1136=3,dati_bdv!$E$2:$E$65536,IF(dati_pdc!$C1136=4,dati_bdv!$F$2:$F$65536,IF(dati_pdc!$C1136=5,dati_bdv!$G$2:$G$65536,dati_bdv!$H$2:$H$65536))))),$A1136,dati_bdv!L$2:L$65536)","v":0},{"$f":"SUMIF(IF(dati_pdc!$C1136=1,dati_bdv!$C$2:$C$65536,IF(dati_pdc!$C1136=2,dati_bdv!$D$2:$D$65536,IF(dati_pdc!$C1136=3,dati_bdv!$E$2:$E$65536,IF(dati_pdc!$C1136=4,dati_bdv!$F$2:$F$65536,IF(dati_pdc!$C1136=5,dati_bdv!$G$2:$G$65536,dati_bdv!$H$2:$H$65536))))),$A1136,dati_bdv!M$2:M$65536)","v":0},{"$f":"SUMIF(IF(dati_pdc!$C1136=1,dati_bdv!$C$2:$C$65536,IF(dati_pdc!$C1136=2,dati_bdv!$D$2:$D$65536,IF(dati_pdc!$C1136=3,dati_bdv!$E$2:$E$65536,IF(dati_pdc!$C1136=4,dati_bdv!$F$2:$F$65536,IF(dati_pdc!$C1136=5,dati_bdv!$G$2:$G$65536,dati_bdv!$H$2:$H$65536))))),$A1136,dati_bdv!N$2:N$65536)","v":0}]
[{"$f":"dati_pdc!A1137","v":0},{"$f":"SUMIF(IF(dati_pdc!$C1137=1,dati_bdv!$C$2:$C$65536,IF(dati_pdc!$C1137=2,dati_bdv!$D$2:$D$65536,IF(dati_pdc!$C1137=3,dati_bdv!$E$2:$E$65536,IF(dati_pdc!$C1137=4,dati_bdv!$F$2:$F$65536,IF(dati_pdc!$C1137=5,dati_bdv!$G$2:$G$65536,dati_bdv!$H$2:$H$65536))))),$A1137,dati_bdv!J$2:J$65536)","v":0},{"$f":"SUMIF(IF(dati_pdc!$C1137=1,dati_bdv!$C$2:$C$65536,IF(dati_pdc!$C1137=2,dati_bdv!$D$2:$D$65536,IF(dati_pdc!$C1137=3,dati_bdv!$E$2:$E$65536,IF(dati_pdc!$C1137=4,dati_bdv!$F$2:$F$65536,IF(dati_pdc!$C1137=5,dati_bdv!$G$2:$G$65536,dati_bdv!$H$2:$H$65536))))),$A1137,dati_bdv!K$2:K$65536)","v":0},{"$f":"SUMIF(IF(dati_pdc!$C1137=1,dati_bdv!$C$2:$C$65536,IF(dati_pdc!$C1137=2,dati_bdv!$D$2:$D$65536,IF(dati_pdc!$C1137=3,dati_bdv!$E$2:$E$65536,IF(dati_pdc!$C1137=4,dati_bdv!$F$2:$F$65536,IF(dati_pdc!$C1137=5,dati_bdv!$G$2:$G$65536,dati_bdv!$H$2:$H$65536))))),$A1137,dati_bdv!L$2:L$65536)","v":0},{"$f":"SUMIF(IF(dati_pdc!$C1137=1,dati_bdv!$C$2:$C$65536,IF(dati_pdc!$C1137=2,dati_bdv!$D$2:$D$65536,IF(dati_pdc!$C1137=3,dati_bdv!$E$2:$E$65536,IF(dati_pdc!$C1137=4,dati_bdv!$F$2:$F$65536,IF(dati_pdc!$C1137=5,dati_bdv!$G$2:$G$65536,dati_bdv!$H$2:$H$65536))))),$A1137,dati_bdv!M$2:M$65536)","v":0},{"$f":"SUMIF(IF(dati_pdc!$C1137=1,dati_bdv!$C$2:$C$65536,IF(dati_pdc!$C1137=2,dati_bdv!$D$2:$D$65536,IF(dati_pdc!$C1137=3,dati_bdv!$E$2:$E$65536,IF(dati_pdc!$C1137=4,dati_bdv!$F$2:$F$65536,IF(dati_pdc!$C1137=5,dati_bdv!$G$2:$G$65536,dati_bdv!$H$2:$H$65536))))),$A1137,dati_bdv!N$2:N$65536)","v":0}]
[{"$f":"dati_pdc!A1138","v":0},{"$f":"SUMIF(IF(dati_pdc!$C1138=1,dati_bdv!$C$2:$C$65536,IF(dati_pdc!$C1138=2,dati_bdv!$D$2:$D$65536,IF(dati_pdc!$C1138=3,dati_bdv!$E$2:$E$65536,IF(dati_pdc!$C1138=4,dati_bdv!$F$2:$F$65536,IF(dati_pdc!$C1138=5,dati_bdv!$G$2:$G$65536,dati_bdv!$H$2:$H$65536))))),$A1138,dati_bdv!J$2:J$65536)","v":0},{"$f":"SUMIF(IF(dati_pdc!$C1138=1,dati_bdv!$C$2:$C$65536,IF(dati_pdc!$C1138=2,dati_bdv!$D$2:$D$65536,IF(dati_pdc!$C1138=3,dati_bdv!$E$2:$E$65536,IF(dati_pdc!$C1138=4,dati_bdv!$F$2:$F$65536,IF(dati_pdc!$C1138=5,dati_bdv!$G$2:$G$65536,dati_bdv!$H$2:$H$65536))))),$A1138,dati_bdv!K$2:K$65536)","v":0},{"$f":"SUMIF(IF(dati_pdc!$C1138=1,dati_bdv!$C$2:$C$65536,IF(dati_pdc!$C1138=2,dati_bdv!$D$2:$D$65536,IF(dati_pdc!$C1138=3,dati_bdv!$E$2:$E$65536,IF(dati_pdc!$C1138=4,dati_bdv!$F$2:$F$65536,IF(dati_pdc!$C1138=5,dati_bdv!$G$2:$G$65536,dati_bdv!$H$2:$H$65536))))),$A1138,dati_bdv!L$2:L$65536)","v":0},{"$f":"SUMIF(IF(dati_pdc!$C1138=1,dati_bdv!$C$2:$C$65536,IF(dati_pdc!$C1138=2,dati_bdv!$D$2:$D$65536,IF(dati_pdc!$C1138=3,dati_bdv!$E$2:$E$65536,IF(dati_pdc!$C1138=4,dati_bdv!$F$2:$F$65536,IF(dati_pdc!$C1138=5,dati_bdv!$G$2:$G$65536,dati_bdv!$H$2:$H$65536))))),$A1138,dati_bdv!M$2:M$65536)","v":0},{"$f":"SUMIF(IF(dati_pdc!$C1138=1,dati_bdv!$C$2:$C$65536,IF(dati_pdc!$C1138=2,dati_bdv!$D$2:$D$65536,IF(dati_pdc!$C1138=3,dati_bdv!$E$2:$E$65536,IF(dati_pdc!$C1138=4,dati_bdv!$F$2:$F$65536,IF(dati_pdc!$C1138=5,dati_bdv!$G$2:$G$65536,dati_bdv!$H$2:$H$65536))))),$A1138,dati_bdv!N$2:N$65536)","v":0}]
[{"$f":"dati_pdc!A1139","v":0},{"$f":"SUMIF(IF(dati_pdc!$C1139=1,dati_bdv!$C$2:$C$65536,IF(dati_pdc!$C1139=2,dati_bdv!$D$2:$D$65536,IF(dati_pdc!$C1139=3,dati_bdv!$E$2:$E$65536,IF(dati_pdc!$C1139=4,dati_bdv!$F$2:$F$65536,IF(dati_pdc!$C1139=5,dati_bdv!$G$2:$G$65536,dati_bdv!$H$2:$H$65536))))),$A1139,dati_bdv!J$2:J$65536)","v":0},{"$f":"SUMIF(IF(dati_pdc!$C1139=1,dati_bdv!$C$2:$C$65536,IF(dati_pdc!$C1139=2,dati_bdv!$D$2:$D$65536,IF(dati_pdc!$C1139=3,dati_bdv!$E$2:$E$65536,IF(dati_pdc!$C1139=4,dati_bdv!$F$2:$F$65536,IF(dati_pdc!$C1139=5,dati_bdv!$G$2:$G$65536,dati_bdv!$H$2:$H$65536))))),$A1139,dati_bdv!K$2:K$65536)","v":0},{"$f":"SUMIF(IF(dati_pdc!$C1139=1,dati_bdv!$C$2:$C$65536,IF(dati_pdc!$C1139=2,dati_bdv!$D$2:$D$65536,IF(dati_pdc!$C1139=3,dati_bdv!$E$2:$E$65536,IF(dati_pdc!$C1139=4,dati_bdv!$F$2:$F$65536,IF(dati_pdc!$C1139=5,dati_bdv!$G$2:$G$65536,dati_bdv!$H$2:$H$65536))))),$A1139,dati_bdv!L$2:L$65536)","v":0},{"$f":"SUMIF(IF(dati_pdc!$C1139=1,dati_bdv!$C$2:$C$65536,IF(dati_pdc!$C1139=2,dati_bdv!$D$2:$D$65536,IF(dati_pdc!$C1139=3,dati_bdv!$E$2:$E$65536,IF(dati_pdc!$C1139=4,dati_bdv!$F$2:$F$65536,IF(dati_pdc!$C1139=5,dati_bdv!$G$2:$G$65536,dati_bdv!$H$2:$H$65536))))),$A1139,dati_bdv!M$2:M$65536)","v":0},{"$f":"SUMIF(IF(dati_pdc!$C1139=1,dati_bdv!$C$2:$C$65536,IF(dati_pdc!$C1139=2,dati_bdv!$D$2:$D$65536,IF(dati_pdc!$C1139=3,dati_bdv!$E$2:$E$65536,IF(dati_pdc!$C1139=4,dati_bdv!$F$2:$F$65536,IF(dati_pdc!$C1139=5,dati_bdv!$G$2:$G$65536,dati_bdv!$H$2:$H$65536))))),$A1139,dati_bdv!N$2:N$65536)","v":0}]
[{"$f":"dati_pdc!A1140","v":0},{"$f":"SUMIF(IF(dati_pdc!$C1140=1,dati_bdv!$C$2:$C$65536,IF(dati_pdc!$C1140=2,dati_bdv!$D$2:$D$65536,IF(dati_pdc!$C1140=3,dati_bdv!$E$2:$E$65536,IF(dati_pdc!$C1140=4,dati_bdv!$F$2:$F$65536,IF(dati_pdc!$C1140=5,dati_bdv!$G$2:$G$65536,dati_bdv!$H$2:$H$65536))))),$A1140,dati_bdv!J$2:J$65536)","v":0},{"$f":"SUMIF(IF(dati_pdc!$C1140=1,dati_bdv!$C$2:$C$65536,IF(dati_pdc!$C1140=2,dati_bdv!$D$2:$D$65536,IF(dati_pdc!$C1140=3,dati_bdv!$E$2:$E$65536,IF(dati_pdc!$C1140=4,dati_bdv!$F$2:$F$65536,IF(dati_pdc!$C1140=5,dati_bdv!$G$2:$G$65536,dati_bdv!$H$2:$H$65536))))),$A1140,dati_bdv!K$2:K$65536)","v":0},{"$f":"SUMIF(IF(dati_pdc!$C1140=1,dati_bdv!$C$2:$C$65536,IF(dati_pdc!$C1140=2,dati_bdv!$D$2:$D$65536,IF(dati_pdc!$C1140=3,dati_bdv!$E$2:$E$65536,IF(dati_pdc!$C1140=4,dati_bdv!$F$2:$F$65536,IF(dati_pdc!$C1140=5,dati_bdv!$G$2:$G$65536,dati_bdv!$H$2:$H$65536))))),$A1140,dati_bdv!L$2:L$65536)","v":0},{"$f":"SUMIF(IF(dati_pdc!$C1140=1,dati_bdv!$C$2:$C$65536,IF(dati_pdc!$C1140=2,dati_bdv!$D$2:$D$65536,IF(dati_pdc!$C1140=3,dati_bdv!$E$2:$E$65536,IF(dati_pdc!$C1140=4,dati_bdv!$F$2:$F$65536,IF(dati_pdc!$C1140=5,dati_bdv!$G$2:$G$65536,dati_bdv!$H$2:$H$65536))))),$A1140,dati_bdv!M$2:M$65536)","v":0},{"$f":"SUMIF(IF(dati_pdc!$C1140=1,dati_bdv!$C$2:$C$65536,IF(dati_pdc!$C1140=2,dati_bdv!$D$2:$D$65536,IF(dati_pdc!$C1140=3,dati_bdv!$E$2:$E$65536,IF(dati_pdc!$C1140=4,dati_bdv!$F$2:$F$65536,IF(dati_pdc!$C1140=5,dati_bdv!$G$2:$G$65536,dati_bdv!$H$2:$H$65536))))),$A1140,dati_bdv!N$2:N$65536)","v":0}]
[{"$f":"dati_pdc!A1141","v":0},{"$f":"SUMIF(IF(dati_pdc!$C1141=1,dati_bdv!$C$2:$C$65536,IF(dati_pdc!$C1141=2,dati_bdv!$D$2:$D$65536,IF(dati_pdc!$C1141=3,dati_bdv!$E$2:$E$65536,IF(dati_pdc!$C1141=4,dati_bdv!$F$2:$F$65536,IF(dati_pdc!$C1141=5,dati_bdv!$G$2:$G$65536,dati_bdv!$H$2:$H$65536))))),$A1141,dati_bdv!J$2:J$65536)","v":0},{"$f":"SUMIF(IF(dati_pdc!$C1141=1,dati_bdv!$C$2:$C$65536,IF(dati_pdc!$C1141=2,dati_bdv!$D$2:$D$65536,IF(dati_pdc!$C1141=3,dati_bdv!$E$2:$E$65536,IF(dati_pdc!$C1141=4,dati_bdv!$F$2:$F$65536,IF(dati_pdc!$C1141=5,dati_bdv!$G$2:$G$65536,dati_bdv!$H$2:$H$65536))))),$A1141,dati_bdv!K$2:K$65536)","v":0},{"$f":"SUMIF(IF(dati_pdc!$C1141=1,dati_bdv!$C$2:$C$65536,IF(dati_pdc!$C1141=2,dati_bdv!$D$2:$D$65536,IF(dati_pdc!$C1141=3,dati_bdv!$E$2:$E$65536,IF(dati_pdc!$C1141=4,dati_bdv!$F$2:$F$65536,IF(dati_pdc!$C1141=5,dati_bdv!$G$2:$G$65536,dati_bdv!$H$2:$H$65536))))),$A1141,dati_bdv!L$2:L$65536)","v":0},{"$f":"SUMIF(IF(dati_pdc!$C1141=1,dati_bdv!$C$2:$C$65536,IF(dati_pdc!$C1141=2,dati_bdv!$D$2:$D$65536,IF(dati_pdc!$C1141=3,dati_bdv!$E$2:$E$65536,IF(dati_pdc!$C1141=4,dati_bdv!$F$2:$F$65536,IF(dati_pdc!$C1141=5,dati_bdv!$G$2:$G$65536,dati_bdv!$H$2:$H$65536))))),$A1141,dati_bdv!M$2:M$65536)","v":0},{"$f":"SUMIF(IF(dati_pdc!$C1141=1,dati_bdv!$C$2:$C$65536,IF(dati_pdc!$C1141=2,dati_bdv!$D$2:$D$65536,IF(dati_pdc!$C1141=3,dati_bdv!$E$2:$E$65536,IF(dati_pdc!$C1141=4,dati_bdv!$F$2:$F$65536,IF(dati_pdc!$C1141=5,dati_bdv!$G$2:$G$65536,dati_bdv!$H$2:$H$65536))))),$A1141,dati_bdv!N$2:N$65536)","v":0}]
[{"$f":"dati_pdc!A1142","v":0},{"$f":"SUMIF(IF(dati_pdc!$C1142=1,dati_bdv!$C$2:$C$65536,IF(dati_pdc!$C1142=2,dati_bdv!$D$2:$D$65536,IF(dati_pdc!$C1142=3,dati_bdv!$E$2:$E$65536,IF(dati_pdc!$C1142=4,dati_bdv!$F$2:$F$65536,IF(dati_pdc!$C1142=5,dati_bdv!$G$2:$G$65536,dati_bdv!$H$2:$H$65536))))),$A1142,dati_bdv!J$2:J$65536)","v":0},{"$f":"SUMIF(IF(dati_pdc!$C1142=1,dati_bdv!$C$2:$C$65536,IF(dati_pdc!$C1142=2,dati_bdv!$D$2:$D$65536,IF(dati_pdc!$C1142=3,dati_bdv!$E$2:$E$65536,IF(dati_pdc!$C1142=4,dati_bdv!$F$2:$F$65536,IF(dati_pdc!$C1142=5,dati_bdv!$G$2:$G$65536,dati_bdv!$H$2:$H$65536))))),$A1142,dati_bdv!K$2:K$65536)","v":0},{"$f":"SUMIF(IF(dati_pdc!$C1142=1,dati_bdv!$C$2:$C$65536,IF(dati_pdc!$C1142=2,dati_bdv!$D$2:$D$65536,IF(dati_pdc!$C1142=3,dati_bdv!$E$2:$E$65536,IF(dati_pdc!$C1142=4,dati_bdv!$F$2:$F$65536,IF(dati_pdc!$C1142=5,dati_bdv!$G$2:$G$65536,dati_bdv!$H$2:$H$65536))))),$A1142,dati_bdv!L$2:L$65536)","v":0},{"$f":"SUMIF(IF(dati_pdc!$C1142=1,dati_bdv!$C$2:$C$65536,IF(dati_pdc!$C1142=2,dati_bdv!$D$2:$D$65536,IF(dati_pdc!$C1142=3,dati_bdv!$E$2:$E$65536,IF(dati_pdc!$C1142=4,dati_bdv!$F$2:$F$65536,IF(dati_pdc!$C1142=5,dati_bdv!$G$2:$G$65536,dati_bdv!$H$2:$H$65536))))),$A1142,dati_bdv!M$2:M$65536)","v":0},{"$f":"SUMIF(IF(dati_pdc!$C1142=1,dati_bdv!$C$2:$C$65536,IF(dati_pdc!$C1142=2,dati_bdv!$D$2:$D$65536,IF(dati_pdc!$C1142=3,dati_bdv!$E$2:$E$65536,IF(dati_pdc!$C1142=4,dati_bdv!$F$2:$F$65536,IF(dati_pdc!$C1142=5,dati_bdv!$G$2:$G$65536,dati_bdv!$H$2:$H$65536))))),$A1142,dati_bdv!N$2:N$65536)","v":0}]
[{"$f":"dati_pdc!A1143","v":0},{"$f":"SUMIF(IF(dati_pdc!$C1143=1,dati_bdv!$C$2:$C$65536,IF(dati_pdc!$C1143=2,dati_bdv!$D$2:$D$65536,IF(dati_pdc!$C1143=3,dati_bdv!$E$2:$E$65536,IF(dati_pdc!$C1143=4,dati_bdv!$F$2:$F$65536,IF(dati_pdc!$C1143=5,dati_bdv!$G$2:$G$65536,dati_bdv!$H$2:$H$65536))))),$A1143,dati_bdv!J$2:J$65536)","v":0},{"$f":"SUMIF(IF(dati_pdc!$C1143=1,dati_bdv!$C$2:$C$65536,IF(dati_pdc!$C1143=2,dati_bdv!$D$2:$D$65536,IF(dati_pdc!$C1143=3,dati_bdv!$E$2:$E$65536,IF(dati_pdc!$C1143=4,dati_bdv!$F$2:$F$65536,IF(dati_pdc!$C1143=5,dati_bdv!$G$2:$G$65536,dati_bdv!$H$2:$H$65536))))),$A1143,dati_bdv!K$2:K$65536)","v":0},{"$f":"SUMIF(IF(dati_pdc!$C1143=1,dati_bdv!$C$2:$C$65536,IF(dati_pdc!$C1143=2,dati_bdv!$D$2:$D$65536,IF(dati_pdc!$C1143=3,dati_bdv!$E$2:$E$65536,IF(dati_pdc!$C1143=4,dati_bdv!$F$2:$F$65536,IF(dati_pdc!$C1143=5,dati_bdv!$G$2:$G$65536,dati_bdv!$H$2:$H$65536))))),$A1143,dati_bdv!L$2:L$65536)","v":0},{"$f":"SUMIF(IF(dati_pdc!$C1143=1,dati_bdv!$C$2:$C$65536,IF(dati_pdc!$C1143=2,dati_bdv!$D$2:$D$65536,IF(dati_pdc!$C1143=3,dati_bdv!$E$2:$E$65536,IF(dati_pdc!$C1143=4,dati_bdv!$F$2:$F$65536,IF(dati_pdc!$C1143=5,dati_bdv!$G$2:$G$65536,dati_bdv!$H$2:$H$65536))))),$A1143,dati_bdv!M$2:M$65536)","v":0},{"$f":"SUMIF(IF(dati_pdc!$C1143=1,dati_bdv!$C$2:$C$65536,IF(dati_pdc!$C1143=2,dati_bdv!$D$2:$D$65536,IF(dati_pdc!$C1143=3,dati_bdv!$E$2:$E$65536,IF(dati_pdc!$C1143=4,dati_bdv!$F$2:$F$65536,IF(dati_pdc!$C1143=5,dati_bdv!$G$2:$G$65536,dati_bdv!$H$2:$H$65536))))),$A1143,dati_bdv!N$2:N$65536)","v":0}]
[{"$f":"dati_pdc!A1144","v":0},{"$f":"SUMIF(IF(dati_pdc!$C1144=1,dati_bdv!$C$2:$C$65536,IF(dati_pdc!$C1144=2,dati_bdv!$D$2:$D$65536,IF(dati_pdc!$C1144=3,dati_bdv!$E$2:$E$65536,IF(dati_pdc!$C1144=4,dati_bdv!$F$2:$F$65536,IF(dati_pdc!$C1144=5,dati_bdv!$G$2:$G$65536,dati_bdv!$H$2:$H$65536))))),$A1144,dati_bdv!J$2:J$65536)","v":0},{"$f":"SUMIF(IF(dati_pdc!$C1144=1,dati_bdv!$C$2:$C$65536,IF(dati_pdc!$C1144=2,dati_bdv!$D$2:$D$65536,IF(dati_pdc!$C1144=3,dati_bdv!$E$2:$E$65536,IF(dati_pdc!$C1144=4,dati_bdv!$F$2:$F$65536,IF(dati_pdc!$C1144=5,dati_bdv!$G$2:$G$65536,dati_bdv!$H$2:$H$65536))))),$A1144,dati_bdv!K$2:K$65536)","v":0},{"$f":"SUMIF(IF(dati_pdc!$C1144=1,dati_bdv!$C$2:$C$65536,IF(dati_pdc!$C1144=2,dati_bdv!$D$2:$D$65536,IF(dati_pdc!$C1144=3,dati_bdv!$E$2:$E$65536,IF(dati_pdc!$C1144=4,dati_bdv!$F$2:$F$65536,IF(dati_pdc!$C1144=5,dati_bdv!$G$2:$G$65536,dati_bdv!$H$2:$H$65536))))),$A1144,dati_bdv!L$2:L$65536)","v":0},{"$f":"SUMIF(IF(dati_pdc!$C1144=1,dati_bdv!$C$2:$C$65536,IF(dati_pdc!$C1144=2,dati_bdv!$D$2:$D$65536,IF(dati_pdc!$C1144=3,dati_bdv!$E$2:$E$65536,IF(dati_pdc!$C1144=4,dati_bdv!$F$2:$F$65536,IF(dati_pdc!$C1144=5,dati_bdv!$G$2:$G$65536,dati_bdv!$H$2:$H$65536))))),$A1144,dati_bdv!M$2:M$65536)","v":0},{"$f":"SUMIF(IF(dati_pdc!$C1144=1,dati_bdv!$C$2:$C$65536,IF(dati_pdc!$C1144=2,dati_bdv!$D$2:$D$65536,IF(dati_pdc!$C1144=3,dati_bdv!$E$2:$E$65536,IF(dati_pdc!$C1144=4,dati_bdv!$F$2:$F$65536,IF(dati_pdc!$C1144=5,dati_bdv!$G$2:$G$65536,dati_bdv!$H$2:$H$65536))))),$A1144,dati_bdv!N$2:N$65536)","v":0}]
[{"$f":"dati_pdc!A1145","v":0},{"$f":"SUMIF(IF(dati_pdc!$C1145=1,dati_bdv!$C$2:$C$65536,IF(dati_pdc!$C1145=2,dati_bdv!$D$2:$D$65536,IF(dati_pdc!$C1145=3,dati_bdv!$E$2:$E$65536,IF(dati_pdc!$C1145=4,dati_bdv!$F$2:$F$65536,IF(dati_pdc!$C1145=5,dati_bdv!$G$2:$G$65536,dati_bdv!$H$2:$H$65536))))),$A1145,dati_bdv!J$2:J$65536)","v":0},{"$f":"SUMIF(IF(dati_pdc!$C1145=1,dati_bdv!$C$2:$C$65536,IF(dati_pdc!$C1145=2,dati_bdv!$D$2:$D$65536,IF(dati_pdc!$C1145=3,dati_bdv!$E$2:$E$65536,IF(dati_pdc!$C1145=4,dati_bdv!$F$2:$F$65536,IF(dati_pdc!$C1145=5,dati_bdv!$G$2:$G$65536,dati_bdv!$H$2:$H$65536))))),$A1145,dati_bdv!K$2:K$65536)","v":0},{"$f":"SUMIF(IF(dati_pdc!$C1145=1,dati_bdv!$C$2:$C$65536,IF(dati_pdc!$C1145=2,dati_bdv!$D$2:$D$65536,IF(dati_pdc!$C1145=3,dati_bdv!$E$2:$E$65536,IF(dati_pdc!$C1145=4,dati_bdv!$F$2:$F$65536,IF(dati_pdc!$C1145=5,dati_bdv!$G$2:$G$65536,dati_bdv!$H$2:$H$65536))))),$A1145,dati_bdv!L$2:L$65536)","v":0},{"$f":"SUMIF(IF(dati_pdc!$C1145=1,dati_bdv!$C$2:$C$65536,IF(dati_pdc!$C1145=2,dati_bdv!$D$2:$D$65536,IF(dati_pdc!$C1145=3,dati_bdv!$E$2:$E$65536,IF(dati_pdc!$C1145=4,dati_bdv!$F$2:$F$65536,IF(dati_pdc!$C1145=5,dati_bdv!$G$2:$G$65536,dati_bdv!$H$2:$H$65536))))),$A1145,dati_bdv!M$2:M$65536)","v":0},{"$f":"SUMIF(IF(dati_pdc!$C1145=1,dati_bdv!$C$2:$C$65536,IF(dati_pdc!$C1145=2,dati_bdv!$D$2:$D$65536,IF(dati_pdc!$C1145=3,dati_bdv!$E$2:$E$65536,IF(dati_pdc!$C1145=4,dati_bdv!$F$2:$F$65536,IF(dati_pdc!$C1145=5,dati_bdv!$G$2:$G$65536,dati_bdv!$H$2:$H$65536))))),$A1145,dati_bdv!N$2:N$65536)","v":0}]
[{"$f":"dati_pdc!A1146","v":0},{"$f":"SUMIF(IF(dati_pdc!$C1146=1,dati_bdv!$C$2:$C$65536,IF(dati_pdc!$C1146=2,dati_bdv!$D$2:$D$65536,IF(dati_pdc!$C1146=3,dati_bdv!$E$2:$E$65536,IF(dati_pdc!$C1146=4,dati_bdv!$F$2:$F$65536,IF(dati_pdc!$C1146=5,dati_bdv!$G$2:$G$65536,dati_bdv!$H$2:$H$65536))))),$A1146,dati_bdv!J$2:J$65536)","v":0},{"$f":"SUMIF(IF(dati_pdc!$C1146=1,dati_bdv!$C$2:$C$65536,IF(dati_pdc!$C1146=2,dati_bdv!$D$2:$D$65536,IF(dati_pdc!$C1146=3,dati_bdv!$E$2:$E$65536,IF(dati_pdc!$C1146=4,dati_bdv!$F$2:$F$65536,IF(dati_pdc!$C1146=5,dati_bdv!$G$2:$G$65536,dati_bdv!$H$2:$H$65536))))),$A1146,dati_bdv!K$2:K$65536)","v":0},{"$f":"SUMIF(IF(dati_pdc!$C1146=1,dati_bdv!$C$2:$C$65536,IF(dati_pdc!$C1146=2,dati_bdv!$D$2:$D$65536,IF(dati_pdc!$C1146=3,dati_bdv!$E$2:$E$65536,IF(dati_pdc!$C1146=4,dati_bdv!$F$2:$F$65536,IF(dati_pdc!$C1146=5,dati_bdv!$G$2:$G$65536,dati_bdv!$H$2:$H$65536))))),$A1146,dati_bdv!L$2:L$65536)","v":0},{"$f":"SUMIF(IF(dati_pdc!$C1146=1,dati_bdv!$C$2:$C$65536,IF(dati_pdc!$C1146=2,dati_bdv!$D$2:$D$65536,IF(dati_pdc!$C1146=3,dati_bdv!$E$2:$E$65536,IF(dati_pdc!$C1146=4,dati_bdv!$F$2:$F$65536,IF(dati_pdc!$C1146=5,dati_bdv!$G$2:$G$65536,dati_bdv!$H$2:$H$65536))))),$A1146,dati_bdv!M$2:M$65536)","v":0},{"$f":"SUMIF(IF(dati_pdc!$C1146=1,dati_bdv!$C$2:$C$65536,IF(dati_pdc!$C1146=2,dati_bdv!$D$2:$D$65536,IF(dati_pdc!$C1146=3,dati_bdv!$E$2:$E$65536,IF(dati_pdc!$C1146=4,dati_bdv!$F$2:$F$65536,IF(dati_pdc!$C1146=5,dati_bdv!$G$2:$G$65536,dati_bdv!$H$2:$H$65536))))),$A1146,dati_bdv!N$2:N$65536)","v":0}]
[{"$f":"dati_pdc!A1147","v":0},{"$f":"SUMIF(IF(dati_pdc!$C1147=1,dati_bdv!$C$2:$C$65536,IF(dati_pdc!$C1147=2,dati_bdv!$D$2:$D$65536,IF(dati_pdc!$C1147=3,dati_bdv!$E$2:$E$65536,IF(dati_pdc!$C1147=4,dati_bdv!$F$2:$F$65536,IF(dati_pdc!$C1147=5,dati_bdv!$G$2:$G$65536,dati_bdv!$H$2:$H$65536))))),$A1147,dati_bdv!J$2:J$65536)","v":0},{"$f":"SUMIF(IF(dati_pdc!$C1147=1,dati_bdv!$C$2:$C$65536,IF(dati_pdc!$C1147=2,dati_bdv!$D$2:$D$65536,IF(dati_pdc!$C1147=3,dati_bdv!$E$2:$E$65536,IF(dati_pdc!$C1147=4,dati_bdv!$F$2:$F$65536,IF(dati_pdc!$C1147=5,dati_bdv!$G$2:$G$65536,dati_bdv!$H$2:$H$65536))))),$A1147,dati_bdv!K$2:K$65536)","v":0},{"$f":"SUMIF(IF(dati_pdc!$C1147=1,dati_bdv!$C$2:$C$65536,IF(dati_pdc!$C1147=2,dati_bdv!$D$2:$D$65536,IF(dati_pdc!$C1147=3,dati_bdv!$E$2:$E$65536,IF(dati_pdc!$C1147=4,dati_bdv!$F$2:$F$65536,IF(dati_pdc!$C1147=5,dati_bdv!$G$2:$G$65536,dati_bdv!$H$2:$H$65536))))),$A1147,dati_bdv!L$2:L$65536)","v":0},{"$f":"SUMIF(IF(dati_pdc!$C1147=1,dati_bdv!$C$2:$C$65536,IF(dati_pdc!$C1147=2,dati_bdv!$D$2:$D$65536,IF(dati_pdc!$C1147=3,dati_bdv!$E$2:$E$65536,IF(dati_pdc!$C1147=4,dati_bdv!$F$2:$F$65536,IF(dati_pdc!$C1147=5,dati_bdv!$G$2:$G$65536,dati_bdv!$H$2:$H$65536))))),$A1147,dati_bdv!M$2:M$65536)","v":0},{"$f":"SUMIF(IF(dati_pdc!$C1147=1,dati_bdv!$C$2:$C$65536,IF(dati_pdc!$C1147=2,dati_bdv!$D$2:$D$65536,IF(dati_pdc!$C1147=3,dati_bdv!$E$2:$E$65536,IF(dati_pdc!$C1147=4,dati_bdv!$F$2:$F$65536,IF(dati_pdc!$C1147=5,dati_bdv!$G$2:$G$65536,dati_bdv!$H$2:$H$65536))))),$A1147,dati_bdv!N$2:N$65536)","v":0}]
[{"$f":"dati_pdc!A1148","v":0},{"$f":"SUMIF(IF(dati_pdc!$C1148=1,dati_bdv!$C$2:$C$65536,IF(dati_pdc!$C1148=2,dati_bdv!$D$2:$D$65536,IF(dati_pdc!$C1148=3,dati_bdv!$E$2:$E$65536,IF(dati_pdc!$C1148=4,dati_bdv!$F$2:$F$65536,IF(dati_pdc!$C1148=5,dati_bdv!$G$2:$G$65536,dati_bdv!$H$2:$H$65536))))),$A1148,dati_bdv!J$2:J$65536)","v":0},{"$f":"SUMIF(IF(dati_pdc!$C1148=1,dati_bdv!$C$2:$C$65536,IF(dati_pdc!$C1148=2,dati_bdv!$D$2:$D$65536,IF(dati_pdc!$C1148=3,dati_bdv!$E$2:$E$65536,IF(dati_pdc!$C1148=4,dati_bdv!$F$2:$F$65536,IF(dati_pdc!$C1148=5,dati_bdv!$G$2:$G$65536,dati_bdv!$H$2:$H$65536))))),$A1148,dati_bdv!K$2:K$65536)","v":0},{"$f":"SUMIF(IF(dati_pdc!$C1148=1,dati_bdv!$C$2:$C$65536,IF(dati_pdc!$C1148=2,dati_bdv!$D$2:$D$65536,IF(dati_pdc!$C1148=3,dati_bdv!$E$2:$E$65536,IF(dati_pdc!$C1148=4,dati_bdv!$F$2:$F$65536,IF(dati_pdc!$C1148=5,dati_bdv!$G$2:$G$65536,dati_bdv!$H$2:$H$65536))))),$A1148,dati_bdv!L$2:L$65536)","v":0},{"$f":"SUMIF(IF(dati_pdc!$C1148=1,dati_bdv!$C$2:$C$65536,IF(dati_pdc!$C1148=2,dati_bdv!$D$2:$D$65536,IF(dati_pdc!$C1148=3,dati_bdv!$E$2:$E$65536,IF(dati_pdc!$C1148=4,dati_bdv!$F$2:$F$65536,IF(dati_pdc!$C1148=5,dati_bdv!$G$2:$G$65536,dati_bdv!$H$2:$H$65536))))),$A1148,dati_bdv!M$2:M$65536)","v":0},{"$f":"SUMIF(IF(dati_pdc!$C1148=1,dati_bdv!$C$2:$C$65536,IF(dati_pdc!$C1148=2,dati_bdv!$D$2:$D$65536,IF(dati_pdc!$C1148=3,dati_bdv!$E$2:$E$65536,IF(dati_pdc!$C1148=4,dati_bdv!$F$2:$F$65536,IF(dati_pdc!$C1148=5,dati_bdv!$G$2:$G$65536,dati_bdv!$H$2:$H$65536))))),$A1148,dati_bdv!N$2:N$65536)","v":0}]
[{"$f":"dati_pdc!A1149","v":0},{"$f":"SUMIF(IF(dati_pdc!$C1149=1,dati_bdv!$C$2:$C$65536,IF(dati_pdc!$C1149=2,dati_bdv!$D$2:$D$65536,IF(dati_pdc!$C1149=3,dati_bdv!$E$2:$E$65536,IF(dati_pdc!$C1149=4,dati_bdv!$F$2:$F$65536,IF(dati_pdc!$C1149=5,dati_bdv!$G$2:$G$65536,dati_bdv!$H$2:$H$65536))))),$A1149,dati_bdv!J$2:J$65536)","v":0},{"$f":"SUMIF(IF(dati_pdc!$C1149=1,dati_bdv!$C$2:$C$65536,IF(dati_pdc!$C1149=2,dati_bdv!$D$2:$D$65536,IF(dati_pdc!$C1149=3,dati_bdv!$E$2:$E$65536,IF(dati_pdc!$C1149=4,dati_bdv!$F$2:$F$65536,IF(dati_pdc!$C1149=5,dati_bdv!$G$2:$G$65536,dati_bdv!$H$2:$H$65536))))),$A1149,dati_bdv!K$2:K$65536)","v":0},{"$f":"SUMIF(IF(dati_pdc!$C1149=1,dati_bdv!$C$2:$C$65536,IF(dati_pdc!$C1149=2,dati_bdv!$D$2:$D$65536,IF(dati_pdc!$C1149=3,dati_bdv!$E$2:$E$65536,IF(dati_pdc!$C1149=4,dati_bdv!$F$2:$F$65536,IF(dati_pdc!$C1149=5,dati_bdv!$G$2:$G$65536,dati_bdv!$H$2:$H$65536))))),$A1149,dati_bdv!L$2:L$65536)","v":0},{"$f":"SUMIF(IF(dati_pdc!$C1149=1,dati_bdv!$C$2:$C$65536,IF(dati_pdc!$C1149=2,dati_bdv!$D$2:$D$65536,IF(dati_pdc!$C1149=3,dati_bdv!$E$2:$E$65536,IF(dati_pdc!$C1149=4,dati_bdv!$F$2:$F$65536,IF(dati_pdc!$C1149=5,dati_bdv!$G$2:$G$65536,dati_bdv!$H$2:$H$65536))))),$A1149,dati_bdv!M$2:M$65536)","v":0},{"$f":"SUMIF(IF(dati_pdc!$C1149=1,dati_bdv!$C$2:$C$65536,IF(dati_pdc!$C1149=2,dati_bdv!$D$2:$D$65536,IF(dati_pdc!$C1149=3,dati_bdv!$E$2:$E$65536,IF(dati_pdc!$C1149=4,dati_bdv!$F$2:$F$65536,IF(dati_pdc!$C1149=5,dati_bdv!$G$2:$G$65536,dati_bdv!$H$2:$H$65536))))),$A1149,dati_bdv!N$2:N$65536)","v":0}]
[{"$f":"dati_pdc!A1150","v":0},{"$f":"SUMIF(IF(dati_pdc!$C1150=1,dati_bdv!$C$2:$C$65536,IF(dati_pdc!$C1150=2,dati_bdv!$D$2:$D$65536,IF(dati_pdc!$C1150=3,dati_bdv!$E$2:$E$65536,IF(dati_pdc!$C1150=4,dati_bdv!$F$2:$F$65536,IF(dati_pdc!$C1150=5,dati_bdv!$G$2:$G$65536,dati_bdv!$H$2:$H$65536))))),$A1150,dati_bdv!J$2:J$65536)","v":0},{"$f":"SUMIF(IF(dati_pdc!$C1150=1,dati_bdv!$C$2:$C$65536,IF(dati_pdc!$C1150=2,dati_bdv!$D$2:$D$65536,IF(dati_pdc!$C1150=3,dati_bdv!$E$2:$E$65536,IF(dati_pdc!$C1150=4,dati_bdv!$F$2:$F$65536,IF(dati_pdc!$C1150=5,dati_bdv!$G$2:$G$65536,dati_bdv!$H$2:$H$65536))))),$A1150,dati_bdv!K$2:K$65536)","v":0},{"$f":"SUMIF(IF(dati_pdc!$C1150=1,dati_bdv!$C$2:$C$65536,IF(dati_pdc!$C1150=2,dati_bdv!$D$2:$D$65536,IF(dati_pdc!$C1150=3,dati_bdv!$E$2:$E$65536,IF(dati_pdc!$C1150=4,dati_bdv!$F$2:$F$65536,IF(dati_pdc!$C1150=5,dati_bdv!$G$2:$G$65536,dati_bdv!$H$2:$H$65536))))),$A1150,dati_bdv!L$2:L$65536)","v":0},{"$f":"SUMIF(IF(dati_pdc!$C1150=1,dati_bdv!$C$2:$C$65536,IF(dati_pdc!$C1150=2,dati_bdv!$D$2:$D$65536,IF(dati_pdc!$C1150=3,dati_bdv!$E$2:$E$65536,IF(dati_pdc!$C1150=4,dati_bdv!$F$2:$F$65536,IF(dati_pdc!$C1150=5,dati_bdv!$G$2:$G$65536,dati_bdv!$H$2:$H$65536))))),$A1150,dati_bdv!M$2:M$65536)","v":0},{"$f":"SUMIF(IF(dati_pdc!$C1150=1,dati_bdv!$C$2:$C$65536,IF(dati_pdc!$C1150=2,dati_bdv!$D$2:$D$65536,IF(dati_pdc!$C1150=3,dati_bdv!$E$2:$E$65536,IF(dati_pdc!$C1150=4,dati_bdv!$F$2:$F$65536,IF(dati_pdc!$C1150=5,dati_bdv!$G$2:$G$65536,dati_bdv!$H$2:$H$65536))))),$A1150,dati_bdv!N$2:N$65536)","v":0}]
[{"$f":"dati_pdc!A1151","v":0},{"$f":"SUMIF(IF(dati_pdc!$C1151=1,dati_bdv!$C$2:$C$65536,IF(dati_pdc!$C1151=2,dati_bdv!$D$2:$D$65536,IF(dati_pdc!$C1151=3,dati_bdv!$E$2:$E$65536,IF(dati_pdc!$C1151=4,dati_bdv!$F$2:$F$65536,IF(dati_pdc!$C1151=5,dati_bdv!$G$2:$G$65536,dati_bdv!$H$2:$H$65536))))),$A1151,dati_bdv!J$2:J$65536)","v":0},{"$f":"SUMIF(IF(dati_pdc!$C1151=1,dati_bdv!$C$2:$C$65536,IF(dati_pdc!$C1151=2,dati_bdv!$D$2:$D$65536,IF(dati_pdc!$C1151=3,dati_bdv!$E$2:$E$65536,IF(dati_pdc!$C1151=4,dati_bdv!$F$2:$F$65536,IF(dati_pdc!$C1151=5,dati_bdv!$G$2:$G$65536,dati_bdv!$H$2:$H$65536))))),$A1151,dati_bdv!K$2:K$65536)","v":0},{"$f":"SUMIF(IF(dati_pdc!$C1151=1,dati_bdv!$C$2:$C$65536,IF(dati_pdc!$C1151=2,dati_bdv!$D$2:$D$65536,IF(dati_pdc!$C1151=3,dati_bdv!$E$2:$E$65536,IF(dati_pdc!$C1151=4,dati_bdv!$F$2:$F$65536,IF(dati_pdc!$C1151=5,dati_bdv!$G$2:$G$65536,dati_bdv!$H$2:$H$65536))))),$A1151,dati_bdv!L$2:L$65536)","v":0},{"$f":"SUMIF(IF(dati_pdc!$C1151=1,dati_bdv!$C$2:$C$65536,IF(dati_pdc!$C1151=2,dati_bdv!$D$2:$D$65536,IF(dati_pdc!$C1151=3,dati_bdv!$E$2:$E$65536,IF(dati_pdc!$C1151=4,dati_bdv!$F$2:$F$65536,IF(dati_pdc!$C1151=5,dati_bdv!$G$2:$G$65536,dati_bdv!$H$2:$H$65536))))),$A1151,dati_bdv!M$2:M$65536)","v":0},{"$f":"SUMIF(IF(dati_pdc!$C1151=1,dati_bdv!$C$2:$C$65536,IF(dati_pdc!$C1151=2,dati_bdv!$D$2:$D$65536,IF(dati_pdc!$C1151=3,dati_bdv!$E$2:$E$65536,IF(dati_pdc!$C1151=4,dati_bdv!$F$2:$F$65536,IF(dati_pdc!$C1151=5,dati_bdv!$G$2:$G$65536,dati_bdv!$H$2:$H$65536))))),$A1151,dati_bdv!N$2:N$65536)","v":0}]
[{"$f":"dati_pdc!A1152","v":0},{"$f":"SUMIF(IF(dati_pdc!$C1152=1,dati_bdv!$C$2:$C$65536,IF(dati_pdc!$C1152=2,dati_bdv!$D$2:$D$65536,IF(dati_pdc!$C1152=3,dati_bdv!$E$2:$E$65536,IF(dati_pdc!$C1152=4,dati_bdv!$F$2:$F$65536,IF(dati_pdc!$C1152=5,dati_bdv!$G$2:$G$65536,dati_bdv!$H$2:$H$65536))))),$A1152,dati_bdv!J$2:J$65536)","v":0},{"$f":"SUMIF(IF(dati_pdc!$C1152=1,dati_bdv!$C$2:$C$65536,IF(dati_pdc!$C1152=2,dati_bdv!$D$2:$D$65536,IF(dati_pdc!$C1152=3,dati_bdv!$E$2:$E$65536,IF(dati_pdc!$C1152=4,dati_bdv!$F$2:$F$65536,IF(dati_pdc!$C1152=5,dati_bdv!$G$2:$G$65536,dati_bdv!$H$2:$H$65536))))),$A1152,dati_bdv!K$2:K$65536)","v":0},{"$f":"SUMIF(IF(dati_pdc!$C1152=1,dati_bdv!$C$2:$C$65536,IF(dati_pdc!$C1152=2,dati_bdv!$D$2:$D$65536,IF(dati_pdc!$C1152=3,dati_bdv!$E$2:$E$65536,IF(dati_pdc!$C1152=4,dati_bdv!$F$2:$F$65536,IF(dati_pdc!$C1152=5,dati_bdv!$G$2:$G$65536,dati_bdv!$H$2:$H$65536))))),$A1152,dati_bdv!L$2:L$65536)","v":0},{"$f":"SUMIF(IF(dati_pdc!$C1152=1,dati_bdv!$C$2:$C$65536,IF(dati_pdc!$C1152=2,dati_bdv!$D$2:$D$65536,IF(dati_pdc!$C1152=3,dati_bdv!$E$2:$E$65536,IF(dati_pdc!$C1152=4,dati_bdv!$F$2:$F$65536,IF(dati_pdc!$C1152=5,dati_bdv!$G$2:$G$65536,dati_bdv!$H$2:$H$65536))))),$A1152,dati_bdv!M$2:M$65536)","v":0},{"$f":"SUMIF(IF(dati_pdc!$C1152=1,dati_bdv!$C$2:$C$65536,IF(dati_pdc!$C1152=2,dati_bdv!$D$2:$D$65536,IF(dati_pdc!$C1152=3,dati_bdv!$E$2:$E$65536,IF(dati_pdc!$C1152=4,dati_bdv!$F$2:$F$65536,IF(dati_pdc!$C1152=5,dati_bdv!$G$2:$G$65536,dati_bdv!$H$2:$H$65536))))),$A1152,dati_bdv!N$2:N$65536)","v":0}]
[{"$f":"dati_pdc!A1153","v":0},{"$f":"SUMIF(IF(dati_pdc!$C1153=1,dati_bdv!$C$2:$C$65536,IF(dati_pdc!$C1153=2,dati_bdv!$D$2:$D$65536,IF(dati_pdc!$C1153=3,dati_bdv!$E$2:$E$65536,IF(dati_pdc!$C1153=4,dati_bdv!$F$2:$F$65536,IF(dati_pdc!$C1153=5,dati_bdv!$G$2:$G$65536,dati_bdv!$H$2:$H$65536))))),$A1153,dati_bdv!J$2:J$65536)","v":0},{"$f":"SUMIF(IF(dati_pdc!$C1153=1,dati_bdv!$C$2:$C$65536,IF(dati_pdc!$C1153=2,dati_bdv!$D$2:$D$65536,IF(dati_pdc!$C1153=3,dati_bdv!$E$2:$E$65536,IF(dati_pdc!$C1153=4,dati_bdv!$F$2:$F$65536,IF(dati_pdc!$C1153=5,dati_bdv!$G$2:$G$65536,dati_bdv!$H$2:$H$65536))))),$A1153,dati_bdv!K$2:K$65536)","v":0},{"$f":"SUMIF(IF(dati_pdc!$C1153=1,dati_bdv!$C$2:$C$65536,IF(dati_pdc!$C1153=2,dati_bdv!$D$2:$D$65536,IF(dati_pdc!$C1153=3,dati_bdv!$E$2:$E$65536,IF(dati_pdc!$C1153=4,dati_bdv!$F$2:$F$65536,IF(dati_pdc!$C1153=5,dati_bdv!$G$2:$G$65536,dati_bdv!$H$2:$H$65536))))),$A1153,dati_bdv!L$2:L$65536)","v":0},{"$f":"SUMIF(IF(dati_pdc!$C1153=1,dati_bdv!$C$2:$C$65536,IF(dati_pdc!$C1153=2,dati_bdv!$D$2:$D$65536,IF(dati_pdc!$C1153=3,dati_bdv!$E$2:$E$65536,IF(dati_pdc!$C1153=4,dati_bdv!$F$2:$F$65536,IF(dati_pdc!$C1153=5,dati_bdv!$G$2:$G$65536,dati_bdv!$H$2:$H$65536))))),$A1153,dati_bdv!M$2:M$65536)","v":0},{"$f":"SUMIF(IF(dati_pdc!$C1153=1,dati_bdv!$C$2:$C$65536,IF(dati_pdc!$C1153=2,dati_bdv!$D$2:$D$65536,IF(dati_pdc!$C1153=3,dati_bdv!$E$2:$E$65536,IF(dati_pdc!$C1153=4,dati_bdv!$F$2:$F$65536,IF(dati_pdc!$C1153=5,dati_bdv!$G$2:$G$65536,dati_bdv!$H$2:$H$65536))))),$A1153,dati_bdv!N$2:N$65536)","v":0}]
[{"$f":"dati_pdc!A1154","v":0},{"$f":"SUMIF(IF(dati_pdc!$C1154=1,dati_bdv!$C$2:$C$65536,IF(dati_pdc!$C1154=2,dati_bdv!$D$2:$D$65536,IF(dati_pdc!$C1154=3,dati_bdv!$E$2:$E$65536,IF(dati_pdc!$C1154=4,dati_bdv!$F$2:$F$65536,IF(dati_pdc!$C1154=5,dati_bdv!$G$2:$G$65536,dati_bdv!$H$2:$H$65536))))),$A1154,dati_bdv!J$2:J$65536)","v":0},{"$f":"SUMIF(IF(dati_pdc!$C1154=1,dati_bdv!$C$2:$C$65536,IF(dati_pdc!$C1154=2,dati_bdv!$D$2:$D$65536,IF(dati_pdc!$C1154=3,dati_bdv!$E$2:$E$65536,IF(dati_pdc!$C1154=4,dati_bdv!$F$2:$F$65536,IF(dati_pdc!$C1154=5,dati_bdv!$G$2:$G$65536,dati_bdv!$H$2:$H$65536))))),$A1154,dati_bdv!K$2:K$65536)","v":0},{"$f":"SUMIF(IF(dati_pdc!$C1154=1,dati_bdv!$C$2:$C$65536,IF(dati_pdc!$C1154=2,dati_bdv!$D$2:$D$65536,IF(dati_pdc!$C1154=3,dati_bdv!$E$2:$E$65536,IF(dati_pdc!$C1154=4,dati_bdv!$F$2:$F$65536,IF(dati_pdc!$C1154=5,dati_bdv!$G$2:$G$65536,dati_bdv!$H$2:$H$65536))))),$A1154,dati_bdv!L$2:L$65536)","v":0},{"$f":"SUMIF(IF(dati_pdc!$C1154=1,dati_bdv!$C$2:$C$65536,IF(dati_pdc!$C1154=2,dati_bdv!$D$2:$D$65536,IF(dati_pdc!$C1154=3,dati_bdv!$E$2:$E$65536,IF(dati_pdc!$C1154=4,dati_bdv!$F$2:$F$65536,IF(dati_pdc!$C1154=5,dati_bdv!$G$2:$G$65536,dati_bdv!$H$2:$H$65536))))),$A1154,dati_bdv!M$2:M$65536)","v":0},{"$f":"SUMIF(IF(dati_pdc!$C1154=1,dati_bdv!$C$2:$C$65536,IF(dati_pdc!$C1154=2,dati_bdv!$D$2:$D$65536,IF(dati_pdc!$C1154=3,dati_bdv!$E$2:$E$65536,IF(dati_pdc!$C1154=4,dati_bdv!$F$2:$F$65536,IF(dati_pdc!$C1154=5,dati_bdv!$G$2:$G$65536,dati_bdv!$H$2:$H$65536))))),$A1154,dati_bdv!N$2:N$65536)","v":0}]
[{"$f":"dati_pdc!A1155","v":0},{"$f":"SUMIF(IF(dati_pdc!$C1155=1,dati_bdv!$C$2:$C$65536,IF(dati_pdc!$C1155=2,dati_bdv!$D$2:$D$65536,IF(dati_pdc!$C1155=3,dati_bdv!$E$2:$E$65536,IF(dati_pdc!$C1155=4,dati_bdv!$F$2:$F$65536,IF(dati_pdc!$C1155=5,dati_bdv!$G$2:$G$65536,dati_bdv!$H$2:$H$65536))))),$A1155,dati_bdv!J$2:J$65536)","v":0},{"$f":"SUMIF(IF(dati_pdc!$C1155=1,dati_bdv!$C$2:$C$65536,IF(dati_pdc!$C1155=2,dati_bdv!$D$2:$D$65536,IF(dati_pdc!$C1155=3,dati_bdv!$E$2:$E$65536,IF(dati_pdc!$C1155=4,dati_bdv!$F$2:$F$65536,IF(dati_pdc!$C1155=5,dati_bdv!$G$2:$G$65536,dati_bdv!$H$2:$H$65536))))),$A1155,dati_bdv!K$2:K$65536)","v":0},{"$f":"SUMIF(IF(dati_pdc!$C1155=1,dati_bdv!$C$2:$C$65536,IF(dati_pdc!$C1155=2,dati_bdv!$D$2:$D$65536,IF(dati_pdc!$C1155=3,dati_bdv!$E$2:$E$65536,IF(dati_pdc!$C1155=4,dati_bdv!$F$2:$F$65536,IF(dati_pdc!$C1155=5,dati_bdv!$G$2:$G$65536,dati_bdv!$H$2:$H$65536))))),$A1155,dati_bdv!L$2:L$65536)","v":0},{"$f":"SUMIF(IF(dati_pdc!$C1155=1,dati_bdv!$C$2:$C$65536,IF(dati_pdc!$C1155=2,dati_bdv!$D$2:$D$65536,IF(dati_pdc!$C1155=3,dati_bdv!$E$2:$E$65536,IF(dati_pdc!$C1155=4,dati_bdv!$F$2:$F$65536,IF(dati_pdc!$C1155=5,dati_bdv!$G$2:$G$65536,dati_bdv!$H$2:$H$65536))))),$A1155,dati_bdv!M$2:M$65536)","v":0},{"$f":"SUMIF(IF(dati_pdc!$C1155=1,dati_bdv!$C$2:$C$65536,IF(dati_pdc!$C1155=2,dati_bdv!$D$2:$D$65536,IF(dati_pdc!$C1155=3,dati_bdv!$E$2:$E$65536,IF(dati_pdc!$C1155=4,dati_bdv!$F$2:$F$65536,IF(dati_pdc!$C1155=5,dati_bdv!$G$2:$G$65536,dati_bdv!$H$2:$H$65536))))),$A1155,dati_bdv!N$2:N$65536)","v":0}]
[{"$f":"dati_pdc!A1156","v":0},{"$f":"SUMIF(IF(dati_pdc!$C1156=1,dati_bdv!$C$2:$C$65536,IF(dati_pdc!$C1156=2,dati_bdv!$D$2:$D$65536,IF(dati_pdc!$C1156=3,dati_bdv!$E$2:$E$65536,IF(dati_pdc!$C1156=4,dati_bdv!$F$2:$F$65536,IF(dati_pdc!$C1156=5,dati_bdv!$G$2:$G$65536,dati_bdv!$H$2:$H$65536))))),$A1156,dati_bdv!J$2:J$65536)","v":0},{"$f":"SUMIF(IF(dati_pdc!$C1156=1,dati_bdv!$C$2:$C$65536,IF(dati_pdc!$C1156=2,dati_bdv!$D$2:$D$65536,IF(dati_pdc!$C1156=3,dati_bdv!$E$2:$E$65536,IF(dati_pdc!$C1156=4,dati_bdv!$F$2:$F$65536,IF(dati_pdc!$C1156=5,dati_bdv!$G$2:$G$65536,dati_bdv!$H$2:$H$65536))))),$A1156,dati_bdv!K$2:K$65536)","v":0},{"$f":"SUMIF(IF(dati_pdc!$C1156=1,dati_bdv!$C$2:$C$65536,IF(dati_pdc!$C1156=2,dati_bdv!$D$2:$D$65536,IF(dati_pdc!$C1156=3,dati_bdv!$E$2:$E$65536,IF(dati_pdc!$C1156=4,dati_bdv!$F$2:$F$65536,IF(dati_pdc!$C1156=5,dati_bdv!$G$2:$G$65536,dati_bdv!$H$2:$H$65536))))),$A1156,dati_bdv!L$2:L$65536)","v":0},{"$f":"SUMIF(IF(dati_pdc!$C1156=1,dati_bdv!$C$2:$C$65536,IF(dati_pdc!$C1156=2,dati_bdv!$D$2:$D$65536,IF(dati_pdc!$C1156=3,dati_bdv!$E$2:$E$65536,IF(dati_pdc!$C1156=4,dati_bdv!$F$2:$F$65536,IF(dati_pdc!$C1156=5,dati_bdv!$G$2:$G$65536,dati_bdv!$H$2:$H$65536))))),$A1156,dati_bdv!M$2:M$65536)","v":0},{"$f":"SUMIF(IF(dati_pdc!$C1156=1,dati_bdv!$C$2:$C$65536,IF(dati_pdc!$C1156=2,dati_bdv!$D$2:$D$65536,IF(dati_pdc!$C1156=3,dati_bdv!$E$2:$E$65536,IF(dati_pdc!$C1156=4,dati_bdv!$F$2:$F$65536,IF(dati_pdc!$C1156=5,dati_bdv!$G$2:$G$65536,dati_bdv!$H$2:$H$65536))))),$A1156,dati_bdv!N$2:N$65536)","v":0}]
[{"$f":"dati_pdc!A1157","v":0},{"$f":"SUMIF(IF(dati_pdc!$C1157=1,dati_bdv!$C$2:$C$65536,IF(dati_pdc!$C1157=2,dati_bdv!$D$2:$D$65536,IF(dati_pdc!$C1157=3,dati_bdv!$E$2:$E$65536,IF(dati_pdc!$C1157=4,dati_bdv!$F$2:$F$65536,IF(dati_pdc!$C1157=5,dati_bdv!$G$2:$G$65536,dati_bdv!$H$2:$H$65536))))),$A1157,dati_bdv!J$2:J$65536)","v":0},{"$f":"SUMIF(IF(dati_pdc!$C1157=1,dati_bdv!$C$2:$C$65536,IF(dati_pdc!$C1157=2,dati_bdv!$D$2:$D$65536,IF(dati_pdc!$C1157=3,dati_bdv!$E$2:$E$65536,IF(dati_pdc!$C1157=4,dati_bdv!$F$2:$F$65536,IF(dati_pdc!$C1157=5,dati_bdv!$G$2:$G$65536,dati_bdv!$H$2:$H$65536))))),$A1157,dati_bdv!K$2:K$65536)","v":0},{"$f":"SUMIF(IF(dati_pdc!$C1157=1,dati_bdv!$C$2:$C$65536,IF(dati_pdc!$C1157=2,dati_bdv!$D$2:$D$65536,IF(dati_pdc!$C1157=3,dati_bdv!$E$2:$E$65536,IF(dati_pdc!$C1157=4,dati_bdv!$F$2:$F$65536,IF(dati_pdc!$C1157=5,dati_bdv!$G$2:$G$65536,dati_bdv!$H$2:$H$65536))))),$A1157,dati_bdv!L$2:L$65536)","v":0},{"$f":"SUMIF(IF(dati_pdc!$C1157=1,dati_bdv!$C$2:$C$65536,IF(dati_pdc!$C1157=2,dati_bdv!$D$2:$D$65536,IF(dati_pdc!$C1157=3,dati_bdv!$E$2:$E$65536,IF(dati_pdc!$C1157=4,dati_bdv!$F$2:$F$65536,IF(dati_pdc!$C1157=5,dati_bdv!$G$2:$G$65536,dati_bdv!$H$2:$H$65536))))),$A1157,dati_bdv!M$2:M$65536)","v":0},{"$f":"SUMIF(IF(dati_pdc!$C1157=1,dati_bdv!$C$2:$C$65536,IF(dati_pdc!$C1157=2,dati_bdv!$D$2:$D$65536,IF(dati_pdc!$C1157=3,dati_bdv!$E$2:$E$65536,IF(dati_pdc!$C1157=4,dati_bdv!$F$2:$F$65536,IF(dati_pdc!$C1157=5,dati_bdv!$G$2:$G$65536,dati_bdv!$H$2:$H$65536))))),$A1157,dati_bdv!N$2:N$65536)","v":0}]
[{"$f":"dati_pdc!A1158","v":0},{"$f":"SUMIF(IF(dati_pdc!$C1158=1,dati_bdv!$C$2:$C$65536,IF(dati_pdc!$C1158=2,dati_bdv!$D$2:$D$65536,IF(dati_pdc!$C1158=3,dati_bdv!$E$2:$E$65536,IF(dati_pdc!$C1158=4,dati_bdv!$F$2:$F$65536,IF(dati_pdc!$C1158=5,dati_bdv!$G$2:$G$65536,dati_bdv!$H$2:$H$65536))))),$A1158,dati_bdv!J$2:J$65536)","v":0},{"$f":"SUMIF(IF(dati_pdc!$C1158=1,dati_bdv!$C$2:$C$65536,IF(dati_pdc!$C1158=2,dati_bdv!$D$2:$D$65536,IF(dati_pdc!$C1158=3,dati_bdv!$E$2:$E$65536,IF(dati_pdc!$C1158=4,dati_bdv!$F$2:$F$65536,IF(dati_pdc!$C1158=5,dati_bdv!$G$2:$G$65536,dati_bdv!$H$2:$H$65536))))),$A1158,dati_bdv!K$2:K$65536)","v":0},{"$f":"SUMIF(IF(dati_pdc!$C1158=1,dati_bdv!$C$2:$C$65536,IF(dati_pdc!$C1158=2,dati_bdv!$D$2:$D$65536,IF(dati_pdc!$C1158=3,dati_bdv!$E$2:$E$65536,IF(dati_pdc!$C1158=4,dati_bdv!$F$2:$F$65536,IF(dati_pdc!$C1158=5,dati_bdv!$G$2:$G$65536,dati_bdv!$H$2:$H$65536))))),$A1158,dati_bdv!L$2:L$65536)","v":0},{"$f":"SUMIF(IF(dati_pdc!$C1158=1,dati_bdv!$C$2:$C$65536,IF(dati_pdc!$C1158=2,dati_bdv!$D$2:$D$65536,IF(dati_pdc!$C1158=3,dati_bdv!$E$2:$E$65536,IF(dati_pdc!$C1158=4,dati_bdv!$F$2:$F$65536,IF(dati_pdc!$C1158=5,dati_bdv!$G$2:$G$65536,dati_bdv!$H$2:$H$65536))))),$A1158,dati_bdv!M$2:M$65536)","v":0},{"$f":"SUMIF(IF(dati_pdc!$C1158=1,dati_bdv!$C$2:$C$65536,IF(dati_pdc!$C1158=2,dati_bdv!$D$2:$D$65536,IF(dati_pdc!$C1158=3,dati_bdv!$E$2:$E$65536,IF(dati_pdc!$C1158=4,dati_bdv!$F$2:$F$65536,IF(dati_pdc!$C1158=5,dati_bdv!$G$2:$G$65536,dati_bdv!$H$2:$H$65536))))),$A1158,dati_bdv!N$2:N$65536)","v":0}]
[{"$f":"dati_pdc!A1159","v":0},{"$f":"SUMIF(IF(dati_pdc!$C1159=1,dati_bdv!$C$2:$C$65536,IF(dati_pdc!$C1159=2,dati_bdv!$D$2:$D$65536,IF(dati_pdc!$C1159=3,dati_bdv!$E$2:$E$65536,IF(dati_pdc!$C1159=4,dati_bdv!$F$2:$F$65536,IF(dati_pdc!$C1159=5,dati_bdv!$G$2:$G$65536,dati_bdv!$H$2:$H$65536))))),$A1159,dati_bdv!J$2:J$65536)","v":0},{"$f":"SUMIF(IF(dati_pdc!$C1159=1,dati_bdv!$C$2:$C$65536,IF(dati_pdc!$C1159=2,dati_bdv!$D$2:$D$65536,IF(dati_pdc!$C1159=3,dati_bdv!$E$2:$E$65536,IF(dati_pdc!$C1159=4,dati_bdv!$F$2:$F$65536,IF(dati_pdc!$C1159=5,dati_bdv!$G$2:$G$65536,dati_bdv!$H$2:$H$65536))))),$A1159,dati_bdv!K$2:K$65536)","v":0},{"$f":"SUMIF(IF(dati_pdc!$C1159=1,dati_bdv!$C$2:$C$65536,IF(dati_pdc!$C1159=2,dati_bdv!$D$2:$D$65536,IF(dati_pdc!$C1159=3,dati_bdv!$E$2:$E$65536,IF(dati_pdc!$C1159=4,dati_bdv!$F$2:$F$65536,IF(dati_pdc!$C1159=5,dati_bdv!$G$2:$G$65536,dati_bdv!$H$2:$H$65536))))),$A1159,dati_bdv!L$2:L$65536)","v":0},{"$f":"SUMIF(IF(dati_pdc!$C1159=1,dati_bdv!$C$2:$C$65536,IF(dati_pdc!$C1159=2,dati_bdv!$D$2:$D$65536,IF(dati_pdc!$C1159=3,dati_bdv!$E$2:$E$65536,IF(dati_pdc!$C1159=4,dati_bdv!$F$2:$F$65536,IF(dati_pdc!$C1159=5,dati_bdv!$G$2:$G$65536,dati_bdv!$H$2:$H$65536))))),$A1159,dati_bdv!M$2:M$65536)","v":0},{"$f":"SUMIF(IF(dati_pdc!$C1159=1,dati_bdv!$C$2:$C$65536,IF(dati_pdc!$C1159=2,dati_bdv!$D$2:$D$65536,IF(dati_pdc!$C1159=3,dati_bdv!$E$2:$E$65536,IF(dati_pdc!$C1159=4,dati_bdv!$F$2:$F$65536,IF(dati_pdc!$C1159=5,dati_bdv!$G$2:$G$65536,dati_bdv!$H$2:$H$65536))))),$A1159,dati_bdv!N$2:N$65536)","v":0}]
[{"$f":"dati_pdc!A1160","v":0},{"$f":"SUMIF(IF(dati_pdc!$C1160=1,dati_bdv!$C$2:$C$65536,IF(dati_pdc!$C1160=2,dati_bdv!$D$2:$D$65536,IF(dati_pdc!$C1160=3,dati_bdv!$E$2:$E$65536,IF(dati_pdc!$C1160=4,dati_bdv!$F$2:$F$65536,IF(dati_pdc!$C1160=5,dati_bdv!$G$2:$G$65536,dati_bdv!$H$2:$H$65536))))),$A1160,dati_bdv!J$2:J$65536)","v":0},{"$f":"SUMIF(IF(dati_pdc!$C1160=1,dati_bdv!$C$2:$C$65536,IF(dati_pdc!$C1160=2,dati_bdv!$D$2:$D$65536,IF(dati_pdc!$C1160=3,dati_bdv!$E$2:$E$65536,IF(dati_pdc!$C1160=4,dati_bdv!$F$2:$F$65536,IF(dati_pdc!$C1160=5,dati_bdv!$G$2:$G$65536,dati_bdv!$H$2:$H$65536))))),$A1160,dati_bdv!K$2:K$65536)","v":0},{"$f":"SUMIF(IF(dati_pdc!$C1160=1,dati_bdv!$C$2:$C$65536,IF(dati_pdc!$C1160=2,dati_bdv!$D$2:$D$65536,IF(dati_pdc!$C1160=3,dati_bdv!$E$2:$E$65536,IF(dati_pdc!$C1160=4,dati_bdv!$F$2:$F$65536,IF(dati_pdc!$C1160=5,dati_bdv!$G$2:$G$65536,dati_bdv!$H$2:$H$65536))))),$A1160,dati_bdv!L$2:L$65536)","v":0},{"$f":"SUMIF(IF(dati_pdc!$C1160=1,dati_bdv!$C$2:$C$65536,IF(dati_pdc!$C1160=2,dati_bdv!$D$2:$D$65536,IF(dati_pdc!$C1160=3,dati_bdv!$E$2:$E$65536,IF(dati_pdc!$C1160=4,dati_bdv!$F$2:$F$65536,IF(dati_pdc!$C1160=5,dati_bdv!$G$2:$G$65536,dati_bdv!$H$2:$H$65536))))),$A1160,dati_bdv!M$2:M$65536)","v":0},{"$f":"SUMIF(IF(dati_pdc!$C1160=1,dati_bdv!$C$2:$C$65536,IF(dati_pdc!$C1160=2,dati_bdv!$D$2:$D$65536,IF(dati_pdc!$C1160=3,dati_bdv!$E$2:$E$65536,IF(dati_pdc!$C1160=4,dati_bdv!$F$2:$F$65536,IF(dati_pdc!$C1160=5,dati_bdv!$G$2:$G$65536,dati_bdv!$H$2:$H$65536))))),$A1160,dati_bdv!N$2:N$65536)","v":0}]
[{"$f":"dati_pdc!A1161","v":0},{"$f":"SUMIF(IF(dati_pdc!$C1161=1,dati_bdv!$C$2:$C$65536,IF(dati_pdc!$C1161=2,dati_bdv!$D$2:$D$65536,IF(dati_pdc!$C1161=3,dati_bdv!$E$2:$E$65536,IF(dati_pdc!$C1161=4,dati_bdv!$F$2:$F$65536,IF(dati_pdc!$C1161=5,dati_bdv!$G$2:$G$65536,dati_bdv!$H$2:$H$65536))))),$A1161,dati_bdv!J$2:J$65536)","v":0},{"$f":"SUMIF(IF(dati_pdc!$C1161=1,dati_bdv!$C$2:$C$65536,IF(dati_pdc!$C1161=2,dati_bdv!$D$2:$D$65536,IF(dati_pdc!$C1161=3,dati_bdv!$E$2:$E$65536,IF(dati_pdc!$C1161=4,dati_bdv!$F$2:$F$65536,IF(dati_pdc!$C1161=5,dati_bdv!$G$2:$G$65536,dati_bdv!$H$2:$H$65536))))),$A1161,dati_bdv!K$2:K$65536)","v":0},{"$f":"SUMIF(IF(dati_pdc!$C1161=1,dati_bdv!$C$2:$C$65536,IF(dati_pdc!$C1161=2,dati_bdv!$D$2:$D$65536,IF(dati_pdc!$C1161=3,dati_bdv!$E$2:$E$65536,IF(dati_pdc!$C1161=4,dati_bdv!$F$2:$F$65536,IF(dati_pdc!$C1161=5,dati_bdv!$G$2:$G$65536,dati_bdv!$H$2:$H$65536))))),$A1161,dati_bdv!L$2:L$65536)","v":0},{"$f":"SUMIF(IF(dati_pdc!$C1161=1,dati_bdv!$C$2:$C$65536,IF(dati_pdc!$C1161=2,dati_bdv!$D$2:$D$65536,IF(dati_pdc!$C1161=3,dati_bdv!$E$2:$E$65536,IF(dati_pdc!$C1161=4,dati_bdv!$F$2:$F$65536,IF(dati_pdc!$C1161=5,dati_bdv!$G$2:$G$65536,dati_bdv!$H$2:$H$65536))))),$A1161,dati_bdv!M$2:M$65536)","v":0},{"$f":"SUMIF(IF(dati_pdc!$C1161=1,dati_bdv!$C$2:$C$65536,IF(dati_pdc!$C1161=2,dati_bdv!$D$2:$D$65536,IF(dati_pdc!$C1161=3,dati_bdv!$E$2:$E$65536,IF(dati_pdc!$C1161=4,dati_bdv!$F$2:$F$65536,IF(dati_pdc!$C1161=5,dati_bdv!$G$2:$G$65536,dati_bdv!$H$2:$H$65536))))),$A1161,dati_bdv!N$2:N$65536)","v":0}]
[{"$f":"dati_pdc!A1162","v":0},{"$f":"SUMIF(IF(dati_pdc!$C1162=1,dati_bdv!$C$2:$C$65536,IF(dati_pdc!$C1162=2,dati_bdv!$D$2:$D$65536,IF(dati_pdc!$C1162=3,dati_bdv!$E$2:$E$65536,IF(dati_pdc!$C1162=4,dati_bdv!$F$2:$F$65536,IF(dati_pdc!$C1162=5,dati_bdv!$G$2:$G$65536,dati_bdv!$H$2:$H$65536))))),$A1162,dati_bdv!J$2:J$65536)","v":0},{"$f":"SUMIF(IF(dati_pdc!$C1162=1,dati_bdv!$C$2:$C$65536,IF(dati_pdc!$C1162=2,dati_bdv!$D$2:$D$65536,IF(dati_pdc!$C1162=3,dati_bdv!$E$2:$E$65536,IF(dati_pdc!$C1162=4,dati_bdv!$F$2:$F$65536,IF(dati_pdc!$C1162=5,dati_bdv!$G$2:$G$65536,dati_bdv!$H$2:$H$65536))))),$A1162,dati_bdv!K$2:K$65536)","v":0},{"$f":"SUMIF(IF(dati_pdc!$C1162=1,dati_bdv!$C$2:$C$65536,IF(dati_pdc!$C1162=2,dati_bdv!$D$2:$D$65536,IF(dati_pdc!$C1162=3,dati_bdv!$E$2:$E$65536,IF(dati_pdc!$C1162=4,dati_bdv!$F$2:$F$65536,IF(dati_pdc!$C1162=5,dati_bdv!$G$2:$G$65536,dati_bdv!$H$2:$H$65536))))),$A1162,dati_bdv!L$2:L$65536)","v":0},{"$f":"SUMIF(IF(dati_pdc!$C1162=1,dati_bdv!$C$2:$C$65536,IF(dati_pdc!$C1162=2,dati_bdv!$D$2:$D$65536,IF(dati_pdc!$C1162=3,dati_bdv!$E$2:$E$65536,IF(dati_pdc!$C1162=4,dati_bdv!$F$2:$F$65536,IF(dati_pdc!$C1162=5,dati_bdv!$G$2:$G$65536,dati_bdv!$H$2:$H$65536))))),$A1162,dati_bdv!M$2:M$65536)","v":0},{"$f":"SUMIF(IF(dati_pdc!$C1162=1,dati_bdv!$C$2:$C$65536,IF(dati_pdc!$C1162=2,dati_bdv!$D$2:$D$65536,IF(dati_pdc!$C1162=3,dati_bdv!$E$2:$E$65536,IF(dati_pdc!$C1162=4,dati_bdv!$F$2:$F$65536,IF(dati_pdc!$C1162=5,dati_bdv!$G$2:$G$65536,dati_bdv!$H$2:$H$65536))))),$A1162,dati_bdv!N$2:N$65536)","v":0}]
[{"$f":"dati_pdc!A1163","v":0},{"$f":"SUMIF(IF(dati_pdc!$C1163=1,dati_bdv!$C$2:$C$65536,IF(dati_pdc!$C1163=2,dati_bdv!$D$2:$D$65536,IF(dati_pdc!$C1163=3,dati_bdv!$E$2:$E$65536,IF(dati_pdc!$C1163=4,dati_bdv!$F$2:$F$65536,IF(dati_pdc!$C1163=5,dati_bdv!$G$2:$G$65536,dati_bdv!$H$2:$H$65536))))),$A1163,dati_bdv!J$2:J$65536)","v":0},{"$f":"SUMIF(IF(dati_pdc!$C1163=1,dati_bdv!$C$2:$C$65536,IF(dati_pdc!$C1163=2,dati_bdv!$D$2:$D$65536,IF(dati_pdc!$C1163=3,dati_bdv!$E$2:$E$65536,IF(dati_pdc!$C1163=4,dati_bdv!$F$2:$F$65536,IF(dati_pdc!$C1163=5,dati_bdv!$G$2:$G$65536,dati_bdv!$H$2:$H$65536))))),$A1163,dati_bdv!K$2:K$65536)","v":0},{"$f":"SUMIF(IF(dati_pdc!$C1163=1,dati_bdv!$C$2:$C$65536,IF(dati_pdc!$C1163=2,dati_bdv!$D$2:$D$65536,IF(dati_pdc!$C1163=3,dati_bdv!$E$2:$E$65536,IF(dati_pdc!$C1163=4,dati_bdv!$F$2:$F$65536,IF(dati_pdc!$C1163=5,dati_bdv!$G$2:$G$65536,dati_bdv!$H$2:$H$65536))))),$A1163,dati_bdv!L$2:L$65536)","v":0},{"$f":"SUMIF(IF(dati_pdc!$C1163=1,dati_bdv!$C$2:$C$65536,IF(dati_pdc!$C1163=2,dati_bdv!$D$2:$D$65536,IF(dati_pdc!$C1163=3,dati_bdv!$E$2:$E$65536,IF(dati_pdc!$C1163=4,dati_bdv!$F$2:$F$65536,IF(dati_pdc!$C1163=5,dati_bdv!$G$2:$G$65536,dati_bdv!$H$2:$H$65536))))),$A1163,dati_bdv!M$2:M$65536)","v":0},{"$f":"SUMIF(IF(dati_pdc!$C1163=1,dati_bdv!$C$2:$C$65536,IF(dati_pdc!$C1163=2,dati_bdv!$D$2:$D$65536,IF(dati_pdc!$C1163=3,dati_bdv!$E$2:$E$65536,IF(dati_pdc!$C1163=4,dati_bdv!$F$2:$F$65536,IF(dati_pdc!$C1163=5,dati_bdv!$G$2:$G$65536,dati_bdv!$H$2:$H$65536))))),$A1163,dati_bdv!N$2:N$65536)","v":0}]
[{"$f":"dati_pdc!A1164","v":0},{"$f":"SUMIF(IF(dati_pdc!$C1164=1,dati_bdv!$C$2:$C$65536,IF(dati_pdc!$C1164=2,dati_bdv!$D$2:$D$65536,IF(dati_pdc!$C1164=3,dati_bdv!$E$2:$E$65536,IF(dati_pdc!$C1164=4,dati_bdv!$F$2:$F$65536,IF(dati_pdc!$C1164=5,dati_bdv!$G$2:$G$65536,dati_bdv!$H$2:$H$65536))))),$A1164,dati_bdv!J$2:J$65536)","v":0},{"$f":"SUMIF(IF(dati_pdc!$C1164=1,dati_bdv!$C$2:$C$65536,IF(dati_pdc!$C1164=2,dati_bdv!$D$2:$D$65536,IF(dati_pdc!$C1164=3,dati_bdv!$E$2:$E$65536,IF(dati_pdc!$C1164=4,dati_bdv!$F$2:$F$65536,IF(dati_pdc!$C1164=5,dati_bdv!$G$2:$G$65536,dati_bdv!$H$2:$H$65536))))),$A1164,dati_bdv!K$2:K$65536)","v":0},{"$f":"SUMIF(IF(dati_pdc!$C1164=1,dati_bdv!$C$2:$C$65536,IF(dati_pdc!$C1164=2,dati_bdv!$D$2:$D$65536,IF(dati_pdc!$C1164=3,dati_bdv!$E$2:$E$65536,IF(dati_pdc!$C1164=4,dati_bdv!$F$2:$F$65536,IF(dati_pdc!$C1164=5,dati_bdv!$G$2:$G$65536,dati_bdv!$H$2:$H$65536))))),$A1164,dati_bdv!L$2:L$65536)","v":0},{"$f":"SUMIF(IF(dati_pdc!$C1164=1,dati_bdv!$C$2:$C$65536,IF(dati_pdc!$C1164=2,dati_bdv!$D$2:$D$65536,IF(dati_pdc!$C1164=3,dati_bdv!$E$2:$E$65536,IF(dati_pdc!$C1164=4,dati_bdv!$F$2:$F$65536,IF(dati_pdc!$C1164=5,dati_bdv!$G$2:$G$65536,dati_bdv!$H$2:$H$65536))))),$A1164,dati_bdv!M$2:M$65536)","v":0},{"$f":"SUMIF(IF(dati_pdc!$C1164=1,dati_bdv!$C$2:$C$65536,IF(dati_pdc!$C1164=2,dati_bdv!$D$2:$D$65536,IF(dati_pdc!$C1164=3,dati_bdv!$E$2:$E$65536,IF(dati_pdc!$C1164=4,dati_bdv!$F$2:$F$65536,IF(dati_pdc!$C1164=5,dati_bdv!$G$2:$G$65536,dati_bdv!$H$2:$H$65536))))),$A1164,dati_bdv!N$2:N$65536)","v":0}]
[{"$f":"dati_pdc!A1165","v":0},{"$f":"SUMIF(IF(dati_pdc!$C1165=1,dati_bdv!$C$2:$C$65536,IF(dati_pdc!$C1165=2,dati_bdv!$D$2:$D$65536,IF(dati_pdc!$C1165=3,dati_bdv!$E$2:$E$65536,IF(dati_pdc!$C1165=4,dati_bdv!$F$2:$F$65536,IF(dati_pdc!$C1165=5,dati_bdv!$G$2:$G$65536,dati_bdv!$H$2:$H$65536))))),$A1165,dati_bdv!J$2:J$65536)","v":0},{"$f":"SUMIF(IF(dati_pdc!$C1165=1,dati_bdv!$C$2:$C$65536,IF(dati_pdc!$C1165=2,dati_bdv!$D$2:$D$65536,IF(dati_pdc!$C1165=3,dati_bdv!$E$2:$E$65536,IF(dati_pdc!$C1165=4,dati_bdv!$F$2:$F$65536,IF(dati_pdc!$C1165=5,dati_bdv!$G$2:$G$65536,dati_bdv!$H$2:$H$65536))))),$A1165,dati_bdv!K$2:K$65536)","v":0},{"$f":"SUMIF(IF(dati_pdc!$C1165=1,dati_bdv!$C$2:$C$65536,IF(dati_pdc!$C1165=2,dati_bdv!$D$2:$D$65536,IF(dati_pdc!$C1165=3,dati_bdv!$E$2:$E$65536,IF(dati_pdc!$C1165=4,dati_bdv!$F$2:$F$65536,IF(dati_pdc!$C1165=5,dati_bdv!$G$2:$G$65536,dati_bdv!$H$2:$H$65536))))),$A1165,dati_bdv!L$2:L$65536)","v":0},{"$f":"SUMIF(IF(dati_pdc!$C1165=1,dati_bdv!$C$2:$C$65536,IF(dati_pdc!$C1165=2,dati_bdv!$D$2:$D$65536,IF(dati_pdc!$C1165=3,dati_bdv!$E$2:$E$65536,IF(dati_pdc!$C1165=4,dati_bdv!$F$2:$F$65536,IF(dati_pdc!$C1165=5,dati_bdv!$G$2:$G$65536,dati_bdv!$H$2:$H$65536))))),$A1165,dati_bdv!M$2:M$65536)","v":0},{"$f":"SUMIF(IF(dati_pdc!$C1165=1,dati_bdv!$C$2:$C$65536,IF(dati_pdc!$C1165=2,dati_bdv!$D$2:$D$65536,IF(dati_pdc!$C1165=3,dati_bdv!$E$2:$E$65536,IF(dati_pdc!$C1165=4,dati_bdv!$F$2:$F$65536,IF(dati_pdc!$C1165=5,dati_bdv!$G$2:$G$65536,dati_bdv!$H$2:$H$65536))))),$A1165,dati_bdv!N$2:N$65536)","v":0}]
[{"$f":"dati_pdc!A1166","v":0},{"$f":"SUMIF(IF(dati_pdc!$C1166=1,dati_bdv!$C$2:$C$65536,IF(dati_pdc!$C1166=2,dati_bdv!$D$2:$D$65536,IF(dati_pdc!$C1166=3,dati_bdv!$E$2:$E$65536,IF(dati_pdc!$C1166=4,dati_bdv!$F$2:$F$65536,IF(dati_pdc!$C1166=5,dati_bdv!$G$2:$G$65536,dati_bdv!$H$2:$H$65536))))),$A1166,dati_bdv!J$2:J$65536)","v":0},{"$f":"SUMIF(IF(dati_pdc!$C1166=1,dati_bdv!$C$2:$C$65536,IF(dati_pdc!$C1166=2,dati_bdv!$D$2:$D$65536,IF(dati_pdc!$C1166=3,dati_bdv!$E$2:$E$65536,IF(dati_pdc!$C1166=4,dati_bdv!$F$2:$F$65536,IF(dati_pdc!$C1166=5,dati_bdv!$G$2:$G$65536,dati_bdv!$H$2:$H$65536))))),$A1166,dati_bdv!K$2:K$65536)","v":0},{"$f":"SUMIF(IF(dati_pdc!$C1166=1,dati_bdv!$C$2:$C$65536,IF(dati_pdc!$C1166=2,dati_bdv!$D$2:$D$65536,IF(dati_pdc!$C1166=3,dati_bdv!$E$2:$E$65536,IF(dati_pdc!$C1166=4,dati_bdv!$F$2:$F$65536,IF(dati_pdc!$C1166=5,dati_bdv!$G$2:$G$65536,dati_bdv!$H$2:$H$65536))))),$A1166,dati_bdv!L$2:L$65536)","v":0},{"$f":"SUMIF(IF(dati_pdc!$C1166=1,dati_bdv!$C$2:$C$65536,IF(dati_pdc!$C1166=2,dati_bdv!$D$2:$D$65536,IF(dati_pdc!$C1166=3,dati_bdv!$E$2:$E$65536,IF(dati_pdc!$C1166=4,dati_bdv!$F$2:$F$65536,IF(dati_pdc!$C1166=5,dati_bdv!$G$2:$G$65536,dati_bdv!$H$2:$H$65536))))),$A1166,dati_bdv!M$2:M$65536)","v":0},{"$f":"SUMIF(IF(dati_pdc!$C1166=1,dati_bdv!$C$2:$C$65536,IF(dati_pdc!$C1166=2,dati_bdv!$D$2:$D$65536,IF(dati_pdc!$C1166=3,dati_bdv!$E$2:$E$65536,IF(dati_pdc!$C1166=4,dati_bdv!$F$2:$F$65536,IF(dati_pdc!$C1166=5,dati_bdv!$G$2:$G$65536,dati_bdv!$H$2:$H$65536))))),$A1166,dati_bdv!N$2:N$65536)","v":0}]
[{"$f":"dati_pdc!A1167","v":0},{"$f":"SUMIF(IF(dati_pdc!$C1167=1,dati_bdv!$C$2:$C$65536,IF(dati_pdc!$C1167=2,dati_bdv!$D$2:$D$65536,IF(dati_pdc!$C1167=3,dati_bdv!$E$2:$E$65536,IF(dati_pdc!$C1167=4,dati_bdv!$F$2:$F$65536,IF(dati_pdc!$C1167=5,dati_bdv!$G$2:$G$65536,dati_bdv!$H$2:$H$65536))))),$A1167,dati_bdv!J$2:J$65536)","v":0},{"$f":"SUMIF(IF(dati_pdc!$C1167=1,dati_bdv!$C$2:$C$65536,IF(dati_pdc!$C1167=2,dati_bdv!$D$2:$D$65536,IF(dati_pdc!$C1167=3,dati_bdv!$E$2:$E$65536,IF(dati_pdc!$C1167=4,dati_bdv!$F$2:$F$65536,IF(dati_pdc!$C1167=5,dati_bdv!$G$2:$G$65536,dati_bdv!$H$2:$H$65536))))),$A1167,dati_bdv!K$2:K$65536)","v":0},{"$f":"SUMIF(IF(dati_pdc!$C1167=1,dati_bdv!$C$2:$C$65536,IF(dati_pdc!$C1167=2,dati_bdv!$D$2:$D$65536,IF(dati_pdc!$C1167=3,dati_bdv!$E$2:$E$65536,IF(dati_pdc!$C1167=4,dati_bdv!$F$2:$F$65536,IF(dati_pdc!$C1167=5,dati_bdv!$G$2:$G$65536,dati_bdv!$H$2:$H$65536))))),$A1167,dati_bdv!L$2:L$65536)","v":0},{"$f":"SUMIF(IF(dati_pdc!$C1167=1,dati_bdv!$C$2:$C$65536,IF(dati_pdc!$C1167=2,dati_bdv!$D$2:$D$65536,IF(dati_pdc!$C1167=3,dati_bdv!$E$2:$E$65536,IF(dati_pdc!$C1167=4,dati_bdv!$F$2:$F$65536,IF(dati_pdc!$C1167=5,dati_bdv!$G$2:$G$65536,dati_bdv!$H$2:$H$65536))))),$A1167,dati_bdv!M$2:M$65536)","v":0},{"$f":"SUMIF(IF(dati_pdc!$C1167=1,dati_bdv!$C$2:$C$65536,IF(dati_pdc!$C1167=2,dati_bdv!$D$2:$D$65536,IF(dati_pdc!$C1167=3,dati_bdv!$E$2:$E$65536,IF(dati_pdc!$C1167=4,dati_bdv!$F$2:$F$65536,IF(dati_pdc!$C1167=5,dati_bdv!$G$2:$G$65536,dati_bdv!$H$2:$H$65536))))),$A1167,dati_bdv!N$2:N$65536)","v":0}]
[{"$f":"dati_pdc!A1168","v":0},{"$f":"SUMIF(IF(dati_pdc!$C1168=1,dati_bdv!$C$2:$C$65536,IF(dati_pdc!$C1168=2,dati_bdv!$D$2:$D$65536,IF(dati_pdc!$C1168=3,dati_bdv!$E$2:$E$65536,IF(dati_pdc!$C1168=4,dati_bdv!$F$2:$F$65536,IF(dati_pdc!$C1168=5,dati_bdv!$G$2:$G$65536,dati_bdv!$H$2:$H$65536))))),$A1168,dati_bdv!J$2:J$65536)","v":0},{"$f":"SUMIF(IF(dati_pdc!$C1168=1,dati_bdv!$C$2:$C$65536,IF(dati_pdc!$C1168=2,dati_bdv!$D$2:$D$65536,IF(dati_pdc!$C1168=3,dati_bdv!$E$2:$E$65536,IF(dati_pdc!$C1168=4,dati_bdv!$F$2:$F$65536,IF(dati_pdc!$C1168=5,dati_bdv!$G$2:$G$65536,dati_bdv!$H$2:$H$65536))))),$A1168,dati_bdv!K$2:K$65536)","v":0},{"$f":"SUMIF(IF(dati_pdc!$C1168=1,dati_bdv!$C$2:$C$65536,IF(dati_pdc!$C1168=2,dati_bdv!$D$2:$D$65536,IF(dati_pdc!$C1168=3,dati_bdv!$E$2:$E$65536,IF(dati_pdc!$C1168=4,dati_bdv!$F$2:$F$65536,IF(dati_pdc!$C1168=5,dati_bdv!$G$2:$G$65536,dati_bdv!$H$2:$H$65536))))),$A1168,dati_bdv!L$2:L$65536)","v":0},{"$f":"SUMIF(IF(dati_pdc!$C1168=1,dati_bdv!$C$2:$C$65536,IF(dati_pdc!$C1168=2,dati_bdv!$D$2:$D$65536,IF(dati_pdc!$C1168=3,dati_bdv!$E$2:$E$65536,IF(dati_pdc!$C1168=4,dati_bdv!$F$2:$F$65536,IF(dati_pdc!$C1168=5,dati_bdv!$G$2:$G$65536,dati_bdv!$H$2:$H$65536))))),$A1168,dati_bdv!M$2:M$65536)","v":0},{"$f":"SUMIF(IF(dati_pdc!$C1168=1,dati_bdv!$C$2:$C$65536,IF(dati_pdc!$C1168=2,dati_bdv!$D$2:$D$65536,IF(dati_pdc!$C1168=3,dati_bdv!$E$2:$E$65536,IF(dati_pdc!$C1168=4,dati_bdv!$F$2:$F$65536,IF(dati_pdc!$C1168=5,dati_bdv!$G$2:$G$65536,dati_bdv!$H$2:$H$65536))))),$A1168,dati_bdv!N$2:N$65536)","v":0}]
[{"$f":"dati_pdc!A1169","v":0},{"$f":"SUMIF(IF(dati_pdc!$C1169=1,dati_bdv!$C$2:$C$65536,IF(dati_pdc!$C1169=2,dati_bdv!$D$2:$D$65536,IF(dati_pdc!$C1169=3,dati_bdv!$E$2:$E$65536,IF(dati_pdc!$C1169=4,dati_bdv!$F$2:$F$65536,IF(dati_pdc!$C1169=5,dati_bdv!$G$2:$G$65536,dati_bdv!$H$2:$H$65536))))),$A1169,dati_bdv!J$2:J$65536)","v":0},{"$f":"SUMIF(IF(dati_pdc!$C1169=1,dati_bdv!$C$2:$C$65536,IF(dati_pdc!$C1169=2,dati_bdv!$D$2:$D$65536,IF(dati_pdc!$C1169=3,dati_bdv!$E$2:$E$65536,IF(dati_pdc!$C1169=4,dati_bdv!$F$2:$F$65536,IF(dati_pdc!$C1169=5,dati_bdv!$G$2:$G$65536,dati_bdv!$H$2:$H$65536))))),$A1169,dati_bdv!K$2:K$65536)","v":0},{"$f":"SUMIF(IF(dati_pdc!$C1169=1,dati_bdv!$C$2:$C$65536,IF(dati_pdc!$C1169=2,dati_bdv!$D$2:$D$65536,IF(dati_pdc!$C1169=3,dati_bdv!$E$2:$E$65536,IF(dati_pdc!$C1169=4,dati_bdv!$F$2:$F$65536,IF(dati_pdc!$C1169=5,dati_bdv!$G$2:$G$65536,dati_bdv!$H$2:$H$65536))))),$A1169,dati_bdv!L$2:L$65536)","v":0},{"$f":"SUMIF(IF(dati_pdc!$C1169=1,dati_bdv!$C$2:$C$65536,IF(dati_pdc!$C1169=2,dati_bdv!$D$2:$D$65536,IF(dati_pdc!$C1169=3,dati_bdv!$E$2:$E$65536,IF(dati_pdc!$C1169=4,dati_bdv!$F$2:$F$65536,IF(dati_pdc!$C1169=5,dati_bdv!$G$2:$G$65536,dati_bdv!$H$2:$H$65536))))),$A1169,dati_bdv!M$2:M$65536)","v":0},{"$f":"SUMIF(IF(dati_pdc!$C1169=1,dati_bdv!$C$2:$C$65536,IF(dati_pdc!$C1169=2,dati_bdv!$D$2:$D$65536,IF(dati_pdc!$C1169=3,dati_bdv!$E$2:$E$65536,IF(dati_pdc!$C1169=4,dati_bdv!$F$2:$F$65536,IF(dati_pdc!$C1169=5,dati_bdv!$G$2:$G$65536,dati_bdv!$H$2:$H$65536))))),$A1169,dati_bdv!N$2:N$65536)","v":0}]
[{"$f":"dati_pdc!A1170","v":0},{"$f":"SUMIF(IF(dati_pdc!$C1170=1,dati_bdv!$C$2:$C$65536,IF(dati_pdc!$C1170=2,dati_bdv!$D$2:$D$65536,IF(dati_pdc!$C1170=3,dati_bdv!$E$2:$E$65536,IF(dati_pdc!$C1170=4,dati_bdv!$F$2:$F$65536,IF(dati_pdc!$C1170=5,dati_bdv!$G$2:$G$65536,dati_bdv!$H$2:$H$65536))))),$A1170,dati_bdv!J$2:J$65536)","v":0},{"$f":"SUMIF(IF(dati_pdc!$C1170=1,dati_bdv!$C$2:$C$65536,IF(dati_pdc!$C1170=2,dati_bdv!$D$2:$D$65536,IF(dati_pdc!$C1170=3,dati_bdv!$E$2:$E$65536,IF(dati_pdc!$C1170=4,dati_bdv!$F$2:$F$65536,IF(dati_pdc!$C1170=5,dati_bdv!$G$2:$G$65536,dati_bdv!$H$2:$H$65536))))),$A1170,dati_bdv!K$2:K$65536)","v":0},{"$f":"SUMIF(IF(dati_pdc!$C1170=1,dati_bdv!$C$2:$C$65536,IF(dati_pdc!$C1170=2,dati_bdv!$D$2:$D$65536,IF(dati_pdc!$C1170=3,dati_bdv!$E$2:$E$65536,IF(dati_pdc!$C1170=4,dati_bdv!$F$2:$F$65536,IF(dati_pdc!$C1170=5,dati_bdv!$G$2:$G$65536,dati_bdv!$H$2:$H$65536))))),$A1170,dati_bdv!L$2:L$65536)","v":0},{"$f":"SUMIF(IF(dati_pdc!$C1170=1,dati_bdv!$C$2:$C$65536,IF(dati_pdc!$C1170=2,dati_bdv!$D$2:$D$65536,IF(dati_pdc!$C1170=3,dati_bdv!$E$2:$E$65536,IF(dati_pdc!$C1170=4,dati_bdv!$F$2:$F$65536,IF(dati_pdc!$C1170=5,dati_bdv!$G$2:$G$65536,dati_bdv!$H$2:$H$65536))))),$A1170,dati_bdv!M$2:M$65536)","v":0},{"$f":"SUMIF(IF(dati_pdc!$C1170=1,dati_bdv!$C$2:$C$65536,IF(dati_pdc!$C1170=2,dati_bdv!$D$2:$D$65536,IF(dati_pdc!$C1170=3,dati_bdv!$E$2:$E$65536,IF(dati_pdc!$C1170=4,dati_bdv!$F$2:$F$65536,IF(dati_pdc!$C1170=5,dati_bdv!$G$2:$G$65536,dati_bdv!$H$2:$H$65536))))),$A1170,dati_bdv!N$2:N$65536)","v":0}]
[{"$f":"dati_pdc!A1171","v":0},{"$f":"SUMIF(IF(dati_pdc!$C1171=1,dati_bdv!$C$2:$C$65536,IF(dati_pdc!$C1171=2,dati_bdv!$D$2:$D$65536,IF(dati_pdc!$C1171=3,dati_bdv!$E$2:$E$65536,IF(dati_pdc!$C1171=4,dati_bdv!$F$2:$F$65536,IF(dati_pdc!$C1171=5,dati_bdv!$G$2:$G$65536,dati_bdv!$H$2:$H$65536))))),$A1171,dati_bdv!J$2:J$65536)","v":0},{"$f":"SUMIF(IF(dati_pdc!$C1171=1,dati_bdv!$C$2:$C$65536,IF(dati_pdc!$C1171=2,dati_bdv!$D$2:$D$65536,IF(dati_pdc!$C1171=3,dati_bdv!$E$2:$E$65536,IF(dati_pdc!$C1171=4,dati_bdv!$F$2:$F$65536,IF(dati_pdc!$C1171=5,dati_bdv!$G$2:$G$65536,dati_bdv!$H$2:$H$65536))))),$A1171,dati_bdv!K$2:K$65536)","v":0},{"$f":"SUMIF(IF(dati_pdc!$C1171=1,dati_bdv!$C$2:$C$65536,IF(dati_pdc!$C1171=2,dati_bdv!$D$2:$D$65536,IF(dati_pdc!$C1171=3,dati_bdv!$E$2:$E$65536,IF(dati_pdc!$C1171=4,dati_bdv!$F$2:$F$65536,IF(dati_pdc!$C1171=5,dati_bdv!$G$2:$G$65536,dati_bdv!$H$2:$H$65536))))),$A1171,dati_bdv!L$2:L$65536)","v":0},{"$f":"SUMIF(IF(dati_pdc!$C1171=1,dati_bdv!$C$2:$C$65536,IF(dati_pdc!$C1171=2,dati_bdv!$D$2:$D$65536,IF(dati_pdc!$C1171=3,dati_bdv!$E$2:$E$65536,IF(dati_pdc!$C1171=4,dati_bdv!$F$2:$F$65536,IF(dati_pdc!$C1171=5,dati_bdv!$G$2:$G$65536,dati_bdv!$H$2:$H$65536))))),$A1171,dati_bdv!M$2:M$65536)","v":0},{"$f":"SUMIF(IF(dati_pdc!$C1171=1,dati_bdv!$C$2:$C$65536,IF(dati_pdc!$C1171=2,dati_bdv!$D$2:$D$65536,IF(dati_pdc!$C1171=3,dati_bdv!$E$2:$E$65536,IF(dati_pdc!$C1171=4,dati_bdv!$F$2:$F$65536,IF(dati_pdc!$C1171=5,dati_bdv!$G$2:$G$65536,dati_bdv!$H$2:$H$65536))))),$A1171,dati_bdv!N$2:N$65536)","v":0}]
[{"$f":"dati_pdc!A1172","v":0},{"$f":"SUMIF(IF(dati_pdc!$C1172=1,dati_bdv!$C$2:$C$65536,IF(dati_pdc!$C1172=2,dati_bdv!$D$2:$D$65536,IF(dati_pdc!$C1172=3,dati_bdv!$E$2:$E$65536,IF(dati_pdc!$C1172=4,dati_bdv!$F$2:$F$65536,IF(dati_pdc!$C1172=5,dati_bdv!$G$2:$G$65536,dati_bdv!$H$2:$H$65536))))),$A1172,dati_bdv!J$2:J$65536)","v":0},{"$f":"SUMIF(IF(dati_pdc!$C1172=1,dati_bdv!$C$2:$C$65536,IF(dati_pdc!$C1172=2,dati_bdv!$D$2:$D$65536,IF(dati_pdc!$C1172=3,dati_bdv!$E$2:$E$65536,IF(dati_pdc!$C1172=4,dati_bdv!$F$2:$F$65536,IF(dati_pdc!$C1172=5,dati_bdv!$G$2:$G$65536,dati_bdv!$H$2:$H$65536))))),$A1172,dati_bdv!K$2:K$65536)","v":0},{"$f":"SUMIF(IF(dati_pdc!$C1172=1,dati_bdv!$C$2:$C$65536,IF(dati_pdc!$C1172=2,dati_bdv!$D$2:$D$65536,IF(dati_pdc!$C1172=3,dati_bdv!$E$2:$E$65536,IF(dati_pdc!$C1172=4,dati_bdv!$F$2:$F$65536,IF(dati_pdc!$C1172=5,dati_bdv!$G$2:$G$65536,dati_bdv!$H$2:$H$65536))))),$A1172,dati_bdv!L$2:L$65536)","v":0},{"$f":"SUMIF(IF(dati_pdc!$C1172=1,dati_bdv!$C$2:$C$65536,IF(dati_pdc!$C1172=2,dati_bdv!$D$2:$D$65536,IF(dati_pdc!$C1172=3,dati_bdv!$E$2:$E$65536,IF(dati_pdc!$C1172=4,dati_bdv!$F$2:$F$65536,IF(dati_pdc!$C1172=5,dati_bdv!$G$2:$G$65536,dati_bdv!$H$2:$H$65536))))),$A1172,dati_bdv!M$2:M$65536)","v":0},{"$f":"SUMIF(IF(dati_pdc!$C1172=1,dati_bdv!$C$2:$C$65536,IF(dati_pdc!$C1172=2,dati_bdv!$D$2:$D$65536,IF(dati_pdc!$C1172=3,dati_bdv!$E$2:$E$65536,IF(dati_pdc!$C1172=4,dati_bdv!$F$2:$F$65536,IF(dati_pdc!$C1172=5,dati_bdv!$G$2:$G$65536,dati_bdv!$H$2:$H$65536))))),$A1172,dati_bdv!N$2:N$65536)","v":0}]
[{"$f":"dati_pdc!A1173","v":0},{"$f":"SUMIF(IF(dati_pdc!$C1173=1,dati_bdv!$C$2:$C$65536,IF(dati_pdc!$C1173=2,dati_bdv!$D$2:$D$65536,IF(dati_pdc!$C1173=3,dati_bdv!$E$2:$E$65536,IF(dati_pdc!$C1173=4,dati_bdv!$F$2:$F$65536,IF(dati_pdc!$C1173=5,dati_bdv!$G$2:$G$65536,dati_bdv!$H$2:$H$65536))))),$A1173,dati_bdv!J$2:J$65536)","v":0},{"$f":"SUMIF(IF(dati_pdc!$C1173=1,dati_bdv!$C$2:$C$65536,IF(dati_pdc!$C1173=2,dati_bdv!$D$2:$D$65536,IF(dati_pdc!$C1173=3,dati_bdv!$E$2:$E$65536,IF(dati_pdc!$C1173=4,dati_bdv!$F$2:$F$65536,IF(dati_pdc!$C1173=5,dati_bdv!$G$2:$G$65536,dati_bdv!$H$2:$H$65536))))),$A1173,dati_bdv!K$2:K$65536)","v":0},{"$f":"SUMIF(IF(dati_pdc!$C1173=1,dati_bdv!$C$2:$C$65536,IF(dati_pdc!$C1173=2,dati_bdv!$D$2:$D$65536,IF(dati_pdc!$C1173=3,dati_bdv!$E$2:$E$65536,IF(dati_pdc!$C1173=4,dati_bdv!$F$2:$F$65536,IF(dati_pdc!$C1173=5,dati_bdv!$G$2:$G$65536,dati_bdv!$H$2:$H$65536))))),$A1173,dati_bdv!L$2:L$65536)","v":0},{"$f":"SUMIF(IF(dati_pdc!$C1173=1,dati_bdv!$C$2:$C$65536,IF(dati_pdc!$C1173=2,dati_bdv!$D$2:$D$65536,IF(dati_pdc!$C1173=3,dati_bdv!$E$2:$E$65536,IF(dati_pdc!$C1173=4,dati_bdv!$F$2:$F$65536,IF(dati_pdc!$C1173=5,dati_bdv!$G$2:$G$65536,dati_bdv!$H$2:$H$65536))))),$A1173,dati_bdv!M$2:M$65536)","v":0},{"$f":"SUMIF(IF(dati_pdc!$C1173=1,dati_bdv!$C$2:$C$65536,IF(dati_pdc!$C1173=2,dati_bdv!$D$2:$D$65536,IF(dati_pdc!$C1173=3,dati_bdv!$E$2:$E$65536,IF(dati_pdc!$C1173=4,dati_bdv!$F$2:$F$65536,IF(dati_pdc!$C1173=5,dati_bdv!$G$2:$G$65536,dati_bdv!$H$2:$H$65536))))),$A1173,dati_bdv!N$2:N$65536)","v":0}]
[{"$f":"dati_pdc!A1174","v":0},{"$f":"SUMIF(IF(dati_pdc!$C1174=1,dati_bdv!$C$2:$C$65536,IF(dati_pdc!$C1174=2,dati_bdv!$D$2:$D$65536,IF(dati_pdc!$C1174=3,dati_bdv!$E$2:$E$65536,IF(dati_pdc!$C1174=4,dati_bdv!$F$2:$F$65536,IF(dati_pdc!$C1174=5,dati_bdv!$G$2:$G$65536,dati_bdv!$H$2:$H$65536))))),$A1174,dati_bdv!J$2:J$65536)","v":0},{"$f":"SUMIF(IF(dati_pdc!$C1174=1,dati_bdv!$C$2:$C$65536,IF(dati_pdc!$C1174=2,dati_bdv!$D$2:$D$65536,IF(dati_pdc!$C1174=3,dati_bdv!$E$2:$E$65536,IF(dati_pdc!$C1174=4,dati_bdv!$F$2:$F$65536,IF(dati_pdc!$C1174=5,dati_bdv!$G$2:$G$65536,dati_bdv!$H$2:$H$65536))))),$A1174,dati_bdv!K$2:K$65536)","v":0},{"$f":"SUMIF(IF(dati_pdc!$C1174=1,dati_bdv!$C$2:$C$65536,IF(dati_pdc!$C1174=2,dati_bdv!$D$2:$D$65536,IF(dati_pdc!$C1174=3,dati_bdv!$E$2:$E$65536,IF(dati_pdc!$C1174=4,dati_bdv!$F$2:$F$65536,IF(dati_pdc!$C1174=5,dati_bdv!$G$2:$G$65536,dati_bdv!$H$2:$H$65536))))),$A1174,dati_bdv!L$2:L$65536)","v":0},{"$f":"SUMIF(IF(dati_pdc!$C1174=1,dati_bdv!$C$2:$C$65536,IF(dati_pdc!$C1174=2,dati_bdv!$D$2:$D$65536,IF(dati_pdc!$C1174=3,dati_bdv!$E$2:$E$65536,IF(dati_pdc!$C1174=4,dati_bdv!$F$2:$F$65536,IF(dati_pdc!$C1174=5,dati_bdv!$G$2:$G$65536,dati_bdv!$H$2:$H$65536))))),$A1174,dati_bdv!M$2:M$65536)","v":0},{"$f":"SUMIF(IF(dati_pdc!$C1174=1,dati_bdv!$C$2:$C$65536,IF(dati_pdc!$C1174=2,dati_bdv!$D$2:$D$65536,IF(dati_pdc!$C1174=3,dati_bdv!$E$2:$E$65536,IF(dati_pdc!$C1174=4,dati_bdv!$F$2:$F$65536,IF(dati_pdc!$C1174=5,dati_bdv!$G$2:$G$65536,dati_bdv!$H$2:$H$65536))))),$A1174,dati_bdv!N$2:N$65536)","v":0}]
[{"$f":"dati_pdc!A1175","v":0},{"$f":"SUMIF(IF(dati_pdc!$C1175=1,dati_bdv!$C$2:$C$65536,IF(dati_pdc!$C1175=2,dati_bdv!$D$2:$D$65536,IF(dati_pdc!$C1175=3,dati_bdv!$E$2:$E$65536,IF(dati_pdc!$C1175=4,dati_bdv!$F$2:$F$65536,IF(dati_pdc!$C1175=5,dati_bdv!$G$2:$G$65536,dati_bdv!$H$2:$H$65536))))),$A1175,dati_bdv!J$2:J$65536)","v":0},{"$f":"SUMIF(IF(dati_pdc!$C1175=1,dati_bdv!$C$2:$C$65536,IF(dati_pdc!$C1175=2,dati_bdv!$D$2:$D$65536,IF(dati_pdc!$C1175=3,dati_bdv!$E$2:$E$65536,IF(dati_pdc!$C1175=4,dati_bdv!$F$2:$F$65536,IF(dati_pdc!$C1175=5,dati_bdv!$G$2:$G$65536,dati_bdv!$H$2:$H$65536))))),$A1175,dati_bdv!K$2:K$65536)","v":0},{"$f":"SUMIF(IF(dati_pdc!$C1175=1,dati_bdv!$C$2:$C$65536,IF(dati_pdc!$C1175=2,dati_bdv!$D$2:$D$65536,IF(dati_pdc!$C1175=3,dati_bdv!$E$2:$E$65536,IF(dati_pdc!$C1175=4,dati_bdv!$F$2:$F$65536,IF(dati_pdc!$C1175=5,dati_bdv!$G$2:$G$65536,dati_bdv!$H$2:$H$65536))))),$A1175,dati_bdv!L$2:L$65536)","v":0},{"$f":"SUMIF(IF(dati_pdc!$C1175=1,dati_bdv!$C$2:$C$65536,IF(dati_pdc!$C1175=2,dati_bdv!$D$2:$D$65536,IF(dati_pdc!$C1175=3,dati_bdv!$E$2:$E$65536,IF(dati_pdc!$C1175=4,dati_bdv!$F$2:$F$65536,IF(dati_pdc!$C1175=5,dati_bdv!$G$2:$G$65536,dati_bdv!$H$2:$H$65536))))),$A1175,dati_bdv!M$2:M$65536)","v":0},{"$f":"SUMIF(IF(dati_pdc!$C1175=1,dati_bdv!$C$2:$C$65536,IF(dati_pdc!$C1175=2,dati_bdv!$D$2:$D$65536,IF(dati_pdc!$C1175=3,dati_bdv!$E$2:$E$65536,IF(dati_pdc!$C1175=4,dati_bdv!$F$2:$F$65536,IF(dati_pdc!$C1175=5,dati_bdv!$G$2:$G$65536,dati_bdv!$H$2:$H$65536))))),$A1175,dati_bdv!N$2:N$65536)","v":0}]
[{"$f":"dati_pdc!A1176","v":0},{"$f":"SUMIF(IF(dati_pdc!$C1176=1,dati_bdv!$C$2:$C$65536,IF(dati_pdc!$C1176=2,dati_bdv!$D$2:$D$65536,IF(dati_pdc!$C1176=3,dati_bdv!$E$2:$E$65536,IF(dati_pdc!$C1176=4,dati_bdv!$F$2:$F$65536,IF(dati_pdc!$C1176=5,dati_bdv!$G$2:$G$65536,dati_bdv!$H$2:$H$65536))))),$A1176,dati_bdv!J$2:J$65536)","v":0},{"$f":"SUMIF(IF(dati_pdc!$C1176=1,dati_bdv!$C$2:$C$65536,IF(dati_pdc!$C1176=2,dati_bdv!$D$2:$D$65536,IF(dati_pdc!$C1176=3,dati_bdv!$E$2:$E$65536,IF(dati_pdc!$C1176=4,dati_bdv!$F$2:$F$65536,IF(dati_pdc!$C1176=5,dati_bdv!$G$2:$G$65536,dati_bdv!$H$2:$H$65536))))),$A1176,dati_bdv!K$2:K$65536)","v":0},{"$f":"SUMIF(IF(dati_pdc!$C1176=1,dati_bdv!$C$2:$C$65536,IF(dati_pdc!$C1176=2,dati_bdv!$D$2:$D$65536,IF(dati_pdc!$C1176=3,dati_bdv!$E$2:$E$65536,IF(dati_pdc!$C1176=4,dati_bdv!$F$2:$F$65536,IF(dati_pdc!$C1176=5,dati_bdv!$G$2:$G$65536,dati_bdv!$H$2:$H$65536))))),$A1176,dati_bdv!L$2:L$65536)","v":0},{"$f":"SUMIF(IF(dati_pdc!$C1176=1,dati_bdv!$C$2:$C$65536,IF(dati_pdc!$C1176=2,dati_bdv!$D$2:$D$65536,IF(dati_pdc!$C1176=3,dati_bdv!$E$2:$E$65536,IF(dati_pdc!$C1176=4,dati_bdv!$F$2:$F$65536,IF(dati_pdc!$C1176=5,dati_bdv!$G$2:$G$65536,dati_bdv!$H$2:$H$65536))))),$A1176,dati_bdv!M$2:M$65536)","v":0},{"$f":"SUMIF(IF(dati_pdc!$C1176=1,dati_bdv!$C$2:$C$65536,IF(dati_pdc!$C1176=2,dati_bdv!$D$2:$D$65536,IF(dati_pdc!$C1176=3,dati_bdv!$E$2:$E$65536,IF(dati_pdc!$C1176=4,dati_bdv!$F$2:$F$65536,IF(dati_pdc!$C1176=5,dati_bdv!$G$2:$G$65536,dati_bdv!$H$2:$H$65536))))),$A1176,dati_bdv!N$2:N$65536)","v":0}]
[{"$f":"dati_pdc!A1177","v":0},{"$f":"SUMIF(IF(dati_pdc!$C1177=1,dati_bdv!$C$2:$C$65536,IF(dati_pdc!$C1177=2,dati_bdv!$D$2:$D$65536,IF(dati_pdc!$C1177=3,dati_bdv!$E$2:$E$65536,IF(dati_pdc!$C1177=4,dati_bdv!$F$2:$F$65536,IF(dati_pdc!$C1177=5,dati_bdv!$G$2:$G$65536,dati_bdv!$H$2:$H$65536))))),$A1177,dati_bdv!J$2:J$65536)","v":0},{"$f":"SUMIF(IF(dati_pdc!$C1177=1,dati_bdv!$C$2:$C$65536,IF(dati_pdc!$C1177=2,dati_bdv!$D$2:$D$65536,IF(dati_pdc!$C1177=3,dati_bdv!$E$2:$E$65536,IF(dati_pdc!$C1177=4,dati_bdv!$F$2:$F$65536,IF(dati_pdc!$C1177=5,dati_bdv!$G$2:$G$65536,dati_bdv!$H$2:$H$65536))))),$A1177,dati_bdv!K$2:K$65536)","v":0},{"$f":"SUMIF(IF(dati_pdc!$C1177=1,dati_bdv!$C$2:$C$65536,IF(dati_pdc!$C1177=2,dati_bdv!$D$2:$D$65536,IF(dati_pdc!$C1177=3,dati_bdv!$E$2:$E$65536,IF(dati_pdc!$C1177=4,dati_bdv!$F$2:$F$65536,IF(dati_pdc!$C1177=5,dati_bdv!$G$2:$G$65536,dati_bdv!$H$2:$H$65536))))),$A1177,dati_bdv!L$2:L$65536)","v":0},{"$f":"SUMIF(IF(dati_pdc!$C1177=1,dati_bdv!$C$2:$C$65536,IF(dati_pdc!$C1177=2,dati_bdv!$D$2:$D$65536,IF(dati_pdc!$C1177=3,dati_bdv!$E$2:$E$65536,IF(dati_pdc!$C1177=4,dati_bdv!$F$2:$F$65536,IF(dati_pdc!$C1177=5,dati_bdv!$G$2:$G$65536,dati_bdv!$H$2:$H$65536))))),$A1177,dati_bdv!M$2:M$65536)","v":0},{"$f":"SUMIF(IF(dati_pdc!$C1177=1,dati_bdv!$C$2:$C$65536,IF(dati_pdc!$C1177=2,dati_bdv!$D$2:$D$65536,IF(dati_pdc!$C1177=3,dati_bdv!$E$2:$E$65536,IF(dati_pdc!$C1177=4,dati_bdv!$F$2:$F$65536,IF(dati_pdc!$C1177=5,dati_bdv!$G$2:$G$65536,dati_bdv!$H$2:$H$65536))))),$A1177,dati_bdv!N$2:N$65536)","v":0}]
[{"$f":"dati_pdc!A1178","v":0},{"$f":"SUMIF(IF(dati_pdc!$C1178=1,dati_bdv!$C$2:$C$65536,IF(dati_pdc!$C1178=2,dati_bdv!$D$2:$D$65536,IF(dati_pdc!$C1178=3,dati_bdv!$E$2:$E$65536,IF(dati_pdc!$C1178=4,dati_bdv!$F$2:$F$65536,IF(dati_pdc!$C1178=5,dati_bdv!$G$2:$G$65536,dati_bdv!$H$2:$H$65536))))),$A1178,dati_bdv!J$2:J$65536)","v":0},{"$f":"SUMIF(IF(dati_pdc!$C1178=1,dati_bdv!$C$2:$C$65536,IF(dati_pdc!$C1178=2,dati_bdv!$D$2:$D$65536,IF(dati_pdc!$C1178=3,dati_bdv!$E$2:$E$65536,IF(dati_pdc!$C1178=4,dati_bdv!$F$2:$F$65536,IF(dati_pdc!$C1178=5,dati_bdv!$G$2:$G$65536,dati_bdv!$H$2:$H$65536))))),$A1178,dati_bdv!K$2:K$65536)","v":0},{"$f":"SUMIF(IF(dati_pdc!$C1178=1,dati_bdv!$C$2:$C$65536,IF(dati_pdc!$C1178=2,dati_bdv!$D$2:$D$65536,IF(dati_pdc!$C1178=3,dati_bdv!$E$2:$E$65536,IF(dati_pdc!$C1178=4,dati_bdv!$F$2:$F$65536,IF(dati_pdc!$C1178=5,dati_bdv!$G$2:$G$65536,dati_bdv!$H$2:$H$65536))))),$A1178,dati_bdv!L$2:L$65536)","v":0},{"$f":"SUMIF(IF(dati_pdc!$C1178=1,dati_bdv!$C$2:$C$65536,IF(dati_pdc!$C1178=2,dati_bdv!$D$2:$D$65536,IF(dati_pdc!$C1178=3,dati_bdv!$E$2:$E$65536,IF(dati_pdc!$C1178=4,dati_bdv!$F$2:$F$65536,IF(dati_pdc!$C1178=5,dati_bdv!$G$2:$G$65536,dati_bdv!$H$2:$H$65536))))),$A1178,dati_bdv!M$2:M$65536)","v":0},{"$f":"SUMIF(IF(dati_pdc!$C1178=1,dati_bdv!$C$2:$C$65536,IF(dati_pdc!$C1178=2,dati_bdv!$D$2:$D$65536,IF(dati_pdc!$C1178=3,dati_bdv!$E$2:$E$65536,IF(dati_pdc!$C1178=4,dati_bdv!$F$2:$F$65536,IF(dati_pdc!$C1178=5,dati_bdv!$G$2:$G$65536,dati_bdv!$H$2:$H$65536))))),$A1178,dati_bdv!N$2:N$65536)","v":0}]
[{"$f":"dati_pdc!A1179","v":0},{"$f":"SUMIF(IF(dati_pdc!$C1179=1,dati_bdv!$C$2:$C$65536,IF(dati_pdc!$C1179=2,dati_bdv!$D$2:$D$65536,IF(dati_pdc!$C1179=3,dati_bdv!$E$2:$E$65536,IF(dati_pdc!$C1179=4,dati_bdv!$F$2:$F$65536,IF(dati_pdc!$C1179=5,dati_bdv!$G$2:$G$65536,dati_bdv!$H$2:$H$65536))))),$A1179,dati_bdv!J$2:J$65536)","v":0},{"$f":"SUMIF(IF(dati_pdc!$C1179=1,dati_bdv!$C$2:$C$65536,IF(dati_pdc!$C1179=2,dati_bdv!$D$2:$D$65536,IF(dati_pdc!$C1179=3,dati_bdv!$E$2:$E$65536,IF(dati_pdc!$C1179=4,dati_bdv!$F$2:$F$65536,IF(dati_pdc!$C1179=5,dati_bdv!$G$2:$G$65536,dati_bdv!$H$2:$H$65536))))),$A1179,dati_bdv!K$2:K$65536)","v":0},{"$f":"SUMIF(IF(dati_pdc!$C1179=1,dati_bdv!$C$2:$C$65536,IF(dati_pdc!$C1179=2,dati_bdv!$D$2:$D$65536,IF(dati_pdc!$C1179=3,dati_bdv!$E$2:$E$65536,IF(dati_pdc!$C1179=4,dati_bdv!$F$2:$F$65536,IF(dati_pdc!$C1179=5,dati_bdv!$G$2:$G$65536,dati_bdv!$H$2:$H$65536))))),$A1179,dati_bdv!L$2:L$65536)","v":0},{"$f":"SUMIF(IF(dati_pdc!$C1179=1,dati_bdv!$C$2:$C$65536,IF(dati_pdc!$C1179=2,dati_bdv!$D$2:$D$65536,IF(dati_pdc!$C1179=3,dati_bdv!$E$2:$E$65536,IF(dati_pdc!$C1179=4,dati_bdv!$F$2:$F$65536,IF(dati_pdc!$C1179=5,dati_bdv!$G$2:$G$65536,dati_bdv!$H$2:$H$65536))))),$A1179,dati_bdv!M$2:M$65536)","v":0},{"$f":"SUMIF(IF(dati_pdc!$C1179=1,dati_bdv!$C$2:$C$65536,IF(dati_pdc!$C1179=2,dati_bdv!$D$2:$D$65536,IF(dati_pdc!$C1179=3,dati_bdv!$E$2:$E$65536,IF(dati_pdc!$C1179=4,dati_bdv!$F$2:$F$65536,IF(dati_pdc!$C1179=5,dati_bdv!$G$2:$G$65536,dati_bdv!$H$2:$H$65536))))),$A1179,dati_bdv!N$2:N$65536)","v":0}]
[{"$f":"dati_pdc!A1180","v":0},{"$f":"SUMIF(IF(dati_pdc!$C1180=1,dati_bdv!$C$2:$C$65536,IF(dati_pdc!$C1180=2,dati_bdv!$D$2:$D$65536,IF(dati_pdc!$C1180=3,dati_bdv!$E$2:$E$65536,IF(dati_pdc!$C1180=4,dati_bdv!$F$2:$F$65536,IF(dati_pdc!$C1180=5,dati_bdv!$G$2:$G$65536,dati_bdv!$H$2:$H$65536))))),$A1180,dati_bdv!J$2:J$65536)","v":0},{"$f":"SUMIF(IF(dati_pdc!$C1180=1,dati_bdv!$C$2:$C$65536,IF(dati_pdc!$C1180=2,dati_bdv!$D$2:$D$65536,IF(dati_pdc!$C1180=3,dati_bdv!$E$2:$E$65536,IF(dati_pdc!$C1180=4,dati_bdv!$F$2:$F$65536,IF(dati_pdc!$C1180=5,dati_bdv!$G$2:$G$65536,dati_bdv!$H$2:$H$65536))))),$A1180,dati_bdv!K$2:K$65536)","v":0},{"$f":"SUMIF(IF(dati_pdc!$C1180=1,dati_bdv!$C$2:$C$65536,IF(dati_pdc!$C1180=2,dati_bdv!$D$2:$D$65536,IF(dati_pdc!$C1180=3,dati_bdv!$E$2:$E$65536,IF(dati_pdc!$C1180=4,dati_bdv!$F$2:$F$65536,IF(dati_pdc!$C1180=5,dati_bdv!$G$2:$G$65536,dati_bdv!$H$2:$H$65536))))),$A1180,dati_bdv!L$2:L$65536)","v":0},{"$f":"SUMIF(IF(dati_pdc!$C1180=1,dati_bdv!$C$2:$C$65536,IF(dati_pdc!$C1180=2,dati_bdv!$D$2:$D$65536,IF(dati_pdc!$C1180=3,dati_bdv!$E$2:$E$65536,IF(dati_pdc!$C1180=4,dati_bdv!$F$2:$F$65536,IF(dati_pdc!$C1180=5,dati_bdv!$G$2:$G$65536,dati_bdv!$H$2:$H$65536))))),$A1180,dati_bdv!M$2:M$65536)","v":0},{"$f":"SUMIF(IF(dati_pdc!$C1180=1,dati_bdv!$C$2:$C$65536,IF(dati_pdc!$C1180=2,dati_bdv!$D$2:$D$65536,IF(dati_pdc!$C1180=3,dati_bdv!$E$2:$E$65536,IF(dati_pdc!$C1180=4,dati_bdv!$F$2:$F$65536,IF(dati_pdc!$C1180=5,dati_bdv!$G$2:$G$65536,dati_bdv!$H$2:$H$65536))))),$A1180,dati_bdv!N$2:N$65536)","v":0}]
[{"$f":"dati_pdc!A1181","v":0},{"$f":"SUMIF(IF(dati_pdc!$C1181=1,dati_bdv!$C$2:$C$65536,IF(dati_pdc!$C1181=2,dati_bdv!$D$2:$D$65536,IF(dati_pdc!$C1181=3,dati_bdv!$E$2:$E$65536,IF(dati_pdc!$C1181=4,dati_bdv!$F$2:$F$65536,IF(dati_pdc!$C1181=5,dati_bdv!$G$2:$G$65536,dati_bdv!$H$2:$H$65536))))),$A1181,dati_bdv!J$2:J$65536)","v":0},{"$f":"SUMIF(IF(dati_pdc!$C1181=1,dati_bdv!$C$2:$C$65536,IF(dati_pdc!$C1181=2,dati_bdv!$D$2:$D$65536,IF(dati_pdc!$C1181=3,dati_bdv!$E$2:$E$65536,IF(dati_pdc!$C1181=4,dati_bdv!$F$2:$F$65536,IF(dati_pdc!$C1181=5,dati_bdv!$G$2:$G$65536,dati_bdv!$H$2:$H$65536))))),$A1181,dati_bdv!K$2:K$65536)","v":0},{"$f":"SUMIF(IF(dati_pdc!$C1181=1,dati_bdv!$C$2:$C$65536,IF(dati_pdc!$C1181=2,dati_bdv!$D$2:$D$65536,IF(dati_pdc!$C1181=3,dati_bdv!$E$2:$E$65536,IF(dati_pdc!$C1181=4,dati_bdv!$F$2:$F$65536,IF(dati_pdc!$C1181=5,dati_bdv!$G$2:$G$65536,dati_bdv!$H$2:$H$65536))))),$A1181,dati_bdv!L$2:L$65536)","v":0},{"$f":"SUMIF(IF(dati_pdc!$C1181=1,dati_bdv!$C$2:$C$65536,IF(dati_pdc!$C1181=2,dati_bdv!$D$2:$D$65536,IF(dati_pdc!$C1181=3,dati_bdv!$E$2:$E$65536,IF(dati_pdc!$C1181=4,dati_bdv!$F$2:$F$65536,IF(dati_pdc!$C1181=5,dati_bdv!$G$2:$G$65536,dati_bdv!$H$2:$H$65536))))),$A1181,dati_bdv!M$2:M$65536)","v":0},{"$f":"SUMIF(IF(dati_pdc!$C1181=1,dati_bdv!$C$2:$C$65536,IF(dati_pdc!$C1181=2,dati_bdv!$D$2:$D$65536,IF(dati_pdc!$C1181=3,dati_bdv!$E$2:$E$65536,IF(dati_pdc!$C1181=4,dati_bdv!$F$2:$F$65536,IF(dati_pdc!$C1181=5,dati_bdv!$G$2:$G$65536,dati_bdv!$H$2:$H$65536))))),$A1181,dati_bdv!N$2:N$65536)","v":0}]
[{"$f":"dati_pdc!A1182","v":0},{"$f":"SUMIF(IF(dati_pdc!$C1182=1,dati_bdv!$C$2:$C$65536,IF(dati_pdc!$C1182=2,dati_bdv!$D$2:$D$65536,IF(dati_pdc!$C1182=3,dati_bdv!$E$2:$E$65536,IF(dati_pdc!$C1182=4,dati_bdv!$F$2:$F$65536,IF(dati_pdc!$C1182=5,dati_bdv!$G$2:$G$65536,dati_bdv!$H$2:$H$65536))))),$A1182,dati_bdv!J$2:J$65536)","v":0},{"$f":"SUMIF(IF(dati_pdc!$C1182=1,dati_bdv!$C$2:$C$65536,IF(dati_pdc!$C1182=2,dati_bdv!$D$2:$D$65536,IF(dati_pdc!$C1182=3,dati_bdv!$E$2:$E$65536,IF(dati_pdc!$C1182=4,dati_bdv!$F$2:$F$65536,IF(dati_pdc!$C1182=5,dati_bdv!$G$2:$G$65536,dati_bdv!$H$2:$H$65536))))),$A1182,dati_bdv!K$2:K$65536)","v":0},{"$f":"SUMIF(IF(dati_pdc!$C1182=1,dati_bdv!$C$2:$C$65536,IF(dati_pdc!$C1182=2,dati_bdv!$D$2:$D$65536,IF(dati_pdc!$C1182=3,dati_bdv!$E$2:$E$65536,IF(dati_pdc!$C1182=4,dati_bdv!$F$2:$F$65536,IF(dati_pdc!$C1182=5,dati_bdv!$G$2:$G$65536,dati_bdv!$H$2:$H$65536))))),$A1182,dati_bdv!L$2:L$65536)","v":0},{"$f":"SUMIF(IF(dati_pdc!$C1182=1,dati_bdv!$C$2:$C$65536,IF(dati_pdc!$C1182=2,dati_bdv!$D$2:$D$65536,IF(dati_pdc!$C1182=3,dati_bdv!$E$2:$E$65536,IF(dati_pdc!$C1182=4,dati_bdv!$F$2:$F$65536,IF(dati_pdc!$C1182=5,dati_bdv!$G$2:$G$65536,dati_bdv!$H$2:$H$65536))))),$A1182,dati_bdv!M$2:M$65536)","v":0},{"$f":"SUMIF(IF(dati_pdc!$C1182=1,dati_bdv!$C$2:$C$65536,IF(dati_pdc!$C1182=2,dati_bdv!$D$2:$D$65536,IF(dati_pdc!$C1182=3,dati_bdv!$E$2:$E$65536,IF(dati_pdc!$C1182=4,dati_bdv!$F$2:$F$65536,IF(dati_pdc!$C1182=5,dati_bdv!$G$2:$G$65536,dati_bdv!$H$2:$H$65536))))),$A1182,dati_bdv!N$2:N$65536)","v":0}]
[{"$f":"dati_pdc!A1183","v":0},{"$f":"SUMIF(IF(dati_pdc!$C1183=1,dati_bdv!$C$2:$C$65536,IF(dati_pdc!$C1183=2,dati_bdv!$D$2:$D$65536,IF(dati_pdc!$C1183=3,dati_bdv!$E$2:$E$65536,IF(dati_pdc!$C1183=4,dati_bdv!$F$2:$F$65536,IF(dati_pdc!$C1183=5,dati_bdv!$G$2:$G$65536,dati_bdv!$H$2:$H$65536))))),$A1183,dati_bdv!J$2:J$65536)","v":0},{"$f":"SUMIF(IF(dati_pdc!$C1183=1,dati_bdv!$C$2:$C$65536,IF(dati_pdc!$C1183=2,dati_bdv!$D$2:$D$65536,IF(dati_pdc!$C1183=3,dati_bdv!$E$2:$E$65536,IF(dati_pdc!$C1183=4,dati_bdv!$F$2:$F$65536,IF(dati_pdc!$C1183=5,dati_bdv!$G$2:$G$65536,dati_bdv!$H$2:$H$65536))))),$A1183,dati_bdv!K$2:K$65536)","v":0},{"$f":"SUMIF(IF(dati_pdc!$C1183=1,dati_bdv!$C$2:$C$65536,IF(dati_pdc!$C1183=2,dati_bdv!$D$2:$D$65536,IF(dati_pdc!$C1183=3,dati_bdv!$E$2:$E$65536,IF(dati_pdc!$C1183=4,dati_bdv!$F$2:$F$65536,IF(dati_pdc!$C1183=5,dati_bdv!$G$2:$G$65536,dati_bdv!$H$2:$H$65536))))),$A1183,dati_bdv!L$2:L$65536)","v":0},{"$f":"SUMIF(IF(dati_pdc!$C1183=1,dati_bdv!$C$2:$C$65536,IF(dati_pdc!$C1183=2,dati_bdv!$D$2:$D$65536,IF(dati_pdc!$C1183=3,dati_bdv!$E$2:$E$65536,IF(dati_pdc!$C1183=4,dati_bdv!$F$2:$F$65536,IF(dati_pdc!$C1183=5,dati_bdv!$G$2:$G$65536,dati_bdv!$H$2:$H$65536))))),$A1183,dati_bdv!M$2:M$65536)","v":0},{"$f":"SUMIF(IF(dati_pdc!$C1183=1,dati_bdv!$C$2:$C$65536,IF(dati_pdc!$C1183=2,dati_bdv!$D$2:$D$65536,IF(dati_pdc!$C1183=3,dati_bdv!$E$2:$E$65536,IF(dati_pdc!$C1183=4,dati_bdv!$F$2:$F$65536,IF(dati_pdc!$C1183=5,dati_bdv!$G$2:$G$65536,dati_bdv!$H$2:$H$65536))))),$A1183,dati_bdv!N$2:N$65536)","v":0}]
[{"$f":"dati_pdc!A1184","v":0},{"$f":"SUMIF(IF(dati_pdc!$C1184=1,dati_bdv!$C$2:$C$65536,IF(dati_pdc!$C1184=2,dati_bdv!$D$2:$D$65536,IF(dati_pdc!$C1184=3,dati_bdv!$E$2:$E$65536,IF(dati_pdc!$C1184=4,dati_bdv!$F$2:$F$65536,IF(dati_pdc!$C1184=5,dati_bdv!$G$2:$G$65536,dati_bdv!$H$2:$H$65536))))),$A1184,dati_bdv!J$2:J$65536)","v":0},{"$f":"SUMIF(IF(dati_pdc!$C1184=1,dati_bdv!$C$2:$C$65536,IF(dati_pdc!$C1184=2,dati_bdv!$D$2:$D$65536,IF(dati_pdc!$C1184=3,dati_bdv!$E$2:$E$65536,IF(dati_pdc!$C1184=4,dati_bdv!$F$2:$F$65536,IF(dati_pdc!$C1184=5,dati_bdv!$G$2:$G$65536,dati_bdv!$H$2:$H$65536))))),$A1184,dati_bdv!K$2:K$65536)","v":0},{"$f":"SUMIF(IF(dati_pdc!$C1184=1,dati_bdv!$C$2:$C$65536,IF(dati_pdc!$C1184=2,dati_bdv!$D$2:$D$65536,IF(dati_pdc!$C1184=3,dati_bdv!$E$2:$E$65536,IF(dati_pdc!$C1184=4,dati_bdv!$F$2:$F$65536,IF(dati_pdc!$C1184=5,dati_bdv!$G$2:$G$65536,dati_bdv!$H$2:$H$65536))))),$A1184,dati_bdv!L$2:L$65536)","v":0},{"$f":"SUMIF(IF(dati_pdc!$C1184=1,dati_bdv!$C$2:$C$65536,IF(dati_pdc!$C1184=2,dati_bdv!$D$2:$D$65536,IF(dati_pdc!$C1184=3,dati_bdv!$E$2:$E$65536,IF(dati_pdc!$C1184=4,dati_bdv!$F$2:$F$65536,IF(dati_pdc!$C1184=5,dati_bdv!$G$2:$G$65536,dati_bdv!$H$2:$H$65536))))),$A1184,dati_bdv!M$2:M$65536)","v":0},{"$f":"SUMIF(IF(dati_pdc!$C1184=1,dati_bdv!$C$2:$C$65536,IF(dati_pdc!$C1184=2,dati_bdv!$D$2:$D$65536,IF(dati_pdc!$C1184=3,dati_bdv!$E$2:$E$65536,IF(dati_pdc!$C1184=4,dati_bdv!$F$2:$F$65536,IF(dati_pdc!$C1184=5,dati_bdv!$G$2:$G$65536,dati_bdv!$H$2:$H$65536))))),$A1184,dati_bdv!N$2:N$65536)","v":0}]
[{"$f":"dati_pdc!A1185","v":0},{"$f":"SUMIF(IF(dati_pdc!$C1185=1,dati_bdv!$C$2:$C$65536,IF(dati_pdc!$C1185=2,dati_bdv!$D$2:$D$65536,IF(dati_pdc!$C1185=3,dati_bdv!$E$2:$E$65536,IF(dati_pdc!$C1185=4,dati_bdv!$F$2:$F$65536,IF(dati_pdc!$C1185=5,dati_bdv!$G$2:$G$65536,dati_bdv!$H$2:$H$65536))))),$A1185,dati_bdv!J$2:J$65536)","v":0},{"$f":"SUMIF(IF(dati_pdc!$C1185=1,dati_bdv!$C$2:$C$65536,IF(dati_pdc!$C1185=2,dati_bdv!$D$2:$D$65536,IF(dati_pdc!$C1185=3,dati_bdv!$E$2:$E$65536,IF(dati_pdc!$C1185=4,dati_bdv!$F$2:$F$65536,IF(dati_pdc!$C1185=5,dati_bdv!$G$2:$G$65536,dati_bdv!$H$2:$H$65536))))),$A1185,dati_bdv!K$2:K$65536)","v":0},{"$f":"SUMIF(IF(dati_pdc!$C1185=1,dati_bdv!$C$2:$C$65536,IF(dati_pdc!$C1185=2,dati_bdv!$D$2:$D$65536,IF(dati_pdc!$C1185=3,dati_bdv!$E$2:$E$65536,IF(dati_pdc!$C1185=4,dati_bdv!$F$2:$F$65536,IF(dati_pdc!$C1185=5,dati_bdv!$G$2:$G$65536,dati_bdv!$H$2:$H$65536))))),$A1185,dati_bdv!L$2:L$65536)","v":0},{"$f":"SUMIF(IF(dati_pdc!$C1185=1,dati_bdv!$C$2:$C$65536,IF(dati_pdc!$C1185=2,dati_bdv!$D$2:$D$65536,IF(dati_pdc!$C1185=3,dati_bdv!$E$2:$E$65536,IF(dati_pdc!$C1185=4,dati_bdv!$F$2:$F$65536,IF(dati_pdc!$C1185=5,dati_bdv!$G$2:$G$65536,dati_bdv!$H$2:$H$65536))))),$A1185,dati_bdv!M$2:M$65536)","v":0},{"$f":"SUMIF(IF(dati_pdc!$C1185=1,dati_bdv!$C$2:$C$65536,IF(dati_pdc!$C1185=2,dati_bdv!$D$2:$D$65536,IF(dati_pdc!$C1185=3,dati_bdv!$E$2:$E$65536,IF(dati_pdc!$C1185=4,dati_bdv!$F$2:$F$65536,IF(dati_pdc!$C1185=5,dati_bdv!$G$2:$G$65536,dati_bdv!$H$2:$H$65536))))),$A1185,dati_bdv!N$2:N$65536)","v":0}]
[{"$f":"dati_pdc!A1186","v":0},{"$f":"SUMIF(IF(dati_pdc!$C1186=1,dati_bdv!$C$2:$C$65536,IF(dati_pdc!$C1186=2,dati_bdv!$D$2:$D$65536,IF(dati_pdc!$C1186=3,dati_bdv!$E$2:$E$65536,IF(dati_pdc!$C1186=4,dati_bdv!$F$2:$F$65536,IF(dati_pdc!$C1186=5,dati_bdv!$G$2:$G$65536,dati_bdv!$H$2:$H$65536))))),$A1186,dati_bdv!J$2:J$65536)","v":0},{"$f":"SUMIF(IF(dati_pdc!$C1186=1,dati_bdv!$C$2:$C$65536,IF(dati_pdc!$C1186=2,dati_bdv!$D$2:$D$65536,IF(dati_pdc!$C1186=3,dati_bdv!$E$2:$E$65536,IF(dati_pdc!$C1186=4,dati_bdv!$F$2:$F$65536,IF(dati_pdc!$C1186=5,dati_bdv!$G$2:$G$65536,dati_bdv!$H$2:$H$65536))))),$A1186,dati_bdv!K$2:K$65536)","v":0},{"$f":"SUMIF(IF(dati_pdc!$C1186=1,dati_bdv!$C$2:$C$65536,IF(dati_pdc!$C1186=2,dati_bdv!$D$2:$D$65536,IF(dati_pdc!$C1186=3,dati_bdv!$E$2:$E$65536,IF(dati_pdc!$C1186=4,dati_bdv!$F$2:$F$65536,IF(dati_pdc!$C1186=5,dati_bdv!$G$2:$G$65536,dati_bdv!$H$2:$H$65536))))),$A1186,dati_bdv!L$2:L$65536)","v":0},{"$f":"SUMIF(IF(dati_pdc!$C1186=1,dati_bdv!$C$2:$C$65536,IF(dati_pdc!$C1186=2,dati_bdv!$D$2:$D$65536,IF(dati_pdc!$C1186=3,dati_bdv!$E$2:$E$65536,IF(dati_pdc!$C1186=4,dati_bdv!$F$2:$F$65536,IF(dati_pdc!$C1186=5,dati_bdv!$G$2:$G$65536,dati_bdv!$H$2:$H$65536))))),$A1186,dati_bdv!M$2:M$65536)","v":0},{"$f":"SUMIF(IF(dati_pdc!$C1186=1,dati_bdv!$C$2:$C$65536,IF(dati_pdc!$C1186=2,dati_bdv!$D$2:$D$65536,IF(dati_pdc!$C1186=3,dati_bdv!$E$2:$E$65536,IF(dati_pdc!$C1186=4,dati_bdv!$F$2:$F$65536,IF(dati_pdc!$C1186=5,dati_bdv!$G$2:$G$65536,dati_bdv!$H$2:$H$65536))))),$A1186,dati_bdv!N$2:N$65536)","v":0}]
[{"$f":"dati_pdc!A1187","v":0},{"$f":"SUMIF(IF(dati_pdc!$C1187=1,dati_bdv!$C$2:$C$65536,IF(dati_pdc!$C1187=2,dati_bdv!$D$2:$D$65536,IF(dati_pdc!$C1187=3,dati_bdv!$E$2:$E$65536,IF(dati_pdc!$C1187=4,dati_bdv!$F$2:$F$65536,IF(dati_pdc!$C1187=5,dati_bdv!$G$2:$G$65536,dati_bdv!$H$2:$H$65536))))),$A1187,dati_bdv!J$2:J$65536)","v":0},{"$f":"SUMIF(IF(dati_pdc!$C1187=1,dati_bdv!$C$2:$C$65536,IF(dati_pdc!$C1187=2,dati_bdv!$D$2:$D$65536,IF(dati_pdc!$C1187=3,dati_bdv!$E$2:$E$65536,IF(dati_pdc!$C1187=4,dati_bdv!$F$2:$F$65536,IF(dati_pdc!$C1187=5,dati_bdv!$G$2:$G$65536,dati_bdv!$H$2:$H$65536))))),$A1187,dati_bdv!K$2:K$65536)","v":0},{"$f":"SUMIF(IF(dati_pdc!$C1187=1,dati_bdv!$C$2:$C$65536,IF(dati_pdc!$C1187=2,dati_bdv!$D$2:$D$65536,IF(dati_pdc!$C1187=3,dati_bdv!$E$2:$E$65536,IF(dati_pdc!$C1187=4,dati_bdv!$F$2:$F$65536,IF(dati_pdc!$C1187=5,dati_bdv!$G$2:$G$65536,dati_bdv!$H$2:$H$65536))))),$A1187,dati_bdv!L$2:L$65536)","v":0},{"$f":"SUMIF(IF(dati_pdc!$C1187=1,dati_bdv!$C$2:$C$65536,IF(dati_pdc!$C1187=2,dati_bdv!$D$2:$D$65536,IF(dati_pdc!$C1187=3,dati_bdv!$E$2:$E$65536,IF(dati_pdc!$C1187=4,dati_bdv!$F$2:$F$65536,IF(dati_pdc!$C1187=5,dati_bdv!$G$2:$G$65536,dati_bdv!$H$2:$H$65536))))),$A1187,dati_bdv!M$2:M$65536)","v":0},{"$f":"SUMIF(IF(dati_pdc!$C1187=1,dati_bdv!$C$2:$C$65536,IF(dati_pdc!$C1187=2,dati_bdv!$D$2:$D$65536,IF(dati_pdc!$C1187=3,dati_bdv!$E$2:$E$65536,IF(dati_pdc!$C1187=4,dati_bdv!$F$2:$F$65536,IF(dati_pdc!$C1187=5,dati_bdv!$G$2:$G$65536,dati_bdv!$H$2:$H$65536))))),$A1187,dati_bdv!N$2:N$65536)","v":0}]
[{"$f":"dati_pdc!A1188","v":0},{"$f":"SUMIF(IF(dati_pdc!$C1188=1,dati_bdv!$C$2:$C$65536,IF(dati_pdc!$C1188=2,dati_bdv!$D$2:$D$65536,IF(dati_pdc!$C1188=3,dati_bdv!$E$2:$E$65536,IF(dati_pdc!$C1188=4,dati_bdv!$F$2:$F$65536,IF(dati_pdc!$C1188=5,dati_bdv!$G$2:$G$65536,dati_bdv!$H$2:$H$65536))))),$A1188,dati_bdv!J$2:J$65536)","v":0},{"$f":"SUMIF(IF(dati_pdc!$C1188=1,dati_bdv!$C$2:$C$65536,IF(dati_pdc!$C1188=2,dati_bdv!$D$2:$D$65536,IF(dati_pdc!$C1188=3,dati_bdv!$E$2:$E$65536,IF(dati_pdc!$C1188=4,dati_bdv!$F$2:$F$65536,IF(dati_pdc!$C1188=5,dati_bdv!$G$2:$G$65536,dati_bdv!$H$2:$H$65536))))),$A1188,dati_bdv!K$2:K$65536)","v":0},{"$f":"SUMIF(IF(dati_pdc!$C1188=1,dati_bdv!$C$2:$C$65536,IF(dati_pdc!$C1188=2,dati_bdv!$D$2:$D$65536,IF(dati_pdc!$C1188=3,dati_bdv!$E$2:$E$65536,IF(dati_pdc!$C1188=4,dati_bdv!$F$2:$F$65536,IF(dati_pdc!$C1188=5,dati_bdv!$G$2:$G$65536,dati_bdv!$H$2:$H$65536))))),$A1188,dati_bdv!L$2:L$65536)","v":0},{"$f":"SUMIF(IF(dati_pdc!$C1188=1,dati_bdv!$C$2:$C$65536,IF(dati_pdc!$C1188=2,dati_bdv!$D$2:$D$65536,IF(dati_pdc!$C1188=3,dati_bdv!$E$2:$E$65536,IF(dati_pdc!$C1188=4,dati_bdv!$F$2:$F$65536,IF(dati_pdc!$C1188=5,dati_bdv!$G$2:$G$65536,dati_bdv!$H$2:$H$65536))))),$A1188,dati_bdv!M$2:M$65536)","v":0},{"$f":"SUMIF(IF(dati_pdc!$C1188=1,dati_bdv!$C$2:$C$65536,IF(dati_pdc!$C1188=2,dati_bdv!$D$2:$D$65536,IF(dati_pdc!$C1188=3,dati_bdv!$E$2:$E$65536,IF(dati_pdc!$C1188=4,dati_bdv!$F$2:$F$65536,IF(dati_pdc!$C1188=5,dati_bdv!$G$2:$G$65536,dati_bdv!$H$2:$H$65536))))),$A1188,dati_bdv!N$2:N$65536)","v":0}]
[{"$f":"dati_pdc!A1189","v":0},{"$f":"SUMIF(IF(dati_pdc!$C1189=1,dati_bdv!$C$2:$C$65536,IF(dati_pdc!$C1189=2,dati_bdv!$D$2:$D$65536,IF(dati_pdc!$C1189=3,dati_bdv!$E$2:$E$65536,IF(dati_pdc!$C1189=4,dati_bdv!$F$2:$F$65536,IF(dati_pdc!$C1189=5,dati_bdv!$G$2:$G$65536,dati_bdv!$H$2:$H$65536))))),$A1189,dati_bdv!J$2:J$65536)","v":0},{"$f":"SUMIF(IF(dati_pdc!$C1189=1,dati_bdv!$C$2:$C$65536,IF(dati_pdc!$C1189=2,dati_bdv!$D$2:$D$65536,IF(dati_pdc!$C1189=3,dati_bdv!$E$2:$E$65536,IF(dati_pdc!$C1189=4,dati_bdv!$F$2:$F$65536,IF(dati_pdc!$C1189=5,dati_bdv!$G$2:$G$65536,dati_bdv!$H$2:$H$65536))))),$A1189,dati_bdv!K$2:K$65536)","v":0},{"$f":"SUMIF(IF(dati_pdc!$C1189=1,dati_bdv!$C$2:$C$65536,IF(dati_pdc!$C1189=2,dati_bdv!$D$2:$D$65536,IF(dati_pdc!$C1189=3,dati_bdv!$E$2:$E$65536,IF(dati_pdc!$C1189=4,dati_bdv!$F$2:$F$65536,IF(dati_pdc!$C1189=5,dati_bdv!$G$2:$G$65536,dati_bdv!$H$2:$H$65536))))),$A1189,dati_bdv!L$2:L$65536)","v":0},{"$f":"SUMIF(IF(dati_pdc!$C1189=1,dati_bdv!$C$2:$C$65536,IF(dati_pdc!$C1189=2,dati_bdv!$D$2:$D$65536,IF(dati_pdc!$C1189=3,dati_bdv!$E$2:$E$65536,IF(dati_pdc!$C1189=4,dati_bdv!$F$2:$F$65536,IF(dati_pdc!$C1189=5,dati_bdv!$G$2:$G$65536,dati_bdv!$H$2:$H$65536))))),$A1189,dati_bdv!M$2:M$65536)","v":0},{"$f":"SUMIF(IF(dati_pdc!$C1189=1,dati_bdv!$C$2:$C$65536,IF(dati_pdc!$C1189=2,dati_bdv!$D$2:$D$65536,IF(dati_pdc!$C1189=3,dati_bdv!$E$2:$E$65536,IF(dati_pdc!$C1189=4,dati_bdv!$F$2:$F$65536,IF(dati_pdc!$C1189=5,dati_bdv!$G$2:$G$65536,dati_bdv!$H$2:$H$65536))))),$A1189,dati_bdv!N$2:N$65536)","v":0}]
[{"$f":"dati_pdc!A1190","v":0},{"$f":"SUMIF(IF(dati_pdc!$C1190=1,dati_bdv!$C$2:$C$65536,IF(dati_pdc!$C1190=2,dati_bdv!$D$2:$D$65536,IF(dati_pdc!$C1190=3,dati_bdv!$E$2:$E$65536,IF(dati_pdc!$C1190=4,dati_bdv!$F$2:$F$65536,IF(dati_pdc!$C1190=5,dati_bdv!$G$2:$G$65536,dati_bdv!$H$2:$H$65536))))),$A1190,dati_bdv!J$2:J$65536)","v":0},{"$f":"SUMIF(IF(dati_pdc!$C1190=1,dati_bdv!$C$2:$C$65536,IF(dati_pdc!$C1190=2,dati_bdv!$D$2:$D$65536,IF(dati_pdc!$C1190=3,dati_bdv!$E$2:$E$65536,IF(dati_pdc!$C1190=4,dati_bdv!$F$2:$F$65536,IF(dati_pdc!$C1190=5,dati_bdv!$G$2:$G$65536,dati_bdv!$H$2:$H$65536))))),$A1190,dati_bdv!K$2:K$65536)","v":0},{"$f":"SUMIF(IF(dati_pdc!$C1190=1,dati_bdv!$C$2:$C$65536,IF(dati_pdc!$C1190=2,dati_bdv!$D$2:$D$65536,IF(dati_pdc!$C1190=3,dati_bdv!$E$2:$E$65536,IF(dati_pdc!$C1190=4,dati_bdv!$F$2:$F$65536,IF(dati_pdc!$C1190=5,dati_bdv!$G$2:$G$65536,dati_bdv!$H$2:$H$65536))))),$A1190,dati_bdv!L$2:L$65536)","v":0},{"$f":"SUMIF(IF(dati_pdc!$C1190=1,dati_bdv!$C$2:$C$65536,IF(dati_pdc!$C1190=2,dati_bdv!$D$2:$D$65536,IF(dati_pdc!$C1190=3,dati_bdv!$E$2:$E$65536,IF(dati_pdc!$C1190=4,dati_bdv!$F$2:$F$65536,IF(dati_pdc!$C1190=5,dati_bdv!$G$2:$G$65536,dati_bdv!$H$2:$H$65536))))),$A1190,dati_bdv!M$2:M$65536)","v":0},{"$f":"SUMIF(IF(dati_pdc!$C1190=1,dati_bdv!$C$2:$C$65536,IF(dati_pdc!$C1190=2,dati_bdv!$D$2:$D$65536,IF(dati_pdc!$C1190=3,dati_bdv!$E$2:$E$65536,IF(dati_pdc!$C1190=4,dati_bdv!$F$2:$F$65536,IF(dati_pdc!$C1190=5,dati_bdv!$G$2:$G$65536,dati_bdv!$H$2:$H$65536))))),$A1190,dati_bdv!N$2:N$65536)","v":0}]
[{"$f":"dati_pdc!A1191","v":0},{"$f":"SUMIF(IF(dati_pdc!$C1191=1,dati_bdv!$C$2:$C$65536,IF(dati_pdc!$C1191=2,dati_bdv!$D$2:$D$65536,IF(dati_pdc!$C1191=3,dati_bdv!$E$2:$E$65536,IF(dati_pdc!$C1191=4,dati_bdv!$F$2:$F$65536,IF(dati_pdc!$C1191=5,dati_bdv!$G$2:$G$65536,dati_bdv!$H$2:$H$65536))))),$A1191,dati_bdv!J$2:J$65536)","v":0},{"$f":"SUMIF(IF(dati_pdc!$C1191=1,dati_bdv!$C$2:$C$65536,IF(dati_pdc!$C1191=2,dati_bdv!$D$2:$D$65536,IF(dati_pdc!$C1191=3,dati_bdv!$E$2:$E$65536,IF(dati_pdc!$C1191=4,dati_bdv!$F$2:$F$65536,IF(dati_pdc!$C1191=5,dati_bdv!$G$2:$G$65536,dati_bdv!$H$2:$H$65536))))),$A1191,dati_bdv!K$2:K$65536)","v":0},{"$f":"SUMIF(IF(dati_pdc!$C1191=1,dati_bdv!$C$2:$C$65536,IF(dati_pdc!$C1191=2,dati_bdv!$D$2:$D$65536,IF(dati_pdc!$C1191=3,dati_bdv!$E$2:$E$65536,IF(dati_pdc!$C1191=4,dati_bdv!$F$2:$F$65536,IF(dati_pdc!$C1191=5,dati_bdv!$G$2:$G$65536,dati_bdv!$H$2:$H$65536))))),$A1191,dati_bdv!L$2:L$65536)","v":0},{"$f":"SUMIF(IF(dati_pdc!$C1191=1,dati_bdv!$C$2:$C$65536,IF(dati_pdc!$C1191=2,dati_bdv!$D$2:$D$65536,IF(dati_pdc!$C1191=3,dati_bdv!$E$2:$E$65536,IF(dati_pdc!$C1191=4,dati_bdv!$F$2:$F$65536,IF(dati_pdc!$C1191=5,dati_bdv!$G$2:$G$65536,dati_bdv!$H$2:$H$65536))))),$A1191,dati_bdv!M$2:M$65536)","v":0},{"$f":"SUMIF(IF(dati_pdc!$C1191=1,dati_bdv!$C$2:$C$65536,IF(dati_pdc!$C1191=2,dati_bdv!$D$2:$D$65536,IF(dati_pdc!$C1191=3,dati_bdv!$E$2:$E$65536,IF(dati_pdc!$C1191=4,dati_bdv!$F$2:$F$65536,IF(dati_pdc!$C1191=5,dati_bdv!$G$2:$G$65536,dati_bdv!$H$2:$H$65536))))),$A1191,dati_bdv!N$2:N$65536)","v":0}]
[{"$f":"dati_pdc!A1192","v":0},{"$f":"SUMIF(IF(dati_pdc!$C1192=1,dati_bdv!$C$2:$C$65536,IF(dati_pdc!$C1192=2,dati_bdv!$D$2:$D$65536,IF(dati_pdc!$C1192=3,dati_bdv!$E$2:$E$65536,IF(dati_pdc!$C1192=4,dati_bdv!$F$2:$F$65536,IF(dati_pdc!$C1192=5,dati_bdv!$G$2:$G$65536,dati_bdv!$H$2:$H$65536))))),$A1192,dati_bdv!J$2:J$65536)","v":0},{"$f":"SUMIF(IF(dati_pdc!$C1192=1,dati_bdv!$C$2:$C$65536,IF(dati_pdc!$C1192=2,dati_bdv!$D$2:$D$65536,IF(dati_pdc!$C1192=3,dati_bdv!$E$2:$E$65536,IF(dati_pdc!$C1192=4,dati_bdv!$F$2:$F$65536,IF(dati_pdc!$C1192=5,dati_bdv!$G$2:$G$65536,dati_bdv!$H$2:$H$65536))))),$A1192,dati_bdv!K$2:K$65536)","v":0},{"$f":"SUMIF(IF(dati_pdc!$C1192=1,dati_bdv!$C$2:$C$65536,IF(dati_pdc!$C1192=2,dati_bdv!$D$2:$D$65536,IF(dati_pdc!$C1192=3,dati_bdv!$E$2:$E$65536,IF(dati_pdc!$C1192=4,dati_bdv!$F$2:$F$65536,IF(dati_pdc!$C1192=5,dati_bdv!$G$2:$G$65536,dati_bdv!$H$2:$H$65536))))),$A1192,dati_bdv!L$2:L$65536)","v":0},{"$f":"SUMIF(IF(dati_pdc!$C1192=1,dati_bdv!$C$2:$C$65536,IF(dati_pdc!$C1192=2,dati_bdv!$D$2:$D$65536,IF(dati_pdc!$C1192=3,dati_bdv!$E$2:$E$65536,IF(dati_pdc!$C1192=4,dati_bdv!$F$2:$F$65536,IF(dati_pdc!$C1192=5,dati_bdv!$G$2:$G$65536,dati_bdv!$H$2:$H$65536))))),$A1192,dati_bdv!M$2:M$65536)","v":0},{"$f":"SUMIF(IF(dati_pdc!$C1192=1,dati_bdv!$C$2:$C$65536,IF(dati_pdc!$C1192=2,dati_bdv!$D$2:$D$65536,IF(dati_pdc!$C1192=3,dati_bdv!$E$2:$E$65536,IF(dati_pdc!$C1192=4,dati_bdv!$F$2:$F$65536,IF(dati_pdc!$C1192=5,dati_bdv!$G$2:$G$65536,dati_bdv!$H$2:$H$65536))))),$A1192,dati_bdv!N$2:N$65536)","v":0}]
[{"$f":"dati_pdc!A1193","v":0},{"$f":"SUMIF(IF(dati_pdc!$C1193=1,dati_bdv!$C$2:$C$65536,IF(dati_pdc!$C1193=2,dati_bdv!$D$2:$D$65536,IF(dati_pdc!$C1193=3,dati_bdv!$E$2:$E$65536,IF(dati_pdc!$C1193=4,dati_bdv!$F$2:$F$65536,IF(dati_pdc!$C1193=5,dati_bdv!$G$2:$G$65536,dati_bdv!$H$2:$H$65536))))),$A1193,dati_bdv!J$2:J$65536)","v":0},{"$f":"SUMIF(IF(dati_pdc!$C1193=1,dati_bdv!$C$2:$C$65536,IF(dati_pdc!$C1193=2,dati_bdv!$D$2:$D$65536,IF(dati_pdc!$C1193=3,dati_bdv!$E$2:$E$65536,IF(dati_pdc!$C1193=4,dati_bdv!$F$2:$F$65536,IF(dati_pdc!$C1193=5,dati_bdv!$G$2:$G$65536,dati_bdv!$H$2:$H$65536))))),$A1193,dati_bdv!K$2:K$65536)","v":0},{"$f":"SUMIF(IF(dati_pdc!$C1193=1,dati_bdv!$C$2:$C$65536,IF(dati_pdc!$C1193=2,dati_bdv!$D$2:$D$65536,IF(dati_pdc!$C1193=3,dati_bdv!$E$2:$E$65536,IF(dati_pdc!$C1193=4,dati_bdv!$F$2:$F$65536,IF(dati_pdc!$C1193=5,dati_bdv!$G$2:$G$65536,dati_bdv!$H$2:$H$65536))))),$A1193,dati_bdv!L$2:L$65536)","v":0},{"$f":"SUMIF(IF(dati_pdc!$C1193=1,dati_bdv!$C$2:$C$65536,IF(dati_pdc!$C1193=2,dati_bdv!$D$2:$D$65536,IF(dati_pdc!$C1193=3,dati_bdv!$E$2:$E$65536,IF(dati_pdc!$C1193=4,dati_bdv!$F$2:$F$65536,IF(dati_pdc!$C1193=5,dati_bdv!$G$2:$G$65536,dati_bdv!$H$2:$H$65536))))),$A1193,dati_bdv!M$2:M$65536)","v":0},{"$f":"SUMIF(IF(dati_pdc!$C1193=1,dati_bdv!$C$2:$C$65536,IF(dati_pdc!$C1193=2,dati_bdv!$D$2:$D$65536,IF(dati_pdc!$C1193=3,dati_bdv!$E$2:$E$65536,IF(dati_pdc!$C1193=4,dati_bdv!$F$2:$F$65536,IF(dati_pdc!$C1193=5,dati_bdv!$G$2:$G$65536,dati_bdv!$H$2:$H$65536))))),$A1193,dati_bdv!N$2:N$65536)","v":0}]
[{"$f":"dati_pdc!A1194","v":0},{"$f":"SUMIF(IF(dati_pdc!$C1194=1,dati_bdv!$C$2:$C$65536,IF(dati_pdc!$C1194=2,dati_bdv!$D$2:$D$65536,IF(dati_pdc!$C1194=3,dati_bdv!$E$2:$E$65536,IF(dati_pdc!$C1194=4,dati_bdv!$F$2:$F$65536,IF(dati_pdc!$C1194=5,dati_bdv!$G$2:$G$65536,dati_bdv!$H$2:$H$65536))))),$A1194,dati_bdv!J$2:J$65536)","v":0},{"$f":"SUMIF(IF(dati_pdc!$C1194=1,dati_bdv!$C$2:$C$65536,IF(dati_pdc!$C1194=2,dati_bdv!$D$2:$D$65536,IF(dati_pdc!$C1194=3,dati_bdv!$E$2:$E$65536,IF(dati_pdc!$C1194=4,dati_bdv!$F$2:$F$65536,IF(dati_pdc!$C1194=5,dati_bdv!$G$2:$G$65536,dati_bdv!$H$2:$H$65536))))),$A1194,dati_bdv!K$2:K$65536)","v":0},{"$f":"SUMIF(IF(dati_pdc!$C1194=1,dati_bdv!$C$2:$C$65536,IF(dati_pdc!$C1194=2,dati_bdv!$D$2:$D$65536,IF(dati_pdc!$C1194=3,dati_bdv!$E$2:$E$65536,IF(dati_pdc!$C1194=4,dati_bdv!$F$2:$F$65536,IF(dati_pdc!$C1194=5,dati_bdv!$G$2:$G$65536,dati_bdv!$H$2:$H$65536))))),$A1194,dati_bdv!L$2:L$65536)","v":0},{"$f":"SUMIF(IF(dati_pdc!$C1194=1,dati_bdv!$C$2:$C$65536,IF(dati_pdc!$C1194=2,dati_bdv!$D$2:$D$65536,IF(dati_pdc!$C1194=3,dati_bdv!$E$2:$E$65536,IF(dati_pdc!$C1194=4,dati_bdv!$F$2:$F$65536,IF(dati_pdc!$C1194=5,dati_bdv!$G$2:$G$65536,dati_bdv!$H$2:$H$65536))))),$A1194,dati_bdv!M$2:M$65536)","v":0},{"$f":"SUMIF(IF(dati_pdc!$C1194=1,dati_bdv!$C$2:$C$65536,IF(dati_pdc!$C1194=2,dati_bdv!$D$2:$D$65536,IF(dati_pdc!$C1194=3,dati_bdv!$E$2:$E$65536,IF(dati_pdc!$C1194=4,dati_bdv!$F$2:$F$65536,IF(dati_pdc!$C1194=5,dati_bdv!$G$2:$G$65536,dati_bdv!$H$2:$H$65536))))),$A1194,dati_bdv!N$2:N$65536)","v":0}]
[{"$f":"dati_pdc!A1195","v":0},{"$f":"SUMIF(IF(dati_pdc!$C1195=1,dati_bdv!$C$2:$C$65536,IF(dati_pdc!$C1195=2,dati_bdv!$D$2:$D$65536,IF(dati_pdc!$C1195=3,dati_bdv!$E$2:$E$65536,IF(dati_pdc!$C1195=4,dati_bdv!$F$2:$F$65536,IF(dati_pdc!$C1195=5,dati_bdv!$G$2:$G$65536,dati_bdv!$H$2:$H$65536))))),$A1195,dati_bdv!J$2:J$65536)","v":0},{"$f":"SUMIF(IF(dati_pdc!$C1195=1,dati_bdv!$C$2:$C$65536,IF(dati_pdc!$C1195=2,dati_bdv!$D$2:$D$65536,IF(dati_pdc!$C1195=3,dati_bdv!$E$2:$E$65536,IF(dati_pdc!$C1195=4,dati_bdv!$F$2:$F$65536,IF(dati_pdc!$C1195=5,dati_bdv!$G$2:$G$65536,dati_bdv!$H$2:$H$65536))))),$A1195,dati_bdv!K$2:K$65536)","v":0},{"$f":"SUMIF(IF(dati_pdc!$C1195=1,dati_bdv!$C$2:$C$65536,IF(dati_pdc!$C1195=2,dati_bdv!$D$2:$D$65536,IF(dati_pdc!$C1195=3,dati_bdv!$E$2:$E$65536,IF(dati_pdc!$C1195=4,dati_bdv!$F$2:$F$65536,IF(dati_pdc!$C1195=5,dati_bdv!$G$2:$G$65536,dati_bdv!$H$2:$H$65536))))),$A1195,dati_bdv!L$2:L$65536)","v":0},{"$f":"SUMIF(IF(dati_pdc!$C1195=1,dati_bdv!$C$2:$C$65536,IF(dati_pdc!$C1195=2,dati_bdv!$D$2:$D$65536,IF(dati_pdc!$C1195=3,dati_bdv!$E$2:$E$65536,IF(dati_pdc!$C1195=4,dati_bdv!$F$2:$F$65536,IF(dati_pdc!$C1195=5,dati_bdv!$G$2:$G$65536,dati_bdv!$H$2:$H$65536))))),$A1195,dati_bdv!M$2:M$65536)","v":0},{"$f":"SUMIF(IF(dati_pdc!$C1195=1,dati_bdv!$C$2:$C$65536,IF(dati_pdc!$C1195=2,dati_bdv!$D$2:$D$65536,IF(dati_pdc!$C1195=3,dati_bdv!$E$2:$E$65536,IF(dati_pdc!$C1195=4,dati_bdv!$F$2:$F$65536,IF(dati_pdc!$C1195=5,dati_bdv!$G$2:$G$65536,dati_bdv!$H$2:$H$65536))))),$A1195,dati_bdv!N$2:N$65536)","v":0}]
[{"$f":"dati_pdc!A1196","v":0},{"$f":"SUMIF(IF(dati_pdc!$C1196=1,dati_bdv!$C$2:$C$65536,IF(dati_pdc!$C1196=2,dati_bdv!$D$2:$D$65536,IF(dati_pdc!$C1196=3,dati_bdv!$E$2:$E$65536,IF(dati_pdc!$C1196=4,dati_bdv!$F$2:$F$65536,IF(dati_pdc!$C1196=5,dati_bdv!$G$2:$G$65536,dati_bdv!$H$2:$H$65536))))),$A1196,dati_bdv!J$2:J$65536)","v":0},{"$f":"SUMIF(IF(dati_pdc!$C1196=1,dati_bdv!$C$2:$C$65536,IF(dati_pdc!$C1196=2,dati_bdv!$D$2:$D$65536,IF(dati_pdc!$C1196=3,dati_bdv!$E$2:$E$65536,IF(dati_pdc!$C1196=4,dati_bdv!$F$2:$F$65536,IF(dati_pdc!$C1196=5,dati_bdv!$G$2:$G$65536,dati_bdv!$H$2:$H$65536))))),$A1196,dati_bdv!K$2:K$65536)","v":0},{"$f":"SUMIF(IF(dati_pdc!$C1196=1,dati_bdv!$C$2:$C$65536,IF(dati_pdc!$C1196=2,dati_bdv!$D$2:$D$65536,IF(dati_pdc!$C1196=3,dati_bdv!$E$2:$E$65536,IF(dati_pdc!$C1196=4,dati_bdv!$F$2:$F$65536,IF(dati_pdc!$C1196=5,dati_bdv!$G$2:$G$65536,dati_bdv!$H$2:$H$65536))))),$A1196,dati_bdv!L$2:L$65536)","v":0},{"$f":"SUMIF(IF(dati_pdc!$C1196=1,dati_bdv!$C$2:$C$65536,IF(dati_pdc!$C1196=2,dati_bdv!$D$2:$D$65536,IF(dati_pdc!$C1196=3,dati_bdv!$E$2:$E$65536,IF(dati_pdc!$C1196=4,dati_bdv!$F$2:$F$65536,IF(dati_pdc!$C1196=5,dati_bdv!$G$2:$G$65536,dati_bdv!$H$2:$H$65536))))),$A1196,dati_bdv!M$2:M$65536)","v":0},{"$f":"SUMIF(IF(dati_pdc!$C1196=1,dati_bdv!$C$2:$C$65536,IF(dati_pdc!$C1196=2,dati_bdv!$D$2:$D$65536,IF(dati_pdc!$C1196=3,dati_bdv!$E$2:$E$65536,IF(dati_pdc!$C1196=4,dati_bdv!$F$2:$F$65536,IF(dati_pdc!$C1196=5,dati_bdv!$G$2:$G$65536,dati_bdv!$H$2:$H$65536))))),$A1196,dati_bdv!N$2:N$65536)","v":0}]
[{"$f":"dati_pdc!A1197","v":0},{"$f":"SUMIF(IF(dati_pdc!$C1197=1,dati_bdv!$C$2:$C$65536,IF(dati_pdc!$C1197=2,dati_bdv!$D$2:$D$65536,IF(dati_pdc!$C1197=3,dati_bdv!$E$2:$E$65536,IF(dati_pdc!$C1197=4,dati_bdv!$F$2:$F$65536,IF(dati_pdc!$C1197=5,dati_bdv!$G$2:$G$65536,dati_bdv!$H$2:$H$65536))))),$A1197,dati_bdv!J$2:J$65536)","v":0},{"$f":"SUMIF(IF(dati_pdc!$C1197=1,dati_bdv!$C$2:$C$65536,IF(dati_pdc!$C1197=2,dati_bdv!$D$2:$D$65536,IF(dati_pdc!$C1197=3,dati_bdv!$E$2:$E$65536,IF(dati_pdc!$C1197=4,dati_bdv!$F$2:$F$65536,IF(dati_pdc!$C1197=5,dati_bdv!$G$2:$G$65536,dati_bdv!$H$2:$H$65536))))),$A1197,dati_bdv!K$2:K$65536)","v":0},{"$f":"SUMIF(IF(dati_pdc!$C1197=1,dati_bdv!$C$2:$C$65536,IF(dati_pdc!$C1197=2,dati_bdv!$D$2:$D$65536,IF(dati_pdc!$C1197=3,dati_bdv!$E$2:$E$65536,IF(dati_pdc!$C1197=4,dati_bdv!$F$2:$F$65536,IF(dati_pdc!$C1197=5,dati_bdv!$G$2:$G$65536,dati_bdv!$H$2:$H$65536))))),$A1197,dati_bdv!L$2:L$65536)","v":0},{"$f":"SUMIF(IF(dati_pdc!$C1197=1,dati_bdv!$C$2:$C$65536,IF(dati_pdc!$C1197=2,dati_bdv!$D$2:$D$65536,IF(dati_pdc!$C1197=3,dati_bdv!$E$2:$E$65536,IF(dati_pdc!$C1197=4,dati_bdv!$F$2:$F$65536,IF(dati_pdc!$C1197=5,dati_bdv!$G$2:$G$65536,dati_bdv!$H$2:$H$65536))))),$A1197,dati_bdv!M$2:M$65536)","v":0},{"$f":"SUMIF(IF(dati_pdc!$C1197=1,dati_bdv!$C$2:$C$65536,IF(dati_pdc!$C1197=2,dati_bdv!$D$2:$D$65536,IF(dati_pdc!$C1197=3,dati_bdv!$E$2:$E$65536,IF(dati_pdc!$C1197=4,dati_bdv!$F$2:$F$65536,IF(dati_pdc!$C1197=5,dati_bdv!$G$2:$G$65536,dati_bdv!$H$2:$H$65536))))),$A1197,dati_bdv!N$2:N$65536)","v":0}]
[{"$f":"dati_pdc!A1198","v":0},{"$f":"SUMIF(IF(dati_pdc!$C1198=1,dati_bdv!$C$2:$C$65536,IF(dati_pdc!$C1198=2,dati_bdv!$D$2:$D$65536,IF(dati_pdc!$C1198=3,dati_bdv!$E$2:$E$65536,IF(dati_pdc!$C1198=4,dati_bdv!$F$2:$F$65536,IF(dati_pdc!$C1198=5,dati_bdv!$G$2:$G$65536,dati_bdv!$H$2:$H$65536))))),$A1198,dati_bdv!J$2:J$65536)","v":0},{"$f":"SUMIF(IF(dati_pdc!$C1198=1,dati_bdv!$C$2:$C$65536,IF(dati_pdc!$C1198=2,dati_bdv!$D$2:$D$65536,IF(dati_pdc!$C1198=3,dati_bdv!$E$2:$E$65536,IF(dati_pdc!$C1198=4,dati_bdv!$F$2:$F$65536,IF(dati_pdc!$C1198=5,dati_bdv!$G$2:$G$65536,dati_bdv!$H$2:$H$65536))))),$A1198,dati_bdv!K$2:K$65536)","v":0},{"$f":"SUMIF(IF(dati_pdc!$C1198=1,dati_bdv!$C$2:$C$65536,IF(dati_pdc!$C1198=2,dati_bdv!$D$2:$D$65536,IF(dati_pdc!$C1198=3,dati_bdv!$E$2:$E$65536,IF(dati_pdc!$C1198=4,dati_bdv!$F$2:$F$65536,IF(dati_pdc!$C1198=5,dati_bdv!$G$2:$G$65536,dati_bdv!$H$2:$H$65536))))),$A1198,dati_bdv!L$2:L$65536)","v":0},{"$f":"SUMIF(IF(dati_pdc!$C1198=1,dati_bdv!$C$2:$C$65536,IF(dati_pdc!$C1198=2,dati_bdv!$D$2:$D$65536,IF(dati_pdc!$C1198=3,dati_bdv!$E$2:$E$65536,IF(dati_pdc!$C1198=4,dati_bdv!$F$2:$F$65536,IF(dati_pdc!$C1198=5,dati_bdv!$G$2:$G$65536,dati_bdv!$H$2:$H$65536))))),$A1198,dati_bdv!M$2:M$65536)","v":0},{"$f":"SUMIF(IF(dati_pdc!$C1198=1,dati_bdv!$C$2:$C$65536,IF(dati_pdc!$C1198=2,dati_bdv!$D$2:$D$65536,IF(dati_pdc!$C1198=3,dati_bdv!$E$2:$E$65536,IF(dati_pdc!$C1198=4,dati_bdv!$F$2:$F$65536,IF(dati_pdc!$C1198=5,dati_bdv!$G$2:$G$65536,dati_bdv!$H$2:$H$65536))))),$A1198,dati_bdv!N$2:N$65536)","v":0}]
[{"$f":"dati_pdc!A1199","v":0},{"$f":"SUMIF(IF(dati_pdc!$C1199=1,dati_bdv!$C$2:$C$65536,IF(dati_pdc!$C1199=2,dati_bdv!$D$2:$D$65536,IF(dati_pdc!$C1199=3,dati_bdv!$E$2:$E$65536,IF(dati_pdc!$C1199=4,dati_bdv!$F$2:$F$65536,IF(dati_pdc!$C1199=5,dati_bdv!$G$2:$G$65536,dati_bdv!$H$2:$H$65536))))),$A1199,dati_bdv!J$2:J$65536)","v":0},{"$f":"SUMIF(IF(dati_pdc!$C1199=1,dati_bdv!$C$2:$C$65536,IF(dati_pdc!$C1199=2,dati_bdv!$D$2:$D$65536,IF(dati_pdc!$C1199=3,dati_bdv!$E$2:$E$65536,IF(dati_pdc!$C1199=4,dati_bdv!$F$2:$F$65536,IF(dati_pdc!$C1199=5,dati_bdv!$G$2:$G$65536,dati_bdv!$H$2:$H$65536))))),$A1199,dati_bdv!K$2:K$65536)","v":0},{"$f":"SUMIF(IF(dati_pdc!$C1199=1,dati_bdv!$C$2:$C$65536,IF(dati_pdc!$C1199=2,dati_bdv!$D$2:$D$65536,IF(dati_pdc!$C1199=3,dati_bdv!$E$2:$E$65536,IF(dati_pdc!$C1199=4,dati_bdv!$F$2:$F$65536,IF(dati_pdc!$C1199=5,dati_bdv!$G$2:$G$65536,dati_bdv!$H$2:$H$65536))))),$A1199,dati_bdv!L$2:L$65536)","v":0},{"$f":"SUMIF(IF(dati_pdc!$C1199=1,dati_bdv!$C$2:$C$65536,IF(dati_pdc!$C1199=2,dati_bdv!$D$2:$D$65536,IF(dati_pdc!$C1199=3,dati_bdv!$E$2:$E$65536,IF(dati_pdc!$C1199=4,dati_bdv!$F$2:$F$65536,IF(dati_pdc!$C1199=5,dati_bdv!$G$2:$G$65536,dati_bdv!$H$2:$H$65536))))),$A1199,dati_bdv!M$2:M$65536)","v":0},{"$f":"SUMIF(IF(dati_pdc!$C1199=1,dati_bdv!$C$2:$C$65536,IF(dati_pdc!$C1199=2,dati_bdv!$D$2:$D$65536,IF(dati_pdc!$C1199=3,dati_bdv!$E$2:$E$65536,IF(dati_pdc!$C1199=4,dati_bdv!$F$2:$F$65536,IF(dati_pdc!$C1199=5,dati_bdv!$G$2:$G$65536,dati_bdv!$H$2:$H$65536))))),$A1199,dati_bdv!N$2:N$65536)","v":0}]
[{"$f":"dati_pdc!A1200","v":0},{"$f":"SUMIF(IF(dati_pdc!$C1200=1,dati_bdv!$C$2:$C$65536,IF(dati_pdc!$C1200=2,dati_bdv!$D$2:$D$65536,IF(dati_pdc!$C1200=3,dati_bdv!$E$2:$E$65536,IF(dati_pdc!$C1200=4,dati_bdv!$F$2:$F$65536,IF(dati_pdc!$C1200=5,dati_bdv!$G$2:$G$65536,dati_bdv!$H$2:$H$65536))))),$A1200,dati_bdv!J$2:J$65536)","v":0},{"$f":"SUMIF(IF(dati_pdc!$C1200=1,dati_bdv!$C$2:$C$65536,IF(dati_pdc!$C1200=2,dati_bdv!$D$2:$D$65536,IF(dati_pdc!$C1200=3,dati_bdv!$E$2:$E$65536,IF(dati_pdc!$C1200=4,dati_bdv!$F$2:$F$65536,IF(dati_pdc!$C1200=5,dati_bdv!$G$2:$G$65536,dati_bdv!$H$2:$H$65536))))),$A1200,dati_bdv!K$2:K$65536)","v":0},{"$f":"SUMIF(IF(dati_pdc!$C1200=1,dati_bdv!$C$2:$C$65536,IF(dati_pdc!$C1200=2,dati_bdv!$D$2:$D$65536,IF(dati_pdc!$C1200=3,dati_bdv!$E$2:$E$65536,IF(dati_pdc!$C1200=4,dati_bdv!$F$2:$F$65536,IF(dati_pdc!$C1200=5,dati_bdv!$G$2:$G$65536,dati_bdv!$H$2:$H$65536))))),$A1200,dati_bdv!L$2:L$65536)","v":0},{"$f":"SUMIF(IF(dati_pdc!$C1200=1,dati_bdv!$C$2:$C$65536,IF(dati_pdc!$C1200=2,dati_bdv!$D$2:$D$65536,IF(dati_pdc!$C1200=3,dati_bdv!$E$2:$E$65536,IF(dati_pdc!$C1200=4,dati_bdv!$F$2:$F$65536,IF(dati_pdc!$C1200=5,dati_bdv!$G$2:$G$65536,dati_bdv!$H$2:$H$65536))))),$A1200,dati_bdv!M$2:M$65536)","v":0},{"$f":"SUMIF(IF(dati_pdc!$C1200=1,dati_bdv!$C$2:$C$65536,IF(dati_pdc!$C1200=2,dati_bdv!$D$2:$D$65536,IF(dati_pdc!$C1200=3,dati_bdv!$E$2:$E$65536,IF(dati_pdc!$C1200=4,dati_bdv!$F$2:$F$65536,IF(dati_pdc!$C1200=5,dati_bdv!$G$2:$G$65536,dati_bdv!$H$2:$H$65536))))),$A1200,dati_bdv!N$2:N$65536)","v":0}]
[{"$f":"dati_pdc!A1201","v":0},{"$f":"SUMIF(IF(dati_pdc!$C1201=1,dati_bdv!$C$2:$C$65536,IF(dati_pdc!$C1201=2,dati_bdv!$D$2:$D$65536,IF(dati_pdc!$C1201=3,dati_bdv!$E$2:$E$65536,IF(dati_pdc!$C1201=4,dati_bdv!$F$2:$F$65536,IF(dati_pdc!$C1201=5,dati_bdv!$G$2:$G$65536,dati_bdv!$H$2:$H$65536))))),$A1201,dati_bdv!J$2:J$65536)","v":0},{"$f":"SUMIF(IF(dati_pdc!$C1201=1,dati_bdv!$C$2:$C$65536,IF(dati_pdc!$C1201=2,dati_bdv!$D$2:$D$65536,IF(dati_pdc!$C1201=3,dati_bdv!$E$2:$E$65536,IF(dati_pdc!$C1201=4,dati_bdv!$F$2:$F$65536,IF(dati_pdc!$C1201=5,dati_bdv!$G$2:$G$65536,dati_bdv!$H$2:$H$65536))))),$A1201,dati_bdv!K$2:K$65536)","v":0},{"$f":"SUMIF(IF(dati_pdc!$C1201=1,dati_bdv!$C$2:$C$65536,IF(dati_pdc!$C1201=2,dati_bdv!$D$2:$D$65536,IF(dati_pdc!$C1201=3,dati_bdv!$E$2:$E$65536,IF(dati_pdc!$C1201=4,dati_bdv!$F$2:$F$65536,IF(dati_pdc!$C1201=5,dati_bdv!$G$2:$G$65536,dati_bdv!$H$2:$H$65536))))),$A1201,dati_bdv!L$2:L$65536)","v":0},{"$f":"SUMIF(IF(dati_pdc!$C1201=1,dati_bdv!$C$2:$C$65536,IF(dati_pdc!$C1201=2,dati_bdv!$D$2:$D$65536,IF(dati_pdc!$C1201=3,dati_bdv!$E$2:$E$65536,IF(dati_pdc!$C1201=4,dati_bdv!$F$2:$F$65536,IF(dati_pdc!$C1201=5,dati_bdv!$G$2:$G$65536,dati_bdv!$H$2:$H$65536))))),$A1201,dati_bdv!M$2:M$65536)","v":0},{"$f":"SUMIF(IF(dati_pdc!$C1201=1,dati_bdv!$C$2:$C$65536,IF(dati_pdc!$C1201=2,dati_bdv!$D$2:$D$65536,IF(dati_pdc!$C1201=3,dati_bdv!$E$2:$E$65536,IF(dati_pdc!$C1201=4,dati_bdv!$F$2:$F$65536,IF(dati_pdc!$C1201=5,dati_bdv!$G$2:$G$65536,dati_bdv!$H$2:$H$65536))))),$A1201,dati_bdv!N$2:N$65536)","v":0}]
[{"$f":"dati_pdc!A1202","v":0},{"$f":"SUMIF(IF(dati_pdc!$C1202=1,dati_bdv!$C$2:$C$65536,IF(dati_pdc!$C1202=2,dati_bdv!$D$2:$D$65536,IF(dati_pdc!$C1202=3,dati_bdv!$E$2:$E$65536,IF(dati_pdc!$C1202=4,dati_bdv!$F$2:$F$65536,IF(dati_pdc!$C1202=5,dati_bdv!$G$2:$G$65536,dati_bdv!$H$2:$H$65536))))),$A1202,dati_bdv!J$2:J$65536)","v":0},{"$f":"SUMIF(IF(dati_pdc!$C1202=1,dati_bdv!$C$2:$C$65536,IF(dati_pdc!$C1202=2,dati_bdv!$D$2:$D$65536,IF(dati_pdc!$C1202=3,dati_bdv!$E$2:$E$65536,IF(dati_pdc!$C1202=4,dati_bdv!$F$2:$F$65536,IF(dati_pdc!$C1202=5,dati_bdv!$G$2:$G$65536,dati_bdv!$H$2:$H$65536))))),$A1202,dati_bdv!K$2:K$65536)","v":0},{"$f":"SUMIF(IF(dati_pdc!$C1202=1,dati_bdv!$C$2:$C$65536,IF(dati_pdc!$C1202=2,dati_bdv!$D$2:$D$65536,IF(dati_pdc!$C1202=3,dati_bdv!$E$2:$E$65536,IF(dati_pdc!$C1202=4,dati_bdv!$F$2:$F$65536,IF(dati_pdc!$C1202=5,dati_bdv!$G$2:$G$65536,dati_bdv!$H$2:$H$65536))))),$A1202,dati_bdv!L$2:L$65536)","v":0},{"$f":"SUMIF(IF(dati_pdc!$C1202=1,dati_bdv!$C$2:$C$65536,IF(dati_pdc!$C1202=2,dati_bdv!$D$2:$D$65536,IF(dati_pdc!$C1202=3,dati_bdv!$E$2:$E$65536,IF(dati_pdc!$C1202=4,dati_bdv!$F$2:$F$65536,IF(dati_pdc!$C1202=5,dati_bdv!$G$2:$G$65536,dati_bdv!$H$2:$H$65536))))),$A1202,dati_bdv!M$2:M$65536)","v":0},{"$f":"SUMIF(IF(dati_pdc!$C1202=1,dati_bdv!$C$2:$C$65536,IF(dati_pdc!$C1202=2,dati_bdv!$D$2:$D$65536,IF(dati_pdc!$C1202=3,dati_bdv!$E$2:$E$65536,IF(dati_pdc!$C1202=4,dati_bdv!$F$2:$F$65536,IF(dati_pdc!$C1202=5,dati_bdv!$G$2:$G$65536,dati_bdv!$H$2:$H$65536))))),$A1202,dati_bdv!N$2:N$65536)","v":0}]
[{"$f":"dati_pdc!A1203","v":0},{"$f":"SUMIF(IF(dati_pdc!$C1203=1,dati_bdv!$C$2:$C$65536,IF(dati_pdc!$C1203=2,dati_bdv!$D$2:$D$65536,IF(dati_pdc!$C1203=3,dati_bdv!$E$2:$E$65536,IF(dati_pdc!$C1203=4,dati_bdv!$F$2:$F$65536,IF(dati_pdc!$C1203=5,dati_bdv!$G$2:$G$65536,dati_bdv!$H$2:$H$65536))))),$A1203,dati_bdv!J$2:J$65536)","v":0},{"$f":"SUMIF(IF(dati_pdc!$C1203=1,dati_bdv!$C$2:$C$65536,IF(dati_pdc!$C1203=2,dati_bdv!$D$2:$D$65536,IF(dati_pdc!$C1203=3,dati_bdv!$E$2:$E$65536,IF(dati_pdc!$C1203=4,dati_bdv!$F$2:$F$65536,IF(dati_pdc!$C1203=5,dati_bdv!$G$2:$G$65536,dati_bdv!$H$2:$H$65536))))),$A1203,dati_bdv!K$2:K$65536)","v":0},{"$f":"SUMIF(IF(dati_pdc!$C1203=1,dati_bdv!$C$2:$C$65536,IF(dati_pdc!$C1203=2,dati_bdv!$D$2:$D$65536,IF(dati_pdc!$C1203=3,dati_bdv!$E$2:$E$65536,IF(dati_pdc!$C1203=4,dati_bdv!$F$2:$F$65536,IF(dati_pdc!$C1203=5,dati_bdv!$G$2:$G$65536,dati_bdv!$H$2:$H$65536))))),$A1203,dati_bdv!L$2:L$65536)","v":0},{"$f":"SUMIF(IF(dati_pdc!$C1203=1,dati_bdv!$C$2:$C$65536,IF(dati_pdc!$C1203=2,dati_bdv!$D$2:$D$65536,IF(dati_pdc!$C1203=3,dati_bdv!$E$2:$E$65536,IF(dati_pdc!$C1203=4,dati_bdv!$F$2:$F$65536,IF(dati_pdc!$C1203=5,dati_bdv!$G$2:$G$65536,dati_bdv!$H$2:$H$65536))))),$A1203,dati_bdv!M$2:M$65536)","v":0},{"$f":"SUMIF(IF(dati_pdc!$C1203=1,dati_bdv!$C$2:$C$65536,IF(dati_pdc!$C1203=2,dati_bdv!$D$2:$D$65536,IF(dati_pdc!$C1203=3,dati_bdv!$E$2:$E$65536,IF(dati_pdc!$C1203=4,dati_bdv!$F$2:$F$65536,IF(dati_pdc!$C1203=5,dati_bdv!$G$2:$G$65536,dati_bdv!$H$2:$H$65536))))),$A1203,dati_bdv!N$2:N$65536)","v":0}]
[{"$f":"dati_pdc!A1204","v":0},{"$f":"SUMIF(IF(dati_pdc!$C1204=1,dati_bdv!$C$2:$C$65536,IF(dati_pdc!$C1204=2,dati_bdv!$D$2:$D$65536,IF(dati_pdc!$C1204=3,dati_bdv!$E$2:$E$65536,IF(dati_pdc!$C1204=4,dati_bdv!$F$2:$F$65536,IF(dati_pdc!$C1204=5,dati_bdv!$G$2:$G$65536,dati_bdv!$H$2:$H$65536))))),$A1204,dati_bdv!J$2:J$65536)","v":0},{"$f":"SUMIF(IF(dati_pdc!$C1204=1,dati_bdv!$C$2:$C$65536,IF(dati_pdc!$C1204=2,dati_bdv!$D$2:$D$65536,IF(dati_pdc!$C1204=3,dati_bdv!$E$2:$E$65536,IF(dati_pdc!$C1204=4,dati_bdv!$F$2:$F$65536,IF(dati_pdc!$C1204=5,dati_bdv!$G$2:$G$65536,dati_bdv!$H$2:$H$65536))))),$A1204,dati_bdv!K$2:K$65536)","v":0},{"$f":"SUMIF(IF(dati_pdc!$C1204=1,dati_bdv!$C$2:$C$65536,IF(dati_pdc!$C1204=2,dati_bdv!$D$2:$D$65536,IF(dati_pdc!$C1204=3,dati_bdv!$E$2:$E$65536,IF(dati_pdc!$C1204=4,dati_bdv!$F$2:$F$65536,IF(dati_pdc!$C1204=5,dati_bdv!$G$2:$G$65536,dati_bdv!$H$2:$H$65536))))),$A1204,dati_bdv!L$2:L$65536)","v":0},{"$f":"SUMIF(IF(dati_pdc!$C1204=1,dati_bdv!$C$2:$C$65536,IF(dati_pdc!$C1204=2,dati_bdv!$D$2:$D$65536,IF(dati_pdc!$C1204=3,dati_bdv!$E$2:$E$65536,IF(dati_pdc!$C1204=4,dati_bdv!$F$2:$F$65536,IF(dati_pdc!$C1204=5,dati_bdv!$G$2:$G$65536,dati_bdv!$H$2:$H$65536))))),$A1204,dati_bdv!M$2:M$65536)","v":0},{"$f":"SUMIF(IF(dati_pdc!$C1204=1,dati_bdv!$C$2:$C$65536,IF(dati_pdc!$C1204=2,dati_bdv!$D$2:$D$65536,IF(dati_pdc!$C1204=3,dati_bdv!$E$2:$E$65536,IF(dati_pdc!$C1204=4,dati_bdv!$F$2:$F$65536,IF(dati_pdc!$C1204=5,dati_bdv!$G$2:$G$65536,dati_bdv!$H$2:$H$65536))))),$A1204,dati_bdv!N$2:N$65536)","v":0}]
[{"$f":"dati_pdc!A1205","v":0},{"$f":"SUMIF(IF(dati_pdc!$C1205=1,dati_bdv!$C$2:$C$65536,IF(dati_pdc!$C1205=2,dati_bdv!$D$2:$D$65536,IF(dati_pdc!$C1205=3,dati_bdv!$E$2:$E$65536,IF(dati_pdc!$C1205=4,dati_bdv!$F$2:$F$65536,IF(dati_pdc!$C1205=5,dati_bdv!$G$2:$G$65536,dati_bdv!$H$2:$H$65536))))),$A1205,dati_bdv!J$2:J$65536)","v":0},{"$f":"SUMIF(IF(dati_pdc!$C1205=1,dati_bdv!$C$2:$C$65536,IF(dati_pdc!$C1205=2,dati_bdv!$D$2:$D$65536,IF(dati_pdc!$C1205=3,dati_bdv!$E$2:$E$65536,IF(dati_pdc!$C1205=4,dati_bdv!$F$2:$F$65536,IF(dati_pdc!$C1205=5,dati_bdv!$G$2:$G$65536,dati_bdv!$H$2:$H$65536))))),$A1205,dati_bdv!K$2:K$65536)","v":0},{"$f":"SUMIF(IF(dati_pdc!$C1205=1,dati_bdv!$C$2:$C$65536,IF(dati_pdc!$C1205=2,dati_bdv!$D$2:$D$65536,IF(dati_pdc!$C1205=3,dati_bdv!$E$2:$E$65536,IF(dati_pdc!$C1205=4,dati_bdv!$F$2:$F$65536,IF(dati_pdc!$C1205=5,dati_bdv!$G$2:$G$65536,dati_bdv!$H$2:$H$65536))))),$A1205,dati_bdv!L$2:L$65536)","v":0},{"$f":"SUMIF(IF(dati_pdc!$C1205=1,dati_bdv!$C$2:$C$65536,IF(dati_pdc!$C1205=2,dati_bdv!$D$2:$D$65536,IF(dati_pdc!$C1205=3,dati_bdv!$E$2:$E$65536,IF(dati_pdc!$C1205=4,dati_bdv!$F$2:$F$65536,IF(dati_pdc!$C1205=5,dati_bdv!$G$2:$G$65536,dati_bdv!$H$2:$H$65536))))),$A1205,dati_bdv!M$2:M$65536)","v":0},{"$f":"SUMIF(IF(dati_pdc!$C1205=1,dati_bdv!$C$2:$C$65536,IF(dati_pdc!$C1205=2,dati_bdv!$D$2:$D$65536,IF(dati_pdc!$C1205=3,dati_bdv!$E$2:$E$65536,IF(dati_pdc!$C1205=4,dati_bdv!$F$2:$F$65536,IF(dati_pdc!$C1205=5,dati_bdv!$G$2:$G$65536,dati_bdv!$H$2:$H$65536))))),$A1205,dati_bdv!N$2:N$65536)","v":0}]
[{"$f":"dati_pdc!A1206","v":0},{"$f":"SUMIF(IF(dati_pdc!$C1206=1,dati_bdv!$C$2:$C$65536,IF(dati_pdc!$C1206=2,dati_bdv!$D$2:$D$65536,IF(dati_pdc!$C1206=3,dati_bdv!$E$2:$E$65536,IF(dati_pdc!$C1206=4,dati_bdv!$F$2:$F$65536,IF(dati_pdc!$C1206=5,dati_bdv!$G$2:$G$65536,dati_bdv!$H$2:$H$65536))))),$A1206,dati_bdv!J$2:J$65536)","v":0},{"$f":"SUMIF(IF(dati_pdc!$C1206=1,dati_bdv!$C$2:$C$65536,IF(dati_pdc!$C1206=2,dati_bdv!$D$2:$D$65536,IF(dati_pdc!$C1206=3,dati_bdv!$E$2:$E$65536,IF(dati_pdc!$C1206=4,dati_bdv!$F$2:$F$65536,IF(dati_pdc!$C1206=5,dati_bdv!$G$2:$G$65536,dati_bdv!$H$2:$H$65536))))),$A1206,dati_bdv!K$2:K$65536)","v":0},{"$f":"SUMIF(IF(dati_pdc!$C1206=1,dati_bdv!$C$2:$C$65536,IF(dati_pdc!$C1206=2,dati_bdv!$D$2:$D$65536,IF(dati_pdc!$C1206=3,dati_bdv!$E$2:$E$65536,IF(dati_pdc!$C1206=4,dati_bdv!$F$2:$F$65536,IF(dati_pdc!$C1206=5,dati_bdv!$G$2:$G$65536,dati_bdv!$H$2:$H$65536))))),$A1206,dati_bdv!L$2:L$65536)","v":0},{"$f":"SUMIF(IF(dati_pdc!$C1206=1,dati_bdv!$C$2:$C$65536,IF(dati_pdc!$C1206=2,dati_bdv!$D$2:$D$65536,IF(dati_pdc!$C1206=3,dati_bdv!$E$2:$E$65536,IF(dati_pdc!$C1206=4,dati_bdv!$F$2:$F$65536,IF(dati_pdc!$C1206=5,dati_bdv!$G$2:$G$65536,dati_bdv!$H$2:$H$65536))))),$A1206,dati_bdv!M$2:M$65536)","v":0},{"$f":"SUMIF(IF(dati_pdc!$C1206=1,dati_bdv!$C$2:$C$65536,IF(dati_pdc!$C1206=2,dati_bdv!$D$2:$D$65536,IF(dati_pdc!$C1206=3,dati_bdv!$E$2:$E$65536,IF(dati_pdc!$C1206=4,dati_bdv!$F$2:$F$65536,IF(dati_pdc!$C1206=5,dati_bdv!$G$2:$G$65536,dati_bdv!$H$2:$H$65536))))),$A1206,dati_bdv!N$2:N$65536)","v":0}]
[{"$f":"dati_pdc!A1207","v":0},{"$f":"SUMIF(IF(dati_pdc!$C1207=1,dati_bdv!$C$2:$C$65536,IF(dati_pdc!$C1207=2,dati_bdv!$D$2:$D$65536,IF(dati_pdc!$C1207=3,dati_bdv!$E$2:$E$65536,IF(dati_pdc!$C1207=4,dati_bdv!$F$2:$F$65536,IF(dati_pdc!$C1207=5,dati_bdv!$G$2:$G$65536,dati_bdv!$H$2:$H$65536))))),$A1207,dati_bdv!J$2:J$65536)","v":0},{"$f":"SUMIF(IF(dati_pdc!$C1207=1,dati_bdv!$C$2:$C$65536,IF(dati_pdc!$C1207=2,dati_bdv!$D$2:$D$65536,IF(dati_pdc!$C1207=3,dati_bdv!$E$2:$E$65536,IF(dati_pdc!$C1207=4,dati_bdv!$F$2:$F$65536,IF(dati_pdc!$C1207=5,dati_bdv!$G$2:$G$65536,dati_bdv!$H$2:$H$65536))))),$A1207,dati_bdv!K$2:K$65536)","v":0},{"$f":"SUMIF(IF(dati_pdc!$C1207=1,dati_bdv!$C$2:$C$65536,IF(dati_pdc!$C1207=2,dati_bdv!$D$2:$D$65536,IF(dati_pdc!$C1207=3,dati_bdv!$E$2:$E$65536,IF(dati_pdc!$C1207=4,dati_bdv!$F$2:$F$65536,IF(dati_pdc!$C1207=5,dati_bdv!$G$2:$G$65536,dati_bdv!$H$2:$H$65536))))),$A1207,dati_bdv!L$2:L$65536)","v":0},{"$f":"SUMIF(IF(dati_pdc!$C1207=1,dati_bdv!$C$2:$C$65536,IF(dati_pdc!$C1207=2,dati_bdv!$D$2:$D$65536,IF(dati_pdc!$C1207=3,dati_bdv!$E$2:$E$65536,IF(dati_pdc!$C1207=4,dati_bdv!$F$2:$F$65536,IF(dati_pdc!$C1207=5,dati_bdv!$G$2:$G$65536,dati_bdv!$H$2:$H$65536))))),$A1207,dati_bdv!M$2:M$65536)","v":0},{"$f":"SUMIF(IF(dati_pdc!$C1207=1,dati_bdv!$C$2:$C$65536,IF(dati_pdc!$C1207=2,dati_bdv!$D$2:$D$65536,IF(dati_pdc!$C1207=3,dati_bdv!$E$2:$E$65536,IF(dati_pdc!$C1207=4,dati_bdv!$F$2:$F$65536,IF(dati_pdc!$C1207=5,dati_bdv!$G$2:$G$65536,dati_bdv!$H$2:$H$65536))))),$A1207,dati_bdv!N$2:N$65536)","v":0}]
[{"$f":"dati_pdc!A1208","v":0},{"$f":"SUMIF(IF(dati_pdc!$C1208=1,dati_bdv!$C$2:$C$65536,IF(dati_pdc!$C1208=2,dati_bdv!$D$2:$D$65536,IF(dati_pdc!$C1208=3,dati_bdv!$E$2:$E$65536,IF(dati_pdc!$C1208=4,dati_bdv!$F$2:$F$65536,IF(dati_pdc!$C1208=5,dati_bdv!$G$2:$G$65536,dati_bdv!$H$2:$H$65536))))),$A1208,dati_bdv!J$2:J$65536)","v":0},{"$f":"SUMIF(IF(dati_pdc!$C1208=1,dati_bdv!$C$2:$C$65536,IF(dati_pdc!$C1208=2,dati_bdv!$D$2:$D$65536,IF(dati_pdc!$C1208=3,dati_bdv!$E$2:$E$65536,IF(dati_pdc!$C1208=4,dati_bdv!$F$2:$F$65536,IF(dati_pdc!$C1208=5,dati_bdv!$G$2:$G$65536,dati_bdv!$H$2:$H$65536))))),$A1208,dati_bdv!K$2:K$65536)","v":0},{"$f":"SUMIF(IF(dati_pdc!$C1208=1,dati_bdv!$C$2:$C$65536,IF(dati_pdc!$C1208=2,dati_bdv!$D$2:$D$65536,IF(dati_pdc!$C1208=3,dati_bdv!$E$2:$E$65536,IF(dati_pdc!$C1208=4,dati_bdv!$F$2:$F$65536,IF(dati_pdc!$C1208=5,dati_bdv!$G$2:$G$65536,dati_bdv!$H$2:$H$65536))))),$A1208,dati_bdv!L$2:L$65536)","v":0},{"$f":"SUMIF(IF(dati_pdc!$C1208=1,dati_bdv!$C$2:$C$65536,IF(dati_pdc!$C1208=2,dati_bdv!$D$2:$D$65536,IF(dati_pdc!$C1208=3,dati_bdv!$E$2:$E$65536,IF(dati_pdc!$C1208=4,dati_bdv!$F$2:$F$65536,IF(dati_pdc!$C1208=5,dati_bdv!$G$2:$G$65536,dati_bdv!$H$2:$H$65536))))),$A1208,dati_bdv!M$2:M$65536)","v":0},{"$f":"SUMIF(IF(dati_pdc!$C1208=1,dati_bdv!$C$2:$C$65536,IF(dati_pdc!$C1208=2,dati_bdv!$D$2:$D$65536,IF(dati_pdc!$C1208=3,dati_bdv!$E$2:$E$65536,IF(dati_pdc!$C1208=4,dati_bdv!$F$2:$F$65536,IF(dati_pdc!$C1208=5,dati_bdv!$G$2:$G$65536,dati_bdv!$H$2:$H$65536))))),$A1208,dati_bdv!N$2:N$65536)","v":0}]
[{"$f":"dati_pdc!A1209","v":0},{"$f":"SUMIF(IF(dati_pdc!$C1209=1,dati_bdv!$C$2:$C$65536,IF(dati_pdc!$C1209=2,dati_bdv!$D$2:$D$65536,IF(dati_pdc!$C1209=3,dati_bdv!$E$2:$E$65536,IF(dati_pdc!$C1209=4,dati_bdv!$F$2:$F$65536,IF(dati_pdc!$C1209=5,dati_bdv!$G$2:$G$65536,dati_bdv!$H$2:$H$65536))))),$A1209,dati_bdv!J$2:J$65536)","v":0},{"$f":"SUMIF(IF(dati_pdc!$C1209=1,dati_bdv!$C$2:$C$65536,IF(dati_pdc!$C1209=2,dati_bdv!$D$2:$D$65536,IF(dati_pdc!$C1209=3,dati_bdv!$E$2:$E$65536,IF(dati_pdc!$C1209=4,dati_bdv!$F$2:$F$65536,IF(dati_pdc!$C1209=5,dati_bdv!$G$2:$G$65536,dati_bdv!$H$2:$H$65536))))),$A1209,dati_bdv!K$2:K$65536)","v":0},{"$f":"SUMIF(IF(dati_pdc!$C1209=1,dati_bdv!$C$2:$C$65536,IF(dati_pdc!$C1209=2,dati_bdv!$D$2:$D$65536,IF(dati_pdc!$C1209=3,dati_bdv!$E$2:$E$65536,IF(dati_pdc!$C1209=4,dati_bdv!$F$2:$F$65536,IF(dati_pdc!$C1209=5,dati_bdv!$G$2:$G$65536,dati_bdv!$H$2:$H$65536))))),$A1209,dati_bdv!L$2:L$65536)","v":0},{"$f":"SUMIF(IF(dati_pdc!$C1209=1,dati_bdv!$C$2:$C$65536,IF(dati_pdc!$C1209=2,dati_bdv!$D$2:$D$65536,IF(dati_pdc!$C1209=3,dati_bdv!$E$2:$E$65536,IF(dati_pdc!$C1209=4,dati_bdv!$F$2:$F$65536,IF(dati_pdc!$C1209=5,dati_bdv!$G$2:$G$65536,dati_bdv!$H$2:$H$65536))))),$A1209,dati_bdv!M$2:M$65536)","v":0},{"$f":"SUMIF(IF(dati_pdc!$C1209=1,dati_bdv!$C$2:$C$65536,IF(dati_pdc!$C1209=2,dati_bdv!$D$2:$D$65536,IF(dati_pdc!$C1209=3,dati_bdv!$E$2:$E$65536,IF(dati_pdc!$C1209=4,dati_bdv!$F$2:$F$65536,IF(dati_pdc!$C1209=5,dati_bdv!$G$2:$G$65536,dati_bdv!$H$2:$H$65536))))),$A1209,dati_bdv!N$2:N$65536)","v":0}]
[{"$f":"dati_pdc!A1210","v":0},{"$f":"SUMIF(IF(dati_pdc!$C1210=1,dati_bdv!$C$2:$C$65536,IF(dati_pdc!$C1210=2,dati_bdv!$D$2:$D$65536,IF(dati_pdc!$C1210=3,dati_bdv!$E$2:$E$65536,IF(dati_pdc!$C1210=4,dati_bdv!$F$2:$F$65536,IF(dati_pdc!$C1210=5,dati_bdv!$G$2:$G$65536,dati_bdv!$H$2:$H$65536))))),$A1210,dati_bdv!J$2:J$65536)","v":0},{"$f":"SUMIF(IF(dati_pdc!$C1210=1,dati_bdv!$C$2:$C$65536,IF(dati_pdc!$C1210=2,dati_bdv!$D$2:$D$65536,IF(dati_pdc!$C1210=3,dati_bdv!$E$2:$E$65536,IF(dati_pdc!$C1210=4,dati_bdv!$F$2:$F$65536,IF(dati_pdc!$C1210=5,dati_bdv!$G$2:$G$65536,dati_bdv!$H$2:$H$65536))))),$A1210,dati_bdv!K$2:K$65536)","v":0},{"$f":"SUMIF(IF(dati_pdc!$C1210=1,dati_bdv!$C$2:$C$65536,IF(dati_pdc!$C1210=2,dati_bdv!$D$2:$D$65536,IF(dati_pdc!$C1210=3,dati_bdv!$E$2:$E$65536,IF(dati_pdc!$C1210=4,dati_bdv!$F$2:$F$65536,IF(dati_pdc!$C1210=5,dati_bdv!$G$2:$G$65536,dati_bdv!$H$2:$H$65536))))),$A1210,dati_bdv!L$2:L$65536)","v":0},{"$f":"SUMIF(IF(dati_pdc!$C1210=1,dati_bdv!$C$2:$C$65536,IF(dati_pdc!$C1210=2,dati_bdv!$D$2:$D$65536,IF(dati_pdc!$C1210=3,dati_bdv!$E$2:$E$65536,IF(dati_pdc!$C1210=4,dati_bdv!$F$2:$F$65536,IF(dati_pdc!$C1210=5,dati_bdv!$G$2:$G$65536,dati_bdv!$H$2:$H$65536))))),$A1210,dati_bdv!M$2:M$65536)","v":0},{"$f":"SUMIF(IF(dati_pdc!$C1210=1,dati_bdv!$C$2:$C$65536,IF(dati_pdc!$C1210=2,dati_bdv!$D$2:$D$65536,IF(dati_pdc!$C1210=3,dati_bdv!$E$2:$E$65536,IF(dati_pdc!$C1210=4,dati_bdv!$F$2:$F$65536,IF(dati_pdc!$C1210=5,dati_bdv!$G$2:$G$65536,dati_bdv!$H$2:$H$65536))))),$A1210,dati_bdv!N$2:N$65536)","v":0}]
[{"$f":"dati_pdc!A1211","v":0},{"$f":"SUMIF(IF(dati_pdc!$C1211=1,dati_bdv!$C$2:$C$65536,IF(dati_pdc!$C1211=2,dati_bdv!$D$2:$D$65536,IF(dati_pdc!$C1211=3,dati_bdv!$E$2:$E$65536,IF(dati_pdc!$C1211=4,dati_bdv!$F$2:$F$65536,IF(dati_pdc!$C1211=5,dati_bdv!$G$2:$G$65536,dati_bdv!$H$2:$H$65536))))),$A1211,dati_bdv!J$2:J$65536)","v":0},{"$f":"SUMIF(IF(dati_pdc!$C1211=1,dati_bdv!$C$2:$C$65536,IF(dati_pdc!$C1211=2,dati_bdv!$D$2:$D$65536,IF(dati_pdc!$C1211=3,dati_bdv!$E$2:$E$65536,IF(dati_pdc!$C1211=4,dati_bdv!$F$2:$F$65536,IF(dati_pdc!$C1211=5,dati_bdv!$G$2:$G$65536,dati_bdv!$H$2:$H$65536))))),$A1211,dati_bdv!K$2:K$65536)","v":0},{"$f":"SUMIF(IF(dati_pdc!$C1211=1,dati_bdv!$C$2:$C$65536,IF(dati_pdc!$C1211=2,dati_bdv!$D$2:$D$65536,IF(dati_pdc!$C1211=3,dati_bdv!$E$2:$E$65536,IF(dati_pdc!$C1211=4,dati_bdv!$F$2:$F$65536,IF(dati_pdc!$C1211=5,dati_bdv!$G$2:$G$65536,dati_bdv!$H$2:$H$65536))))),$A1211,dati_bdv!L$2:L$65536)","v":0},{"$f":"SUMIF(IF(dati_pdc!$C1211=1,dati_bdv!$C$2:$C$65536,IF(dati_pdc!$C1211=2,dati_bdv!$D$2:$D$65536,IF(dati_pdc!$C1211=3,dati_bdv!$E$2:$E$65536,IF(dati_pdc!$C1211=4,dati_bdv!$F$2:$F$65536,IF(dati_pdc!$C1211=5,dati_bdv!$G$2:$G$65536,dati_bdv!$H$2:$H$65536))))),$A1211,dati_bdv!M$2:M$65536)","v":0},{"$f":"SUMIF(IF(dati_pdc!$C1211=1,dati_bdv!$C$2:$C$65536,IF(dati_pdc!$C1211=2,dati_bdv!$D$2:$D$65536,IF(dati_pdc!$C1211=3,dati_bdv!$E$2:$E$65536,IF(dati_pdc!$C1211=4,dati_bdv!$F$2:$F$65536,IF(dati_pdc!$C1211=5,dati_bdv!$G$2:$G$65536,dati_bdv!$H$2:$H$65536))))),$A1211,dati_bdv!N$2:N$65536)","v":0}]
[{"$f":"dati_pdc!A1212","v":0},{"$f":"SUMIF(IF(dati_pdc!$C1212=1,dati_bdv!$C$2:$C$65536,IF(dati_pdc!$C1212=2,dati_bdv!$D$2:$D$65536,IF(dati_pdc!$C1212=3,dati_bdv!$E$2:$E$65536,IF(dati_pdc!$C1212=4,dati_bdv!$F$2:$F$65536,IF(dati_pdc!$C1212=5,dati_bdv!$G$2:$G$65536,dati_bdv!$H$2:$H$65536))))),$A1212,dati_bdv!J$2:J$65536)","v":0},{"$f":"SUMIF(IF(dati_pdc!$C1212=1,dati_bdv!$C$2:$C$65536,IF(dati_pdc!$C1212=2,dati_bdv!$D$2:$D$65536,IF(dati_pdc!$C1212=3,dati_bdv!$E$2:$E$65536,IF(dati_pdc!$C1212=4,dati_bdv!$F$2:$F$65536,IF(dati_pdc!$C1212=5,dati_bdv!$G$2:$G$65536,dati_bdv!$H$2:$H$65536))))),$A1212,dati_bdv!K$2:K$65536)","v":0},{"$f":"SUMIF(IF(dati_pdc!$C1212=1,dati_bdv!$C$2:$C$65536,IF(dati_pdc!$C1212=2,dati_bdv!$D$2:$D$65536,IF(dati_pdc!$C1212=3,dati_bdv!$E$2:$E$65536,IF(dati_pdc!$C1212=4,dati_bdv!$F$2:$F$65536,IF(dati_pdc!$C1212=5,dati_bdv!$G$2:$G$65536,dati_bdv!$H$2:$H$65536))))),$A1212,dati_bdv!L$2:L$65536)","v":0},{"$f":"SUMIF(IF(dati_pdc!$C1212=1,dati_bdv!$C$2:$C$65536,IF(dati_pdc!$C1212=2,dati_bdv!$D$2:$D$65536,IF(dati_pdc!$C1212=3,dati_bdv!$E$2:$E$65536,IF(dati_pdc!$C1212=4,dati_bdv!$F$2:$F$65536,IF(dati_pdc!$C1212=5,dati_bdv!$G$2:$G$65536,dati_bdv!$H$2:$H$65536))))),$A1212,dati_bdv!M$2:M$65536)","v":0},{"$f":"SUMIF(IF(dati_pdc!$C1212=1,dati_bdv!$C$2:$C$65536,IF(dati_pdc!$C1212=2,dati_bdv!$D$2:$D$65536,IF(dati_pdc!$C1212=3,dati_bdv!$E$2:$E$65536,IF(dati_pdc!$C1212=4,dati_bdv!$F$2:$F$65536,IF(dati_pdc!$C1212=5,dati_bdv!$G$2:$G$65536,dati_bdv!$H$2:$H$65536))))),$A1212,dati_bdv!N$2:N$65536)","v":0}]
[{"$f":"dati_pdc!A1213","v":0},{"$f":"SUMIF(IF(dati_pdc!$C1213=1,dati_bdv!$C$2:$C$65536,IF(dati_pdc!$C1213=2,dati_bdv!$D$2:$D$65536,IF(dati_pdc!$C1213=3,dati_bdv!$E$2:$E$65536,IF(dati_pdc!$C1213=4,dati_bdv!$F$2:$F$65536,IF(dati_pdc!$C1213=5,dati_bdv!$G$2:$G$65536,dati_bdv!$H$2:$H$65536))))),$A1213,dati_bdv!J$2:J$65536)","v":0},{"$f":"SUMIF(IF(dati_pdc!$C1213=1,dati_bdv!$C$2:$C$65536,IF(dati_pdc!$C1213=2,dati_bdv!$D$2:$D$65536,IF(dati_pdc!$C1213=3,dati_bdv!$E$2:$E$65536,IF(dati_pdc!$C1213=4,dati_bdv!$F$2:$F$65536,IF(dati_pdc!$C1213=5,dati_bdv!$G$2:$G$65536,dati_bdv!$H$2:$H$65536))))),$A1213,dati_bdv!K$2:K$65536)","v":0},{"$f":"SUMIF(IF(dati_pdc!$C1213=1,dati_bdv!$C$2:$C$65536,IF(dati_pdc!$C1213=2,dati_bdv!$D$2:$D$65536,IF(dati_pdc!$C1213=3,dati_bdv!$E$2:$E$65536,IF(dati_pdc!$C1213=4,dati_bdv!$F$2:$F$65536,IF(dati_pdc!$C1213=5,dati_bdv!$G$2:$G$65536,dati_bdv!$H$2:$H$65536))))),$A1213,dati_bdv!L$2:L$65536)","v":0},{"$f":"SUMIF(IF(dati_pdc!$C1213=1,dati_bdv!$C$2:$C$65536,IF(dati_pdc!$C1213=2,dati_bdv!$D$2:$D$65536,IF(dati_pdc!$C1213=3,dati_bdv!$E$2:$E$65536,IF(dati_pdc!$C1213=4,dati_bdv!$F$2:$F$65536,IF(dati_pdc!$C1213=5,dati_bdv!$G$2:$G$65536,dati_bdv!$H$2:$H$65536))))),$A1213,dati_bdv!M$2:M$65536)","v":0},{"$f":"SUMIF(IF(dati_pdc!$C1213=1,dati_bdv!$C$2:$C$65536,IF(dati_pdc!$C1213=2,dati_bdv!$D$2:$D$65536,IF(dati_pdc!$C1213=3,dati_bdv!$E$2:$E$65536,IF(dati_pdc!$C1213=4,dati_bdv!$F$2:$F$65536,IF(dati_pdc!$C1213=5,dati_bdv!$G$2:$G$65536,dati_bdv!$H$2:$H$65536))))),$A1213,dati_bdv!N$2:N$65536)","v":0}]
[{"$f":"dati_pdc!A1214","v":0},{"$f":"SUMIF(IF(dati_pdc!$C1214=1,dati_bdv!$C$2:$C$65536,IF(dati_pdc!$C1214=2,dati_bdv!$D$2:$D$65536,IF(dati_pdc!$C1214=3,dati_bdv!$E$2:$E$65536,IF(dati_pdc!$C1214=4,dati_bdv!$F$2:$F$65536,IF(dati_pdc!$C1214=5,dati_bdv!$G$2:$G$65536,dati_bdv!$H$2:$H$65536))))),$A1214,dati_bdv!J$2:J$65536)","v":0},{"$f":"SUMIF(IF(dati_pdc!$C1214=1,dati_bdv!$C$2:$C$65536,IF(dati_pdc!$C1214=2,dati_bdv!$D$2:$D$65536,IF(dati_pdc!$C1214=3,dati_bdv!$E$2:$E$65536,IF(dati_pdc!$C1214=4,dati_bdv!$F$2:$F$65536,IF(dati_pdc!$C1214=5,dati_bdv!$G$2:$G$65536,dati_bdv!$H$2:$H$65536))))),$A1214,dati_bdv!K$2:K$65536)","v":0},{"$f":"SUMIF(IF(dati_pdc!$C1214=1,dati_bdv!$C$2:$C$65536,IF(dati_pdc!$C1214=2,dati_bdv!$D$2:$D$65536,IF(dati_pdc!$C1214=3,dati_bdv!$E$2:$E$65536,IF(dati_pdc!$C1214=4,dati_bdv!$F$2:$F$65536,IF(dati_pdc!$C1214=5,dati_bdv!$G$2:$G$65536,dati_bdv!$H$2:$H$65536))))),$A1214,dati_bdv!L$2:L$65536)","v":0},{"$f":"SUMIF(IF(dati_pdc!$C1214=1,dati_bdv!$C$2:$C$65536,IF(dati_pdc!$C1214=2,dati_bdv!$D$2:$D$65536,IF(dati_pdc!$C1214=3,dati_bdv!$E$2:$E$65536,IF(dati_pdc!$C1214=4,dati_bdv!$F$2:$F$65536,IF(dati_pdc!$C1214=5,dati_bdv!$G$2:$G$65536,dati_bdv!$H$2:$H$65536))))),$A1214,dati_bdv!M$2:M$65536)","v":0},{"$f":"SUMIF(IF(dati_pdc!$C1214=1,dati_bdv!$C$2:$C$65536,IF(dati_pdc!$C1214=2,dati_bdv!$D$2:$D$65536,IF(dati_pdc!$C1214=3,dati_bdv!$E$2:$E$65536,IF(dati_pdc!$C1214=4,dati_bdv!$F$2:$F$65536,IF(dati_pdc!$C1214=5,dati_bdv!$G$2:$G$65536,dati_bdv!$H$2:$H$65536))))),$A1214,dati_bdv!N$2:N$65536)","v":0}]
[{"$f":"dati_pdc!A1215","v":0},{"$f":"SUMIF(IF(dati_pdc!$C1215=1,dati_bdv!$C$2:$C$65536,IF(dati_pdc!$C1215=2,dati_bdv!$D$2:$D$65536,IF(dati_pdc!$C1215=3,dati_bdv!$E$2:$E$65536,IF(dati_pdc!$C1215=4,dati_bdv!$F$2:$F$65536,IF(dati_pdc!$C1215=5,dati_bdv!$G$2:$G$65536,dati_bdv!$H$2:$H$65536))))),$A1215,dati_bdv!J$2:J$65536)","v":0},{"$f":"SUMIF(IF(dati_pdc!$C1215=1,dati_bdv!$C$2:$C$65536,IF(dati_pdc!$C1215=2,dati_bdv!$D$2:$D$65536,IF(dati_pdc!$C1215=3,dati_bdv!$E$2:$E$65536,IF(dati_pdc!$C1215=4,dati_bdv!$F$2:$F$65536,IF(dati_pdc!$C1215=5,dati_bdv!$G$2:$G$65536,dati_bdv!$H$2:$H$65536))))),$A1215,dati_bdv!K$2:K$65536)","v":0},{"$f":"SUMIF(IF(dati_pdc!$C1215=1,dati_bdv!$C$2:$C$65536,IF(dati_pdc!$C1215=2,dati_bdv!$D$2:$D$65536,IF(dati_pdc!$C1215=3,dati_bdv!$E$2:$E$65536,IF(dati_pdc!$C1215=4,dati_bdv!$F$2:$F$65536,IF(dati_pdc!$C1215=5,dati_bdv!$G$2:$G$65536,dati_bdv!$H$2:$H$65536))))),$A1215,dati_bdv!L$2:L$65536)","v":0},{"$f":"SUMIF(IF(dati_pdc!$C1215=1,dati_bdv!$C$2:$C$65536,IF(dati_pdc!$C1215=2,dati_bdv!$D$2:$D$65536,IF(dati_pdc!$C1215=3,dati_bdv!$E$2:$E$65536,IF(dati_pdc!$C1215=4,dati_bdv!$F$2:$F$65536,IF(dati_pdc!$C1215=5,dati_bdv!$G$2:$G$65536,dati_bdv!$H$2:$H$65536))))),$A1215,dati_bdv!M$2:M$65536)","v":0},{"$f":"SUMIF(IF(dati_pdc!$C1215=1,dati_bdv!$C$2:$C$65536,IF(dati_pdc!$C1215=2,dati_bdv!$D$2:$D$65536,IF(dati_pdc!$C1215=3,dati_bdv!$E$2:$E$65536,IF(dati_pdc!$C1215=4,dati_bdv!$F$2:$F$65536,IF(dati_pdc!$C1215=5,dati_bdv!$G$2:$G$65536,dati_bdv!$H$2:$H$65536))))),$A1215,dati_bdv!N$2:N$65536)","v":0}]
[{"$f":"dati_pdc!A1216","v":0},{"$f":"SUMIF(IF(dati_pdc!$C1216=1,dati_bdv!$C$2:$C$65536,IF(dati_pdc!$C1216=2,dati_bdv!$D$2:$D$65536,IF(dati_pdc!$C1216=3,dati_bdv!$E$2:$E$65536,IF(dati_pdc!$C1216=4,dati_bdv!$F$2:$F$65536,IF(dati_pdc!$C1216=5,dati_bdv!$G$2:$G$65536,dati_bdv!$H$2:$H$65536))))),$A1216,dati_bdv!J$2:J$65536)","v":0},{"$f":"SUMIF(IF(dati_pdc!$C1216=1,dati_bdv!$C$2:$C$65536,IF(dati_pdc!$C1216=2,dati_bdv!$D$2:$D$65536,IF(dati_pdc!$C1216=3,dati_bdv!$E$2:$E$65536,IF(dati_pdc!$C1216=4,dati_bdv!$F$2:$F$65536,IF(dati_pdc!$C1216=5,dati_bdv!$G$2:$G$65536,dati_bdv!$H$2:$H$65536))))),$A1216,dati_bdv!K$2:K$65536)","v":0},{"$f":"SUMIF(IF(dati_pdc!$C1216=1,dati_bdv!$C$2:$C$65536,IF(dati_pdc!$C1216=2,dati_bdv!$D$2:$D$65536,IF(dati_pdc!$C1216=3,dati_bdv!$E$2:$E$65536,IF(dati_pdc!$C1216=4,dati_bdv!$F$2:$F$65536,IF(dati_pdc!$C1216=5,dati_bdv!$G$2:$G$65536,dati_bdv!$H$2:$H$65536))))),$A1216,dati_bdv!L$2:L$65536)","v":0},{"$f":"SUMIF(IF(dati_pdc!$C1216=1,dati_bdv!$C$2:$C$65536,IF(dati_pdc!$C1216=2,dati_bdv!$D$2:$D$65536,IF(dati_pdc!$C1216=3,dati_bdv!$E$2:$E$65536,IF(dati_pdc!$C1216=4,dati_bdv!$F$2:$F$65536,IF(dati_pdc!$C1216=5,dati_bdv!$G$2:$G$65536,dati_bdv!$H$2:$H$65536))))),$A1216,dati_bdv!M$2:M$65536)","v":0},{"$f":"SUMIF(IF(dati_pdc!$C1216=1,dati_bdv!$C$2:$C$65536,IF(dati_pdc!$C1216=2,dati_bdv!$D$2:$D$65536,IF(dati_pdc!$C1216=3,dati_bdv!$E$2:$E$65536,IF(dati_pdc!$C1216=4,dati_bdv!$F$2:$F$65536,IF(dati_pdc!$C1216=5,dati_bdv!$G$2:$G$65536,dati_bdv!$H$2:$H$65536))))),$A1216,dati_bdv!N$2:N$65536)","v":0}]
[{"$f":"dati_pdc!A1217","v":0},{"$f":"SUMIF(IF(dati_pdc!$C1217=1,dati_bdv!$C$2:$C$65536,IF(dati_pdc!$C1217=2,dati_bdv!$D$2:$D$65536,IF(dati_pdc!$C1217=3,dati_bdv!$E$2:$E$65536,IF(dati_pdc!$C1217=4,dati_bdv!$F$2:$F$65536,IF(dati_pdc!$C1217=5,dati_bdv!$G$2:$G$65536,dati_bdv!$H$2:$H$65536))))),$A1217,dati_bdv!J$2:J$65536)","v":0},{"$f":"SUMIF(IF(dati_pdc!$C1217=1,dati_bdv!$C$2:$C$65536,IF(dati_pdc!$C1217=2,dati_bdv!$D$2:$D$65536,IF(dati_pdc!$C1217=3,dati_bdv!$E$2:$E$65536,IF(dati_pdc!$C1217=4,dati_bdv!$F$2:$F$65536,IF(dati_pdc!$C1217=5,dati_bdv!$G$2:$G$65536,dati_bdv!$H$2:$H$65536))))),$A1217,dati_bdv!K$2:K$65536)","v":0},{"$f":"SUMIF(IF(dati_pdc!$C1217=1,dati_bdv!$C$2:$C$65536,IF(dati_pdc!$C1217=2,dati_bdv!$D$2:$D$65536,IF(dati_pdc!$C1217=3,dati_bdv!$E$2:$E$65536,IF(dati_pdc!$C1217=4,dati_bdv!$F$2:$F$65536,IF(dati_pdc!$C1217=5,dati_bdv!$G$2:$G$65536,dati_bdv!$H$2:$H$65536))))),$A1217,dati_bdv!L$2:L$65536)","v":0},{"$f":"SUMIF(IF(dati_pdc!$C1217=1,dati_bdv!$C$2:$C$65536,IF(dati_pdc!$C1217=2,dati_bdv!$D$2:$D$65536,IF(dati_pdc!$C1217=3,dati_bdv!$E$2:$E$65536,IF(dati_pdc!$C1217=4,dati_bdv!$F$2:$F$65536,IF(dati_pdc!$C1217=5,dati_bdv!$G$2:$G$65536,dati_bdv!$H$2:$H$65536))))),$A1217,dati_bdv!M$2:M$65536)","v":0},{"$f":"SUMIF(IF(dati_pdc!$C1217=1,dati_bdv!$C$2:$C$65536,IF(dati_pdc!$C1217=2,dati_bdv!$D$2:$D$65536,IF(dati_pdc!$C1217=3,dati_bdv!$E$2:$E$65536,IF(dati_pdc!$C1217=4,dati_bdv!$F$2:$F$65536,IF(dati_pdc!$C1217=5,dati_bdv!$G$2:$G$65536,dati_bdv!$H$2:$H$65536))))),$A1217,dati_bdv!N$2:N$65536)","v":0}]
[{"$f":"dati_pdc!A1218","v":0},{"$f":"SUMIF(IF(dati_pdc!$C1218=1,dati_bdv!$C$2:$C$65536,IF(dati_pdc!$C1218=2,dati_bdv!$D$2:$D$65536,IF(dati_pdc!$C1218=3,dati_bdv!$E$2:$E$65536,IF(dati_pdc!$C1218=4,dati_bdv!$F$2:$F$65536,IF(dati_pdc!$C1218=5,dati_bdv!$G$2:$G$65536,dati_bdv!$H$2:$H$65536))))),$A1218,dati_bdv!J$2:J$65536)","v":0},{"$f":"SUMIF(IF(dati_pdc!$C1218=1,dati_bdv!$C$2:$C$65536,IF(dati_pdc!$C1218=2,dati_bdv!$D$2:$D$65536,IF(dati_pdc!$C1218=3,dati_bdv!$E$2:$E$65536,IF(dati_pdc!$C1218=4,dati_bdv!$F$2:$F$65536,IF(dati_pdc!$C1218=5,dati_bdv!$G$2:$G$65536,dati_bdv!$H$2:$H$65536))))),$A1218,dati_bdv!K$2:K$65536)","v":0},{"$f":"SUMIF(IF(dati_pdc!$C1218=1,dati_bdv!$C$2:$C$65536,IF(dati_pdc!$C1218=2,dati_bdv!$D$2:$D$65536,IF(dati_pdc!$C1218=3,dati_bdv!$E$2:$E$65536,IF(dati_pdc!$C1218=4,dati_bdv!$F$2:$F$65536,IF(dati_pdc!$C1218=5,dati_bdv!$G$2:$G$65536,dati_bdv!$H$2:$H$65536))))),$A1218,dati_bdv!L$2:L$65536)","v":0},{"$f":"SUMIF(IF(dati_pdc!$C1218=1,dati_bdv!$C$2:$C$65536,IF(dati_pdc!$C1218=2,dati_bdv!$D$2:$D$65536,IF(dati_pdc!$C1218=3,dati_bdv!$E$2:$E$65536,IF(dati_pdc!$C1218=4,dati_bdv!$F$2:$F$65536,IF(dati_pdc!$C1218=5,dati_bdv!$G$2:$G$65536,dati_bdv!$H$2:$H$65536))))),$A1218,dati_bdv!M$2:M$65536)","v":0},{"$f":"SUMIF(IF(dati_pdc!$C1218=1,dati_bdv!$C$2:$C$65536,IF(dati_pdc!$C1218=2,dati_bdv!$D$2:$D$65536,IF(dati_pdc!$C1218=3,dati_bdv!$E$2:$E$65536,IF(dati_pdc!$C1218=4,dati_bdv!$F$2:$F$65536,IF(dati_pdc!$C1218=5,dati_bdv!$G$2:$G$65536,dati_bdv!$H$2:$H$65536))))),$A1218,dati_bdv!N$2:N$65536)","v":0}]
[{"$f":"dati_pdc!A1219","v":0},{"$f":"SUMIF(IF(dati_pdc!$C1219=1,dati_bdv!$C$2:$C$65536,IF(dati_pdc!$C1219=2,dati_bdv!$D$2:$D$65536,IF(dati_pdc!$C1219=3,dati_bdv!$E$2:$E$65536,IF(dati_pdc!$C1219=4,dati_bdv!$F$2:$F$65536,IF(dati_pdc!$C1219=5,dati_bdv!$G$2:$G$65536,dati_bdv!$H$2:$H$65536))))),$A1219,dati_bdv!J$2:J$65536)","v":0},{"$f":"SUMIF(IF(dati_pdc!$C1219=1,dati_bdv!$C$2:$C$65536,IF(dati_pdc!$C1219=2,dati_bdv!$D$2:$D$65536,IF(dati_pdc!$C1219=3,dati_bdv!$E$2:$E$65536,IF(dati_pdc!$C1219=4,dati_bdv!$F$2:$F$65536,IF(dati_pdc!$C1219=5,dati_bdv!$G$2:$G$65536,dati_bdv!$H$2:$H$65536))))),$A1219,dati_bdv!K$2:K$65536)","v":0},{"$f":"SUMIF(IF(dati_pdc!$C1219=1,dati_bdv!$C$2:$C$65536,IF(dati_pdc!$C1219=2,dati_bdv!$D$2:$D$65536,IF(dati_pdc!$C1219=3,dati_bdv!$E$2:$E$65536,IF(dati_pdc!$C1219=4,dati_bdv!$F$2:$F$65536,IF(dati_pdc!$C1219=5,dati_bdv!$G$2:$G$65536,dati_bdv!$H$2:$H$65536))))),$A1219,dati_bdv!L$2:L$65536)","v":0},{"$f":"SUMIF(IF(dati_pdc!$C1219=1,dati_bdv!$C$2:$C$65536,IF(dati_pdc!$C1219=2,dati_bdv!$D$2:$D$65536,IF(dati_pdc!$C1219=3,dati_bdv!$E$2:$E$65536,IF(dati_pdc!$C1219=4,dati_bdv!$F$2:$F$65536,IF(dati_pdc!$C1219=5,dati_bdv!$G$2:$G$65536,dati_bdv!$H$2:$H$65536))))),$A1219,dati_bdv!M$2:M$65536)","v":0},{"$f":"SUMIF(IF(dati_pdc!$C1219=1,dati_bdv!$C$2:$C$65536,IF(dati_pdc!$C1219=2,dati_bdv!$D$2:$D$65536,IF(dati_pdc!$C1219=3,dati_bdv!$E$2:$E$65536,IF(dati_pdc!$C1219=4,dati_bdv!$F$2:$F$65536,IF(dati_pdc!$C1219=5,dati_bdv!$G$2:$G$65536,dati_bdv!$H$2:$H$65536))))),$A1219,dati_bdv!N$2:N$65536)","v":0}]
[{"$f":"dati_pdc!A1220","v":0},{"$f":"SUMIF(IF(dati_pdc!$C1220=1,dati_bdv!$C$2:$C$65536,IF(dati_pdc!$C1220=2,dati_bdv!$D$2:$D$65536,IF(dati_pdc!$C1220=3,dati_bdv!$E$2:$E$65536,IF(dati_pdc!$C1220=4,dati_bdv!$F$2:$F$65536,IF(dati_pdc!$C1220=5,dati_bdv!$G$2:$G$65536,dati_bdv!$H$2:$H$65536))))),$A1220,dati_bdv!J$2:J$65536)","v":0},{"$f":"SUMIF(IF(dati_pdc!$C1220=1,dati_bdv!$C$2:$C$65536,IF(dati_pdc!$C1220=2,dati_bdv!$D$2:$D$65536,IF(dati_pdc!$C1220=3,dati_bdv!$E$2:$E$65536,IF(dati_pdc!$C1220=4,dati_bdv!$F$2:$F$65536,IF(dati_pdc!$C1220=5,dati_bdv!$G$2:$G$65536,dati_bdv!$H$2:$H$65536))))),$A1220,dati_bdv!K$2:K$65536)","v":0},{"$f":"SUMIF(IF(dati_pdc!$C1220=1,dati_bdv!$C$2:$C$65536,IF(dati_pdc!$C1220=2,dati_bdv!$D$2:$D$65536,IF(dati_pdc!$C1220=3,dati_bdv!$E$2:$E$65536,IF(dati_pdc!$C1220=4,dati_bdv!$F$2:$F$65536,IF(dati_pdc!$C1220=5,dati_bdv!$G$2:$G$65536,dati_bdv!$H$2:$H$65536))))),$A1220,dati_bdv!L$2:L$65536)","v":0},{"$f":"SUMIF(IF(dati_pdc!$C1220=1,dati_bdv!$C$2:$C$65536,IF(dati_pdc!$C1220=2,dati_bdv!$D$2:$D$65536,IF(dati_pdc!$C1220=3,dati_bdv!$E$2:$E$65536,IF(dati_pdc!$C1220=4,dati_bdv!$F$2:$F$65536,IF(dati_pdc!$C1220=5,dati_bdv!$G$2:$G$65536,dati_bdv!$H$2:$H$65536))))),$A1220,dati_bdv!M$2:M$65536)","v":0},{"$f":"SUMIF(IF(dati_pdc!$C1220=1,dati_bdv!$C$2:$C$65536,IF(dati_pdc!$C1220=2,dati_bdv!$D$2:$D$65536,IF(dati_pdc!$C1220=3,dati_bdv!$E$2:$E$65536,IF(dati_pdc!$C1220=4,dati_bdv!$F$2:$F$65536,IF(dati_pdc!$C1220=5,dati_bdv!$G$2:$G$65536,dati_bdv!$H$2:$H$65536))))),$A1220,dati_bdv!N$2:N$65536)","v":0}]
[{"$f":"dati_pdc!A1221","v":0},{"$f":"SUMIF(IF(dati_pdc!$C1221=1,dati_bdv!$C$2:$C$65536,IF(dati_pdc!$C1221=2,dati_bdv!$D$2:$D$65536,IF(dati_pdc!$C1221=3,dati_bdv!$E$2:$E$65536,IF(dati_pdc!$C1221=4,dati_bdv!$F$2:$F$65536,IF(dati_pdc!$C1221=5,dati_bdv!$G$2:$G$65536,dati_bdv!$H$2:$H$65536))))),$A1221,dati_bdv!J$2:J$65536)","v":0},{"$f":"SUMIF(IF(dati_pdc!$C1221=1,dati_bdv!$C$2:$C$65536,IF(dati_pdc!$C1221=2,dati_bdv!$D$2:$D$65536,IF(dati_pdc!$C1221=3,dati_bdv!$E$2:$E$65536,IF(dati_pdc!$C1221=4,dati_bdv!$F$2:$F$65536,IF(dati_pdc!$C1221=5,dati_bdv!$G$2:$G$65536,dati_bdv!$H$2:$H$65536))))),$A1221,dati_bdv!K$2:K$65536)","v":0},{"$f":"SUMIF(IF(dati_pdc!$C1221=1,dati_bdv!$C$2:$C$65536,IF(dati_pdc!$C1221=2,dati_bdv!$D$2:$D$65536,IF(dati_pdc!$C1221=3,dati_bdv!$E$2:$E$65536,IF(dati_pdc!$C1221=4,dati_bdv!$F$2:$F$65536,IF(dati_pdc!$C1221=5,dati_bdv!$G$2:$G$65536,dati_bdv!$H$2:$H$65536))))),$A1221,dati_bdv!L$2:L$65536)","v":0},{"$f":"SUMIF(IF(dati_pdc!$C1221=1,dati_bdv!$C$2:$C$65536,IF(dati_pdc!$C1221=2,dati_bdv!$D$2:$D$65536,IF(dati_pdc!$C1221=3,dati_bdv!$E$2:$E$65536,IF(dati_pdc!$C1221=4,dati_bdv!$F$2:$F$65536,IF(dati_pdc!$C1221=5,dati_bdv!$G$2:$G$65536,dati_bdv!$H$2:$H$65536))))),$A1221,dati_bdv!M$2:M$65536)","v":0},{"$f":"SUMIF(IF(dati_pdc!$C1221=1,dati_bdv!$C$2:$C$65536,IF(dati_pdc!$C1221=2,dati_bdv!$D$2:$D$65536,IF(dati_pdc!$C1221=3,dati_bdv!$E$2:$E$65536,IF(dati_pdc!$C1221=4,dati_bdv!$F$2:$F$65536,IF(dati_pdc!$C1221=5,dati_bdv!$G$2:$G$65536,dati_bdv!$H$2:$H$65536))))),$A1221,dati_bdv!N$2:N$65536)","v":0}]
[{"$f":"dati_pdc!A1222","v":0},{"$f":"SUMIF(IF(dati_pdc!$C1222=1,dati_bdv!$C$2:$C$65536,IF(dati_pdc!$C1222=2,dati_bdv!$D$2:$D$65536,IF(dati_pdc!$C1222=3,dati_bdv!$E$2:$E$65536,IF(dati_pdc!$C1222=4,dati_bdv!$F$2:$F$65536,IF(dati_pdc!$C1222=5,dati_bdv!$G$2:$G$65536,dati_bdv!$H$2:$H$65536))))),$A1222,dati_bdv!J$2:J$65536)","v":0},{"$f":"SUMIF(IF(dati_pdc!$C1222=1,dati_bdv!$C$2:$C$65536,IF(dati_pdc!$C1222=2,dati_bdv!$D$2:$D$65536,IF(dati_pdc!$C1222=3,dati_bdv!$E$2:$E$65536,IF(dati_pdc!$C1222=4,dati_bdv!$F$2:$F$65536,IF(dati_pdc!$C1222=5,dati_bdv!$G$2:$G$65536,dati_bdv!$H$2:$H$65536))))),$A1222,dati_bdv!K$2:K$65536)","v":0},{"$f":"SUMIF(IF(dati_pdc!$C1222=1,dati_bdv!$C$2:$C$65536,IF(dati_pdc!$C1222=2,dati_bdv!$D$2:$D$65536,IF(dati_pdc!$C1222=3,dati_bdv!$E$2:$E$65536,IF(dati_pdc!$C1222=4,dati_bdv!$F$2:$F$65536,IF(dati_pdc!$C1222=5,dati_bdv!$G$2:$G$65536,dati_bdv!$H$2:$H$65536))))),$A1222,dati_bdv!L$2:L$65536)","v":0},{"$f":"SUMIF(IF(dati_pdc!$C1222=1,dati_bdv!$C$2:$C$65536,IF(dati_pdc!$C1222=2,dati_bdv!$D$2:$D$65536,IF(dati_pdc!$C1222=3,dati_bdv!$E$2:$E$65536,IF(dati_pdc!$C1222=4,dati_bdv!$F$2:$F$65536,IF(dati_pdc!$C1222=5,dati_bdv!$G$2:$G$65536,dati_bdv!$H$2:$H$65536))))),$A1222,dati_bdv!M$2:M$65536)","v":0},{"$f":"SUMIF(IF(dati_pdc!$C1222=1,dati_bdv!$C$2:$C$65536,IF(dati_pdc!$C1222=2,dati_bdv!$D$2:$D$65536,IF(dati_pdc!$C1222=3,dati_bdv!$E$2:$E$65536,IF(dati_pdc!$C1222=4,dati_bdv!$F$2:$F$65536,IF(dati_pdc!$C1222=5,dati_bdv!$G$2:$G$65536,dati_bdv!$H$2:$H$65536))))),$A1222,dati_bdv!N$2:N$65536)","v":0}]
[{"$f":"dati_pdc!A1223","v":0},{"$f":"SUMIF(IF(dati_pdc!$C1223=1,dati_bdv!$C$2:$C$65536,IF(dati_pdc!$C1223=2,dati_bdv!$D$2:$D$65536,IF(dati_pdc!$C1223=3,dati_bdv!$E$2:$E$65536,IF(dati_pdc!$C1223=4,dati_bdv!$F$2:$F$65536,IF(dati_pdc!$C1223=5,dati_bdv!$G$2:$G$65536,dati_bdv!$H$2:$H$65536))))),$A1223,dati_bdv!J$2:J$65536)","v":0},{"$f":"SUMIF(IF(dati_pdc!$C1223=1,dati_bdv!$C$2:$C$65536,IF(dati_pdc!$C1223=2,dati_bdv!$D$2:$D$65536,IF(dati_pdc!$C1223=3,dati_bdv!$E$2:$E$65536,IF(dati_pdc!$C1223=4,dati_bdv!$F$2:$F$65536,IF(dati_pdc!$C1223=5,dati_bdv!$G$2:$G$65536,dati_bdv!$H$2:$H$65536))))),$A1223,dati_bdv!K$2:K$65536)","v":0},{"$f":"SUMIF(IF(dati_pdc!$C1223=1,dati_bdv!$C$2:$C$65536,IF(dati_pdc!$C1223=2,dati_bdv!$D$2:$D$65536,IF(dati_pdc!$C1223=3,dati_bdv!$E$2:$E$65536,IF(dati_pdc!$C1223=4,dati_bdv!$F$2:$F$65536,IF(dati_pdc!$C1223=5,dati_bdv!$G$2:$G$65536,dati_bdv!$H$2:$H$65536))))),$A1223,dati_bdv!L$2:L$65536)","v":0},{"$f":"SUMIF(IF(dati_pdc!$C1223=1,dati_bdv!$C$2:$C$65536,IF(dati_pdc!$C1223=2,dati_bdv!$D$2:$D$65536,IF(dati_pdc!$C1223=3,dati_bdv!$E$2:$E$65536,IF(dati_pdc!$C1223=4,dati_bdv!$F$2:$F$65536,IF(dati_pdc!$C1223=5,dati_bdv!$G$2:$G$65536,dati_bdv!$H$2:$H$65536))))),$A1223,dati_bdv!M$2:M$65536)","v":0},{"$f":"SUMIF(IF(dati_pdc!$C1223=1,dati_bdv!$C$2:$C$65536,IF(dati_pdc!$C1223=2,dati_bdv!$D$2:$D$65536,IF(dati_pdc!$C1223=3,dati_bdv!$E$2:$E$65536,IF(dati_pdc!$C1223=4,dati_bdv!$F$2:$F$65536,IF(dati_pdc!$C1223=5,dati_bdv!$G$2:$G$65536,dati_bdv!$H$2:$H$65536))))),$A1223,dati_bdv!N$2:N$65536)","v":0}]
[{"$f":"dati_pdc!A1224","v":0},{"$f":"SUMIF(IF(dati_pdc!$C1224=1,dati_bdv!$C$2:$C$65536,IF(dati_pdc!$C1224=2,dati_bdv!$D$2:$D$65536,IF(dati_pdc!$C1224=3,dati_bdv!$E$2:$E$65536,IF(dati_pdc!$C1224=4,dati_bdv!$F$2:$F$65536,IF(dati_pdc!$C1224=5,dati_bdv!$G$2:$G$65536,dati_bdv!$H$2:$H$65536))))),$A1224,dati_bdv!J$2:J$65536)","v":0},{"$f":"SUMIF(IF(dati_pdc!$C1224=1,dati_bdv!$C$2:$C$65536,IF(dati_pdc!$C1224=2,dati_bdv!$D$2:$D$65536,IF(dati_pdc!$C1224=3,dati_bdv!$E$2:$E$65536,IF(dati_pdc!$C1224=4,dati_bdv!$F$2:$F$65536,IF(dati_pdc!$C1224=5,dati_bdv!$G$2:$G$65536,dati_bdv!$H$2:$H$65536))))),$A1224,dati_bdv!K$2:K$65536)","v":0},{"$f":"SUMIF(IF(dati_pdc!$C1224=1,dati_bdv!$C$2:$C$65536,IF(dati_pdc!$C1224=2,dati_bdv!$D$2:$D$65536,IF(dati_pdc!$C1224=3,dati_bdv!$E$2:$E$65536,IF(dati_pdc!$C1224=4,dati_bdv!$F$2:$F$65536,IF(dati_pdc!$C1224=5,dati_bdv!$G$2:$G$65536,dati_bdv!$H$2:$H$65536))))),$A1224,dati_bdv!L$2:L$65536)","v":0},{"$f":"SUMIF(IF(dati_pdc!$C1224=1,dati_bdv!$C$2:$C$65536,IF(dati_pdc!$C1224=2,dati_bdv!$D$2:$D$65536,IF(dati_pdc!$C1224=3,dati_bdv!$E$2:$E$65536,IF(dati_pdc!$C1224=4,dati_bdv!$F$2:$F$65536,IF(dati_pdc!$C1224=5,dati_bdv!$G$2:$G$65536,dati_bdv!$H$2:$H$65536))))),$A1224,dati_bdv!M$2:M$65536)","v":0},{"$f":"SUMIF(IF(dati_pdc!$C1224=1,dati_bdv!$C$2:$C$65536,IF(dati_pdc!$C1224=2,dati_bdv!$D$2:$D$65536,IF(dati_pdc!$C1224=3,dati_bdv!$E$2:$E$65536,IF(dati_pdc!$C1224=4,dati_bdv!$F$2:$F$65536,IF(dati_pdc!$C1224=5,dati_bdv!$G$2:$G$65536,dati_bdv!$H$2:$H$65536))))),$A1224,dati_bdv!N$2:N$65536)","v":0}]
[{"$f":"dati_pdc!A1225","v":0},{"$f":"SUMIF(IF(dati_pdc!$C1225=1,dati_bdv!$C$2:$C$65536,IF(dati_pdc!$C1225=2,dati_bdv!$D$2:$D$65536,IF(dati_pdc!$C1225=3,dati_bdv!$E$2:$E$65536,IF(dati_pdc!$C1225=4,dati_bdv!$F$2:$F$65536,IF(dati_pdc!$C1225=5,dati_bdv!$G$2:$G$65536,dati_bdv!$H$2:$H$65536))))),$A1225,dati_bdv!J$2:J$65536)","v":0},{"$f":"SUMIF(IF(dati_pdc!$C1225=1,dati_bdv!$C$2:$C$65536,IF(dati_pdc!$C1225=2,dati_bdv!$D$2:$D$65536,IF(dati_pdc!$C1225=3,dati_bdv!$E$2:$E$65536,IF(dati_pdc!$C1225=4,dati_bdv!$F$2:$F$65536,IF(dati_pdc!$C1225=5,dati_bdv!$G$2:$G$65536,dati_bdv!$H$2:$H$65536))))),$A1225,dati_bdv!K$2:K$65536)","v":0},{"$f":"SUMIF(IF(dati_pdc!$C1225=1,dati_bdv!$C$2:$C$65536,IF(dati_pdc!$C1225=2,dati_bdv!$D$2:$D$65536,IF(dati_pdc!$C1225=3,dati_bdv!$E$2:$E$65536,IF(dati_pdc!$C1225=4,dati_bdv!$F$2:$F$65536,IF(dati_pdc!$C1225=5,dati_bdv!$G$2:$G$65536,dati_bdv!$H$2:$H$65536))))),$A1225,dati_bdv!L$2:L$65536)","v":0},{"$f":"SUMIF(IF(dati_pdc!$C1225=1,dati_bdv!$C$2:$C$65536,IF(dati_pdc!$C1225=2,dati_bdv!$D$2:$D$65536,IF(dati_pdc!$C1225=3,dati_bdv!$E$2:$E$65536,IF(dati_pdc!$C1225=4,dati_bdv!$F$2:$F$65536,IF(dati_pdc!$C1225=5,dati_bdv!$G$2:$G$65536,dati_bdv!$H$2:$H$65536))))),$A1225,dati_bdv!M$2:M$65536)","v":0},{"$f":"SUMIF(IF(dati_pdc!$C1225=1,dati_bdv!$C$2:$C$65536,IF(dati_pdc!$C1225=2,dati_bdv!$D$2:$D$65536,IF(dati_pdc!$C1225=3,dati_bdv!$E$2:$E$65536,IF(dati_pdc!$C1225=4,dati_bdv!$F$2:$F$65536,IF(dati_pdc!$C1225=5,dati_bdv!$G$2:$G$65536,dati_bdv!$H$2:$H$65536))))),$A1225,dati_bdv!N$2:N$65536)","v":0}]
[{"$f":"dati_pdc!A1226","v":0},{"$f":"SUMIF(IF(dati_pdc!$C1226=1,dati_bdv!$C$2:$C$65536,IF(dati_pdc!$C1226=2,dati_bdv!$D$2:$D$65536,IF(dati_pdc!$C1226=3,dati_bdv!$E$2:$E$65536,IF(dati_pdc!$C1226=4,dati_bdv!$F$2:$F$65536,IF(dati_pdc!$C1226=5,dati_bdv!$G$2:$G$65536,dati_bdv!$H$2:$H$65536))))),$A1226,dati_bdv!J$2:J$65536)","v":0},{"$f":"SUMIF(IF(dati_pdc!$C1226=1,dati_bdv!$C$2:$C$65536,IF(dati_pdc!$C1226=2,dati_bdv!$D$2:$D$65536,IF(dati_pdc!$C1226=3,dati_bdv!$E$2:$E$65536,IF(dati_pdc!$C1226=4,dati_bdv!$F$2:$F$65536,IF(dati_pdc!$C1226=5,dati_bdv!$G$2:$G$65536,dati_bdv!$H$2:$H$65536))))),$A1226,dati_bdv!K$2:K$65536)","v":0},{"$f":"SUMIF(IF(dati_pdc!$C1226=1,dati_bdv!$C$2:$C$65536,IF(dati_pdc!$C1226=2,dati_bdv!$D$2:$D$65536,IF(dati_pdc!$C1226=3,dati_bdv!$E$2:$E$65536,IF(dati_pdc!$C1226=4,dati_bdv!$F$2:$F$65536,IF(dati_pdc!$C1226=5,dati_bdv!$G$2:$G$65536,dati_bdv!$H$2:$H$65536))))),$A1226,dati_bdv!L$2:L$65536)","v":0},{"$f":"SUMIF(IF(dati_pdc!$C1226=1,dati_bdv!$C$2:$C$65536,IF(dati_pdc!$C1226=2,dati_bdv!$D$2:$D$65536,IF(dati_pdc!$C1226=3,dati_bdv!$E$2:$E$65536,IF(dati_pdc!$C1226=4,dati_bdv!$F$2:$F$65536,IF(dati_pdc!$C1226=5,dati_bdv!$G$2:$G$65536,dati_bdv!$H$2:$H$65536))))),$A1226,dati_bdv!M$2:M$65536)","v":0},{"$f":"SUMIF(IF(dati_pdc!$C1226=1,dati_bdv!$C$2:$C$65536,IF(dati_pdc!$C1226=2,dati_bdv!$D$2:$D$65536,IF(dati_pdc!$C1226=3,dati_bdv!$E$2:$E$65536,IF(dati_pdc!$C1226=4,dati_bdv!$F$2:$F$65536,IF(dati_pdc!$C1226=5,dati_bdv!$G$2:$G$65536,dati_bdv!$H$2:$H$65536))))),$A1226,dati_bdv!N$2:N$65536)","v":0}]
[{"$f":"dati_pdc!A1227","v":0},{"$f":"SUMIF(IF(dati_pdc!$C1227=1,dati_bdv!$C$2:$C$65536,IF(dati_pdc!$C1227=2,dati_bdv!$D$2:$D$65536,IF(dati_pdc!$C1227=3,dati_bdv!$E$2:$E$65536,IF(dati_pdc!$C1227=4,dati_bdv!$F$2:$F$65536,IF(dati_pdc!$C1227=5,dati_bdv!$G$2:$G$65536,dati_bdv!$H$2:$H$65536))))),$A1227,dati_bdv!J$2:J$65536)","v":0},{"$f":"SUMIF(IF(dati_pdc!$C1227=1,dati_bdv!$C$2:$C$65536,IF(dati_pdc!$C1227=2,dati_bdv!$D$2:$D$65536,IF(dati_pdc!$C1227=3,dati_bdv!$E$2:$E$65536,IF(dati_pdc!$C1227=4,dati_bdv!$F$2:$F$65536,IF(dati_pdc!$C1227=5,dati_bdv!$G$2:$G$65536,dati_bdv!$H$2:$H$65536))))),$A1227,dati_bdv!K$2:K$65536)","v":0},{"$f":"SUMIF(IF(dati_pdc!$C1227=1,dati_bdv!$C$2:$C$65536,IF(dati_pdc!$C1227=2,dati_bdv!$D$2:$D$65536,IF(dati_pdc!$C1227=3,dati_bdv!$E$2:$E$65536,IF(dati_pdc!$C1227=4,dati_bdv!$F$2:$F$65536,IF(dati_pdc!$C1227=5,dati_bdv!$G$2:$G$65536,dati_bdv!$H$2:$H$65536))))),$A1227,dati_bdv!L$2:L$65536)","v":0},{"$f":"SUMIF(IF(dati_pdc!$C1227=1,dati_bdv!$C$2:$C$65536,IF(dati_pdc!$C1227=2,dati_bdv!$D$2:$D$65536,IF(dati_pdc!$C1227=3,dati_bdv!$E$2:$E$65536,IF(dati_pdc!$C1227=4,dati_bdv!$F$2:$F$65536,IF(dati_pdc!$C1227=5,dati_bdv!$G$2:$G$65536,dati_bdv!$H$2:$H$65536))))),$A1227,dati_bdv!M$2:M$65536)","v":0},{"$f":"SUMIF(IF(dati_pdc!$C1227=1,dati_bdv!$C$2:$C$65536,IF(dati_pdc!$C1227=2,dati_bdv!$D$2:$D$65536,IF(dati_pdc!$C1227=3,dati_bdv!$E$2:$E$65536,IF(dati_pdc!$C1227=4,dati_bdv!$F$2:$F$65536,IF(dati_pdc!$C1227=5,dati_bdv!$G$2:$G$65536,dati_bdv!$H$2:$H$65536))))),$A1227,dati_bdv!N$2:N$65536)","v":0}]
[{"$f":"dati_pdc!A1228","v":0},{"$f":"SUMIF(IF(dati_pdc!$C1228=1,dati_bdv!$C$2:$C$65536,IF(dati_pdc!$C1228=2,dati_bdv!$D$2:$D$65536,IF(dati_pdc!$C1228=3,dati_bdv!$E$2:$E$65536,IF(dati_pdc!$C1228=4,dati_bdv!$F$2:$F$65536,IF(dati_pdc!$C1228=5,dati_bdv!$G$2:$G$65536,dati_bdv!$H$2:$H$65536))))),$A1228,dati_bdv!J$2:J$65536)","v":0},{"$f":"SUMIF(IF(dati_pdc!$C1228=1,dati_bdv!$C$2:$C$65536,IF(dati_pdc!$C1228=2,dati_bdv!$D$2:$D$65536,IF(dati_pdc!$C1228=3,dati_bdv!$E$2:$E$65536,IF(dati_pdc!$C1228=4,dati_bdv!$F$2:$F$65536,IF(dati_pdc!$C1228=5,dati_bdv!$G$2:$G$65536,dati_bdv!$H$2:$H$65536))))),$A1228,dati_bdv!K$2:K$65536)","v":0},{"$f":"SUMIF(IF(dati_pdc!$C1228=1,dati_bdv!$C$2:$C$65536,IF(dati_pdc!$C1228=2,dati_bdv!$D$2:$D$65536,IF(dati_pdc!$C1228=3,dati_bdv!$E$2:$E$65536,IF(dati_pdc!$C1228=4,dati_bdv!$F$2:$F$65536,IF(dati_pdc!$C1228=5,dati_bdv!$G$2:$G$65536,dati_bdv!$H$2:$H$65536))))),$A1228,dati_bdv!L$2:L$65536)","v":0},{"$f":"SUMIF(IF(dati_pdc!$C1228=1,dati_bdv!$C$2:$C$65536,IF(dati_pdc!$C1228=2,dati_bdv!$D$2:$D$65536,IF(dati_pdc!$C1228=3,dati_bdv!$E$2:$E$65536,IF(dati_pdc!$C1228=4,dati_bdv!$F$2:$F$65536,IF(dati_pdc!$C1228=5,dati_bdv!$G$2:$G$65536,dati_bdv!$H$2:$H$65536))))),$A1228,dati_bdv!M$2:M$65536)","v":0},{"$f":"SUMIF(IF(dati_pdc!$C1228=1,dati_bdv!$C$2:$C$65536,IF(dati_pdc!$C1228=2,dati_bdv!$D$2:$D$65536,IF(dati_pdc!$C1228=3,dati_bdv!$E$2:$E$65536,IF(dati_pdc!$C1228=4,dati_bdv!$F$2:$F$65536,IF(dati_pdc!$C1228=5,dati_bdv!$G$2:$G$65536,dati_bdv!$H$2:$H$65536))))),$A1228,dati_bdv!N$2:N$65536)","v":0}]
[{"$f":"dati_pdc!A1229","v":0},{"$f":"SUMIF(IF(dati_pdc!$C1229=1,dati_bdv!$C$2:$C$65536,IF(dati_pdc!$C1229=2,dati_bdv!$D$2:$D$65536,IF(dati_pdc!$C1229=3,dati_bdv!$E$2:$E$65536,IF(dati_pdc!$C1229=4,dati_bdv!$F$2:$F$65536,IF(dati_pdc!$C1229=5,dati_bdv!$G$2:$G$65536,dati_bdv!$H$2:$H$65536))))),$A1229,dati_bdv!J$2:J$65536)","v":0},{"$f":"SUMIF(IF(dati_pdc!$C1229=1,dati_bdv!$C$2:$C$65536,IF(dati_pdc!$C1229=2,dati_bdv!$D$2:$D$65536,IF(dati_pdc!$C1229=3,dati_bdv!$E$2:$E$65536,IF(dati_pdc!$C1229=4,dati_bdv!$F$2:$F$65536,IF(dati_pdc!$C1229=5,dati_bdv!$G$2:$G$65536,dati_bdv!$H$2:$H$65536))))),$A1229,dati_bdv!K$2:K$65536)","v":0},{"$f":"SUMIF(IF(dati_pdc!$C1229=1,dati_bdv!$C$2:$C$65536,IF(dati_pdc!$C1229=2,dati_bdv!$D$2:$D$65536,IF(dati_pdc!$C1229=3,dati_bdv!$E$2:$E$65536,IF(dati_pdc!$C1229=4,dati_bdv!$F$2:$F$65536,IF(dati_pdc!$C1229=5,dati_bdv!$G$2:$G$65536,dati_bdv!$H$2:$H$65536))))),$A1229,dati_bdv!L$2:L$65536)","v":0},{"$f":"SUMIF(IF(dati_pdc!$C1229=1,dati_bdv!$C$2:$C$65536,IF(dati_pdc!$C1229=2,dati_bdv!$D$2:$D$65536,IF(dati_pdc!$C1229=3,dati_bdv!$E$2:$E$65536,IF(dati_pdc!$C1229=4,dati_bdv!$F$2:$F$65536,IF(dati_pdc!$C1229=5,dati_bdv!$G$2:$G$65536,dati_bdv!$H$2:$H$65536))))),$A1229,dati_bdv!M$2:M$65536)","v":0},{"$f":"SUMIF(IF(dati_pdc!$C1229=1,dati_bdv!$C$2:$C$65536,IF(dati_pdc!$C1229=2,dati_bdv!$D$2:$D$65536,IF(dati_pdc!$C1229=3,dati_bdv!$E$2:$E$65536,IF(dati_pdc!$C1229=4,dati_bdv!$F$2:$F$65536,IF(dati_pdc!$C1229=5,dati_bdv!$G$2:$G$65536,dati_bdv!$H$2:$H$65536))))),$A1229,dati_bdv!N$2:N$65536)","v":0}]
[{"$f":"dati_pdc!A1230","v":0},{"$f":"SUMIF(IF(dati_pdc!$C1230=1,dati_bdv!$C$2:$C$65536,IF(dati_pdc!$C1230=2,dati_bdv!$D$2:$D$65536,IF(dati_pdc!$C1230=3,dati_bdv!$E$2:$E$65536,IF(dati_pdc!$C1230=4,dati_bdv!$F$2:$F$65536,IF(dati_pdc!$C1230=5,dati_bdv!$G$2:$G$65536,dati_bdv!$H$2:$H$65536))))),$A1230,dati_bdv!J$2:J$65536)","v":0},{"$f":"SUMIF(IF(dati_pdc!$C1230=1,dati_bdv!$C$2:$C$65536,IF(dati_pdc!$C1230=2,dati_bdv!$D$2:$D$65536,IF(dati_pdc!$C1230=3,dati_bdv!$E$2:$E$65536,IF(dati_pdc!$C1230=4,dati_bdv!$F$2:$F$65536,IF(dati_pdc!$C1230=5,dati_bdv!$G$2:$G$65536,dati_bdv!$H$2:$H$65536))))),$A1230,dati_bdv!K$2:K$65536)","v":0},{"$f":"SUMIF(IF(dati_pdc!$C1230=1,dati_bdv!$C$2:$C$65536,IF(dati_pdc!$C1230=2,dati_bdv!$D$2:$D$65536,IF(dati_pdc!$C1230=3,dati_bdv!$E$2:$E$65536,IF(dati_pdc!$C1230=4,dati_bdv!$F$2:$F$65536,IF(dati_pdc!$C1230=5,dati_bdv!$G$2:$G$65536,dati_bdv!$H$2:$H$65536))))),$A1230,dati_bdv!L$2:L$65536)","v":0},{"$f":"SUMIF(IF(dati_pdc!$C1230=1,dati_bdv!$C$2:$C$65536,IF(dati_pdc!$C1230=2,dati_bdv!$D$2:$D$65536,IF(dati_pdc!$C1230=3,dati_bdv!$E$2:$E$65536,IF(dati_pdc!$C1230=4,dati_bdv!$F$2:$F$65536,IF(dati_pdc!$C1230=5,dati_bdv!$G$2:$G$65536,dati_bdv!$H$2:$H$65536))))),$A1230,dati_bdv!M$2:M$65536)","v":0},{"$f":"SUMIF(IF(dati_pdc!$C1230=1,dati_bdv!$C$2:$C$65536,IF(dati_pdc!$C1230=2,dati_bdv!$D$2:$D$65536,IF(dati_pdc!$C1230=3,dati_bdv!$E$2:$E$65536,IF(dati_pdc!$C1230=4,dati_bdv!$F$2:$F$65536,IF(dati_pdc!$C1230=5,dati_bdv!$G$2:$G$65536,dati_bdv!$H$2:$H$65536))))),$A1230,dati_bdv!N$2:N$65536)","v":0}]
[{"$f":"dati_pdc!A1231","v":0},{"$f":"SUMIF(IF(dati_pdc!$C1231=1,dati_bdv!$C$2:$C$65536,IF(dati_pdc!$C1231=2,dati_bdv!$D$2:$D$65536,IF(dati_pdc!$C1231=3,dati_bdv!$E$2:$E$65536,IF(dati_pdc!$C1231=4,dati_bdv!$F$2:$F$65536,IF(dati_pdc!$C1231=5,dati_bdv!$G$2:$G$65536,dati_bdv!$H$2:$H$65536))))),$A1231,dati_bdv!J$2:J$65536)","v":0},{"$f":"SUMIF(IF(dati_pdc!$C1231=1,dati_bdv!$C$2:$C$65536,IF(dati_pdc!$C1231=2,dati_bdv!$D$2:$D$65536,IF(dati_pdc!$C1231=3,dati_bdv!$E$2:$E$65536,IF(dati_pdc!$C1231=4,dati_bdv!$F$2:$F$65536,IF(dati_pdc!$C1231=5,dati_bdv!$G$2:$G$65536,dati_bdv!$H$2:$H$65536))))),$A1231,dati_bdv!K$2:K$65536)","v":0},{"$f":"SUMIF(IF(dati_pdc!$C1231=1,dati_bdv!$C$2:$C$65536,IF(dati_pdc!$C1231=2,dati_bdv!$D$2:$D$65536,IF(dati_pdc!$C1231=3,dati_bdv!$E$2:$E$65536,IF(dati_pdc!$C1231=4,dati_bdv!$F$2:$F$65536,IF(dati_pdc!$C1231=5,dati_bdv!$G$2:$G$65536,dati_bdv!$H$2:$H$65536))))),$A1231,dati_bdv!L$2:L$65536)","v":0},{"$f":"SUMIF(IF(dati_pdc!$C1231=1,dati_bdv!$C$2:$C$65536,IF(dati_pdc!$C1231=2,dati_bdv!$D$2:$D$65536,IF(dati_pdc!$C1231=3,dati_bdv!$E$2:$E$65536,IF(dati_pdc!$C1231=4,dati_bdv!$F$2:$F$65536,IF(dati_pdc!$C1231=5,dati_bdv!$G$2:$G$65536,dati_bdv!$H$2:$H$65536))))),$A1231,dati_bdv!M$2:M$65536)","v":0},{"$f":"SUMIF(IF(dati_pdc!$C1231=1,dati_bdv!$C$2:$C$65536,IF(dati_pdc!$C1231=2,dati_bdv!$D$2:$D$65536,IF(dati_pdc!$C1231=3,dati_bdv!$E$2:$E$65536,IF(dati_pdc!$C1231=4,dati_bdv!$F$2:$F$65536,IF(dati_pdc!$C1231=5,dati_bdv!$G$2:$G$65536,dati_bdv!$H$2:$H$65536))))),$A1231,dati_bdv!N$2:N$65536)","v":0}]
[{"$f":"dati_pdc!A1232","v":0},{"$f":"SUMIF(IF(dati_pdc!$C1232=1,dati_bdv!$C$2:$C$65536,IF(dati_pdc!$C1232=2,dati_bdv!$D$2:$D$65536,IF(dati_pdc!$C1232=3,dati_bdv!$E$2:$E$65536,IF(dati_pdc!$C1232=4,dati_bdv!$F$2:$F$65536,IF(dati_pdc!$C1232=5,dati_bdv!$G$2:$G$65536,dati_bdv!$H$2:$H$65536))))),$A1232,dati_bdv!J$2:J$65536)","v":0},{"$f":"SUMIF(IF(dati_pdc!$C1232=1,dati_bdv!$C$2:$C$65536,IF(dati_pdc!$C1232=2,dati_bdv!$D$2:$D$65536,IF(dati_pdc!$C1232=3,dati_bdv!$E$2:$E$65536,IF(dati_pdc!$C1232=4,dati_bdv!$F$2:$F$65536,IF(dati_pdc!$C1232=5,dati_bdv!$G$2:$G$65536,dati_bdv!$H$2:$H$65536))))),$A1232,dati_bdv!K$2:K$65536)","v":0},{"$f":"SUMIF(IF(dati_pdc!$C1232=1,dati_bdv!$C$2:$C$65536,IF(dati_pdc!$C1232=2,dati_bdv!$D$2:$D$65536,IF(dati_pdc!$C1232=3,dati_bdv!$E$2:$E$65536,IF(dati_pdc!$C1232=4,dati_bdv!$F$2:$F$65536,IF(dati_pdc!$C1232=5,dati_bdv!$G$2:$G$65536,dati_bdv!$H$2:$H$65536))))),$A1232,dati_bdv!L$2:L$65536)","v":0},{"$f":"SUMIF(IF(dati_pdc!$C1232=1,dati_bdv!$C$2:$C$65536,IF(dati_pdc!$C1232=2,dati_bdv!$D$2:$D$65536,IF(dati_pdc!$C1232=3,dati_bdv!$E$2:$E$65536,IF(dati_pdc!$C1232=4,dati_bdv!$F$2:$F$65536,IF(dati_pdc!$C1232=5,dati_bdv!$G$2:$G$65536,dati_bdv!$H$2:$H$65536))))),$A1232,dati_bdv!M$2:M$65536)","v":0},{"$f":"SUMIF(IF(dati_pdc!$C1232=1,dati_bdv!$C$2:$C$65536,IF(dati_pdc!$C1232=2,dati_bdv!$D$2:$D$65536,IF(dati_pdc!$C1232=3,dati_bdv!$E$2:$E$65536,IF(dati_pdc!$C1232=4,dati_bdv!$F$2:$F$65536,IF(dati_pdc!$C1232=5,dati_bdv!$G$2:$G$65536,dati_bdv!$H$2:$H$65536))))),$A1232,dati_bdv!N$2:N$65536)","v":0}]
[{"$f":"dati_pdc!A1233","v":0},{"$f":"SUMIF(IF(dati_pdc!$C1233=1,dati_bdv!$C$2:$C$65536,IF(dati_pdc!$C1233=2,dati_bdv!$D$2:$D$65536,IF(dati_pdc!$C1233=3,dati_bdv!$E$2:$E$65536,IF(dati_pdc!$C1233=4,dati_bdv!$F$2:$F$65536,IF(dati_pdc!$C1233=5,dati_bdv!$G$2:$G$65536,dati_bdv!$H$2:$H$65536))))),$A1233,dati_bdv!J$2:J$65536)","v":0},{"$f":"SUMIF(IF(dati_pdc!$C1233=1,dati_bdv!$C$2:$C$65536,IF(dati_pdc!$C1233=2,dati_bdv!$D$2:$D$65536,IF(dati_pdc!$C1233=3,dati_bdv!$E$2:$E$65536,IF(dati_pdc!$C1233=4,dati_bdv!$F$2:$F$65536,IF(dati_pdc!$C1233=5,dati_bdv!$G$2:$G$65536,dati_bdv!$H$2:$H$65536))))),$A1233,dati_bdv!K$2:K$65536)","v":0},{"$f":"SUMIF(IF(dati_pdc!$C1233=1,dati_bdv!$C$2:$C$65536,IF(dati_pdc!$C1233=2,dati_bdv!$D$2:$D$65536,IF(dati_pdc!$C1233=3,dati_bdv!$E$2:$E$65536,IF(dati_pdc!$C1233=4,dati_bdv!$F$2:$F$65536,IF(dati_pdc!$C1233=5,dati_bdv!$G$2:$G$65536,dati_bdv!$H$2:$H$65536))))),$A1233,dati_bdv!L$2:L$65536)","v":0},{"$f":"SUMIF(IF(dati_pdc!$C1233=1,dati_bdv!$C$2:$C$65536,IF(dati_pdc!$C1233=2,dati_bdv!$D$2:$D$65536,IF(dati_pdc!$C1233=3,dati_bdv!$E$2:$E$65536,IF(dati_pdc!$C1233=4,dati_bdv!$F$2:$F$65536,IF(dati_pdc!$C1233=5,dati_bdv!$G$2:$G$65536,dati_bdv!$H$2:$H$65536))))),$A1233,dati_bdv!M$2:M$65536)","v":0},{"$f":"SUMIF(IF(dati_pdc!$C1233=1,dati_bdv!$C$2:$C$65536,IF(dati_pdc!$C1233=2,dati_bdv!$D$2:$D$65536,IF(dati_pdc!$C1233=3,dati_bdv!$E$2:$E$65536,IF(dati_pdc!$C1233=4,dati_bdv!$F$2:$F$65536,IF(dati_pdc!$C1233=5,dati_bdv!$G$2:$G$65536,dati_bdv!$H$2:$H$65536))))),$A1233,dati_bdv!N$2:N$65536)","v":0}]
[{"$f":"dati_pdc!A1234","v":0},{"$f":"SUMIF(IF(dati_pdc!$C1234=1,dati_bdv!$C$2:$C$65536,IF(dati_pdc!$C1234=2,dati_bdv!$D$2:$D$65536,IF(dati_pdc!$C1234=3,dati_bdv!$E$2:$E$65536,IF(dati_pdc!$C1234=4,dati_bdv!$F$2:$F$65536,IF(dati_pdc!$C1234=5,dati_bdv!$G$2:$G$65536,dati_bdv!$H$2:$H$65536))))),$A1234,dati_bdv!J$2:J$65536)","v":0},{"$f":"SUMIF(IF(dati_pdc!$C1234=1,dati_bdv!$C$2:$C$65536,IF(dati_pdc!$C1234=2,dati_bdv!$D$2:$D$65536,IF(dati_pdc!$C1234=3,dati_bdv!$E$2:$E$65536,IF(dati_pdc!$C1234=4,dati_bdv!$F$2:$F$65536,IF(dati_pdc!$C1234=5,dati_bdv!$G$2:$G$65536,dati_bdv!$H$2:$H$65536))))),$A1234,dati_bdv!K$2:K$65536)","v":0},{"$f":"SUMIF(IF(dati_pdc!$C1234=1,dati_bdv!$C$2:$C$65536,IF(dati_pdc!$C1234=2,dati_bdv!$D$2:$D$65536,IF(dati_pdc!$C1234=3,dati_bdv!$E$2:$E$65536,IF(dati_pdc!$C1234=4,dati_bdv!$F$2:$F$65536,IF(dati_pdc!$C1234=5,dati_bdv!$G$2:$G$65536,dati_bdv!$H$2:$H$65536))))),$A1234,dati_bdv!L$2:L$65536)","v":0},{"$f":"SUMIF(IF(dati_pdc!$C1234=1,dati_bdv!$C$2:$C$65536,IF(dati_pdc!$C1234=2,dati_bdv!$D$2:$D$65536,IF(dati_pdc!$C1234=3,dati_bdv!$E$2:$E$65536,IF(dati_pdc!$C1234=4,dati_bdv!$F$2:$F$65536,IF(dati_pdc!$C1234=5,dati_bdv!$G$2:$G$65536,dati_bdv!$H$2:$H$65536))))),$A1234,dati_bdv!M$2:M$65536)","v":0},{"$f":"SUMIF(IF(dati_pdc!$C1234=1,dati_bdv!$C$2:$C$65536,IF(dati_pdc!$C1234=2,dati_bdv!$D$2:$D$65536,IF(dati_pdc!$C1234=3,dati_bdv!$E$2:$E$65536,IF(dati_pdc!$C1234=4,dati_bdv!$F$2:$F$65536,IF(dati_pdc!$C1234=5,dati_bdv!$G$2:$G$65536,dati_bdv!$H$2:$H$65536))))),$A1234,dati_bdv!N$2:N$65536)","v":0}]
[{"$f":"dati_pdc!A1235","v":0},{"$f":"SUMIF(IF(dati_pdc!$C1235=1,dati_bdv!$C$2:$C$65536,IF(dati_pdc!$C1235=2,dati_bdv!$D$2:$D$65536,IF(dati_pdc!$C1235=3,dati_bdv!$E$2:$E$65536,IF(dati_pdc!$C1235=4,dati_bdv!$F$2:$F$65536,IF(dati_pdc!$C1235=5,dati_bdv!$G$2:$G$65536,dati_bdv!$H$2:$H$65536))))),$A1235,dati_bdv!J$2:J$65536)","v":0},{"$f":"SUMIF(IF(dati_pdc!$C1235=1,dati_bdv!$C$2:$C$65536,IF(dati_pdc!$C1235=2,dati_bdv!$D$2:$D$65536,IF(dati_pdc!$C1235=3,dati_bdv!$E$2:$E$65536,IF(dati_pdc!$C1235=4,dati_bdv!$F$2:$F$65536,IF(dati_pdc!$C1235=5,dati_bdv!$G$2:$G$65536,dati_bdv!$H$2:$H$65536))))),$A1235,dati_bdv!K$2:K$65536)","v":0},{"$f":"SUMIF(IF(dati_pdc!$C1235=1,dati_bdv!$C$2:$C$65536,IF(dati_pdc!$C1235=2,dati_bdv!$D$2:$D$65536,IF(dati_pdc!$C1235=3,dati_bdv!$E$2:$E$65536,IF(dati_pdc!$C1235=4,dati_bdv!$F$2:$F$65536,IF(dati_pdc!$C1235=5,dati_bdv!$G$2:$G$65536,dati_bdv!$H$2:$H$65536))))),$A1235,dati_bdv!L$2:L$65536)","v":0},{"$f":"SUMIF(IF(dati_pdc!$C1235=1,dati_bdv!$C$2:$C$65536,IF(dati_pdc!$C1235=2,dati_bdv!$D$2:$D$65536,IF(dati_pdc!$C1235=3,dati_bdv!$E$2:$E$65536,IF(dati_pdc!$C1235=4,dati_bdv!$F$2:$F$65536,IF(dati_pdc!$C1235=5,dati_bdv!$G$2:$G$65536,dati_bdv!$H$2:$H$65536))))),$A1235,dati_bdv!M$2:M$65536)","v":0},{"$f":"SUMIF(IF(dati_pdc!$C1235=1,dati_bdv!$C$2:$C$65536,IF(dati_pdc!$C1235=2,dati_bdv!$D$2:$D$65536,IF(dati_pdc!$C1235=3,dati_bdv!$E$2:$E$65536,IF(dati_pdc!$C1235=4,dati_bdv!$F$2:$F$65536,IF(dati_pdc!$C1235=5,dati_bdv!$G$2:$G$65536,dati_bdv!$H$2:$H$65536))))),$A1235,dati_bdv!N$2:N$65536)","v":0}]
[{"$f":"dati_pdc!A1236","v":0},{"$f":"SUMIF(IF(dati_pdc!$C1236=1,dati_bdv!$C$2:$C$65536,IF(dati_pdc!$C1236=2,dati_bdv!$D$2:$D$65536,IF(dati_pdc!$C1236=3,dati_bdv!$E$2:$E$65536,IF(dati_pdc!$C1236=4,dati_bdv!$F$2:$F$65536,IF(dati_pdc!$C1236=5,dati_bdv!$G$2:$G$65536,dati_bdv!$H$2:$H$65536))))),$A1236,dati_bdv!J$2:J$65536)","v":0},{"$f":"SUMIF(IF(dati_pdc!$C1236=1,dati_bdv!$C$2:$C$65536,IF(dati_pdc!$C1236=2,dati_bdv!$D$2:$D$65536,IF(dati_pdc!$C1236=3,dati_bdv!$E$2:$E$65536,IF(dati_pdc!$C1236=4,dati_bdv!$F$2:$F$65536,IF(dati_pdc!$C1236=5,dati_bdv!$G$2:$G$65536,dati_bdv!$H$2:$H$65536))))),$A1236,dati_bdv!K$2:K$65536)","v":0},{"$f":"SUMIF(IF(dati_pdc!$C1236=1,dati_bdv!$C$2:$C$65536,IF(dati_pdc!$C1236=2,dati_bdv!$D$2:$D$65536,IF(dati_pdc!$C1236=3,dati_bdv!$E$2:$E$65536,IF(dati_pdc!$C1236=4,dati_bdv!$F$2:$F$65536,IF(dati_pdc!$C1236=5,dati_bdv!$G$2:$G$65536,dati_bdv!$H$2:$H$65536))))),$A1236,dati_bdv!L$2:L$65536)","v":0},{"$f":"SUMIF(IF(dati_pdc!$C1236=1,dati_bdv!$C$2:$C$65536,IF(dati_pdc!$C1236=2,dati_bdv!$D$2:$D$65536,IF(dati_pdc!$C1236=3,dati_bdv!$E$2:$E$65536,IF(dati_pdc!$C1236=4,dati_bdv!$F$2:$F$65536,IF(dati_pdc!$C1236=5,dati_bdv!$G$2:$G$65536,dati_bdv!$H$2:$H$65536))))),$A1236,dati_bdv!M$2:M$65536)","v":0},{"$f":"SUMIF(IF(dati_pdc!$C1236=1,dati_bdv!$C$2:$C$65536,IF(dati_pdc!$C1236=2,dati_bdv!$D$2:$D$65536,IF(dati_pdc!$C1236=3,dati_bdv!$E$2:$E$65536,IF(dati_pdc!$C1236=4,dati_bdv!$F$2:$F$65536,IF(dati_pdc!$C1236=5,dati_bdv!$G$2:$G$65536,dati_bdv!$H$2:$H$65536))))),$A1236,dati_bdv!N$2:N$65536)","v":0}]
[{"$f":"dati_pdc!A1237","v":0},{"$f":"SUMIF(IF(dati_pdc!$C1237=1,dati_bdv!$C$2:$C$65536,IF(dati_pdc!$C1237=2,dati_bdv!$D$2:$D$65536,IF(dati_pdc!$C1237=3,dati_bdv!$E$2:$E$65536,IF(dati_pdc!$C1237=4,dati_bdv!$F$2:$F$65536,IF(dati_pdc!$C1237=5,dati_bdv!$G$2:$G$65536,dati_bdv!$H$2:$H$65536))))),$A1237,dati_bdv!J$2:J$65536)","v":0},{"$f":"SUMIF(IF(dati_pdc!$C1237=1,dati_bdv!$C$2:$C$65536,IF(dati_pdc!$C1237=2,dati_bdv!$D$2:$D$65536,IF(dati_pdc!$C1237=3,dati_bdv!$E$2:$E$65536,IF(dati_pdc!$C1237=4,dati_bdv!$F$2:$F$65536,IF(dati_pdc!$C1237=5,dati_bdv!$G$2:$G$65536,dati_bdv!$H$2:$H$65536))))),$A1237,dati_bdv!K$2:K$65536)","v":0},{"$f":"SUMIF(IF(dati_pdc!$C1237=1,dati_bdv!$C$2:$C$65536,IF(dati_pdc!$C1237=2,dati_bdv!$D$2:$D$65536,IF(dati_pdc!$C1237=3,dati_bdv!$E$2:$E$65536,IF(dati_pdc!$C1237=4,dati_bdv!$F$2:$F$65536,IF(dati_pdc!$C1237=5,dati_bdv!$G$2:$G$65536,dati_bdv!$H$2:$H$65536))))),$A1237,dati_bdv!L$2:L$65536)","v":0},{"$f":"SUMIF(IF(dati_pdc!$C1237=1,dati_bdv!$C$2:$C$65536,IF(dati_pdc!$C1237=2,dati_bdv!$D$2:$D$65536,IF(dati_pdc!$C1237=3,dati_bdv!$E$2:$E$65536,IF(dati_pdc!$C1237=4,dati_bdv!$F$2:$F$65536,IF(dati_pdc!$C1237=5,dati_bdv!$G$2:$G$65536,dati_bdv!$H$2:$H$65536))))),$A1237,dati_bdv!M$2:M$65536)","v":0},{"$f":"SUMIF(IF(dati_pdc!$C1237=1,dati_bdv!$C$2:$C$65536,IF(dati_pdc!$C1237=2,dati_bdv!$D$2:$D$65536,IF(dati_pdc!$C1237=3,dati_bdv!$E$2:$E$65536,IF(dati_pdc!$C1237=4,dati_bdv!$F$2:$F$65536,IF(dati_pdc!$C1237=5,dati_bdv!$G$2:$G$65536,dati_bdv!$H$2:$H$65536))))),$A1237,dati_bdv!N$2:N$65536)","v":0}]
[{"$f":"dati_pdc!A1238","v":0},{"$f":"SUMIF(IF(dati_pdc!$C1238=1,dati_bdv!$C$2:$C$65536,IF(dati_pdc!$C1238=2,dati_bdv!$D$2:$D$65536,IF(dati_pdc!$C1238=3,dati_bdv!$E$2:$E$65536,IF(dati_pdc!$C1238=4,dati_bdv!$F$2:$F$65536,IF(dati_pdc!$C1238=5,dati_bdv!$G$2:$G$65536,dati_bdv!$H$2:$H$65536))))),$A1238,dati_bdv!J$2:J$65536)","v":0},{"$f":"SUMIF(IF(dati_pdc!$C1238=1,dati_bdv!$C$2:$C$65536,IF(dati_pdc!$C1238=2,dati_bdv!$D$2:$D$65536,IF(dati_pdc!$C1238=3,dati_bdv!$E$2:$E$65536,IF(dati_pdc!$C1238=4,dati_bdv!$F$2:$F$65536,IF(dati_pdc!$C1238=5,dati_bdv!$G$2:$G$65536,dati_bdv!$H$2:$H$65536))))),$A1238,dati_bdv!K$2:K$65536)","v":0},{"$f":"SUMIF(IF(dati_pdc!$C1238=1,dati_bdv!$C$2:$C$65536,IF(dati_pdc!$C1238=2,dati_bdv!$D$2:$D$65536,IF(dati_pdc!$C1238=3,dati_bdv!$E$2:$E$65536,IF(dati_pdc!$C1238=4,dati_bdv!$F$2:$F$65536,IF(dati_pdc!$C1238=5,dati_bdv!$G$2:$G$65536,dati_bdv!$H$2:$H$65536))))),$A1238,dati_bdv!L$2:L$65536)","v":0},{"$f":"SUMIF(IF(dati_pdc!$C1238=1,dati_bdv!$C$2:$C$65536,IF(dati_pdc!$C1238=2,dati_bdv!$D$2:$D$65536,IF(dati_pdc!$C1238=3,dati_bdv!$E$2:$E$65536,IF(dati_pdc!$C1238=4,dati_bdv!$F$2:$F$65536,IF(dati_pdc!$C1238=5,dati_bdv!$G$2:$G$65536,dati_bdv!$H$2:$H$65536))))),$A1238,dati_bdv!M$2:M$65536)","v":0},{"$f":"SUMIF(IF(dati_pdc!$C1238=1,dati_bdv!$C$2:$C$65536,IF(dati_pdc!$C1238=2,dati_bdv!$D$2:$D$65536,IF(dati_pdc!$C1238=3,dati_bdv!$E$2:$E$65536,IF(dati_pdc!$C1238=4,dati_bdv!$F$2:$F$65536,IF(dati_pdc!$C1238=5,dati_bdv!$G$2:$G$65536,dati_bdv!$H$2:$H$65536))))),$A1238,dati_bdv!N$2:N$65536)","v":0}]
[{"$f":"dati_pdc!A1239","v":0},{"$f":"SUMIF(IF(dati_pdc!$C1239=1,dati_bdv!$C$2:$C$65536,IF(dati_pdc!$C1239=2,dati_bdv!$D$2:$D$65536,IF(dati_pdc!$C1239=3,dati_bdv!$E$2:$E$65536,IF(dati_pdc!$C1239=4,dati_bdv!$F$2:$F$65536,IF(dati_pdc!$C1239=5,dati_bdv!$G$2:$G$65536,dati_bdv!$H$2:$H$65536))))),$A1239,dati_bdv!J$2:J$65536)","v":0},{"$f":"SUMIF(IF(dati_pdc!$C1239=1,dati_bdv!$C$2:$C$65536,IF(dati_pdc!$C1239=2,dati_bdv!$D$2:$D$65536,IF(dati_pdc!$C1239=3,dati_bdv!$E$2:$E$65536,IF(dati_pdc!$C1239=4,dati_bdv!$F$2:$F$65536,IF(dati_pdc!$C1239=5,dati_bdv!$G$2:$G$65536,dati_bdv!$H$2:$H$65536))))),$A1239,dati_bdv!K$2:K$65536)","v":0},{"$f":"SUMIF(IF(dati_pdc!$C1239=1,dati_bdv!$C$2:$C$65536,IF(dati_pdc!$C1239=2,dati_bdv!$D$2:$D$65536,IF(dati_pdc!$C1239=3,dati_bdv!$E$2:$E$65536,IF(dati_pdc!$C1239=4,dati_bdv!$F$2:$F$65536,IF(dati_pdc!$C1239=5,dati_bdv!$G$2:$G$65536,dati_bdv!$H$2:$H$65536))))),$A1239,dati_bdv!L$2:L$65536)","v":0},{"$f":"SUMIF(IF(dati_pdc!$C1239=1,dati_bdv!$C$2:$C$65536,IF(dati_pdc!$C1239=2,dati_bdv!$D$2:$D$65536,IF(dati_pdc!$C1239=3,dati_bdv!$E$2:$E$65536,IF(dati_pdc!$C1239=4,dati_bdv!$F$2:$F$65536,IF(dati_pdc!$C1239=5,dati_bdv!$G$2:$G$65536,dati_bdv!$H$2:$H$65536))))),$A1239,dati_bdv!M$2:M$65536)","v":0},{"$f":"SUMIF(IF(dati_pdc!$C1239=1,dati_bdv!$C$2:$C$65536,IF(dati_pdc!$C1239=2,dati_bdv!$D$2:$D$65536,IF(dati_pdc!$C1239=3,dati_bdv!$E$2:$E$65536,IF(dati_pdc!$C1239=4,dati_bdv!$F$2:$F$65536,IF(dati_pdc!$C1239=5,dati_bdv!$G$2:$G$65536,dati_bdv!$H$2:$H$65536))))),$A1239,dati_bdv!N$2:N$65536)","v":0}]
[{"$f":"dati_pdc!A1240","v":0},{"$f":"SUMIF(IF(dati_pdc!$C1240=1,dati_bdv!$C$2:$C$65536,IF(dati_pdc!$C1240=2,dati_bdv!$D$2:$D$65536,IF(dati_pdc!$C1240=3,dati_bdv!$E$2:$E$65536,IF(dati_pdc!$C1240=4,dati_bdv!$F$2:$F$65536,IF(dati_pdc!$C1240=5,dati_bdv!$G$2:$G$65536,dati_bdv!$H$2:$H$65536))))),$A1240,dati_bdv!J$2:J$65536)","v":0},{"$f":"SUMIF(IF(dati_pdc!$C1240=1,dati_bdv!$C$2:$C$65536,IF(dati_pdc!$C1240=2,dati_bdv!$D$2:$D$65536,IF(dati_pdc!$C1240=3,dati_bdv!$E$2:$E$65536,IF(dati_pdc!$C1240=4,dati_bdv!$F$2:$F$65536,IF(dati_pdc!$C1240=5,dati_bdv!$G$2:$G$65536,dati_bdv!$H$2:$H$65536))))),$A1240,dati_bdv!K$2:K$65536)","v":0},{"$f":"SUMIF(IF(dati_pdc!$C1240=1,dati_bdv!$C$2:$C$65536,IF(dati_pdc!$C1240=2,dati_bdv!$D$2:$D$65536,IF(dati_pdc!$C1240=3,dati_bdv!$E$2:$E$65536,IF(dati_pdc!$C1240=4,dati_bdv!$F$2:$F$65536,IF(dati_pdc!$C1240=5,dati_bdv!$G$2:$G$65536,dati_bdv!$H$2:$H$65536))))),$A1240,dati_bdv!L$2:L$65536)","v":0},{"$f":"SUMIF(IF(dati_pdc!$C1240=1,dati_bdv!$C$2:$C$65536,IF(dati_pdc!$C1240=2,dati_bdv!$D$2:$D$65536,IF(dati_pdc!$C1240=3,dati_bdv!$E$2:$E$65536,IF(dati_pdc!$C1240=4,dati_bdv!$F$2:$F$65536,IF(dati_pdc!$C1240=5,dati_bdv!$G$2:$G$65536,dati_bdv!$H$2:$H$65536))))),$A1240,dati_bdv!M$2:M$65536)","v":0},{"$f":"SUMIF(IF(dati_pdc!$C1240=1,dati_bdv!$C$2:$C$65536,IF(dati_pdc!$C1240=2,dati_bdv!$D$2:$D$65536,IF(dati_pdc!$C1240=3,dati_bdv!$E$2:$E$65536,IF(dati_pdc!$C1240=4,dati_bdv!$F$2:$F$65536,IF(dati_pdc!$C1240=5,dati_bdv!$G$2:$G$65536,dati_bdv!$H$2:$H$65536))))),$A1240,dati_bdv!N$2:N$65536)","v":0}]
[{"$f":"dati_pdc!A1241","v":0},{"$f":"SUMIF(IF(dati_pdc!$C1241=1,dati_bdv!$C$2:$C$65536,IF(dati_pdc!$C1241=2,dati_bdv!$D$2:$D$65536,IF(dati_pdc!$C1241=3,dati_bdv!$E$2:$E$65536,IF(dati_pdc!$C1241=4,dati_bdv!$F$2:$F$65536,IF(dati_pdc!$C1241=5,dati_bdv!$G$2:$G$65536,dati_bdv!$H$2:$H$65536))))),$A1241,dati_bdv!J$2:J$65536)","v":0},{"$f":"SUMIF(IF(dati_pdc!$C1241=1,dati_bdv!$C$2:$C$65536,IF(dati_pdc!$C1241=2,dati_bdv!$D$2:$D$65536,IF(dati_pdc!$C1241=3,dati_bdv!$E$2:$E$65536,IF(dati_pdc!$C1241=4,dati_bdv!$F$2:$F$65536,IF(dati_pdc!$C1241=5,dati_bdv!$G$2:$G$65536,dati_bdv!$H$2:$H$65536))))),$A1241,dati_bdv!K$2:K$65536)","v":0},{"$f":"SUMIF(IF(dati_pdc!$C1241=1,dati_bdv!$C$2:$C$65536,IF(dati_pdc!$C1241=2,dati_bdv!$D$2:$D$65536,IF(dati_pdc!$C1241=3,dati_bdv!$E$2:$E$65536,IF(dati_pdc!$C1241=4,dati_bdv!$F$2:$F$65536,IF(dati_pdc!$C1241=5,dati_bdv!$G$2:$G$65536,dati_bdv!$H$2:$H$65536))))),$A1241,dati_bdv!L$2:L$65536)","v":0},{"$f":"SUMIF(IF(dati_pdc!$C1241=1,dati_bdv!$C$2:$C$65536,IF(dati_pdc!$C1241=2,dati_bdv!$D$2:$D$65536,IF(dati_pdc!$C1241=3,dati_bdv!$E$2:$E$65536,IF(dati_pdc!$C1241=4,dati_bdv!$F$2:$F$65536,IF(dati_pdc!$C1241=5,dati_bdv!$G$2:$G$65536,dati_bdv!$H$2:$H$65536))))),$A1241,dati_bdv!M$2:M$65536)","v":0},{"$f":"SUMIF(IF(dati_pdc!$C1241=1,dati_bdv!$C$2:$C$65536,IF(dati_pdc!$C1241=2,dati_bdv!$D$2:$D$65536,IF(dati_pdc!$C1241=3,dati_bdv!$E$2:$E$65536,IF(dati_pdc!$C1241=4,dati_bdv!$F$2:$F$65536,IF(dati_pdc!$C1241=5,dati_bdv!$G$2:$G$65536,dati_bdv!$H$2:$H$65536))))),$A1241,dati_bdv!N$2:N$65536)","v":0}]
[{"$f":"dati_pdc!A1242","v":0},{"$f":"SUMIF(IF(dati_pdc!$C1242=1,dati_bdv!$C$2:$C$65536,IF(dati_pdc!$C1242=2,dati_bdv!$D$2:$D$65536,IF(dati_pdc!$C1242=3,dati_bdv!$E$2:$E$65536,IF(dati_pdc!$C1242=4,dati_bdv!$F$2:$F$65536,IF(dati_pdc!$C1242=5,dati_bdv!$G$2:$G$65536,dati_bdv!$H$2:$H$65536))))),$A1242,dati_bdv!J$2:J$65536)","v":0},{"$f":"SUMIF(IF(dati_pdc!$C1242=1,dati_bdv!$C$2:$C$65536,IF(dati_pdc!$C1242=2,dati_bdv!$D$2:$D$65536,IF(dati_pdc!$C1242=3,dati_bdv!$E$2:$E$65536,IF(dati_pdc!$C1242=4,dati_bdv!$F$2:$F$65536,IF(dati_pdc!$C1242=5,dati_bdv!$G$2:$G$65536,dati_bdv!$H$2:$H$65536))))),$A1242,dati_bdv!K$2:K$65536)","v":0},{"$f":"SUMIF(IF(dati_pdc!$C1242=1,dati_bdv!$C$2:$C$65536,IF(dati_pdc!$C1242=2,dati_bdv!$D$2:$D$65536,IF(dati_pdc!$C1242=3,dati_bdv!$E$2:$E$65536,IF(dati_pdc!$C1242=4,dati_bdv!$F$2:$F$65536,IF(dati_pdc!$C1242=5,dati_bdv!$G$2:$G$65536,dati_bdv!$H$2:$H$65536))))),$A1242,dati_bdv!L$2:L$65536)","v":0},{"$f":"SUMIF(IF(dati_pdc!$C1242=1,dati_bdv!$C$2:$C$65536,IF(dati_pdc!$C1242=2,dati_bdv!$D$2:$D$65536,IF(dati_pdc!$C1242=3,dati_bdv!$E$2:$E$65536,IF(dati_pdc!$C1242=4,dati_bdv!$F$2:$F$65536,IF(dati_pdc!$C1242=5,dati_bdv!$G$2:$G$65536,dati_bdv!$H$2:$H$65536))))),$A1242,dati_bdv!M$2:M$65536)","v":0},{"$f":"SUMIF(IF(dati_pdc!$C1242=1,dati_bdv!$C$2:$C$65536,IF(dati_pdc!$C1242=2,dati_bdv!$D$2:$D$65536,IF(dati_pdc!$C1242=3,dati_bdv!$E$2:$E$65536,IF(dati_pdc!$C1242=4,dati_bdv!$F$2:$F$65536,IF(dati_pdc!$C1242=5,dati_bdv!$G$2:$G$65536,dati_bdv!$H$2:$H$65536))))),$A1242,dati_bdv!N$2:N$65536)","v":0}]
[{"$f":"dati_pdc!A1243","v":0},{"$f":"SUMIF(IF(dati_pdc!$C1243=1,dati_bdv!$C$2:$C$65536,IF(dati_pdc!$C1243=2,dati_bdv!$D$2:$D$65536,IF(dati_pdc!$C1243=3,dati_bdv!$E$2:$E$65536,IF(dati_pdc!$C1243=4,dati_bdv!$F$2:$F$65536,IF(dati_pdc!$C1243=5,dati_bdv!$G$2:$G$65536,dati_bdv!$H$2:$H$65536))))),$A1243,dati_bdv!J$2:J$65536)","v":0},{"$f":"SUMIF(IF(dati_pdc!$C1243=1,dati_bdv!$C$2:$C$65536,IF(dati_pdc!$C1243=2,dati_bdv!$D$2:$D$65536,IF(dati_pdc!$C1243=3,dati_bdv!$E$2:$E$65536,IF(dati_pdc!$C1243=4,dati_bdv!$F$2:$F$65536,IF(dati_pdc!$C1243=5,dati_bdv!$G$2:$G$65536,dati_bdv!$H$2:$H$65536))))),$A1243,dati_bdv!K$2:K$65536)","v":0},{"$f":"SUMIF(IF(dati_pdc!$C1243=1,dati_bdv!$C$2:$C$65536,IF(dati_pdc!$C1243=2,dati_bdv!$D$2:$D$65536,IF(dati_pdc!$C1243=3,dati_bdv!$E$2:$E$65536,IF(dati_pdc!$C1243=4,dati_bdv!$F$2:$F$65536,IF(dati_pdc!$C1243=5,dati_bdv!$G$2:$G$65536,dati_bdv!$H$2:$H$65536))))),$A1243,dati_bdv!L$2:L$65536)","v":0},{"$f":"SUMIF(IF(dati_pdc!$C1243=1,dati_bdv!$C$2:$C$65536,IF(dati_pdc!$C1243=2,dati_bdv!$D$2:$D$65536,IF(dati_pdc!$C1243=3,dati_bdv!$E$2:$E$65536,IF(dati_pdc!$C1243=4,dati_bdv!$F$2:$F$65536,IF(dati_pdc!$C1243=5,dati_bdv!$G$2:$G$65536,dati_bdv!$H$2:$H$65536))))),$A1243,dati_bdv!M$2:M$65536)","v":0},{"$f":"SUMIF(IF(dati_pdc!$C1243=1,dati_bdv!$C$2:$C$65536,IF(dati_pdc!$C1243=2,dati_bdv!$D$2:$D$65536,IF(dati_pdc!$C1243=3,dati_bdv!$E$2:$E$65536,IF(dati_pdc!$C1243=4,dati_bdv!$F$2:$F$65536,IF(dati_pdc!$C1243=5,dati_bdv!$G$2:$G$65536,dati_bdv!$H$2:$H$65536))))),$A1243,dati_bdv!N$2:N$65536)","v":0}]
[{"$f":"dati_pdc!A1244","v":0},{"$f":"SUMIF(IF(dati_pdc!$C1244=1,dati_bdv!$C$2:$C$65536,IF(dati_pdc!$C1244=2,dati_bdv!$D$2:$D$65536,IF(dati_pdc!$C1244=3,dati_bdv!$E$2:$E$65536,IF(dati_pdc!$C1244=4,dati_bdv!$F$2:$F$65536,IF(dati_pdc!$C1244=5,dati_bdv!$G$2:$G$65536,dati_bdv!$H$2:$H$65536))))),$A1244,dati_bdv!J$2:J$65536)","v":0},{"$f":"SUMIF(IF(dati_pdc!$C1244=1,dati_bdv!$C$2:$C$65536,IF(dati_pdc!$C1244=2,dati_bdv!$D$2:$D$65536,IF(dati_pdc!$C1244=3,dati_bdv!$E$2:$E$65536,IF(dati_pdc!$C1244=4,dati_bdv!$F$2:$F$65536,IF(dati_pdc!$C1244=5,dati_bdv!$G$2:$G$65536,dati_bdv!$H$2:$H$65536))))),$A1244,dati_bdv!K$2:K$65536)","v":0},{"$f":"SUMIF(IF(dati_pdc!$C1244=1,dati_bdv!$C$2:$C$65536,IF(dati_pdc!$C1244=2,dati_bdv!$D$2:$D$65536,IF(dati_pdc!$C1244=3,dati_bdv!$E$2:$E$65536,IF(dati_pdc!$C1244=4,dati_bdv!$F$2:$F$65536,IF(dati_pdc!$C1244=5,dati_bdv!$G$2:$G$65536,dati_bdv!$H$2:$H$65536))))),$A1244,dati_bdv!L$2:L$65536)","v":0},{"$f":"SUMIF(IF(dati_pdc!$C1244=1,dati_bdv!$C$2:$C$65536,IF(dati_pdc!$C1244=2,dati_bdv!$D$2:$D$65536,IF(dati_pdc!$C1244=3,dati_bdv!$E$2:$E$65536,IF(dati_pdc!$C1244=4,dati_bdv!$F$2:$F$65536,IF(dati_pdc!$C1244=5,dati_bdv!$G$2:$G$65536,dati_bdv!$H$2:$H$65536))))),$A1244,dati_bdv!M$2:M$65536)","v":0},{"$f":"SUMIF(IF(dati_pdc!$C1244=1,dati_bdv!$C$2:$C$65536,IF(dati_pdc!$C1244=2,dati_bdv!$D$2:$D$65536,IF(dati_pdc!$C1244=3,dati_bdv!$E$2:$E$65536,IF(dati_pdc!$C1244=4,dati_bdv!$F$2:$F$65536,IF(dati_pdc!$C1244=5,dati_bdv!$G$2:$G$65536,dati_bdv!$H$2:$H$65536))))),$A1244,dati_bdv!N$2:N$65536)","v":0}]
[{"$f":"dati_pdc!A1245","v":0},{"$f":"SUMIF(IF(dati_pdc!$C1245=1,dati_bdv!$C$2:$C$65536,IF(dati_pdc!$C1245=2,dati_bdv!$D$2:$D$65536,IF(dati_pdc!$C1245=3,dati_bdv!$E$2:$E$65536,IF(dati_pdc!$C1245=4,dati_bdv!$F$2:$F$65536,IF(dati_pdc!$C1245=5,dati_bdv!$G$2:$G$65536,dati_bdv!$H$2:$H$65536))))),$A1245,dati_bdv!J$2:J$65536)","v":0},{"$f":"SUMIF(IF(dati_pdc!$C1245=1,dati_bdv!$C$2:$C$65536,IF(dati_pdc!$C1245=2,dati_bdv!$D$2:$D$65536,IF(dati_pdc!$C1245=3,dati_bdv!$E$2:$E$65536,IF(dati_pdc!$C1245=4,dati_bdv!$F$2:$F$65536,IF(dati_pdc!$C1245=5,dati_bdv!$G$2:$G$65536,dati_bdv!$H$2:$H$65536))))),$A1245,dati_bdv!K$2:K$65536)","v":0},{"$f":"SUMIF(IF(dati_pdc!$C1245=1,dati_bdv!$C$2:$C$65536,IF(dati_pdc!$C1245=2,dati_bdv!$D$2:$D$65536,IF(dati_pdc!$C1245=3,dati_bdv!$E$2:$E$65536,IF(dati_pdc!$C1245=4,dati_bdv!$F$2:$F$65536,IF(dati_pdc!$C1245=5,dati_bdv!$G$2:$G$65536,dati_bdv!$H$2:$H$65536))))),$A1245,dati_bdv!L$2:L$65536)","v":0},{"$f":"SUMIF(IF(dati_pdc!$C1245=1,dati_bdv!$C$2:$C$65536,IF(dati_pdc!$C1245=2,dati_bdv!$D$2:$D$65536,IF(dati_pdc!$C1245=3,dati_bdv!$E$2:$E$65536,IF(dati_pdc!$C1245=4,dati_bdv!$F$2:$F$65536,IF(dati_pdc!$C1245=5,dati_bdv!$G$2:$G$65536,dati_bdv!$H$2:$H$65536))))),$A1245,dati_bdv!M$2:M$65536)","v":0},{"$f":"SUMIF(IF(dati_pdc!$C1245=1,dati_bdv!$C$2:$C$65536,IF(dati_pdc!$C1245=2,dati_bdv!$D$2:$D$65536,IF(dati_pdc!$C1245=3,dati_bdv!$E$2:$E$65536,IF(dati_pdc!$C1245=4,dati_bdv!$F$2:$F$65536,IF(dati_pdc!$C1245=5,dati_bdv!$G$2:$G$65536,dati_bdv!$H$2:$H$65536))))),$A1245,dati_bdv!N$2:N$65536)","v":0}]
[{"$f":"dati_pdc!A1246","v":0},{"$f":"SUMIF(IF(dati_pdc!$C1246=1,dati_bdv!$C$2:$C$65536,IF(dati_pdc!$C1246=2,dati_bdv!$D$2:$D$65536,IF(dati_pdc!$C1246=3,dati_bdv!$E$2:$E$65536,IF(dati_pdc!$C1246=4,dati_bdv!$F$2:$F$65536,IF(dati_pdc!$C1246=5,dati_bdv!$G$2:$G$65536,dati_bdv!$H$2:$H$65536))))),$A1246,dati_bdv!J$2:J$65536)","v":0},{"$f":"SUMIF(IF(dati_pdc!$C1246=1,dati_bdv!$C$2:$C$65536,IF(dati_pdc!$C1246=2,dati_bdv!$D$2:$D$65536,IF(dati_pdc!$C1246=3,dati_bdv!$E$2:$E$65536,IF(dati_pdc!$C1246=4,dati_bdv!$F$2:$F$65536,IF(dati_pdc!$C1246=5,dati_bdv!$G$2:$G$65536,dati_bdv!$H$2:$H$65536))))),$A1246,dati_bdv!K$2:K$65536)","v":0},{"$f":"SUMIF(IF(dati_pdc!$C1246=1,dati_bdv!$C$2:$C$65536,IF(dati_pdc!$C1246=2,dati_bdv!$D$2:$D$65536,IF(dati_pdc!$C1246=3,dati_bdv!$E$2:$E$65536,IF(dati_pdc!$C1246=4,dati_bdv!$F$2:$F$65536,IF(dati_pdc!$C1246=5,dati_bdv!$G$2:$G$65536,dati_bdv!$H$2:$H$65536))))),$A1246,dati_bdv!L$2:L$65536)","v":0},{"$f":"SUMIF(IF(dati_pdc!$C1246=1,dati_bdv!$C$2:$C$65536,IF(dati_pdc!$C1246=2,dati_bdv!$D$2:$D$65536,IF(dati_pdc!$C1246=3,dati_bdv!$E$2:$E$65536,IF(dati_pdc!$C1246=4,dati_bdv!$F$2:$F$65536,IF(dati_pdc!$C1246=5,dati_bdv!$G$2:$G$65536,dati_bdv!$H$2:$H$65536))))),$A1246,dati_bdv!M$2:M$65536)","v":0},{"$f":"SUMIF(IF(dati_pdc!$C1246=1,dati_bdv!$C$2:$C$65536,IF(dati_pdc!$C1246=2,dati_bdv!$D$2:$D$65536,IF(dati_pdc!$C1246=3,dati_bdv!$E$2:$E$65536,IF(dati_pdc!$C1246=4,dati_bdv!$F$2:$F$65536,IF(dati_pdc!$C1246=5,dati_bdv!$G$2:$G$65536,dati_bdv!$H$2:$H$65536))))),$A1246,dati_bdv!N$2:N$65536)","v":0}]
[{"$f":"dati_pdc!A1247","v":0},{"$f":"SUMIF(IF(dati_pdc!$C1247=1,dati_bdv!$C$2:$C$65536,IF(dati_pdc!$C1247=2,dati_bdv!$D$2:$D$65536,IF(dati_pdc!$C1247=3,dati_bdv!$E$2:$E$65536,IF(dati_pdc!$C1247=4,dati_bdv!$F$2:$F$65536,IF(dati_pdc!$C1247=5,dati_bdv!$G$2:$G$65536,dati_bdv!$H$2:$H$65536))))),$A1247,dati_bdv!J$2:J$65536)","v":0},{"$f":"SUMIF(IF(dati_pdc!$C1247=1,dati_bdv!$C$2:$C$65536,IF(dati_pdc!$C1247=2,dati_bdv!$D$2:$D$65536,IF(dati_pdc!$C1247=3,dati_bdv!$E$2:$E$65536,IF(dati_pdc!$C1247=4,dati_bdv!$F$2:$F$65536,IF(dati_pdc!$C1247=5,dati_bdv!$G$2:$G$65536,dati_bdv!$H$2:$H$65536))))),$A1247,dati_bdv!K$2:K$65536)","v":0},{"$f":"SUMIF(IF(dati_pdc!$C1247=1,dati_bdv!$C$2:$C$65536,IF(dati_pdc!$C1247=2,dati_bdv!$D$2:$D$65536,IF(dati_pdc!$C1247=3,dati_bdv!$E$2:$E$65536,IF(dati_pdc!$C1247=4,dati_bdv!$F$2:$F$65536,IF(dati_pdc!$C1247=5,dati_bdv!$G$2:$G$65536,dati_bdv!$H$2:$H$65536))))),$A1247,dati_bdv!L$2:L$65536)","v":0},{"$f":"SUMIF(IF(dati_pdc!$C1247=1,dati_bdv!$C$2:$C$65536,IF(dati_pdc!$C1247=2,dati_bdv!$D$2:$D$65536,IF(dati_pdc!$C1247=3,dati_bdv!$E$2:$E$65536,IF(dati_pdc!$C1247=4,dati_bdv!$F$2:$F$65536,IF(dati_pdc!$C1247=5,dati_bdv!$G$2:$G$65536,dati_bdv!$H$2:$H$65536))))),$A1247,dati_bdv!M$2:M$65536)","v":0},{"$f":"SUMIF(IF(dati_pdc!$C1247=1,dati_bdv!$C$2:$C$65536,IF(dati_pdc!$C1247=2,dati_bdv!$D$2:$D$65536,IF(dati_pdc!$C1247=3,dati_bdv!$E$2:$E$65536,IF(dati_pdc!$C1247=4,dati_bdv!$F$2:$F$65536,IF(dati_pdc!$C1247=5,dati_bdv!$G$2:$G$65536,dati_bdv!$H$2:$H$65536))))),$A1247,dati_bdv!N$2:N$65536)","v":0}]
[{"$f":"dati_pdc!A1248","v":0},{"$f":"SUMIF(IF(dati_pdc!$C1248=1,dati_bdv!$C$2:$C$65536,IF(dati_pdc!$C1248=2,dati_bdv!$D$2:$D$65536,IF(dati_pdc!$C1248=3,dati_bdv!$E$2:$E$65536,IF(dati_pdc!$C1248=4,dati_bdv!$F$2:$F$65536,IF(dati_pdc!$C1248=5,dati_bdv!$G$2:$G$65536,dati_bdv!$H$2:$H$65536))))),$A1248,dati_bdv!J$2:J$65536)","v":0},{"$f":"SUMIF(IF(dati_pdc!$C1248=1,dati_bdv!$C$2:$C$65536,IF(dati_pdc!$C1248=2,dati_bdv!$D$2:$D$65536,IF(dati_pdc!$C1248=3,dati_bdv!$E$2:$E$65536,IF(dati_pdc!$C1248=4,dati_bdv!$F$2:$F$65536,IF(dati_pdc!$C1248=5,dati_bdv!$G$2:$G$65536,dati_bdv!$H$2:$H$65536))))),$A1248,dati_bdv!K$2:K$65536)","v":0},{"$f":"SUMIF(IF(dati_pdc!$C1248=1,dati_bdv!$C$2:$C$65536,IF(dati_pdc!$C1248=2,dati_bdv!$D$2:$D$65536,IF(dati_pdc!$C1248=3,dati_bdv!$E$2:$E$65536,IF(dati_pdc!$C1248=4,dati_bdv!$F$2:$F$65536,IF(dati_pdc!$C1248=5,dati_bdv!$G$2:$G$65536,dati_bdv!$H$2:$H$65536))))),$A1248,dati_bdv!L$2:L$65536)","v":0},{"$f":"SUMIF(IF(dati_pdc!$C1248=1,dati_bdv!$C$2:$C$65536,IF(dati_pdc!$C1248=2,dati_bdv!$D$2:$D$65536,IF(dati_pdc!$C1248=3,dati_bdv!$E$2:$E$65536,IF(dati_pdc!$C1248=4,dati_bdv!$F$2:$F$65536,IF(dati_pdc!$C1248=5,dati_bdv!$G$2:$G$65536,dati_bdv!$H$2:$H$65536))))),$A1248,dati_bdv!M$2:M$65536)","v":0},{"$f":"SUMIF(IF(dati_pdc!$C1248=1,dati_bdv!$C$2:$C$65536,IF(dati_pdc!$C1248=2,dati_bdv!$D$2:$D$65536,IF(dati_pdc!$C1248=3,dati_bdv!$E$2:$E$65536,IF(dati_pdc!$C1248=4,dati_bdv!$F$2:$F$65536,IF(dati_pdc!$C1248=5,dati_bdv!$G$2:$G$65536,dati_bdv!$H$2:$H$65536))))),$A1248,dati_bdv!N$2:N$65536)","v":0}]
[{"$f":"dati_pdc!A1249","v":0},{"$f":"SUMIF(IF(dati_pdc!$C1249=1,dati_bdv!$C$2:$C$65536,IF(dati_pdc!$C1249=2,dati_bdv!$D$2:$D$65536,IF(dati_pdc!$C1249=3,dati_bdv!$E$2:$E$65536,IF(dati_pdc!$C1249=4,dati_bdv!$F$2:$F$65536,IF(dati_pdc!$C1249=5,dati_bdv!$G$2:$G$65536,dati_bdv!$H$2:$H$65536))))),$A1249,dati_bdv!J$2:J$65536)","v":0},{"$f":"SUMIF(IF(dati_pdc!$C1249=1,dati_bdv!$C$2:$C$65536,IF(dati_pdc!$C1249=2,dati_bdv!$D$2:$D$65536,IF(dati_pdc!$C1249=3,dati_bdv!$E$2:$E$65536,IF(dati_pdc!$C1249=4,dati_bdv!$F$2:$F$65536,IF(dati_pdc!$C1249=5,dati_bdv!$G$2:$G$65536,dati_bdv!$H$2:$H$65536))))),$A1249,dati_bdv!K$2:K$65536)","v":0},{"$f":"SUMIF(IF(dati_pdc!$C1249=1,dati_bdv!$C$2:$C$65536,IF(dati_pdc!$C1249=2,dati_bdv!$D$2:$D$65536,IF(dati_pdc!$C1249=3,dati_bdv!$E$2:$E$65536,IF(dati_pdc!$C1249=4,dati_bdv!$F$2:$F$65536,IF(dati_pdc!$C1249=5,dati_bdv!$G$2:$G$65536,dati_bdv!$H$2:$H$65536))))),$A1249,dati_bdv!L$2:L$65536)","v":0},{"$f":"SUMIF(IF(dati_pdc!$C1249=1,dati_bdv!$C$2:$C$65536,IF(dati_pdc!$C1249=2,dati_bdv!$D$2:$D$65536,IF(dati_pdc!$C1249=3,dati_bdv!$E$2:$E$65536,IF(dati_pdc!$C1249=4,dati_bdv!$F$2:$F$65536,IF(dati_pdc!$C1249=5,dati_bdv!$G$2:$G$65536,dati_bdv!$H$2:$H$65536))))),$A1249,dati_bdv!M$2:M$65536)","v":0},{"$f":"SUMIF(IF(dati_pdc!$C1249=1,dati_bdv!$C$2:$C$65536,IF(dati_pdc!$C1249=2,dati_bdv!$D$2:$D$65536,IF(dati_pdc!$C1249=3,dati_bdv!$E$2:$E$65536,IF(dati_pdc!$C1249=4,dati_bdv!$F$2:$F$65536,IF(dati_pdc!$C1249=5,dati_bdv!$G$2:$G$65536,dati_bdv!$H$2:$H$65536))))),$A1249,dati_bdv!N$2:N$65536)","v":0}]
[{"$f":"dati_pdc!A1250","v":0},{"$f":"SUMIF(IF(dati_pdc!$C1250=1,dati_bdv!$C$2:$C$65536,IF(dati_pdc!$C1250=2,dati_bdv!$D$2:$D$65536,IF(dati_pdc!$C1250=3,dati_bdv!$E$2:$E$65536,IF(dati_pdc!$C1250=4,dati_bdv!$F$2:$F$65536,IF(dati_pdc!$C1250=5,dati_bdv!$G$2:$G$65536,dati_bdv!$H$2:$H$65536))))),$A1250,dati_bdv!J$2:J$65536)","v":0},{"$f":"SUMIF(IF(dati_pdc!$C1250=1,dati_bdv!$C$2:$C$65536,IF(dati_pdc!$C1250=2,dati_bdv!$D$2:$D$65536,IF(dati_pdc!$C1250=3,dati_bdv!$E$2:$E$65536,IF(dati_pdc!$C1250=4,dati_bdv!$F$2:$F$65536,IF(dati_pdc!$C1250=5,dati_bdv!$G$2:$G$65536,dati_bdv!$H$2:$H$65536))))),$A1250,dati_bdv!K$2:K$65536)","v":0},{"$f":"SUMIF(IF(dati_pdc!$C1250=1,dati_bdv!$C$2:$C$65536,IF(dati_pdc!$C1250=2,dati_bdv!$D$2:$D$65536,IF(dati_pdc!$C1250=3,dati_bdv!$E$2:$E$65536,IF(dati_pdc!$C1250=4,dati_bdv!$F$2:$F$65536,IF(dati_pdc!$C1250=5,dati_bdv!$G$2:$G$65536,dati_bdv!$H$2:$H$65536))))),$A1250,dati_bdv!L$2:L$65536)","v":0},{"$f":"SUMIF(IF(dati_pdc!$C1250=1,dati_bdv!$C$2:$C$65536,IF(dati_pdc!$C1250=2,dati_bdv!$D$2:$D$65536,IF(dati_pdc!$C1250=3,dati_bdv!$E$2:$E$65536,IF(dati_pdc!$C1250=4,dati_bdv!$F$2:$F$65536,IF(dati_pdc!$C1250=5,dati_bdv!$G$2:$G$65536,dati_bdv!$H$2:$H$65536))))),$A1250,dati_bdv!M$2:M$65536)","v":0},{"$f":"SUMIF(IF(dati_pdc!$C1250=1,dati_bdv!$C$2:$C$65536,IF(dati_pdc!$C1250=2,dati_bdv!$D$2:$D$65536,IF(dati_pdc!$C1250=3,dati_bdv!$E$2:$E$65536,IF(dati_pdc!$C1250=4,dati_bdv!$F$2:$F$65536,IF(dati_pdc!$C1250=5,dati_bdv!$G$2:$G$65536,dati_bdv!$H$2:$H$65536))))),$A1250,dati_bdv!N$2:N$65536)","v":0}]
[{"$f":"dati_pdc!A1251","v":0},{"$f":"SUMIF(IF(dati_pdc!$C1251=1,dati_bdv!$C$2:$C$65536,IF(dati_pdc!$C1251=2,dati_bdv!$D$2:$D$65536,IF(dati_pdc!$C1251=3,dati_bdv!$E$2:$E$65536,IF(dati_pdc!$C1251=4,dati_bdv!$F$2:$F$65536,IF(dati_pdc!$C1251=5,dati_bdv!$G$2:$G$65536,dati_bdv!$H$2:$H$65536))))),$A1251,dati_bdv!J$2:J$65536)","v":0},{"$f":"SUMIF(IF(dati_pdc!$C1251=1,dati_bdv!$C$2:$C$65536,IF(dati_pdc!$C1251=2,dati_bdv!$D$2:$D$65536,IF(dati_pdc!$C1251=3,dati_bdv!$E$2:$E$65536,IF(dati_pdc!$C1251=4,dati_bdv!$F$2:$F$65536,IF(dati_pdc!$C1251=5,dati_bdv!$G$2:$G$65536,dati_bdv!$H$2:$H$65536))))),$A1251,dati_bdv!K$2:K$65536)","v":0},{"$f":"SUMIF(IF(dati_pdc!$C1251=1,dati_bdv!$C$2:$C$65536,IF(dati_pdc!$C1251=2,dati_bdv!$D$2:$D$65536,IF(dati_pdc!$C1251=3,dati_bdv!$E$2:$E$65536,IF(dati_pdc!$C1251=4,dati_bdv!$F$2:$F$65536,IF(dati_pdc!$C1251=5,dati_bdv!$G$2:$G$65536,dati_bdv!$H$2:$H$65536))))),$A1251,dati_bdv!L$2:L$65536)","v":0},{"$f":"SUMIF(IF(dati_pdc!$C1251=1,dati_bdv!$C$2:$C$65536,IF(dati_pdc!$C1251=2,dati_bdv!$D$2:$D$65536,IF(dati_pdc!$C1251=3,dati_bdv!$E$2:$E$65536,IF(dati_pdc!$C1251=4,dati_bdv!$F$2:$F$65536,IF(dati_pdc!$C1251=5,dati_bdv!$G$2:$G$65536,dati_bdv!$H$2:$H$65536))))),$A1251,dati_bdv!M$2:M$65536)","v":0},{"$f":"SUMIF(IF(dati_pdc!$C1251=1,dati_bdv!$C$2:$C$65536,IF(dati_pdc!$C1251=2,dati_bdv!$D$2:$D$65536,IF(dati_pdc!$C1251=3,dati_bdv!$E$2:$E$65536,IF(dati_pdc!$C1251=4,dati_bdv!$F$2:$F$65536,IF(dati_pdc!$C1251=5,dati_bdv!$G$2:$G$65536,dati_bdv!$H$2:$H$65536))))),$A1251,dati_bdv!N$2:N$65536)","v":0}]
[{"$f":"dati_pdc!A1252","v":0},{"$f":"SUMIF(IF(dati_pdc!$C1252=1,dati_bdv!$C$2:$C$65536,IF(dati_pdc!$C1252=2,dati_bdv!$D$2:$D$65536,IF(dati_pdc!$C1252=3,dati_bdv!$E$2:$E$65536,IF(dati_pdc!$C1252=4,dati_bdv!$F$2:$F$65536,IF(dati_pdc!$C1252=5,dati_bdv!$G$2:$G$65536,dati_bdv!$H$2:$H$65536))))),$A1252,dati_bdv!J$2:J$65536)","v":0},{"$f":"SUMIF(IF(dati_pdc!$C1252=1,dati_bdv!$C$2:$C$65536,IF(dati_pdc!$C1252=2,dati_bdv!$D$2:$D$65536,IF(dati_pdc!$C1252=3,dati_bdv!$E$2:$E$65536,IF(dati_pdc!$C1252=4,dati_bdv!$F$2:$F$65536,IF(dati_pdc!$C1252=5,dati_bdv!$G$2:$G$65536,dati_bdv!$H$2:$H$65536))))),$A1252,dati_bdv!K$2:K$65536)","v":0},{"$f":"SUMIF(IF(dati_pdc!$C1252=1,dati_bdv!$C$2:$C$65536,IF(dati_pdc!$C1252=2,dati_bdv!$D$2:$D$65536,IF(dati_pdc!$C1252=3,dati_bdv!$E$2:$E$65536,IF(dati_pdc!$C1252=4,dati_bdv!$F$2:$F$65536,IF(dati_pdc!$C1252=5,dati_bdv!$G$2:$G$65536,dati_bdv!$H$2:$H$65536))))),$A1252,dati_bdv!L$2:L$65536)","v":0},{"$f":"SUMIF(IF(dati_pdc!$C1252=1,dati_bdv!$C$2:$C$65536,IF(dati_pdc!$C1252=2,dati_bdv!$D$2:$D$65536,IF(dati_pdc!$C1252=3,dati_bdv!$E$2:$E$65536,IF(dati_pdc!$C1252=4,dati_bdv!$F$2:$F$65536,IF(dati_pdc!$C1252=5,dati_bdv!$G$2:$G$65536,dati_bdv!$H$2:$H$65536))))),$A1252,dati_bdv!M$2:M$65536)","v":0},{"$f":"SUMIF(IF(dati_pdc!$C1252=1,dati_bdv!$C$2:$C$65536,IF(dati_pdc!$C1252=2,dati_bdv!$D$2:$D$65536,IF(dati_pdc!$C1252=3,dati_bdv!$E$2:$E$65536,IF(dati_pdc!$C1252=4,dati_bdv!$F$2:$F$65536,IF(dati_pdc!$C1252=5,dati_bdv!$G$2:$G$65536,dati_bdv!$H$2:$H$65536))))),$A1252,dati_bdv!N$2:N$65536)","v":0}]
[{"$f":"dati_pdc!A1253","v":0},{"$f":"SUMIF(IF(dati_pdc!$C1253=1,dati_bdv!$C$2:$C$65536,IF(dati_pdc!$C1253=2,dati_bdv!$D$2:$D$65536,IF(dati_pdc!$C1253=3,dati_bdv!$E$2:$E$65536,IF(dati_pdc!$C1253=4,dati_bdv!$F$2:$F$65536,IF(dati_pdc!$C1253=5,dati_bdv!$G$2:$G$65536,dati_bdv!$H$2:$H$65536))))),$A1253,dati_bdv!J$2:J$65536)","v":0},{"$f":"SUMIF(IF(dati_pdc!$C1253=1,dati_bdv!$C$2:$C$65536,IF(dati_pdc!$C1253=2,dati_bdv!$D$2:$D$65536,IF(dati_pdc!$C1253=3,dati_bdv!$E$2:$E$65536,IF(dati_pdc!$C1253=4,dati_bdv!$F$2:$F$65536,IF(dati_pdc!$C1253=5,dati_bdv!$G$2:$G$65536,dati_bdv!$H$2:$H$65536))))),$A1253,dati_bdv!K$2:K$65536)","v":0},{"$f":"SUMIF(IF(dati_pdc!$C1253=1,dati_bdv!$C$2:$C$65536,IF(dati_pdc!$C1253=2,dati_bdv!$D$2:$D$65536,IF(dati_pdc!$C1253=3,dati_bdv!$E$2:$E$65536,IF(dati_pdc!$C1253=4,dati_bdv!$F$2:$F$65536,IF(dati_pdc!$C1253=5,dati_bdv!$G$2:$G$65536,dati_bdv!$H$2:$H$65536))))),$A1253,dati_bdv!L$2:L$65536)","v":0},{"$f":"SUMIF(IF(dati_pdc!$C1253=1,dati_bdv!$C$2:$C$65536,IF(dati_pdc!$C1253=2,dati_bdv!$D$2:$D$65536,IF(dati_pdc!$C1253=3,dati_bdv!$E$2:$E$65536,IF(dati_pdc!$C1253=4,dati_bdv!$F$2:$F$65536,IF(dati_pdc!$C1253=5,dati_bdv!$G$2:$G$65536,dati_bdv!$H$2:$H$65536))))),$A1253,dati_bdv!M$2:M$65536)","v":0},{"$f":"SUMIF(IF(dati_pdc!$C1253=1,dati_bdv!$C$2:$C$65536,IF(dati_pdc!$C1253=2,dati_bdv!$D$2:$D$65536,IF(dati_pdc!$C1253=3,dati_bdv!$E$2:$E$65536,IF(dati_pdc!$C1253=4,dati_bdv!$F$2:$F$65536,IF(dati_pdc!$C1253=5,dati_bdv!$G$2:$G$65536,dati_bdv!$H$2:$H$65536))))),$A1253,dati_bdv!N$2:N$65536)","v":0}]
[{"$f":"dati_pdc!A1254","v":0},{"$f":"SUMIF(IF(dati_pdc!$C1254=1,dati_bdv!$C$2:$C$65536,IF(dati_pdc!$C1254=2,dati_bdv!$D$2:$D$65536,IF(dati_pdc!$C1254=3,dati_bdv!$E$2:$E$65536,IF(dati_pdc!$C1254=4,dati_bdv!$F$2:$F$65536,IF(dati_pdc!$C1254=5,dati_bdv!$G$2:$G$65536,dati_bdv!$H$2:$H$65536))))),$A1254,dati_bdv!J$2:J$65536)","v":0},{"$f":"SUMIF(IF(dati_pdc!$C1254=1,dati_bdv!$C$2:$C$65536,IF(dati_pdc!$C1254=2,dati_bdv!$D$2:$D$65536,IF(dati_pdc!$C1254=3,dati_bdv!$E$2:$E$65536,IF(dati_pdc!$C1254=4,dati_bdv!$F$2:$F$65536,IF(dati_pdc!$C1254=5,dati_bdv!$G$2:$G$65536,dati_bdv!$H$2:$H$65536))))),$A1254,dati_bdv!K$2:K$65536)","v":0},{"$f":"SUMIF(IF(dati_pdc!$C1254=1,dati_bdv!$C$2:$C$65536,IF(dati_pdc!$C1254=2,dati_bdv!$D$2:$D$65536,IF(dati_pdc!$C1254=3,dati_bdv!$E$2:$E$65536,IF(dati_pdc!$C1254=4,dati_bdv!$F$2:$F$65536,IF(dati_pdc!$C1254=5,dati_bdv!$G$2:$G$65536,dati_bdv!$H$2:$H$65536))))),$A1254,dati_bdv!L$2:L$65536)","v":0},{"$f":"SUMIF(IF(dati_pdc!$C1254=1,dati_bdv!$C$2:$C$65536,IF(dati_pdc!$C1254=2,dati_bdv!$D$2:$D$65536,IF(dati_pdc!$C1254=3,dati_bdv!$E$2:$E$65536,IF(dati_pdc!$C1254=4,dati_bdv!$F$2:$F$65536,IF(dati_pdc!$C1254=5,dati_bdv!$G$2:$G$65536,dati_bdv!$H$2:$H$65536))))),$A1254,dati_bdv!M$2:M$65536)","v":0},{"$f":"SUMIF(IF(dati_pdc!$C1254=1,dati_bdv!$C$2:$C$65536,IF(dati_pdc!$C1254=2,dati_bdv!$D$2:$D$65536,IF(dati_pdc!$C1254=3,dati_bdv!$E$2:$E$65536,IF(dati_pdc!$C1254=4,dati_bdv!$F$2:$F$65536,IF(dati_pdc!$C1254=5,dati_bdv!$G$2:$G$65536,dati_bdv!$H$2:$H$65536))))),$A1254,dati_bdv!N$2:N$65536)","v":0}]
[{"$f":"dati_pdc!A1255","v":0},{"$f":"SUMIF(IF(dati_pdc!$C1255=1,dati_bdv!$C$2:$C$65536,IF(dati_pdc!$C1255=2,dati_bdv!$D$2:$D$65536,IF(dati_pdc!$C1255=3,dati_bdv!$E$2:$E$65536,IF(dati_pdc!$C1255=4,dati_bdv!$F$2:$F$65536,IF(dati_pdc!$C1255=5,dati_bdv!$G$2:$G$65536,dati_bdv!$H$2:$H$65536))))),$A1255,dati_bdv!J$2:J$65536)","v":0},{"$f":"SUMIF(IF(dati_pdc!$C1255=1,dati_bdv!$C$2:$C$65536,IF(dati_pdc!$C1255=2,dati_bdv!$D$2:$D$65536,IF(dati_pdc!$C1255=3,dati_bdv!$E$2:$E$65536,IF(dati_pdc!$C1255=4,dati_bdv!$F$2:$F$65536,IF(dati_pdc!$C1255=5,dati_bdv!$G$2:$G$65536,dati_bdv!$H$2:$H$65536))))),$A1255,dati_bdv!K$2:K$65536)","v":0},{"$f":"SUMIF(IF(dati_pdc!$C1255=1,dati_bdv!$C$2:$C$65536,IF(dati_pdc!$C1255=2,dati_bdv!$D$2:$D$65536,IF(dati_pdc!$C1255=3,dati_bdv!$E$2:$E$65536,IF(dati_pdc!$C1255=4,dati_bdv!$F$2:$F$65536,IF(dati_pdc!$C1255=5,dati_bdv!$G$2:$G$65536,dati_bdv!$H$2:$H$65536))))),$A1255,dati_bdv!L$2:L$65536)","v":0},{"$f":"SUMIF(IF(dati_pdc!$C1255=1,dati_bdv!$C$2:$C$65536,IF(dati_pdc!$C1255=2,dati_bdv!$D$2:$D$65536,IF(dati_pdc!$C1255=3,dati_bdv!$E$2:$E$65536,IF(dati_pdc!$C1255=4,dati_bdv!$F$2:$F$65536,IF(dati_pdc!$C1255=5,dati_bdv!$G$2:$G$65536,dati_bdv!$H$2:$H$65536))))),$A1255,dati_bdv!M$2:M$65536)","v":0},{"$f":"SUMIF(IF(dati_pdc!$C1255=1,dati_bdv!$C$2:$C$65536,IF(dati_pdc!$C1255=2,dati_bdv!$D$2:$D$65536,IF(dati_pdc!$C1255=3,dati_bdv!$E$2:$E$65536,IF(dati_pdc!$C1255=4,dati_bdv!$F$2:$F$65536,IF(dati_pdc!$C1255=5,dati_bdv!$G$2:$G$65536,dati_bdv!$H$2:$H$65536))))),$A1255,dati_bdv!N$2:N$65536)","v":0}]
[{"$f":"dati_pdc!A1256","v":0},{"$f":"SUMIF(IF(dati_pdc!$C1256=1,dati_bdv!$C$2:$C$65536,IF(dati_pdc!$C1256=2,dati_bdv!$D$2:$D$65536,IF(dati_pdc!$C1256=3,dati_bdv!$E$2:$E$65536,IF(dati_pdc!$C1256=4,dati_bdv!$F$2:$F$65536,IF(dati_pdc!$C1256=5,dati_bdv!$G$2:$G$65536,dati_bdv!$H$2:$H$65536))))),$A1256,dati_bdv!J$2:J$65536)","v":0},{"$f":"SUMIF(IF(dati_pdc!$C1256=1,dati_bdv!$C$2:$C$65536,IF(dati_pdc!$C1256=2,dati_bdv!$D$2:$D$65536,IF(dati_pdc!$C1256=3,dati_bdv!$E$2:$E$65536,IF(dati_pdc!$C1256=4,dati_bdv!$F$2:$F$65536,IF(dati_pdc!$C1256=5,dati_bdv!$G$2:$G$65536,dati_bdv!$H$2:$H$65536))))),$A1256,dati_bdv!K$2:K$65536)","v":0},{"$f":"SUMIF(IF(dati_pdc!$C1256=1,dati_bdv!$C$2:$C$65536,IF(dati_pdc!$C1256=2,dati_bdv!$D$2:$D$65536,IF(dati_pdc!$C1256=3,dati_bdv!$E$2:$E$65536,IF(dati_pdc!$C1256=4,dati_bdv!$F$2:$F$65536,IF(dati_pdc!$C1256=5,dati_bdv!$G$2:$G$65536,dati_bdv!$H$2:$H$65536))))),$A1256,dati_bdv!L$2:L$65536)","v":0},{"$f":"SUMIF(IF(dati_pdc!$C1256=1,dati_bdv!$C$2:$C$65536,IF(dati_pdc!$C1256=2,dati_bdv!$D$2:$D$65536,IF(dati_pdc!$C1256=3,dati_bdv!$E$2:$E$65536,IF(dati_pdc!$C1256=4,dati_bdv!$F$2:$F$65536,IF(dati_pdc!$C1256=5,dati_bdv!$G$2:$G$65536,dati_bdv!$H$2:$H$65536))))),$A1256,dati_bdv!M$2:M$65536)","v":0},{"$f":"SUMIF(IF(dati_pdc!$C1256=1,dati_bdv!$C$2:$C$65536,IF(dati_pdc!$C1256=2,dati_bdv!$D$2:$D$65536,IF(dati_pdc!$C1256=3,dati_bdv!$E$2:$E$65536,IF(dati_pdc!$C1256=4,dati_bdv!$F$2:$F$65536,IF(dati_pdc!$C1256=5,dati_bdv!$G$2:$G$65536,dati_bdv!$H$2:$H$65536))))),$A1256,dati_bdv!N$2:N$65536)","v":0}]
[{"$f":"dati_pdc!A1257","v":0},{"$f":"SUMIF(IF(dati_pdc!$C1257=1,dati_bdv!$C$2:$C$65536,IF(dati_pdc!$C1257=2,dati_bdv!$D$2:$D$65536,IF(dati_pdc!$C1257=3,dati_bdv!$E$2:$E$65536,IF(dati_pdc!$C1257=4,dati_bdv!$F$2:$F$65536,IF(dati_pdc!$C1257=5,dati_bdv!$G$2:$G$65536,dati_bdv!$H$2:$H$65536))))),$A1257,dati_bdv!J$2:J$65536)","v":0},{"$f":"SUMIF(IF(dati_pdc!$C1257=1,dati_bdv!$C$2:$C$65536,IF(dati_pdc!$C1257=2,dati_bdv!$D$2:$D$65536,IF(dati_pdc!$C1257=3,dati_bdv!$E$2:$E$65536,IF(dati_pdc!$C1257=4,dati_bdv!$F$2:$F$65536,IF(dati_pdc!$C1257=5,dati_bdv!$G$2:$G$65536,dati_bdv!$H$2:$H$65536))))),$A1257,dati_bdv!K$2:K$65536)","v":0},{"$f":"SUMIF(IF(dati_pdc!$C1257=1,dati_bdv!$C$2:$C$65536,IF(dati_pdc!$C1257=2,dati_bdv!$D$2:$D$65536,IF(dati_pdc!$C1257=3,dati_bdv!$E$2:$E$65536,IF(dati_pdc!$C1257=4,dati_bdv!$F$2:$F$65536,IF(dati_pdc!$C1257=5,dati_bdv!$G$2:$G$65536,dati_bdv!$H$2:$H$65536))))),$A1257,dati_bdv!L$2:L$65536)","v":0},{"$f":"SUMIF(IF(dati_pdc!$C1257=1,dati_bdv!$C$2:$C$65536,IF(dati_pdc!$C1257=2,dati_bdv!$D$2:$D$65536,IF(dati_pdc!$C1257=3,dati_bdv!$E$2:$E$65536,IF(dati_pdc!$C1257=4,dati_bdv!$F$2:$F$65536,IF(dati_pdc!$C1257=5,dati_bdv!$G$2:$G$65536,dati_bdv!$H$2:$H$65536))))),$A1257,dati_bdv!M$2:M$65536)","v":0},{"$f":"SUMIF(IF(dati_pdc!$C1257=1,dati_bdv!$C$2:$C$65536,IF(dati_pdc!$C1257=2,dati_bdv!$D$2:$D$65536,IF(dati_pdc!$C1257=3,dati_bdv!$E$2:$E$65536,IF(dati_pdc!$C1257=4,dati_bdv!$F$2:$F$65536,IF(dati_pdc!$C1257=5,dati_bdv!$G$2:$G$65536,dati_bdv!$H$2:$H$65536))))),$A1257,dati_bdv!N$2:N$65536)","v":0}]
[{"$f":"dati_pdc!A1258","v":0},{"$f":"SUMIF(IF(dati_pdc!$C1258=1,dati_bdv!$C$2:$C$65536,IF(dati_pdc!$C1258=2,dati_bdv!$D$2:$D$65536,IF(dati_pdc!$C1258=3,dati_bdv!$E$2:$E$65536,IF(dati_pdc!$C1258=4,dati_bdv!$F$2:$F$65536,IF(dati_pdc!$C1258=5,dati_bdv!$G$2:$G$65536,dati_bdv!$H$2:$H$65536))))),$A1258,dati_bdv!J$2:J$65536)","v":0},{"$f":"SUMIF(IF(dati_pdc!$C1258=1,dati_bdv!$C$2:$C$65536,IF(dati_pdc!$C1258=2,dati_bdv!$D$2:$D$65536,IF(dati_pdc!$C1258=3,dati_bdv!$E$2:$E$65536,IF(dati_pdc!$C1258=4,dati_bdv!$F$2:$F$65536,IF(dati_pdc!$C1258=5,dati_bdv!$G$2:$G$65536,dati_bdv!$H$2:$H$65536))))),$A1258,dati_bdv!K$2:K$65536)","v":0},{"$f":"SUMIF(IF(dati_pdc!$C1258=1,dati_bdv!$C$2:$C$65536,IF(dati_pdc!$C1258=2,dati_bdv!$D$2:$D$65536,IF(dati_pdc!$C1258=3,dati_bdv!$E$2:$E$65536,IF(dati_pdc!$C1258=4,dati_bdv!$F$2:$F$65536,IF(dati_pdc!$C1258=5,dati_bdv!$G$2:$G$65536,dati_bdv!$H$2:$H$65536))))),$A1258,dati_bdv!L$2:L$65536)","v":0},{"$f":"SUMIF(IF(dati_pdc!$C1258=1,dati_bdv!$C$2:$C$65536,IF(dati_pdc!$C1258=2,dati_bdv!$D$2:$D$65536,IF(dati_pdc!$C1258=3,dati_bdv!$E$2:$E$65536,IF(dati_pdc!$C1258=4,dati_bdv!$F$2:$F$65536,IF(dati_pdc!$C1258=5,dati_bdv!$G$2:$G$65536,dati_bdv!$H$2:$H$65536))))),$A1258,dati_bdv!M$2:M$65536)","v":0},{"$f":"SUMIF(IF(dati_pdc!$C1258=1,dati_bdv!$C$2:$C$65536,IF(dati_pdc!$C1258=2,dati_bdv!$D$2:$D$65536,IF(dati_pdc!$C1258=3,dati_bdv!$E$2:$E$65536,IF(dati_pdc!$C1258=4,dati_bdv!$F$2:$F$65536,IF(dati_pdc!$C1258=5,dati_bdv!$G$2:$G$65536,dati_bdv!$H$2:$H$65536))))),$A1258,dati_bdv!N$2:N$65536)","v":0}]
[{"$f":"dati_pdc!A1259","v":0},{"$f":"SUMIF(IF(dati_pdc!$C1259=1,dati_bdv!$C$2:$C$65536,IF(dati_pdc!$C1259=2,dati_bdv!$D$2:$D$65536,IF(dati_pdc!$C1259=3,dati_bdv!$E$2:$E$65536,IF(dati_pdc!$C1259=4,dati_bdv!$F$2:$F$65536,IF(dati_pdc!$C1259=5,dati_bdv!$G$2:$G$65536,dati_bdv!$H$2:$H$65536))))),$A1259,dati_bdv!J$2:J$65536)","v":0},{"$f":"SUMIF(IF(dati_pdc!$C1259=1,dati_bdv!$C$2:$C$65536,IF(dati_pdc!$C1259=2,dati_bdv!$D$2:$D$65536,IF(dati_pdc!$C1259=3,dati_bdv!$E$2:$E$65536,IF(dati_pdc!$C1259=4,dati_bdv!$F$2:$F$65536,IF(dati_pdc!$C1259=5,dati_bdv!$G$2:$G$65536,dati_bdv!$H$2:$H$65536))))),$A1259,dati_bdv!K$2:K$65536)","v":0},{"$f":"SUMIF(IF(dati_pdc!$C1259=1,dati_bdv!$C$2:$C$65536,IF(dati_pdc!$C1259=2,dati_bdv!$D$2:$D$65536,IF(dati_pdc!$C1259=3,dati_bdv!$E$2:$E$65536,IF(dati_pdc!$C1259=4,dati_bdv!$F$2:$F$65536,IF(dati_pdc!$C1259=5,dati_bdv!$G$2:$G$65536,dati_bdv!$H$2:$H$65536))))),$A1259,dati_bdv!L$2:L$65536)","v":0},{"$f":"SUMIF(IF(dati_pdc!$C1259=1,dati_bdv!$C$2:$C$65536,IF(dati_pdc!$C1259=2,dati_bdv!$D$2:$D$65536,IF(dati_pdc!$C1259=3,dati_bdv!$E$2:$E$65536,IF(dati_pdc!$C1259=4,dati_bdv!$F$2:$F$65536,IF(dati_pdc!$C1259=5,dati_bdv!$G$2:$G$65536,dati_bdv!$H$2:$H$65536))))),$A1259,dati_bdv!M$2:M$65536)","v":0},{"$f":"SUMIF(IF(dati_pdc!$C1259=1,dati_bdv!$C$2:$C$65536,IF(dati_pdc!$C1259=2,dati_bdv!$D$2:$D$65536,IF(dati_pdc!$C1259=3,dati_bdv!$E$2:$E$65536,IF(dati_pdc!$C1259=4,dati_bdv!$F$2:$F$65536,IF(dati_pdc!$C1259=5,dati_bdv!$G$2:$G$65536,dati_bdv!$H$2:$H$65536))))),$A1259,dati_bdv!N$2:N$65536)","v":0}]
[{"$f":"dati_pdc!A1260","v":0},{"$f":"SUMIF(IF(dati_pdc!$C1260=1,dati_bdv!$C$2:$C$65536,IF(dati_pdc!$C1260=2,dati_bdv!$D$2:$D$65536,IF(dati_pdc!$C1260=3,dati_bdv!$E$2:$E$65536,IF(dati_pdc!$C1260=4,dati_bdv!$F$2:$F$65536,IF(dati_pdc!$C1260=5,dati_bdv!$G$2:$G$65536,dati_bdv!$H$2:$H$65536))))),$A1260,dati_bdv!J$2:J$65536)","v":0},{"$f":"SUMIF(IF(dati_pdc!$C1260=1,dati_bdv!$C$2:$C$65536,IF(dati_pdc!$C1260=2,dati_bdv!$D$2:$D$65536,IF(dati_pdc!$C1260=3,dati_bdv!$E$2:$E$65536,IF(dati_pdc!$C1260=4,dati_bdv!$F$2:$F$65536,IF(dati_pdc!$C1260=5,dati_bdv!$G$2:$G$65536,dati_bdv!$H$2:$H$65536))))),$A1260,dati_bdv!K$2:K$65536)","v":0},{"$f":"SUMIF(IF(dati_pdc!$C1260=1,dati_bdv!$C$2:$C$65536,IF(dati_pdc!$C1260=2,dati_bdv!$D$2:$D$65536,IF(dati_pdc!$C1260=3,dati_bdv!$E$2:$E$65536,IF(dati_pdc!$C1260=4,dati_bdv!$F$2:$F$65536,IF(dati_pdc!$C1260=5,dati_bdv!$G$2:$G$65536,dati_bdv!$H$2:$H$65536))))),$A1260,dati_bdv!L$2:L$65536)","v":0},{"$f":"SUMIF(IF(dati_pdc!$C1260=1,dati_bdv!$C$2:$C$65536,IF(dati_pdc!$C1260=2,dati_bdv!$D$2:$D$65536,IF(dati_pdc!$C1260=3,dati_bdv!$E$2:$E$65536,IF(dati_pdc!$C1260=4,dati_bdv!$F$2:$F$65536,IF(dati_pdc!$C1260=5,dati_bdv!$G$2:$G$65536,dati_bdv!$H$2:$H$65536))))),$A1260,dati_bdv!M$2:M$65536)","v":0},{"$f":"SUMIF(IF(dati_pdc!$C1260=1,dati_bdv!$C$2:$C$65536,IF(dati_pdc!$C1260=2,dati_bdv!$D$2:$D$65536,IF(dati_pdc!$C1260=3,dati_bdv!$E$2:$E$65536,IF(dati_pdc!$C1260=4,dati_bdv!$F$2:$F$65536,IF(dati_pdc!$C1260=5,dati_bdv!$G$2:$G$65536,dati_bdv!$H$2:$H$65536))))),$A1260,dati_bdv!N$2:N$65536)","v":0}]
[{"$f":"dati_pdc!A1261","v":0},{"$f":"SUMIF(IF(dati_pdc!$C1261=1,dati_bdv!$C$2:$C$65536,IF(dati_pdc!$C1261=2,dati_bdv!$D$2:$D$65536,IF(dati_pdc!$C1261=3,dati_bdv!$E$2:$E$65536,IF(dati_pdc!$C1261=4,dati_bdv!$F$2:$F$65536,IF(dati_pdc!$C1261=5,dati_bdv!$G$2:$G$65536,dati_bdv!$H$2:$H$65536))))),$A1261,dati_bdv!J$2:J$65536)","v":0},{"$f":"SUMIF(IF(dati_pdc!$C1261=1,dati_bdv!$C$2:$C$65536,IF(dati_pdc!$C1261=2,dati_bdv!$D$2:$D$65536,IF(dati_pdc!$C1261=3,dati_bdv!$E$2:$E$65536,IF(dati_pdc!$C1261=4,dati_bdv!$F$2:$F$65536,IF(dati_pdc!$C1261=5,dati_bdv!$G$2:$G$65536,dati_bdv!$H$2:$H$65536))))),$A1261,dati_bdv!K$2:K$65536)","v":0},{"$f":"SUMIF(IF(dati_pdc!$C1261=1,dati_bdv!$C$2:$C$65536,IF(dati_pdc!$C1261=2,dati_bdv!$D$2:$D$65536,IF(dati_pdc!$C1261=3,dati_bdv!$E$2:$E$65536,IF(dati_pdc!$C1261=4,dati_bdv!$F$2:$F$65536,IF(dati_pdc!$C1261=5,dati_bdv!$G$2:$G$65536,dati_bdv!$H$2:$H$65536))))),$A1261,dati_bdv!L$2:L$65536)","v":0},{"$f":"SUMIF(IF(dati_pdc!$C1261=1,dati_bdv!$C$2:$C$65536,IF(dati_pdc!$C1261=2,dati_bdv!$D$2:$D$65536,IF(dati_pdc!$C1261=3,dati_bdv!$E$2:$E$65536,IF(dati_pdc!$C1261=4,dati_bdv!$F$2:$F$65536,IF(dati_pdc!$C1261=5,dati_bdv!$G$2:$G$65536,dati_bdv!$H$2:$H$65536))))),$A1261,dati_bdv!M$2:M$65536)","v":0},{"$f":"SUMIF(IF(dati_pdc!$C1261=1,dati_bdv!$C$2:$C$65536,IF(dati_pdc!$C1261=2,dati_bdv!$D$2:$D$65536,IF(dati_pdc!$C1261=3,dati_bdv!$E$2:$E$65536,IF(dati_pdc!$C1261=4,dati_bdv!$F$2:$F$65536,IF(dati_pdc!$C1261=5,dati_bdv!$G$2:$G$65536,dati_bdv!$H$2:$H$65536))))),$A1261,dati_bdv!N$2:N$65536)","v":0}]
[{"$f":"dati_pdc!A1262","v":0},{"$f":"SUMIF(IF(dati_pdc!$C1262=1,dati_bdv!$C$2:$C$65536,IF(dati_pdc!$C1262=2,dati_bdv!$D$2:$D$65536,IF(dati_pdc!$C1262=3,dati_bdv!$E$2:$E$65536,IF(dati_pdc!$C1262=4,dati_bdv!$F$2:$F$65536,IF(dati_pdc!$C1262=5,dati_bdv!$G$2:$G$65536,dati_bdv!$H$2:$H$65536))))),$A1262,dati_bdv!J$2:J$65536)","v":0},{"$f":"SUMIF(IF(dati_pdc!$C1262=1,dati_bdv!$C$2:$C$65536,IF(dati_pdc!$C1262=2,dati_bdv!$D$2:$D$65536,IF(dati_pdc!$C1262=3,dati_bdv!$E$2:$E$65536,IF(dati_pdc!$C1262=4,dati_bdv!$F$2:$F$65536,IF(dati_pdc!$C1262=5,dati_bdv!$G$2:$G$65536,dati_bdv!$H$2:$H$65536))))),$A1262,dati_bdv!K$2:K$65536)","v":0},{"$f":"SUMIF(IF(dati_pdc!$C1262=1,dati_bdv!$C$2:$C$65536,IF(dati_pdc!$C1262=2,dati_bdv!$D$2:$D$65536,IF(dati_pdc!$C1262=3,dati_bdv!$E$2:$E$65536,IF(dati_pdc!$C1262=4,dati_bdv!$F$2:$F$65536,IF(dati_pdc!$C1262=5,dati_bdv!$G$2:$G$65536,dati_bdv!$H$2:$H$65536))))),$A1262,dati_bdv!L$2:L$65536)","v":0},{"$f":"SUMIF(IF(dati_pdc!$C1262=1,dati_bdv!$C$2:$C$65536,IF(dati_pdc!$C1262=2,dati_bdv!$D$2:$D$65536,IF(dati_pdc!$C1262=3,dati_bdv!$E$2:$E$65536,IF(dati_pdc!$C1262=4,dati_bdv!$F$2:$F$65536,IF(dati_pdc!$C1262=5,dati_bdv!$G$2:$G$65536,dati_bdv!$H$2:$H$65536))))),$A1262,dati_bdv!M$2:M$65536)","v":0},{"$f":"SUMIF(IF(dati_pdc!$C1262=1,dati_bdv!$C$2:$C$65536,IF(dati_pdc!$C1262=2,dati_bdv!$D$2:$D$65536,IF(dati_pdc!$C1262=3,dati_bdv!$E$2:$E$65536,IF(dati_pdc!$C1262=4,dati_bdv!$F$2:$F$65536,IF(dati_pdc!$C1262=5,dati_bdv!$G$2:$G$65536,dati_bdv!$H$2:$H$65536))))),$A1262,dati_bdv!N$2:N$65536)","v":0}]
[{"$f":"dati_pdc!A1263","v":0},{"$f":"SUMIF(IF(dati_pdc!$C1263=1,dati_bdv!$C$2:$C$65536,IF(dati_pdc!$C1263=2,dati_bdv!$D$2:$D$65536,IF(dati_pdc!$C1263=3,dati_bdv!$E$2:$E$65536,IF(dati_pdc!$C1263=4,dati_bdv!$F$2:$F$65536,IF(dati_pdc!$C1263=5,dati_bdv!$G$2:$G$65536,dati_bdv!$H$2:$H$65536))))),$A1263,dati_bdv!J$2:J$65536)","v":0},{"$f":"SUMIF(IF(dati_pdc!$C1263=1,dati_bdv!$C$2:$C$65536,IF(dati_pdc!$C1263=2,dati_bdv!$D$2:$D$65536,IF(dati_pdc!$C1263=3,dati_bdv!$E$2:$E$65536,IF(dati_pdc!$C1263=4,dati_bdv!$F$2:$F$65536,IF(dati_pdc!$C1263=5,dati_bdv!$G$2:$G$65536,dati_bdv!$H$2:$H$65536))))),$A1263,dati_bdv!K$2:K$65536)","v":0},{"$f":"SUMIF(IF(dati_pdc!$C1263=1,dati_bdv!$C$2:$C$65536,IF(dati_pdc!$C1263=2,dati_bdv!$D$2:$D$65536,IF(dati_pdc!$C1263=3,dati_bdv!$E$2:$E$65536,IF(dati_pdc!$C1263=4,dati_bdv!$F$2:$F$65536,IF(dati_pdc!$C1263=5,dati_bdv!$G$2:$G$65536,dati_bdv!$H$2:$H$65536))))),$A1263,dati_bdv!L$2:L$65536)","v":0},{"$f":"SUMIF(IF(dati_pdc!$C1263=1,dati_bdv!$C$2:$C$65536,IF(dati_pdc!$C1263=2,dati_bdv!$D$2:$D$65536,IF(dati_pdc!$C1263=3,dati_bdv!$E$2:$E$65536,IF(dati_pdc!$C1263=4,dati_bdv!$F$2:$F$65536,IF(dati_pdc!$C1263=5,dati_bdv!$G$2:$G$65536,dati_bdv!$H$2:$H$65536))))),$A1263,dati_bdv!M$2:M$65536)","v":0},{"$f":"SUMIF(IF(dati_pdc!$C1263=1,dati_bdv!$C$2:$C$65536,IF(dati_pdc!$C1263=2,dati_bdv!$D$2:$D$65536,IF(dati_pdc!$C1263=3,dati_bdv!$E$2:$E$65536,IF(dati_pdc!$C1263=4,dati_bdv!$F$2:$F$65536,IF(dati_pdc!$C1263=5,dati_bdv!$G$2:$G$65536,dati_bdv!$H$2:$H$65536))))),$A1263,dati_bdv!N$2:N$65536)","v":0}]
[{"$f":"dati_pdc!A1264","v":0},{"$f":"SUMIF(IF(dati_pdc!$C1264=1,dati_bdv!$C$2:$C$65536,IF(dati_pdc!$C1264=2,dati_bdv!$D$2:$D$65536,IF(dati_pdc!$C1264=3,dati_bdv!$E$2:$E$65536,IF(dati_pdc!$C1264=4,dati_bdv!$F$2:$F$65536,IF(dati_pdc!$C1264=5,dati_bdv!$G$2:$G$65536,dati_bdv!$H$2:$H$65536))))),$A1264,dati_bdv!J$2:J$65536)","v":0},{"$f":"SUMIF(IF(dati_pdc!$C1264=1,dati_bdv!$C$2:$C$65536,IF(dati_pdc!$C1264=2,dati_bdv!$D$2:$D$65536,IF(dati_pdc!$C1264=3,dati_bdv!$E$2:$E$65536,IF(dati_pdc!$C1264=4,dati_bdv!$F$2:$F$65536,IF(dati_pdc!$C1264=5,dati_bdv!$G$2:$G$65536,dati_bdv!$H$2:$H$65536))))),$A1264,dati_bdv!K$2:K$65536)","v":0},{"$f":"SUMIF(IF(dati_pdc!$C1264=1,dati_bdv!$C$2:$C$65536,IF(dati_pdc!$C1264=2,dati_bdv!$D$2:$D$65536,IF(dati_pdc!$C1264=3,dati_bdv!$E$2:$E$65536,IF(dati_pdc!$C1264=4,dati_bdv!$F$2:$F$65536,IF(dati_pdc!$C1264=5,dati_bdv!$G$2:$G$65536,dati_bdv!$H$2:$H$65536))))),$A1264,dati_bdv!L$2:L$65536)","v":0},{"$f":"SUMIF(IF(dati_pdc!$C1264=1,dati_bdv!$C$2:$C$65536,IF(dati_pdc!$C1264=2,dati_bdv!$D$2:$D$65536,IF(dati_pdc!$C1264=3,dati_bdv!$E$2:$E$65536,IF(dati_pdc!$C1264=4,dati_bdv!$F$2:$F$65536,IF(dati_pdc!$C1264=5,dati_bdv!$G$2:$G$65536,dati_bdv!$H$2:$H$65536))))),$A1264,dati_bdv!M$2:M$65536)","v":0},{"$f":"SUMIF(IF(dati_pdc!$C1264=1,dati_bdv!$C$2:$C$65536,IF(dati_pdc!$C1264=2,dati_bdv!$D$2:$D$65536,IF(dati_pdc!$C1264=3,dati_bdv!$E$2:$E$65536,IF(dati_pdc!$C1264=4,dati_bdv!$F$2:$F$65536,IF(dati_pdc!$C1264=5,dati_bdv!$G$2:$G$65536,dati_bdv!$H$2:$H$65536))))),$A1264,dati_bdv!N$2:N$65536)","v":0}]
[{"$f":"dati_pdc!A1265","v":0},{"$f":"SUMIF(IF(dati_pdc!$C1265=1,dati_bdv!$C$2:$C$65536,IF(dati_pdc!$C1265=2,dati_bdv!$D$2:$D$65536,IF(dati_pdc!$C1265=3,dati_bdv!$E$2:$E$65536,IF(dati_pdc!$C1265=4,dati_bdv!$F$2:$F$65536,IF(dati_pdc!$C1265=5,dati_bdv!$G$2:$G$65536,dati_bdv!$H$2:$H$65536))))),$A1265,dati_bdv!J$2:J$65536)","v":0},{"$f":"SUMIF(IF(dati_pdc!$C1265=1,dati_bdv!$C$2:$C$65536,IF(dati_pdc!$C1265=2,dati_bdv!$D$2:$D$65536,IF(dati_pdc!$C1265=3,dati_bdv!$E$2:$E$65536,IF(dati_pdc!$C1265=4,dati_bdv!$F$2:$F$65536,IF(dati_pdc!$C1265=5,dati_bdv!$G$2:$G$65536,dati_bdv!$H$2:$H$65536))))),$A1265,dati_bdv!K$2:K$65536)","v":0},{"$f":"SUMIF(IF(dati_pdc!$C1265=1,dati_bdv!$C$2:$C$65536,IF(dati_pdc!$C1265=2,dati_bdv!$D$2:$D$65536,IF(dati_pdc!$C1265=3,dati_bdv!$E$2:$E$65536,IF(dati_pdc!$C1265=4,dati_bdv!$F$2:$F$65536,IF(dati_pdc!$C1265=5,dati_bdv!$G$2:$G$65536,dati_bdv!$H$2:$H$65536))))),$A1265,dati_bdv!L$2:L$65536)","v":0},{"$f":"SUMIF(IF(dati_pdc!$C1265=1,dati_bdv!$C$2:$C$65536,IF(dati_pdc!$C1265=2,dati_bdv!$D$2:$D$65536,IF(dati_pdc!$C1265=3,dati_bdv!$E$2:$E$65536,IF(dati_pdc!$C1265=4,dati_bdv!$F$2:$F$65536,IF(dati_pdc!$C1265=5,dati_bdv!$G$2:$G$65536,dati_bdv!$H$2:$H$65536))))),$A1265,dati_bdv!M$2:M$65536)","v":0},{"$f":"SUMIF(IF(dati_pdc!$C1265=1,dati_bdv!$C$2:$C$65536,IF(dati_pdc!$C1265=2,dati_bdv!$D$2:$D$65536,IF(dati_pdc!$C1265=3,dati_bdv!$E$2:$E$65536,IF(dati_pdc!$C1265=4,dati_bdv!$F$2:$F$65536,IF(dati_pdc!$C1265=5,dati_bdv!$G$2:$G$65536,dati_bdv!$H$2:$H$65536))))),$A1265,dati_bdv!N$2:N$65536)","v":0}]
[{"$f":"dati_pdc!A1266","v":0},{"$f":"SUMIF(IF(dati_pdc!$C1266=1,dati_bdv!$C$2:$C$65536,IF(dati_pdc!$C1266=2,dati_bdv!$D$2:$D$65536,IF(dati_pdc!$C1266=3,dati_bdv!$E$2:$E$65536,IF(dati_pdc!$C1266=4,dati_bdv!$F$2:$F$65536,IF(dati_pdc!$C1266=5,dati_bdv!$G$2:$G$65536,dati_bdv!$H$2:$H$65536))))),$A1266,dati_bdv!J$2:J$65536)","v":0},{"$f":"SUMIF(IF(dati_pdc!$C1266=1,dati_bdv!$C$2:$C$65536,IF(dati_pdc!$C1266=2,dati_bdv!$D$2:$D$65536,IF(dati_pdc!$C1266=3,dati_bdv!$E$2:$E$65536,IF(dati_pdc!$C1266=4,dati_bdv!$F$2:$F$65536,IF(dati_pdc!$C1266=5,dati_bdv!$G$2:$G$65536,dati_bdv!$H$2:$H$65536))))),$A1266,dati_bdv!K$2:K$65536)","v":0},{"$f":"SUMIF(IF(dati_pdc!$C1266=1,dati_bdv!$C$2:$C$65536,IF(dati_pdc!$C1266=2,dati_bdv!$D$2:$D$65536,IF(dati_pdc!$C1266=3,dati_bdv!$E$2:$E$65536,IF(dati_pdc!$C1266=4,dati_bdv!$F$2:$F$65536,IF(dati_pdc!$C1266=5,dati_bdv!$G$2:$G$65536,dati_bdv!$H$2:$H$65536))))),$A1266,dati_bdv!L$2:L$65536)","v":0},{"$f":"SUMIF(IF(dati_pdc!$C1266=1,dati_bdv!$C$2:$C$65536,IF(dati_pdc!$C1266=2,dati_bdv!$D$2:$D$65536,IF(dati_pdc!$C1266=3,dati_bdv!$E$2:$E$65536,IF(dati_pdc!$C1266=4,dati_bdv!$F$2:$F$65536,IF(dati_pdc!$C1266=5,dati_bdv!$G$2:$G$65536,dati_bdv!$H$2:$H$65536))))),$A1266,dati_bdv!M$2:M$65536)","v":0},{"$f":"SUMIF(IF(dati_pdc!$C1266=1,dati_bdv!$C$2:$C$65536,IF(dati_pdc!$C1266=2,dati_bdv!$D$2:$D$65536,IF(dati_pdc!$C1266=3,dati_bdv!$E$2:$E$65536,IF(dati_pdc!$C1266=4,dati_bdv!$F$2:$F$65536,IF(dati_pdc!$C1266=5,dati_bdv!$G$2:$G$65536,dati_bdv!$H$2:$H$65536))))),$A1266,dati_bdv!N$2:N$65536)","v":0}]
[{"$f":"dati_pdc!A1267","v":0},{"$f":"SUMIF(IF(dati_pdc!$C1267=1,dati_bdv!$C$2:$C$65536,IF(dati_pdc!$C1267=2,dati_bdv!$D$2:$D$65536,IF(dati_pdc!$C1267=3,dati_bdv!$E$2:$E$65536,IF(dati_pdc!$C1267=4,dati_bdv!$F$2:$F$65536,IF(dati_pdc!$C1267=5,dati_bdv!$G$2:$G$65536,dati_bdv!$H$2:$H$65536))))),$A1267,dati_bdv!J$2:J$65536)","v":0},{"$f":"SUMIF(IF(dati_pdc!$C1267=1,dati_bdv!$C$2:$C$65536,IF(dati_pdc!$C1267=2,dati_bdv!$D$2:$D$65536,IF(dati_pdc!$C1267=3,dati_bdv!$E$2:$E$65536,IF(dati_pdc!$C1267=4,dati_bdv!$F$2:$F$65536,IF(dati_pdc!$C1267=5,dati_bdv!$G$2:$G$65536,dati_bdv!$H$2:$H$65536))))),$A1267,dati_bdv!K$2:K$65536)","v":0},{"$f":"SUMIF(IF(dati_pdc!$C1267=1,dati_bdv!$C$2:$C$65536,IF(dati_pdc!$C1267=2,dati_bdv!$D$2:$D$65536,IF(dati_pdc!$C1267=3,dati_bdv!$E$2:$E$65536,IF(dati_pdc!$C1267=4,dati_bdv!$F$2:$F$65536,IF(dati_pdc!$C1267=5,dati_bdv!$G$2:$G$65536,dati_bdv!$H$2:$H$65536))))),$A1267,dati_bdv!L$2:L$65536)","v":0},{"$f":"SUMIF(IF(dati_pdc!$C1267=1,dati_bdv!$C$2:$C$65536,IF(dati_pdc!$C1267=2,dati_bdv!$D$2:$D$65536,IF(dati_pdc!$C1267=3,dati_bdv!$E$2:$E$65536,IF(dati_pdc!$C1267=4,dati_bdv!$F$2:$F$65536,IF(dati_pdc!$C1267=5,dati_bdv!$G$2:$G$65536,dati_bdv!$H$2:$H$65536))))),$A1267,dati_bdv!M$2:M$65536)","v":0},{"$f":"SUMIF(IF(dati_pdc!$C1267=1,dati_bdv!$C$2:$C$65536,IF(dati_pdc!$C1267=2,dati_bdv!$D$2:$D$65536,IF(dati_pdc!$C1267=3,dati_bdv!$E$2:$E$65536,IF(dati_pdc!$C1267=4,dati_bdv!$F$2:$F$65536,IF(dati_pdc!$C1267=5,dati_bdv!$G$2:$G$65536,dati_bdv!$H$2:$H$65536))))),$A1267,dati_bdv!N$2:N$65536)","v":0}]
[{"$f":"dati_pdc!A1268","v":0},{"$f":"SUMIF(IF(dati_pdc!$C1268=1,dati_bdv!$C$2:$C$65536,IF(dati_pdc!$C1268=2,dati_bdv!$D$2:$D$65536,IF(dati_pdc!$C1268=3,dati_bdv!$E$2:$E$65536,IF(dati_pdc!$C1268=4,dati_bdv!$F$2:$F$65536,IF(dati_pdc!$C1268=5,dati_bdv!$G$2:$G$65536,dati_bdv!$H$2:$H$65536))))),$A1268,dati_bdv!J$2:J$65536)","v":0},{"$f":"SUMIF(IF(dati_pdc!$C1268=1,dati_bdv!$C$2:$C$65536,IF(dati_pdc!$C1268=2,dati_bdv!$D$2:$D$65536,IF(dati_pdc!$C1268=3,dati_bdv!$E$2:$E$65536,IF(dati_pdc!$C1268=4,dati_bdv!$F$2:$F$65536,IF(dati_pdc!$C1268=5,dati_bdv!$G$2:$G$65536,dati_bdv!$H$2:$H$65536))))),$A1268,dati_bdv!K$2:K$65536)","v":0},{"$f":"SUMIF(IF(dati_pdc!$C1268=1,dati_bdv!$C$2:$C$65536,IF(dati_pdc!$C1268=2,dati_bdv!$D$2:$D$65536,IF(dati_pdc!$C1268=3,dati_bdv!$E$2:$E$65536,IF(dati_pdc!$C1268=4,dati_bdv!$F$2:$F$65536,IF(dati_pdc!$C1268=5,dati_bdv!$G$2:$G$65536,dati_bdv!$H$2:$H$65536))))),$A1268,dati_bdv!L$2:L$65536)","v":0},{"$f":"SUMIF(IF(dati_pdc!$C1268=1,dati_bdv!$C$2:$C$65536,IF(dati_pdc!$C1268=2,dati_bdv!$D$2:$D$65536,IF(dati_pdc!$C1268=3,dati_bdv!$E$2:$E$65536,IF(dati_pdc!$C1268=4,dati_bdv!$F$2:$F$65536,IF(dati_pdc!$C1268=5,dati_bdv!$G$2:$G$65536,dati_bdv!$H$2:$H$65536))))),$A1268,dati_bdv!M$2:M$65536)","v":0},{"$f":"SUMIF(IF(dati_pdc!$C1268=1,dati_bdv!$C$2:$C$65536,IF(dati_pdc!$C1268=2,dati_bdv!$D$2:$D$65536,IF(dati_pdc!$C1268=3,dati_bdv!$E$2:$E$65536,IF(dati_pdc!$C1268=4,dati_bdv!$F$2:$F$65536,IF(dati_pdc!$C1268=5,dati_bdv!$G$2:$G$65536,dati_bdv!$H$2:$H$65536))))),$A1268,dati_bdv!N$2:N$65536)","v":0}]
[{"$f":"dati_pdc!A1269","v":0},{"$f":"SUMIF(IF(dati_pdc!$C1269=1,dati_bdv!$C$2:$C$65536,IF(dati_pdc!$C1269=2,dati_bdv!$D$2:$D$65536,IF(dati_pdc!$C1269=3,dati_bdv!$E$2:$E$65536,IF(dati_pdc!$C1269=4,dati_bdv!$F$2:$F$65536,IF(dati_pdc!$C1269=5,dati_bdv!$G$2:$G$65536,dati_bdv!$H$2:$H$65536))))),$A1269,dati_bdv!J$2:J$65536)","v":0},{"$f":"SUMIF(IF(dati_pdc!$C1269=1,dati_bdv!$C$2:$C$65536,IF(dati_pdc!$C1269=2,dati_bdv!$D$2:$D$65536,IF(dati_pdc!$C1269=3,dati_bdv!$E$2:$E$65536,IF(dati_pdc!$C1269=4,dati_bdv!$F$2:$F$65536,IF(dati_pdc!$C1269=5,dati_bdv!$G$2:$G$65536,dati_bdv!$H$2:$H$65536))))),$A1269,dati_bdv!K$2:K$65536)","v":0},{"$f":"SUMIF(IF(dati_pdc!$C1269=1,dati_bdv!$C$2:$C$65536,IF(dati_pdc!$C1269=2,dati_bdv!$D$2:$D$65536,IF(dati_pdc!$C1269=3,dati_bdv!$E$2:$E$65536,IF(dati_pdc!$C1269=4,dati_bdv!$F$2:$F$65536,IF(dati_pdc!$C1269=5,dati_bdv!$G$2:$G$65536,dati_bdv!$H$2:$H$65536))))),$A1269,dati_bdv!L$2:L$65536)","v":0},{"$f":"SUMIF(IF(dati_pdc!$C1269=1,dati_bdv!$C$2:$C$65536,IF(dati_pdc!$C1269=2,dati_bdv!$D$2:$D$65536,IF(dati_pdc!$C1269=3,dati_bdv!$E$2:$E$65536,IF(dati_pdc!$C1269=4,dati_bdv!$F$2:$F$65536,IF(dati_pdc!$C1269=5,dati_bdv!$G$2:$G$65536,dati_bdv!$H$2:$H$65536))))),$A1269,dati_bdv!M$2:M$65536)","v":0},{"$f":"SUMIF(IF(dati_pdc!$C1269=1,dati_bdv!$C$2:$C$65536,IF(dati_pdc!$C1269=2,dati_bdv!$D$2:$D$65536,IF(dati_pdc!$C1269=3,dati_bdv!$E$2:$E$65536,IF(dati_pdc!$C1269=4,dati_bdv!$F$2:$F$65536,IF(dati_pdc!$C1269=5,dati_bdv!$G$2:$G$65536,dati_bdv!$H$2:$H$65536))))),$A1269,dati_bdv!N$2:N$65536)","v":0}]
[{"$f":"dati_pdc!A1270","v":0},{"$f":"SUMIF(IF(dati_pdc!$C1270=1,dati_bdv!$C$2:$C$65536,IF(dati_pdc!$C1270=2,dati_bdv!$D$2:$D$65536,IF(dati_pdc!$C1270=3,dati_bdv!$E$2:$E$65536,IF(dati_pdc!$C1270=4,dati_bdv!$F$2:$F$65536,IF(dati_pdc!$C1270=5,dati_bdv!$G$2:$G$65536,dati_bdv!$H$2:$H$65536))))),$A1270,dati_bdv!J$2:J$65536)","v":0},{"$f":"SUMIF(IF(dati_pdc!$C1270=1,dati_bdv!$C$2:$C$65536,IF(dati_pdc!$C1270=2,dati_bdv!$D$2:$D$65536,IF(dati_pdc!$C1270=3,dati_bdv!$E$2:$E$65536,IF(dati_pdc!$C1270=4,dati_bdv!$F$2:$F$65536,IF(dati_pdc!$C1270=5,dati_bdv!$G$2:$G$65536,dati_bdv!$H$2:$H$65536))))),$A1270,dati_bdv!K$2:K$65536)","v":0},{"$f":"SUMIF(IF(dati_pdc!$C1270=1,dati_bdv!$C$2:$C$65536,IF(dati_pdc!$C1270=2,dati_bdv!$D$2:$D$65536,IF(dati_pdc!$C1270=3,dati_bdv!$E$2:$E$65536,IF(dati_pdc!$C1270=4,dati_bdv!$F$2:$F$65536,IF(dati_pdc!$C1270=5,dati_bdv!$G$2:$G$65536,dati_bdv!$H$2:$H$65536))))),$A1270,dati_bdv!L$2:L$65536)","v":0},{"$f":"SUMIF(IF(dati_pdc!$C1270=1,dati_bdv!$C$2:$C$65536,IF(dati_pdc!$C1270=2,dati_bdv!$D$2:$D$65536,IF(dati_pdc!$C1270=3,dati_bdv!$E$2:$E$65536,IF(dati_pdc!$C1270=4,dati_bdv!$F$2:$F$65536,IF(dati_pdc!$C1270=5,dati_bdv!$G$2:$G$65536,dati_bdv!$H$2:$H$65536))))),$A1270,dati_bdv!M$2:M$65536)","v":0},{"$f":"SUMIF(IF(dati_pdc!$C1270=1,dati_bdv!$C$2:$C$65536,IF(dati_pdc!$C1270=2,dati_bdv!$D$2:$D$65536,IF(dati_pdc!$C1270=3,dati_bdv!$E$2:$E$65536,IF(dati_pdc!$C1270=4,dati_bdv!$F$2:$F$65536,IF(dati_pdc!$C1270=5,dati_bdv!$G$2:$G$65536,dati_bdv!$H$2:$H$65536))))),$A1270,dati_bdv!N$2:N$65536)","v":0}]
[{"$f":"dati_pdc!A1271","v":0},{"$f":"SUMIF(IF(dati_pdc!$C1271=1,dati_bdv!$C$2:$C$65536,IF(dati_pdc!$C1271=2,dati_bdv!$D$2:$D$65536,IF(dati_pdc!$C1271=3,dati_bdv!$E$2:$E$65536,IF(dati_pdc!$C1271=4,dati_bdv!$F$2:$F$65536,IF(dati_pdc!$C1271=5,dati_bdv!$G$2:$G$65536,dati_bdv!$H$2:$H$65536))))),$A1271,dati_bdv!J$2:J$65536)","v":0},{"$f":"SUMIF(IF(dati_pdc!$C1271=1,dati_bdv!$C$2:$C$65536,IF(dati_pdc!$C1271=2,dati_bdv!$D$2:$D$65536,IF(dati_pdc!$C1271=3,dati_bdv!$E$2:$E$65536,IF(dati_pdc!$C1271=4,dati_bdv!$F$2:$F$65536,IF(dati_pdc!$C1271=5,dati_bdv!$G$2:$G$65536,dati_bdv!$H$2:$H$65536))))),$A1271,dati_bdv!K$2:K$65536)","v":0},{"$f":"SUMIF(IF(dati_pdc!$C1271=1,dati_bdv!$C$2:$C$65536,IF(dati_pdc!$C1271=2,dati_bdv!$D$2:$D$65536,IF(dati_pdc!$C1271=3,dati_bdv!$E$2:$E$65536,IF(dati_pdc!$C1271=4,dati_bdv!$F$2:$F$65536,IF(dati_pdc!$C1271=5,dati_bdv!$G$2:$G$65536,dati_bdv!$H$2:$H$65536))))),$A1271,dati_bdv!L$2:L$65536)","v":0},{"$f":"SUMIF(IF(dati_pdc!$C1271=1,dati_bdv!$C$2:$C$65536,IF(dati_pdc!$C1271=2,dati_bdv!$D$2:$D$65536,IF(dati_pdc!$C1271=3,dati_bdv!$E$2:$E$65536,IF(dati_pdc!$C1271=4,dati_bdv!$F$2:$F$65536,IF(dati_pdc!$C1271=5,dati_bdv!$G$2:$G$65536,dati_bdv!$H$2:$H$65536))))),$A1271,dati_bdv!M$2:M$65536)","v":0},{"$f":"SUMIF(IF(dati_pdc!$C1271=1,dati_bdv!$C$2:$C$65536,IF(dati_pdc!$C1271=2,dati_bdv!$D$2:$D$65536,IF(dati_pdc!$C1271=3,dati_bdv!$E$2:$E$65536,IF(dati_pdc!$C1271=4,dati_bdv!$F$2:$F$65536,IF(dati_pdc!$C1271=5,dati_bdv!$G$2:$G$65536,dati_bdv!$H$2:$H$65536))))),$A1271,dati_bdv!N$2:N$65536)","v":0}]
[{"$f":"dati_pdc!A1272","v":0},{"$f":"SUMIF(IF(dati_pdc!$C1272=1,dati_bdv!$C$2:$C$65536,IF(dati_pdc!$C1272=2,dati_bdv!$D$2:$D$65536,IF(dati_pdc!$C1272=3,dati_bdv!$E$2:$E$65536,IF(dati_pdc!$C1272=4,dati_bdv!$F$2:$F$65536,IF(dati_pdc!$C1272=5,dati_bdv!$G$2:$G$65536,dati_bdv!$H$2:$H$65536))))),$A1272,dati_bdv!J$2:J$65536)","v":0},{"$f":"SUMIF(IF(dati_pdc!$C1272=1,dati_bdv!$C$2:$C$65536,IF(dati_pdc!$C1272=2,dati_bdv!$D$2:$D$65536,IF(dati_pdc!$C1272=3,dati_bdv!$E$2:$E$65536,IF(dati_pdc!$C1272=4,dati_bdv!$F$2:$F$65536,IF(dati_pdc!$C1272=5,dati_bdv!$G$2:$G$65536,dati_bdv!$H$2:$H$65536))))),$A1272,dati_bdv!K$2:K$65536)","v":0},{"$f":"SUMIF(IF(dati_pdc!$C1272=1,dati_bdv!$C$2:$C$65536,IF(dati_pdc!$C1272=2,dati_bdv!$D$2:$D$65536,IF(dati_pdc!$C1272=3,dati_bdv!$E$2:$E$65536,IF(dati_pdc!$C1272=4,dati_bdv!$F$2:$F$65536,IF(dati_pdc!$C1272=5,dati_bdv!$G$2:$G$65536,dati_bdv!$H$2:$H$65536))))),$A1272,dati_bdv!L$2:L$65536)","v":0},{"$f":"SUMIF(IF(dati_pdc!$C1272=1,dati_bdv!$C$2:$C$65536,IF(dati_pdc!$C1272=2,dati_bdv!$D$2:$D$65536,IF(dati_pdc!$C1272=3,dati_bdv!$E$2:$E$65536,IF(dati_pdc!$C1272=4,dati_bdv!$F$2:$F$65536,IF(dati_pdc!$C1272=5,dati_bdv!$G$2:$G$65536,dati_bdv!$H$2:$H$65536))))),$A1272,dati_bdv!M$2:M$65536)","v":0},{"$f":"SUMIF(IF(dati_pdc!$C1272=1,dati_bdv!$C$2:$C$65536,IF(dati_pdc!$C1272=2,dati_bdv!$D$2:$D$65536,IF(dati_pdc!$C1272=3,dati_bdv!$E$2:$E$65536,IF(dati_pdc!$C1272=4,dati_bdv!$F$2:$F$65536,IF(dati_pdc!$C1272=5,dati_bdv!$G$2:$G$65536,dati_bdv!$H$2:$H$65536))))),$A1272,dati_bdv!N$2:N$65536)","v":0}]
[{"$f":"dati_pdc!A1273","v":0},{"$f":"SUMIF(IF(dati_pdc!$C1273=1,dati_bdv!$C$2:$C$65536,IF(dati_pdc!$C1273=2,dati_bdv!$D$2:$D$65536,IF(dati_pdc!$C1273=3,dati_bdv!$E$2:$E$65536,IF(dati_pdc!$C1273=4,dati_bdv!$F$2:$F$65536,IF(dati_pdc!$C1273=5,dati_bdv!$G$2:$G$65536,dati_bdv!$H$2:$H$65536))))),$A1273,dati_bdv!J$2:J$65536)","v":0},{"$f":"SUMIF(IF(dati_pdc!$C1273=1,dati_bdv!$C$2:$C$65536,IF(dati_pdc!$C1273=2,dati_bdv!$D$2:$D$65536,IF(dati_pdc!$C1273=3,dati_bdv!$E$2:$E$65536,IF(dati_pdc!$C1273=4,dati_bdv!$F$2:$F$65536,IF(dati_pdc!$C1273=5,dati_bdv!$G$2:$G$65536,dati_bdv!$H$2:$H$65536))))),$A1273,dati_bdv!K$2:K$65536)","v":0},{"$f":"SUMIF(IF(dati_pdc!$C1273=1,dati_bdv!$C$2:$C$65536,IF(dati_pdc!$C1273=2,dati_bdv!$D$2:$D$65536,IF(dati_pdc!$C1273=3,dati_bdv!$E$2:$E$65536,IF(dati_pdc!$C1273=4,dati_bdv!$F$2:$F$65536,IF(dati_pdc!$C1273=5,dati_bdv!$G$2:$G$65536,dati_bdv!$H$2:$H$65536))))),$A1273,dati_bdv!L$2:L$65536)","v":0},{"$f":"SUMIF(IF(dati_pdc!$C1273=1,dati_bdv!$C$2:$C$65536,IF(dati_pdc!$C1273=2,dati_bdv!$D$2:$D$65536,IF(dati_pdc!$C1273=3,dati_bdv!$E$2:$E$65536,IF(dati_pdc!$C1273=4,dati_bdv!$F$2:$F$65536,IF(dati_pdc!$C1273=5,dati_bdv!$G$2:$G$65536,dati_bdv!$H$2:$H$65536))))),$A1273,dati_bdv!M$2:M$65536)","v":0},{"$f":"SUMIF(IF(dati_pdc!$C1273=1,dati_bdv!$C$2:$C$65536,IF(dati_pdc!$C1273=2,dati_bdv!$D$2:$D$65536,IF(dati_pdc!$C1273=3,dati_bdv!$E$2:$E$65536,IF(dati_pdc!$C1273=4,dati_bdv!$F$2:$F$65536,IF(dati_pdc!$C1273=5,dati_bdv!$G$2:$G$65536,dati_bdv!$H$2:$H$65536))))),$A1273,dati_bdv!N$2:N$65536)","v":0}]
[{"$f":"dati_pdc!A1274","v":0},{"$f":"SUMIF(IF(dati_pdc!$C1274=1,dati_bdv!$C$2:$C$65536,IF(dati_pdc!$C1274=2,dati_bdv!$D$2:$D$65536,IF(dati_pdc!$C1274=3,dati_bdv!$E$2:$E$65536,IF(dati_pdc!$C1274=4,dati_bdv!$F$2:$F$65536,IF(dati_pdc!$C1274=5,dati_bdv!$G$2:$G$65536,dati_bdv!$H$2:$H$65536))))),$A1274,dati_bdv!J$2:J$65536)","v":0},{"$f":"SUMIF(IF(dati_pdc!$C1274=1,dati_bdv!$C$2:$C$65536,IF(dati_pdc!$C1274=2,dati_bdv!$D$2:$D$65536,IF(dati_pdc!$C1274=3,dati_bdv!$E$2:$E$65536,IF(dati_pdc!$C1274=4,dati_bdv!$F$2:$F$65536,IF(dati_pdc!$C1274=5,dati_bdv!$G$2:$G$65536,dati_bdv!$H$2:$H$65536))))),$A1274,dati_bdv!K$2:K$65536)","v":0},{"$f":"SUMIF(IF(dati_pdc!$C1274=1,dati_bdv!$C$2:$C$65536,IF(dati_pdc!$C1274=2,dati_bdv!$D$2:$D$65536,IF(dati_pdc!$C1274=3,dati_bdv!$E$2:$E$65536,IF(dati_pdc!$C1274=4,dati_bdv!$F$2:$F$65536,IF(dati_pdc!$C1274=5,dati_bdv!$G$2:$G$65536,dati_bdv!$H$2:$H$65536))))),$A1274,dati_bdv!L$2:L$65536)","v":0},{"$f":"SUMIF(IF(dati_pdc!$C1274=1,dati_bdv!$C$2:$C$65536,IF(dati_pdc!$C1274=2,dati_bdv!$D$2:$D$65536,IF(dati_pdc!$C1274=3,dati_bdv!$E$2:$E$65536,IF(dati_pdc!$C1274=4,dati_bdv!$F$2:$F$65536,IF(dati_pdc!$C1274=5,dati_bdv!$G$2:$G$65536,dati_bdv!$H$2:$H$65536))))),$A1274,dati_bdv!M$2:M$65536)","v":0},{"$f":"SUMIF(IF(dati_pdc!$C1274=1,dati_bdv!$C$2:$C$65536,IF(dati_pdc!$C1274=2,dati_bdv!$D$2:$D$65536,IF(dati_pdc!$C1274=3,dati_bdv!$E$2:$E$65536,IF(dati_pdc!$C1274=4,dati_bdv!$F$2:$F$65536,IF(dati_pdc!$C1274=5,dati_bdv!$G$2:$G$65536,dati_bdv!$H$2:$H$65536))))),$A1274,dati_bdv!N$2:N$65536)","v":0}]
[{"$f":"dati_pdc!A1275","v":0},{"$f":"SUMIF(IF(dati_pdc!$C1275=1,dati_bdv!$C$2:$C$65536,IF(dati_pdc!$C1275=2,dati_bdv!$D$2:$D$65536,IF(dati_pdc!$C1275=3,dati_bdv!$E$2:$E$65536,IF(dati_pdc!$C1275=4,dati_bdv!$F$2:$F$65536,IF(dati_pdc!$C1275=5,dati_bdv!$G$2:$G$65536,dati_bdv!$H$2:$H$65536))))),$A1275,dati_bdv!J$2:J$65536)","v":0},{"$f":"SUMIF(IF(dati_pdc!$C1275=1,dati_bdv!$C$2:$C$65536,IF(dati_pdc!$C1275=2,dati_bdv!$D$2:$D$65536,IF(dati_pdc!$C1275=3,dati_bdv!$E$2:$E$65536,IF(dati_pdc!$C1275=4,dati_bdv!$F$2:$F$65536,IF(dati_pdc!$C1275=5,dati_bdv!$G$2:$G$65536,dati_bdv!$H$2:$H$65536))))),$A1275,dati_bdv!K$2:K$65536)","v":0},{"$f":"SUMIF(IF(dati_pdc!$C1275=1,dati_bdv!$C$2:$C$65536,IF(dati_pdc!$C1275=2,dati_bdv!$D$2:$D$65536,IF(dati_pdc!$C1275=3,dati_bdv!$E$2:$E$65536,IF(dati_pdc!$C1275=4,dati_bdv!$F$2:$F$65536,IF(dati_pdc!$C1275=5,dati_bdv!$G$2:$G$65536,dati_bdv!$H$2:$H$65536))))),$A1275,dati_bdv!L$2:L$65536)","v":0},{"$f":"SUMIF(IF(dati_pdc!$C1275=1,dati_bdv!$C$2:$C$65536,IF(dati_pdc!$C1275=2,dati_bdv!$D$2:$D$65536,IF(dati_pdc!$C1275=3,dati_bdv!$E$2:$E$65536,IF(dati_pdc!$C1275=4,dati_bdv!$F$2:$F$65536,IF(dati_pdc!$C1275=5,dati_bdv!$G$2:$G$65536,dati_bdv!$H$2:$H$65536))))),$A1275,dati_bdv!M$2:M$65536)","v":0},{"$f":"SUMIF(IF(dati_pdc!$C1275=1,dati_bdv!$C$2:$C$65536,IF(dati_pdc!$C1275=2,dati_bdv!$D$2:$D$65536,IF(dati_pdc!$C1275=3,dati_bdv!$E$2:$E$65536,IF(dati_pdc!$C1275=4,dati_bdv!$F$2:$F$65536,IF(dati_pdc!$C1275=5,dati_bdv!$G$2:$G$65536,dati_bdv!$H$2:$H$65536))))),$A1275,dati_bdv!N$2:N$65536)","v":0}]
[{"$f":"dati_pdc!A1276","v":0},{"$f":"SUMIF(IF(dati_pdc!$C1276=1,dati_bdv!$C$2:$C$65536,IF(dati_pdc!$C1276=2,dati_bdv!$D$2:$D$65536,IF(dati_pdc!$C1276=3,dati_bdv!$E$2:$E$65536,IF(dati_pdc!$C1276=4,dati_bdv!$F$2:$F$65536,IF(dati_pdc!$C1276=5,dati_bdv!$G$2:$G$65536,dati_bdv!$H$2:$H$65536))))),$A1276,dati_bdv!J$2:J$65536)","v":0},{"$f":"SUMIF(IF(dati_pdc!$C1276=1,dati_bdv!$C$2:$C$65536,IF(dati_pdc!$C1276=2,dati_bdv!$D$2:$D$65536,IF(dati_pdc!$C1276=3,dati_bdv!$E$2:$E$65536,IF(dati_pdc!$C1276=4,dati_bdv!$F$2:$F$65536,IF(dati_pdc!$C1276=5,dati_bdv!$G$2:$G$65536,dati_bdv!$H$2:$H$65536))))),$A1276,dati_bdv!K$2:K$65536)","v":0},{"$f":"SUMIF(IF(dati_pdc!$C1276=1,dati_bdv!$C$2:$C$65536,IF(dati_pdc!$C1276=2,dati_bdv!$D$2:$D$65536,IF(dati_pdc!$C1276=3,dati_bdv!$E$2:$E$65536,IF(dati_pdc!$C1276=4,dati_bdv!$F$2:$F$65536,IF(dati_pdc!$C1276=5,dati_bdv!$G$2:$G$65536,dati_bdv!$H$2:$H$65536))))),$A1276,dati_bdv!L$2:L$65536)","v":0},{"$f":"SUMIF(IF(dati_pdc!$C1276=1,dati_bdv!$C$2:$C$65536,IF(dati_pdc!$C1276=2,dati_bdv!$D$2:$D$65536,IF(dati_pdc!$C1276=3,dati_bdv!$E$2:$E$65536,IF(dati_pdc!$C1276=4,dati_bdv!$F$2:$F$65536,IF(dati_pdc!$C1276=5,dati_bdv!$G$2:$G$65536,dati_bdv!$H$2:$H$65536))))),$A1276,dati_bdv!M$2:M$65536)","v":0},{"$f":"SUMIF(IF(dati_pdc!$C1276=1,dati_bdv!$C$2:$C$65536,IF(dati_pdc!$C1276=2,dati_bdv!$D$2:$D$65536,IF(dati_pdc!$C1276=3,dati_bdv!$E$2:$E$65536,IF(dati_pdc!$C1276=4,dati_bdv!$F$2:$F$65536,IF(dati_pdc!$C1276=5,dati_bdv!$G$2:$G$65536,dati_bdv!$H$2:$H$65536))))),$A1276,dati_bdv!N$2:N$65536)","v":0}]
[{"$f":"dati_pdc!A1277","v":0},{"$f":"SUMIF(IF(dati_pdc!$C1277=1,dati_bdv!$C$2:$C$65536,IF(dati_pdc!$C1277=2,dati_bdv!$D$2:$D$65536,IF(dati_pdc!$C1277=3,dati_bdv!$E$2:$E$65536,IF(dati_pdc!$C1277=4,dati_bdv!$F$2:$F$65536,IF(dati_pdc!$C1277=5,dati_bdv!$G$2:$G$65536,dati_bdv!$H$2:$H$65536))))),$A1277,dati_bdv!J$2:J$65536)","v":0},{"$f":"SUMIF(IF(dati_pdc!$C1277=1,dati_bdv!$C$2:$C$65536,IF(dati_pdc!$C1277=2,dati_bdv!$D$2:$D$65536,IF(dati_pdc!$C1277=3,dati_bdv!$E$2:$E$65536,IF(dati_pdc!$C1277=4,dati_bdv!$F$2:$F$65536,IF(dati_pdc!$C1277=5,dati_bdv!$G$2:$G$65536,dati_bdv!$H$2:$H$65536))))),$A1277,dati_bdv!K$2:K$65536)","v":0},{"$f":"SUMIF(IF(dati_pdc!$C1277=1,dati_bdv!$C$2:$C$65536,IF(dati_pdc!$C1277=2,dati_bdv!$D$2:$D$65536,IF(dati_pdc!$C1277=3,dati_bdv!$E$2:$E$65536,IF(dati_pdc!$C1277=4,dati_bdv!$F$2:$F$65536,IF(dati_pdc!$C1277=5,dati_bdv!$G$2:$G$65536,dati_bdv!$H$2:$H$65536))))),$A1277,dati_bdv!L$2:L$65536)","v":0},{"$f":"SUMIF(IF(dati_pdc!$C1277=1,dati_bdv!$C$2:$C$65536,IF(dati_pdc!$C1277=2,dati_bdv!$D$2:$D$65536,IF(dati_pdc!$C1277=3,dati_bdv!$E$2:$E$65536,IF(dati_pdc!$C1277=4,dati_bdv!$F$2:$F$65536,IF(dati_pdc!$C1277=5,dati_bdv!$G$2:$G$65536,dati_bdv!$H$2:$H$65536))))),$A1277,dati_bdv!M$2:M$65536)","v":0},{"$f":"SUMIF(IF(dati_pdc!$C1277=1,dati_bdv!$C$2:$C$65536,IF(dati_pdc!$C1277=2,dati_bdv!$D$2:$D$65536,IF(dati_pdc!$C1277=3,dati_bdv!$E$2:$E$65536,IF(dati_pdc!$C1277=4,dati_bdv!$F$2:$F$65536,IF(dati_pdc!$C1277=5,dati_bdv!$G$2:$G$65536,dati_bdv!$H$2:$H$65536))))),$A1277,dati_bdv!N$2:N$65536)","v":0}]
[{"$f":"dati_pdc!A1278","v":0},{"$f":"SUMIF(IF(dati_pdc!$C1278=1,dati_bdv!$C$2:$C$65536,IF(dati_pdc!$C1278=2,dati_bdv!$D$2:$D$65536,IF(dati_pdc!$C1278=3,dati_bdv!$E$2:$E$65536,IF(dati_pdc!$C1278=4,dati_bdv!$F$2:$F$65536,IF(dati_pdc!$C1278=5,dati_bdv!$G$2:$G$65536,dati_bdv!$H$2:$H$65536))))),$A1278,dati_bdv!J$2:J$65536)","v":0},{"$f":"SUMIF(IF(dati_pdc!$C1278=1,dati_bdv!$C$2:$C$65536,IF(dati_pdc!$C1278=2,dati_bdv!$D$2:$D$65536,IF(dati_pdc!$C1278=3,dati_bdv!$E$2:$E$65536,IF(dati_pdc!$C1278=4,dati_bdv!$F$2:$F$65536,IF(dati_pdc!$C1278=5,dati_bdv!$G$2:$G$65536,dati_bdv!$H$2:$H$65536))))),$A1278,dati_bdv!K$2:K$65536)","v":0},{"$f":"SUMIF(IF(dati_pdc!$C1278=1,dati_bdv!$C$2:$C$65536,IF(dati_pdc!$C1278=2,dati_bdv!$D$2:$D$65536,IF(dati_pdc!$C1278=3,dati_bdv!$E$2:$E$65536,IF(dati_pdc!$C1278=4,dati_bdv!$F$2:$F$65536,IF(dati_pdc!$C1278=5,dati_bdv!$G$2:$G$65536,dati_bdv!$H$2:$H$65536))))),$A1278,dati_bdv!L$2:L$65536)","v":0},{"$f":"SUMIF(IF(dati_pdc!$C1278=1,dati_bdv!$C$2:$C$65536,IF(dati_pdc!$C1278=2,dati_bdv!$D$2:$D$65536,IF(dati_pdc!$C1278=3,dati_bdv!$E$2:$E$65536,IF(dati_pdc!$C1278=4,dati_bdv!$F$2:$F$65536,IF(dati_pdc!$C1278=5,dati_bdv!$G$2:$G$65536,dati_bdv!$H$2:$H$65536))))),$A1278,dati_bdv!M$2:M$65536)","v":0},{"$f":"SUMIF(IF(dati_pdc!$C1278=1,dati_bdv!$C$2:$C$65536,IF(dati_pdc!$C1278=2,dati_bdv!$D$2:$D$65536,IF(dati_pdc!$C1278=3,dati_bdv!$E$2:$E$65536,IF(dati_pdc!$C1278=4,dati_bdv!$F$2:$F$65536,IF(dati_pdc!$C1278=5,dati_bdv!$G$2:$G$65536,dati_bdv!$H$2:$H$65536))))),$A1278,dati_bdv!N$2:N$65536)","v":0}]
[{"$f":"dati_pdc!A1279","v":0},{"$f":"SUMIF(IF(dati_pdc!$C1279=1,dati_bdv!$C$2:$C$65536,IF(dati_pdc!$C1279=2,dati_bdv!$D$2:$D$65536,IF(dati_pdc!$C1279=3,dati_bdv!$E$2:$E$65536,IF(dati_pdc!$C1279=4,dati_bdv!$F$2:$F$65536,IF(dati_pdc!$C1279=5,dati_bdv!$G$2:$G$65536,dati_bdv!$H$2:$H$65536))))),$A1279,dati_bdv!J$2:J$65536)","v":0},{"$f":"SUMIF(IF(dati_pdc!$C1279=1,dati_bdv!$C$2:$C$65536,IF(dati_pdc!$C1279=2,dati_bdv!$D$2:$D$65536,IF(dati_pdc!$C1279=3,dati_bdv!$E$2:$E$65536,IF(dati_pdc!$C1279=4,dati_bdv!$F$2:$F$65536,IF(dati_pdc!$C1279=5,dati_bdv!$G$2:$G$65536,dati_bdv!$H$2:$H$65536))))),$A1279,dati_bdv!K$2:K$65536)","v":0},{"$f":"SUMIF(IF(dati_pdc!$C1279=1,dati_bdv!$C$2:$C$65536,IF(dati_pdc!$C1279=2,dati_bdv!$D$2:$D$65536,IF(dati_pdc!$C1279=3,dati_bdv!$E$2:$E$65536,IF(dati_pdc!$C1279=4,dati_bdv!$F$2:$F$65536,IF(dati_pdc!$C1279=5,dati_bdv!$G$2:$G$65536,dati_bdv!$H$2:$H$65536))))),$A1279,dati_bdv!L$2:L$65536)","v":0},{"$f":"SUMIF(IF(dati_pdc!$C1279=1,dati_bdv!$C$2:$C$65536,IF(dati_pdc!$C1279=2,dati_bdv!$D$2:$D$65536,IF(dati_pdc!$C1279=3,dati_bdv!$E$2:$E$65536,IF(dati_pdc!$C1279=4,dati_bdv!$F$2:$F$65536,IF(dati_pdc!$C1279=5,dati_bdv!$G$2:$G$65536,dati_bdv!$H$2:$H$65536))))),$A1279,dati_bdv!M$2:M$65536)","v":0},{"$f":"SUMIF(IF(dati_pdc!$C1279=1,dati_bdv!$C$2:$C$65536,IF(dati_pdc!$C1279=2,dati_bdv!$D$2:$D$65536,IF(dati_pdc!$C1279=3,dati_bdv!$E$2:$E$65536,IF(dati_pdc!$C1279=4,dati_bdv!$F$2:$F$65536,IF(dati_pdc!$C1279=5,dati_bdv!$G$2:$G$65536,dati_bdv!$H$2:$H$65536))))),$A1279,dati_bdv!N$2:N$65536)","v":0}]
[{"$f":"dati_pdc!A1280","v":0},{"$f":"SUMIF(IF(dati_pdc!$C1280=1,dati_bdv!$C$2:$C$65536,IF(dati_pdc!$C1280=2,dati_bdv!$D$2:$D$65536,IF(dati_pdc!$C1280=3,dati_bdv!$E$2:$E$65536,IF(dati_pdc!$C1280=4,dati_bdv!$F$2:$F$65536,IF(dati_pdc!$C1280=5,dati_bdv!$G$2:$G$65536,dati_bdv!$H$2:$H$65536))))),$A1280,dati_bdv!J$2:J$65536)","v":0},{"$f":"SUMIF(IF(dati_pdc!$C1280=1,dati_bdv!$C$2:$C$65536,IF(dati_pdc!$C1280=2,dati_bdv!$D$2:$D$65536,IF(dati_pdc!$C1280=3,dati_bdv!$E$2:$E$65536,IF(dati_pdc!$C1280=4,dati_bdv!$F$2:$F$65536,IF(dati_pdc!$C1280=5,dati_bdv!$G$2:$G$65536,dati_bdv!$H$2:$H$65536))))),$A1280,dati_bdv!K$2:K$65536)","v":0},{"$f":"SUMIF(IF(dati_pdc!$C1280=1,dati_bdv!$C$2:$C$65536,IF(dati_pdc!$C1280=2,dati_bdv!$D$2:$D$65536,IF(dati_pdc!$C1280=3,dati_bdv!$E$2:$E$65536,IF(dati_pdc!$C1280=4,dati_bdv!$F$2:$F$65536,IF(dati_pdc!$C1280=5,dati_bdv!$G$2:$G$65536,dati_bdv!$H$2:$H$65536))))),$A1280,dati_bdv!L$2:L$65536)","v":0},{"$f":"SUMIF(IF(dati_pdc!$C1280=1,dati_bdv!$C$2:$C$65536,IF(dati_pdc!$C1280=2,dati_bdv!$D$2:$D$65536,IF(dati_pdc!$C1280=3,dati_bdv!$E$2:$E$65536,IF(dati_pdc!$C1280=4,dati_bdv!$F$2:$F$65536,IF(dati_pdc!$C1280=5,dati_bdv!$G$2:$G$65536,dati_bdv!$H$2:$H$65536))))),$A1280,dati_bdv!M$2:M$65536)","v":0},{"$f":"SUMIF(IF(dati_pdc!$C1280=1,dati_bdv!$C$2:$C$65536,IF(dati_pdc!$C1280=2,dati_bdv!$D$2:$D$65536,IF(dati_pdc!$C1280=3,dati_bdv!$E$2:$E$65536,IF(dati_pdc!$C1280=4,dati_bdv!$F$2:$F$65536,IF(dati_pdc!$C1280=5,dati_bdv!$G$2:$G$65536,dati_bdv!$H$2:$H$65536))))),$A1280,dati_bdv!N$2:N$65536)","v":0}]
[{"$f":"dati_pdc!A1281","v":0},{"$f":"SUMIF(IF(dati_pdc!$C1281=1,dati_bdv!$C$2:$C$65536,IF(dati_pdc!$C1281=2,dati_bdv!$D$2:$D$65536,IF(dati_pdc!$C1281=3,dati_bdv!$E$2:$E$65536,IF(dati_pdc!$C1281=4,dati_bdv!$F$2:$F$65536,IF(dati_pdc!$C1281=5,dati_bdv!$G$2:$G$65536,dati_bdv!$H$2:$H$65536))))),$A1281,dati_bdv!J$2:J$65536)","v":0},{"$f":"SUMIF(IF(dati_pdc!$C1281=1,dati_bdv!$C$2:$C$65536,IF(dati_pdc!$C1281=2,dati_bdv!$D$2:$D$65536,IF(dati_pdc!$C1281=3,dati_bdv!$E$2:$E$65536,IF(dati_pdc!$C1281=4,dati_bdv!$F$2:$F$65536,IF(dati_pdc!$C1281=5,dati_bdv!$G$2:$G$65536,dati_bdv!$H$2:$H$65536))))),$A1281,dati_bdv!K$2:K$65536)","v":0},{"$f":"SUMIF(IF(dati_pdc!$C1281=1,dati_bdv!$C$2:$C$65536,IF(dati_pdc!$C1281=2,dati_bdv!$D$2:$D$65536,IF(dati_pdc!$C1281=3,dati_bdv!$E$2:$E$65536,IF(dati_pdc!$C1281=4,dati_bdv!$F$2:$F$65536,IF(dati_pdc!$C1281=5,dati_bdv!$G$2:$G$65536,dati_bdv!$H$2:$H$65536))))),$A1281,dati_bdv!L$2:L$65536)","v":0},{"$f":"SUMIF(IF(dati_pdc!$C1281=1,dati_bdv!$C$2:$C$65536,IF(dati_pdc!$C1281=2,dati_bdv!$D$2:$D$65536,IF(dati_pdc!$C1281=3,dati_bdv!$E$2:$E$65536,IF(dati_pdc!$C1281=4,dati_bdv!$F$2:$F$65536,IF(dati_pdc!$C1281=5,dati_bdv!$G$2:$G$65536,dati_bdv!$H$2:$H$65536))))),$A1281,dati_bdv!M$2:M$65536)","v":0},{"$f":"SUMIF(IF(dati_pdc!$C1281=1,dati_bdv!$C$2:$C$65536,IF(dati_pdc!$C1281=2,dati_bdv!$D$2:$D$65536,IF(dati_pdc!$C1281=3,dati_bdv!$E$2:$E$65536,IF(dati_pdc!$C1281=4,dati_bdv!$F$2:$F$65536,IF(dati_pdc!$C1281=5,dati_bdv!$G$2:$G$65536,dati_bdv!$H$2:$H$65536))))),$A1281,dati_bdv!N$2:N$65536)","v":0}]
[{"$f":"dati_pdc!A1282","v":0},{"$f":"SUMIF(IF(dati_pdc!$C1282=1,dati_bdv!$C$2:$C$65536,IF(dati_pdc!$C1282=2,dati_bdv!$D$2:$D$65536,IF(dati_pdc!$C1282=3,dati_bdv!$E$2:$E$65536,IF(dati_pdc!$C1282=4,dati_bdv!$F$2:$F$65536,IF(dati_pdc!$C1282=5,dati_bdv!$G$2:$G$65536,dati_bdv!$H$2:$H$65536))))),$A1282,dati_bdv!J$2:J$65536)","v":0},{"$f":"SUMIF(IF(dati_pdc!$C1282=1,dati_bdv!$C$2:$C$65536,IF(dati_pdc!$C1282=2,dati_bdv!$D$2:$D$65536,IF(dati_pdc!$C1282=3,dati_bdv!$E$2:$E$65536,IF(dati_pdc!$C1282=4,dati_bdv!$F$2:$F$65536,IF(dati_pdc!$C1282=5,dati_bdv!$G$2:$G$65536,dati_bdv!$H$2:$H$65536))))),$A1282,dati_bdv!K$2:K$65536)","v":0},{"$f":"SUMIF(IF(dati_pdc!$C1282=1,dati_bdv!$C$2:$C$65536,IF(dati_pdc!$C1282=2,dati_bdv!$D$2:$D$65536,IF(dati_pdc!$C1282=3,dati_bdv!$E$2:$E$65536,IF(dati_pdc!$C1282=4,dati_bdv!$F$2:$F$65536,IF(dati_pdc!$C1282=5,dati_bdv!$G$2:$G$65536,dati_bdv!$H$2:$H$65536))))),$A1282,dati_bdv!L$2:L$65536)","v":0},{"$f":"SUMIF(IF(dati_pdc!$C1282=1,dati_bdv!$C$2:$C$65536,IF(dati_pdc!$C1282=2,dati_bdv!$D$2:$D$65536,IF(dati_pdc!$C1282=3,dati_bdv!$E$2:$E$65536,IF(dati_pdc!$C1282=4,dati_bdv!$F$2:$F$65536,IF(dati_pdc!$C1282=5,dati_bdv!$G$2:$G$65536,dati_bdv!$H$2:$H$65536))))),$A1282,dati_bdv!M$2:M$65536)","v":0},{"$f":"SUMIF(IF(dati_pdc!$C1282=1,dati_bdv!$C$2:$C$65536,IF(dati_pdc!$C1282=2,dati_bdv!$D$2:$D$65536,IF(dati_pdc!$C1282=3,dati_bdv!$E$2:$E$65536,IF(dati_pdc!$C1282=4,dati_bdv!$F$2:$F$65536,IF(dati_pdc!$C1282=5,dati_bdv!$G$2:$G$65536,dati_bdv!$H$2:$H$65536))))),$A1282,dati_bdv!N$2:N$65536)","v":0}]
[{"$f":"dati_pdc!A1283","v":0},{"$f":"SUMIF(IF(dati_pdc!$C1283=1,dati_bdv!$C$2:$C$65536,IF(dati_pdc!$C1283=2,dati_bdv!$D$2:$D$65536,IF(dati_pdc!$C1283=3,dati_bdv!$E$2:$E$65536,IF(dati_pdc!$C1283=4,dati_bdv!$F$2:$F$65536,IF(dati_pdc!$C1283=5,dati_bdv!$G$2:$G$65536,dati_bdv!$H$2:$H$65536))))),$A1283,dati_bdv!J$2:J$65536)","v":0},{"$f":"SUMIF(IF(dati_pdc!$C1283=1,dati_bdv!$C$2:$C$65536,IF(dati_pdc!$C1283=2,dati_bdv!$D$2:$D$65536,IF(dati_pdc!$C1283=3,dati_bdv!$E$2:$E$65536,IF(dati_pdc!$C1283=4,dati_bdv!$F$2:$F$65536,IF(dati_pdc!$C1283=5,dati_bdv!$G$2:$G$65536,dati_bdv!$H$2:$H$65536))))),$A1283,dati_bdv!K$2:K$65536)","v":0},{"$f":"SUMIF(IF(dati_pdc!$C1283=1,dati_bdv!$C$2:$C$65536,IF(dati_pdc!$C1283=2,dati_bdv!$D$2:$D$65536,IF(dati_pdc!$C1283=3,dati_bdv!$E$2:$E$65536,IF(dati_pdc!$C1283=4,dati_bdv!$F$2:$F$65536,IF(dati_pdc!$C1283=5,dati_bdv!$G$2:$G$65536,dati_bdv!$H$2:$H$65536))))),$A1283,dati_bdv!L$2:L$65536)","v":0},{"$f":"SUMIF(IF(dati_pdc!$C1283=1,dati_bdv!$C$2:$C$65536,IF(dati_pdc!$C1283=2,dati_bdv!$D$2:$D$65536,IF(dati_pdc!$C1283=3,dati_bdv!$E$2:$E$65536,IF(dati_pdc!$C1283=4,dati_bdv!$F$2:$F$65536,IF(dati_pdc!$C1283=5,dati_bdv!$G$2:$G$65536,dati_bdv!$H$2:$H$65536))))),$A1283,dati_bdv!M$2:M$65536)","v":0},{"$f":"SUMIF(IF(dati_pdc!$C1283=1,dati_bdv!$C$2:$C$65536,IF(dati_pdc!$C1283=2,dati_bdv!$D$2:$D$65536,IF(dati_pdc!$C1283=3,dati_bdv!$E$2:$E$65536,IF(dati_pdc!$C1283=4,dati_bdv!$F$2:$F$65536,IF(dati_pdc!$C1283=5,dati_bdv!$G$2:$G$65536,dati_bdv!$H$2:$H$65536))))),$A1283,dati_bdv!N$2:N$65536)","v":0}]
[{"$f":"dati_pdc!A1284","v":0},{"$f":"SUMIF(IF(dati_pdc!$C1284=1,dati_bdv!$C$2:$C$65536,IF(dati_pdc!$C1284=2,dati_bdv!$D$2:$D$65536,IF(dati_pdc!$C1284=3,dati_bdv!$E$2:$E$65536,IF(dati_pdc!$C1284=4,dati_bdv!$F$2:$F$65536,IF(dati_pdc!$C1284=5,dati_bdv!$G$2:$G$65536,dati_bdv!$H$2:$H$65536))))),$A1284,dati_bdv!J$2:J$65536)","v":0},{"$f":"SUMIF(IF(dati_pdc!$C1284=1,dati_bdv!$C$2:$C$65536,IF(dati_pdc!$C1284=2,dati_bdv!$D$2:$D$65536,IF(dati_pdc!$C1284=3,dati_bdv!$E$2:$E$65536,IF(dati_pdc!$C1284=4,dati_bdv!$F$2:$F$65536,IF(dati_pdc!$C1284=5,dati_bdv!$G$2:$G$65536,dati_bdv!$H$2:$H$65536))))),$A1284,dati_bdv!K$2:K$65536)","v":0},{"$f":"SUMIF(IF(dati_pdc!$C1284=1,dati_bdv!$C$2:$C$65536,IF(dati_pdc!$C1284=2,dati_bdv!$D$2:$D$65536,IF(dati_pdc!$C1284=3,dati_bdv!$E$2:$E$65536,IF(dati_pdc!$C1284=4,dati_bdv!$F$2:$F$65536,IF(dati_pdc!$C1284=5,dati_bdv!$G$2:$G$65536,dati_bdv!$H$2:$H$65536))))),$A1284,dati_bdv!L$2:L$65536)","v":0},{"$f":"SUMIF(IF(dati_pdc!$C1284=1,dati_bdv!$C$2:$C$65536,IF(dati_pdc!$C1284=2,dati_bdv!$D$2:$D$65536,IF(dati_pdc!$C1284=3,dati_bdv!$E$2:$E$65536,IF(dati_pdc!$C1284=4,dati_bdv!$F$2:$F$65536,IF(dati_pdc!$C1284=5,dati_bdv!$G$2:$G$65536,dati_bdv!$H$2:$H$65536))))),$A1284,dati_bdv!M$2:M$65536)","v":0},{"$f":"SUMIF(IF(dati_pdc!$C1284=1,dati_bdv!$C$2:$C$65536,IF(dati_pdc!$C1284=2,dati_bdv!$D$2:$D$65536,IF(dati_pdc!$C1284=3,dati_bdv!$E$2:$E$65536,IF(dati_pdc!$C1284=4,dati_bdv!$F$2:$F$65536,IF(dati_pdc!$C1284=5,dati_bdv!$G$2:$G$65536,dati_bdv!$H$2:$H$65536))))),$A1284,dati_bdv!N$2:N$65536)","v":0}]
[{"$f":"dati_pdc!A1285","v":0},{"$f":"SUMIF(IF(dati_pdc!$C1285=1,dati_bdv!$C$2:$C$65536,IF(dati_pdc!$C1285=2,dati_bdv!$D$2:$D$65536,IF(dati_pdc!$C1285=3,dati_bdv!$E$2:$E$65536,IF(dati_pdc!$C1285=4,dati_bdv!$F$2:$F$65536,IF(dati_pdc!$C1285=5,dati_bdv!$G$2:$G$65536,dati_bdv!$H$2:$H$65536))))),$A1285,dati_bdv!J$2:J$65536)","v":0},{"$f":"SUMIF(IF(dati_pdc!$C1285=1,dati_bdv!$C$2:$C$65536,IF(dati_pdc!$C1285=2,dati_bdv!$D$2:$D$65536,IF(dati_pdc!$C1285=3,dati_bdv!$E$2:$E$65536,IF(dati_pdc!$C1285=4,dati_bdv!$F$2:$F$65536,IF(dati_pdc!$C1285=5,dati_bdv!$G$2:$G$65536,dati_bdv!$H$2:$H$65536))))),$A1285,dati_bdv!K$2:K$65536)","v":0},{"$f":"SUMIF(IF(dati_pdc!$C1285=1,dati_bdv!$C$2:$C$65536,IF(dati_pdc!$C1285=2,dati_bdv!$D$2:$D$65536,IF(dati_pdc!$C1285=3,dati_bdv!$E$2:$E$65536,IF(dati_pdc!$C1285=4,dati_bdv!$F$2:$F$65536,IF(dati_pdc!$C1285=5,dati_bdv!$G$2:$G$65536,dati_bdv!$H$2:$H$65536))))),$A1285,dati_bdv!L$2:L$65536)","v":0},{"$f":"SUMIF(IF(dati_pdc!$C1285=1,dati_bdv!$C$2:$C$65536,IF(dati_pdc!$C1285=2,dati_bdv!$D$2:$D$65536,IF(dati_pdc!$C1285=3,dati_bdv!$E$2:$E$65536,IF(dati_pdc!$C1285=4,dati_bdv!$F$2:$F$65536,IF(dati_pdc!$C1285=5,dati_bdv!$G$2:$G$65536,dati_bdv!$H$2:$H$65536))))),$A1285,dati_bdv!M$2:M$65536)","v":0},{"$f":"SUMIF(IF(dati_pdc!$C1285=1,dati_bdv!$C$2:$C$65536,IF(dati_pdc!$C1285=2,dati_bdv!$D$2:$D$65536,IF(dati_pdc!$C1285=3,dati_bdv!$E$2:$E$65536,IF(dati_pdc!$C1285=4,dati_bdv!$F$2:$F$65536,IF(dati_pdc!$C1285=5,dati_bdv!$G$2:$G$65536,dati_bdv!$H$2:$H$65536))))),$A1285,dati_bdv!N$2:N$65536)","v":0}]
[{"$f":"dati_pdc!A1286","v":0},{"$f":"SUMIF(IF(dati_pdc!$C1286=1,dati_bdv!$C$2:$C$65536,IF(dati_pdc!$C1286=2,dati_bdv!$D$2:$D$65536,IF(dati_pdc!$C1286=3,dati_bdv!$E$2:$E$65536,IF(dati_pdc!$C1286=4,dati_bdv!$F$2:$F$65536,IF(dati_pdc!$C1286=5,dati_bdv!$G$2:$G$65536,dati_bdv!$H$2:$H$65536))))),$A1286,dati_bdv!J$2:J$65536)","v":0},{"$f":"SUMIF(IF(dati_pdc!$C1286=1,dati_bdv!$C$2:$C$65536,IF(dati_pdc!$C1286=2,dati_bdv!$D$2:$D$65536,IF(dati_pdc!$C1286=3,dati_bdv!$E$2:$E$65536,IF(dati_pdc!$C1286=4,dati_bdv!$F$2:$F$65536,IF(dati_pdc!$C1286=5,dati_bdv!$G$2:$G$65536,dati_bdv!$H$2:$H$65536))))),$A1286,dati_bdv!K$2:K$65536)","v":0},{"$f":"SUMIF(IF(dati_pdc!$C1286=1,dati_bdv!$C$2:$C$65536,IF(dati_pdc!$C1286=2,dati_bdv!$D$2:$D$65536,IF(dati_pdc!$C1286=3,dati_bdv!$E$2:$E$65536,IF(dati_pdc!$C1286=4,dati_bdv!$F$2:$F$65536,IF(dati_pdc!$C1286=5,dati_bdv!$G$2:$G$65536,dati_bdv!$H$2:$H$65536))))),$A1286,dati_bdv!L$2:L$65536)","v":0},{"$f":"SUMIF(IF(dati_pdc!$C1286=1,dati_bdv!$C$2:$C$65536,IF(dati_pdc!$C1286=2,dati_bdv!$D$2:$D$65536,IF(dati_pdc!$C1286=3,dati_bdv!$E$2:$E$65536,IF(dati_pdc!$C1286=4,dati_bdv!$F$2:$F$65536,IF(dati_pdc!$C1286=5,dati_bdv!$G$2:$G$65536,dati_bdv!$H$2:$H$65536))))),$A1286,dati_bdv!M$2:M$65536)","v":0},{"$f":"SUMIF(IF(dati_pdc!$C1286=1,dati_bdv!$C$2:$C$65536,IF(dati_pdc!$C1286=2,dati_bdv!$D$2:$D$65536,IF(dati_pdc!$C1286=3,dati_bdv!$E$2:$E$65536,IF(dati_pdc!$C1286=4,dati_bdv!$F$2:$F$65536,IF(dati_pdc!$C1286=5,dati_bdv!$G$2:$G$65536,dati_bdv!$H$2:$H$65536))))),$A1286,dati_bdv!N$2:N$65536)","v":0}]
[{"$f":"dati_pdc!A1287","v":0},{"$f":"SUMIF(IF(dati_pdc!$C1287=1,dati_bdv!$C$2:$C$65536,IF(dati_pdc!$C1287=2,dati_bdv!$D$2:$D$65536,IF(dati_pdc!$C1287=3,dati_bdv!$E$2:$E$65536,IF(dati_pdc!$C1287=4,dati_bdv!$F$2:$F$65536,IF(dati_pdc!$C1287=5,dati_bdv!$G$2:$G$65536,dati_bdv!$H$2:$H$65536))))),$A1287,dati_bdv!J$2:J$65536)","v":0},{"$f":"SUMIF(IF(dati_pdc!$C1287=1,dati_bdv!$C$2:$C$65536,IF(dati_pdc!$C1287=2,dati_bdv!$D$2:$D$65536,IF(dati_pdc!$C1287=3,dati_bdv!$E$2:$E$65536,IF(dati_pdc!$C1287=4,dati_bdv!$F$2:$F$65536,IF(dati_pdc!$C1287=5,dati_bdv!$G$2:$G$65536,dati_bdv!$H$2:$H$65536))))),$A1287,dati_bdv!K$2:K$65536)","v":0},{"$f":"SUMIF(IF(dati_pdc!$C1287=1,dati_bdv!$C$2:$C$65536,IF(dati_pdc!$C1287=2,dati_bdv!$D$2:$D$65536,IF(dati_pdc!$C1287=3,dati_bdv!$E$2:$E$65536,IF(dati_pdc!$C1287=4,dati_bdv!$F$2:$F$65536,IF(dati_pdc!$C1287=5,dati_bdv!$G$2:$G$65536,dati_bdv!$H$2:$H$65536))))),$A1287,dati_bdv!L$2:L$65536)","v":0},{"$f":"SUMIF(IF(dati_pdc!$C1287=1,dati_bdv!$C$2:$C$65536,IF(dati_pdc!$C1287=2,dati_bdv!$D$2:$D$65536,IF(dati_pdc!$C1287=3,dati_bdv!$E$2:$E$65536,IF(dati_pdc!$C1287=4,dati_bdv!$F$2:$F$65536,IF(dati_pdc!$C1287=5,dati_bdv!$G$2:$G$65536,dati_bdv!$H$2:$H$65536))))),$A1287,dati_bdv!M$2:M$65536)","v":0},{"$f":"SUMIF(IF(dati_pdc!$C1287=1,dati_bdv!$C$2:$C$65536,IF(dati_pdc!$C1287=2,dati_bdv!$D$2:$D$65536,IF(dati_pdc!$C1287=3,dati_bdv!$E$2:$E$65536,IF(dati_pdc!$C1287=4,dati_bdv!$F$2:$F$65536,IF(dati_pdc!$C1287=5,dati_bdv!$G$2:$G$65536,dati_bdv!$H$2:$H$65536))))),$A1287,dati_bdv!N$2:N$65536)","v":0}]
[{"$f":"dati_pdc!A1288","v":0},{"$f":"SUMIF(IF(dati_pdc!$C1288=1,dati_bdv!$C$2:$C$65536,IF(dati_pdc!$C1288=2,dati_bdv!$D$2:$D$65536,IF(dati_pdc!$C1288=3,dati_bdv!$E$2:$E$65536,IF(dati_pdc!$C1288=4,dati_bdv!$F$2:$F$65536,IF(dati_pdc!$C1288=5,dati_bdv!$G$2:$G$65536,dati_bdv!$H$2:$H$65536))))),$A1288,dati_bdv!J$2:J$65536)","v":0},{"$f":"SUMIF(IF(dati_pdc!$C1288=1,dati_bdv!$C$2:$C$65536,IF(dati_pdc!$C1288=2,dati_bdv!$D$2:$D$65536,IF(dati_pdc!$C1288=3,dati_bdv!$E$2:$E$65536,IF(dati_pdc!$C1288=4,dati_bdv!$F$2:$F$65536,IF(dati_pdc!$C1288=5,dati_bdv!$G$2:$G$65536,dati_bdv!$H$2:$H$65536))))),$A1288,dati_bdv!K$2:K$65536)","v":0},{"$f":"SUMIF(IF(dati_pdc!$C1288=1,dati_bdv!$C$2:$C$65536,IF(dati_pdc!$C1288=2,dati_bdv!$D$2:$D$65536,IF(dati_pdc!$C1288=3,dati_bdv!$E$2:$E$65536,IF(dati_pdc!$C1288=4,dati_bdv!$F$2:$F$65536,IF(dati_pdc!$C1288=5,dati_bdv!$G$2:$G$65536,dati_bdv!$H$2:$H$65536))))),$A1288,dati_bdv!L$2:L$65536)","v":0},{"$f":"SUMIF(IF(dati_pdc!$C1288=1,dati_bdv!$C$2:$C$65536,IF(dati_pdc!$C1288=2,dati_bdv!$D$2:$D$65536,IF(dati_pdc!$C1288=3,dati_bdv!$E$2:$E$65536,IF(dati_pdc!$C1288=4,dati_bdv!$F$2:$F$65536,IF(dati_pdc!$C1288=5,dati_bdv!$G$2:$G$65536,dati_bdv!$H$2:$H$65536))))),$A1288,dati_bdv!M$2:M$65536)","v":0},{"$f":"SUMIF(IF(dati_pdc!$C1288=1,dati_bdv!$C$2:$C$65536,IF(dati_pdc!$C1288=2,dati_bdv!$D$2:$D$65536,IF(dati_pdc!$C1288=3,dati_bdv!$E$2:$E$65536,IF(dati_pdc!$C1288=4,dati_bdv!$F$2:$F$65536,IF(dati_pdc!$C1288=5,dati_bdv!$G$2:$G$65536,dati_bdv!$H$2:$H$65536))))),$A1288,dati_bdv!N$2:N$65536)","v":0}]
[{"$f":"dati_pdc!A1289","v":0},{"$f":"SUMIF(IF(dati_pdc!$C1289=1,dati_bdv!$C$2:$C$65536,IF(dati_pdc!$C1289=2,dati_bdv!$D$2:$D$65536,IF(dati_pdc!$C1289=3,dati_bdv!$E$2:$E$65536,IF(dati_pdc!$C1289=4,dati_bdv!$F$2:$F$65536,IF(dati_pdc!$C1289=5,dati_bdv!$G$2:$G$65536,dati_bdv!$H$2:$H$65536))))),$A1289,dati_bdv!J$2:J$65536)","v":0},{"$f":"SUMIF(IF(dati_pdc!$C1289=1,dati_bdv!$C$2:$C$65536,IF(dati_pdc!$C1289=2,dati_bdv!$D$2:$D$65536,IF(dati_pdc!$C1289=3,dati_bdv!$E$2:$E$65536,IF(dati_pdc!$C1289=4,dati_bdv!$F$2:$F$65536,IF(dati_pdc!$C1289=5,dati_bdv!$G$2:$G$65536,dati_bdv!$H$2:$H$65536))))),$A1289,dati_bdv!K$2:K$65536)","v":0},{"$f":"SUMIF(IF(dati_pdc!$C1289=1,dati_bdv!$C$2:$C$65536,IF(dati_pdc!$C1289=2,dati_bdv!$D$2:$D$65536,IF(dati_pdc!$C1289=3,dati_bdv!$E$2:$E$65536,IF(dati_pdc!$C1289=4,dati_bdv!$F$2:$F$65536,IF(dati_pdc!$C1289=5,dati_bdv!$G$2:$G$65536,dati_bdv!$H$2:$H$65536))))),$A1289,dati_bdv!L$2:L$65536)","v":0},{"$f":"SUMIF(IF(dati_pdc!$C1289=1,dati_bdv!$C$2:$C$65536,IF(dati_pdc!$C1289=2,dati_bdv!$D$2:$D$65536,IF(dati_pdc!$C1289=3,dati_bdv!$E$2:$E$65536,IF(dati_pdc!$C1289=4,dati_bdv!$F$2:$F$65536,IF(dati_pdc!$C1289=5,dati_bdv!$G$2:$G$65536,dati_bdv!$H$2:$H$65536))))),$A1289,dati_bdv!M$2:M$65536)","v":0},{"$f":"SUMIF(IF(dati_pdc!$C1289=1,dati_bdv!$C$2:$C$65536,IF(dati_pdc!$C1289=2,dati_bdv!$D$2:$D$65536,IF(dati_pdc!$C1289=3,dati_bdv!$E$2:$E$65536,IF(dati_pdc!$C1289=4,dati_bdv!$F$2:$F$65536,IF(dati_pdc!$C1289=5,dati_bdv!$G$2:$G$65536,dati_bdv!$H$2:$H$65536))))),$A1289,dati_bdv!N$2:N$65536)","v":0}]
[{"$f":"dati_pdc!A1290","v":0},{"$f":"SUMIF(IF(dati_pdc!$C1290=1,dati_bdv!$C$2:$C$65536,IF(dati_pdc!$C1290=2,dati_bdv!$D$2:$D$65536,IF(dati_pdc!$C1290=3,dati_bdv!$E$2:$E$65536,IF(dati_pdc!$C1290=4,dati_bdv!$F$2:$F$65536,IF(dati_pdc!$C1290=5,dati_bdv!$G$2:$G$65536,dati_bdv!$H$2:$H$65536))))),$A1290,dati_bdv!J$2:J$65536)","v":0},{"$f":"SUMIF(IF(dati_pdc!$C1290=1,dati_bdv!$C$2:$C$65536,IF(dati_pdc!$C1290=2,dati_bdv!$D$2:$D$65536,IF(dati_pdc!$C1290=3,dati_bdv!$E$2:$E$65536,IF(dati_pdc!$C1290=4,dati_bdv!$F$2:$F$65536,IF(dati_pdc!$C1290=5,dati_bdv!$G$2:$G$65536,dati_bdv!$H$2:$H$65536))))),$A1290,dati_bdv!K$2:K$65536)","v":0},{"$f":"SUMIF(IF(dati_pdc!$C1290=1,dati_bdv!$C$2:$C$65536,IF(dati_pdc!$C1290=2,dati_bdv!$D$2:$D$65536,IF(dati_pdc!$C1290=3,dati_bdv!$E$2:$E$65536,IF(dati_pdc!$C1290=4,dati_bdv!$F$2:$F$65536,IF(dati_pdc!$C1290=5,dati_bdv!$G$2:$G$65536,dati_bdv!$H$2:$H$65536))))),$A1290,dati_bdv!L$2:L$65536)","v":0},{"$f":"SUMIF(IF(dati_pdc!$C1290=1,dati_bdv!$C$2:$C$65536,IF(dati_pdc!$C1290=2,dati_bdv!$D$2:$D$65536,IF(dati_pdc!$C1290=3,dati_bdv!$E$2:$E$65536,IF(dati_pdc!$C1290=4,dati_bdv!$F$2:$F$65536,IF(dati_pdc!$C1290=5,dati_bdv!$G$2:$G$65536,dati_bdv!$H$2:$H$65536))))),$A1290,dati_bdv!M$2:M$65536)","v":0},{"$f":"SUMIF(IF(dati_pdc!$C1290=1,dati_bdv!$C$2:$C$65536,IF(dati_pdc!$C1290=2,dati_bdv!$D$2:$D$65536,IF(dati_pdc!$C1290=3,dati_bdv!$E$2:$E$65536,IF(dati_pdc!$C1290=4,dati_bdv!$F$2:$F$65536,IF(dati_pdc!$C1290=5,dati_bdv!$G$2:$G$65536,dati_bdv!$H$2:$H$65536))))),$A1290,dati_bdv!N$2:N$65536)","v":0}]
[{"$f":"dati_pdc!A1291","v":0},{"$f":"SUMIF(IF(dati_pdc!$C1291=1,dati_bdv!$C$2:$C$65536,IF(dati_pdc!$C1291=2,dati_bdv!$D$2:$D$65536,IF(dati_pdc!$C1291=3,dati_bdv!$E$2:$E$65536,IF(dati_pdc!$C1291=4,dati_bdv!$F$2:$F$65536,IF(dati_pdc!$C1291=5,dati_bdv!$G$2:$G$65536,dati_bdv!$H$2:$H$65536))))),$A1291,dati_bdv!J$2:J$65536)","v":0},{"$f":"SUMIF(IF(dati_pdc!$C1291=1,dati_bdv!$C$2:$C$65536,IF(dati_pdc!$C1291=2,dati_bdv!$D$2:$D$65536,IF(dati_pdc!$C1291=3,dati_bdv!$E$2:$E$65536,IF(dati_pdc!$C1291=4,dati_bdv!$F$2:$F$65536,IF(dati_pdc!$C1291=5,dati_bdv!$G$2:$G$65536,dati_bdv!$H$2:$H$65536))))),$A1291,dati_bdv!K$2:K$65536)","v":0},{"$f":"SUMIF(IF(dati_pdc!$C1291=1,dati_bdv!$C$2:$C$65536,IF(dati_pdc!$C1291=2,dati_bdv!$D$2:$D$65536,IF(dati_pdc!$C1291=3,dati_bdv!$E$2:$E$65536,IF(dati_pdc!$C1291=4,dati_bdv!$F$2:$F$65536,IF(dati_pdc!$C1291=5,dati_bdv!$G$2:$G$65536,dati_bdv!$H$2:$H$65536))))),$A1291,dati_bdv!L$2:L$65536)","v":0},{"$f":"SUMIF(IF(dati_pdc!$C1291=1,dati_bdv!$C$2:$C$65536,IF(dati_pdc!$C1291=2,dati_bdv!$D$2:$D$65536,IF(dati_pdc!$C1291=3,dati_bdv!$E$2:$E$65536,IF(dati_pdc!$C1291=4,dati_bdv!$F$2:$F$65536,IF(dati_pdc!$C1291=5,dati_bdv!$G$2:$G$65536,dati_bdv!$H$2:$H$65536))))),$A1291,dati_bdv!M$2:M$65536)","v":0},{"$f":"SUMIF(IF(dati_pdc!$C1291=1,dati_bdv!$C$2:$C$65536,IF(dati_pdc!$C1291=2,dati_bdv!$D$2:$D$65536,IF(dati_pdc!$C1291=3,dati_bdv!$E$2:$E$65536,IF(dati_pdc!$C1291=4,dati_bdv!$F$2:$F$65536,IF(dati_pdc!$C1291=5,dati_bdv!$G$2:$G$65536,dati_bdv!$H$2:$H$65536))))),$A1291,dati_bdv!N$2:N$65536)","v":0}]
[{"$f":"dati_pdc!A1292","v":0},{"$f":"SUMIF(IF(dati_pdc!$C1292=1,dati_bdv!$C$2:$C$65536,IF(dati_pdc!$C1292=2,dati_bdv!$D$2:$D$65536,IF(dati_pdc!$C1292=3,dati_bdv!$E$2:$E$65536,IF(dati_pdc!$C1292=4,dati_bdv!$F$2:$F$65536,IF(dati_pdc!$C1292=5,dati_bdv!$G$2:$G$65536,dati_bdv!$H$2:$H$65536))))),$A1292,dati_bdv!J$2:J$65536)","v":0},{"$f":"SUMIF(IF(dati_pdc!$C1292=1,dati_bdv!$C$2:$C$65536,IF(dati_pdc!$C1292=2,dati_bdv!$D$2:$D$65536,IF(dati_pdc!$C1292=3,dati_bdv!$E$2:$E$65536,IF(dati_pdc!$C1292=4,dati_bdv!$F$2:$F$65536,IF(dati_pdc!$C1292=5,dati_bdv!$G$2:$G$65536,dati_bdv!$H$2:$H$65536))))),$A1292,dati_bdv!K$2:K$65536)","v":0},{"$f":"SUMIF(IF(dati_pdc!$C1292=1,dati_bdv!$C$2:$C$65536,IF(dati_pdc!$C1292=2,dati_bdv!$D$2:$D$65536,IF(dati_pdc!$C1292=3,dati_bdv!$E$2:$E$65536,IF(dati_pdc!$C1292=4,dati_bdv!$F$2:$F$65536,IF(dati_pdc!$C1292=5,dati_bdv!$G$2:$G$65536,dati_bdv!$H$2:$H$65536))))),$A1292,dati_bdv!L$2:L$65536)","v":0},{"$f":"SUMIF(IF(dati_pdc!$C1292=1,dati_bdv!$C$2:$C$65536,IF(dati_pdc!$C1292=2,dati_bdv!$D$2:$D$65536,IF(dati_pdc!$C1292=3,dati_bdv!$E$2:$E$65536,IF(dati_pdc!$C1292=4,dati_bdv!$F$2:$F$65536,IF(dati_pdc!$C1292=5,dati_bdv!$G$2:$G$65536,dati_bdv!$H$2:$H$65536))))),$A1292,dati_bdv!M$2:M$65536)","v":0},{"$f":"SUMIF(IF(dati_pdc!$C1292=1,dati_bdv!$C$2:$C$65536,IF(dati_pdc!$C1292=2,dati_bdv!$D$2:$D$65536,IF(dati_pdc!$C1292=3,dati_bdv!$E$2:$E$65536,IF(dati_pdc!$C1292=4,dati_bdv!$F$2:$F$65536,IF(dati_pdc!$C1292=5,dati_bdv!$G$2:$G$65536,dati_bdv!$H$2:$H$65536))))),$A1292,dati_bdv!N$2:N$65536)","v":0}]
[{"$f":"dati_pdc!A1293","v":0},{"$f":"SUMIF(IF(dati_pdc!$C1293=1,dati_bdv!$C$2:$C$65536,IF(dati_pdc!$C1293=2,dati_bdv!$D$2:$D$65536,IF(dati_pdc!$C1293=3,dati_bdv!$E$2:$E$65536,IF(dati_pdc!$C1293=4,dati_bdv!$F$2:$F$65536,IF(dati_pdc!$C1293=5,dati_bdv!$G$2:$G$65536,dati_bdv!$H$2:$H$65536))))),$A1293,dati_bdv!J$2:J$65536)","v":0},{"$f":"SUMIF(IF(dati_pdc!$C1293=1,dati_bdv!$C$2:$C$65536,IF(dati_pdc!$C1293=2,dati_bdv!$D$2:$D$65536,IF(dati_pdc!$C1293=3,dati_bdv!$E$2:$E$65536,IF(dati_pdc!$C1293=4,dati_bdv!$F$2:$F$65536,IF(dati_pdc!$C1293=5,dati_bdv!$G$2:$G$65536,dati_bdv!$H$2:$H$65536))))),$A1293,dati_bdv!K$2:K$65536)","v":0},{"$f":"SUMIF(IF(dati_pdc!$C1293=1,dati_bdv!$C$2:$C$65536,IF(dati_pdc!$C1293=2,dati_bdv!$D$2:$D$65536,IF(dati_pdc!$C1293=3,dati_bdv!$E$2:$E$65536,IF(dati_pdc!$C1293=4,dati_bdv!$F$2:$F$65536,IF(dati_pdc!$C1293=5,dati_bdv!$G$2:$G$65536,dati_bdv!$H$2:$H$65536))))),$A1293,dati_bdv!L$2:L$65536)","v":0},{"$f":"SUMIF(IF(dati_pdc!$C1293=1,dati_bdv!$C$2:$C$65536,IF(dati_pdc!$C1293=2,dati_bdv!$D$2:$D$65536,IF(dati_pdc!$C1293=3,dati_bdv!$E$2:$E$65536,IF(dati_pdc!$C1293=4,dati_bdv!$F$2:$F$65536,IF(dati_pdc!$C1293=5,dati_bdv!$G$2:$G$65536,dati_bdv!$H$2:$H$65536))))),$A1293,dati_bdv!M$2:M$65536)","v":0},{"$f":"SUMIF(IF(dati_pdc!$C1293=1,dati_bdv!$C$2:$C$65536,IF(dati_pdc!$C1293=2,dati_bdv!$D$2:$D$65536,IF(dati_pdc!$C1293=3,dati_bdv!$E$2:$E$65536,IF(dati_pdc!$C1293=4,dati_bdv!$F$2:$F$65536,IF(dati_pdc!$C1293=5,dati_bdv!$G$2:$G$65536,dati_bdv!$H$2:$H$65536))))),$A1293,dati_bdv!N$2:N$65536)","v":0}]
[{"$f":"dati_pdc!A1294","v":0},{"$f":"SUMIF(IF(dati_pdc!$C1294=1,dati_bdv!$C$2:$C$65536,IF(dati_pdc!$C1294=2,dati_bdv!$D$2:$D$65536,IF(dati_pdc!$C1294=3,dati_bdv!$E$2:$E$65536,IF(dati_pdc!$C1294=4,dati_bdv!$F$2:$F$65536,IF(dati_pdc!$C1294=5,dati_bdv!$G$2:$G$65536,dati_bdv!$H$2:$H$65536))))),$A1294,dati_bdv!J$2:J$65536)","v":0},{"$f":"SUMIF(IF(dati_pdc!$C1294=1,dati_bdv!$C$2:$C$65536,IF(dati_pdc!$C1294=2,dati_bdv!$D$2:$D$65536,IF(dati_pdc!$C1294=3,dati_bdv!$E$2:$E$65536,IF(dati_pdc!$C1294=4,dati_bdv!$F$2:$F$65536,IF(dati_pdc!$C1294=5,dati_bdv!$G$2:$G$65536,dati_bdv!$H$2:$H$65536))))),$A1294,dati_bdv!K$2:K$65536)","v":0},{"$f":"SUMIF(IF(dati_pdc!$C1294=1,dati_bdv!$C$2:$C$65536,IF(dati_pdc!$C1294=2,dati_bdv!$D$2:$D$65536,IF(dati_pdc!$C1294=3,dati_bdv!$E$2:$E$65536,IF(dati_pdc!$C1294=4,dati_bdv!$F$2:$F$65536,IF(dati_pdc!$C1294=5,dati_bdv!$G$2:$G$65536,dati_bdv!$H$2:$H$65536))))),$A1294,dati_bdv!L$2:L$65536)","v":0},{"$f":"SUMIF(IF(dati_pdc!$C1294=1,dati_bdv!$C$2:$C$65536,IF(dati_pdc!$C1294=2,dati_bdv!$D$2:$D$65536,IF(dati_pdc!$C1294=3,dati_bdv!$E$2:$E$65536,IF(dati_pdc!$C1294=4,dati_bdv!$F$2:$F$65536,IF(dati_pdc!$C1294=5,dati_bdv!$G$2:$G$65536,dati_bdv!$H$2:$H$65536))))),$A1294,dati_bdv!M$2:M$65536)","v":0},{"$f":"SUMIF(IF(dati_pdc!$C1294=1,dati_bdv!$C$2:$C$65536,IF(dati_pdc!$C1294=2,dati_bdv!$D$2:$D$65536,IF(dati_pdc!$C1294=3,dati_bdv!$E$2:$E$65536,IF(dati_pdc!$C1294=4,dati_bdv!$F$2:$F$65536,IF(dati_pdc!$C1294=5,dati_bdv!$G$2:$G$65536,dati_bdv!$H$2:$H$65536))))),$A1294,dati_bdv!N$2:N$65536)","v":0}]
[{"$f":"dati_pdc!A1295","v":0},{"$f":"SUMIF(IF(dati_pdc!$C1295=1,dati_bdv!$C$2:$C$65536,IF(dati_pdc!$C1295=2,dati_bdv!$D$2:$D$65536,IF(dati_pdc!$C1295=3,dati_bdv!$E$2:$E$65536,IF(dati_pdc!$C1295=4,dati_bdv!$F$2:$F$65536,IF(dati_pdc!$C1295=5,dati_bdv!$G$2:$G$65536,dati_bdv!$H$2:$H$65536))))),$A1295,dati_bdv!J$2:J$65536)","v":0},{"$f":"SUMIF(IF(dati_pdc!$C1295=1,dati_bdv!$C$2:$C$65536,IF(dati_pdc!$C1295=2,dati_bdv!$D$2:$D$65536,IF(dati_pdc!$C1295=3,dati_bdv!$E$2:$E$65536,IF(dati_pdc!$C1295=4,dati_bdv!$F$2:$F$65536,IF(dati_pdc!$C1295=5,dati_bdv!$G$2:$G$65536,dati_bdv!$H$2:$H$65536))))),$A1295,dati_bdv!K$2:K$65536)","v":0},{"$f":"SUMIF(IF(dati_pdc!$C1295=1,dati_bdv!$C$2:$C$65536,IF(dati_pdc!$C1295=2,dati_bdv!$D$2:$D$65536,IF(dati_pdc!$C1295=3,dati_bdv!$E$2:$E$65536,IF(dati_pdc!$C1295=4,dati_bdv!$F$2:$F$65536,IF(dati_pdc!$C1295=5,dati_bdv!$G$2:$G$65536,dati_bdv!$H$2:$H$65536))))),$A1295,dati_bdv!L$2:L$65536)","v":0},{"$f":"SUMIF(IF(dati_pdc!$C1295=1,dati_bdv!$C$2:$C$65536,IF(dati_pdc!$C1295=2,dati_bdv!$D$2:$D$65536,IF(dati_pdc!$C1295=3,dati_bdv!$E$2:$E$65536,IF(dati_pdc!$C1295=4,dati_bdv!$F$2:$F$65536,IF(dati_pdc!$C1295=5,dati_bdv!$G$2:$G$65536,dati_bdv!$H$2:$H$65536))))),$A1295,dati_bdv!M$2:M$65536)","v":0},{"$f":"SUMIF(IF(dati_pdc!$C1295=1,dati_bdv!$C$2:$C$65536,IF(dati_pdc!$C1295=2,dati_bdv!$D$2:$D$65536,IF(dati_pdc!$C1295=3,dati_bdv!$E$2:$E$65536,IF(dati_pdc!$C1295=4,dati_bdv!$F$2:$F$65536,IF(dati_pdc!$C1295=5,dati_bdv!$G$2:$G$65536,dati_bdv!$H$2:$H$65536))))),$A1295,dati_bdv!N$2:N$65536)","v":0}]
[{"$f":"dati_pdc!A1296","v":0},{"$f":"SUMIF(IF(dati_pdc!$C1296=1,dati_bdv!$C$2:$C$65536,IF(dati_pdc!$C1296=2,dati_bdv!$D$2:$D$65536,IF(dati_pdc!$C1296=3,dati_bdv!$E$2:$E$65536,IF(dati_pdc!$C1296=4,dati_bdv!$F$2:$F$65536,IF(dati_pdc!$C1296=5,dati_bdv!$G$2:$G$65536,dati_bdv!$H$2:$H$65536))))),$A1296,dati_bdv!J$2:J$65536)","v":0},{"$f":"SUMIF(IF(dati_pdc!$C1296=1,dati_bdv!$C$2:$C$65536,IF(dati_pdc!$C1296=2,dati_bdv!$D$2:$D$65536,IF(dati_pdc!$C1296=3,dati_bdv!$E$2:$E$65536,IF(dati_pdc!$C1296=4,dati_bdv!$F$2:$F$65536,IF(dati_pdc!$C1296=5,dati_bdv!$G$2:$G$65536,dati_bdv!$H$2:$H$65536))))),$A1296,dati_bdv!K$2:K$65536)","v":0},{"$f":"SUMIF(IF(dati_pdc!$C1296=1,dati_bdv!$C$2:$C$65536,IF(dati_pdc!$C1296=2,dati_bdv!$D$2:$D$65536,IF(dati_pdc!$C1296=3,dati_bdv!$E$2:$E$65536,IF(dati_pdc!$C1296=4,dati_bdv!$F$2:$F$65536,IF(dati_pdc!$C1296=5,dati_bdv!$G$2:$G$65536,dati_bdv!$H$2:$H$65536))))),$A1296,dati_bdv!L$2:L$65536)","v":0},{"$f":"SUMIF(IF(dati_pdc!$C1296=1,dati_bdv!$C$2:$C$65536,IF(dati_pdc!$C1296=2,dati_bdv!$D$2:$D$65536,IF(dati_pdc!$C1296=3,dati_bdv!$E$2:$E$65536,IF(dati_pdc!$C1296=4,dati_bdv!$F$2:$F$65536,IF(dati_pdc!$C1296=5,dati_bdv!$G$2:$G$65536,dati_bdv!$H$2:$H$65536))))),$A1296,dati_bdv!M$2:M$65536)","v":0},{"$f":"SUMIF(IF(dati_pdc!$C1296=1,dati_bdv!$C$2:$C$65536,IF(dati_pdc!$C1296=2,dati_bdv!$D$2:$D$65536,IF(dati_pdc!$C1296=3,dati_bdv!$E$2:$E$65536,IF(dati_pdc!$C1296=4,dati_bdv!$F$2:$F$65536,IF(dati_pdc!$C1296=5,dati_bdv!$G$2:$G$65536,dati_bdv!$H$2:$H$65536))))),$A1296,dati_bdv!N$2:N$65536)","v":0}]
[{"$f":"dati_pdc!A1297","v":0},{"$f":"SUMIF(IF(dati_pdc!$C1297=1,dati_bdv!$C$2:$C$65536,IF(dati_pdc!$C1297=2,dati_bdv!$D$2:$D$65536,IF(dati_pdc!$C1297=3,dati_bdv!$E$2:$E$65536,IF(dati_pdc!$C1297=4,dati_bdv!$F$2:$F$65536,IF(dati_pdc!$C1297=5,dati_bdv!$G$2:$G$65536,dati_bdv!$H$2:$H$65536))))),$A1297,dati_bdv!J$2:J$65536)","v":0},{"$f":"SUMIF(IF(dati_pdc!$C1297=1,dati_bdv!$C$2:$C$65536,IF(dati_pdc!$C1297=2,dati_bdv!$D$2:$D$65536,IF(dati_pdc!$C1297=3,dati_bdv!$E$2:$E$65536,IF(dati_pdc!$C1297=4,dati_bdv!$F$2:$F$65536,IF(dati_pdc!$C1297=5,dati_bdv!$G$2:$G$65536,dati_bdv!$H$2:$H$65536))))),$A1297,dati_bdv!K$2:K$65536)","v":0},{"$f":"SUMIF(IF(dati_pdc!$C1297=1,dati_bdv!$C$2:$C$65536,IF(dati_pdc!$C1297=2,dati_bdv!$D$2:$D$65536,IF(dati_pdc!$C1297=3,dati_bdv!$E$2:$E$65536,IF(dati_pdc!$C1297=4,dati_bdv!$F$2:$F$65536,IF(dati_pdc!$C1297=5,dati_bdv!$G$2:$G$65536,dati_bdv!$H$2:$H$65536))))),$A1297,dati_bdv!L$2:L$65536)","v":0},{"$f":"SUMIF(IF(dati_pdc!$C1297=1,dati_bdv!$C$2:$C$65536,IF(dati_pdc!$C1297=2,dati_bdv!$D$2:$D$65536,IF(dati_pdc!$C1297=3,dati_bdv!$E$2:$E$65536,IF(dati_pdc!$C1297=4,dati_bdv!$F$2:$F$65536,IF(dati_pdc!$C1297=5,dati_bdv!$G$2:$G$65536,dati_bdv!$H$2:$H$65536))))),$A1297,dati_bdv!M$2:M$65536)","v":0},{"$f":"SUMIF(IF(dati_pdc!$C1297=1,dati_bdv!$C$2:$C$65536,IF(dati_pdc!$C1297=2,dati_bdv!$D$2:$D$65536,IF(dati_pdc!$C1297=3,dati_bdv!$E$2:$E$65536,IF(dati_pdc!$C1297=4,dati_bdv!$F$2:$F$65536,IF(dati_pdc!$C1297=5,dati_bdv!$G$2:$G$65536,dati_bdv!$H$2:$H$65536))))),$A1297,dati_bdv!N$2:N$65536)","v":0}]
[{"$f":"dati_pdc!A1298","v":0},{"$f":"SUMIF(IF(dati_pdc!$C1298=1,dati_bdv!$C$2:$C$65536,IF(dati_pdc!$C1298=2,dati_bdv!$D$2:$D$65536,IF(dati_pdc!$C1298=3,dati_bdv!$E$2:$E$65536,IF(dati_pdc!$C1298=4,dati_bdv!$F$2:$F$65536,IF(dati_pdc!$C1298=5,dati_bdv!$G$2:$G$65536,dati_bdv!$H$2:$H$65536))))),$A1298,dati_bdv!J$2:J$65536)","v":0},{"$f":"SUMIF(IF(dati_pdc!$C1298=1,dati_bdv!$C$2:$C$65536,IF(dati_pdc!$C1298=2,dati_bdv!$D$2:$D$65536,IF(dati_pdc!$C1298=3,dati_bdv!$E$2:$E$65536,IF(dati_pdc!$C1298=4,dati_bdv!$F$2:$F$65536,IF(dati_pdc!$C1298=5,dati_bdv!$G$2:$G$65536,dati_bdv!$H$2:$H$65536))))),$A1298,dati_bdv!K$2:K$65536)","v":0},{"$f":"SUMIF(IF(dati_pdc!$C1298=1,dati_bdv!$C$2:$C$65536,IF(dati_pdc!$C1298=2,dati_bdv!$D$2:$D$65536,IF(dati_pdc!$C1298=3,dati_bdv!$E$2:$E$65536,IF(dati_pdc!$C1298=4,dati_bdv!$F$2:$F$65536,IF(dati_pdc!$C1298=5,dati_bdv!$G$2:$G$65536,dati_bdv!$H$2:$H$65536))))),$A1298,dati_bdv!L$2:L$65536)","v":0},{"$f":"SUMIF(IF(dati_pdc!$C1298=1,dati_bdv!$C$2:$C$65536,IF(dati_pdc!$C1298=2,dati_bdv!$D$2:$D$65536,IF(dati_pdc!$C1298=3,dati_bdv!$E$2:$E$65536,IF(dati_pdc!$C1298=4,dati_bdv!$F$2:$F$65536,IF(dati_pdc!$C1298=5,dati_bdv!$G$2:$G$65536,dati_bdv!$H$2:$H$65536))))),$A1298,dati_bdv!M$2:M$65536)","v":0},{"$f":"SUMIF(IF(dati_pdc!$C1298=1,dati_bdv!$C$2:$C$65536,IF(dati_pdc!$C1298=2,dati_bdv!$D$2:$D$65536,IF(dati_pdc!$C1298=3,dati_bdv!$E$2:$E$65536,IF(dati_pdc!$C1298=4,dati_bdv!$F$2:$F$65536,IF(dati_pdc!$C1298=5,dati_bdv!$G$2:$G$65536,dati_bdv!$H$2:$H$65536))))),$A1298,dati_bdv!N$2:N$65536)","v":0}]
[{"$f":"dati_pdc!A1299","v":0},{"$f":"SUMIF(IF(dati_pdc!$C1299=1,dati_bdv!$C$2:$C$65536,IF(dati_pdc!$C1299=2,dati_bdv!$D$2:$D$65536,IF(dati_pdc!$C1299=3,dati_bdv!$E$2:$E$65536,IF(dati_pdc!$C1299=4,dati_bdv!$F$2:$F$65536,IF(dati_pdc!$C1299=5,dati_bdv!$G$2:$G$65536,dati_bdv!$H$2:$H$65536))))),$A1299,dati_bdv!J$2:J$65536)","v":0},{"$f":"SUMIF(IF(dati_pdc!$C1299=1,dati_bdv!$C$2:$C$65536,IF(dati_pdc!$C1299=2,dati_bdv!$D$2:$D$65536,IF(dati_pdc!$C1299=3,dati_bdv!$E$2:$E$65536,IF(dati_pdc!$C1299=4,dati_bdv!$F$2:$F$65536,IF(dati_pdc!$C1299=5,dati_bdv!$G$2:$G$65536,dati_bdv!$H$2:$H$65536))))),$A1299,dati_bdv!K$2:K$65536)","v":0},{"$f":"SUMIF(IF(dati_pdc!$C1299=1,dati_bdv!$C$2:$C$65536,IF(dati_pdc!$C1299=2,dati_bdv!$D$2:$D$65536,IF(dati_pdc!$C1299=3,dati_bdv!$E$2:$E$65536,IF(dati_pdc!$C1299=4,dati_bdv!$F$2:$F$65536,IF(dati_pdc!$C1299=5,dati_bdv!$G$2:$G$65536,dati_bdv!$H$2:$H$65536))))),$A1299,dati_bdv!L$2:L$65536)","v":0},{"$f":"SUMIF(IF(dati_pdc!$C1299=1,dati_bdv!$C$2:$C$65536,IF(dati_pdc!$C1299=2,dati_bdv!$D$2:$D$65536,IF(dati_pdc!$C1299=3,dati_bdv!$E$2:$E$65536,IF(dati_pdc!$C1299=4,dati_bdv!$F$2:$F$65536,IF(dati_pdc!$C1299=5,dati_bdv!$G$2:$G$65536,dati_bdv!$H$2:$H$65536))))),$A1299,dati_bdv!M$2:M$65536)","v":0},{"$f":"SUMIF(IF(dati_pdc!$C1299=1,dati_bdv!$C$2:$C$65536,IF(dati_pdc!$C1299=2,dati_bdv!$D$2:$D$65536,IF(dati_pdc!$C1299=3,dati_bdv!$E$2:$E$65536,IF(dati_pdc!$C1299=4,dati_bdv!$F$2:$F$65536,IF(dati_pdc!$C1299=5,dati_bdv!$G$2:$G$65536,dati_bdv!$H$2:$H$65536))))),$A1299,dati_bdv!N$2:N$65536)","v":0}]
[{"$f":"dati_pdc!A1300","v":0},{"$f":"SUMIF(IF(dati_pdc!$C1300=1,dati_bdv!$C$2:$C$65536,IF(dati_pdc!$C1300=2,dati_bdv!$D$2:$D$65536,IF(dati_pdc!$C1300=3,dati_bdv!$E$2:$E$65536,IF(dati_pdc!$C1300=4,dati_bdv!$F$2:$F$65536,IF(dati_pdc!$C1300=5,dati_bdv!$G$2:$G$65536,dati_bdv!$H$2:$H$65536))))),$A1300,dati_bdv!J$2:J$65536)","v":0},{"$f":"SUMIF(IF(dati_pdc!$C1300=1,dati_bdv!$C$2:$C$65536,IF(dati_pdc!$C1300=2,dati_bdv!$D$2:$D$65536,IF(dati_pdc!$C1300=3,dati_bdv!$E$2:$E$65536,IF(dati_pdc!$C1300=4,dati_bdv!$F$2:$F$65536,IF(dati_pdc!$C1300=5,dati_bdv!$G$2:$G$65536,dati_bdv!$H$2:$H$65536))))),$A1300,dati_bdv!K$2:K$65536)","v":0},{"$f":"SUMIF(IF(dati_pdc!$C1300=1,dati_bdv!$C$2:$C$65536,IF(dati_pdc!$C1300=2,dati_bdv!$D$2:$D$65536,IF(dati_pdc!$C1300=3,dati_bdv!$E$2:$E$65536,IF(dati_pdc!$C1300=4,dati_bdv!$F$2:$F$65536,IF(dati_pdc!$C1300=5,dati_bdv!$G$2:$G$65536,dati_bdv!$H$2:$H$65536))))),$A1300,dati_bdv!L$2:L$65536)","v":0},{"$f":"SUMIF(IF(dati_pdc!$C1300=1,dati_bdv!$C$2:$C$65536,IF(dati_pdc!$C1300=2,dati_bdv!$D$2:$D$65536,IF(dati_pdc!$C1300=3,dati_bdv!$E$2:$E$65536,IF(dati_pdc!$C1300=4,dati_bdv!$F$2:$F$65536,IF(dati_pdc!$C1300=5,dati_bdv!$G$2:$G$65536,dati_bdv!$H$2:$H$65536))))),$A1300,dati_bdv!M$2:M$65536)","v":0},{"$f":"SUMIF(IF(dati_pdc!$C1300=1,dati_bdv!$C$2:$C$65536,IF(dati_pdc!$C1300=2,dati_bdv!$D$2:$D$65536,IF(dati_pdc!$C1300=3,dati_bdv!$E$2:$E$65536,IF(dati_pdc!$C1300=4,dati_bdv!$F$2:$F$65536,IF(dati_pdc!$C1300=5,dati_bdv!$G$2:$G$65536,dati_bdv!$H$2:$H$65536))))),$A1300,dati_bdv!N$2:N$65536)","v":0}]
[{"$f":"dati_pdc!A1301","v":0},{"$f":"SUMIF(IF(dati_pdc!$C1301=1,dati_bdv!$C$2:$C$65536,IF(dati_pdc!$C1301=2,dati_bdv!$D$2:$D$65536,IF(dati_pdc!$C1301=3,dati_bdv!$E$2:$E$65536,IF(dati_pdc!$C1301=4,dati_bdv!$F$2:$F$65536,IF(dati_pdc!$C1301=5,dati_bdv!$G$2:$G$65536,dati_bdv!$H$2:$H$65536))))),$A1301,dati_bdv!J$2:J$65536)","v":0},{"$f":"SUMIF(IF(dati_pdc!$C1301=1,dati_bdv!$C$2:$C$65536,IF(dati_pdc!$C1301=2,dati_bdv!$D$2:$D$65536,IF(dati_pdc!$C1301=3,dati_bdv!$E$2:$E$65536,IF(dati_pdc!$C1301=4,dati_bdv!$F$2:$F$65536,IF(dati_pdc!$C1301=5,dati_bdv!$G$2:$G$65536,dati_bdv!$H$2:$H$65536))))),$A1301,dati_bdv!K$2:K$65536)","v":0},{"$f":"SUMIF(IF(dati_pdc!$C1301=1,dati_bdv!$C$2:$C$65536,IF(dati_pdc!$C1301=2,dati_bdv!$D$2:$D$65536,IF(dati_pdc!$C1301=3,dati_bdv!$E$2:$E$65536,IF(dati_pdc!$C1301=4,dati_bdv!$F$2:$F$65536,IF(dati_pdc!$C1301=5,dati_bdv!$G$2:$G$65536,dati_bdv!$H$2:$H$65536))))),$A1301,dati_bdv!L$2:L$65536)","v":0},{"$f":"SUMIF(IF(dati_pdc!$C1301=1,dati_bdv!$C$2:$C$65536,IF(dati_pdc!$C1301=2,dati_bdv!$D$2:$D$65536,IF(dati_pdc!$C1301=3,dati_bdv!$E$2:$E$65536,IF(dati_pdc!$C1301=4,dati_bdv!$F$2:$F$65536,IF(dati_pdc!$C1301=5,dati_bdv!$G$2:$G$65536,dati_bdv!$H$2:$H$65536))))),$A1301,dati_bdv!M$2:M$65536)","v":0},{"$f":"SUMIF(IF(dati_pdc!$C1301=1,dati_bdv!$C$2:$C$65536,IF(dati_pdc!$C1301=2,dati_bdv!$D$2:$D$65536,IF(dati_pdc!$C1301=3,dati_bdv!$E$2:$E$65536,IF(dati_pdc!$C1301=4,dati_bdv!$F$2:$F$65536,IF(dati_pdc!$C1301=5,dati_bdv!$G$2:$G$65536,dati_bdv!$H$2:$H$65536))))),$A1301,dati_bdv!N$2:N$65536)","v":0}]
[{"$f":"dati_pdc!A1302","v":0},{"$f":"SUMIF(IF(dati_pdc!$C1302=1,dati_bdv!$C$2:$C$65536,IF(dati_pdc!$C1302=2,dati_bdv!$D$2:$D$65536,IF(dati_pdc!$C1302=3,dati_bdv!$E$2:$E$65536,IF(dati_pdc!$C1302=4,dati_bdv!$F$2:$F$65536,IF(dati_pdc!$C1302=5,dati_bdv!$G$2:$G$65536,dati_bdv!$H$2:$H$65536))))),$A1302,dati_bdv!J$2:J$65536)","v":0},{"$f":"SUMIF(IF(dati_pdc!$C1302=1,dati_bdv!$C$2:$C$65536,IF(dati_pdc!$C1302=2,dati_bdv!$D$2:$D$65536,IF(dati_pdc!$C1302=3,dati_bdv!$E$2:$E$65536,IF(dati_pdc!$C1302=4,dati_bdv!$F$2:$F$65536,IF(dati_pdc!$C1302=5,dati_bdv!$G$2:$G$65536,dati_bdv!$H$2:$H$65536))))),$A1302,dati_bdv!K$2:K$65536)","v":0},{"$f":"SUMIF(IF(dati_pdc!$C1302=1,dati_bdv!$C$2:$C$65536,IF(dati_pdc!$C1302=2,dati_bdv!$D$2:$D$65536,IF(dati_pdc!$C1302=3,dati_bdv!$E$2:$E$65536,IF(dati_pdc!$C1302=4,dati_bdv!$F$2:$F$65536,IF(dati_pdc!$C1302=5,dati_bdv!$G$2:$G$65536,dati_bdv!$H$2:$H$65536))))),$A1302,dati_bdv!L$2:L$65536)","v":0},{"$f":"SUMIF(IF(dati_pdc!$C1302=1,dati_bdv!$C$2:$C$65536,IF(dati_pdc!$C1302=2,dati_bdv!$D$2:$D$65536,IF(dati_pdc!$C1302=3,dati_bdv!$E$2:$E$65536,IF(dati_pdc!$C1302=4,dati_bdv!$F$2:$F$65536,IF(dati_pdc!$C1302=5,dati_bdv!$G$2:$G$65536,dati_bdv!$H$2:$H$65536))))),$A1302,dati_bdv!M$2:M$65536)","v":0},{"$f":"SUMIF(IF(dati_pdc!$C1302=1,dati_bdv!$C$2:$C$65536,IF(dati_pdc!$C1302=2,dati_bdv!$D$2:$D$65536,IF(dati_pdc!$C1302=3,dati_bdv!$E$2:$E$65536,IF(dati_pdc!$C1302=4,dati_bdv!$F$2:$F$65536,IF(dati_pdc!$C1302=5,dati_bdv!$G$2:$G$65536,dati_bdv!$H$2:$H$65536))))),$A1302,dati_bdv!N$2:N$65536)","v":0}]
[{"$f":"dati_pdc!A1303","v":0},{"$f":"SUMIF(IF(dati_pdc!$C1303=1,dati_bdv!$C$2:$C$65536,IF(dati_pdc!$C1303=2,dati_bdv!$D$2:$D$65536,IF(dati_pdc!$C1303=3,dati_bdv!$E$2:$E$65536,IF(dati_pdc!$C1303=4,dati_bdv!$F$2:$F$65536,IF(dati_pdc!$C1303=5,dati_bdv!$G$2:$G$65536,dati_bdv!$H$2:$H$65536))))),$A1303,dati_bdv!J$2:J$65536)","v":0},{"$f":"SUMIF(IF(dati_pdc!$C1303=1,dati_bdv!$C$2:$C$65536,IF(dati_pdc!$C1303=2,dati_bdv!$D$2:$D$65536,IF(dati_pdc!$C1303=3,dati_bdv!$E$2:$E$65536,IF(dati_pdc!$C1303=4,dati_bdv!$F$2:$F$65536,IF(dati_pdc!$C1303=5,dati_bdv!$G$2:$G$65536,dati_bdv!$H$2:$H$65536))))),$A1303,dati_bdv!K$2:K$65536)","v":0},{"$f":"SUMIF(IF(dati_pdc!$C1303=1,dati_bdv!$C$2:$C$65536,IF(dati_pdc!$C1303=2,dati_bdv!$D$2:$D$65536,IF(dati_pdc!$C1303=3,dati_bdv!$E$2:$E$65536,IF(dati_pdc!$C1303=4,dati_bdv!$F$2:$F$65536,IF(dati_pdc!$C1303=5,dati_bdv!$G$2:$G$65536,dati_bdv!$H$2:$H$65536))))),$A1303,dati_bdv!L$2:L$65536)","v":0},{"$f":"SUMIF(IF(dati_pdc!$C1303=1,dati_bdv!$C$2:$C$65536,IF(dati_pdc!$C1303=2,dati_bdv!$D$2:$D$65536,IF(dati_pdc!$C1303=3,dati_bdv!$E$2:$E$65536,IF(dati_pdc!$C1303=4,dati_bdv!$F$2:$F$65536,IF(dati_pdc!$C1303=5,dati_bdv!$G$2:$G$65536,dati_bdv!$H$2:$H$65536))))),$A1303,dati_bdv!M$2:M$65536)","v":0},{"$f":"SUMIF(IF(dati_pdc!$C1303=1,dati_bdv!$C$2:$C$65536,IF(dati_pdc!$C1303=2,dati_bdv!$D$2:$D$65536,IF(dati_pdc!$C1303=3,dati_bdv!$E$2:$E$65536,IF(dati_pdc!$C1303=4,dati_bdv!$F$2:$F$65536,IF(dati_pdc!$C1303=5,dati_bdv!$G$2:$G$65536,dati_bdv!$H$2:$H$65536))))),$A1303,dati_bdv!N$2:N$65536)","v":0}]
[{"$f":"dati_pdc!A1304","v":0},{"$f":"SUMIF(IF(dati_pdc!$C1304=1,dati_bdv!$C$2:$C$65536,IF(dati_pdc!$C1304=2,dati_bdv!$D$2:$D$65536,IF(dati_pdc!$C1304=3,dati_bdv!$E$2:$E$65536,IF(dati_pdc!$C1304=4,dati_bdv!$F$2:$F$65536,IF(dati_pdc!$C1304=5,dati_bdv!$G$2:$G$65536,dati_bdv!$H$2:$H$65536))))),$A1304,dati_bdv!J$2:J$65536)","v":0},{"$f":"SUMIF(IF(dati_pdc!$C1304=1,dati_bdv!$C$2:$C$65536,IF(dati_pdc!$C1304=2,dati_bdv!$D$2:$D$65536,IF(dati_pdc!$C1304=3,dati_bdv!$E$2:$E$65536,IF(dati_pdc!$C1304=4,dati_bdv!$F$2:$F$65536,IF(dati_pdc!$C1304=5,dati_bdv!$G$2:$G$65536,dati_bdv!$H$2:$H$65536))))),$A1304,dati_bdv!K$2:K$65536)","v":0},{"$f":"SUMIF(IF(dati_pdc!$C1304=1,dati_bdv!$C$2:$C$65536,IF(dati_pdc!$C1304=2,dati_bdv!$D$2:$D$65536,IF(dati_pdc!$C1304=3,dati_bdv!$E$2:$E$65536,IF(dati_pdc!$C1304=4,dati_bdv!$F$2:$F$65536,IF(dati_pdc!$C1304=5,dati_bdv!$G$2:$G$65536,dati_bdv!$H$2:$H$65536))))),$A1304,dati_bdv!L$2:L$65536)","v":0},{"$f":"SUMIF(IF(dati_pdc!$C1304=1,dati_bdv!$C$2:$C$65536,IF(dati_pdc!$C1304=2,dati_bdv!$D$2:$D$65536,IF(dati_pdc!$C1304=3,dati_bdv!$E$2:$E$65536,IF(dati_pdc!$C1304=4,dati_bdv!$F$2:$F$65536,IF(dati_pdc!$C1304=5,dati_bdv!$G$2:$G$65536,dati_bdv!$H$2:$H$65536))))),$A1304,dati_bdv!M$2:M$65536)","v":0},{"$f":"SUMIF(IF(dati_pdc!$C1304=1,dati_bdv!$C$2:$C$65536,IF(dati_pdc!$C1304=2,dati_bdv!$D$2:$D$65536,IF(dati_pdc!$C1304=3,dati_bdv!$E$2:$E$65536,IF(dati_pdc!$C1304=4,dati_bdv!$F$2:$F$65536,IF(dati_pdc!$C1304=5,dati_bdv!$G$2:$G$65536,dati_bdv!$H$2:$H$65536))))),$A1304,dati_bdv!N$2:N$65536)","v":0}]
[{"$f":"dati_pdc!A1305","v":0},{"$f":"SUMIF(IF(dati_pdc!$C1305=1,dati_bdv!$C$2:$C$65536,IF(dati_pdc!$C1305=2,dati_bdv!$D$2:$D$65536,IF(dati_pdc!$C1305=3,dati_bdv!$E$2:$E$65536,IF(dati_pdc!$C1305=4,dati_bdv!$F$2:$F$65536,IF(dati_pdc!$C1305=5,dati_bdv!$G$2:$G$65536,dati_bdv!$H$2:$H$65536))))),$A1305,dati_bdv!J$2:J$65536)","v":0},{"$f":"SUMIF(IF(dati_pdc!$C1305=1,dati_bdv!$C$2:$C$65536,IF(dati_pdc!$C1305=2,dati_bdv!$D$2:$D$65536,IF(dati_pdc!$C1305=3,dati_bdv!$E$2:$E$65536,IF(dati_pdc!$C1305=4,dati_bdv!$F$2:$F$65536,IF(dati_pdc!$C1305=5,dati_bdv!$G$2:$G$65536,dati_bdv!$H$2:$H$65536))))),$A1305,dati_bdv!K$2:K$65536)","v":0},{"$f":"SUMIF(IF(dati_pdc!$C1305=1,dati_bdv!$C$2:$C$65536,IF(dati_pdc!$C1305=2,dati_bdv!$D$2:$D$65536,IF(dati_pdc!$C1305=3,dati_bdv!$E$2:$E$65536,IF(dati_pdc!$C1305=4,dati_bdv!$F$2:$F$65536,IF(dati_pdc!$C1305=5,dati_bdv!$G$2:$G$65536,dati_bdv!$H$2:$H$65536))))),$A1305,dati_bdv!L$2:L$65536)","v":0},{"$f":"SUMIF(IF(dati_pdc!$C1305=1,dati_bdv!$C$2:$C$65536,IF(dati_pdc!$C1305=2,dati_bdv!$D$2:$D$65536,IF(dati_pdc!$C1305=3,dati_bdv!$E$2:$E$65536,IF(dati_pdc!$C1305=4,dati_bdv!$F$2:$F$65536,IF(dati_pdc!$C1305=5,dati_bdv!$G$2:$G$65536,dati_bdv!$H$2:$H$65536))))),$A1305,dati_bdv!M$2:M$65536)","v":0},{"$f":"SUMIF(IF(dati_pdc!$C1305=1,dati_bdv!$C$2:$C$65536,IF(dati_pdc!$C1305=2,dati_bdv!$D$2:$D$65536,IF(dati_pdc!$C1305=3,dati_bdv!$E$2:$E$65536,IF(dati_pdc!$C1305=4,dati_bdv!$F$2:$F$65536,IF(dati_pdc!$C1305=5,dati_bdv!$G$2:$G$65536,dati_bdv!$H$2:$H$65536))))),$A1305,dati_bdv!N$2:N$65536)","v":0}]
[{"$f":"dati_pdc!A1306","v":0},{"$f":"SUMIF(IF(dati_pdc!$C1306=1,dati_bdv!$C$2:$C$65536,IF(dati_pdc!$C1306=2,dati_bdv!$D$2:$D$65536,IF(dati_pdc!$C1306=3,dati_bdv!$E$2:$E$65536,IF(dati_pdc!$C1306=4,dati_bdv!$F$2:$F$65536,IF(dati_pdc!$C1306=5,dati_bdv!$G$2:$G$65536,dati_bdv!$H$2:$H$65536))))),$A1306,dati_bdv!J$2:J$65536)","v":0},{"$f":"SUMIF(IF(dati_pdc!$C1306=1,dati_bdv!$C$2:$C$65536,IF(dati_pdc!$C1306=2,dati_bdv!$D$2:$D$65536,IF(dati_pdc!$C1306=3,dati_bdv!$E$2:$E$65536,IF(dati_pdc!$C1306=4,dati_bdv!$F$2:$F$65536,IF(dati_pdc!$C1306=5,dati_bdv!$G$2:$G$65536,dati_bdv!$H$2:$H$65536))))),$A1306,dati_bdv!K$2:K$65536)","v":0},{"$f":"SUMIF(IF(dati_pdc!$C1306=1,dati_bdv!$C$2:$C$65536,IF(dati_pdc!$C1306=2,dati_bdv!$D$2:$D$65536,IF(dati_pdc!$C1306=3,dati_bdv!$E$2:$E$65536,IF(dati_pdc!$C1306=4,dati_bdv!$F$2:$F$65536,IF(dati_pdc!$C1306=5,dati_bdv!$G$2:$G$65536,dati_bdv!$H$2:$H$65536))))),$A1306,dati_bdv!L$2:L$65536)","v":0},{"$f":"SUMIF(IF(dati_pdc!$C1306=1,dati_bdv!$C$2:$C$65536,IF(dati_pdc!$C1306=2,dati_bdv!$D$2:$D$65536,IF(dati_pdc!$C1306=3,dati_bdv!$E$2:$E$65536,IF(dati_pdc!$C1306=4,dati_bdv!$F$2:$F$65536,IF(dati_pdc!$C1306=5,dati_bdv!$G$2:$G$65536,dati_bdv!$H$2:$H$65536))))),$A1306,dati_bdv!M$2:M$65536)","v":0},{"$f":"SUMIF(IF(dati_pdc!$C1306=1,dati_bdv!$C$2:$C$65536,IF(dati_pdc!$C1306=2,dati_bdv!$D$2:$D$65536,IF(dati_pdc!$C1306=3,dati_bdv!$E$2:$E$65536,IF(dati_pdc!$C1306=4,dati_bdv!$F$2:$F$65536,IF(dati_pdc!$C1306=5,dati_bdv!$G$2:$G$65536,dati_bdv!$H$2:$H$65536))))),$A1306,dati_bdv!N$2:N$65536)","v":0}]
[{"$f":"dati_pdc!A1307","v":0},{"$f":"SUMIF(IF(dati_pdc!$C1307=1,dati_bdv!$C$2:$C$65536,IF(dati_pdc!$C1307=2,dati_bdv!$D$2:$D$65536,IF(dati_pdc!$C1307=3,dati_bdv!$E$2:$E$65536,IF(dati_pdc!$C1307=4,dati_bdv!$F$2:$F$65536,IF(dati_pdc!$C1307=5,dati_bdv!$G$2:$G$65536,dati_bdv!$H$2:$H$65536))))),$A1307,dati_bdv!J$2:J$65536)","v":0},{"$f":"SUMIF(IF(dati_pdc!$C1307=1,dati_bdv!$C$2:$C$65536,IF(dati_pdc!$C1307=2,dati_bdv!$D$2:$D$65536,IF(dati_pdc!$C1307=3,dati_bdv!$E$2:$E$65536,IF(dati_pdc!$C1307=4,dati_bdv!$F$2:$F$65536,IF(dati_pdc!$C1307=5,dati_bdv!$G$2:$G$65536,dati_bdv!$H$2:$H$65536))))),$A1307,dati_bdv!K$2:K$65536)","v":0},{"$f":"SUMIF(IF(dati_pdc!$C1307=1,dati_bdv!$C$2:$C$65536,IF(dati_pdc!$C1307=2,dati_bdv!$D$2:$D$65536,IF(dati_pdc!$C1307=3,dati_bdv!$E$2:$E$65536,IF(dati_pdc!$C1307=4,dati_bdv!$F$2:$F$65536,IF(dati_pdc!$C1307=5,dati_bdv!$G$2:$G$65536,dati_bdv!$H$2:$H$65536))))),$A1307,dati_bdv!L$2:L$65536)","v":0},{"$f":"SUMIF(IF(dati_pdc!$C1307=1,dati_bdv!$C$2:$C$65536,IF(dati_pdc!$C1307=2,dati_bdv!$D$2:$D$65536,IF(dati_pdc!$C1307=3,dati_bdv!$E$2:$E$65536,IF(dati_pdc!$C1307=4,dati_bdv!$F$2:$F$65536,IF(dati_pdc!$C1307=5,dati_bdv!$G$2:$G$65536,dati_bdv!$H$2:$H$65536))))),$A1307,dati_bdv!M$2:M$65536)","v":0},{"$f":"SUMIF(IF(dati_pdc!$C1307=1,dati_bdv!$C$2:$C$65536,IF(dati_pdc!$C1307=2,dati_bdv!$D$2:$D$65536,IF(dati_pdc!$C1307=3,dati_bdv!$E$2:$E$65536,IF(dati_pdc!$C1307=4,dati_bdv!$F$2:$F$65536,IF(dati_pdc!$C1307=5,dati_bdv!$G$2:$G$65536,dati_bdv!$H$2:$H$65536))))),$A1307,dati_bdv!N$2:N$65536)","v":0}]
[{"$f":"dati_pdc!A1308","v":0},{"$f":"SUMIF(IF(dati_pdc!$C1308=1,dati_bdv!$C$2:$C$65536,IF(dati_pdc!$C1308=2,dati_bdv!$D$2:$D$65536,IF(dati_pdc!$C1308=3,dati_bdv!$E$2:$E$65536,IF(dati_pdc!$C1308=4,dati_bdv!$F$2:$F$65536,IF(dati_pdc!$C1308=5,dati_bdv!$G$2:$G$65536,dati_bdv!$H$2:$H$65536))))),$A1308,dati_bdv!J$2:J$65536)","v":0},{"$f":"SUMIF(IF(dati_pdc!$C1308=1,dati_bdv!$C$2:$C$65536,IF(dati_pdc!$C1308=2,dati_bdv!$D$2:$D$65536,IF(dati_pdc!$C1308=3,dati_bdv!$E$2:$E$65536,IF(dati_pdc!$C1308=4,dati_bdv!$F$2:$F$65536,IF(dati_pdc!$C1308=5,dati_bdv!$G$2:$G$65536,dati_bdv!$H$2:$H$65536))))),$A1308,dati_bdv!K$2:K$65536)","v":0},{"$f":"SUMIF(IF(dati_pdc!$C1308=1,dati_bdv!$C$2:$C$65536,IF(dati_pdc!$C1308=2,dati_bdv!$D$2:$D$65536,IF(dati_pdc!$C1308=3,dati_bdv!$E$2:$E$65536,IF(dati_pdc!$C1308=4,dati_bdv!$F$2:$F$65536,IF(dati_pdc!$C1308=5,dati_bdv!$G$2:$G$65536,dati_bdv!$H$2:$H$65536))))),$A1308,dati_bdv!L$2:L$65536)","v":0},{"$f":"SUMIF(IF(dati_pdc!$C1308=1,dati_bdv!$C$2:$C$65536,IF(dati_pdc!$C1308=2,dati_bdv!$D$2:$D$65536,IF(dati_pdc!$C1308=3,dati_bdv!$E$2:$E$65536,IF(dati_pdc!$C1308=4,dati_bdv!$F$2:$F$65536,IF(dati_pdc!$C1308=5,dati_bdv!$G$2:$G$65536,dati_bdv!$H$2:$H$65536))))),$A1308,dati_bdv!M$2:M$65536)","v":0},{"$f":"SUMIF(IF(dati_pdc!$C1308=1,dati_bdv!$C$2:$C$65536,IF(dati_pdc!$C1308=2,dati_bdv!$D$2:$D$65536,IF(dati_pdc!$C1308=3,dati_bdv!$E$2:$E$65536,IF(dati_pdc!$C1308=4,dati_bdv!$F$2:$F$65536,IF(dati_pdc!$C1308=5,dati_bdv!$G$2:$G$65536,dati_bdv!$H$2:$H$65536))))),$A1308,dati_bdv!N$2:N$65536)","v":0}]
[{"$f":"dati_pdc!A1309","v":0},{"$f":"SUMIF(IF(dati_pdc!$C1309=1,dati_bdv!$C$2:$C$65536,IF(dati_pdc!$C1309=2,dati_bdv!$D$2:$D$65536,IF(dati_pdc!$C1309=3,dati_bdv!$E$2:$E$65536,IF(dati_pdc!$C1309=4,dati_bdv!$F$2:$F$65536,IF(dati_pdc!$C1309=5,dati_bdv!$G$2:$G$65536,dati_bdv!$H$2:$H$65536))))),$A1309,dati_bdv!J$2:J$65536)","v":0},{"$f":"SUMIF(IF(dati_pdc!$C1309=1,dati_bdv!$C$2:$C$65536,IF(dati_pdc!$C1309=2,dati_bdv!$D$2:$D$65536,IF(dati_pdc!$C1309=3,dati_bdv!$E$2:$E$65536,IF(dati_pdc!$C1309=4,dati_bdv!$F$2:$F$65536,IF(dati_pdc!$C1309=5,dati_bdv!$G$2:$G$65536,dati_bdv!$H$2:$H$65536))))),$A1309,dati_bdv!K$2:K$65536)","v":0},{"$f":"SUMIF(IF(dati_pdc!$C1309=1,dati_bdv!$C$2:$C$65536,IF(dati_pdc!$C1309=2,dati_bdv!$D$2:$D$65536,IF(dati_pdc!$C1309=3,dati_bdv!$E$2:$E$65536,IF(dati_pdc!$C1309=4,dati_bdv!$F$2:$F$65536,IF(dati_pdc!$C1309=5,dati_bdv!$G$2:$G$65536,dati_bdv!$H$2:$H$65536))))),$A1309,dati_bdv!L$2:L$65536)","v":0},{"$f":"SUMIF(IF(dati_pdc!$C1309=1,dati_bdv!$C$2:$C$65536,IF(dati_pdc!$C1309=2,dati_bdv!$D$2:$D$65536,IF(dati_pdc!$C1309=3,dati_bdv!$E$2:$E$65536,IF(dati_pdc!$C1309=4,dati_bdv!$F$2:$F$65536,IF(dati_pdc!$C1309=5,dati_bdv!$G$2:$G$65536,dati_bdv!$H$2:$H$65536))))),$A1309,dati_bdv!M$2:M$65536)","v":0},{"$f":"SUMIF(IF(dati_pdc!$C1309=1,dati_bdv!$C$2:$C$65536,IF(dati_pdc!$C1309=2,dati_bdv!$D$2:$D$65536,IF(dati_pdc!$C1309=3,dati_bdv!$E$2:$E$65536,IF(dati_pdc!$C1309=4,dati_bdv!$F$2:$F$65536,IF(dati_pdc!$C1309=5,dati_bdv!$G$2:$G$65536,dati_bdv!$H$2:$H$65536))))),$A1309,dati_bdv!N$2:N$65536)","v":0}]
[{"$f":"dati_pdc!A1310","v":0},{"$f":"SUMIF(IF(dati_pdc!$C1310=1,dati_bdv!$C$2:$C$65536,IF(dati_pdc!$C1310=2,dati_bdv!$D$2:$D$65536,IF(dati_pdc!$C1310=3,dati_bdv!$E$2:$E$65536,IF(dati_pdc!$C1310=4,dati_bdv!$F$2:$F$65536,IF(dati_pdc!$C1310=5,dati_bdv!$G$2:$G$65536,dati_bdv!$H$2:$H$65536))))),$A1310,dati_bdv!J$2:J$65536)","v":0},{"$f":"SUMIF(IF(dati_pdc!$C1310=1,dati_bdv!$C$2:$C$65536,IF(dati_pdc!$C1310=2,dati_bdv!$D$2:$D$65536,IF(dati_pdc!$C1310=3,dati_bdv!$E$2:$E$65536,IF(dati_pdc!$C1310=4,dati_bdv!$F$2:$F$65536,IF(dati_pdc!$C1310=5,dati_bdv!$G$2:$G$65536,dati_bdv!$H$2:$H$65536))))),$A1310,dati_bdv!K$2:K$65536)","v":0},{"$f":"SUMIF(IF(dati_pdc!$C1310=1,dati_bdv!$C$2:$C$65536,IF(dati_pdc!$C1310=2,dati_bdv!$D$2:$D$65536,IF(dati_pdc!$C1310=3,dati_bdv!$E$2:$E$65536,IF(dati_pdc!$C1310=4,dati_bdv!$F$2:$F$65536,IF(dati_pdc!$C1310=5,dati_bdv!$G$2:$G$65536,dati_bdv!$H$2:$H$65536))))),$A1310,dati_bdv!L$2:L$65536)","v":0},{"$f":"SUMIF(IF(dati_pdc!$C1310=1,dati_bdv!$C$2:$C$65536,IF(dati_pdc!$C1310=2,dati_bdv!$D$2:$D$65536,IF(dati_pdc!$C1310=3,dati_bdv!$E$2:$E$65536,IF(dati_pdc!$C1310=4,dati_bdv!$F$2:$F$65536,IF(dati_pdc!$C1310=5,dati_bdv!$G$2:$G$65536,dati_bdv!$H$2:$H$65536))))),$A1310,dati_bdv!M$2:M$65536)","v":0},{"$f":"SUMIF(IF(dati_pdc!$C1310=1,dati_bdv!$C$2:$C$65536,IF(dati_pdc!$C1310=2,dati_bdv!$D$2:$D$65536,IF(dati_pdc!$C1310=3,dati_bdv!$E$2:$E$65536,IF(dati_pdc!$C1310=4,dati_bdv!$F$2:$F$65536,IF(dati_pdc!$C1310=5,dati_bdv!$G$2:$G$65536,dati_bdv!$H$2:$H$65536))))),$A1310,dati_bdv!N$2:N$65536)","v":0}]
[{"$f":"dati_pdc!A1311","v":0},{"$f":"SUMIF(IF(dati_pdc!$C1311=1,dati_bdv!$C$2:$C$65536,IF(dati_pdc!$C1311=2,dati_bdv!$D$2:$D$65536,IF(dati_pdc!$C1311=3,dati_bdv!$E$2:$E$65536,IF(dati_pdc!$C1311=4,dati_bdv!$F$2:$F$65536,IF(dati_pdc!$C1311=5,dati_bdv!$G$2:$G$65536,dati_bdv!$H$2:$H$65536))))),$A1311,dati_bdv!J$2:J$65536)","v":0},{"$f":"SUMIF(IF(dati_pdc!$C1311=1,dati_bdv!$C$2:$C$65536,IF(dati_pdc!$C1311=2,dati_bdv!$D$2:$D$65536,IF(dati_pdc!$C1311=3,dati_bdv!$E$2:$E$65536,IF(dati_pdc!$C1311=4,dati_bdv!$F$2:$F$65536,IF(dati_pdc!$C1311=5,dati_bdv!$G$2:$G$65536,dati_bdv!$H$2:$H$65536))))),$A1311,dati_bdv!K$2:K$65536)","v":0},{"$f":"SUMIF(IF(dati_pdc!$C1311=1,dati_bdv!$C$2:$C$65536,IF(dati_pdc!$C1311=2,dati_bdv!$D$2:$D$65536,IF(dati_pdc!$C1311=3,dati_bdv!$E$2:$E$65536,IF(dati_pdc!$C1311=4,dati_bdv!$F$2:$F$65536,IF(dati_pdc!$C1311=5,dati_bdv!$G$2:$G$65536,dati_bdv!$H$2:$H$65536))))),$A1311,dati_bdv!L$2:L$65536)","v":0},{"$f":"SUMIF(IF(dati_pdc!$C1311=1,dati_bdv!$C$2:$C$65536,IF(dati_pdc!$C1311=2,dati_bdv!$D$2:$D$65536,IF(dati_pdc!$C1311=3,dati_bdv!$E$2:$E$65536,IF(dati_pdc!$C1311=4,dati_bdv!$F$2:$F$65536,IF(dati_pdc!$C1311=5,dati_bdv!$G$2:$G$65536,dati_bdv!$H$2:$H$65536))))),$A1311,dati_bdv!M$2:M$65536)","v":0},{"$f":"SUMIF(IF(dati_pdc!$C1311=1,dati_bdv!$C$2:$C$65536,IF(dati_pdc!$C1311=2,dati_bdv!$D$2:$D$65536,IF(dati_pdc!$C1311=3,dati_bdv!$E$2:$E$65536,IF(dati_pdc!$C1311=4,dati_bdv!$F$2:$F$65536,IF(dati_pdc!$C1311=5,dati_bdv!$G$2:$G$65536,dati_bdv!$H$2:$H$65536))))),$A1311,dati_bdv!N$2:N$65536)","v":0}]
[{"$f":"dati_pdc!A1312","v":0},{"$f":"SUMIF(IF(dati_pdc!$C1312=1,dati_bdv!$C$2:$C$65536,IF(dati_pdc!$C1312=2,dati_bdv!$D$2:$D$65536,IF(dati_pdc!$C1312=3,dati_bdv!$E$2:$E$65536,IF(dati_pdc!$C1312=4,dati_bdv!$F$2:$F$65536,IF(dati_pdc!$C1312=5,dati_bdv!$G$2:$G$65536,dati_bdv!$H$2:$H$65536))))),$A1312,dati_bdv!J$2:J$65536)","v":0},{"$f":"SUMIF(IF(dati_pdc!$C1312=1,dati_bdv!$C$2:$C$65536,IF(dati_pdc!$C1312=2,dati_bdv!$D$2:$D$65536,IF(dati_pdc!$C1312=3,dati_bdv!$E$2:$E$65536,IF(dati_pdc!$C1312=4,dati_bdv!$F$2:$F$65536,IF(dati_pdc!$C1312=5,dati_bdv!$G$2:$G$65536,dati_bdv!$H$2:$H$65536))))),$A1312,dati_bdv!K$2:K$65536)","v":0},{"$f":"SUMIF(IF(dati_pdc!$C1312=1,dati_bdv!$C$2:$C$65536,IF(dati_pdc!$C1312=2,dati_bdv!$D$2:$D$65536,IF(dati_pdc!$C1312=3,dati_bdv!$E$2:$E$65536,IF(dati_pdc!$C1312=4,dati_bdv!$F$2:$F$65536,IF(dati_pdc!$C1312=5,dati_bdv!$G$2:$G$65536,dati_bdv!$H$2:$H$65536))))),$A1312,dati_bdv!L$2:L$65536)","v":0},{"$f":"SUMIF(IF(dati_pdc!$C1312=1,dati_bdv!$C$2:$C$65536,IF(dati_pdc!$C1312=2,dati_bdv!$D$2:$D$65536,IF(dati_pdc!$C1312=3,dati_bdv!$E$2:$E$65536,IF(dati_pdc!$C1312=4,dati_bdv!$F$2:$F$65536,IF(dati_pdc!$C1312=5,dati_bdv!$G$2:$G$65536,dati_bdv!$H$2:$H$65536))))),$A1312,dati_bdv!M$2:M$65536)","v":0},{"$f":"SUMIF(IF(dati_pdc!$C1312=1,dati_bdv!$C$2:$C$65536,IF(dati_pdc!$C1312=2,dati_bdv!$D$2:$D$65536,IF(dati_pdc!$C1312=3,dati_bdv!$E$2:$E$65536,IF(dati_pdc!$C1312=4,dati_bdv!$F$2:$F$65536,IF(dati_pdc!$C1312=5,dati_bdv!$G$2:$G$65536,dati_bdv!$H$2:$H$65536))))),$A1312,dati_bdv!N$2:N$65536)","v":0}]
[{"$f":"dati_pdc!A1313","v":0},{"$f":"SUMIF(IF(dati_pdc!$C1313=1,dati_bdv!$C$2:$C$65536,IF(dati_pdc!$C1313=2,dati_bdv!$D$2:$D$65536,IF(dati_pdc!$C1313=3,dati_bdv!$E$2:$E$65536,IF(dati_pdc!$C1313=4,dati_bdv!$F$2:$F$65536,IF(dati_pdc!$C1313=5,dati_bdv!$G$2:$G$65536,dati_bdv!$H$2:$H$65536))))),$A1313,dati_bdv!J$2:J$65536)","v":0},{"$f":"SUMIF(IF(dati_pdc!$C1313=1,dati_bdv!$C$2:$C$65536,IF(dati_pdc!$C1313=2,dati_bdv!$D$2:$D$65536,IF(dati_pdc!$C1313=3,dati_bdv!$E$2:$E$65536,IF(dati_pdc!$C1313=4,dati_bdv!$F$2:$F$65536,IF(dati_pdc!$C1313=5,dati_bdv!$G$2:$G$65536,dati_bdv!$H$2:$H$65536))))),$A1313,dati_bdv!K$2:K$65536)","v":0},{"$f":"SUMIF(IF(dati_pdc!$C1313=1,dati_bdv!$C$2:$C$65536,IF(dati_pdc!$C1313=2,dati_bdv!$D$2:$D$65536,IF(dati_pdc!$C1313=3,dati_bdv!$E$2:$E$65536,IF(dati_pdc!$C1313=4,dati_bdv!$F$2:$F$65536,IF(dati_pdc!$C1313=5,dati_bdv!$G$2:$G$65536,dati_bdv!$H$2:$H$65536))))),$A1313,dati_bdv!L$2:L$65536)","v":0},{"$f":"SUMIF(IF(dati_pdc!$C1313=1,dati_bdv!$C$2:$C$65536,IF(dati_pdc!$C1313=2,dati_bdv!$D$2:$D$65536,IF(dati_pdc!$C1313=3,dati_bdv!$E$2:$E$65536,IF(dati_pdc!$C1313=4,dati_bdv!$F$2:$F$65536,IF(dati_pdc!$C1313=5,dati_bdv!$G$2:$G$65536,dati_bdv!$H$2:$H$65536))))),$A1313,dati_bdv!M$2:M$65536)","v":0},{"$f":"SUMIF(IF(dati_pdc!$C1313=1,dati_bdv!$C$2:$C$65536,IF(dati_pdc!$C1313=2,dati_bdv!$D$2:$D$65536,IF(dati_pdc!$C1313=3,dati_bdv!$E$2:$E$65536,IF(dati_pdc!$C1313=4,dati_bdv!$F$2:$F$65536,IF(dati_pdc!$C1313=5,dati_bdv!$G$2:$G$65536,dati_bdv!$H$2:$H$65536))))),$A1313,dati_bdv!N$2:N$65536)","v":0}]
[{"$f":"dati_pdc!A1314","v":0},{"$f":"SUMIF(IF(dati_pdc!$C1314=1,dati_bdv!$C$2:$C$65536,IF(dati_pdc!$C1314=2,dati_bdv!$D$2:$D$65536,IF(dati_pdc!$C1314=3,dati_bdv!$E$2:$E$65536,IF(dati_pdc!$C1314=4,dati_bdv!$F$2:$F$65536,IF(dati_pdc!$C1314=5,dati_bdv!$G$2:$G$65536,dati_bdv!$H$2:$H$65536))))),$A1314,dati_bdv!J$2:J$65536)","v":0},{"$f":"SUMIF(IF(dati_pdc!$C1314=1,dati_bdv!$C$2:$C$65536,IF(dati_pdc!$C1314=2,dati_bdv!$D$2:$D$65536,IF(dati_pdc!$C1314=3,dati_bdv!$E$2:$E$65536,IF(dati_pdc!$C1314=4,dati_bdv!$F$2:$F$65536,IF(dati_pdc!$C1314=5,dati_bdv!$G$2:$G$65536,dati_bdv!$H$2:$H$65536))))),$A1314,dati_bdv!K$2:K$65536)","v":0},{"$f":"SUMIF(IF(dati_pdc!$C1314=1,dati_bdv!$C$2:$C$65536,IF(dati_pdc!$C1314=2,dati_bdv!$D$2:$D$65536,IF(dati_pdc!$C1314=3,dati_bdv!$E$2:$E$65536,IF(dati_pdc!$C1314=4,dati_bdv!$F$2:$F$65536,IF(dati_pdc!$C1314=5,dati_bdv!$G$2:$G$65536,dati_bdv!$H$2:$H$65536))))),$A1314,dati_bdv!L$2:L$65536)","v":0},{"$f":"SUMIF(IF(dati_pdc!$C1314=1,dati_bdv!$C$2:$C$65536,IF(dati_pdc!$C1314=2,dati_bdv!$D$2:$D$65536,IF(dati_pdc!$C1314=3,dati_bdv!$E$2:$E$65536,IF(dati_pdc!$C1314=4,dati_bdv!$F$2:$F$65536,IF(dati_pdc!$C1314=5,dati_bdv!$G$2:$G$65536,dati_bdv!$H$2:$H$65536))))),$A1314,dati_bdv!M$2:M$65536)","v":0},{"$f":"SUMIF(IF(dati_pdc!$C1314=1,dati_bdv!$C$2:$C$65536,IF(dati_pdc!$C1314=2,dati_bdv!$D$2:$D$65536,IF(dati_pdc!$C1314=3,dati_bdv!$E$2:$E$65536,IF(dati_pdc!$C1314=4,dati_bdv!$F$2:$F$65536,IF(dati_pdc!$C1314=5,dati_bdv!$G$2:$G$65536,dati_bdv!$H$2:$H$65536))))),$A1314,dati_bdv!N$2:N$65536)","v":0}]
[{"$f":"dati_pdc!A1315","v":0},{"$f":"SUMIF(IF(dati_pdc!$C1315=1,dati_bdv!$C$2:$C$65536,IF(dati_pdc!$C1315=2,dati_bdv!$D$2:$D$65536,IF(dati_pdc!$C1315=3,dati_bdv!$E$2:$E$65536,IF(dati_pdc!$C1315=4,dati_bdv!$F$2:$F$65536,IF(dati_pdc!$C1315=5,dati_bdv!$G$2:$G$65536,dati_bdv!$H$2:$H$65536))))),$A1315,dati_bdv!J$2:J$65536)","v":0},{"$f":"SUMIF(IF(dati_pdc!$C1315=1,dati_bdv!$C$2:$C$65536,IF(dati_pdc!$C1315=2,dati_bdv!$D$2:$D$65536,IF(dati_pdc!$C1315=3,dati_bdv!$E$2:$E$65536,IF(dati_pdc!$C1315=4,dati_bdv!$F$2:$F$65536,IF(dati_pdc!$C1315=5,dati_bdv!$G$2:$G$65536,dati_bdv!$H$2:$H$65536))))),$A1315,dati_bdv!K$2:K$65536)","v":0},{"$f":"SUMIF(IF(dati_pdc!$C1315=1,dati_bdv!$C$2:$C$65536,IF(dati_pdc!$C1315=2,dati_bdv!$D$2:$D$65536,IF(dati_pdc!$C1315=3,dati_bdv!$E$2:$E$65536,IF(dati_pdc!$C1315=4,dati_bdv!$F$2:$F$65536,IF(dati_pdc!$C1315=5,dati_bdv!$G$2:$G$65536,dati_bdv!$H$2:$H$65536))))),$A1315,dati_bdv!L$2:L$65536)","v":0},{"$f":"SUMIF(IF(dati_pdc!$C1315=1,dati_bdv!$C$2:$C$65536,IF(dati_pdc!$C1315=2,dati_bdv!$D$2:$D$65536,IF(dati_pdc!$C1315=3,dati_bdv!$E$2:$E$65536,IF(dati_pdc!$C1315=4,dati_bdv!$F$2:$F$65536,IF(dati_pdc!$C1315=5,dati_bdv!$G$2:$G$65536,dati_bdv!$H$2:$H$65536))))),$A1315,dati_bdv!M$2:M$65536)","v":0},{"$f":"SUMIF(IF(dati_pdc!$C1315=1,dati_bdv!$C$2:$C$65536,IF(dati_pdc!$C1315=2,dati_bdv!$D$2:$D$65536,IF(dati_pdc!$C1315=3,dati_bdv!$E$2:$E$65536,IF(dati_pdc!$C1315=4,dati_bdv!$F$2:$F$65536,IF(dati_pdc!$C1315=5,dati_bdv!$G$2:$G$65536,dati_bdv!$H$2:$H$65536))))),$A1315,dati_bdv!N$2:N$65536)","v":0}]
[{"$f":"dati_pdc!A1316","v":0},{"$f":"SUMIF(IF(dati_pdc!$C1316=1,dati_bdv!$C$2:$C$65536,IF(dati_pdc!$C1316=2,dati_bdv!$D$2:$D$65536,IF(dati_pdc!$C1316=3,dati_bdv!$E$2:$E$65536,IF(dati_pdc!$C1316=4,dati_bdv!$F$2:$F$65536,IF(dati_pdc!$C1316=5,dati_bdv!$G$2:$G$65536,dati_bdv!$H$2:$H$65536))))),$A1316,dati_bdv!J$2:J$65536)","v":0},{"$f":"SUMIF(IF(dati_pdc!$C1316=1,dati_bdv!$C$2:$C$65536,IF(dati_pdc!$C1316=2,dati_bdv!$D$2:$D$65536,IF(dati_pdc!$C1316=3,dati_bdv!$E$2:$E$65536,IF(dati_pdc!$C1316=4,dati_bdv!$F$2:$F$65536,IF(dati_pdc!$C1316=5,dati_bdv!$G$2:$G$65536,dati_bdv!$H$2:$H$65536))))),$A1316,dati_bdv!K$2:K$65536)","v":0},{"$f":"SUMIF(IF(dati_pdc!$C1316=1,dati_bdv!$C$2:$C$65536,IF(dati_pdc!$C1316=2,dati_bdv!$D$2:$D$65536,IF(dati_pdc!$C1316=3,dati_bdv!$E$2:$E$65536,IF(dati_pdc!$C1316=4,dati_bdv!$F$2:$F$65536,IF(dati_pdc!$C1316=5,dati_bdv!$G$2:$G$65536,dati_bdv!$H$2:$H$65536))))),$A1316,dati_bdv!L$2:L$65536)","v":0},{"$f":"SUMIF(IF(dati_pdc!$C1316=1,dati_bdv!$C$2:$C$65536,IF(dati_pdc!$C1316=2,dati_bdv!$D$2:$D$65536,IF(dati_pdc!$C1316=3,dati_bdv!$E$2:$E$65536,IF(dati_pdc!$C1316=4,dati_bdv!$F$2:$F$65536,IF(dati_pdc!$C1316=5,dati_bdv!$G$2:$G$65536,dati_bdv!$H$2:$H$65536))))),$A1316,dati_bdv!M$2:M$65536)","v":0},{"$f":"SUMIF(IF(dati_pdc!$C1316=1,dati_bdv!$C$2:$C$65536,IF(dati_pdc!$C1316=2,dati_bdv!$D$2:$D$65536,IF(dati_pdc!$C1316=3,dati_bdv!$E$2:$E$65536,IF(dati_pdc!$C1316=4,dati_bdv!$F$2:$F$65536,IF(dati_pdc!$C1316=5,dati_bdv!$G$2:$G$65536,dati_bdv!$H$2:$H$65536))))),$A1316,dati_bdv!N$2:N$65536)","v":0}]
[{"$f":"dati_pdc!A1317","v":0},{"$f":"SUMIF(IF(dati_pdc!$C1317=1,dati_bdv!$C$2:$C$65536,IF(dati_pdc!$C1317=2,dati_bdv!$D$2:$D$65536,IF(dati_pdc!$C1317=3,dati_bdv!$E$2:$E$65536,IF(dati_pdc!$C1317=4,dati_bdv!$F$2:$F$65536,IF(dati_pdc!$C1317=5,dati_bdv!$G$2:$G$65536,dati_bdv!$H$2:$H$65536))))),$A1317,dati_bdv!J$2:J$65536)","v":0},{"$f":"SUMIF(IF(dati_pdc!$C1317=1,dati_bdv!$C$2:$C$65536,IF(dati_pdc!$C1317=2,dati_bdv!$D$2:$D$65536,IF(dati_pdc!$C1317=3,dati_bdv!$E$2:$E$65536,IF(dati_pdc!$C1317=4,dati_bdv!$F$2:$F$65536,IF(dati_pdc!$C1317=5,dati_bdv!$G$2:$G$65536,dati_bdv!$H$2:$H$65536))))),$A1317,dati_bdv!K$2:K$65536)","v":0},{"$f":"SUMIF(IF(dati_pdc!$C1317=1,dati_bdv!$C$2:$C$65536,IF(dati_pdc!$C1317=2,dati_bdv!$D$2:$D$65536,IF(dati_pdc!$C1317=3,dati_bdv!$E$2:$E$65536,IF(dati_pdc!$C1317=4,dati_bdv!$F$2:$F$65536,IF(dati_pdc!$C1317=5,dati_bdv!$G$2:$G$65536,dati_bdv!$H$2:$H$65536))))),$A1317,dati_bdv!L$2:L$65536)","v":0},{"$f":"SUMIF(IF(dati_pdc!$C1317=1,dati_bdv!$C$2:$C$65536,IF(dati_pdc!$C1317=2,dati_bdv!$D$2:$D$65536,IF(dati_pdc!$C1317=3,dati_bdv!$E$2:$E$65536,IF(dati_pdc!$C1317=4,dati_bdv!$F$2:$F$65536,IF(dati_pdc!$C1317=5,dati_bdv!$G$2:$G$65536,dati_bdv!$H$2:$H$65536))))),$A1317,dati_bdv!M$2:M$65536)","v":0},{"$f":"SUMIF(IF(dati_pdc!$C1317=1,dati_bdv!$C$2:$C$65536,IF(dati_pdc!$C1317=2,dati_bdv!$D$2:$D$65536,IF(dati_pdc!$C1317=3,dati_bdv!$E$2:$E$65536,IF(dati_pdc!$C1317=4,dati_bdv!$F$2:$F$65536,IF(dati_pdc!$C1317=5,dati_bdv!$G$2:$G$65536,dati_bdv!$H$2:$H$65536))))),$A1317,dati_bdv!N$2:N$65536)","v":0}]
[{"$f":"dati_pdc!A1318","v":0},{"$f":"SUMIF(IF(dati_pdc!$C1318=1,dati_bdv!$C$2:$C$65536,IF(dati_pdc!$C1318=2,dati_bdv!$D$2:$D$65536,IF(dati_pdc!$C1318=3,dati_bdv!$E$2:$E$65536,IF(dati_pdc!$C1318=4,dati_bdv!$F$2:$F$65536,IF(dati_pdc!$C1318=5,dati_bdv!$G$2:$G$65536,dati_bdv!$H$2:$H$65536))))),$A1318,dati_bdv!J$2:J$65536)","v":0},{"$f":"SUMIF(IF(dati_pdc!$C1318=1,dati_bdv!$C$2:$C$65536,IF(dati_pdc!$C1318=2,dati_bdv!$D$2:$D$65536,IF(dati_pdc!$C1318=3,dati_bdv!$E$2:$E$65536,IF(dati_pdc!$C1318=4,dati_bdv!$F$2:$F$65536,IF(dati_pdc!$C1318=5,dati_bdv!$G$2:$G$65536,dati_bdv!$H$2:$H$65536))))),$A1318,dati_bdv!K$2:K$65536)","v":0},{"$f":"SUMIF(IF(dati_pdc!$C1318=1,dati_bdv!$C$2:$C$65536,IF(dati_pdc!$C1318=2,dati_bdv!$D$2:$D$65536,IF(dati_pdc!$C1318=3,dati_bdv!$E$2:$E$65536,IF(dati_pdc!$C1318=4,dati_bdv!$F$2:$F$65536,IF(dati_pdc!$C1318=5,dati_bdv!$G$2:$G$65536,dati_bdv!$H$2:$H$65536))))),$A1318,dati_bdv!L$2:L$65536)","v":0},{"$f":"SUMIF(IF(dati_pdc!$C1318=1,dati_bdv!$C$2:$C$65536,IF(dati_pdc!$C1318=2,dati_bdv!$D$2:$D$65536,IF(dati_pdc!$C1318=3,dati_bdv!$E$2:$E$65536,IF(dati_pdc!$C1318=4,dati_bdv!$F$2:$F$65536,IF(dati_pdc!$C1318=5,dati_bdv!$G$2:$G$65536,dati_bdv!$H$2:$H$65536))))),$A1318,dati_bdv!M$2:M$65536)","v":0},{"$f":"SUMIF(IF(dati_pdc!$C1318=1,dati_bdv!$C$2:$C$65536,IF(dati_pdc!$C1318=2,dati_bdv!$D$2:$D$65536,IF(dati_pdc!$C1318=3,dati_bdv!$E$2:$E$65536,IF(dati_pdc!$C1318=4,dati_bdv!$F$2:$F$65536,IF(dati_pdc!$C1318=5,dati_bdv!$G$2:$G$65536,dati_bdv!$H$2:$H$65536))))),$A1318,dati_bdv!N$2:N$65536)","v":0}]
[{"$f":"dati_pdc!A1319","v":0},{"$f":"SUMIF(IF(dati_pdc!$C1319=1,dati_bdv!$C$2:$C$65536,IF(dati_pdc!$C1319=2,dati_bdv!$D$2:$D$65536,IF(dati_pdc!$C1319=3,dati_bdv!$E$2:$E$65536,IF(dati_pdc!$C1319=4,dati_bdv!$F$2:$F$65536,IF(dati_pdc!$C1319=5,dati_bdv!$G$2:$G$65536,dati_bdv!$H$2:$H$65536))))),$A1319,dati_bdv!J$2:J$65536)","v":0},{"$f":"SUMIF(IF(dati_pdc!$C1319=1,dati_bdv!$C$2:$C$65536,IF(dati_pdc!$C1319=2,dati_bdv!$D$2:$D$65536,IF(dati_pdc!$C1319=3,dati_bdv!$E$2:$E$65536,IF(dati_pdc!$C1319=4,dati_bdv!$F$2:$F$65536,IF(dati_pdc!$C1319=5,dati_bdv!$G$2:$G$65536,dati_bdv!$H$2:$H$65536))))),$A1319,dati_bdv!K$2:K$65536)","v":0},{"$f":"SUMIF(IF(dati_pdc!$C1319=1,dati_bdv!$C$2:$C$65536,IF(dati_pdc!$C1319=2,dati_bdv!$D$2:$D$65536,IF(dati_pdc!$C1319=3,dati_bdv!$E$2:$E$65536,IF(dati_pdc!$C1319=4,dati_bdv!$F$2:$F$65536,IF(dati_pdc!$C1319=5,dati_bdv!$G$2:$G$65536,dati_bdv!$H$2:$H$65536))))),$A1319,dati_bdv!L$2:L$65536)","v":0},{"$f":"SUMIF(IF(dati_pdc!$C1319=1,dati_bdv!$C$2:$C$65536,IF(dati_pdc!$C1319=2,dati_bdv!$D$2:$D$65536,IF(dati_pdc!$C1319=3,dati_bdv!$E$2:$E$65536,IF(dati_pdc!$C1319=4,dati_bdv!$F$2:$F$65536,IF(dati_pdc!$C1319=5,dati_bdv!$G$2:$G$65536,dati_bdv!$H$2:$H$65536))))),$A1319,dati_bdv!M$2:M$65536)","v":0},{"$f":"SUMIF(IF(dati_pdc!$C1319=1,dati_bdv!$C$2:$C$65536,IF(dati_pdc!$C1319=2,dati_bdv!$D$2:$D$65536,IF(dati_pdc!$C1319=3,dati_bdv!$E$2:$E$65536,IF(dati_pdc!$C1319=4,dati_bdv!$F$2:$F$65536,IF(dati_pdc!$C1319=5,dati_bdv!$G$2:$G$65536,dati_bdv!$H$2:$H$65536))))),$A1319,dati_bdv!N$2:N$65536)","v":0}]
[{"$f":"dati_pdc!A1320","v":0},{"$f":"SUMIF(IF(dati_pdc!$C1320=1,dati_bdv!$C$2:$C$65536,IF(dati_pdc!$C1320=2,dati_bdv!$D$2:$D$65536,IF(dati_pdc!$C1320=3,dati_bdv!$E$2:$E$65536,IF(dati_pdc!$C1320=4,dati_bdv!$F$2:$F$65536,IF(dati_pdc!$C1320=5,dati_bdv!$G$2:$G$65536,dati_bdv!$H$2:$H$65536))))),$A1320,dati_bdv!J$2:J$65536)","v":0},{"$f":"SUMIF(IF(dati_pdc!$C1320=1,dati_bdv!$C$2:$C$65536,IF(dati_pdc!$C1320=2,dati_bdv!$D$2:$D$65536,IF(dati_pdc!$C1320=3,dati_bdv!$E$2:$E$65536,IF(dati_pdc!$C1320=4,dati_bdv!$F$2:$F$65536,IF(dati_pdc!$C1320=5,dati_bdv!$G$2:$G$65536,dati_bdv!$H$2:$H$65536))))),$A1320,dati_bdv!K$2:K$65536)","v":0},{"$f":"SUMIF(IF(dati_pdc!$C1320=1,dati_bdv!$C$2:$C$65536,IF(dati_pdc!$C1320=2,dati_bdv!$D$2:$D$65536,IF(dati_pdc!$C1320=3,dati_bdv!$E$2:$E$65536,IF(dati_pdc!$C1320=4,dati_bdv!$F$2:$F$65536,IF(dati_pdc!$C1320=5,dati_bdv!$G$2:$G$65536,dati_bdv!$H$2:$H$65536))))),$A1320,dati_bdv!L$2:L$65536)","v":0},{"$f":"SUMIF(IF(dati_pdc!$C1320=1,dati_bdv!$C$2:$C$65536,IF(dati_pdc!$C1320=2,dati_bdv!$D$2:$D$65536,IF(dati_pdc!$C1320=3,dati_bdv!$E$2:$E$65536,IF(dati_pdc!$C1320=4,dati_bdv!$F$2:$F$65536,IF(dati_pdc!$C1320=5,dati_bdv!$G$2:$G$65536,dati_bdv!$H$2:$H$65536))))),$A1320,dati_bdv!M$2:M$65536)","v":0},{"$f":"SUMIF(IF(dati_pdc!$C1320=1,dati_bdv!$C$2:$C$65536,IF(dati_pdc!$C1320=2,dati_bdv!$D$2:$D$65536,IF(dati_pdc!$C1320=3,dati_bdv!$E$2:$E$65536,IF(dati_pdc!$C1320=4,dati_bdv!$F$2:$F$65536,IF(dati_pdc!$C1320=5,dati_bdv!$G$2:$G$65536,dati_bdv!$H$2:$H$65536))))),$A1320,dati_bdv!N$2:N$65536)","v":0}]
[{"$f":"dati_pdc!A1321","v":0},{"$f":"SUMIF(IF(dati_pdc!$C1321=1,dati_bdv!$C$2:$C$65536,IF(dati_pdc!$C1321=2,dati_bdv!$D$2:$D$65536,IF(dati_pdc!$C1321=3,dati_bdv!$E$2:$E$65536,IF(dati_pdc!$C1321=4,dati_bdv!$F$2:$F$65536,IF(dati_pdc!$C1321=5,dati_bdv!$G$2:$G$65536,dati_bdv!$H$2:$H$65536))))),$A1321,dati_bdv!J$2:J$65536)","v":0},{"$f":"SUMIF(IF(dati_pdc!$C1321=1,dati_bdv!$C$2:$C$65536,IF(dati_pdc!$C1321=2,dati_bdv!$D$2:$D$65536,IF(dati_pdc!$C1321=3,dati_bdv!$E$2:$E$65536,IF(dati_pdc!$C1321=4,dati_bdv!$F$2:$F$65536,IF(dati_pdc!$C1321=5,dati_bdv!$G$2:$G$65536,dati_bdv!$H$2:$H$65536))))),$A1321,dati_bdv!K$2:K$65536)","v":0},{"$f":"SUMIF(IF(dati_pdc!$C1321=1,dati_bdv!$C$2:$C$65536,IF(dati_pdc!$C1321=2,dati_bdv!$D$2:$D$65536,IF(dati_pdc!$C1321=3,dati_bdv!$E$2:$E$65536,IF(dati_pdc!$C1321=4,dati_bdv!$F$2:$F$65536,IF(dati_pdc!$C1321=5,dati_bdv!$G$2:$G$65536,dati_bdv!$H$2:$H$65536))))),$A1321,dati_bdv!L$2:L$65536)","v":0},{"$f":"SUMIF(IF(dati_pdc!$C1321=1,dati_bdv!$C$2:$C$65536,IF(dati_pdc!$C1321=2,dati_bdv!$D$2:$D$65536,IF(dati_pdc!$C1321=3,dati_bdv!$E$2:$E$65536,IF(dati_pdc!$C1321=4,dati_bdv!$F$2:$F$65536,IF(dati_pdc!$C1321=5,dati_bdv!$G$2:$G$65536,dati_bdv!$H$2:$H$65536))))),$A1321,dati_bdv!M$2:M$65536)","v":0},{"$f":"SUMIF(IF(dati_pdc!$C1321=1,dati_bdv!$C$2:$C$65536,IF(dati_pdc!$C1321=2,dati_bdv!$D$2:$D$65536,IF(dati_pdc!$C1321=3,dati_bdv!$E$2:$E$65536,IF(dati_pdc!$C1321=4,dati_bdv!$F$2:$F$65536,IF(dati_pdc!$C1321=5,dati_bdv!$G$2:$G$65536,dati_bdv!$H$2:$H$65536))))),$A1321,dati_bdv!N$2:N$65536)","v":0}]
[{"$f":"dati_pdc!A1322","v":0},{"$f":"SUMIF(IF(dati_pdc!$C1322=1,dati_bdv!$C$2:$C$65536,IF(dati_pdc!$C1322=2,dati_bdv!$D$2:$D$65536,IF(dati_pdc!$C1322=3,dati_bdv!$E$2:$E$65536,IF(dati_pdc!$C1322=4,dati_bdv!$F$2:$F$65536,IF(dati_pdc!$C1322=5,dati_bdv!$G$2:$G$65536,dati_bdv!$H$2:$H$65536))))),$A1322,dati_bdv!J$2:J$65536)","v":0},{"$f":"SUMIF(IF(dati_pdc!$C1322=1,dati_bdv!$C$2:$C$65536,IF(dati_pdc!$C1322=2,dati_bdv!$D$2:$D$65536,IF(dati_pdc!$C1322=3,dati_bdv!$E$2:$E$65536,IF(dati_pdc!$C1322=4,dati_bdv!$F$2:$F$65536,IF(dati_pdc!$C1322=5,dati_bdv!$G$2:$G$65536,dati_bdv!$H$2:$H$65536))))),$A1322,dati_bdv!K$2:K$65536)","v":0},{"$f":"SUMIF(IF(dati_pdc!$C1322=1,dati_bdv!$C$2:$C$65536,IF(dati_pdc!$C1322=2,dati_bdv!$D$2:$D$65536,IF(dati_pdc!$C1322=3,dati_bdv!$E$2:$E$65536,IF(dati_pdc!$C1322=4,dati_bdv!$F$2:$F$65536,IF(dati_pdc!$C1322=5,dati_bdv!$G$2:$G$65536,dati_bdv!$H$2:$H$65536))))),$A1322,dati_bdv!L$2:L$65536)","v":0},{"$f":"SUMIF(IF(dati_pdc!$C1322=1,dati_bdv!$C$2:$C$65536,IF(dati_pdc!$C1322=2,dati_bdv!$D$2:$D$65536,IF(dati_pdc!$C1322=3,dati_bdv!$E$2:$E$65536,IF(dati_pdc!$C1322=4,dati_bdv!$F$2:$F$65536,IF(dati_pdc!$C1322=5,dati_bdv!$G$2:$G$65536,dati_bdv!$H$2:$H$65536))))),$A1322,dati_bdv!M$2:M$65536)","v":0},{"$f":"SUMIF(IF(dati_pdc!$C1322=1,dati_bdv!$C$2:$C$65536,IF(dati_pdc!$C1322=2,dati_bdv!$D$2:$D$65536,IF(dati_pdc!$C1322=3,dati_bdv!$E$2:$E$65536,IF(dati_pdc!$C1322=4,dati_bdv!$F$2:$F$65536,IF(dati_pdc!$C1322=5,dati_bdv!$G$2:$G$65536,dati_bdv!$H$2:$H$65536))))),$A1322,dati_bdv!N$2:N$65536)","v":0}]
[{"$f":"dati_pdc!A1323","v":0},{"$f":"SUMIF(IF(dati_pdc!$C1323=1,dati_bdv!$C$2:$C$65536,IF(dati_pdc!$C1323=2,dati_bdv!$D$2:$D$65536,IF(dati_pdc!$C1323=3,dati_bdv!$E$2:$E$65536,IF(dati_pdc!$C1323=4,dati_bdv!$F$2:$F$65536,IF(dati_pdc!$C1323=5,dati_bdv!$G$2:$G$65536,dati_bdv!$H$2:$H$65536))))),$A1323,dati_bdv!J$2:J$65536)","v":0},{"$f":"SUMIF(IF(dati_pdc!$C1323=1,dati_bdv!$C$2:$C$65536,IF(dati_pdc!$C1323=2,dati_bdv!$D$2:$D$65536,IF(dati_pdc!$C1323=3,dati_bdv!$E$2:$E$65536,IF(dati_pdc!$C1323=4,dati_bdv!$F$2:$F$65536,IF(dati_pdc!$C1323=5,dati_bdv!$G$2:$G$65536,dati_bdv!$H$2:$H$65536))))),$A1323,dati_bdv!K$2:K$65536)","v":0},{"$f":"SUMIF(IF(dati_pdc!$C1323=1,dati_bdv!$C$2:$C$65536,IF(dati_pdc!$C1323=2,dati_bdv!$D$2:$D$65536,IF(dati_pdc!$C1323=3,dati_bdv!$E$2:$E$65536,IF(dati_pdc!$C1323=4,dati_bdv!$F$2:$F$65536,IF(dati_pdc!$C1323=5,dati_bdv!$G$2:$G$65536,dati_bdv!$H$2:$H$65536))))),$A1323,dati_bdv!L$2:L$65536)","v":0},{"$f":"SUMIF(IF(dati_pdc!$C1323=1,dati_bdv!$C$2:$C$65536,IF(dati_pdc!$C1323=2,dati_bdv!$D$2:$D$65536,IF(dati_pdc!$C1323=3,dati_bdv!$E$2:$E$65536,IF(dati_pdc!$C1323=4,dati_bdv!$F$2:$F$65536,IF(dati_pdc!$C1323=5,dati_bdv!$G$2:$G$65536,dati_bdv!$H$2:$H$65536))))),$A1323,dati_bdv!M$2:M$65536)","v":0},{"$f":"SUMIF(IF(dati_pdc!$C1323=1,dati_bdv!$C$2:$C$65536,IF(dati_pdc!$C1323=2,dati_bdv!$D$2:$D$65536,IF(dati_pdc!$C1323=3,dati_bdv!$E$2:$E$65536,IF(dati_pdc!$C1323=4,dati_bdv!$F$2:$F$65536,IF(dati_pdc!$C1323=5,dati_bdv!$G$2:$G$65536,dati_bdv!$H$2:$H$65536))))),$A1323,dati_bdv!N$2:N$65536)","v":0}]
[{"$f":"dati_pdc!A1324","v":0},{"$f":"SUMIF(IF(dati_pdc!$C1324=1,dati_bdv!$C$2:$C$65536,IF(dati_pdc!$C1324=2,dati_bdv!$D$2:$D$65536,IF(dati_pdc!$C1324=3,dati_bdv!$E$2:$E$65536,IF(dati_pdc!$C1324=4,dati_bdv!$F$2:$F$65536,IF(dati_pdc!$C1324=5,dati_bdv!$G$2:$G$65536,dati_bdv!$H$2:$H$65536))))),$A1324,dati_bdv!J$2:J$65536)","v":0},{"$f":"SUMIF(IF(dati_pdc!$C1324=1,dati_bdv!$C$2:$C$65536,IF(dati_pdc!$C1324=2,dati_bdv!$D$2:$D$65536,IF(dati_pdc!$C1324=3,dati_bdv!$E$2:$E$65536,IF(dati_pdc!$C1324=4,dati_bdv!$F$2:$F$65536,IF(dati_pdc!$C1324=5,dati_bdv!$G$2:$G$65536,dati_bdv!$H$2:$H$65536))))),$A1324,dati_bdv!K$2:K$65536)","v":0},{"$f":"SUMIF(IF(dati_pdc!$C1324=1,dati_bdv!$C$2:$C$65536,IF(dati_pdc!$C1324=2,dati_bdv!$D$2:$D$65536,IF(dati_pdc!$C1324=3,dati_bdv!$E$2:$E$65536,IF(dati_pdc!$C1324=4,dati_bdv!$F$2:$F$65536,IF(dati_pdc!$C1324=5,dati_bdv!$G$2:$G$65536,dati_bdv!$H$2:$H$65536))))),$A1324,dati_bdv!L$2:L$65536)","v":0},{"$f":"SUMIF(IF(dati_pdc!$C1324=1,dati_bdv!$C$2:$C$65536,IF(dati_pdc!$C1324=2,dati_bdv!$D$2:$D$65536,IF(dati_pdc!$C1324=3,dati_bdv!$E$2:$E$65536,IF(dati_pdc!$C1324=4,dati_bdv!$F$2:$F$65536,IF(dati_pdc!$C1324=5,dati_bdv!$G$2:$G$65536,dati_bdv!$H$2:$H$65536))))),$A1324,dati_bdv!M$2:M$65536)","v":0},{"$f":"SUMIF(IF(dati_pdc!$C1324=1,dati_bdv!$C$2:$C$65536,IF(dati_pdc!$C1324=2,dati_bdv!$D$2:$D$65536,IF(dati_pdc!$C1324=3,dati_bdv!$E$2:$E$65536,IF(dati_pdc!$C1324=4,dati_bdv!$F$2:$F$65536,IF(dati_pdc!$C1324=5,dati_bdv!$G$2:$G$65536,dati_bdv!$H$2:$H$65536))))),$A1324,dati_bdv!N$2:N$65536)","v":0}]
[{"$f":"dati_pdc!A1325","v":0},{"$f":"SUMIF(IF(dati_pdc!$C1325=1,dati_bdv!$C$2:$C$65536,IF(dati_pdc!$C1325=2,dati_bdv!$D$2:$D$65536,IF(dati_pdc!$C1325=3,dati_bdv!$E$2:$E$65536,IF(dati_pdc!$C1325=4,dati_bdv!$F$2:$F$65536,IF(dati_pdc!$C1325=5,dati_bdv!$G$2:$G$65536,dati_bdv!$H$2:$H$65536))))),$A1325,dati_bdv!J$2:J$65536)","v":0},{"$f":"SUMIF(IF(dati_pdc!$C1325=1,dati_bdv!$C$2:$C$65536,IF(dati_pdc!$C1325=2,dati_bdv!$D$2:$D$65536,IF(dati_pdc!$C1325=3,dati_bdv!$E$2:$E$65536,IF(dati_pdc!$C1325=4,dati_bdv!$F$2:$F$65536,IF(dati_pdc!$C1325=5,dati_bdv!$G$2:$G$65536,dati_bdv!$H$2:$H$65536))))),$A1325,dati_bdv!K$2:K$65536)","v":0},{"$f":"SUMIF(IF(dati_pdc!$C1325=1,dati_bdv!$C$2:$C$65536,IF(dati_pdc!$C1325=2,dati_bdv!$D$2:$D$65536,IF(dati_pdc!$C1325=3,dati_bdv!$E$2:$E$65536,IF(dati_pdc!$C1325=4,dati_bdv!$F$2:$F$65536,IF(dati_pdc!$C1325=5,dati_bdv!$G$2:$G$65536,dati_bdv!$H$2:$H$65536))))),$A1325,dati_bdv!L$2:L$65536)","v":0},{"$f":"SUMIF(IF(dati_pdc!$C1325=1,dati_bdv!$C$2:$C$65536,IF(dati_pdc!$C1325=2,dati_bdv!$D$2:$D$65536,IF(dati_pdc!$C1325=3,dati_bdv!$E$2:$E$65536,IF(dati_pdc!$C1325=4,dati_bdv!$F$2:$F$65536,IF(dati_pdc!$C1325=5,dati_bdv!$G$2:$G$65536,dati_bdv!$H$2:$H$65536))))),$A1325,dati_bdv!M$2:M$65536)","v":0},{"$f":"SUMIF(IF(dati_pdc!$C1325=1,dati_bdv!$C$2:$C$65536,IF(dati_pdc!$C1325=2,dati_bdv!$D$2:$D$65536,IF(dati_pdc!$C1325=3,dati_bdv!$E$2:$E$65536,IF(dati_pdc!$C1325=4,dati_bdv!$F$2:$F$65536,IF(dati_pdc!$C1325=5,dati_bdv!$G$2:$G$65536,dati_bdv!$H$2:$H$65536))))),$A1325,dati_bdv!N$2:N$65536)","v":0}]
[{"$f":"dati_pdc!A1326","v":0},{"$f":"SUMIF(IF(dati_pdc!$C1326=1,dati_bdv!$C$2:$C$65536,IF(dati_pdc!$C1326=2,dati_bdv!$D$2:$D$65536,IF(dati_pdc!$C1326=3,dati_bdv!$E$2:$E$65536,IF(dati_pdc!$C1326=4,dati_bdv!$F$2:$F$65536,IF(dati_pdc!$C1326=5,dati_bdv!$G$2:$G$65536,dati_bdv!$H$2:$H$65536))))),$A1326,dati_bdv!J$2:J$65536)","v":0},{"$f":"SUMIF(IF(dati_pdc!$C1326=1,dati_bdv!$C$2:$C$65536,IF(dati_pdc!$C1326=2,dati_bdv!$D$2:$D$65536,IF(dati_pdc!$C1326=3,dati_bdv!$E$2:$E$65536,IF(dati_pdc!$C1326=4,dati_bdv!$F$2:$F$65536,IF(dati_pdc!$C1326=5,dati_bdv!$G$2:$G$65536,dati_bdv!$H$2:$H$65536))))),$A1326,dati_bdv!K$2:K$65536)","v":0},{"$f":"SUMIF(IF(dati_pdc!$C1326=1,dati_bdv!$C$2:$C$65536,IF(dati_pdc!$C1326=2,dati_bdv!$D$2:$D$65536,IF(dati_pdc!$C1326=3,dati_bdv!$E$2:$E$65536,IF(dati_pdc!$C1326=4,dati_bdv!$F$2:$F$65536,IF(dati_pdc!$C1326=5,dati_bdv!$G$2:$G$65536,dati_bdv!$H$2:$H$65536))))),$A1326,dati_bdv!L$2:L$65536)","v":0},{"$f":"SUMIF(IF(dati_pdc!$C1326=1,dati_bdv!$C$2:$C$65536,IF(dati_pdc!$C1326=2,dati_bdv!$D$2:$D$65536,IF(dati_pdc!$C1326=3,dati_bdv!$E$2:$E$65536,IF(dati_pdc!$C1326=4,dati_bdv!$F$2:$F$65536,IF(dati_pdc!$C1326=5,dati_bdv!$G$2:$G$65536,dati_bdv!$H$2:$H$65536))))),$A1326,dati_bdv!M$2:M$65536)","v":0},{"$f":"SUMIF(IF(dati_pdc!$C1326=1,dati_bdv!$C$2:$C$65536,IF(dati_pdc!$C1326=2,dati_bdv!$D$2:$D$65536,IF(dati_pdc!$C1326=3,dati_bdv!$E$2:$E$65536,IF(dati_pdc!$C1326=4,dati_bdv!$F$2:$F$65536,IF(dati_pdc!$C1326=5,dati_bdv!$G$2:$G$65536,dati_bdv!$H$2:$H$65536))))),$A1326,dati_bdv!N$2:N$65536)","v":0}]
[{"$f":"dati_pdc!A1327","v":0},{"$f":"SUMIF(IF(dati_pdc!$C1327=1,dati_bdv!$C$2:$C$65536,IF(dati_pdc!$C1327=2,dati_bdv!$D$2:$D$65536,IF(dati_pdc!$C1327=3,dati_bdv!$E$2:$E$65536,IF(dati_pdc!$C1327=4,dati_bdv!$F$2:$F$65536,IF(dati_pdc!$C1327=5,dati_bdv!$G$2:$G$65536,dati_bdv!$H$2:$H$65536))))),$A1327,dati_bdv!J$2:J$65536)","v":0},{"$f":"SUMIF(IF(dati_pdc!$C1327=1,dati_bdv!$C$2:$C$65536,IF(dati_pdc!$C1327=2,dati_bdv!$D$2:$D$65536,IF(dati_pdc!$C1327=3,dati_bdv!$E$2:$E$65536,IF(dati_pdc!$C1327=4,dati_bdv!$F$2:$F$65536,IF(dati_pdc!$C1327=5,dati_bdv!$G$2:$G$65536,dati_bdv!$H$2:$H$65536))))),$A1327,dati_bdv!K$2:K$65536)","v":0},{"$f":"SUMIF(IF(dati_pdc!$C1327=1,dati_bdv!$C$2:$C$65536,IF(dati_pdc!$C1327=2,dati_bdv!$D$2:$D$65536,IF(dati_pdc!$C1327=3,dati_bdv!$E$2:$E$65536,IF(dati_pdc!$C1327=4,dati_bdv!$F$2:$F$65536,IF(dati_pdc!$C1327=5,dati_bdv!$G$2:$G$65536,dati_bdv!$H$2:$H$65536))))),$A1327,dati_bdv!L$2:L$65536)","v":0},{"$f":"SUMIF(IF(dati_pdc!$C1327=1,dati_bdv!$C$2:$C$65536,IF(dati_pdc!$C1327=2,dati_bdv!$D$2:$D$65536,IF(dati_pdc!$C1327=3,dati_bdv!$E$2:$E$65536,IF(dati_pdc!$C1327=4,dati_bdv!$F$2:$F$65536,IF(dati_pdc!$C1327=5,dati_bdv!$G$2:$G$65536,dati_bdv!$H$2:$H$65536))))),$A1327,dati_bdv!M$2:M$65536)","v":0},{"$f":"SUMIF(IF(dati_pdc!$C1327=1,dati_bdv!$C$2:$C$65536,IF(dati_pdc!$C1327=2,dati_bdv!$D$2:$D$65536,IF(dati_pdc!$C1327=3,dati_bdv!$E$2:$E$65536,IF(dati_pdc!$C1327=4,dati_bdv!$F$2:$F$65536,IF(dati_pdc!$C1327=5,dati_bdv!$G$2:$G$65536,dati_bdv!$H$2:$H$65536))))),$A1327,dati_bdv!N$2:N$65536)","v":0}]
[{"$f":"dati_pdc!A1328","v":0},{"$f":"SUMIF(IF(dati_pdc!$C1328=1,dati_bdv!$C$2:$C$65536,IF(dati_pdc!$C1328=2,dati_bdv!$D$2:$D$65536,IF(dati_pdc!$C1328=3,dati_bdv!$E$2:$E$65536,IF(dati_pdc!$C1328=4,dati_bdv!$F$2:$F$65536,IF(dati_pdc!$C1328=5,dati_bdv!$G$2:$G$65536,dati_bdv!$H$2:$H$65536))))),$A1328,dati_bdv!J$2:J$65536)","v":0},{"$f":"SUMIF(IF(dati_pdc!$C1328=1,dati_bdv!$C$2:$C$65536,IF(dati_pdc!$C1328=2,dati_bdv!$D$2:$D$65536,IF(dati_pdc!$C1328=3,dati_bdv!$E$2:$E$65536,IF(dati_pdc!$C1328=4,dati_bdv!$F$2:$F$65536,IF(dati_pdc!$C1328=5,dati_bdv!$G$2:$G$65536,dati_bdv!$H$2:$H$65536))))),$A1328,dati_bdv!K$2:K$65536)","v":0},{"$f":"SUMIF(IF(dati_pdc!$C1328=1,dati_bdv!$C$2:$C$65536,IF(dati_pdc!$C1328=2,dati_bdv!$D$2:$D$65536,IF(dati_pdc!$C1328=3,dati_bdv!$E$2:$E$65536,IF(dati_pdc!$C1328=4,dati_bdv!$F$2:$F$65536,IF(dati_pdc!$C1328=5,dati_bdv!$G$2:$G$65536,dati_bdv!$H$2:$H$65536))))),$A1328,dati_bdv!L$2:L$65536)","v":0},{"$f":"SUMIF(IF(dati_pdc!$C1328=1,dati_bdv!$C$2:$C$65536,IF(dati_pdc!$C1328=2,dati_bdv!$D$2:$D$65536,IF(dati_pdc!$C1328=3,dati_bdv!$E$2:$E$65536,IF(dati_pdc!$C1328=4,dati_bdv!$F$2:$F$65536,IF(dati_pdc!$C1328=5,dati_bdv!$G$2:$G$65536,dati_bdv!$H$2:$H$65536))))),$A1328,dati_bdv!M$2:M$65536)","v":0},{"$f":"SUMIF(IF(dati_pdc!$C1328=1,dati_bdv!$C$2:$C$65536,IF(dati_pdc!$C1328=2,dati_bdv!$D$2:$D$65536,IF(dati_pdc!$C1328=3,dati_bdv!$E$2:$E$65536,IF(dati_pdc!$C1328=4,dati_bdv!$F$2:$F$65536,IF(dati_pdc!$C1328=5,dati_bdv!$G$2:$G$65536,dati_bdv!$H$2:$H$65536))))),$A1328,dati_bdv!N$2:N$65536)","v":0}]
[{"$f":"dati_pdc!A1329","v":0},{"$f":"SUMIF(IF(dati_pdc!$C1329=1,dati_bdv!$C$2:$C$65536,IF(dati_pdc!$C1329=2,dati_bdv!$D$2:$D$65536,IF(dati_pdc!$C1329=3,dati_bdv!$E$2:$E$65536,IF(dati_pdc!$C1329=4,dati_bdv!$F$2:$F$65536,IF(dati_pdc!$C1329=5,dati_bdv!$G$2:$G$65536,dati_bdv!$H$2:$H$65536))))),$A1329,dati_bdv!J$2:J$65536)","v":0},{"$f":"SUMIF(IF(dati_pdc!$C1329=1,dati_bdv!$C$2:$C$65536,IF(dati_pdc!$C1329=2,dati_bdv!$D$2:$D$65536,IF(dati_pdc!$C1329=3,dati_bdv!$E$2:$E$65536,IF(dati_pdc!$C1329=4,dati_bdv!$F$2:$F$65536,IF(dati_pdc!$C1329=5,dati_bdv!$G$2:$G$65536,dati_bdv!$H$2:$H$65536))))),$A1329,dati_bdv!K$2:K$65536)","v":0},{"$f":"SUMIF(IF(dati_pdc!$C1329=1,dati_bdv!$C$2:$C$65536,IF(dati_pdc!$C1329=2,dati_bdv!$D$2:$D$65536,IF(dati_pdc!$C1329=3,dati_bdv!$E$2:$E$65536,IF(dati_pdc!$C1329=4,dati_bdv!$F$2:$F$65536,IF(dati_pdc!$C1329=5,dati_bdv!$G$2:$G$65536,dati_bdv!$H$2:$H$65536))))),$A1329,dati_bdv!L$2:L$65536)","v":0},{"$f":"SUMIF(IF(dati_pdc!$C1329=1,dati_bdv!$C$2:$C$65536,IF(dati_pdc!$C1329=2,dati_bdv!$D$2:$D$65536,IF(dati_pdc!$C1329=3,dati_bdv!$E$2:$E$65536,IF(dati_pdc!$C1329=4,dati_bdv!$F$2:$F$65536,IF(dati_pdc!$C1329=5,dati_bdv!$G$2:$G$65536,dati_bdv!$H$2:$H$65536))))),$A1329,dati_bdv!M$2:M$65536)","v":0},{"$f":"SUMIF(IF(dati_pdc!$C1329=1,dati_bdv!$C$2:$C$65536,IF(dati_pdc!$C1329=2,dati_bdv!$D$2:$D$65536,IF(dati_pdc!$C1329=3,dati_bdv!$E$2:$E$65536,IF(dati_pdc!$C1329=4,dati_bdv!$F$2:$F$65536,IF(dati_pdc!$C1329=5,dati_bdv!$G$2:$G$65536,dati_bdv!$H$2:$H$65536))))),$A1329,dati_bdv!N$2:N$65536)","v":0}]
[{"$f":"dati_pdc!A1330","v":0},{"$f":"SUMIF(IF(dati_pdc!$C1330=1,dati_bdv!$C$2:$C$65536,IF(dati_pdc!$C1330=2,dati_bdv!$D$2:$D$65536,IF(dati_pdc!$C1330=3,dati_bdv!$E$2:$E$65536,IF(dati_pdc!$C1330=4,dati_bdv!$F$2:$F$65536,IF(dati_pdc!$C1330=5,dati_bdv!$G$2:$G$65536,dati_bdv!$H$2:$H$65536))))),$A1330,dati_bdv!J$2:J$65536)","v":0},{"$f":"SUMIF(IF(dati_pdc!$C1330=1,dati_bdv!$C$2:$C$65536,IF(dati_pdc!$C1330=2,dati_bdv!$D$2:$D$65536,IF(dati_pdc!$C1330=3,dati_bdv!$E$2:$E$65536,IF(dati_pdc!$C1330=4,dati_bdv!$F$2:$F$65536,IF(dati_pdc!$C1330=5,dati_bdv!$G$2:$G$65536,dati_bdv!$H$2:$H$65536))))),$A1330,dati_bdv!K$2:K$65536)","v":0},{"$f":"SUMIF(IF(dati_pdc!$C1330=1,dati_bdv!$C$2:$C$65536,IF(dati_pdc!$C1330=2,dati_bdv!$D$2:$D$65536,IF(dati_pdc!$C1330=3,dati_bdv!$E$2:$E$65536,IF(dati_pdc!$C1330=4,dati_bdv!$F$2:$F$65536,IF(dati_pdc!$C1330=5,dati_bdv!$G$2:$G$65536,dati_bdv!$H$2:$H$65536))))),$A1330,dati_bdv!L$2:L$65536)","v":0},{"$f":"SUMIF(IF(dati_pdc!$C1330=1,dati_bdv!$C$2:$C$65536,IF(dati_pdc!$C1330=2,dati_bdv!$D$2:$D$65536,IF(dati_pdc!$C1330=3,dati_bdv!$E$2:$E$65536,IF(dati_pdc!$C1330=4,dati_bdv!$F$2:$F$65536,IF(dati_pdc!$C1330=5,dati_bdv!$G$2:$G$65536,dati_bdv!$H$2:$H$65536))))),$A1330,dati_bdv!M$2:M$65536)","v":0},{"$f":"SUMIF(IF(dati_pdc!$C1330=1,dati_bdv!$C$2:$C$65536,IF(dati_pdc!$C1330=2,dati_bdv!$D$2:$D$65536,IF(dati_pdc!$C1330=3,dati_bdv!$E$2:$E$65536,IF(dati_pdc!$C1330=4,dati_bdv!$F$2:$F$65536,IF(dati_pdc!$C1330=5,dati_bdv!$G$2:$G$65536,dati_bdv!$H$2:$H$65536))))),$A1330,dati_bdv!N$2:N$65536)","v":0}]
[{"$f":"dati_pdc!A1331","v":0},{"$f":"SUMIF(IF(dati_pdc!$C1331=1,dati_bdv!$C$2:$C$65536,IF(dati_pdc!$C1331=2,dati_bdv!$D$2:$D$65536,IF(dati_pdc!$C1331=3,dati_bdv!$E$2:$E$65536,IF(dati_pdc!$C1331=4,dati_bdv!$F$2:$F$65536,IF(dati_pdc!$C1331=5,dati_bdv!$G$2:$G$65536,dati_bdv!$H$2:$H$65536))))),$A1331,dati_bdv!J$2:J$65536)","v":0},{"$f":"SUMIF(IF(dati_pdc!$C1331=1,dati_bdv!$C$2:$C$65536,IF(dati_pdc!$C1331=2,dati_bdv!$D$2:$D$65536,IF(dati_pdc!$C1331=3,dati_bdv!$E$2:$E$65536,IF(dati_pdc!$C1331=4,dati_bdv!$F$2:$F$65536,IF(dati_pdc!$C1331=5,dati_bdv!$G$2:$G$65536,dati_bdv!$H$2:$H$65536))))),$A1331,dati_bdv!K$2:K$65536)","v":0},{"$f":"SUMIF(IF(dati_pdc!$C1331=1,dati_bdv!$C$2:$C$65536,IF(dati_pdc!$C1331=2,dati_bdv!$D$2:$D$65536,IF(dati_pdc!$C1331=3,dati_bdv!$E$2:$E$65536,IF(dati_pdc!$C1331=4,dati_bdv!$F$2:$F$65536,IF(dati_pdc!$C1331=5,dati_bdv!$G$2:$G$65536,dati_bdv!$H$2:$H$65536))))),$A1331,dati_bdv!L$2:L$65536)","v":0},{"$f":"SUMIF(IF(dati_pdc!$C1331=1,dati_bdv!$C$2:$C$65536,IF(dati_pdc!$C1331=2,dati_bdv!$D$2:$D$65536,IF(dati_pdc!$C1331=3,dati_bdv!$E$2:$E$65536,IF(dati_pdc!$C1331=4,dati_bdv!$F$2:$F$65536,IF(dati_pdc!$C1331=5,dati_bdv!$G$2:$G$65536,dati_bdv!$H$2:$H$65536))))),$A1331,dati_bdv!M$2:M$65536)","v":0},{"$f":"SUMIF(IF(dati_pdc!$C1331=1,dati_bdv!$C$2:$C$65536,IF(dati_pdc!$C1331=2,dati_bdv!$D$2:$D$65536,IF(dati_pdc!$C1331=3,dati_bdv!$E$2:$E$65536,IF(dati_pdc!$C1331=4,dati_bdv!$F$2:$F$65536,IF(dati_pdc!$C1331=5,dati_bdv!$G$2:$G$65536,dati_bdv!$H$2:$H$65536))))),$A1331,dati_bdv!N$2:N$65536)","v":0}]
[{"$f":"dati_pdc!A1332","v":0},{"$f":"SUMIF(IF(dati_pdc!$C1332=1,dati_bdv!$C$2:$C$65536,IF(dati_pdc!$C1332=2,dati_bdv!$D$2:$D$65536,IF(dati_pdc!$C1332=3,dati_bdv!$E$2:$E$65536,IF(dati_pdc!$C1332=4,dati_bdv!$F$2:$F$65536,IF(dati_pdc!$C1332=5,dati_bdv!$G$2:$G$65536,dati_bdv!$H$2:$H$65536))))),$A1332,dati_bdv!J$2:J$65536)","v":0},{"$f":"SUMIF(IF(dati_pdc!$C1332=1,dati_bdv!$C$2:$C$65536,IF(dati_pdc!$C1332=2,dati_bdv!$D$2:$D$65536,IF(dati_pdc!$C1332=3,dati_bdv!$E$2:$E$65536,IF(dati_pdc!$C1332=4,dati_bdv!$F$2:$F$65536,IF(dati_pdc!$C1332=5,dati_bdv!$G$2:$G$65536,dati_bdv!$H$2:$H$65536))))),$A1332,dati_bdv!K$2:K$65536)","v":0},{"$f":"SUMIF(IF(dati_pdc!$C1332=1,dati_bdv!$C$2:$C$65536,IF(dati_pdc!$C1332=2,dati_bdv!$D$2:$D$65536,IF(dati_pdc!$C1332=3,dati_bdv!$E$2:$E$65536,IF(dati_pdc!$C1332=4,dati_bdv!$F$2:$F$65536,IF(dati_pdc!$C1332=5,dati_bdv!$G$2:$G$65536,dati_bdv!$H$2:$H$65536))))),$A1332,dati_bdv!L$2:L$65536)","v":0},{"$f":"SUMIF(IF(dati_pdc!$C1332=1,dati_bdv!$C$2:$C$65536,IF(dati_pdc!$C1332=2,dati_bdv!$D$2:$D$65536,IF(dati_pdc!$C1332=3,dati_bdv!$E$2:$E$65536,IF(dati_pdc!$C1332=4,dati_bdv!$F$2:$F$65536,IF(dati_pdc!$C1332=5,dati_bdv!$G$2:$G$65536,dati_bdv!$H$2:$H$65536))))),$A1332,dati_bdv!M$2:M$65536)","v":0},{"$f":"SUMIF(IF(dati_pdc!$C1332=1,dati_bdv!$C$2:$C$65536,IF(dati_pdc!$C1332=2,dati_bdv!$D$2:$D$65536,IF(dati_pdc!$C1332=3,dati_bdv!$E$2:$E$65536,IF(dati_pdc!$C1332=4,dati_bdv!$F$2:$F$65536,IF(dati_pdc!$C1332=5,dati_bdv!$G$2:$G$65536,dati_bdv!$H$2:$H$65536))))),$A1332,dati_bdv!N$2:N$65536)","v":0}]
[{"$f":"dati_pdc!A1333","v":0},{"$f":"SUMIF(IF(dati_pdc!$C1333=1,dati_bdv!$C$2:$C$65536,IF(dati_pdc!$C1333=2,dati_bdv!$D$2:$D$65536,IF(dati_pdc!$C1333=3,dati_bdv!$E$2:$E$65536,IF(dati_pdc!$C1333=4,dati_bdv!$F$2:$F$65536,IF(dati_pdc!$C1333=5,dati_bdv!$G$2:$G$65536,dati_bdv!$H$2:$H$65536))))),$A1333,dati_bdv!J$2:J$65536)","v":0},{"$f":"SUMIF(IF(dati_pdc!$C1333=1,dati_bdv!$C$2:$C$65536,IF(dati_pdc!$C1333=2,dati_bdv!$D$2:$D$65536,IF(dati_pdc!$C1333=3,dati_bdv!$E$2:$E$65536,IF(dati_pdc!$C1333=4,dati_bdv!$F$2:$F$65536,IF(dati_pdc!$C1333=5,dati_bdv!$G$2:$G$65536,dati_bdv!$H$2:$H$65536))))),$A1333,dati_bdv!K$2:K$65536)","v":0},{"$f":"SUMIF(IF(dati_pdc!$C1333=1,dati_bdv!$C$2:$C$65536,IF(dati_pdc!$C1333=2,dati_bdv!$D$2:$D$65536,IF(dati_pdc!$C1333=3,dati_bdv!$E$2:$E$65536,IF(dati_pdc!$C1333=4,dati_bdv!$F$2:$F$65536,IF(dati_pdc!$C1333=5,dati_bdv!$G$2:$G$65536,dati_bdv!$H$2:$H$65536))))),$A1333,dati_bdv!L$2:L$65536)","v":0},{"$f":"SUMIF(IF(dati_pdc!$C1333=1,dati_bdv!$C$2:$C$65536,IF(dati_pdc!$C1333=2,dati_bdv!$D$2:$D$65536,IF(dati_pdc!$C1333=3,dati_bdv!$E$2:$E$65536,IF(dati_pdc!$C1333=4,dati_bdv!$F$2:$F$65536,IF(dati_pdc!$C1333=5,dati_bdv!$G$2:$G$65536,dati_bdv!$H$2:$H$65536))))),$A1333,dati_bdv!M$2:M$65536)","v":0},{"$f":"SUMIF(IF(dati_pdc!$C1333=1,dati_bdv!$C$2:$C$65536,IF(dati_pdc!$C1333=2,dati_bdv!$D$2:$D$65536,IF(dati_pdc!$C1333=3,dati_bdv!$E$2:$E$65536,IF(dati_pdc!$C1333=4,dati_bdv!$F$2:$F$65536,IF(dati_pdc!$C1333=5,dati_bdv!$G$2:$G$65536,dati_bdv!$H$2:$H$65536))))),$A1333,dati_bdv!N$2:N$65536)","v":0}]
[{"$f":"dati_pdc!A1334","v":0},{"$f":"SUMIF(IF(dati_pdc!$C1334=1,dati_bdv!$C$2:$C$65536,IF(dati_pdc!$C1334=2,dati_bdv!$D$2:$D$65536,IF(dati_pdc!$C1334=3,dati_bdv!$E$2:$E$65536,IF(dati_pdc!$C1334=4,dati_bdv!$F$2:$F$65536,IF(dati_pdc!$C1334=5,dati_bdv!$G$2:$G$65536,dati_bdv!$H$2:$H$65536))))),$A1334,dati_bdv!J$2:J$65536)","v":0},{"$f":"SUMIF(IF(dati_pdc!$C1334=1,dati_bdv!$C$2:$C$65536,IF(dati_pdc!$C1334=2,dati_bdv!$D$2:$D$65536,IF(dati_pdc!$C1334=3,dati_bdv!$E$2:$E$65536,IF(dati_pdc!$C1334=4,dati_bdv!$F$2:$F$65536,IF(dati_pdc!$C1334=5,dati_bdv!$G$2:$G$65536,dati_bdv!$H$2:$H$65536))))),$A1334,dati_bdv!K$2:K$65536)","v":0},{"$f":"SUMIF(IF(dati_pdc!$C1334=1,dati_bdv!$C$2:$C$65536,IF(dati_pdc!$C1334=2,dati_bdv!$D$2:$D$65536,IF(dati_pdc!$C1334=3,dati_bdv!$E$2:$E$65536,IF(dati_pdc!$C1334=4,dati_bdv!$F$2:$F$65536,IF(dati_pdc!$C1334=5,dati_bdv!$G$2:$G$65536,dati_bdv!$H$2:$H$65536))))),$A1334,dati_bdv!L$2:L$65536)","v":0},{"$f":"SUMIF(IF(dati_pdc!$C1334=1,dati_bdv!$C$2:$C$65536,IF(dati_pdc!$C1334=2,dati_bdv!$D$2:$D$65536,IF(dati_pdc!$C1334=3,dati_bdv!$E$2:$E$65536,IF(dati_pdc!$C1334=4,dati_bdv!$F$2:$F$65536,IF(dati_pdc!$C1334=5,dati_bdv!$G$2:$G$65536,dati_bdv!$H$2:$H$65536))))),$A1334,dati_bdv!M$2:M$65536)","v":0},{"$f":"SUMIF(IF(dati_pdc!$C1334=1,dati_bdv!$C$2:$C$65536,IF(dati_pdc!$C1334=2,dati_bdv!$D$2:$D$65536,IF(dati_pdc!$C1334=3,dati_bdv!$E$2:$E$65536,IF(dati_pdc!$C1334=4,dati_bdv!$F$2:$F$65536,IF(dati_pdc!$C1334=5,dati_bdv!$G$2:$G$65536,dati_bdv!$H$2:$H$65536))))),$A1334,dati_bdv!N$2:N$65536)","v":0}]
[{"$f":"dati_pdc!A1335","v":0},{"$f":"SUMIF(IF(dati_pdc!$C1335=1,dati_bdv!$C$2:$C$65536,IF(dati_pdc!$C1335=2,dati_bdv!$D$2:$D$65536,IF(dati_pdc!$C1335=3,dati_bdv!$E$2:$E$65536,IF(dati_pdc!$C1335=4,dati_bdv!$F$2:$F$65536,IF(dati_pdc!$C1335=5,dati_bdv!$G$2:$G$65536,dati_bdv!$H$2:$H$65536))))),$A1335,dati_bdv!J$2:J$65536)","v":0},{"$f":"SUMIF(IF(dati_pdc!$C1335=1,dati_bdv!$C$2:$C$65536,IF(dati_pdc!$C1335=2,dati_bdv!$D$2:$D$65536,IF(dati_pdc!$C1335=3,dati_bdv!$E$2:$E$65536,IF(dati_pdc!$C1335=4,dati_bdv!$F$2:$F$65536,IF(dati_pdc!$C1335=5,dati_bdv!$G$2:$G$65536,dati_bdv!$H$2:$H$65536))))),$A1335,dati_bdv!K$2:K$65536)","v":0},{"$f":"SUMIF(IF(dati_pdc!$C1335=1,dati_bdv!$C$2:$C$65536,IF(dati_pdc!$C1335=2,dati_bdv!$D$2:$D$65536,IF(dati_pdc!$C1335=3,dati_bdv!$E$2:$E$65536,IF(dati_pdc!$C1335=4,dati_bdv!$F$2:$F$65536,IF(dati_pdc!$C1335=5,dati_bdv!$G$2:$G$65536,dati_bdv!$H$2:$H$65536))))),$A1335,dati_bdv!L$2:L$65536)","v":0},{"$f":"SUMIF(IF(dati_pdc!$C1335=1,dati_bdv!$C$2:$C$65536,IF(dati_pdc!$C1335=2,dati_bdv!$D$2:$D$65536,IF(dati_pdc!$C1335=3,dati_bdv!$E$2:$E$65536,IF(dati_pdc!$C1335=4,dati_bdv!$F$2:$F$65536,IF(dati_pdc!$C1335=5,dati_bdv!$G$2:$G$65536,dati_bdv!$H$2:$H$65536))))),$A1335,dati_bdv!M$2:M$65536)","v":0},{"$f":"SUMIF(IF(dati_pdc!$C1335=1,dati_bdv!$C$2:$C$65536,IF(dati_pdc!$C1335=2,dati_bdv!$D$2:$D$65536,IF(dati_pdc!$C1335=3,dati_bdv!$E$2:$E$65536,IF(dati_pdc!$C1335=4,dati_bdv!$F$2:$F$65536,IF(dati_pdc!$C1335=5,dati_bdv!$G$2:$G$65536,dati_bdv!$H$2:$H$65536))))),$A1335,dati_bdv!N$2:N$65536)","v":0}]
[{"$f":"dati_pdc!A1336","v":0},{"$f":"SUMIF(IF(dati_pdc!$C1336=1,dati_bdv!$C$2:$C$65536,IF(dati_pdc!$C1336=2,dati_bdv!$D$2:$D$65536,IF(dati_pdc!$C1336=3,dati_bdv!$E$2:$E$65536,IF(dati_pdc!$C1336=4,dati_bdv!$F$2:$F$65536,IF(dati_pdc!$C1336=5,dati_bdv!$G$2:$G$65536,dati_bdv!$H$2:$H$65536))))),$A1336,dati_bdv!J$2:J$65536)","v":0},{"$f":"SUMIF(IF(dati_pdc!$C1336=1,dati_bdv!$C$2:$C$65536,IF(dati_pdc!$C1336=2,dati_bdv!$D$2:$D$65536,IF(dati_pdc!$C1336=3,dati_bdv!$E$2:$E$65536,IF(dati_pdc!$C1336=4,dati_bdv!$F$2:$F$65536,IF(dati_pdc!$C1336=5,dati_bdv!$G$2:$G$65536,dati_bdv!$H$2:$H$65536))))),$A1336,dati_bdv!K$2:K$65536)","v":0},{"$f":"SUMIF(IF(dati_pdc!$C1336=1,dati_bdv!$C$2:$C$65536,IF(dati_pdc!$C1336=2,dati_bdv!$D$2:$D$65536,IF(dati_pdc!$C1336=3,dati_bdv!$E$2:$E$65536,IF(dati_pdc!$C1336=4,dati_bdv!$F$2:$F$65536,IF(dati_pdc!$C1336=5,dati_bdv!$G$2:$G$65536,dati_bdv!$H$2:$H$65536))))),$A1336,dati_bdv!L$2:L$65536)","v":0},{"$f":"SUMIF(IF(dati_pdc!$C1336=1,dati_bdv!$C$2:$C$65536,IF(dati_pdc!$C1336=2,dati_bdv!$D$2:$D$65536,IF(dati_pdc!$C1336=3,dati_bdv!$E$2:$E$65536,IF(dati_pdc!$C1336=4,dati_bdv!$F$2:$F$65536,IF(dati_pdc!$C1336=5,dati_bdv!$G$2:$G$65536,dati_bdv!$H$2:$H$65536))))),$A1336,dati_bdv!M$2:M$65536)","v":0},{"$f":"SUMIF(IF(dati_pdc!$C1336=1,dati_bdv!$C$2:$C$65536,IF(dati_pdc!$C1336=2,dati_bdv!$D$2:$D$65536,IF(dati_pdc!$C1336=3,dati_bdv!$E$2:$E$65536,IF(dati_pdc!$C1336=4,dati_bdv!$F$2:$F$65536,IF(dati_pdc!$C1336=5,dati_bdv!$G$2:$G$65536,dati_bdv!$H$2:$H$65536))))),$A1336,dati_bdv!N$2:N$65536)","v":0}]
[{"$f":"dati_pdc!A1337","v":0},{"$f":"SUMIF(IF(dati_pdc!$C1337=1,dati_bdv!$C$2:$C$65536,IF(dati_pdc!$C1337=2,dati_bdv!$D$2:$D$65536,IF(dati_pdc!$C1337=3,dati_bdv!$E$2:$E$65536,IF(dati_pdc!$C1337=4,dati_bdv!$F$2:$F$65536,IF(dati_pdc!$C1337=5,dati_bdv!$G$2:$G$65536,dati_bdv!$H$2:$H$65536))))),$A1337,dati_bdv!J$2:J$65536)","v":0},{"$f":"SUMIF(IF(dati_pdc!$C1337=1,dati_bdv!$C$2:$C$65536,IF(dati_pdc!$C1337=2,dati_bdv!$D$2:$D$65536,IF(dati_pdc!$C1337=3,dati_bdv!$E$2:$E$65536,IF(dati_pdc!$C1337=4,dati_bdv!$F$2:$F$65536,IF(dati_pdc!$C1337=5,dati_bdv!$G$2:$G$65536,dati_bdv!$H$2:$H$65536))))),$A1337,dati_bdv!K$2:K$65536)","v":0},{"$f":"SUMIF(IF(dati_pdc!$C1337=1,dati_bdv!$C$2:$C$65536,IF(dati_pdc!$C1337=2,dati_bdv!$D$2:$D$65536,IF(dati_pdc!$C1337=3,dati_bdv!$E$2:$E$65536,IF(dati_pdc!$C1337=4,dati_bdv!$F$2:$F$65536,IF(dati_pdc!$C1337=5,dati_bdv!$G$2:$G$65536,dati_bdv!$H$2:$H$65536))))),$A1337,dati_bdv!L$2:L$65536)","v":0},{"$f":"SUMIF(IF(dati_pdc!$C1337=1,dati_bdv!$C$2:$C$65536,IF(dati_pdc!$C1337=2,dati_bdv!$D$2:$D$65536,IF(dati_pdc!$C1337=3,dati_bdv!$E$2:$E$65536,IF(dati_pdc!$C1337=4,dati_bdv!$F$2:$F$65536,IF(dati_pdc!$C1337=5,dati_bdv!$G$2:$G$65536,dati_bdv!$H$2:$H$65536))))),$A1337,dati_bdv!M$2:M$65536)","v":0},{"$f":"SUMIF(IF(dati_pdc!$C1337=1,dati_bdv!$C$2:$C$65536,IF(dati_pdc!$C1337=2,dati_bdv!$D$2:$D$65536,IF(dati_pdc!$C1337=3,dati_bdv!$E$2:$E$65536,IF(dati_pdc!$C1337=4,dati_bdv!$F$2:$F$65536,IF(dati_pdc!$C1337=5,dati_bdv!$G$2:$G$65536,dati_bdv!$H$2:$H$65536))))),$A1337,dati_bdv!N$2:N$65536)","v":0}]
[{"$f":"dati_pdc!A1338","v":0},{"$f":"SUMIF(IF(dati_pdc!$C1338=1,dati_bdv!$C$2:$C$65536,IF(dati_pdc!$C1338=2,dati_bdv!$D$2:$D$65536,IF(dati_pdc!$C1338=3,dati_bdv!$E$2:$E$65536,IF(dati_pdc!$C1338=4,dati_bdv!$F$2:$F$65536,IF(dati_pdc!$C1338=5,dati_bdv!$G$2:$G$65536,dati_bdv!$H$2:$H$65536))))),$A1338,dati_bdv!J$2:J$65536)","v":0},{"$f":"SUMIF(IF(dati_pdc!$C1338=1,dati_bdv!$C$2:$C$65536,IF(dati_pdc!$C1338=2,dati_bdv!$D$2:$D$65536,IF(dati_pdc!$C1338=3,dati_bdv!$E$2:$E$65536,IF(dati_pdc!$C1338=4,dati_bdv!$F$2:$F$65536,IF(dati_pdc!$C1338=5,dati_bdv!$G$2:$G$65536,dati_bdv!$H$2:$H$65536))))),$A1338,dati_bdv!K$2:K$65536)","v":0},{"$f":"SUMIF(IF(dati_pdc!$C1338=1,dati_bdv!$C$2:$C$65536,IF(dati_pdc!$C1338=2,dati_bdv!$D$2:$D$65536,IF(dati_pdc!$C1338=3,dati_bdv!$E$2:$E$65536,IF(dati_pdc!$C1338=4,dati_bdv!$F$2:$F$65536,IF(dati_pdc!$C1338=5,dati_bdv!$G$2:$G$65536,dati_bdv!$H$2:$H$65536))))),$A1338,dati_bdv!L$2:L$65536)","v":0},{"$f":"SUMIF(IF(dati_pdc!$C1338=1,dati_bdv!$C$2:$C$65536,IF(dati_pdc!$C1338=2,dati_bdv!$D$2:$D$65536,IF(dati_pdc!$C1338=3,dati_bdv!$E$2:$E$65536,IF(dati_pdc!$C1338=4,dati_bdv!$F$2:$F$65536,IF(dati_pdc!$C1338=5,dati_bdv!$G$2:$G$65536,dati_bdv!$H$2:$H$65536))))),$A1338,dati_bdv!M$2:M$65536)","v":0},{"$f":"SUMIF(IF(dati_pdc!$C1338=1,dati_bdv!$C$2:$C$65536,IF(dati_pdc!$C1338=2,dati_bdv!$D$2:$D$65536,IF(dati_pdc!$C1338=3,dati_bdv!$E$2:$E$65536,IF(dati_pdc!$C1338=4,dati_bdv!$F$2:$F$65536,IF(dati_pdc!$C1338=5,dati_bdv!$G$2:$G$65536,dati_bdv!$H$2:$H$65536))))),$A1338,dati_bdv!N$2:N$65536)","v":0}]
[{"$f":"dati_pdc!A1339","v":0},{"$f":"SUMIF(IF(dati_pdc!$C1339=1,dati_bdv!$C$2:$C$65536,IF(dati_pdc!$C1339=2,dati_bdv!$D$2:$D$65536,IF(dati_pdc!$C1339=3,dati_bdv!$E$2:$E$65536,IF(dati_pdc!$C1339=4,dati_bdv!$F$2:$F$65536,IF(dati_pdc!$C1339=5,dati_bdv!$G$2:$G$65536,dati_bdv!$H$2:$H$65536))))),$A1339,dati_bdv!J$2:J$65536)","v":0},{"$f":"SUMIF(IF(dati_pdc!$C1339=1,dati_bdv!$C$2:$C$65536,IF(dati_pdc!$C1339=2,dati_bdv!$D$2:$D$65536,IF(dati_pdc!$C1339=3,dati_bdv!$E$2:$E$65536,IF(dati_pdc!$C1339=4,dati_bdv!$F$2:$F$65536,IF(dati_pdc!$C1339=5,dati_bdv!$G$2:$G$65536,dati_bdv!$H$2:$H$65536))))),$A1339,dati_bdv!K$2:K$65536)","v":0},{"$f":"SUMIF(IF(dati_pdc!$C1339=1,dati_bdv!$C$2:$C$65536,IF(dati_pdc!$C1339=2,dati_bdv!$D$2:$D$65536,IF(dati_pdc!$C1339=3,dati_bdv!$E$2:$E$65536,IF(dati_pdc!$C1339=4,dati_bdv!$F$2:$F$65536,IF(dati_pdc!$C1339=5,dati_bdv!$G$2:$G$65536,dati_bdv!$H$2:$H$65536))))),$A1339,dati_bdv!L$2:L$65536)","v":0},{"$f":"SUMIF(IF(dati_pdc!$C1339=1,dati_bdv!$C$2:$C$65536,IF(dati_pdc!$C1339=2,dati_bdv!$D$2:$D$65536,IF(dati_pdc!$C1339=3,dati_bdv!$E$2:$E$65536,IF(dati_pdc!$C1339=4,dati_bdv!$F$2:$F$65536,IF(dati_pdc!$C1339=5,dati_bdv!$G$2:$G$65536,dati_bdv!$H$2:$H$65536))))),$A1339,dati_bdv!M$2:M$65536)","v":0},{"$f":"SUMIF(IF(dati_pdc!$C1339=1,dati_bdv!$C$2:$C$65536,IF(dati_pdc!$C1339=2,dati_bdv!$D$2:$D$65536,IF(dati_pdc!$C1339=3,dati_bdv!$E$2:$E$65536,IF(dati_pdc!$C1339=4,dati_bdv!$F$2:$F$65536,IF(dati_pdc!$C1339=5,dati_bdv!$G$2:$G$65536,dati_bdv!$H$2:$H$65536))))),$A1339,dati_bdv!N$2:N$65536)","v":0}]
[{"$f":"dati_pdc!A1340","v":0},{"$f":"SUMIF(IF(dati_pdc!$C1340=1,dati_bdv!$C$2:$C$65536,IF(dati_pdc!$C1340=2,dati_bdv!$D$2:$D$65536,IF(dati_pdc!$C1340=3,dati_bdv!$E$2:$E$65536,IF(dati_pdc!$C1340=4,dati_bdv!$F$2:$F$65536,IF(dati_pdc!$C1340=5,dati_bdv!$G$2:$G$65536,dati_bdv!$H$2:$H$65536))))),$A1340,dati_bdv!J$2:J$65536)","v":0},{"$f":"SUMIF(IF(dati_pdc!$C1340=1,dati_bdv!$C$2:$C$65536,IF(dati_pdc!$C1340=2,dati_bdv!$D$2:$D$65536,IF(dati_pdc!$C1340=3,dati_bdv!$E$2:$E$65536,IF(dati_pdc!$C1340=4,dati_bdv!$F$2:$F$65536,IF(dati_pdc!$C1340=5,dati_bdv!$G$2:$G$65536,dati_bdv!$H$2:$H$65536))))),$A1340,dati_bdv!K$2:K$65536)","v":0},{"$f":"SUMIF(IF(dati_pdc!$C1340=1,dati_bdv!$C$2:$C$65536,IF(dati_pdc!$C1340=2,dati_bdv!$D$2:$D$65536,IF(dati_pdc!$C1340=3,dati_bdv!$E$2:$E$65536,IF(dati_pdc!$C1340=4,dati_bdv!$F$2:$F$65536,IF(dati_pdc!$C1340=5,dati_bdv!$G$2:$G$65536,dati_bdv!$H$2:$H$65536))))),$A1340,dati_bdv!L$2:L$65536)","v":0},{"$f":"SUMIF(IF(dati_pdc!$C1340=1,dati_bdv!$C$2:$C$65536,IF(dati_pdc!$C1340=2,dati_bdv!$D$2:$D$65536,IF(dati_pdc!$C1340=3,dati_bdv!$E$2:$E$65536,IF(dati_pdc!$C1340=4,dati_bdv!$F$2:$F$65536,IF(dati_pdc!$C1340=5,dati_bdv!$G$2:$G$65536,dati_bdv!$H$2:$H$65536))))),$A1340,dati_bdv!M$2:M$65536)","v":0},{"$f":"SUMIF(IF(dati_pdc!$C1340=1,dati_bdv!$C$2:$C$65536,IF(dati_pdc!$C1340=2,dati_bdv!$D$2:$D$65536,IF(dati_pdc!$C1340=3,dati_bdv!$E$2:$E$65536,IF(dati_pdc!$C1340=4,dati_bdv!$F$2:$F$65536,IF(dati_pdc!$C1340=5,dati_bdv!$G$2:$G$65536,dati_bdv!$H$2:$H$65536))))),$A1340,dati_bdv!N$2:N$65536)","v":0}]
[{"$f":"dati_pdc!A1341","v":0},{"$f":"SUMIF(IF(dati_pdc!$C1341=1,dati_bdv!$C$2:$C$65536,IF(dati_pdc!$C1341=2,dati_bdv!$D$2:$D$65536,IF(dati_pdc!$C1341=3,dati_bdv!$E$2:$E$65536,IF(dati_pdc!$C1341=4,dati_bdv!$F$2:$F$65536,IF(dati_pdc!$C1341=5,dati_bdv!$G$2:$G$65536,dati_bdv!$H$2:$H$65536))))),$A1341,dati_bdv!J$2:J$65536)","v":0},{"$f":"SUMIF(IF(dati_pdc!$C1341=1,dati_bdv!$C$2:$C$65536,IF(dati_pdc!$C1341=2,dati_bdv!$D$2:$D$65536,IF(dati_pdc!$C1341=3,dati_bdv!$E$2:$E$65536,IF(dati_pdc!$C1341=4,dati_bdv!$F$2:$F$65536,IF(dati_pdc!$C1341=5,dati_bdv!$G$2:$G$65536,dati_bdv!$H$2:$H$65536))))),$A1341,dati_bdv!K$2:K$65536)","v":0},{"$f":"SUMIF(IF(dati_pdc!$C1341=1,dati_bdv!$C$2:$C$65536,IF(dati_pdc!$C1341=2,dati_bdv!$D$2:$D$65536,IF(dati_pdc!$C1341=3,dati_bdv!$E$2:$E$65536,IF(dati_pdc!$C1341=4,dati_bdv!$F$2:$F$65536,IF(dati_pdc!$C1341=5,dati_bdv!$G$2:$G$65536,dati_bdv!$H$2:$H$65536))))),$A1341,dati_bdv!L$2:L$65536)","v":0},{"$f":"SUMIF(IF(dati_pdc!$C1341=1,dati_bdv!$C$2:$C$65536,IF(dati_pdc!$C1341=2,dati_bdv!$D$2:$D$65536,IF(dati_pdc!$C1341=3,dati_bdv!$E$2:$E$65536,IF(dati_pdc!$C1341=4,dati_bdv!$F$2:$F$65536,IF(dati_pdc!$C1341=5,dati_bdv!$G$2:$G$65536,dati_bdv!$H$2:$H$65536))))),$A1341,dati_bdv!M$2:M$65536)","v":0},{"$f":"SUMIF(IF(dati_pdc!$C1341=1,dati_bdv!$C$2:$C$65536,IF(dati_pdc!$C1341=2,dati_bdv!$D$2:$D$65536,IF(dati_pdc!$C1341=3,dati_bdv!$E$2:$E$65536,IF(dati_pdc!$C1341=4,dati_bdv!$F$2:$F$65536,IF(dati_pdc!$C1341=5,dati_bdv!$G$2:$G$65536,dati_bdv!$H$2:$H$65536))))),$A1341,dati_bdv!N$2:N$65536)","v":0}]
[{"$f":"dati_pdc!A1342","v":0},{"$f":"SUMIF(IF(dati_pdc!$C1342=1,dati_bdv!$C$2:$C$65536,IF(dati_pdc!$C1342=2,dati_bdv!$D$2:$D$65536,IF(dati_pdc!$C1342=3,dati_bdv!$E$2:$E$65536,IF(dati_pdc!$C1342=4,dati_bdv!$F$2:$F$65536,IF(dati_pdc!$C1342=5,dati_bdv!$G$2:$G$65536,dati_bdv!$H$2:$H$65536))))),$A1342,dati_bdv!J$2:J$65536)","v":0},{"$f":"SUMIF(IF(dati_pdc!$C1342=1,dati_bdv!$C$2:$C$65536,IF(dati_pdc!$C1342=2,dati_bdv!$D$2:$D$65536,IF(dati_pdc!$C1342=3,dati_bdv!$E$2:$E$65536,IF(dati_pdc!$C1342=4,dati_bdv!$F$2:$F$65536,IF(dati_pdc!$C1342=5,dati_bdv!$G$2:$G$65536,dati_bdv!$H$2:$H$65536))))),$A1342,dati_bdv!K$2:K$65536)","v":0},{"$f":"SUMIF(IF(dati_pdc!$C1342=1,dati_bdv!$C$2:$C$65536,IF(dati_pdc!$C1342=2,dati_bdv!$D$2:$D$65536,IF(dati_pdc!$C1342=3,dati_bdv!$E$2:$E$65536,IF(dati_pdc!$C1342=4,dati_bdv!$F$2:$F$65536,IF(dati_pdc!$C1342=5,dati_bdv!$G$2:$G$65536,dati_bdv!$H$2:$H$65536))))),$A1342,dati_bdv!L$2:L$65536)","v":0},{"$f":"SUMIF(IF(dati_pdc!$C1342=1,dati_bdv!$C$2:$C$65536,IF(dati_pdc!$C1342=2,dati_bdv!$D$2:$D$65536,IF(dati_pdc!$C1342=3,dati_bdv!$E$2:$E$65536,IF(dati_pdc!$C1342=4,dati_bdv!$F$2:$F$65536,IF(dati_pdc!$C1342=5,dati_bdv!$G$2:$G$65536,dati_bdv!$H$2:$H$65536))))),$A1342,dati_bdv!M$2:M$65536)","v":0},{"$f":"SUMIF(IF(dati_pdc!$C1342=1,dati_bdv!$C$2:$C$65536,IF(dati_pdc!$C1342=2,dati_bdv!$D$2:$D$65536,IF(dati_pdc!$C1342=3,dati_bdv!$E$2:$E$65536,IF(dati_pdc!$C1342=4,dati_bdv!$F$2:$F$65536,IF(dati_pdc!$C1342=5,dati_bdv!$G$2:$G$65536,dati_bdv!$H$2:$H$65536))))),$A1342,dati_bdv!N$2:N$65536)","v":0}]
[{"$f":"dati_pdc!A1343","v":0},{"$f":"SUMIF(IF(dati_pdc!$C1343=1,dati_bdv!$C$2:$C$65536,IF(dati_pdc!$C1343=2,dati_bdv!$D$2:$D$65536,IF(dati_pdc!$C1343=3,dati_bdv!$E$2:$E$65536,IF(dati_pdc!$C1343=4,dati_bdv!$F$2:$F$65536,IF(dati_pdc!$C1343=5,dati_bdv!$G$2:$G$65536,dati_bdv!$H$2:$H$65536))))),$A1343,dati_bdv!J$2:J$65536)","v":0},{"$f":"SUMIF(IF(dati_pdc!$C1343=1,dati_bdv!$C$2:$C$65536,IF(dati_pdc!$C1343=2,dati_bdv!$D$2:$D$65536,IF(dati_pdc!$C1343=3,dati_bdv!$E$2:$E$65536,IF(dati_pdc!$C1343=4,dati_bdv!$F$2:$F$65536,IF(dati_pdc!$C1343=5,dati_bdv!$G$2:$G$65536,dati_bdv!$H$2:$H$65536))))),$A1343,dati_bdv!K$2:K$65536)","v":0},{"$f":"SUMIF(IF(dati_pdc!$C1343=1,dati_bdv!$C$2:$C$65536,IF(dati_pdc!$C1343=2,dati_bdv!$D$2:$D$65536,IF(dati_pdc!$C1343=3,dati_bdv!$E$2:$E$65536,IF(dati_pdc!$C1343=4,dati_bdv!$F$2:$F$65536,IF(dati_pdc!$C1343=5,dati_bdv!$G$2:$G$65536,dati_bdv!$H$2:$H$65536))))),$A1343,dati_bdv!L$2:L$65536)","v":0},{"$f":"SUMIF(IF(dati_pdc!$C1343=1,dati_bdv!$C$2:$C$65536,IF(dati_pdc!$C1343=2,dati_bdv!$D$2:$D$65536,IF(dati_pdc!$C1343=3,dati_bdv!$E$2:$E$65536,IF(dati_pdc!$C1343=4,dati_bdv!$F$2:$F$65536,IF(dati_pdc!$C1343=5,dati_bdv!$G$2:$G$65536,dati_bdv!$H$2:$H$65536))))),$A1343,dati_bdv!M$2:M$65536)","v":0},{"$f":"SUMIF(IF(dati_pdc!$C1343=1,dati_bdv!$C$2:$C$65536,IF(dati_pdc!$C1343=2,dati_bdv!$D$2:$D$65536,IF(dati_pdc!$C1343=3,dati_bdv!$E$2:$E$65536,IF(dati_pdc!$C1343=4,dati_bdv!$F$2:$F$65536,IF(dati_pdc!$C1343=5,dati_bdv!$G$2:$G$65536,dati_bdv!$H$2:$H$65536))))),$A1343,dati_bdv!N$2:N$65536)","v":0}]
[{"$f":"dati_pdc!A1344","v":0},{"$f":"SUMIF(IF(dati_pdc!$C1344=1,dati_bdv!$C$2:$C$65536,IF(dati_pdc!$C1344=2,dati_bdv!$D$2:$D$65536,IF(dati_pdc!$C1344=3,dati_bdv!$E$2:$E$65536,IF(dati_pdc!$C1344=4,dati_bdv!$F$2:$F$65536,IF(dati_pdc!$C1344=5,dati_bdv!$G$2:$G$65536,dati_bdv!$H$2:$H$65536))))),$A1344,dati_bdv!J$2:J$65536)","v":0},{"$f":"SUMIF(IF(dati_pdc!$C1344=1,dati_bdv!$C$2:$C$65536,IF(dati_pdc!$C1344=2,dati_bdv!$D$2:$D$65536,IF(dati_pdc!$C1344=3,dati_bdv!$E$2:$E$65536,IF(dati_pdc!$C1344=4,dati_bdv!$F$2:$F$65536,IF(dati_pdc!$C1344=5,dati_bdv!$G$2:$G$65536,dati_bdv!$H$2:$H$65536))))),$A1344,dati_bdv!K$2:K$65536)","v":0},{"$f":"SUMIF(IF(dati_pdc!$C1344=1,dati_bdv!$C$2:$C$65536,IF(dati_pdc!$C1344=2,dati_bdv!$D$2:$D$65536,IF(dati_pdc!$C1344=3,dati_bdv!$E$2:$E$65536,IF(dati_pdc!$C1344=4,dati_bdv!$F$2:$F$65536,IF(dati_pdc!$C1344=5,dati_bdv!$G$2:$G$65536,dati_bdv!$H$2:$H$65536))))),$A1344,dati_bdv!L$2:L$65536)","v":0},{"$f":"SUMIF(IF(dati_pdc!$C1344=1,dati_bdv!$C$2:$C$65536,IF(dati_pdc!$C1344=2,dati_bdv!$D$2:$D$65536,IF(dati_pdc!$C1344=3,dati_bdv!$E$2:$E$65536,IF(dati_pdc!$C1344=4,dati_bdv!$F$2:$F$65536,IF(dati_pdc!$C1344=5,dati_bdv!$G$2:$G$65536,dati_bdv!$H$2:$H$65536))))),$A1344,dati_bdv!M$2:M$65536)","v":0},{"$f":"SUMIF(IF(dati_pdc!$C1344=1,dati_bdv!$C$2:$C$65536,IF(dati_pdc!$C1344=2,dati_bdv!$D$2:$D$65536,IF(dati_pdc!$C1344=3,dati_bdv!$E$2:$E$65536,IF(dati_pdc!$C1344=4,dati_bdv!$F$2:$F$65536,IF(dati_pdc!$C1344=5,dati_bdv!$G$2:$G$65536,dati_bdv!$H$2:$H$65536))))),$A1344,dati_bdv!N$2:N$65536)","v":0}]
[{"$f":"dati_pdc!A1345","v":0},{"$f":"SUMIF(IF(dati_pdc!$C1345=1,dati_bdv!$C$2:$C$65536,IF(dati_pdc!$C1345=2,dati_bdv!$D$2:$D$65536,IF(dati_pdc!$C1345=3,dati_bdv!$E$2:$E$65536,IF(dati_pdc!$C1345=4,dati_bdv!$F$2:$F$65536,IF(dati_pdc!$C1345=5,dati_bdv!$G$2:$G$65536,dati_bdv!$H$2:$H$65536))))),$A1345,dati_bdv!J$2:J$65536)","v":0},{"$f":"SUMIF(IF(dati_pdc!$C1345=1,dati_bdv!$C$2:$C$65536,IF(dati_pdc!$C1345=2,dati_bdv!$D$2:$D$65536,IF(dati_pdc!$C1345=3,dati_bdv!$E$2:$E$65536,IF(dati_pdc!$C1345=4,dati_bdv!$F$2:$F$65536,IF(dati_pdc!$C1345=5,dati_bdv!$G$2:$G$65536,dati_bdv!$H$2:$H$65536))))),$A1345,dati_bdv!K$2:K$65536)","v":0},{"$f":"SUMIF(IF(dati_pdc!$C1345=1,dati_bdv!$C$2:$C$65536,IF(dati_pdc!$C1345=2,dati_bdv!$D$2:$D$65536,IF(dati_pdc!$C1345=3,dati_bdv!$E$2:$E$65536,IF(dati_pdc!$C1345=4,dati_bdv!$F$2:$F$65536,IF(dati_pdc!$C1345=5,dati_bdv!$G$2:$G$65536,dati_bdv!$H$2:$H$65536))))),$A1345,dati_bdv!L$2:L$65536)","v":0},{"$f":"SUMIF(IF(dati_pdc!$C1345=1,dati_bdv!$C$2:$C$65536,IF(dati_pdc!$C1345=2,dati_bdv!$D$2:$D$65536,IF(dati_pdc!$C1345=3,dati_bdv!$E$2:$E$65536,IF(dati_pdc!$C1345=4,dati_bdv!$F$2:$F$65536,IF(dati_pdc!$C1345=5,dati_bdv!$G$2:$G$65536,dati_bdv!$H$2:$H$65536))))),$A1345,dati_bdv!M$2:M$65536)","v":0},{"$f":"SUMIF(IF(dati_pdc!$C1345=1,dati_bdv!$C$2:$C$65536,IF(dati_pdc!$C1345=2,dati_bdv!$D$2:$D$65536,IF(dati_pdc!$C1345=3,dati_bdv!$E$2:$E$65536,IF(dati_pdc!$C1345=4,dati_bdv!$F$2:$F$65536,IF(dati_pdc!$C1345=5,dati_bdv!$G$2:$G$65536,dati_bdv!$H$2:$H$65536))))),$A1345,dati_bdv!N$2:N$65536)","v":0}]
[{"$f":"dati_pdc!A1346","v":0},{"$f":"SUMIF(IF(dati_pdc!$C1346=1,dati_bdv!$C$2:$C$65536,IF(dati_pdc!$C1346=2,dati_bdv!$D$2:$D$65536,IF(dati_pdc!$C1346=3,dati_bdv!$E$2:$E$65536,IF(dati_pdc!$C1346=4,dati_bdv!$F$2:$F$65536,IF(dati_pdc!$C1346=5,dati_bdv!$G$2:$G$65536,dati_bdv!$H$2:$H$65536))))),$A1346,dati_bdv!J$2:J$65536)","v":0},{"$f":"SUMIF(IF(dati_pdc!$C1346=1,dati_bdv!$C$2:$C$65536,IF(dati_pdc!$C1346=2,dati_bdv!$D$2:$D$65536,IF(dati_pdc!$C1346=3,dati_bdv!$E$2:$E$65536,IF(dati_pdc!$C1346=4,dati_bdv!$F$2:$F$65536,IF(dati_pdc!$C1346=5,dati_bdv!$G$2:$G$65536,dati_bdv!$H$2:$H$65536))))),$A1346,dati_bdv!K$2:K$65536)","v":0},{"$f":"SUMIF(IF(dati_pdc!$C1346=1,dati_bdv!$C$2:$C$65536,IF(dati_pdc!$C1346=2,dati_bdv!$D$2:$D$65536,IF(dati_pdc!$C1346=3,dati_bdv!$E$2:$E$65536,IF(dati_pdc!$C1346=4,dati_bdv!$F$2:$F$65536,IF(dati_pdc!$C1346=5,dati_bdv!$G$2:$G$65536,dati_bdv!$H$2:$H$65536))))),$A1346,dati_bdv!L$2:L$65536)","v":0},{"$f":"SUMIF(IF(dati_pdc!$C1346=1,dati_bdv!$C$2:$C$65536,IF(dati_pdc!$C1346=2,dati_bdv!$D$2:$D$65536,IF(dati_pdc!$C1346=3,dati_bdv!$E$2:$E$65536,IF(dati_pdc!$C1346=4,dati_bdv!$F$2:$F$65536,IF(dati_pdc!$C1346=5,dati_bdv!$G$2:$G$65536,dati_bdv!$H$2:$H$65536))))),$A1346,dati_bdv!M$2:M$65536)","v":0},{"$f":"SUMIF(IF(dati_pdc!$C1346=1,dati_bdv!$C$2:$C$65536,IF(dati_pdc!$C1346=2,dati_bdv!$D$2:$D$65536,IF(dati_pdc!$C1346=3,dati_bdv!$E$2:$E$65536,IF(dati_pdc!$C1346=4,dati_bdv!$F$2:$F$65536,IF(dati_pdc!$C1346=5,dati_bdv!$G$2:$G$65536,dati_bdv!$H$2:$H$65536))))),$A1346,dati_bdv!N$2:N$65536)","v":0}]
[{"$f":"dati_pdc!A1347","v":0},{"$f":"SUMIF(IF(dati_pdc!$C1347=1,dati_bdv!$C$2:$C$65536,IF(dati_pdc!$C1347=2,dati_bdv!$D$2:$D$65536,IF(dati_pdc!$C1347=3,dati_bdv!$E$2:$E$65536,IF(dati_pdc!$C1347=4,dati_bdv!$F$2:$F$65536,IF(dati_pdc!$C1347=5,dati_bdv!$G$2:$G$65536,dati_bdv!$H$2:$H$65536))))),$A1347,dati_bdv!J$2:J$65536)","v":0},{"$f":"SUMIF(IF(dati_pdc!$C1347=1,dati_bdv!$C$2:$C$65536,IF(dati_pdc!$C1347=2,dati_bdv!$D$2:$D$65536,IF(dati_pdc!$C1347=3,dati_bdv!$E$2:$E$65536,IF(dati_pdc!$C1347=4,dati_bdv!$F$2:$F$65536,IF(dati_pdc!$C1347=5,dati_bdv!$G$2:$G$65536,dati_bdv!$H$2:$H$65536))))),$A1347,dati_bdv!K$2:K$65536)","v":0},{"$f":"SUMIF(IF(dati_pdc!$C1347=1,dati_bdv!$C$2:$C$65536,IF(dati_pdc!$C1347=2,dati_bdv!$D$2:$D$65536,IF(dati_pdc!$C1347=3,dati_bdv!$E$2:$E$65536,IF(dati_pdc!$C1347=4,dati_bdv!$F$2:$F$65536,IF(dati_pdc!$C1347=5,dati_bdv!$G$2:$G$65536,dati_bdv!$H$2:$H$65536))))),$A1347,dati_bdv!L$2:L$65536)","v":0},{"$f":"SUMIF(IF(dati_pdc!$C1347=1,dati_bdv!$C$2:$C$65536,IF(dati_pdc!$C1347=2,dati_bdv!$D$2:$D$65536,IF(dati_pdc!$C1347=3,dati_bdv!$E$2:$E$65536,IF(dati_pdc!$C1347=4,dati_bdv!$F$2:$F$65536,IF(dati_pdc!$C1347=5,dati_bdv!$G$2:$G$65536,dati_bdv!$H$2:$H$65536))))),$A1347,dati_bdv!M$2:M$65536)","v":0},{"$f":"SUMIF(IF(dati_pdc!$C1347=1,dati_bdv!$C$2:$C$65536,IF(dati_pdc!$C1347=2,dati_bdv!$D$2:$D$65536,IF(dati_pdc!$C1347=3,dati_bdv!$E$2:$E$65536,IF(dati_pdc!$C1347=4,dati_bdv!$F$2:$F$65536,IF(dati_pdc!$C1347=5,dati_bdv!$G$2:$G$65536,dati_bdv!$H$2:$H$65536))))),$A1347,dati_bdv!N$2:N$65536)","v":0}]
[{"$f":"dati_pdc!A1348","v":0},{"$f":"SUMIF(IF(dati_pdc!$C1348=1,dati_bdv!$C$2:$C$65536,IF(dati_pdc!$C1348=2,dati_bdv!$D$2:$D$65536,IF(dati_pdc!$C1348=3,dati_bdv!$E$2:$E$65536,IF(dati_pdc!$C1348=4,dati_bdv!$F$2:$F$65536,IF(dati_pdc!$C1348=5,dati_bdv!$G$2:$G$65536,dati_bdv!$H$2:$H$65536))))),$A1348,dati_bdv!J$2:J$65536)","v":0},{"$f":"SUMIF(IF(dati_pdc!$C1348=1,dati_bdv!$C$2:$C$65536,IF(dati_pdc!$C1348=2,dati_bdv!$D$2:$D$65536,IF(dati_pdc!$C1348=3,dati_bdv!$E$2:$E$65536,IF(dati_pdc!$C1348=4,dati_bdv!$F$2:$F$65536,IF(dati_pdc!$C1348=5,dati_bdv!$G$2:$G$65536,dati_bdv!$H$2:$H$65536))))),$A1348,dati_bdv!K$2:K$65536)","v":0},{"$f":"SUMIF(IF(dati_pdc!$C1348=1,dati_bdv!$C$2:$C$65536,IF(dati_pdc!$C1348=2,dati_bdv!$D$2:$D$65536,IF(dati_pdc!$C1348=3,dati_bdv!$E$2:$E$65536,IF(dati_pdc!$C1348=4,dati_bdv!$F$2:$F$65536,IF(dati_pdc!$C1348=5,dati_bdv!$G$2:$G$65536,dati_bdv!$H$2:$H$65536))))),$A1348,dati_bdv!L$2:L$65536)","v":0},{"$f":"SUMIF(IF(dati_pdc!$C1348=1,dati_bdv!$C$2:$C$65536,IF(dati_pdc!$C1348=2,dati_bdv!$D$2:$D$65536,IF(dati_pdc!$C1348=3,dati_bdv!$E$2:$E$65536,IF(dati_pdc!$C1348=4,dati_bdv!$F$2:$F$65536,IF(dati_pdc!$C1348=5,dati_bdv!$G$2:$G$65536,dati_bdv!$H$2:$H$65536))))),$A1348,dati_bdv!M$2:M$65536)","v":0},{"$f":"SUMIF(IF(dati_pdc!$C1348=1,dati_bdv!$C$2:$C$65536,IF(dati_pdc!$C1348=2,dati_bdv!$D$2:$D$65536,IF(dati_pdc!$C1348=3,dati_bdv!$E$2:$E$65536,IF(dati_pdc!$C1348=4,dati_bdv!$F$2:$F$65536,IF(dati_pdc!$C1348=5,dati_bdv!$G$2:$G$65536,dati_bdv!$H$2:$H$65536))))),$A1348,dati_bdv!N$2:N$65536)","v":0}]
[{"$f":"dati_pdc!A1349","v":0},{"$f":"SUMIF(IF(dati_pdc!$C1349=1,dati_bdv!$C$2:$C$65536,IF(dati_pdc!$C1349=2,dati_bdv!$D$2:$D$65536,IF(dati_pdc!$C1349=3,dati_bdv!$E$2:$E$65536,IF(dati_pdc!$C1349=4,dati_bdv!$F$2:$F$65536,IF(dati_pdc!$C1349=5,dati_bdv!$G$2:$G$65536,dati_bdv!$H$2:$H$65536))))),$A1349,dati_bdv!J$2:J$65536)","v":0},{"$f":"SUMIF(IF(dati_pdc!$C1349=1,dati_bdv!$C$2:$C$65536,IF(dati_pdc!$C1349=2,dati_bdv!$D$2:$D$65536,IF(dati_pdc!$C1349=3,dati_bdv!$E$2:$E$65536,IF(dati_pdc!$C1349=4,dati_bdv!$F$2:$F$65536,IF(dati_pdc!$C1349=5,dati_bdv!$G$2:$G$65536,dati_bdv!$H$2:$H$65536))))),$A1349,dati_bdv!K$2:K$65536)","v":0},{"$f":"SUMIF(IF(dati_pdc!$C1349=1,dati_bdv!$C$2:$C$65536,IF(dati_pdc!$C1349=2,dati_bdv!$D$2:$D$65536,IF(dati_pdc!$C1349=3,dati_bdv!$E$2:$E$65536,IF(dati_pdc!$C1349=4,dati_bdv!$F$2:$F$65536,IF(dati_pdc!$C1349=5,dati_bdv!$G$2:$G$65536,dati_bdv!$H$2:$H$65536))))),$A1349,dati_bdv!L$2:L$65536)","v":0},{"$f":"SUMIF(IF(dati_pdc!$C1349=1,dati_bdv!$C$2:$C$65536,IF(dati_pdc!$C1349=2,dati_bdv!$D$2:$D$65536,IF(dati_pdc!$C1349=3,dati_bdv!$E$2:$E$65536,IF(dati_pdc!$C1349=4,dati_bdv!$F$2:$F$65536,IF(dati_pdc!$C1349=5,dati_bdv!$G$2:$G$65536,dati_bdv!$H$2:$H$65536))))),$A1349,dati_bdv!M$2:M$65536)","v":0},{"$f":"SUMIF(IF(dati_pdc!$C1349=1,dati_bdv!$C$2:$C$65536,IF(dati_pdc!$C1349=2,dati_bdv!$D$2:$D$65536,IF(dati_pdc!$C1349=3,dati_bdv!$E$2:$E$65536,IF(dati_pdc!$C1349=4,dati_bdv!$F$2:$F$65536,IF(dati_pdc!$C1349=5,dati_bdv!$G$2:$G$65536,dati_bdv!$H$2:$H$65536))))),$A1349,dati_bdv!N$2:N$65536)","v":0}]
[{"$f":"dati_pdc!A1350","v":0},{"$f":"SUMIF(IF(dati_pdc!$C1350=1,dati_bdv!$C$2:$C$65536,IF(dati_pdc!$C1350=2,dati_bdv!$D$2:$D$65536,IF(dati_pdc!$C1350=3,dati_bdv!$E$2:$E$65536,IF(dati_pdc!$C1350=4,dati_bdv!$F$2:$F$65536,IF(dati_pdc!$C1350=5,dati_bdv!$G$2:$G$65536,dati_bdv!$H$2:$H$65536))))),$A1350,dati_bdv!J$2:J$65536)","v":0},{"$f":"SUMIF(IF(dati_pdc!$C1350=1,dati_bdv!$C$2:$C$65536,IF(dati_pdc!$C1350=2,dati_bdv!$D$2:$D$65536,IF(dati_pdc!$C1350=3,dati_bdv!$E$2:$E$65536,IF(dati_pdc!$C1350=4,dati_bdv!$F$2:$F$65536,IF(dati_pdc!$C1350=5,dati_bdv!$G$2:$G$65536,dati_bdv!$H$2:$H$65536))))),$A1350,dati_bdv!K$2:K$65536)","v":0},{"$f":"SUMIF(IF(dati_pdc!$C1350=1,dati_bdv!$C$2:$C$65536,IF(dati_pdc!$C1350=2,dati_bdv!$D$2:$D$65536,IF(dati_pdc!$C1350=3,dati_bdv!$E$2:$E$65536,IF(dati_pdc!$C1350=4,dati_bdv!$F$2:$F$65536,IF(dati_pdc!$C1350=5,dati_bdv!$G$2:$G$65536,dati_bdv!$H$2:$H$65536))))),$A1350,dati_bdv!L$2:L$65536)","v":0},{"$f":"SUMIF(IF(dati_pdc!$C1350=1,dati_bdv!$C$2:$C$65536,IF(dati_pdc!$C1350=2,dati_bdv!$D$2:$D$65536,IF(dati_pdc!$C1350=3,dati_bdv!$E$2:$E$65536,IF(dati_pdc!$C1350=4,dati_bdv!$F$2:$F$65536,IF(dati_pdc!$C1350=5,dati_bdv!$G$2:$G$65536,dati_bdv!$H$2:$H$65536))))),$A1350,dati_bdv!M$2:M$65536)","v":0},{"$f":"SUMIF(IF(dati_pdc!$C1350=1,dati_bdv!$C$2:$C$65536,IF(dati_pdc!$C1350=2,dati_bdv!$D$2:$D$65536,IF(dati_pdc!$C1350=3,dati_bdv!$E$2:$E$65536,IF(dati_pdc!$C1350=4,dati_bdv!$F$2:$F$65536,IF(dati_pdc!$C1350=5,dati_bdv!$G$2:$G$65536,dati_bdv!$H$2:$H$65536))))),$A1350,dati_bdv!N$2:N$65536)","v":0}]
[{"$f":"dati_pdc!A1351","v":0},{"$f":"SUMIF(IF(dati_pdc!$C1351=1,dati_bdv!$C$2:$C$65536,IF(dati_pdc!$C1351=2,dati_bdv!$D$2:$D$65536,IF(dati_pdc!$C1351=3,dati_bdv!$E$2:$E$65536,IF(dati_pdc!$C1351=4,dati_bdv!$F$2:$F$65536,IF(dati_pdc!$C1351=5,dati_bdv!$G$2:$G$65536,dati_bdv!$H$2:$H$65536))))),$A1351,dati_bdv!J$2:J$65536)","v":0},{"$f":"SUMIF(IF(dati_pdc!$C1351=1,dati_bdv!$C$2:$C$65536,IF(dati_pdc!$C1351=2,dati_bdv!$D$2:$D$65536,IF(dati_pdc!$C1351=3,dati_bdv!$E$2:$E$65536,IF(dati_pdc!$C1351=4,dati_bdv!$F$2:$F$65536,IF(dati_pdc!$C1351=5,dati_bdv!$G$2:$G$65536,dati_bdv!$H$2:$H$65536))))),$A1351,dati_bdv!K$2:K$65536)","v":0},{"$f":"SUMIF(IF(dati_pdc!$C1351=1,dati_bdv!$C$2:$C$65536,IF(dati_pdc!$C1351=2,dati_bdv!$D$2:$D$65536,IF(dati_pdc!$C1351=3,dati_bdv!$E$2:$E$65536,IF(dati_pdc!$C1351=4,dati_bdv!$F$2:$F$65536,IF(dati_pdc!$C1351=5,dati_bdv!$G$2:$G$65536,dati_bdv!$H$2:$H$65536))))),$A1351,dati_bdv!L$2:L$65536)","v":0},{"$f":"SUMIF(IF(dati_pdc!$C1351=1,dati_bdv!$C$2:$C$65536,IF(dati_pdc!$C1351=2,dati_bdv!$D$2:$D$65536,IF(dati_pdc!$C1351=3,dati_bdv!$E$2:$E$65536,IF(dati_pdc!$C1351=4,dati_bdv!$F$2:$F$65536,IF(dati_pdc!$C1351=5,dati_bdv!$G$2:$G$65536,dati_bdv!$H$2:$H$65536))))),$A1351,dati_bdv!M$2:M$65536)","v":0},{"$f":"SUMIF(IF(dati_pdc!$C1351=1,dati_bdv!$C$2:$C$65536,IF(dati_pdc!$C1351=2,dati_bdv!$D$2:$D$65536,IF(dati_pdc!$C1351=3,dati_bdv!$E$2:$E$65536,IF(dati_pdc!$C1351=4,dati_bdv!$F$2:$F$65536,IF(dati_pdc!$C1351=5,dati_bdv!$G$2:$G$65536,dati_bdv!$H$2:$H$65536))))),$A1351,dati_bdv!N$2:N$65536)","v":0}]
[{"$f":"dati_pdc!A1352","v":0},{"$f":"SUMIF(IF(dati_pdc!$C1352=1,dati_bdv!$C$2:$C$65536,IF(dati_pdc!$C1352=2,dati_bdv!$D$2:$D$65536,IF(dati_pdc!$C1352=3,dati_bdv!$E$2:$E$65536,IF(dati_pdc!$C1352=4,dati_bdv!$F$2:$F$65536,IF(dati_pdc!$C1352=5,dati_bdv!$G$2:$G$65536,dati_bdv!$H$2:$H$65536))))),$A1352,dati_bdv!J$2:J$65536)","v":0},{"$f":"SUMIF(IF(dati_pdc!$C1352=1,dati_bdv!$C$2:$C$65536,IF(dati_pdc!$C1352=2,dati_bdv!$D$2:$D$65536,IF(dati_pdc!$C1352=3,dati_bdv!$E$2:$E$65536,IF(dati_pdc!$C1352=4,dati_bdv!$F$2:$F$65536,IF(dati_pdc!$C1352=5,dati_bdv!$G$2:$G$65536,dati_bdv!$H$2:$H$65536))))),$A1352,dati_bdv!K$2:K$65536)","v":0},{"$f":"SUMIF(IF(dati_pdc!$C1352=1,dati_bdv!$C$2:$C$65536,IF(dati_pdc!$C1352=2,dati_bdv!$D$2:$D$65536,IF(dati_pdc!$C1352=3,dati_bdv!$E$2:$E$65536,IF(dati_pdc!$C1352=4,dati_bdv!$F$2:$F$65536,IF(dati_pdc!$C1352=5,dati_bdv!$G$2:$G$65536,dati_bdv!$H$2:$H$65536))))),$A1352,dati_bdv!L$2:L$65536)","v":0},{"$f":"SUMIF(IF(dati_pdc!$C1352=1,dati_bdv!$C$2:$C$65536,IF(dati_pdc!$C1352=2,dati_bdv!$D$2:$D$65536,IF(dati_pdc!$C1352=3,dati_bdv!$E$2:$E$65536,IF(dati_pdc!$C1352=4,dati_bdv!$F$2:$F$65536,IF(dati_pdc!$C1352=5,dati_bdv!$G$2:$G$65536,dati_bdv!$H$2:$H$65536))))),$A1352,dati_bdv!M$2:M$65536)","v":0},{"$f":"SUMIF(IF(dati_pdc!$C1352=1,dati_bdv!$C$2:$C$65536,IF(dati_pdc!$C1352=2,dati_bdv!$D$2:$D$65536,IF(dati_pdc!$C1352=3,dati_bdv!$E$2:$E$65536,IF(dati_pdc!$C1352=4,dati_bdv!$F$2:$F$65536,IF(dati_pdc!$C1352=5,dati_bdv!$G$2:$G$65536,dati_bdv!$H$2:$H$65536))))),$A1352,dati_bdv!N$2:N$65536)","v":0}]
[{"$f":"dati_pdc!A1353","v":0},{"$f":"SUMIF(IF(dati_pdc!$C1353=1,dati_bdv!$C$2:$C$65536,IF(dati_pdc!$C1353=2,dati_bdv!$D$2:$D$65536,IF(dati_pdc!$C1353=3,dati_bdv!$E$2:$E$65536,IF(dati_pdc!$C1353=4,dati_bdv!$F$2:$F$65536,IF(dati_pdc!$C1353=5,dati_bdv!$G$2:$G$65536,dati_bdv!$H$2:$H$65536))))),$A1353,dati_bdv!J$2:J$65536)","v":0},{"$f":"SUMIF(IF(dati_pdc!$C1353=1,dati_bdv!$C$2:$C$65536,IF(dati_pdc!$C1353=2,dati_bdv!$D$2:$D$65536,IF(dati_pdc!$C1353=3,dati_bdv!$E$2:$E$65536,IF(dati_pdc!$C1353=4,dati_bdv!$F$2:$F$65536,IF(dati_pdc!$C1353=5,dati_bdv!$G$2:$G$65536,dati_bdv!$H$2:$H$65536))))),$A1353,dati_bdv!K$2:K$65536)","v":0},{"$f":"SUMIF(IF(dati_pdc!$C1353=1,dati_bdv!$C$2:$C$65536,IF(dati_pdc!$C1353=2,dati_bdv!$D$2:$D$65536,IF(dati_pdc!$C1353=3,dati_bdv!$E$2:$E$65536,IF(dati_pdc!$C1353=4,dati_bdv!$F$2:$F$65536,IF(dati_pdc!$C1353=5,dati_bdv!$G$2:$G$65536,dati_bdv!$H$2:$H$65536))))),$A1353,dati_bdv!L$2:L$65536)","v":0},{"$f":"SUMIF(IF(dati_pdc!$C1353=1,dati_bdv!$C$2:$C$65536,IF(dati_pdc!$C1353=2,dati_bdv!$D$2:$D$65536,IF(dati_pdc!$C1353=3,dati_bdv!$E$2:$E$65536,IF(dati_pdc!$C1353=4,dati_bdv!$F$2:$F$65536,IF(dati_pdc!$C1353=5,dati_bdv!$G$2:$G$65536,dati_bdv!$H$2:$H$65536))))),$A1353,dati_bdv!M$2:M$65536)","v":0},{"$f":"SUMIF(IF(dati_pdc!$C1353=1,dati_bdv!$C$2:$C$65536,IF(dati_pdc!$C1353=2,dati_bdv!$D$2:$D$65536,IF(dati_pdc!$C1353=3,dati_bdv!$E$2:$E$65536,IF(dati_pdc!$C1353=4,dati_bdv!$F$2:$F$65536,IF(dati_pdc!$C1353=5,dati_bdv!$G$2:$G$65536,dati_bdv!$H$2:$H$65536))))),$A1353,dati_bdv!N$2:N$65536)","v":0}]
[{"$f":"dati_pdc!A1354","v":0},{"$f":"SUMIF(IF(dati_pdc!$C1354=1,dati_bdv!$C$2:$C$65536,IF(dati_pdc!$C1354=2,dati_bdv!$D$2:$D$65536,IF(dati_pdc!$C1354=3,dati_bdv!$E$2:$E$65536,IF(dati_pdc!$C1354=4,dati_bdv!$F$2:$F$65536,IF(dati_pdc!$C1354=5,dati_bdv!$G$2:$G$65536,dati_bdv!$H$2:$H$65536))))),$A1354,dati_bdv!J$2:J$65536)","v":0},{"$f":"SUMIF(IF(dati_pdc!$C1354=1,dati_bdv!$C$2:$C$65536,IF(dati_pdc!$C1354=2,dati_bdv!$D$2:$D$65536,IF(dati_pdc!$C1354=3,dati_bdv!$E$2:$E$65536,IF(dati_pdc!$C1354=4,dati_bdv!$F$2:$F$65536,IF(dati_pdc!$C1354=5,dati_bdv!$G$2:$G$65536,dati_bdv!$H$2:$H$65536))))),$A1354,dati_bdv!K$2:K$65536)","v":0},{"$f":"SUMIF(IF(dati_pdc!$C1354=1,dati_bdv!$C$2:$C$65536,IF(dati_pdc!$C1354=2,dati_bdv!$D$2:$D$65536,IF(dati_pdc!$C1354=3,dati_bdv!$E$2:$E$65536,IF(dati_pdc!$C1354=4,dati_bdv!$F$2:$F$65536,IF(dati_pdc!$C1354=5,dati_bdv!$G$2:$G$65536,dati_bdv!$H$2:$H$65536))))),$A1354,dati_bdv!L$2:L$65536)","v":0},{"$f":"SUMIF(IF(dati_pdc!$C1354=1,dati_bdv!$C$2:$C$65536,IF(dati_pdc!$C1354=2,dati_bdv!$D$2:$D$65536,IF(dati_pdc!$C1354=3,dati_bdv!$E$2:$E$65536,IF(dati_pdc!$C1354=4,dati_bdv!$F$2:$F$65536,IF(dati_pdc!$C1354=5,dati_bdv!$G$2:$G$65536,dati_bdv!$H$2:$H$65536))))),$A1354,dati_bdv!M$2:M$65536)","v":0},{"$f":"SUMIF(IF(dati_pdc!$C1354=1,dati_bdv!$C$2:$C$65536,IF(dati_pdc!$C1354=2,dati_bdv!$D$2:$D$65536,IF(dati_pdc!$C1354=3,dati_bdv!$E$2:$E$65536,IF(dati_pdc!$C1354=4,dati_bdv!$F$2:$F$65536,IF(dati_pdc!$C1354=5,dati_bdv!$G$2:$G$65536,dati_bdv!$H$2:$H$65536))))),$A1354,dati_bdv!N$2:N$65536)","v":0}]
[{"$f":"dati_pdc!A1355","v":0},{"$f":"SUMIF(IF(dati_pdc!$C1355=1,dati_bdv!$C$2:$C$65536,IF(dati_pdc!$C1355=2,dati_bdv!$D$2:$D$65536,IF(dati_pdc!$C1355=3,dati_bdv!$E$2:$E$65536,IF(dati_pdc!$C1355=4,dati_bdv!$F$2:$F$65536,IF(dati_pdc!$C1355=5,dati_bdv!$G$2:$G$65536,dati_bdv!$H$2:$H$65536))))),$A1355,dati_bdv!J$2:J$65536)","v":0},{"$f":"SUMIF(IF(dati_pdc!$C1355=1,dati_bdv!$C$2:$C$65536,IF(dati_pdc!$C1355=2,dati_bdv!$D$2:$D$65536,IF(dati_pdc!$C1355=3,dati_bdv!$E$2:$E$65536,IF(dati_pdc!$C1355=4,dati_bdv!$F$2:$F$65536,IF(dati_pdc!$C1355=5,dati_bdv!$G$2:$G$65536,dati_bdv!$H$2:$H$65536))))),$A1355,dati_bdv!K$2:K$65536)","v":0},{"$f":"SUMIF(IF(dati_pdc!$C1355=1,dati_bdv!$C$2:$C$65536,IF(dati_pdc!$C1355=2,dati_bdv!$D$2:$D$65536,IF(dati_pdc!$C1355=3,dati_bdv!$E$2:$E$65536,IF(dati_pdc!$C1355=4,dati_bdv!$F$2:$F$65536,IF(dati_pdc!$C1355=5,dati_bdv!$G$2:$G$65536,dati_bdv!$H$2:$H$65536))))),$A1355,dati_bdv!L$2:L$65536)","v":0},{"$f":"SUMIF(IF(dati_pdc!$C1355=1,dati_bdv!$C$2:$C$65536,IF(dati_pdc!$C1355=2,dati_bdv!$D$2:$D$65536,IF(dati_pdc!$C1355=3,dati_bdv!$E$2:$E$65536,IF(dati_pdc!$C1355=4,dati_bdv!$F$2:$F$65536,IF(dati_pdc!$C1355=5,dati_bdv!$G$2:$G$65536,dati_bdv!$H$2:$H$65536))))),$A1355,dati_bdv!M$2:M$65536)","v":0},{"$f":"SUMIF(IF(dati_pdc!$C1355=1,dati_bdv!$C$2:$C$65536,IF(dati_pdc!$C1355=2,dati_bdv!$D$2:$D$65536,IF(dati_pdc!$C1355=3,dati_bdv!$E$2:$E$65536,IF(dati_pdc!$C1355=4,dati_bdv!$F$2:$F$65536,IF(dati_pdc!$C1355=5,dati_bdv!$G$2:$G$65536,dati_bdv!$H$2:$H$65536))))),$A1355,dati_bdv!N$2:N$65536)","v":0}]
[{"$f":"dati_pdc!A1356","v":0},{"$f":"SUMIF(IF(dati_pdc!$C1356=1,dati_bdv!$C$2:$C$65536,IF(dati_pdc!$C1356=2,dati_bdv!$D$2:$D$65536,IF(dati_pdc!$C1356=3,dati_bdv!$E$2:$E$65536,IF(dati_pdc!$C1356=4,dati_bdv!$F$2:$F$65536,IF(dati_pdc!$C1356=5,dati_bdv!$G$2:$G$65536,dati_bdv!$H$2:$H$65536))))),$A1356,dati_bdv!J$2:J$65536)","v":0},{"$f":"SUMIF(IF(dati_pdc!$C1356=1,dati_bdv!$C$2:$C$65536,IF(dati_pdc!$C1356=2,dati_bdv!$D$2:$D$65536,IF(dati_pdc!$C1356=3,dati_bdv!$E$2:$E$65536,IF(dati_pdc!$C1356=4,dati_bdv!$F$2:$F$65536,IF(dati_pdc!$C1356=5,dati_bdv!$G$2:$G$65536,dati_bdv!$H$2:$H$65536))))),$A1356,dati_bdv!K$2:K$65536)","v":0},{"$f":"SUMIF(IF(dati_pdc!$C1356=1,dati_bdv!$C$2:$C$65536,IF(dati_pdc!$C1356=2,dati_bdv!$D$2:$D$65536,IF(dati_pdc!$C1356=3,dati_bdv!$E$2:$E$65536,IF(dati_pdc!$C1356=4,dati_bdv!$F$2:$F$65536,IF(dati_pdc!$C1356=5,dati_bdv!$G$2:$G$65536,dati_bdv!$H$2:$H$65536))))),$A1356,dati_bdv!L$2:L$65536)","v":0},{"$f":"SUMIF(IF(dati_pdc!$C1356=1,dati_bdv!$C$2:$C$65536,IF(dati_pdc!$C1356=2,dati_bdv!$D$2:$D$65536,IF(dati_pdc!$C1356=3,dati_bdv!$E$2:$E$65536,IF(dati_pdc!$C1356=4,dati_bdv!$F$2:$F$65536,IF(dati_pdc!$C1356=5,dati_bdv!$G$2:$G$65536,dati_bdv!$H$2:$H$65536))))),$A1356,dati_bdv!M$2:M$65536)","v":0},{"$f":"SUMIF(IF(dati_pdc!$C1356=1,dati_bdv!$C$2:$C$65536,IF(dati_pdc!$C1356=2,dati_bdv!$D$2:$D$65536,IF(dati_pdc!$C1356=3,dati_bdv!$E$2:$E$65536,IF(dati_pdc!$C1356=4,dati_bdv!$F$2:$F$65536,IF(dati_pdc!$C1356=5,dati_bdv!$G$2:$G$65536,dati_bdv!$H$2:$H$65536))))),$A1356,dati_bdv!N$2:N$65536)","v":0}]
[{"$f":"dati_pdc!A1357","v":0},{"$f":"SUMIF(IF(dati_pdc!$C1357=1,dati_bdv!$C$2:$C$65536,IF(dati_pdc!$C1357=2,dati_bdv!$D$2:$D$65536,IF(dati_pdc!$C1357=3,dati_bdv!$E$2:$E$65536,IF(dati_pdc!$C1357=4,dati_bdv!$F$2:$F$65536,IF(dati_pdc!$C1357=5,dati_bdv!$G$2:$G$65536,dati_bdv!$H$2:$H$65536))))),$A1357,dati_bdv!J$2:J$65536)","v":0},{"$f":"SUMIF(IF(dati_pdc!$C1357=1,dati_bdv!$C$2:$C$65536,IF(dati_pdc!$C1357=2,dati_bdv!$D$2:$D$65536,IF(dati_pdc!$C1357=3,dati_bdv!$E$2:$E$65536,IF(dati_pdc!$C1357=4,dati_bdv!$F$2:$F$65536,IF(dati_pdc!$C1357=5,dati_bdv!$G$2:$G$65536,dati_bdv!$H$2:$H$65536))))),$A1357,dati_bdv!K$2:K$65536)","v":0},{"$f":"SUMIF(IF(dati_pdc!$C1357=1,dati_bdv!$C$2:$C$65536,IF(dati_pdc!$C1357=2,dati_bdv!$D$2:$D$65536,IF(dati_pdc!$C1357=3,dati_bdv!$E$2:$E$65536,IF(dati_pdc!$C1357=4,dati_bdv!$F$2:$F$65536,IF(dati_pdc!$C1357=5,dati_bdv!$G$2:$G$65536,dati_bdv!$H$2:$H$65536))))),$A1357,dati_bdv!L$2:L$65536)","v":0},{"$f":"SUMIF(IF(dati_pdc!$C1357=1,dati_bdv!$C$2:$C$65536,IF(dati_pdc!$C1357=2,dati_bdv!$D$2:$D$65536,IF(dati_pdc!$C1357=3,dati_bdv!$E$2:$E$65536,IF(dati_pdc!$C1357=4,dati_bdv!$F$2:$F$65536,IF(dati_pdc!$C1357=5,dati_bdv!$G$2:$G$65536,dati_bdv!$H$2:$H$65536))))),$A1357,dati_bdv!M$2:M$65536)","v":0},{"$f":"SUMIF(IF(dati_pdc!$C1357=1,dati_bdv!$C$2:$C$65536,IF(dati_pdc!$C1357=2,dati_bdv!$D$2:$D$65536,IF(dati_pdc!$C1357=3,dati_bdv!$E$2:$E$65536,IF(dati_pdc!$C1357=4,dati_bdv!$F$2:$F$65536,IF(dati_pdc!$C1357=5,dati_bdv!$G$2:$G$65536,dati_bdv!$H$2:$H$65536))))),$A1357,dati_bdv!N$2:N$65536)","v":0}]
[{"$f":"dati_pdc!A1358","v":0},{"$f":"SUMIF(IF(dati_pdc!$C1358=1,dati_bdv!$C$2:$C$65536,IF(dati_pdc!$C1358=2,dati_bdv!$D$2:$D$65536,IF(dati_pdc!$C1358=3,dati_bdv!$E$2:$E$65536,IF(dati_pdc!$C1358=4,dati_bdv!$F$2:$F$65536,IF(dati_pdc!$C1358=5,dati_bdv!$G$2:$G$65536,dati_bdv!$H$2:$H$65536))))),$A1358,dati_bdv!J$2:J$65536)","v":0},{"$f":"SUMIF(IF(dati_pdc!$C1358=1,dati_bdv!$C$2:$C$65536,IF(dati_pdc!$C1358=2,dati_bdv!$D$2:$D$65536,IF(dati_pdc!$C1358=3,dati_bdv!$E$2:$E$65536,IF(dati_pdc!$C1358=4,dati_bdv!$F$2:$F$65536,IF(dati_pdc!$C1358=5,dati_bdv!$G$2:$G$65536,dati_bdv!$H$2:$H$65536))))),$A1358,dati_bdv!K$2:K$65536)","v":0},{"$f":"SUMIF(IF(dati_pdc!$C1358=1,dati_bdv!$C$2:$C$65536,IF(dati_pdc!$C1358=2,dati_bdv!$D$2:$D$65536,IF(dati_pdc!$C1358=3,dati_bdv!$E$2:$E$65536,IF(dati_pdc!$C1358=4,dati_bdv!$F$2:$F$65536,IF(dati_pdc!$C1358=5,dati_bdv!$G$2:$G$65536,dati_bdv!$H$2:$H$65536))))),$A1358,dati_bdv!L$2:L$65536)","v":0},{"$f":"SUMIF(IF(dati_pdc!$C1358=1,dati_bdv!$C$2:$C$65536,IF(dati_pdc!$C1358=2,dati_bdv!$D$2:$D$65536,IF(dati_pdc!$C1358=3,dati_bdv!$E$2:$E$65536,IF(dati_pdc!$C1358=4,dati_bdv!$F$2:$F$65536,IF(dati_pdc!$C1358=5,dati_bdv!$G$2:$G$65536,dati_bdv!$H$2:$H$65536))))),$A1358,dati_bdv!M$2:M$65536)","v":0},{"$f":"SUMIF(IF(dati_pdc!$C1358=1,dati_bdv!$C$2:$C$65536,IF(dati_pdc!$C1358=2,dati_bdv!$D$2:$D$65536,IF(dati_pdc!$C1358=3,dati_bdv!$E$2:$E$65536,IF(dati_pdc!$C1358=4,dati_bdv!$F$2:$F$65536,IF(dati_pdc!$C1358=5,dati_bdv!$G$2:$G$65536,dati_bdv!$H$2:$H$65536))))),$A1358,dati_bdv!N$2:N$65536)","v":0}]
[{"$f":"dati_pdc!A1359","v":0},{"$f":"SUMIF(IF(dati_pdc!$C1359=1,dati_bdv!$C$2:$C$65536,IF(dati_pdc!$C1359=2,dati_bdv!$D$2:$D$65536,IF(dati_pdc!$C1359=3,dati_bdv!$E$2:$E$65536,IF(dati_pdc!$C1359=4,dati_bdv!$F$2:$F$65536,IF(dati_pdc!$C1359=5,dati_bdv!$G$2:$G$65536,dati_bdv!$H$2:$H$65536))))),$A1359,dati_bdv!J$2:J$65536)","v":0},{"$f":"SUMIF(IF(dati_pdc!$C1359=1,dati_bdv!$C$2:$C$65536,IF(dati_pdc!$C1359=2,dati_bdv!$D$2:$D$65536,IF(dati_pdc!$C1359=3,dati_bdv!$E$2:$E$65536,IF(dati_pdc!$C1359=4,dati_bdv!$F$2:$F$65536,IF(dati_pdc!$C1359=5,dati_bdv!$G$2:$G$65536,dati_bdv!$H$2:$H$65536))))),$A1359,dati_bdv!K$2:K$65536)","v":0},{"$f":"SUMIF(IF(dati_pdc!$C1359=1,dati_bdv!$C$2:$C$65536,IF(dati_pdc!$C1359=2,dati_bdv!$D$2:$D$65536,IF(dati_pdc!$C1359=3,dati_bdv!$E$2:$E$65536,IF(dati_pdc!$C1359=4,dati_bdv!$F$2:$F$65536,IF(dati_pdc!$C1359=5,dati_bdv!$G$2:$G$65536,dati_bdv!$H$2:$H$65536))))),$A1359,dati_bdv!L$2:L$65536)","v":0},{"$f":"SUMIF(IF(dati_pdc!$C1359=1,dati_bdv!$C$2:$C$65536,IF(dati_pdc!$C1359=2,dati_bdv!$D$2:$D$65536,IF(dati_pdc!$C1359=3,dati_bdv!$E$2:$E$65536,IF(dati_pdc!$C1359=4,dati_bdv!$F$2:$F$65536,IF(dati_pdc!$C1359=5,dati_bdv!$G$2:$G$65536,dati_bdv!$H$2:$H$65536))))),$A1359,dati_bdv!M$2:M$65536)","v":0},{"$f":"SUMIF(IF(dati_pdc!$C1359=1,dati_bdv!$C$2:$C$65536,IF(dati_pdc!$C1359=2,dati_bdv!$D$2:$D$65536,IF(dati_pdc!$C1359=3,dati_bdv!$E$2:$E$65536,IF(dati_pdc!$C1359=4,dati_bdv!$F$2:$F$65536,IF(dati_pdc!$C1359=5,dati_bdv!$G$2:$G$65536,dati_bdv!$H$2:$H$65536))))),$A1359,dati_bdv!N$2:N$65536)","v":0}]
[{"$f":"dati_pdc!A1360","v":0},{"$f":"SUMIF(IF(dati_pdc!$C1360=1,dati_bdv!$C$2:$C$65536,IF(dati_pdc!$C1360=2,dati_bdv!$D$2:$D$65536,IF(dati_pdc!$C1360=3,dati_bdv!$E$2:$E$65536,IF(dati_pdc!$C1360=4,dati_bdv!$F$2:$F$65536,IF(dati_pdc!$C1360=5,dati_bdv!$G$2:$G$65536,dati_bdv!$H$2:$H$65536))))),$A1360,dati_bdv!J$2:J$65536)","v":0},{"$f":"SUMIF(IF(dati_pdc!$C1360=1,dati_bdv!$C$2:$C$65536,IF(dati_pdc!$C1360=2,dati_bdv!$D$2:$D$65536,IF(dati_pdc!$C1360=3,dati_bdv!$E$2:$E$65536,IF(dati_pdc!$C1360=4,dati_bdv!$F$2:$F$65536,IF(dati_pdc!$C1360=5,dati_bdv!$G$2:$G$65536,dati_bdv!$H$2:$H$65536))))),$A1360,dati_bdv!K$2:K$65536)","v":0},{"$f":"SUMIF(IF(dati_pdc!$C1360=1,dati_bdv!$C$2:$C$65536,IF(dati_pdc!$C1360=2,dati_bdv!$D$2:$D$65536,IF(dati_pdc!$C1360=3,dati_bdv!$E$2:$E$65536,IF(dati_pdc!$C1360=4,dati_bdv!$F$2:$F$65536,IF(dati_pdc!$C1360=5,dati_bdv!$G$2:$G$65536,dati_bdv!$H$2:$H$65536))))),$A1360,dati_bdv!L$2:L$65536)","v":0},{"$f":"SUMIF(IF(dati_pdc!$C1360=1,dati_bdv!$C$2:$C$65536,IF(dati_pdc!$C1360=2,dati_bdv!$D$2:$D$65536,IF(dati_pdc!$C1360=3,dati_bdv!$E$2:$E$65536,IF(dati_pdc!$C1360=4,dati_bdv!$F$2:$F$65536,IF(dati_pdc!$C1360=5,dati_bdv!$G$2:$G$65536,dati_bdv!$H$2:$H$65536))))),$A1360,dati_bdv!M$2:M$65536)","v":0},{"$f":"SUMIF(IF(dati_pdc!$C1360=1,dati_bdv!$C$2:$C$65536,IF(dati_pdc!$C1360=2,dati_bdv!$D$2:$D$65536,IF(dati_pdc!$C1360=3,dati_bdv!$E$2:$E$65536,IF(dati_pdc!$C1360=4,dati_bdv!$F$2:$F$65536,IF(dati_pdc!$C1360=5,dati_bdv!$G$2:$G$65536,dati_bdv!$H$2:$H$65536))))),$A1360,dati_bdv!N$2:N$65536)","v":0}]
[{"$f":"dati_pdc!A1361","v":0},{"$f":"SUMIF(IF(dati_pdc!$C1361=1,dati_bdv!$C$2:$C$65536,IF(dati_pdc!$C1361=2,dati_bdv!$D$2:$D$65536,IF(dati_pdc!$C1361=3,dati_bdv!$E$2:$E$65536,IF(dati_pdc!$C1361=4,dati_bdv!$F$2:$F$65536,IF(dati_pdc!$C1361=5,dati_bdv!$G$2:$G$65536,dati_bdv!$H$2:$H$65536))))),$A1361,dati_bdv!J$2:J$65536)","v":0},{"$f":"SUMIF(IF(dati_pdc!$C1361=1,dati_bdv!$C$2:$C$65536,IF(dati_pdc!$C1361=2,dati_bdv!$D$2:$D$65536,IF(dati_pdc!$C1361=3,dati_bdv!$E$2:$E$65536,IF(dati_pdc!$C1361=4,dati_bdv!$F$2:$F$65536,IF(dati_pdc!$C1361=5,dati_bdv!$G$2:$G$65536,dati_bdv!$H$2:$H$65536))))),$A1361,dati_bdv!K$2:K$65536)","v":0},{"$f":"SUMIF(IF(dati_pdc!$C1361=1,dati_bdv!$C$2:$C$65536,IF(dati_pdc!$C1361=2,dati_bdv!$D$2:$D$65536,IF(dati_pdc!$C1361=3,dati_bdv!$E$2:$E$65536,IF(dati_pdc!$C1361=4,dati_bdv!$F$2:$F$65536,IF(dati_pdc!$C1361=5,dati_bdv!$G$2:$G$65536,dati_bdv!$H$2:$H$65536))))),$A1361,dati_bdv!L$2:L$65536)","v":0},{"$f":"SUMIF(IF(dati_pdc!$C1361=1,dati_bdv!$C$2:$C$65536,IF(dati_pdc!$C1361=2,dati_bdv!$D$2:$D$65536,IF(dati_pdc!$C1361=3,dati_bdv!$E$2:$E$65536,IF(dati_pdc!$C1361=4,dati_bdv!$F$2:$F$65536,IF(dati_pdc!$C1361=5,dati_bdv!$G$2:$G$65536,dati_bdv!$H$2:$H$65536))))),$A1361,dati_bdv!M$2:M$65536)","v":0},{"$f":"SUMIF(IF(dati_pdc!$C1361=1,dati_bdv!$C$2:$C$65536,IF(dati_pdc!$C1361=2,dati_bdv!$D$2:$D$65536,IF(dati_pdc!$C1361=3,dati_bdv!$E$2:$E$65536,IF(dati_pdc!$C1361=4,dati_bdv!$F$2:$F$65536,IF(dati_pdc!$C1361=5,dati_bdv!$G$2:$G$65536,dati_bdv!$H$2:$H$65536))))),$A1361,dati_bdv!N$2:N$65536)","v":0}]
[{"$f":"dati_pdc!A1362","v":0},{"$f":"SUMIF(IF(dati_pdc!$C1362=1,dati_bdv!$C$2:$C$65536,IF(dati_pdc!$C1362=2,dati_bdv!$D$2:$D$65536,IF(dati_pdc!$C1362=3,dati_bdv!$E$2:$E$65536,IF(dati_pdc!$C1362=4,dati_bdv!$F$2:$F$65536,IF(dati_pdc!$C1362=5,dati_bdv!$G$2:$G$65536,dati_bdv!$H$2:$H$65536))))),$A1362,dati_bdv!J$2:J$65536)","v":0},{"$f":"SUMIF(IF(dati_pdc!$C1362=1,dati_bdv!$C$2:$C$65536,IF(dati_pdc!$C1362=2,dati_bdv!$D$2:$D$65536,IF(dati_pdc!$C1362=3,dati_bdv!$E$2:$E$65536,IF(dati_pdc!$C1362=4,dati_bdv!$F$2:$F$65536,IF(dati_pdc!$C1362=5,dati_bdv!$G$2:$G$65536,dati_bdv!$H$2:$H$65536))))),$A1362,dati_bdv!K$2:K$65536)","v":0},{"$f":"SUMIF(IF(dati_pdc!$C1362=1,dati_bdv!$C$2:$C$65536,IF(dati_pdc!$C1362=2,dati_bdv!$D$2:$D$65536,IF(dati_pdc!$C1362=3,dati_bdv!$E$2:$E$65536,IF(dati_pdc!$C1362=4,dati_bdv!$F$2:$F$65536,IF(dati_pdc!$C1362=5,dati_bdv!$G$2:$G$65536,dati_bdv!$H$2:$H$65536))))),$A1362,dati_bdv!L$2:L$65536)","v":0},{"$f":"SUMIF(IF(dati_pdc!$C1362=1,dati_bdv!$C$2:$C$65536,IF(dati_pdc!$C1362=2,dati_bdv!$D$2:$D$65536,IF(dati_pdc!$C1362=3,dati_bdv!$E$2:$E$65536,IF(dati_pdc!$C1362=4,dati_bdv!$F$2:$F$65536,IF(dati_pdc!$C1362=5,dati_bdv!$G$2:$G$65536,dati_bdv!$H$2:$H$65536))))),$A1362,dati_bdv!M$2:M$65536)","v":0},{"$f":"SUMIF(IF(dati_pdc!$C1362=1,dati_bdv!$C$2:$C$65536,IF(dati_pdc!$C1362=2,dati_bdv!$D$2:$D$65536,IF(dati_pdc!$C1362=3,dati_bdv!$E$2:$E$65536,IF(dati_pdc!$C1362=4,dati_bdv!$F$2:$F$65536,IF(dati_pdc!$C1362=5,dati_bdv!$G$2:$G$65536,dati_bdv!$H$2:$H$65536))))),$A1362,dati_bdv!N$2:N$65536)","v":0}]
[{"$f":"dati_pdc!A1363","v":0},{"$f":"SUMIF(IF(dati_pdc!$C1363=1,dati_bdv!$C$2:$C$65536,IF(dati_pdc!$C1363=2,dati_bdv!$D$2:$D$65536,IF(dati_pdc!$C1363=3,dati_bdv!$E$2:$E$65536,IF(dati_pdc!$C1363=4,dati_bdv!$F$2:$F$65536,IF(dati_pdc!$C1363=5,dati_bdv!$G$2:$G$65536,dati_bdv!$H$2:$H$65536))))),$A1363,dati_bdv!J$2:J$65536)","v":0},{"$f":"SUMIF(IF(dati_pdc!$C1363=1,dati_bdv!$C$2:$C$65536,IF(dati_pdc!$C1363=2,dati_bdv!$D$2:$D$65536,IF(dati_pdc!$C1363=3,dati_bdv!$E$2:$E$65536,IF(dati_pdc!$C1363=4,dati_bdv!$F$2:$F$65536,IF(dati_pdc!$C1363=5,dati_bdv!$G$2:$G$65536,dati_bdv!$H$2:$H$65536))))),$A1363,dati_bdv!K$2:K$65536)","v":0},{"$f":"SUMIF(IF(dati_pdc!$C1363=1,dati_bdv!$C$2:$C$65536,IF(dati_pdc!$C1363=2,dati_bdv!$D$2:$D$65536,IF(dati_pdc!$C1363=3,dati_bdv!$E$2:$E$65536,IF(dati_pdc!$C1363=4,dati_bdv!$F$2:$F$65536,IF(dati_pdc!$C1363=5,dati_bdv!$G$2:$G$65536,dati_bdv!$H$2:$H$65536))))),$A1363,dati_bdv!L$2:L$65536)","v":0},{"$f":"SUMIF(IF(dati_pdc!$C1363=1,dati_bdv!$C$2:$C$65536,IF(dati_pdc!$C1363=2,dati_bdv!$D$2:$D$65536,IF(dati_pdc!$C1363=3,dati_bdv!$E$2:$E$65536,IF(dati_pdc!$C1363=4,dati_bdv!$F$2:$F$65536,IF(dati_pdc!$C1363=5,dati_bdv!$G$2:$G$65536,dati_bdv!$H$2:$H$65536))))),$A1363,dati_bdv!M$2:M$65536)","v":0},{"$f":"SUMIF(IF(dati_pdc!$C1363=1,dati_bdv!$C$2:$C$65536,IF(dati_pdc!$C1363=2,dati_bdv!$D$2:$D$65536,IF(dati_pdc!$C1363=3,dati_bdv!$E$2:$E$65536,IF(dati_pdc!$C1363=4,dati_bdv!$F$2:$F$65536,IF(dati_pdc!$C1363=5,dati_bdv!$G$2:$G$65536,dati_bdv!$H$2:$H$65536))))),$A1363,dati_bdv!N$2:N$65536)","v":0}]
[{"$f":"dati_pdc!A1364","v":0},{"$f":"SUMIF(IF(dati_pdc!$C1364=1,dati_bdv!$C$2:$C$65536,IF(dati_pdc!$C1364=2,dati_bdv!$D$2:$D$65536,IF(dati_pdc!$C1364=3,dati_bdv!$E$2:$E$65536,IF(dati_pdc!$C1364=4,dati_bdv!$F$2:$F$65536,IF(dati_pdc!$C1364=5,dati_bdv!$G$2:$G$65536,dati_bdv!$H$2:$H$65536))))),$A1364,dati_bdv!J$2:J$65536)","v":0},{"$f":"SUMIF(IF(dati_pdc!$C1364=1,dati_bdv!$C$2:$C$65536,IF(dati_pdc!$C1364=2,dati_bdv!$D$2:$D$65536,IF(dati_pdc!$C1364=3,dati_bdv!$E$2:$E$65536,IF(dati_pdc!$C1364=4,dati_bdv!$F$2:$F$65536,IF(dati_pdc!$C1364=5,dati_bdv!$G$2:$G$65536,dati_bdv!$H$2:$H$65536))))),$A1364,dati_bdv!K$2:K$65536)","v":0},{"$f":"SUMIF(IF(dati_pdc!$C1364=1,dati_bdv!$C$2:$C$65536,IF(dati_pdc!$C1364=2,dati_bdv!$D$2:$D$65536,IF(dati_pdc!$C1364=3,dati_bdv!$E$2:$E$65536,IF(dati_pdc!$C1364=4,dati_bdv!$F$2:$F$65536,IF(dati_pdc!$C1364=5,dati_bdv!$G$2:$G$65536,dati_bdv!$H$2:$H$65536))))),$A1364,dati_bdv!L$2:L$65536)","v":0},{"$f":"SUMIF(IF(dati_pdc!$C1364=1,dati_bdv!$C$2:$C$65536,IF(dati_pdc!$C1364=2,dati_bdv!$D$2:$D$65536,IF(dati_pdc!$C1364=3,dati_bdv!$E$2:$E$65536,IF(dati_pdc!$C1364=4,dati_bdv!$F$2:$F$65536,IF(dati_pdc!$C1364=5,dati_bdv!$G$2:$G$65536,dati_bdv!$H$2:$H$65536))))),$A1364,dati_bdv!M$2:M$65536)","v":0},{"$f":"SUMIF(IF(dati_pdc!$C1364=1,dati_bdv!$C$2:$C$65536,IF(dati_pdc!$C1364=2,dati_bdv!$D$2:$D$65536,IF(dati_pdc!$C1364=3,dati_bdv!$E$2:$E$65536,IF(dati_pdc!$C1364=4,dati_bdv!$F$2:$F$65536,IF(dati_pdc!$C1364=5,dati_bdv!$G$2:$G$65536,dati_bdv!$H$2:$H$65536))))),$A1364,dati_bdv!N$2:N$65536)","v":0}]
[{"$f":"dati_pdc!A1365","v":0},{"$f":"SUMIF(IF(dati_pdc!$C1365=1,dati_bdv!$C$2:$C$65536,IF(dati_pdc!$C1365=2,dati_bdv!$D$2:$D$65536,IF(dati_pdc!$C1365=3,dati_bdv!$E$2:$E$65536,IF(dati_pdc!$C1365=4,dati_bdv!$F$2:$F$65536,IF(dati_pdc!$C1365=5,dati_bdv!$G$2:$G$65536,dati_bdv!$H$2:$H$65536))))),$A1365,dati_bdv!J$2:J$65536)","v":0},{"$f":"SUMIF(IF(dati_pdc!$C1365=1,dati_bdv!$C$2:$C$65536,IF(dati_pdc!$C1365=2,dati_bdv!$D$2:$D$65536,IF(dati_pdc!$C1365=3,dati_bdv!$E$2:$E$65536,IF(dati_pdc!$C1365=4,dati_bdv!$F$2:$F$65536,IF(dati_pdc!$C1365=5,dati_bdv!$G$2:$G$65536,dati_bdv!$H$2:$H$65536))))),$A1365,dati_bdv!K$2:K$65536)","v":0},{"$f":"SUMIF(IF(dati_pdc!$C1365=1,dati_bdv!$C$2:$C$65536,IF(dati_pdc!$C1365=2,dati_bdv!$D$2:$D$65536,IF(dati_pdc!$C1365=3,dati_bdv!$E$2:$E$65536,IF(dati_pdc!$C1365=4,dati_bdv!$F$2:$F$65536,IF(dati_pdc!$C1365=5,dati_bdv!$G$2:$G$65536,dati_bdv!$H$2:$H$65536))))),$A1365,dati_bdv!L$2:L$65536)","v":0},{"$f":"SUMIF(IF(dati_pdc!$C1365=1,dati_bdv!$C$2:$C$65536,IF(dati_pdc!$C1365=2,dati_bdv!$D$2:$D$65536,IF(dati_pdc!$C1365=3,dati_bdv!$E$2:$E$65536,IF(dati_pdc!$C1365=4,dati_bdv!$F$2:$F$65536,IF(dati_pdc!$C1365=5,dati_bdv!$G$2:$G$65536,dati_bdv!$H$2:$H$65536))))),$A1365,dati_bdv!M$2:M$65536)","v":0},{"$f":"SUMIF(IF(dati_pdc!$C1365=1,dati_bdv!$C$2:$C$65536,IF(dati_pdc!$C1365=2,dati_bdv!$D$2:$D$65536,IF(dati_pdc!$C1365=3,dati_bdv!$E$2:$E$65536,IF(dati_pdc!$C1365=4,dati_bdv!$F$2:$F$65536,IF(dati_pdc!$C1365=5,dati_bdv!$G$2:$G$65536,dati_bdv!$H$2:$H$65536))))),$A1365,dati_bdv!N$2:N$65536)","v":0}]
[{"$f":"dati_pdc!A1366","v":0},{"$f":"SUMIF(IF(dati_pdc!$C1366=1,dati_bdv!$C$2:$C$65536,IF(dati_pdc!$C1366=2,dati_bdv!$D$2:$D$65536,IF(dati_pdc!$C1366=3,dati_bdv!$E$2:$E$65536,IF(dati_pdc!$C1366=4,dati_bdv!$F$2:$F$65536,IF(dati_pdc!$C1366=5,dati_bdv!$G$2:$G$65536,dati_bdv!$H$2:$H$65536))))),$A1366,dati_bdv!J$2:J$65536)","v":0},{"$f":"SUMIF(IF(dati_pdc!$C1366=1,dati_bdv!$C$2:$C$65536,IF(dati_pdc!$C1366=2,dati_bdv!$D$2:$D$65536,IF(dati_pdc!$C1366=3,dati_bdv!$E$2:$E$65536,IF(dati_pdc!$C1366=4,dati_bdv!$F$2:$F$65536,IF(dati_pdc!$C1366=5,dati_bdv!$G$2:$G$65536,dati_bdv!$H$2:$H$65536))))),$A1366,dati_bdv!K$2:K$65536)","v":0},{"$f":"SUMIF(IF(dati_pdc!$C1366=1,dati_bdv!$C$2:$C$65536,IF(dati_pdc!$C1366=2,dati_bdv!$D$2:$D$65536,IF(dati_pdc!$C1366=3,dati_bdv!$E$2:$E$65536,IF(dati_pdc!$C1366=4,dati_bdv!$F$2:$F$65536,IF(dati_pdc!$C1366=5,dati_bdv!$G$2:$G$65536,dati_bdv!$H$2:$H$65536))))),$A1366,dati_bdv!L$2:L$65536)","v":0},{"$f":"SUMIF(IF(dati_pdc!$C1366=1,dati_bdv!$C$2:$C$65536,IF(dati_pdc!$C1366=2,dati_bdv!$D$2:$D$65536,IF(dati_pdc!$C1366=3,dati_bdv!$E$2:$E$65536,IF(dati_pdc!$C1366=4,dati_bdv!$F$2:$F$65536,IF(dati_pdc!$C1366=5,dati_bdv!$G$2:$G$65536,dati_bdv!$H$2:$H$65536))))),$A1366,dati_bdv!M$2:M$65536)","v":0},{"$f":"SUMIF(IF(dati_pdc!$C1366=1,dati_bdv!$C$2:$C$65536,IF(dati_pdc!$C1366=2,dati_bdv!$D$2:$D$65536,IF(dati_pdc!$C1366=3,dati_bdv!$E$2:$E$65536,IF(dati_pdc!$C1366=4,dati_bdv!$F$2:$F$65536,IF(dati_pdc!$C1366=5,dati_bdv!$G$2:$G$65536,dati_bdv!$H$2:$H$65536))))),$A1366,dati_bdv!N$2:N$65536)","v":0}]
[{"$f":"dati_pdc!A1367","v":0},{"$f":"SUMIF(IF(dati_pdc!$C1367=1,dati_bdv!$C$2:$C$65536,IF(dati_pdc!$C1367=2,dati_bdv!$D$2:$D$65536,IF(dati_pdc!$C1367=3,dati_bdv!$E$2:$E$65536,IF(dati_pdc!$C1367=4,dati_bdv!$F$2:$F$65536,IF(dati_pdc!$C1367=5,dati_bdv!$G$2:$G$65536,dati_bdv!$H$2:$H$65536))))),$A1367,dati_bdv!J$2:J$65536)","v":0},{"$f":"SUMIF(IF(dati_pdc!$C1367=1,dati_bdv!$C$2:$C$65536,IF(dati_pdc!$C1367=2,dati_bdv!$D$2:$D$65536,IF(dati_pdc!$C1367=3,dati_bdv!$E$2:$E$65536,IF(dati_pdc!$C1367=4,dati_bdv!$F$2:$F$65536,IF(dati_pdc!$C1367=5,dati_bdv!$G$2:$G$65536,dati_bdv!$H$2:$H$65536))))),$A1367,dati_bdv!K$2:K$65536)","v":0},{"$f":"SUMIF(IF(dati_pdc!$C1367=1,dati_bdv!$C$2:$C$65536,IF(dati_pdc!$C1367=2,dati_bdv!$D$2:$D$65536,IF(dati_pdc!$C1367=3,dati_bdv!$E$2:$E$65536,IF(dati_pdc!$C1367=4,dati_bdv!$F$2:$F$65536,IF(dati_pdc!$C1367=5,dati_bdv!$G$2:$G$65536,dati_bdv!$H$2:$H$65536))))),$A1367,dati_bdv!L$2:L$65536)","v":0},{"$f":"SUMIF(IF(dati_pdc!$C1367=1,dati_bdv!$C$2:$C$65536,IF(dati_pdc!$C1367=2,dati_bdv!$D$2:$D$65536,IF(dati_pdc!$C1367=3,dati_bdv!$E$2:$E$65536,IF(dati_pdc!$C1367=4,dati_bdv!$F$2:$F$65536,IF(dati_pdc!$C1367=5,dati_bdv!$G$2:$G$65536,dati_bdv!$H$2:$H$65536))))),$A1367,dati_bdv!M$2:M$65536)","v":0},{"$f":"SUMIF(IF(dati_pdc!$C1367=1,dati_bdv!$C$2:$C$65536,IF(dati_pdc!$C1367=2,dati_bdv!$D$2:$D$65536,IF(dati_pdc!$C1367=3,dati_bdv!$E$2:$E$65536,IF(dati_pdc!$C1367=4,dati_bdv!$F$2:$F$65536,IF(dati_pdc!$C1367=5,dati_bdv!$G$2:$G$65536,dati_bdv!$H$2:$H$65536))))),$A1367,dati_bdv!N$2:N$65536)","v":0}]
[{"$f":"dati_pdc!A1368","v":0},{"$f":"SUMIF(IF(dati_pdc!$C1368=1,dati_bdv!$C$2:$C$65536,IF(dati_pdc!$C1368=2,dati_bdv!$D$2:$D$65536,IF(dati_pdc!$C1368=3,dati_bdv!$E$2:$E$65536,IF(dati_pdc!$C1368=4,dati_bdv!$F$2:$F$65536,IF(dati_pdc!$C1368=5,dati_bdv!$G$2:$G$65536,dati_bdv!$H$2:$H$65536))))),$A1368,dati_bdv!J$2:J$65536)","v":0},{"$f":"SUMIF(IF(dati_pdc!$C1368=1,dati_bdv!$C$2:$C$65536,IF(dati_pdc!$C1368=2,dati_bdv!$D$2:$D$65536,IF(dati_pdc!$C1368=3,dati_bdv!$E$2:$E$65536,IF(dati_pdc!$C1368=4,dati_bdv!$F$2:$F$65536,IF(dati_pdc!$C1368=5,dati_bdv!$G$2:$G$65536,dati_bdv!$H$2:$H$65536))))),$A1368,dati_bdv!K$2:K$65536)","v":0},{"$f":"SUMIF(IF(dati_pdc!$C1368=1,dati_bdv!$C$2:$C$65536,IF(dati_pdc!$C1368=2,dati_bdv!$D$2:$D$65536,IF(dati_pdc!$C1368=3,dati_bdv!$E$2:$E$65536,IF(dati_pdc!$C1368=4,dati_bdv!$F$2:$F$65536,IF(dati_pdc!$C1368=5,dati_bdv!$G$2:$G$65536,dati_bdv!$H$2:$H$65536))))),$A1368,dati_bdv!L$2:L$65536)","v":0},{"$f":"SUMIF(IF(dati_pdc!$C1368=1,dati_bdv!$C$2:$C$65536,IF(dati_pdc!$C1368=2,dati_bdv!$D$2:$D$65536,IF(dati_pdc!$C1368=3,dati_bdv!$E$2:$E$65536,IF(dati_pdc!$C1368=4,dati_bdv!$F$2:$F$65536,IF(dati_pdc!$C1368=5,dati_bdv!$G$2:$G$65536,dati_bdv!$H$2:$H$65536))))),$A1368,dati_bdv!M$2:M$65536)","v":0},{"$f":"SUMIF(IF(dati_pdc!$C1368=1,dati_bdv!$C$2:$C$65536,IF(dati_pdc!$C1368=2,dati_bdv!$D$2:$D$65536,IF(dati_pdc!$C1368=3,dati_bdv!$E$2:$E$65536,IF(dati_pdc!$C1368=4,dati_bdv!$F$2:$F$65536,IF(dati_pdc!$C1368=5,dati_bdv!$G$2:$G$65536,dati_bdv!$H$2:$H$65536))))),$A1368,dati_bdv!N$2:N$65536)","v":0}]
[{"$f":"dati_pdc!A1369","v":0},{"$f":"SUMIF(IF(dati_pdc!$C1369=1,dati_bdv!$C$2:$C$65536,IF(dati_pdc!$C1369=2,dati_bdv!$D$2:$D$65536,IF(dati_pdc!$C1369=3,dati_bdv!$E$2:$E$65536,IF(dati_pdc!$C1369=4,dati_bdv!$F$2:$F$65536,IF(dati_pdc!$C1369=5,dati_bdv!$G$2:$G$65536,dati_bdv!$H$2:$H$65536))))),$A1369,dati_bdv!J$2:J$65536)","v":0},{"$f":"SUMIF(IF(dati_pdc!$C1369=1,dati_bdv!$C$2:$C$65536,IF(dati_pdc!$C1369=2,dati_bdv!$D$2:$D$65536,IF(dati_pdc!$C1369=3,dati_bdv!$E$2:$E$65536,IF(dati_pdc!$C1369=4,dati_bdv!$F$2:$F$65536,IF(dati_pdc!$C1369=5,dati_bdv!$G$2:$G$65536,dati_bdv!$H$2:$H$65536))))),$A1369,dati_bdv!K$2:K$65536)","v":0},{"$f":"SUMIF(IF(dati_pdc!$C1369=1,dati_bdv!$C$2:$C$65536,IF(dati_pdc!$C1369=2,dati_bdv!$D$2:$D$65536,IF(dati_pdc!$C1369=3,dati_bdv!$E$2:$E$65536,IF(dati_pdc!$C1369=4,dati_bdv!$F$2:$F$65536,IF(dati_pdc!$C1369=5,dati_bdv!$G$2:$G$65536,dati_bdv!$H$2:$H$65536))))),$A1369,dati_bdv!L$2:L$65536)","v":0},{"$f":"SUMIF(IF(dati_pdc!$C1369=1,dati_bdv!$C$2:$C$65536,IF(dati_pdc!$C1369=2,dati_bdv!$D$2:$D$65536,IF(dati_pdc!$C1369=3,dati_bdv!$E$2:$E$65536,IF(dati_pdc!$C1369=4,dati_bdv!$F$2:$F$65536,IF(dati_pdc!$C1369=5,dati_bdv!$G$2:$G$65536,dati_bdv!$H$2:$H$65536))))),$A1369,dati_bdv!M$2:M$65536)","v":0},{"$f":"SUMIF(IF(dati_pdc!$C1369=1,dati_bdv!$C$2:$C$65536,IF(dati_pdc!$C1369=2,dati_bdv!$D$2:$D$65536,IF(dati_pdc!$C1369=3,dati_bdv!$E$2:$E$65536,IF(dati_pdc!$C1369=4,dati_bdv!$F$2:$F$65536,IF(dati_pdc!$C1369=5,dati_bdv!$G$2:$G$65536,dati_bdv!$H$2:$H$65536))))),$A1369,dati_bdv!N$2:N$65536)","v":0}]
[{"$f":"dati_pdc!A1370","v":0},{"$f":"SUMIF(IF(dati_pdc!$C1370=1,dati_bdv!$C$2:$C$65536,IF(dati_pdc!$C1370=2,dati_bdv!$D$2:$D$65536,IF(dati_pdc!$C1370=3,dati_bdv!$E$2:$E$65536,IF(dati_pdc!$C1370=4,dati_bdv!$F$2:$F$65536,IF(dati_pdc!$C1370=5,dati_bdv!$G$2:$G$65536,dati_bdv!$H$2:$H$65536))))),$A1370,dati_bdv!J$2:J$65536)","v":0},{"$f":"SUMIF(IF(dati_pdc!$C1370=1,dati_bdv!$C$2:$C$65536,IF(dati_pdc!$C1370=2,dati_bdv!$D$2:$D$65536,IF(dati_pdc!$C1370=3,dati_bdv!$E$2:$E$65536,IF(dati_pdc!$C1370=4,dati_bdv!$F$2:$F$65536,IF(dati_pdc!$C1370=5,dati_bdv!$G$2:$G$65536,dati_bdv!$H$2:$H$65536))))),$A1370,dati_bdv!K$2:K$65536)","v":0},{"$f":"SUMIF(IF(dati_pdc!$C1370=1,dati_bdv!$C$2:$C$65536,IF(dati_pdc!$C1370=2,dati_bdv!$D$2:$D$65536,IF(dati_pdc!$C1370=3,dati_bdv!$E$2:$E$65536,IF(dati_pdc!$C1370=4,dati_bdv!$F$2:$F$65536,IF(dati_pdc!$C1370=5,dati_bdv!$G$2:$G$65536,dati_bdv!$H$2:$H$65536))))),$A1370,dati_bdv!L$2:L$65536)","v":0},{"$f":"SUMIF(IF(dati_pdc!$C1370=1,dati_bdv!$C$2:$C$65536,IF(dati_pdc!$C1370=2,dati_bdv!$D$2:$D$65536,IF(dati_pdc!$C1370=3,dati_bdv!$E$2:$E$65536,IF(dati_pdc!$C1370=4,dati_bdv!$F$2:$F$65536,IF(dati_pdc!$C1370=5,dati_bdv!$G$2:$G$65536,dati_bdv!$H$2:$H$65536))))),$A1370,dati_bdv!M$2:M$65536)","v":0},{"$f":"SUMIF(IF(dati_pdc!$C1370=1,dati_bdv!$C$2:$C$65536,IF(dati_pdc!$C1370=2,dati_bdv!$D$2:$D$65536,IF(dati_pdc!$C1370=3,dati_bdv!$E$2:$E$65536,IF(dati_pdc!$C1370=4,dati_bdv!$F$2:$F$65536,IF(dati_pdc!$C1370=5,dati_bdv!$G$2:$G$65536,dati_bdv!$H$2:$H$65536))))),$A1370,dati_bdv!N$2:N$65536)","v":0}]
[{"$f":"dati_pdc!A1371","v":0},{"$f":"SUMIF(IF(dati_pdc!$C1371=1,dati_bdv!$C$2:$C$65536,IF(dati_pdc!$C1371=2,dati_bdv!$D$2:$D$65536,IF(dati_pdc!$C1371=3,dati_bdv!$E$2:$E$65536,IF(dati_pdc!$C1371=4,dati_bdv!$F$2:$F$65536,IF(dati_pdc!$C1371=5,dati_bdv!$G$2:$G$65536,dati_bdv!$H$2:$H$65536))))),$A1371,dati_bdv!J$2:J$65536)","v":0},{"$f":"SUMIF(IF(dati_pdc!$C1371=1,dati_bdv!$C$2:$C$65536,IF(dati_pdc!$C1371=2,dati_bdv!$D$2:$D$65536,IF(dati_pdc!$C1371=3,dati_bdv!$E$2:$E$65536,IF(dati_pdc!$C1371=4,dati_bdv!$F$2:$F$65536,IF(dati_pdc!$C1371=5,dati_bdv!$G$2:$G$65536,dati_bdv!$H$2:$H$65536))))),$A1371,dati_bdv!K$2:K$65536)","v":0},{"$f":"SUMIF(IF(dati_pdc!$C1371=1,dati_bdv!$C$2:$C$65536,IF(dati_pdc!$C1371=2,dati_bdv!$D$2:$D$65536,IF(dati_pdc!$C1371=3,dati_bdv!$E$2:$E$65536,IF(dati_pdc!$C1371=4,dati_bdv!$F$2:$F$65536,IF(dati_pdc!$C1371=5,dati_bdv!$G$2:$G$65536,dati_bdv!$H$2:$H$65536))))),$A1371,dati_bdv!L$2:L$65536)","v":0},{"$f":"SUMIF(IF(dati_pdc!$C1371=1,dati_bdv!$C$2:$C$65536,IF(dati_pdc!$C1371=2,dati_bdv!$D$2:$D$65536,IF(dati_pdc!$C1371=3,dati_bdv!$E$2:$E$65536,IF(dati_pdc!$C1371=4,dati_bdv!$F$2:$F$65536,IF(dati_pdc!$C1371=5,dati_bdv!$G$2:$G$65536,dati_bdv!$H$2:$H$65536))))),$A1371,dati_bdv!M$2:M$65536)","v":0},{"$f":"SUMIF(IF(dati_pdc!$C1371=1,dati_bdv!$C$2:$C$65536,IF(dati_pdc!$C1371=2,dati_bdv!$D$2:$D$65536,IF(dati_pdc!$C1371=3,dati_bdv!$E$2:$E$65536,IF(dati_pdc!$C1371=4,dati_bdv!$F$2:$F$65536,IF(dati_pdc!$C1371=5,dati_bdv!$G$2:$G$65536,dati_bdv!$H$2:$H$65536))))),$A1371,dati_bdv!N$2:N$65536)","v":0}]
[{"$f":"dati_pdc!A1372","v":0},{"$f":"SUMIF(IF(dati_pdc!$C1372=1,dati_bdv!$C$2:$C$65536,IF(dati_pdc!$C1372=2,dati_bdv!$D$2:$D$65536,IF(dati_pdc!$C1372=3,dati_bdv!$E$2:$E$65536,IF(dati_pdc!$C1372=4,dati_bdv!$F$2:$F$65536,IF(dati_pdc!$C1372=5,dati_bdv!$G$2:$G$65536,dati_bdv!$H$2:$H$65536))))),$A1372,dati_bdv!J$2:J$65536)","v":0},{"$f":"SUMIF(IF(dati_pdc!$C1372=1,dati_bdv!$C$2:$C$65536,IF(dati_pdc!$C1372=2,dati_bdv!$D$2:$D$65536,IF(dati_pdc!$C1372=3,dati_bdv!$E$2:$E$65536,IF(dati_pdc!$C1372=4,dati_bdv!$F$2:$F$65536,IF(dati_pdc!$C1372=5,dati_bdv!$G$2:$G$65536,dati_bdv!$H$2:$H$65536))))),$A1372,dati_bdv!K$2:K$65536)","v":0},{"$f":"SUMIF(IF(dati_pdc!$C1372=1,dati_bdv!$C$2:$C$65536,IF(dati_pdc!$C1372=2,dati_bdv!$D$2:$D$65536,IF(dati_pdc!$C1372=3,dati_bdv!$E$2:$E$65536,IF(dati_pdc!$C1372=4,dati_bdv!$F$2:$F$65536,IF(dati_pdc!$C1372=5,dati_bdv!$G$2:$G$65536,dati_bdv!$H$2:$H$65536))))),$A1372,dati_bdv!L$2:L$65536)","v":0},{"$f":"SUMIF(IF(dati_pdc!$C1372=1,dati_bdv!$C$2:$C$65536,IF(dati_pdc!$C1372=2,dati_bdv!$D$2:$D$65536,IF(dati_pdc!$C1372=3,dati_bdv!$E$2:$E$65536,IF(dati_pdc!$C1372=4,dati_bdv!$F$2:$F$65536,IF(dati_pdc!$C1372=5,dati_bdv!$G$2:$G$65536,dati_bdv!$H$2:$H$65536))))),$A1372,dati_bdv!M$2:M$65536)","v":0},{"$f":"SUMIF(IF(dati_pdc!$C1372=1,dati_bdv!$C$2:$C$65536,IF(dati_pdc!$C1372=2,dati_bdv!$D$2:$D$65536,IF(dati_pdc!$C1372=3,dati_bdv!$E$2:$E$65536,IF(dati_pdc!$C1372=4,dati_bdv!$F$2:$F$65536,IF(dati_pdc!$C1372=5,dati_bdv!$G$2:$G$65536,dati_bdv!$H$2:$H$65536))))),$A1372,dati_bdv!N$2:N$65536)","v":0}]
[{"$f":"dati_pdc!A1373","v":0},{"$f":"SUMIF(IF(dati_pdc!$C1373=1,dati_bdv!$C$2:$C$65536,IF(dati_pdc!$C1373=2,dati_bdv!$D$2:$D$65536,IF(dati_pdc!$C1373=3,dati_bdv!$E$2:$E$65536,IF(dati_pdc!$C1373=4,dati_bdv!$F$2:$F$65536,IF(dati_pdc!$C1373=5,dati_bdv!$G$2:$G$65536,dati_bdv!$H$2:$H$65536))))),$A1373,dati_bdv!J$2:J$65536)","v":0},{"$f":"SUMIF(IF(dati_pdc!$C1373=1,dati_bdv!$C$2:$C$65536,IF(dati_pdc!$C1373=2,dati_bdv!$D$2:$D$65536,IF(dati_pdc!$C1373=3,dati_bdv!$E$2:$E$65536,IF(dati_pdc!$C1373=4,dati_bdv!$F$2:$F$65536,IF(dati_pdc!$C1373=5,dati_bdv!$G$2:$G$65536,dati_bdv!$H$2:$H$65536))))),$A1373,dati_bdv!K$2:K$65536)","v":0},{"$f":"SUMIF(IF(dati_pdc!$C1373=1,dati_bdv!$C$2:$C$65536,IF(dati_pdc!$C1373=2,dati_bdv!$D$2:$D$65536,IF(dati_pdc!$C1373=3,dati_bdv!$E$2:$E$65536,IF(dati_pdc!$C1373=4,dati_bdv!$F$2:$F$65536,IF(dati_pdc!$C1373=5,dati_bdv!$G$2:$G$65536,dati_bdv!$H$2:$H$65536))))),$A1373,dati_bdv!L$2:L$65536)","v":0},{"$f":"SUMIF(IF(dati_pdc!$C1373=1,dati_bdv!$C$2:$C$65536,IF(dati_pdc!$C1373=2,dati_bdv!$D$2:$D$65536,IF(dati_pdc!$C1373=3,dati_bdv!$E$2:$E$65536,IF(dati_pdc!$C1373=4,dati_bdv!$F$2:$F$65536,IF(dati_pdc!$C1373=5,dati_bdv!$G$2:$G$65536,dati_bdv!$H$2:$H$65536))))),$A1373,dati_bdv!M$2:M$65536)","v":0},{"$f":"SUMIF(IF(dati_pdc!$C1373=1,dati_bdv!$C$2:$C$65536,IF(dati_pdc!$C1373=2,dati_bdv!$D$2:$D$65536,IF(dati_pdc!$C1373=3,dati_bdv!$E$2:$E$65536,IF(dati_pdc!$C1373=4,dati_bdv!$F$2:$F$65536,IF(dati_pdc!$C1373=5,dati_bdv!$G$2:$G$65536,dati_bdv!$H$2:$H$65536))))),$A1373,dati_bdv!N$2:N$65536)","v":0}]
[{"$f":"dati_pdc!A1374","v":0},{"$f":"SUMIF(IF(dati_pdc!$C1374=1,dati_bdv!$C$2:$C$65536,IF(dati_pdc!$C1374=2,dati_bdv!$D$2:$D$65536,IF(dati_pdc!$C1374=3,dati_bdv!$E$2:$E$65536,IF(dati_pdc!$C1374=4,dati_bdv!$F$2:$F$65536,IF(dati_pdc!$C1374=5,dati_bdv!$G$2:$G$65536,dati_bdv!$H$2:$H$65536))))),$A1374,dati_bdv!J$2:J$65536)","v":0},{"$f":"SUMIF(IF(dati_pdc!$C1374=1,dati_bdv!$C$2:$C$65536,IF(dati_pdc!$C1374=2,dati_bdv!$D$2:$D$65536,IF(dati_pdc!$C1374=3,dati_bdv!$E$2:$E$65536,IF(dati_pdc!$C1374=4,dati_bdv!$F$2:$F$65536,IF(dati_pdc!$C1374=5,dati_bdv!$G$2:$G$65536,dati_bdv!$H$2:$H$65536))))),$A1374,dati_bdv!K$2:K$65536)","v":0},{"$f":"SUMIF(IF(dati_pdc!$C1374=1,dati_bdv!$C$2:$C$65536,IF(dati_pdc!$C1374=2,dati_bdv!$D$2:$D$65536,IF(dati_pdc!$C1374=3,dati_bdv!$E$2:$E$65536,IF(dati_pdc!$C1374=4,dati_bdv!$F$2:$F$65536,IF(dati_pdc!$C1374=5,dati_bdv!$G$2:$G$65536,dati_bdv!$H$2:$H$65536))))),$A1374,dati_bdv!L$2:L$65536)","v":0},{"$f":"SUMIF(IF(dati_pdc!$C1374=1,dati_bdv!$C$2:$C$65536,IF(dati_pdc!$C1374=2,dati_bdv!$D$2:$D$65536,IF(dati_pdc!$C1374=3,dati_bdv!$E$2:$E$65536,IF(dati_pdc!$C1374=4,dati_bdv!$F$2:$F$65536,IF(dati_pdc!$C1374=5,dati_bdv!$G$2:$G$65536,dati_bdv!$H$2:$H$65536))))),$A1374,dati_bdv!M$2:M$65536)","v":0},{"$f":"SUMIF(IF(dati_pdc!$C1374=1,dati_bdv!$C$2:$C$65536,IF(dati_pdc!$C1374=2,dati_bdv!$D$2:$D$65536,IF(dati_pdc!$C1374=3,dati_bdv!$E$2:$E$65536,IF(dati_pdc!$C1374=4,dati_bdv!$F$2:$F$65536,IF(dati_pdc!$C1374=5,dati_bdv!$G$2:$G$65536,dati_bdv!$H$2:$H$65536))))),$A1374,dati_bdv!N$2:N$65536)","v":0}]
[{"$f":"dati_pdc!A1375","v":0},{"$f":"SUMIF(IF(dati_pdc!$C1375=1,dati_bdv!$C$2:$C$65536,IF(dati_pdc!$C1375=2,dati_bdv!$D$2:$D$65536,IF(dati_pdc!$C1375=3,dati_bdv!$E$2:$E$65536,IF(dati_pdc!$C1375=4,dati_bdv!$F$2:$F$65536,IF(dati_pdc!$C1375=5,dati_bdv!$G$2:$G$65536,dati_bdv!$H$2:$H$65536))))),$A1375,dati_bdv!J$2:J$65536)","v":0},{"$f":"SUMIF(IF(dati_pdc!$C1375=1,dati_bdv!$C$2:$C$65536,IF(dati_pdc!$C1375=2,dati_bdv!$D$2:$D$65536,IF(dati_pdc!$C1375=3,dati_bdv!$E$2:$E$65536,IF(dati_pdc!$C1375=4,dati_bdv!$F$2:$F$65536,IF(dati_pdc!$C1375=5,dati_bdv!$G$2:$G$65536,dati_bdv!$H$2:$H$65536))))),$A1375,dati_bdv!K$2:K$65536)","v":0},{"$f":"SUMIF(IF(dati_pdc!$C1375=1,dati_bdv!$C$2:$C$65536,IF(dati_pdc!$C1375=2,dati_bdv!$D$2:$D$65536,IF(dati_pdc!$C1375=3,dati_bdv!$E$2:$E$65536,IF(dati_pdc!$C1375=4,dati_bdv!$F$2:$F$65536,IF(dati_pdc!$C1375=5,dati_bdv!$G$2:$G$65536,dati_bdv!$H$2:$H$65536))))),$A1375,dati_bdv!L$2:L$65536)","v":0},{"$f":"SUMIF(IF(dati_pdc!$C1375=1,dati_bdv!$C$2:$C$65536,IF(dati_pdc!$C1375=2,dati_bdv!$D$2:$D$65536,IF(dati_pdc!$C1375=3,dati_bdv!$E$2:$E$65536,IF(dati_pdc!$C1375=4,dati_bdv!$F$2:$F$65536,IF(dati_pdc!$C1375=5,dati_bdv!$G$2:$G$65536,dati_bdv!$H$2:$H$65536))))),$A1375,dati_bdv!M$2:M$65536)","v":0},{"$f":"SUMIF(IF(dati_pdc!$C1375=1,dati_bdv!$C$2:$C$65536,IF(dati_pdc!$C1375=2,dati_bdv!$D$2:$D$65536,IF(dati_pdc!$C1375=3,dati_bdv!$E$2:$E$65536,IF(dati_pdc!$C1375=4,dati_bdv!$F$2:$F$65536,IF(dati_pdc!$C1375=5,dati_bdv!$G$2:$G$65536,dati_bdv!$H$2:$H$65536))))),$A1375,dati_bdv!N$2:N$65536)","v":0}]
[{"$f":"dati_pdc!A1376","v":0},{"$f":"SUMIF(IF(dati_pdc!$C1376=1,dati_bdv!$C$2:$C$65536,IF(dati_pdc!$C1376=2,dati_bdv!$D$2:$D$65536,IF(dati_pdc!$C1376=3,dati_bdv!$E$2:$E$65536,IF(dati_pdc!$C1376=4,dati_bdv!$F$2:$F$65536,IF(dati_pdc!$C1376=5,dati_bdv!$G$2:$G$65536,dati_bdv!$H$2:$H$65536))))),$A1376,dati_bdv!J$2:J$65536)","v":0},{"$f":"SUMIF(IF(dati_pdc!$C1376=1,dati_bdv!$C$2:$C$65536,IF(dati_pdc!$C1376=2,dati_bdv!$D$2:$D$65536,IF(dati_pdc!$C1376=3,dati_bdv!$E$2:$E$65536,IF(dati_pdc!$C1376=4,dati_bdv!$F$2:$F$65536,IF(dati_pdc!$C1376=5,dati_bdv!$G$2:$G$65536,dati_bdv!$H$2:$H$65536))))),$A1376,dati_bdv!K$2:K$65536)","v":0},{"$f":"SUMIF(IF(dati_pdc!$C1376=1,dati_bdv!$C$2:$C$65536,IF(dati_pdc!$C1376=2,dati_bdv!$D$2:$D$65536,IF(dati_pdc!$C1376=3,dati_bdv!$E$2:$E$65536,IF(dati_pdc!$C1376=4,dati_bdv!$F$2:$F$65536,IF(dati_pdc!$C1376=5,dati_bdv!$G$2:$G$65536,dati_bdv!$H$2:$H$65536))))),$A1376,dati_bdv!L$2:L$65536)","v":0},{"$f":"SUMIF(IF(dati_pdc!$C1376=1,dati_bdv!$C$2:$C$65536,IF(dati_pdc!$C1376=2,dati_bdv!$D$2:$D$65536,IF(dati_pdc!$C1376=3,dati_bdv!$E$2:$E$65536,IF(dati_pdc!$C1376=4,dati_bdv!$F$2:$F$65536,IF(dati_pdc!$C1376=5,dati_bdv!$G$2:$G$65536,dati_bdv!$H$2:$H$65536))))),$A1376,dati_bdv!M$2:M$65536)","v":0},{"$f":"SUMIF(IF(dati_pdc!$C1376=1,dati_bdv!$C$2:$C$65536,IF(dati_pdc!$C1376=2,dati_bdv!$D$2:$D$65536,IF(dati_pdc!$C1376=3,dati_bdv!$E$2:$E$65536,IF(dati_pdc!$C1376=4,dati_bdv!$F$2:$F$65536,IF(dati_pdc!$C1376=5,dati_bdv!$G$2:$G$65536,dati_bdv!$H$2:$H$65536))))),$A1376,dati_bdv!N$2:N$65536)","v":0}]
[{"$f":"dati_pdc!A1377","v":0},{"$f":"SUMIF(IF(dati_pdc!$C1377=1,dati_bdv!$C$2:$C$65536,IF(dati_pdc!$C1377=2,dati_bdv!$D$2:$D$65536,IF(dati_pdc!$C1377=3,dati_bdv!$E$2:$E$65536,IF(dati_pdc!$C1377=4,dati_bdv!$F$2:$F$65536,IF(dati_pdc!$C1377=5,dati_bdv!$G$2:$G$65536,dati_bdv!$H$2:$H$65536))))),$A1377,dati_bdv!J$2:J$65536)","v":0},{"$f":"SUMIF(IF(dati_pdc!$C1377=1,dati_bdv!$C$2:$C$65536,IF(dati_pdc!$C1377=2,dati_bdv!$D$2:$D$65536,IF(dati_pdc!$C1377=3,dati_bdv!$E$2:$E$65536,IF(dati_pdc!$C1377=4,dati_bdv!$F$2:$F$65536,IF(dati_pdc!$C1377=5,dati_bdv!$G$2:$G$65536,dati_bdv!$H$2:$H$65536))))),$A1377,dati_bdv!K$2:K$65536)","v":0},{"$f":"SUMIF(IF(dati_pdc!$C1377=1,dati_bdv!$C$2:$C$65536,IF(dati_pdc!$C1377=2,dati_bdv!$D$2:$D$65536,IF(dati_pdc!$C1377=3,dati_bdv!$E$2:$E$65536,IF(dati_pdc!$C1377=4,dati_bdv!$F$2:$F$65536,IF(dati_pdc!$C1377=5,dati_bdv!$G$2:$G$65536,dati_bdv!$H$2:$H$65536))))),$A1377,dati_bdv!L$2:L$65536)","v":0},{"$f":"SUMIF(IF(dati_pdc!$C1377=1,dati_bdv!$C$2:$C$65536,IF(dati_pdc!$C1377=2,dati_bdv!$D$2:$D$65536,IF(dati_pdc!$C1377=3,dati_bdv!$E$2:$E$65536,IF(dati_pdc!$C1377=4,dati_bdv!$F$2:$F$65536,IF(dati_pdc!$C1377=5,dati_bdv!$G$2:$G$65536,dati_bdv!$H$2:$H$65536))))),$A1377,dati_bdv!M$2:M$65536)","v":0},{"$f":"SUMIF(IF(dati_pdc!$C1377=1,dati_bdv!$C$2:$C$65536,IF(dati_pdc!$C1377=2,dati_bdv!$D$2:$D$65536,IF(dati_pdc!$C1377=3,dati_bdv!$E$2:$E$65536,IF(dati_pdc!$C1377=4,dati_bdv!$F$2:$F$65536,IF(dati_pdc!$C1377=5,dati_bdv!$G$2:$G$65536,dati_bdv!$H$2:$H$65536))))),$A1377,dati_bdv!N$2:N$65536)","v":0}]
[{"$f":"dati_pdc!A1378","v":0},{"$f":"SUMIF(IF(dati_pdc!$C1378=1,dati_bdv!$C$2:$C$65536,IF(dati_pdc!$C1378=2,dati_bdv!$D$2:$D$65536,IF(dati_pdc!$C1378=3,dati_bdv!$E$2:$E$65536,IF(dati_pdc!$C1378=4,dati_bdv!$F$2:$F$65536,IF(dati_pdc!$C1378=5,dati_bdv!$G$2:$G$65536,dati_bdv!$H$2:$H$65536))))),$A1378,dati_bdv!J$2:J$65536)","v":0},{"$f":"SUMIF(IF(dati_pdc!$C1378=1,dati_bdv!$C$2:$C$65536,IF(dati_pdc!$C1378=2,dati_bdv!$D$2:$D$65536,IF(dati_pdc!$C1378=3,dati_bdv!$E$2:$E$65536,IF(dati_pdc!$C1378=4,dati_bdv!$F$2:$F$65536,IF(dati_pdc!$C1378=5,dati_bdv!$G$2:$G$65536,dati_bdv!$H$2:$H$65536))))),$A1378,dati_bdv!K$2:K$65536)","v":0},{"$f":"SUMIF(IF(dati_pdc!$C1378=1,dati_bdv!$C$2:$C$65536,IF(dati_pdc!$C1378=2,dati_bdv!$D$2:$D$65536,IF(dati_pdc!$C1378=3,dati_bdv!$E$2:$E$65536,IF(dati_pdc!$C1378=4,dati_bdv!$F$2:$F$65536,IF(dati_pdc!$C1378=5,dati_bdv!$G$2:$G$65536,dati_bdv!$H$2:$H$65536))))),$A1378,dati_bdv!L$2:L$65536)","v":0},{"$f":"SUMIF(IF(dati_pdc!$C1378=1,dati_bdv!$C$2:$C$65536,IF(dati_pdc!$C1378=2,dati_bdv!$D$2:$D$65536,IF(dati_pdc!$C1378=3,dati_bdv!$E$2:$E$65536,IF(dati_pdc!$C1378=4,dati_bdv!$F$2:$F$65536,IF(dati_pdc!$C1378=5,dati_bdv!$G$2:$G$65536,dati_bdv!$H$2:$H$65536))))),$A1378,dati_bdv!M$2:M$65536)","v":0},{"$f":"SUMIF(IF(dati_pdc!$C1378=1,dati_bdv!$C$2:$C$65536,IF(dati_pdc!$C1378=2,dati_bdv!$D$2:$D$65536,IF(dati_pdc!$C1378=3,dati_bdv!$E$2:$E$65536,IF(dati_pdc!$C1378=4,dati_bdv!$F$2:$F$65536,IF(dati_pdc!$C1378=5,dati_bdv!$G$2:$G$65536,dati_bdv!$H$2:$H$65536))))),$A1378,dati_bdv!N$2:N$65536)","v":0}]
[{"$f":"dati_pdc!A1379","v":0},{"$f":"SUMIF(IF(dati_pdc!$C1379=1,dati_bdv!$C$2:$C$65536,IF(dati_pdc!$C1379=2,dati_bdv!$D$2:$D$65536,IF(dati_pdc!$C1379=3,dati_bdv!$E$2:$E$65536,IF(dati_pdc!$C1379=4,dati_bdv!$F$2:$F$65536,IF(dati_pdc!$C1379=5,dati_bdv!$G$2:$G$65536,dati_bdv!$H$2:$H$65536))))),$A1379,dati_bdv!J$2:J$65536)","v":0},{"$f":"SUMIF(IF(dati_pdc!$C1379=1,dati_bdv!$C$2:$C$65536,IF(dati_pdc!$C1379=2,dati_bdv!$D$2:$D$65536,IF(dati_pdc!$C1379=3,dati_bdv!$E$2:$E$65536,IF(dati_pdc!$C1379=4,dati_bdv!$F$2:$F$65536,IF(dati_pdc!$C1379=5,dati_bdv!$G$2:$G$65536,dati_bdv!$H$2:$H$65536))))),$A1379,dati_bdv!K$2:K$65536)","v":0},{"$f":"SUMIF(IF(dati_pdc!$C1379=1,dati_bdv!$C$2:$C$65536,IF(dati_pdc!$C1379=2,dati_bdv!$D$2:$D$65536,IF(dati_pdc!$C1379=3,dati_bdv!$E$2:$E$65536,IF(dati_pdc!$C1379=4,dati_bdv!$F$2:$F$65536,IF(dati_pdc!$C1379=5,dati_bdv!$G$2:$G$65536,dati_bdv!$H$2:$H$65536))))),$A1379,dati_bdv!L$2:L$65536)","v":0},{"$f":"SUMIF(IF(dati_pdc!$C1379=1,dati_bdv!$C$2:$C$65536,IF(dati_pdc!$C1379=2,dati_bdv!$D$2:$D$65536,IF(dati_pdc!$C1379=3,dati_bdv!$E$2:$E$65536,IF(dati_pdc!$C1379=4,dati_bdv!$F$2:$F$65536,IF(dati_pdc!$C1379=5,dati_bdv!$G$2:$G$65536,dati_bdv!$H$2:$H$65536))))),$A1379,dati_bdv!M$2:M$65536)","v":0},{"$f":"SUMIF(IF(dati_pdc!$C1379=1,dati_bdv!$C$2:$C$65536,IF(dati_pdc!$C1379=2,dati_bdv!$D$2:$D$65536,IF(dati_pdc!$C1379=3,dati_bdv!$E$2:$E$65536,IF(dati_pdc!$C1379=4,dati_bdv!$F$2:$F$65536,IF(dati_pdc!$C1379=5,dati_bdv!$G$2:$G$65536,dati_bdv!$H$2:$H$65536))))),$A1379,dati_bdv!N$2:N$65536)","v":0}]
[{"$f":"dati_pdc!A1380","v":0},{"$f":"SUMIF(IF(dati_pdc!$C1380=1,dati_bdv!$C$2:$C$65536,IF(dati_pdc!$C1380=2,dati_bdv!$D$2:$D$65536,IF(dati_pdc!$C1380=3,dati_bdv!$E$2:$E$65536,IF(dati_pdc!$C1380=4,dati_bdv!$F$2:$F$65536,IF(dati_pdc!$C1380=5,dati_bdv!$G$2:$G$65536,dati_bdv!$H$2:$H$65536))))),$A1380,dati_bdv!J$2:J$65536)","v":0},{"$f":"SUMIF(IF(dati_pdc!$C1380=1,dati_bdv!$C$2:$C$65536,IF(dati_pdc!$C1380=2,dati_bdv!$D$2:$D$65536,IF(dati_pdc!$C1380=3,dati_bdv!$E$2:$E$65536,IF(dati_pdc!$C1380=4,dati_bdv!$F$2:$F$65536,IF(dati_pdc!$C1380=5,dati_bdv!$G$2:$G$65536,dati_bdv!$H$2:$H$65536))))),$A1380,dati_bdv!K$2:K$65536)","v":0},{"$f":"SUMIF(IF(dati_pdc!$C1380=1,dati_bdv!$C$2:$C$65536,IF(dati_pdc!$C1380=2,dati_bdv!$D$2:$D$65536,IF(dati_pdc!$C1380=3,dati_bdv!$E$2:$E$65536,IF(dati_pdc!$C1380=4,dati_bdv!$F$2:$F$65536,IF(dati_pdc!$C1380=5,dati_bdv!$G$2:$G$65536,dati_bdv!$H$2:$H$65536))))),$A1380,dati_bdv!L$2:L$65536)","v":0},{"$f":"SUMIF(IF(dati_pdc!$C1380=1,dati_bdv!$C$2:$C$65536,IF(dati_pdc!$C1380=2,dati_bdv!$D$2:$D$65536,IF(dati_pdc!$C1380=3,dati_bdv!$E$2:$E$65536,IF(dati_pdc!$C1380=4,dati_bdv!$F$2:$F$65536,IF(dati_pdc!$C1380=5,dati_bdv!$G$2:$G$65536,dati_bdv!$H$2:$H$65536))))),$A1380,dati_bdv!M$2:M$65536)","v":0},{"$f":"SUMIF(IF(dati_pdc!$C1380=1,dati_bdv!$C$2:$C$65536,IF(dati_pdc!$C1380=2,dati_bdv!$D$2:$D$65536,IF(dati_pdc!$C1380=3,dati_bdv!$E$2:$E$65536,IF(dati_pdc!$C1380=4,dati_bdv!$F$2:$F$65536,IF(dati_pdc!$C1380=5,dati_bdv!$G$2:$G$65536,dati_bdv!$H$2:$H$65536))))),$A1380,dati_bdv!N$2:N$65536)","v":0}]
[{"$f":"dati_pdc!A1381","v":0},{"$f":"SUMIF(IF(dati_pdc!$C1381=1,dati_bdv!$C$2:$C$65536,IF(dati_pdc!$C1381=2,dati_bdv!$D$2:$D$65536,IF(dati_pdc!$C1381=3,dati_bdv!$E$2:$E$65536,IF(dati_pdc!$C1381=4,dati_bdv!$F$2:$F$65536,IF(dati_pdc!$C1381=5,dati_bdv!$G$2:$G$65536,dati_bdv!$H$2:$H$65536))))),$A1381,dati_bdv!J$2:J$65536)","v":0},{"$f":"SUMIF(IF(dati_pdc!$C1381=1,dati_bdv!$C$2:$C$65536,IF(dati_pdc!$C1381=2,dati_bdv!$D$2:$D$65536,IF(dati_pdc!$C1381=3,dati_bdv!$E$2:$E$65536,IF(dati_pdc!$C1381=4,dati_bdv!$F$2:$F$65536,IF(dati_pdc!$C1381=5,dati_bdv!$G$2:$G$65536,dati_bdv!$H$2:$H$65536))))),$A1381,dati_bdv!K$2:K$65536)","v":0},{"$f":"SUMIF(IF(dati_pdc!$C1381=1,dati_bdv!$C$2:$C$65536,IF(dati_pdc!$C1381=2,dati_bdv!$D$2:$D$65536,IF(dati_pdc!$C1381=3,dati_bdv!$E$2:$E$65536,IF(dati_pdc!$C1381=4,dati_bdv!$F$2:$F$65536,IF(dati_pdc!$C1381=5,dati_bdv!$G$2:$G$65536,dati_bdv!$H$2:$H$65536))))),$A1381,dati_bdv!L$2:L$65536)","v":0},{"$f":"SUMIF(IF(dati_pdc!$C1381=1,dati_bdv!$C$2:$C$65536,IF(dati_pdc!$C1381=2,dati_bdv!$D$2:$D$65536,IF(dati_pdc!$C1381=3,dati_bdv!$E$2:$E$65536,IF(dati_pdc!$C1381=4,dati_bdv!$F$2:$F$65536,IF(dati_pdc!$C1381=5,dati_bdv!$G$2:$G$65536,dati_bdv!$H$2:$H$65536))))),$A1381,dati_bdv!M$2:M$65536)","v":0},{"$f":"SUMIF(IF(dati_pdc!$C1381=1,dati_bdv!$C$2:$C$65536,IF(dati_pdc!$C1381=2,dati_bdv!$D$2:$D$65536,IF(dati_pdc!$C1381=3,dati_bdv!$E$2:$E$65536,IF(dati_pdc!$C1381=4,dati_bdv!$F$2:$F$65536,IF(dati_pdc!$C1381=5,dati_bdv!$G$2:$G$65536,dati_bdv!$H$2:$H$65536))))),$A1381,dati_bdv!N$2:N$65536)","v":0}]
[{"$f":"dati_pdc!A1382","v":0},{"$f":"SUMIF(IF(dati_pdc!$C1382=1,dati_bdv!$C$2:$C$65536,IF(dati_pdc!$C1382=2,dati_bdv!$D$2:$D$65536,IF(dati_pdc!$C1382=3,dati_bdv!$E$2:$E$65536,IF(dati_pdc!$C1382=4,dati_bdv!$F$2:$F$65536,IF(dati_pdc!$C1382=5,dati_bdv!$G$2:$G$65536,dati_bdv!$H$2:$H$65536))))),$A1382,dati_bdv!J$2:J$65536)","v":0},{"$f":"SUMIF(IF(dati_pdc!$C1382=1,dati_bdv!$C$2:$C$65536,IF(dati_pdc!$C1382=2,dati_bdv!$D$2:$D$65536,IF(dati_pdc!$C1382=3,dati_bdv!$E$2:$E$65536,IF(dati_pdc!$C1382=4,dati_bdv!$F$2:$F$65536,IF(dati_pdc!$C1382=5,dati_bdv!$G$2:$G$65536,dati_bdv!$H$2:$H$65536))))),$A1382,dati_bdv!K$2:K$65536)","v":0},{"$f":"SUMIF(IF(dati_pdc!$C1382=1,dati_bdv!$C$2:$C$65536,IF(dati_pdc!$C1382=2,dati_bdv!$D$2:$D$65536,IF(dati_pdc!$C1382=3,dati_bdv!$E$2:$E$65536,IF(dati_pdc!$C1382=4,dati_bdv!$F$2:$F$65536,IF(dati_pdc!$C1382=5,dati_bdv!$G$2:$G$65536,dati_bdv!$H$2:$H$65536))))),$A1382,dati_bdv!L$2:L$65536)","v":0},{"$f":"SUMIF(IF(dati_pdc!$C1382=1,dati_bdv!$C$2:$C$65536,IF(dati_pdc!$C1382=2,dati_bdv!$D$2:$D$65536,IF(dati_pdc!$C1382=3,dati_bdv!$E$2:$E$65536,IF(dati_pdc!$C1382=4,dati_bdv!$F$2:$F$65536,IF(dati_pdc!$C1382=5,dati_bdv!$G$2:$G$65536,dati_bdv!$H$2:$H$65536))))),$A1382,dati_bdv!M$2:M$65536)","v":0},{"$f":"SUMIF(IF(dati_pdc!$C1382=1,dati_bdv!$C$2:$C$65536,IF(dati_pdc!$C1382=2,dati_bdv!$D$2:$D$65536,IF(dati_pdc!$C1382=3,dati_bdv!$E$2:$E$65536,IF(dati_pdc!$C1382=4,dati_bdv!$F$2:$F$65536,IF(dati_pdc!$C1382=5,dati_bdv!$G$2:$G$65536,dati_bdv!$H$2:$H$65536))))),$A1382,dati_bdv!N$2:N$65536)","v":0}]
[{"$f":"dati_pdc!A1383","v":0},{"$f":"SUMIF(IF(dati_pdc!$C1383=1,dati_bdv!$C$2:$C$65536,IF(dati_pdc!$C1383=2,dati_bdv!$D$2:$D$65536,IF(dati_pdc!$C1383=3,dati_bdv!$E$2:$E$65536,IF(dati_pdc!$C1383=4,dati_bdv!$F$2:$F$65536,IF(dati_pdc!$C1383=5,dati_bdv!$G$2:$G$65536,dati_bdv!$H$2:$H$65536))))),$A1383,dati_bdv!J$2:J$65536)","v":0},{"$f":"SUMIF(IF(dati_pdc!$C1383=1,dati_bdv!$C$2:$C$65536,IF(dati_pdc!$C1383=2,dati_bdv!$D$2:$D$65536,IF(dati_pdc!$C1383=3,dati_bdv!$E$2:$E$65536,IF(dati_pdc!$C1383=4,dati_bdv!$F$2:$F$65536,IF(dati_pdc!$C1383=5,dati_bdv!$G$2:$G$65536,dati_bdv!$H$2:$H$65536))))),$A1383,dati_bdv!K$2:K$65536)","v":0},{"$f":"SUMIF(IF(dati_pdc!$C1383=1,dati_bdv!$C$2:$C$65536,IF(dati_pdc!$C1383=2,dati_bdv!$D$2:$D$65536,IF(dati_pdc!$C1383=3,dati_bdv!$E$2:$E$65536,IF(dati_pdc!$C1383=4,dati_bdv!$F$2:$F$65536,IF(dati_pdc!$C1383=5,dati_bdv!$G$2:$G$65536,dati_bdv!$H$2:$H$65536))))),$A1383,dati_bdv!L$2:L$65536)","v":0},{"$f":"SUMIF(IF(dati_pdc!$C1383=1,dati_bdv!$C$2:$C$65536,IF(dati_pdc!$C1383=2,dati_bdv!$D$2:$D$65536,IF(dati_pdc!$C1383=3,dati_bdv!$E$2:$E$65536,IF(dati_pdc!$C1383=4,dati_bdv!$F$2:$F$65536,IF(dati_pdc!$C1383=5,dati_bdv!$G$2:$G$65536,dati_bdv!$H$2:$H$65536))))),$A1383,dati_bdv!M$2:M$65536)","v":0},{"$f":"SUMIF(IF(dati_pdc!$C1383=1,dati_bdv!$C$2:$C$65536,IF(dati_pdc!$C1383=2,dati_bdv!$D$2:$D$65536,IF(dati_pdc!$C1383=3,dati_bdv!$E$2:$E$65536,IF(dati_pdc!$C1383=4,dati_bdv!$F$2:$F$65536,IF(dati_pdc!$C1383=5,dati_bdv!$G$2:$G$65536,dati_bdv!$H$2:$H$65536))))),$A1383,dati_bdv!N$2:N$65536)","v":0}]
[{"$f":"dati_pdc!A1384","v":0},{"$f":"SUMIF(IF(dati_pdc!$C1384=1,dati_bdv!$C$2:$C$65536,IF(dati_pdc!$C1384=2,dati_bdv!$D$2:$D$65536,IF(dati_pdc!$C1384=3,dati_bdv!$E$2:$E$65536,IF(dati_pdc!$C1384=4,dati_bdv!$F$2:$F$65536,IF(dati_pdc!$C1384=5,dati_bdv!$G$2:$G$65536,dati_bdv!$H$2:$H$65536))))),$A1384,dati_bdv!J$2:J$65536)","v":0},{"$f":"SUMIF(IF(dati_pdc!$C1384=1,dati_bdv!$C$2:$C$65536,IF(dati_pdc!$C1384=2,dati_bdv!$D$2:$D$65536,IF(dati_pdc!$C1384=3,dati_bdv!$E$2:$E$65536,IF(dati_pdc!$C1384=4,dati_bdv!$F$2:$F$65536,IF(dati_pdc!$C1384=5,dati_bdv!$G$2:$G$65536,dati_bdv!$H$2:$H$65536))))),$A1384,dati_bdv!K$2:K$65536)","v":0},{"$f":"SUMIF(IF(dati_pdc!$C1384=1,dati_bdv!$C$2:$C$65536,IF(dati_pdc!$C1384=2,dati_bdv!$D$2:$D$65536,IF(dati_pdc!$C1384=3,dati_bdv!$E$2:$E$65536,IF(dati_pdc!$C1384=4,dati_bdv!$F$2:$F$65536,IF(dati_pdc!$C1384=5,dati_bdv!$G$2:$G$65536,dati_bdv!$H$2:$H$65536))))),$A1384,dati_bdv!L$2:L$65536)","v":0},{"$f":"SUMIF(IF(dati_pdc!$C1384=1,dati_bdv!$C$2:$C$65536,IF(dati_pdc!$C1384=2,dati_bdv!$D$2:$D$65536,IF(dati_pdc!$C1384=3,dati_bdv!$E$2:$E$65536,IF(dati_pdc!$C1384=4,dati_bdv!$F$2:$F$65536,IF(dati_pdc!$C1384=5,dati_bdv!$G$2:$G$65536,dati_bdv!$H$2:$H$65536))))),$A1384,dati_bdv!M$2:M$65536)","v":0},{"$f":"SUMIF(IF(dati_pdc!$C1384=1,dati_bdv!$C$2:$C$65536,IF(dati_pdc!$C1384=2,dati_bdv!$D$2:$D$65536,IF(dati_pdc!$C1384=3,dati_bdv!$E$2:$E$65536,IF(dati_pdc!$C1384=4,dati_bdv!$F$2:$F$65536,IF(dati_pdc!$C1384=5,dati_bdv!$G$2:$G$65536,dati_bdv!$H$2:$H$65536))))),$A1384,dati_bdv!N$2:N$65536)","v":0}]
[{"$f":"dati_pdc!A1385","v":0},{"$f":"SUMIF(IF(dati_pdc!$C1385=1,dati_bdv!$C$2:$C$65536,IF(dati_pdc!$C1385=2,dati_bdv!$D$2:$D$65536,IF(dati_pdc!$C1385=3,dati_bdv!$E$2:$E$65536,IF(dati_pdc!$C1385=4,dati_bdv!$F$2:$F$65536,IF(dati_pdc!$C1385=5,dati_bdv!$G$2:$G$65536,dati_bdv!$H$2:$H$65536))))),$A1385,dati_bdv!J$2:J$65536)","v":0},{"$f":"SUMIF(IF(dati_pdc!$C1385=1,dati_bdv!$C$2:$C$65536,IF(dati_pdc!$C1385=2,dati_bdv!$D$2:$D$65536,IF(dati_pdc!$C1385=3,dati_bdv!$E$2:$E$65536,IF(dati_pdc!$C1385=4,dati_bdv!$F$2:$F$65536,IF(dati_pdc!$C1385=5,dati_bdv!$G$2:$G$65536,dati_bdv!$H$2:$H$65536))))),$A1385,dati_bdv!K$2:K$65536)","v":0},{"$f":"SUMIF(IF(dati_pdc!$C1385=1,dati_bdv!$C$2:$C$65536,IF(dati_pdc!$C1385=2,dati_bdv!$D$2:$D$65536,IF(dati_pdc!$C1385=3,dati_bdv!$E$2:$E$65536,IF(dati_pdc!$C1385=4,dati_bdv!$F$2:$F$65536,IF(dati_pdc!$C1385=5,dati_bdv!$G$2:$G$65536,dati_bdv!$H$2:$H$65536))))),$A1385,dati_bdv!L$2:L$65536)","v":0},{"$f":"SUMIF(IF(dati_pdc!$C1385=1,dati_bdv!$C$2:$C$65536,IF(dati_pdc!$C1385=2,dati_bdv!$D$2:$D$65536,IF(dati_pdc!$C1385=3,dati_bdv!$E$2:$E$65536,IF(dati_pdc!$C1385=4,dati_bdv!$F$2:$F$65536,IF(dati_pdc!$C1385=5,dati_bdv!$G$2:$G$65536,dati_bdv!$H$2:$H$65536))))),$A1385,dati_bdv!M$2:M$65536)","v":0},{"$f":"SUMIF(IF(dati_pdc!$C1385=1,dati_bdv!$C$2:$C$65536,IF(dati_pdc!$C1385=2,dati_bdv!$D$2:$D$65536,IF(dati_pdc!$C1385=3,dati_bdv!$E$2:$E$65536,IF(dati_pdc!$C1385=4,dati_bdv!$F$2:$F$65536,IF(dati_pdc!$C1385=5,dati_bdv!$G$2:$G$65536,dati_bdv!$H$2:$H$65536))))),$A1385,dati_bdv!N$2:N$65536)","v":0}]
[{"$f":"dati_pdc!A1386","v":0},{"$f":"SUMIF(IF(dati_pdc!$C1386=1,dati_bdv!$C$2:$C$65536,IF(dati_pdc!$C1386=2,dati_bdv!$D$2:$D$65536,IF(dati_pdc!$C1386=3,dati_bdv!$E$2:$E$65536,IF(dati_pdc!$C1386=4,dati_bdv!$F$2:$F$65536,IF(dati_pdc!$C1386=5,dati_bdv!$G$2:$G$65536,dati_bdv!$H$2:$H$65536))))),$A1386,dati_bdv!J$2:J$65536)","v":0},{"$f":"SUMIF(IF(dati_pdc!$C1386=1,dati_bdv!$C$2:$C$65536,IF(dati_pdc!$C1386=2,dati_bdv!$D$2:$D$65536,IF(dati_pdc!$C1386=3,dati_bdv!$E$2:$E$65536,IF(dati_pdc!$C1386=4,dati_bdv!$F$2:$F$65536,IF(dati_pdc!$C1386=5,dati_bdv!$G$2:$G$65536,dati_bdv!$H$2:$H$65536))))),$A1386,dati_bdv!K$2:K$65536)","v":0},{"$f":"SUMIF(IF(dati_pdc!$C1386=1,dati_bdv!$C$2:$C$65536,IF(dati_pdc!$C1386=2,dati_bdv!$D$2:$D$65536,IF(dati_pdc!$C1386=3,dati_bdv!$E$2:$E$65536,IF(dati_pdc!$C1386=4,dati_bdv!$F$2:$F$65536,IF(dati_pdc!$C1386=5,dati_bdv!$G$2:$G$65536,dati_bdv!$H$2:$H$65536))))),$A1386,dati_bdv!L$2:L$65536)","v":0},{"$f":"SUMIF(IF(dati_pdc!$C1386=1,dati_bdv!$C$2:$C$65536,IF(dati_pdc!$C1386=2,dati_bdv!$D$2:$D$65536,IF(dati_pdc!$C1386=3,dati_bdv!$E$2:$E$65536,IF(dati_pdc!$C1386=4,dati_bdv!$F$2:$F$65536,IF(dati_pdc!$C1386=5,dati_bdv!$G$2:$G$65536,dati_bdv!$H$2:$H$65536))))),$A1386,dati_bdv!M$2:M$65536)","v":0},{"$f":"SUMIF(IF(dati_pdc!$C1386=1,dati_bdv!$C$2:$C$65536,IF(dati_pdc!$C1386=2,dati_bdv!$D$2:$D$65536,IF(dati_pdc!$C1386=3,dati_bdv!$E$2:$E$65536,IF(dati_pdc!$C1386=4,dati_bdv!$F$2:$F$65536,IF(dati_pdc!$C1386=5,dati_bdv!$G$2:$G$65536,dati_bdv!$H$2:$H$65536))))),$A1386,dati_bdv!N$2:N$65536)","v":0}]
[{"$f":"dati_pdc!A1387","v":0},{"$f":"SUMIF(IF(dati_pdc!$C1387=1,dati_bdv!$C$2:$C$65536,IF(dati_pdc!$C1387=2,dati_bdv!$D$2:$D$65536,IF(dati_pdc!$C1387=3,dati_bdv!$E$2:$E$65536,IF(dati_pdc!$C1387=4,dati_bdv!$F$2:$F$65536,IF(dati_pdc!$C1387=5,dati_bdv!$G$2:$G$65536,dati_bdv!$H$2:$H$65536))))),$A1387,dati_bdv!J$2:J$65536)","v":0},{"$f":"SUMIF(IF(dati_pdc!$C1387=1,dati_bdv!$C$2:$C$65536,IF(dati_pdc!$C1387=2,dati_bdv!$D$2:$D$65536,IF(dati_pdc!$C1387=3,dati_bdv!$E$2:$E$65536,IF(dati_pdc!$C1387=4,dati_bdv!$F$2:$F$65536,IF(dati_pdc!$C1387=5,dati_bdv!$G$2:$G$65536,dati_bdv!$H$2:$H$65536))))),$A1387,dati_bdv!K$2:K$65536)","v":0},{"$f":"SUMIF(IF(dati_pdc!$C1387=1,dati_bdv!$C$2:$C$65536,IF(dati_pdc!$C1387=2,dati_bdv!$D$2:$D$65536,IF(dati_pdc!$C1387=3,dati_bdv!$E$2:$E$65536,IF(dati_pdc!$C1387=4,dati_bdv!$F$2:$F$65536,IF(dati_pdc!$C1387=5,dati_bdv!$G$2:$G$65536,dati_bdv!$H$2:$H$65536))))),$A1387,dati_bdv!L$2:L$65536)","v":0},{"$f":"SUMIF(IF(dati_pdc!$C1387=1,dati_bdv!$C$2:$C$65536,IF(dati_pdc!$C1387=2,dati_bdv!$D$2:$D$65536,IF(dati_pdc!$C1387=3,dati_bdv!$E$2:$E$65536,IF(dati_pdc!$C1387=4,dati_bdv!$F$2:$F$65536,IF(dati_pdc!$C1387=5,dati_bdv!$G$2:$G$65536,dati_bdv!$H$2:$H$65536))))),$A1387,dati_bdv!M$2:M$65536)","v":0},{"$f":"SUMIF(IF(dati_pdc!$C1387=1,dati_bdv!$C$2:$C$65536,IF(dati_pdc!$C1387=2,dati_bdv!$D$2:$D$65536,IF(dati_pdc!$C1387=3,dati_bdv!$E$2:$E$65536,IF(dati_pdc!$C1387=4,dati_bdv!$F$2:$F$65536,IF(dati_pdc!$C1387=5,dati_bdv!$G$2:$G$65536,dati_bdv!$H$2:$H$65536))))),$A1387,dati_bdv!N$2:N$65536)","v":0}]
[{"$f":"dati_pdc!A1388","v":0},{"$f":"SUMIF(IF(dati_pdc!$C1388=1,dati_bdv!$C$2:$C$65536,IF(dati_pdc!$C1388=2,dati_bdv!$D$2:$D$65536,IF(dati_pdc!$C1388=3,dati_bdv!$E$2:$E$65536,IF(dati_pdc!$C1388=4,dati_bdv!$F$2:$F$65536,IF(dati_pdc!$C1388=5,dati_bdv!$G$2:$G$65536,dati_bdv!$H$2:$H$65536))))),$A1388,dati_bdv!J$2:J$65536)","v":0},{"$f":"SUMIF(IF(dati_pdc!$C1388=1,dati_bdv!$C$2:$C$65536,IF(dati_pdc!$C1388=2,dati_bdv!$D$2:$D$65536,IF(dati_pdc!$C1388=3,dati_bdv!$E$2:$E$65536,IF(dati_pdc!$C1388=4,dati_bdv!$F$2:$F$65536,IF(dati_pdc!$C1388=5,dati_bdv!$G$2:$G$65536,dati_bdv!$H$2:$H$65536))))),$A1388,dati_bdv!K$2:K$65536)","v":0},{"$f":"SUMIF(IF(dati_pdc!$C1388=1,dati_bdv!$C$2:$C$65536,IF(dati_pdc!$C1388=2,dati_bdv!$D$2:$D$65536,IF(dati_pdc!$C1388=3,dati_bdv!$E$2:$E$65536,IF(dati_pdc!$C1388=4,dati_bdv!$F$2:$F$65536,IF(dati_pdc!$C1388=5,dati_bdv!$G$2:$G$65536,dati_bdv!$H$2:$H$65536))))),$A1388,dati_bdv!L$2:L$65536)","v":0},{"$f":"SUMIF(IF(dati_pdc!$C1388=1,dati_bdv!$C$2:$C$65536,IF(dati_pdc!$C1388=2,dati_bdv!$D$2:$D$65536,IF(dati_pdc!$C1388=3,dati_bdv!$E$2:$E$65536,IF(dati_pdc!$C1388=4,dati_bdv!$F$2:$F$65536,IF(dati_pdc!$C1388=5,dati_bdv!$G$2:$G$65536,dati_bdv!$H$2:$H$65536))))),$A1388,dati_bdv!M$2:M$65536)","v":0},{"$f":"SUMIF(IF(dati_pdc!$C1388=1,dati_bdv!$C$2:$C$65536,IF(dati_pdc!$C1388=2,dati_bdv!$D$2:$D$65536,IF(dati_pdc!$C1388=3,dati_bdv!$E$2:$E$65536,IF(dati_pdc!$C1388=4,dati_bdv!$F$2:$F$65536,IF(dati_pdc!$C1388=5,dati_bdv!$G$2:$G$65536,dati_bdv!$H$2:$H$65536))))),$A1388,dati_bdv!N$2:N$65536)","v":0}]
[{"$f":"dati_pdc!A1389","v":0},{"$f":"SUMIF(IF(dati_pdc!$C1389=1,dati_bdv!$C$2:$C$65536,IF(dati_pdc!$C1389=2,dati_bdv!$D$2:$D$65536,IF(dati_pdc!$C1389=3,dati_bdv!$E$2:$E$65536,IF(dati_pdc!$C1389=4,dati_bdv!$F$2:$F$65536,IF(dati_pdc!$C1389=5,dati_bdv!$G$2:$G$65536,dati_bdv!$H$2:$H$65536))))),$A1389,dati_bdv!J$2:J$65536)","v":0},{"$f":"SUMIF(IF(dati_pdc!$C1389=1,dati_bdv!$C$2:$C$65536,IF(dati_pdc!$C1389=2,dati_bdv!$D$2:$D$65536,IF(dati_pdc!$C1389=3,dati_bdv!$E$2:$E$65536,IF(dati_pdc!$C1389=4,dati_bdv!$F$2:$F$65536,IF(dati_pdc!$C1389=5,dati_bdv!$G$2:$G$65536,dati_bdv!$H$2:$H$65536))))),$A1389,dati_bdv!K$2:K$65536)","v":0},{"$f":"SUMIF(IF(dati_pdc!$C1389=1,dati_bdv!$C$2:$C$65536,IF(dati_pdc!$C1389=2,dati_bdv!$D$2:$D$65536,IF(dati_pdc!$C1389=3,dati_bdv!$E$2:$E$65536,IF(dati_pdc!$C1389=4,dati_bdv!$F$2:$F$65536,IF(dati_pdc!$C1389=5,dati_bdv!$G$2:$G$65536,dati_bdv!$H$2:$H$65536))))),$A1389,dati_bdv!L$2:L$65536)","v":0},{"$f":"SUMIF(IF(dati_pdc!$C1389=1,dati_bdv!$C$2:$C$65536,IF(dati_pdc!$C1389=2,dati_bdv!$D$2:$D$65536,IF(dati_pdc!$C1389=3,dati_bdv!$E$2:$E$65536,IF(dati_pdc!$C1389=4,dati_bdv!$F$2:$F$65536,IF(dati_pdc!$C1389=5,dati_bdv!$G$2:$G$65536,dati_bdv!$H$2:$H$65536))))),$A1389,dati_bdv!M$2:M$65536)","v":0},{"$f":"SUMIF(IF(dati_pdc!$C1389=1,dati_bdv!$C$2:$C$65536,IF(dati_pdc!$C1389=2,dati_bdv!$D$2:$D$65536,IF(dati_pdc!$C1389=3,dati_bdv!$E$2:$E$65536,IF(dati_pdc!$C1389=4,dati_bdv!$F$2:$F$65536,IF(dati_pdc!$C1389=5,dati_bdv!$G$2:$G$65536,dati_bdv!$H$2:$H$65536))))),$A1389,dati_bdv!N$2:N$65536)","v":0}]
[{"$f":"dati_pdc!A1390","v":0},{"$f":"SUMIF(IF(dati_pdc!$C1390=1,dati_bdv!$C$2:$C$65536,IF(dati_pdc!$C1390=2,dati_bdv!$D$2:$D$65536,IF(dati_pdc!$C1390=3,dati_bdv!$E$2:$E$65536,IF(dati_pdc!$C1390=4,dati_bdv!$F$2:$F$65536,IF(dati_pdc!$C1390=5,dati_bdv!$G$2:$G$65536,dati_bdv!$H$2:$H$65536))))),$A1390,dati_bdv!J$2:J$65536)","v":0},{"$f":"SUMIF(IF(dati_pdc!$C1390=1,dati_bdv!$C$2:$C$65536,IF(dati_pdc!$C1390=2,dati_bdv!$D$2:$D$65536,IF(dati_pdc!$C1390=3,dati_bdv!$E$2:$E$65536,IF(dati_pdc!$C1390=4,dati_bdv!$F$2:$F$65536,IF(dati_pdc!$C1390=5,dati_bdv!$G$2:$G$65536,dati_bdv!$H$2:$H$65536))))),$A1390,dati_bdv!K$2:K$65536)","v":0},{"$f":"SUMIF(IF(dati_pdc!$C1390=1,dati_bdv!$C$2:$C$65536,IF(dati_pdc!$C1390=2,dati_bdv!$D$2:$D$65536,IF(dati_pdc!$C1390=3,dati_bdv!$E$2:$E$65536,IF(dati_pdc!$C1390=4,dati_bdv!$F$2:$F$65536,IF(dati_pdc!$C1390=5,dati_bdv!$G$2:$G$65536,dati_bdv!$H$2:$H$65536))))),$A1390,dati_bdv!L$2:L$65536)","v":0},{"$f":"SUMIF(IF(dati_pdc!$C1390=1,dati_bdv!$C$2:$C$65536,IF(dati_pdc!$C1390=2,dati_bdv!$D$2:$D$65536,IF(dati_pdc!$C1390=3,dati_bdv!$E$2:$E$65536,IF(dati_pdc!$C1390=4,dati_bdv!$F$2:$F$65536,IF(dati_pdc!$C1390=5,dati_bdv!$G$2:$G$65536,dati_bdv!$H$2:$H$65536))))),$A1390,dati_bdv!M$2:M$65536)","v":0},{"$f":"SUMIF(IF(dati_pdc!$C1390=1,dati_bdv!$C$2:$C$65536,IF(dati_pdc!$C1390=2,dati_bdv!$D$2:$D$65536,IF(dati_pdc!$C1390=3,dati_bdv!$E$2:$E$65536,IF(dati_pdc!$C1390=4,dati_bdv!$F$2:$F$65536,IF(dati_pdc!$C1390=5,dati_bdv!$G$2:$G$65536,dati_bdv!$H$2:$H$65536))))),$A1390,dati_bdv!N$2:N$65536)","v":0}]
[{"$f":"dati_pdc!A1391","v":0},{"$f":"SUMIF(IF(dati_pdc!$C1391=1,dati_bdv!$C$2:$C$65536,IF(dati_pdc!$C1391=2,dati_bdv!$D$2:$D$65536,IF(dati_pdc!$C1391=3,dati_bdv!$E$2:$E$65536,IF(dati_pdc!$C1391=4,dati_bdv!$F$2:$F$65536,IF(dati_pdc!$C1391=5,dati_bdv!$G$2:$G$65536,dati_bdv!$H$2:$H$65536))))),$A1391,dati_bdv!J$2:J$65536)","v":0},{"$f":"SUMIF(IF(dati_pdc!$C1391=1,dati_bdv!$C$2:$C$65536,IF(dati_pdc!$C1391=2,dati_bdv!$D$2:$D$65536,IF(dati_pdc!$C1391=3,dati_bdv!$E$2:$E$65536,IF(dati_pdc!$C1391=4,dati_bdv!$F$2:$F$65536,IF(dati_pdc!$C1391=5,dati_bdv!$G$2:$G$65536,dati_bdv!$H$2:$H$65536))))),$A1391,dati_bdv!K$2:K$65536)","v":0},{"$f":"SUMIF(IF(dati_pdc!$C1391=1,dati_bdv!$C$2:$C$65536,IF(dati_pdc!$C1391=2,dati_bdv!$D$2:$D$65536,IF(dati_pdc!$C1391=3,dati_bdv!$E$2:$E$65536,IF(dati_pdc!$C1391=4,dati_bdv!$F$2:$F$65536,IF(dati_pdc!$C1391=5,dati_bdv!$G$2:$G$65536,dati_bdv!$H$2:$H$65536))))),$A1391,dati_bdv!L$2:L$65536)","v":0},{"$f":"SUMIF(IF(dati_pdc!$C1391=1,dati_bdv!$C$2:$C$65536,IF(dati_pdc!$C1391=2,dati_bdv!$D$2:$D$65536,IF(dati_pdc!$C1391=3,dati_bdv!$E$2:$E$65536,IF(dati_pdc!$C1391=4,dati_bdv!$F$2:$F$65536,IF(dati_pdc!$C1391=5,dati_bdv!$G$2:$G$65536,dati_bdv!$H$2:$H$65536))))),$A1391,dati_bdv!M$2:M$65536)","v":0},{"$f":"SUMIF(IF(dati_pdc!$C1391=1,dati_bdv!$C$2:$C$65536,IF(dati_pdc!$C1391=2,dati_bdv!$D$2:$D$65536,IF(dati_pdc!$C1391=3,dati_bdv!$E$2:$E$65536,IF(dati_pdc!$C1391=4,dati_bdv!$F$2:$F$65536,IF(dati_pdc!$C1391=5,dati_bdv!$G$2:$G$65536,dati_bdv!$H$2:$H$65536))))),$A1391,dati_bdv!N$2:N$65536)","v":0}]
[{"$f":"dati_pdc!A1392","v":0},{"$f":"SUMIF(IF(dati_pdc!$C1392=1,dati_bdv!$C$2:$C$65536,IF(dati_pdc!$C1392=2,dati_bdv!$D$2:$D$65536,IF(dati_pdc!$C1392=3,dati_bdv!$E$2:$E$65536,IF(dati_pdc!$C1392=4,dati_bdv!$F$2:$F$65536,IF(dati_pdc!$C1392=5,dati_bdv!$G$2:$G$65536,dati_bdv!$H$2:$H$65536))))),$A1392,dati_bdv!J$2:J$65536)","v":0},{"$f":"SUMIF(IF(dati_pdc!$C1392=1,dati_bdv!$C$2:$C$65536,IF(dati_pdc!$C1392=2,dati_bdv!$D$2:$D$65536,IF(dati_pdc!$C1392=3,dati_bdv!$E$2:$E$65536,IF(dati_pdc!$C1392=4,dati_bdv!$F$2:$F$65536,IF(dati_pdc!$C1392=5,dati_bdv!$G$2:$G$65536,dati_bdv!$H$2:$H$65536))))),$A1392,dati_bdv!K$2:K$65536)","v":0},{"$f":"SUMIF(IF(dati_pdc!$C1392=1,dati_bdv!$C$2:$C$65536,IF(dati_pdc!$C1392=2,dati_bdv!$D$2:$D$65536,IF(dati_pdc!$C1392=3,dati_bdv!$E$2:$E$65536,IF(dati_pdc!$C1392=4,dati_bdv!$F$2:$F$65536,IF(dati_pdc!$C1392=5,dati_bdv!$G$2:$G$65536,dati_bdv!$H$2:$H$65536))))),$A1392,dati_bdv!L$2:L$65536)","v":0},{"$f":"SUMIF(IF(dati_pdc!$C1392=1,dati_bdv!$C$2:$C$65536,IF(dati_pdc!$C1392=2,dati_bdv!$D$2:$D$65536,IF(dati_pdc!$C1392=3,dati_bdv!$E$2:$E$65536,IF(dati_pdc!$C1392=4,dati_bdv!$F$2:$F$65536,IF(dati_pdc!$C1392=5,dati_bdv!$G$2:$G$65536,dati_bdv!$H$2:$H$65536))))),$A1392,dati_bdv!M$2:M$65536)","v":0},{"$f":"SUMIF(IF(dati_pdc!$C1392=1,dati_bdv!$C$2:$C$65536,IF(dati_pdc!$C1392=2,dati_bdv!$D$2:$D$65536,IF(dati_pdc!$C1392=3,dati_bdv!$E$2:$E$65536,IF(dati_pdc!$C1392=4,dati_bdv!$F$2:$F$65536,IF(dati_pdc!$C1392=5,dati_bdv!$G$2:$G$65536,dati_bdv!$H$2:$H$65536))))),$A1392,dati_bdv!N$2:N$65536)","v":0}]
[{"$f":"dati_pdc!A1393","v":0},{"$f":"SUMIF(IF(dati_pdc!$C1393=1,dati_bdv!$C$2:$C$65536,IF(dati_pdc!$C1393=2,dati_bdv!$D$2:$D$65536,IF(dati_pdc!$C1393=3,dati_bdv!$E$2:$E$65536,IF(dati_pdc!$C1393=4,dati_bdv!$F$2:$F$65536,IF(dati_pdc!$C1393=5,dati_bdv!$G$2:$G$65536,dati_bdv!$H$2:$H$65536))))),$A1393,dati_bdv!J$2:J$65536)","v":0},{"$f":"SUMIF(IF(dati_pdc!$C1393=1,dati_bdv!$C$2:$C$65536,IF(dati_pdc!$C1393=2,dati_bdv!$D$2:$D$65536,IF(dati_pdc!$C1393=3,dati_bdv!$E$2:$E$65536,IF(dati_pdc!$C1393=4,dati_bdv!$F$2:$F$65536,IF(dati_pdc!$C1393=5,dati_bdv!$G$2:$G$65536,dati_bdv!$H$2:$H$65536))))),$A1393,dati_bdv!K$2:K$65536)","v":0},{"$f":"SUMIF(IF(dati_pdc!$C1393=1,dati_bdv!$C$2:$C$65536,IF(dati_pdc!$C1393=2,dati_bdv!$D$2:$D$65536,IF(dati_pdc!$C1393=3,dati_bdv!$E$2:$E$65536,IF(dati_pdc!$C1393=4,dati_bdv!$F$2:$F$65536,IF(dati_pdc!$C1393=5,dati_bdv!$G$2:$G$65536,dati_bdv!$H$2:$H$65536))))),$A1393,dati_bdv!L$2:L$65536)","v":0},{"$f":"SUMIF(IF(dati_pdc!$C1393=1,dati_bdv!$C$2:$C$65536,IF(dati_pdc!$C1393=2,dati_bdv!$D$2:$D$65536,IF(dati_pdc!$C1393=3,dati_bdv!$E$2:$E$65536,IF(dati_pdc!$C1393=4,dati_bdv!$F$2:$F$65536,IF(dati_pdc!$C1393=5,dati_bdv!$G$2:$G$65536,dati_bdv!$H$2:$H$65536))))),$A1393,dati_bdv!M$2:M$65536)","v":0},{"$f":"SUMIF(IF(dati_pdc!$C1393=1,dati_bdv!$C$2:$C$65536,IF(dati_pdc!$C1393=2,dati_bdv!$D$2:$D$65536,IF(dati_pdc!$C1393=3,dati_bdv!$E$2:$E$65536,IF(dati_pdc!$C1393=4,dati_bdv!$F$2:$F$65536,IF(dati_pdc!$C1393=5,dati_bdv!$G$2:$G$65536,dati_bdv!$H$2:$H$65536))))),$A1393,dati_bdv!N$2:N$65536)","v":0}]
[{"$f":"dati_pdc!A1394","v":0},{"$f":"SUMIF(IF(dati_pdc!$C1394=1,dati_bdv!$C$2:$C$65536,IF(dati_pdc!$C1394=2,dati_bdv!$D$2:$D$65536,IF(dati_pdc!$C1394=3,dati_bdv!$E$2:$E$65536,IF(dati_pdc!$C1394=4,dati_bdv!$F$2:$F$65536,IF(dati_pdc!$C1394=5,dati_bdv!$G$2:$G$65536,dati_bdv!$H$2:$H$65536))))),$A1394,dati_bdv!J$2:J$65536)","v":0},{"$f":"SUMIF(IF(dati_pdc!$C1394=1,dati_bdv!$C$2:$C$65536,IF(dati_pdc!$C1394=2,dati_bdv!$D$2:$D$65536,IF(dati_pdc!$C1394=3,dati_bdv!$E$2:$E$65536,IF(dati_pdc!$C1394=4,dati_bdv!$F$2:$F$65536,IF(dati_pdc!$C1394=5,dati_bdv!$G$2:$G$65536,dati_bdv!$H$2:$H$65536))))),$A1394,dati_bdv!K$2:K$65536)","v":0},{"$f":"SUMIF(IF(dati_pdc!$C1394=1,dati_bdv!$C$2:$C$65536,IF(dati_pdc!$C1394=2,dati_bdv!$D$2:$D$65536,IF(dati_pdc!$C1394=3,dati_bdv!$E$2:$E$65536,IF(dati_pdc!$C1394=4,dati_bdv!$F$2:$F$65536,IF(dati_pdc!$C1394=5,dati_bdv!$G$2:$G$65536,dati_bdv!$H$2:$H$65536))))),$A1394,dati_bdv!L$2:L$65536)","v":0},{"$f":"SUMIF(IF(dati_pdc!$C1394=1,dati_bdv!$C$2:$C$65536,IF(dati_pdc!$C1394=2,dati_bdv!$D$2:$D$65536,IF(dati_pdc!$C1394=3,dati_bdv!$E$2:$E$65536,IF(dati_pdc!$C1394=4,dati_bdv!$F$2:$F$65536,IF(dati_pdc!$C1394=5,dati_bdv!$G$2:$G$65536,dati_bdv!$H$2:$H$65536))))),$A1394,dati_bdv!M$2:M$65536)","v":0},{"$f":"SUMIF(IF(dati_pdc!$C1394=1,dati_bdv!$C$2:$C$65536,IF(dati_pdc!$C1394=2,dati_bdv!$D$2:$D$65536,IF(dati_pdc!$C1394=3,dati_bdv!$E$2:$E$65536,IF(dati_pdc!$C1394=4,dati_bdv!$F$2:$F$65536,IF(dati_pdc!$C1394=5,dati_bdv!$G$2:$G$65536,dati_bdv!$H$2:$H$65536))))),$A1394,dati_bdv!N$2:N$65536)","v":0}]
[{"$f":"dati_pdc!A1395","v":0},{"$f":"SUMIF(IF(dati_pdc!$C1395=1,dati_bdv!$C$2:$C$65536,IF(dati_pdc!$C1395=2,dati_bdv!$D$2:$D$65536,IF(dati_pdc!$C1395=3,dati_bdv!$E$2:$E$65536,IF(dati_pdc!$C1395=4,dati_bdv!$F$2:$F$65536,IF(dati_pdc!$C1395=5,dati_bdv!$G$2:$G$65536,dati_bdv!$H$2:$H$65536))))),$A1395,dati_bdv!J$2:J$65536)","v":0},{"$f":"SUMIF(IF(dati_pdc!$C1395=1,dati_bdv!$C$2:$C$65536,IF(dati_pdc!$C1395=2,dati_bdv!$D$2:$D$65536,IF(dati_pdc!$C1395=3,dati_bdv!$E$2:$E$65536,IF(dati_pdc!$C1395=4,dati_bdv!$F$2:$F$65536,IF(dati_pdc!$C1395=5,dati_bdv!$G$2:$G$65536,dati_bdv!$H$2:$H$65536))))),$A1395,dati_bdv!K$2:K$65536)","v":0},{"$f":"SUMIF(IF(dati_pdc!$C1395=1,dati_bdv!$C$2:$C$65536,IF(dati_pdc!$C1395=2,dati_bdv!$D$2:$D$65536,IF(dati_pdc!$C1395=3,dati_bdv!$E$2:$E$65536,IF(dati_pdc!$C1395=4,dati_bdv!$F$2:$F$65536,IF(dati_pdc!$C1395=5,dati_bdv!$G$2:$G$65536,dati_bdv!$H$2:$H$65536))))),$A1395,dati_bdv!L$2:L$65536)","v":0},{"$f":"SUMIF(IF(dati_pdc!$C1395=1,dati_bdv!$C$2:$C$65536,IF(dati_pdc!$C1395=2,dati_bdv!$D$2:$D$65536,IF(dati_pdc!$C1395=3,dati_bdv!$E$2:$E$65536,IF(dati_pdc!$C1395=4,dati_bdv!$F$2:$F$65536,IF(dati_pdc!$C1395=5,dati_bdv!$G$2:$G$65536,dati_bdv!$H$2:$H$65536))))),$A1395,dati_bdv!M$2:M$65536)","v":0},{"$f":"SUMIF(IF(dati_pdc!$C1395=1,dati_bdv!$C$2:$C$65536,IF(dati_pdc!$C1395=2,dati_bdv!$D$2:$D$65536,IF(dati_pdc!$C1395=3,dati_bdv!$E$2:$E$65536,IF(dati_pdc!$C1395=4,dati_bdv!$F$2:$F$65536,IF(dati_pdc!$C1395=5,dati_bdv!$G$2:$G$65536,dati_bdv!$H$2:$H$65536))))),$A1395,dati_bdv!N$2:N$65536)","v":0}]
[{"$f":"dati_pdc!A1396","v":0},{"$f":"SUMIF(IF(dati_pdc!$C1396=1,dati_bdv!$C$2:$C$65536,IF(dati_pdc!$C1396=2,dati_bdv!$D$2:$D$65536,IF(dati_pdc!$C1396=3,dati_bdv!$E$2:$E$65536,IF(dati_pdc!$C1396=4,dati_bdv!$F$2:$F$65536,IF(dati_pdc!$C1396=5,dati_bdv!$G$2:$G$65536,dati_bdv!$H$2:$H$65536))))),$A1396,dati_bdv!J$2:J$65536)","v":0},{"$f":"SUMIF(IF(dati_pdc!$C1396=1,dati_bdv!$C$2:$C$65536,IF(dati_pdc!$C1396=2,dati_bdv!$D$2:$D$65536,IF(dati_pdc!$C1396=3,dati_bdv!$E$2:$E$65536,IF(dati_pdc!$C1396=4,dati_bdv!$F$2:$F$65536,IF(dati_pdc!$C1396=5,dati_bdv!$G$2:$G$65536,dati_bdv!$H$2:$H$65536))))),$A1396,dati_bdv!K$2:K$65536)","v":0},{"$f":"SUMIF(IF(dati_pdc!$C1396=1,dati_bdv!$C$2:$C$65536,IF(dati_pdc!$C1396=2,dati_bdv!$D$2:$D$65536,IF(dati_pdc!$C1396=3,dati_bdv!$E$2:$E$65536,IF(dati_pdc!$C1396=4,dati_bdv!$F$2:$F$65536,IF(dati_pdc!$C1396=5,dati_bdv!$G$2:$G$65536,dati_bdv!$H$2:$H$65536))))),$A1396,dati_bdv!L$2:L$65536)","v":0},{"$f":"SUMIF(IF(dati_pdc!$C1396=1,dati_bdv!$C$2:$C$65536,IF(dati_pdc!$C1396=2,dati_bdv!$D$2:$D$65536,IF(dati_pdc!$C1396=3,dati_bdv!$E$2:$E$65536,IF(dati_pdc!$C1396=4,dati_bdv!$F$2:$F$65536,IF(dati_pdc!$C1396=5,dati_bdv!$G$2:$G$65536,dati_bdv!$H$2:$H$65536))))),$A1396,dati_bdv!M$2:M$65536)","v":0},{"$f":"SUMIF(IF(dati_pdc!$C1396=1,dati_bdv!$C$2:$C$65536,IF(dati_pdc!$C1396=2,dati_bdv!$D$2:$D$65536,IF(dati_pdc!$C1396=3,dati_bdv!$E$2:$E$65536,IF(dati_pdc!$C1396=4,dati_bdv!$F$2:$F$65536,IF(dati_pdc!$C1396=5,dati_bdv!$G$2:$G$65536,dati_bdv!$H$2:$H$65536))))),$A1396,dati_bdv!N$2:N$65536)","v":0}]
[{"$f":"dati_pdc!A1397","v":0},{"$f":"SUMIF(IF(dati_pdc!$C1397=1,dati_bdv!$C$2:$C$65536,IF(dati_pdc!$C1397=2,dati_bdv!$D$2:$D$65536,IF(dati_pdc!$C1397=3,dati_bdv!$E$2:$E$65536,IF(dati_pdc!$C1397=4,dati_bdv!$F$2:$F$65536,IF(dati_pdc!$C1397=5,dati_bdv!$G$2:$G$65536,dati_bdv!$H$2:$H$65536))))),$A1397,dati_bdv!J$2:J$65536)","v":0},{"$f":"SUMIF(IF(dati_pdc!$C1397=1,dati_bdv!$C$2:$C$65536,IF(dati_pdc!$C1397=2,dati_bdv!$D$2:$D$65536,IF(dati_pdc!$C1397=3,dati_bdv!$E$2:$E$65536,IF(dati_pdc!$C1397=4,dati_bdv!$F$2:$F$65536,IF(dati_pdc!$C1397=5,dati_bdv!$G$2:$G$65536,dati_bdv!$H$2:$H$65536))))),$A1397,dati_bdv!K$2:K$65536)","v":0},{"$f":"SUMIF(IF(dati_pdc!$C1397=1,dati_bdv!$C$2:$C$65536,IF(dati_pdc!$C1397=2,dati_bdv!$D$2:$D$65536,IF(dati_pdc!$C1397=3,dati_bdv!$E$2:$E$65536,IF(dati_pdc!$C1397=4,dati_bdv!$F$2:$F$65536,IF(dati_pdc!$C1397=5,dati_bdv!$G$2:$G$65536,dati_bdv!$H$2:$H$65536))))),$A1397,dati_bdv!L$2:L$65536)","v":0},{"$f":"SUMIF(IF(dati_pdc!$C1397=1,dati_bdv!$C$2:$C$65536,IF(dati_pdc!$C1397=2,dati_bdv!$D$2:$D$65536,IF(dati_pdc!$C1397=3,dati_bdv!$E$2:$E$65536,IF(dati_pdc!$C1397=4,dati_bdv!$F$2:$F$65536,IF(dati_pdc!$C1397=5,dati_bdv!$G$2:$G$65536,dati_bdv!$H$2:$H$65536))))),$A1397,dati_bdv!M$2:M$65536)","v":0},{"$f":"SUMIF(IF(dati_pdc!$C1397=1,dati_bdv!$C$2:$C$65536,IF(dati_pdc!$C1397=2,dati_bdv!$D$2:$D$65536,IF(dati_pdc!$C1397=3,dati_bdv!$E$2:$E$65536,IF(dati_pdc!$C1397=4,dati_bdv!$F$2:$F$65536,IF(dati_pdc!$C1397=5,dati_bdv!$G$2:$G$65536,dati_bdv!$H$2:$H$65536))))),$A1397,dati_bdv!N$2:N$65536)","v":0}]
[{"$f":"dati_pdc!A1398","v":0},{"$f":"SUMIF(IF(dati_pdc!$C1398=1,dati_bdv!$C$2:$C$65536,IF(dati_pdc!$C1398=2,dati_bdv!$D$2:$D$65536,IF(dati_pdc!$C1398=3,dati_bdv!$E$2:$E$65536,IF(dati_pdc!$C1398=4,dati_bdv!$F$2:$F$65536,IF(dati_pdc!$C1398=5,dati_bdv!$G$2:$G$65536,dati_bdv!$H$2:$H$65536))))),$A1398,dati_bdv!J$2:J$65536)","v":0},{"$f":"SUMIF(IF(dati_pdc!$C1398=1,dati_bdv!$C$2:$C$65536,IF(dati_pdc!$C1398=2,dati_bdv!$D$2:$D$65536,IF(dati_pdc!$C1398=3,dati_bdv!$E$2:$E$65536,IF(dati_pdc!$C1398=4,dati_bdv!$F$2:$F$65536,IF(dati_pdc!$C1398=5,dati_bdv!$G$2:$G$65536,dati_bdv!$H$2:$H$65536))))),$A1398,dati_bdv!K$2:K$65536)","v":0},{"$f":"SUMIF(IF(dati_pdc!$C1398=1,dati_bdv!$C$2:$C$65536,IF(dati_pdc!$C1398=2,dati_bdv!$D$2:$D$65536,IF(dati_pdc!$C1398=3,dati_bdv!$E$2:$E$65536,IF(dati_pdc!$C1398=4,dati_bdv!$F$2:$F$65536,IF(dati_pdc!$C1398=5,dati_bdv!$G$2:$G$65536,dati_bdv!$H$2:$H$65536))))),$A1398,dati_bdv!L$2:L$65536)","v":0},{"$f":"SUMIF(IF(dati_pdc!$C1398=1,dati_bdv!$C$2:$C$65536,IF(dati_pdc!$C1398=2,dati_bdv!$D$2:$D$65536,IF(dati_pdc!$C1398=3,dati_bdv!$E$2:$E$65536,IF(dati_pdc!$C1398=4,dati_bdv!$F$2:$F$65536,IF(dati_pdc!$C1398=5,dati_bdv!$G$2:$G$65536,dati_bdv!$H$2:$H$65536))))),$A1398,dati_bdv!M$2:M$65536)","v":0},{"$f":"SUMIF(IF(dati_pdc!$C1398=1,dati_bdv!$C$2:$C$65536,IF(dati_pdc!$C1398=2,dati_bdv!$D$2:$D$65536,IF(dati_pdc!$C1398=3,dati_bdv!$E$2:$E$65536,IF(dati_pdc!$C1398=4,dati_bdv!$F$2:$F$65536,IF(dati_pdc!$C1398=5,dati_bdv!$G$2:$G$65536,dati_bdv!$H$2:$H$65536))))),$A1398,dati_bdv!N$2:N$65536)","v":0}]
[{"$f":"dati_pdc!A1399","v":0},{"$f":"SUMIF(IF(dati_pdc!$C1399=1,dati_bdv!$C$2:$C$65536,IF(dati_pdc!$C1399=2,dati_bdv!$D$2:$D$65536,IF(dati_pdc!$C1399=3,dati_bdv!$E$2:$E$65536,IF(dati_pdc!$C1399=4,dati_bdv!$F$2:$F$65536,IF(dati_pdc!$C1399=5,dati_bdv!$G$2:$G$65536,dati_bdv!$H$2:$H$65536))))),$A1399,dati_bdv!J$2:J$65536)","v":0},{"$f":"SUMIF(IF(dati_pdc!$C1399=1,dati_bdv!$C$2:$C$65536,IF(dati_pdc!$C1399=2,dati_bdv!$D$2:$D$65536,IF(dati_pdc!$C1399=3,dati_bdv!$E$2:$E$65536,IF(dati_pdc!$C1399=4,dati_bdv!$F$2:$F$65536,IF(dati_pdc!$C1399=5,dati_bdv!$G$2:$G$65536,dati_bdv!$H$2:$H$65536))))),$A1399,dati_bdv!K$2:K$65536)","v":0},{"$f":"SUMIF(IF(dati_pdc!$C1399=1,dati_bdv!$C$2:$C$65536,IF(dati_pdc!$C1399=2,dati_bdv!$D$2:$D$65536,IF(dati_pdc!$C1399=3,dati_bdv!$E$2:$E$65536,IF(dati_pdc!$C1399=4,dati_bdv!$F$2:$F$65536,IF(dati_pdc!$C1399=5,dati_bdv!$G$2:$G$65536,dati_bdv!$H$2:$H$65536))))),$A1399,dati_bdv!L$2:L$65536)","v":0},{"$f":"SUMIF(IF(dati_pdc!$C1399=1,dati_bdv!$C$2:$C$65536,IF(dati_pdc!$C1399=2,dati_bdv!$D$2:$D$65536,IF(dati_pdc!$C1399=3,dati_bdv!$E$2:$E$65536,IF(dati_pdc!$C1399=4,dati_bdv!$F$2:$F$65536,IF(dati_pdc!$C1399=5,dati_bdv!$G$2:$G$65536,dati_bdv!$H$2:$H$65536))))),$A1399,dati_bdv!M$2:M$65536)","v":0},{"$f":"SUMIF(IF(dati_pdc!$C1399=1,dati_bdv!$C$2:$C$65536,IF(dati_pdc!$C1399=2,dati_bdv!$D$2:$D$65536,IF(dati_pdc!$C1399=3,dati_bdv!$E$2:$E$65536,IF(dati_pdc!$C1399=4,dati_bdv!$F$2:$F$65536,IF(dati_pdc!$C1399=5,dati_bdv!$G$2:$G$65536,dati_bdv!$H$2:$H$65536))))),$A1399,dati_bdv!N$2:N$65536)","v":0}]
[{"$f":"dati_pdc!A1400","v":0},{"$f":"SUMIF(IF(dati_pdc!$C1400=1,dati_bdv!$C$2:$C$65536,IF(dati_pdc!$C1400=2,dati_bdv!$D$2:$D$65536,IF(dati_pdc!$C1400=3,dati_bdv!$E$2:$E$65536,IF(dati_pdc!$C1400=4,dati_bdv!$F$2:$F$65536,IF(dati_pdc!$C1400=5,dati_bdv!$G$2:$G$65536,dati_bdv!$H$2:$H$65536))))),$A1400,dati_bdv!J$2:J$65536)","v":0},{"$f":"SUMIF(IF(dati_pdc!$C1400=1,dati_bdv!$C$2:$C$65536,IF(dati_pdc!$C1400=2,dati_bdv!$D$2:$D$65536,IF(dati_pdc!$C1400=3,dati_bdv!$E$2:$E$65536,IF(dati_pdc!$C1400=4,dati_bdv!$F$2:$F$65536,IF(dati_pdc!$C1400=5,dati_bdv!$G$2:$G$65536,dati_bdv!$H$2:$H$65536))))),$A1400,dati_bdv!K$2:K$65536)","v":0},{"$f":"SUMIF(IF(dati_pdc!$C1400=1,dati_bdv!$C$2:$C$65536,IF(dati_pdc!$C1400=2,dati_bdv!$D$2:$D$65536,IF(dati_pdc!$C1400=3,dati_bdv!$E$2:$E$65536,IF(dati_pdc!$C1400=4,dati_bdv!$F$2:$F$65536,IF(dati_pdc!$C1400=5,dati_bdv!$G$2:$G$65536,dati_bdv!$H$2:$H$65536))))),$A1400,dati_bdv!L$2:L$65536)","v":0},{"$f":"SUMIF(IF(dati_pdc!$C1400=1,dati_bdv!$C$2:$C$65536,IF(dati_pdc!$C1400=2,dati_bdv!$D$2:$D$65536,IF(dati_pdc!$C1400=3,dati_bdv!$E$2:$E$65536,IF(dati_pdc!$C1400=4,dati_bdv!$F$2:$F$65536,IF(dati_pdc!$C1400=5,dati_bdv!$G$2:$G$65536,dati_bdv!$H$2:$H$65536))))),$A1400,dati_bdv!M$2:M$65536)","v":0},{"$f":"SUMIF(IF(dati_pdc!$C1400=1,dati_bdv!$C$2:$C$65536,IF(dati_pdc!$C1400=2,dati_bdv!$D$2:$D$65536,IF(dati_pdc!$C1400=3,dati_bdv!$E$2:$E$65536,IF(dati_pdc!$C1400=4,dati_bdv!$F$2:$F$65536,IF(dati_pdc!$C1400=5,dati_bdv!$G$2:$G$65536,dati_bdv!$H$2:$H$65536))))),$A1400,dati_bdv!N$2:N$65536)","v":0}]
[{"$f":"dati_pdc!A1401","v":0},{"$f":"SUMIF(IF(dati_pdc!$C1401=1,dati_bdv!$C$2:$C$65536,IF(dati_pdc!$C1401=2,dati_bdv!$D$2:$D$65536,IF(dati_pdc!$C1401=3,dati_bdv!$E$2:$E$65536,IF(dati_pdc!$C1401=4,dati_bdv!$F$2:$F$65536,IF(dati_pdc!$C1401=5,dati_bdv!$G$2:$G$65536,dati_bdv!$H$2:$H$65536))))),$A1401,dati_bdv!J$2:J$65536)","v":0},{"$f":"SUMIF(IF(dati_pdc!$C1401=1,dati_bdv!$C$2:$C$65536,IF(dati_pdc!$C1401=2,dati_bdv!$D$2:$D$65536,IF(dati_pdc!$C1401=3,dati_bdv!$E$2:$E$65536,IF(dati_pdc!$C1401=4,dati_bdv!$F$2:$F$65536,IF(dati_pdc!$C1401=5,dati_bdv!$G$2:$G$65536,dati_bdv!$H$2:$H$65536))))),$A1401,dati_bdv!K$2:K$65536)","v":0},{"$f":"SUMIF(IF(dati_pdc!$C1401=1,dati_bdv!$C$2:$C$65536,IF(dati_pdc!$C1401=2,dati_bdv!$D$2:$D$65536,IF(dati_pdc!$C1401=3,dati_bdv!$E$2:$E$65536,IF(dati_pdc!$C1401=4,dati_bdv!$F$2:$F$65536,IF(dati_pdc!$C1401=5,dati_bdv!$G$2:$G$65536,dati_bdv!$H$2:$H$65536))))),$A1401,dati_bdv!L$2:L$65536)","v":0},{"$f":"SUMIF(IF(dati_pdc!$C1401=1,dati_bdv!$C$2:$C$65536,IF(dati_pdc!$C1401=2,dati_bdv!$D$2:$D$65536,IF(dati_pdc!$C1401=3,dati_bdv!$E$2:$E$65536,IF(dati_pdc!$C1401=4,dati_bdv!$F$2:$F$65536,IF(dati_pdc!$C1401=5,dati_bdv!$G$2:$G$65536,dati_bdv!$H$2:$H$65536))))),$A1401,dati_bdv!M$2:M$65536)","v":0},{"$f":"SUMIF(IF(dati_pdc!$C1401=1,dati_bdv!$C$2:$C$65536,IF(dati_pdc!$C1401=2,dati_bdv!$D$2:$D$65536,IF(dati_pdc!$C1401=3,dati_bdv!$E$2:$E$65536,IF(dati_pdc!$C1401=4,dati_bdv!$F$2:$F$65536,IF(dati_pdc!$C1401=5,dati_bdv!$G$2:$G$65536,dati_bdv!$H$2:$H$65536))))),$A1401,dati_bdv!N$2:N$65536)","v":0}]
[{"$f":"dati_pdc!A1402","v":0},{"$f":"SUMIF(IF(dati_pdc!$C1402=1,dati_bdv!$C$2:$C$65536,IF(dati_pdc!$C1402=2,dati_bdv!$D$2:$D$65536,IF(dati_pdc!$C1402=3,dati_bdv!$E$2:$E$65536,IF(dati_pdc!$C1402=4,dati_bdv!$F$2:$F$65536,IF(dati_pdc!$C1402=5,dati_bdv!$G$2:$G$65536,dati_bdv!$H$2:$H$65536))))),$A1402,dati_bdv!J$2:J$65536)","v":0},{"$f":"SUMIF(IF(dati_pdc!$C1402=1,dati_bdv!$C$2:$C$65536,IF(dati_pdc!$C1402=2,dati_bdv!$D$2:$D$65536,IF(dati_pdc!$C1402=3,dati_bdv!$E$2:$E$65536,IF(dati_pdc!$C1402=4,dati_bdv!$F$2:$F$65536,IF(dati_pdc!$C1402=5,dati_bdv!$G$2:$G$65536,dati_bdv!$H$2:$H$65536))))),$A1402,dati_bdv!K$2:K$65536)","v":0},{"$f":"SUMIF(IF(dati_pdc!$C1402=1,dati_bdv!$C$2:$C$65536,IF(dati_pdc!$C1402=2,dati_bdv!$D$2:$D$65536,IF(dati_pdc!$C1402=3,dati_bdv!$E$2:$E$65536,IF(dati_pdc!$C1402=4,dati_bdv!$F$2:$F$65536,IF(dati_pdc!$C1402=5,dati_bdv!$G$2:$G$65536,dati_bdv!$H$2:$H$65536))))),$A1402,dati_bdv!L$2:L$65536)","v":0},{"$f":"SUMIF(IF(dati_pdc!$C1402=1,dati_bdv!$C$2:$C$65536,IF(dati_pdc!$C1402=2,dati_bdv!$D$2:$D$65536,IF(dati_pdc!$C1402=3,dati_bdv!$E$2:$E$65536,IF(dati_pdc!$C1402=4,dati_bdv!$F$2:$F$65536,IF(dati_pdc!$C1402=5,dati_bdv!$G$2:$G$65536,dati_bdv!$H$2:$H$65536))))),$A1402,dati_bdv!M$2:M$65536)","v":0},{"$f":"SUMIF(IF(dati_pdc!$C1402=1,dati_bdv!$C$2:$C$65536,IF(dati_pdc!$C1402=2,dati_bdv!$D$2:$D$65536,IF(dati_pdc!$C1402=3,dati_bdv!$E$2:$E$65536,IF(dati_pdc!$C1402=4,dati_bdv!$F$2:$F$65536,IF(dati_pdc!$C1402=5,dati_bdv!$G$2:$G$65536,dati_bdv!$H$2:$H$65536))))),$A1402,dati_bdv!N$2:N$65536)","v":0}]
[{"$f":"dati_pdc!A1403","v":0},{"$f":"SUMIF(IF(dati_pdc!$C1403=1,dati_bdv!$C$2:$C$65536,IF(dati_pdc!$C1403=2,dati_bdv!$D$2:$D$65536,IF(dati_pdc!$C1403=3,dati_bdv!$E$2:$E$65536,IF(dati_pdc!$C1403=4,dati_bdv!$F$2:$F$65536,IF(dati_pdc!$C1403=5,dati_bdv!$G$2:$G$65536,dati_bdv!$H$2:$H$65536))))),$A1403,dati_bdv!J$2:J$65536)","v":0},{"$f":"SUMIF(IF(dati_pdc!$C1403=1,dati_bdv!$C$2:$C$65536,IF(dati_pdc!$C1403=2,dati_bdv!$D$2:$D$65536,IF(dati_pdc!$C1403=3,dati_bdv!$E$2:$E$65536,IF(dati_pdc!$C1403=4,dati_bdv!$F$2:$F$65536,IF(dati_pdc!$C1403=5,dati_bdv!$G$2:$G$65536,dati_bdv!$H$2:$H$65536))))),$A1403,dati_bdv!K$2:K$65536)","v":0},{"$f":"SUMIF(IF(dati_pdc!$C1403=1,dati_bdv!$C$2:$C$65536,IF(dati_pdc!$C1403=2,dati_bdv!$D$2:$D$65536,IF(dati_pdc!$C1403=3,dati_bdv!$E$2:$E$65536,IF(dati_pdc!$C1403=4,dati_bdv!$F$2:$F$65536,IF(dati_pdc!$C1403=5,dati_bdv!$G$2:$G$65536,dati_bdv!$H$2:$H$65536))))),$A1403,dati_bdv!L$2:L$65536)","v":0},{"$f":"SUMIF(IF(dati_pdc!$C1403=1,dati_bdv!$C$2:$C$65536,IF(dati_pdc!$C1403=2,dati_bdv!$D$2:$D$65536,IF(dati_pdc!$C1403=3,dati_bdv!$E$2:$E$65536,IF(dati_pdc!$C1403=4,dati_bdv!$F$2:$F$65536,IF(dati_pdc!$C1403=5,dati_bdv!$G$2:$G$65536,dati_bdv!$H$2:$H$65536))))),$A1403,dati_bdv!M$2:M$65536)","v":0},{"$f":"SUMIF(IF(dati_pdc!$C1403=1,dati_bdv!$C$2:$C$65536,IF(dati_pdc!$C1403=2,dati_bdv!$D$2:$D$65536,IF(dati_pdc!$C1403=3,dati_bdv!$E$2:$E$65536,IF(dati_pdc!$C1403=4,dati_bdv!$F$2:$F$65536,IF(dati_pdc!$C1403=5,dati_bdv!$G$2:$G$65536,dati_bdv!$H$2:$H$65536))))),$A1403,dati_bdv!N$2:N$65536)","v":0}]
[{"$f":"dati_pdc!A1404","v":0},{"$f":"SUMIF(IF(dati_pdc!$C1404=1,dati_bdv!$C$2:$C$65536,IF(dati_pdc!$C1404=2,dati_bdv!$D$2:$D$65536,IF(dati_pdc!$C1404=3,dati_bdv!$E$2:$E$65536,IF(dati_pdc!$C1404=4,dati_bdv!$F$2:$F$65536,IF(dati_pdc!$C1404=5,dati_bdv!$G$2:$G$65536,dati_bdv!$H$2:$H$65536))))),$A1404,dati_bdv!J$2:J$65536)","v":0},{"$f":"SUMIF(IF(dati_pdc!$C1404=1,dati_bdv!$C$2:$C$65536,IF(dati_pdc!$C1404=2,dati_bdv!$D$2:$D$65536,IF(dati_pdc!$C1404=3,dati_bdv!$E$2:$E$65536,IF(dati_pdc!$C1404=4,dati_bdv!$F$2:$F$65536,IF(dati_pdc!$C1404=5,dati_bdv!$G$2:$G$65536,dati_bdv!$H$2:$H$65536))))),$A1404,dati_bdv!K$2:K$65536)","v":0},{"$f":"SUMIF(IF(dati_pdc!$C1404=1,dati_bdv!$C$2:$C$65536,IF(dati_pdc!$C1404=2,dati_bdv!$D$2:$D$65536,IF(dati_pdc!$C1404=3,dati_bdv!$E$2:$E$65536,IF(dati_pdc!$C1404=4,dati_bdv!$F$2:$F$65536,IF(dati_pdc!$C1404=5,dati_bdv!$G$2:$G$65536,dati_bdv!$H$2:$H$65536))))),$A1404,dati_bdv!L$2:L$65536)","v":0},{"$f":"SUMIF(IF(dati_pdc!$C1404=1,dati_bdv!$C$2:$C$65536,IF(dati_pdc!$C1404=2,dati_bdv!$D$2:$D$65536,IF(dati_pdc!$C1404=3,dati_bdv!$E$2:$E$65536,IF(dati_pdc!$C1404=4,dati_bdv!$F$2:$F$65536,IF(dati_pdc!$C1404=5,dati_bdv!$G$2:$G$65536,dati_bdv!$H$2:$H$65536))))),$A1404,dati_bdv!M$2:M$65536)","v":0},{"$f":"SUMIF(IF(dati_pdc!$C1404=1,dati_bdv!$C$2:$C$65536,IF(dati_pdc!$C1404=2,dati_bdv!$D$2:$D$65536,IF(dati_pdc!$C1404=3,dati_bdv!$E$2:$E$65536,IF(dati_pdc!$C1404=4,dati_bdv!$F$2:$F$65536,IF(dati_pdc!$C1404=5,dati_bdv!$G$2:$G$65536,dati_bdv!$H$2:$H$65536))))),$A1404,dati_bdv!N$2:N$65536)","v":0}]
[{"$f":"dati_pdc!A1405","v":0},{"$f":"SUMIF(IF(dati_pdc!$C1405=1,dati_bdv!$C$2:$C$65536,IF(dati_pdc!$C1405=2,dati_bdv!$D$2:$D$65536,IF(dati_pdc!$C1405=3,dati_bdv!$E$2:$E$65536,IF(dati_pdc!$C1405=4,dati_bdv!$F$2:$F$65536,IF(dati_pdc!$C1405=5,dati_bdv!$G$2:$G$65536,dati_bdv!$H$2:$H$65536))))),$A1405,dati_bdv!J$2:J$65536)","v":0},{"$f":"SUMIF(IF(dati_pdc!$C1405=1,dati_bdv!$C$2:$C$65536,IF(dati_pdc!$C1405=2,dati_bdv!$D$2:$D$65536,IF(dati_pdc!$C1405=3,dati_bdv!$E$2:$E$65536,IF(dati_pdc!$C1405=4,dati_bdv!$F$2:$F$65536,IF(dati_pdc!$C1405=5,dati_bdv!$G$2:$G$65536,dati_bdv!$H$2:$H$65536))))),$A1405,dati_bdv!K$2:K$65536)","v":0},{"$f":"SUMIF(IF(dati_pdc!$C1405=1,dati_bdv!$C$2:$C$65536,IF(dati_pdc!$C1405=2,dati_bdv!$D$2:$D$65536,IF(dati_pdc!$C1405=3,dati_bdv!$E$2:$E$65536,IF(dati_pdc!$C1405=4,dati_bdv!$F$2:$F$65536,IF(dati_pdc!$C1405=5,dati_bdv!$G$2:$G$65536,dati_bdv!$H$2:$H$65536))))),$A1405,dati_bdv!L$2:L$65536)","v":0},{"$f":"SUMIF(IF(dati_pdc!$C1405=1,dati_bdv!$C$2:$C$65536,IF(dati_pdc!$C1405=2,dati_bdv!$D$2:$D$65536,IF(dati_pdc!$C1405=3,dati_bdv!$E$2:$E$65536,IF(dati_pdc!$C1405=4,dati_bdv!$F$2:$F$65536,IF(dati_pdc!$C1405=5,dati_bdv!$G$2:$G$65536,dati_bdv!$H$2:$H$65536))))),$A1405,dati_bdv!M$2:M$65536)","v":0},{"$f":"SUMIF(IF(dati_pdc!$C1405=1,dati_bdv!$C$2:$C$65536,IF(dati_pdc!$C1405=2,dati_bdv!$D$2:$D$65536,IF(dati_pdc!$C1405=3,dati_bdv!$E$2:$E$65536,IF(dati_pdc!$C1405=4,dati_bdv!$F$2:$F$65536,IF(dati_pdc!$C1405=5,dati_bdv!$G$2:$G$65536,dati_bdv!$H$2:$H$65536))))),$A1405,dati_bdv!N$2:N$65536)","v":0}]
[{"$f":"dati_pdc!A1406","v":0},{"$f":"SUMIF(IF(dati_pdc!$C1406=1,dati_bdv!$C$2:$C$65536,IF(dati_pdc!$C1406=2,dati_bdv!$D$2:$D$65536,IF(dati_pdc!$C1406=3,dati_bdv!$E$2:$E$65536,IF(dati_pdc!$C1406=4,dati_bdv!$F$2:$F$65536,IF(dati_pdc!$C1406=5,dati_bdv!$G$2:$G$65536,dati_bdv!$H$2:$H$65536))))),$A1406,dati_bdv!J$2:J$65536)","v":0},{"$f":"SUMIF(IF(dati_pdc!$C1406=1,dati_bdv!$C$2:$C$65536,IF(dati_pdc!$C1406=2,dati_bdv!$D$2:$D$65536,IF(dati_pdc!$C1406=3,dati_bdv!$E$2:$E$65536,IF(dati_pdc!$C1406=4,dati_bdv!$F$2:$F$65536,IF(dati_pdc!$C1406=5,dati_bdv!$G$2:$G$65536,dati_bdv!$H$2:$H$65536))))),$A1406,dati_bdv!K$2:K$65536)","v":0},{"$f":"SUMIF(IF(dati_pdc!$C1406=1,dati_bdv!$C$2:$C$65536,IF(dati_pdc!$C1406=2,dati_bdv!$D$2:$D$65536,IF(dati_pdc!$C1406=3,dati_bdv!$E$2:$E$65536,IF(dati_pdc!$C1406=4,dati_bdv!$F$2:$F$65536,IF(dati_pdc!$C1406=5,dati_bdv!$G$2:$G$65536,dati_bdv!$H$2:$H$65536))))),$A1406,dati_bdv!L$2:L$65536)","v":0},{"$f":"SUMIF(IF(dati_pdc!$C1406=1,dati_bdv!$C$2:$C$65536,IF(dati_pdc!$C1406=2,dati_bdv!$D$2:$D$65536,IF(dati_pdc!$C1406=3,dati_bdv!$E$2:$E$65536,IF(dati_pdc!$C1406=4,dati_bdv!$F$2:$F$65536,IF(dati_pdc!$C1406=5,dati_bdv!$G$2:$G$65536,dati_bdv!$H$2:$H$65536))))),$A1406,dati_bdv!M$2:M$65536)","v":0},{"$f":"SUMIF(IF(dati_pdc!$C1406=1,dati_bdv!$C$2:$C$65536,IF(dati_pdc!$C1406=2,dati_bdv!$D$2:$D$65536,IF(dati_pdc!$C1406=3,dati_bdv!$E$2:$E$65536,IF(dati_pdc!$C1406=4,dati_bdv!$F$2:$F$65536,IF(dati_pdc!$C1406=5,dati_bdv!$G$2:$G$65536,dati_bdv!$H$2:$H$65536))))),$A1406,dati_bdv!N$2:N$65536)","v":0}]
[{"$f":"dati_pdc!A1407","v":0},{"$f":"SUMIF(IF(dati_pdc!$C1407=1,dati_bdv!$C$2:$C$65536,IF(dati_pdc!$C1407=2,dati_bdv!$D$2:$D$65536,IF(dati_pdc!$C1407=3,dati_bdv!$E$2:$E$65536,IF(dati_pdc!$C1407=4,dati_bdv!$F$2:$F$65536,IF(dati_pdc!$C1407=5,dati_bdv!$G$2:$G$65536,dati_bdv!$H$2:$H$65536))))),$A1407,dati_bdv!J$2:J$65536)","v":0},{"$f":"SUMIF(IF(dati_pdc!$C1407=1,dati_bdv!$C$2:$C$65536,IF(dati_pdc!$C1407=2,dati_bdv!$D$2:$D$65536,IF(dati_pdc!$C1407=3,dati_bdv!$E$2:$E$65536,IF(dati_pdc!$C1407=4,dati_bdv!$F$2:$F$65536,IF(dati_pdc!$C1407=5,dati_bdv!$G$2:$G$65536,dati_bdv!$H$2:$H$65536))))),$A1407,dati_bdv!K$2:K$65536)","v":0},{"$f":"SUMIF(IF(dati_pdc!$C1407=1,dati_bdv!$C$2:$C$65536,IF(dati_pdc!$C1407=2,dati_bdv!$D$2:$D$65536,IF(dati_pdc!$C1407=3,dati_bdv!$E$2:$E$65536,IF(dati_pdc!$C1407=4,dati_bdv!$F$2:$F$65536,IF(dati_pdc!$C1407=5,dati_bdv!$G$2:$G$65536,dati_bdv!$H$2:$H$65536))))),$A1407,dati_bdv!L$2:L$65536)","v":0},{"$f":"SUMIF(IF(dati_pdc!$C1407=1,dati_bdv!$C$2:$C$65536,IF(dati_pdc!$C1407=2,dati_bdv!$D$2:$D$65536,IF(dati_pdc!$C1407=3,dati_bdv!$E$2:$E$65536,IF(dati_pdc!$C1407=4,dati_bdv!$F$2:$F$65536,IF(dati_pdc!$C1407=5,dati_bdv!$G$2:$G$65536,dati_bdv!$H$2:$H$65536))))),$A1407,dati_bdv!M$2:M$65536)","v":0},{"$f":"SUMIF(IF(dati_pdc!$C1407=1,dati_bdv!$C$2:$C$65536,IF(dati_pdc!$C1407=2,dati_bdv!$D$2:$D$65536,IF(dati_pdc!$C1407=3,dati_bdv!$E$2:$E$65536,IF(dati_pdc!$C1407=4,dati_bdv!$F$2:$F$65536,IF(dati_pdc!$C1407=5,dati_bdv!$G$2:$G$65536,dati_bdv!$H$2:$H$65536))))),$A1407,dati_bdv!N$2:N$65536)","v":0}]
[{"$f":"dati_pdc!A1408","v":0},{"$f":"SUMIF(IF(dati_pdc!$C1408=1,dati_bdv!$C$2:$C$65536,IF(dati_pdc!$C1408=2,dati_bdv!$D$2:$D$65536,IF(dati_pdc!$C1408=3,dati_bdv!$E$2:$E$65536,IF(dati_pdc!$C1408=4,dati_bdv!$F$2:$F$65536,IF(dati_pdc!$C1408=5,dati_bdv!$G$2:$G$65536,dati_bdv!$H$2:$H$65536))))),$A1408,dati_bdv!J$2:J$65536)","v":0},{"$f":"SUMIF(IF(dati_pdc!$C1408=1,dati_bdv!$C$2:$C$65536,IF(dati_pdc!$C1408=2,dati_bdv!$D$2:$D$65536,IF(dati_pdc!$C1408=3,dati_bdv!$E$2:$E$65536,IF(dati_pdc!$C1408=4,dati_bdv!$F$2:$F$65536,IF(dati_pdc!$C1408=5,dati_bdv!$G$2:$G$65536,dati_bdv!$H$2:$H$65536))))),$A1408,dati_bdv!K$2:K$65536)","v":0},{"$f":"SUMIF(IF(dati_pdc!$C1408=1,dati_bdv!$C$2:$C$65536,IF(dati_pdc!$C1408=2,dati_bdv!$D$2:$D$65536,IF(dati_pdc!$C1408=3,dati_bdv!$E$2:$E$65536,IF(dati_pdc!$C1408=4,dati_bdv!$F$2:$F$65536,IF(dati_pdc!$C1408=5,dati_bdv!$G$2:$G$65536,dati_bdv!$H$2:$H$65536))))),$A1408,dati_bdv!L$2:L$65536)","v":0},{"$f":"SUMIF(IF(dati_pdc!$C1408=1,dati_bdv!$C$2:$C$65536,IF(dati_pdc!$C1408=2,dati_bdv!$D$2:$D$65536,IF(dati_pdc!$C1408=3,dati_bdv!$E$2:$E$65536,IF(dati_pdc!$C1408=4,dati_bdv!$F$2:$F$65536,IF(dati_pdc!$C1408=5,dati_bdv!$G$2:$G$65536,dati_bdv!$H$2:$H$65536))))),$A1408,dati_bdv!M$2:M$65536)","v":0},{"$f":"SUMIF(IF(dati_pdc!$C1408=1,dati_bdv!$C$2:$C$65536,IF(dati_pdc!$C1408=2,dati_bdv!$D$2:$D$65536,IF(dati_pdc!$C1408=3,dati_bdv!$E$2:$E$65536,IF(dati_pdc!$C1408=4,dati_bdv!$F$2:$F$65536,IF(dati_pdc!$C1408=5,dati_bdv!$G$2:$G$65536,dati_bdv!$H$2:$H$65536))))),$A1408,dati_bdv!N$2:N$65536)","v":0}]
[{"$f":"dati_pdc!A1409","v":0},{"$f":"SUMIF(IF(dati_pdc!$C1409=1,dati_bdv!$C$2:$C$65536,IF(dati_pdc!$C1409=2,dati_bdv!$D$2:$D$65536,IF(dati_pdc!$C1409=3,dati_bdv!$E$2:$E$65536,IF(dati_pdc!$C1409=4,dati_bdv!$F$2:$F$65536,IF(dati_pdc!$C1409=5,dati_bdv!$G$2:$G$65536,dati_bdv!$H$2:$H$65536))))),$A1409,dati_bdv!J$2:J$65536)","v":0},{"$f":"SUMIF(IF(dati_pdc!$C1409=1,dati_bdv!$C$2:$C$65536,IF(dati_pdc!$C1409=2,dati_bdv!$D$2:$D$65536,IF(dati_pdc!$C1409=3,dati_bdv!$E$2:$E$65536,IF(dati_pdc!$C1409=4,dati_bdv!$F$2:$F$65536,IF(dati_pdc!$C1409=5,dati_bdv!$G$2:$G$65536,dati_bdv!$H$2:$H$65536))))),$A1409,dati_bdv!K$2:K$65536)","v":0},{"$f":"SUMIF(IF(dati_pdc!$C1409=1,dati_bdv!$C$2:$C$65536,IF(dati_pdc!$C1409=2,dati_bdv!$D$2:$D$65536,IF(dati_pdc!$C1409=3,dati_bdv!$E$2:$E$65536,IF(dati_pdc!$C1409=4,dati_bdv!$F$2:$F$65536,IF(dati_pdc!$C1409=5,dati_bdv!$G$2:$G$65536,dati_bdv!$H$2:$H$65536))))),$A1409,dati_bdv!L$2:L$65536)","v":0},{"$f":"SUMIF(IF(dati_pdc!$C1409=1,dati_bdv!$C$2:$C$65536,IF(dati_pdc!$C1409=2,dati_bdv!$D$2:$D$65536,IF(dati_pdc!$C1409=3,dati_bdv!$E$2:$E$65536,IF(dati_pdc!$C1409=4,dati_bdv!$F$2:$F$65536,IF(dati_pdc!$C1409=5,dati_bdv!$G$2:$G$65536,dati_bdv!$H$2:$H$65536))))),$A1409,dati_bdv!M$2:M$65536)","v":0},{"$f":"SUMIF(IF(dati_pdc!$C1409=1,dati_bdv!$C$2:$C$65536,IF(dati_pdc!$C1409=2,dati_bdv!$D$2:$D$65536,IF(dati_pdc!$C1409=3,dati_bdv!$E$2:$E$65536,IF(dati_pdc!$C1409=4,dati_bdv!$F$2:$F$65536,IF(dati_pdc!$C1409=5,dati_bdv!$G$2:$G$65536,dati_bdv!$H$2:$H$65536))))),$A1409,dati_bdv!N$2:N$65536)","v":0}]
[{"$f":"dati_pdc!A1410","v":0},{"$f":"SUMIF(IF(dati_pdc!$C1410=1,dati_bdv!$C$2:$C$65536,IF(dati_pdc!$C1410=2,dati_bdv!$D$2:$D$65536,IF(dati_pdc!$C1410=3,dati_bdv!$E$2:$E$65536,IF(dati_pdc!$C1410=4,dati_bdv!$F$2:$F$65536,IF(dati_pdc!$C1410=5,dati_bdv!$G$2:$G$65536,dati_bdv!$H$2:$H$65536))))),$A1410,dati_bdv!J$2:J$65536)","v":0},{"$f":"SUMIF(IF(dati_pdc!$C1410=1,dati_bdv!$C$2:$C$65536,IF(dati_pdc!$C1410=2,dati_bdv!$D$2:$D$65536,IF(dati_pdc!$C1410=3,dati_bdv!$E$2:$E$65536,IF(dati_pdc!$C1410=4,dati_bdv!$F$2:$F$65536,IF(dati_pdc!$C1410=5,dati_bdv!$G$2:$G$65536,dati_bdv!$H$2:$H$65536))))),$A1410,dati_bdv!K$2:K$65536)","v":0},{"$f":"SUMIF(IF(dati_pdc!$C1410=1,dati_bdv!$C$2:$C$65536,IF(dati_pdc!$C1410=2,dati_bdv!$D$2:$D$65536,IF(dati_pdc!$C1410=3,dati_bdv!$E$2:$E$65536,IF(dati_pdc!$C1410=4,dati_bdv!$F$2:$F$65536,IF(dati_pdc!$C1410=5,dati_bdv!$G$2:$G$65536,dati_bdv!$H$2:$H$65536))))),$A1410,dati_bdv!L$2:L$65536)","v":0},{"$f":"SUMIF(IF(dati_pdc!$C1410=1,dati_bdv!$C$2:$C$65536,IF(dati_pdc!$C1410=2,dati_bdv!$D$2:$D$65536,IF(dati_pdc!$C1410=3,dati_bdv!$E$2:$E$65536,IF(dati_pdc!$C1410=4,dati_bdv!$F$2:$F$65536,IF(dati_pdc!$C1410=5,dati_bdv!$G$2:$G$65536,dati_bdv!$H$2:$H$65536))))),$A1410,dati_bdv!M$2:M$65536)","v":0},{"$f":"SUMIF(IF(dati_pdc!$C1410=1,dati_bdv!$C$2:$C$65536,IF(dati_pdc!$C1410=2,dati_bdv!$D$2:$D$65536,IF(dati_pdc!$C1410=3,dati_bdv!$E$2:$E$65536,IF(dati_pdc!$C1410=4,dati_bdv!$F$2:$F$65536,IF(dati_pdc!$C1410=5,dati_bdv!$G$2:$G$65536,dati_bdv!$H$2:$H$65536))))),$A1410,dati_bdv!N$2:N$65536)","v":0}]
[{"$f":"dati_pdc!A1411","v":0},{"$f":"SUMIF(IF(dati_pdc!$C1411=1,dati_bdv!$C$2:$C$65536,IF(dati_pdc!$C1411=2,dati_bdv!$D$2:$D$65536,IF(dati_pdc!$C1411=3,dati_bdv!$E$2:$E$65536,IF(dati_pdc!$C1411=4,dati_bdv!$F$2:$F$65536,IF(dati_pdc!$C1411=5,dati_bdv!$G$2:$G$65536,dati_bdv!$H$2:$H$65536))))),$A1411,dati_bdv!J$2:J$65536)","v":0},{"$f":"SUMIF(IF(dati_pdc!$C1411=1,dati_bdv!$C$2:$C$65536,IF(dati_pdc!$C1411=2,dati_bdv!$D$2:$D$65536,IF(dati_pdc!$C1411=3,dati_bdv!$E$2:$E$65536,IF(dati_pdc!$C1411=4,dati_bdv!$F$2:$F$65536,IF(dati_pdc!$C1411=5,dati_bdv!$G$2:$G$65536,dati_bdv!$H$2:$H$65536))))),$A1411,dati_bdv!K$2:K$65536)","v":0},{"$f":"SUMIF(IF(dati_pdc!$C1411=1,dati_bdv!$C$2:$C$65536,IF(dati_pdc!$C1411=2,dati_bdv!$D$2:$D$65536,IF(dati_pdc!$C1411=3,dati_bdv!$E$2:$E$65536,IF(dati_pdc!$C1411=4,dati_bdv!$F$2:$F$65536,IF(dati_pdc!$C1411=5,dati_bdv!$G$2:$G$65536,dati_bdv!$H$2:$H$65536))))),$A1411,dati_bdv!L$2:L$65536)","v":0},{"$f":"SUMIF(IF(dati_pdc!$C1411=1,dati_bdv!$C$2:$C$65536,IF(dati_pdc!$C1411=2,dati_bdv!$D$2:$D$65536,IF(dati_pdc!$C1411=3,dati_bdv!$E$2:$E$65536,IF(dati_pdc!$C1411=4,dati_bdv!$F$2:$F$65536,IF(dati_pdc!$C1411=5,dati_bdv!$G$2:$G$65536,dati_bdv!$H$2:$H$65536))))),$A1411,dati_bdv!M$2:M$65536)","v":0},{"$f":"SUMIF(IF(dati_pdc!$C1411=1,dati_bdv!$C$2:$C$65536,IF(dati_pdc!$C1411=2,dati_bdv!$D$2:$D$65536,IF(dati_pdc!$C1411=3,dati_bdv!$E$2:$E$65536,IF(dati_pdc!$C1411=4,dati_bdv!$F$2:$F$65536,IF(dati_pdc!$C1411=5,dati_bdv!$G$2:$G$65536,dati_bdv!$H$2:$H$65536))))),$A1411,dati_bdv!N$2:N$65536)","v":0}]
[{"$f":"dati_pdc!A1412","v":0},{"$f":"SUMIF(IF(dati_pdc!$C1412=1,dati_bdv!$C$2:$C$65536,IF(dati_pdc!$C1412=2,dati_bdv!$D$2:$D$65536,IF(dati_pdc!$C1412=3,dati_bdv!$E$2:$E$65536,IF(dati_pdc!$C1412=4,dati_bdv!$F$2:$F$65536,IF(dati_pdc!$C1412=5,dati_bdv!$G$2:$G$65536,dati_bdv!$H$2:$H$65536))))),$A1412,dati_bdv!J$2:J$65536)","v":0},{"$f":"SUMIF(IF(dati_pdc!$C1412=1,dati_bdv!$C$2:$C$65536,IF(dati_pdc!$C1412=2,dati_bdv!$D$2:$D$65536,IF(dati_pdc!$C1412=3,dati_bdv!$E$2:$E$65536,IF(dati_pdc!$C1412=4,dati_bdv!$F$2:$F$65536,IF(dati_pdc!$C1412=5,dati_bdv!$G$2:$G$65536,dati_bdv!$H$2:$H$65536))))),$A1412,dati_bdv!K$2:K$65536)","v":0},{"$f":"SUMIF(IF(dati_pdc!$C1412=1,dati_bdv!$C$2:$C$65536,IF(dati_pdc!$C1412=2,dati_bdv!$D$2:$D$65536,IF(dati_pdc!$C1412=3,dati_bdv!$E$2:$E$65536,IF(dati_pdc!$C1412=4,dati_bdv!$F$2:$F$65536,IF(dati_pdc!$C1412=5,dati_bdv!$G$2:$G$65536,dati_bdv!$H$2:$H$65536))))),$A1412,dati_bdv!L$2:L$65536)","v":0},{"$f":"SUMIF(IF(dati_pdc!$C1412=1,dati_bdv!$C$2:$C$65536,IF(dati_pdc!$C1412=2,dati_bdv!$D$2:$D$65536,IF(dati_pdc!$C1412=3,dati_bdv!$E$2:$E$65536,IF(dati_pdc!$C1412=4,dati_bdv!$F$2:$F$65536,IF(dati_pdc!$C1412=5,dati_bdv!$G$2:$G$65536,dati_bdv!$H$2:$H$65536))))),$A1412,dati_bdv!M$2:M$65536)","v":0},{"$f":"SUMIF(IF(dati_pdc!$C1412=1,dati_bdv!$C$2:$C$65536,IF(dati_pdc!$C1412=2,dati_bdv!$D$2:$D$65536,IF(dati_pdc!$C1412=3,dati_bdv!$E$2:$E$65536,IF(dati_pdc!$C1412=4,dati_bdv!$F$2:$F$65536,IF(dati_pdc!$C1412=5,dati_bdv!$G$2:$G$65536,dati_bdv!$H$2:$H$65536))))),$A1412,dati_bdv!N$2:N$65536)","v":0}]
[{"$f":"dati_pdc!A1413","v":0},{"$f":"SUMIF(IF(dati_pdc!$C1413=1,dati_bdv!$C$2:$C$65536,IF(dati_pdc!$C1413=2,dati_bdv!$D$2:$D$65536,IF(dati_pdc!$C1413=3,dati_bdv!$E$2:$E$65536,IF(dati_pdc!$C1413=4,dati_bdv!$F$2:$F$65536,IF(dati_pdc!$C1413=5,dati_bdv!$G$2:$G$65536,dati_bdv!$H$2:$H$65536))))),$A1413,dati_bdv!J$2:J$65536)","v":0},{"$f":"SUMIF(IF(dati_pdc!$C1413=1,dati_bdv!$C$2:$C$65536,IF(dati_pdc!$C1413=2,dati_bdv!$D$2:$D$65536,IF(dati_pdc!$C1413=3,dati_bdv!$E$2:$E$65536,IF(dati_pdc!$C1413=4,dati_bdv!$F$2:$F$65536,IF(dati_pdc!$C1413=5,dati_bdv!$G$2:$G$65536,dati_bdv!$H$2:$H$65536))))),$A1413,dati_bdv!K$2:K$65536)","v":0},{"$f":"SUMIF(IF(dati_pdc!$C1413=1,dati_bdv!$C$2:$C$65536,IF(dati_pdc!$C1413=2,dati_bdv!$D$2:$D$65536,IF(dati_pdc!$C1413=3,dati_bdv!$E$2:$E$65536,IF(dati_pdc!$C1413=4,dati_bdv!$F$2:$F$65536,IF(dati_pdc!$C1413=5,dati_bdv!$G$2:$G$65536,dati_bdv!$H$2:$H$65536))))),$A1413,dati_bdv!L$2:L$65536)","v":0},{"$f":"SUMIF(IF(dati_pdc!$C1413=1,dati_bdv!$C$2:$C$65536,IF(dati_pdc!$C1413=2,dati_bdv!$D$2:$D$65536,IF(dati_pdc!$C1413=3,dati_bdv!$E$2:$E$65536,IF(dati_pdc!$C1413=4,dati_bdv!$F$2:$F$65536,IF(dati_pdc!$C1413=5,dati_bdv!$G$2:$G$65536,dati_bdv!$H$2:$H$65536))))),$A1413,dati_bdv!M$2:M$65536)","v":0},{"$f":"SUMIF(IF(dati_pdc!$C1413=1,dati_bdv!$C$2:$C$65536,IF(dati_pdc!$C1413=2,dati_bdv!$D$2:$D$65536,IF(dati_pdc!$C1413=3,dati_bdv!$E$2:$E$65536,IF(dati_pdc!$C1413=4,dati_bdv!$F$2:$F$65536,IF(dati_pdc!$C1413=5,dati_bdv!$G$2:$G$65536,dati_bdv!$H$2:$H$65536))))),$A1413,dati_bdv!N$2:N$65536)","v":0}]
[{"$f":"dati_pdc!A1414","v":0},{"$f":"SUMIF(IF(dati_pdc!$C1414=1,dati_bdv!$C$2:$C$65536,IF(dati_pdc!$C1414=2,dati_bdv!$D$2:$D$65536,IF(dati_pdc!$C1414=3,dati_bdv!$E$2:$E$65536,IF(dati_pdc!$C1414=4,dati_bdv!$F$2:$F$65536,IF(dati_pdc!$C1414=5,dati_bdv!$G$2:$G$65536,dati_bdv!$H$2:$H$65536))))),$A1414,dati_bdv!J$2:J$65536)","v":0},{"$f":"SUMIF(IF(dati_pdc!$C1414=1,dati_bdv!$C$2:$C$65536,IF(dati_pdc!$C1414=2,dati_bdv!$D$2:$D$65536,IF(dati_pdc!$C1414=3,dati_bdv!$E$2:$E$65536,IF(dati_pdc!$C1414=4,dati_bdv!$F$2:$F$65536,IF(dati_pdc!$C1414=5,dati_bdv!$G$2:$G$65536,dati_bdv!$H$2:$H$65536))))),$A1414,dati_bdv!K$2:K$65536)","v":0},{"$f":"SUMIF(IF(dati_pdc!$C1414=1,dati_bdv!$C$2:$C$65536,IF(dati_pdc!$C1414=2,dati_bdv!$D$2:$D$65536,IF(dati_pdc!$C1414=3,dati_bdv!$E$2:$E$65536,IF(dati_pdc!$C1414=4,dati_bdv!$F$2:$F$65536,IF(dati_pdc!$C1414=5,dati_bdv!$G$2:$G$65536,dati_bdv!$H$2:$H$65536))))),$A1414,dati_bdv!L$2:L$65536)","v":0},{"$f":"SUMIF(IF(dati_pdc!$C1414=1,dati_bdv!$C$2:$C$65536,IF(dati_pdc!$C1414=2,dati_bdv!$D$2:$D$65536,IF(dati_pdc!$C1414=3,dati_bdv!$E$2:$E$65536,IF(dati_pdc!$C1414=4,dati_bdv!$F$2:$F$65536,IF(dati_pdc!$C1414=5,dati_bdv!$G$2:$G$65536,dati_bdv!$H$2:$H$65536))))),$A1414,dati_bdv!M$2:M$65536)","v":0},{"$f":"SUMIF(IF(dati_pdc!$C1414=1,dati_bdv!$C$2:$C$65536,IF(dati_pdc!$C1414=2,dati_bdv!$D$2:$D$65536,IF(dati_pdc!$C1414=3,dati_bdv!$E$2:$E$65536,IF(dati_pdc!$C1414=4,dati_bdv!$F$2:$F$65536,IF(dati_pdc!$C1414=5,dati_bdv!$G$2:$G$65536,dati_bdv!$H$2:$H$65536))))),$A1414,dati_bdv!N$2:N$65536)","v":0}]
[{"$f":"dati_pdc!A1415","v":0},{"$f":"SUMIF(IF(dati_pdc!$C1415=1,dati_bdv!$C$2:$C$65536,IF(dati_pdc!$C1415=2,dati_bdv!$D$2:$D$65536,IF(dati_pdc!$C1415=3,dati_bdv!$E$2:$E$65536,IF(dati_pdc!$C1415=4,dati_bdv!$F$2:$F$65536,IF(dati_pdc!$C1415=5,dati_bdv!$G$2:$G$65536,dati_bdv!$H$2:$H$65536))))),$A1415,dati_bdv!J$2:J$65536)","v":0},{"$f":"SUMIF(IF(dati_pdc!$C1415=1,dati_bdv!$C$2:$C$65536,IF(dati_pdc!$C1415=2,dati_bdv!$D$2:$D$65536,IF(dati_pdc!$C1415=3,dati_bdv!$E$2:$E$65536,IF(dati_pdc!$C1415=4,dati_bdv!$F$2:$F$65536,IF(dati_pdc!$C1415=5,dati_bdv!$G$2:$G$65536,dati_bdv!$H$2:$H$65536))))),$A1415,dati_bdv!K$2:K$65536)","v":0},{"$f":"SUMIF(IF(dati_pdc!$C1415=1,dati_bdv!$C$2:$C$65536,IF(dati_pdc!$C1415=2,dati_bdv!$D$2:$D$65536,IF(dati_pdc!$C1415=3,dati_bdv!$E$2:$E$65536,IF(dati_pdc!$C1415=4,dati_bdv!$F$2:$F$65536,IF(dati_pdc!$C1415=5,dati_bdv!$G$2:$G$65536,dati_bdv!$H$2:$H$65536))))),$A1415,dati_bdv!L$2:L$65536)","v":0},{"$f":"SUMIF(IF(dati_pdc!$C1415=1,dati_bdv!$C$2:$C$65536,IF(dati_pdc!$C1415=2,dati_bdv!$D$2:$D$65536,IF(dati_pdc!$C1415=3,dati_bdv!$E$2:$E$65536,IF(dati_pdc!$C1415=4,dati_bdv!$F$2:$F$65536,IF(dati_pdc!$C1415=5,dati_bdv!$G$2:$G$65536,dati_bdv!$H$2:$H$65536))))),$A1415,dati_bdv!M$2:M$65536)","v":0},{"$f":"SUMIF(IF(dati_pdc!$C1415=1,dati_bdv!$C$2:$C$65536,IF(dati_pdc!$C1415=2,dati_bdv!$D$2:$D$65536,IF(dati_pdc!$C1415=3,dati_bdv!$E$2:$E$65536,IF(dati_pdc!$C1415=4,dati_bdv!$F$2:$F$65536,IF(dati_pdc!$C1415=5,dati_bdv!$G$2:$G$65536,dati_bdv!$H$2:$H$65536))))),$A1415,dati_bdv!N$2:N$65536)","v":0}]
[{"$f":"dati_pdc!A1416","v":0},{"$f":"SUMIF(IF(dati_pdc!$C1416=1,dati_bdv!$C$2:$C$65536,IF(dati_pdc!$C1416=2,dati_bdv!$D$2:$D$65536,IF(dati_pdc!$C1416=3,dati_bdv!$E$2:$E$65536,IF(dati_pdc!$C1416=4,dati_bdv!$F$2:$F$65536,IF(dati_pdc!$C1416=5,dati_bdv!$G$2:$G$65536,dati_bdv!$H$2:$H$65536))))),$A1416,dati_bdv!J$2:J$65536)","v":0},{"$f":"SUMIF(IF(dati_pdc!$C1416=1,dati_bdv!$C$2:$C$65536,IF(dati_pdc!$C1416=2,dati_bdv!$D$2:$D$65536,IF(dati_pdc!$C1416=3,dati_bdv!$E$2:$E$65536,IF(dati_pdc!$C1416=4,dati_bdv!$F$2:$F$65536,IF(dati_pdc!$C1416=5,dati_bdv!$G$2:$G$65536,dati_bdv!$H$2:$H$65536))))),$A1416,dati_bdv!K$2:K$65536)","v":0},{"$f":"SUMIF(IF(dati_pdc!$C1416=1,dati_bdv!$C$2:$C$65536,IF(dati_pdc!$C1416=2,dati_bdv!$D$2:$D$65536,IF(dati_pdc!$C1416=3,dati_bdv!$E$2:$E$65536,IF(dati_pdc!$C1416=4,dati_bdv!$F$2:$F$65536,IF(dati_pdc!$C1416=5,dati_bdv!$G$2:$G$65536,dati_bdv!$H$2:$H$65536))))),$A1416,dati_bdv!L$2:L$65536)","v":0},{"$f":"SUMIF(IF(dati_pdc!$C1416=1,dati_bdv!$C$2:$C$65536,IF(dati_pdc!$C1416=2,dati_bdv!$D$2:$D$65536,IF(dati_pdc!$C1416=3,dati_bdv!$E$2:$E$65536,IF(dati_pdc!$C1416=4,dati_bdv!$F$2:$F$65536,IF(dati_pdc!$C1416=5,dati_bdv!$G$2:$G$65536,dati_bdv!$H$2:$H$65536))))),$A1416,dati_bdv!M$2:M$65536)","v":0},{"$f":"SUMIF(IF(dati_pdc!$C1416=1,dati_bdv!$C$2:$C$65536,IF(dati_pdc!$C1416=2,dati_bdv!$D$2:$D$65536,IF(dati_pdc!$C1416=3,dati_bdv!$E$2:$E$65536,IF(dati_pdc!$C1416=4,dati_bdv!$F$2:$F$65536,IF(dati_pdc!$C1416=5,dati_bdv!$G$2:$G$65536,dati_bdv!$H$2:$H$65536))))),$A1416,dati_bdv!N$2:N$65536)","v":0}]
[{"$f":"dati_pdc!A1417","v":0},{"$f":"SUMIF(IF(dati_pdc!$C1417=1,dati_bdv!$C$2:$C$65536,IF(dati_pdc!$C1417=2,dati_bdv!$D$2:$D$65536,IF(dati_pdc!$C1417=3,dati_bdv!$E$2:$E$65536,IF(dati_pdc!$C1417=4,dati_bdv!$F$2:$F$65536,IF(dati_pdc!$C1417=5,dati_bdv!$G$2:$G$65536,dati_bdv!$H$2:$H$65536))))),$A1417,dati_bdv!J$2:J$65536)","v":0},{"$f":"SUMIF(IF(dati_pdc!$C1417=1,dati_bdv!$C$2:$C$65536,IF(dati_pdc!$C1417=2,dati_bdv!$D$2:$D$65536,IF(dati_pdc!$C1417=3,dati_bdv!$E$2:$E$65536,IF(dati_pdc!$C1417=4,dati_bdv!$F$2:$F$65536,IF(dati_pdc!$C1417=5,dati_bdv!$G$2:$G$65536,dati_bdv!$H$2:$H$65536))))),$A1417,dati_bdv!K$2:K$65536)","v":0},{"$f":"SUMIF(IF(dati_pdc!$C1417=1,dati_bdv!$C$2:$C$65536,IF(dati_pdc!$C1417=2,dati_bdv!$D$2:$D$65536,IF(dati_pdc!$C1417=3,dati_bdv!$E$2:$E$65536,IF(dati_pdc!$C1417=4,dati_bdv!$F$2:$F$65536,IF(dati_pdc!$C1417=5,dati_bdv!$G$2:$G$65536,dati_bdv!$H$2:$H$65536))))),$A1417,dati_bdv!L$2:L$65536)","v":0},{"$f":"SUMIF(IF(dati_pdc!$C1417=1,dati_bdv!$C$2:$C$65536,IF(dati_pdc!$C1417=2,dati_bdv!$D$2:$D$65536,IF(dati_pdc!$C1417=3,dati_bdv!$E$2:$E$65536,IF(dati_pdc!$C1417=4,dati_bdv!$F$2:$F$65536,IF(dati_pdc!$C1417=5,dati_bdv!$G$2:$G$65536,dati_bdv!$H$2:$H$65536))))),$A1417,dati_bdv!M$2:M$65536)","v":0},{"$f":"SUMIF(IF(dati_pdc!$C1417=1,dati_bdv!$C$2:$C$65536,IF(dati_pdc!$C1417=2,dati_bdv!$D$2:$D$65536,IF(dati_pdc!$C1417=3,dati_bdv!$E$2:$E$65536,IF(dati_pdc!$C1417=4,dati_bdv!$F$2:$F$65536,IF(dati_pdc!$C1417=5,dati_bdv!$G$2:$G$65536,dati_bdv!$H$2:$H$65536))))),$A1417,dati_bdv!N$2:N$65536)","v":0}]
[{"$f":"dati_pdc!A1418","v":0},{"$f":"SUMIF(IF(dati_pdc!$C1418=1,dati_bdv!$C$2:$C$65536,IF(dati_pdc!$C1418=2,dati_bdv!$D$2:$D$65536,IF(dati_pdc!$C1418=3,dati_bdv!$E$2:$E$65536,IF(dati_pdc!$C1418=4,dati_bdv!$F$2:$F$65536,IF(dati_pdc!$C1418=5,dati_bdv!$G$2:$G$65536,dati_bdv!$H$2:$H$65536))))),$A1418,dati_bdv!J$2:J$65536)","v":0},{"$f":"SUMIF(IF(dati_pdc!$C1418=1,dati_bdv!$C$2:$C$65536,IF(dati_pdc!$C1418=2,dati_bdv!$D$2:$D$65536,IF(dati_pdc!$C1418=3,dati_bdv!$E$2:$E$65536,IF(dati_pdc!$C1418=4,dati_bdv!$F$2:$F$65536,IF(dati_pdc!$C1418=5,dati_bdv!$G$2:$G$65536,dati_bdv!$H$2:$H$65536))))),$A1418,dati_bdv!K$2:K$65536)","v":0},{"$f":"SUMIF(IF(dati_pdc!$C1418=1,dati_bdv!$C$2:$C$65536,IF(dati_pdc!$C1418=2,dati_bdv!$D$2:$D$65536,IF(dati_pdc!$C1418=3,dati_bdv!$E$2:$E$65536,IF(dati_pdc!$C1418=4,dati_bdv!$F$2:$F$65536,IF(dati_pdc!$C1418=5,dati_bdv!$G$2:$G$65536,dati_bdv!$H$2:$H$65536))))),$A1418,dati_bdv!L$2:L$65536)","v":0},{"$f":"SUMIF(IF(dati_pdc!$C1418=1,dati_bdv!$C$2:$C$65536,IF(dati_pdc!$C1418=2,dati_bdv!$D$2:$D$65536,IF(dati_pdc!$C1418=3,dati_bdv!$E$2:$E$65536,IF(dati_pdc!$C1418=4,dati_bdv!$F$2:$F$65536,IF(dati_pdc!$C1418=5,dati_bdv!$G$2:$G$65536,dati_bdv!$H$2:$H$65536))))),$A1418,dati_bdv!M$2:M$65536)","v":0},{"$f":"SUMIF(IF(dati_pdc!$C1418=1,dati_bdv!$C$2:$C$65536,IF(dati_pdc!$C1418=2,dati_bdv!$D$2:$D$65536,IF(dati_pdc!$C1418=3,dati_bdv!$E$2:$E$65536,IF(dati_pdc!$C1418=4,dati_bdv!$F$2:$F$65536,IF(dati_pdc!$C1418=5,dati_bdv!$G$2:$G$65536,dati_bdv!$H$2:$H$65536))))),$A1418,dati_bdv!N$2:N$65536)","v":0}]
[{"$f":"dati_pdc!A1419","v":0},{"$f":"SUMIF(IF(dati_pdc!$C1419=1,dati_bdv!$C$2:$C$65536,IF(dati_pdc!$C1419=2,dati_bdv!$D$2:$D$65536,IF(dati_pdc!$C1419=3,dati_bdv!$E$2:$E$65536,IF(dati_pdc!$C1419=4,dati_bdv!$F$2:$F$65536,IF(dati_pdc!$C1419=5,dati_bdv!$G$2:$G$65536,dati_bdv!$H$2:$H$65536))))),$A1419,dati_bdv!J$2:J$65536)","v":0},{"$f":"SUMIF(IF(dati_pdc!$C1419=1,dati_bdv!$C$2:$C$65536,IF(dati_pdc!$C1419=2,dati_bdv!$D$2:$D$65536,IF(dati_pdc!$C1419=3,dati_bdv!$E$2:$E$65536,IF(dati_pdc!$C1419=4,dati_bdv!$F$2:$F$65536,IF(dati_pdc!$C1419=5,dati_bdv!$G$2:$G$65536,dati_bdv!$H$2:$H$65536))))),$A1419,dati_bdv!K$2:K$65536)","v":0},{"$f":"SUMIF(IF(dati_pdc!$C1419=1,dati_bdv!$C$2:$C$65536,IF(dati_pdc!$C1419=2,dati_bdv!$D$2:$D$65536,IF(dati_pdc!$C1419=3,dati_bdv!$E$2:$E$65536,IF(dati_pdc!$C1419=4,dati_bdv!$F$2:$F$65536,IF(dati_pdc!$C1419=5,dati_bdv!$G$2:$G$65536,dati_bdv!$H$2:$H$65536))))),$A1419,dati_bdv!L$2:L$65536)","v":0},{"$f":"SUMIF(IF(dati_pdc!$C1419=1,dati_bdv!$C$2:$C$65536,IF(dati_pdc!$C1419=2,dati_bdv!$D$2:$D$65536,IF(dati_pdc!$C1419=3,dati_bdv!$E$2:$E$65536,IF(dati_pdc!$C1419=4,dati_bdv!$F$2:$F$65536,IF(dati_pdc!$C1419=5,dati_bdv!$G$2:$G$65536,dati_bdv!$H$2:$H$65536))))),$A1419,dati_bdv!M$2:M$65536)","v":0},{"$f":"SUMIF(IF(dati_pdc!$C1419=1,dati_bdv!$C$2:$C$65536,IF(dati_pdc!$C1419=2,dati_bdv!$D$2:$D$65536,IF(dati_pdc!$C1419=3,dati_bdv!$E$2:$E$65536,IF(dati_pdc!$C1419=4,dati_bdv!$F$2:$F$65536,IF(dati_pdc!$C1419=5,dati_bdv!$G$2:$G$65536,dati_bdv!$H$2:$H$65536))))),$A1419,dati_bdv!N$2:N$65536)","v":0}]
[{"$f":"dati_pdc!A1420","v":0},{"$f":"SUMIF(IF(dati_pdc!$C1420=1,dati_bdv!$C$2:$C$65536,IF(dati_pdc!$C1420=2,dati_bdv!$D$2:$D$65536,IF(dati_pdc!$C1420=3,dati_bdv!$E$2:$E$65536,IF(dati_pdc!$C1420=4,dati_bdv!$F$2:$F$65536,IF(dati_pdc!$C1420=5,dati_bdv!$G$2:$G$65536,dati_bdv!$H$2:$H$65536))))),$A1420,dati_bdv!J$2:J$65536)","v":0},{"$f":"SUMIF(IF(dati_pdc!$C1420=1,dati_bdv!$C$2:$C$65536,IF(dati_pdc!$C1420=2,dati_bdv!$D$2:$D$65536,IF(dati_pdc!$C1420=3,dati_bdv!$E$2:$E$65536,IF(dati_pdc!$C1420=4,dati_bdv!$F$2:$F$65536,IF(dati_pdc!$C1420=5,dati_bdv!$G$2:$G$65536,dati_bdv!$H$2:$H$65536))))),$A1420,dati_bdv!K$2:K$65536)","v":0},{"$f":"SUMIF(IF(dati_pdc!$C1420=1,dati_bdv!$C$2:$C$65536,IF(dati_pdc!$C1420=2,dati_bdv!$D$2:$D$65536,IF(dati_pdc!$C1420=3,dati_bdv!$E$2:$E$65536,IF(dati_pdc!$C1420=4,dati_bdv!$F$2:$F$65536,IF(dati_pdc!$C1420=5,dati_bdv!$G$2:$G$65536,dati_bdv!$H$2:$H$65536))))),$A1420,dati_bdv!L$2:L$65536)","v":0},{"$f":"SUMIF(IF(dati_pdc!$C1420=1,dati_bdv!$C$2:$C$65536,IF(dati_pdc!$C1420=2,dati_bdv!$D$2:$D$65536,IF(dati_pdc!$C1420=3,dati_bdv!$E$2:$E$65536,IF(dati_pdc!$C1420=4,dati_bdv!$F$2:$F$65536,IF(dati_pdc!$C1420=5,dati_bdv!$G$2:$G$65536,dati_bdv!$H$2:$H$65536))))),$A1420,dati_bdv!M$2:M$65536)","v":0},{"$f":"SUMIF(IF(dati_pdc!$C1420=1,dati_bdv!$C$2:$C$65536,IF(dati_pdc!$C1420=2,dati_bdv!$D$2:$D$65536,IF(dati_pdc!$C1420=3,dati_bdv!$E$2:$E$65536,IF(dati_pdc!$C1420=4,dati_bdv!$F$2:$F$65536,IF(dati_pdc!$C1420=5,dati_bdv!$G$2:$G$65536,dati_bdv!$H$2:$H$65536))))),$A1420,dati_bdv!N$2:N$65536)","v":0}]
[{"$f":"dati_pdc!A1421","v":0},{"$f":"SUMIF(IF(dati_pdc!$C1421=1,dati_bdv!$C$2:$C$65536,IF(dati_pdc!$C1421=2,dati_bdv!$D$2:$D$65536,IF(dati_pdc!$C1421=3,dati_bdv!$E$2:$E$65536,IF(dati_pdc!$C1421=4,dati_bdv!$F$2:$F$65536,IF(dati_pdc!$C1421=5,dati_bdv!$G$2:$G$65536,dati_bdv!$H$2:$H$65536))))),$A1421,dati_bdv!J$2:J$65536)","v":0},{"$f":"SUMIF(IF(dati_pdc!$C1421=1,dati_bdv!$C$2:$C$65536,IF(dati_pdc!$C1421=2,dati_bdv!$D$2:$D$65536,IF(dati_pdc!$C1421=3,dati_bdv!$E$2:$E$65536,IF(dati_pdc!$C1421=4,dati_bdv!$F$2:$F$65536,IF(dati_pdc!$C1421=5,dati_bdv!$G$2:$G$65536,dati_bdv!$H$2:$H$65536))))),$A1421,dati_bdv!K$2:K$65536)","v":0},{"$f":"SUMIF(IF(dati_pdc!$C1421=1,dati_bdv!$C$2:$C$65536,IF(dati_pdc!$C1421=2,dati_bdv!$D$2:$D$65536,IF(dati_pdc!$C1421=3,dati_bdv!$E$2:$E$65536,IF(dati_pdc!$C1421=4,dati_bdv!$F$2:$F$65536,IF(dati_pdc!$C1421=5,dati_bdv!$G$2:$G$65536,dati_bdv!$H$2:$H$65536))))),$A1421,dati_bdv!L$2:L$65536)","v":0},{"$f":"SUMIF(IF(dati_pdc!$C1421=1,dati_bdv!$C$2:$C$65536,IF(dati_pdc!$C1421=2,dati_bdv!$D$2:$D$65536,IF(dati_pdc!$C1421=3,dati_bdv!$E$2:$E$65536,IF(dati_pdc!$C1421=4,dati_bdv!$F$2:$F$65536,IF(dati_pdc!$C1421=5,dati_bdv!$G$2:$G$65536,dati_bdv!$H$2:$H$65536))))),$A1421,dati_bdv!M$2:M$65536)","v":0},{"$f":"SUMIF(IF(dati_pdc!$C1421=1,dati_bdv!$C$2:$C$65536,IF(dati_pdc!$C1421=2,dati_bdv!$D$2:$D$65536,IF(dati_pdc!$C1421=3,dati_bdv!$E$2:$E$65536,IF(dati_pdc!$C1421=4,dati_bdv!$F$2:$F$65536,IF(dati_pdc!$C1421=5,dati_bdv!$G$2:$G$65536,dati_bdv!$H$2:$H$65536))))),$A1421,dati_bdv!N$2:N$65536)","v":0}]
[{"$f":"dati_pdc!A1422","v":0},{"$f":"SUMIF(IF(dati_pdc!$C1422=1,dati_bdv!$C$2:$C$65536,IF(dati_pdc!$C1422=2,dati_bdv!$D$2:$D$65536,IF(dati_pdc!$C1422=3,dati_bdv!$E$2:$E$65536,IF(dati_pdc!$C1422=4,dati_bdv!$F$2:$F$65536,IF(dati_pdc!$C1422=5,dati_bdv!$G$2:$G$65536,dati_bdv!$H$2:$H$65536))))),$A1422,dati_bdv!J$2:J$65536)","v":0},{"$f":"SUMIF(IF(dati_pdc!$C1422=1,dati_bdv!$C$2:$C$65536,IF(dati_pdc!$C1422=2,dati_bdv!$D$2:$D$65536,IF(dati_pdc!$C1422=3,dati_bdv!$E$2:$E$65536,IF(dati_pdc!$C1422=4,dati_bdv!$F$2:$F$65536,IF(dati_pdc!$C1422=5,dati_bdv!$G$2:$G$65536,dati_bdv!$H$2:$H$65536))))),$A1422,dati_bdv!K$2:K$65536)","v":0},{"$f":"SUMIF(IF(dati_pdc!$C1422=1,dati_bdv!$C$2:$C$65536,IF(dati_pdc!$C1422=2,dati_bdv!$D$2:$D$65536,IF(dati_pdc!$C1422=3,dati_bdv!$E$2:$E$65536,IF(dati_pdc!$C1422=4,dati_bdv!$F$2:$F$65536,IF(dati_pdc!$C1422=5,dati_bdv!$G$2:$G$65536,dati_bdv!$H$2:$H$65536))))),$A1422,dati_bdv!L$2:L$65536)","v":0},{"$f":"SUMIF(IF(dati_pdc!$C1422=1,dati_bdv!$C$2:$C$65536,IF(dati_pdc!$C1422=2,dati_bdv!$D$2:$D$65536,IF(dati_pdc!$C1422=3,dati_bdv!$E$2:$E$65536,IF(dati_pdc!$C1422=4,dati_bdv!$F$2:$F$65536,IF(dati_pdc!$C1422=5,dati_bdv!$G$2:$G$65536,dati_bdv!$H$2:$H$65536))))),$A1422,dati_bdv!M$2:M$65536)","v":0},{"$f":"SUMIF(IF(dati_pdc!$C1422=1,dati_bdv!$C$2:$C$65536,IF(dati_pdc!$C1422=2,dati_bdv!$D$2:$D$65536,IF(dati_pdc!$C1422=3,dati_bdv!$E$2:$E$65536,IF(dati_pdc!$C1422=4,dati_bdv!$F$2:$F$65536,IF(dati_pdc!$C1422=5,dati_bdv!$G$2:$G$65536,dati_bdv!$H$2:$H$65536))))),$A1422,dati_bdv!N$2:N$65536)","v":0}]
[{"$f":"dati_pdc!A1423","v":0},{"$f":"SUMIF(IF(dati_pdc!$C1423=1,dati_bdv!$C$2:$C$65536,IF(dati_pdc!$C1423=2,dati_bdv!$D$2:$D$65536,IF(dati_pdc!$C1423=3,dati_bdv!$E$2:$E$65536,IF(dati_pdc!$C1423=4,dati_bdv!$F$2:$F$65536,IF(dati_pdc!$C1423=5,dati_bdv!$G$2:$G$65536,dati_bdv!$H$2:$H$65536))))),$A1423,dati_bdv!J$2:J$65536)","v":0},{"$f":"SUMIF(IF(dati_pdc!$C1423=1,dati_bdv!$C$2:$C$65536,IF(dati_pdc!$C1423=2,dati_bdv!$D$2:$D$65536,IF(dati_pdc!$C1423=3,dati_bdv!$E$2:$E$65536,IF(dati_pdc!$C1423=4,dati_bdv!$F$2:$F$65536,IF(dati_pdc!$C1423=5,dati_bdv!$G$2:$G$65536,dati_bdv!$H$2:$H$65536))))),$A1423,dati_bdv!K$2:K$65536)","v":0},{"$f":"SUMIF(IF(dati_pdc!$C1423=1,dati_bdv!$C$2:$C$65536,IF(dati_pdc!$C1423=2,dati_bdv!$D$2:$D$65536,IF(dati_pdc!$C1423=3,dati_bdv!$E$2:$E$65536,IF(dati_pdc!$C1423=4,dati_bdv!$F$2:$F$65536,IF(dati_pdc!$C1423=5,dati_bdv!$G$2:$G$65536,dati_bdv!$H$2:$H$65536))))),$A1423,dati_bdv!L$2:L$65536)","v":0},{"$f":"SUMIF(IF(dati_pdc!$C1423=1,dati_bdv!$C$2:$C$65536,IF(dati_pdc!$C1423=2,dati_bdv!$D$2:$D$65536,IF(dati_pdc!$C1423=3,dati_bdv!$E$2:$E$65536,IF(dati_pdc!$C1423=4,dati_bdv!$F$2:$F$65536,IF(dati_pdc!$C1423=5,dati_bdv!$G$2:$G$65536,dati_bdv!$H$2:$H$65536))))),$A1423,dati_bdv!M$2:M$65536)","v":0},{"$f":"SUMIF(IF(dati_pdc!$C1423=1,dati_bdv!$C$2:$C$65536,IF(dati_pdc!$C1423=2,dati_bdv!$D$2:$D$65536,IF(dati_pdc!$C1423=3,dati_bdv!$E$2:$E$65536,IF(dati_pdc!$C1423=4,dati_bdv!$F$2:$F$65536,IF(dati_pdc!$C1423=5,dati_bdv!$G$2:$G$65536,dati_bdv!$H$2:$H$65536))))),$A1423,dati_bdv!N$2:N$65536)","v":0}]
[{"$f":"dati_pdc!A1424","v":0},{"$f":"SUMIF(IF(dati_pdc!$C1424=1,dati_bdv!$C$2:$C$65536,IF(dati_pdc!$C1424=2,dati_bdv!$D$2:$D$65536,IF(dati_pdc!$C1424=3,dati_bdv!$E$2:$E$65536,IF(dati_pdc!$C1424=4,dati_bdv!$F$2:$F$65536,IF(dati_pdc!$C1424=5,dati_bdv!$G$2:$G$65536,dati_bdv!$H$2:$H$65536))))),$A1424,dati_bdv!J$2:J$65536)","v":0},{"$f":"SUMIF(IF(dati_pdc!$C1424=1,dati_bdv!$C$2:$C$65536,IF(dati_pdc!$C1424=2,dati_bdv!$D$2:$D$65536,IF(dati_pdc!$C1424=3,dati_bdv!$E$2:$E$65536,IF(dati_pdc!$C1424=4,dati_bdv!$F$2:$F$65536,IF(dati_pdc!$C1424=5,dati_bdv!$G$2:$G$65536,dati_bdv!$H$2:$H$65536))))),$A1424,dati_bdv!K$2:K$65536)","v":0},{"$f":"SUMIF(IF(dati_pdc!$C1424=1,dati_bdv!$C$2:$C$65536,IF(dati_pdc!$C1424=2,dati_bdv!$D$2:$D$65536,IF(dati_pdc!$C1424=3,dati_bdv!$E$2:$E$65536,IF(dati_pdc!$C1424=4,dati_bdv!$F$2:$F$65536,IF(dati_pdc!$C1424=5,dati_bdv!$G$2:$G$65536,dati_bdv!$H$2:$H$65536))))),$A1424,dati_bdv!L$2:L$65536)","v":0},{"$f":"SUMIF(IF(dati_pdc!$C1424=1,dati_bdv!$C$2:$C$65536,IF(dati_pdc!$C1424=2,dati_bdv!$D$2:$D$65536,IF(dati_pdc!$C1424=3,dati_bdv!$E$2:$E$65536,IF(dati_pdc!$C1424=4,dati_bdv!$F$2:$F$65536,IF(dati_pdc!$C1424=5,dati_bdv!$G$2:$G$65536,dati_bdv!$H$2:$H$65536))))),$A1424,dati_bdv!M$2:M$65536)","v":0},{"$f":"SUMIF(IF(dati_pdc!$C1424=1,dati_bdv!$C$2:$C$65536,IF(dati_pdc!$C1424=2,dati_bdv!$D$2:$D$65536,IF(dati_pdc!$C1424=3,dati_bdv!$E$2:$E$65536,IF(dati_pdc!$C1424=4,dati_bdv!$F$2:$F$65536,IF(dati_pdc!$C1424=5,dati_bdv!$G$2:$G$65536,dati_bdv!$H$2:$H$65536))))),$A1424,dati_bdv!N$2:N$65536)","v":0}]
[{"$f":"dati_pdc!A1425","v":0},{"$f":"SUMIF(IF(dati_pdc!$C1425=1,dati_bdv!$C$2:$C$65536,IF(dati_pdc!$C1425=2,dati_bdv!$D$2:$D$65536,IF(dati_pdc!$C1425=3,dati_bdv!$E$2:$E$65536,IF(dati_pdc!$C1425=4,dati_bdv!$F$2:$F$65536,IF(dati_pdc!$C1425=5,dati_bdv!$G$2:$G$65536,dati_bdv!$H$2:$H$65536))))),$A1425,dati_bdv!J$2:J$65536)","v":0},{"$f":"SUMIF(IF(dati_pdc!$C1425=1,dati_bdv!$C$2:$C$65536,IF(dati_pdc!$C1425=2,dati_bdv!$D$2:$D$65536,IF(dati_pdc!$C1425=3,dati_bdv!$E$2:$E$65536,IF(dati_pdc!$C1425=4,dati_bdv!$F$2:$F$65536,IF(dati_pdc!$C1425=5,dati_bdv!$G$2:$G$65536,dati_bdv!$H$2:$H$65536))))),$A1425,dati_bdv!K$2:K$65536)","v":0},{"$f":"SUMIF(IF(dati_pdc!$C1425=1,dati_bdv!$C$2:$C$65536,IF(dati_pdc!$C1425=2,dati_bdv!$D$2:$D$65536,IF(dati_pdc!$C1425=3,dati_bdv!$E$2:$E$65536,IF(dati_pdc!$C1425=4,dati_bdv!$F$2:$F$65536,IF(dati_pdc!$C1425=5,dati_bdv!$G$2:$G$65536,dati_bdv!$H$2:$H$65536))))),$A1425,dati_bdv!L$2:L$65536)","v":0},{"$f":"SUMIF(IF(dati_pdc!$C1425=1,dati_bdv!$C$2:$C$65536,IF(dati_pdc!$C1425=2,dati_bdv!$D$2:$D$65536,IF(dati_pdc!$C1425=3,dati_bdv!$E$2:$E$65536,IF(dati_pdc!$C1425=4,dati_bdv!$F$2:$F$65536,IF(dati_pdc!$C1425=5,dati_bdv!$G$2:$G$65536,dati_bdv!$H$2:$H$65536))))),$A1425,dati_bdv!M$2:M$65536)","v":0},{"$f":"SUMIF(IF(dati_pdc!$C1425=1,dati_bdv!$C$2:$C$65536,IF(dati_pdc!$C1425=2,dati_bdv!$D$2:$D$65536,IF(dati_pdc!$C1425=3,dati_bdv!$E$2:$E$65536,IF(dati_pdc!$C1425=4,dati_bdv!$F$2:$F$65536,IF(dati_pdc!$C1425=5,dati_bdv!$G$2:$G$65536,dati_bdv!$H$2:$H$65536))))),$A1425,dati_bdv!N$2:N$65536)","v":0}]
[{"$f":"dati_pdc!A1426","v":0},{"$f":"SUMIF(IF(dati_pdc!$C1426=1,dati_bdv!$C$2:$C$65536,IF(dati_pdc!$C1426=2,dati_bdv!$D$2:$D$65536,IF(dati_pdc!$C1426=3,dati_bdv!$E$2:$E$65536,IF(dati_pdc!$C1426=4,dati_bdv!$F$2:$F$65536,IF(dati_pdc!$C1426=5,dati_bdv!$G$2:$G$65536,dati_bdv!$H$2:$H$65536))))),$A1426,dati_bdv!J$2:J$65536)","v":0},{"$f":"SUMIF(IF(dati_pdc!$C1426=1,dati_bdv!$C$2:$C$65536,IF(dati_pdc!$C1426=2,dati_bdv!$D$2:$D$65536,IF(dati_pdc!$C1426=3,dati_bdv!$E$2:$E$65536,IF(dati_pdc!$C1426=4,dati_bdv!$F$2:$F$65536,IF(dati_pdc!$C1426=5,dati_bdv!$G$2:$G$65536,dati_bdv!$H$2:$H$65536))))),$A1426,dati_bdv!K$2:K$65536)","v":0},{"$f":"SUMIF(IF(dati_pdc!$C1426=1,dati_bdv!$C$2:$C$65536,IF(dati_pdc!$C1426=2,dati_bdv!$D$2:$D$65536,IF(dati_pdc!$C1426=3,dati_bdv!$E$2:$E$65536,IF(dati_pdc!$C1426=4,dati_bdv!$F$2:$F$65536,IF(dati_pdc!$C1426=5,dati_bdv!$G$2:$G$65536,dati_bdv!$H$2:$H$65536))))),$A1426,dati_bdv!L$2:L$65536)","v":0},{"$f":"SUMIF(IF(dati_pdc!$C1426=1,dati_bdv!$C$2:$C$65536,IF(dati_pdc!$C1426=2,dati_bdv!$D$2:$D$65536,IF(dati_pdc!$C1426=3,dati_bdv!$E$2:$E$65536,IF(dati_pdc!$C1426=4,dati_bdv!$F$2:$F$65536,IF(dati_pdc!$C1426=5,dati_bdv!$G$2:$G$65536,dati_bdv!$H$2:$H$65536))))),$A1426,dati_bdv!M$2:M$65536)","v":0},{"$f":"SUMIF(IF(dati_pdc!$C1426=1,dati_bdv!$C$2:$C$65536,IF(dati_pdc!$C1426=2,dati_bdv!$D$2:$D$65536,IF(dati_pdc!$C1426=3,dati_bdv!$E$2:$E$65536,IF(dati_pdc!$C1426=4,dati_bdv!$F$2:$F$65536,IF(dati_pdc!$C1426=5,dati_bdv!$G$2:$G$65536,dati_bdv!$H$2:$H$65536))))),$A1426,dati_bdv!N$2:N$65536)","v":0}]
[{"$f":"dati_pdc!A1427","v":0},{"$f":"SUMIF(IF(dati_pdc!$C1427=1,dati_bdv!$C$2:$C$65536,IF(dati_pdc!$C1427=2,dati_bdv!$D$2:$D$65536,IF(dati_pdc!$C1427=3,dati_bdv!$E$2:$E$65536,IF(dati_pdc!$C1427=4,dati_bdv!$F$2:$F$65536,IF(dati_pdc!$C1427=5,dati_bdv!$G$2:$G$65536,dati_bdv!$H$2:$H$65536))))),$A1427,dati_bdv!J$2:J$65536)","v":0},{"$f":"SUMIF(IF(dati_pdc!$C1427=1,dati_bdv!$C$2:$C$65536,IF(dati_pdc!$C1427=2,dati_bdv!$D$2:$D$65536,IF(dati_pdc!$C1427=3,dati_bdv!$E$2:$E$65536,IF(dati_pdc!$C1427=4,dati_bdv!$F$2:$F$65536,IF(dati_pdc!$C1427=5,dati_bdv!$G$2:$G$65536,dati_bdv!$H$2:$H$65536))))),$A1427,dati_bdv!K$2:K$65536)","v":0},{"$f":"SUMIF(IF(dati_pdc!$C1427=1,dati_bdv!$C$2:$C$65536,IF(dati_pdc!$C1427=2,dati_bdv!$D$2:$D$65536,IF(dati_pdc!$C1427=3,dati_bdv!$E$2:$E$65536,IF(dati_pdc!$C1427=4,dati_bdv!$F$2:$F$65536,IF(dati_pdc!$C1427=5,dati_bdv!$G$2:$G$65536,dati_bdv!$H$2:$H$65536))))),$A1427,dati_bdv!L$2:L$65536)","v":0},{"$f":"SUMIF(IF(dati_pdc!$C1427=1,dati_bdv!$C$2:$C$65536,IF(dati_pdc!$C1427=2,dati_bdv!$D$2:$D$65536,IF(dati_pdc!$C1427=3,dati_bdv!$E$2:$E$65536,IF(dati_pdc!$C1427=4,dati_bdv!$F$2:$F$65536,IF(dati_pdc!$C1427=5,dati_bdv!$G$2:$G$65536,dati_bdv!$H$2:$H$65536))))),$A1427,dati_bdv!M$2:M$65536)","v":0},{"$f":"SUMIF(IF(dati_pdc!$C1427=1,dati_bdv!$C$2:$C$65536,IF(dati_pdc!$C1427=2,dati_bdv!$D$2:$D$65536,IF(dati_pdc!$C1427=3,dati_bdv!$E$2:$E$65536,IF(dati_pdc!$C1427=4,dati_bdv!$F$2:$F$65536,IF(dati_pdc!$C1427=5,dati_bdv!$G$2:$G$65536,dati_bdv!$H$2:$H$65536))))),$A1427,dati_bdv!N$2:N$65536)","v":0}]
[{"$f":"dati_pdc!A1428","v":0},{"$f":"SUMIF(IF(dati_pdc!$C1428=1,dati_bdv!$C$2:$C$65536,IF(dati_pdc!$C1428=2,dati_bdv!$D$2:$D$65536,IF(dati_pdc!$C1428=3,dati_bdv!$E$2:$E$65536,IF(dati_pdc!$C1428=4,dati_bdv!$F$2:$F$65536,IF(dati_pdc!$C1428=5,dati_bdv!$G$2:$G$65536,dati_bdv!$H$2:$H$65536))))),$A1428,dati_bdv!J$2:J$65536)","v":0},{"$f":"SUMIF(IF(dati_pdc!$C1428=1,dati_bdv!$C$2:$C$65536,IF(dati_pdc!$C1428=2,dati_bdv!$D$2:$D$65536,IF(dati_pdc!$C1428=3,dati_bdv!$E$2:$E$65536,IF(dati_pdc!$C1428=4,dati_bdv!$F$2:$F$65536,IF(dati_pdc!$C1428=5,dati_bdv!$G$2:$G$65536,dati_bdv!$H$2:$H$65536))))),$A1428,dati_bdv!K$2:K$65536)","v":0},{"$f":"SUMIF(IF(dati_pdc!$C1428=1,dati_bdv!$C$2:$C$65536,IF(dati_pdc!$C1428=2,dati_bdv!$D$2:$D$65536,IF(dati_pdc!$C1428=3,dati_bdv!$E$2:$E$65536,IF(dati_pdc!$C1428=4,dati_bdv!$F$2:$F$65536,IF(dati_pdc!$C1428=5,dati_bdv!$G$2:$G$65536,dati_bdv!$H$2:$H$65536))))),$A1428,dati_bdv!L$2:L$65536)","v":0},{"$f":"SUMIF(IF(dati_pdc!$C1428=1,dati_bdv!$C$2:$C$65536,IF(dati_pdc!$C1428=2,dati_bdv!$D$2:$D$65536,IF(dati_pdc!$C1428=3,dati_bdv!$E$2:$E$65536,IF(dati_pdc!$C1428=4,dati_bdv!$F$2:$F$65536,IF(dati_pdc!$C1428=5,dati_bdv!$G$2:$G$65536,dati_bdv!$H$2:$H$65536))))),$A1428,dati_bdv!M$2:M$65536)","v":0},{"$f":"SUMIF(IF(dati_pdc!$C1428=1,dati_bdv!$C$2:$C$65536,IF(dati_pdc!$C1428=2,dati_bdv!$D$2:$D$65536,IF(dati_pdc!$C1428=3,dati_bdv!$E$2:$E$65536,IF(dati_pdc!$C1428=4,dati_bdv!$F$2:$F$65536,IF(dati_pdc!$C1428=5,dati_bdv!$G$2:$G$65536,dati_bdv!$H$2:$H$65536))))),$A1428,dati_bdv!N$2:N$65536)","v":0}]
[{"$f":"dati_pdc!A1429","v":0},{"$f":"SUMIF(IF(dati_pdc!$C1429=1,dati_bdv!$C$2:$C$65536,IF(dati_pdc!$C1429=2,dati_bdv!$D$2:$D$65536,IF(dati_pdc!$C1429=3,dati_bdv!$E$2:$E$65536,IF(dati_pdc!$C1429=4,dati_bdv!$F$2:$F$65536,IF(dati_pdc!$C1429=5,dati_bdv!$G$2:$G$65536,dati_bdv!$H$2:$H$65536))))),$A1429,dati_bdv!J$2:J$65536)","v":0},{"$f":"SUMIF(IF(dati_pdc!$C1429=1,dati_bdv!$C$2:$C$65536,IF(dati_pdc!$C1429=2,dati_bdv!$D$2:$D$65536,IF(dati_pdc!$C1429=3,dati_bdv!$E$2:$E$65536,IF(dati_pdc!$C1429=4,dati_bdv!$F$2:$F$65536,IF(dati_pdc!$C1429=5,dati_bdv!$G$2:$G$65536,dati_bdv!$H$2:$H$65536))))),$A1429,dati_bdv!K$2:K$65536)","v":0},{"$f":"SUMIF(IF(dati_pdc!$C1429=1,dati_bdv!$C$2:$C$65536,IF(dati_pdc!$C1429=2,dati_bdv!$D$2:$D$65536,IF(dati_pdc!$C1429=3,dati_bdv!$E$2:$E$65536,IF(dati_pdc!$C1429=4,dati_bdv!$F$2:$F$65536,IF(dati_pdc!$C1429=5,dati_bdv!$G$2:$G$65536,dati_bdv!$H$2:$H$65536))))),$A1429,dati_bdv!L$2:L$65536)","v":0},{"$f":"SUMIF(IF(dati_pdc!$C1429=1,dati_bdv!$C$2:$C$65536,IF(dati_pdc!$C1429=2,dati_bdv!$D$2:$D$65536,IF(dati_pdc!$C1429=3,dati_bdv!$E$2:$E$65536,IF(dati_pdc!$C1429=4,dati_bdv!$F$2:$F$65536,IF(dati_pdc!$C1429=5,dati_bdv!$G$2:$G$65536,dati_bdv!$H$2:$H$65536))))),$A1429,dati_bdv!M$2:M$65536)","v":0},{"$f":"SUMIF(IF(dati_pdc!$C1429=1,dati_bdv!$C$2:$C$65536,IF(dati_pdc!$C1429=2,dati_bdv!$D$2:$D$65536,IF(dati_pdc!$C1429=3,dati_bdv!$E$2:$E$65536,IF(dati_pdc!$C1429=4,dati_bdv!$F$2:$F$65536,IF(dati_pdc!$C1429=5,dati_bdv!$G$2:$G$65536,dati_bdv!$H$2:$H$65536))))),$A1429,dati_bdv!N$2:N$65536)","v":0}]
[{"$f":"dati_pdc!A1430","v":0},{"$f":"SUMIF(IF(dati_pdc!$C1430=1,dati_bdv!$C$2:$C$65536,IF(dati_pdc!$C1430=2,dati_bdv!$D$2:$D$65536,IF(dati_pdc!$C1430=3,dati_bdv!$E$2:$E$65536,IF(dati_pdc!$C1430=4,dati_bdv!$F$2:$F$65536,IF(dati_pdc!$C1430=5,dati_bdv!$G$2:$G$65536,dati_bdv!$H$2:$H$65536))))),$A1430,dati_bdv!J$2:J$65536)","v":0},{"$f":"SUMIF(IF(dati_pdc!$C1430=1,dati_bdv!$C$2:$C$65536,IF(dati_pdc!$C1430=2,dati_bdv!$D$2:$D$65536,IF(dati_pdc!$C1430=3,dati_bdv!$E$2:$E$65536,IF(dati_pdc!$C1430=4,dati_bdv!$F$2:$F$65536,IF(dati_pdc!$C1430=5,dati_bdv!$G$2:$G$65536,dati_bdv!$H$2:$H$65536))))),$A1430,dati_bdv!K$2:K$65536)","v":0},{"$f":"SUMIF(IF(dati_pdc!$C1430=1,dati_bdv!$C$2:$C$65536,IF(dati_pdc!$C1430=2,dati_bdv!$D$2:$D$65536,IF(dati_pdc!$C1430=3,dati_bdv!$E$2:$E$65536,IF(dati_pdc!$C1430=4,dati_bdv!$F$2:$F$65536,IF(dati_pdc!$C1430=5,dati_bdv!$G$2:$G$65536,dati_bdv!$H$2:$H$65536))))),$A1430,dati_bdv!L$2:L$65536)","v":0},{"$f":"SUMIF(IF(dati_pdc!$C1430=1,dati_bdv!$C$2:$C$65536,IF(dati_pdc!$C1430=2,dati_bdv!$D$2:$D$65536,IF(dati_pdc!$C1430=3,dati_bdv!$E$2:$E$65536,IF(dati_pdc!$C1430=4,dati_bdv!$F$2:$F$65536,IF(dati_pdc!$C1430=5,dati_bdv!$G$2:$G$65536,dati_bdv!$H$2:$H$65536))))),$A1430,dati_bdv!M$2:M$65536)","v":0},{"$f":"SUMIF(IF(dati_pdc!$C1430=1,dati_bdv!$C$2:$C$65536,IF(dati_pdc!$C1430=2,dati_bdv!$D$2:$D$65536,IF(dati_pdc!$C1430=3,dati_bdv!$E$2:$E$65536,IF(dati_pdc!$C1430=4,dati_bdv!$F$2:$F$65536,IF(dati_pdc!$C1430=5,dati_bdv!$G$2:$G$65536,dati_bdv!$H$2:$H$65536))))),$A1430,dati_bdv!N$2:N$65536)","v":0}]
[{"$f":"dati_pdc!A1431","v":0},{"$f":"SUMIF(IF(dati_pdc!$C1431=1,dati_bdv!$C$2:$C$65536,IF(dati_pdc!$C1431=2,dati_bdv!$D$2:$D$65536,IF(dati_pdc!$C1431=3,dati_bdv!$E$2:$E$65536,IF(dati_pdc!$C1431=4,dati_bdv!$F$2:$F$65536,IF(dati_pdc!$C1431=5,dati_bdv!$G$2:$G$65536,dati_bdv!$H$2:$H$65536))))),$A1431,dati_bdv!J$2:J$65536)","v":0},{"$f":"SUMIF(IF(dati_pdc!$C1431=1,dati_bdv!$C$2:$C$65536,IF(dati_pdc!$C1431=2,dati_bdv!$D$2:$D$65536,IF(dati_pdc!$C1431=3,dati_bdv!$E$2:$E$65536,IF(dati_pdc!$C1431=4,dati_bdv!$F$2:$F$65536,IF(dati_pdc!$C1431=5,dati_bdv!$G$2:$G$65536,dati_bdv!$H$2:$H$65536))))),$A1431,dati_bdv!K$2:K$65536)","v":0},{"$f":"SUMIF(IF(dati_pdc!$C1431=1,dati_bdv!$C$2:$C$65536,IF(dati_pdc!$C1431=2,dati_bdv!$D$2:$D$65536,IF(dati_pdc!$C1431=3,dati_bdv!$E$2:$E$65536,IF(dati_pdc!$C1431=4,dati_bdv!$F$2:$F$65536,IF(dati_pdc!$C1431=5,dati_bdv!$G$2:$G$65536,dati_bdv!$H$2:$H$65536))))),$A1431,dati_bdv!L$2:L$65536)","v":0},{"$f":"SUMIF(IF(dati_pdc!$C1431=1,dati_bdv!$C$2:$C$65536,IF(dati_pdc!$C1431=2,dati_bdv!$D$2:$D$65536,IF(dati_pdc!$C1431=3,dati_bdv!$E$2:$E$65536,IF(dati_pdc!$C1431=4,dati_bdv!$F$2:$F$65536,IF(dati_pdc!$C1431=5,dati_bdv!$G$2:$G$65536,dati_bdv!$H$2:$H$65536))))),$A1431,dati_bdv!M$2:M$65536)","v":0},{"$f":"SUMIF(IF(dati_pdc!$C1431=1,dati_bdv!$C$2:$C$65536,IF(dati_pdc!$C1431=2,dati_bdv!$D$2:$D$65536,IF(dati_pdc!$C1431=3,dati_bdv!$E$2:$E$65536,IF(dati_pdc!$C1431=4,dati_bdv!$F$2:$F$65536,IF(dati_pdc!$C1431=5,dati_bdv!$G$2:$G$65536,dati_bdv!$H$2:$H$65536))))),$A1431,dati_bdv!N$2:N$65536)","v":0}]
[{"$f":"dati_pdc!A1432","v":0},{"$f":"SUMIF(IF(dati_pdc!$C1432=1,dati_bdv!$C$2:$C$65536,IF(dati_pdc!$C1432=2,dati_bdv!$D$2:$D$65536,IF(dati_pdc!$C1432=3,dati_bdv!$E$2:$E$65536,IF(dati_pdc!$C1432=4,dati_bdv!$F$2:$F$65536,IF(dati_pdc!$C1432=5,dati_bdv!$G$2:$G$65536,dati_bdv!$H$2:$H$65536))))),$A1432,dati_bdv!J$2:J$65536)","v":0},{"$f":"SUMIF(IF(dati_pdc!$C1432=1,dati_bdv!$C$2:$C$65536,IF(dati_pdc!$C1432=2,dati_bdv!$D$2:$D$65536,IF(dati_pdc!$C1432=3,dati_bdv!$E$2:$E$65536,IF(dati_pdc!$C1432=4,dati_bdv!$F$2:$F$65536,IF(dati_pdc!$C1432=5,dati_bdv!$G$2:$G$65536,dati_bdv!$H$2:$H$65536))))),$A1432,dati_bdv!K$2:K$65536)","v":0},{"$f":"SUMIF(IF(dati_pdc!$C1432=1,dati_bdv!$C$2:$C$65536,IF(dati_pdc!$C1432=2,dati_bdv!$D$2:$D$65536,IF(dati_pdc!$C1432=3,dati_bdv!$E$2:$E$65536,IF(dati_pdc!$C1432=4,dati_bdv!$F$2:$F$65536,IF(dati_pdc!$C1432=5,dati_bdv!$G$2:$G$65536,dati_bdv!$H$2:$H$65536))))),$A1432,dati_bdv!L$2:L$65536)","v":0},{"$f":"SUMIF(IF(dati_pdc!$C1432=1,dati_bdv!$C$2:$C$65536,IF(dati_pdc!$C1432=2,dati_bdv!$D$2:$D$65536,IF(dati_pdc!$C1432=3,dati_bdv!$E$2:$E$65536,IF(dati_pdc!$C1432=4,dati_bdv!$F$2:$F$65536,IF(dati_pdc!$C1432=5,dati_bdv!$G$2:$G$65536,dati_bdv!$H$2:$H$65536))))),$A1432,dati_bdv!M$2:M$65536)","v":0},{"$f":"SUMIF(IF(dati_pdc!$C1432=1,dati_bdv!$C$2:$C$65536,IF(dati_pdc!$C1432=2,dati_bdv!$D$2:$D$65536,IF(dati_pdc!$C1432=3,dati_bdv!$E$2:$E$65536,IF(dati_pdc!$C1432=4,dati_bdv!$F$2:$F$65536,IF(dati_pdc!$C1432=5,dati_bdv!$G$2:$G$65536,dati_bdv!$H$2:$H$65536))))),$A1432,dati_bdv!N$2:N$65536)","v":0}]
[{"$f":"dati_pdc!A1433","v":0},{"$f":"SUMIF(IF(dati_pdc!$C1433=1,dati_bdv!$C$2:$C$65536,IF(dati_pdc!$C1433=2,dati_bdv!$D$2:$D$65536,IF(dati_pdc!$C1433=3,dati_bdv!$E$2:$E$65536,IF(dati_pdc!$C1433=4,dati_bdv!$F$2:$F$65536,IF(dati_pdc!$C1433=5,dati_bdv!$G$2:$G$65536,dati_bdv!$H$2:$H$65536))))),$A1433,dati_bdv!J$2:J$65536)","v":0},{"$f":"SUMIF(IF(dati_pdc!$C1433=1,dati_bdv!$C$2:$C$65536,IF(dati_pdc!$C1433=2,dati_bdv!$D$2:$D$65536,IF(dati_pdc!$C1433=3,dati_bdv!$E$2:$E$65536,IF(dati_pdc!$C1433=4,dati_bdv!$F$2:$F$65536,IF(dati_pdc!$C1433=5,dati_bdv!$G$2:$G$65536,dati_bdv!$H$2:$H$65536))))),$A1433,dati_bdv!K$2:K$65536)","v":0},{"$f":"SUMIF(IF(dati_pdc!$C1433=1,dati_bdv!$C$2:$C$65536,IF(dati_pdc!$C1433=2,dati_bdv!$D$2:$D$65536,IF(dati_pdc!$C1433=3,dati_bdv!$E$2:$E$65536,IF(dati_pdc!$C1433=4,dati_bdv!$F$2:$F$65536,IF(dati_pdc!$C1433=5,dati_bdv!$G$2:$G$65536,dati_bdv!$H$2:$H$65536))))),$A1433,dati_bdv!L$2:L$65536)","v":0},{"$f":"SUMIF(IF(dati_pdc!$C1433=1,dati_bdv!$C$2:$C$65536,IF(dati_pdc!$C1433=2,dati_bdv!$D$2:$D$65536,IF(dati_pdc!$C1433=3,dati_bdv!$E$2:$E$65536,IF(dati_pdc!$C1433=4,dati_bdv!$F$2:$F$65536,IF(dati_pdc!$C1433=5,dati_bdv!$G$2:$G$65536,dati_bdv!$H$2:$H$65536))))),$A1433,dati_bdv!M$2:M$65536)","v":0},{"$f":"SUMIF(IF(dati_pdc!$C1433=1,dati_bdv!$C$2:$C$65536,IF(dati_pdc!$C1433=2,dati_bdv!$D$2:$D$65536,IF(dati_pdc!$C1433=3,dati_bdv!$E$2:$E$65536,IF(dati_pdc!$C1433=4,dati_bdv!$F$2:$F$65536,IF(dati_pdc!$C1433=5,dati_bdv!$G$2:$G$65536,dati_bdv!$H$2:$H$65536))))),$A1433,dati_bdv!N$2:N$65536)","v":0}]
[{"$f":"dati_pdc!A1434","v":0},{"$f":"SUMIF(IF(dati_pdc!$C1434=1,dati_bdv!$C$2:$C$65536,IF(dati_pdc!$C1434=2,dati_bdv!$D$2:$D$65536,IF(dati_pdc!$C1434=3,dati_bdv!$E$2:$E$65536,IF(dati_pdc!$C1434=4,dati_bdv!$F$2:$F$65536,IF(dati_pdc!$C1434=5,dati_bdv!$G$2:$G$65536,dati_bdv!$H$2:$H$65536))))),$A1434,dati_bdv!J$2:J$65536)","v":0},{"$f":"SUMIF(IF(dati_pdc!$C1434=1,dati_bdv!$C$2:$C$65536,IF(dati_pdc!$C1434=2,dati_bdv!$D$2:$D$65536,IF(dati_pdc!$C1434=3,dati_bdv!$E$2:$E$65536,IF(dati_pdc!$C1434=4,dati_bdv!$F$2:$F$65536,IF(dati_pdc!$C1434=5,dati_bdv!$G$2:$G$65536,dati_bdv!$H$2:$H$65536))))),$A1434,dati_bdv!K$2:K$65536)","v":0},{"$f":"SUMIF(IF(dati_pdc!$C1434=1,dati_bdv!$C$2:$C$65536,IF(dati_pdc!$C1434=2,dati_bdv!$D$2:$D$65536,IF(dati_pdc!$C1434=3,dati_bdv!$E$2:$E$65536,IF(dati_pdc!$C1434=4,dati_bdv!$F$2:$F$65536,IF(dati_pdc!$C1434=5,dati_bdv!$G$2:$G$65536,dati_bdv!$H$2:$H$65536))))),$A1434,dati_bdv!L$2:L$65536)","v":0},{"$f":"SUMIF(IF(dati_pdc!$C1434=1,dati_bdv!$C$2:$C$65536,IF(dati_pdc!$C1434=2,dati_bdv!$D$2:$D$65536,IF(dati_pdc!$C1434=3,dati_bdv!$E$2:$E$65536,IF(dati_pdc!$C1434=4,dati_bdv!$F$2:$F$65536,IF(dati_pdc!$C1434=5,dati_bdv!$G$2:$G$65536,dati_bdv!$H$2:$H$65536))))),$A1434,dati_bdv!M$2:M$65536)","v":0},{"$f":"SUMIF(IF(dati_pdc!$C1434=1,dati_bdv!$C$2:$C$65536,IF(dati_pdc!$C1434=2,dati_bdv!$D$2:$D$65536,IF(dati_pdc!$C1434=3,dati_bdv!$E$2:$E$65536,IF(dati_pdc!$C1434=4,dati_bdv!$F$2:$F$65536,IF(dati_pdc!$C1434=5,dati_bdv!$G$2:$G$65536,dati_bdv!$H$2:$H$65536))))),$A1434,dati_bdv!N$2:N$65536)","v":0}]
[{"$f":"dati_pdc!A1435","v":0},{"$f":"SUMIF(IF(dati_pdc!$C1435=1,dati_bdv!$C$2:$C$65536,IF(dati_pdc!$C1435=2,dati_bdv!$D$2:$D$65536,IF(dati_pdc!$C1435=3,dati_bdv!$E$2:$E$65536,IF(dati_pdc!$C1435=4,dati_bdv!$F$2:$F$65536,IF(dati_pdc!$C1435=5,dati_bdv!$G$2:$G$65536,dati_bdv!$H$2:$H$65536))))),$A1435,dati_bdv!J$2:J$65536)","v":0},{"$f":"SUMIF(IF(dati_pdc!$C1435=1,dati_bdv!$C$2:$C$65536,IF(dati_pdc!$C1435=2,dati_bdv!$D$2:$D$65536,IF(dati_pdc!$C1435=3,dati_bdv!$E$2:$E$65536,IF(dati_pdc!$C1435=4,dati_bdv!$F$2:$F$65536,IF(dati_pdc!$C1435=5,dati_bdv!$G$2:$G$65536,dati_bdv!$H$2:$H$65536))))),$A1435,dati_bdv!K$2:K$65536)","v":0},{"$f":"SUMIF(IF(dati_pdc!$C1435=1,dati_bdv!$C$2:$C$65536,IF(dati_pdc!$C1435=2,dati_bdv!$D$2:$D$65536,IF(dati_pdc!$C1435=3,dati_bdv!$E$2:$E$65536,IF(dati_pdc!$C1435=4,dati_bdv!$F$2:$F$65536,IF(dati_pdc!$C1435=5,dati_bdv!$G$2:$G$65536,dati_bdv!$H$2:$H$65536))))),$A1435,dati_bdv!L$2:L$65536)","v":0},{"$f":"SUMIF(IF(dati_pdc!$C1435=1,dati_bdv!$C$2:$C$65536,IF(dati_pdc!$C1435=2,dati_bdv!$D$2:$D$65536,IF(dati_pdc!$C1435=3,dati_bdv!$E$2:$E$65536,IF(dati_pdc!$C1435=4,dati_bdv!$F$2:$F$65536,IF(dati_pdc!$C1435=5,dati_bdv!$G$2:$G$65536,dati_bdv!$H$2:$H$65536))))),$A1435,dati_bdv!M$2:M$65536)","v":0},{"$f":"SUMIF(IF(dati_pdc!$C1435=1,dati_bdv!$C$2:$C$65536,IF(dati_pdc!$C1435=2,dati_bdv!$D$2:$D$65536,IF(dati_pdc!$C1435=3,dati_bdv!$E$2:$E$65536,IF(dati_pdc!$C1435=4,dati_bdv!$F$2:$F$65536,IF(dati_pdc!$C1435=5,dati_bdv!$G$2:$G$65536,dati_bdv!$H$2:$H$65536))))),$A1435,dati_bdv!N$2:N$65536)","v":0}]
[{"$f":"dati_pdc!A1436","v":0},{"$f":"SUMIF(IF(dati_pdc!$C1436=1,dati_bdv!$C$2:$C$65536,IF(dati_pdc!$C1436=2,dati_bdv!$D$2:$D$65536,IF(dati_pdc!$C1436=3,dati_bdv!$E$2:$E$65536,IF(dati_pdc!$C1436=4,dati_bdv!$F$2:$F$65536,IF(dati_pdc!$C1436=5,dati_bdv!$G$2:$G$65536,dati_bdv!$H$2:$H$65536))))),$A1436,dati_bdv!J$2:J$65536)","v":0},{"$f":"SUMIF(IF(dati_pdc!$C1436=1,dati_bdv!$C$2:$C$65536,IF(dati_pdc!$C1436=2,dati_bdv!$D$2:$D$65536,IF(dati_pdc!$C1436=3,dati_bdv!$E$2:$E$65536,IF(dati_pdc!$C1436=4,dati_bdv!$F$2:$F$65536,IF(dati_pdc!$C1436=5,dati_bdv!$G$2:$G$65536,dati_bdv!$H$2:$H$65536))))),$A1436,dati_bdv!K$2:K$65536)","v":0},{"$f":"SUMIF(IF(dati_pdc!$C1436=1,dati_bdv!$C$2:$C$65536,IF(dati_pdc!$C1436=2,dati_bdv!$D$2:$D$65536,IF(dati_pdc!$C1436=3,dati_bdv!$E$2:$E$65536,IF(dati_pdc!$C1436=4,dati_bdv!$F$2:$F$65536,IF(dati_pdc!$C1436=5,dati_bdv!$G$2:$G$65536,dati_bdv!$H$2:$H$65536))))),$A1436,dati_bdv!L$2:L$65536)","v":0},{"$f":"SUMIF(IF(dati_pdc!$C1436=1,dati_bdv!$C$2:$C$65536,IF(dati_pdc!$C1436=2,dati_bdv!$D$2:$D$65536,IF(dati_pdc!$C1436=3,dati_bdv!$E$2:$E$65536,IF(dati_pdc!$C1436=4,dati_bdv!$F$2:$F$65536,IF(dati_pdc!$C1436=5,dati_bdv!$G$2:$G$65536,dati_bdv!$H$2:$H$65536))))),$A1436,dati_bdv!M$2:M$65536)","v":0},{"$f":"SUMIF(IF(dati_pdc!$C1436=1,dati_bdv!$C$2:$C$65536,IF(dati_pdc!$C1436=2,dati_bdv!$D$2:$D$65536,IF(dati_pdc!$C1436=3,dati_bdv!$E$2:$E$65536,IF(dati_pdc!$C1436=4,dati_bdv!$F$2:$F$65536,IF(dati_pdc!$C1436=5,dati_bdv!$G$2:$G$65536,dati_bdv!$H$2:$H$65536))))),$A1436,dati_bdv!N$2:N$65536)","v":0}]
[{"$f":"dati_pdc!A1437","v":0},{"$f":"SUMIF(IF(dati_pdc!$C1437=1,dati_bdv!$C$2:$C$65536,IF(dati_pdc!$C1437=2,dati_bdv!$D$2:$D$65536,IF(dati_pdc!$C1437=3,dati_bdv!$E$2:$E$65536,IF(dati_pdc!$C1437=4,dati_bdv!$F$2:$F$65536,IF(dati_pdc!$C1437=5,dati_bdv!$G$2:$G$65536,dati_bdv!$H$2:$H$65536))))),$A1437,dati_bdv!J$2:J$65536)","v":0},{"$f":"SUMIF(IF(dati_pdc!$C1437=1,dati_bdv!$C$2:$C$65536,IF(dati_pdc!$C1437=2,dati_bdv!$D$2:$D$65536,IF(dati_pdc!$C1437=3,dati_bdv!$E$2:$E$65536,IF(dati_pdc!$C1437=4,dati_bdv!$F$2:$F$65536,IF(dati_pdc!$C1437=5,dati_bdv!$G$2:$G$65536,dati_bdv!$H$2:$H$65536))))),$A1437,dati_bdv!K$2:K$65536)","v":0},{"$f":"SUMIF(IF(dati_pdc!$C1437=1,dati_bdv!$C$2:$C$65536,IF(dati_pdc!$C1437=2,dati_bdv!$D$2:$D$65536,IF(dati_pdc!$C1437=3,dati_bdv!$E$2:$E$65536,IF(dati_pdc!$C1437=4,dati_bdv!$F$2:$F$65536,IF(dati_pdc!$C1437=5,dati_bdv!$G$2:$G$65536,dati_bdv!$H$2:$H$65536))))),$A1437,dati_bdv!L$2:L$65536)","v":0},{"$f":"SUMIF(IF(dati_pdc!$C1437=1,dati_bdv!$C$2:$C$65536,IF(dati_pdc!$C1437=2,dati_bdv!$D$2:$D$65536,IF(dati_pdc!$C1437=3,dati_bdv!$E$2:$E$65536,IF(dati_pdc!$C1437=4,dati_bdv!$F$2:$F$65536,IF(dati_pdc!$C1437=5,dati_bdv!$G$2:$G$65536,dati_bdv!$H$2:$H$65536))))),$A1437,dati_bdv!M$2:M$65536)","v":0},{"$f":"SUMIF(IF(dati_pdc!$C1437=1,dati_bdv!$C$2:$C$65536,IF(dati_pdc!$C1437=2,dati_bdv!$D$2:$D$65536,IF(dati_pdc!$C1437=3,dati_bdv!$E$2:$E$65536,IF(dati_pdc!$C1437=4,dati_bdv!$F$2:$F$65536,IF(dati_pdc!$C1437=5,dati_bdv!$G$2:$G$65536,dati_bdv!$H$2:$H$65536))))),$A1437,dati_bdv!N$2:N$65536)","v":0}]
[{"$f":"dati_pdc!A1438","v":0},{"$f":"SUMIF(IF(dati_pdc!$C1438=1,dati_bdv!$C$2:$C$65536,IF(dati_pdc!$C1438=2,dati_bdv!$D$2:$D$65536,IF(dati_pdc!$C1438=3,dati_bdv!$E$2:$E$65536,IF(dati_pdc!$C1438=4,dati_bdv!$F$2:$F$65536,IF(dati_pdc!$C1438=5,dati_bdv!$G$2:$G$65536,dati_bdv!$H$2:$H$65536))))),$A1438,dati_bdv!J$2:J$65536)","v":0},{"$f":"SUMIF(IF(dati_pdc!$C1438=1,dati_bdv!$C$2:$C$65536,IF(dati_pdc!$C1438=2,dati_bdv!$D$2:$D$65536,IF(dati_pdc!$C1438=3,dati_bdv!$E$2:$E$65536,IF(dati_pdc!$C1438=4,dati_bdv!$F$2:$F$65536,IF(dati_pdc!$C1438=5,dati_bdv!$G$2:$G$65536,dati_bdv!$H$2:$H$65536))))),$A1438,dati_bdv!K$2:K$65536)","v":0},{"$f":"SUMIF(IF(dati_pdc!$C1438=1,dati_bdv!$C$2:$C$65536,IF(dati_pdc!$C1438=2,dati_bdv!$D$2:$D$65536,IF(dati_pdc!$C1438=3,dati_bdv!$E$2:$E$65536,IF(dati_pdc!$C1438=4,dati_bdv!$F$2:$F$65536,IF(dati_pdc!$C1438=5,dati_bdv!$G$2:$G$65536,dati_bdv!$H$2:$H$65536))))),$A1438,dati_bdv!L$2:L$65536)","v":0},{"$f":"SUMIF(IF(dati_pdc!$C1438=1,dati_bdv!$C$2:$C$65536,IF(dati_pdc!$C1438=2,dati_bdv!$D$2:$D$65536,IF(dati_pdc!$C1438=3,dati_bdv!$E$2:$E$65536,IF(dati_pdc!$C1438=4,dati_bdv!$F$2:$F$65536,IF(dati_pdc!$C1438=5,dati_bdv!$G$2:$G$65536,dati_bdv!$H$2:$H$65536))))),$A1438,dati_bdv!M$2:M$65536)","v":0},{"$f":"SUMIF(IF(dati_pdc!$C1438=1,dati_bdv!$C$2:$C$65536,IF(dati_pdc!$C1438=2,dati_bdv!$D$2:$D$65536,IF(dati_pdc!$C1438=3,dati_bdv!$E$2:$E$65536,IF(dati_pdc!$C1438=4,dati_bdv!$F$2:$F$65536,IF(dati_pdc!$C1438=5,dati_bdv!$G$2:$G$65536,dati_bdv!$H$2:$H$65536))))),$A1438,dati_bdv!N$2:N$65536)","v":0}]
[{"$f":"dati_pdc!A1439","v":0},{"$f":"SUMIF(IF(dati_pdc!$C1439=1,dati_bdv!$C$2:$C$65536,IF(dati_pdc!$C1439=2,dati_bdv!$D$2:$D$65536,IF(dati_pdc!$C1439=3,dati_bdv!$E$2:$E$65536,IF(dati_pdc!$C1439=4,dati_bdv!$F$2:$F$65536,IF(dati_pdc!$C1439=5,dati_bdv!$G$2:$G$65536,dati_bdv!$H$2:$H$65536))))),$A1439,dati_bdv!J$2:J$65536)","v":0},{"$f":"SUMIF(IF(dati_pdc!$C1439=1,dati_bdv!$C$2:$C$65536,IF(dati_pdc!$C1439=2,dati_bdv!$D$2:$D$65536,IF(dati_pdc!$C1439=3,dati_bdv!$E$2:$E$65536,IF(dati_pdc!$C1439=4,dati_bdv!$F$2:$F$65536,IF(dati_pdc!$C1439=5,dati_bdv!$G$2:$G$65536,dati_bdv!$H$2:$H$65536))))),$A1439,dati_bdv!K$2:K$65536)","v":0},{"$f":"SUMIF(IF(dati_pdc!$C1439=1,dati_bdv!$C$2:$C$65536,IF(dati_pdc!$C1439=2,dati_bdv!$D$2:$D$65536,IF(dati_pdc!$C1439=3,dati_bdv!$E$2:$E$65536,IF(dati_pdc!$C1439=4,dati_bdv!$F$2:$F$65536,IF(dati_pdc!$C1439=5,dati_bdv!$G$2:$G$65536,dati_bdv!$H$2:$H$65536))))),$A1439,dati_bdv!L$2:L$65536)","v":0},{"$f":"SUMIF(IF(dati_pdc!$C1439=1,dati_bdv!$C$2:$C$65536,IF(dati_pdc!$C1439=2,dati_bdv!$D$2:$D$65536,IF(dati_pdc!$C1439=3,dati_bdv!$E$2:$E$65536,IF(dati_pdc!$C1439=4,dati_bdv!$F$2:$F$65536,IF(dati_pdc!$C1439=5,dati_bdv!$G$2:$G$65536,dati_bdv!$H$2:$H$65536))))),$A1439,dati_bdv!M$2:M$65536)","v":0},{"$f":"SUMIF(IF(dati_pdc!$C1439=1,dati_bdv!$C$2:$C$65536,IF(dati_pdc!$C1439=2,dati_bdv!$D$2:$D$65536,IF(dati_pdc!$C1439=3,dati_bdv!$E$2:$E$65536,IF(dati_pdc!$C1439=4,dati_bdv!$F$2:$F$65536,IF(dati_pdc!$C1439=5,dati_bdv!$G$2:$G$65536,dati_bdv!$H$2:$H$65536))))),$A1439,dati_bdv!N$2:N$65536)","v":0}]
[{"$f":"dati_pdc!A1440","v":0},{"$f":"SUMIF(IF(dati_pdc!$C1440=1,dati_bdv!$C$2:$C$65536,IF(dati_pdc!$C1440=2,dati_bdv!$D$2:$D$65536,IF(dati_pdc!$C1440=3,dati_bdv!$E$2:$E$65536,IF(dati_pdc!$C1440=4,dati_bdv!$F$2:$F$65536,IF(dati_pdc!$C1440=5,dati_bdv!$G$2:$G$65536,dati_bdv!$H$2:$H$65536))))),$A1440,dati_bdv!J$2:J$65536)","v":0},{"$f":"SUMIF(IF(dati_pdc!$C1440=1,dati_bdv!$C$2:$C$65536,IF(dati_pdc!$C1440=2,dati_bdv!$D$2:$D$65536,IF(dati_pdc!$C1440=3,dati_bdv!$E$2:$E$65536,IF(dati_pdc!$C1440=4,dati_bdv!$F$2:$F$65536,IF(dati_pdc!$C1440=5,dati_bdv!$G$2:$G$65536,dati_bdv!$H$2:$H$65536))))),$A1440,dati_bdv!K$2:K$65536)","v":0},{"$f":"SUMIF(IF(dati_pdc!$C1440=1,dati_bdv!$C$2:$C$65536,IF(dati_pdc!$C1440=2,dati_bdv!$D$2:$D$65536,IF(dati_pdc!$C1440=3,dati_bdv!$E$2:$E$65536,IF(dati_pdc!$C1440=4,dati_bdv!$F$2:$F$65536,IF(dati_pdc!$C1440=5,dati_bdv!$G$2:$G$65536,dati_bdv!$H$2:$H$65536))))),$A1440,dati_bdv!L$2:L$65536)","v":0},{"$f":"SUMIF(IF(dati_pdc!$C1440=1,dati_bdv!$C$2:$C$65536,IF(dati_pdc!$C1440=2,dati_bdv!$D$2:$D$65536,IF(dati_pdc!$C1440=3,dati_bdv!$E$2:$E$65536,IF(dati_pdc!$C1440=4,dati_bdv!$F$2:$F$65536,IF(dati_pdc!$C1440=5,dati_bdv!$G$2:$G$65536,dati_bdv!$H$2:$H$65536))))),$A1440,dati_bdv!M$2:M$65536)","v":0},{"$f":"SUMIF(IF(dati_pdc!$C1440=1,dati_bdv!$C$2:$C$65536,IF(dati_pdc!$C1440=2,dati_bdv!$D$2:$D$65536,IF(dati_pdc!$C1440=3,dati_bdv!$E$2:$E$65536,IF(dati_pdc!$C1440=4,dati_bdv!$F$2:$F$65536,IF(dati_pdc!$C1440=5,dati_bdv!$G$2:$G$65536,dati_bdv!$H$2:$H$65536))))),$A1440,dati_bdv!N$2:N$65536)","v":0}]
[{"$f":"dati_pdc!A1441","v":0},{"$f":"SUMIF(IF(dati_pdc!$C1441=1,dati_bdv!$C$2:$C$65536,IF(dati_pdc!$C1441=2,dati_bdv!$D$2:$D$65536,IF(dati_pdc!$C1441=3,dati_bdv!$E$2:$E$65536,IF(dati_pdc!$C1441=4,dati_bdv!$F$2:$F$65536,IF(dati_pdc!$C1441=5,dati_bdv!$G$2:$G$65536,dati_bdv!$H$2:$H$65536))))),$A1441,dati_bdv!J$2:J$65536)","v":0},{"$f":"SUMIF(IF(dati_pdc!$C1441=1,dati_bdv!$C$2:$C$65536,IF(dati_pdc!$C1441=2,dati_bdv!$D$2:$D$65536,IF(dati_pdc!$C1441=3,dati_bdv!$E$2:$E$65536,IF(dati_pdc!$C1441=4,dati_bdv!$F$2:$F$65536,IF(dati_pdc!$C1441=5,dati_bdv!$G$2:$G$65536,dati_bdv!$H$2:$H$65536))))),$A1441,dati_bdv!K$2:K$65536)","v":0},{"$f":"SUMIF(IF(dati_pdc!$C1441=1,dati_bdv!$C$2:$C$65536,IF(dati_pdc!$C1441=2,dati_bdv!$D$2:$D$65536,IF(dati_pdc!$C1441=3,dati_bdv!$E$2:$E$65536,IF(dati_pdc!$C1441=4,dati_bdv!$F$2:$F$65536,IF(dati_pdc!$C1441=5,dati_bdv!$G$2:$G$65536,dati_bdv!$H$2:$H$65536))))),$A1441,dati_bdv!L$2:L$65536)","v":0},{"$f":"SUMIF(IF(dati_pdc!$C1441=1,dati_bdv!$C$2:$C$65536,IF(dati_pdc!$C1441=2,dati_bdv!$D$2:$D$65536,IF(dati_pdc!$C1441=3,dati_bdv!$E$2:$E$65536,IF(dati_pdc!$C1441=4,dati_bdv!$F$2:$F$65536,IF(dati_pdc!$C1441=5,dati_bdv!$G$2:$G$65536,dati_bdv!$H$2:$H$65536))))),$A1441,dati_bdv!M$2:M$65536)","v":0},{"$f":"SUMIF(IF(dati_pdc!$C1441=1,dati_bdv!$C$2:$C$65536,IF(dati_pdc!$C1441=2,dati_bdv!$D$2:$D$65536,IF(dati_pdc!$C1441=3,dati_bdv!$E$2:$E$65536,IF(dati_pdc!$C1441=4,dati_bdv!$F$2:$F$65536,IF(dati_pdc!$C1441=5,dati_bdv!$G$2:$G$65536,dati_bdv!$H$2:$H$65536))))),$A1441,dati_bdv!N$2:N$65536)","v":0}]
[{"$f":"dati_pdc!A1442","v":0},{"$f":"SUMIF(IF(dati_pdc!$C1442=1,dati_bdv!$C$2:$C$65536,IF(dati_pdc!$C1442=2,dati_bdv!$D$2:$D$65536,IF(dati_pdc!$C1442=3,dati_bdv!$E$2:$E$65536,IF(dati_pdc!$C1442=4,dati_bdv!$F$2:$F$65536,IF(dati_pdc!$C1442=5,dati_bdv!$G$2:$G$65536,dati_bdv!$H$2:$H$65536))))),$A1442,dati_bdv!J$2:J$65536)","v":0},{"$f":"SUMIF(IF(dati_pdc!$C1442=1,dati_bdv!$C$2:$C$65536,IF(dati_pdc!$C1442=2,dati_bdv!$D$2:$D$65536,IF(dati_pdc!$C1442=3,dati_bdv!$E$2:$E$65536,IF(dati_pdc!$C1442=4,dati_bdv!$F$2:$F$65536,IF(dati_pdc!$C1442=5,dati_bdv!$G$2:$G$65536,dati_bdv!$H$2:$H$65536))))),$A1442,dati_bdv!K$2:K$65536)","v":0},{"$f":"SUMIF(IF(dati_pdc!$C1442=1,dati_bdv!$C$2:$C$65536,IF(dati_pdc!$C1442=2,dati_bdv!$D$2:$D$65536,IF(dati_pdc!$C1442=3,dati_bdv!$E$2:$E$65536,IF(dati_pdc!$C1442=4,dati_bdv!$F$2:$F$65536,IF(dati_pdc!$C1442=5,dati_bdv!$G$2:$G$65536,dati_bdv!$H$2:$H$65536))))),$A1442,dati_bdv!L$2:L$65536)","v":0},{"$f":"SUMIF(IF(dati_pdc!$C1442=1,dati_bdv!$C$2:$C$65536,IF(dati_pdc!$C1442=2,dati_bdv!$D$2:$D$65536,IF(dati_pdc!$C1442=3,dati_bdv!$E$2:$E$65536,IF(dati_pdc!$C1442=4,dati_bdv!$F$2:$F$65536,IF(dati_pdc!$C1442=5,dati_bdv!$G$2:$G$65536,dati_bdv!$H$2:$H$65536))))),$A1442,dati_bdv!M$2:M$65536)","v":0},{"$f":"SUMIF(IF(dati_pdc!$C1442=1,dati_bdv!$C$2:$C$65536,IF(dati_pdc!$C1442=2,dati_bdv!$D$2:$D$65536,IF(dati_pdc!$C1442=3,dati_bdv!$E$2:$E$65536,IF(dati_pdc!$C1442=4,dati_bdv!$F$2:$F$65536,IF(dati_pdc!$C1442=5,dati_bdv!$G$2:$G$65536,dati_bdv!$H$2:$H$65536))))),$A1442,dati_bdv!N$2:N$65536)","v":0}]
[{"$f":"dati_pdc!A1443","v":0},{"$f":"SUMIF(IF(dati_pdc!$C1443=1,dati_bdv!$C$2:$C$65536,IF(dati_pdc!$C1443=2,dati_bdv!$D$2:$D$65536,IF(dati_pdc!$C1443=3,dati_bdv!$E$2:$E$65536,IF(dati_pdc!$C1443=4,dati_bdv!$F$2:$F$65536,IF(dati_pdc!$C1443=5,dati_bdv!$G$2:$G$65536,dati_bdv!$H$2:$H$65536))))),$A1443,dati_bdv!J$2:J$65536)","v":0},{"$f":"SUMIF(IF(dati_pdc!$C1443=1,dati_bdv!$C$2:$C$65536,IF(dati_pdc!$C1443=2,dati_bdv!$D$2:$D$65536,IF(dati_pdc!$C1443=3,dati_bdv!$E$2:$E$65536,IF(dati_pdc!$C1443=4,dati_bdv!$F$2:$F$65536,IF(dati_pdc!$C1443=5,dati_bdv!$G$2:$G$65536,dati_bdv!$H$2:$H$65536))))),$A1443,dati_bdv!K$2:K$65536)","v":0},{"$f":"SUMIF(IF(dati_pdc!$C1443=1,dati_bdv!$C$2:$C$65536,IF(dati_pdc!$C1443=2,dati_bdv!$D$2:$D$65536,IF(dati_pdc!$C1443=3,dati_bdv!$E$2:$E$65536,IF(dati_pdc!$C1443=4,dati_bdv!$F$2:$F$65536,IF(dati_pdc!$C1443=5,dati_bdv!$G$2:$G$65536,dati_bdv!$H$2:$H$65536))))),$A1443,dati_bdv!L$2:L$65536)","v":0},{"$f":"SUMIF(IF(dati_pdc!$C1443=1,dati_bdv!$C$2:$C$65536,IF(dati_pdc!$C1443=2,dati_bdv!$D$2:$D$65536,IF(dati_pdc!$C1443=3,dati_bdv!$E$2:$E$65536,IF(dati_pdc!$C1443=4,dati_bdv!$F$2:$F$65536,IF(dati_pdc!$C1443=5,dati_bdv!$G$2:$G$65536,dati_bdv!$H$2:$H$65536))))),$A1443,dati_bdv!M$2:M$65536)","v":0},{"$f":"SUMIF(IF(dati_pdc!$C1443=1,dati_bdv!$C$2:$C$65536,IF(dati_pdc!$C1443=2,dati_bdv!$D$2:$D$65536,IF(dati_pdc!$C1443=3,dati_bdv!$E$2:$E$65536,IF(dati_pdc!$C1443=4,dati_bdv!$F$2:$F$65536,IF(dati_pdc!$C1443=5,dati_bdv!$G$2:$G$65536,dati_bdv!$H$2:$H$65536))))),$A1443,dati_bdv!N$2:N$65536)","v":0}]
[{"$f":"dati_pdc!A1444","v":0},{"$f":"SUMIF(IF(dati_pdc!$C1444=1,dati_bdv!$C$2:$C$65536,IF(dati_pdc!$C1444=2,dati_bdv!$D$2:$D$65536,IF(dati_pdc!$C1444=3,dati_bdv!$E$2:$E$65536,IF(dati_pdc!$C1444=4,dati_bdv!$F$2:$F$65536,IF(dati_pdc!$C1444=5,dati_bdv!$G$2:$G$65536,dati_bdv!$H$2:$H$65536))))),$A1444,dati_bdv!J$2:J$65536)","v":0},{"$f":"SUMIF(IF(dati_pdc!$C1444=1,dati_bdv!$C$2:$C$65536,IF(dati_pdc!$C1444=2,dati_bdv!$D$2:$D$65536,IF(dati_pdc!$C1444=3,dati_bdv!$E$2:$E$65536,IF(dati_pdc!$C1444=4,dati_bdv!$F$2:$F$65536,IF(dati_pdc!$C1444=5,dati_bdv!$G$2:$G$65536,dati_bdv!$H$2:$H$65536))))),$A1444,dati_bdv!K$2:K$65536)","v":0},{"$f":"SUMIF(IF(dati_pdc!$C1444=1,dati_bdv!$C$2:$C$65536,IF(dati_pdc!$C1444=2,dati_bdv!$D$2:$D$65536,IF(dati_pdc!$C1444=3,dati_bdv!$E$2:$E$65536,IF(dati_pdc!$C1444=4,dati_bdv!$F$2:$F$65536,IF(dati_pdc!$C1444=5,dati_bdv!$G$2:$G$65536,dati_bdv!$H$2:$H$65536))))),$A1444,dati_bdv!L$2:L$65536)","v":0},{"$f":"SUMIF(IF(dati_pdc!$C1444=1,dati_bdv!$C$2:$C$65536,IF(dati_pdc!$C1444=2,dati_bdv!$D$2:$D$65536,IF(dati_pdc!$C1444=3,dati_bdv!$E$2:$E$65536,IF(dati_pdc!$C1444=4,dati_bdv!$F$2:$F$65536,IF(dati_pdc!$C1444=5,dati_bdv!$G$2:$G$65536,dati_bdv!$H$2:$H$65536))))),$A1444,dati_bdv!M$2:M$65536)","v":0},{"$f":"SUMIF(IF(dati_pdc!$C1444=1,dati_bdv!$C$2:$C$65536,IF(dati_pdc!$C1444=2,dati_bdv!$D$2:$D$65536,IF(dati_pdc!$C1444=3,dati_bdv!$E$2:$E$65536,IF(dati_pdc!$C1444=4,dati_bdv!$F$2:$F$65536,IF(dati_pdc!$C1444=5,dati_bdv!$G$2:$G$65536,dati_bdv!$H$2:$H$65536))))),$A1444,dati_bdv!N$2:N$65536)","v":0}]
[{"$f":"dati_pdc!A1445","v":0},{"$f":"SUMIF(IF(dati_pdc!$C1445=1,dati_bdv!$C$2:$C$65536,IF(dati_pdc!$C1445=2,dati_bdv!$D$2:$D$65536,IF(dati_pdc!$C1445=3,dati_bdv!$E$2:$E$65536,IF(dati_pdc!$C1445=4,dati_bdv!$F$2:$F$65536,IF(dati_pdc!$C1445=5,dati_bdv!$G$2:$G$65536,dati_bdv!$H$2:$H$65536))))),$A1445,dati_bdv!J$2:J$65536)","v":0},{"$f":"SUMIF(IF(dati_pdc!$C1445=1,dati_bdv!$C$2:$C$65536,IF(dati_pdc!$C1445=2,dati_bdv!$D$2:$D$65536,IF(dati_pdc!$C1445=3,dati_bdv!$E$2:$E$65536,IF(dati_pdc!$C1445=4,dati_bdv!$F$2:$F$65536,IF(dati_pdc!$C1445=5,dati_bdv!$G$2:$G$65536,dati_bdv!$H$2:$H$65536))))),$A1445,dati_bdv!K$2:K$65536)","v":0},{"$f":"SUMIF(IF(dati_pdc!$C1445=1,dati_bdv!$C$2:$C$65536,IF(dati_pdc!$C1445=2,dati_bdv!$D$2:$D$65536,IF(dati_pdc!$C1445=3,dati_bdv!$E$2:$E$65536,IF(dati_pdc!$C1445=4,dati_bdv!$F$2:$F$65536,IF(dati_pdc!$C1445=5,dati_bdv!$G$2:$G$65536,dati_bdv!$H$2:$H$65536))))),$A1445,dati_bdv!L$2:L$65536)","v":0},{"$f":"SUMIF(IF(dati_pdc!$C1445=1,dati_bdv!$C$2:$C$65536,IF(dati_pdc!$C1445=2,dati_bdv!$D$2:$D$65536,IF(dati_pdc!$C1445=3,dati_bdv!$E$2:$E$65536,IF(dati_pdc!$C1445=4,dati_bdv!$F$2:$F$65536,IF(dati_pdc!$C1445=5,dati_bdv!$G$2:$G$65536,dati_bdv!$H$2:$H$65536))))),$A1445,dati_bdv!M$2:M$65536)","v":0},{"$f":"SUMIF(IF(dati_pdc!$C1445=1,dati_bdv!$C$2:$C$65536,IF(dati_pdc!$C1445=2,dati_bdv!$D$2:$D$65536,IF(dati_pdc!$C1445=3,dati_bdv!$E$2:$E$65536,IF(dati_pdc!$C1445=4,dati_bdv!$F$2:$F$65536,IF(dati_pdc!$C1445=5,dati_bdv!$G$2:$G$65536,dati_bdv!$H$2:$H$65536))))),$A1445,dati_bdv!N$2:N$65536)","v":0}]
[{"$f":"dati_pdc!A1446","v":0},{"$f":"SUMIF(IF(dati_pdc!$C1446=1,dati_bdv!$C$2:$C$65536,IF(dati_pdc!$C1446=2,dati_bdv!$D$2:$D$65536,IF(dati_pdc!$C1446=3,dati_bdv!$E$2:$E$65536,IF(dati_pdc!$C1446=4,dati_bdv!$F$2:$F$65536,IF(dati_pdc!$C1446=5,dati_bdv!$G$2:$G$65536,dati_bdv!$H$2:$H$65536))))),$A1446,dati_bdv!J$2:J$65536)","v":0},{"$f":"SUMIF(IF(dati_pdc!$C1446=1,dati_bdv!$C$2:$C$65536,IF(dati_pdc!$C1446=2,dati_bdv!$D$2:$D$65536,IF(dati_pdc!$C1446=3,dati_bdv!$E$2:$E$65536,IF(dati_pdc!$C1446=4,dati_bdv!$F$2:$F$65536,IF(dati_pdc!$C1446=5,dati_bdv!$G$2:$G$65536,dati_bdv!$H$2:$H$65536))))),$A1446,dati_bdv!K$2:K$65536)","v":0},{"$f":"SUMIF(IF(dati_pdc!$C1446=1,dati_bdv!$C$2:$C$65536,IF(dati_pdc!$C1446=2,dati_bdv!$D$2:$D$65536,IF(dati_pdc!$C1446=3,dati_bdv!$E$2:$E$65536,IF(dati_pdc!$C1446=4,dati_bdv!$F$2:$F$65536,IF(dati_pdc!$C1446=5,dati_bdv!$G$2:$G$65536,dati_bdv!$H$2:$H$65536))))),$A1446,dati_bdv!L$2:L$65536)","v":0},{"$f":"SUMIF(IF(dati_pdc!$C1446=1,dati_bdv!$C$2:$C$65536,IF(dati_pdc!$C1446=2,dati_bdv!$D$2:$D$65536,IF(dati_pdc!$C1446=3,dati_bdv!$E$2:$E$65536,IF(dati_pdc!$C1446=4,dati_bdv!$F$2:$F$65536,IF(dati_pdc!$C1446=5,dati_bdv!$G$2:$G$65536,dati_bdv!$H$2:$H$65536))))),$A1446,dati_bdv!M$2:M$65536)","v":0},{"$f":"SUMIF(IF(dati_pdc!$C1446=1,dati_bdv!$C$2:$C$65536,IF(dati_pdc!$C1446=2,dati_bdv!$D$2:$D$65536,IF(dati_pdc!$C1446=3,dati_bdv!$E$2:$E$65536,IF(dati_pdc!$C1446=4,dati_bdv!$F$2:$F$65536,IF(dati_pdc!$C1446=5,dati_bdv!$G$2:$G$65536,dati_bdv!$H$2:$H$65536))))),$A1446,dati_bdv!N$2:N$65536)","v":0}]
[{"$f":"dati_pdc!A1447","v":0},{"$f":"SUMIF(IF(dati_pdc!$C1447=1,dati_bdv!$C$2:$C$65536,IF(dati_pdc!$C1447=2,dati_bdv!$D$2:$D$65536,IF(dati_pdc!$C1447=3,dati_bdv!$E$2:$E$65536,IF(dati_pdc!$C1447=4,dati_bdv!$F$2:$F$65536,IF(dati_pdc!$C1447=5,dati_bdv!$G$2:$G$65536,dati_bdv!$H$2:$H$65536))))),$A1447,dati_bdv!J$2:J$65536)","v":0},{"$f":"SUMIF(IF(dati_pdc!$C1447=1,dati_bdv!$C$2:$C$65536,IF(dati_pdc!$C1447=2,dati_bdv!$D$2:$D$65536,IF(dati_pdc!$C1447=3,dati_bdv!$E$2:$E$65536,IF(dati_pdc!$C1447=4,dati_bdv!$F$2:$F$65536,IF(dati_pdc!$C1447=5,dati_bdv!$G$2:$G$65536,dati_bdv!$H$2:$H$65536))))),$A1447,dati_bdv!K$2:K$65536)","v":0},{"$f":"SUMIF(IF(dati_pdc!$C1447=1,dati_bdv!$C$2:$C$65536,IF(dati_pdc!$C1447=2,dati_bdv!$D$2:$D$65536,IF(dati_pdc!$C1447=3,dati_bdv!$E$2:$E$65536,IF(dati_pdc!$C1447=4,dati_bdv!$F$2:$F$65536,IF(dati_pdc!$C1447=5,dati_bdv!$G$2:$G$65536,dati_bdv!$H$2:$H$65536))))),$A1447,dati_bdv!L$2:L$65536)","v":0},{"$f":"SUMIF(IF(dati_pdc!$C1447=1,dati_bdv!$C$2:$C$65536,IF(dati_pdc!$C1447=2,dati_bdv!$D$2:$D$65536,IF(dati_pdc!$C1447=3,dati_bdv!$E$2:$E$65536,IF(dati_pdc!$C1447=4,dati_bdv!$F$2:$F$65536,IF(dati_pdc!$C1447=5,dati_bdv!$G$2:$G$65536,dati_bdv!$H$2:$H$65536))))),$A1447,dati_bdv!M$2:M$65536)","v":0},{"$f":"SUMIF(IF(dati_pdc!$C1447=1,dati_bdv!$C$2:$C$65536,IF(dati_pdc!$C1447=2,dati_bdv!$D$2:$D$65536,IF(dati_pdc!$C1447=3,dati_bdv!$E$2:$E$65536,IF(dati_pdc!$C1447=4,dati_bdv!$F$2:$F$65536,IF(dati_pdc!$C1447=5,dati_bdv!$G$2:$G$65536,dati_bdv!$H$2:$H$65536))))),$A1447,dati_bdv!N$2:N$65536)","v":0}]
[{"$f":"dati_pdc!A1448","v":0},{"$f":"SUMIF(IF(dati_pdc!$C1448=1,dati_bdv!$C$2:$C$65536,IF(dati_pdc!$C1448=2,dati_bdv!$D$2:$D$65536,IF(dati_pdc!$C1448=3,dati_bdv!$E$2:$E$65536,IF(dati_pdc!$C1448=4,dati_bdv!$F$2:$F$65536,IF(dati_pdc!$C1448=5,dati_bdv!$G$2:$G$65536,dati_bdv!$H$2:$H$65536))))),$A1448,dati_bdv!J$2:J$65536)","v":0},{"$f":"SUMIF(IF(dati_pdc!$C1448=1,dati_bdv!$C$2:$C$65536,IF(dati_pdc!$C1448=2,dati_bdv!$D$2:$D$65536,IF(dati_pdc!$C1448=3,dati_bdv!$E$2:$E$65536,IF(dati_pdc!$C1448=4,dati_bdv!$F$2:$F$65536,IF(dati_pdc!$C1448=5,dati_bdv!$G$2:$G$65536,dati_bdv!$H$2:$H$65536))))),$A1448,dati_bdv!K$2:K$65536)","v":0},{"$f":"SUMIF(IF(dati_pdc!$C1448=1,dati_bdv!$C$2:$C$65536,IF(dati_pdc!$C1448=2,dati_bdv!$D$2:$D$65536,IF(dati_pdc!$C1448=3,dati_bdv!$E$2:$E$65536,IF(dati_pdc!$C1448=4,dati_bdv!$F$2:$F$65536,IF(dati_pdc!$C1448=5,dati_bdv!$G$2:$G$65536,dati_bdv!$H$2:$H$65536))))),$A1448,dati_bdv!L$2:L$65536)","v":0},{"$f":"SUMIF(IF(dati_pdc!$C1448=1,dati_bdv!$C$2:$C$65536,IF(dati_pdc!$C1448=2,dati_bdv!$D$2:$D$65536,IF(dati_pdc!$C1448=3,dati_bdv!$E$2:$E$65536,IF(dati_pdc!$C1448=4,dati_bdv!$F$2:$F$65536,IF(dati_pdc!$C1448=5,dati_bdv!$G$2:$G$65536,dati_bdv!$H$2:$H$65536))))),$A1448,dati_bdv!M$2:M$65536)","v":0},{"$f":"SUMIF(IF(dati_pdc!$C1448=1,dati_bdv!$C$2:$C$65536,IF(dati_pdc!$C1448=2,dati_bdv!$D$2:$D$65536,IF(dati_pdc!$C1448=3,dati_bdv!$E$2:$E$65536,IF(dati_pdc!$C1448=4,dati_bdv!$F$2:$F$65536,IF(dati_pdc!$C1448=5,dati_bdv!$G$2:$G$65536,dati_bdv!$H$2:$H$65536))))),$A1448,dati_bdv!N$2:N$65536)","v":0}]
[{"$f":"dati_pdc!A1449","v":0},{"$f":"SUMIF(IF(dati_pdc!$C1449=1,dati_bdv!$C$2:$C$65536,IF(dati_pdc!$C1449=2,dati_bdv!$D$2:$D$65536,IF(dati_pdc!$C1449=3,dati_bdv!$E$2:$E$65536,IF(dati_pdc!$C1449=4,dati_bdv!$F$2:$F$65536,IF(dati_pdc!$C1449=5,dati_bdv!$G$2:$G$65536,dati_bdv!$H$2:$H$65536))))),$A1449,dati_bdv!J$2:J$65536)","v":0},{"$f":"SUMIF(IF(dati_pdc!$C1449=1,dati_bdv!$C$2:$C$65536,IF(dati_pdc!$C1449=2,dati_bdv!$D$2:$D$65536,IF(dati_pdc!$C1449=3,dati_bdv!$E$2:$E$65536,IF(dati_pdc!$C1449=4,dati_bdv!$F$2:$F$65536,IF(dati_pdc!$C1449=5,dati_bdv!$G$2:$G$65536,dati_bdv!$H$2:$H$65536))))),$A1449,dati_bdv!K$2:K$65536)","v":0},{"$f":"SUMIF(IF(dati_pdc!$C1449=1,dati_bdv!$C$2:$C$65536,IF(dati_pdc!$C1449=2,dati_bdv!$D$2:$D$65536,IF(dati_pdc!$C1449=3,dati_bdv!$E$2:$E$65536,IF(dati_pdc!$C1449=4,dati_bdv!$F$2:$F$65536,IF(dati_pdc!$C1449=5,dati_bdv!$G$2:$G$65536,dati_bdv!$H$2:$H$65536))))),$A1449,dati_bdv!L$2:L$65536)","v":0},{"$f":"SUMIF(IF(dati_pdc!$C1449=1,dati_bdv!$C$2:$C$65536,IF(dati_pdc!$C1449=2,dati_bdv!$D$2:$D$65536,IF(dati_pdc!$C1449=3,dati_bdv!$E$2:$E$65536,IF(dati_pdc!$C1449=4,dati_bdv!$F$2:$F$65536,IF(dati_pdc!$C1449=5,dati_bdv!$G$2:$G$65536,dati_bdv!$H$2:$H$65536))))),$A1449,dati_bdv!M$2:M$65536)","v":0},{"$f":"SUMIF(IF(dati_pdc!$C1449=1,dati_bdv!$C$2:$C$65536,IF(dati_pdc!$C1449=2,dati_bdv!$D$2:$D$65536,IF(dati_pdc!$C1449=3,dati_bdv!$E$2:$E$65536,IF(dati_pdc!$C1449=4,dati_bdv!$F$2:$F$65536,IF(dati_pdc!$C1449=5,dati_bdv!$G$2:$G$65536,dati_bdv!$H$2:$H$65536))))),$A1449,dati_bdv!N$2:N$65536)","v":0}]
[{"$f":"dati_pdc!A1450","v":0},{"$f":"SUMIF(IF(dati_pdc!$C1450=1,dati_bdv!$C$2:$C$65536,IF(dati_pdc!$C1450=2,dati_bdv!$D$2:$D$65536,IF(dati_pdc!$C1450=3,dati_bdv!$E$2:$E$65536,IF(dati_pdc!$C1450=4,dati_bdv!$F$2:$F$65536,IF(dati_pdc!$C1450=5,dati_bdv!$G$2:$G$65536,dati_bdv!$H$2:$H$65536))))),$A1450,dati_bdv!J$2:J$65536)","v":0},{"$f":"SUMIF(IF(dati_pdc!$C1450=1,dati_bdv!$C$2:$C$65536,IF(dati_pdc!$C1450=2,dati_bdv!$D$2:$D$65536,IF(dati_pdc!$C1450=3,dati_bdv!$E$2:$E$65536,IF(dati_pdc!$C1450=4,dati_bdv!$F$2:$F$65536,IF(dati_pdc!$C1450=5,dati_bdv!$G$2:$G$65536,dati_bdv!$H$2:$H$65536))))),$A1450,dati_bdv!K$2:K$65536)","v":0},{"$f":"SUMIF(IF(dati_pdc!$C1450=1,dati_bdv!$C$2:$C$65536,IF(dati_pdc!$C1450=2,dati_bdv!$D$2:$D$65536,IF(dati_pdc!$C1450=3,dati_bdv!$E$2:$E$65536,IF(dati_pdc!$C1450=4,dati_bdv!$F$2:$F$65536,IF(dati_pdc!$C1450=5,dati_bdv!$G$2:$G$65536,dati_bdv!$H$2:$H$65536))))),$A1450,dati_bdv!L$2:L$65536)","v":0},{"$f":"SUMIF(IF(dati_pdc!$C1450=1,dati_bdv!$C$2:$C$65536,IF(dati_pdc!$C1450=2,dati_bdv!$D$2:$D$65536,IF(dati_pdc!$C1450=3,dati_bdv!$E$2:$E$65536,IF(dati_pdc!$C1450=4,dati_bdv!$F$2:$F$65536,IF(dati_pdc!$C1450=5,dati_bdv!$G$2:$G$65536,dati_bdv!$H$2:$H$65536))))),$A1450,dati_bdv!M$2:M$65536)","v":0},{"$f":"SUMIF(IF(dati_pdc!$C1450=1,dati_bdv!$C$2:$C$65536,IF(dati_pdc!$C1450=2,dati_bdv!$D$2:$D$65536,IF(dati_pdc!$C1450=3,dati_bdv!$E$2:$E$65536,IF(dati_pdc!$C1450=4,dati_bdv!$F$2:$F$65536,IF(dati_pdc!$C1450=5,dati_bdv!$G$2:$G$65536,dati_bdv!$H$2:$H$65536))))),$A1450,dati_bdv!N$2:N$65536)","v":0}]
[{"$f":"dati_pdc!A1451","v":0},{"$f":"SUMIF(IF(dati_pdc!$C1451=1,dati_bdv!$C$2:$C$65536,IF(dati_pdc!$C1451=2,dati_bdv!$D$2:$D$65536,IF(dati_pdc!$C1451=3,dati_bdv!$E$2:$E$65536,IF(dati_pdc!$C1451=4,dati_bdv!$F$2:$F$65536,IF(dati_pdc!$C1451=5,dati_bdv!$G$2:$G$65536,dati_bdv!$H$2:$H$65536))))),$A1451,dati_bdv!J$2:J$65536)","v":0},{"$f":"SUMIF(IF(dati_pdc!$C1451=1,dati_bdv!$C$2:$C$65536,IF(dati_pdc!$C1451=2,dati_bdv!$D$2:$D$65536,IF(dati_pdc!$C1451=3,dati_bdv!$E$2:$E$65536,IF(dati_pdc!$C1451=4,dati_bdv!$F$2:$F$65536,IF(dati_pdc!$C1451=5,dati_bdv!$G$2:$G$65536,dati_bdv!$H$2:$H$65536))))),$A1451,dati_bdv!K$2:K$65536)","v":0},{"$f":"SUMIF(IF(dati_pdc!$C1451=1,dati_bdv!$C$2:$C$65536,IF(dati_pdc!$C1451=2,dati_bdv!$D$2:$D$65536,IF(dati_pdc!$C1451=3,dati_bdv!$E$2:$E$65536,IF(dati_pdc!$C1451=4,dati_bdv!$F$2:$F$65536,IF(dati_pdc!$C1451=5,dati_bdv!$G$2:$G$65536,dati_bdv!$H$2:$H$65536))))),$A1451,dati_bdv!L$2:L$65536)","v":0},{"$f":"SUMIF(IF(dati_pdc!$C1451=1,dati_bdv!$C$2:$C$65536,IF(dati_pdc!$C1451=2,dati_bdv!$D$2:$D$65536,IF(dati_pdc!$C1451=3,dati_bdv!$E$2:$E$65536,IF(dati_pdc!$C1451=4,dati_bdv!$F$2:$F$65536,IF(dati_pdc!$C1451=5,dati_bdv!$G$2:$G$65536,dati_bdv!$H$2:$H$65536))))),$A1451,dati_bdv!M$2:M$65536)","v":0},{"$f":"SUMIF(IF(dati_pdc!$C1451=1,dati_bdv!$C$2:$C$65536,IF(dati_pdc!$C1451=2,dati_bdv!$D$2:$D$65536,IF(dati_pdc!$C1451=3,dati_bdv!$E$2:$E$65536,IF(dati_pdc!$C1451=4,dati_bdv!$F$2:$F$65536,IF(dati_pdc!$C1451=5,dati_bdv!$G$2:$G$65536,dati_bdv!$H$2:$H$65536))))),$A1451,dati_bdv!N$2:N$65536)","v":0}]
[{"$f":"dati_pdc!A1452","v":0},{"$f":"SUMIF(IF(dati_pdc!$C1452=1,dati_bdv!$C$2:$C$65536,IF(dati_pdc!$C1452=2,dati_bdv!$D$2:$D$65536,IF(dati_pdc!$C1452=3,dati_bdv!$E$2:$E$65536,IF(dati_pdc!$C1452=4,dati_bdv!$F$2:$F$65536,IF(dati_pdc!$C1452=5,dati_bdv!$G$2:$G$65536,dati_bdv!$H$2:$H$65536))))),$A1452,dati_bdv!J$2:J$65536)","v":0},{"$f":"SUMIF(IF(dati_pdc!$C1452=1,dati_bdv!$C$2:$C$65536,IF(dati_pdc!$C1452=2,dati_bdv!$D$2:$D$65536,IF(dati_pdc!$C1452=3,dati_bdv!$E$2:$E$65536,IF(dati_pdc!$C1452=4,dati_bdv!$F$2:$F$65536,IF(dati_pdc!$C1452=5,dati_bdv!$G$2:$G$65536,dati_bdv!$H$2:$H$65536))))),$A1452,dati_bdv!K$2:K$65536)","v":0},{"$f":"SUMIF(IF(dati_pdc!$C1452=1,dati_bdv!$C$2:$C$65536,IF(dati_pdc!$C1452=2,dati_bdv!$D$2:$D$65536,IF(dati_pdc!$C1452=3,dati_bdv!$E$2:$E$65536,IF(dati_pdc!$C1452=4,dati_bdv!$F$2:$F$65536,IF(dati_pdc!$C1452=5,dati_bdv!$G$2:$G$65536,dati_bdv!$H$2:$H$65536))))),$A1452,dati_bdv!L$2:L$65536)","v":0},{"$f":"SUMIF(IF(dati_pdc!$C1452=1,dati_bdv!$C$2:$C$65536,IF(dati_pdc!$C1452=2,dati_bdv!$D$2:$D$65536,IF(dati_pdc!$C1452=3,dati_bdv!$E$2:$E$65536,IF(dati_pdc!$C1452=4,dati_bdv!$F$2:$F$65536,IF(dati_pdc!$C1452=5,dati_bdv!$G$2:$G$65536,dati_bdv!$H$2:$H$65536))))),$A1452,dati_bdv!M$2:M$65536)","v":0},{"$f":"SUMIF(IF(dati_pdc!$C1452=1,dati_bdv!$C$2:$C$65536,IF(dati_pdc!$C1452=2,dati_bdv!$D$2:$D$65536,IF(dati_pdc!$C1452=3,dati_bdv!$E$2:$E$65536,IF(dati_pdc!$C1452=4,dati_bdv!$F$2:$F$65536,IF(dati_pdc!$C1452=5,dati_bdv!$G$2:$G$65536,dati_bdv!$H$2:$H$65536))))),$A1452,dati_bdv!N$2:N$65536)","v":0}]
[{"$f":"dati_pdc!A1453","v":0},{"$f":"SUMIF(IF(dati_pdc!$C1453=1,dati_bdv!$C$2:$C$65536,IF(dati_pdc!$C1453=2,dati_bdv!$D$2:$D$65536,IF(dati_pdc!$C1453=3,dati_bdv!$E$2:$E$65536,IF(dati_pdc!$C1453=4,dati_bdv!$F$2:$F$65536,IF(dati_pdc!$C1453=5,dati_bdv!$G$2:$G$65536,dati_bdv!$H$2:$H$65536))))),$A1453,dati_bdv!J$2:J$65536)","v":0},{"$f":"SUMIF(IF(dati_pdc!$C1453=1,dati_bdv!$C$2:$C$65536,IF(dati_pdc!$C1453=2,dati_bdv!$D$2:$D$65536,IF(dati_pdc!$C1453=3,dati_bdv!$E$2:$E$65536,IF(dati_pdc!$C1453=4,dati_bdv!$F$2:$F$65536,IF(dati_pdc!$C1453=5,dati_bdv!$G$2:$G$65536,dati_bdv!$H$2:$H$65536))))),$A1453,dati_bdv!K$2:K$65536)","v":0},{"$f":"SUMIF(IF(dati_pdc!$C1453=1,dati_bdv!$C$2:$C$65536,IF(dati_pdc!$C1453=2,dati_bdv!$D$2:$D$65536,IF(dati_pdc!$C1453=3,dati_bdv!$E$2:$E$65536,IF(dati_pdc!$C1453=4,dati_bdv!$F$2:$F$65536,IF(dati_pdc!$C1453=5,dati_bdv!$G$2:$G$65536,dati_bdv!$H$2:$H$65536))))),$A1453,dati_bdv!L$2:L$65536)","v":0},{"$f":"SUMIF(IF(dati_pdc!$C1453=1,dati_bdv!$C$2:$C$65536,IF(dati_pdc!$C1453=2,dati_bdv!$D$2:$D$65536,IF(dati_pdc!$C1453=3,dati_bdv!$E$2:$E$65536,IF(dati_pdc!$C1453=4,dati_bdv!$F$2:$F$65536,IF(dati_pdc!$C1453=5,dati_bdv!$G$2:$G$65536,dati_bdv!$H$2:$H$65536))))),$A1453,dati_bdv!M$2:M$65536)","v":0},{"$f":"SUMIF(IF(dati_pdc!$C1453=1,dati_bdv!$C$2:$C$65536,IF(dati_pdc!$C1453=2,dati_bdv!$D$2:$D$65536,IF(dati_pdc!$C1453=3,dati_bdv!$E$2:$E$65536,IF(dati_pdc!$C1453=4,dati_bdv!$F$2:$F$65536,IF(dati_pdc!$C1453=5,dati_bdv!$G$2:$G$65536,dati_bdv!$H$2:$H$65536))))),$A1453,dati_bdv!N$2:N$65536)","v":0}]
[{"$f":"dati_pdc!A1454","v":0},{"$f":"SUMIF(IF(dati_pdc!$C1454=1,dati_bdv!$C$2:$C$65536,IF(dati_pdc!$C1454=2,dati_bdv!$D$2:$D$65536,IF(dati_pdc!$C1454=3,dati_bdv!$E$2:$E$65536,IF(dati_pdc!$C1454=4,dati_bdv!$F$2:$F$65536,IF(dati_pdc!$C1454=5,dati_bdv!$G$2:$G$65536,dati_bdv!$H$2:$H$65536))))),$A1454,dati_bdv!J$2:J$65536)","v":0},{"$f":"SUMIF(IF(dati_pdc!$C1454=1,dati_bdv!$C$2:$C$65536,IF(dati_pdc!$C1454=2,dati_bdv!$D$2:$D$65536,IF(dati_pdc!$C1454=3,dati_bdv!$E$2:$E$65536,IF(dati_pdc!$C1454=4,dati_bdv!$F$2:$F$65536,IF(dati_pdc!$C1454=5,dati_bdv!$G$2:$G$65536,dati_bdv!$H$2:$H$65536))))),$A1454,dati_bdv!K$2:K$65536)","v":0},{"$f":"SUMIF(IF(dati_pdc!$C1454=1,dati_bdv!$C$2:$C$65536,IF(dati_pdc!$C1454=2,dati_bdv!$D$2:$D$65536,IF(dati_pdc!$C1454=3,dati_bdv!$E$2:$E$65536,IF(dati_pdc!$C1454=4,dati_bdv!$F$2:$F$65536,IF(dati_pdc!$C1454=5,dati_bdv!$G$2:$G$65536,dati_bdv!$H$2:$H$65536))))),$A1454,dati_bdv!L$2:L$65536)","v":0},{"$f":"SUMIF(IF(dati_pdc!$C1454=1,dati_bdv!$C$2:$C$65536,IF(dati_pdc!$C1454=2,dati_bdv!$D$2:$D$65536,IF(dati_pdc!$C1454=3,dati_bdv!$E$2:$E$65536,IF(dati_pdc!$C1454=4,dati_bdv!$F$2:$F$65536,IF(dati_pdc!$C1454=5,dati_bdv!$G$2:$G$65536,dati_bdv!$H$2:$H$65536))))),$A1454,dati_bdv!M$2:M$65536)","v":0},{"$f":"SUMIF(IF(dati_pdc!$C1454=1,dati_bdv!$C$2:$C$65536,IF(dati_pdc!$C1454=2,dati_bdv!$D$2:$D$65536,IF(dati_pdc!$C1454=3,dati_bdv!$E$2:$E$65536,IF(dati_pdc!$C1454=4,dati_bdv!$F$2:$F$65536,IF(dati_pdc!$C1454=5,dati_bdv!$G$2:$G$65536,dati_bdv!$H$2:$H$65536))))),$A1454,dati_bdv!N$2:N$65536)","v":0}]
[{"$f":"dati_pdc!A1455","v":0},{"$f":"SUMIF(IF(dati_pdc!$C1455=1,dati_bdv!$C$2:$C$65536,IF(dati_pdc!$C1455=2,dati_bdv!$D$2:$D$65536,IF(dati_pdc!$C1455=3,dati_bdv!$E$2:$E$65536,IF(dati_pdc!$C1455=4,dati_bdv!$F$2:$F$65536,IF(dati_pdc!$C1455=5,dati_bdv!$G$2:$G$65536,dati_bdv!$H$2:$H$65536))))),$A1455,dati_bdv!J$2:J$65536)","v":0},{"$f":"SUMIF(IF(dati_pdc!$C1455=1,dati_bdv!$C$2:$C$65536,IF(dati_pdc!$C1455=2,dati_bdv!$D$2:$D$65536,IF(dati_pdc!$C1455=3,dati_bdv!$E$2:$E$65536,IF(dati_pdc!$C1455=4,dati_bdv!$F$2:$F$65536,IF(dati_pdc!$C1455=5,dati_bdv!$G$2:$G$65536,dati_bdv!$H$2:$H$65536))))),$A1455,dati_bdv!K$2:K$65536)","v":0},{"$f":"SUMIF(IF(dati_pdc!$C1455=1,dati_bdv!$C$2:$C$65536,IF(dati_pdc!$C1455=2,dati_bdv!$D$2:$D$65536,IF(dati_pdc!$C1455=3,dati_bdv!$E$2:$E$65536,IF(dati_pdc!$C1455=4,dati_bdv!$F$2:$F$65536,IF(dati_pdc!$C1455=5,dati_bdv!$G$2:$G$65536,dati_bdv!$H$2:$H$65536))))),$A1455,dati_bdv!L$2:L$65536)","v":0},{"$f":"SUMIF(IF(dati_pdc!$C1455=1,dati_bdv!$C$2:$C$65536,IF(dati_pdc!$C1455=2,dati_bdv!$D$2:$D$65536,IF(dati_pdc!$C1455=3,dati_bdv!$E$2:$E$65536,IF(dati_pdc!$C1455=4,dati_bdv!$F$2:$F$65536,IF(dati_pdc!$C1455=5,dati_bdv!$G$2:$G$65536,dati_bdv!$H$2:$H$65536))))),$A1455,dati_bdv!M$2:M$65536)","v":0},{"$f":"SUMIF(IF(dati_pdc!$C1455=1,dati_bdv!$C$2:$C$65536,IF(dati_pdc!$C1455=2,dati_bdv!$D$2:$D$65536,IF(dati_pdc!$C1455=3,dati_bdv!$E$2:$E$65536,IF(dati_pdc!$C1455=4,dati_bdv!$F$2:$F$65536,IF(dati_pdc!$C1455=5,dati_bdv!$G$2:$G$65536,dati_bdv!$H$2:$H$65536))))),$A1455,dati_bdv!N$2:N$65536)","v":0}]
[{"$f":"dati_pdc!A1456","v":0},{"$f":"SUMIF(IF(dati_pdc!$C1456=1,dati_bdv!$C$2:$C$65536,IF(dati_pdc!$C1456=2,dati_bdv!$D$2:$D$65536,IF(dati_pdc!$C1456=3,dati_bdv!$E$2:$E$65536,IF(dati_pdc!$C1456=4,dati_bdv!$F$2:$F$65536,IF(dati_pdc!$C1456=5,dati_bdv!$G$2:$G$65536,dati_bdv!$H$2:$H$65536))))),$A1456,dati_bdv!J$2:J$65536)","v":0},{"$f":"SUMIF(IF(dati_pdc!$C1456=1,dati_bdv!$C$2:$C$65536,IF(dati_pdc!$C1456=2,dati_bdv!$D$2:$D$65536,IF(dati_pdc!$C1456=3,dati_bdv!$E$2:$E$65536,IF(dati_pdc!$C1456=4,dati_bdv!$F$2:$F$65536,IF(dati_pdc!$C1456=5,dati_bdv!$G$2:$G$65536,dati_bdv!$H$2:$H$65536))))),$A1456,dati_bdv!K$2:K$65536)","v":0},{"$f":"SUMIF(IF(dati_pdc!$C1456=1,dati_bdv!$C$2:$C$65536,IF(dati_pdc!$C1456=2,dati_bdv!$D$2:$D$65536,IF(dati_pdc!$C1456=3,dati_bdv!$E$2:$E$65536,IF(dati_pdc!$C1456=4,dati_bdv!$F$2:$F$65536,IF(dati_pdc!$C1456=5,dati_bdv!$G$2:$G$65536,dati_bdv!$H$2:$H$65536))))),$A1456,dati_bdv!L$2:L$65536)","v":0},{"$f":"SUMIF(IF(dati_pdc!$C1456=1,dati_bdv!$C$2:$C$65536,IF(dati_pdc!$C1456=2,dati_bdv!$D$2:$D$65536,IF(dati_pdc!$C1456=3,dati_bdv!$E$2:$E$65536,IF(dati_pdc!$C1456=4,dati_bdv!$F$2:$F$65536,IF(dati_pdc!$C1456=5,dati_bdv!$G$2:$G$65536,dati_bdv!$H$2:$H$65536))))),$A1456,dati_bdv!M$2:M$65536)","v":0},{"$f":"SUMIF(IF(dati_pdc!$C1456=1,dati_bdv!$C$2:$C$65536,IF(dati_pdc!$C1456=2,dati_bdv!$D$2:$D$65536,IF(dati_pdc!$C1456=3,dati_bdv!$E$2:$E$65536,IF(dati_pdc!$C1456=4,dati_bdv!$F$2:$F$65536,IF(dati_pdc!$C1456=5,dati_bdv!$G$2:$G$65536,dati_bdv!$H$2:$H$65536))))),$A1456,dati_bdv!N$2:N$65536)","v":0}]
[{"$f":"dati_pdc!A1457","v":0},{"$f":"SUMIF(IF(dati_pdc!$C1457=1,dati_bdv!$C$2:$C$65536,IF(dati_pdc!$C1457=2,dati_bdv!$D$2:$D$65536,IF(dati_pdc!$C1457=3,dati_bdv!$E$2:$E$65536,IF(dati_pdc!$C1457=4,dati_bdv!$F$2:$F$65536,IF(dati_pdc!$C1457=5,dati_bdv!$G$2:$G$65536,dati_bdv!$H$2:$H$65536))))),$A1457,dati_bdv!J$2:J$65536)","v":0},{"$f":"SUMIF(IF(dati_pdc!$C1457=1,dati_bdv!$C$2:$C$65536,IF(dati_pdc!$C1457=2,dati_bdv!$D$2:$D$65536,IF(dati_pdc!$C1457=3,dati_bdv!$E$2:$E$65536,IF(dati_pdc!$C1457=4,dati_bdv!$F$2:$F$65536,IF(dati_pdc!$C1457=5,dati_bdv!$G$2:$G$65536,dati_bdv!$H$2:$H$65536))))),$A1457,dati_bdv!K$2:K$65536)","v":0},{"$f":"SUMIF(IF(dati_pdc!$C1457=1,dati_bdv!$C$2:$C$65536,IF(dati_pdc!$C1457=2,dati_bdv!$D$2:$D$65536,IF(dati_pdc!$C1457=3,dati_bdv!$E$2:$E$65536,IF(dati_pdc!$C1457=4,dati_bdv!$F$2:$F$65536,IF(dati_pdc!$C1457=5,dati_bdv!$G$2:$G$65536,dati_bdv!$H$2:$H$65536))))),$A1457,dati_bdv!L$2:L$65536)","v":0},{"$f":"SUMIF(IF(dati_pdc!$C1457=1,dati_bdv!$C$2:$C$65536,IF(dati_pdc!$C1457=2,dati_bdv!$D$2:$D$65536,IF(dati_pdc!$C1457=3,dati_bdv!$E$2:$E$65536,IF(dati_pdc!$C1457=4,dati_bdv!$F$2:$F$65536,IF(dati_pdc!$C1457=5,dati_bdv!$G$2:$G$65536,dati_bdv!$H$2:$H$65536))))),$A1457,dati_bdv!M$2:M$65536)","v":0},{"$f":"SUMIF(IF(dati_pdc!$C1457=1,dati_bdv!$C$2:$C$65536,IF(dati_pdc!$C1457=2,dati_bdv!$D$2:$D$65536,IF(dati_pdc!$C1457=3,dati_bdv!$E$2:$E$65536,IF(dati_pdc!$C1457=4,dati_bdv!$F$2:$F$65536,IF(dati_pdc!$C1457=5,dati_bdv!$G$2:$G$65536,dati_bdv!$H$2:$H$65536))))),$A1457,dati_bdv!N$2:N$65536)","v":0}]
[{"$f":"dati_pdc!A1458","v":0},{"$f":"SUMIF(IF(dati_pdc!$C1458=1,dati_bdv!$C$2:$C$65536,IF(dati_pdc!$C1458=2,dati_bdv!$D$2:$D$65536,IF(dati_pdc!$C1458=3,dati_bdv!$E$2:$E$65536,IF(dati_pdc!$C1458=4,dati_bdv!$F$2:$F$65536,IF(dati_pdc!$C1458=5,dati_bdv!$G$2:$G$65536,dati_bdv!$H$2:$H$65536))))),$A1458,dati_bdv!J$2:J$65536)","v":0},{"$f":"SUMIF(IF(dati_pdc!$C1458=1,dati_bdv!$C$2:$C$65536,IF(dati_pdc!$C1458=2,dati_bdv!$D$2:$D$65536,IF(dati_pdc!$C1458=3,dati_bdv!$E$2:$E$65536,IF(dati_pdc!$C1458=4,dati_bdv!$F$2:$F$65536,IF(dati_pdc!$C1458=5,dati_bdv!$G$2:$G$65536,dati_bdv!$H$2:$H$65536))))),$A1458,dati_bdv!K$2:K$65536)","v":0},{"$f":"SUMIF(IF(dati_pdc!$C1458=1,dati_bdv!$C$2:$C$65536,IF(dati_pdc!$C1458=2,dati_bdv!$D$2:$D$65536,IF(dati_pdc!$C1458=3,dati_bdv!$E$2:$E$65536,IF(dati_pdc!$C1458=4,dati_bdv!$F$2:$F$65536,IF(dati_pdc!$C1458=5,dati_bdv!$G$2:$G$65536,dati_bdv!$H$2:$H$65536))))),$A1458,dati_bdv!L$2:L$65536)","v":0},{"$f":"SUMIF(IF(dati_pdc!$C1458=1,dati_bdv!$C$2:$C$65536,IF(dati_pdc!$C1458=2,dati_bdv!$D$2:$D$65536,IF(dati_pdc!$C1458=3,dati_bdv!$E$2:$E$65536,IF(dati_pdc!$C1458=4,dati_bdv!$F$2:$F$65536,IF(dati_pdc!$C1458=5,dati_bdv!$G$2:$G$65536,dati_bdv!$H$2:$H$65536))))),$A1458,dati_bdv!M$2:M$65536)","v":0},{"$f":"SUMIF(IF(dati_pdc!$C1458=1,dati_bdv!$C$2:$C$65536,IF(dati_pdc!$C1458=2,dati_bdv!$D$2:$D$65536,IF(dati_pdc!$C1458=3,dati_bdv!$E$2:$E$65536,IF(dati_pdc!$C1458=4,dati_bdv!$F$2:$F$65536,IF(dati_pdc!$C1458=5,dati_bdv!$G$2:$G$65536,dati_bdv!$H$2:$H$65536))))),$A1458,dati_bdv!N$2:N$65536)","v":0}]
[{"$f":"dati_pdc!A1459","v":0},{"$f":"SUMIF(IF(dati_pdc!$C1459=1,dati_bdv!$C$2:$C$65536,IF(dati_pdc!$C1459=2,dati_bdv!$D$2:$D$65536,IF(dati_pdc!$C1459=3,dati_bdv!$E$2:$E$65536,IF(dati_pdc!$C1459=4,dati_bdv!$F$2:$F$65536,IF(dati_pdc!$C1459=5,dati_bdv!$G$2:$G$65536,dati_bdv!$H$2:$H$65536))))),$A1459,dati_bdv!J$2:J$65536)","v":0},{"$f":"SUMIF(IF(dati_pdc!$C1459=1,dati_bdv!$C$2:$C$65536,IF(dati_pdc!$C1459=2,dati_bdv!$D$2:$D$65536,IF(dati_pdc!$C1459=3,dati_bdv!$E$2:$E$65536,IF(dati_pdc!$C1459=4,dati_bdv!$F$2:$F$65536,IF(dati_pdc!$C1459=5,dati_bdv!$G$2:$G$65536,dati_bdv!$H$2:$H$65536))))),$A1459,dati_bdv!K$2:K$65536)","v":0},{"$f":"SUMIF(IF(dati_pdc!$C1459=1,dati_bdv!$C$2:$C$65536,IF(dati_pdc!$C1459=2,dati_bdv!$D$2:$D$65536,IF(dati_pdc!$C1459=3,dati_bdv!$E$2:$E$65536,IF(dati_pdc!$C1459=4,dati_bdv!$F$2:$F$65536,IF(dati_pdc!$C1459=5,dati_bdv!$G$2:$G$65536,dati_bdv!$H$2:$H$65536))))),$A1459,dati_bdv!L$2:L$65536)","v":0},{"$f":"SUMIF(IF(dati_pdc!$C1459=1,dati_bdv!$C$2:$C$65536,IF(dati_pdc!$C1459=2,dati_bdv!$D$2:$D$65536,IF(dati_pdc!$C1459=3,dati_bdv!$E$2:$E$65536,IF(dati_pdc!$C1459=4,dati_bdv!$F$2:$F$65536,IF(dati_pdc!$C1459=5,dati_bdv!$G$2:$G$65536,dati_bdv!$H$2:$H$65536))))),$A1459,dati_bdv!M$2:M$65536)","v":0},{"$f":"SUMIF(IF(dati_pdc!$C1459=1,dati_bdv!$C$2:$C$65536,IF(dati_pdc!$C1459=2,dati_bdv!$D$2:$D$65536,IF(dati_pdc!$C1459=3,dati_bdv!$E$2:$E$65536,IF(dati_pdc!$C1459=4,dati_bdv!$F$2:$F$65536,IF(dati_pdc!$C1459=5,dati_bdv!$G$2:$G$65536,dati_bdv!$H$2:$H$65536))))),$A1459,dati_bdv!N$2:N$65536)","v":0}]
[{"$f":"dati_pdc!A1460","v":0},{"$f":"SUMIF(IF(dati_pdc!$C1460=1,dati_bdv!$C$2:$C$65536,IF(dati_pdc!$C1460=2,dati_bdv!$D$2:$D$65536,IF(dati_pdc!$C1460=3,dati_bdv!$E$2:$E$65536,IF(dati_pdc!$C1460=4,dati_bdv!$F$2:$F$65536,IF(dati_pdc!$C1460=5,dati_bdv!$G$2:$G$65536,dati_bdv!$H$2:$H$65536))))),$A1460,dati_bdv!J$2:J$65536)","v":0},{"$f":"SUMIF(IF(dati_pdc!$C1460=1,dati_bdv!$C$2:$C$65536,IF(dati_pdc!$C1460=2,dati_bdv!$D$2:$D$65536,IF(dati_pdc!$C1460=3,dati_bdv!$E$2:$E$65536,IF(dati_pdc!$C1460=4,dati_bdv!$F$2:$F$65536,IF(dati_pdc!$C1460=5,dati_bdv!$G$2:$G$65536,dati_bdv!$H$2:$H$65536))))),$A1460,dati_bdv!K$2:K$65536)","v":0},{"$f":"SUMIF(IF(dati_pdc!$C1460=1,dati_bdv!$C$2:$C$65536,IF(dati_pdc!$C1460=2,dati_bdv!$D$2:$D$65536,IF(dati_pdc!$C1460=3,dati_bdv!$E$2:$E$65536,IF(dati_pdc!$C1460=4,dati_bdv!$F$2:$F$65536,IF(dati_pdc!$C1460=5,dati_bdv!$G$2:$G$65536,dati_bdv!$H$2:$H$65536))))),$A1460,dati_bdv!L$2:L$65536)","v":0},{"$f":"SUMIF(IF(dati_pdc!$C1460=1,dati_bdv!$C$2:$C$65536,IF(dati_pdc!$C1460=2,dati_bdv!$D$2:$D$65536,IF(dati_pdc!$C1460=3,dati_bdv!$E$2:$E$65536,IF(dati_pdc!$C1460=4,dati_bdv!$F$2:$F$65536,IF(dati_pdc!$C1460=5,dati_bdv!$G$2:$G$65536,dati_bdv!$H$2:$H$65536))))),$A1460,dati_bdv!M$2:M$65536)","v":0},{"$f":"SUMIF(IF(dati_pdc!$C1460=1,dati_bdv!$C$2:$C$65536,IF(dati_pdc!$C1460=2,dati_bdv!$D$2:$D$65536,IF(dati_pdc!$C1460=3,dati_bdv!$E$2:$E$65536,IF(dati_pdc!$C1460=4,dati_bdv!$F$2:$F$65536,IF(dati_pdc!$C1460=5,dati_bdv!$G$2:$G$65536,dati_bdv!$H$2:$H$65536))))),$A1460,dati_bdv!N$2:N$65536)","v":0}]
[{"$f":"dati_pdc!A1461","v":0},{"$f":"SUMIF(IF(dati_pdc!$C1461=1,dati_bdv!$C$2:$C$65536,IF(dati_pdc!$C1461=2,dati_bdv!$D$2:$D$65536,IF(dati_pdc!$C1461=3,dati_bdv!$E$2:$E$65536,IF(dati_pdc!$C1461=4,dati_bdv!$F$2:$F$65536,IF(dati_pdc!$C1461=5,dati_bdv!$G$2:$G$65536,dati_bdv!$H$2:$H$65536))))),$A1461,dati_bdv!J$2:J$65536)","v":0},{"$f":"SUMIF(IF(dati_pdc!$C1461=1,dati_bdv!$C$2:$C$65536,IF(dati_pdc!$C1461=2,dati_bdv!$D$2:$D$65536,IF(dati_pdc!$C1461=3,dati_bdv!$E$2:$E$65536,IF(dati_pdc!$C1461=4,dati_bdv!$F$2:$F$65536,IF(dati_pdc!$C1461=5,dati_bdv!$G$2:$G$65536,dati_bdv!$H$2:$H$65536))))),$A1461,dati_bdv!K$2:K$65536)","v":0},{"$f":"SUMIF(IF(dati_pdc!$C1461=1,dati_bdv!$C$2:$C$65536,IF(dati_pdc!$C1461=2,dati_bdv!$D$2:$D$65536,IF(dati_pdc!$C1461=3,dati_bdv!$E$2:$E$65536,IF(dati_pdc!$C1461=4,dati_bdv!$F$2:$F$65536,IF(dati_pdc!$C1461=5,dati_bdv!$G$2:$G$65536,dati_bdv!$H$2:$H$65536))))),$A1461,dati_bdv!L$2:L$65536)","v":0},{"$f":"SUMIF(IF(dati_pdc!$C1461=1,dati_bdv!$C$2:$C$65536,IF(dati_pdc!$C1461=2,dati_bdv!$D$2:$D$65536,IF(dati_pdc!$C1461=3,dati_bdv!$E$2:$E$65536,IF(dati_pdc!$C1461=4,dati_bdv!$F$2:$F$65536,IF(dati_pdc!$C1461=5,dati_bdv!$G$2:$G$65536,dati_bdv!$H$2:$H$65536))))),$A1461,dati_bdv!M$2:M$65536)","v":0},{"$f":"SUMIF(IF(dati_pdc!$C1461=1,dati_bdv!$C$2:$C$65536,IF(dati_pdc!$C1461=2,dati_bdv!$D$2:$D$65536,IF(dati_pdc!$C1461=3,dati_bdv!$E$2:$E$65536,IF(dati_pdc!$C1461=4,dati_bdv!$F$2:$F$65536,IF(dati_pdc!$C1461=5,dati_bdv!$G$2:$G$65536,dati_bdv!$H$2:$H$65536))))),$A1461,dati_bdv!N$2:N$65536)","v":0}]
[{"$f":"dati_pdc!A1462","v":0},{"$f":"SUMIF(IF(dati_pdc!$C1462=1,dati_bdv!$C$2:$C$65536,IF(dati_pdc!$C1462=2,dati_bdv!$D$2:$D$65536,IF(dati_pdc!$C1462=3,dati_bdv!$E$2:$E$65536,IF(dati_pdc!$C1462=4,dati_bdv!$F$2:$F$65536,IF(dati_pdc!$C1462=5,dati_bdv!$G$2:$G$65536,dati_bdv!$H$2:$H$65536))))),$A1462,dati_bdv!J$2:J$65536)","v":0},{"$f":"SUMIF(IF(dati_pdc!$C1462=1,dati_bdv!$C$2:$C$65536,IF(dati_pdc!$C1462=2,dati_bdv!$D$2:$D$65536,IF(dati_pdc!$C1462=3,dati_bdv!$E$2:$E$65536,IF(dati_pdc!$C1462=4,dati_bdv!$F$2:$F$65536,IF(dati_pdc!$C1462=5,dati_bdv!$G$2:$G$65536,dati_bdv!$H$2:$H$65536))))),$A1462,dati_bdv!K$2:K$65536)","v":0},{"$f":"SUMIF(IF(dati_pdc!$C1462=1,dati_bdv!$C$2:$C$65536,IF(dati_pdc!$C1462=2,dati_bdv!$D$2:$D$65536,IF(dati_pdc!$C1462=3,dati_bdv!$E$2:$E$65536,IF(dati_pdc!$C1462=4,dati_bdv!$F$2:$F$65536,IF(dati_pdc!$C1462=5,dati_bdv!$G$2:$G$65536,dati_bdv!$H$2:$H$65536))))),$A1462,dati_bdv!L$2:L$65536)","v":0},{"$f":"SUMIF(IF(dati_pdc!$C1462=1,dati_bdv!$C$2:$C$65536,IF(dati_pdc!$C1462=2,dati_bdv!$D$2:$D$65536,IF(dati_pdc!$C1462=3,dati_bdv!$E$2:$E$65536,IF(dati_pdc!$C1462=4,dati_bdv!$F$2:$F$65536,IF(dati_pdc!$C1462=5,dati_bdv!$G$2:$G$65536,dati_bdv!$H$2:$H$65536))))),$A1462,dati_bdv!M$2:M$65536)","v":0},{"$f":"SUMIF(IF(dati_pdc!$C1462=1,dati_bdv!$C$2:$C$65536,IF(dati_pdc!$C1462=2,dati_bdv!$D$2:$D$65536,IF(dati_pdc!$C1462=3,dati_bdv!$E$2:$E$65536,IF(dati_pdc!$C1462=4,dati_bdv!$F$2:$F$65536,IF(dati_pdc!$C1462=5,dati_bdv!$G$2:$G$65536,dati_bdv!$H$2:$H$65536))))),$A1462,dati_bdv!N$2:N$65536)","v":0}]
[{"$f":"dati_pdc!A1463","v":0},{"$f":"SUMIF(IF(dati_pdc!$C1463=1,dati_bdv!$C$2:$C$65536,IF(dati_pdc!$C1463=2,dati_bdv!$D$2:$D$65536,IF(dati_pdc!$C1463=3,dati_bdv!$E$2:$E$65536,IF(dati_pdc!$C1463=4,dati_bdv!$F$2:$F$65536,IF(dati_pdc!$C1463=5,dati_bdv!$G$2:$G$65536,dati_bdv!$H$2:$H$65536))))),$A1463,dati_bdv!J$2:J$65536)","v":0},{"$f":"SUMIF(IF(dati_pdc!$C1463=1,dati_bdv!$C$2:$C$65536,IF(dati_pdc!$C1463=2,dati_bdv!$D$2:$D$65536,IF(dati_pdc!$C1463=3,dati_bdv!$E$2:$E$65536,IF(dati_pdc!$C1463=4,dati_bdv!$F$2:$F$65536,IF(dati_pdc!$C1463=5,dati_bdv!$G$2:$G$65536,dati_bdv!$H$2:$H$65536))))),$A1463,dati_bdv!K$2:K$65536)","v":0},{"$f":"SUMIF(IF(dati_pdc!$C1463=1,dati_bdv!$C$2:$C$65536,IF(dati_pdc!$C1463=2,dati_bdv!$D$2:$D$65536,IF(dati_pdc!$C1463=3,dati_bdv!$E$2:$E$65536,IF(dati_pdc!$C1463=4,dati_bdv!$F$2:$F$65536,IF(dati_pdc!$C1463=5,dati_bdv!$G$2:$G$65536,dati_bdv!$H$2:$H$65536))))),$A1463,dati_bdv!L$2:L$65536)","v":0},{"$f":"SUMIF(IF(dati_pdc!$C1463=1,dati_bdv!$C$2:$C$65536,IF(dati_pdc!$C1463=2,dati_bdv!$D$2:$D$65536,IF(dati_pdc!$C1463=3,dati_bdv!$E$2:$E$65536,IF(dati_pdc!$C1463=4,dati_bdv!$F$2:$F$65536,IF(dati_pdc!$C1463=5,dati_bdv!$G$2:$G$65536,dati_bdv!$H$2:$H$65536))))),$A1463,dati_bdv!M$2:M$65536)","v":0},{"$f":"SUMIF(IF(dati_pdc!$C1463=1,dati_bdv!$C$2:$C$65536,IF(dati_pdc!$C1463=2,dati_bdv!$D$2:$D$65536,IF(dati_pdc!$C1463=3,dati_bdv!$E$2:$E$65536,IF(dati_pdc!$C1463=4,dati_bdv!$F$2:$F$65536,IF(dati_pdc!$C1463=5,dati_bdv!$G$2:$G$65536,dati_bdv!$H$2:$H$65536))))),$A1463,dati_bdv!N$2:N$65536)","v":0}]
[{"$f":"dati_pdc!A1464","v":0},{"$f":"SUMIF(IF(dati_pdc!$C1464=1,dati_bdv!$C$2:$C$65536,IF(dati_pdc!$C1464=2,dati_bdv!$D$2:$D$65536,IF(dati_pdc!$C1464=3,dati_bdv!$E$2:$E$65536,IF(dati_pdc!$C1464=4,dati_bdv!$F$2:$F$65536,IF(dati_pdc!$C1464=5,dati_bdv!$G$2:$G$65536,dati_bdv!$H$2:$H$65536))))),$A1464,dati_bdv!J$2:J$65536)","v":0},{"$f":"SUMIF(IF(dati_pdc!$C1464=1,dati_bdv!$C$2:$C$65536,IF(dati_pdc!$C1464=2,dati_bdv!$D$2:$D$65536,IF(dati_pdc!$C1464=3,dati_bdv!$E$2:$E$65536,IF(dati_pdc!$C1464=4,dati_bdv!$F$2:$F$65536,IF(dati_pdc!$C1464=5,dati_bdv!$G$2:$G$65536,dati_bdv!$H$2:$H$65536))))),$A1464,dati_bdv!K$2:K$65536)","v":0},{"$f":"SUMIF(IF(dati_pdc!$C1464=1,dati_bdv!$C$2:$C$65536,IF(dati_pdc!$C1464=2,dati_bdv!$D$2:$D$65536,IF(dati_pdc!$C1464=3,dati_bdv!$E$2:$E$65536,IF(dati_pdc!$C1464=4,dati_bdv!$F$2:$F$65536,IF(dati_pdc!$C1464=5,dati_bdv!$G$2:$G$65536,dati_bdv!$H$2:$H$65536))))),$A1464,dati_bdv!L$2:L$65536)","v":0},{"$f":"SUMIF(IF(dati_pdc!$C1464=1,dati_bdv!$C$2:$C$65536,IF(dati_pdc!$C1464=2,dati_bdv!$D$2:$D$65536,IF(dati_pdc!$C1464=3,dati_bdv!$E$2:$E$65536,IF(dati_pdc!$C1464=4,dati_bdv!$F$2:$F$65536,IF(dati_pdc!$C1464=5,dati_bdv!$G$2:$G$65536,dati_bdv!$H$2:$H$65536))))),$A1464,dati_bdv!M$2:M$65536)","v":0},{"$f":"SUMIF(IF(dati_pdc!$C1464=1,dati_bdv!$C$2:$C$65536,IF(dati_pdc!$C1464=2,dati_bdv!$D$2:$D$65536,IF(dati_pdc!$C1464=3,dati_bdv!$E$2:$E$65536,IF(dati_pdc!$C1464=4,dati_bdv!$F$2:$F$65536,IF(dati_pdc!$C1464=5,dati_bdv!$G$2:$G$65536,dati_bdv!$H$2:$H$65536))))),$A1464,dati_bdv!N$2:N$65536)","v":0}]
[{"$f":"dati_pdc!A1465","v":0},{"$f":"SUMIF(IF(dati_pdc!$C1465=1,dati_bdv!$C$2:$C$65536,IF(dati_pdc!$C1465=2,dati_bdv!$D$2:$D$65536,IF(dati_pdc!$C1465=3,dati_bdv!$E$2:$E$65536,IF(dati_pdc!$C1465=4,dati_bdv!$F$2:$F$65536,IF(dati_pdc!$C1465=5,dati_bdv!$G$2:$G$65536,dati_bdv!$H$2:$H$65536))))),$A1465,dati_bdv!J$2:J$65536)","v":0},{"$f":"SUMIF(IF(dati_pdc!$C1465=1,dati_bdv!$C$2:$C$65536,IF(dati_pdc!$C1465=2,dati_bdv!$D$2:$D$65536,IF(dati_pdc!$C1465=3,dati_bdv!$E$2:$E$65536,IF(dati_pdc!$C1465=4,dati_bdv!$F$2:$F$65536,IF(dati_pdc!$C1465=5,dati_bdv!$G$2:$G$65536,dati_bdv!$H$2:$H$65536))))),$A1465,dati_bdv!K$2:K$65536)","v":0},{"$f":"SUMIF(IF(dati_pdc!$C1465=1,dati_bdv!$C$2:$C$65536,IF(dati_pdc!$C1465=2,dati_bdv!$D$2:$D$65536,IF(dati_pdc!$C1465=3,dati_bdv!$E$2:$E$65536,IF(dati_pdc!$C1465=4,dati_bdv!$F$2:$F$65536,IF(dati_pdc!$C1465=5,dati_bdv!$G$2:$G$65536,dati_bdv!$H$2:$H$65536))))),$A1465,dati_bdv!L$2:L$65536)","v":0},{"$f":"SUMIF(IF(dati_pdc!$C1465=1,dati_bdv!$C$2:$C$65536,IF(dati_pdc!$C1465=2,dati_bdv!$D$2:$D$65536,IF(dati_pdc!$C1465=3,dati_bdv!$E$2:$E$65536,IF(dati_pdc!$C1465=4,dati_bdv!$F$2:$F$65536,IF(dati_pdc!$C1465=5,dati_bdv!$G$2:$G$65536,dati_bdv!$H$2:$H$65536))))),$A1465,dati_bdv!M$2:M$65536)","v":0},{"$f":"SUMIF(IF(dati_pdc!$C1465=1,dati_bdv!$C$2:$C$65536,IF(dati_pdc!$C1465=2,dati_bdv!$D$2:$D$65536,IF(dati_pdc!$C1465=3,dati_bdv!$E$2:$E$65536,IF(dati_pdc!$C1465=4,dati_bdv!$F$2:$F$65536,IF(dati_pdc!$C1465=5,dati_bdv!$G$2:$G$65536,dati_bdv!$H$2:$H$65536))))),$A1465,dati_bdv!N$2:N$65536)","v":0}]
[{"$f":"dati_pdc!A1466","v":0},{"$f":"SUMIF(IF(dati_pdc!$C1466=1,dati_bdv!$C$2:$C$65536,IF(dati_pdc!$C1466=2,dati_bdv!$D$2:$D$65536,IF(dati_pdc!$C1466=3,dati_bdv!$E$2:$E$65536,IF(dati_pdc!$C1466=4,dati_bdv!$F$2:$F$65536,IF(dati_pdc!$C1466=5,dati_bdv!$G$2:$G$65536,dati_bdv!$H$2:$H$65536))))),$A1466,dati_bdv!J$2:J$65536)","v":0},{"$f":"SUMIF(IF(dati_pdc!$C1466=1,dati_bdv!$C$2:$C$65536,IF(dati_pdc!$C1466=2,dati_bdv!$D$2:$D$65536,IF(dati_pdc!$C1466=3,dati_bdv!$E$2:$E$65536,IF(dati_pdc!$C1466=4,dati_bdv!$F$2:$F$65536,IF(dati_pdc!$C1466=5,dati_bdv!$G$2:$G$65536,dati_bdv!$H$2:$H$65536))))),$A1466,dati_bdv!K$2:K$65536)","v":0},{"$f":"SUMIF(IF(dati_pdc!$C1466=1,dati_bdv!$C$2:$C$65536,IF(dati_pdc!$C1466=2,dati_bdv!$D$2:$D$65536,IF(dati_pdc!$C1466=3,dati_bdv!$E$2:$E$65536,IF(dati_pdc!$C1466=4,dati_bdv!$F$2:$F$65536,IF(dati_pdc!$C1466=5,dati_bdv!$G$2:$G$65536,dati_bdv!$H$2:$H$65536))))),$A1466,dati_bdv!L$2:L$65536)","v":0},{"$f":"SUMIF(IF(dati_pdc!$C1466=1,dati_bdv!$C$2:$C$65536,IF(dati_pdc!$C1466=2,dati_bdv!$D$2:$D$65536,IF(dati_pdc!$C1466=3,dati_bdv!$E$2:$E$65536,IF(dati_pdc!$C1466=4,dati_bdv!$F$2:$F$65536,IF(dati_pdc!$C1466=5,dati_bdv!$G$2:$G$65536,dati_bdv!$H$2:$H$65536))))),$A1466,dati_bdv!M$2:M$65536)","v":0},{"$f":"SUMIF(IF(dati_pdc!$C1466=1,dati_bdv!$C$2:$C$65536,IF(dati_pdc!$C1466=2,dati_bdv!$D$2:$D$65536,IF(dati_pdc!$C1466=3,dati_bdv!$E$2:$E$65536,IF(dati_pdc!$C1466=4,dati_bdv!$F$2:$F$65536,IF(dati_pdc!$C1466=5,dati_bdv!$G$2:$G$65536,dati_bdv!$H$2:$H$65536))))),$A1466,dati_bdv!N$2:N$65536)","v":0}]
[{"$f":"dati_pdc!A1467","v":0},{"$f":"SUMIF(IF(dati_pdc!$C1467=1,dati_bdv!$C$2:$C$65536,IF(dati_pdc!$C1467=2,dati_bdv!$D$2:$D$65536,IF(dati_pdc!$C1467=3,dati_bdv!$E$2:$E$65536,IF(dati_pdc!$C1467=4,dati_bdv!$F$2:$F$65536,IF(dati_pdc!$C1467=5,dati_bdv!$G$2:$G$65536,dati_bdv!$H$2:$H$65536))))),$A1467,dati_bdv!J$2:J$65536)","v":0},{"$f":"SUMIF(IF(dati_pdc!$C1467=1,dati_bdv!$C$2:$C$65536,IF(dati_pdc!$C1467=2,dati_bdv!$D$2:$D$65536,IF(dati_pdc!$C1467=3,dati_bdv!$E$2:$E$65536,IF(dati_pdc!$C1467=4,dati_bdv!$F$2:$F$65536,IF(dati_pdc!$C1467=5,dati_bdv!$G$2:$G$65536,dati_bdv!$H$2:$H$65536))))),$A1467,dati_bdv!K$2:K$65536)","v":0},{"$f":"SUMIF(IF(dati_pdc!$C1467=1,dati_bdv!$C$2:$C$65536,IF(dati_pdc!$C1467=2,dati_bdv!$D$2:$D$65536,IF(dati_pdc!$C1467=3,dati_bdv!$E$2:$E$65536,IF(dati_pdc!$C1467=4,dati_bdv!$F$2:$F$65536,IF(dati_pdc!$C1467=5,dati_bdv!$G$2:$G$65536,dati_bdv!$H$2:$H$65536))))),$A1467,dati_bdv!L$2:L$65536)","v":0},{"$f":"SUMIF(IF(dati_pdc!$C1467=1,dati_bdv!$C$2:$C$65536,IF(dati_pdc!$C1467=2,dati_bdv!$D$2:$D$65536,IF(dati_pdc!$C1467=3,dati_bdv!$E$2:$E$65536,IF(dati_pdc!$C1467=4,dati_bdv!$F$2:$F$65536,IF(dati_pdc!$C1467=5,dati_bdv!$G$2:$G$65536,dati_bdv!$H$2:$H$65536))))),$A1467,dati_bdv!M$2:M$65536)","v":0},{"$f":"SUMIF(IF(dati_pdc!$C1467=1,dati_bdv!$C$2:$C$65536,IF(dati_pdc!$C1467=2,dati_bdv!$D$2:$D$65536,IF(dati_pdc!$C1467=3,dati_bdv!$E$2:$E$65536,IF(dati_pdc!$C1467=4,dati_bdv!$F$2:$F$65536,IF(dati_pdc!$C1467=5,dati_bdv!$G$2:$G$65536,dati_bdv!$H$2:$H$65536))))),$A1467,dati_bdv!N$2:N$65536)","v":0}]
[{"$f":"dati_pdc!A1468","v":0},{"$f":"SUMIF(IF(dati_pdc!$C1468=1,dati_bdv!$C$2:$C$65536,IF(dati_pdc!$C1468=2,dati_bdv!$D$2:$D$65536,IF(dati_pdc!$C1468=3,dati_bdv!$E$2:$E$65536,IF(dati_pdc!$C1468=4,dati_bdv!$F$2:$F$65536,IF(dati_pdc!$C1468=5,dati_bdv!$G$2:$G$65536,dati_bdv!$H$2:$H$65536))))),$A1468,dati_bdv!J$2:J$65536)","v":0},{"$f":"SUMIF(IF(dati_pdc!$C1468=1,dati_bdv!$C$2:$C$65536,IF(dati_pdc!$C1468=2,dati_bdv!$D$2:$D$65536,IF(dati_pdc!$C1468=3,dati_bdv!$E$2:$E$65536,IF(dati_pdc!$C1468=4,dati_bdv!$F$2:$F$65536,IF(dati_pdc!$C1468=5,dati_bdv!$G$2:$G$65536,dati_bdv!$H$2:$H$65536))))),$A1468,dati_bdv!K$2:K$65536)","v":0},{"$f":"SUMIF(IF(dati_pdc!$C1468=1,dati_bdv!$C$2:$C$65536,IF(dati_pdc!$C1468=2,dati_bdv!$D$2:$D$65536,IF(dati_pdc!$C1468=3,dati_bdv!$E$2:$E$65536,IF(dati_pdc!$C1468=4,dati_bdv!$F$2:$F$65536,IF(dati_pdc!$C1468=5,dati_bdv!$G$2:$G$65536,dati_bdv!$H$2:$H$65536))))),$A1468,dati_bdv!L$2:L$65536)","v":0},{"$f":"SUMIF(IF(dati_pdc!$C1468=1,dati_bdv!$C$2:$C$65536,IF(dati_pdc!$C1468=2,dati_bdv!$D$2:$D$65536,IF(dati_pdc!$C1468=3,dati_bdv!$E$2:$E$65536,IF(dati_pdc!$C1468=4,dati_bdv!$F$2:$F$65536,IF(dati_pdc!$C1468=5,dati_bdv!$G$2:$G$65536,dati_bdv!$H$2:$H$65536))))),$A1468,dati_bdv!M$2:M$65536)","v":0},{"$f":"SUMIF(IF(dati_pdc!$C1468=1,dati_bdv!$C$2:$C$65536,IF(dati_pdc!$C1468=2,dati_bdv!$D$2:$D$65536,IF(dati_pdc!$C1468=3,dati_bdv!$E$2:$E$65536,IF(dati_pdc!$C1468=4,dati_bdv!$F$2:$F$65536,IF(dati_pdc!$C1468=5,dati_bdv!$G$2:$G$65536,dati_bdv!$H$2:$H$65536))))),$A1468,dati_bdv!N$2:N$65536)","v":0}]
[{"$f":"dati_pdc!A1469","v":0},{"$f":"SUMIF(IF(dati_pdc!$C1469=1,dati_bdv!$C$2:$C$65536,IF(dati_pdc!$C1469=2,dati_bdv!$D$2:$D$65536,IF(dati_pdc!$C1469=3,dati_bdv!$E$2:$E$65536,IF(dati_pdc!$C1469=4,dati_bdv!$F$2:$F$65536,IF(dati_pdc!$C1469=5,dati_bdv!$G$2:$G$65536,dati_bdv!$H$2:$H$65536))))),$A1469,dati_bdv!J$2:J$65536)","v":0},{"$f":"SUMIF(IF(dati_pdc!$C1469=1,dati_bdv!$C$2:$C$65536,IF(dati_pdc!$C1469=2,dati_bdv!$D$2:$D$65536,IF(dati_pdc!$C1469=3,dati_bdv!$E$2:$E$65536,IF(dati_pdc!$C1469=4,dati_bdv!$F$2:$F$65536,IF(dati_pdc!$C1469=5,dati_bdv!$G$2:$G$65536,dati_bdv!$H$2:$H$65536))))),$A1469,dati_bdv!K$2:K$65536)","v":0},{"$f":"SUMIF(IF(dati_pdc!$C1469=1,dati_bdv!$C$2:$C$65536,IF(dati_pdc!$C1469=2,dati_bdv!$D$2:$D$65536,IF(dati_pdc!$C1469=3,dati_bdv!$E$2:$E$65536,IF(dati_pdc!$C1469=4,dati_bdv!$F$2:$F$65536,IF(dati_pdc!$C1469=5,dati_bdv!$G$2:$G$65536,dati_bdv!$H$2:$H$65536))))),$A1469,dati_bdv!L$2:L$65536)","v":0},{"$f":"SUMIF(IF(dati_pdc!$C1469=1,dati_bdv!$C$2:$C$65536,IF(dati_pdc!$C1469=2,dati_bdv!$D$2:$D$65536,IF(dati_pdc!$C1469=3,dati_bdv!$E$2:$E$65536,IF(dati_pdc!$C1469=4,dati_bdv!$F$2:$F$65536,IF(dati_pdc!$C1469=5,dati_bdv!$G$2:$G$65536,dati_bdv!$H$2:$H$65536))))),$A1469,dati_bdv!M$2:M$65536)","v":0},{"$f":"SUMIF(IF(dati_pdc!$C1469=1,dati_bdv!$C$2:$C$65536,IF(dati_pdc!$C1469=2,dati_bdv!$D$2:$D$65536,IF(dati_pdc!$C1469=3,dati_bdv!$E$2:$E$65536,IF(dati_pdc!$C1469=4,dati_bdv!$F$2:$F$65536,IF(dati_pdc!$C1469=5,dati_bdv!$G$2:$G$65536,dati_bdv!$H$2:$H$65536))))),$A1469,dati_bdv!N$2:N$65536)","v":0}]
[{"$f":"dati_pdc!A1470","v":0},{"$f":"SUMIF(IF(dati_pdc!$C1470=1,dati_bdv!$C$2:$C$65536,IF(dati_pdc!$C1470=2,dati_bdv!$D$2:$D$65536,IF(dati_pdc!$C1470=3,dati_bdv!$E$2:$E$65536,IF(dati_pdc!$C1470=4,dati_bdv!$F$2:$F$65536,IF(dati_pdc!$C1470=5,dati_bdv!$G$2:$G$65536,dati_bdv!$H$2:$H$65536))))),$A1470,dati_bdv!J$2:J$65536)","v":0},{"$f":"SUMIF(IF(dati_pdc!$C1470=1,dati_bdv!$C$2:$C$65536,IF(dati_pdc!$C1470=2,dati_bdv!$D$2:$D$65536,IF(dati_pdc!$C1470=3,dati_bdv!$E$2:$E$65536,IF(dati_pdc!$C1470=4,dati_bdv!$F$2:$F$65536,IF(dati_pdc!$C1470=5,dati_bdv!$G$2:$G$65536,dati_bdv!$H$2:$H$65536))))),$A1470,dati_bdv!K$2:K$65536)","v":0},{"$f":"SUMIF(IF(dati_pdc!$C1470=1,dati_bdv!$C$2:$C$65536,IF(dati_pdc!$C1470=2,dati_bdv!$D$2:$D$65536,IF(dati_pdc!$C1470=3,dati_bdv!$E$2:$E$65536,IF(dati_pdc!$C1470=4,dati_bdv!$F$2:$F$65536,IF(dati_pdc!$C1470=5,dati_bdv!$G$2:$G$65536,dati_bdv!$H$2:$H$65536))))),$A1470,dati_bdv!L$2:L$65536)","v":0},{"$f":"SUMIF(IF(dati_pdc!$C1470=1,dati_bdv!$C$2:$C$65536,IF(dati_pdc!$C1470=2,dati_bdv!$D$2:$D$65536,IF(dati_pdc!$C1470=3,dati_bdv!$E$2:$E$65536,IF(dati_pdc!$C1470=4,dati_bdv!$F$2:$F$65536,IF(dati_pdc!$C1470=5,dati_bdv!$G$2:$G$65536,dati_bdv!$H$2:$H$65536))))),$A1470,dati_bdv!M$2:M$65536)","v":0},{"$f":"SUMIF(IF(dati_pdc!$C1470=1,dati_bdv!$C$2:$C$65536,IF(dati_pdc!$C1470=2,dati_bdv!$D$2:$D$65536,IF(dati_pdc!$C1470=3,dati_bdv!$E$2:$E$65536,IF(dati_pdc!$C1470=4,dati_bdv!$F$2:$F$65536,IF(dati_pdc!$C1470=5,dati_bdv!$G$2:$G$65536,dati_bdv!$H$2:$H$65536))))),$A1470,dati_bdv!N$2:N$65536)","v":0}]
[{"$f":"dati_pdc!A1471","v":0},{"$f":"SUMIF(IF(dati_pdc!$C1471=1,dati_bdv!$C$2:$C$65536,IF(dati_pdc!$C1471=2,dati_bdv!$D$2:$D$65536,IF(dati_pdc!$C1471=3,dati_bdv!$E$2:$E$65536,IF(dati_pdc!$C1471=4,dati_bdv!$F$2:$F$65536,IF(dati_pdc!$C1471=5,dati_bdv!$G$2:$G$65536,dati_bdv!$H$2:$H$65536))))),$A1471,dati_bdv!J$2:J$65536)","v":0},{"$f":"SUMIF(IF(dati_pdc!$C1471=1,dati_bdv!$C$2:$C$65536,IF(dati_pdc!$C1471=2,dati_bdv!$D$2:$D$65536,IF(dati_pdc!$C1471=3,dati_bdv!$E$2:$E$65536,IF(dati_pdc!$C1471=4,dati_bdv!$F$2:$F$65536,IF(dati_pdc!$C1471=5,dati_bdv!$G$2:$G$65536,dati_bdv!$H$2:$H$65536))))),$A1471,dati_bdv!K$2:K$65536)","v":0},{"$f":"SUMIF(IF(dati_pdc!$C1471=1,dati_bdv!$C$2:$C$65536,IF(dati_pdc!$C1471=2,dati_bdv!$D$2:$D$65536,IF(dati_pdc!$C1471=3,dati_bdv!$E$2:$E$65536,IF(dati_pdc!$C1471=4,dati_bdv!$F$2:$F$65536,IF(dati_pdc!$C1471=5,dati_bdv!$G$2:$G$65536,dati_bdv!$H$2:$H$65536))))),$A1471,dati_bdv!L$2:L$65536)","v":0},{"$f":"SUMIF(IF(dati_pdc!$C1471=1,dati_bdv!$C$2:$C$65536,IF(dati_pdc!$C1471=2,dati_bdv!$D$2:$D$65536,IF(dati_pdc!$C1471=3,dati_bdv!$E$2:$E$65536,IF(dati_pdc!$C1471=4,dati_bdv!$F$2:$F$65536,IF(dati_pdc!$C1471=5,dati_bdv!$G$2:$G$65536,dati_bdv!$H$2:$H$65536))))),$A1471,dati_bdv!M$2:M$65536)","v":0},{"$f":"SUMIF(IF(dati_pdc!$C1471=1,dati_bdv!$C$2:$C$65536,IF(dati_pdc!$C1471=2,dati_bdv!$D$2:$D$65536,IF(dati_pdc!$C1471=3,dati_bdv!$E$2:$E$65536,IF(dati_pdc!$C1471=4,dati_bdv!$F$2:$F$65536,IF(dati_pdc!$C1471=5,dati_bdv!$G$2:$G$65536,dati_bdv!$H$2:$H$65536))))),$A1471,dati_bdv!N$2:N$65536)","v":0}]
[{"$f":"dati_pdc!A1472","v":0},{"$f":"SUMIF(IF(dati_pdc!$C1472=1,dati_bdv!$C$2:$C$65536,IF(dati_pdc!$C1472=2,dati_bdv!$D$2:$D$65536,IF(dati_pdc!$C1472=3,dati_bdv!$E$2:$E$65536,IF(dati_pdc!$C1472=4,dati_bdv!$F$2:$F$65536,IF(dati_pdc!$C1472=5,dati_bdv!$G$2:$G$65536,dati_bdv!$H$2:$H$65536))))),$A1472,dati_bdv!J$2:J$65536)","v":0},{"$f":"SUMIF(IF(dati_pdc!$C1472=1,dati_bdv!$C$2:$C$65536,IF(dati_pdc!$C1472=2,dati_bdv!$D$2:$D$65536,IF(dati_pdc!$C1472=3,dati_bdv!$E$2:$E$65536,IF(dati_pdc!$C1472=4,dati_bdv!$F$2:$F$65536,IF(dati_pdc!$C1472=5,dati_bdv!$G$2:$G$65536,dati_bdv!$H$2:$H$65536))))),$A1472,dati_bdv!K$2:K$65536)","v":0},{"$f":"SUMIF(IF(dati_pdc!$C1472=1,dati_bdv!$C$2:$C$65536,IF(dati_pdc!$C1472=2,dati_bdv!$D$2:$D$65536,IF(dati_pdc!$C1472=3,dati_bdv!$E$2:$E$65536,IF(dati_pdc!$C1472=4,dati_bdv!$F$2:$F$65536,IF(dati_pdc!$C1472=5,dati_bdv!$G$2:$G$65536,dati_bdv!$H$2:$H$65536))))),$A1472,dati_bdv!L$2:L$65536)","v":0},{"$f":"SUMIF(IF(dati_pdc!$C1472=1,dati_bdv!$C$2:$C$65536,IF(dati_pdc!$C1472=2,dati_bdv!$D$2:$D$65536,IF(dati_pdc!$C1472=3,dati_bdv!$E$2:$E$65536,IF(dati_pdc!$C1472=4,dati_bdv!$F$2:$F$65536,IF(dati_pdc!$C1472=5,dati_bdv!$G$2:$G$65536,dati_bdv!$H$2:$H$65536))))),$A1472,dati_bdv!M$2:M$65536)","v":0},{"$f":"SUMIF(IF(dati_pdc!$C1472=1,dati_bdv!$C$2:$C$65536,IF(dati_pdc!$C1472=2,dati_bdv!$D$2:$D$65536,IF(dati_pdc!$C1472=3,dati_bdv!$E$2:$E$65536,IF(dati_pdc!$C1472=4,dati_bdv!$F$2:$F$65536,IF(dati_pdc!$C1472=5,dati_bdv!$G$2:$G$65536,dati_bdv!$H$2:$H$65536))))),$A1472,dati_bdv!N$2:N$65536)","v":0}]
[{"$f":"dati_pdc!A1473","v":0},{"$f":"SUMIF(IF(dati_pdc!$C1473=1,dati_bdv!$C$2:$C$65536,IF(dati_pdc!$C1473=2,dati_bdv!$D$2:$D$65536,IF(dati_pdc!$C1473=3,dati_bdv!$E$2:$E$65536,IF(dati_pdc!$C1473=4,dati_bdv!$F$2:$F$65536,IF(dati_pdc!$C1473=5,dati_bdv!$G$2:$G$65536,dati_bdv!$H$2:$H$65536))))),$A1473,dati_bdv!J$2:J$65536)","v":0},{"$f":"SUMIF(IF(dati_pdc!$C1473=1,dati_bdv!$C$2:$C$65536,IF(dati_pdc!$C1473=2,dati_bdv!$D$2:$D$65536,IF(dati_pdc!$C1473=3,dati_bdv!$E$2:$E$65536,IF(dati_pdc!$C1473=4,dati_bdv!$F$2:$F$65536,IF(dati_pdc!$C1473=5,dati_bdv!$G$2:$G$65536,dati_bdv!$H$2:$H$65536))))),$A1473,dati_bdv!K$2:K$65536)","v":0},{"$f":"SUMIF(IF(dati_pdc!$C1473=1,dati_bdv!$C$2:$C$65536,IF(dati_pdc!$C1473=2,dati_bdv!$D$2:$D$65536,IF(dati_pdc!$C1473=3,dati_bdv!$E$2:$E$65536,IF(dati_pdc!$C1473=4,dati_bdv!$F$2:$F$65536,IF(dati_pdc!$C1473=5,dati_bdv!$G$2:$G$65536,dati_bdv!$H$2:$H$65536))))),$A1473,dati_bdv!L$2:L$65536)","v":0},{"$f":"SUMIF(IF(dati_pdc!$C1473=1,dati_bdv!$C$2:$C$65536,IF(dati_pdc!$C1473=2,dati_bdv!$D$2:$D$65536,IF(dati_pdc!$C1473=3,dati_bdv!$E$2:$E$65536,IF(dati_pdc!$C1473=4,dati_bdv!$F$2:$F$65536,IF(dati_pdc!$C1473=5,dati_bdv!$G$2:$G$65536,dati_bdv!$H$2:$H$65536))))),$A1473,dati_bdv!M$2:M$65536)","v":0},{"$f":"SUMIF(IF(dati_pdc!$C1473=1,dati_bdv!$C$2:$C$65536,IF(dati_pdc!$C1473=2,dati_bdv!$D$2:$D$65536,IF(dati_pdc!$C1473=3,dati_bdv!$E$2:$E$65536,IF(dati_pdc!$C1473=4,dati_bdv!$F$2:$F$65536,IF(dati_pdc!$C1473=5,dati_bdv!$G$2:$G$65536,dati_bdv!$H$2:$H$65536))))),$A1473,dati_bdv!N$2:N$65536)","v":0}]
[{"$f":"dati_pdc!A1474","v":0},{"$f":"SUMIF(IF(dati_pdc!$C1474=1,dati_bdv!$C$2:$C$65536,IF(dati_pdc!$C1474=2,dati_bdv!$D$2:$D$65536,IF(dati_pdc!$C1474=3,dati_bdv!$E$2:$E$65536,IF(dati_pdc!$C1474=4,dati_bdv!$F$2:$F$65536,IF(dati_pdc!$C1474=5,dati_bdv!$G$2:$G$65536,dati_bdv!$H$2:$H$65536))))),$A1474,dati_bdv!J$2:J$65536)","v":0},{"$f":"SUMIF(IF(dati_pdc!$C1474=1,dati_bdv!$C$2:$C$65536,IF(dati_pdc!$C1474=2,dati_bdv!$D$2:$D$65536,IF(dati_pdc!$C1474=3,dati_bdv!$E$2:$E$65536,IF(dati_pdc!$C1474=4,dati_bdv!$F$2:$F$65536,IF(dati_pdc!$C1474=5,dati_bdv!$G$2:$G$65536,dati_bdv!$H$2:$H$65536))))),$A1474,dati_bdv!K$2:K$65536)","v":0},{"$f":"SUMIF(IF(dati_pdc!$C1474=1,dati_bdv!$C$2:$C$65536,IF(dati_pdc!$C1474=2,dati_bdv!$D$2:$D$65536,IF(dati_pdc!$C1474=3,dati_bdv!$E$2:$E$65536,IF(dati_pdc!$C1474=4,dati_bdv!$F$2:$F$65536,IF(dati_pdc!$C1474=5,dati_bdv!$G$2:$G$65536,dati_bdv!$H$2:$H$65536))))),$A1474,dati_bdv!L$2:L$65536)","v":0},{"$f":"SUMIF(IF(dati_pdc!$C1474=1,dati_bdv!$C$2:$C$65536,IF(dati_pdc!$C1474=2,dati_bdv!$D$2:$D$65536,IF(dati_pdc!$C1474=3,dati_bdv!$E$2:$E$65536,IF(dati_pdc!$C1474=4,dati_bdv!$F$2:$F$65536,IF(dati_pdc!$C1474=5,dati_bdv!$G$2:$G$65536,dati_bdv!$H$2:$H$65536))))),$A1474,dati_bdv!M$2:M$65536)","v":0},{"$f":"SUMIF(IF(dati_pdc!$C1474=1,dati_bdv!$C$2:$C$65536,IF(dati_pdc!$C1474=2,dati_bdv!$D$2:$D$65536,IF(dati_pdc!$C1474=3,dati_bdv!$E$2:$E$65536,IF(dati_pdc!$C1474=4,dati_bdv!$F$2:$F$65536,IF(dati_pdc!$C1474=5,dati_bdv!$G$2:$G$65536,dati_bdv!$H$2:$H$65536))))),$A1474,dati_bdv!N$2:N$65536)","v":0}]
[{"$f":"dati_pdc!A1475","v":0},{"$f":"SUMIF(IF(dati_pdc!$C1475=1,dati_bdv!$C$2:$C$65536,IF(dati_pdc!$C1475=2,dati_bdv!$D$2:$D$65536,IF(dati_pdc!$C1475=3,dati_bdv!$E$2:$E$65536,IF(dati_pdc!$C1475=4,dati_bdv!$F$2:$F$65536,IF(dati_pdc!$C1475=5,dati_bdv!$G$2:$G$65536,dati_bdv!$H$2:$H$65536))))),$A1475,dati_bdv!J$2:J$65536)","v":0},{"$f":"SUMIF(IF(dati_pdc!$C1475=1,dati_bdv!$C$2:$C$65536,IF(dati_pdc!$C1475=2,dati_bdv!$D$2:$D$65536,IF(dati_pdc!$C1475=3,dati_bdv!$E$2:$E$65536,IF(dati_pdc!$C1475=4,dati_bdv!$F$2:$F$65536,IF(dati_pdc!$C1475=5,dati_bdv!$G$2:$G$65536,dati_bdv!$H$2:$H$65536))))),$A1475,dati_bdv!K$2:K$65536)","v":0},{"$f":"SUMIF(IF(dati_pdc!$C1475=1,dati_bdv!$C$2:$C$65536,IF(dati_pdc!$C1475=2,dati_bdv!$D$2:$D$65536,IF(dati_pdc!$C1475=3,dati_bdv!$E$2:$E$65536,IF(dati_pdc!$C1475=4,dati_bdv!$F$2:$F$65536,IF(dati_pdc!$C1475=5,dati_bdv!$G$2:$G$65536,dati_bdv!$H$2:$H$65536))))),$A1475,dati_bdv!L$2:L$65536)","v":0},{"$f":"SUMIF(IF(dati_pdc!$C1475=1,dati_bdv!$C$2:$C$65536,IF(dati_pdc!$C1475=2,dati_bdv!$D$2:$D$65536,IF(dati_pdc!$C1475=3,dati_bdv!$E$2:$E$65536,IF(dati_pdc!$C1475=4,dati_bdv!$F$2:$F$65536,IF(dati_pdc!$C1475=5,dati_bdv!$G$2:$G$65536,dati_bdv!$H$2:$H$65536))))),$A1475,dati_bdv!M$2:M$65536)","v":0},{"$f":"SUMIF(IF(dati_pdc!$C1475=1,dati_bdv!$C$2:$C$65536,IF(dati_pdc!$C1475=2,dati_bdv!$D$2:$D$65536,IF(dati_pdc!$C1475=3,dati_bdv!$E$2:$E$65536,IF(dati_pdc!$C1475=4,dati_bdv!$F$2:$F$65536,IF(dati_pdc!$C1475=5,dati_bdv!$G$2:$G$65536,dati_bdv!$H$2:$H$65536))))),$A1475,dati_bdv!N$2:N$65536)","v":0}]
[{"$f":"dati_pdc!A1476","v":0},{"$f":"SUMIF(IF(dati_pdc!$C1476=1,dati_bdv!$C$2:$C$65536,IF(dati_pdc!$C1476=2,dati_bdv!$D$2:$D$65536,IF(dati_pdc!$C1476=3,dati_bdv!$E$2:$E$65536,IF(dati_pdc!$C1476=4,dati_bdv!$F$2:$F$65536,IF(dati_pdc!$C1476=5,dati_bdv!$G$2:$G$65536,dati_bdv!$H$2:$H$65536))))),$A1476,dati_bdv!J$2:J$65536)","v":0},{"$f":"SUMIF(IF(dati_pdc!$C1476=1,dati_bdv!$C$2:$C$65536,IF(dati_pdc!$C1476=2,dati_bdv!$D$2:$D$65536,IF(dati_pdc!$C1476=3,dati_bdv!$E$2:$E$65536,IF(dati_pdc!$C1476=4,dati_bdv!$F$2:$F$65536,IF(dati_pdc!$C1476=5,dati_bdv!$G$2:$G$65536,dati_bdv!$H$2:$H$65536))))),$A1476,dati_bdv!K$2:K$65536)","v":0},{"$f":"SUMIF(IF(dati_pdc!$C1476=1,dati_bdv!$C$2:$C$65536,IF(dati_pdc!$C1476=2,dati_bdv!$D$2:$D$65536,IF(dati_pdc!$C1476=3,dati_bdv!$E$2:$E$65536,IF(dati_pdc!$C1476=4,dati_bdv!$F$2:$F$65536,IF(dati_pdc!$C1476=5,dati_bdv!$G$2:$G$65536,dati_bdv!$H$2:$H$65536))))),$A1476,dati_bdv!L$2:L$65536)","v":0},{"$f":"SUMIF(IF(dati_pdc!$C1476=1,dati_bdv!$C$2:$C$65536,IF(dati_pdc!$C1476=2,dati_bdv!$D$2:$D$65536,IF(dati_pdc!$C1476=3,dati_bdv!$E$2:$E$65536,IF(dati_pdc!$C1476=4,dati_bdv!$F$2:$F$65536,IF(dati_pdc!$C1476=5,dati_bdv!$G$2:$G$65536,dati_bdv!$H$2:$H$65536))))),$A1476,dati_bdv!M$2:M$65536)","v":0},{"$f":"SUMIF(IF(dati_pdc!$C1476=1,dati_bdv!$C$2:$C$65536,IF(dati_pdc!$C1476=2,dati_bdv!$D$2:$D$65536,IF(dati_pdc!$C1476=3,dati_bdv!$E$2:$E$65536,IF(dati_pdc!$C1476=4,dati_bdv!$F$2:$F$65536,IF(dati_pdc!$C1476=5,dati_bdv!$G$2:$G$65536,dati_bdv!$H$2:$H$65536))))),$A1476,dati_bdv!N$2:N$65536)","v":0}]
[{"$f":"dati_pdc!A1477","v":0},{"$f":"SUMIF(IF(dati_pdc!$C1477=1,dati_bdv!$C$2:$C$65536,IF(dati_pdc!$C1477=2,dati_bdv!$D$2:$D$65536,IF(dati_pdc!$C1477=3,dati_bdv!$E$2:$E$65536,IF(dati_pdc!$C1477=4,dati_bdv!$F$2:$F$65536,IF(dati_pdc!$C1477=5,dati_bdv!$G$2:$G$65536,dati_bdv!$H$2:$H$65536))))),$A1477,dati_bdv!J$2:J$65536)","v":0},{"$f":"SUMIF(IF(dati_pdc!$C1477=1,dati_bdv!$C$2:$C$65536,IF(dati_pdc!$C1477=2,dati_bdv!$D$2:$D$65536,IF(dati_pdc!$C1477=3,dati_bdv!$E$2:$E$65536,IF(dati_pdc!$C1477=4,dati_bdv!$F$2:$F$65536,IF(dati_pdc!$C1477=5,dati_bdv!$G$2:$G$65536,dati_bdv!$H$2:$H$65536))))),$A1477,dati_bdv!K$2:K$65536)","v":0},{"$f":"SUMIF(IF(dati_pdc!$C1477=1,dati_bdv!$C$2:$C$65536,IF(dati_pdc!$C1477=2,dati_bdv!$D$2:$D$65536,IF(dati_pdc!$C1477=3,dati_bdv!$E$2:$E$65536,IF(dati_pdc!$C1477=4,dati_bdv!$F$2:$F$65536,IF(dati_pdc!$C1477=5,dati_bdv!$G$2:$G$65536,dati_bdv!$H$2:$H$65536))))),$A1477,dati_bdv!L$2:L$65536)","v":0},{"$f":"SUMIF(IF(dati_pdc!$C1477=1,dati_bdv!$C$2:$C$65536,IF(dati_pdc!$C1477=2,dati_bdv!$D$2:$D$65536,IF(dati_pdc!$C1477=3,dati_bdv!$E$2:$E$65536,IF(dati_pdc!$C1477=4,dati_bdv!$F$2:$F$65536,IF(dati_pdc!$C1477=5,dati_bdv!$G$2:$G$65536,dati_bdv!$H$2:$H$65536))))),$A1477,dati_bdv!M$2:M$65536)","v":0},{"$f":"SUMIF(IF(dati_pdc!$C1477=1,dati_bdv!$C$2:$C$65536,IF(dati_pdc!$C1477=2,dati_bdv!$D$2:$D$65536,IF(dati_pdc!$C1477=3,dati_bdv!$E$2:$E$65536,IF(dati_pdc!$C1477=4,dati_bdv!$F$2:$F$65536,IF(dati_pdc!$C1477=5,dati_bdv!$G$2:$G$65536,dati_bdv!$H$2:$H$65536))))),$A1477,dati_bdv!N$2:N$65536)","v":0}]
[{"$f":"dati_pdc!A1478","v":0},{"$f":"SUMIF(IF(dati_pdc!$C1478=1,dati_bdv!$C$2:$C$65536,IF(dati_pdc!$C1478=2,dati_bdv!$D$2:$D$65536,IF(dati_pdc!$C1478=3,dati_bdv!$E$2:$E$65536,IF(dati_pdc!$C1478=4,dati_bdv!$F$2:$F$65536,IF(dati_pdc!$C1478=5,dati_bdv!$G$2:$G$65536,dati_bdv!$H$2:$H$65536))))),$A1478,dati_bdv!J$2:J$65536)","v":0},{"$f":"SUMIF(IF(dati_pdc!$C1478=1,dati_bdv!$C$2:$C$65536,IF(dati_pdc!$C1478=2,dati_bdv!$D$2:$D$65536,IF(dati_pdc!$C1478=3,dati_bdv!$E$2:$E$65536,IF(dati_pdc!$C1478=4,dati_bdv!$F$2:$F$65536,IF(dati_pdc!$C1478=5,dati_bdv!$G$2:$G$65536,dati_bdv!$H$2:$H$65536))))),$A1478,dati_bdv!K$2:K$65536)","v":0},{"$f":"SUMIF(IF(dati_pdc!$C1478=1,dati_bdv!$C$2:$C$65536,IF(dati_pdc!$C1478=2,dati_bdv!$D$2:$D$65536,IF(dati_pdc!$C1478=3,dati_bdv!$E$2:$E$65536,IF(dati_pdc!$C1478=4,dati_bdv!$F$2:$F$65536,IF(dati_pdc!$C1478=5,dati_bdv!$G$2:$G$65536,dati_bdv!$H$2:$H$65536))))),$A1478,dati_bdv!L$2:L$65536)","v":0},{"$f":"SUMIF(IF(dati_pdc!$C1478=1,dati_bdv!$C$2:$C$65536,IF(dati_pdc!$C1478=2,dati_bdv!$D$2:$D$65536,IF(dati_pdc!$C1478=3,dati_bdv!$E$2:$E$65536,IF(dati_pdc!$C1478=4,dati_bdv!$F$2:$F$65536,IF(dati_pdc!$C1478=5,dati_bdv!$G$2:$G$65536,dati_bdv!$H$2:$H$65536))))),$A1478,dati_bdv!M$2:M$65536)","v":0},{"$f":"SUMIF(IF(dati_pdc!$C1478=1,dati_bdv!$C$2:$C$65536,IF(dati_pdc!$C1478=2,dati_bdv!$D$2:$D$65536,IF(dati_pdc!$C1478=3,dati_bdv!$E$2:$E$65536,IF(dati_pdc!$C1478=4,dati_bdv!$F$2:$F$65536,IF(dati_pdc!$C1478=5,dati_bdv!$G$2:$G$65536,dati_bdv!$H$2:$H$65536))))),$A1478,dati_bdv!N$2:N$65536)","v":0}]
[{"$f":"dati_pdc!A1479","v":0},{"$f":"SUMIF(IF(dati_pdc!$C1479=1,dati_bdv!$C$2:$C$65536,IF(dati_pdc!$C1479=2,dati_bdv!$D$2:$D$65536,IF(dati_pdc!$C1479=3,dati_bdv!$E$2:$E$65536,IF(dati_pdc!$C1479=4,dati_bdv!$F$2:$F$65536,IF(dati_pdc!$C1479=5,dati_bdv!$G$2:$G$65536,dati_bdv!$H$2:$H$65536))))),$A1479,dati_bdv!J$2:J$65536)","v":0},{"$f":"SUMIF(IF(dati_pdc!$C1479=1,dati_bdv!$C$2:$C$65536,IF(dati_pdc!$C1479=2,dati_bdv!$D$2:$D$65536,IF(dati_pdc!$C1479=3,dati_bdv!$E$2:$E$65536,IF(dati_pdc!$C1479=4,dati_bdv!$F$2:$F$65536,IF(dati_pdc!$C1479=5,dati_bdv!$G$2:$G$65536,dati_bdv!$H$2:$H$65536))))),$A1479,dati_bdv!K$2:K$65536)","v":0},{"$f":"SUMIF(IF(dati_pdc!$C1479=1,dati_bdv!$C$2:$C$65536,IF(dati_pdc!$C1479=2,dati_bdv!$D$2:$D$65536,IF(dati_pdc!$C1479=3,dati_bdv!$E$2:$E$65536,IF(dati_pdc!$C1479=4,dati_bdv!$F$2:$F$65536,IF(dati_pdc!$C1479=5,dati_bdv!$G$2:$G$65536,dati_bdv!$H$2:$H$65536))))),$A1479,dati_bdv!L$2:L$65536)","v":0},{"$f":"SUMIF(IF(dati_pdc!$C1479=1,dati_bdv!$C$2:$C$65536,IF(dati_pdc!$C1479=2,dati_bdv!$D$2:$D$65536,IF(dati_pdc!$C1479=3,dati_bdv!$E$2:$E$65536,IF(dati_pdc!$C1479=4,dati_bdv!$F$2:$F$65536,IF(dati_pdc!$C1479=5,dati_bdv!$G$2:$G$65536,dati_bdv!$H$2:$H$65536))))),$A1479,dati_bdv!M$2:M$65536)","v":0},{"$f":"SUMIF(IF(dati_pdc!$C1479=1,dati_bdv!$C$2:$C$65536,IF(dati_pdc!$C1479=2,dati_bdv!$D$2:$D$65536,IF(dati_pdc!$C1479=3,dati_bdv!$E$2:$E$65536,IF(dati_pdc!$C1479=4,dati_bdv!$F$2:$F$65536,IF(dati_pdc!$C1479=5,dati_bdv!$G$2:$G$65536,dati_bdv!$H$2:$H$65536))))),$A1479,dati_bdv!N$2:N$65536)","v":0}]
[{"$f":"dati_pdc!A1480","v":0},{"$f":"SUMIF(IF(dati_pdc!$C1480=1,dati_bdv!$C$2:$C$65536,IF(dati_pdc!$C1480=2,dati_bdv!$D$2:$D$65536,IF(dati_pdc!$C1480=3,dati_bdv!$E$2:$E$65536,IF(dati_pdc!$C1480=4,dati_bdv!$F$2:$F$65536,IF(dati_pdc!$C1480=5,dati_bdv!$G$2:$G$65536,dati_bdv!$H$2:$H$65536))))),$A1480,dati_bdv!J$2:J$65536)","v":0},{"$f":"SUMIF(IF(dati_pdc!$C1480=1,dati_bdv!$C$2:$C$65536,IF(dati_pdc!$C1480=2,dati_bdv!$D$2:$D$65536,IF(dati_pdc!$C1480=3,dati_bdv!$E$2:$E$65536,IF(dati_pdc!$C1480=4,dati_bdv!$F$2:$F$65536,IF(dati_pdc!$C1480=5,dati_bdv!$G$2:$G$65536,dati_bdv!$H$2:$H$65536))))),$A1480,dati_bdv!K$2:K$65536)","v":0},{"$f":"SUMIF(IF(dati_pdc!$C1480=1,dati_bdv!$C$2:$C$65536,IF(dati_pdc!$C1480=2,dati_bdv!$D$2:$D$65536,IF(dati_pdc!$C1480=3,dati_bdv!$E$2:$E$65536,IF(dati_pdc!$C1480=4,dati_bdv!$F$2:$F$65536,IF(dati_pdc!$C1480=5,dati_bdv!$G$2:$G$65536,dati_bdv!$H$2:$H$65536))))),$A1480,dati_bdv!L$2:L$65536)","v":0},{"$f":"SUMIF(IF(dati_pdc!$C1480=1,dati_bdv!$C$2:$C$65536,IF(dati_pdc!$C1480=2,dati_bdv!$D$2:$D$65536,IF(dati_pdc!$C1480=3,dati_bdv!$E$2:$E$65536,IF(dati_pdc!$C1480=4,dati_bdv!$F$2:$F$65536,IF(dati_pdc!$C1480=5,dati_bdv!$G$2:$G$65536,dati_bdv!$H$2:$H$65536))))),$A1480,dati_bdv!M$2:M$65536)","v":0},{"$f":"SUMIF(IF(dati_pdc!$C1480=1,dati_bdv!$C$2:$C$65536,IF(dati_pdc!$C1480=2,dati_bdv!$D$2:$D$65536,IF(dati_pdc!$C1480=3,dati_bdv!$E$2:$E$65536,IF(dati_pdc!$C1480=4,dati_bdv!$F$2:$F$65536,IF(dati_pdc!$C1480=5,dati_bdv!$G$2:$G$65536,dati_bdv!$H$2:$H$65536))))),$A1480,dati_bdv!N$2:N$65536)","v":0}]
[{"$f":"dati_pdc!A1481","v":0},{"$f":"SUMIF(IF(dati_pdc!$C1481=1,dati_bdv!$C$2:$C$65536,IF(dati_pdc!$C1481=2,dati_bdv!$D$2:$D$65536,IF(dati_pdc!$C1481=3,dati_bdv!$E$2:$E$65536,IF(dati_pdc!$C1481=4,dati_bdv!$F$2:$F$65536,IF(dati_pdc!$C1481=5,dati_bdv!$G$2:$G$65536,dati_bdv!$H$2:$H$65536))))),$A1481,dati_bdv!J$2:J$65536)","v":0},{"$f":"SUMIF(IF(dati_pdc!$C1481=1,dati_bdv!$C$2:$C$65536,IF(dati_pdc!$C1481=2,dati_bdv!$D$2:$D$65536,IF(dati_pdc!$C1481=3,dati_bdv!$E$2:$E$65536,IF(dati_pdc!$C1481=4,dati_bdv!$F$2:$F$65536,IF(dati_pdc!$C1481=5,dati_bdv!$G$2:$G$65536,dati_bdv!$H$2:$H$65536))))),$A1481,dati_bdv!K$2:K$65536)","v":0},{"$f":"SUMIF(IF(dati_pdc!$C1481=1,dati_bdv!$C$2:$C$65536,IF(dati_pdc!$C1481=2,dati_bdv!$D$2:$D$65536,IF(dati_pdc!$C1481=3,dati_bdv!$E$2:$E$65536,IF(dati_pdc!$C1481=4,dati_bdv!$F$2:$F$65536,IF(dati_pdc!$C1481=5,dati_bdv!$G$2:$G$65536,dati_bdv!$H$2:$H$65536))))),$A1481,dati_bdv!L$2:L$65536)","v":0},{"$f":"SUMIF(IF(dati_pdc!$C1481=1,dati_bdv!$C$2:$C$65536,IF(dati_pdc!$C1481=2,dati_bdv!$D$2:$D$65536,IF(dati_pdc!$C1481=3,dati_bdv!$E$2:$E$65536,IF(dati_pdc!$C1481=4,dati_bdv!$F$2:$F$65536,IF(dati_pdc!$C1481=5,dati_bdv!$G$2:$G$65536,dati_bdv!$H$2:$H$65536))))),$A1481,dati_bdv!M$2:M$65536)","v":0},{"$f":"SUMIF(IF(dati_pdc!$C1481=1,dati_bdv!$C$2:$C$65536,IF(dati_pdc!$C1481=2,dati_bdv!$D$2:$D$65536,IF(dati_pdc!$C1481=3,dati_bdv!$E$2:$E$65536,IF(dati_pdc!$C1481=4,dati_bdv!$F$2:$F$65536,IF(dati_pdc!$C1481=5,dati_bdv!$G$2:$G$65536,dati_bdv!$H$2:$H$65536))))),$A1481,dati_bdv!N$2:N$65536)","v":0}]
[{"$f":"dati_pdc!A1482","v":0},{"$f":"SUMIF(IF(dati_pdc!$C1482=1,dati_bdv!$C$2:$C$65536,IF(dati_pdc!$C1482=2,dati_bdv!$D$2:$D$65536,IF(dati_pdc!$C1482=3,dati_bdv!$E$2:$E$65536,IF(dati_pdc!$C1482=4,dati_bdv!$F$2:$F$65536,IF(dati_pdc!$C1482=5,dati_bdv!$G$2:$G$65536,dati_bdv!$H$2:$H$65536))))),$A1482,dati_bdv!J$2:J$65536)","v":0},{"$f":"SUMIF(IF(dati_pdc!$C1482=1,dati_bdv!$C$2:$C$65536,IF(dati_pdc!$C1482=2,dati_bdv!$D$2:$D$65536,IF(dati_pdc!$C1482=3,dati_bdv!$E$2:$E$65536,IF(dati_pdc!$C1482=4,dati_bdv!$F$2:$F$65536,IF(dati_pdc!$C1482=5,dati_bdv!$G$2:$G$65536,dati_bdv!$H$2:$H$65536))))),$A1482,dati_bdv!K$2:K$65536)","v":0},{"$f":"SUMIF(IF(dati_pdc!$C1482=1,dati_bdv!$C$2:$C$65536,IF(dati_pdc!$C1482=2,dati_bdv!$D$2:$D$65536,IF(dati_pdc!$C1482=3,dati_bdv!$E$2:$E$65536,IF(dati_pdc!$C1482=4,dati_bdv!$F$2:$F$65536,IF(dati_pdc!$C1482=5,dati_bdv!$G$2:$G$65536,dati_bdv!$H$2:$H$65536))))),$A1482,dati_bdv!L$2:L$65536)","v":0},{"$f":"SUMIF(IF(dati_pdc!$C1482=1,dati_bdv!$C$2:$C$65536,IF(dati_pdc!$C1482=2,dati_bdv!$D$2:$D$65536,IF(dati_pdc!$C1482=3,dati_bdv!$E$2:$E$65536,IF(dati_pdc!$C1482=4,dati_bdv!$F$2:$F$65536,IF(dati_pdc!$C1482=5,dati_bdv!$G$2:$G$65536,dati_bdv!$H$2:$H$65536))))),$A1482,dati_bdv!M$2:M$65536)","v":0},{"$f":"SUMIF(IF(dati_pdc!$C1482=1,dati_bdv!$C$2:$C$65536,IF(dati_pdc!$C1482=2,dati_bdv!$D$2:$D$65536,IF(dati_pdc!$C1482=3,dati_bdv!$E$2:$E$65536,IF(dati_pdc!$C1482=4,dati_bdv!$F$2:$F$65536,IF(dati_pdc!$C1482=5,dati_bdv!$G$2:$G$65536,dati_bdv!$H$2:$H$65536))))),$A1482,dati_bdv!N$2:N$65536)","v":0}]
[{"$f":"dati_pdc!A1483","v":0},{"$f":"SUMIF(IF(dati_pdc!$C1483=1,dati_bdv!$C$2:$C$65536,IF(dati_pdc!$C1483=2,dati_bdv!$D$2:$D$65536,IF(dati_pdc!$C1483=3,dati_bdv!$E$2:$E$65536,IF(dati_pdc!$C1483=4,dati_bdv!$F$2:$F$65536,IF(dati_pdc!$C1483=5,dati_bdv!$G$2:$G$65536,dati_bdv!$H$2:$H$65536))))),$A1483,dati_bdv!J$2:J$65536)","v":0},{"$f":"SUMIF(IF(dati_pdc!$C1483=1,dati_bdv!$C$2:$C$65536,IF(dati_pdc!$C1483=2,dati_bdv!$D$2:$D$65536,IF(dati_pdc!$C1483=3,dati_bdv!$E$2:$E$65536,IF(dati_pdc!$C1483=4,dati_bdv!$F$2:$F$65536,IF(dati_pdc!$C1483=5,dati_bdv!$G$2:$G$65536,dati_bdv!$H$2:$H$65536))))),$A1483,dati_bdv!K$2:K$65536)","v":0},{"$f":"SUMIF(IF(dati_pdc!$C1483=1,dati_bdv!$C$2:$C$65536,IF(dati_pdc!$C1483=2,dati_bdv!$D$2:$D$65536,IF(dati_pdc!$C1483=3,dati_bdv!$E$2:$E$65536,IF(dati_pdc!$C1483=4,dati_bdv!$F$2:$F$65536,IF(dati_pdc!$C1483=5,dati_bdv!$G$2:$G$65536,dati_bdv!$H$2:$H$65536))))),$A1483,dati_bdv!L$2:L$65536)","v":0},{"$f":"SUMIF(IF(dati_pdc!$C1483=1,dati_bdv!$C$2:$C$65536,IF(dati_pdc!$C1483=2,dati_bdv!$D$2:$D$65536,IF(dati_pdc!$C1483=3,dati_bdv!$E$2:$E$65536,IF(dati_pdc!$C1483=4,dati_bdv!$F$2:$F$65536,IF(dati_pdc!$C1483=5,dati_bdv!$G$2:$G$65536,dati_bdv!$H$2:$H$65536))))),$A1483,dati_bdv!M$2:M$65536)","v":0},{"$f":"SUMIF(IF(dati_pdc!$C1483=1,dati_bdv!$C$2:$C$65536,IF(dati_pdc!$C1483=2,dati_bdv!$D$2:$D$65536,IF(dati_pdc!$C1483=3,dati_bdv!$E$2:$E$65536,IF(dati_pdc!$C1483=4,dati_bdv!$F$2:$F$65536,IF(dati_pdc!$C1483=5,dati_bdv!$G$2:$G$65536,dati_bdv!$H$2:$H$65536))))),$A1483,dati_bdv!N$2:N$65536)","v":0}]
[{"$f":"dati_pdc!A1484","v":0},{"$f":"SUMIF(IF(dati_pdc!$C1484=1,dati_bdv!$C$2:$C$65536,IF(dati_pdc!$C1484=2,dati_bdv!$D$2:$D$65536,IF(dati_pdc!$C1484=3,dati_bdv!$E$2:$E$65536,IF(dati_pdc!$C1484=4,dati_bdv!$F$2:$F$65536,IF(dati_pdc!$C1484=5,dati_bdv!$G$2:$G$65536,dati_bdv!$H$2:$H$65536))))),$A1484,dati_bdv!J$2:J$65536)","v":0},{"$f":"SUMIF(IF(dati_pdc!$C1484=1,dati_bdv!$C$2:$C$65536,IF(dati_pdc!$C1484=2,dati_bdv!$D$2:$D$65536,IF(dati_pdc!$C1484=3,dati_bdv!$E$2:$E$65536,IF(dati_pdc!$C1484=4,dati_bdv!$F$2:$F$65536,IF(dati_pdc!$C1484=5,dati_bdv!$G$2:$G$65536,dati_bdv!$H$2:$H$65536))))),$A1484,dati_bdv!K$2:K$65536)","v":0},{"$f":"SUMIF(IF(dati_pdc!$C1484=1,dati_bdv!$C$2:$C$65536,IF(dati_pdc!$C1484=2,dati_bdv!$D$2:$D$65536,IF(dati_pdc!$C1484=3,dati_bdv!$E$2:$E$65536,IF(dati_pdc!$C1484=4,dati_bdv!$F$2:$F$65536,IF(dati_pdc!$C1484=5,dati_bdv!$G$2:$G$65536,dati_bdv!$H$2:$H$65536))))),$A1484,dati_bdv!L$2:L$65536)","v":0},{"$f":"SUMIF(IF(dati_pdc!$C1484=1,dati_bdv!$C$2:$C$65536,IF(dati_pdc!$C1484=2,dati_bdv!$D$2:$D$65536,IF(dati_pdc!$C1484=3,dati_bdv!$E$2:$E$65536,IF(dati_pdc!$C1484=4,dati_bdv!$F$2:$F$65536,IF(dati_pdc!$C1484=5,dati_bdv!$G$2:$G$65536,dati_bdv!$H$2:$H$65536))))),$A1484,dati_bdv!M$2:M$65536)","v":0},{"$f":"SUMIF(IF(dati_pdc!$C1484=1,dati_bdv!$C$2:$C$65536,IF(dati_pdc!$C1484=2,dati_bdv!$D$2:$D$65536,IF(dati_pdc!$C1484=3,dati_bdv!$E$2:$E$65536,IF(dati_pdc!$C1484=4,dati_bdv!$F$2:$F$65536,IF(dati_pdc!$C1484=5,dati_bdv!$G$2:$G$65536,dati_bdv!$H$2:$H$65536))))),$A1484,dati_bdv!N$2:N$65536)","v":0}]
[{"$f":"dati_pdc!A1485","v":0},{"$f":"SUMIF(IF(dati_pdc!$C1485=1,dati_bdv!$C$2:$C$65536,IF(dati_pdc!$C1485=2,dati_bdv!$D$2:$D$65536,IF(dati_pdc!$C1485=3,dati_bdv!$E$2:$E$65536,IF(dati_pdc!$C1485=4,dati_bdv!$F$2:$F$65536,IF(dati_pdc!$C1485=5,dati_bdv!$G$2:$G$65536,dati_bdv!$H$2:$H$65536))))),$A1485,dati_bdv!J$2:J$65536)","v":0},{"$f":"SUMIF(IF(dati_pdc!$C1485=1,dati_bdv!$C$2:$C$65536,IF(dati_pdc!$C1485=2,dati_bdv!$D$2:$D$65536,IF(dati_pdc!$C1485=3,dati_bdv!$E$2:$E$65536,IF(dati_pdc!$C1485=4,dati_bdv!$F$2:$F$65536,IF(dati_pdc!$C1485=5,dati_bdv!$G$2:$G$65536,dati_bdv!$H$2:$H$65536))))),$A1485,dati_bdv!K$2:K$65536)","v":0},{"$f":"SUMIF(IF(dati_pdc!$C1485=1,dati_bdv!$C$2:$C$65536,IF(dati_pdc!$C1485=2,dati_bdv!$D$2:$D$65536,IF(dati_pdc!$C1485=3,dati_bdv!$E$2:$E$65536,IF(dati_pdc!$C1485=4,dati_bdv!$F$2:$F$65536,IF(dati_pdc!$C1485=5,dati_bdv!$G$2:$G$65536,dati_bdv!$H$2:$H$65536))))),$A1485,dati_bdv!L$2:L$65536)","v":0},{"$f":"SUMIF(IF(dati_pdc!$C1485=1,dati_bdv!$C$2:$C$65536,IF(dati_pdc!$C1485=2,dati_bdv!$D$2:$D$65536,IF(dati_pdc!$C1485=3,dati_bdv!$E$2:$E$65536,IF(dati_pdc!$C1485=4,dati_bdv!$F$2:$F$65536,IF(dati_pdc!$C1485=5,dati_bdv!$G$2:$G$65536,dati_bdv!$H$2:$H$65536))))),$A1485,dati_bdv!M$2:M$65536)","v":0},{"$f":"SUMIF(IF(dati_pdc!$C1485=1,dati_bdv!$C$2:$C$65536,IF(dati_pdc!$C1485=2,dati_bdv!$D$2:$D$65536,IF(dati_pdc!$C1485=3,dati_bdv!$E$2:$E$65536,IF(dati_pdc!$C1485=4,dati_bdv!$F$2:$F$65536,IF(dati_pdc!$C1485=5,dati_bdv!$G$2:$G$65536,dati_bdv!$H$2:$H$65536))))),$A1485,dati_bdv!N$2:N$65536)","v":0}]
[{"$f":"dati_pdc!A1486","v":0},{"$f":"SUMIF(IF(dati_pdc!$C1486=1,dati_bdv!$C$2:$C$65536,IF(dati_pdc!$C1486=2,dati_bdv!$D$2:$D$65536,IF(dati_pdc!$C1486=3,dati_bdv!$E$2:$E$65536,IF(dati_pdc!$C1486=4,dati_bdv!$F$2:$F$65536,IF(dati_pdc!$C1486=5,dati_bdv!$G$2:$G$65536,dati_bdv!$H$2:$H$65536))))),$A1486,dati_bdv!J$2:J$65536)","v":0},{"$f":"SUMIF(IF(dati_pdc!$C1486=1,dati_bdv!$C$2:$C$65536,IF(dati_pdc!$C1486=2,dati_bdv!$D$2:$D$65536,IF(dati_pdc!$C1486=3,dati_bdv!$E$2:$E$65536,IF(dati_pdc!$C1486=4,dati_bdv!$F$2:$F$65536,IF(dati_pdc!$C1486=5,dati_bdv!$G$2:$G$65536,dati_bdv!$H$2:$H$65536))))),$A1486,dati_bdv!K$2:K$65536)","v":0},{"$f":"SUMIF(IF(dati_pdc!$C1486=1,dati_bdv!$C$2:$C$65536,IF(dati_pdc!$C1486=2,dati_bdv!$D$2:$D$65536,IF(dati_pdc!$C1486=3,dati_bdv!$E$2:$E$65536,IF(dati_pdc!$C1486=4,dati_bdv!$F$2:$F$65536,IF(dati_pdc!$C1486=5,dati_bdv!$G$2:$G$65536,dati_bdv!$H$2:$H$65536))))),$A1486,dati_bdv!L$2:L$65536)","v":0},{"$f":"SUMIF(IF(dati_pdc!$C1486=1,dati_bdv!$C$2:$C$65536,IF(dati_pdc!$C1486=2,dati_bdv!$D$2:$D$65536,IF(dati_pdc!$C1486=3,dati_bdv!$E$2:$E$65536,IF(dati_pdc!$C1486=4,dati_bdv!$F$2:$F$65536,IF(dati_pdc!$C1486=5,dati_bdv!$G$2:$G$65536,dati_bdv!$H$2:$H$65536))))),$A1486,dati_bdv!M$2:M$65536)","v":0},{"$f":"SUMIF(IF(dati_pdc!$C1486=1,dati_bdv!$C$2:$C$65536,IF(dati_pdc!$C1486=2,dati_bdv!$D$2:$D$65536,IF(dati_pdc!$C1486=3,dati_bdv!$E$2:$E$65536,IF(dati_pdc!$C1486=4,dati_bdv!$F$2:$F$65536,IF(dati_pdc!$C1486=5,dati_bdv!$G$2:$G$65536,dati_bdv!$H$2:$H$65536))))),$A1486,dati_bdv!N$2:N$65536)","v":0}]
[{"$f":"dati_pdc!A1487","v":0},{"$f":"SUMIF(IF(dati_pdc!$C1487=1,dati_bdv!$C$2:$C$65536,IF(dati_pdc!$C1487=2,dati_bdv!$D$2:$D$65536,IF(dati_pdc!$C1487=3,dati_bdv!$E$2:$E$65536,IF(dati_pdc!$C1487=4,dati_bdv!$F$2:$F$65536,IF(dati_pdc!$C1487=5,dati_bdv!$G$2:$G$65536,dati_bdv!$H$2:$H$65536))))),$A1487,dati_bdv!J$2:J$65536)","v":0},{"$f":"SUMIF(IF(dati_pdc!$C1487=1,dati_bdv!$C$2:$C$65536,IF(dati_pdc!$C1487=2,dati_bdv!$D$2:$D$65536,IF(dati_pdc!$C1487=3,dati_bdv!$E$2:$E$65536,IF(dati_pdc!$C1487=4,dati_bdv!$F$2:$F$65536,IF(dati_pdc!$C1487=5,dati_bdv!$G$2:$G$65536,dati_bdv!$H$2:$H$65536))))),$A1487,dati_bdv!K$2:K$65536)","v":0},{"$f":"SUMIF(IF(dati_pdc!$C1487=1,dati_bdv!$C$2:$C$65536,IF(dati_pdc!$C1487=2,dati_bdv!$D$2:$D$65536,IF(dati_pdc!$C1487=3,dati_bdv!$E$2:$E$65536,IF(dati_pdc!$C1487=4,dati_bdv!$F$2:$F$65536,IF(dati_pdc!$C1487=5,dati_bdv!$G$2:$G$65536,dati_bdv!$H$2:$H$65536))))),$A1487,dati_bdv!L$2:L$65536)","v":0},{"$f":"SUMIF(IF(dati_pdc!$C1487=1,dati_bdv!$C$2:$C$65536,IF(dati_pdc!$C1487=2,dati_bdv!$D$2:$D$65536,IF(dati_pdc!$C1487=3,dati_bdv!$E$2:$E$65536,IF(dati_pdc!$C1487=4,dati_bdv!$F$2:$F$65536,IF(dati_pdc!$C1487=5,dati_bdv!$G$2:$G$65536,dati_bdv!$H$2:$H$65536))))),$A1487,dati_bdv!M$2:M$65536)","v":0},{"$f":"SUMIF(IF(dati_pdc!$C1487=1,dati_bdv!$C$2:$C$65536,IF(dati_pdc!$C1487=2,dati_bdv!$D$2:$D$65536,IF(dati_pdc!$C1487=3,dati_bdv!$E$2:$E$65536,IF(dati_pdc!$C1487=4,dati_bdv!$F$2:$F$65536,IF(dati_pdc!$C1487=5,dati_bdv!$G$2:$G$65536,dati_bdv!$H$2:$H$65536))))),$A1487,dati_bdv!N$2:N$65536)","v":0}]
[{"$f":"dati_pdc!A1488","v":0},{"$f":"SUMIF(IF(dati_pdc!$C1488=1,dati_bdv!$C$2:$C$65536,IF(dati_pdc!$C1488=2,dati_bdv!$D$2:$D$65536,IF(dati_pdc!$C1488=3,dati_bdv!$E$2:$E$65536,IF(dati_pdc!$C1488=4,dati_bdv!$F$2:$F$65536,IF(dati_pdc!$C1488=5,dati_bdv!$G$2:$G$65536,dati_bdv!$H$2:$H$65536))))),$A1488,dati_bdv!J$2:J$65536)","v":0},{"$f":"SUMIF(IF(dati_pdc!$C1488=1,dati_bdv!$C$2:$C$65536,IF(dati_pdc!$C1488=2,dati_bdv!$D$2:$D$65536,IF(dati_pdc!$C1488=3,dati_bdv!$E$2:$E$65536,IF(dati_pdc!$C1488=4,dati_bdv!$F$2:$F$65536,IF(dati_pdc!$C1488=5,dati_bdv!$G$2:$G$65536,dati_bdv!$H$2:$H$65536))))),$A1488,dati_bdv!K$2:K$65536)","v":0},{"$f":"SUMIF(IF(dati_pdc!$C1488=1,dati_bdv!$C$2:$C$65536,IF(dati_pdc!$C1488=2,dati_bdv!$D$2:$D$65536,IF(dati_pdc!$C1488=3,dati_bdv!$E$2:$E$65536,IF(dati_pdc!$C1488=4,dati_bdv!$F$2:$F$65536,IF(dati_pdc!$C1488=5,dati_bdv!$G$2:$G$65536,dati_bdv!$H$2:$H$65536))))),$A1488,dati_bdv!L$2:L$65536)","v":0},{"$f":"SUMIF(IF(dati_pdc!$C1488=1,dati_bdv!$C$2:$C$65536,IF(dati_pdc!$C1488=2,dati_bdv!$D$2:$D$65536,IF(dati_pdc!$C1488=3,dati_bdv!$E$2:$E$65536,IF(dati_pdc!$C1488=4,dati_bdv!$F$2:$F$65536,IF(dati_pdc!$C1488=5,dati_bdv!$G$2:$G$65536,dati_bdv!$H$2:$H$65536))))),$A1488,dati_bdv!M$2:M$65536)","v":0},{"$f":"SUMIF(IF(dati_pdc!$C1488=1,dati_bdv!$C$2:$C$65536,IF(dati_pdc!$C1488=2,dati_bdv!$D$2:$D$65536,IF(dati_pdc!$C1488=3,dati_bdv!$E$2:$E$65536,IF(dati_pdc!$C1488=4,dati_bdv!$F$2:$F$65536,IF(dati_pdc!$C1488=5,dati_bdv!$G$2:$G$65536,dati_bdv!$H$2:$H$65536))))),$A1488,dati_bdv!N$2:N$65536)","v":0}]
[{"$f":"dati_pdc!A1489","v":0},{"$f":"SUMIF(IF(dati_pdc!$C1489=1,dati_bdv!$C$2:$C$65536,IF(dati_pdc!$C1489=2,dati_bdv!$D$2:$D$65536,IF(dati_pdc!$C1489=3,dati_bdv!$E$2:$E$65536,IF(dati_pdc!$C1489=4,dati_bdv!$F$2:$F$65536,IF(dati_pdc!$C1489=5,dati_bdv!$G$2:$G$65536,dati_bdv!$H$2:$H$65536))))),$A1489,dati_bdv!J$2:J$65536)","v":0},{"$f":"SUMIF(IF(dati_pdc!$C1489=1,dati_bdv!$C$2:$C$65536,IF(dati_pdc!$C1489=2,dati_bdv!$D$2:$D$65536,IF(dati_pdc!$C1489=3,dati_bdv!$E$2:$E$65536,IF(dati_pdc!$C1489=4,dati_bdv!$F$2:$F$65536,IF(dati_pdc!$C1489=5,dati_bdv!$G$2:$G$65536,dati_bdv!$H$2:$H$65536))))),$A1489,dati_bdv!K$2:K$65536)","v":0},{"$f":"SUMIF(IF(dati_pdc!$C1489=1,dati_bdv!$C$2:$C$65536,IF(dati_pdc!$C1489=2,dati_bdv!$D$2:$D$65536,IF(dati_pdc!$C1489=3,dati_bdv!$E$2:$E$65536,IF(dati_pdc!$C1489=4,dati_bdv!$F$2:$F$65536,IF(dati_pdc!$C1489=5,dati_bdv!$G$2:$G$65536,dati_bdv!$H$2:$H$65536))))),$A1489,dati_bdv!L$2:L$65536)","v":0},{"$f":"SUMIF(IF(dati_pdc!$C1489=1,dati_bdv!$C$2:$C$65536,IF(dati_pdc!$C1489=2,dati_bdv!$D$2:$D$65536,IF(dati_pdc!$C1489=3,dati_bdv!$E$2:$E$65536,IF(dati_pdc!$C1489=4,dati_bdv!$F$2:$F$65536,IF(dati_pdc!$C1489=5,dati_bdv!$G$2:$G$65536,dati_bdv!$H$2:$H$65536))))),$A1489,dati_bdv!M$2:M$65536)","v":0},{"$f":"SUMIF(IF(dati_pdc!$C1489=1,dati_bdv!$C$2:$C$65536,IF(dati_pdc!$C1489=2,dati_bdv!$D$2:$D$65536,IF(dati_pdc!$C1489=3,dati_bdv!$E$2:$E$65536,IF(dati_pdc!$C1489=4,dati_bdv!$F$2:$F$65536,IF(dati_pdc!$C1489=5,dati_bdv!$G$2:$G$65536,dati_bdv!$H$2:$H$65536))))),$A1489,dati_bdv!N$2:N$65536)","v":0}]
[{"$f":"dati_pdc!A1490","v":0},{"$f":"SUMIF(IF(dati_pdc!$C1490=1,dati_bdv!$C$2:$C$65536,IF(dati_pdc!$C1490=2,dati_bdv!$D$2:$D$65536,IF(dati_pdc!$C1490=3,dati_bdv!$E$2:$E$65536,IF(dati_pdc!$C1490=4,dati_bdv!$F$2:$F$65536,IF(dati_pdc!$C1490=5,dati_bdv!$G$2:$G$65536,dati_bdv!$H$2:$H$65536))))),$A1490,dati_bdv!J$2:J$65536)","v":0},{"$f":"SUMIF(IF(dati_pdc!$C1490=1,dati_bdv!$C$2:$C$65536,IF(dati_pdc!$C1490=2,dati_bdv!$D$2:$D$65536,IF(dati_pdc!$C1490=3,dati_bdv!$E$2:$E$65536,IF(dati_pdc!$C1490=4,dati_bdv!$F$2:$F$65536,IF(dati_pdc!$C1490=5,dati_bdv!$G$2:$G$65536,dati_bdv!$H$2:$H$65536))))),$A1490,dati_bdv!K$2:K$65536)","v":0},{"$f":"SUMIF(IF(dati_pdc!$C1490=1,dati_bdv!$C$2:$C$65536,IF(dati_pdc!$C1490=2,dati_bdv!$D$2:$D$65536,IF(dati_pdc!$C1490=3,dati_bdv!$E$2:$E$65536,IF(dati_pdc!$C1490=4,dati_bdv!$F$2:$F$65536,IF(dati_pdc!$C1490=5,dati_bdv!$G$2:$G$65536,dati_bdv!$H$2:$H$65536))))),$A1490,dati_bdv!L$2:L$65536)","v":0},{"$f":"SUMIF(IF(dati_pdc!$C1490=1,dati_bdv!$C$2:$C$65536,IF(dati_pdc!$C1490=2,dati_bdv!$D$2:$D$65536,IF(dati_pdc!$C1490=3,dati_bdv!$E$2:$E$65536,IF(dati_pdc!$C1490=4,dati_bdv!$F$2:$F$65536,IF(dati_pdc!$C1490=5,dati_bdv!$G$2:$G$65536,dati_bdv!$H$2:$H$65536))))),$A1490,dati_bdv!M$2:M$65536)","v":0},{"$f":"SUMIF(IF(dati_pdc!$C1490=1,dati_bdv!$C$2:$C$65536,IF(dati_pdc!$C1490=2,dati_bdv!$D$2:$D$65536,IF(dati_pdc!$C1490=3,dati_bdv!$E$2:$E$65536,IF(dati_pdc!$C1490=4,dati_bdv!$F$2:$F$65536,IF(dati_pdc!$C1490=5,dati_bdv!$G$2:$G$65536,dati_bdv!$H$2:$H$65536))))),$A1490,dati_bdv!N$2:N$65536)","v":0}]
[{"$f":"dati_pdc!A1491","v":0},{"$f":"SUMIF(IF(dati_pdc!$C1491=1,dati_bdv!$C$2:$C$65536,IF(dati_pdc!$C1491=2,dati_bdv!$D$2:$D$65536,IF(dati_pdc!$C1491=3,dati_bdv!$E$2:$E$65536,IF(dati_pdc!$C1491=4,dati_bdv!$F$2:$F$65536,IF(dati_pdc!$C1491=5,dati_bdv!$G$2:$G$65536,dati_bdv!$H$2:$H$65536))))),$A1491,dati_bdv!J$2:J$65536)","v":0},{"$f":"SUMIF(IF(dati_pdc!$C1491=1,dati_bdv!$C$2:$C$65536,IF(dati_pdc!$C1491=2,dati_bdv!$D$2:$D$65536,IF(dati_pdc!$C1491=3,dati_bdv!$E$2:$E$65536,IF(dati_pdc!$C1491=4,dati_bdv!$F$2:$F$65536,IF(dati_pdc!$C1491=5,dati_bdv!$G$2:$G$65536,dati_bdv!$H$2:$H$65536))))),$A1491,dati_bdv!K$2:K$65536)","v":0},{"$f":"SUMIF(IF(dati_pdc!$C1491=1,dati_bdv!$C$2:$C$65536,IF(dati_pdc!$C1491=2,dati_bdv!$D$2:$D$65536,IF(dati_pdc!$C1491=3,dati_bdv!$E$2:$E$65536,IF(dati_pdc!$C1491=4,dati_bdv!$F$2:$F$65536,IF(dati_pdc!$C1491=5,dati_bdv!$G$2:$G$65536,dati_bdv!$H$2:$H$65536))))),$A1491,dati_bdv!L$2:L$65536)","v":0},{"$f":"SUMIF(IF(dati_pdc!$C1491=1,dati_bdv!$C$2:$C$65536,IF(dati_pdc!$C1491=2,dati_bdv!$D$2:$D$65536,IF(dati_pdc!$C1491=3,dati_bdv!$E$2:$E$65536,IF(dati_pdc!$C1491=4,dati_bdv!$F$2:$F$65536,IF(dati_pdc!$C1491=5,dati_bdv!$G$2:$G$65536,dati_bdv!$H$2:$H$65536))))),$A1491,dati_bdv!M$2:M$65536)","v":0},{"$f":"SUMIF(IF(dati_pdc!$C1491=1,dati_bdv!$C$2:$C$65536,IF(dati_pdc!$C1491=2,dati_bdv!$D$2:$D$65536,IF(dati_pdc!$C1491=3,dati_bdv!$E$2:$E$65536,IF(dati_pdc!$C1491=4,dati_bdv!$F$2:$F$65536,IF(dati_pdc!$C1491=5,dati_bdv!$G$2:$G$65536,dati_bdv!$H$2:$H$65536))))),$A1491,dati_bdv!N$2:N$65536)","v":0}]
[{"$f":"dati_pdc!A1492","v":0},{"$f":"SUMIF(IF(dati_pdc!$C1492=1,dati_bdv!$C$2:$C$65536,IF(dati_pdc!$C1492=2,dati_bdv!$D$2:$D$65536,IF(dati_pdc!$C1492=3,dati_bdv!$E$2:$E$65536,IF(dati_pdc!$C1492=4,dati_bdv!$F$2:$F$65536,IF(dati_pdc!$C1492=5,dati_bdv!$G$2:$G$65536,dati_bdv!$H$2:$H$65536))))),$A1492,dati_bdv!J$2:J$65536)","v":0},{"$f":"SUMIF(IF(dati_pdc!$C1492=1,dati_bdv!$C$2:$C$65536,IF(dati_pdc!$C1492=2,dati_bdv!$D$2:$D$65536,IF(dati_pdc!$C1492=3,dati_bdv!$E$2:$E$65536,IF(dati_pdc!$C1492=4,dati_bdv!$F$2:$F$65536,IF(dati_pdc!$C1492=5,dati_bdv!$G$2:$G$65536,dati_bdv!$H$2:$H$65536))))),$A1492,dati_bdv!K$2:K$65536)","v":0},{"$f":"SUMIF(IF(dati_pdc!$C1492=1,dati_bdv!$C$2:$C$65536,IF(dati_pdc!$C1492=2,dati_bdv!$D$2:$D$65536,IF(dati_pdc!$C1492=3,dati_bdv!$E$2:$E$65536,IF(dati_pdc!$C1492=4,dati_bdv!$F$2:$F$65536,IF(dati_pdc!$C1492=5,dati_bdv!$G$2:$G$65536,dati_bdv!$H$2:$H$65536))))),$A1492,dati_bdv!L$2:L$65536)","v":0},{"$f":"SUMIF(IF(dati_pdc!$C1492=1,dati_bdv!$C$2:$C$65536,IF(dati_pdc!$C1492=2,dati_bdv!$D$2:$D$65536,IF(dati_pdc!$C1492=3,dati_bdv!$E$2:$E$65536,IF(dati_pdc!$C1492=4,dati_bdv!$F$2:$F$65536,IF(dati_pdc!$C1492=5,dati_bdv!$G$2:$G$65536,dati_bdv!$H$2:$H$65536))))),$A1492,dati_bdv!M$2:M$65536)","v":0},{"$f":"SUMIF(IF(dati_pdc!$C1492=1,dati_bdv!$C$2:$C$65536,IF(dati_pdc!$C1492=2,dati_bdv!$D$2:$D$65536,IF(dati_pdc!$C1492=3,dati_bdv!$E$2:$E$65536,IF(dati_pdc!$C1492=4,dati_bdv!$F$2:$F$65536,IF(dati_pdc!$C1492=5,dati_bdv!$G$2:$G$65536,dati_bdv!$H$2:$H$65536))))),$A1492,dati_bdv!N$2:N$65536)","v":0}]
[{"$f":"dati_pdc!A1493","v":0},{"$f":"SUMIF(IF(dati_pdc!$C1493=1,dati_bdv!$C$2:$C$65536,IF(dati_pdc!$C1493=2,dati_bdv!$D$2:$D$65536,IF(dati_pdc!$C1493=3,dati_bdv!$E$2:$E$65536,IF(dati_pdc!$C1493=4,dati_bdv!$F$2:$F$65536,IF(dati_pdc!$C1493=5,dati_bdv!$G$2:$G$65536,dati_bdv!$H$2:$H$65536))))),$A1493,dati_bdv!J$2:J$65536)","v":0},{"$f":"SUMIF(IF(dati_pdc!$C1493=1,dati_bdv!$C$2:$C$65536,IF(dati_pdc!$C1493=2,dati_bdv!$D$2:$D$65536,IF(dati_pdc!$C1493=3,dati_bdv!$E$2:$E$65536,IF(dati_pdc!$C1493=4,dati_bdv!$F$2:$F$65536,IF(dati_pdc!$C1493=5,dati_bdv!$G$2:$G$65536,dati_bdv!$H$2:$H$65536))))),$A1493,dati_bdv!K$2:K$65536)","v":0},{"$f":"SUMIF(IF(dati_pdc!$C1493=1,dati_bdv!$C$2:$C$65536,IF(dati_pdc!$C1493=2,dati_bdv!$D$2:$D$65536,IF(dati_pdc!$C1493=3,dati_bdv!$E$2:$E$65536,IF(dati_pdc!$C1493=4,dati_bdv!$F$2:$F$65536,IF(dati_pdc!$C1493=5,dati_bdv!$G$2:$G$65536,dati_bdv!$H$2:$H$65536))))),$A1493,dati_bdv!L$2:L$65536)","v":0},{"$f":"SUMIF(IF(dati_pdc!$C1493=1,dati_bdv!$C$2:$C$65536,IF(dati_pdc!$C1493=2,dati_bdv!$D$2:$D$65536,IF(dati_pdc!$C1493=3,dati_bdv!$E$2:$E$65536,IF(dati_pdc!$C1493=4,dati_bdv!$F$2:$F$65536,IF(dati_pdc!$C1493=5,dati_bdv!$G$2:$G$65536,dati_bdv!$H$2:$H$65536))))),$A1493,dati_bdv!M$2:M$65536)","v":0},{"$f":"SUMIF(IF(dati_pdc!$C1493=1,dati_bdv!$C$2:$C$65536,IF(dati_pdc!$C1493=2,dati_bdv!$D$2:$D$65536,IF(dati_pdc!$C1493=3,dati_bdv!$E$2:$E$65536,IF(dati_pdc!$C1493=4,dati_bdv!$F$2:$F$65536,IF(dati_pdc!$C1493=5,dati_bdv!$G$2:$G$65536,dati_bdv!$H$2:$H$65536))))),$A1493,dati_bdv!N$2:N$65536)","v":0}]
[{"$f":"dati_pdc!A1494","v":0},{"$f":"SUMIF(IF(dati_pdc!$C1494=1,dati_bdv!$C$2:$C$65536,IF(dati_pdc!$C1494=2,dati_bdv!$D$2:$D$65536,IF(dati_pdc!$C1494=3,dati_bdv!$E$2:$E$65536,IF(dati_pdc!$C1494=4,dati_bdv!$F$2:$F$65536,IF(dati_pdc!$C1494=5,dati_bdv!$G$2:$G$65536,dati_bdv!$H$2:$H$65536))))),$A1494,dati_bdv!J$2:J$65536)","v":0},{"$f":"SUMIF(IF(dati_pdc!$C1494=1,dati_bdv!$C$2:$C$65536,IF(dati_pdc!$C1494=2,dati_bdv!$D$2:$D$65536,IF(dati_pdc!$C1494=3,dati_bdv!$E$2:$E$65536,IF(dati_pdc!$C1494=4,dati_bdv!$F$2:$F$65536,IF(dati_pdc!$C1494=5,dati_bdv!$G$2:$G$65536,dati_bdv!$H$2:$H$65536))))),$A1494,dati_bdv!K$2:K$65536)","v":0},{"$f":"SUMIF(IF(dati_pdc!$C1494=1,dati_bdv!$C$2:$C$65536,IF(dati_pdc!$C1494=2,dati_bdv!$D$2:$D$65536,IF(dati_pdc!$C1494=3,dati_bdv!$E$2:$E$65536,IF(dati_pdc!$C1494=4,dati_bdv!$F$2:$F$65536,IF(dati_pdc!$C1494=5,dati_bdv!$G$2:$G$65536,dati_bdv!$H$2:$H$65536))))),$A1494,dati_bdv!L$2:L$65536)","v":0},{"$f":"SUMIF(IF(dati_pdc!$C1494=1,dati_bdv!$C$2:$C$65536,IF(dati_pdc!$C1494=2,dati_bdv!$D$2:$D$65536,IF(dati_pdc!$C1494=3,dati_bdv!$E$2:$E$65536,IF(dati_pdc!$C1494=4,dati_bdv!$F$2:$F$65536,IF(dati_pdc!$C1494=5,dati_bdv!$G$2:$G$65536,dati_bdv!$H$2:$H$65536))))),$A1494,dati_bdv!M$2:M$65536)","v":0},{"$f":"SUMIF(IF(dati_pdc!$C1494=1,dati_bdv!$C$2:$C$65536,IF(dati_pdc!$C1494=2,dati_bdv!$D$2:$D$65536,IF(dati_pdc!$C1494=3,dati_bdv!$E$2:$E$65536,IF(dati_pdc!$C1494=4,dati_bdv!$F$2:$F$65536,IF(dati_pdc!$C1494=5,dati_bdv!$G$2:$G$65536,dati_bdv!$H$2:$H$65536))))),$A1494,dati_bdv!N$2:N$65536)","v":0}]
[{"$f":"dati_pdc!A1495","v":0},{"$f":"SUMIF(IF(dati_pdc!$C1495=1,dati_bdv!$C$2:$C$65536,IF(dati_pdc!$C1495=2,dati_bdv!$D$2:$D$65536,IF(dati_pdc!$C1495=3,dati_bdv!$E$2:$E$65536,IF(dati_pdc!$C1495=4,dati_bdv!$F$2:$F$65536,IF(dati_pdc!$C1495=5,dati_bdv!$G$2:$G$65536,dati_bdv!$H$2:$H$65536))))),$A1495,dati_bdv!J$2:J$65536)","v":0},{"$f":"SUMIF(IF(dati_pdc!$C1495=1,dati_bdv!$C$2:$C$65536,IF(dati_pdc!$C1495=2,dati_bdv!$D$2:$D$65536,IF(dati_pdc!$C1495=3,dati_bdv!$E$2:$E$65536,IF(dati_pdc!$C1495=4,dati_bdv!$F$2:$F$65536,IF(dati_pdc!$C1495=5,dati_bdv!$G$2:$G$65536,dati_bdv!$H$2:$H$65536))))),$A1495,dati_bdv!K$2:K$65536)","v":0},{"$f":"SUMIF(IF(dati_pdc!$C1495=1,dati_bdv!$C$2:$C$65536,IF(dati_pdc!$C1495=2,dati_bdv!$D$2:$D$65536,IF(dati_pdc!$C1495=3,dati_bdv!$E$2:$E$65536,IF(dati_pdc!$C1495=4,dati_bdv!$F$2:$F$65536,IF(dati_pdc!$C1495=5,dati_bdv!$G$2:$G$65536,dati_bdv!$H$2:$H$65536))))),$A1495,dati_bdv!L$2:L$65536)","v":0},{"$f":"SUMIF(IF(dati_pdc!$C1495=1,dati_bdv!$C$2:$C$65536,IF(dati_pdc!$C1495=2,dati_bdv!$D$2:$D$65536,IF(dati_pdc!$C1495=3,dati_bdv!$E$2:$E$65536,IF(dati_pdc!$C1495=4,dati_bdv!$F$2:$F$65536,IF(dati_pdc!$C1495=5,dati_bdv!$G$2:$G$65536,dati_bdv!$H$2:$H$65536))))),$A1495,dati_bdv!M$2:M$65536)","v":0},{"$f":"SUMIF(IF(dati_pdc!$C1495=1,dati_bdv!$C$2:$C$65536,IF(dati_pdc!$C1495=2,dati_bdv!$D$2:$D$65536,IF(dati_pdc!$C1495=3,dati_bdv!$E$2:$E$65536,IF(dati_pdc!$C1495=4,dati_bdv!$F$2:$F$65536,IF(dati_pdc!$C1495=5,dati_bdv!$G$2:$G$65536,dati_bdv!$H$2:$H$65536))))),$A1495,dati_bdv!N$2:N$65536)","v":0}]
[{"$f":"dati_pdc!A1496","v":0},{"$f":"SUMIF(IF(dati_pdc!$C1496=1,dati_bdv!$C$2:$C$65536,IF(dati_pdc!$C1496=2,dati_bdv!$D$2:$D$65536,IF(dati_pdc!$C1496=3,dati_bdv!$E$2:$E$65536,IF(dati_pdc!$C1496=4,dati_bdv!$F$2:$F$65536,IF(dati_pdc!$C1496=5,dati_bdv!$G$2:$G$65536,dati_bdv!$H$2:$H$65536))))),$A1496,dati_bdv!J$2:J$65536)","v":0},{"$f":"SUMIF(IF(dati_pdc!$C1496=1,dati_bdv!$C$2:$C$65536,IF(dati_pdc!$C1496=2,dati_bdv!$D$2:$D$65536,IF(dati_pdc!$C1496=3,dati_bdv!$E$2:$E$65536,IF(dati_pdc!$C1496=4,dati_bdv!$F$2:$F$65536,IF(dati_pdc!$C1496=5,dati_bdv!$G$2:$G$65536,dati_bdv!$H$2:$H$65536))))),$A1496,dati_bdv!K$2:K$65536)","v":0},{"$f":"SUMIF(IF(dati_pdc!$C1496=1,dati_bdv!$C$2:$C$65536,IF(dati_pdc!$C1496=2,dati_bdv!$D$2:$D$65536,IF(dati_pdc!$C1496=3,dati_bdv!$E$2:$E$65536,IF(dati_pdc!$C1496=4,dati_bdv!$F$2:$F$65536,IF(dati_pdc!$C1496=5,dati_bdv!$G$2:$G$65536,dati_bdv!$H$2:$H$65536))))),$A1496,dati_bdv!L$2:L$65536)","v":0},{"$f":"SUMIF(IF(dati_pdc!$C1496=1,dati_bdv!$C$2:$C$65536,IF(dati_pdc!$C1496=2,dati_bdv!$D$2:$D$65536,IF(dati_pdc!$C1496=3,dati_bdv!$E$2:$E$65536,IF(dati_pdc!$C1496=4,dati_bdv!$F$2:$F$65536,IF(dati_pdc!$C1496=5,dati_bdv!$G$2:$G$65536,dati_bdv!$H$2:$H$65536))))),$A1496,dati_bdv!M$2:M$65536)","v":0},{"$f":"SUMIF(IF(dati_pdc!$C1496=1,dati_bdv!$C$2:$C$65536,IF(dati_pdc!$C1496=2,dati_bdv!$D$2:$D$65536,IF(dati_pdc!$C1496=3,dati_bdv!$E$2:$E$65536,IF(dati_pdc!$C1496=4,dati_bdv!$F$2:$F$65536,IF(dati_pdc!$C1496=5,dati_bdv!$G$2:$G$65536,dati_bdv!$H$2:$H$65536))))),$A1496,dati_bdv!N$2:N$65536)","v":0}]
[{"$f":"dati_pdc!A1497","v":0},{"$f":"SUMIF(IF(dati_pdc!$C1497=1,dati_bdv!$C$2:$C$65536,IF(dati_pdc!$C1497=2,dati_bdv!$D$2:$D$65536,IF(dati_pdc!$C1497=3,dati_bdv!$E$2:$E$65536,IF(dati_pdc!$C1497=4,dati_bdv!$F$2:$F$65536,IF(dati_pdc!$C1497=5,dati_bdv!$G$2:$G$65536,dati_bdv!$H$2:$H$65536))))),$A1497,dati_bdv!J$2:J$65536)","v":0},{"$f":"SUMIF(IF(dati_pdc!$C1497=1,dati_bdv!$C$2:$C$65536,IF(dati_pdc!$C1497=2,dati_bdv!$D$2:$D$65536,IF(dati_pdc!$C1497=3,dati_bdv!$E$2:$E$65536,IF(dati_pdc!$C1497=4,dati_bdv!$F$2:$F$65536,IF(dati_pdc!$C1497=5,dati_bdv!$G$2:$G$65536,dati_bdv!$H$2:$H$65536))))),$A1497,dati_bdv!K$2:K$65536)","v":0},{"$f":"SUMIF(IF(dati_pdc!$C1497=1,dati_bdv!$C$2:$C$65536,IF(dati_pdc!$C1497=2,dati_bdv!$D$2:$D$65536,IF(dati_pdc!$C1497=3,dati_bdv!$E$2:$E$65536,IF(dati_pdc!$C1497=4,dati_bdv!$F$2:$F$65536,IF(dati_pdc!$C1497=5,dati_bdv!$G$2:$G$65536,dati_bdv!$H$2:$H$65536))))),$A1497,dati_bdv!L$2:L$65536)","v":0},{"$f":"SUMIF(IF(dati_pdc!$C1497=1,dati_bdv!$C$2:$C$65536,IF(dati_pdc!$C1497=2,dati_bdv!$D$2:$D$65536,IF(dati_pdc!$C1497=3,dati_bdv!$E$2:$E$65536,IF(dati_pdc!$C1497=4,dati_bdv!$F$2:$F$65536,IF(dati_pdc!$C1497=5,dati_bdv!$G$2:$G$65536,dati_bdv!$H$2:$H$65536))))),$A1497,dati_bdv!M$2:M$65536)","v":0},{"$f":"SUMIF(IF(dati_pdc!$C1497=1,dati_bdv!$C$2:$C$65536,IF(dati_pdc!$C1497=2,dati_bdv!$D$2:$D$65536,IF(dati_pdc!$C1497=3,dati_bdv!$E$2:$E$65536,IF(dati_pdc!$C1497=4,dati_bdv!$F$2:$F$65536,IF(dati_pdc!$C1497=5,dati_bdv!$G$2:$G$65536,dati_bdv!$H$2:$H$65536))))),$A1497,dati_bdv!N$2:N$65536)","v":0}]
[{"$f":"dati_pdc!A1498","v":0},{"$f":"SUMIF(IF(dati_pdc!$C1498=1,dati_bdv!$C$2:$C$65536,IF(dati_pdc!$C1498=2,dati_bdv!$D$2:$D$65536,IF(dati_pdc!$C1498=3,dati_bdv!$E$2:$E$65536,IF(dati_pdc!$C1498=4,dati_bdv!$F$2:$F$65536,IF(dati_pdc!$C1498=5,dati_bdv!$G$2:$G$65536,dati_bdv!$H$2:$H$65536))))),$A1498,dati_bdv!J$2:J$65536)","v":0},{"$f":"SUMIF(IF(dati_pdc!$C1498=1,dati_bdv!$C$2:$C$65536,IF(dati_pdc!$C1498=2,dati_bdv!$D$2:$D$65536,IF(dati_pdc!$C1498=3,dati_bdv!$E$2:$E$65536,IF(dati_pdc!$C1498=4,dati_bdv!$F$2:$F$65536,IF(dati_pdc!$C1498=5,dati_bdv!$G$2:$G$65536,dati_bdv!$H$2:$H$65536))))),$A1498,dati_bdv!K$2:K$65536)","v":0},{"$f":"SUMIF(IF(dati_pdc!$C1498=1,dati_bdv!$C$2:$C$65536,IF(dati_pdc!$C1498=2,dati_bdv!$D$2:$D$65536,IF(dati_pdc!$C1498=3,dati_bdv!$E$2:$E$65536,IF(dati_pdc!$C1498=4,dati_bdv!$F$2:$F$65536,IF(dati_pdc!$C1498=5,dati_bdv!$G$2:$G$65536,dati_bdv!$H$2:$H$65536))))),$A1498,dati_bdv!L$2:L$65536)","v":0},{"$f":"SUMIF(IF(dati_pdc!$C1498=1,dati_bdv!$C$2:$C$65536,IF(dati_pdc!$C1498=2,dati_bdv!$D$2:$D$65536,IF(dati_pdc!$C1498=3,dati_bdv!$E$2:$E$65536,IF(dati_pdc!$C1498=4,dati_bdv!$F$2:$F$65536,IF(dati_pdc!$C1498=5,dati_bdv!$G$2:$G$65536,dati_bdv!$H$2:$H$65536))))),$A1498,dati_bdv!M$2:M$65536)","v":0},{"$f":"SUMIF(IF(dati_pdc!$C1498=1,dati_bdv!$C$2:$C$65536,IF(dati_pdc!$C1498=2,dati_bdv!$D$2:$D$65536,IF(dati_pdc!$C1498=3,dati_bdv!$E$2:$E$65536,IF(dati_pdc!$C1498=4,dati_bdv!$F$2:$F$65536,IF(dati_pdc!$C1498=5,dati_bdv!$G$2:$G$65536,dati_bdv!$H$2:$H$65536))))),$A1498,dati_bdv!N$2:N$65536)","v":0}]
[{"$f":"dati_pdc!A1499","v":0},{"$f":"SUMIF(IF(dati_pdc!$C1499=1,dati_bdv!$C$2:$C$65536,IF(dati_pdc!$C1499=2,dati_bdv!$D$2:$D$65536,IF(dati_pdc!$C1499=3,dati_bdv!$E$2:$E$65536,IF(dati_pdc!$C1499=4,dati_bdv!$F$2:$F$65536,IF(dati_pdc!$C1499=5,dati_bdv!$G$2:$G$65536,dati_bdv!$H$2:$H$65536))))),$A1499,dati_bdv!J$2:J$65536)","v":0},{"$f":"SUMIF(IF(dati_pdc!$C1499=1,dati_bdv!$C$2:$C$65536,IF(dati_pdc!$C1499=2,dati_bdv!$D$2:$D$65536,IF(dati_pdc!$C1499=3,dati_bdv!$E$2:$E$65536,IF(dati_pdc!$C1499=4,dati_bdv!$F$2:$F$65536,IF(dati_pdc!$C1499=5,dati_bdv!$G$2:$G$65536,dati_bdv!$H$2:$H$65536))))),$A1499,dati_bdv!K$2:K$65536)","v":0},{"$f":"SUMIF(IF(dati_pdc!$C1499=1,dati_bdv!$C$2:$C$65536,IF(dati_pdc!$C1499=2,dati_bdv!$D$2:$D$65536,IF(dati_pdc!$C1499=3,dati_bdv!$E$2:$E$65536,IF(dati_pdc!$C1499=4,dati_bdv!$F$2:$F$65536,IF(dati_pdc!$C1499=5,dati_bdv!$G$2:$G$65536,dati_bdv!$H$2:$H$65536))))),$A1499,dati_bdv!L$2:L$65536)","v":0},{"$f":"SUMIF(IF(dati_pdc!$C1499=1,dati_bdv!$C$2:$C$65536,IF(dati_pdc!$C1499=2,dati_bdv!$D$2:$D$65536,IF(dati_pdc!$C1499=3,dati_bdv!$E$2:$E$65536,IF(dati_pdc!$C1499=4,dati_bdv!$F$2:$F$65536,IF(dati_pdc!$C1499=5,dati_bdv!$G$2:$G$65536,dati_bdv!$H$2:$H$65536))))),$A1499,dati_bdv!M$2:M$65536)","v":0},{"$f":"SUMIF(IF(dati_pdc!$C1499=1,dati_bdv!$C$2:$C$65536,IF(dati_pdc!$C1499=2,dati_bdv!$D$2:$D$65536,IF(dati_pdc!$C1499=3,dati_bdv!$E$2:$E$65536,IF(dati_pdc!$C1499=4,dati_bdv!$F$2:$F$65536,IF(dati_pdc!$C1499=5,dati_bdv!$G$2:$G$65536,dati_bdv!$H$2:$H$65536))))),$A1499,dati_bdv!N$2:N$65536)","v":0}]
[{"$f":"dati_pdc!A1500","v":0},{"$f":"SUMIF(IF(dati_pdc!$C1500=1,dati_bdv!$C$2:$C$65536,IF(dati_pdc!$C1500=2,dati_bdv!$D$2:$D$65536,IF(dati_pdc!$C1500=3,dati_bdv!$E$2:$E$65536,IF(dati_pdc!$C1500=4,dati_bdv!$F$2:$F$65536,IF(dati_pdc!$C1500=5,dati_bdv!$G$2:$G$65536,dati_bdv!$H$2:$H$65536))))),$A1500,dati_bdv!J$2:J$65536)","v":0},{"$f":"SUMIF(IF(dati_pdc!$C1500=1,dati_bdv!$C$2:$C$65536,IF(dati_pdc!$C1500=2,dati_bdv!$D$2:$D$65536,IF(dati_pdc!$C1500=3,dati_bdv!$E$2:$E$65536,IF(dati_pdc!$C1500=4,dati_bdv!$F$2:$F$65536,IF(dati_pdc!$C1500=5,dati_bdv!$G$2:$G$65536,dati_bdv!$H$2:$H$65536))))),$A1500,dati_bdv!K$2:K$65536)","v":0},{"$f":"SUMIF(IF(dati_pdc!$C1500=1,dati_bdv!$C$2:$C$65536,IF(dati_pdc!$C1500=2,dati_bdv!$D$2:$D$65536,IF(dati_pdc!$C1500=3,dati_bdv!$E$2:$E$65536,IF(dati_pdc!$C1500=4,dati_bdv!$F$2:$F$65536,IF(dati_pdc!$C1500=5,dati_bdv!$G$2:$G$65536,dati_bdv!$H$2:$H$65536))))),$A1500,dati_bdv!L$2:L$65536)","v":0},{"$f":"SUMIF(IF(dati_pdc!$C1500=1,dati_bdv!$C$2:$C$65536,IF(dati_pdc!$C1500=2,dati_bdv!$D$2:$D$65536,IF(dati_pdc!$C1500=3,dati_bdv!$E$2:$E$65536,IF(dati_pdc!$C1500=4,dati_bdv!$F$2:$F$65536,IF(dati_pdc!$C1500=5,dati_bdv!$G$2:$G$65536,dati_bdv!$H$2:$H$65536))))),$A1500,dati_bdv!M$2:M$65536)","v":0},{"$f":"SUMIF(IF(dati_pdc!$C1500=1,dati_bdv!$C$2:$C$65536,IF(dati_pdc!$C1500=2,dati_bdv!$D$2:$D$65536,IF(dati_pdc!$C1500=3,dati_bdv!$E$2:$E$65536,IF(dati_pdc!$C1500=4,dati_bdv!$F$2:$F$65536,IF(dati_pdc!$C1500=5,dati_bdv!$G$2:$G$65536,dati_bdv!$H$2:$H$65536))))),$A1500,dati_bdv!N$2:N$65536)","v":0}]

{"sheet":"s_sep_ind","index":8,"n_rows":88,"n_cols":25,"rows_kept":88,"cut":false,"hidden":true,"merged":[]}
["Codice voce","Descrizione","N ORD","N ORD Sep Ind default","N ABB","N ABB Sep Ind default","N-1 ORD","N-1 ORD Sep Ind default","N-1 ABB","N-1 ABB Sep Ind default","N-2 ORD","N-2 ORD Sep Ind default","N-2 ABB","N-2 ABB Sep Ind default","N-3 ORD","N-3 ORD Sep Ind default","N-3 ABB","N-3 ABB Sep Ind default","N-4 ORD","N-4 ORD Sep Ind default","N-4 ABB","N-4 ABB Sep Ind default"]
[null,null,null,null,null,null,null,null,null,null,null,null,null,null,null,null,null,null,null,null,null,null,null,null,"Voce calcolata"]
[null,"Crediti immobilizzati",null,null,null,null,null,null,null,null,null,null,null,null,null,null,null,null,null,null,null,null,null,null,"Voce di scomp. Temp."]
["1.B.3.2.a","Crediti verso imprese controllate",{"$f":"SUMIF(dati_sp!$H$2:$H$65536,s_sep_ind!$A4,dati_sp!$C$2:$C$65536)","v":0},null,null,null,{"$f":"SUMIF(dati_sp!$H$2:$H$65536,s_sep_ind!$A4,dati_sp!$D$2:$D$65536)","v":0},null,null,null,{"$f":"SUMIF(dati_sp!$H$2:$H$65536,s_sep_ind!$A4,dati_sp!$E$2:$E$65536)","v":0},null,null,null,{"$f":"SUMIF(dati_sp!$H$2:$H$65536,s_sep_ind!$A4,dati_sp!$F$2:$F$65536)","v":0},null,null,null,{"$f":"SUMIF(dati_sp!$H$2:$H$65536,s_sep_ind!$A4,dati_sp!$G$2:$G$65536)","v":0},null,null,null,null,null,"Voce calcolata nell'ord, dettaglio nell'abb."]
["1.B.3.2.a.1","Entro l'esercizio successivo",{"$f":"SUMIF(dati_sp!$H$2:$H$65536,s_sep_ind!$A5,dati_sp!$C$2:$C$65536)","v":0},null,null,null,{"$f":"SUMIF(dati_sp!$H$2:$H$65536,s_sep_ind!$A5,dati_sp!$D$2:$D$65536)","v":0},null,null,null,{"$f":"SUMIF(dati_sp!$H$2:$H$65536,s_sep_ind!$A5,dati_sp!$E$2:$E$65536)","v":0},null,null,null,{"$f":"SUMIF(dati_sp!$H$2:$H$65536,s_sep_ind!$A5,dati_sp!$F$2:$F$65536)","v":0},null,null,null,{"$f":"SUMIF(dati_sp!$H$2:$H$65536,s_sep_ind!$A5,dati_sp!$G$2:$G$65536)","v":0},null,null,null,null,null,"Voce non rilevante per lo schema abbreviato"]
["1.B.3.2.a.2","Oltre l'esercizio successivo",{"$f":"SUMIF(dati_sp!$H$2:$H$65536,s_sep_ind!$A6,dati_sp!$C$2:$C$65536)","v":0},{"$f":"IF(C5+C6<>C4,C4,0)","v":0},null,null,{"$f":"SUMIF(dati_sp!$H$2:$H$65536,s_sep_ind!$A6,dati_sp!$D$2:$D$65536)","v":0},{"$f":"IF(G5+G6<>G4,G4,0)","v":0},null,null,{"$f":"SUMIF(dati_sp!$H$2:$H$65536,s_sep_ind!$A6,dati_sp!$E$2:$E$65536)","v":0},{"$f":"IF(K6+K5<>K4,K4,0)","v":0},null,null,{"$f":"SUMIF(dati_sp!$H$2:$H$65536,s_sep_ind!$A6,dati_sp!$F$2:$F$65536)","v":0},{"$f":"IF(O6+O5<>O4,O4,0)","v":0},null,null,{"$f":"SUMIF(dati_sp!$H$2:$H$65536,s_sep_ind!$A6,dati_sp!$G$2:$G$65536)","v":0},{"$f":"IF(S6+S5<>S4,S4,0)","v":0}]
["1.B.3.2.b","Crediti verso imprese collegate",{"$f":"SUMIF(dati_sp!$H$2:$H$65536,s_sep_ind!$A7,dati_sp!$C$2:$C$65536)","v":0},null,null,null,{"$f":"SUMIF(dati_sp!$H$2:$H$65536,s_sep_ind!$A7,dati_sp!$D$2:$D$65536)","v":0},null,null,null,{"$f":"SUMIF(dati_sp!$H$2:$H$65536,s_sep_ind!$A7,dati_sp!$E$2:$E$65536)","v":0},null,null,null,{"$f":"SUMIF(dati_sp!$H$2:$H$65536,s_sep_ind!$A7,dati_sp!$F$2:$F$65536)","v":0},null,null,null,{"$f":"SUMIF(dati_sp!$H$2:$H$65536,s_sep_ind!$A7,dati_sp!$G$2:$G$65536)","v":0}]
["1.B.3.2.b.1","Entro l'esercizio successivo",{"$f":"SUMIF(dati_sp!$H$2:$H$65536,s_sep_ind!$A8,dati_sp!$C$2:$C$65536)","v":0},null,null,null,{"$f":"SUMIF(dati_sp!$H$2:$H$65536,s_sep_ind!$A8,dati_sp!$D$2:$D$65536)","v":0},null,null,null,{"$f":"SUMIF(dati_sp!$H$2:$H$65536,s_sep_ind!$A8,dati_sp!$E$2:$E$65536)","v":0},null,null,null,{"$f":"SUMIF(dati_sp!$H$2:$H$65536,s_sep_ind!$A8,dati_sp!$F$2:$F$65536)","v":0},null,null,null,{"$f":"SUMIF(dati_sp!$H$2:$H$65536,s_sep_ind!$A8,dati_sp!$G$2:$G$65536)","v":0}]
["1.B.3.2.b.2","Oltre l'esercizio successivo",{"$f":"SUMIF(dati_sp!$H$2:$H$65536,s_sep_ind!$A9,dati_sp!$C$2:$C$65536)","v":0},{"$f":"IF(C8+C9<>C7,C7,0)","v":0},null,null,{"$f":"SUMIF(dati_sp!$H$2:$H$65536,s_sep_ind!$A9,dati_sp!$D$2:$D$65536)","v":0},{"$f":"IF(G8+G9<>G7,G7,0)","v":0},null,null,{"$f":"SUMIF(dati_sp!$H$2:$H$65536,s_sep_ind!$A9,dati_sp!$E$2:$E$65536)","v":0},{"$f":"IF(K9+K8<>K7,K7,0)","v":0},null,null,{"$f":"SUMIF(dati_sp!$H$2:$H$65536,s_sep_ind!$A9,dati_sp!$F$2:$F$65536)","v":0},{"$f":"IF(O9+O8<>O7,O7,0)","v":0},null,null,{"$f":"SUMIF(dati_sp!$H$2:$H$65536,s_sep_ind!$A9,dati_sp!$G$2:$G$65536)","v":0},{"$f":"IF(S9+S8<>S7,S7,0)","v":0}]
["1.B.3.2.c","Crediti verso imprese controllanti",{"$f":"SUMIF(dati_sp!$H$2:$H$65536,s_sep_ind!$A10,dati_sp!$C$2:$C$65536)","v":0},null,null,null,{"$f":"SUMIF(dati_sp!$H$2:$H$65536,s_sep_ind!$A10,dati_sp!$D$2:$D$65536)","v":0},null,null,null,{"$f":"SUMIF(dati_sp!$H$2:$H$65536,s_sep_ind!$A10,dati_sp!$E$2:$E$65536)","v":0},null,null,null,{"$f":"SUMIF(dati_sp!$H$2:$H$65536,s_sep_ind!$A10,dati_sp!$F$2:$F$65536)","v":0},null,null,null,{"$f":"SUMIF(dati_sp!$H$2:$H$65536,s_sep_ind!$A10,dati_sp!$G$2:$G$65536)","v":0}]
["1.B.3.2.c.1","Entro l'esercizio successivo",{"$f":"SUMIF(dati_sp!$H$2:$H$65536,s_sep_ind!$A11,dati_sp!$C$2:$C$65536)","v":0},null,null,null,{"$f":"SUMIF(dati_sp!$H$2:$H$65536,s_sep_ind!$A11,dati_sp!$D$2:$D$65536)","v":0},null,null,null,{"$f":"SUMIF(dati_sp!$H$2:$H$65536,s_sep_ind!$A11,dati_sp!$E$2:$E$65536)","v":0},null,null,null,{"$f":"SUMIF(dati_sp!$H$2:$H$65536,s_sep_ind!$A11,dati_sp!$F$2:$F$65536)","v":0},null,null,null,{"$f":"SUMIF(dati_sp!$H$2:$H$65536,s_sep_ind!$A11,dati_sp!$G$2:$G$65536)","v":0}]
["1.B.3.2.c.2","Oltre l'esercizio successivo",{"$f":"SUMIF(dati_sp!$H$2:$H$65536,s_sep_ind!$A12,dati_sp!$C$2:$C$65536)","v":0},{"$f":"IF(C11+C12<>C10,C10,0)","v":0},null,null,{"$f":"SUMIF(dati_sp!$H$2:$H$65536,s_sep_ind!$A12,dati_sp!$D$2:$D$65536)","v":0},{"$f":"IF(G11+G12<>G10,G10,0)","v":0},null,null,{"$f":"SUMIF(dati_sp!$H$2:$H$65536,s_sep_ind!$A12,dati_sp!$E$2:$E$65536)","v":0},{"$f":"IF(K12+K11<>K10,K10,0)","v":0},null,null,{"$f":"SUMIF(dati_sp!$H$2:$H$65536,s_sep_ind!$A12,dati_sp!$F$2:$F$65536)","v":0},{"$f":"IF(O12+O11<>O10,O10,0)","v":0},null,null,{"$f":"SUMIF(dati_sp!$H$2:$H$65536,s_sep_ind!$A12,dati_sp!$G$2:$G$65536)","v":0},{"$f":"IF(S12+S11<>S10,S10,0)","v":0}]
["1.B.3.2.d","Crediti verso altri",{"$f":"SUMIF(dati_sp!$H$2:$H$65536,s_sep_ind!$A13,dati_sp!$C$2:$C$65536)","v":0},null,null,null,{"$f":"SUMIF(dati_sp!$H$2:$H$65536,s_sep_ind!$A13,dati_sp!$D$2:$D$65536)","v":0},null,null,null,{"$f":"SUMIF(dati_sp!$H$2:$H$65536,s_sep_ind!$A13,dati_sp!$E$2:$E$65536)","v":0},null,null,null,{"$f":"SUMIF(dati_sp!$H$2:$H$65536,s_sep_ind!$A13,dati_sp!$F$2:$F$65536)","v":0},null,null,null,{"$f":"SUMIF(dati_sp!$H$2:$H$65536,s_sep_ind!$A13,dati_sp!$G$2:$G$65536)","v":0}]
["1.B.3.2.d.1","Entro l'esercizio successivo",{"$f":"SUMIF(dati_sp!$H$2:$H$65536,s_sep_ind!$A14,dati_sp!$C$2:$C$65536)","v":0},null,null,null,{"$f":"SUMIF(dati_sp!$H$2:$H$65536,s_sep_ind!$A14,dati_sp!$D$2:$D$65536)","v":0},null,null,null,{"$f":"SUMIF(dati_sp!$H$2:$H$65536,s_sep_ind!$A14,dati_sp!$E$2:$E$65536)","v":0},null,null,null,{"$f":"SUMIF(dati_sp!$H$2:$H$65536,s_sep_ind!$A14,dati_sp!$F$2:$F$65536)","v":0},null,null,null,{"$f":"SUMIF(dati_sp!$H$2:$H$65536,s_sep_ind!$A14,dati_sp!$G$2:$G$65536)","v":0}]
["1.B.3.2.d.2","Oltre l'esercizio successivo",{"$f":"SUMIF(dati_sp!$H$2:$H$65536,s_sep_ind!$A15,dati_sp!$C$2:$C$65536)","v":0},{"$f":"IF(C14+C15<>C13,C13,0)","v":0},null,null,{"$f":"SUMIF(dati_sp!$H$2:$H$65536,s_sep_ind!$A15,dati_sp!$D$2:$D$65536)","v":0},{"$f":"IF(G14+G15<>G13,G13,0)","v":0},null,null,{"$f":"SUMIF(dati_sp!$H$2:$H$65536,s_sep_ind!$A15,dati_sp!$E$2:$E$65536)","v":0},{"$f":"IF(K15+K14<>K13,K13,0)","v":0},null,null,{"$f":"SUMIF(dati_sp!$H$2:$H$65536,s_sep_ind!$A15,dati_sp!$F$2:$F$65536)","v":0},{"$f":"IF(O15+O14<>O13,O13,0)","v":0},null,null,{"$f":"SUMIF(dati_sp!$H$2:$H$65536,s_sep_ind!$A15,dati_sp!$G$2:$G$65536)","v":0},{"$f":"IF(S15+S14<>S13,S13,0)","v":0}]
[]
[null,"Crediti attivo circolante"]
["1.C.2","CREDITI",{"$f":"SUM(C21,C24,C27,C30,C33,C36,C39)","v":76581},0,{"$f":"SUMIF(dati_sp!$H$2:$H$65536,s_sep_ind!$A18,dati_sp!$C$2:$C$65536)","v":0},null,{"$f":"SUM(G21,G24,G27,G30,G33,G36,G39)","v":4581},0,{"$f":"SUMIF(dati_sp!$H$2:$H$65536,s_sep_ind!$A18,dati_sp!$D$2:$D$65536)","v":0},null,{"$f":"SUM(K21,K24,K27,K30,K33,K36,K39)","v":0},0,{"$f":"SUMIF(dati_sp!$H$2:$H$65536,s_sep_ind!$A18,dati_sp!$E$2:$E$65536)","v":0},null,{"$f":"SUM(O21,O24,O27,O30,O33,O36,O39)","v":0},0,{"$f":"SUMIF(dati_sp!$H$2:$H$65536,s_sep_ind!$A18,dati_sp!$F$2:$F$65536)","v":0},null,{"$f":"SUM(S21,S24,S27,S30,S33,S36,S39)","v":0},0,{"$f":"SUMIF(dati_sp!$H$2:$H$65536,s_sep_ind!$A18,dati_sp!$G$2:$G$65536)","v":0}]
["1.C.2.a","Entro l'esercizio successivo",0,76581,{"$f":"SUMIF(dati_sp!$H$2:$H$65536,s_sep_ind!$A19,dati_sp!$C$2:$C$65536)","v":0},{"$f":"IF(E19+E20<>E18,E18,0)","v":0},4581,0,{"$f":"SUMIF(dati_sp!$H$2:$H$65536,s_sep_ind!$A19,dati_sp!$D$2:$D$65536)","v":0},{"$f":"IF(I19+I20<>I18,I18,0)","v":0},0,0,{"$f":"SUMIF(dati_sp!$H$2:$H$65536,s_sep_ind!$A19,dati_sp!$E$2:$E$65536)","v":0},{"$f":"IF(M19+M20<>M18,M18,0)","v":0},0,0,{"$f":"SUMIF(dati_sp!$H$2:$H$65536,s_sep_ind!$A19,dati_sp!$F$2:$F$65536)","v":0},{"$f":"IF(Q19+Q20<>Q18,Q18,0)","v":0},0,0,{"$f":"SUMIF(dati_sp!$H$2:$H$65536,s_sep_ind!$A19,dati_sp!$G$2:$G$65536)","v":0},{"$f":"IF(U19+U20<>U18,U18,0)","v":0}]
["1.C.2.b","Oltre l'esercizio successivo",0,0,{"$f":"SUMIF(dati_sp!$H$2:$H$65536,s_sep_ind!$A20,dati_sp!$C$2:$C$65536)","v":0},null,0,0,{"$f":"SUMIF(dati_sp!$H$2:$H$65536,s_sep_ind!$A20,dati_sp!$D$2:$D$65536)","v":0},null,0,0,{"$f":"SUMIF(dati_sp!$H$2:$H$65536,s_sep_ind!$A20,dati_sp!$E$2:$E$65536)","v":0},null,0,0,{"$f":"SUMIF(dati_sp!$H$2:$H$65536,s_sep_ind!$A20,dati_sp!$F$2:$F$65536)","v":0},null,0,0,{"$f":"SUMIF(dati_sp!$H$2:$H$65536,s_sep_ind!$A20,dati_sp!$G$2:$G$65536)","v":0}]
["1.C.2.1","Crediti verso clienti",{"$f":"SUMIF(dati_sp!$H$2:$H$65536,s_sep_ind!$A21,dati_sp!$C$2:$C$65536)","v":72000},null,null,null,{"$f":"SUMIF(dati_sp!$H$2:$H$65536,s_sep_ind!$A21,dati_sp!$D$2:$D$65536)","v":0},null,null,null,{"$f":"SUMIF(dati_sp!$H$2:$H$65536,s_sep_ind!$A21,dati_sp!$E$2:$E$65536)","v":0},null,null,null,{"$f":"SUMIF(dati_sp!$H$2:$H$65536,s_sep_ind!$A21,dati_sp!$F$2:$F$65536)","v":0},null,null,null,{"$f":"SUMIF(dati_sp!$H$2:$H$65536,s_sep_ind!$A21,dati_sp!$G$2:$G$65536)","v":0}]
["1.C.2.1.1","Entro l'esercizio successivo",{"$f":"SUMIF(dati_sp!$H$2:$H$65536,s_sep_ind!$A22,dati_sp!$C$2:$C$65536)","v":0},{"$f":"IF(C22+C23<>C21,C21,0)","v":72000},null,null,{"$f":"SUMIF(dati_sp!$H$2:$H$65536,s_sep_ind!$A22,dati_sp!$D$2:$D$65536)","v":0},{"$f":"IF(G22+G23<>G21,G21,0)","v":0},null,null,{"$f":"SUMIF(dati_sp!$H$2:$H$65536,s_sep_ind!$A22,dati_sp!$E$2:$E$65536)","v":0},{"$f":"IF(K23+K22<>K21,K21,0)","v":0},null,null,{"$f":"SUMIF(dati_sp!$H$2:$H$65536,s_sep_ind!$A22,dati_sp!$F$2:$F$65536)","v":0},{"$f":"IF(O22+O23<>O21,O21,0)","v":0},null,null,{"$f":"SUMIF(dati_sp!$H$2:$H$65536,s_sep_ind!$A22,dati_sp!$G$2:$G$65536)","v":0},{"$f":"IF(S22+S23<>S21,S21,0)","v":0}]
["1.C.2.1.2","Oltre l'esercizio successivo",{"$f":"SUMIF(dati_sp!$H$2:$H$65536,s_sep_ind!$A23,dati_sp!$C$2:$C$65536)","v":0},null,null,null,{"$f":"SUMIF(dati_sp!$H$2:$H$65536,s_sep_ind!$A23,dati_sp!$D$2:$D$65536)","v":0},null,null,null,{"$f":"SUMIF(dati_sp!$H$2:$H$65536,s_sep_ind!$A23,dati_sp!$E$2:$E$65536)","v":0},null,null,null,{"$f":"SUMIF(dati_sp!$H$2:$H$65536,s_sep_ind!$A23,dati_sp!$F$2:$F$65536)","v":0},null,null,null,{"$f":"SUMIF(dati_sp!$H$2:$H$65536,s_sep_ind!$A23,dati_sp!$G$2:$G$65536)","v":0}]
["1.C.2.2","Crediti verso imprese controllate",{"$f":"SUMIF(dati_sp!$H$2:$H$65536,s_sep_ind!$A24,dati_sp!$C$2:$C$65536)","v":0},null,null,null,{"$f":"SUMIF(dati_sp!$H$2:$H$65536,s_sep_ind!$A24,dati_sp!$D$2:$D$65536)","v":0},null,null,null,{"$f":"SUMIF(dati_sp!$H$2:$H$65536,s_sep_ind!$A24,dati_sp!$E$2:$E$65536)","v":0},null,null,null,{"$f":"SUMIF(dati_sp!$H$2:$H$65536,s_sep_ind!$A24,dati_sp!$F$2:$F$65536)","v":0},null,null,null,{"$f":"SUMIF(dati_sp!$H$2:$H$65536,s_sep_ind!$A24,dati_sp!$G$2:$G$65536)","v":0}]
["1.C.2.2.1","Entro l'esercizio successivo",{"$f":"SUMIF(dati_sp!$H$2:$H$65536,s_sep_ind!$A25,dati_sp!$C$2:$C$65536)","v":0},{"$f":"IF(C25+C26<>C24,C24,0)","v":0},null,null,{"$f":"SUMIF(dati_sp!$H$2:$H$65536,s_sep_ind!$A25,dati_sp!$D$2:$D$65536)","v":0},{"$f":"IF(G25+G26<>G24,G24,0)","v":0},null,null,{"$f":"SUMIF(dati_sp!$H$2:$H$65536,s_sep_ind!$A25,dati_sp!$E$2:$E$65536)","v":0},{"$f":"IF(K26+K25<>K24,K24,0)","v":0},null,null,{"$f":"SUMIF(dati_sp!$H$2:$H$65536,s_sep_ind!$A25,dati_sp!$F$2:$F$65536)","v":0},{"$f":"IF(O25+O26<>O24,O24,0)","v":0},null,null,{"$f":"SUMIF(dati_sp!$H$2:$H$65536,s_sep_ind!$A25,dati_sp!$G$2:$G$65536)","v":0},{"$f":"IF(S25+S26<>S24,S24,0)","v":0}]
["1.C.2.2.2","Oltre l'esercizio successivo",{"$f":"SUMIF(dati_sp!$H$2:$H$65536,s_sep_ind!$A26,dati_sp!$C$2:$C$65536)","v":0},null,null,null,{"$f":"SUMIF(dati_sp!$H$2:$H$65536,s_sep_ind!$A26,dati_sp!$D$2:$D$65536)","v":0},null,null,null,{"$f":"SUMIF(dati_sp!$H$2:$H$65536,s_sep_ind!$A26,dati_sp!$E$2:$E$65536)","v":0},null,null,null,{"$f":"SUMIF(dati_sp!$H$2:$H$65536,s_sep_ind!$A26,dati_sp!$F$2:$F$65536)","v":0},null,null,null,{"$f":"SUMIF(dati_sp!$H$2:$H$65536,s_sep_ind!$A26,dati_sp!$G$2:$G$65536)","v":0}]
["1.C.2.3","Crediti verso imprese collegate",{"$f":"SUMIF(dati_sp!$H$2:$H$65536,s_sep_ind!$A27,dati_sp!$C$2:$C$65536)","v":0},null,null,null,{"$f":"SUMIF(dati_sp!$H$2:$H$65536,s_sep_ind!$A27,dati_sp!$D$2:$D$65536)","v":0},null,null,null,{"$f":"SUMIF(dati_sp!$H$2:$H$65536,s_sep_ind!$A27,dati_sp!$E$2:$E$65536)","v":0},null,null,null,{"$f":"SUMIF(dati_sp!$H$2:$H$65536,s_sep_ind!$A27,dati_sp!$F$2:$F$65536)","v":0},null,null,null,{"$f":"SUMIF(dati_sp!$H$2:$H$65536,s_sep_ind!$A27,dati_sp!$G$2:$G$65536)","v":0}]
["1.C.2.3.1","Entro l'esercizio successivo",{"$f":"SUMIF(dati_sp!$H$2:$H$65536,s_sep_ind!$A28,dati_sp!$C$2:$C$65536)","v":0},{"$f":"IF(C28+C29<>C27,C27,0)","v":0},null,null,{"$f":"SUMIF(dati_sp!$H$2:$H$65536,s_sep_ind!$A28,dati_sp!$D$2:$D$65536)","v":0},{"$f":"IF(G28+G29<>G27,G27,0)","v":0},null,null,{"$f":"SUMIF(dati_sp!$H$2:$H$65536,s_sep_ind!$A28,dati_sp!$E$2:$E$65536)","v":0},{"$f":"IF(K29+K28<>K27,K27,0)","v":0},null,null,{"$f":"SUMIF(dati_sp!$H$2:$H$65536,s_sep_ind!$A28,dati_sp!$F$2:$F$65536)","v":0},{"$f":"IF(O28+O29<>O27,O27,0)","v":0},null,null,{"$f":"SUMIF(dati_sp!$H$2:$H$65536,s_sep_ind!$A28,dati_sp!$G$2:$G$65536)","v":0},{"$f":"IF(S28+S29<>S27,S27,0)","v":0}]
["1.C.2.3.2","Oltre l'esercizio successivo",{"$f":"SUMIF(dati_sp!$H$2:$H$65536,s_sep_ind!$A29,dati_sp!$C$2:$C$65536)","v":0},null,null,null,{"$f":"SUMIF(dati_sp!$H$2:$H$65536,s_sep_ind!$A29,dati_sp!$D$2:$D$65536)","v":0},null,null,null,{"$f":"SUMIF(dati_sp!$H$2:$H$65536,s_sep_ind!$A29,dati_sp!$E$2:$E$65536)","v":0},null,null,null,{"$f":"SUMIF(dati_sp!$H$2:$H$65536,s_sep_ind!$A29,dati_sp!$F$2:$F$65536)","v":0},null,null,null,{"$f":"SUMIF(dati_sp!$H$2:$H$65536,s_sep_ind!$A29,dati_sp!$G$2:$G$65536)","v":0}]
["1.C.2.4","Crediti verso imprese controllanti",{"$f":"SUMIF(dati_sp!$H$2:$H$65536,s_sep_ind!$A30,dati_sp!$C$2:$C$65536)","v":0},null,null,null,{"$f":"SUMIF(dati_sp!$H$2:$H$65536,s_sep_ind!$A30,dati_sp!$D$2:$D$65536)","v":0},null,null,null,{"$f":"SUMIF(dati_sp!$H$2:$H$65536,s_sep_ind!$A30,dati_sp!$E$2:$E$65536)","v":0},null,null,null,{"$f":"SUMIF(dati_sp!$H$2:$H$65536,s_sep_ind!$A30,dati_sp!$F$2:$F$65536)","v":0},null,null,null,{"$f":"SUMIF(dati_sp!$H$2:$H$65536,s_sep_ind!$A30,dati_sp!$G$2:$G$65536)","v":0}]
["1.C.2.4.1","Entro l'esercizio successivo",{"$f":"SUMIF(dati_sp!$H$2:$H$65536,s_sep_ind!$A31,dati_sp!$C$2:$C$65536)","v":0},{"$f":"IF(C31+C32<>C30,C30,0)","v":0},null,null,{"$f":"SUMIF(dati_sp!$H$2:$H$65536,s_sep_ind!$A31,dati_sp!$D$2:$D$65536)","v":0},{"$f":"IF(G31+G32<>G30,G30,0)","v":0},null,null,{"$f":"SUMIF(dati_sp!$H$2:$H$65536,s_sep_ind!$A31,dati_sp!$E$2:$E$65536)","v":0},{"$f":"IF(K32+K31<>K30,K30,0)","v":0},null,null,{"$f":"SUMIF(dati_sp!$H$2:$H$65536,s_sep_ind!$A31,dati_sp!$F$2:$F$65536)","v":0},{"$f":"IF(O31+O32<>O30,O30,0)","v":0},null,null,{"$f":"SUMIF(dati_sp!$H$2:$H$65536,s_sep_ind!$A31,dati_sp!$G$2:$G$65536)","v":0},{"$f":"IF(S31+S32<>S30,S30,0)","v":0}]
["1.C.2.4.2","Oltre l'esercizio successivo",{"$f":"SUMIF(dati_sp!$H$2:$H$65536,s_sep_ind!$A32,dati_sp!$C$2:$C$65536)","v":0},null,null,null,{"$f":"SUMIF(dati_sp!$H$2:$H$65536,s_sep_ind!$A32,dati_sp!$D$2:$D$65536)","v":0},null,null,null,{"$f":"SUMIF(dati_sp!$H$2:$H$65536,s_sep_ind!$A32,dati_sp!$E$2:$E$65536)","v":0},null,null,null,{"$f":"SUMIF(dati_sp!$H$2:$H$65536,s_sep_ind!$A32,dati_sp!$F$2:$F$65536)","v":0},null,null,null,{"$f":"SUMIF(dati_sp!$H$2:$H$65536,s_sep_ind!$A32,dati_sp!$G$2:$G$65536)","v":0}]
["1.C.2.4a","Crediti tributari",{"$f":"SUMIF(dati_sp!$H$2:$H$65536,s_sep_ind!$A33,dati_sp!$C$2:$C$65536)","v":783},null,null,null,{"$f":"SUMIF(dati_sp!$H$2:$H$65536,s_sep_ind!$A33,dati_sp!$D$2:$D$65536)","v":783},null,null,null,{"$f":"SUMIF(dati_sp!$H$2:$H$65536,s_sep_ind!$A33,dati_sp!$E$2:$E$65536)","v":0},null,null,null,{"$f":"SUMIF(dati_sp!$H$2:$H$65536,s_sep_ind!$A33,dati_sp!$F$2:$F$65536)","v":0},null,null,null,{"$f":"SUMIF(dati_sp!$H$2:$H$65536,s_sep_ind!$A33,dati_sp!$G$2:$G$65536)","v":0}]
["1.C.2.4a.1","Entro l'esercizio successivo",{"$f":"SUMIF(dati_sp!$H$2:$H$65536,s_sep_ind!$A34,dati_sp!$C$2:$C$65536)","v":0},{"$f":"IF(C34+C35<>C33,C33,0)","v":783},null,null,{"$f":"SUMIF(dati_sp!$H$2:$H$65536,s_sep_ind!$A34,dati_sp!$D$2:$D$65536)","v":783},{"$f":"IF(G34+G35<>G33,G33,0)","v":0},null,null,{"$f":"SUMIF(dati_sp!$H$2:$H$65536,s_sep_ind!$A34,dati_sp!$E$2:$E$65536)","v":0},{"$f":"IF(K35+K34<>K33,K33,0)","v":0},null,null,{"$f":"SUMIF(dati_sp!$H$2:$H$65536,s_sep_ind!$A34,dati_sp!$F$2:$F$65536)","v":0},{"$f":"IF(O34+O35<>O33,O33,0)","v":0},null,null,{"$f":"SUMIF(dati_sp!$H$2:$H$65536,s_sep_ind!$A34,dati_sp!$G$2:$G$65536)","v":0},{"$f":"IF(S34+S35<>S33,S33,0)","v":0}]
["1.C.2.4a.2","Oltre l'esercizio successivo",{"$f":"SUMIF(dati_sp!$H$2:$H$65536,s_sep_ind!$A35,dati_sp!$C$2:$C$65536)","v":0},null,null,null,{"$f":"SUMIF(dati_sp!$H$2:$H$65536,s_sep_ind!$A35,dati_sp!$D$2:$D$65536)","v":0},null,null,null,{"$f":"SUMIF(dati_sp!$H$2:$H$65536,s_sep_ind!$A35,dati_sp!$E$2:$E$65536)","v":0},null,null,null,{"$f":"SUMIF(dati_sp!$H$2:$H$65536,s_sep_ind!$A35,dati_sp!$F$2:$F$65536)","v":0},null,null,null,{"$f":"SUMIF(dati_sp!$H$2:$H$65536,s_sep_ind!$A35,dati_sp!$G$2:$G$65536)","v":0}]
["1.C.2.4b","Imposte anticipate",{"$f":"SUMIF(dati_sp!$H$2:$H$65536,s_sep_ind!$A36,dati_sp!$C$2:$C$65536)","v":0},null,null,null,{"$f":"SUMIF(dati_sp!$H$2:$H$65536,s_sep_ind!$A36,dati_sp!$D$2:$D$65536)","v":0},null,null,null,{"$f":"SUMIF(dati_sp!$H$2:$H$65536,s_sep_ind!$A36,dati_sp!$E$2:$E$65536)","v":0},null,null,null,{"$f":"SUMIF(dati_sp!$H$2:$H$65536,s_sep_ind!$A36,dati_sp!$F$2:$F$65536)","v":0},null,null,null,{"$f":"SUMIF(dati_sp!$H$2:$H$65536,s_sep_ind!$A36,dati_sp!$G$2:$G$65536)","v":0}]
["1.C.2.4b.1","Entro l'esercizio successivo",{"$f":"SUMIF(dati_sp!$H$2:$H$65536,s_sep_ind!$A37,dati_sp!$C$2:$C$65536)","v":0},{"$f":"IF(C37+C38<>C36,C36,0)","v":0},null,null,{"$f":"SUMIF(dati_sp!$H$2:$H$65536,s_sep_ind!$A37,dati_sp!$D$2:$D$65536)","v":0},{"$f":"IF(G37+G38<>G36,G36,0)","v":0},null,null,{"$f":"SUMIF(dati_sp!$H$2:$H$65536,s_sep_ind!$A37,dati_sp!$E$2:$E$65536)","v":0},{"$f":"IF(K38+K37<>K36,K36,0)","v":0},null,null,{"$f":"SUMIF(dati_sp!$H$2:$H$65536,s_sep_ind!$A37,dati_sp!$F$2:$F$65536)","v":0},{"$f":"IF(O37+O38<>O36,O36,0)","v":0},null,null,{"$f":"SUMIF(dati_sp!$H$2:$H$65536,s_sep_ind!$A37,dati_sp!$G$2:$G$65536)","v":0},{"$f":"IF(S37+S38<>S36,S36,0)","v":0}]
["1.C.2.4b.2","Oltre l'esercizio successivo",{"$f":"SUMIF(dati_sp!$H$2:$H$65536,s_sep_ind!$A38,dati_sp!$C$2:$C$65536)","v":0},null,null,null,{"$f":"SUMIF(dati_sp!$H$2:$H$65536,s_sep_ind!$A38,dati_sp!$D$2:$D$65536)","v":0},null,null,null,{"$f":"SUMIF(dati_sp!$H$2:$H$65536,s_sep_ind!$A38,dati_sp!$E$2:$E$65536)","v":0},null,null,null,{"$f":"SUMIF(dati_sp!$H$2:$H$65536,s_sep_ind!$A38,dati_sp!$F$2:$F$65536)","v":0},null,null,null,{"$f":"SUMIF(dati_sp!$H$2:$H$65536,s_sep_ind!$A38,dati_sp!$G$2:$G$65536)","v":0}]
["1.C.2.5","Crediti verso altri",{"$f":"SUMIF(dati_sp!$H$2:$H$65536,s_sep_ind!$A39,dati_sp!$C$2:$C$65536)","v":3798},null,null,null,{"$f":"SUMIF(dati_sp!$H$2:$H$65536,s_sep_ind!$A39,dati_sp!$D$2:$D$65536)","v":3798},null,null,null,{"$f":"SUMIF(dati_sp!$H$2:$H$65536,s_sep_ind!$A39,dati_sp!$E$2:$E$65536)","v":0},null,null,null,{"$f":"SUMIF(dati_sp!$H$2:$H$65536,s_sep_ind!$A39,dati_sp!$F$2:$F$65536)","v":0},null,null,null,{"$f":"SUMIF(dati_sp!$H$2:$H$65536,s_sep_ind!$A39,dati_sp!$G$2:$G$65536)","v":0}]
["1.C.2.5.1","Entro l'esercizio successivo",{"$f":"SUMIF(dati_sp!$H$2:$H$65536,s_sep_ind!$A40,dati_sp!$C$2:$C$65536)","v":0},{"$f":"IF(C40+C41<>C39,C39,0)","v":3798},null,null,{"$f":"SUMIF(dati_sp!$H$2:$H$65536,s_sep_ind!$A40,dati_sp!$D$2:$D$65536)","v":3798},{"$f":"IF(G40+G41<>G39,G39,0)","v":0},null,null,{"$f":"SUMIF(dati_sp!$H$2:$H$65536,s_sep_ind!$A40,dati_sp!$E$2:$E$65536)","v":0},{"$f":"IF(K41+K40<>K39,K39,0)","v":0},null,null,{"$f":"SUMIF(dati_sp!$H$2:$H$65536,s_sep_ind!$A40,dati_sp!$F$2:$F$65536)","v":0},{"$f":"IF(O40+O41<>O39,O39,0)","v":0},null,null,{"$f":"SUMIF(dati_sp!$H$2:$H$65536,s_sep_ind!$A40,dati_sp!$G$2:$G$65536)","v":0},{"$f":"IF(S40+S41<>S39,S39,0)","v":0}]
["1.C.2.5.2","Oltre l'esercizio successivo",{"$f":"SUMIF(dati_sp!$H$2:$H$65536,s_sep_ind!$A41,dati_sp!$C$2:$C$65536)","v":0},null,null,null,{"$f":"SUMIF(dati_sp!$H$2:$H$65536,s_sep_ind!$A41,dati_sp!$D$2:$D$65536)","v":0},null,null,null,{"$f":"SUMIF(dati_sp!$H$2:$H$65536,s_sep_ind!$A41,dati_sp!$E$2:$E$65536)","v":0},null,null,null,{"$f":"SUMIF(dati_sp!$H$2:$H$65536,s_sep_ind!$A41,dati_sp!$F$2:$F$65536)","v":0},null,null,null,{"$f":"SUMIF(dati_sp!$H$2:$H$65536,s_sep_ind!$A41,dati_sp!$G$2:$G$65536)","v":0}]
[]
[null,"Debiti"]
["2.D","DEBITI",{"$f":"SUM(C47,C50,C53,C56,C59,C62,C65,C68,C71,C74,C77,C80,C83,C86)","v":86818},0,{"$f":"SUMIF(dati_sp!$H$2:$H$65536,s_sep_ind!$A44,dati_sp!$C$2:$C$65536)","v":0},null,{"$f":"SUM(G47,G50,G53,G56,G59,G62,G65,G68,G71,G74,G77,G80,G83,G86)","v":90304},0,{"$f":"SUMIF(dati_sp!$H$2:$H$65536,s_sep_ind!$A44,dati_sp!$D$2:$D$65536)","v":0},null,{"$f":"SUM(K47,K50,K53,K56,K59,K62,K65,K68,K71,K74,K77,K80,K83,K86)","v":0},0,{"$f":"SUMIF(dati_sp!$H$2:$H$65536,s_sep_ind!$A44,dati_sp!$E$2:$E$65536)","v":0},null,{"$f":"SUM(O47,O50,O53,O56,O59,O62,O65,O68,O71,O74,O77,O80,O83,O86)","v":0},0,{"$f":"SUMIF(dati_sp!$H$2:$H$65536,s_sep_ind!$A44,dati_sp!$F$2:$F$65536)","v":0},null,{"$f":"SUM(S47,S50,S53,S56,S59,S62,S65,S68,S71,S74,S77,S80,S83,S86)","v":0},0,{"$f":"SUMIF(dati_sp!$H$2:$H$65536,s_sep_ind!$A44,dati_sp!$G$2:$G$65536)","v":0}]
["2.D.a","Entro l'esercizio successivo",0,86818,{"$f":"SUMIF(dati_sp!$H$2:$H$65536,s_sep_ind!$A45,dati_sp!$C$2:$C$65536)","v":0},{"$f":"IF(E45+E46<>E44,E44,0)","v":0},90304,0,{"$f":"SUMIF(dati_sp!$H$2:$H$65536,s_sep_ind!$A45,dati_sp!$D$2:$D$65536)","v":0},{"$f":"IF(I45+I46<>I44,I44,0)","v":0},0,0,{"$f":"SUMIF(dati_sp!$H$2:$H$65536,s_sep_ind!$A45,dati_sp!$E$2:$E$65536)","v":0},{"$f":"IF(M45+M46<>M44,M44,0)","v":0},0,0,{"$f":"SUMIF(dati_sp!$H$2:$H$65536,s_sep_ind!$A45,dati_sp!$F$2:$F$65536)","v":0},{"$f":"IF(Q45+Q46<>Q44,Q44,0)","v":0},0,0,{"$f":"SUMIF(dati_sp!$H$2:$H$65536,s_sep_ind!$A45,dati_sp!$G$2:$G$65536)","v":0},{"$f":"IF(U45+U46<>U44,U44,0)","v":0}]
["2.D.b","Oltre l'esercizio successivo",0,0,{"$f":"SUMIF(dati_sp!$H$2:$H$65536,s_sep_ind!$A46,dati_sp!$C$2:$C$65536)","v":0},null,0,0,{"$f":"SUMIF(dati_sp!$H$2:$H$65536,s_sep_ind!$A46,dati_sp!$D$2:$D$65536)","v":0},null,0,0,{"$f":"SUMIF(dati_sp!$H$2:$H$65536,s_sep_ind!$A46,dati_sp!$E$2:$E$65536)","v":0},null,0,0,{"$f":"SUMIF(dati_sp!$H$2:$H$65536,s_sep_ind!$A46,dati_sp!$F$2:$F$65536)","v":0},null,0,0,{"$f":"SUMIF(dati_sp!$H$2:$H$65536,s_sep_ind!$A46,dati_sp!$G$2:$G$65536)","v":0}]
["2.D.1","Debiti per obbligazioni",{"$f":"SUMIF(dati_sp!$H$2:$H$65536,s_sep_ind!$A47,dati_sp!$C$2:$C$65536)","v":0},null,null,null,{"$f":"SUMIF(dati_sp!$H$2:$H$65536,s_sep_ind!$A47,dati_sp!$D$2:$D$65536)","v":0},null,null,null,{"$f":"SUMIF(dati_sp!$H$2:$H$65536,s_sep_ind!$A47,dati_sp!$E$2:$E$65536)","v":0},null,null,null,{"$f":"SUMIF(dati_sp!$H$2:$H$65536,s_sep_ind!$A47,dati_sp!$F$2:$F$65536)","v":0},null,null,null,{"$f":"SUMIF(dati_sp!$H$2:$H$65536,s_sep_ind!$A47,dati_sp!$G$2:$G$65536)","v":0}]
["2.D.1.1","Entro l'esercizio successivo",{"$f":"SUMIF(dati_sp!$H$2:$H$65536,s_sep_ind!$A48,dati_sp!$C$2:$C$65536)","v":0},{"$f":"IF(C48+C49<>C47,C47,0)","v":0},null,null,{"$f":"SUMIF(dati_sp!$H$2:$H$65536,s_sep_ind!$A48,dati_sp!$D$2:$D$65536)","v":0},{"$f":"IF(G48+G49<>G47,G47,0)","v":0},null,null,{"$f":"SUMIF(dati_sp!$H$2:$H$65536,s_sep_ind!$A48,dati_sp!$E$2:$E$65536)","v":0},{"$f":"IF(K48+K49<>K47,K47,0)","v":0},null,null,{"$f":"SUMIF(dati_sp!$H$2:$H$65536,s_sep_ind!$A48,dati_sp!$F$2:$F$65536)","v":0},{"$f":"IF(O48+O49<>O47,O47,0)","v":0},null,null,{"$f":"SUMIF(dati_sp!$H$2:$H$65536,s_sep_ind!$A48,dati_sp!$G$2:$G$65536)","v":0},{"$f":"IF(S48+S49<>S47,S47,0)","v":0}]
["2.D.1.2","Oltre l'esercizio successivo",{"$f":"SUMIF(dati_sp!$H$2:$H$65536,s_sep_ind!$A49,dati_sp!$C$2:$C$65536)","v":0},null,null,null,{"$f":"SUMIF(dati_sp!$H$2:$H$65536,s_sep_ind!$A49,dati_sp!$D$2:$D$65536)","v":0},null,null,null,{"$f":"SUMIF(dati_sp!$H$2:$H$65536,s_sep_ind!$A49,dati_sp!$E$2:$E$65536)","v":0},null,null,null,{"$f":"SUMIF(dati_sp!$H$2:$H$65536,s_sep_ind!$A49,dati_sp!$F$2:$F$65536)","v":0},null,null,null,{"$f":"SUMIF(dati_sp!$H$2:$H$65536,s_sep_ind!$A49,dati_sp!$G$2:$G$65536)","v":0}]
["2.D.2","Debiti per obbligazioni convertibili",{"$f":"SUMIF(dati_sp!$H$2:$H$65536,s_sep_ind!$A50,dati_sp!$C$2:$C$65536)","v":0},null,null,null,{"$f":"SUMIF(dati_sp!$H$2:$H$65536,s_sep_ind!$A50,dati_sp!$D$2:$D$65536)","v":0},null,null,null,{"$f":"SUMIF(dati_sp!$H$2:$H$65536,s_sep_ind!$A50,dati_sp!$E$2:$E$65536)","v":0},null,null,null,{"$f":"SUMIF(dati_sp!$H$2:$H$65536,s_sep_ind!$A50,dati_sp!$F$2:$F$65536)","v":0},null,null,null,{"$f":"SUMIF(dati_sp!$H$2:$H$65536,s_sep_ind!$A50,dati_sp!$G$2:$G$65536)","v":0}]
["2.D.2.1","Entro l'esercizio successivo",{"$f":"SUMIF(dati_sp!$H$2:$H$65536,s_sep_ind!$A51,dati_sp!$C$2:$C$65536)","v":0},{"$f":"IF(C51+C52<>C50,C50,0)","v":0},null,null,{"$f":"SUMIF(dati_sp!$H$2:$H$65536,s_sep_ind!$A51,dati_sp!$D$2:$D$65536)","v":0},{"$f":"IF(G51+G52<>G50,G50,0)","v":0},null,null,{"$f":"SUMIF(dati_sp!$H$2:$H$65536,s_sep_ind!$A51,dati_sp!$E$2:$E$65536)","v":0},{"$f":"IF(K51+K52<>K50,K50,0)","v":0},null,null,{"$f":"SUMIF(dati_sp!$H$2:$H$65536,s_sep_ind!$A51,dati_sp!$F$2:$F$65536)","v":0},{"$f":"IF(O51+O52<>O50,O50,0)","v":0},null,null,{"$f":"SUMIF(dati_sp!$H$2:$H$65536,s_sep_ind!$A51,dati_sp!$G$2:$G$65536)","v":0},{"$f":"IF(S51+S52<>S50,S50,0)","v":0}]
["2.D.2.2","Oltre l'esercizio successivo",{"$f":"SUMIF(dati_sp!$H$2:$H$65536,s_sep_ind!$A52,dati_sp!$C$2:$C$65536)","v":0},null,null,null,{"$f":"SUMIF(dati_sp!$H$2:$H$65536,s_sep_ind!$A52,dati_sp!$D$2:$D$65536)","v":0},null,null,null,{"$f":"SUMIF(dati_sp!$H$2:$H$65536,s_sep_ind!$A52,dati_sp!$E$2:$E$65536)","v":0},null,null,null,{"$f":"SUMIF(dati_sp!$H$2:$H$65536,s_sep_ind!$A52,dati_sp!$F$2:$F$65536)","v":0},null,null,null,{"$f":"SUMIF(dati_sp!$H$2:$H$65536,s_sep_ind!$A52,dati_sp!$G$2:$G$65536)","v":0}]
["2.D.3","Debiti verso soci per finanziamenti",{"$f":"SUMIF(dati_sp!$H$2:$H$65536,s_sep_ind!$A53,dati_sp!$C$2:$C$65536)","v":21490},null,null,null,{"$f":"SUMIF(dati_sp!$H$2:$H$65536,s_sep_ind!$A53,dati_sp!$D$2:$D$65536)","v":21490},null,null,null,{"$f":"SUMIF(dati_sp!$H$2:$H$65536,s_sep_ind!$A53,dati_sp!$E$2:$E$65536)","v":0},null,null,null,{"$f":"SUMIF(dati_sp!$H$2:$H$65536,s_sep_ind!$A53,dati_sp!$F$2:$F$65536)","v":0},null,null,null,{"$f":"SUMIF(dati_sp!$H$2:$H$65536,s_sep_ind!$A53,dati_sp!$G$2:$G$65536)","v":0}]
["2.D.3.1","Entro l'esercizio successivo",{"$f":"SUMIF(dati_sp!$H$2:$H$65536,s_sep_ind!$A54,dati_sp!$C$2:$C$65536)","v":0},{"$f":"IF(C54+C55<>C53,C53,0)","v":21490},null,null,{"$f":"SUMIF(dati_sp!$H$2:$H$65536,s_sep_ind!$A54,dati_sp!$D$2:$D$65536)","v":21490},{"$f":"IF(G54+G55<>G53,G53,0)","v":0},null,null,{"$f":"SUMIF(dati_sp!$H$2:$H$65536,s_sep_ind!$A54,dati_sp!$E$2:$E$65536)","v":0},{"$f":"IF(K54+K55<>K53,K53,0)","v":0},null,null,{"$f":"SUMIF(dati_sp!$H$2:$H$65536,s_sep_ind!$A54,dati_sp!$F$2:$F$65536)","v":0},{"$f":"IF(O54+O55<>O53,O53,0)","v":0},null,null,{"$f":"SUMIF(dati_sp!$H$2:$H$65536,s_sep_ind!$A54,dati_sp!$G$2:$G$65536)","v":0},{"$f":"IF(S54+S55<>S53,S53,0)","v":0}]
["2.D.3.2","Oltre l'esercizio successivo",{"$f":"SUMIF(dati_sp!$H$2:$H$65536,s_sep_ind!$A55,dati_sp!$C$2:$C$65536)","v":0},null,null,null,{"$f":"SUMIF(dati_sp!$H$2:$H$65536,s_sep_ind!$A55,dati_sp!$D$2:$D$65536)","v":0},null,null,null,{"$f":"SUMIF(dati_sp!$H$2:$H$65536,s_sep_ind!$A55,dati_sp!$E$2:$E$65536)","v":0},null,null,null,{"$f":"SUMIF(dati_sp!$H$2:$H$65536,s_sep_ind!$A55,dati_sp!$F$2:$F$65536)","v":0},null,null,null,{"$f":"SUMIF(dati_sp!$H$2:$H$65536,s_sep_ind!$A55,dati_sp!$G$2:$G$65536)","v":0}]
["2.D.4","Debiti verso banche",{"$f":"SUMIF(dati_sp!$H$2:$H$65536,s_sep_ind!$A56,dati_sp!$C$2:$C$65536)","v":1514},null,null,null,{"$f":"SUMIF(dati_sp!$H$2:$H$65536,s_sep_ind!$A56,dati_sp!$D$2:$D$65536)","v":5000},null,null,null,{"$f":"SUMIF(dati_sp!$H$2:$H$65536,s_sep_ind!$A56,dati_sp!$E$2:$E$65536)","v":0},null,null,null,{"$f":"SUMIF(dati_sp!$H$2:$H$65536,s_sep_ind!$A56,dati_sp!$F$2:$F$65536)","v":0},null,null,null,{"$f":"SUMIF(dati_sp!$H$2:$H$65536,s_sep_ind!$A56,dati_sp!$G$2:$G$65536)","v":0}]
["2.D.4.1","Entro l'esercizio successivo",{"$f":"SUMIF(dati_sp!$H$2:$H$65536,s_sep_ind!$A57,dati_sp!$C$2:$C$65536)","v":0},{"$f":"IF(C57+C58<>C56,C56,0)","v":1514},null,null,{"$f":"SUMIF(dati_sp!$H$2:$H$65536,s_sep_ind!$A57,dati_sp!$D$2:$D$65536)","v":5000},{"$f":"IF(G57+G58<>G56,G56,0)","v":0},null,null,{"$f":"SUMIF(dati_sp!$H$2:$H$65536,s_sep_ind!$A57,dati_sp!$E$2:$E$65536)","v":0},{"$f":"IF(K57+K58<>K56,K56,0)","v":0},null,null,{"$f":"SUMIF(dati_sp!$H$2:$H$65536,s_sep_ind!$A57,dati_sp!$F$2:$F$65536)","v":0},{"$f":"IF(O57+O58<>O56,O56,0)","v":0},null,null,{"$f":"SUMIF(dati_sp!$H$2:$H$65536,s_sep_ind!$A57,dati_sp!$G$2:$G$65536)","v":0},{"$f":"IF(S57+S58<>S56,S56,0)","v":0}]
["2.D.4.2","Oltre l'esercizio successivo",{"$f":"SUMIF(dati_sp!$H$2:$H$65536,s_sep_ind!$A58,dati_sp!$C$2:$C$65536)","v":0},null,null,null,{"$f":"SUMIF(dati_sp!$H$2:$H$65536,s_sep_ind!$A58,dati_sp!$D$2:$D$65536)","v":0},null,null,null,{"$f":"SUMIF(dati_sp!$H$2:$H$65536,s_sep_ind!$A58,dati_sp!$E$2:$E$65536)","v":0},null,null,null,{"$f":"SUMIF(dati_sp!$H$2:$H$65536,s_sep_ind!$A58,dati_sp!$F$2:$F$65536)","v":0},null,null,null,{"$f":"SUMIF(dati_sp!$H$2:$H$65536,s_sep_ind!$A58,dati_sp!$G$2:$G$65536)","v":0}]
["2.D.5","Debiti verso altri finanziatori",{"$f":"SUMIF(dati_sp!$H$2:$H$65536,s_sep_ind!$A59,dati_sp!$C$2:$C$65536)","v":0},null,null,null,{"$f":"SUMIF(dati_sp!$H$2:$H$65536,s_sep_ind!$A59,dati_sp!$D$2:$D$65536)","v":0},null,null,null,{"$f":"SUMIF(dati_sp!$H$2:$H$65536,s_sep_ind!$A59,dati_sp!$E$2:$E$65536)","v":0},null,null,null,{"$f":"SUMIF(dati_sp!$H$2:$H$65536,s_sep_ind!$A59,dati_sp!$F$2:$F$65536)","v":0},null,null,null,{"$f":"SUMIF(dati_sp!$H$2:$H$65536,s_sep_ind!$A59,dati_sp!$G$2:$G$65536)","v":0}]
["2.D.5.1","Entro l'esercizio successivo",{"$f":"SUMIF(dati_sp!$H$2:$H$65536,s_sep_ind!$A60,dati_sp!$C$2:$C$65536)","v":0},{"$f":"IF(C60+C61<>C59,C59,0)","v":0},null,null,{"$f":"SUMIF(dati_sp!$H$2:$H$65536,s_sep_ind!$A60,dati_sp!$D$2:$D$65536)","v":0},{"$f":"IF(G60+G61<>G59,G59,0)","v":0},null,null,{"$f":"SUMIF(dati_sp!$H$2:$H$65536,s_sep_ind!$A60,dati_sp!$E$2:$E$65536)","v":0},{"$f":"IF(K60+K61<>K59,K59,0)","v":0},null,null,{"$f":"SUMIF(dati_sp!$H$2:$H$65536,s_sep_ind!$A60,dati_sp!$F$2:$F$65536)","v":0},{"$f":"IF(O60+O61<>O59,O59,0)","v":0},null,null,{"$f":"SUMIF(dati_sp!$H$2:$H$65536,s_sep_ind!$A60,dati_sp!$G$2:$G$65536)","v":0},{"$f":"IF(S60+S61<>S59,S59,0)","v":0}]
["2.D.5.2","Oltre l'esercizio successivo",{"$f":"SUMIF(dati_sp!$H$2:$H$65536,s_sep_ind!$A61,dati_sp!$C$2:$C$65536)","v":0},null,null,null,{"$f":"SUMIF(dati_sp!$H$2:$H$65536,s_sep_ind!$A61,dati_sp!$D$2:$D$65536)","v":0},null,null,null,{"$f":"SUMIF(dati_sp!$H$2:$H$65536,s_sep_ind!$A61,dati_sp!$E$2:$E$65536)","v":0},null,null,null,{"$f":"SUMIF(dati_sp!$H$2:$H$65536,s_sep_ind!$A61,dati_sp!$F$2:$F$65536)","v":0},null,null,null,{"$f":"SUMIF(dati_sp!$H$2:$H$65536,s_sep_ind!$A61,dati_sp!$G$2:$G$65536)","v":0}]
["2.D.6","Acconti da clienti",{"$f":"SUMIF(dati_sp!$H$2:$H$65536,s_sep_ind!$A62,dati_sp!$C$2:$C$65536)","v":-6000},null,null,null,{"$f":"SUMIF(dati_sp!$H$2:$H$65536,s_sep_ind!$A62,dati_sp!$D$2:$D$65536)","v":-6000},null,null,null,{"$f":"SUMIF(dati_sp!$H$2:$H$65536,s_sep_ind!$A62,dati_sp!$E$2:$E$65536)","v":0},null,null,null,{"$f":"SUMIF(dati_sp!$H$2:$H$65536,s_sep_ind!$A62,dati_sp!$F$2:$F$65536)","v":0},null,null,null,{"$f":"SUMIF(dati_sp!$H$2:$H$65536,s_sep_ind!$A62,dati_sp!$G$2:$G$65536)","v":0}]
["2.D.6.1","Entro l'esercizio successivo",{"$f":"SUMIF(dati_sp!$H$2:$H$65536,s_sep_ind!$A63,dati_sp!$C$2:$C$65536)","v":0},{"$f":"IF(C63+C64<>C62,C62,0)","v":-6000},null,null,{"$f":"SUMIF(dati_sp!$H$2:$H$65536,s_sep_ind!$A63,dati_sp!$D$2:$D$65536)","v":-6000},{"$f":"IF(G63+G64<>G62,G62,0)","v":0},null,null,{"$f":"SUMIF(dati_sp!$H$2:$H$65536,s_sep_ind!$A63,dati_sp!$E$2:$E$65536)","v":0},{"$f":"IF(K63+K64<>K62,K62,0)","v":0},null,null,{"$f":"SUMIF(dati_sp!$H$2:$H$65536,s_sep_ind!$A63,dati_sp!$F$2:$F$65536)","v":0},{"$f":"IF(O63+O64<>O62,O62,0)","v":0},null,null,{"$f":"SUMIF(dati_sp!$H$2:$H$65536,s_sep_ind!$A63,dati_sp!$G$2:$G$65536)","v":0},{"$f":"IF(S63+S64<>S62,S62,0)","v":0}]
["2.D.6.2","Oltre l'esercizio successivo",{"$f":"SUMIF(dati_sp!$H$2:$H$65536,s_sep_ind!$A64,dati_sp!$C$2:$C$65536)","v":0},null,null,null,{"$f":"SUMIF(dati_sp!$H$2:$H$65536,s_sep_ind!$A64,dati_sp!$D$2:$D$65536)","v":0},null,null,null,{"$f":"SUMIF(dati_sp!$H$2:$H$65536,s_sep_ind!$A64,dati_sp!$E$2:$E$65536)","v":0},null,null,null,{"$f":"SUMIF(dati_sp!$H$2:$H$65536,s_sep_ind!$A64,dati_sp!$F$2:$F$65536)","v":0},null,null,null,{"$f":"SUMIF(dati_sp!$H$2:$H$65536,s_sep_ind!$A64,dati_sp!$G$2:$G$65536)","v":0}]
["2.D.7","Debiti verso fornitori",{"$f":"SUMIF(dati_sp!$H$2:$H$65536,s_sep_ind!$A65,dati_sp!$C$2:$C$65536)","v":67139},null,null,null,{"$f":"SUMIF(dati_sp!$H$2:$H$65536,s_sep_ind!$A65,dati_sp!$D$2:$D$65536)","v":67139},null,null,null,{"$f":"SUMIF(dati_sp!$H$2:$H$65536,s_sep_ind!$A65,dati_sp!$E$2:$E$65536)","v":0},null,null,null,{"$f":"SUMIF(dati_sp!$H$2:$H$65536,s_sep_ind!$A65,dati_sp!$F$2:$F$65536)","v":0},null,null,null,{"$f":"SUMIF(dati_sp!$H$2:$H$65536,s_sep_ind!$A65,dati_sp!$G$2:$G$65536)","v":0}]
["2.D.7.1","Entro l'esercizio successivo",{"$f":"SUMIF(dati_sp!$H$2:$H$65536,s_sep_ind!$A66,dati_sp!$C$2:$C$65536)","v":0},{"$f":"IF(C66+C67<>C65,C65,0)","v":67139},null,null,{"$f":"SUMIF(dati_sp!$H$2:$H$65536,s_sep_ind!$A66,dati_sp!$D$2:$D$65536)","v":67139},{"$f":"IF(G66+G67<>G65,G65,0)","v":0},null,null,{"$f":"SUMIF(dati_sp!$H$2:$H$65536,s_sep_ind!$A66,dati_sp!$E$2:$E$65536)","v":0},{"$f":"IF(K66+K67<>K65,K65,0)","v":0},null,null,{"$f":"SUMIF(dati_sp!$H$2:$H$65536,s_sep_ind!$A66,dati_sp!$F$2:$F$65536)","v":0},{"$f":"IF(O66+O67<>O65,O65,0)","v":0},null,null,{"$f":"SUMIF(dati_sp!$H$2:$H$65536,s_sep_ind!$A66,dati_sp!$G$2:$G$65536)","v":0},{"$f":"IF(S66+S67<>S65,S65,0)","v":0}]
["2.D.7.2","Oltre l'esercizio successivo",{"$f":"SUMIF(dati_sp!$H$2:$H$65536,s_sep_ind!$A67,dati_sp!$C$2:$C$65536)","v":0},null,null,null,{"$f":"SUMIF(dati_sp!$H$2:$H$65536,s_sep_ind!$A67,dati_sp!$D$2:$D$65536)","v":0},null,null,null,{"$f":"SUMIF(dati_sp!$H$2:$H$65536,s_sep_ind!$A67,dati_sp!$E$2:$E$65536)","v":0},null,null,null,{"$f":"SUMIF(dati_sp!$H$2:$H$65536,s_sep_ind!$A67,dati_sp!$F$2:$F$65536)","v":0},null,null,null,{"$f":"SUMIF(dati_sp!$H$2:$H$65536,s_sep_ind!$A67,dati_sp!$G$2:$G$65536)","v":0}]
["2.D.8","Debiti rappresentati da titoli di credi",{"$f":"SUMIF(dati_sp!$H$2:$H$65536,s_sep_ind!$A68,dati_sp!$C$2:$C$65536)","v":0},null,null,null,{"$f":"SUMIF(dati_sp!$H$2:$H$65536,s_sep_ind!$A68,dati_sp!$D$2:$D$65536)","v":0},null,null,null,{"$f":"SUMIF(dati_sp!$H$2:$H$65536,s_sep_ind!$A68,dati_sp!$E$2:$E$65536)","v":0},null,null,null,{"$f":"SUMIF(dati_sp!$H$2:$H$65536,s_sep_ind!$A68,dati_sp!$F$2:$F$65536)","v":0},null,null,null,{"$f":"SUMIF(dati_sp!$H$2:$H$65536,s_sep_ind!$A68,dati_sp!$G$2:$G$65536)","v":0}]
["2.D.8.1","Entro l'esercizio successivo",{"$f":"SUMIF(dati_sp!$H$2:$H$65536,s_sep_ind!$A69,dati_sp!$C$2:$C$65536)","v":0},{"$f":"IF(C69+C70<>C68,C68,0)","v":0},null,null,{"$f":"SUMIF(dati_sp!$H$2:$H$65536,s_sep_ind!$A69,dati_sp!$D$2:$D$65536)","v":0},{"$f":"IF(G69+G70<>G68,G68,0)","v":0},null,null,{"$f":"SUMIF(dati_sp!$H$2:$H$65536,s_sep_ind!$A69,dati_sp!$E$2:$E$65536)","v":0},{"$f":"IF(K69+K70<>K68,K68,0)","v":0},null,null,{"$f":"SUMIF(dati_sp!$H$2:$H$65536,s_sep_ind!$A69,dati_sp!$F$2:$F$65536)","v":0},{"$f":"IF(O69+O70<>O68,O68,0)","v":0},null,null,{"$f":"SUMIF(dati_sp!$H$2:$H$65536,s_sep_ind!$A69,dati_sp!$G$2:$G$65536)","v":0},{"$f":"IF(S69+S70<>S68,S68,0)","v":0}]
["2.D.8.2","Oltre l'esercizio successivo",{"$f":"SUMIF(dati_sp!$H$2:$H$65536,s_sep_ind!$A70,dati_sp!$C$2:$C$65536)","v":0},null,null,null,{"$f":"SUMIF(dati_sp!$H$2:$H$65536,s_sep_ind!$A70,dati_sp!$D$2:$D$65536)","v":0},null,null,null,{"$f":"SUMIF(dati_sp!$H$2:$H$65536,s_sep_ind!$A70,dati_sp!$E$2:$E$65536)","v":0},null,null,null,{"$f":"SUMIF(dati_sp!$H$2:$H$65536,s_sep_ind!$A70,dati_sp!$F$2:$F$65536)","v":0},null,null,null,{"$f":"SUMIF(dati_sp!$H$2:$H$65536,s_sep_ind!$A70,dati_sp!$G$2:$G$65536)","v":0}]
["2.D.9","Debiti verso imprese controllate",{"$f":"SUMIF(dati_sp!$H$2:$H$65536,s_sep_ind!$A71,dati_sp!$C$2:$C$65536)","v":0},null,null,null,{"$f":"SUMIF(dati_sp!$H$2:$H$65536,s_sep_ind!$A71,dati_sp!$D$2:$D$65536)","v":0},null,null,null,{"$f":"SUMIF(dati_sp!$H$2:$H$65536,s_sep_ind!$A71,dati_sp!$E$2:$E$65536)","v":0},null,null,null,{"$f":"SUMIF(dati_sp!$H$2:$H$65536,s_sep_ind!$A71,dati_sp!$F$2:$F$65536)","v":0},null,null,null,{"$f":"SUMIF(dati_sp!$H$2:$H$65536,s_sep_ind!$A71,dati_sp!$G$2:$G$65536)","v":0}]
["2.D.9.1","Entro l'esercizio successivo",{"$f":"SUMIF(dati_sp!$H$2:$H$65536,s_sep_ind!$A72,dati_sp!$C$2:$C$65536)","v":0},{"$f":"IF(C72+C73<>C71,C71,0)","v":0},null,null,{"$f":"SUMIF(dati_sp!$H$2:$H$65536,s_sep_ind!$A72,dati_sp!$D$2:$D$65536)","v":0},{"$f":"IF(G72+G73<>G71,G71,0)","v":0},null,null,{"$f":"SUMIF(dati_sp!$H$2:$H$65536,s_sep_ind!$A72,dati_sp!$E$2:$E$65536)","v":0},{"$f":"IF(K72+K73<>K71,K71,0)","v":0},null,null,{"$f":"SUMIF(dati_sp!$H$2:$H$65536,s_sep_ind!$A72,dati_sp!$F$2:$F$65536)","v":0},{"$f":"IF(O72+O73<>O71,O71,0)","v":0},null,null,{"$f":"SUMIF(dati_sp!$H$2:$H$65536,s_sep_ind!$A72,dati_sp!$G$2:$G$65536)","v":0},{"$f":"IF(S72+S73<>S71,S71,0)","v":0}]
["2.D.9.2","Oltre l'esercizio successivo",{"$f":"SUMIF(dati_sp!$H$2:$H$65536,s_sep_ind!$A73,dati_sp!$C$2:$C$65536)","v":0},null,null,null,{"$f":"SUMIF(dati_sp!$H$2:$H$65536,s_sep_ind!$A73,dati_sp!$D$2:$D$65536)","v":0},null,null,null,{"$f":"SUMIF(dati_sp!$H$2:$H$65536,s_sep_ind!$A73,dati_sp!$E$2:$E$65536)","v":0},null,null,null,{"$f":"SUMIF(dati_sp!$H$2:$H$65536,s_sep_ind!$A73,dati_sp!$F$2:$F$65536)","v":0},null,null,null,{"$f":"SUMIF(dati_sp!$H$2:$H$65536,s_sep_ind!$A73,dati_sp!$G$2:$G$65536)","v":0}]
["2.D.10","Debiti verso imprese collegate",{"$f":"SUMIF(dati_sp!$H$2:$H$65536,s_sep_ind!$A74,dati_sp!$C$2:$C$65536)","v":0},null,null,null,{"$f":"SUMIF(dati_sp!$H$2:$H$65536,s_sep_ind!$A74,dati_sp!$D$2:$D$65536)","v":0},null,null,null,{"$f":"SUMIF(dati_sp!$H$2:$H$65536,s_sep_ind!$A74,dati_sp!$E$2:$E$65536)","v":0},null,null,null,{"$f":"SUMIF(dati_sp!$H$2:$H$65536,s_sep_ind!$A74,dati_sp!$F$2:$F$65536)","v":0},null,null,null,{"$f":"SUMIF(dati_sp!$H$2:$H$65536,s_sep_ind!$A74,dati_sp!$G$2:$G$65536)","v":0}]
["2.D.10.1","Entro l'esercizio successivo",{"$f":"SUMIF(dati_sp!$H$2:$H$65536,s_sep_ind!$A75,dati_sp!$C$2:$C$65536)","v":0},{"$f":"IF(C75+C76<>C74,C74,0)","v":0},null,null,{"$f":"SUMIF(dati_sp!$H$2:$H$65536,s_sep_ind!$A75,dati_sp!$D$2:$D$65536)","v":0},{"$f":"IF(G75+G76<>G74,G74,0)","v":0},null,null,{"$f":"SUMIF(dati_sp!$H$2:$H$65536,s_sep_ind!$A75,dati_sp!$E$2:$E$65536)","v":0},{"$f":"IF(K75+K76<>K74,K74,0)","v":0},null,null,{"$f":"SUMIF(dati_sp!$H$2:$H$65536,s_sep_ind!$A75,dati_sp!$F$2:$F$65536)","v":0},{"$f":"IF(O75+O76<>O74,O74,0)","v":0},null,null,{"$f":"SUMIF(dati_sp!$H$2:$H$65536,s_sep_ind!$A75,dati_sp!$G$2:$G$65536)","v":0},{"$f":"IF(S75+S76<>S74,S74,0)","v":0}]
["2.D.10.2","Oltre l'esercizio successivo",{"$f":"SUMIF(dati_sp!$H$2:$H$65536,s_sep_ind!$A76,dati_sp!$C$2:$C$65536)","v":0},null,null,null,{"$f":"SUMIF(dati_sp!$H$2:$H$65536,s_sep_ind!$A76,dati_sp!$D$2:$D$65536)","v":0},null,null,null,{"$f":"SUMIF(dati_sp!$H$2:$H$65536,s_sep_ind!$A76,dati_sp!$E$2:$E$65536)","v":0},null,null,null,{"$f":"SUMIF(dati_sp!$H$2:$H$65536,s_sep_ind!$A76,dati_sp!$F$2:$F$65536)","v":0},null,null,null,{"$f":"SUMIF(dati_sp!$H$2:$H$65536,s_sep_ind!$A76,dati_sp!$G$2:$G$65536)","v":0}]
["2.D.11","Debiti verso imprese controllanti",{"$f":"SUMIF(dati_sp!$H$2:$H$65536,s_sep_ind!$A77,dati_sp!$C$2:$C$65536)","v":0},null,null,null,{"$f":"SUMIF(dati_sp!$H$2:$H$65536,s_sep_ind!$A77,dati_sp!$D$2:$D$65536)","v":0},null,null,null,{"$f":"SUMIF(dati_sp!$H$2:$H$65536,s_sep_ind!$A77,dati_sp!$E$2:$E$65536)","v":0},null,null,null,{"$f":"SUMIF(dati_sp!$H$2:$H$65536,s_sep_ind!$A77,dati_sp!$F$2:$F$65536)","v":0},null,null,null,{"$f":"SUMIF(dati_sp!$H$2:$H$65536,s_sep_ind!$A77,dati_sp!$G$2:$G$65536)","v":0}]
["2.D.11.1","Entro l'esercizio successivo",{"$f":"SUMIF(dati_sp!$H$2:$H$65536,s_sep_ind!$A78,dati_sp!$C$2:$C$65536)","v":0},{"$f":"IF(C78+C79<>C77,C77,0)","v":0},null,null,{"$f":"SUMIF(dati_sp!$H$2:$H$65536,s_sep_ind!$A78,dati_sp!$D$2:$D$65536)","v":0},{"$f":"IF(G78+G79<>G77,G77,0)","v":0},null,null,{"$f":"SUMIF(dati_sp!$H$2:$H$65536,s_sep_ind!$A78,dati_sp!$E$2:$E$65536)","v":0},{"$f":"IF(K78+K79<>K77,K77,0)","v":0},null,null,{"$f":"SUMIF(dati_sp!$H$2:$H$65536,s_sep_ind!$A78,dati_sp!$F$2:$F$65536)","v":0},{"$f":"IF(O78+O79<>O77,O77,0)","v":0},null,null,{"$f":"SUMIF(dati_sp!$H$2:$H$65536,s_sep_ind!$A78,dati_sp!$G$2:$G$65536)","v":0},{"$f":"IF(S78+S79<>S77,S77,0)","v":0}]
["2.D.11.2","Oltre l'esercizio successivo",{"$f":"SUMIF(dati_sp!$H$2:$H$65536,s_sep_ind!$A79,dati_sp!$C$2:$C$65536)","v":0},null,null,null,{"$f":"SUMIF(dati_sp!$H$2:$H$65536,s_sep_ind!$A79,dati_sp!$D$2:$D$65536)","v":0},null,null,null,{"$f":"SUMIF(dati_sp!$H$2:$H$65536,s_sep_ind!$A79,dati_sp!$E$2:$E$65536)","v":0},null,null,null,{"$f":"SUMIF(dati_sp!$H$2:$H$65536,s_sep_ind!$A79,dati_sp!$F$2:$F$65536)","v":0},null,null,null,{"$f":"SUMIF(dati_sp!$H$2:$H$65536,s_sep_ind!$A79,dati_sp!$G$2:$G$65536)","v":0}]
["2.D.12","Debiti tributari",{"$f":"SUMIF(dati_sp!$H$2:$H$65536,s_sep_ind!$A80,dati_sp!$C$2:$C$65536)","v":440},null,null,null,{"$f":"SUMIF(dati_sp!$H$2:$H$65536,s_sep_ind!$A80,dati_sp!$D$2:$D$65536)","v":440},null,null,null,{"$f":"SUMIF(dati_sp!$H$2:$H$65536,s_sep_ind!$A80,dati_sp!$E$2:$E$65536)","v":0},null,null,null,{"$f":"SUMIF(dati_sp!$H$2:$H$65536,s_sep_ind!$A80,dati_sp!$F$2:$F$65536)","v":0},null,null,null,{"$f":"SUMIF(dati_sp!$H$2:$H$65536,s_sep_ind!$A80,dati_sp!$G$2:$G$65536)","v":0}]
["2.D.12.1","Entro l'esercizio successivo",{"$f":"SUMIF(dati_sp!$H$2:$H$65536,s_sep_ind!$A81,dati_sp!$C$2:$C$65536)","v":0},{"$f":"IF(C81+C82<>C80,C80,0)","v":440},null,null,{"$f":"SUMIF(dati_sp!$H$2:$H$65536,s_sep_ind!$A81,dati_sp!$D$2:$D$65536)","v":440},{"$f":"IF(G81+G82<>G80,G80,0)","v":0},null,null,{"$f":"SUMIF(dati_sp!$H$2:$H$65536,s_sep_ind!$A81,dati_sp!$E$2:$E$65536)","v":0},{"$f":"IF(K81+K82<>K80,K80,0)","v":0},null,null,{"$f":"SUMIF(dati_sp!$H$2:$H$65536,s_sep_ind!$A81,dati_sp!$F$2:$F$65536)","v":0},{"$f":"IF(O81+O82<>O80,O80,0)","v":0},null,null,{"$f":"SUMIF(dati_sp!$H$2:$H$65536,s_sep_ind!$A81,dati_sp!$G$2:$G$65536)","v":0},{"$f":"IF(S81+S82<>S80,S80,0)","v":0}]
["2.D.12.2","Oltre l'esercizio successivo",{"$f":"SUMIF(dati_sp!$H$2:$H$65536,s_sep_ind!$A82,dati_sp!$C$2:$C$65536)","v":0},null,null,null,{"$f":"SUMIF(dati_sp!$H$2:$H$65536,s_sep_ind!$A82,dati_sp!$D$2:$D$65536)","v":0},null,null,null,{"$f":"SUMIF(dati_sp!$H$2:$H$65536,s_sep_ind!$A82,dati_sp!$E$2:$E$65536)","v":0},null,null,null,{"$f":"SUMIF(dati_sp!$H$2:$H$65536,s_sep_ind!$A82,dati_sp!$F$2:$F$65536)","v":0},null,null,null,{"$f":"SUMIF(dati_sp!$H$2:$H$65536,s_sep_ind!$A82,dati_sp!$G$2:$G$65536)","v":0}]
["2.D.13","Debiti verso istituti di previdenza e di sicurezza sociale",{"$f":"SUMIF(dati_sp!$H$2:$H$65536,s_sep_ind!$A83,dati_sp!$C$2:$C$65536)","v":0},null,null,null,{"$f":"SUMIF(dati_sp!$H$2:$H$65536,s_sep_ind!$A83,dati_sp!$D$2:$D$65536)","v":0},null,null,null,{"$f":"SUMIF(dati_sp!$H$2:$H$65536,s_sep_ind!$A83,dati_sp!$E$2:$E$65536)","v":0},null,null,null,{"$f":"SUMIF(dati_sp!$H$2:$H$65536,s_sep_ind!$A83,dati_sp!$F$2:$F$65536)","v":0},null,null,null,{"$f":"SUMIF(dati_sp!$H$2:$H$65536,s_sep_ind!$A83,dati_sp!$G$2:$G$65536)","v":0}]
["2.D.13.1","Entro l'esercizio successivo",{"$f":"SUMIF(dati_sp!$H$2:$H$65536,s_sep_ind!$A84,dati_sp!$C$2:$C$65536)","v":0},{"$f":"IF(C84+C85<>C83,C83,0)","v":0},null,null,{"$f":"SUMIF(dati_sp!$H$2:$H$65536,s_sep_ind!$A84,dati_sp!$D$2:$D$65536)","v":0},{"$f":"IF(G84+G85<>G83,G83,0)","v":0},null,null,{"$f":"SUMIF(dati_sp!$H$2:$H$65536,s_sep_ind!$A84,dati_sp!$E$2:$E$65536)","v":0},{"$f":"IF(K84+K85<>K83,K83,0)","v":0},null,null,{"$f":"SUMIF(dati_sp!$H$2:$H$65536,s_sep_ind!$A84,dati_sp!$F$2:$F$65536)","v":0},{"$f":"IF(O84+O85<>O83,O83,0)","v":0},null,null,{"$f":"SUMIF(dati_sp!$H$2:$H$65536,s_sep_ind!$A84,dati_sp!$G$2:$G$65536)","v":0},{"$f":"IF(S84+S85<>S83,S83,0)","v":0}]
["2.D.13.2","Oltre l'esercizio successivo",{"$f":"SUMIF(dati_sp!$H$2:$H$65536,s_sep_ind!$A85,dati_sp!$C$2:$C$65536)","v":0},null,null,null,{"$f":"SUMIF(dati_sp!$H$2:$H$65536,s_sep_ind!$A85,dati_sp!$D$2:$D$65536)","v":0},null,null,null,{"$f":"SUMIF(dati_sp!$H$2:$H$65536,s_sep_ind!$A85,dati_sp!$E$2:$E$65536)","v":0},null,null,null,{"$f":"SUMIF(dati_sp!$H$2:$H$65536,s_sep_ind!$A85,dati_sp!$F$2:$F$65536)","v":0},null,null,null,{"$f":"SUMIF(dati_sp!$H$2:$H$65536,s_sep_ind!$A85,dati_sp!$G$2:$G$65536)","v":0}]
["2.D.14","Altri debiti",{"$f":"SUMIF(dati_sp!$H$2:$H$65536,s_sep_ind!$A86,dati_sp!$C$2:$C$65536)","v":2235},null,null,null,{"$f":"SUMIF(dati_sp!$H$2:$H$65536,s_sep_ind!$A86,dati_sp!$D$2:$D$65536)","v":2235},null,null,null,{"$f":"SUMIF(dati_sp!$H$2:$H$65536,s_sep_ind!$A86,dati_sp!$E$2:$E$65536)","v":0},null,null,null,{"$f":"SUMIF(dati_sp!$H$2:$H$65536,s_sep_ind!$A86,dati_sp!$F$2:$F$65536)","v":0},null,null,null,{"$f":"SUMIF(dati_sp!$H$2:$H$65536,s_sep_ind!$A86,dati_sp!$G$2:$G$65536)","v":0}]
["2.D.14.1","Entro l'esercizio successivo",{"$f":"SUMIF(dati_sp!$H$2:$H$65536,s_sep_ind!$A87,dati_sp!$C$2:$C$65536)","v":0},{"$f":"IF(C87+C88<>C86,C86,0)","v":2235},null,null,{"$f":"SUMIF(dati_sp!$H$2:$H$65536,s_sep_ind!$A87,dati_sp!$D$2:$D$65536)","v":2235},{"$f":"IF(G87+G88<>G86,G86,0)","v":0},null,null,{"$f":"SUMIF(dati_sp!$H$2:$H$65536,s_sep_ind!$A87,dati_sp!$E$2:$E$65536)","v":0},{"$f":"IF(K87+K88<>K86,K86,0)","v":0},null,null,{"$f":"SUMIF(dati_sp!$H$2:$H$65536,s_sep_ind!$A87,dati_sp!$F$2:$F$65536)","v":0},{"$f":"IF(O87+O88<>O86,O86,0)","v":0},null,null,{"$f":"SUMIF(dati_sp!$H$2:$H$65536,s_sep_ind!$A87,dati_sp!$G$2:$G$65536)","v":0},{"$f":"IF(S87+S88<>S86,S86,0)","v":0}]
["2.D.14.2","Oltre l'esercizio successivo",{"$f":"SUMIF(dati_sp!$H$2:$H$65536,s_sep_ind!$A88,dati_sp!$C$2:$C$65536)","v":0},null,null,null,{"$f":"SUMIF(dati_sp!$H$2:$H$65536,s_sep_ind!$A88,dati_sp!$D$2:$D$65536)","v":0},null,null,null,{"$f":"SUMIF(dati_sp!$H$2:$H$65536,s_sep_ind!$A88,dati_sp!$E$2:$E$65536)","v":0},null,null,null,{"$f":"SUMIF(dati_sp!$H$2:$H$65536,s_sep_ind!$A88,dati_sp!$F$2:$F$65536)","v":0},null,null,null,{"$f":"SUMIF(dati_sp!$H$2:$H$65536,s_sep_ind!$A88,dati_sp!$G$2:$G$65536)","v":0}]

{"sheet":"s_altman","index":9,"n_rows":14,"n_cols":11,"rows_kept":14,"cut":false,"hidden":true,"merged":[]}
[]
[null,"LA FUNZIONE DI ALTMAN","Z = 1,2 x A + 1,4 x B + 3,3 x C + 0,6 x D + 0,99 x E"]
[]
[null,null,"N","N-1","N-2","N-3","N-4"]
[null,"A=",{"$f":"(s_sp_ce_ricl!S25-s_sp_ce_ricl!S55)/s_sp_ce_ricl!S24","v":{"$error":"#DIV/0!"}},{"$f":"(s_sp_ce_ricl!T25-s_sp_ce_ricl!T55)/s_sp_ce_ricl!T24","v":{"$error":"#DIV/0!"}},{"$f":"(s_sp_ce_ricl!U25-s_sp_ce_ricl!U55)/s_sp_ce_ricl!U24","v":{"$error":"#DIV/0!"}},{"$f":"(s_sp_ce_ricl!V25-s_sp_ce_ricl!V55)/s_sp_ce_ricl!V24","v":{"$error":"#DIV/0!"}},{"$f":"(s_sp_ce_ricl!W25-s_sp_ce_ricl!W55)/s_sp_ce_ricl!W24","v":{"$error":"#DIV/0!"}},null,null,"PESI"]
[null,"B=",{"$f":"s_sp_ce_ricl!S34/s_sp_ce_ricl!S24","v":{"$error":"#REF!"}},{"$f":"s_sp_ce_ricl!T34/s_sp_ce_ricl!T24","v":{"$error":"#REF!"}},{"$f":"s_sp_ce_ricl!U34/s_sp_ce_ricl!U24","v":{"$error":"#REF!"}},{"$f":"s_sp_ce_ricl!V34/s_sp_ce_ricl!V24","v":{"$error":"#REF!"}},{"$f":"s_sp_ce_ricl!W34/s_sp_ce_ricl!W24","v":{"$error":"#REF!"}},null,null,"A=",1.2]
[null,"C=",{"$f":"((s_sp_ce_ricl!S62-s_sp_ce_ricl!S68)-(s_sp_ce_ricl!S70+s_sp_ce_ricl!S73+s_sp_ce_ricl!S81+s_sp_ce_ricl!S84+s_sp_ce_ricl!S77))/(s_sp_ce_ricl!S24)","v":{"$error":"#REF!"}},{"$f":"((s_sp_ce_ricl!T62-s_sp_ce_ricl!T68)-(s_sp_ce_ricl!T70+s_sp_ce_ricl!T73+s_sp_ce_ricl!T81+s_sp_ce_ricl!T84+s_sp_ce_ricl!T77))/(s_sp_ce_ricl!T24)","v":{"$error":"#REF!"}},{"$f":"((s_sp_ce_ricl!U62-s_sp_ce_ricl!U68)-(s_sp_ce_ricl!U70+s_sp_ce_ricl!U73+s_sp_ce_ricl!U81+s_sp_ce_ricl!U84+s_sp_ce_ricl!U77))/(s_sp_ce_ricl!U24)","v":{"$error":"#REF!"}},{"$f":"((s_sp_ce_ricl!V62-s_sp_ce_ricl!V68)-(s_sp_ce_ricl!V70+s_sp_ce_ricl!V73+s_sp_ce_ricl!V81+s_sp_ce_ricl!V84+s_sp_ce_ricl!V77))/(s_sp_ce_ricl!V24)","v":{"$error":"#REF!"}},{"$f":"((s_sp_ce_ricl!W62-s_sp_ce_ricl!W68)-(s_sp_ce_ricl!W70+s_sp_ce_ricl!W73+s_sp_ce_ricl!W81+s_sp_ce_ricl!W84+s_sp_ce_ricl!W77))/(s_sp_ce_ricl!W24)","v":{"$error":"#REF!"}},null,null,"B=",1.4]
[null,"D=",{"$f":"(s_sp_ce_ricl!S31+s_sp_ce_ricl!S35+s_sp_ce_ricl!S36+s_sp_ce_ricl!S37)/(s_sp_ce_ricl!S54-s_sp_ce_ricl!S30)","v":{"$error":"#REF!"}},{"$f":"(s_sp_ce_ricl!T31+s_sp_ce_ricl!T35+s_sp_ce_ricl!T36+s_sp_ce_ricl!T37)/(s_sp_ce_ricl!T54-s_sp_ce_ricl!T30)","v":{"$error":"#REF!"}},{"$f":"(s_sp_ce_ricl!U31+s_sp_ce_ricl!U35+s_sp_ce_ricl!U36+s_sp_ce_ricl!U37)/(s_sp_ce_ricl!U54-s_sp_ce_ricl!U30)","v":{"$error":"#REF!"}},{"$f":"(s_sp_ce_ricl!V31+s_sp_ce_ricl!V35+s_sp_ce_ricl!V36+s_sp_ce_ricl!V37)/(s_sp_ce_ricl!V54-s_sp_ce_ricl!V30)","v":{"$error":"#REF!"}},{"$f":"(s_sp_ce_ricl!W31+s_sp_ce_ricl!W35+s_sp_ce_ricl!W36+s_sp_ce_ricl!W37)/(s_sp_ce_ricl!W54-s_sp_ce_ricl!W30)","v":{"$error":"#REF!"}},null,null,"C=",3.3]
[null,"E=",{"$f":"s_sp_ce_ricl!S63/s_sp_ce_ricl!S24","v":{"$error":"#REF!"}},{"$f":"s_sp_ce_ricl!T63/s_sp_ce_ricl!T24","v":{"$error":"#REF!"}},{"$f":"s_sp_ce_ricl!U63/s_sp_ce_ricl!U24","v":{"$error":"#REF!"}},{"$f":"s_sp_ce_ricl!V63/s_sp_ce_ricl!V24","v":{"$error":"#REF!"}},{"$f":"s_sp_ce_ricl!W63/s_sp_ce_ricl!W24","v":{"$error":"#REF!"}},null,null,"D=",0.6]
[null,null,null,null,null,null,null,null,null,"E=",0.99]
[]
[null,"Z=",{"$f":"($K$6*C5)+($K$7*C6)+($K$8*C7)+($K$9*C8)+($K$10*C9)","v":{"$error":"#DIV/0!"}},{"$f":"($K$6*D5)+($K$7*D6)+($K$8*D7)+($K$9*D8)+($K$10*D9)","v":{"$error":"#DIV/0!"}},{"$f":"($K$6*E5)+($K$7*E6)+($K$8*E7)+($K$9*E8)+($K$10*E9)","v":{"$error":"#DIV/0!"}},{"$f":"($K$6*F5)+($K$7*F6)+($K$8*F7)+($K$9*F8)+($K$10*F9)","v":{"$error":"#DIV/0!"}},{"$f":"($K$6*G5)+($K$7*G6)+($K$8*G7)+($K$9*G8)+($K$10*G9)","v":{"$error":"#DIV/0!"}}]
[]
[null,"PROBABILITA' DI FALLIMENTO =",{"$f":"IF(C12<1.8,\"ALTA\",IF(C12<=2.7,\"MEDIA-ALTA\",IF(C12<=3,\"MEDIA\",\"BASSA\")))","v":{"$error":"#DIV/0!"}},{"$f":"IF(D12<1.8,\"ALTA\",IF(D12<=2.7,\"MEDIA-ALTA\",IF(D12<=3,\"MEDIA\",\"BASSA\")))","v":{"$error":"#DIV/0!"}},{"$f":"IF(E12<1.8,\"ALTA\",IF(E12<=2.7,\"MEDIA-ALTA\",IF(E12<=3,\"MEDIA\",\"BASSA\")))","v":{"$error":"#DIV/0!"}},{"$f":"IF(F12<1.8,\"ALTA\",IF(F12<=2.7,\"MEDIA-ALTA\",IF(F12<=3,\"MEDIA\",\"BASSA\")))","v":{"$error":"#DIV/0!"}},{"$f":"IF(G12<1.8,\"ALTA\",IF(G12<=2.7,\"MEDIA-ALTA\",IF(G12<=3,\"MEDIA\",\"BASSA\")))","v":{"$error":"#DIV/0!"}}]

{"sheet":"calc_indici","index":10,"n_rows":38,"n_cols":13,"rows_kept":38,"cut":false,"hidden":true,"merged":[]}
["Indicatori"]
[]
[null,null,null,"ELABORAZIONE DELL'INDICE",null,null,null,null,"CONTROLLO SULL'ASSENZA DI ERRORI #DIV!0"]
[null,null,null,"N","N-1","N-2","N-3","N-4","N","N-1","N-2","N-3","N-4"]
[1,null,"ROE",{"$f":"IF(s_sp_ce_ricl!S30>=0,s_sp_ce_ricl!S101/s_sp_ce_ricl!S30,\"n.d.\")","v":{"$error":"#REF!"}},{"$f":"IF(s_sp_ce_ricl!T30>=0,s_sp_ce_ricl!T101/s_sp_ce_ricl!T30,\"n.d.\")","v":{"$error":"#REF!"}},{"$f":"IF(s_sp_ce_ricl!U30>=0,s_sp_ce_ricl!U101/s_sp_ce_ricl!U30,\"n.d.\")","v":{"$error":"#REF!"}},{"$f":"IF(s_sp_ce_ricl!V30>=0,s_sp_ce_ricl!V101/s_sp_ce_ricl!V30,\"n.d.\")","v":{"$error":"#REF!"}},{"$f":"IF(s_sp_ce_ricl!W30>=0,s_sp_ce_ricl!W101/s_sp_ce_ricl!W30,\"n.d.\")","v":{"$error":"#REF!"}},{"$f":"IF(ISERROR(D5)=FALSE,D5,\"\")","v":""},{"$f":"IF(ISERROR(E5)=FALSE,E5,\"\")","v":""},{"$f":"IF(ISERROR(F5)=FALSE,F5,\"\")","v":""},{"$f":"IF(ISERROR(G5)=FALSE,G5,\"\")","v":""},{"$f":"IF(ISERROR(H5)=FALSE,H5,\"\")","v":""}]
[2,null,"ROI",{"$f":"s_sp_ce_ricl!S88/s_sp_ce_ricl!S24","v":{"$error":"#REF!"}},{"$f":"s_sp_ce_ricl!T88/s_sp_ce_ricl!T24","v":{"$error":"#REF!"}},{"$f":"s_sp_ce_ricl!U88/s_sp_ce_ricl!U24","v":{"$error":"#REF!"}},{"$f":"s_sp_ce_ricl!V88/s_sp_ce_ricl!V24","v":{"$error":"#REF!"}},{"$f":"s_sp_ce_ricl!W88/s_sp_ce_ricl!W24","v":{"$error":"#REF!"}},"","","","",""]
[3,null,"ROS",{"$f":"(s_sp_ce_ricl!S62-s_sp_ce_ricl!S69)/s_sp_ce_ricl!S63","v":{"$error":"#REF!"}},{"$f":"(s_sp_ce_ricl!T62-s_sp_ce_ricl!T69)/s_sp_ce_ricl!T63","v":{"$error":"#REF!"}},{"$f":"(s_sp_ce_ricl!U62-s_sp_ce_ricl!U69)/s_sp_ce_ricl!U63","v":{"$error":"#REF!"}},{"$f":"(s_sp_ce_ricl!V62-s_sp_ce_ricl!V69)/s_sp_ce_ricl!V63","v":{"$error":"#REF!"}},{"$f":"(s_sp_ce_ricl!W62-s_sp_ce_ricl!W69)/s_sp_ce_ricl!W63","v":{"$error":"#REF!"}},"","","","",""]
[4,null,"ROA",{"$f":"(s_sp_ce_ricl!S62-s_sp_ce_ricl!S69)/s_sp_ce_ricl!S24","v":{"$error":"#REF!"}},{"$f":"(s_sp_ce_ricl!T62-s_sp_ce_ricl!T69)/s_sp_ce_ricl!T24","v":{"$error":"#REF!"}},{"$f":"(s_sp_ce_ricl!U62-s_sp_ce_ricl!U69)/s_sp_ce_ricl!U24","v":{"$error":"#REF!"}},{"$f":"(s_sp_ce_ricl!V62-s_sp_ce_ricl!V69)/s_sp_ce_ricl!V24","v":{"$error":"#REF!"}},{"$f":"(s_sp_ce_ricl!W62-s_sp_ce_ricl!W69)/s_sp_ce_ricl!W24","v":{"$error":"#REF!"}},"","","","",""]
[5,null,"MOL su Ricavi",{"$f":"s_sp_ce_ricl!S83/s_sp_ce_ricl!S63","v":{"$error":"#REF!"}},{"$f":"s_sp_ce_ricl!T83/s_sp_ce_ricl!T63","v":{"$error":"#REF!"}},{"$f":"s_sp_ce_ricl!U83/s_sp_ce_ricl!U63","v":{"$error":"#REF!"}},{"$f":"s_sp_ce_ricl!V83/s_sp_ce_ricl!V63","v":{"$error":"#REF!"}},{"$f":"s_sp_ce_ricl!W83/s_sp_ce_ricl!W63","v":{"$error":"#REF!"}},"","","","",""]
[6,null,"Rotazione capitale investito",{"$f":"s_sp_ce_ricl!S63/s_sp_ce_ricl!S24","v":{"$error":"#REF!"}},{"$f":"s_sp_ce_ricl!T63/s_sp_ce_ricl!T24","v":{"$error":"#REF!"}},{"$f":"s_sp_ce_ricl!U63/s_sp_ce_ricl!U24","v":{"$error":"#REF!"}},{"$f":"s_sp_ce_ricl!V63/s_sp_ce_ricl!V24","v":{"$error":"#REF!"}},{"$f":"s_sp_ce_ricl!W63/s_sp_ce_ricl!W24","v":{"$error":"#REF!"}},"","","","",""]
[7,null,"Rotazione circolante",{"$f":"s_sp_ce_ricl!S63/s_sp_ce_ricl!S14","v":{"$error":"#REF!"}},{"$f":"s_sp_ce_ricl!T63/s_sp_ce_ricl!T14","v":{"$error":"#REF!"}},{"$f":"s_sp_ce_ricl!U63/s_sp_ce_ricl!U14","v":{"$error":"#REF!"}},{"$f":"s_sp_ce_ricl!V63/s_sp_ce_ricl!V14","v":{"$error":"#REF!"}},{"$f":"s_sp_ce_ricl!W63/s_sp_ce_ricl!W14","v":{"$error":"#REF!"}},"","","","",""]
[8,null,"Rotazione magazzino",{"$f":"s_sp_ce_ricl!S63/s_sp_ce_ricl!S15","v":{"$error":"#REF!"}},{"$f":"s_sp_ce_ricl!T63/s_sp_ce_ricl!T15","v":{"$error":"#REF!"}},{"$f":"s_sp_ce_ricl!U63/s_sp_ce_ricl!U15","v":{"$error":"#REF!"}},{"$f":"s_sp_ce_ricl!V63/s_sp_ce_ricl!V15","v":{"$error":"#REF!"}},{"$f":"s_sp_ce_ricl!W63/s_sp_ce_ricl!W15","v":{"$error":"#REF!"}},"","","","",""]
[9,null,"Copertura delle immobilizzazioni",{"$f":"s_sp_ce_ricl!S30/s_sp_ce_ricl!S6","v":{"$error":"#REF!"}},{"$f":"s_sp_ce_ricl!T30/s_sp_ce_ricl!T6","v":{"$error":"#REF!"}},{"$f":"s_sp_ce_ricl!U30/s_sp_ce_ricl!U6","v":{"$error":"#REF!"}},{"$f":"s_sp_ce_ricl!V30/s_sp_ce_ricl!V6","v":{"$error":"#REF!"}},{"$f":"s_sp_ce_ricl!W30/s_sp_ce_ricl!W6","v":{"$error":"#REF!"}},"","","","",""]
[10,null,"Banche su Circolante",{"$f":"(s_sp_ce_ricl!S49+s_sp_ce_ricl!S50)/s_sp_ce_ricl!S14","v":{"$error":"#DIV/0!"}},{"$f":"(s_sp_ce_ricl!T49+s_sp_ce_ricl!T50)/s_sp_ce_ricl!T14","v":{"$error":"#DIV/0!"}},{"$f":"(s_sp_ce_ricl!U49+s_sp_ce_ricl!U50)/s_sp_ce_ricl!U14","v":{"$error":"#DIV/0!"}},{"$f":"(s_sp_ce_ricl!V49+s_sp_ce_ricl!V50)/s_sp_ce_ricl!V14","v":{"$error":"#DIV/0!"}},{"$f":"(s_sp_ce_ricl!W49+s_sp_ce_ricl!W50)/s_sp_ce_ricl!W14","v":{"$error":"#DIV/0!"}},"","","","",""]
[11,null,"Banche a breve su Circolante",{"$f":"s_sp_ce_ricl!S49/s_sp_ce_ricl!S14","v":{"$error":"#DIV/0!"}},{"$f":"s_sp_ce_ricl!T49/s_sp_ce_ricl!T14","v":{"$error":"#DIV/0!"}},{"$f":"s_sp_ce_ricl!U49/s_sp_ce_ricl!U14","v":{"$error":"#DIV/0!"}},{"$f":"s_sp_ce_ricl!V49/s_sp_ce_ricl!V14","v":{"$error":"#DIV/0!"}},{"$f":"s_sp_ce_ricl!W49/s_sp_ce_ricl!W14","v":{"$error":"#DIV/0!"}},"","","","",""]
[12,null,"Rapporto di Indebitamento",{"$f":"(s_sp_ce_ricl!S54-s_sp_ce_ricl!S30)/s_sp_ce_ricl!S24","v":{"$error":"#REF!"}},{"$f":"(s_sp_ce_ricl!T54-s_sp_ce_ricl!T30)/s_sp_ce_ricl!T24","v":{"$error":"#REF!"}},{"$f":"(s_sp_ce_ricl!U54-s_sp_ce_ricl!U30)/s_sp_ce_ricl!U24","v":{"$error":"#REF!"}},{"$f":"(s_sp_ce_ricl!V54-s_sp_ce_ricl!V30)/s_sp_ce_ricl!V24","v":{"$error":"#REF!"}},{"$f":"(s_sp_ce_ricl!W54-s_sp_ce_ricl!W30)/s_sp_ce_ricl!W24","v":{"$error":"#REF!"}},"","","","",""]
[13,null,"Mezzi propri / Capitale investito",{"$f":"s_sp_ce_ricl!S30/s_sp_ce_ricl!S24","v":{"$error":"#REF!"}},{"$f":"s_sp_ce_ricl!T30/s_sp_ce_ricl!T24","v":{"$error":"#REF!"}},{"$f":"s_sp_ce_ricl!U30/s_sp_ce_ricl!U24","v":{"$error":"#REF!"}},{"$f":"s_sp_ce_ricl!V30/s_sp_ce_ricl!V24","v":{"$error":"#REF!"}},{"$f":"s_sp_ce_ricl!W30/s_sp_ce_ricl!W24","v":{"$error":"#REF!"}},"","","","",""]
[14,null,"Oneri finanziari su Fatturato",{"$f":"ABS(s_sp_ce_ricl!S95/s_sp_ce_ricl!S63)","v":{"$error":"#REF!"}},{"$f":"ABS(s_sp_ce_ricl!T95/s_sp_ce_ricl!T63)","v":{"$error":"#REF!"}},{"$f":"ABS(s_sp_ce_ricl!U95/s_sp_ce_ricl!U63)","v":{"$error":"#REF!"}},{"$f":"ABS(s_sp_ce_ricl!V95/s_sp_ce_ricl!V63)","v":{"$error":"#REF!"}},{"$f":"ABS(s_sp_ce_ricl!W95/s_sp_ce_ricl!W63)","v":{"$error":"#REF!"}},"","","","",""]
[15,null,"Oneri finanziari su MOL",{"$f":"ABS(s_sp_ce_ricl!S95/s_sp_ce_ricl!S83)","v":{"$error":"#REF!"}},{"$f":"ABS(s_sp_ce_ricl!T95/s_sp_ce_ricl!T83)","v":{"$error":"#REF!"}},{"$f":"ABS(s_sp_ce_ricl!U95/s_sp_ce_ricl!U83)","v":{"$error":"#REF!"}},{"$f":"ABS(s_sp_ce_ricl!V95/s_sp_ce_ricl!V83)","v":{"$error":"#REF!"}},{"$f":"ABS(s_sp_ce_ricl!W95/s_sp_ce_ricl!W83)","v":{"$error":"#REF!"}},"","","","",""]
[17,null,"Valore aggiunto su Fatturato",{"$f":"s_sp_ce_ricl!S80/s_sp_ce_ricl!S63","v":{"$error":"#REF!"}},{"$f":"s_sp_ce_ricl!T80/s_sp_ce_ricl!T63","v":{"$error":"#REF!"}},{"$f":"s_sp_ce_ricl!U80/s_sp_ce_ricl!U63","v":{"$error":"#REF!"}},{"$f":"s_sp_ce_ricl!V80/s_sp_ce_ricl!V63","v":{"$error":"#REF!"}},{"$f":"s_sp_ce_ricl!W80/s_sp_ce_ricl!W63","v":{"$error":"#REF!"}},"","","","",""]
[18,null,"Rapporto corrente",{"$f":"s_sp_ce_ricl!S25/s_sp_ce_ricl!S55","v":{"$error":"#DIV/0!"}},{"$f":"s_sp_ce_ricl!T25/s_sp_ce_ricl!T55","v":{"$error":"#DIV/0!"}},{"$f":"s_sp_ce_ricl!U25/s_sp_ce_ricl!U55","v":{"$error":"#DIV/0!"}},{"$f":"s_sp_ce_ricl!V25/s_sp_ce_ricl!V55","v":{"$error":"#DIV/0!"}},{"$f":"s_sp_ce_ricl!W25/s_sp_ce_ricl!W55","v":{"$error":"#DIV/0!"}},"","","","",""]
[19,null,"Indice di liquidità immediata (Acid Test)",{"$f":"(s_sp_ce_ricl!S25-s_sp_ce_ricl!S15)/s_sp_ce_ricl!S55","v":{"$error":"#DIV/0!"}},{"$f":"(s_sp_ce_ricl!T25-s_sp_ce_ricl!T15)/s_sp_ce_ricl!T55","v":{"$error":"#DIV/0!"}},{"$f":"(s_sp_ce_ricl!U25-s_sp_ce_ricl!U15)/s_sp_ce_ricl!U55","v":{"$error":"#DIV/0!"}},{"$f":"(s_sp_ce_ricl!V25-s_sp_ce_ricl!V15)/s_sp_ce_ricl!V55","v":{"$error":"#DIV/0!"}},{"$f":"(s_sp_ce_ricl!W25-s_sp_ce_ricl!W15)/s_sp_ce_ricl!W55","v":{"$error":"#DIV/0!"}},"","","","",""]
[20,null,"Giorni di credito ai clienti (Durata dei crediti verso i clienti)",{"$f":"(s_sp_ce_ricl!S20/s_sp_ce_ricl!S63)*360","v":{"$error":"#REF!"}},{"$f":"(s_sp_ce_ricl!T20/s_sp_ce_ricl!T63)*360","v":{"$error":"#REF!"}},{"$f":"(s_sp_ce_ricl!U20/s_sp_ce_ricl!U63)*360","v":{"$error":"#REF!"}},{"$f":"(s_sp_ce_ricl!V20/s_sp_ce_ricl!V63)*360","v":{"$error":"#REF!"}},{"$f":"(s_sp_ce_ricl!W20/s_sp_ce_ricl!W63)*360","v":{"$error":"#REF!"}},"","","","",""]
[21,null,"Giorni di credito dai fornitori",{"$f":"360*s_sp_ce_ricl!S51/(s_sp_ce_ricl!S70+s_sp_ce_ricl!S73-s_sp_ce_ricl!S72)","v":{"$error":"#REF!"}},{"$f":"360*s_sp_ce_ricl!T51/(s_sp_ce_ricl!T70+s_sp_ce_ricl!T73-s_sp_ce_ricl!T72)","v":{"$error":"#REF!"}},{"$f":"360*s_sp_ce_ricl!U51/(s_sp_ce_ricl!U70+s_sp_ce_ricl!U73-s_sp_ce_ricl!U72)","v":{"$error":"#REF!"}},{"$f":"360*s_sp_ce_ricl!V51/(s_sp_ce_ricl!V70+s_sp_ce_ricl!V73-s_sp_ce_ricl!V72)","v":{"$error":"#REF!"}},{"$f":"360*s_sp_ce_ricl!W51/(s_sp_ce_ricl!W70+s_sp_ce_ricl!W73-s_sp_ce_ricl!W72)","v":{"$error":"#REF!"}},"","","","",""]
[22,null,"Giorni di scorta (Durata delle scorte)",{"$f":"360*s_sp_ce_ricl!S15/s_sp_ce_ricl!S63","v":{"$error":"#REF!"}},{"$f":"360*s_sp_ce_ricl!T15/s_sp_ce_ricl!T63","v":{"$error":"#REF!"}},{"$f":"360*s_sp_ce_ricl!U15/s_sp_ce_ricl!U63","v":{"$error":"#REF!"}},{"$f":"360*s_sp_ce_ricl!V15/s_sp_ce_ricl!V63","v":{"$error":"#REF!"}},{"$f":"360*s_sp_ce_ricl!W15/s_sp_ce_ricl!W63","v":{"$error":"#REF!"}},"","","","",""]
[23,null,"Tasso di intensità dell'Attivo Corrente",{"$f":"s_sp_ce_ricl!S25/s_sp_ce_ricl!S63","v":{"$error":"#REF!"}},{"$f":"s_sp_ce_ricl!T25/s_sp_ce_ricl!T63","v":{"$error":"#REF!"}},{"$f":"s_sp_ce_ricl!U25/s_sp_ce_ricl!U63","v":{"$error":"#REF!"}},{"$f":"s_sp_ce_ricl!V25/s_sp_ce_ricl!V63","v":{"$error":"#REF!"}},{"$f":"s_sp_ce_ricl!W25/s_sp_ce_ricl!W63","v":{"$error":"#REF!"}},"","","","",""]
[24,null,"Variazione annua MOL",{"$f":"(s_sp_ce_ricl!S83-s_sp_ce_ricl!T83)/ABS(s_sp_ce_ricl!T83)","v":{"$error":"#REF!"}},{"$f":"(s_sp_ce_ricl!T83-s_sp_ce_ricl!U83)/ABS(s_sp_ce_ricl!U83)","v":{"$error":"#REF!"}},{"$f":"(s_sp_ce_ricl!U83-s_sp_ce_ricl!V83)/ABS(s_sp_ce_ricl!V83)","v":{"$error":"#REF!"}},{"$f":"(s_sp_ce_ricl!V83-s_sp_ce_ricl!W83)/ABS(s_sp_ce_ricl!W83)","v":{"$error":"#REF!"}},null,{"$f":"IF(ISERROR(D27)=FALSE,D27,\"\")","v":""},"","",""]
[25,null,"Variazione del patrimonio netto",{"$f":"(s_sp_ce_ricl!S30-s_sp_ce_ricl!T30)/ABS(s_sp_ce_ricl!T30)","v":{"$error":"#REF!"}},{"$f":"(s_sp_ce_ricl!T30-s_sp_ce_ricl!U30)/ABS(s_sp_ce_ricl!U30)","v":{"$error":"#REF!"}},{"$f":"(s_sp_ce_ricl!U30-s_sp_ce_ricl!V30)/ABS(s_sp_ce_ricl!V30)","v":{"$error":"#REF!"}},{"$f":"(s_sp_ce_ricl!V30-s_sp_ce_ricl!W30)/ABS(s_sp_ce_ricl!W30)","v":{"$error":"#REF!"}},null,"","","",""]
[26,null,"Indice di copertura secondario",{"$f":"(s_sp_ce_ricl!S30+s_sp_ce_ricl!S43+s_sp_ce_ricl!S45+s_sp_ce_ricl!S48)/(s_sp_ce_ricl!S6-s_sp_ce_ricl!S10)","v":{"$error":"#REF!"}},{"$f":"(s_sp_ce_ricl!T30+s_sp_ce_ricl!T43+s_sp_ce_ricl!T45+s_sp_ce_ricl!T48)/(s_sp_ce_ricl!T6-s_sp_ce_ricl!T10)","v":{"$error":"#REF!"}},{"$f":"(s_sp_ce_ricl!U30+s_sp_ce_ricl!U43+s_sp_ce_ricl!U45+s_sp_ce_ricl!U48)/(s_sp_ce_ricl!U6-s_sp_ce_ricl!U10)","v":{"$error":"#REF!"}},{"$f":"(s_sp_ce_ricl!V30+s_sp_ce_ricl!V43+s_sp_ce_ricl!V45+s_sp_ce_ricl!V48)/(s_sp_ce_ricl!V6-s_sp_ce_ricl!V10)","v":{"$error":"#REF!"}},{"$f":"(s_sp_ce_ricl!W30+s_sp_ce_ricl!W43+s_sp_ce_ricl!W45+s_sp_ce_ricl!W48)/(s_sp_ce_ricl!W6-s_sp_ce_ricl!W10)","v":{"$error":"#REF!"}},"","","","",{"$f":"IF(ISERROR(H29)=FALSE,H29,\"\")","v":""}]
[27,null,"Costo del lavoro su costi",{"$f":"s_sp_ce_ricl!S81/s_sp_ce_ricl!S69","v":{"$error":"#REF!"}},{"$f":"s_sp_ce_ricl!T81/s_sp_ce_ricl!T69","v":{"$error":"#REF!"}},{"$f":"s_sp_ce_ricl!U81/s_sp_ce_ricl!U69","v":{"$error":"#REF!"}},{"$f":"s_sp_ce_ricl!V81/s_sp_ce_ricl!V69","v":{"$error":"#REF!"}},{"$f":"s_sp_ce_ricl!W81/s_sp_ce_ricl!W69","v":{"$error":"#REF!"}},"","","","",""]
[28,null,"Valore aggiunto per dipendente",{"$f":"s_sp_ce_ricl!S80/s_sp_ce_ricl!S103","v":{"$error":"#REF!"}},{"$f":"s_sp_ce_ricl!T80/s_sp_ce_ricl!T103","v":{"$error":"#REF!"}},{"$f":"s_sp_ce_ricl!U80/s_sp_ce_ricl!U103","v":{"$error":"#REF!"}},{"$f":"s_sp_ce_ricl!V80/s_sp_ce_ricl!V103","v":{"$error":"#REF!"}},{"$f":"s_sp_ce_ricl!W80/s_sp_ce_ricl!W103","v":{"$error":"#REF!"}},"","","","",""]
[29,null,"Fatturato per dipendente",{"$f":"s_sp_ce_ricl!S63/s_sp_ce_ricl!S103","v":{"$error":"#REF!"}},{"$f":"s_sp_ce_ricl!T63/s_sp_ce_ricl!T103","v":{"$error":"#REF!"}},{"$f":"s_sp_ce_ricl!U63/s_sp_ce_ricl!U103","v":{"$error":"#REF!"}},{"$f":"s_sp_ce_ricl!V63/s_sp_ce_ricl!V103","v":{"$error":"#REF!"}},{"$f":"s_sp_ce_ricl!W63/s_sp_ce_ricl!W103","v":{"$error":"#REF!"}},"","","","",""]
[30,null,"Costo del lavoro per dipendente",{"$f":"s_sp_ce_ricl!S81/s_sp_ce_ricl!S103","v":{"$error":"#REF!"}},{"$f":"s_sp_ce_ricl!T81/s_sp_ce_ricl!T103","v":{"$error":"#REF!"}},{"$f":"s_sp_ce_ricl!U81/s_sp_ce_ricl!U103","v":{"$error":"#REF!"}},{"$f":"s_sp_ce_ricl!V81/s_sp_ce_ricl!V103","v":{"$error":"#REF!"}},{"$f":"s_sp_ce_ricl!W81/s_sp_ce_ricl!W103","v":{"$error":"#REF!"}},"","","","",""]
[31,null,"Costo del lavoro su fatturato",{"$f":"s_sp_ce_ricl!S81/s_sp_ce_ricl!S63","v":{"$error":"#REF!"}},{"$f":"s_sp_ce_ricl!T81/s_sp_ce_ricl!T63","v":{"$error":"#REF!"}},{"$f":"s_sp_ce_ricl!U81/s_sp_ce_ricl!U63","v":{"$error":"#REF!"}},{"$f":"s_sp_ce_ricl!V81/s_sp_ce_ricl!V63","v":{"$error":"#REF!"}},{"$f":"s_sp_ce_ricl!W81/s_sp_ce_ricl!W63","v":{"$error":"#REF!"}},"","","","",""]
[null,null,null,{"$f":"ERROR.TYPE(D12)","v":4}]
[null,null,"Non presenti per b. abbreviati",{"$f":"ERROR.TYPE(E11)","v":4}]
[null,null,null,{"$f":"ISERROR(D12)","v":true}]
[null,null,null,{"$f":"ISERROR(D13)","v":true}]

{"sheet":"pa_SP Abbreviato","index":11,"n_rows":71,"n_cols":28,"rows_kept":71,"cut":false,"hidden":true,"merged":[[0,2,0,23],[29,2,29,23],[1,2,1,23],[30,2,30,23]]}
[null,null,"STATO PATRIMONIALE / Attivo",null,null,null,null,null,null,null,null,null,null,null,null,null,null,null,null,null,null,null,null,null,null,null,null,"Sommario"]
[null,null,{"$f":"CONCATENATE(\"Le differenze e le differenze percentuali sono calcolate rispetto all'esercizio al \",dati_an!B16)","v":"Le differenze e le differenze percentuali sono calcolate rispetto all'esercizio al 31/12/2015"}]
[]
[null,null,null,null,null,{"$f":"dati_an!B16","v":"31/12/2015"},{"$f":"dati_an!B17","v":"31/12/2014"},"Diff.","Diff. %",null,null,{"$f":"dati_an!B18","v":0},"Diff.","Diff. %",null,null,{"$f":"dati_an!B19","v":0},"Diff.","Diff. %",null,null,{"$f":"dati_an!B20","v":0},"Diff.","Diff. %"]
[null,null,{"$f":"s_bil_std!AE3","v":"A)"},{"$f":"s_bil_std!B3","v":"CREDITI VERSO SOCI PER VERSAMENTI ANCORA DOVUTI"},1,{"$f":"SUM(F6:F7)","v":0},{"$f":"SUM(G6:G7)","v":0},{"$f":"$F5-G5","v":0},{"$f":"IF(G5<>0,H5/G5,\"\")","v":""},null,null,{"$f":"SUM(L6:L7)","v":0},{"$f":"$F5-L5","v":0},{"$f":"IF(L5<>0,M5/L5,\"\")","v":""},null,null,{"$f":"SUM(Q6:Q7)","v":0},{"$f":"$F5-Q5","v":0},{"$f":"IF(Q5<>0,R5/Q5,\"\")","v":""},null,null,{"$f":"SUM(V6:V7)","v":0},{"$f":"$F5-V5","v":0},{"$f":"IF(V5<>0,W5/V5,\"\")","v":""}]
[null,null,{"$f":"s_bil_std!AE4","v":" "},{"$f":"s_bil_std!B4","v":"Versamenti non ancora richiamati"},3,{"$f":"s_bil_std!Y4","v":0},{"$f":"s_bil_std!Z4","v":0},0,"",null,null,{"$f":"s_bil_std!AA4","v":0},0,"",null,null,{"$f":"s_bil_std!AB4","v":0},0,"",null,null,{"$f":"s_bil_std!AC4","v":0},0,""]
[null,null,{"$f":"s_bil_std!AE5","v":" "},{"$f":"s_bil_std!B5","v":"Versamenti già richiamati"},3,{"$f":"s_bil_std!Y5","v":0},{"$f":"s_bil_std!Z5","v":0},0,"",null,null,{"$f":"s_bil_std!AA5","v":0},0,"",null,null,{"$f":"s_bil_std!AB5","v":0},0,"",null,null,{"$f":"s_bil_std!AC5","v":0},0,""]
[null,null,{"$f":"s_bil_std!AE6","v":"B)"},{"$f":"s_bil_std!B6","v":"IMMOBILIZZAZIONI"},1,{"$f":"SUM(F9,F13,F17)","v":0},{"$f":"SUM(G9,G13,G17)","v":0},0,"",null,null,{"$f":"SUM(L9,L13,L17)","v":0},0,"",null,null,{"$f":"SUM(Q9,Q13,Q17)","v":0},0,"",null,null,{"$f":"SUM(V9,V13,V17)","v":0},0,""]
[null,null,{"$f":"s_bil_std!AE7","v":"I -"},{"$f":"s_bil_std!B7","v":"IMMOBILIZZAZIONI IMMATERIALI"},3,{"$f":"SUM(F10:F12)","v":0},{"$f":"SUM(G10:G12)","v":0},0,"",null,null,{"$f":"SUM(L10:L12)","v":0},0,"",null,null,{"$f":"SUM(Q10:Q12)","v":0},0,"",null,null,{"$f":"SUM(V10:V12)","v":0},0,""]
[null,null,null,{"$f":"s_bil_std!B16","v":"Immobilizzazioni immateriali lorde"},3,{"$f":"s_bil_std!Y16","v":0},{"$f":"s_bil_std!Z16","v":0},0,"",null,null,{"$f":"s_bil_std!AA16","v":0},0,"",null,null,{"$f":"s_bil_std!AB16","v":0},0,"",null,null,{"$f":"s_bil_std!AC16","v":0},0,""]
[null,null,null,{"$f":"s_bil_std!B17","v":"Fondi Ammortam. immobili. immateriali"},3,{"$f":"s_bil_std!Y17","v":0},{"$f":"s_bil_std!Z17","v":0},0,"",null,null,{"$f":"s_bil_std!AA17","v":0},0,"",null,null,{"$f":"s_bil_std!AB17","v":0},0,"",null,null,{"$f":"s_bil_std!AC17","v":0},0,""]
[null,null,null,{"$f":"s_bil_std!B18","v":"Fondi svalutazione immobil. immateriali"},3,{"$f":"s_bil_std!Y18","v":0},{"$f":"s_bil_std!Z18","v":0},0,"",null,null,{"$f":"s_bil_std!AA18","v":0},0,"",null,null,{"$f":"s_bil_std!AB18","v":0},0,"",null,null,{"$f":"s_bil_std!AC18","v":0},0,""]
[null,null,{"$f":"s_bil_std!AE19","v":"II -"},{"$f":"s_bil_std!B19","v":"IMMOBILIZZAZIONI MATERIALI"},3,{"$f":"SUM(F14:F16)","v":0},{"$f":"SUM(G14:G16)","v":0},0,"",null,null,{"$f":"SUM(L14:L16)","v":0},0,"",null,null,{"$f":"SUM(Q14:Q16)","v":0},0,"",null,null,{"$f":"SUM(V14:V16)","v":0},0,""]
[null,null,null,{"$f":"s_bil_std!B25","v":"Immobilizzazioni materiali lorde"},3,{"$f":"s_bil_std!Y25","v":0},{"$f":"s_bil_std!Z25","v":0},0,"",null,null,{"$f":"s_bil_std!AA25","v":0},0,"",null,null,{"$f":"s_bil_std!AB25","v":0},0,"",null,null,{"$f":"s_bil_std!AC25","v":0},0,""]
[null,null,null,{"$f":"s_bil_std!B26","v":"Fondi Ammort. immobil. materiali"},3,{"$f":"s_bil_std!Y26","v":0},{"$f":"s_bil_std!Z26","v":0},0,"",null,null,{"$f":"s_bil_std!AA26","v":0},0,"",null,null,{"$f":"s_bil_std!AB26","v":0},0,"",null,null,{"$f":"s_bil_std!AC26","v":0},0,""]
[null,null,null,{"$f":"s_bil_std!B27","v":"Fondi svalutazione immobil.materiali"},3,{"$f":"s_bil_std!Y27","v":0},{"$f":"s_bil_std!Z27","v":0},0,"",null,null,{"$f":"s_bil_std!AA27","v":0},0,"",null,null,{"$f":"s_bil_std!AB27","v":0},0,"",null,null,{"$f":"s_bil_std!AC27","v":0},0,""]
[null,null,{"$f":"s_bil_std!AE28","v":"III -"},{"$f":"s_bil_std!B28","v":"IMMOBILIZZAZIONI FINANZIARIE"},3,{"$f":"s_bil_std!Y28","v":0},{"$f":"s_bil_std!Z28","v":0},0,"",null,null,{"$f":"s_bil_std!AA28","v":0},0,"",null,null,{"$f":"s_bil_std!AB28","v":0},0,"",null,null,{"$f":"s_bil_std!AC28","v":0},0,""]
[null,null,{"$f":"s_bil_std!AE49","v":"C)"},{"$f":"s_bil_std!B49","v":"ATTIVO CIRCOLANTE"},1,{"$f":"SUM(F19,F20,F23,F24)","v":0},{"$f":"SUM(G19,G20,G23,G24)","v":0},0,"",null,null,{"$f":"SUM(L19,L20,L23,L24)","v":0},0,"",null,null,{"$f":"SUM(Q19,Q20,Q23,Q24)","v":0},0,"",null,null,{"$f":"SUM(V19,V20,V23,V24)","v":0},0,""]
[null,null,{"$f":"s_bil_std!AE50","v":"I - "},{"$f":"s_bil_std!B50","v":"RIMANENZE"},3,{"$f":"s_bil_std!Y50","v":0},{"$f":"s_bil_std!Z50","v":0},0,"",null,null,{"$f":"s_bil_std!AA50","v":0},0,"",null,null,{"$f":"s_bil_std!AB50","v":0},0,"",null,null,{"$f":"s_bil_std!AC50","v":0},0,""]
[null,null,{"$f":"s_bil_std!AE56","v":"II -"},{"$f":"s_bil_std!B56","v":"CREDITI CHE NON COSTITUISCONO IMMOBILIZZAZIONI"},3,{"$f":"s_bil_std!Y56","v":0},{"$f":"s_bil_std!Z56","v":0},0,"",null,null,{"$f":"s_bil_std!AA56","v":0},0,"",null,null,{"$f":"s_bil_std!AB56","v":0},0,"",null,null,{"$f":"s_bil_std!AC56","v":0},0,""]
[null,null,null,{"$f":"s_bil_std!B57","v":"Entro l'esercizio successivo"},null,{"$f":"s_bil_std!Y57","v":0},{"$f":"s_bil_std!Z57","v":0},0,"",null,null,{"$f":"s_bil_std!AA57","v":0},0,"",null,null,{"$f":"s_bil_std!AB57","v":0},0,"",null,null,{"$f":"s_bil_std!AC57","v":0},0,""]
[null,null,null,{"$f":"s_bil_std!B58","v":"Oltre l'esercizio successivo"},null,{"$f":"s_bil_std!Y58","v":0},{"$f":"s_bil_std!Z58","v":0},0,"",null,null,{"$f":"s_bil_std!AA58","v":0},0,"",null,null,{"$f":"s_bil_std!AB58","v":0},0,"",null,null,{"$f":"s_bil_std!AC58","v":0},0,""]
[null,null,{"$f":"s_bil_std!AE80","v":"III -"},{"$f":"s_bil_std!B80","v":"ATTIVITA' FINANZIARIE CHE NON COSTITUISCONO IMMOBILIZZAZIONE"},3,{"$f":"s_bil_std!Y80","v":0},{"$f":"s_bil_std!Z80","v":0},0,"",null,null,{"$f":"s_bil_std!AA80","v":0},0,"",null,null,{"$f":"s_bil_std!AB80","v":0},0,"",null,null,{"$f":"s_bil_std!AC80","v":0},0,""]
[null,null,{"$f":"s_bil_std!AE87","v":"IV -"},{"$f":"s_bil_std!B87","v":"DISPONIBILITA' LIQUIDE"},3,{"$f":"s_bil_std!Y87","v":0},{"$f":"s_bil_std!Z87","v":0},0,"",null,null,{"$f":"s_bil_std!AA87","v":0},0,"",null,null,{"$f":"s_bil_std!AB87","v":0},0,"",null,null,{"$f":"s_bil_std!AC87","v":0},0,""]
[null,null,{"$f":"s_bil_std!AE91","v":"D)"},{"$f":"s_bil_std!B91","v":"RATEI E RISCONTI ATTIVI"},1,{"$f":"SUM(F26:F27)","v":0},{"$f":"SUM(G26:G27)","v":0},0,"",null,null,{"$f":"SUM(L26:L27)","v":0},0,"",null,null,{"$f":"SUM(Q26:Q27)","v":0},0,"",null,null,{"$f":"SUM(V26:V27)","v":0},0,""]
[null,null,{"$f":"s_bil_std!AE92","v":" "},{"$f":"s_bil_std!B92","v":"Disaggio su prestiti"},3,{"$f":"s_bil_std!Y92","v":0},{"$f":"s_bil_std!Z92","v":0},0,"",null,null,{"$f":"s_bil_std!AA92","v":0},0,"",null,null,{"$f":"s_bil_std!AB92","v":0},0,"",null,null,{"$f":"s_bil_std!AC92","v":0},0,""]
[null,null,{"$f":"s_bil_std!AE93","v":" "},{"$f":"s_bil_std!B93","v":"Altri ratei e risconti attivi"},3,{"$f":"s_bil_std!Y93","v":0},{"$f":"s_bil_std!Z93","v":0},0,"",null,null,{"$f":"s_bil_std!AA93","v":0},0,"",null,null,{"$f":"s_bil_std!AB93","v":0},0,"",null,null,{"$f":"s_bil_std!AC93","v":0},0,""]
[null,null,{"$f":"s_bil_std!AE94","v":" "},{"$f":"s_bil_std!B94","v":"TOTALE ATTIVO"},1,{"$f":"SUM(F5,F8,F18,F25)","v":0},{"$f":"SUM(G5,G8,G18,G25)","v":0},0,"",null,null,{"$f":"SUM(L5,L8,L18,L25)","v":0},0,"",null,null,{"$f":"SUM(Q5,Q8,Q18,Q25)","v":0},0,"",null,null,{"$f":"SUM(V5,V8,V18,V25)","v":0},0,""]
[]
[null,null,"STATO PATRIMONIALE / Passivo"]
[null,null,{"$f":"CONCATENATE(\"Le differenze e le differenze percentuali sono calcolate rispetto all'esercizio al \",dati_an!B16)","v":"Le differenze e le differenze percentuali sono calcolate rispetto all'esercizio al 31/12/2015"}]
[]
[null,null,null,null,null,{"$f":"F4","v":"31/12/2015"},{"$f":"G4","v":"31/12/2014"},"Diff.","Diff. %",null,null,{"$f":"L4","v":0},"Diff.","Diff. %",null,null,{"$f":"Q4","v":0},"Diff.","Diff. %",null,null,{"$f":"V4","v":0},"Diff.","Diff. %"]
[null,null,{"$f":"s_bil_std!AE96","v":"A)"},{"$f":"s_bil_std!B96","v":"PATRIMONIO NETTO"},1,{"$f":"SUM(F35:F41,F61:F62)","v":92654},{"$f":"SUM(G35:G41,G61:G62)","v":92110},{"$f":"$F34-G34","v":544},{"$f":"IF(G34<>0,H34/G34,\"\")","v":5.9059819780696993E-3},null,null,{"$f":"SUM(L35:L41,L61:L62)","v":0},{"$f":"$F34-L34","v":92654},{"$f":"IF(L34<>0,M34/L34,\"\")","v":""},null,null,{"$f":"SUM(Q35:Q41,Q61:Q62)","v":0},{"$f":"$F34-Q34","v":92654},{"$f":"IF(Q34<>0,R34/Q34,\"\")","v":""},null,null,{"$f":"SUM(V35:V41,V61:V62)","v":0},{"$f":"$F34-V34","v":92654},{"$f":"IF(V34<>0,W34/V34,\"\")","v":""}]
[null,null,{"$f":"s_bil_std!AE97","v":"I -"},{"$f":"s_bil_std!B97","v":"Capitale"},3,{"$f":"s_bil_std!Y97","v":20800},{"$f":"s_bil_std!Z97","v":20800},0,0,null,null,{"$f":"s_bil_std!AA97","v":0},20800,"",null,null,{"$f":"s_bil_std!AB97","v":0},20800,"",null,null,{"$f":"s_bil_std!AC97","v":0},20800,""]
[null,null,{"$f":"s_bil_std!AE98","v":"II -"},{"$f":"s_bil_std!B98","v":"Riserva da sopraprezzo delle azioni"},3,{"$f":"s_bil_std!Y98","v":0},{"$f":"s_bil_std!Z98","v":0},0,"",null,null,{"$f":"s_bil_std!AA98","v":0},0,"",null,null,{"$f":"s_bil_std!AB98","v":0},0,"",null,null,{"$f":"s_bil_std!AC98","v":0},0,""]
[null,null,{"$f":"s_bil_std!AE99","v":"III -"},{"$f":"s_bil_std!B99","v":"Riserve di rivalutazione"},3,{"$f":"s_bil_std!Y99","v":0},{"$f":"s_bil_std!Z99","v":0},0,"",null,null,{"$f":"s_bil_std!AA99","v":0},0,"",null,null,{"$f":"s_bil_std!AB99","v":0},0,"",null,null,{"$f":"s_bil_std!AC99","v":0},0,""]
[null,null,{"$f":"s_bil_std!AE100","v":"IV -"},{"$f":"s_bil_std!B100","v":"Riserva legale"},3,{"$f":"s_bil_std!Y100","v":7486},{"$f":"s_bil_std!Z100","v":7486},0,0,null,null,{"$f":"s_bil_std!AA100","v":0},7486,"",null,null,{"$f":"s_bil_std!AB100","v":0},7486,"",null,null,{"$f":"s_bil_std!AC100","v":0},7486,""]
[null,null,{"$f":"s_bil_std!AE101","v":"V -"},{"$f":"s_bil_std!B101","v":"Riserve statutarie"},3,{"$f":"s_bil_std!Y101","v":0},{"$f":"s_bil_std!Z101","v":0},0,"",null,null,{"$f":"s_bil_std!AA101","v":0},0,"",null,null,{"$f":"s_bil_std!AB101","v":0},0,"",null,null,{"$f":"s_bil_std!AC101","v":0},0,""]
[null,null,{"$f":"s_bil_std!AE102","v":"VI -"},{"$f":"s_bil_std!B102","v":"Riserva per azioni proprie in portafoglio"},3,{"$f":"s_bil_std!Y102","v":0},{"$f":"s_bil_std!Z102","v":0},0,"",null,null,{"$f":"s_bil_std!AA102","v":0},0,"",null,null,{"$f":"s_bil_std!AB102","v":0},0,"",null,null,{"$f":"s_bil_std!AC102","v":0},0,""]
[null,null,{"$f":"s_bil_std!AE103","v":"VII -"},{"$f":"s_bil_std!B103","v":"Altre riserve"},3,{"$f":"SUM(F42:F60)","v":1},{"$f":"SUM(G42:G60)","v":0},1,"",null,null,{"$f":"SUM(L42:L60)","v":0},1,"",null,null,{"$f":"SUM(Q42:Q60)","v":0},1,"",null,null,{"$f":"SUM(V42:V60)","v":0},1,""]
[null,null,{"$f":"s_bil_std!AE104","v":" "},{"$f":"s_bil_std!B104","v":"Riserva straordinaria"},3,{"$f":"s_bil_std!Y104","v":0},{"$f":"s_bil_std!Z104","v":0},0,"",null,null,{"$f":"s_bil_std!AA104","v":0},0,"",null,null,{"$f":"s_bil_std!AB104","v":0},0,"",null,null,{"$f":"s_bil_std!AC104","v":0},0,""]
[null,null,{"$f":"s_bil_std!AE105","v":" "},{"$f":"s_bil_std!B105","v":"Riserva per rinnovamento impianti e macchinari"},3,{"$f":"s_bil_std!Y105","v":0},{"$f":"s_bil_std!Z105","v":0},0,"",null,null,{"$f":"s_bil_std!AA105","v":0},0,"",null,null,{"$f":"s_bil_std!AB105","v":0},0,"",null,null,{"$f":"s_bil_std!AC105","v":0},0,""]
[null,null,{"$f":"s_bil_std!AE106","v":" "},{"$f":"s_bil_std!B106","v":"Riserva ammortamento anticipato"},3,{"$f":"s_bil_std!Y106","v":0},{"$f":"s_bil_std!Z106","v":0},0,"",null,null,{"$f":"s_bil_std!AA106","v":0},0,"",null,null,{"$f":"s_bil_std!AB106","v":0},0,"",null,null,{"$f":"s_bil_std!AC106","v":0},0,""]
[null,null,{"$f":"s_bil_std!AE107","v":" "},{"$f":"s_bil_std!B107","v":"Riserva per acquisto azioni proprie"},3,{"$f":"s_bil_std!Y107","v":0},{"$f":"s_bil_std!Z107","v":0},0,"",null,null,{"$f":"s_bil_std!AA107","v":0},0,"",null,null,{"$f":"s_bil_std!AB107","v":0},0,"",null,null,{"$f":"s_bil_std!AC107","v":0},0,""]
[null,null,{"$f":"s_bil_std!AE108","v":" "},{"$f":"s_bil_std!B108","v":"Riserva da deroghe ex. art. 2423 CC"},3,{"$f":"s_bil_std!Y108","v":0},{"$f":"s_bil_std!Z108","v":0},0,"",null,null,{"$f":"s_bil_std!AA108","v":0},0,"",null,null,{"$f":"s_bil_std!AB108","v":0},0,"",null,null,{"$f":"s_bil_std!AC108","v":0},0,""]
[null,null,{"$f":"s_bil_std!AE109","v":" "},{"$f":"s_bil_std!B109","v":"Riserva per azioni delle società controllante"},3,{"$f":"s_bil_std!Y109","v":0},{"$f":"s_bil_std!Z109","v":0},0,"",null,null,{"$f":"s_bil_std!AA109","v":0},0,"",null,null,{"$f":"s_bil_std!AB109","v":0},0,"",null,null,{"$f":"s_bil_std!AC109","v":0},0,""]
[null,null,{"$f":"s_bil_std!AE110","v":" "},{"$f":"s_bil_std!B110","v":"Riserva non distribuibile da rivalutazione delle partecipazioni"},3,{"$f":"s_bil_std!Y110","v":0},{"$f":"s_bil_std!Z110","v":0},0,"",null,null,{"$f":"s_bil_std!AA110","v":0},0,"",null,null,{"$f":"s_bil_std!AB110","v":0},0,"",null,null,{"$f":"s_bil_std!AC110","v":0},0,""]
[null,null,{"$f":"s_bil_std!AE111","v":" "},{"$f":"s_bil_std!B111","v":"Versamenti in conto aumento di capitale"},3,{"$f":"s_bil_std!Y111","v":0},{"$f":"s_bil_std!Z111","v":0},0,"",null,null,{"$f":"s_bil_std!AA111","v":0},0,"",null,null,{"$f":"s_bil_std!AB111","v":0},0,"",null,null,{"$f":"s_bil_std!AC111","v":0},0,""]
[null,null,{"$f":"s_bil_std!AE112","v":" "},{"$f":"s_bil_std!B112","v":"Versamente in conto futuro aumento di capitale"},3,{"$f":"s_bil_std!Y112","v":0},{"$f":"s_bil_std!Z112","v":0},0,"",null,null,{"$f":"s_bil_std!AA112","v":0},0,"",null,null,{"$f":"s_bil_std!AB112","v":0},0,"",null,null,{"$f":"s_bil_std!AC112","v":0},0,""]
[null,null,{"$f":"s_bil_std!AE113","v":" "},{"$f":"s_bil_std!B113","v":"Versamenti in conto capitale"},3,{"$f":"s_bil_std!Y113","v":0},{"$f":"s_bil_std!Z113","v":0},0,"",null,null,{"$f":"s_bil_std!AA113","v":0},0,"",null,null,{"$f":"s_bil_std!AB113","v":0},0,"",null,null,{"$f":"s_bil_std!AC113","v":0},0,""]
[null,null,null,{"$f":"s_bil_std!B114","v":"Versamenti a copertura perdite"},3,{"$f":"s_bil_std!Y114","v":0},{"$f":"s_bil_std!Z114","v":0},0,"",null,null,{"$f":"s_bil_std!AA114","v":0},0,"",null,null,{"$f":"s_bil_std!AB114","v":0},0,"",null,null,{"$f":"s_bil_std!AC114","v":0},0,""]
[null,null,{"$f":"s_bil_std!AE115","v":" "},{"$f":"s_bil_std!B115","v":"Riserva da riduzione capitale sociale"},3,{"$f":"s_bil_std!Y115","v":0},{"$f":"s_bil_std!Z115","v":0},0,"",null,null,{"$f":"s_bil_std!AA115","v":0},0,"",null,null,{"$f":"s_bil_std!AB115","v":0},0,"",null,null,{"$f":"s_bil_std!AC115","v":0},0,""]
[null,null,{"$f":"s_bil_std!AE116","v":" "},{"$f":"s_bil_std!B116","v":"Riserva avanzo di fusione"},3,{"$f":"s_bil_std!Y116","v":0},{"$f":"s_bil_std!Z116","v":0},0,"",null,null,{"$f":"s_bil_std!AA116","v":0},0,"",null,null,{"$f":"s_bil_std!AB116","v":0},0,"",null,null,{"$f":"s_bil_std!AC116","v":0},0,""]
[null,null,{"$f":"s_bil_std!AE117","v":" "},{"$f":"s_bil_std!B117","v":"Riserva contributi in conto capitale"},3,{"$f":"s_bil_std!Y117","v":0},{"$f":"s_bil_std!Z117","v":0},0,"",null,null,{"$f":"s_bil_std!AA117","v":0},0,"",null,null,{"$f":"s_bil_std!AB117","v":0},0,"",null,null,{"$f":"s_bil_std!AC117","v":0},0,""]
[null,null,{"$f":"s_bil_std!AE118","v":" "},{"$f":"s_bil_std!B118","v":"Riserva da conversione in Euro"},3,{"$f":"s_bil_std!Y118","v":0},{"$f":"s_bil_std!Z118","v":0},0,"",null,null,{"$f":"s_bil_std!AA118","v":0},0,"",null,null,{"$f":"s_bil_std!AB118","v":0},0,"",null,null,{"$f":"s_bil_std!AC118","v":0},0,""]
[null,null,{"$f":"s_bil_std!AE119","v":" "},{"$f":"s_bil_std!B119","v":"Riserva da condono fiscale"},3,{"$f":"s_bil_std!Y119","v":0},{"$f":"s_bil_std!Z119","v":0},0,"",null,null,{"$f":"s_bil_std!AA119","v":0},0,"",null,null,{"$f":"s_bil_std!AB119","v":0},0,"",null,null,{"$f":"s_bil_std!AC119","v":0},0,""]
[null,null,{"$f":"s_bil_std!AE120","v":" "},{"$f":"s_bil_std!B120","v":"Riserva per utili su cambi"},3,{"$f":"s_bil_std!Y120","v":0},{"$f":"s_bil_std!Z120","v":0},0,"",null,null,{"$f":"s_bil_std!AA120","v":0},0,"",null,null,{"$f":"s_bil_std!AB120","v":0},0,"",null,null,{"$f":"s_bil_std!AC120","v":0},0,""]
[null,null,{"$f":"s_bil_std!AE121","v":" "},{"$f":"s_bil_std!B121","v":"Riserva per differenza da arrotondamento all'unità di euro"},3,{"$f":"s_bil_std!Y121","v":0},{"$f":"s_bil_std!Z121","v":0},0,"",null,null,{"$f":"s_bil_std!AA121","v":0},0,"",null,null,{"$f":"s_bil_std!AB121","v":0},0,"",null,null,{"$f":"s_bil_std!AC121","v":0},0,""]
[null,null,{"$f":"s_bil_std!AE122","v":" "},{"$f":"s_bil_std!B122","v":"Varie altre riserve"},3,{"$f":"s_bil_std!Y122","v":1},{"$f":"s_bil_std!Z122","v":0},1,"",null,null,{"$f":"s_bil_std!AA122","v":0},1,"",null,null,{"$f":"s_bil_std!AB122","v":0},1,"",null,null,{"$f":"s_bil_std!AC122","v":0},1,""]
[null,null,{"$f":"s_bil_std!AE125","v":"VIII -"},{"$f":"s_bil_std!B125","v":"Utili (perdite) portati a nuovo"},3,{"$f":"s_bil_std!Y125","v":64367},{"$f":"s_bil_std!Z125","v":63824},543,8.5077713712709956E-3,null,null,{"$f":"s_bil_std!AA125","v":0},64367,"",null,null,{"$f":"s_bil_std!AB125","v":0},64367,"",null,null,{"$f":"s_bil_std!AC125","v":0},64367,""]
[null,null,{"$f":"s_bil_std!AE126","v":"IX -"},{"$f":"s_bil_std!B126","v":"Utile (perdita) dell'esercizio"},3,{"$f":"s_bil_std!Y126","v":0},{"$f":"s_bil_std!Z126","v":0},0,"",null,null,{"$f":"s_bil_std!AA126","v":0},0,"",null,null,{"$f":"s_bil_std!AB126","v":0},0,"",null,null,{"$f":"s_bil_std!AC126","v":0},0,""]
[null,null,{"$f":"s_bil_std!AE131","v":"B)"},{"$f":"s_bil_std!B131","v":"FONDI PER RISCHI E ONERI"},1,{"$f":"s_bil_std!Y131","v":0},{"$f":"s_bil_std!Z131","v":0},0,"",null,null,{"$f":"s_bil_std!AA131","v":0},0,"",null,null,{"$f":"s_bil_std!AB131","v":0},0,"",null,null,{"$f":"s_bil_std!AC131","v":0},0,""]
[null,null,{"$f":"s_bil_std!AE136","v":"C)"},{"$f":"s_bil_std!B136","v":"TRATTAMENTO DI FINE RAPPORTO DI LAVORO"},1,{"$f":"s_bil_std!Y136","v":0},{"$f":"s_bil_std!Z136","v":0},0,"",null,null,{"$f":"s_bil_std!AA136","v":0},0,"",null,null,{"$f":"s_bil_std!AB136","v":0},0,"",null,null,{"$f":"s_bil_std!AC136","v":0},0,""]
[null,null,{"$f":"s_bil_std!AE137","v":"D)"},{"$f":"s_bil_std!B137","v":"DEBITI"},1,{"$f":"s_bil_std!Y137","v":0},{"$f":"s_bil_std!Z137","v":0},0,"",null,null,{"$f":"s_bil_std!AA137","v":0},0,"",null,null,{"$f":"s_bil_std!AB137","v":0},0,"",null,null,{"$f":"s_bil_std!AC137","v":0},0,""]
[null,null,null,{"$f":"s_bil_std!B138","v":"Entro l'esercizio successivo"},null,{"$f":"s_bil_std!Y138","v":0},{"$f":"s_bil_std!Z138","v":0},0,"",null,null,{"$f":"s_bil_std!AA138","v":0},0,"",null,null,{"$f":"s_bil_std!AB138","v":0},0,"",null,null,{"$f":"s_bil_std!AC138","v":0},0,""]
[null,null,null,{"$f":"s_bil_std!B139","v":"Oltre l'esercizio successivo"},null,{"$f":"s_bil_std!Y139","v":0},{"$f":"s_bil_std!Z139","v":0},0,"",null,null,{"$f":"s_bil_std!AA139","v":0},0,"",null,null,{"$f":"s_bil_std!AB139","v":0},0,"",null,null,{"$f":"s_bil_std!AC139","v":0},0,""]
[null,null,{"$f":"s_bil_std!AE182","v":"E)"},{"$f":"s_bil_std!B182","v":"RATEI E RISCONTI PASSIVI"},1,{"$f":"SUM(F69:F70)","v":0},{"$f":"SUM(G69:G70)","v":0},0,"",null,null,{"$f":"SUM(L69:L70)","v":0},0,"",null,null,{"$f":"SUM(Q69:Q70)","v":0},0,"",null,null,{"$f":"SUM(V69:V70)","v":0},0,""]
[null,null,{"$f":"s_bil_std!AE183","v":" "},{"$f":"s_bil_std!B183","v":"Aggio su prestiti"},3,{"$f":"s_bil_std!Y183","v":0},{"$f":"s_bil_std!Z183","v":0},0,"",null,null,{"$f":"s_bil_std!AA183","v":0},0,"",null,null,{"$f":"s_bil_std!AB183","v":0},0,"",null,null,{"$f":"s_bil_std!AC183","v":0},0,""]
[null,null,{"$f":"s_bil_std!AE184","v":" "},{"$f":"s_bil_std!B184","v":"Altri ratei e risconti passivi"},3,{"$f":"s_bil_std!Y184","v":0},{"$f":"s_bil_std!Z184","v":0},0,"",null,null,{"$f":"s_bil_std!AA184","v":0},0,"",null,null,{"$f":"s_bil_std!AB184","v":0},0,"",null,null,{"$f":"s_bil_std!AC184","v":0},0,""]
[null,null,{"$f":"s_bil_std!AE185","v":" "},{"$f":"s_bil_std!B185","v":"TOTALE PASSIVO"},1,{"$f":"SUM(F34,F63,F64,F65,F68)","v":92654},{"$f":"SUM(G34,G63,G64,G65,G68)","v":92110},544,5.9059819780696993E-3,null,null,{"$f":"SUM(L34,L63,L64,L65,L68)","v":0},92654,"",null,null,{"$f":"SUM(Q34,Q63,Q64,Q65,Q68)","v":0},92654,"",null,null,{"$f":"SUM(V34,V63,V64,V65,V68)","v":0},92654,""]

{"sheet":"convalida_dati","index":12,"n_rows":29,"n_cols":14,"rows_kept":29,"cut":false,"hidden":false,"merged":[[17,1,17,13]]}
[]
[]
[null,"ID","Cliente","Condizioni","rif.","Documento","Data","#","Stato Invio","Importo","Stato Pagamento","Data Incasso","CK1","CK2"]
[null,1,"BIANCHI",{"$f":"+VLOOKUP(C4,archivio_dati!$C$4:$D$8,2)","v":0},"Cristina","fattura","2017-02-20",20,"inviato",7167.99999999999,"da saldare",null,null,{"$f":"+IF(OR(AND(K4=\"da saldare\",L4<>\"\"),AND(K4=\"saldato\",L4=\"\")),\"problema\",\"\")","v":""}]
[null,2,"BIANCHI",{"$f":"+VLOOKUP(C5,archivio_dati!$C$4:$D$8,2)","v":0},"Lorenzo","avviso di parcella","2017-02-23","25","inviato",6367.6666666666597,"da saldare",null,{"$f":"+IF(K5=\"da saldare\",1,0)","v":1},{"$f":"+IF(OR(AND(K5=\"da saldare\",L5<>\"\"),AND(K5=\"saldato\",L5=\"\")),\"problema\",\"\")","v":""}]
[null,3,"MACCHI",{"$f":"+VLOOKUP(C6,archivio_dati!$C$4:$D$8,2)","v":60},"Cristina","fattura","2017-03-01","27","da inviare",1500,"da saldare","2017-03-01",1,"problema"]
[null,4,"ROSSI",{"$f":"+VLOOKUP(C7,archivio_dati!$C$4:$D$8,2)","v":90},"Veronica","avviso di parcella","2017-03-01","32","inviato",4767,"saldato",null,0,"problema"]
[null,5,"BIANCHI",{"$f":"+VLOOKUP(C8,archivio_dati!$C$4:$D$8,2)","v":0},"Lorenzo","fattura","2017-03-02","36","inviato",2500,"da saldare","2017-03-02",1,"problema"]
[null,6,"BIANCHI",{"$f":"+VLOOKUP(C9,archivio_dati!$C$4:$D$8,2)","v":0},"Lorenzo","avviso di parcella","2017-03-03","38","da inviare",3100,"da saldare","2017-03-03",1,"problema"]
[null,7,"CHIARI",{"$f":"+VLOOKUP(C10,archivio_dati!$C$4:$D$8,2)","v":30},"Cristina","fattura","2017-03-06","42","inviato",5566.6666666666697,"saldato",null,0,"problema"]
[null,8,"MACCHI",{"$f":"+VLOOKUP(C11,archivio_dati!$C$4:$D$8,2)","v":60},"Veronica","avviso di parcella","2017-03-07","45","inviato",6366.6666666666697,"da saldare",null,1,""]
[null,9,"ROSSI",{"$f":"+VLOOKUP(C12,archivio_dati!$C$4:$D$8,2)","v":90},"Lorenzo","fattura","2017-03-09","52","da inviare",7966.6666666666697,"saldato","2017-03-09",0,""]
[null,10,"VERDI",{"$f":"+VLOOKUP(C13,archivio_dati!$C$4:$D$8,2)","v":120},"Cristina","avviso di parcella","2017-03-10","54","inviato",8766.6666666666697,"saldato",null,0,"problema"]
[null,11,"BIANCHI",{"$f":"+VLOOKUP(C14,archivio_dati!$C$4:$D$8,2)","v":0},"Roberto","fattura","2017-03-11","58","inviato",9567,"da saldare","2017-03-11",1,"problema"]
[null,12,"CHIARI",{"$f":"+VLOOKUP(C15,archivio_dati!$C$4:$D$8,2)","v":30},"Veronica","avviso di parcella","2017-03-13","62","da inviare",11166.666666666701,"da saldare",null,1,""]
[null,13,"ROSSI",{"$f":"+VLOOKUP(C16,archivio_dati!$C$4:$D$8,2)","v":90},"Cristina","fattura","2017-03-21","64","inviato",5567.3333333333303,"saldato",null,0,"problema"]
[null,14,"VERDI",{"$f":"+VLOOKUP(C17,archivio_dati!$C$4:$D$8,2)","v":120},"Veronica","avviso di parcella","2017-06-01","72","inviato",10366.666666666701,"da saldare","2017-06-01",1,"problema"]
[]
[]
[]
[]
[]
[]
[]
[]
[]
[]
[]
[null,null,null,"\\"]

{"sheet":"archivio_dati","index":13,"n_rows":8,"n_cols":14,"rows_kept":8,"cut":false,"hidden":false,"merged":[]}
[]
[null,"Elenchi (da riportare preferibilmente su altro foglio):"]
[null,"ID","Cliente","Condizioni","rif.","Documento","Data","#","Stato Invio","Importo","Stato Pagamento","Data Incasso","CK1","CK2"]
[null,null,"BIANCHI",0,"Cristina","fattura",null,null,"inviato",null,"saldato"]
[null,null,"CHIARI",30,"Lorenzo","avviso di parcella",null,null,"da inviare",null,"da saldare"]
[null,null,"MACCHI",60,"Roberto"]
[null,null,"ROSSI",90,"Veronica"]
[null,null,"VERDI",120]

{"sheet":"filtri","index":14,"n_rows":20,"n_cols":14,"rows_kept":20,"cut":false,"hidden":false,"merged":[]}
[]
[null,"ID","Cliente","Condizioni","rif.","Documento","Data","#","Stato Invio","Importo","Stato Pagamento","Data Incasso","CK1","CK2"]
[]
[]
[]
[null,"ID","Cliente","Condizioni","rif.","Documento","Data","#","Stato Invio","Importo","Stato Pagamento","Data Incasso","CK1","CK2"]
[null,1,"BIANCHI",{"$f":"+VLOOKUP(C7,archivio_dati!$C$4:$D$8,2)","v":0},"Cristina","fattura","2017-02-20",20,"inviato",7167.99999999999,"da saldare",null,null,{"$f":"+IF(OR(AND(K7=\"da saldare\",L7<>\"\"),AND(K7=\"saldato\",L7=\"\")),\"problema\",\"\")","v":""}]
[null,2,"CHIARI",{"$f":"+VLOOKUP(C8,archivio_dati!$C$4:$D$8,2)","v":30},"Lorenzo","avviso di parcella","2017-02-23","25","inviato",6367.6666666666597,"da saldare",null,{"$f":"+IF(K8=\"da saldare\",1,0)","v":1},{"$f":"+IF(OR(AND(K8=\"da saldare\",L8<>\"\"),AND(K8=\"saldato\",L8=\"\")),\"problema\",\"\")","v":""}]
[null,3,"MACCHI",{"$f":"+VLOOKUP(C9,archivio_dati!$C$4:$D$8,2)","v":60},"Cristina","fattura","2017-03-01","27","da inviare",1500,"da saldare","2017-03-01",1,"problema"]
[null,4,"ROSSI",{"$f":"+VLOOKUP(C10,archivio_dati!$C$4:$D$8,2)","v":90},"Veronica","avviso di parcella","2017-03-01","32","inviato",4767,"saldato",null,0,"problema"]
[null,5,"BIANCHI",{"$f":"+VLOOKUP(C11,archivio_dati!$C$4:$D$8,2)","v":0},"Lorenzo","fattura","2017-03-02","36","inviato",2500,"da saldare","2017-03-02",1,"problema"]
[null,6,"BIANCHI",{"$f":"+VLOOKUP(C12,archivio_dati!$C$4:$D$8,2)","v":0},"Lorenzo","avviso di parcella","2017-03-03","38","da inviare",3100,"da saldare","2017-03-03",1,"problema"]
[null,7,"CHIARI",{"$f":"+VLOOKUP(C13,archivio_dati!$C$4:$D$8,2)","v":30},"Cristina","fattura","2017-03-06","42","inviato",5566.6666666666697,"saldato",null,0,"problema"]
[null,8,"MACCHI",{"$f":"+VLOOKUP(C14,archivio_dati!$C$4:$D$8,2)","v":60},"Veronica","avviso di parcella","2017-03-07","45","inviato",6366.6666666666697,"da saldare","2017-03-07",1,"problema"]
[null,9,"ROSSI",{"$f":"+VLOOKUP(C15,archivio_dati!$C$4:$D$8,2)","v":90},"Lorenzo","fattura","2017-03-09","52","da inviare",7966.6666666666697,"da saldare","2017-03-09",1,"problema"]
[null,10,"VERDI",{"$f":"+VLOOKUP(C16,archivio_dati!$C$4:$D$8,2)","v":120},"Cristina","avviso di parcella","2017-03-10","54","inviato",8766.6666666666697,"saldato",null,0,"problema"]
[null,11,"BIANCHI",{"$f":"+VLOOKUP(C17,archivio_dati!$C$4:$D$8,2)","v":0},"Roberto","fattura","2017-03-11","58","inviato",9567,"da saldare","2017-03-11",1,"problema"]
[null,12,"CHIARI",{"$f":"+VLOOKUP(C18,archivio_dati!$C$4:$D$8,2)","v":30},"Veronica","avviso di parcella","2017-03-13","62","da inviare",11166.666666666701,"da saldare",null,1,""]
[null,13,"ROSSI",{"$f":"+VLOOKUP(C19,archivio_dati!$C$4:$D$8,2)","v":90},"Cristina","fattura","2017-03-21","64","inviato",5567.3333333333303,"saldato",null,0,"problema"]
[null,14,"VERDI",{"$f":"+VLOOKUP(C20,archivio_dati!$C$4:$D$8,2)","v":120},"Veronica","avviso di parcella","2017-06-01","72","inviato",10366.666666666701,"da saldare","2017-06-01",1,"problema"]

{"sheet":"ricerca_obiettivo","index":15,"n_rows":21,"n_cols":11,"rows_kept":21,"cut":false,"hidden":false,"merged":[]}
[]
[null,"FINANZIAMENTO:",null,null,1020000]
[null,"COSTI FINANZIAMENTO:",null,null,20000]
[null,"TASSO:",null,null,6.110398952647119E-2]
[]
[null,"n°","flusso","(1+i)t",{"$f":"+CONCATENATE(C6,\"/\",D6)","v":"flusso/(1+i)t"},null,"METODOLOGIE","T.I.R.",null,"-","+"]
[null,0,{"$f":"+E2-E3","v":1000000},{"$f":"+(1+$E$4)^B7","v":1},{"$f":"+E2-E3","v":1000000},null,null,null,null,0,10]
[null,"1",-120000,{"$f":"+(1+$E$4)^B8","v":1.0611039895264711},{"$f":"+C8/D8","v":-113089.76423088492},null,"SOSTITUZIONE",6.0999999999999999E-2,null,5,10]
[null,"2",-120000,{"$f":"+(1+$E$4)^B9","v":1.1259416765889934},{"$f":"+C9/D9","v":-106577.45644830949},null,"RICERCA OBIETTIVO",6.1100000000000002E-2,null,5,7.5]
[null,"3",-120000,{"$f":"+(1+$E$4)^B10","v":1.1947412050027046},-100440.16185055603,null,null,null,null,5,6.25]
[null,"4",-120000,1.2677446590800334,-94656.285191594201,null,"FORMULE","T.I.R.",null,6,6.25]
[null,"5",-120000,1.3452089154506994,-89205.474794073263,null,null,null,null,6,6.125]
[null,"6",-120000,1.4274065469313146,-84068.550938049098,null,"FUNZIONE:",{"$f":"+IRR(C7:C19)","v":6.1103989526473779E-2},null,6.05,6.12]
[null,"7",-120000,1.5146267816250221,-79227.438373467594,null,"VALORE ATTUALE",{"$f":"+PV(E4,12,-120000)","v":1000000.0000000137},null,6.0750000000000002,6.12]
[null,"8",-120000,1.6071765206259501,-74665.102718936789,null,"VALORE ATTUALE NETTO",{"$f":"+NPV(E4,C7:C19)","v":-1.3604227341546338E-8}]
[null,"9",-120000,1.7053814179094684,-70365.490522994718]
[null,"10",-120000,1.8095870262080471,-66313.472776966999]
[null,"11",-120000,1.9201600129047018,-62494.791680653354]
[null,"12",-120000,2.0374894502223793,-58896.010473527975]
[null,null,{"$f":"SUM(C8:C19)","v":-1440000},"VA",{"$f":"SUM(E8:E19)","v":-1000000.0000000143}]
[null,null,null,"VAN",{"$f":"+E7+E20","v":-1.4319084584712982E-8}]

{"sheet":"risolutore","index":16,"n_rows":23,"n_cols":14,"rows_kept":23,"cut":false,"hidden":false,"merged":[]}
[]
[]
[]
[null,null," VOCI ",null,"T","%","A","%","B","%","C","%","D","%"]
[null,5000,"Ricavi delle vendite",null,1325142,{"$f":"+E5/$E$7","v":1},1325142,{"$f":"+G5/$E$7","v":1},1325142,{"$f":"+I5/$E$7","v":1},1325142,{"$f":"+K5/$E$7","v":1},1325142,{"$f":"+M5/$E$7","v":1}]
[null,5500,"Delta Rimanenze",null,0,0,0,0,0,0,0,0,0,0]
[null,50,"TOTALE RICAVI","RV",{"$f":"SUM(E5:E6)","v":1325142},1,{"$f":"SUM(G5:G6)","v":1325142},1,{"$f":"SUM(I5:I6)","v":1325142},1,{"$f":"SUM(K5:K6)","v":1325142},1,{"$f":"SUM(M5:M6)","v":1325142},1]
[null,6000,"Costi della produzione",null,975000,0.73577020424980866,975000,0.74,975000,0.74,975000,0.74,975000,0.74]
[null,600,"MATERI PRIME","MP",{"$f":"SUM(E8)","v":975000},0.73577020424980866,{"$f":"SUM(G8)","v":975000},0.73577020424980866,{"$f":"SUM(I8)","v":975000},0.73577020424980866,{"$f":"SUM(K8)","v":975000},0.73577020424980866,{"$f":"SUM(M8)","v":975000},0.73577020424980866]
[null,6100,"COSTI PER SERVIZI",null,20122.673723839085,1.5185296159837275E-2,20122.673723839085,1.5185296159837275E-2,20122.673723839085,1.5185296159837275E-2,20122.673723839085,1.5185296159837275E-2,20122.673723839085,1.5185296159837275E-2]
[null,6110,"COSTO PER IL GODIMENTO…",null,78767.771241672075,5.9441004240807456E-2,78767.771241672075,5.9441004240807456E-2,78767.771241672075,5.9441004240807456E-2,78767.771241672075,5.9441004240807456E-2,78767.771241672075,5.9441004240807456E-2]
[null,6120,"ALTRI COSTI",null,187015.4193471765,0.14112858799070327,187015.4193471765,0.14112858799070327,187015.4193471765,0.14112858799070327,187015.4193471765,0.14112858799070327,187015.4193471765,0.14112858799070327]
[null,6130,"AMMORTAMENTI E SVALUTAZIONI…",null,2415.1231729529241,1.8225391489764297E-3,2415.1231729529241,1.8225391489764297E-3,2415.1231729529241,1.8225391489764297E-3,2415.1231729529241,1.8225391489764297E-3,2415.1231729529241,1.8225391489764297E-3]
[null,6140,"ONERI DIVERSI DI GESTIONE",null,145027.00041094437,0.10944261098881808,145027.00041094437,0.10944261098881808,145027.00041094437,0.10944261098881808,145027.00041094437,0.10944261098881808,145027.00041094437,0.10944261098881808]
[null,6100,"COSTI DI STRUTTURA","CS",{"$f":"SUM(E10:E14)","v":433347.98789658491},0.32702003852914246,{"$f":"SUM(G10:G14)","v":433347.98789658491},0.32702003852914246,{"$f":"SUM(I10:I14)","v":433347.98789658491},0.32702003852914246,{"$f":"SUM(K10:K14)","v":433347.98789658491},0.32702003852914246,{"$f":"SUM(M10:M14)","v":433347.98789658491},0.32702003852914246]
[null,6200,"ONERI FINANZIARI E BANCARI",null,81941.859255234289,6.1836285662392625E-2,81941.859255234289,6.1836285662392625E-2,81941.859255234289,6.1836285662392625E-2,81941.859255234289,6.1836285662392625E-2,81941.859255234289,6.1836285662392625E-2]
[null,6210,"ONERI STRAORDINARI",null,0,0,0,0,0,0,0,0,0,0]
[null,620,"ONERI FINANZIARI E STRAORDINARI","OF",{"$f":"SUM(E16:E17)","v":81941.859255234289},6.1836285662392625E-2,{"$f":"SUM(G16:G17)","v":81941.859255234289},6.1836285662392625E-2,{"$f":"SUM(I16:I17)","v":81941.859255234289},6.1836285662392625E-2,{"$f":"SUM(K16:K17)","v":81941.859255234289},6.1836285662392625E-2,{"$f":"SUM(M16:M17)","v":81941.859255234289},6.1836285662392625E-2]
[null,60,"TOTALE COSTI",null,{"$f":"+E9+E15+E18","v":1490289.8471518192},1.1246265284413437,{"$f":"+G9+G15+G18","v":1490289.8471518192},1.1246265284413437,{"$f":"+I9+I15+I18","v":1490289.8471518192},1.1246265284413437,{"$f":"+K9+K15+K18","v":1490289.8471518192},1.1246265284413437,{"$f":"+M9+M15+M18","v":1490289.8471518192},1.1246265284413437]
[null,null,"REDDITO ANTE IMPOSTE",null,{"$f":"+E7-E19","v":-165147.84715181915},-0.12462652844134375,{"$f":"+G7-G19","v":-165147.84715181915},-0.12462652844134375,{"$f":"+I7-I19","v":-165147.84715181915},-0.12462652844134375,{"$f":"+K7-K19","v":-165147.84715181915},-0.12462652844134375,{"$f":"+M7-M19","v":-165147.84715181915},-0.12462652844134375]
[null,6310,"IMPOSTE SUL REDDITO",null,{"$f":"+E20*0.279","v":-46076.249355357548},-3.4770801435134911E-2,{"$f":"+G20*0.279","v":-46076.249355357548},-3.4770801435134911E-2,{"$f":"+I20*0.279","v":-46076.249355357548},-3.4770801435134911E-2,{"$f":"+K20*0.279","v":-46076.249355357548},-3.4770801435134911E-2,{"$f":"+M20*0.279","v":-46076.249355357548},-3.4770801435134911E-2]
[null,630,"ONERI FISCALI","TAX",{"$f":"SUM(E21:E21)","v":-46076.249355357548},-3.4770801435134911E-2,{"$f":"SUM(G21:G21)","v":-46076.249355357548},-3.4770801435134911E-2,{"$f":"SUM(I21:I21)","v":-46076.249355357548},-3.4770801435134911E-2,{"$f":"SUM(K21:K21)","v":-46076.249355357548},-3.4770801435134911E-2,{"$f":"SUM(M21:M21)","v":-46076.249355357548},-3.4770801435134911E-2]
[null,null,"RISULTATO","RN",{"$f":"+E20-E22","v":-119071.5977964616},-8.9855727006208849E-2,{"$f":"+G20-G22","v":-119071.5977964616},-8.9855727006208849E-2,{"$f":"+I20-I22","v":-119071.5977964616},-8.9855727006208849E-2,{"$f":"+K20-K22","v":-119071.5977964616},-8.9855727006208849E-2,{"$f":"+M20-M22","v":-119071.5977964616},-8.9855727006208849E-2]

{"sheet":"scenari","index":17,"n_rows":65,"n_cols":14,"rows_kept":65,"cut":false,"hidden":false,"merged":[[1,3,1,5],[1,6,1,8],[1,9,1,11],[19,3,19,5],[19,6,19,8],[19,9,19,11]]}
[]
[null,null,null,2017,null,null,2018,null,null,2019,null,null,null,"influenza degli scenari"]
[null,"PUNTUALE","SEGNO","Q1","Q2","Q3","Q4","Q5","Q6","Q7","Q8","Q9",null,"4 - proiezione: oneri finanziari"]
[null,"Ricavi","+",180,200,80,105,22,85,80,50,60]
[null,"Costi operativi","-",40,70,50,8,3,3,5,30,15]
[null,"Costi del personale","-",10,10,10,10,10,10,8,7,6]
[null,"MARGINE OPERATIVO LORDO","=",{"$f":"+D4-D5-D6","v":130},{"$f":"+E4-E5-E6","v":120},20,87,9,72,67,13,39]
[null,"Ammortamenti","-",10,10,10,10,10,20,10,10,10]
[null,"Svalutazioni","-",15,5,10,10,5,50,5,5,15]
[null,"MARGINE OPERATIVO NETTO","=",{"$f":"+D7-D8-D9","v":105},{"$f":"+E7-E8-E9","v":105},0,67,-6,2,52,-2,14]
[null,"Oneri finanziari","-",10,15,20,10,15,20,5,10,5]
[null,"REDDITO ANTE IMPOSTE","=",{"$f":"+D10-D11","v":95},{"$f":"+E10-E11","v":90},-20,57,-21,-18,47,-12,9]
[null,"Imposte","-",{"$f":"+D12*0.279","v":26.505000000000003},{"$f":"+E12*0.279","v":25.110000000000003},-5.58,15.903000000000002,-5.8590000000000009,-5.0220000000000002,13.113000000000001,-3.3480000000000003,2.5110000000000001]
[null,"REDDITO NETTO","=",{"$f":"+D12-D13","v":68.495000000000005},{"$f":"+E12-E13","v":64.89},-14.42,41.096999999999994,-15.140999999999998,-12.978,33.887,-8.6519999999999992,6.4889999999999999]
[null,"Ammortamenti","+",10,10,10,10,10,10,10,10,10]
[null,"Svalutazioni","+",15,5,10,10,5,20,5,5,15]
[null,"CASH FLOW","=",{"$f":"+D14+D15+D16","v":93.495000000000005},{"$f":"+E14+E15+E16","v":79.89},5.58,61.096999999999994,-0.14099999999999824,17.021999999999998,48.887,6.3480000000000008,31.489000000000001]
[null,"Impegni finanziari","=",110,105,30,80,0,20,50,10,40]
[]
[null,null,null,2017,null,null,2018,null,null,2019]
[null,"PROGRESSIVO","SEGNO","Q1","Q2","Q3","Q1","Q2","Q3","Q1","Q2","Q3"]
[null,{"$f":"+B4","v":"Ricavi"},"+",{"$f":"+D4","v":180},{"$f":"+D22+E4","v":380},460,565,587,672,752,802,862]
[null,{"$f":"+B5","v":"Costi operativi"},"-",{"$f":"+D5","v":40},110,160,168,171,174,179,209,224]
[null,"Costi del personale","-",{"$f":"+D6","v":10},20,30,40,50,60,68,75,81]
[null,"MARGINE OPERATIVO LORDO","=",{"$f":"+D22-D23-D24","v":130},{"$f":"+E22-E23-E24","v":250},270,357,366,438,505,518,557]
[null,"Ammortamenti","-",{"$f":"+D8","v":10},{"$f":"+D26+E8","v":20},30,40,50,70,80,90,100]
[null,"Svalutazioni","-",{"$f":"+D9","v":15},20,30,40,45,95,100,105,120]
[null,"MARGINE OPERATIVO NETTO","=",{"$f":"+D25-D26-D27","v":105},{"$f":"+E25-E26-E27","v":210},210,277,271,273,325,323,337]
[null,"Oneri finanziari","-",{"$f":"+D11","v":10},{"$f":"+D29+E11","v":25},45,55,70,90,95,105,110]
[null,"REDDITO ANTE IMPOSTE","=",{"$f":"+D28-D29","v":95},{"$f":"+E28-E29","v":185},165,222,201,183,230,218,227]
[null,"Imposte","-",{"$f":"+D30*0.279","v":26.505000000000003},{"$f":"+D31+E13","v":51.615000000000009},46.035000000000011,61.938000000000017,56.079000000000015,51.057000000000016,64.170000000000016,60.822000000000017,63.33300000000002]
[null,"REDDITO NETTO","=",{"$f":"+D30-D31","v":68.495000000000005},{"$f":"+E30-E31","v":133.38499999999999},118.96499999999999,160.06199999999998,144.92099999999999,131.94299999999998,165.82999999999998,157.178,163.66699999999997]
[null,"Ammortamenti","+",{"$f":"+D15","v":10},{"$f":"+D33+E15","v":20},30,40,50,60,70,80,90]
[null,"Svalutazioni","+",{"$f":"+D16","v":15},20,30,40,45,65,70,75,90]
[null,"CASH FLOW","=",{"$f":"+D32+D33+D34","v":93.495000000000005},{"$f":"+E32+E33+E34","v":173.38499999999999},{"$f":"+F32+F33+F34","v":178.96499999999997},240.06199999999998,239.92099999999999,256.94299999999998,305.83,312.178,343.66699999999997]
[null,"Impegni finanziari","=",{"$f":"+D18","v":110},{"$f":"+D36+E18","v":215},245,325,325,345,395,405,445]
[]
[]
[]
[]
[]
[]
[]
[]
[]
[]
[]
[]
[]
[]
[]
[]
[]
[]
[]
[]
[]
[]
[]
[]
[]
[null,null,null,null,null,null,null,null,null,null,null,null,null,"1 - proiezione: inerziale"]
[null,null,null,null,null,null,null,null,null,null,null,null,null,"2 - proiezione: controllo costi operativi"]
[null,null,null,null,null,null,null,null,null,null,null,null,null,"3 - proiezione: ricavi di vendita + costi operativi + costi del personale"]
[null,null,null,null,null,null,null,null,null,null,null,null,null,"4 - proiezione: oneri finanziari"]